{"text_format":"1","workbook":"xlsx","n_sheets":17,"sheets":["Efnahagsyfirlit","EIGNIR","SKULDIR","Eigið fé","Gengi","Lönd","Sundurliðun Hlutabréf","Sundurliðun Skuldabréf","Sundurliðun Útlán","Sundurliðun Afleiður - eignir","Sundurliðun Innlán","Sundurliðun Lántaka","Sundurliðun Verðbréfaútgáfa","Afleiður og skortstöð - skuldir","Eigið fe","data","Bankanúmer"],"not_rendered":{"charts":0,"images":0,"macros":1,"external_links":0,"defined_names":140,"comments":3,"pivot_tables":0},"unopened":[],"bounds":{"document_bytes":16777216,"sheet_cells":100000,"rows_first":2000,"rows_last":500,"rows_between":2000,"halvings":0,"cell_chars":16384,"cell_head_chars":4096},"cells_cut":0,"cells_raw":0,"read":"whole","date_system":"1900"}

{"sheet":"Efnahagsyfirlit","index":0,"n_rows":57,"n_cols":15,"rows_kept":57,"cut":false,"hidden":false,"merged":[[3,4,3,10],[1,4,1,5]]}
[null,"SEÐLABANKI ÍSLANDS"]
[null,"Gagnasöfnun og upplýsingavinnsla",null,null,"Dagsetning",null,null,null,null,null,"Heiti stofnunar:",{"$f":"EIGNIR!C5","v":0}]
[null,null,null,null,{"$f":"EIGNIR!C8","v":"2015-09-30"}]
[null,null,null,null,"Efnahagsyfirlit"]
[]
["Eignir",null,null,null,null,"staða í þús. kr.",null,null,null,"Skuldir",null,null,null,null,"staða í þús. kr."]
[]
["Sjóður og innistæður í Seðlabanka",null,null,null,null,{"$f":"EIGNIR!C17","v":0},null,null,null,"Skuldir við Seðlabanka",null,null,null,null,{"$f":"+SKULDIR!C11","v":0}]
[null,"Seðlar og mynt",null,null,null,{"$f":"+EIGNIR!C18","v":0},null,null,null,null,"Lántökur gegn veði",null,null,null,{"$f":"+SKULDIR!C12","v":0}]
[null,"Erlendir seðlar og mynt",null,null,null,{"$f":"+EIGNIR!C19","v":0},null,null,null,null,"Daglán",null,null,null,{"$f":"+SKULDIR!C13","v":0}]
[null,"Viðskiptareikningur í Seðlabanka",null,null,null,{"$f":"+EIGNIR!C29","v":0},null,null,null,null,"Afleiður við Seðlabanka",null,null,null,{"$f":"+SKULDIR!C14","v":0}]
[null,"Gjaldeyrisreikningur í Seðlabanka",null,null,null,{"$f":"+EIGNIR!C30","v":0},null,null,null,null,"Aðrar skuldir við Seðlabanka",null,null,null,{"$f":"+SKULDIR!C15","v":0}]
[null,"Innstæðubréf",null,null,null,{"$f":"+EIGNIR!C31","v":0}]
[null,"Bundin innlán í Seðlabanka",null,null,null,{"$f":"+EIGNIR!C32","v":0},null,null,null,"Veltufjárskuldir",null,null,null,null,{"$f":"+SKULDIR!C16","v":0}]
[null,"Afleiður við Seðlabanka",null,null,null,{"$f":"+EIGNIR!C33","v":0},null,null,null,null,"Afleiðusamningar í viðskiptum",null,null,null,{"$f":"+SKULDIR!C17","v":0}]
[null,null,null,null,null,null,null,null,null,null,"Skortstöður",null,null,null,{"$f":"+SKULDIR!C18","v":0}]
["Veltufjáreignir",null,null,null,null,{"$f":"+EIGNIR!C34","v":0},null,null,null,null,"Skuldaviðurkenningar",null,null,null,{"$f":"+SKULDIR!C21","v":0}]
[null,"Afleiðusamningar í viðskiptum",null,null,null,{"$f":"+EIGNIR!C35","v":0},null,null,null,null,"Aðrar veltufjárskuldbindingar",null,null,null,{"$f":"+SKULDIR!C22","v":0}]
[null,"Hlutabréf < 10% eignahlutur og hlutdeildarskírteini",null,null,null,{"$f":"+EIGNIR!C36","v":0}]
[null,"Skuldabréf og víxlar",null,null,null,{"$f":"+EIGNIR!C68","v":0}]
[null,null,null,null,null,null,null,null,null,"Fjárskuldb. á gangv. í gegnum rekstr.reikn.",null,null,null,null,{"$f":"+SKULDIR!C23","v":0}]
["Fjáreignir á gangvirði í gegnum rekstrarreikning",null,null,null,null,{"$f":"+EIGNIR!C165","v":0},null,null,null,null,"Verðbréfaútgáfa",null,null,null,{"$f":"+SKULDIR!C24","v":0}]
[null,"Hlutabréf < 10% eignahlutur og hlutdeildarskírteini",null,null,null,{"$f":"+EIGNIR!C166","v":0},null,null,null,null,"Víkjandi lán",null,null,null,{"$f":"+SKULDIR!C27","v":0}]
[null,"Skuldabréf og víxlar",null,null,null,{"$f":"+EIGNIR!C198","v":0},null,null,null,null,"Beinar lántökur",null,null,null,{"$f":"+SKULDIR!C32","v":0}]
[]
["Fjáreignir til sölu",null,null,null,null,{"$f":"+EIGNIR!C295","v":0},null,null,null,"Fjárskuldbindingar á uppr. verði",null,null,null,null,{"$f":"+SKULDIR!C36","v":0}]
[null,"Hlutabréf < 10% eignahlutur og hlutdeildarskírteini",null,null,null,{"$f":"+EIGNIR!C296","v":0},null,null,null,null,"Innlán",null,null,null,{"$f":"+SKULDIR!C37","v":0}]
[null,"Skuldabréf og víxlar",null,null,null,{"$f":"+EIGNIR!C328","v":0},null,null,null,null,"Verðbréfaútgáfa",null,null,null,{"$f":"+SKULDIR!C168","v":0}]
[null,null,null,null,null,null,null,null,null,null,"Víkjandi lán",null,null,null,{"$f":"+SKULDIR!C171","v":0}]
["Útlán og kröfur",null,null,null,null,{"$f":"+EIGNIR!C425","v":0},null,null,null,null,"Beinar lántökur",null,null,null,{"$f":"+SKULDIR!C176","v":0}]
[null,"Innlán og innleystir tékkar",null,null,null,{"$f":"+EIGNIR!C426","v":0}]
[null,"Útlán",null,null,null,{"$f":"+EIGNIR!C430","v":0},null,null,null,"Fjárskuldb. tengdar tilfærslu fjáreigna",null,null,null,null,{"$f":"+SKULDIR!C180","v":0}]
[null,"Niðurfærslur útlána og krafna",null,null,null,{"$f":"+-EIGNIR!C623","v":0}]
[null,null,null,null,null,null,null,null,null,"Afleiðusamningar vegna áhættuvarna",null,null,null,null,{"$f":"+SKULDIR!C181","v":0}]
["Fjárfestingar til gjalddaga",null,null,null,null,{"$f":"+EIGNIR!C627","v":0},null,null,null,null,"Gangvirðisvarnir",null,null,null,{"$f":"+SKULDIR!C182","v":0}]
[null,"Skuldabréf og víxlar",null,null,null,{"$f":"+EIGNIR!C628","v":0},null,null,null,null,"Sjóðflæðisvarnir",null,null,null,{"$f":"+SKULDIR!C183","v":0}]
[null,null,null,null,null,null,null,null,null,null,"Gengisáhættuvarnir",null,null,null,{"$f":"+SKULDIR!C184","v":0}]
["Afleiðusamningar vegna áhættuvarna",null,null,null,null,{"$f":"+EIGNIR!C725","v":0},null,null,null,null,"Vaxtastigsvarnir",null,null,null,{"$f":"+SKULDIR!C185","v":0}]
[null,"Gangvirðisvarnir",null,null,null,{"$f":"+EIGNIR!C726","v":0},null,null,null,null,"Vaxtastigsvarnir v/sjóðstreymis",null,null,null,{"$f":"+SKULDIR!C186","v":0}]
[null,"Sjóðflæðisvarnir",null,null,null,{"$f":"+EIGNIR!C727","v":0}]
[null,"Gengisáhættuvarnir",null,null,null,{"$f":"+EIGNIR!C728","v":0},null,null,null,"Aðrar skuldir",null,null,null,null,{"$f":"+SKULDIR!C187","v":0}]
[null,"Vaxtastigsvarnir",null,null,null,{"$f":"+EIGNIR!C729","v":0}]
[null,"Vaxtastigsvarnir v/sjóðstreymis",null,null,null,{"$f":"+EIGNIR!C730","v":0},null,null,null,null,null,"Skuldir samtals",null,null,{"$f":"+SKULDIR!C203","v":0}]
[]
["Hlutir í hlutdeild.fél., dótturfél. og samrekstrarfél. Eignahl.≥ 10%",null,null,null,null,{"$f":"+EIGNIR!C731","v":0}]
[null,"Hlutdeildarfyrirtæki",null,null,null,{"$f":"+EIGNIR!C732+EIGNIR!C733","v":0}]
[null,"Hlutir í tengdum fyrirtækjum",null,null,null,{"$f":"+EIGNIR!C734+EIGNIR!C735","v":0},null,null,null,"Eigið fé ",null,null,null,null,{"$f":"+'Eigið fé'!C33","v":0}]
[]
["Aðrar eignir",null,null,null,null,{"$f":"+EIGNIR!C736","v":0},null,null,null,"Skuldir og eigið fé samtals",null,null,null,null,{"$f":"+SKULDIR!C203+'Eigið fé'!C33","v":0}]
[]
[null,null,null,null,"Eignir samtals",{"$f":"+EIGNIR!C754","v":0}]
[]
[]
[]
[]
[]
[null,null,null,null,null,{"$f":"F51-O49","v":0}]

{"sheet":"EIGNIR","index":1,"n_rows":778,"n_cols":5,"rows_kept":778,"cut":false,"hidden":false,"merged":[[0,0,0,2]]}
["Efnahagsyfirlit innlánsstofnana til Seðlabanka Íslands"]
[null,null,"Útg.númer"]
[null,{"$f":"VLOOKUP(C5,Bankanúmer!A2:C13,3,FALSE)","v":{"$error":"#N/A"}},"INN01102015",18]
[]
[null,"                                   Skilaaðili (veljið úr fellivalmyndinni):",null,"Leiðbeiningar"]
[null,"                                   Kennitala: ",{"$f":"VLOOKUP(C5,Bankanúmer!A2:D13,4,TRUE)","v":{"$error":"#N/A"}}]
[null,"                                   Bankanúmer:",{"$f":"VLOOKUP(C5,Bankanúmer!A2:D13,2,TRUE)","v":{"$error":"#N/A"}}]
[null,"                                   Dagsetning:","2015-09-30"]
[null,"                                   Nafn starfsmanns:"]
[null,"                                   Sími:"]
[null,"                                   Netfang:"]
[]
[]
["Efnahagsreikningur móðurfélags",null,null,"Villupróf og athugasemdir"]
["Eignir",null,"Fjárhæð í þús.kr"]
[]
["1","Sjóður og innstæður í Seðlabanka",{"$f":"C18+C19+C29+C30+C31+C32+C33","v":0},{"$f":"IF(ABS(+C17=SUM(+C18+C19+C29+C30+C31+C32+C33)),\" \",\"Samtala passar ekki við undirliði.\")","v":" "},"Cash and cash balances with central banks"]
["1.1","Seðlar og mynt (íslenskar krónur)",0,null,"Notes and coins"]
["1.2","Erlendir seðlar og mynt",{"$f":"SUM(C20:C28)","v":0},{"$f":"IF(ABS(C19=SUM(C20:C28)),\" \",\"Samtala passar ekki við undirliði.\")","v":" "},"Foreign notes and coins"]
["1.2.1","Evrur",0,null,"Euro"]
["1.2.2","Bandaríkjadalir",0,null,"United States Dollar"]
["1.2.3","Sterlingspund",0,null,"Pound sterling"]
["1.2.4","Japönsk jen",0,null,"Yen"]
["1.2.5","Danskar krónur",0,null,"Danish krone"]
["1.2.6","Norskar krónur",0,null,"Norwegian krone"]
["1.2.7","Sænskar krónur",0,null,"Swedish krone"]
["1.2.8","Svissneskur franki",0,null,"Swiss franc"]
["1.2.9","Aðrar myntir",0,null,"Other currencies"]
["1.3","Viðskiptareikningar í Seðlabanka",0,null,"Current account in central bank"]
["1.4","Gjaldeyrisreikningar í Seðlabanka",0,null,"FX account in central bank"]
["1.5","Innstæðubréf ",0,null,"Certificates of deposit"]
["1.6","Bundin innlán í Seðlabanka",0,null,"Term deposits in central bank"]
["1.7","Afleiðusamningar við Seðlabanka",0,null,"Derivatives with Central Bank"]
["2","Veltufjáreignir (= 2.1 + 2.2 + 2.3)",{"$f":"C35+C36+C68","v":0},{"$f":"IF(ABS(C34=SUM(C35+C36+C68)),\" \",\"Samtala passar ekki við undirliði.\")","v":" "},"Financial assets held for trading"]
["2.1","Afleiðusamningar í viðskiptum",0,null,"Derivatives held for trading "]
["2.2.","Hlutabréf < 10 % eignahlutur og hlutdeildarskírteini",{"$f":"SUM(C37,C51,C66,C67,C62,C65)","v":0},{"$f":"IF(ABS(C36=SUM(C37+C51+C66+C67)),\" \",\"Samtala passar ekki við undirliði.\")","v":" "},"Equity < 10% and investment fund shares"]
["2.2.1","Atvinnufyrirtæki",{"$f":"SUM(C38:C50)","v":0},{"$f":"IF(ABS(C37=SUM(C38:C50)),\" \",\"Samtala passar ekki við undirliði.\")","v":" "},"Non-financial companies"]
["2.2.1.1","Landbúnaður",0,null,"Agriculture"]
["2.2.1.2","Fiskveiðar",0,null,"Fisheries"]
["2.2.1.3a","Iðnaður, vinnsla landbúnaðarafurða",0,null,"Mining and manufacturing of which agricultural products"]
["2.2.1.3b","Iðnaður, vinnsla sjávarafurða",0,null,"Mining and manufacturing of which marine products"]
["2.2.1.3c","Iðnaður, annað",0,null,"Mining and manufacturing, other"]
["2.2.1.4","Veitur (orku- og vatnsveitur)",0,null,"Electricity, gas and water"]
["2.2.1.5","Byggingastarfsemi og mannvirkjagerð",0,null,"Construction"]
["2.2.1.6","Verslun",0,null,"Trade, etc."]
["2.2.1.7","Samgöngur og flutningar",0,null,"Transport and communications"]
["2.2.1.8a","Þjónusta, fasteignafélög",0,null,"Services of which real estate companies"]
["2.2.1.8b","Þjónusta, starfsemi höfuðstöðva",0,null,"Services of which head offices"]
["2.2.1.8c","Þjónusta, annað",0,null,"Services, other"]
["2.2.1.9","Óflokkað",0,null,"Other"]
["2.2.2","Fjármálageiri",{"$f":"+SUM(C52:C61)","v":0},{"$f":"IF(ABS(C51=SUM(C52:C61)),\" \",\"Samtala passar ekki við undirliði.\")","v":" "},"Financial companies"]
["2.2.2.1","Innlánsstofnanir",0,null,"Deposit money banks"]
["2.2.2.2","Innlánsstofnanir í slitameðferð",0,null,"Deposit money banks in winding-up proceedings or composition of creditors negotiations"]
["2.2.2.3","Peningamarkaðssjóðir",0,null,"Money market funds (MMF)"]
["2.2.2.4","Aðrir verðbréfa- og fjárfestingarsjóðir",0,null,"Other mutual and investment funds (other than MMF)"]
["2.2.2.5","Önnur fjármálafyrirtæki",0,null,"Other financial intermediaries"]
["2.2.2.6","Önnur fjármálafyrirtæki í slitameðferð",0,null,"Other financial intermediaries in winding-up proceedings or composition of creditors negotiations"]
["2.2.2.7","Fjármálaleg hliðarstarfsemi",0,null,"Financial auxiliaries"]
["2.2.2.8","Innbyrðis fjármálastarfsemi",0,null,"Captive financial institutions and money lenders. "]
["2.2.2.9","Vátryggingarfélög",0,null,"Insurance companies"]
["2.2.2.10","Lífeyrissjóðir",0,null,"Pension funds"]
["2.2.3","Hið opinbera","–",{"$f":"IF(C62=\"–\", \"\",IF(C62=\"-\",\"\",IF(C62<>0,\"Það er ekki hægt að kaupa hlutabréf í hinu opinbera\",\"\")))","v":""},"General government"]
["2.2.3.1","Ríkissjóður","–",null,"Treasury and govt. institutions"]
["2.2.3.2","Sveitarfélög","–",null,"Municipalities"]
["2.2.4","Heimili","–",{"$f":"IF(C65=\"–\", \"\",IF(C65=\"-\",\"\",IF(C65<>0,\"Það er ekki hægt að kaupa hlutabréf í heimilum\",\"\")))","v":""},"Households"]
["2.2.5","Félagasamtök sem þjóna heimilum",0,null,"Non-profit institutions serving households"]
["2.2.6","Erlendir aðilar",0,null,"Foreign equity and investment fund shares"]
["2.3","Skuldabréf og víxlar (2.3.1 + 2.3.2 + 2.3.3)",{"$f":"C69+C101+C133","v":0},{"$f":"IF(ABS(C68=SUM(C69+C101+C133)),\" \",\"Samtala passar ekki við undirliði.\")","v":" "},"Debt instruments "]
["2.3.1","Verðtryggð markaðsskuldabréf",{"$f":"SUM(C70,C84,C95,C98,C99,C100)","v":0},{"$f":"IF(ABS(C69=SUM(C70,C84,C95,C99,C100)),\" \",\"Samtala passar ekki við undirliði.\")","v":" "},"Indexed marketable bonds"]
["2.3.1.1","Atvinnufyrirtæki",{"$f":"SUM(C71:C83)","v":0},{"$f":"IF(ABS(C70=SUM(C71:C83)),\" \",\"Samtala passar ekki við undirliði.\")","v":" "},"Non-financial companies"]
["2.3.1.1.1","Landbúnaður",0,null,"Agriculture"]
["2.3.1.1.2","Fiskveiðar",0,null,"Fisheries"]
["2.3.1.1.3a","Iðnaður, vinnsla landbúnaðarafurða",0,null,"Mining and manufacturing of which agricultural products"]
["2.3.1.1.3b","Iðnaður, vinnsla sjávarafurða",0,null,"Mining and manufacturing of which marine products"]
["2.3.1.1.3c","Iðnaður, annað",0,null,"Mining and manufacturing, other"]
["2.3.1.1.4","Veitur (orku- og vatnsveitur)",0,null,"Electricity, gas and water"]
["2.3.1.1.5","Byggingastarfsemi og mannvirkjagerð",0,null,"Construction"]
["2.3.1.1.6","Verslun ",0,null,"Trade, etc."]
["2.3.1.1.7","Samgöngur og flutningar",0,null,"Transport and communications"]
["2.3.1.1.8a","Þjónusta, fasteignafélög",0,null,"Services of which real estate companies"]
["2.3.1.1.8b","Þjónusta, starfsemi höfuðstöðva",0,null,"Services of which head offices"]
["2.3.1.1.8c","Þjónusta, annað",0,null,"Services, other"]
["2.3.1.1.9","Óflokkað",0,null,"Other"]
["2.3.1.2","Fjármálageiri",{"$f":"SUM(C85:C94)","v":0},{"$f":"IF(ABS(C84=SUM(C85:C94)),\" \",\"Samtala passar ekki við undirliði.\")","v":" "},"Financial companies"]
["2.3.1.2.1","Innlánsstofnanir",0,null,"Deposit money banks"]
["2.3.1.2.2","Innlánsstofnanir í slitameðferð",0,null,"Deposit money banks in winding-up proceedings or composition of creditors negotiations"]
["2.3.1.2.3","Peningamarkaðssjóðir",0,null,"Money market funds (MMF)"]
["2.3.1.2.4","Aðrir verðbréfa- og fjárfestingarsjóðir",0,null,"Other mutual and investment funds (other than MMF)"]
["2.3.1.2.5","Önnur fjármálafyrirtæki",0,null,"Other financial intermediaries"]
["2.3.1.2.6","Önnur fjármálafyrirtæki í slitameðferð",0,null,"Other financial intermediaries in winding-up proceedings or composition of creditors negotiations"]
["2.3.1.2.7","Fjármálaleg hliðarstarfsemi",0,null,"Financial auxiliaries"]
["2.3.1.2.8","Innbyrðis fjármálastarfsemi",0,null,"Captive financial institutions and money lenders. "]
["2.3.1.2.9","Vátryggingarfélög",0,null,"Insurance companies"]
["2.3.1.2.10","Lífeyrissjóðir",0,null,"Pension funds"]
["2.3.1.3","Hið opinbera",{"$f":"SUM(C96:C97)","v":0},{"$f":"IF(ABS(C95=SUM(C96:C97)),\" \",\"Samtala passar ekki við undirliði.\")","v":" "},"General government"]
["2.3.1.3.1","Ríkissjóður",0,null,"Treasury and govt. institutions"]
["2.3.1.3.2","Sveitarfélög",0,null,"Municipalities"]
["2.3.1.4","Heimili","–",{"$f":"IF(C98=\"–\", \"\",IF(C98=\"-\",\"\",IF(C98<>0,\"Heimili gefa ekki út markaðsskuldabréf\",\"\")))","v":""},"Households"]
["2.3.1.5","Félagasamtök sem þjóna heimilum",0,null,"Non-profit institutions serving households"]
["2.3.1.6","Erlendir aðilar",0,null,"Non-residents"]
["2.3.2","Önnur markaðsskuldabréf og víxlar > 1 ár",{"$f":"SUM(C102,C116,C127,C130,C131,C132)","v":0},{"$f":"IF(ABS(C101=SUM(C102,C116,C127,C131,C132)),\" \",\"Samtala passar ekki við undirliði.\")","v":" "},"Other marketable bonds > 1 year"]
["2.3.2.1","Atvinnufyrirtæki",{"$f":"SUM(C103:C115)","v":0},{"$f":"IF(ABS(C102=SUM(C103:C115)),\" \",\"Samtala passar ekki við undirliði.\")","v":" "},"Non-financial companies"]
["2.3.2.1.1","Landbúnaður",0,null,"Agriculture"]
["2.3.2.1.2","Fiskveiðar",0,null,"Fisheries"]
["2.3.2.1.3a","Iðnaður, vinnsla landbúnaðarafurða",0,null,"Mining and manufacturing of which agricultural products"]
["2.3.2.1.3b","Iðnaður, vinnsla sjávarafurða",0,null,"Mining and manufacturing of which marine products"]
["2.3.2.1.3c","Iðnaður, annað",0,null,"Mining and manufacturing, other"]
["2.3.2.1.4","Veitur (orku- og vatnsveitur)",0,null,"Electricity, gas and water"]
["2.3.2.1.5","Byggingastarfsemi og mannvirkjagerð",0,null,"Construction"]
["2.3.2.1.6","Verslun",0,null,"Trade, etc."]
["2.3.2.1.7","Samgöngur og flutningar",0,null,"Transport and communications"]
["2.3.2.1.8a","Þjónusta, fasteignafélög",0,null,"Services of which real estate companies"]
["2.3.2.1.8b","Þjónusta, starfsemi höfuðstöðva",0,null,"Services of which head offices"]
["2.3.2.1.8c","Þjónusta, annað",0,null,"Services, other"]
["2.3.2.1.9","Óflokkað",0,null,"Other"]
["2.3.2.2","Fjármálageiri",{"$f":"+SUM(C117:C126)","v":0},{"$f":"IF(ABS(C116=SUM(C117:C126)),\" \",\"Samtala passar ekki við undirliði.\")","v":" "},"Financial companies"]
["2.3.2.2.1","Innlánsstofnanir",0,null,"Deposit money banks"]
["2.3.2.2.2","Innlánsstofnanir í slitameðferð",0,null,"Deposit money banks in winding-up proceedings or composition of creditors negotiations"]
["2.3.2.2.3","Peningamarkaðssjóðir",0,null,"Money market funds (MMF)"]
["2.3.2.2.4","Aðrir verðbréfa- og fjárfestingarsjóðir",0,null,"Other mutual and investment funds (other than MMF)"]
["2.3.2.2.5","Önnur fjármálafyrirtæki",0,null,"Other financial intermediaries"]
["2.3.2.2.6","Önnur fjármálafyrirtæki í slitameðferð",0,null,"Other financial intermediaries in winding-up proceedings or composition of creditors negotiations"]
["2.3.2.2.7","Fjármálaleg hliðarstarfsemi",0,null,"Financial auxiliaries"]
["2.3.2.2.8","Innbyrðis fjármálastarfsemi",0,null,"Captive financial institutions and money lenders. "]
["2.3.2.2.9","Vátryggingarfélög",0,null,"Insurance companies"]
["2.3.2.2.10","Lífeyrissjóðir",0,null,"Pension funds"]
["2.3.2.3","Hið opinbera",{"$f":"+C128+C129","v":0},{"$f":"IF(ABS(C127=SUM(C128:C129)),\" \",\"Samtala passar ekki við undirliði.\")","v":" "},"General government"]
["2.3.2.3.1","Ríkissjóður",0,null,"Treasury and govt. institutions"]
["2.3.2.3.2","Sveitarfélög",0,null,"Municipalities"]
["2.3.2.4","Heimili","–",{"$f":"IF(C130=\"–\", \"\",IF(C130=\"-\",\"\",IF(C130<>0,\"Heimili gefa ekki út markaðsskuldabréf\",\"\")))","v":""},"Households"]
["2.3.2.5","Félagasamtök sem þjóna heimilum",0,null,"Non-profit institutions serving households"]
["2.3.2.6","Erlendir aðilar",0,null,"Non-residents"]
["2.3.3","Önnur markaðsskuldabréf og víxlar ≤ 1 ár",{"$f":"SUM(C134,C148,C159,C162,C163,C164)","v":0},{"$f":"IF(ABS(C133=SUM(C134,C148,C159,C163,C164)),\" \",\"Samtala passar ekki við undirliði.\")","v":" "},"Other marketable bonds  ≤ 1 year"]
["2.3.3.1","Atvinnufyrirtæki",{"$f":"SUM(C135:C147)","v":0},{"$f":"IF(ABS(C134=SUM(C135:C147)),\" \",\"Samtala passar ekki við undirliði.\")","v":" "},"Non-financial companies"]
["2.3.3.1.1","Landbúnaður",0,null,"Agriculture"]
["2.3.3.1.2","Fiskveiðar",0,null,"Fisheries"]
["2.3.3.1.3a","Iðnaður, vinnsla landbúnaðarafurða",0,null,"Mining and manufacturing of which agricultural products"]
["2.3.3.1.3b","Iðnaður, vinnsla sjávarafurða",0,null,"Mining and manufacturing of which marine products"]
["2.3.3.1.3c","Iðnaður, annað",0,null,"Mining and manufacturing, other"]
["2.3.3.1.4","Veitur (orku- og vatnsveitur)",0,null,"Electricity, gas and water"]
["2.3.3.1.5","Byggingastarfsemi og mannvirkjagerð",0,null,"Construction"]
["2.3.3.1.6","Verslun",0,null,"Trade, etc."]
["2.3.3.1.7","Samgöngur og flutningar",0,null,"Transport and communications"]
["2.3.3.1.8a","Þjónusta, fasteignafélög",0,null,"Services of which real estate companies"]
["2.3.3.1.8b","Þjónusta, starfsemi höfuðstöðva",0,null,"Services of which head offices"]
["2.3.3.1.8c","Þjónusta, annað",0,null,"Services, other"]
["2.3.3.1.9","Óflokkað",0,null,"Other"]
["2.3.3.2","Fjármálageiri",{"$f":"+SUM(C149:C158)","v":0},{"$f":"IF(ABS(C148=SUM(C149:C158)),\" \",\"Samtala passar ekki við undirliði.\")","v":" "},"Financial companies"]
["2.3.3.2.1","Innlánsstofnanir",0,null,"Deposit money banks"]
["2.3.3.2.2","Innlánsstofnanir í slitameðferð",0,null,"Deposit money banks in winding-up proceedings or composition of creditors negotiations"]
["2.3.3.2.3","Peningamarkaðssjóðir",0,null,"Money market funds (MMF)"]
["2.3.3.2.4","Aðrir verðbréfa- og fjárfestingarsjóðir",0,null,"Other mutual and investment funds (other than MMF)"]
["2.3.3.2.5","Önnur fjármálafyrirtæki",0,null,"Other financial intermediaries"]
["2.3.3.2.6","Önnur fjármálafyrirtæki í slitameðferð",0,null,"Other financial intermediaries in winding-up proceedings or composition of creditors negotiations"]
["2.3.3.2.7","Fjármálaleg hliðarstarfsemi",0,null,"Financial auxiliaries"]
["2.3.3.2.8","Innbyrðis fjármálastarfsemi",0,null,"Captive financial institutions and money lenders. "]
["2.3.3.2.9","Vátryggingarfélög",0,null,"Insurance companies"]
["2.3.3.2.10","Lífeyrissjóðir",0,null,"Pension funds"]
["2.3.3.3","Hið opinbera",{"$f":"+C160+C161","v":0},{"$f":"IF(ABS(C159=SUM(C160:C161)),\" \",\"Samtala passar ekki við undirliði.\")","v":" "},"General government"]
["2.3.3.3.1","Ríkissjóður",0,null,"Treasury and govt. institutions"]
["2.3.3.3.2","Sveitarfélög",0,null,"Municipalities"]
["2.3.3.4","Heimili","–",{"$f":"IF(C162=\"–\", \"\",IF(C162=\"-\",\"\",IF(C162<>0,\"Heimili gefa ekki út markaðsskuldabréf\",\"\")))","v":""},"Households"]
["2.3.3.5","Félagasamtök sem þjóna heimilum",0,null,"Non-profit institutions serving households"]
["2.3.3.6","Erlendir aðilar",0,null,"Non-residents"]
["3","Fjáreignir á gangvirði í gegnum rekstrarreikning ",{"$f":"C166+C198","v":0},{"$f":"IF(ABS(C165=SUM(C166+C198)),\" \",\"Samtala passar ekki við undirliði.\")","v":" "},"Financial assets designated at fair value through profit or loss"]
["3.1","Hlutabréf < 10 % eignahlutur og hlutdeildarskírteini",{"$f":"SUM(C167,C181,C196,C197,C192,C195)","v":0},{"$f":"IF(ABS(C166=SUM(C167+C181+C196+C197)),\" \",\"Samtala passar ekki við undirliði.\")","v":" "},"Equity < 10% share and investment fund shares"]
["3.1.1","Atvinnufyrirtæki",{"$f":"SUM(C168:C180)","v":0},{"$f":"IF(ABS(C167=SUM(C168:C180)),\" \",\"Samtala passar ekki við undirliði.\")","v":" "},"Non-financial companies"]
["3.1.1.1","Landbúnaður",0,null,"Agriculture"]
["3.1.1.2","Fiskveiðar",0,null,"Fisheries"]
["3.1.1.3a","Iðnaður, vinnsla landbúnaðarafurða",0,null,"Mining and manufacturing of which agricultural products"]
["3.1.1.3b","Iðnður, vinnsla sjávarafurða",0,null,"Mining and manufacturing of which marine products"]
["3.1.1.3c","Iðnaður, annað",0,null,"Mining and manufacturing, other"]
["3.1.1.4","Veitur (orku- og vatnsveitur)",0,null,"Electricity, gas and water"]
["3.1.1.5","Byggingastarfsemi og mannvirkjagerð",0,null,"Construction"]
["3.1.1.6","Verslun",0,null,"Trade, etc."]
["3.1.1.7","Samgöngur og flutningar",0,null,"Transport and communications"]
["3.1.1.8a","Þjónusta, fasteignafélög",0,null,"Services of which real estate companies"]
["3.1.1.8b","Þjónusta, starfsemi höfuðstöðva",0,null,"Services of which head offices"]
["3.1.1.8c","Þjónusta, annað",0,null,"Services, other"]
["3.1.1.9","Óflokkað",0,null,"Other"]
["3.1.2","Fjármálageiri",{"$f":"+SUM(C182:C191)","v":0},{"$f":"IF(ABS(C181=SUM(C182:C191)),\" \",\"Samtala passar ekki við undirliði.\")","v":" "},"Financial companies"]
["3.1.2.1","Innlánsstofnanir",0,null,"Deposit money banks"]
["3.1.2.2","Innlánsstofnanir í slitameðferð",0,null,"Deposit money banks in winding-up proceedings or composition of creditors negotiations"]
["3.1.2.3","Peningamarkaðssjóðir",0,null,"Money market funds (MMF)"]
["3.1.2.4","Aðrir verðbréfa- og fjárfestingarsjóðir ",0,null,"Other mutual and investment funds (other than MMF)"]
["3.1.2.5","Önnur fjármálafyrirtæki",0,null,"Other financial intermediaries"]
["3.1.2.6","Önnur fjármálafyrirtæki í slitameðferð",0,null,"Other financial intermediaries in winding-up proceedings or composition of creditors negotiations"]
["3.1.2.7","Fjármálaleg hliðarstarfsemi",0,null,"Financial auxiliaries"]
["3.1.2.8","Innbyrðis fjármálastarfsemi",0,null,"Captive financial institutions and money lenders. "]
["3.1.2.9","Vátryggingarfélög",0,null,"Insurance companies"]
["3.1.2.10","Lífeyrissjóðir",0,null,"Pension funds"]
["3.1.3","Hið opinbera","–",{"$f":"IF(C192=\"–\", \"\",IF(C192=\"-\",\"\",IF(C192<>0,\"Það er ekki hægt að kaupa hlutabréf í hinu opinbera\",\"\")))","v":""},"General government"]
["3.1.3.1","Ríkissjóður, annað","–",null,"Treasury and govt. institutions"]
["3.1.3.2","Sveitarfélög","–",null,"Municipalities"]
["3.1.4","Heimili","–",{"$f":"IF(C195=\"–\", \"\",IF(C195=\"-\",\"\",IF(C195<>0,\"Það er ekki hægt að kaupa hlutabréf í heimilum\",\"\")))","v":""},"Households"]
["3.1.5","Félagasamtök sem þjóna heimilum",0,null,"Non-profit institutions serving households"]
["3.1.6","Erlendir aðilar",0,null,"Foreign equity and investment fund shares"]
["3.2","Skuldabréf og víxlar (3.2.1 + 3.2.2 +.3.2.3)",{"$f":"C199+C231+C263","v":0},{"$f":"IF(ABS(C198=SUM(C199+C231+C263)),\" \",\"Samtala passar ekki við undirliði.\")","v":" "},"Debt instruments "]
["3.2.1","Verðtryggð markaðsskuldabréf",{"$f":"SUM(C200,C214,C225,C228,C229,C230)","v":0},{"$f":"IF(ABS(C199=SUM(C200,C214,C225,C229,C230)),\" \",\"Samtala passar ekki við undirliði.\")","v":" "},"Indexed marketable bonds"]
["3.2.1.1","Atvinnufyrirtæki",{"$f":"SUM(C201:C213)","v":0},{"$f":"IF(ABS(C200=SUM(C201:C213)),\" \",\"Samtala passar ekki við undirliði.\")","v":" "},"Non-financial companies"]
["3.2.1.1.1","Landbúnaður",0,null,"Agriculture"]
["3.2.1.1.2","Fiskveiðar",0,null,"Fisheries"]
["3.2.1.1.3a","Iðnaður, vinnsla landbúnaðarafurða",0,null,"Mining and manufacturing of which agricultural products"]
["3.2.1.1.3b","Iðnaður, vinnsla sjávarafurða",0,null,"Mining and manufacturing of which marine products"]
["3.2.1.1.3c","Iðanður, annað",0,null,"Mining and manufacturing, other"]
["3.2.1.1.4","Veitur (orku- og vatnsveitur)",0,null,"Electricity, gas and water"]
["3.2.1.1.5","Byggingastarfsemi og mannvirkjagerð",0,null,"Construction"]
["3.2.1.1.6","Verslun",0,null,"Trade, etc."]
["3.2.1.1.7","Samgöngur og flutningar",0,null,"Transport and communications"]
["3.2.1.1.8a","Þjónusta, fasteignafélög",0,null,"Services of which real estate companies"]
["3.2.1.1.8b","Þjónusta, starfsemi höfuðstöðva",0,null,"Services of which head offices"]
["3.2.1.1.8c","Þjónusta, annað",0,null,"Services, other"]
["3.2.1.1.9","Óflokkað",0,null,"Other"]
["3.2.1.2","Fjármálageiri",{"$f":"+SUM(C215:C224)","v":0},{"$f":"IF(ABS(C214=SUM(C215:C224)),\" \",\"Samtala passar ekki við undirliði.\")","v":" "},"Financial companies"]
["3.2.1.2.1","Innlánsstofnanir",0,null,"Deposit money banks"]
["3.2.1.2.2","Innlánsstofnanir í slitameðferð",0,null,"Deposit money banks in winding-up proceedings or composition of creditors negotiations"]
["3.2.1.2.3","Peningamarkaðssjóðir",0,null,"Money market funds (MMF)"]
["3.2.1.2.4","Aðrir verðbréfa- og fjárfestingarsjóðir",0,null,"Other mutual and investment funds (other than MMF)"]
["3.2.1.2.5","Önnur fjármálafyrirtæki",0,null,"Other financial intermediaries"]
["3.2.1.2.6","Önnur fjármálafyrirtæki í slitameðferð",0,null,"Other financial intermediaries in winding-up proceedings or composition of creditors negotiations"]
["3.2.1.2.7","Fjármálaleg hliðarstarfsemi",0,null,"Financial auxiliaries"]
["3.2.1.2.8","Innbyrðis fjármálastarfsemi",0,null,"Captive financial institutions and money lenders. "]
["3.2.1.2.9","Vátryggingarfélög",0,null,"Insurance companies"]
["3.2.1.2.10","Lífeyrissjóðir",0,null,"Pension funds"]
["3.2.1.3","Hið opinbera",{"$f":"+C226+C227","v":0},{"$f":"IF(ABS(C225=SUM(C226:C227)),\" \",\"Samtala passar ekki við undirliði.\")","v":" "},"General government"]
["3.2.1.3.1","Ríkissjóður",0,null,"Treasury and govt. institutions"]
["3.2.1.3.2","Sveitarfélög",0,null,"Municipalities"]
["3.2.1.4","Heimili","–",{"$f":"IF(C228=\"–\", \"\",IF(C228=\"-\",\"\",IF(C228<>0,\"Heimili gefa ekki út markaðsskuldabréf\",\"\")))","v":""},"Households"]
["3.2.1.5","Félagasamtök sem þjóna heimilum",0,null,"Non-profit institutions serving households"]
["3.2.1.6","Erlendir aðilar",0,null,"Non-residents"]
["3.2.2","Önnur markaðsskuldabréf og víxlar >1 ár",{"$f":"SUM(C232,C246,C257,C260,C261,C262)","v":0},{"$f":"IF(ABS(C231=SUM(C232,C246,C257,C261,C262)),\" \",\"Samtala passar ekki við undirliði.\")","v":" "},"Other marketable bonds  > 1 year"]
["3.2.2.1","Atvinnufyrirtæki",{"$f":"SUM(C233:C245)","v":0},{"$f":"IF(ABS(C232=SUM(C233:C245)),\" \",\"Samtala passar ekki við undirliði.\")","v":" "},"Non-financial companies"]
["3.2.2.1.1","Landbúnaður",0,null,"Agriculture"]
["3.2.2.1.2","Fiskveiðar",0,null,"Fisheries"]
["3.2.2.1.3a","Iðnaður, vinnsla landbúnaðarafurða",0,null,"Mining and manufacturing of which agricultural products"]
["3.2.2.1.3b","Iðnaður, vinnsla sjávarafurða",0,null,"Mining and manufacturing of which marine products"]
["3.2.2.1.3c","Iðnaður, annað",0,null,"Mining and manufacturing, other"]
["3.2.2.1.4","Veitur (orku- og vatnsveitur)",0,null,"Electricity, gas and water"]
["3.2.2.1.5","Byggingastarfsemi og mannvirkjagerð",0,null,"Construction"]
["3.2.2.1.6","Verslun",0,null,"Trade, etc."]
["3.2.2.1.7","Samgöngur og flutningar",0,null,"Transport and communications"]
["3.2.2.1.8a","Þjónusta, fasteignafélög",0,null,"Services of which real estate companies"]
["3.2.2.1.8b","Þjónusta, starfsemi höfuðstöðva",0,null,"Services of which head offices"]
["3.2.2.1.8c","Þjónusta, annað",0,null,"Services, other"]
["3.2.2.1.9","Óflokkað",0,null,"Other"]
["3.2.2.2","Fjármálageiri",{"$f":"+SUM(C247:C256)","v":0},{"$f":"IF(ABS(C246=SUM(C247:C256)),\" \",\"Samtala passar ekki við undirliði.\")","v":" "},"Financial companies"]
["3.2.2.2.1","Innlánsstofnanir",0,null,"Deposit money banks"]
["3.2.2.2.2","Innlánsstofnanir í slitameðferð",0,null,"Deposit money banks in winding-up proceedings or composition of creditors negotiations"]
["3.2.2.2.3","Peningamarkaðssjóðir",0,null,"Money market funds (MMF)"]
["3.2.2.2.4","Aðrir verðbréfa- og fjárfestingarsjóðir",0,null,"Other mutual and investment funds (other than MMF)"]
["3.2.2.2.5","Önnur fjármálafyrirtæki",0,null,"Other financial intermediaries"]
["3.2.2.2.6","Önnur fjármálafyrirtæki í slitameðferð",0,null,"Other financial intermediaries in winding-up proceedings or composition of creditors negotiations"]
["3.2.2.2.7","Fjármálaleg hliðarstarfsemi",0,null,"Financial auxiliaries"]
["3.2.2.2.8","Innbyrðis fjármálastarfsemi",0,null,"Captive financial institutions and money lenders. "]
["3.2.2.2.9","Vátryggingarfélög",0,null,"Insurance companies"]
["3.2.2.2.10","Lífeyrissjóðir",0,null,"Pension funds"]
["3.2.2.3","Hið opinbera",{"$f":"+C258+C259","v":0},{"$f":"IF(ABS(C257=SUM(C258:C259)),\" \",\"Samtala passar ekki við undirliði.\")","v":" "},"General government"]
["3.2.2.3.1","Ríkissjóður",0,null,"Treasury and govt. institutions"]
["3.2.2.3.2","Sveitarfélög",0,null,"Municipalities"]
["3.2.2.4","Heimili","–",{"$f":"IF(C260=\"–\", \"\",IF(C260=\"-\",\"\",IF(C260<>0,\"Heimili gefa ekki út markaðsskuldabréf\",\"\")))","v":""},"Households"]
["3.2.2.5","Félagasamtök sem þjóna heimilum",0,null,"Non-profit institutions serving households"]
["3.2.2.6","Erlendir aðilar",0,null,"Non-residents"]
["3.2.3","Önnur markaðsskuldabréf og víxlar ≤ 1 ár",{"$f":"SUM(C264,C278,C289,C292,C293,C294)","v":0},{"$f":"IF(ABS(C263=SUM(C264,C278,C289,C293,C294)),\" \",\"Samtala passar ekki við undirliði.\")","v":" "},"Other marketable bonds  ≤ 1 year"]
["3.2.3.1","Atvinnufyrirtæki",{"$f":"SUM(C265:C277)","v":0},{"$f":"IF(ABS(C264=SUM(C265:C277)),\" \",\"Samtala passar ekki við undirliði.\")","v":" "},"Non-financial companies"]
["3.2.3.1.1","Landbúnaður",0,null,"Agriculture"]
["3.2.3.1.2","Fiskveiðar",0,null,"Fisheries"]
["3.2.3.1.3a","Iðnaður, vinnsla landbúnaðarafurða",0,null,"Mining and manufacturing of which agricultural products"]
["3.2.3.1.3b","Iðnaður, vinnsla sjávarafurða",0,null,"Mining and manufacturing of which marine products"]
["3.2.3.1.3c","Iðnaður, annað",0,null,"Mining and manufacturing, other"]
["3.2.3.1.4","Veitur (orku- og vatnsveitur)",0,null,"Electricity, gas and water"]
["3.2.3.1.5","Byggingastarfsemi og mannvirkjagerð",0,null,"Construction"]
["3.2.3.1.6","Verslun",0,null,"Trade, etc."]
["3.2.3.1.7","Samgöngur og flutningar",0,null,"Transport and communications"]
["3.2.3.1.8a","Þjónusta, fasteignafélög",0,null,"Services of which real estate companies"]
["3.2.3.1.8b","Þjónusta, starfsemi höfuðstöðva",0,null,"Services of which head offices"]
["3.2.3.1.8c","Þjónusta, annað",0,null,"Services, other"]
["3.2.3.1.9","Óflokkað",0,null,"Other"]
["3.2.3.2","Fjármálageiri",{"$f":"+SUM(C279:C288)","v":0},{"$f":"IF(ABS(C278=SUM(C279:C288)),\" \",\"Samtala passar ekki við undirliði.\")","v":" "},"Financial companies"]
["3.2.3.2.1","Innlánsstofnanir",0,null,"Deposit money banks"]
["3.2.3.2.2","Innlánsstofnanir í slitameðferð",0,null,"Deposit money banks in winding-up proceedings or composition of creditors negotiations"]
["3.2.3.2.3","Peningamarkaðssjóðir",0,null,"Money market funds (MMF)"]
["3.2.3.2.4","Aðrir verðbréfa- og fjárfestingarsjóðir ",0,null,"Other mutual and investment funds (other than MMF)"]
["3.2.3.2.5","Önnur fjármálafyrirtæki",0,null,"Other financial intermediaries"]
["3.2.3.2.6","Önnur fjármálafyrirtæki í slitameðferð",0,null,"Other financial intermediaries in winding-up proceedings or composition of creditors negotiations"]
["3.2.3.2.7","Fjármálaleg hliðarstarfsemi",0,null,"Financial auxiliaries"]
["3.2.3.2.8","Innbyrðis fjármálastarfsemi",0,null,"Captive financial institutions and money lenders. "]
["3.2.3.2.9","Vátryggingarfélög",0,null,"Insurance companies"]
["3.2.3.2.10","Lífeyrissjóðir",0,null,"Pension funds"]
["3.2.3.3","Hið opinbera",{"$f":"+C290+C291","v":0},{"$f":"IF(ABS(C289=SUM(C290:C291)),\" \",\"Samtala passar ekki við undirliði.\")","v":" "},"General government"]
["3.2.3.3.1","Ríkissjóður",0,null,"Treasury and govt. institutions"]
["3.2.3.3.2","Sveitarfélög",0,null,"Municipalities"]
["3.2.3.4","Heimili","–",{"$f":"IF(C292=\"–\", \"\",IF(C292=\"-\",\"\",IF(C292<>0,\"Heimili gefa ekki út markaðsskuldabréf\",\"\")))","v":""},"Households"]
["3.2.3.5","Félagasamtök sem þjóna heimilum",0,null,"Non-profit institutions serving households"]
["3.2.3.6","Erlendir aðilar",0,null,"Non-residents"]
["4","Fjáreignir til sölu  (= 4.1 + 4.2)",{"$f":"+C296+C328","v":0},{"$f":"IF(ABS(C295=SUM(C296+C328)),\" \",\"Samtala passar ekki við undirliði.\")","v":" "},"Available-for-sale financial assets"]
["4.1","Hlutabréf < 10 % eignahlutur og hlutdeildarskírteini",{"$f":"SUM(C297,C311,C326,C327,C322,C325)","v":0},{"$f":"IF(ABS(C296=SUM(C297+C311+C326+C327)),\" \",\"Samtala passar ekki við undirliði.\")","v":" "},"Equity < 10% and investment fund shares"]
["4.1.1","Atvinnufyrirtæki",{"$f":"SUM(C298:C310)","v":0},{"$f":"IF(ABS(C297=SUM(C298:C310)),\" \",\"Samtala passar ekki við undirliði.\")","v":" "},"Non-financial companies"]
["4.1.1.1","Landbúnaður",0,null,"Agriculture"]
["4.1.1.2","Fiskveiðar",0,null,"Fisheries"]
["4.1.1.3a","Iðnaður, vinnsla landbúnaðarafurða",0,null,"Mining and manufacturing of which agricultural products"]
["4.1.1.3b","Iðnaður, vinnsla sjávarafurða",0,null,"Mining and manufacturing of which marine products"]
["4.1.1.3c","Iðnaður, annað",0,null,"Mining and manufacturing, other"]
["4.1.1.4","Veitur (orku- og vatnsveitur)",0,null,"Electricity, gas and water"]
["4.1.1.5","Byggingastarfsemi og mannvirkjagerð",0,null,"Construction"]
["4.1.1.6","Verslun",0,null,"Trade, etc."]
["4.1.1.7","Samgöngur og flutningar",0,null,"Transport and communications"]
["4.1.1.8a","Þjónusta, fasteignafélög",0,null,"Services of which real estate companies"]
["4.1.1.8b","Þjónusta, starfsemi höfuðstöðva",0,null,"Services of which head offices"]
["4.1.1.8c","Þjónusta, annað",0,null,"Services, other"]
["4.1.1.9","Óflokkað",0,null,"Other"]
["4.1.2","Fjármálageiri",{"$f":"+SUM(C312:C321)","v":0},{"$f":"IF(ABS(C311=SUM(C312:C321)),\" \",\"Samtala passar ekki við undirliði.\")","v":" "},"Financial companies"]
["4.1.2.1","Innlánsstofnanir",0,null,"Deposit money banks"]
["4.1.2.2","Innlánsstofnanir í slitameðferð",0,null,"Deposit money banks in winding-up proceedings or composition of creditors negotiations"]
["4.1.2.3","Peningamarkaðssjóðir",0,null,"Money market funds (MMF)"]
["4.1.2.4","Aðrir verðbréfa- og fjárfestingarsjóðir",0,null,"Other mutual and investment funds (other than MMF)"]
["4.1.2.5","Önnur fjármálafyrirtæki",0,null,"Other financial intermediaries"]
["4.1.2.6","Önnur fjármálafyrirtæki í slitameðferð",0,null,"Other financial intermediaries in winding-up proceedings or composition of creditors negotiations"]
["4.1.2.7","Fjármálaleg hliðarstarfsemi",0,null,"Financial auxiliaries"]
["4.1.2.8","Innbyrðis fjármálastarfsemi",0,null,"Captive financial institutions and money lenders. "]
["4.1.2.9","Vátryggingarfélög",0,null,"Insurance companies"]
["4.1.2.10","Lífeyrissjóðir",0,null,"Pension funds"]
["4.1.3","Hið opinbera","–",{"$f":"IF(C322=\"–\", \"\",IF(C322=\"-\",\"\",IF(C322<>0,\"Það er ekki hægt að kaupa hlutabréf í hinu opinbera\",\"\")))","v":""},"General government"]
["4.1.3.1","Ríkissjóður","–",null,"Treasury and govt. institutions"]
["4.1.3.2","Sveitarfélög","–",null,"Municipalities"]
["4.1.4","Heimili","–",{"$f":"IF(C325=\"–\", \"\",IF(C325=\"-\",\"\",IF(C325<>0,\"Það er ekki hægt að kaupa hlutabréf í heimilum\",\"\")))","v":""},"Households"]
["4.1.5","Félagasamtök sem þjóna heimilum",0,null,"Non-profit institutions serving households"]
["4.1.6","Erlendir aðilar",0,null,"Foreign equity and investment fund shares"]
["4.2","Skuldabréf og víxlar (= 4.2.1 + 4.2.2 + 4.2.3 )",{"$f":"C329+C361+C393","v":0},{"$f":"IF(ABS(C328=SUM(C329+C361+C393)),\" \",\"Samtala passar ekki við undirliði.\")","v":" "},"Debt instruments"]
["4.2.1","Verðtryggð markaðsskuldabréf",{"$f":"SUM(C330,C344,C355,C358,C359,C360)","v":0},{"$f":"IF(ABS(C329=SUM(C330,C344,C355,C359,C360)),\" \",\"Samtala passar ekki við undirliði.\")","v":" "},"Indexed marketable bonds"]
["4.2.1.1","Atvinnufyrirtæki",{"$f":"SUM(C331:C343)","v":0},{"$f":"IF(ABS(C330=SUM(C331:C343)),\" \",\"Samtala passar ekki við undirliði.\")","v":" "},"Non-financial companies"]
["4.2.1.1.1","Landbúnaður",0,null,"Agriculture"]
["4.2.1.1.2","Fiskveiðar",0,null,"Fisheries"]
["4.2.1.1.3a","Iðnaður, vinnsla landbúnaðarafurða",0,null,"Mining and manufacturing of which agricultural products"]
["4.2.1.1.3b","Iðnaður, vinnsla sjávarafurða",0,null,"Mining and manufacturing of which marine products"]
["4.2.1.1.3c","Iðnaður, annað",0,null,"Mining and manufacturing, other"]
["4.2.1.1.4","Veitur (orku- og vatnsveitur)",0,null,"Electricity, gas and water"]
["4.2.1.1.5","Byggingastarfsemi og mannvirkjagerð",0,null,"Construction"]
["4.2.1.1.6","Verslun",0,null,"Trade, etc."]
["4.2.1.1.7","Samgöngur og flutningar",0,null,"Transport and communications"]
["4.2.1.1.8a","Þjónusta, fasteignafélög",0,null,"Services of which real estate companies"]
["4.2.1.1.8b","Þjónusta, starfsemi höfuðstöðva",0,null,"Services of which head offices"]
["4.2.1.1.8c","Þjónusta, annað",0,null,"Services, other"]
["4.2.1.1.9","Óflokkað",0,null,"Other"]
["4.2.1.2","Fjármálageiri",{"$f":"+SUM(C345:C354)","v":0},{"$f":"IF(ABS(C344=SUM(C345:C354)),\" \",\"Samtala passar ekki við undirliði.\")","v":" "},"Financial companies"]
["4.2.1.2.1","Innlánsstofnanir",0,null,"Deposit money banks"]
["4.2.1.2.2","Innlánsstofnanir í slitameðferð",0,null,"Deposit money banks in winding-up proceedings or composition of creditors negotiations"]
["4.2.1.2.3","Peningamarkaðssjóðir",0,null,"Money market funds (MMF)"]
["4.2.1.2.4","Aðrir verðbréfa- og fjárfestingarsjóðir",0,null,"Other mutual and investment funds (other than MMF)"]
["4.2.1.2.5","Önnur fjármálafyrirtæki",0,null,"Other financial intermediaries"]
["4.2.1.2.6","Önnur fjármálafyrirtæki í slitameðferð",0,null,"Other financial intermediaries in winding-up proceedings or composition of creditors negotiations"]
["4.2.1.2.7","Fjármálaleg hliðarstarfsemi",0,null,"Financial auxiliaries"]
["4.2.1.2.8","Innbyrðis fjármálastarfsemi",0,null,"Captive financial institutions and money lenders. "]
["4.2.1.2.9","Vátryggingarfélög",0,null,"Insurance companies"]
["4.2.1.2.10","Lífeyrissjóðir",0,null,"Pension funds"]
["4.2.1.3","Hið opinbera",{"$f":"+C356+C357","v":0},{"$f":"IF(ABS(C355=SUM(C356:C357)),\" \",\"Samtala passar ekki við undirliði.\")","v":" "},"General government"]
["4.2.1.3.1","Ríkissjóður",0,null,"Treasury and govt. institutions"]
["4.2.1.3.2","Sveitarfélög",0,null,"Municipalities"]
["4.2.1.4","Heimili","–",{"$f":"IF(C358=\"–\", \"\",IF(C358=\"-\",\"\",IF(C358<>0,\"Heimili gefa ekki út markaðsskuldabréf\",\"\")))","v":""},"Households"]
["4.2.1.5","Félagasamtök sem þjóna heimilum",0,null,"Non-profit institutions serving households"]
["4.2.1.6","Erlendir aðilar",0,null,"Non-residents"]
["4.2.2","Önnur markaðsskuldabréf og víxlar >1 ár",{"$f":"SUM(C362,C376,C387,C390,C391,C392)","v":0},{"$f":"IF(ABS(C361=SUM(C362,C376,C387,C391,C392)),\" \",\"Samtala passar ekki við undirliði.\")","v":" "},"Other marketable bonds  > 1 year"]
["4.2.2.1","Atvinnufyrirtæki",{"$f":"SUM(C363:C375)","v":0},{"$f":"IF(ABS(C362=SUM(C363:C375)),\" \",\"Samtala passar ekki við undirliði.\")","v":" "},"Non-financial companies"]
["4.2.2.1.1","Landbúnaður",0,null,"Agriculture"]
["4.2.2.1.2","Fiskveiðar",0,null,"Fisheries"]
["4.2.2.1.3a","Iðnaður, vinnsla landbúnaðarafurða",0,null,"Mining and manufacturing of which agricultural products"]
["4.2.2.1.3b","Iðnaður, vinnsla sjávarafurða",0,null,"Mining and manufacturing of which marine products"]
["4.2.2.1.3c","Iðnaður, annað",0,null,"Mining and manufacturing, other"]
["4.2.2.1.4","Veitur (orku- og vatnsveitur)",0,null,"Electricity, gas and water"]
["4.2.2.1.5","Byggingastarfsemi og mannvirkjagerð",0,null,"Construction"]
["4.2.2.1.6","Verslun",0,null,"Trade, etc."]
["4.2.2.1.7","Samgöngur og flutningar",0,null,"Transport and communications"]
["4.2.2.1.8a","Þjónusta, fasteignafélög",0,null,"Services of which real estate companies"]
["4.2.2.1.8b","Þjónusta, starfsemi höfuðstöðva",0,null,"Services of which head offices"]
["4.2.2.1.8c","Þjónusta, annað",0,null,"Services, other"]
["4.2.2.1.9","Óflokkað",0,null,"Other"]
["4.2.2.2","Fjármálageiri",{"$f":"+SUM(C377:C386)","v":0},{"$f":"IF(ABS(C376=SUM(C377:C386)),\" \",\"Samtala passar ekki við undirliði.\")","v":" "},"Financial companies"]
["4.2.2.2.1","Innlánsstofnanir",0,null,"Deposit money banks"]
["4.2.2.2.2","Innlánsstofnanir í slitameðferð",0,null,"Deposit money banks in winding-up proceedings or composition of creditors negotiations"]
["4.2.2.2.3","Peningamarkaðssjóðir",0,null,"Money market funds (MMF)"]
["4.2.2.2.4","Aðrir verðbréfa- og fjárfestingarsjóðir ",0,null,"Other mutual and investment funds (other than MMF)"]
["4.2.2.2.5","Önnur fjármálafyrirtæki",0,null,"Other financial intermediaries"]
["4.2.2.2.6","Önnur fjármálafyrirtæki í slitameðferð",0,null,"Other financial intermediaries in winding-up proceedings or composition of creditors negotiations"]
["4.2.2.2.7","Fjármálaleg hliðarstarfsemi",0,null,"Financial auxiliaries"]
["4.2.2.2.8","Innbyrðis fjármálastarfsemi",0,null,"Captive financial institutions and money lenders. "]
["4.2.2.2.9","Vátryggingarfélög",0,null,"Insurance companies"]
["4.2.2.2.10","Lífeyrissjóðir",0,null,"Pension funds"]
["4.2.2.3","Hið opinbera",{"$f":"+C388+C389","v":0},{"$f":"IF(ABS(C387=SUM(C388:C389)),\" \",\"Samtala passar ekki við undirliði.\")","v":" "},"General government"]
["4.2.2.3.1","Ríkissjóður",0,null,"Treasury and govt. institutions"]
["4.2.2.3.2","Sveitarfélög",0,null,"Municipalities"]
["4.2.2.4","Heimili","–",{"$f":"IF(C390=\"–\", \"\",IF(C390=\"-\",\"\",IF(C390<>0,\"Heimili gefa ekki út markaðsskuldabréf\",\"\")))","v":""},"Households"]
["4.2.2.5","Félagasamtök sem þjóna heimilum",0,null,"Non-profit institutions serving households"]
["4.2.2.6","Erlendir aðilar",0,null,"Non-residents"]
["4.2.3","Önnur markaðsskuldabréf og víxlar ≤ 1 ár",{"$f":"SUM(C394,C408,C419,C423,C422,C424)","v":0},{"$f":"IF(ABS(C393=SUM(C394+C408+C419+C423+C424)),\" \",\"Samtala passar ekki við undirliði.\")","v":" "},"Other marketable bonds  ≤ 1 year"]
["4.2.3.1","Atvinnufyrirtæki",{"$f":"SUM(C395:C407)","v":0},{"$f":"IF(ABS(C394=SUM(C395:C407)),\" \",\"Samtala passar ekki við undirliði.\")","v":" "},"Non-financial companies"]
["4.2.3.1.1","Landbúnaður",0,null,"Agriculture"]
["4.2.3.1.2","Fiskveiðar",0,null,"Fisheries"]
["4.2.3.1.3a","Iðnaður, vinnsla landbúnaðarafurða",0,null,"Mining and manufacturing of which agricultural products"]
["4.2.3.1.3b","Iðnaður, vinnsla sjávarafurða",0,null,"Mining and manufacturing of which marine products"]
["4.2.3.1.3c","Iðnaður, annað",0,null,"Mining and manufacturing, other"]
["4.2.3.1.4","Veitur (orku- og vatnsveitur)",0,null,"Electricity, gas and water"]
["4.2.3.1.5","Byggingastarfsemi og mannvirkjagerð",0,null,"Construction"]
["4.2.3.1.6","Verslun",0,null,"Trade, etc."]
["4.2.3.1.7","Samgöngur og flutningar",0,null,"Transport and communications"]
["4.2.3.1.8a","Þjónusta, fasteignafélög",0,null,"Services of which real estate companies"]
["4.2.3.1.8b","Þjónusta, starfsemi höfuðstöðva",0,null,"Services of which head offices"]
["4.2.3.1.8c","Þjónusta, annað",0,null,"Services, other"]
["4.2.3.1.9","Óflokkað",0,null,"Other"]
["4.2.3.2","Fjármálageiri",{"$f":"+SUM(C409:C418)","v":0},{"$f":"IF(ABS(C408=SUM(C409:C418)),\" \",\"Samtala passar ekki við undirliði.\")","v":" "},"Financial companies"]
["4.2.3.2.1","Innlánsstofnanir",0,null,"Deposit money banks"]
["4.2.3.2.2","Innlánsstofnanir í slitameðferð",0,null,"Deposit money banks in winding-up proceedings or composition of creditors negotiations"]
["4.2.3.2.3","Peningamarkaðssjóðir",0,null,"Money market funds (MMF)"]
["4.2.3.2.4","Aðrir verðbréfa- og fjárfestingarsjóðir",0,null,"Other mutual and investment funds (other than MMF)"]
["4.2.3.2.5","Önnur fjármálafyrirtæki",0,null,"Other financial intermediaries"]
["4.2.3.2.6","Önnur fjármálafyrirtæki í slitameðferð",0,null,"Other financial intermediaries in winding-up proceedings or composition of creditors negotiations"]
["4.2.3.2.7","Fjármálaleg hliðarstarfsemi",0,null,"Financial auxiliaries"]
["4.2.3.2.8","Innbyrðis fjármálastarfsemi",0,null,"Captive financial institutions and money lenders. "]
["4.2.3.2.9","Vátryggingarfélög",0,null,"Insurance companies"]
["4.2.3.2.10","Lífeyrissjóðir",0,null,"Pension funds"]
["4.2.3.3","Hið opinbera",{"$f":"+C420+C421","v":0},{"$f":"IF(ABS(C419=SUM(C420:C421)),\" \",\"Samtala passar ekki við undirliði.\")","v":" "},"General government"]
["4.2.3.3.1","Ríkissjóður",0,null,"Treasury and govt. institutions"]
["4.2.3.3.2","Sveitarfélög",0,null,"Municipalities"]
["4.2.3.4","Heimili","–",{"$f":"IF(C422=\"–\", \"\",IF(C422=\"-\",\"\",IF(C422<>0,\"Heimili gefa ekki út markaðsskuldabréf\",\"\")))","v":""},"Households"]
["4.2.3.5","Félagasamtök sem þjóna heimilum",0,null,"Non-profit institutions serving households"]
["4.2.3.6","Erlendir aðilar",0,null,"Non-residents"]
["5","Útlán og kröfur  (= 5.1 + 5.2 - 5.3)",{"$f":"+C426+C430-C623","v":0},{"$f":"IF(ABS(C425=SUM(C426+C430-C623)),\" \",\"Samtala passar ekki við undirliði.\")","v":" "},"Loans and receivables"]
["5.1","Innlán og innleystir tékkar",{"$f":"+SUM(C427:C429)","v":0},{"$f":"IF(ABS(C426=SUM(C427+C428+C429)),\" \",\"Samtala passar ekki við undirliði.\")","v":" "},"Receivables, other than direct lending"]
["5.1.1","Innlán hjá innlendum bönkum",0,null,"                Deposits in domestic banks "]
["5.1.2","Innlán hjá erlendum bönkum ",0,null,"                Deposits in foreign banks "]
["5.1.3","Innleystir tékkar",0,null,"                Cashed cheques"]
["5.2","Útlán (5.2.1 + 5.2.2.+ 5.2.3 + 5.2.4 + 5.2.5 +5.2.6)",{"$f":"+C431+C463+C495+C527+C559+C591","v":0},{"$f":"IF(ABS(C430=SUM(C431+C463+C495+C527+C559+C591)),\" \",\"Samtala passar ekki við undirliði.\")","v":" "},"Lending to others than deposit money banks"]
["5.2.1","Greiddar óinnleystar ábyrgðir",{"$f":"+C432+C446+C457+C460+C461+C462","v":0},{"$f":"IF(ABS(C431=SUM(C432+C446+C457+C460+C461+C462)),\" \",\"Samtala passar ekki við undirliði.\")","v":" "},"Redeemed liabilities"]
["5.2.1.1","Atvinnufyrirtæki",{"$f":"SUM(C433:C445)","v":0},{"$f":"IF(ABS(C432=SUM(C433:C445)),\" \",\"Samtala passar ekki við undirliði.\")","v":" "},"Non-financial companies"]
["5.2.1.1.1","Landbúnaður",0,null,"Agriculture"]
["5.2.1.1.2","Fiskveiðar",0,null,"Fisheries"]
["5.2.1.1.3a","Iðnaður, vinnsla landbúnaðarafurða",0,null,"Mining and manufacturing of which agricultural products"]
["5.2.1.1.3b","Iðnaður, vinnsla sjávarafurða",0,null,"Mining and manufacturing of which marine products"]
["5.2.1.1.3c","Iðnaður, annað",0,null,"Mining and manufacturing, other"]
["5.2.1.1.4","Veitur (orku- og vatnsveitur)",0,null,"Electricity, gas and water"]
["5.2.1.1.5","Byggingastarfsemi og mannvirkjagerð",0,null,"Construction"]
["5.2.1.1.6","Verslun",0,null,"Trade, etc."]
["5.2.1.1.7","Samgöngur og flutningar",0,null,"Transport and communications"]
["5.2.1.1.8a","Þjónusta, fasteignafélög",0,null,"Services of which real estate companies"]
["5.2.1.1.8b","Þjónusta, starfsemi höfuðstöðva",0,null,"Services of which head offices"]
["5.2.1.1.8c","Þjónusta, annað",0,null,"Services, other"]
["5.2.1.1.9","Óflokkað",0,null,"Other"]
["5.2.1.2","Fjármálageiri",{"$f":"+SUM(C447:C456)","v":0},{"$f":"IF(ABS(C446=SUM(C447:C456)),\" \",\"Samtala passar ekki við undirliði.\")","v":" "},"Financial companies"]
["5.2.1.2.1","Innlánsstofnanir",0,null,"Deposit money banks"]
["5.2.1.2.2","Innlánsstofnanir í slitameðferð",0,null,"Deposit money banks in winding-up proceedings or composition of creditors negotiations"]
["5.2.1.2.3","Peningamarkaðssjóðir",0,null,"Money market funds (MMF)"]
["5.2.1.2.4","Aðrir verðbréfa- og fjárfestingarsjóðir",0,null,"Other mutual and investment funds (other than MMF)"]
["5.2.1.2.5","Önnur fjármálafyrirtæki",0,null,"Other financial intermediaries"]
["5.2.1.2.6","Önnur fjármálafyrirtæki í slitameðferð",0,null,"Other financial intermediaries in winding-up proceedings or composition of creditors negotiations"]
["5.2.1.2.7","Fjármálaleg hliðarstarfsemi",0,null,"Financial auxiliaries"]
["5.2.1.2.8","Innbyrðis fjármálastarfsemi",0,null,"Captive financial institutions and money lenders. "]
["5.2.1.2.9","Vátryggingarfélög",0,null,"Insurance companies"]
["5.2.1.2.10","Lífeyrissjóðir",0,null,"Pension funds"]
["5.2.1.3","Hið opinbera",{"$f":"+C458+C459","v":0},{"$f":"IF(ABS(C457=SUM(C458:C459)),\" \",\"Samtala passar ekki við undirliði.\")","v":" "},"General government"]
["5.2.1.3.1","Ríkissjóður",0,null,"Treasury and govt. institutions"]
["5.2.1.3.2","Sveitarfélög",0,null,"Municipalities"]
["5.2.1.4","Heimili",0,null,"Households"]
["5.2.1.5","Félagasamtök sem þjóna heimilum",0,null,"Non-profit institutions serving households"]
["5.2.1.6","Erlendir aðilar",0,null,"Non-residents"]
["5.2.2","Yfirdráttarlán",{"$f":"+C464+C478+C489+C492+C493+C494","v":0},{"$f":"IF(ABS(C463=SUM(C464+C478+C489+C492+C493+C494)),\" \",\"Samtala passar ekki við undirliði.\")","v":" "},"Overdrafts"]
["5.2.2.1","Atvinnufyrirtæki",{"$f":"SUM(C465:C477)","v":0},{"$f":"IF(ABS(C464=SUM(C465:C477)),\" \",\"Samtala passar ekki við undirliði.\")","v":" "},"Non-financial companies"]
["5.2.2.1.1","Landbúnaður",0,null,"Agriculture"]
["5.2.2.1.2","Fiskveiðar",0,null,"Fisheries"]
["5.2.2.1.3a","Iðnaður, vinnsla landbúnaðarafurða",0,null,"Mining and manufacturing of which agricultural products"]
["5.2.2.1.3b","Iðnaður, vinnsla sjávarafurða",0,null,"Mining and manufacturing of which marine products"]
["5.2.2.1.3c","Iðnaður, annað",0,null,"Mining and manufacturing, other"]
["5.2.2.1.4","Veitur (orku- og vatnsveitur)",0,null,"Electricity, gas and water"]
["5.2.2.1.5","Byggingastarfsemi og mannvirkjagerð",0,null,"Construction"]
["5.2.2.1.6","Verslun",0,null,"Trade, etc."]
["5.2.2.1.7","Samgöngur og flutningar",0,null,"Transport and communications"]
["5.2.2.1.8a","Þjónusta, fasteignafélög",0,null,"Services of which real estate companies"]
["5.2.2.1.8b","Þjónusta, starfsemi höfuðstöðva",0,null,"Services of which head offices"]
["5.2.2.1.8c","Þjónusta, annað",0,null,"Services, other"]
["5.2.2.1.9","Óflokkað",0,null,"Other"]
["5.2.2.2","Fjármálageiri",{"$f":"+SUM(C479:C488)","v":0},{"$f":"IF(ABS(C478=SUM(C479:C488)),\" \",\"Samtala passar ekki við undirliði.\")","v":" "},"Financial companies"]
["5.2.2.2.1","Innlánsstofnanir",0,null,"Deposit money banks"]
["5.2.2.2.2","Innlánsstofnanir í slitameðferð",0,null,"Deposit money banks in winding-up proceedings or composition of creditors negotiations"]
["5.2.2.2.3","Peningamarkaðssjóðir",0,null,"Money market funds (MMF)"]
["5.2.2.2.4","Aðrir verðbréfa- og fjárfestingarsjóðir",0,null,"Other mutual and investment funds (other than MMF)"]
["5.2.2.2.5","Önnur fjármálafyrirtæki",0,null,"Other financial intermediaries"]
["5.2.2.2.6","Önnur fjármálafyrirtæki í slitameðferð",0,null,"Other financial intermediaries in winding-up proceedings or composition of creditors negotiations"]
["5.2.2.2.7","Fjármálaleg hliðarstarfsemi",0,null,"Financial auxiliaries"]
["5.2.2.2.8","Innbyrðis fjármálastarfsemi",0,null,"Captive financial institutions and money lenders. "]
["5.2.2.2.9","Vátryggingarfélög",0,null,"Insurance companies"]
["5.2.2.2.10","Lífeyrissjóðir",0,null,"Pension funds"]
["5.2.2.3","Hið opinbera",{"$f":"+C490+C491","v":0},{"$f":"IF(ABS(C489=SUM(C490:C491)),\" \",\"Samtala passar ekki við undirliði.\")","v":" "},"General government"]
["5.2.2.3.1","Ríkissjóður",0,null,"Treasury and govt. institutions"]
["5.2.2.3.2","Sveitarfélög",0,null,"Municipalities"]
["5.2.2.4","Heimili",0,null,"Households"]
["5.2.2.5","Félagasamtök sem þjóna heimilum",0,null,"Non-profit institutions serving households"]
["5.2.2.6","Erlendir aðilar",0,null,"Non-residents"]
["5.2.3","Víxlar",{"$f":"+C496+C510+C521+C524+C525+C526","v":0},{"$f":"IF(ABS(C495=SUM(C496+C510+C521+C524+C525+C526)),\" \",\"Samtala passar ekki við undirliði.\")","v":" "},"Bills"]
["5.2.3.1","Atvinnufyrirtæki",{"$f":"SUM(C497:C509)","v":0},{"$f":"IF(ABS(C496=SUM(C497:C509)),\" \",\"Samtala passar ekki við undirliði.\")","v":" "},"Non-financial companies"]
["5.2.3.1.1","Landbúnaður",0,null,"Agriculture"]
["5.2.3.1.2","Fiskveiðar",0,null,"Fisheries"]
["5.2.3.1.3a","Iðnaður, vinnsla landbúnaðarafurða",0,null,"Mining and manufacturing of which agricultural products"]
["5.2.3.1.3b","Iðnaður, vinnsla sjávarafurða",0,null,"Mining and manufacturing of which marine products"]
["5.2.3.1.3c","Iðnaður, annað",0,null,"Mining and manufacturing, other"]
["5.2.3.1.4","Veitur (orku- og vatnsveitur)",0,null,"Electricity, gas and water"]
["5.2.3.1.5","Byggingastarfsemi og mannvirkjagerð",0,null,"Construction"]
["5.2.3.1.6","Verslun",0,null,"Trade, etc."]
["5.2.3.1.7","Samgöngur og flutningar",0,null,"Transport and communications"]
["5.2.3.1.8a","Þjónusta, fasteignafélög",0,null,"Services of which real estate companies"]
["5.2.3.1.8b","Þjónusta, starfsemi höfuðstöðva",0,null,"Services of which head offices"]
["5.2.3.1.8c","Þjónusta, annað",0,null,"Services, other"]
["5.2.3.1.9","Óflokkað",0,null,"Other"]
["5.2.3.2","Fjármálageiri",{"$f":"+SUM(C511:C520)","v":0},{"$f":"IF(ABS(C510=SUM(C511:C520)),\" \",\"Samtala passar ekki við undirliði.\")","v":" "},"Financial companies"]
["5.2.3.2.1","Innlánsstofnanir",0,null,"Deposit money banks"]
["5.2.3.2.2","Innlánsstofnanir í slitameðferð",0,null,"Deposit money banks in winding-up proceedings or composition of creditors negotiations"]
["5.2.3.2.3","Peningamarkaðssjóðir",0,null,"Money market funds (MMF)"]
["5.2.3.2.4","Aðrir verðbréfa- og fjárfestingarsjóðir",0,null,"Other mutual and investment funds (other than MMF)"]
["5.2.3.2.5","Önnur fjármálafyrirtæki",0,null,"Other financial intermediaries"]
["5.2.3.2.6","Önnur fjármálafyrirtæki í slitameðferð",0,null,"Other financial intermediaries in winding-up proceedings or composition of creditors negotiations"]
["5.2.3.2.7","Fjármálaleg hliðarstarfsemi",0,null,"Financial auxiliaries"]
["5.2.3.2.8","Innbyrðis fjármálastarfsemi",0,null,"Captive financial institutions and money lenders. "]
["5.2.3.2.9","Vátryggingarfélög",0,null,"Insurance companies"]
["5.2.3.2.10","Lífeyrissjóðir",0,null,"Pension funds"]
["5.2.3.3","Hið opinbera",{"$f":"+C522+C523","v":0},{"$f":"IF(ABS(C521=SUM(C522:C523)),\" \",\"Samtala passar ekki við undirliði.\")","v":" "},"General government"]
["5.2.3.3.1","Ríkissjóður",0,null,"Treasury and govt. institutions"]
["5.2.3.3.2","Sveitarfélög",0,null,"Municipalities"]
["5.2.3.4","Heimili",0,null,"Households"]
["5.2.3.5","Félagasamtök sem þjóna heimilum",0,null,"Non-profit institutions serving households"]
["5.2.3.6","Erlendir aðilar",0,null,"Non-residents"]
["5.2.4","Verðtryggð útlán",{"$f":"+C528+C542+C553+C556+C557+C558","v":0},{"$f":"IF(ABS(C527=SUM(C528,C542,C553,C556,C557,C558)),\" \",\"Samtala passar ekki við undirliði.\")","v":" "},"Indexed bonds"]
["5.2.4.1","Atvinnufyrirtæki",{"$f":"SUM(C529:C541)","v":0},{"$f":"IF(ABS(C528=SUM(C529:C541)),\" \",\"Samtala passar ekki við undirliði.\")","v":" "},"Non-financial companies"]
["5.2.4.1.1","Landbúnaður",0,null,"Agriculture"]
["5.2.4.1.2","Fiskveiðar",0,null,"Fisheries"]
["5.2.4.1.3a","Iðnaður, vinnsla landbúnaðarafurða",0,null,"Mining and manufacturing of which agricultural products"]
["5.2.4.1.3b","Iðnaður, vinnsla sjávarafurða",0,null,"Mining and manufacturing of which marine products"]
["5.2.4.1.3c","Iðnaður, annað",0,null,"Mining and manufacturing, other"]
["5.2.4.1.4","Veitur (orku- og vatnsveitur)",0,null,"Electricity, gas and water"]
["5.2.4.1.5","Byggingastarfsemi og mannvirkjagerð",0,null,"Construction"]
["5.2.4.1.6","Verslun",0,null,"Trade, etc."]
["5.2.4.1.7","Samgöngur og flutningar",0,null,"Transport and communications"]
["5.2.4.1.8a","Þjónusta, fasteignafélög",0,null,"Services of which real estate companies"]
["5.2.4.1.8b","Þjónusta, starfsemi höfuðstöðva",0,null,"Services of which head offices"]
["5.2.4.1.8c","Þjónusta, annað",0,null,"Services, other"]
["5.2.4.1.9","Óflokkað",0,null,"Other"]
["5.2.4.2","Fjármálageiri",{"$f":"+SUM(C543:C552)","v":0},{"$f":"IF(ABS(C542=SUM(C543:C552)),\" \",\"Samtala passar ekki við undirliði.\")","v":" "},"Financial companies"]
["5.2.4.2.1","Innlánsstofnanir",0,null,"Deposit money banks"]
["5.2.4.2.2","Innlánsstofnanir í slitameðferð",0,null,"Deposit money banks in winding-up proceedings or composition of creditors negotiations"]
["5.2.4.2.3","Peningamarkaðssjóðir",0,null,"Money market funds (MMF)"]
["5.2.4.2.4","Aðrir verðbréfa- og fjárfestingarsjóðir",0,null,"Other mutual and investment funds (other than MMF)"]
["5.2.4.2.5","Önnur fjármálafyrirtæki",0,null,"Other financial intermediaries"]
["5.2.4.2.6","Önnur fjármálafyrirtæki í slitameðferð",0,null,"Other financial intermediaries in winding-up proceedings or composition of creditors negotiations"]
["5.2.4.2.7","Fjármálaleg hliðarstarfsemi",0,null,"Financial auxiliaries"]
["5.2.4.2.8","Innbyrðis fjármálastarfsemi",0,null,"Captive financial institutions and money lenders. "]
["5.2.4.2.9","Vátryggingarfélög",0,null,"Insurance companies"]
["5.2.4.2.10","Lífeyrissjóðir",0,null,"Pension funds"]
["5.2.4.3","Hið opinbera",{"$f":"+C554+C555","v":0},{"$f":"IF(ABS(C553=SUM(C554:C555)),\" \",\"Samtala passar ekki við undirliði.\")","v":" "},"General government"]
["5.2.4.3.1","Ríkissjóður",0,null,"Treasury and govt. institutions"]
["5.2.4.3.2","Sveitarfélög",0,null,"Municipalities"]
["5.2.4.4.","Heimili",0,null,"Households"]
["5.2.4.5","Félagasamtök sem þjóna heimilum",0,null,"Non-profit institutions serving households"]
["5.2.4.6","Erlendir aðilar",0,null,"Non-residents"]
["5.2.5","Önnur útlán og kröfur",{"$f":"+C560+C574+C585+C588+C589+C590","v":0},{"$f":"IF(ABS(C559=SUM(C560+C574+C585+C588+C589+C590)),\" \",\"Samtala passar ekki við undirliði.\")","v":" "},"Indexed bonds"]
["5.2.5.1","Atvinnufyrirtæki",{"$f":"SUM(C561:C573)","v":0},{"$f":"IF(ABS(C560=SUM(C561:C573)),\" \",\"Samtala passar ekki við undirliði.\")","v":" "},"Non-financial companies"]
["5.2.5.1.1","Landbúnaður",0,null,"Agriculture"]
["5.2.5.1.2","Fiskveiðar",0,null,"Fisheries"]
["5.2.5.1.3a","Iðnaður, vinnsla landbúnaðarafurða",0,null,"Mining and manufacturing of which agricultural products"]
["5.2.5.1.3b","Iðnaður, vinnsla sjávarafurða",0,null,"Mining and manufacturing of which marine products"]
["5.2.5.1.3c","Iðnaður, annað",0,null,"Mining and manufacturing, other"]
["5.2.5.1.4","Veitur (orku- og vatnsveitur)",0,null,"Electricity, gas and water"]
["5.2.5.1.5","Byggingastarfsemi og mannvirkjagerð",0,null,"Construction"]
["5.2.5.1.6","Verslun",0,null,"Trade, etc."]
["5.2.5.1.7","Samgöngur og flutningar",0,null,"Transport and communications"]
["5.2.5.1.8a","Þjónusta, fasteignafélög",0,null,"Services of which real estate companies"]
["5.2.5.1.8b","Þjónusta, starfsemi höfuðstöðva",0,null,"Services of which head offices"]
["5.2.5.1.8c","Þjónusta, annað",0,null,"Services, other"]
["5.2.5.1.9","Óflokkað",0,null,"Other"]
["5.2.5.2","Fjármálageiri",{"$f":"+SUM(C575:C584)","v":0},{"$f":"IF(ABS(C574=SUM(C575:C584)),\" \",\"Samtala passar ekki við undirliði.\")","v":" "},"Financial companies"]
["5.2.5.2.1","Innlánsstofnanir",0,null,"Deposit money banks"]
["5.2.5.2.2","Innlánsstofnanir í slitameðferð",0,null,"Deposit money banks in winding-up proceedings or composition of creditors negotiations"]
["5.2.5.2.3","Peningamarkaðssjóðir",0,null,"Money market funds (MMF)"]
["5.2.5.2.4","Aðrir verðbréfa- og fjárfestingarsjóðir",0,null,"Other mutual and investment funds (other than MMF)"]
["5.2.5.2.5","Önnur fjármálafyrirtæki",0,null,"Other financial intermediaries"]
["5.2.5.2.6","Önnur fjármálafyrirtæki í slitameðferð",0,null,"Other financial intermediaries in winding-up proceedings or composition of creditors negotiations"]
["5.2.5.2.7","Fjármálaleg hliðarstarfsemi",0,null,"Financial auxiliaries"]
["5.2.5.2.8","Innbyrðis fjármálastarfsemi",0,null,"Captive financial institutions and money lenders. "]
["5.2.5.2.9","Vátryggingarfélög",0,null,"Insurance companies"]
["5.2.5.2.10","Lífeyrissjóðir",0,null,"Pension funds"]
["5.2.5.3","Hið opinbera",{"$f":"+C586+C587","v":0},{"$f":"IF(ABS(C585=SUM(C586:C587)),\" \",\"Samtala passar ekki við undirliði.\")","v":" "},"General government"]
["5.2.5.3.1","Ríkissjóður",0,null,"Treasury and govt. institutions"]
["5.2.5.3.2","Sveitarfélög",0,null,"Municipalities"]
["5.2.5.4","Heimili",0,null,"Households"]
["5.2.5.5","Félagasamtök sem þjóna heimilum",0,null,"Non-profit institutions serving households"]
["5.2.5.6","Erlendir aðilar",0,null,"Non-residents"]
["5.2.6","Eignarleigusamningar",{"$f":"+C592+C606+C617+C620+C621+C622","v":0},{"$f":"IF(ABS(C591=SUM(C592+C606+C617+C620+C621+C622)),\" \",\"Samtala passar ekki við undirliði.\")","v":" "},"Leasing contracts"]
["5.2.6.1","Atvinnufyrirtæki",{"$f":"SUM(C593:C605)","v":0},{"$f":"IF(ABS(C592=SUM(C593:C605)),\" \",\"Samtala passar ekki við undirliði.\")","v":" "},"Non-financial companies"]
["5.2.6.1.1","Landbúnaður",0,null,"Agriculture"]
["5.2.6.1.2","Fiskveiðar",0,null,"Fisheries"]
["5.2.6.1.3a","Iðnaður, vinnsla landbúnaðarafurða",0,null,"Mining and manufacturing of which agricultural products"]
["5.2.6.1.3b","Iðnaður, vinnsla sjávarafurða",0,null,"Mining and manufacturing of which marine products"]
["5.2.6.1.3c","Iðnaður, annað",0,null,"Mining and manufacturing, other"]
["5.2.6.1.4","Veitur (orku- og vatnsveitur)",0,null,"Electricity, gas and water"]
["5.2.6.1.5","Byggingastarfsemi og mannvirkjagerð",0,null,"Construction"]
["5.2.6.1.6","Verslun",0,null,"Trade, etc."]
["5.2.6.1.7","Samgöngur og flutningar",0,null,"Transport and communications"]
["5.2.6.1.8a","Þjónusta, fasteignafélög",0,null,"Services of which real estate companies"]
["5.2.6.1.8b","Þjónusta, starfsemi höfuðstöðva",0,null,"Services of which head offices"]
["5.2.6.1.8c","Þjónusta, annað",0,null,"Services, other"]
["5.2.6.1.9","Óflokkað",0,null,"Other"]
["5.2.6.2","Fjármálageiri",{"$f":"+SUM(C607:C616)","v":0},{"$f":"IF(ABS(C606=SUM(C607:C616)),\" \",\"Samtala passar ekki við undirliði.\")","v":" "},"Financial companies"]
["5.2.6.2.1","Innlánsstofnanir",0,null,"Deposit money banks"]
["5.2.6.2.2","Innlánsstofnanir í slitameðferð",0,null,"Deposit money banks in winding-up proceedings or composition of creditors negotiations"]
["5.2.6.2.3","Peningamarkaðssjóðir",0,null,"Money market funds (MMF)"]
["5.2.6.2.4","Aðrir verðbréfa- og fjárfestingarsjóðir",0,null,"Other mutual and investment funds (other than MMF)"]
["5.2.6.2.5","Önnur fjármálafyrirtæki",0,null,"Other financial intermediaries"]
["5.2.6.2.6","Önnur fjármálafyrirtæki í slitameðferð",0,null,"Other financial intermediaries in winding-up proceedings or composition of creditors negotiations"]
["5.2.6.2.7","Fjármálaleg hliðarstarfsemi",0,null,"Financial auxiliaries"]
["5.2.6.2.8","Innbyrðis fjármálastarfsemi",0,null,"Captive financial institutions and money lenders. "]
["5.2.6.2.9","Vátryggingarfélög",0,null,"Insurance companies"]
["5.2.6.2.10","Lífeyrissjóðir",0,null,"Pension funds"]
["5.2.6.3","Hið opinbera",{"$f":"+C618+C619","v":0},{"$f":"IF(ABS(C617=SUM(C618:C619)),\" \",\"Samtala passar ekki við undirliði.\")","v":" "},"General government"]
["5.2.6.3.1","Ríkissjóður",0,null,"Treasury and govt. institutions"]
["5.2.6.3.2","Sveitarfélög",0,null,"Municipalities"]
["5.2.6.4","Heimili",0,null,"Households"]
["5.2.6.5","Félagasamtök sem þjóna heimilum",0,null,"Non-profit institutions serving households"]
["5.2.6.6","Erlendir aðilar",0,null,"Non-residents"]
["5.3","Niðurfærslur útlána og krafna",{"$f":"+C624+C625+C626","v":0},"Niðurfærslur færast sem + tala","Provisions"]
["5.3.1","Almennar niðurfærslur (innlendir aðilar)",0,null,"Collective provisions    (Residents)"]
["5.3.2","Sérstakar niðurfærslur (innlendir aðilar)",0,null,"Specific provisions           (Residents)"]
["5.3.3","Niðurfærslur útlána til erlendra aðila (almennar og sértækar)",0,null,"Collective and specific provisions           (Non-residents)"]
["6","Fjárfestingar til gjalddaga ",{"$f":"+C628","v":0},{"$f":"IF(ABS(C627=SUM(C628)),\" \",\"Samtala passar ekki við undirliði.\")","v":" "},"Held-to-maturity investments"]
["6.1","Skuldabréf og víxlar  (= 6.1.1 + 6.1.2 + 6.1.3 ) ",{"$f":"C629+C661+C693","v":0},{"$f":"IF(ABS(C628=SUM(C629+C661+C693)),\" \",\"Samtala passar ekki við undirliði.\")","v":" "},"Bonds and bills"]
["6.1.1","Verðtryggð markaðsskuldabréf",{"$f":"SUM(C630,C644,C655,C659,C658,C660)","v":0},{"$f":"IF(ABS(C629=SUM(C630,C644,C655,C659,C660)),\" \",\"Samtala passar ekki við undirliði.\")","v":" "},"Indexed marketable bonds "]
["6.1.1.1","Atvinnufyrirtæki",{"$f":"SUM(C631:C643)","v":0},{"$f":"IF(ABS(C630=SUM(C631:C643)),\" \",\"Samtala passar ekki við undirliði.\")","v":" "},"Non-financial companies"]
["6.1.1.1.1","Landbúnaður",0,null,"Agriculture"]
["6.1.1.1.2","Fiskveiðar",0,null,"Fisheries"]
["6.1.1.1.3a","Iðnaður, vinnsla landbúnaðarafurða",0,null,"Mining and manufacturing of which agricultural products"]
["6.1.1.1.3b","Iðnaður, vinnsla sjávarafurða",0,null,"Mining and manufacturing of which marine products"]
["6.1.1.1.3c","Iðnaður, annað",0,null,"Mining and manufacturing, other"]
["6.1.1.1.4","Veitur (orku- og vatnsveitur)",0,null,"Electricity, gas and water"]
["6.1.1.1.5","Byggingastarfsemi og mannvirkjagerð",0,null,"Construction"]
["6.1.1.1.6","Verslun",0,null,"Trade, etc."]
["6.1.1.1.7","Samgöngur og flutningar",0,null,"Transport and communications"]
["6.1.1.1.8a","Þjónusta, fasteignafélög",0,null,"Services of which real estate companies"]
["6.1.1.1.8b","Þjónusta, starfsemi höfuðstöðva",0,null,"Services of which head offices"]
["6.1.1.1.8c","Þjónusta, annað",0,null,"Services, other"]
["6.1.1.1.9","Óflokkað",0,null,"Other"]
["6.1.1.2","Fjármálageiri",{"$f":"+SUM(C645:C654)","v":0},{"$f":"IF(ABS(C644=SUM(C645:C654)),\" \",\"Samtala passar ekki við undirliði.\")","v":" "},"Financial companies"]
["6.1.1.2.1","Innlánsstofnanir",0,null,"Deposit money banks"]
["6.1.1.2.2","Innlánsstofnanir í slitameðferð",0,null,"Deposit money banks in winding-up proceedings or composition of creditors negotiations"]
["6.1.1.2.3","Peningamarkaðssjóðir",0,null,"Money market funds (MMF)"]
["6.1.1.2.4","Aðrir verðbréfa- og fjárfestingarsjóðir",0,null,"Other mutual and investment funds (other than MMF)"]
["6.1.1.2.5","Önnur fjármálafyrirtæki",0,null,"Other financial intermediaries"]
["6.1.1.2.6","Önnur fjármálafyrirtæki í slitameðferð",0,null,"Other financial intermediaries in winding-up proceedings or composition of creditors negotiations"]
["6.1.1.2.7","Fjármálaleg hliðarstarfsemi",0,null,"Financial auxiliaries"]
["6.1.1.2.8","Innbyrðis fjármálastarfsemi",0,null,"Captive financial institutions and money lenders. "]
["6.1.1.2.9","Vátryggingarfélög",0,null,"Insurance companies"]
["6.1.1.2.10","Lífeyrissjóðir",0,null,"Pension funds"]
["6.1.1.3","Hið opinbera",{"$f":"+C656+C657","v":0},{"$f":"IF(ABS(C655=SUM(C656:C657)),\" \",\"Samtala passar ekki við undirliði.\")","v":" "},"General government"]
["6.1.1.3.1","Ríkissjóður",0,null,"Treasury and govt. institutions"]
["6.1.1.3.2","Sveitarfélög",0,null,"Municipalities"]
["6.1.1.4","Heimili","–",{"$f":"IF(C658=\"–\", \"\",IF(C658=\"-\",\"\",IF(C658<>0,\"Heimili gefa ekki út markaðsskuldabréf\",\"\")))","v":""},"Households"]
["6.1.1.5","Félagasamtök sem þjóna heimilum",0,null,"Non-profit institutions serving households"]
["6.1.1.6","Erlendir aðilar",0,null,"Non-residents"]
["6.1.2","Önnur markaðsskuldabréf og víxlar >1 ár",{"$f":"SUM(C662,C676,C687,C690,C691,C692)","v":0},{"$f":"IF(ABS(C661=SUM(C662,C676,C687,C691,C692)),\" \",\"Samtala passar ekki við undirliði.\")","v":" "},"Other marketable bonds  > 1 year"]
["6.1.2.1","Atvinnufyrirtæki",{"$f":"SUM(C663:C675)","v":0},{"$f":"IF(ABS(C662=SUM(C663:C675)),\" \",\"Samtala passar ekki við undirliði.\")","v":" "},"Non-financial companies"]
["6.1.2.1.1","Landbúnaður",0,null,"Agriculture"]
["6.1.2.1.2","Fiskveiðar",0,null,"Fisheries"]
["6.1.2.1.3a","Iðnaður, vinnsla landbúnaðarafurða",0,null,"Mining and manufacturing of which agricultural products"]
["6.1.2.1.3b","Iðnaður, vinnsla sjávarafurða",0,null,"Mining and manufacturing of which marine products"]
["6.1.2.1.3c","Iðnaður, annað",0,null,"Mining and manufacturing, other"]
["6.1.2.1.4","Veitur (orku- og vatnsveitur)",0,null,"Electricity, gas and water"]
["6.1.2.1.5","Byggingastarfsemi og mannvirkjagerð",0,null,"Construction"]
["6.1.2.1.6","Verslun",0,null,"Trade, etc."]
["6.1.2.1.7","Samgöngur og flutningar",0,null,"Transport and communications"]
["6.1.2.1.8a","Þjónusta, fasteignafélög",0,null,"Services of which real estate companies"]
["6.1.2.1.8b","Þjónusta, starfsemi höfuðstöðva",0,null,"Services of which head offices"]
["6.1.2.1.8c","Þjónusta, annað",0,null,"Services, other"]
["6.1.2.1.9","Óflokkað",0,null,"Other"]
["6.1.2.2","Fjármálageiri",{"$f":"+SUM(C677:C686)","v":0},{"$f":"IF(ABS(C676=SUM(C677:C686)),\" \",\"Samtala passar ekki við undirliði.\")","v":" "},"Financial companies"]
["6.1.2.2.1","Innlánsstofnanir",0,null,"Deposit money banks"]
["6.1.2.2.2","Innlánsstofnanir í slitameðferð",0,null,"Deposit money banks in winding-up proceedings or composition of creditors negotiations"]
["6.1.2.2.3","Peningamarkaðssjóðir",0,null,"Money market funds (MMF)"]
["6.1.2.2.4","Aðrir verðbréfa- og fjárfestingarsjóðir",0,null,"Other mutual and investment funds (other than MMF)"]
["6.1.2.2.5","Önnur fjármálafyrirtæki",0,null,"Other financial intermediaries"]
["6.1.2.2.6","Önnur fjármálafyrirtæki í slitameðferð",0,null,"Other financial intermediaries in winding-up proceedings or composition of creditors negotiations"]
["6.1.2.2.7","Fjármálaleg hliðarstarfsemi",0,null,"Financial auxiliaries"]
["6.1.2.2.8","Innbyrðis fjármálastarfsemi",0,null,"Captive financial institutions and money lenders. "]
["6.1.2.2.9","Vátryggingarfélög",0,null,"Insurance companies"]
["6.1.2.2.10","Lífeyrissjóðir",0,null,"Pension funds"]
["6.1.2.3","Hið opinbera",{"$f":"+C688+C689","v":0},{"$f":"IF(ABS(C687=SUM(C688:C689)),\" \",\"Samtala passar ekki við undirliði.\")","v":" "},"General government"]
["6.1.2.3.1","Ríkissjóður",0,null,"Treasury and govt. institutions"]
["6.1.2.3.2","Sveitarfélög",0,null,"Municipalities"]
["6.1.2.4","Heimili","–",{"$f":"IF(C690=\"–\", \"\",IF(C690=\"-\",\"\",IF(C690<>0,\"Heimili gefa ekki út markaðsskuldabréf\",\"\")))","v":""},"Households"]
["6.1.2.5","Félagasamtök sem þjóna heimilum",0,null,"Non-profit institutions serving households"]
["6.1.2.6","Erlendir aðilar",0,null,"Non-residents"]
["6.1.3","Önnur markaðsskuldabréf og víxlar ≤ 1 ár",{"$f":"SUM(C694,C708,C719,C722,C723,C724)","v":0},{"$f":"IF(ABS(C693=SUM(C694,C708,C719,C723,C724)),\" \",\"Samtala passar ekki við undirliði.\")","v":" "},"Other marketable bonds  ≤ 1 year"]
["6.1.3.1","Atvinnufyrirtæki",{"$f":"SUM(C695:C707)","v":0},{"$f":"IF(ABS(C694=SUM(C695:C707)),\" \",\"Samtala passar ekki við undirliði.\")","v":" "},"Non-financial companies"]
["6.1.3.1.1","Landbúnaður",0,null,"Agriculture"]
["6.1.3.1.2","Fiskveiðar",0,null,"Fisheries"]
["6.1.3.1.3a","Iðnaður, vinnsla landbúnaðarafurða",0,null,"Mining and manufacturing of which agricultural products"]
["6.1.3.1.3b","Iðnaður, vinnsla sjávarafurða",0,null,"Mining and manufacturing of which marine products"]
["6.1.3.1.3c","Iðnaður, annað",0,null,"Mining and manufacturing, other"]
["6.1.3.1.4","Veitur (orku- og vatnsveitur)",0,null,"Electricity, gas and water"]
["6.1.3.1.5","Byggingastarfsemi og mannvirkjagerð",0,null,"Construction"]
["6.1.3.1.6","Verslun",0,null,"Trade, etc."]
["6.1.3.1.7","Samgöngur og flutningar",0,null,"Transport and communications"]
["6.1.3.1.8a","Þjónusta, fasteignafélög",0,null,"Services of which real estate companies"]
["6.1.3.1.8b","Þjónusta, starfsemi höfuðstöðva",0,null,"Services of which head offices"]
["6.1.3.1.8c","Þjónusta, annað",0,null,"Services, other"]
["6.1.3.1.9","Óflokkað",0,null,"Other"]
["6.1.3.2","Fjármálageiri",{"$f":"+SUM(C709:C718)","v":0},{"$f":"IF(ABS(C708=SUM(C709:C718)),\" \",\"Samtala passar ekki við undirliði.\")","v":" "},"Financial companies"]
["6.1.3.2.1","Innlánsstofnanir",0,null,"Deposit money banks"]
["6.1.3.2.2","Innlánsstofnanir í slitameðferð",0,null,"Deposit money banks in winding-up proceedings or composition of creditors negotiations"]
["6.1.3.2.3","Peningamarkaðssjóðir",0,null,"Money market funds (MMF)"]
["6.1.3.2.4","Aðrir verðbréfa- og fjárfestingarsjóðir",0,null,"Other mutual and investment funds (other than MMF)"]
["6.1.3.2.5","Önnur fjármálafyrirtæki",0,null,"Other financial intermediaries"]
["6.1.3.2.6","Önnur fjármálafyrirtæki í slitameðferð",0,null,"Other financial intermediaries in winding-up proceedings or composition of creditors negotiations"]
["6.1.3.2.7","Fjármálaleg hliðarstarfsemi",0,null,"Financial auxiliaries"]
["6.1.3.2.8","Innbyrðis fjármálastarfsemi",0,null,"Captive financial institutions and money lenders. "]
["6.1.3.2.9","Vátryggingarfélög",0,null,"Insurance companies"]
["6.1.3.2.10","Lífeyrissjóðir",0,null,"Pension funds"]
["6.1.3.3","Hið opinbera",{"$f":"+C720+C721","v":0},{"$f":"IF(ABS(C719=SUM(C720:C721)),\" \",\"Samtala passar ekki við undirliði.\")","v":" "},"General government"]
["6.1.3.3.1","Ríkissjóður",0,null,"Treasury and govt. institutions"]
["6.1.3.3.2","Sveitarfélög",0,null,"Municipalities"]
["6.1.3.4","Heimili","–",{"$f":"IF(C722=\"–\", \"\",IF(C722=\"-\",\"\",IF(C722<>0,\"Heimili gefa ekki út markaðsskuldabréf\",\"\")))","v":""},"Households"]
["6.1.3.5","Félagasamtök sem þjóna heimilum",0,null,"Non-profit institutions serving households"]
["6.1.3.6","Erlendir aðilar",0,null,"Non-residents"]
["7","Afleiðusamningar vegna áhættuvarna (= 7.1 + 7.2 + 7.3 + 7.4 + 7.5)",{"$f":"C726+C727+C728+C729+C730","v":0},{"$f":"IF(ABS(C725=SUM(C726:C730)),\" \",\"Samtala passar ekki við undirliði.\")","v":" "},"Derivatives - Hedge accounting"]
["7.1","Gangvirðisvarnir",0,null,"Fair value hedges"]
["7.2","Sjóðstreymisvarnir",0,null,"Cash flow hedges"]
["7.3","Gengis(áhættu)varnir",0,null,"Hedges of a net investment in a foreign operation"]
["7.4 ","Vaxtastigsvarnir",0,null,"Fair value hedge of interest rate risk"]
["7.5","Vaxtastigsvarnir vegna sjóðstreymis",0,null,"Cash flow hedge interest rate risk"]
["8","Hlutir í hlutdeildarfélögum, dótturfélögum og samrekstrarfélögum. Eignahlutur ≥ 10%",{"$f":"+SUM(C732:C735)","v":0},{"$f":"IF(ABS(C731=SUM(C732:C735)),\" \",\"Samtala passar ekki við undirliði.\")","v":" "},"Investments in associates, subsidiaries and joint ventures (accounted for using the equity method – including goodwill) Share ≥ 10%"]
["8.1","Hlutir í innlendum hlutdeildarfyrirtækjum (10%-50%)",0,null,"        Shares in domestic associates"]
["8.2","Hlutir erlendum  í hlutdeildarfyrirtækjum (10%-50%)",0,null,"        Shares in foreign associates"]
["8.3","Hlutir í innlendum tengdum fyrirtækjum > 50%",0,null,"        Shares in domestic subsidiaries"]
["8.4","Hlutir í erlendum tengdum fyrirtækjum > 50%",0,null,"        Shares in foreign subsidiaries"]
["9","Aðrar eignir (=9.1 + 9.2 + 9.3 + 9.4 + 9.5 + 9.9)",{"$f":"C737+C740+C743+C746+C747+C751","v":0},{"$f":"IF(ABS(C736=SUM(C737+C740+C743+C746+C747+C751)),\" \",\"Samtala passar ekki við undirliði.\")","v":" "},"Other assets"]
["9.1","Skatteign",{"$f":"SUM(C738:C739)","v":0},{"$f":"IF(ABS(C737=SUM(C738:C739)),\" \",\"Samtala passar ekki við undirliði.\")","v":" "},"Tax assets"]
["9.1.1","Veltuskattseignir",0,null,"Current tax assets"]
["9.1.2","Frestaðar skatteignir",0,null,"Deferred tax assets"]
["9.2","Rekstrarfjármunir",{"$f":"SUM(C741:C742)","v":0},{"$f":"IF(ABS(C740=SUM(C741:C742)),\" \",\"Samtala passar ekki við undirliði.\")","v":" "},"Tangible assets"]
["9.2.1","Fastafjármunir",0,null,"Property, plant and equipment"]
["9.2.2","Fjárfestingareignir",0,null,"Investment property"]
["9.3","Óefnislegar eignir",{"$f":"SUM(C744:C745)","v":0},{"$f":"IF(ABS(C743=SUM(C744:C745)),\" \",\"Samtala passar ekki við undirliði.\")","v":" "},"Intangible assets"]
["9.3.1","Viðskiptavild",0,null,"Goodwill"]
["9.3.2","Aðrar óefnislegar eignir",0,null,"Other intangible assets"]
["9.4","Fastafjármunir til sölu og fullnustueignir",0,null,"Non-current assets and disposal groups classified as held for sale"]
["9.5","Aðrar eignir ót.a.",{"$f":"SUM(C748:C750)","v":0},{"$f":"IF(ABS(C747=SUM(C748:C750)),\" \",\"Samtala passar ekki við undirliði.\")","v":" "},"Other assets"]
["9.5.1","Uppgjörsliðir ",0,null,"Balancing items"]
["9.5.2","Viðskiptakröfur á innlenda aðila",0,null,"Domestic trade credits"]
["9.5.9","Ýmsir eignaliðir ",0,null,"Miscellaneous assets "]
["9.9","Aðrar erlendar eignir",{"$f":"+SUM(C752:C753)","v":0},{"$f":"IF(ABS(C751=SUM(C752:C753)),\" \",\"Samtala passar ekki við undirliði.\")","v":" "},"Other foreign assets"]
["9.9.1","Viðskiptakröfur á erlenda aðila",0,null,"Foreign trade credits"]
["9.9.2","Aðrar erlendar eignir ót.a.",0,null,"Other foreign assets n.i.e."]
[null,"Eignir samtals",{"$f":"C17+C34+C165+C295+C425+C627+C725+C731+C736","v":0},{"$f":"IF(ABS(EIGNIR!C754-SKULDIR!C203-'Eigið fé'!C33)>10,\"Eignir og skuldir stemma ekki\",\" \")","v":" "},"Total assets"]
[]
[]
["98","Sundurliðun innlendra eigna skv. rauneftirstöðvatíma",{"$f":"+C754-C767","v":0},{"$f":"IF(ABS(C757-SUM(C758:C765))<0.5,\" \",\"Samtala passar ekki við undirliði.\")","v":" "},"Breakdown of domestic assets by time to maturity (claims on domestic parties)"]
["98.1","Eignir án eftirstöðvatíma",0,null,"Assets without maturity"]
["98.2","Gjaldkræfar kröfur",0,null,"Claims due"]
["98.3","Allt að 3 mánuðir",0,null,"Up to 3 months"]
["98.4","Yfir 3 mánuðir og allt að ári",0,null,"More than 3 months but less than 1 year"]
["98.5","Yfir 1 ár og allt að 2 árum",0,null,"More than 1 year but less than 2 years"]
["98.6","Yfir 2 ár og allt að 3 árum",0,null,"More than 2 years but less than 3 years"]
["98.7","Yfir 3 ár og allt að 5 árum",0,null,"More than 3 years but less than 5 years"]
["98.8","Yfir 5 ár",0,null,"Over 5 years"]
[]
["99","Sundurliðun erlendra eigna skv. rauneftirstöðvatíma",{"$f":"+C19+C67+C100+C132+C164+C197+C230+C262+C294+C327+C360+C392+C428+C424+C462+C494+C526+C558+C590+C622-C626+C660+C692+C724+C733+C735+C751+'Sundurliðun Afleiður - eignir'!E24+'Sundurliðun Afleiður - eignir'!E50+'Sundurliðun Afleiður - eignir'!E76","v":0},{"$f":"IF(ABS(C767-SUM(C768:C775))<0.5,\" \",\"Samtala passar ekki við undirliði.\")","v":" "},"Breakdown of foreign assets by time to maturity (claims on foreign parties)"]
["99.1","Eignir án eftirstöðvatíma",0,null,"Assets without maturity"]
["99.2","Gjaldkræfar kröfur",0,null,"Claims due"]
["99.3","Allt að 3 mánuðir",0,null,"Up to 3 months"]
["99.4","Yfir 3 mánuðir og allt að ári",0,null,"More than 3 months but less than 1 year"]
["99.5","Yfir 1 ár og allt að 2 árum",0,null,"More than 1 year but less than 2 years"]
["99.6","Yfir 2 ár og allt að 3 árum",0,null,"More than 2 years but less than 3 years"]
["99.7","Yfir 3 ár og allt að 5 árum",0,null,"More than 3 years but less than 5 years"]
["99.8","Yfir 5 ár",0,null,"Over 5 years"]
[]
[]
[null,"Villupróf: Erlendar eignir og landaskipting  erlendra eigna",{"$f":"+C767-Lönd!AB5","v":0}]

{"sheet":"SKULDIR","index":2,"n_rows":234,"n_cols":5,"rows_kept":234,"cut":false,"hidden":false,"merged":[[0,0,0,2]]}
["Efnahagsyfirlit innlánsstofnana til Seðlabanka Íslands"]
[null,{"$f":"EIGNIR!C5","v":0}]
[null,"                                            Dagsetning:",{"$f":"EIGNIR!C8","v":"2015-09-30"}]
[]
[]
[]
[]
["Efnahagsreikningur móðurfélags",null,null,"Villupróf og athugasemdir","Balance sheet "]
["Skuldir",null,{"$f":"EIGNIR!C15","v":"Fjárhæð í þús.kr"},null,"Liabilities"]
[]
[100,"Skuldir við Seðlabanka",{"$f":"SUM(C12:C15)","v":0},{"$f":"IF(ABS(C11=SUM(C12:C15)),\" \",\"Samtala passar ekki við undirliði.\")","v":" "},"Central Bank facilities"]
["100.1","Lántökur hjá Seðlabanka gegn veði",0,null,"Central collateral loans"]
["100.2","Daglán hjá Seðlabanka",0,null,"Overnight loans"]
["100.3","Afleiðusamningar við Seðlabanka",0,null,"Derivatives with Central Bank"]
["100.4","Aðrar skuldir við Seðlabanka",0,null,"Other debt "]
[101,"Veltufjárskuldir ",{"$f":"C17+C18+C21+C22","v":0},{"$f":"IF(ABS(C16=SUM(C17+C18+C21+C22)),\" \",\"Samtala passar ekki við undirliði.\")","v":" "},"Financial liabilities held for trading"]
["101.1","Afleiðusamningar í viðskiptum",0,null,"Derivatives held for trading "]
["101.2","Skortstöður",{"$f":"+C19+C20","v":0},{"$f":"IF(ABS(C18=SUM(C19:C20)),\" \",\"Samtala passar ekki við undirliði.\")","v":" "},"Short positions "]
["101.2.1","Skorstöður í skuldabréfum",0,null,"Debt short positions"]
["101.2.2","Skortstöður í hlutabréfum",0,null,"Equity short positions"]
["101.3","Skuldaviðurkenningar (þ.á m. skuldabréf sem eru andlag í lánum gegn veði)",0,null,"Debt certificates (including bonds intended for repurchase in short term)"]
["101.9","Aðrar veltufjárskuldbindingar",0,null,"Other financial liabilities held for trading"]
[102,"Fjárskuldbindingar á gangvirði færðar í rekstrarreikning ",{"$f":"C24+C27+C32","v":0},{"$f":"IF(ABS(C23=SUM(C24+C27+C32)),\" \",\"Samtala passar ekki við undirliði.\")","v":" "},"Financial liabilities designated at fair value through profit or loss"]
["102.1","Verðbréfaútgáfa",{"$f":"+C25+C26","v":0},{"$f":"IF(ABS(C24=SUM(C25:C26)),\" \",\"Samtala passar ekki við undirliði.\")","v":" "},"Debt certificates (including bonds)"]
["102.1.1","Innlend verðbréfaútgáfa ",0,null,"Domestic bond issues"]
["102.1.2","Erlend verðbréfaútgáfa",0,null,"Foreign bond issues"]
["102.2","Víkjandi lán ",{"$f":"+SUM(C28:C31)","v":0},{"$f":"IF(ABS(C27=SUM(C28:C31)),\" \",\"Samtala passar ekki við undirliði.\")","v":" "},"Subordinated loans "]
["102.2.1","Innlend víkjandi lán  ≤ 1 ár",0,null,"Domestic subordinated loans ≤ 1 year"]
["102.2.2","Innlend víkjandi lán > 1 ár",0,null,"Domestic subordinated loans > 1 year"]
["102.2.3","Erlend víkjandi lán  ≤ 1 ár",0,null,"Foreign subordinated loans ≤ 1 year"]
["102.2.4","Erlend víkjandi lán > 1ár",0,null,"Foreign subordinated loans > 1 year"]
["102.3","Beinar lántökur  ",{"$f":"SUM(C33:C35)","v":0},{"$f":"IF(ABS(C32=SUM(C33:C35)),\" \",\"Samtala passar ekki við undirliði.\")","v":" "},"Direct borrowing "]
["102.3.1","Verðtryggð lán",0,null,"Indexed bond issues"]
["102.3.2","Önnur lán ≤ 1 ár",0,null,"Other bond issues ≤ 1 year"]
["102.3.3","Önnur lán > 1 ár",0,null,"Other bond issues > 1  year"]
[103,"Fjárskuldbindingar á uppreiknuðu verði ",{"$f":"+C37+C168+C171+C176","v":0},{"$f":"IF(ABS(C36=SUM(C37+C168+C171+C176)),\" \",\"Samtala passar ekki við undirliði.\")","v":" "},"Financial liabilities measured at amortised cost"]
["103.1","Innlán",{"$f":"+C38+C70+C102+C134++C135+C136","v":0},{"$f":"IF(ABS(C37=SUM(C38+C70+C102+C134+C135+C136)),\" \",\"Samtala passar ekki við undirliði.\")","v":" "},"Deposits from credit institutions"]
["103.1.1","Veltiinnlán",{"$f":"+C39+C53+C64+C67+C68+C69","v":0},{"$f":"IF(ABS(C38=SUM(C39+C53+C64+C67+C68+C69)),\" \",\"Samtala passar ekki við undirliði.\")","v":" "},"Current accounts in ISK"]
["103.1.1.1","Atvinnufyrirtæki",{"$f":"SUM(C40:C52)","v":0},{"$f":"IF(ABS(C39=SUM(C40:C52)),\" \",\"Samtala passar ekki við undirliði.\")","v":" "},"Non-financial companies"]
["103.1.1.1.1","Landbúnaður",0,null,"Agriculture"]
["103.1.1.1.2","Fiskveiðar",0,null,"Fisheries"]
["103.1.1.1.3a","Iðnaður, vinnsla landbúnaðarafurða",0,null,"Mining and manufacturing of which agricultural products"]
["103.1.1.1.3b","Iðnaður, vinnsla sjávarafurða",0,null,"Mining and manufacturing of which marine products"]
["103.1.1.1.3c","Iðnaður, annað",0,null,"Mining and manufacturing, other"]
["103.1.1.1.4","Veitur (orku- og vatnsveitur)",0,null,"Electricity, gas and water"]
["103.1.1.1.5","Byggingastarfsemi og mannvirkjagerð",0,null,"Construction"]
["103.1.1.1.6","Verslun",0,null,"Trade, etc."]
["103.1.1.1.7","Samgöngur og flutningar",0,null,"Transport and communications"]
["103.1.1.1.8a","Þjónusta, fasteignafélög",0,null,"Services of which real estate companies"]
["103.1.1.1.8b","Þjónusta, starfsemi höfuðstöðva",0,null,"Services of which head offices"]
["103.1.1.1.8c","Þjónusta, annað",0,null,"Services, other"]
["103.1.1.1.9","Óflokkað",0,null,"Other"]
["103.1.1.2","Fjármálageiri",{"$f":"+SUM(C54:C63)","v":0},{"$f":"IF(ABS(C53=SUM(C54:C63)),\" \",\"Samtala passar ekki við undirliði.\")","v":" "},"Financial companies"]
["103.1.1.2.1","Innlánsstofnanir  ",0,null,"Deposit money banks"]
["103.1.1.2.2","Innlánsstofnanir í slitameðferð",0,null,"Deposit money banks in winding-up proceedings or composition of creditors negotiations"]
["103.1.1.2.3","Peningamarkaðssjóðir",0,null,"Money market funds (MMF)"]
["103.1.1.2.4","Aðrir verðbréfa- og fjárfestingarsjóðir",0,null,"Other mutual and investment funds (other than MMF)"]
["103.1.1.2.5","Önnur fjármálafyrirtæki",0,null,"Other financial intermediaries"]
["103.1.1.2.6","Önnur fjármálafyrirtæki í slitameðferð",0,null,"Other financial intermediaries in winding-up proceedings or composition of creditors negotiations"]
["103.1.1.2.7","Fjármálaleg hliðarstarfsemi",0,null,"Financial auxiliaries"]
["103.1.1.2.8","Innbyrðis fjármálastarfsemi",0,null,"Captive financial institutions and money lenders. "]
["103.1.1.2.9","Vátryggingarfélög",0,null,"Insurance companies"]
["103.1.1.2.10","Lífeyrissjóðir",0,null,"Pension funds"]
["103.1.1.3","Hið opinbera",{"$f":"+C65+C66","v":0},{"$f":"IF(ABS(C64=SUM(C65:C66)),\" \",\"Samtala passar ekki við undirliði.\")","v":" "},"General government"]
["103.1.1.3.1","Ríkissjóður",0,null,"Treasury and govt. institutions"]
["103.1.1.3.2","Sveitarfélög",0,null,"Municipalities"]
["103.1.1.4","Heimili",0,null,"Households"]
["103.1.1.5","Félagasamtök sem þjóna heimilum",0,null,"Non-profit institutions serving households"]
["103.1.1.6","Erlendir aðilar",0,null,"Non-residents"]
["103.1.2","Óbundin innlán",{"$f":"+C71+C85+C96+C99+C100+C101","v":0},{"$f":"IF(ABS(C70=SUM(C71+C85+C96+C99+C100+C101)),\" \",\"Samtala passar ekki við undirliði.\")","v":" "},"Sight deposits"]
["103.1.2.1","Atvinnufyrirtæki",{"$f":"SUM(C72:C84)","v":0},{"$f":"IF(ABS(C71=SUM(C72:C84)),\" \",\"Samtala passar ekki við undirliði.\")","v":" "},"Non-financial companies"]
["103.1.2.1.1","Landbúnaður",0,null,"Agriculture"]
["103.1.2.1.2","Fiskveiðar",0,null,"Fisheries"]
["103.1.2.1.3a","Iðnaður, vinnsla landbúnaðarafurða",0,null,"Mining and manufacturing of which agricultural products"]
["103.1.2.1.3b","Iðnaður, vinnsla sjávarafurða",0,null,"Mining and manufacturing of which marine products"]
["103.1.2.1.3c","Iðnaður, annað",0,null,"Mining and manufacturing, other"]
["103.1.2.1.4","Veitur (orku- og vatnsveitur)",0,null,"Electricity, gas and water"]
["103.1.2.1.5","Byggingastarfsemi og mannvirkjagerð",0,null,"Construction"]
["103.1.2.1.6","Verslun",0,null,"Trade, etc."]
["103.1.2.1.7","Samgöngur og flutningar",0,null,"Transport and communications"]
["103.1.2.1.8a","Þjónusta, fasteignafélög",0,null,"Services of which real estate companies"]
["103.1.2.1.8b","Þjónusta, starfsemi höfuðstöðva",0,null,"Services of which head offices"]
["103.1.2.1.8c","Þjónusta, annað",0,null,"Services, other"]
["103.1.2.1.9","Óflokkað",0,null,"Other"]
["103.1.2.2","Fjármálageiri",{"$f":"+SUM(C86:C95)","v":0},{"$f":"IF(ABS(C85=SUM(C86:C95)),\" \",\"Samtala passar ekki við undirliði.\")","v":" "},"Financial companies"]
["103.1.2.2.1","Innlánsstofnanir  ",0,null,"Deposit money banks"]
["103.1.2.2.2","Innlánsstofnanir í slitameðferð",0,null,"Deposit money banks in winding-up proceedings or composition of creditors negotiations"]
["103.1.2.2.3","Peningamarkaðssjóðir",0,null,"Money market funds (MMF)"]
["103.1.2.2.4","Aðrir verðbréfa- og fjárfestingarsjóðir",0,null,"Other mutual and investment funds (other than MMF)"]
["103.1.2.2.5","Önnur fjármálafyrirtæki",0,null,"Other financial intermediaries"]
["103.1.2.2.6","Önnur fjármálafyrirtæki í slitameðferð",0,null,"Other financial intermediaries in winding-up proceedings or composition of creditors negotiations"]
["103.1.2.2.7","Fjármálaleg hliðarstarfsemi",0,null,"Financial auxiliaries"]
["103.1.2.2.8","Innbyrðis fjármálastarfsemi",0,null,"Captive financial institutions and money lenders. "]
["103.1.2.2.9","Vátryggingarfélög",0,null,"Insurance companies"]
["103.1.2.2.10","Lífeyrissjóðir",0,null,"Pension funds"]
["103.1.2.3","Hið opinbera",{"$f":"+C97+C98","v":0},{"$f":"IF(ABS(C96=SUM(C97:C98)),\" \",\"Samtala passar ekki við undirliði.\")","v":" "},"General government"]
["103.1.2.3.1","Ríkissjóður",0,null,"Treasury and govt. institutions"]
["103.1.2.3.2","Sveitarfélög",0,null,"Municipalities"]
["103.1.2.4","Heimili",0,null,"Households"]
["103.1.2.5","Félagasamtök sem þjóna heimilum",0,null,"Non-profit institutions serving households"]
["103.1.2.6","Erlendir aðilar",0,null,"Non-residents"]
["103.1.3","Verðtryggð innlán",{"$f":"+C103+C117+C128+C131+C132+C133","v":0},{"$f":"IF(ABS(C102=SUM(C103+C117+C128+C131+C132+C133)),\" \",\"Samtala passar ekki við undirliði.\")","v":" "},"Indexed deposits"]
["103.1.3.1","Atvinnufyrirtæki",{"$f":"SUM(C104:C116)","v":0},{"$f":"IF(ABS(C103=SUM(C104:C116)),\" \",\"Samtala passar ekki við undirliði.\")","v":" "},"Non-financial companies"]
["103.1.3.1.1","Landbúnaður",0,null,"Agriculture"]
["103.1.3.1.2","Fiskveiðar",0,null,"Fisheries"]
["103.1.3.1.3a","Iðnaður, vinnsla landbúnaðarafurða",0,null,"Mining and manufacturing of which agricultural products"]
["103.1.3.1.3b","Iðnaður, vinnsla sjávarafurða",0,null,"Mining and manufacturing of which marine products"]
["103.1.3.1.3c","Iðnaður, annað",0,null,"Mining and manufacturing, other"]
["103.1.3.1.4","Veitur (orku- og vatnsveitur)",0,null,"Electricity, gas and water"]
["103.1.3.1.5","Byggingastarfsemi og mannvirkjagerð",0,null,"Construction"]
["103.1.3.1.6","Verslun",0,null,"Trade, etc."]
["103.1.3.1.7","Samgöngur og flutningar",0,null,"Transport and communications"]
["103.1.3.1.8a","Þjónusta, fasteignafélög",0,null,"Services of which real estate companies"]
["103.1.3.1.8b","Þjónusta, starfsemi höfuðstöðva",0,null,"Services of which head offices"]
["103.1.3.1.8c","Þjónusta, annað",0,null,"Services, other"]
["103.1.3.1.9","Óflokkað",0,null,"Other"]
["103.1.3.2","Fjármálageiri",{"$f":"+SUM(C118:C127)","v":0},{"$f":"IF(ABS(C117=SUM(C118:C127)),\" \",\"Samtala passar ekki við undirliði.\")","v":" "},"Financial companies"]
["103.1.3.2.1","Innlánsstofnanir  ",0,null,"Deposit money banks"]
["103.1.3.2.2","Innlánsstofnanir í slitameðferð",0,null,"Deposit money banks in winding-up proceedings or composition of creditors negotiations"]
["103.1.3.2.3","Peningamarkaðssjóðir",0,null,"Money market funds (MMF)"]
["103.1.3.2.4","Aðrir verðbréfa- og fjárfestingarsjóðir",0,null,"Other mutual and investment funds (other than MMF)"]
["103.1.3.2.5","Önnur fjármálafyrirtæki",0,null,"Other financial intermediaries"]
["103.1.3.2.6","Önnur fjármálafyrirtæki í slitameðferð",0,null,"Other financial intermediaries in winding-up proceedings or composition of creditors negotiations"]
["103.1.3.2.7","Fjármálaleg hliðarstarfsemi",0,null,"Financial auxiliaries"]
["103.1.3.2.8","Innbyrðis fjármálastarfsemi",0,null,"Captive financial institutions and money lenders. "]
["103.1.3.2.9","Vátryggingarfélög",0,null,"Insurance companies"]
["103.1.3.2.10","Lífeyrissjóðir",0,null,"Pension funds"]
["103.1.3.3","Hið opinbera",{"$f":"+C129+C130","v":0},{"$f":"IF(ABS(C128=SUM(C129:C130)),\" \",\"Samtala passar ekki við undirliði.\")","v":" "},"General government"]
["103.1.3.3.1","Ríkissjóður",0,null,"Treasury and govt. institutions"]
["103.1.3.3.2","Sveitarfélög",0,null,"Municipalities"]
["103.1.3.4","Heimili",0,null,"Households"]
["103.1.3.5","Félagasamtök sem þjóna heimilum",0,null,"Non-profit institutions serving households"]
["103.1.3.6","Erlendir aðilar",0,null,"Non-residents"]
["103.1.4","Orlofsreikningar",0,null,"Indexed holiday pay accounts"]
["103.1.5","Innlán v/viðbótarlífeyrissparnaðar",0,null,"Supplementary pension deposits"]
["103.1.6","Önnur bundin innlán",{"$f":"+C137+C151+C162+C165+C166+C167","v":0},{"$f":"IF(ABS(C136=SUM(C137+C151+C162+C165+C166+C167)),\" \",\"Samtala passar ekki við undirliði.\")","v":" "},"Other time deposits"]
["103.1.6.1","Atvinnufyrirtæki",{"$f":"SUM(C138:C150)","v":0},{"$f":"IF(ABS(C137=SUM(C138:C150)),\" \",\"Samtala passar ekki við undirliði.\")","v":" "},"Non-financial companies"]
["103.1.6.1.1","Landbúnaður",0,null,"Agriculture"]
["103.1.6.1.2","Fiskveiðar",0,null,"Fisheries"]
["103.1.6.1.3a","Iðnaður, vinnsla landbúnaðarafurða",0,null,"Mining and manufacturing of which agricultural products"]
["103.1.6.1.3b","Iðnaður, vinnsla sjávarafurða",0,null,"Mining and manufacturing of which marine products"]
["103.1.6.1.3c","Iðnaður, annað",0,null,"Mining and manufacturing, other"]
["103.1.6.1.4","Veitur (orku- og vatnsveitur)",0,null,"Electricity, gas and water"]
["103.1.6.1.5","Byggingastarfsemi og mannvirkjagerð",0,null,"Construction"]
["103.1.6.1.6","Verslun",0,null,"Trade, etc."]
["103.1.6.1.7","Samgöngur og flutningar",0,null,"Transport and communications"]
["103.1.6.1.8a","Þjónusta, fasteignafélög",0,null,"Services of which real estate companies"]
["103.1.6.1.8b","Þjónusta, starfsemi höfuðstöðva",0,null,"Services of which head offices"]
["103.1.6.1.8c","Þjónusta, annað",0,null,"Services, other"]
["103.1.6.1.9","Óflokkað",0,null,"Other"]
["103.1.6.2","Fjármálageiri",{"$f":"+SUM(C152:C161)","v":0},{"$f":"IF(ABS(C151=SUM(C152:C161)),\" \",\"Samtala passar ekki við undirliði.\")","v":" "},"Financial companies"]
["103.1.6.2.1","Innlánsstofnanir  ",0,null,"Deposit money banks"]
["103.1.6.2.2","Innlánsstofnanir í slitameðferð",0,null,"Deposit money banks in winding-up proceedings or composition of creditors negotiations"]
["103.1.6.2.3","Peningamarkaðssjóðir",0,null,"Money market funds (MMF)"]
["103.1.6.2.4","Aðrir verðbréfa- og fjárfestingarsjóðir",0,null,"Other mutual and investment funds (other than MMF)"]
["103.1.6.2.5","Önnur fjármálafyrirtæki",0,null,"Other financial intermediaries"]
["103.1.6.2.6","Önnur fjármálafyrirtæki í slitameðferð",0,null,"Other financial intermediaries in winding-up proceedings or composition of creditors negotiations"]
["103.1.6.2.7","Fjármálaleg hliðarstarfsemi",0,null,"Financial auxiliaries"]
["103.1.6.2.8","Innbyrðis fjármálastarfsemi",0,null,"Captive financial institutions and money lenders. "]
["103.1.6.2.9","Vátryggingarfélög",0,null,"Insurance companies"]
["103.1.6.2.10","Lífeyrissjóðir",0,null,"Pension funds"]
["103.1.6.3","Hið opinbera",{"$f":"+C163+C164","v":0},{"$f":"IF(ABS(C162=SUM(C163:C164)),\" \",\"Samtala passar ekki við undirliði.\")","v":" "},"General government"]
["103.1.6.3.1","Ríkissjóður",0,null,"Treasury and govt. institutions"]
["103.1.6.3.2","Sveitarfélög",0,null,"Municipalities"]
["103.1.6.4","Heimili",0,null,"Households"]
["103.1.6.5","Félagasamtök sem þjóna heimilum",0,null,"Non-profit institutions serving households"]
["103.1.6.6","Erlendir aðilar",0,null,"Non-residents"]
["103.2","Verðbréfaútgáfa ",{"$f":"+SUM(C169:C170)","v":0},{"$f":"IF(ABS(C168=SUM(C169:C170)),\" \",\"Samtala passar ekki við undirliði.\")","v":" "},"Bonds issues"]
["103.2.1","Innlend verðbréfaútgáfa ",0,null,"Domestic bond issues "]
["103.2.2","Erlend verðbréfaútgáfa",0,null,"Foreign bond issues"]
["103.3","Víkjandi lán ",{"$f":"+SUM(C172:C175)","v":0},{"$f":"IF(ABS(C171=SUM(C172:C175)),\" \",\"Samtala passar ekki við undirliði.\")","v":" "},"Subordinated loans"]
["103.3.1","Innlend víkjandi lán  ≤ 1 ár",0,null,"Domestic subordinated loans ≤ 1 year"]
["103.3.2","Innlend víkjandi lán > 1 ár",0,null,"Domestic subordinated loans > 1 year"]
["103.3.3","Erlend víkjandi lán ≤ 1 ár",0,null,"Foreign subordinated loans ≤ 1 year"]
["103.3.4","Erlend víkjandi lán > 1ár",0,null,"Foreign subordinated loans > 1 year"]
["103.4","Beinar lántökur á uppreiknuðu verði",{"$f":"+SUM(C177:C179)","v":0},{"$f":"IF(ABS(C176=SUM(C177:C179)),\" \",\"Samtala passar ekki við undirliði.\")","v":" "},"Other financial liabilities measured at amortised cost"]
["103.4.1","Verðtryggð lán",0,null,"Indexed loans"]
["103.4.2","Önnur lán ≤ 1 ár",0,null,"Other loans ≤ 1 year"]
["103.4.3","Önnur lán > 1 ár",0,null,"Other loans > 1 year"]
[104,"Fjárhagslegar skuldbindingar tengdar yfirfærðum fjárhagslegum eignum",0,null,"Financial liabilities associated with transferred financial assets"]
[105,"Afleiðusamningar vegna áhættuvarna ",{"$f":"C182+C183+C184+C185+C186","v":0},{"$f":"IF(ABS(C181=SUM(C182:C186)),\" \",\"Samtala passar ekki við undirliði.\")","v":" "},"Derivatives – Hedge accounting"]
["105.1","Gangvirðisvarnir",0,null,"Fair value hedges"]
["105.2","Sjóðflæðisvarnir ",0,null,"Cash flow hedges"]
["105.3","Gengis(áhættu)varnir",0,null,"Hedges of a net investment in a foreign operation"]
["105.4 ","Vaxtastigsvarnir ",0,null,"Fair value hedge of interest rate risk"]
["105.5","Vaxtastigsvarnir vegna sjóðstreymis ",0,null,"Cash flow hedge interest rate risk"]
["106","Aðrar skuldir",{"$f":"C188+C192+C195+C200","v":0},{"$f":"IF(ABS(C187=SUM(C188+C192+C195+C200)),\" \",\"Samtala passar ekki við undirliði.\")","v":" "},"Other debt"]
["106.1","Reiknaðar skuldbindingar",{"$f":"SUM(C189:C191)","v":0},{"$f":"IF(ABS(C188=SUM(C189:C191)),\" \",\"Samtala passar ekki við undirliði.\")","v":" "},"   Calculated commitments"]
["106.1.1","Lífeyrisskuldbindingar",0,null,"Pensions and other post-retirement benefit obligations"]
["106.1.2","Skuldaviðurkenningar og ábyrgðir",0,null,"Promissory notes and guarantees"]
["106.1.3","Aðrar reiknaðar skuldbindingar ",0,null,"Other calculated commitments"]
["106.2","Skattskuldir",{"$f":"SUM(C193:C194)","v":0},{"$f":"IF(ABS(C192=SUM(C193:C194)),\" \",\"Samtala passar ekki við undirliði.\")","v":" "},"    Tax liabilities "]
["106.2.1","Skatta skuldir þessa árs",0,null,"Current tax liabilities"]
["106.2.2","Frestaðar skattskuldir",0,null,"Deferred tax liabilities"]
["106.3","Annað",{"$f":"SUM(C196:C199)","v":0},{"$f":"IF(ABS(C195=SUM(C196:C199)),\" \",\"Samtala passar ekki við undirliði.\")","v":" "},"    Other"]
["106.3.1","Uppgjörsliðir",0,null,"Balancing items"]
["106.3.2","Endurkræft hlutafé (t.d. hlutir í samvinnufélögum)",0,null,"Share capital repayable on demand (e.g. cooperative shares)"]
["106.3.3","Viðskiptaskuldir við innlenda aðila",0,null,"Domestic trade credits"]
["106.3.4","Aðrar innlendar skuldir ót.a.",0,null,"Other domestic debt n.i.e."]
["106.9","Aðrar erlendar skuldir",{"$f":"+SUM(C201:C202)","v":0},{"$f":"IF(ABS(C200=SUM(C201:C202)),\" \",\"Samtala passar ekki við undirliði.\")","v":" "},"     Other foreign debt"]
["106.9.1","Viðskiptaskuldir við erlenda aðila",0,null,"Foreign trade credits"]
["106.9.2","Aðrar erlendar skuldir ót.a.",0,null,"Other foreign debt n.i.e."]
[null,"Skuldir samtals",{"$f":"C11+C16+C23+C36+C180+C181+C187","v":0},{"$f":"IF(ABS(EIGNIR!C754-SKULDIR!C203-'Eigið fé'!C33)>10,\"Eignir og skuldir stemma ekki\",\" \")","v":" "},"Total liabilities"]
[]
[170,"Grunnur til útreiknings bindiskyldu",null,null,"Base for calculation of reserve requirement   (= 170.1 + 170.2)"]
["170.1","Verðbréfaútgáfa",{"$f":"SUM(C207:C210)","v":0},{"$f":"IF(ABS(C206-SUM(C24+C168))>10,\"Stemmir ekki við verðbréfaútgáfu í línum 24 og 168\",\" \")","v":" "},"    Securities issues"]
["170.1.1","Peningamarkaðsbréf",0,null,"                Money market funds"]
["170.1.2","Önnur verðbréfaútgáfa ≤ 2 ár",0,null,"                       Other securities issues ≤ 2 years"]
["170.1.3","Önnur verðbréfaútgáfa > 2 ár (0% grunnur)",0,null,"                       Other securities issues > 2 years (0% base)"]
["170.1.4","Verðbréfaútgáfa utan bindigrunns",0,null,"                       Securities issue not included in base for calculation of reserve requirement"]
["170.2","    Innlán innanlands ",{"$f":"SUM(C212:C213)","v":0},{"$f":"IF(C211<='Sundurliðun Innlán'!E5-'Sundurliðun Innlán'!E22-'Sundurliðun Innlán'!E39-'Sundurliðun Innlán'!E61-'Sundurliðun Innlán'!E78-'Sundurliðun Innlán'!E100-'Sundurliðun Innlán'!E117-'Sundurliðun Innlán'!E145-'Sundurliðun Innlán'!E162,\" \",\"Bindigrunnur getur ekki verið hærri en heildarinnlán að frádregnum innlánum innlánsstofnana\")","v":" "},"    Deposits"]
["170.2.1","                       Innlán ≤ 2 ár",0,null,"                       Deposits ≤ 2 years"]
["170.2.2","                       Innlán > 2 ár (0% grunnur)",0,null,"                       Deposits > 2 years (0% base)"]
[]
["198","Sundurliðun innlendra skulda skv. rauneftirstöðvatíma (skuldir við innlenda aðila) ",{"$f":"+C203-C224","v":0},{"$f":"IF(ABS(C215-SUM(C216:C222))<0.5,\" \",\"Samtala passar ekki við undirliði.\")","v":" "},"Breakdown of domestic debt by time to maturity (debt to residents) "]
["198.1","                       Gjaldkræfar skuldir",0,null,"                         Claims due"]
["198.2","                       Allt að 3 mánuðir",0,null,"                         Up to 3 months"]
["198.3","                       Yfir 3 mánuðir og allt að ári",0,null,"                         More than 3 months but less than 1 year"]
["198.4","                       Yfir 1 ár og allt að 2 árum",0,null,"                         More than 1 year but less than 2 years"]
["198.5","                       Yfir 2 ár og allt að 3 árum",0,null,"                         More than 2 years but less than 3 years"]
["198.6","                       Yfir 3 ár og allt að 5 árum",0,null,"                         More than 3 years but less than 5 years"]
["198.7","                       Yfir 5 ár",0,null,"                         Over 5 years"]
[]
["199","Sundurliðun erlendra skulda skv. rauneftirstöðvatíma (skuldir við erlenda aðila)",{"$f":"+C26+C30+C31+C69+C101+C133+C167+C170+C174+C175+C200+'Sundurliðun Lántaka'!E75+'Sundurliðun Lántaka'!E49+'Afleiður og skortstöð - skuldir'!E24+'Afleiður og skortstöð - skuldir'!E50+'Afleiður og skortstöð - skuldir'!E76+'Afleiður og skortstöð - skuldir'!E102+'Sundurliðun Innlán'!E128+'Sundurliðun Innlán'!E125","v":0},{"$f":"IF(ABS(C224-SUM(C225:C231))<0.5,\" \",\"Samtala passar ekki við undirliði.\")","v":" "},"Breakdown of foreign debt by time to maturity (debt to non-residents)  "]
["199.1","                       Gjaldkræfar skuldir og skuldir",0,null,"                         Claims due"]
["199.2","                       Allt að 3 mánuðir",0,null,"                         Up to 3 months"]
["199.3","                       Yfir 3 mánuðir og allt að ári",0,null,"                         More than 3 months but less than 1 year"]
["199.4","                       Yfir 1 ár og allt að 2 árum",0,null,"                         More than 1 year but less than 2 years"]
["199.5","                       Yfir 2 ár og allt að 3 árum",0,null,"                         More than 2 years but less than 3 years"]
["199.6","                       Yfir 3 ár og allt að 5 árum",0,null,"                         More than 3 years but less than 5 years"]
["199.7","                       Yfir 5 ár",0,null,"                         Over 5 years"]
[]
[]
[null,"Villupróf: Erlendar skuldir og landaskipting erlendra skulda",{"$f":"+C224-Lönd!AC5","v":0}]

{"sheet":"Eigið fé","index":3,"n_rows":33,"n_cols":5,"rows_kept":33,"cut":false,"hidden":false,"merged":[[0,0,0,2]]}
["Efnahagsyfirlit innlánsstofnana til Seðlabanka Íslands"]
[null,{"$f":"EIGNIR!C5","v":0}]
[null,"                                              Dagsetning:",{"$f":"EIGNIR!C8","v":"2015-09-30"}]
[]
[]
["                                   Sendist til: ","bankakerfi@sedlabanki.is","Lýsigögn"]
[null,null,"Leiðbeiningar"]
["Efnahagsreikningur móðurfélags",null,null,"Villupróf og athugasemdir","Balance sheet"]
["Eigið fé og hlutdeild minnihluta",null,null,null,"Equity and minority interest"]
[null,null,"Fjárhæð í þús.kr"]
[]
[200,"Útgefið hlutafé",{"$f":"SUM(C13:C14)","v":0},{"$f":"IF(ABS(C12=SUM(C13:C14)),\" \",\"Samtala passar ekki við undirliði.\")","v":" "},"Issued capital"]
["200.1","    Innborgað hlutafé",0,null,"     Paid in capital"]
["200.2","   Ógreitt innkallað hlutafé",0,null,"     Unpaid capital which has been called up"]
[201,"Yfirverð hlutafjár",0,null,"Share premium"]
[202,"Annað eigið fé",{"$f":"SUM(C17:C19)","v":0},{"$f":"IF(ABS(C16=SUM(C17:C19)),\" \",\"Samtala passar ekki við undirliði.\")","v":" "},"Other equity"]
["202.1","    Gengisbreytingar áhættuvarna",0,null,"     Equity component of financial instrument"]
["202.2","    Kaupréttir starfsmanna",0,null,"     Employee stock options"]
["202.3","    Aðrir eiginfjárliðir",0,null,"     Other equity instrument"]
[203,"Endurmatsbreytingar á ",{"$f":"SUM(C21:C28)","v":0},{"$f":"IF(ABS(C20=SUM(C21:C28)),\" \",\"Samtala passar ekki við undirliði.\")","v":" "},"Valuation differences"]
["203.1","    Varanlegum eignum",0,null,"     Tangible assets"]
["203.2","    Óefnislegum eignum",0,null,"      Intangible assets"]
["203.3","    Gengis(áhættu)vörnum  (virkum hluta)",0,null,"      Hedge of net insvestments in foreign operations (effective portion)"]
["203.4","    Umreikningsmismun",0,null,"      Foreign currrency translation"]
["203.5","    Sjóðstreymisvörnum  (virkum hluta)",0,null,"      Cash flow hedges"]
["203.6","    Söluhæfum eignum",0,null,"      Available for sale financial assets"]
["203.7","    Fullnustueignum",0,null,"      Non-current assets or disposal groups held for sale"]
["203.8","    Öðrum óvaranlegum eignum",0,null,"      Other items"]
[204,"Óráðstafað eigið fé",0,null,"Reserves "]
[205,"Eigin hlutabréf",0,null,"Treasury shares"]
[206,"Hagnaður/-tap ársins",0,null,"Income from current year"]
[207,"Arður innan árs",0,null,"Interim dividents"]
[null,"Eigið fé samtals",{"$f":"C12+C15+C16+C20+SUM(C29:C32)","v":0},{"$f":"IF(ABS(EIGNIR!C754-SKULDIR!C203-'Eigið fé'!C33)>10,\"Eignir og skuldir stemma ekki\",\" \")","v":" "},"Total equity"]

{"sheet":"Gengi","index":4,"n_rows":40,"n_cols":4,"rows_kept":40,"cut":false,"hidden":false,"merged":[[0,0,0,3]]}
["Gengi gjaldmiðla"]
[null,null,null,{"$f":"EIGNIR!C5","v":0}]
[]
["Gengi í lok síðasta viðskiptadags mánaðar:",null,{"$f":"EIGNIR!C8","v":"2015-09-30"}]
[]
[null,"Gjaldmiðill",null,"MIÐGENGI"]
[null,"Bandaríkjadalur","USD",0]
[null,"Sterlingspund","GBP",0]
[null,"Kanadadalur","CAD",0]
[null,"Dönsk króna","DKK",0]
[null,"Norsk króna","NOK",0]
[null,"Sænsk króna","SEK",0]
[null,"Svissneskur franki","CHF",0]
[null,"Japanskt jen","JPY",0]
[null,"Evra","EUR",0]
[null,"Kínverskt júan","CNY",0]
[null,"Ný-Sjálenskur dalur","NZD",0]
[null,"Ástralíudalur","AUD",0]
[null,"Hong Kong dalur","HKD",0]
[null,"Suður-Afrískt rand","ZAR",0]
[null,"Tékknesk króna","CZK",0]
[null,"Ungversk forinta","HUF",0]
[null,"Tyrknesk líra","TRY",0]
[null,"Króatísk kúna","HRK",0]
[null,"Pólskt slot","PLN",0]
[null,"Rússnesk rúbla","RUB",0]
[null,"Eistnesk króna","EEK",0]
[null,"Lettneskt lat","LVL",0]
[null,"Litháenskt litas","LTL",0]
[null,"Nígersk næra","NGN",0]
[null,"Tævanskur dalur","TWD",0]
[null,"Suðurkóreskt vonn","KRW",0]
[null,"Súrinamskur dalur","SRD",0]
[null,"Ísraelskur sikill","ILS",0]
[null,"Singapúrskur dalur","SGD",0]
[null,"Mexíkóskur pesi","MXN",0]
[null,"Maltnesk líra","MTL",0]
[null,"Indversk rúpía","INR",0]
[null,"Búlgarskt lef","BGN",0]
[null,"Brasilískt ríal","BRL",0]

{"sheet":"Lönd","index":5,"n_rows":57,"n_cols":29,"rows_kept":57,"cut":false,"hidden":false,"merged":[[1,15,1,25],[1,1,1,13],[1,27,1,28]]}
["Landaflokkun erlendra liða"]
[null,"Erlendar eignir",null,null,null,null,null,null,null,null,null,null,null,null,null,"Erlendar skuldir",null,null,null,null,null,null,null,null,null,null,null,"Landaskipting samtals"]
[{"$f":"+EIGNIR!C8","v":"2015-09-30"},"Landakóði","Útlán til erlendra aðila","Niðurfærslur útlána til erlendra aðila","Erlend hlutabréf","Hlutir í verðbréfa- og fjárfestingarsjóðum ","Erlend markaðsskuldabréf > 1 ár","Erlend markaðsskuldabréf ≤ 1 year","Erlendar bankainnstæður","Erlendir afleiðusamningar","Hlutir í erlendum hlutdeildarfyrirtækjum","Hlutir í tengdum erlendum fyrirtækjum","Aðrar erlendar eignir","Viðskiptakröfur á erlenda aðila","Aðrar erlendar eignir ót.a","Erlend verðbréfaútgáfa","Beinar erlendar lántökur","Víkjandi erlend lán","Innstæður erlendra aðila","Erlendir afleiðusamningar","Skorstöður við erlenda aðila, hlutabréf","Skorstöður við erlenda aðila, skammtímaskuldaskjöl","Skorstöður við erlenda aðila, langtímaskuldaskjöl","Aðrar erlendar skuldir","Viðskiptaskuldir við erlenda aðila","Aðrar erlendar skuldir ót.a.",null,"Erlendar eignir","Erlendar skuldir"]
[null,"Listi yfir landakóða","Lending to foreign parties","Provisions on loans to non residents","Foreign equity","Units in foreign mutual and investment funds","Foreign marketable bonds > 1 year","Foreign marketable bonds and bills ≤ 1 year","Deposits in foreign banks","Foreign derivatives"," Shares in foreign associates","Shares in foreign affiliated undertakings","Other foreign assets","Foreign trade credits","Other foreign assets n.i.e.","Foreign securities issue","Direct foreign borrowing","Subordinated loans","Foreign sector deposits","Foreign derivatives ","Foreign short positiosn, equities","Foreign short positiosn, debt instruments > 1 year","Foreign short positiosn, debt instruments ≤ 1 year","Other foreign debt","Foreign trade credits","Other foreign debt n.i.e.",null,"Foreign assets, total","Foreign liabilities, total"]
["Erlendir aðilar","Landakóði",{"$f":"+EIGNIR!C462+EIGNIR!C494+EIGNIR!C526+EIGNIR!C558+EIGNIR!C590+EIGNIR!C622","v":0},{"$f":"+EIGNIR!C626","v":0},{"$f":"+'Sundurliðun Hlutabréf'!F24-'Sundurliðun Hlutabréf'!F28-'Sundurliðun Hlutabréf'!F27","v":0},{"$f":"+'Sundurliðun Hlutabréf'!F28+'Sundurliðun Hlutabréf'!F27","v":0},{"$f":"+'Sundurliðun Skuldabréf'!F37+'Sundurliðun Skuldabréf'!F76","v":0},{"$f":"+'Sundurliðun Skuldabréf'!F115","v":0},{"$f":"+'Sundurliðun Útlán'!E8","v":0},{"$f":"+'Sundurliðun Afleiður - eignir'!E24+'Sundurliðun Afleiður - eignir'!E50+'Sundurliðun Afleiður - eignir'!E76","v":0},{"$f":"+'Sundurliðun Hlutabréf'!F51","v":0},{"$f":"+'Sundurliðun Hlutabréf'!F77","v":0},{"$f":"+EIGNIR!C751","v":0},{"$f":"+EIGNIR!C752","v":0},{"$f":"+M5-N5","v":0},{"$f":"+'Sundurliðun Verðbréfaútgáfa'!E11","v":0},{"$f":"+'Sundurliðun Lántaka'!E49+'Sundurliðun Lántaka'!E75","v":0},{"$f":"+'Sundurliðun Lántaka'!E23","v":0},{"$f":"+'Sundurliðun Innlán'!E37+'Sundurliðun Innlán'!E76+'Sundurliðun Innlán'!E115+'Sundurliðun Innlán'!E125+'Sundurliðun Innlán'!E128+'Sundurliðun Innlán'!E160","v":0},{"$f":"+'Afleiður og skortstöð - skuldir'!E24+'Afleiður og skortstöð - skuldir'!E50+'Afleiður og skortstöð - skuldir'!E76","v":0},{"$f":"+'Afleiður og skortstöð - skuldir'!E110","v":0},{"$f":"+'Afleiður og skortstöð - skuldir'!E111","v":0},{"$f":"+'Afleiður og skortstöð - skuldir'!E112","v":0},{"$f":"+SKULDIR!C200","v":0},{"$f":"+SKULDIR!C201","v":0},{"$f":"+X5-Y5","v":0},null,{"$f":"+C5+SUM(E5:M5)-D5+EIGNIR!C19","v":0},{"$f":"+SUM(P5:X5)","v":0}]
["Austurríki","AT",0,0,0,0,0,0,0,0,0,0,0,0,{"$f":"+M6-N6","v":0},0,0,0,0,0,0,0,0,0,0,{"$f":"+X6-Y6","v":0},null,{"$f":"+C6+SUM(E6:M6)-D6","v":0},{"$f":"+SUM(P6:X6)","v":0}]
["Bandaríkin","US",0,0,0,0,0,0,0,0,0,0,0,0,0,0,0,0,0,0,0,0,0,0,0,{"$f":"+X7-Y7","v":0},null,{"$f":"+C7+SUM(E7:M7)-D7+EIGNIR!C21","v":0},{"$f":"+SUM(P7:X7)","v":0}]
["Belgía","BE",0,0,0,0,0,0,0,0,0,0,0,0,{"$f":"+M8-N8","v":0},0,0,0,0,0,0,0,0,0,0,0,null,{"$f":"+C8+SUM(E8:M8)-D8","v":0},0]
["Brasílía","BR",0,0,0,0,0,0,0,0,0,0,0,0,0,0,0,0,0,0,0,0,0,0,0,0,null,0,0]
["Bretland","GB",0,0,0,0,0,0,0,0,0,0,0,0,0,0,0,0,0,0,0,0,0,0,0,0,null,{"$f":"+C10+SUM(E10:M10)-D10+EIGNIR!C22","v":0},0]
["Búlgaría","BG",0,0,0,0,0,0,0,0,0,0,0,0,0,0,0,0,0,0,0,0,0,0,0,0,null,0,0]
["Cayman eyjar","KY",0,0,0,0,0,0,0,0,0,0,0,0,0,0,0,0,0,0,0,0,0,0,0,0,null,0,0]
["Danmörk","DK",0,0,0,0,0,0,0,0,0,0,0,0,0,0,0,0,0,0,0,0,0,0,0,0,null,{"$f":"+C13+SUM(E13:M13)-D13+EIGNIR!C24","v":0},0]
["Eistland","EE",0,0,0,0,0,0,0,0,0,0,0,0,0,0,0,0,0,0,0,0,0,0,0,0,null,0,0]
["Finnland","FI",0,0,0,0,0,0,0,0,0,0,0,0,0,0,0,0,0,0,0,0,0,0,0,0,null,0,0]
["Frakkland","FR",0,0,0,0,0,0,0,0,0,0,0,0,0,0,0,0,0,0,0,0,0,0,0,0,null,0,0]
["Færeyjar","FO",0,0,0,0,0,0,0,0,0,0,0,0,0,0,0,0,0,0,0,0,0,0,0,0,null,0,0]
["Grikkland","GR",0,0,0,0,0,0,0,0,0,0,0,0,0,0,0,0,0,0,0,0,0,0,0,0,null,0,0]
["Guernsey","GG",0,0,0,0,0,0,0,0,0,0,0,0,0,0,0,0,0,0,0,0,0,0,0,0,null,0,0]
["Holland","NL",0,0,0,0,0,0,0,0,0,0,0,0,0,0,0,0,0,0,0,0,0,0,0,0,null,0,0]
["Hong Kong","HK",0,0,0,0,0,0,0,0,0,0,0,0,0,0,0,0,0,0,0,0,0,0,0,0,null,0,0]
["Indland","IN",0,0,0,0,0,0,0,0,0,0,0,0,0,0,0,0,0,0,0,0,0,0,0,0,null,0,0]
["Írland","IE",0,0,0,0,0,0,0,0,0,0,0,0,0,0,0,0,0,0,0,0,0,0,0,0,null,0,0]
["Ítalía","IT",0,0,0,0,0,0,0,0,0,0,0,0,0,0,0,0,0,0,0,0,0,0,0,0,null,0,0]
["Japan","JP",0,0,0,0,0,0,0,0,0,0,0,0,0,0,0,0,0,0,0,0,0,0,0,0,null,{"$f":"+C25+SUM(E25:M25)-D25+EIGNIR!C23","v":0},0]
["Jeyrsey","JE",0,0,0,0,0,0,0,0,0,0,0,0,0,0,0,0,0,0,0,0,0,0,0,0,null,0,0]
["Kanada","CA",0,0,0,0,0,0,0,0,0,0,0,0,0,0,0,0,0,0,0,0,0,0,0,0,null,0,0]
["Kína","CN",0,0,0,0,0,0,0,0,0,0,0,0,0,0,0,0,0,0,0,0,0,0,0,0,null,0,0]
["Króatía","HR",0,0,0,0,0,0,0,0,0,0,0,0,{"$f":"+M29-N29","v":0},0,0,0,0,0,0,0,0,0,0,{"$f":"+X29-Y29","v":0},null,{"$f":"+C29+SUM(E29:M29)-D29","v":0},0]
["Kýpur","CY",0,0,0,0,0,0,0,0,0,0,0,0,0,0,0,0,0,0,0,0,0,0,0,0,null,0,0]
["Lettland","LV",0,0,0,0,0,0,0,0,0,0,0,0,0,0,0,0,0,0,0,0,0,0,0,0,null,0,0]
["Litháen","LT",0,0,0,0,0,0,0,0,0,0,0,0,0,0,0,0,0,0,0,0,0,0,0,0,null,0,0]
["Lúxemborg","LU",0,0,0,0,0,0,0,0,0,0,0,0,0,0,0,0,0,0,0,0,0,0,0,0,null,0,0]
["Malta","MT",0,0,0,0,0,0,0,0,0,0,0,0,0,0,0,0,0,0,0,0,0,0,0,0,null,0,0]
["Noregur","NO",0,0,0,0,0,0,0,0,0,0,0,0,0,0,0,0,0,0,0,0,0,0,0,0,null,{"$f":"+C35+SUM(E35:M35)-D35+EIGNIR!C25","v":0},0]
["Portúgal","PT",0,0,0,0,0,0,0,0,0,0,0,0,0,0,0,0,0,0,0,0,0,0,0,0,null,0,0]
["Pólland","PL",0,0,0,0,0,0,0,0,0,0,0,0,0,0,0,0,0,0,0,0,0,0,0,0,null,0,0]
["Rúmenía","RO",0,0,0,0,0,0,0,0,0,0,0,0,0,0,0,0,0,0,0,0,0,0,0,0,null,0,0]
["Rússland","RU",0,0,0,0,0,0,0,0,0,0,0,0,0,0,0,0,0,0,0,0,0,0,0,0,null,0,0]
["Slóvakía","SK",0,0,0,0,0,0,0,0,0,0,0,0,0,0,0,0,0,0,0,0,0,0,0,0,null,0,0]
["Slóvenía","SI",0,0,0,0,0,0,0,0,0,0,0,0,0,0,0,0,0,0,0,0,0,0,0,0,null,0,0]
["Spánn","ES",0,0,0,0,0,0,0,0,0,0,0,0,0,0,0,0,0,0,0,0,0,0,0,0,null,0,0]
["Sviss","CH",0,0,0,0,0,0,0,0,0,0,0,0,0,0,0,0,0,0,0,0,0,0,0,0,null,{"$f":"+C43+SUM(E43:M43)-D43+EIGNIR!C27","v":0},0]
["Svíþjóð","SE",0,0,0,0,0,0,0,0,0,0,0,0,0,0,0,0,0,0,0,0,0,0,0,0,null,{"$f":"+C44+SUM(E44:M44)-D44+EIGNIR!C26","v":0},0]
["Tékkaland","CZ",0,0,0,0,0,0,0,0,0,0,0,0,0,0,0,0,0,0,0,0,0,0,0,0,null,0,0]
["Ungverjaland","HU",0,0,0,0,0,0,0,0,0,0,0,0,0,0,0,0,0,0,0,0,0,0,0,0,null,0,{"$f":"+SUM(P46:X46)","v":0}]
["Þýskaland","DE",0,0,0,0,0,0,0,0,0,0,0,0,0,0,0,0,0,0,0,0,0,0,0,0,null,0,{"$f":"+SUM(P47:X47)","v":0}]
["Önnur lönd, ótalin annars staðar","NN",0,0,0,0,0,0,0,0,0,0,0,0,0,0,0,0,0,0,0,0,0,0,0,0,null,{"$f":"+C48+SUM(E48:M48)-D48+EIGNIR!C28","v":0},0]
["Evrópski seðlabankinn/ ECB","4F",0,0,0,0,0,0,0,0,0,0,0,0,0,0,0,0,0,0,0,0,0,0,0,0,null,{"$f":"+C49+SUM(E49:M49)-D49+EIGNIR!C20","v":0},0]
["Evrópski fjárfestingabankinn/ European Investment bank","4C",0,0,0,0,0,0,0,0,0,0,0,0,0,0,0,0,0,0,0,0,0,0,0,0,null,0,0]
["Aðrar stofnanir Evrópusambandsins / Other European Institutions","4J",0,0,0,0,0,0,0,0,0,0,0,0,0,0,0,0,0,0,0,0,0,0,0,0,null,0,0]
["Evrópska stöðugleikakerfið/European Stability Mechanism","4S",0,0,0,0,0,0,0,0,0,0,0,0,0,0,0,0,0,0,0,0,0,0,0,0,null,0,0]
["Alþjóða gjaldeyrisjóðurinn/ Inernational Monetary Fund","1C",0,0,0,0,0,0,0,0,0,0,0,0,0,0,0,0,0,0,0,0,0,0,0,0,null,0,0]
["Aljóðlegar stofnanir, aðrar","5Z",0,0,0,0,0,0,0,0,0,0,0,0,{"$f":"+M54-N54","v":0},0,0,0,0,0,0,0,0,0,0,0,null,{"$f":"+SUM(C54:M54)","v":0},{"$f":"+SUM(P54:X54)","v":0}]
[]
[]
["Villupróf",null,{"$f":"+C5-SUM(C6:C54)","v":0},0,0,0,0,0,0,0,0,0,0,0,0,0,0,0,0,0,0,0,0,0,0,0,null,{"$f":"+AB5-SUM(AB6:AB54)","v":0},{"$f":"+AC5-SUM(AC6:AC54)","v":0}]

{"sheet":"Sundurliðun Hlutabréf","index":6,"n_rows":95,"n_cols":20,"rows_kept":95,"cut":false,"hidden":false,"merged":[[2,5,3,5],[2,8,2,9],[2,6,2,7],[2,10,2,19]]}
[null,null,null,null,"Hlutabréf og hlutdeildarskírteini"]
[]
["Lóðrétt villupróf",null,null,null,"Fjárhæðir í þús.kr","Samtals","Skráð eða óskráð",null,"Eignarhald útgefanda",null,"Myntskipting"]
["Skráð/óskráð","Eignarhald","Myntskipting",null,null,null,"Skráð","Óskráð ","Opinbert fyrirtæki","Einka- fyrirtæki","ISK","EUR","USD","GBP","JPY","DKK","NOK","SEK","CHF","Aðrir gjaldmiðlar"]
[{"$f":"+F5-SUM(G5:H5)","v":0},"–",{"$f":"+F5-SUM(K5:T5)","v":0},null,"Hlutabréf < 10% eignahlutur og hlutdeildarskírteini",{"$f":"+F6+F24","v":0},{"$f":"+G6+G24","v":0},{"$f":"+H6+H24","v":0},"–","–",{"$f":"+K6+K24","v":0},0,0,0,0,0,0,0,0,0]
[0,"–",0,"S1.","Innlend hlutabréf og hlutdeildarskirteini",{"$f":"+EIGNIR!C36+EIGNIR!C166+EIGNIR!C296-EIGNIR!C67-EIGNIR!C197-EIGNIR!C327","v":0},{"$f":"+SUM(G7,G8,G19,G22,G23)","v":0},{"$f":"+SUM(H7,H8,H19,H22,H23)","v":0},"–","–",{"$f":"SUM(K7,K8,K19,K22,K23)","v":0},{"$f":"SUM(L7,L8,L19,L22,L23)","v":0},0,0,{"$f":"SUM(O7,O8,O19,O22,O23)","v":0},0,0,0,0,0]
[0,{"$f":"+F7-SUM(I7:J7)","v":0},0,"S.11","Atvinnufyrirtæki",{"$f":"+EIGNIR!C37+EIGNIR!C167+EIGNIR!C297","v":0},0,0,0,0,0,0,0,0,0,0,0,0,0,0]
[0,{"$f":"+F8-SUM(I8:J8)","v":0},0,"S.12","Fjármálageiri",{"$f":"+EIGNIR!C51+EIGNIR!C181+EIGNIR!C311","v":0},{"$f":"+SUM(G9:G18)","v":0},{"$f":"+SUM(H9:H18)","v":0},{"$f":"+SUM(I9:I18)","v":0},0,0,{"$f":"+SUM(L9:L18)","v":0},{"$f":"+SUM(M9:M18)","v":0},0,0,0,0,0,0,0]
[0,0,0,"S.122","Innlánsstofnanir",{"$f":"+EIGNIR!C52+EIGNIR!C182+EIGNIR!C312","v":0},0,0,0,0,0,0,0,0,0,0,0,0,0,0]
[0,{"$f":"+F10-SUM(I10:J10)","v":0},0,"S.122X","Innlánsstofnanir í slitameðferð",{"$f":"+EIGNIR!C53+EIGNIR!C183+EIGNIR!C313","v":0},0,0,0,0,0,0,0,0,0,0,0,0,0,0]
[0,0,0,"S.123","Peningamarkaðssjóðir",{"$f":"+EIGNIR!C54+EIGNIR!C184+EIGNIR!C314","v":0},0,0,0,0,0,0,0,0,0,0,0,0,0,0]
[0,0,0,"S.124","Aðrir verðbréfa- og fjárfestingarsjóðir",{"$f":"+EIGNIR!C55+EIGNIR!C185+EIGNIR!C315","v":0},0,0,0,0,0,0,0,0,0,0,0,0,0,0]
[0,0,0,"S.125","Önnur fjármálafyrirtæki",{"$f":"+EIGNIR!C56+EIGNIR!C186+EIGNIR!C316","v":0},0,0,0,0,0,0,0,0,0,0,0,0,0,0]
[0,0,0,"S.125X","Önnur fjármálafyrirtæki í slitameðferð",{"$f":"+EIGNIR!C57+EIGNIR!C187+EIGNIR!C317","v":0},0,0,0,0,0,0,0,0,0,0,0,0,0,0]
[0,0,0,"S.126","Fjármálaleg hliðarstarfsemi",{"$f":"+EIGNIR!C58+EIGNIR!C188+EIGNIR!C318","v":0},0,0,0,0,0,0,0,0,0,0,0,0,0,0]
[0,0,0,"S.127","Innbyrðis fjármálastarfsemi",{"$f":"+EIGNIR!C59+EIGNIR!C189+EIGNIR!C319","v":0},0,0,0,0,0,0,0,0,0,0,0,0,0,0]
[0,0,0,"S.128","Vátryggingarfélög",{"$f":"+EIGNIR!C60+EIGNIR!C190+EIGNIR!C320","v":0},0,0,0,0,0,0,0,0,0,0,0,0,0,0]
[0,{"$f":"+F18-SUM(I18:J18)","v":0},0,"S.129","Lífeyrissjóðir",{"$f":"+EIGNIR!C61+EIGNIR!C191+EIGNIR!C321","v":0},0,0,0,0,0,0,0,0,0,0,0,0,0,0]
["–","–","–","S.13","Hið opinbera",{"$f":"+SUM(EIGNIR!C62,EIGNIR!C192,EIGNIR!C322)","v":0},"–","–","–","–","–","–","–","–","–","–","–","–","–","–"]
["–","–","–","S.1311","Ríkissjóður","–","–","–","–","–","–","–","–","–","–","–","–","–","–","–"]
["–","–","–","S.1313","Sveitarfélög","–","–","–","–","–","–","–","–","–","–","–","–","–","–","–"]
["–","–","–","S.14","Heimili","–","–","–","–","–","–","–","–","–","–","–","–","–","–","–"]
[{"$f":"+F23-SUM(G23:H23)","v":0},"–",{"$f":"+F23-SUM(K23:T23)","v":0},"S.15","Félagasamtök sem þjóna heimilum",{"$f":"+EIGNIR!C66+EIGNIR!C196+EIGNIR!C326","v":0},0,0,"–","–",0,0,0,0,0,0,0,0,0,0]
[{"$f":"+F24-SUM(G24:H24)","v":0},"–",{"$f":"+F24-SUM(K24:T24)","v":0},"S.2","Erlendir aðilar",{"$f":"+EIGNIR!C67+EIGNIR!C197+EIGNIR!C327","v":0},{"$f":"+SUM(G25:G31)","v":0},{"$f":"+SUM(H25:H31)","v":0},"–","–",{"$f":"+SUM(K25:K31)","v":0},{"$f":"+SUM(L25:L31)","v":0},{"$f":"+SUM(M25:M31)","v":0},0,0,0,0,0,0,{"$f":"+SUM(T25:T31)","v":0}]
["–","–","–","S.2.ERS","Seðlabankar","–","–","–","–","–","–","–","–","–","–","–","–","–","–","–"]
[{"$f":"+F26-SUM(G26:H26)","v":0},"–",{"$f":"+F26-SUM(K26:T26)","v":0},"S.2.ERI","Innlánsstofnanir",0,0,0,"–","–",0,0,0,0,0,0,0,0,0,0]
[{"$f":"+F27-SUM(G27:H27)","v":0},"–",{"$f":"+F27-SUM(K27:T27)","v":0},"S.2.ERP","Peningamarkaðssjóðir",0,0,0,"–","–",0,0,0,0,0,0,0,0,0,0]
[{"$f":"+F28-SUM(G28:H28)","v":0},"–",{"$f":"+F28-SUM(K28:T28)","v":0},"S.2.ERV","Aðrir verðbréfa- og fjárfestingarsjóðir",0,0,0,"–","–",0,0,0,0,0,0,0,0,0,0]
[{"$f":"+F29-SUM(G29:H29)","v":0},"–",{"$f":"+F29-SUM(K29:T29)","v":0},"S.2.ERF","Fjármálafyrirtæki (ótalin annars staðar)",0,0,0,"–","–",0,0,0,0,0,0,0,0,0,0]
["–","–","–","S.2.ERO","Opinberir aðilar (ríki og sveitarfélög)","–","–","–","–","–","–","–","–","–","–","–","–","–","–","–"]
[{"$f":"+F31-SUM(G31:H31)","v":0},"–",{"$f":"+F31-SUM(K31:T31)","v":0},"S.2.ERA","Önnur atvinnufyrirtæki, heimili og þjónusta við heimili",0,0,0,"–","–",0,0,0,0,0,0,0,0,0,0]
[0,"–",0,null,"Hlutir í hlutdeildarfélögum, dótturfélögum og samrekstrarfélögum. Eignahlutur ≥ 10%",{"$f":"+F33+F51+F59+F77","v":0},{"$f":"+G33+G51+G59+G77","v":0},{"$f":"+H33+H51+H59+H77","v":0},"–","–",{"$f":"+K33+K51+K59+K77","v":0},{"$f":"+L33+L51+L59+L77","v":0},{"$f":"+M33+M51+M59+M77","v":0},{"$f":"+N33+N51+N59+N77","v":0},{"$f":"+O33+O51+O59+O77","v":0},{"$f":"+P33+P51+P59+P77","v":0},{"$f":"+Q33+Q51+Q59+Q77","v":0},{"$f":"+R33+R51+R59+R77","v":0},{"$f":"+S33+S51+S59+S77","v":0},{"$f":"+T33+T51+T59+T77","v":0}]
[0,{"$f":"+F33-SUM(I33:J33)","v":0},0,null,"Hlutir í innlendum hlutdeildarfyrirtækjum (10%-50%)",{"$f":"+EIGNIR!C732","v":0},{"$f":"SUM(G34,G35,G46,G49,G50)","v":0},{"$f":"SUM(H34,H35,H46,H49,H50)","v":0},{"$f":"SUM(I34,I35,I46,I49,I50)","v":0},0,0,0,0,0,0,0,0,0,0,0]
[0,{"$f":"+F34-SUM(I34:J34)","v":0},0,"S.11","Atvinnufyrirtæki",0,0,0,0,0,0,0,0,0,0,0,0,0,0,0]
[0,0,0,"S.12","Fjármálageiri",{"$f":"+SUM(F36:F45)","v":0},{"$f":"+SUM(G36:G45)","v":0},{"$f":"+SUM(H36:H45)","v":0},{"$f":"+SUM(I36:I45)","v":0},0,{"$f":"+SUM(K36:K45)","v":0},{"$f":"+SUM(L36:L45)","v":0},0,0,0,0,0,0,0,0]
[0,0,0,"S.122","Innlánsstofnanir",0,0,0,0,0,0,0,0,0,0,0,0,0,0,0]
[0,0,0,"S.122X","Innlánsstofnanir í slitameðferð",{"$f":"+SUM(K37:T37)","v":0},0,0,0,0,0,0,0,0,0,0,0,0,0,0]
[0,0,0,"S.123","Peningamarkaðssjóðir",{"$f":"+SUM(K38:T38)","v":0},0,0,0,0,0,0,0,0,0,0,0,0,0,0]
[0,0,0,"S.124","Aðrir verðbréfa- og fjárfestingarsjóðir",{"$f":"+SUM(K39:T39)","v":0},0,0,0,0,0,0,0,0,0,0,0,0,0,0]
[0,0,0,"S.125","Önnur fjármálafyrirtæki",{"$f":"+SUM(K40:T40)","v":0},0,0,0,0,0,0,0,0,0,0,0,0,0,0]
[0,0,0,"S.125X","Önnur fjármálafyrirtæki í slitameðferð",0,0,0,0,0,0,0,0,0,0,0,0,0,0,0]
[0,0,0,"S.126","Fjármálaleg hliðarstarfsemi",0,0,0,0,0,0,0,0,0,0,0,0,0,0,0]
[0,0,0,"S.127","Innbyrðis fjármálastarfsemi",0,0,0,0,0,0,0,0,0,0,0,0,0,0,0]
[0,0,0,"S.128","Vátryggingarfélög",0,0,0,0,0,0,0,0,0,0,0,0,0,0,0]
[0,0,0,"S.129","Lífeyrissjóðir",0,0,0,0,0,0,0,0,0,0,0,0,0,0,0]
["–","–","–","S.13","Hið opinbera",{"$f":"+SUM(F47:F48)","v":0},"–","–","–","–","–","–","–","–","–","–","–","–","–","–"]
["–","–","–","S.1311","Ríkissjóður","–","–","–","–","–","–","–","–","–","–","–","–","–","–","–"]
["–","–","–","S.1313","Sveitarfélög","–","–","–","–","–","–","–","–","–","–","–","–","–","–","–"]
["–","–","–","S.14","Heimili","–","–","–","–","–","–","–","–","–","–","–","–","–","–","–"]
[{"$f":"+F50-SUM(G50:H50)","v":0},"–",{"$f":"+F50-SUM(K50:T50)","v":0},"S.15","Félagasamtök sem þjóna heimilum",0,0,0,"–","–",0,0,0,0,0,0,0,0,0,0]
[{"$f":"+F51-SUM(G51:H51)","v":0},"–",{"$f":"+F51-SUM(K51:T51)","v":0},"S.2","Hlutir í erlendum hlutdeildarfyrirtækjum (10%-50%)",{"$f":"+EIGNIR!C733","v":0},{"$f":"+SUM(G52:G58)","v":0},{"$f":"+SUM(H52:H58)","v":0},"–","–",0,0,0,0,0,0,0,0,0,{"$f":"+SUM(T52:T58)","v":0}]
["–","–","–","S.2.ERS","Seðlabankar","–","–","–","–","–","–","–","–","–","–","–","–","–","–","–"]
[{"$f":"+F53-SUM(G53:H53)","v":0},"–",{"$f":"+F53-SUM(K53:T53)","v":0},"S.2.ERI","Innlánsstofnanir",0,0,0,"–","–",0,0,0,0,0,0,0,0,0,0]
["–","–","–","S.2.ERP","Peningamarkaðssjóðir","–","–","–","–","–","–","–","–","–","–","–","–","–","–","–"]
["–","–","–","S.2.ERV","Aðrir verðbréfa- og fjárfestingarsjóðir","–","–","–","–","–","–","–","–","–","–","–","–","–","–","–"]
[{"$f":"+F56-SUM(G56:H56)","v":0},"–",{"$f":"+F56-SUM(K56:T56)","v":0},"S.2.ERF","Fjármálafyrirtæki (ótalin annars staðar)",0,0,0,"–","–",0,0,0,0,0,0,0,0,0,0]
["–","–","–","S.2.ERO","Opinberir aðilar (ríki og sveitarfélög)","–","–","–","–","–","–","–","–","–","–","–","–","–","–","–"]
[{"$f":"+F58-SUM(G58:H58)","v":0},"–",{"$f":"+F58-SUM(K58:T58)","v":0},"S.2.ERA","Önnur atvinnufyrirtæki, heimili og þjónusta við heimili",0,0,0,"–","–",0,0,0,0,0,0,0,0,0,0]
[0,"–",0,null,"Hlutir í innlendum tengdum fyrirtækjum > 50%",{"$f":"+EIGNIR!C734","v":0},{"$f":"SUM(G60,G61,G72,G75,G76)","v":0},{"$f":"SUM(H60,H61,H72,H75,H76)","v":0},"–","–",{"$f":"SUM(K60,K61,K72,K75,K76)","v":0},{"$f":"SUM(L60,L61,L72,L75,L76)","v":0},0,0,0,0,0,0,0,0]
[0,{"$f":"+F60-SUM(I60:J60)","v":0},0,"S.11","Atvinnufyrirtæki",0,0,0,0,0,0,0,0,0,0,0,0,0,0,0]
[0,0,0,"S.12","Fjármálageiri",{"$f":"+SUM(F62:F71)","v":0},0,0,0,0,0,{"$f":"+SUM(L62:L71)","v":0},0,0,0,0,0,0,0,0]
[0,0,0,"S.122","Innlánsstofnanir",0,0,0,0,0,0,0,0,0,0,0,0,0,0,0]
[0,0,0,"S.122X","Innlánsstofnanir í slitameðferð",0,0,0,0,0,0,0,0,0,0,0,0,0,0,0]
[0,0,0,"S.123","Peningamarkaðssjóðir",0,0,0,0,0,0,0,0,0,0,0,0,0,0,0]
[0,0,0,"S.124","Aðrir verðbréfa- og fjárfestingarsjóðir",0,0,0,0,0,0,0,0,0,0,0,0,0,0,0]
[0,0,0,"S.125","Önnur fjármálafyrirtæki",0,0,0,0,0,0,0,0,0,0,0,0,0,0,0]
[0,0,0,"S.125X","Önnur fjármálafyrirtæki í slitameðferð",0,0,0,0,0,0,0,0,0,0,0,0,0,0,0]
[0,0,0,"S.126","Fjármálaleg hliðarstarfsemi",0,0,0,0,0,0,0,0,0,0,0,0,0,0,0]
[0,0,0,"S.127","Innbyrðis fjármálastarfsemi",0,0,0,0,0,0,0,0,0,0,0,0,0,0,0]
[0,0,0,"S.128","Vátryggingarfélög",0,0,0,0,0,0,0,0,0,0,0,0,0,0,0]
[0,0,0,"S.129","Lífeyrissjóðir",0,0,0,0,0,0,0,0,0,0,0,0,0,0,0]
["–","–","–","S.13","Hið opinbera",{"$f":"+SUM(F73:F74)","v":0},"–","–","–","–","–","–","–","–","–","–","–","–","–","–"]
["–","–","–","S.1311","Ríkissjóður","–","–","–","–","–","–","–","–","–","–","–","–","–","–","–"]
["–","–","–","S.1313","Sveitarfélög","–","–","–","–","–","–","–","–","–","–","–","–","–","–","–"]
["–","–","–","S.14","Heimili","–","–","–","–","–","–","–","–","–","–","–","–","–","–","–"]
[{"$f":"+F76-SUM(G76:H76)","v":0},"–",{"$f":"+F76-SUM(K76:T76)","v":0},"S.15","Félagasamtök sem þjóna heimilum",0,0,0,"–","–",0,0,0,0,0,0,0,0,0,0]
[{"$f":"+F77-SUM(G77:H77)","v":0},"–",{"$f":"+F77-SUM(K77:T77)","v":0},"S.2","Hlutir í erlendum tengdum fyrirtækjum > 50%",{"$f":"+EIGNIR!C735","v":0},{"$f":"+SUM(G78:G84)","v":0},{"$f":"+SUM(H78:H84)","v":0},"–","–",{"$f":"+SUM(K78:K84)","v":0},{"$f":"+SUM(L78:L84)","v":0},0,0,0,0,0,0,0,0]
["–","–","–","S.2.ERS","Seðlabankar","–","–","–","–","–","–","–","–","–","–","–","–","–","–","–"]
[{"$f":"+F79-SUM(G79:H79)","v":0},"–",{"$f":"+F79-SUM(K79:T79)","v":0},"S.2.ERI","Innlánsstofnanir",{"$f":"+SUM(K79:T79)","v":0},0,0,"–","–",0,0,0,0,0,0,0,0,0,0]
["–","–","–","S.2.ERP","Peningamarkaðssjóðir","–","–","–","–","–","–","–","–","–","–","–","–","–","–","–"]
["–","–","–","S.2.ERV","Aðrir verðbréfa- og fjárfestingarsjóðir","–","–","–","–","–","–","–","–","–","–","–","–","–","–","–"]
[{"$f":"+F82-SUM(G82:H82)","v":0},"–",{"$f":"+F82-SUM(K82:T82)","v":0},"S.2.ERF","Fjármálafyrirtæki (ótalin annars staðar)",0,0,0,"–","–",0,0,0,0,0,0,0,0,0,0]
["–","–","–","S.2.ERO","Opinberir aðilar (ríki og sveitarfélög)","–","–","–","–","–","–","–","–","–","–","–","–","–","–","–"]
[{"$f":"+F84-SUM(G84:H84)","v":0},"–",{"$f":"+F84-SUM(K84:T84)","v":0},"S.2.ERA","Önnur atvinnufyrirtæki, heimili og þjónusta við heimili",0,0,0,"–","–",0,0,0,0,0,0,0,0,0,0]
[]
[]
[]
[null,null,null,null,"Lárétt villupróf"]
[null,null,null,null,"Villupróf: Hlutafé og hlutdeildarskírteini. Innlend.",{"$f":"+F6-F7-F8-F23","v":0},{"$f":"+G6-G7-G8-G23","v":0},{"$f":"+H6-H7-H8-H23","v":0},"–","–",{"$f":"+K6-K7-K8-K23","v":0},0,0,0,0,0,0,0,0,0]
[null,null,null,null,"Villupróf: Hlutafé og hlutdeildarskírteini. Fjármálageiri",{"$f":"F8-SUM(F9:F18)","v":0},{"$f":"G8-SUM(G9:G18)","v":0},0,0,0,0,0,0,0,{"$f":"O8-SUM(O9:O18)","v":0},0,0,0,0,{"$f":"T8-SUM(T9:T18)","v":0}]
[null,null,null,null,"Villupróf: Hlutafé og hlutdeildarskírteini. Erlend.",{"$f":"+F24-F26-F27-F28-F29-F31","v":0},{"$f":"+G24-G26-G27-G28-G29-G31","v":0},{"$f":"+H24-H26-H27-H28-H29-H31","v":0},"–","–",0,0,0,0,0,0,0,0,0,0]
[null,null,null,null,"Villupróf: Hlutir í innlendum hlutdeildarfyrirtækjum (10-50%)",{"$f":"F33-F34-F35-F46-F50","v":0},"–","–","–","–","–","–","–","–","–","–","–","–","–","–"]
[null,null,null,null,"Villupróf: Hlutir í erlendum hlutdeildarfyrirtækjum (10-50%)",{"$f":"F51-F53-F56-F58","v":0},{"$f":"G51-G53-G56-G58","v":0},0,"–","–",0,0,0,0,0,0,0,0,0,0]
[null,null,null,null,"Villupróf: Hlutir í innlendum hlutdeildarfyrirtækjum > 50%",{"$f":"+F59-F60-F61-F72-F76","v":0},{"$f":"G59-SUM(G60,G61,G72,G76)","v":0},0,"–","–",{"$f":"K59-SUM(K60,K61,K72,K76)","v":0},0,0,0,0,0,0,0,0,0]
[null,null,null,null,"Villupróf: Hlutir í erlendum hlutdeildarfyrirtækjum > 50%",{"$f":"F77-F79-F82-F84","v":0},{"$f":"G77-G79-G82-G84","v":0},{"$f":"H77-H79-H82-H84","v":0},"–","–",{"$f":"K77-K79-K82-K84","v":0},0,0,0,0,0,0,0,0,0]

{"sheet":"Sundurliðun Skuldabréf","index":7,"n_rows":146,"n_cols":20,"rows_kept":146,"cut":false,"hidden":false,"merged":[[2,5,3,5],[2,8,2,17],[2,18,2,19],[2,6,2,7]]}
[null,null,null,null,"Markaðsskuldabréf og víxlar"]
[]
["Lóðrétt villupróf",null,null,null,"Fjárhæðir í þús.kr","Samtals","Eignarhald útgefanda",null,"Myntskipting",null,null,null,null,null,null,null,null,null,"Rauneftirstöðvatími"]
["Eignarhald","Myntskipting","Raunest.tími",null,null,null,"Opinbert fyrirtæki","Einka- fyrirtæki","ISK","EUR","USD","GBP","JPY","DKK","NOK","SEK","CHF","Aðrir gjaldmiðlar","að einu ári","yfir eitt ár"]
["–",{"$f":"+F5-SUM(I5:R5)","v":0},"–",null,"Skuldabréf og víxlar",{"$f":"+F6+F45+F84","v":0},"–","–",{"$f":"+I6+I45+I84","v":0},{"$f":"SUM(J6,J45,J84)","v":0},0,0,0,0,0,0,0,0,"–","–"]
["–",{"$f":"F6-I6","v":0},"–",null,"Verðtryggð markaðsskuldabréf",{"$f":"+EIGNIR!C69+EIGNIR!C199+EIGNIR!C329+EIGNIR!C629","v":0},"–","–",{"$f":"+I7+I21+I32+I36+I37","v":0},"–","–","–","–","–","–","–","–","–","–","–"]
[{"$f":"+F7-SUM(G7:H7)","v":0},{"$f":"F7-I7","v":0},"–","S.11","Atvinnufyrirtæki",{"$f":"+EIGNIR!C70+EIGNIR!C200+EIGNIR!C330+EIGNIR!C630","v":0},0,0,{"$f":"SUM(I8:I20)","v":0},"–","–","–","–","–","–","–","–","–","–","–"]
["–",{"$f":"F8-I8","v":0},"–","S.11.LAB","Landbúnaður",{"$f":"+EIGNIR!C71+EIGNIR!C201+EIGNIR!C331+EIGNIR!C631","v":0},"–","–",0,"–","–","–","–","–","–","–","–","–","–","–"]
["–",0,"–","S.11.SJA","Fiskveiðar",{"$f":"+EIGNIR!C72+EIGNIR!C202+EIGNIR!C332+EIGNIR!C632","v":0},"–","–",0,"–","–","–","–","–","–","–","–","–","–","–"]
["–",0,"–","S.11.ILA","Iðnaður, vinnsla landbúnaðarafurða",{"$f":"+EIGNIR!C73+EIGNIR!C203+EIGNIR!C333+EIGNIR!C633","v":0},"–","–",0,"–","–","–","–","–","–","–","–","–","–","–"]
["–",0,"–","S.11.ISJ","Iðnaður, vinnsla sjávarafurða",{"$f":"+EIGNIR!C74+EIGNIR!C204+EIGNIR!C334+EIGNIR!C634","v":0},"–","–",0,"–","–","–","–","–","–","–","–","–","–","–"]
["–",0,"–","S.11.IAN","Iðnaður, annað",{"$f":"+EIGNIR!C75+EIGNIR!C205+EIGNIR!C335+EIGNIR!C635","v":0},"–","–",0,"–","–","–","–","–","–","–","–","–","–","–"]
["–",0,"–","S.11.RAF","Veitur (orku- og vatnsveitur)",{"$f":"+EIGNIR!C76+EIGNIR!C206+EIGNIR!C336+EIGNIR!C636","v":0},"–","–",0,"–","–","–","–","–","–","–","–","–","–","–"]
["–",{"$f":"F14-I14","v":0},"–","S.11.MAN","Byggingastarfsemi og mannvirkjagerð",{"$f":"+EIGNIR!C77+EIGNIR!C207+EIGNIR!C337+EIGNIR!C637","v":0},"–","–",0,"–","–","–","–","–","–","–","–","–","–","–"]
["–",0,"–","S.11.VEN","Verslun",{"$f":"+EIGNIR!C78+EIGNIR!C208+EIGNIR!C338+EIGNIR!C638","v":0},"–","–",0,"–","–","–","–","–","–","–","–","–","–","–"]
["–",0,"–","S.11.SAG","Samgöngur og flutningar",{"$f":"+EIGNIR!C79+EIGNIR!C209+EIGNIR!C339+EIGNIR!C639","v":0},"–","–",0,"–","–","–","–","–","–","–","–","–","–","–"]
["–",0,"–","S.11.THF","Þjónusta, fasteignafélög",{"$f":"+EIGNIR!C80+EIGNIR!C210+EIGNIR!C340+EIGNIR!C640","v":0},"–","–",0,"–","–","–","–","–","–","–","–","–","–","–"]
["–",0,"–","S.11.THH","Þjónusta, starfsemi höfuðstöðva",{"$f":"+EIGNIR!C81+EIGNIR!C211+EIGNIR!C341+EIGNIR!C641","v":0},"–","–",0,"–","–","–","–","–","–","–","–","–","–","–"]
["–",0,"–","S.11.THA","Þjónusta, annað",{"$f":"+EIGNIR!C82+EIGNIR!C212+EIGNIR!C342+EIGNIR!C642","v":0},"–","–",0,"–","–","–","–","–","–","–","–","–","–","–"]
["–",0,"–","S.11.OFL.","Óflokkað",{"$f":"+EIGNIR!C83+EIGNIR!C213+EIGNIR!C343+EIGNIR!C643","v":0},"–","–",0,"–","–","–","–","–","–","–","–","–","–","–"]
[{"$f":"+F21-SUM(G21:H21)","v":0},0,"–","S.12","Fjármálageiri",{"$f":"+EIGNIR!C84+EIGNIR!C214+EIGNIR!C344+EIGNIR!C644","v":0},{"$f":"+SUM(G22:G31)","v":0},{"$f":"+SUM(H22:H31)","v":0},{"$f":"+SUM(I22:I31)","v":0},"–","–","–","–","–","–","–","–","–","–","–"]
[0,0,"–","S.122","Innlánsstofnanir",{"$f":"+EIGNIR!C85+EIGNIR!C215+EIGNIR!C345+EIGNIR!C645","v":0},0,0,0,"–","–","–","–","–","–","–","–","–","–","–"]
[0,0,"–","S.122X","Innlánsstofnanir í slitameðferð",{"$f":"+EIGNIR!C86+EIGNIR!C216+EIGNIR!C346+EIGNIR!C646","v":0},0,0,0,"–","–","–","–","–","–","–","–","–","–","–"]
[0,0,"–","S.123","Peningamarkaðssjóðir",{"$f":"+EIGNIR!C87+EIGNIR!C217+EIGNIR!C347+EIGNIR!C647","v":0},0,0,0,"–","–","–","–","–","–","–","–","–","–","–"]
[0,0,"–","S.124","Aðrir verðbréfa- og fjárfestingarsjóðir ",{"$f":"+EIGNIR!C88+EIGNIR!C218+EIGNIR!C348+EIGNIR!C648","v":0},0,0,0,"–","–","–","–","–","–","–","–","–","–","–"]
[0,0,"–","S.125","Önnur fjármálafyrirtæki",{"$f":"+EIGNIR!C89+EIGNIR!C219+EIGNIR!C349+EIGNIR!C649","v":0},0,{"$f":"+F26-G26","v":0},0,"–","–","–","–","–","–","–","–","–","–","–"]
[0,0,"–","S.125X","Önnur fjármálafyrirtæki í slitameðferð",{"$f":"+EIGNIR!C90+EIGNIR!C220+EIGNIR!C350+EIGNIR!C650","v":0},0,0,0,"–","–","–","–","–","–","–","–","–","–","–"]
[0,0,"–","S.126","Fjármálaleg hliðarstarfsemi ",{"$f":"+EIGNIR!C91+EIGNIR!C221+EIGNIR!C351+EIGNIR!C651","v":0},0,0,0,"–","–","–","–","–","–","–","–","–","–","–"]
[0,0,"–","S.127","Innbyrðis fjármálastarfsemi",{"$f":"+EIGNIR!C92+EIGNIR!C222+EIGNIR!C352+EIGNIR!C652","v":0},0,0,0,"–","–","–","–","–","–","–","–","–","–","–"]
[0,0,"–","S.128","Vátryggingarfélög",{"$f":"+EIGNIR!C93+EIGNIR!C223+EIGNIR!C353+EIGNIR!C653","v":0},0,0,0,"–","–","–","–","–","–","–","–","–","–","–"]
[0,0,"–","S.129","Lífeyrissjóðir",{"$f":"+EIGNIR!C94+EIGNIR!C224+EIGNIR!C354+EIGNIR!C654","v":0},0,0,0,"–","–","–","–","–","–","–","–","–","–","–"]
["–",0,"–","S.13","Hið opinbera",{"$f":"+EIGNIR!C95+EIGNIR!C225+EIGNIR!C355+EIGNIR!C655","v":0},"–","–",{"$f":"+I33+I34","v":0},"–","–","–","–","–","–","–","–","–","–","–"]
["–",0,"–","S.1311","Ríkissjóður",{"$f":"+EIGNIR!C96+EIGNIR!C226+EIGNIR!C356+EIGNIR!C656","v":0},"–","–",0,"–","–","–","–","–","–","–","–","–","–","–"]
["–",0,"–","S.1313","Sveitarfélög",{"$f":"+EIGNIR!C97+EIGNIR!C227+EIGNIR!C357+EIGNIR!C657","v":0},"–","–",0,"–","–","–","–","–","–","–","–","–","–","–"]
["–","–","–","S.14","Heimili","–","–","–","–","–","–","–","–","–","–","–","–","–","–","–"]
["–",0,"–","S.15","Félagasamtök sem þjóna heimilum",{"$f":"+EIGNIR!C99+EIGNIR!C229+EIGNIR!C359+EIGNIR!C659","v":0},"–","–",0,"–","–","–","–","–","–","–","–","–","–","–"]
["–",{"$f":"F37-I37","v":0},{"$f":"+F37-SUM(S37:T37)","v":0},"S.2","Erlendir aðilar",{"$f":"+EIGNIR!C100+EIGNIR!C230+EIGNIR!C360+EIGNIR!C660","v":0},"–","–",{"$f":"+SUM(I38:I44)","v":0},"–","–","–","–","–","–","–","–","–",{"$f":"SUM(S38:S44)","v":0},{"$f":"SUM(T38:T44)","v":0}]
["–",0,{"$f":"+F38-SUM(S38:T38)","v":0},"S.2.ERS","Seðlabankar",0,"–","–",0,"–","–","–","–","–","–","–","–","–",0,0]
["–",0,{"$f":"+F39-SUM(S39:T39)","v":0},"S.2.ERI","Innlánsstofnanir",0,"–","–",0,"–","–","–","–","–","–","–","–","–",0,0]
["–",0,0,"S.2.ERP","Peningamarkaðssjóðir",0,"–","–",0,"–","–","–","–","–","–","–","–","–",0,0]
["–",0,0,"S.2.ERV","Aðrir verðbréfa- og fjárfestingarsjóðir",0,"–","–",0,"–","–","–","–","–","–","–","–","–",0,0]
["–",0,0,"S.2.ERF","Fjármálafyrirtæki (ótalin annars staðar)",0,"–","–",0,"–","–","–","–","–","–","–","–","–",0,0]
["–",0,0,"S.2.ERO","Opinberir aðilar (ríki og sveitarfélög)",0,"–","–",0,"–","–","–","–","–","–","–","–","–",0,0]
["–",0,0,"S.2.ERA","Önnur atvinnufyrirtæki, heimili og þjónusta við heimili",0,"–","–",0,"–","–","–","–","–","–","–","–","–",0,0]
["–",{"$f":"+F45-SUM(I45:R45)","v":0},"–",null,"Önnur markaðsskuldabréf > 1 ár",{"$f":"+EIGNIR!C101+EIGNIR!C231+EIGNIR!C361+EIGNIR!C661","v":0},"–","–",{"$f":"+I46+I60+I71+I75+I76","v":0},0,0,0,0,0,0,0,0,0,"–","–"]
[{"$f":"+F46-SUM(G46:H46)","v":0},0,"–","S.11","Atvinnufyrirtæki",{"$f":"+EIGNIR!C102+EIGNIR!C232+EIGNIR!C362+EIGNIR!C662","v":0},0,0,{"$f":"SUM(I47:I59)","v":0},{"$f":"SUM(J47:J59)","v":0},0,0,0,0,0,0,0,0,"–","–"]
["–",{"$f":"+F47-SUM(I47:R47)","v":0},"–","S.11.LAB","Landbúnaður",{"$f":"+EIGNIR!C103+EIGNIR!C233+EIGNIR!C363+EIGNIR!C663","v":0},"–","–",0,0,0,0,0,0,0,0,0,0,"–","–"]
["–",{"$f":"+F48-SUM(I48:R48)","v":0},"–","S.11.SJA","Fiskveiðar",{"$f":"+EIGNIR!C104+EIGNIR!C234+EIGNIR!C364+EIGNIR!C664","v":0},"–","–",0,0,0,0,0,0,0,0,0,0,"–","–"]
["–",0,"–","S.11.ILA","Iðnaður, vinnsla landbúnaðarafurða",{"$f":"+EIGNIR!C105+EIGNIR!C235+EIGNIR!C365+EIGNIR!C665","v":0},"–","–",0,0,0,0,0,0,0,0,0,0,"–","–"]
["–",0,"–","S.11.ISJ","Iðnaður, vinnsla sjávarafurða",{"$f":"+EIGNIR!C106+EIGNIR!C236+EIGNIR!C366+EIGNIR!C666","v":0},"–","–",0,0,0,0,0,0,0,0,0,0,"–","–"]
["–",{"$f":"+F51-SUM(I51:R51)","v":0},"–","S.11.IAN","Iðnaður, annað",{"$f":"+EIGNIR!C107+EIGNIR!C237+EIGNIR!C367+EIGNIR!C667","v":0},"–","–",0,0,0,0,0,0,0,0,0,0,"–","–"]
["–",0,"–","S.11.RAF","Veitur (orku- og vatnsveitur)",{"$f":"+EIGNIR!C108+EIGNIR!C238+EIGNIR!C368+EIGNIR!C668","v":0},"–","–",0,0,0,0,0,0,0,0,0,0,"–","–"]
["–",0,"–","S.11.MAN","Byggingastarfsemi og mannvirkjagerð",{"$f":"+EIGNIR!C109+EIGNIR!C239+EIGNIR!C369+EIGNIR!C669","v":0},"–","–",0,0,0,0,0,0,0,0,0,0,"–","–"]
["–",0,"–","S.11.VEN","Verslun",{"$f":"+EIGNIR!C110+EIGNIR!C240+EIGNIR!C370+EIGNIR!C670","v":0},"–","–",0,0,0,0,0,0,0,0,0,0,"–","–"]
["–",0,"–","S.11.SAG","Samgöngur og flutningar",{"$f":"+EIGNIR!C111+EIGNIR!C241+EIGNIR!C371+EIGNIR!C671","v":0},"–","–",0,0,0,0,0,0,0,0,0,0,"–","–"]
["–",0,"–","S.11.THF","Þjónusta, fasteignafélög",{"$f":"+EIGNIR!C112+EIGNIR!C242+EIGNIR!C372+EIGNIR!C672","v":0},"–","–",0,0,0,0,0,0,0,0,0,0,"–","–"]
["–",0,"–","S.11.THH","Þjónusta, starfsemi höfuðstöðva",{"$f":"+EIGNIR!C113+EIGNIR!C243+EIGNIR!C373+EIGNIR!C673","v":0},"–","–",0,0,0,0,0,0,0,0,0,0,"–","–"]
["–",0,"–","S.11.THA","Þjónusta, annað",{"$f":"+EIGNIR!C114+EIGNIR!C244+EIGNIR!C374+EIGNIR!C674","v":0},"–","–",0,0,0,0,0,0,0,0,0,0,"–","–"]
["–",{"$f":"+F59-SUM(I59:R59)","v":0},"–","S.11.OFL.","Óflokkað",{"$f":"+EIGNIR!C115+EIGNIR!C245+EIGNIR!C375+EIGNIR!C675","v":0},"–","–",0,0,0,0,0,0,0,0,0,0,"–","–"]
[0,0,"–","S.12","Fjármálageiri",{"$f":"+EIGNIR!C116+EIGNIR!C246+EIGNIR!C376+EIGNIR!C676","v":0},{"$f":"+SUM(G61:G70)","v":0},{"$f":"+SUM(H61:H70)","v":0},0,0,0,0,0,0,0,0,0,0,"–","–"]
[0,0,"–","S.122","Innlánsstofnanir",{"$f":"+EIGNIR!C117+EIGNIR!C247+EIGNIR!C377+EIGNIR!C677","v":0},0,0,0,0,0,0,0,0,0,0,0,0,"–","–"]
[0,0,"–","S.122X","Innlánsstofnanir í slitameðferð",{"$f":"+EIGNIR!C118+EIGNIR!C248+EIGNIR!C378+EIGNIR!C678","v":0},0,0,0,0,0,0,0,0,0,0,0,0,"–","–"]
[0,0,"–","S.123","Peningamarkaðssjóðir",{"$f":"+EIGNIR!C119+EIGNIR!C249+EIGNIR!C379+EIGNIR!C679","v":0},0,0,0,0,0,0,0,0,0,0,0,0,"–","–"]
[0,0,"–","S.124","Aðrir verðbréfa- og fjárfestingarsjóðir ",{"$f":"+EIGNIR!C120+EIGNIR!C250+EIGNIR!C380+EIGNIR!C680","v":0},0,0,0,0,0,0,0,0,0,0,0,0,"–","–"]
[0,0,"–","S.125","Önnur fjármálafyrirtæki",{"$f":"+EIGNIR!C121+EIGNIR!C251+EIGNIR!C381+EIGNIR!C681","v":0},0,0,0,0,0,0,0,0,0,0,0,0,"–","–"]
[0,0,"–","S.125X","Önnur fjármálafyrirtæki í slitameðferð",{"$f":"+EIGNIR!C122+EIGNIR!C252+EIGNIR!C382+EIGNIR!C682","v":0},0,0,0,0,0,0,0,0,0,0,0,0,"–","–"]
[0,0,"–","S.126","Fjármálaleg hliðarstarfsemi",{"$f":"+EIGNIR!C123+EIGNIR!C253+EIGNIR!C383+EIGNIR!C683","v":0},0,0,0,0,0,0,0,0,0,0,0,0,"–","–"]
[0,0,"–","S.127","Innbyrðis fjármálastarfsemi",{"$f":"+EIGNIR!C124+EIGNIR!C254+EIGNIR!C384+EIGNIR!C684","v":0},0,0,0,0,0,0,0,0,0,0,0,0,"–","–"]
[0,0,"–","S.128","Vátryggingarfélög",{"$f":"+EIGNIR!C125+EIGNIR!C255+EIGNIR!C385+EIGNIR!C685","v":0},0,0,0,0,0,0,0,0,0,0,0,0,"–","–"]
[0,0,"–","S.129","Lífeyrissjóðir",{"$f":"+EIGNIR!C126+EIGNIR!C256+EIGNIR!C386+EIGNIR!C686","v":0},0,0,0,0,0,0,0,0,0,0,0,0,"–","–"]
["–",0,"–","S.13","Hið opinbera",{"$f":"+EIGNIR!C127+EIGNIR!C257+EIGNIR!C387+EIGNIR!C687","v":0},"–","–",{"$f":"+I72+I73","v":0},{"$f":"+J72+J73","v":0},{"$f":"+K72+K73","v":0},{"$f":"+L72+L73","v":0},{"$f":"+M72+M73","v":0},{"$f":"+N72+N73","v":0},{"$f":"+O72+O73","v":0},{"$f":"+P72+P73","v":0},{"$f":"+Q72+Q73","v":0},{"$f":"+R72+R73","v":0},"–","–"]
["–",0,"–","S.1311","Ríkissjóður",{"$f":"+EIGNIR!C128+EIGNIR!C258+EIGNIR!C388+EIGNIR!C688","v":0},"–","–",0,0,0,0,0,0,0,0,0,0,"–","–"]
["–",0,"–","S.1313","Sveitarfélög",{"$f":"+EIGNIR!C129+EIGNIR!C259+EIGNIR!C389+EIGNIR!C689","v":0},"–","–",0,0,0,0,0,0,0,0,0,0,"–","–"]
["–","–","–","S.14","Heimili","–","–","–","–","–","–","–","–","–","–","–","–","–","–","–"]
["–",{"$f":"+F75-SUM(I75:R75)","v":0},"–","S.15","Félagasamtök sem þjóna heimilum",{"$f":"+EIGNIR!C131+EIGNIR!C261+EIGNIR!C391+EIGNIR!C691","v":0},"–","–",0,0,0,0,0,0,0,0,0,0,"–","–"]
["–",0,{"$f":"+F76-SUM(S76:T76)","v":0},"S.2","Erlendir aðilar",{"$f":"+EIGNIR!C132+EIGNIR!C262+EIGNIR!C392+EIGNIR!C692","v":0},"–","–",{"$f":"+SUM(I77:I83)","v":0},0,0,0,0,0,0,0,0,0,{"$f":"SUM(S77:S83)","v":0},{"$f":"SUM(T77:T83)","v":0}]
["–",0,{"$f":"+F77-SUM(S77:T77)","v":0},"S.2.ERS","Seðlabankar",0,"–","–",0,0,0,0,0,0,0,0,0,0,0,0]
["–",0,0,"S.2.ERI","Innlánsstofnanir",0,"–","–",0,0,0,0,0,0,0,0,0,0,0,0]
["–",0,0,"S.2.ERP","Peningamarkaðssjóðir",0,"–","–",0,0,0,0,0,0,0,0,0,0,0,0]
["–",0,0,"S.2.ERV","Aðrir verðbréfa- og fjárfestingarsjóðir",0,"–","–",0,0,0,0,0,0,0,0,0,0,0,0]
["–",0,0,"S.2.ERF","Fjármálafyrirtæki (ótalin annars staðar)",0,"–","–",0,0,0,0,0,0,0,0,0,0,0,0]
["–",0,0,"S.2.ERO","Opinberir aðilar (ríki og sveitarfélög)",0,"–","–",0,0,0,0,0,0,0,0,0,0,0,0]
["–",0,0,"S.2.ERA","Önnur atvinnufyrirtæki, heimili og þjónusta við heimili",0,"–","–",0,0,0,0,0,0,0,0,0,0,0,0]
["–",0,"–",null,"Önnur markaðsskuldabréf og víxlar ≤ 1 ár",{"$f":"+EIGNIR!C133+EIGNIR!C263+EIGNIR!C393+EIGNIR!C693","v":0},"–","–",{"$f":"SUM(I85,I99,I110,I114,I115)","v":0},{"$f":"SUM(J85,J99,J110,J114,J115)","v":0},0,0,0,0,0,0,0,0,"–","–"]
[{"$f":"+F85-SUM(G85:H85)","v":0},0,"–","S.11","Atvinnufyrirtæki",{"$f":"+EIGNIR!C134+EIGNIR!C264+EIGNIR!C394+EIGNIR!C694","v":0},0,0,{"$f":"SUM(I86:I98)","v":0},{"$f":"SUM(J86:J98)","v":0},0,0,0,0,0,0,0,0,"–","–"]
["–",{"$f":"+F86-SUM(I86:R86)","v":0},"–","S.11.LAB","Landbúnaður",{"$f":"+EIGNIR!C135+EIGNIR!C265+EIGNIR!C395+EIGNIR!C695","v":0},"–","–",0,0,0,0,0,0,0,0,0,0,"–","–"]
["–",{"$f":"+F87-SUM(I87:R87)","v":0},"–","S.11.SJA","Fiskveiðar",{"$f":"+EIGNIR!C136+EIGNIR!C266+EIGNIR!C396+EIGNIR!C696","v":0},"–","–",0,0,0,0,0,0,0,0,0,0,"–","–"]
["–",0,"–","S.11.ILA","Iðnaður, vinnsla landbúnaðarafurða",{"$f":"+EIGNIR!C137+EIGNIR!C267+EIGNIR!C397+EIGNIR!C697","v":0},"–","–",0,0,0,0,0,0,0,0,0,0,"–","–"]
["–",0,"–","S.11.ISJ","Iðnaður, vinnsla sjávarafurða",{"$f":"+EIGNIR!C138+EIGNIR!C268+EIGNIR!C398+EIGNIR!C698","v":0},"–","–",0,0,0,0,0,0,0,0,0,0,"–","–"]
["–",{"$f":"+F90-SUM(I90:R90)","v":0},"–","S.11.IAN","Iðnaður, annað",{"$f":"+EIGNIR!C139+EIGNIR!C269+EIGNIR!C399+EIGNIR!C699","v":0},"–","–",0,0,0,0,0,0,0,0,0,0,"–","–"]
["–",0,"–","S.11.RAF","Veitur (orku- og vatnsveitur)",{"$f":"+EIGNIR!C140+EIGNIR!C270+EIGNIR!C400+EIGNIR!C700","v":0},"–","–",0,0,0,0,0,0,0,0,0,0,"–","–"]
["–",0,"–","S.11.MAN","Byggingastarfsemi og mannvirkjagerð",{"$f":"+EIGNIR!C141+EIGNIR!C271+EIGNIR!C401+EIGNIR!C701","v":0},"–","–",0,0,0,0,0,0,0,0,0,0,"–","–"]
["–",0,"–","S.11.VEN","Verslun",{"$f":"+EIGNIR!C142+EIGNIR!C272+EIGNIR!C402+EIGNIR!C702","v":0},"–","–",0,0,0,0,0,0,0,0,0,0,"–","–"]
["–",0,"–","S.11.SAG","Samgöngur og flutningar",{"$f":"+EIGNIR!C143+EIGNIR!C273+EIGNIR!C403+EIGNIR!C703","v":0},"–","–",0,0,0,0,0,0,0,0,0,0,"–","–"]
["–",0,"–","S.11.THF","Þjónusta, fasteignafélög",{"$f":"+EIGNIR!C144+EIGNIR!C274+EIGNIR!C404+EIGNIR!C704","v":0},"–","–",0,0,0,0,0,0,0,0,0,0,"–","–"]
["–",0,"–","S.11.THH","Þjónusta, starfsemi höfuðstöðva",{"$f":"+EIGNIR!C145+EIGNIR!C275+EIGNIR!C405+EIGNIR!C705","v":0},"–","–",0,0,0,0,0,0,0,0,0,0,"–","–"]
["–",0,"–","S.11.THA","Þjónusta, annað",{"$f":"+EIGNIR!C146+EIGNIR!C276+EIGNIR!C406+EIGNIR!C706","v":0},"–","–",0,0,0,0,0,0,0,0,0,0,"–","–"]
["–",{"$f":"+F98-SUM(I98:R98)","v":0},"–","S.11.OFL.","Óflokkað",{"$f":"+EIGNIR!C147+EIGNIR!C277+EIGNIR!C407+EIGNIR!C707","v":0},"–","–",0,0,0,0,0,0,0,0,0,0,"–","–"]
[{"$f":"+F99-SUM(G99:H99)","v":0},0,"–","S.12","Fjármálageiri",{"$f":"+EIGNIR!C148+EIGNIR!C278+EIGNIR!C408+EIGNIR!C708","v":0},{"$f":"+SUM(G100:G109)","v":0},{"$f":"+SUM(H100:H109)","v":0},0,{"$f":"+SUM(J100:J109)","v":0},0,0,0,0,0,0,0,0,"–","–"]
[{"$f":"+F100-SUM(G100:H100)","v":0},0,"–","S.122","Innlánsstofnanir",{"$f":"+EIGNIR!C149+EIGNIR!C279+EIGNIR!C409+EIGNIR!C709","v":0},0,0,0,0,0,0,0,0,0,0,0,0,"–","–"]
[0,0,"–","S.122X","Innlánsstofnanir í slitameðferð",{"$f":"+EIGNIR!C150+EIGNIR!C280+EIGNIR!C410+EIGNIR!C710","v":0},0,0,0,0,0,0,0,0,0,0,0,0,"–","–"]
[{"$f":"+F102-SUM(G102:H102)","v":0},0,"–","S.123","Peningamarkaðssjóðir",{"$f":"+EIGNIR!C151+EIGNIR!C281+EIGNIR!C411+EIGNIR!C711","v":0},0,0,0,0,0,0,0,0,0,0,0,0,"–","–"]
[0,0,"–","S.124","Aðrir verðbréfa- og fjárfestingarsjóðir ",{"$f":"+EIGNIR!C152+EIGNIR!C282+EIGNIR!C412+EIGNIR!C712","v":0},0,0,0,0,0,0,0,0,0,0,0,0,"–","–"]
[0,0,"–","S.125","Önnur fjármálafyrirtæki",{"$f":"+EIGNIR!C153+EIGNIR!C283+EIGNIR!C413+EIGNIR!C713","v":0},0,0,0,0,0,0,0,0,0,0,0,0,"–","–"]
[0,0,"–","S.125X","Önnur fjármálafyrirtæki í slitameðferð",{"$f":"+EIGNIR!C154+EIGNIR!C284+EIGNIR!C414+EIGNIR!C714","v":0},0,0,0,0,0,0,0,0,0,0,0,0,"–","–"]
[0,0,"–","S.126","Fjármálaleg hliðarstarfsemi ",{"$f":"+EIGNIR!C155+EIGNIR!C285+EIGNIR!C415+EIGNIR!C715","v":0},0,0,0,0,0,0,0,0,0,0,0,0,"–","–"]
[0,0,"–","S.127","Innbyrðis fjármálastarfsemi",{"$f":"+EIGNIR!C156+EIGNIR!C286+EIGNIR!C416+EIGNIR!C716","v":0},0,0,0,0,0,0,0,0,0,0,0,0,"–","–"]
[0,0,"–","S.128","Vátryggingarfélög",{"$f":"+EIGNIR!C157+EIGNIR!C287+EIGNIR!C417+EIGNIR!C717","v":0},0,0,0,0,0,0,0,0,0,0,0,0,"–","–"]
[{"$f":"+F109-SUM(G109:H109)","v":0},0,"–","S.129","Lífeyrissjóðir",{"$f":"+EIGNIR!C158+EIGNIR!C288+EIGNIR!C418+EIGNIR!C718","v":0},0,0,0,0,0,0,0,0,0,0,0,0,"–","–"]
["–",0,"–","S.13","Hið opinbera",{"$f":"+EIGNIR!C159+EIGNIR!C289+EIGNIR!C419+EIGNIR!C719","v":0},"–","–",{"$f":"+I111+I112","v":0},{"$f":"+J111+J112","v":0},{"$f":"+K111+K112","v":0},{"$f":"+L111+L112","v":0},{"$f":"+M111+M112","v":0},{"$f":"+N111+N112","v":0},{"$f":"+O111+O112","v":0},{"$f":"+P111+P112","v":0},{"$f":"+Q111+Q112","v":0},{"$f":"+R111+R112","v":0},"–","–"]
["–",0,"–","S.1311","Ríkissjóður",{"$f":"+EIGNIR!C160+EIGNIR!C290+EIGNIR!C420+EIGNIR!C720","v":0},"–","–",0,0,0,0,0,0,0,0,0,0,"–","–"]
["–",0,"–","S.1313","Sveitarfélög",{"$f":"+EIGNIR!C161+EIGNIR!C291+EIGNIR!C421+EIGNIR!C721","v":0},"–","–",0,0,0,0,0,0,0,0,0,0,"–","–"]
["–","–","–","S.14","Heimili","–","–","–","–","–","–","–","–","–","–","–","–","–","–","–"]
["–",{"$f":"+F114-SUM(I114:R114)","v":0},"–","S.15","Félagasamtök sem þjóna heimilum",{"$f":"+EIGNIR!C163+EIGNIR!C293+EIGNIR!C423+EIGNIR!C723","v":0},"–","–",0,0,0,0,0,0,0,0,0,0,"–","–"]
["–",0,{"$f":"+F115-SUM(S115)","v":0},"S.2","Erlendir aðilar",{"$f":"+EIGNIR!C164+EIGNIR!C294+EIGNIR!C424+EIGNIR!C724","v":0},"–","–",{"$f":"+SUM(I116:I122)","v":0},0,{"$f":"+SUM(K116:K122)","v":0},0,0,0,0,0,0,{"$f":"+SUM(R116:R122)","v":0},0,"–"]
["–",0,{"$f":"+F116-SUM(S116)","v":0},"S.2.ERS","Seðlabankar",0,"–","–",0,0,0,0,0,0,0,0,0,0,0,"–"]
["–",0,0,"S.2.ERI","Innlánsstofnanir",0,"–","–",0,0,0,0,0,0,0,0,0,0,0,"–"]
["–",0,0,"S.2.ERP","Peningamarkaðssjóðir",0,"–","–",0,0,0,0,0,0,0,0,0,0,0,"–"]
["–",0,0,"S.2.ERV","Aðrir verðbréfa- og fjárfestingarsjóðir",0,"–","–",0,0,0,0,0,0,0,0,0,0,0,"–"]
["–",0,0,"S.2.ERF","Fjármálafyrirtæki (ótalin annars staðar)",0,"–","–",0,0,0,0,0,0,0,0,0,0,0,"–"]
["–",0,0,"S.2.ERO","Opinberir aðilar (ríki og sveitarfélög)",0,"–","–",0,0,0,0,0,0,0,0,0,0,0,"–"]
["–",0,{"$f":"+F122-SUM(S122)","v":0},"S.2.ERA","Önnur atvinnufyrirtæki, heimili og þjónusta við heimili",0,"–","–",0,0,0,0,0,0,0,0,0,0,0,"–"]
[]
[null,null,null,null,"Nánari sundurliðun á verðtryggðum markaðsskuldabréfum"]
["–",{"$f":"+F125-I125","v":0},"–",null,"Verðtryggð markaðsskuldabréf",{"$f":"+F6","v":0},"–","–",{"$f":"+F125","v":0},"–","–","–","–","–","–","–","–","–","–","–"]
[{"$f":"+F126-G126","v":0},{"$f":"+F126-I126","v":0},"–",null,"Húsbréf",{"$f":"+G126","v":0},0,0,{"$f":"+G126","v":0},{"$f":"+J7","v":"–"},"–","–","–","–","–","–","–","–","–","–"]
[{"$f":"+F127-G127","v":0},0,"–",null,"Húsnæðisbréf",{"$f":"+G127","v":0},0,0,{"$f":"+G127","v":0},{"$f":"+J21","v":"–"},"–","–","–","–","–","–","–","–","–","–"]
[0,0,"–",null,"Íbúðabréf",{"$f":"+G128","v":0},0,0,{"$f":"+G128","v":0},{"$f":"+J22","v":"–"},"–","–","–","–","–","–","–","–","–","–"]
[{"$f":"+F129-SUM(G129:H129)","v":0},{"$f":"+F129-I129","v":0},"–",null,"Önnur verðtryggð skuldabréf",{"$f":"+F125-F126-F127-F128","v":0},0,0,0,{"$f":"+J23","v":"–"},"–","–","–","–","–","–","–","–","–","–"]
[]
[null,null,null,null,"Lárétt villupróf"]
[null,null,null,null,"Villupróf: Verðtryggð markaðsskuldabréf",{"$f":"+F6-F7-F21-F32-F36-F37","v":0},"–","–",{"$f":"+I6-I7-I21-I32-I36-I37","v":0},"–","–","–","–","–","–","–","–","–","–","–"]
[null,null,null,null,"Villupróf: Verðtryggð markaðsskuldabréf. Atvinnufyrirtæki",{"$f":"+F7-SUM(F8:F20)","v":0},"–","–",{"$f":"+I7-SUM(I8:I20)","v":0},"–","–","–","–","–","–","–","–","–","–","–"]
[null,null,null,null,"Villupróf: Verðtryggð markaðsskuldabréf. Fjármálageiri",{"$f":"F21-F22-F23-F24-F25-F26-F27-F28-F29-F30-F31","v":0},{"$f":"G21-G22-G23-G24-G25-G26-G27-G28-G29-G30-G31","v":0},0,0,"–","–","–","–","–","–","–","–","–","–","–"]
[null,null,null,null,"Villupróf: Verðtryggð markaðsskuldabréf. Hið opinbera",{"$f":"F32-F33-F34","v":0},"–","–",{"$f":"I32-I33-I34","v":0},"–","–","–","–","–","–","–","–","–","–","–"]
[null,null,null,null,"Villupróf: Verðtryggð markaðsskuldabréf. Erlendir aðilar",{"$f":"F37-F38-F39-F40-F41-F42-F43-F44","v":0},"–","–",{"$f":"I37-I38-I39-I40-I41-I42-I43-I44","v":0},"–","–","–","–","–","–","–","–","–",{"$f":"S37-S38-S39-S40-S41-S42-S43-S44","v":0},0]
[null,null,null,null,"Villupróf: Önnur markaðsskuldabréf >1 ár",{"$f":"+F45-F46-F60-F71-F75-F76","v":0},"–","–",{"$f":"+I45-I46-I60-I71-I75-I76","v":0},0,0,0,0,0,0,0,0,0,"–","–"]
[null,null,null,null,"Villupróf: Önnur markaðsskuldabréf >1 ár. Atvinnufyrirtæki",{"$f":"+F46-SUM(F47:F59)","v":0},"–","–",{"$f":"+I46-SUM(I47:I59)","v":0},0,0,0,0,0,0,0,0,0,"–","–"]
[null,null,null,null,"Villupróf: Önnur markaðsskuldabréf >1 ár Fjármálageiri",{"$f":"F60-F61-F62-F63-F64-F65-F66-F67-F68-F69-F70","v":0},{"$f":"G60-G61-G62-G63-G64-G65-G66-G67-G68-G69-G70","v":0},0,0,0,0,0,0,0,0,0,0,0,"–","–"]
[null,null,null,null,"Villupróf: Önnur markaðsskuldabréf >1 ár  Hið opinbera",{"$f":"F71-F72-F73","v":0},"–","–",{"$f":"I71-I72-I73","v":0},0,0,0,0,0,0,0,0,0,"–","–"]
[null,null,null,null,"Villupróf: Önnur markaðsskuldabréf >1 ár Erlendir aðilar",{"$f":"F76-F77-F78-F79-F80-F81-F82-F83","v":0},"–","–",{"$f":"I76-I77-I78-I79-I80-I81-I82-I83","v":0},0,0,0,0,0,0,0,0,0,0,0]
[null,null,null,null,"Villupróf: Önnur markaðsskuldabréf og víxlar ≤ 1 ár",{"$f":"+F84-F85-F99-F110-F114-F115","v":0},"–","–",{"$f":"+I84-I85-I99-I110-I114-I115","v":0},0,0,0,0,0,0,0,0,0,"–","–"]
[null,null,null,null,"Villupróf: Önnur markaðsskuldabréf og víxlar ≤ 1 ár Atvinnufyrirtæki",{"$f":"+F85-SUM(F86:F98)","v":0},"–","–",{"$f":"+I85-SUM(I86:I98)","v":0},0,0,0,0,0,0,0,0,0,"–","–"]
[null,null,null,null,"Villupróf: Önnur markaðsskuldabréf og víxlar ≤ 1 ár Fjármálageiri",{"$f":"F60-F61-F62-F63-F64-F65-F66-F67-F68-F69-F70","v":0},{"$f":"G60-G61-G62-G63-G64-G65-G66-G67-G68-G69-G70","v":0},0,0,0,0,0,0,0,0,0,0,0,"–","–"]
[null,null,null,null,"Villupróf: Önnur markaðsskuldabréf og víxlar ≤ 1 ár Hið opinbera",{"$f":"F110-F111-F112","v":0},"–","–",{"$f":"I110-I111-I112","v":0},0,0,0,0,0,0,0,0,0,"–","–"]
[null,null,null,null,"Villupróf: Önnur markaðsskuldabréf og víxlar ≤ 1 ár  Erlendir aðilar",{"$f":"F115-F116-F117-F118-F119-F120-F121-F122","v":0},"–","–",{"$f":"I115-I116-I117-I118-I119-I120-I121-I122","v":0},0,0,0,0,0,0,0,0,0,0,"–"]

{"sheet":"Sundurliðun Útlán","index":8,"n_rows":329,"n_cols":17,"rows_kept":329,"cut":false,"hidden":false,"merged":[[2,4,3,4],[2,7,2,16],[2,5,2,6]]}
[null,null,null,"Útlán"]
[]
["Lóðrétt villupróf",null,null,"Fjárhæðir í þús.kr","Samtals","Eignarhald mótaðila",null,"Myntskipting"]
["Eignarhald","Myntskipting",null,null,null,"Opinbert fyrirtæki","Einka- fyrirtæki","ISK","EUR","USD","GBP","JPY","DKK","NOK","SEK","CHF","Aðrir gjaldmiðlar"]
["–",{"$f":"E5-SUM(H5:Q5)","v":0},null,"Útlán og kröfur",{"$f":"+E6+E10-E232","v":0},"–","–",{"$f":"+H6+H10-H232","v":0},0,0,0,0,0,0,0,0,0]
["–",{"$f":"E6-SUM(H6:Q6)","v":0},null,"Innlán og innleystir tékkar",{"$f":"+EIGNIR!C426","v":0},"–","–",{"$f":"+H7+H8+H9","v":0},{"$f":"+I7+I8+I9","v":0},0,0,0,0,0,0,0,0]
[{"$f":"+E7-SUM(F7:G7)","v":0},0,"S.122","Innlán hjá innlendum bönkum ",{"$f":"+EIGNIR!C427","v":0},0,0,0,0,0,0,0,0,0,0,0,0]
["–",0,"S.2","Innlán hjá erlendum bönkum",{"$f":"+EIGNIR!C428","v":0},"–","–",0,0,0,0,0,0,0,0,0,0]
[0,0,"S.122","Innleystir tékkar",{"$f":"+EIGNIR!C429","v":0},0,0,0,0,0,0,0,0,0,0,0,0]
["–",0,null,"Útlán",{"$f":"+EIGNIR!C430","v":0},"–","–",{"$f":"SUM(H104,H136,H73,H11,H168,H42,H199)","v":0},0,0,0,0,0,0,0,0,0]
["–",0,null,"Greiddar óinnleystar ábyrgðir (innlendir aðilar)",{"$f":"+EIGNIR!C431-EIGNIR!C462","v":0},"–","–",{"$f":"+H12+H26+H37+H40+H41","v":0},0,0,0,0,0,0,0,0,0]
[{"$f":"+E12-SUM(F12:G12)","v":0},0,"S.11","Atvinnufyrirtæki",{"$f":"+EIGNIR!C432","v":0},0,0,{"$f":"SUM(H13:H25)","v":0},{"$f":"SUM(I13:I25)","v":0},0,0,0,0,0,0,0,{"$f":"SUM(Q13:Q25)","v":0}]
["–",{"$f":"E13-SUM(H13:Q13)","v":0},"S.11.LAB","Landbúnaður",{"$f":"+EIGNIR!C433","v":0},"–","–",0,0,0,0,0,0,0,0,0,0]
["–",0,"S.11.SJA","Fiskveiðar",{"$f":"+EIGNIR!C434","v":0},"–","–",0,0,0,0,0,0,0,0,0,0]
["–",0,"S.11.ILA","Iðnaður, vinnsla landbúnaðarafurða",{"$f":"+EIGNIR!C435","v":0},"–","–",0,0,0,0,0,0,0,0,0,0]
["–",0,"S.11.ISJ","Iðnaður, vinnsla sjávarafurða",{"$f":"+EIGNIR!C436","v":0},"–","–",0,0,0,0,0,0,0,0,0,0]
["–",0,"S.11.IAN","Iðnaður, annað",{"$f":"+EIGNIR!C437","v":0},"–","–",0,0,0,0,0,0,0,0,0,0]
["–",0,"S.11.RAF","Veitur (orku- og vatnsveitur)",{"$f":"+EIGNIR!C438","v":0},"–","–",0,0,0,0,0,0,0,0,0,0]
["–",0,"S.11.MAN","Byggingastarfsemi og mannvirkjagerð",{"$f":"+EIGNIR!C439","v":0},"–","–",0,0,0,0,0,0,0,0,0,0]
["–",0,"S.11.VEN","Verslun",{"$f":"+EIGNIR!C440","v":0},"–","–",0,0,0,0,0,0,0,0,0,0]
["–",0,"S.11.SAG","Samgöngur og flutningar",{"$f":"+EIGNIR!C441","v":0},"–","–",0,0,0,0,0,0,0,0,0,0]
["–",0,"S.11.THF","Þjónusta, fasteignafélög",{"$f":"+EIGNIR!C442","v":0},"–","–",0,0,0,0,0,0,0,0,0,0]
["–",0,"S.11.THH","Þjónusta, starfsemi höfuðstöðva",{"$f":"+EIGNIR!C443","v":0},"–","–",0,0,0,0,0,0,0,0,0,0]
["–",0,"S.11.THA","Þjónusta, annað",{"$f":"+EIGNIR!C444","v":0},"–","–",0,0,0,0,0,0,0,0,0,0]
["–",{"$f":"E25-SUM(H25:Q25)","v":0},"S.11.OFL.","Óflokkað",{"$f":"+EIGNIR!C445","v":0},"–","–",0,0,0,0,0,0,0,0,0,0]
[{"$f":"+E26-SUM(F26:G26)","v":0},0,"S.12","Fjármálageiri",{"$f":"+EIGNIR!C446","v":0},{"$f":"+SUM(F27:F36)","v":0},0,0,0,0,0,0,0,0,0,0,0]
[{"$f":"+E27-SUM(F27:G27)","v":0},{"$f":"E27-SUM(H27:Q27)","v":0},"S.122","Innlánsstofnanir",{"$f":"+EIGNIR!C447","v":0},0,0,0,0,0,0,0,0,0,0,0,0]
[0,0,"S.122X","Innlánsstofnanir í slitameðferð",{"$f":"+EIGNIR!C448","v":0},0,0,0,0,0,0,0,0,0,0,0,0]
[0,0,"S.123","Peningamarkaðssjóðir",{"$f":"+EIGNIR!C449","v":0},0,0,0,0,0,0,0,0,0,0,0,0]
[0,0,"S.124","Aðrir verðbréfa- og fjárfestingarsjóðir ",{"$f":"+EIGNIR!C450","v":0},0,0,0,0,0,0,0,0,0,0,0,0]
[0,0,"S.125","Önnur fjármálafyrirtæki",{"$f":"+EIGNIR!C451","v":0},0,0,0,0,0,0,0,0,0,0,0,0]
[0,0,"S.125X","Önnur fjármálafyrirtæki í slitameðferð",{"$f":"+EIGNIR!C452","v":0},0,0,0,0,0,0,0,0,0,0,0,0]
[0,0,"S.126","Fjármálaleg hliðarstarfsemi",{"$f":"+EIGNIR!C453","v":0},0,0,0,0,0,0,0,0,0,0,0,0]
[0,0,"S.127","Innbyrðis fjármálastarfsemi",{"$f":"+EIGNIR!C454","v":0},0,0,0,0,0,0,0,0,0,0,0,0]
[0,0,"S.128","Vátryggingarfélög",{"$f":"+EIGNIR!C455","v":0},0,0,0,0,0,0,0,0,0,0,0,0]
[0,0,"S.129","Lífeyrissjóðir",{"$f":"+EIGNIR!C456","v":0},0,0,0,0,0,0,0,0,0,0,0,0]
["–",0,"S.13","Hið opinbera",{"$f":"+EIGNIR!C457","v":0},"–","–",{"$f":"+H38+H39","v":0},{"$f":"+I38+I39","v":0},0,0,0,0,0,0,0,0]
["–",{"$f":"E38-SUM(H38:Q38)","v":0},"S.1311","Ríkissjóður",{"$f":"+EIGNIR!C458","v":0},"–","–",0,0,0,0,0,0,0,0,0,0]
["–",0,"S.1313","Sveitarfélög",{"$f":"+EIGNIR!C459","v":0},"–","–",0,0,0,0,0,0,0,0,0,0]
["–",0,"S.14","Heimili",{"$f":"+EIGNIR!C460","v":0},"–","–",0,0,0,0,0,0,0,0,0,0]
["–",0,"S.15","Félagasamtök sem þjóna heimilum",{"$f":"+EIGNIR!C461","v":0},"–","–",0,0,0,0,0,0,0,0,0,0]
["–",0,null,"Yfirdráttarlán (innlendir aðilar)",{"$f":"+EIGNIR!C463-EIGNIR!C494","v":0},"–","–",{"$f":"SUM(H43,H57,H68,H71,H72)","v":0},{"$f":"SUM(I43,I57,I68,I71,I72)","v":0},0,0,0,0,0,0,0,0]
[{"$f":"+E43-SUM(F43:G43)","v":0},0,"S.11","Atvinnufyrirtæki",{"$f":"+EIGNIR!C464","v":0},0,0,{"$f":"SUM(H44:H56)","v":0},{"$f":"SUM(I44:I56)","v":0},0,0,0,0,0,0,0,{"$f":"SUM(Q44:Q56)","v":0}]
["–",{"$f":"E44-SUM(H44:Q44)","v":0},"S.11.LAB","Landbúnaður",{"$f":"+EIGNIR!C465","v":0},"–","–",0,0,0,0,0,0,0,0,0,0]
["–",{"$f":"E45-SUM(H45:Q45)","v":0},"S.11.SJA","Fiskveiðar",{"$f":"+EIGNIR!C466","v":0},"–","–",0,0,0,0,0,0,0,0,0,0]
["–",0,"S.11.ILA","Iðnaður, vinnsla landbúnaðarafurða",{"$f":"+EIGNIR!C467","v":0},"–","–",0,0,0,0,0,0,0,0,0,0]
["–",0,"S.11.ISJ","Iðnaður, vinnsla sjávarafurða",{"$f":"+EIGNIR!C468","v":0},"–","–",0,0,0,0,0,0,0,0,0,0]
["–",0,"S.11.IAN","Iðnaður, annað",{"$f":"+EIGNIR!C469","v":0},"–","–",0,0,0,0,0,0,0,0,0,0]
["–",0,"S.11.RAF","Veitur (orku- og vatnsveitur)",{"$f":"+EIGNIR!C470","v":0},"–","–",0,0,0,0,0,0,0,0,0,0]
["–",0,"S.11.MAN","Byggingastarfsemi og mannvirkjagerð",{"$f":"+EIGNIR!C471","v":0},"–","–",0,0,0,0,0,0,0,0,0,0]
["–",0,"S.11.VEN","Verslun",{"$f":"+EIGNIR!C472","v":0},"–","–",0,0,0,0,0,0,0,0,0,0]
["–",0,"S.11.SAG","Samgöngur og flutningar",{"$f":"+EIGNIR!C473","v":0},"–","–",0,0,0,0,0,0,0,0,0,0]
["–",0,"S.11.THF","Þjónusta, fasteignafélög",{"$f":"+EIGNIR!C474","v":0},"–","–",0,0,0,0,0,0,0,0,0,0]
["–",0,"S.11.THH","Þjónusta, starfsemi höfuðstöðva",{"$f":"+EIGNIR!C475","v":0},"–","–",0,0,0,0,0,0,0,0,0,0]
["–",{"$f":"E55-SUM(H55:Q55)","v":0},"S.11.THA","Þjónusta, annað",{"$f":"+EIGNIR!C476","v":0},"–","–",0,0,0,0,0,0,0,0,0,0]
["–",{"$f":"E56-SUM(H56:Q56)","v":0},"S.11.OFL.","Óflokkað",{"$f":"+EIGNIR!C477","v":0},"–","–",0,0,0,0,0,0,0,0,0,0]
[0,0,"S.12","Fjármálageiri ",{"$f":"+EIGNIR!C478","v":0},{"$f":"+SUM(F58:F67)","v":0},{"$f":"+SUM(G58:G67)","v":0},{"$f":"+SUM(H58:H67)","v":0},0,0,0,{"$f":"+SUM(L58:L67)","v":0},0,0,0,0,{"$f":"+SUM(Q58:Q67)","v":0}]
[{"$f":"+E58-SUM(F58:G58)","v":0},{"$f":"E58-SUM(H58:Q58)","v":0},"S.122","Innlánsstofnanir",{"$f":"+EIGNIR!C479","v":0},0,0,0,0,0,0,0,0,0,0,0,0]
[0,0,"S.122X","Innlánsstofnanir í slitameðferð",{"$f":"+EIGNIR!C480","v":0},0,0,0,0,0,0,0,0,0,0,0,0]
[0,0,"S.123","Peningamarkaðssjóðir",{"$f":"+EIGNIR!C481","v":0},0,0,0,0,0,0,0,0,0,0,0,0]
[0,0,"S.124","Aðrir verðbréfa- og fjárfestingarsjóðir ",{"$f":"+EIGNIR!C482","v":0},0,0,0,0,0,0,0,0,0,0,0,0]
[0,{"$f":"E62-SUM(H62:Q62)","v":0},"S.125","Önnur fjármálafyrirtæki",{"$f":"+EIGNIR!C483","v":0},0,0,0,0,0,0,0,0,0,0,0,0]
[0,0,"S.125X","Önnur fjármálafyrirtæki í slitameðferð",{"$f":"+EIGNIR!C484","v":0},0,0,0,0,0,0,0,0,0,0,0,0]
[0,0,"S.126","Fjármálaleg hliðarstarfsemi",{"$f":"+EIGNIR!C485","v":0},0,0,0,0,0,0,0,0,0,0,0,0]
[0,0,"S.127","Innbyrðis fjármálastarfsemi",{"$f":"+EIGNIR!C486","v":0},0,0,0,0,0,0,0,0,0,0,0,0]
[0,0,"S.128","Vátryggingarfélög",{"$f":"+EIGNIR!C487","v":0},0,0,0,0,0,0,0,0,0,0,0,0]
[0,0,"S.129","Lífeyrissjóðir",{"$f":"+EIGNIR!C488","v":0},0,0,0,0,0,0,0,0,0,0,0,0]
["–",0,"S.13","Hið opinbera",{"$f":"+EIGNIR!C489","v":0},"–","–",{"$f":"+H69+H70","v":0},{"$f":"+I69+I70","v":0},0,0,0,0,0,0,0,0]
["–",0,"S.1311","Ríkissjóður",{"$f":"+EIGNIR!C490","v":0},"–","–",0,0,0,0,0,0,0,0,0,0]
["–",0,"S.1313","Sveitarfélög",{"$f":"+EIGNIR!C491","v":0},"–","–",0,0,0,0,0,0,0,0,0,0]
["–",0,"S.14","Heimili",{"$f":"+EIGNIR!C492","v":0},"–","–",0,0,0,0,0,0,0,0,0,0]
["–",0,"S.15","Félagasamtök sem þjóna heimilum",{"$f":"+EIGNIR!C493","v":0},"–","–",0,0,0,0,0,0,0,0,0,0]
["–",0,null,"Víxlar (innlendir aðilar)",{"$f":"+EIGNIR!C495-EIGNIR!C526","v":0},"–","–",{"$f":"SUM(H74,H88,H99,H102,H103)","v":0},{"$f":"SUM(I74,I88,I99,I102,I103)","v":0},0,0,0,0,0,0,0,0]
[{"$f":"+E74-SUM(F74:G74)","v":0},0,"S.11","Atvinnufyrirtæki",{"$f":"+EIGNIR!C496","v":0},0,0,{"$f":"SUM(H75:H87)","v":0},{"$f":"SUM(I75:I87)","v":0},0,0,0,0,0,0,0,{"$f":"SUM(Q75:Q87)","v":0}]
["–",{"$f":"E75-SUM(H75:Q75)","v":0},"S.11.LAB","Landbúnaður",{"$f":"+EIGNIR!C497","v":0},"–","–",0,0,0,0,0,0,0,0,0,0]
["–",{"$f":"E76-SUM(H76:Q76)","v":0},"S.11.SJA","Fiskveiðar",{"$f":"+EIGNIR!C498","v":0},"–","–",0,0,0,0,0,0,0,0,0,0]
["–",0,"S.11.ILA","Iðnaður, vinnsla landbúnaðarafurða",{"$f":"+EIGNIR!C499","v":0},"–","–",0,0,0,0,0,0,0,0,0,0]
["–",0,"S.11.ISJ","Iðnaður, vinnsla sjávarafurða",{"$f":"+EIGNIR!C500","v":0},"–","–",0,0,0,0,0,0,0,0,0,0]
["–",0,"S.11.IAN","Iðnaður, annað",{"$f":"+EIGNIR!C501","v":0},"–","–",0,0,0,0,0,0,0,0,0,0]
["–",0,"S.11.RAF","Veitur (orku- og vatnsveitur)",{"$f":"+EIGNIR!C502","v":0},"–","–",0,0,0,0,0,0,0,0,0,0]
["–",0,"S.11.MAN","Byggingastarfsemi og mannvirkjagerð",{"$f":"+EIGNIR!C503","v":0},"–","–",0,0,0,0,0,0,0,0,0,0]
["–",0,"S.11.VEN","Verslun",{"$f":"+EIGNIR!C504","v":0},"–","–",0,0,0,0,0,0,0,0,0,0]
["–",{"$f":"E83-SUM(H83:Q83)","v":0},"S.11.SAG","Samgöngur og flutningar",{"$f":"+EIGNIR!C505","v":0},"–","–",0,0,0,0,0,0,0,0,0,0]
["–",0,"S.11.THF","Þjónusta, fasteignafélög",{"$f":"+EIGNIR!C506","v":0},"–","–",0,0,0,0,0,0,0,0,0,0]
["–",0,"S.11.THH","Þjónusta, starfsemi höfuðstöðva",{"$f":"+EIGNIR!C507","v":0},"–","–",0,0,0,0,0,0,0,0,0,0]
["–",0,"S.11.THA","Þjónusta, annað",{"$f":"+EIGNIR!C508","v":0},"–","–",0,0,0,0,0,0,0,0,0,0]
["–",{"$f":"E87-SUM(H87:Q87)","v":0},"S.11.OFL.","Óflokkað",{"$f":"+EIGNIR!C509","v":0},"–","–",0,0,0,0,0,0,0,0,0,0]
[0,0,"S.12","Fjármálageiri ",{"$f":"+EIGNIR!C510","v":0},{"$f":"+SUM(F89:F98)","v":0},{"$f":"+SUM(G89:G98)","v":0},{"$f":"+SUM(H89:H98)","v":0},0,0,0,0,0,0,0,0,{"$f":"+SUM(Q89:Q98)","v":0}]
[{"$f":"+E89-SUM(F89:G89)","v":0},{"$f":"E89-SUM(H89:Q89)","v":0},"S.122","Innlánsstofnanir",{"$f":"+EIGNIR!C511","v":0},0,0,0,0,0,0,0,0,0,0,0,0]
[0,0,"S.122X","Innlánsstofnanir í slitameðferð",{"$f":"+EIGNIR!C512","v":0},0,0,0,0,0,0,0,0,0,0,0,0]
[0,0,"S.123","Peningamarkaðssjóðir",{"$f":"+EIGNIR!C513","v":0},0,0,0,0,0,0,0,0,0,0,0,0]
[0,0,"S.124","Aðrir verðbréfa- og fjárfestingarsjóðir",{"$f":"+EIGNIR!C514","v":0},0,0,0,0,0,0,0,0,0,0,0,0]
[0,0,"S.125","Önnur fjármálafyrirtæki",{"$f":"+EIGNIR!C515","v":0},0,0,0,0,0,0,0,0,0,0,0,0]
[0,0,"S.125X","Önnur fjármálafyrirtæki í slitameðferð",{"$f":"+EIGNIR!C516","v":0},0,0,0,0,0,0,0,0,0,0,0,0]
[0,0,"S.126","Fjármálaleg hliðarstarfsemi",{"$f":"+EIGNIR!C517","v":0},0,0,0,0,0,0,0,0,0,0,0,0]
[0,0,"S.127","Innbyrðis fjármálastarfsemi",{"$f":"+EIGNIR!C518","v":0},0,0,0,0,0,0,0,0,0,0,0,0]
[0,0,"S.128","Vátryggingarfélög",{"$f":"+EIGNIR!C519","v":0},0,0,0,0,0,0,0,0,0,0,0,0]
[0,0,"S.129","Lífeyrissjóðir",{"$f":"+EIGNIR!C520","v":0},0,0,0,0,0,0,0,0,0,0,0,0]
["–",0,"S.13","Hið opinbera",{"$f":"+EIGNIR!C521","v":0},"–","–",{"$f":"+H100+H101","v":0},0,0,0,0,0,0,0,0,0]
["–",0,"S.1311","Ríkissjóður",{"$f":"+EIGNIR!C522","v":0},"–","–",0,0,0,0,0,0,0,0,0,0]
["–",0,"S.1313","Sveitarfélög",{"$f":"+EIGNIR!C523","v":0},"–","–",0,0,0,0,0,0,0,0,0,0]
["–",0,"S.14","Heimili",{"$f":"+EIGNIR!C524","v":0},"–","–",0,0,0,0,0,0,0,0,0,0]
["–",0,"S.15","Félagasamtök sem þjóna heimilum",{"$f":"+EIGNIR!C525","v":0},"–","–",0,0,0,0,0,0,0,0,0,0]
["–",{"$f":"E104-SUM(H104:H104)","v":0},null,"Verðtryggð útlán (innlendir aðilar)",{"$f":"+EIGNIR!C527-EIGNIR!C558","v":0},"–","–",{"$f":"SUM(H105,H119,H130,H133,H134,H135)","v":0},"–","–","–","–","–","–","–","–","–"]
[{"$f":"+E105-SUM(F105:G105)","v":0},{"$f":"E105-SUM(H105:H105)","v":0},"S.11","Atvinnufyrirtæki",{"$f":"+EIGNIR!C528","v":0},0,0,{"$f":"SUM(H106:H118)","v":0},"–","–","–","–","–","–","–","–","–"]
["–",{"$f":"E106-SUM(H106:H106)","v":0},"S.11.LAB","Landbúnaður",{"$f":"+EIGNIR!C529","v":0},"–","–",0,"–","–","–","–","–","–","–","–","–"]
["–",0,"S.11.SJA","Fiskveiðar",{"$f":"+EIGNIR!C530","v":0},"–","–",0,"–","–","–","–","–","–","–","–","–"]
["–",0,"S.11.ILA","Iðnaður, vinnsla landbúnaðarafurða",{"$f":"+EIGNIR!C531","v":0},"–","–",0,"–","–","–","–","–","–","–","–","–"]
["–",0,"S.11.ISJ","Iðnaður, vinnsla sjávarafurða",{"$f":"+EIGNIR!C532","v":0},"–","–",0,"–","–","–","–","–","–","–","–","–"]
["–",0,"S.11.IAN","Iðnaður, annað",{"$f":"+EIGNIR!C533","v":0},"–","–",0,"–","–","–","–","–","–","–","–","–"]
["–",0,"S.11.RAF","Veitur (orku- og vatnsveitur)",{"$f":"+EIGNIR!C534","v":0},"–","–",0,"–","–","–","–","–","–","–","–","–"]
["–",0,"S.11.MAN","Byggingastarfsemi og mannvirkjagerð",{"$f":"+EIGNIR!C535","v":0},"–","–",0,"–","–","–","–","–","–","–","–","–"]
["–",0,"S.11.VEN","Verslun",{"$f":"+EIGNIR!C536","v":0},"–","–",0,"–","–","–","–","–","–","–","–","–"]
["–",0,"S.11.SAG","Samgöngur og flutningar",{"$f":"+EIGNIR!C537","v":0},"–","–",0,"–","–","–","–","–","–","–","–","–"]
["–",0,"S.11.THF","Þjónusta, fasteignafélög",{"$f":"+EIGNIR!C538","v":0},"–","–",0,"–","–","–","–","–","–","–","–","–"]
["–",0,"S.11.THH","Þjónusta, starfsemi höfuðstöðva",{"$f":"+EIGNIR!C539","v":0},"–","–",0,"–","–","–","–","–","–","–","–","–"]
["–",0,"S.11.THA","Þjónusta, annað",{"$f":"+EIGNIR!C540","v":0},"–","–",0,"–","–","–","–","–","–","–","–","–"]
["–",0,"S.11.OFL.","Óflokkað",{"$f":"+EIGNIR!C541","v":0},"–","–",0,"–","–","–","–","–","–","–","–","–"]
[0,0,"S.12","Fjármálageiri ",{"$f":"+EIGNIR!C542","v":0},{"$f":"+SUM(F120:F129)","v":0},{"$f":"+SUM(G120:G129)","v":0},{"$f":"+SUM(H120:H129)","v":0},"–","–","–","–","–","–","–","–","–"]
[{"$f":"+E120-SUM(F120:G120)","v":0},{"$f":"E120-SUM(H120:Q120)","v":0},"S.122","Innlánsstofnanir",{"$f":"+EIGNIR!C543","v":0},0,0,0,"–","–","–","–","–","–","–","–","–"]
[0,0,"S.122X","Innlánsstofnanir í slitameðferð",{"$f":"+EIGNIR!C544","v":0},0,0,0,"–","–","–","–","–","–","–","–","–"]
[0,{"$f":"E122-SUM(H122:Q122)","v":0},"S.123","Peningamarkaðssjóðir",{"$f":"+EIGNIR!C545","v":0},0,0,0,"–","–","–","–","–","–","–","–","–"]
[0,0,"S.124","Aðrir verðbréfa- og fjárfestingarsjóðir",{"$f":"+EIGNIR!C546","v":0},0,0,0,"–","–","–","–","–","–","–","–","–"]
[0,0,"S.125","Önnur fjármálafyrirtæki",{"$f":"+EIGNIR!C547","v":0},0,0,0,"–","–","–","–","–","–","–","–","–"]
[0,0,"S.125X","Önnur fjármálafyrirtæki í slitameðferð",{"$f":"+EIGNIR!C548","v":0},0,0,0,"–","–","–","–","–","–","–","–","–"]
[0,0,"S.126","Fjármálaleg hliðarstarfsemi",{"$f":"+EIGNIR!C549","v":0},0,0,0,"–","–","–","–","–","–","–","–","–"]
[0,0,"S.127","Innbyrðis fjármálastarfsemi",{"$f":"+EIGNIR!C550","v":0},0,0,0,"–","–","–","–","–","–","–","–","–"]
[0,0,"S.128","Vátryggingarfélög",{"$f":"+EIGNIR!C551","v":0},0,0,0,"–","–","–","–","–","–","–","–","–"]
[0,0,"S.129","Lífeyrissjóðir",{"$f":"+EIGNIR!C552","v":0},0,0,0,"–","–","–","–","–","–","–","–","–"]
["–",0,"S.13","Hið opinbera",{"$f":"+EIGNIR!C553","v":0},"–","–",{"$f":"+H131+H132","v":0},"–","–","–","–","–","–","–","–","–"]
["–",0,"S.1311","Ríkissjóður",{"$f":"+EIGNIR!C554","v":0},"–","–",0,"–","–","–","–","–","–","–","–","–"]
["–",0,"S.1313","Sveitarfélög",{"$f":"+EIGNIR!C555","v":0},"–","–",0,"–","–","–","–","–","–","–","–","–"]
["–",0,"S.14.IBU","Heimili. Lán með veði i íbúð",0,"–","–",0,"–","–","–","–","–","–","–","–","–"]
["–",0,"S.14.ANN","Heimili. Önnur lán",0,"–","–",0,"–","–","–","–","–","–","–","–","–"]
["–",0,"S.15","Félagasamtök sem þjóna heimilum",{"$f":"+EIGNIR!C557","v":0},"–","–",0,"–","–","–","–","–","–","–","–","–"]
["–",0,null,"Önnur útlán og kröfur (innlendir aðilar)",{"$f":"+EIGNIR!C559-EIGNIR!C590","v":0},"–","–",{"$f":"SUM(H137,H151,H162,H165,H166,H167)","v":0},{"$f":"SUM(I137,I151,I162,I165,I166,I167)","v":0},0,0,0,0,0,0,0,0]
[{"$f":"+E137-SUM(F137:G137)","v":0},0,"S.11","Atvinnufyrirtæki",{"$f":"+EIGNIR!C560","v":0},0,0,{"$f":"SUM(H138:H150)","v":0},{"$f":"SUM(I138:I150)","v":0},0,0,0,0,0,0,0,{"$f":"SUM(Q138:Q150)","v":0}]
["–",{"$f":"E138-SUM(H138:Q138)","v":0},"S.11.LAB","Landbúnaður",{"$f":"+EIGNIR!C561","v":0},"–","–",0,0,0,0,0,0,0,0,0,0]
["–",{"$f":"E139-SUM(H139:Q139)","v":0},"S.11.SJA","Fiskveiðar",{"$f":"+EIGNIR!C562","v":0},"–","–",0,0,0,0,0,0,0,0,0,0]
["–",0,"S.11.ILA","Iðnaður, vinnsla landbúnaðarafurða",{"$f":"+EIGNIR!C563","v":0},"–","–",0,0,0,0,0,0,0,0,0,0]
["–",0,"S.11.ISJ","Iðnaður, vinnsla sjávarafurða",{"$f":"+EIGNIR!C564","v":0},"–","–",0,0,0,0,0,0,0,0,0,0]
["–",0,"S.11.IAN","Iðnaður, annað",{"$f":"+EIGNIR!C565","v":0},"–","–",0,0,0,0,0,0,0,0,0,0]
["–",0,"S.11.RAF","Veitur (orku- og vatnsveitur)",{"$f":"+EIGNIR!C566","v":0},"–","–",0,0,0,0,0,0,0,0,0,0]
["–",0,"S.11.MAN","Byggingastarfsemi og mannvirkjagerð",{"$f":"+EIGNIR!C567","v":0},"–","–",0,0,0,0,0,0,0,0,0,0]
["–",0,"S.11.VEN","Verslun",{"$f":"+EIGNIR!C568","v":0},"–","–",0,0,0,0,0,0,0,0,0,0]
["–",0,"S.11.SAG","Samgöngur og flutningar",{"$f":"+EIGNIR!C569","v":0},"–","–",0,0,0,0,0,0,0,0,0,0]
["–",0,"S.11.THF","Þjónusta, fasteignafélög",{"$f":"+EIGNIR!C570","v":0},"–","–",0,0,0,0,0,0,0,0,0,0]
["–",0,"S.11.THH","Þjónusta, starfsemi höfuðstöðva",{"$f":"+EIGNIR!C571","v":0},"–","–",0,0,0,0,0,0,0,0,0,0]
["–",0,"S.11.THA","Þjónusta, annað",{"$f":"+EIGNIR!C572","v":0},"–","–",0,0,0,0,0,0,0,0,0,0]
["–",{"$f":"E150-SUM(H150:Q150)","v":0},"S.11.OFL.","Óflokkað",{"$f":"+EIGNIR!C573","v":0},"–","–",0,0,0,0,0,0,0,0,0,0]
[0,0,"S.12","Fjármálageiri ",{"$f":"+EIGNIR!C574","v":0},{"$f":"+SUM(F152:F161)","v":0},{"$f":"+SUM(G152:G161)","v":0},{"$f":"+SUM(H152:H161)","v":0},{"$f":"+SUM(I152:I161)","v":0},{"$f":"+SUM(J152:J161)","v":0},0,0,0,0,0,0,{"$f":"+SUM(Q152:Q161)","v":0}]
[{"$f":"+E152-SUM(F152:G152)","v":0},{"$f":"E152-SUM(H152:Q152)","v":0},"S.122","Innlánsstofnanir",{"$f":"+EIGNIR!C575","v":0},0,0,0,0,0,0,0,0,0,0,0,0]
[0,0,"S.122X","Innlánsstofnanir í slitameðferð",{"$f":"+EIGNIR!C576","v":0},0,0,0,0,0,0,0,0,0,0,0,0]
[0,0,"S.123","Peningamarkaðssjóðir",{"$f":"+EIGNIR!C577","v":0},0,0,0,0,0,0,0,0,0,0,0,0]
[0,0,"S.124","Aðrir verðbréfa- og fjárfestingarsjóðir",{"$f":"+EIGNIR!C578","v":0},0,0,0,0,0,0,0,0,0,0,0,0]
[0,0,"S.125","Önnur fjármálafyrirtæki",{"$f":"+EIGNIR!C579","v":0},0,0,0,0,0,0,0,0,0,0,0,0]
[{"$f":"+E157-SUM(F157:G157)","v":0},{"$f":"E157-SUM(H157:Q157)","v":0},"S.125X","Önnur fjármálafyrirtæki í slitameðferð",{"$f":"+EIGNIR!C580","v":0},0,0,0,0,0,0,0,0,0,0,0,0]
[{"$f":"+E158-SUM(F158:G158)","v":0},{"$f":"E158-SUM(H158:Q158)","v":0},"S.126","Fjármálaleg hliðarstarfsemi",{"$f":"+EIGNIR!C581","v":0},0,0,0,0,0,0,0,0,0,0,0,0]
[{"$f":"+E159-SUM(F159:G159)","v":0},0,"S.127","Innbyrðis fjármálastarfsemi",{"$f":"+EIGNIR!C582","v":0},0,0,0,0,0,0,0,0,0,0,0,0]
[{"$f":"+E160-SUM(F160:G160)","v":0},0,"S.128","Vátryggingarfélög",{"$f":"+EIGNIR!C583","v":0},0,0,0,0,0,0,0,0,0,0,0,0]
[{"$f":"+E161-SUM(F161:G161)","v":0},0,"S.129","Lífeyrissjóðir",{"$f":"+EIGNIR!C584","v":0},0,0,0,0,0,0,0,0,0,0,0,0]
["–",0,"S.13","Hið opinbera",{"$f":"+EIGNIR!C585","v":0},"–","–",{"$f":"+H163+H164","v":0},{"$f":"+I163+I164","v":0},0,0,0,0,0,0,0,0]
["–",0,"S.1311","Ríkissjóður",{"$f":"+EIGNIR!C586","v":0},"–","–",0,0,0,0,0,0,0,0,0,0]
["–",0,"S.1313","Sveitarfélög",{"$f":"+EIGNIR!C587","v":0},"–","–",0,0,0,0,0,0,0,0,0,0]
["–",{"$f":"E165-SUM(H165:Q165)","v":0},"S.14.IBU","Heimili. Lán með veði í íbúð",0,"–","–",0,0,0,0,0,0,0,0,0,0]
["–",0,"S.14.ANN","Heimili. Önnur lán",0,"–","–",0,0,0,0,0,0,0,0,0,0]
["–",0,"S.15","Félagasamtök sem þjóna heimilum",{"$f":"+EIGNIR!C589","v":0},"–","–",0,0,0,0,0,0,0,0,0,0]
["–",0,null,"Eignarleigusamningar (innlendir aðilar)",{"$f":"+EIGNIR!C591-EIGNIR!C622","v":0},"–","–",{"$f":"SUM(H169,H183,H194,H197,H198)","v":0},{"$f":"SUM(I169,I183,I194,I197,I198)","v":0},0,0,0,0,0,0,0,0]
[{"$f":"+E169-SUM(F169:G169)","v":0},0,"S.11","Atvinnufyrirtæki",{"$f":"+EIGNIR!C592","v":0},0,0,{"$f":"SUM(H170:H182)","v":0},{"$f":"SUM(I170:I182)","v":0},0,0,0,0,0,0,0,{"$f":"SUM(Q170:Q182)","v":0}]
["–",{"$f":"E170-SUM(H170:Q170)","v":0},"S.11.LAB","Landbúnaður",{"$f":"+EIGNIR!C593","v":0},"–","–",0,0,0,0,0,0,0,0,0,0]
["–",{"$f":"E171-SUM(H171:Q171)","v":0},"S.11.SJA","Fiskveiðar",{"$f":"+EIGNIR!C594","v":0},"–","–",0,0,0,0,0,0,0,0,0,0]
["–",0,"S.11.ILA","Iðnaður, vinnsla landbúnaðarafurða",{"$f":"+EIGNIR!C595","v":0},"–","–",0,0,0,0,0,0,0,0,0,0]
["–",0,"S.11.ISJ","Iðnaður, vinnsla sjávarafurða",{"$f":"+EIGNIR!C596","v":0},"–","–",0,0,0,0,0,0,0,0,0,0]
["–",0,"S.11.IAN","Iðnaður, annað",{"$f":"+EIGNIR!C597","v":0},"–","–",0,0,0,0,0,0,0,0,0,0]
["–",0,"S.11.RAF","Veitur (orku- og vatnsveitur)",{"$f":"+EIGNIR!C598","v":0},"–","–",0,0,0,0,0,0,0,0,0,0]
["–",0,"S.11.MAN","Byggingastarfsemi og mannvirkjagerð",{"$f":"+EIGNIR!C599","v":0},"–","–",0,0,0,0,0,0,0,0,0,0]
["–",0,"S.11.VEN","Verslun",{"$f":"+EIGNIR!C600","v":0},"–","–",0,0,0,0,0,0,0,0,0,0]
["–",0,"S.11.SAG","Samgöngur og flutningar",{"$f":"+EIGNIR!C601","v":0},"–","–",0,0,0,0,0,0,0,0,0,0]
["–",0,"S.11.THF","Þjónusta, fasteignafélög",{"$f":"+EIGNIR!C602","v":0},"–","–",0,0,0,0,0,0,0,0,0,0]
["–",0,"S.11.THH","Þjónusta, starfsemi höfuðstöðva",{"$f":"+EIGNIR!C603","v":0},"–","–",0,0,0,0,0,0,0,0,0,0]
["–",{"$f":"E181-SUM(H181:Q181)","v":0},"S.11.THA","Þjónusta, annað",{"$f":"+EIGNIR!C604","v":0},"–","–",0,0,0,0,0,0,0,0,0,0]
["–",{"$f":"E182-SUM(H182:Q182)","v":0},"S.11.OFL.","Óflokkað",{"$f":"+EIGNIR!C605","v":0},"–","–",0,0,0,0,0,0,0,0,0,0]
[0,0,"S.12","Fjármálageiri",{"$f":"+EIGNIR!C606","v":0},{"$f":"+SUM(F184:F193)","v":0},{"$f":"+SUM(G184:G193)","v":0},{"$f":"+SUM(H184:H193)","v":0},{"$f":"+SUM(I184:I193)","v":0},0,0,0,0,0,0,0,{"$f":"+SUM(Q184:Q193)","v":0}]
[{"$f":"+E184-SUM(F184:G184)","v":0},{"$f":"E184-SUM(H184:Q184)","v":0},"S.122","Innlánsstofnanir",{"$f":"+EIGNIR!C607","v":0},0,0,0,0,0,0,0,0,0,0,0,0]
[0,0,"S.122X","Innlánsstofnanir í slitameðferð",{"$f":"+EIGNIR!C608","v":0},0,0,0,0,0,0,0,0,0,0,0,0]
[0,0,"S.123","Peningamarkaðssjóðir",{"$f":"+EIGNIR!C609","v":0},0,0,0,0,0,0,0,0,0,0,0,0]
[0,0,"S.124","Aðrir verðbréfa- og fjárfestingarsjóðir",{"$f":"+EIGNIR!C610","v":0},0,0,0,0,0,0,0,0,0,0,0,0]
[0,0,"S.125","Önnur fjármálafyrirtæki",{"$f":"+EIGNIR!C611","v":0},0,0,0,0,0,0,0,0,0,0,0,0]
[{"$f":"+E189-SUM(F189:G189)","v":0},{"$f":"E189-SUM(H189:Q189)","v":0},"S.125X","Önnur fjármálafyrirtæki í slitameðferð",{"$f":"+EIGNIR!C612","v":0},0,0,0,0,0,0,0,0,0,0,0,0]
[{"$f":"+E190-SUM(F190:G190)","v":0},{"$f":"E190-SUM(H190:Q190)","v":0},"S.126","Fjármálaleg hliðarstarfsemi ",{"$f":"+EIGNIR!C613","v":0},0,0,0,0,0,0,0,0,0,0,0,0]
[{"$f":"+E191-SUM(F191:G191)","v":0},0,"S.127","Innbyrðis fjármálastarfsemi",{"$f":"+EIGNIR!C614","v":0},0,0,0,0,0,0,0,0,0,0,0,0]
[{"$f":"+E192-SUM(F192:G192)","v":0},0,"S.128","Vátryggingarfélög",{"$f":"+EIGNIR!C615","v":0},0,0,0,0,0,0,0,0,0,0,0,0]
[{"$f":"+E193-SUM(F193:G193)","v":0},0,"S.129","Lífeyrissjóðir",{"$f":"+EIGNIR!C616","v":0},0,0,0,0,0,0,0,0,0,0,0,0]
["–",0,"S.13","Hið opinbera",{"$f":"+EIGNIR!C617","v":0},"–","–",{"$f":"+H195+H196","v":0},{"$f":"+I195+I196","v":0},0,0,0,0,0,0,0,0]
["–",0,"S.1311","Ríkissjóður",{"$f":"+EIGNIR!C618","v":0},"–","–",0,0,0,0,0,0,0,0,0,0]
["–",0,"S.1313","Sveitarfélög",{"$f":"+EIGNIR!C619","v":0},"–","–",0,0,0,0,0,0,0,0,0,0]
["–",0,"S.14","Heimili",{"$f":"+EIGNIR!C620","v":0},"–","–",0,0,0,0,0,0,0,0,0,0]
["–",0,"S.15","Félagasamtök sem þjóna heimilum",{"$f":"+EIGNIR!C621","v":0},"–","–",0,0,0,0,0,0,0,0,0,0]
["–",0,"S.2","Útlán og kröfur á erlendra aðila ",{"$f":"EIGNIR!C462+EIGNIR!C494+EIGNIR!C526+EIGNIR!C558+EIGNIR!C590+EIGNIR!C622","v":0},"–","–",{"$f":"+H200+H208+H216+H224","v":0},{"$f":"+I200+I208+I216+I224","v":0},0,{"$f":"+K200+K208+K216+K224","v":0},0,0,{"$f":"+N200+N208+N216+N224","v":0},0,0,{"$f":"+Q200+Q208+Q216+Q224","v":0}]
["–",0,null,"Lán til erlendra hludeildarfyrirtækja (10%-50%)",{"$f":"+SUM(E201:E207)","v":0},"–","–",{"$f":"+SUM(H201:H207)","v":0},{"$f":"+SUM(I201:I207)","v":0},0,0,0,0,0,0,0,{"$f":"+SUM(Q201:Q207)","v":0}]
["–","–","S.2.ERS","Seðlabankar","–","–","–","–","–","–","–","–","–","–","–","–","–"]
["–",{"$f":"E202-SUM(H202:Q202)","v":0},"S.2.ERI","Innlánsstofnanir",0,"–","–",0,0,0,0,0,0,0,0,0,0]
["–","–","S.2.ERP","Peningamarkaðssjóðir","–","–","–","–","–","–","–","–","–","–","–","–","–"]
["–","–","S.2.ERV","Aðrir verðbréfa- og fjárfestingarsjóðir","–","–","–","–","–","–","–","–","–","–","–","–","–"]
["–",{"$f":"E205-SUM(H205:Q205)","v":0},"S.2.ERF","Fjármálafyrirtæki (ótalin annars staðar)",0,"–","–",0,0,0,0,0,0,0,0,0,0]
["–","–","S.2.ERO","Opinberir aðilar (ríki og sveitarfélög)","–","–","–","–","–","–","–","–","–","–","–","–","–"]
["–",{"$f":"E207-SUM(H207:Q207)","v":0},"S.2.ERA","Önnur atvinnufyrirtæki, heimili og þjónusta við heimili",0,"–","–",0,0,0,0,0,0,0,0,0,0]
["–",0,null,"Lán til erlendra dótturfyrirtækja (> 50%)",{"$f":"+SUM(E209:E215)","v":0},"–","–",{"$f":"+SUM(H209:H215)","v":0},{"$f":"+SUM(I209:I215)","v":0},{"$f":"+SUM(J209:J215)","v":0},{"$f":"+SUM(K209:K215)","v":0},{"$f":"+SUM(L209:L215)","v":0},{"$f":"+SUM(M209:M215)","v":0},{"$f":"+SUM(N209:N215)","v":0},{"$f":"+SUM(O209:O215)","v":0},{"$f":"+SUM(P209:P215)","v":0},{"$f":"+SUM(Q209:Q215)","v":0}]
["–","–","S.2.ERS","Seðlabankar","–","–","–","–","–","–","–","–","–","–","–","–","–"]
["–",0,"S.2.ERI","Innlánsstofnanir",0,"–","–",0,0,0,0,0,0,0,0,0,0]
["–","–","S.2.ERP","Peningamarkaðssjóðir","–","–","–","–","–","–","–","–","–","–","–","–","–"]
["–","–","S.2.ERV","Aðrir verðbréfa- og fjárfestingarsjóðir","–","–","–","–","–","–","–","–","–","–","–","–","–"]
["–",0,"S.2.ERF","Fjármálafyrirtæki (ótalin annars staðar)",0,"–","–",0,0,0,0,0,0,0,0,0,0]
["–","–","S.2.ERO","Opinberir aðilar (ríki og sveitarfélög)","–","–","–","–","–","–","–","–","–","–","–","–","–"]
["–",0,"S.2.ERA","Önnur atvinnufyrirtæki, heimili og þjónusta við heimili",0,"–","–",0,0,0,0,0,0,0,0,0,0]
["–",0,null,"Lán til erlendra \"fellow\" félaga",{"$f":"+SUM(E217:E223)","v":0},"–","–",{"$f":"+SUM(H217:H223)","v":0},{"$f":"+SUM(I217:I223)","v":0},{"$f":"+SUM(J217:J223)","v":0},{"$f":"+SUM(K217:K223)","v":0},{"$f":"+SUM(L217:L223)","v":0},{"$f":"+SUM(M217:M223)","v":0},{"$f":"+SUM(N217:N223)","v":0},{"$f":"+SUM(O217:O223)","v":0},{"$f":"+SUM(P217:P223)","v":0},{"$f":"+SUM(Q217:Q223)","v":0}]
["–","–","S.2.ERS","Seðlabankar","–","–","–","–","–","–","–","–","–","–","–","–","–"]
["–",0,"S.2.ERI","Innlánsstofnanir",0,"–","–",0,0,0,0,0,0,0,0,0,0]
["–","–","S.2.ERP","Peningamarkaðssjóðir","–","–","–","–","–","–","–","–","–","–","–","–","–"]
["–","–","S.2.ERV","Aðrir verðbréfa- og fjárfestingarsjóðir","–","–","–","–","–","–","–","–","–","–","–","–","–"]
["–",0,"S.2.ERF","Fjármálafyrirtæki (ótalin annars staðar)",0,"–","–",0,0,0,0,0,0,0,0,0,0]
["–","–","S.2.ERO","Opinberir aðilar (ríki og sveitarfélög)","–","–","–","–","–","–","–","–","–","–","–","–","–"]
["–",0,"S.2.ERA","Önnur atvinnufyrirtæki, heimili og þjónusta við heimili",0,"–","–",0,0,0,0,0,0,0,0,0,0]
["–",0,null,"Önnur erlend lán",{"$f":"+SUM(E225:E231)","v":0},"–","–",{"$f":"+SUM(H225:H231)","v":0},0,0,0,0,0,0,0,0,0]
["–","–","S.2.ERS","Seðlabankar","–","–","–","–","–","–","–","–","–","–","–","–","–"]
["–",0,"S.2.ERI","Innlánsstofnanir",0,"–","–",0,0,0,0,0,0,0,0,0,0]
["–","–","S.2.ERP","Peningamarkaðssjóðir","–","–","–","–","–","–","–","–","–","–","–","–","–"]
["–",{"$f":"E228-SUM(H228:Q228)","v":0},"S.2.ERV","Aðrir verðbréfa- og fjárfestingarsjóðir",0,"–","–",0,0,0,0,0,0,0,0,0,0]
["–",0,"S.2.ERF","Fjármálafyrirtæki (ótalin annars staðar)",0,"–","–",0,0,0,0,0,0,0,0,0,0]
["–",{"$f":"E230-SUM(H230:Q230)","v":0},"S.2.ERO","Opinberir aðilar (ríki og sveitarfélög)",0,"–","–",0,0,0,0,0,0,0,0,0,0]
["–",0,"S.2.ERA","Önnur atvinnufyrirtæki, heimili og þjónusta við heimili",0,"–","–",0,0,0,0,0,0,0,0,0,0]
["–",0,null,"Niðurfærslur útlána",{"$f":"+E233+E234+E265","v":0},"–","–",{"$f":"+H233+H234+H265","v":0},{"$f":"+I233+I234+I265","v":0},0,0,0,0,0,0,0,0]
["–",0,null,"Almennar niðurfærslur",{"$f":"+EIGNIR!C624","v":0},"–","–",0,0,0,0,0,0,0,0,0,0]
["–",{"$f":"E234-SUM(H234:Q234)","v":0},null,"Sérstakar niðurfærslur",{"$f":"+EIGNIR!C625","v":0},"–","–",{"$f":"+SUM(H235,H249,H260,H263,H264)","v":0},0,0,0,0,0,0,0,0,0]
[{"$f":"+E235-SUM(F235:G235)","v":0},0,"S.11","Atvinnufyrirtæki",{"$f":"+SUM(E236:E248)","v":0},{"$f":"SUM(F236:F248)","v":0},{"$f":"SUM(G236:G248)","v":0},0,0,0,0,0,0,0,0,0,0]
[0,0,"S.11.LAB","Landbúnaður",0,0,0,0,0,0,0,0,0,0,0,0,0]
[0,0,"S.11.SJA","Fiskveiðar",0,0,0,0,0,0,0,0,0,0,0,0,0]
[0,0,"S.11.ILA","Iðnaður, vinnsla landbúnaðarafurða",0,0,0,0,0,0,0,0,0,0,0,0,0]
[0,0,"S.11.ISJ","Iðnaður, vinnsla sjávarafurða",0,0,0,0,0,0,0,0,0,0,0,0,0]
[0,0,"S.11.IAN","Iðnaður, annað",0,0,0,0,0,0,0,0,0,0,0,0,0]
[0,0,"S.11.RAF","Veitur (orku- og vatnsveitur)",0,0,0,0,0,0,0,0,0,0,0,0,0]
[0,0,"S.11.MAN","Byggingastarfsemi og mannvirkjagerð",0,0,0,0,0,0,0,0,0,0,0,0,0]
[0,0,"S.11.VEN","Verslun",0,0,0,0,0,0,0,0,0,0,0,0,0]
[0,0,"S.11.SAG","Samgöngur og flutningar",0,0,0,0,0,0,0,0,0,0,0,0,0]
[0,0,"S.11.THF","Þjónusta, fasteignafélög",0,0,0,0,0,0,0,0,0,0,0,0,0]
[0,0,"S.11.THH","Þjónusta, starfsemi höfuðstöðva",0,0,0,0,0,0,0,0,0,0,0,0,0]
[{"$f":"+E247-SUM(F247:G247)","v":0},{"$f":"E247-SUM(H247:Q247)","v":0},"S.11.THA","Þjónusta, annað",0,0,0,0,0,0,0,0,0,0,0,0,0]
[{"$f":"+E248-SUM(F248:G248)","v":0},{"$f":"E248-SUM(H248:Q248)","v":0},"S.11.OFL","Óflokkað",0,0,0,0,0,0,0,0,0,0,0,0,0]
[0,0,"S.12","Fjármálageiri",{"$f":"+SUM(E250:E259)","v":0},{"$f":"+SUM(F250:F259)","v":0},0,0,0,0,0,0,0,0,0,0,0]
[0,0,"S.122","Innlánsstofnanir",0,0,0,0,0,0,0,0,0,0,0,0,0]
[0,0,"S.122X","Innlánsstofnair í slitameðferð",0,0,0,0,0,0,0,0,0,0,0,0,0]
[0,0,"S.123","Peningamarkaðssjóðir",0,0,0,0,0,0,0,0,0,0,0,0,0]
[0,0,"S.124","Aðrir verðbréfa- og fjárfestingarsjóðir",0,0,0,0,0,0,0,0,0,0,0,0,0]
[0,0,"S.125","Önnur fjármálafyrirtæki",0,0,0,0,0,0,0,0,0,0,0,0,0]
[0,0,"S.125X","Önnur fjármálafyrirtæki í slitameðferð",0,0,0,0,0,0,0,0,0,0,0,0,0]
[0,0,"S.126","Fjármálaleg hliðarstarfsemi ",0,0,0,0,0,0,0,0,0,0,0,0,0]
[0,0,"S.127","Innbyrðis fjármálastarfsemi",0,0,0,0,0,0,0,0,0,0,0,0,0]
[0,0,"S.128","Vátryggingarfélög",0,0,0,0,0,0,0,0,0,0,0,0,0]
[0,0,"S.129","Lífeyrissjóðir",0,0,0,0,0,0,0,0,0,0,0,0,0]
["–",0,"S.13","Hið opinbera",{"$f":"+E261+E262","v":0},"–","–",{"$f":"+H261+H262","v":0},0,0,0,0,0,0,0,0,0]
["–",0,"S.1311","Ríkissjóður",0,"–","–",0,0,0,0,0,0,0,0,0,0]
["–",0,"S.1313","Sveitarfélög",0,"–","–",0,0,0,0,0,0,0,0,0,0]
["–",0,"S.14","Heimili",0,"–","–",0,0,0,0,0,0,0,0,0,0]
["–",0,"S.15.","Félagasamtök sem þjóna heimilum",0,"–","–",0,0,0,0,0,0,0,0,0,0]
["–",0,"S.2","Niðurfærslur útlána til erlendra aðila (almennar og sértækar)",{"$f":"+EIGNIR!C626","v":0},"–","–",{"$f":"+H266+H274+H282+H290","v":0},{"$f":"+I266+I274+I282+I290","v":0},0,0,0,0,0,0,0,0]
["–",0,null,"Lán til erlendra hludeildarfyrirtækja (10%-50%)",{"$f":"SUM(E267:E273)","v":0},"–","–",{"$f":"+SUM(H267:H273)","v":0},{"$f":"+SUM(I267:I273)","v":0},{"$f":"+SUM(J267:J273)","v":0},0,0,0,0,0,0,0]
["–","–","S.2.ERS","Seðlabankar","–","–","–","–","–","–","–","–","–","–","–","–","–"]
["–",0,"S.2.ERI","Innlánsstofnanir",0,"–","–",0,0,0,0,0,0,0,0,0,0]
["–","–","S.2.ERP","Peningamarkaðssjóðir","–","–","–","–","–","–","–","–","–","–","–","–","–"]
["–","–","S.2.ERV","Aðrir verðbréfa- og fjárfestingarsjóðir","–","–","–","–","–","–","–","–","–","–","–","–","–"]
["–",0,"S.2.ERF","Fjármálafyrirtæki (ótalin annars staðar)",0,"–","–",0,0,0,0,0,0,0,0,0,0]
["–","–","S.2.ERO","Opinberir aðilar (ríki og sveitarfélög)","–","–","–","–","–","–","–","–","–","–","–","–","–"]
["–",{"$f":"E273-SUM(H273:Q273)","v":0},"S.2.ERA","Önnur atvinnufyrirtæki, heimili og þjónusta við heimili",0,"–","–",0,0,0,0,0,0,0,0,0,0]
["–",0,null,"Lán til erlendra dótturfyrirtækja (> 50%)",{"$f":"SUM(E275:E281)","v":0},"–","–",{"$f":"+SUM(H275:H281)","v":0},{"$f":"+SUM(I275:I281)","v":0},{"$f":"+SUM(J275:J281)","v":0},{"$f":"+SUM(K275:K281)","v":0},{"$f":"+SUM(L275:L281)","v":0},{"$f":"+SUM(M275:M281)","v":0},{"$f":"+SUM(N275:N281)","v":0},{"$f":"+SUM(O275:O281)","v":0},{"$f":"+SUM(P275:P281)","v":0},{"$f":"+SUM(Q275:Q281)","v":0}]
["–","–","S.2.ERS","Seðlabankar","–","–","–","–","–","–","–","–","–","–","–","–","–"]
["–",0,"S.2.ERI","Innlánsstofnanir",0,"–","–",0,0,0,0,0,0,0,0,0,0]
["–","–","S.2.ERP","Peningamarkaðssjóðir","–","–","–","–","–","–","–","–","–","–","–","–","–"]
["–","–","S.2.ERV","Aðrir verðbréfa- og fjárfestingarsjóðir","–","–","–","–","–","–","–","–","–","–","–","–","–"]
["–",0,"S.2.ERF","Fjármálafyrirtæki (ótalin annars staðar)",0,"–","–",0,0,0,0,0,0,0,0,0,0]
["–","–","S.2.ERO","Opinberir aðilar (ríki og sveitarfélög)","–","–","–","–","–","–","–","–","–","–","–","–","–"]
["–",0,"S.2.ERA","Önnur atvinnufyrirtæki, heimili og þjónusta við heimili",0,"–","–",0,0,0,0,0,0,0,0,0,0]
["–",0,null,"Lán til erlendra \"fellow\" félaga",{"$f":"SUM(E283:E289)","v":0},"–","–",{"$f":"+SUM(H283:H289)","v":0},{"$f":"+SUM(I283:I289)","v":0},{"$f":"+SUM(J283:J289)","v":0},{"$f":"+SUM(K283:K289)","v":0},{"$f":"+SUM(L283:L289)","v":0},{"$f":"+SUM(M283:M289)","v":0},{"$f":"+SUM(N283:N289)","v":0},{"$f":"+SUM(O283:O289)","v":0},{"$f":"+SUM(P283:P289)","v":0},{"$f":"+SUM(Q283:Q289)","v":0}]
["–","–","S.2.ERS","Seðlabankar","–","–","–","–","–","–","–","–","–","–","–","–","–"]
["–",{"$f":"E284-SUM(H284:Q284)","v":0},"S.2.ERI","Innlánsstofnanir",0,"–","–",0,0,0,0,0,0,0,0,0,0]
["–","–","S.2.ERP","Peningamarkaðssjóðir","–","–","–","–","–","–","–","–","–","–","–","–","–"]
["–","–","S.2.ERV","Aðrir verðbréfa- og fjárfestingarsjóðir","–","–","–","–","–","–","–","–","–","–","–","–","–"]
["–",0,"S.2.ERF","Fjármálafyrirtæki (ótalin annars staðar)",0,"–","–",0,0,0,0,0,0,0,0,0,0]
["–","–","S.2.ERO","Opinberir aðilar (ríki og sveitarfélög)","–","–","–","–","–","–","–","–","–","–","–","–","–"]
["–",0,"S.2.ERA","Önnur atvinnufyrirtæki, heimili og þjónusta við heimili",0,"–","–",0,0,0,0,0,0,0,0,0,0]
["–",0,null,"Önnur erlend lán",{"$f":"SUM(E291:E297)","v":0},"–","–",{"$f":"+SUM(H291:H297)","v":0},0,0,0,0,0,0,0,0,0]
["–","–","S.2.ERS","Seðlabankar","–","–","–","–","–","–","–","–","–","–","–","–","–"]
["–",{"$f":"E292-SUM(H292:Q292)","v":0},"S.2.ERI","Innlánsstofnanir",0,"–","–",0,0,0,0,0,0,0,0,0,0]
["–","–","S.2.ERP","Peningamarkaðssjóðir","–","–","–","–","–","–","–","–","–","–","–","–","–"]
["–",{"$f":"E294-SUM(H294:Q294)","v":0},"S.2.ERV","Aðrir verðbréfa- og fjárfestingarsjóðir",0,"–","–",0,0,0,0,0,0,0,0,0,0]
["–",0,"S.2.ERF","Fjármálafyrirtæki (ótalin annars staðar)",0,"–","–",0,0,0,0,0,0,0,0,0,0]
["–",0,"S.2.ERO","Opinberir aðilar (ríki og sveitarfélög)",0,"–","–",0,0,0,0,0,0,0,0,0,0]
["–",0,"S.2.ERA","Önnur atvinnufyrirtæki, heimili og þjónusta við heimili",0,"–","–",0,0,0,0,0,0,0,0,0,0]
[]
[null,null,null,"Lárétt villupróf"]
[null,null,null,"Villupróf: Útlán",{"$f":"E10-E11-E42-E73-E104-E136-E168-E199","v":0},"–","–",{"$f":"H10-H11-H42-H73-H104-H136-H168-H199","v":0},{"$f":"I10-I11-I42-I73-I136-I168-I199","v":0},0,0,0,0,0,0,0,0]
[null,null,null,"Villupróf: Greiddar óinnleystar ábyrgðir",{"$f":"+E11-E12-E26-E37-E40-E41","v":0},"–","–",{"$f":"+H11-H12-H26-H37-H40-H41","v":0},0,0,0,0,0,0,0,0,0]
[null,null,null,"Villupróf: Greiddar óinnleystar ábyrgðir. Atvinnufyrirtæki",{"$f":"+E12-SUM(E13:E25)","v":0},"–","–",{"$f":"+H12-SUM(H13:H25)","v":0},0,0,0,0,0,0,0,0,0]
[null,null,null,"Villupróf: Greiddar óinnleystar ábyrgðir. Fjármálafyrirtæki",{"$f":"E26-E27-E28-E29-E30-E31-E32-E33-E34-E35-E36","v":0},0,0,0,0,0,0,0,0,0,0,0,0]
[null,null,null,"Villupróf: Greiddar óinnleystar ábyrgðir. Hið opinbera",{"$f":"E37-E38-E39","v":0},"–","–",{"$f":"H37-H38-H39","v":0},0,0,0,0,0,0,0,0,0]
[null,null,null,"Villupróf: Yfirdráttarlán",{"$f":"+E42-E43-E57-E68-E71-E72","v":0},"–","–",{"$f":"+H42-H43-H57-H68-H71-H72","v":0},0,0,0,0,0,0,0,0,0]
[null,null,null,"Villupróf: Yfirdráttarlán. Atvinnufyrirtæki",{"$f":"+E43-SUM(E44:E56)","v":0},"–","–",{"$f":"+H43-SUM(H44:H56)","v":0},0,0,0,0,0,0,0,0,0]
[null,null,null,"Villupróf: Yfirdráttarlán. Fjármálafyrirtæki",{"$f":"E57-E58-E59-E60-E61-E62-E63-E64-E65-E66-E67","v":0},{"$f":"F57-F58-F59-F60-F61-F62-F63-F64-F65-F66-F67","v":0},0,0,0,0,0,0,0,0,0,0,0]
[null,null,null,"Villupróf: Yfirdráttarlán. Hið opinbera",{"$f":"E68-E69-E70","v":0},"–","–",{"$f":"H68-H69-H70","v":0},0,0,0,0,0,0,0,0,0]
[null,null,null,"Villupróf: Víxlar",{"$f":"+E73-E74-E88-E99-E102-E103","v":0},"–","–",{"$f":"+H73-H74-H88-H99-H102-H103","v":0},0,0,0,0,0,0,0,0,0]
[null,null,null,"Villupróf: Víxlar. Atvinnufyrirtæki",{"$f":"+E74-SUM(E75:E87)","v":0},"–","–",{"$f":"+H74-SUM(H75:H87)","v":0},0,0,0,0,0,0,0,0,0]
[null,null,null,"Villupróf: Víxlar. Fjármálafyrirtæki",{"$f":"E88-E89-E90-E91-E92-E93-E94-E95-E96-E97-E98","v":0},{"$f":"F88-F89-F90-F91-F92-F93-F94-F95-F96-F97-F98","v":0},0,0,0,0,0,0,0,0,0,0,0]
[null,null,null,"Villupróf: Víxlar. Hið opinbera",{"$f":"E99-E100-E101","v":0},"–","–",0,0,0,0,0,0,0,0,0,0]
[null,null,null,"Villupróf: Verðtryggð skuldabréf",{"$f":"+E104-E105-E119-E130-E133-E134-E135","v":0},"–","–",{"$f":"+H104-H105-H119-H130-H133-H134-H135","v":0},"–","–","–","–","–","–","–","–","–"]
[null,null,null,"Villupróf: Verðtryggð skuldabréf. Atvinnufyrirtæki",{"$f":"+E105-SUM(E106:E118)","v":0},"–","–",{"$f":"+H105-SUM(H106:H118)","v":0},"–","–","–","–","–","–","–","–","–"]
[null,null,null,"Villupróf: Verðtryggð skuldabréf. Fjármálafyrirtæki",{"$f":"E119-E120-E121-E122-E123-E124-E125-E126-E127-E128-E129","v":0},{"$f":"F119-F120-F121-F122-F123-F124-F125-F126-F127-F128-F129","v":0},0,0,"–","–","–","–","–","–","–","–","–"]
[null,null,null,"Villupróf: Verðtryggð skuldabréf. Hið opinbera",{"$f":"E130-E131-E132","v":0},"–","–",{"$f":"H130-H131-H132","v":0},"–","–","–","–","–","–","–","–","–"]
[null,null,null,"Villupróf: Verðtryggð skuldabréf. Heimili",{"$f":"+EIGNIR!C556-'Sundurliðun Útlán'!E133-'Sundurliðun Útlán'!E134","v":0},"–","–","–","–","–","–","–","–","–","–","–","–"]
[null,null,null,"Villupróf: Önnur útlán",{"$f":"+E136-E137-E151-E162-E165-E166-E167","v":0},"–","–",{"$f":"+H136-H137-H151-H162-H165-H166-H167","v":0},0,0,0,0,0,0,0,0,0]
[null,null,null,"Villupróf: Önnur útlán. Atvinnufyrirtæki",{"$f":"+E137-SUM(E138:E150)","v":0},"–","–",{"$f":"+H137-SUM(H138:H150)","v":0},0,0,0,0,0,0,0,0,0]
[null,null,null,"Villupróf: Önnur útlán. Fjármálafyrirtæki",{"$f":"E151-E152-E153-E154-E155-E156-E157-E158-E159-E160-E161","v":0},{"$f":"F151-F152-F153-F154-F155-F156-F157-F158-F159-F160-F161","v":0},0,0,0,0,0,0,0,0,0,0,0]
[null,null,null,"Villupróf: Önnur útlán. Hið opinbera",{"$f":"E162-E163-E164","v":0},"–","–",{"$f":"H162-H163-H164","v":0},0,0,0,0,0,0,0,0,0]
[null,null,null,"Villupróf: Önnur útlán. Heimili",{"$f":"+EIGNIR!C588-'Sundurliðun Útlán'!E165-'Sundurliðun Útlán'!E166","v":0},"–","–","–","–","–","–","–","–","–","–","–","–"]
[null,null,null,"Villupróf: Eignaleigusamningar",{"$f":"+E168-E169-E183-E194-E197-E198","v":0},"–","–",{"$f":"+H168-H169-H183-H194-H197-H198","v":0},0,0,0,0,0,0,0,0,0]
[null,null,null,"Villupróf: Eignaleigusamningar. Atvinnufyrirtæki",{"$f":"+E169-SUM(E170:E182)","v":0},"–","–",{"$f":"+H169-SUM(H170:H182)","v":0},0,0,0,0,0,0,0,0,0]
[null,null,null,"Villupróf: Eignaleigusamningar. Fjármálafyrirtæki",{"$f":"E183-E184-E185-E186-E187-E188-E189-E190-E191-E192-E193","v":0},{"$f":"F183-F184-F185-F186-F187-F188-F189-F190-F191-F192-F193","v":0},0,0,0,0,0,0,0,0,0,0,0]
[null,null,null,"Villupróf: Eignaleigusamningar. Hið opinbera",{"$f":"E194-E195-E196","v":0},"–","–",{"$f":"H194-H195-H196","v":0},0,0,0,0,0,0,0,0,0]
[null,null,null,"Villupróf: Útlán til erlendra aðila",{"$f":"+E199-SUM(E200,E208,E216,E224)","v":0},"–","–",{"$f":"+H199-SUM(H200,H208,H216,H224)","v":0},0,0,0,0,0,0,0,0,0]
[null,null,null,"Villupróf: Niðurfærslur útlána",{"$f":"+E232-SUM(E233:E234)-E265","v":0},"–","–",{"$f":"+H232-SUM(H233:H234)-H265","v":0},0,0,0,0,0,0,0,0,0]
[null,null,null,"Villupróf: Niðurfærslur útlána (erlendir aðilar)",{"$f":"+E265-SUM(E266,E274,E282,E290)","v":0},"–","–",{"$f":"+H265-SUM(H266,H274,H282,H290)","v":0},0,0,0,0,0,0,0,0,0]

{"sheet":"Sundurliðun Afleiður - eignir","index":9,"n_rows":90,"n_cols":17,"rows_kept":90,"cut":false,"hidden":false,"merged":[[2,4,3,4],[2,5,2,6],[2,7,2,16]]}
[null,null,null,"Afleiður (eignir)"]
[]
["Lóðrétt villupróf",null,null,"Fjárhæðir í þús.kr","Samtals","Eignarhald mótaðila",null,"Myntskipting"]
["Eignarhald","Myntskipting",null,null,null,"Opinbert fyrirtæki","Einka- fyrirtæki","ISK","EUR","USD","GBP","JPY","DKK","NOK","SEK","CHF","Aðrir gjaldmiðlar"]
["–",{"$f":"+E5-SUM(H5:Q5)","v":0},null,"Afleiður ",{"$f":"+EIGNIR!C35+EIGNIR!C725","v":0},"–","–",{"$f":"+H6+H32+H58","v":0},0,0,0,0,0,0,0,0,0]
["–",{"$f":"+E6-SUM(H6:Q6)","v":0},null,"Valréttir",{"$f":"+E7+E8+E19+E22+E23+E24","v":0},"–","–",{"$f":"SUM(H7,H8,H19,H22,H23,H24)","v":0},0,0,0,0,0,0,0,0,0]
[{"$f":"+E7-SUM(F7:G7)","v":0},{"$f":"+E7-SUM(H7:Q7)","v":0},"S.11","Atvinnufyrirtæki",0,0,0,0,0,0,0,0,0,0,0,0,0]
[{"$f":"+E8-SUM(F8:G8)","v":0},{"$f":"+E8-SUM(H8:Q8)","v":0},"S.12","Fjármálalgeiri",{"$f":"+SUM(E9:E18)","v":0},{"$f":"+SUM(F9:F18)","v":0},{"$f":"+SUM(G9:G18)","v":0},0,0,0,0,0,0,0,0,0,0]
[{"$f":"+E9-SUM(F9:G9)","v":0},{"$f":"+E9-SUM(H9:Q9)","v":0},"S.122","Innlánsstofnanir",0,0,0,0,0,0,0,0,0,0,0,0,0]
[{"$f":"+E10-SUM(F10:G10)","v":0},{"$f":"+E10-SUM(H10:Q10)","v":0},"S.122X","Innlánsstofnanir í slitameðferð",0,0,0,0,0,0,0,0,0,0,0,0,0]
[0,0,"S.123","Peningamarkaðssjóðir",0,0,0,0,0,0,0,0,0,0,0,0,0]
[0,0,"S.124","Aðrir verðbréfa- og fjárfestingarsjóðir ",0,0,0,0,0,0,0,0,0,0,0,0,0]
[0,{"$f":"+E13-SUM(H13:Q13)","v":0},"S.125","Önnur fjármálafyrirtæki",0,0,0,0,0,0,0,0,0,0,0,0,0]
[{"$f":"+E14-SUM(F14:G14)","v":0},{"$f":"+E14-SUM(H14:Q14)","v":0},"S.125X","Önnur fjármálafyrirtæki í slitameðferð",0,0,0,0,0,0,0,0,0,0,0,0,0]
[0,0,"S.126","Fjármálaleg hliðarstarfsemi",0,0,0,0,0,0,0,0,0,0,0,0,0]
[0,0,"S.127","Innbyrðis fjármálastarfsemi",0,0,0,0,0,0,0,0,0,0,0,0,0]
[0,0,"S.128","Vátryggingarfélög",0,0,0,0,0,0,0,0,0,0,0,0,0]
[0,0,"S.129","Lífeyrissjóðir",0,0,0,0,0,0,0,0,0,0,0,0,0]
["–",0,"S.13","Hið opinbera",{"$f":"+E20+E21","v":0},"–","–",{"$f":"+SUM(H20:H21)","v":0},{"$f":"+SUM(I20:I21)","v":0},0,0,0,0,0,0,0,0]
["–",0,"S.1311","Ríkisjóður",0,"–","–",0,0,0,0,0,0,0,0,0,0]
["–",0,"S.1313","Sveitarfélög",0,"–","–",0,0,0,0,0,0,0,0,0,0]
["–",0,"S.14","Heimili",0,"–","–",0,0,0,0,0,0,0,0,0,0]
["–",0,"S.15","Félagasamtök sem þjóna heimilum",0,"–","–",0,0,0,0,0,0,0,0,0,0]
["–",0,"S.2","Erlendir aðilar",{"$f":"+SUM(E25:E31)","v":0},"–","–",{"$f":"+SUM(H25:H31)","v":0},0,0,0,0,0,0,0,0,0]
["–",{"$f":"+E25-SUM(H25:Q25)","v":0},"S.2.ERS","Seðlabankar",0,"–","–",0,0,0,0,0,0,0,0,0,0]
["–",{"$f":"+E26-SUM(H26:Q26)","v":0},"S.2.ERI","Innlánsstofnanir",0,"–","–",0,0,0,0,0,0,0,0,0,0]
["–",0,"S.2.ERP","Peningamarkaðssjóðir",0,"–","–",0,0,0,0,0,0,0,0,0,0]
["–",0,"S.2.ERV","Aðrir verðbréfa og fjárfestingarsjóðir",0,"–","–",0,0,0,0,0,0,0,0,0,0]
["–",0,"S.2.ERF","Fjármálafyrirtæki (ótalin annars staðar)",0,"–","–",0,0,0,0,0,0,0,0,0,0]
["–",0,"S.2.ERO","Opinberir aðilar (ríki og sveitarfélög)",0,"–","–",0,0,0,0,0,0,0,0,0,0]
["–",0,"S.2.ERA","Önnur atvinnufyrirtæki, heimili og þjónusta við heimili",0,"–","–",0,0,0,0,0,0,0,0,0,0]
["–",0,null,"Framvirkir samningar",{"$f":"+E33+E34+E45+E48+E49+E50","v":0},"–","–",{"$f":"SUM(H33,H34,H45,H48,H49,H50)","v":0},0,0,0,0,0,0,0,0,0]
[{"$f":"+E33-SUM(F33:G33)","v":0},0,"S.11","Atvinnufyrirtæki",0,0,0,0,0,0,0,0,0,0,0,0,0]
[{"$f":"+E34-SUM(F34:G34)","v":0},0,"S.12","Fjármálalgeiri",{"$f":"+SUM(E35:E44)","v":0},{"$f":"+SUM(F35:F44)","v":0},0,0,0,0,0,0,0,0,0,0,0]
[{"$f":"+E35-SUM(F35:G35)","v":0},{"$f":"+E35-SUM(H35:Q35)","v":0},"S.122","Innlánsstofnanir",0,0,0,0,0,0,0,0,0,0,0,0,0]
[{"$f":"+E36-SUM(F36:G36)","v":0},{"$f":"+E36-SUM(H36:Q36)","v":0},"S.122X","Innlánsstofnanir í slitameðferð",0,0,0,0,0,0,0,0,0,0,0,0,0]
[0,0,"S.123","Peningamarkaðssjóðir",0,0,0,0,0,0,0,0,0,0,0,0,0]
[0,0,"S.124","Aðrir verðbréfa- og fjárfestingarsjóðir ",0,0,0,0,0,0,0,0,0,0,0,0,0]
[0,0,"S.125","Önnur fjármálafyrirtæki",0,0,0,0,0,0,0,0,0,0,0,0,0]
[0,0,"S.125X","Önnur fjármálafyrirtæki í slitameðferð",0,0,0,0,0,0,0,0,0,0,0,0,0]
[0,0,"S.126","Fjármálaleg hliðarstarfsemi",0,0,0,0,0,0,0,0,0,0,0,0,0]
[0,0,"S.127","Innbyrðis fjármálastarfsemi",0,0,0,0,0,0,0,0,0,0,0,0,0]
[0,0,"S.128","Vátryggingarfélög",0,0,0,0,0,0,0,0,0,0,0,0,0]
[0,0,"S.129","Lífeyrissjóðir",0,0,0,0,0,0,0,0,0,0,0,0,0]
["–",0,"S.13","Hið opinbera",{"$f":"+E46+E47","v":0},"–","–",{"$f":"+SUM(H46:H47)","v":0},{"$f":"+SUM(I46:I47)","v":0},{"$f":"+SUM(J46:J47)","v":0},{"$f":"+SUM(K46:K47)","v":0},{"$f":"+SUM(L46:L47)","v":0},{"$f":"+SUM(M46:M47)","v":0},{"$f":"+SUM(N46:N47)","v":0},{"$f":"+SUM(O46:O47)","v":0},{"$f":"+SUM(P46:P47)","v":0},{"$f":"+SUM(Q46:Q47)","v":0}]
["–",0,"S.1311","Ríkisjóður",0,"–","–",0,0,0,0,0,0,0,0,0,0]
["–",0,"S.1313","Sveitarfélög",0,"–","–",0,0,0,0,0,0,0,0,0,0]
["–",0,"S.14","Heimili",0,"–","–",0,0,0,0,0,0,0,0,0,0]
["–",0,"S.15","Félagasamtök sem þjóna heimilum",0,"–","–",0,0,0,0,0,0,0,0,0,0]
["–",0,"S.2","Erlendir aðilar",{"$f":"+SUM(E51:E57)","v":0},"–","–",{"$f":"+SUM(H51:H57)","v":0},{"$f":"+SUM(I51:I57)","v":0},{"$f":"+SUM(J51:J57)","v":0},{"$f":"+SUM(K51:K57)","v":0},{"$f":"+SUM(L51:L57)","v":0},{"$f":"+SUM(M51:M57)","v":0},{"$f":"+SUM(N51:N57)","v":0},{"$f":"+SUM(O51:O57)","v":0},{"$f":"+SUM(P51:P57)","v":0},{"$f":"+SUM(Q51:Q57)","v":0}]
["–",0,"S.2.ERS","Seðlabankar",0,"–","–",0,0,0,0,0,0,0,0,0,0]
["–",{"$f":"+E52-SUM(H52:Q52)","v":0},"S.2.ERI","Innlánsstofnanir",0,"–","–",0,0,0,0,0,0,0,0,0,0]
["–",0,"S.2.ERP","Peningamarkaðssjóðir",0,"–","–",0,0,0,0,0,0,0,0,0,0]
["–",0,"S.2.ERV","Aðrir verðbréfa og fjárfestingarsjóðir",0,"–","–",0,0,0,0,0,0,0,0,0,0]
["–",0,"S.2.ERF","Fjármálafyrirtæki (ótalin annars staðar)",0,"–","–",0,0,0,0,0,0,0,0,0,0]
["–",0,"S.2.ERO","Opinberir aðilar (ríki og sveitarfélög)",0,"–","–",0,0,0,0,0,0,0,0,0,0]
["–",0,"S.2.ERA","Önnur atvinnufyrirtæki, heimili og þjónusta við heimili",0,"–","–",0,0,0,0,0,0,0,0,0,0]
["–",0,null,"Skiptasamningar",{"$f":"+E59+E60+E71+E74+E75+E76","v":0},"–","–",{"$f":"SUM(H59,H60,H71,H74,H75,H76)","v":0},0,0,0,0,0,0,0,0,0]
[{"$f":"+E59-SUM(F59:G59)","v":0},0,"S.11","Atvinnufyrirtæki",0,0,0,0,0,0,0,0,0,0,0,0,0]
[{"$f":"+E60-SUM(F60:G60)","v":0},0,"S.12","Fjármálalgeiri",{"$f":"+SUM(E61:E70)","v":0},{"$f":"+SUM(F61:F70)","v":0},0,0,0,0,0,0,0,0,0,0,0]
[{"$f":"+E61-SUM(F61:G61)","v":0},{"$f":"+E61-SUM(H61:Q61)","v":0},"S.122","Innlánsstofnanir",0,0,0,0,0,0,0,0,0,0,0,0,0]
[{"$f":"+E62-SUM(F62:G62)","v":0},{"$f":"+E62-SUM(H62:Q62)","v":0},"S.122X","Innlánsstofnanir í slitameðferð",0,0,0,0,0,0,0,0,0,0,0,0,0]
[0,0,"S.123","Peningamarkaðssjóðir",0,0,0,0,0,0,0,0,0,0,0,0,0]
[0,0,"S.124","Aðrir verðbréfa- og fjárfestingarsjóðir ",0,0,0,0,0,0,0,0,0,0,0,0,0]
[0,0,"S.125","Önnur fjármálafyrirtæki",0,0,0,0,0,0,0,0,0,0,0,0,0]
[{"$f":"+E66-SUM(F66:G66)","v":0},{"$f":"+E66-SUM(H66:Q66)","v":0},"S.125X","Önnur fjármálafyrirtæki í slitameðferð",0,0,0,0,0,0,0,0,0,0,0,0,0]
[0,0,"S.126","Fjármálaleg hliðarstarfsemi",0,0,0,0,0,0,0,0,0,0,0,0,0]
[0,0,"S.127","Innbyrðis fjármálastarfsemi",0,0,0,0,0,0,0,0,0,0,0,0,0]
[0,0,"S.128","Vátryggingarfélög",0,0,0,0,0,0,0,0,0,0,0,0,0]
[0,0,"S.129","Lífeyrissjóðir",0,0,0,0,0,0,0,0,0,0,0,0,0]
["–",0,"S.13","Hið opinbera",{"$f":"+E72+E73","v":0},"–","–",{"$f":"+SUM(H72:H73)","v":0},{"$f":"+SUM(I72:I73)","v":0},{"$f":"+SUM(J72:J73)","v":0},{"$f":"+SUM(K72:K73)","v":0},{"$f":"+SUM(L72:L73)","v":0},{"$f":"+SUM(M72:M73)","v":0},{"$f":"+SUM(N72:N73)","v":0},{"$f":"+SUM(O72:O73)","v":0},{"$f":"+SUM(P72:P73)","v":0},{"$f":"+SUM(Q72:Q73)","v":0}]
["–",0,"S.1311","Ríkisjóður",0,"–","–",0,0,0,0,0,0,0,0,0,0]
["–",0,"S.1313","Sveitarfélög",0,"–","–",0,0,0,0,0,0,0,0,0,0]
["–",0,"S.14","Heimili",{"$f":"+SUM(H74:Q74)","v":0},"–","–",0,0,0,0,0,0,0,0,0,0]
["–",0,"S.15","Félagasamtök sem þjóna heimilum",0,"–","–",0,0,0,0,0,0,0,0,0,0]
["–",0,"S.2","Erlendir aðilar",{"$f":"+SUM(E77:E83)","v":0},"–","–",{"$f":"+SUM(H77:H83)","v":0},{"$f":"+SUM(I77:I83)","v":0},{"$f":"+SUM(J77:J83)","v":0},{"$f":"+SUM(K77:K83)","v":0},{"$f":"+SUM(L77:L83)","v":0},{"$f":"+SUM(M77:M83)","v":0},{"$f":"+SUM(N77:N83)","v":0},{"$f":"+SUM(O77:O83)","v":0},{"$f":"+SUM(P77:P83)","v":0},{"$f":"+SUM(Q77:Q83)","v":0}]
["–",0,"S.2.ERS","Seðlabankar",0,"–","–",0,0,0,0,0,0,0,0,0,0]
["–",{"$f":"+E78-SUM(H78:Q78)","v":0},"S.2.ERI","Innlánsstofnanir",0,"–","–",0,0,0,0,0,0,0,0,0,0]
["–",0,"S.2.ERP","Peningamarkaðssjóðir",0,"–","–",0,0,0,0,0,0,0,0,0,0]
["–",0,"S.2.ERV","Aðrir verðbréfa- og fjárfestingarsjóðir",0,"–","–",0,0,0,0,0,0,0,0,0,0]
["–",0,"S.2.ERF","Fjármálafyrirtæki (ótalin annars staðar)",0,"–","–",0,0,0,0,0,0,0,0,0,0]
["–",0,"S.2.ERO","Opinberir aðilar (ríki og sveitarfélög)",0,"–","–",0,0,0,0,0,0,0,0,0,0]
["–",0,"S.2.ERA","Önnur atvinnufyrirtæki, heimili og þjónusta við heimili",0,"–","–",0,0,0,0,0,0,0,0,0,0]
[]
[]
[null,null,null,"Lárétt villupróf"]
[null,null,null,"Villupróf: Afleiður",{"$f":"E5-E6-E32-E58","v":0},"–","–",{"$f":"H5-H6-H32-H58","v":0},0,0,0,0,0,0,0,0,0]
[null,null,null,"Villupróf: Valréttir",{"$f":"+E6-E7-E8-E19-E22-E23-E24","v":0},"–","–",{"$f":"+H6-H7-H8-H19-H22-H23-H24","v":0},0,0,0,0,0,0,0,0,0]
[null,null,null,"Villupróf: Framvirkir samningar",{"$f":"+E32-E33-E34-E45-E48-E49-E50","v":0},"–","–",{"$f":"+H32-H33-H34-H45-H48-H49-H50","v":0},0,0,0,0,0,0,0,0,0]
[null,null,null,"Villupróf: Skiptasamningar",{"$f":"+E58-E59-E60-E71-E74-E75-E76","v":0},"–","–",{"$f":"+H58-H59-H60-H71-H74-H75-H76","v":0},0,0,0,0,0,0,0,0,0]

{"sheet":"Sundurliðun Innlán","index":10,"n_rows":202,"n_cols":17,"rows_kept":202,"cut":false,"hidden":false,"merged":[[2,4,3,4],[2,7,2,16],[2,5,2,6]]}
[null,null,null,"Innlán"]
[]
["Lóðrétt villupróf",null,null,"Fjárhæðir í þús.kr","Samtals","Eignarhald mótaðila",null,"Myntskipting"]
["Eignarhald","Myntskipting",null,null,null,"Opinbert fyrirtæki","Einka- fyrirtæki","ISK","EUR","USD","GBP","JPY","DKK","NOK","SEK","CHF","Aðrir gjaldmiðlar"]
["–",{"$f":"+E5-SUM(H5:Q5)","v":0},null,"Innlán",{"$f":"+SKULDIR!C37","v":0},"–","–",{"$f":"SUM(H6,H45,H84,H123,H126,H129)","v":0},{"$f":"SUM(I6,I45,I84,I123,I126,I129)","v":0},0,0,0,0,0,0,0,0]
["–",{"$f":"+E6-SUM(H6:Q6)","v":0},null,"Veltiinnlán",{"$f":"+SKULDIR!C38","v":0},"–","–",{"$f":"SUM(H7,H21,H32,H35,H36,H37)","v":0},{"$f":"SUM(I7,I21,I32,I35,I36,I37)","v":0},0,0,0,0,0,0,0,0]
[{"$f":"+E7-SUM(F7:G7)","v":0},0,"S.11","Atvinnufyrirtæki",{"$f":"+SKULDIR!C39","v":0},0,0,{"$f":"SUM(H8:H20)","v":0},{"$f":"SUM(I8:I20)","v":0},0,0,0,0,0,0,0,{"$f":"SUM(Q8:Q20)","v":0}]
["–",{"$f":"+E8-SUM(H8:Q8)","v":0},"S.11.LAB","Landbúnaður",{"$f":"+SKULDIR!C40","v":0},"–","–",0,0,0,0,0,0,0,0,0,0]
["–",{"$f":"+E9-SUM(H9:Q9)","v":0},"S.11.SJA","Fiskveiðar",{"$f":"+SKULDIR!C41","v":0},"–","–",0,0,0,0,0,0,0,0,0,0]
["–",0,"S.11.ILA","Iðnaður, vinnsla landbúnaðarafurða",{"$f":"+SKULDIR!C42","v":0},"–","–",0,0,0,0,0,0,0,0,0,0]
["–",0,"S.11.ISJ","Iðnaður, vinnsla sjávarafurða",{"$f":"+SKULDIR!C43","v":0},"–","–",0,0,0,0,0,0,0,0,0,0]
["–",0,"S.11.IAN","Iðnaður, annað",{"$f":"+SKULDIR!C44","v":0},"–","–",0,0,0,0,0,0,0,0,0,0]
["–",0,"S.11.RAF","Veitur (orku- og vatnsveitur)",{"$f":"+SKULDIR!C45","v":0},"–","–",0,0,0,0,0,0,0,0,0,0]
["–",0,"S.11.MAN","Byggingastarfsemi og mannvirkjagerð",{"$f":"+SKULDIR!C46","v":0},"–","–",0,0,0,0,0,0,0,0,0,0]
["–",0,"S.11.VEN","Verslun",{"$f":"+SKULDIR!C47","v":0},"–","–",0,0,0,0,0,0,0,0,0,0]
["–",0,"S.11.SAG","Samgöngur og flutningar",{"$f":"+SKULDIR!C48","v":0},"–","–",0,0,0,0,0,0,0,0,0,0]
["–",0,"S.11.THF","Þjónusta, fasteignafélög",{"$f":"+SKULDIR!C49","v":0},"–","–",0,0,0,0,0,0,0,0,0,0]
["–",0,"S.11.THH","Þjónusta, starfsemi höfuðstöðva",{"$f":"+SKULDIR!C50","v":0},"–","–",0,0,0,0,0,0,0,0,0,0]
["–",0,"S.11.THA","Þjónusta, annað",{"$f":"+SKULDIR!C51","v":0},"–","–",0,0,0,0,0,0,0,0,0,0]
["–",{"$f":"+E20-SUM(H20:Q20)","v":0},"S.11.OFL.","Óflokkað",{"$f":"+SKULDIR!C52","v":0},"–","–",0,0,0,0,0,0,0,0,0,0]
[0,0,"S.12","Fjármálageiri",{"$f":"+SKULDIR!C53","v":0},{"$f":"+SUM(F22:F31)","v":0},{"$f":"+SUM(G22:G31)","v":0},{"$f":"+SUM(H22:H31)","v":0},{"$f":"+SUM(I22:I31)","v":0},{"$f":"+SUM(J22:J31)","v":0},0,0,0,0,0,0,0]
[{"$f":"+E22-SUM(F22:G22)","v":0},{"$f":"+E22-SUM(H22:Q22)","v":0},"S.122","Innlánsstofnanir",{"$f":"+SKULDIR!C54","v":0},0,0,0,0,0,0,0,0,0,0,0,0]
[0,0,"S.122X","Innlánsstofnanir í slitameðferð",{"$f":"+SKULDIR!C55","v":0},0,0,0,0,0,0,0,0,0,0,0,0]
[0,0,"S.123","Peningamarkaðssjóðir",{"$f":"+SKULDIR!C56","v":0},0,0,0,0,0,0,0,0,0,0,0,0]
[0,0,"S.124","Aðrir verðbréfa- og fjárfestingarsjóðir ",{"$f":"+SKULDIR!C57","v":0},0,0,0,0,0,0,0,0,0,0,0,0]
[0,0,"S.125","Önnur fjármálafyrirtæki",{"$f":"+SKULDIR!C58","v":0},0,0,0,0,0,0,0,0,0,0,0,0]
[0,0,"S.125X","Önnur fjármálafyrirtæki í slitameðferð",{"$f":"+SKULDIR!C59","v":0},0,0,0,0,0,0,0,0,0,0,0,0]
[0,0,"S.126","Fjármálaleg hliðarstarfsemi ",{"$f":"+SKULDIR!C60","v":0},0,0,0,0,0,0,0,0,0,0,0,0]
[0,0,"S.127","Innbyrðis fjármálastarfsemi",{"$f":"+SKULDIR!C61","v":0},0,0,0,0,0,0,0,0,0,0,0,0]
[0,0,"S.128","Vátryggingarfélög",{"$f":"+SKULDIR!C62","v":0},0,0,0,0,0,0,0,0,0,0,0,0]
[0,0,"S.129","Lífeyrissjóðir",{"$f":"+SKULDIR!C63","v":0},0,0,0,0,0,0,0,0,0,0,0,0]
["–",0,"S.13","Hið opinbera",{"$f":"+SKULDIR!C64","v":0},"–","–",{"$f":"+SUM(H33:H34)","v":0},{"$f":"+SUM(I33:I34)","v":0},0,0,0,0,0,0,0,0]
["–",{"$f":"+E33-SUM(H33:Q33)","v":0},"S.1311","Ríkissjóður",{"$f":"+SKULDIR!C65","v":0},"–","–",0,0,0,0,0,0,0,0,0,0]
["–",0,"S.1313","Sveitarfélög",{"$f":"+SKULDIR!C66","v":0},"–","–",0,0,0,0,0,0,0,0,0,0]
["–",0,"S.14","Heimili",{"$f":"+SKULDIR!C67","v":0},"–","–",0,0,0,0,0,0,0,0,0,0]
["–",0,"S.15","Félagasamtök sem þjóna heimilum",{"$f":"+SKULDIR!C68","v":0},"–","–",0,0,0,0,0,0,0,0,0,0]
["–",0,"S.2","Erlendir aðilar",{"$f":"+SKULDIR!C69","v":0},"–","–",{"$f":"+SUM(H38:H44)","v":0},{"$f":"+SUM(I38:I44)","v":0},0,0,0,0,0,0,0,0]
["–",0,"S.2.ERS","Seðlabankar",0,"–","–",0,0,0,0,0,0,0,0,0,0]
["–",0,"S.2.ERI","Innlánsstofnanir",0,"–","–",0,0,0,0,0,0,0,0,0,0]
["–",0,"S.2.ERP","Peningamarkaðssjóðir",0,"–","–",0,0,0,0,0,0,0,0,0,0]
["–",{"$f":"+E41-SUM(H41:Q41)","v":0},"S.2.ERV","Aðrir verðbréfa- og fjárfestingarsjóðir",0,"–","–",0,0,0,0,0,0,0,0,0,0]
["–",0,"S.2.ERF","Fjármálafyrirtæki (ótalin annars staðar)",0,"–","–",0,0,0,0,0,0,0,0,0,0]
["–",0,"S.2.ERO","Opinberir aðilar (ríki og sveitarfélög)",0,"–","–",0,0,0,0,0,0,0,0,0,0]
["–",0,"S.2.ERA","Önnur atvinnufyrirtæki, heimili og þjónusta við heimili",0,"–","–",0,0,0,0,0,0,0,0,0,0]
["–",0,null,"Óbundin innlán",{"$f":"+SKULDIR!C70","v":0},"–","–",{"$f":"SUM(H46,H60,H71,H74,H75,H76)","v":0},{"$f":"SUM(I46,I60,I71,I74,I75,I76)","v":0},0,0,0,0,0,0,0,{"$f":"SUM(Q46,Q60,Q71,Q74,Q75,Q76)","v":0}]
[{"$f":"+E46-SUM(F46:G46)","v":0},0,"S.11","Atvinnufyrirtæki",{"$f":"+SKULDIR!C71","v":0},0,0,{"$f":"SUM(H47:H59)","v":0},{"$f":"SUM(I47:I59)","v":0},0,0,0,0,0,0,0,0]
["–",{"$f":"+E47-SUM(H47:Q47)","v":0},"S.11.LAB","Landbúnaður",{"$f":"+SKULDIR!C72","v":0},"–","–",0,0,0,0,0,0,0,0,0,0]
["–",{"$f":"+E48-SUM(H48:Q48)","v":0},"S.11.SJA","Fiskveiðar",{"$f":"+SKULDIR!C73","v":0},"–","–",0,0,0,0,0,0,0,0,0,0]
["–",0,"S.11.ILA","Iðnaður, vinnsla landbúnaðarafurða",{"$f":"+SKULDIR!C74","v":0},"–","–",0,0,0,0,0,0,0,0,0,0]
["–",0,"S.11.ISJ","Iðnaður, vinnsla sjávarafurða",{"$f":"+SKULDIR!C75","v":0},"–","–",0,0,0,0,0,0,0,0,0,0]
["–",0,"S.11.IAN","Iðnaður, annað",{"$f":"+SKULDIR!C76","v":0},"–","–",0,0,0,0,0,0,0,0,0,0]
["–",0,"S.11.RAF","Veitur (orku- og vatnsveitur)",{"$f":"+SKULDIR!C77","v":0},"–","–",0,0,0,0,0,0,0,0,0,0]
["–",0,"S.11.MAN","Byggingastarfsemi og mannvirkjagerð",{"$f":"+SKULDIR!C78","v":0},"–","–",0,0,0,0,0,0,0,0,0,0]
["–",0,"S.11.VEN","Verslun",{"$f":"+SKULDIR!C79","v":0},"–","–",0,0,0,0,0,0,0,0,0,0]
["–",0,"S.11.SAG","Samgöngur og flutningar",{"$f":"+SKULDIR!C80","v":0},"–","–",0,0,0,0,0,0,0,0,0,0]
["–",0,"S.11.THF","Þjónusta, fasteignafélög",{"$f":"+SKULDIR!C81","v":0},"–","–",0,0,0,0,0,0,0,0,0,0]
["–",0,"S.11.THH","Þjónusta, starfsemi höfuðstöðva",{"$f":"+SKULDIR!C82","v":0},"–","–",0,0,0,0,0,0,0,0,0,0]
["–",0,"S.11.THA","Þjónusta, annað",{"$f":"+SKULDIR!C83","v":0},"–","–",0,0,0,0,0,0,0,0,0,0]
["–",{"$f":"+E59-SUM(H59:Q59)","v":0},"S.11.OFL.","Óflokkað",{"$f":"+SKULDIR!C84","v":0},"–","–",0,0,0,0,0,0,0,0,0,0]
[0,0,"S.12","Fjármálageiri",{"$f":"+SKULDIR!C85","v":0},{"$f":"+SUM(F61:F70)","v":0},{"$f":"+SUM(G61:G70)","v":0},{"$f":"+SUM(H61:H70)","v":0},{"$f":"+SUM(I61:I70)","v":0},{"$f":"+SUM(J61:J70)","v":0},0,0,0,0,0,0,0]
[{"$f":"+E61-SUM(F61:G61)","v":0},{"$f":"+E61-SUM(H61:Q61)","v":0},"S.122","Innlánsstofnanir",{"$f":"+SKULDIR!C86","v":0},0,0,0,0,0,0,0,0,0,0,0,0]
[0,0,"S.122X","Innlánsstofnanir í slitameðferð",{"$f":"+SKULDIR!C87","v":0},0,0,0,0,0,0,0,0,0,0,0,0]
[0,{"$f":"+E63-SUM(H63:Q63)","v":0},"S.123","Peningamarkaðssjóðir",{"$f":"+SKULDIR!C88","v":0},0,0,0,0,0,0,0,0,0,0,0,0]
[0,0,"S.124","Aðrir verðbréfa- og fjárfestingarsjóðir ",{"$f":"+SKULDIR!C89","v":0},0,0,0,0,0,0,0,0,0,0,0,0]
[0,0,"S.125","Önnur fjármálafyrirtæki",{"$f":"+SKULDIR!C90","v":0},0,0,0,0,0,0,0,0,0,0,0,0]
[0,0,"S.125X","Önnur fjármálafyrirtæki í slitameðferð",{"$f":"+SKULDIR!C91","v":0},0,0,0,0,0,0,0,0,0,0,0,0]
[0,0,"S.126","Fjármálaleg hliðarstarfsemi ",{"$f":"+SKULDIR!C92","v":0},0,0,0,0,0,0,0,0,0,0,0,0]
[0,0,"S.127","Innbyrðis fjármálastarfsemi",{"$f":"+SKULDIR!C93","v":0},0,0,0,0,0,0,0,0,0,0,0,0]
[0,0,"S.128","Vátryggingarfélög",{"$f":"+SKULDIR!C94","v":0},0,0,0,0,0,0,0,0,0,0,0,0]
[0,0,"S.129","Lífeyrissjóðir",{"$f":"+SKULDIR!C95","v":0},0,0,0,0,0,0,0,0,0,0,0,0]
["–",0,"S.13","Hið opinbera",{"$f":"+SKULDIR!C96","v":0},"–","–",{"$f":"+SUM(H72:H73)","v":0},{"$f":"+SUM(I72:I73)","v":0},{"$f":"+SUM(J72:J73)","v":0},{"$f":"+SUM(K72:K73)","v":0},{"$f":"+SUM(L72:L73)","v":0},{"$f":"+SUM(M72:M73)","v":0},{"$f":"+SUM(N72:N73)","v":0},{"$f":"+SUM(O72:O73)","v":0},{"$f":"+SUM(P72:P73)","v":0},{"$f":"+SUM(Q72:Q73)","v":0}]
["–",0,"S.1311","Ríkissjóður",{"$f":"+SKULDIR!C97","v":0},"–","–",0,0,0,0,0,0,0,0,0,0]
["–",0,"S.1313","Sveitarfélög",{"$f":"+SKULDIR!C98","v":0},"–","–",0,0,0,0,0,0,0,0,0,0]
["–",0,"S.14","Heimili",{"$f":"+SKULDIR!C99","v":0},"–","–",0,0,0,0,0,0,0,0,0,0]
["–",0,"S.15","Félagasamtök sem þjóna heimilum",{"$f":"+SKULDIR!C100","v":0},"–","–",0,0,0,0,0,0,0,0,0,0]
["–",{"$f":"+E76-SUM(H76:Q76)","v":0},"S.2","Erlendir aðilar",{"$f":"+SKULDIR!C101","v":0},"–","–",{"$f":"+SUM(H77:H83)","v":0},{"$f":"+SUM(I77:I83)","v":0},{"$f":"+SUM(J77:J83)","v":0},{"$f":"+SUM(K77:K83)","v":0},{"$f":"+SUM(L77:L83)","v":0},{"$f":"+SUM(M77:M83)","v":0},{"$f":"+SUM(N77:N83)","v":0},{"$f":"+SUM(O77:O83)","v":0},{"$f":"+SUM(P77:P83)","v":0},{"$f":"+SUM(Q77:Q83)","v":0}]
["–",0,"S.2.ERS","Seðlabankar",0,"–","–",0,0,0,0,0,0,0,0,0,0]
["–",0,"S.2.ERI","Innlánsstofnanir",0,"–","–",0,0,0,0,0,0,0,0,0,0]
["–",{"$f":"+E79-SUM(H79:Q79)","v":0},"S.2.ERP","Peningamarkaðssjóðir",0,"–","–",0,0,0,0,0,0,0,0,0,0]
["–",0,"S.2.ERV","Aðrir verðbréfa- og fjárfestingarsjóðir",0,"–","–",0,0,0,0,0,0,0,0,0,0]
["–",0,"S.2.ERF","Fjármálafyrirtæki (ótalin annars staðar)",0,"–","–",0,0,0,0,0,0,0,0,0,0]
["–",0,"S.2.ERO","Opinberir aðilar (ríki og sveitarfélög)",0,"–","–",0,0,0,0,0,0,0,0,0,0]
["–",{"$f":"+E83-SUM(H83:Q83)","v":0},"S.2.ERA","Önnur atvinnufyrirtæki, heimili og þjónusta við heimili",0,"–","–",0,0,0,0,0,0,0,0,0,0]
["–",{"$f":"+E84-SUM(H84:H84)","v":0},null,"Verðtryggð innlán",{"$f":"+SKULDIR!C102","v":0},"–","–",{"$f":"SUM(H85,H99,H110,H113,H114,H115)","v":0},"–","–","–","–","–","–","–","–","–"]
[{"$f":"+E85-SUM(F85:G85)","v":0},{"$f":"+E85-SUM(H85:H85)","v":0},"S.11","Atvinnufyrirtæki",{"$f":"+SKULDIR!C103","v":0},0,0,{"$f":"SUM(H86:H98)","v":0},"–","–","–","–","–","–","–","–","–"]
["–",0,"S.11.LAB","Landbúnaður",{"$f":"+SKULDIR!C104","v":0},"–","–",0,"–","–","–","–","–","–","–","–","–"]
["–",0,"S.11.SJA","Fiskveiðar",{"$f":"+SKULDIR!C105","v":0},"–","–",0,"–","–","–","–","–","–","–","–","–"]
["–",0,"S.11.ILA","Iðnaður, vinnsla landbúnaðarafurða",{"$f":"+SKULDIR!C106","v":0},"–","–",0,"–","–","–","–","–","–","–","–","–"]
["–",0,"S.11.ISJ","Iðnaður, vinnsla sjávarafurða",{"$f":"+SKULDIR!C107","v":0},"–","–",0,"–","–","–","–","–","–","–","–","–"]
["–",0,"S.11.IAN","Iðnaður, annað",{"$f":"+SKULDIR!C108","v":0},"–","–",0,"–","–","–","–","–","–","–","–","–"]
["–",0,"S.11.RAF","Veitur (orku- og vatnsveitur)",{"$f":"+SKULDIR!C109","v":0},"–","–",0,"–","–","–","–","–","–","–","–","–"]
["–",0,"S.11.MAN","Byggingastarfsemi og mannvirkjagerð",{"$f":"+SKULDIR!C110","v":0},"–","–",0,"–","–","–","–","–","–","–","–","–"]
["–",0,"S.11.VEN","Verslun",{"$f":"+SKULDIR!C111","v":0},"–","–",0,"–","–","–","–","–","–","–","–","–"]
["–",0,"S.11.SAG","Samgöngur og flutningar",{"$f":"+SKULDIR!C112","v":0},"–","–",0,"–","–","–","–","–","–","–","–","–"]
["–",0,"S.11.THF","Þjónusta, fasteignafélög",{"$f":"+SKULDIR!C113","v":0},"–","–",0,"–","–","–","–","–","–","–","–","–"]
["–",0,"S.11.THH","Þjónusta, starfsemi höfuðstöðva",{"$f":"+SKULDIR!C114","v":0},"–","–",0,"–","–","–","–","–","–","–","–","–"]
["–",0,"S.11.THA","Þjónusta, annað",{"$f":"+SKULDIR!C115","v":0},"–","–",0,"–","–","–","–","–","–","–","–","–"]
["–",{"$f":"+E98-SUM(H98:H98)","v":0},"S.11.OFL.","Óflokkað",{"$f":"+SKULDIR!C116","v":0},"–","–",0,"–","–","–","–","–","–","–","–","–"]
[{"$f":"+E99-SUM(F99:G99)","v":0},0,"S.12","Fjármálageiri",{"$f":"+SKULDIR!C117","v":0},{"$f":"+SUM(F100:F109)","v":0},{"$f":"+SUM(G100:G109)","v":0},0,"–","–","–","–","–","–","–","–","–"]
[{"$f":"+E100-SUM(F100:G100)","v":0},{"$f":"+E100-SUM(H100:Q100)","v":0},"S.122","Innlánsstofnanir",{"$f":"+SKULDIR!C118","v":0},0,0,0,"–","–","–","–","–","–","–","–","–"]
[0,0,"S.122X","Innlánsstofnanir í slitameðferð",{"$f":"+SKULDIR!C119","v":0},0,0,0,"–","–","–","–","–","–","–","–","–"]
[0,0,"S.123","Peningamarkaðssjóðir",{"$f":"+SKULDIR!C120","v":0},0,0,0,"–","–","–","–","–","–","–","–","–"]
[0,0,"S.124","Aðrir verðbréfa- og fjárfestingarsjóðir ",{"$f":"+SKULDIR!C121","v":0},0,0,0,"–","–","–","–","–","–","–","–","–"]
[0,0,"S.125","Önnur fjármálafyrirtæki",{"$f":"+SKULDIR!C122","v":0},0,0,0,"–","–","–","–","–","–","–","–","–"]
[0,0,"S.125X","Önnur fjármálafyrirtæki í slitameðferð",{"$f":"+SKULDIR!C123","v":0},0,0,0,"–","–","–","–","–","–","–","–","–"]
[0,0,"S.126","Fjármálaleg hliðarstarfsemi ",{"$f":"+SKULDIR!C124","v":0},0,0,0,"–","–","–","–","–","–","–","–","–"]
[0,0,"S.127","Innbyrðis fjármálastarfsemi",{"$f":"+SKULDIR!C125","v":0},0,0,0,"–","–","–","–","–","–","–","–","–"]
[0,0,"S.128","Vátryggingarfélög",{"$f":"+SKULDIR!C126","v":0},0,0,0,"–","–","–","–","–","–","–","–","–"]
[0,0,"S.129","Lífeyrissjóðir",{"$f":"+SKULDIR!C127","v":0},0,0,0,"–","–","–","–","–","–","–","–","–"]
["–",0,"S.13","Hið opinbera",{"$f":"+SKULDIR!C128","v":0},"–","–",{"$f":"+SUM(H111:H112)","v":0},"–","–","–","–","–","–","–","–","–"]
["–",{"$f":"+E111-SUM(H111:Q111)","v":0},"S.1311","Ríkissjóður",{"$f":"+SKULDIR!C129","v":0},"–","–",0,"–","–","–","–","–","–","–","–","–"]
["–",0,"S.1313","Sveitarfélög",{"$f":"+SKULDIR!C130","v":0},"–","–",0,"–","–","–","–","–","–","–","–","–"]
["–",0,"S.14","Heimili",{"$f":"+SKULDIR!C131","v":0},"–","–",0,"–","–","–","–","–","–","–","–","–"]
["–",0,"S.15","Félagasamtök sem þjóna heimilum",{"$f":"+SKULDIR!C132","v":0},"–","–",0,"–","–","–","–","–","–","–","–","–"]
["–",0,"S.2","Erlendir aðilar",{"$f":"+SKULDIR!C133","v":0},"–","–",{"$f":"+SUM(H116:H122)","v":0},"–","–","–","–","–","–","–","–","–"]
["–",0,"S.2.ERS","Seðlabankar",0,"–","–",0,"–","–","–","–","–","–","–","–","–"]
["–",{"$f":"+E117-SUM(H117:Q117)","v":0},"S.2.ERI","Innlánsstofnanir",0,"–","–",0,"–","–","–","–","–","–","–","–","–"]
["–",0,"S.2.ERP","Peningamarkaðssjóðir",0,"–","–",0,"–","–","–","–","–","–","–","–","–"]
["–",0,"S.2.ERV","Aðrir verðbréfa- og fjárfestingarsjóðir",0,"–","–",0,"–","–","–","–","–","–","–","–","–"]
["–",0,"S.2.ERF","Fjármálafyrirtæki (ótalin annars staðar)",0,"–","–",0,"–","–","–","–","–","–","–","–","–"]
["–",0,"S.2.ERO","Opinberir aðilar (ríki og sveitarfélög)",0,"–","–",0,"–","–","–","–","–","–","–","–","–"]
["–",0,"S.2.ERA","Önnur atvinnufyrirtæki, heimili og þjónusta við heimili",0,"–","–",0,"–","–","–","–","–","–","–","–","–"]
["–",0,null,"Orlofsreikningar",{"$f":"+SKULDIR!C134","v":0},"–","–",{"$f":"+H124+H125","v":0},0,0,0,0,0,0,0,0,0]
["–",0,"S.14","Heimili",0,"–","–",0,0,0,0,0,0,0,0,0,0]
["–",0,"S.2","Erlendir aðilar",0,"–","–",0,0,0,0,0,0,0,0,0,0]
["–",0,null,"Innlán v/viðbótarlífeyrissparnaðar",{"$f":"+SKULDIR!C135","v":0},"–","–",{"$f":"+H127+H128","v":0},0,0,0,0,0,0,0,0,0]
["–",0,"S.14","Heimili",0,"–","–",0,0,0,0,0,0,0,0,0,0]
["–",0,"S.2","Erlendir aðilar",0,"–","–",0,0,0,0,0,0,0,0,0,0]
["–",0,null,"Önnur bundin innlán",{"$f":"+SKULDIR!C136","v":0},"–","–",{"$f":"SUM(H130,H144,H155,H158,H159,H160)","v":0},0,0,0,0,0,0,0,0,0]
[{"$f":"+E130-SUM(F130:G130)","v":0},0,"S.11","Atvinnufyrirtæki",{"$f":"+SKULDIR!C137","v":0},0,0,{"$f":"SUM(H131:H143)","v":0},{"$f":"SUM(I131:I143)","v":0},0,0,0,0,0,0,0,{"$f":"SUM(Q131:Q143)","v":0}]
["–",{"$f":"+E131-SUM(H131:Q131)","v":0},"S.11.LAB","Landbúnaður",{"$f":"+SKULDIR!C138","v":0},"–","–",0,0,0,0,0,0,0,0,0,0]
["–",{"$f":"+E132-SUM(H132:Q132)","v":0},"S.11.SJA","Fiskveiðar",{"$f":"+SKULDIR!C139","v":0},"–","–",0,0,0,0,0,0,0,0,0,0]
["–",0,"S.11.ILA","Iðnaður, vinnsla landbúnaðarafurða",{"$f":"+SKULDIR!C140","v":0},"–","–",0,0,0,0,0,0,0,0,0,0]
["–",{"$f":"+E134-SUM(H134:Q134)","v":0},"S.11.ISJ","Iðnaður, vinnsla sjávarafurða",{"$f":"+SKULDIR!C141","v":0},"–","–",0,0,0,0,0,0,0,0,0,0]
["–",0,"S.11.IAN","Iðnaður, annað",{"$f":"+SKULDIR!C142","v":0},"–","–",0,0,0,0,0,0,0,0,0,0]
["–",0,"S.11.RAF","Veitur (orku- og vatnsveitur)",{"$f":"+SKULDIR!C143","v":0},"–","–",0,0,0,0,0,0,0,0,0,0]
["–",0,"S.11.MAN","Byggingastarfsemi og mannvirkjagerð",{"$f":"+SKULDIR!C144","v":0},"–","–",0,0,0,0,0,0,0,0,0,0]
["–",0,"S.11.VEN","Verslun",{"$f":"+SKULDIR!C145","v":0},"–","–",0,0,0,0,0,0,0,0,0,0]
["–",0,"S.11.SAG","Samgöngur og flutningar",{"$f":"+SKULDIR!C146","v":0},"–","–",0,0,0,0,0,0,0,0,0,0]
["–",0,"S.11.THF","Þjónusta, fasteignafélög",{"$f":"+SKULDIR!C147","v":0},"–","–",0,0,0,0,0,0,0,0,0,0]
["–",0,"S.11.THH","Þjónusta, starfsemi höfuðstöðva",{"$f":"+SKULDIR!C148","v":0},"–","–",0,0,0,0,0,0,0,0,0,0]
["–",0,"S.11.THA","Þjónusta, annað",{"$f":"+SKULDIR!C149","v":0},"–","–",0,0,0,0,0,0,0,0,0,0]
["–",{"$f":"+E143-SUM(H143:Q143)","v":0},"S.11.OFL.","Óflokkað",{"$f":"+SKULDIR!C150","v":0},"–","–",0,0,0,0,0,0,0,0,0,0]
[0,0,"S.12","Fjármálageiri",{"$f":"+SKULDIR!C151","v":0},{"$f":"+SUM(F145:F154)","v":0},{"$f":"+SUM(G145:G154)","v":0},{"$f":"+SUM(H145:H154)","v":0},{"$f":"+SUM(I145:I154)","v":0},0,0,0,0,0,0,0,0]
[0,{"$f":"+E145-SUM(H145:Q145)","v":0},"S.122","Innlánsstofnanir",{"$f":"+SKULDIR!C152","v":0},0,0,0,0,0,0,0,0,0,0,0,0]
[0,0,"S.122X","Innlánsstofnanir í slitameðferð",{"$f":"+SKULDIR!C153","v":0},0,0,0,0,0,0,0,0,0,0,0,0]
[0,0,"S.123","Peningamarkaðssjóðir",{"$f":"+SKULDIR!C154","v":0},0,0,0,0,0,0,0,0,0,0,0,0]
[0,0,"S.124","Aðrir verðbréfa- og fjárfestingarsjóðir ",{"$f":"+SKULDIR!C155","v":0},0,0,0,0,0,0,0,0,0,0,0,0]
[0,0,"S.125","Önnur fjármálafyrirtæki",{"$f":"+SKULDIR!C156","v":0},0,0,0,0,0,0,0,0,0,0,0,0]
[0,0,"S.125X","Önnur fjármálafyrirtæki í slitameðferð",{"$f":"+SKULDIR!C157","v":0},0,0,0,0,0,0,0,0,0,0,0,0]
[0,0,"S.126","Fjármálaleg hliðarstarfsemi ",{"$f":"+SKULDIR!C158","v":0},0,0,0,0,0,0,0,0,0,0,0,0]
[0,0,"S.127","Innbyrðis fjármálastarfsemi",{"$f":"+SKULDIR!C159","v":0},0,0,0,0,0,0,0,0,0,0,0,0]
[0,0,"S.128","Vátryggingarfélög",{"$f":"+SKULDIR!C160","v":0},0,0,0,0,0,0,0,0,0,0,0,0]
[0,0,"S.129","Lífeyrissjóðir",{"$f":"+SKULDIR!C161","v":0},0,0,0,0,0,0,0,0,0,0,0,0]
["–",0,"S.13","Hið opinbera",{"$f":"+SKULDIR!C162","v":0},"–","–",{"$f":"+SUM(H156:H157)","v":0},{"$f":"+SUM(I156:I157)","v":0},{"$f":"+SUM(J156:J157)","v":0},{"$f":"+SUM(K156:K157)","v":0},{"$f":"+SUM(L156:L157)","v":0},{"$f":"+SUM(M156:M157)","v":0},{"$f":"+SUM(N156:N157)","v":0},{"$f":"+SUM(O156:O157)","v":0},{"$f":"+SUM(P156:P157)","v":0},{"$f":"+SUM(Q156:Q157)","v":0}]
["–",0,"S.1311","Ríkissjóður",{"$f":"+SKULDIR!C163","v":0},"–","–",0,0,0,0,0,0,0,0,0,0]
["–",0,"S.1313","Sveitarfélög",{"$f":"+SKULDIR!C164","v":0},"–","–",0,0,0,0,0,0,0,0,0,0]
["–",0,"S.14","Heimili",{"$f":"+SKULDIR!C165","v":0},"–","–",0,0,0,0,0,0,0,0,0,0]
["–",{"$f":"+E159-SUM(H159:Q159)","v":0},"S.15","Félagasamtök sem þjóna heimilum",{"$f":"+SKULDIR!C166","v":0},"–","–",0,0,0,0,0,0,0,0,0,0]
["–",0,"S.2","Erlendir aðilar",{"$f":"+SKULDIR!C167","v":0},"–","–",{"$f":"+SUM(H161:H167)","v":0},{"$f":"+SUM(I161:I167)","v":0},{"$f":"+SUM(J161:J167)","v":0},{"$f":"+SUM(K161:K167)","v":0},{"$f":"+SUM(L161:L167)","v":0},{"$f":"+SUM(M161:M167)","v":0},{"$f":"+SUM(N161:N167)","v":0},{"$f":"+SUM(O161:O167)","v":0},{"$f":"+SUM(P161:P167)","v":0},{"$f":"+SUM(Q161:Q167)","v":0}]
["–",0,"S.2.ERS","Seðlabankar",0,"–","–",0,0,0,0,0,0,0,0,0,0]
["–",{"$f":"+E162-SUM(H162:Q162)","v":0},"S.2.ERI","Innlánsstofnanir",0,"–","–",0,0,0,0,0,0,0,0,0,0]
["–",0,"S.2.ERP","Peningamarkaðssjóðir",0,"–","–",0,0,0,0,0,0,0,0,0,0]
["–",0,"S.2.ERV","Aðrir verðbréfa- og fjárfestingarsjóðir",0,"–","–",0,0,0,0,0,0,0,0,0,0]
["–",0,"S.2.ERF","Fjármálafyrirtæki (ótalin annars staðar)",0,"–","–",0,0,0,0,0,0,0,0,0,0]
["–",0,"S.2.ERO","Opinberir aðilar (ríki og sveitarfélög)",0,"–","–",0,0,0,0,0,0,0,0,0,0]
["–",0,"S.2.ERA","Önnur atvinnufyrirtæki, heimili og þjónusta við heimili",0,"–","–",0,0,0,0,0,0,0,0,0,0]
[]
[null,null,null,"Lárétt villupróf"]
[null,null,null,"Villupróf: Innlán",{"$f":"E5-SUM(E6,E45,E84,E123,E126,E129)","v":0},"–","–",{"$f":"H5-SUM(H6,H45,H84,H123,H126,H129)","v":0},0,0,0,0,0,0,0,0,0]
[null,null,null,"Villupróf: Veltiinnlán",{"$f":"+E6-SUM(E7,E21,E32,E35,E36,E37)","v":0},"–","–",{"$f":"+H6-SUM(H7,H21,H32,H35,H36,H37)","v":0},0,0,0,0,0,0,0,0,0]
[null,null,null,"Villupróf: Veltiinnlán. Atvinnufyrirtæki",{"$f":"+E7-SUM(E8:E20)","v":0},"–","–",{"$f":"+H7-SUM(H8:H20)","v":0},0,0,0,0,0,0,0,0,0]
[null,null,null,"Villupróf: Veltiinnlán. Fjármálafyrirtæki",{"$f":"E21-E22-E23-E24-E25-E26-E27-E28-E29-E30-E31","v":0},{"$f":"F21-F22-F23-F24-F25-F26-F27-F28-F29-F30-F31","v":0},0,0,0,0,0,0,0,0,0,0,0]
[null,null,null,"Villupróf: Veltiinnlán. Hið opinbera",{"$f":"E32-E33-E34","v":0},"–","–",{"$f":"H32-H33-H34","v":0},0,0,0,0,0,0,0,0,0]
[null,null,null,"Villupróf: Veltiinnlán. Erlendir aðilar",{"$f":"E37-E38-E39-E40-E41-E42-E43-E44","v":0},"–","–",{"$f":"H37-H38-H39-H40-H41-H42-H43-H44","v":0},0,0,0,0,0,0,0,0,0]
[null,null,null,"Villupróf: Óbundin innlán",{"$f":"E45-E46-E60-E71-E74-E75-E76","v":0},"–","–",{"$f":"H45-H46-H60-H71-H74-H75-H76","v":0},0,0,0,0,0,0,0,0,0]
[null,null,null,"Villupróf: Óbundin innlán. Atvinnufyrirtæki",{"$f":"+E46-SUM(E47:E59)","v":0},"–","–",{"$f":"+H46-SUM(H47:H59)","v":0},0,0,0,0,0,0,0,0,0]
[null,null,null,"Villupróf: Óbundin innlán. Fjármálafyrirtæki",{"$f":"E60-E61-E62-E63-E64-E65-E66-E67-E68-E69-E70","v":0},{"$f":"F60-F61-F62-F63-F64-F65-F66-F67-F68-F69-F70","v":0},0,0,0,0,0,0,0,0,0,0,0]
[null,null,null,"Villupróf: Óbundin innlán. Hið opinbera",{"$f":"E71-E72-E73","v":0},"–","–",{"$f":"H71-H72-H73","v":0},0,0,0,0,0,0,0,0,0]
[null,null,null,"Villupróf: Óbundin innlán. Erlendir aðilar",{"$f":"E76-E77-E78-E79-E80-E81-E82-E83","v":0},"–","–",{"$f":"H76-H77-H78-H79-H80-H81-H82-H83","v":0},0,0,0,0,0,0,0,0,0]
[null,null,null,"Villupróf: Verðtryggð innlán",{"$f":"E84-SUM(E85,E99,E110,E113,E114,E115)","v":0},"–","–",{"$f":"H84-SUM(H85,H99,H110,H113,H114,H115)","v":0},"–","–","–","–","–","–","–","–","–"]
[null,null,null,"Villupróf: Verðtryggð innlán. Atvinnufyrirtæki",{"$f":"+E85-SUM(E86:E98)","v":0},"–","–",{"$f":"+H85-SUM(H86:H98)","v":0},"–","–","–","–","–","–","–","–","–"]
[null,null,null,"Villupróf: Verðtryggð innlán. Fjármálafyrirtæki",{"$f":"E99-E100-E101-E102-E103-E104-E105-E106-E107-E108-E109","v":0},{"$f":"F99-F100-F101-F102-F103-F104-F105-F106-F107-F108-F109","v":0},0,0,"–","–","–","–","–","–","–","–","–"]
[null,null,null,"Villupróf: Verðtryggð innlán. Hið opinbera",{"$f":"E110-E111-E112","v":0},"–","–",{"$f":"H110-H111-H112","v":0},"–","–","–","–","–","–","–","–","–"]
[null,null,null,"Villupróf: Verðtryggð innlán. Erlendir aðilar",{"$f":"E115-E116-E117-E118-E119-E120-E121-E122","v":0},"–","–",{"$f":"H115-H116-H117-H118-H119-H120-H121-H122","v":0},"–","–","–","–","–","–","–","–","–"]
[null,null,null,"Villupróf: orlofsreikningar",{"$f":"+E123-SUM(E124,E125)","v":0},"–","–",{"$f":"+H123-SUM(H124,H125)","v":0},0,0,0,0,0,0,0,0,0]
[null,null,null,"Villupróf: Viðbótarlífeyrissparnaður",{"$f":"+E126-SUM(E127,E128)","v":0},"–","–",{"$f":"+H126-SUM(H127,H128)","v":0},0,0,0,0,0,0,0,0,0]
[null,null,null,"Villupróf: Önnur bundin innlán",{"$f":"+E129-SUM(E130,E144,E155,E158,E159,E160)","v":0},"–","–",{"$f":"+H129-SUM(H130,H144,H155,H158,H159,H160)","v":0},0,0,0,0,0,0,0,0,0]
[null,null,null,"Villupróf: Önnur bundin innlán. Atvinnufyrirtæki",{"$f":"+E130-SUM(E131:E143)","v":0},"–","–",{"$f":"+H130-SUM(H131:H143)","v":0},0,0,0,0,0,0,0,0,0]
[null,null,null,"Villupróf: Önnur bundin innlán. Fjármálafyrirtæki",{"$f":"E144-E145-E146-E147-E148-E149-E150-E151-E152-E153-E154","v":0},{"$f":"F144-F145-F146-F147-F148-F149-F150-F151-F152-F153-F154","v":0},0,0,0,0,0,0,0,0,0,0,0]
[null,null,null,"Villupróf: Önnur bundin innlán. Hið opinbera",{"$f":"E155-E156-E157","v":0},"–","–",{"$f":"H155-H156-H157","v":0},0,0,0,0,0,0,0,0,0]
[null,null,null,"Villupróf: Önnur bundin innlán. Erlendir aðilar",{"$f":"E160-E161-E162-E163-E164-E165-E166-E167","v":0},"–","–",{"$f":"H160-H161-H162-H163-H164-H165-H166-H167","v":0},0,0,0,0,0,0,0,0,0]
[]
[]
[]
[]
[]
[]
[null,null,null,"Innlendir gjaldeyrisreikningar flokkast undir bundin eða óbundin innlán eftir mynt"]
[null,null,null,"Gengisbundin veltiinnlán flokkast sem veltiinnlán eftir mynt"]
[null,null,null,"Reikningar þar sem hvert innlegg er bundið í nokkra daga en innstæða að örðu leyti laus, flokkast sem óbundið sparifé þar sem reikningurinn er í eðli sína meira óbundinn en bundinn."]
[null,null,null,"Peningamarkaðsinnlán flokkast sem annað bundið sparifé þar sem öll innlánsfjárhæðin er bundin í einu (þó það geti verið í stuttan tíma)."]

{"sheet":"Sundurliðun Lántaka","index":11,"n_rows":92,"n_cols":17,"rows_kept":92,"cut":false,"hidden":false,"merged":[[2,4,3,4],[2,5,2,6],[2,7,2,16]]}
[null,null,null,"Lántaka"]
[]
["Lóðrétt villupróf",null,null,"Fjárhæðir í þús.kr","Samtals","Eignarhald mótaðila",null,"Myntskipting"]
["Eignarhald","Myntskipting",null,null,null,"Opinbert fyrirtæki","Einka- fyrirtæki","ISK","EUR","USD","GBP","JPY","DKK","NOK","SEK","CHF","Aðrir gjaldmiðlar"]
["–",{"$f":"E5-SUM(H5:Q5)","v":0},null,"Víkjandi lán ",{"$f":"SKULDIR!C27+SKULDIR!C171","v":0},"–","–",{"$f":"SUM(H6,H7,H18,H21,H22,H23)","v":0},{"$f":"SUM(I6,I7,I18,I21,I22,I23)","v":0},0,0,0,0,0,0,0,0]
[{"$f":"E6-SUM(F6:G6)","v":0},0,"S.11","Atvinnufyrirtæki",0,0,0,0,0,0,0,0,0,0,0,0,0]
[0,0,"S.12","Fjármálageiri",{"$f":"SUM(E8:E17)","v":0},{"$f":"+SUM(F8:F17)","v":0},{"$f":"+SUM(G8:G17)","v":0},{"$f":"+SUM(H8:H17)","v":0},{"$f":"+SUM(I8:I17)","v":0},{"$f":"+SUM(J8:J17)","v":0},0,0,0,0,0,0,0]
[0,0,"S.122","Innlánsstofnanir",0,0,0,0,0,0,0,0,0,0,0,0,0]
[0,0,"S.122X","Innlánsstofnanir í slitameðferð",0,0,0,0,0,0,0,0,0,0,0,0,0]
[0,0,"S.123","Peningamarkaðssjóðir",0,0,0,0,0,0,0,0,0,0,0,0,0]
[0,0,"S.124","Aðrir verðbréfa- og fjárfestingarsjóðir ",0,0,0,0,0,0,0,0,0,0,0,0,0]
[0,0,"S.125","Önnur fjármálafyrirtæki",0,0,0,0,0,0,0,0,0,0,0,0,0]
[0,0,"S.125X","Önnur fjármálafyrirtæki í slitameðferð",0,0,0,0,0,0,0,0,0,0,0,0,0]
[0,0,"S.126","Fjármálaleg hliðarstarfsemi ",0,0,0,0,0,0,0,0,0,0,0,0,0]
[0,0,"S.127","Innbyrðis fjármálastarfsemi",0,0,0,0,0,0,0,0,0,0,0,0,0]
[0,0,"S.128","Vátryggingarfélög",0,0,0,0,0,0,0,0,0,0,0,0,0]
[0,0,"S.129","Lífeyrissjóðir",0,0,0,0,0,0,0,0,0,0,0,0,0]
["–",0,"S.13","Hið opinbera",{"$f":"+SUM(E19:E20)","v":0},"–","–",{"$f":"SUM(H19:H20)","v":0},0,0,0,0,0,0,0,0,0]
["–",0,"S.1311","Ríkissjóður",0,"–","–",0,0,0,0,0,0,0,0,0,0]
["–",0,"S.1313","Sveitarfélög",0,"–","–",0,0,0,0,0,0,0,0,0,0]
[{"$f":"IF(E21=\"–\", \"\",IF(#REF!=\"-\",\"\",IF(E21<>0,\"Ólíklegt að banki taki lán hjá heimilum\",\"\")))","v":""},"–","S.14","Heimili","–","–","–","–","–","–","–","–","–","–","–","–","–"]
["–",{"$f":"E22-SUM(H22:Q22)","v":0},"S.15","Félagasamtök sem þjóna heimilum",0,"–","–",0,0,0,0,0,0,0,0,0,0]
["–",0,"S.2","Erlendir aðilar",{"$f":"+SKULDIR!C30+SKULDIR!C31+SKULDIR!C174+SKULDIR!C175","v":0},"–","–",{"$f":"+SUM(H24:H30)","v":0},{"$f":"+SUM(I24:I30)","v":0},{"$f":"+SUM(J24:J30)","v":0},0,0,0,0,{"$f":"+SUM(O24:O30)","v":0},0,0]
["–",0,"S.2.ERS","Seðlabankar",0,"–","–",0,0,0,0,0,0,0,0,0,0]
["–",0,"S.2.ERI","Innlánsstofnanir",0,"–","–",0,0,0,0,0,0,0,0,0,0]
["–",0,"S.2.ERP","Peningamarkaðssjóðir",0,"–","–",0,0,0,0,0,0,0,0,0,0]
["–",0,"S.2.ERV","Aðrir verðbréfa og fjárfestingarsjóðir",0,"–","–",0,0,0,0,0,0,0,0,0,0]
["–",{"$f":"E28-SUM(H28:Q28)","v":0},"S.2.ERF","Fjármálafyrirtæki (ótalin annars staðar)",0,"–","–",0,0,0,0,0,0,0,0,0,0]
["–",0,"S.2.ERO","Opinberir aðilar (ríki og sveitarfélög)",0,"–","–",0,0,0,0,0,0,0,0,0,0]
["–",0,"S.2.ERA","Önnur atvinnufyrirtæki, heimili og þjónusta við heimili",0,"–","–",0,0,0,0,0,0,0,0,0,0]
["–",0,null,"Beinar lántökur, Verðtryggð lán",{"$f":"SKULDIR!C33+SKULDIR!C177","v":0},"–","–",{"$f":"+SUM(H32,H33,H44,H47,H48,H49)","v":0},"–","–","–","–","–","–","–","–","–"]
[{"$f":"E32-SUM(F32:G32)","v":0},0,"S.11","Atvinnufyrirtæki",0,0,0,0,"–","–","–","–","–","–","–","–","–"]
[0,0,"S.12","Fjármálageiri",{"$f":"SUM(E34:E43)","v":0},{"$f":"+SUM(F34:F43)","v":0},0,0,"–","–","–","–","–","–","–","–","–"]
[0,0,"S.122","Innlánsstofnanir",0,0,0,0,"–","–","–","–","–","–","–","–","–"]
[0,0,"S.122X","Innlánsstofnanir í slitameðferð",0,0,0,0,"–","–","–","–","–","–","–","–","–"]
[0,0,"S.123","Peningamarkaðssjóðir",0,0,0,0,"–","–","–","–","–","–","–","–","–"]
[0,0,"S.124","Aðrir verðbréfa- og fjárfestingarsjóðir ",0,0,0,0,"–","–","–","–","–","–","–","–","–"]
[0,0,"S.125","Önnur fjármálafyrirtæki",0,0,0,0,"–","–","–","–","–","–","–","–","–"]
[0,0,"S.125X","Önnur fjármálafyrirtæki í slitameðferð",0,0,0,0,"–","–","–","–","–","–","–","–","–"]
[0,0,"S.126","Fjármálaleg hliðarstarfsemi",0,0,0,0,"–","–","–","–","–","–","–","–","–"]
[0,0,"S.127","Innbyrðis fjármálastarfsemi",0,0,0,0,"–","–","–","–","–","–","–","–","–"]
[0,0,"S.128","Vátryggingarfélög",0,0,0,0,"–","–","–","–","–","–","–","–","–"]
[0,0,"S.129","Lífeyrissjóðir",0,0,0,0,"–","–","–","–","–","–","–","–","–"]
["–",0,"S.13","Hið opinbera",{"$f":"+SUM(E45:E46)","v":0},"–","–",{"$f":"+SUM(H45:H46)","v":0},"–","–","–","–","–","–","–","–","–"]
["–",0,"S.1311","Ríkissjóður",0,"–","–",0,"–","–","–","–","–","–","–","–","–"]
["–",0,"S.1313","Sveitarfélög",0,"–","–",0,"–","–","–","–","–","–","–","–","–"]
[{"$f":"IF(E47=\"–\", \"\",IF(#REF!=\"-\",\"\",IF(E47<>0,\"Ólíklegt að banki taki lán hjá heimilum\",\"\")))","v":""},"–","S.14","Heimili","–","–","–","–","–","–","–","–","–","–","–","–","–"]
["–",{"$f":"E48-SUM(H48:Q48)","v":0},"S.15","Félagasamtök sem þjóna heimilum",0,"–","–",0,"–","–","–","–","–","–","–","–","–"]
["–",0,"S.2","Erlendir aðilar",{"$f":"+SUM(E50:E56)","v":0},"–","–",{"$f":"+SUM(H50:H56)","v":0},"–","–","–","–","–","–","–","–","–"]
["–",0,"S.2.ERS","Seðlabankar",0,"–","–",0,"–","–","–","–","–","–","–","–","–"]
["–",0,"S.2.ERI","Innlánsstofnanir",0,"–","–",0,"–","–","–","–","–","–","–","–","–"]
["–",0,"S.2.ERP","Peningamarkaðssjóðir",0,"–","–",0,"–","–","–","–","–","–","–","–","–"]
["–",0,"S.2.ERV","Aðrir verðbréfa- og fjárfestingarsjóðir",0,"–","–",0,"–","–","–","–","–","–","–","–","–"]
["–",0,"S.2.ERF","Fjármálafyrirtæki (ótalin annars staðar)",0,"–","–",0,"–","–","–","–","–","–","–","–","–"]
["–",0,"S.2.ERO","Opinberir aðilar (ríki og sveitarfélög)",0,"–","–",0,"–","–","–","–","–","–","–","–","–"]
["–",0,"S.2.ERA","Önnur atvinnufyrirtæki, heimili og þjónusta við heimili",0,"–","–",0,"–","–","–","–","–","–","–","–","–"]
["–",0,null,"Beinar lántökur, Önnur lán",{"$f":"SKULDIR!C34+SKULDIR!C35+SKULDIR!C178+SKULDIR!C179","v":0},"–","–",{"$f":"+SUM(H58,H59,H70,H73,H74,H75)","v":0},{"$f":"+SUM(I58,I59,I70,I73,I74,I75)","v":0},0,0,0,0,0,0,0,0]
[{"$f":"E58-SUM(F58:G58)","v":0},0,"S.11","Atvinnufyrirtæki",0,0,0,0,0,0,0,0,0,0,0,0,0]
[0,0,"S.12","Fjármálageiri",{"$f":"SUM(E60:E69)","v":0},{"$f":"+SUM(F60:F69)","v":0},{"$f":"+SUM(G60:G69)","v":0},{"$f":"+SUM(H60:H69)","v":0},{"$f":"+SUM(I60:I69)","v":0},0,0,0,0,0,0,0,0]
[0,0,"S.122","Innlánsstofnanir",0,0,0,0,0,0,0,0,0,0,0,0,0]
[0,0,"S.122X","Innlánsstofnanir í slitameðferð",0,0,0,0,0,0,0,0,0,0,0,0,0]
[0,0,"S.123","Peningamarkaðssjóðir",0,0,0,0,0,0,0,0,0,0,0,0,0]
[0,0,"S.124","Aðrir verðbréfa- og fjárfestingarsjóðir ",0,0,0,0,0,0,0,0,0,0,0,0,0]
[0,0,"S.125","Önnur fjármálafyrirtæki",0,0,0,0,0,0,0,0,0,0,0,0,0]
[0,0,"S.125X","Önnur fjármálafyrirtæki í slitameðferð",0,0,0,0,0,0,0,0,0,0,0,0,0]
[0,0,"S.126","Fjármálaleg hliðarstarfsemi",0,0,0,0,0,0,0,0,0,0,0,0,0]
[0,0,"S.127","Innbyrðis fjármálastarfsemi",0,0,0,0,0,0,0,0,0,0,0,0,0]
[0,0,"S.128","Vátryggingarfélög",0,0,0,0,0,0,0,0,0,0,0,0,0]
[0,0,"S.129","Lífeyrissjóðir",0,0,0,0,0,0,0,0,0,0,0,0,0]
["–",0,"S.13","Hið opinbera",{"$f":"+E71+E72","v":0},"–","–",{"$f":"+SUM(H71:H72)","v":0},0,0,0,0,0,0,0,0,0]
["–",0,"S.1311","Ríkissjóður",0,"–","–",0,0,0,0,0,0,0,0,0,0]
["–",0,"S.1313","Sveitarfélög",0,"–","–",0,0,0,0,0,0,0,0,0,0]
[{"$f":"IF(E73=\"–\", \"\",IF(#REF!=\"-\",\"\",IF(E73<>0,\"Ólíklegt að banki taki lán hjá heimilum\",\"\")))","v":""},"–","S.14","Heimili","–","–","–","–","–","–","–","–","–","–","–","–","–"]
["–",{"$f":"E74-SUM(H74:Q74)","v":0},"S.15","Félagasamtök sem þjóna heimilum",0,"–","–",0,0,0,0,0,0,0,0,0,0]
["–",0,"S.2","Erlendir aðilar",{"$f":"+SUM(E76:E82)","v":0},"–","–",{"$f":"+SUM(H76:H82)","v":0},{"$f":"+SUM(I76:I82)","v":0},0,0,0,0,0,0,0,0]
["–",0,"S.2.ERS","Seðlabankar",0,"–","–",0,0,0,0,0,0,0,0,0,0]
["–",0,"S.2.ERI","Innlánsstofnanir",0,"–","–",0,0,0,0,0,0,0,0,0,0]
["–",0,"S.2.ERP","Peningamarkaðssjóðir",0,"–","–",0,0,0,0,0,0,0,0,0,0]
["–",0,"S.2.ERV","Aðrir verðbréfa- og fjárfestingarsjóðir",0,"–","–",0,0,0,0,0,0,0,0,0,0]
["–",0,"S.2.ERF","Fjármálafyrirtæki (ótalin annars staðar)",0,"–","–",0,0,0,0,0,0,0,0,0,0]
["–",0,"S.2.ERO","Opinberir aðilar (ríki og sveitarfélög)",0,"–","–",0,0,0,0,0,0,0,0,0,0]
["–",0,"S.2.ERA","Önnur atvinnufyrirtæki, heimili og þjónusta við heimili",0,"–","–",0,0,0,0,0,0,0,0,0,0]
[]
[]
[]
[]
[null,null,null,"Lárétt villupróf"]
[null,null,null,"Villupróf: Víkjandi lán",{"$f":"E5-E6-E7-E18-E22-E23","v":0},"–","–",{"$f":"H5-H6-H7-H18-H22-H23","v":0},{"$f":"I5-I6-I7-I18-I22-I23","v":0},0,0,0,0,0,0,0,0]
[null,null,null,"Villupróf: Víkjandi Innlend lán",{"$f":"SKULDIR!C28+SKULDIR!C29+SKULDIR!C173+SKULDIR!C172-E6-E7-E18-E22","v":0},"–","–","–","–","–","–","–","–","–","–","–","–"]
[null,null,null,"Villupróf: Víkjandi Erlend lán",{"$f":"E23-SUM(E24:E30)","v":0},"–","–",{"$f":"H23-SUM(H24:H30)","v":0},{"$f":"I23-SUM(I24:I30)","v":0},0,0,0,0,0,0,0,0]
[null,null,null,"Villupróf: Verðtryggð lán",{"$f":"SKULDIR!C33+SKULDIR!C177-E32-E33-E44-E48-E49","v":0},"–","–",{"$f":"+SKULDIR!C33+SKULDIR!C177-H32-H33-H44-H48-H49","v":0},"–","–","–","–","–","–","–","–","–"]
[null,null,null,"Villupróf: Önnur lán",{"$f":"SKULDIR!C35+SKULDIR!C34+SKULDIR!C178+SKULDIR!C179-E58-E59-E70-E75","v":0},"–","–","–","–","–","–","–","–","–","–","–","–"]

{"sheet":"Sundurliðun Verðbréfaútgáfa","index":12,"n_rows":20,"n_cols":17,"rows_kept":20,"cut":false,"hidden":false,"merged":[[2,4,3,4],[2,7,2,16],[2,5,2,6]]}
[null,null,null,"Verðbréfaútgáfa"]
[]
["Lóðrétt villupróf",null,null,"Fjárhæðir í þús.kr","Samtals","Eignarhald (útgefanda)",null,"Myntskipting"]
["Eignarhald","Myntskipting",null,null,null,"Opinbert fyrirtæki","Einka- fyrirtæki","ISK","EUR","USD","GBP","JPY","DKK","NOK","SEK","CHF","Aðrir gjaldmiðlar"]
[{"$f":"E5-SUM(F5:G5)","v":0},{"$f":"E5-SUM(H5:Q5)","v":0},null," Verðbréfaútgáfa",{"$f":"+E6+E11","v":0},{"$f":"SUM(F6,F11)","v":0},{"$f":"SUM(G6,G11)","v":0},0,0,0,0,0,0,0,0,0,0]
[{"$f":"E6-SUM(F6:G6)","v":0},0,null,"Innlend verðbréfaútgáfa ",{"$f":"+SKULDIR!C25+SKULDIR!C169","v":0},{"$f":"+F7+F8+F9+F10","v":0},{"$f":"+G7+G8+G9+G10","v":0},0,0,0,0,0,0,0,0,0,0]
[0,0,null,"Óverðtryggð skuldabréfaútgáfa ≤ 1 ár",0,0,0,0,0,0,0,0,0,0,0,0,0]
[0,{"$f":"E8-SUM(H8:Q8)","v":0},null,"Óverðtryggð skuldabréfaútgáfa > 1 ár",0,0,0,0,0,0,0,0,0,0,0,0,0]
[0,0,null,"Verðtryggð skuldabréfaútgáfa",0,0,0,0,0,0,0,0,0,0,0,0,0]
[{"$f":"E10-SUM(F10:G10)","v":0},0,null,"Víxlaútgáfa",0,0,0,0,0,0,0,0,0,0,0,0,0]
[{"$f":"E11-SUM(F11:G11)","v":0},0,null,"Erlend verðbréfaútgáfa",{"$f":"+SKULDIR!C26+SKULDIR!C170","v":0},{"$f":"+SUM(F12:F14)","v":0},{"$f":"+SUM(G12:G14)","v":0},{"$f":"SUM(H12:H14)","v":0},{"$f":"SUM(I12:I14)","v":0},0,0,0,0,{"$f":"SUM(N12:N14)","v":0},0,0,0]
[0,0,null,"Skuldabréfaútgáfa ≤ 1 ár",0,0,0,0,0,0,0,0,0,0,0,0,0]
[0,{"$f":"E13-SUM(H13:Q13)","v":0},null,"Skuldabréfaútgáfa  > 1 ár",0,0,0,0,0,0,0,0,0,0,0,0,0]
[0,0,null,"Víxlaútgáfa",0,0,0,0,0,0,0,0,0,0,0,0,0]
[]
[]
[]
[null,null,null,"Lárétt villupróf"]
[null,null,null,"Villupróf: Innlend verðbréfaútgáfa",{"$f":"E6-E7-E8-E9-E10","v":0},{"$f":"F6-F7-F8-F9-F10","v":0},0,0,0,0,0,0,0,0,0,0,0]
[null,null,null,"Villupróf: Erlend verðbréfaútgáfa",{"$f":"E11-E12-E13-E14","v":0},{"$f":"F11-F12-F13-F14","v":0},0,0,0,0,0,0,0,0,0,0,0]

{"sheet":"Afleiður og skortstöð - skuldir","index":13,"n_rows":119,"n_cols":17,"rows_kept":119,"cut":false,"hidden":false,"merged":[[2,4,3,4],[2,7,2,16],[2,5,2,6]]}
[null,null,null,"Afleiður (skuldir)"]
[]
["Lóðrétt villupróf",null,null,"Fjárhæðir í þús.kr","Samtals","Eignarhald mótaðila",null,"Myntskipting"]
["Eignarhald","Myntskipting",null,null,null,"Opinbert fyrirtæki","Einka- fyrirtæki","ISK","EUR","USD","GBP","JPY","DKK","NOK","SEK","CHF","Aðrir gjaldmiðlar"]
["–",{"$f":"E5-SUM(H5:Q5)","v":0},null,"Afleiður ",{"$f":"+SKULDIR!C17+SKULDIR!C18+SKULDIR!C181","v":0},"–","–",{"$f":"+H6+H32+H58+H84","v":0},0,0,0,0,0,0,0,0,0]
["–",{"$f":"E6-SUM(H6:Q6)","v":0},null,"Valréttir",{"$f":"+E7+E8+E19+E22+E23+E24","v":0},"–","–",{"$f":"+H7+H8+H19+H22+H23+H24","v":0},0,0,0,0,0,0,0,0,0]
[{"$f":"E7-SUM(F7:G7)","v":0},{"$f":"E7-SUM(H7:Q7)","v":0},"S.11","Atvinnufyrirtæki",0,0,0,0,0,0,0,0,0,0,0,0,0]
[{"$f":"E8-SUM(F8:G8)","v":0},{"$f":"E8-SUM(H8:Q8)","v":0},"S.12","Fjármálalgeiri",{"$f":"+SUM(E9:E18)","v":0},0,0,0,0,0,0,0,0,0,0,0,0]
[{"$f":"E9-SUM(F9:G9)","v":0},{"$f":"E9-SUM(H9:Q9)","v":0},"S.122","Innlánsstofnanir",0,0,0,0,0,0,0,0,0,0,0,0,0]
[0,0,"S.122X","Innlánsstofnanir í slitameðferð",0,0,0,0,0,0,0,0,0,0,0,0,0]
[0,0,"S.123","Peningamarkaðssjóðir",0,0,0,0,0,0,0,0,0,0,0,0,0]
[0,0,"S.124","Aðrir verðbréfa- og fjárfestingarsjóðir ",0,0,0,0,0,0,0,0,0,0,0,0,0]
[0,0,"S.125","Önnur fjármálafyrirtæki",0,0,0,0,0,0,0,0,0,0,0,0,0]
[0,0,"S.125X","Önnur fjármálafyrirtæki í slitameðferð",0,0,0,0,0,0,0,0,0,0,0,0,0]
[0,0,"S.126","Fjármálaleg hliðarstarfsemi",0,0,0,0,0,0,0,0,0,0,0,0,0]
[0,0,"S.127","Innbyrðis fjármálastarfsemi",0,0,0,0,0,0,0,0,0,0,0,0,0]
[0,0,"S.128","Vátryggingarfélög",0,0,0,0,0,0,0,0,0,0,0,0,0]
[0,0,"S.129","Lífeyrissjóðir",0,0,0,0,0,0,0,0,0,0,0,0,0]
["–",0,"S.13","Hið opinbera",{"$f":"+SUM(E20:E21)","v":0},"–","–",{"$f":"+H20+H21","v":0},0,0,0,0,0,0,0,0,0]
["–",0,"S.1311","Ríkisjóður",0,"–","–",0,0,0,0,0,0,0,0,0,0]
["–",0,"S.1313","Sveitarfélög",0,"–","–",0,0,0,0,0,0,0,0,0,0]
["–",0,"S.14","Heimili",0,"–","–",0,0,0,0,0,0,0,0,0,0]
["–",0,"S.15","Félagasamtök sem þjóna heimilum",0,"–","–",0,0,0,0,0,0,0,0,0,0]
["–",0,"S.2","Erlendir aðilar",{"$f":"+SUM(E25:E31)","v":0},"–","–",{"$f":"+SUM(H25:H31)","v":0},0,0,{"$f":"+SUM(K25:K31)","v":0},0,0,0,0,0,0]
["–",0,"S.2.ERS","Seðlabankar",0,"–","–",0,0,0,0,0,0,0,0,0,0]
["–",0,"S.2.ERI","Innlánsstofnanir",0,"–","–",0,0,0,0,0,0,0,0,0,0]
[null,null,"S.2.ERP","Peningamarkaðssjóðir",0,"–","–",0,0,0,0,0,0,0,0,0,0]
[null,null,"S.2.ERV","Aðrir verðbréfa- og fjárfestingarsjóðir",0,"–","–",0,0,0,0,0,0,0,0,0,0]
["–",0,"S.2.ERF","Fjármálafyrirtæki (ótalin annars staðar)",0,"–","–",0,0,0,0,0,0,0,0,0,0]
["–",0,"S.2.ERO","Opinberir aðilar (ríki og sveitarfélög)",0,"–","–",0,0,0,0,0,0,0,0,0,0]
["–",0,"S.2.ERA","Önnur atvinnufyrirtæki, heimili og þjónusta við heimili",0,"–","–",0,0,0,0,0,0,0,0,0,0]
["–",0,null,"   Framvirkir samningar",{"$f":"+E33+E34+E45+E48+E49+E50","v":0},"–","–",{"$f":"+H33+H34+H45+H48+H49+H50","v":0},0,0,0,0,0,0,0,0,0]
[{"$f":"E33-SUM(F33:G33)","v":0},0,"S.11","Atvinnufyrirtæki",0,0,0,0,0,0,0,0,0,0,0,0,0]
[{"$f":"E34-SUM(F34:G34)","v":0},0,"S.12","Fjármálageiri",{"$f":"+SUM(E35:E44)","v":0},0,0,0,0,0,0,0,0,0,0,0,0]
[{"$f":"E35-SUM(F35:G35)","v":0},{"$f":"E35-SUM(H35:Q35)","v":0},"S.122","Innlánsstofnanir",0,0,0,0,0,0,0,0,0,0,0,0,0]
[0,0,"S.122X","Innlánsstofnanir í slitameðferð",0,0,0,0,0,0,0,0,0,0,0,0,0]
[0,0,"S.123","Peningamarkaðssjóðir",0,0,0,0,0,0,0,0,0,0,0,0,0]
[0,0,"S.124","Aðrir verðbréfa- og fjárfestingarsjóðir ",0,0,0,0,0,0,0,0,0,0,0,0,0]
[0,0,"S.125","Önnur fjármálafyrirtæki",0,0,0,0,0,0,0,0,0,0,0,0,0]
[0,0,"S.125X","Önnur fjármálafyrirtæki í slitameðferð",0,0,0,0,0,0,0,0,0,0,0,0,0]
[0,0,"S.126","Fjármálaleg hliðarstarfsemi",0,0,0,0,0,0,0,0,0,0,0,0,0]
[0,0,"S.127","Innbyrðis fjármálastarfsemi",0,0,0,0,0,0,0,0,0,0,0,0,0]
[0,0,"S.128","Vátryggingarfélög",0,0,0,0,0,0,0,0,0,0,0,0,0]
[0,0,"S.129","Lífeyrissjóðir",0,0,0,0,0,0,0,0,0,0,0,0,0]
["–",0,"S.13","Hið opinbera",{"$f":"+SUM(E46:E47)","v":0},"–","–",{"$f":"+H46+H47","v":0},{"$f":"+I46+I47","v":0},{"$f":"+J46+J47","v":0},{"$f":"+K46+K47","v":0},{"$f":"+L46+L47","v":0},{"$f":"+M46+M47","v":0},{"$f":"+N46+N47","v":0},{"$f":"+O46+O47","v":0},{"$f":"+P46+P47","v":0},{"$f":"+Q46+Q47","v":0}]
["–",0,"S.1311","Ríkisjóður",0,"–","–",0,0,0,0,0,0,0,0,0,0]
["–",0,"S.1313","Sveitarfélög",0,"–","–",0,0,0,0,0,0,0,0,0,0]
["–",0,"S.14","Heimili",0,"–","–",0,0,0,0,0,0,0,0,0,0]
["–",0,"S.15","Félagasamtök sem þjóna heimilum",0,"–","–",0,0,0,0,0,0,0,0,0,0]
["–",0,"S.2","Erlendir aðilar",{"$f":"+SUM(E51:E57)","v":0},"–","–",{"$f":"+SUM(H51:H57)","v":0},{"$f":"+SUM(I51:I57)","v":0},{"$f":"+SUM(J51:J57)","v":0},{"$f":"+SUM(K51:K57)","v":0},{"$f":"+SUM(L51:L57)","v":0},{"$f":"+SUM(M51:M57)","v":0},{"$f":"+SUM(N51:N57)","v":0},{"$f":"+SUM(O51:O57)","v":0},{"$f":"+SUM(P51:P57)","v":0},{"$f":"+SUM(Q51:Q57)","v":0}]
["–",0,"S.2.ERS","Seðlabankar",0,"–","–",0,0,0,0,0,0,0,0,0,0]
["–",0,"S.2.ERI","Innlánsstofnanir",0,"–","–",0,0,0,0,0,0,0,0,0,0]
[null,null,"S.2.ERP","Peningamarkaðssjóðir",0,"–","–",0,0,0,0,0,0,0,0,0,0]
[null,null,"S.2.ERV","Aðrir verðbréfa- og fjárfestingarsjóðir",0,"–","–",0,0,0,0,0,0,0,0,0,0]
["–",0,"S.2.ERF","Fjármálafyrirtæki (ótalin annars staðar)",0,"–","–",0,0,0,0,0,0,0,0,0,0]
["–",0,"S.2.ERO","Opinberir aðilar (ríki og sveitarfélög)",0,"–","–",0,0,0,0,0,0,0,0,0,0]
["–",0,"S.2.ERA","Önnur atvinnufyrirtæki, heimili og þjónusta við heimili",0,"–","–",0,0,0,0,0,0,0,0,0,0]
["–",0,null,"      Skiptasamningar",{"$f":"+E59+E60+E71+E74+E75+E76","v":0},"–","–",{"$f":"+H59+H60+H71+H74+H75+H76","v":0},0,0,0,0,0,0,0,0,0]
[{"$f":"E59-SUM(F59:G59)","v":0},0,"S.11","Atvinnufyrirtæki",0,0,0,0,0,0,0,0,0,0,0,0,0]
[{"$f":"E60-SUM(F60:G60)","v":0},0,"S.12","Fjármálalgeiri",{"$f":"+SUM(E61:E70)","v":0},0,0,0,0,0,0,0,0,0,0,0,0]
[{"$f":"E61-SUM(F61:G61)","v":0},{"$f":"E61-SUM(H61:Q61)","v":0},"S.122","Innlánsstofnanir",0,0,0,0,0,0,0,0,0,0,0,0,0]
[0,0,"S.122X","Innlánsstofnanir í slitameðferð",0,0,0,0,0,0,0,0,0,0,0,0,0]
[0,0,"S.123","Peningamarkaðssjóðir",0,0,0,0,0,0,0,0,0,0,0,0,0]
[0,0,"S.124","Aðrir verðbréfa- og fjárfestingarsjóðir ",0,0,0,0,0,0,0,0,0,0,0,0,0]
[0,0,"S.125","Önnur fjármálafyrirtæki",0,0,0,0,0,0,0,0,0,0,0,0,0]
[0,0,"S.125X","Önnur fjármálafyrirtæki í slitameðferð",0,0,0,0,0,0,0,0,0,0,0,0,0]
[0,0,"S.126","Fjármálaleg hliðarstarfsemi",0,0,0,0,0,0,0,0,0,0,0,0,0]
[0,0,"S.127","Innbyrðis fjármálastarfsemi",0,0,0,0,0,0,0,0,0,0,0,0,0]
[0,0,"S.128","Vátryggingarfélög",0,0,0,0,0,0,0,0,0,0,0,0,0]
[0,0,"S.129","Lífeyrissjóðir",0,0,0,0,0,0,0,0,0,0,0,0,0]
["–",0,"S.13","Hið opinbera",{"$f":"+SUM(E72:E73)","v":0},"–","–",{"$f":"+H72+H73","v":0},{"$f":"+I72+I73","v":0},{"$f":"+J72+J73","v":0},{"$f":"+K72+K73","v":0},{"$f":"+L72+L73","v":0},{"$f":"+M72+M73","v":0},{"$f":"+N72+N73","v":0},{"$f":"+O72+O73","v":0},{"$f":"+P72+P73","v":0},{"$f":"+Q72+Q73","v":0}]
["–",0,"S.1311","Ríkisjóður",0,"–","–",0,0,0,0,0,0,0,0,0,0]
["–",0,"S.1313","Sveitarfélög",0,"–","–",0,0,0,0,0,0,0,0,0,0]
["–",0,"S.14","Heimili",0,"–","–",0,0,0,0,0,0,0,0,0,0]
["–",0,"S.15","Félagasamtök sem þjóna heimilum",0,"–","–",0,0,0,0,0,0,0,0,0,0]
["–",0,"S.2","Erlendir aðilar",{"$f":"+SUM(E77:E83)","v":0},"–","–",{"$f":"+SUM(H77:H83)","v":0},{"$f":"+SUM(I77:I83)","v":0},{"$f":"+SUM(J77:J83)","v":0},{"$f":"+SUM(K77:K83)","v":0},{"$f":"+SUM(L77:L83)","v":0},{"$f":"+SUM(M77:M83)","v":0},{"$f":"+SUM(N77:N83)","v":0},{"$f":"+SUM(O77:O83)","v":0},{"$f":"+SUM(P77:P83)","v":0},{"$f":"+SUM(Q77:Q83)","v":0}]
["–",0,"S.2.ERS","Seðlabankar",0,"–","–",0,0,0,0,0,0,0,0,0,0]
["–",0,"S.2.ERI","Innlánsstofnanir",0,"–","–",0,0,0,0,0,0,0,0,0,0]
[null,null,"S.2.ERP","Peningamarkaðssjóðir",0,"–","–",0,0,0,0,0,0,0,0,0,0]
[null,null,"S.2.ERV","Aðrir verðbréfa- og fjárfestingarsjóðir",0,"–","–",0,0,0,0,0,0,0,0,0,0]
["–",0,"S.2.ERF","Fjármálafyrirtæki (ótalin annars staðar)",0,"–","–",0,0,0,0,0,0,0,0,0,0]
["–",0,"S.2.ERO","Opinberir aðilar (ríki og sveitarfélög)",0,"–","–",0,0,0,0,0,0,0,0,0,0]
["–",0,"S.2.ERA","Önnur atvinnufyrirtæki, heimili og þjónusta við heimili",0,"–","–",0,0,0,0,0,0,0,0,0,0]
["–",0,null,"Skortstöður",{"$f":"+E85+E86+E97+E100+E101+E102","v":0},"–","–",{"$f":"+H85+H86+H97+H100+H101+H102","v":0},{"$f":"+I85+I86+I97+I100+I101+I102","v":0},{"$f":"+J85+J86+J97+J100+J101+J102","v":0},{"$f":"+K85+K86+K97+K100+K101+K102","v":0},{"$f":"+L85+L86+L97+L100+L101+L102","v":0},{"$f":"+M85+M86+M97+M100+M101+M102","v":0},{"$f":"+N85+N86+N97+N100+N101+N102","v":0},{"$f":"+O85+O86+O97+O100+O101+O102","v":0},{"$f":"+P85+P86+P97+P100+P101+P102","v":0},{"$f":"+Q85+Q86+Q97+Q100+Q101+Q102","v":0}]
[{"$f":"E85-SUM(F85:G85)","v":0},0,"S.11","Atvinnufyrirtæki",0,0,0,0,0,0,0,0,0,0,0,0,0]
[0,0,"S.12","Fjármálalgeiri",{"$f":"+SUM(E87:E96)","v":0},{"$f":"+SUM(F87:F96)","v":0},{"$f":"+SUM(G87:G96)","v":0},{"$f":"+SUM(H87:H96)","v":0},{"$f":"+SUM(I87:I96)","v":0},{"$f":"+SUM(J87:J96)","v":0},{"$f":"+SUM(K87:K96)","v":0},{"$f":"+SUM(L87:L96)","v":0},{"$f":"+SUM(M87:M96)","v":0},{"$f":"+SUM(N87:N96)","v":0},{"$f":"+SUM(O87:O96)","v":0},{"$f":"+SUM(P87:P96)","v":0},{"$f":"+SUM(Q87:Q96)","v":0}]
[0,0,"S.122","Innlánsstofnanir",0,0,0,0,0,0,0,0,0,0,0,0,0]
[0,0,"S.122X","Innlánsstofnanir í slitameðferð",0,0,0,0,0,0,0,0,0,0,0,0,0]
[0,0,"S.123","Peningamarkaðssjóðir",0,0,0,0,0,0,0,0,0,0,0,0,0]
[0,0,"S.124","Aðrir verðbréfa- og fjárfestingarsjóðir ",0,0,0,0,0,0,0,0,0,0,0,0,0]
[0,0,"S.125","Önnur fjármálafyrirtæki",0,0,0,0,0,0,0,0,0,0,0,0,0]
[0,0,"S.125X","Önnur fjármálafyrirtæki í slitameðferð",0,0,0,0,0,0,0,0,0,0,0,0,0]
[0,0,"S.126","Fjármálaleg hliðarstarfsemi",0,0,0,0,0,0,0,0,0,0,0,0,0]
[0,0,"S.127","Innbyrðis fjármálastarfsemi",0,0,0,0,0,0,0,0,0,0,0,0,0]
[0,0,"S.128","Vátryggingarfélög",0,0,0,0,0,0,0,0,0,0,0,0,0]
[0,0,"S.129","Lífeyrissjóðir",0,0,0,0,0,0,0,0,0,0,0,0,0]
["–",0,"S.13","Hið opinbera",{"$f":"+SUM(E98:E99)","v":0},"–","–",{"$f":"+H98+H99","v":0},{"$f":"+I98+I99","v":0},{"$f":"+J98+J99","v":0},{"$f":"+K98+K99","v":0},{"$f":"+L98+L99","v":0},{"$f":"+M98+M99","v":0},{"$f":"+N98+N99","v":0},{"$f":"+O98+O99","v":0},{"$f":"+P98+P99","v":0},{"$f":"+Q98+Q99","v":0}]
["–",0,"S.1311","Ríkisjóður",0,"–","–",0,0,0,0,0,0,0,0,0,0]
["–",0,"S.1313","Sveitarfélög",0,"–","–",0,0,0,0,0,0,0,0,0,0]
["–",0,"S.14","Heimili",0,"–","–",0,0,0,0,0,0,0,0,0,0]
["–",0,"S.15","Félagasamtök sem þjóna heimilum",0,"–","–",0,0,0,0,0,0,0,0,0,0]
["–",0,"S.2","Erlendir aðilar (skortstöður með hlutabréf og skuldabréf samtals)",{"$f":"+SUM(E103:E109)","v":0},"–","–",{"$f":"+SUM(H103:H109)","v":0},{"$f":"+SUM(I103:I109)","v":0},{"$f":"+SUM(J103:J109)","v":0},{"$f":"+SUM(K103:K109)","v":0},{"$f":"+SUM(L103:L109)","v":0},{"$f":"+SUM(M103:M109)","v":0},{"$f":"+SUM(N103:N109)","v":0},{"$f":"+SUM(O103:O109)","v":0},{"$f":"+SUM(P103:P109)","v":0},{"$f":"+SUM(Q103:Q109)","v":0}]
["–",0,"S.2.ERS","Seðlabankar",0,"–","–",0,0,0,0,0,0,0,0,0,0]
["–",0,"S.2.ERI","Innlánsstofnanir",0,"–","–",0,0,0,0,0,0,0,0,0,0]
[null,null,"S.2.ERP","Peningamarkaðssjóðir",0,"–","–",0,0,0,0,0,0,0,0,0,0]
[null,null,"S.2.ERV","Aðrir verðbréfa- og fjárfestingarsjóðir",0,"–","–",0,0,0,0,0,0,0,0,0,0]
["–",0,"S.2.ERF","Fjármálafyrirtæki (ótalin annars staðar)",0,"–","–",0,0,0,0,0,0,0,0,0,0]
["–",0,"S.2.ERO","Opinberir aðilar (ríki og sveitarfélög)",0,"–","–",0,0,0,0,0,0,0,0,0,0]
["–",0,"S.2.ERA","Önnur atvinnufyrirtæki, heimili og þjónusta við heimili",0,"–","–",0,0,0,0,0,0,0,0,0,0]
["–",0,"S.2","Erlendir aðilar- skortstöður með hlutabréf",0,"–","–",0,0,0,0,0,0,0,0,0,0]
["–",0,"S.2","Erlendir aðilar- skortstöður með skammtíma skuldaskjöl ≤ 1 ár",0,"–","–",0,0,0,0,0,0,0,0,0,0]
["–",0,"S.2","Erlendir aðilar- skortstöður með langtíma skuldaskjöl > 1 ár",0,"–","–",0,0,0,0,0,0,0,0,0,0]
[]
[]
[null,null,null,"Lárétt villupróf"]
[null,null,null,"Villupróf: Afleiður",{"$f":"E5-E6-E32-E58-E84","v":0},"–","–",{"$f":"H5-H6-H32-H58-H84","v":0},0,0,0,0,0,0,0,0,0]
[null,null,null,"Villupróf: Valréttir",{"$f":"E6-E7-E8-E19-E22-E23-E24","v":0},"–","–",0,0,0,0,0,0,0,0,0,0]
[null,null,null,"Villupróf: Framvirkir samningar",{"$f":"E32-E33-E34-E45-E48-E49-E50","v":0},"–","–",0,0,0,0,0,0,0,0,0,0]
[null,null,null,"Villupróf: Skortstöður",{"$f":"E84-E85-E86-E97-E100-E101-E102","v":0},"–","–",0,0,0,0,0,0,0,0,0,0]

{"sheet":"Eigið fe","index":14,"n_rows":34,"n_cols":20,"rows_kept":34,"cut":false,"hidden":false,"merged":[[2,5,3,5],[2,6,2,7],[2,8,2,9],[2,10,2,19]]}
[null,null,null,null,"Eigið fé  "]
[]
["Lóðrétt villupróf",null,null,null,"Fjárhæðir í þús.kr","Samtals","Skráð eða óskráð",null,"Eignarhald",null,"Myntskipting"]
["Skráð/óskráð","Rekstrarform","Myntskipting",null,null,null,"Skráð","Óskráð ","Opinbert fyrirtæki","Einka- fyrirtæki","ISK","EUR","USD","GBP","JPY","DKK","NOK","SEK","CHF","Aðrir gjaldmiðlar"]
["–","–",{"$f":"+F5-SUM(K5:T5)","v":0},null,"Útgefið hlutafé",{"$f":"+'Eigið fé'!C12","v":0},"–","–","–","–",{"$f":"+K6+K7","v":0},{"$f":"+L6+L7","v":0},0,0,0,0,0,0,0,0]
["–","–",{"$f":"+F6-SUM(K6:T6)","v":0},null,"    Innborgað hlutafé",{"$f":"+'Eigið fé'!C13","v":0},"–","–","–","–",0,0,0,0,0,0,0,0,0,0]
["–","–",0,null,"   Ógreitt innkallað hlutafé",{"$f":"+'Eigið fé'!C14","v":0},"–","–","–","–",0,0,0,0,0,0,0,0,0,0]
["–","–",0,null,"Yfirverð hlutafjár",{"$f":"+'Eigið fé'!C15","v":0},"–","–","–","–",0,0,0,0,0,0,0,0,0,0]
["–","–",0,null,"Annað eigið fé",{"$f":"+'Eigið fé'!C16","v":0},"–","–","–","–",{"$f":"+K10+K11+K12","v":0},{"$f":"+L10+L11+L12","v":0},0,0,0,0,0,0,0,0]
["–","–",0,null,"    Gengisbreytingar áhættuvarna",{"$f":"+'Eigið fé'!C17","v":0},"–","–","–","–",0,0,0,0,0,0,0,0,0,0]
["–","–",0,null,"    Kaupréttir starfsmanna",{"$f":"+'Eigið fé'!C18","v":0},"–","–","–","–",0,0,0,0,0,0,0,0,0,0]
["–","–",0,null,"    Aðrir eiginfjárliðir",{"$f":"+'Eigið fé'!C19","v":0},"–","–","–","–",0,0,0,0,0,0,0,0,0,0]
["–","–",0,null,"Endurmatsbreytingar á ",{"$f":"+'Eigið fé'!C20","v":0},"–","–","–","–",{"$f":"+SUM(K14:K21)","v":0},{"$f":"+SUM(L14:L21)","v":0},0,0,0,0,0,0,0,0]
["–","–",0,null,"    Varanlegum eignum",{"$f":"+'Eigið fé'!C21","v":0},"–","–","–","–",0,0,0,0,0,0,0,0,0,0]
["–","–",0,null,"    Óefnislegum eignum",{"$f":"+'Eigið fé'!C22","v":0},"–","–","–","–",0,0,0,0,0,0,0,0,0,0]
["–","–",0,null,"    Gengis(áhættu)vörnum  (virkum hluta)",{"$f":"+'Eigið fé'!C23","v":0},"–","–","–","–",0,0,0,0,0,0,0,0,0,0]
["–","–",0,null,"    Umreikningsmismun",{"$f":"+'Eigið fé'!C24","v":0},"–","–","–","–",0,0,0,0,0,0,0,0,0,0]
["–","–",0,null,"    Sjóðstreymisvörnum  (virkum hluta)",{"$f":"+'Eigið fé'!C25","v":0},"–","–","–","–",0,0,0,0,0,0,0,0,0,0]
["–","–",0,null,"    Söluhæfum eignum",{"$f":"+'Eigið fé'!C26","v":0},"–","–","–","–",0,0,0,0,0,0,0,0,0,0]
["–","–",0,null,"    Fullnustueignum",{"$f":"+'Eigið fé'!C27","v":0},"–","–","–","–",0,0,0,0,0,0,0,0,0,0]
["–","–",0,null,"    Öðrum óvaranlegum eignum",{"$f":"+'Eigið fé'!C28","v":0},"–","–","–","–",0,0,0,0,0,0,0,0,0,0]
["–","–",0,null,"Óráðstafað eigið fé",{"$f":"+'Eigið fé'!C29","v":0},"–","–","–","–",0,0,0,0,0,0,0,0,0,0]
["–","–",0,null,"Eigin hlutabréf",{"$f":"+'Eigið fé'!C30","v":0},"–","–","–","–",0,0,0,0,0,0,0,0,0,0]
["–","–",0,null,"Hagnaður/-tap ársins",{"$f":"+'Eigið fé'!C31","v":0},"–","–","–","–",0,0,0,0,0,0,0,0,0,0]
["–","–",0,null,"Arður innan árs",{"$f":"+'Eigið fé'!C32","v":0},"–","–","–","–",0,0,0,0,0,0,0,0,0,0]
[{"$f":"+F26-SUM(G26:H26)","v":0},{"$f":"+F26-SUM(I26:J26)","v":0},{"$f":"+F26-SUM(K26:T26)","v":0},null,"Eigið fé samtals",{"$f":"+'Eigið fé'!C33","v":0},0,0,0,0,{"$f":"+K5+K8+K9+K13+K22+K23+K24+K25","v":0},{"$f":"+L5+L8+L9+L13+L22+L23+L24+L25","v":0},0,0,0,0,0,0,0,0]
[]
[]
[]
[null,null,null,null,"Lárétt villupróf"]
[null,null,null,null,"Villupróf: Útgefið hlutafé",{"$f":"+F5-F6-F7","v":0},"–","–","–","–",{"$f":"+K5-K6-K7","v":0},0,0,0,0,0,0,0,0,0]
[null,null,null,null,"Villupróf: Annað eigið fé",{"$f":"+F9-F10-F11-F12","v":0},"–","–","–","–",{"$f":"+K9-K10-K11-K12","v":0},0,0,0,0,0,0,0,0,0]
[null,null,null,null,"Villupróf: Endurmatsbreytingar",{"$f":"+F13-SUM(F14:F21)","v":0},"–","–","–","–",{"$f":"+K13-SUM(K14:K21)","v":0},0,0,0,0,0,0,0,0,0]
[null,null,null,null,"Eigið fé samtals",{"$f":"+F26-F5-F8-F9-F13-F22-F23-F24-F25","v":0},"–","–","–","–",{"$f":"+K26-K5-K8-K9-K13-K22-K23-K24-K25","v":0},0,0,0,0,0,0,0,0,0]

{"sheet":"data","index":15,"n_rows":11469,"n_cols":4,"rows_kept":11469,"cut":false,"hidden":true,"merged":[]}
["grunn_inn_2014",null,null,"//grunngagnabú"]
["SI_EHR",null,null,"//samtölubú"]
[1,null,null,"//dagur"]
[{"$f":"MONTH(EIGNIR!C8)","v":9},null,null,"//mánuður"]
[{"$f":"YEAR(EIGNIR!C8)","v":2015},null,null,"//ár"]
[{"$f":"EIGNIR!C5","v":0},null,null,"//stofnun/stofnanir"]
["XXXSUM.",null,null,"//formúla f. samtölur"]
[null,null,null,"//kóði í samtölubúi"]
[]
[{"$f":"\"INN.\"&EIGNIR!$B$3&C10","v":{"$error":"#N/A"}},{"$f":"EIGNIR!C17","v":0},".M.ESBSI$$.XX.XXX.XXX.XXXX.SX.XXX.XXX.IS.N.M","//Gögnin byrja //Eignir"]
[{"$f":"\"INN.\"&EIGNIR!$B$3&C11","v":{"$error":"#N/A"}},{"$f":"EIGNIR!C18","v":0},".M.ESBSISM.XX.XXX.XXX.XXXX.SX.XXX.ISK.IS.N.M"]
[{"$f":"\"INN.\"&EIGNIR!$B$3&C12","v":{"$error":"#N/A"}},{"$f":"EIGNIR!C19","v":0},".M.ESBSISM.XX.$$$.XXX.XXXX.SX.XXX.ERL.IS.N.M"]
[{"$f":"\"INN.\"&EIGNIR!$B$3&C13","v":{"$error":"#N/A"}},{"$f":"EIGNIR!C20","v":0},".M.ESBSISM.XX.XXX.XXX.XXXX.SX.XXX.EUR.IS.N.M"]
[{"$f":"\"INN.\"&EIGNIR!$B$3&C14","v":{"$error":"#N/A"}},{"$f":"EIGNIR!C21","v":0},".M.ESBSISM.XX.XXX.XXX.XXXX.SX.XXX.USD.IS.N.M"]
[{"$f":"\"INN.\"&EIGNIR!$B$3&C15","v":{"$error":"#N/A"}},{"$f":"EIGNIR!C22","v":0},".M.ESBSISM.XX.XXX.XXX.XXXX.SX.XXX.GBP.IS.N.M"]
[{"$f":"\"INN.\"&EIGNIR!$B$3&C16","v":{"$error":"#N/A"}},{"$f":"EIGNIR!C23","v":0},".M.ESBSISM.XX.XXX.XXX.XXXX.SX.XXX.JPY.IS.N.M"]
[{"$f":"\"INN.\"&EIGNIR!$B$3&C17","v":{"$error":"#N/A"}},{"$f":"EIGNIR!C24","v":0},".M.ESBSISM.XX.XXX.XXX.XXXX.SX.XXX.DKK.IS.N.M"]
[{"$f":"\"INN.\"&EIGNIR!$B$3&C18","v":{"$error":"#N/A"}},{"$f":"EIGNIR!C25","v":0},".M.ESBSISM.XX.XXX.XXX.XXXX.SX.XXX.NOK.IS.N.M"]
[{"$f":"\"INN.\"&EIGNIR!$B$3&C19","v":{"$error":"#N/A"}},{"$f":"EIGNIR!C26","v":0},".M.ESBSISM.XX.XXX.XXX.XXXX.SX.XXX.SEK.IS.N.M"]
[{"$f":"\"INN.\"&EIGNIR!$B$3&C20","v":{"$error":"#N/A"}},{"$f":"EIGNIR!C27","v":0},".M.ESBSISM.XX.XXX.XXX.XXXX.SX.XXX.CHF.IS.N.M"]
[{"$f":"\"INN.\"&EIGNIR!$B$3&C21","v":{"$error":"#N/A"}},{"$f":"EIGNIR!C28","v":0},".M.ESBSISM.XX.XXX.XXX.XXXX.SX.XXX.ADR.IS.N.M"]
[{"$f":"\"INN.\"&EIGNIR!$B$3&C22","v":{"$error":"#N/A"}},{"$f":"EIGNIR!C29","v":0},".M.ESBSIVR.XX.XXX.XXX.XXXX.SX.XXX.ISK.IS.N.M"]
[{"$f":"\"INN.\"&EIGNIR!$B$3&C23","v":{"$error":"#N/A"}},{"$f":"EIGNIR!C30","v":0},".M.ESBSIGR.XX.XXX.XXX.XXXX.SX.XXX.XXX.IS.N.M"]
[{"$f":"\"INN.\"&EIGNIR!$B$3&C24","v":{"$error":"#N/A"}},{"$f":"EIGNIR!C31","v":0},".M.ESBSIIB.XX.XXX.XXX.XXXX.SX.XXX.ISK.IS.N.M"]
[{"$f":"\"INN.\"&EIGNIR!$B$3&C25","v":{"$error":"#N/A"}},{"$f":"EIGNIR!C32","v":0},".M.ESBSIBI.XX.XXX.XXX.XXXX.SX.XXX.ISK.IS.N.M"]
[{"$f":"\"INN.\"&EIGNIR!$B$3&C26","v":{"$error":"#N/A"}},{"$f":"EIGNIR!C33","v":0},".M.ESBSIAS.XX.XXX.XXX.XXXX.SX.XXX.ISK.IS.N.M"]
[{"$f":"\"INN.\"&EIGNIR!$B$3&C27","v":{"$error":"#N/A"}},{"$f":"EIGNIR!C34","v":0},".M.EVF$$$$.XX.XXX.XXX.XXXX.SX.XXX.XXX.IS.N.M","//Veltufjáreignir"]
[{"$f":"\"INN.\"&EIGNIR!$B$3&C28","v":{"$error":"#N/A"}},{"$f":"EIGNIR!C35","v":0},".M.EVFAV$$.XX.XXX.XXX.XXXX.SX.XXX.XXX.IS.N.M","//Afleiður"]
[{"$f":"\"INN.\"&EIGNIR!$B$3&C29","v":{"$error":"#N/A"}},{"$f":"EIGNIR!C36","v":0},".M.EVFHB$$.XX.$$$.XXX.XXXX.SX.XXX.XXX.IS.N.M","//Hlutabréf og hlutdeildarskírteini"]
[{"$f":"\"INN.\"&EIGNIR!$B$3&C30","v":{"$error":"#N/A"}},{"$f":"EIGNIR!C37","v":0},".M.EVFHBHB.XX.ATV.XXX.XXXX.SX.XXX.XXX.IS.N.M"]
[{"$f":"\"INN.\"&EIGNIR!$B$3&C31","v":{"$error":"#N/A"}},{"$f":"EIGNIR!C38","v":0},".M.EVFHBHB.XX.LAB.XXX.XXXX.SX.XXX.XXX.IS.N.M"]
[{"$f":"\"INN.\"&EIGNIR!$B$3&C32","v":{"$error":"#N/A"}},{"$f":"EIGNIR!C39","v":0},".M.EVFHBHB.XX.SJA.XXX.XXXX.SX.XXX.XXX.IS.N.M"]
[{"$f":"\"INN.\"&EIGNIR!$B$3&C33","v":{"$error":"#N/A"}},{"$f":"EIGNIR!C40","v":0},".M.EVFHBHB.XX.ILA.XXX.XXXX.SX.XXX.XXX.IS.N.M"]
[{"$f":"\"INN.\"&EIGNIR!$B$3&C34","v":{"$error":"#N/A"}},{"$f":"EIGNIR!C41","v":0},".M.EVFHBHB.XX.ISJ.XXX.XXXX.SX.XXX.XXX.IS.N.M"]
[{"$f":"\"INN.\"&EIGNIR!$B$3&C35","v":{"$error":"#N/A"}},{"$f":"EIGNIR!C42","v":0},".M.EVFHBHB.XX.IAN.XXX.XXXX.SX.XXX.XXX.IS.N.M"]
[{"$f":"\"INN.\"&EIGNIR!$B$3&C36","v":{"$error":"#N/A"}},{"$f":"EIGNIR!C43","v":0},".M.EVFHBHB.XX.RAF.XXX.XXXX.SX.XXX.XXX.IS.N.M"]
[{"$f":"\"INN.\"&EIGNIR!$B$3&C37","v":{"$error":"#N/A"}},{"$f":"EIGNIR!C44","v":0},".M.EVFHBHB.XX.MAN.XXX.XXXX.SX.XXX.XXX.IS.N.M"]
[{"$f":"\"INN.\"&EIGNIR!$B$3&C38","v":{"$error":"#N/A"}},{"$f":"EIGNIR!C45","v":0},".M.EVFHBHB.XX.VEN.XXX.XXXX.SX.XXX.XXX.IS.N.M"]
[{"$f":"\"INN.\"&EIGNIR!$B$3&C39","v":{"$error":"#N/A"}},{"$f":"EIGNIR!C46","v":0},".M.EVFHBHB.XX.SAG.XXX.XXXX.SX.XXX.XXX.IS.N.M"]
[{"$f":"\"INN.\"&EIGNIR!$B$3&C40","v":{"$error":"#N/A"}},{"$f":"EIGNIR!C47","v":0},".M.EVFHBHB.XX.THF.XXX.XXXX.SX.XXX.XXX.IS.N.M"]
[{"$f":"\"INN.\"&EIGNIR!$B$3&C41","v":{"$error":"#N/A"}},{"$f":"EIGNIR!C48","v":0},".M.EVFHBHB.XX.THH.XXX.XXXX.SX.XXX.XXX.IS.N.M"]
[{"$f":"\"INN.\"&EIGNIR!$B$3&C42","v":{"$error":"#N/A"}},{"$f":"EIGNIR!C49","v":0},".M.EVFHBHB.XX.THA.XXX.XXXX.SX.XXX.XXX.IS.N.M"]
[{"$f":"\"INN.\"&EIGNIR!$B$3&C43","v":{"$error":"#N/A"}},{"$f":"EIGNIR!C50","v":0},".M.EVFHBHB.XX.OFL.XXX.XXXX.SX.XXX.XXX.IS.N.M"]
[{"$f":"\"INN.\"&EIGNIR!$B$3&C44","v":{"$error":"#N/A"}},{"$f":"EIGNIR!C51","v":0},".M.EVFHBHB.XX.FJA.XXX.XXXX.SX.XXX.XXX.IS.N.M"]
[{"$f":"\"INN.\"&EIGNIR!$B$3&C45","v":{"$error":"#N/A"}},{"$f":"EIGNIR!C52","v":0},".M.EVFHBHB.XX.INN.XXX.XXXX.SX.XXX.XXX.IS.N.M"]
[{"$f":"\"INN.\"&EIGNIR!$B$3&C46","v":{"$error":"#N/A"}},{"$f":"EIGNIR!C53","v":0},".M.EVFHBHB.XX.SLI.XXX.XXXX.SX.XXX.XXX.IS.N.M"]
[{"$f":"\"INN.\"&EIGNIR!$B$3&C47","v":{"$error":"#N/A"}},{"$f":"EIGNIR!C54","v":0},".M.EVFHBHB.XX.PEN.XXX.XXXX.SX.XXX.XXX.IS.N.M"]
[{"$f":"\"INN.\"&EIGNIR!$B$3&C48","v":{"$error":"#N/A"}},{"$f":"EIGNIR!C55","v":0},".M.EVFHBHB.XX.SJO.XXX.XXXX.SX.XXX.XXX.IS.N.M"]
[{"$f":"\"INN.\"&EIGNIR!$B$3&C49","v":{"$error":"#N/A"}},{"$f":"EIGNIR!C56","v":0},".M.EVFHBHB.XX.YFT.XXX.XXXX.SX.XXX.XXX.IS.N.M"]
[{"$f":"\"INN.\"&EIGNIR!$B$3&C50","v":{"$error":"#N/A"}},{"$f":"EIGNIR!C57","v":0},".M.EVFHBHB.XX.SLY.XXX.XXXX.SX.XXX.XXX.IS.N.M"]
[{"$f":"\"INN.\"&EIGNIR!$B$3&C51","v":{"$error":"#N/A"}},{"$f":"EIGNIR!C58","v":0},".M.EVFHBHB.XX.FHL.XXX.XXXX.SX.XXX.XXX.IS.N.M"]
[{"$f":"\"INN.\"&EIGNIR!$B$3&C52","v":{"$error":"#N/A"}},{"$f":"EIGNIR!C59","v":0},".M.EVFHBHB.XX.INF.XXX.XXXX.SX.XXX.XXX.IS.N.M"]
[{"$f":"\"INN.\"&EIGNIR!$B$3&C53","v":{"$error":"#N/A"}},{"$f":"EIGNIR!C60","v":0},".M.EVFHBHB.XX.TRY.XXX.XXXX.SX.XXX.XXX.IS.N.M"]
[{"$f":"\"INN.\"&EIGNIR!$B$3&C54","v":{"$error":"#N/A"}},{"$f":"EIGNIR!C61","v":0},".M.EVFHBHB.XX.LIF.XXX.XXXX.SX.XXX.XXX.IS.N.M"]
[{"$f":"\"INN.\"&EIGNIR!$B$3&C55","v":{"$error":"#N/A"}},{"$f":"EIGNIR!C66","v":0},".M.EVFHBHB.XX.NPH.XXX.XXXX.SX.XXX.XXX.IS.N.M"]
[{"$f":"\"INN.\"&EIGNIR!$B$3&C56","v":{"$error":"#N/A"}},{"$f":"EIGNIR!C67","v":0},".M.EVFHBHB.XX.ERL.XXX.XXXX.SX.XXX.XXX.IS.N.M"]
[{"$f":"\"INN.\"&EIGNIR!$B$3&C57","v":{"$error":"#N/A"}},{"$f":"EIGNIR!C68","v":0},".M.EVFSV$$.XX.$$$.XXX.XXXX.SX.XXX.XXX.IS.N.M","//Skuldabréf og víxlar"]
[{"$f":"\"INN.\"&EIGNIR!$B$3&C58","v":{"$error":"#N/A"}},{"$f":"EIGNIR!C69","v":0},".M.EVFSVVM.XX.$$$.XXX.XXXX.SV.XXX.XXX.IS.N.M","//Skuldabréf og víxlar, Verðtryggð markaðsskuldabréf"]
[{"$f":"\"INN.\"&EIGNIR!$B$3&C59","v":{"$error":"#N/A"}},{"$f":"EIGNIR!C70","v":0},".M.EVFSVVM.XX.ATV.XXX.XXXX.SV.XXX.XXX.IS.N.M"]
[{"$f":"\"INN.\"&EIGNIR!$B$3&C60","v":{"$error":"#N/A"}},{"$f":"EIGNIR!C71","v":0},".M.EVFSVVM.XX.LAB.XXX.XXXX.SV.XXX.XXX.IS.N.M"]
[{"$f":"\"INN.\"&EIGNIR!$B$3&C61","v":{"$error":"#N/A"}},{"$f":"EIGNIR!C72","v":0},".M.EVFSVVM.XX.SJA.XXX.XXXX.SV.XXX.XXX.IS.N.M"]
[{"$f":"\"INN.\"&EIGNIR!$B$3&C62","v":{"$error":"#N/A"}},{"$f":"EIGNIR!C73","v":0},".M.EVFSVVM.XX.ILA.XXX.XXXX.SV.XXX.XXX.IS.N.M"]
[{"$f":"\"INN.\"&EIGNIR!$B$3&C63","v":{"$error":"#N/A"}},{"$f":"EIGNIR!C74","v":0},".M.EVFSVVM.XX.ISJ.XXX.XXXX.SV.XXX.XXX.IS.N.M"]
[{"$f":"\"INN.\"&EIGNIR!$B$3&C64","v":{"$error":"#N/A"}},{"$f":"EIGNIR!C75","v":0},".M.EVFSVVM.XX.IAN.XXX.XXXX.SV.XXX.XXX.IS.N.M"]
[{"$f":"\"INN.\"&EIGNIR!$B$3&C65","v":{"$error":"#N/A"}},{"$f":"EIGNIR!C76","v":0},".M.EVFSVVM.XX.RAF.XXX.XXXX.SV.XXX.XXX.IS.N.M"]
[{"$f":"\"INN.\"&EIGNIR!$B$3&C66","v":{"$error":"#N/A"}},{"$f":"EIGNIR!C77","v":0},".M.EVFSVVM.XX.MAN.XXX.XXXX.SV.XXX.XXX.IS.N.M"]
[{"$f":"\"INN.\"&EIGNIR!$B$3&C67","v":{"$error":"#N/A"}},{"$f":"EIGNIR!C78","v":0},".M.EVFSVVM.XX.VEN.XXX.XXXX.SV.XXX.XXX.IS.N.M"]
[{"$f":"\"INN.\"&EIGNIR!$B$3&C68","v":{"$error":"#N/A"}},{"$f":"EIGNIR!C79","v":0},".M.EVFSVVM.XX.SAG.XXX.XXXX.SV.XXX.XXX.IS.N.M"]
[{"$f":"\"INN.\"&EIGNIR!$B$3&C69","v":{"$error":"#N/A"}},{"$f":"EIGNIR!C80","v":0},".M.EVFSVVM.XX.THF.XXX.XXXX.SV.XXX.XXX.IS.N.M"]
[{"$f":"\"INN.\"&EIGNIR!$B$3&C70","v":{"$error":"#N/A"}},{"$f":"EIGNIR!C81","v":0},".M.EVFSVVM.XX.THH.XXX.XXXX.SV.XXX.XXX.IS.N.M"]
[{"$f":"\"INN.\"&EIGNIR!$B$3&C71","v":{"$error":"#N/A"}},{"$f":"EIGNIR!C82","v":0},".M.EVFSVVM.XX.THA.XXX.XXXX.SV.XXX.XXX.IS.N.M"]
[{"$f":"\"INN.\"&EIGNIR!$B$3&C72","v":{"$error":"#N/A"}},{"$f":"EIGNIR!C83","v":0},".M.EVFSVVM.XX.OFL.XXX.XXXX.SV.XXX.XXX.IS.N.M"]
[{"$f":"\"INN.\"&EIGNIR!$B$3&C73","v":{"$error":"#N/A"}},{"$f":"EIGNIR!C84","v":0},".M.EVFSVVM.XX.FJA.XXX.XXXX.SV.XXX.XXX.IS.N.M"]
[{"$f":"\"INN.\"&EIGNIR!$B$3&C74","v":{"$error":"#N/A"}},{"$f":"EIGNIR!C85","v":0},".M.EVFSVVM.XX.INN.XXX.XXXX.SV.XXX.XXX.IS.N.M"]
[{"$f":"\"INN.\"&EIGNIR!$B$3&C75","v":{"$error":"#N/A"}},{"$f":"EIGNIR!C86","v":0},".M.EVFSVVM.XX.SLI.XXX.XXXX.SV.XXX.XXX.IS.N.M"]
[{"$f":"\"INN.\"&EIGNIR!$B$3&C76","v":{"$error":"#N/A"}},{"$f":"EIGNIR!C87","v":0},".M.EVFSVVM.XX.PEN.XXX.XXXX.SV.XXX.XXX.IS.N.M"]
[{"$f":"\"INN.\"&EIGNIR!$B$3&C77","v":{"$error":"#N/A"}},{"$f":"EIGNIR!C88","v":0},".M.EVFSVVM.XX.SJO.XXX.XXXX.SV.XXX.XXX.IS.N.M"]
[{"$f":"\"INN.\"&EIGNIR!$B$3&C78","v":{"$error":"#N/A"}},{"$f":"EIGNIR!C89","v":0},".M.EVFSVVM.XX.YFT.XXX.XXXX.SV.XXX.XXX.IS.N.M"]
[{"$f":"\"INN.\"&EIGNIR!$B$3&C79","v":{"$error":"#N/A"}},{"$f":"EIGNIR!C90","v":0},".M.EVFSVVM.XX.SLY.XXX.XXXX.SV.XXX.XXX.IS.N.M"]
[{"$f":"\"INN.\"&EIGNIR!$B$3&C80","v":{"$error":"#N/A"}},{"$f":"EIGNIR!C91","v":0},".M.EVFSVVM.XX.FHL.XXX.XXXX.SV.XXX.XXX.IS.N.M"]
[{"$f":"\"INN.\"&EIGNIR!$B$3&C81","v":{"$error":"#N/A"}},{"$f":"EIGNIR!C92","v":0},".M.EVFSVVM.XX.INF.XXX.XXXX.SV.XXX.XXX.IS.N.M"]
[{"$f":"\"INN.\"&EIGNIR!$B$3&C82","v":{"$error":"#N/A"}},{"$f":"EIGNIR!C93","v":0},".M.EVFSVVM.XX.TRY.XXX.XXXX.SV.XXX.XXX.IS.N.M"]
[{"$f":"\"INN.\"&EIGNIR!$B$3&C83","v":{"$error":"#N/A"}},{"$f":"EIGNIR!C94","v":0},".M.EVFSVVM.XX.LIF.XXX.XXXX.SV.XXX.XXX.IS.N.M"]
[{"$f":"\"INN.\"&EIGNIR!$B$3&C84","v":{"$error":"#N/A"}},{"$f":"EIGNIR!C95","v":0},".M.EVFSVVM.XX.OPI.XXX.XXXX.SV.XXX.XXX.IS.N.M"]
[{"$f":"\"INN.\"&EIGNIR!$B$3&C85","v":{"$error":"#N/A"}},{"$f":"EIGNIR!C96","v":0},".M.EVFSVVM.XX.RSS.XXX.XXXX.SV.XXX.XXX.IS.N.M"]
[{"$f":"\"INN.\"&EIGNIR!$B$3&C86","v":{"$error":"#N/A"}},{"$f":"EIGNIR!C97","v":0},".M.EVFSVVM.XX.BAJ.XXX.XXXX.SV.XXX.XXX.IS.N.M"]
[{"$f":"\"INN.\"&EIGNIR!$B$3&C87","v":{"$error":"#N/A"}},{"$f":"EIGNIR!C99","v":0},".M.EVFSVVM.XX.NPH.XXX.XXXX.SV.XXX.XXX.IS.N.M"]
[{"$f":"\"INN.\"&EIGNIR!$B$3&C88","v":{"$error":"#N/A"}},{"$f":"EIGNIR!C100","v":0},".M.EVFSVVM.XX.ERL.XXX.XXXX.SV.XXX.XXX.IS.N.M"]
[{"$f":"\"INN.\"&EIGNIR!$B$3&C89","v":{"$error":"#N/A"}},{"$f":"EIGNIR!C101","v":0},".M.EVFSVOM.XX.$$$.XXX.XXXX.SX.LAT.XXX.IS.N.M","//Skuldabréf og víxlar, Önnur markaðsskuldabréf og víxlar > 1 ár"]
[{"$f":"\"INN.\"&EIGNIR!$B$3&C90","v":{"$error":"#N/A"}},{"$f":"EIGNIR!C102","v":0},".M.EVFSVOM.XX.ATV.XXX.XXXX.SX.LAT.XXX.IS.N.M"]
[{"$f":"\"INN.\"&EIGNIR!$B$3&C91","v":{"$error":"#N/A"}},{"$f":"EIGNIR!C103","v":0},".M.EVFSVOM.XX.LAB.XXX.XXXX.SX.LAT.XXX.IS.N.M"]
[{"$f":"\"INN.\"&EIGNIR!$B$3&C92","v":{"$error":"#N/A"}},{"$f":"EIGNIR!C104","v":0},".M.EVFSVOM.XX.SJA.XXX.XXXX.SX.LAT.XXX.IS.N.M"]
[{"$f":"\"INN.\"&EIGNIR!$B$3&C93","v":{"$error":"#N/A"}},{"$f":"EIGNIR!C105","v":0},".M.EVFSVOM.XX.ILA.XXX.XXXX.SX.LAT.XXX.IS.N.M"]
[{"$f":"\"INN.\"&EIGNIR!$B$3&C94","v":{"$error":"#N/A"}},{"$f":"EIGNIR!C106","v":0},".M.EVFSVOM.XX.ISJ.XXX.XXXX.SX.LAT.XXX.IS.N.M"]
[{"$f":"\"INN.\"&EIGNIR!$B$3&C95","v":{"$error":"#N/A"}},{"$f":"EIGNIR!C107","v":0},".M.EVFSVOM.XX.IAN.XXX.XXXX.SX.LAT.XXX.IS.N.M"]
[{"$f":"\"INN.\"&EIGNIR!$B$3&C96","v":{"$error":"#N/A"}},{"$f":"EIGNIR!C108","v":0},".M.EVFSVOM.XX.RAF.XXX.XXXX.SX.LAT.XXX.IS.N.M"]
[{"$f":"\"INN.\"&EIGNIR!$B$3&C97","v":{"$error":"#N/A"}},{"$f":"EIGNIR!C109","v":0},".M.EVFSVOM.XX.MAN.XXX.XXXX.SX.LAT.XXX.IS.N.M"]
[{"$f":"\"INN.\"&EIGNIR!$B$3&C98","v":{"$error":"#N/A"}},{"$f":"EIGNIR!C110","v":0},".M.EVFSVOM.XX.VEN.XXX.XXXX.SX.LAT.XXX.IS.N.M"]
[{"$f":"\"INN.\"&EIGNIR!$B$3&C99","v":{"$error":"#N/A"}},{"$f":"EIGNIR!C111","v":0},".M.EVFSVOM.XX.SAG.XXX.XXXX.SX.LAT.XXX.IS.N.M"]
[{"$f":"\"INN.\"&EIGNIR!$B$3&C100","v":{"$error":"#N/A"}},{"$f":"EIGNIR!C112","v":0},".M.EVFSVOM.XX.THF.XXX.XXXX.SX.LAT.XXX.IS.N.M"]
[{"$f":"\"INN.\"&EIGNIR!$B$3&C101","v":{"$error":"#N/A"}},{"$f":"EIGNIR!C113","v":0},".M.EVFSVOM.XX.THH.XXX.XXXX.SX.LAT.XXX.IS.N.M"]
[{"$f":"\"INN.\"&EIGNIR!$B$3&C102","v":{"$error":"#N/A"}},{"$f":"EIGNIR!C114","v":0},".M.EVFSVOM.XX.THA.XXX.XXXX.SX.LAT.XXX.IS.N.M"]
[{"$f":"\"INN.\"&EIGNIR!$B$3&C103","v":{"$error":"#N/A"}},{"$f":"EIGNIR!C115","v":0},".M.EVFSVOM.XX.OFL.XXX.XXXX.SX.LAT.XXX.IS.N.M"]
[{"$f":"\"INN.\"&EIGNIR!$B$3&C104","v":{"$error":"#N/A"}},{"$f":"EIGNIR!C116","v":0},".M.EVFSVOM.XX.FJA.XXX.XXXX.SX.LAT.XXX.IS.N.M"]
[{"$f":"\"INN.\"&EIGNIR!$B$3&C105","v":{"$error":"#N/A"}},{"$f":"EIGNIR!C117","v":0},".M.EVFSVOM.XX.INN.XXX.XXXX.SX.LAT.XXX.IS.N.M"]
[{"$f":"\"INN.\"&EIGNIR!$B$3&C106","v":{"$error":"#N/A"}},{"$f":"EIGNIR!C118","v":0},".M.EVFSVOM.XX.SLI.XXX.XXXX.SX.LAT.XXX.IS.N.M"]
[{"$f":"\"INN.\"&EIGNIR!$B$3&C107","v":{"$error":"#N/A"}},{"$f":"EIGNIR!C119","v":0},".M.EVFSVOM.XX.PEN.XXX.XXXX.SX.LAT.XXX.IS.N.M"]
[{"$f":"\"INN.\"&EIGNIR!$B$3&C108","v":{"$error":"#N/A"}},{"$f":"EIGNIR!C120","v":0},".M.EVFSVOM.XX.SJO.XXX.XXXX.SX.LAT.XXX.IS.N.M"]
[{"$f":"\"INN.\"&EIGNIR!$B$3&C109","v":{"$error":"#N/A"}},{"$f":"EIGNIR!C121","v":0},".M.EVFSVOM.XX.YFT.XXX.XXXX.SX.LAT.XXX.IS.N.M"]
[{"$f":"\"INN.\"&EIGNIR!$B$3&C110","v":{"$error":"#N/A"}},{"$f":"EIGNIR!C122","v":0},".M.EVFSVOM.XX.SLY.XXX.XXXX.SX.LAT.XXX.IS.N.M"]
[{"$f":"\"INN.\"&EIGNIR!$B$3&C111","v":{"$error":"#N/A"}},{"$f":"EIGNIR!C123","v":0},".M.EVFSVOM.XX.FHL.XXX.XXXX.SX.LAT.XXX.IS.N.M"]
[{"$f":"\"INN.\"&EIGNIR!$B$3&C112","v":{"$error":"#N/A"}},{"$f":"EIGNIR!C124","v":0},".M.EVFSVOM.XX.INF.XXX.XXXX.SX.LAT.XXX.IS.N.M"]
[{"$f":"\"INN.\"&EIGNIR!$B$3&C113","v":{"$error":"#N/A"}},{"$f":"EIGNIR!C125","v":0},".M.EVFSVOM.XX.TRY.XXX.XXXX.SX.LAT.XXX.IS.N.M"]
[{"$f":"\"INN.\"&EIGNIR!$B$3&C114","v":{"$error":"#N/A"}},{"$f":"EIGNIR!C126","v":0},".M.EVFSVOM.XX.LIF.XXX.XXXX.SX.LAT.XXX.IS.N.M"]
[{"$f":"\"INN.\"&EIGNIR!$B$3&C115","v":{"$error":"#N/A"}},{"$f":"EIGNIR!C127","v":0},".M.EVFSVOM.XX.OPI.XXX.XXXX.SX.LAT.XXX.IS.N.M"]
[{"$f":"\"INN.\"&EIGNIR!$B$3&C116","v":{"$error":"#N/A"}},{"$f":"EIGNIR!C128","v":0},".M.EVFSVOM.XX.RSS.XXX.XXXX.SX.LAT.XXX.IS.N.M"]
[{"$f":"\"INN.\"&EIGNIR!$B$3&C117","v":{"$error":"#N/A"}},{"$f":"EIGNIR!C129","v":0},".M.EVFSVOM.XX.BAJ.XXX.XXXX.SX.LAT.XXX.IS.N.M"]
[{"$f":"\"INN.\"&EIGNIR!$B$3&C118","v":{"$error":"#N/A"}},{"$f":"EIGNIR!C131","v":0},".M.EVFSVOM.XX.NPH.XXX.XXXX.SX.LAT.XXX.IS.N.M"]
[{"$f":"\"INN.\"&EIGNIR!$B$3&C119","v":{"$error":"#N/A"}},{"$f":"EIGNIR!C132","v":0},".M.EVFSVOM.XX.ERL.XXX.XXXX.SX.LAT.XXX.IS.N.M"]
[{"$f":"\"INN.\"&EIGNIR!$B$3&C120","v":{"$error":"#N/A"}},{"$f":"EIGNIR!C133","v":0},".M.EVFSVOM.XX.$$$.XXX.XXXX.SX.SKT.XXX.IS.N.M","//Skuldabréf og víxlar, Önnur markaðsskuldabréf og víxlar  ≤ 1 ár"]
[{"$f":"\"INN.\"&EIGNIR!$B$3&C121","v":{"$error":"#N/A"}},{"$f":"EIGNIR!C134","v":0},".M.EVFSVOM.XX.ATV.XXX.XXXX.SX.SKT.XXX.IS.N.M"]
[{"$f":"\"INN.\"&EIGNIR!$B$3&C122","v":{"$error":"#N/A"}},{"$f":"EIGNIR!C135","v":0},".M.EVFSVOM.XX.LAB.XXX.XXXX.SX.SKT.XXX.IS.N.M"]
[{"$f":"\"INN.\"&EIGNIR!$B$3&C123","v":{"$error":"#N/A"}},{"$f":"EIGNIR!C136","v":0},".M.EVFSVOM.XX.SJA.XXX.XXXX.SX.SKT.XXX.IS.N.M"]
[{"$f":"\"INN.\"&EIGNIR!$B$3&C124","v":{"$error":"#N/A"}},{"$f":"EIGNIR!C137","v":0},".M.EVFSVOM.XX.ILA.XXX.XXXX.SX.SKT.XXX.IS.N.M"]
[{"$f":"\"INN.\"&EIGNIR!$B$3&C125","v":{"$error":"#N/A"}},{"$f":"EIGNIR!C138","v":0},".M.EVFSVOM.XX.ISJ.XXX.XXXX.SX.SKT.XXX.IS.N.M"]
[{"$f":"\"INN.\"&EIGNIR!$B$3&C126","v":{"$error":"#N/A"}},{"$f":"EIGNIR!C139","v":0},".M.EVFSVOM.XX.IAN.XXX.XXXX.SX.SKT.XXX.IS.N.M"]
[{"$f":"\"INN.\"&EIGNIR!$B$3&C127","v":{"$error":"#N/A"}},{"$f":"EIGNIR!C140","v":0},".M.EVFSVOM.XX.RAF.XXX.XXXX.SX.SKT.XXX.IS.N.M"]
[{"$f":"\"INN.\"&EIGNIR!$B$3&C128","v":{"$error":"#N/A"}},{"$f":"EIGNIR!C141","v":0},".M.EVFSVOM.XX.MAN.XXX.XXXX.SX.SKT.XXX.IS.N.M"]
[{"$f":"\"INN.\"&EIGNIR!$B$3&C129","v":{"$error":"#N/A"}},{"$f":"EIGNIR!C142","v":0},".M.EVFSVOM.XX.VEN.XXX.XXXX.SX.SKT.XXX.IS.N.M"]
[{"$f":"\"INN.\"&EIGNIR!$B$3&C130","v":{"$error":"#N/A"}},{"$f":"EIGNIR!C143","v":0},".M.EVFSVOM.XX.SAG.XXX.XXXX.SX.SKT.XXX.IS.N.M"]
[{"$f":"\"INN.\"&EIGNIR!$B$3&C131","v":{"$error":"#N/A"}},{"$f":"EIGNIR!C144","v":0},".M.EVFSVOM.XX.THF.XXX.XXXX.SX.SKT.XXX.IS.N.M"]
[{"$f":"\"INN.\"&EIGNIR!$B$3&C132","v":{"$error":"#N/A"}},{"$f":"EIGNIR!C145","v":0},".M.EVFSVOM.XX.THH.XXX.XXXX.SX.SKT.XXX.IS.N.M"]
[{"$f":"\"INN.\"&EIGNIR!$B$3&C133","v":{"$error":"#N/A"}},{"$f":"EIGNIR!C146","v":0},".M.EVFSVOM.XX.THA.XXX.XXXX.SX.SKT.XXX.IS.N.M"]
[{"$f":"\"INN.\"&EIGNIR!$B$3&C134","v":{"$error":"#N/A"}},{"$f":"EIGNIR!C147","v":0},".M.EVFSVOM.XX.OFL.XXX.XXXX.SX.SKT.XXX.IS.N.M"]
[{"$f":"\"INN.\"&EIGNIR!$B$3&C135","v":{"$error":"#N/A"}},{"$f":"EIGNIR!C148","v":0},".M.EVFSVOM.XX.FJA.XXX.XXXX.SX.SKT.XXX.IS.N.M"]
[{"$f":"\"INN.\"&EIGNIR!$B$3&C136","v":{"$error":"#N/A"}},{"$f":"EIGNIR!C149","v":0},".M.EVFSVOM.XX.INN.XXX.XXXX.SX.SKT.XXX.IS.N.M"]
[{"$f":"\"INN.\"&EIGNIR!$B$3&C137","v":{"$error":"#N/A"}},{"$f":"EIGNIR!C150","v":0},".M.EVFSVOM.XX.SLI.XXX.XXXX.SX.SKT.XXX.IS.N.M"]
[{"$f":"\"INN.\"&EIGNIR!$B$3&C138","v":{"$error":"#N/A"}},{"$f":"EIGNIR!C151","v":0},".M.EVFSVOM.XX.PEN.XXX.XXXX.SX.SKT.XXX.IS.N.M"]
[{"$f":"\"INN.\"&EIGNIR!$B$3&C139","v":{"$error":"#N/A"}},{"$f":"EIGNIR!C152","v":0},".M.EVFSVOM.XX.SJO.XXX.XXXX.SX.SKT.XXX.IS.N.M"]
[{"$f":"\"INN.\"&EIGNIR!$B$3&C140","v":{"$error":"#N/A"}},{"$f":"EIGNIR!C153","v":0},".M.EVFSVOM.XX.YFT.XXX.XXXX.SX.SKT.XXX.IS.N.M"]
[{"$f":"\"INN.\"&EIGNIR!$B$3&C141","v":{"$error":"#N/A"}},{"$f":"EIGNIR!C154","v":0},".M.EVFSVOM.XX.SLY.XXX.XXXX.SX.SKT.XXX.IS.N.M"]
[{"$f":"\"INN.\"&EIGNIR!$B$3&C142","v":{"$error":"#N/A"}},{"$f":"EIGNIR!C155","v":0},".M.EVFSVOM.XX.FHL.XXX.XXXX.SX.SKT.XXX.IS.N.M"]
[{"$f":"\"INN.\"&EIGNIR!$B$3&C143","v":{"$error":"#N/A"}},{"$f":"EIGNIR!C156","v":0},".M.EVFSVOM.XX.INF.XXX.XXXX.SX.SKT.XXX.IS.N.M"]
[{"$f":"\"INN.\"&EIGNIR!$B$3&C144","v":{"$error":"#N/A"}},{"$f":"EIGNIR!C157","v":0},".M.EVFSVOM.XX.TRY.XXX.XXXX.SX.SKT.XXX.IS.N.M"]
[{"$f":"\"INN.\"&EIGNIR!$B$3&C145","v":{"$error":"#N/A"}},{"$f":"EIGNIR!C158","v":0},".M.EVFSVOM.XX.LIF.XXX.XXXX.SX.SKT.XXX.IS.N.M"]
[{"$f":"\"INN.\"&EIGNIR!$B$3&C146","v":{"$error":"#N/A"}},{"$f":"EIGNIR!C159","v":0},".M.EVFSVOM.XX.OPI.XXX.XXXX.SX.SKT.XXX.IS.N.M"]
[{"$f":"\"INN.\"&EIGNIR!$B$3&C147","v":{"$error":"#N/A"}},{"$f":"EIGNIR!C160","v":0},".M.EVFSVOM.XX.RSS.XXX.XXXX.SX.SKT.XXX.IS.N.M"]
[{"$f":"\"INN.\"&EIGNIR!$B$3&C148","v":{"$error":"#N/A"}},{"$f":"EIGNIR!C161","v":0},".M.EVFSVOM.XX.BAJ.XXX.XXXX.SX.SKT.XXX.IS.N.M"]
[{"$f":"\"INN.\"&EIGNIR!$B$3&C149","v":{"$error":"#N/A"}},{"$f":"EIGNIR!C163","v":0},".M.EVFSVOM.XX.NPH.XXX.XXXX.SX.SKT.XXX.IS.N.M"]
[{"$f":"\"INN.\"&EIGNIR!$B$3&C150","v":{"$error":"#N/A"}},{"$f":"EIGNIR!C164","v":0},".M.EVFSVOM.XX.ERL.XXX.XXXX.SX.SKT.XXX.IS.N.M"]
[{"$f":"\"INN.\"&EIGNIR!$B$3&C151","v":{"$error":"#N/A"}},{"$f":"EIGNIR!C165","v":0},".M.EGR$$$$.XX.XXX.XXX.XXXX.SX.XXX.XXX.IS.N.M","//Fjáreignir í gangvirði í gegnum rekstrarreikning"]
[{"$f":"\"INN.\"&EIGNIR!$B$3&C152","v":{"$error":"#N/A"}},{"$f":"EIGNIR!C166","v":0},".M.EGRHB$$.XX.$$$.XXX.XXXX.SX.XXX.XXX.IS.N.M","//Hlutabréf og hlutdeildarskírteini"]
[{"$f":"\"INN.\"&EIGNIR!$B$3&C153","v":{"$error":"#N/A"}},{"$f":"EIGNIR!C167","v":0},".M.EGRHBHB.XX.ATV.XXX.XXXX.SX.XXX.XXX.IS.N.M"]
[{"$f":"\"INN.\"&EIGNIR!$B$3&C154","v":{"$error":"#N/A"}},{"$f":"EIGNIR!C168","v":0},".M.EGRHBHB.XX.LAB.XXX.XXXX.SX.XXX.XXX.IS.N.M"]
[{"$f":"\"INN.\"&EIGNIR!$B$3&C155","v":{"$error":"#N/A"}},{"$f":"EIGNIR!C169","v":0},".M.EGRHBHB.XX.SJA.XXX.XXXX.SX.XXX.XXX.IS.N.M"]
[{"$f":"\"INN.\"&EIGNIR!$B$3&C156","v":{"$error":"#N/A"}},{"$f":"EIGNIR!C170","v":0},".M.EGRHBHB.XX.ILA.XXX.XXXX.SX.XXX.XXX.IS.N.M"]
[{"$f":"\"INN.\"&EIGNIR!$B$3&C157","v":{"$error":"#N/A"}},{"$f":"EIGNIR!C171","v":0},".M.EGRHBHB.XX.ISJ.XXX.XXXX.SX.XXX.XXX.IS.N.M"]
[{"$f":"\"INN.\"&EIGNIR!$B$3&C158","v":{"$error":"#N/A"}},{"$f":"EIGNIR!C172","v":0},".M.EGRHBHB.XX.IAN.XXX.XXXX.SX.XXX.XXX.IS.N.M"]
[{"$f":"\"INN.\"&EIGNIR!$B$3&C159","v":{"$error":"#N/A"}},{"$f":"EIGNIR!C173","v":0},".M.EGRHBHB.XX.RAF.XXX.XXXX.SX.XXX.XXX.IS.N.M"]
[{"$f":"\"INN.\"&EIGNIR!$B$3&C160","v":{"$error":"#N/A"}},{"$f":"EIGNIR!C174","v":0},".M.EGRHBHB.XX.MAN.XXX.XXXX.SX.XXX.XXX.IS.N.M"]
[{"$f":"\"INN.\"&EIGNIR!$B$3&C161","v":{"$error":"#N/A"}},{"$f":"EIGNIR!C175","v":0},".M.EGRHBHB.XX.VEN.XXX.XXXX.SX.XXX.XXX.IS.N.M"]
[{"$f":"\"INN.\"&EIGNIR!$B$3&C162","v":{"$error":"#N/A"}},{"$f":"EIGNIR!C176","v":0},".M.EGRHBHB.XX.SAG.XXX.XXXX.SX.XXX.XXX.IS.N.M"]
[{"$f":"\"INN.\"&EIGNIR!$B$3&C163","v":{"$error":"#N/A"}},{"$f":"EIGNIR!C177","v":0},".M.EGRHBHB.XX.THF.XXX.XXXX.SX.XXX.XXX.IS.N.M"]
[{"$f":"\"INN.\"&EIGNIR!$B$3&C164","v":{"$error":"#N/A"}},{"$f":"EIGNIR!C178","v":0},".M.EGRHBHB.XX.THH.XXX.XXXX.SX.XXX.XXX.IS.N.M"]
[{"$f":"\"INN.\"&EIGNIR!$B$3&C165","v":{"$error":"#N/A"}},{"$f":"EIGNIR!C179","v":0},".M.EGRHBHB.XX.THA.XXX.XXXX.SX.XXX.XXX.IS.N.M"]
[{"$f":"\"INN.\"&EIGNIR!$B$3&C166","v":{"$error":"#N/A"}},{"$f":"EIGNIR!C180","v":0},".M.EGRHBHB.XX.OFL.XXX.XXXX.SX.XXX.XXX.IS.N.M"]
[{"$f":"\"INN.\"&EIGNIR!$B$3&C167","v":{"$error":"#N/A"}},{"$f":"EIGNIR!C181","v":0},".M.EGRHBHB.XX.FJA.XXX.XXXX.SX.XXX.XXX.IS.N.M"]
[{"$f":"\"INN.\"&EIGNIR!$B$3&C168","v":{"$error":"#N/A"}},{"$f":"EIGNIR!C182","v":0},".M.EGRHBHB.XX.INN.XXX.XXXX.SX.XXX.XXX.IS.N.M"]
[{"$f":"\"INN.\"&EIGNIR!$B$3&C169","v":{"$error":"#N/A"}},{"$f":"EIGNIR!C183","v":0},".M.EGRHBHB.XX.SLI.XXX.XXXX.SX.XXX.XXX.IS.N.M"]
[{"$f":"\"INN.\"&EIGNIR!$B$3&C170","v":{"$error":"#N/A"}},{"$f":"EIGNIR!C184","v":0},".M.EGRHBHB.XX.PEN.XXX.XXXX.SX.XXX.XXX.IS.N.M"]
[{"$f":"\"INN.\"&EIGNIR!$B$3&C171","v":{"$error":"#N/A"}},{"$f":"EIGNIR!C185","v":0},".M.EGRHBHB.XX.SJO.XXX.XXXX.SX.XXX.XXX.IS.N.M"]
[{"$f":"\"INN.\"&EIGNIR!$B$3&C172","v":{"$error":"#N/A"}},{"$f":"EIGNIR!C186","v":0},".M.EGRHBHB.XX.YFT.XXX.XXXX.SX.XXX.XXX.IS.N.M"]
[{"$f":"\"INN.\"&EIGNIR!$B$3&C173","v":{"$error":"#N/A"}},{"$f":"EIGNIR!C187","v":0},".M.EGRHBHB.XX.SLY.XXX.XXXX.SX.XXX.XXX.IS.N.M"]
[{"$f":"\"INN.\"&EIGNIR!$B$3&C174","v":{"$error":"#N/A"}},{"$f":"EIGNIR!C188","v":0},".M.EGRHBHB.XX.FHL.XXX.XXXX.SX.XXX.XXX.IS.N.M"]
[{"$f":"\"INN.\"&EIGNIR!$B$3&C175","v":{"$error":"#N/A"}},{"$f":"EIGNIR!C189","v":0},".M.EGRHBHB.XX.INF.XXX.XXXX.SX.XXX.XXX.IS.N.M"]
[{"$f":"\"INN.\"&EIGNIR!$B$3&C176","v":{"$error":"#N/A"}},{"$f":"EIGNIR!C190","v":0},".M.EGRHBHB.XX.TRY.XXX.XXXX.SX.XXX.XXX.IS.N.M"]
[{"$f":"\"INN.\"&EIGNIR!$B$3&C177","v":{"$error":"#N/A"}},{"$f":"EIGNIR!C191","v":0},".M.EGRHBHB.XX.LIF.XXX.XXXX.SX.XXX.XXX.IS.N.M"]
[{"$f":"\"INN.\"&EIGNIR!$B$3&C178","v":{"$error":"#N/A"}},{"$f":"EIGNIR!C196","v":0},".M.EGRHBHB.XX.NPH.XXX.XXXX.SX.XXX.XXX.IS.N.M"]
[{"$f":"\"INN.\"&EIGNIR!$B$3&C179","v":{"$error":"#N/A"}},{"$f":"EIGNIR!C197","v":0},".M.EGRHBHB.XX.ERL.XXX.XXXX.SX.XXX.XXX.IS.N.M"]
[{"$f":"\"INN.\"&EIGNIR!$B$3&C180","v":{"$error":"#N/A"}},{"$f":"EIGNIR!C198","v":0},".M.EGRSV$$.XX.$$$.XXX.XXXX.SX.XXX.XXX.IS.N.M","//Skuldabréf og víxlar"]
[{"$f":"\"INN.\"&EIGNIR!$B$3&C181","v":{"$error":"#N/A"}},{"$f":"EIGNIR!C199","v":0},".M.EGRSVVM.XX.$$$.XXX.XXXX.SV.XXX.XXX.IS.N.M","//Skuldabréf og víxlar, Verðtryggð markaðsskuldabréf"]
[{"$f":"\"INN.\"&EIGNIR!$B$3&C182","v":{"$error":"#N/A"}},{"$f":"EIGNIR!C200","v":0},".M.EGRSVVM.XX.ATV.XXX.XXXX.SV.XXX.XXX.IS.N.M"]
[{"$f":"\"INN.\"&EIGNIR!$B$3&C183","v":{"$error":"#N/A"}},{"$f":"EIGNIR!C201","v":0},".M.EGRSVVM.XX.LAB.XXX.XXXX.SV.XXX.XXX.IS.N.M"]
[{"$f":"\"INN.\"&EIGNIR!$B$3&C184","v":{"$error":"#N/A"}},{"$f":"EIGNIR!C202","v":0},".M.EGRSVVM.XX.SJA.XXX.XXXX.SV.XXX.XXX.IS.N.M"]
[{"$f":"\"INN.\"&EIGNIR!$B$3&C185","v":{"$error":"#N/A"}},{"$f":"EIGNIR!C203","v":0},".M.EGRSVVM.XX.ILA.XXX.XXXX.SV.XXX.XXX.IS.N.M"]
[{"$f":"\"INN.\"&EIGNIR!$B$3&C186","v":{"$error":"#N/A"}},{"$f":"EIGNIR!C204","v":0},".M.EGRSVVM.XX.ISJ.XXX.XXXX.SV.XXX.XXX.IS.N.M"]
[{"$f":"\"INN.\"&EIGNIR!$B$3&C187","v":{"$error":"#N/A"}},{"$f":"EIGNIR!C205","v":0},".M.EGRSVVM.XX.IAN.XXX.XXXX.SV.XXX.XXX.IS.N.M"]
[{"$f":"\"INN.\"&EIGNIR!$B$3&C188","v":{"$error":"#N/A"}},{"$f":"EIGNIR!C206","v":0},".M.EGRSVVM.XX.RAF.XXX.XXXX.SV.XXX.XXX.IS.N.M"]
[{"$f":"\"INN.\"&EIGNIR!$B$3&C189","v":{"$error":"#N/A"}},{"$f":"EIGNIR!C207","v":0},".M.EGRSVVM.XX.MAN.XXX.XXXX.SV.XXX.XXX.IS.N.M"]
[{"$f":"\"INN.\"&EIGNIR!$B$3&C190","v":{"$error":"#N/A"}},{"$f":"EIGNIR!C208","v":0},".M.EGRSVVM.XX.VEN.XXX.XXXX.SV.XXX.XXX.IS.N.M"]
[{"$f":"\"INN.\"&EIGNIR!$B$3&C191","v":{"$error":"#N/A"}},{"$f":"EIGNIR!C209","v":0},".M.EGRSVVM.XX.SAG.XXX.XXXX.SV.XXX.XXX.IS.N.M"]
[{"$f":"\"INN.\"&EIGNIR!$B$3&C192","v":{"$error":"#N/A"}},{"$f":"EIGNIR!C210","v":0},".M.EGRSVVM.XX.THF.XXX.XXXX.SV.XXX.XXX.IS.N.M"]
[{"$f":"\"INN.\"&EIGNIR!$B$3&C193","v":{"$error":"#N/A"}},{"$f":"EIGNIR!C211","v":0},".M.EGRSVVM.XX.THH.XXX.XXXX.SV.XXX.XXX.IS.N.M"]
[{"$f":"\"INN.\"&EIGNIR!$B$3&C194","v":{"$error":"#N/A"}},{"$f":"EIGNIR!C212","v":0},".M.EGRSVVM.XX.THA.XXX.XXXX.SV.XXX.XXX.IS.N.M"]
[{"$f":"\"INN.\"&EIGNIR!$B$3&C195","v":{"$error":"#N/A"}},{"$f":"EIGNIR!C213","v":0},".M.EGRSVVM.XX.OFL.XXX.XXXX.SV.XXX.XXX.IS.N.M"]
[{"$f":"\"INN.\"&EIGNIR!$B$3&C196","v":{"$error":"#N/A"}},{"$f":"EIGNIR!C214","v":0},".M.EGRSVVM.XX.FJA.XXX.XXXX.SV.XXX.XXX.IS.N.M"]
[{"$f":"\"INN.\"&EIGNIR!$B$3&C197","v":{"$error":"#N/A"}},{"$f":"EIGNIR!C215","v":0},".M.EGRSVVM.XX.INN.XXX.XXXX.SV.XXX.XXX.IS.N.M"]
[{"$f":"\"INN.\"&EIGNIR!$B$3&C198","v":{"$error":"#N/A"}},{"$f":"EIGNIR!C216","v":0},".M.EGRSVVM.XX.SLI.XXX.XXXX.SV.XXX.XXX.IS.N.M"]
[{"$f":"\"INN.\"&EIGNIR!$B$3&C199","v":{"$error":"#N/A"}},{"$f":"EIGNIR!C217","v":0},".M.EGRSVVM.XX.PEN.XXX.XXXX.SV.XXX.XXX.IS.N.M"]
[{"$f":"\"INN.\"&EIGNIR!$B$3&C200","v":{"$error":"#N/A"}},{"$f":"EIGNIR!C218","v":0},".M.EGRSVVM.XX.SJO.XXX.XXXX.SV.XXX.XXX.IS.N.M"]
[{"$f":"\"INN.\"&EIGNIR!$B$3&C201","v":{"$error":"#N/A"}},{"$f":"EIGNIR!C219","v":0},".M.EGRSVVM.XX.YFT.XXX.XXXX.SV.XXX.XXX.IS.N.M"]
[{"$f":"\"INN.\"&EIGNIR!$B$3&C202","v":{"$error":"#N/A"}},{"$f":"EIGNIR!C220","v":0},".M.EGRSVVM.XX.SLY.XXX.XXXX.SV.XXX.XXX.IS.N.M"]
[{"$f":"\"INN.\"&EIGNIR!$B$3&C203","v":{"$error":"#N/A"}},{"$f":"EIGNIR!C221","v":0},".M.EGRSVVM.XX.FHL.XXX.XXXX.SV.XXX.XXX.IS.N.M"]
[{"$f":"\"INN.\"&EIGNIR!$B$3&C204","v":{"$error":"#N/A"}},{"$f":"EIGNIR!C222","v":0},".M.EGRSVVM.XX.INF.XXX.XXXX.SV.XXX.XXX.IS.N.M"]
[{"$f":"\"INN.\"&EIGNIR!$B$3&C205","v":{"$error":"#N/A"}},{"$f":"EIGNIR!C223","v":0},".M.EGRSVVM.XX.TRY.XXX.XXXX.SV.XXX.XXX.IS.N.M"]
[{"$f":"\"INN.\"&EIGNIR!$B$3&C206","v":{"$error":"#N/A"}},{"$f":"EIGNIR!C224","v":0},".M.EGRSVVM.XX.LIF.XXX.XXXX.SV.XXX.XXX.IS.N.M"]
[{"$f":"\"INN.\"&EIGNIR!$B$3&C207","v":{"$error":"#N/A"}},{"$f":"EIGNIR!C225","v":0},".M.EGRSVVM.XX.OPI.XXX.XXXX.SV.XXX.XXX.IS.N.M"]
[{"$f":"\"INN.\"&EIGNIR!$B$3&C208","v":{"$error":"#N/A"}},{"$f":"EIGNIR!C226","v":0},".M.EGRSVVM.XX.RSS.XXX.XXXX.SV.XXX.XXX.IS.N.M"]
[{"$f":"\"INN.\"&EIGNIR!$B$3&C209","v":{"$error":"#N/A"}},{"$f":"EIGNIR!C227","v":0},".M.EGRSVVM.XX.BAJ.XXX.XXXX.SV.XXX.XXX.IS.N.M"]
[{"$f":"\"INN.\"&EIGNIR!$B$3&C210","v":{"$error":"#N/A"}},{"$f":"EIGNIR!C229","v":0},".M.EGRSVVM.XX.NPH.XXX.XXXX.SV.XXX.XXX.IS.N.M"]
[{"$f":"\"INN.\"&EIGNIR!$B$3&C211","v":{"$error":"#N/A"}},{"$f":"EIGNIR!C230","v":0},".M.EGRSVVM.XX.ERL.XXX.XXXX.SV.XXX.XXX.IS.N.M"]
[{"$f":"\"INN.\"&EIGNIR!$B$3&C212","v":{"$error":"#N/A"}},{"$f":"EIGNIR!C231","v":0},".M.EGRSVOM.XX.$$$.XXX.XXXX.SX.LAT.XXX.IS.N.M","//Skuldabréf og víxlar, Önnur markaðsskuldabréf og víxlar > 1 ár"]
[{"$f":"\"INN.\"&EIGNIR!$B$3&C213","v":{"$error":"#N/A"}},{"$f":"EIGNIR!C232","v":0},".M.EGRSVOM.XX.ATV.XXX.XXXX.SX.LAT.XXX.IS.N.M"]
[{"$f":"\"INN.\"&EIGNIR!$B$3&C214","v":{"$error":"#N/A"}},{"$f":"EIGNIR!C233","v":0},".M.EGRSVOM.XX.LAB.XXX.XXXX.SX.LAT.XXX.IS.N.M"]
[{"$f":"\"INN.\"&EIGNIR!$B$3&C215","v":{"$error":"#N/A"}},{"$f":"EIGNIR!C234","v":0},".M.EGRSVOM.XX.SJA.XXX.XXXX.SX.LAT.XXX.IS.N.M"]
[{"$f":"\"INN.\"&EIGNIR!$B$3&C216","v":{"$error":"#N/A"}},{"$f":"EIGNIR!C235","v":0},".M.EGRSVOM.XX.ILA.XXX.XXXX.SX.LAT.XXX.IS.N.M"]
[{"$f":"\"INN.\"&EIGNIR!$B$3&C217","v":{"$error":"#N/A"}},{"$f":"EIGNIR!C236","v":0},".M.EGRSVOM.XX.ISJ.XXX.XXXX.SX.LAT.XXX.IS.N.M"]
[{"$f":"\"INN.\"&EIGNIR!$B$3&C218","v":{"$error":"#N/A"}},{"$f":"EIGNIR!C237","v":0},".M.EGRSVOM.XX.IAN.XXX.XXXX.SX.LAT.XXX.IS.N.M"]
[{"$f":"\"INN.\"&EIGNIR!$B$3&C219","v":{"$error":"#N/A"}},{"$f":"EIGNIR!C238","v":0},".M.EGRSVOM.XX.RAF.XXX.XXXX.SX.LAT.XXX.IS.N.M"]
[{"$f":"\"INN.\"&EIGNIR!$B$3&C220","v":{"$error":"#N/A"}},{"$f":"EIGNIR!C239","v":0},".M.EGRSVOM.XX.MAN.XXX.XXXX.SX.LAT.XXX.IS.N.M"]
[{"$f":"\"INN.\"&EIGNIR!$B$3&C221","v":{"$error":"#N/A"}},{"$f":"EIGNIR!C240","v":0},".M.EGRSVOM.XX.VEN.XXX.XXXX.SX.LAT.XXX.IS.N.M"]
[{"$f":"\"INN.\"&EIGNIR!$B$3&C222","v":{"$error":"#N/A"}},{"$f":"EIGNIR!C241","v":0},".M.EGRSVOM.XX.SAG.XXX.XXXX.SX.LAT.XXX.IS.N.M"]
[{"$f":"\"INN.\"&EIGNIR!$B$3&C223","v":{"$error":"#N/A"}},{"$f":"EIGNIR!C242","v":0},".M.EGRSVOM.XX.THF.XXX.XXXX.SX.LAT.XXX.IS.N.M"]
[{"$f":"\"INN.\"&EIGNIR!$B$3&C224","v":{"$error":"#N/A"}},{"$f":"EIGNIR!C243","v":0},".M.EGRSVOM.XX.THH.XXX.XXXX.SX.LAT.XXX.IS.N.M"]
[{"$f":"\"INN.\"&EIGNIR!$B$3&C225","v":{"$error":"#N/A"}},{"$f":"EIGNIR!C244","v":0},".M.EGRSVOM.XX.THA.XXX.XXXX.SX.LAT.XXX.IS.N.M"]
[{"$f":"\"INN.\"&EIGNIR!$B$3&C226","v":{"$error":"#N/A"}},{"$f":"EIGNIR!C245","v":0},".M.EGRSVOM.XX.OFL.XXX.XXXX.SX.LAT.XXX.IS.N.M"]
[{"$f":"\"INN.\"&EIGNIR!$B$3&C227","v":{"$error":"#N/A"}},{"$f":"EIGNIR!C246","v":0},".M.EGRSVOM.XX.FJA.XXX.XXXX.SX.LAT.XXX.IS.N.M"]
[{"$f":"\"INN.\"&EIGNIR!$B$3&C228","v":{"$error":"#N/A"}},{"$f":"EIGNIR!C247","v":0},".M.EGRSVOM.XX.INN.XXX.XXXX.SX.LAT.XXX.IS.N.M"]
[{"$f":"\"INN.\"&EIGNIR!$B$3&C229","v":{"$error":"#N/A"}},{"$f":"EIGNIR!C248","v":0},".M.EGRSVOM.XX.SLI.XXX.XXXX.SX.LAT.XXX.IS.N.M"]
[{"$f":"\"INN.\"&EIGNIR!$B$3&C230","v":{"$error":"#N/A"}},{"$f":"EIGNIR!C249","v":0},".M.EGRSVOM.XX.PEN.XXX.XXXX.SX.LAT.XXX.IS.N.M"]
[{"$f":"\"INN.\"&EIGNIR!$B$3&C231","v":{"$error":"#N/A"}},{"$f":"EIGNIR!C250","v":0},".M.EGRSVOM.XX.SJO.XXX.XXXX.SX.LAT.XXX.IS.N.M"]
[{"$f":"\"INN.\"&EIGNIR!$B$3&C232","v":{"$error":"#N/A"}},{"$f":"EIGNIR!C251","v":0},".M.EGRSVOM.XX.YFT.XXX.XXXX.SX.LAT.XXX.IS.N.M"]
[{"$f":"\"INN.\"&EIGNIR!$B$3&C233","v":{"$error":"#N/A"}},{"$f":"EIGNIR!C252","v":0},".M.EGRSVOM.XX.SLY.XXX.XXXX.SX.LAT.XXX.IS.N.M"]
[{"$f":"\"INN.\"&EIGNIR!$B$3&C234","v":{"$error":"#N/A"}},{"$f":"EIGNIR!C253","v":0},".M.EGRSVOM.XX.FHL.XXX.XXXX.SX.LAT.XXX.IS.N.M"]
[{"$f":"\"INN.\"&EIGNIR!$B$3&C235","v":{"$error":"#N/A"}},{"$f":"EIGNIR!C254","v":0},".M.EGRSVOM.XX.INF.XXX.XXXX.SX.LAT.XXX.IS.N.M"]
[{"$f":"\"INN.\"&EIGNIR!$B$3&C236","v":{"$error":"#N/A"}},{"$f":"EIGNIR!C255","v":0},".M.EGRSVOM.XX.TRY.XXX.XXXX.SX.LAT.XXX.IS.N.M"]
[{"$f":"\"INN.\"&EIGNIR!$B$3&C237","v":{"$error":"#N/A"}},{"$f":"EIGNIR!C256","v":0},".M.EGRSVOM.XX.LIF.XXX.XXXX.SX.LAT.XXX.IS.N.M"]
[{"$f":"\"INN.\"&EIGNIR!$B$3&C238","v":{"$error":"#N/A"}},{"$f":"EIGNIR!C257","v":0},".M.EGRSVOM.XX.OPI.XXX.XXXX.SX.LAT.XXX.IS.N.M"]
[{"$f":"\"INN.\"&EIGNIR!$B$3&C239","v":{"$error":"#N/A"}},{"$f":"EIGNIR!C258","v":0},".M.EGRSVOM.XX.RSS.XXX.XXXX.SX.LAT.XXX.IS.N.M"]
[{"$f":"\"INN.\"&EIGNIR!$B$3&C240","v":{"$error":"#N/A"}},{"$f":"EIGNIR!C259","v":0},".M.EGRSVOM.XX.BAJ.XXX.XXXX.SX.LAT.XXX.IS.N.M"]
[{"$f":"\"INN.\"&EIGNIR!$B$3&C241","v":{"$error":"#N/A"}},{"$f":"EIGNIR!C261","v":0},".M.EGRSVOM.XX.NPH.XXX.XXXX.SX.LAT.XXX.IS.N.M"]
[{"$f":"\"INN.\"&EIGNIR!$B$3&C242","v":{"$error":"#N/A"}},{"$f":"EIGNIR!C262","v":0},".M.EGRSVOM.XX.ERL.XXX.XXXX.SX.LAT.XXX.IS.N.M"]
[{"$f":"\"INN.\"&EIGNIR!$B$3&C243","v":{"$error":"#N/A"}},{"$f":"EIGNIR!C263","v":0},".M.EGRSVMV.XX.$$$.XXX.XXXX.SX.SKT.XXX.IS.N.M","//Skuldabréf og víxlar, Önnur markaðsskuldabréf og víxlar ≤ 1 ár"]
[{"$f":"\"INN.\"&EIGNIR!$B$3&C244","v":{"$error":"#N/A"}},{"$f":"EIGNIR!C264","v":0},".M.EGRSVMV.XX.ATV.XXX.XXXX.SX.SKT.XXX.IS.N.M"]
[{"$f":"\"INN.\"&EIGNIR!$B$3&C245","v":{"$error":"#N/A"}},{"$f":"EIGNIR!C265","v":0},".M.EGRSVMV.XX.LAB.XXX.XXXX.SX.SKT.XXX.IS.N.M"]
[{"$f":"\"INN.\"&EIGNIR!$B$3&C246","v":{"$error":"#N/A"}},{"$f":"EIGNIR!C266","v":0},".M.EGRSVMV.XX.SJA.XXX.XXXX.SX.SKT.XXX.IS.N.M"]
[{"$f":"\"INN.\"&EIGNIR!$B$3&C247","v":{"$error":"#N/A"}},{"$f":"EIGNIR!C267","v":0},".M.EGRSVMV.XX.ILA.XXX.XXXX.SX.SKT.XXX.IS.N.M"]
[{"$f":"\"INN.\"&EIGNIR!$B$3&C248","v":{"$error":"#N/A"}},{"$f":"EIGNIR!C268","v":0},".M.EGRSVMV.XX.ISJ.XXX.XXXX.SX.SKT.XXX.IS.N.M"]
[{"$f":"\"INN.\"&EIGNIR!$B$3&C249","v":{"$error":"#N/A"}},{"$f":"EIGNIR!C269","v":0},".M.EGRSVMV.XX.IAN.XXX.XXXX.SX.SKT.XXX.IS.N.M"]
[{"$f":"\"INN.\"&EIGNIR!$B$3&C250","v":{"$error":"#N/A"}},{"$f":"EIGNIR!C270","v":0},".M.EGRSVMV.XX.RAF.XXX.XXXX.SX.SKT.XXX.IS.N.M"]
[{"$f":"\"INN.\"&EIGNIR!$B$3&C251","v":{"$error":"#N/A"}},{"$f":"EIGNIR!C271","v":0},".M.EGRSVMV.XX.MAN.XXX.XXXX.SX.SKT.XXX.IS.N.M"]
[{"$f":"\"INN.\"&EIGNIR!$B$3&C252","v":{"$error":"#N/A"}},{"$f":"EIGNIR!C272","v":0},".M.EGRSVMV.XX.VEN.XXX.XXXX.SX.SKT.XXX.IS.N.M"]
[{"$f":"\"INN.\"&EIGNIR!$B$3&C253","v":{"$error":"#N/A"}},{"$f":"EIGNIR!C273","v":0},".M.EGRSVMV.XX.SAG.XXX.XXXX.SX.SKT.XXX.IS.N.M"]
[{"$f":"\"INN.\"&EIGNIR!$B$3&C254","v":{"$error":"#N/A"}},{"$f":"EIGNIR!C274","v":0},".M.EGRSVMV.XX.THF.XXX.XXXX.SX.SKT.XXX.IS.N.M"]
[{"$f":"\"INN.\"&EIGNIR!$B$3&C255","v":{"$error":"#N/A"}},{"$f":"EIGNIR!C275","v":0},".M.EGRSVMV.XX.THH.XXX.XXXX.SX.SKT.XXX.IS.N.M"]
[{"$f":"\"INN.\"&EIGNIR!$B$3&C256","v":{"$error":"#N/A"}},{"$f":"EIGNIR!C276","v":0},".M.EGRSVMV.XX.THA.XXX.XXXX.SX.SKT.XXX.IS.N.M"]
[{"$f":"\"INN.\"&EIGNIR!$B$3&C257","v":{"$error":"#N/A"}},{"$f":"EIGNIR!C277","v":0},".M.EGRSVMV.XX.OFL.XXX.XXXX.SX.SKT.XXX.IS.N.M"]
[{"$f":"\"INN.\"&EIGNIR!$B$3&C258","v":{"$error":"#N/A"}},{"$f":"EIGNIR!C278","v":0},".M.EGRSVMV.XX.FJA.XXX.XXXX.SX.SKT.XXX.IS.N.M"]
[{"$f":"\"INN.\"&EIGNIR!$B$3&C259","v":{"$error":"#N/A"}},{"$f":"EIGNIR!C279","v":0},".M.EGRSVMV.XX.INN.XXX.XXXX.SX.SKT.XXX.IS.N.M"]
[{"$f":"\"INN.\"&EIGNIR!$B$3&C260","v":{"$error":"#N/A"}},{"$f":"EIGNIR!C280","v":0},".M.EGRSVMV.XX.SLI.XXX.XXXX.SX.SKT.XXX.IS.N.M"]
[{"$f":"\"INN.\"&EIGNIR!$B$3&C261","v":{"$error":"#N/A"}},{"$f":"EIGNIR!C281","v":0},".M.EGRSVMV.XX.PEN.XXX.XXXX.SX.SKT.XXX.IS.N.M"]
[{"$f":"\"INN.\"&EIGNIR!$B$3&C262","v":{"$error":"#N/A"}},{"$f":"EIGNIR!C282","v":0},".M.EGRSVMV.XX.SJO.XXX.XXXX.SX.SKT.XXX.IS.N.M"]
[{"$f":"\"INN.\"&EIGNIR!$B$3&C263","v":{"$error":"#N/A"}},{"$f":"EIGNIR!C283","v":0},".M.EGRSVMV.XX.YFT.XXX.XXXX.SX.SKT.XXX.IS.N.M"]
[{"$f":"\"INN.\"&EIGNIR!$B$3&C264","v":{"$error":"#N/A"}},{"$f":"EIGNIR!C284","v":0},".M.EGRSVMV.XX.SLY.XXX.XXXX.SX.SKT.XXX.IS.N.M"]
[{"$f":"\"INN.\"&EIGNIR!$B$3&C265","v":{"$error":"#N/A"}},{"$f":"EIGNIR!C285","v":0},".M.EGRSVMV.XX.FHL.XXX.XXXX.SX.SKT.XXX.IS.N.M"]
[{"$f":"\"INN.\"&EIGNIR!$B$3&C266","v":{"$error":"#N/A"}},{"$f":"EIGNIR!C286","v":0},".M.EGRSVMV.XX.INF.XXX.XXXX.SX.SKT.XXX.IS.N.M"]
[{"$f":"\"INN.\"&EIGNIR!$B$3&C267","v":{"$error":"#N/A"}},{"$f":"EIGNIR!C287","v":0},".M.EGRSVMV.XX.TRY.XXX.XXXX.SX.SKT.XXX.IS.N.M"]
[{"$f":"\"INN.\"&EIGNIR!$B$3&C268","v":{"$error":"#N/A"}},{"$f":"EIGNIR!C288","v":0},".M.EGRSVMV.XX.LIF.XXX.XXXX.SX.SKT.XXX.IS.N.M"]
[{"$f":"\"INN.\"&EIGNIR!$B$3&C269","v":{"$error":"#N/A"}},{"$f":"EIGNIR!C289","v":0},".M.EGRSVMV.XX.OPI.XXX.XXXX.SX.SKT.XXX.IS.N.M"]
[{"$f":"\"INN.\"&EIGNIR!$B$3&C270","v":{"$error":"#N/A"}},{"$f":"EIGNIR!C290","v":0},".M.EGRSVMV.XX.RSS.XXX.XXXX.SX.SKT.XXX.IS.N.M"]
[{"$f":"\"INN.\"&EIGNIR!$B$3&C271","v":{"$error":"#N/A"}},{"$f":"EIGNIR!C291","v":0},".M.EGRSVMV.XX.BAJ.XXX.XXXX.SX.SKT.XXX.IS.N.M"]
[{"$f":"\"INN.\"&EIGNIR!$B$3&C272","v":{"$error":"#N/A"}},{"$f":"EIGNIR!C293","v":0},".M.EGRSVMV.XX.NPH.XXX.XXXX.SX.SKT.XXX.IS.N.M"]
[{"$f":"\"INN.\"&EIGNIR!$B$3&C273","v":{"$error":"#N/A"}},{"$f":"EIGNIR!C294","v":0},".M.EGRSVMV.XX.ERL.XXX.XXXX.SX.SKT.XXX.IS.N.M"]
[{"$f":"\"INN.\"&EIGNIR!$B$3&C274","v":{"$error":"#N/A"}},{"$f":"EIGNIR!C295","v":0},".M.ESF$$$$.XX.XXX.XXX.XXXX.SX.XXX.XXX.IS.N.M","//Fjáreignir til sölu"]
[{"$f":"\"INN.\"&EIGNIR!$B$3&C275","v":{"$error":"#N/A"}},{"$f":"EIGNIR!C296","v":0},".M.ESFHB$$.XX.$$$.XXX.XXXX.SX.XXX.XXX.IS.N.M","//Hlutabréf og hlutdeildarskírteini"]
[{"$f":"\"INN.\"&EIGNIR!$B$3&C276","v":{"$error":"#N/A"}},{"$f":"EIGNIR!C297","v":0},".M.ESFHBHB.XX.ATV.XXX.XXXX.SX.XXX.XXX.IS.N.M"]
[{"$f":"\"INN.\"&EIGNIR!$B$3&C277","v":{"$error":"#N/A"}},{"$f":"EIGNIR!C298","v":0},".M.ESFHBHB.XX.LAB.XXX.XXXX.SX.XXX.XXX.IS.N.M"]
[{"$f":"\"INN.\"&EIGNIR!$B$3&C278","v":{"$error":"#N/A"}},{"$f":"EIGNIR!C299","v":0},".M.ESFHBHB.XX.SJA.XXX.XXXX.SX.XXX.XXX.IS.N.M"]
[{"$f":"\"INN.\"&EIGNIR!$B$3&C279","v":{"$error":"#N/A"}},{"$f":"EIGNIR!C300","v":0},".M.ESFHBHB.XX.ILA.XXX.XXXX.SX.XXX.XXX.IS.N.M"]
[{"$f":"\"INN.\"&EIGNIR!$B$3&C280","v":{"$error":"#N/A"}},{"$f":"EIGNIR!C301","v":0},".M.ESFHBHB.XX.ISJ.XXX.XXXX.SX.XXX.XXX.IS.N.M"]
[{"$f":"\"INN.\"&EIGNIR!$B$3&C281","v":{"$error":"#N/A"}},{"$f":"EIGNIR!C302","v":0},".M.ESFHBHB.XX.IAN.XXX.XXXX.SX.XXX.XXX.IS.N.M"]
[{"$f":"\"INN.\"&EIGNIR!$B$3&C282","v":{"$error":"#N/A"}},{"$f":"EIGNIR!C303","v":0},".M.ESFHBHB.XX.RAF.XXX.XXXX.SX.XXX.XXX.IS.N.M"]
[{"$f":"\"INN.\"&EIGNIR!$B$3&C283","v":{"$error":"#N/A"}},{"$f":"EIGNIR!C304","v":0},".M.ESFHBHB.XX.MAN.XXX.XXXX.SX.XXX.XXX.IS.N.M"]
[{"$f":"\"INN.\"&EIGNIR!$B$3&C284","v":{"$error":"#N/A"}},{"$f":"EIGNIR!C305","v":0},".M.ESFHBHB.XX.VEN.XXX.XXXX.SX.XXX.XXX.IS.N.M"]
[{"$f":"\"INN.\"&EIGNIR!$B$3&C285","v":{"$error":"#N/A"}},{"$f":"EIGNIR!C306","v":0},".M.ESFHBHB.XX.SAG.XXX.XXXX.SX.XXX.XXX.IS.N.M"]
[{"$f":"\"INN.\"&EIGNIR!$B$3&C286","v":{"$error":"#N/A"}},{"$f":"EIGNIR!C307","v":0},".M.ESFHBHB.XX.THF.XXX.XXXX.SX.XXX.XXX.IS.N.M"]
[{"$f":"\"INN.\"&EIGNIR!$B$3&C287","v":{"$error":"#N/A"}},{"$f":"EIGNIR!C308","v":0},".M.ESFHBHB.XX.THH.XXX.XXXX.SX.XXX.XXX.IS.N.M"]
[{"$f":"\"INN.\"&EIGNIR!$B$3&C288","v":{"$error":"#N/A"}},{"$f":"EIGNIR!C309","v":0},".M.ESFHBHB.XX.THA.XXX.XXXX.SX.XXX.XXX.IS.N.M"]
[{"$f":"\"INN.\"&EIGNIR!$B$3&C289","v":{"$error":"#N/A"}},{"$f":"EIGNIR!C310","v":0},".M.ESFHBHB.XX.OFL.XXX.XXXX.SX.XXX.XXX.IS.N.M"]
[{"$f":"\"INN.\"&EIGNIR!$B$3&C290","v":{"$error":"#N/A"}},{"$f":"EIGNIR!C311","v":0},".M.ESFHBHB.XX.FJA.XXX.XXXX.SX.XXX.XXX.IS.N.M"]
[{"$f":"\"INN.\"&EIGNIR!$B$3&C291","v":{"$error":"#N/A"}},{"$f":"EIGNIR!C312","v":0},".M.ESFHBHB.XX.INN.XXX.XXXX.SX.XXX.XXX.IS.N.M"]
[{"$f":"\"INN.\"&EIGNIR!$B$3&C292","v":{"$error":"#N/A"}},{"$f":"EIGNIR!C313","v":0},".M.ESFHBHB.XX.SLI.XXX.XXXX.SX.XXX.XXX.IS.N.M"]
[{"$f":"\"INN.\"&EIGNIR!$B$3&C293","v":{"$error":"#N/A"}},{"$f":"EIGNIR!C314","v":0},".M.ESFHBHB.XX.PEN.XXX.XXXX.SX.XXX.XXX.IS.N.M"]
[{"$f":"\"INN.\"&EIGNIR!$B$3&C294","v":{"$error":"#N/A"}},{"$f":"EIGNIR!C315","v":0},".M.ESFHBHB.XX.SJO.XXX.XXXX.SX.XXX.XXX.IS.N.M"]
[{"$f":"\"INN.\"&EIGNIR!$B$3&C295","v":{"$error":"#N/A"}},{"$f":"EIGNIR!C316","v":0},".M.ESFHBHB.XX.YFT.XXX.XXXX.SX.XXX.XXX.IS.N.M"]
[{"$f":"\"INN.\"&EIGNIR!$B$3&C296","v":{"$error":"#N/A"}},{"$f":"EIGNIR!C317","v":0},".M.ESFHBHB.XX.SLY.XXX.XXXX.SX.XXX.XXX.IS.N.M"]
[{"$f":"\"INN.\"&EIGNIR!$B$3&C297","v":{"$error":"#N/A"}},{"$f":"EIGNIR!C318","v":0},".M.ESFHBHB.XX.FHL.XXX.XXXX.SX.XXX.XXX.IS.N.M"]
[{"$f":"\"INN.\"&EIGNIR!$B$3&C298","v":{"$error":"#N/A"}},{"$f":"EIGNIR!C319","v":0},".M.ESFHBHB.XX.INF.XXX.XXXX.SX.XXX.XXX.IS.N.M"]
[{"$f":"\"INN.\"&EIGNIR!$B$3&C299","v":{"$error":"#N/A"}},{"$f":"EIGNIR!C320","v":0},".M.ESFHBHB.XX.TRY.XXX.XXXX.SX.XXX.XXX.IS.N.M"]
[{"$f":"\"INN.\"&EIGNIR!$B$3&C300","v":{"$error":"#N/A"}},{"$f":"EIGNIR!C321","v":0},".M.ESFHBHB.XX.LIF.XXX.XXXX.SX.XXX.XXX.IS.N.M"]
[{"$f":"\"INN.\"&EIGNIR!$B$3&C301","v":{"$error":"#N/A"}},{"$f":"EIGNIR!C326","v":0},".M.ESFHBHB.XX.NPH.XXX.XXXX.SX.XXX.XXX.IS.N.M"]
[{"$f":"\"INN.\"&EIGNIR!$B$3&C302","v":{"$error":"#N/A"}},{"$f":"EIGNIR!C327","v":0},".M.ESFHBHB.XX.ERL.XXX.XXXX.SX.XXX.XXX.IS.N.M"]
[{"$f":"\"INN.\"&EIGNIR!$B$3&C303","v":{"$error":"#N/A"}},{"$f":"EIGNIR!C328","v":0},".M.ESFSV$$.XX.$$$.XXX.XXXX.SX.XXX.XXX.IS.N.M","//Skuldabréf og víxlar"]
[{"$f":"\"INN.\"&EIGNIR!$B$3&C304","v":{"$error":"#N/A"}},{"$f":"EIGNIR!C329","v":0},".M.ESFSVVM.XX.$$$.XXX.XXXX.SV.XXX.XXX.IS.N.M","//Skuldabréf og víxlar, Verðtryggð markaðsskuldabréf"]
[{"$f":"\"INN.\"&EIGNIR!$B$3&C305","v":{"$error":"#N/A"}},{"$f":"EIGNIR!C330","v":0},".M.ESFSVVM.XX.ATV.XXX.XXXX.SV.XXX.XXX.IS.N.M"]
[{"$f":"\"INN.\"&EIGNIR!$B$3&C306","v":{"$error":"#N/A"}},{"$f":"EIGNIR!C331","v":0},".M.ESFSVVM.XX.LAB.XXX.XXXX.SV.XXX.XXX.IS.N.M"]
[{"$f":"\"INN.\"&EIGNIR!$B$3&C307","v":{"$error":"#N/A"}},{"$f":"EIGNIR!C332","v":0},".M.ESFSVVM.XX.SJA.XXX.XXXX.SV.XXX.XXX.IS.N.M"]
[{"$f":"\"INN.\"&EIGNIR!$B$3&C308","v":{"$error":"#N/A"}},{"$f":"EIGNIR!C333","v":0},".M.ESFSVVM.XX.ILA.XXX.XXXX.SV.XXX.XXX.IS.N.M"]
[{"$f":"\"INN.\"&EIGNIR!$B$3&C309","v":{"$error":"#N/A"}},{"$f":"EIGNIR!C334","v":0},".M.ESFSVVM.XX.ISJ.XXX.XXXX.SV.XXX.XXX.IS.N.M"]
[{"$f":"\"INN.\"&EIGNIR!$B$3&C310","v":{"$error":"#N/A"}},{"$f":"EIGNIR!C335","v":0},".M.ESFSVVM.XX.IAN.XXX.XXXX.SV.XXX.XXX.IS.N.M"]
[{"$f":"\"INN.\"&EIGNIR!$B$3&C311","v":{"$error":"#N/A"}},{"$f":"EIGNIR!C336","v":0},".M.ESFSVVM.XX.RAF.XXX.XXXX.SV.XXX.XXX.IS.N.M"]
[{"$f":"\"INN.\"&EIGNIR!$B$3&C312","v":{"$error":"#N/A"}},{"$f":"EIGNIR!C337","v":0},".M.ESFSVVM.XX.MAN.XXX.XXXX.SV.XXX.XXX.IS.N.M"]
[{"$f":"\"INN.\"&EIGNIR!$B$3&C313","v":{"$error":"#N/A"}},{"$f":"EIGNIR!C338","v":0},".M.ESFSVVM.XX.VEN.XXX.XXXX.SV.XXX.XXX.IS.N.M"]
[{"$f":"\"INN.\"&EIGNIR!$B$3&C314","v":{"$error":"#N/A"}},{"$f":"EIGNIR!C339","v":0},".M.ESFSVVM.XX.SAG.XXX.XXXX.SV.XXX.XXX.IS.N.M"]
[{"$f":"\"INN.\"&EIGNIR!$B$3&C315","v":{"$error":"#N/A"}},{"$f":"EIGNIR!C340","v":0},".M.ESFSVVM.XX.THF.XXX.XXXX.SV.XXX.XXX.IS.N.M"]
[{"$f":"\"INN.\"&EIGNIR!$B$3&C316","v":{"$error":"#N/A"}},{"$f":"EIGNIR!C341","v":0},".M.ESFSVVM.XX.THH.XXX.XXXX.SV.XXX.XXX.IS.N.M"]
[{"$f":"\"INN.\"&EIGNIR!$B$3&C317","v":{"$error":"#N/A"}},{"$f":"EIGNIR!C342","v":0},".M.ESFSVVM.XX.THA.XXX.XXXX.SV.XXX.XXX.IS.N.M"]
[{"$f":"\"INN.\"&EIGNIR!$B$3&C318","v":{"$error":"#N/A"}},{"$f":"EIGNIR!C343","v":0},".M.ESFSVVM.XX.OFL.XXX.XXXX.SV.XXX.XXX.IS.N.M"]
[{"$f":"\"INN.\"&EIGNIR!$B$3&C319","v":{"$error":"#N/A"}},{"$f":"EIGNIR!C344","v":0},".M.ESFSVVM.XX.FJA.XXX.XXXX.SV.XXX.XXX.IS.N.M"]
[{"$f":"\"INN.\"&EIGNIR!$B$3&C320","v":{"$error":"#N/A"}},{"$f":"EIGNIR!C345","v":0},".M.ESFSVVM.XX.INN.XXX.XXXX.SV.XXX.XXX.IS.N.M"]
[{"$f":"\"INN.\"&EIGNIR!$B$3&C321","v":{"$error":"#N/A"}},{"$f":"EIGNIR!C346","v":0},".M.ESFSVVM.XX.SLI.XXX.XXXX.SV.XXX.XXX.IS.N.M"]
[{"$f":"\"INN.\"&EIGNIR!$B$3&C322","v":{"$error":"#N/A"}},{"$f":"EIGNIR!C347","v":0},".M.ESFSVVM.XX.PEN.XXX.XXXX.SV.XXX.XXX.IS.N.M"]
[{"$f":"\"INN.\"&EIGNIR!$B$3&C323","v":{"$error":"#N/A"}},{"$f":"EIGNIR!C348","v":0},".M.ESFSVVM.XX.SJO.XXX.XXXX.SV.XXX.XXX.IS.N.M"]
[{"$f":"\"INN.\"&EIGNIR!$B$3&C324","v":{"$error":"#N/A"}},{"$f":"EIGNIR!C349","v":0},".M.ESFSVVM.XX.YFT.XXX.XXXX.SV.XXX.XXX.IS.N.M"]
[{"$f":"\"INN.\"&EIGNIR!$B$3&C325","v":{"$error":"#N/A"}},{"$f":"EIGNIR!C350","v":0},".M.ESFSVVM.XX.SLY.XXX.XXXX.SV.XXX.XXX.IS.N.M"]
[{"$f":"\"INN.\"&EIGNIR!$B$3&C326","v":{"$error":"#N/A"}},{"$f":"EIGNIR!C351","v":0},".M.ESFSVVM.XX.FHL.XXX.XXXX.SV.XXX.XXX.IS.N.M"]
[{"$f":"\"INN.\"&EIGNIR!$B$3&C327","v":{"$error":"#N/A"}},{"$f":"EIGNIR!C352","v":0},".M.ESFSVVM.XX.INF.XXX.XXXX.SV.XXX.XXX.IS.N.M"]
[{"$f":"\"INN.\"&EIGNIR!$B$3&C328","v":{"$error":"#N/A"}},{"$f":"EIGNIR!C353","v":0},".M.ESFSVVM.XX.TRY.XXX.XXXX.SV.XXX.XXX.IS.N.M"]
[{"$f":"\"INN.\"&EIGNIR!$B$3&C329","v":{"$error":"#N/A"}},{"$f":"EIGNIR!C354","v":0},".M.ESFSVVM.XX.LIF.XXX.XXXX.SV.XXX.XXX.IS.N.M"]
[{"$f":"\"INN.\"&EIGNIR!$B$3&C330","v":{"$error":"#N/A"}},{"$f":"EIGNIR!C355","v":0},".M.ESFSVVM.XX.OPI.XXX.XXXX.SV.XXX.XXX.IS.N.M"]
[{"$f":"\"INN.\"&EIGNIR!$B$3&C331","v":{"$error":"#N/A"}},{"$f":"EIGNIR!C356","v":0},".M.ESFSVVM.XX.RSS.XXX.XXXX.SV.XXX.XXX.IS.N.M"]
[{"$f":"\"INN.\"&EIGNIR!$B$3&C332","v":{"$error":"#N/A"}},{"$f":"EIGNIR!C357","v":0},".M.ESFSVVM.XX.BAJ.XXX.XXXX.SV.XXX.XXX.IS.N.M"]
[{"$f":"\"INN.\"&EIGNIR!$B$3&C333","v":{"$error":"#N/A"}},{"$f":"EIGNIR!C359","v":0},".M.ESFSVVM.XX.NPH.XXX.XXXX.SV.XXX.XXX.IS.N.M"]
[{"$f":"\"INN.\"&EIGNIR!$B$3&C334","v":{"$error":"#N/A"}},{"$f":"EIGNIR!C360","v":0},".M.ESFSVVM.XX.ERL.XXX.XXXX.SV.XXX.XXX.IS.N.M"]
[{"$f":"\"INN.\"&EIGNIR!$B$3&C335","v":{"$error":"#N/A"}},{"$f":"EIGNIR!C361","v":0},".M.ESFSVOM.XX.$$$.XXX.XXXX.SX.LAT.XXX.IS.N.M","//Skuldabréf og víxlar, Önnur markaðsskuldabréf  > 1 ár"]
[{"$f":"\"INN.\"&EIGNIR!$B$3&C336","v":{"$error":"#N/A"}},{"$f":"EIGNIR!C362","v":0},".M.ESFSVOM.XX.ATV.XXX.XXXX.SX.LAT.XXX.IS.N.M"]
[{"$f":"\"INN.\"&EIGNIR!$B$3&C337","v":{"$error":"#N/A"}},{"$f":"EIGNIR!C363","v":0},".M.ESFSVOM.XX.LAB.XXX.XXXX.SX.LAT.XXX.IS.N.M"]
[{"$f":"\"INN.\"&EIGNIR!$B$3&C338","v":{"$error":"#N/A"}},{"$f":"EIGNIR!C364","v":0},".M.ESFSVOM.XX.SJA.XXX.XXXX.SX.LAT.XXX.IS.N.M"]
[{"$f":"\"INN.\"&EIGNIR!$B$3&C339","v":{"$error":"#N/A"}},{"$f":"EIGNIR!C365","v":0},".M.ESFSVOM.XX.ILA.XXX.XXXX.SX.LAT.XXX.IS.N.M"]
[{"$f":"\"INN.\"&EIGNIR!$B$3&C340","v":{"$error":"#N/A"}},{"$f":"EIGNIR!C366","v":0},".M.ESFSVOM.XX.ISJ.XXX.XXXX.SX.LAT.XXX.IS.N.M"]
[{"$f":"\"INN.\"&EIGNIR!$B$3&C341","v":{"$error":"#N/A"}},{"$f":"EIGNIR!C367","v":0},".M.ESFSVOM.XX.IAN.XXX.XXXX.SX.LAT.XXX.IS.N.M"]
[{"$f":"\"INN.\"&EIGNIR!$B$3&C342","v":{"$error":"#N/A"}},{"$f":"EIGNIR!C368","v":0},".M.ESFSVOM.XX.RAF.XXX.XXXX.SX.LAT.XXX.IS.N.M"]
[{"$f":"\"INN.\"&EIGNIR!$B$3&C343","v":{"$error":"#N/A"}},{"$f":"EIGNIR!C369","v":0},".M.ESFSVOM.XX.MAN.XXX.XXXX.SX.LAT.XXX.IS.N.M"]
[{"$f":"\"INN.\"&EIGNIR!$B$3&C344","v":{"$error":"#N/A"}},{"$f":"EIGNIR!C370","v":0},".M.ESFSVOM.XX.VEN.XXX.XXXX.SX.LAT.XXX.IS.N.M"]
[{"$f":"\"INN.\"&EIGNIR!$B$3&C345","v":{"$error":"#N/A"}},{"$f":"EIGNIR!C371","v":0},".M.ESFSVOM.XX.SAG.XXX.XXXX.SX.LAT.XXX.IS.N.M"]
[{"$f":"\"INN.\"&EIGNIR!$B$3&C346","v":{"$error":"#N/A"}},{"$f":"EIGNIR!C372","v":0},".M.ESFSVOM.XX.THF.XXX.XXXX.SX.LAT.XXX.IS.N.M"]
[{"$f":"\"INN.\"&EIGNIR!$B$3&C347","v":{"$error":"#N/A"}},{"$f":"EIGNIR!C373","v":0},".M.ESFSVOM.XX.THH.XXX.XXXX.SX.LAT.XXX.IS.N.M"]
[{"$f":"\"INN.\"&EIGNIR!$B$3&C348","v":{"$error":"#N/A"}},{"$f":"EIGNIR!C374","v":0},".M.ESFSVOM.XX.THA.XXX.XXXX.SX.LAT.XXX.IS.N.M"]
[{"$f":"\"INN.\"&EIGNIR!$B$3&C349","v":{"$error":"#N/A"}},{"$f":"EIGNIR!C375","v":0},".M.ESFSVOM.XX.OFL.XXX.XXXX.SX.LAT.XXX.IS.N.M"]
[{"$f":"\"INN.\"&EIGNIR!$B$3&C350","v":{"$error":"#N/A"}},{"$f":"EIGNIR!C376","v":0},".M.ESFSVOM.XX.FJA.XXX.XXXX.SX.LAT.XXX.IS.N.M"]
[{"$f":"\"INN.\"&EIGNIR!$B$3&C351","v":{"$error":"#N/A"}},{"$f":"EIGNIR!C377","v":0},".M.ESFSVOM.XX.INN.XXX.XXXX.SX.LAT.XXX.IS.N.M"]
[{"$f":"\"INN.\"&EIGNIR!$B$3&C352","v":{"$error":"#N/A"}},{"$f":"EIGNIR!C378","v":0},".M.ESFSVOM.XX.SLI.XXX.XXXX.SX.LAT.XXX.IS.N.M"]
[{"$f":"\"INN.\"&EIGNIR!$B$3&C353","v":{"$error":"#N/A"}},{"$f":"EIGNIR!C379","v":0},".M.ESFSVOM.XX.PEN.XXX.XXXX.SX.LAT.XXX.IS.N.M"]
[{"$f":"\"INN.\"&EIGNIR!$B$3&C354","v":{"$error":"#N/A"}},{"$f":"EIGNIR!C380","v":0},".M.ESFSVOM.XX.SJO.XXX.XXXX.SX.LAT.XXX.IS.N.M"]
[{"$f":"\"INN.\"&EIGNIR!$B$3&C355","v":{"$error":"#N/A"}},{"$f":"EIGNIR!C381","v":0},".M.ESFSVOM.XX.YFT.XXX.XXXX.SX.LAT.XXX.IS.N.M"]
[{"$f":"\"INN.\"&EIGNIR!$B$3&C356","v":{"$error":"#N/A"}},{"$f":"EIGNIR!C382","v":0},".M.ESFSVOM.XX.SLY.XXX.XXXX.SX.LAT.XXX.IS.N.M"]
[{"$f":"\"INN.\"&EIGNIR!$B$3&C357","v":{"$error":"#N/A"}},{"$f":"EIGNIR!C383","v":0},".M.ESFSVOM.XX.FHL.XXX.XXXX.SX.LAT.XXX.IS.N.M"]
[{"$f":"\"INN.\"&EIGNIR!$B$3&C358","v":{"$error":"#N/A"}},{"$f":"EIGNIR!C384","v":0},".M.ESFSVOM.XX.INF.XXX.XXXX.SX.LAT.XXX.IS.N.M"]
[{"$f":"\"INN.\"&EIGNIR!$B$3&C359","v":{"$error":"#N/A"}},{"$f":"EIGNIR!C385","v":0},".M.ESFSVOM.XX.TRY.XXX.XXXX.SX.LAT.XXX.IS.N.M"]
[{"$f":"\"INN.\"&EIGNIR!$B$3&C360","v":{"$error":"#N/A"}},{"$f":"EIGNIR!C386","v":0},".M.ESFSVOM.XX.LIF.XXX.XXXX.SX.LAT.XXX.IS.N.M"]
[{"$f":"\"INN.\"&EIGNIR!$B$3&C361","v":{"$error":"#N/A"}},{"$f":"EIGNIR!C387","v":0},".M.ESFSVOM.XX.OPI.XXX.XXXX.SX.LAT.XXX.IS.N.M"]
[{"$f":"\"INN.\"&EIGNIR!$B$3&C362","v":{"$error":"#N/A"}},{"$f":"EIGNIR!C388","v":0},".M.ESFSVOM.XX.RSS.XXX.XXXX.SX.LAT.XXX.IS.N.M"]
[{"$f":"\"INN.\"&EIGNIR!$B$3&C363","v":{"$error":"#N/A"}},{"$f":"EIGNIR!C389","v":0},".M.ESFSVOM.XX.BAJ.XXX.XXXX.SX.LAT.XXX.IS.N.M"]
[{"$f":"\"INN.\"&EIGNIR!$B$3&C364","v":{"$error":"#N/A"}},{"$f":"EIGNIR!C391","v":0},".M.ESFSVOM.XX.NPH.XXX.XXXX.SX.LAT.XXX.IS.N.M"]
[{"$f":"\"INN.\"&EIGNIR!$B$3&C365","v":{"$error":"#N/A"}},{"$f":"EIGNIR!C392","v":0},".M.ESFSVOM.XX.ERL.XXX.XXXX.SX.LAT.XXX.IS.N.M"]
[{"$f":"\"INN.\"&EIGNIR!$B$3&C366","v":{"$error":"#N/A"}},{"$f":"EIGNIR!C393","v":0},".M.ESFSVOM.XX.$$$.XXX.XXXX.SX.SKT.XXX.IS.N.M","//Skuldabréf og víxlar, Önnur markaðsskuldabréf og víxlar  ≤ 1 ár"]
[{"$f":"\"INN.\"&EIGNIR!$B$3&C367","v":{"$error":"#N/A"}},{"$f":"EIGNIR!C394","v":0},".M.ESFSVOM.XX.ATV.XXX.XXXX.SX.SKT.XXX.IS.N.M"]
[{"$f":"\"INN.\"&EIGNIR!$B$3&C368","v":{"$error":"#N/A"}},{"$f":"EIGNIR!C395","v":0},".M.ESFSVOM.XX.LAB.XXX.XXXX.SX.SKT.XXX.IS.N.M"]
[{"$f":"\"INN.\"&EIGNIR!$B$3&C369","v":{"$error":"#N/A"}},{"$f":"EIGNIR!C396","v":0},".M.ESFSVOM.XX.SJA.XXX.XXXX.SX.SKT.XXX.IS.N.M"]
[{"$f":"\"INN.\"&EIGNIR!$B$3&C370","v":{"$error":"#N/A"}},{"$f":"EIGNIR!C397","v":0},".M.ESFSVOM.XX.ILA.XXX.XXXX.SX.SKT.XXX.IS.N.M"]
[{"$f":"\"INN.\"&EIGNIR!$B$3&C371","v":{"$error":"#N/A"}},{"$f":"EIGNIR!C398","v":0},".M.ESFSVOM.XX.ISJ.XXX.XXXX.SX.SKT.XXX.IS.N.M"]
[{"$f":"\"INN.\"&EIGNIR!$B$3&C372","v":{"$error":"#N/A"}},{"$f":"EIGNIR!C399","v":0},".M.ESFSVOM.XX.IAN.XXX.XXXX.SX.SKT.XXX.IS.N.M"]
[{"$f":"\"INN.\"&EIGNIR!$B$3&C373","v":{"$error":"#N/A"}},{"$f":"EIGNIR!C400","v":0},".M.ESFSVOM.XX.RAF.XXX.XXXX.SX.SKT.XXX.IS.N.M"]
[{"$f":"\"INN.\"&EIGNIR!$B$3&C374","v":{"$error":"#N/A"}},{"$f":"EIGNIR!C401","v":0},".M.ESFSVOM.XX.MAN.XXX.XXXX.SX.SKT.XXX.IS.N.M"]
[{"$f":"\"INN.\"&EIGNIR!$B$3&C375","v":{"$error":"#N/A"}},{"$f":"EIGNIR!C402","v":0},".M.ESFSVOM.XX.VEN.XXX.XXXX.SX.SKT.XXX.IS.N.M"]
[{"$f":"\"INN.\"&EIGNIR!$B$3&C376","v":{"$error":"#N/A"}},{"$f":"EIGNIR!C403","v":0},".M.ESFSVOM.XX.SAG.XXX.XXXX.SX.SKT.XXX.IS.N.M"]
[{"$f":"\"INN.\"&EIGNIR!$B$3&C377","v":{"$error":"#N/A"}},{"$f":"EIGNIR!C404","v":0},".M.ESFSVOM.XX.THF.XXX.XXXX.SX.SKT.XXX.IS.N.M"]
[{"$f":"\"INN.\"&EIGNIR!$B$3&C378","v":{"$error":"#N/A"}},{"$f":"EIGNIR!C405","v":0},".M.ESFSVOM.XX.THH.XXX.XXXX.SX.SKT.XXX.IS.N.M"]
[{"$f":"\"INN.\"&EIGNIR!$B$3&C379","v":{"$error":"#N/A"}},{"$f":"EIGNIR!C406","v":0},".M.ESFSVOM.XX.THA.XXX.XXXX.SX.SKT.XXX.IS.N.M"]
[{"$f":"\"INN.\"&EIGNIR!$B$3&C380","v":{"$error":"#N/A"}},{"$f":"EIGNIR!C407","v":0},".M.ESFSVOM.XX.OFL.XXX.XXXX.SX.SKT.XXX.IS.N.M"]
[{"$f":"\"INN.\"&EIGNIR!$B$3&C381","v":{"$error":"#N/A"}},{"$f":"EIGNIR!C408","v":0},".M.ESFSVOM.XX.FJA.XXX.XXXX.SX.SKT.XXX.IS.N.M"]
[{"$f":"\"INN.\"&EIGNIR!$B$3&C382","v":{"$error":"#N/A"}},{"$f":"EIGNIR!C409","v":0},".M.ESFSVOM.XX.INN.XXX.XXXX.SX.SKT.XXX.IS.N.M"]
[{"$f":"\"INN.\"&EIGNIR!$B$3&C383","v":{"$error":"#N/A"}},{"$f":"EIGNIR!C410","v":0},".M.ESFSVOM.XX.SLI.XXX.XXXX.SX.SKT.XXX.IS.N.M"]
[{"$f":"\"INN.\"&EIGNIR!$B$3&C384","v":{"$error":"#N/A"}},{"$f":"EIGNIR!C411","v":0},".M.ESFSVOM.XX.PEN.XXX.XXXX.SX.SKT.XXX.IS.N.M"]
[{"$f":"\"INN.\"&EIGNIR!$B$3&C385","v":{"$error":"#N/A"}},{"$f":"EIGNIR!C412","v":0},".M.ESFSVOM.XX.SJO.XXX.XXXX.SX.SKT.XXX.IS.N.M"]
[{"$f":"\"INN.\"&EIGNIR!$B$3&C386","v":{"$error":"#N/A"}},{"$f":"EIGNIR!C413","v":0},".M.ESFSVOM.XX.YFT.XXX.XXXX.SX.SKT.XXX.IS.N.M"]
[{"$f":"\"INN.\"&EIGNIR!$B$3&C387","v":{"$error":"#N/A"}},{"$f":"EIGNIR!C414","v":0},".M.ESFSVOM.XX.YFTXXX.XXXX.SX.SKT.XXX.IS.N.M"]
[{"$f":"\"INN.\"&EIGNIR!$B$3&C388","v":{"$error":"#N/A"}},{"$f":"EIGNIR!C415","v":0},".M.ESFSVOM.XX.FHL.XXX.XXXX.SX.SKT.XXX.IS.N.M"]
[{"$f":"\"INN.\"&EIGNIR!$B$3&C389","v":{"$error":"#N/A"}},{"$f":"EIGNIR!C416","v":0},".M.ESFSVOM.XX.INF.XXX.XXXX.SX.SKT.XXX.IS.N.M"]
[{"$f":"\"INN.\"&EIGNIR!$B$3&C390","v":{"$error":"#N/A"}},{"$f":"EIGNIR!C417","v":0},".M.ESFSVOM.XX.TRY.XXX.XXXX.SX.SKT.XXX.IS.N.M"]
[{"$f":"\"INN.\"&EIGNIR!$B$3&C391","v":{"$error":"#N/A"}},{"$f":"EIGNIR!C418","v":0},".M.ESFSVOM.XX.LIF.XXX.XXXX.SX.SKT.XXX.IS.N.M"]
[{"$f":"\"INN.\"&EIGNIR!$B$3&C392","v":{"$error":"#N/A"}},{"$f":"EIGNIR!C419","v":0},".M.ESFSVOM.XX.OPI.XXX.XXXX.SX.SKT.XXX.IS.N.M"]
[{"$f":"\"INN.\"&EIGNIR!$B$3&C393","v":{"$error":"#N/A"}},{"$f":"EIGNIR!C420","v":0},".M.ESFSVOM.XX.RSS.XXX.XXXX.SX.SKT.XXX.IS.N.M"]
[{"$f":"\"INN.\"&EIGNIR!$B$3&C394","v":{"$error":"#N/A"}},{"$f":"EIGNIR!C421","v":0},".M.ESFSVOM.XX.BAJ.XXX.XXXX.SX.SKT.XXX.IS.N.M"]
[{"$f":"\"INN.\"&EIGNIR!$B$3&C395","v":{"$error":"#N/A"}},{"$f":"EIGNIR!C423","v":0},".M.ESFSVOM.XX.NPH.XXX.XXXX.SX.SKT.XXX.IS.N.M"]
[{"$f":"\"INN.\"&EIGNIR!$B$3&C396","v":{"$error":"#N/A"}},{"$f":"EIGNIR!C424","v":0},".M.ESFSVOM.XX.ERL.XXX.XXXX.SX.SKT.XXX.IS.N.M"]
[{"$f":"\"INN.\"&EIGNIR!$B$3&C397","v":{"$error":"#N/A"}},{"$f":"EIGNIR!C425","v":0},".M.EUK$$$$.XX.XXX.$$$.XXXX.SX.XXX.XXX.IS.N.M","//Útlán og kröfur"]
[{"$f":"\"INN.\"&EIGNIR!$B$3&C398","v":{"$error":"#N/A"}},{"$f":"EIGNIR!C426","v":0},".M.EUKIT$$.XX.$$$.$$$.XXXX.SX.XXX.XXX.IS.N.M","//Innlán og innleystir tékkar"]
[{"$f":"\"INN.\"&EIGNIR!$B$3&C399","v":{"$error":"#N/A"}},{"$f":"EIGNIR!C427","v":0},".M.EUKITII.XX.XXX.$$$.XXXX.SX.XXX.XXX.IS.N.M"]
[{"$f":"\"INN.\"&EIGNIR!$B$3&C400","v":{"$error":"#N/A"}},{"$f":"EIGNIR!C428","v":0},".M.EUKITIE.XX.XXX.$$$.XXXX.SX.XXX.XXX.IS.N.M"]
[{"$f":"\"INN.\"&EIGNIR!$B$3&C401","v":{"$error":"#N/A"}},{"$f":"EIGNIR!C429","v":0},".M.EUKITIT.XX.XXX.$$$.XXXX.SX.XXX.XXX.IS.N.M"]
[{"$f":"\"INN.\"&EIGNIR!$B$3&C402","v":{"$error":"#N/A"}},{"$f":"EIGNIR!C430","v":0},".M.EUKUL$$.XX.$$$.$$$.XXXX.SX.XXX.XXX.IS.N.M","//Útlán"]
[{"$f":"\"INN.\"&EIGNIR!$B$3&C403","v":{"$error":"#N/A"}},{"$f":"EIGNIR!C431","v":0},".M.EUKULIA.XX.$$$.XXX.XXXX.SX.XXX.XXX.IS.N.M","//Greiddar óinnleystar ábyrgðir"]
[{"$f":"\"INN.\"&EIGNIR!$B$3&C404","v":{"$error":"#N/A"}},{"$f":"EIGNIR!C432","v":0},".M.EUKULIA.XX.ATV.$$$.XXXX.SX.XXX.XXX.IS.N.M"]
[{"$f":"\"INN.\"&EIGNIR!$B$3&C405","v":{"$error":"#N/A"}},{"$f":"EIGNIR!C433","v":0},".M.EUKULIA.XX.LAB.XXX.XXXX.SX.XXX.XXX.IS.N.M"]
[{"$f":"\"INN.\"&EIGNIR!$B$3&C406","v":{"$error":"#N/A"}},{"$f":"EIGNIR!C434","v":0},".M.EUKULIA.XX.SJA.XXX.XXXX.SX.XXX.XXX.IS.N.M"]
[{"$f":"\"INN.\"&EIGNIR!$B$3&C407","v":{"$error":"#N/A"}},{"$f":"EIGNIR!C435","v":0},".M.EUKULIA.XX.ILA.XXX.XXXX.SX.XXX.XXX.IS.N.M"]
[{"$f":"\"INN.\"&EIGNIR!$B$3&C408","v":{"$error":"#N/A"}},{"$f":"EIGNIR!C436","v":0},".M.EUKULIA.XX.ISJ.XXX.XXXX.SX.XXX.XXX.IS.N.M"]
[{"$f":"\"INN.\"&EIGNIR!$B$3&C409","v":{"$error":"#N/A"}},{"$f":"EIGNIR!C437","v":0},".M.EUKULIA.XX.IAN.XXX.XXXX.SX.XXX.XXX.IS.N.M"]
[{"$f":"\"INN.\"&EIGNIR!$B$3&C410","v":{"$error":"#N/A"}},{"$f":"EIGNIR!C438","v":0},".M.EUKULIA.XX.RAF.XXX.XXXX.SX.XXX.XXX.IS.N.M"]
[{"$f":"\"INN.\"&EIGNIR!$B$3&C411","v":{"$error":"#N/A"}},{"$f":"EIGNIR!C439","v":0},".M.EUKULIA.XX.MAN.XXX.XXXX.SX.XXX.XXX.IS.N.M"]
[{"$f":"\"INN.\"&EIGNIR!$B$3&C412","v":{"$error":"#N/A"}},{"$f":"EIGNIR!C440","v":0},".M.EUKULIA.XX.VEN.XXX.XXXX.SX.XXX.XXX.IS.N.M"]
[{"$f":"\"INN.\"&EIGNIR!$B$3&C413","v":{"$error":"#N/A"}},{"$f":"EIGNIR!C441","v":0},".M.EUKULIA.XX.SAG.XXX.XXXX.SX.XXX.XXX.IS.N.M"]
[{"$f":"\"INN.\"&EIGNIR!$B$3&C414","v":{"$error":"#N/A"}},{"$f":"EIGNIR!C442","v":0},".M.EUKULIA.XX.THF.XXX.XXXX.SX.XXX.XXX.IS.N.M"]
[{"$f":"\"INN.\"&EIGNIR!$B$3&C415","v":{"$error":"#N/A"}},{"$f":"EIGNIR!C443","v":0},".M.EUKULIA.XX.THH.XXX.XXXX.SX.XXX.XXX.IS.N.M"]
[{"$f":"\"INN.\"&EIGNIR!$B$3&C416","v":{"$error":"#N/A"}},{"$f":"EIGNIR!C444","v":0},".M.EUKULIA.XX.THA.XXX.XXXX.SX.XXX.XXX.IS.N.M"]
[{"$f":"\"INN.\"&EIGNIR!$B$3&C417","v":{"$error":"#N/A"}},{"$f":"EIGNIR!C445","v":0},".M.EUKULIA.XX.OFL.XXX.XXXX.SX.XXX.XXX.IS.N.M"]
[{"$f":"\"INN.\"&EIGNIR!$B$3&C418","v":{"$error":"#N/A"}},{"$f":"EIGNIR!C446","v":0},".M.EUKULIA.XX.FJA.$$$.XXXX.SX.XXX.XXX.IS.N.M"]
[{"$f":"\"INN.\"&EIGNIR!$B$3&C419","v":{"$error":"#N/A"}},{"$f":"EIGNIR!C447","v":0},".M.EUKULIA.XX.INN.$$$.XXXX.SX.XXX.XXX.IS.N.M"]
[{"$f":"\"INN.\"&EIGNIR!$B$3&C420","v":{"$error":"#N/A"}},{"$f":"EIGNIR!C448","v":0},".M.EUKULIA.XX.SLI.$$$.XXXX.SX.XXX.XXX.IS.N.M"]
[{"$f":"\"INN.\"&EIGNIR!$B$3&C421","v":{"$error":"#N/A"}},{"$f":"EIGNIR!C449","v":0},".M.EUKULIA.XX.PEN.$$$.XXXX.SX.XXX.XXX.IS.N.M"]
[{"$f":"\"INN.\"&EIGNIR!$B$3&C422","v":{"$error":"#N/A"}},{"$f":"EIGNIR!C450","v":0},".M.EUKULIA.XX.SJO.$$$.XXXX.SX.XXX.XXX.IS.N.M"]
[{"$f":"\"INN.\"&EIGNIR!$B$3&C423","v":{"$error":"#N/A"}},{"$f":"EIGNIR!C451","v":0},".M.EUKULIA.XX.YFT.$$$.XXXX.SX.XXX.XXX.IS.N.M"]
[{"$f":"\"INN.\"&EIGNIR!$B$3&C424","v":{"$error":"#N/A"}},{"$f":"EIGNIR!C452","v":0},".M.EUKULIA.XX.SLY.$$$.XXXX.SX.XXX.XXX.IS.N.M"]
[{"$f":"\"INN.\"&EIGNIR!$B$3&C425","v":{"$error":"#N/A"}},{"$f":"EIGNIR!C453","v":0},".M.EUKULIA.XX.FHL.$$$.XXXX.SX.XXX.XXX.IS.N.M"]
[{"$f":"\"INN.\"&EIGNIR!$B$3&C426","v":{"$error":"#N/A"}},{"$f":"EIGNIR!C454","v":0},".M.EUKULIA.XX.INF.$$$.XXXX.SX.XXX.XXX.IS.N.M"]
[{"$f":"\"INN.\"&EIGNIR!$B$3&C427","v":{"$error":"#N/A"}},{"$f":"EIGNIR!C455","v":0},".M.EUKULIA.XX.TRY.$$$.XXXX.SX.XXX.XXX.IS.N.M"]
[{"$f":"\"INN.\"&EIGNIR!$B$3&C428","v":{"$error":"#N/A"}},{"$f":"EIGNIR!C456","v":0},".M.EUKULIA.XX.LIF.$$$.XXXX.SX.XXX.XXX.IS.N.M"]
[{"$f":"\"INN.\"&EIGNIR!$B$3&C429","v":{"$error":"#N/A"}},{"$f":"EIGNIR!C457","v":0},".M.EUKULIA.XX.OPI.$$$.XXXX.SX.XXX.XXX.IS.N.M"]
[{"$f":"\"INN.\"&EIGNIR!$B$3&C430","v":{"$error":"#N/A"}},{"$f":"EIGNIR!C458","v":0},".M.EUKULIA.XX.RSS.$$$.XXXX.SX.XXX.XXX.IS.N.M"]
[{"$f":"\"INN.\"&EIGNIR!$B$3&C431","v":{"$error":"#N/A"}},{"$f":"EIGNIR!C459","v":0},".M.EUKULIA.XX.BAJ.$$$.XXXX.SX.XXX.XXX.IS.N.M"]
[{"$f":"\"INN.\"&EIGNIR!$B$3&C432","v":{"$error":"#N/A"}},{"$f":"EIGNIR!C460","v":0},".M.EUKULIA.XX.EIN.$$$.XXXX.SX.XXX.XXX.IS.N.M"]
[{"$f":"\"INN.\"&EIGNIR!$B$3&C433","v":{"$error":"#N/A"}},{"$f":"EIGNIR!C461","v":0},".M.EUKULIA.XX.NPH.$$$.XXXX.SX.XXX.XXX.IS.N.M"]
[{"$f":"\"INN.\"&EIGNIR!$B$3&C434","v":{"$error":"#N/A"}},{"$f":"EIGNIR!C462","v":0},".M.EUKULIA.XX.ERL.XXX.XXXX.SX.XXX.XXX.IS.N.M"]
[{"$f":"\"INN.\"&EIGNIR!$B$3&C435","v":{"$error":"#N/A"}},{"$f":"EIGNIR!C463","v":0},".M.EUKULYL.XX.$$$.XXX.XXXX.SX.XXX.XXX.IS.N.M","//Yfirdráttarlán"]
[{"$f":"\"INN.\"&EIGNIR!$B$3&C436","v":{"$error":"#N/A"}},{"$f":"EIGNIR!C464","v":0},".M.EUKULYL.XX.ATV.$$$.XXXX.SX.XXX.XXX.IS.N.M"]
[{"$f":"\"INN.\"&EIGNIR!$B$3&C437","v":{"$error":"#N/A"}},{"$f":"EIGNIR!C465","v":0},".M.EUKULYL.XX.LAB.XXX.XXXX.SX.XXX.XXX.IS.N.M"]
[{"$f":"\"INN.\"&EIGNIR!$B$3&C438","v":{"$error":"#N/A"}},{"$f":"EIGNIR!C466","v":0},".M.EUKULYL.XX.SJA.XXX.XXXX.SX.XXX.XXX.IS.N.M"]
[{"$f":"\"INN.\"&EIGNIR!$B$3&C439","v":{"$error":"#N/A"}},{"$f":"EIGNIR!C467","v":0},".M.EUKULYL.XX.ILA.XXX.XXXX.SX.XXX.XXX.IS.N.M"]
[{"$f":"\"INN.\"&EIGNIR!$B$3&C440","v":{"$error":"#N/A"}},{"$f":"EIGNIR!C468","v":0},".M.EUKULYL.XX.ISJ.XXX.XXXX.SX.XXX.XXX.IS.N.M"]
[{"$f":"\"INN.\"&EIGNIR!$B$3&C441","v":{"$error":"#N/A"}},{"$f":"EIGNIR!C469","v":0},".M.EUKULYL.XX.IAN.XXX.XXXX.SX.XXX.XXX.IS.N.M"]
[{"$f":"\"INN.\"&EIGNIR!$B$3&C442","v":{"$error":"#N/A"}},{"$f":"EIGNIR!C470","v":0},".M.EUKULYL.XX.RAF.XXX.XXXX.SX.XXX.XXX.IS.N.M"]
[{"$f":"\"INN.\"&EIGNIR!$B$3&C443","v":{"$error":"#N/A"}},{"$f":"EIGNIR!C471","v":0},".M.EUKULYL.XX.MAN.XXX.XXXX.SX.XXX.XXX.IS.N.M"]
[{"$f":"\"INN.\"&EIGNIR!$B$3&C444","v":{"$error":"#N/A"}},{"$f":"EIGNIR!C472","v":0},".M.EUKULYL.XX.VEN.XXX.XXXX.SX.XXX.XXX.IS.N.M"]
[{"$f":"\"INN.\"&EIGNIR!$B$3&C445","v":{"$error":"#N/A"}},{"$f":"EIGNIR!C473","v":0},".M.EUKULYL.XX.SAG.XXX.XXXX.SX.XXX.XXX.IS.N.M"]
[{"$f":"\"INN.\"&EIGNIR!$B$3&C446","v":{"$error":"#N/A"}},{"$f":"EIGNIR!C474","v":0},".M.EUKULYL.XX.THF.XXX.XXXX.SX.XXX.XXX.IS.N.M"]
[{"$f":"\"INN.\"&EIGNIR!$B$3&C447","v":{"$error":"#N/A"}},{"$f":"EIGNIR!C475","v":0},".M.EUKULYL.XX.THH.XXX.XXXX.SX.XXX.XXX.IS.N.M"]
[{"$f":"\"INN.\"&EIGNIR!$B$3&C448","v":{"$error":"#N/A"}},{"$f":"EIGNIR!C476","v":0},".M.EUKULYL.XX.THA.XXX.XXXX.SX.XXX.XXX.IS.N.M"]
[{"$f":"\"INN.\"&EIGNIR!$B$3&C449","v":{"$error":"#N/A"}},{"$f":"EIGNIR!C477","v":0},".M.EUKULYL.XX.OFL.XXX.XXXX.SX.XXX.XXX.IS.N.M"]
[{"$f":"\"INN.\"&EIGNIR!$B$3&C450","v":{"$error":"#N/A"}},{"$f":"EIGNIR!C478","v":0},".M.EUKULYL.XX.FJA.$$$.XXXX.SX.XXX.XXX.IS.N.M"]
[{"$f":"\"INN.\"&EIGNIR!$B$3&C451","v":{"$error":"#N/A"}},{"$f":"EIGNIR!C479","v":0},".M.EUKULYL.XX.INN.$$$.XXXX.SX.XXX.XXX.IS.N.M"]
[{"$f":"\"INN.\"&EIGNIR!$B$3&C452","v":{"$error":"#N/A"}},{"$f":"EIGNIR!C480","v":0},".M.EUKULYL.XX.SLI.$$$.XXXX.SX.XXX.XXX.IS.N.M"]
[{"$f":"\"INN.\"&EIGNIR!$B$3&C453","v":{"$error":"#N/A"}},{"$f":"EIGNIR!C481","v":0},".M.EUKULYL.XX.PEN.$$$.XXXX.SX.XXX.XXX.IS.N.M"]
[{"$f":"\"INN.\"&EIGNIR!$B$3&C454","v":{"$error":"#N/A"}},{"$f":"EIGNIR!C482","v":0},".M.EUKULYL.XX.SJO.$$$.XXXX.SX.XXX.XXX.IS.N.M"]
[{"$f":"\"INN.\"&EIGNIR!$B$3&C455","v":{"$error":"#N/A"}},{"$f":"EIGNIR!C483","v":0},".M.EUKULYL.XX.YFT.$$$.XXXX.SX.XXX.XXX.IS.N.M"]
[{"$f":"\"INN.\"&EIGNIR!$B$3&C456","v":{"$error":"#N/A"}},{"$f":"EIGNIR!C484","v":0},".M.EUKULYL.XX.SLY.$$$.XXXX.SX.XXX.XXX.IS.N.M"]
[{"$f":"\"INN.\"&EIGNIR!$B$3&C457","v":{"$error":"#N/A"}},{"$f":"EIGNIR!C485","v":0},".M.EUKULYL.XX.FHL.$$$.XXXX.SX.XXX.XXX.IS.N.M"]
[{"$f":"\"INN.\"&EIGNIR!$B$3&C458","v":{"$error":"#N/A"}},{"$f":"EIGNIR!C486","v":0},".M.EUKULYL.XX.INF.$$$.XXXX.SX.XXX.XXX.IS.N.M"]
[{"$f":"\"INN.\"&EIGNIR!$B$3&C459","v":{"$error":"#N/A"}},{"$f":"EIGNIR!C487","v":0},".M.EUKULYL.XX.TRY.$$$.XXXX.SX.XXX.XXX.IS.N.M"]
[{"$f":"\"INN.\"&EIGNIR!$B$3&C460","v":{"$error":"#N/A"}},{"$f":"EIGNIR!C488","v":0},".M.EUKULYL.XX.LIF.$$$.XXXX.SX.XXX.XXX.IS.N.M"]
[{"$f":"\"INN.\"&EIGNIR!$B$3&C461","v":{"$error":"#N/A"}},{"$f":"EIGNIR!C489","v":0},".M.EUKULYL.XX.OPI.$$$.XXXX.SX.XXX.XXX.IS.N.M"]
[{"$f":"\"INN.\"&EIGNIR!$B$3&C462","v":{"$error":"#N/A"}},{"$f":"EIGNIR!C490","v":0},".M.EUKULYL.XX.RSS.$$$.XXXX.SX.XXX.XXX.IS.N.M"]
[{"$f":"\"INN.\"&EIGNIR!$B$3&C463","v":{"$error":"#N/A"}},{"$f":"EIGNIR!C491","v":0},".M.EUKULYL.XX.BAJ.$$$.XXXX.SX.XXX.XXX.IS.N.M"]
[{"$f":"\"INN.\"&EIGNIR!$B$3&C464","v":{"$error":"#N/A"}},{"$f":"EIGNIR!C492","v":0},".M.EUKULYL.XX.EIN.$$$.XXXX.SX.XXX.XXX.IS.N.M"]
[{"$f":"\"INN.\"&EIGNIR!$B$3&C465","v":{"$error":"#N/A"}},{"$f":"EIGNIR!C493","v":0},".M.EUKULYL.XX.NPH.$$$.XXXX.SX.XXX.XXX.IS.N.M"]
[{"$f":"\"INN.\"&EIGNIR!$B$3&C466","v":{"$error":"#N/A"}},{"$f":"EIGNIR!C494","v":0},".M.EUKULYL.XX.ERL.XXX.XXXX.SX.XXX.XXX.IS.N.M"]
[{"$f":"\"INN.\"&EIGNIR!$B$3&C467","v":{"$error":"#N/A"}},{"$f":"EIGNIR!C495","v":0},".M.EUKULVX.XX.$$$.XXX.XXXX.SX.XXX.XXX.IS.N.M","//Víxlar"]
[{"$f":"\"INN.\"&EIGNIR!$B$3&C468","v":{"$error":"#N/A"}},{"$f":"EIGNIR!C496","v":0},".M.EUKULVX.XX.ATV.$$$.XXXX.SX.XXX.XXX.IS.N.M"]
[{"$f":"\"INN.\"&EIGNIR!$B$3&C469","v":{"$error":"#N/A"}},{"$f":"EIGNIR!C497","v":0},".M.EUKULVX.XX.LAB.XXX.XXXX.SX.XXX.XXX.IS.N.M"]
[{"$f":"\"INN.\"&EIGNIR!$B$3&C470","v":{"$error":"#N/A"}},{"$f":"EIGNIR!C498","v":0},".M.EUKULVX.XX.SJA.XXX.XXXX.SX.XXX.XXX.IS.N.M"]
[{"$f":"\"INN.\"&EIGNIR!$B$3&C471","v":{"$error":"#N/A"}},{"$f":"EIGNIR!C499","v":0},".M.EUKULVX.XX.ILA.XXX.XXXX.SX.XXX.XXX.IS.N.M"]
[{"$f":"\"INN.\"&EIGNIR!$B$3&C472","v":{"$error":"#N/A"}},{"$f":"EIGNIR!C500","v":0},".M.EUKULVX.XX.ISJ.XXX.XXXX.SX.XXX.XXX.IS.N.M"]
[{"$f":"\"INN.\"&EIGNIR!$B$3&C473","v":{"$error":"#N/A"}},{"$f":"EIGNIR!C501","v":0},".M.EUKULVX.XX.IAN.XXX.XXXX.SX.XXX.XXX.IS.N.M"]
[{"$f":"\"INN.\"&EIGNIR!$B$3&C474","v":{"$error":"#N/A"}},{"$f":"EIGNIR!C502","v":0},".M.EUKULVX.XX.RAF.XXX.XXXX.SX.XXX.XXX.IS.N.M"]
[{"$f":"\"INN.\"&EIGNIR!$B$3&C475","v":{"$error":"#N/A"}},{"$f":"EIGNIR!C503","v":0},".M.EUKULVX.XX.MAN.XXX.XXXX.SX.XXX.XXX.IS.N.M"]
[{"$f":"\"INN.\"&EIGNIR!$B$3&C476","v":{"$error":"#N/A"}},{"$f":"EIGNIR!C504","v":0},".M.EUKULVX.XX.VEN.XXX.XXXX.SX.XXX.XXX.IS.N.M"]
[{"$f":"\"INN.\"&EIGNIR!$B$3&C477","v":{"$error":"#N/A"}},{"$f":"EIGNIR!C505","v":0},".M.EUKULVX.XX.SAG.XXX.XXXX.SX.XXX.XXX.IS.N.M"]
[{"$f":"\"INN.\"&EIGNIR!$B$3&C478","v":{"$error":"#N/A"}},{"$f":"EIGNIR!C506","v":0},".M.EUKULVX.XX.THF.XXX.XXXX.SX.XXX.XXX.IS.N.M"]
[{"$f":"\"INN.\"&EIGNIR!$B$3&C479","v":{"$error":"#N/A"}},{"$f":"EIGNIR!C507","v":0},".M.EUKULVX.XX.THH.XXX.XXXX.SX.XXX.XXX.IS.N.M"]
[{"$f":"\"INN.\"&EIGNIR!$B$3&C480","v":{"$error":"#N/A"}},{"$f":"EIGNIR!C508","v":0},".M.EUKULVX.XX.THA.XXX.XXXX.SX.XXX.XXX.IS.N.M"]
[{"$f":"\"INN.\"&EIGNIR!$B$3&C481","v":{"$error":"#N/A"}},{"$f":"EIGNIR!C509","v":0},".M.EUKULVX.XX.OFL.XXX.XXXX.SX.XXX.XXX.IS.N.M"]
[{"$f":"\"INN.\"&EIGNIR!$B$3&C482","v":{"$error":"#N/A"}},{"$f":"EIGNIR!C510","v":0},".M.EUKULVX.XX.FJA.$$$.XXXX.SX.XXX.XXX.IS.N.M"]
[{"$f":"\"INN.\"&EIGNIR!$B$3&C483","v":{"$error":"#N/A"}},{"$f":"EIGNIR!C511","v":0},".M.EUKULVX.XX.INN.$$$.XXXX.SX.XXX.XXX.IS.N.M"]
[{"$f":"\"INN.\"&EIGNIR!$B$3&C484","v":{"$error":"#N/A"}},{"$f":"EIGNIR!C512","v":0},".M.EUKULVX.XX.SLI.$$$.XXXX.SX.XXX.XXX.IS.N.M"]
[{"$f":"\"INN.\"&EIGNIR!$B$3&C485","v":{"$error":"#N/A"}},{"$f":"EIGNIR!C513","v":0},".M.EUKULVX.XX.PEN.$$$.XXXX.SX.XXX.XXX.IS.N.M"]
[{"$f":"\"INN.\"&EIGNIR!$B$3&C486","v":{"$error":"#N/A"}},{"$f":"EIGNIR!C514","v":0},".M.EUKULVX.XX.SJO.$$$.XXXX.SX.XXX.XXX.IS.N.M"]
[{"$f":"\"INN.\"&EIGNIR!$B$3&C487","v":{"$error":"#N/A"}},{"$f":"EIGNIR!C515","v":0},".M.EUKULVX.XX.YFT.$$$.XXXX.SX.XXX.XXX.IS.N.M"]
[{"$f":"\"INN.\"&EIGNIR!$B$3&C488","v":{"$error":"#N/A"}},{"$f":"EIGNIR!C516","v":0},".M.EUKULVX.XX.SLY.$$$.XXXX.SX.XXX.XXX.IS.N.M"]
[{"$f":"\"INN.\"&EIGNIR!$B$3&C489","v":{"$error":"#N/A"}},{"$f":"EIGNIR!C517","v":0},".M.EUKULVX.XX.FHL.$$$.XXXX.SX.XXX.XXX.IS.N.M"]
[{"$f":"\"INN.\"&EIGNIR!$B$3&C490","v":{"$error":"#N/A"}},{"$f":"EIGNIR!C518","v":0},".M.EUKULVX.XX.INF.$$$.XXXX.SX.XXX.XXX.IS.N.M"]
[{"$f":"\"INN.\"&EIGNIR!$B$3&C491","v":{"$error":"#N/A"}},{"$f":"EIGNIR!C519","v":0},".M.EUKULVX.XX.TRY.$$$.XXXX.SX.XXX.XXX.IS.N.M"]
[{"$f":"\"INN.\"&EIGNIR!$B$3&C492","v":{"$error":"#N/A"}},{"$f":"EIGNIR!C520","v":0},".M.EUKULVX.XX.LIF.$$$.XXXX.SX.XXX.XXX.IS.N.M"]
[{"$f":"\"INN.\"&EIGNIR!$B$3&C493","v":{"$error":"#N/A"}},{"$f":"EIGNIR!C521","v":0},".M.EUKULVX.XX.OPI.$$$.XXXX.SX.XXX.XXX.IS.N.M"]
[{"$f":"\"INN.\"&EIGNIR!$B$3&C494","v":{"$error":"#N/A"}},{"$f":"EIGNIR!C522","v":0},".M.EUKULVX.XX.RSS.$$$.XXXX.SX.XXX.XXX.IS.N.M"]
[{"$f":"\"INN.\"&EIGNIR!$B$3&C495","v":{"$error":"#N/A"}},{"$f":"EIGNIR!C523","v":0},".M.EUKULVX.XX.BAJ.$$$.XXXX.SX.XXX.XXX.IS.N.M"]
[{"$f":"\"INN.\"&EIGNIR!$B$3&C496","v":{"$error":"#N/A"}},{"$f":"EIGNIR!C524","v":0},".M.EUKULVX.XX.EIN.$$$.XXXX.SX.XXX.XXX.IS.N.M"]
[{"$f":"\"INN.\"&EIGNIR!$B$3&C497","v":{"$error":"#N/A"}},{"$f":"EIGNIR!C525","v":0},".M.EUKULVX.XX.NPH.$$$.XXXX.SX.XXX.XXX.IS.N.M"]
[{"$f":"\"INN.\"&EIGNIR!$B$3&C498","v":{"$error":"#N/A"}},{"$f":"EIGNIR!C526","v":0},".M.EUKULVX.XX.ERL.XXX.XXXX.SX.XXX.XXX.IS.N.M"]
[{"$f":"\"INN.\"&EIGNIR!$B$3&C499","v":{"$error":"#N/A"}},{"$f":"EIGNIR!C527","v":0},".M.EUKULVU.XX.$$$.XXX.XXXX.SV.XXX.XXX.IS.N.M","//Verðtryggð útlán"]
[{"$f":"\"INN.\"&EIGNIR!$B$3&C500","v":{"$error":"#N/A"}},{"$f":"EIGNIR!C528","v":0},".M.EUKULVU.XX.ATV.$$$.XXXX.SV.XXX.XXX.IS.N.M"]
[{"$f":"\"INN.\"&EIGNIR!$B$3&C501","v":{"$error":"#N/A"}},{"$f":"EIGNIR!C529","v":0},".M.EUKULVU.XX.LAB.XXX.XXXX.SV.XXX.XXX.IS.N.M"]
[{"$f":"\"INN.\"&EIGNIR!$B$3&C502","v":{"$error":"#N/A"}},{"$f":"EIGNIR!C530","v":0},".M.EUKULVU.XX.SJA.XXX.XXXX.SV.XXX.XXX.IS.N.M"]
[{"$f":"\"INN.\"&EIGNIR!$B$3&C503","v":{"$error":"#N/A"}},{"$f":"EIGNIR!C531","v":0},".M.EUKULVU.XX.ILA.XXX.XXXX.SV.XXX.XXX.IS.N.M"]
[{"$f":"\"INN.\"&EIGNIR!$B$3&C504","v":{"$error":"#N/A"}},{"$f":"EIGNIR!C532","v":0},".M.EUKULVU.XX.ISJ.XXX.XXXX.SV.XXX.XXX.IS.N.M"]
[{"$f":"\"INN.\"&EIGNIR!$B$3&C505","v":{"$error":"#N/A"}},{"$f":"EIGNIR!C533","v":0},".M.EUKULVU.XX.IAN.XXX.XXXX.SV.XXX.XXX.IS.N.M"]
[{"$f":"\"INN.\"&EIGNIR!$B$3&C506","v":{"$error":"#N/A"}},{"$f":"EIGNIR!C534","v":0},".M.EUKULVU.XX.RAF.XXX.XXXX.SV.XXX.XXX.IS.N.M"]
[{"$f":"\"INN.\"&EIGNIR!$B$3&C507","v":{"$error":"#N/A"}},{"$f":"EIGNIR!C535","v":0},".M.EUKULVU.XX.MAN.XXX.XXXX.SV.XXX.XXX.IS.N.M"]
[{"$f":"\"INN.\"&EIGNIR!$B$3&C508","v":{"$error":"#N/A"}},{"$f":"EIGNIR!C536","v":0},".M.EUKULVU.XX.VEN.XXX.XXXX.SV.XXX.XXX.IS.N.M"]
[{"$f":"\"INN.\"&EIGNIR!$B$3&C509","v":{"$error":"#N/A"}},{"$f":"EIGNIR!C537","v":0},".M.EUKULVU.XX.SAG.XXX.XXXX.SV.XXX.XXX.IS.N.M"]
[{"$f":"\"INN.\"&EIGNIR!$B$3&C510","v":{"$error":"#N/A"}},{"$f":"EIGNIR!C538","v":0},".M.EUKULVU.XX.THF.XXX.XXXX.SV.XXX.XXX.IS.N.M"]
[{"$f":"\"INN.\"&EIGNIR!$B$3&C511","v":{"$error":"#N/A"}},{"$f":"EIGNIR!C539","v":0},".M.EUKULVU.XX.THH.XXX.XXXX.SV.XXX.XXX.IS.N.M"]
[{"$f":"\"INN.\"&EIGNIR!$B$3&C512","v":{"$error":"#N/A"}},{"$f":"EIGNIR!C540","v":0},".M.EUKULVU.XX.THA.XXX.XXXX.SV.XXX.XXX.IS.N.M"]
[{"$f":"\"INN.\"&EIGNIR!$B$3&C513","v":{"$error":"#N/A"}},{"$f":"EIGNIR!C541","v":0},".M.EUKULVU.XX.OFL.XXX.XXXX.SV.XXX.XXX.IS.N.M"]
[{"$f":"\"INN.\"&EIGNIR!$B$3&C514","v":{"$error":"#N/A"}},{"$f":"EIGNIR!C542","v":0},".M.EUKULVU.XX.FJA.$$$.XXXX.SV.XXX.XXX.IS.N.M"]
[{"$f":"\"INN.\"&EIGNIR!$B$3&C515","v":{"$error":"#N/A"}},{"$f":"EIGNIR!C543","v":0},".M.EUKULVU.XX.INN.$$$.XXXX.SV.XXX.XXX.IS.N.M"]
[{"$f":"\"INN.\"&EIGNIR!$B$3&C516","v":{"$error":"#N/A"}},{"$f":"EIGNIR!C544","v":0},".M.EUKULVU.XX.SLI.$$$.XXXX.SV.XXX.XXX.IS.N.M"]
[{"$f":"\"INN.\"&EIGNIR!$B$3&C517","v":{"$error":"#N/A"}},{"$f":"EIGNIR!C545","v":0},".M.EUKULVU.XX.PEN.$$$.XXXX.SV.XXX.XXX.IS.N.M"]
[{"$f":"\"INN.\"&EIGNIR!$B$3&C518","v":{"$error":"#N/A"}},{"$f":"EIGNIR!C546","v":0},".M.EUKULVU.XX.SJO.$$$.XXXX.SV.XXX.XXX.IS.N.M"]
[{"$f":"\"INN.\"&EIGNIR!$B$3&C519","v":{"$error":"#N/A"}},{"$f":"EIGNIR!C547","v":0},".M.EUKULVU.XX.YFT.$$$.XXXX.SV.XXX.XXX.IS.N.M"]
[{"$f":"\"INN.\"&EIGNIR!$B$3&C520","v":{"$error":"#N/A"}},{"$f":"EIGNIR!C548","v":0},".M.EUKULVU.XX.SLY.$$$.XXXX.SV.XXX.XXX.IS.N.M"]
[{"$f":"\"INN.\"&EIGNIR!$B$3&C521","v":{"$error":"#N/A"}},{"$f":"EIGNIR!C549","v":0},".M.EUKULVU.XX.FHL.$$$.XXXX.SV.XXX.XXX.IS.N.M"]
[{"$f":"\"INN.\"&EIGNIR!$B$3&C522","v":{"$error":"#N/A"}},{"$f":"EIGNIR!C550","v":0},".M.EUKULVU.XX.INF.$$$.XXXX.SV.XXX.XXX.IS.N.M"]
[{"$f":"\"INN.\"&EIGNIR!$B$3&C523","v":{"$error":"#N/A"}},{"$f":"EIGNIR!C551","v":0},".M.EUKULVU.XX.TRY.$$$.XXXX.SV.XXX.XXX.IS.N.M"]
[{"$f":"\"INN.\"&EIGNIR!$B$3&C524","v":{"$error":"#N/A"}},{"$f":"EIGNIR!C552","v":0},".M.EUKULVU.XX.LIF.$$$.XXXX.SV.XXX.XXX.IS.N.M"]
[{"$f":"\"INN.\"&EIGNIR!$B$3&C525","v":{"$error":"#N/A"}},{"$f":"EIGNIR!C553","v":0},".M.EUKULVU.XX.OPI.$$$.XXXX.SV.XXX.XXX.IS.N.M"]
[{"$f":"\"INN.\"&EIGNIR!$B$3&C526","v":{"$error":"#N/A"}},{"$f":"EIGNIR!C554","v":0},".M.EUKULVU.XX.RSS.$$$.XXXX.SV.XXX.XXX.IS.N.M"]
[{"$f":"\"INN.\"&EIGNIR!$B$3&C527","v":{"$error":"#N/A"}},{"$f":"EIGNIR!C555","v":0},".M.EUKULVU.XX.BAJ.$$$.XXXX.SV.XXX.XXX.IS.N.M"]
[{"$f":"\"INN.\"&EIGNIR!$B$3&C528","v":{"$error":"#N/A"}},{"$f":"EIGNIR!C556","v":0},".M.EUKULVU.XX.EIN.$$$.XXXX.SV.XXX.XXX.IS.N.M"]
[{"$f":"\"INN.\"&EIGNIR!$B$3&C529","v":{"$error":"#N/A"}},{"$f":"EIGNIR!C557","v":0},".M.EUKULVU.XX.NPH.$$$.XXXX.SV.XXX.XXX.IS.N.M"]
[{"$f":"\"INN.\"&EIGNIR!$B$3&C530","v":{"$error":"#N/A"}},{"$f":"EIGNIR!C558","v":0},".M.EUKULVU.XX.ERL.XXX.XXXX.SV.XXX.XXX.IS.N.M"]
[{"$f":"\"INN.\"&EIGNIR!$B$3&C531","v":{"$error":"#N/A"}},{"$f":"EIGNIR!C559","v":0},".M.EUKULOU.XX.$$$.XXX.XXXX.SX.XXX.XXX.IS.N.M","//Önnur útlán"]
[{"$f":"\"INN.\"&EIGNIR!$B$3&C532","v":{"$error":"#N/A"}},{"$f":"EIGNIR!C560","v":0},".M.EUKULOU.XX.ATV.$$$.XXXX.SX.XXX.XXX.IS.N.M"]
[{"$f":"\"INN.\"&EIGNIR!$B$3&C533","v":{"$error":"#N/A"}},{"$f":"EIGNIR!C561","v":0},".M.EUKULOU.XX.LAB.XXX.XXXX.SX.XXX.XXX.IS.N.M"]
[{"$f":"\"INN.\"&EIGNIR!$B$3&C534","v":{"$error":"#N/A"}},{"$f":"EIGNIR!C562","v":0},".M.EUKULOU.XX.SJA.XXX.XXXX.SX.XXX.XXX.IS.N.M"]
[{"$f":"\"INN.\"&EIGNIR!$B$3&C535","v":{"$error":"#N/A"}},{"$f":"EIGNIR!C563","v":0},".M.EUKULOU.XX.ILA.XXX.XXXX.SX.XXX.XXX.IS.N.M"]
[{"$f":"\"INN.\"&EIGNIR!$B$3&C536","v":{"$error":"#N/A"}},{"$f":"EIGNIR!C564","v":0},".M.EUKULOU.XX.ISJ.XXX.XXXX.SX.XXX.XXX.IS.N.M"]
[{"$f":"\"INN.\"&EIGNIR!$B$3&C537","v":{"$error":"#N/A"}},{"$f":"EIGNIR!C565","v":0},".M.EUKULOU.XX.IAN.XXX.XXXX.SX.XXX.XXX.IS.N.M"]
[{"$f":"\"INN.\"&EIGNIR!$B$3&C538","v":{"$error":"#N/A"}},{"$f":"EIGNIR!C566","v":0},".M.EUKULOU.XX.RAF.XXX.XXXX.SX.XXX.XXX.IS.N.M"]
[{"$f":"\"INN.\"&EIGNIR!$B$3&C539","v":{"$error":"#N/A"}},{"$f":"EIGNIR!C567","v":0},".M.EUKULOU.XX.MAN.XXX.XXXX.SX.XXX.XXX.IS.N.M"]
[{"$f":"\"INN.\"&EIGNIR!$B$3&C540","v":{"$error":"#N/A"}},{"$f":"EIGNIR!C568","v":0},".M.EUKULOU.XX.VEN.XXX.XXXX.SX.XXX.XXX.IS.N.M"]
[{"$f":"\"INN.\"&EIGNIR!$B$3&C541","v":{"$error":"#N/A"}},{"$f":"EIGNIR!C569","v":0},".M.EUKULOU.XX.SAG.XXX.XXXX.SX.XXX.XXX.IS.N.M"]
[{"$f":"\"INN.\"&EIGNIR!$B$3&C542","v":{"$error":"#N/A"}},{"$f":"EIGNIR!C570","v":0},".M.EUKULOU.XX.THF.XXX.XXXX.SX.XXX.XXX.IS.N.M"]
[{"$f":"\"INN.\"&EIGNIR!$B$3&C543","v":{"$error":"#N/A"}},{"$f":"EIGNIR!C571","v":0},".M.EUKULOU.XX.THH.XXX.XXXX.SX.XXX.XXX.IS.N.M"]
[{"$f":"\"INN.\"&EIGNIR!$B$3&C544","v":{"$error":"#N/A"}},{"$f":"EIGNIR!C572","v":0},".M.EUKULOU.XX.THA.XXX.XXXX.SX.XXX.XXX.IS.N.M"]
[{"$f":"\"INN.\"&EIGNIR!$B$3&C545","v":{"$error":"#N/A"}},{"$f":"EIGNIR!C573","v":0},".M.EUKULOU.XX.OFL.XXX.XXXX.SX.XXX.XXX.IS.N.M"]
[{"$f":"\"INN.\"&EIGNIR!$B$3&C546","v":{"$error":"#N/A"}},{"$f":"EIGNIR!C574","v":0},".M.EUKULOU.XX.FJA.$$$.XXXX.SX.XXX.XXX.IS.N.M"]
[{"$f":"\"INN.\"&EIGNIR!$B$3&C547","v":{"$error":"#N/A"}},{"$f":"EIGNIR!C575","v":0},".M.EUKULOU.XX.INN.$$$.XXXX.SX.XXX.XXX.IS.N.M"]
[{"$f":"\"INN.\"&EIGNIR!$B$3&C548","v":{"$error":"#N/A"}},{"$f":"EIGNIR!C576","v":0},".M.EUKULOU.XX.SLI.$$$.XXXX.SX.XXX.XXX.IS.N.M"]
[{"$f":"\"INN.\"&EIGNIR!$B$3&C549","v":{"$error":"#N/A"}},{"$f":"EIGNIR!C577","v":0},".M.EUKULOU.XX.PEN.$$$.XXXX.SX.XXX.XXX.IS.N.M"]
[{"$f":"\"INN.\"&EIGNIR!$B$3&C550","v":{"$error":"#N/A"}},{"$f":"EIGNIR!C578","v":0},".M.EUKULOU.XX.SJO.$$$.XXXX.SX.XXX.XXX.IS.N.M"]
[{"$f":"\"INN.\"&EIGNIR!$B$3&C551","v":{"$error":"#N/A"}},{"$f":"EIGNIR!C579","v":0},".M.EUKULOU.XX.YFT.$$$.XXXX.SX.XXX.XXX.IS.N.M"]
[{"$f":"\"INN.\"&EIGNIR!$B$3&C552","v":{"$error":"#N/A"}},{"$f":"EIGNIR!C580","v":0},".M.EUKULOU.XX.SLY.$$$.XXXX.SX.XXX.XXX.IS.N.M"]
[{"$f":"\"INN.\"&EIGNIR!$B$3&C553","v":{"$error":"#N/A"}},{"$f":"EIGNIR!C581","v":0},".M.EUKULOU.XX.FHL.$$$.XXXX.SX.XXX.XXX.IS.N.M"]
[{"$f":"\"INN.\"&EIGNIR!$B$3&C554","v":{"$error":"#N/A"}},{"$f":"EIGNIR!C582","v":0},".M.EUKULOU.XX.INF.$$$.XXXX.SX.XXX.XXX.IS.N.M"]
[{"$f":"\"INN.\"&EIGNIR!$B$3&C555","v":{"$error":"#N/A"}},{"$f":"EIGNIR!C583","v":0},".M.EUKULOU.XX.TRY.$$$.XXXX.SX.XXX.XXX.IS.N.M"]
[{"$f":"\"INN.\"&EIGNIR!$B$3&C556","v":{"$error":"#N/A"}},{"$f":"EIGNIR!C584","v":0},".M.EUKULOU.XX.LIF.$$$.XXXX.SX.XXX.XXX.IS.N.M"]
[{"$f":"\"INN.\"&EIGNIR!$B$3&C557","v":{"$error":"#N/A"}},{"$f":"EIGNIR!C585","v":0},".M.EUKULOU.XX.OPI.$$$.XXXX.SX.XXX.XXX.IS.N.M"]
[{"$f":"\"INN.\"&EIGNIR!$B$3&C558","v":{"$error":"#N/A"}},{"$f":"EIGNIR!C586","v":0},".M.EUKULOU.XX.RSS.$$$.XXXX.SX.XXX.XXX.IS.N.M"]
[{"$f":"\"INN.\"&EIGNIR!$B$3&C559","v":{"$error":"#N/A"}},{"$f":"EIGNIR!C587","v":0},".M.EUKULOU.XX.BAJ.$$$.XXXX.SX.XXX.XXX.IS.N.M"]
[{"$f":"\"INN.\"&EIGNIR!$B$3&C560","v":{"$error":"#N/A"}},{"$f":"EIGNIR!C588","v":0},".M.EUKULOU.XX.EIN.$$$.XXXX.SX.XXX.XXX.IS.N.M"]
[{"$f":"\"INN.\"&EIGNIR!$B$3&C561","v":{"$error":"#N/A"}},{"$f":"EIGNIR!C589","v":0},".M.EUKULOU.XX.NPH.$$$.XXXX.SX.XXX.XXX.IS.N.M"]
[{"$f":"\"INN.\"&EIGNIR!$B$3&C562","v":{"$error":"#N/A"}},{"$f":"EIGNIR!C590","v":0},".M.EUKULOU.XX.ERL.XXX.XXXX.SX.XXX.XXX.IS.N.M"]
[{"$f":"\"INN.\"&EIGNIR!$B$3&C563","v":{"$error":"#N/A"}},{"$f":"EIGNIR!C591","v":0},".M.EUKULEL.XX.$$$.XXX.XXXX.SX.XXX.XXX.IS.N.M","//Eignarleigusamningar"]
[{"$f":"\"INN.\"&EIGNIR!$B$3&C564","v":{"$error":"#N/A"}},{"$f":"EIGNIR!C592","v":0},".M.EUKULEL.XX.ATV.$$$.XXXX.SX.XXX.XXX.IS.N.M"]
[{"$f":"\"INN.\"&EIGNIR!$B$3&C565","v":{"$error":"#N/A"}},{"$f":"EIGNIR!C593","v":0},".M.EUKULEL.XX.LAB.XXX.XXXX.SX.XXX.XXX.IS.N.M"]
[{"$f":"\"INN.\"&EIGNIR!$B$3&C566","v":{"$error":"#N/A"}},{"$f":"EIGNIR!C594","v":0},".M.EUKULEL.XX.SJA.XXX.XXXX.SX.XXX.XXX.IS.N.M"]
[{"$f":"\"INN.\"&EIGNIR!$B$3&C567","v":{"$error":"#N/A"}},{"$f":"EIGNIR!C595","v":0},".M.EUKULEL.XX.ILA.XXX.XXXX.SX.XXX.XXX.IS.N.M"]
[{"$f":"\"INN.\"&EIGNIR!$B$3&C568","v":{"$error":"#N/A"}},{"$f":"EIGNIR!C596","v":0},".M.EUKULEL.XX.ISJ.XXX.XXXX.SX.XXX.XXX.IS.N.M"]
[{"$f":"\"INN.\"&EIGNIR!$B$3&C569","v":{"$error":"#N/A"}},{"$f":"EIGNIR!C597","v":0},".M.EUKULEL.XX.IAN.XXX.XXXX.SX.XXX.XXX.IS.N.M"]
[{"$f":"\"INN.\"&EIGNIR!$B$3&C570","v":{"$error":"#N/A"}},{"$f":"EIGNIR!C598","v":0},".M.EUKULEL.XX.RAF.XXX.XXXX.SX.XXX.XXX.IS.N.M"]
[{"$f":"\"INN.\"&EIGNIR!$B$3&C571","v":{"$error":"#N/A"}},{"$f":"EIGNIR!C599","v":0},".M.EUKULEL.XX.MAN.XXX.XXXX.SX.XXX.XXX.IS.N.M"]
[{"$f":"\"INN.\"&EIGNIR!$B$3&C572","v":{"$error":"#N/A"}},{"$f":"EIGNIR!C600","v":0},".M.EUKULEL.XX.VEN.XXX.XXXX.SX.XXX.XXX.IS.N.M"]
[{"$f":"\"INN.\"&EIGNIR!$B$3&C573","v":{"$error":"#N/A"}},{"$f":"EIGNIR!C601","v":0},".M.EUKULEL.XX.SAG.XXX.XXXX.SX.XXX.XXX.IS.N.M"]
[{"$f":"\"INN.\"&EIGNIR!$B$3&C574","v":{"$error":"#N/A"}},{"$f":"EIGNIR!C602","v":0},".M.EUKULEL.XX.THF.XXX.XXXX.SX.XXX.XXX.IS.N.M"]
[{"$f":"\"INN.\"&EIGNIR!$B$3&C575","v":{"$error":"#N/A"}},{"$f":"EIGNIR!C603","v":0},".M.EUKULEL.XX.THH.XXX.XXXX.SX.XXX.XXX.IS.N.M"]
[{"$f":"\"INN.\"&EIGNIR!$B$3&C576","v":{"$error":"#N/A"}},{"$f":"EIGNIR!C604","v":0},".M.EUKULEL.XX.THA.XXX.XXXX.SX.XXX.XXX.IS.N.M"]
[{"$f":"\"INN.\"&EIGNIR!$B$3&C577","v":{"$error":"#N/A"}},{"$f":"EIGNIR!C605","v":0},".M.EUKULEL.XX.OFL.XXX.XXXX.SX.XXX.XXX.IS.N.M"]
[{"$f":"\"INN.\"&EIGNIR!$B$3&C578","v":{"$error":"#N/A"}},{"$f":"EIGNIR!C606","v":0},".M.EUKULEL.XX.FJA.$$$.XXXX.SX.XXX.XXX.IS.N.M"]
[{"$f":"\"INN.\"&EIGNIR!$B$3&C579","v":{"$error":"#N/A"}},{"$f":"EIGNIR!C607","v":0},".M.EUKULEL.XX.INN.$$$.XXXX.SX.XXX.XXX.IS.N.M"]
[{"$f":"\"INN.\"&EIGNIR!$B$3&C580","v":{"$error":"#N/A"}},{"$f":"EIGNIR!C608","v":0},".M.EUKULEL.XX.SLI.$$$.XXXX.SX.XXX.XXX.IS.N.M"]
[{"$f":"\"INN.\"&EIGNIR!$B$3&C581","v":{"$error":"#N/A"}},{"$f":"EIGNIR!C609","v":0},".M.EUKULEL.XX.PEN.$$$.XXXX.SX.XXX.XXX.IS.N.M"]
[{"$f":"\"INN.\"&EIGNIR!$B$3&C582","v":{"$error":"#N/A"}},{"$f":"EIGNIR!C610","v":0},".M.EUKULEL.XX.SJO.$$$.XXXX.SX.XXX.XXX.IS.N.M"]
[{"$f":"\"INN.\"&EIGNIR!$B$3&C583","v":{"$error":"#N/A"}},{"$f":"EIGNIR!C611","v":0},".M.EUKULEL.XX.YFT.$$$.XXXX.SX.XXX.XXX.IS.N.M"]
[{"$f":"\"INN.\"&EIGNIR!$B$3&C584","v":{"$error":"#N/A"}},{"$f":"EIGNIR!C612","v":0},".M.EUKULEL.XX.SLY.$$$.XXXX.SX.XXX.XXX.IS.N.M"]
[{"$f":"\"INN.\"&EIGNIR!$B$3&C585","v":{"$error":"#N/A"}},{"$f":"EIGNIR!C613","v":0},".M.EUKULEL.XX.FHL.$$$.XXXX.SX.XXX.XXX.IS.N.M"]
[{"$f":"\"INN.\"&EIGNIR!$B$3&C586","v":{"$error":"#N/A"}},{"$f":"EIGNIR!C614","v":0},".M.EUKULEL.XX.INF.$$$.XXXX.SX.XXX.XXX.IS.N.M"]
[{"$f":"\"INN.\"&EIGNIR!$B$3&C587","v":{"$error":"#N/A"}},{"$f":"EIGNIR!C615","v":0},".M.EUKULEL.XX.TRY.$$$.XXXX.SX.XXX.XXX.IS.N.M"]
[{"$f":"\"INN.\"&EIGNIR!$B$3&C588","v":{"$error":"#N/A"}},{"$f":"EIGNIR!C616","v":0},".M.EUKULEL.XX.LIF.$$$.XXXX.SX.XXX.XXX.IS.N.M"]
[{"$f":"\"INN.\"&EIGNIR!$B$3&C589","v":{"$error":"#N/A"}},{"$f":"EIGNIR!C617","v":0},".M.EUKULEL.XX.OPI.$$$.XXXX.SX.XXX.XXX.IS.N.M"]
[{"$f":"\"INN.\"&EIGNIR!$B$3&C590","v":{"$error":"#N/A"}},{"$f":"EIGNIR!C618","v":0},".M.EUKULEL.XX.RSS.$$$.XXXX.SX.XXX.XXX.IS.N.M"]
[{"$f":"\"INN.\"&EIGNIR!$B$3&C591","v":{"$error":"#N/A"}},{"$f":"EIGNIR!C619","v":0},".M.EUKULEL.XX.BAJ.$$$.XXXX.SX.XXX.XXX.IS.N.M"]
[{"$f":"\"INN.\"&EIGNIR!$B$3&C592","v":{"$error":"#N/A"}},{"$f":"EIGNIR!C620","v":0},".M.EUKULEL.XX.EIN.$$$.XXXX.SX.XXX.XXX.IS.N.M"]
[{"$f":"\"INN.\"&EIGNIR!$B$3&C593","v":{"$error":"#N/A"}},{"$f":"EIGNIR!C621","v":0},".M.EUKULEL.XX.NPH.$$$.XXXX.SX.XXX.XXX.IS.N.M"]
[{"$f":"\"INN.\"&EIGNIR!$B$3&C594","v":{"$error":"#N/A"}},{"$f":"EIGNIR!C622","v":0},".M.EUKULEL.XX.ERL.XXX.XXXX.SX.XXX.XXX.IS.N.M"]
[{"$f":"\"INN.\"&EIGNIR!$B$3&C595","v":{"$error":"#N/A"}},{"$f":"EIGNIR!C623","v":0},".M.EUKNF$$.XX.XXX.$$$.XXXX.SX.XXX.XXX.IS.N.M","//Niðurfærslur útlána"]
[{"$f":"\"INN.\"&EIGNIR!$B$3&C596","v":{"$error":"#N/A"}},{"$f":"EIGNIR!C624","v":0},".M.EUKNFAL.XX.XXX.$$$.XXXX.SX.XXX.XXX.IS.N.M"]
[{"$f":"\"INN.\"&EIGNIR!$B$3&C597","v":{"$error":"#N/A"}},{"$f":"EIGNIR!C625","v":0},".M.EUKNFST.XX.$$$.$$$.XXXX.SX.XXX.XXX.IS.N.M"]
[{"$f":"\"INN.\"&EIGNIR!$B$3&C598","v":{"$error":"#N/A"}},{"$f":"EIGNIR!C626","v":0},".M.EUKNFER.XX.ERL.$$$.XXXX.SX.XXX.XXX.IS.N.M"]
[{"$f":"\"INN.\"&EIGNIR!$B$3&C599","v":{"$error":"#N/A"}},{"$f":"EIGNIR!C627","v":0},".M.EFG$$$$.XX.XXX.XXX.XXXX.SX.XXX.XXX.IS.N.M","//Fjárfestingar til gjalddaga"]
[{"$f":"\"INN.\"&EIGNIR!$B$3&C600","v":{"$error":"#N/A"}},{"$f":"EIGNIR!C628","v":0},".M.EFGSV$$.XX.$$$.XXX.XXXX.SX.XXX.XXX.IS.N.M","//Skuldabréf og víxlar"]
[{"$f":"\"INN.\"&EIGNIR!$B$3&C601","v":{"$error":"#N/A"}},{"$f":"EIGNIR!C629","v":0},".M.EFGSVVM.XX.$$$.XXX.XXXX.SV.XXX.XXX.IS.N.M","//Verðtryggð markaðsskuldabréf"]
[{"$f":"\"INN.\"&EIGNIR!$B$3&C602","v":{"$error":"#N/A"}},{"$f":"EIGNIR!C630","v":0},".M.EFGSVVM.XX.ATV.XXX.XXXX.SV.XXX.XXX.IS.N.M"]
[{"$f":"\"INN.\"&EIGNIR!$B$3&C603","v":{"$error":"#N/A"}},{"$f":"EIGNIR!C631","v":0},".M.EFGSVVM.XX.LAB.XXX.XXXX.SV.XXX.XXX.IS.N.M"]
[{"$f":"\"INN.\"&EIGNIR!$B$3&C604","v":{"$error":"#N/A"}},{"$f":"EIGNIR!C632","v":0},".M.EFGSVVM.XX.SJA.XXX.XXXX.SV.XXX.XXX.IS.N.M"]
[{"$f":"\"INN.\"&EIGNIR!$B$3&C605","v":{"$error":"#N/A"}},{"$f":"EIGNIR!C633","v":0},".M.EFGSVVM.XX.ILA.XXX.XXXX.SV.XXX.XXX.IS.N.M"]
[{"$f":"\"INN.\"&EIGNIR!$B$3&C606","v":{"$error":"#N/A"}},{"$f":"EIGNIR!C634","v":0},".M.EFGSVVM.XX.ISJ.XXX.XXXX.SV.XXX.XXX.IS.N.M"]
[{"$f":"\"INN.\"&EIGNIR!$B$3&C607","v":{"$error":"#N/A"}},{"$f":"EIGNIR!C635","v":0},".M.EFGSVVM.XX.IAN.XXX.XXXX.SV.XXX.XXX.IS.N.M"]
[{"$f":"\"INN.\"&EIGNIR!$B$3&C608","v":{"$error":"#N/A"}},{"$f":"EIGNIR!C636","v":0},".M.EFGSVVM.XX.RAF.XXX.XXXX.SV.XXX.XXX.IS.N.M"]
[{"$f":"\"INN.\"&EIGNIR!$B$3&C609","v":{"$error":"#N/A"}},{"$f":"EIGNIR!C637","v":0},".M.EFGSVVM.XX.MAN.XXX.XXXX.SV.XXX.XXX.IS.N.M"]
[{"$f":"\"INN.\"&EIGNIR!$B$3&C610","v":{"$error":"#N/A"}},{"$f":"EIGNIR!C638","v":0},".M.EFGSVVM.XX.VEN.XXX.XXXX.SV.XXX.XXX.IS.N.M"]
[{"$f":"\"INN.\"&EIGNIR!$B$3&C611","v":{"$error":"#N/A"}},{"$f":"EIGNIR!C639","v":0},".M.EFGSVVM.XX.SAG.XXX.XXXX.SV.XXX.XXX.IS.N.M"]
[{"$f":"\"INN.\"&EIGNIR!$B$3&C612","v":{"$error":"#N/A"}},{"$f":"EIGNIR!C640","v":0},".M.EFGSVVM.XX.THF.XXX.XXXX.SV.XXX.XXX.IS.N.M"]
[{"$f":"\"INN.\"&EIGNIR!$B$3&C613","v":{"$error":"#N/A"}},{"$f":"EIGNIR!C641","v":0},".M.EFGSVVM.XX.THH.XXX.XXXX.SV.XXX.XXX.IS.N.M"]
[{"$f":"\"INN.\"&EIGNIR!$B$3&C614","v":{"$error":"#N/A"}},{"$f":"EIGNIR!C642","v":0},".M.EFGSVVM.XX.THA.XXX.XXXX.SV.XXX.XXX.IS.N.M"]
[{"$f":"\"INN.\"&EIGNIR!$B$3&C615","v":{"$error":"#N/A"}},{"$f":"EIGNIR!C643","v":0},".M.EFGSVVM.XX.OFL.XXX.XXXX.SV.XXX.XXX.IS.N.M"]
[{"$f":"\"INN.\"&EIGNIR!$B$3&C616","v":{"$error":"#N/A"}},{"$f":"EIGNIR!C644","v":0},".M.EFGSVVM.XX.FJA.XXX.XXXX.SV.XXX.XXX.IS.N.M"]
[{"$f":"\"INN.\"&EIGNIR!$B$3&C617","v":{"$error":"#N/A"}},{"$f":"EIGNIR!C645","v":0},".M.EFGSVVM.XX.INN.XXX.XXXX.SV.XXX.XXX.IS.N.M"]
[{"$f":"\"INN.\"&EIGNIR!$B$3&C618","v":{"$error":"#N/A"}},{"$f":"EIGNIR!C646","v":0},".M.EFGSVVM.XX.SLI.XXX.XXXX.SV.XXX.XXX.IS.N.M"]
[{"$f":"\"INN.\"&EIGNIR!$B$3&C619","v":{"$error":"#N/A"}},{"$f":"EIGNIR!C647","v":0},".M.EFGSVVM.XX.PEN.XXX.XXXX.SV.XXX.XXX.IS.N.M"]
[{"$f":"\"INN.\"&EIGNIR!$B$3&C620","v":{"$error":"#N/A"}},{"$f":"EIGNIR!C648","v":0},".M.EFGSVVM.XX.SJO.XXX.XXXX.SV.XXX.XXX.IS.N.M"]
[{"$f":"\"INN.\"&EIGNIR!$B$3&C621","v":{"$error":"#N/A"}},{"$f":"EIGNIR!C649","v":0},".M.EFGSVVM.XX.YFT.XXX.XXXX.SV.XXX.XXX.IS.N.M"]
[{"$f":"\"INN.\"&EIGNIR!$B$3&C622","v":{"$error":"#N/A"}},{"$f":"EIGNIR!C650","v":0},".M.EFGSVVM.XX.SLY.XXX.XXXX.SV.XXX.XXX.IS.N.M"]
[{"$f":"\"INN.\"&EIGNIR!$B$3&C623","v":{"$error":"#N/A"}},{"$f":"EIGNIR!C651","v":0},".M.EFGSVVM.XX.FHL.XXX.XXXX.SV.XXX.XXX.IS.N.M"]
[{"$f":"\"INN.\"&EIGNIR!$B$3&C624","v":{"$error":"#N/A"}},{"$f":"EIGNIR!C652","v":0},".M.EFGSVVM.XX.INF.XXX.XXXX.SV.XXX.XXX.IS.N.M"]
[{"$f":"\"INN.\"&EIGNIR!$B$3&C625","v":{"$error":"#N/A"}},{"$f":"EIGNIR!C653","v":0},".M.EFGSVVM.XX.TRY.XXX.XXXX.SV.XXX.XXX.IS.N.M"]
[{"$f":"\"INN.\"&EIGNIR!$B$3&C626","v":{"$error":"#N/A"}},{"$f":"EIGNIR!C654","v":0},".M.EFGSVVM.XX.LIF.XXX.XXXX.SV.XXX.XXX.IS.N.M"]
[{"$f":"\"INN.\"&EIGNIR!$B$3&C627","v":{"$error":"#N/A"}},{"$f":"EIGNIR!C655","v":0},".M.EFGSVVM.XX.OPI.XXX.XXXX.SV.XXX.XXX.IS.N.M"]
[{"$f":"\"INN.\"&EIGNIR!$B$3&C628","v":{"$error":"#N/A"}},{"$f":"EIGNIR!C656","v":0},".M.EFGSVVM.XX.RSS.XXX.XXXX.SV.XXX.XXX.IS.N.M"]
[{"$f":"\"INN.\"&EIGNIR!$B$3&C629","v":{"$error":"#N/A"}},{"$f":"EIGNIR!C657","v":0},".M.EFGSVVM.XX.BAJ.XXX.XXXX.SV.XXX.XXX.IS.N.M"]
[{"$f":"\"INN.\"&EIGNIR!$B$3&C630","v":{"$error":"#N/A"}},{"$f":"EIGNIR!C659","v":0},".M.EFGSVVM.XX.NPH.XXX.XXXX.SV.XXX.XXX.IS.N.M"]
[{"$f":"\"INN.\"&EIGNIR!$B$3&C631","v":{"$error":"#N/A"}},{"$f":"EIGNIR!C660","v":0},".M.EFGSVVM.XX.ERL.XXX.XXXX.SV.XXX.XXX.IS.N.M"]
[{"$f":"\"INN.\"&EIGNIR!$B$3&C632","v":{"$error":"#N/A"}},{"$f":"EIGNIR!C661","v":0},".M.EFGSVOM.XX.$$$.XXX.XXXX.SO.LAT.XXX.IS.N.M","//Önnur markaðsskuldabréf og víxlar > 1 ár"]
[{"$f":"\"INN.\"&EIGNIR!$B$3&C633","v":{"$error":"#N/A"}},{"$f":"EIGNIR!C662","v":0},".M.EFGSVOM.XX.ATV.XXX.XXXX.SO.LAT.XXX.IS.N.M"]
[{"$f":"\"INN.\"&EIGNIR!$B$3&C634","v":{"$error":"#N/A"}},{"$f":"EIGNIR!C663","v":0},".M.EFGSVOM.XX.LAB.XXX.XXXX.SO.LAT.XXX.IS.N.M"]
[{"$f":"\"INN.\"&EIGNIR!$B$3&C635","v":{"$error":"#N/A"}},{"$f":"EIGNIR!C664","v":0},".M.EFGSVOM.XX.SJA.XXX.XXXX.SO.LAT.XXX.IS.N.M"]
[{"$f":"\"INN.\"&EIGNIR!$B$3&C636","v":{"$error":"#N/A"}},{"$f":"EIGNIR!C665","v":0},".M.EFGSVOM.XX.ILA.XXX.XXXX.SO.LAT.XXX.IS.N.M"]
[{"$f":"\"INN.\"&EIGNIR!$B$3&C637","v":{"$error":"#N/A"}},{"$f":"EIGNIR!C666","v":0},".M.EFGSVOM.XX.ISJ.XXX.XXXX.SO.LAT.XXX.IS.N.M"]
[{"$f":"\"INN.\"&EIGNIR!$B$3&C638","v":{"$error":"#N/A"}},{"$f":"EIGNIR!C667","v":0},".M.EFGSVOM.XX.IAN.XXX.XXXX.SO.LAT.XXX.IS.N.M"]
[{"$f":"\"INN.\"&EIGNIR!$B$3&C639","v":{"$error":"#N/A"}},{"$f":"EIGNIR!C668","v":0},".M.EFGSVOM.XX.RAF.XXX.XXXX.SO.LAT.XXX.IS.N.M"]
[{"$f":"\"INN.\"&EIGNIR!$B$3&C640","v":{"$error":"#N/A"}},{"$f":"EIGNIR!C669","v":0},".M.EFGSVOM.XX.MAN.XXX.XXXX.SO.LAT.XXX.IS.N.M"]
[{"$f":"\"INN.\"&EIGNIR!$B$3&C641","v":{"$error":"#N/A"}},{"$f":"EIGNIR!C670","v":0},".M.EFGSVOM.XX.VEN.XXX.XXXX.SO.LAT.XXX.IS.N.M"]
[{"$f":"\"INN.\"&EIGNIR!$B$3&C642","v":{"$error":"#N/A"}},{"$f":"EIGNIR!C671","v":0},".M.EFGSVOM.XX.SAG.XXX.XXXX.SO.LAT.XXX.IS.N.M"]
[{"$f":"\"INN.\"&EIGNIR!$B$3&C643","v":{"$error":"#N/A"}},{"$f":"EIGNIR!C672","v":0},".M.EFGSVOM.XX.THF.XXX.XXXX.SO.LAT.XXX.IS.N.M"]
[{"$f":"\"INN.\"&EIGNIR!$B$3&C644","v":{"$error":"#N/A"}},{"$f":"EIGNIR!C673","v":0},".M.EFGSVOM.XX.THH.XXX.XXXX.SO.LAT.XXX.IS.N.M"]
[{"$f":"\"INN.\"&EIGNIR!$B$3&C645","v":{"$error":"#N/A"}},{"$f":"EIGNIR!C674","v":0},".M.EFGSVOM.XX.THA.XXX.XXXX.SO.LAT.XXX.IS.N.M"]
[{"$f":"\"INN.\"&EIGNIR!$B$3&C646","v":{"$error":"#N/A"}},{"$f":"EIGNIR!C675","v":0},".M.EFGSVOM.XX.OFL.XXX.XXXX.SO.LAT.XXX.IS.N.M"]
[{"$f":"\"INN.\"&EIGNIR!$B$3&C647","v":{"$error":"#N/A"}},{"$f":"EIGNIR!C676","v":0},".M.EFGSVOM.XX.FJA.XXX.XXXX.SO.LAT.XXX.IS.N.M"]
[{"$f":"\"INN.\"&EIGNIR!$B$3&C648","v":{"$error":"#N/A"}},{"$f":"EIGNIR!C677","v":0},".M.EFGSVOM.XX.INN.XXX.XXXX.SO.LAT.XXX.IS.N.M"]
[{"$f":"\"INN.\"&EIGNIR!$B$3&C649","v":{"$error":"#N/A"}},{"$f":"EIGNIR!C678","v":0},".M.EFGSVOM.XX.SLI.XXX.XXXX.SO.LAT.XXX.IS.N.M"]
[{"$f":"\"INN.\"&EIGNIR!$B$3&C650","v":{"$error":"#N/A"}},{"$f":"EIGNIR!C679","v":0},".M.EFGSVOM.XX.PEN.XXX.XXXX.SO.LAT.XXX.IS.N.M"]
[{"$f":"\"INN.\"&EIGNIR!$B$3&C651","v":{"$error":"#N/A"}},{"$f":"EIGNIR!C680","v":0},".M.EFGSVOM.XX.SJO.XXX.XXXX.SO.LAT.XXX.IS.N.M"]
[{"$f":"\"INN.\"&EIGNIR!$B$3&C652","v":{"$error":"#N/A"}},{"$f":"EIGNIR!C681","v":0},".M.EFGSVOM.XX.YFT.XXX.XXXX.SO.LAT.XXX.IS.N.M"]
[{"$f":"\"INN.\"&EIGNIR!$B$3&C653","v":{"$error":"#N/A"}},{"$f":"EIGNIR!C682","v":0},".M.EFGSVOM.XX.SLY.XXX.XXXX.SO.LAT.XXX.IS.N.M"]
[{"$f":"\"INN.\"&EIGNIR!$B$3&C654","v":{"$error":"#N/A"}},{"$f":"EIGNIR!C683","v":0},".M.EFGSVOM.XX.FHL.XXX.XXXX.SO.LAT.XXX.IS.N.M"]
[{"$f":"\"INN.\"&EIGNIR!$B$3&C655","v":{"$error":"#N/A"}},{"$f":"EIGNIR!C684","v":0},".M.EFGSVOM.XX.INF.XXX.XXXX.SO.LAT.XXX.IS.N.M"]
[{"$f":"\"INN.\"&EIGNIR!$B$3&C656","v":{"$error":"#N/A"}},{"$f":"EIGNIR!C685","v":0},".M.EFGSVOM.XX.TRY.XXX.XXXX.SO.LAT.XXX.IS.N.M"]
[{"$f":"\"INN.\"&EIGNIR!$B$3&C657","v":{"$error":"#N/A"}},{"$f":"EIGNIR!C686","v":0},".M.EFGSVOM.XX.LIF.XXX.XXXX.SO.LAT.XXX.IS.N.M"]
[{"$f":"\"INN.\"&EIGNIR!$B$3&C658","v":{"$error":"#N/A"}},{"$f":"EIGNIR!C687","v":0},".M.EFGSVOM.XX.OPI.XXX.XXXX.SO.LAT.XXX.IS.N.M"]
[{"$f":"\"INN.\"&EIGNIR!$B$3&C659","v":{"$error":"#N/A"}},{"$f":"EIGNIR!C688","v":0},".M.EFGSVOM.XX.RSS.XXX.XXXX.SO.LAT.XXX.IS.N.M"]
[{"$f":"\"INN.\"&EIGNIR!$B$3&C660","v":{"$error":"#N/A"}},{"$f":"EIGNIR!C689","v":0},".M.EFGSVOM.XX.BAJ.XXX.XXXX.SO.LAT.XXX.IS.N.M"]
[{"$f":"\"INN.\"&EIGNIR!$B$3&C661","v":{"$error":"#N/A"}},{"$f":"EIGNIR!C691","v":0},".M.EFGSVOM.XX.NPH.XXX.XXXX.SO.LAT.XXX.IS.N.M"]
[{"$f":"\"INN.\"&EIGNIR!$B$3&C662","v":{"$error":"#N/A"}},{"$f":"EIGNIR!C692","v":0},".M.EFGSVOM.XX.ERL.XXX.XXXX.SO.LAT.XXX.IS.N.M"]
[{"$f":"\"INN.\"&EIGNIR!$B$3&C663","v":{"$error":"#N/A"}},{"$f":"EIGNIR!C693","v":0},".M.EFGSVOM.XX.$$$.XXX.XXXX.SO.SKT.XXX.IS.N.M","//Önnur markaðsskuldabréf og víxlar ≤ 1 ár"]
[{"$f":"\"INN.\"&EIGNIR!$B$3&C664","v":{"$error":"#N/A"}},{"$f":"EIGNIR!C694","v":0},".M.EFGSVOM.XX.ATV.XXX.XXXX.SO.SKT.XXX.IS.N.M"]
[{"$f":"\"INN.\"&EIGNIR!$B$3&C665","v":{"$error":"#N/A"}},{"$f":"EIGNIR!C695","v":0},".M.EFGSVOM.XX.LAB.XXX.XXXX.SO.SKT.XXX.IS.N.M"]
[{"$f":"\"INN.\"&EIGNIR!$B$3&C666","v":{"$error":"#N/A"}},{"$f":"EIGNIR!C696","v":0},".M.EFGSVOM.XX.SJA.XXX.XXXX.SO.SKT.XXX.IS.N.M"]
[{"$f":"\"INN.\"&EIGNIR!$B$3&C667","v":{"$error":"#N/A"}},{"$f":"EIGNIR!C697","v":0},".M.EFGSVOM.XX.ILA.XXX.XXXX.SO.SKT.XXX.IS.N.M"]
[{"$f":"\"INN.\"&EIGNIR!$B$3&C668","v":{"$error":"#N/A"}},{"$f":"EIGNIR!C698","v":0},".M.EFGSVOM.XX.ISJ.XXX.XXXX.SO.SKT.XXX.IS.N.M"]
[{"$f":"\"INN.\"&EIGNIR!$B$3&C669","v":{"$error":"#N/A"}},{"$f":"EIGNIR!C699","v":0},".M.EFGSVOM.XX.IAN.XXX.XXXX.SO.SKT.XXX.IS.N.M"]
[{"$f":"\"INN.\"&EIGNIR!$B$3&C670","v":{"$error":"#N/A"}},{"$f":"EIGNIR!C700","v":0},".M.EFGSVOM.XX.RAF.XXX.XXXX.SO.SKT.XXX.IS.N.M"]
[{"$f":"\"INN.\"&EIGNIR!$B$3&C671","v":{"$error":"#N/A"}},{"$f":"EIGNIR!C701","v":0},".M.EFGSVOM.XX.MAN.XXX.XXXX.SO.SKT.XXX.IS.N.M"]
[{"$f":"\"INN.\"&EIGNIR!$B$3&C672","v":{"$error":"#N/A"}},{"$f":"EIGNIR!C702","v":0},".M.EFGSVOM.XX.VEN.XXX.XXXX.SO.SKT.XXX.IS.N.M"]
[{"$f":"\"INN.\"&EIGNIR!$B$3&C673","v":{"$error":"#N/A"}},{"$f":"EIGNIR!C703","v":0},".M.EFGSVOM.XX.SAG.XXX.XXXX.SO.SKT.XXX.IS.N.M"]
[{"$f":"\"INN.\"&EIGNIR!$B$3&C674","v":{"$error":"#N/A"}},{"$f":"EIGNIR!C704","v":0},".M.EFGSVOM.XX.THF.XXX.XXXX.SO.SKT.XXX.IS.N.M"]
[{"$f":"\"INN.\"&EIGNIR!$B$3&C675","v":{"$error":"#N/A"}},{"$f":"EIGNIR!C705","v":0},".M.EFGSVOM.XX.THH.XXX.XXXX.SO.SKT.XXX.IS.N.M"]
[{"$f":"\"INN.\"&EIGNIR!$B$3&C676","v":{"$error":"#N/A"}},{"$f":"EIGNIR!C706","v":0},".M.EFGSVOM.XX.THA.XXX.XXXX.SO.SKT.XXX.IS.N.M"]
[{"$f":"\"INN.\"&EIGNIR!$B$3&C677","v":{"$error":"#N/A"}},{"$f":"EIGNIR!C707","v":0},".M.EFGSVOM.XX.OFL.XXX.XXXX.SO.SKT.XXX.IS.N.M"]
[{"$f":"\"INN.\"&EIGNIR!$B$3&C678","v":{"$error":"#N/A"}},{"$f":"EIGNIR!C708","v":0},".M.EFGSVOM.XX.FJA.XXX.XXXX.SO.SKT.XXX.IS.N.M"]
[{"$f":"\"INN.\"&EIGNIR!$B$3&C679","v":{"$error":"#N/A"}},{"$f":"EIGNIR!C709","v":0},".M.EFGSVOM.XX.INN.XXX.XXXX.SO.SKT.XXX.IS.N.M"]
[{"$f":"\"INN.\"&EIGNIR!$B$3&C680","v":{"$error":"#N/A"}},{"$f":"EIGNIR!C710","v":0},".M.EFGSVOM.XX.SLI.XXX.XXXX.SO.SKT.XXX.IS.N.M"]
[{"$f":"\"INN.\"&EIGNIR!$B$3&C681","v":{"$error":"#N/A"}},{"$f":"EIGNIR!C711","v":0},".M.EFGSVOM.XX.PEN.XXX.XXXX.SO.SKT.XXX.IS.N.M"]
[{"$f":"\"INN.\"&EIGNIR!$B$3&C682","v":{"$error":"#N/A"}},{"$f":"EIGNIR!C712","v":0},".M.EFGSVOM.XX.SJO.XXX.XXXX.SO.SKT.XXX.IS.N.M"]
[{"$f":"\"INN.\"&EIGNIR!$B$3&C683","v":{"$error":"#N/A"}},{"$f":"EIGNIR!C713","v":0},".M.EFGSVOM.XX.YFT.XXX.XXXX.SO.SKT.XXX.IS.N.M"]
[{"$f":"\"INN.\"&EIGNIR!$B$3&C684","v":{"$error":"#N/A"}},{"$f":"EIGNIR!C714","v":0},".M.EFGSVOM.XX.SLY.XXX.XXXX.SO.SKT.XXX.IS.N.M"]
[{"$f":"\"INN.\"&EIGNIR!$B$3&C685","v":{"$error":"#N/A"}},{"$f":"EIGNIR!C715","v":0},".M.EFGSVOM.XX.FHL.XXX.XXXX.SO.SKT.XXX.IS.N.M"]
[{"$f":"\"INN.\"&EIGNIR!$B$3&C686","v":{"$error":"#N/A"}},{"$f":"EIGNIR!C716","v":0},".M.EFGSVOM.XX.INF.XXX.XXXX.SO.SKT.XXX.IS.N.M"]
[{"$f":"\"INN.\"&EIGNIR!$B$3&C687","v":{"$error":"#N/A"}},{"$f":"EIGNIR!C717","v":0},".M.EFGSVOM.XX.TRY.XXX.XXXX.SO.SKT.XXX.IS.N.M"]
[{"$f":"\"INN.\"&EIGNIR!$B$3&C688","v":{"$error":"#N/A"}},{"$f":"EIGNIR!C718","v":0},".M.EFGSVOM.XX.LIF.XXX.XXXX.SO.SKT.XXX.IS.N.M"]
[{"$f":"\"INN.\"&EIGNIR!$B$3&C689","v":{"$error":"#N/A"}},{"$f":"EIGNIR!C719","v":0},".M.EFGSVOM.XX.OPI.XXX.XXXX.SO.SKT.XXX.IS.N.M"]
[{"$f":"\"INN.\"&EIGNIR!$B$3&C690","v":{"$error":"#N/A"}},{"$f":"EIGNIR!C720","v":0},".M.EFGSVOM.XX.RSS.XXX.XXXX.SO.SKT.XXX.IS.N.M"]
[{"$f":"\"INN.\"&EIGNIR!$B$3&C691","v":{"$error":"#N/A"}},{"$f":"EIGNIR!C721","v":0},".M.EFGSVOM.XX.BAJ.XXX.XXXX.SO.SKT.XXX.IS.N.M"]
[{"$f":"\"INN.\"&EIGNIR!$B$3&C692","v":{"$error":"#N/A"}},{"$f":"EIGNIR!C723","v":0},".M.EFGSVOM.XX.NPH.XXX.XXXX.SO.SKT.XXX.IS.N.M"]
[{"$f":"\"INN.\"&EIGNIR!$B$3&C693","v":{"$error":"#N/A"}},{"$f":"EIGNIR!C724","v":0},".M.EFGSVOM.XX.ERL.XXX.XXXX.SO.SKT.XXX.IS.N.M"]
[{"$f":"\"INN.\"&EIGNIR!$B$3&C694","v":{"$error":"#N/A"}},{"$f":"EIGNIR!C725","v":0},".M.EAV$$$$.XX.XXX.XXX.XXXX.SX.XXX.XXX.IS.N.M","//Afleiðusamningar vegna áhættuvarna"]
[{"$f":"\"INN.\"&EIGNIR!$B$3&C695","v":{"$error":"#N/A"}},{"$f":"EIGNIR!C726","v":0},".M.EAVGV$$.XX.XXX.XXX.XXXX.SX.XXX.XXX.IS.N.M"]
[{"$f":"\"INN.\"&EIGNIR!$B$3&C696","v":{"$error":"#N/A"}},{"$f":"EIGNIR!C727","v":0},".M.EAVSV$$.XX.XXX.XXX.XXXX.SX.XXX.XXX.IS.N.M"]
[{"$f":"\"INN.\"&EIGNIR!$B$3&C697","v":{"$error":"#N/A"}},{"$f":"EIGNIR!C728","v":0},".M.EAVGA$$.XX.XXX.XXX.XXXX.SX.XXX.XXX.IS.N.M"]
[{"$f":"\"INN.\"&EIGNIR!$B$3&C698","v":{"$error":"#N/A"}},{"$f":"EIGNIR!C729","v":0},".M.EAVVX$$.XX.XXX.XXX.XXXX.SX.XXX.XXX.IS.N.M"]
[{"$f":"\"INN.\"&EIGNIR!$B$3&C699","v":{"$error":"#N/A"}},{"$f":"EIGNIR!C730","v":0},".M.EAVVV$$.XX.XXX.XXX.XXXX.SX.XXX.XXX.IS.N.M"]
[{"$f":"\"INN.\"&EIGNIR!$B$3&C700","v":{"$error":"#N/A"}},{"$f":"EIGNIR!C731","v":0},".M.EHHDS$$.XX.$$$.XXX.XXXX.SX.XXX.XXX.IS.N.M","//Hlutir í hlutdeildarfélögum, dótturfyrirtækjum og samrekstrarfélögum"]
[{"$f":"\"INN.\"&EIGNIR!$B$3&C701","v":{"$error":"#N/A"}},{"$f":"EIGNIR!C732","v":0},".M.EHHDSHF.XX.$$$.$$$.HLFT.SX.XXX.XXX.IS.N.M"]
[{"$f":"\"INN.\"&EIGNIR!$B$3&C702","v":{"$error":"#N/A"}},{"$f":"EIGNIR!C733","v":0},".M.EHHDSHF.XX.ERL.$$$.HLFT.SX.XXX.XXX.IS.N.M"]
[{"$f":"\"INN.\"&EIGNIR!$B$3&C703","v":{"$error":"#N/A"}},{"$f":"EIGNIR!C734","v":0},".M.EHHDSTF.XX.$$$.$$$.TEFT.SX.XXX.XXX.IS.N.M"]
[{"$f":"\"INN.\"&EIGNIR!$B$3&C704","v":{"$error":"#N/A"}},{"$f":"EIGNIR!C735","v":0},".M.EHHDSTF.XX.ERL.$$$.TEFT.SX.XXX.XXX.IS.N.M"]
[{"$f":"\"INN.\"&EIGNIR!$B$3&C705","v":{"$error":"#N/A"}},{"$f":"EIGNIR!C736","v":0},".M.EAE$$$$.XX.XXX.XXX.XXXX.SX.XXX.XXX.IS.N.M","//Aðrar eignir"]
[{"$f":"\"INN.\"&EIGNIR!$B$3&C706","v":{"$error":"#N/A"}},{"$f":"EIGNIR!C737","v":0},".M.EAESK$$.XX.$$$.XXX.XXXX.SX.XXX.XXX.IS.N.M"]
[{"$f":"\"INN.\"&EIGNIR!$B$3&C707","v":{"$error":"#N/A"}},{"$f":"EIGNIR!C738","v":0},".M.EAESKVE.XX.XXX.XXX.XXXX.SX.XXX.XXX.IS.N.M"]
[{"$f":"\"INN.\"&EIGNIR!$B$3&C708","v":{"$error":"#N/A"}},{"$f":"EIGNIR!C739","v":0},".M.EAESKFE.XX.XXX.XXX.XXXX.SX.XXX.XXX.IS.N.M"]
[{"$f":"\"INN.\"&EIGNIR!$B$3&C709","v":{"$error":"#N/A"}},{"$f":"EIGNIR!C740","v":0},".M.EAERF$$.XX.$$$.XXX.XXXX.SX.XXX.XXX.IS.N.M"]
[{"$f":"\"INN.\"&EIGNIR!$B$3&C710","v":{"$error":"#N/A"}},{"$f":"EIGNIR!C741","v":0},".M.EAERFFF.XX.XXX.XXX.XXXX.SX.XXX.XXX.IS.N.M"]
[{"$f":"\"INN.\"&EIGNIR!$B$3&C711","v":{"$error":"#N/A"}},{"$f":"EIGNIR!C742","v":0},".M.EAERFFE.XX.XXX.XXX.XXXX.SX.XXX.XXX.IS.N.M"]
[{"$f":"\"INN.\"&EIGNIR!$B$3&C712","v":{"$error":"#N/A"}},{"$f":"EIGNIR!C743","v":0},".M.EAEOE$$.XX.$$$.XXX.XXXX.SX.XXX.XXX.IS.N.M"]
[{"$f":"\"INN.\"&EIGNIR!$B$3&C713","v":{"$error":"#N/A"}},{"$f":"EIGNIR!C744","v":0},".M.EAEOEVV.XX.XXX.XXX.XXXX.SX.XXX.XXX.IS.N.M"]
[{"$f":"\"INN.\"&EIGNIR!$B$3&C714","v":{"$error":"#N/A"}},{"$f":"EIGNIR!C745","v":0},".M.EAEOEAO.XX.XXX.XXX.XXXX.SX.XXX.XXX.IS.N.M"]
[{"$f":"\"INN.\"&EIGNIR!$B$3&C715","v":{"$error":"#N/A"}},{"$f":"EIGNIR!C746","v":0},".M.EAEFE$$.XX.XXX.XXX.XXXX.SX.XXX.XXX.IS.N.M"]
[{"$f":"\"INN.\"&EIGNIR!$B$3&C716","v":{"$error":"#N/A"}},{"$f":"EIGNIR!C747","v":0},".M.EAAEO$$.XX.$$$.XXX.XXXX.SX.XXX.XXX.IS.N.M","//Aðrar eignir ót.a."]
[{"$f":"\"INN.\"&EIGNIR!$B$3&C717","v":{"$error":"#N/A"}},{"$f":"EIGNIR!C748","v":0},".M.EAAEOUL.XX.XXX.XXX.XXXX.SX.XXX.XXX.IS.N.M"]
[{"$f":"\"INN.\"&EIGNIR!$B$3&C718","v":{"$error":"#N/A"}},{"$f":"EIGNIR!C749","v":0},".M.EAAEOVI.XX.XXX.XXX.XXXX.SX.XXX.XXX.IS.N.M"]
[{"$f":"\"INN.\"&EIGNIR!$B$3&C719","v":{"$error":"#N/A"}},{"$f":"EIGNIR!C750","v":0},".M.EAAEOYE.XX.XXX.XXX.XXXX.SX.XXX.XXX.IS.N.M"]
[{"$f":"\"INN.\"&EIGNIR!$B$3&C720","v":{"$error":"#N/A"}},{"$f":"EIGNIR!C751","v":0},".M.EAEAE$$.XX.$$$.XXX.XXXX.SX.XXX.XXX.IS.N.M","//Aðrar erlendar eignir"]
[{"$f":"\"INN.\"&EIGNIR!$B$3&C721","v":{"$error":"#N/A"}},{"$f":"EIGNIR!C752","v":0},".M.EAEAEVE.XX.ERL.XXX.XXXX.SX.XXX.XXX.IS.N.M"]
[{"$f":"\"INN.\"&EIGNIR!$B$3&C722","v":{"$error":"#N/A"}},{"$f":"EIGNIR!C753","v":0},".M.EAEAEEO.XX.ERL.XXX.XXXX.SX.XXX.XXX.IS.N.M"]
[{"$f":"\"INN.\"&EIGNIR!$B$3&C723","v":{"$error":"#N/A"}},{"$f":"EIGNIR!C754","v":0},".M.E$$$$$$.XX.XXX.XXX.XXXX.SX.XXX.XXX.IS.N.M"]
[{"$f":"\"INN.\"&EIGNIR!$B$3&C724","v":{"$error":"#N/A"}},{"$f":"EIGNIR!C757","v":0},".M.ESERT$$.XX.XXX.XXX.XXXX.SX.XXX.XXX.IS.N.M","//Sundurliðun innlendra eigna samkvæmt rauneftirstöðvatíma"]
[{"$f":"\"INN.\"&EIGNIR!$B$3&C725","v":{"$error":"#N/A"}},{"$f":"EIGNIR!C758","v":0},".M.ESERTAT.XX.XXX.XXX.XXXX.SX.XXX.XXX.IS.N.M"]
[{"$f":"\"INN.\"&EIGNIR!$B$3&C726","v":{"$error":"#N/A"}},{"$f":"EIGNIR!C759","v":0},".M.ESERTGK.XX.XXX.XXX.XXXX.SX.XXX.XXX.IS.N.M"]
[{"$f":"\"INN.\"&EIGNIR!$B$3&C727","v":{"$error":"#N/A"}},{"$f":"EIGNIR!C760","v":0},".M.ESERT3M.XX.XXX.XXX.XXXX.SX.SKT.XXX.IS.N.M"]
[{"$f":"\"INN.\"&EIGNIR!$B$3&C728","v":{"$error":"#N/A"}},{"$f":"EIGNIR!C761","v":0},".M.ESERT3Y.XX.XXX.XXX.XXXX.SX.SKT.XXX.IS.N.M"]
[{"$f":"\"INN.\"&EIGNIR!$B$3&C729","v":{"$error":"#N/A"}},{"$f":"EIGNIR!C762","v":0},".M.ESERTA2.XX.XXX.XXX.XXXX.SX.LAT.XXX.IS.N.M"]
[{"$f":"\"INN.\"&EIGNIR!$B$3&C730","v":{"$error":"#N/A"}},{"$f":"EIGNIR!C763","v":0},".M.ESERTA3.XX.XXX.XXX.XXXX.SX.LAT.XXX.IS.N.M"]
[{"$f":"\"INN.\"&EIGNIR!$B$3&C731","v":{"$error":"#N/A"}},{"$f":"EIGNIR!C764","v":0},".M.ESERTA5.XX.XXX.XXX.XXXX.SX.LAT.XXX.IS.N.M"]
[{"$f":"\"INN.\"&EIGNIR!$B$3&C732","v":{"$error":"#N/A"}},{"$f":"EIGNIR!C765","v":0},".M.ESERTY5.XX.XXX.XXX.XXXX.SX.LAT.XXX.IS.N.M"]
[{"$f":"\"INN.\"&EIGNIR!$B$3&C733","v":{"$error":"#N/A"}},{"$f":"EIGNIR!C767","v":0},".M.ESERT$$.XX.ERL.XXX.XXXX.SX.XXX.XXX.IS.N.M","//Sundurliðun erlendra eigna samkvæmt rauneftirstöðvatíma"]
[{"$f":"\"INN.\"&EIGNIR!$B$3&C734","v":{"$error":"#N/A"}},{"$f":"EIGNIR!C768","v":0},".M.ESERTAT.XX.ERL.XXX.XXXX.SX.XXX.XXX.IS.N.M"]
[{"$f":"\"INN.\"&EIGNIR!$B$3&C735","v":{"$error":"#N/A"}},{"$f":"EIGNIR!C769","v":0},".M.ESERTGK.XX.ERL.XXX.XXXX.SX.XXX.XXX.IS.N.M"]
[{"$f":"\"INN.\"&EIGNIR!$B$3&C736","v":{"$error":"#N/A"}},{"$f":"EIGNIR!C770","v":0},".M.ESERT3M.XX.ERL.XXX.XXXX.SX.SKT.XXX.IS.N.M"]
[{"$f":"\"INN.\"&EIGNIR!$B$3&C737","v":{"$error":"#N/A"}},{"$f":"EIGNIR!C771","v":0},".M.ESERT3Y.XX.ERL.XXX.XXXX.SX.SKT.XXX.IS.N.M"]
[{"$f":"\"INN.\"&EIGNIR!$B$3&C738","v":{"$error":"#N/A"}},{"$f":"EIGNIR!C772","v":0},".M.ESERTA2.XX.ERL.XXX.XXXX.SX.LAT.XXX.IS.N.M"]
[{"$f":"\"INN.\"&EIGNIR!$B$3&C739","v":{"$error":"#N/A"}},{"$f":"EIGNIR!C773","v":0},".M.ESERTA3.XX.ERL.XXX.XXXX.SX.LAT.XXX.IS.N.M"]
[{"$f":"\"INN.\"&EIGNIR!$B$3&C740","v":{"$error":"#N/A"}},{"$f":"EIGNIR!C774","v":0},".M.ESERTA5.XX.ERL.XXX.XXXX.SX.LAT.XXX.IS.N.M"]
[{"$f":"\"INN.\"&EIGNIR!$B$3&C741","v":{"$error":"#N/A"}},{"$f":"EIGNIR!C775","v":0},".M.ESERTY5.XX.ERL.XXX.XXXX.SX.LAT.XXX.IS.N.M"]
[{"$f":"\"INN.\"&EIGNIR!$B$3&C742","v":{"$error":"#N/A"}},{"$f":"SKULDIR!C11","v":0},".M.SSBIS$$.XX.XXX.XXX.XXXX.SX.XXX.XXX.IS.N.M","//Skuldir //Skuldir við Seðlabanka"]
[{"$f":"\"INN.\"&EIGNIR!$B$3&C743","v":{"$error":"#N/A"}},{"$f":"SKULDIR!C12","v":0},".M.SSBISLV.XX.XXX.XXX.XXXX.SX.XXX.XXX.IS.N.M"]
[{"$f":"\"INN.\"&EIGNIR!$B$3&C744","v":{"$error":"#N/A"}},{"$f":"SKULDIR!C13","v":0},".M.SSBISDL.XX.XXX.XXX.XXXX.SX.XXX.XXX.IS.N.M"]
[{"$f":"\"INN.\"&EIGNIR!$B$3&C745","v":{"$error":"#N/A"}},{"$f":"SKULDIR!C14","v":0},".M.SSBISAF.XX.XXX.XXX.XXXX.SX.XXX.XXX.IS.N.M"]
[{"$f":"\"INN.\"&EIGNIR!$B$3&C746","v":{"$error":"#N/A"}},{"$f":"SKULDIR!C15","v":0},".M.SSBISAS.XX.XXX.XXX.XXXX.SX.XXX.XXX.IS.N.M"]
[{"$f":"\"INN.\"&EIGNIR!$B$3&C747","v":{"$error":"#N/A"}},{"$f":"SKULDIR!C16","v":0},".M.SVF$$$$.XX.XXX.XXX.XXXX.SX.XXX.XXX.IS.N.M","//Veltufjárskuldir"]
[{"$f":"\"INN.\"&EIGNIR!$B$3&C748","v":{"$error":"#N/A"}},{"$f":"SKULDIR!C17","v":0},".M.SVFAM$$.XX.XXX.XXX.XXXX.SX.XXX.XXX.IS.N.M"]
[{"$f":"\"INN.\"&EIGNIR!$B$3&C749","v":{"$error":"#N/A"}},{"$f":"SKULDIR!C18","v":0},".M.SVFSK$$.XX.XXX.XXX.XXXX.SX.XXX.XXX.IS.N.M"]
[{"$f":"\"INN.\"&EIGNIR!$B$3&C750","v":{"$error":"#N/A"}},{"$f":"SKULDIR!C19","v":0},".M.SVFSKSB.XX.XXX.XXX.XXXX.SX.XXX.XXX.IS.N.M"]
[{"$f":"\"INN.\"&EIGNIR!$B$3&C751","v":{"$error":"#N/A"}},{"$f":"SKULDIR!C20","v":0},".M.SVFSKHB.XX.XXX.XXX.XXXX.SX.XXX.XXX.IS.N.M"]
[{"$f":"\"INN.\"&EIGNIR!$B$3&C752","v":{"$error":"#N/A"}},{"$f":"SKULDIR!C21","v":0},".M.SVFSV$$.XX.XXX.XXX.XXXX.SX.XXX.XXX.IS.N.M"]
[{"$f":"\"INN.\"&EIGNIR!$B$3&C753","v":{"$error":"#N/A"}},{"$f":"SKULDIR!C22","v":0},".M.SVFAFVF.XX.XXX.XXX.XXXX.SX.XXX.XXX.IS.N.M"]
[{"$f":"\"INN.\"&EIGNIR!$B$3&C754","v":{"$error":"#N/A"}},{"$f":"SKULDIR!C23","v":0},".M.SFR$$$$.XX.XXX.XXX.XXXX.SX.XXX.XXX.IS.N.M","//Fjárskuldbindingar á gangvirði í gegnum rekstrarreikning"]
[{"$f":"\"INN.\"&EIGNIR!$B$3&C755","v":{"$error":"#N/A"}},{"$f":"SKULDIR!C24","v":0},".M.SFRVB$$.XX.XXX.XXX.XXXX.SX.XXX.XXX.IS.N.M","//Verðbréfaútgáfa"]
[{"$f":"\"INN.\"&EIGNIR!$B$3&C756","v":{"$error":"#N/A"}},{"$f":"SKULDIR!C25","v":0},".M.SFRVBIV.XX.XXX.XXX.XXXX.SX.XXX.XXX.IS.N.M"]
[{"$f":"\"INN.\"&EIGNIR!$B$3&C757","v":{"$error":"#N/A"}},{"$f":"SKULDIR!C26","v":0},".M.SFRVBEV.XX.XXX.XXX.XXXX.SX.XXX.XXX.IS.N.M"]
[{"$f":"\"INN.\"&EIGNIR!$B$3&C758","v":{"$error":"#N/A"}},{"$f":"SKULDIR!C27","v":0},".M.SFRVL$$.XX.XXX.XXX.XXXX.SX.XXX.XXX.IS.N.M","//Víkjandi lán"]
[{"$f":"\"INN.\"&EIGNIR!$B$3&C759","v":{"$error":"#N/A"}},{"$f":"SKULDIR!C28","v":0},".M.SFRVLIN.XX.XXX.XXX.XXXX.SX.SKT.XXX.IS.N.M"]
[{"$f":"\"INN.\"&EIGNIR!$B$3&C760","v":{"$error":"#N/A"}},{"$f":"SKULDIR!C29","v":0},".M.SFRVLIN.XX.XXX.XXX.XXXX.SX.LAT.XXX.IS.N.M"]
[{"$f":"\"INN.\"&EIGNIR!$B$3&C761","v":{"$error":"#N/A"}},{"$f":"SKULDIR!C30","v":0},".M.SFRVLER.XX.XXX.XXX.XXXX.SX.SKT.XXX.IS.N.M"]
[{"$f":"\"INN.\"&EIGNIR!$B$3&C762","v":{"$error":"#N/A"}},{"$f":"SKULDIR!C31","v":0},".M.SFRVLER.XX.XXX.XXX.XXXX.SX.LAT.XXX.IS.N.M"]
[{"$f":"\"INN.\"&EIGNIR!$B$3&C763","v":{"$error":"#N/A"}},{"$f":"SKULDIR!C32","v":0},".M.SFRBL$$.XX.XXX.XXX.XXXX.SX.XXX.XXX.IS.N.M","//Beinar lántökur"]
[{"$f":"\"INN.\"&EIGNIR!$B$3&C764","v":{"$error":"#N/A"}},{"$f":"SKULDIR!C33","v":0},".M.SFRBLVL.XX.XXX.XXX.XXXX.SV.XXX.XXX.IS.N.M"]
[{"$f":"\"INN.\"&EIGNIR!$B$3&C765","v":{"$error":"#N/A"}},{"$f":"SKULDIR!C34","v":0},".M.SFRBLOL.XX.XXX.XXX.XXXX.SX.SKT.XXX.IS.N.M"]
[{"$f":"\"INN.\"&EIGNIR!$B$3&C766","v":{"$error":"#N/A"}},{"$f":"SKULDIR!C35","v":0},".M.SFRBLOL.XX.XXX.XXX.XXXX.SX.LAT.XXX.IS.N.M"]
[{"$f":"\"INN.\"&EIGNIR!$B$3&C767","v":{"$error":"#N/A"}},{"$f":"SKULDIR!C36","v":0},".M.SFU$$$$.XX.XXX.XXX.XXXX.SX.XXX.XXX.IS.N.M","//Fjárskuldbindingar á uppreiknuðu verði"]
[{"$f":"\"INN.\"&EIGNIR!$B$3&C768","v":{"$error":"#N/A"}},{"$f":"SKULDIR!C37","v":0},".M.SFUIN$$.XX.XXX.$$$.XXXX.SX.XXX.XXX.IS.N.M","//Innlán"]
[{"$f":"\"INN.\"&EIGNIR!$B$3&C769","v":{"$error":"#N/A"}},{"$f":"SKULDIR!C38","v":0},".M.SFUINKV.XX.$$$.$$$.XXXX.SX.XXX.XXX.IS.N.M","//Veltiinnlán"]
[{"$f":"\"INN.\"&EIGNIR!$B$3&C770","v":{"$error":"#N/A"}},{"$f":"SKULDIR!C39","v":0},".M.SFUINKV.XX.ATV.$$$.XXXX.SX.XXX.XXX.IS.N.M"]
[{"$f":"\"INN.\"&EIGNIR!$B$3&C771","v":{"$error":"#N/A"}},{"$f":"SKULDIR!C40","v":0},".M.SFUINKV.XX.LAB.XXX.XXXX.SX.XXX.XXX.IS.N.M"]
[{"$f":"\"INN.\"&EIGNIR!$B$3&C772","v":{"$error":"#N/A"}},{"$f":"SKULDIR!C41","v":0},".M.SFUINKV.XX.SJA.XXX.XXXX.SX.XXX.XXX.IS.N.M"]
[{"$f":"\"INN.\"&EIGNIR!$B$3&C773","v":{"$error":"#N/A"}},{"$f":"SKULDIR!C42","v":0},".M.SFUINKV.XX.ILA.XXX.XXXX.SX.XXX.XXX.IS.N.M"]
[{"$f":"\"INN.\"&EIGNIR!$B$3&C774","v":{"$error":"#N/A"}},{"$f":"SKULDIR!C43","v":0},".M.SFUINKV.XX.ISJ.XXX.XXXX.SX.XXX.XXX.IS.N.M"]
[{"$f":"\"INN.\"&EIGNIR!$B$3&C775","v":{"$error":"#N/A"}},{"$f":"SKULDIR!C44","v":0},".M.SFUINKV.XX.IAN.XXX.XXXX.SX.XXX.XXX.IS.N.M"]
[{"$f":"\"INN.\"&EIGNIR!$B$3&C776","v":{"$error":"#N/A"}},{"$f":"SKULDIR!C45","v":0},".M.SFUINKV.XX.RAF.XXX.XXXX.SX.XXX.XXX.IS.N.M"]
[{"$f":"\"INN.\"&EIGNIR!$B$3&C777","v":{"$error":"#N/A"}},{"$f":"SKULDIR!C46","v":0},".M.SFUINKV.XX.MAN.XXX.XXXX.SX.XXX.XXX.IS.N.M"]
[{"$f":"\"INN.\"&EIGNIR!$B$3&C778","v":{"$error":"#N/A"}},{"$f":"SKULDIR!C47","v":0},".M.SFUINKV.XX.VEN.XXX.XXXX.SX.XXX.XXX.IS.N.M"]
[{"$f":"\"INN.\"&EIGNIR!$B$3&C779","v":{"$error":"#N/A"}},{"$f":"SKULDIR!C48","v":0},".M.SFUINKV.XX.SAG.XXX.XXXX.SX.XXX.XXX.IS.N.M"]
[{"$f":"\"INN.\"&EIGNIR!$B$3&C780","v":{"$error":"#N/A"}},{"$f":"SKULDIR!C49","v":0},".M.SFUINKV.XX.THF.XXX.XXXX.SX.XXX.XXX.IS.N.M"]
[{"$f":"\"INN.\"&EIGNIR!$B$3&C781","v":{"$error":"#N/A"}},{"$f":"SKULDIR!C50","v":0},".M.SFUINKV.XX.THH.XXX.XXXX.SX.XXX.XXX.IS.N.M"]
[{"$f":"\"INN.\"&EIGNIR!$B$3&C782","v":{"$error":"#N/A"}},{"$f":"SKULDIR!C51","v":0},".M.SFUINKV.XX.THA.XXX.XXXX.SX.XXX.XXX.IS.N.M"]
[{"$f":"\"INN.\"&EIGNIR!$B$3&C783","v":{"$error":"#N/A"}},{"$f":"SKULDIR!C52","v":0},".M.SFUINKV.XX.OFL.XXX.XXXX.SX.XXX.XXX.IS.N.M"]
[{"$f":"\"INN.\"&EIGNIR!$B$3&C784","v":{"$error":"#N/A"}},{"$f":"SKULDIR!C53","v":0},".M.SFUINKV.XX.FJA.$$$.XXXX.SX.XXX.XXX.IS.N.M"]
[{"$f":"\"INN.\"&EIGNIR!$B$3&C785","v":{"$error":"#N/A"}},{"$f":"SKULDIR!C54","v":0},".M.SFUINKV.XX.INN.$$$.XXXX.SX.XXX.XXX.IS.N.M"]
[{"$f":"\"INN.\"&EIGNIR!$B$3&C786","v":{"$error":"#N/A"}},{"$f":"SKULDIR!C55","v":0},".M.SFUINKV.XX.SLI.$$$.XXXX.SX.XXX.XXX.IS.N.M"]
[{"$f":"\"INN.\"&EIGNIR!$B$3&C787","v":{"$error":"#N/A"}},{"$f":"SKULDIR!C56","v":0},".M.SFUINKV.XX.PEN.$$$.XXXX.SX.XXX.XXX.IS.N.M"]
[{"$f":"\"INN.\"&EIGNIR!$B$3&C788","v":{"$error":"#N/A"}},{"$f":"SKULDIR!C57","v":0},".M.SFUINKV.XX.SJO.$$$.XXXX.SX.XXX.XXX.IS.N.M"]
[{"$f":"\"INN.\"&EIGNIR!$B$3&C789","v":{"$error":"#N/A"}},{"$f":"SKULDIR!C58","v":0},".M.SFUINKV.XX.YFT.$$$.XXXX.SX.XXX.XXX.IS.N.M"]
[{"$f":"\"INN.\"&EIGNIR!$B$3&C790","v":{"$error":"#N/A"}},{"$f":"SKULDIR!C59","v":0},".M.SFUINKV.XX.SLY.$$$.XXXX.SX.XXX.XXX.IS.N.M"]
[{"$f":"\"INN.\"&EIGNIR!$B$3&C791","v":{"$error":"#N/A"}},{"$f":"SKULDIR!C60","v":0},".M.SFUINKV.XX.FHL.$$$.XXXX.SX.XXX.XXX.IS.N.M"]
[{"$f":"\"INN.\"&EIGNIR!$B$3&C792","v":{"$error":"#N/A"}},{"$f":"SKULDIR!C61","v":0},".M.SFUINKV.XX.INF.$$$.XXXX.SX.XXX.XXX.IS.N.M"]
[{"$f":"\"INN.\"&EIGNIR!$B$3&C793","v":{"$error":"#N/A"}},{"$f":"SKULDIR!C62","v":0},".M.SFUINKV.XX.TRY.$$$.XXXX.SX.XXX.XXX.IS.N.M"]
[{"$f":"\"INN.\"&EIGNIR!$B$3&C794","v":{"$error":"#N/A"}},{"$f":"SKULDIR!C63","v":0},".M.SFUINKV.XX.LIF.$$$.XXXX.SX.XXX.XXX.IS.N.M"]
[{"$f":"\"INN.\"&EIGNIR!$B$3&C795","v":{"$error":"#N/A"}},{"$f":"SKULDIR!C64","v":0},".M.SFUINKV.XX.OPI.$$$.XXXX.SX.XXX.XXX.IS.N.M"]
[{"$f":"\"INN.\"&EIGNIR!$B$3&C796","v":{"$error":"#N/A"}},{"$f":"SKULDIR!C65","v":0},".M.SFUINKV.XX.RSS.$$$.XXXX.SX.XXX.XXX.IS.N.M"]
[{"$f":"\"INN.\"&EIGNIR!$B$3&C797","v":{"$error":"#N/A"}},{"$f":"SKULDIR!C66","v":0},".M.SFUINKV.XX.BAJ.$$$.XXXX.SX.XXX.XXX.IS.N.M"]
[{"$f":"\"INN.\"&EIGNIR!$B$3&C798","v":{"$error":"#N/A"}},{"$f":"SKULDIR!C67","v":0},".M.SFUINKV.XX.EIN.$$$.XXXX.SX.XXX.XXX.IS.N.M"]
[{"$f":"\"INN.\"&EIGNIR!$B$3&C799","v":{"$error":"#N/A"}},{"$f":"SKULDIR!C68","v":0},".M.SFUINKV.XX.NPH.$$$.XXXX.SX.XXX.XXX.IS.N.M"]
[{"$f":"\"INN.\"&EIGNIR!$B$3&C800","v":{"$error":"#N/A"}},{"$f":"SKULDIR!C69","v":0},".M.SFUINKV.XX.ERL.$$$.XXXX.SX.XXX.XXX.IS.N.M"]
[{"$f":"\"INN.\"&EIGNIR!$B$3&C801","v":{"$error":"#N/A"}},{"$f":"SKULDIR!C70","v":0},".M.SFUINOI.XX.$$$.$$$.XXXX.SX.XXX.XXX.IS.N.M","//Óbundin innlán"]
[{"$f":"\"INN.\"&EIGNIR!$B$3&C802","v":{"$error":"#N/A"}},{"$f":"SKULDIR!C71","v":0},".M.SFUINOI.XX.ATV.$$$.XXXX.SX.XXX.XXX.IS.N.M"]
[{"$f":"\"INN.\"&EIGNIR!$B$3&C803","v":{"$error":"#N/A"}},{"$f":"SKULDIR!C72","v":0},".M.SFUINOI.XX.LAB.XXX.XXXX.SX.XXX.XXX.IS.N.M"]
[{"$f":"\"INN.\"&EIGNIR!$B$3&C804","v":{"$error":"#N/A"}},{"$f":"SKULDIR!C73","v":0},".M.SFUINOI.XX.SJA.XXX.XXXX.SX.XXX.XXX.IS.N.M"]
[{"$f":"\"INN.\"&EIGNIR!$B$3&C805","v":{"$error":"#N/A"}},{"$f":"SKULDIR!C74","v":0},".M.SFUINOI.XX.ILA.XXX.XXXX.SX.XXX.XXX.IS.N.M"]
[{"$f":"\"INN.\"&EIGNIR!$B$3&C806","v":{"$error":"#N/A"}},{"$f":"SKULDIR!C75","v":0},".M.SFUINOI.XX.ISJ.XXX.XXXX.SX.XXX.XXX.IS.N.M"]
[{"$f":"\"INN.\"&EIGNIR!$B$3&C807","v":{"$error":"#N/A"}},{"$f":"SKULDIR!C76","v":0},".M.SFUINOI.XX.IAN.XXX.XXXX.SX.XXX.XXX.IS.N.M"]
[{"$f":"\"INN.\"&EIGNIR!$B$3&C808","v":{"$error":"#N/A"}},{"$f":"SKULDIR!C77","v":0},".M.SFUINOI.XX.RAF.XXX.XXXX.SX.XXX.XXX.IS.N.M"]
[{"$f":"\"INN.\"&EIGNIR!$B$3&C809","v":{"$error":"#N/A"}},{"$f":"SKULDIR!C78","v":0},".M.SFUINOI.XX.MAN.XXX.XXXX.SX.XXX.XXX.IS.N.M"]
[{"$f":"\"INN.\"&EIGNIR!$B$3&C810","v":{"$error":"#N/A"}},{"$f":"SKULDIR!C79","v":0},".M.SFUINOI.XX.VEN.XXX.XXXX.SX.XXX.XXX.IS.N.M"]
[{"$f":"\"INN.\"&EIGNIR!$B$3&C811","v":{"$error":"#N/A"}},{"$f":"SKULDIR!C80","v":0},".M.SFUINOI.XX.SAG.XXX.XXXX.SX.XXX.XXX.IS.N.M"]
[{"$f":"\"INN.\"&EIGNIR!$B$3&C812","v":{"$error":"#N/A"}},{"$f":"SKULDIR!C81","v":0},".M.SFUINOI.XX.THF.XXX.XXXX.SX.XXX.XXX.IS.N.M"]
[{"$f":"\"INN.\"&EIGNIR!$B$3&C813","v":{"$error":"#N/A"}},{"$f":"SKULDIR!C82","v":0},".M.SFUINOI.XX.THH.XXX.XXXX.SX.XXX.XXX.IS.N.M"]
[{"$f":"\"INN.\"&EIGNIR!$B$3&C814","v":{"$error":"#N/A"}},{"$f":"SKULDIR!C83","v":0},".M.SFUINOI.XX.THA.XXX.XXXX.SX.XXX.XXX.IS.N.M"]
[{"$f":"\"INN.\"&EIGNIR!$B$3&C815","v":{"$error":"#N/A"}},{"$f":"SKULDIR!C84","v":0},".M.SFUINOI.XX.OFL.XXX.XXXX.SX.XXX.XXX.IS.N.M"]
[{"$f":"\"INN.\"&EIGNIR!$B$3&C816","v":{"$error":"#N/A"}},{"$f":"SKULDIR!C85","v":0},".M.SFUINOI.XX.FJA.$$$.XXXX.SX.XXX.XXX.IS.N.M"]
[{"$f":"\"INN.\"&EIGNIR!$B$3&C817","v":{"$error":"#N/A"}},{"$f":"SKULDIR!C86","v":0},".M.SFUINOI.XX.INN.$$$.XXXX.SX.XXX.XXX.IS.N.M"]
[{"$f":"\"INN.\"&EIGNIR!$B$3&C818","v":{"$error":"#N/A"}},{"$f":"SKULDIR!C87","v":0},".M.SFUINOI.XX.SLI.$$$.XXXX.SX.XXX.XXX.IS.N.M"]
[{"$f":"\"INN.\"&EIGNIR!$B$3&C819","v":{"$error":"#N/A"}},{"$f":"SKULDIR!C88","v":0},".M.SFUINOI.XX.PEN.$$$.XXXX.SX.XXX.XXX.IS.N.M"]
[{"$f":"\"INN.\"&EIGNIR!$B$3&C820","v":{"$error":"#N/A"}},{"$f":"SKULDIR!C89","v":0},".M.SFUINOI.XX.SJO.$$$.XXXX.SX.XXX.XXX.IS.N.M"]
[{"$f":"\"INN.\"&EIGNIR!$B$3&C821","v":{"$error":"#N/A"}},{"$f":"SKULDIR!C90","v":0},".M.SFUINOI.XX.YFT.$$$.XXXX.SX.XXX.XXX.IS.N.M"]
[{"$f":"\"INN.\"&EIGNIR!$B$3&C822","v":{"$error":"#N/A"}},{"$f":"SKULDIR!C91","v":0},".M.SFUINOI.XX.SLY.$$$.XXXX.SX.XXX.XXX.IS.N.M"]
[{"$f":"\"INN.\"&EIGNIR!$B$3&C823","v":{"$error":"#N/A"}},{"$f":"SKULDIR!C92","v":0},".M.SFUINOI.XX.FHL.$$$.XXXX.SX.XXX.XXX.IS.N.M"]
[{"$f":"\"INN.\"&EIGNIR!$B$3&C824","v":{"$error":"#N/A"}},{"$f":"SKULDIR!C93","v":0},".M.SFUINOI.XX.INF.$$$.XXXX.SX.XXX.XXX.IS.N.M"]
[{"$f":"\"INN.\"&EIGNIR!$B$3&C825","v":{"$error":"#N/A"}},{"$f":"SKULDIR!C94","v":0},".M.SFUINOI.XX.TRY.$$$.XXXX.SX.XXX.XXX.IS.N.M"]
[{"$f":"\"INN.\"&EIGNIR!$B$3&C826","v":{"$error":"#N/A"}},{"$f":"SKULDIR!C95","v":0},".M.SFUINOI.XX.LIF.$$$.XXXX.SX.XXX.XXX.IS.N.M"]
[{"$f":"\"INN.\"&EIGNIR!$B$3&C827","v":{"$error":"#N/A"}},{"$f":"SKULDIR!C96","v":0},".M.SFUINOI.XX.OPI.$$$.XXXX.SX.XXX.XXX.IS.N.M"]
[{"$f":"\"INN.\"&EIGNIR!$B$3&C828","v":{"$error":"#N/A"}},{"$f":"SKULDIR!C97","v":0},".M.SFUINOI.XX.RSS.$$$.XXXX.SX.XXX.XXX.IS.N.M"]
[{"$f":"\"INN.\"&EIGNIR!$B$3&C829","v":{"$error":"#N/A"}},{"$f":"SKULDIR!C98","v":0},".M.SFUINOI.XX.BAJ.$$$.XXXX.SX.XXX.XXX.IS.N.M"]
[{"$f":"\"INN.\"&EIGNIR!$B$3&C830","v":{"$error":"#N/A"}},{"$f":"SKULDIR!C99","v":0},".M.SFUINOI.XX.EIN.$$$.XXXX.SX.XXX.XXX.IS.N.M"]
[{"$f":"\"INN.\"&EIGNIR!$B$3&C831","v":{"$error":"#N/A"}},{"$f":"SKULDIR!C100","v":0},".M.SFUINOI.XX.NPH.$$$.XXXX.SX.XXX.XXX.IS.N.M"]
[{"$f":"\"INN.\"&EIGNIR!$B$3&C832","v":{"$error":"#N/A"}},{"$f":"SKULDIR!C101","v":0},".M.SFUINOI.XX.ERL.$$$.XXXX.SX.XXX.XXX.IS.N.M"]
[{"$f":"\"INN.\"&EIGNIR!$B$3&C833","v":{"$error":"#N/A"}},{"$f":"SKULDIR!C102","v":0},".M.SFUINVI.XX.$$$.$$$.XXXX.SV.XXX.XXX.IS.N.M","//Verðtryggð innlán"]
[{"$f":"\"INN.\"&EIGNIR!$B$3&C834","v":{"$error":"#N/A"}},{"$f":"SKULDIR!C103","v":0},".M.SFUINVI.XX.ATV.$$$.XXXX.SV.XXX.XXX.IS.N.M"]
[{"$f":"\"INN.\"&EIGNIR!$B$3&C835","v":{"$error":"#N/A"}},{"$f":"SKULDIR!C104","v":0},".M.SFUINVI.XX.LAB.XXX.XXXX.SV.XXX.XXX.IS.N.M"]
[{"$f":"\"INN.\"&EIGNIR!$B$3&C836","v":{"$error":"#N/A"}},{"$f":"SKULDIR!C105","v":0},".M.SFUINVI.XX.SJA.XXX.XXXX.SV.XXX.XXX.IS.N.M"]
[{"$f":"\"INN.\"&EIGNIR!$B$3&C837","v":{"$error":"#N/A"}},{"$f":"SKULDIR!C106","v":0},".M.SFUINVI.XX.ILA.XXX.XXXX.SV.XXX.XXX.IS.N.M"]
[{"$f":"\"INN.\"&EIGNIR!$B$3&C838","v":{"$error":"#N/A"}},{"$f":"SKULDIR!C107","v":0},".M.SFUINVI.XX.ISJ.XXX.XXXX.SV.XXX.XXX.IS.N.M"]
[{"$f":"\"INN.\"&EIGNIR!$B$3&C839","v":{"$error":"#N/A"}},{"$f":"SKULDIR!C108","v":0},".M.SFUINVI.XX.IAN.XXX.XXXX.SV.XXX.XXX.IS.N.M"]
[{"$f":"\"INN.\"&EIGNIR!$B$3&C840","v":{"$error":"#N/A"}},{"$f":"SKULDIR!C109","v":0},".M.SFUINVI.XX.RAF.XXX.XXXX.SV.XXX.XXX.IS.N.M"]
[{"$f":"\"INN.\"&EIGNIR!$B$3&C841","v":{"$error":"#N/A"}},{"$f":"SKULDIR!C110","v":0},".M.SFUINVI.XX.MAN.XXX.XXXX.SV.XXX.XXX.IS.N.M"]
[{"$f":"\"INN.\"&EIGNIR!$B$3&C842","v":{"$error":"#N/A"}},{"$f":"SKULDIR!C111","v":0},".M.SFUINVI.XX.VEN.XXX.XXXX.SV.XXX.XXX.IS.N.M"]
[{"$f":"\"INN.\"&EIGNIR!$B$3&C843","v":{"$error":"#N/A"}},{"$f":"SKULDIR!C112","v":0},".M.SFUINVI.XX.SAG.XXX.XXXX.SV.XXX.XXX.IS.N.M"]
[{"$f":"\"INN.\"&EIGNIR!$B$3&C844","v":{"$error":"#N/A"}},{"$f":"SKULDIR!C113","v":0},".M.SFUINVI.XX.THF.XXX.XXXX.SV.XXX.XXX.IS.N.M"]
[{"$f":"\"INN.\"&EIGNIR!$B$3&C845","v":{"$error":"#N/A"}},{"$f":"SKULDIR!C114","v":0},".M.SFUINVI.XX.THH.XXX.XXXX.SV.XXX.XXX.IS.N.M"]
[{"$f":"\"INN.\"&EIGNIR!$B$3&C846","v":{"$error":"#N/A"}},{"$f":"SKULDIR!C115","v":0},".M.SFUINVI.XX.THA.XXX.XXXX.SV.XXX.XXX.IS.N.M"]
[{"$f":"\"INN.\"&EIGNIR!$B$3&C847","v":{"$error":"#N/A"}},{"$f":"SKULDIR!C116","v":0},".M.SFUINVI.XX.OFL.XXX.XXXX.SV.XXX.XXX.IS.N.M"]
[{"$f":"\"INN.\"&EIGNIR!$B$3&C848","v":{"$error":"#N/A"}},{"$f":"SKULDIR!C117","v":0},".M.SFUINVI.XX.FJA.$$$.XXXX.SV.XXX.XXX.IS.N.M"]
[{"$f":"\"INN.\"&EIGNIR!$B$3&C849","v":{"$error":"#N/A"}},{"$f":"SKULDIR!C118","v":0},".M.SFUINVI.XX.INN.$$$.XXXX.SV.XXX.XXX.IS.N.M"]
[{"$f":"\"INN.\"&EIGNIR!$B$3&C850","v":{"$error":"#N/A"}},{"$f":"SKULDIR!C119","v":0},".M.SFUINVI.XX.SLI.$$$.XXXX.SV.XXX.XXX.IS.N.M"]
[{"$f":"\"INN.\"&EIGNIR!$B$3&C851","v":{"$error":"#N/A"}},{"$f":"SKULDIR!C120","v":0},".M.SFUINVI.XX.PEN.$$$.XXXX.SV.XXX.XXX.IS.N.M"]
[{"$f":"\"INN.\"&EIGNIR!$B$3&C852","v":{"$error":"#N/A"}},{"$f":"SKULDIR!C121","v":0},".M.SFUINVI.XX.SJO.$$$.XXXX.SV.XXX.XXX.IS.N.M"]
[{"$f":"\"INN.\"&EIGNIR!$B$3&C853","v":{"$error":"#N/A"}},{"$f":"SKULDIR!C122","v":0},".M.SFUINVI.XX.YFT.$$$.XXXX.SV.XXX.XXX.IS.N.M"]
[{"$f":"\"INN.\"&EIGNIR!$B$3&C854","v":{"$error":"#N/A"}},{"$f":"SKULDIR!C123","v":0},".M.SFUINVI.XX.SLY.$$$.XXXX.SV.XXX.XXX.IS.N.M"]
[{"$f":"\"INN.\"&EIGNIR!$B$3&C855","v":{"$error":"#N/A"}},{"$f":"SKULDIR!C124","v":0},".M.SFUINVI.XX.FHL.$$$.XXXX.SV.XXX.XXX.IS.N.M"]
[{"$f":"\"INN.\"&EIGNIR!$B$3&C856","v":{"$error":"#N/A"}},{"$f":"SKULDIR!C125","v":0},".M.SFUINVI.XX.INF.$$$.XXXX.SV.XXX.XXX.IS.N.M"]
[{"$f":"\"INN.\"&EIGNIR!$B$3&C857","v":{"$error":"#N/A"}},{"$f":"SKULDIR!C126","v":0},".M.SFUINVI.XX.TRY.$$$.XXXX.SV.XXX.XXX.IS.N.M"]
[{"$f":"\"INN.\"&EIGNIR!$B$3&C858","v":{"$error":"#N/A"}},{"$f":"SKULDIR!C127","v":0},".M.SFUINVI.XX.LIF.$$$.XXXX.SV.XXX.XXX.IS.N.M"]
[{"$f":"\"INN.\"&EIGNIR!$B$3&C859","v":{"$error":"#N/A"}},{"$f":"SKULDIR!C128","v":0},".M.SFUINVI.XX.OPI.$$$.XXXX.SV.XXX.XXX.IS.N.M"]
[{"$f":"\"INN.\"&EIGNIR!$B$3&C860","v":{"$error":"#N/A"}},{"$f":"SKULDIR!C129","v":0},".M.SFUINVI.XX.RSS.$$$.XXXX.SV.XXX.XXX.IS.N.M"]
[{"$f":"\"INN.\"&EIGNIR!$B$3&C861","v":{"$error":"#N/A"}},{"$f":"SKULDIR!C130","v":0},".M.SFUINVI.XX.BAJ.$$$.XXXX.SV.XXX.XXX.IS.N.M"]
[{"$f":"\"INN.\"&EIGNIR!$B$3&C862","v":{"$error":"#N/A"}},{"$f":"SKULDIR!C131","v":0},".M.SFUINVI.XX.EIN.$$$.XXXX.SV.XXX.XXX.IS.N.M"]
[{"$f":"\"INN.\"&EIGNIR!$B$3&C863","v":{"$error":"#N/A"}},{"$f":"SKULDIR!C132","v":0},".M.SFUINVI.XX.NPH.$$$.XXXX.SV.XXX.XXX.IS.N.M"]
[{"$f":"\"INN.\"&EIGNIR!$B$3&C864","v":{"$error":"#N/A"}},{"$f":"SKULDIR!C133","v":0},".M.SFUINVI.XX.ERL.$$$.XXXX.SV.XXX.XXX.IS.N.M"]
[{"$f":"\"INN.\"&EIGNIR!$B$3&C865","v":{"$error":"#N/A"}},{"$f":"SKULDIR!C134","v":0},".M.SFUINOR.XX.XXX.XXX.XXXX.SV.XXX.XXX.IS.N.M","//Orlofsreikningar"]
[{"$f":"\"INN.\"&EIGNIR!$B$3&C866","v":{"$error":"#N/A"}},{"$f":"SKULDIR!C135","v":0},".M.SFUINVB.XX.XXX.XXX.XXXX.SX.XXX.XXX.IS.N.M","//Viðbótarlífeyrissparnaður"]
[{"$f":"\"INN.\"&EIGNIR!$B$3&C867","v":{"$error":"#N/A"}},{"$f":"SKULDIR!C136","v":0},".M.SFUINBI.XX.$$$.$$$.XXXX.SX.XXX.XXX.IS.N.M","//Önnur bundin innlán"]
[{"$f":"\"INN.\"&EIGNIR!$B$3&C868","v":{"$error":"#N/A"}},{"$f":"SKULDIR!C137","v":0},".M.SFUINBI.XX.ATV.$$$.XXXX.SX.XXX.XXX.IS.N.M"]
[{"$f":"\"INN.\"&EIGNIR!$B$3&C869","v":{"$error":"#N/A"}},{"$f":"SKULDIR!C138","v":0},".M.SFUINBI.XX.LAB.XXX.XXXX.SX.XXX.XXX.IS.N.M"]
[{"$f":"\"INN.\"&EIGNIR!$B$3&C870","v":{"$error":"#N/A"}},{"$f":"SKULDIR!C139","v":0},".M.SFUINBI.XX.SJA.XXX.XXXX.SX.XXX.XXX.IS.N.M"]
[{"$f":"\"INN.\"&EIGNIR!$B$3&C871","v":{"$error":"#N/A"}},{"$f":"SKULDIR!C140","v":0},".M.SFUINBI.XX.ILA.XXX.XXXX.SX.XXX.XXX.IS.N.M"]
[{"$f":"\"INN.\"&EIGNIR!$B$3&C872","v":{"$error":"#N/A"}},{"$f":"SKULDIR!C141","v":0},".M.SFUINBI.XX.ISJ.XXX.XXXX.SX.XXX.XXX.IS.N.M"]
[{"$f":"\"INN.\"&EIGNIR!$B$3&C873","v":{"$error":"#N/A"}},{"$f":"SKULDIR!C142","v":0},".M.SFUINBI.XX.IAN.XXX.XXXX.SX.XXX.XXX.IS.N.M"]
[{"$f":"\"INN.\"&EIGNIR!$B$3&C874","v":{"$error":"#N/A"}},{"$f":"SKULDIR!C143","v":0},".M.SFUINBI.XX.RAF.XXX.XXXX.SX.XXX.XXX.IS.N.M"]
[{"$f":"\"INN.\"&EIGNIR!$B$3&C875","v":{"$error":"#N/A"}},{"$f":"SKULDIR!C144","v":0},".M.SFUINBI.XX.MAN.XXX.XXXX.SX.XXX.XXX.IS.N.M"]
[{"$f":"\"INN.\"&EIGNIR!$B$3&C876","v":{"$error":"#N/A"}},{"$f":"SKULDIR!C145","v":0},".M.SFUINBI.XX.VEN.XXX.XXXX.SX.XXX.XXX.IS.N.M"]
[{"$f":"\"INN.\"&EIGNIR!$B$3&C877","v":{"$error":"#N/A"}},{"$f":"SKULDIR!C146","v":0},".M.SFUINBI.XX.SAG.XXX.XXXX.SX.XXX.XXX.IS.N.M"]
[{"$f":"\"INN.\"&EIGNIR!$B$3&C878","v":{"$error":"#N/A"}},{"$f":"SKULDIR!C147","v":0},".M.SFUINBI.XX.THF.XXX.XXXX.SX.XXX.XXX.IS.N.M"]
[{"$f":"\"INN.\"&EIGNIR!$B$3&C879","v":{"$error":"#N/A"}},{"$f":"SKULDIR!C148","v":0},".M.SFUINBI.XX.THH.XXX.XXXX.SX.XXX.XXX.IS.N.M"]
[{"$f":"\"INN.\"&EIGNIR!$B$3&C880","v":{"$error":"#N/A"}},{"$f":"SKULDIR!C149","v":0},".M.SFUINBI.XX.THA.XXX.XXXX.SX.XXX.XXX.IS.N.M"]
[{"$f":"\"INN.\"&EIGNIR!$B$3&C881","v":{"$error":"#N/A"}},{"$f":"SKULDIR!C150","v":0},".M.SFUINBI.XX.OFL.XXX.XXXX.SX.XXX.XXX.IS.N.M"]
[{"$f":"\"INN.\"&EIGNIR!$B$3&C882","v":{"$error":"#N/A"}},{"$f":"SKULDIR!C151","v":0},".M.SFUINBI.XX.FJA.$$$.XXXX.SX.XXX.XXX.IS.N.M"]
[{"$f":"\"INN.\"&EIGNIR!$B$3&C883","v":{"$error":"#N/A"}},{"$f":"SKULDIR!C152","v":0},".M.SFUINBI.XX.INN.$$$.XXXX.SX.XXX.XXX.IS.N.M"]
[{"$f":"\"INN.\"&EIGNIR!$B$3&C884","v":{"$error":"#N/A"}},{"$f":"SKULDIR!C153","v":0},".M.SFUINBI.XX.SLI.$$$.XXXX.SX.XXX.XXX.IS.N.M"]
[{"$f":"\"INN.\"&EIGNIR!$B$3&C885","v":{"$error":"#N/A"}},{"$f":"SKULDIR!C154","v":0},".M.SFUINBI.XX.PEN.$$$.XXXX.SX.XXX.XXX.IS.N.M"]
[{"$f":"\"INN.\"&EIGNIR!$B$3&C886","v":{"$error":"#N/A"}},{"$f":"SKULDIR!C155","v":0},".M.SFUINBI.XX.SJO.$$$.XXXX.SX.XXX.XXX.IS.N.M"]
[{"$f":"\"INN.\"&EIGNIR!$B$3&C887","v":{"$error":"#N/A"}},{"$f":"SKULDIR!C156","v":0},".M.SFUINBI.XX.YFT.$$$.XXXX.SX.XXX.XXX.IS.N.M"]
[{"$f":"\"INN.\"&EIGNIR!$B$3&C888","v":{"$error":"#N/A"}},{"$f":"SKULDIR!C157","v":0},".M.SFUINBI.XX.SLY.$$$.XXXX.SX.XXX.XXX.IS.N.M"]
[{"$f":"\"INN.\"&EIGNIR!$B$3&C889","v":{"$error":"#N/A"}},{"$f":"SKULDIR!C158","v":0},".M.SFUINBI.XX.FHL.$$$.XXXX.SX.XXX.XXX.IS.N.M"]
[{"$f":"\"INN.\"&EIGNIR!$B$3&C890","v":{"$error":"#N/A"}},{"$f":"SKULDIR!C159","v":0},".M.SFUINBI.XX.INF.$$$.XXXX.SX.XXX.XXX.IS.N.M"]
[{"$f":"\"INN.\"&EIGNIR!$B$3&C891","v":{"$error":"#N/A"}},{"$f":"SKULDIR!C160","v":0},".M.SFUINBI.XX.TRY.$$$.XXXX.SX.XXX.XXX.IS.N.M"]
[{"$f":"\"INN.\"&EIGNIR!$B$3&C892","v":{"$error":"#N/A"}},{"$f":"SKULDIR!C161","v":0},".M.SFUINBI.XX.LIF.$$$.XXXX.SX.XXX.XXX.IS.N.M"]
[{"$f":"\"INN.\"&EIGNIR!$B$3&C893","v":{"$error":"#N/A"}},{"$f":"SKULDIR!C162","v":0},".M.SFUINBI.XX.OPI.$$$.XXXX.SX.XXX.XXX.IS.N.M"]
[{"$f":"\"INN.\"&EIGNIR!$B$3&C894","v":{"$error":"#N/A"}},{"$f":"SKULDIR!C163","v":0},".M.SFUINBI.XX.RSS.$$$.XXXX.SX.XXX.XXX.IS.N.M"]
[{"$f":"\"INN.\"&EIGNIR!$B$3&C895","v":{"$error":"#N/A"}},{"$f":"SKULDIR!C164","v":0},".M.SFUINBI.XX.BAJ.$$$.XXXX.SX.XXX.XXX.IS.N.M"]
[{"$f":"\"INN.\"&EIGNIR!$B$3&C896","v":{"$error":"#N/A"}},{"$f":"SKULDIR!C165","v":0},".M.SFUINBI.XX.EIN.$$$.XXXX.SX.XXX.XXX.IS.N.M"]
[{"$f":"\"INN.\"&EIGNIR!$B$3&C897","v":{"$error":"#N/A"}},{"$f":"SKULDIR!C166","v":0},".M.SFUINBI.XX.NPH.$$$.XXXX.SX.XXX.XXX.IS.N.M"]
[{"$f":"\"INN.\"&EIGNIR!$B$3&C898","v":{"$error":"#N/A"}},{"$f":"SKULDIR!C167","v":0},".M.SFUINBI.XX.ERL.$$$.XXXX.SX.XXX.XXX.IS.N.M"]
[{"$f":"\"INN.\"&EIGNIR!$B$3&C899","v":{"$error":"#N/A"}},{"$f":"SKULDIR!C168","v":0},".M.SFUVB$$.XX.XXX.XXX.XXXX.SX.XXX.XXX.IS.N.M","//Verðbréfaútgáfa"]
[{"$f":"\"INN.\"&EIGNIR!$B$3&C900","v":{"$error":"#N/A"}},{"$f":"SKULDIR!C169","v":0},".M.SFUVBIV.XX.XXX.XXX.XXXX.SX.XXX.XXX.IS.N.M"]
[{"$f":"\"INN.\"&EIGNIR!$B$3&C901","v":{"$error":"#N/A"}},{"$f":"SKULDIR!C170","v":0},".M.SFUVBEV.XX.XXX.XXX.XXXX.SX.XXX.XXX.IS.N.M"]
[{"$f":"\"INN.\"&EIGNIR!$B$3&C902","v":{"$error":"#N/A"}},{"$f":"SKULDIR!C171","v":0},".M.SFUVL$$.XX.XXX.XXX.XXXX.SX.XXX.XXX.IS.N.M","//Víkjandi lán"]
[{"$f":"\"INN.\"&EIGNIR!$B$3&C903","v":{"$error":"#N/A"}},{"$f":"SKULDIR!C172","v":0},".M.SFUVLIN.XX.XXX.XXX.XXXX.SX.SKT.XXX.IS.N.M"]
[{"$f":"\"INN.\"&EIGNIR!$B$3&C904","v":{"$error":"#N/A"}},{"$f":"SKULDIR!C173","v":0},".M.SFUVLIN.XX.XXX.XXX.XXXX.SX.LAT.XXX.IS.N.M"]
[{"$f":"\"INN.\"&EIGNIR!$B$3&C905","v":{"$error":"#N/A"}},{"$f":"SKULDIR!C174","v":0},".M.SFUVLER.XX.XXX.XXX.XXXX.SX.SKT.XXX.IS.N.M"]
[{"$f":"\"INN.\"&EIGNIR!$B$3&C906","v":{"$error":"#N/A"}},{"$f":"SKULDIR!C175","v":0},".M.SFUVLER.XX.XXX.XXX.XXXX.SX.LAT.XXX.IS.N.M"]
[{"$f":"\"INN.\"&EIGNIR!$B$3&C907","v":{"$error":"#N/A"}},{"$f":"SKULDIR!C176","v":0},".M.SFUBL$$.XX.XXX.XXX.XXXX.SX.XXX.XXX.IS.N.M","//Beinar lántökur"]
[{"$f":"\"INN.\"&EIGNIR!$B$3&C908","v":{"$error":"#N/A"}},{"$f":"SKULDIR!C177","v":0},".M.SFUBLVL.XX.XXX.XXX.XXXX.SV.XXX.XXX.IS.N.M"]
[{"$f":"\"INN.\"&EIGNIR!$B$3&C909","v":{"$error":"#N/A"}},{"$f":"SKULDIR!C178","v":0},".M.SFUBLOL.XX.XXX.XXX.XXXX.SX.SKT.XXX.IS.N.M"]
[{"$f":"\"INN.\"&EIGNIR!$B$3&C910","v":{"$error":"#N/A"}},{"$f":"SKULDIR!C179","v":0},".M.SFUBLOL.XX.XXX.XXX.XXXX.SX.LAT.XXX.IS.N.M"]
[{"$f":"\"INN.\"&EIGNIR!$B$3&C911","v":{"$error":"#N/A"}},{"$f":"SKULDIR!C180","v":0},".M.SFTTF$$.XX.XXX.XXX.XXXX.SX.XXX.XXX.IS.N.M","//Fjárskuldbindingar á uppreiknuðu verði"]
[{"$f":"\"INN.\"&EIGNIR!$B$3&C912","v":{"$error":"#N/A"}},{"$f":"SKULDIR!C181","v":0},".M.SAA$$$$.XX.XXX.XXX.XXXX.SX.XXX.XXX.IS.N.M","//Afleiðusamningar áhættuvarna"]
[{"$f":"\"INN.\"&EIGNIR!$B$3&C913","v":{"$error":"#N/A"}},{"$f":"SKULDIR!C182","v":0},".M.SAAGV$$.XX.XXX.XXX.XXXX.SX.XXX.XXX.IS.N.M"]
[{"$f":"\"INN.\"&EIGNIR!$B$3&C914","v":{"$error":"#N/A"}},{"$f":"SKULDIR!C183","v":0},".M.SAASV$$.XX.XXX.XXX.XXXX.SX.XXX.XXX.IS.N.M"]
[{"$f":"\"INN.\"&EIGNIR!$B$3&C915","v":{"$error":"#N/A"}},{"$f":"SKULDIR!C184","v":0},".M.SAAGA$$.XX.XXX.XXX.XXXX.SX.XXX.XXX.IS.N.M"]
[{"$f":"\"INN.\"&EIGNIR!$B$3&C916","v":{"$error":"#N/A"}},{"$f":"SKULDIR!C185","v":0},".M.SAAVX$$.XX.XXX.XXX.XXXX.SX.XXX.XXX.IS.N.M"]
[{"$f":"\"INN.\"&EIGNIR!$B$3&C917","v":{"$error":"#N/A"}},{"$f":"SKULDIR!C186","v":0},".M.SAAVS$$.XX.XXX.XXX.XXXX.SX.XXX.XXX.IS.N.M"]
[{"$f":"\"INN.\"&EIGNIR!$B$3&C918","v":{"$error":"#N/A"}},{"$f":"SKULDIR!C187","v":0},".M.SAS$$$$.XX.XXX.XXX.XXXX.SX.XXX.XXX.IS.N.M","//Aðrar skuldir"]
[{"$f":"\"INN.\"&EIGNIR!$B$3&C919","v":{"$error":"#N/A"}},{"$f":"SKULDIR!C188","v":0},".M.SASRS$$.XX.XXX.XXX.XXXX.SX.XXX.XXX.IS.N.M"]
[{"$f":"\"INN.\"&EIGNIR!$B$3&C920","v":{"$error":"#N/A"}},{"$f":"SKULDIR!C189","v":0},".M.SASRSLS.XX.XXX.XXX.XXXX.SX.XXX.XXX.IS.N.M"]
[{"$f":"\"INN.\"&EIGNIR!$B$3&C921","v":{"$error":"#N/A"}},{"$f":"SKULDIR!C190","v":0},".M.SASRSAS.XX.XXX.XXX.XXXX.SX.XXX.XXX.IS.N.M"]
[{"$f":"\"INN.\"&EIGNIR!$B$3&C922","v":{"$error":"#N/A"}},{"$f":"SKULDIR!C191","v":0},".M.SASRSAR.XX.XXX.XXX.XXXX.SX.XXX.XXX.IS.N.M"]
[{"$f":"\"INN.\"&EIGNIR!$B$3&C923","v":{"$error":"#N/A"}},{"$f":"SKULDIR!C192","v":0},".M.SASSS$$.XX.XXX.XXX.XXXX.SX.XXX.XXX.IS.N.M"]
[{"$f":"\"INN.\"&EIGNIR!$B$3&C924","v":{"$error":"#N/A"}},{"$f":"SKULDIR!C193","v":0},".M.SASSSVS.XX.XXX.XXX.XXXX.SX.XXX.XXX.IS.N.M"]
[{"$f":"\"INN.\"&EIGNIR!$B$3&C925","v":{"$error":"#N/A"}},{"$f":"SKULDIR!C194","v":0},".M.SASSSFS.XX.XXX.XXX.XXXX.SX.XXX.XXX.IS.N.M"]
[{"$f":"\"INN.\"&EIGNIR!$B$3&C926","v":{"$error":"#N/A"}},{"$f":"SKULDIR!C195","v":0},".M.SASOD$$.XX.XXX.XXX.XXXX.SX.XXX.XXX.IS.N.M"]
[{"$f":"\"INN.\"&EIGNIR!$B$3&C927","v":{"$error":"#N/A"}},{"$f":"SKULDIR!C196","v":0},".M.SASODUP.XX.XXX.XXX.XXXX.SX.XXX.XXX.IS.N.M"]
[{"$f":"\"INN.\"&EIGNIR!$B$3&C928","v":{"$error":"#N/A"}},{"$f":"SKULDIR!C197","v":0},".M.SASODHE.XX.XXX.XXX.XXXX.SX.XXX.XXX.IS.N.M"]
[{"$f":"\"INN.\"&EIGNIR!$B$3&C929","v":{"$error":"#N/A"}},{"$f":"SKULDIR!C198","v":0},".M.SASODAI.XX.XXX.XXX.XXXX.SX.XXX.XXX.IS.N.M"]
[{"$f":"\"INN.\"&EIGNIR!$B$3&C930","v":{"$error":"#N/A"}},{"$f":"SKULDIR!C199","v":0},".M.SASODAO.XX.XXX.XXX.XXXX.SX.XXX.XXX.IS.N.M"]
[{"$f":"\"INN.\"&EIGNIR!$B$3&C931","v":{"$error":"#N/A"}},{"$f":"SKULDIR!C200","v":0},".M.SASAESK.XX.XXX.XXX.XXXX.SX.XXX.XXX.IS.N.M"]
[{"$f":"\"INN.\"&EIGNIR!$B$3&C932","v":{"$error":"#N/A"}},{"$f":"SKULDIR!C201","v":0},".M.SASAEVS.XX.XXX.XXX.XXXX.SX.XXX.XXX.IS.N.M"]
[{"$f":"\"INN.\"&EIGNIR!$B$3&C933","v":{"$error":"#N/A"}},{"$f":"SKULDIR!C202","v":0},".M.SASAEAO.XX.XXX.XXX.XXXX.SX.XXX.XXX.IS.N.M"]
[{"$f":"\"INN.\"&EIGNIR!$B$3&C934","v":{"$error":"#N/A"}},{"$f":"SKULDIR!C203","v":0},".M.S$$$$$$.XX.XXX.XXX.XXXX.SX.XXX.XXX.IS.N.M","//Skuldir samtals"]
[{"$f":"\"INN.\"&EIGNIR!$B$3&C935","v":{"$error":"#N/A"}},{"$f":"SKULDIR!C206","v":0},".M.SUBVB$$.XX.XXX.XXX.XXXX.SX.XXX.XXX.IS.N.M","//Grunnur til útreiknings bindiskyldu;Verðbréfaútgáfa"]
[{"$f":"\"INN.\"&EIGNIR!$B$3&C936","v":{"$error":"#N/A"}},{"$f":"SKULDIR!C207","v":0},".M.SUBVBP2.XX.XXX.XXX.XXXX.SX.XXX.XXX.IS.N.M"]
[{"$f":"\"INN.\"&EIGNIR!$B$3&C937","v":{"$error":"#N/A"}},{"$f":"SKULDIR!C208","v":0},".M.SUBVBO2.XX.XXX.XXX.XXXX.SX.XXX.XXX.IS.N.M"]
[{"$f":"\"INN.\"&EIGNIR!$B$3&C938","v":{"$error":"#N/A"}},{"$f":"SKULDIR!C209","v":0},".M.SUBVBO0.XX.XXX.XXX.XXXX.SX.XXX.XXX.IS.N.M"]
[{"$f":"\"INN.\"&EIGNIR!$B$3&C939","v":{"$error":"#N/A"}},{"$f":"SKULDIR!C210","v":0},".M.SUBVBUB.XX.XXX.XXX.XXXX.SX.XXX.XXX.IS.N.M"]
[{"$f":"\"INN.\"&EIGNIR!$B$3&C940","v":{"$error":"#N/A"}},{"$f":"SKULDIR!C211","v":0},".M.SUBIL$$.XX.XXX.XXX.XXXX.SX.XXX.XXX.IS.N.M","//Grunnur til útreiknings bindiskyldu;Innlán"]
[{"$f":"\"INN.\"&EIGNIR!$B$3&C941","v":{"$error":"#N/A"}},{"$f":"SKULDIR!C212","v":0},".M.SUBILI2.XX.XXX.XXX.XXXX.SX.XXX.XXX.IS.N.M"]
[{"$f":"\"INN.\"&EIGNIR!$B$3&C942","v":{"$error":"#N/A"}},{"$f":"SKULDIR!C213","v":0},".M.SUBILI0.XX.XXX.XXX.XXXX.SX.XXX.XXX.IS.N.M"]
[{"$f":"\"INN.\"&EIGNIR!$B$3&C943","v":{"$error":"#N/A"}},{"$f":"SKULDIR!C215","v":0},".M.SSISE$$.XX.XXX.XXX.XXXX.SX.XXX.XXX.XX.N.M","//Sundurliðun innlendra skulda skv. Eftirstöðvatíma"]
[{"$f":"\"INN.\"&EIGNIR!$B$3&C944","v":{"$error":"#N/A"}},{"$f":"SKULDIR!C216","v":0},".M.SSISEGK.XX.XXX.XXX.XXXX.SX.XXX.XXX.XX.N.M"]
[{"$f":"\"INN.\"&EIGNIR!$B$3&C945","v":{"$error":"#N/A"}},{"$f":"SKULDIR!C217","v":0},".M.SSISE3M.XX.XXX.XXX.XXXX.SX.SKT.XXX.XX.N.M"]
[{"$f":"\"INN.\"&EIGNIR!$B$3&C946","v":{"$error":"#N/A"}},{"$f":"SKULDIR!C218","v":0},".M.SSISE3Y.XX.XXX.XXX.XXXX.SX.SKT.XXX.XX.N.M"]
[{"$f":"\"INN.\"&EIGNIR!$B$3&C947","v":{"$error":"#N/A"}},{"$f":"SKULDIR!C219","v":0},".M.SSISEA2.XX.XXX.XXX.XXXX.SX.LAT.XXX.XX.N.M"]
[{"$f":"\"INN.\"&EIGNIR!$B$3&C948","v":{"$error":"#N/A"}},{"$f":"SKULDIR!C220","v":0},".M.SSISEA3.XX.XXX.XXX.XXXX.SX.LAT.XXX.XX.N.M"]
[{"$f":"\"INN.\"&EIGNIR!$B$3&C949","v":{"$error":"#N/A"}},{"$f":"SKULDIR!C221","v":0},".M.SSISEA5.XX.XXX.XXX.XXXX.SX.LAT.XXX.XX.N.M"]
[{"$f":"\"INN.\"&EIGNIR!$B$3&C950","v":{"$error":"#N/A"}},{"$f":"SKULDIR!C222","v":0},".M.SSISEY5.XX.XXX.XXX.XXXX.SX.LAT.XXX.XX.N.M"]
[{"$f":"\"INN.\"&EIGNIR!$B$3&C951","v":{"$error":"#N/A"}},{"$f":"SKULDIR!C224","v":0},".M.SSESE$$.XX.XXX.XXX.XXXX.SX.XXX.XXX.XX.N.M","//Sundurliðun erlendra skulda skv. Eftir stöðvatíma"]
[{"$f":"\"INN.\"&EIGNIR!$B$3&C952","v":{"$error":"#N/A"}},{"$f":"SKULDIR!C225","v":0},".M.SSESEGK.XX.XXX.XXX.XXXX.SX.XXX.XXX.XX.N.M"]
[{"$f":"\"INN.\"&EIGNIR!$B$3&C953","v":{"$error":"#N/A"}},{"$f":"SKULDIR!C226","v":0},".M.SSESE3M.XX.XXX.XXX.XXXX.SX.SKT.XXX.XX.N.M"]
[{"$f":"\"INN.\"&EIGNIR!$B$3&C954","v":{"$error":"#N/A"}},{"$f":"SKULDIR!C227","v":0},".M.SSESE3Y.XX.XXX.XXX.XXXX.SX.SKT.XXX.XX.N.M"]
[{"$f":"\"INN.\"&EIGNIR!$B$3&C955","v":{"$error":"#N/A"}},{"$f":"SKULDIR!C228","v":0},".M.SSESEA2.XX.XXX.XXX.XXXX.SX.LAT.XXX.XX.N.M"]
[{"$f":"\"INN.\"&EIGNIR!$B$3&C956","v":{"$error":"#N/A"}},{"$f":"SKULDIR!C229","v":0},".M.SSESEA3.XX.XXX.XXX.XXXX.SX.LAT.XXX.XX.N.M"]
[{"$f":"\"INN.\"&EIGNIR!$B$3&C957","v":{"$error":"#N/A"}},{"$f":"SKULDIR!C230","v":0},".M.SSESEA5.XX.XXX.XXX.XXXX.SX.LAT.XXX.XX.N.M"]
[{"$f":"\"INN.\"&EIGNIR!$B$3&C958","v":{"$error":"#N/A"}},{"$f":"SKULDIR!C231","v":0},".M.SSESEY5.XX.XXX.XXX.XXXX.SX.LAT.XXX.XX.N.M"]
[{"$f":"\"INN.\"&EIGNIR!$B$3&C959","v":{"$error":"#N/A"}},{"$f":"'Eigið fé'!C12","v":0},".M.SEFUH$$.XX.XXX.XXX.XXXX.SX.XXX.XXX.IS.N.M","//Eigið fé"]
[{"$f":"\"INN.\"&EIGNIR!$B$3&C960","v":{"$error":"#N/A"}},{"$f":"'Eigið fé'!C13","v":0},".M.SEFUHIB.XX.XXX.XXX.XXXX.SX.XXX.XXX.IS.N.M"]
[{"$f":"\"INN.\"&EIGNIR!$B$3&C961","v":{"$error":"#N/A"}},{"$f":"'Eigið fé'!C14","v":0},".M.SEFUHOI.XX.XXX.XXX.XXXX.SX.XXX.XXX.IS.N.M"]
[{"$f":"\"INN.\"&EIGNIR!$B$3&C962","v":{"$error":"#N/A"}},{"$f":"'Eigið fé'!C15","v":0},".M.SEFYVHF.XX.XXX.XXX.XXXX.SX.XXX.XXX.IS.N.M"]
[{"$f":"\"INN.\"&EIGNIR!$B$3&C963","v":{"$error":"#N/A"}},{"$f":"'Eigið fé'!C16","v":0},".M.SEFAEF$.XX.XXX.XXX.XXXX.SX.XXX.XXX.IS.N.M"]
[{"$f":"\"INN.\"&EIGNIR!$B$3&C964","v":{"$error":"#N/A"}},{"$f":"'Eigið fé'!C17","v":0},".M.SEFAEFG.XX.XXX.XXX.XXXX.SX.XXX.XXX.IS.N.M"]
[{"$f":"\"INN.\"&EIGNIR!$B$3&C965","v":{"$error":"#N/A"}},{"$f":"'Eigið fé'!C18","v":0},".M.SEFAEFK.XX.XXX.XXX.XXXX.SX.XXX.XXX.IS.N.M"]
[{"$f":"\"INN.\"&EIGNIR!$B$3&C966","v":{"$error":"#N/A"}},{"$f":"'Eigið fé'!C19","v":0},".M.SEFAEFA.XX.XXX.XXX.XXXX.SX.XXX.XXX.IS.N.M"]
[{"$f":"\"INN.\"&EIGNIR!$B$3&C967","v":{"$error":"#N/A"}},{"$f":"'Eigið fé'!C20","v":0},".M.SEFEMB$.XX.XXX.XXX.XXXX.SX.XXX.XXX.IS.N.M"]
[{"$f":"\"INN.\"&EIGNIR!$B$3&C968","v":{"$error":"#N/A"}},{"$f":"'Eigið fé'!C21","v":0},".M.SEFEMBV.XX.XXX.XXX.XXXX.SX.XXX.XXX.IS.N.M"]
[{"$f":"\"INN.\"&EIGNIR!$B$3&C969","v":{"$error":"#N/A"}},{"$f":"'Eigið fé'!C22","v":0},".M.SEFEMBO.XX.XXX.XXX.XXXX.SX.XXX.XXX.IS.N.M"]
[{"$f":"\"INN.\"&EIGNIR!$B$3&C970","v":{"$error":"#N/A"}},{"$f":"'Eigið fé'!C23","v":0},".M.SEFEMBG.XX.XXX.XXX.XXXX.SX.XXX.XXX.IS.N.M"]
[{"$f":"\"INN.\"&EIGNIR!$B$3&C971","v":{"$error":"#N/A"}},{"$f":"'Eigið fé'!C24","v":0},".M.SEFEMBT.XX.XXX.XXX.XXXX.SX.XXX.XXX.IS.N.M"]
[{"$f":"\"INN.\"&EIGNIR!$B$3&C972","v":{"$error":"#N/A"}},{"$f":"'Eigið fé'!C25","v":0},".M.SEFEMBS.XX.XXX.XXX.XXXX.SX.XXX.XXX.IS.N.M"]
[{"$f":"\"INN.\"&EIGNIR!$B$3&C973","v":{"$error":"#N/A"}},{"$f":"'Eigið fé'!C26","v":0},".M.SEFEMBE.XX.XXX.XXX.XXXX.SX.XXX.XXX.IS.N.M"]
[{"$f":"\"INN.\"&EIGNIR!$B$3&C974","v":{"$error":"#N/A"}},{"$f":"'Eigið fé'!C27","v":0},".M.SEFEMBF.XX.XXX.XXX.XXXX.SX.XXX.XXX.IS.N.M"]
[{"$f":"\"INN.\"&EIGNIR!$B$3&C975","v":{"$error":"#N/A"}},{"$f":"'Eigið fé'!C28","v":0},".M.SEFEMBA.XX.XXX.XXX.XXXX.SX.XXX.XXX.IS.N.M"]
[{"$f":"\"INN.\"&EIGNIR!$B$3&C976","v":{"$error":"#N/A"}},{"$f":"'Eigið fé'!C29","v":0},".M.SEFEOEF.XX.XXX.XXX.XXXX.SX.XXX.XXX.IS.N.M"]
[{"$f":"\"INN.\"&EIGNIR!$B$3&C977","v":{"$error":"#N/A"}},{"$f":"'Eigið fé'!C30","v":0},".M.SEFEHB$.XX.XXX.XXX.XXXX.SX.XXX.XXX.IS.N.M"]
[{"$f":"\"INN.\"&EIGNIR!$B$3&C978","v":{"$error":"#N/A"}},{"$f":"'Eigið fé'!C31","v":0},".M.SEFHTYA.XX.XXX.XXX.XXXX.SX.XXX.XXX.IS.N.M"]
[{"$f":"\"INN.\"&EIGNIR!$B$3&C979","v":{"$error":"#N/A"}},{"$f":"'Eigið fé'!C32","v":0},".M.SEFAIAR.XX.XXX.XXX.XXXX.SX.XXX.XXX.IS.N.M"]
[{"$f":"\"INN.\"&EIGNIR!$B$3&C980","v":{"$error":"#N/A"}},{"$f":"'Eigið fé'!C33","v":0},".M.SEF$$$$.XX.XXX.XXX.XXXX.SX.XXX.XXX.IS.N.M","//Eigið fé samtals"]
[{"$f":"\"INN.\"&EIGNIR!$B$3&C981","v":{"$error":"#N/A"}},{"$f":"Gengi!D7","v":0},".M.MIDGENG.XX.XXX.XXX.XXXX.SX.XXX.USD.IS.N.M","//Gengi, USD"]
[{"$f":"\"INN.\"&EIGNIR!$B$3&C982","v":{"$error":"#N/A"}},{"$f":"Gengi!D8","v":0},".M.MIDGENG.XX.XXX.XXX.XXXX.SX.XXX.GBP.IS.N.M"]
[{"$f":"\"INN.\"&EIGNIR!$B$3&C983","v":{"$error":"#N/A"}},{"$f":"Gengi!D9","v":0},".M.MIDGENG.XX.XXX.XXX.XXXX.SX.XXX.CAD.IS.N.M"]
[{"$f":"\"INN.\"&EIGNIR!$B$3&C984","v":{"$error":"#N/A"}},{"$f":"Gengi!D10","v":0},".M.MIDGENG.XX.XXX.XXX.XXXX.SX.XXX.DKK.IS.N.M"]
[{"$f":"\"INN.\"&EIGNIR!$B$3&C985","v":{"$error":"#N/A"}},{"$f":"Gengi!D11","v":0},".M.MIDGENG.XX.XXX.XXX.XXXX.SX.XXX.NOK.IS.N.M"]
[{"$f":"\"INN.\"&EIGNIR!$B$3&C986","v":{"$error":"#N/A"}},{"$f":"Gengi!D12","v":0},".M.MIDGENG.XX.XXX.XXX.XXXX.SX.XXX.SEK.IS.N.M"]
[{"$f":"\"INN.\"&EIGNIR!$B$3&C987","v":{"$error":"#N/A"}},{"$f":"Gengi!D13","v":0},".M.MIDGENG.XX.XXX.XXX.XXXX.SX.XXX.CHF.IS.N.M"]
[{"$f":"\"INN.\"&EIGNIR!$B$3&C988","v":{"$error":"#N/A"}},{"$f":"Gengi!D14","v":0},".M.MIDGENG.XX.XXX.XXX.XXXX.SX.XXX.JPY.IS.N.M"]
[{"$f":"\"INN.\"&EIGNIR!$B$3&C989","v":{"$error":"#N/A"}},{"$f":"Gengi!D15","v":0},".M.MIDGENG.XX.XXX.XXX.XXXX.SX.XXX.EUR.IS.N.M"]
[{"$f":"\"INN.\"&EIGNIR!$B$3&C990","v":{"$error":"#N/A"}},{"$f":"Gengi!D16","v":0},".M.MIDGENG.XX.XXX.XXX.XXXX.SX.XXX.CNY.IS.N.M"]
[{"$f":"\"INN.\"&EIGNIR!$B$3&C991","v":{"$error":"#N/A"}},{"$f":"Gengi!D17","v":0},".M.MIDGENG.XX.XXX.XXX.XXXX.SX.XXX.NZD.IS.N.M"]
[{"$f":"\"INN.\"&EIGNIR!$B$3&C992","v":{"$error":"#N/A"}},{"$f":"Gengi!D18","v":0},".M.MIDGENG.XX.XXX.XXX.XXXX.SX.XXX.AUD.IS.N.M"]
[{"$f":"\"INN.\"&EIGNIR!$B$3&C993","v":{"$error":"#N/A"}},{"$f":"Gengi!D19","v":0},".M.MIDGENG.XX.XXX.XXX.XXXX.SX.XXX.HKD.IS.N.M"]
[{"$f":"\"INN.\"&EIGNIR!$B$3&C994","v":{"$error":"#N/A"}},{"$f":"Gengi!D20","v":0},".M.MIDGENG.XX.XXX.XXX.XXXX.SX.XXX.ZAR.IS.N.M"]
[{"$f":"\"INN.\"&EIGNIR!$B$3&C995","v":{"$error":"#N/A"}},{"$f":"Gengi!D21","v":0},".M.MIDGENG.XX.XXX.XXX.XXXX.SX.XXX.CZK.IS.N.M"]
[{"$f":"\"INN.\"&EIGNIR!$B$3&C996","v":{"$error":"#N/A"}},{"$f":"Gengi!D22","v":0},".M.MIDGENG.XX.XXX.XXX.XXXX.SX.XXX.HUF.IS.N.M"]
[{"$f":"\"INN.\"&EIGNIR!$B$3&C997","v":{"$error":"#N/A"}},{"$f":"Gengi!D23","v":0},".M.MIDGENG.XX.XXX.XXX.XXXX.SX.XXX.TRY.IS.N.M"]
[{"$f":"\"INN.\"&EIGNIR!$B$3&C998","v":{"$error":"#N/A"}},{"$f":"Gengi!D24","v":0},".M.MIDGENG.XX.XXX.XXX.XXXX.SX.XXX.HRK.IS.N.M"]
[{"$f":"\"INN.\"&EIGNIR!$B$3&C999","v":{"$error":"#N/A"}},{"$f":"Gengi!D25","v":0},".M.MIDGENG.XX.XXX.XXX.XXXX.SX.XXX.PLN.IS.N.M"]
[{"$f":"\"INN.\"&EIGNIR!$B$3&C1000","v":{"$error":"#N/A"}},{"$f":"Gengi!D26","v":0},".M.MIDGENG.XX.XXX.XXX.XXXX.SX.XXX.RUB.IS.N.M"]
[{"$f":"\"INN.\"&EIGNIR!$B$3&C1001","v":{"$error":"#N/A"}},{"$f":"Gengi!D27","v":0},".M.MIDGENG.XX.XXX.XXX.XXXX.SX.XXX.EEK.IS.N.M"]
[{"$f":"\"INN.\"&EIGNIR!$B$3&C1002","v":{"$error":"#N/A"}},{"$f":"Gengi!D28","v":0},".M.MIDGENG.XX.XXX.XXX.XXXX.SX.XXX.LVL.IS.N.M"]
[{"$f":"\"INN.\"&EIGNIR!$B$3&C1003","v":{"$error":"#N/A"}},{"$f":"Gengi!D29","v":0},".M.MIDGENG.XX.XXX.XXX.XXXX.SX.XXX.LTL.IS.N.M"]
[{"$f":"\"INN.\"&EIGNIR!$B$3&C1004","v":{"$error":"#N/A"}},{"$f":"Gengi!D30","v":0},".M.MIDGENG.XX.XXX.XXX.XXXX.SX.XXX.NGN.IS.N.M"]
[{"$f":"\"INN.\"&EIGNIR!$B$3&C1005","v":{"$error":"#N/A"}},{"$f":"Gengi!D31","v":0},".M.MIDGENG.XX.XXX.XXX.XXXX.SX.XXX.TWD.IS.N.M"]
[{"$f":"\"INN.\"&EIGNIR!$B$3&C1006","v":{"$error":"#N/A"}},{"$f":"Gengi!D32","v":0},".M.MIDGENG.XX.XXX.XXX.XXXX.SX.XXX.KRW.IS.N.M"]
[{"$f":"\"INN.\"&EIGNIR!$B$3&C1007","v":{"$error":"#N/A"}},{"$f":"Gengi!D33","v":0},".M.MIDGENG.XX.XXX.XXX.XXXX.SX.XXX.SRD.IS.N.M"]
[{"$f":"\"INN.\"&EIGNIR!$B$3&C1008","v":{"$error":"#N/A"}},{"$f":"Gengi!D34","v":0},".M.MIDGENG.XX.XXX.XXX.XXXX.SX.XXX.ILS.IS.N.M"]
[{"$f":"\"INN.\"&EIGNIR!$B$3&C1009","v":{"$error":"#N/A"}},{"$f":"Gengi!D35","v":0},".M.MIDGENG.XX.XXX.XXX.XXXX.SX.XXX.SGD.IS.N.M"]
[{"$f":"\"INN.\"&EIGNIR!$B$3&C1010","v":{"$error":"#N/A"}},{"$f":"Gengi!D36","v":0},".M.MIDGENG.XX.XXX.XXX.XXXX.SX.XXX.MXN.IS.N.M"]
[{"$f":"\"INN.\"&EIGNIR!$B$3&C1011","v":{"$error":"#N/A"}},{"$f":"Gengi!D37","v":0},".M.MIDGENG.XX.XXX.XXX.XXXX.SX.XXX.MTL.IS.N.M"]
[{"$f":"\"INN.\"&EIGNIR!$B$3&C1012","v":{"$error":"#N/A"}},{"$f":"Gengi!D38","v":0},".M.MIDGENG.XX.XXX.XXX.XXXX.SX.XXX.INR.IS.N.M"]
[{"$f":"\"INN.\"&EIGNIR!$B$3&C1013","v":{"$error":"#N/A"}},{"$f":"Gengi!D39","v":0},".M.MIDGENG.XX.XXX.XXX.XXXX.SX.XXX.BGN.IS.N.M"]
[{"$f":"\"INN.\"&EIGNIR!$B$3&C1014","v":{"$error":"#N/A"}},{"$f":"Gengi!D40","v":0},".M.MIDGENG.XX.XXX.XXX.XXXX.SX.XXX.BRL.IS.N.M"]
[{"$f":"\"INN.\"&EIGNIR!$B$3&C1015","v":{"$error":"#N/A"}},{"$f":"Lönd!C5","v":0},".M.EUKULUE.XX.XXX.XXX.XXXX.SV.XXX.XXX.IS.N.M","//Landaskipting, Útlán til erlendra aðila"]
[{"$f":"\"INN.\"&EIGNIR!$B$3&C1016","v":{"$error":"#N/A"}},{"$f":"Lönd!C6","v":0},".M.EUKULUE.XX.XXX.XXX.XXXX.SV.XXX.XXX.AT.N.M"]
[{"$f":"\"INN.\"&EIGNIR!$B$3&C1017","v":{"$error":"#N/A"}},{"$f":"Lönd!C7","v":0},".M.EUKULUE.XX.XXX.XXX.XXXX.SV.XXX.XXX.US.N.M"]
[{"$f":"\"INN.\"&EIGNIR!$B$3&C1018","v":{"$error":"#N/A"}},{"$f":"Lönd!C8","v":0},".M.EUKULUE.XX.XXX.XXX.XXXX.SV.XXX.XXX.BE.N.M"]
[{"$f":"\"INN.\"&EIGNIR!$B$3&C1019","v":{"$error":"#N/A"}},{"$f":"Lönd!C9","v":0},".M.EUKULUE.XX.XXX.XXX.XXXX.SV.XXX.XXX.BR.N.M"]
[{"$f":"\"INN.\"&EIGNIR!$B$3&C1020","v":{"$error":"#N/A"}},{"$f":"Lönd!C10","v":0},".M.EUKULUE.XX.XXX.XXX.XXXX.SV.XXX.XXX.GB.N.M"]
[{"$f":"\"INN.\"&EIGNIR!$B$3&C1021","v":{"$error":"#N/A"}},{"$f":"Lönd!C11","v":0},".M.EUKULUE.XX.XXX.XXX.XXXX.SV.XXX.XXX.BG.N.M"]
[{"$f":"\"INN.\"&EIGNIR!$B$3&C1022","v":{"$error":"#N/A"}},{"$f":"Lönd!C12","v":0},".M.EUKULUE.XX.XXX.XXX.XXXX.SV.XXX.XXX.KY.N.M"]
[{"$f":"\"INN.\"&EIGNIR!$B$3&C1023","v":{"$error":"#N/A"}},{"$f":"Lönd!C13","v":0},".M.EUKULUE.XX.XXX.XXX.XXXX.SV.XXX.XXX.DK.N.M"]
[{"$f":"\"INN.\"&EIGNIR!$B$3&C1024","v":{"$error":"#N/A"}},{"$f":"Lönd!C14","v":0},".M.EUKULUE.XX.XXX.XXX.XXXX.SV.XXX.XXX.EE.N.M"]
[{"$f":"\"INN.\"&EIGNIR!$B$3&C1025","v":{"$error":"#N/A"}},{"$f":"Lönd!C15","v":0},".M.EUKULUE.XX.XXX.XXX.XXXX.SV.XXX.XXX.FI.N.M"]
[{"$f":"\"INN.\"&EIGNIR!$B$3&C1026","v":{"$error":"#N/A"}},{"$f":"Lönd!C16","v":0},".M.EUKULUE.XX.XXX.XXX.XXXX.SV.XXX.XXX.FR.N.M"]
[{"$f":"\"INN.\"&EIGNIR!$B$3&C1027","v":{"$error":"#N/A"}},{"$f":"Lönd!C17","v":0},".M.EUKULUE.XX.XXX.XXX.XXXX.SV.XXX.XXX.FO.N.M"]
[{"$f":"\"INN.\"&EIGNIR!$B$3&C1028","v":{"$error":"#N/A"}},{"$f":"Lönd!C18","v":0},".M.EUKULUE.XX.XXX.XXX.XXXX.SV.XXX.XXX.GR.N.M"]
[{"$f":"\"INN.\"&EIGNIR!$B$3&C1029","v":{"$error":"#N/A"}},{"$f":"Lönd!C19","v":0},".M.EUKULUE.XX.XXX.XXX.XXXX.SV.XXX.XXX.GG.N.M"]
[{"$f":"\"INN.\"&EIGNIR!$B$3&C1030","v":{"$error":"#N/A"}},{"$f":"Lönd!C20","v":0},".M.EUKULUE.XX.XXX.XXX.XXXX.SV.XXX.XXX.NL.N.M"]
[{"$f":"\"INN.\"&EIGNIR!$B$3&C1031","v":{"$error":"#N/A"}},{"$f":"Lönd!C21","v":0},".M.EUKULUE.XX.XXX.XXX.XXXX.SV.XXX.XXX.HK.N.M"]
[{"$f":"\"INN.\"&EIGNIR!$B$3&C1032","v":{"$error":"#N/A"}},{"$f":"Lönd!C22","v":0},".M.EUKULUE.XX.XXX.XXX.XXXX.SV.XXX.XXX.IN.N.M"]
[{"$f":"\"INN.\"&EIGNIR!$B$3&C1033","v":{"$error":"#N/A"}},{"$f":"Lönd!C23","v":0},".M.EUKULUE.XX.XXX.XXX.XXXX.SV.XXX.XXX.IE.N.M"]
[{"$f":"\"INN.\"&EIGNIR!$B$3&C1034","v":{"$error":"#N/A"}},{"$f":"Lönd!C24","v":0},".M.EUKULUE.XX.XXX.XXX.XXXX.SV.XXX.XXX.IT.N.M"]
[{"$f":"\"INN.\"&EIGNIR!$B$3&C1035","v":{"$error":"#N/A"}},{"$f":"Lönd!C25","v":0},".M.EUKULUE.XX.XXX.XXX.XXXX.SV.XXX.XXX.JP.N.M"]
[{"$f":"\"INN.\"&EIGNIR!$B$3&C1036","v":{"$error":"#N/A"}},{"$f":"Lönd!C26","v":0},".M.EUKULUE.XX.XXX.XXX.XXXX.SV.XXX.XXX.JE.N.M"]
[{"$f":"\"INN.\"&EIGNIR!$B$3&C1037","v":{"$error":"#N/A"}},{"$f":"Lönd!C27","v":0},".M.EUKULUE.XX.XXX.XXX.XXXX.SV.XXX.XXX.CA.N.M"]
[{"$f":"\"INN.\"&EIGNIR!$B$3&C1038","v":{"$error":"#N/A"}},{"$f":"Lönd!C28","v":0},".M.EUKULUE.XX.XXX.XXX.XXXX.SV.XXX.XXX.CN.N.M"]
[{"$f":"\"INN.\"&EIGNIR!$B$3&C1039","v":{"$error":"#N/A"}},{"$f":"Lönd!C29","v":0},".M.EUKULUE.XX.XXX.XXX.XXXX.SV.XXX.XXX.HR.N.M"]
[{"$f":"\"INN.\"&EIGNIR!$B$3&C1040","v":{"$error":"#N/A"}},{"$f":"Lönd!C30","v":0},".M.EUKULUE.XX.XXX.XXX.XXXX.SV.XXX.XXX.CY.N.M"]
[{"$f":"\"INN.\"&EIGNIR!$B$3&C1041","v":{"$error":"#N/A"}},{"$f":"Lönd!C31","v":0},".M.EUKULUE.XX.XXX.XXX.XXXX.SV.XXX.XXX.LV.N.M"]
[{"$f":"\"INN.\"&EIGNIR!$B$3&C1042","v":{"$error":"#N/A"}},{"$f":"Lönd!C32","v":0},".M.EUKULUE.XX.XXX.XXX.XXXX.SV.XXX.XXX.LT.N.M"]
[{"$f":"\"INN.\"&EIGNIR!$B$3&C1043","v":{"$error":"#N/A"}},{"$f":"Lönd!C33","v":0},".M.EUKULUE.XX.XXX.XXX.XXXX.SV.XXX.XXX.LX.N.M"]
[{"$f":"\"INN.\"&EIGNIR!$B$3&C1044","v":{"$error":"#N/A"}},{"$f":"Lönd!C34","v":0},".M.EUKULUE.XX.XXX.XXX.XXXX.SV.XXX.XXX.MT.N.M"]
[{"$f":"\"INN.\"&EIGNIR!$B$3&C1045","v":{"$error":"#N/A"}},{"$f":"Lönd!C35","v":0},".M.EUKULUE.XX.XXX.XXX.XXXX.SV.XXX.XXX.NO.N.M"]
[{"$f":"\"INN.\"&EIGNIR!$B$3&C1046","v":{"$error":"#N/A"}},{"$f":"Lönd!C36","v":0},".M.EUKULUE.XX.XXX.XXX.XXXX.SV.XXX.XXX.PT.N.M"]
[{"$f":"\"INN.\"&EIGNIR!$B$3&C1047","v":{"$error":"#N/A"}},{"$f":"Lönd!C37","v":0},".M.EUKULUE.XX.XXX.XXX.XXXX.SV.XXX.XXX.PL.N.M"]
[{"$f":"\"INN.\"&EIGNIR!$B$3&C1048","v":{"$error":"#N/A"}},{"$f":"Lönd!C38","v":0},".M.EUKULUE.XX.XXX.XXX.XXXX.SV.XXX.XXX.RO.N.M"]
[{"$f":"\"INN.\"&EIGNIR!$B$3&C1049","v":{"$error":"#N/A"}},{"$f":"Lönd!C39","v":0},".M.EUKULUE.XX.XXX.XXX.XXXX.SV.XXX.XXX.RU.N.M"]
[{"$f":"\"INN.\"&EIGNIR!$B$3&C1050","v":{"$error":"#N/A"}},{"$f":"Lönd!C40","v":0},".M.EUKULUE.XX.XXX.XXX.XXXX.SV.XXX.XXX.SK.N.M"]
[{"$f":"\"INN.\"&EIGNIR!$B$3&C1051","v":{"$error":"#N/A"}},{"$f":"Lönd!C41","v":0},".M.EUKULUE.XX.XXX.XXX.XXXX.SV.XXX.XXX.SI.N.M"]
[{"$f":"\"INN.\"&EIGNIR!$B$3&C1052","v":{"$error":"#N/A"}},{"$f":"Lönd!C42","v":0},".M.EUKULUE.XX.XXX.XXX.XXXX.SV.XXX.XXX.ES.N.M"]
[{"$f":"\"INN.\"&EIGNIR!$B$3&C1053","v":{"$error":"#N/A"}},{"$f":"Lönd!C43","v":0},".M.EUKULUE.XX.XXX.XXX.XXXX.SV.XXX.XXX.CH.N.M"]
[{"$f":"\"INN.\"&EIGNIR!$B$3&C1054","v":{"$error":"#N/A"}},{"$f":"Lönd!C44","v":0},".M.EUKULUE.XX.XXX.XXX.XXXX.SV.XXX.XXX.SE.N.M"]
[{"$f":"\"INN.\"&EIGNIR!$B$3&C1055","v":{"$error":"#N/A"}},{"$f":"Lönd!C45","v":0},".M.EUKULUE.XX.XXX.XXX.XXXX.SV.XXX.XXX.CZ.N.M"]
[{"$f":"\"INN.\"&EIGNIR!$B$3&C1056","v":{"$error":"#N/A"}},{"$f":"Lönd!C46","v":0},".M.EUKULUE.XX.XXX.XXX.XXXX.SV.XXX.XXX.HU.N.M"]
[{"$f":"\"INN.\"&EIGNIR!$B$3&C1057","v":{"$error":"#N/A"}},{"$f":"Lönd!C47","v":0},".M.EUKULUE.XX.XXX.XXX.XXXX.SV.XXX.XXX.DE.N.M"]
[{"$f":"\"INN.\"&EIGNIR!$B$3&C1058","v":{"$error":"#N/A"}},{"$f":"Lönd!C48","v":0},".M.EUKULUE.XX.XXX.XXX.XXXX.SV.XXX.XXX.XX.N.M"]
[{"$f":"\"INN.\"&EIGNIR!$B$3&C1059","v":{"$error":"#N/A"}},{"$f":"Lönd!C49","v":0},".M.EUKULUE.XX.XXX.XXX.XXXX.SV.XXX.XXX.4F.N.M"]
[{"$f":"\"INN.\"&EIGNIR!$B$3&C1060","v":{"$error":"#N/A"}},{"$f":"Lönd!C50","v":0},".M.EUKULUE.XX.XXX.XXX.XXXX.SV.XXX.XXX.4C.N.M"]
[{"$f":"\"INN.\"&EIGNIR!$B$3&C1061","v":{"$error":"#N/A"}},{"$f":"Lönd!C51","v":0},".M.EUKULUE.XX.XXX.XXX.XXXX.SV.XXX.XXX.4J.N.M"]
[{"$f":"\"INN.\"&EIGNIR!$B$3&C1062","v":{"$error":"#N/A"}},{"$f":"Lönd!C52","v":0},".M.EUKULUE.XX.XXX.XXX.XXXX.SV.XXX.XXX.4S.N.M"]
[{"$f":"\"INN.\"&EIGNIR!$B$3&C1063","v":{"$error":"#N/A"}},{"$f":"Lönd!C53","v":0},".M.EUKULUE.XX.XXX.XXX.XXXX.SV.XXX.XXX.1C.N.M"]
[{"$f":"\"INN.\"&EIGNIR!$B$3&C1064","v":{"$error":"#N/A"}},{"$f":"Lönd!C54","v":0},".M.EUKULUE.XX.XXX.XXX.XXXX.SV.XXX.XXX.5Z.N.M"]
[{"$f":"\"INN.\"&EIGNIR!$B$3&C1065","v":{"$error":"#N/A"}},{"$f":"Lönd!D6","v":0},".M.EUKNFER.XX.XXX.XXX.XXXX.SV.XXX.XXX.AT.N.M","//Niðurfærslur útlána til erlendra aðila"]
[{"$f":"\"INN.\"&EIGNIR!$B$3&C1066","v":{"$error":"#N/A"}},{"$f":"Lönd!D7","v":0},".M.EUKNFER.XX.XXX.XXX.XXXX.SV.XXX.XXX.US.N.M"]
[{"$f":"\"INN.\"&EIGNIR!$B$3&C1067","v":{"$error":"#N/A"}},{"$f":"Lönd!D8","v":0},".M.EUKNFER.XX.XXX.XXX.XXXX.SV.XXX.XXX.BE.N.M"]
[{"$f":"\"INN.\"&EIGNIR!$B$3&C1068","v":{"$error":"#N/A"}},{"$f":"Lönd!D9","v":0},".M.EUKNFER.XX.XXX.XXX.XXXX.SV.XXX.XXX.BR.N.M"]
[{"$f":"\"INN.\"&EIGNIR!$B$3&C1069","v":{"$error":"#N/A"}},{"$f":"Lönd!D10","v":0},".M.EUKNFER.XX.XXX.XXX.XXXX.SV.XXX.XXX.GB.N.M"]
[{"$f":"\"INN.\"&EIGNIR!$B$3&C1070","v":{"$error":"#N/A"}},{"$f":"Lönd!D11","v":0},".M.EUKNFER.XX.XXX.XXX.XXXX.SV.XXX.XXX.BG.N.M"]
[{"$f":"\"INN.\"&EIGNIR!$B$3&C1071","v":{"$error":"#N/A"}},{"$f":"Lönd!D12","v":0},".M.EUKNFER.XX.XXX.XXX.XXXX.SV.XXX.XXX.KY.N.M"]
[{"$f":"\"INN.\"&EIGNIR!$B$3&C1072","v":{"$error":"#N/A"}},{"$f":"Lönd!D13","v":0},".M.EUKNFER.XX.XXX.XXX.XXXX.SV.XXX.XXX.DK.N.M"]
[{"$f":"\"INN.\"&EIGNIR!$B$3&C1073","v":{"$error":"#N/A"}},{"$f":"Lönd!D14","v":0},".M.EUKNFER.XX.XXX.XXX.XXXX.SV.XXX.XXX.EE.N.M"]
[{"$f":"\"INN.\"&EIGNIR!$B$3&C1074","v":{"$error":"#N/A"}},{"$f":"Lönd!D15","v":0},".M.EUKNFER.XX.XXX.XXX.XXXX.SV.XXX.XXX.FI.N.M"]
[{"$f":"\"INN.\"&EIGNIR!$B$3&C1075","v":{"$error":"#N/A"}},{"$f":"Lönd!D16","v":0},".M.EUKNFER.XX.XXX.XXX.XXXX.SV.XXX.XXX.FR.N.M"]
[{"$f":"\"INN.\"&EIGNIR!$B$3&C1076","v":{"$error":"#N/A"}},{"$f":"Lönd!D17","v":0},".M.EUKNFER.XX.XXX.XXX.XXXX.SV.XXX.XXX.FO.N.M"]
[{"$f":"\"INN.\"&EIGNIR!$B$3&C1077","v":{"$error":"#N/A"}},{"$f":"Lönd!D18","v":0},".M.EUKNFER.XX.XXX.XXX.XXXX.SV.XXX.XXX.GR.N.M"]
[{"$f":"\"INN.\"&EIGNIR!$B$3&C1078","v":{"$error":"#N/A"}},{"$f":"Lönd!D19","v":0},".M.EUKNFER.XX.XXX.XXX.XXXX.SV.XXX.XXX.GG.N.M"]
[{"$f":"\"INN.\"&EIGNIR!$B$3&C1079","v":{"$error":"#N/A"}},{"$f":"Lönd!D20","v":0},".M.EUKNFER.XX.XXX.XXX.XXXX.SV.XXX.XXX.NL.N.M"]
[{"$f":"\"INN.\"&EIGNIR!$B$3&C1080","v":{"$error":"#N/A"}},{"$f":"Lönd!D21","v":0},".M.EUKNFER.XX.XXX.XXX.XXXX.SV.XXX.XXX.HK.N.M"]
[{"$f":"\"INN.\"&EIGNIR!$B$3&C1081","v":{"$error":"#N/A"}},{"$f":"Lönd!D22","v":0},".M.EUKNFER.XX.XXX.XXX.XXXX.SV.XXX.XXX.IN.N.M"]
[{"$f":"\"INN.\"&EIGNIR!$B$3&C1082","v":{"$error":"#N/A"}},{"$f":"Lönd!D23","v":0},".M.EUKNFER.XX.XXX.XXX.XXXX.SV.XXX.XXX.IE.N.M"]
[{"$f":"\"INN.\"&EIGNIR!$B$3&C1083","v":{"$error":"#N/A"}},{"$f":"Lönd!D24","v":0},".M.EUKNFER.XX.XXX.XXX.XXXX.SV.XXX.XXX.IT.N.M"]
[{"$f":"\"INN.\"&EIGNIR!$B$3&C1084","v":{"$error":"#N/A"}},{"$f":"Lönd!D25","v":0},".M.EUKNFER.XX.XXX.XXX.XXXX.SV.XXX.XXX.JP.N.M"]
[{"$f":"\"INN.\"&EIGNIR!$B$3&C1085","v":{"$error":"#N/A"}},{"$f":"Lönd!D26","v":0},".M.EUKNFER.XX.XXX.XXX.XXXX.SV.XXX.XXX.JE.N.M"]
[{"$f":"\"INN.\"&EIGNIR!$B$3&C1086","v":{"$error":"#N/A"}},{"$f":"Lönd!D27","v":0},".M.EUKNFER.XX.XXX.XXX.XXXX.SV.XXX.XXX.CA.N.M"]
[{"$f":"\"INN.\"&EIGNIR!$B$3&C1087","v":{"$error":"#N/A"}},{"$f":"Lönd!D28","v":0},".M.EUKNFER.XX.XXX.XXX.XXXX.SV.XXX.XXX.CN.N.M"]
[{"$f":"\"INN.\"&EIGNIR!$B$3&C1088","v":{"$error":"#N/A"}},{"$f":"Lönd!D29","v":0},".M.EUKNFER.XX.XXX.XXX.XXXX.SV.XXX.XXX.HR.N.M"]
[{"$f":"\"INN.\"&EIGNIR!$B$3&C1089","v":{"$error":"#N/A"}},{"$f":"Lönd!D30","v":0},".M.EUKNFER.XX.XXX.XXX.XXXX.SV.XXX.XXX.CY.N.M"]
[{"$f":"\"INN.\"&EIGNIR!$B$3&C1090","v":{"$error":"#N/A"}},{"$f":"Lönd!D31","v":0},".M.EUKNFER.XX.XXX.XXX.XXXX.SV.XXX.XXX.LV.N.M"]
[{"$f":"\"INN.\"&EIGNIR!$B$3&C1091","v":{"$error":"#N/A"}},{"$f":"Lönd!D32","v":0},".M.EUKNFER.XX.XXX.XXX.XXXX.SV.XXX.XXX.LT.N.M"]
[{"$f":"\"INN.\"&EIGNIR!$B$3&C1092","v":{"$error":"#N/A"}},{"$f":"Lönd!D33","v":0},".M.EUKNFER.XX.XXX.XXX.XXXX.SV.XXX.XXX.LX.N.M"]
[{"$f":"\"INN.\"&EIGNIR!$B$3&C1093","v":{"$error":"#N/A"}},{"$f":"Lönd!D34","v":0},".M.EUKNFER.XX.XXX.XXX.XXXX.SV.XXX.XXX.MT.N.M"]
[{"$f":"\"INN.\"&EIGNIR!$B$3&C1094","v":{"$error":"#N/A"}},{"$f":"Lönd!D35","v":0},".M.EUKNFER.XX.XXX.XXX.XXXX.SV.XXX.XXX.NO.N.M"]
[{"$f":"\"INN.\"&EIGNIR!$B$3&C1095","v":{"$error":"#N/A"}},{"$f":"Lönd!D36","v":0},".M.EUKNFER.XX.XXX.XXX.XXXX.SV.XXX.XXX.PT.N.M"]
[{"$f":"\"INN.\"&EIGNIR!$B$3&C1096","v":{"$error":"#N/A"}},{"$f":"Lönd!D37","v":0},".M.EUKNFER.XX.XXX.XXX.XXXX.SV.XXX.XXX.PL.N.M"]
[{"$f":"\"INN.\"&EIGNIR!$B$3&C1097","v":{"$error":"#N/A"}},{"$f":"Lönd!D38","v":0},".M.EUKNFER.XX.XXX.XXX.XXXX.SV.XXX.XXX.RO.N.M"]
[{"$f":"\"INN.\"&EIGNIR!$B$3&C1098","v":{"$error":"#N/A"}},{"$f":"Lönd!D39","v":0},".M.EUKNFER.XX.XXX.XXX.XXXX.SV.XXX.XXX.RU.N.M"]
[{"$f":"\"INN.\"&EIGNIR!$B$3&C1099","v":{"$error":"#N/A"}},{"$f":"Lönd!D40","v":0},".M.EUKNFER.XX.XXX.XXX.XXXX.SV.XXX.XXX.SK.N.M"]
[{"$f":"\"INN.\"&EIGNIR!$B$3&C1100","v":{"$error":"#N/A"}},{"$f":"Lönd!D41","v":0},".M.EUKNFER.XX.XXX.XXX.XXXX.SV.XXX.XXX.SI.N.M"]
[{"$f":"\"INN.\"&EIGNIR!$B$3&C1101","v":{"$error":"#N/A"}},{"$f":"Lönd!D42","v":0},".M.EUKNFER.XX.XXX.XXX.XXXX.SV.XXX.XXX.ES.N.M"]
[{"$f":"\"INN.\"&EIGNIR!$B$3&C1102","v":{"$error":"#N/A"}},{"$f":"Lönd!D43","v":0},".M.EUKNFER.XX.XXX.XXX.XXXX.SV.XXX.XXX.CH.N.M"]
[{"$f":"\"INN.\"&EIGNIR!$B$3&C1103","v":{"$error":"#N/A"}},{"$f":"Lönd!D44","v":0},".M.EUKNFER.XX.XXX.XXX.XXXX.SV.XXX.XXX.SE.N.M"]
[{"$f":"\"INN.\"&EIGNIR!$B$3&C1104","v":{"$error":"#N/A"}},{"$f":"Lönd!D45","v":0},".M.EUKNFER.XX.XXX.XXX.XXXX.SV.XXX.XXX.CZ.N.M"]
[{"$f":"\"INN.\"&EIGNIR!$B$3&C1105","v":{"$error":"#N/A"}},{"$f":"Lönd!D46","v":0},".M.EUKNFER.XX.XXX.XXX.XXXX.SV.XXX.XXX.HU.N.M"]
[{"$f":"\"INN.\"&EIGNIR!$B$3&C1106","v":{"$error":"#N/A"}},{"$f":"Lönd!D47","v":0},".M.EUKNFER.XX.XXX.XXX.XXXX.SV.XXX.XXX.DE.N.M"]
[{"$f":"\"INN.\"&EIGNIR!$B$3&C1107","v":{"$error":"#N/A"}},{"$f":"Lönd!D48","v":0},".M.EUKNFER.XX.XXX.XXX.XXXX.SV.XXX.XXX.XX.N.M"]
[{"$f":"\"INN.\"&EIGNIR!$B$3&C1108","v":{"$error":"#N/A"}},{"$f":"Lönd!D49","v":0},".M.EUKNFER.XX.XXX.XXX.XXXX.SV.XXX.XXX.4F.N.M"]
[{"$f":"\"INN.\"&EIGNIR!$B$3&C1109","v":{"$error":"#N/A"}},{"$f":"Lönd!D50","v":0},".M.EUKNFER.XX.XXX.XXX.XXXX.SV.XXX.XXX.4C.N.M"]
[{"$f":"\"INN.\"&EIGNIR!$B$3&C1110","v":{"$error":"#N/A"}},{"$f":"Lönd!D51","v":0},".M.EUKNFER.XX.XXX.XXX.XXXX.SV.XXX.XXX.4J.N.M"]
[{"$f":"\"INN.\"&EIGNIR!$B$3&C1111","v":{"$error":"#N/A"}},{"$f":"Lönd!D52","v":0},".M.EUKNFER.XX.XXX.XXX.XXXX.SV.XXX.XXX.4S.N.M"]
[{"$f":"\"INN.\"&EIGNIR!$B$3&C1112","v":{"$error":"#N/A"}},{"$f":"Lönd!D53","v":0},".M.EUKNFER.XX.XXX.XXX.XXXX.SV.XXX.XXX.1C.N.M"]
[{"$f":"\"INN.\"&EIGNIR!$B$3&C1113","v":{"$error":"#N/A"}},{"$f":"Lönd!D54","v":0},".M.EUKNFER.XX.XXX.XXX.XXXX.SV.XXX.XXX.5Z.N.M"]
[{"$f":"\"INN.\"&EIGNIR!$B$3&C1114","v":{"$error":"#N/A"}},{"$f":"Lönd!E5","v":0},".M.EVBHB$$.XX.XXX.XXX.XXXX.SV.XXX.XXX.IS.N.M","//Erlend hlutabréf"]
[{"$f":"\"INN.\"&EIGNIR!$B$3&C1115","v":{"$error":"#N/A"}},{"$f":"Lönd!E6","v":0},".M.EVBHB$$.XX.XXX.XXX.XXXX.SV.XXX.XXX.AT.N.M"]
[{"$f":"\"INN.\"&EIGNIR!$B$3&C1116","v":{"$error":"#N/A"}},{"$f":"Lönd!E7","v":0},".M.EVBHB$$.XX.XXX.XXX.XXXX.SV.XXX.XXX.US.N.M"]
[{"$f":"\"INN.\"&EIGNIR!$B$3&C1117","v":{"$error":"#N/A"}},{"$f":"Lönd!E8","v":0},".M.EVBHB$$.XX.XXX.XXX.XXXX.SV.XXX.XXX.BE.N.M"]
[{"$f":"\"INN.\"&EIGNIR!$B$3&C1118","v":{"$error":"#N/A"}},{"$f":"Lönd!E9","v":0},".M.EVBHB$$.XX.XXX.XXX.XXXX.SV.XXX.XXX.BR.N.M"]
[{"$f":"\"INN.\"&EIGNIR!$B$3&C1119","v":{"$error":"#N/A"}},{"$f":"Lönd!E10","v":0},".M.EVBHB$$.XX.XXX.XXX.XXXX.SV.XXX.XXX.GB.N.M"]
[{"$f":"\"INN.\"&EIGNIR!$B$3&C1120","v":{"$error":"#N/A"}},{"$f":"Lönd!E11","v":0},".M.EVBHB$$.XX.XXX.XXX.XXXX.SV.XXX.XXX.BG.N.M"]
[{"$f":"\"INN.\"&EIGNIR!$B$3&C1121","v":{"$error":"#N/A"}},{"$f":"Lönd!E12","v":0},".M.EVBHB$$.XX.XXX.XXX.XXXX.SV.XXX.XXX.KY.N.M"]
[{"$f":"\"INN.\"&EIGNIR!$B$3&C1122","v":{"$error":"#N/A"}},{"$f":"Lönd!E13","v":0},".M.EVBHB$$.XX.XXX.XXX.XXXX.SV.XXX.XXX.DK.N.M"]
[{"$f":"\"INN.\"&EIGNIR!$B$3&C1123","v":{"$error":"#N/A"}},{"$f":"Lönd!E14","v":0},".M.EVBHB$$.XX.XXX.XXX.XXXX.SV.XXX.XXX.EE.N.M"]
[{"$f":"\"INN.\"&EIGNIR!$B$3&C1124","v":{"$error":"#N/A"}},{"$f":"Lönd!E15","v":0},".M.EVBHB$$.XX.XXX.XXX.XXXX.SV.XXX.XXX.FI.N.M"]
[{"$f":"\"INN.\"&EIGNIR!$B$3&C1125","v":{"$error":"#N/A"}},{"$f":"Lönd!E16","v":0},".M.EVBHB$$.XX.XXX.XXX.XXXX.SV.XXX.XXX.FR.N.M"]
[{"$f":"\"INN.\"&EIGNIR!$B$3&C1126","v":{"$error":"#N/A"}},{"$f":"Lönd!E17","v":0},".M.EVBHB$$.XX.XXX.XXX.XXXX.SV.XXX.XXX.FO.N.M"]
[{"$f":"\"INN.\"&EIGNIR!$B$3&C1127","v":{"$error":"#N/A"}},{"$f":"Lönd!E18","v":0},".M.EVBHB$$.XX.XXX.XXX.XXXX.SV.XXX.XXX.GR.N.M"]
[{"$f":"\"INN.\"&EIGNIR!$B$3&C1128","v":{"$error":"#N/A"}},{"$f":"Lönd!E19","v":0},".M.EVBHB$$.XX.XXX.XXX.XXXX.SV.XXX.XXX.GG.N.M"]
[{"$f":"\"INN.\"&EIGNIR!$B$3&C1129","v":{"$error":"#N/A"}},{"$f":"Lönd!E20","v":0},".M.EVBHB$$.XX.XXX.XXX.XXXX.SV.XXX.XXX.NL.N.M"]
[{"$f":"\"INN.\"&EIGNIR!$B$3&C1130","v":{"$error":"#N/A"}},{"$f":"Lönd!E21","v":0},".M.EVBHB$$.XX.XXX.XXX.XXXX.SV.XXX.XXX.HK.N.M"]
[{"$f":"\"INN.\"&EIGNIR!$B$3&C1131","v":{"$error":"#N/A"}},{"$f":"Lönd!E22","v":0},".M.EVBHB$$.XX.XXX.XXX.XXXX.SV.XXX.XXX.IN.N.M"]
[{"$f":"\"INN.\"&EIGNIR!$B$3&C1132","v":{"$error":"#N/A"}},{"$f":"Lönd!E23","v":0},".M.EVBHB$$.XX.XXX.XXX.XXXX.SV.XXX.XXX.IE.N.M"]
[{"$f":"\"INN.\"&EIGNIR!$B$3&C1133","v":{"$error":"#N/A"}},{"$f":"Lönd!E24","v":0},".M.EVBHB$$.XX.XXX.XXX.XXXX.SV.XXX.XXX.IT.N.M"]
[{"$f":"\"INN.\"&EIGNIR!$B$3&C1134","v":{"$error":"#N/A"}},{"$f":"Lönd!E25","v":0},".M.EVBHB$$.XX.XXX.XXX.XXXX.SV.XXX.XXX.JP.N.M"]
[{"$f":"\"INN.\"&EIGNIR!$B$3&C1135","v":{"$error":"#N/A"}},{"$f":"Lönd!E26","v":0},".M.EVBHB$$.XX.XXX.XXX.XXXX.SV.XXX.XXX.JE.N.M"]
[{"$f":"\"INN.\"&EIGNIR!$B$3&C1136","v":{"$error":"#N/A"}},{"$f":"Lönd!E27","v":0},".M.EVBHB$$.XX.XXX.XXX.XXXX.SV.XXX.XXX.CA.N.M"]
[{"$f":"\"INN.\"&EIGNIR!$B$3&C1137","v":{"$error":"#N/A"}},{"$f":"Lönd!E28","v":0},".M.EVBHB$$.XX.XXX.XXX.XXXX.SV.XXX.XXX.CN.N.M"]
[{"$f":"\"INN.\"&EIGNIR!$B$3&C1138","v":{"$error":"#N/A"}},{"$f":"Lönd!E29","v":0},".M.EVBHB$$.XX.XXX.XXX.XXXX.SV.XXX.XXX.HR.N.M"]
[{"$f":"\"INN.\"&EIGNIR!$B$3&C1139","v":{"$error":"#N/A"}},{"$f":"Lönd!E30","v":0},".M.EVBHB$$.XX.XXX.XXX.XXXX.SV.XXX.XXX.CY.N.M"]
[{"$f":"\"INN.\"&EIGNIR!$B$3&C1140","v":{"$error":"#N/A"}},{"$f":"Lönd!E31","v":0},".M.EVBHB$$.XX.XXX.XXX.XXXX.SV.XXX.XXX.LV.N.M"]
[{"$f":"\"INN.\"&EIGNIR!$B$3&C1141","v":{"$error":"#N/A"}},{"$f":"Lönd!E32","v":0},".M.EVBHB$$.XX.XXX.XXX.XXXX.SV.XXX.XXX.LT.N.M"]
[{"$f":"\"INN.\"&EIGNIR!$B$3&C1142","v":{"$error":"#N/A"}},{"$f":"Lönd!E33","v":0},".M.EVBHB$$.XX.XXX.XXX.XXXX.SV.XXX.XXX.LX.N.M"]
[{"$f":"\"INN.\"&EIGNIR!$B$3&C1143","v":{"$error":"#N/A"}},{"$f":"Lönd!E34","v":0},".M.EVBHB$$.XX.XXX.XXX.XXXX.SV.XXX.XXX.MT.N.M"]
[{"$f":"\"INN.\"&EIGNIR!$B$3&C1144","v":{"$error":"#N/A"}},{"$f":"Lönd!E35","v":0},".M.EVBHB$$.XX.XXX.XXX.XXXX.SV.XXX.XXX.NO.N.M"]
[{"$f":"\"INN.\"&EIGNIR!$B$3&C1145","v":{"$error":"#N/A"}},{"$f":"Lönd!E36","v":0},".M.EVBHB$$.XX.XXX.XXX.XXXX.SV.XXX.XXX.PT.N.M"]
[{"$f":"\"INN.\"&EIGNIR!$B$3&C1146","v":{"$error":"#N/A"}},{"$f":"Lönd!E37","v":0},".M.EVBHB$$.XX.XXX.XXX.XXXX.SV.XXX.XXX.PL.N.M"]
[{"$f":"\"INN.\"&EIGNIR!$B$3&C1147","v":{"$error":"#N/A"}},{"$f":"Lönd!E38","v":0},".M.EVBHB$$.XX.XXX.XXX.XXXX.SV.XXX.XXX.RO.N.M"]
[{"$f":"\"INN.\"&EIGNIR!$B$3&C1148","v":{"$error":"#N/A"}},{"$f":"Lönd!E39","v":0},".M.EVBHB$$.XX.XXX.XXX.XXXX.SV.XXX.XXX.RU.N.M"]
[{"$f":"\"INN.\"&EIGNIR!$B$3&C1149","v":{"$error":"#N/A"}},{"$f":"Lönd!E40","v":0},".M.EVBHB$$.XX.XXX.XXX.XXXX.SV.XXX.XXX.SK.N.M"]
[{"$f":"\"INN.\"&EIGNIR!$B$3&C1150","v":{"$error":"#N/A"}},{"$f":"Lönd!E41","v":0},".M.EVBHB$$.XX.XXX.XXX.XXXX.SV.XXX.XXX.SI.N.M"]
[{"$f":"\"INN.\"&EIGNIR!$B$3&C1151","v":{"$error":"#N/A"}},{"$f":"Lönd!E42","v":0},".M.EVBHB$$.XX.XXX.XXX.XXXX.SV.XXX.XXX.ES.N.M"]
[{"$f":"\"INN.\"&EIGNIR!$B$3&C1152","v":{"$error":"#N/A"}},{"$f":"Lönd!E43","v":0},".M.EVBHB$$.XX.XXX.XXX.XXXX.SV.XXX.XXX.CH.N.M"]
[{"$f":"\"INN.\"&EIGNIR!$B$3&C1153","v":{"$error":"#N/A"}},{"$f":"Lönd!E44","v":0},".M.EVBHB$$.XX.XXX.XXX.XXXX.SV.XXX.XXX.SE.N.M"]
[{"$f":"\"INN.\"&EIGNIR!$B$3&C1154","v":{"$error":"#N/A"}},{"$f":"Lönd!E45","v":0},".M.EVBHB$$.XX.XXX.XXX.XXXX.SV.XXX.XXX.CZ.N.M"]
[{"$f":"\"INN.\"&EIGNIR!$B$3&C1155","v":{"$error":"#N/A"}},{"$f":"Lönd!E46","v":0},".M.EVBHB$$.XX.XXX.XXX.XXXX.SV.XXX.XXX.HU.N.M"]
[{"$f":"\"INN.\"&EIGNIR!$B$3&C1156","v":{"$error":"#N/A"}},{"$f":"Lönd!E47","v":0},".M.EVBHB$$.XX.XXX.XXX.XXXX.SV.XXX.XXX.DE.N.M"]
[{"$f":"\"INN.\"&EIGNIR!$B$3&C1157","v":{"$error":"#N/A"}},{"$f":"Lönd!E48","v":0},".M.EVBHB$$.XX.XXX.XXX.XXXX.SV.XXX.XXX.XX.N.M"]
[{"$f":"\"INN.\"&EIGNIR!$B$3&C1158","v":{"$error":"#N/A"}},{"$f":"Lönd!E49","v":0},".M.EVBHB$$.XX.XXX.XXX.XXXX.SV.XXX.XXX.4F.N.M"]
[{"$f":"\"INN.\"&EIGNIR!$B$3&C1159","v":{"$error":"#N/A"}},{"$f":"Lönd!E50","v":0},".M.EVBHB$$.XX.XXX.XXX.XXXX.SV.XXX.XXX.4C.N.M"]
[{"$f":"\"INN.\"&EIGNIR!$B$3&C1160","v":{"$error":"#N/A"}},{"$f":"Lönd!E51","v":0},".M.EVBHB$$.XX.XXX.XXX.XXXX.SV.XXX.XXX.4J.N.M"]
[{"$f":"\"INN.\"&EIGNIR!$B$3&C1161","v":{"$error":"#N/A"}},{"$f":"Lönd!E52","v":0},".M.EVBHB$$.XX.XXX.XXX.XXXX.SV.XXX.XXX.4S.N.M"]
[{"$f":"\"INN.\"&EIGNIR!$B$3&C1162","v":{"$error":"#N/A"}},{"$f":"Lönd!E53","v":0},".M.EVBHB$$.XX.XXX.XXX.XXXX.SV.XXX.XXX.1C.N.M"]
[{"$f":"\"INN.\"&EIGNIR!$B$3&C1163","v":{"$error":"#N/A"}},{"$f":"Lönd!E54","v":0},".M.EVBHB$$.XX.XXX.XXX.XXXX.SV.XXX.XXX.5Z.N.M"]
[{"$f":"\"INN.\"&EIGNIR!$B$3&C1164","v":{"$error":"#N/A"}},{"$f":"Lönd!F5","v":0},".M.EVBHBHB.XX.XXX.XXX.XXXX.SV.XXX.XXX.IS.N.M","//Hlutir í erlendum verðbréfa- og fjárfestingasjóðum"]
[{"$f":"\"INN.\"&EIGNIR!$B$3&C1165","v":{"$error":"#N/A"}},{"$f":"Lönd!F6","v":0},".M.EVBHBHB.XX.XXX.XXX.XXXX.SV.XXX.XXX.AT.N.M"]
[{"$f":"\"INN.\"&EIGNIR!$B$3&C1166","v":{"$error":"#N/A"}},{"$f":"Lönd!F7","v":0},".M.EVBHBHB.XX.XXX.XXX.XXXX.SV.XXX.XXX.US.N.M"]
[{"$f":"\"INN.\"&EIGNIR!$B$3&C1167","v":{"$error":"#N/A"}},{"$f":"Lönd!F8","v":0},".M.EVBHBHB.XX.XXX.XXX.XXXX.SV.XXX.XXX.BE.N.M"]
[{"$f":"\"INN.\"&EIGNIR!$B$3&C1168","v":{"$error":"#N/A"}},{"$f":"Lönd!F9","v":0},".M.EVBHBHB.XX.XXX.XXX.XXXX.SV.XXX.XXX.BR.N.M"]
[{"$f":"\"INN.\"&EIGNIR!$B$3&C1169","v":{"$error":"#N/A"}},{"$f":"Lönd!F10","v":0},".M.EVBHBHB.XX.XXX.XXX.XXXX.SV.XXX.XXX.GB.N.M"]
[{"$f":"\"INN.\"&EIGNIR!$B$3&C1170","v":{"$error":"#N/A"}},{"$f":"Lönd!F11","v":0},".M.EVBHBHB.XX.XXX.XXX.XXXX.SV.XXX.XXX.BG.N.M"]
[{"$f":"\"INN.\"&EIGNIR!$B$3&C1171","v":{"$error":"#N/A"}},{"$f":"Lönd!F12","v":0},".M.EVBHBHB.XX.XXX.XXX.XXXX.SV.XXX.XXX.KY.N.M"]
[{"$f":"\"INN.\"&EIGNIR!$B$3&C1172","v":{"$error":"#N/A"}},{"$f":"Lönd!F13","v":0},".M.EVBHBHB.XX.XXX.XXX.XXXX.SV.XXX.XXX.DK.N.M"]
[{"$f":"\"INN.\"&EIGNIR!$B$3&C1173","v":{"$error":"#N/A"}},{"$f":"Lönd!F14","v":0},".M.EVBHBHB.XX.XXX.XXX.XXXX.SV.XXX.XXX.EE.N.M"]
[{"$f":"\"INN.\"&EIGNIR!$B$3&C1174","v":{"$error":"#N/A"}},{"$f":"Lönd!F15","v":0},".M.EVBHBHB.XX.XXX.XXX.XXXX.SV.XXX.XXX.FI.N.M"]
[{"$f":"\"INN.\"&EIGNIR!$B$3&C1175","v":{"$error":"#N/A"}},{"$f":"Lönd!F16","v":0},".M.EVBHBHB.XX.XXX.XXX.XXXX.SV.XXX.XXX.FR.N.M"]
[{"$f":"\"INN.\"&EIGNIR!$B$3&C1176","v":{"$error":"#N/A"}},{"$f":"Lönd!F17","v":0},".M.EVBHBHB.XX.XXX.XXX.XXXX.SV.XXX.XXX.FO.N.M"]
[{"$f":"\"INN.\"&EIGNIR!$B$3&C1177","v":{"$error":"#N/A"}},{"$f":"Lönd!F18","v":0},".M.EVBHBHB.XX.XXX.XXX.XXXX.SV.XXX.XXX.GR.N.M"]
[{"$f":"\"INN.\"&EIGNIR!$B$3&C1178","v":{"$error":"#N/A"}},{"$f":"Lönd!F19","v":0},".M.EVBHBHB.XX.XXX.XXX.XXXX.SV.XXX.XXX.GG.N.M"]
[{"$f":"\"INN.\"&EIGNIR!$B$3&C1179","v":{"$error":"#N/A"}},{"$f":"Lönd!F20","v":0},".M.EVBHBHB.XX.XXX.XXX.XXXX.SV.XXX.XXX.NL.N.M"]
[{"$f":"\"INN.\"&EIGNIR!$B$3&C1180","v":{"$error":"#N/A"}},{"$f":"Lönd!F21","v":0},".M.EVBHBHB.XX.XXX.XXX.XXXX.SV.XXX.XXX.HK.N.M"]
[{"$f":"\"INN.\"&EIGNIR!$B$3&C1181","v":{"$error":"#N/A"}},{"$f":"Lönd!F22","v":0},".M.EVBHBHB.XX.XXX.XXX.XXXX.SV.XXX.XXX.IN.N.M"]
[{"$f":"\"INN.\"&EIGNIR!$B$3&C1182","v":{"$error":"#N/A"}},{"$f":"Lönd!F23","v":0},".M.EVBHBHB.XX.XXX.XXX.XXXX.SV.XXX.XXX.IE.N.M"]
[{"$f":"\"INN.\"&EIGNIR!$B$3&C1183","v":{"$error":"#N/A"}},{"$f":"Lönd!F24","v":0},".M.EVBHBHB.XX.XXX.XXX.XXXX.SV.XXX.XXX.IT.N.M"]
[{"$f":"\"INN.\"&EIGNIR!$B$3&C1184","v":{"$error":"#N/A"}},{"$f":"Lönd!F25","v":0},".M.EVBHBHB.XX.XXX.XXX.XXXX.SV.XXX.XXX.JP.N.M"]
[{"$f":"\"INN.\"&EIGNIR!$B$3&C1185","v":{"$error":"#N/A"}},{"$f":"Lönd!F26","v":0},".M.EVBHBHB.XX.XXX.XXX.XXXX.SV.XXX.XXX.JE.N.M"]
[{"$f":"\"INN.\"&EIGNIR!$B$3&C1186","v":{"$error":"#N/A"}},{"$f":"Lönd!F27","v":0},".M.EVBHBHB.XX.XXX.XXX.XXXX.SV.XXX.XXX.CA.N.M"]
[{"$f":"\"INN.\"&EIGNIR!$B$3&C1187","v":{"$error":"#N/A"}},{"$f":"Lönd!F28","v":0},".M.EVBHBHB.XX.XXX.XXX.XXXX.SV.XXX.XXX.CN.N.M"]
[{"$f":"\"INN.\"&EIGNIR!$B$3&C1188","v":{"$error":"#N/A"}},{"$f":"Lönd!F29","v":0},".M.EVBHBHB.XX.XXX.XXX.XXXX.SV.XXX.XXX.HR.N.M"]
[{"$f":"\"INN.\"&EIGNIR!$B$3&C1189","v":{"$error":"#N/A"}},{"$f":"Lönd!F30","v":0},".M.EVBHBHB.XX.XXX.XXX.XXXX.SV.XXX.XXX.CY.N.M"]
[{"$f":"\"INN.\"&EIGNIR!$B$3&C1190","v":{"$error":"#N/A"}},{"$f":"Lönd!F31","v":0},".M.EVBHBHB.XX.XXX.XXX.XXXX.SV.XXX.XXX.LV.N.M"]
[{"$f":"\"INN.\"&EIGNIR!$B$3&C1191","v":{"$error":"#N/A"}},{"$f":"Lönd!F32","v":0},".M.EVBHBHB.XX.XXX.XXX.XXXX.SV.XXX.XXX.LT.N.M"]
[{"$f":"\"INN.\"&EIGNIR!$B$3&C1192","v":{"$error":"#N/A"}},{"$f":"Lönd!F33","v":0},".M.EVBHBHB.XX.XXX.XXX.XXXX.SV.XXX.XXX.LX.N.M"]
[{"$f":"\"INN.\"&EIGNIR!$B$3&C1193","v":{"$error":"#N/A"}},{"$f":"Lönd!F34","v":0},".M.EVBHBHB.XX.XXX.XXX.XXXX.SV.XXX.XXX.MT.N.M"]
[{"$f":"\"INN.\"&EIGNIR!$B$3&C1194","v":{"$error":"#N/A"}},{"$f":"Lönd!F35","v":0},".M.EVBHBHB.XX.XXX.XXX.XXXX.SV.XXX.XXX.NO.N.M"]
[{"$f":"\"INN.\"&EIGNIR!$B$3&C1195","v":{"$error":"#N/A"}},{"$f":"Lönd!F36","v":0},".M.EVBHBHB.XX.XXX.XXX.XXXX.SV.XXX.XXX.PT.N.M"]
[{"$f":"\"INN.\"&EIGNIR!$B$3&C1196","v":{"$error":"#N/A"}},{"$f":"Lönd!F37","v":0},".M.EVBHBHB.XX.XXX.XXX.XXXX.SV.XXX.XXX.PL.N.M"]
[{"$f":"\"INN.\"&EIGNIR!$B$3&C1197","v":{"$error":"#N/A"}},{"$f":"Lönd!F38","v":0},".M.EVBHBHB.XX.XXX.XXX.XXXX.SV.XXX.XXX.RO.N.M"]
[{"$f":"\"INN.\"&EIGNIR!$B$3&C1198","v":{"$error":"#N/A"}},{"$f":"Lönd!F39","v":0},".M.EVBHBHB.XX.XXX.XXX.XXXX.SV.XXX.XXX.RU.N.M"]
[{"$f":"\"INN.\"&EIGNIR!$B$3&C1199","v":{"$error":"#N/A"}},{"$f":"Lönd!F40","v":0},".M.EVBHBHB.XX.XXX.XXX.XXXX.SV.XXX.XXX.SK.N.M"]
[{"$f":"\"INN.\"&EIGNIR!$B$3&C1200","v":{"$error":"#N/A"}},{"$f":"Lönd!F41","v":0},".M.EVBHBHB.XX.XXX.XXX.XXXX.SV.XXX.XXX.SI.N.M"]
[{"$f":"\"INN.\"&EIGNIR!$B$3&C1201","v":{"$error":"#N/A"}},{"$f":"Lönd!F42","v":0},".M.EVBHBHB.XX.XXX.XXX.XXXX.SV.XXX.XXX.ES.N.M"]
[{"$f":"\"INN.\"&EIGNIR!$B$3&C1202","v":{"$error":"#N/A"}},{"$f":"Lönd!F43","v":0},".M.EVBHBHB.XX.XXX.XXX.XXXX.SV.XXX.XXX.CH.N.M"]
[{"$f":"\"INN.\"&EIGNIR!$B$3&C1203","v":{"$error":"#N/A"}},{"$f":"Lönd!F44","v":0},".M.EVBHBHB.XX.XXX.XXX.XXXX.SV.XXX.XXX.SE.N.M"]
[{"$f":"\"INN.\"&EIGNIR!$B$3&C1204","v":{"$error":"#N/A"}},{"$f":"Lönd!F45","v":0},".M.EVBHBHB.XX.XXX.XXX.XXXX.SV.XXX.XXX.CZ.N.M"]
[{"$f":"\"INN.\"&EIGNIR!$B$3&C1205","v":{"$error":"#N/A"}},{"$f":"Lönd!F46","v":0},".M.EVBHBHB.XX.XXX.XXX.XXXX.SV.XXX.XXX.HU.N.M"]
[{"$f":"\"INN.\"&EIGNIR!$B$3&C1206","v":{"$error":"#N/A"}},{"$f":"Lönd!F47","v":0},".M.EVBHBHB.XX.XXX.XXX.XXXX.SV.XXX.XXX.DE.N.M"]
[{"$f":"\"INN.\"&EIGNIR!$B$3&C1207","v":{"$error":"#N/A"}},{"$f":"Lönd!F48","v":0},".M.EVBHBHB.XX.XXX.XXX.XXXX.SV.XXX.XXX.XX.N.M"]
[{"$f":"\"INN.\"&EIGNIR!$B$3&C1208","v":{"$error":"#N/A"}},{"$f":"Lönd!F49","v":0},".M.EVBHBHB.XX.XXX.XXX.XXXX.SV.XXX.XXX.4F.N.M"]
[{"$f":"\"INN.\"&EIGNIR!$B$3&C1209","v":{"$error":"#N/A"}},{"$f":"Lönd!F50","v":0},".M.EVBHBHB.XX.XXX.XXX.XXXX.SV.XXX.XXX.4C.N.M"]
[{"$f":"\"INN.\"&EIGNIR!$B$3&C1210","v":{"$error":"#N/A"}},{"$f":"Lönd!F51","v":0},".M.EVBHBHB.XX.XXX.XXX.XXXX.SV.XXX.XXX.4J.N.M"]
[{"$f":"\"INN.\"&EIGNIR!$B$3&C1211","v":{"$error":"#N/A"}},{"$f":"Lönd!F52","v":0},".M.EVBHBHB.XX.XXX.XXX.XXXX.SV.XXX.XXX.4S.N.M"]
[{"$f":"\"INN.\"&EIGNIR!$B$3&C1212","v":{"$error":"#N/A"}},{"$f":"Lönd!F53","v":0},".M.EVBHBHB.XX.XXX.XXX.XXXX.SV.XXX.XXX.1C.N.M"]
[{"$f":"\"INN.\"&EIGNIR!$B$3&C1213","v":{"$error":"#N/A"}},{"$f":"Lönd!F54","v":0},".M.EVBHBHB.XX.XXX.XXX.XXXX.SV.XXX.XXX.5Z.N.M"]
[{"$f":"\"INN.\"&EIGNIR!$B$3&C1214","v":{"$error":"#N/A"}},{"$f":"Lönd!G5","v":0},".M.EVBSVOM.XX.XXX.XXX.XXXX.SV.LAT.XXX.IS.N.M","//Erlend markaðsskuldabréf > 1 ár"]
[{"$f":"\"INN.\"&EIGNIR!$B$3&C1215","v":{"$error":"#N/A"}},{"$f":"Lönd!G6","v":0},".M.EVBSVOM.XX.XXX.XXX.XXXX.SV.LAT.XXX.AT.N.M"]
[{"$f":"\"INN.\"&EIGNIR!$B$3&C1216","v":{"$error":"#N/A"}},{"$f":"Lönd!G7","v":0},".M.EVBSVOM.XX.XXX.XXX.XXXX.SV.LAT.XXX.US.N.M"]
[{"$f":"\"INN.\"&EIGNIR!$B$3&C1217","v":{"$error":"#N/A"}},{"$f":"Lönd!G8","v":0},".M.EVBSVOM.XX.XXX.XXX.XXXX.SV.LAT.XXX.BE.N.M"]
[{"$f":"\"INN.\"&EIGNIR!$B$3&C1218","v":{"$error":"#N/A"}},{"$f":"Lönd!G9","v":0},".M.EVBSVOM.XX.XXX.XXX.XXXX.SV.LAT.XXX.BR.N.M"]
[{"$f":"\"INN.\"&EIGNIR!$B$3&C1219","v":{"$error":"#N/A"}},{"$f":"Lönd!G10","v":0},".M.EVBSVOM.XX.XXX.XXX.XXXX.SV.LAT.XXX.GB.N.M"]
[{"$f":"\"INN.\"&EIGNIR!$B$3&C1220","v":{"$error":"#N/A"}},{"$f":"Lönd!G11","v":0},".M.EVBSVOM.XX.XXX.XXX.XXXX.SV.LAT.XXX.BG.N.M"]
[{"$f":"\"INN.\"&EIGNIR!$B$3&C1221","v":{"$error":"#N/A"}},{"$f":"Lönd!G12","v":0},".M.EVBSVOM.XX.XXX.XXX.XXXX.SV.LAT.XXX.KY.N.M"]
[{"$f":"\"INN.\"&EIGNIR!$B$3&C1222","v":{"$error":"#N/A"}},{"$f":"Lönd!G13","v":0},".M.EVBSVOM.XX.XXX.XXX.XXXX.SV.LAT.XXX.DK.N.M"]
[{"$f":"\"INN.\"&EIGNIR!$B$3&C1223","v":{"$error":"#N/A"}},{"$f":"Lönd!G14","v":0},".M.EVBSVOM.XX.XXX.XXX.XXXX.SV.LAT.XXX.EE.N.M"]
[{"$f":"\"INN.\"&EIGNIR!$B$3&C1224","v":{"$error":"#N/A"}},{"$f":"Lönd!G15","v":0},".M.EVBSVOM.XX.XXX.XXX.XXXX.SV.LAT.XXX.FI.N.M"]
[{"$f":"\"INN.\"&EIGNIR!$B$3&C1225","v":{"$error":"#N/A"}},{"$f":"Lönd!G16","v":0},".M.EVBSVOM.XX.XXX.XXX.XXXX.SV.LAT.XXX.FR.N.M"]
[{"$f":"\"INN.\"&EIGNIR!$B$3&C1226","v":{"$error":"#N/A"}},{"$f":"Lönd!G17","v":0},".M.EVBSVOM.XX.XXX.XXX.XXXX.SV.LAT.XXX.FO.N.M"]
[{"$f":"\"INN.\"&EIGNIR!$B$3&C1227","v":{"$error":"#N/A"}},{"$f":"Lönd!G18","v":0},".M.EVBSVOM.XX.XXX.XXX.XXXX.SV.LAT.XXX.GR.N.M"]
[{"$f":"\"INN.\"&EIGNIR!$B$3&C1228","v":{"$error":"#N/A"}},{"$f":"Lönd!G19","v":0},".M.EVBSVOM.XX.XXX.XXX.XXXX.SV.LAT.XXX.GG.N.M"]
[{"$f":"\"INN.\"&EIGNIR!$B$3&C1229","v":{"$error":"#N/A"}},{"$f":"Lönd!G20","v":0},".M.EVBSVOM.XX.XXX.XXX.XXXX.SV.LAT.XXX.NL.N.M"]
[{"$f":"\"INN.\"&EIGNIR!$B$3&C1230","v":{"$error":"#N/A"}},{"$f":"Lönd!G21","v":0},".M.EVBSVOM.XX.XXX.XXX.XXXX.SV.LAT.XXX.HK.N.M"]
[{"$f":"\"INN.\"&EIGNIR!$B$3&C1231","v":{"$error":"#N/A"}},{"$f":"Lönd!G22","v":0},".M.EVBSVOM.XX.XXX.XXX.XXXX.SV.LAT.XXX.IN.N.M"]
[{"$f":"\"INN.\"&EIGNIR!$B$3&C1232","v":{"$error":"#N/A"}},{"$f":"Lönd!G23","v":0},".M.EVBSVOM.XX.XXX.XXX.XXXX.SV.LAT.XXX.IE.N.M"]
[{"$f":"\"INN.\"&EIGNIR!$B$3&C1233","v":{"$error":"#N/A"}},{"$f":"Lönd!G24","v":0},".M.EVBSVOM.XX.XXX.XXX.XXXX.SV.LAT.XXX.IT.N.M"]
[{"$f":"\"INN.\"&EIGNIR!$B$3&C1234","v":{"$error":"#N/A"}},{"$f":"Lönd!G25","v":0},".M.EVBSVOM.XX.XXX.XXX.XXXX.SV.LAT.XXX.JP.N.M"]
[{"$f":"\"INN.\"&EIGNIR!$B$3&C1235","v":{"$error":"#N/A"}},{"$f":"Lönd!G26","v":0},".M.EVBSVOM.XX.XXX.XXX.XXXX.SV.LAT.XXX.JE.N.M"]
[{"$f":"\"INN.\"&EIGNIR!$B$3&C1236","v":{"$error":"#N/A"}},{"$f":"Lönd!G27","v":0},".M.EVBSVOM.XX.XXX.XXX.XXXX.SV.LAT.XXX.CA.N.M"]
[{"$f":"\"INN.\"&EIGNIR!$B$3&C1237","v":{"$error":"#N/A"}},{"$f":"Lönd!G28","v":0},".M.EVBSVOM.XX.XXX.XXX.XXXX.SV.LAT.XXX.CN.N.M"]
[{"$f":"\"INN.\"&EIGNIR!$B$3&C1238","v":{"$error":"#N/A"}},{"$f":"Lönd!G29","v":0},".M.EVBSVOM.XX.XXX.XXX.XXXX.SV.LAT.XXX.HR.N.M"]
[{"$f":"\"INN.\"&EIGNIR!$B$3&C1239","v":{"$error":"#N/A"}},{"$f":"Lönd!G30","v":0},".M.EVBSVOM.XX.XXX.XXX.XXXX.SV.LAT.XXX.CY.N.M"]
[{"$f":"\"INN.\"&EIGNIR!$B$3&C1240","v":{"$error":"#N/A"}},{"$f":"Lönd!G31","v":0},".M.EVBSVOM.XX.XXX.XXX.XXXX.SV.LAT.XXX.LV.N.M"]
[{"$f":"\"INN.\"&EIGNIR!$B$3&C1241","v":{"$error":"#N/A"}},{"$f":"Lönd!G32","v":0},".M.EVBSVOM.XX.XXX.XXX.XXXX.SV.LAT.XXX.LT.N.M"]
[{"$f":"\"INN.\"&EIGNIR!$B$3&C1242","v":{"$error":"#N/A"}},{"$f":"Lönd!G33","v":0},".M.EVBSVOM.XX.XXX.XXX.XXXX.SV.LAT.XXX.LX.N.M"]
[{"$f":"\"INN.\"&EIGNIR!$B$3&C1243","v":{"$error":"#N/A"}},{"$f":"Lönd!G34","v":0},".M.EVBSVOM.XX.XXX.XXX.XXXX.SV.LAT.XXX.MT.N.M"]
[{"$f":"\"INN.\"&EIGNIR!$B$3&C1244","v":{"$error":"#N/A"}},{"$f":"Lönd!G35","v":0},".M.EVBSVOM.XX.XXX.XXX.XXXX.SV.LAT.XXX.NO.N.M"]
[{"$f":"\"INN.\"&EIGNIR!$B$3&C1245","v":{"$error":"#N/A"}},{"$f":"Lönd!G36","v":0},".M.EVBSVOM.XX.XXX.XXX.XXXX.SV.LAT.XXX.PT.N.M"]
[{"$f":"\"INN.\"&EIGNIR!$B$3&C1246","v":{"$error":"#N/A"}},{"$f":"Lönd!G37","v":0},".M.EVBSVOM.XX.XXX.XXX.XXXX.SV.LAT.XXX.PL.N.M"]
[{"$f":"\"INN.\"&EIGNIR!$B$3&C1247","v":{"$error":"#N/A"}},{"$f":"Lönd!G38","v":0},".M.EVBSVOM.XX.XXX.XXX.XXXX.SV.LAT.XXX.RO.N.M"]
[{"$f":"\"INN.\"&EIGNIR!$B$3&C1248","v":{"$error":"#N/A"}},{"$f":"Lönd!G39","v":0},".M.EVBSVOM.XX.XXX.XXX.XXXX.SV.LAT.XXX.RU.N.M"]
[{"$f":"\"INN.\"&EIGNIR!$B$3&C1249","v":{"$error":"#N/A"}},{"$f":"Lönd!G40","v":0},".M.EVBSVOM.XX.XXX.XXX.XXXX.SV.LAT.XXX.SK.N.M"]
[{"$f":"\"INN.\"&EIGNIR!$B$3&C1250","v":{"$error":"#N/A"}},{"$f":"Lönd!G41","v":0},".M.EVBSVOM.XX.XXX.XXX.XXXX.SV.LAT.XXX.SI.N.M"]
[{"$f":"\"INN.\"&EIGNIR!$B$3&C1251","v":{"$error":"#N/A"}},{"$f":"Lönd!G42","v":0},".M.EVBSVOM.XX.XXX.XXX.XXXX.SV.LAT.XXX.ES.N.M"]
[{"$f":"\"INN.\"&EIGNIR!$B$3&C1252","v":{"$error":"#N/A"}},{"$f":"Lönd!G43","v":0},".M.EVBSVOM.XX.XXX.XXX.XXXX.SV.LAT.XXX.CH.N.M"]
[{"$f":"\"INN.\"&EIGNIR!$B$3&C1253","v":{"$error":"#N/A"}},{"$f":"Lönd!G44","v":0},".M.EVBSVOM.XX.XXX.XXX.XXXX.SV.LAT.XXX.SE.N.M"]
[{"$f":"\"INN.\"&EIGNIR!$B$3&C1254","v":{"$error":"#N/A"}},{"$f":"Lönd!G45","v":0},".M.EVBSVOM.XX.XXX.XXX.XXXX.SV.LAT.XXX.CZ.N.M"]
[{"$f":"\"INN.\"&EIGNIR!$B$3&C1255","v":{"$error":"#N/A"}},{"$f":"Lönd!G46","v":0},".M.EVBSVOM.XX.XXX.XXX.XXXX.SV.LAT.XXX.HU.N.M"]
[{"$f":"\"INN.\"&EIGNIR!$B$3&C1256","v":{"$error":"#N/A"}},{"$f":"Lönd!G47","v":0},".M.EVBSVOM.XX.XXX.XXX.XXXX.SV.LAT.XXX.DE.N.M"]
[{"$f":"\"INN.\"&EIGNIR!$B$3&C1257","v":{"$error":"#N/A"}},{"$f":"Lönd!G48","v":0},".M.EVBSVOM.XX.XXX.XXX.XXXX.SV.LAT.XXX.XX.N.M"]
[{"$f":"\"INN.\"&EIGNIR!$B$3&C1258","v":{"$error":"#N/A"}},{"$f":"Lönd!G49","v":0},".M.EVBSVOM.XX.XXX.XXX.XXXX.SV.LAT.XXX.4F.N.M"]
[{"$f":"\"INN.\"&EIGNIR!$B$3&C1259","v":{"$error":"#N/A"}},{"$f":"Lönd!G50","v":0},".M.EVBSVOM.XX.XXX.XXX.XXXX.SV.LAT.XXX.4C.N.M"]
[{"$f":"\"INN.\"&EIGNIR!$B$3&C1260","v":{"$error":"#N/A"}},{"$f":"Lönd!G51","v":0},".M.EVBSVOM.XX.XXX.XXX.XXXX.SV.LAT.XXX.4J.N.M"]
[{"$f":"\"INN.\"&EIGNIR!$B$3&C1261","v":{"$error":"#N/A"}},{"$f":"Lönd!G52","v":0},".M.EVBSVOM.XX.XXX.XXX.XXXX.SV.LAT.XXX.4S.N.M"]
[{"$f":"\"INN.\"&EIGNIR!$B$3&C1262","v":{"$error":"#N/A"}},{"$f":"Lönd!G53","v":0},".M.EVBSVOM.XX.XXX.XXX.XXXX.SV.LAT.XXX.1C.N.M"]
[{"$f":"\"INN.\"&EIGNIR!$B$3&C1263","v":{"$error":"#N/A"}},{"$f":"Lönd!G54","v":0},".M.EVBSVOM.XX.XXX.XXX.XXXX.SV.LAT.XXX.5Z.N.M"]
[{"$f":"\"INN.\"&EIGNIR!$B$3&C1264","v":{"$error":"#N/A"}},{"$f":"Lönd!H6","v":0},".M.EVBSVOM.XX.XXX.XXX.XXXX.SV.SKT.XXX.AT.N.M","//Erlend markaðsskuldabréf < 1 ár"]
[{"$f":"\"INN.\"&EIGNIR!$B$3&C1265","v":{"$error":"#N/A"}},{"$f":"Lönd!H7","v":0},".M.EVBSVOM.XX.XXX.XXX.XXXX.SV.SKT.XXX.US.N.M"]
[{"$f":"\"INN.\"&EIGNIR!$B$3&C1266","v":{"$error":"#N/A"}},{"$f":"Lönd!H8","v":0},".M.EVBSVOM.XX.XXX.XXX.XXXX.SV.SKT.XXX.BE.N.M"]
[{"$f":"\"INN.\"&EIGNIR!$B$3&C1267","v":{"$error":"#N/A"}},{"$f":"Lönd!H9","v":0},".M.EVBSVOM.XX.XXX.XXX.XXXX.SV.SKT.XXX.BR.N.M"]
[{"$f":"\"INN.\"&EIGNIR!$B$3&C1268","v":{"$error":"#N/A"}},{"$f":"Lönd!H10","v":0},".M.EVBSVOM.XX.XXX.XXX.XXXX.SV.SKT.XXX.GB.N.M"]
[{"$f":"\"INN.\"&EIGNIR!$B$3&C1269","v":{"$error":"#N/A"}},{"$f":"Lönd!H11","v":0},".M.EVBSVOM.XX.XXX.XXX.XXXX.SV.SKT.XXX.BG.N.M"]
[{"$f":"\"INN.\"&EIGNIR!$B$3&C1270","v":{"$error":"#N/A"}},{"$f":"Lönd!H12","v":0},".M.EVBSVOM.XX.XXX.XXX.XXXX.SV.SKT.XXX.KY.N.M"]
[{"$f":"\"INN.\"&EIGNIR!$B$3&C1271","v":{"$error":"#N/A"}},{"$f":"Lönd!H13","v":0},".M.EVBSVOM.XX.XXX.XXX.XXXX.SV.SKT.XXX.DK.N.M"]
[{"$f":"\"INN.\"&EIGNIR!$B$3&C1272","v":{"$error":"#N/A"}},{"$f":"Lönd!H14","v":0},".M.EVBSVOM.XX.XXX.XXX.XXXX.SV.SKT.XXX.EE.N.M"]
[{"$f":"\"INN.\"&EIGNIR!$B$3&C1273","v":{"$error":"#N/A"}},{"$f":"Lönd!H15","v":0},".M.EVBSVOM.XX.XXX.XXX.XXXX.SV.SKT.XXX.FI.N.M"]
[{"$f":"\"INN.\"&EIGNIR!$B$3&C1274","v":{"$error":"#N/A"}},{"$f":"Lönd!H16","v":0},".M.EVBSVOM.XX.XXX.XXX.XXXX.SV.SKT.XXX.FR.N.M"]
[{"$f":"\"INN.\"&EIGNIR!$B$3&C1275","v":{"$error":"#N/A"}},{"$f":"Lönd!H17","v":0},".M.EVBSVOM.XX.XXX.XXX.XXXX.SV.SKT.XXX.FO.N.M"]
[{"$f":"\"INN.\"&EIGNIR!$B$3&C1276","v":{"$error":"#N/A"}},{"$f":"Lönd!H18","v":0},".M.EVBSVOM.XX.XXX.XXX.XXXX.SV.SKT.XXX.GR.N.M"]
[{"$f":"\"INN.\"&EIGNIR!$B$3&C1277","v":{"$error":"#N/A"}},{"$f":"Lönd!H19","v":0},".M.EVBSVOM.XX.XXX.XXX.XXXX.SV.SKT.XXX.GG.N.M"]
[{"$f":"\"INN.\"&EIGNIR!$B$3&C1278","v":{"$error":"#N/A"}},{"$f":"Lönd!H20","v":0},".M.EVBSVOM.XX.XXX.XXX.XXXX.SV.SKT.XXX.NL.N.M"]
[{"$f":"\"INN.\"&EIGNIR!$B$3&C1279","v":{"$error":"#N/A"}},{"$f":"Lönd!H21","v":0},".M.EVBSVOM.XX.XXX.XXX.XXXX.SV.SKT.XXX.HK.N.M"]
[{"$f":"\"INN.\"&EIGNIR!$B$3&C1280","v":{"$error":"#N/A"}},{"$f":"Lönd!H22","v":0},".M.EVBSVOM.XX.XXX.XXX.XXXX.SV.SKT.XXX.IN.N.M"]
[{"$f":"\"INN.\"&EIGNIR!$B$3&C1281","v":{"$error":"#N/A"}},{"$f":"Lönd!H23","v":0},".M.EVBSVOM.XX.XXX.XXX.XXXX.SV.SKT.XXX.IE.N.M"]
[{"$f":"\"INN.\"&EIGNIR!$B$3&C1282","v":{"$error":"#N/A"}},{"$f":"Lönd!H24","v":0},".M.EVBSVOM.XX.XXX.XXX.XXXX.SV.SKT.XXX.IT.N.M"]
[{"$f":"\"INN.\"&EIGNIR!$B$3&C1283","v":{"$error":"#N/A"}},{"$f":"Lönd!H25","v":0},".M.EVBSVOM.XX.XXX.XXX.XXXX.SV.SKT.XXX.JP.N.M"]
[{"$f":"\"INN.\"&EIGNIR!$B$3&C1284","v":{"$error":"#N/A"}},{"$f":"Lönd!H26","v":0},".M.EVBSVOM.XX.XXX.XXX.XXXX.SV.SKT.XXX.JE.N.M"]
[{"$f":"\"INN.\"&EIGNIR!$B$3&C1285","v":{"$error":"#N/A"}},{"$f":"Lönd!H27","v":0},".M.EVBSVOM.XX.XXX.XXX.XXXX.SV.SKT.XXX.CA.N.M"]
[{"$f":"\"INN.\"&EIGNIR!$B$3&C1286","v":{"$error":"#N/A"}},{"$f":"Lönd!H28","v":0},".M.EVBSVOM.XX.XXX.XXX.XXXX.SV.SKT.XXX.CN.N.M"]
[{"$f":"\"INN.\"&EIGNIR!$B$3&C1287","v":{"$error":"#N/A"}},{"$f":"Lönd!H29","v":0},".M.EVBSVOM.XX.XXX.XXX.XXXX.SV.SKT.XXX.HR.N.M"]
[{"$f":"\"INN.\"&EIGNIR!$B$3&C1288","v":{"$error":"#N/A"}},{"$f":"Lönd!H30","v":0},".M.EVBSVOM.XX.XXX.XXX.XXXX.SV.SKT.XXX.CY.N.M"]
[{"$f":"\"INN.\"&EIGNIR!$B$3&C1289","v":{"$error":"#N/A"}},{"$f":"Lönd!H31","v":0},".M.EVBSVOM.XX.XXX.XXX.XXXX.SV.SKT.XXX.LV.N.M"]
[{"$f":"\"INN.\"&EIGNIR!$B$3&C1290","v":{"$error":"#N/A"}},{"$f":"Lönd!H32","v":0},".M.EVBSVOM.XX.XXX.XXX.XXXX.SV.SKT.XXX.LT.N.M"]
[{"$f":"\"INN.\"&EIGNIR!$B$3&C1291","v":{"$error":"#N/A"}},{"$f":"Lönd!H33","v":0},".M.EVBSVOM.XX.XXX.XXX.XXXX.SV.SKT.XXX.LX.N.M"]
[{"$f":"\"INN.\"&EIGNIR!$B$3&C1292","v":{"$error":"#N/A"}},{"$f":"Lönd!H34","v":0},".M.EVBSVOM.XX.XXX.XXX.XXXX.SV.SKT.XXX.MT.N.M"]
[{"$f":"\"INN.\"&EIGNIR!$B$3&C1293","v":{"$error":"#N/A"}},{"$f":"Lönd!H35","v":0},".M.EVBSVOM.XX.XXX.XXX.XXXX.SV.SKT.XXX.NO.N.M"]
[{"$f":"\"INN.\"&EIGNIR!$B$3&C1294","v":{"$error":"#N/A"}},{"$f":"Lönd!H36","v":0},".M.EVBSVOM.XX.XXX.XXX.XXXX.SV.SKT.XXX.PT.N.M"]
[{"$f":"\"INN.\"&EIGNIR!$B$3&C1295","v":{"$error":"#N/A"}},{"$f":"Lönd!H37","v":0},".M.EVBSVOM.XX.XXX.XXX.XXXX.SV.SKT.XXX.PL.N.M"]
[{"$f":"\"INN.\"&EIGNIR!$B$3&C1296","v":{"$error":"#N/A"}},{"$f":"Lönd!H38","v":0},".M.EVBSVOM.XX.XXX.XXX.XXXX.SV.SKT.XXX.RO.N.M"]
[{"$f":"\"INN.\"&EIGNIR!$B$3&C1297","v":{"$error":"#N/A"}},{"$f":"Lönd!H39","v":0},".M.EVBSVOM.XX.XXX.XXX.XXXX.SV.SKT.XXX.RU.N.M"]
[{"$f":"\"INN.\"&EIGNIR!$B$3&C1298","v":{"$error":"#N/A"}},{"$f":"Lönd!H40","v":0},".M.EVBSVOM.XX.XXX.XXX.XXXX.SV.SKT.XXX.SK.N.M"]
[{"$f":"\"INN.\"&EIGNIR!$B$3&C1299","v":{"$error":"#N/A"}},{"$f":"Lönd!H41","v":0},".M.EVBSVOM.XX.XXX.XXX.XXXX.SV.SKT.XXX.SI.N.M"]
[{"$f":"\"INN.\"&EIGNIR!$B$3&C1300","v":{"$error":"#N/A"}},{"$f":"Lönd!H42","v":0},".M.EVBSVOM.XX.XXX.XXX.XXXX.SV.SKT.XXX.ES.N.M"]
[{"$f":"\"INN.\"&EIGNIR!$B$3&C1301","v":{"$error":"#N/A"}},{"$f":"Lönd!H43","v":0},".M.EVBSVOM.XX.XXX.XXX.XXXX.SV.SKT.XXX.CH.N.M"]
[{"$f":"\"INN.\"&EIGNIR!$B$3&C1302","v":{"$error":"#N/A"}},{"$f":"Lönd!H44","v":0},".M.EVBSVOM.XX.XXX.XXX.XXXX.SV.SKT.XXX.SE.N.M"]
[{"$f":"\"INN.\"&EIGNIR!$B$3&C1303","v":{"$error":"#N/A"}},{"$f":"Lönd!H45","v":0},".M.EVBSVOM.XX.XXX.XXX.XXXX.SV.SKT.XXX.CZ.N.M"]
[{"$f":"\"INN.\"&EIGNIR!$B$3&C1304","v":{"$error":"#N/A"}},{"$f":"Lönd!H46","v":0},".M.EVBSVOM.XX.XXX.XXX.XXXX.SV.SKT.XXX.HU.N.M"]
[{"$f":"\"INN.\"&EIGNIR!$B$3&C1305","v":{"$error":"#N/A"}},{"$f":"Lönd!H47","v":0},".M.EVBSVOM.XX.XXX.XXX.XXXX.SV.SKT.XXX.DE.N.M"]
[{"$f":"\"INN.\"&EIGNIR!$B$3&C1306","v":{"$error":"#N/A"}},{"$f":"Lönd!H48","v":0},".M.EVBSVOM.XX.XXX.XXX.XXXX.SV.SKT.XXX.XX.N.M"]
[{"$f":"\"INN.\"&EIGNIR!$B$3&C1307","v":{"$error":"#N/A"}},{"$f":"Lönd!H49","v":0},".M.EVBSVOM.XX.XXX.XXX.XXXX.SV.SKT.XXX.4F.N.M"]
[{"$f":"\"INN.\"&EIGNIR!$B$3&C1308","v":{"$error":"#N/A"}},{"$f":"Lönd!H50","v":0},".M.EVBSVOM.XX.XXX.XXX.XXXX.SV.SKT.XXX.4C.N.M"]
[{"$f":"\"INN.\"&EIGNIR!$B$3&C1309","v":{"$error":"#N/A"}},{"$f":"Lönd!H51","v":0},".M.EVBSVOM.XX.XXX.XXX.XXXX.SV.SKT.XXX.4J.N.M"]
[{"$f":"\"INN.\"&EIGNIR!$B$3&C1310","v":{"$error":"#N/A"}},{"$f":"Lönd!H52","v":0},".M.EVBSVOM.XX.XXX.XXX.XXXX.SV.SKT.XXX.4S.N.M"]
[{"$f":"\"INN.\"&EIGNIR!$B$3&C1311","v":{"$error":"#N/A"}},{"$f":"Lönd!H53","v":0},".M.EVBSVOM.XX.XXX.XXX.XXXX.SV.SKT.XXX.1C.N.M"]
[{"$f":"\"INN.\"&EIGNIR!$B$3&C1312","v":{"$error":"#N/A"}},{"$f":"Lönd!H54","v":0},".M.EVBSVOM.XX.XXX.XXX.XXXX.SV.SKT.XXX.5Z.N.M"]
[{"$f":"\"INN.\"&EIGNIR!$B$3&C1313","v":{"$error":"#N/A"}},{"$f":"Lönd!I6","v":0},".M.EUKITIE.XX.XXX.XXX.XXXX.SV.XXX.XXX.AT.N.M","//Erlendar bankainnstæður"]
[{"$f":"\"INN.\"&EIGNIR!$B$3&C1314","v":{"$error":"#N/A"}},{"$f":"Lönd!I7","v":0},".M.EUKITIE.XX.XXX.XXX.XXXX.SV.XXX.XXX.US.N.M"]
[{"$f":"\"INN.\"&EIGNIR!$B$3&C1315","v":{"$error":"#N/A"}},{"$f":"Lönd!I8","v":0},".M.EUKITIE.XX.XXX.XXX.XXXX.SV.XXX.XXX.BE.N.M"]
[{"$f":"\"INN.\"&EIGNIR!$B$3&C1316","v":{"$error":"#N/A"}},{"$f":"Lönd!I9","v":0},".M.EUKITIE.XX.XXX.XXX.XXXX.SV.XXX.XXX.BR.N.M"]
[{"$f":"\"INN.\"&EIGNIR!$B$3&C1317","v":{"$error":"#N/A"}},{"$f":"Lönd!I10","v":0},".M.EUKITIE.XX.XXX.XXX.XXXX.SV.XXX.XXX.GB.N.M"]
[{"$f":"\"INN.\"&EIGNIR!$B$3&C1318","v":{"$error":"#N/A"}},{"$f":"Lönd!I11","v":0},".M.EUKITIE.XX.XXX.XXX.XXXX.SV.XXX.XXX.BG.N.M"]
[{"$f":"\"INN.\"&EIGNIR!$B$3&C1319","v":{"$error":"#N/A"}},{"$f":"Lönd!I12","v":0},".M.EUKITIE.XX.XXX.XXX.XXXX.SV.XXX.XXX.KY.N.M"]
[{"$f":"\"INN.\"&EIGNIR!$B$3&C1320","v":{"$error":"#N/A"}},{"$f":"Lönd!I13","v":0},".M.EUKITIE.XX.XXX.XXX.XXXX.SV.XXX.XXX.DK.N.M"]
[{"$f":"\"INN.\"&EIGNIR!$B$3&C1321","v":{"$error":"#N/A"}},{"$f":"Lönd!I14","v":0},".M.EUKITIE.XX.XXX.XXX.XXXX.SV.XXX.XXX.EE.N.M"]
[{"$f":"\"INN.\"&EIGNIR!$B$3&C1322","v":{"$error":"#N/A"}},{"$f":"Lönd!I15","v":0},".M.EUKITIE.XX.XXX.XXX.XXXX.SV.XXX.XXX.FI.N.M"]
[{"$f":"\"INN.\"&EIGNIR!$B$3&C1323","v":{"$error":"#N/A"}},{"$f":"Lönd!I16","v":0},".M.EUKITIE.XX.XXX.XXX.XXXX.SV.XXX.XXX.FR.N.M"]
[{"$f":"\"INN.\"&EIGNIR!$B$3&C1324","v":{"$error":"#N/A"}},{"$f":"Lönd!I17","v":0},".M.EUKITIE.XX.XXX.XXX.XXXX.SV.XXX.XXX.FO.N.M"]
[{"$f":"\"INN.\"&EIGNIR!$B$3&C1325","v":{"$error":"#N/A"}},{"$f":"Lönd!I18","v":0},".M.EUKITIE.XX.XXX.XXX.XXXX.SV.XXX.XXX.GR.N.M"]
[{"$f":"\"INN.\"&EIGNIR!$B$3&C1326","v":{"$error":"#N/A"}},{"$f":"Lönd!I19","v":0},".M.EUKITIE.XX.XXX.XXX.XXXX.SV.XXX.XXX.GG.N.M"]
[{"$f":"\"INN.\"&EIGNIR!$B$3&C1327","v":{"$error":"#N/A"}},{"$f":"Lönd!I20","v":0},".M.EUKITIE.XX.XXX.XXX.XXXX.SV.XXX.XXX.NL.N.M"]
[{"$f":"\"INN.\"&EIGNIR!$B$3&C1328","v":{"$error":"#N/A"}},{"$f":"Lönd!I21","v":0},".M.EUKITIE.XX.XXX.XXX.XXXX.SV.XXX.XXX.HK.N.M"]
[{"$f":"\"INN.\"&EIGNIR!$B$3&C1329","v":{"$error":"#N/A"}},{"$f":"Lönd!I22","v":0},".M.EUKITIE.XX.XXX.XXX.XXXX.SV.XXX.XXX.IN.N.M"]
[{"$f":"\"INN.\"&EIGNIR!$B$3&C1330","v":{"$error":"#N/A"}},{"$f":"Lönd!I23","v":0},".M.EUKITIE.XX.XXX.XXX.XXXX.SV.XXX.XXX.IE.N.M"]
[{"$f":"\"INN.\"&EIGNIR!$B$3&C1331","v":{"$error":"#N/A"}},{"$f":"Lönd!I24","v":0},".M.EUKITIE.XX.XXX.XXX.XXXX.SV.XXX.XXX.IT.N.M"]
[{"$f":"\"INN.\"&EIGNIR!$B$3&C1332","v":{"$error":"#N/A"}},{"$f":"Lönd!I25","v":0},".M.EUKITIE.XX.XXX.XXX.XXXX.SV.XXX.XXX.JP.N.M"]
[{"$f":"\"INN.\"&EIGNIR!$B$3&C1333","v":{"$error":"#N/A"}},{"$f":"Lönd!I26","v":0},".M.EUKITIE.XX.XXX.XXX.XXXX.SV.XXX.XXX.JE.N.M"]
[{"$f":"\"INN.\"&EIGNIR!$B$3&C1334","v":{"$error":"#N/A"}},{"$f":"Lönd!I27","v":0},".M.EUKITIE.XX.XXX.XXX.XXXX.SV.XXX.XXX.CA.N.M"]
[{"$f":"\"INN.\"&EIGNIR!$B$3&C1335","v":{"$error":"#N/A"}},{"$f":"Lönd!I28","v":0},".M.EUKITIE.XX.XXX.XXX.XXXX.SV.XXX.XXX.CN.N.M"]
[{"$f":"\"INN.\"&EIGNIR!$B$3&C1336","v":{"$error":"#N/A"}},{"$f":"Lönd!I29","v":0},".M.EUKITIE.XX.XXX.XXX.XXXX.SV.XXX.XXX.HR.N.M"]
[{"$f":"\"INN.\"&EIGNIR!$B$3&C1337","v":{"$error":"#N/A"}},{"$f":"Lönd!I30","v":0},".M.EUKITIE.XX.XXX.XXX.XXXX.SV.XXX.XXX.CY.N.M"]
[{"$f":"\"INN.\"&EIGNIR!$B$3&C1338","v":{"$error":"#N/A"}},{"$f":"Lönd!I31","v":0},".M.EUKITIE.XX.XXX.XXX.XXXX.SV.XXX.XXX.LV.N.M"]
[{"$f":"\"INN.\"&EIGNIR!$B$3&C1339","v":{"$error":"#N/A"}},{"$f":"Lönd!I32","v":0},".M.EUKITIE.XX.XXX.XXX.XXXX.SV.XXX.XXX.LT.N.M"]
[{"$f":"\"INN.\"&EIGNIR!$B$3&C1340","v":{"$error":"#N/A"}},{"$f":"Lönd!I33","v":0},".M.EUKITIE.XX.XXX.XXX.XXXX.SV.XXX.XXX.LX.N.M"]
[{"$f":"\"INN.\"&EIGNIR!$B$3&C1341","v":{"$error":"#N/A"}},{"$f":"Lönd!I34","v":0},".M.EUKITIE.XX.XXX.XXX.XXXX.SV.XXX.XXX.MT.N.M"]
[{"$f":"\"INN.\"&EIGNIR!$B$3&C1342","v":{"$error":"#N/A"}},{"$f":"Lönd!I35","v":0},".M.EUKITIE.XX.XXX.XXX.XXXX.SV.XXX.XXX.NO.N.M"]
[{"$f":"\"INN.\"&EIGNIR!$B$3&C1343","v":{"$error":"#N/A"}},{"$f":"Lönd!I36","v":0},".M.EUKITIE.XX.XXX.XXX.XXXX.SV.XXX.XXX.PT.N.M"]
[{"$f":"\"INN.\"&EIGNIR!$B$3&C1344","v":{"$error":"#N/A"}},{"$f":"Lönd!I37","v":0},".M.EUKITIE.XX.XXX.XXX.XXXX.SV.XXX.XXX.PL.N.M"]
[{"$f":"\"INN.\"&EIGNIR!$B$3&C1345","v":{"$error":"#N/A"}},{"$f":"Lönd!I38","v":0},".M.EUKITIE.XX.XXX.XXX.XXXX.SV.XXX.XXX.RO.N.M"]
[{"$f":"\"INN.\"&EIGNIR!$B$3&C1346","v":{"$error":"#N/A"}},{"$f":"Lönd!I39","v":0},".M.EUKITIE.XX.XXX.XXX.XXXX.SV.XXX.XXX.RU.N.M"]
[{"$f":"\"INN.\"&EIGNIR!$B$3&C1347","v":{"$error":"#N/A"}},{"$f":"Lönd!I40","v":0},".M.EUKITIE.XX.XXX.XXX.XXXX.SV.XXX.XXX.SK.N.M"]
[{"$f":"\"INN.\"&EIGNIR!$B$3&C1348","v":{"$error":"#N/A"}},{"$f":"Lönd!I41","v":0},".M.EUKITIE.XX.XXX.XXX.XXXX.SV.XXX.XXX.SI.N.M"]
[{"$f":"\"INN.\"&EIGNIR!$B$3&C1349","v":{"$error":"#N/A"}},{"$f":"Lönd!I42","v":0},".M.EUKITIE.XX.XXX.XXX.XXXX.SV.XXX.XXX.ES.N.M"]
[{"$f":"\"INN.\"&EIGNIR!$B$3&C1350","v":{"$error":"#N/A"}},{"$f":"Lönd!I43","v":0},".M.EUKITIE.XX.XXX.XXX.XXXX.SV.XXX.XXX.CH.N.M"]
[{"$f":"\"INN.\"&EIGNIR!$B$3&C1351","v":{"$error":"#N/A"}},{"$f":"Lönd!I44","v":0},".M.EUKITIE.XX.XXX.XXX.XXXX.SV.XXX.XXX.SE.N.M"]
[{"$f":"\"INN.\"&EIGNIR!$B$3&C1352","v":{"$error":"#N/A"}},{"$f":"Lönd!I45","v":0},".M.EUKITIE.XX.XXX.XXX.XXXX.SV.XXX.XXX.CZ.N.M"]
[{"$f":"\"INN.\"&EIGNIR!$B$3&C1353","v":{"$error":"#N/A"}},{"$f":"Lönd!I46","v":0},".M.EUKITIE.XX.XXX.XXX.XXXX.SV.XXX.XXX.HU.N.M"]
[{"$f":"\"INN.\"&EIGNIR!$B$3&C1354","v":{"$error":"#N/A"}},{"$f":"Lönd!I47","v":0},".M.EUKITIE.XX.XXX.XXX.XXXX.SV.XXX.XXX.DE.N.M"]
[{"$f":"\"INN.\"&EIGNIR!$B$3&C1355","v":{"$error":"#N/A"}},{"$f":"Lönd!I48","v":0},".M.EUKITIE.XX.XXX.XXX.XXXX.SV.XXX.XXX.XX.N.M"]
[{"$f":"\"INN.\"&EIGNIR!$B$3&C1356","v":{"$error":"#N/A"}},{"$f":"Lönd!I49","v":0},".M.EUKITIE.XX.XXX.XXX.XXXX.SV.XXX.XXX.4F.N.M"]
[{"$f":"\"INN.\"&EIGNIR!$B$3&C1357","v":{"$error":"#N/A"}},{"$f":"Lönd!I50","v":0},".M.EUKITIE.XX.XXX.XXX.XXXX.SV.XXX.XXX.4C.N.M"]
[{"$f":"\"INN.\"&EIGNIR!$B$3&C1358","v":{"$error":"#N/A"}},{"$f":"Lönd!I51","v":0},".M.EUKITIE.XX.XXX.XXX.XXXX.SV.XXX.XXX.4J.N.M"]
[{"$f":"\"INN.\"&EIGNIR!$B$3&C1359","v":{"$error":"#N/A"}},{"$f":"Lönd!I52","v":0},".M.EUKITIE.XX.XXX.XXX.XXXX.SV.XXX.XXX.4S.N.M"]
[{"$f":"\"INN.\"&EIGNIR!$B$3&C1360","v":{"$error":"#N/A"}},{"$f":"Lönd!I53","v":0},".M.EUKITIE.XX.XXX.XXX.XXXX.SV.XXX.XXX.1C.N.M"]
[{"$f":"\"INN.\"&EIGNIR!$B$3&C1361","v":{"$error":"#N/A"}},{"$f":"Lönd!I54","v":0},".M.EUKITIE.XX.XXX.XXX.XXXX.SV.XXX.XXX.5Z.N.M"]
[{"$f":"\"INN.\"&EIGNIR!$B$3&C1362","v":{"$error":"#N/A"}},{"$f":"Lönd!J5","v":0},".M.EAV$$$$.XX.XXX.XXX.XXXX.SV.XXX.XXX.IS.N.M","//Erlendir afleiðusamningar"]
[{"$f":"\"INN.\"&EIGNIR!$B$3&C1363","v":{"$error":"#N/A"}},{"$f":"Lönd!J6","v":0},".M.EAV$$$$.XX.XXX.XXX.XXXX.SV.XXX.XXX.AT.N.M"]
[{"$f":"\"INN.\"&EIGNIR!$B$3&C1364","v":{"$error":"#N/A"}},{"$f":"Lönd!J7","v":0},".M.EAV$$$$.XX.XXX.XXX.XXXX.SV.XXX.XXX.US.N.M"]
[{"$f":"\"INN.\"&EIGNIR!$B$3&C1365","v":{"$error":"#N/A"}},{"$f":"Lönd!J8","v":0},".M.EAV$$$$.XX.XXX.XXX.XXXX.SV.XXX.XXX.BE.N.M"]
[{"$f":"\"INN.\"&EIGNIR!$B$3&C1366","v":{"$error":"#N/A"}},{"$f":"Lönd!J9","v":0},".M.EAV$$$$.XX.XXX.XXX.XXXX.SV.XXX.XXX.BR.N.M"]
[{"$f":"\"INN.\"&EIGNIR!$B$3&C1367","v":{"$error":"#N/A"}},{"$f":"Lönd!J10","v":0},".M.EAV$$$$.XX.XXX.XXX.XXXX.SV.XXX.XXX.GB.N.M"]
[{"$f":"\"INN.\"&EIGNIR!$B$3&C1368","v":{"$error":"#N/A"}},{"$f":"Lönd!J11","v":0},".M.EAV$$$$.XX.XXX.XXX.XXXX.SV.XXX.XXX.BG.N.M"]
[{"$f":"\"INN.\"&EIGNIR!$B$3&C1369","v":{"$error":"#N/A"}},{"$f":"Lönd!J12","v":0},".M.EAV$$$$.XX.XXX.XXX.XXXX.SV.XXX.XXX.KY.N.M"]
[{"$f":"\"INN.\"&EIGNIR!$B$3&C1370","v":{"$error":"#N/A"}},{"$f":"Lönd!J13","v":0},".M.EAV$$$$.XX.XXX.XXX.XXXX.SV.XXX.XXX.DK.N.M"]
[{"$f":"\"INN.\"&EIGNIR!$B$3&C1371","v":{"$error":"#N/A"}},{"$f":"Lönd!J14","v":0},".M.EAV$$$$.XX.XXX.XXX.XXXX.SV.XXX.XXX.EE.N.M"]
[{"$f":"\"INN.\"&EIGNIR!$B$3&C1372","v":{"$error":"#N/A"}},{"$f":"Lönd!J15","v":0},".M.EAV$$$$.XX.XXX.XXX.XXXX.SV.XXX.XXX.FI.N.M"]
[{"$f":"\"INN.\"&EIGNIR!$B$3&C1373","v":{"$error":"#N/A"}},{"$f":"Lönd!J16","v":0},".M.EAV$$$$.XX.XXX.XXX.XXXX.SV.XXX.XXX.FR.N.M"]
[{"$f":"\"INN.\"&EIGNIR!$B$3&C1374","v":{"$error":"#N/A"}},{"$f":"Lönd!J17","v":0},".M.EAV$$$$.XX.XXX.XXX.XXXX.SV.XXX.XXX.FO.N.M"]
[{"$f":"\"INN.\"&EIGNIR!$B$3&C1375","v":{"$error":"#N/A"}},{"$f":"Lönd!J18","v":0},".M.EAV$$$$.XX.XXX.XXX.XXXX.SV.XXX.XXX.GR.N.M"]
[{"$f":"\"INN.\"&EIGNIR!$B$3&C1376","v":{"$error":"#N/A"}},{"$f":"Lönd!J19","v":0},".M.EAV$$$$.XX.XXX.XXX.XXXX.SV.XXX.XXX.GG.N.M"]
[{"$f":"\"INN.\"&EIGNIR!$B$3&C1377","v":{"$error":"#N/A"}},{"$f":"Lönd!J20","v":0},".M.EAV$$$$.XX.XXX.XXX.XXXX.SV.XXX.XXX.NL.N.M"]
[{"$f":"\"INN.\"&EIGNIR!$B$3&C1378","v":{"$error":"#N/A"}},{"$f":"Lönd!J21","v":0},".M.EAV$$$$.XX.XXX.XXX.XXXX.SV.XXX.XXX.HK.N.M"]
[{"$f":"\"INN.\"&EIGNIR!$B$3&C1379","v":{"$error":"#N/A"}},{"$f":"Lönd!J22","v":0},".M.EAV$$$$.XX.XXX.XXX.XXXX.SV.XXX.XXX.IN.N.M"]
[{"$f":"\"INN.\"&EIGNIR!$B$3&C1380","v":{"$error":"#N/A"}},{"$f":"Lönd!J23","v":0},".M.EAV$$$$.XX.XXX.XXX.XXXX.SV.XXX.XXX.IE.N.M"]
[{"$f":"\"INN.\"&EIGNIR!$B$3&C1381","v":{"$error":"#N/A"}},{"$f":"Lönd!J24","v":0},".M.EAV$$$$.XX.XXX.XXX.XXXX.SV.XXX.XXX.IT.N.M"]
[{"$f":"\"INN.\"&EIGNIR!$B$3&C1382","v":{"$error":"#N/A"}},{"$f":"Lönd!J25","v":0},".M.EAV$$$$.XX.XXX.XXX.XXXX.SV.XXX.XXX.JP.N.M"]
[{"$f":"\"INN.\"&EIGNIR!$B$3&C1383","v":{"$error":"#N/A"}},{"$f":"Lönd!J26","v":0},".M.EAV$$$$.XX.XXX.XXX.XXXX.SV.XXX.XXX.JE.N.M"]
[{"$f":"\"INN.\"&EIGNIR!$B$3&C1384","v":{"$error":"#N/A"}},{"$f":"Lönd!J27","v":0},".M.EAV$$$$.XX.XXX.XXX.XXXX.SV.XXX.XXX.CA.N.M"]
[{"$f":"\"INN.\"&EIGNIR!$B$3&C1385","v":{"$error":"#N/A"}},{"$f":"Lönd!J28","v":0},".M.EAV$$$$.XX.XXX.XXX.XXXX.SV.XXX.XXX.CN.N.M"]
[{"$f":"\"INN.\"&EIGNIR!$B$3&C1386","v":{"$error":"#N/A"}},{"$f":"Lönd!J29","v":0},".M.EAV$$$$.XX.XXX.XXX.XXXX.SV.XXX.XXX.HR.N.M"]
[{"$f":"\"INN.\"&EIGNIR!$B$3&C1387","v":{"$error":"#N/A"}},{"$f":"Lönd!J30","v":0},".M.EAV$$$$.XX.XXX.XXX.XXXX.SV.XXX.XXX.CY.N.M"]
[{"$f":"\"INN.\"&EIGNIR!$B$3&C1388","v":{"$error":"#N/A"}},{"$f":"Lönd!J31","v":0},".M.EAV$$$$.XX.XXX.XXX.XXXX.SV.XXX.XXX.LV.N.M"]
[{"$f":"\"INN.\"&EIGNIR!$B$3&C1389","v":{"$error":"#N/A"}},{"$f":"Lönd!J32","v":0},".M.EAV$$$$.XX.XXX.XXX.XXXX.SV.XXX.XXX.LT.N.M"]
[{"$f":"\"INN.\"&EIGNIR!$B$3&C1390","v":{"$error":"#N/A"}},{"$f":"Lönd!J33","v":0},".M.EAV$$$$.XX.XXX.XXX.XXXX.SV.XXX.XXX.LX.N.M"]
[{"$f":"\"INN.\"&EIGNIR!$B$3&C1391","v":{"$error":"#N/A"}},{"$f":"Lönd!J34","v":0},".M.EAV$$$$.XX.XXX.XXX.XXXX.SV.XXX.XXX.MT.N.M"]
[{"$f":"\"INN.\"&EIGNIR!$B$3&C1392","v":{"$error":"#N/A"}},{"$f":"Lönd!J35","v":0},".M.EAV$$$$.XX.XXX.XXX.XXXX.SV.XXX.XXX.NO.N.M"]
[{"$f":"\"INN.\"&EIGNIR!$B$3&C1393","v":{"$error":"#N/A"}},{"$f":"Lönd!J36","v":0},".M.EAV$$$$.XX.XXX.XXX.XXXX.SV.XXX.XXX.PT.N.M"]
[{"$f":"\"INN.\"&EIGNIR!$B$3&C1394","v":{"$error":"#N/A"}},{"$f":"Lönd!J37","v":0},".M.EAV$$$$.XX.XXX.XXX.XXXX.SV.XXX.XXX.PL.N.M"]
[{"$f":"\"INN.\"&EIGNIR!$B$3&C1395","v":{"$error":"#N/A"}},{"$f":"Lönd!J38","v":0},".M.EAV$$$$.XX.XXX.XXX.XXXX.SV.XXX.XXX.RO.N.M"]
[{"$f":"\"INN.\"&EIGNIR!$B$3&C1396","v":{"$error":"#N/A"}},{"$f":"Lönd!J39","v":0},".M.EAV$$$$.XX.XXX.XXX.XXXX.SV.XXX.XXX.RU.N.M"]
[{"$f":"\"INN.\"&EIGNIR!$B$3&C1397","v":{"$error":"#N/A"}},{"$f":"Lönd!J40","v":0},".M.EAV$$$$.XX.XXX.XXX.XXXX.SV.XXX.XXX.SK.N.M"]
[{"$f":"\"INN.\"&EIGNIR!$B$3&C1398","v":{"$error":"#N/A"}},{"$f":"Lönd!J41","v":0},".M.EAV$$$$.XX.XXX.XXX.XXXX.SV.XXX.XXX.SI.N.M"]
[{"$f":"\"INN.\"&EIGNIR!$B$3&C1399","v":{"$error":"#N/A"}},{"$f":"Lönd!J42","v":0},".M.EAV$$$$.XX.XXX.XXX.XXXX.SV.XXX.XXX.ES.N.M"]
[{"$f":"\"INN.\"&EIGNIR!$B$3&C1400","v":{"$error":"#N/A"}},{"$f":"Lönd!J43","v":0},".M.EAV$$$$.XX.XXX.XXX.XXXX.SV.XXX.XXX.CH.N.M"]
[{"$f":"\"INN.\"&EIGNIR!$B$3&C1401","v":{"$error":"#N/A"}},{"$f":"Lönd!J44","v":0},".M.EAV$$$$.XX.XXX.XXX.XXXX.SV.XXX.XXX.SE.N.M"]
[{"$f":"\"INN.\"&EIGNIR!$B$3&C1402","v":{"$error":"#N/A"}},{"$f":"Lönd!J45","v":0},".M.EAV$$$$.XX.XXX.XXX.XXXX.SV.XXX.XXX.CZ.N.M"]
[{"$f":"\"INN.\"&EIGNIR!$B$3&C1403","v":{"$error":"#N/A"}},{"$f":"Lönd!J46","v":0},".M.EAV$$$$.XX.XXX.XXX.XXXX.SV.XXX.XXX.HU.N.M"]
[{"$f":"\"INN.\"&EIGNIR!$B$3&C1404","v":{"$error":"#N/A"}},{"$f":"Lönd!J47","v":0},".M.EAV$$$$.XX.XXX.XXX.XXXX.SV.XXX.XXX.DE.N.M"]
[{"$f":"\"INN.\"&EIGNIR!$B$3&C1405","v":{"$error":"#N/A"}},{"$f":"Lönd!J48","v":0},".M.EAV$$$$.XX.XXX.XXX.XXXX.SV.XXX.XXX.XX.N.M"]
[{"$f":"\"INN.\"&EIGNIR!$B$3&C1406","v":{"$error":"#N/A"}},{"$f":"Lönd!J49","v":0},".M.EAV$$$$.XX.XXX.XXX.XXXX.SV.XXX.XXX.4F.N.M"]
[{"$f":"\"INN.\"&EIGNIR!$B$3&C1407","v":{"$error":"#N/A"}},{"$f":"Lönd!J50","v":0},".M.EAV$$$$.XX.XXX.XXX.XXXX.SV.XXX.XXX.4C.N.M"]
[{"$f":"\"INN.\"&EIGNIR!$B$3&C1408","v":{"$error":"#N/A"}},{"$f":"Lönd!J51","v":0},".M.EAV$$$$.XX.XXX.XXX.XXXX.SV.XXX.XXX.4J.N.M"]
[{"$f":"\"INN.\"&EIGNIR!$B$3&C1409","v":{"$error":"#N/A"}},{"$f":"Lönd!J52","v":0},".M.EAV$$$$.XX.XXX.XXX.XXXX.SV.XXX.XXX.4S.N.M"]
[{"$f":"\"INN.\"&EIGNIR!$B$3&C1410","v":{"$error":"#N/A"}},{"$f":"Lönd!J53","v":0},".M.EAV$$$$.XX.XXX.XXX.XXXX.SV.XXX.XXX.1C.N.M"]
[{"$f":"\"INN.\"&EIGNIR!$B$3&C1411","v":{"$error":"#N/A"}},{"$f":"Lönd!J54","v":0},".M.EAV$$$$.XX.XXX.XXX.XXXX.SV.XXX.XXX.5Z.N.M"]
[{"$f":"\"INN.\"&EIGNIR!$B$3&C1412","v":{"$error":"#N/A"}},{"$f":"Lönd!K6","v":0},".M.EHHDSHF.XX.XXX.XXX.HLFT.SV.XXX.XXX.AT.N.M","//Hlutir í erlendum hlutdeildarfyrirtækjum"]
[{"$f":"\"INN.\"&EIGNIR!$B$3&C1413","v":{"$error":"#N/A"}},{"$f":"Lönd!K7","v":0},".M.EHHDSHF.XX.XXX.XXX.HLFT.SV.XXX.XXX.US.N.M"]
[{"$f":"\"INN.\"&EIGNIR!$B$3&C1414","v":{"$error":"#N/A"}},{"$f":"Lönd!K8","v":0},".M.EHHDSHF.XX.XXX.XXX.HLFT.SV.XXX.XXX.BE.N.M"]
[{"$f":"\"INN.\"&EIGNIR!$B$3&C1415","v":{"$error":"#N/A"}},{"$f":"Lönd!K9","v":0},".M.EHHDSHF.XX.XXX.XXX.HLFT.SV.XXX.XXX.BR.N.M"]
[{"$f":"\"INN.\"&EIGNIR!$B$3&C1416","v":{"$error":"#N/A"}},{"$f":"Lönd!K10","v":0},".M.EHHDSHF.XX.XXX.XXX.HLFT.SV.XXX.XXX.GB.N.M"]
[{"$f":"\"INN.\"&EIGNIR!$B$3&C1417","v":{"$error":"#N/A"}},{"$f":"Lönd!K11","v":0},".M.EHHDSHF.XX.XXX.XXX.HLFT.SV.XXX.XXX.BG.N.M"]
[{"$f":"\"INN.\"&EIGNIR!$B$3&C1418","v":{"$error":"#N/A"}},{"$f":"Lönd!K12","v":0},".M.EHHDSHF.XX.XXX.XXX.HLFT.SV.XXX.XXX.KY.N.M"]
[{"$f":"\"INN.\"&EIGNIR!$B$3&C1419","v":{"$error":"#N/A"}},{"$f":"Lönd!K13","v":0},".M.EHHDSHF.XX.XXX.XXX.HLFT.SV.XXX.XXX.DK.N.M"]
[{"$f":"\"INN.\"&EIGNIR!$B$3&C1420","v":{"$error":"#N/A"}},{"$f":"Lönd!K14","v":0},".M.EHHDSHF.XX.XXX.XXX.HLFT.SV.XXX.XXX.EE.N.M"]
[{"$f":"\"INN.\"&EIGNIR!$B$3&C1421","v":{"$error":"#N/A"}},{"$f":"Lönd!K15","v":0},".M.EHHDSHF.XX.XXX.XXX.HLFT.SV.XXX.XXX.FI.N.M"]
[{"$f":"\"INN.\"&EIGNIR!$B$3&C1422","v":{"$error":"#N/A"}},{"$f":"Lönd!K16","v":0},".M.EHHDSHF.XX.XXX.XXX.HLFT.SV.XXX.XXX.FR.N.M"]
[{"$f":"\"INN.\"&EIGNIR!$B$3&C1423","v":{"$error":"#N/A"}},{"$f":"Lönd!K17","v":0},".M.EHHDSHF.XX.XXX.XXX.HLFT.SV.XXX.XXX.FO.N.M"]
[{"$f":"\"INN.\"&EIGNIR!$B$3&C1424","v":{"$error":"#N/A"}},{"$f":"Lönd!K18","v":0},".M.EHHDSHF.XX.XXX.XXX.HLFT.SV.XXX.XXX.GR.N.M"]
[{"$f":"\"INN.\"&EIGNIR!$B$3&C1425","v":{"$error":"#N/A"}},{"$f":"Lönd!K19","v":0},".M.EHHDSHF.XX.XXX.XXX.HLFT.SV.XXX.XXX.GG.N.M"]
[{"$f":"\"INN.\"&EIGNIR!$B$3&C1426","v":{"$error":"#N/A"}},{"$f":"Lönd!K20","v":0},".M.EHHDSHF.XX.XXX.XXX.HLFT.SV.XXX.XXX.NL.N.M"]
[{"$f":"\"INN.\"&EIGNIR!$B$3&C1427","v":{"$error":"#N/A"}},{"$f":"Lönd!K21","v":0},".M.EHHDSHF.XX.XXX.XXX.HLFT.SV.XXX.XXX.HK.N.M"]
[{"$f":"\"INN.\"&EIGNIR!$B$3&C1428","v":{"$error":"#N/A"}},{"$f":"Lönd!K22","v":0},".M.EHHDSHF.XX.XXX.XXX.HLFT.SV.XXX.XXX.IN.N.M"]
[{"$f":"\"INN.\"&EIGNIR!$B$3&C1429","v":{"$error":"#N/A"}},{"$f":"Lönd!K23","v":0},".M.EHHDSHF.XX.XXX.XXX.HLFT.SV.XXX.XXX.IE.N.M"]
[{"$f":"\"INN.\"&EIGNIR!$B$3&C1430","v":{"$error":"#N/A"}},{"$f":"Lönd!K24","v":0},".M.EHHDSHF.XX.XXX.XXX.HLFT.SV.XXX.XXX.IT.N.M"]
[{"$f":"\"INN.\"&EIGNIR!$B$3&C1431","v":{"$error":"#N/A"}},{"$f":"Lönd!K25","v":0},".M.EHHDSHF.XX.XXX.XXX.HLFT.SV.XXX.XXX.JP.N.M"]
[{"$f":"\"INN.\"&EIGNIR!$B$3&C1432","v":{"$error":"#N/A"}},{"$f":"Lönd!K26","v":0},".M.EHHDSHF.XX.XXX.XXX.HLFT.SV.XXX.XXX.JE.N.M"]
[{"$f":"\"INN.\"&EIGNIR!$B$3&C1433","v":{"$error":"#N/A"}},{"$f":"Lönd!K27","v":0},".M.EHHDSHF.XX.XXX.XXX.HLFT.SV.XXX.XXX.CA.N.M"]
[{"$f":"\"INN.\"&EIGNIR!$B$3&C1434","v":{"$error":"#N/A"}},{"$f":"Lönd!K28","v":0},".M.EHHDSHF.XX.XXX.XXX.HLFT.SV.XXX.XXX.CN.N.M"]
[{"$f":"\"INN.\"&EIGNIR!$B$3&C1435","v":{"$error":"#N/A"}},{"$f":"Lönd!K29","v":0},".M.EHHDSHF.XX.XXX.XXX.HLFT.SV.XXX.XXX.HR.N.M"]
[{"$f":"\"INN.\"&EIGNIR!$B$3&C1436","v":{"$error":"#N/A"}},{"$f":"Lönd!K30","v":0},".M.EHHDSHF.XX.XXX.XXX.HLFT.SV.XXX.XXX.CY.N.M"]
[{"$f":"\"INN.\"&EIGNIR!$B$3&C1437","v":{"$error":"#N/A"}},{"$f":"Lönd!K31","v":0},".M.EHHDSHF.XX.XXX.XXX.HLFT.SV.XXX.XXX.LV.N.M"]
[{"$f":"\"INN.\"&EIGNIR!$B$3&C1438","v":{"$error":"#N/A"}},{"$f":"Lönd!K32","v":0},".M.EHHDSHF.XX.XXX.XXX.HLFT.SV.XXX.XXX.LT.N.M"]
[{"$f":"\"INN.\"&EIGNIR!$B$3&C1439","v":{"$error":"#N/A"}},{"$f":"Lönd!K33","v":0},".M.EHHDSHF.XX.XXX.XXX.HLFT.SV.XXX.XXX.LX.N.M"]
[{"$f":"\"INN.\"&EIGNIR!$B$3&C1440","v":{"$error":"#N/A"}},{"$f":"Lönd!K34","v":0},".M.EHHDSHF.XX.XXX.XXX.HLFT.SV.XXX.XXX.MT.N.M"]
[{"$f":"\"INN.\"&EIGNIR!$B$3&C1441","v":{"$error":"#N/A"}},{"$f":"Lönd!K35","v":0},".M.EHHDSHF.XX.XXX.XXX.HLFT.SV.XXX.XXX.NO.N.M"]
[{"$f":"\"INN.\"&EIGNIR!$B$3&C1442","v":{"$error":"#N/A"}},{"$f":"Lönd!K36","v":0},".M.EHHDSHF.XX.XXX.XXX.HLFT.SV.XXX.XXX.PT.N.M"]
[{"$f":"\"INN.\"&EIGNIR!$B$3&C1443","v":{"$error":"#N/A"}},{"$f":"Lönd!K37","v":0},".M.EHHDSHF.XX.XXX.XXX.HLFT.SV.XXX.XXX.PL.N.M"]
[{"$f":"\"INN.\"&EIGNIR!$B$3&C1444","v":{"$error":"#N/A"}},{"$f":"Lönd!K38","v":0},".M.EHHDSHF.XX.XXX.XXX.HLFT.SV.XXX.XXX.RO.N.M"]
[{"$f":"\"INN.\"&EIGNIR!$B$3&C1445","v":{"$error":"#N/A"}},{"$f":"Lönd!K39","v":0},".M.EHHDSHF.XX.XXX.XXX.HLFT.SV.XXX.XXX.RU.N.M"]
[{"$f":"\"INN.\"&EIGNIR!$B$3&C1446","v":{"$error":"#N/A"}},{"$f":"Lönd!K40","v":0},".M.EHHDSHF.XX.XXX.XXX.HLFT.SV.XXX.XXX.SK.N.M"]
[{"$f":"\"INN.\"&EIGNIR!$B$3&C1447","v":{"$error":"#N/A"}},{"$f":"Lönd!K41","v":0},".M.EHHDSHF.XX.XXX.XXX.HLFT.SV.XXX.XXX.SI.N.M"]
[{"$f":"\"INN.\"&EIGNIR!$B$3&C1448","v":{"$error":"#N/A"}},{"$f":"Lönd!K42","v":0},".M.EHHDSHF.XX.XXX.XXX.HLFT.SV.XXX.XXX.ES.N.M"]
[{"$f":"\"INN.\"&EIGNIR!$B$3&C1449","v":{"$error":"#N/A"}},{"$f":"Lönd!K43","v":0},".M.EHHDSHF.XX.XXX.XXX.HLFT.SV.XXX.XXX.CH.N.M"]
[{"$f":"\"INN.\"&EIGNIR!$B$3&C1450","v":{"$error":"#N/A"}},{"$f":"Lönd!K44","v":0},".M.EHHDSHF.XX.XXX.XXX.HLFT.SV.XXX.XXX.SE.N.M"]
[{"$f":"\"INN.\"&EIGNIR!$B$3&C1451","v":{"$error":"#N/A"}},{"$f":"Lönd!K45","v":0},".M.EHHDSHF.XX.XXX.XXX.HLFT.SV.XXX.XXX.CZ.N.M"]
[{"$f":"\"INN.\"&EIGNIR!$B$3&C1452","v":{"$error":"#N/A"}},{"$f":"Lönd!K46","v":0},".M.EHHDSHF.XX.XXX.XXX.HLFT.SV.XXX.XXX.HU.N.M"]
[{"$f":"\"INN.\"&EIGNIR!$B$3&C1453","v":{"$error":"#N/A"}},{"$f":"Lönd!K47","v":0},".M.EHHDSHF.XX.XXX.XXX.HLFT.SV.XXX.XXX.DE.N.M"]
[{"$f":"\"INN.\"&EIGNIR!$B$3&C1454","v":{"$error":"#N/A"}},{"$f":"Lönd!K48","v":0},".M.EHHDSHF.XX.XXX.XXX.HLFT.SV.XXX.XXX.XX.N.M"]
[{"$f":"\"INN.\"&EIGNIR!$B$3&C1455","v":{"$error":"#N/A"}},{"$f":"Lönd!K49","v":0},".M.EHHDSHF.XX.XXX.XXX.HLFT.SV.XXX.XXX.4F.N.M"]
[{"$f":"\"INN.\"&EIGNIR!$B$3&C1456","v":{"$error":"#N/A"}},{"$f":"Lönd!K50","v":0},".M.EHHDSHF.XX.XXX.XXX.HLFT.SV.XXX.XXX.4C.N.M"]
[{"$f":"\"INN.\"&EIGNIR!$B$3&C1457","v":{"$error":"#N/A"}},{"$f":"Lönd!K51","v":0},".M.EHHDSHF.XX.XXX.XXX.HLFT.SV.XXX.XXX.4J.N.M"]
[{"$f":"\"INN.\"&EIGNIR!$B$3&C1458","v":{"$error":"#N/A"}},{"$f":"Lönd!K52","v":0},".M.EHHDSHF.XX.XXX.XXX.HLFT.SV.XXX.XXX.4S.N.M"]
[{"$f":"\"INN.\"&EIGNIR!$B$3&C1459","v":{"$error":"#N/A"}},{"$f":"Lönd!K53","v":0},".M.EHHDSHF.XX.XXX.XXX.HLFT.SV.XXX.XXX.1C.N.M"]
[{"$f":"\"INN.\"&EIGNIR!$B$3&C1460","v":{"$error":"#N/A"}},{"$f":"Lönd!K54","v":0},".M.EHHDSHF.XX.XXX.XXX.HLFT.SV.XXX.XXX.5Z.N.M"]
[{"$f":"\"INN.\"&EIGNIR!$B$3&C1461","v":{"$error":"#N/A"}},{"$f":"Lönd!L6","v":0},".M.EHHDSHF.XX.XXX.XXX.TEFT.SV.XXX.XXX.AT.N.M","//Hlutir í tengdum erlendum fyrirtækjum"]
[{"$f":"\"INN.\"&EIGNIR!$B$3&C1462","v":{"$error":"#N/A"}},{"$f":"Lönd!L7","v":0},".M.EHHDSHF.XX.XXX.XXX.TEFT.SV.XXX.XXX.US.N.M"]
[{"$f":"\"INN.\"&EIGNIR!$B$3&C1463","v":{"$error":"#N/A"}},{"$f":"Lönd!L8","v":0},".M.EHHDSHF.XX.XXX.XXX.TEFT.SV.XXX.XXX.BE.N.M"]
[{"$f":"\"INN.\"&EIGNIR!$B$3&C1464","v":{"$error":"#N/A"}},{"$f":"Lönd!L9","v":0},".M.EHHDSHF.XX.XXX.XXX.TEFT.SV.XXX.XXX.BR.N.M"]
[{"$f":"\"INN.\"&EIGNIR!$B$3&C1465","v":{"$error":"#N/A"}},{"$f":"Lönd!L10","v":0},".M.EHHDSHF.XX.XXX.XXX.TEFT.SV.XXX.XXX.GB.N.M"]
[{"$f":"\"INN.\"&EIGNIR!$B$3&C1466","v":{"$error":"#N/A"}},{"$f":"Lönd!L11","v":0},".M.EHHDSHF.XX.XXX.XXX.TEFT.SV.XXX.XXX.BG.N.M"]
[{"$f":"\"INN.\"&EIGNIR!$B$3&C1467","v":{"$error":"#N/A"}},{"$f":"Lönd!L12","v":0},".M.EHHDSHF.XX.XXX.XXX.TEFT.SV.XXX.XXX.KY.N.M"]
[{"$f":"\"INN.\"&EIGNIR!$B$3&C1468","v":{"$error":"#N/A"}},{"$f":"Lönd!L13","v":0},".M.EHHDSHF.XX.XXX.XXX.TEFT.SV.XXX.XXX.DK.N.M"]
[{"$f":"\"INN.\"&EIGNIR!$B$3&C1469","v":{"$error":"#N/A"}},{"$f":"Lönd!L14","v":0},".M.EHHDSHF.XX.XXX.XXX.TEFT.SV.XXX.XXX.EE.N.M"]
[{"$f":"\"INN.\"&EIGNIR!$B$3&C1470","v":{"$error":"#N/A"}},{"$f":"Lönd!L15","v":0},".M.EHHDSHF.XX.XXX.XXX.TEFT.SV.XXX.XXX.FI.N.M"]
[{"$f":"\"INN.\"&EIGNIR!$B$3&C1471","v":{"$error":"#N/A"}},{"$f":"Lönd!L16","v":0},".M.EHHDSHF.XX.XXX.XXX.TEFT.SV.XXX.XXX.FR.N.M"]
[{"$f":"\"INN.\"&EIGNIR!$B$3&C1472","v":{"$error":"#N/A"}},{"$f":"Lönd!L17","v":0},".M.EHHDSHF.XX.XXX.XXX.TEFT.SV.XXX.XXX.FO.N.M"]
[{"$f":"\"INN.\"&EIGNIR!$B$3&C1473","v":{"$error":"#N/A"}},{"$f":"Lönd!L18","v":0},".M.EHHDSHF.XX.XXX.XXX.TEFT.SV.XXX.XXX.GR.N.M"]
[{"$f":"\"INN.\"&EIGNIR!$B$3&C1474","v":{"$error":"#N/A"}},{"$f":"Lönd!L19","v":0},".M.EHHDSHF.XX.XXX.XXX.TEFT.SV.XXX.XXX.GG.N.M"]
[{"$f":"\"INN.\"&EIGNIR!$B$3&C1475","v":{"$error":"#N/A"}},{"$f":"Lönd!L20","v":0},".M.EHHDSHF.XX.XXX.XXX.TEFT.SV.XXX.XXX.NL.N.M"]
[{"$f":"\"INN.\"&EIGNIR!$B$3&C1476","v":{"$error":"#N/A"}},{"$f":"Lönd!L21","v":0},".M.EHHDSHF.XX.XXX.XXX.TEFT.SV.XXX.XXX.HK.N.M"]
[{"$f":"\"INN.\"&EIGNIR!$B$3&C1477","v":{"$error":"#N/A"}},{"$f":"Lönd!L22","v":0},".M.EHHDSHF.XX.XXX.XXX.TEFT.SV.XXX.XXX.IN.N.M"]
[{"$f":"\"INN.\"&EIGNIR!$B$3&C1478","v":{"$error":"#N/A"}},{"$f":"Lönd!L23","v":0},".M.EHHDSHF.XX.XXX.XXX.TEFT.SV.XXX.XXX.IE.N.M"]
[{"$f":"\"INN.\"&EIGNIR!$B$3&C1479","v":{"$error":"#N/A"}},{"$f":"Lönd!L24","v":0},".M.EHHDSHF.XX.XXX.XXX.TEFT.SV.XXX.XXX.IT.N.M"]
[{"$f":"\"INN.\"&EIGNIR!$B$3&C1480","v":{"$error":"#N/A"}},{"$f":"Lönd!L25","v":0},".M.EHHDSHF.XX.XXX.XXX.TEFT.SV.XXX.XXX.JP.N.M"]
[{"$f":"\"INN.\"&EIGNIR!$B$3&C1481","v":{"$error":"#N/A"}},{"$f":"Lönd!L26","v":0},".M.EHHDSHF.XX.XXX.XXX.TEFT.SV.XXX.XXX.JE.N.M"]
[{"$f":"\"INN.\"&EIGNIR!$B$3&C1482","v":{"$error":"#N/A"}},{"$f":"Lönd!L27","v":0},".M.EHHDSHF.XX.XXX.XXX.TEFT.SV.XXX.XXX.CA.N.M"]
[{"$f":"\"INN.\"&EIGNIR!$B$3&C1483","v":{"$error":"#N/A"}},{"$f":"Lönd!L28","v":0},".M.EHHDSHF.XX.XXX.XXX.TEFT.SV.XXX.XXX.CN.N.M"]
[{"$f":"\"INN.\"&EIGNIR!$B$3&C1484","v":{"$error":"#N/A"}},{"$f":"Lönd!L29","v":0},".M.EHHDSHF.XX.XXX.XXX.TEFT.SV.XXX.XXX.HR.N.M"]
[{"$f":"\"INN.\"&EIGNIR!$B$3&C1485","v":{"$error":"#N/A"}},{"$f":"Lönd!L30","v":0},".M.EHHDSHF.XX.XXX.XXX.TEFT.SV.XXX.XXX.CY.N.M"]
[{"$f":"\"INN.\"&EIGNIR!$B$3&C1486","v":{"$error":"#N/A"}},{"$f":"Lönd!L31","v":0},".M.EHHDSHF.XX.XXX.XXX.TEFT.SV.XXX.XXX.LV.N.M"]
[{"$f":"\"INN.\"&EIGNIR!$B$3&C1487","v":{"$error":"#N/A"}},{"$f":"Lönd!L32","v":0},".M.EHHDSHF.XX.XXX.XXX.TEFT.SV.XXX.XXX.LT.N.M"]
[{"$f":"\"INN.\"&EIGNIR!$B$3&C1488","v":{"$error":"#N/A"}},{"$f":"Lönd!L33","v":0},".M.EHHDSHF.XX.XXX.XXX.TEFT.SV.XXX.XXX.LX.N.M"]
[{"$f":"\"INN.\"&EIGNIR!$B$3&C1489","v":{"$error":"#N/A"}},{"$f":"Lönd!L34","v":0},".M.EHHDSHF.XX.XXX.XXX.TEFT.SV.XXX.XXX.MT.N.M"]
[{"$f":"\"INN.\"&EIGNIR!$B$3&C1490","v":{"$error":"#N/A"}},{"$f":"Lönd!L35","v":0},".M.EHHDSHF.XX.XXX.XXX.TEFT.SV.XXX.XXX.NO.N.M"]
[{"$f":"\"INN.\"&EIGNIR!$B$3&C1491","v":{"$error":"#N/A"}},{"$f":"Lönd!L36","v":0},".M.EHHDSHF.XX.XXX.XXX.TEFT.SV.XXX.XXX.PT.N.M"]
[{"$f":"\"INN.\"&EIGNIR!$B$3&C1492","v":{"$error":"#N/A"}},{"$f":"Lönd!L37","v":0},".M.EHHDSHF.XX.XXX.XXX.TEFT.SV.XXX.XXX.PL.N.M"]
[{"$f":"\"INN.\"&EIGNIR!$B$3&C1493","v":{"$error":"#N/A"}},{"$f":"Lönd!L38","v":0},".M.EHHDSHF.XX.XXX.XXX.TEFT.SV.XXX.XXX.RO.N.M"]
[{"$f":"\"INN.\"&EIGNIR!$B$3&C1494","v":{"$error":"#N/A"}},{"$f":"Lönd!L39","v":0},".M.EHHDSHF.XX.XXX.XXX.TEFT.SV.XXX.XXX.RU.N.M"]
[{"$f":"\"INN.\"&EIGNIR!$B$3&C1495","v":{"$error":"#N/A"}},{"$f":"Lönd!L40","v":0},".M.EHHDSHF.XX.XXX.XXX.TEFT.SV.XXX.XXX.SK.N.M"]
[{"$f":"\"INN.\"&EIGNIR!$B$3&C1496","v":{"$error":"#N/A"}},{"$f":"Lönd!L41","v":0},".M.EHHDSHF.XX.XXX.XXX.TEFT.SV.XXX.XXX.SI.N.M"]
[{"$f":"\"INN.\"&EIGNIR!$B$3&C1497","v":{"$error":"#N/A"}},{"$f":"Lönd!L42","v":0},".M.EHHDSHF.XX.XXX.XXX.TEFT.SV.XXX.XXX.ES.N.M"]
[{"$f":"\"INN.\"&EIGNIR!$B$3&C1498","v":{"$error":"#N/A"}},{"$f":"Lönd!L43","v":0},".M.EHHDSHF.XX.XXX.XXX.TEFT.SV.XXX.XXX.CH.N.M"]
[{"$f":"\"INN.\"&EIGNIR!$B$3&C1499","v":{"$error":"#N/A"}},{"$f":"Lönd!L44","v":0},".M.EHHDSHF.XX.XXX.XXX.TEFT.SV.XXX.XXX.SE.N.M"]
[{"$f":"\"INN.\"&EIGNIR!$B$3&C1500","v":{"$error":"#N/A"}},{"$f":"Lönd!L45","v":0},".M.EHHDSHF.XX.XXX.XXX.TEFT.SV.XXX.XXX.CZ.N.M"]
[{"$f":"\"INN.\"&EIGNIR!$B$3&C1501","v":{"$error":"#N/A"}},{"$f":"Lönd!L46","v":0},".M.EHHDSHF.XX.XXX.XXX.TEFT.SV.XXX.XXX.HU.N.M"]
[{"$f":"\"INN.\"&EIGNIR!$B$3&C1502","v":{"$error":"#N/A"}},{"$f":"Lönd!L47","v":0},".M.EHHDSHF.XX.XXX.XXX.TEFT.SV.XXX.XXX.DE.N.M"]
[{"$f":"\"INN.\"&EIGNIR!$B$3&C1503","v":{"$error":"#N/A"}},{"$f":"Lönd!L48","v":0},".M.EHHDSHF.XX.XXX.XXX.TEFT.SV.XXX.XXX.XX.N.M"]
[{"$f":"\"INN.\"&EIGNIR!$B$3&C1504","v":{"$error":"#N/A"}},{"$f":"Lönd!L49","v":0},".M.EHHDSHF.XX.XXX.XXX.TEFT.SV.XXX.XXX.4F.N.M"]
[{"$f":"\"INN.\"&EIGNIR!$B$3&C1505","v":{"$error":"#N/A"}},{"$f":"Lönd!L50","v":0},".M.EHHDSHF.XX.XXX.XXX.TEFT.SV.XXX.XXX.4C.N.M"]
[{"$f":"\"INN.\"&EIGNIR!$B$3&C1506","v":{"$error":"#N/A"}},{"$f":"Lönd!L51","v":0},".M.EHHDSHF.XX.XXX.XXX.TEFT.SV.XXX.XXX.4J.N.M"]
[{"$f":"\"INN.\"&EIGNIR!$B$3&C1507","v":{"$error":"#N/A"}},{"$f":"Lönd!L52","v":0},".M.EHHDSHF.XX.XXX.XXX.TEFT.SV.XXX.XXX.4S.N.M"]
[{"$f":"\"INN.\"&EIGNIR!$B$3&C1508","v":{"$error":"#N/A"}},{"$f":"Lönd!L53","v":0},".M.EHHDSHF.XX.XXX.XXX.TEFT.SV.XXX.XXX.1C.N.M"]
[{"$f":"\"INN.\"&EIGNIR!$B$3&C1509","v":{"$error":"#N/A"}},{"$f":"Lönd!L54","v":0},".M.EHHDSHF.XX.XXX.XXX.TEFT.SV.XXX.XXX.5Z.N.M"]
[{"$f":"\"INN.\"&EIGNIR!$B$3&C1510","v":{"$error":"#N/A"}},{"$f":"Lönd!M6","v":0},".M.EAEAE$$.XX.XXX.XXX.XXXX.SV.XXX.XXX.AT.N.M","//Aðrar erlendar eignir"]
[{"$f":"\"INN.\"&EIGNIR!$B$3&C1511","v":{"$error":"#N/A"}},{"$f":"Lönd!M7","v":0},".M.EAEAE$$.XX.XXX.XXX.XXXX.SV.XXX.XXX.US.N.M"]
[{"$f":"\"INN.\"&EIGNIR!$B$3&C1512","v":{"$error":"#N/A"}},{"$f":"Lönd!M8","v":0},".M.EAEAE$$.XX.XXX.XXX.XXXX.SV.XXX.XXX.BE.N.M"]
[{"$f":"\"INN.\"&EIGNIR!$B$3&C1513","v":{"$error":"#N/A"}},{"$f":"Lönd!M9","v":0},".M.EAEAE$$.XX.XXX.XXX.XXXX.SV.XXX.XXX.BR.N.M"]
[{"$f":"\"INN.\"&EIGNIR!$B$3&C1514","v":{"$error":"#N/A"}},{"$f":"Lönd!M10","v":0},".M.EAEAE$$.XX.XXX.XXX.XXXX.SV.XXX.XXX.GB.N.M"]
[{"$f":"\"INN.\"&EIGNIR!$B$3&C1515","v":{"$error":"#N/A"}},{"$f":"Lönd!M11","v":0},".M.EAEAE$$.XX.XXX.XXX.XXXX.SV.XXX.XXX.BG.N.M"]
[{"$f":"\"INN.\"&EIGNIR!$B$3&C1516","v":{"$error":"#N/A"}},{"$f":"Lönd!M12","v":0},".M.EAEAE$$.XX.XXX.XXX.XXXX.SV.XXX.XXX.KY.N.M"]
[{"$f":"\"INN.\"&EIGNIR!$B$3&C1517","v":{"$error":"#N/A"}},{"$f":"Lönd!M13","v":0},".M.EAEAE$$.XX.XXX.XXX.XXXX.SV.XXX.XXX.DK.N.M"]
[{"$f":"\"INN.\"&EIGNIR!$B$3&C1518","v":{"$error":"#N/A"}},{"$f":"Lönd!M14","v":0},".M.EAEAE$$.XX.XXX.XXX.XXXX.SV.XXX.XXX.EE.N.M"]
[{"$f":"\"INN.\"&EIGNIR!$B$3&C1519","v":{"$error":"#N/A"}},{"$f":"Lönd!M15","v":0},".M.EAEAE$$.XX.XXX.XXX.XXXX.SV.XXX.XXX.FI.N.M"]
[{"$f":"\"INN.\"&EIGNIR!$B$3&C1520","v":{"$error":"#N/A"}},{"$f":"Lönd!M16","v":0},".M.EAEAE$$.XX.XXX.XXX.XXXX.SV.XXX.XXX.FR.N.M"]
[{"$f":"\"INN.\"&EIGNIR!$B$3&C1521","v":{"$error":"#N/A"}},{"$f":"Lönd!M17","v":0},".M.EAEAE$$.XX.XXX.XXX.XXXX.SV.XXX.XXX.FO.N.M"]
[{"$f":"\"INN.\"&EIGNIR!$B$3&C1522","v":{"$error":"#N/A"}},{"$f":"Lönd!M18","v":0},".M.EAEAE$$.XX.XXX.XXX.XXXX.SV.XXX.XXX.GR.N.M"]
[{"$f":"\"INN.\"&EIGNIR!$B$3&C1523","v":{"$error":"#N/A"}},{"$f":"Lönd!M19","v":0},".M.EAEAE$$.XX.XXX.XXX.XXXX.SV.XXX.XXX.GG.N.M"]
[{"$f":"\"INN.\"&EIGNIR!$B$3&C1524","v":{"$error":"#N/A"}},{"$f":"Lönd!M20","v":0},".M.EAEAE$$.XX.XXX.XXX.XXXX.SV.XXX.XXX.NL.N.M"]
[{"$f":"\"INN.\"&EIGNIR!$B$3&C1525","v":{"$error":"#N/A"}},{"$f":"Lönd!M21","v":0},".M.EAEAE$$.XX.XXX.XXX.XXXX.SV.XXX.XXX.HK.N.M"]
[{"$f":"\"INN.\"&EIGNIR!$B$3&C1526","v":{"$error":"#N/A"}},{"$f":"Lönd!M22","v":0},".M.EAEAE$$.XX.XXX.XXX.XXXX.SV.XXX.XXX.IN.N.M"]
[{"$f":"\"INN.\"&EIGNIR!$B$3&C1527","v":{"$error":"#N/A"}},{"$f":"Lönd!M23","v":0},".M.EAEAE$$.XX.XXX.XXX.XXXX.SV.XXX.XXX.IE.N.M"]
[{"$f":"\"INN.\"&EIGNIR!$B$3&C1528","v":{"$error":"#N/A"}},{"$f":"Lönd!M24","v":0},".M.EAEAE$$.XX.XXX.XXX.XXXX.SV.XXX.XXX.IT.N.M"]
[{"$f":"\"INN.\"&EIGNIR!$B$3&C1529","v":{"$error":"#N/A"}},{"$f":"Lönd!M25","v":0},".M.EAEAE$$.XX.XXX.XXX.XXXX.SV.XXX.XXX.JP.N.M"]
[{"$f":"\"INN.\"&EIGNIR!$B$3&C1530","v":{"$error":"#N/A"}},{"$f":"Lönd!M26","v":0},".M.EAEAE$$.XX.XXX.XXX.XXXX.SV.XXX.XXX.JE.N.M"]
[{"$f":"\"INN.\"&EIGNIR!$B$3&C1531","v":{"$error":"#N/A"}},{"$f":"Lönd!M27","v":0},".M.EAEAE$$.XX.XXX.XXX.XXXX.SV.XXX.XXX.CA.N.M"]
[{"$f":"\"INN.\"&EIGNIR!$B$3&C1532","v":{"$error":"#N/A"}},{"$f":"Lönd!M28","v":0},".M.EAEAE$$.XX.XXX.XXX.XXXX.SV.XXX.XXX.CN.N.M"]
[{"$f":"\"INN.\"&EIGNIR!$B$3&C1533","v":{"$error":"#N/A"}},{"$f":"Lönd!M29","v":0},".M.EAEAE$$.XX.XXX.XXX.XXXX.SV.XXX.XXX.HR.N.M"]
[{"$f":"\"INN.\"&EIGNIR!$B$3&C1534","v":{"$error":"#N/A"}},{"$f":"Lönd!M30","v":0},".M.EAEAE$$.XX.XXX.XXX.XXXX.SV.XXX.XXX.CY.N.M"]
[{"$f":"\"INN.\"&EIGNIR!$B$3&C1535","v":{"$error":"#N/A"}},{"$f":"Lönd!M31","v":0},".M.EAEAE$$.XX.XXX.XXX.XXXX.SV.XXX.XXX.LV.N.M"]
[{"$f":"\"INN.\"&EIGNIR!$B$3&C1536","v":{"$error":"#N/A"}},{"$f":"Lönd!M32","v":0},".M.EAEAE$$.XX.XXX.XXX.XXXX.SV.XXX.XXX.LT.N.M"]
[{"$f":"\"INN.\"&EIGNIR!$B$3&C1537","v":{"$error":"#N/A"}},{"$f":"Lönd!M33","v":0},".M.EAEAE$$.XX.XXX.XXX.XXXX.SV.XXX.XXX.LX.N.M"]
[{"$f":"\"INN.\"&EIGNIR!$B$3&C1538","v":{"$error":"#N/A"}},{"$f":"Lönd!M34","v":0},".M.EAEAE$$.XX.XXX.XXX.XXXX.SV.XXX.XXX.MT.N.M"]
[{"$f":"\"INN.\"&EIGNIR!$B$3&C1539","v":{"$error":"#N/A"}},{"$f":"Lönd!M35","v":0},".M.EAEAE$$.XX.XXX.XXX.XXXX.SV.XXX.XXX.NO.N.M"]
[{"$f":"\"INN.\"&EIGNIR!$B$3&C1540","v":{"$error":"#N/A"}},{"$f":"Lönd!M36","v":0},".M.EAEAE$$.XX.XXX.XXX.XXXX.SV.XXX.XXX.PT.N.M"]
[{"$f":"\"INN.\"&EIGNIR!$B$3&C1541","v":{"$error":"#N/A"}},{"$f":"Lönd!M37","v":0},".M.EAEAE$$.XX.XXX.XXX.XXXX.SV.XXX.XXX.PL.N.M"]
[{"$f":"\"INN.\"&EIGNIR!$B$3&C1542","v":{"$error":"#N/A"}},{"$f":"Lönd!M38","v":0},".M.EAEAE$$.XX.XXX.XXX.XXXX.SV.XXX.XXX.RO.N.M"]
[{"$f":"\"INN.\"&EIGNIR!$B$3&C1543","v":{"$error":"#N/A"}},{"$f":"Lönd!M39","v":0},".M.EAEAE$$.XX.XXX.XXX.XXXX.SV.XXX.XXX.RU.N.M"]
[{"$f":"\"INN.\"&EIGNIR!$B$3&C1544","v":{"$error":"#N/A"}},{"$f":"Lönd!M40","v":0},".M.EAEAE$$.XX.XXX.XXX.XXXX.SV.XXX.XXX.SK.N.M"]
[{"$f":"\"INN.\"&EIGNIR!$B$3&C1545","v":{"$error":"#N/A"}},{"$f":"Lönd!M41","v":0},".M.EAEAE$$.XX.XXX.XXX.XXXX.SV.XXX.XXX.SI.N.M"]
[{"$f":"\"INN.\"&EIGNIR!$B$3&C1546","v":{"$error":"#N/A"}},{"$f":"Lönd!M42","v":0},".M.EAEAE$$.XX.XXX.XXX.XXXX.SV.XXX.XXX.ES.N.M"]
[{"$f":"\"INN.\"&EIGNIR!$B$3&C1547","v":{"$error":"#N/A"}},{"$f":"Lönd!M43","v":0},".M.EAEAE$$.XX.XXX.XXX.XXXX.SV.XXX.XXX.CH.N.M"]
[{"$f":"\"INN.\"&EIGNIR!$B$3&C1548","v":{"$error":"#N/A"}},{"$f":"Lönd!M44","v":0},".M.EAEAE$$.XX.XXX.XXX.XXXX.SV.XXX.XXX.SE.N.M"]
[{"$f":"\"INN.\"&EIGNIR!$B$3&C1549","v":{"$error":"#N/A"}},{"$f":"Lönd!M45","v":0},".M.EAEAE$$.XX.XXX.XXX.XXXX.SV.XXX.XXX.CZ.N.M"]
[{"$f":"\"INN.\"&EIGNIR!$B$3&C1550","v":{"$error":"#N/A"}},{"$f":"Lönd!M46","v":0},".M.EAEAE$$.XX.XXX.XXX.XXXX.SV.XXX.XXX.HU.N.M"]
[{"$f":"\"INN.\"&EIGNIR!$B$3&C1551","v":{"$error":"#N/A"}},{"$f":"Lönd!M47","v":0},".M.EAEAE$$.XX.XXX.XXX.XXXX.SV.XXX.XXX.DE.N.M"]
[{"$f":"\"INN.\"&EIGNIR!$B$3&C1552","v":{"$error":"#N/A"}},{"$f":"Lönd!M48","v":0},".M.EAEAE$$.XX.XXX.XXX.XXXX.SV.XXX.XXX.XX.N.M"]
[{"$f":"\"INN.\"&EIGNIR!$B$3&C1553","v":{"$error":"#N/A"}},{"$f":"Lönd!M49","v":0},".M.EAEAE$$.XX.XXX.XXX.XXXX.SV.XXX.XXX.4F.N.M"]
[{"$f":"\"INN.\"&EIGNIR!$B$3&C1554","v":{"$error":"#N/A"}},{"$f":"Lönd!M50","v":0},".M.EAEAE$$.XX.XXX.XXX.XXXX.SV.XXX.XXX.4C.N.M"]
[{"$f":"\"INN.\"&EIGNIR!$B$3&C1555","v":{"$error":"#N/A"}},{"$f":"Lönd!M51","v":0},".M.EAEAE$$.XX.XXX.XXX.XXXX.SV.XXX.XXX.4J.N.M"]
[{"$f":"\"INN.\"&EIGNIR!$B$3&C1556","v":{"$error":"#N/A"}},{"$f":"Lönd!M52","v":0},".M.EAEAE$$.XX.XXX.XXX.XXXX.SV.XXX.XXX.4S.N.M"]
[{"$f":"\"INN.\"&EIGNIR!$B$3&C1557","v":{"$error":"#N/A"}},{"$f":"Lönd!M53","v":0},".M.EAEAE$$.XX.XXX.XXX.XXXX.SV.XXX.XXX.1C.N.M"]
[{"$f":"\"INN.\"&EIGNIR!$B$3&C1558","v":{"$error":"#N/A"}},{"$f":"Lönd!M54","v":0},".M.EAEAE$$.XX.XXX.XXX.XXXX.SV.XXX.XXX.5Z.N.M"]
[{"$f":"\"INN.\"&EIGNIR!$B$3&C1559","v":{"$error":"#N/A"}},{"$f":"Lönd!N6","v":0},".M.EAEAEVE.XX.XXX.XXX.XXXX.SV.XXX.XXX.AT.N.M","//Viðskiptakröfur á erlenda aðila"]
[{"$f":"\"INN.\"&EIGNIR!$B$3&C1560","v":{"$error":"#N/A"}},{"$f":"Lönd!N7","v":0},".M.EAEAEVE.XX.XXX.XXX.XXXX.SV.XXX.XXX.US.N.M"]
[{"$f":"\"INN.\"&EIGNIR!$B$3&C1561","v":{"$error":"#N/A"}},{"$f":"Lönd!N8","v":0},".M.EAEAEVE.XX.XXX.XXX.XXXX.SV.XXX.XXX.BE.N.M"]
[{"$f":"\"INN.\"&EIGNIR!$B$3&C1562","v":{"$error":"#N/A"}},{"$f":"Lönd!N9","v":0},".M.EAEAEVE.XX.XXX.XXX.XXXX.SV.XXX.XXX.BR.N.M"]
[{"$f":"\"INN.\"&EIGNIR!$B$3&C1563","v":{"$error":"#N/A"}},{"$f":"Lönd!N10","v":0},".M.EAEAEVE.XX.XXX.XXX.XXXX.SV.XXX.XXX.GB.N.M"]
[{"$f":"\"INN.\"&EIGNIR!$B$3&C1564","v":{"$error":"#N/A"}},{"$f":"Lönd!N11","v":0},".M.EAEAEVE.XX.XXX.XXX.XXXX.SV.XXX.XXX.BG.N.M"]
[{"$f":"\"INN.\"&EIGNIR!$B$3&C1565","v":{"$error":"#N/A"}},{"$f":"Lönd!N12","v":0},".M.EAEAEVE.XX.XXX.XXX.XXXX.SV.XXX.XXX.KY.N.M"]
[{"$f":"\"INN.\"&EIGNIR!$B$3&C1566","v":{"$error":"#N/A"}},{"$f":"Lönd!N13","v":0},".M.EAEAEVE.XX.XXX.XXX.XXXX.SV.XXX.XXX.DK.N.M"]
[{"$f":"\"INN.\"&EIGNIR!$B$3&C1567","v":{"$error":"#N/A"}},{"$f":"Lönd!N14","v":0},".M.EAEAEVE.XX.XXX.XXX.XXXX.SV.XXX.XXX.EE.N.M"]
[{"$f":"\"INN.\"&EIGNIR!$B$3&C1568","v":{"$error":"#N/A"}},{"$f":"Lönd!N15","v":0},".M.EAEAEVE.XX.XXX.XXX.XXXX.SV.XXX.XXX.FI.N.M"]
[{"$f":"\"INN.\"&EIGNIR!$B$3&C1569","v":{"$error":"#N/A"}},{"$f":"Lönd!N16","v":0},".M.EAEAEVE.XX.XXX.XXX.XXXX.SV.XXX.XXX.FR.N.M"]
[{"$f":"\"INN.\"&EIGNIR!$B$3&C1570","v":{"$error":"#N/A"}},{"$f":"Lönd!N17","v":0},".M.EAEAEVE.XX.XXX.XXX.XXXX.SV.XXX.XXX.FO.N.M"]
[{"$f":"\"INN.\"&EIGNIR!$B$3&C1571","v":{"$error":"#N/A"}},{"$f":"Lönd!N18","v":0},".M.EAEAEVE.XX.XXX.XXX.XXXX.SV.XXX.XXX.GR.N.M"]
[{"$f":"\"INN.\"&EIGNIR!$B$3&C1572","v":{"$error":"#N/A"}},{"$f":"Lönd!N19","v":0},".M.EAEAEVE.XX.XXX.XXX.XXXX.SV.XXX.XXX.GG.N.M"]
[{"$f":"\"INN.\"&EIGNIR!$B$3&C1573","v":{"$error":"#N/A"}},{"$f":"Lönd!N20","v":0},".M.EAEAEVE.XX.XXX.XXX.XXXX.SV.XXX.XXX.NL.N.M"]
[{"$f":"\"INN.\"&EIGNIR!$B$3&C1574","v":{"$error":"#N/A"}},{"$f":"Lönd!N21","v":0},".M.EAEAEVE.XX.XXX.XXX.XXXX.SV.XXX.XXX.HK.N.M"]
[{"$f":"\"INN.\"&EIGNIR!$B$3&C1575","v":{"$error":"#N/A"}},{"$f":"Lönd!N22","v":0},".M.EAEAEVE.XX.XXX.XXX.XXXX.SV.XXX.XXX.IN.N.M"]
[{"$f":"\"INN.\"&EIGNIR!$B$3&C1576","v":{"$error":"#N/A"}},{"$f":"Lönd!N23","v":0},".M.EAEAEVE.XX.XXX.XXX.XXXX.SV.XXX.XXX.IE.N.M"]
[{"$f":"\"INN.\"&EIGNIR!$B$3&C1577","v":{"$error":"#N/A"}},{"$f":"Lönd!N24","v":0},".M.EAEAEVE.XX.XXX.XXX.XXXX.SV.XXX.XXX.IT.N.M"]
[{"$f":"\"INN.\"&EIGNIR!$B$3&C1578","v":{"$error":"#N/A"}},{"$f":"Lönd!N25","v":0},".M.EAEAEVE.XX.XXX.XXX.XXXX.SV.XXX.XXX.JP.N.M"]
[{"$f":"\"INN.\"&EIGNIR!$B$3&C1579","v":{"$error":"#N/A"}},{"$f":"Lönd!N26","v":0},".M.EAEAEVE.XX.XXX.XXX.XXXX.SV.XXX.XXX.JE.N.M"]
[{"$f":"\"INN.\"&EIGNIR!$B$3&C1580","v":{"$error":"#N/A"}},{"$f":"Lönd!N27","v":0},".M.EAEAEVE.XX.XXX.XXX.XXXX.SV.XXX.XXX.CA.N.M"]
[{"$f":"\"INN.\"&EIGNIR!$B$3&C1581","v":{"$error":"#N/A"}},{"$f":"Lönd!N28","v":0},".M.EAEAEVE.XX.XXX.XXX.XXXX.SV.XXX.XXX.CN.N.M"]
[{"$f":"\"INN.\"&EIGNIR!$B$3&C1582","v":{"$error":"#N/A"}},{"$f":"Lönd!N29","v":0},".M.EAEAEVE.XX.XXX.XXX.XXXX.SV.XXX.XXX.HR.N.M"]
[{"$f":"\"INN.\"&EIGNIR!$B$3&C1583","v":{"$error":"#N/A"}},{"$f":"Lönd!N30","v":0},".M.EAEAEVE.XX.XXX.XXX.XXXX.SV.XXX.XXX.CY.N.M"]
[{"$f":"\"INN.\"&EIGNIR!$B$3&C1584","v":{"$error":"#N/A"}},{"$f":"Lönd!N31","v":0},".M.EAEAEVE.XX.XXX.XXX.XXXX.SV.XXX.XXX.LV.N.M"]
[{"$f":"\"INN.\"&EIGNIR!$B$3&C1585","v":{"$error":"#N/A"}},{"$f":"Lönd!N32","v":0},".M.EAEAEVE.XX.XXX.XXX.XXXX.SV.XXX.XXX.LT.N.M"]
[{"$f":"\"INN.\"&EIGNIR!$B$3&C1586","v":{"$error":"#N/A"}},{"$f":"Lönd!N33","v":0},".M.EAEAEVE.XX.XXX.XXX.XXXX.SV.XXX.XXX.LX.N.M"]
[{"$f":"\"INN.\"&EIGNIR!$B$3&C1587","v":{"$error":"#N/A"}},{"$f":"Lönd!N34","v":0},".M.EAEAEVE.XX.XXX.XXX.XXXX.SV.XXX.XXX.MT.N.M"]
[{"$f":"\"INN.\"&EIGNIR!$B$3&C1588","v":{"$error":"#N/A"}},{"$f":"Lönd!N35","v":0},".M.EAEAEVE.XX.XXX.XXX.XXXX.SV.XXX.XXX.NO.N.M"]
[{"$f":"\"INN.\"&EIGNIR!$B$3&C1589","v":{"$error":"#N/A"}},{"$f":"Lönd!N36","v":0},".M.EAEAEVE.XX.XXX.XXX.XXXX.SV.XXX.XXX.PT.N.M"]
[{"$f":"\"INN.\"&EIGNIR!$B$3&C1590","v":{"$error":"#N/A"}},{"$f":"Lönd!N37","v":0},".M.EAEAEVE.XX.XXX.XXX.XXXX.SV.XXX.XXX.PL.N.M"]
[{"$f":"\"INN.\"&EIGNIR!$B$3&C1591","v":{"$error":"#N/A"}},{"$f":"Lönd!N38","v":0},".M.EAEAEVE.XX.XXX.XXX.XXXX.SV.XXX.XXX.RO.N.M"]
[{"$f":"\"INN.\"&EIGNIR!$B$3&C1592","v":{"$error":"#N/A"}},{"$f":"Lönd!N39","v":0},".M.EAEAEVE.XX.XXX.XXX.XXXX.SV.XXX.XXX.RU.N.M"]
[{"$f":"\"INN.\"&EIGNIR!$B$3&C1593","v":{"$error":"#N/A"}},{"$f":"Lönd!N40","v":0},".M.EAEAEVE.XX.XXX.XXX.XXXX.SV.XXX.XXX.SK.N.M"]
[{"$f":"\"INN.\"&EIGNIR!$B$3&C1594","v":{"$error":"#N/A"}},{"$f":"Lönd!N41","v":0},".M.EAEAEVE.XX.XXX.XXX.XXXX.SV.XXX.XXX.SI.N.M"]
[{"$f":"\"INN.\"&EIGNIR!$B$3&C1595","v":{"$error":"#N/A"}},{"$f":"Lönd!N42","v":0},".M.EAEAEVE.XX.XXX.XXX.XXXX.SV.XXX.XXX.ES.N.M"]
[{"$f":"\"INN.\"&EIGNIR!$B$3&C1596","v":{"$error":"#N/A"}},{"$f":"Lönd!N43","v":0},".M.EAEAEVE.XX.XXX.XXX.XXXX.SV.XXX.XXX.CH.N.M"]
[{"$f":"\"INN.\"&EIGNIR!$B$3&C1597","v":{"$error":"#N/A"}},{"$f":"Lönd!N44","v":0},".M.EAEAEVE.XX.XXX.XXX.XXXX.SV.XXX.XXX.SE.N.M"]
[{"$f":"\"INN.\"&EIGNIR!$B$3&C1598","v":{"$error":"#N/A"}},{"$f":"Lönd!N45","v":0},".M.EAEAEVE.XX.XXX.XXX.XXXX.SV.XXX.XXX.CZ.N.M"]
[{"$f":"\"INN.\"&EIGNIR!$B$3&C1599","v":{"$error":"#N/A"}},{"$f":"Lönd!N46","v":0},".M.EAEAEVE.XX.XXX.XXX.XXXX.SV.XXX.XXX.HU.N.M"]
[{"$f":"\"INN.\"&EIGNIR!$B$3&C1600","v":{"$error":"#N/A"}},{"$f":"Lönd!N47","v":0},".M.EAEAEVE.XX.XXX.XXX.XXXX.SV.XXX.XXX.DE.N.M"]
[{"$f":"\"INN.\"&EIGNIR!$B$3&C1601","v":{"$error":"#N/A"}},{"$f":"Lönd!N48","v":0},".M.EAEAEVE.XX.XXX.XXX.XXXX.SV.XXX.XXX.XX.N.M"]
[{"$f":"\"INN.\"&EIGNIR!$B$3&C1602","v":{"$error":"#N/A"}},{"$f":"Lönd!N49","v":0},".M.EAEAEVE.XX.XXX.XXX.XXXX.SV.XXX.XXX.4F.N.M"]
[{"$f":"\"INN.\"&EIGNIR!$B$3&C1603","v":{"$error":"#N/A"}},{"$f":"Lönd!N50","v":0},".M.EAEAEVE.XX.XXX.XXX.XXXX.SV.XXX.XXX.4C.N.M"]
[{"$f":"\"INN.\"&EIGNIR!$B$3&C1604","v":{"$error":"#N/A"}},{"$f":"Lönd!N51","v":0},".M.EAEAEVE.XX.XXX.XXX.XXXX.SV.XXX.XXX.4J.N.M"]
[{"$f":"\"INN.\"&EIGNIR!$B$3&C1605","v":{"$error":"#N/A"}},{"$f":"Lönd!N52","v":0},".M.EAEAEVE.XX.XXX.XXX.XXXX.SV.XXX.XXX.4S.N.M"]
[{"$f":"\"INN.\"&EIGNIR!$B$3&C1606","v":{"$error":"#N/A"}},{"$f":"Lönd!N53","v":0},".M.EAEAEVE.XX.XXX.XXX.XXXX.SV.XXX.XXX.1C.N.M"]
[{"$f":"\"INN.\"&EIGNIR!$B$3&C1607","v":{"$error":"#N/A"}},{"$f":"Lönd!N54","v":0},".M.EAEAEVE.XX.XXX.XXX.XXXX.SV.XXX.XXX.5Z.N.M"]
[{"$f":"\"INN.\"&EIGNIR!$B$3&C1608","v":{"$error":"#N/A"}},{"$f":"Lönd!O5","v":0},".M.EAEAEEO.XX.XXX.XXX.XXXX.SV.XXX.XXX.IS.N.M","//Aðrar erlendar eignir ót.a."]
[{"$f":"\"INN.\"&EIGNIR!$B$3&C1609","v":{"$error":"#N/A"}},{"$f":"Lönd!O6","v":0},".M.EAEAEEO.XX.XXX.XXX.XXXX.SV.XXX.XXX.AT.N.M"]
[{"$f":"\"INN.\"&EIGNIR!$B$3&C1610","v":{"$error":"#N/A"}},{"$f":"Lönd!O7","v":0},".M.EAEAEEO.XX.XXX.XXX.XXXX.SV.XXX.XXX.US.N.M"]
[{"$f":"\"INN.\"&EIGNIR!$B$3&C1611","v":{"$error":"#N/A"}},{"$f":"Lönd!O8","v":0},".M.EAEAEEO.XX.XXX.XXX.XXXX.SV.XXX.XXX.BE.N.M"]
[{"$f":"\"INN.\"&EIGNIR!$B$3&C1612","v":{"$error":"#N/A"}},{"$f":"Lönd!O9","v":0},".M.EAEAEEO.XX.XXX.XXX.XXXX.SV.XXX.XXX.BR.N.M"]
[{"$f":"\"INN.\"&EIGNIR!$B$3&C1613","v":{"$error":"#N/A"}},{"$f":"Lönd!O10","v":0},".M.EAEAEEO.XX.XXX.XXX.XXXX.SV.XXX.XXX.GB.N.M"]
[{"$f":"\"INN.\"&EIGNIR!$B$3&C1614","v":{"$error":"#N/A"}},{"$f":"Lönd!O11","v":0},".M.EAEAEEO.XX.XXX.XXX.XXXX.SV.XXX.XXX.BG.N.M"]
[{"$f":"\"INN.\"&EIGNIR!$B$3&C1615","v":{"$error":"#N/A"}},{"$f":"Lönd!O12","v":0},".M.EAEAEEO.XX.XXX.XXX.XXXX.SV.XXX.XXX.KY.N.M"]
[{"$f":"\"INN.\"&EIGNIR!$B$3&C1616","v":{"$error":"#N/A"}},{"$f":"Lönd!O13","v":0},".M.EAEAEEO.XX.XXX.XXX.XXXX.SV.XXX.XXX.DK.N.M"]
[{"$f":"\"INN.\"&EIGNIR!$B$3&C1617","v":{"$error":"#N/A"}},{"$f":"Lönd!O14","v":0},".M.EAEAEEO.XX.XXX.XXX.XXXX.SV.XXX.XXX.EE.N.M"]
[{"$f":"\"INN.\"&EIGNIR!$B$3&C1618","v":{"$error":"#N/A"}},{"$f":"Lönd!O15","v":0},".M.EAEAEEO.XX.XXX.XXX.XXXX.SV.XXX.XXX.FI.N.M"]
[{"$f":"\"INN.\"&EIGNIR!$B$3&C1619","v":{"$error":"#N/A"}},{"$f":"Lönd!O16","v":0},".M.EAEAEEO.XX.XXX.XXX.XXXX.SV.XXX.XXX.FR.N.M"]
[{"$f":"\"INN.\"&EIGNIR!$B$3&C1620","v":{"$error":"#N/A"}},{"$f":"Lönd!O17","v":0},".M.EAEAEEO.XX.XXX.XXX.XXXX.SV.XXX.XXX.FO.N.M"]
[{"$f":"\"INN.\"&EIGNIR!$B$3&C1621","v":{"$error":"#N/A"}},{"$f":"Lönd!O18","v":0},".M.EAEAEEO.XX.XXX.XXX.XXXX.SV.XXX.XXX.GR.N.M"]
[{"$f":"\"INN.\"&EIGNIR!$B$3&C1622","v":{"$error":"#N/A"}},{"$f":"Lönd!O19","v":0},".M.EAEAEEO.XX.XXX.XXX.XXXX.SV.XXX.XXX.GG.N.M"]
[{"$f":"\"INN.\"&EIGNIR!$B$3&C1623","v":{"$error":"#N/A"}},{"$f":"Lönd!O20","v":0},".M.EAEAEEO.XX.XXX.XXX.XXXX.SV.XXX.XXX.NL.N.M"]
[{"$f":"\"INN.\"&EIGNIR!$B$3&C1624","v":{"$error":"#N/A"}},{"$f":"Lönd!O21","v":0},".M.EAEAEEO.XX.XXX.XXX.XXXX.SV.XXX.XXX.HK.N.M"]
[{"$f":"\"INN.\"&EIGNIR!$B$3&C1625","v":{"$error":"#N/A"}},{"$f":"Lönd!O22","v":0},".M.EAEAEEO.XX.XXX.XXX.XXXX.SV.XXX.XXX.IN.N.M"]
[{"$f":"\"INN.\"&EIGNIR!$B$3&C1626","v":{"$error":"#N/A"}},{"$f":"Lönd!O23","v":0},".M.EAEAEEO.XX.XXX.XXX.XXXX.SV.XXX.XXX.IE.N.M"]
[{"$f":"\"INN.\"&EIGNIR!$B$3&C1627","v":{"$error":"#N/A"}},{"$f":"Lönd!O24","v":0},".M.EAEAEEO.XX.XXX.XXX.XXXX.SV.XXX.XXX.IT.N.M"]
[{"$f":"\"INN.\"&EIGNIR!$B$3&C1628","v":{"$error":"#N/A"}},{"$f":"Lönd!O25","v":0},".M.EAEAEEO.XX.XXX.XXX.XXXX.SV.XXX.XXX.JP.N.M"]
[{"$f":"\"INN.\"&EIGNIR!$B$3&C1629","v":{"$error":"#N/A"}},{"$f":"Lönd!O26","v":0},".M.EAEAEEO.XX.XXX.XXX.XXXX.SV.XXX.XXX.JE.N.M"]
[{"$f":"\"INN.\"&EIGNIR!$B$3&C1630","v":{"$error":"#N/A"}},{"$f":"Lönd!O27","v":0},".M.EAEAEEO.XX.XXX.XXX.XXXX.SV.XXX.XXX.CA.N.M"]
[{"$f":"\"INN.\"&EIGNIR!$B$3&C1631","v":{"$error":"#N/A"}},{"$f":"Lönd!O28","v":0},".M.EAEAEEO.XX.XXX.XXX.XXXX.SV.XXX.XXX.CN.N.M"]
[{"$f":"\"INN.\"&EIGNIR!$B$3&C1632","v":{"$error":"#N/A"}},{"$f":"Lönd!O29","v":0},".M.EAEAEEO.XX.XXX.XXX.XXXX.SV.XXX.XXX.HR.N.M"]
[{"$f":"\"INN.\"&EIGNIR!$B$3&C1633","v":{"$error":"#N/A"}},{"$f":"Lönd!O30","v":0},".M.EAEAEEO.XX.XXX.XXX.XXXX.SV.XXX.XXX.CY.N.M"]
[{"$f":"\"INN.\"&EIGNIR!$B$3&C1634","v":{"$error":"#N/A"}},{"$f":"Lönd!O31","v":0},".M.EAEAEEO.XX.XXX.XXX.XXXX.SV.XXX.XXX.LV.N.M"]
[{"$f":"\"INN.\"&EIGNIR!$B$3&C1635","v":{"$error":"#N/A"}},{"$f":"Lönd!O32","v":0},".M.EAEAEEO.XX.XXX.XXX.XXXX.SV.XXX.XXX.LT.N.M"]
[{"$f":"\"INN.\"&EIGNIR!$B$3&C1636","v":{"$error":"#N/A"}},{"$f":"Lönd!O33","v":0},".M.EAEAEEO.XX.XXX.XXX.XXXX.SV.XXX.XXX.LX.N.M"]
[{"$f":"\"INN.\"&EIGNIR!$B$3&C1637","v":{"$error":"#N/A"}},{"$f":"Lönd!O34","v":0},".M.EAEAEEO.XX.XXX.XXX.XXXX.SV.XXX.XXX.MT.N.M"]
[{"$f":"\"INN.\"&EIGNIR!$B$3&C1638","v":{"$error":"#N/A"}},{"$f":"Lönd!O35","v":0},".M.EAEAEEO.XX.XXX.XXX.XXXX.SV.XXX.XXX.NO.N.M"]
[{"$f":"\"INN.\"&EIGNIR!$B$3&C1639","v":{"$error":"#N/A"}},{"$f":"Lönd!O36","v":0},".M.EAEAEEO.XX.XXX.XXX.XXXX.SV.XXX.XXX.PT.N.M"]
[{"$f":"\"INN.\"&EIGNIR!$B$3&C1640","v":{"$error":"#N/A"}},{"$f":"Lönd!O37","v":0},".M.EAEAEEO.XX.XXX.XXX.XXXX.SV.XXX.XXX.PL.N.M"]
[{"$f":"\"INN.\"&EIGNIR!$B$3&C1641","v":{"$error":"#N/A"}},{"$f":"Lönd!O38","v":0},".M.EAEAEEO.XX.XXX.XXX.XXXX.SV.XXX.XXX.RO.N.M"]
[{"$f":"\"INN.\"&EIGNIR!$B$3&C1642","v":{"$error":"#N/A"}},{"$f":"Lönd!O39","v":0},".M.EAEAEEO.XX.XXX.XXX.XXXX.SV.XXX.XXX.RU.N.M"]
[{"$f":"\"INN.\"&EIGNIR!$B$3&C1643","v":{"$error":"#N/A"}},{"$f":"Lönd!O40","v":0},".M.EAEAEEO.XX.XXX.XXX.XXXX.SV.XXX.XXX.SK.N.M"]
[{"$f":"\"INN.\"&EIGNIR!$B$3&C1644","v":{"$error":"#N/A"}},{"$f":"Lönd!O41","v":0},".M.EAEAEEO.XX.XXX.XXX.XXXX.SV.XXX.XXX.SI.N.M"]
[{"$f":"\"INN.\"&EIGNIR!$B$3&C1645","v":{"$error":"#N/A"}},{"$f":"Lönd!O42","v":0},".M.EAEAEEO.XX.XXX.XXX.XXXX.SV.XXX.XXX.ES.N.M"]
[{"$f":"\"INN.\"&EIGNIR!$B$3&C1646","v":{"$error":"#N/A"}},{"$f":"Lönd!O43","v":0},".M.EAEAEEO.XX.XXX.XXX.XXXX.SV.XXX.XXX.CH.N.M"]
[{"$f":"\"INN.\"&EIGNIR!$B$3&C1647","v":{"$error":"#N/A"}},{"$f":"Lönd!O44","v":0},".M.EAEAEEO.XX.XXX.XXX.XXXX.SV.XXX.XXX.SE.N.M"]
[{"$f":"\"INN.\"&EIGNIR!$B$3&C1648","v":{"$error":"#N/A"}},{"$f":"Lönd!O45","v":0},".M.EAEAEEO.XX.XXX.XXX.XXXX.SV.XXX.XXX.CZ.N.M"]
[{"$f":"\"INN.\"&EIGNIR!$B$3&C1649","v":{"$error":"#N/A"}},{"$f":"Lönd!O46","v":0},".M.EAEAEEO.XX.XXX.XXX.XXXX.SV.XXX.XXX.HU.N.M"]
[{"$f":"\"INN.\"&EIGNIR!$B$3&C1650","v":{"$error":"#N/A"}},{"$f":"Lönd!O47","v":0},".M.EAEAEEO.XX.XXX.XXX.XXXX.SV.XXX.XXX.DE.N.M"]
[{"$f":"\"INN.\"&EIGNIR!$B$3&C1651","v":{"$error":"#N/A"}},{"$f":"Lönd!O48","v":0},".M.EAEAEEO.XX.XXX.XXX.XXXX.SV.XXX.XXX.XX.N.M"]
[{"$f":"\"INN.\"&EIGNIR!$B$3&C1652","v":{"$error":"#N/A"}},{"$f":"Lönd!O49","v":0},".M.EAEAEEO.XX.XXX.XXX.XXXX.SV.XXX.XXX.4F.N.M"]
[{"$f":"\"INN.\"&EIGNIR!$B$3&C1653","v":{"$error":"#N/A"}},{"$f":"Lönd!O50","v":0},".M.EAEAEEO.XX.XXX.XXX.XXXX.SV.XXX.XXX.4C.N.M"]
[{"$f":"\"INN.\"&EIGNIR!$B$3&C1654","v":{"$error":"#N/A"}},{"$f":"Lönd!O51","v":0},".M.EAEAEEO.XX.XXX.XXX.XXXX.SV.XXX.XXX.4J.N.M"]
[{"$f":"\"INN.\"&EIGNIR!$B$3&C1655","v":{"$error":"#N/A"}},{"$f":"Lönd!O52","v":0},".M.EAEAEEO.XX.XXX.XXX.XXXX.SV.XXX.XXX.4S.N.M"]
[{"$f":"\"INN.\"&EIGNIR!$B$3&C1656","v":{"$error":"#N/A"}},{"$f":"Lönd!O53","v":0},".M.EAEAEEO.XX.XXX.XXX.XXXX.SV.XXX.XXX.1C.N.M"]
[{"$f":"\"INN.\"&EIGNIR!$B$3&C1657","v":{"$error":"#N/A"}},{"$f":"Lönd!O54","v":0},".M.EAEAEEO.XX.XXX.XXX.XXXX.SV.XXX.XXX.5Z.N.M"]
[{"$f":"\"INN.\"&EIGNIR!$B$3&C1658","v":{"$error":"#N/A"}},{"$f":"Lönd!P6","v":0},".M.SVUER$$.XX.XXX.XXX.XXXX.SV.XXX.XXX.AT.N.M","//Erlend verðbréfaútgáfa"]
[{"$f":"\"INN.\"&EIGNIR!$B$3&C1659","v":{"$error":"#N/A"}},{"$f":"Lönd!P7","v":0},".M.SVUER$$.XX.XXX.XXX.XXXX.SV.XXX.XXX.US.N.M"]
[{"$f":"\"INN.\"&EIGNIR!$B$3&C1660","v":{"$error":"#N/A"}},{"$f":"Lönd!P8","v":0},".M.SVUER$$.XX.XXX.XXX.XXXX.SV.XXX.XXX.BE.N.M"]
[{"$f":"\"INN.\"&EIGNIR!$B$3&C1661","v":{"$error":"#N/A"}},{"$f":"Lönd!P9","v":0},".M.SVUER$$.XX.XXX.XXX.XXXX.SV.XXX.XXX.BR.N.M"]
[{"$f":"\"INN.\"&EIGNIR!$B$3&C1662","v":{"$error":"#N/A"}},{"$f":"Lönd!P10","v":0},".M.SVUER$$.XX.XXX.XXX.XXXX.SV.XXX.XXX.GB.N.M"]
[{"$f":"\"INN.\"&EIGNIR!$B$3&C1663","v":{"$error":"#N/A"}},{"$f":"Lönd!P11","v":0},".M.SVUER$$.XX.XXX.XXX.XXXX.SV.XXX.XXX.BG.N.M"]
[{"$f":"\"INN.\"&EIGNIR!$B$3&C1664","v":{"$error":"#N/A"}},{"$f":"Lönd!P12","v":0},".M.SVUER$$.XX.XXX.XXX.XXXX.SV.XXX.XXX.KY.N.M"]
[{"$f":"\"INN.\"&EIGNIR!$B$3&C1665","v":{"$error":"#N/A"}},{"$f":"Lönd!P13","v":0},".M.SVUER$$.XX.XXX.XXX.XXXX.SV.XXX.XXX.DK.N.M"]
[{"$f":"\"INN.\"&EIGNIR!$B$3&C1666","v":{"$error":"#N/A"}},{"$f":"Lönd!P14","v":0},".M.SVUER$$.XX.XXX.XXX.XXXX.SV.XXX.XXX.EE.N.M"]
[{"$f":"\"INN.\"&EIGNIR!$B$3&C1667","v":{"$error":"#N/A"}},{"$f":"Lönd!P15","v":0},".M.SVUER$$.XX.XXX.XXX.XXXX.SV.XXX.XXX.FI.N.M"]
[{"$f":"\"INN.\"&EIGNIR!$B$3&C1668","v":{"$error":"#N/A"}},{"$f":"Lönd!P16","v":0},".M.SVUER$$.XX.XXX.XXX.XXXX.SV.XXX.XXX.FR.N.M"]
[{"$f":"\"INN.\"&EIGNIR!$B$3&C1669","v":{"$error":"#N/A"}},{"$f":"Lönd!P17","v":0},".M.SVUER$$.XX.XXX.XXX.XXXX.SV.XXX.XXX.FO.N.M"]
[{"$f":"\"INN.\"&EIGNIR!$B$3&C1670","v":{"$error":"#N/A"}},{"$f":"Lönd!P18","v":0},".M.SVUER$$.XX.XXX.XXX.XXXX.SV.XXX.XXX.GR.N.M"]
[{"$f":"\"INN.\"&EIGNIR!$B$3&C1671","v":{"$error":"#N/A"}},{"$f":"Lönd!P19","v":0},".M.SVUER$$.XX.XXX.XXX.XXXX.SV.XXX.XXX.GG.N.M"]
[{"$f":"\"INN.\"&EIGNIR!$B$3&C1672","v":{"$error":"#N/A"}},{"$f":"Lönd!P20","v":0},".M.SVUER$$.XX.XXX.XXX.XXXX.SV.XXX.XXX.NL.N.M"]
[{"$f":"\"INN.\"&EIGNIR!$B$3&C1673","v":{"$error":"#N/A"}},{"$f":"Lönd!P21","v":0},".M.SVUER$$.XX.XXX.XXX.XXXX.SV.XXX.XXX.HK.N.M"]
[{"$f":"\"INN.\"&EIGNIR!$B$3&C1674","v":{"$error":"#N/A"}},{"$f":"Lönd!P22","v":0},".M.SVUER$$.XX.XXX.XXX.XXXX.SV.XXX.XXX.IN.N.M"]
[{"$f":"\"INN.\"&EIGNIR!$B$3&C1675","v":{"$error":"#N/A"}},{"$f":"Lönd!P23","v":0},".M.SVUER$$.XX.XXX.XXX.XXXX.SV.XXX.XXX.IE.N.M"]
[{"$f":"\"INN.\"&EIGNIR!$B$3&C1676","v":{"$error":"#N/A"}},{"$f":"Lönd!P24","v":0},".M.SVUER$$.XX.XXX.XXX.XXXX.SV.XXX.XXX.IT.N.M"]
[{"$f":"\"INN.\"&EIGNIR!$B$3&C1677","v":{"$error":"#N/A"}},{"$f":"Lönd!P25","v":0},".M.SVUER$$.XX.XXX.XXX.XXXX.SV.XXX.XXX.JP.N.M"]
[{"$f":"\"INN.\"&EIGNIR!$B$3&C1678","v":{"$error":"#N/A"}},{"$f":"Lönd!P26","v":0},".M.SVUER$$.XX.XXX.XXX.XXXX.SV.XXX.XXX.JE.N.M"]
[{"$f":"\"INN.\"&EIGNIR!$B$3&C1679","v":{"$error":"#N/A"}},{"$f":"Lönd!P27","v":0},".M.SVUER$$.XX.XXX.XXX.XXXX.SV.XXX.XXX.CA.N.M"]
[{"$f":"\"INN.\"&EIGNIR!$B$3&C1680","v":{"$error":"#N/A"}},{"$f":"Lönd!P28","v":0},".M.SVUER$$.XX.XXX.XXX.XXXX.SV.XXX.XXX.CN.N.M"]
[{"$f":"\"INN.\"&EIGNIR!$B$3&C1681","v":{"$error":"#N/A"}},{"$f":"Lönd!P29","v":0},".M.SVUER$$.XX.XXX.XXX.XXXX.SV.XXX.XXX.HR.N.M"]
[{"$f":"\"INN.\"&EIGNIR!$B$3&C1682","v":{"$error":"#N/A"}},{"$f":"Lönd!P30","v":0},".M.SVUER$$.XX.XXX.XXX.XXXX.SV.XXX.XXX.CY.N.M"]
[{"$f":"\"INN.\"&EIGNIR!$B$3&C1683","v":{"$error":"#N/A"}},{"$f":"Lönd!P31","v":0},".M.SVUER$$.XX.XXX.XXX.XXXX.SV.XXX.XXX.LV.N.M"]
[{"$f":"\"INN.\"&EIGNIR!$B$3&C1684","v":{"$error":"#N/A"}},{"$f":"Lönd!P32","v":0},".M.SVUER$$.XX.XXX.XXX.XXXX.SV.XXX.XXX.LT.N.M"]
[{"$f":"\"INN.\"&EIGNIR!$B$3&C1685","v":{"$error":"#N/A"}},{"$f":"Lönd!P33","v":0},".M.SVUER$$.XX.XXX.XXX.XXXX.SV.XXX.XXX.LX.N.M"]
[{"$f":"\"INN.\"&EIGNIR!$B$3&C1686","v":{"$error":"#N/A"}},{"$f":"Lönd!P34","v":0},".M.SVUER$$.XX.XXX.XXX.XXXX.SV.XXX.XXX.MT.N.M"]
[{"$f":"\"INN.\"&EIGNIR!$B$3&C1687","v":{"$error":"#N/A"}},{"$f":"Lönd!P35","v":0},".M.SVUER$$.XX.XXX.XXX.XXXX.SV.XXX.XXX.NO.N.M"]
[{"$f":"\"INN.\"&EIGNIR!$B$3&C1688","v":{"$error":"#N/A"}},{"$f":"Lönd!P36","v":0},".M.SVUER$$.XX.XXX.XXX.XXXX.SV.XXX.XXX.PT.N.M"]
[{"$f":"\"INN.\"&EIGNIR!$B$3&C1689","v":{"$error":"#N/A"}},{"$f":"Lönd!P37","v":0},".M.SVUER$$.XX.XXX.XXX.XXXX.SV.XXX.XXX.PL.N.M"]
[{"$f":"\"INN.\"&EIGNIR!$B$3&C1690","v":{"$error":"#N/A"}},{"$f":"Lönd!P38","v":0},".M.SVUER$$.XX.XXX.XXX.XXXX.SV.XXX.XXX.RO.N.M"]
[{"$f":"\"INN.\"&EIGNIR!$B$3&C1691","v":{"$error":"#N/A"}},{"$f":"Lönd!P39","v":0},".M.SVUER$$.XX.XXX.XXX.XXXX.SV.XXX.XXX.RU.N.M"]
[{"$f":"\"INN.\"&EIGNIR!$B$3&C1692","v":{"$error":"#N/A"}},{"$f":"Lönd!P40","v":0},".M.SVUER$$.XX.XXX.XXX.XXXX.SV.XXX.XXX.SK.N.M"]
[{"$f":"\"INN.\"&EIGNIR!$B$3&C1693","v":{"$error":"#N/A"}},{"$f":"Lönd!P41","v":0},".M.SVUER$$.XX.XXX.XXX.XXXX.SV.XXX.XXX.SI.N.M"]
[{"$f":"\"INN.\"&EIGNIR!$B$3&C1694","v":{"$error":"#N/A"}},{"$f":"Lönd!P42","v":0},".M.SVUER$$.XX.XXX.XXX.XXXX.SV.XXX.XXX.ES.N.M"]
[{"$f":"\"INN.\"&EIGNIR!$B$3&C1695","v":{"$error":"#N/A"}},{"$f":"Lönd!P43","v":0},".M.SVUER$$.XX.XXX.XXX.XXXX.SV.XXX.XXX.CH.N.M"]
[{"$f":"\"INN.\"&EIGNIR!$B$3&C1696","v":{"$error":"#N/A"}},{"$f":"Lönd!P44","v":0},".M.SVUER$$.XX.XXX.XXX.XXXX.SV.XXX.XXX.SE.N.M"]
[{"$f":"\"INN.\"&EIGNIR!$B$3&C1697","v":{"$error":"#N/A"}},{"$f":"Lönd!P45","v":0},".M.SVUER$$.XX.XXX.XXX.XXXX.SV.XXX.XXX.CZ.N.M"]
[{"$f":"\"INN.\"&EIGNIR!$B$3&C1698","v":{"$error":"#N/A"}},{"$f":"Lönd!P46","v":0},".M.SVUER$$.XX.XXX.XXX.XXXX.SV.XXX.XXX.HU.N.M"]
[{"$f":"\"INN.\"&EIGNIR!$B$3&C1699","v":{"$error":"#N/A"}},{"$f":"Lönd!P47","v":0},".M.SVUER$$.XX.XXX.XXX.XXXX.SV.XXX.XXX.DE.N.M"]
[{"$f":"\"INN.\"&EIGNIR!$B$3&C1700","v":{"$error":"#N/A"}},{"$f":"Lönd!P48","v":0},".M.SVUER$$.XX.XXX.XXX.XXXX.SV.XXX.XXX.XX.N.M"]
[{"$f":"\"INN.\"&EIGNIR!$B$3&C1701","v":{"$error":"#N/A"}},{"$f":"Lönd!P49","v":0},".M.SVUER$$.XX.XXX.XXX.XXXX.SV.XXX.XXX.4F.N.M"]
[{"$f":"\"INN.\"&EIGNIR!$B$3&C1702","v":{"$error":"#N/A"}},{"$f":"Lönd!P50","v":0},".M.SVUER$$.XX.XXX.XXX.XXXX.SV.XXX.XXX.4C.N.M"]
[{"$f":"\"INN.\"&EIGNIR!$B$3&C1703","v":{"$error":"#N/A"}},{"$f":"Lönd!P51","v":0},".M.SVUER$$.XX.XXX.XXX.XXXX.SV.XXX.XXX.4J.N.M"]
[{"$f":"\"INN.\"&EIGNIR!$B$3&C1704","v":{"$error":"#N/A"}},{"$f":"Lönd!P52","v":0},".M.SVUER$$.XX.XXX.XXX.XXXX.SV.XXX.XXX.4S.N.M"]
[{"$f":"\"INN.\"&EIGNIR!$B$3&C1705","v":{"$error":"#N/A"}},{"$f":"Lönd!P53","v":0},".M.SVUER$$.XX.XXX.XXX.XXXX.SV.XXX.XXX.1C.N.M"]
[{"$f":"\"INN.\"&EIGNIR!$B$3&C1706","v":{"$error":"#N/A"}},{"$f":"Lönd!P54","v":0},".M.SVUER$$.XX.XXX.XXX.XXXX.SV.XXX.XXX.5Z.N.M"]
[{"$f":"\"INN.\"&EIGNIR!$B$3&C1707","v":{"$error":"#N/A"}},{"$f":"Lönd!Q5","v":0},".M.SLTBLER.XX.XXX.XXX.XXXX.SV.XXX.XXX.IS.N.M","//Beinar erlendar lántökur"]
[{"$f":"\"INN.\"&EIGNIR!$B$3&C1708","v":{"$error":"#N/A"}},{"$f":"Lönd!Q6","v":0},".M.SLTBLER.XX.XXX.XXX.XXXX.SV.XXX.XXX.AT.N.M"]
[{"$f":"\"INN.\"&EIGNIR!$B$3&C1709","v":{"$error":"#N/A"}},{"$f":"Lönd!Q7","v":0},".M.SLTBLER.XX.XXX.XXX.XXXX.SV.XXX.XXX.US.N.M"]
[{"$f":"\"INN.\"&EIGNIR!$B$3&C1710","v":{"$error":"#N/A"}},{"$f":"Lönd!Q8","v":0},".M.SLTBLER.XX.XXX.XXX.XXXX.SV.XXX.XXX.BE.N.M"]
[{"$f":"\"INN.\"&EIGNIR!$B$3&C1711","v":{"$error":"#N/A"}},{"$f":"Lönd!Q9","v":0},".M.SLTBLER.XX.XXX.XXX.XXXX.SV.XXX.XXX.BR.N.M"]
[{"$f":"\"INN.\"&EIGNIR!$B$3&C1712","v":{"$error":"#N/A"}},{"$f":"Lönd!Q10","v":0},".M.SLTBLER.XX.XXX.XXX.XXXX.SV.XXX.XXX.GB.N.M"]
[{"$f":"\"INN.\"&EIGNIR!$B$3&C1713","v":{"$error":"#N/A"}},{"$f":"Lönd!Q11","v":0},".M.SLTBLER.XX.XXX.XXX.XXXX.SV.XXX.XXX.BG.N.M"]
[{"$f":"\"INN.\"&EIGNIR!$B$3&C1714","v":{"$error":"#N/A"}},{"$f":"Lönd!Q12","v":0},".M.SLTBLER.XX.XXX.XXX.XXXX.SV.XXX.XXX.KY.N.M"]
[{"$f":"\"INN.\"&EIGNIR!$B$3&C1715","v":{"$error":"#N/A"}},{"$f":"Lönd!Q13","v":0},".M.SLTBLER.XX.XXX.XXX.XXXX.SV.XXX.XXX.DK.N.M"]
[{"$f":"\"INN.\"&EIGNIR!$B$3&C1716","v":{"$error":"#N/A"}},{"$f":"Lönd!Q14","v":0},".M.SLTBLER.XX.XXX.XXX.XXXX.SV.XXX.XXX.EE.N.M"]
[{"$f":"\"INN.\"&EIGNIR!$B$3&C1717","v":{"$error":"#N/A"}},{"$f":"Lönd!Q15","v":0},".M.SLTBLER.XX.XXX.XXX.XXXX.SV.XXX.XXX.FI.N.M"]
[{"$f":"\"INN.\"&EIGNIR!$B$3&C1718","v":{"$error":"#N/A"}},{"$f":"Lönd!Q16","v":0},".M.SLTBLER.XX.XXX.XXX.XXXX.SV.XXX.XXX.FR.N.M"]
[{"$f":"\"INN.\"&EIGNIR!$B$3&C1719","v":{"$error":"#N/A"}},{"$f":"Lönd!Q17","v":0},".M.SLTBLER.XX.XXX.XXX.XXXX.SV.XXX.XXX.FO.N.M"]
[{"$f":"\"INN.\"&EIGNIR!$B$3&C1720","v":{"$error":"#N/A"}},{"$f":"Lönd!Q18","v":0},".M.SLTBLER.XX.XXX.XXX.XXXX.SV.XXX.XXX.GR.N.M"]
[{"$f":"\"INN.\"&EIGNIR!$B$3&C1721","v":{"$error":"#N/A"}},{"$f":"Lönd!Q19","v":0},".M.SLTBLER.XX.XXX.XXX.XXXX.SV.XXX.XXX.GG.N.M"]
[{"$f":"\"INN.\"&EIGNIR!$B$3&C1722","v":{"$error":"#N/A"}},{"$f":"Lönd!Q20","v":0},".M.SLTBLER.XX.XXX.XXX.XXXX.SV.XXX.XXX.NL.N.M"]
[{"$f":"\"INN.\"&EIGNIR!$B$3&C1723","v":{"$error":"#N/A"}},{"$f":"Lönd!Q21","v":0},".M.SLTBLER.XX.XXX.XXX.XXXX.SV.XXX.XXX.HK.N.M"]
[{"$f":"\"INN.\"&EIGNIR!$B$3&C1724","v":{"$error":"#N/A"}},{"$f":"Lönd!Q22","v":0},".M.SLTBLER.XX.XXX.XXX.XXXX.SV.XXX.XXX.IN.N.M"]
[{"$f":"\"INN.\"&EIGNIR!$B$3&C1725","v":{"$error":"#N/A"}},{"$f":"Lönd!Q23","v":0},".M.SLTBLER.XX.XXX.XXX.XXXX.SV.XXX.XXX.IE.N.M"]
[{"$f":"\"INN.\"&EIGNIR!$B$3&C1726","v":{"$error":"#N/A"}},{"$f":"Lönd!Q24","v":0},".M.SLTBLER.XX.XXX.XXX.XXXX.SV.XXX.XXX.IT.N.M"]
[{"$f":"\"INN.\"&EIGNIR!$B$3&C1727","v":{"$error":"#N/A"}},{"$f":"Lönd!Q25","v":0},".M.SLTBLER.XX.XXX.XXX.XXXX.SV.XXX.XXX.JP.N.M"]
[{"$f":"\"INN.\"&EIGNIR!$B$3&C1728","v":{"$error":"#N/A"}},{"$f":"Lönd!Q26","v":0},".M.SLTBLER.XX.XXX.XXX.XXXX.SV.XXX.XXX.JE.N.M"]
[{"$f":"\"INN.\"&EIGNIR!$B$3&C1729","v":{"$error":"#N/A"}},{"$f":"Lönd!Q27","v":0},".M.SLTBLER.XX.XXX.XXX.XXXX.SV.XXX.XXX.CA.N.M"]
[{"$f":"\"INN.\"&EIGNIR!$B$3&C1730","v":{"$error":"#N/A"}},{"$f":"Lönd!Q28","v":0},".M.SLTBLER.XX.XXX.XXX.XXXX.SV.XXX.XXX.CN.N.M"]
[{"$f":"\"INN.\"&EIGNIR!$B$3&C1731","v":{"$error":"#N/A"}},{"$f":"Lönd!Q29","v":0},".M.SLTBLER.XX.XXX.XXX.XXXX.SV.XXX.XXX.HR.N.M"]
[{"$f":"\"INN.\"&EIGNIR!$B$3&C1732","v":{"$error":"#N/A"}},{"$f":"Lönd!Q30","v":0},".M.SLTBLER.XX.XXX.XXX.XXXX.SV.XXX.XXX.CY.N.M"]
[{"$f":"\"INN.\"&EIGNIR!$B$3&C1733","v":{"$error":"#N/A"}},{"$f":"Lönd!Q31","v":0},".M.SLTBLER.XX.XXX.XXX.XXXX.SV.XXX.XXX.LV.N.M"]
[{"$f":"\"INN.\"&EIGNIR!$B$3&C1734","v":{"$error":"#N/A"}},{"$f":"Lönd!Q32","v":0},".M.SLTBLER.XX.XXX.XXX.XXXX.SV.XXX.XXX.LT.N.M"]
[{"$f":"\"INN.\"&EIGNIR!$B$3&C1735","v":{"$error":"#N/A"}},{"$f":"Lönd!Q33","v":0},".M.SLTBLER.XX.XXX.XXX.XXXX.SV.XXX.XXX.LX.N.M"]
[{"$f":"\"INN.\"&EIGNIR!$B$3&C1736","v":{"$error":"#N/A"}},{"$f":"Lönd!Q34","v":0},".M.SLTBLER.XX.XXX.XXX.XXXX.SV.XXX.XXX.MT.N.M"]
[{"$f":"\"INN.\"&EIGNIR!$B$3&C1737","v":{"$error":"#N/A"}},{"$f":"Lönd!Q35","v":0},".M.SLTBLER.XX.XXX.XXX.XXXX.SV.XXX.XXX.NO.N.M"]
[{"$f":"\"INN.\"&EIGNIR!$B$3&C1738","v":{"$error":"#N/A"}},{"$f":"Lönd!Q36","v":0},".M.SLTBLER.XX.XXX.XXX.XXXX.SV.XXX.XXX.PT.N.M"]
[{"$f":"\"INN.\"&EIGNIR!$B$3&C1739","v":{"$error":"#N/A"}},{"$f":"Lönd!Q37","v":0},".M.SLTBLER.XX.XXX.XXX.XXXX.SV.XXX.XXX.PL.N.M"]
[{"$f":"\"INN.\"&EIGNIR!$B$3&C1740","v":{"$error":"#N/A"}},{"$f":"Lönd!Q38","v":0},".M.SLTBLER.XX.XXX.XXX.XXXX.SV.XXX.XXX.RO.N.M"]
[{"$f":"\"INN.\"&EIGNIR!$B$3&C1741","v":{"$error":"#N/A"}},{"$f":"Lönd!Q39","v":0},".M.SLTBLER.XX.XXX.XXX.XXXX.SV.XXX.XXX.RU.N.M"]
[{"$f":"\"INN.\"&EIGNIR!$B$3&C1742","v":{"$error":"#N/A"}},{"$f":"Lönd!Q40","v":0},".M.SLTBLER.XX.XXX.XXX.XXXX.SV.XXX.XXX.SK.N.M"]
[{"$f":"\"INN.\"&EIGNIR!$B$3&C1743","v":{"$error":"#N/A"}},{"$f":"Lönd!Q41","v":0},".M.SLTBLER.XX.XXX.XXX.XXXX.SV.XXX.XXX.SI.N.M"]
[{"$f":"\"INN.\"&EIGNIR!$B$3&C1744","v":{"$error":"#N/A"}},{"$f":"Lönd!Q42","v":0},".M.SLTBLER.XX.XXX.XXX.XXXX.SV.XXX.XXX.ES.N.M"]
[{"$f":"\"INN.\"&EIGNIR!$B$3&C1745","v":{"$error":"#N/A"}},{"$f":"Lönd!Q43","v":0},".M.SLTBLER.XX.XXX.XXX.XXXX.SV.XXX.XXX.CH.N.M"]
[{"$f":"\"INN.\"&EIGNIR!$B$3&C1746","v":{"$error":"#N/A"}},{"$f":"Lönd!Q44","v":0},".M.SLTBLER.XX.XXX.XXX.XXXX.SV.XXX.XXX.SE.N.M"]
[{"$f":"\"INN.\"&EIGNIR!$B$3&C1747","v":{"$error":"#N/A"}},{"$f":"Lönd!Q45","v":0},".M.SLTBLER.XX.XXX.XXX.XXXX.SV.XXX.XXX.CZ.N.M"]
[{"$f":"\"INN.\"&EIGNIR!$B$3&C1748","v":{"$error":"#N/A"}},{"$f":"Lönd!Q46","v":0},".M.SLTBLER.XX.XXX.XXX.XXXX.SV.XXX.XXX.HU.N.M"]
[{"$f":"\"INN.\"&EIGNIR!$B$3&C1749","v":{"$error":"#N/A"}},{"$f":"Lönd!Q47","v":0},".M.SLTBLER.XX.XXX.XXX.XXXX.SV.XXX.XXX.DE.N.M"]
[{"$f":"\"INN.\"&EIGNIR!$B$3&C1750","v":{"$error":"#N/A"}},{"$f":"Lönd!Q48","v":0},".M.SLTBLER.XX.XXX.XXX.XXXX.SV.XXX.XXX.XX.N.M"]
[{"$f":"\"INN.\"&EIGNIR!$B$3&C1751","v":{"$error":"#N/A"}},{"$f":"Lönd!Q49","v":0},".M.SLTBLER.XX.XXX.XXX.XXXX.SV.XXX.XXX.4F.N.M"]
[{"$f":"\"INN.\"&EIGNIR!$B$3&C1752","v":{"$error":"#N/A"}},{"$f":"Lönd!Q50","v":0},".M.SLTBLER.XX.XXX.XXX.XXXX.SV.XXX.XXX.4C.N.M"]
[{"$f":"\"INN.\"&EIGNIR!$B$3&C1753","v":{"$error":"#N/A"}},{"$f":"Lönd!Q51","v":0},".M.SLTBLER.XX.XXX.XXX.XXXX.SV.XXX.XXX.4J.N.M"]
[{"$f":"\"INN.\"&EIGNIR!$B$3&C1754","v":{"$error":"#N/A"}},{"$f":"Lönd!Q52","v":0},".M.SLTBLER.XX.XXX.XXX.XXXX.SV.XXX.XXX.4S.N.M"]
[{"$f":"\"INN.\"&EIGNIR!$B$3&C1755","v":{"$error":"#N/A"}},{"$f":"Lönd!Q53","v":0},".M.SLTBLER.XX.XXX.XXX.XXXX.SV.XXX.XXX.1C.N.M"]
[{"$f":"\"INN.\"&EIGNIR!$B$3&C1756","v":{"$error":"#N/A"}},{"$f":"Lönd!Q54","v":0},".M.SLTBLER.XX.XXX.XXX.XXXX.SV.XXX.XXX.5Z.N.M"]
[{"$f":"\"INN.\"&EIGNIR!$B$3&C1757","v":{"$error":"#N/A"}},{"$f":"Lönd!R6","v":0},".M.SLTVLER.XX.XXX.XXX.XXXX.SV.XXX.XXX.AT.N.M","//Víkjandi erlend lán"]
[{"$f":"\"INN.\"&EIGNIR!$B$3&C1758","v":{"$error":"#N/A"}},{"$f":"Lönd!R7","v":0},".M.SLTVLER.XX.XXX.XXX.XXXX.SV.XXX.XXX.US.N.M"]
[{"$f":"\"INN.\"&EIGNIR!$B$3&C1759","v":{"$error":"#N/A"}},{"$f":"Lönd!R8","v":0},".M.SLTVLER.XX.XXX.XXX.XXXX.SV.XXX.XXX.BE.N.M"]
[{"$f":"\"INN.\"&EIGNIR!$B$3&C1760","v":{"$error":"#N/A"}},{"$f":"Lönd!R9","v":0},".M.SLTVLER.XX.XXX.XXX.XXXX.SV.XXX.XXX.BR.N.M"]
[{"$f":"\"INN.\"&EIGNIR!$B$3&C1761","v":{"$error":"#N/A"}},{"$f":"Lönd!R10","v":0},".M.SLTVLER.XX.XXX.XXX.XXXX.SV.XXX.XXX.GB.N.M"]
[{"$f":"\"INN.\"&EIGNIR!$B$3&C1762","v":{"$error":"#N/A"}},{"$f":"Lönd!R11","v":0},".M.SLTVLER.XX.XXX.XXX.XXXX.SV.XXX.XXX.BG.N.M"]
[{"$f":"\"INN.\"&EIGNIR!$B$3&C1763","v":{"$error":"#N/A"}},{"$f":"Lönd!R12","v":0},".M.SLTVLER.XX.XXX.XXX.XXXX.SV.XXX.XXX.KY.N.M"]
[{"$f":"\"INN.\"&EIGNIR!$B$3&C1764","v":{"$error":"#N/A"}},{"$f":"Lönd!R13","v":0},".M.SLTVLER.XX.XXX.XXX.XXXX.SV.XXX.XXX.DK.N.M"]
[{"$f":"\"INN.\"&EIGNIR!$B$3&C1765","v":{"$error":"#N/A"}},{"$f":"Lönd!R14","v":0},".M.SLTVLER.XX.XXX.XXX.XXXX.SV.XXX.XXX.EE.N.M"]
[{"$f":"\"INN.\"&EIGNIR!$B$3&C1766","v":{"$error":"#N/A"}},{"$f":"Lönd!R15","v":0},".M.SLTVLER.XX.XXX.XXX.XXXX.SV.XXX.XXX.FI.N.M"]
[{"$f":"\"INN.\"&EIGNIR!$B$3&C1767","v":{"$error":"#N/A"}},{"$f":"Lönd!R16","v":0},".M.SLTVLER.XX.XXX.XXX.XXXX.SV.XXX.XXX.FR.N.M"]
[{"$f":"\"INN.\"&EIGNIR!$B$3&C1768","v":{"$error":"#N/A"}},{"$f":"Lönd!R17","v":0},".M.SLTVLER.XX.XXX.XXX.XXXX.SV.XXX.XXX.FO.N.M"]
[{"$f":"\"INN.\"&EIGNIR!$B$3&C1769","v":{"$error":"#N/A"}},{"$f":"Lönd!R18","v":0},".M.SLTVLER.XX.XXX.XXX.XXXX.SV.XXX.XXX.GR.N.M"]
[{"$f":"\"INN.\"&EIGNIR!$B$3&C1770","v":{"$error":"#N/A"}},{"$f":"Lönd!R19","v":0},".M.SLTVLER.XX.XXX.XXX.XXXX.SV.XXX.XXX.GG.N.M"]
[{"$f":"\"INN.\"&EIGNIR!$B$3&C1771","v":{"$error":"#N/A"}},{"$f":"Lönd!R20","v":0},".M.SLTVLER.XX.XXX.XXX.XXXX.SV.XXX.XXX.NL.N.M"]
[{"$f":"\"INN.\"&EIGNIR!$B$3&C1772","v":{"$error":"#N/A"}},{"$f":"Lönd!R21","v":0},".M.SLTVLER.XX.XXX.XXX.XXXX.SV.XXX.XXX.HK.N.M"]
[{"$f":"\"INN.\"&EIGNIR!$B$3&C1773","v":{"$error":"#N/A"}},{"$f":"Lönd!R22","v":0},".M.SLTVLER.XX.XXX.XXX.XXXX.SV.XXX.XXX.IN.N.M"]
[{"$f":"\"INN.\"&EIGNIR!$B$3&C1774","v":{"$error":"#N/A"}},{"$f":"Lönd!R23","v":0},".M.SLTVLER.XX.XXX.XXX.XXXX.SV.XXX.XXX.IE.N.M"]
[{"$f":"\"INN.\"&EIGNIR!$B$3&C1775","v":{"$error":"#N/A"}},{"$f":"Lönd!R24","v":0},".M.SLTVLER.XX.XXX.XXX.XXXX.SV.XXX.XXX.IT.N.M"]
[{"$f":"\"INN.\"&EIGNIR!$B$3&C1776","v":{"$error":"#N/A"}},{"$f":"Lönd!R25","v":0},".M.SLTVLER.XX.XXX.XXX.XXXX.SV.XXX.XXX.JP.N.M"]
[{"$f":"\"INN.\"&EIGNIR!$B$3&C1777","v":{"$error":"#N/A"}},{"$f":"Lönd!R26","v":0},".M.SLTVLER.XX.XXX.XXX.XXXX.SV.XXX.XXX.JE.N.M"]
[{"$f":"\"INN.\"&EIGNIR!$B$3&C1778","v":{"$error":"#N/A"}},{"$f":"Lönd!R27","v":0},".M.SLTVLER.XX.XXX.XXX.XXXX.SV.XXX.XXX.CA.N.M"]
[{"$f":"\"INN.\"&EIGNIR!$B$3&C1779","v":{"$error":"#N/A"}},{"$f":"Lönd!R28","v":0},".M.SLTVLER.XX.XXX.XXX.XXXX.SV.XXX.XXX.CN.N.M"]
[{"$f":"\"INN.\"&EIGNIR!$B$3&C1780","v":{"$error":"#N/A"}},{"$f":"Lönd!R29","v":0},".M.SLTVLER.XX.XXX.XXX.XXXX.SV.XXX.XXX.HR.N.M"]
[{"$f":"\"INN.\"&EIGNIR!$B$3&C1781","v":{"$error":"#N/A"}},{"$f":"Lönd!R30","v":0},".M.SLTVLER.XX.XXX.XXX.XXXX.SV.XXX.XXX.CY.N.M"]
[{"$f":"\"INN.\"&EIGNIR!$B$3&C1782","v":{"$error":"#N/A"}},{"$f":"Lönd!R31","v":0},".M.SLTVLER.XX.XXX.XXX.XXXX.SV.XXX.XXX.LV.N.M"]
[{"$f":"\"INN.\"&EIGNIR!$B$3&C1783","v":{"$error":"#N/A"}},{"$f":"Lönd!R32","v":0},".M.SLTVLER.XX.XXX.XXX.XXXX.SV.XXX.XXX.LT.N.M"]
[{"$f":"\"INN.\"&EIGNIR!$B$3&C1784","v":{"$error":"#N/A"}},{"$f":"Lönd!R33","v":0},".M.SLTVLER.XX.XXX.XXX.XXXX.SV.XXX.XXX.LX.N.M"]
[{"$f":"\"INN.\"&EIGNIR!$B$3&C1785","v":{"$error":"#N/A"}},{"$f":"Lönd!R34","v":0},".M.SLTVLER.XX.XXX.XXX.XXXX.SV.XXX.XXX.MT.N.M"]
[{"$f":"\"INN.\"&EIGNIR!$B$3&C1786","v":{"$error":"#N/A"}},{"$f":"Lönd!R35","v":0},".M.SLTVLER.XX.XXX.XXX.XXXX.SV.XXX.XXX.NO.N.M"]
[{"$f":"\"INN.\"&EIGNIR!$B$3&C1787","v":{"$error":"#N/A"}},{"$f":"Lönd!R36","v":0},".M.SLTVLER.XX.XXX.XXX.XXXX.SV.XXX.XXX.PT.N.M"]
[{"$f":"\"INN.\"&EIGNIR!$B$3&C1788","v":{"$error":"#N/A"}},{"$f":"Lönd!R37","v":0},".M.SLTVLER.XX.XXX.XXX.XXXX.SV.XXX.XXX.PL.N.M"]
[{"$f":"\"INN.\"&EIGNIR!$B$3&C1789","v":{"$error":"#N/A"}},{"$f":"Lönd!R38","v":0},".M.SLTVLER.XX.XXX.XXX.XXXX.SV.XXX.XXX.RO.N.M"]
[{"$f":"\"INN.\"&EIGNIR!$B$3&C1790","v":{"$error":"#N/A"}},{"$f":"Lönd!R39","v":0},".M.SLTVLER.XX.XXX.XXX.XXXX.SV.XXX.XXX.RU.N.M"]
[{"$f":"\"INN.\"&EIGNIR!$B$3&C1791","v":{"$error":"#N/A"}},{"$f":"Lönd!R40","v":0},".M.SLTVLER.XX.XXX.XXX.XXXX.SV.XXX.XXX.SK.N.M"]
[{"$f":"\"INN.\"&EIGNIR!$B$3&C1792","v":{"$error":"#N/A"}},{"$f":"Lönd!R41","v":0},".M.SLTVLER.XX.XXX.XXX.XXXX.SV.XXX.XXX.SI.N.M"]
[{"$f":"\"INN.\"&EIGNIR!$B$3&C1793","v":{"$error":"#N/A"}},{"$f":"Lönd!R42","v":0},".M.SLTVLER.XX.XXX.XXX.XXXX.SV.XXX.XXX.ES.N.M"]
[{"$f":"\"INN.\"&EIGNIR!$B$3&C1794","v":{"$error":"#N/A"}},{"$f":"Lönd!R43","v":0},".M.SLTVLER.XX.XXX.XXX.XXXX.SV.XXX.XXX.CH.N.M"]
[{"$f":"\"INN.\"&EIGNIR!$B$3&C1795","v":{"$error":"#N/A"}},{"$f":"Lönd!R44","v":0},".M.SLTVLER.XX.XXX.XXX.XXXX.SV.XXX.XXX.SE.N.M"]
[{"$f":"\"INN.\"&EIGNIR!$B$3&C1796","v":{"$error":"#N/A"}},{"$f":"Lönd!R45","v":0},".M.SLTVLER.XX.XXX.XXX.XXXX.SV.XXX.XXX.CZ.N.M"]
[{"$f":"\"INN.\"&EIGNIR!$B$3&C1797","v":{"$error":"#N/A"}},{"$f":"Lönd!R46","v":0},".M.SLTVLER.XX.XXX.XXX.XXXX.SV.XXX.XXX.HU.N.M"]
[{"$f":"\"INN.\"&EIGNIR!$B$3&C1798","v":{"$error":"#N/A"}},{"$f":"Lönd!R47","v":0},".M.SLTVLER.XX.XXX.XXX.XXXX.SV.XXX.XXX.DE.N.M"]
[{"$f":"\"INN.\"&EIGNIR!$B$3&C1799","v":{"$error":"#N/A"}},{"$f":"Lönd!R48","v":0},".M.SLTVLER.XX.XXX.XXX.XXXX.SV.XXX.XXX.XX.N.M"]
[{"$f":"\"INN.\"&EIGNIR!$B$3&C1800","v":{"$error":"#N/A"}},{"$f":"Lönd!R49","v":0},".M.SLTVLER.XX.XXX.XXX.XXXX.SV.XXX.XXX.4F.N.M"]
[{"$f":"\"INN.\"&EIGNIR!$B$3&C1801","v":{"$error":"#N/A"}},{"$f":"Lönd!R50","v":0},".M.SLTVLER.XX.XXX.XXX.XXXX.SV.XXX.XXX.4C.N.M"]
[{"$f":"\"INN.\"&EIGNIR!$B$3&C1802","v":{"$error":"#N/A"}},{"$f":"Lönd!R51","v":0},".M.SLTVLER.XX.XXX.XXX.XXXX.SV.XXX.XXX.4J.N.M"]
[{"$f":"\"INN.\"&EIGNIR!$B$3&C1803","v":{"$error":"#N/A"}},{"$f":"Lönd!R52","v":0},".M.SLTVLER.XX.XXX.XXX.XXXX.SV.XXX.XXX.4S.N.M"]
[{"$f":"\"INN.\"&EIGNIR!$B$3&C1804","v":{"$error":"#N/A"}},{"$f":"Lönd!R53","v":0},".M.SLTVLER.XX.XXX.XXX.XXXX.SV.XXX.XXX.1C.N.M"]
[{"$f":"\"INN.\"&EIGNIR!$B$3&C1805","v":{"$error":"#N/A"}},{"$f":"Lönd!R54","v":0},".M.SLTVLER.XX.XXX.XXX.XXXX.SV.XXX.XXX.5Z.N.M"]
[{"$f":"\"INN.\"&EIGNIR!$B$3&C1806","v":{"$error":"#N/A"}},{"$f":"Lönd!S5","v":0},".M.SFUIN$$.XX.XXX.XXX.XXXX.SV.XXX.XXX.IS.N.M","//Innstæður erlendra aðila"]
[{"$f":"\"INN.\"&EIGNIR!$B$3&C1807","v":{"$error":"#N/A"}},{"$f":"Lönd!S6","v":0},".M.SFUIN$$.XX.XXX.XXX.XXXX.SV.XXX.XXX.AT.N.M"]
[{"$f":"\"INN.\"&EIGNIR!$B$3&C1808","v":{"$error":"#N/A"}},{"$f":"Lönd!S7","v":0},".M.SFUIN$$.XX.XXX.XXX.XXXX.SV.XXX.XXX.US.N.M"]
[{"$f":"\"INN.\"&EIGNIR!$B$3&C1809","v":{"$error":"#N/A"}},{"$f":"Lönd!S8","v":0},".M.SFUIN$$.XX.XXX.XXX.XXXX.SV.XXX.XXX.BE.N.M"]
[{"$f":"\"INN.\"&EIGNIR!$B$3&C1810","v":{"$error":"#N/A"}},{"$f":"Lönd!S9","v":0},".M.SFUIN$$.XX.XXX.XXX.XXXX.SV.XXX.XXX.BR.N.M"]
[{"$f":"\"INN.\"&EIGNIR!$B$3&C1811","v":{"$error":"#N/A"}},{"$f":"Lönd!S10","v":0},".M.SFUIN$$.XX.XXX.XXX.XXXX.SV.XXX.XXX.GB.N.M"]
[{"$f":"\"INN.\"&EIGNIR!$B$3&C1812","v":{"$error":"#N/A"}},{"$f":"Lönd!S11","v":0},".M.SFUIN$$.XX.XXX.XXX.XXXX.SV.XXX.XXX.BG.N.M"]
[{"$f":"\"INN.\"&EIGNIR!$B$3&C1813","v":{"$error":"#N/A"}},{"$f":"Lönd!S12","v":0},".M.SFUIN$$.XX.XXX.XXX.XXXX.SV.XXX.XXX.KY.N.M"]
[{"$f":"\"INN.\"&EIGNIR!$B$3&C1814","v":{"$error":"#N/A"}},{"$f":"Lönd!S13","v":0},".M.SFUIN$$.XX.XXX.XXX.XXXX.SV.XXX.XXX.DK.N.M"]
[{"$f":"\"INN.\"&EIGNIR!$B$3&C1815","v":{"$error":"#N/A"}},{"$f":"Lönd!S14","v":0},".M.SFUIN$$.XX.XXX.XXX.XXXX.SV.XXX.XXX.EE.N.M"]
[{"$f":"\"INN.\"&EIGNIR!$B$3&C1816","v":{"$error":"#N/A"}},{"$f":"Lönd!S15","v":0},".M.SFUIN$$.XX.XXX.XXX.XXXX.SV.XXX.XXX.FI.N.M"]
[{"$f":"\"INN.\"&EIGNIR!$B$3&C1817","v":{"$error":"#N/A"}},{"$f":"Lönd!S16","v":0},".M.SFUIN$$.XX.XXX.XXX.XXXX.SV.XXX.XXX.FR.N.M"]
[{"$f":"\"INN.\"&EIGNIR!$B$3&C1818","v":{"$error":"#N/A"}},{"$f":"Lönd!S17","v":0},".M.SFUIN$$.XX.XXX.XXX.XXXX.SV.XXX.XXX.FO.N.M"]
[{"$f":"\"INN.\"&EIGNIR!$B$3&C1819","v":{"$error":"#N/A"}},{"$f":"Lönd!S18","v":0},".M.SFUIN$$.XX.XXX.XXX.XXXX.SV.XXX.XXX.GR.N.M"]
[{"$f":"\"INN.\"&EIGNIR!$B$3&C1820","v":{"$error":"#N/A"}},{"$f":"Lönd!S19","v":0},".M.SFUIN$$.XX.XXX.XXX.XXXX.SV.XXX.XXX.GG.N.M"]
[{"$f":"\"INN.\"&EIGNIR!$B$3&C1821","v":{"$error":"#N/A"}},{"$f":"Lönd!S20","v":0},".M.SFUIN$$.XX.XXX.XXX.XXXX.SV.XXX.XXX.NL.N.M"]
[{"$f":"\"INN.\"&EIGNIR!$B$3&C1822","v":{"$error":"#N/A"}},{"$f":"Lönd!S21","v":0},".M.SFUIN$$.XX.XXX.XXX.XXXX.SV.XXX.XXX.HK.N.M"]
[{"$f":"\"INN.\"&EIGNIR!$B$3&C1823","v":{"$error":"#N/A"}},{"$f":"Lönd!S22","v":0},".M.SFUIN$$.XX.XXX.XXX.XXXX.SV.XXX.XXX.IN.N.M"]
[{"$f":"\"INN.\"&EIGNIR!$B$3&C1824","v":{"$error":"#N/A"}},{"$f":"Lönd!S23","v":0},".M.SFUIN$$.XX.XXX.XXX.XXXX.SV.XXX.XXX.IE.N.M"]
[{"$f":"\"INN.\"&EIGNIR!$B$3&C1825","v":{"$error":"#N/A"}},{"$f":"Lönd!S24","v":0},".M.SFUIN$$.XX.XXX.XXX.XXXX.SV.XXX.XXX.IT.N.M"]
[{"$f":"\"INN.\"&EIGNIR!$B$3&C1826","v":{"$error":"#N/A"}},{"$f":"Lönd!S25","v":0},".M.SFUIN$$.XX.XXX.XXX.XXXX.SV.XXX.XXX.JP.N.M"]
[{"$f":"\"INN.\"&EIGNIR!$B$3&C1827","v":{"$error":"#N/A"}},{"$f":"Lönd!S26","v":0},".M.SFUIN$$.XX.XXX.XXX.XXXX.SV.XXX.XXX.JE.N.M"]
[{"$f":"\"INN.\"&EIGNIR!$B$3&C1828","v":{"$error":"#N/A"}},{"$f":"Lönd!S27","v":0},".M.SFUIN$$.XX.XXX.XXX.XXXX.SV.XXX.XXX.CA.N.M"]
[{"$f":"\"INN.\"&EIGNIR!$B$3&C1829","v":{"$error":"#N/A"}},{"$f":"Lönd!S28","v":0},".M.SFUIN$$.XX.XXX.XXX.XXXX.SV.XXX.XXX.CN.N.M"]
[{"$f":"\"INN.\"&EIGNIR!$B$3&C1830","v":{"$error":"#N/A"}},{"$f":"Lönd!S29","v":0},".M.SFUIN$$.XX.XXX.XXX.XXXX.SV.XXX.XXX.HR.N.M"]
[{"$f":"\"INN.\"&EIGNIR!$B$3&C1831","v":{"$error":"#N/A"}},{"$f":"Lönd!S30","v":0},".M.SFUIN$$.XX.XXX.XXX.XXXX.SV.XXX.XXX.CY.N.M"]
[{"$f":"\"INN.\"&EIGNIR!$B$3&C1832","v":{"$error":"#N/A"}},{"$f":"Lönd!S31","v":0},".M.SFUIN$$.XX.XXX.XXX.XXXX.SV.XXX.XXX.LV.N.M"]
[{"$f":"\"INN.\"&EIGNIR!$B$3&C1833","v":{"$error":"#N/A"}},{"$f":"Lönd!S32","v":0},".M.SFUIN$$.XX.XXX.XXX.XXXX.SV.XXX.XXX.LT.N.M"]
[{"$f":"\"INN.\"&EIGNIR!$B$3&C1834","v":{"$error":"#N/A"}},{"$f":"Lönd!S33","v":0},".M.SFUIN$$.XX.XXX.XXX.XXXX.SV.XXX.XXX.LX.N.M"]
[{"$f":"\"INN.\"&EIGNIR!$B$3&C1835","v":{"$error":"#N/A"}},{"$f":"Lönd!S34","v":0},".M.SFUIN$$.XX.XXX.XXX.XXXX.SV.XXX.XXX.MT.N.M"]
[{"$f":"\"INN.\"&EIGNIR!$B$3&C1836","v":{"$error":"#N/A"}},{"$f":"Lönd!S35","v":0},".M.SFUIN$$.XX.XXX.XXX.XXXX.SV.XXX.XXX.NO.N.M"]
[{"$f":"\"INN.\"&EIGNIR!$B$3&C1837","v":{"$error":"#N/A"}},{"$f":"Lönd!S36","v":0},".M.SFUIN$$.XX.XXX.XXX.XXXX.SV.XXX.XXX.PT.N.M"]
[{"$f":"\"INN.\"&EIGNIR!$B$3&C1838","v":{"$error":"#N/A"}},{"$f":"Lönd!S37","v":0},".M.SFUIN$$.XX.XXX.XXX.XXXX.SV.XXX.XXX.PL.N.M"]
[{"$f":"\"INN.\"&EIGNIR!$B$3&C1839","v":{"$error":"#N/A"}},{"$f":"Lönd!S38","v":0},".M.SFUIN$$.XX.XXX.XXX.XXXX.SV.XXX.XXX.RO.N.M"]
[{"$f":"\"INN.\"&EIGNIR!$B$3&C1840","v":{"$error":"#N/A"}},{"$f":"Lönd!S39","v":0},".M.SFUIN$$.XX.XXX.XXX.XXXX.SV.XXX.XXX.RU.N.M"]
[{"$f":"\"INN.\"&EIGNIR!$B$3&C1841","v":{"$error":"#N/A"}},{"$f":"Lönd!S40","v":0},".M.SFUIN$$.XX.XXX.XXX.XXXX.SV.XXX.XXX.SK.N.M"]
[{"$f":"\"INN.\"&EIGNIR!$B$3&C1842","v":{"$error":"#N/A"}},{"$f":"Lönd!S41","v":0},".M.SFUIN$$.XX.XXX.XXX.XXXX.SV.XXX.XXX.SI.N.M"]
[{"$f":"\"INN.\"&EIGNIR!$B$3&C1843","v":{"$error":"#N/A"}},{"$f":"Lönd!S42","v":0},".M.SFUIN$$.XX.XXX.XXX.XXXX.SV.XXX.XXX.ES.N.M"]
[{"$f":"\"INN.\"&EIGNIR!$B$3&C1844","v":{"$error":"#N/A"}},{"$f":"Lönd!S43","v":0},".M.SFUIN$$.XX.XXX.XXX.XXXX.SV.XXX.XXX.CH.N.M"]
[{"$f":"\"INN.\"&EIGNIR!$B$3&C1845","v":{"$error":"#N/A"}},{"$f":"Lönd!S44","v":0},".M.SFUIN$$.XX.XXX.XXX.XXXX.SV.XXX.XXX.SE.N.M"]
[{"$f":"\"INN.\"&EIGNIR!$B$3&C1846","v":{"$error":"#N/A"}},{"$f":"Lönd!S45","v":0},".M.SFUIN$$.XX.XXX.XXX.XXXX.SV.XXX.XXX.CZ.N.M"]
[{"$f":"\"INN.\"&EIGNIR!$B$3&C1847","v":{"$error":"#N/A"}},{"$f":"Lönd!S46","v":0},".M.SFUIN$$.XX.XXX.XXX.XXXX.SV.XXX.XXX.HU.N.M"]
[{"$f":"\"INN.\"&EIGNIR!$B$3&C1848","v":{"$error":"#N/A"}},{"$f":"Lönd!S47","v":0},".M.SFUIN$$.XX.XXX.XXX.XXXX.SV.XXX.XXX.DE.N.M"]
[{"$f":"\"INN.\"&EIGNIR!$B$3&C1849","v":{"$error":"#N/A"}},{"$f":"Lönd!S48","v":0},".M.SFUIN$$.XX.XXX.XXX.XXXX.SV.XXX.XXX.XX.N.M"]
[{"$f":"\"INN.\"&EIGNIR!$B$3&C1850","v":{"$error":"#N/A"}},{"$f":"Lönd!S49","v":0},".M.SFUIN$$.XX.XXX.XXX.XXXX.SV.XXX.XXX.4F.N.M"]
[{"$f":"\"INN.\"&EIGNIR!$B$3&C1851","v":{"$error":"#N/A"}},{"$f":"Lönd!S50","v":0},".M.SFUIN$$.XX.XXX.XXX.XXXX.SV.XXX.XXX.4C.N.M"]
[{"$f":"\"INN.\"&EIGNIR!$B$3&C1852","v":{"$error":"#N/A"}},{"$f":"Lönd!S51","v":0},".M.SFUIN$$.XX.XXX.XXX.XXXX.SV.XXX.XXX.4J.N.M"]
[{"$f":"\"INN.\"&EIGNIR!$B$3&C1853","v":{"$error":"#N/A"}},{"$f":"Lönd!S52","v":0},".M.SFUIN$$.XX.XXX.XXX.XXXX.SV.XXX.XXX.4S.N.M"]
[{"$f":"\"INN.\"&EIGNIR!$B$3&C1854","v":{"$error":"#N/A"}},{"$f":"Lönd!S53","v":0},".M.SFUIN$$.XX.XXX.XXX.XXXX.SV.XXX.XXX.1C.N.M"]
[{"$f":"\"INN.\"&EIGNIR!$B$3&C1855","v":{"$error":"#N/A"}},{"$f":"Lönd!S54","v":0},".M.SFUIN$$.XX.XXX.XXX.XXXX.SV.XXX.XXX.5Z.N.M"]
[{"$f":"\"INN.\"&EIGNIR!$B$3&C1856","v":{"$error":"#N/A"}},{"$f":"Lönd!T5","v":0},".M.SAF$$$$.XX.XXX.XXX.XXXX.SV.XXX.XXX.IS.N.M","//Erlendir afleiðusamningar"]
[{"$f":"\"INN.\"&EIGNIR!$B$3&C1857","v":{"$error":"#N/A"}},{"$f":"Lönd!T6","v":0},".M.SAF$$$$.XX.XXX.XXX.XXXX.SV.XXX.XXX.AT.N.M"]
[{"$f":"\"INN.\"&EIGNIR!$B$3&C1858","v":{"$error":"#N/A"}},{"$f":"Lönd!T7","v":0},".M.SAF$$$$.XX.XXX.XXX.XXXX.SV.XXX.XXX.US.N.M"]
[{"$f":"\"INN.\"&EIGNIR!$B$3&C1859","v":{"$error":"#N/A"}},{"$f":"Lönd!T8","v":0},".M.SAF$$$$.XX.XXX.XXX.XXXX.SV.XXX.XXX.BE.N.M"]
[{"$f":"\"INN.\"&EIGNIR!$B$3&C1860","v":{"$error":"#N/A"}},{"$f":"Lönd!T9","v":0},".M.SAF$$$$.XX.XXX.XXX.XXXX.SV.XXX.XXX.BR.N.M"]
[{"$f":"\"INN.\"&EIGNIR!$B$3&C1861","v":{"$error":"#N/A"}},{"$f":"Lönd!T10","v":0},".M.SAF$$$$.XX.XXX.XXX.XXXX.SV.XXX.XXX.GB.N.M"]
[{"$f":"\"INN.\"&EIGNIR!$B$3&C1862","v":{"$error":"#N/A"}},{"$f":"Lönd!T11","v":0},".M.SAF$$$$.XX.XXX.XXX.XXXX.SV.XXX.XXX.BG.N.M"]
[{"$f":"\"INN.\"&EIGNIR!$B$3&C1863","v":{"$error":"#N/A"}},{"$f":"Lönd!T12","v":0},".M.SAF$$$$.XX.XXX.XXX.XXXX.SV.XXX.XXX.KY.N.M"]
[{"$f":"\"INN.\"&EIGNIR!$B$3&C1864","v":{"$error":"#N/A"}},{"$f":"Lönd!T13","v":0},".M.SAF$$$$.XX.XXX.XXX.XXXX.SV.XXX.XXX.DK.N.M"]
[{"$f":"\"INN.\"&EIGNIR!$B$3&C1865","v":{"$error":"#N/A"}},{"$f":"Lönd!T14","v":0},".M.SAF$$$$.XX.XXX.XXX.XXXX.SV.XXX.XXX.EE.N.M"]
[{"$f":"\"INN.\"&EIGNIR!$B$3&C1866","v":{"$error":"#N/A"}},{"$f":"Lönd!T15","v":0},".M.SAF$$$$.XX.XXX.XXX.XXXX.SV.XXX.XXX.FI.N.M"]
[{"$f":"\"INN.\"&EIGNIR!$B$3&C1867","v":{"$error":"#N/A"}},{"$f":"Lönd!T16","v":0},".M.SAF$$$$.XX.XXX.XXX.XXXX.SV.XXX.XXX.FR.N.M"]
[{"$f":"\"INN.\"&EIGNIR!$B$3&C1868","v":{"$error":"#N/A"}},{"$f":"Lönd!T17","v":0},".M.SAF$$$$.XX.XXX.XXX.XXXX.SV.XXX.XXX.FO.N.M"]
[{"$f":"\"INN.\"&EIGNIR!$B$3&C1869","v":{"$error":"#N/A"}},{"$f":"Lönd!T18","v":0},".M.SAF$$$$.XX.XXX.XXX.XXXX.SV.XXX.XXX.GR.N.M"]
[{"$f":"\"INN.\"&EIGNIR!$B$3&C1870","v":{"$error":"#N/A"}},{"$f":"Lönd!T19","v":0},".M.SAF$$$$.XX.XXX.XXX.XXXX.SV.XXX.XXX.GG.N.M"]
[{"$f":"\"INN.\"&EIGNIR!$B$3&C1871","v":{"$error":"#N/A"}},{"$f":"Lönd!T20","v":0},".M.SAF$$$$.XX.XXX.XXX.XXXX.SV.XXX.XXX.NL.N.M"]
[{"$f":"\"INN.\"&EIGNIR!$B$3&C1872","v":{"$error":"#N/A"}},{"$f":"Lönd!T21","v":0},".M.SAF$$$$.XX.XXX.XXX.XXXX.SV.XXX.XXX.HK.N.M"]
[{"$f":"\"INN.\"&EIGNIR!$B$3&C1873","v":{"$error":"#N/A"}},{"$f":"Lönd!T22","v":0},".M.SAF$$$$.XX.XXX.XXX.XXXX.SV.XXX.XXX.IN.N.M"]
[{"$f":"\"INN.\"&EIGNIR!$B$3&C1874","v":{"$error":"#N/A"}},{"$f":"Lönd!T23","v":0},".M.SAF$$$$.XX.XXX.XXX.XXXX.SV.XXX.XXX.IE.N.M"]
[{"$f":"\"INN.\"&EIGNIR!$B$3&C1875","v":{"$error":"#N/A"}},{"$f":"Lönd!T24","v":0},".M.SAF$$$$.XX.XXX.XXX.XXXX.SV.XXX.XXX.IT.N.M"]
[{"$f":"\"INN.\"&EIGNIR!$B$3&C1876","v":{"$error":"#N/A"}},{"$f":"Lönd!T25","v":0},".M.SAF$$$$.XX.XXX.XXX.XXXX.SV.XXX.XXX.JP.N.M"]
[{"$f":"\"INN.\"&EIGNIR!$B$3&C1877","v":{"$error":"#N/A"}},{"$f":"Lönd!T26","v":0},".M.SAF$$$$.XX.XXX.XXX.XXXX.SV.XXX.XXX.JE.N.M"]
[{"$f":"\"INN.\"&EIGNIR!$B$3&C1878","v":{"$error":"#N/A"}},{"$f":"Lönd!T27","v":0},".M.SAF$$$$.XX.XXX.XXX.XXXX.SV.XXX.XXX.CA.N.M"]
[{"$f":"\"INN.\"&EIGNIR!$B$3&C1879","v":{"$error":"#N/A"}},{"$f":"Lönd!T28","v":0},".M.SAF$$$$.XX.XXX.XXX.XXXX.SV.XXX.XXX.CN.N.M"]
[{"$f":"\"INN.\"&EIGNIR!$B$3&C1880","v":{"$error":"#N/A"}},{"$f":"Lönd!T29","v":0},".M.SAF$$$$.XX.XXX.XXX.XXXX.SV.XXX.XXX.HR.N.M"]
[{"$f":"\"INN.\"&EIGNIR!$B$3&C1881","v":{"$error":"#N/A"}},{"$f":"Lönd!T30","v":0},".M.SAF$$$$.XX.XXX.XXX.XXXX.SV.XXX.XXX.CY.N.M"]
[{"$f":"\"INN.\"&EIGNIR!$B$3&C1882","v":{"$error":"#N/A"}},{"$f":"Lönd!T31","v":0},".M.SAF$$$$.XX.XXX.XXX.XXXX.SV.XXX.XXX.LV.N.M"]
[{"$f":"\"INN.\"&EIGNIR!$B$3&C1883","v":{"$error":"#N/A"}},{"$f":"Lönd!T32","v":0},".M.SAF$$$$.XX.XXX.XXX.XXXX.SV.XXX.XXX.LT.N.M"]
[{"$f":"\"INN.\"&EIGNIR!$B$3&C1884","v":{"$error":"#N/A"}},{"$f":"Lönd!T33","v":0},".M.SAF$$$$.XX.XXX.XXX.XXXX.SV.XXX.XXX.LX.N.M"]
[{"$f":"\"INN.\"&EIGNIR!$B$3&C1885","v":{"$error":"#N/A"}},{"$f":"Lönd!T34","v":0},".M.SAF$$$$.XX.XXX.XXX.XXXX.SV.XXX.XXX.MT.N.M"]
[{"$f":"\"INN.\"&EIGNIR!$B$3&C1886","v":{"$error":"#N/A"}},{"$f":"Lönd!T35","v":0},".M.SAF$$$$.XX.XXX.XXX.XXXX.SV.XXX.XXX.NO.N.M"]
[{"$f":"\"INN.\"&EIGNIR!$B$3&C1887","v":{"$error":"#N/A"}},{"$f":"Lönd!T36","v":0},".M.SAF$$$$.XX.XXX.XXX.XXXX.SV.XXX.XXX.PT.N.M"]
[{"$f":"\"INN.\"&EIGNIR!$B$3&C1888","v":{"$error":"#N/A"}},{"$f":"Lönd!T37","v":0},".M.SAF$$$$.XX.XXX.XXX.XXXX.SV.XXX.XXX.PL.N.M"]
[{"$f":"\"INN.\"&EIGNIR!$B$3&C1889","v":{"$error":"#N/A"}},{"$f":"Lönd!T38","v":0},".M.SAF$$$$.XX.XXX.XXX.XXXX.SV.XXX.XXX.RO.N.M"]
[{"$f":"\"INN.\"&EIGNIR!$B$3&C1890","v":{"$error":"#N/A"}},{"$f":"Lönd!T39","v":0},".M.SAF$$$$.XX.XXX.XXX.XXXX.SV.XXX.XXX.RU.N.M"]
[{"$f":"\"INN.\"&EIGNIR!$B$3&C1891","v":{"$error":"#N/A"}},{"$f":"Lönd!T40","v":0},".M.SAF$$$$.XX.XXX.XXX.XXXX.SV.XXX.XXX.SK.N.M"]
[{"$f":"\"INN.\"&EIGNIR!$B$3&C1892","v":{"$error":"#N/A"}},{"$f":"Lönd!T41","v":0},".M.SAF$$$$.XX.XXX.XXX.XXXX.SV.XXX.XXX.SI.N.M"]
[{"$f":"\"INN.\"&EIGNIR!$B$3&C1893","v":{"$error":"#N/A"}},{"$f":"Lönd!T42","v":0},".M.SAF$$$$.XX.XXX.XXX.XXXX.SV.XXX.XXX.ES.N.M"]
[{"$f":"\"INN.\"&EIGNIR!$B$3&C1894","v":{"$error":"#N/A"}},{"$f":"Lönd!T43","v":0},".M.SAF$$$$.XX.XXX.XXX.XXXX.SV.XXX.XXX.CH.N.M"]
[{"$f":"\"INN.\"&EIGNIR!$B$3&C1895","v":{"$error":"#N/A"}},{"$f":"Lönd!T44","v":0},".M.SAF$$$$.XX.XXX.XXX.XXXX.SV.XXX.XXX.SE.N.M"]
[{"$f":"\"INN.\"&EIGNIR!$B$3&C1896","v":{"$error":"#N/A"}},{"$f":"Lönd!T45","v":0},".M.SAF$$$$.XX.XXX.XXX.XXXX.SV.XXX.XXX.CZ.N.M"]
[{"$f":"\"INN.\"&EIGNIR!$B$3&C1897","v":{"$error":"#N/A"}},{"$f":"Lönd!T46","v":0},".M.SAF$$$$.XX.XXX.XXX.XXXX.SV.XXX.XXX.HU.N.M"]
[{"$f":"\"INN.\"&EIGNIR!$B$3&C1898","v":{"$error":"#N/A"}},{"$f":"Lönd!T47","v":0},".M.SAF$$$$.XX.XXX.XXX.XXXX.SV.XXX.XXX.DE.N.M"]
[{"$f":"\"INN.\"&EIGNIR!$B$3&C1899","v":{"$error":"#N/A"}},{"$f":"Lönd!T48","v":0},".M.SAF$$$$.XX.XXX.XXX.XXXX.SV.XXX.XXX.XX.N.M"]
[{"$f":"\"INN.\"&EIGNIR!$B$3&C1900","v":{"$error":"#N/A"}},{"$f":"Lönd!T49","v":0},".M.SAF$$$$.XX.XXX.XXX.XXXX.SV.XXX.XXX.4F.N.M"]
[{"$f":"\"INN.\"&EIGNIR!$B$3&C1901","v":{"$error":"#N/A"}},{"$f":"Lönd!T50","v":0},".M.SAF$$$$.XX.XXX.XXX.XXXX.SV.XXX.XXX.4C.N.M"]
[{"$f":"\"INN.\"&EIGNIR!$B$3&C1902","v":{"$error":"#N/A"}},{"$f":"Lönd!T51","v":0},".M.SAF$$$$.XX.XXX.XXX.XXXX.SV.XXX.XXX.4J.N.M"]
[{"$f":"\"INN.\"&EIGNIR!$B$3&C1903","v":{"$error":"#N/A"}},{"$f":"Lönd!T52","v":0},".M.SAF$$$$.XX.XXX.XXX.XXXX.SV.XXX.XXX.4S.N.M"]
[{"$f":"\"INN.\"&EIGNIR!$B$3&C1904","v":{"$error":"#N/A"}},{"$f":"Lönd!T53","v":0},".M.SAF$$$$.XX.XXX.XXX.XXXX.SV.XXX.XXX.1C.N.M"]
[{"$f":"\"INN.\"&EIGNIR!$B$3&C1905","v":{"$error":"#N/A"}},{"$f":"Lönd!T54","v":0},".M.SAF$$$$.XX.XXX.XXX.XXXX.SV.XXX.XXX.5Z.N.M"]
[{"$f":"\"INN.\"&EIGNIR!$B$3&C1906","v":{"$error":"#N/A"}},{"$f":"Lönd!U6","v":0},".M.SAFSSEH.XX.XXX.XXX.XXXX.SV.XXX.XXX.AT.N.M","//Skortstöður við erlenda aðila, hlutabréf"]
[{"$f":"\"INN.\"&EIGNIR!$B$3&C1907","v":{"$error":"#N/A"}},{"$f":"Lönd!U7","v":0},".M.SAFSSEH.XX.XXX.XXX.XXXX.SV.XXX.XXX.US.N.M"]
[{"$f":"\"INN.\"&EIGNIR!$B$3&C1908","v":{"$error":"#N/A"}},{"$f":"Lönd!U8","v":0},".M.SAFSSEH.XX.XXX.XXX.XXXX.SV.XXX.XXX.BE.N.M"]
[{"$f":"\"INN.\"&EIGNIR!$B$3&C1909","v":{"$error":"#N/A"}},{"$f":"Lönd!U9","v":0},".M.SAFSSEH.XX.XXX.XXX.XXXX.SV.XXX.XXX.BR.N.M"]
[{"$f":"\"INN.\"&EIGNIR!$B$3&C1910","v":{"$error":"#N/A"}},{"$f":"Lönd!U10","v":0},".M.SAFSSEH.XX.XXX.XXX.XXXX.SV.XXX.XXX.GB.N.M"]
[{"$f":"\"INN.\"&EIGNIR!$B$3&C1911","v":{"$error":"#N/A"}},{"$f":"Lönd!U11","v":0},".M.SAFSSEH.XX.XXX.XXX.XXXX.SV.XXX.XXX.BG.N.M"]
[{"$f":"\"INN.\"&EIGNIR!$B$3&C1912","v":{"$error":"#N/A"}},{"$f":"Lönd!U12","v":0},".M.SAFSSEH.XX.XXX.XXX.XXXX.SV.XXX.XXX.KY.N.M"]
[{"$f":"\"INN.\"&EIGNIR!$B$3&C1913","v":{"$error":"#N/A"}},{"$f":"Lönd!U13","v":0},".M.SAFSSEH.XX.XXX.XXX.XXXX.SV.XXX.XXX.DK.N.M"]
[{"$f":"\"INN.\"&EIGNIR!$B$3&C1914","v":{"$error":"#N/A"}},{"$f":"Lönd!U14","v":0},".M.SAFSSEH.XX.XXX.XXX.XXXX.SV.XXX.XXX.EE.N.M"]
[{"$f":"\"INN.\"&EIGNIR!$B$3&C1915","v":{"$error":"#N/A"}},{"$f":"Lönd!U15","v":0},".M.SAFSSEH.XX.XXX.XXX.XXXX.SV.XXX.XXX.FI.N.M"]
[{"$f":"\"INN.\"&EIGNIR!$B$3&C1916","v":{"$error":"#N/A"}},{"$f":"Lönd!U16","v":0},".M.SAFSSEH.XX.XXX.XXX.XXXX.SV.XXX.XXX.FR.N.M"]
[{"$f":"\"INN.\"&EIGNIR!$B$3&C1917","v":{"$error":"#N/A"}},{"$f":"Lönd!U17","v":0},".M.SAFSSEH.XX.XXX.XXX.XXXX.SV.XXX.XXX.FO.N.M"]
[{"$f":"\"INN.\"&EIGNIR!$B$3&C1918","v":{"$error":"#N/A"}},{"$f":"Lönd!U18","v":0},".M.SAFSSEH.XX.XXX.XXX.XXXX.SV.XXX.XXX.GR.N.M"]
[{"$f":"\"INN.\"&EIGNIR!$B$3&C1919","v":{"$error":"#N/A"}},{"$f":"Lönd!U19","v":0},".M.SAFSSEH.XX.XXX.XXX.XXXX.SV.XXX.XXX.GG.N.M"]
[{"$f":"\"INN.\"&EIGNIR!$B$3&C1920","v":{"$error":"#N/A"}},{"$f":"Lönd!U20","v":0},".M.SAFSSEH.XX.XXX.XXX.XXXX.SV.XXX.XXX.NL.N.M"]
[{"$f":"\"INN.\"&EIGNIR!$B$3&C1921","v":{"$error":"#N/A"}},{"$f":"Lönd!U21","v":0},".M.SAFSSEH.XX.XXX.XXX.XXXX.SV.XXX.XXX.HK.N.M"]
[{"$f":"\"INN.\"&EIGNIR!$B$3&C1922","v":{"$error":"#N/A"}},{"$f":"Lönd!U22","v":0},".M.SAFSSEH.XX.XXX.XXX.XXXX.SV.XXX.XXX.IN.N.M"]
[{"$f":"\"INN.\"&EIGNIR!$B$3&C1923","v":{"$error":"#N/A"}},{"$f":"Lönd!U23","v":0},".M.SAFSSEH.XX.XXX.XXX.XXXX.SV.XXX.XXX.IE.N.M"]
[{"$f":"\"INN.\"&EIGNIR!$B$3&C1924","v":{"$error":"#N/A"}},{"$f":"Lönd!U24","v":0},".M.SAFSSEH.XX.XXX.XXX.XXXX.SV.XXX.XXX.IT.N.M"]
[{"$f":"\"INN.\"&EIGNIR!$B$3&C1925","v":{"$error":"#N/A"}},{"$f":"Lönd!U25","v":0},".M.SAFSSEH.XX.XXX.XXX.XXXX.SV.XXX.XXX.JP.N.M"]
[{"$f":"\"INN.\"&EIGNIR!$B$3&C1926","v":{"$error":"#N/A"}},{"$f":"Lönd!U26","v":0},".M.SAFSSEH.XX.XXX.XXX.XXXX.SV.XXX.XXX.JE.N.M"]
[{"$f":"\"INN.\"&EIGNIR!$B$3&C1927","v":{"$error":"#N/A"}},{"$f":"Lönd!U27","v":0},".M.SAFSSEH.XX.XXX.XXX.XXXX.SV.XXX.XXX.CA.N.M"]
[{"$f":"\"INN.\"&EIGNIR!$B$3&C1928","v":{"$error":"#N/A"}},{"$f":"Lönd!U28","v":0},".M.SAFSSEH.XX.XXX.XXX.XXXX.SV.XXX.XXX.CN.N.M"]
[{"$f":"\"INN.\"&EIGNIR!$B$3&C1929","v":{"$error":"#N/A"}},{"$f":"Lönd!U29","v":0},".M.SAFSSEH.XX.XXX.XXX.XXXX.SV.XXX.XXX.HR.N.M"]
[{"$f":"\"INN.\"&EIGNIR!$B$3&C1930","v":{"$error":"#N/A"}},{"$f":"Lönd!U30","v":0},".M.SAFSSEH.XX.XXX.XXX.XXXX.SV.XXX.XXX.CY.N.M"]
[{"$f":"\"INN.\"&EIGNIR!$B$3&C1931","v":{"$error":"#N/A"}},{"$f":"Lönd!U31","v":0},".M.SAFSSEH.XX.XXX.XXX.XXXX.SV.XXX.XXX.LV.N.M"]
[{"$f":"\"INN.\"&EIGNIR!$B$3&C1932","v":{"$error":"#N/A"}},{"$f":"Lönd!U32","v":0},".M.SAFSSEH.XX.XXX.XXX.XXXX.SV.XXX.XXX.LT.N.M"]
[{"$f":"\"INN.\"&EIGNIR!$B$3&C1933","v":{"$error":"#N/A"}},{"$f":"Lönd!U33","v":0},".M.SAFSSEH.XX.XXX.XXX.XXXX.SV.XXX.XXX.LX.N.M"]
[{"$f":"\"INN.\"&EIGNIR!$B$3&C1934","v":{"$error":"#N/A"}},{"$f":"Lönd!U34","v":0},".M.SAFSSEH.XX.XXX.XXX.XXXX.SV.XXX.XXX.MT.N.M"]
[{"$f":"\"INN.\"&EIGNIR!$B$3&C1935","v":{"$error":"#N/A"}},{"$f":"Lönd!U35","v":0},".M.SAFSSEH.XX.XXX.XXX.XXXX.SV.XXX.XXX.NO.N.M"]
[{"$f":"\"INN.\"&EIGNIR!$B$3&C1936","v":{"$error":"#N/A"}},{"$f":"Lönd!U36","v":0},".M.SAFSSEH.XX.XXX.XXX.XXXX.SV.XXX.XXX.PT.N.M"]
[{"$f":"\"INN.\"&EIGNIR!$B$3&C1937","v":{"$error":"#N/A"}},{"$f":"Lönd!U37","v":0},".M.SAFSSEH.XX.XXX.XXX.XXXX.SV.XXX.XXX.PL.N.M"]
[{"$f":"\"INN.\"&EIGNIR!$B$3&C1938","v":{"$error":"#N/A"}},{"$f":"Lönd!U38","v":0},".M.SAFSSEH.XX.XXX.XXX.XXXX.SV.XXX.XXX.RO.N.M"]
[{"$f":"\"INN.\"&EIGNIR!$B$3&C1939","v":{"$error":"#N/A"}},{"$f":"Lönd!U39","v":0},".M.SAFSSEH.XX.XXX.XXX.XXXX.SV.XXX.XXX.RU.N.M"]
[{"$f":"\"INN.\"&EIGNIR!$B$3&C1940","v":{"$error":"#N/A"}},{"$f":"Lönd!U40","v":0},".M.SAFSSEH.XX.XXX.XXX.XXXX.SV.XXX.XXX.SK.N.M"]
[{"$f":"\"INN.\"&EIGNIR!$B$3&C1941","v":{"$error":"#N/A"}},{"$f":"Lönd!U41","v":0},".M.SAFSSEH.XX.XXX.XXX.XXXX.SV.XXX.XXX.SI.N.M"]
[{"$f":"\"INN.\"&EIGNIR!$B$3&C1942","v":{"$error":"#N/A"}},{"$f":"Lönd!U42","v":0},".M.SAFSSEH.XX.XXX.XXX.XXXX.SV.XXX.XXX.ES.N.M"]
[{"$f":"\"INN.\"&EIGNIR!$B$3&C1943","v":{"$error":"#N/A"}},{"$f":"Lönd!U43","v":0},".M.SAFSSEH.XX.XXX.XXX.XXXX.SV.XXX.XXX.CH.N.M"]
[{"$f":"\"INN.\"&EIGNIR!$B$3&C1944","v":{"$error":"#N/A"}},{"$f":"Lönd!U44","v":0},".M.SAFSSEH.XX.XXX.XXX.XXXX.SV.XXX.XXX.SE.N.M"]
[{"$f":"\"INN.\"&EIGNIR!$B$3&C1945","v":{"$error":"#N/A"}},{"$f":"Lönd!U45","v":0},".M.SAFSSEH.XX.XXX.XXX.XXXX.SV.XXX.XXX.CZ.N.M"]
[{"$f":"\"INN.\"&EIGNIR!$B$3&C1946","v":{"$error":"#N/A"}},{"$f":"Lönd!U46","v":0},".M.SAFSSEH.XX.XXX.XXX.XXXX.SV.XXX.XXX.HU.N.M"]
[{"$f":"\"INN.\"&EIGNIR!$B$3&C1947","v":{"$error":"#N/A"}},{"$f":"Lönd!U47","v":0},".M.SAFSSEH.XX.XXX.XXX.XXXX.SV.XXX.XXX.DE.N.M"]
[{"$f":"\"INN.\"&EIGNIR!$B$3&C1948","v":{"$error":"#N/A"}},{"$f":"Lönd!U48","v":0},".M.SAFSSEH.XX.XXX.XXX.XXXX.SV.XXX.XXX.XX.N.M"]
[{"$f":"\"INN.\"&EIGNIR!$B$3&C1949","v":{"$error":"#N/A"}},{"$f":"Lönd!U49","v":0},".M.SAFSSEH.XX.XXX.XXX.XXXX.SV.XXX.XXX.4F.N.M"]
[{"$f":"\"INN.\"&EIGNIR!$B$3&C1950","v":{"$error":"#N/A"}},{"$f":"Lönd!U50","v":0},".M.SAFSSEH.XX.XXX.XXX.XXXX.SV.XXX.XXX.4C.N.M"]
[{"$f":"\"INN.\"&EIGNIR!$B$3&C1951","v":{"$error":"#N/A"}},{"$f":"Lönd!U51","v":0},".M.SAFSSEH.XX.XXX.XXX.XXXX.SV.XXX.XXX.4J.N.M"]
[{"$f":"\"INN.\"&EIGNIR!$B$3&C1952","v":{"$error":"#N/A"}},{"$f":"Lönd!U52","v":0},".M.SAFSSEH.XX.XXX.XXX.XXXX.SV.XXX.XXX.4S.N.M"]
[{"$f":"\"INN.\"&EIGNIR!$B$3&C1953","v":{"$error":"#N/A"}},{"$f":"Lönd!U53","v":0},".M.SAFSSEH.XX.XXX.XXX.XXXX.SV.XXX.XXX.1C.N.M"]
[{"$f":"\"INN.\"&EIGNIR!$B$3&C1954","v":{"$error":"#N/A"}},{"$f":"Lönd!U54","v":0},".M.SAFSSEH.XX.XXX.XXX.XXXX.SV.XXX.XXX.5Z.N.M"]
[{"$f":"\"INN.\"&EIGNIR!$B$3&C1955","v":{"$error":"#N/A"}},{"$f":"Lönd!V6","v":0},".M.SAFSSES.XX.XXX.XXX.XXXX.SV.SKT.XXX.AT.N.M","//Skortstöður við erlenda aðila, skammtímaskuldaskjöl"]
[{"$f":"\"INN.\"&EIGNIR!$B$3&C1956","v":{"$error":"#N/A"}},{"$f":"Lönd!V7","v":0},".M.SAFSSES.XX.XXX.XXX.XXXX.SV.SKT.XXX.US.N.M"]
[{"$f":"\"INN.\"&EIGNIR!$B$3&C1957","v":{"$error":"#N/A"}},{"$f":"Lönd!V8","v":0},".M.SAFSSES.XX.XXX.XXX.XXXX.SV.SKT.XXX.BE.N.M"]
[{"$f":"\"INN.\"&EIGNIR!$B$3&C1958","v":{"$error":"#N/A"}},{"$f":"Lönd!V9","v":0},".M.SAFSSES.XX.XXX.XXX.XXXX.SV.SKT.XXX.BR.N.M"]
[{"$f":"\"INN.\"&EIGNIR!$B$3&C1959","v":{"$error":"#N/A"}},{"$f":"Lönd!V10","v":0},".M.SAFSSES.XX.XXX.XXX.XXXX.SV.SKT.XXX.GB.N.M"]
[{"$f":"\"INN.\"&EIGNIR!$B$3&C1960","v":{"$error":"#N/A"}},{"$f":"Lönd!V11","v":0},".M.SAFSSES.XX.XXX.XXX.XXXX.SV.SKT.XXX.BG.N.M"]
[{"$f":"\"INN.\"&EIGNIR!$B$3&C1961","v":{"$error":"#N/A"}},{"$f":"Lönd!V12","v":0},".M.SAFSSES.XX.XXX.XXX.XXXX.SV.SKT.XXX.KY.N.M"]
[{"$f":"\"INN.\"&EIGNIR!$B$3&C1962","v":{"$error":"#N/A"}},{"$f":"Lönd!V13","v":0},".M.SAFSSES.XX.XXX.XXX.XXXX.SV.SKT.XXX.DK.N.M"]
[{"$f":"\"INN.\"&EIGNIR!$B$3&C1963","v":{"$error":"#N/A"}},{"$f":"Lönd!V14","v":0},".M.SAFSSES.XX.XXX.XXX.XXXX.SV.SKT.XXX.EE.N.M"]
[{"$f":"\"INN.\"&EIGNIR!$B$3&C1964","v":{"$error":"#N/A"}},{"$f":"Lönd!V15","v":0},".M.SAFSSES.XX.XXX.XXX.XXXX.SV.SKT.XXX.FI.N.M"]
[{"$f":"\"INN.\"&EIGNIR!$B$3&C1965","v":{"$error":"#N/A"}},{"$f":"Lönd!V16","v":0},".M.SAFSSES.XX.XXX.XXX.XXXX.SV.SKT.XXX.FR.N.M"]
[{"$f":"\"INN.\"&EIGNIR!$B$3&C1966","v":{"$error":"#N/A"}},{"$f":"Lönd!V17","v":0},".M.SAFSSES.XX.XXX.XXX.XXXX.SV.SKT.XXX.FO.N.M"]
[{"$f":"\"INN.\"&EIGNIR!$B$3&C1967","v":{"$error":"#N/A"}},{"$f":"Lönd!V18","v":0},".M.SAFSSES.XX.XXX.XXX.XXXX.SV.SKT.XXX.GR.N.M"]
[{"$f":"\"INN.\"&EIGNIR!$B$3&C1968","v":{"$error":"#N/A"}},{"$f":"Lönd!V19","v":0},".M.SAFSSES.XX.XXX.XXX.XXXX.SV.SKT.XXX.GG.N.M"]
[{"$f":"\"INN.\"&EIGNIR!$B$3&C1969","v":{"$error":"#N/A"}},{"$f":"Lönd!V20","v":0},".M.SAFSSES.XX.XXX.XXX.XXXX.SV.SKT.XXX.NL.N.M"]
[{"$f":"\"INN.\"&EIGNIR!$B$3&C1970","v":{"$error":"#N/A"}},{"$f":"Lönd!V21","v":0},".M.SAFSSES.XX.XXX.XXX.XXXX.SV.SKT.XXX.HK.N.M"]
[{"$f":"\"INN.\"&EIGNIR!$B$3&C1971","v":{"$error":"#N/A"}},{"$f":"Lönd!V22","v":0},".M.SAFSSES.XX.XXX.XXX.XXXX.SV.SKT.XXX.IN.N.M"]
[{"$f":"\"INN.\"&EIGNIR!$B$3&C1972","v":{"$error":"#N/A"}},{"$f":"Lönd!V23","v":0},".M.SAFSSES.XX.XXX.XXX.XXXX.SV.SKT.XXX.IE.N.M"]
[{"$f":"\"INN.\"&EIGNIR!$B$3&C1973","v":{"$error":"#N/A"}},{"$f":"Lönd!V24","v":0},".M.SAFSSES.XX.XXX.XXX.XXXX.SV.SKT.XXX.IT.N.M"]
[{"$f":"\"INN.\"&EIGNIR!$B$3&C1974","v":{"$error":"#N/A"}},{"$f":"Lönd!V25","v":0},".M.SAFSSES.XX.XXX.XXX.XXXX.SV.SKT.XXX.JP.N.M"]
[{"$f":"\"INN.\"&EIGNIR!$B$3&C1975","v":{"$error":"#N/A"}},{"$f":"Lönd!V26","v":0},".M.SAFSSES.XX.XXX.XXX.XXXX.SV.SKT.XXX.JE.N.M"]
[{"$f":"\"INN.\"&EIGNIR!$B$3&C1976","v":{"$error":"#N/A"}},{"$f":"Lönd!V27","v":0},".M.SAFSSES.XX.XXX.XXX.XXXX.SV.SKT.XXX.CA.N.M"]
[{"$f":"\"INN.\"&EIGNIR!$B$3&C1977","v":{"$error":"#N/A"}},{"$f":"Lönd!V28","v":0},".M.SAFSSES.XX.XXX.XXX.XXXX.SV.SKT.XXX.CN.N.M"]
[{"$f":"\"INN.\"&EIGNIR!$B$3&C1978","v":{"$error":"#N/A"}},{"$f":"Lönd!V29","v":0},".M.SAFSSES.XX.XXX.XXX.XXXX.SV.SKT.XXX.HR.N.M"]
[{"$f":"\"INN.\"&EIGNIR!$B$3&C1979","v":{"$error":"#N/A"}},{"$f":"Lönd!V30","v":0},".M.SAFSSES.XX.XXX.XXX.XXXX.SV.SKT.XXX.CY.N.M"]
[{"$f":"\"INN.\"&EIGNIR!$B$3&C1980","v":{"$error":"#N/A"}},{"$f":"Lönd!V31","v":0},".M.SAFSSES.XX.XXX.XXX.XXXX.SV.SKT.XXX.LV.N.M"]
[{"$f":"\"INN.\"&EIGNIR!$B$3&C1981","v":{"$error":"#N/A"}},{"$f":"Lönd!V32","v":0},".M.SAFSSES.XX.XXX.XXX.XXXX.SV.SKT.XXX.LT.N.M"]
[{"$f":"\"INN.\"&EIGNIR!$B$3&C1982","v":{"$error":"#N/A"}},{"$f":"Lönd!V33","v":0},".M.SAFSSES.XX.XXX.XXX.XXXX.SV.SKT.XXX.LX.N.M"]
[{"$f":"\"INN.\"&EIGNIR!$B$3&C1983","v":{"$error":"#N/A"}},{"$f":"Lönd!V34","v":0},".M.SAFSSES.XX.XXX.XXX.XXXX.SV.SKT.XXX.MT.N.M"]
[{"$f":"\"INN.\"&EIGNIR!$B$3&C1984","v":{"$error":"#N/A"}},{"$f":"Lönd!V35","v":0},".M.SAFSSES.XX.XXX.XXX.XXXX.SV.SKT.XXX.NO.N.M"]
[{"$f":"\"INN.\"&EIGNIR!$B$3&C1985","v":{"$error":"#N/A"}},{"$f":"Lönd!V36","v":0},".M.SAFSSES.XX.XXX.XXX.XXXX.SV.SKT.XXX.PT.N.M"]
[{"$f":"\"INN.\"&EIGNIR!$B$3&C1986","v":{"$error":"#N/A"}},{"$f":"Lönd!V37","v":0},".M.SAFSSES.XX.XXX.XXX.XXXX.SV.SKT.XXX.PL.N.M"]
[{"$f":"\"INN.\"&EIGNIR!$B$3&C1987","v":{"$error":"#N/A"}},{"$f":"Lönd!V38","v":0},".M.SAFSSES.XX.XXX.XXX.XXXX.SV.SKT.XXX.RO.N.M"]
[{"$f":"\"INN.\"&EIGNIR!$B$3&C1988","v":{"$error":"#N/A"}},{"$f":"Lönd!V39","v":0},".M.SAFSSES.XX.XXX.XXX.XXXX.SV.SKT.XXX.RU.N.M"]
[{"$f":"\"INN.\"&EIGNIR!$B$3&C1989","v":{"$error":"#N/A"}},{"$f":"Lönd!V40","v":0},".M.SAFSSES.XX.XXX.XXX.XXXX.SV.SKT.XXX.SK.N.M"]
[{"$f":"\"INN.\"&EIGNIR!$B$3&C1990","v":{"$error":"#N/A"}},{"$f":"Lönd!V41","v":0},".M.SAFSSES.XX.XXX.XXX.XXXX.SV.SKT.XXX.SI.N.M"]
[{"$f":"\"INN.\"&EIGNIR!$B$3&C1991","v":{"$error":"#N/A"}},{"$f":"Lönd!V42","v":0},".M.SAFSSES.XX.XXX.XXX.XXXX.SV.SKT.XXX.ES.N.M"]
[{"$f":"\"INN.\"&EIGNIR!$B$3&C1992","v":{"$error":"#N/A"}},{"$f":"Lönd!V43","v":0},".M.SAFSSES.XX.XXX.XXX.XXXX.SV.SKT.XXX.CH.N.M"]
[{"$f":"\"INN.\"&EIGNIR!$B$3&C1993","v":{"$error":"#N/A"}},{"$f":"Lönd!V44","v":0},".M.SAFSSES.XX.XXX.XXX.XXXX.SV.SKT.XXX.SE.N.M"]
[{"$f":"\"INN.\"&EIGNIR!$B$3&C1994","v":{"$error":"#N/A"}},{"$f":"Lönd!V45","v":0},".M.SAFSSES.XX.XXX.XXX.XXXX.SV.SKT.XXX.CZ.N.M"]
[{"$f":"\"INN.\"&EIGNIR!$B$3&C1995","v":{"$error":"#N/A"}},{"$f":"Lönd!V46","v":0},".M.SAFSSES.XX.XXX.XXX.XXXX.SV.SKT.XXX.HU.N.M"]
[{"$f":"\"INN.\"&EIGNIR!$B$3&C1996","v":{"$error":"#N/A"}},{"$f":"Lönd!V47","v":0},".M.SAFSSES.XX.XXX.XXX.XXXX.SV.SKT.XXX.DE.N.M"]
[{"$f":"\"INN.\"&EIGNIR!$B$3&C1997","v":{"$error":"#N/A"}},{"$f":"Lönd!V48","v":0},".M.SAFSSES.XX.XXX.XXX.XXXX.SV.SKT.XXX.XX.N.M"]
[{"$f":"\"INN.\"&EIGNIR!$B$3&C1998","v":{"$error":"#N/A"}},{"$f":"Lönd!V49","v":0},".M.SAFSSES.XX.XXX.XXX.XXXX.SV.SKT.XXX.4F.N.M"]
[{"$f":"\"INN.\"&EIGNIR!$B$3&C1999","v":{"$error":"#N/A"}},{"$f":"Lönd!V50","v":0},".M.SAFSSES.XX.XXX.XXX.XXXX.SV.SKT.XXX.4C.N.M"]
[{"$f":"\"INN.\"&EIGNIR!$B$3&C2000","v":{"$error":"#N/A"}},{"$f":"Lönd!V51","v":0},".M.SAFSSES.XX.XXX.XXX.XXXX.SV.SKT.XXX.4J.N.M"]
[{"$f":"\"INN.\"&EIGNIR!$B$3&C2001","v":{"$error":"#N/A"}},{"$f":"Lönd!V52","v":0},".M.SAFSSES.XX.XXX.XXX.XXXX.SV.SKT.XXX.4S.N.M"]
[{"$f":"\"INN.\"&EIGNIR!$B$3&C2002","v":{"$error":"#N/A"}},{"$f":"Lönd!V53","v":0},".M.SAFSSES.XX.XXX.XXX.XXXX.SV.SKT.XXX.1C.N.M"]
[{"$f":"\"INN.\"&EIGNIR!$B$3&C2003","v":{"$error":"#N/A"}},{"$f":"Lönd!V54","v":0},".M.SAFSSES.XX.XXX.XXX.XXXX.SV.SKT.XXX.5Z.N.M"]
[{"$f":"\"INN.\"&EIGNIR!$B$3&C2004","v":{"$error":"#N/A"}},{"$f":"Lönd!W6","v":0},".M.SAFSSES.XX.XXX.XXX.XXXX.SV.LAT.XXX.AT.N.M","//Skortstöður við erlenda aðila, langtímaskuldaskjöl"]
[{"$f":"\"INN.\"&EIGNIR!$B$3&C2005","v":{"$error":"#N/A"}},{"$f":"Lönd!W7","v":0},".M.SAFSSES.XX.XXX.XXX.XXXX.SV.LAT.XXX.US.N.M"]
[{"$f":"\"INN.\"&EIGNIR!$B$3&C2006","v":{"$error":"#N/A"}},{"$f":"Lönd!W8","v":0},".M.SAFSSES.XX.XXX.XXX.XXXX.SV.LAT.XXX.BE.N.M"]
[{"$f":"\"INN.\"&EIGNIR!$B$3&C2007","v":{"$error":"#N/A"}},{"$f":"Lönd!W9","v":0},".M.SAFSSES.XX.XXX.XXX.XXXX.SV.LAT.XXX.BR.N.M"]
[{"$f":"\"INN.\"&EIGNIR!$B$3&C2008","v":{"$error":"#N/A"}},{"$f":"Lönd!W10","v":0},".M.SAFSSES.XX.XXX.XXX.XXXX.SV.LAT.XXX.GB.N.M"]
[{"$f":"\"INN.\"&EIGNIR!$B$3&C2009","v":{"$error":"#N/A"}},{"$f":"Lönd!W11","v":0},".M.SAFSSES.XX.XXX.XXX.XXXX.SV.LAT.XXX.BG.N.M"]
[{"$f":"\"INN.\"&EIGNIR!$B$3&C2010","v":{"$error":"#N/A"}},{"$f":"Lönd!W12","v":0},".M.SAFSSES.XX.XXX.XXX.XXXX.SV.LAT.XXX.KY.N.M"]
[{"$f":"\"INN.\"&EIGNIR!$B$3&C2011","v":{"$error":"#N/A"}},{"$f":"Lönd!W13","v":0},".M.SAFSSES.XX.XXX.XXX.XXXX.SV.LAT.XXX.DK.N.M"]
[{"$f":"\"INN.\"&EIGNIR!$B$3&C2012","v":{"$error":"#N/A"}},{"$f":"Lönd!W14","v":0},".M.SAFSSES.XX.XXX.XXX.XXXX.SV.LAT.XXX.EE.N.M"]
[{"$f":"\"INN.\"&EIGNIR!$B$3&C2013","v":{"$error":"#N/A"}},{"$f":"Lönd!W15","v":0},".M.SAFSSES.XX.XXX.XXX.XXXX.SV.LAT.XXX.FI.N.M"]
[{"$f":"\"INN.\"&EIGNIR!$B$3&C2014","v":{"$error":"#N/A"}},{"$f":"Lönd!W16","v":0},".M.SAFSSES.XX.XXX.XXX.XXXX.SV.LAT.XXX.FR.N.M"]
[{"$f":"\"INN.\"&EIGNIR!$B$3&C2015","v":{"$error":"#N/A"}},{"$f":"Lönd!W17","v":0},".M.SAFSSES.XX.XXX.XXX.XXXX.SV.LAT.XXX.FO.N.M"]
[{"$f":"\"INN.\"&EIGNIR!$B$3&C2016","v":{"$error":"#N/A"}},{"$f":"Lönd!W18","v":0},".M.SAFSSES.XX.XXX.XXX.XXXX.SV.LAT.XXX.GR.N.M"]
[{"$f":"\"INN.\"&EIGNIR!$B$3&C2017","v":{"$error":"#N/A"}},{"$f":"Lönd!W19","v":0},".M.SAFSSES.XX.XXX.XXX.XXXX.SV.LAT.XXX.GG.N.M"]
[{"$f":"\"INN.\"&EIGNIR!$B$3&C2018","v":{"$error":"#N/A"}},{"$f":"Lönd!W20","v":0},".M.SAFSSES.XX.XXX.XXX.XXXX.SV.LAT.XXX.NL.N.M"]
[{"$f":"\"INN.\"&EIGNIR!$B$3&C2019","v":{"$error":"#N/A"}},{"$f":"Lönd!W21","v":0},".M.SAFSSES.XX.XXX.XXX.XXXX.SV.LAT.XXX.HK.N.M"]
[{"$f":"\"INN.\"&EIGNIR!$B$3&C2020","v":{"$error":"#N/A"}},{"$f":"Lönd!W22","v":0},".M.SAFSSES.XX.XXX.XXX.XXXX.SV.LAT.XXX.IN.N.M"]
[{"$f":"\"INN.\"&EIGNIR!$B$3&C2021","v":{"$error":"#N/A"}},{"$f":"Lönd!W23","v":0},".M.SAFSSES.XX.XXX.XXX.XXXX.SV.LAT.XXX.IE.N.M"]
[{"$f":"\"INN.\"&EIGNIR!$B$3&C2022","v":{"$error":"#N/A"}},{"$f":"Lönd!W24","v":0},".M.SAFSSES.XX.XXX.XXX.XXXX.SV.LAT.XXX.IT.N.M"]
[{"$f":"\"INN.\"&EIGNIR!$B$3&C2023","v":{"$error":"#N/A"}},{"$f":"Lönd!W25","v":0},".M.SAFSSES.XX.XXX.XXX.XXXX.SV.LAT.XXX.JP.N.M"]
[{"$f":"\"INN.\"&EIGNIR!$B$3&C2024","v":{"$error":"#N/A"}},{"$f":"Lönd!W26","v":0},".M.SAFSSES.XX.XXX.XXX.XXXX.SV.LAT.XXX.JE.N.M"]
[{"$f":"\"INN.\"&EIGNIR!$B$3&C2025","v":{"$error":"#N/A"}},{"$f":"Lönd!W27","v":0},".M.SAFSSES.XX.XXX.XXX.XXXX.SV.LAT.XXX.CA.N.M"]
[{"$f":"\"INN.\"&EIGNIR!$B$3&C2026","v":{"$error":"#N/A"}},{"$f":"Lönd!W28","v":0},".M.SAFSSES.XX.XXX.XXX.XXXX.SV.LAT.XXX.CN.N.M"]
[{"$f":"\"INN.\"&EIGNIR!$B$3&C2027","v":{"$error":"#N/A"}},{"$f":"Lönd!W29","v":0},".M.SAFSSES.XX.XXX.XXX.XXXX.SV.LAT.XXX.HR.N.M"]
[{"$f":"\"INN.\"&EIGNIR!$B$3&C2028","v":{"$error":"#N/A"}},{"$f":"Lönd!W30","v":0},".M.SAFSSES.XX.XXX.XXX.XXXX.SV.LAT.XXX.CY.N.M"]
[{"$f":"\"INN.\"&EIGNIR!$B$3&C2029","v":{"$error":"#N/A"}},{"$f":"Lönd!W31","v":0},".M.SAFSSES.XX.XXX.XXX.XXXX.SV.LAT.XXX.LV.N.M"]
[{"$f":"\"INN.\"&EIGNIR!$B$3&C2030","v":{"$error":"#N/A"}},{"$f":"Lönd!W32","v":0},".M.SAFSSES.XX.XXX.XXX.XXXX.SV.LAT.XXX.LT.N.M"]
[{"$f":"\"INN.\"&EIGNIR!$B$3&C2031","v":{"$error":"#N/A"}},{"$f":"Lönd!W33","v":0},".M.SAFSSES.XX.XXX.XXX.XXXX.SV.LAT.XXX.LX.N.M"]
[{"$f":"\"INN.\"&EIGNIR!$B$3&C2032","v":{"$error":"#N/A"}},{"$f":"Lönd!W34","v":0},".M.SAFSSES.XX.XXX.XXX.XXXX.SV.LAT.XXX.MT.N.M"]
[{"$f":"\"INN.\"&EIGNIR!$B$3&C2033","v":{"$error":"#N/A"}},{"$f":"Lönd!W35","v":0},".M.SAFSSES.XX.XXX.XXX.XXXX.SV.LAT.XXX.NO.N.M"]
[{"$f":"\"INN.\"&EIGNIR!$B$3&C2034","v":{"$error":"#N/A"}},{"$f":"Lönd!W36","v":0},".M.SAFSSES.XX.XXX.XXX.XXXX.SV.LAT.XXX.PT.N.M"]
[{"$f":"\"INN.\"&EIGNIR!$B$3&C2035","v":{"$error":"#N/A"}},{"$f":"Lönd!W37","v":0},".M.SAFSSES.XX.XXX.XXX.XXXX.SV.LAT.XXX.PL.N.M"]
[{"$f":"\"INN.\"&EIGNIR!$B$3&C2036","v":{"$error":"#N/A"}},{"$f":"Lönd!W38","v":0},".M.SAFSSES.XX.XXX.XXX.XXXX.SV.LAT.XXX.RO.N.M"]
[{"$f":"\"INN.\"&EIGNIR!$B$3&C2037","v":{"$error":"#N/A"}},{"$f":"Lönd!W39","v":0},".M.SAFSSES.XX.XXX.XXX.XXXX.SV.LAT.XXX.RU.N.M"]
[{"$f":"\"INN.\"&EIGNIR!$B$3&C2038","v":{"$error":"#N/A"}},{"$f":"Lönd!W40","v":0},".M.SAFSSES.XX.XXX.XXX.XXXX.SV.LAT.XXX.SK.N.M"]
[{"$f":"\"INN.\"&EIGNIR!$B$3&C2039","v":{"$error":"#N/A"}},{"$f":"Lönd!W41","v":0},".M.SAFSSES.XX.XXX.XXX.XXXX.SV.LAT.XXX.SI.N.M"]
[{"$f":"\"INN.\"&EIGNIR!$B$3&C2040","v":{"$error":"#N/A"}},{"$f":"Lönd!W42","v":0},".M.SAFSSES.XX.XXX.XXX.XXXX.SV.LAT.XXX.ES.N.M"]
[{"$f":"\"INN.\"&EIGNIR!$B$3&C2041","v":{"$error":"#N/A"}},{"$f":"Lönd!W43","v":0},".M.SAFSSES.XX.XXX.XXX.XXXX.SV.LAT.XXX.CH.N.M"]
[{"$f":"\"INN.\"&EIGNIR!$B$3&C2042","v":{"$error":"#N/A"}},{"$f":"Lönd!W44","v":0},".M.SAFSSES.XX.XXX.XXX.XXXX.SV.LAT.XXX.SE.N.M"]
[{"$f":"\"INN.\"&EIGNIR!$B$3&C2043","v":{"$error":"#N/A"}},{"$f":"Lönd!W45","v":0},".M.SAFSSES.XX.XXX.XXX.XXXX.SV.LAT.XXX.CZ.N.M"]
[{"$f":"\"INN.\"&EIGNIR!$B$3&C2044","v":{"$error":"#N/A"}},{"$f":"Lönd!W46","v":0},".M.SAFSSES.XX.XXX.XXX.XXXX.SV.LAT.XXX.HU.N.M"]
[{"$f":"\"INN.\"&EIGNIR!$B$3&C2045","v":{"$error":"#N/A"}},{"$f":"Lönd!W47","v":0},".M.SAFSSES.XX.XXX.XXX.XXXX.SV.LAT.XXX.DE.N.M"]
[{"$f":"\"INN.\"&EIGNIR!$B$3&C2046","v":{"$error":"#N/A"}},{"$f":"Lönd!W48","v":0},".M.SAFSSES.XX.XXX.XXX.XXXX.SV.LAT.XXX.XX.N.M"]
[{"$f":"\"INN.\"&EIGNIR!$B$3&C2047","v":{"$error":"#N/A"}},{"$f":"Lönd!W49","v":0},".M.SAFSSES.XX.XXX.XXX.XXXX.SV.LAT.XXX.4F.N.M"]
[{"$f":"\"INN.\"&EIGNIR!$B$3&C2048","v":{"$error":"#N/A"}},{"$f":"Lönd!W50","v":0},".M.SAFSSES.XX.XXX.XXX.XXXX.SV.LAT.XXX.4C.N.M"]
[{"$f":"\"INN.\"&EIGNIR!$B$3&C2049","v":{"$error":"#N/A"}},{"$f":"Lönd!W51","v":0},".M.SAFSSES.XX.XXX.XXX.XXXX.SV.LAT.XXX.4J.N.M"]
[{"$f":"\"INN.\"&EIGNIR!$B$3&C2050","v":{"$error":"#N/A"}},{"$f":"Lönd!W52","v":0},".M.SAFSSES.XX.XXX.XXX.XXXX.SV.LAT.XXX.4S.N.M"]
[{"$f":"\"INN.\"&EIGNIR!$B$3&C2051","v":{"$error":"#N/A"}},{"$f":"Lönd!W53","v":0},".M.SAFSSES.XX.XXX.XXX.XXXX.SV.LAT.XXX.1C.N.M"]
[{"$f":"\"INN.\"&EIGNIR!$B$3&C2052","v":{"$error":"#N/A"}},{"$f":"Lönd!W54","v":0},".M.SAFSSES.XX.XXX.XXX.XXXX.SV.LAT.XXX.5Z.N.M"]
[{"$f":"\"INN.\"&EIGNIR!$B$3&C2053","v":{"$error":"#N/A"}},{"$f":"Lönd!X6","v":0},".M.SASAESK.XX.XXX.XXX.XXXX.SV.XXX.XXX.AT.N.M","//Aðrar erlendar skuldir"]
[{"$f":"\"INN.\"&EIGNIR!$B$3&C2054","v":{"$error":"#N/A"}},{"$f":"Lönd!X7","v":0},".M.SASAESK.XX.XXX.XXX.XXXX.SV.XXX.XXX.US.N.M"]
[{"$f":"\"INN.\"&EIGNIR!$B$3&C2055","v":{"$error":"#N/A"}},{"$f":"Lönd!X8","v":0},".M.SASAESK.XX.XXX.XXX.XXXX.SV.XXX.XXX.BE.N.M"]
[{"$f":"\"INN.\"&EIGNIR!$B$3&C2056","v":{"$error":"#N/A"}},{"$f":"Lönd!X9","v":0},".M.SASAESK.XX.XXX.XXX.XXXX.SV.XXX.XXX.BR.N.M"]
[{"$f":"\"INN.\"&EIGNIR!$B$3&C2057","v":{"$error":"#N/A"}},{"$f":"Lönd!X10","v":0},".M.SASAESK.XX.XXX.XXX.XXXX.SV.XXX.XXX.GB.N.M"]
[{"$f":"\"INN.\"&EIGNIR!$B$3&C2058","v":{"$error":"#N/A"}},{"$f":"Lönd!X11","v":0},".M.SASAESK.XX.XXX.XXX.XXXX.SV.XXX.XXX.BG.N.M"]
[{"$f":"\"INN.\"&EIGNIR!$B$3&C2059","v":{"$error":"#N/A"}},{"$f":"Lönd!X12","v":0},".M.SASAESK.XX.XXX.XXX.XXXX.SV.XXX.XXX.KY.N.M"]
[{"$f":"\"INN.\"&EIGNIR!$B$3&C2060","v":{"$error":"#N/A"}},{"$f":"Lönd!X13","v":0},".M.SASAESK.XX.XXX.XXX.XXXX.SV.XXX.XXX.DK.N.M"]
[{"$f":"\"INN.\"&EIGNIR!$B$3&C2061","v":{"$error":"#N/A"}},{"$f":"Lönd!X14","v":0},".M.SASAESK.XX.XXX.XXX.XXXX.SV.XXX.XXX.EE.N.M"]
[{"$f":"\"INN.\"&EIGNIR!$B$3&C2062","v":{"$error":"#N/A"}},{"$f":"Lönd!X15","v":0},".M.SASAESK.XX.XXX.XXX.XXXX.SV.XXX.XXX.FI.N.M"]
[{"$f":"\"INN.\"&EIGNIR!$B$3&C2063","v":{"$error":"#N/A"}},{"$f":"Lönd!X16","v":0},".M.SASAESK.XX.XXX.XXX.XXXX.SV.XXX.XXX.FR.N.M"]
[{"$f":"\"INN.\"&EIGNIR!$B$3&C2064","v":{"$error":"#N/A"}},{"$f":"Lönd!X17","v":0},".M.SASAESK.XX.XXX.XXX.XXXX.SV.XXX.XXX.FO.N.M"]
[{"$f":"\"INN.\"&EIGNIR!$B$3&C2065","v":{"$error":"#N/A"}},{"$f":"Lönd!X18","v":0},".M.SASAESK.XX.XXX.XXX.XXXX.SV.XXX.XXX.GR.N.M"]
[{"$f":"\"INN.\"&EIGNIR!$B$3&C2066","v":{"$error":"#N/A"}},{"$f":"Lönd!X19","v":0},".M.SASAESK.XX.XXX.XXX.XXXX.SV.XXX.XXX.GG.N.M"]
[{"$f":"\"INN.\"&EIGNIR!$B$3&C2067","v":{"$error":"#N/A"}},{"$f":"Lönd!X20","v":0},".M.SASAESK.XX.XXX.XXX.XXXX.SV.XXX.XXX.NL.N.M"]
[{"$f":"\"INN.\"&EIGNIR!$B$3&C2068","v":{"$error":"#N/A"}},{"$f":"Lönd!X21","v":0},".M.SASAESK.XX.XXX.XXX.XXXX.SV.XXX.XXX.HK.N.M"]
[{"$f":"\"INN.\"&EIGNIR!$B$3&C2069","v":{"$error":"#N/A"}},{"$f":"Lönd!X22","v":0},".M.SASAESK.XX.XXX.XXX.XXXX.SV.XXX.XXX.IN.N.M"]
[{"$f":"\"INN.\"&EIGNIR!$B$3&C2070","v":{"$error":"#N/A"}},{"$f":"Lönd!X23","v":0},".M.SASAESK.XX.XXX.XXX.XXXX.SV.XXX.XXX.IE.N.M"]
[{"$f":"\"INN.\"&EIGNIR!$B$3&C2071","v":{"$error":"#N/A"}},{"$f":"Lönd!X24","v":0},".M.SASAESK.XX.XXX.XXX.XXXX.SV.XXX.XXX.IT.N.M"]
[{"$f":"\"INN.\"&EIGNIR!$B$3&C2072","v":{"$error":"#N/A"}},{"$f":"Lönd!X25","v":0},".M.SASAESK.XX.XXX.XXX.XXXX.SV.XXX.XXX.JP.N.M"]
[{"$f":"\"INN.\"&EIGNIR!$B$3&C2073","v":{"$error":"#N/A"}},{"$f":"Lönd!X26","v":0},".M.SASAESK.XX.XXX.XXX.XXXX.SV.XXX.XXX.JE.N.M"]
[{"$f":"\"INN.\"&EIGNIR!$B$3&C2074","v":{"$error":"#N/A"}},{"$f":"Lönd!X27","v":0},".M.SASAESK.XX.XXX.XXX.XXXX.SV.XXX.XXX.CA.N.M"]
[{"$f":"\"INN.\"&EIGNIR!$B$3&C2075","v":{"$error":"#N/A"}},{"$f":"Lönd!X28","v":0},".M.SASAESK.XX.XXX.XXX.XXXX.SV.XXX.XXX.CN.N.M"]
[{"$f":"\"INN.\"&EIGNIR!$B$3&C2076","v":{"$error":"#N/A"}},{"$f":"Lönd!X29","v":0},".M.SASAESK.XX.XXX.XXX.XXXX.SV.XXX.XXX.HR.N.M"]
[{"$f":"\"INN.\"&EIGNIR!$B$3&C2077","v":{"$error":"#N/A"}},{"$f":"Lönd!X30","v":0},".M.SASAESK.XX.XXX.XXX.XXXX.SV.XXX.XXX.CY.N.M"]
[{"$f":"\"INN.\"&EIGNIR!$B$3&C2078","v":{"$error":"#N/A"}},{"$f":"Lönd!X31","v":0},".M.SASAESK.XX.XXX.XXX.XXXX.SV.XXX.XXX.LV.N.M"]
[{"$f":"\"INN.\"&EIGNIR!$B$3&C2079","v":{"$error":"#N/A"}},{"$f":"Lönd!X32","v":0},".M.SASAESK.XX.XXX.XXX.XXXX.SV.XXX.XXX.LT.N.M"]
[{"$f":"\"INN.\"&EIGNIR!$B$3&C2080","v":{"$error":"#N/A"}},{"$f":"Lönd!X33","v":0},".M.SASAESK.XX.XXX.XXX.XXXX.SV.XXX.XXX.LX.N.M"]
[{"$f":"\"INN.\"&EIGNIR!$B$3&C2081","v":{"$error":"#N/A"}},{"$f":"Lönd!X34","v":0},".M.SASAESK.XX.XXX.XXX.XXXX.SV.XXX.XXX.MT.N.M"]
[{"$f":"\"INN.\"&EIGNIR!$B$3&C2082","v":{"$error":"#N/A"}},{"$f":"Lönd!X35","v":0},".M.SASAESK.XX.XXX.XXX.XXXX.SV.XXX.XXX.NO.N.M"]
[{"$f":"\"INN.\"&EIGNIR!$B$3&C2083","v":{"$error":"#N/A"}},{"$f":"Lönd!X36","v":0},".M.SASAESK.XX.XXX.XXX.XXXX.SV.XXX.XXX.PT.N.M"]
[{"$f":"\"INN.\"&EIGNIR!$B$3&C2084","v":{"$error":"#N/A"}},{"$f":"Lönd!X37","v":0},".M.SASAESK.XX.XXX.XXX.XXXX.SV.XXX.XXX.PL.N.M"]
[{"$f":"\"INN.\"&EIGNIR!$B$3&C2085","v":{"$error":"#N/A"}},{"$f":"Lönd!X38","v":0},".M.SASAESK.XX.XXX.XXX.XXXX.SV.XXX.XXX.RO.N.M"]
[{"$f":"\"INN.\"&EIGNIR!$B$3&C2086","v":{"$error":"#N/A"}},{"$f":"Lönd!X39","v":0},".M.SASAESK.XX.XXX.XXX.XXXX.SV.XXX.XXX.RU.N.M"]
[{"$f":"\"INN.\"&EIGNIR!$B$3&C2087","v":{"$error":"#N/A"}},{"$f":"Lönd!X40","v":0},".M.SASAESK.XX.XXX.XXX.XXXX.SV.XXX.XXX.SK.N.M"]
[{"$f":"\"INN.\"&EIGNIR!$B$3&C2088","v":{"$error":"#N/A"}},{"$f":"Lönd!X41","v":0},".M.SASAESK.XX.XXX.XXX.XXXX.SV.XXX.XXX.SI.N.M"]
[{"$f":"\"INN.\"&EIGNIR!$B$3&C2089","v":{"$error":"#N/A"}},{"$f":"Lönd!X42","v":0},".M.SASAESK.XX.XXX.XXX.XXXX.SV.XXX.XXX.ES.N.M"]
[{"$f":"\"INN.\"&EIGNIR!$B$3&C2090","v":{"$error":"#N/A"}},{"$f":"Lönd!X43","v":0},".M.SASAESK.XX.XXX.XXX.XXXX.SV.XXX.XXX.CH.N.M"]
[{"$f":"\"INN.\"&EIGNIR!$B$3&C2091","v":{"$error":"#N/A"}},{"$f":"Lönd!X44","v":0},".M.SASAESK.XX.XXX.XXX.XXXX.SV.XXX.XXX.SE.N.M"]
[{"$f":"\"INN.\"&EIGNIR!$B$3&C2092","v":{"$error":"#N/A"}},{"$f":"Lönd!X45","v":0},".M.SASAESK.XX.XXX.XXX.XXXX.SV.XXX.XXX.CZ.N.M"]
[{"$f":"\"INN.\"&EIGNIR!$B$3&C2093","v":{"$error":"#N/A"}},{"$f":"Lönd!X46","v":0},".M.SASAESK.XX.XXX.XXX.XXXX.SV.XXX.XXX.HU.N.M"]
[{"$f":"\"INN.\"&EIGNIR!$B$3&C2094","v":{"$error":"#N/A"}},{"$f":"Lönd!X47","v":0},".M.SASAESK.XX.XXX.XXX.XXXX.SV.XXX.XXX.DE.N.M"]
[{"$f":"\"INN.\"&EIGNIR!$B$3&C2095","v":{"$error":"#N/A"}},{"$f":"Lönd!X48","v":0},".M.SASAESK.XX.XXX.XXX.XXXX.SV.XXX.XXX.XX.N.M"]
[{"$f":"\"INN.\"&EIGNIR!$B$3&C2096","v":{"$error":"#N/A"}},{"$f":"Lönd!X49","v":0},".M.SASAESK.XX.XXX.XXX.XXXX.SV.XXX.XXX.4F.N.M"]
[{"$f":"\"INN.\"&EIGNIR!$B$3&C2097","v":{"$error":"#N/A"}},{"$f":"Lönd!X50","v":0},".M.SASAESK.XX.XXX.XXX.XXXX.SV.XXX.XXX.4C.N.M"]
[{"$f":"\"INN.\"&EIGNIR!$B$3&C2098","v":{"$error":"#N/A"}},{"$f":"Lönd!X51","v":0},".M.SASAESK.XX.XXX.XXX.XXXX.SV.XXX.XXX.4J.N.M"]
[{"$f":"\"INN.\"&EIGNIR!$B$3&C2099","v":{"$error":"#N/A"}},{"$f":"Lönd!X52","v":0},".M.SASAESK.XX.XXX.XXX.XXXX.SV.XXX.XXX.4S.N.M"]
[{"$f":"\"INN.\"&EIGNIR!$B$3&C2100","v":{"$error":"#N/A"}},{"$f":"Lönd!X53","v":0},".M.SASAESK.XX.XXX.XXX.XXXX.SV.XXX.XXX.1C.N.M"]
[{"$f":"\"INN.\"&EIGNIR!$B$3&C2101","v":{"$error":"#N/A"}},{"$f":"Lönd!X54","v":0},".M.SASAESK.XX.XXX.XXX.XXXX.SV.XXX.XXX.5Z.N.M"]
[{"$f":"\"INN.\"&EIGNIR!$B$3&C2102","v":{"$error":"#N/A"}},{"$f":"Lönd!Y6","v":0},".M.SASAEVS.XX.XXX.XXX.XXXX.SV.XXX.XXX.AT.N.M","//Viðskiptaskuldir við erlenda aðila"]
[{"$f":"\"INN.\"&EIGNIR!$B$3&C2103","v":{"$error":"#N/A"}},{"$f":"Lönd!Y7","v":0},".M.SASAEVS.XX.XXX.XXX.XXXX.SV.XXX.XXX.US.N.M"]
[{"$f":"\"INN.\"&EIGNIR!$B$3&C2104","v":{"$error":"#N/A"}},{"$f":"Lönd!Y8","v":0},".M.SASAEVS.XX.XXX.XXX.XXXX.SV.XXX.XXX.BE.N.M"]
[{"$f":"\"INN.\"&EIGNIR!$B$3&C2105","v":{"$error":"#N/A"}},{"$f":"Lönd!Y9","v":0},".M.SASAEVS.XX.XXX.XXX.XXXX.SV.XXX.XXX.BR.N.M"]
[{"$f":"\"INN.\"&EIGNIR!$B$3&C2106","v":{"$error":"#N/A"}},{"$f":"Lönd!Y10","v":0},".M.SASAEVS.XX.XXX.XXX.XXXX.SV.XXX.XXX.GB.N.M"]
[{"$f":"\"INN.\"&EIGNIR!$B$3&C2107","v":{"$error":"#N/A"}},{"$f":"Lönd!Y11","v":0},".M.SASAEVS.XX.XXX.XXX.XXXX.SV.XXX.XXX.BG.N.M"]
[{"$f":"\"INN.\"&EIGNIR!$B$3&C2108","v":{"$error":"#N/A"}},{"$f":"Lönd!Y12","v":0},".M.SASAEVS.XX.XXX.XXX.XXXX.SV.XXX.XXX.KY.N.M"]
[{"$f":"\"INN.\"&EIGNIR!$B$3&C2109","v":{"$error":"#N/A"}},{"$f":"Lönd!Y13","v":0},".M.SASAEVS.XX.XXX.XXX.XXXX.SV.XXX.XXX.DK.N.M"]
[{"$f":"\"INN.\"&EIGNIR!$B$3&C2110","v":{"$error":"#N/A"}},{"$f":"Lönd!Y14","v":0},".M.SASAEVS.XX.XXX.XXX.XXXX.SV.XXX.XXX.EE.N.M"]
[{"$f":"\"INN.\"&EIGNIR!$B$3&C2111","v":{"$error":"#N/A"}},{"$f":"Lönd!Y15","v":0},".M.SASAEVS.XX.XXX.XXX.XXXX.SV.XXX.XXX.FI.N.M"]
[{"$f":"\"INN.\"&EIGNIR!$B$3&C2112","v":{"$error":"#N/A"}},{"$f":"Lönd!Y16","v":0},".M.SASAEVS.XX.XXX.XXX.XXXX.SV.XXX.XXX.FR.N.M"]
[{"$f":"\"INN.\"&EIGNIR!$B$3&C2113","v":{"$error":"#N/A"}},{"$f":"Lönd!Y17","v":0},".M.SASAEVS.XX.XXX.XXX.XXXX.SV.XXX.XXX.FO.N.M"]
[{"$f":"\"INN.\"&EIGNIR!$B$3&C2114","v":{"$error":"#N/A"}},{"$f":"Lönd!Y18","v":0},".M.SASAEVS.XX.XXX.XXX.XXXX.SV.XXX.XXX.GR.N.M"]
[{"$f":"\"INN.\"&EIGNIR!$B$3&C2115","v":{"$error":"#N/A"}},{"$f":"Lönd!Y19","v":0},".M.SASAEVS.XX.XXX.XXX.XXXX.SV.XXX.XXX.GG.N.M"]
[{"$f":"\"INN.\"&EIGNIR!$B$3&C2116","v":{"$error":"#N/A"}},{"$f":"Lönd!Y20","v":0},".M.SASAEVS.XX.XXX.XXX.XXXX.SV.XXX.XXX.NL.N.M"]
[{"$f":"\"INN.\"&EIGNIR!$B$3&C2117","v":{"$error":"#N/A"}},{"$f":"Lönd!Y21","v":0},".M.SASAEVS.XX.XXX.XXX.XXXX.SV.XXX.XXX.HK.N.M"]
[{"$f":"\"INN.\"&EIGNIR!$B$3&C2118","v":{"$error":"#N/A"}},{"$f":"Lönd!Y22","v":0},".M.SASAEVS.XX.XXX.XXX.XXXX.SV.XXX.XXX.IN.N.M"]
[{"$f":"\"INN.\"&EIGNIR!$B$3&C2119","v":{"$error":"#N/A"}},{"$f":"Lönd!Y23","v":0},".M.SASAEVS.XX.XXX.XXX.XXXX.SV.XXX.XXX.IE.N.M"]
[{"$f":"\"INN.\"&EIGNIR!$B$3&C2120","v":{"$error":"#N/A"}},{"$f":"Lönd!Y24","v":0},".M.SASAEVS.XX.XXX.XXX.XXXX.SV.XXX.XXX.IT.N.M"]
[{"$f":"\"INN.\"&EIGNIR!$B$3&C2121","v":{"$error":"#N/A"}},{"$f":"Lönd!Y25","v":0},".M.SASAEVS.XX.XXX.XXX.XXXX.SV.XXX.XXX.JP.N.M"]
[{"$f":"\"INN.\"&EIGNIR!$B$3&C2122","v":{"$error":"#N/A"}},{"$f":"Lönd!Y26","v":0},".M.SASAEVS.XX.XXX.XXX.XXXX.SV.XXX.XXX.JE.N.M"]
[{"$f":"\"INN.\"&EIGNIR!$B$3&C2123","v":{"$error":"#N/A"}},{"$f":"Lönd!Y27","v":0},".M.SASAEVS.XX.XXX.XXX.XXXX.SV.XXX.XXX.CA.N.M"]
[{"$f":"\"INN.\"&EIGNIR!$B$3&C2124","v":{"$error":"#N/A"}},{"$f":"Lönd!Y28","v":0},".M.SASAEVS.XX.XXX.XXX.XXXX.SV.XXX.XXX.CN.N.M"]
[{"$f":"\"INN.\"&EIGNIR!$B$3&C2125","v":{"$error":"#N/A"}},{"$f":"Lönd!Y29","v":0},".M.SASAEVS.XX.XXX.XXX.XXXX.SV.XXX.XXX.HR.N.M"]
[{"$f":"\"INN.\"&EIGNIR!$B$3&C2126","v":{"$error":"#N/A"}},{"$f":"Lönd!Y30","v":0},".M.SASAEVS.XX.XXX.XXX.XXXX.SV.XXX.XXX.CY.N.M"]
[{"$f":"\"INN.\"&EIGNIR!$B$3&C2127","v":{"$error":"#N/A"}},{"$f":"Lönd!Y31","v":0},".M.SASAEVS.XX.XXX.XXX.XXXX.SV.XXX.XXX.LV.N.M"]
[{"$f":"\"INN.\"&EIGNIR!$B$3&C2128","v":{"$error":"#N/A"}},{"$f":"Lönd!Y32","v":0},".M.SASAEVS.XX.XXX.XXX.XXXX.SV.XXX.XXX.LT.N.M"]
[{"$f":"\"INN.\"&EIGNIR!$B$3&C2129","v":{"$error":"#N/A"}},{"$f":"Lönd!Y33","v":0},".M.SASAEVS.XX.XXX.XXX.XXXX.SV.XXX.XXX.LX.N.M"]
[{"$f":"\"INN.\"&EIGNIR!$B$3&C2130","v":{"$error":"#N/A"}},{"$f":"Lönd!Y34","v":0},".M.SASAEVS.XX.XXX.XXX.XXXX.SV.XXX.XXX.MT.N.M"]
[{"$f":"\"INN.\"&EIGNIR!$B$3&C2131","v":{"$error":"#N/A"}},{"$f":"Lönd!Y35","v":0},".M.SASAEVS.XX.XXX.XXX.XXXX.SV.XXX.XXX.NO.N.M"]
[{"$f":"\"INN.\"&EIGNIR!$B$3&C2132","v":{"$error":"#N/A"}},{"$f":"Lönd!Y36","v":0},".M.SASAEVS.XX.XXX.XXX.XXXX.SV.XXX.XXX.PT.N.M"]
[{"$f":"\"INN.\"&EIGNIR!$B$3&C2133","v":{"$error":"#N/A"}},{"$f":"Lönd!Y37","v":0},".M.SASAEVS.XX.XXX.XXX.XXXX.SV.XXX.XXX.PL.N.M"]
[{"$f":"\"INN.\"&EIGNIR!$B$3&C2134","v":{"$error":"#N/A"}},{"$f":"Lönd!Y38","v":0},".M.SASAEVS.XX.XXX.XXX.XXXX.SV.XXX.XXX.RO.N.M"]
[{"$f":"\"INN.\"&EIGNIR!$B$3&C2135","v":{"$error":"#N/A"}},{"$f":"Lönd!Y39","v":0},".M.SASAEVS.XX.XXX.XXX.XXXX.SV.XXX.XXX.RU.N.M"]
[{"$f":"\"INN.\"&EIGNIR!$B$3&C2136","v":{"$error":"#N/A"}},{"$f":"Lönd!Y40","v":0},".M.SASAEVS.XX.XXX.XXX.XXXX.SV.XXX.XXX.SK.N.M"]
[{"$f":"\"INN.\"&EIGNIR!$B$3&C2137","v":{"$error":"#N/A"}},{"$f":"Lönd!Y41","v":0},".M.SASAEVS.XX.XXX.XXX.XXXX.SV.XXX.XXX.SI.N.M"]
[{"$f":"\"INN.\"&EIGNIR!$B$3&C2138","v":{"$error":"#N/A"}},{"$f":"Lönd!Y42","v":0},".M.SASAEVS.XX.XXX.XXX.XXXX.SV.XXX.XXX.ES.N.M"]
[{"$f":"\"INN.\"&EIGNIR!$B$3&C2139","v":{"$error":"#N/A"}},{"$f":"Lönd!Y43","v":0},".M.SASAEVS.XX.XXX.XXX.XXXX.SV.XXX.XXX.CH.N.M"]
[{"$f":"\"INN.\"&EIGNIR!$B$3&C2140","v":{"$error":"#N/A"}},{"$f":"Lönd!Y44","v":0},".M.SASAEVS.XX.XXX.XXX.XXXX.SV.XXX.XXX.SE.N.M"]
[{"$f":"\"INN.\"&EIGNIR!$B$3&C2141","v":{"$error":"#N/A"}},{"$f":"Lönd!Y45","v":0},".M.SASAEVS.XX.XXX.XXX.XXXX.SV.XXX.XXX.CZ.N.M"]
[{"$f":"\"INN.\"&EIGNIR!$B$3&C2142","v":{"$error":"#N/A"}},{"$f":"Lönd!Y46","v":0},".M.SASAEVS.XX.XXX.XXX.XXXX.SV.XXX.XXX.HU.N.M"]
[{"$f":"\"INN.\"&EIGNIR!$B$3&C2143","v":{"$error":"#N/A"}},{"$f":"Lönd!Y47","v":0},".M.SASAEVS.XX.XXX.XXX.XXXX.SV.XXX.XXX.DE.N.M"]
[{"$f":"\"INN.\"&EIGNIR!$B$3&C2144","v":{"$error":"#N/A"}},{"$f":"Lönd!Y48","v":0},".M.SASAEVS.XX.XXX.XXX.XXXX.SV.XXX.XXX.XX.N.M"]
[{"$f":"\"INN.\"&EIGNIR!$B$3&C2145","v":{"$error":"#N/A"}},{"$f":"Lönd!Y49","v":0},".M.SASAEVS.XX.XXX.XXX.XXXX.SV.XXX.XXX.4F.N.M"]
[{"$f":"\"INN.\"&EIGNIR!$B$3&C2146","v":{"$error":"#N/A"}},{"$f":"Lönd!Y50","v":0},".M.SASAEVS.XX.XXX.XXX.XXXX.SV.XXX.XXX.4C.N.M"]
[{"$f":"\"INN.\"&EIGNIR!$B$3&C2147","v":{"$error":"#N/A"}},{"$f":"Lönd!Y51","v":0},".M.SASAEVS.XX.XXX.XXX.XXXX.SV.XXX.XXX.4J.N.M"]
[{"$f":"\"INN.\"&EIGNIR!$B$3&C2148","v":{"$error":"#N/A"}},{"$f":"Lönd!Y52","v":0},".M.SASAEVS.XX.XXX.XXX.XXXX.SV.XXX.XXX.4S.N.M"]
[{"$f":"\"INN.\"&EIGNIR!$B$3&C2149","v":{"$error":"#N/A"}},{"$f":"Lönd!Y53","v":0},".M.SASAEVS.XX.XXX.XXX.XXXX.SV.XXX.XXX.1C.N.M"]
[{"$f":"\"INN.\"&EIGNIR!$B$3&C2150","v":{"$error":"#N/A"}},{"$f":"Lönd!Y54","v":0},".M.SASAEVS.XX.XXX.XXX.XXXX.SV.XXX.XXX.5Z.N.M"]
[{"$f":"\"INN.\"&EIGNIR!$B$3&C2151","v":{"$error":"#N/A"}},{"$f":"Lönd!Z5","v":0},".M.SASAEAO.XX.XXX.XXX.XXXX.SV.XXX.XXX.IS.N.M","//Aðrar erlendar skuldir ót.a."]
[{"$f":"\"INN.\"&EIGNIR!$B$3&C2152","v":{"$error":"#N/A"}},{"$f":"Lönd!Z6","v":0},".M.SASAEAO.XX.XXX.XXX.XXXX.SV.XXX.XXX.AT.N.M"]
[{"$f":"\"INN.\"&EIGNIR!$B$3&C2153","v":{"$error":"#N/A"}},{"$f":"Lönd!Z7","v":0},".M.SASAEAO.XX.XXX.XXX.XXXX.SV.XXX.XXX.US.N.M"]
[{"$f":"\"INN.\"&EIGNIR!$B$3&C2154","v":{"$error":"#N/A"}},{"$f":"Lönd!Z8","v":0},".M.SASAEAO.XX.XXX.XXX.XXXX.SV.XXX.XXX.BE.N.M"]
[{"$f":"\"INN.\"&EIGNIR!$B$3&C2155","v":{"$error":"#N/A"}},{"$f":"Lönd!Z9","v":0},".M.SASAEAO.XX.XXX.XXX.XXXX.SV.XXX.XXX.BR.N.M"]
[{"$f":"\"INN.\"&EIGNIR!$B$3&C2156","v":{"$error":"#N/A"}},{"$f":"Lönd!Z10","v":0},".M.SASAEAO.XX.XXX.XXX.XXXX.SV.XXX.XXX.GB.N.M"]
[{"$f":"\"INN.\"&EIGNIR!$B$3&C2157","v":{"$error":"#N/A"}},{"$f":"Lönd!Z11","v":0},".M.SASAEAO.XX.XXX.XXX.XXXX.SV.XXX.XXX.BG.N.M"]
[{"$f":"\"INN.\"&EIGNIR!$B$3&C2158","v":{"$error":"#N/A"}},{"$f":"Lönd!Z12","v":0},".M.SASAEAO.XX.XXX.XXX.XXXX.SV.XXX.XXX.KY.N.M"]
[{"$f":"\"INN.\"&EIGNIR!$B$3&C2159","v":{"$error":"#N/A"}},{"$f":"Lönd!Z13","v":0},".M.SASAEAO.XX.XXX.XXX.XXXX.SV.XXX.XXX.DK.N.M"]
[{"$f":"\"INN.\"&EIGNIR!$B$3&C2160","v":{"$error":"#N/A"}},{"$f":"Lönd!Z14","v":0},".M.SASAEAO.XX.XXX.XXX.XXXX.SV.XXX.XXX.EE.N.M"]
[{"$f":"\"INN.\"&EIGNIR!$B$3&C2161","v":{"$error":"#N/A"}},{"$f":"Lönd!Z15","v":0},".M.SASAEAO.XX.XXX.XXX.XXXX.SV.XXX.XXX.FI.N.M"]
[{"$f":"\"INN.\"&EIGNIR!$B$3&C2162","v":{"$error":"#N/A"}},{"$f":"Lönd!Z16","v":0},".M.SASAEAO.XX.XXX.XXX.XXXX.SV.XXX.XXX.FR.N.M"]
[{"$f":"\"INN.\"&EIGNIR!$B$3&C2163","v":{"$error":"#N/A"}},{"$f":"Lönd!Z17","v":0},".M.SASAEAO.XX.XXX.XXX.XXXX.SV.XXX.XXX.FO.N.M"]
[{"$f":"\"INN.\"&EIGNIR!$B$3&C2164","v":{"$error":"#N/A"}},{"$f":"Lönd!Z18","v":0},".M.SASAEAO.XX.XXX.XXX.XXXX.SV.XXX.XXX.GR.N.M"]
[{"$f":"\"INN.\"&EIGNIR!$B$3&C2165","v":{"$error":"#N/A"}},{"$f":"Lönd!Z19","v":0},".M.SASAEAO.XX.XXX.XXX.XXXX.SV.XXX.XXX.GG.N.M"]
[{"$f":"\"INN.\"&EIGNIR!$B$3&C2166","v":{"$error":"#N/A"}},{"$f":"Lönd!Z20","v":0},".M.SASAEAO.XX.XXX.XXX.XXXX.SV.XXX.XXX.NL.N.M"]
[{"$f":"\"INN.\"&EIGNIR!$B$3&C2167","v":{"$error":"#N/A"}},{"$f":"Lönd!Z21","v":0},".M.SASAEAO.XX.XXX.XXX.XXXX.SV.XXX.XXX.HK.N.M"]
[{"$f":"\"INN.\"&EIGNIR!$B$3&C2168","v":{"$error":"#N/A"}},{"$f":"Lönd!Z22","v":0},".M.SASAEAO.XX.XXX.XXX.XXXX.SV.XXX.XXX.IN.N.M"]
[{"$f":"\"INN.\"&EIGNIR!$B$3&C2169","v":{"$error":"#N/A"}},{"$f":"Lönd!Z23","v":0},".M.SASAEAO.XX.XXX.XXX.XXXX.SV.XXX.XXX.IE.N.M"]
[{"$f":"\"INN.\"&EIGNIR!$B$3&C2170","v":{"$error":"#N/A"}},{"$f":"Lönd!Z24","v":0},".M.SASAEAO.XX.XXX.XXX.XXXX.SV.XXX.XXX.IT.N.M"]
[{"$f":"\"INN.\"&EIGNIR!$B$3&C2171","v":{"$error":"#N/A"}},{"$f":"Lönd!Z25","v":0},".M.SASAEAO.XX.XXX.XXX.XXXX.SV.XXX.XXX.JP.N.M"]
[{"$f":"\"INN.\"&EIGNIR!$B$3&C2172","v":{"$error":"#N/A"}},{"$f":"Lönd!Z26","v":0},".M.SASAEAO.XX.XXX.XXX.XXXX.SV.XXX.XXX.JE.N.M"]
[{"$f":"\"INN.\"&EIGNIR!$B$3&C2173","v":{"$error":"#N/A"}},{"$f":"Lönd!Z27","v":0},".M.SASAEAO.XX.XXX.XXX.XXXX.SV.XXX.XXX.CA.N.M"]
[{"$f":"\"INN.\"&EIGNIR!$B$3&C2174","v":{"$error":"#N/A"}},{"$f":"Lönd!Z28","v":0},".M.SASAEAO.XX.XXX.XXX.XXXX.SV.XXX.XXX.CN.N.M"]
[{"$f":"\"INN.\"&EIGNIR!$B$3&C2175","v":{"$error":"#N/A"}},{"$f":"Lönd!Z29","v":0},".M.SASAEAO.XX.XXX.XXX.XXXX.SV.XXX.XXX.HR.N.M"]
[{"$f":"\"INN.\"&EIGNIR!$B$3&C2176","v":{"$error":"#N/A"}},{"$f":"Lönd!Z30","v":0},".M.SASAEAO.XX.XXX.XXX.XXXX.SV.XXX.XXX.CY.N.M"]
[{"$f":"\"INN.\"&EIGNIR!$B$3&C2177","v":{"$error":"#N/A"}},{"$f":"Lönd!Z31","v":0},".M.SASAEAO.XX.XXX.XXX.XXXX.SV.XXX.XXX.LV.N.M"]
[{"$f":"\"INN.\"&EIGNIR!$B$3&C2178","v":{"$error":"#N/A"}},{"$f":"Lönd!Z32","v":0},".M.SASAEAO.XX.XXX.XXX.XXXX.SV.XXX.XXX.LT.N.M"]
[{"$f":"\"INN.\"&EIGNIR!$B$3&C2179","v":{"$error":"#N/A"}},{"$f":"Lönd!Z33","v":0},".M.SASAEAO.XX.XXX.XXX.XXXX.SV.XXX.XXX.LX.N.M"]
[{"$f":"\"INN.\"&EIGNIR!$B$3&C2180","v":{"$error":"#N/A"}},{"$f":"Lönd!Z34","v":0},".M.SASAEAO.XX.XXX.XXX.XXXX.SV.XXX.XXX.MT.N.M"]
[{"$f":"\"INN.\"&EIGNIR!$B$3&C2181","v":{"$error":"#N/A"}},{"$f":"Lönd!Z35","v":0},".M.SASAEAO.XX.XXX.XXX.XXXX.SV.XXX.XXX.NO.N.M"]
[{"$f":"\"INN.\"&EIGNIR!$B$3&C2182","v":{"$error":"#N/A"}},{"$f":"Lönd!Z36","v":0},".M.SASAEAO.XX.XXX.XXX.XXXX.SV.XXX.XXX.PT.N.M"]
[{"$f":"\"INN.\"&EIGNIR!$B$3&C2183","v":{"$error":"#N/A"}},{"$f":"Lönd!Z37","v":0},".M.SASAEAO.XX.XXX.XXX.XXXX.SV.XXX.XXX.PL.N.M"]
[{"$f":"\"INN.\"&EIGNIR!$B$3&C2184","v":{"$error":"#N/A"}},{"$f":"Lönd!Z38","v":0},".M.SASAEAO.XX.XXX.XXX.XXXX.SV.XXX.XXX.RO.N.M"]
[{"$f":"\"INN.\"&EIGNIR!$B$3&C2185","v":{"$error":"#N/A"}},{"$f":"Lönd!Z39","v":0},".M.SASAEAO.XX.XXX.XXX.XXXX.SV.XXX.XXX.RU.N.M"]
[{"$f":"\"INN.\"&EIGNIR!$B$3&C2186","v":{"$error":"#N/A"}},{"$f":"Lönd!Z40","v":0},".M.SASAEAO.XX.XXX.XXX.XXXX.SV.XXX.XXX.SK.N.M"]
[{"$f":"\"INN.\"&EIGNIR!$B$3&C2187","v":{"$error":"#N/A"}},{"$f":"Lönd!Z41","v":0},".M.SASAEAO.XX.XXX.XXX.XXXX.SV.XXX.XXX.SI.N.M"]
[{"$f":"\"INN.\"&EIGNIR!$B$3&C2188","v":{"$error":"#N/A"}},{"$f":"Lönd!Z42","v":0},".M.SASAEAO.XX.XXX.XXX.XXXX.SV.XXX.XXX.ES.N.M"]
[{"$f":"\"INN.\"&EIGNIR!$B$3&C2189","v":{"$error":"#N/A"}},{"$f":"Lönd!Z43","v":0},".M.SASAEAO.XX.XXX.XXX.XXXX.SV.XXX.XXX.CH.N.M"]
[{"$f":"\"INN.\"&EIGNIR!$B$3&C2190","v":{"$error":"#N/A"}},{"$f":"Lönd!Z44","v":0},".M.SASAEAO.XX.XXX.XXX.XXXX.SV.XXX.XXX.SE.N.M"]
[{"$f":"\"INN.\"&EIGNIR!$B$3&C2191","v":{"$error":"#N/A"}},{"$f":"Lönd!Z45","v":0},".M.SASAEAO.XX.XXX.XXX.XXXX.SV.XXX.XXX.CZ.N.M"]
[{"$f":"\"INN.\"&EIGNIR!$B$3&C2192","v":{"$error":"#N/A"}},{"$f":"Lönd!Z46","v":0},".M.SASAEAO.XX.XXX.XXX.XXXX.SV.XXX.XXX.HU.N.M"]
[{"$f":"\"INN.\"&EIGNIR!$B$3&C2193","v":{"$error":"#N/A"}},{"$f":"Lönd!Z47","v":0},".M.SASAEAO.XX.XXX.XXX.XXXX.SV.XXX.XXX.DE.N.M"]
[{"$f":"\"INN.\"&EIGNIR!$B$3&C2194","v":{"$error":"#N/A"}},{"$f":"Lönd!Z48","v":0},".M.SASAEAO.XX.XXX.XXX.XXXX.SV.XXX.XXX.XX.N.M"]
[{"$f":"\"INN.\"&EIGNIR!$B$3&C2195","v":{"$error":"#N/A"}},{"$f":"Lönd!Z49","v":0},".M.SASAEAO.XX.XXX.XXX.XXXX.SV.XXX.XXX.4F.N.M"]
[{"$f":"\"INN.\"&EIGNIR!$B$3&C2196","v":{"$error":"#N/A"}},{"$f":"Lönd!Z50","v":0},".M.SASAEAO.XX.XXX.XXX.XXXX.SV.XXX.XXX.4C.N.M"]
[{"$f":"\"INN.\"&EIGNIR!$B$3&C2197","v":{"$error":"#N/A"}},{"$f":"Lönd!Z51","v":0},".M.SASAEAO.XX.XXX.XXX.XXXX.SV.XXX.XXX.4J.N.M"]
[{"$f":"\"INN.\"&EIGNIR!$B$3&C2198","v":{"$error":"#N/A"}},{"$f":"Lönd!Z52","v":0},".M.SASAEAO.XX.XXX.XXX.XXXX.SV.XXX.XXX.4S.N.M"]
[{"$f":"\"INN.\"&EIGNIR!$B$3&C2199","v":{"$error":"#N/A"}},{"$f":"Lönd!Z53","v":0},".M.SASAEAO.XX.XXX.XXX.XXXX.SV.XXX.XXX.1C.N.M"]
[{"$f":"\"INN.\"&EIGNIR!$B$3&C2200","v":{"$error":"#N/A"}},{"$f":"Lönd!Z54","v":0},".M.SASAEAO.XX.XXX.XXX.XXXX.SV.XXX.XXX.5Z.N.M"]
[{"$f":"\"INN.\"&EIGNIR!$B$3&C2201","v":{"$error":"#N/A"}},{"$f":"Lönd!AB5","v":0},".M.EERL$$$.XX.XXX.XXX.XXXX.SV.XXX.XXX.IS.N.M","//Erlendar eignir"]
[{"$f":"\"INN.\"&EIGNIR!$B$3&C2202","v":{"$error":"#N/A"}},{"$f":"Lönd!AB6","v":0},".M.EERL$$$.XX.XXX.XXX.XXXX.SV.XXX.XXX.AT.N.M"]
[{"$f":"\"INN.\"&EIGNIR!$B$3&C2203","v":{"$error":"#N/A"}},{"$f":"Lönd!AB7","v":0},".M.EERL$$$.XX.XXX.XXX.XXXX.SV.XXX.XXX.US.N.M"]
[{"$f":"\"INN.\"&EIGNIR!$B$3&C2204","v":{"$error":"#N/A"}},{"$f":"Lönd!AB8","v":0},".M.EERL$$$.XX.XXX.XXX.XXXX.SV.XXX.XXX.BE.N.M"]
[{"$f":"\"INN.\"&EIGNIR!$B$3&C2205","v":{"$error":"#N/A"}},{"$f":"Lönd!AB9","v":0},".M.EERL$$$.XX.XXX.XXX.XXXX.SV.XXX.XXX.BR.N.M"]
[{"$f":"\"INN.\"&EIGNIR!$B$3&C2206","v":{"$error":"#N/A"}},{"$f":"Lönd!AB10","v":0},".M.EERL$$$.XX.XXX.XXX.XXXX.SV.XXX.XXX.GB.N.M"]
[{"$f":"\"INN.\"&EIGNIR!$B$3&C2207","v":{"$error":"#N/A"}},{"$f":"Lönd!AB11","v":0},".M.EERL$$$.XX.XXX.XXX.XXXX.SV.XXX.XXX.BG.N.M"]
[{"$f":"\"INN.\"&EIGNIR!$B$3&C2208","v":{"$error":"#N/A"}},{"$f":"Lönd!AB12","v":0},".M.EERL$$$.XX.XXX.XXX.XXXX.SV.XXX.XXX.KY.N.M"]
[{"$f":"\"INN.\"&EIGNIR!$B$3&C2209","v":{"$error":"#N/A"}},{"$f":"Lönd!AB13","v":0},".M.EERL$$$.XX.XXX.XXX.XXXX.SV.XXX.XXX.DK.N.M"]
[{"$f":"\"INN.\"&EIGNIR!$B$3&C2210","v":{"$error":"#N/A"}},{"$f":"Lönd!AB14","v":0},".M.EERL$$$.XX.XXX.XXX.XXXX.SV.XXX.XXX.EE.N.M"]
[{"$f":"\"INN.\"&EIGNIR!$B$3&C2211","v":{"$error":"#N/A"}},{"$f":"Lönd!AB15","v":0},".M.EERL$$$.XX.XXX.XXX.XXXX.SV.XXX.XXX.FI.N.M"]
[{"$f":"\"INN.\"&EIGNIR!$B$3&C2212","v":{"$error":"#N/A"}},{"$f":"Lönd!AB16","v":0},".M.EERL$$$.XX.XXX.XXX.XXXX.SV.XXX.XXX.FR.N.M"]
[{"$f":"\"INN.\"&EIGNIR!$B$3&C2213","v":{"$error":"#N/A"}},{"$f":"Lönd!AB17","v":0},".M.EERL$$$.XX.XXX.XXX.XXXX.SV.XXX.XXX.FO.N.M"]
[{"$f":"\"INN.\"&EIGNIR!$B$3&C2214","v":{"$error":"#N/A"}},{"$f":"Lönd!AB18","v":0},".M.EERL$$$.XX.XXX.XXX.XXXX.SV.XXX.XXX.GR.N.M"]
[{"$f":"\"INN.\"&EIGNIR!$B$3&C2215","v":{"$error":"#N/A"}},{"$f":"Lönd!AB19","v":0},".M.EERL$$$.XX.XXX.XXX.XXXX.SV.XXX.XXX.GG.N.M"]
[{"$f":"\"INN.\"&EIGNIR!$B$3&C2216","v":{"$error":"#N/A"}},{"$f":"Lönd!AB20","v":0},".M.EERL$$$.XX.XXX.XXX.XXXX.SV.XXX.XXX.NL.N.M"]
[{"$f":"\"INN.\"&EIGNIR!$B$3&C2217","v":{"$error":"#N/A"}},{"$f":"Lönd!AB21","v":0},".M.EERL$$$.XX.XXX.XXX.XXXX.SV.XXX.XXX.HK.N.M"]
[{"$f":"\"INN.\"&EIGNIR!$B$3&C2218","v":{"$error":"#N/A"}},{"$f":"Lönd!AB22","v":0},".M.EERL$$$.XX.XXX.XXX.XXXX.SV.XXX.XXX.IN.N.M"]
[{"$f":"\"INN.\"&EIGNIR!$B$3&C2219","v":{"$error":"#N/A"}},{"$f":"Lönd!AB23","v":0},".M.EERL$$$.XX.XXX.XXX.XXXX.SV.XXX.XXX.IE.N.M"]
[{"$f":"\"INN.\"&EIGNIR!$B$3&C2220","v":{"$error":"#N/A"}},{"$f":"Lönd!AB24","v":0},".M.EERL$$$.XX.XXX.XXX.XXXX.SV.XXX.XXX.IT.N.M"]
[{"$f":"\"INN.\"&EIGNIR!$B$3&C2221","v":{"$error":"#N/A"}},{"$f":"Lönd!AB25","v":0},".M.EERL$$$.XX.XXX.XXX.XXXX.SV.XXX.XXX.JP.N.M"]
[{"$f":"\"INN.\"&EIGNIR!$B$3&C2222","v":{"$error":"#N/A"}},{"$f":"Lönd!AB26","v":0},".M.EERL$$$.XX.XXX.XXX.XXXX.SV.XXX.XXX.JE.N.M"]
[{"$f":"\"INN.\"&EIGNIR!$B$3&C2223","v":{"$error":"#N/A"}},{"$f":"Lönd!AB27","v":0},".M.EERL$$$.XX.XXX.XXX.XXXX.SV.XXX.XXX.CA.N.M"]
[{"$f":"\"INN.\"&EIGNIR!$B$3&C2224","v":{"$error":"#N/A"}},{"$f":"Lönd!AB28","v":0},".M.EERL$$$.XX.XXX.XXX.XXXX.SV.XXX.XXX.CN.N.M"]
[{"$f":"\"INN.\"&EIGNIR!$B$3&C2225","v":{"$error":"#N/A"}},{"$f":"Lönd!AB29","v":0},".M.EERL$$$.XX.XXX.XXX.XXXX.SV.XXX.XXX.HR.N.M"]
[{"$f":"\"INN.\"&EIGNIR!$B$3&C2226","v":{"$error":"#N/A"}},{"$f":"Lönd!AB30","v":0},".M.EERL$$$.XX.XXX.XXX.XXXX.SV.XXX.XXX.CY.N.M"]
[{"$f":"\"INN.\"&EIGNIR!$B$3&C2227","v":{"$error":"#N/A"}},{"$f":"Lönd!AB31","v":0},".M.EERL$$$.XX.XXX.XXX.XXXX.SV.XXX.XXX.LV.N.M"]
[{"$f":"\"INN.\"&EIGNIR!$B$3&C2228","v":{"$error":"#N/A"}},{"$f":"Lönd!AB32","v":0},".M.EERL$$$.XX.XXX.XXX.XXXX.SV.XXX.XXX.LT.N.M"]
[{"$f":"\"INN.\"&EIGNIR!$B$3&C2229","v":{"$error":"#N/A"}},{"$f":"Lönd!AB33","v":0},".M.EERL$$$.XX.XXX.XXX.XXXX.SV.XXX.XXX.LX.N.M"]
[{"$f":"\"INN.\"&EIGNIR!$B$3&C2230","v":{"$error":"#N/A"}},{"$f":"Lönd!AB34","v":0},".M.EERL$$$.XX.XXX.XXX.XXXX.SV.XXX.XXX.MT.N.M"]
[{"$f":"\"INN.\"&EIGNIR!$B$3&C2231","v":{"$error":"#N/A"}},{"$f":"Lönd!AB35","v":0},".M.EERL$$$.XX.XXX.XXX.XXXX.SV.XXX.XXX.NO.N.M"]
[{"$f":"\"INN.\"&EIGNIR!$B$3&C2232","v":{"$error":"#N/A"}},{"$f":"Lönd!AB36","v":0},".M.EERL$$$.XX.XXX.XXX.XXXX.SV.XXX.XXX.PT.N.M"]
[{"$f":"\"INN.\"&EIGNIR!$B$3&C2233","v":{"$error":"#N/A"}},{"$f":"Lönd!AB37","v":0},".M.EERL$$$.XX.XXX.XXX.XXXX.SV.XXX.XXX.PL.N.M"]
[{"$f":"\"INN.\"&EIGNIR!$B$3&C2234","v":{"$error":"#N/A"}},{"$f":"Lönd!AB38","v":0},".M.EERL$$$.XX.XXX.XXX.XXXX.SV.XXX.XXX.RO.N.M"]
[{"$f":"\"INN.\"&EIGNIR!$B$3&C2235","v":{"$error":"#N/A"}},{"$f":"Lönd!AB39","v":0},".M.EERL$$$.XX.XXX.XXX.XXXX.SV.XXX.XXX.RU.N.M"]
[{"$f":"\"INN.\"&EIGNIR!$B$3&C2236","v":{"$error":"#N/A"}},{"$f":"Lönd!AB40","v":0},".M.EERL$$$.XX.XXX.XXX.XXXX.SV.XXX.XXX.SK.N.M"]
[{"$f":"\"INN.\"&EIGNIR!$B$3&C2237","v":{"$error":"#N/A"}},{"$f":"Lönd!AB41","v":0},".M.EERL$$$.XX.XXX.XXX.XXXX.SV.XXX.XXX.SI.N.M"]
[{"$f":"\"INN.\"&EIGNIR!$B$3&C2238","v":{"$error":"#N/A"}},{"$f":"Lönd!AB42","v":0},".M.EERL$$$.XX.XXX.XXX.XXXX.SV.XXX.XXX.ES.N.M"]
[{"$f":"\"INN.\"&EIGNIR!$B$3&C2239","v":{"$error":"#N/A"}},{"$f":"Lönd!AB43","v":0},".M.EERL$$$.XX.XXX.XXX.XXXX.SV.XXX.XXX.CH.N.M"]
[{"$f":"\"INN.\"&EIGNIR!$B$3&C2240","v":{"$error":"#N/A"}},{"$f":"Lönd!AB44","v":0},".M.EERL$$$.XX.XXX.XXX.XXXX.SV.XXX.XXX.SE.N.M"]
[{"$f":"\"INN.\"&EIGNIR!$B$3&C2241","v":{"$error":"#N/A"}},{"$f":"Lönd!AB45","v":0},".M.EERL$$$.XX.XXX.XXX.XXXX.SV.XXX.XXX.CZ.N.M"]
[{"$f":"\"INN.\"&EIGNIR!$B$3&C2242","v":{"$error":"#N/A"}},{"$f":"Lönd!AB46","v":0},".M.EERL$$$.XX.XXX.XXX.XXXX.SV.XXX.XXX.HU.N.M"]
[{"$f":"\"INN.\"&EIGNIR!$B$3&C2243","v":{"$error":"#N/A"}},{"$f":"Lönd!AB47","v":0},".M.EERL$$$.XX.XXX.XXX.XXXX.SV.XXX.XXX.DE.N.M"]
[{"$f":"\"INN.\"&EIGNIR!$B$3&C2244","v":{"$error":"#N/A"}},{"$f":"Lönd!AB48","v":0},".M.EERL$$$.XX.XXX.XXX.XXXX.SV.XXX.XXX.XX.N.M"]
[{"$f":"\"INN.\"&EIGNIR!$B$3&C2245","v":{"$error":"#N/A"}},{"$f":"Lönd!AB49","v":0},".M.EERL$$$.XX.XXX.XXX.XXXX.SV.XXX.XXX.4F.N.M"]
[{"$f":"\"INN.\"&EIGNIR!$B$3&C2246","v":{"$error":"#N/A"}},{"$f":"Lönd!AB50","v":0},".M.EERL$$$.XX.XXX.XXX.XXXX.SV.XXX.XXX.4C.N.M"]
[{"$f":"\"INN.\"&EIGNIR!$B$3&C2247","v":{"$error":"#N/A"}},{"$f":"Lönd!AB51","v":0},".M.EERL$$$.XX.XXX.XXX.XXXX.SV.XXX.XXX.4J.N.M"]
[{"$f":"\"INN.\"&EIGNIR!$B$3&C2248","v":{"$error":"#N/A"}},{"$f":"Lönd!AB52","v":0},".M.EERL$$$.XX.XXX.XXX.XXXX.SV.XXX.XXX.4S.N.M"]
[{"$f":"\"INN.\"&EIGNIR!$B$3&C2249","v":{"$error":"#N/A"}},{"$f":"Lönd!AB53","v":0},".M.EERL$$$.XX.XXX.XXX.XXXX.SV.XXX.XXX.1C.N.M"]
[{"$f":"\"INN.\"&EIGNIR!$B$3&C2250","v":{"$error":"#N/A"}},{"$f":"Lönd!AB54","v":0},".M.EERL$$$.XX.XXX.XXX.XXXX.SV.XXX.XXX.5Z.N.M"]
[{"$f":"\"INN.\"&EIGNIR!$B$3&C2251","v":{"$error":"#N/A"}},{"$f":"Lönd!AC5","v":0},".M.SERL$$$.XX.XXX.XXX.XXXX.SV.XXX.XXX.IS.N.M","//Erlendar skuldir"]
[{"$f":"\"INN.\"&EIGNIR!$B$3&C2252","v":{"$error":"#N/A"}},{"$f":"Lönd!AC6","v":0},".M.SERL$$$.XX.XXX.XXX.XXXX.SV.XXX.XXX.AT.N.M"]
[{"$f":"\"INN.\"&EIGNIR!$B$3&C2253","v":{"$error":"#N/A"}},{"$f":"Lönd!AC7","v":0},".M.SERL$$$.XX.XXX.XXX.XXXX.SV.XXX.XXX.US.N.M"]
[{"$f":"\"INN.\"&EIGNIR!$B$3&C2254","v":{"$error":"#N/A"}},{"$f":"Lönd!AC8","v":0},".M.SERL$$$.XX.XXX.XXX.XXXX.SV.XXX.XXX.BE.N.M"]
[{"$f":"\"INN.\"&EIGNIR!$B$3&C2255","v":{"$error":"#N/A"}},{"$f":"Lönd!AC9","v":0},".M.SERL$$$.XX.XXX.XXX.XXXX.SV.XXX.XXX.BR.N.M"]
[{"$f":"\"INN.\"&EIGNIR!$B$3&C2256","v":{"$error":"#N/A"}},{"$f":"Lönd!AC10","v":0},".M.SERL$$$.XX.XXX.XXX.XXXX.SV.XXX.XXX.GB.N.M"]
[{"$f":"\"INN.\"&EIGNIR!$B$3&C2257","v":{"$error":"#N/A"}},{"$f":"Lönd!AC11","v":0},".M.SERL$$$.XX.XXX.XXX.XXXX.SV.XXX.XXX.BG.N.M"]
[{"$f":"\"INN.\"&EIGNIR!$B$3&C2258","v":{"$error":"#N/A"}},{"$f":"Lönd!AC12","v":0},".M.SERL$$$.XX.XXX.XXX.XXXX.SV.XXX.XXX.KY.N.M"]
[{"$f":"\"INN.\"&EIGNIR!$B$3&C2259","v":{"$error":"#N/A"}},{"$f":"Lönd!AC13","v":0},".M.SERL$$$.XX.XXX.XXX.XXXX.SV.XXX.XXX.DK.N.M"]
[{"$f":"\"INN.\"&EIGNIR!$B$3&C2260","v":{"$error":"#N/A"}},{"$f":"Lönd!AC14","v":0},".M.SERL$$$.XX.XXX.XXX.XXXX.SV.XXX.XXX.EE.N.M"]
[{"$f":"\"INN.\"&EIGNIR!$B$3&C2261","v":{"$error":"#N/A"}},{"$f":"Lönd!AC15","v":0},".M.SERL$$$.XX.XXX.XXX.XXXX.SV.XXX.XXX.FI.N.M"]
[{"$f":"\"INN.\"&EIGNIR!$B$3&C2262","v":{"$error":"#N/A"}},{"$f":"Lönd!AC16","v":0},".M.SERL$$$.XX.XXX.XXX.XXXX.SV.XXX.XXX.FR.N.M"]
[{"$f":"\"INN.\"&EIGNIR!$B$3&C2263","v":{"$error":"#N/A"}},{"$f":"Lönd!AC17","v":0},".M.SERL$$$.XX.XXX.XXX.XXXX.SV.XXX.XXX.FO.N.M"]
[{"$f":"\"INN.\"&EIGNIR!$B$3&C2264","v":{"$error":"#N/A"}},{"$f":"Lönd!AC18","v":0},".M.SERL$$$.XX.XXX.XXX.XXXX.SV.XXX.XXX.GR.N.M"]
[{"$f":"\"INN.\"&EIGNIR!$B$3&C2265","v":{"$error":"#N/A"}},{"$f":"Lönd!AC19","v":0},".M.SERL$$$.XX.XXX.XXX.XXXX.SV.XXX.XXX.GG.N.M"]
[{"$f":"\"INN.\"&EIGNIR!$B$3&C2266","v":{"$error":"#N/A"}},{"$f":"Lönd!AC20","v":0},".M.SERL$$$.XX.XXX.XXX.XXXX.SV.XXX.XXX.NL.N.M"]
[{"$f":"\"INN.\"&EIGNIR!$B$3&C2267","v":{"$error":"#N/A"}},{"$f":"Lönd!AC21","v":0},".M.SERL$$$.XX.XXX.XXX.XXXX.SV.XXX.XXX.HK.N.M"]
[{"$f":"\"INN.\"&EIGNIR!$B$3&C2268","v":{"$error":"#N/A"}},{"$f":"Lönd!AC22","v":0},".M.SERL$$$.XX.XXX.XXX.XXXX.SV.XXX.XXX.IN.N.M"]
[{"$f":"\"INN.\"&EIGNIR!$B$3&C2269","v":{"$error":"#N/A"}},{"$f":"Lönd!AC23","v":0},".M.SERL$$$.XX.XXX.XXX.XXXX.SV.XXX.XXX.IE.N.M"]
[{"$f":"\"INN.\"&EIGNIR!$B$3&C2270","v":{"$error":"#N/A"}},{"$f":"Lönd!AC24","v":0},".M.SERL$$$.XX.XXX.XXX.XXXX.SV.XXX.XXX.IT.N.M"]
[{"$f":"\"INN.\"&EIGNIR!$B$3&C2271","v":{"$error":"#N/A"}},{"$f":"Lönd!AC25","v":0},".M.SERL$$$.XX.XXX.XXX.XXXX.SV.XXX.XXX.JP.N.M"]
[{"$f":"\"INN.\"&EIGNIR!$B$3&C2272","v":{"$error":"#N/A"}},{"$f":"Lönd!AC26","v":0},".M.SERL$$$.XX.XXX.XXX.XXXX.SV.XXX.XXX.JE.N.M"]
[{"$f":"\"INN.\"&EIGNIR!$B$3&C2273","v":{"$error":"#N/A"}},{"$f":"Lönd!AC27","v":0},".M.SERL$$$.XX.XXX.XXX.XXXX.SV.XXX.XXX.CA.N.M"]
[{"$f":"\"INN.\"&EIGNIR!$B$3&C2274","v":{"$error":"#N/A"}},{"$f":"Lönd!AC28","v":0},".M.SERL$$$.XX.XXX.XXX.XXXX.SV.XXX.XXX.CN.N.M"]
[{"$f":"\"INN.\"&EIGNIR!$B$3&C2275","v":{"$error":"#N/A"}},{"$f":"Lönd!AC29","v":0},".M.SERL$$$.XX.XXX.XXX.XXXX.SV.XXX.XXX.HR.N.M"]
[{"$f":"\"INN.\"&EIGNIR!$B$3&C2276","v":{"$error":"#N/A"}},{"$f":"Lönd!AC30","v":0},".M.SERL$$$.XX.XXX.XXX.XXXX.SV.XXX.XXX.CY.N.M"]
[{"$f":"\"INN.\"&EIGNIR!$B$3&C2277","v":{"$error":"#N/A"}},{"$f":"Lönd!AC31","v":0},".M.SERL$$$.XX.XXX.XXX.XXXX.SV.XXX.XXX.LV.N.M"]
[{"$f":"\"INN.\"&EIGNIR!$B$3&C2278","v":{"$error":"#N/A"}},{"$f":"Lönd!AC32","v":0},".M.SERL$$$.XX.XXX.XXX.XXXX.SV.XXX.XXX.LT.N.M"]
[{"$f":"\"INN.\"&EIGNIR!$B$3&C2279","v":{"$error":"#N/A"}},{"$f":"Lönd!AC33","v":0},".M.SERL$$$.XX.XXX.XXX.XXXX.SV.XXX.XXX.LX.N.M"]
[{"$f":"\"INN.\"&EIGNIR!$B$3&C2280","v":{"$error":"#N/A"}},{"$f":"Lönd!AC34","v":0},".M.SERL$$$.XX.XXX.XXX.XXXX.SV.XXX.XXX.MT.N.M"]
[{"$f":"\"INN.\"&EIGNIR!$B$3&C2281","v":{"$error":"#N/A"}},{"$f":"Lönd!AC35","v":0},".M.SERL$$$.XX.XXX.XXX.XXXX.SV.XXX.XXX.NO.N.M"]
[{"$f":"\"INN.\"&EIGNIR!$B$3&C2282","v":{"$error":"#N/A"}},{"$f":"Lönd!AC36","v":0},".M.SERL$$$.XX.XXX.XXX.XXXX.SV.XXX.XXX.PT.N.M"]
[{"$f":"\"INN.\"&EIGNIR!$B$3&C2283","v":{"$error":"#N/A"}},{"$f":"Lönd!AC37","v":0},".M.SERL$$$.XX.XXX.XXX.XXXX.SV.XXX.XXX.PL.N.M"]
[{"$f":"\"INN.\"&EIGNIR!$B$3&C2284","v":{"$error":"#N/A"}},{"$f":"Lönd!AC38","v":0},".M.SERL$$$.XX.XXX.XXX.XXXX.SV.XXX.XXX.RO.N.M"]
[{"$f":"\"INN.\"&EIGNIR!$B$3&C2285","v":{"$error":"#N/A"}},{"$f":"Lönd!AC39","v":0},".M.SERL$$$.XX.XXX.XXX.XXXX.SV.XXX.XXX.RU.N.M"]
[{"$f":"\"INN.\"&EIGNIR!$B$3&C2286","v":{"$error":"#N/A"}},{"$f":"Lönd!AC40","v":0},".M.SERL$$$.XX.XXX.XXX.XXXX.SV.XXX.XXX.SK.N.M"]
[{"$f":"\"INN.\"&EIGNIR!$B$3&C2287","v":{"$error":"#N/A"}},{"$f":"Lönd!AC41","v":0},".M.SERL$$$.XX.XXX.XXX.XXXX.SV.XXX.XXX.SI.N.M"]
[{"$f":"\"INN.\"&EIGNIR!$B$3&C2288","v":{"$error":"#N/A"}},{"$f":"Lönd!AC42","v":0},".M.SERL$$$.XX.XXX.XXX.XXXX.SV.XXX.XXX.ES.N.M"]
[{"$f":"\"INN.\"&EIGNIR!$B$3&C2289","v":{"$error":"#N/A"}},{"$f":"Lönd!AC43","v":0},".M.SERL$$$.XX.XXX.XXX.XXXX.SV.XXX.XXX.CH.N.M"]
[{"$f":"\"INN.\"&EIGNIR!$B$3&C2290","v":{"$error":"#N/A"}},{"$f":"Lönd!AC44","v":0},".M.SERL$$$.XX.XXX.XXX.XXXX.SV.XXX.XXX.SE.N.M"]
[{"$f":"\"INN.\"&EIGNIR!$B$3&C2291","v":{"$error":"#N/A"}},{"$f":"Lönd!AC45","v":0},".M.SERL$$$.XX.XXX.XXX.XXXX.SV.XXX.XXX.CZ.N.M"]
[{"$f":"\"INN.\"&EIGNIR!$B$3&C2292","v":{"$error":"#N/A"}},{"$f":"Lönd!AC46","v":0},".M.SERL$$$.XX.XXX.XXX.XXXX.SV.XXX.XXX.HU.N.M"]
[{"$f":"\"INN.\"&EIGNIR!$B$3&C2293","v":{"$error":"#N/A"}},{"$f":"Lönd!AC47","v":0},".M.SERL$$$.XX.XXX.XXX.XXXX.SV.XXX.XXX.DE.N.M"]
[{"$f":"\"INN.\"&EIGNIR!$B$3&C2294","v":{"$error":"#N/A"}},{"$f":"Lönd!AC48","v":0},".M.SERL$$$.XX.XXX.XXX.XXXX.SV.XXX.XXX.XX.N.M"]
[{"$f":"\"INN.\"&EIGNIR!$B$3&C2295","v":{"$error":"#N/A"}},{"$f":"Lönd!AC49","v":0},".M.SERL$$$.XX.XXX.XXX.XXXX.SV.XXX.XXX.4F.N.M"]
[{"$f":"\"INN.\"&EIGNIR!$B$3&C2296","v":{"$error":"#N/A"}},{"$f":"Lönd!AC50","v":0},".M.SERL$$$.XX.XXX.XXX.XXXX.SV.XXX.XXX.4C.N.M"]
[{"$f":"\"INN.\"&EIGNIR!$B$3&C2297","v":{"$error":"#N/A"}},{"$f":"Lönd!AC51","v":0},".M.SERL$$$.XX.XXX.XXX.XXXX.SV.XXX.XXX.4J.N.M"]
[{"$f":"\"INN.\"&EIGNIR!$B$3&C2298","v":{"$error":"#N/A"}},{"$f":"Lönd!AC52","v":0},".M.SERL$$$.XX.XXX.XXX.XXXX.SV.XXX.XXX.4S.N.M"]
[{"$f":"\"INN.\"&EIGNIR!$B$3&C2299","v":{"$error":"#N/A"}},{"$f":"Lönd!AC53","v":0},".M.SERL$$$.XX.XXX.XXX.XXXX.SV.XXX.XXX.1C.N.M"]
[{"$f":"\"INN.\"&EIGNIR!$B$3&C2300","v":{"$error":"#N/A"}},{"$f":"Lönd!AC54","v":0},".M.SERL$$$.XX.XXX.XXX.XXXX.SV.XXX.XXX.5Z.N.M"]
[{"$f":"\"INN.\"&EIGNIR!$B$3&C2301","v":{"$error":"#N/A"}},{"$f":"'Sundurliðun Hlutabréf'!F5","v":0},".M.EVBHB$$.XX.$$$.$$$.XXXX.SX.XXX.XXX.IS.N.M","//Sundurliðun hlutabréf"]
[{"$f":"\"INN.\"&EIGNIR!$B$3&C2302","v":{"$error":"#N/A"}},{"$f":"'Sundurliðun Hlutabréf'!F6","v":0},".M.EVBHBHB.XX.$$$.$$$.XXXX.SX.XXX.XXX.IS.N.M","//Innlend hlutabréf"]
[{"$f":"\"INN.\"&EIGNIR!$B$3&C2303","v":{"$error":"#N/A"}},{"$f":"'Sundurliðun Hlutabréf'!F7","v":0},".M.EVBHBHB.XX.ATV.$$$.XXXX.SX.XXX.XXX.IS.N.M"]
[{"$f":"\"INN.\"&EIGNIR!$B$3&C2304","v":{"$error":"#N/A"}},{"$f":"'Sundurliðun Hlutabréf'!F8","v":0},".M.EVBHBHB.XX.FJA.$$$.XXXX.SX.XXX.XXX.IS.N.M"]
[{"$f":"\"INN.\"&EIGNIR!$B$3&C2305","v":{"$error":"#N/A"}},{"$f":"'Sundurliðun Hlutabréf'!F9","v":0},".M.EVBHBHB.XX.INN.$$$.XXXX.SX.XXX.XXX.IS.N.M"]
[{"$f":"\"INN.\"&EIGNIR!$B$3&C2306","v":{"$error":"#N/A"}},{"$f":"'Sundurliðun Hlutabréf'!F10","v":0},".M.EVBHBHB.XX.SLI.$$$.XXXX.SX.XXX.XXX.IS.N.M"]
[{"$f":"\"INN.\"&EIGNIR!$B$3&C2307","v":{"$error":"#N/A"}},{"$f":"'Sundurliðun Hlutabréf'!F11","v":0},".M.EVBHBHB.XX.PEN.$$$.XXXX.SX.XXX.XXX.IS.N.M"]
[{"$f":"\"INN.\"&EIGNIR!$B$3&C2308","v":{"$error":"#N/A"}},{"$f":"'Sundurliðun Hlutabréf'!F12","v":0},".M.EVBHBHB.XX.SJO.$$$.XXXX.SX.XXX.XXX.IS.N.M"]
[{"$f":"\"INN.\"&EIGNIR!$B$3&C2309","v":{"$error":"#N/A"}},{"$f":"'Sundurliðun Hlutabréf'!F13","v":0},".M.EVBHBHB.XX.YFT.$$$.XXXX.SX.XXX.XXX.IS.N.M"]
[{"$f":"\"INN.\"&EIGNIR!$B$3&C2310","v":{"$error":"#N/A"}},{"$f":"'Sundurliðun Hlutabréf'!F14","v":0},".M.EVBHBHB.XX.SLY.$$$.XXXX.SX.XXX.XXX.IS.N.M"]
[{"$f":"\"INN.\"&EIGNIR!$B$3&C2311","v":{"$error":"#N/A"}},{"$f":"'Sundurliðun Hlutabréf'!F15","v":0},".M.EVBHBHB.XX.FHL.$$$.XXXX.SX.XXX.XXX.IS.N.M"]
[{"$f":"\"INN.\"&EIGNIR!$B$3&C2312","v":{"$error":"#N/A"}},{"$f":"'Sundurliðun Hlutabréf'!F16","v":0},".M.EVBHBHB.XX.INF.$$$.XXXX.SX.XXX.XXX.IS.N.M"]
[{"$f":"\"INN.\"&EIGNIR!$B$3&C2313","v":{"$error":"#N/A"}},{"$f":"'Sundurliðun Hlutabréf'!F17","v":0},".M.EVBHBHB.XX.TRY.$$$.XXXX.SX.XXX.XXX.IS.N.M"]
[{"$f":"\"INN.\"&EIGNIR!$B$3&C2314","v":{"$error":"#N/A"}},{"$f":"'Sundurliðun Hlutabréf'!F18","v":0},".M.EVBHBHB.XX.LIF.$$$.XXXX.SX.XXX.XXX.IS.N.M"]
[{"$f":"\"INN.\"&EIGNIR!$B$3&C2315","v":{"$error":"#N/A"}},{"$f":"'Sundurliðun Hlutabréf'!F19","v":0},".M.EVBHBHB.XX.OPI.$$$.XXXX.SX.XXX.XXX.IS.N.M"]
[{"$f":"\"INN.\"&EIGNIR!$B$3&C2316","v":{"$error":"#N/A"}},{"$f":"'Sundurliðun Hlutabréf'!F23","v":0},".M.EVBHBHB.XX.NPH.$$$.XXXX.SX.XXX.XXX.IS.N.M"]
[{"$f":"\"INN.\"&EIGNIR!$B$3&C2317","v":{"$error":"#N/A"}},{"$f":"'Sundurliðun Hlutabréf'!F24","v":0},".M.EVBHBHB.XX.ERL.$$$.XXXX.SX.XXX.XXX.IS.N.M","//Erlend hlutabréf"]
[{"$f":"\"INN.\"&EIGNIR!$B$3&C2318","v":{"$error":"#N/A"}},{"$f":"'Sundurliðun Hlutabréf'!F26","v":0},".M.EVBHBHB.XX.ERI.$$$.XXXX.SX.XXX.XXX.IS.N.M"]
[{"$f":"\"INN.\"&EIGNIR!$B$3&C2319","v":{"$error":"#N/A"}},{"$f":"'Sundurliðun Hlutabréf'!F27","v":0},".M.EVBHBHB.XX.ERP.$$$.XXXX.SX.XXX.XXX.IS.N.M"]
[{"$f":"\"INN.\"&EIGNIR!$B$3&C2320","v":{"$error":"#N/A"}},{"$f":"'Sundurliðun Hlutabréf'!F28","v":0},".M.EVBHBHB.XX.ERV.$$$.XXXX.SX.XXX.XXX.IS.N.M"]
[{"$f":"\"INN.\"&EIGNIR!$B$3&C2321","v":{"$error":"#N/A"}},{"$f":"'Sundurliðun Hlutabréf'!F29","v":0},".M.EVBHBHB.XX.ERF.$$$.XXXX.SX.XXX.XXX.IS.N.M"]
[{"$f":"\"INN.\"&EIGNIR!$B$3&C2322","v":{"$error":"#N/A"}},{"$f":"'Sundurliðun Hlutabréf'!F31","v":0},".M.EVBHBHB.XX.ERA.$$$.XXXX.SX.XXX.XXX.IS.N.M"]
[{"$f":"\"INN.\"&EIGNIR!$B$3&C2323","v":{"$error":"#N/A"}},{"$f":"'Sundurliðun Hlutabréf'!F32","v":0},".M.EHHDS$$.XX.$$$.$$$.XXXX.SX.XXX.XXX.IS.N.M","//Hlutir í hlutdeildarfélögum, dótturfyrirtækjum og samrekstrarfélögum"]
[{"$f":"\"INN.\"&EIGNIR!$B$3&C2324","v":{"$error":"#N/A"}},{"$f":"'Sundurliðun Hlutabréf'!F34","v":0},".M.EHHDSHF.XX.ATV.$$$.HLFT.SX.XXX.XXX.IS.N.M"]
[{"$f":"\"INN.\"&EIGNIR!$B$3&C2325","v":{"$error":"#N/A"}},{"$f":"'Sundurliðun Hlutabréf'!F35","v":0},".M.EHHDSHF.XX.FJA.$$$.HLFT.SX.XXX.XXX.IS.N.M"]
[{"$f":"\"INN.\"&EIGNIR!$B$3&C2326","v":{"$error":"#N/A"}},{"$f":"'Sundurliðun Hlutabréf'!F36","v":0},".M.EHHDSHF.XX.INN.$$$.HLFT.SX.XXX.XXX.IS.N.M"]
[{"$f":"\"INN.\"&EIGNIR!$B$3&C2327","v":{"$error":"#N/A"}},{"$f":"'Sundurliðun Hlutabréf'!F37","v":0},".M.EHHDSHF.XX.SLI.$$$.HLFT.SX.XXX.XXX.IS.N.M"]
[{"$f":"\"INN.\"&EIGNIR!$B$3&C2328","v":{"$error":"#N/A"}},{"$f":"'Sundurliðun Hlutabréf'!F38","v":0},".M.EHHDSHF.XX.PEN.$$$.HLFT.SX.XXX.XXX.IS.N.M"]
[{"$f":"\"INN.\"&EIGNIR!$B$3&C2329","v":{"$error":"#N/A"}},{"$f":"'Sundurliðun Hlutabréf'!F39","v":0},".M.EHHDSHF.XX.SJO.$$$.HLFT.SX.XXX.XXX.IS.N.M"]
[{"$f":"\"INN.\"&EIGNIR!$B$3&C2330","v":{"$error":"#N/A"}},{"$f":"'Sundurliðun Hlutabréf'!F40","v":0},".M.EHHDSHF.XX.YFT.$$$.HLFT.SX.XXX.XXX.IS.N.M"]
[{"$f":"\"INN.\"&EIGNIR!$B$3&C2331","v":{"$error":"#N/A"}},{"$f":"'Sundurliðun Hlutabréf'!F41","v":0},".M.EHHDSHF.XX.SLY.$$$.HLFT.SX.XXX.XXX.IS.N.M"]
[{"$f":"\"INN.\"&EIGNIR!$B$3&C2332","v":{"$error":"#N/A"}},{"$f":"'Sundurliðun Hlutabréf'!F42","v":0},".M.EHHDSHF.XX.FLH.$$$.HLFT.SX.XXX.XXX.IS.N.M"]
[{"$f":"\"INN.\"&EIGNIR!$B$3&C2333","v":{"$error":"#N/A"}},{"$f":"'Sundurliðun Hlutabréf'!F43","v":0},".M.EHHDSHF.XX.INF.$$$.HLFT.SX.XXX.XXX.IS.N.M"]
[{"$f":"\"INN.\"&EIGNIR!$B$3&C2334","v":{"$error":"#N/A"}},{"$f":"'Sundurliðun Hlutabréf'!F44","v":0},".M.EHHDSHF.XX.TRY.$$$.HLFT.SX.XXX.XXX.IS.N.M"]
[{"$f":"\"INN.\"&EIGNIR!$B$3&C2335","v":{"$error":"#N/A"}},{"$f":"'Sundurliðun Hlutabréf'!F45","v":0},".M.EHHDSHF.XX.LIF.$$$.HLFT.SX.XXX.XXX.IS.N.M"]
[{"$f":"\"INN.\"&EIGNIR!$B$3&C2336","v":{"$error":"#N/A"}},{"$f":"'Sundurliðun Hlutabréf'!F46","v":0},".M.EHHDSHF.XX.OPI.$$$.HLFT.SX.XXX.XXX.IS.N.M"]
[{"$f":"\"INN.\"&EIGNIR!$B$3&C2337","v":{"$error":"#N/A"}},{"$f":"'Sundurliðun Hlutabréf'!F50","v":0},".M.EHHDSHF.XX.NPH.$$$.HLFT.SX.XXX.XXX.IS.N.M"]
[{"$f":"\"INN.\"&EIGNIR!$B$3&C2338","v":{"$error":"#N/A"}},{"$f":"'Sundurliðun Hlutabréf'!F53","v":0},".M.EHHDSHF.XX.ERI.$$$.HLFT.SX.XXX.XXX.IS.N.M"]
[{"$f":"\"INN.\"&EIGNIR!$B$3&C2339","v":{"$error":"#N/A"}},{"$f":"'Sundurliðun Hlutabréf'!F56","v":0},".M.EHHDSHF.XX.ERF.$$$.HLFT.SX.XXX.XXX.IS.N.M"]
[{"$f":"\"INN.\"&EIGNIR!$B$3&C2340","v":{"$error":"#N/A"}},{"$f":"'Sundurliðun Hlutabréf'!F58","v":0},".M.EHHDSHF.XX.ERA.$$$.HLFT.SX.XXX.XXX.IS.N.M"]
[{"$f":"\"INN.\"&EIGNIR!$B$3&C2341","v":{"$error":"#N/A"}},{"$f":"'Sundurliðun Hlutabréf'!F60","v":0},".M.EHHDSTF.XX.ATV.$$$.TEFT.SX.XXX.XXX.IS.N.M","Tengd fyrirtæki. Atvinnufyrirtæki"]
[{"$f":"\"INN.\"&EIGNIR!$B$3&C2342","v":{"$error":"#N/A"}},{"$f":"'Sundurliðun Hlutabréf'!F61","v":0},".M.EHHDSTF.XX.FJA.$$$.TEFT.SX.XXX.XXX.IS.N.M"]
[{"$f":"\"INN.\"&EIGNIR!$B$3&C2343","v":{"$error":"#N/A"}},{"$f":"'Sundurliðun Hlutabréf'!F62","v":0},".M.EHHDSTF.XX.INN.$$$.TEFT.SX.XXX.XXX.IS.N.M"]
[{"$f":"\"INN.\"&EIGNIR!$B$3&C2344","v":{"$error":"#N/A"}},{"$f":"'Sundurliðun Hlutabréf'!F63","v":0},".M.EHHDSTF.XX.SLI.$$$.TEFT.SX.XXX.XXX.IS.N.M"]
[{"$f":"\"INN.\"&EIGNIR!$B$3&C2345","v":{"$error":"#N/A"}},{"$f":"'Sundurliðun Hlutabréf'!F64","v":0},".M.EHHDSTF.XX.PEN.$$$.TEFT.SX.XXX.XXX.IS.N.M"]
[{"$f":"\"INN.\"&EIGNIR!$B$3&C2346","v":{"$error":"#N/A"}},{"$f":"'Sundurliðun Hlutabréf'!F65","v":0},".M.EHHDSTF.XX.SJO.$$$.TEFT.SX.XXX.XXX.IS.N.M"]
[{"$f":"\"INN.\"&EIGNIR!$B$3&C2347","v":{"$error":"#N/A"}},{"$f":"'Sundurliðun Hlutabréf'!F66","v":0},".M.EHHDSTF.XX.YFT.$$$.TEFT.SX.XXX.XXX.IS.N.M"]
[{"$f":"\"INN.\"&EIGNIR!$B$3&C2348","v":{"$error":"#N/A"}},{"$f":"'Sundurliðun Hlutabréf'!F67","v":0},".M.EHHDSTF.XX.SLY.$$$.TEFT.SX.XXX.XXX.IS.N.M"]
[{"$f":"\"INN.\"&EIGNIR!$B$3&C2349","v":{"$error":"#N/A"}},{"$f":"'Sundurliðun Hlutabréf'!F68","v":0},".M.EHHDSTF.XX.FLH.$$$.TEFT.SX.XXX.XXX.IS.N.M"]
[{"$f":"\"INN.\"&EIGNIR!$B$3&C2350","v":{"$error":"#N/A"}},{"$f":"'Sundurliðun Hlutabréf'!F69","v":0},".M.EHHDSTF.XX.INF.$$$.TEFT.SX.XXX.XXX.IS.N.M"]
[{"$f":"\"INN.\"&EIGNIR!$B$3&C2351","v":{"$error":"#N/A"}},{"$f":"'Sundurliðun Hlutabréf'!F70","v":0},".M.EHHDSTF.XX.TRY.$$$.TEFT.SX.XXX.XXX.IS.N.M"]
[{"$f":"\"INN.\"&EIGNIR!$B$3&C2352","v":{"$error":"#N/A"}},{"$f":"'Sundurliðun Hlutabréf'!F71","v":0},".M.EHHDSTF.XX.LIF.$$$.TEFT.SX.XXX.XXX.IS.N.M"]
[{"$f":"\"INN.\"&EIGNIR!$B$3&C2353","v":{"$error":"#N/A"}},{"$f":"'Sundurliðun Hlutabréf'!F72","v":0},".M.EHHDSTF.XX.OPI.$$$.TEFT.SX.XXX.XXX.IS.N.M"]
[{"$f":"\"INN.\"&EIGNIR!$B$3&C2354","v":{"$error":"#N/A"}},{"$f":"'Sundurliðun Hlutabréf'!F76","v":0},".M.EHHDSTF.XX.NPH.$$$.TEFT.SX.XXX.XXX.IS.N.M"]
[{"$f":"\"INN.\"&EIGNIR!$B$3&C2355","v":{"$error":"#N/A"}},{"$f":"'Sundurliðun Hlutabréf'!F79","v":0},".M.EHHDSTF.XX.ERI.$$$.TEFT.SX.XXX.XXX.IS.N.M"]
[{"$f":"\"INN.\"&EIGNIR!$B$3&C2356","v":{"$error":"#N/A"}},{"$f":"'Sundurliðun Hlutabréf'!F82","v":0},".M.EHHDSTF.XX.ERF.$$$.TEFT.SX.XXX.XXX.IS.N.M"]
[{"$f":"\"INN.\"&EIGNIR!$B$3&C2357","v":{"$error":"#N/A"}},{"$f":"'Sundurliðun Hlutabréf'!F84","v":0},".M.EHHDSTF.XX.ERA.$$$.TEFT.SX.XXX.XXX.IS.N.M"]
[{"$f":"\"INN.\"&EIGNIR!$B$3&C2358","v":{"$error":"#N/A"}},{"$f":"'Sundurliðun Hlutabréf'!G5","v":0},".M.EVBHB$$.SX.$$$.XXX.XXXX.SX.XXX.XXX.IS.N.M","Skráð hlutabréf"]
[{"$f":"\"INN.\"&EIGNIR!$B$3&C2359","v":{"$error":"#N/A"}},{"$f":"'Sundurliðun Hlutabréf'!G6","v":0},".M.EVBHBHB.SX.$$$.XXX.XXXX.SX.XXX.XXX.IS.N.M"]
[{"$f":"\"INN.\"&EIGNIR!$B$3&C2360","v":{"$error":"#N/A"}},{"$f":"'Sundurliðun Hlutabréf'!G7","v":0},".M.EVBHBHB.SX.ATV.XXX.XXXX.SX.XXX.XXX.IS.N.M"]
[{"$f":"\"INN.\"&EIGNIR!$B$3&C2361","v":{"$error":"#N/A"}},{"$f":"'Sundurliðun Hlutabréf'!G8","v":0},".M.EVBHBHB.SX.FJA.XXX.XXXX.SX.XXX.XXX.IS.N.M"]
[{"$f":"\"INN.\"&EIGNIR!$B$3&C2362","v":{"$error":"#N/A"}},{"$f":"'Sundurliðun Hlutabréf'!G9","v":0},".M.EVBHBHB.SX.INN.XXX.XXXX.SX.XXX.XXX.IS.N.M"]
[{"$f":"\"INN.\"&EIGNIR!$B$3&C2363","v":{"$error":"#N/A"}},{"$f":"'Sundurliðun Hlutabréf'!G10","v":0},".M.EVBHBHB.SX.SLI.XXX.XXXX.SX.XXX.XXX.IS.N.M"]
[{"$f":"\"INN.\"&EIGNIR!$B$3&C2364","v":{"$error":"#N/A"}},{"$f":"'Sundurliðun Hlutabréf'!G11","v":0},".M.EVBHBHB.SX.PEN.XXX.XXXX.SX.XXX.XXX.IS.N.M"]
[{"$f":"\"INN.\"&EIGNIR!$B$3&C2365","v":{"$error":"#N/A"}},{"$f":"'Sundurliðun Hlutabréf'!G12","v":0},".M.EVBHBHB.SX.SJO.XXX.XXXX.SX.XXX.XXX.IS.N.M"]
[{"$f":"\"INN.\"&EIGNIR!$B$3&C2366","v":{"$error":"#N/A"}},{"$f":"'Sundurliðun Hlutabréf'!G13","v":0},".M.EVBHBHB.SX.YFT.XXX.XXXX.SX.XXX.XXX.IS.N.M"]
[{"$f":"\"INN.\"&EIGNIR!$B$3&C2367","v":{"$error":"#N/A"}},{"$f":"'Sundurliðun Hlutabréf'!G14","v":0},".M.EVBHBHB.SX.SLY.XXX.XXXX.SX.XXX.XXX.IS.N.M"]
[{"$f":"\"INN.\"&EIGNIR!$B$3&C2368","v":{"$error":"#N/A"}},{"$f":"'Sundurliðun Hlutabréf'!G15","v":0},".M.EVBHBHB.SX.FHL.XXX.XXXX.SX.XXX.XXX.IS.N.M"]
[{"$f":"\"INN.\"&EIGNIR!$B$3&C2369","v":{"$error":"#N/A"}},{"$f":"'Sundurliðun Hlutabréf'!G16","v":0},".M.EVBHBHB.SX.INF.XXX.XXXX.SX.XXX.XXX.IS.N.M"]
[{"$f":"\"INN.\"&EIGNIR!$B$3&C2370","v":{"$error":"#N/A"}},{"$f":"'Sundurliðun Hlutabréf'!G17","v":0},".M.EVBHBHB.SX.TRY.XXX.XXXX.SX.XXX.XXX.IS.N.M"]
[{"$f":"\"INN.\"&EIGNIR!$B$3&C2371","v":{"$error":"#N/A"}},{"$f":"'Sundurliðun Hlutabréf'!G18","v":0},".M.EVBHBHB.SX.LIF.XXX.XXXX.SX.XXX.XXX.IS.N.M"]
[{"$f":"\"INN.\"&EIGNIR!$B$3&C2372","v":{"$error":"#N/A"}},{"$f":"'Sundurliðun Hlutabréf'!G23","v":0},".M.EVBHBHB.SX.NPH.XXX.XXXX.SX.XXX.XXX.IS.N.M"]
[{"$f":"\"INN.\"&EIGNIR!$B$3&C2373","v":{"$error":"#N/A"}},{"$f":"'Sundurliðun Hlutabréf'!G24","v":0},".M.EVBHBHB.SX.ERL.XXX.XXXX.SX.XXX.XXX.IS.N.M"]
[{"$f":"\"INN.\"&EIGNIR!$B$3&C2374","v":{"$error":"#N/A"}},{"$f":"'Sundurliðun Hlutabréf'!G26","v":0},".M.EVBHBHB.SX.ERI.XXX.XXXX.SX.XXX.XXX.IS.N.M"]
[{"$f":"\"INN.\"&EIGNIR!$B$3&C2375","v":{"$error":"#N/A"}},{"$f":"'Sundurliðun Hlutabréf'!G27","v":0},".M.EVBHBHB.SX.ERP.XXX.XXXX.SX.XXX.XXX.IS.N.M"]
[{"$f":"\"INN.\"&EIGNIR!$B$3&C2376","v":{"$error":"#N/A"}},{"$f":"'Sundurliðun Hlutabréf'!G28","v":0},".M.EVBHBHB.SX.ERV.XXX.XXXX.SX.XXX.XXX.IS.N.M"]
[{"$f":"\"INN.\"&EIGNIR!$B$3&C2377","v":{"$error":"#N/A"}},{"$f":"'Sundurliðun Hlutabréf'!G29","v":0},".M.EVBHBHB.SX.ERF.XXX.XXXX.SX.XXX.XXX.IS.N.M"]
[{"$f":"\"INN.\"&EIGNIR!$B$3&C2378","v":{"$error":"#N/A"}},{"$f":"'Sundurliðun Hlutabréf'!G31","v":0},".M.EVBHBHB.SX.ERA.XXX.XXXX.SX.XXX.XXX.IS.N.M"]
[{"$f":"\"INN.\"&EIGNIR!$B$3&C2379","v":{"$error":"#N/A"}},{"$f":"'Sundurliðun Hlutabréf'!G32","v":0},".M.EHHDS$$.SX.$$$.XXX.XXXX.SX.SXX.SXX.IS.N.M"]
[{"$f":"\"INN.\"&EIGNIR!$B$3&C2380","v":{"$error":"#N/A"}},{"$f":"'Sundurliðun Hlutabréf'!G33","v":0},".M.EHHDSHF.SX.$$$.XXX.HLFT.SX.SXX.SXX.IS.N.M"]
[{"$f":"\"INN.\"&EIGNIR!$B$3&C2381","v":{"$error":"#N/A"}},{"$f":"'Sundurliðun Hlutabréf'!G34","v":0},".M.EHHDSHF.SX.ATV.XXX.HLFT.SX.SXX.SXX.IS.N.M"]
[{"$f":"\"INN.\"&EIGNIR!$B$3&C2382","v":{"$error":"#N/A"}},{"$f":"'Sundurliðun Hlutabréf'!G35","v":0},".M.EHHDSHF.SX.FJA.XXX.HLFT.SX.SXX.SXX.IS.N.M"]
[{"$f":"\"INN.\"&EIGNIR!$B$3&C2383","v":{"$error":"#N/A"}},{"$f":"'Sundurliðun Hlutabréf'!G36","v":0},".M.EHHDSHF.SX.INN.XXX.HLFT.SX.SXX.SXX.IS.N.M"]
[{"$f":"\"INN.\"&EIGNIR!$B$3&C2384","v":{"$error":"#N/A"}},{"$f":"'Sundurliðun Hlutabréf'!G37","v":0},".M.EHHDSHF.SX.SLI.XXX.HLFT.SX.SXX.SXX.IS.N.M"]
[{"$f":"\"INN.\"&EIGNIR!$B$3&C2385","v":{"$error":"#N/A"}},{"$f":"'Sundurliðun Hlutabréf'!G38","v":0},".M.EHHDSHF.SX.PEN.XXX.HLFT.SX.SXX.SXX.IS.N.M"]
[{"$f":"\"INN.\"&EIGNIR!$B$3&C2386","v":{"$error":"#N/A"}},{"$f":"'Sundurliðun Hlutabréf'!G39","v":0},".M.EHHDSHF.SX.SJO.XXX.HLFT.SX.SXX.SXX.IS.N.M"]
[{"$f":"\"INN.\"&EIGNIR!$B$3&C2387","v":{"$error":"#N/A"}},{"$f":"'Sundurliðun Hlutabréf'!G40","v":0},".M.EHHDSHF.SX.YFT.XXX.HLFT.SX.SXX.SXX.IS.N.M"]
[{"$f":"\"INN.\"&EIGNIR!$B$3&C2388","v":{"$error":"#N/A"}},{"$f":"'Sundurliðun Hlutabréf'!G41","v":0},".M.EHHDSHF.SX.SLY.XXX.HLFT.SX.SXX.SXX.IS.N.M"]
[{"$f":"\"INN.\"&EIGNIR!$B$3&C2389","v":{"$error":"#N/A"}},{"$f":"'Sundurliðun Hlutabréf'!G42","v":0},".M.EHHDSHF.SX.FLH.XXX.HLFT.SX.SXX.SXX.IS.N.M"]
[{"$f":"\"INN.\"&EIGNIR!$B$3&C2390","v":{"$error":"#N/A"}},{"$f":"'Sundurliðun Hlutabréf'!G43","v":0},".M.EHHDSHF.SX.INF.XXX.HLFT.SX.SXX.SXX.IS.N.M"]
[{"$f":"\"INN.\"&EIGNIR!$B$3&C2391","v":{"$error":"#N/A"}},{"$f":"'Sundurliðun Hlutabréf'!G44","v":0},".M.EHHDSHF.SX.TRY.XXX.HLFT.SX.SXX.SXX.IS.N.M"]
[{"$f":"\"INN.\"&EIGNIR!$B$3&C2392","v":{"$error":"#N/A"}},{"$f":"'Sundurliðun Hlutabréf'!G45","v":0},".M.EHHDSHF.SX.LIF.XXX.HLFT.SX.SXX.SXX.IS.N.M"]
[{"$f":"\"INN.\"&EIGNIR!$B$3&C2393","v":{"$error":"#N/A"}},{"$f":"'Sundurliðun Hlutabréf'!G50","v":0},".M.EHHDSHF.SX.NPH.XXX.HLFT.SX.SXX.SXX.IS.N.M"]
[{"$f":"\"INN.\"&EIGNIR!$B$3&C2394","v":{"$error":"#N/A"}},{"$f":"'Sundurliðun Hlutabréf'!G51","v":0},".M.EHHDSHF.SX.ERL.XXX.HLFT.SX.SXX.SXX.IS.N.M"]
[{"$f":"\"INN.\"&EIGNIR!$B$3&C2395","v":{"$error":"#N/A"}},{"$f":"'Sundurliðun Hlutabréf'!G53","v":0},".M.EHHDSHF.SX.ERI.XXX.HLFT.SX.SXX.SXX.IS.N.M"]
[{"$f":"\"INN.\"&EIGNIR!$B$3&C2396","v":{"$error":"#N/A"}},{"$f":"'Sundurliðun Hlutabréf'!G56","v":0},".M.EHHDSHF.SX.ERF.XXX.HLFT.SX.SXX.SXX.IS.N.M"]
[{"$f":"\"INN.\"&EIGNIR!$B$3&C2397","v":{"$error":"#N/A"}},{"$f":"'Sundurliðun Hlutabréf'!G58","v":0},".M.EHHDSHF.SX.ERA.XXX.HLFT.SX.SXX.SXX.IS.N.M"]
[{"$f":"\"INN.\"&EIGNIR!$B$3&C2398","v":{"$error":"#N/A"}},{"$f":"'Sundurliðun Hlutabréf'!G59","v":0},".M.EHHDSTF.SX.$$$.XXX.TEFT.SX.SXX.SXX.IS.N.M"]
[{"$f":"\"INN.\"&EIGNIR!$B$3&C2399","v":{"$error":"#N/A"}},{"$f":"'Sundurliðun Hlutabréf'!G60","v":0},".M.EHHDSTF.SX.ATV.XXX.TEFT.SX.SXX.SXX.IS.N.M"]
[{"$f":"\"INN.\"&EIGNIR!$B$3&C2400","v":{"$error":"#N/A"}},{"$f":"'Sundurliðun Hlutabréf'!G61","v":0},".M.EHHDSTF.SX.FJA.XXX.TEFT.SX.SXX.SXX.IS.N.M"]
[{"$f":"\"INN.\"&EIGNIR!$B$3&C2401","v":{"$error":"#N/A"}},{"$f":"'Sundurliðun Hlutabréf'!G62","v":0},".M.EHHDSTF.SX.INN.XXX.TEFT.SX.SXX.SXX.IS.N.M"]
[{"$f":"\"INN.\"&EIGNIR!$B$3&C2402","v":{"$error":"#N/A"}},{"$f":"'Sundurliðun Hlutabréf'!G63","v":0},".M.EHHDSTF.SX.SLI.XXX.TEFT.SX.SXX.SXX.IS.N.M"]
[{"$f":"\"INN.\"&EIGNIR!$B$3&C2403","v":{"$error":"#N/A"}},{"$f":"'Sundurliðun Hlutabréf'!G64","v":0},".M.EHHDSTF.SX.PEN.XXX.TEFT.SX.SXX.SXX.IS.N.M"]
[{"$f":"\"INN.\"&EIGNIR!$B$3&C2404","v":{"$error":"#N/A"}},{"$f":"'Sundurliðun Hlutabréf'!G65","v":0},".M.EHHDSTF.SX.SJO.XXX.TEFT.SX.SXX.SXX.IS.N.M"]
[{"$f":"\"INN.\"&EIGNIR!$B$3&C2405","v":{"$error":"#N/A"}},{"$f":"'Sundurliðun Hlutabréf'!G66","v":0},".M.EHHDSTF.SX.YFT.XXX.TEFT.SX.SXX.SXX.IS.N.M"]
[{"$f":"\"INN.\"&EIGNIR!$B$3&C2406","v":{"$error":"#N/A"}},{"$f":"'Sundurliðun Hlutabréf'!G67","v":0},".M.EHHDSTF.SX.SLY.XXX.TEFT.SX.SXX.SXX.IS.N.M"]
[{"$f":"\"INN.\"&EIGNIR!$B$3&C2407","v":{"$error":"#N/A"}},{"$f":"'Sundurliðun Hlutabréf'!G68","v":0},".M.EHHDSTF.SX.FLH.XXX.TEFT.SX.SXX.SXX.IS.N.M"]
[{"$f":"\"INN.\"&EIGNIR!$B$3&C2408","v":{"$error":"#N/A"}},{"$f":"'Sundurliðun Hlutabréf'!G69","v":0},".M.EHHDSTF.SX.INF.XXX.TEFT.SX.SXX.SXX.IS.N.M"]
[{"$f":"\"INN.\"&EIGNIR!$B$3&C2409","v":{"$error":"#N/A"}},{"$f":"'Sundurliðun Hlutabréf'!G70","v":0},".M.EHHDSTF.SX.TRY.XXX.TEFT.SX.SXX.SXX.IS.N.M"]
[{"$f":"\"INN.\"&EIGNIR!$B$3&C2410","v":{"$error":"#N/A"}},{"$f":"'Sundurliðun Hlutabréf'!G71","v":0},".M.EHHDSTF.SX.LIF.XXX.TEFT.SX.SXX.SXX.IS.N.M"]
[{"$f":"\"INN.\"&EIGNIR!$B$3&C2411","v":{"$error":"#N/A"}},{"$f":"'Sundurliðun Hlutabréf'!G76","v":0},".M.EHHDSTF.SX.NPH.XXX.TEFT.SX.SXX.SXX.IS.N.M"]
[{"$f":"\"INN.\"&EIGNIR!$B$3&C2412","v":{"$error":"#N/A"}},{"$f":"'Sundurliðun Hlutabréf'!G77","v":0},".M.EHHDSTF.SX.ERL.XXX.TEFT.SX.SXX.SXX.IS.N.M"]
[{"$f":"\"INN.\"&EIGNIR!$B$3&C2413","v":{"$error":"#N/A"}},{"$f":"'Sundurliðun Hlutabréf'!G79","v":0},".M.EHHDSTF.SX.ERI.XXX.TEFT.SX.SXX.SXX.IS.N.M"]
[{"$f":"\"INN.\"&EIGNIR!$B$3&C2414","v":{"$error":"#N/A"}},{"$f":"'Sundurliðun Hlutabréf'!G82","v":0},".M.EHHDSTF.SX.ERF.XXX.TEFT.SX.SXX.SXX.IS.N.M"]
[{"$f":"\"INN.\"&EIGNIR!$B$3&C2415","v":{"$error":"#N/A"}},{"$f":"'Sundurliðun Hlutabréf'!G84","v":0},".M.EHHDSTF.SX.ERA.XXX.TEFT.SX.SXX.SXX.IS.N.M"]
[{"$f":"\"INN.\"&EIGNIR!$B$3&C2416","v":{"$error":"#N/A"}},{"$f":"'Sundurliðun Hlutabréf'!H5","v":0},".M.EVBHB$$.OX.$$$.XXX.XXXX.SX.XXX.XXX.IS.N.M","Óskráð hlutabréf"]
[{"$f":"\"INN.\"&EIGNIR!$B$3&C2417","v":{"$error":"#N/A"}},{"$f":"'Sundurliðun Hlutabréf'!H6","v":0},".M.EVBHBHB.OX.$$$.XXX.XXXX.SX.XXX.XXX.IS.N.M"]
[{"$f":"\"INN.\"&EIGNIR!$B$3&C2418","v":{"$error":"#N/A"}},{"$f":"'Sundurliðun Hlutabréf'!H7","v":0},".M.EVBHBHB.OX.ATV.XXX.XXXX.SX.XXX.XXX.IS.N.M"]
[{"$f":"\"INN.\"&EIGNIR!$B$3&C2419","v":{"$error":"#N/A"}},{"$f":"'Sundurliðun Hlutabréf'!H8","v":0},".M.EVBHBHB.OX.FJA.XXX.XXXX.SX.XXX.XXX.IS.N.M"]
[{"$f":"\"INN.\"&EIGNIR!$B$3&C2420","v":{"$error":"#N/A"}},{"$f":"'Sundurliðun Hlutabréf'!H9","v":0},".M.EVBHBHB.OX.INN.XXX.XXXX.SX.XXX.XXX.IS.N.M"]
[{"$f":"\"INN.\"&EIGNIR!$B$3&C2421","v":{"$error":"#N/A"}},{"$f":"'Sundurliðun Hlutabréf'!H10","v":0},".M.EVBHBHB.OX.SLI.XXX.XXXX.SX.XXX.XXX.IS.N.M"]
[{"$f":"\"INN.\"&EIGNIR!$B$3&C2422","v":{"$error":"#N/A"}},{"$f":"'Sundurliðun Hlutabréf'!H11","v":0},".M.EVBHBHB.OX.PEN.XXX.XXXX.SX.XXX.XXX.IS.N.M"]
[{"$f":"\"INN.\"&EIGNIR!$B$3&C2423","v":{"$error":"#N/A"}},{"$f":"'Sundurliðun Hlutabréf'!H12","v":0},".M.EVBHBHB.OX.SJO.XXX.XXXX.SX.XXX.XXX.IS.N.M"]
[{"$f":"\"INN.\"&EIGNIR!$B$3&C2424","v":{"$error":"#N/A"}},{"$f":"'Sundurliðun Hlutabréf'!H13","v":0},".M.EVBHBHB.OX.YFT.XXX.XXXX.SX.XXX.XXX.IS.N.M"]
[{"$f":"\"INN.\"&EIGNIR!$B$3&C2425","v":{"$error":"#N/A"}},{"$f":"'Sundurliðun Hlutabréf'!H14","v":0},".M.EVBHBHB.OX.SLY.XXX.XXXX.SX.XXX.XXX.IS.N.M"]
[{"$f":"\"INN.\"&EIGNIR!$B$3&C2426","v":{"$error":"#N/A"}},{"$f":"'Sundurliðun Hlutabréf'!H15","v":0},".M.EVBHBHB.OX.FHL.XXX.XXXX.SX.XXX.XXX.IS.N.M"]
[{"$f":"\"INN.\"&EIGNIR!$B$3&C2427","v":{"$error":"#N/A"}},{"$f":"'Sundurliðun Hlutabréf'!H16","v":0},".M.EVBHBHB.OX.INF.XXX.XXXX.SX.XXX.XXX.IS.N.M"]
[{"$f":"\"INN.\"&EIGNIR!$B$3&C2428","v":{"$error":"#N/A"}},{"$f":"'Sundurliðun Hlutabréf'!H17","v":0},".M.EVBHBHB.OX.TRY.XXX.XXXX.SX.XXX.XXX.IS.N.M"]
[{"$f":"\"INN.\"&EIGNIR!$B$3&C2429","v":{"$error":"#N/A"}},{"$f":"'Sundurliðun Hlutabréf'!H18","v":0},".M.EVBHBHB.OX.LIF.XXX.XXXX.SX.XXX.XXX.IS.N.M"]
[{"$f":"\"INN.\"&EIGNIR!$B$3&C2430","v":{"$error":"#N/A"}},{"$f":"'Sundurliðun Hlutabréf'!H23","v":0},".M.EVBHBHB.OX.NPH.XXX.XXXX.SX.XXX.XXX.IS.N.M"]
[{"$f":"\"INN.\"&EIGNIR!$B$3&C2431","v":{"$error":"#N/A"}},{"$f":"'Sundurliðun Hlutabréf'!H24","v":0},".M.EVBHBHB.OX.ERL.XXX.XXXX.SX.XXX.XXX.IS.N.M"]
[{"$f":"\"INN.\"&EIGNIR!$B$3&C2432","v":{"$error":"#N/A"}},{"$f":"'Sundurliðun Hlutabréf'!H26","v":0},".M.EVBHBHB.OX.ERI.XXX.XXXX.SX.XXX.XXX.IS.N.M"]
[{"$f":"\"INN.\"&EIGNIR!$B$3&C2433","v":{"$error":"#N/A"}},{"$f":"'Sundurliðun Hlutabréf'!H27","v":0},".M.EVBHBHB.OX.ERP.XXX.XXXX.SX.XXX.XXX.IS.N.M"]
[{"$f":"\"INN.\"&EIGNIR!$B$3&C2434","v":{"$error":"#N/A"}},{"$f":"'Sundurliðun Hlutabréf'!H28","v":0},".M.EVBHBHB.OX.ERV.XXX.XXXX.SX.XXX.XXX.IS.N.M"]
[{"$f":"\"INN.\"&EIGNIR!$B$3&C2435","v":{"$error":"#N/A"}},{"$f":"'Sundurliðun Hlutabréf'!H29","v":0},".M.EVBHBHB.OX.ERF.XXX.XXXX.SX.XXX.XXX.IS.N.M"]
[{"$f":"\"INN.\"&EIGNIR!$B$3&C2436","v":{"$error":"#N/A"}},{"$f":"'Sundurliðun Hlutabréf'!H31","v":0},".M.EVBHBHB.OX.ERA.XXX.XXXX.SX.XXX.XXX.IS.N.M"]
[{"$f":"\"INN.\"&EIGNIR!$B$3&C2437","v":{"$error":"#N/A"}},{"$f":"'Sundurliðun Hlutabréf'!H32","v":0},".M.EHHDS$$.OX.$$$.XXX.XXXX.SX.XXX.XXX.IS.N.M"]
[{"$f":"\"INN.\"&EIGNIR!$B$3&C2438","v":{"$error":"#N/A"}},{"$f":"'Sundurliðun Hlutabréf'!H33","v":0},".M.EHHDSHF.OX.$$$.XXX.HLFT.SX.XXX.XXX.IS.N.M"]
[{"$f":"\"INN.\"&EIGNIR!$B$3&C2439","v":{"$error":"#N/A"}},{"$f":"'Sundurliðun Hlutabréf'!H34","v":0},".M.EHHDSHF.OX.ATV.XXX.HLFT.SX.XXX.XXX.IS.N.M"]
[{"$f":"\"INN.\"&EIGNIR!$B$3&C2440","v":{"$error":"#N/A"}},{"$f":"'Sundurliðun Hlutabréf'!H35","v":0},".M.EHHDSHF.OX.FJA.XXX.HLFT.SX.XXX.XXX.IS.N.M"]
[{"$f":"\"INN.\"&EIGNIR!$B$3&C2441","v":{"$error":"#N/A"}},{"$f":"'Sundurliðun Hlutabréf'!H36","v":0},".M.EHHDSHF.OX.INN.XXX.HLFT.SX.XXX.XXX.IS.N.M"]
[{"$f":"\"INN.\"&EIGNIR!$B$3&C2442","v":{"$error":"#N/A"}},{"$f":"'Sundurliðun Hlutabréf'!H37","v":0},".M.EHHDSHF.OX.SLI.XXX.HLFT.SX.XXX.XXX.IS.N.M"]
[{"$f":"\"INN.\"&EIGNIR!$B$3&C2443","v":{"$error":"#N/A"}},{"$f":"'Sundurliðun Hlutabréf'!H38","v":0},".M.EHHDSHF.OX.PEN.XXX.HLFT.SX.XXX.XXX.IS.N.M"]
[{"$f":"\"INN.\"&EIGNIR!$B$3&C2444","v":{"$error":"#N/A"}},{"$f":"'Sundurliðun Hlutabréf'!H39","v":0},".M.EHHDSHF.OX.SJO.XXX.HLFT.SX.XXX.XXX.IS.N.M"]
[{"$f":"\"INN.\"&EIGNIR!$B$3&C2445","v":{"$error":"#N/A"}},{"$f":"'Sundurliðun Hlutabréf'!H40","v":0},".M.EHHDSHF.OX.YFT.XXX.HLFT.SX.XXX.XXX.IS.N.M"]
[{"$f":"\"INN.\"&EIGNIR!$B$3&C2446","v":{"$error":"#N/A"}},{"$f":"'Sundurliðun Hlutabréf'!H41","v":0},".M.EHHDSHF.OX.SLY.XXX.HLFT.SX.XXX.XXX.IS.N.M"]
[{"$f":"\"INN.\"&EIGNIR!$B$3&C2447","v":{"$error":"#N/A"}},{"$f":"'Sundurliðun Hlutabréf'!H42","v":0},".M.EHHDSHF.OX.FLH.XXX.HLFT.SX.XXX.XXX.IS.N.M"]
[{"$f":"\"INN.\"&EIGNIR!$B$3&C2448","v":{"$error":"#N/A"}},{"$f":"'Sundurliðun Hlutabréf'!H43","v":0},".M.EHHDSHF.OX.INF.XXX.HLFT.SX.XXX.XXX.IS.N.M"]
[{"$f":"\"INN.\"&EIGNIR!$B$3&C2449","v":{"$error":"#N/A"}},{"$f":"'Sundurliðun Hlutabréf'!H44","v":0},".M.EHHDSHF.OX.TRY.XXX.HLFT.SX.XXX.XXX.IS.N.M"]
[{"$f":"\"INN.\"&EIGNIR!$B$3&C2450","v":{"$error":"#N/A"}},{"$f":"'Sundurliðun Hlutabréf'!H45","v":0},".M.EHHDSHF.OX.LIF.XXX.HLFT.SX.XXX.XXX.IS.N.M"]
[{"$f":"\"INN.\"&EIGNIR!$B$3&C2451","v":{"$error":"#N/A"}},{"$f":"'Sundurliðun Hlutabréf'!H50","v":0},".M.EHHDSHF.OX.NPH.XXX.HLFT.SX.XXX.XXX.IS.N.M"]
[{"$f":"\"INN.\"&EIGNIR!$B$3&C2452","v":{"$error":"#N/A"}},{"$f":"'Sundurliðun Hlutabréf'!H51","v":0},".M.EHHDSHF.OX.ERL.XXX.HLFT.SX.XXX.XXX.IS.N.M"]
[{"$f":"\"INN.\"&EIGNIR!$B$3&C2453","v":{"$error":"#N/A"}},{"$f":"'Sundurliðun Hlutabréf'!H53","v":0},".M.EHHDSHF.OX.ERI.XXX.HLFT.SX.XXX.XXX.IS.N.M"]
[{"$f":"\"INN.\"&EIGNIR!$B$3&C2454","v":{"$error":"#N/A"}},{"$f":"'Sundurliðun Hlutabréf'!H56","v":0},".M.EHHDSHF.OX.ERF.XXX.HLFT.SX.XXX.XXX.IS.N.M"]
[{"$f":"\"INN.\"&EIGNIR!$B$3&C2455","v":{"$error":"#N/A"}},{"$f":"'Sundurliðun Hlutabréf'!H58","v":0},".M.EHHDSHF.OX.ERA.XXX.HLFT.SX.XXX.XXX.IS.N.M"]
[{"$f":"\"INN.\"&EIGNIR!$B$3&C2456","v":{"$error":"#N/A"}},{"$f":"'Sundurliðun Hlutabréf'!H59","v":0},".M.EHHDSTF.OX.$$$.XXX.TEFT.SX.XXX.XXX.IS.N.M"]
[{"$f":"\"INN.\"&EIGNIR!$B$3&C2457","v":{"$error":"#N/A"}},{"$f":"'Sundurliðun Hlutabréf'!H60","v":0},".M.EHHDSTF.OX.ATV.XXX.TEFT.SX.XXX.XXX.IS.N.M"]
[{"$f":"\"INN.\"&EIGNIR!$B$3&C2458","v":{"$error":"#N/A"}},{"$f":"'Sundurliðun Hlutabréf'!H61","v":0},".M.EHHDSTF.OX.FJA.XXX.TEFT.SX.XXX.XXX.IS.N.M"]
[{"$f":"\"INN.\"&EIGNIR!$B$3&C2459","v":{"$error":"#N/A"}},{"$f":"'Sundurliðun Hlutabréf'!H62","v":0},".M.EHHDSTF.OX.INN.XXX.TEFT.SX.XXX.XXX.IS.N.M"]
[{"$f":"\"INN.\"&EIGNIR!$B$3&C2460","v":{"$error":"#N/A"}},{"$f":"'Sundurliðun Hlutabréf'!H63","v":0},".M.EHHDSTF.OX.SLI.XXX.TEFT.SX.XXX.XXX.IS.N.M"]
[{"$f":"\"INN.\"&EIGNIR!$B$3&C2461","v":{"$error":"#N/A"}},{"$f":"'Sundurliðun Hlutabréf'!H64","v":0},".M.EHHDSTF.OX.PEN.XXX.TEFT.SX.XXX.XXX.IS.N.M"]
[{"$f":"\"INN.\"&EIGNIR!$B$3&C2462","v":{"$error":"#N/A"}},{"$f":"'Sundurliðun Hlutabréf'!H65","v":0},".M.EHHDSTF.OX.SJO.XXX.TEFT.SX.XXX.XXX.IS.N.M"]
[{"$f":"\"INN.\"&EIGNIR!$B$3&C2463","v":{"$error":"#N/A"}},{"$f":"'Sundurliðun Hlutabréf'!H66","v":0},".M.EHHDSTF.OX.YFT.XXX.TEFT.SX.XXX.XXX.IS.N.M"]
[{"$f":"\"INN.\"&EIGNIR!$B$3&C2464","v":{"$error":"#N/A"}},{"$f":"'Sundurliðun Hlutabréf'!H67","v":0},".M.EHHDSTF.OX.SLY.XXX.TEFT.SX.XXX.XXX.IS.N.M"]
[{"$f":"\"INN.\"&EIGNIR!$B$3&C2465","v":{"$error":"#N/A"}},{"$f":"'Sundurliðun Hlutabréf'!H68","v":0},".M.EHHDSTF.OX.FLH.XXX.TEFT.SX.XXX.XXX.IS.N.M"]
[{"$f":"\"INN.\"&EIGNIR!$B$3&C2466","v":{"$error":"#N/A"}},{"$f":"'Sundurliðun Hlutabréf'!H69","v":0},".M.EHHDSTF.OX.INF.XXX.TEFT.SX.XXX.XXX.IS.N.M"]
[{"$f":"\"INN.\"&EIGNIR!$B$3&C2467","v":{"$error":"#N/A"}},{"$f":"'Sundurliðun Hlutabréf'!H70","v":0},".M.EHHDSTF.OX.TRY.XXX.TEFT.SX.XXX.XXX.IS.N.M"]
[{"$f":"\"INN.\"&EIGNIR!$B$3&C2468","v":{"$error":"#N/A"}},{"$f":"'Sundurliðun Hlutabréf'!H71","v":0},".M.EHHDSTF.OX.LIF.XXX.TEFT.SX.XXX.XXX.IS.N.M"]
[{"$f":"\"INN.\"&EIGNIR!$B$3&C2469","v":{"$error":"#N/A"}},{"$f":"'Sundurliðun Hlutabréf'!H76","v":0},".M.EHHDSTF.OX.NPH.XXX.TEFT.SX.XXX.XXX.IS.N.M"]
[{"$f":"\"INN.\"&EIGNIR!$B$3&C2470","v":{"$error":"#N/A"}},{"$f":"'Sundurliðun Hlutabréf'!H77","v":0},".M.EHHDSTF.OX.ERL.XXX.TEFT.SX.XXX.XXX.IS.N.M"]
[{"$f":"\"INN.\"&EIGNIR!$B$3&C2471","v":{"$error":"#N/A"}},{"$f":"'Sundurliðun Hlutabréf'!H79","v":0},".M.EHHDSTF.OX.ERI.XXX.TEFT.SX.XXX.XXX.IS.N.M"]
[{"$f":"\"INN.\"&EIGNIR!$B$3&C2472","v":{"$error":"#N/A"}},{"$f":"'Sundurliðun Hlutabréf'!H82","v":0},".M.EHHDSTF.OX.ERF.XXX.TEFT.SX.XXX.XXX.IS.N.M"]
[{"$f":"\"INN.\"&EIGNIR!$B$3&C2473","v":{"$error":"#N/A"}},{"$f":"'Sundurliðun Hlutabréf'!H84","v":0},".M.EHHDSTF.OX.ERA.XXX.TEFT.SX.XXX.XXX.IS.N.M"]
[{"$f":"\"INN.\"&EIGNIR!$B$3&C2474","v":{"$error":"#N/A"}},{"$f":"'Sundurliðun Hlutabréf'!I7","v":0},".M.EVBHBHB.XX.ATV.OPI.XXXX.SX.XXX.XXX.IS.N.M","Opinber fyrirtæki. Atvinnufyrirtæki"]
[{"$f":"\"INN.\"&EIGNIR!$B$3&C2475","v":{"$error":"#N/A"}},{"$f":"'Sundurliðun Hlutabréf'!I8","v":0},".M.EVBHBHB.XX.FJA.OPI.XXXX.SX.XXX.XXX.IS.N.M"]
[{"$f":"\"INN.\"&EIGNIR!$B$3&C2476","v":{"$error":"#N/A"}},{"$f":"'Sundurliðun Hlutabréf'!I9","v":0},".M.EVBHBHB.XX.INN.OPI.XXXX.SX.XXX.XXX.IS.N.M"]
[{"$f":"\"INN.\"&EIGNIR!$B$3&C2477","v":{"$error":"#N/A"}},{"$f":"'Sundurliðun Hlutabréf'!I10","v":0},".M.EVBHBHB.XX.SLI.OPI.XXXX.SX.XXX.XXX.IS.N.M"]
[{"$f":"\"INN.\"&EIGNIR!$B$3&C2478","v":{"$error":"#N/A"}},{"$f":"'Sundurliðun Hlutabréf'!I11","v":0},".M.EVBHBHB.XX.PEN.OPI.XXXX.SX.XXX.XXX.IS.N.M"]
[{"$f":"\"INN.\"&EIGNIR!$B$3&C2479","v":{"$error":"#N/A"}},{"$f":"'Sundurliðun Hlutabréf'!I12","v":0},".M.EVBHBHB.XX.SJO.OPI.XXXX.SX.XXX.XXX.IS.N.M"]
[{"$f":"\"INN.\"&EIGNIR!$B$3&C2480","v":{"$error":"#N/A"}},{"$f":"'Sundurliðun Hlutabréf'!I13","v":0},".M.EVBHBHB.XX.YFT.OPI.XXXX.SX.XXX.XXX.IS.N.M"]
[{"$f":"\"INN.\"&EIGNIR!$B$3&C2481","v":{"$error":"#N/A"}},{"$f":"'Sundurliðun Hlutabréf'!I14","v":0},".M.EVBHBHB.XX.SLY.OPI.XXXX.SX.XXX.XXX.IS.N.M"]
[{"$f":"\"INN.\"&EIGNIR!$B$3&C2482","v":{"$error":"#N/A"}},{"$f":"'Sundurliðun Hlutabréf'!I15","v":0},".M.EVBHBHB.XX.FHL.OPI.XXXX.SX.XXX.XXX.IS.N.M"]
[{"$f":"\"INN.\"&EIGNIR!$B$3&C2483","v":{"$error":"#N/A"}},{"$f":"'Sundurliðun Hlutabréf'!I16","v":0},".M.EVBHBHB.XX.INF.OPI.XXXX.SX.XXX.XXX.IS.N.M"]
[{"$f":"\"INN.\"&EIGNIR!$B$3&C2484","v":{"$error":"#N/A"}},{"$f":"'Sundurliðun Hlutabréf'!I17","v":0},".M.EVBHBHB.XX.TRY.OPI.XXXX.SX.XXX.XXX.IS.N.M"]
[{"$f":"\"INN.\"&EIGNIR!$B$3&C2485","v":{"$error":"#N/A"}},{"$f":"'Sundurliðun Hlutabréf'!I18","v":0},".M.EVBHBHB.XX.LIF.OPI.XXXX.SX.XXX.XXX.IS.N.M"]
[{"$f":"\"INN.\"&EIGNIR!$B$3&C2486","v":{"$error":"#N/A"}},{"$f":"'Sundurliðun Hlutabréf'!I34","v":0},".M.EHHDSHF.XX.ATV.OPI.HLFT.SX.XXX.XXX.IS.N.M"]
[{"$f":"\"INN.\"&EIGNIR!$B$3&C2487","v":{"$error":"#N/A"}},{"$f":"'Sundurliðun Hlutabréf'!I35","v":0},".M.EHHDSHF.XX.FJA.OPI.HLFT.SX.XXX.XXX.IS.N.M"]
[{"$f":"\"INN.\"&EIGNIR!$B$3&C2488","v":{"$error":"#N/A"}},{"$f":"'Sundurliðun Hlutabréf'!I36","v":0},".M.EHHDSHF.XX.INN.OPI.HLFT.SX.XXX.XXX.IS.N.M"]
[{"$f":"\"INN.\"&EIGNIR!$B$3&C2489","v":{"$error":"#N/A"}},{"$f":"'Sundurliðun Hlutabréf'!I37","v":0},".M.EHHDSHF.XX.SLI.OPI.HLFT.SX.XXX.XXX.IS.N.M"]
[{"$f":"\"INN.\"&EIGNIR!$B$3&C2490","v":{"$error":"#N/A"}},{"$f":"'Sundurliðun Hlutabréf'!I38","v":0},".M.EHHDSHF.XX.PEN.OPI.HLFT.SX.XXX.XXX.IS.N.M"]
[{"$f":"\"INN.\"&EIGNIR!$B$3&C2491","v":{"$error":"#N/A"}},{"$f":"'Sundurliðun Hlutabréf'!I39","v":0},".M.EHHDSHF.XX.SJO.OPI.HLFT.SX.XXX.XXX.IS.N.M"]
[{"$f":"\"INN.\"&EIGNIR!$B$3&C2492","v":{"$error":"#N/A"}},{"$f":"'Sundurliðun Hlutabréf'!I40","v":0},".M.EHHDSHF.XX.YFT.OPI.HLFT.SX.XXX.XXX.IS.N.M"]
[{"$f":"\"INN.\"&EIGNIR!$B$3&C2493","v":{"$error":"#N/A"}},{"$f":"'Sundurliðun Hlutabréf'!I41","v":0},".M.EHHDSHF.XX.SLY.OPI.HLFT.SX.XXX.XXX.IS.N.M"]
[{"$f":"\"INN.\"&EIGNIR!$B$3&C2494","v":{"$error":"#N/A"}},{"$f":"'Sundurliðun Hlutabréf'!I42","v":0},".M.EHHDSHF.XX.FLH.OPI.HLFT.SX.XXX.XXX.IS.N.M"]
[{"$f":"\"INN.\"&EIGNIR!$B$3&C2495","v":{"$error":"#N/A"}},{"$f":"'Sundurliðun Hlutabréf'!I43","v":0},".M.EHHDSHF.XX.INF.OPI.HLFT.SX.XXX.XXX.IS.N.M"]
[{"$f":"\"INN.\"&EIGNIR!$B$3&C2496","v":{"$error":"#N/A"}},{"$f":"'Sundurliðun Hlutabréf'!I44","v":0},".M.EHHDSHF.XX.TRY.OPI.HLFT.SX.XXX.XXX.IS.N.M"]
[{"$f":"\"INN.\"&EIGNIR!$B$3&C2497","v":{"$error":"#N/A"}},{"$f":"'Sundurliðun Hlutabréf'!I45","v":0},".M.EHHDSHF.XX.LIF.OPI.HLFT.SX.XXX.XXX.IS.N.M"]
[{"$f":"\"INN.\"&EIGNIR!$B$3&C2498","v":{"$error":"#N/A"}},{"$f":"'Sundurliðun Hlutabréf'!I60","v":0},".M.EHHDSTF.XX.ATV.OPI.TEFT.SX.XXX.XXX.IS.N.M"]
[{"$f":"\"INN.\"&EIGNIR!$B$3&C2499","v":{"$error":"#N/A"}},{"$f":"'Sundurliðun Hlutabréf'!I61","v":0},".M.EHHDSTF.XX.FJA.OPI.TEFT.SX.XXX.XXX.IS.N.M"]
[{"$f":"\"INN.\"&EIGNIR!$B$3&C2500","v":{"$error":"#N/A"}},{"$f":"'Sundurliðun Hlutabréf'!I62","v":0},".M.EHHDSTF.XX.INN.OPI.TEFT.SX.XXX.XXX.IS.N.M"]
[{"$f":"\"INN.\"&EIGNIR!$B$3&C2501","v":{"$error":"#N/A"}},{"$f":"'Sundurliðun Hlutabréf'!I63","v":0},".M.EHHDSTF.XX.SLI.OPI.TEFT.SX.XXX.XXX.IS.N.M"]
[{"$f":"\"INN.\"&EIGNIR!$B$3&C2502","v":{"$error":"#N/A"}},{"$f":"'Sundurliðun Hlutabréf'!I64","v":0},".M.EHHDSTF.XX.PEN.OPI.TEFT.SX.XXX.XXX.IS.N.M"]
[{"$f":"\"INN.\"&EIGNIR!$B$3&C2503","v":{"$error":"#N/A"}},{"$f":"'Sundurliðun Hlutabréf'!I65","v":0},".M.EHHDSTF.XX.SJO.OPI.TEFT.SX.XXX.XXX.IS.N.M"]
[{"$f":"\"INN.\"&EIGNIR!$B$3&C2504","v":{"$error":"#N/A"}},{"$f":"'Sundurliðun Hlutabréf'!I66","v":0},".M.EHHDSTF.XX.YFT.OPI.TEFT.SX.XXX.XXX.IS.N.M"]
[{"$f":"\"INN.\"&EIGNIR!$B$3&C2505","v":{"$error":"#N/A"}},{"$f":"'Sundurliðun Hlutabréf'!I67","v":0},".M.EHHDSTF.XX.SLY.OPI.TEFT.SX.XXX.XXX.IS.N.M"]
[{"$f":"\"INN.\"&EIGNIR!$B$3&C2506","v":{"$error":"#N/A"}},{"$f":"'Sundurliðun Hlutabréf'!I68","v":0},".M.EHHDSTF.XX.FLH.OPI.TEFT.SX.XXX.XXX.IS.N.M"]
[{"$f":"\"INN.\"&EIGNIR!$B$3&C2507","v":{"$error":"#N/A"}},{"$f":"'Sundurliðun Hlutabréf'!I69","v":0},".M.EHHDSTF.XX.INF.OPI.TEFT.SX.XXX.XXX.IS.N.M"]
[{"$f":"\"INN.\"&EIGNIR!$B$3&C2508","v":{"$error":"#N/A"}},{"$f":"'Sundurliðun Hlutabréf'!I70","v":0},".M.EHHDSTF.XX.TRY.OPI.TEFT.SX.XXX.XXX.IS.N.M"]
[{"$f":"\"INN.\"&EIGNIR!$B$3&C2509","v":{"$error":"#N/A"}},{"$f":"'Sundurliðun Hlutabréf'!I71","v":0},".M.EHHDSTF.XX.LIF.OPI.TEFT.SX.XXX.XXX.IS.N.M"]
[{"$f":"\"INN.\"&EIGNIR!$B$3&C2510","v":{"$error":"#N/A"}},{"$f":"'Sundurliðun Hlutabréf'!J7","v":0},".M.EVBHBHB.XX.ATV.EIF.XXXX.SX.XXX.XXX.IS.N.M","Einkafyrirtæki.Atvinnufyrirtæki."]
[{"$f":"\"INN.\"&EIGNIR!$B$3&C2511","v":{"$error":"#N/A"}},{"$f":"'Sundurliðun Hlutabréf'!J8","v":0},".M.EVBHBHB.XX.FJA.EIF.XXXX.SX.XXX.XXX.IS.N.M"]
[{"$f":"\"INN.\"&EIGNIR!$B$3&C2512","v":{"$error":"#N/A"}},{"$f":"'Sundurliðun Hlutabréf'!J9","v":0},".M.EVBHBHB.XX.INN.EIF.XXXX.SX.XXX.XXX.IS.N.M"]
[{"$f":"\"INN.\"&EIGNIR!$B$3&C2513","v":{"$error":"#N/A"}},{"$f":"'Sundurliðun Hlutabréf'!J10","v":0},".M.EVBHBHB.XX.SLI.EIF.XXXX.SX.XXX.XXX.IS.N.M"]
[{"$f":"\"INN.\"&EIGNIR!$B$3&C2514","v":{"$error":"#N/A"}},{"$f":"'Sundurliðun Hlutabréf'!J11","v":0},".M.EVBHBHB.XX.PEN.EIF.XXXX.SX.XXX.XXX.IS.N.M"]
[{"$f":"\"INN.\"&EIGNIR!$B$3&C2515","v":{"$error":"#N/A"}},{"$f":"'Sundurliðun Hlutabréf'!J12","v":0},".M.EVBHBHB.XX.SJO.EIF.XXXX.SX.XXX.XXX.IS.N.M"]
[{"$f":"\"INN.\"&EIGNIR!$B$3&C2516","v":{"$error":"#N/A"}},{"$f":"'Sundurliðun Hlutabréf'!J13","v":0},".M.EVBHBHB.XX.YFT.EIF.XXXX.SX.XXX.XXX.IS.N.M"]
[{"$f":"\"INN.\"&EIGNIR!$B$3&C2517","v":{"$error":"#N/A"}},{"$f":"'Sundurliðun Hlutabréf'!J14","v":0},".M.EVBHBHB.XX.SLY.EIF.XXXX.SX.XXX.XXX.IS.N.M"]
[{"$f":"\"INN.\"&EIGNIR!$B$3&C2518","v":{"$error":"#N/A"}},{"$f":"'Sundurliðun Hlutabréf'!J15","v":0},".M.EVBHBHB.XX.FHL.EIF.XXXX.SX.XXX.XXX.IS.N.M"]
[{"$f":"\"INN.\"&EIGNIR!$B$3&C2519","v":{"$error":"#N/A"}},{"$f":"'Sundurliðun Hlutabréf'!J16","v":0},".M.EVBHBHB.XX.INF.EIF.XXXX.SX.XXX.XXX.IS.N.M"]
[{"$f":"\"INN.\"&EIGNIR!$B$3&C2520","v":{"$error":"#N/A"}},{"$f":"'Sundurliðun Hlutabréf'!J17","v":0},".M.EVBHBHB.XX.TRY.EIF.XXXX.SX.XXX.XXX.IS.N.M"]
[{"$f":"\"INN.\"&EIGNIR!$B$3&C2521","v":{"$error":"#N/A"}},{"$f":"'Sundurliðun Hlutabréf'!J18","v":0},".M.EVBHBHB.XX.LIF.EIF.XXXX.SX.XXX.XXX.IS.N.M"]
[{"$f":"\"INN.\"&EIGNIR!$B$3&C2522","v":{"$error":"#N/A"}},{"$f":"'Sundurliðun Hlutabréf'!J34","v":0},".M.EHHDSHF.XX.ATV.EIF.HLFT.SX.XXX.XXX.IS.N.M"]
[{"$f":"\"INN.\"&EIGNIR!$B$3&C2523","v":{"$error":"#N/A"}},{"$f":"'Sundurliðun Hlutabréf'!J35","v":0},".M.EHHDSHF.XX.FJA.EIF.HLFT.SX.XXX.XXX.IS.N.M"]
[{"$f":"\"INN.\"&EIGNIR!$B$3&C2524","v":{"$error":"#N/A"}},{"$f":"'Sundurliðun Hlutabréf'!J36","v":0},".M.EHHDSHF.XX.INN.EIF.HLFT.SX.XXX.XXX.IS.N.M"]
[{"$f":"\"INN.\"&EIGNIR!$B$3&C2525","v":{"$error":"#N/A"}},{"$f":"'Sundurliðun Hlutabréf'!J37","v":0},".M.EHHDSHF.XX.SLI.EIF.HLFT.SX.XXX.XXX.IS.N.M"]
[{"$f":"\"INN.\"&EIGNIR!$B$3&C2526","v":{"$error":"#N/A"}},{"$f":"'Sundurliðun Hlutabréf'!J38","v":0},".M.EHHDSHF.XX.PEN.EIF.HLFT.SX.XXX.XXX.IS.N.M"]
[{"$f":"\"INN.\"&EIGNIR!$B$3&C2527","v":{"$error":"#N/A"}},{"$f":"'Sundurliðun Hlutabréf'!J39","v":0},".M.EHHDSHF.XX.SJO.EIF.HLFT.SX.XXX.XXX.IS.N.M"]
[{"$f":"\"INN.\"&EIGNIR!$B$3&C2528","v":{"$error":"#N/A"}},{"$f":"'Sundurliðun Hlutabréf'!J40","v":0},".M.EHHDSHF.XX.YFT.EIF.HLFT.SX.XXX.XXX.IS.N.M"]
[{"$f":"\"INN.\"&EIGNIR!$B$3&C2529","v":{"$error":"#N/A"}},{"$f":"'Sundurliðun Hlutabréf'!J41","v":0},".M.EHHDSHF.XX.SLY.EIF.HLFT.SX.XXX.XXX.IS.N.M"]
[{"$f":"\"INN.\"&EIGNIR!$B$3&C2530","v":{"$error":"#N/A"}},{"$f":"'Sundurliðun Hlutabréf'!J42","v":0},".M.EHHDSHF.XX.FLH.EIF.HLFT.SX.XXX.XXX.IS.N.M"]
[{"$f":"\"INN.\"&EIGNIR!$B$3&C2531","v":{"$error":"#N/A"}},{"$f":"'Sundurliðun Hlutabréf'!J43","v":0},".M.EHHDSHF.XX.INF.EIF.HLFT.SX.XXX.XXX.IS.N.M"]
[{"$f":"\"INN.\"&EIGNIR!$B$3&C2532","v":{"$error":"#N/A"}},{"$f":"'Sundurliðun Hlutabréf'!J44","v":0},".M.EHHDSHF.XX.TRY.EIF.HLFT.SX.XXX.XXX.IS.N.M"]
[{"$f":"\"INN.\"&EIGNIR!$B$3&C2533","v":{"$error":"#N/A"}},{"$f":"'Sundurliðun Hlutabréf'!J45","v":0},".M.EHHDSHF.XX.LIF.EIF.HLFT.SX.XXX.XXX.IS.N.M"]
[{"$f":"\"INN.\"&EIGNIR!$B$3&C2534","v":{"$error":"#N/A"}},{"$f":"'Sundurliðun Hlutabréf'!J60","v":0},".M.EHHDSTF.XX.ATV.EIF.TEFT.SX.XXX.XXX.IS.N.M"]
[{"$f":"\"INN.\"&EIGNIR!$B$3&C2535","v":{"$error":"#N/A"}},{"$f":"'Sundurliðun Hlutabréf'!J61","v":0},".M.EHHDSTF.XX.FJA.EIF.TEFT.SX.XXX.XXX.IS.N.M"]
[{"$f":"\"INN.\"&EIGNIR!$B$3&C2536","v":{"$error":"#N/A"}},{"$f":"'Sundurliðun Hlutabréf'!J62","v":0},".M.EHHDSTF.XX.INN.EIF.TEFT.SX.XXX.XXX.IS.N.M"]
[{"$f":"\"INN.\"&EIGNIR!$B$3&C2537","v":{"$error":"#N/A"}},{"$f":"'Sundurliðun Hlutabréf'!J63","v":0},".M.EHHDSTF.XX.SLI.EIF.TEFT.SX.XXX.XXX.IS.N.M"]
[{"$f":"\"INN.\"&EIGNIR!$B$3&C2538","v":{"$error":"#N/A"}},{"$f":"'Sundurliðun Hlutabréf'!J64","v":0},".M.EHHDSTF.XX.PEN.EIF.TEFT.SX.XXX.XXX.IS.N.M"]
[{"$f":"\"INN.\"&EIGNIR!$B$3&C2539","v":{"$error":"#N/A"}},{"$f":"'Sundurliðun Hlutabréf'!J65","v":0},".M.EHHDSTF.XX.SJO.EIF.TEFT.SX.XXX.XXX.IS.N.M"]
[{"$f":"\"INN.\"&EIGNIR!$B$3&C2540","v":{"$error":"#N/A"}},{"$f":"'Sundurliðun Hlutabréf'!J66","v":0},".M.EHHDSTF.XX.YFT.EIF.TEFT.SX.XXX.XXX.IS.N.M"]
[{"$f":"\"INN.\"&EIGNIR!$B$3&C2541","v":{"$error":"#N/A"}},{"$f":"'Sundurliðun Hlutabréf'!J67","v":0},".M.EHHDSTF.XX.SLY.EIF.TEFT.SX.XXX.XXX.IS.N.M"]
[{"$f":"\"INN.\"&EIGNIR!$B$3&C2542","v":{"$error":"#N/A"}},{"$f":"'Sundurliðun Hlutabréf'!J68","v":0},".M.EHHDSTF.XX.FLH.EIF.TEFT.SX.XXX.XXX.IS.N.M"]
[{"$f":"\"INN.\"&EIGNIR!$B$3&C2543","v":{"$error":"#N/A"}},{"$f":"'Sundurliðun Hlutabréf'!J69","v":0},".M.EHHDSTF.XX.INF.EIF.TEFT.SX.XXX.XXX.IS.N.M"]
[{"$f":"\"INN.\"&EIGNIR!$B$3&C2544","v":{"$error":"#N/A"}},{"$f":"'Sundurliðun Hlutabréf'!J70","v":0},".M.EHHDSTF.XX.TRY.EIF.TEFT.SX.XXX.XXX.IS.N.M"]
[{"$f":"\"INN.\"&EIGNIR!$B$3&C2545","v":{"$error":"#N/A"}},{"$f":"'Sundurliðun Hlutabréf'!J71","v":0},".M.EHHDSTF.XX.LIF.EIF.TEFT.SX.XXX.XXX.IS.N.M"]
[{"$f":"\"INN.\"&EIGNIR!$B$3&C2546","v":{"$error":"#N/A"}},{"$f":"'Sundurliðun Hlutabréf'!K5","v":0},".M.EVBHB$$.XX.$$$.XXX.XXXX.SX.XXX.ISK.IS.N.M","//Sundurliðun hlutabréf, íslenskar krónur"]
[{"$f":"\"INN.\"&EIGNIR!$B$3&C2547","v":{"$error":"#N/A"}},{"$f":"'Sundurliðun Hlutabréf'!K6","v":0},".M.EVBHBHB.XX.$$$.XXX.XXXX.SX.XXX.ISK.IS.N.M"]
[{"$f":"\"INN.\"&EIGNIR!$B$3&C2548","v":{"$error":"#N/A"}},{"$f":"'Sundurliðun Hlutabréf'!K7","v":0},".M.EVBHBHB.XX.ATV.XXX.XXXX.SX.XXX.ISK.IS.N.M"]
[{"$f":"\"INN.\"&EIGNIR!$B$3&C2549","v":{"$error":"#N/A"}},{"$f":"'Sundurliðun Hlutabréf'!K8","v":0},".M.EVBHBHB.XX.FJA.XXX.XXXX.SX.XXX.ISK.IS.N.M"]
[{"$f":"\"INN.\"&EIGNIR!$B$3&C2550","v":{"$error":"#N/A"}},{"$f":"'Sundurliðun Hlutabréf'!K9","v":0},".M.EVBHBHB.XX.INN.XXX.XXXX.SX.XXX.ISK.IS.N.M"]
[{"$f":"\"INN.\"&EIGNIR!$B$3&C2551","v":{"$error":"#N/A"}},{"$f":"'Sundurliðun Hlutabréf'!K10","v":0},".M.EVBHBHB.XX.SLI.XXX.XXXX.SX.XXX.ISK.IS.N.M"]
[{"$f":"\"INN.\"&EIGNIR!$B$3&C2552","v":{"$error":"#N/A"}},{"$f":"'Sundurliðun Hlutabréf'!K11","v":0},".M.EVBHBHB.XX.PEN.XXX.XXXX.SX.XXX.ISK.IS.N.M"]
[{"$f":"\"INN.\"&EIGNIR!$B$3&C2553","v":{"$error":"#N/A"}},{"$f":"'Sundurliðun Hlutabréf'!K12","v":0},".M.EVBHBHB.XX.SJO.XXX.XXXX.SX.XXX.ISK.IS.N.M"]
[{"$f":"\"INN.\"&EIGNIR!$B$3&C2554","v":{"$error":"#N/A"}},{"$f":"'Sundurliðun Hlutabréf'!K13","v":0},".M.EVBHBHB.XX.YFT.XXX.XXXX.SX.XXX.ISK.IS.N.M"]
[{"$f":"\"INN.\"&EIGNIR!$B$3&C2555","v":{"$error":"#N/A"}},{"$f":"'Sundurliðun Hlutabréf'!K14","v":0},".M.EVBHBHB.XX.SLY.XXX.XXXX.SX.XXX.ISK.IS.N.M"]
[{"$f":"\"INN.\"&EIGNIR!$B$3&C2556","v":{"$error":"#N/A"}},{"$f":"'Sundurliðun Hlutabréf'!K15","v":0},".M.EVBHBHB.XX.FHL.XXX.XXXX.SX.XXX.ISK.IS.N.M"]
[{"$f":"\"INN.\"&EIGNIR!$B$3&C2557","v":{"$error":"#N/A"}},{"$f":"'Sundurliðun Hlutabréf'!K16","v":0},".M.EVBHBHB.XX.INF.XXX.XXXX.SX.XXX.ISK.IS.N.M"]
[{"$f":"\"INN.\"&EIGNIR!$B$3&C2558","v":{"$error":"#N/A"}},{"$f":"'Sundurliðun Hlutabréf'!K17","v":0},".M.EVBHBHB.XX.TRY.XXX.XXXX.SX.XXX.ISK.IS.N.M"]
[{"$f":"\"INN.\"&EIGNIR!$B$3&C2559","v":{"$error":"#N/A"}},{"$f":"'Sundurliðun Hlutabréf'!K18","v":0},".M.EVBHBHB.XX.LIF.XXX.XXXX.SX.XXX.ISK.IS.N.M"]
[{"$f":"\"INN.\"&EIGNIR!$B$3&C2560","v":{"$error":"#N/A"}},{"$f":"'Sundurliðun Hlutabréf'!K23","v":0},".M.EVBHBHB.XX.NPH.XXX.XXXX.SX.XXX.ISK.IS.N.M"]
[{"$f":"\"INN.\"&EIGNIR!$B$3&C2561","v":{"$error":"#N/A"}},{"$f":"'Sundurliðun Hlutabréf'!K24","v":0},".M.EVBHBHB.XX.ERL.XXX.XXXX.SX.XXX.ISK.IS.N.M"]
[{"$f":"\"INN.\"&EIGNIR!$B$3&C2562","v":{"$error":"#N/A"}},{"$f":"'Sundurliðun Hlutabréf'!K26","v":0},".M.EVBHBHB.XX.ERI.XXX.XXXX.SX.XXX.ISK.IS.N.M"]
[{"$f":"\"INN.\"&EIGNIR!$B$3&C2563","v":{"$error":"#N/A"}},{"$f":"'Sundurliðun Hlutabréf'!K27","v":0},".M.EVBHBHB.XX.ERP.XXX.XXXX.SX.XXX.ISK.IS.N.M"]
[{"$f":"\"INN.\"&EIGNIR!$B$3&C2564","v":{"$error":"#N/A"}},{"$f":"'Sundurliðun Hlutabréf'!K28","v":0},".M.EVBHBHB.XX.ERV.XXX.XXXX.SX.XXX.ISK.IS.N.M"]
[{"$f":"\"INN.\"&EIGNIR!$B$3&C2565","v":{"$error":"#N/A"}},{"$f":"'Sundurliðun Hlutabréf'!K29","v":0},".M.EVBHBHB.XX.ERF.XXX.XXXX.SX.XXX.ISK.IS.N.M"]
[{"$f":"\"INN.\"&EIGNIR!$B$3&C2566","v":{"$error":"#N/A"}},{"$f":"'Sundurliðun Hlutabréf'!K31","v":0},".M.EVBHBHB.XX.ERA.XXX.XXXX.SX.XXX.ISK.IS.N.M"]
[{"$f":"\"INN.\"&EIGNIR!$B$3&C2567","v":{"$error":"#N/A"}},{"$f":"'Sundurliðun Hlutabréf'!K32","v":0},".M.EHHDS$$.XX.$$$.XXX.XXXX.SX.XXX.ISK.IS.N.M"]
[{"$f":"\"INN.\"&EIGNIR!$B$3&C2568","v":{"$error":"#N/A"}},{"$f":"'Sundurliðun Hlutabréf'!K33","v":0},".M.EHHDSHF.XX.$$$.XXX.HLFT.SX.XXX.ISK.IS.N.M"]
[{"$f":"\"INN.\"&EIGNIR!$B$3&C2569","v":{"$error":"#N/A"}},{"$f":"'Sundurliðun Hlutabréf'!K34","v":0},".M.EHHDSHF.XX.ATV.XXX.HLFT.SX.XXX.ISK.IS.N.M"]
[{"$f":"\"INN.\"&EIGNIR!$B$3&C2570","v":{"$error":"#N/A"}},{"$f":"'Sundurliðun Hlutabréf'!K35","v":0},".M.EHHDSHF.XX.FJA.XXX.HLFT.SX.XXX.ISK.IS.N.M"]
[{"$f":"\"INN.\"&EIGNIR!$B$3&C2571","v":{"$error":"#N/A"}},{"$f":"'Sundurliðun Hlutabréf'!K36","v":0},".M.EHHDSHF.XX.INN.XXX.HLFT.SX.XXX.ISK.IS.N.M"]
[{"$f":"\"INN.\"&EIGNIR!$B$3&C2572","v":{"$error":"#N/A"}},{"$f":"'Sundurliðun Hlutabréf'!K37","v":0},".M.EHHDSHF.XX.SLI.XXX.HLFT.SX.XXX.ISK.IS.N.M"]
[{"$f":"\"INN.\"&EIGNIR!$B$3&C2573","v":{"$error":"#N/A"}},{"$f":"'Sundurliðun Hlutabréf'!K38","v":0},".M.EHHDSHF.XX.PEN.XXX.HLFT.SX.XXX.ISK.IS.N.M"]
[{"$f":"\"INN.\"&EIGNIR!$B$3&C2574","v":{"$error":"#N/A"}},{"$f":"'Sundurliðun Hlutabréf'!K39","v":0},".M.EHHDSHF.XX.SJO.XXX.HLFT.SX.XXX.ISK.IS.N.M"]
[{"$f":"\"INN.\"&EIGNIR!$B$3&C2575","v":{"$error":"#N/A"}},{"$f":"'Sundurliðun Hlutabréf'!K40","v":0},".M.EHHDSHF.XX.YFT.XXX.HLFT.SX.XXX.ISK.IS.N.M"]
[{"$f":"\"INN.\"&EIGNIR!$B$3&C2576","v":{"$error":"#N/A"}},{"$f":"'Sundurliðun Hlutabréf'!K41","v":0},".M.EHHDSHF.XX.SLY.XXX.HLFT.SX.XXX.ISK.IS.N.M"]
[{"$f":"\"INN.\"&EIGNIR!$B$3&C2577","v":{"$error":"#N/A"}},{"$f":"'Sundurliðun Hlutabréf'!K42","v":0},".M.EHHDSHF.XX.FLH.XXX.HLFT.SX.XXX.ISK.IS.N.M"]
[{"$f":"\"INN.\"&EIGNIR!$B$3&C2578","v":{"$error":"#N/A"}},{"$f":"'Sundurliðun Hlutabréf'!K43","v":0},".M.EHHDSHF.XX.INF.XXX.HLFT.SX.XXX.ISK.IS.N.M"]
[{"$f":"\"INN.\"&EIGNIR!$B$3&C2579","v":{"$error":"#N/A"}},{"$f":"'Sundurliðun Hlutabréf'!K44","v":0},".M.EHHDSHF.XX.TRY.XXX.HLFT.SX.XXX.ISK.IS.N.M"]
[{"$f":"\"INN.\"&EIGNIR!$B$3&C2580","v":{"$error":"#N/A"}},{"$f":"'Sundurliðun Hlutabréf'!K45","v":0},".M.EHHDSHF.XX.LIF.XXX.HLFT.SX.XXX.ISK.IS.N.M"]
[{"$f":"\"INN.\"&EIGNIR!$B$3&C2581","v":{"$error":"#N/A"}},{"$f":"'Sundurliðun Hlutabréf'!K50","v":0},".M.EHHDSHF.XX.NPH.XXX.HLFT.SX.XXX.ISK.IS.N.M"]
[{"$f":"\"INN.\"&EIGNIR!$B$3&C2582","v":{"$error":"#N/A"}},{"$f":"'Sundurliðun Hlutabréf'!K51","v":0},".M.EHHDSHF.XX.ERL.XXX.HLFT.SX.XXX.ISK.IS.N.M"]
[{"$f":"\"INN.\"&EIGNIR!$B$3&C2583","v":{"$error":"#N/A"}},{"$f":"'Sundurliðun Hlutabréf'!K53","v":0},".M.EHHDSHF.XX.ERI.XXX.HLFT.SX.XXX.ISK.IS.N.M"]
[{"$f":"\"INN.\"&EIGNIR!$B$3&C2584","v":{"$error":"#N/A"}},{"$f":"'Sundurliðun Hlutabréf'!K56","v":0},".M.EHHDSHF.XX.ERF.XXX.HLFT.SX.XXX.ISK.IS.N.M"]
[{"$f":"\"INN.\"&EIGNIR!$B$3&C2585","v":{"$error":"#N/A"}},{"$f":"'Sundurliðun Hlutabréf'!K58","v":0},".M.EHHDSHF.XX.ERA.XXX.HLFT.SX.XXX.ISK.IS.N.M"]
[{"$f":"\"INN.\"&EIGNIR!$B$3&C2586","v":{"$error":"#N/A"}},{"$f":"'Sundurliðun Hlutabréf'!K59","v":0},".M.EHHDSTF.XX.$$$.XXX.TEFT.SX.XXX.ISK.IS.N.M"]
[{"$f":"\"INN.\"&EIGNIR!$B$3&C2587","v":{"$error":"#N/A"}},{"$f":"'Sundurliðun Hlutabréf'!K60","v":0},".M.EHHDSTF.XX.ATV.XXX.TEFT.SX.XXX.ISK.IS.N.M"]
[{"$f":"\"INN.\"&EIGNIR!$B$3&C2588","v":{"$error":"#N/A"}},{"$f":"'Sundurliðun Hlutabréf'!K61","v":0},".M.EHHDSTF.XX.FJA.XXX.TEFT.SX.XXX.ISK.IS.N.M"]
[{"$f":"\"INN.\"&EIGNIR!$B$3&C2589","v":{"$error":"#N/A"}},{"$f":"'Sundurliðun Hlutabréf'!K62","v":0},".M.EHHDSTF.XX.INN.XXX.TEFT.SX.XXX.ISK.IS.N.M"]
[{"$f":"\"INN.\"&EIGNIR!$B$3&C2590","v":{"$error":"#N/A"}},{"$f":"'Sundurliðun Hlutabréf'!K63","v":0},".M.EHHDSTF.XX.SLI.XXX.TEFT.SX.XXX.ISK.IS.N.M"]
[{"$f":"\"INN.\"&EIGNIR!$B$3&C2591","v":{"$error":"#N/A"}},{"$f":"'Sundurliðun Hlutabréf'!K64","v":0},".M.EHHDSTF.XX.PEN.XXX.TEFT.SX.XXX.ISK.IS.N.M"]
[{"$f":"\"INN.\"&EIGNIR!$B$3&C2592","v":{"$error":"#N/A"}},{"$f":"'Sundurliðun Hlutabréf'!K65","v":0},".M.EHHDSTF.XX.SJO.XXX.TEFT.SX.XXX.ISK.IS.N.M"]
[{"$f":"\"INN.\"&EIGNIR!$B$3&C2593","v":{"$error":"#N/A"}},{"$f":"'Sundurliðun Hlutabréf'!K66","v":0},".M.EHHDSTF.XX.YFT.XXX.TEFT.SX.XXX.ISK.IS.N.M"]
[{"$f":"\"INN.\"&EIGNIR!$B$3&C2594","v":{"$error":"#N/A"}},{"$f":"'Sundurliðun Hlutabréf'!K67","v":0},".M.EHHDSTF.XX.SLY.XXX.TEFT.SX.XXX.ISK.IS.N.M"]
[{"$f":"\"INN.\"&EIGNIR!$B$3&C2595","v":{"$error":"#N/A"}},{"$f":"'Sundurliðun Hlutabréf'!K68","v":0},".M.EHHDSTF.XX.FLH.XXX.TEFT.SX.XXX.ISK.IS.N.M"]
[{"$f":"\"INN.\"&EIGNIR!$B$3&C2596","v":{"$error":"#N/A"}},{"$f":"'Sundurliðun Hlutabréf'!K69","v":0},".M.EHHDSTF.XX.INF.XXX.TEFT.SX.XXX.ISK.IS.N.M"]
[{"$f":"\"INN.\"&EIGNIR!$B$3&C2597","v":{"$error":"#N/A"}},{"$f":"'Sundurliðun Hlutabréf'!K70","v":0},".M.EHHDSTF.XX.TRY.XXX.TEFT.SX.XXX.ISK.IS.N.M"]
[{"$f":"\"INN.\"&EIGNIR!$B$3&C2598","v":{"$error":"#N/A"}},{"$f":"'Sundurliðun Hlutabréf'!K71","v":0},".M.EHHDSTF.XX.LIF.XXX.TEFT.SX.XXX.ISK.IS.N.M"]
[{"$f":"\"INN.\"&EIGNIR!$B$3&C2599","v":{"$error":"#N/A"}},{"$f":"'Sundurliðun Hlutabréf'!K76","v":0},".M.EHHDSTF.XX.NPH.XXX.TEFT.SX.XXX.ISK.IS.N.M"]
[{"$f":"\"INN.\"&EIGNIR!$B$3&C2600","v":{"$error":"#N/A"}},{"$f":"'Sundurliðun Hlutabréf'!K77","v":0},".M.EHHDSTF.XX.ERL.XXX.TEFT.SX.XXX.ISK.IS.N.M"]
[{"$f":"\"INN.\"&EIGNIR!$B$3&C2601","v":{"$error":"#N/A"}},{"$f":"'Sundurliðun Hlutabréf'!K79","v":0},".M.EHHDSTF.XX.ERI.XXX.TEFT.SX.XXX.ISK.IS.N.M"]
[{"$f":"\"INN.\"&EIGNIR!$B$3&C2602","v":{"$error":"#N/A"}},{"$f":"'Sundurliðun Hlutabréf'!K82","v":0},".M.EHHDSTF.XX.ERF.XXX.TEFT.SX.XXX.ISK.IS.N.M"]
[{"$f":"\"INN.\"&EIGNIR!$B$3&C2603","v":{"$error":"#N/A"}},{"$f":"'Sundurliðun Hlutabréf'!K84","v":0},".M.EHHDSTF.XX.ERA.XXX.TEFT.SX.XXX.ISK.IS.N.M"]
[{"$f":"\"INN.\"&EIGNIR!$B$3&C2604","v":{"$error":"#N/A"}},{"$f":"'Sundurliðun Hlutabréf'!L5","v":0},".M.EVBHB$$.XX.$$$.XXX.XXXX.SX.XXX.EUR.IS.N.M","//Sundurliðun hlutabréf, evrur"]
[{"$f":"\"INN.\"&EIGNIR!$B$3&C2605","v":{"$error":"#N/A"}},{"$f":"'Sundurliðun Hlutabréf'!L6","v":0},".M.EVBHBHB.XX.$$$.XXX.XXXX.SX.XXX.EUR.IS.N.M"]
[{"$f":"\"INN.\"&EIGNIR!$B$3&C2606","v":{"$error":"#N/A"}},{"$f":"'Sundurliðun Hlutabréf'!L7","v":0},".M.EVBHBHB.XX.ATV.XXX.XXXX.SX.XXX.EUR.IS.N.M"]
[{"$f":"\"INN.\"&EIGNIR!$B$3&C2607","v":{"$error":"#N/A"}},{"$f":"'Sundurliðun Hlutabréf'!L8","v":0},".M.EVBHBHB.XX.FJA.XXX.XXXX.SX.XXX.EUR.IS.N.M"]
[{"$f":"\"INN.\"&EIGNIR!$B$3&C2608","v":{"$error":"#N/A"}},{"$f":"'Sundurliðun Hlutabréf'!L9","v":0},".M.EVBHBHB.XX.INN.XXX.XXXX.SX.XXX.EUR.IS.N.M"]
[{"$f":"\"INN.\"&EIGNIR!$B$3&C2609","v":{"$error":"#N/A"}},{"$f":"'Sundurliðun Hlutabréf'!L10","v":0},".M.EVBHBHB.XX.SLI.XXX.XXXX.SX.XXX.EUR.IS.N.M"]
[{"$f":"\"INN.\"&EIGNIR!$B$3&C2610","v":{"$error":"#N/A"}},{"$f":"'Sundurliðun Hlutabréf'!L11","v":0},".M.EVBHBHB.XX.PEN.XXX.XXXX.SX.XXX.EUR.IS.N.M"]
[{"$f":"\"INN.\"&EIGNIR!$B$3&C2611","v":{"$error":"#N/A"}},{"$f":"'Sundurliðun Hlutabréf'!L12","v":0},".M.EVBHBHB.XX.SJO.XXX.XXXX.SX.XXX.EUR.IS.N.M"]
[{"$f":"\"INN.\"&EIGNIR!$B$3&C2612","v":{"$error":"#N/A"}},{"$f":"'Sundurliðun Hlutabréf'!L13","v":0},".M.EVBHBHB.XX.YFT.XXX.XXXX.SX.XXX.EUR.IS.N.M"]
[{"$f":"\"INN.\"&EIGNIR!$B$3&C2613","v":{"$error":"#N/A"}},{"$f":"'Sundurliðun Hlutabréf'!L14","v":0},".M.EVBHBHB.XX.SLY.XXX.XXXX.SX.XXX.EUR.IS.N.M"]
[{"$f":"\"INN.\"&EIGNIR!$B$3&C2614","v":{"$error":"#N/A"}},{"$f":"'Sundurliðun Hlutabréf'!L15","v":0},".M.EVBHBHB.XX.FHL.XXX.XXXX.SX.XXX.EUR.IS.N.M"]
[{"$f":"\"INN.\"&EIGNIR!$B$3&C2615","v":{"$error":"#N/A"}},{"$f":"'Sundurliðun Hlutabréf'!L16","v":0},".M.EVBHBHB.XX.INF.XXX.XXXX.SX.XXX.EUR.IS.N.M"]
[{"$f":"\"INN.\"&EIGNIR!$B$3&C2616","v":{"$error":"#N/A"}},{"$f":"'Sundurliðun Hlutabréf'!L17","v":0},".M.EVBHBHB.XX.TRY.XXX.XXXX.SX.XXX.EUR.IS.N.M"]
[{"$f":"\"INN.\"&EIGNIR!$B$3&C2617","v":{"$error":"#N/A"}},{"$f":"'Sundurliðun Hlutabréf'!L18","v":0},".M.EVBHBHB.XX.LIF.XXX.XXXX.SX.XXX.EUR.IS.N.M"]
[{"$f":"\"INN.\"&EIGNIR!$B$3&C2618","v":{"$error":"#N/A"}},{"$f":"'Sundurliðun Hlutabréf'!L23","v":0},".M.EVBHBHB.XX.NPH.XXX.XXXX.SX.XXX.EUR.IS.N.M"]
[{"$f":"\"INN.\"&EIGNIR!$B$3&C2619","v":{"$error":"#N/A"}},{"$f":"'Sundurliðun Hlutabréf'!L24","v":0},".M.EVBHBHB.XX.ERL.XXX.XXXX.SX.XXX.EUR.IS.N.M"]
[{"$f":"\"INN.\"&EIGNIR!$B$3&C2620","v":{"$error":"#N/A"}},{"$f":"'Sundurliðun Hlutabréf'!L26","v":0},".M.EVBHBHB.XX.ERI.XXX.XXXX.SX.XXX.EUR.IS.N.M"]
[{"$f":"\"INN.\"&EIGNIR!$B$3&C2621","v":{"$error":"#N/A"}},{"$f":"'Sundurliðun Hlutabréf'!L27","v":0},".M.EVBHBHB.XX.ERP.XXX.XXXX.SX.XXX.EUR.IS.N.M"]
[{"$f":"\"INN.\"&EIGNIR!$B$3&C2622","v":{"$error":"#N/A"}},{"$f":"'Sundurliðun Hlutabréf'!L28","v":0},".M.EVBHBHB.XX.ERV.XXX.XXXX.SX.XXX.EUR.IS.N.M"]
[{"$f":"\"INN.\"&EIGNIR!$B$3&C2623","v":{"$error":"#N/A"}},{"$f":"'Sundurliðun Hlutabréf'!L29","v":0},".M.EVBHBHB.XX.ERF.XXX.XXXX.SX.XXX.EUR.IS.N.M"]
[{"$f":"\"INN.\"&EIGNIR!$B$3&C2624","v":{"$error":"#N/A"}},{"$f":"'Sundurliðun Hlutabréf'!L31","v":0},".M.EVBHBHB.XX.ERA.XXX.XXXX.SX.XXX.EUR.IS.N.M"]
[{"$f":"\"INN.\"&EIGNIR!$B$3&C2625","v":{"$error":"#N/A"}},{"$f":"'Sundurliðun Hlutabréf'!L32","v":0},".M.EHHDS$$.XX.$$$.XXX.XXXX.SX.XXX.EUR.IS.N.M"]
[{"$f":"\"INN.\"&EIGNIR!$B$3&C2626","v":{"$error":"#N/A"}},{"$f":"'Sundurliðun Hlutabréf'!L33","v":0},".M.EHHDSHF.XX.$$$.XXX.HLFT.SX.XXX.EUR.IS.N.M"]
[{"$f":"\"INN.\"&EIGNIR!$B$3&C2627","v":{"$error":"#N/A"}},{"$f":"'Sundurliðun Hlutabréf'!L34","v":0},".M.EHHDSHF.XX.ATV.XXX.HLFT.SX.XXX.EUR.IS.N.M"]
[{"$f":"\"INN.\"&EIGNIR!$B$3&C2628","v":{"$error":"#N/A"}},{"$f":"'Sundurliðun Hlutabréf'!L35","v":0},".M.EHHDSHF.XX.FJA.XXX.HLFT.SX.XXX.EUR.IS.N.M"]
[{"$f":"\"INN.\"&EIGNIR!$B$3&C2629","v":{"$error":"#N/A"}},{"$f":"'Sundurliðun Hlutabréf'!L36","v":0},".M.EHHDSHF.XX.INN.XXX.HLFT.SX.XXX.EUR.IS.N.M"]
[{"$f":"\"INN.\"&EIGNIR!$B$3&C2630","v":{"$error":"#N/A"}},{"$f":"'Sundurliðun Hlutabréf'!L37","v":0},".M.EHHDSHF.XX.SLI.XXX.HLFT.SX.XXX.EUR.IS.N.M"]
[{"$f":"\"INN.\"&EIGNIR!$B$3&C2631","v":{"$error":"#N/A"}},{"$f":"'Sundurliðun Hlutabréf'!L38","v":0},".M.EHHDSHF.XX.PEN.XXX.HLFT.SX.XXX.EUR.IS.N.M"]
[{"$f":"\"INN.\"&EIGNIR!$B$3&C2632","v":{"$error":"#N/A"}},{"$f":"'Sundurliðun Hlutabréf'!L39","v":0},".M.EHHDSHF.XX.SJO.XXX.HLFT.SX.XXX.EUR.IS.N.M"]
[{"$f":"\"INN.\"&EIGNIR!$B$3&C2633","v":{"$error":"#N/A"}},{"$f":"'Sundurliðun Hlutabréf'!L40","v":0},".M.EHHDSHF.XX.YFT.XXX.HLFT.SX.XXX.EUR.IS.N.M"]
[{"$f":"\"INN.\"&EIGNIR!$B$3&C2634","v":{"$error":"#N/A"}},{"$f":"'Sundurliðun Hlutabréf'!L41","v":0},".M.EHHDSHF.XX.SLY.XXX.HLFT.SX.XXX.EUR.IS.N.M"]
[{"$f":"\"INN.\"&EIGNIR!$B$3&C2635","v":{"$error":"#N/A"}},{"$f":"'Sundurliðun Hlutabréf'!L42","v":0},".M.EHHDSHF.XX.FLH.XXX.HLFT.SX.XXX.EUR.IS.N.M"]
[{"$f":"\"INN.\"&EIGNIR!$B$3&C2636","v":{"$error":"#N/A"}},{"$f":"'Sundurliðun Hlutabréf'!L43","v":0},".M.EHHDSHF.XX.INF.XXX.HLFT.SX.XXX.EUR.IS.N.M"]
[{"$f":"\"INN.\"&EIGNIR!$B$3&C2637","v":{"$error":"#N/A"}},{"$f":"'Sundurliðun Hlutabréf'!L44","v":0},".M.EHHDSHF.XX.TRY.XXX.HLFT.SX.XXX.EUR.IS.N.M"]
[{"$f":"\"INN.\"&EIGNIR!$B$3&C2638","v":{"$error":"#N/A"}},{"$f":"'Sundurliðun Hlutabréf'!L45","v":0},".M.EHHDSHF.XX.LIF.XXX.HLFT.SX.XXX.EUR.IS.N.M"]
[{"$f":"\"INN.\"&EIGNIR!$B$3&C2639","v":{"$error":"#N/A"}},{"$f":"'Sundurliðun Hlutabréf'!L50","v":0},".M.EHHDSHF.XX.NPH.XXX.HLFT.SX.XXX.EUR.IS.N.M"]
[{"$f":"\"INN.\"&EIGNIR!$B$3&C2640","v":{"$error":"#N/A"}},{"$f":"'Sundurliðun Hlutabréf'!L51","v":0},".M.EHHDSHF.XX.ERL.XXX.HLFT.SX.XXX.EUR.IS.N.M"]
[{"$f":"\"INN.\"&EIGNIR!$B$3&C2641","v":{"$error":"#N/A"}},{"$f":"'Sundurliðun Hlutabréf'!L53","v":0},".M.EHHDSHF.XX.ERI.XXX.HLFT.SX.XXX.EUR.IS.N.M"]
[{"$f":"\"INN.\"&EIGNIR!$B$3&C2642","v":{"$error":"#N/A"}},{"$f":"'Sundurliðun Hlutabréf'!L56","v":0},".M.EHHDSHF.XX.ERF.XXX.HLFT.SX.XXX.EUR.IS.N.M"]
[{"$f":"\"INN.\"&EIGNIR!$B$3&C2643","v":{"$error":"#N/A"}},{"$f":"'Sundurliðun Hlutabréf'!L58","v":0},".M.EHHDSHF.XX.ERA.XXX.HLFT.SX.XXX.EUR.IS.N.M"]
[{"$f":"\"INN.\"&EIGNIR!$B$3&C2644","v":{"$error":"#N/A"}},{"$f":"'Sundurliðun Hlutabréf'!L59","v":0},".M.EHHDSTF.XX.$$$.XXX.TEFT.SX.XXX.EUR.IS.N.M"]
[{"$f":"\"INN.\"&EIGNIR!$B$3&C2645","v":{"$error":"#N/A"}},{"$f":"'Sundurliðun Hlutabréf'!L60","v":0},".M.EHHDSTF.XX.ATV.XXX.TEFT.SX.XXX.EUR.IS.N.M"]
[{"$f":"\"INN.\"&EIGNIR!$B$3&C2646","v":{"$error":"#N/A"}},{"$f":"'Sundurliðun Hlutabréf'!L61","v":0},".M.EHHDSTF.XX.FJA.XXX.TEFT.SX.XXX.EUR.IS.N.M"]
[{"$f":"\"INN.\"&EIGNIR!$B$3&C2647","v":{"$error":"#N/A"}},{"$f":"'Sundurliðun Hlutabréf'!L62","v":0},".M.EHHDSTF.XX.INN.XXX.TEFT.SX.XXX.EUR.IS.N.M"]
[{"$f":"\"INN.\"&EIGNIR!$B$3&C2648","v":{"$error":"#N/A"}},{"$f":"'Sundurliðun Hlutabréf'!L63","v":0},".M.EHHDSTF.XX.SLI.XXX.TEFT.SX.XXX.EUR.IS.N.M"]
[{"$f":"\"INN.\"&EIGNIR!$B$3&C2649","v":{"$error":"#N/A"}},{"$f":"'Sundurliðun Hlutabréf'!L64","v":0},".M.EHHDSTF.XX.PEN.XXX.TEFT.SX.XXX.EUR.IS.N.M"]
[{"$f":"\"INN.\"&EIGNIR!$B$3&C2650","v":{"$error":"#N/A"}},{"$f":"'Sundurliðun Hlutabréf'!L65","v":0},".M.EHHDSTF.XX.SJO.XXX.TEFT.SX.XXX.EUR.IS.N.M"]
[{"$f":"\"INN.\"&EIGNIR!$B$3&C2651","v":{"$error":"#N/A"}},{"$f":"'Sundurliðun Hlutabréf'!L66","v":0},".M.EHHDSTF.XX.YFT.XXX.TEFT.SX.XXX.EUR.IS.N.M"]
[{"$f":"\"INN.\"&EIGNIR!$B$3&C2652","v":{"$error":"#N/A"}},{"$f":"'Sundurliðun Hlutabréf'!L67","v":0},".M.EHHDSTF.XX.SLY.XXX.TEFT.SX.XXX.EUR.IS.N.M"]
[{"$f":"\"INN.\"&EIGNIR!$B$3&C2653","v":{"$error":"#N/A"}},{"$f":"'Sundurliðun Hlutabréf'!L68","v":0},".M.EHHDSTF.XX.FLH.XXX.TEFT.SX.XXX.EUR.IS.N.M"]
[{"$f":"\"INN.\"&EIGNIR!$B$3&C2654","v":{"$error":"#N/A"}},{"$f":"'Sundurliðun Hlutabréf'!L69","v":0},".M.EHHDSTF.XX.INF.XXX.TEFT.SX.XXX.EUR.IS.N.M"]
[{"$f":"\"INN.\"&EIGNIR!$B$3&C2655","v":{"$error":"#N/A"}},{"$f":"'Sundurliðun Hlutabréf'!L70","v":0},".M.EHHDSTF.XX.TRY.XXX.TEFT.SX.XXX.EUR.IS.N.M"]
[{"$f":"\"INN.\"&EIGNIR!$B$3&C2656","v":{"$error":"#N/A"}},{"$f":"'Sundurliðun Hlutabréf'!L71","v":0},".M.EHHDSTF.XX.LIF.XXX.TEFT.SX.XXX.EUR.IS.N.M"]
[{"$f":"\"INN.\"&EIGNIR!$B$3&C2657","v":{"$error":"#N/A"}},{"$f":"'Sundurliðun Hlutabréf'!L76","v":0},".M.EHHDSTF.XX.NPH.XXX.TEFT.SX.XXX.EUR.IS.N.M"]
[{"$f":"\"INN.\"&EIGNIR!$B$3&C2658","v":{"$error":"#N/A"}},{"$f":"'Sundurliðun Hlutabréf'!L77","v":0},".M.EHHDSTF.XX.ERL.XXX.TEFT.SX.XXX.EUR.IS.N.M"]
[{"$f":"\"INN.\"&EIGNIR!$B$3&C2659","v":{"$error":"#N/A"}},{"$f":"'Sundurliðun Hlutabréf'!L79","v":0},".M.EHHDSTF.XX.ERI.XXX.TEFT.SX.XXX.EUR.IS.N.M"]
[{"$f":"\"INN.\"&EIGNIR!$B$3&C2660","v":{"$error":"#N/A"}},{"$f":"'Sundurliðun Hlutabréf'!L82","v":0},".M.EHHDSTF.XX.ERF.XXX.TEFT.SX.XXX.EUR.IS.N.M"]
[{"$f":"\"INN.\"&EIGNIR!$B$3&C2661","v":{"$error":"#N/A"}},{"$f":"'Sundurliðun Hlutabréf'!L84","v":0},".M.EHHDSTF.XX.ERA.XXX.TEFT.SX.XXX.EUR.IS.N.M"]
[{"$f":"\"INN.\"&EIGNIR!$B$3&C2662","v":{"$error":"#N/A"}},{"$f":"'Sundurliðun Hlutabréf'!M5","v":0},".M.EVBHB$$.XX.$$$.XXX.XXXX.SX.XXX.USD.IS.N.M","//Sundurliðun hlutabréf USD"]
[{"$f":"\"INN.\"&EIGNIR!$B$3&C2663","v":{"$error":"#N/A"}},{"$f":"'Sundurliðun Hlutabréf'!M6","v":0},".M.EVBHBHB.XX.$$$.XXX.XXXX.SX.XXX.USD.IS.N.M"]
[{"$f":"\"INN.\"&EIGNIR!$B$3&C2664","v":{"$error":"#N/A"}},{"$f":"'Sundurliðun Hlutabréf'!M7","v":0},".M.EVBHBHB.XX.ATV.XXX.XXXX.SX.XXX.USD.IS.N.M"]
[{"$f":"\"INN.\"&EIGNIR!$B$3&C2665","v":{"$error":"#N/A"}},{"$f":"'Sundurliðun Hlutabréf'!M8","v":0},".M.EVBHBHB.XX.FJA.XXX.XXXX.SX.XXX.USD.IS.N.M"]
[{"$f":"\"INN.\"&EIGNIR!$B$3&C2666","v":{"$error":"#N/A"}},{"$f":"'Sundurliðun Hlutabréf'!M9","v":0},".M.EVBHBHB.XX.INN.XXX.XXXX.SX.XXX.USD.IS.N.M"]
[{"$f":"\"INN.\"&EIGNIR!$B$3&C2667","v":{"$error":"#N/A"}},{"$f":"'Sundurliðun Hlutabréf'!M10","v":0},".M.EVBHBHB.XX.SLI.XXX.XXXX.SX.XXX.USD.IS.N.M"]
[{"$f":"\"INN.\"&EIGNIR!$B$3&C2668","v":{"$error":"#N/A"}},{"$f":"'Sundurliðun Hlutabréf'!M11","v":0},".M.EVBHBHB.XX.PEN.XXX.XXXX.SX.XXX.USD.IS.N.M"]
[{"$f":"\"INN.\"&EIGNIR!$B$3&C2669","v":{"$error":"#N/A"}},{"$f":"'Sundurliðun Hlutabréf'!M12","v":0},".M.EVBHBHB.XX.SJO.XXX.XXXX.SX.XXX.USD.IS.N.M"]
[{"$f":"\"INN.\"&EIGNIR!$B$3&C2670","v":{"$error":"#N/A"}},{"$f":"'Sundurliðun Hlutabréf'!M13","v":0},".M.EVBHBHB.XX.YFT.XXX.XXXX.SX.XXX.USD.IS.N.M"]
[{"$f":"\"INN.\"&EIGNIR!$B$3&C2671","v":{"$error":"#N/A"}},{"$f":"'Sundurliðun Hlutabréf'!M14","v":0},".M.EVBHBHB.XX.SLY.XXX.XXXX.SX.XXX.USD.IS.N.M"]
[{"$f":"\"INN.\"&EIGNIR!$B$3&C2672","v":{"$error":"#N/A"}},{"$f":"'Sundurliðun Hlutabréf'!M15","v":0},".M.EVBHBHB.XX.FHL.XXX.XXXX.SX.XXX.USD.IS.N.M"]
[{"$f":"\"INN.\"&EIGNIR!$B$3&C2673","v":{"$error":"#N/A"}},{"$f":"'Sundurliðun Hlutabréf'!M16","v":0},".M.EVBHBHB.XX.INF.XXX.XXXX.SX.XXX.USD.IS.N.M"]
[{"$f":"\"INN.\"&EIGNIR!$B$3&C2674","v":{"$error":"#N/A"}},{"$f":"'Sundurliðun Hlutabréf'!M17","v":0},".M.EVBHBHB.XX.TRY.XXX.XXXX.SX.XXX.USD.IS.N.M"]
[{"$f":"\"INN.\"&EIGNIR!$B$3&C2675","v":{"$error":"#N/A"}},{"$f":"'Sundurliðun Hlutabréf'!M18","v":0},".M.EVBHBHB.XX.LIF.XXX.XXXX.SX.XXX.USD.IS.N.M"]
[{"$f":"\"INN.\"&EIGNIR!$B$3&C2676","v":{"$error":"#N/A"}},{"$f":"'Sundurliðun Hlutabréf'!M23","v":0},".M.EVBHBHB.XX.NPH.XXX.XXXX.SX.XXX.USD.IS.N.M"]
[{"$f":"\"INN.\"&EIGNIR!$B$3&C2677","v":{"$error":"#N/A"}},{"$f":"'Sundurliðun Hlutabréf'!M24","v":0},".M.EVBHBHB.XX.ERL.XXX.XXXX.SX.XXX.USD.IS.N.M"]
[{"$f":"\"INN.\"&EIGNIR!$B$3&C2678","v":{"$error":"#N/A"}},{"$f":"'Sundurliðun Hlutabréf'!M26","v":0},".M.EVBHBHB.XX.ERI.XXX.XXXX.SX.XXX.USD.IS.N.M"]
[{"$f":"\"INN.\"&EIGNIR!$B$3&C2679","v":{"$error":"#N/A"}},{"$f":"'Sundurliðun Hlutabréf'!M27","v":0},".M.EVBHBHB.XX.ERP.XXX.XXXX.SX.XXX.USD.IS.N.M"]
[{"$f":"\"INN.\"&EIGNIR!$B$3&C2680","v":{"$error":"#N/A"}},{"$f":"'Sundurliðun Hlutabréf'!M28","v":0},".M.EVBHBHB.XX.ERV.XXX.XXXX.SX.XXX.USD.IS.N.M"]
[{"$f":"\"INN.\"&EIGNIR!$B$3&C2681","v":{"$error":"#N/A"}},{"$f":"'Sundurliðun Hlutabréf'!M29","v":0},".M.EVBHBHB.XX.ERF.XXX.XXXX.SX.XXX.USD.IS.N.M"]
[{"$f":"\"INN.\"&EIGNIR!$B$3&C2682","v":{"$error":"#N/A"}},{"$f":"'Sundurliðun Hlutabréf'!M31","v":0},".M.EVBHBHB.XX.ERA.XXX.XXXX.SX.XXX.USD.IS.N.M"]
[{"$f":"\"INN.\"&EIGNIR!$B$3&C2683","v":{"$error":"#N/A"}},{"$f":"'Sundurliðun Hlutabréf'!M32","v":0},".M.EHHDS$$.XX.$$$.XXX.XXXX.SX.XXX.USD.IS.N.M"]
[{"$f":"\"INN.\"&EIGNIR!$B$3&C2684","v":{"$error":"#N/A"}},{"$f":"'Sundurliðun Hlutabréf'!M33","v":0},".M.EHHDSHF.XX.$$$.XXX.HLFT.SX.XXX.USD.IS.N.M"]
[{"$f":"\"INN.\"&EIGNIR!$B$3&C2685","v":{"$error":"#N/A"}},{"$f":"'Sundurliðun Hlutabréf'!M34","v":0},".M.EHHDSHF.XX.ATV.XXX.HLFT.SX.XXX.USD.IS.N.M"]
[{"$f":"\"INN.\"&EIGNIR!$B$3&C2686","v":{"$error":"#N/A"}},{"$f":"'Sundurliðun Hlutabréf'!M35","v":0},".M.EHHDSHF.XX.FJA.XXX.HLFT.SX.XXX.USD.IS.N.M"]
[{"$f":"\"INN.\"&EIGNIR!$B$3&C2687","v":{"$error":"#N/A"}},{"$f":"'Sundurliðun Hlutabréf'!M36","v":0},".M.EHHDSHF.XX.INN.XXX.HLFT.SX.XXX.USD.IS.N.M"]
[{"$f":"\"INN.\"&EIGNIR!$B$3&C2688","v":{"$error":"#N/A"}},{"$f":"'Sundurliðun Hlutabréf'!M37","v":0},".M.EHHDSHF.XX.SLI.XXX.HLFT.SX.XXX.USD.IS.N.M"]
[{"$f":"\"INN.\"&EIGNIR!$B$3&C2689","v":{"$error":"#N/A"}},{"$f":"'Sundurliðun Hlutabréf'!M38","v":0},".M.EHHDSHF.XX.PEN.XXX.HLFT.SX.XXX.USD.IS.N.M"]
[{"$f":"\"INN.\"&EIGNIR!$B$3&C2690","v":{"$error":"#N/A"}},{"$f":"'Sundurliðun Hlutabréf'!M39","v":0},".M.EHHDSHF.XX.SJO.XXX.HLFT.SX.XXX.USD.IS.N.M"]
[{"$f":"\"INN.\"&EIGNIR!$B$3&C2691","v":{"$error":"#N/A"}},{"$f":"'Sundurliðun Hlutabréf'!M40","v":0},".M.EHHDSHF.XX.YFT.XXX.HLFT.SX.XXX.USD.IS.N.M"]
[{"$f":"\"INN.\"&EIGNIR!$B$3&C2692","v":{"$error":"#N/A"}},{"$f":"'Sundurliðun Hlutabréf'!M41","v":0},".M.EHHDSHF.XX.SLY.XXX.HLFT.SX.XXX.USD.IS.N.M"]
[{"$f":"\"INN.\"&EIGNIR!$B$3&C2693","v":{"$error":"#N/A"}},{"$f":"'Sundurliðun Hlutabréf'!M42","v":0},".M.EHHDSHF.XX.FLH.XXX.HLFT.SX.XXX.USD.IS.N.M"]
[{"$f":"\"INN.\"&EIGNIR!$B$3&C2694","v":{"$error":"#N/A"}},{"$f":"'Sundurliðun Hlutabréf'!M43","v":0},".M.EHHDSHF.XX.INF.XXX.HLFT.SX.XXX.USD.IS.N.M"]
[{"$f":"\"INN.\"&EIGNIR!$B$3&C2695","v":{"$error":"#N/A"}},{"$f":"'Sundurliðun Hlutabréf'!M44","v":0},".M.EHHDSHF.XX.TRY.XXX.HLFT.SX.XXX.USD.IS.N.M"]
[{"$f":"\"INN.\"&EIGNIR!$B$3&C2696","v":{"$error":"#N/A"}},{"$f":"'Sundurliðun Hlutabréf'!M45","v":0},".M.EHHDSHF.XX.LIF.XXX.HLFT.SX.XXX.USD.IS.N.M"]
[{"$f":"\"INN.\"&EIGNIR!$B$3&C2697","v":{"$error":"#N/A"}},{"$f":"'Sundurliðun Hlutabréf'!M50","v":0},".M.EHHDSHF.XX.NPH.XXX.HLFT.SX.XXX.USD.IS.N.M"]
[{"$f":"\"INN.\"&EIGNIR!$B$3&C2698","v":{"$error":"#N/A"}},{"$f":"'Sundurliðun Hlutabréf'!M51","v":0},".M.EHHDSHF.XX.ERL.XXX.HLFT.SX.XXX.USD.IS.N.M"]
[{"$f":"\"INN.\"&EIGNIR!$B$3&C2699","v":{"$error":"#N/A"}},{"$f":"'Sundurliðun Hlutabréf'!M53","v":0},".M.EHHDSHF.XX.ERI.XXX.HLFT.SX.XXX.USD.IS.N.M"]
[{"$f":"\"INN.\"&EIGNIR!$B$3&C2700","v":{"$error":"#N/A"}},{"$f":"'Sundurliðun Hlutabréf'!M56","v":0},".M.EHHDSHF.XX.ERF.XXX.HLFT.SX.XXX.USD.IS.N.M"]
[{"$f":"\"INN.\"&EIGNIR!$B$3&C2701","v":{"$error":"#N/A"}},{"$f":"'Sundurliðun Hlutabréf'!M58","v":0},".M.EHHDSHF.XX.ERA.XXX.HLFT.SX.XXX.USD.IS.N.M"]
[{"$f":"\"INN.\"&EIGNIR!$B$3&C2702","v":{"$error":"#N/A"}},{"$f":"'Sundurliðun Hlutabréf'!M59","v":0},".M.EHHDSTF.XX.$$$.XXX.TEFT.SX.XXX.USD.IS.N.M"]
[{"$f":"\"INN.\"&EIGNIR!$B$3&C2703","v":{"$error":"#N/A"}},{"$f":"'Sundurliðun Hlutabréf'!M60","v":0},".M.EHHDSTF.XX.ATV.XXX.TEFT.SX.XXX.USD.IS.N.M"]
[{"$f":"\"INN.\"&EIGNIR!$B$3&C2704","v":{"$error":"#N/A"}},{"$f":"'Sundurliðun Hlutabréf'!M61","v":0},".M.EHHDSTF.XX.FJA.XXX.TEFT.SX.XXX.USD.IS.N.M"]
[{"$f":"\"INN.\"&EIGNIR!$B$3&C2705","v":{"$error":"#N/A"}},{"$f":"'Sundurliðun Hlutabréf'!M62","v":0},".M.EHHDSTF.XX.INN.XXX.TEFT.SX.XXX.USD.IS.N.M"]
[{"$f":"\"INN.\"&EIGNIR!$B$3&C2706","v":{"$error":"#N/A"}},{"$f":"'Sundurliðun Hlutabréf'!M63","v":0},".M.EHHDSTF.XX.SLI.XXX.TEFT.SX.XXX.USD.IS.N.M"]
[{"$f":"\"INN.\"&EIGNIR!$B$3&C2707","v":{"$error":"#N/A"}},{"$f":"'Sundurliðun Hlutabréf'!M64","v":0},".M.EHHDSTF.XX.PEN.XXX.TEFT.SX.XXX.USD.IS.N.M"]
[{"$f":"\"INN.\"&EIGNIR!$B$3&C2708","v":{"$error":"#N/A"}},{"$f":"'Sundurliðun Hlutabréf'!M65","v":0},".M.EHHDSTF.XX.SJO.XXX.TEFT.SX.XXX.USD.IS.N.M"]
[{"$f":"\"INN.\"&EIGNIR!$B$3&C2709","v":{"$error":"#N/A"}},{"$f":"'Sundurliðun Hlutabréf'!M66","v":0},".M.EHHDSTF.XX.YFT.XXX.TEFT.SX.XXX.USD.IS.N.M"]
[{"$f":"\"INN.\"&EIGNIR!$B$3&C2710","v":{"$error":"#N/A"}},{"$f":"'Sundurliðun Hlutabréf'!M67","v":0},".M.EHHDSTF.XX.SLY.XXX.TEFT.SX.XXX.USD.IS.N.M"]
[{"$f":"\"INN.\"&EIGNIR!$B$3&C2711","v":{"$error":"#N/A"}},{"$f":"'Sundurliðun Hlutabréf'!M68","v":0},".M.EHHDSTF.XX.FLH.XXX.TEFT.SX.XXX.USD.IS.N.M"]
[{"$f":"\"INN.\"&EIGNIR!$B$3&C2712","v":{"$error":"#N/A"}},{"$f":"'Sundurliðun Hlutabréf'!M69","v":0},".M.EHHDSTF.XX.INF.XXX.TEFT.SX.XXX.USD.IS.N.M"]
[{"$f":"\"INN.\"&EIGNIR!$B$3&C2713","v":{"$error":"#N/A"}},{"$f":"'Sundurliðun Hlutabréf'!M70","v":0},".M.EHHDSTF.XX.TRY.XXX.TEFT.SX.XXX.USD.IS.N.M"]
[{"$f":"\"INN.\"&EIGNIR!$B$3&C2714","v":{"$error":"#N/A"}},{"$f":"'Sundurliðun Hlutabréf'!M71","v":0},".M.EHHDSTF.XX.LIF.XXX.TEFT.SX.XXX.USD.IS.N.M"]
[{"$f":"\"INN.\"&EIGNIR!$B$3&C2715","v":{"$error":"#N/A"}},{"$f":"'Sundurliðun Hlutabréf'!M76","v":0},".M.EHHDSTF.XX.NPH.XXX.TEFT.SX.XXX.USD.IS.N.M"]
[{"$f":"\"INN.\"&EIGNIR!$B$3&C2716","v":{"$error":"#N/A"}},{"$f":"'Sundurliðun Hlutabréf'!M77","v":0},".M.EHHDSTF.XX.ERL.XXX.TEFT.SX.XXX.USD.IS.N.M"]
[{"$f":"\"INN.\"&EIGNIR!$B$3&C2717","v":{"$error":"#N/A"}},{"$f":"'Sundurliðun Hlutabréf'!M79","v":0},".M.EHHDSTF.XX.ERI.XXX.TEFT.SX.XXX.USD.IS.N.M"]
[{"$f":"\"INN.\"&EIGNIR!$B$3&C2718","v":{"$error":"#N/A"}},{"$f":"'Sundurliðun Hlutabréf'!M82","v":0},".M.EHHDSTF.XX.ERF.XXX.TEFT.SX.XXX.USD.IS.N.M"]
[{"$f":"\"INN.\"&EIGNIR!$B$3&C2719","v":{"$error":"#N/A"}},{"$f":"'Sundurliðun Hlutabréf'!M84","v":0},".M.EHHDSTF.XX.ERA.XXX.TEFT.SX.XXX.USD.IS.N.M"]
[{"$f":"\"INN.\"&EIGNIR!$B$3&C2720","v":{"$error":"#N/A"}},{"$f":"'Sundurliðun Hlutabréf'!N5","v":0},".M.EVBHB$$.XX.$$$.XXX.XXXX.SX.XXX.GBP.IS.N.M","//Sundurliðun hlutabréf GBP"]
[{"$f":"\"INN.\"&EIGNIR!$B$3&C2721","v":{"$error":"#N/A"}},{"$f":"'Sundurliðun Hlutabréf'!N6","v":0},".M.EVBHBHB.XX.$$$.XXX.XXXX.SX.XXX.GBP.IS.N.M"]
[{"$f":"\"INN.\"&EIGNIR!$B$3&C2722","v":{"$error":"#N/A"}},{"$f":"'Sundurliðun Hlutabréf'!N7","v":0},".M.EVBHBHB.XX.ATV.XXX.XXXX.SX.XXX.GBP.IS.N.M"]
[{"$f":"\"INN.\"&EIGNIR!$B$3&C2723","v":{"$error":"#N/A"}},{"$f":"'Sundurliðun Hlutabréf'!N8","v":0},".M.EVBHBHB.XX.FJA.XXX.XXXX.SX.XXX.GBP.IS.N.M"]
[{"$f":"\"INN.\"&EIGNIR!$B$3&C2724","v":{"$error":"#N/A"}},{"$f":"'Sundurliðun Hlutabréf'!N9","v":0},".M.EVBHBHB.XX.INN.XXX.XXXX.SX.XXX.GBP.IS.N.M"]
[{"$f":"\"INN.\"&EIGNIR!$B$3&C2725","v":{"$error":"#N/A"}},{"$f":"'Sundurliðun Hlutabréf'!N10","v":0},".M.EVBHBHB.XX.SLI.XXX.XXXX.SX.XXX.GBP.IS.N.M"]
[{"$f":"\"INN.\"&EIGNIR!$B$3&C2726","v":{"$error":"#N/A"}},{"$f":"'Sundurliðun Hlutabréf'!N11","v":0},".M.EVBHBHB.XX.PEN.XXX.XXXX.SX.XXX.GBP.IS.N.M"]
[{"$f":"\"INN.\"&EIGNIR!$B$3&C2727","v":{"$error":"#N/A"}},{"$f":"'Sundurliðun Hlutabréf'!N12","v":0},".M.EVBHBHB.XX.SJO.XXX.XXXX.SX.XXX.GBP.IS.N.M"]
[{"$f":"\"INN.\"&EIGNIR!$B$3&C2728","v":{"$error":"#N/A"}},{"$f":"'Sundurliðun Hlutabréf'!N13","v":0},".M.EVBHBHB.XX.YFT.XXX.XXXX.SX.XXX.GBP.IS.N.M"]
[{"$f":"\"INN.\"&EIGNIR!$B$3&C2729","v":{"$error":"#N/A"}},{"$f":"'Sundurliðun Hlutabréf'!N14","v":0},".M.EVBHBHB.XX.SLY.XXX.XXXX.SX.XXX.GBP.IS.N.M"]
[{"$f":"\"INN.\"&EIGNIR!$B$3&C2730","v":{"$error":"#N/A"}},{"$f":"'Sundurliðun Hlutabréf'!N15","v":0},".M.EVBHBHB.XX.FHL.XXX.XXXX.SX.XXX.GBP.IS.N.M"]
[{"$f":"\"INN.\"&EIGNIR!$B$3&C2731","v":{"$error":"#N/A"}},{"$f":"'Sundurliðun Hlutabréf'!N16","v":0},".M.EVBHBHB.XX.INF.XXX.XXXX.SX.XXX.GBP.IS.N.M"]
[{"$f":"\"INN.\"&EIGNIR!$B$3&C2732","v":{"$error":"#N/A"}},{"$f":"'Sundurliðun Hlutabréf'!N17","v":0},".M.EVBHBHB.XX.TRY.XXX.XXXX.SX.XXX.GBP.IS.N.M"]
[{"$f":"\"INN.\"&EIGNIR!$B$3&C2733","v":{"$error":"#N/A"}},{"$f":"'Sundurliðun Hlutabréf'!N18","v":0},".M.EVBHBHB.XX.LIF.XXX.XXXX.SX.XXX.GBP.IS.N.M"]
[{"$f":"\"INN.\"&EIGNIR!$B$3&C2734","v":{"$error":"#N/A"}},{"$f":"'Sundurliðun Hlutabréf'!N23","v":0},".M.EVBHBHB.XX.NPH.XXX.XXXX.SX.XXX.GBP.IS.N.M"]
[{"$f":"\"INN.\"&EIGNIR!$B$3&C2735","v":{"$error":"#N/A"}},{"$f":"'Sundurliðun Hlutabréf'!N24","v":0},".M.EVBHBHB.XX.ERL.XXX.XXXX.SX.XXX.GBP.IS.N.M"]
[{"$f":"\"INN.\"&EIGNIR!$B$3&C2736","v":{"$error":"#N/A"}},{"$f":"'Sundurliðun Hlutabréf'!N26","v":0},".M.EVBHBHB.XX.ERI.XXX.XXXX.SX.XXX.GBP.IS.N.M"]
[{"$f":"\"INN.\"&EIGNIR!$B$3&C2737","v":{"$error":"#N/A"}},{"$f":"'Sundurliðun Hlutabréf'!N27","v":0},".M.EVBHBHB.XX.ERP.XXX.XXXX.SX.XXX.GBP.IS.N.M"]
[{"$f":"\"INN.\"&EIGNIR!$B$3&C2738","v":{"$error":"#N/A"}},{"$f":"'Sundurliðun Hlutabréf'!N28","v":0},".M.EVBHBHB.XX.ERV.XXX.XXXX.SX.XXX.GBP.IS.N.M"]
[{"$f":"\"INN.\"&EIGNIR!$B$3&C2739","v":{"$error":"#N/A"}},{"$f":"'Sundurliðun Hlutabréf'!N29","v":0},".M.EVBHBHB.XX.ERF.XXX.XXXX.SX.XXX.GBP.IS.N.M"]
[{"$f":"\"INN.\"&EIGNIR!$B$3&C2740","v":{"$error":"#N/A"}},{"$f":"'Sundurliðun Hlutabréf'!N31","v":0},".M.EVBHBHB.XX.ERA.XXX.XXXX.SX.XXX.GBP.IS.N.M"]
[{"$f":"\"INN.\"&EIGNIR!$B$3&C2741","v":{"$error":"#N/A"}},{"$f":"'Sundurliðun Hlutabréf'!N32","v":0},".M.EHHDS$$.XX.$$$.XXX.XXXX.SX.XXX.GBP.IS.N.M"]
[{"$f":"\"INN.\"&EIGNIR!$B$3&C2742","v":{"$error":"#N/A"}},{"$f":"'Sundurliðun Hlutabréf'!N33","v":0},".M.EHHDSHF.XX.$$$.XXX.HLFT.SX.XXX.GBP.IS.N.M"]
[{"$f":"\"INN.\"&EIGNIR!$B$3&C2743","v":{"$error":"#N/A"}},{"$f":"'Sundurliðun Hlutabréf'!N34","v":0},".M.EHHDSHF.XX.ATV.XXX.HLFT.SX.XXX.GBP.IS.N.M"]
[{"$f":"\"INN.\"&EIGNIR!$B$3&C2744","v":{"$error":"#N/A"}},{"$f":"'Sundurliðun Hlutabréf'!N35","v":0},".M.EHHDSHF.XX.FJA.XXX.HLFT.SX.XXX.GBP.IS.N.M"]
[{"$f":"\"INN.\"&EIGNIR!$B$3&C2745","v":{"$error":"#N/A"}},{"$f":"'Sundurliðun Hlutabréf'!N36","v":0},".M.EHHDSHF.XX.INN.XXX.HLFT.SX.XXX.GBP.IS.N.M"]
[{"$f":"\"INN.\"&EIGNIR!$B$3&C2746","v":{"$error":"#N/A"}},{"$f":"'Sundurliðun Hlutabréf'!N37","v":0},".M.EHHDSHF.XX.SLI.XXX.HLFT.SX.XXX.GBP.IS.N.M"]
[{"$f":"\"INN.\"&EIGNIR!$B$3&C2747","v":{"$error":"#N/A"}},{"$f":"'Sundurliðun Hlutabréf'!N38","v":0},".M.EHHDSHF.XX.PEN.XXX.HLFT.SX.XXX.GBP.IS.N.M"]
[{"$f":"\"INN.\"&EIGNIR!$B$3&C2748","v":{"$error":"#N/A"}},{"$f":"'Sundurliðun Hlutabréf'!N39","v":0},".M.EHHDSHF.XX.SJO.XXX.HLFT.SX.XXX.GBP.IS.N.M"]
[{"$f":"\"INN.\"&EIGNIR!$B$3&C2749","v":{"$error":"#N/A"}},{"$f":"'Sundurliðun Hlutabréf'!N40","v":0},".M.EHHDSHF.XX.YFT.XXX.HLFT.SX.XXX.GBP.IS.N.M"]
[{"$f":"\"INN.\"&EIGNIR!$B$3&C2750","v":{"$error":"#N/A"}},{"$f":"'Sundurliðun Hlutabréf'!N41","v":0},".M.EHHDSHF.XX.SLY.XXX.HLFT.SX.XXX.GBP.IS.N.M"]
[{"$f":"\"INN.\"&EIGNIR!$B$3&C2751","v":{"$error":"#N/A"}},{"$f":"'Sundurliðun Hlutabréf'!N42","v":0},".M.EHHDSHF.XX.FLH.XXX.HLFT.SX.XXX.GBP.IS.N.M"]
[{"$f":"\"INN.\"&EIGNIR!$B$3&C2752","v":{"$error":"#N/A"}},{"$f":"'Sundurliðun Hlutabréf'!N43","v":0},".M.EHHDSHF.XX.INF.XXX.HLFT.SX.XXX.GBP.IS.N.M"]
[{"$f":"\"INN.\"&EIGNIR!$B$3&C2753","v":{"$error":"#N/A"}},{"$f":"'Sundurliðun Hlutabréf'!N44","v":0},".M.EHHDSHF.XX.TRY.XXX.HLFT.SX.XXX.GBP.IS.N.M"]
[{"$f":"\"INN.\"&EIGNIR!$B$3&C2754","v":{"$error":"#N/A"}},{"$f":"'Sundurliðun Hlutabréf'!N45","v":0},".M.EHHDSHF.XX.LIF.XXX.HLFT.SX.XXX.GBP.IS.N.M"]
[{"$f":"\"INN.\"&EIGNIR!$B$3&C2755","v":{"$error":"#N/A"}},{"$f":"'Sundurliðun Hlutabréf'!N50","v":0},".M.EHHDSHF.XX.NPH.XXX.HLFT.SX.XXX.GBP.IS.N.M"]
[{"$f":"\"INN.\"&EIGNIR!$B$3&C2756","v":{"$error":"#N/A"}},{"$f":"'Sundurliðun Hlutabréf'!N51","v":0},".M.EHHDSHF.XX.ERL.XXX.HLFT.SX.XXX.GBP.IS.N.M"]
[{"$f":"\"INN.\"&EIGNIR!$B$3&C2757","v":{"$error":"#N/A"}},{"$f":"'Sundurliðun Hlutabréf'!N53","v":0},".M.EHHDSHF.XX.ERI.XXX.HLFT.SX.XXX.GBP.IS.N.M"]
[{"$f":"\"INN.\"&EIGNIR!$B$3&C2758","v":{"$error":"#N/A"}},{"$f":"'Sundurliðun Hlutabréf'!N56","v":0},".M.EHHDSHF.XX.ERF.XXX.HLFT.SX.XXX.GBP.IS.N.M"]
[{"$f":"\"INN.\"&EIGNIR!$B$3&C2759","v":{"$error":"#N/A"}},{"$f":"'Sundurliðun Hlutabréf'!N58","v":0},".M.EHHDSHF.XX.ERA.XXX.HLFT.SX.XXX.GBP.IS.N.M"]
[{"$f":"\"INN.\"&EIGNIR!$B$3&C2760","v":{"$error":"#N/A"}},{"$f":"'Sundurliðun Hlutabréf'!N59","v":0},".M.EHHDSTF.XX.$$$.XXX.TEFT.SX.XXX.GBP.IS.N.M"]
[{"$f":"\"INN.\"&EIGNIR!$B$3&C2761","v":{"$error":"#N/A"}},{"$f":"'Sundurliðun Hlutabréf'!N60","v":0},".M.EHHDSTF.XX.ATV.XXX.TEFT.SX.XXX.GBP.IS.N.M"]
[{"$f":"\"INN.\"&EIGNIR!$B$3&C2762","v":{"$error":"#N/A"}},{"$f":"'Sundurliðun Hlutabréf'!N61","v":0},".M.EHHDSTF.XX.FJA.XXX.TEFT.SX.XXX.GBP.IS.N.M"]
[{"$f":"\"INN.\"&EIGNIR!$B$3&C2763","v":{"$error":"#N/A"}},{"$f":"'Sundurliðun Hlutabréf'!N62","v":0},".M.EHHDSTF.XX.INN.XXX.TEFT.SX.XXX.GBP.IS.N.M"]
[{"$f":"\"INN.\"&EIGNIR!$B$3&C2764","v":{"$error":"#N/A"}},{"$f":"'Sundurliðun Hlutabréf'!N63","v":0},".M.EHHDSTF.XX.SLI.XXX.TEFT.SX.XXX.GBP.IS.N.M"]
[{"$f":"\"INN.\"&EIGNIR!$B$3&C2765","v":{"$error":"#N/A"}},{"$f":"'Sundurliðun Hlutabréf'!N64","v":0},".M.EHHDSTF.XX.PEN.XXX.TEFT.SX.XXX.GBP.IS.N.M"]
[{"$f":"\"INN.\"&EIGNIR!$B$3&C2766","v":{"$error":"#N/A"}},{"$f":"'Sundurliðun Hlutabréf'!N65","v":0},".M.EHHDSTF.XX.SJO.XXX.TEFT.SX.XXX.GBP.IS.N.M"]
[{"$f":"\"INN.\"&EIGNIR!$B$3&C2767","v":{"$error":"#N/A"}},{"$f":"'Sundurliðun Hlutabréf'!N66","v":0},".M.EHHDSTF.XX.YFT.XXX.TEFT.SX.XXX.GBP.IS.N.M"]
[{"$f":"\"INN.\"&EIGNIR!$B$3&C2768","v":{"$error":"#N/A"}},{"$f":"'Sundurliðun Hlutabréf'!N67","v":0},".M.EHHDSTF.XX.SLY.XXX.TEFT.SX.XXX.GBP.IS.N.M"]
[{"$f":"\"INN.\"&EIGNIR!$B$3&C2769","v":{"$error":"#N/A"}},{"$f":"'Sundurliðun Hlutabréf'!N68","v":0},".M.EHHDSTF.XX.FLH.XXX.TEFT.SX.XXX.GBP.IS.N.M"]
[{"$f":"\"INN.\"&EIGNIR!$B$3&C2770","v":{"$error":"#N/A"}},{"$f":"'Sundurliðun Hlutabréf'!N69","v":0},".M.EHHDSTF.XX.INF.XXX.TEFT.SX.XXX.GBP.IS.N.M"]
[{"$f":"\"INN.\"&EIGNIR!$B$3&C2771","v":{"$error":"#N/A"}},{"$f":"'Sundurliðun Hlutabréf'!N70","v":0},".M.EHHDSTF.XX.TRY.XXX.TEFT.SX.XXX.GBP.IS.N.M"]
[{"$f":"\"INN.\"&EIGNIR!$B$3&C2772","v":{"$error":"#N/A"}},{"$f":"'Sundurliðun Hlutabréf'!N71","v":0},".M.EHHDSTF.XX.LIF.XXX.TEFT.SX.XXX.GBP.IS.N.M"]
[{"$f":"\"INN.\"&EIGNIR!$B$3&C2773","v":{"$error":"#N/A"}},{"$f":"'Sundurliðun Hlutabréf'!N76","v":0},".M.EHHDSTF.XX.NPH.XXX.TEFT.SX.XXX.GBP.IS.N.M"]
[{"$f":"\"INN.\"&EIGNIR!$B$3&C2774","v":{"$error":"#N/A"}},{"$f":"'Sundurliðun Hlutabréf'!N77","v":0},".M.EHHDSTF.XX.ERL.XXX.TEFT.SX.XXX.GBP.IS.N.M"]
[{"$f":"\"INN.\"&EIGNIR!$B$3&C2775","v":{"$error":"#N/A"}},{"$f":"'Sundurliðun Hlutabréf'!N79","v":0},".M.EHHDSTF.XX.ERI.XXX.TEFT.SX.XXX.GBP.IS.N.M"]
[{"$f":"\"INN.\"&EIGNIR!$B$3&C2776","v":{"$error":"#N/A"}},{"$f":"'Sundurliðun Hlutabréf'!N82","v":0},".M.EHHDSTF.XX.ERF.XXX.TEFT.SX.XXX.GBP.IS.N.M"]
[{"$f":"\"INN.\"&EIGNIR!$B$3&C2777","v":{"$error":"#N/A"}},{"$f":"'Sundurliðun Hlutabréf'!N84","v":0},".M.EHHDSTF.XX.ERA.XXX.TEFT.SX.XXX.GBP.IS.N.M"]
[{"$f":"\"INN.\"&EIGNIR!$B$3&C2778","v":{"$error":"#N/A"}},{"$f":"'Sundurliðun Hlutabréf'!O5","v":0},".M.EVBHB$$.XX.$$$.XXX.XXXX.SX.XXX.JPY.IS.N.M","//Sundurliðun hlutabréf JPY"]
[{"$f":"\"INN.\"&EIGNIR!$B$3&C2779","v":{"$error":"#N/A"}},{"$f":"'Sundurliðun Hlutabréf'!O6","v":0},".M.EVBHBHB.XX.$$$.XXX.XXXX.SX.XXX.JPY.IS.N.M"]
[{"$f":"\"INN.\"&EIGNIR!$B$3&C2780","v":{"$error":"#N/A"}},{"$f":"'Sundurliðun Hlutabréf'!O7","v":0},".M.EVBHBHB.XX.ATV.XXX.XXXX.SX.XXX.JPY.IS.N.M"]
[{"$f":"\"INN.\"&EIGNIR!$B$3&C2781","v":{"$error":"#N/A"}},{"$f":"'Sundurliðun Hlutabréf'!O8","v":0},".M.EVBHBHB.XX.FJA.XXX.XXXX.SX.XXX.JPY.IS.N.M"]
[{"$f":"\"INN.\"&EIGNIR!$B$3&C2782","v":{"$error":"#N/A"}},{"$f":"'Sundurliðun Hlutabréf'!O9","v":0},".M.EVBHBHB.XX.INN.XXX.XXXX.SX.XXX.JPY.IS.N.M"]
[{"$f":"\"INN.\"&EIGNIR!$B$3&C2783","v":{"$error":"#N/A"}},{"$f":"'Sundurliðun Hlutabréf'!O10","v":0},".M.EVBHBHB.XX.SLI.XXX.XXXX.SX.XXX.JPY.IS.N.M"]
[{"$f":"\"INN.\"&EIGNIR!$B$3&C2784","v":{"$error":"#N/A"}},{"$f":"'Sundurliðun Hlutabréf'!O11","v":0},".M.EVBHBHB.XX.PEN.XXX.XXXX.SX.XXX.JPY.IS.N.M"]
[{"$f":"\"INN.\"&EIGNIR!$B$3&C2785","v":{"$error":"#N/A"}},{"$f":"'Sundurliðun Hlutabréf'!O12","v":0},".M.EVBHBHB.XX.SJO.XXX.XXXX.SX.XXX.JPY.IS.N.M"]
[{"$f":"\"INN.\"&EIGNIR!$B$3&C2786","v":{"$error":"#N/A"}},{"$f":"'Sundurliðun Hlutabréf'!O13","v":0},".M.EVBHBHB.XX.YFT.XXX.XXXX.SX.XXX.JPY.IS.N.M"]
[{"$f":"\"INN.\"&EIGNIR!$B$3&C2787","v":{"$error":"#N/A"}},{"$f":"'Sundurliðun Hlutabréf'!O14","v":0},".M.EVBHBHB.XX.SLY.XXX.XXXX.SX.XXX.JPY.IS.N.M"]
[{"$f":"\"INN.\"&EIGNIR!$B$3&C2788","v":{"$error":"#N/A"}},{"$f":"'Sundurliðun Hlutabréf'!O15","v":0},".M.EVBHBHB.XX.FHL.XXX.XXXX.SX.XXX.JPY.IS.N.M"]
[{"$f":"\"INN.\"&EIGNIR!$B$3&C2789","v":{"$error":"#N/A"}},{"$f":"'Sundurliðun Hlutabréf'!O16","v":0},".M.EVBHBHB.XX.INF.XXX.XXXX.SX.XXX.JPY.IS.N.M"]
[{"$f":"\"INN.\"&EIGNIR!$B$3&C2790","v":{"$error":"#N/A"}},{"$f":"'Sundurliðun Hlutabréf'!O17","v":0},".M.EVBHBHB.XX.TRY.XXX.XXXX.SX.XXX.JPY.IS.N.M"]
[{"$f":"\"INN.\"&EIGNIR!$B$3&C2791","v":{"$error":"#N/A"}},{"$f":"'Sundurliðun Hlutabréf'!O18","v":0},".M.EVBHBHB.XX.LIF.XXX.XXXX.SX.XXX.JPY.IS.N.M"]
[{"$f":"\"INN.\"&EIGNIR!$B$3&C2792","v":{"$error":"#N/A"}},{"$f":"'Sundurliðun Hlutabréf'!O23","v":0},".M.EVBHBHB.XX.NPH.XXX.XXXX.SX.XXX.JPY.IS.N.M"]
[{"$f":"\"INN.\"&EIGNIR!$B$3&C2793","v":{"$error":"#N/A"}},{"$f":"'Sundurliðun Hlutabréf'!O24","v":0},".M.EVBHBHB.XX.ERL.XXX.XXXX.SX.XXX.JPY.IS.N.M"]
[{"$f":"\"INN.\"&EIGNIR!$B$3&C2794","v":{"$error":"#N/A"}},{"$f":"'Sundurliðun Hlutabréf'!O26","v":0},".M.EVBHBHB.XX.ERI.XXX.XXXX.SX.XXX.JPY.IS.N.M"]
[{"$f":"\"INN.\"&EIGNIR!$B$3&C2795","v":{"$error":"#N/A"}},{"$f":"'Sundurliðun Hlutabréf'!O27","v":0},".M.EVBHBHB.XX.ERP.XXX.XXXX.SX.XXX.JPY.IS.N.M"]
[{"$f":"\"INN.\"&EIGNIR!$B$3&C2796","v":{"$error":"#N/A"}},{"$f":"'Sundurliðun Hlutabréf'!O28","v":0},".M.EVBHBHB.XX.ERV.XXX.XXXX.SX.XXX.JPY.IS.N.M"]
[{"$f":"\"INN.\"&EIGNIR!$B$3&C2797","v":{"$error":"#N/A"}},{"$f":"'Sundurliðun Hlutabréf'!O29","v":0},".M.EVBHBHB.XX.ERF.XXX.XXXX.SX.XXX.JPY.IS.N.M"]
[{"$f":"\"INN.\"&EIGNIR!$B$3&C2798","v":{"$error":"#N/A"}},{"$f":"'Sundurliðun Hlutabréf'!O31","v":0},".M.EVBHBHB.XX.ERA.XXX.XXXX.SX.XXX.JPY.IS.N.M"]
[{"$f":"\"INN.\"&EIGNIR!$B$3&C2799","v":{"$error":"#N/A"}},{"$f":"'Sundurliðun Hlutabréf'!O32","v":0},".M.EHHDS$$.XX.$$$.XXX.XXXX.SX.XXX.JPY.IS.N.M"]
[{"$f":"\"INN.\"&EIGNIR!$B$3&C2800","v":{"$error":"#N/A"}},{"$f":"'Sundurliðun Hlutabréf'!O33","v":0},".M.EHHDSHF.XX.$$$.XXX.HLFT.SX.XXX.JPY.IS.N.M"]
[{"$f":"\"INN.\"&EIGNIR!$B$3&C2801","v":{"$error":"#N/A"}},{"$f":"'Sundurliðun Hlutabréf'!O34","v":0},".M.EHHDSHF.XX.ATV.XXX.HLFT.SX.XXX.JPY.IS.N.M"]
[{"$f":"\"INN.\"&EIGNIR!$B$3&C2802","v":{"$error":"#N/A"}},{"$f":"'Sundurliðun Hlutabréf'!O35","v":0},".M.EHHDSHF.XX.FJA.XXX.HLFT.SX.XXX.JPY.IS.N.M"]
[{"$f":"\"INN.\"&EIGNIR!$B$3&C2803","v":{"$error":"#N/A"}},{"$f":"'Sundurliðun Hlutabréf'!O36","v":0},".M.EHHDSHF.XX.INN.XXX.HLFT.SX.XXX.JPY.IS.N.M"]
[{"$f":"\"INN.\"&EIGNIR!$B$3&C2804","v":{"$error":"#N/A"}},{"$f":"'Sundurliðun Hlutabréf'!O37","v":0},".M.EHHDSHF.XX.SLI.XXX.HLFT.SX.XXX.JPY.IS.N.M"]
[{"$f":"\"INN.\"&EIGNIR!$B$3&C2805","v":{"$error":"#N/A"}},{"$f":"'Sundurliðun Hlutabréf'!O38","v":0},".M.EHHDSHF.XX.PEN.XXX.HLFT.SX.XXX.JPY.IS.N.M"]
[{"$f":"\"INN.\"&EIGNIR!$B$3&C2806","v":{"$error":"#N/A"}},{"$f":"'Sundurliðun Hlutabréf'!O39","v":0},".M.EHHDSHF.XX.SJO.XXX.HLFT.SX.XXX.JPY.IS.N.M"]
[{"$f":"\"INN.\"&EIGNIR!$B$3&C2807","v":{"$error":"#N/A"}},{"$f":"'Sundurliðun Hlutabréf'!O40","v":0},".M.EHHDSHF.XX.YFT.XXX.HLFT.SX.XXX.JPY.IS.N.M"]
[{"$f":"\"INN.\"&EIGNIR!$B$3&C2808","v":{"$error":"#N/A"}},{"$f":"'Sundurliðun Hlutabréf'!O41","v":0},".M.EHHDSHF.XX.SLY.XXX.HLFT.SX.XXX.JPY.IS.N.M"]
[{"$f":"\"INN.\"&EIGNIR!$B$3&C2809","v":{"$error":"#N/A"}},{"$f":"'Sundurliðun Hlutabréf'!O42","v":0},".M.EHHDSHF.XX.FLH.XXX.HLFT.SX.XXX.JPY.IS.N.M"]
[{"$f":"\"INN.\"&EIGNIR!$B$3&C2810","v":{"$error":"#N/A"}},{"$f":"'Sundurliðun Hlutabréf'!O43","v":0},".M.EHHDSHF.XX.INF.XXX.HLFT.SX.XXX.JPY.IS.N.M"]
[{"$f":"\"INN.\"&EIGNIR!$B$3&C2811","v":{"$error":"#N/A"}},{"$f":"'Sundurliðun Hlutabréf'!O44","v":0},".M.EHHDSHF.XX.TRY.XXX.HLFT.SX.XXX.JPY.IS.N.M"]
[{"$f":"\"INN.\"&EIGNIR!$B$3&C2812","v":{"$error":"#N/A"}},{"$f":"'Sundurliðun Hlutabréf'!O45","v":0},".M.EHHDSHF.XX.LIF.XXX.HLFT.SX.XXX.JPY.IS.N.M"]
[{"$f":"\"INN.\"&EIGNIR!$B$3&C2813","v":{"$error":"#N/A"}},{"$f":"'Sundurliðun Hlutabréf'!O50","v":0},".M.EHHDSHF.XX.NPH.XXX.HLFT.SX.XXX.JPY.IS.N.M"]
[{"$f":"\"INN.\"&EIGNIR!$B$3&C2814","v":{"$error":"#N/A"}},{"$f":"'Sundurliðun Hlutabréf'!O51","v":0},".M.EHHDSHF.XX.ERL.XXX.HLFT.SX.XXX.JPY.IS.N.M"]
[{"$f":"\"INN.\"&EIGNIR!$B$3&C2815","v":{"$error":"#N/A"}},{"$f":"'Sundurliðun Hlutabréf'!O53","v":0},".M.EHHDSHF.XX.ERI.XXX.HLFT.SX.XXX.JPY.IS.N.M"]
[{"$f":"\"INN.\"&EIGNIR!$B$3&C2816","v":{"$error":"#N/A"}},{"$f":"'Sundurliðun Hlutabréf'!O56","v":0},".M.EHHDSHF.XX.ERF.XXX.HLFT.SX.XXX.JPY.IS.N.M"]
[{"$f":"\"INN.\"&EIGNIR!$B$3&C2817","v":{"$error":"#N/A"}},{"$f":"'Sundurliðun Hlutabréf'!O58","v":0},".M.EHHDSHF.XX.ERA.XXX.HLFT.SX.XXX.JPY.IS.N.M"]
[{"$f":"\"INN.\"&EIGNIR!$B$3&C2818","v":{"$error":"#N/A"}},{"$f":"'Sundurliðun Hlutabréf'!O59","v":0},".M.EHHDSTF.XX.$$$.XXX.TEFT.SX.XXX.JPY.IS.N.M"]
[{"$f":"\"INN.\"&EIGNIR!$B$3&C2819","v":{"$error":"#N/A"}},{"$f":"'Sundurliðun Hlutabréf'!O60","v":0},".M.EHHDSTF.XX.ATV.XXX.TEFT.SX.XXX.JPY.IS.N.M"]
[{"$f":"\"INN.\"&EIGNIR!$B$3&C2820","v":{"$error":"#N/A"}},{"$f":"'Sundurliðun Hlutabréf'!O61","v":0},".M.EHHDSTF.XX.FJA.XXX.TEFT.SX.XXX.JPY.IS.N.M"]
[{"$f":"\"INN.\"&EIGNIR!$B$3&C2821","v":{"$error":"#N/A"}},{"$f":"'Sundurliðun Hlutabréf'!O62","v":0},".M.EHHDSTF.XX.INN.XXX.TEFT.SX.XXX.JPY.IS.N.M"]
[{"$f":"\"INN.\"&EIGNIR!$B$3&C2822","v":{"$error":"#N/A"}},{"$f":"'Sundurliðun Hlutabréf'!O63","v":0},".M.EHHDSTF.XX.SLI.XXX.TEFT.SX.XXX.JPY.IS.N.M"]
[{"$f":"\"INN.\"&EIGNIR!$B$3&C2823","v":{"$error":"#N/A"}},{"$f":"'Sundurliðun Hlutabréf'!O64","v":0},".M.EHHDSTF.XX.PEN.XXX.TEFT.SX.XXX.JPY.IS.N.M"]
[{"$f":"\"INN.\"&EIGNIR!$B$3&C2824","v":{"$error":"#N/A"}},{"$f":"'Sundurliðun Hlutabréf'!O65","v":0},".M.EHHDSTF.XX.SJO.XXX.TEFT.SX.XXX.JPY.IS.N.M"]
[{"$f":"\"INN.\"&EIGNIR!$B$3&C2825","v":{"$error":"#N/A"}},{"$f":"'Sundurliðun Hlutabréf'!O66","v":0},".M.EHHDSTF.XX.YFT.XXX.TEFT.SX.XXX.JPY.IS.N.M"]
[{"$f":"\"INN.\"&EIGNIR!$B$3&C2826","v":{"$error":"#N/A"}},{"$f":"'Sundurliðun Hlutabréf'!O67","v":0},".M.EHHDSTF.XX.SLY.XXX.TEFT.SX.XXX.JPY.IS.N.M"]
[{"$f":"\"INN.\"&EIGNIR!$B$3&C2827","v":{"$error":"#N/A"}},{"$f":"'Sundurliðun Hlutabréf'!O68","v":0},".M.EHHDSTF.XX.FLH.XXX.TEFT.SX.XXX.JPY.IS.N.M"]
[{"$f":"\"INN.\"&EIGNIR!$B$3&C2828","v":{"$error":"#N/A"}},{"$f":"'Sundurliðun Hlutabréf'!O69","v":0},".M.EHHDSTF.XX.INF.XXX.TEFT.SX.XXX.JPY.IS.N.M"]
[{"$f":"\"INN.\"&EIGNIR!$B$3&C2829","v":{"$error":"#N/A"}},{"$f":"'Sundurliðun Hlutabréf'!O70","v":0},".M.EHHDSTF.XX.TRY.XXX.TEFT.SX.XXX.JPY.IS.N.M"]
[{"$f":"\"INN.\"&EIGNIR!$B$3&C2830","v":{"$error":"#N/A"}},{"$f":"'Sundurliðun Hlutabréf'!O71","v":0},".M.EHHDSTF.XX.LIF.XXX.TEFT.SX.XXX.JPY.IS.N.M"]
[{"$f":"\"INN.\"&EIGNIR!$B$3&C2831","v":{"$error":"#N/A"}},{"$f":"'Sundurliðun Hlutabréf'!O76","v":0},".M.EHHDSTF.XX.NPH.XXX.TEFT.SX.XXX.JPY.IS.N.M"]
[{"$f":"\"INN.\"&EIGNIR!$B$3&C2832","v":{"$error":"#N/A"}},{"$f":"'Sundurliðun Hlutabréf'!O77","v":0},".M.EHHDSTF.XX.ERL.XXX.TEFT.SX.XXX.JPY.IS.N.M"]
[{"$f":"\"INN.\"&EIGNIR!$B$3&C2833","v":{"$error":"#N/A"}},{"$f":"'Sundurliðun Hlutabréf'!O79","v":0},".M.EHHDSTF.XX.ERI.XXX.TEFT.SX.XXX.JPY.IS.N.M"]
[{"$f":"\"INN.\"&EIGNIR!$B$3&C2834","v":{"$error":"#N/A"}},{"$f":"'Sundurliðun Hlutabréf'!O82","v":0},".M.EHHDSTF.XX.ERF.XXX.TEFT.SX.XXX.JPY.IS.N.M"]
[{"$f":"\"INN.\"&EIGNIR!$B$3&C2835","v":{"$error":"#N/A"}},{"$f":"'Sundurliðun Hlutabréf'!O84","v":0},".M.EHHDSTF.XX.ERA.XXX.TEFT.SX.XXX.JPY.IS.N.M"]
[{"$f":"\"INN.\"&EIGNIR!$B$3&C2836","v":{"$error":"#N/A"}},{"$f":"'Sundurliðun Hlutabréf'!P5","v":0},".M.EVBHB$$.XX.$$$.XXX.XXXX.SX.XXX.DKK.IS.N.M","//Sundurliðun hlutabréf DKK"]
[{"$f":"\"INN.\"&EIGNIR!$B$3&C2837","v":{"$error":"#N/A"}},{"$f":"'Sundurliðun Hlutabréf'!P6","v":0},".M.EVBHBHB.XX.$$$.XXX.XXXX.SX.XXX.DKK.IS.N.M"]
[{"$f":"\"INN.\"&EIGNIR!$B$3&C2838","v":{"$error":"#N/A"}},{"$f":"'Sundurliðun Hlutabréf'!P7","v":0},".M.EVBHBHB.XX.ATV.XXX.XXXX.SX.XXX.DKK.IS.N.M"]
[{"$f":"\"INN.\"&EIGNIR!$B$3&C2839","v":{"$error":"#N/A"}},{"$f":"'Sundurliðun Hlutabréf'!P8","v":0},".M.EVBHBHB.XX.FJA.XXX.XXXX.SX.XXX.DKK.IS.N.M"]
[{"$f":"\"INN.\"&EIGNIR!$B$3&C2840","v":{"$error":"#N/A"}},{"$f":"'Sundurliðun Hlutabréf'!P9","v":0},".M.EVBHBHB.XX.INN.XXX.XXXX.SX.XXX.DKK.IS.N.M"]
[{"$f":"\"INN.\"&EIGNIR!$B$3&C2841","v":{"$error":"#N/A"}},{"$f":"'Sundurliðun Hlutabréf'!P10","v":0},".M.EVBHBHB.XX.SLI.XXX.XXXX.SX.XXX.DKK.IS.N.M"]
[{"$f":"\"INN.\"&EIGNIR!$B$3&C2842","v":{"$error":"#N/A"}},{"$f":"'Sundurliðun Hlutabréf'!P11","v":0},".M.EVBHBHB.XX.PEN.XXX.XXXX.SX.XXX.DKK.IS.N.M"]
[{"$f":"\"INN.\"&EIGNIR!$B$3&C2843","v":{"$error":"#N/A"}},{"$f":"'Sundurliðun Hlutabréf'!P12","v":0},".M.EVBHBHB.XX.SJO.XXX.XXXX.SX.XXX.DKK.IS.N.M"]
[{"$f":"\"INN.\"&EIGNIR!$B$3&C2844","v":{"$error":"#N/A"}},{"$f":"'Sundurliðun Hlutabréf'!P13","v":0},".M.EVBHBHB.XX.YFT.XXX.XXXX.SX.XXX.DKK.IS.N.M"]
[{"$f":"\"INN.\"&EIGNIR!$B$3&C2845","v":{"$error":"#N/A"}},{"$f":"'Sundurliðun Hlutabréf'!P14","v":0},".M.EVBHBHB.XX.SLY.XXX.XXXX.SX.XXX.DKK.IS.N.M"]
[{"$f":"\"INN.\"&EIGNIR!$B$3&C2846","v":{"$error":"#N/A"}},{"$f":"'Sundurliðun Hlutabréf'!P15","v":0},".M.EVBHBHB.XX.FHL.XXX.XXXX.SX.XXX.DKK.IS.N.M"]
[{"$f":"\"INN.\"&EIGNIR!$B$3&C2847","v":{"$error":"#N/A"}},{"$f":"'Sundurliðun Hlutabréf'!P16","v":0},".M.EVBHBHB.XX.INF.XXX.XXXX.SX.XXX.DKK.IS.N.M"]
[{"$f":"\"INN.\"&EIGNIR!$B$3&C2848","v":{"$error":"#N/A"}},{"$f":"'Sundurliðun Hlutabréf'!P17","v":0},".M.EVBHBHB.XX.TRY.XXX.XXXX.SX.XXX.DKK.IS.N.M"]
[{"$f":"\"INN.\"&EIGNIR!$B$3&C2849","v":{"$error":"#N/A"}},{"$f":"'Sundurliðun Hlutabréf'!P18","v":0},".M.EVBHBHB.XX.LIF.XXX.XXXX.SX.XXX.DKK.IS.N.M"]
[{"$f":"\"INN.\"&EIGNIR!$B$3&C2850","v":{"$error":"#N/A"}},{"$f":"'Sundurliðun Hlutabréf'!P23","v":0},".M.EVBHBHB.XX.NPH.XXX.XXXX.SX.XXX.DKK.IS.N.M"]
[{"$f":"\"INN.\"&EIGNIR!$B$3&C2851","v":{"$error":"#N/A"}},{"$f":"'Sundurliðun Hlutabréf'!P24","v":0},".M.EVBHBHB.XX.ERL.XXX.XXXX.SX.XXX.DKK.IS.N.M"]
[{"$f":"\"INN.\"&EIGNIR!$B$3&C2852","v":{"$error":"#N/A"}},{"$f":"'Sundurliðun Hlutabréf'!P26","v":0},".M.EVBHBHB.XX.ERI.XXX.XXXX.SX.XXX.DKK.IS.N.M"]
[{"$f":"\"INN.\"&EIGNIR!$B$3&C2853","v":{"$error":"#N/A"}},{"$f":"'Sundurliðun Hlutabréf'!P27","v":0},".M.EVBHBHB.XX.ERP.XXX.XXXX.SX.XXX.DKK.IS.N.M"]
[{"$f":"\"INN.\"&EIGNIR!$B$3&C2854","v":{"$error":"#N/A"}},{"$f":"'Sundurliðun Hlutabréf'!P28","v":0},".M.EVBHBHB.XX.ERV.XXX.XXXX.SX.XXX.DKK.IS.N.M"]
[{"$f":"\"INN.\"&EIGNIR!$B$3&C2855","v":{"$error":"#N/A"}},{"$f":"'Sundurliðun Hlutabréf'!P29","v":0},".M.EVBHBHB.XX.ERF.XXX.XXXX.SX.XXX.DKK.IS.N.M"]
[{"$f":"\"INN.\"&EIGNIR!$B$3&C2856","v":{"$error":"#N/A"}},{"$f":"'Sundurliðun Hlutabréf'!P31","v":0},".M.EVBHBHB.XX.ERA.XXX.XXXX.SX.XXX.DKK.IS.N.M"]
[{"$f":"\"INN.\"&EIGNIR!$B$3&C2857","v":{"$error":"#N/A"}},{"$f":"'Sundurliðun Hlutabréf'!P32","v":0},".M.EHHDS$$.XX.$$$.XXX.XXXX.SX.XXX.DKK.IS.N.M"]
[{"$f":"\"INN.\"&EIGNIR!$B$3&C2858","v":{"$error":"#N/A"}},{"$f":"'Sundurliðun Hlutabréf'!P33","v":0},".M.EHHDSHF.XX.$$$.XXX.HLFT.SX.XXX.DKK.IS.N.M"]
[{"$f":"\"INN.\"&EIGNIR!$B$3&C2859","v":{"$error":"#N/A"}},{"$f":"'Sundurliðun Hlutabréf'!P34","v":0},".M.EHHDSHF.XX.ATV.XXX.HLFT.SX.XXX.DKK.IS.N.M"]
[{"$f":"\"INN.\"&EIGNIR!$B$3&C2860","v":{"$error":"#N/A"}},{"$f":"'Sundurliðun Hlutabréf'!P35","v":0},".M.EHHDSHF.XX.FJA.XXX.HLFT.SX.XXX.DKK.IS.N.M"]
[{"$f":"\"INN.\"&EIGNIR!$B$3&C2861","v":{"$error":"#N/A"}},{"$f":"'Sundurliðun Hlutabréf'!P36","v":0},".M.EHHDSHF.XX.INN.XXX.HLFT.SX.XXX.DKK.IS.N.M"]
[{"$f":"\"INN.\"&EIGNIR!$B$3&C2862","v":{"$error":"#N/A"}},{"$f":"'Sundurliðun Hlutabréf'!P37","v":0},".M.EHHDSHF.XX.SLI.XXX.HLFT.SX.XXX.DKK.IS.N.M"]
[{"$f":"\"INN.\"&EIGNIR!$B$3&C2863","v":{"$error":"#N/A"}},{"$f":"'Sundurliðun Hlutabréf'!P38","v":0},".M.EHHDSHF.XX.PEN.XXX.HLFT.SX.XXX.DKK.IS.N.M"]
[{"$f":"\"INN.\"&EIGNIR!$B$3&C2864","v":{"$error":"#N/A"}},{"$f":"'Sundurliðun Hlutabréf'!P39","v":0},".M.EHHDSHF.XX.SJO.XXX.HLFT.SX.XXX.DKK.IS.N.M"]
[{"$f":"\"INN.\"&EIGNIR!$B$3&C2865","v":{"$error":"#N/A"}},{"$f":"'Sundurliðun Hlutabréf'!P40","v":0},".M.EHHDSHF.XX.YFT.XXX.HLFT.SX.XXX.DKK.IS.N.M"]
[{"$f":"\"INN.\"&EIGNIR!$B$3&C2866","v":{"$error":"#N/A"}},{"$f":"'Sundurliðun Hlutabréf'!P41","v":0},".M.EHHDSHF.XX.SLY.XXX.HLFT.SX.XXX.DKK.IS.N.M"]
[{"$f":"\"INN.\"&EIGNIR!$B$3&C2867","v":{"$error":"#N/A"}},{"$f":"'Sundurliðun Hlutabréf'!P42","v":0},".M.EHHDSHF.XX.FLH.XXX.HLFT.SX.XXX.DKK.IS.N.M"]
[{"$f":"\"INN.\"&EIGNIR!$B$3&C2868","v":{"$error":"#N/A"}},{"$f":"'Sundurliðun Hlutabréf'!P43","v":0},".M.EHHDSHF.XX.INF.XXX.HLFT.SX.XXX.DKK.IS.N.M"]
[{"$f":"\"INN.\"&EIGNIR!$B$3&C2869","v":{"$error":"#N/A"}},{"$f":"'Sundurliðun Hlutabréf'!P44","v":0},".M.EHHDSHF.XX.TRY.XXX.HLFT.SX.XXX.DKK.IS.N.M"]
[{"$f":"\"INN.\"&EIGNIR!$B$3&C2870","v":{"$error":"#N/A"}},{"$f":"'Sundurliðun Hlutabréf'!P45","v":0},".M.EHHDSHF.XX.LIF.XXX.HLFT.SX.XXX.DKK.IS.N.M"]
[{"$f":"\"INN.\"&EIGNIR!$B$3&C2871","v":{"$error":"#N/A"}},{"$f":"'Sundurliðun Hlutabréf'!P50","v":0},".M.EHHDSHF.XX.NPH.XXX.HLFT.SX.XXX.DKK.IS.N.M"]
[{"$f":"\"INN.\"&EIGNIR!$B$3&C2872","v":{"$error":"#N/A"}},{"$f":"'Sundurliðun Hlutabréf'!P51","v":0},".M.EHHDSHF.XX.ERL.XXX.HLFT.SX.XXX.DKK.IS.N.M"]
[{"$f":"\"INN.\"&EIGNIR!$B$3&C2873","v":{"$error":"#N/A"}},{"$f":"'Sundurliðun Hlutabréf'!P53","v":0},".M.EHHDSHF.XX.ERI.XXX.HLFT.SX.XXX.DKK.IS.N.M"]
[{"$f":"\"INN.\"&EIGNIR!$B$3&C2874","v":{"$error":"#N/A"}},{"$f":"'Sundurliðun Hlutabréf'!P56","v":0},".M.EHHDSHF.XX.ERF.XXX.HLFT.SX.XXX.DKK.IS.N.M"]
[{"$f":"\"INN.\"&EIGNIR!$B$3&C2875","v":{"$error":"#N/A"}},{"$f":"'Sundurliðun Hlutabréf'!P58","v":0},".M.EHHDSHF.XX.ERA.XXX.HLFT.SX.XXX.DKK.IS.N.M"]
[{"$f":"\"INN.\"&EIGNIR!$B$3&C2876","v":{"$error":"#N/A"}},{"$f":"'Sundurliðun Hlutabréf'!P59","v":0},".M.EHHDSTF.XX.$$$.XXX.TEFT.SX.XXX.DKK.IS.N.M"]
[{"$f":"\"INN.\"&EIGNIR!$B$3&C2877","v":{"$error":"#N/A"}},{"$f":"'Sundurliðun Hlutabréf'!P60","v":0},".M.EHHDSTF.XX.ATV.XXX.TEFT.SX.XXX.DKK.IS.N.M"]
[{"$f":"\"INN.\"&EIGNIR!$B$3&C2878","v":{"$error":"#N/A"}},{"$f":"'Sundurliðun Hlutabréf'!P61","v":0},".M.EHHDSTF.XX.FJA.XXX.TEFT.SX.XXX.DKK.IS.N.M"]
[{"$f":"\"INN.\"&EIGNIR!$B$3&C2879","v":{"$error":"#N/A"}},{"$f":"'Sundurliðun Hlutabréf'!P62","v":0},".M.EHHDSTF.XX.INN.XXX.TEFT.SX.XXX.DKK.IS.N.M"]
[{"$f":"\"INN.\"&EIGNIR!$B$3&C2880","v":{"$error":"#N/A"}},{"$f":"'Sundurliðun Hlutabréf'!P63","v":0},".M.EHHDSTF.XX.SLI.XXX.TEFT.SX.XXX.DKK.IS.N.M"]
[{"$f":"\"INN.\"&EIGNIR!$B$3&C2881","v":{"$error":"#N/A"}},{"$f":"'Sundurliðun Hlutabréf'!P64","v":0},".M.EHHDSTF.XX.PEN.XXX.TEFT.SX.XXX.DKK.IS.N.M"]
[{"$f":"\"INN.\"&EIGNIR!$B$3&C2882","v":{"$error":"#N/A"}},{"$f":"'Sundurliðun Hlutabréf'!P65","v":0},".M.EHHDSTF.XX.SJO.XXX.TEFT.SX.XXX.DKK.IS.N.M"]
[{"$f":"\"INN.\"&EIGNIR!$B$3&C2883","v":{"$error":"#N/A"}},{"$f":"'Sundurliðun Hlutabréf'!P66","v":0},".M.EHHDSTF.XX.YFT.XXX.TEFT.SX.XXX.DKK.IS.N.M"]
[{"$f":"\"INN.\"&EIGNIR!$B$3&C2884","v":{"$error":"#N/A"}},{"$f":"'Sundurliðun Hlutabréf'!P67","v":0},".M.EHHDSTF.XX.SLY.XXX.TEFT.SX.XXX.DKK.IS.N.M"]
[{"$f":"\"INN.\"&EIGNIR!$B$3&C2885","v":{"$error":"#N/A"}},{"$f":"'Sundurliðun Hlutabréf'!P68","v":0},".M.EHHDSTF.XX.FLH.XXX.TEFT.SX.XXX.DKK.IS.N.M"]
[{"$f":"\"INN.\"&EIGNIR!$B$3&C2886","v":{"$error":"#N/A"}},{"$f":"'Sundurliðun Hlutabréf'!P69","v":0},".M.EHHDSTF.XX.INF.XXX.TEFT.SX.XXX.DKK.IS.N.M"]
[{"$f":"\"INN.\"&EIGNIR!$B$3&C2887","v":{"$error":"#N/A"}},{"$f":"'Sundurliðun Hlutabréf'!P70","v":0},".M.EHHDSTF.XX.TRY.XXX.TEFT.SX.XXX.DKK.IS.N.M"]
[{"$f":"\"INN.\"&EIGNIR!$B$3&C2888","v":{"$error":"#N/A"}},{"$f":"'Sundurliðun Hlutabréf'!P71","v":0},".M.EHHDSTF.XX.LIF.XXX.TEFT.SX.XXX.DKK.IS.N.M"]
[{"$f":"\"INN.\"&EIGNIR!$B$3&C2889","v":{"$error":"#N/A"}},{"$f":"'Sundurliðun Hlutabréf'!P76","v":0},".M.EHHDSTF.XX.NPH.XXX.TEFT.SX.XXX.DKK.IS.N.M"]
[{"$f":"\"INN.\"&EIGNIR!$B$3&C2890","v":{"$error":"#N/A"}},{"$f":"'Sundurliðun Hlutabréf'!P77","v":0},".M.EHHDSTF.XX.ERL.XXX.TEFT.SX.XXX.DKK.IS.N.M"]
[{"$f":"\"INN.\"&EIGNIR!$B$3&C2891","v":{"$error":"#N/A"}},{"$f":"'Sundurliðun Hlutabréf'!P79","v":0},".M.EHHDSTF.XX.ERI.XXX.TEFT.SX.XXX.DKK.IS.N.M"]
[{"$f":"\"INN.\"&EIGNIR!$B$3&C2892","v":{"$error":"#N/A"}},{"$f":"'Sundurliðun Hlutabréf'!P82","v":0},".M.EHHDSTF.XX.ERF.XXX.TEFT.SX.XXX.DKK.IS.N.M"]
[{"$f":"\"INN.\"&EIGNIR!$B$3&C2893","v":{"$error":"#N/A"}},{"$f":"'Sundurliðun Hlutabréf'!P84","v":0},".M.EHHDSTF.XX.ERA.XXX.TEFT.SX.XXX.DKK.IS.N.M"]
[{"$f":"\"INN.\"&EIGNIR!$B$3&C2894","v":{"$error":"#N/A"}},{"$f":"'Sundurliðun Hlutabréf'!Q5","v":0},".M.EVBHB$$.XX.$$$.XXX.XXXX.SX.XXX.NOK.IS.N.M","//Sundurliðun hlutabréf NOK"]
[{"$f":"\"INN.\"&EIGNIR!$B$3&C2895","v":{"$error":"#N/A"}},{"$f":"'Sundurliðun Hlutabréf'!Q6","v":0},".M.EVBHBHB.XX.$$$.XXX.XXXX.SX.XXX.NOK.IS.N.M"]
[{"$f":"\"INN.\"&EIGNIR!$B$3&C2896","v":{"$error":"#N/A"}},{"$f":"'Sundurliðun Hlutabréf'!Q7","v":0},".M.EVBHBHB.XX.ATV.XXX.XXXX.SX.XXX.NOK.IS.N.M"]
[{"$f":"\"INN.\"&EIGNIR!$B$3&C2897","v":{"$error":"#N/A"}},{"$f":"'Sundurliðun Hlutabréf'!Q8","v":0},".M.EVBHBHB.XX.FJA.XXX.XXXX.SX.XXX.NOK.IS.N.M"]
[{"$f":"\"INN.\"&EIGNIR!$B$3&C2898","v":{"$error":"#N/A"}},{"$f":"'Sundurliðun Hlutabréf'!Q9","v":0},".M.EVBHBHB.XX.INN.XXX.XXXX.SX.XXX.NOK.IS.N.M"]
[{"$f":"\"INN.\"&EIGNIR!$B$3&C2899","v":{"$error":"#N/A"}},{"$f":"'Sundurliðun Hlutabréf'!Q10","v":0},".M.EVBHBHB.XX.SLI.XXX.XXXX.SX.XXX.NOK.IS.N.M"]
[{"$f":"\"INN.\"&EIGNIR!$B$3&C2900","v":{"$error":"#N/A"}},{"$f":"'Sundurliðun Hlutabréf'!Q11","v":0},".M.EVBHBHB.XX.PEN.XXX.XXXX.SX.XXX.NOK.IS.N.M"]
[{"$f":"\"INN.\"&EIGNIR!$B$3&C2901","v":{"$error":"#N/A"}},{"$f":"'Sundurliðun Hlutabréf'!Q12","v":0},".M.EVBHBHB.XX.SJO.XXX.XXXX.SX.XXX.NOK.IS.N.M"]
[{"$f":"\"INN.\"&EIGNIR!$B$3&C2902","v":{"$error":"#N/A"}},{"$f":"'Sundurliðun Hlutabréf'!Q13","v":0},".M.EVBHBHB.XX.YFT.XXX.XXXX.SX.XXX.NOK.IS.N.M"]
[{"$f":"\"INN.\"&EIGNIR!$B$3&C2903","v":{"$error":"#N/A"}},{"$f":"'Sundurliðun Hlutabréf'!Q14","v":0},".M.EVBHBHB.XX.SLY.XXX.XXXX.SX.XXX.NOK.IS.N.M"]
[{"$f":"\"INN.\"&EIGNIR!$B$3&C2904","v":{"$error":"#N/A"}},{"$f":"'Sundurliðun Hlutabréf'!Q15","v":0},".M.EVBHBHB.XX.FHL.XXX.XXXX.SX.XXX.NOK.IS.N.M"]
[{"$f":"\"INN.\"&EIGNIR!$B$3&C2905","v":{"$error":"#N/A"}},{"$f":"'Sundurliðun Hlutabréf'!Q16","v":0},".M.EVBHBHB.XX.INF.XXX.XXXX.SX.XXX.NOK.IS.N.M"]
[{"$f":"\"INN.\"&EIGNIR!$B$3&C2906","v":{"$error":"#N/A"}},{"$f":"'Sundurliðun Hlutabréf'!Q17","v":0},".M.EVBHBHB.XX.TRY.XXX.XXXX.SX.XXX.NOK.IS.N.M"]
[{"$f":"\"INN.\"&EIGNIR!$B$3&C2907","v":{"$error":"#N/A"}},{"$f":"'Sundurliðun Hlutabréf'!Q18","v":0},".M.EVBHBHB.XX.LIF.XXX.XXXX.SX.XXX.NOK.IS.N.M"]
[{"$f":"\"INN.\"&EIGNIR!$B$3&C2908","v":{"$error":"#N/A"}},{"$f":"'Sundurliðun Hlutabréf'!Q23","v":0},".M.EVBHBHB.XX.NPH.XXX.XXXX.SX.XXX.NOK.IS.N.M"]
[{"$f":"\"INN.\"&EIGNIR!$B$3&C2909","v":{"$error":"#N/A"}},{"$f":"'Sundurliðun Hlutabréf'!Q24","v":0},".M.EVBHBHB.XX.ERL.XXX.XXXX.SX.XXX.NOK.IS.N.M"]
[{"$f":"\"INN.\"&EIGNIR!$B$3&C2910","v":{"$error":"#N/A"}},{"$f":"'Sundurliðun Hlutabréf'!Q26","v":0},".M.EVBHBHB.XX.ERI.XXX.XXXX.SX.XXX.NOK.IS.N.M"]
[{"$f":"\"INN.\"&EIGNIR!$B$3&C2911","v":{"$error":"#N/A"}},{"$f":"'Sundurliðun Hlutabréf'!Q27","v":0},".M.EVBHBHB.XX.ERP.XXX.XXXX.SX.XXX.NOK.IS.N.M"]
[{"$f":"\"INN.\"&EIGNIR!$B$3&C2912","v":{"$error":"#N/A"}},{"$f":"'Sundurliðun Hlutabréf'!Q28","v":0},".M.EVBHBHB.XX.ERV.XXX.XXXX.SX.XXX.NOK.IS.N.M"]
[{"$f":"\"INN.\"&EIGNIR!$B$3&C2913","v":{"$error":"#N/A"}},{"$f":"'Sundurliðun Hlutabréf'!Q29","v":0},".M.EVBHBHB.XX.ERF.XXX.XXXX.SX.XXX.NOK.IS.N.M"]
[{"$f":"\"INN.\"&EIGNIR!$B$3&C2914","v":{"$error":"#N/A"}},{"$f":"'Sundurliðun Hlutabréf'!Q31","v":0},".M.EVBHBHB.XX.ERA.XXX.XXXX.SX.XXX.NOK.IS.N.M"]
[{"$f":"\"INN.\"&EIGNIR!$B$3&C2915","v":{"$error":"#N/A"}},{"$f":"'Sundurliðun Hlutabréf'!Q32","v":0},".M.EHHDS$$.XX.$$$.XXX.XXXX.SX.XXX.NOK.IS.N.M"]
[{"$f":"\"INN.\"&EIGNIR!$B$3&C2916","v":{"$error":"#N/A"}},{"$f":"'Sundurliðun Hlutabréf'!Q33","v":0},".M.EHHDSHF.XX.$$$.XXX.HLFT.SX.XXX.NOK.IS.N.M"]
[{"$f":"\"INN.\"&EIGNIR!$B$3&C2917","v":{"$error":"#N/A"}},{"$f":"'Sundurliðun Hlutabréf'!Q34","v":0},".M.EHHDSHF.XX.ATV.XXX.HLFT.SX.XXX.NOK.IS.N.M"]
[{"$f":"\"INN.\"&EIGNIR!$B$3&C2918","v":{"$error":"#N/A"}},{"$f":"'Sundurliðun Hlutabréf'!Q35","v":0},".M.EHHDSHF.XX.FJA.XXX.HLFT.SX.XXX.NOK.IS.N.M"]
[{"$f":"\"INN.\"&EIGNIR!$B$3&C2919","v":{"$error":"#N/A"}},{"$f":"'Sundurliðun Hlutabréf'!Q36","v":0},".M.EHHDSHF.XX.INN.XXX.HLFT.SX.XXX.NOK.IS.N.M"]
[{"$f":"\"INN.\"&EIGNIR!$B$3&C2920","v":{"$error":"#N/A"}},{"$f":"'Sundurliðun Hlutabréf'!Q37","v":0},".M.EHHDSHF.XX.SLI.XXX.HLFT.SX.XXX.NOK.IS.N.M"]
[{"$f":"\"INN.\"&EIGNIR!$B$3&C2921","v":{"$error":"#N/A"}},{"$f":"'Sundurliðun Hlutabréf'!Q38","v":0},".M.EHHDSHF.XX.PEN.XXX.HLFT.SX.XXX.NOK.IS.N.M"]
[{"$f":"\"INN.\"&EIGNIR!$B$3&C2922","v":{"$error":"#N/A"}},{"$f":"'Sundurliðun Hlutabréf'!Q39","v":0},".M.EHHDSHF.XX.SJO.XXX.HLFT.SX.XXX.NOK.IS.N.M"]
[{"$f":"\"INN.\"&EIGNIR!$B$3&C2923","v":{"$error":"#N/A"}},{"$f":"'Sundurliðun Hlutabréf'!Q40","v":0},".M.EHHDSHF.XX.YFT.XXX.HLFT.SX.XXX.NOK.IS.N.M"]
[{"$f":"\"INN.\"&EIGNIR!$B$3&C2924","v":{"$error":"#N/A"}},{"$f":"'Sundurliðun Hlutabréf'!Q41","v":0},".M.EHHDSHF.XX.SLY.XXX.HLFT.SX.XXX.NOK.IS.N.M"]
[{"$f":"\"INN.\"&EIGNIR!$B$3&C2925","v":{"$error":"#N/A"}},{"$f":"'Sundurliðun Hlutabréf'!Q42","v":0},".M.EHHDSHF.XX.FLH.XXX.HLFT.SX.XXX.NOK.IS.N.M"]
[{"$f":"\"INN.\"&EIGNIR!$B$3&C2926","v":{"$error":"#N/A"}},{"$f":"'Sundurliðun Hlutabréf'!Q43","v":0},".M.EHHDSHF.XX.INF.XXX.HLFT.SX.XXX.NOK.IS.N.M"]
[{"$f":"\"INN.\"&EIGNIR!$B$3&C2927","v":{"$error":"#N/A"}},{"$f":"'Sundurliðun Hlutabréf'!Q44","v":0},".M.EHHDSHF.XX.TRY.XXX.HLFT.SX.XXX.NOK.IS.N.M"]
[{"$f":"\"INN.\"&EIGNIR!$B$3&C2928","v":{"$error":"#N/A"}},{"$f":"'Sundurliðun Hlutabréf'!Q45","v":0},".M.EHHDSHF.XX.LIF.XXX.HLFT.SX.XXX.NOK.IS.N.M"]
[{"$f":"\"INN.\"&EIGNIR!$B$3&C2929","v":{"$error":"#N/A"}},{"$f":"'Sundurliðun Hlutabréf'!Q50","v":0},".M.EHHDSHF.XX.NPH.XXX.HLFT.SX.XXX.NOK.IS.N.M"]
[{"$f":"\"INN.\"&EIGNIR!$B$3&C2930","v":{"$error":"#N/A"}},{"$f":"'Sundurliðun Hlutabréf'!Q51","v":0},".M.EHHDSHF.XX.ERL.XXX.HLFT.SX.XXX.NOK.IS.N.M"]
[{"$f":"\"INN.\"&EIGNIR!$B$3&C2931","v":{"$error":"#N/A"}},{"$f":"'Sundurliðun Hlutabréf'!Q53","v":0},".M.EHHDSHF.XX.ERI.XXX.HLFT.SX.XXX.NOK.IS.N.M"]
[{"$f":"\"INN.\"&EIGNIR!$B$3&C2932","v":{"$error":"#N/A"}},{"$f":"'Sundurliðun Hlutabréf'!Q56","v":0},".M.EHHDSHF.XX.ERF.XXX.HLFT.SX.XXX.NOK.IS.N.M"]
[{"$f":"\"INN.\"&EIGNIR!$B$3&C2933","v":{"$error":"#N/A"}},{"$f":"'Sundurliðun Hlutabréf'!Q58","v":0},".M.EHHDSHF.XX.ERA.XXX.HLFT.SX.XXX.NOK.IS.N.M"]
[{"$f":"\"INN.\"&EIGNIR!$B$3&C2934","v":{"$error":"#N/A"}},{"$f":"'Sundurliðun Hlutabréf'!Q59","v":0},".M.EHHDSTF.XX.$$$.XXX.TEFT.SX.XXX.NOK.IS.N.M"]
[{"$f":"\"INN.\"&EIGNIR!$B$3&C2935","v":{"$error":"#N/A"}},{"$f":"'Sundurliðun Hlutabréf'!Q60","v":0},".M.EHHDSTF.XX.ATV.XXX.TEFT.SX.XXX.NOK.IS.N.M"]
[{"$f":"\"INN.\"&EIGNIR!$B$3&C2936","v":{"$error":"#N/A"}},{"$f":"'Sundurliðun Hlutabréf'!Q61","v":0},".M.EHHDSTF.XX.FJA.XXX.TEFT.SX.XXX.NOK.IS.N.M"]
[{"$f":"\"INN.\"&EIGNIR!$B$3&C2937","v":{"$error":"#N/A"}},{"$f":"'Sundurliðun Hlutabréf'!Q62","v":0},".M.EHHDSTF.XX.INN.XXX.TEFT.SX.XXX.NOK.IS.N.M"]
[{"$f":"\"INN.\"&EIGNIR!$B$3&C2938","v":{"$error":"#N/A"}},{"$f":"'Sundurliðun Hlutabréf'!Q63","v":0},".M.EHHDSTF.XX.SLI.XXX.TEFT.SX.XXX.NOK.IS.N.M"]
[{"$f":"\"INN.\"&EIGNIR!$B$3&C2939","v":{"$error":"#N/A"}},{"$f":"'Sundurliðun Hlutabréf'!Q64","v":0},".M.EHHDSTF.XX.PEN.XXX.TEFT.SX.XXX.NOK.IS.N.M"]
[{"$f":"\"INN.\"&EIGNIR!$B$3&C2940","v":{"$error":"#N/A"}},{"$f":"'Sundurliðun Hlutabréf'!Q65","v":0},".M.EHHDSTF.XX.SJO.XXX.TEFT.SX.XXX.NOK.IS.N.M"]
[{"$f":"\"INN.\"&EIGNIR!$B$3&C2941","v":{"$error":"#N/A"}},{"$f":"'Sundurliðun Hlutabréf'!Q66","v":0},".M.EHHDSTF.XX.YFT.XXX.TEFT.SX.XXX.NOK.IS.N.M"]
[{"$f":"\"INN.\"&EIGNIR!$B$3&C2942","v":{"$error":"#N/A"}},{"$f":"'Sundurliðun Hlutabréf'!Q67","v":0},".M.EHHDSTF.XX.SLY.XXX.TEFT.SX.XXX.NOK.IS.N.M"]
[{"$f":"\"INN.\"&EIGNIR!$B$3&C2943","v":{"$error":"#N/A"}},{"$f":"'Sundurliðun Hlutabréf'!Q68","v":0},".M.EHHDSTF.XX.FLH.XXX.TEFT.SX.XXX.NOK.IS.N.M"]
[{"$f":"\"INN.\"&EIGNIR!$B$3&C2944","v":{"$error":"#N/A"}},{"$f":"'Sundurliðun Hlutabréf'!Q69","v":0},".M.EHHDSTF.XX.INF.XXX.TEFT.SX.XXX.NOK.IS.N.M"]
[{"$f":"\"INN.\"&EIGNIR!$B$3&C2945","v":{"$error":"#N/A"}},{"$f":"'Sundurliðun Hlutabréf'!Q70","v":0},".M.EHHDSTF.XX.TRY.XXX.TEFT.SX.XXX.NOK.IS.N.M"]
[{"$f":"\"INN.\"&EIGNIR!$B$3&C2946","v":{"$error":"#N/A"}},{"$f":"'Sundurliðun Hlutabréf'!Q71","v":0},".M.EHHDSTF.XX.LIF.XXX.TEFT.SX.XXX.NOK.IS.N.M"]
[{"$f":"\"INN.\"&EIGNIR!$B$3&C2947","v":{"$error":"#N/A"}},{"$f":"'Sundurliðun Hlutabréf'!Q76","v":0},".M.EHHDSTF.XX.NPH.XXX.TEFT.SX.XXX.NOK.IS.N.M"]
[{"$f":"\"INN.\"&EIGNIR!$B$3&C2948","v":{"$error":"#N/A"}},{"$f":"'Sundurliðun Hlutabréf'!Q77","v":0},".M.EHHDSTF.XX.ERL.XXX.TEFT.SX.XXX.NOK.IS.N.M"]
[{"$f":"\"INN.\"&EIGNIR!$B$3&C2949","v":{"$error":"#N/A"}},{"$f":"'Sundurliðun Hlutabréf'!Q79","v":0},".M.EHHDSTF.XX.ERI.XXX.TEFT.SX.XXX.NOK.IS.N.M"]
[{"$f":"\"INN.\"&EIGNIR!$B$3&C2950","v":{"$error":"#N/A"}},{"$f":"'Sundurliðun Hlutabréf'!Q82","v":0},".M.EHHDSTF.XX.ERF.XXX.TEFT.SX.XXX.NOK.IS.N.M"]
[{"$f":"\"INN.\"&EIGNIR!$B$3&C2951","v":{"$error":"#N/A"}},{"$f":"'Sundurliðun Hlutabréf'!Q84","v":0},".M.EHHDSTF.XX.ERA.XXX.TEFT.SX.XXX.NOK.IS.N.M"]
[{"$f":"\"INN.\"&EIGNIR!$B$3&C2952","v":{"$error":"#N/A"}},{"$f":"'Sundurliðun Hlutabréf'!R5","v":0},".M.EVBHB$$.XX.$$$.XXX.XXXX.SX.XXX.SEK.IS.N.M","//Sundurliðun Hlutabréf, SEK"]
[{"$f":"\"INN.\"&EIGNIR!$B$3&C2953","v":{"$error":"#N/A"}},{"$f":"'Sundurliðun Hlutabréf'!R6","v":0},".M.EVBHBHB.XX.$$$.XXX.XXXX.SX.XXX.SEK.IS.N.M"]
[{"$f":"\"INN.\"&EIGNIR!$B$3&C2954","v":{"$error":"#N/A"}},{"$f":"'Sundurliðun Hlutabréf'!R7","v":0},".M.EVBHBHB.XX.ATV.XXX.XXXX.SX.XXX.SEK.IS.N.M"]
[{"$f":"\"INN.\"&EIGNIR!$B$3&C2955","v":{"$error":"#N/A"}},{"$f":"'Sundurliðun Hlutabréf'!R8","v":0},".M.EVBHBHB.XX.FJA.XXX.XXXX.SX.XXX.SEK.IS.N.M"]
[{"$f":"\"INN.\"&EIGNIR!$B$3&C2956","v":{"$error":"#N/A"}},{"$f":"'Sundurliðun Hlutabréf'!R9","v":0},".M.EVBHBHB.XX.INN.XXX.XXXX.SX.XXX.SEK.IS.N.M"]
[{"$f":"\"INN.\"&EIGNIR!$B$3&C2957","v":{"$error":"#N/A"}},{"$f":"'Sundurliðun Hlutabréf'!R10","v":0},".M.EVBHBHB.XX.SLI.XXX.XXXX.SX.XXX.SEK.IS.N.M"]
[{"$f":"\"INN.\"&EIGNIR!$B$3&C2958","v":{"$error":"#N/A"}},{"$f":"'Sundurliðun Hlutabréf'!R11","v":0},".M.EVBHBHB.XX.PEN.XXX.XXXX.SX.XXX.SEK.IS.N.M"]
[{"$f":"\"INN.\"&EIGNIR!$B$3&C2959","v":{"$error":"#N/A"}},{"$f":"'Sundurliðun Hlutabréf'!R12","v":0},".M.EVBHBHB.XX.SJO.XXX.XXXX.SX.XXX.SEK.IS.N.M"]
[{"$f":"\"INN.\"&EIGNIR!$B$3&C2960","v":{"$error":"#N/A"}},{"$f":"'Sundurliðun Hlutabréf'!R13","v":0},".M.EVBHBHB.XX.YFT.XXX.XXXX.SX.XXX.SEK.IS.N.M"]
[{"$f":"\"INN.\"&EIGNIR!$B$3&C2961","v":{"$error":"#N/A"}},{"$f":"'Sundurliðun Hlutabréf'!R14","v":0},".M.EVBHBHB.XX.SLY.XXX.XXXX.SX.XXX.SEK.IS.N.M"]
[{"$f":"\"INN.\"&EIGNIR!$B$3&C2962","v":{"$error":"#N/A"}},{"$f":"'Sundurliðun Hlutabréf'!R15","v":0},".M.EVBHBHB.XX.FHL.XXX.XXXX.SX.XXX.SEK.IS.N.M"]
[{"$f":"\"INN.\"&EIGNIR!$B$3&C2963","v":{"$error":"#N/A"}},{"$f":"'Sundurliðun Hlutabréf'!R16","v":0},".M.EVBHBHB.XX.INF.XXX.XXXX.SX.XXX.SEK.IS.N.M"]
[{"$f":"\"INN.\"&EIGNIR!$B$3&C2964","v":{"$error":"#N/A"}},{"$f":"'Sundurliðun Hlutabréf'!R17","v":0},".M.EVBHBHB.XX.TRY.XXX.XXXX.SX.XXX.SEK.IS.N.M"]
[{"$f":"\"INN.\"&EIGNIR!$B$3&C2965","v":{"$error":"#N/A"}},{"$f":"'Sundurliðun Hlutabréf'!R18","v":0},".M.EVBHBHB.XX.LIF.XXX.XXXX.SX.XXX.SEK.IS.N.M"]
[{"$f":"\"INN.\"&EIGNIR!$B$3&C2966","v":{"$error":"#N/A"}},{"$f":"'Sundurliðun Hlutabréf'!R23","v":0},".M.EVBHBHB.XX.NPH.XXX.XXXX.SX.XXX.SEK.IS.N.M"]
[{"$f":"\"INN.\"&EIGNIR!$B$3&C2967","v":{"$error":"#N/A"}},{"$f":"'Sundurliðun Hlutabréf'!R24","v":0},".M.EVBHBHB.XX.ERL.XXX.XXXX.SX.XXX.SEK.IS.N.M"]
[{"$f":"\"INN.\"&EIGNIR!$B$3&C2968","v":{"$error":"#N/A"}},{"$f":"'Sundurliðun Hlutabréf'!R26","v":0},".M.EVBHBHB.XX.ERI.XXX.XXXX.SX.XXX.SEK.IS.N.M"]
[{"$f":"\"INN.\"&EIGNIR!$B$3&C2969","v":{"$error":"#N/A"}},{"$f":"'Sundurliðun Hlutabréf'!R27","v":0},".M.EVBHBHB.XX.ERP.XXX.XXXX.SX.XXX.SEK.IS.N.M"]
[{"$f":"\"INN.\"&EIGNIR!$B$3&C2970","v":{"$error":"#N/A"}},{"$f":"'Sundurliðun Hlutabréf'!R28","v":0},".M.EVBHBHB.XX.ERV.XXX.XXXX.SX.XXX.SEK.IS.N.M"]
[{"$f":"\"INN.\"&EIGNIR!$B$3&C2971","v":{"$error":"#N/A"}},{"$f":"'Sundurliðun Hlutabréf'!R29","v":0},".M.EVBHBHB.XX.ERF.XXX.XXXX.SX.XXX.SEK.IS.N.M"]
[{"$f":"\"INN.\"&EIGNIR!$B$3&C2972","v":{"$error":"#N/A"}},{"$f":"'Sundurliðun Hlutabréf'!R31","v":0},".M.EVBHBHB.XX.ERA.XXX.XXXX.SX.XXX.SEK.IS.N.M"]
[{"$f":"\"INN.\"&EIGNIR!$B$3&C2973","v":{"$error":"#N/A"}},{"$f":"'Sundurliðun Hlutabréf'!R32","v":0},".M.EHHDS$$.XX.$$$.XXX.XXXX.SX.XXX.SEK.IS.N.M"]
[{"$f":"\"INN.\"&EIGNIR!$B$3&C2974","v":{"$error":"#N/A"}},{"$f":"'Sundurliðun Hlutabréf'!R33","v":0},".M.EHHDSHF.XX.$$$.XXX.HLFT.SX.XXX.SEK.IS.N.M"]
[{"$f":"\"INN.\"&EIGNIR!$B$3&C2975","v":{"$error":"#N/A"}},{"$f":"'Sundurliðun Hlutabréf'!R34","v":0},".M.EHHDSHF.XX.ATV.XXX.HLFT.SX.XXX.SEK.IS.N.M"]
[{"$f":"\"INN.\"&EIGNIR!$B$3&C2976","v":{"$error":"#N/A"}},{"$f":"'Sundurliðun Hlutabréf'!R35","v":0},".M.EHHDSHF.XX.FJA.XXX.HLFT.SX.XXX.SEK.IS.N.M"]
[{"$f":"\"INN.\"&EIGNIR!$B$3&C2977","v":{"$error":"#N/A"}},{"$f":"'Sundurliðun Hlutabréf'!R36","v":0},".M.EHHDSHF.XX.INN.XXX.HLFT.SX.XXX.SEK.IS.N.M"]
[{"$f":"\"INN.\"&EIGNIR!$B$3&C2978","v":{"$error":"#N/A"}},{"$f":"'Sundurliðun Hlutabréf'!R37","v":0},".M.EHHDSHF.XX.SLI.XXX.HLFT.SX.XXX.SEK.IS.N.M"]
[{"$f":"\"INN.\"&EIGNIR!$B$3&C2979","v":{"$error":"#N/A"}},{"$f":"'Sundurliðun Hlutabréf'!R38","v":0},".M.EHHDSHF.XX.PEN.XXX.HLFT.SX.XXX.SEK.IS.N.M"]
[{"$f":"\"INN.\"&EIGNIR!$B$3&C2980","v":{"$error":"#N/A"}},{"$f":"'Sundurliðun Hlutabréf'!R39","v":0},".M.EHHDSHF.XX.SJO.XXX.HLFT.SX.XXX.SEK.IS.N.M"]
[{"$f":"\"INN.\"&EIGNIR!$B$3&C2981","v":{"$error":"#N/A"}},{"$f":"'Sundurliðun Hlutabréf'!R40","v":0},".M.EHHDSHF.XX.YFT.XXX.HLFT.SX.XXX.SEK.IS.N.M"]
[{"$f":"\"INN.\"&EIGNIR!$B$3&C2982","v":{"$error":"#N/A"}},{"$f":"'Sundurliðun Hlutabréf'!R41","v":0},".M.EHHDSHF.XX.SLY.XXX.HLFT.SX.XXX.SEK.IS.N.M"]
[{"$f":"\"INN.\"&EIGNIR!$B$3&C2983","v":{"$error":"#N/A"}},{"$f":"'Sundurliðun Hlutabréf'!R42","v":0},".M.EHHDSHF.XX.FLH.XXX.HLFT.SX.XXX.SEK.IS.N.M"]
[{"$f":"\"INN.\"&EIGNIR!$B$3&C2984","v":{"$error":"#N/A"}},{"$f":"'Sundurliðun Hlutabréf'!R43","v":0},".M.EHHDSHF.XX.INF.XXX.HLFT.SX.XXX.SEK.IS.N.M"]
[{"$f":"\"INN.\"&EIGNIR!$B$3&C2985","v":{"$error":"#N/A"}},{"$f":"'Sundurliðun Hlutabréf'!R44","v":0},".M.EHHDSHF.XX.TRY.XXX.HLFT.SX.XXX.SEK.IS.N.M"]
[{"$f":"\"INN.\"&EIGNIR!$B$3&C2986","v":{"$error":"#N/A"}},{"$f":"'Sundurliðun Hlutabréf'!R45","v":0},".M.EHHDSHF.XX.LIF.XXX.HLFT.SX.XXX.SEK.IS.N.M"]
[{"$f":"\"INN.\"&EIGNIR!$B$3&C2987","v":{"$error":"#N/A"}},{"$f":"'Sundurliðun Hlutabréf'!R50","v":0},".M.EHHDSHF.XX.NPH.XXX.HLFT.SX.XXX.SEK.IS.N.M"]
[{"$f":"\"INN.\"&EIGNIR!$B$3&C2988","v":{"$error":"#N/A"}},{"$f":"'Sundurliðun Hlutabréf'!R51","v":0},".M.EHHDSHF.XX.ERL.XXX.HLFT.SX.XXX.SEK.IS.N.M"]
[{"$f":"\"INN.\"&EIGNIR!$B$3&C2989","v":{"$error":"#N/A"}},{"$f":"'Sundurliðun Hlutabréf'!R53","v":0},".M.EHHDSHF.XX.ERI.XXX.HLFT.SX.XXX.SEK.IS.N.M"]
[{"$f":"\"INN.\"&EIGNIR!$B$3&C2990","v":{"$error":"#N/A"}},{"$f":"'Sundurliðun Hlutabréf'!R56","v":0},".M.EHHDSHF.XX.ERF.XXX.HLFT.SX.XXX.SEK.IS.N.M"]
[{"$f":"\"INN.\"&EIGNIR!$B$3&C2991","v":{"$error":"#N/A"}},{"$f":"'Sundurliðun Hlutabréf'!R58","v":0},".M.EHHDSHF.XX.ERA.XXX.HLFT.SX.XXX.SEK.IS.N.M"]
[{"$f":"\"INN.\"&EIGNIR!$B$3&C2992","v":{"$error":"#N/A"}},{"$f":"'Sundurliðun Hlutabréf'!R59","v":0},".M.EHHDSTF.XX.$$$.XXX.TEFT.SX.XXX.SEK.IS.N.M"]
[{"$f":"\"INN.\"&EIGNIR!$B$3&C2993","v":{"$error":"#N/A"}},{"$f":"'Sundurliðun Hlutabréf'!R60","v":0},".M.EHHDSTF.XX.ATV.XXX.TEFT.SX.XXX.SEK.IS.N.M"]
[{"$f":"\"INN.\"&EIGNIR!$B$3&C2994","v":{"$error":"#N/A"}},{"$f":"'Sundurliðun Hlutabréf'!R61","v":0},".M.EHHDSTF.XX.FJA.XXX.TEFT.SX.XXX.SEK.IS.N.M"]
[{"$f":"\"INN.\"&EIGNIR!$B$3&C2995","v":{"$error":"#N/A"}},{"$f":"'Sundurliðun Hlutabréf'!R62","v":0},".M.EHHDSTF.XX.INN.XXX.TEFT.SX.XXX.SEK.IS.N.M"]
[{"$f":"\"INN.\"&EIGNIR!$B$3&C2996","v":{"$error":"#N/A"}},{"$f":"'Sundurliðun Hlutabréf'!R63","v":0},".M.EHHDSTF.XX.SLI.XXX.TEFT.SX.XXX.SEK.IS.N.M"]
[{"$f":"\"INN.\"&EIGNIR!$B$3&C2997","v":{"$error":"#N/A"}},{"$f":"'Sundurliðun Hlutabréf'!R64","v":0},".M.EHHDSTF.XX.PEN.XXX.TEFT.SX.XXX.SEK.IS.N.M"]
[{"$f":"\"INN.\"&EIGNIR!$B$3&C2998","v":{"$error":"#N/A"}},{"$f":"'Sundurliðun Hlutabréf'!R65","v":0},".M.EHHDSTF.XX.SJO.XXX.TEFT.SX.XXX.SEK.IS.N.M"]
[{"$f":"\"INN.\"&EIGNIR!$B$3&C2999","v":{"$error":"#N/A"}},{"$f":"'Sundurliðun Hlutabréf'!R66","v":0},".M.EHHDSTF.XX.YFT.XXX.TEFT.SX.XXX.SEK.IS.N.M"]
[{"$f":"\"INN.\"&EIGNIR!$B$3&C3000","v":{"$error":"#N/A"}},{"$f":"'Sundurliðun Hlutabréf'!R67","v":0},".M.EHHDSTF.XX.SLY.XXX.TEFT.SX.XXX.SEK.IS.N.M"]
[{"$f":"\"INN.\"&EIGNIR!$B$3&C3001","v":{"$error":"#N/A"}},{"$f":"'Sundurliðun Hlutabréf'!R68","v":0},".M.EHHDSTF.XX.FLH.XXX.TEFT.SX.XXX.SEK.IS.N.M"]
[{"$f":"\"INN.\"&EIGNIR!$B$3&C3002","v":{"$error":"#N/A"}},{"$f":"'Sundurliðun Hlutabréf'!R69","v":0},".M.EHHDSTF.XX.INF.XXX.TEFT.SX.XXX.SEK.IS.N.M"]
[{"$f":"\"INN.\"&EIGNIR!$B$3&C3003","v":{"$error":"#N/A"}},{"$f":"'Sundurliðun Hlutabréf'!R70","v":0},".M.EHHDSTF.XX.TRY.XXX.TEFT.SX.XXX.SEK.IS.N.M"]
[{"$f":"\"INN.\"&EIGNIR!$B$3&C3004","v":{"$error":"#N/A"}},{"$f":"'Sundurliðun Hlutabréf'!R71","v":0},".M.EHHDSTF.XX.LIF.XXX.TEFT.SX.XXX.SEK.IS.N.M"]
[{"$f":"\"INN.\"&EIGNIR!$B$3&C3005","v":{"$error":"#N/A"}},{"$f":"'Sundurliðun Hlutabréf'!R76","v":0},".M.EHHDSTF.XX.NPH.XXX.TEFT.SX.XXX.SEK.IS.N.M"]
[{"$f":"\"INN.\"&EIGNIR!$B$3&C3006","v":{"$error":"#N/A"}},{"$f":"'Sundurliðun Hlutabréf'!R77","v":0},".M.EHHDSTF.XX.ERL.XXX.TEFT.SX.XXX.SEK.IS.N.M"]
[{"$f":"\"INN.\"&EIGNIR!$B$3&C3007","v":{"$error":"#N/A"}},{"$f":"'Sundurliðun Hlutabréf'!R79","v":0},".M.EHHDSTF.XX.ERI.XXX.TEFT.SX.XXX.SEK.IS.N.M"]
[{"$f":"\"INN.\"&EIGNIR!$B$3&C3008","v":{"$error":"#N/A"}},{"$f":"'Sundurliðun Hlutabréf'!R82","v":0},".M.EHHDSTF.XX.ERF.XXX.TEFT.SX.XXX.SEK.IS.N.M"]
[{"$f":"\"INN.\"&EIGNIR!$B$3&C3009","v":{"$error":"#N/A"}},{"$f":"'Sundurliðun Hlutabréf'!R84","v":0},".M.EHHDSTF.XX.ERA.XXX.TEFT.SX.XXX.SEK.IS.N.M"]
[{"$f":"\"INN.\"&EIGNIR!$B$3&C3010","v":{"$error":"#N/A"}},{"$f":"'Sundurliðun Hlutabréf'!S5","v":0},".M.EVBHB$$.XX.$$$.XXX.XXXX.SX.XXX.CHF.IS.N.M","//Sundurliðun Hlutabréf, CHF"]
[{"$f":"\"INN.\"&EIGNIR!$B$3&C3011","v":{"$error":"#N/A"}},{"$f":"'Sundurliðun Hlutabréf'!S6","v":0},".M.EVBHBHB.XX.$$$.XXX.XXXX.SX.XXX.CHF.IS.N.M"]
[{"$f":"\"INN.\"&EIGNIR!$B$3&C3012","v":{"$error":"#N/A"}},{"$f":"'Sundurliðun Hlutabréf'!S7","v":0},".M.EVBHBHB.XX.ATV.XXX.XXXX.SX.XXX.CHF.IS.N.M"]
[{"$f":"\"INN.\"&EIGNIR!$B$3&C3013","v":{"$error":"#N/A"}},{"$f":"'Sundurliðun Hlutabréf'!S8","v":0},".M.EVBHBHB.XX.FJA.XXX.XXXX.SX.XXX.CHF.IS.N.M"]
[{"$f":"\"INN.\"&EIGNIR!$B$3&C3014","v":{"$error":"#N/A"}},{"$f":"'Sundurliðun Hlutabréf'!S9","v":0},".M.EVBHBHB.XX.INN.XXX.XXXX.SX.XXX.CHF.IS.N.M"]
[{"$f":"\"INN.\"&EIGNIR!$B$3&C3015","v":{"$error":"#N/A"}},{"$f":"'Sundurliðun Hlutabréf'!S10","v":0},".M.EVBHBHB.XX.SLI.XXX.XXXX.SX.XXX.CHF.IS.N.M"]
[{"$f":"\"INN.\"&EIGNIR!$B$3&C3016","v":{"$error":"#N/A"}},{"$f":"'Sundurliðun Hlutabréf'!S11","v":0},".M.EVBHBHB.XX.PEN.XXX.XXXX.SX.XXX.CHF.IS.N.M"]
[{"$f":"\"INN.\"&EIGNIR!$B$3&C3017","v":{"$error":"#N/A"}},{"$f":"'Sundurliðun Hlutabréf'!S12","v":0},".M.EVBHBHB.XX.SJO.XXX.XXXX.SX.XXX.CHF.IS.N.M"]
[{"$f":"\"INN.\"&EIGNIR!$B$3&C3018","v":{"$error":"#N/A"}},{"$f":"'Sundurliðun Hlutabréf'!S13","v":0},".M.EVBHBHB.XX.YFT.XXX.XXXX.SX.XXX.CHF.IS.N.M"]
[{"$f":"\"INN.\"&EIGNIR!$B$3&C3019","v":{"$error":"#N/A"}},{"$f":"'Sundurliðun Hlutabréf'!S14","v":0},".M.EVBHBHB.XX.SLY.XXX.XXXX.SX.XXX.CHF.IS.N.M"]
[{"$f":"\"INN.\"&EIGNIR!$B$3&C3020","v":{"$error":"#N/A"}},{"$f":"'Sundurliðun Hlutabréf'!S15","v":0},".M.EVBHBHB.XX.FHL.XXX.XXXX.SX.XXX.CHF.IS.N.M"]
[{"$f":"\"INN.\"&EIGNIR!$B$3&C3021","v":{"$error":"#N/A"}},{"$f":"'Sundurliðun Hlutabréf'!S16","v":0},".M.EVBHBHB.XX.INF.XXX.XXXX.SX.XXX.CHF.IS.N.M"]
[{"$f":"\"INN.\"&EIGNIR!$B$3&C3022","v":{"$error":"#N/A"}},{"$f":"'Sundurliðun Hlutabréf'!S17","v":0},".M.EVBHBHB.XX.TRY.XXX.XXXX.SX.XXX.CHF.IS.N.M"]
[{"$f":"\"INN.\"&EIGNIR!$B$3&C3023","v":{"$error":"#N/A"}},{"$f":"'Sundurliðun Hlutabréf'!S18","v":0},".M.EVBHBHB.XX.LIF.XXX.XXXX.SX.XXX.CHF.IS.N.M"]
[{"$f":"\"INN.\"&EIGNIR!$B$3&C3024","v":{"$error":"#N/A"}},{"$f":"'Sundurliðun Hlutabréf'!S23","v":0},".M.EVBHBHB.XX.NPH.XXX.XXXX.SX.XXX.CHF.IS.N.M"]
[{"$f":"\"INN.\"&EIGNIR!$B$3&C3025","v":{"$error":"#N/A"}},{"$f":"'Sundurliðun Hlutabréf'!S24","v":0},".M.EVBHBHB.XX.ERL.XXX.XXXX.SX.XXX.CHF.IS.N.M"]
[{"$f":"\"INN.\"&EIGNIR!$B$3&C3026","v":{"$error":"#N/A"}},{"$f":"'Sundurliðun Hlutabréf'!S26","v":0},".M.EVBHBHB.XX.ERI.XXX.XXXX.SX.XXX.CHF.IS.N.M"]
[{"$f":"\"INN.\"&EIGNIR!$B$3&C3027","v":{"$error":"#N/A"}},{"$f":"'Sundurliðun Hlutabréf'!S27","v":0},".M.EVBHBHB.XX.ERP.XXX.XXXX.SX.XXX.CHF.IS.N.M"]
[{"$f":"\"INN.\"&EIGNIR!$B$3&C3028","v":{"$error":"#N/A"}},{"$f":"'Sundurliðun Hlutabréf'!S28","v":0},".M.EVBHBHB.XX.ERV.XXX.XXXX.SX.XXX.CHF.IS.N.M"]
[{"$f":"\"INN.\"&EIGNIR!$B$3&C3029","v":{"$error":"#N/A"}},{"$f":"'Sundurliðun Hlutabréf'!S29","v":0},".M.EVBHBHB.XX.ERF.XXX.XXXX.SX.XXX.CHF.IS.N.M"]
[{"$f":"\"INN.\"&EIGNIR!$B$3&C3030","v":{"$error":"#N/A"}},{"$f":"'Sundurliðun Hlutabréf'!S31","v":0},".M.EVBHBHB.XX.ERA.XXX.XXXX.SX.XXX.CHF.IS.N.M"]
[{"$f":"\"INN.\"&EIGNIR!$B$3&C3031","v":{"$error":"#N/A"}},{"$f":"'Sundurliðun Hlutabréf'!S32","v":0},".M.EHHDS$$.XX.$$$.XXX.XXXX.SX.XXX.CHF.IS.N.M"]
[{"$f":"\"INN.\"&EIGNIR!$B$3&C3032","v":{"$error":"#N/A"}},{"$f":"'Sundurliðun Hlutabréf'!S33","v":0},".M.EHHDSHF.XX.$$$.XXX.HLFT.SX.XXX.CHF.IS.N.M"]
[{"$f":"\"INN.\"&EIGNIR!$B$3&C3033","v":{"$error":"#N/A"}},{"$f":"'Sundurliðun Hlutabréf'!S34","v":0},".M.EHHDSHF.XX.ATV.XXX.HLFT.SX.XXX.CHF.IS.N.M"]
[{"$f":"\"INN.\"&EIGNIR!$B$3&C3034","v":{"$error":"#N/A"}},{"$f":"'Sundurliðun Hlutabréf'!S35","v":0},".M.EHHDSHF.XX.FJA.XXX.HLFT.SX.XXX.CHF.IS.N.M"]
[{"$f":"\"INN.\"&EIGNIR!$B$3&C3035","v":{"$error":"#N/A"}},{"$f":"'Sundurliðun Hlutabréf'!S36","v":0},".M.EHHDSHF.XX.INN.XXX.HLFT.SX.XXX.CHF.IS.N.M"]
[{"$f":"\"INN.\"&EIGNIR!$B$3&C3036","v":{"$error":"#N/A"}},{"$f":"'Sundurliðun Hlutabréf'!S37","v":0},".M.EHHDSHF.XX.SLI.XXX.HLFT.SX.XXX.CHF.IS.N.M"]
[{"$f":"\"INN.\"&EIGNIR!$B$3&C3037","v":{"$error":"#N/A"}},{"$f":"'Sundurliðun Hlutabréf'!S38","v":0},".M.EHHDSHF.XX.PEN.XXX.HLFT.SX.XXX.CHF.IS.N.M"]
[{"$f":"\"INN.\"&EIGNIR!$B$3&C3038","v":{"$error":"#N/A"}},{"$f":"'Sundurliðun Hlutabréf'!S39","v":0},".M.EHHDSHF.XX.SJO.XXX.HLFT.SX.XXX.CHF.IS.N.M"]
[{"$f":"\"INN.\"&EIGNIR!$B$3&C3039","v":{"$error":"#N/A"}},{"$f":"'Sundurliðun Hlutabréf'!S40","v":0},".M.EHHDSHF.XX.YFT.XXX.HLFT.SX.XXX.CHF.IS.N.M"]
[{"$f":"\"INN.\"&EIGNIR!$B$3&C3040","v":{"$error":"#N/A"}},{"$f":"'Sundurliðun Hlutabréf'!S41","v":0},".M.EHHDSHF.XX.SLY.XXX.HLFT.SX.XXX.CHF.IS.N.M"]
[{"$f":"\"INN.\"&EIGNIR!$B$3&C3041","v":{"$error":"#N/A"}},{"$f":"'Sundurliðun Hlutabréf'!S42","v":0},".M.EHHDSHF.XX.FLH.XXX.HLFT.SX.XXX.CHF.IS.N.M"]
[{"$f":"\"INN.\"&EIGNIR!$B$3&C3042","v":{"$error":"#N/A"}},{"$f":"'Sundurliðun Hlutabréf'!S43","v":0},".M.EHHDSHF.XX.INF.XXX.HLFT.SX.XXX.CHF.IS.N.M"]
[{"$f":"\"INN.\"&EIGNIR!$B$3&C3043","v":{"$error":"#N/A"}},{"$f":"'Sundurliðun Hlutabréf'!S44","v":0},".M.EHHDSHF.XX.TRY.XXX.HLFT.SX.XXX.CHF.IS.N.M"]
[{"$f":"\"INN.\"&EIGNIR!$B$3&C3044","v":{"$error":"#N/A"}},{"$f":"'Sundurliðun Hlutabréf'!S45","v":0},".M.EHHDSHF.XX.LIF.XXX.HLFT.SX.XXX.CHF.IS.N.M"]
[{"$f":"\"INN.\"&EIGNIR!$B$3&C3045","v":{"$error":"#N/A"}},{"$f":"'Sundurliðun Hlutabréf'!S50","v":0},".M.EHHDSHF.XX.NPH.XXX.HLFT.SX.XXX.CHF.IS.N.M"]
[{"$f":"\"INN.\"&EIGNIR!$B$3&C3046","v":{"$error":"#N/A"}},{"$f":"'Sundurliðun Hlutabréf'!S51","v":0},".M.EHHDSHF.XX.ERL.XXX.HLFT.SX.XXX.CHF.IS.N.M"]
[{"$f":"\"INN.\"&EIGNIR!$B$3&C3047","v":{"$error":"#N/A"}},{"$f":"'Sundurliðun Hlutabréf'!S53","v":0},".M.EHHDSHF.XX.ERI.XXX.HLFT.SX.XXX.CHF.IS.N.M"]
[{"$f":"\"INN.\"&EIGNIR!$B$3&C3048","v":{"$error":"#N/A"}},{"$f":"'Sundurliðun Hlutabréf'!S56","v":0},".M.EHHDSHF.XX.ERF.XXX.HLFT.SX.XXX.CHF.IS.N.M"]
[{"$f":"\"INN.\"&EIGNIR!$B$3&C3049","v":{"$error":"#N/A"}},{"$f":"'Sundurliðun Hlutabréf'!S58","v":0},".M.EHHDSHF.XX.ERA.XXX.HLFT.SX.XXX.CHF.IS.N.M"]
[{"$f":"\"INN.\"&EIGNIR!$B$3&C3050","v":{"$error":"#N/A"}},{"$f":"'Sundurliðun Hlutabréf'!S59","v":0},".M.EHHDSTF.XX.$$$.XXX.TEFT.SX.XXX.CHF.IS.N.M"]
[{"$f":"\"INN.\"&EIGNIR!$B$3&C3051","v":{"$error":"#N/A"}},{"$f":"'Sundurliðun Hlutabréf'!S60","v":0},".M.EHHDSTF.XX.ATV.XXX.TEFT.SX.XXX.CHF.IS.N.M"]
[{"$f":"\"INN.\"&EIGNIR!$B$3&C3052","v":{"$error":"#N/A"}},{"$f":"'Sundurliðun Hlutabréf'!S61","v":0},".M.EHHDSTF.XX.FJA.XXX.TEFT.SX.XXX.CHF.IS.N.M"]
[{"$f":"\"INN.\"&EIGNIR!$B$3&C3053","v":{"$error":"#N/A"}},{"$f":"'Sundurliðun Hlutabréf'!S62","v":0},".M.EHHDSTF.XX.INN.XXX.TEFT.SX.XXX.CHF.IS.N.M"]
[{"$f":"\"INN.\"&EIGNIR!$B$3&C3054","v":{"$error":"#N/A"}},{"$f":"'Sundurliðun Hlutabréf'!S63","v":0},".M.EHHDSTF.XX.SLI.XXX.TEFT.SX.XXX.CHF.IS.N.M"]
[{"$f":"\"INN.\"&EIGNIR!$B$3&C3055","v":{"$error":"#N/A"}},{"$f":"'Sundurliðun Hlutabréf'!S64","v":0},".M.EHHDSTF.XX.PEN.XXX.TEFT.SX.XXX.CHF.IS.N.M"]
[{"$f":"\"INN.\"&EIGNIR!$B$3&C3056","v":{"$error":"#N/A"}},{"$f":"'Sundurliðun Hlutabréf'!S65","v":0},".M.EHHDSTF.XX.SJO.XXX.TEFT.SX.XXX.CHF.IS.N.M"]
[{"$f":"\"INN.\"&EIGNIR!$B$3&C3057","v":{"$error":"#N/A"}},{"$f":"'Sundurliðun Hlutabréf'!S66","v":0},".M.EHHDSTF.XX.YFT.XXX.TEFT.SX.XXX.CHF.IS.N.M"]
[{"$f":"\"INN.\"&EIGNIR!$B$3&C3058","v":{"$error":"#N/A"}},{"$f":"'Sundurliðun Hlutabréf'!S67","v":0},".M.EHHDSTF.XX.SLY.XXX.TEFT.SX.XXX.CHF.IS.N.M"]
[{"$f":"\"INN.\"&EIGNIR!$B$3&C3059","v":{"$error":"#N/A"}},{"$f":"'Sundurliðun Hlutabréf'!S68","v":0},".M.EHHDSTF.XX.FLH.XXX.TEFT.SX.XXX.CHF.IS.N.M"]
[{"$f":"\"INN.\"&EIGNIR!$B$3&C3060","v":{"$error":"#N/A"}},{"$f":"'Sundurliðun Hlutabréf'!S69","v":0},".M.EHHDSTF.XX.INF.XXX.TEFT.SX.XXX.CHF.IS.N.M"]
[{"$f":"\"INN.\"&EIGNIR!$B$3&C3061","v":{"$error":"#N/A"}},{"$f":"'Sundurliðun Hlutabréf'!S70","v":0},".M.EHHDSTF.XX.TRY.XXX.TEFT.SX.XXX.CHF.IS.N.M"]
[{"$f":"\"INN.\"&EIGNIR!$B$3&C3062","v":{"$error":"#N/A"}},{"$f":"'Sundurliðun Hlutabréf'!S71","v":0},".M.EHHDSTF.XX.LIF.XXX.TEFT.SX.XXX.CHF.IS.N.M"]
[{"$f":"\"INN.\"&EIGNIR!$B$3&C3063","v":{"$error":"#N/A"}},{"$f":"'Sundurliðun Hlutabréf'!S76","v":0},".M.EHHDSTF.XX.NPH.XXX.TEFT.SX.XXX.CHF.IS.N.M"]
[{"$f":"\"INN.\"&EIGNIR!$B$3&C3064","v":{"$error":"#N/A"}},{"$f":"'Sundurliðun Hlutabréf'!S77","v":0},".M.EHHDSTF.XX.ERL.XXX.TEFT.SX.XXX.CHF.IS.N.M"]
[{"$f":"\"INN.\"&EIGNIR!$B$3&C3065","v":{"$error":"#N/A"}},{"$f":"'Sundurliðun Hlutabréf'!S79","v":0},".M.EHHDSTF.XX.ERI.XXX.TEFT.SX.XXX.CHF.IS.N.M"]
[{"$f":"\"INN.\"&EIGNIR!$B$3&C3066","v":{"$error":"#N/A"}},{"$f":"'Sundurliðun Hlutabréf'!S82","v":0},".M.EHHDSTF.XX.ERF.XXX.TEFT.SX.XXX.CHF.IS.N.M"]
[{"$f":"\"INN.\"&EIGNIR!$B$3&C3067","v":{"$error":"#N/A"}},{"$f":"'Sundurliðun Hlutabréf'!S84","v":0},".M.EHHDSTF.XX.ERA.XXX.TEFT.SX.XXX.CHF.IS.N.M"]
[{"$f":"\"INN.\"&EIGNIR!$B$3&C3068","v":{"$error":"#N/A"}},{"$f":"'Sundurliðun Hlutabréf'!T5","v":0},".M.EVBHB$$.XX.$$$.XXX.XXXX.SX.XXX.ADR.IS.N.M","//Sundurliðun hlutabréf, ADR"]
[{"$f":"\"INN.\"&EIGNIR!$B$3&C3069","v":{"$error":"#N/A"}},{"$f":"'Sundurliðun Hlutabréf'!T6","v":0},".M.EVBHBHB.XX.$$$.XXX.XXXX.SX.XXX.ADR.IS.N.M"]
[{"$f":"\"INN.\"&EIGNIR!$B$3&C3070","v":{"$error":"#N/A"}},{"$f":"'Sundurliðun Hlutabréf'!T7","v":0},".M.EVBHBHB.XX.ATV.XXX.XXXX.SX.XXX.ADR.IS.N.M"]
[{"$f":"\"INN.\"&EIGNIR!$B$3&C3071","v":{"$error":"#N/A"}},{"$f":"'Sundurliðun Hlutabréf'!T8","v":0},".M.EVBHBHB.XX.FJA.XXX.XXXX.SX.XXX.ADR.IS.N.M"]
[{"$f":"\"INN.\"&EIGNIR!$B$3&C3072","v":{"$error":"#N/A"}},{"$f":"'Sundurliðun Hlutabréf'!T9","v":0},".M.EVBHBHB.XX.INN.XXX.XXXX.SX.XXX.ADR.IS.N.M"]
[{"$f":"\"INN.\"&EIGNIR!$B$3&C3073","v":{"$error":"#N/A"}},{"$f":"'Sundurliðun Hlutabréf'!T10","v":0},".M.EVBHBHB.XX.SLI.XXX.XXXX.SX.XXX.ADR.IS.N.M"]
[{"$f":"\"INN.\"&EIGNIR!$B$3&C3074","v":{"$error":"#N/A"}},{"$f":"'Sundurliðun Hlutabréf'!T11","v":0},".M.EVBHBHB.XX.PEN.XXX.XXXX.SX.XXX.ADR.IS.N.M"]
[{"$f":"\"INN.\"&EIGNIR!$B$3&C3075","v":{"$error":"#N/A"}},{"$f":"'Sundurliðun Hlutabréf'!T12","v":0},".M.EVBHBHB.XX.SJO.XXX.XXXX.SX.XXX.ADR.IS.N.M"]
[{"$f":"\"INN.\"&EIGNIR!$B$3&C3076","v":{"$error":"#N/A"}},{"$f":"'Sundurliðun Hlutabréf'!T13","v":0},".M.EVBHBHB.XX.YFT.XXX.XXXX.SX.XXX.ADR.IS.N.M"]
[{"$f":"\"INN.\"&EIGNIR!$B$3&C3077","v":{"$error":"#N/A"}},{"$f":"'Sundurliðun Hlutabréf'!T14","v":0},".M.EVBHBHB.XX.SLY.XXX.XXXX.SX.XXX.ADR.IS.N.M"]
[{"$f":"\"INN.\"&EIGNIR!$B$3&C3078","v":{"$error":"#N/A"}},{"$f":"'Sundurliðun Hlutabréf'!T15","v":0},".M.EVBHBHB.XX.FHL.XXX.XXXX.SX.XXX.ADR.IS.N.M"]
[{"$f":"\"INN.\"&EIGNIR!$B$3&C3079","v":{"$error":"#N/A"}},{"$f":"'Sundurliðun Hlutabréf'!T16","v":0},".M.EVBHBHB.XX.INF.XXX.XXXX.SX.XXX.ADR.IS.N.M"]
[{"$f":"\"INN.\"&EIGNIR!$B$3&C3080","v":{"$error":"#N/A"}},{"$f":"'Sundurliðun Hlutabréf'!T17","v":0},".M.EVBHBHB.XX.TRY.XXX.XXXX.SX.XXX.ADR.IS.N.M"]
[{"$f":"\"INN.\"&EIGNIR!$B$3&C3081","v":{"$error":"#N/A"}},{"$f":"'Sundurliðun Hlutabréf'!T18","v":0},".M.EVBHBHB.XX.LIF.XXX.XXXX.SX.XXX.ADR.IS.N.M"]
[{"$f":"\"INN.\"&EIGNIR!$B$3&C3082","v":{"$error":"#N/A"}},{"$f":"'Sundurliðun Hlutabréf'!T23","v":0},".M.EVBHBHB.XX.NPH.XXX.XXXX.SX.XXX.ADR.IS.N.M"]
[{"$f":"\"INN.\"&EIGNIR!$B$3&C3083","v":{"$error":"#N/A"}},{"$f":"'Sundurliðun Hlutabréf'!T24","v":0},".M.EVBHBHB.XX.ERL.XXX.XXXX.SX.XXX.ADR.IS.N.M"]
[{"$f":"\"INN.\"&EIGNIR!$B$3&C3084","v":{"$error":"#N/A"}},{"$f":"'Sundurliðun Hlutabréf'!T26","v":0},".M.EVBHBHB.XX.ERI.XXX.XXXX.SX.XXX.ADR.IS.N.M"]
[{"$f":"\"INN.\"&EIGNIR!$B$3&C3085","v":{"$error":"#N/A"}},{"$f":"'Sundurliðun Hlutabréf'!T27","v":0},".M.EVBHBHB.XX.ERP.XXX.XXXX.SX.XXX.ADR.IS.N.M"]
[{"$f":"\"INN.\"&EIGNIR!$B$3&C3086","v":{"$error":"#N/A"}},{"$f":"'Sundurliðun Hlutabréf'!T28","v":0},".M.EVBHBHB.XX.ERV.XXX.XXXX.SX.XXX.ADR.IS.N.M"]
[{"$f":"\"INN.\"&EIGNIR!$B$3&C3087","v":{"$error":"#N/A"}},{"$f":"'Sundurliðun Hlutabréf'!T29","v":0},".M.EVBHBHB.XX.ERF.XXX.XXXX.SX.XXX.ADR.IS.N.M"]
[{"$f":"\"INN.\"&EIGNIR!$B$3&C3088","v":{"$error":"#N/A"}},{"$f":"'Sundurliðun Hlutabréf'!T31","v":0},".M.EVBHBHB.XX.ERA.XXX.XXXX.SX.XXX.ADR.IS.N.M"]
[{"$f":"\"INN.\"&EIGNIR!$B$3&C3089","v":{"$error":"#N/A"}},{"$f":"'Sundurliðun Hlutabréf'!T32","v":0},".M.EHHDS$$.XX.$$$.XXX.XXXX.SX.XXX.ADR.IS.N.M"]
[{"$f":"\"INN.\"&EIGNIR!$B$3&C3090","v":{"$error":"#N/A"}},{"$f":"'Sundurliðun Hlutabréf'!T33","v":0},".M.EHHDSHF.XX.$$$.XXX.HLFT.SX.XXX.ADR.IS.N.M"]
[{"$f":"\"INN.\"&EIGNIR!$B$3&C3091","v":{"$error":"#N/A"}},{"$f":"'Sundurliðun Hlutabréf'!T34","v":0},".M.EHHDSHF.XX.ATV.XXX.HLFT.SX.XXX.ADR.IS.N.M"]
[{"$f":"\"INN.\"&EIGNIR!$B$3&C3092","v":{"$error":"#N/A"}},{"$f":"'Sundurliðun Hlutabréf'!T35","v":0},".M.EHHDSHF.XX.FJA.XXX.HLFT.SX.XXX.ADR.IS.N.M"]
[{"$f":"\"INN.\"&EIGNIR!$B$3&C3093","v":{"$error":"#N/A"}},{"$f":"'Sundurliðun Hlutabréf'!T36","v":0},".M.EHHDSHF.XX.INN.XXX.HLFT.SX.XXX.ADR.IS.N.M"]
[{"$f":"\"INN.\"&EIGNIR!$B$3&C3094","v":{"$error":"#N/A"}},{"$f":"'Sundurliðun Hlutabréf'!T37","v":0},".M.EHHDSHF.XX.SLI.XXX.HLFT.SX.XXX.ADR.IS.N.M"]
[{"$f":"\"INN.\"&EIGNIR!$B$3&C3095","v":{"$error":"#N/A"}},{"$f":"'Sundurliðun Hlutabréf'!T38","v":0},".M.EHHDSHF.XX.PEN.XXX.HLFT.SX.XXX.ADR.IS.N.M"]
[{"$f":"\"INN.\"&EIGNIR!$B$3&C3096","v":{"$error":"#N/A"}},{"$f":"'Sundurliðun Hlutabréf'!T39","v":0},".M.EHHDSHF.XX.SJO.XXX.HLFT.SX.XXX.ADR.IS.N.M"]
[{"$f":"\"INN.\"&EIGNIR!$B$3&C3097","v":{"$error":"#N/A"}},{"$f":"'Sundurliðun Hlutabréf'!T40","v":0},".M.EHHDSHF.XX.YFT.XXX.HLFT.SX.XXX.ADR.IS.N.M"]
[{"$f":"\"INN.\"&EIGNIR!$B$3&C3098","v":{"$error":"#N/A"}},{"$f":"'Sundurliðun Hlutabréf'!T41","v":0},".M.EHHDSHF.XX.SLY.XXX.HLFT.SX.XXX.ADR.IS.N.M"]
[{"$f":"\"INN.\"&EIGNIR!$B$3&C3099","v":{"$error":"#N/A"}},{"$f":"'Sundurliðun Hlutabréf'!T42","v":0},".M.EHHDSHF.XX.FLH.XXX.HLFT.SX.XXX.ADR.IS.N.M"]
[{"$f":"\"INN.\"&EIGNIR!$B$3&C3100","v":{"$error":"#N/A"}},{"$f":"'Sundurliðun Hlutabréf'!T43","v":0},".M.EHHDSHF.XX.INF.XXX.HLFT.SX.XXX.ADR.IS.N.M"]
[{"$f":"\"INN.\"&EIGNIR!$B$3&C3101","v":{"$error":"#N/A"}},{"$f":"'Sundurliðun Hlutabréf'!T44","v":0},".M.EHHDSHF.XX.TRY.XXX.HLFT.SX.XXX.ADR.IS.N.M"]
[{"$f":"\"INN.\"&EIGNIR!$B$3&C3102","v":{"$error":"#N/A"}},{"$f":"'Sundurliðun Hlutabréf'!T45","v":0},".M.EHHDSHF.XX.LIF.XXX.HLFT.SX.XXX.ADR.IS.N.M"]
[{"$f":"\"INN.\"&EIGNIR!$B$3&C3103","v":{"$error":"#N/A"}},{"$f":"'Sundurliðun Hlutabréf'!T50","v":0},".M.EHHDSHF.XX.NPH.XXX.HLFT.SX.XXX.ADR.IS.N.M"]
[{"$f":"\"INN.\"&EIGNIR!$B$3&C3104","v":{"$error":"#N/A"}},{"$f":"'Sundurliðun Hlutabréf'!T51","v":0},".M.EHHDSHF.XX.ERL.XXX.HLFT.SX.XXX.ADR.IS.N.M"]
[{"$f":"\"INN.\"&EIGNIR!$B$3&C3105","v":{"$error":"#N/A"}},{"$f":"'Sundurliðun Hlutabréf'!T53","v":0},".M.EHHDSHF.XX.ERI.XXX.HLFT.SX.XXX.ADR.IS.N.M"]
[{"$f":"\"INN.\"&EIGNIR!$B$3&C3106","v":{"$error":"#N/A"}},{"$f":"'Sundurliðun Hlutabréf'!T56","v":0},".M.EHHDSHF.XX.ERF.XXX.HLFT.SX.XXX.ADR.IS.N.M"]
[{"$f":"\"INN.\"&EIGNIR!$B$3&C3107","v":{"$error":"#N/A"}},{"$f":"'Sundurliðun Hlutabréf'!T58","v":0},".M.EHHDSHF.XX.ERA.XXX.HLFT.SX.XXX.ADR.IS.N.M"]
[{"$f":"\"INN.\"&EIGNIR!$B$3&C3108","v":{"$error":"#N/A"}},{"$f":"'Sundurliðun Hlutabréf'!T59","v":0},".M.EHHDSTF.XX.$$$.XXX.TEFT.SX.XXX.ADR.IS.N.M"]
[{"$f":"\"INN.\"&EIGNIR!$B$3&C3109","v":{"$error":"#N/A"}},{"$f":"'Sundurliðun Hlutabréf'!T60","v":0},".M.EHHDSTF.XX.ATV.XXX.TEFT.SX.XXX.ADR.IS.N.M"]
[{"$f":"\"INN.\"&EIGNIR!$B$3&C3110","v":{"$error":"#N/A"}},{"$f":"'Sundurliðun Hlutabréf'!T61","v":0},".M.EHHDSTF.XX.FJA.XXX.TEFT.SX.XXX.ADR.IS.N.M"]
[{"$f":"\"INN.\"&EIGNIR!$B$3&C3111","v":{"$error":"#N/A"}},{"$f":"'Sundurliðun Hlutabréf'!T62","v":0},".M.EHHDSTF.XX.INN.XXX.TEFT.SX.XXX.ADR.IS.N.M"]
[{"$f":"\"INN.\"&EIGNIR!$B$3&C3112","v":{"$error":"#N/A"}},{"$f":"'Sundurliðun Hlutabréf'!T63","v":0},".M.EHHDSTF.XX.SLI.XXX.TEFT.SX.XXX.ADR.IS.N.M"]
[{"$f":"\"INN.\"&EIGNIR!$B$3&C3113","v":{"$error":"#N/A"}},{"$f":"'Sundurliðun Hlutabréf'!T64","v":0},".M.EHHDSTF.XX.PEN.XXX.TEFT.SX.XXX.ADR.IS.N.M"]
[{"$f":"\"INN.\"&EIGNIR!$B$3&C3114","v":{"$error":"#N/A"}},{"$f":"'Sundurliðun Hlutabréf'!T65","v":0},".M.EHHDSTF.XX.SJO.XXX.TEFT.SX.XXX.ADR.IS.N.M"]
[{"$f":"\"INN.\"&EIGNIR!$B$3&C3115","v":{"$error":"#N/A"}},{"$f":"'Sundurliðun Hlutabréf'!T66","v":0},".M.EHHDSTF.XX.YFT.XXX.TEFT.SX.XXX.ADR.IS.N.M"]
[{"$f":"\"INN.\"&EIGNIR!$B$3&C3116","v":{"$error":"#N/A"}},{"$f":"'Sundurliðun Hlutabréf'!T67","v":0},".M.EHHDSTF.XX.SLY.XXX.TEFT.SX.XXX.ADR.IS.N.M"]
[{"$f":"\"INN.\"&EIGNIR!$B$3&C3117","v":{"$error":"#N/A"}},{"$f":"'Sundurliðun Hlutabréf'!T68","v":0},".M.EHHDSTF.XX.FLH.XXX.TEFT.SX.XXX.ADR.IS.N.M"]
[{"$f":"\"INN.\"&EIGNIR!$B$3&C3118","v":{"$error":"#N/A"}},{"$f":"'Sundurliðun Hlutabréf'!T69","v":0},".M.EHHDSTF.XX.INF.XXX.TEFT.SX.XXX.ADR.IS.N.M"]
[{"$f":"\"INN.\"&EIGNIR!$B$3&C3119","v":{"$error":"#N/A"}},{"$f":"'Sundurliðun Hlutabréf'!T70","v":0},".M.EHHDSTF.XX.TRY.XXX.TEFT.SX.XXX.ADR.IS.N.M"]
[{"$f":"\"INN.\"&EIGNIR!$B$3&C3120","v":{"$error":"#N/A"}},{"$f":"'Sundurliðun Hlutabréf'!T71","v":0},".M.EHHDSTF.XX.LIF.XXX.TEFT.SX.XXX.ADR.IS.N.M"]
[{"$f":"\"INN.\"&EIGNIR!$B$3&C3121","v":{"$error":"#N/A"}},{"$f":"'Sundurliðun Hlutabréf'!T76","v":0},".M.EHHDSTF.XX.NPH.XXX.TEFT.SX.XXX.ADR.IS.N.M"]
[{"$f":"\"INN.\"&EIGNIR!$B$3&C3122","v":{"$error":"#N/A"}},{"$f":"'Sundurliðun Hlutabréf'!T77","v":0},".M.EHHDSTF.XX.ERL.XXX.TEFT.SX.XXX.ADR.IS.N.M"]
[{"$f":"\"INN.\"&EIGNIR!$B$3&C3123","v":{"$error":"#N/A"}},{"$f":"'Sundurliðun Hlutabréf'!T79","v":0},".M.EHHDSTF.XX.ERI.XXX.TEFT.SX.XXX.ADR.IS.N.M"]
[{"$f":"\"INN.\"&EIGNIR!$B$3&C3124","v":{"$error":"#N/A"}},{"$f":"'Sundurliðun Hlutabréf'!T82","v":0},".M.EHHDSTF.XX.ERF.XXX.TEFT.SX.XXX.ADR.IS.N.M"]
[{"$f":"\"INN.\"&EIGNIR!$B$3&C3125","v":{"$error":"#N/A"}},{"$f":"'Sundurliðun Hlutabréf'!T84","v":0},".M.EHHDSTF.XX.ERA.XXX.TEFT.SX.XXX.ADR.IS.N.M"]
[{"$f":"\"INN.\"&EIGNIR!$B$3&C3126","v":{"$error":"#N/A"}},{"$f":"'Sundurliðun Skuldabréf'!F5","v":0},".M.EVBSV$$.XX.$$$.$$$.XXXX.SX.XXX.XXX.IS.N.M","//Sundurliðun Skuldabréf"]
[{"$f":"\"INN.\"&EIGNIR!$B$3&C3127","v":{"$error":"#N/A"}},{"$f":"'Sundurliðun Skuldabréf'!F6","v":0},".M.EVBSVVM.XX.$$$.$$$.XXXX.SV.XXX.XXX.IS.N.M","//Sundurliðun, verðtryggð markaðsskuldabréf"]
[{"$f":"\"INN.\"&EIGNIR!$B$3&C3128","v":{"$error":"#N/A"}},{"$f":"'Sundurliðun Skuldabréf'!F7","v":0},".M.EVBSVVM.XX.ATV.$$$.XXXX.SV.XXX.XXX.IS.N.M","// ATH. atvinnugreinaflokkun er línu 10179"]
[{"$f":"\"INN.\"&EIGNIR!$B$3&C3129","v":{"$error":"#N/A"}},{"$f":"'Sundurliðun Skuldabréf'!F21","v":0},".M.EVBSVVM.XX.FJA.$$$.XXXX.SV.XXX.XXX.IS.N.M"]
[{"$f":"\"INN.\"&EIGNIR!$B$3&C3130","v":{"$error":"#N/A"}},{"$f":"'Sundurliðun Skuldabréf'!F22","v":0},".M.EVBSVVM.XX.INN.$$$.XXXX.SV.XXX.XXX.IS.N.M"]
[{"$f":"\"INN.\"&EIGNIR!$B$3&C3131","v":{"$error":"#N/A"}},{"$f":"'Sundurliðun Skuldabréf'!F23","v":0},".M.EVBSVVM.XX.SLI.$$$.XXXX.SV.XXX.XXX.IS.N.M"]
[{"$f":"\"INN.\"&EIGNIR!$B$3&C3132","v":{"$error":"#N/A"}},{"$f":"'Sundurliðun Skuldabréf'!F24","v":0},".M.EVBSVVM.XX.PEN.$$$.XXXX.SV.XXX.XXX.IS.N.M"]
[{"$f":"\"INN.\"&EIGNIR!$B$3&C3133","v":{"$error":"#N/A"}},{"$f":"'Sundurliðun Skuldabréf'!F25","v":0},".M.EVBSVVM.XX.SJO.$$$.XXXX.SV.XXX.XXX.IS.N.M"]
[{"$f":"\"INN.\"&EIGNIR!$B$3&C3134","v":{"$error":"#N/A"}},{"$f":"'Sundurliðun Skuldabréf'!F26","v":0},".M.EVBSVVM.XX.YFT.$$$.XXXX.SV.XXX.XXX.IS.N.M"]
[{"$f":"\"INN.\"&EIGNIR!$B$3&C3135","v":{"$error":"#N/A"}},{"$f":"'Sundurliðun Skuldabréf'!F27","v":0},".M.EVBSVVM.XX.SLY.$$$.XXXX.SV.XXX.XXX.IS.N.M"]
[{"$f":"\"INN.\"&EIGNIR!$B$3&C3136","v":{"$error":"#N/A"}},{"$f":"'Sundurliðun Skuldabréf'!F28","v":0},".M.EVBSVVM.XX.FHL.$$$.XXXX.SV.XXX.XXX.IS.N.M"]
[{"$f":"\"INN.\"&EIGNIR!$B$3&C3137","v":{"$error":"#N/A"}},{"$f":"'Sundurliðun Skuldabréf'!F29","v":0},".M.EVBSVVM.XX.INF.$$$.XXXX.SV.XXX.XXX.IS.N.M"]
[{"$f":"\"INN.\"&EIGNIR!$B$3&C3138","v":{"$error":"#N/A"}},{"$f":"'Sundurliðun Skuldabréf'!F30","v":0},".M.EVBSVVM.XX.TRY.$$$.XXXX.SV.XXX.XXX.IS.N.M"]
[{"$f":"\"INN.\"&EIGNIR!$B$3&C3139","v":{"$error":"#N/A"}},{"$f":"'Sundurliðun Skuldabréf'!F31","v":0},".M.EVBSVVM.XX.LIF.$$$.XXXX.SV.XXX.XXX.IS.N.M"]
[{"$f":"\"INN.\"&EIGNIR!$B$3&C3140","v":{"$error":"#N/A"}},{"$f":"'Sundurliðun Skuldabréf'!F32","v":0},".M.EVBSVVM.XX.OPI.$$$.XXXX.SV.XXX.XXX.IS.N.M"]
[{"$f":"\"INN.\"&EIGNIR!$B$3&C3141","v":{"$error":"#N/A"}},{"$f":"'Sundurliðun Skuldabréf'!F33","v":0},".M.EVBSVVM.XX.RSS.$$$.XXXX.SV.XXX.XXX.IS.N.M"]
[{"$f":"\"INN.\"&EIGNIR!$B$3&C3142","v":{"$error":"#N/A"}},{"$f":"'Sundurliðun Skuldabréf'!F34","v":0},".M.EVBSVVM.XX.BAJ.$$$.XXXX.SV.XXX.XXX.IS.N.M"]
[{"$f":"\"INN.\"&EIGNIR!$B$3&C3143","v":{"$error":"#N/A"}},{"$f":"'Sundurliðun Skuldabréf'!F36","v":0},".M.EVBSVVM.XX.NPH.$$$.XXXX.SV.XXX.XXX.IS.N.M"]
[{"$f":"\"INN.\"&EIGNIR!$B$3&C3144","v":{"$error":"#N/A"}},{"$f":"'Sundurliðun Skuldabréf'!F37","v":0},".M.EVBSVVM.XX.ERL.$$$.XXXX.SV.XXX.XXX.IS.N.M"]
[{"$f":"\"INN.\"&EIGNIR!$B$3&C3145","v":{"$error":"#N/A"}},{"$f":"'Sundurliðun Skuldabréf'!F38","v":0},".M.EVBSVVM.XX.ERS.$$$.XXXX.SV.XXX.XXX.IS.N.M"]
[{"$f":"\"INN.\"&EIGNIR!$B$3&C3146","v":{"$error":"#N/A"}},{"$f":"'Sundurliðun Skuldabréf'!F39","v":0},".M.EVBSVVM.XX.ERI.$$$.XXXX.SV.XXX.XXX.IS.N.M"]
[{"$f":"\"INN.\"&EIGNIR!$B$3&C3147","v":{"$error":"#N/A"}},{"$f":"'Sundurliðun Skuldabréf'!F40","v":0},".M.EVBSVVM.XX.ERP.$$$.XXXX.SV.XXX.XXX.IS.N.M"]
[{"$f":"\"INN.\"&EIGNIR!$B$3&C3148","v":{"$error":"#N/A"}},{"$f":"'Sundurliðun Skuldabréf'!F41","v":0},".M.EVBSVVM.XX.ERV.$$$.XXXX.SV.XXX.XXX.IS.N.M"]
[{"$f":"\"INN.\"&EIGNIR!$B$3&C3149","v":{"$error":"#N/A"}},{"$f":"'Sundurliðun Skuldabréf'!F42","v":0},".M.EVBSVVM.XX.ERF.$$$.XXXX.SV.XXX.XXX.IS.N.M"]
[{"$f":"\"INN.\"&EIGNIR!$B$3&C3150","v":{"$error":"#N/A"}},{"$f":"'Sundurliðun Skuldabréf'!F43","v":0},".M.EVBSVVM.XX.ERO.$$$.XXXX.SV.XXX.XXX.IS.N.M"]
[{"$f":"\"INN.\"&EIGNIR!$B$3&C3151","v":{"$error":"#N/A"}},{"$f":"'Sundurliðun Skuldabréf'!F44","v":0},".M.EVBSVVM.XX.ERA.$$$.XXXX.SV.XXX.XXX.IS.N.M"]
[{"$f":"\"INN.\"&EIGNIR!$B$3&C3152","v":{"$error":"#N/A"}},{"$f":"'Sundurliðun Skuldabréf'!F45","v":0},".M.EVBSVOM.XX.$$$.$$$.XXXX.SX.LAT.XXX.IS.N.M","//Sundurliðun, önnur markaðsskuldabréf og víxlar > 1 ár"]
[{"$f":"\"INN.\"&EIGNIR!$B$3&C3153","v":{"$error":"#N/A"}},{"$f":"'Sundurliðun Skuldabréf'!F46","v":0},".M.EVBSVOM.XX.ATV.$$$.XXXX.SX.LAT.XXX.IS.N.M"]
[{"$f":"\"INN.\"&EIGNIR!$B$3&C3154","v":{"$error":"#N/A"}},{"$f":"'Sundurliðun Skuldabréf'!F60","v":0},".M.EVBSVOM.XX.FJA.$$$.XXXX.SX.LAT.XXX.IS.N.M"]
[{"$f":"\"INN.\"&EIGNIR!$B$3&C3155","v":{"$error":"#N/A"}},{"$f":"'Sundurliðun Skuldabréf'!F61","v":0},".M.EVBSVOM.XX.INN.$$$.XXXX.SX.LAT.XXX.IS.N.M"]
[{"$f":"\"INN.\"&EIGNIR!$B$3&C3156","v":{"$error":"#N/A"}},{"$f":"'Sundurliðun Skuldabréf'!F62","v":0},".M.EVBSVOM.XX.SLI.$$$.XXXX.SX.LAT.XXX.IS.N.M"]
[{"$f":"\"INN.\"&EIGNIR!$B$3&C3157","v":{"$error":"#N/A"}},{"$f":"'Sundurliðun Skuldabréf'!F63","v":0},".M.EVBSVOM.XX.PEN.$$$.XXXX.SX.LAT.XXX.IS.N.M"]
[{"$f":"\"INN.\"&EIGNIR!$B$3&C3158","v":{"$error":"#N/A"}},{"$f":"'Sundurliðun Skuldabréf'!F64","v":0},".M.EVBSVOM.XX.SJO.$$$.XXXX.SX.LAT.XXX.IS.N.M"]
[{"$f":"\"INN.\"&EIGNIR!$B$3&C3159","v":{"$error":"#N/A"}},{"$f":"'Sundurliðun Skuldabréf'!F65","v":0},".M.EVBSVOM.XX.YFT.$$$.XXXX.SX.LAT.XXX.IS.N.M"]
[{"$f":"\"INN.\"&EIGNIR!$B$3&C3160","v":{"$error":"#N/A"}},{"$f":"'Sundurliðun Skuldabréf'!F66","v":0},".M.EVBSVOM.XX.SLY.$$$.XXXX.SX.LAT.XXX.IS.N.M"]
[{"$f":"\"INN.\"&EIGNIR!$B$3&C3161","v":{"$error":"#N/A"}},{"$f":"'Sundurliðun Skuldabréf'!F67","v":0},".M.EVBSVOM.XX.FHL.$$$.XXXX.SX.LAT.XXX.IS.N.M"]
[{"$f":"\"INN.\"&EIGNIR!$B$3&C3162","v":{"$error":"#N/A"}},{"$f":"'Sundurliðun Skuldabréf'!F68","v":0},".M.EVBSVOM.XX.INF.$$$.XXXX.SX.LAT.XXX.IS.N.M"]
[{"$f":"\"INN.\"&EIGNIR!$B$3&C3163","v":{"$error":"#N/A"}},{"$f":"'Sundurliðun Skuldabréf'!F69","v":0},".M.EVBSVOM.XX.TRY.$$$.XXXX.SX.LAT.XXX.IS.N.M"]
[{"$f":"\"INN.\"&EIGNIR!$B$3&C3164","v":{"$error":"#N/A"}},{"$f":"'Sundurliðun Skuldabréf'!F70","v":0},".M.EVBSVOM.XX.LIF.$$$.XXXX.SX.LAT.XXX.IS.N.M"]
[{"$f":"\"INN.\"&EIGNIR!$B$3&C3165","v":{"$error":"#N/A"}},{"$f":"'Sundurliðun Skuldabréf'!F71","v":0},".M.EVBSVOM.XX.OPI.$$$.XXXX.SX.LAT.XXX.IS.N.M"]
[{"$f":"\"INN.\"&EIGNIR!$B$3&C3166","v":{"$error":"#N/A"}},{"$f":"'Sundurliðun Skuldabréf'!F72","v":0},".M.EVBSVOM.XX.RSS.$$$.XXXX.SX.LAT.XXX.IS.N.M"]
[{"$f":"\"INN.\"&EIGNIR!$B$3&C3167","v":{"$error":"#N/A"}},{"$f":"'Sundurliðun Skuldabréf'!F73","v":0},".M.EVBSVOM.XX.BAJ.$$$.XXXX.SX.LAT.XXX.IS.N.M"]
[{"$f":"\"INN.\"&EIGNIR!$B$3&C3168","v":{"$error":"#N/A"}},{"$f":"'Sundurliðun Skuldabréf'!F75","v":0},".M.EVBSVOM.XX.NPH.$$$.XXXX.SX.LAT.XXX.IS.N.M"]
[{"$f":"\"INN.\"&EIGNIR!$B$3&C3169","v":{"$error":"#N/A"}},{"$f":"'Sundurliðun Skuldabréf'!F76","v":0},".M.EVBSVOM.XX.ERL.$$$.XXXX.SX.LAT.XXX.IS.N.M"]
[{"$f":"\"INN.\"&EIGNIR!$B$3&C3170","v":{"$error":"#N/A"}},{"$f":"'Sundurliðun Skuldabréf'!F77","v":0},".M.EVBSVOM.XX.ERS.$$$.XXXX.SX.LAT.XXX.IS.N.M"]
[{"$f":"\"INN.\"&EIGNIR!$B$3&C3171","v":{"$error":"#N/A"}},{"$f":"'Sundurliðun Skuldabréf'!F78","v":0},".M.EVBSVOM.XX.ERI.$$$.XXXX.SX.LAT.XXX.IS.N.M"]
[{"$f":"\"INN.\"&EIGNIR!$B$3&C3172","v":{"$error":"#N/A"}},{"$f":"'Sundurliðun Skuldabréf'!F79","v":0},".M.EVBSVOM.XX.ERP.$$$.XXXX.SX.LAT.XXX.IS.N.M"]
[{"$f":"\"INN.\"&EIGNIR!$B$3&C3173","v":{"$error":"#N/A"}},{"$f":"'Sundurliðun Skuldabréf'!F80","v":0},".M.EVBSVOM.XX.ERV.$$$.XXXX.SX.LAT.XXX.IS.N.M"]
[{"$f":"\"INN.\"&EIGNIR!$B$3&C3174","v":{"$error":"#N/A"}},{"$f":"'Sundurliðun Skuldabréf'!F81","v":0},".M.EVBSVOM.XX.ERF.$$$.XXXX.SX.LAT.XXX.IS.N.M"]
[{"$f":"\"INN.\"&EIGNIR!$B$3&C3175","v":{"$error":"#N/A"}},{"$f":"'Sundurliðun Skuldabréf'!F82","v":0},".M.EVBSVOM.XX.ERO.$$$.XXXX.SX.LAT.XXX.IS.N.M"]
[{"$f":"\"INN.\"&EIGNIR!$B$3&C3176","v":{"$error":"#N/A"}},{"$f":"'Sundurliðun Skuldabréf'!F83","v":0},".M.EVBSVOM.XX.ERA.$$$.XXXX.SX.LAT.XXX.IS.N.M"]
[{"$f":"\"INN.\"&EIGNIR!$B$3&C3177","v":{"$error":"#N/A"}},{"$f":"'Sundurliðun Skuldabréf'!F84","v":0},".M.EVBSVOM.XX.$$$.$$$.XXXX.SX.SKT.XXX.IS.N.M","//Sundurliðun önnur markaðsskuldabréf og víxlar < 1 ár"]
[{"$f":"\"INN.\"&EIGNIR!$B$3&C3178","v":{"$error":"#N/A"}},{"$f":"'Sundurliðun Skuldabréf'!F85","v":0},".M.EVBSVOM.XX.ATV.$$$.XXXX.SX.SKT.XXX.IS.N.M"]
[{"$f":"\"INN.\"&EIGNIR!$B$3&C3179","v":{"$error":"#N/A"}},{"$f":"'Sundurliðun Skuldabréf'!F99","v":0},".M.EVBSVOM.XX.FJA.$$$.XXXX.SX.SKT.XXX.IS.N.M"]
[{"$f":"\"INN.\"&EIGNIR!$B$3&C3180","v":{"$error":"#N/A"}},{"$f":"'Sundurliðun Skuldabréf'!F100","v":0},".M.EVBSVOM.XX.INN.$$$.XXXX.SX.SKT.XXX.IS.N.M"]
[{"$f":"\"INN.\"&EIGNIR!$B$3&C3181","v":{"$error":"#N/A"}},{"$f":"'Sundurliðun Skuldabréf'!F101","v":0},".M.EVBSVOM.XX.SLI.$$$.XXXX.SX.SKT.XXX.IS.N.M"]
[{"$f":"\"INN.\"&EIGNIR!$B$3&C3182","v":{"$error":"#N/A"}},{"$f":"'Sundurliðun Skuldabréf'!F102","v":0},".M.EVBSVOM.XX.PEN.$$$.XXXX.SX.SKT.XXX.IS.N.M"]
[{"$f":"\"INN.\"&EIGNIR!$B$3&C3183","v":{"$error":"#N/A"}},{"$f":"'Sundurliðun Skuldabréf'!F103","v":0},".M.EVBSVOM.XX.SJO.$$$.XXXX.SX.SKT.XXX.IS.N.M"]
[{"$f":"\"INN.\"&EIGNIR!$B$3&C3184","v":{"$error":"#N/A"}},{"$f":"'Sundurliðun Skuldabréf'!F104","v":0},".M.EVBSVOM.XX.YFT.$$$.XXXX.SX.SKT.XXX.IS.N.M"]
[{"$f":"\"INN.\"&EIGNIR!$B$3&C3185","v":{"$error":"#N/A"}},{"$f":"'Sundurliðun Skuldabréf'!F105","v":0},".M.EVBSVOM.XX.SLY.$$$.XXXX.SX.SKT.XXX.IS.N.M"]
[{"$f":"\"INN.\"&EIGNIR!$B$3&C3186","v":{"$error":"#N/A"}},{"$f":"'Sundurliðun Skuldabréf'!F106","v":0},".M.EVBSVOM.XX.FHL.$$$.XXXX.SX.SKT.XXX.IS.N.M"]
[{"$f":"\"INN.\"&EIGNIR!$B$3&C3187","v":{"$error":"#N/A"}},{"$f":"'Sundurliðun Skuldabréf'!F107","v":0},".M.EVBSVOM.XX.INF.$$$.XXXX.SX.SKT.XXX.IS.N.M"]
[{"$f":"\"INN.\"&EIGNIR!$B$3&C3188","v":{"$error":"#N/A"}},{"$f":"'Sundurliðun Skuldabréf'!F108","v":0},".M.EVBSVOM.XX.TRY.$$$.XXXX.SX.SKT.XXX.IS.N.M"]
[{"$f":"\"INN.\"&EIGNIR!$B$3&C3189","v":{"$error":"#N/A"}},{"$f":"'Sundurliðun Skuldabréf'!F109","v":0},".M.EVBSVOM.XX.LIF.$$$.XXXX.SX.SKT.XXX.IS.N.M"]
[{"$f":"\"INN.\"&EIGNIR!$B$3&C3190","v":{"$error":"#N/A"}},{"$f":"'Sundurliðun Skuldabréf'!F110","v":0},".M.EVBSVOM.XX.OPI.$$$.XXXX.SX.SKT.XXX.IS.N.M"]
[{"$f":"\"INN.\"&EIGNIR!$B$3&C3191","v":{"$error":"#N/A"}},{"$f":"'Sundurliðun Skuldabréf'!F111","v":0},".M.EVBSVOM.XX.RSS.$$$.XXXX.SX.SKT.XXX.IS.N.M"]
[{"$f":"\"INN.\"&EIGNIR!$B$3&C3192","v":{"$error":"#N/A"}},{"$f":"'Sundurliðun Skuldabréf'!F112","v":0},".M.EVBSVOM.XX.BAJ.$$$.XXXX.SX.SKT.XXX.IS.N.M"]
[{"$f":"\"INN.\"&EIGNIR!$B$3&C3193","v":{"$error":"#N/A"}},{"$f":"'Sundurliðun Skuldabréf'!F114","v":0},".M.EVBSVOM.XX.NPH.$$$.XXXX.SX.SKT.XXX.IS.N.M"]
[{"$f":"\"INN.\"&EIGNIR!$B$3&C3194","v":{"$error":"#N/A"}},{"$f":"'Sundurliðun Skuldabréf'!F115","v":0},".M.EVBSVOM.XX.ERL.$$$.XXXX.SX.SKT.XXX.IS.N.M"]
[{"$f":"\"INN.\"&EIGNIR!$B$3&C3195","v":{"$error":"#N/A"}},{"$f":"'Sundurliðun Skuldabréf'!F116","v":0},".M.EVBSVOM.XX.ERS.$$$.XXXX.SX.SKT.XXX.IS.N.M"]
[{"$f":"\"INN.\"&EIGNIR!$B$3&C3196","v":{"$error":"#N/A"}},{"$f":"'Sundurliðun Skuldabréf'!F117","v":0},".M.EVBSVOM.XX.ERI.$$$.XXXX.SX.SKT.XXX.IS.N.M"]
[{"$f":"\"INN.\"&EIGNIR!$B$3&C3197","v":{"$error":"#N/A"}},{"$f":"'Sundurliðun Skuldabréf'!F118","v":0},".M.EVBSVOM.XX.ERP.$$$.XXXX.SX.SKT.XXX.IS.N.M"]
[{"$f":"\"INN.\"&EIGNIR!$B$3&C3198","v":{"$error":"#N/A"}},{"$f":"'Sundurliðun Skuldabréf'!F119","v":0},".M.EVBSVOM.XX.ERV.$$$.XXXX.SX.SKT.XXX.IS.N.M"]
[{"$f":"\"INN.\"&EIGNIR!$B$3&C3199","v":{"$error":"#N/A"}},{"$f":"'Sundurliðun Skuldabréf'!F120","v":0},".M.EVBSVOM.XX.ERF.$$$.XXXX.SX.SKT.XXX.IS.N.M"]
[{"$f":"\"INN.\"&EIGNIR!$B$3&C3200","v":{"$error":"#N/A"}},{"$f":"'Sundurliðun Skuldabréf'!F121","v":0},".M.EVBSVOM.XX.ERO.$$$.XXXX.SX.SKT.XXX.IS.N.M"]
[{"$f":"\"INN.\"&EIGNIR!$B$3&C3201","v":{"$error":"#N/A"}},{"$f":"'Sundurliðun Skuldabréf'!F122","v":0},".M.EVBSVOM.XX.ERA.$$$.XXXX.SX.SKT.XXX.IS.N.M"]
[{"$f":"\"INN.\"&EIGNIR!$B$3&C3202","v":{"$error":"#N/A"}},{"$f":"'Sundurliðun Skuldabréf'!F126","v":0},".M.EVBSVHB.XX.YFT.$$$.XXXX.SV.XXX.XXX.IS.N.M","//Húsbréf"]
[{"$f":"\"INN.\"&EIGNIR!$B$3&C3203","v":{"$error":"#N/A"}},{"$f":"'Sundurliðun Skuldabréf'!F127","v":0},".M.EVBSVHN.XX.YFT.$$$.XXXX.SV.XXX.XXX.IS.N.M"]
[{"$f":"\"INN.\"&EIGNIR!$B$3&C3204","v":{"$error":"#N/A"}},{"$f":"'Sundurliðun Skuldabréf'!F128","v":0},".M.EVBSVIB.XX.YFT.$$$.XXXX.SV.XXX.XXX.IS.N.M"]
[{"$f":"\"INN.\"&EIGNIR!$B$3&C3205","v":{"$error":"#N/A"}},{"$f":"'Sundurliðun Skuldabréf'!F129","v":0},".M.EVBSVOS.XX.XXX.$$$.XXXX.SV.XXX.XXX.IS.N.M"]
[{"$f":"\"INN.\"&EIGNIR!$B$3&C3206","v":{"$error":"#N/A"}},{"$f":"'Sundurliðun Skuldabréf'!G7","v":0},".M.EVBSVVM.XX.ATV.OPI.XXXX.SV.XXX.XXX.IS.N.M","//Verðtryggð markaðsskuldabréf, opinbert fyrirtæki"]
[{"$f":"\"INN.\"&EIGNIR!$B$3&C3207","v":{"$error":"#N/A"}},{"$f":"'Sundurliðun Skuldabréf'!G21","v":0},".M.EVBSVVM.XX.FJA.OPI.XXXX.SV.XXX.XXX.IS.N.M"]
[{"$f":"\"INN.\"&EIGNIR!$B$3&C3208","v":{"$error":"#N/A"}},{"$f":"'Sundurliðun Skuldabréf'!G22","v":0},".M.EVBSVVM.XX.INN.OPI.XXXX.SV.XXX.XXX.IS.N.M"]
[{"$f":"\"INN.\"&EIGNIR!$B$3&C3209","v":{"$error":"#N/A"}},{"$f":"'Sundurliðun Skuldabréf'!G23","v":0},".M.EVBSVVM.XX.SLI.OPI.XXXX.SV.XXX.XXX.IS.N.M"]
[{"$f":"\"INN.\"&EIGNIR!$B$3&C3210","v":{"$error":"#N/A"}},{"$f":"'Sundurliðun Skuldabréf'!G24","v":0},".M.EVBSVVM.XX.PEN.OPI.XXXX.SV.XXX.XXX.IS.N.M"]
[{"$f":"\"INN.\"&EIGNIR!$B$3&C3211","v":{"$error":"#N/A"}},{"$f":"'Sundurliðun Skuldabréf'!G25","v":0},".M.EVBSVVM.XX.SJO.OPI.XXXX.SV.XXX.XXX.IS.N.M"]
[{"$f":"\"INN.\"&EIGNIR!$B$3&C3212","v":{"$error":"#N/A"}},{"$f":"'Sundurliðun Skuldabréf'!G26","v":0},".M.EVBSVVM.XX.YFT.OPI.XXXX.SV.XXX.XXX.IS.N.M"]
[{"$f":"\"INN.\"&EIGNIR!$B$3&C3213","v":{"$error":"#N/A"}},{"$f":"'Sundurliðun Skuldabréf'!G27","v":0},".M.EVBSVVM.XX.SLY.OPI.XXXX.SV.XXX.XXX.IS.N.M"]
[{"$f":"\"INN.\"&EIGNIR!$B$3&C3214","v":{"$error":"#N/A"}},{"$f":"'Sundurliðun Skuldabréf'!G28","v":0},".M.EVBSVVM.XX.FHL.OPI.XXXX.SV.XXX.XXX.IS.N.M"]
[{"$f":"\"INN.\"&EIGNIR!$B$3&C3215","v":{"$error":"#N/A"}},{"$f":"'Sundurliðun Skuldabréf'!G29","v":0},".M.EVBSVVM.XX.INF.OPI.XXXX.SV.XXX.XXX.IS.N.M"]
[{"$f":"\"INN.\"&EIGNIR!$B$3&C3216","v":{"$error":"#N/A"}},{"$f":"'Sundurliðun Skuldabréf'!G30","v":0},".M.EVBSVVM.XX.TRY.OPI.XXXX.SV.XXX.XXX.IS.N.M"]
[{"$f":"\"INN.\"&EIGNIR!$B$3&C3217","v":{"$error":"#N/A"}},{"$f":"'Sundurliðun Skuldabréf'!G31","v":0},".M.EVBSVVM.XX.LIF.OPI.XXXX.SV.XXX.XXX.IS.N.M"]
[{"$f":"\"INN.\"&EIGNIR!$B$3&C3218","v":{"$error":"#N/A"}},{"$f":"'Sundurliðun Skuldabréf'!G46","v":0},".M.EVBSVOM.XX.ATV.OPI.XXXX.SX.LAT.XXX.IS.N.M"]
[{"$f":"\"INN.\"&EIGNIR!$B$3&C3219","v":{"$error":"#N/A"}},{"$f":"'Sundurliðun Skuldabréf'!G60","v":0},".M.EVBSVOM.XX.FJA.OPI.XXXX.SX.LAT.XXX.IS.N.M"]
[{"$f":"\"INN.\"&EIGNIR!$B$3&C3220","v":{"$error":"#N/A"}},{"$f":"'Sundurliðun Skuldabréf'!G61","v":0},".M.EVBSVOM.XX.INN.OPI.XXXX.SX.LAT.XXX.IS.N.M"]
[{"$f":"\"INN.\"&EIGNIR!$B$3&C3221","v":{"$error":"#N/A"}},{"$f":"'Sundurliðun Skuldabréf'!G62","v":0},".M.EVBSVOM.XX.SLI.OPI.XXXX.SX.LAT.XXX.IS.N.M"]
[{"$f":"\"INN.\"&EIGNIR!$B$3&C3222","v":{"$error":"#N/A"}},{"$f":"'Sundurliðun Skuldabréf'!G63","v":0},".M.EVBSVOM.XX.PEN.OPI.XXXX.SX.LAT.XXX.IS.N.M"]
[{"$f":"\"INN.\"&EIGNIR!$B$3&C3223","v":{"$error":"#N/A"}},{"$f":"'Sundurliðun Skuldabréf'!G64","v":0},".M.EVBSVOM.XX.SJO.OPI.XXXX.SX.LAT.XXX.IS.N.M"]
[{"$f":"\"INN.\"&EIGNIR!$B$3&C3224","v":{"$error":"#N/A"}},{"$f":"'Sundurliðun Skuldabréf'!G65","v":0},".M.EVBSVOM.XX.YFT.OPI.XXXX.SX.LAT.XXX.IS.N.M"]
[{"$f":"\"INN.\"&EIGNIR!$B$3&C3225","v":{"$error":"#N/A"}},{"$f":"'Sundurliðun Skuldabréf'!G66","v":0},".M.EVBSVOM.XX.SLY.OPI.XXXX.SX.LAT.XXX.IS.N.M"]
[{"$f":"\"INN.\"&EIGNIR!$B$3&C3226","v":{"$error":"#N/A"}},{"$f":"'Sundurliðun Skuldabréf'!G67","v":0},".M.EVBSVOM.XX.FHL.OPI.XXXX.SX.LAT.XXX.IS.N.M"]
[{"$f":"\"INN.\"&EIGNIR!$B$3&C3227","v":{"$error":"#N/A"}},{"$f":"'Sundurliðun Skuldabréf'!G68","v":0},".M.EVBSVOM.XX.INF.OPI.XXXX.SX.LAT.XXX.IS.N.M"]
[{"$f":"\"INN.\"&EIGNIR!$B$3&C3228","v":{"$error":"#N/A"}},{"$f":"'Sundurliðun Skuldabréf'!G69","v":0},".M.EVBSVOM.XX.TRY.OPI.XXXX.SX.LAT.XXX.IS.N.M"]
[{"$f":"\"INN.\"&EIGNIR!$B$3&C3229","v":{"$error":"#N/A"}},{"$f":"'Sundurliðun Skuldabréf'!G70","v":0},".M.EVBSVOM.XX.LIF.OPI.XXXX.SX.LAT.XXX.IS.N.M"]
[{"$f":"\"INN.\"&EIGNIR!$B$3&C3230","v":{"$error":"#N/A"}},{"$f":"'Sundurliðun Skuldabréf'!G85","v":0},".M.EVBSVOM.XX.ATV.OPI.XXXX.SX.SKT.XXX.IS.N.M"]
[{"$f":"\"INN.\"&EIGNIR!$B$3&C3231","v":{"$error":"#N/A"}},{"$f":"'Sundurliðun Skuldabréf'!G99","v":0},".M.EVBSVOM.XX.FJA.OPI.XXXX.SX.SKT.XXX.IS.N.M"]
[{"$f":"\"INN.\"&EIGNIR!$B$3&C3232","v":{"$error":"#N/A"}},{"$f":"'Sundurliðun Skuldabréf'!G100","v":0},".M.EVBSVOM.XX.INN.OPI.XXXX.SX.SKT.XXX.IS.N.M"]
[{"$f":"\"INN.\"&EIGNIR!$B$3&C3233","v":{"$error":"#N/A"}},{"$f":"'Sundurliðun Skuldabréf'!G101","v":0},".M.EVBSVOM.XX.SLI.OPI.XXXX.SX.SKT.XXX.IS.N.M"]
[{"$f":"\"INN.\"&EIGNIR!$B$3&C3234","v":{"$error":"#N/A"}},{"$f":"'Sundurliðun Skuldabréf'!G102","v":0},".M.EVBSVOM.XX.PEN.OPI.XXXX.SX.SKT.XXX.IS.N.M"]
[{"$f":"\"INN.\"&EIGNIR!$B$3&C3235","v":{"$error":"#N/A"}},{"$f":"'Sundurliðun Skuldabréf'!G103","v":0},".M.EVBSVOM.XX.SJO.OPI.XXXX.SX.SKT.XXX.IS.N.M"]
[{"$f":"\"INN.\"&EIGNIR!$B$3&C3236","v":{"$error":"#N/A"}},{"$f":"'Sundurliðun Skuldabréf'!G104","v":0},".M.EVBSVOM.XX.YFT.OPI.XXXX.SX.SKT.XXX.IS.N.M"]
[{"$f":"\"INN.\"&EIGNIR!$B$3&C3237","v":{"$error":"#N/A"}},{"$f":"'Sundurliðun Skuldabréf'!G105","v":0},".M.EVBSVOM.XX.SLY.OPI.XXXX.SX.SKT.XXX.IS.N.M"]
[{"$f":"\"INN.\"&EIGNIR!$B$3&C3238","v":{"$error":"#N/A"}},{"$f":"'Sundurliðun Skuldabréf'!G106","v":0},".M.EVBSVOM.XX.FHL.OPI.XXXX.SX.SKT.XXX.IS.N.M"]
[{"$f":"\"INN.\"&EIGNIR!$B$3&C3239","v":{"$error":"#N/A"}},{"$f":"'Sundurliðun Skuldabréf'!G107","v":0},".M.EVBSVOM.XX.INF.OPI.XXXX.SX.SKT.XXX.IS.N.M"]
[{"$f":"\"INN.\"&EIGNIR!$B$3&C3240","v":{"$error":"#N/A"}},{"$f":"'Sundurliðun Skuldabréf'!G108","v":0},".M.EVBSVOM.XX.TRY.OPI.XXXX.SX.SKT.XXX.IS.N.M"]
[{"$f":"\"INN.\"&EIGNIR!$B$3&C3241","v":{"$error":"#N/A"}},{"$f":"'Sundurliðun Skuldabréf'!G109","v":0},".M.EVBSVOM.XX.LIF.OPI.XXXX.SX.SKT.XXX.IS.N.M"]
[{"$f":"\"INN.\"&EIGNIR!$B$3&C3242","v":{"$error":"#N/A"}},{"$f":"'Sundurliðun Skuldabréf'!G126","v":0},".M.EVBSVHB.XX.YFT.OPI.XXXX.SV.XXX.XXX.IS.N.M","//Húsbréf"]
[{"$f":"\"INN.\"&EIGNIR!$B$3&C3243","v":{"$error":"#N/A"}},{"$f":"'Sundurliðun Skuldabréf'!G127","v":0},".M.EVBSVHN.XX.YFT.OPI.XXXX.SV.XXX.XXX.IS.N.M"]
[{"$f":"\"INN.\"&EIGNIR!$B$3&C3244","v":{"$error":"#N/A"}},{"$f":"'Sundurliðun Skuldabréf'!G128","v":0},".M.EVBSVIB.XX.YFT.OPI.XXXX.SV.XXX.XXX.IS.N.M"]
[{"$f":"\"INN.\"&EIGNIR!$B$3&C3245","v":{"$error":"#N/A"}},{"$f":"'Sundurliðun Skuldabréf'!G129","v":0},".M.EVBSVOS.XX.XXX.OPI.XXXX.SV.XXX.XXX.IS.N.M"]
[{"$f":"\"INN.\"&EIGNIR!$B$3&C3246","v":{"$error":"#N/A"}},{"$f":"'Sundurliðun Skuldabréf'!H7","v":0},".M.EVBSVVM.XX.ATV.EIF.XXXX.SV.XXX.XXX.IS.N.M"]
[{"$f":"\"INN.\"&EIGNIR!$B$3&C3247","v":{"$error":"#N/A"}},{"$f":"'Sundurliðun Skuldabréf'!H21","v":0},".M.EVBSVVM.XX.FJA.EIF.XXXX.SV.XXX.XXX.IS.N.M"]
[{"$f":"\"INN.\"&EIGNIR!$B$3&C3248","v":{"$error":"#N/A"}},{"$f":"'Sundurliðun Skuldabréf'!H22","v":0},".M.EVBSVVM.XX.INN.EIF.XXXX.SV.XXX.XXX.IS.N.M"]
[{"$f":"\"INN.\"&EIGNIR!$B$3&C3249","v":{"$error":"#N/A"}},{"$f":"'Sundurliðun Skuldabréf'!H23","v":0},".M.EVBSVVM.XX.SLI.EIF.XXXX.SV.XXX.XXX.IS.N.M"]
[{"$f":"\"INN.\"&EIGNIR!$B$3&C3250","v":{"$error":"#N/A"}},{"$f":"'Sundurliðun Skuldabréf'!H24","v":0},".M.EVBSVVM.XX.PEN.EIF.XXXX.SV.XXX.XXX.IS.N.M"]
[{"$f":"\"INN.\"&EIGNIR!$B$3&C3251","v":{"$error":"#N/A"}},{"$f":"'Sundurliðun Skuldabréf'!H25","v":0},".M.EVBSVVM.XX.SJO.EIF.XXXX.SV.XXX.XXX.IS.N.M"]
[{"$f":"\"INN.\"&EIGNIR!$B$3&C3252","v":{"$error":"#N/A"}},{"$f":"'Sundurliðun Skuldabréf'!H26","v":0},".M.EVBSVVM.XX.YFT.EIF.XXXX.SV.XXX.XXX.IS.N.M"]
[{"$f":"\"INN.\"&EIGNIR!$B$3&C3253","v":{"$error":"#N/A"}},{"$f":"'Sundurliðun Skuldabréf'!H27","v":0},".M.EVBSVVM.XX.SLY.EIF.XXXX.SV.XXX.XXX.IS.N.M"]
[{"$f":"\"INN.\"&EIGNIR!$B$3&C3254","v":{"$error":"#N/A"}},{"$f":"'Sundurliðun Skuldabréf'!H28","v":0},".M.EVBSVVM.XX.FHL.EIF.XXXX.SV.XXX.XXX.IS.N.M"]
[{"$f":"\"INN.\"&EIGNIR!$B$3&C3255","v":{"$error":"#N/A"}},{"$f":"'Sundurliðun Skuldabréf'!H29","v":0},".M.EVBSVVM.XX.INF.EIF.XXXX.SV.XXX.XXX.IS.N.M"]
[{"$f":"\"INN.\"&EIGNIR!$B$3&C3256","v":{"$error":"#N/A"}},{"$f":"'Sundurliðun Skuldabréf'!H30","v":0},".M.EVBSVVM.XX.TRY.EIF.XXXX.SV.XXX.XXX.IS.N.M"]
[{"$f":"\"INN.\"&EIGNIR!$B$3&C3257","v":{"$error":"#N/A"}},{"$f":"'Sundurliðun Skuldabréf'!H31","v":0},".M.EVBSVVM.XX.LIF.EIF.XXXX.SV.XXX.XXX.IS.N.M"]
[{"$f":"\"INN.\"&EIGNIR!$B$3&C3258","v":{"$error":"#N/A"}},{"$f":"'Sundurliðun Skuldabréf'!H46","v":0},".M.EVBSVOM.XX.ATV.EIF.XXXX.SX.LAT.XXX.IS.N.M"]
[{"$f":"\"INN.\"&EIGNIR!$B$3&C3259","v":{"$error":"#N/A"}},{"$f":"'Sundurliðun Skuldabréf'!H60","v":0},".M.EVBSVOM.XX.FJA.EIF.XXXX.SX.LAT.XXX.IS.N.M"]
[{"$f":"\"INN.\"&EIGNIR!$B$3&C3260","v":{"$error":"#N/A"}},{"$f":"'Sundurliðun Skuldabréf'!H61","v":0},".M.EVBSVOM.XX.INN.EIF.XXXX.SX.LAT.XXX.IS.N.M"]
[{"$f":"\"INN.\"&EIGNIR!$B$3&C3261","v":{"$error":"#N/A"}},{"$f":"'Sundurliðun Skuldabréf'!H62","v":0},".M.EVBSVOM.XX.SLI.EIF.XXXX.SX.LAT.XXX.IS.N.M"]
[{"$f":"\"INN.\"&EIGNIR!$B$3&C3262","v":{"$error":"#N/A"}},{"$f":"'Sundurliðun Skuldabréf'!H63","v":0},".M.EVBSVOM.XX.PEN.EIF.XXXX.SX.LAT.XXX.IS.N.M"]
[{"$f":"\"INN.\"&EIGNIR!$B$3&C3263","v":{"$error":"#N/A"}},{"$f":"'Sundurliðun Skuldabréf'!H64","v":0},".M.EVBSVOM.XX.SJO.EIF.XXXX.SX.LAT.XXX.IS.N.M"]
[{"$f":"\"INN.\"&EIGNIR!$B$3&C3264","v":{"$error":"#N/A"}},{"$f":"'Sundurliðun Skuldabréf'!H65","v":0},".M.EVBSVOM.XX.YFT.EIF.XXXX.SX.LAT.XXX.IS.N.M"]
[{"$f":"\"INN.\"&EIGNIR!$B$3&C3265","v":{"$error":"#N/A"}},{"$f":"'Sundurliðun Skuldabréf'!H66","v":0},".M.EVBSVOM.XX.SLY.EIF.XXXX.SX.LAT.XXX.IS.N.M"]
[{"$f":"\"INN.\"&EIGNIR!$B$3&C3266","v":{"$error":"#N/A"}},{"$f":"'Sundurliðun Skuldabréf'!H67","v":0},".M.EVBSVOM.XX.FHL.EIF.XXXX.SX.LAT.XXX.IS.N.M"]
[{"$f":"\"INN.\"&EIGNIR!$B$3&C3267","v":{"$error":"#N/A"}},{"$f":"'Sundurliðun Skuldabréf'!H68","v":0},".M.EVBSVOM.XX.INF.EIF.XXXX.SX.LAT.XXX.IS.N.M"]
[{"$f":"\"INN.\"&EIGNIR!$B$3&C3268","v":{"$error":"#N/A"}},{"$f":"'Sundurliðun Skuldabréf'!H69","v":0},".M.EVBSVOM.XX.TRY.EIF.XXXX.SX.LAT.XXX.IS.N.M"]
[{"$f":"\"INN.\"&EIGNIR!$B$3&C3269","v":{"$error":"#N/A"}},{"$f":"'Sundurliðun Skuldabréf'!H70","v":0},".M.EVBSVOM.XX.LIF.EIF.XXXX.SX.LAT.XXX.IS.N.M"]
[{"$f":"\"INN.\"&EIGNIR!$B$3&C3270","v":{"$error":"#N/A"}},{"$f":"'Sundurliðun Skuldabréf'!H85","v":0},".M.EVBSVOM.XX.ATV.EIF.XXXX.SX.SKT.XXX.IS.N.M"]
[{"$f":"\"INN.\"&EIGNIR!$B$3&C3271","v":{"$error":"#N/A"}},{"$f":"'Sundurliðun Skuldabréf'!H99","v":0},".M.EVBSVOM.XX.FJA.EIF.XXXX.SX.SKT.XXX.IS.N.M"]
[{"$f":"\"INN.\"&EIGNIR!$B$3&C3272","v":{"$error":"#N/A"}},{"$f":"'Sundurliðun Skuldabréf'!H100","v":0},".M.EVBSVOM.XX.INN.EIF.XXXX.SX.SKT.XXX.IS.N.M"]
[{"$f":"\"INN.\"&EIGNIR!$B$3&C3273","v":{"$error":"#N/A"}},{"$f":"'Sundurliðun Skuldabréf'!H101","v":0},".M.EVBSVOM.XX.SLI.EIF.XXXX.SX.SKT.XXX.IS.N.M"]
[{"$f":"\"INN.\"&EIGNIR!$B$3&C3274","v":{"$error":"#N/A"}},{"$f":"'Sundurliðun Skuldabréf'!H102","v":0},".M.EVBSVOM.XX.PEN.EIF.XXXX.SX.SKT.XXX.IS.N.M"]
[{"$f":"\"INN.\"&EIGNIR!$B$3&C3275","v":{"$error":"#N/A"}},{"$f":"'Sundurliðun Skuldabréf'!H103","v":0},".M.EVBSVOM.XX.SJO.EIF.XXXX.SX.SKT.XXX.IS.N.M"]
[{"$f":"\"INN.\"&EIGNIR!$B$3&C3276","v":{"$error":"#N/A"}},{"$f":"'Sundurliðun Skuldabréf'!H104","v":0},".M.EVBSVOM.XX.YFT.EIF.XXXX.SX.SKT.XXX.IS.N.M"]
[{"$f":"\"INN.\"&EIGNIR!$B$3&C3277","v":{"$error":"#N/A"}},{"$f":"'Sundurliðun Skuldabréf'!H105","v":0},".M.EVBSVOM.XX.SLY.EIF.XXXX.SX.SKT.XXX.IS.N.M"]
[{"$f":"\"INN.\"&EIGNIR!$B$3&C3278","v":{"$error":"#N/A"}},{"$f":"'Sundurliðun Skuldabréf'!H106","v":0},".M.EVBSVOM.XX.FHL.EIF.XXXX.SX.SKT.XXX.IS.N.M"]
[{"$f":"\"INN.\"&EIGNIR!$B$3&C3279","v":{"$error":"#N/A"}},{"$f":"'Sundurliðun Skuldabréf'!H107","v":0},".M.EVBSVOM.XX.INF.EIF.XXXX.SX.SKT.XXX.IS.N.M"]
[{"$f":"\"INN.\"&EIGNIR!$B$3&C3280","v":{"$error":"#N/A"}},{"$f":"'Sundurliðun Skuldabréf'!H108","v":0},".M.EVBSVOM.XX.TRY.EIF.XXXX.SX.SKT.XXX.IS.N.M"]
[{"$f":"\"INN.\"&EIGNIR!$B$3&C3281","v":{"$error":"#N/A"}},{"$f":"'Sundurliðun Skuldabréf'!H109","v":0},".M.EVBSVOM.XX.LIF.EIF.XXXX.SX.SKT.XXX.IS.N.M"]
[{"$f":"\"INN.\"&EIGNIR!$B$3&C3282","v":{"$error":"#N/A"}},{"$f":"'Sundurliðun Skuldabréf'!H129","v":0},".M.EVBSVOS.XX.XXX.EIF.XXXX.SV.XXX.XXX.IS.N.M"]
[{"$f":"\"INN.\"&EIGNIR!$B$3&C3283","v":{"$error":"#N/A"}},{"$f":"'Sundurliðun Skuldabréf'!I5","v":0},".M.EVBSV$$.XX.$$$.XXX.XXXX.SX.XXX.ISK.IS.N.M"]
[{"$f":"\"INN.\"&EIGNIR!$B$3&C3284","v":{"$error":"#N/A"}},{"$f":"'Sundurliðun Skuldabréf'!I6","v":0},".M.EVBSVVM.XX.$$$.XXX.XXXX.SV.XXX.ISK.IS.N.M"]
[{"$f":"\"INN.\"&EIGNIR!$B$3&C3285","v":{"$error":"#N/A"}},{"$f":"'Sundurliðun Skuldabréf'!I7","v":0},".M.EVBSVVM.XX.ATV.XXX.XXXX.SV.XXX.ISK.IS.N.M"]
[{"$f":"\"INN.\"&EIGNIR!$B$3&C3286","v":{"$error":"#N/A"}},{"$f":"'Sundurliðun Skuldabréf'!I21","v":0},".M.EVBSVVM.XX.FJA.XXX.XXXX.SV.XXX.ISK.IS.N.M"]
[{"$f":"\"INN.\"&EIGNIR!$B$3&C3287","v":{"$error":"#N/A"}},{"$f":"'Sundurliðun Skuldabréf'!I22","v":0},".M.EVBSVVM.XX.INN.XXX.XXXX.SV.XXX.ISK.IS.N.M"]
[{"$f":"\"INN.\"&EIGNIR!$B$3&C3288","v":{"$error":"#N/A"}},{"$f":"'Sundurliðun Skuldabréf'!I23","v":0},".M.EVBSVVM.XX.SLI.XXX.XXXX.SV.XXX.ISK.IS.N.M"]
[{"$f":"\"INN.\"&EIGNIR!$B$3&C3289","v":{"$error":"#N/A"}},{"$f":"'Sundurliðun Skuldabréf'!I24","v":0},".M.EVBSVVM.XX.PEN.XXX.XXXX.SV.XXX.ISK.IS.N.M"]
[{"$f":"\"INN.\"&EIGNIR!$B$3&C3290","v":{"$error":"#N/A"}},{"$f":"'Sundurliðun Skuldabréf'!I25","v":0},".M.EVBSVVM.XX.SJO.XXX.XXXX.SV.XXX.ISK.IS.N.M"]
[{"$f":"\"INN.\"&EIGNIR!$B$3&C3291","v":{"$error":"#N/A"}},{"$f":"'Sundurliðun Skuldabréf'!I26","v":0},".M.EVBSVVM.XX.YFT.XXX.XXXX.SV.XXX.ISK.IS.N.M"]
[{"$f":"\"INN.\"&EIGNIR!$B$3&C3292","v":{"$error":"#N/A"}},{"$f":"'Sundurliðun Skuldabréf'!I27","v":0},".M.EVBSVVM.XX.SLY.XXX.XXXX.SV.XXX.ISK.IS.N.M"]
[{"$f":"\"INN.\"&EIGNIR!$B$3&C3293","v":{"$error":"#N/A"}},{"$f":"'Sundurliðun Skuldabréf'!I28","v":0},".M.EVBSVVM.XX.FHL.XXX.XXXX.SV.XXX.ISK.IS.N.M"]
[{"$f":"\"INN.\"&EIGNIR!$B$3&C3294","v":{"$error":"#N/A"}},{"$f":"'Sundurliðun Skuldabréf'!I29","v":0},".M.EVBSVVM.XX.INF.XXX.XXXX.SV.XXX.ISK.IS.N.M"]
[{"$f":"\"INN.\"&EIGNIR!$B$3&C3295","v":{"$error":"#N/A"}},{"$f":"'Sundurliðun Skuldabréf'!I30","v":0},".M.EVBSVVM.XX.TRY.XXX.XXXX.SV.XXX.ISK.IS.N.M"]
[{"$f":"\"INN.\"&EIGNIR!$B$3&C3296","v":{"$error":"#N/A"}},{"$f":"'Sundurliðun Skuldabréf'!I31","v":0},".M.EVBSVVM.XX.LIF.XXX.XXXX.SV.XXX.ISK.IS.N.M"]
[{"$f":"\"INN.\"&EIGNIR!$B$3&C3297","v":{"$error":"#N/A"}},{"$f":"'Sundurliðun Skuldabréf'!I32","v":0},".M.EVBSVVM.XX.OPI.XXX.XXXX.SV.XXX.ISK.IS.N.M"]
[{"$f":"\"INN.\"&EIGNIR!$B$3&C3298","v":{"$error":"#N/A"}},{"$f":"'Sundurliðun Skuldabréf'!I33","v":0},".M.EVBSVVM.XX.RSS.XXX.XXXX.SV.XXX.ISK.IS.N.M"]
[{"$f":"\"INN.\"&EIGNIR!$B$3&C3299","v":{"$error":"#N/A"}},{"$f":"'Sundurliðun Skuldabréf'!I34","v":0},".M.EVBSVVM.XX.BAJ.XXX.XXXX.SV.XXX.ISK.IS.N.M"]
[{"$f":"\"INN.\"&EIGNIR!$B$3&C3300","v":{"$error":"#N/A"}},{"$f":"'Sundurliðun Skuldabréf'!I36","v":0},".M.EVBSVVM.XX.NPH.XXX.XXXX.SV.XXX.ISK.IS.N.M"]
[{"$f":"\"INN.\"&EIGNIR!$B$3&C3301","v":{"$error":"#N/A"}},{"$f":"'Sundurliðun Skuldabréf'!I37","v":0},".M.EVBSVVM.XX.ERL.XXX.XXXX.SV.XXX.ISK.IS.N.M"]
[{"$f":"\"INN.\"&EIGNIR!$B$3&C3302","v":{"$error":"#N/A"}},{"$f":"'Sundurliðun Skuldabréf'!I38","v":0},".M.EVBSVVM.XX.ERS.XXX.XXXX.SV.XXX.ISK.IS.N.M"]
[{"$f":"\"INN.\"&EIGNIR!$B$3&C3303","v":{"$error":"#N/A"}},{"$f":"'Sundurliðun Skuldabréf'!I39","v":0},".M.EVBSVVM.XX.ERI.XXX.XXXX.SV.XXX.ISK.IS.N.M"]
[{"$f":"\"INN.\"&EIGNIR!$B$3&C3304","v":{"$error":"#N/A"}},{"$f":"'Sundurliðun Skuldabréf'!I40","v":0},".M.EVBSVVM.XX.ERP.XXX.XXXX.SV.XXX.ISK.IS.N.M"]
[{"$f":"\"INN.\"&EIGNIR!$B$3&C3305","v":{"$error":"#N/A"}},{"$f":"'Sundurliðun Skuldabréf'!I41","v":0},".M.EVBSVVM.XX.ERV.XXX.XXXX.SV.XXX.ISK.IS.N.M"]
[{"$f":"\"INN.\"&EIGNIR!$B$3&C3306","v":{"$error":"#N/A"}},{"$f":"'Sundurliðun Skuldabréf'!I42","v":0},".M.EVBSVVM.XX.ERF.XXX.XXXX.SV.XXX.ISK.IS.N.M"]
[{"$f":"\"INN.\"&EIGNIR!$B$3&C3307","v":{"$error":"#N/A"}},{"$f":"'Sundurliðun Skuldabréf'!I43","v":0},".M.EVBSVVM.XX.ERO.XXX.XXXX.SV.XXX.ISK.IS.N.M"]
[{"$f":"\"INN.\"&EIGNIR!$B$3&C3308","v":{"$error":"#N/A"}},{"$f":"'Sundurliðun Skuldabréf'!I44","v":0},".M.EVBSVVM.XX.ERA.XXX.XXXX.SV.XXX.ISK.IS.N.M"]
[{"$f":"\"INN.\"&EIGNIR!$B$3&C3309","v":{"$error":"#N/A"}},{"$f":"'Sundurliðun Skuldabréf'!I45","v":0},".M.EVBSVOM.XX.$$$.XXX.XXXX.SX.LAT.ISK.IS.N.M"]
[{"$f":"\"INN.\"&EIGNIR!$B$3&C3310","v":{"$error":"#N/A"}},{"$f":"'Sundurliðun Skuldabréf'!I46","v":0},".M.EVBSVOM.XX.ATV.XXX.XXXX.SX.LAT.ISK.IS.N.M"]
[{"$f":"\"INN.\"&EIGNIR!$B$3&C3311","v":{"$error":"#N/A"}},{"$f":"'Sundurliðun Skuldabréf'!I60","v":0},".M.EVBSVOM.XX.FJA.XXX.XXXX.SX.LAT.ISK.IS.N.M"]
[{"$f":"\"INN.\"&EIGNIR!$B$3&C3312","v":{"$error":"#N/A"}},{"$f":"'Sundurliðun Skuldabréf'!I61","v":0},".M.EVBSVOM.XX.INN.XXX.XXXX.SX.LAT.ISK.IS.N.M"]
[{"$f":"\"INN.\"&EIGNIR!$B$3&C3313","v":{"$error":"#N/A"}},{"$f":"'Sundurliðun Skuldabréf'!I62","v":0},".M.EVBSVOM.XX.SLI.XXX.XXXX.SX.LAT.ISK.IS.N.M"]
[{"$f":"\"INN.\"&EIGNIR!$B$3&C3314","v":{"$error":"#N/A"}},{"$f":"'Sundurliðun Skuldabréf'!I63","v":0},".M.EVBSVOM.XX.PEN.XXX.XXXX.SX.LAT.ISK.IS.N.M"]
[{"$f":"\"INN.\"&EIGNIR!$B$3&C3315","v":{"$error":"#N/A"}},{"$f":"'Sundurliðun Skuldabréf'!I64","v":0},".M.EVBSVOM.XX.SJO.XXX.XXXX.SX.LAT.ISK.IS.N.M"]
[{"$f":"\"INN.\"&EIGNIR!$B$3&C3316","v":{"$error":"#N/A"}},{"$f":"'Sundurliðun Skuldabréf'!I65","v":0},".M.EVBSVOM.XX.YFT.XXX.XXXX.SX.LAT.ISK.IS.N.M"]
[{"$f":"\"INN.\"&EIGNIR!$B$3&C3317","v":{"$error":"#N/A"}},{"$f":"'Sundurliðun Skuldabréf'!I66","v":0},".M.EVBSVOM.XX.SLY.XXX.XXXX.SX.LAT.ISK.IS.N.M"]
[{"$f":"\"INN.\"&EIGNIR!$B$3&C3318","v":{"$error":"#N/A"}},{"$f":"'Sundurliðun Skuldabréf'!I67","v":0},".M.EVBSVOM.XX.FHL.XXX.XXXX.SX.LAT.ISK.IS.N.M"]
[{"$f":"\"INN.\"&EIGNIR!$B$3&C3319","v":{"$error":"#N/A"}},{"$f":"'Sundurliðun Skuldabréf'!I68","v":0},".M.EVBSVOM.XX.INF.XXX.XXXX.SX.LAT.ISK.IS.N.M"]
[{"$f":"\"INN.\"&EIGNIR!$B$3&C3320","v":{"$error":"#N/A"}},{"$f":"'Sundurliðun Skuldabréf'!I69","v":0},".M.EVBSVOM.XX.TRY.XXX.XXXX.SX.LAT.ISK.IS.N.M"]
[{"$f":"\"INN.\"&EIGNIR!$B$3&C3321","v":{"$error":"#N/A"}},{"$f":"'Sundurliðun Skuldabréf'!I70","v":0},".M.EVBSVOM.XX.LIF.XXX.XXXX.SX.LAT.ISK.IS.N.M"]
[{"$f":"\"INN.\"&EIGNIR!$B$3&C3322","v":{"$error":"#N/A"}},{"$f":"'Sundurliðun Skuldabréf'!I71","v":0},".M.EVBSVOM.XX.OPI.XXX.XXXX.SX.LAT.ISK.IS.N.M"]
[{"$f":"\"INN.\"&EIGNIR!$B$3&C3323","v":{"$error":"#N/A"}},{"$f":"'Sundurliðun Skuldabréf'!I72","v":0},".M.EVBSVOM.XX.RSS.XXX.XXXX.SX.LAT.ISK.IS.N.M"]
[{"$f":"\"INN.\"&EIGNIR!$B$3&C3324","v":{"$error":"#N/A"}},{"$f":"'Sundurliðun Skuldabréf'!I73","v":0},".M.EVBSVOM.XX.BAJ.XXX.XXXX.SX.LAT.ISK.IS.N.M"]
[{"$f":"\"INN.\"&EIGNIR!$B$3&C3325","v":{"$error":"#N/A"}},{"$f":"'Sundurliðun Skuldabréf'!I75","v":0},".M.EVBSVOM.XX.NPH.XXX.XXXX.SX.LAT.ISK.IS.N.M"]
[{"$f":"\"INN.\"&EIGNIR!$B$3&C3326","v":{"$error":"#N/A"}},{"$f":"'Sundurliðun Skuldabréf'!I76","v":0},".M.EVBSVOM.XX.ERL.XXX.XXXX.SX.LAT.ISK.IS.N.M"]
[{"$f":"\"INN.\"&EIGNIR!$B$3&C3327","v":{"$error":"#N/A"}},{"$f":"'Sundurliðun Skuldabréf'!I77","v":0},".M.EVBSVOM.XX.ERS.XXX.XXXX.SX.LAT.ISK.IS.N.M"]
[{"$f":"\"INN.\"&EIGNIR!$B$3&C3328","v":{"$error":"#N/A"}},{"$f":"'Sundurliðun Skuldabréf'!I78","v":0},".M.EVBSVOM.XX.ERI.XXX.XXXX.SX.LAT.ISK.IS.N.M"]
[{"$f":"\"INN.\"&EIGNIR!$B$3&C3329","v":{"$error":"#N/A"}},{"$f":"'Sundurliðun Skuldabréf'!I79","v":0},".M.EVBSVOM.XX.ERP.XXX.XXXX.SX.LAT.ISK.IS.N.M"]
[{"$f":"\"INN.\"&EIGNIR!$B$3&C3330","v":{"$error":"#N/A"}},{"$f":"'Sundurliðun Skuldabréf'!I80","v":0},".M.EVBSVOM.XX.ERV.XXX.XXXX.SX.LAT.ISK.IS.N.M"]
[{"$f":"\"INN.\"&EIGNIR!$B$3&C3331","v":{"$error":"#N/A"}},{"$f":"'Sundurliðun Skuldabréf'!I81","v":0},".M.EVBSVOM.XX.ERF.XXX.XXXX.SX.LAT.ISK.IS.N.M"]
[{"$f":"\"INN.\"&EIGNIR!$B$3&C3332","v":{"$error":"#N/A"}},{"$f":"'Sundurliðun Skuldabréf'!I82","v":0},".M.EVBSVOM.XX.ERO.XXX.XXXX.SX.LAT.ISK.IS.N.M"]
[{"$f":"\"INN.\"&EIGNIR!$B$3&C3333","v":{"$error":"#N/A"}},{"$f":"'Sundurliðun Skuldabréf'!I83","v":0},".M.EVBSVOM.XX.ERA.XXX.XXXX.SX.LAT.ISK.IS.N.M"]
[{"$f":"\"INN.\"&EIGNIR!$B$3&C3334","v":{"$error":"#N/A"}},{"$f":"'Sundurliðun Skuldabréf'!I84","v":0},".M.EVBSVOM.XX.$$$.XXX.XXXX.SX.SKT.ISK.IS.N.M"]
[{"$f":"\"INN.\"&EIGNIR!$B$3&C3335","v":{"$error":"#N/A"}},{"$f":"'Sundurliðun Skuldabréf'!I85","v":0},".M.EVBSVOM.XX.ATV.XXX.XXXX.SX.SKT.ISK.IS.N.M"]
[{"$f":"\"INN.\"&EIGNIR!$B$3&C3336","v":{"$error":"#N/A"}},{"$f":"'Sundurliðun Skuldabréf'!I99","v":0},".M.EVBSVOM.XX.FJA.XXX.XXXX.SX.SKT.ISK.IS.N.M"]
[{"$f":"\"INN.\"&EIGNIR!$B$3&C3337","v":{"$error":"#N/A"}},{"$f":"'Sundurliðun Skuldabréf'!I100","v":0},".M.EVBSVOM.XX.INN.XXX.XXXX.SX.SKT.ISK.IS.N.M"]
[{"$f":"\"INN.\"&EIGNIR!$B$3&C3338","v":{"$error":"#N/A"}},{"$f":"'Sundurliðun Skuldabréf'!I101","v":0},".M.EVBSVOM.XX.SLI.XXX.XXXX.SX.SKT.ISK.IS.N.M"]
[{"$f":"\"INN.\"&EIGNIR!$B$3&C3339","v":{"$error":"#N/A"}},{"$f":"'Sundurliðun Skuldabréf'!I102","v":0},".M.EVBSVOM.XX.PEN.XXX.XXXX.SX.SKT.ISK.IS.N.M"]
[{"$f":"\"INN.\"&EIGNIR!$B$3&C3340","v":{"$error":"#N/A"}},{"$f":"'Sundurliðun Skuldabréf'!I103","v":0},".M.EVBSVOM.XX.SJO.XXX.XXXX.SX.SKT.ISK.IS.N.M"]
[{"$f":"\"INN.\"&EIGNIR!$B$3&C3341","v":{"$error":"#N/A"}},{"$f":"'Sundurliðun Skuldabréf'!I104","v":0},".M.EVBSVOM.XX.YFT.XXX.XXXX.SX.SKT.ISK.IS.N.M"]
[{"$f":"\"INN.\"&EIGNIR!$B$3&C3342","v":{"$error":"#N/A"}},{"$f":"'Sundurliðun Skuldabréf'!I105","v":0},".M.EVBSVOM.XX.SLY.XXX.XXXX.SX.SKT.ISK.IS.N.M"]
[{"$f":"\"INN.\"&EIGNIR!$B$3&C3343","v":{"$error":"#N/A"}},{"$f":"'Sundurliðun Skuldabréf'!I106","v":0},".M.EVBSVOM.XX.FHL.XXX.XXXX.SX.SKT.ISK.IS.N.M"]
[{"$f":"\"INN.\"&EIGNIR!$B$3&C3344","v":{"$error":"#N/A"}},{"$f":"'Sundurliðun Skuldabréf'!I107","v":0},".M.EVBSVOM.XX.INF.XXX.XXXX.SX.SKT.ISK.IS.N.M"]
[{"$f":"\"INN.\"&EIGNIR!$B$3&C3345","v":{"$error":"#N/A"}},{"$f":"'Sundurliðun Skuldabréf'!I108","v":0},".M.EVBSVOM.XX.TRY.XXX.XXXX.SX.SKT.ISK.IS.N.M"]
[{"$f":"\"INN.\"&EIGNIR!$B$3&C3346","v":{"$error":"#N/A"}},{"$f":"'Sundurliðun Skuldabréf'!I109","v":0},".M.EVBSVOM.XX.LIF.XXX.XXXX.SX.SKT.ISK.IS.N.M"]
[{"$f":"\"INN.\"&EIGNIR!$B$3&C3347","v":{"$error":"#N/A"}},{"$f":"'Sundurliðun Skuldabréf'!I110","v":0},".M.EVBSVOM.XX.OPI.XXX.XXXX.SX.SKT.ISK.IS.N.M"]
[{"$f":"\"INN.\"&EIGNIR!$B$3&C3348","v":{"$error":"#N/A"}},{"$f":"'Sundurliðun Skuldabréf'!I111","v":0},".M.EVBSVOM.XX.RSS.XXX.XXXX.SX.SKT.ISK.IS.N.M"]
[{"$f":"\"INN.\"&EIGNIR!$B$3&C3349","v":{"$error":"#N/A"}},{"$f":"'Sundurliðun Skuldabréf'!I112","v":0},".M.EVBSVOM.XX.BAJ.XXX.XXXX.SX.SKT.ISK.IS.N.M"]
[{"$f":"\"INN.\"&EIGNIR!$B$3&C3350","v":{"$error":"#N/A"}},{"$f":"'Sundurliðun Skuldabréf'!I114","v":0},".M.EVBSVOM.XX.NPH.XXX.XXXX.SX.SKT.ISK.IS.N.M"]
[{"$f":"\"INN.\"&EIGNIR!$B$3&C3351","v":{"$error":"#N/A"}},{"$f":"'Sundurliðun Skuldabréf'!I115","v":0},".M.EVBSVOM.XX.ERL.XXX.XXXX.SX.SKT.ISK.IS.N.M"]
[{"$f":"\"INN.\"&EIGNIR!$B$3&C3352","v":{"$error":"#N/A"}},{"$f":"'Sundurliðun Skuldabréf'!I116","v":0},".M.EVBSVOM.XX.ERS.XXX.XXXX.SX.SKT.ISK.IS.N.M"]
[{"$f":"\"INN.\"&EIGNIR!$B$3&C3353","v":{"$error":"#N/A"}},{"$f":"'Sundurliðun Skuldabréf'!I117","v":0},".M.EVBSVOM.XX.ERI.XXX.XXXX.SX.SKT.ISK.IS.N.M"]
[{"$f":"\"INN.\"&EIGNIR!$B$3&C3354","v":{"$error":"#N/A"}},{"$f":"'Sundurliðun Skuldabréf'!I118","v":0},".M.EVBSVOM.XX.ERP.XXX.XXXX.SX.SKT.ISK.IS.N.M"]
[{"$f":"\"INN.\"&EIGNIR!$B$3&C3355","v":{"$error":"#N/A"}},{"$f":"'Sundurliðun Skuldabréf'!I119","v":0},".M.EVBSVOM.XX.ERV.XXX.XXXX.SX.SKT.ISK.IS.N.M"]
[{"$f":"\"INN.\"&EIGNIR!$B$3&C3356","v":{"$error":"#N/A"}},{"$f":"'Sundurliðun Skuldabréf'!I120","v":0},".M.EVBSVOM.XX.ERF.XXX.XXXX.SX.SKT.ISK.IS.N.M"]
[{"$f":"\"INN.\"&EIGNIR!$B$3&C3357","v":{"$error":"#N/A"}},{"$f":"'Sundurliðun Skuldabréf'!I121","v":0},".M.EVBSVOM.XX.ERO.XXX.XXXX.SX.SKT.ISK.IS.N.M"]
[{"$f":"\"INN.\"&EIGNIR!$B$3&C3358","v":{"$error":"#N/A"}},{"$f":"'Sundurliðun Skuldabréf'!I122","v":0},".M.EVBSVOM.XX.ERA.XXX.XXXX.SX.SKT.ISK.IS.N.M"]
[{"$f":"\"INN.\"&EIGNIR!$B$3&C3359","v":{"$error":"#N/A"}},{"$f":"'Sundurliðun Skuldabréf'!I126","v":0},".M.EVBSVHB.XX.YFT.XXX.XXXX.SV.XXX.ISK.IS.N.M","//Húsbréf, ISK"]
[{"$f":"\"INN.\"&EIGNIR!$B$3&C3360","v":{"$error":"#N/A"}},{"$f":"'Sundurliðun Skuldabréf'!I127","v":0},".M.EVBSVHN.XX.YFT.XXX.XXXX.SV.XXX.ISK.IS.N.M"]
[{"$f":"\"INN.\"&EIGNIR!$B$3&C3361","v":{"$error":"#N/A"}},{"$f":"'Sundurliðun Skuldabréf'!I128","v":0},".M.EVBSVIB.XX.YFT.XXX.XXXX.SV.XXX.ISK.IS.N.M"]
[{"$f":"\"INN.\"&EIGNIR!$B$3&C3362","v":{"$error":"#N/A"}},{"$f":"'Sundurliðun Skuldabréf'!I129","v":0},".M.EVBSVOS.XX.XXX.XXX.XXXX.SV.XXX.ISK.IS.N.M"]
[{"$f":"\"INN.\"&EIGNIR!$B$3&C3363","v":{"$error":"#N/A"}},{"$f":"'Sundurliðun Skuldabréf'!J5","v":0},".M.EVBSV$$.XX.$$$.XXX.XXXX.SX.XXX.EUR.IS.N.M","//Sundurliðun Skuldabréf, EUR"]
[{"$f":"\"INN.\"&EIGNIR!$B$3&C3364","v":{"$error":"#N/A"}},{"$f":"'Sundurliðun Skuldabréf'!J45","v":0},".M.EVBSVOM.XX.$$$.XXX.XXXX.SX.LAT.EUR.IS.N.M"]
[{"$f":"\"INN.\"&EIGNIR!$B$3&C3365","v":{"$error":"#N/A"}},{"$f":"'Sundurliðun Skuldabréf'!J46","v":0},".M.EVBSVOM.XX.ATV.XXX.XXXX.SX.LAT.EUR.IS.N.M"]
[{"$f":"\"INN.\"&EIGNIR!$B$3&C3366","v":{"$error":"#N/A"}},{"$f":"'Sundurliðun Skuldabréf'!J60","v":0},".M.EVBSVOM.XX.FJA.XXX.XXXX.SX.LAT.EUR.IS.N.M"]
[{"$f":"\"INN.\"&EIGNIR!$B$3&C3367","v":{"$error":"#N/A"}},{"$f":"'Sundurliðun Skuldabréf'!J61","v":0},".M.EVBSVOM.XX.INN.XXX.XXXX.SX.LAT.EUR.IS.N.M"]
[{"$f":"\"INN.\"&EIGNIR!$B$3&C3368","v":{"$error":"#N/A"}},{"$f":"'Sundurliðun Skuldabréf'!J62","v":0},".M.EVBSVOM.XX.SLI.XXX.XXXX.SX.LAT.EUR.IS.N.M"]
[{"$f":"\"INN.\"&EIGNIR!$B$3&C3369","v":{"$error":"#N/A"}},{"$f":"'Sundurliðun Skuldabréf'!J63","v":0},".M.EVBSVOM.XX.PEN.XXX.XXXX.SX.LAT.EUR.IS.N.M"]
[{"$f":"\"INN.\"&EIGNIR!$B$3&C3370","v":{"$error":"#N/A"}},{"$f":"'Sundurliðun Skuldabréf'!J64","v":0},".M.EVBSVOM.XX.SJO.XXX.XXXX.SX.LAT.EUR.IS.N.M"]
[{"$f":"\"INN.\"&EIGNIR!$B$3&C3371","v":{"$error":"#N/A"}},{"$f":"'Sundurliðun Skuldabréf'!J65","v":0},".M.EVBSVOM.XX.YFT.XXX.XXXX.SX.LAT.EUR.IS.N.M"]
[{"$f":"\"INN.\"&EIGNIR!$B$3&C3372","v":{"$error":"#N/A"}},{"$f":"'Sundurliðun Skuldabréf'!J66","v":0},".M.EVBSVOM.XX.SLY.XXX.XXXX.SX.LAT.EUR.IS.N.M"]
[{"$f":"\"INN.\"&EIGNIR!$B$3&C3373","v":{"$error":"#N/A"}},{"$f":"'Sundurliðun Skuldabréf'!J67","v":0},".M.EVBSVOM.XX.FHL.XXX.XXXX.SX.LAT.EUR.IS.N.M"]
[{"$f":"\"INN.\"&EIGNIR!$B$3&C3374","v":{"$error":"#N/A"}},{"$f":"'Sundurliðun Skuldabréf'!J68","v":0},".M.EVBSVOM.XX.INF.XXX.XXXX.SX.LAT.EUR.IS.N.M"]
[{"$f":"\"INN.\"&EIGNIR!$B$3&C3375","v":{"$error":"#N/A"}},{"$f":"'Sundurliðun Skuldabréf'!J69","v":0},".M.EVBSVOM.XX.TRY.XXX.XXXX.SX.LAT.EUR.IS.N.M"]
[{"$f":"\"INN.\"&EIGNIR!$B$3&C3376","v":{"$error":"#N/A"}},{"$f":"'Sundurliðun Skuldabréf'!J70","v":0},".M.EVBSVOM.XX.LIF.XXX.XXXX.SX.LAT.EUR.IS.N.M"]
[{"$f":"\"INN.\"&EIGNIR!$B$3&C3377","v":{"$error":"#N/A"}},{"$f":"'Sundurliðun Skuldabréf'!J71","v":0},".M.EVBSVOM.XX.OPI.XXX.XXXX.SX.LAT.EUR.IS.N.M"]
[{"$f":"\"INN.\"&EIGNIR!$B$3&C3378","v":{"$error":"#N/A"}},{"$f":"'Sundurliðun Skuldabréf'!J72","v":0},".M.EVBSVOM.XX.RSS.XXX.XXXX.SX.LAT.EUR.IS.N.M"]
[{"$f":"\"INN.\"&EIGNIR!$B$3&C3379","v":{"$error":"#N/A"}},{"$f":"'Sundurliðun Skuldabréf'!J73","v":0},".M.EVBSVOM.XX.BAJ.XXX.XXXX.SX.LAT.EUR.IS.N.M"]
[{"$f":"\"INN.\"&EIGNIR!$B$3&C3380","v":{"$error":"#N/A"}},{"$f":"'Sundurliðun Skuldabréf'!J75","v":0},".M.EVBSVOM.XX.NPH.XXX.XXXX.SX.LAT.EUR.IS.N.M"]
[{"$f":"\"INN.\"&EIGNIR!$B$3&C3381","v":{"$error":"#N/A"}},{"$f":"'Sundurliðun Skuldabréf'!J76","v":0},".M.EVBSVOM.XX.ERL.XXX.XXXX.SX.LAT.EUR.IS.N.M"]
[{"$f":"\"INN.\"&EIGNIR!$B$3&C3382","v":{"$error":"#N/A"}},{"$f":"'Sundurliðun Skuldabréf'!J77","v":0},".M.EVBSVOM.XX.ERS.XXX.XXXX.SX.LAT.EUR.IS.N.M"]
[{"$f":"\"INN.\"&EIGNIR!$B$3&C3383","v":{"$error":"#N/A"}},{"$f":"'Sundurliðun Skuldabréf'!J78","v":0},".M.EVBSVOM.XX.ERI.XXX.XXXX.SX.LAT.EUR.IS.N.M"]
[{"$f":"\"INN.\"&EIGNIR!$B$3&C3384","v":{"$error":"#N/A"}},{"$f":"'Sundurliðun Skuldabréf'!J79","v":0},".M.EVBSVOM.XX.ERP.XXX.XXXX.SX.LAT.EUR.IS.N.M"]
[{"$f":"\"INN.\"&EIGNIR!$B$3&C3385","v":{"$error":"#N/A"}},{"$f":"'Sundurliðun Skuldabréf'!J80","v":0},".M.EVBSVOM.XX.ERV.XXX.XXXX.SX.LAT.EUR.IS.N.M"]
[{"$f":"\"INN.\"&EIGNIR!$B$3&C3386","v":{"$error":"#N/A"}},{"$f":"'Sundurliðun Skuldabréf'!J81","v":0},".M.EVBSVOM.XX.ERF.XXX.XXXX.SX.LAT.EUR.IS.N.M"]
[{"$f":"\"INN.\"&EIGNIR!$B$3&C3387","v":{"$error":"#N/A"}},{"$f":"'Sundurliðun Skuldabréf'!J82","v":0},".M.EVBSVOM.XX.ERO.XXX.XXXX.SX.LAT.EUR.IS.N.M"]
[{"$f":"\"INN.\"&EIGNIR!$B$3&C3388","v":{"$error":"#N/A"}},{"$f":"'Sundurliðun Skuldabréf'!J83","v":0},".M.EVBSVOM.XX.ERA.XXX.XXXX.SX.LAT.EUR.IS.N.M"]
[{"$f":"\"INN.\"&EIGNIR!$B$3&C3389","v":{"$error":"#N/A"}},{"$f":"'Sundurliðun Skuldabréf'!J84","v":0},".M.EVBSVOM.XX.$$$.XXX.XXXX.SX.SKT.EUR.IS.N.M"]
[{"$f":"\"INN.\"&EIGNIR!$B$3&C3390","v":{"$error":"#N/A"}},{"$f":"'Sundurliðun Skuldabréf'!J85","v":0},".M.EVBSVOM.XX.ATV.XXX.XXXX.SX.SKT.EUR.IS.N.M"]
[{"$f":"\"INN.\"&EIGNIR!$B$3&C3391","v":{"$error":"#N/A"}},{"$f":"'Sundurliðun Skuldabréf'!J99","v":0},".M.EVBSVOM.XX.FJA.XXX.XXXX.SX.SKT.EUR.IS.N.M"]
[{"$f":"\"INN.\"&EIGNIR!$B$3&C3392","v":{"$error":"#N/A"}},{"$f":"'Sundurliðun Skuldabréf'!J100","v":0},".M.EVBSVOM.XX.INN.XXX.XXXX.SX.SKT.EUR.IS.N.M"]
[{"$f":"\"INN.\"&EIGNIR!$B$3&C3393","v":{"$error":"#N/A"}},{"$f":"'Sundurliðun Skuldabréf'!J101","v":0},".M.EVBSVOM.XX.SLI.XXX.XXXX.SX.SKT.EUR.IS.N.M"]
[{"$f":"\"INN.\"&EIGNIR!$B$3&C3394","v":{"$error":"#N/A"}},{"$f":"'Sundurliðun Skuldabréf'!J102","v":0},".M.EVBSVOM.XX.PEN.XXX.XXXX.SX.SKT.EUR.IS.N.M"]
[{"$f":"\"INN.\"&EIGNIR!$B$3&C3395","v":{"$error":"#N/A"}},{"$f":"'Sundurliðun Skuldabréf'!J103","v":0},".M.EVBSVOM.XX.SJO.XXX.XXXX.SX.SKT.EUR.IS.N.M"]
[{"$f":"\"INN.\"&EIGNIR!$B$3&C3396","v":{"$error":"#N/A"}},{"$f":"'Sundurliðun Skuldabréf'!J104","v":0},".M.EVBSVOM.XX.YFT.XXX.XXXX.SX.SKT.EUR.IS.N.M"]
[{"$f":"\"INN.\"&EIGNIR!$B$3&C3397","v":{"$error":"#N/A"}},{"$f":"'Sundurliðun Skuldabréf'!J105","v":0},".M.EVBSVOM.XX.SLY.XXX.XXXX.SX.SKT.EUR.IS.N.M"]
[{"$f":"\"INN.\"&EIGNIR!$B$3&C3398","v":{"$error":"#N/A"}},{"$f":"'Sundurliðun Skuldabréf'!J106","v":0},".M.EVBSVOM.XX.FHL.XXX.XXXX.SX.SKT.EUR.IS.N.M"]
[{"$f":"\"INN.\"&EIGNIR!$B$3&C3399","v":{"$error":"#N/A"}},{"$f":"'Sundurliðun Skuldabréf'!J107","v":0},".M.EVBSVOM.XX.INF.XXX.XXXX.SX.SKT.EUR.IS.N.M"]
[{"$f":"\"INN.\"&EIGNIR!$B$3&C3400","v":{"$error":"#N/A"}},{"$f":"'Sundurliðun Skuldabréf'!J108","v":0},".M.EVBSVOM.XX.TRY.XXX.XXXX.SX.SKT.EUR.IS.N.M"]
[{"$f":"\"INN.\"&EIGNIR!$B$3&C3401","v":{"$error":"#N/A"}},{"$f":"'Sundurliðun Skuldabréf'!J109","v":0},".M.EVBSVOM.XX.LIF.XXX.XXXX.SX.SKT.EUR.IS.N.M"]
[{"$f":"\"INN.\"&EIGNIR!$B$3&C3402","v":{"$error":"#N/A"}},{"$f":"'Sundurliðun Skuldabréf'!J110","v":0},".M.EVBSVOM.XX.OPI.XXX.XXXX.SX.SKT.EUR.IS.N.M"]
[{"$f":"\"INN.\"&EIGNIR!$B$3&C3403","v":{"$error":"#N/A"}},{"$f":"'Sundurliðun Skuldabréf'!J111","v":0},".M.EVBSVOM.XX.RSS.XXX.XXXX.SX.SKT.EUR.IS.N.M"]
[{"$f":"\"INN.\"&EIGNIR!$B$3&C3404","v":{"$error":"#N/A"}},{"$f":"'Sundurliðun Skuldabréf'!J112","v":0},".M.EVBSVOM.XX.BAJ.XXX.XXXX.SX.SKT.EUR.IS.N.M"]
[{"$f":"\"INN.\"&EIGNIR!$B$3&C3405","v":{"$error":"#N/A"}},{"$f":"'Sundurliðun Skuldabréf'!J114","v":0},".M.EVBSVOM.XX.NPH.XXX.XXXX.SX.SKT.EUR.IS.N.M"]
[{"$f":"\"INN.\"&EIGNIR!$B$3&C3406","v":{"$error":"#N/A"}},{"$f":"'Sundurliðun Skuldabréf'!J115","v":0},".M.EVBSVOM.XX.ERL.XXX.XXXX.SX.SKT.EUR.IS.N.M"]
[{"$f":"\"INN.\"&EIGNIR!$B$3&C3407","v":{"$error":"#N/A"}},{"$f":"'Sundurliðun Skuldabréf'!J116","v":0},".M.EVBSVOM.XX.ERS.XXX.XXXX.SX.SKT.EUR.IS.N.M"]
[{"$f":"\"INN.\"&EIGNIR!$B$3&C3408","v":{"$error":"#N/A"}},{"$f":"'Sundurliðun Skuldabréf'!J117","v":0},".M.EVBSVOM.XX.ERI.XXX.XXXX.SX.SKT.EUR.IS.N.M"]
[{"$f":"\"INN.\"&EIGNIR!$B$3&C3409","v":{"$error":"#N/A"}},{"$f":"'Sundurliðun Skuldabréf'!J118","v":0},".M.EVBSVOM.XX.ERP.XXX.XXXX.SX.SKT.EUR.IS.N.M"]
[{"$f":"\"INN.\"&EIGNIR!$B$3&C3410","v":{"$error":"#N/A"}},{"$f":"'Sundurliðun Skuldabréf'!J119","v":0},".M.EVBSVOM.XX.ERV.XXX.XXXX.SX.SKT.EUR.IS.N.M"]
[{"$f":"\"INN.\"&EIGNIR!$B$3&C3411","v":{"$error":"#N/A"}},{"$f":"'Sundurliðun Skuldabréf'!J120","v":0},".M.EVBSVOM.XX.ERF.XXX.XXXX.SX.SKT.EUR.IS.N.M"]
[{"$f":"\"INN.\"&EIGNIR!$B$3&C3412","v":{"$error":"#N/A"}},{"$f":"'Sundurliðun Skuldabréf'!J121","v":0},".M.EVBSVOM.XX.ERO.XXX.XXXX.SX.SKT.EUR.IS.N.M"]
[{"$f":"\"INN.\"&EIGNIR!$B$3&C3413","v":{"$error":"#N/A"}},{"$f":"'Sundurliðun Skuldabréf'!J122","v":0},".M.EVBSVOM.XX.ERA.XXX.XXXX.SX.SKT.EUR.IS.N.M"]
[{"$f":"\"INN.\"&EIGNIR!$B$3&C3414","v":{"$error":"#N/A"}},{"$f":"'Sundurliðun Skuldabréf'!K5","v":0},".M.EVBSV$$.XX.$$$.XXX.XXXX.SX.XXX.USD.IS.N.M","//Sundurliðun skuldabréf, USD"]
[{"$f":"\"INN.\"&EIGNIR!$B$3&C3415","v":{"$error":"#N/A"}},{"$f":"'Sundurliðun Skuldabréf'!K45","v":0},".M.EVBSVOM.XX.$$$.XXX.XXXX.SX.LAT.USD.IS.N.M"]
[{"$f":"\"INN.\"&EIGNIR!$B$3&C3416","v":{"$error":"#N/A"}},{"$f":"'Sundurliðun Skuldabréf'!K46","v":0},".M.EVBSVOM.XX.ATV.XXX.XXXX.SX.LAT.USD.IS.N.M"]
[{"$f":"\"INN.\"&EIGNIR!$B$3&C3417","v":{"$error":"#N/A"}},{"$f":"'Sundurliðun Skuldabréf'!K60","v":0},".M.EVBSVOM.XX.FJA.XXX.XXXX.SX.LAT.USD.IS.N.M"]
[{"$f":"\"INN.\"&EIGNIR!$B$3&C3418","v":{"$error":"#N/A"}},{"$f":"'Sundurliðun Skuldabréf'!K61","v":0},".M.EVBSVOM.XX.INN.XXX.XXXX.SX.LAT.USD.IS.N.M"]
[{"$f":"\"INN.\"&EIGNIR!$B$3&C3419","v":{"$error":"#N/A"}},{"$f":"'Sundurliðun Skuldabréf'!K62","v":0},".M.EVBSVOM.XX.SLI.XXX.XXXX.SX.LAT.USD.IS.N.M"]
[{"$f":"\"INN.\"&EIGNIR!$B$3&C3420","v":{"$error":"#N/A"}},{"$f":"'Sundurliðun Skuldabréf'!K63","v":0},".M.EVBSVOM.XX.PEN.XXX.XXXX.SX.LAT.USD.IS.N.M"]
[{"$f":"\"INN.\"&EIGNIR!$B$3&C3421","v":{"$error":"#N/A"}},{"$f":"'Sundurliðun Skuldabréf'!K64","v":0},".M.EVBSVOM.XX.SJO.XXX.XXXX.SX.LAT.USD.IS.N.M"]
[{"$f":"\"INN.\"&EIGNIR!$B$3&C3422","v":{"$error":"#N/A"}},{"$f":"'Sundurliðun Skuldabréf'!K65","v":0},".M.EVBSVOM.XX.YFT.XXX.XXXX.SX.LAT.USD.IS.N.M"]
[{"$f":"\"INN.\"&EIGNIR!$B$3&C3423","v":{"$error":"#N/A"}},{"$f":"'Sundurliðun Skuldabréf'!K66","v":0},".M.EVBSVOM.XX.SLY.XXX.XXXX.SX.LAT.USD.IS.N.M"]
[{"$f":"\"INN.\"&EIGNIR!$B$3&C3424","v":{"$error":"#N/A"}},{"$f":"'Sundurliðun Skuldabréf'!K67","v":0},".M.EVBSVOM.XX.FHL.XXX.XXXX.SX.LAT.USD.IS.N.M"]
[{"$f":"\"INN.\"&EIGNIR!$B$3&C3425","v":{"$error":"#N/A"}},{"$f":"'Sundurliðun Skuldabréf'!K68","v":0},".M.EVBSVOM.XX.INF.XXX.XXXX.SX.LAT.USD.IS.N.M"]
[{"$f":"\"INN.\"&EIGNIR!$B$3&C3426","v":{"$error":"#N/A"}},{"$f":"'Sundurliðun Skuldabréf'!K69","v":0},".M.EVBSVOM.XX.TRY.XXX.XXXX.SX.LAT.USD.IS.N.M"]
[{"$f":"\"INN.\"&EIGNIR!$B$3&C3427","v":{"$error":"#N/A"}},{"$f":"'Sundurliðun Skuldabréf'!K70","v":0},".M.EVBSVOM.XX.LIF.XXX.XXXX.SX.LAT.USD.IS.N.M"]
[{"$f":"\"INN.\"&EIGNIR!$B$3&C3428","v":{"$error":"#N/A"}},{"$f":"'Sundurliðun Skuldabréf'!K71","v":0},".M.EVBSVOM.XX.OPI.XXX.XXXX.SX.LAT.USD.IS.N.M"]
[{"$f":"\"INN.\"&EIGNIR!$B$3&C3429","v":{"$error":"#N/A"}},{"$f":"'Sundurliðun Skuldabréf'!K72","v":0},".M.EVBSVOM.XX.RSS.XXX.XXXX.SX.LAT.USD.IS.N.M"]
[{"$f":"\"INN.\"&EIGNIR!$B$3&C3430","v":{"$error":"#N/A"}},{"$f":"'Sundurliðun Skuldabréf'!K73","v":0},".M.EVBSVOM.XX.BAJ.XXX.XXXX.SX.LAT.USD.IS.N.M"]
[{"$f":"\"INN.\"&EIGNIR!$B$3&C3431","v":{"$error":"#N/A"}},{"$f":"'Sundurliðun Skuldabréf'!K75","v":0},".M.EVBSVOM.XX.NPH.XXX.XXXX.SX.LAT.USD.IS.N.M"]
[{"$f":"\"INN.\"&EIGNIR!$B$3&C3432","v":{"$error":"#N/A"}},{"$f":"'Sundurliðun Skuldabréf'!K76","v":0},".M.EVBSVOM.XX.ERL.XXX.XXXX.SX.LAT.USD.IS.N.M"]
[{"$f":"\"INN.\"&EIGNIR!$B$3&C3433","v":{"$error":"#N/A"}},{"$f":"'Sundurliðun Skuldabréf'!K77","v":0},".M.EVBSVOM.XX.ERS.XXX.XXXX.SX.LAT.USD.IS.N.M"]
[{"$f":"\"INN.\"&EIGNIR!$B$3&C3434","v":{"$error":"#N/A"}},{"$f":"'Sundurliðun Skuldabréf'!K78","v":0},".M.EVBSVOM.XX.ERI.XXX.XXXX.SX.LAT.USD.IS.N.M"]
[{"$f":"\"INN.\"&EIGNIR!$B$3&C3435","v":{"$error":"#N/A"}},{"$f":"'Sundurliðun Skuldabréf'!K79","v":0},".M.EVBSVOM.XX.ERP.XXX.XXXX.SX.LAT.USD.IS.N.M"]
[{"$f":"\"INN.\"&EIGNIR!$B$3&C3436","v":{"$error":"#N/A"}},{"$f":"'Sundurliðun Skuldabréf'!K80","v":0},".M.EVBSVOM.XX.ERV.XXX.XXXX.SX.LAT.USD.IS.N.M"]
[{"$f":"\"INN.\"&EIGNIR!$B$3&C3437","v":{"$error":"#N/A"}},{"$f":"'Sundurliðun Skuldabréf'!K81","v":0},".M.EVBSVOM.XX.ERF.XXX.XXXX.SX.LAT.USD.IS.N.M"]
[{"$f":"\"INN.\"&EIGNIR!$B$3&C3438","v":{"$error":"#N/A"}},{"$f":"'Sundurliðun Skuldabréf'!K82","v":0},".M.EVBSVOM.XX.ERO.XXX.XXXX.SX.LAT.USD.IS.N.M"]
[{"$f":"\"INN.\"&EIGNIR!$B$3&C3439","v":{"$error":"#N/A"}},{"$f":"'Sundurliðun Skuldabréf'!K83","v":0},".M.EVBSVOM.XX.ERA.XXX.XXXX.SX.LAT.USD.IS.N.M"]
[{"$f":"\"INN.\"&EIGNIR!$B$3&C3440","v":{"$error":"#N/A"}},{"$f":"'Sundurliðun Skuldabréf'!K84","v":0},".M.EVBSVOM.XX.$$$.XXX.XXXX.SX.SKT.USD.IS.N.M"]
[{"$f":"\"INN.\"&EIGNIR!$B$3&C3441","v":{"$error":"#N/A"}},{"$f":"'Sundurliðun Skuldabréf'!K85","v":0},".M.EVBSVOM.XX.ATV.XXX.XXXX.SX.SKT.USD.IS.N.M"]
[{"$f":"\"INN.\"&EIGNIR!$B$3&C3442","v":{"$error":"#N/A"}},{"$f":"'Sundurliðun Skuldabréf'!K99","v":0},".M.EVBSVOM.XX.FJA.XXX.XXXX.SX.SKT.USD.IS.N.M"]
[{"$f":"\"INN.\"&EIGNIR!$B$3&C3443","v":{"$error":"#N/A"}},{"$f":"'Sundurliðun Skuldabréf'!K100","v":0},".M.EVBSVOM.XX.INN.XXX.XXXX.SX.SKT.USD.IS.N.M"]
[{"$f":"\"INN.\"&EIGNIR!$B$3&C3444","v":{"$error":"#N/A"}},{"$f":"'Sundurliðun Skuldabréf'!K101","v":0},".M.EVBSVOM.XX.SLI.XXX.XXXX.SX.SKT.USD.IS.N.M"]
[{"$f":"\"INN.\"&EIGNIR!$B$3&C3445","v":{"$error":"#N/A"}},{"$f":"'Sundurliðun Skuldabréf'!K102","v":0},".M.EVBSVOM.XX.PEN.XXX.XXXX.SX.SKT.USD.IS.N.M"]
[{"$f":"\"INN.\"&EIGNIR!$B$3&C3446","v":{"$error":"#N/A"}},{"$f":"'Sundurliðun Skuldabréf'!K103","v":0},".M.EVBSVOM.XX.SJO.XXX.XXXX.SX.SKT.USD.IS.N.M"]
[{"$f":"\"INN.\"&EIGNIR!$B$3&C3447","v":{"$error":"#N/A"}},{"$f":"'Sundurliðun Skuldabréf'!K104","v":0},".M.EVBSVOM.XX.YFT.XXX.XXXX.SX.SKT.USD.IS.N.M"]
[{"$f":"\"INN.\"&EIGNIR!$B$3&C3448","v":{"$error":"#N/A"}},{"$f":"'Sundurliðun Skuldabréf'!K105","v":0},".M.EVBSVOM.XX.SLY.XXX.XXXX.SX.SKT.USD.IS.N.M"]
[{"$f":"\"INN.\"&EIGNIR!$B$3&C3449","v":{"$error":"#N/A"}},{"$f":"'Sundurliðun Skuldabréf'!K106","v":0},".M.EVBSVOM.XX.FHL.XXX.XXXX.SX.SKT.USD.IS.N.M"]
[{"$f":"\"INN.\"&EIGNIR!$B$3&C3450","v":{"$error":"#N/A"}},{"$f":"'Sundurliðun Skuldabréf'!K107","v":0},".M.EVBSVOM.XX.INF.XXX.XXXX.SX.SKT.USD.IS.N.M"]
[{"$f":"\"INN.\"&EIGNIR!$B$3&C3451","v":{"$error":"#N/A"}},{"$f":"'Sundurliðun Skuldabréf'!K108","v":0},".M.EVBSVOM.XX.TRY.XXX.XXXX.SX.SKT.USD.IS.N.M"]
[{"$f":"\"INN.\"&EIGNIR!$B$3&C3452","v":{"$error":"#N/A"}},{"$f":"'Sundurliðun Skuldabréf'!K109","v":0},".M.EVBSVOM.XX.LIF.XXX.XXXX.SX.SKT.USD.IS.N.M"]
[{"$f":"\"INN.\"&EIGNIR!$B$3&C3453","v":{"$error":"#N/A"}},{"$f":"'Sundurliðun Skuldabréf'!K110","v":0},".M.EVBSVOM.XX.OPI.XXX.XXXX.SX.SKT.USD.IS.N.M"]
[{"$f":"\"INN.\"&EIGNIR!$B$3&C3454","v":{"$error":"#N/A"}},{"$f":"'Sundurliðun Skuldabréf'!K111","v":0},".M.EVBSVOM.XX.RSS.XXX.XXXX.SX.SKT.USD.IS.N.M"]
[{"$f":"\"INN.\"&EIGNIR!$B$3&C3455","v":{"$error":"#N/A"}},{"$f":"'Sundurliðun Skuldabréf'!K112","v":0},".M.EVBSVOM.XX.BAJ.XXX.XXXX.SX.SKT.USD.IS.N.M"]
[{"$f":"\"INN.\"&EIGNIR!$B$3&C3456","v":{"$error":"#N/A"}},{"$f":"'Sundurliðun Skuldabréf'!K114","v":0},".M.EVBSVOM.XX.NPH.XXX.XXXX.SX.SKT.USD.IS.N.M"]
[{"$f":"\"INN.\"&EIGNIR!$B$3&C3457","v":{"$error":"#N/A"}},{"$f":"'Sundurliðun Skuldabréf'!K115","v":0},".M.EVBSVOM.XX.ERL.XXX.XXXX.SX.SKT.USD.IS.N.M"]
[{"$f":"\"INN.\"&EIGNIR!$B$3&C3458","v":{"$error":"#N/A"}},{"$f":"'Sundurliðun Skuldabréf'!K116","v":0},".M.EVBSVOM.XX.ERS.XXX.XXXX.SX.SKT.USD.IS.N.M"]
[{"$f":"\"INN.\"&EIGNIR!$B$3&C3459","v":{"$error":"#N/A"}},{"$f":"'Sundurliðun Skuldabréf'!K117","v":0},".M.EVBSVOM.XX.ERI.XXX.XXXX.SX.SKT.USD.IS.N.M"]
[{"$f":"\"INN.\"&EIGNIR!$B$3&C3460","v":{"$error":"#N/A"}},{"$f":"'Sundurliðun Skuldabréf'!K118","v":0},".M.EVBSVOM.XX.ERP.XXX.XXXX.SX.SKT.USD.IS.N.M"]
[{"$f":"\"INN.\"&EIGNIR!$B$3&C3461","v":{"$error":"#N/A"}},{"$f":"'Sundurliðun Skuldabréf'!K119","v":0},".M.EVBSVOM.XX.ERV.XXX.XXXX.SX.SKT.USD.IS.N.M"]
[{"$f":"\"INN.\"&EIGNIR!$B$3&C3462","v":{"$error":"#N/A"}},{"$f":"'Sundurliðun Skuldabréf'!K120","v":0},".M.EVBSVOM.XX.ERF.XXX.XXXX.SX.SKT.USD.IS.N.M"]
[{"$f":"\"INN.\"&EIGNIR!$B$3&C3463","v":{"$error":"#N/A"}},{"$f":"'Sundurliðun Skuldabréf'!K121","v":0},".M.EVBSVOM.XX.ERO.XXX.XXXX.SX.SKT.USD.IS.N.M"]
[{"$f":"\"INN.\"&EIGNIR!$B$3&C3464","v":{"$error":"#N/A"}},{"$f":"'Sundurliðun Skuldabréf'!K122","v":0},".M.EVBSVOM.XX.ERA.XXX.XXXX.SX.SKT.USD.IS.N.M"]
[{"$f":"\"INN.\"&EIGNIR!$B$3&C3465","v":{"$error":"#N/A"}},{"$f":"'Sundurliðun Skuldabréf'!L5","v":0},".M.EVBSV$$.XX.$$$.XXX.XXXX.SX.XXX.GBP.IS.N.M","//Sundurliðun skuldabréf, GBP"]
[{"$f":"\"INN.\"&EIGNIR!$B$3&C3466","v":{"$error":"#N/A"}},{"$f":"'Sundurliðun Skuldabréf'!L45","v":0},".M.EVBSVOM.XX.$$$.XXX.XXXX.SX.LAT.GBP.IS.N.M"]
[{"$f":"\"INN.\"&EIGNIR!$B$3&C3467","v":{"$error":"#N/A"}},{"$f":"'Sundurliðun Skuldabréf'!L46","v":0},".M.EVBSVOM.XX.ATV.XXX.XXXX.SX.LAT.GBP.IS.N.M"]
[{"$f":"\"INN.\"&EIGNIR!$B$3&C3468","v":{"$error":"#N/A"}},{"$f":"'Sundurliðun Skuldabréf'!L60","v":0},".M.EVBSVOM.XX.FJA.XXX.XXXX.SX.LAT.GBP.IS.N.M"]
[{"$f":"\"INN.\"&EIGNIR!$B$3&C3469","v":{"$error":"#N/A"}},{"$f":"'Sundurliðun Skuldabréf'!L61","v":0},".M.EVBSVOM.XX.INN.XXX.XXXX.SX.LAT.GBP.IS.N.M"]
[{"$f":"\"INN.\"&EIGNIR!$B$3&C3470","v":{"$error":"#N/A"}},{"$f":"'Sundurliðun Skuldabréf'!L62","v":0},".M.EVBSVOM.XX.SLI.XXX.XXXX.SX.LAT.GBP.IS.N.M"]
[{"$f":"\"INN.\"&EIGNIR!$B$3&C3471","v":{"$error":"#N/A"}},{"$f":"'Sundurliðun Skuldabréf'!L63","v":0},".M.EVBSVOM.XX.PEN.XXX.XXXX.SX.LAT.GBP.IS.N.M"]
[{"$f":"\"INN.\"&EIGNIR!$B$3&C3472","v":{"$error":"#N/A"}},{"$f":"'Sundurliðun Skuldabréf'!L64","v":0},".M.EVBSVOM.XX.SJO.XXX.XXXX.SX.LAT.GBP.IS.N.M"]
[{"$f":"\"INN.\"&EIGNIR!$B$3&C3473","v":{"$error":"#N/A"}},{"$f":"'Sundurliðun Skuldabréf'!L65","v":0},".M.EVBSVOM.XX.YFT.XXX.XXXX.SX.LAT.GBP.IS.N.M"]
[{"$f":"\"INN.\"&EIGNIR!$B$3&C3474","v":{"$error":"#N/A"}},{"$f":"'Sundurliðun Skuldabréf'!L66","v":0},".M.EVBSVOM.XX.SLY.XXX.XXXX.SX.LAT.GBP.IS.N.M"]
[{"$f":"\"INN.\"&EIGNIR!$B$3&C3475","v":{"$error":"#N/A"}},{"$f":"'Sundurliðun Skuldabréf'!L67","v":0},".M.EVBSVOM.XX.FHL.XXX.XXXX.SX.LAT.GBP.IS.N.M"]
[{"$f":"\"INN.\"&EIGNIR!$B$3&C3476","v":{"$error":"#N/A"}},{"$f":"'Sundurliðun Skuldabréf'!L68","v":0},".M.EVBSVOM.XX.INF.XXX.XXXX.SX.LAT.GBP.IS.N.M"]
[{"$f":"\"INN.\"&EIGNIR!$B$3&C3477","v":{"$error":"#N/A"}},{"$f":"'Sundurliðun Skuldabréf'!L69","v":0},".M.EVBSVOM.XX.TRY.XXX.XXXX.SX.LAT.GBP.IS.N.M"]
[{"$f":"\"INN.\"&EIGNIR!$B$3&C3478","v":{"$error":"#N/A"}},{"$f":"'Sundurliðun Skuldabréf'!L70","v":0},".M.EVBSVOM.XX.LIF.XXX.XXXX.SX.LAT.GBP.IS.N.M"]
[{"$f":"\"INN.\"&EIGNIR!$B$3&C3479","v":{"$error":"#N/A"}},{"$f":"'Sundurliðun Skuldabréf'!L71","v":0},".M.EVBSVOM.XX.OPI.XXX.XXXX.SX.LAT.GBP.IS.N.M"]
[{"$f":"\"INN.\"&EIGNIR!$B$3&C3480","v":{"$error":"#N/A"}},{"$f":"'Sundurliðun Skuldabréf'!L72","v":0},".M.EVBSVOM.XX.RSS.XXX.XXXX.SX.LAT.GBP.IS.N.M"]
[{"$f":"\"INN.\"&EIGNIR!$B$3&C3481","v":{"$error":"#N/A"}},{"$f":"'Sundurliðun Skuldabréf'!L73","v":0},".M.EVBSVOM.XX.BAJ.XXX.XXXX.SX.LAT.GBP.IS.N.M"]
[{"$f":"\"INN.\"&EIGNIR!$B$3&C3482","v":{"$error":"#N/A"}},{"$f":"'Sundurliðun Skuldabréf'!L75","v":0},".M.EVBSVOM.XX.NPH.XXX.XXXX.SX.LAT.GBP.IS.N.M"]
[{"$f":"\"INN.\"&EIGNIR!$B$3&C3483","v":{"$error":"#N/A"}},{"$f":"'Sundurliðun Skuldabréf'!L76","v":0},".M.EVBSVOM.XX.ERL.XXX.XXXX.SX.LAT.GBP.IS.N.M"]
[{"$f":"\"INN.\"&EIGNIR!$B$3&C3484","v":{"$error":"#N/A"}},{"$f":"'Sundurliðun Skuldabréf'!L77","v":0},".M.EVBSVOM.XX.ERS.XXX.XXXX.SX.LAT.GBP.IS.N.M"]
[{"$f":"\"INN.\"&EIGNIR!$B$3&C3485","v":{"$error":"#N/A"}},{"$f":"'Sundurliðun Skuldabréf'!L78","v":0},".M.EVBSVOM.XX.ERI.XXX.XXXX.SX.LAT.GBP.IS.N.M"]
[{"$f":"\"INN.\"&EIGNIR!$B$3&C3486","v":{"$error":"#N/A"}},{"$f":"'Sundurliðun Skuldabréf'!L79","v":0},".M.EVBSVOM.XX.ERP.XXX.XXXX.SX.LAT.GBP.IS.N.M"]
[{"$f":"\"INN.\"&EIGNIR!$B$3&C3487","v":{"$error":"#N/A"}},{"$f":"'Sundurliðun Skuldabréf'!L80","v":0},".M.EVBSVOM.XX.ERV.XXX.XXXX.SX.LAT.GBP.IS.N.M"]
[{"$f":"\"INN.\"&EIGNIR!$B$3&C3488","v":{"$error":"#N/A"}},{"$f":"'Sundurliðun Skuldabréf'!L81","v":0},".M.EVBSVOM.XX.ERF.XXX.XXXX.SX.LAT.GBP.IS.N.M"]
[{"$f":"\"INN.\"&EIGNIR!$B$3&C3489","v":{"$error":"#N/A"}},{"$f":"'Sundurliðun Skuldabréf'!L82","v":0},".M.EVBSVOM.XX.ERO.XXX.XXXX.SX.LAT.GBP.IS.N.M"]
[{"$f":"\"INN.\"&EIGNIR!$B$3&C3490","v":{"$error":"#N/A"}},{"$f":"'Sundurliðun Skuldabréf'!L83","v":0},".M.EVBSVOM.XX.ERA.XXX.XXXX.SX.LAT.GBP.IS.N.M"]
[{"$f":"\"INN.\"&EIGNIR!$B$3&C3491","v":{"$error":"#N/A"}},{"$f":"'Sundurliðun Skuldabréf'!L84","v":0},".M.EVBSVOM.XX.$$$.XXX.XXXX.SX.SKT.GBP.IS.N.M"]
[{"$f":"\"INN.\"&EIGNIR!$B$3&C3492","v":{"$error":"#N/A"}},{"$f":"'Sundurliðun Skuldabréf'!L85","v":0},".M.EVBSVOM.XX.ATV.XXX.XXXX.SX.SKT.GBP.IS.N.M"]
[{"$f":"\"INN.\"&EIGNIR!$B$3&C3493","v":{"$error":"#N/A"}},{"$f":"'Sundurliðun Skuldabréf'!L99","v":0},".M.EVBSVOM.XX.FJA.XXX.XXXX.SX.SKT.GBP.IS.N.M"]
[{"$f":"\"INN.\"&EIGNIR!$B$3&C3494","v":{"$error":"#N/A"}},{"$f":"'Sundurliðun Skuldabréf'!L100","v":0},".M.EVBSVOM.XX.INN.XXX.XXXX.SX.SKT.GBP.IS.N.M"]
[{"$f":"\"INN.\"&EIGNIR!$B$3&C3495","v":{"$error":"#N/A"}},{"$f":"'Sundurliðun Skuldabréf'!L101","v":0},".M.EVBSVOM.XX.SLI.XXX.XXXX.SX.SKT.GBP.IS.N.M"]
[{"$f":"\"INN.\"&EIGNIR!$B$3&C3496","v":{"$error":"#N/A"}},{"$f":"'Sundurliðun Skuldabréf'!L102","v":0},".M.EVBSVOM.XX.PEN.XXX.XXXX.SX.SKT.GBP.IS.N.M"]
[{"$f":"\"INN.\"&EIGNIR!$B$3&C3497","v":{"$error":"#N/A"}},{"$f":"'Sundurliðun Skuldabréf'!L103","v":0},".M.EVBSVOM.XX.SJO.XXX.XXXX.SX.SKT.GBP.IS.N.M"]
[{"$f":"\"INN.\"&EIGNIR!$B$3&C3498","v":{"$error":"#N/A"}},{"$f":"'Sundurliðun Skuldabréf'!L104","v":0},".M.EVBSVOM.XX.YFT.XXX.XXXX.SX.SKT.GBP.IS.N.M"]
[{"$f":"\"INN.\"&EIGNIR!$B$3&C3499","v":{"$error":"#N/A"}},{"$f":"'Sundurliðun Skuldabréf'!L105","v":0},".M.EVBSVOM.XX.SLY.XXX.XXXX.SX.SKT.GBP.IS.N.M"]
[{"$f":"\"INN.\"&EIGNIR!$B$3&C3500","v":{"$error":"#N/A"}},{"$f":"'Sundurliðun Skuldabréf'!L106","v":0},".M.EVBSVOM.XX.FHL.XXX.XXXX.SX.SKT.GBP.IS.N.M"]
[{"$f":"\"INN.\"&EIGNIR!$B$3&C3501","v":{"$error":"#N/A"}},{"$f":"'Sundurliðun Skuldabréf'!L107","v":0},".M.EVBSVOM.XX.INF.XXX.XXXX.SX.SKT.GBP.IS.N.M"]
[{"$f":"\"INN.\"&EIGNIR!$B$3&C3502","v":{"$error":"#N/A"}},{"$f":"'Sundurliðun Skuldabréf'!L108","v":0},".M.EVBSVOM.XX.TRY.XXX.XXXX.SX.SKT.GBP.IS.N.M"]
[{"$f":"\"INN.\"&EIGNIR!$B$3&C3503","v":{"$error":"#N/A"}},{"$f":"'Sundurliðun Skuldabréf'!L109","v":0},".M.EVBSVOM.XX.LIF.XXX.XXXX.SX.SKT.GBP.IS.N.M"]
[{"$f":"\"INN.\"&EIGNIR!$B$3&C3504","v":{"$error":"#N/A"}},{"$f":"'Sundurliðun Skuldabréf'!L110","v":0},".M.EVBSVOM.XX.OPI.XXX.XXXX.SX.SKT.GBP.IS.N.M"]
[{"$f":"\"INN.\"&EIGNIR!$B$3&C3505","v":{"$error":"#N/A"}},{"$f":"'Sundurliðun Skuldabréf'!L111","v":0},".M.EVBSVOM.XX.RSS.XXX.XXXX.SX.SKT.GBP.IS.N.M"]
[{"$f":"\"INN.\"&EIGNIR!$B$3&C3506","v":{"$error":"#N/A"}},{"$f":"'Sundurliðun Skuldabréf'!L112","v":0},".M.EVBSVOM.XX.BAJ.XXX.XXXX.SX.SKT.GBP.IS.N.M"]
[{"$f":"\"INN.\"&EIGNIR!$B$3&C3507","v":{"$error":"#N/A"}},{"$f":"'Sundurliðun Skuldabréf'!L114","v":0},".M.EVBSVOM.XX.NPH.XXX.XXXX.SX.SKT.GBP.IS.N.M"]
[{"$f":"\"INN.\"&EIGNIR!$B$3&C3508","v":{"$error":"#N/A"}},{"$f":"'Sundurliðun Skuldabréf'!L115","v":0},".M.EVBSVOM.XX.ERL.XXX.XXXX.SX.SKT.GBP.IS.N.M"]
[{"$f":"\"INN.\"&EIGNIR!$B$3&C3509","v":{"$error":"#N/A"}},{"$f":"'Sundurliðun Skuldabréf'!L116","v":0},".M.EVBSVOM.XX.ERS.XXX.XXXX.SX.SKT.GBP.IS.N.M"]
[{"$f":"\"INN.\"&EIGNIR!$B$3&C3510","v":{"$error":"#N/A"}},{"$f":"'Sundurliðun Skuldabréf'!L117","v":0},".M.EVBSVOM.XX.ERI.XXX.XXXX.SX.SKT.GBP.IS.N.M"]
[{"$f":"\"INN.\"&EIGNIR!$B$3&C3511","v":{"$error":"#N/A"}},{"$f":"'Sundurliðun Skuldabréf'!L118","v":0},".M.EVBSVOM.XX.ERP.XXX.XXXX.SX.SKT.GBP.IS.N.M"]
[{"$f":"\"INN.\"&EIGNIR!$B$3&C3512","v":{"$error":"#N/A"}},{"$f":"'Sundurliðun Skuldabréf'!L119","v":0},".M.EVBSVOM.XX.ERV.XXX.XXXX.SX.SKT.GBP.IS.N.M"]
[{"$f":"\"INN.\"&EIGNIR!$B$3&C3513","v":{"$error":"#N/A"}},{"$f":"'Sundurliðun Skuldabréf'!L120","v":0},".M.EVBSVOM.XX.ERF.XXX.XXXX.SX.SKT.GBP.IS.N.M"]
[{"$f":"\"INN.\"&EIGNIR!$B$3&C3514","v":{"$error":"#N/A"}},{"$f":"'Sundurliðun Skuldabréf'!L121","v":0},".M.EVBSVOM.XX.ERO.XXX.XXXX.SX.SKT.GBP.IS.N.M"]
[{"$f":"\"INN.\"&EIGNIR!$B$3&C3515","v":{"$error":"#N/A"}},{"$f":"'Sundurliðun Skuldabréf'!L122","v":0},".M.EVBSVOM.XX.ERA.XXX.XXXX.SX.SKT.GBP.IS.N.M"]
[{"$f":"\"INN.\"&EIGNIR!$B$3&C3516","v":{"$error":"#N/A"}},{"$f":"'Sundurliðun Skuldabréf'!M5","v":0},".M.EVBSV$$.XX.$$$.XXX.XXXX.SX.XXX.JPY.IS.N.M","//Sundurliðun skuldabréf, JPY"]
[{"$f":"\"INN.\"&EIGNIR!$B$3&C3517","v":{"$error":"#N/A"}},{"$f":"'Sundurliðun Skuldabréf'!M45","v":0},".M.EVBSVOM.XX.$$$.XXX.XXXX.SX.LAT.JPY.IS.N.M"]
[{"$f":"\"INN.\"&EIGNIR!$B$3&C3518","v":{"$error":"#N/A"}},{"$f":"'Sundurliðun Skuldabréf'!M46","v":0},".M.EVBSVOM.XX.ATV.XXX.XXXX.SX.LAT.JPY.IS.N.M"]
[{"$f":"\"INN.\"&EIGNIR!$B$3&C3519","v":{"$error":"#N/A"}},{"$f":"'Sundurliðun Skuldabréf'!M60","v":0},".M.EVBSVOM.XX.FJA.XXX.XXXX.SX.LAT.JPY.IS.N.M"]
[{"$f":"\"INN.\"&EIGNIR!$B$3&C3520","v":{"$error":"#N/A"}},{"$f":"'Sundurliðun Skuldabréf'!M61","v":0},".M.EVBSVOM.XX.INN.XXX.XXXX.SX.LAT.JPY.IS.N.M"]
[{"$f":"\"INN.\"&EIGNIR!$B$3&C3521","v":{"$error":"#N/A"}},{"$f":"'Sundurliðun Skuldabréf'!M62","v":0},".M.EVBSVOM.XX.SLI.XXX.XXXX.SX.LAT.JPY.IS.N.M"]
[{"$f":"\"INN.\"&EIGNIR!$B$3&C3522","v":{"$error":"#N/A"}},{"$f":"'Sundurliðun Skuldabréf'!M63","v":0},".M.EVBSVOM.XX.PEN.XXX.XXXX.SX.LAT.JPY.IS.N.M"]
[{"$f":"\"INN.\"&EIGNIR!$B$3&C3523","v":{"$error":"#N/A"}},{"$f":"'Sundurliðun Skuldabréf'!M64","v":0},".M.EVBSVOM.XX.SJO.XXX.XXXX.SX.LAT.JPY.IS.N.M"]
[{"$f":"\"INN.\"&EIGNIR!$B$3&C3524","v":{"$error":"#N/A"}},{"$f":"'Sundurliðun Skuldabréf'!M65","v":0},".M.EVBSVOM.XX.YFT.XXX.XXXX.SX.LAT.JPY.IS.N.M"]
[{"$f":"\"INN.\"&EIGNIR!$B$3&C3525","v":{"$error":"#N/A"}},{"$f":"'Sundurliðun Skuldabréf'!M66","v":0},".M.EVBSVOM.XX.SLY.XXX.XXXX.SX.LAT.JPY.IS.N.M"]
[{"$f":"\"INN.\"&EIGNIR!$B$3&C3526","v":{"$error":"#N/A"}},{"$f":"'Sundurliðun Skuldabréf'!M67","v":0},".M.EVBSVOM.XX.FHL.XXX.XXXX.SX.LAT.JPY.IS.N.M"]
[{"$f":"\"INN.\"&EIGNIR!$B$3&C3527","v":{"$error":"#N/A"}},{"$f":"'Sundurliðun Skuldabréf'!M68","v":0},".M.EVBSVOM.XX.INF.XXX.XXXX.SX.LAT.JPY.IS.N.M"]
[{"$f":"\"INN.\"&EIGNIR!$B$3&C3528","v":{"$error":"#N/A"}},{"$f":"'Sundurliðun Skuldabréf'!M69","v":0},".M.EVBSVOM.XX.TRY.XXX.XXXX.SX.LAT.JPY.IS.N.M"]
[{"$f":"\"INN.\"&EIGNIR!$B$3&C3529","v":{"$error":"#N/A"}},{"$f":"'Sundurliðun Skuldabréf'!M70","v":0},".M.EVBSVOM.XX.LIF.XXX.XXXX.SX.LAT.JPY.IS.N.M"]
[{"$f":"\"INN.\"&EIGNIR!$B$3&C3530","v":{"$error":"#N/A"}},{"$f":"'Sundurliðun Skuldabréf'!M71","v":0},".M.EVBSVOM.XX.OPI.XXX.XXXX.SX.LAT.JPY.IS.N.M"]
[{"$f":"\"INN.\"&EIGNIR!$B$3&C3531","v":{"$error":"#N/A"}},{"$f":"'Sundurliðun Skuldabréf'!M72","v":0},".M.EVBSVOM.XX.RSS.XXX.XXXX.SX.LAT.JPY.IS.N.M"]
[{"$f":"\"INN.\"&EIGNIR!$B$3&C3532","v":{"$error":"#N/A"}},{"$f":"'Sundurliðun Skuldabréf'!M73","v":0},".M.EVBSVOM.XX.BAJ.XXX.XXXX.SX.LAT.JPY.IS.N.M"]
[{"$f":"\"INN.\"&EIGNIR!$B$3&C3533","v":{"$error":"#N/A"}},{"$f":"'Sundurliðun Skuldabréf'!M75","v":0},".M.EVBSVOM.XX.NPH.XXX.XXXX.SX.LAT.JPY.IS.N.M"]
[{"$f":"\"INN.\"&EIGNIR!$B$3&C3534","v":{"$error":"#N/A"}},{"$f":"'Sundurliðun Skuldabréf'!M76","v":0},".M.EVBSVOM.XX.ERL.XXX.XXXX.SX.LAT.JPY.IS.N.M"]
[{"$f":"\"INN.\"&EIGNIR!$B$3&C3535","v":{"$error":"#N/A"}},{"$f":"'Sundurliðun Skuldabréf'!M77","v":0},".M.EVBSVOM.XX.ERS.XXX.XXXX.SX.LAT.JPY.IS.N.M"]
[{"$f":"\"INN.\"&EIGNIR!$B$3&C3536","v":{"$error":"#N/A"}},{"$f":"'Sundurliðun Skuldabréf'!M78","v":0},".M.EVBSVOM.XX.ERI.XXX.XXXX.SX.LAT.JPY.IS.N.M"]
[{"$f":"\"INN.\"&EIGNIR!$B$3&C3537","v":{"$error":"#N/A"}},{"$f":"'Sundurliðun Skuldabréf'!M79","v":0},".M.EVBSVOM.XX.ERP.XXX.XXXX.SX.LAT.JPY.IS.N.M"]
[{"$f":"\"INN.\"&EIGNIR!$B$3&C3538","v":{"$error":"#N/A"}},{"$f":"'Sundurliðun Skuldabréf'!M80","v":0},".M.EVBSVOM.XX.ERV.XXX.XXXX.SX.LAT.JPY.IS.N.M"]
[{"$f":"\"INN.\"&EIGNIR!$B$3&C3539","v":{"$error":"#N/A"}},{"$f":"'Sundurliðun Skuldabréf'!M81","v":0},".M.EVBSVOM.XX.ERF.XXX.XXXX.SX.LAT.JPY.IS.N.M"]
[{"$f":"\"INN.\"&EIGNIR!$B$3&C3540","v":{"$error":"#N/A"}},{"$f":"'Sundurliðun Skuldabréf'!M82","v":0},".M.EVBSVOM.XX.ERO.XXX.XXXX.SX.LAT.JPY.IS.N.M"]
[{"$f":"\"INN.\"&EIGNIR!$B$3&C3541","v":{"$error":"#N/A"}},{"$f":"'Sundurliðun Skuldabréf'!M83","v":0},".M.EVBSVOM.XX.ERA.XXX.XXXX.SX.LAT.JPY.IS.N.M"]
[{"$f":"\"INN.\"&EIGNIR!$B$3&C3542","v":{"$error":"#N/A"}},{"$f":"'Sundurliðun Skuldabréf'!M84","v":0},".M.EVBSVOM.XX.$$$.XXX.XXXX.SX.SKT.JPY.IS.N.M"]
[{"$f":"\"INN.\"&EIGNIR!$B$3&C3543","v":{"$error":"#N/A"}},{"$f":"'Sundurliðun Skuldabréf'!M85","v":0},".M.EVBSVOM.XX.ATV.XXX.XXXX.SX.SKT.JPY.IS.N.M"]
[{"$f":"\"INN.\"&EIGNIR!$B$3&C3544","v":{"$error":"#N/A"}},{"$f":"'Sundurliðun Skuldabréf'!M99","v":0},".M.EVBSVOM.XX.FJA.XXX.XXXX.SX.SKT.JPY.IS.N.M"]
[{"$f":"\"INN.\"&EIGNIR!$B$3&C3545","v":{"$error":"#N/A"}},{"$f":"'Sundurliðun Skuldabréf'!M100","v":0},".M.EVBSVOM.XX.INN.XXX.XXXX.SX.SKT.JPY.IS.N.M"]
[{"$f":"\"INN.\"&EIGNIR!$B$3&C3546","v":{"$error":"#N/A"}},{"$f":"'Sundurliðun Skuldabréf'!M101","v":0},".M.EVBSVOM.XX.SLI.XXX.XXXX.SX.SKT.JPY.IS.N.M"]
[{"$f":"\"INN.\"&EIGNIR!$B$3&C3547","v":{"$error":"#N/A"}},{"$f":"'Sundurliðun Skuldabréf'!M102","v":0},".M.EVBSVOM.XX.PEN.XXX.XXXX.SX.SKT.JPY.IS.N.M"]
[{"$f":"\"INN.\"&EIGNIR!$B$3&C3548","v":{"$error":"#N/A"}},{"$f":"'Sundurliðun Skuldabréf'!M103","v":0},".M.EVBSVOM.XX.SJO.XXX.XXXX.SX.SKT.JPY.IS.N.M"]
[{"$f":"\"INN.\"&EIGNIR!$B$3&C3549","v":{"$error":"#N/A"}},{"$f":"'Sundurliðun Skuldabréf'!M104","v":0},".M.EVBSVOM.XX.YFT.XXX.XXXX.SX.SKT.JPY.IS.N.M"]
[{"$f":"\"INN.\"&EIGNIR!$B$3&C3550","v":{"$error":"#N/A"}},{"$f":"'Sundurliðun Skuldabréf'!M105","v":0},".M.EVBSVOM.XX.SLY.XXX.XXXX.SX.SKT.JPY.IS.N.M"]
[{"$f":"\"INN.\"&EIGNIR!$B$3&C3551","v":{"$error":"#N/A"}},{"$f":"'Sundurliðun Skuldabréf'!M106","v":0},".M.EVBSVOM.XX.FHL.XXX.XXXX.SX.SKT.JPY.IS.N.M"]
[{"$f":"\"INN.\"&EIGNIR!$B$3&C3552","v":{"$error":"#N/A"}},{"$f":"'Sundurliðun Skuldabréf'!M107","v":0},".M.EVBSVOM.XX.INF.XXX.XXXX.SX.SKT.JPY.IS.N.M"]
[{"$f":"\"INN.\"&EIGNIR!$B$3&C3553","v":{"$error":"#N/A"}},{"$f":"'Sundurliðun Skuldabréf'!M108","v":0},".M.EVBSVOM.XX.TRY.XXX.XXXX.SX.SKT.JPY.IS.N.M"]
[{"$f":"\"INN.\"&EIGNIR!$B$3&C3554","v":{"$error":"#N/A"}},{"$f":"'Sundurliðun Skuldabréf'!M109","v":0},".M.EVBSVOM.XX.LIF.XXX.XXXX.SX.SKT.JPY.IS.N.M"]
[{"$f":"\"INN.\"&EIGNIR!$B$3&C3555","v":{"$error":"#N/A"}},{"$f":"'Sundurliðun Skuldabréf'!M110","v":0},".M.EVBSVOM.XX.OPI.XXX.XXXX.SX.SKT.JPY.IS.N.M"]
[{"$f":"\"INN.\"&EIGNIR!$B$3&C3556","v":{"$error":"#N/A"}},{"$f":"'Sundurliðun Skuldabréf'!M111","v":0},".M.EVBSVOM.XX.RSS.XXX.XXXX.SX.SKT.JPY.IS.N.M"]
[{"$f":"\"INN.\"&EIGNIR!$B$3&C3557","v":{"$error":"#N/A"}},{"$f":"'Sundurliðun Skuldabréf'!M112","v":0},".M.EVBSVOM.XX.BAJ.XXX.XXXX.SX.SKT.JPY.IS.N.M"]
[{"$f":"\"INN.\"&EIGNIR!$B$3&C3558","v":{"$error":"#N/A"}},{"$f":"'Sundurliðun Skuldabréf'!M114","v":0},".M.EVBSVOM.XX.NPH.XXX.XXXX.SX.SKT.JPY.IS.N.M"]
[{"$f":"\"INN.\"&EIGNIR!$B$3&C3559","v":{"$error":"#N/A"}},{"$f":"'Sundurliðun Skuldabréf'!M115","v":0},".M.EVBSVOM.XX.ERL.XXX.XXXX.SX.SKT.JPY.IS.N.M"]
[{"$f":"\"INN.\"&EIGNIR!$B$3&C3560","v":{"$error":"#N/A"}},{"$f":"'Sundurliðun Skuldabréf'!M116","v":0},".M.EVBSVOM.XX.ERS.XXX.XXXX.SX.SKT.JPY.IS.N.M"]
[{"$f":"\"INN.\"&EIGNIR!$B$3&C3561","v":{"$error":"#N/A"}},{"$f":"'Sundurliðun Skuldabréf'!M117","v":0},".M.EVBSVOM.XX.ERI.XXX.XXXX.SX.SKT.JPY.IS.N.M"]
[{"$f":"\"INN.\"&EIGNIR!$B$3&C3562","v":{"$error":"#N/A"}},{"$f":"'Sundurliðun Skuldabréf'!M118","v":0},".M.EVBSVOM.XX.ERP.XXX.XXXX.SX.SKT.JPY.IS.N.M"]
[{"$f":"\"INN.\"&EIGNIR!$B$3&C3563","v":{"$error":"#N/A"}},{"$f":"'Sundurliðun Skuldabréf'!M119","v":0},".M.EVBSVOM.XX.ERV.XXX.XXXX.SX.SKT.JPY.IS.N.M"]
[{"$f":"\"INN.\"&EIGNIR!$B$3&C3564","v":{"$error":"#N/A"}},{"$f":"'Sundurliðun Skuldabréf'!M120","v":0},".M.EVBSVOM.XX.ERF.XXX.XXXX.SX.SKT.JPY.IS.N.M"]
[{"$f":"\"INN.\"&EIGNIR!$B$3&C3565","v":{"$error":"#N/A"}},{"$f":"'Sundurliðun Skuldabréf'!M121","v":0},".M.EVBSVOM.XX.ERO.XXX.XXXX.SX.SKT.JPY.IS.N.M"]
[{"$f":"\"INN.\"&EIGNIR!$B$3&C3566","v":{"$error":"#N/A"}},{"$f":"'Sundurliðun Skuldabréf'!M122","v":0},".M.EVBSVOM.XX.ERA.XXX.XXXX.SX.SKT.JPY.IS.N.M"]
[{"$f":"\"INN.\"&EIGNIR!$B$3&C3567","v":{"$error":"#N/A"}},{"$f":"'Sundurliðun Skuldabréf'!N5","v":0},".M.EVBSV$$.XX.$$$.XXX.XXXX.SX.XXX.DKK.IS.N.M","//Sundurliðun skuldabréf, DKK"]
[{"$f":"\"INN.\"&EIGNIR!$B$3&C3568","v":{"$error":"#N/A"}},{"$f":"'Sundurliðun Skuldabréf'!N45","v":0},".M.EVBSVOM.XX.$$$.XXX.XXXX.SX.LAT.DKK.IS.N.M"]
[{"$f":"\"INN.\"&EIGNIR!$B$3&C3569","v":{"$error":"#N/A"}},{"$f":"'Sundurliðun Skuldabréf'!N46","v":0},".M.EVBSVOM.XX.ATV.XXX.XXXX.SX.LAT.DKK.IS.N.M"]
[{"$f":"\"INN.\"&EIGNIR!$B$3&C3570","v":{"$error":"#N/A"}},{"$f":"'Sundurliðun Skuldabréf'!N60","v":0},".M.EVBSVOM.XX.FJA.XXX.XXXX.SX.LAT.DKK.IS.N.M"]
[{"$f":"\"INN.\"&EIGNIR!$B$3&C3571","v":{"$error":"#N/A"}},{"$f":"'Sundurliðun Skuldabréf'!N61","v":0},".M.EVBSVOM.XX.INN.XXX.XXXX.SX.LAT.DKK.IS.N.M"]
[{"$f":"\"INN.\"&EIGNIR!$B$3&C3572","v":{"$error":"#N/A"}},{"$f":"'Sundurliðun Skuldabréf'!N62","v":0},".M.EVBSVOM.XX.SLI.XXX.XXXX.SX.LAT.DKK.IS.N.M"]
[{"$f":"\"INN.\"&EIGNIR!$B$3&C3573","v":{"$error":"#N/A"}},{"$f":"'Sundurliðun Skuldabréf'!N63","v":0},".M.EVBSVOM.XX.PEN.XXX.XXXX.SX.LAT.DKK.IS.N.M"]
[{"$f":"\"INN.\"&EIGNIR!$B$3&C3574","v":{"$error":"#N/A"}},{"$f":"'Sundurliðun Skuldabréf'!N64","v":0},".M.EVBSVOM.XX.SJO.XXX.XXXX.SX.LAT.DKK.IS.N.M"]
[{"$f":"\"INN.\"&EIGNIR!$B$3&C3575","v":{"$error":"#N/A"}},{"$f":"'Sundurliðun Skuldabréf'!N65","v":0},".M.EVBSVOM.XX.YFT.XXX.XXXX.SX.LAT.DKK.IS.N.M"]
[{"$f":"\"INN.\"&EIGNIR!$B$3&C3576","v":{"$error":"#N/A"}},{"$f":"'Sundurliðun Skuldabréf'!N66","v":0},".M.EVBSVOM.XX.SLY.XXX.XXXX.SX.LAT.DKK.IS.N.M"]
[{"$f":"\"INN.\"&EIGNIR!$B$3&C3577","v":{"$error":"#N/A"}},{"$f":"'Sundurliðun Skuldabréf'!N67","v":0},".M.EVBSVOM.XX.FHL.XXX.XXXX.SX.LAT.DKK.IS.N.M"]
[{"$f":"\"INN.\"&EIGNIR!$B$3&C3578","v":{"$error":"#N/A"}},{"$f":"'Sundurliðun Skuldabréf'!N68","v":0},".M.EVBSVOM.XX.INF.XXX.XXXX.SX.LAT.DKK.IS.N.M"]
[{"$f":"\"INN.\"&EIGNIR!$B$3&C3579","v":{"$error":"#N/A"}},{"$f":"'Sundurliðun Skuldabréf'!N69","v":0},".M.EVBSVOM.XX.TRY.XXX.XXXX.SX.LAT.DKK.IS.N.M"]
[{"$f":"\"INN.\"&EIGNIR!$B$3&C3580","v":{"$error":"#N/A"}},{"$f":"'Sundurliðun Skuldabréf'!N70","v":0},".M.EVBSVOM.XX.LIF.XXX.XXXX.SX.LAT.DKK.IS.N.M"]
[{"$f":"\"INN.\"&EIGNIR!$B$3&C3581","v":{"$error":"#N/A"}},{"$f":"'Sundurliðun Skuldabréf'!N71","v":0},".M.EVBSVOM.XX.OPI.XXX.XXXX.SX.LAT.DKK.IS.N.M"]
[{"$f":"\"INN.\"&EIGNIR!$B$3&C3582","v":{"$error":"#N/A"}},{"$f":"'Sundurliðun Skuldabréf'!N72","v":0},".M.EVBSVOM.XX.RSS.XXX.XXXX.SX.LAT.DKK.IS.N.M"]
[{"$f":"\"INN.\"&EIGNIR!$B$3&C3583","v":{"$error":"#N/A"}},{"$f":"'Sundurliðun Skuldabréf'!N73","v":0},".M.EVBSVOM.XX.BAJ.XXX.XXXX.SX.LAT.DKK.IS.N.M"]
[{"$f":"\"INN.\"&EIGNIR!$B$3&C3584","v":{"$error":"#N/A"}},{"$f":"'Sundurliðun Skuldabréf'!N75","v":0},".M.EVBSVOM.XX.NPH.XXX.XXXX.SX.LAT.DKK.IS.N.M"]
[{"$f":"\"INN.\"&EIGNIR!$B$3&C3585","v":{"$error":"#N/A"}},{"$f":"'Sundurliðun Skuldabréf'!N76","v":0},".M.EVBSVOM.XX.ERL.XXX.XXXX.SX.LAT.DKK.IS.N.M"]
[{"$f":"\"INN.\"&EIGNIR!$B$3&C3586","v":{"$error":"#N/A"}},{"$f":"'Sundurliðun Skuldabréf'!N77","v":0},".M.EVBSVOM.XX.ERS.XXX.XXXX.SX.LAT.DKK.IS.N.M"]
[{"$f":"\"INN.\"&EIGNIR!$B$3&C3587","v":{"$error":"#N/A"}},{"$f":"'Sundurliðun Skuldabréf'!N78","v":0},".M.EVBSVOM.XX.ERI.XXX.XXXX.SX.LAT.DKK.IS.N.M"]
[{"$f":"\"INN.\"&EIGNIR!$B$3&C3588","v":{"$error":"#N/A"}},{"$f":"'Sundurliðun Skuldabréf'!N79","v":0},".M.EVBSVOM.XX.ERP.XXX.XXXX.SX.LAT.DKK.IS.N.M"]
[{"$f":"\"INN.\"&EIGNIR!$B$3&C3589","v":{"$error":"#N/A"}},{"$f":"'Sundurliðun Skuldabréf'!N80","v":0},".M.EVBSVOM.XX.ERV.XXX.XXXX.SX.LAT.DKK.IS.N.M"]
[{"$f":"\"INN.\"&EIGNIR!$B$3&C3590","v":{"$error":"#N/A"}},{"$f":"'Sundurliðun Skuldabréf'!N81","v":0},".M.EVBSVOM.XX.ERF.XXX.XXXX.SX.LAT.DKK.IS.N.M"]
[{"$f":"\"INN.\"&EIGNIR!$B$3&C3591","v":{"$error":"#N/A"}},{"$f":"'Sundurliðun Skuldabréf'!N82","v":0},".M.EVBSVOM.XX.ERO.XXX.XXXX.SX.LAT.DKK.IS.N.M"]
[{"$f":"\"INN.\"&EIGNIR!$B$3&C3592","v":{"$error":"#N/A"}},{"$f":"'Sundurliðun Skuldabréf'!N83","v":0},".M.EVBSVOM.XX.ERA.XXX.XXXX.SX.LAT.DKK.IS.N.M"]
[{"$f":"\"INN.\"&EIGNIR!$B$3&C3593","v":{"$error":"#N/A"}},{"$f":"'Sundurliðun Skuldabréf'!N84","v":0},".M.EVBSVOM.XX.$$$.XXX.XXXX.SX.SKT.DKK.IS.N.M"]
[{"$f":"\"INN.\"&EIGNIR!$B$3&C3594","v":{"$error":"#N/A"}},{"$f":"'Sundurliðun Skuldabréf'!N85","v":0},".M.EVBSVOM.XX.ATV.XXX.XXXX.SX.SKT.DKK.IS.N.M"]
[{"$f":"\"INN.\"&EIGNIR!$B$3&C3595","v":{"$error":"#N/A"}},{"$f":"'Sundurliðun Skuldabréf'!N99","v":0},".M.EVBSVOM.XX.FJA.XXX.XXXX.SX.SKT.DKK.IS.N.M"]
[{"$f":"\"INN.\"&EIGNIR!$B$3&C3596","v":{"$error":"#N/A"}},{"$f":"'Sundurliðun Skuldabréf'!N100","v":0},".M.EVBSVOM.XX.INN.XXX.XXXX.SX.SKT.DKK.IS.N.M"]
[{"$f":"\"INN.\"&EIGNIR!$B$3&C3597","v":{"$error":"#N/A"}},{"$f":"'Sundurliðun Skuldabréf'!N101","v":0},".M.EVBSVOM.XX.SLI.XXX.XXXX.SX.SKT.DKK.IS.N.M"]
[{"$f":"\"INN.\"&EIGNIR!$B$3&C3598","v":{"$error":"#N/A"}},{"$f":"'Sundurliðun Skuldabréf'!N102","v":0},".M.EVBSVOM.XX.PEN.XXX.XXXX.SX.SKT.DKK.IS.N.M"]
[{"$f":"\"INN.\"&EIGNIR!$B$3&C3599","v":{"$error":"#N/A"}},{"$f":"'Sundurliðun Skuldabréf'!N103","v":0},".M.EVBSVOM.XX.SJO.XXX.XXXX.SX.SKT.DKK.IS.N.M"]
[{"$f":"\"INN.\"&EIGNIR!$B$3&C3600","v":{"$error":"#N/A"}},{"$f":"'Sundurliðun Skuldabréf'!N104","v":0},".M.EVBSVOM.XX.YFT.XXX.XXXX.SX.SKT.DKK.IS.N.M"]
[{"$f":"\"INN.\"&EIGNIR!$B$3&C3601","v":{"$error":"#N/A"}},{"$f":"'Sundurliðun Skuldabréf'!N105","v":0},".M.EVBSVOM.XX.SLY.XXX.XXXX.SX.SKT.DKK.IS.N.M"]
[{"$f":"\"INN.\"&EIGNIR!$B$3&C3602","v":{"$error":"#N/A"}},{"$f":"'Sundurliðun Skuldabréf'!N106","v":0},".M.EVBSVOM.XX.FHL.XXX.XXXX.SX.SKT.DKK.IS.N.M"]
[{"$f":"\"INN.\"&EIGNIR!$B$3&C3603","v":{"$error":"#N/A"}},{"$f":"'Sundurliðun Skuldabréf'!N107","v":0},".M.EVBSVOM.XX.INF.XXX.XXXX.SX.SKT.DKK.IS.N.M"]
[{"$f":"\"INN.\"&EIGNIR!$B$3&C3604","v":{"$error":"#N/A"}},{"$f":"'Sundurliðun Skuldabréf'!N108","v":0},".M.EVBSVOM.XX.TRY.XXX.XXXX.SX.SKT.DKK.IS.N.M"]
[{"$f":"\"INN.\"&EIGNIR!$B$3&C3605","v":{"$error":"#N/A"}},{"$f":"'Sundurliðun Skuldabréf'!N109","v":0},".M.EVBSVOM.XX.LIF.XXX.XXXX.SX.SKT.DKK.IS.N.M"]
[{"$f":"\"INN.\"&EIGNIR!$B$3&C3606","v":{"$error":"#N/A"}},{"$f":"'Sundurliðun Skuldabréf'!N110","v":0},".M.EVBSVOM.XX.OPI.XXX.XXXX.SX.SKT.DKK.IS.N.M"]
[{"$f":"\"INN.\"&EIGNIR!$B$3&C3607","v":{"$error":"#N/A"}},{"$f":"'Sundurliðun Skuldabréf'!N111","v":0},".M.EVBSVOM.XX.RSS.XXX.XXXX.SX.SKT.DKK.IS.N.M"]
[{"$f":"\"INN.\"&EIGNIR!$B$3&C3608","v":{"$error":"#N/A"}},{"$f":"'Sundurliðun Skuldabréf'!N112","v":0},".M.EVBSVOM.XX.BAJ.XXX.XXXX.SX.SKT.DKK.IS.N.M"]
[{"$f":"\"INN.\"&EIGNIR!$B$3&C3609","v":{"$error":"#N/A"}},{"$f":"'Sundurliðun Skuldabréf'!N114","v":0},".M.EVBSVOM.XX.NPH.XXX.XXXX.SX.SKT.DKK.IS.N.M"]
[{"$f":"\"INN.\"&EIGNIR!$B$3&C3610","v":{"$error":"#N/A"}},{"$f":"'Sundurliðun Skuldabréf'!N115","v":0},".M.EVBSVOM.XX.ERL.XXX.XXXX.SX.SKT.DKK.IS.N.M"]
[{"$f":"\"INN.\"&EIGNIR!$B$3&C3611","v":{"$error":"#N/A"}},{"$f":"'Sundurliðun Skuldabréf'!N116","v":0},".M.EVBSVOM.XX.ERS.XXX.XXXX.SX.SKT.DKK.IS.N.M"]
[{"$f":"\"INN.\"&EIGNIR!$B$3&C3612","v":{"$error":"#N/A"}},{"$f":"'Sundurliðun Skuldabréf'!N117","v":0},".M.EVBSVOM.XX.ERI.XXX.XXXX.SX.SKT.DKK.IS.N.M"]
[{"$f":"\"INN.\"&EIGNIR!$B$3&C3613","v":{"$error":"#N/A"}},{"$f":"'Sundurliðun Skuldabréf'!N118","v":0},".M.EVBSVOM.XX.ERP.XXX.XXXX.SX.SKT.DKK.IS.N.M"]
[{"$f":"\"INN.\"&EIGNIR!$B$3&C3614","v":{"$error":"#N/A"}},{"$f":"'Sundurliðun Skuldabréf'!N119","v":0},".M.EVBSVOM.XX.ERV.XXX.XXXX.SX.SKT.DKK.IS.N.M"]
[{"$f":"\"INN.\"&EIGNIR!$B$3&C3615","v":{"$error":"#N/A"}},{"$f":"'Sundurliðun Skuldabréf'!N120","v":0},".M.EVBSVOM.XX.ERF.XXX.XXXX.SX.SKT.DKK.IS.N.M"]
[{"$f":"\"INN.\"&EIGNIR!$B$3&C3616","v":{"$error":"#N/A"}},{"$f":"'Sundurliðun Skuldabréf'!N121","v":0},".M.EVBSVOM.XX.ERO.XXX.XXXX.SX.SKT.DKK.IS.N.M"]
[{"$f":"\"INN.\"&EIGNIR!$B$3&C3617","v":{"$error":"#N/A"}},{"$f":"'Sundurliðun Skuldabréf'!N122","v":0},".M.EVBSVOM.XX.ERA.XXX.XXXX.SX.SKT.DKK.IS.N.M"]
[{"$f":"\"INN.\"&EIGNIR!$B$3&C3618","v":{"$error":"#N/A"}},{"$f":"'Sundurliðun Skuldabréf'!O5","v":0},".M.EVBSV$$.XX.$$$.XXX.XXXX.SX.XXX.NOK.IS.N.M","//Sundurliðun skuldabréf, NOK"]
[{"$f":"\"INN.\"&EIGNIR!$B$3&C3619","v":{"$error":"#N/A"}},{"$f":"'Sundurliðun Skuldabréf'!O45","v":0},".M.EVBSVOM.XX.$$$.XXX.XXXX.SX.LAT.NOK.IS.N.M"]
[{"$f":"\"INN.\"&EIGNIR!$B$3&C3620","v":{"$error":"#N/A"}},{"$f":"'Sundurliðun Skuldabréf'!O46","v":0},".M.EVBSVOM.XX.ATV.XXX.XXXX.SX.LAT.NOK.IS.N.M"]
[{"$f":"\"INN.\"&EIGNIR!$B$3&C3621","v":{"$error":"#N/A"}},{"$f":"'Sundurliðun Skuldabréf'!O60","v":0},".M.EVBSVOM.XX.FJA.XXX.XXXX.SX.LAT.NOK.IS.N.M"]
[{"$f":"\"INN.\"&EIGNIR!$B$3&C3622","v":{"$error":"#N/A"}},{"$f":"'Sundurliðun Skuldabréf'!O61","v":0},".M.EVBSVOM.XX.INN.XXX.XXXX.SX.LAT.NOK.IS.N.M"]
[{"$f":"\"INN.\"&EIGNIR!$B$3&C3623","v":{"$error":"#N/A"}},{"$f":"'Sundurliðun Skuldabréf'!O62","v":0},".M.EVBSVOM.XX.SLI.XXX.XXXX.SX.LAT.NOK.IS.N.M"]
[{"$f":"\"INN.\"&EIGNIR!$B$3&C3624","v":{"$error":"#N/A"}},{"$f":"'Sundurliðun Skuldabréf'!O63","v":0},".M.EVBSVOM.XX.PEN.XXX.XXXX.SX.LAT.NOK.IS.N.M"]
[{"$f":"\"INN.\"&EIGNIR!$B$3&C3625","v":{"$error":"#N/A"}},{"$f":"'Sundurliðun Skuldabréf'!O64","v":0},".M.EVBSVOM.XX.SJO.XXX.XXXX.SX.LAT.NOK.IS.N.M"]
[{"$f":"\"INN.\"&EIGNIR!$B$3&C3626","v":{"$error":"#N/A"}},{"$f":"'Sundurliðun Skuldabréf'!O65","v":0},".M.EVBSVOM.XX.YFT.XXX.XXXX.SX.LAT.NOK.IS.N.M"]
[{"$f":"\"INN.\"&EIGNIR!$B$3&C3627","v":{"$error":"#N/A"}},{"$f":"'Sundurliðun Skuldabréf'!O66","v":0},".M.EVBSVOM.XX.SLY.XXX.XXXX.SX.LAT.NOK.IS.N.M"]
[{"$f":"\"INN.\"&EIGNIR!$B$3&C3628","v":{"$error":"#N/A"}},{"$f":"'Sundurliðun Skuldabréf'!O67","v":0},".M.EVBSVOM.XX.FHL.XXX.XXXX.SX.LAT.NOK.IS.N.M"]
[{"$f":"\"INN.\"&EIGNIR!$B$3&C3629","v":{"$error":"#N/A"}},{"$f":"'Sundurliðun Skuldabréf'!O68","v":0},".M.EVBSVOM.XX.INF.XXX.XXXX.SX.LAT.NOK.IS.N.M"]
[{"$f":"\"INN.\"&EIGNIR!$B$3&C3630","v":{"$error":"#N/A"}},{"$f":"'Sundurliðun Skuldabréf'!O69","v":0},".M.EVBSVOM.XX.TRY.XXX.XXXX.SX.LAT.NOK.IS.N.M"]
[{"$f":"\"INN.\"&EIGNIR!$B$3&C3631","v":{"$error":"#N/A"}},{"$f":"'Sundurliðun Skuldabréf'!O70","v":0},".M.EVBSVOM.XX.LIF.XXX.XXXX.SX.LAT.NOK.IS.N.M"]
[{"$f":"\"INN.\"&EIGNIR!$B$3&C3632","v":{"$error":"#N/A"}},{"$f":"'Sundurliðun Skuldabréf'!O71","v":0},".M.EVBSVOM.XX.OPI.XXX.XXXX.SX.LAT.NOK.IS.N.M"]
[{"$f":"\"INN.\"&EIGNIR!$B$3&C3633","v":{"$error":"#N/A"}},{"$f":"'Sundurliðun Skuldabréf'!O72","v":0},".M.EVBSVOM.XX.RSS.XXX.XXXX.SX.LAT.NOK.IS.N.M"]
[{"$f":"\"INN.\"&EIGNIR!$B$3&C3634","v":{"$error":"#N/A"}},{"$f":"'Sundurliðun Skuldabréf'!O73","v":0},".M.EVBSVOM.XX.BAJ.XXX.XXXX.SX.LAT.NOK.IS.N.M"]
[{"$f":"\"INN.\"&EIGNIR!$B$3&C3635","v":{"$error":"#N/A"}},{"$f":"'Sundurliðun Skuldabréf'!O75","v":0},".M.EVBSVOM.XX.NPH.XXX.XXXX.SX.LAT.NOK.IS.N.M"]
[{"$f":"\"INN.\"&EIGNIR!$B$3&C3636","v":{"$error":"#N/A"}},{"$f":"'Sundurliðun Skuldabréf'!O76","v":0},".M.EVBSVOM.XX.ERL.XXX.XXXX.SX.LAT.NOK.IS.N.M"]
[{"$f":"\"INN.\"&EIGNIR!$B$3&C3637","v":{"$error":"#N/A"}},{"$f":"'Sundurliðun Skuldabréf'!O77","v":0},".M.EVBSVOM.XX.ERS.XXX.XXXX.SX.LAT.NOK.IS.N.M"]
[{"$f":"\"INN.\"&EIGNIR!$B$3&C3638","v":{"$error":"#N/A"}},{"$f":"'Sundurliðun Skuldabréf'!O78","v":0},".M.EVBSVOM.XX.ERI.XXX.XXXX.SX.LAT.NOK.IS.N.M"]
[{"$f":"\"INN.\"&EIGNIR!$B$3&C3639","v":{"$error":"#N/A"}},{"$f":"'Sundurliðun Skuldabréf'!O79","v":0},".M.EVBSVOM.XX.ERP.XXX.XXXX.SX.LAT.NOK.IS.N.M"]
[{"$f":"\"INN.\"&EIGNIR!$B$3&C3640","v":{"$error":"#N/A"}},{"$f":"'Sundurliðun Skuldabréf'!O80","v":0},".M.EVBSVOM.XX.ERV.XXX.XXXX.SX.LAT.NOK.IS.N.M"]
[{"$f":"\"INN.\"&EIGNIR!$B$3&C3641","v":{"$error":"#N/A"}},{"$f":"'Sundurliðun Skuldabréf'!O81","v":0},".M.EVBSVOM.XX.ERF.XXX.XXXX.SX.LAT.NOK.IS.N.M"]
[{"$f":"\"INN.\"&EIGNIR!$B$3&C3642","v":{"$error":"#N/A"}},{"$f":"'Sundurliðun Skuldabréf'!O82","v":0},".M.EVBSVOM.XX.ERO.XXX.XXXX.SX.LAT.NOK.IS.N.M"]
[{"$f":"\"INN.\"&EIGNIR!$B$3&C3643","v":{"$error":"#N/A"}},{"$f":"'Sundurliðun Skuldabréf'!O83","v":0},".M.EVBSVOM.XX.ERA.XXX.XXXX.SX.LAT.NOK.IS.N.M"]
[{"$f":"\"INN.\"&EIGNIR!$B$3&C3644","v":{"$error":"#N/A"}},{"$f":"'Sundurliðun Skuldabréf'!O84","v":0},".M.EVBSVOM.XX.$$$.XXX.XXXX.SX.SKT.NOK.IS.N.M"]
[{"$f":"\"INN.\"&EIGNIR!$B$3&C3645","v":{"$error":"#N/A"}},{"$f":"'Sundurliðun Skuldabréf'!O85","v":0},".M.EVBSVOM.XX.ATV.XXX.XXXX.SX.SKT.NOK.IS.N.M"]
[{"$f":"\"INN.\"&EIGNIR!$B$3&C3646","v":{"$error":"#N/A"}},{"$f":"'Sundurliðun Skuldabréf'!O99","v":0},".M.EVBSVOM.XX.FJA.XXX.XXXX.SX.SKT.NOK.IS.N.M"]
[{"$f":"\"INN.\"&EIGNIR!$B$3&C3647","v":{"$error":"#N/A"}},{"$f":"'Sundurliðun Skuldabréf'!O100","v":0},".M.EVBSVOM.XX.INN.XXX.XXXX.SX.SKT.NOK.IS.N.M"]
[{"$f":"\"INN.\"&EIGNIR!$B$3&C3648","v":{"$error":"#N/A"}},{"$f":"'Sundurliðun Skuldabréf'!O101","v":0},".M.EVBSVOM.XX.SLI.XXX.XXXX.SX.SKT.NOK.IS.N.M"]
[{"$f":"\"INN.\"&EIGNIR!$B$3&C3649","v":{"$error":"#N/A"}},{"$f":"'Sundurliðun Skuldabréf'!O102","v":0},".M.EVBSVOM.XX.PEN.XXX.XXXX.SX.SKT.NOK.IS.N.M"]
[{"$f":"\"INN.\"&EIGNIR!$B$3&C3650","v":{"$error":"#N/A"}},{"$f":"'Sundurliðun Skuldabréf'!O103","v":0},".M.EVBSVOM.XX.SJO.XXX.XXXX.SX.SKT.NOK.IS.N.M"]
[{"$f":"\"INN.\"&EIGNIR!$B$3&C3651","v":{"$error":"#N/A"}},{"$f":"'Sundurliðun Skuldabréf'!O104","v":0},".M.EVBSVOM.XX.YFT.XXX.XXXX.SX.SKT.NOK.IS.N.M"]
[{"$f":"\"INN.\"&EIGNIR!$B$3&C3652","v":{"$error":"#N/A"}},{"$f":"'Sundurliðun Skuldabréf'!O105","v":0},".M.EVBSVOM.XX.SLY.XXX.XXXX.SX.SKT.NOK.IS.N.M"]
[{"$f":"\"INN.\"&EIGNIR!$B$3&C3653","v":{"$error":"#N/A"}},{"$f":"'Sundurliðun Skuldabréf'!O106","v":0},".M.EVBSVOM.XX.FHL.XXX.XXXX.SX.SKT.NOK.IS.N.M"]
[{"$f":"\"INN.\"&EIGNIR!$B$3&C3654","v":{"$error":"#N/A"}},{"$f":"'Sundurliðun Skuldabréf'!O107","v":0},".M.EVBSVOM.XX.INF.XXX.XXXX.SX.SKT.NOK.IS.N.M"]
[{"$f":"\"INN.\"&EIGNIR!$B$3&C3655","v":{"$error":"#N/A"}},{"$f":"'Sundurliðun Skuldabréf'!O108","v":0},".M.EVBSVOM.XX.TRY.XXX.XXXX.SX.SKT.NOK.IS.N.M"]
[{"$f":"\"INN.\"&EIGNIR!$B$3&C3656","v":{"$error":"#N/A"}},{"$f":"'Sundurliðun Skuldabréf'!O109","v":0},".M.EVBSVOM.XX.LIF.XXX.XXXX.SX.SKT.NOK.IS.N.M"]
[{"$f":"\"INN.\"&EIGNIR!$B$3&C3657","v":{"$error":"#N/A"}},{"$f":"'Sundurliðun Skuldabréf'!O110","v":0},".M.EVBSVOM.XX.OPI.XXX.XXXX.SX.SKT.NOK.IS.N.M"]
[{"$f":"\"INN.\"&EIGNIR!$B$3&C3658","v":{"$error":"#N/A"}},{"$f":"'Sundurliðun Skuldabréf'!O111","v":0},".M.EVBSVOM.XX.RSS.XXX.XXXX.SX.SKT.NOK.IS.N.M"]
[{"$f":"\"INN.\"&EIGNIR!$B$3&C3659","v":{"$error":"#N/A"}},{"$f":"'Sundurliðun Skuldabréf'!O112","v":0},".M.EVBSVOM.XX.BAJ.XXX.XXXX.SX.SKT.NOK.IS.N.M"]
[{"$f":"\"INN.\"&EIGNIR!$B$3&C3660","v":{"$error":"#N/A"}},{"$f":"'Sundurliðun Skuldabréf'!O114","v":0},".M.EVBSVOM.XX.NPH.XXX.XXXX.SX.SKT.NOK.IS.N.M"]
[{"$f":"\"INN.\"&EIGNIR!$B$3&C3661","v":{"$error":"#N/A"}},{"$f":"'Sundurliðun Skuldabréf'!O115","v":0},".M.EVBSVOM.XX.ERL.XXX.XXXX.SX.SKT.NOK.IS.N.M"]
[{"$f":"\"INN.\"&EIGNIR!$B$3&C3662","v":{"$error":"#N/A"}},{"$f":"'Sundurliðun Skuldabréf'!O116","v":0},".M.EVBSVOM.XX.ERS.XXX.XXXX.SX.SKT.NOK.IS.N.M"]
[{"$f":"\"INN.\"&EIGNIR!$B$3&C3663","v":{"$error":"#N/A"}},{"$f":"'Sundurliðun Skuldabréf'!O117","v":0},".M.EVBSVOM.XX.ERI.XXX.XXXX.SX.SKT.NOK.IS.N.M"]
[{"$f":"\"INN.\"&EIGNIR!$B$3&C3664","v":{"$error":"#N/A"}},{"$f":"'Sundurliðun Skuldabréf'!O118","v":0},".M.EVBSVOM.XX.ERP.XXX.XXXX.SX.SKT.NOK.IS.N.M"]
[{"$f":"\"INN.\"&EIGNIR!$B$3&C3665","v":{"$error":"#N/A"}},{"$f":"'Sundurliðun Skuldabréf'!O119","v":0},".M.EVBSVOM.XX.ERV.XXX.XXXX.SX.SKT.NOK.IS.N.M"]
[{"$f":"\"INN.\"&EIGNIR!$B$3&C3666","v":{"$error":"#N/A"}},{"$f":"'Sundurliðun Skuldabréf'!O120","v":0},".M.EVBSVOM.XX.ERF.XXX.XXXX.SX.SKT.NOK.IS.N.M"]
[{"$f":"\"INN.\"&EIGNIR!$B$3&C3667","v":{"$error":"#N/A"}},{"$f":"'Sundurliðun Skuldabréf'!O121","v":0},".M.EVBSVOM.XX.ERO.XXX.XXXX.SX.SKT.NOK.IS.N.M"]
[{"$f":"\"INN.\"&EIGNIR!$B$3&C3668","v":{"$error":"#N/A"}},{"$f":"'Sundurliðun Skuldabréf'!O122","v":0},".M.EVBSVOM.XX.ERA.XXX.XXXX.SX.SKT.NOK.IS.N.M"]
[{"$f":"\"INN.\"&EIGNIR!$B$3&C3669","v":{"$error":"#N/A"}},{"$f":"'Sundurliðun Skuldabréf'!P5","v":0},".M.EVBSV$$.XX.$$$.XXX.XXXX.SX.XXX.SEK.IS.N.M","//Sundurliðun skuldabréf, SEK"]
[{"$f":"\"INN.\"&EIGNIR!$B$3&C3670","v":{"$error":"#N/A"}},{"$f":"'Sundurliðun Skuldabréf'!P45","v":0},".M.EVBSVOM.XX.$$$.XXX.XXXX.SV.LAT.SEK.IS.N.M"]
[{"$f":"\"INN.\"&EIGNIR!$B$3&C3671","v":{"$error":"#N/A"}},{"$f":"'Sundurliðun Skuldabréf'!P46","v":0},".M.EVBSVOM.XX.ATV.XXX.XXXX.SV.LAT.SEK.IS.N.M"]
[{"$f":"\"INN.\"&EIGNIR!$B$3&C3672","v":{"$error":"#N/A"}},{"$f":"'Sundurliðun Skuldabréf'!P60","v":0},".M.EVBSVOM.XX.FJA.XXX.XXXX.SV.LAT.SEK.IS.N.M"]
[{"$f":"\"INN.\"&EIGNIR!$B$3&C3673","v":{"$error":"#N/A"}},{"$f":"'Sundurliðun Skuldabréf'!P61","v":0},".M.EVBSVOM.XX.INN.XXX.XXXX.SV.LAT.SEK.IS.N.M"]
[{"$f":"\"INN.\"&EIGNIR!$B$3&C3674","v":{"$error":"#N/A"}},{"$f":"'Sundurliðun Skuldabréf'!P62","v":0},".M.EVBSVOM.XX.SLI.XXX.XXXX.SV.LAT.SEK.IS.N.M"]
[{"$f":"\"INN.\"&EIGNIR!$B$3&C3675","v":{"$error":"#N/A"}},{"$f":"'Sundurliðun Skuldabréf'!P63","v":0},".M.EVBSVOM.XX.PEN.XXX.XXXX.SV.LAT.SEK.IS.N.M"]
[{"$f":"\"INN.\"&EIGNIR!$B$3&C3676","v":{"$error":"#N/A"}},{"$f":"'Sundurliðun Skuldabréf'!P64","v":0},".M.EVBSVOM.XX.SJO.XXX.XXXX.SV.LAT.SEK.IS.N.M"]
[{"$f":"\"INN.\"&EIGNIR!$B$3&C3677","v":{"$error":"#N/A"}},{"$f":"'Sundurliðun Skuldabréf'!P65","v":0},".M.EVBSVOM.XX.YFT.XXX.XXXX.SV.LAT.SEK.IS.N.M"]
[{"$f":"\"INN.\"&EIGNIR!$B$3&C3678","v":{"$error":"#N/A"}},{"$f":"'Sundurliðun Skuldabréf'!P66","v":0},".M.EVBSVOM.XX.SLY.XXX.XXXX.SV.LAT.SEK.IS.N.M"]
[{"$f":"\"INN.\"&EIGNIR!$B$3&C3679","v":{"$error":"#N/A"}},{"$f":"'Sundurliðun Skuldabréf'!P67","v":0},".M.EVBSVOM.XX.FHL.XXX.XXXX.SV.LAT.SEK.IS.N.M"]
[{"$f":"\"INN.\"&EIGNIR!$B$3&C3680","v":{"$error":"#N/A"}},{"$f":"'Sundurliðun Skuldabréf'!P68","v":0},".M.EVBSVOM.XX.INF.XXX.XXXX.SV.LAT.SEK.IS.N.M"]
[{"$f":"\"INN.\"&EIGNIR!$B$3&C3681","v":{"$error":"#N/A"}},{"$f":"'Sundurliðun Skuldabréf'!P69","v":0},".M.EVBSVOM.XX.TRY.XXX.XXXX.SV.LAT.SEK.IS.N.M"]
[{"$f":"\"INN.\"&EIGNIR!$B$3&C3682","v":{"$error":"#N/A"}},{"$f":"'Sundurliðun Skuldabréf'!P70","v":0},".M.EVBSVOM.XX.LIF.XXX.XXXX.SV.LAT.SEK.IS.N.M"]
[{"$f":"\"INN.\"&EIGNIR!$B$3&C3683","v":{"$error":"#N/A"}},{"$f":"'Sundurliðun Skuldabréf'!P71","v":0},".M.EVBSVOM.XX.OPI.XXX.XXXX.SV.LAT.SEK.IS.N.M"]
[{"$f":"\"INN.\"&EIGNIR!$B$3&C3684","v":{"$error":"#N/A"}},{"$f":"'Sundurliðun Skuldabréf'!P72","v":0},".M.EVBSVOM.XX.RSS.XXX.XXXX.SV.LAT.SEK.IS.N.M"]
[{"$f":"\"INN.\"&EIGNIR!$B$3&C3685","v":{"$error":"#N/A"}},{"$f":"'Sundurliðun Skuldabréf'!P73","v":0},".M.EVBSVOM.XX.BAJ.XXX.XXXX.SV.LAT.SEK.IS.N.M"]
[{"$f":"\"INN.\"&EIGNIR!$B$3&C3686","v":{"$error":"#N/A"}},{"$f":"'Sundurliðun Skuldabréf'!P75","v":0},".M.EVBSVOM.XX.NPH.XXX.XXXX.SV.LAT.SEK.IS.N.M"]
[{"$f":"\"INN.\"&EIGNIR!$B$3&C3687","v":{"$error":"#N/A"}},{"$f":"'Sundurliðun Skuldabréf'!P76","v":0},".M.EVBSVOM.XX.ERL.XXX.XXXX.SV.LAT.SEK.IS.N.M"]
[{"$f":"\"INN.\"&EIGNIR!$B$3&C3688","v":{"$error":"#N/A"}},{"$f":"'Sundurliðun Skuldabréf'!P77","v":0},".M.EVBSVOM.XX.ERS.XXX.XXXX.SV.LAT.SEK.IS.N.M"]
[{"$f":"\"INN.\"&EIGNIR!$B$3&C3689","v":{"$error":"#N/A"}},{"$f":"'Sundurliðun Skuldabréf'!P78","v":0},".M.EVBSVOM.XX.ERI.XXX.XXXX.SV.LAT.SEK.IS.N.M"]
[{"$f":"\"INN.\"&EIGNIR!$B$3&C3690","v":{"$error":"#N/A"}},{"$f":"'Sundurliðun Skuldabréf'!P79","v":0},".M.EVBSVOM.XX.ERP.XXX.XXXX.SV.LAT.SEK.IS.N.M"]
[{"$f":"\"INN.\"&EIGNIR!$B$3&C3691","v":{"$error":"#N/A"}},{"$f":"'Sundurliðun Skuldabréf'!P80","v":0},".M.EVBSVOM.XX.ERV.XXX.XXXX.SV.LAT.SEK.IS.N.M"]
[{"$f":"\"INN.\"&EIGNIR!$B$3&C3692","v":{"$error":"#N/A"}},{"$f":"'Sundurliðun Skuldabréf'!P81","v":0},".M.EVBSVOM.XX.ERF.XXX.XXXX.SV.LAT.SEK.IS.N.M"]
[{"$f":"\"INN.\"&EIGNIR!$B$3&C3693","v":{"$error":"#N/A"}},{"$f":"'Sundurliðun Skuldabréf'!P82","v":0},".M.EVBSVOM.XX.ERO.XXX.XXXX.SV.LAT.SEK.IS.N.M"]
[{"$f":"\"INN.\"&EIGNIR!$B$3&C3694","v":{"$error":"#N/A"}},{"$f":"'Sundurliðun Skuldabréf'!P83","v":0},".M.EVBSVOM.XX.ERA.XXX.XXXX.SV.LAT.SEK.IS.N.M"]
[{"$f":"\"INN.\"&EIGNIR!$B$3&C3695","v":{"$error":"#N/A"}},{"$f":"'Sundurliðun Skuldabréf'!P84","v":0},".M.EVBSVOM.XX.$$$.XXX.XXXX.SX.SKT.SEK.IS.N.M"]
[{"$f":"\"INN.\"&EIGNIR!$B$3&C3696","v":{"$error":"#N/A"}},{"$f":"'Sundurliðun Skuldabréf'!P85","v":0},".M.EVBSVOM.XX.ATV.XXX.XXXX.SX.SKT.SEK.IS.N.M"]
[{"$f":"\"INN.\"&EIGNIR!$B$3&C3697","v":{"$error":"#N/A"}},{"$f":"'Sundurliðun Skuldabréf'!P99","v":0},".M.EVBSVOM.XX.FJA.XXX.XXXX.SX.SKT.SEK.IS.N.M"]
[{"$f":"\"INN.\"&EIGNIR!$B$3&C3698","v":{"$error":"#N/A"}},{"$f":"'Sundurliðun Skuldabréf'!P100","v":0},".M.EVBSVOM.XX.INN.XXX.XXXX.SX.SKT.SEK.IS.N.M"]
[{"$f":"\"INN.\"&EIGNIR!$B$3&C3699","v":{"$error":"#N/A"}},{"$f":"'Sundurliðun Skuldabréf'!P101","v":0},".M.EVBSVOM.XX.SLI.XXX.XXXX.SX.SKT.SEK.IS.N.M"]
[{"$f":"\"INN.\"&EIGNIR!$B$3&C3700","v":{"$error":"#N/A"}},{"$f":"'Sundurliðun Skuldabréf'!P102","v":0},".M.EVBSVOM.XX.PEN.XXX.XXXX.SX.SKT.SEK.IS.N.M"]
[{"$f":"\"INN.\"&EIGNIR!$B$3&C3701","v":{"$error":"#N/A"}},{"$f":"'Sundurliðun Skuldabréf'!P103","v":0},".M.EVBSVOM.XX.SJO.XXX.XXXX.SX.SKT.SEK.IS.N.M"]
[{"$f":"\"INN.\"&EIGNIR!$B$3&C3702","v":{"$error":"#N/A"}},{"$f":"'Sundurliðun Skuldabréf'!P104","v":0},".M.EVBSVOM.XX.YFT.XXX.XXXX.SX.SKT.SEK.IS.N.M"]
[{"$f":"\"INN.\"&EIGNIR!$B$3&C3703","v":{"$error":"#N/A"}},{"$f":"'Sundurliðun Skuldabréf'!P105","v":0},".M.EVBSVOM.XX.SLY.XXX.XXXX.SX.SKT.SEK.IS.N.M"]
[{"$f":"\"INN.\"&EIGNIR!$B$3&C3704","v":{"$error":"#N/A"}},{"$f":"'Sundurliðun Skuldabréf'!P106","v":0},".M.EVBSVOM.XX.FHL.XXX.XXXX.SX.SKT.SEK.IS.N.M"]
[{"$f":"\"INN.\"&EIGNIR!$B$3&C3705","v":{"$error":"#N/A"}},{"$f":"'Sundurliðun Skuldabréf'!P107","v":0},".M.EVBSVOM.XX.INF.XXX.XXXX.SX.SKT.SEK.IS.N.M"]
[{"$f":"\"INN.\"&EIGNIR!$B$3&C3706","v":{"$error":"#N/A"}},{"$f":"'Sundurliðun Skuldabréf'!P108","v":0},".M.EVBSVOM.XX.TRY.XXX.XXXX.SX.SKT.SEK.IS.N.M"]
[{"$f":"\"INN.\"&EIGNIR!$B$3&C3707","v":{"$error":"#N/A"}},{"$f":"'Sundurliðun Skuldabréf'!P109","v":0},".M.EVBSVOM.XX.LIF.XXX.XXXX.SX.SKT.SEK.IS.N.M"]
[{"$f":"\"INN.\"&EIGNIR!$B$3&C3708","v":{"$error":"#N/A"}},{"$f":"'Sundurliðun Skuldabréf'!P110","v":0},".M.EVBSVOM.XX.OPI.XXX.XXXX.SX.SKT.SEK.IS.N.M"]
[{"$f":"\"INN.\"&EIGNIR!$B$3&C3709","v":{"$error":"#N/A"}},{"$f":"'Sundurliðun Skuldabréf'!P111","v":0},".M.EVBSVOM.XX.RSS.XXX.XXXX.SX.SKT.SEK.IS.N.M"]
[{"$f":"\"INN.\"&EIGNIR!$B$3&C3710","v":{"$error":"#N/A"}},{"$f":"'Sundurliðun Skuldabréf'!P112","v":0},".M.EVBSVOM.XX.BAJ.XXX.XXXX.SX.SKT.SEK.IS.N.M"]
[{"$f":"\"INN.\"&EIGNIR!$B$3&C3711","v":{"$error":"#N/A"}},{"$f":"'Sundurliðun Skuldabréf'!P114","v":0},".M.EVBSVOM.XX.NPH.XXX.XXXX.SX.SKT.SEK.IS.N.M"]
[{"$f":"\"INN.\"&EIGNIR!$B$3&C3712","v":{"$error":"#N/A"}},{"$f":"'Sundurliðun Skuldabréf'!P115","v":0},".M.EVBSVOM.XX.ERL.XXX.XXXX.SX.SKT.SEK.IS.N.M"]
[{"$f":"\"INN.\"&EIGNIR!$B$3&C3713","v":{"$error":"#N/A"}},{"$f":"'Sundurliðun Skuldabréf'!P116","v":0},".M.EVBSVOM.XX.ERS.XXX.XXXX.SX.SKT.SEK.IS.N.M"]
[{"$f":"\"INN.\"&EIGNIR!$B$3&C3714","v":{"$error":"#N/A"}},{"$f":"'Sundurliðun Skuldabréf'!P117","v":0},".M.EVBSVOM.XX.ERI.XXX.XXXX.SX.SKT.SEK.IS.N.M"]
[{"$f":"\"INN.\"&EIGNIR!$B$3&C3715","v":{"$error":"#N/A"}},{"$f":"'Sundurliðun Skuldabréf'!P118","v":0},".M.EVBSVOM.XX.ERP.XXX.XXXX.SX.SKT.SEK.IS.N.M"]
[{"$f":"\"INN.\"&EIGNIR!$B$3&C3716","v":{"$error":"#N/A"}},{"$f":"'Sundurliðun Skuldabréf'!P119","v":0},".M.EVBSVOM.XX.ERV.XXX.XXXX.SX.SKT.SEK.IS.N.M"]
[{"$f":"\"INN.\"&EIGNIR!$B$3&C3717","v":{"$error":"#N/A"}},{"$f":"'Sundurliðun Skuldabréf'!P120","v":0},".M.EVBSVOM.XX.ERF.XXX.XXXX.SX.SKT.SEK.IS.N.M"]
[{"$f":"\"INN.\"&EIGNIR!$B$3&C3718","v":{"$error":"#N/A"}},{"$f":"'Sundurliðun Skuldabréf'!P121","v":0},".M.EVBSVOM.XX.ERO.XXX.XXXX.SX.SKT.SEK.IS.N.M"]
[{"$f":"\"INN.\"&EIGNIR!$B$3&C3719","v":{"$error":"#N/A"}},{"$f":"'Sundurliðun Skuldabréf'!P122","v":0},".M.EVBSVOM.XX.ERA.XXX.XXXX.SX.SKT.SEK.IS.N.M"]
[{"$f":"\"INN.\"&EIGNIR!$B$3&C3720","v":{"$error":"#N/A"}},{"$f":"'Sundurliðun Skuldabréf'!Q5","v":0},".M.EVBSV$$.XX.$$$.XXX.XXXX.SX.XXX.CHF.IS.N.M","//Sundurliðun skuldabréf, CHF"]
[{"$f":"\"INN.\"&EIGNIR!$B$3&C3721","v":{"$error":"#N/A"}},{"$f":"'Sundurliðun Skuldabréf'!Q45","v":0},".M.EVBSVOM.XX.$$$.XXX.XXXX.SX.LAT.CHF.IS.N.M"]
[{"$f":"\"INN.\"&EIGNIR!$B$3&C3722","v":{"$error":"#N/A"}},{"$f":"'Sundurliðun Skuldabréf'!Q46","v":0},".M.EVBSVOM.XX.ATV.XXX.XXXX.SX.LAT.CHF.IS.N.M"]
[{"$f":"\"INN.\"&EIGNIR!$B$3&C3723","v":{"$error":"#N/A"}},{"$f":"'Sundurliðun Skuldabréf'!Q60","v":0},".M.EVBSVOM.XX.FJA.XXX.XXXX.SX.LAT.CHF.IS.N.M"]
[{"$f":"\"INN.\"&EIGNIR!$B$3&C3724","v":{"$error":"#N/A"}},{"$f":"'Sundurliðun Skuldabréf'!Q61","v":0},".M.EVBSVOM.XX.INN.XXX.XXXX.SX.LAT.CHF.IS.N.M"]
[{"$f":"\"INN.\"&EIGNIR!$B$3&C3725","v":{"$error":"#N/A"}},{"$f":"'Sundurliðun Skuldabréf'!Q62","v":0},".M.EVBSVOM.XX.SLI.XXX.XXXX.SX.LAT.CHF.IS.N.M"]
[{"$f":"\"INN.\"&EIGNIR!$B$3&C3726","v":{"$error":"#N/A"}},{"$f":"'Sundurliðun Skuldabréf'!Q63","v":0},".M.EVBSVOM.XX.PEN.XXX.XXXX.SX.LAT.CHF.IS.N.M"]
[{"$f":"\"INN.\"&EIGNIR!$B$3&C3727","v":{"$error":"#N/A"}},{"$f":"'Sundurliðun Skuldabréf'!Q64","v":0},".M.EVBSVOM.XX.SJO.XXX.XXXX.SX.LAT.CHF.IS.N.M"]
[{"$f":"\"INN.\"&EIGNIR!$B$3&C3728","v":{"$error":"#N/A"}},{"$f":"'Sundurliðun Skuldabréf'!Q65","v":0},".M.EVBSVOM.XX.YFT.XXX.XXXX.SX.LAT.CHF.IS.N.M"]
[{"$f":"\"INN.\"&EIGNIR!$B$3&C3729","v":{"$error":"#N/A"}},{"$f":"'Sundurliðun Skuldabréf'!Q66","v":0},".M.EVBSVOM.XX.SLY.XXX.XXXX.SX.LAT.CHF.IS.N.M"]
[{"$f":"\"INN.\"&EIGNIR!$B$3&C3730","v":{"$error":"#N/A"}},{"$f":"'Sundurliðun Skuldabréf'!Q67","v":0},".M.EVBSVOM.XX.FHL.XXX.XXXX.SX.LAT.CHF.IS.N.M"]
[{"$f":"\"INN.\"&EIGNIR!$B$3&C3731","v":{"$error":"#N/A"}},{"$f":"'Sundurliðun Skuldabréf'!Q68","v":0},".M.EVBSVOM.XX.INF.XXX.XXXX.SX.LAT.CHF.IS.N.M"]
[{"$f":"\"INN.\"&EIGNIR!$B$3&C3732","v":{"$error":"#N/A"}},{"$f":"'Sundurliðun Skuldabréf'!Q69","v":0},".M.EVBSVOM.XX.TRY.XXX.XXXX.SX.LAT.CHF.IS.N.M"]
[{"$f":"\"INN.\"&EIGNIR!$B$3&C3733","v":{"$error":"#N/A"}},{"$f":"'Sundurliðun Skuldabréf'!Q70","v":0},".M.EVBSVOM.XX.LIF.XXX.XXXX.SX.LAT.CHF.IS.N.M"]
[{"$f":"\"INN.\"&EIGNIR!$B$3&C3734","v":{"$error":"#N/A"}},{"$f":"'Sundurliðun Skuldabréf'!Q71","v":0},".M.EVBSVOM.XX.OPI.XXX.XXXX.SX.LAT.CHF.IS.N.M"]
[{"$f":"\"INN.\"&EIGNIR!$B$3&C3735","v":{"$error":"#N/A"}},{"$f":"'Sundurliðun Skuldabréf'!Q72","v":0},".M.EVBSVOM.XX.RSS.XXX.XXXX.SX.LAT.CHF.IS.N.M"]
[{"$f":"\"INN.\"&EIGNIR!$B$3&C3736","v":{"$error":"#N/A"}},{"$f":"'Sundurliðun Skuldabréf'!Q73","v":0},".M.EVBSVOM.XX.BAJ.XXX.XXXX.SX.LAT.CHF.IS.N.M"]
[{"$f":"\"INN.\"&EIGNIR!$B$3&C3737","v":{"$error":"#N/A"}},{"$f":"'Sundurliðun Skuldabréf'!Q75","v":0},".M.EVBSVOM.XX.NPH.XXX.XXXX.SX.LAT.CHF.IS.N.M"]
[{"$f":"\"INN.\"&EIGNIR!$B$3&C3738","v":{"$error":"#N/A"}},{"$f":"'Sundurliðun Skuldabréf'!Q76","v":0},".M.EVBSVOM.XX.ERL.XXX.XXXX.SX.LAT.CHF.IS.N.M"]
[{"$f":"\"INN.\"&EIGNIR!$B$3&C3739","v":{"$error":"#N/A"}},{"$f":"'Sundurliðun Skuldabréf'!Q77","v":0},".M.EVBSVOM.XX.ERS.XXX.XXXX.SX.LAT.CHF.IS.N.M"]
[{"$f":"\"INN.\"&EIGNIR!$B$3&C3740","v":{"$error":"#N/A"}},{"$f":"'Sundurliðun Skuldabréf'!Q78","v":0},".M.EVBSVOM.XX.ERI.XXX.XXXX.SX.LAT.CHF.IS.N.M"]
[{"$f":"\"INN.\"&EIGNIR!$B$3&C3741","v":{"$error":"#N/A"}},{"$f":"'Sundurliðun Skuldabréf'!Q79","v":0},".M.EVBSVOM.XX.ERP.XXX.XXXX.SX.LAT.CHF.IS.N.M"]
[{"$f":"\"INN.\"&EIGNIR!$B$3&C3742","v":{"$error":"#N/A"}},{"$f":"'Sundurliðun Skuldabréf'!Q80","v":0},".M.EVBSVOM.XX.ERV.XXX.XXXX.SX.LAT.CHF.IS.N.M"]
[{"$f":"\"INN.\"&EIGNIR!$B$3&C3743","v":{"$error":"#N/A"}},{"$f":"'Sundurliðun Skuldabréf'!Q81","v":0},".M.EVBSVOM.XX.ERF.XXX.XXXX.SX.LAT.CHF.IS.N.M"]
[{"$f":"\"INN.\"&EIGNIR!$B$3&C3744","v":{"$error":"#N/A"}},{"$f":"'Sundurliðun Skuldabréf'!Q82","v":0},".M.EVBSVOM.XX.ERO.XXX.XXXX.SX.LAT.CHF.IS.N.M"]
[{"$f":"\"INN.\"&EIGNIR!$B$3&C3745","v":{"$error":"#N/A"}},{"$f":"'Sundurliðun Skuldabréf'!Q83","v":0},".M.EVBSVOM.XX.ERA.XXX.XXXX.SX.LAT.CHF.IS.N.M"]
[{"$f":"\"INN.\"&EIGNIR!$B$3&C3746","v":{"$error":"#N/A"}},{"$f":"'Sundurliðun Skuldabréf'!Q84","v":0},".M.EVBSVOM.XX.$$$.XXX.XXXX.SX.SKT.CHF.IS.N.M"]
[{"$f":"\"INN.\"&EIGNIR!$B$3&C3747","v":{"$error":"#N/A"}},{"$f":"'Sundurliðun Skuldabréf'!Q85","v":0},".M.EVBSVOM.XX.ATV.XXX.XXXX.SX.SKT.CHF.IS.N.M"]
[{"$f":"\"INN.\"&EIGNIR!$B$3&C3748","v":{"$error":"#N/A"}},{"$f":"'Sundurliðun Skuldabréf'!Q99","v":0},".M.EVBSVOM.XX.FJA.XXX.XXXX.SX.SKT.CHF.IS.N.M"]
[{"$f":"\"INN.\"&EIGNIR!$B$3&C3749","v":{"$error":"#N/A"}},{"$f":"'Sundurliðun Skuldabréf'!Q100","v":0},".M.EVBSVOM.XX.INN.XXX.XXXX.SX.SKT.CHF.IS.N.M"]
[{"$f":"\"INN.\"&EIGNIR!$B$3&C3750","v":{"$error":"#N/A"}},{"$f":"'Sundurliðun Skuldabréf'!Q101","v":0},".M.EVBSVOM.XX.SLI.XXX.XXXX.SX.SKT.CHF.IS.N.M"]
[{"$f":"\"INN.\"&EIGNIR!$B$3&C3751","v":{"$error":"#N/A"}},{"$f":"'Sundurliðun Skuldabréf'!Q102","v":0},".M.EVBSVOM.XX.PEN.XXX.XXXX.SX.SKT.CHF.IS.N.M"]
[{"$f":"\"INN.\"&EIGNIR!$B$3&C3752","v":{"$error":"#N/A"}},{"$f":"'Sundurliðun Skuldabréf'!Q103","v":0},".M.EVBSVOM.XX.SJO.XXX.XXXX.SX.SKT.CHF.IS.N.M"]
[{"$f":"\"INN.\"&EIGNIR!$B$3&C3753","v":{"$error":"#N/A"}},{"$f":"'Sundurliðun Skuldabréf'!Q104","v":0},".M.EVBSVOM.XX.YFT.XXX.XXXX.SX.SKT.CHF.IS.N.M"]
[{"$f":"\"INN.\"&EIGNIR!$B$3&C3754","v":{"$error":"#N/A"}},{"$f":"'Sundurliðun Skuldabréf'!Q105","v":0},".M.EVBSVOM.XX.SLY.XXX.XXXX.SX.SKT.CHF.IS.N.M"]
[{"$f":"\"INN.\"&EIGNIR!$B$3&C3755","v":{"$error":"#N/A"}},{"$f":"'Sundurliðun Skuldabréf'!Q106","v":0},".M.EVBSVOM.XX.FHL.XXX.XXXX.SX.SKT.CHF.IS.N.M"]
[{"$f":"\"INN.\"&EIGNIR!$B$3&C3756","v":{"$error":"#N/A"}},{"$f":"'Sundurliðun Skuldabréf'!Q107","v":0},".M.EVBSVOM.XX.INF.XXX.XXXX.SX.SKT.CHF.IS.N.M"]
[{"$f":"\"INN.\"&EIGNIR!$B$3&C3757","v":{"$error":"#N/A"}},{"$f":"'Sundurliðun Skuldabréf'!Q108","v":0},".M.EVBSVOM.XX.TRY.XXX.XXXX.SX.SKT.CHF.IS.N.M"]
[{"$f":"\"INN.\"&EIGNIR!$B$3&C3758","v":{"$error":"#N/A"}},{"$f":"'Sundurliðun Skuldabréf'!Q109","v":0},".M.EVBSVOM.XX.LIF.XXX.XXXX.SX.SKT.CHF.IS.N.M"]
[{"$f":"\"INN.\"&EIGNIR!$B$3&C3759","v":{"$error":"#N/A"}},{"$f":"'Sundurliðun Skuldabréf'!Q110","v":0},".M.EVBSVOM.XX.OPI.XXX.XXXX.SX.SKT.CHF.IS.N.M"]
[{"$f":"\"INN.\"&EIGNIR!$B$3&C3760","v":{"$error":"#N/A"}},{"$f":"'Sundurliðun Skuldabréf'!Q111","v":0},".M.EVBSVOM.XX.RSS.XXX.XXXX.SX.SKT.CHF.IS.N.M"]
[{"$f":"\"INN.\"&EIGNIR!$B$3&C3761","v":{"$error":"#N/A"}},{"$f":"'Sundurliðun Skuldabréf'!Q112","v":0},".M.EVBSVOM.XX.BAJ.XXX.XXXX.SX.SKT.CHF.IS.N.M"]
[{"$f":"\"INN.\"&EIGNIR!$B$3&C3762","v":{"$error":"#N/A"}},{"$f":"'Sundurliðun Skuldabréf'!Q114","v":0},".M.EVBSVOM.XX.NPH.XXX.XXXX.SX.SKT.CHF.IS.N.M"]
[{"$f":"\"INN.\"&EIGNIR!$B$3&C3763","v":{"$error":"#N/A"}},{"$f":"'Sundurliðun Skuldabréf'!Q115","v":0},".M.EVBSVOM.XX.ERL.XXX.XXXX.SX.SKT.CHF.IS.N.M"]
[{"$f":"\"INN.\"&EIGNIR!$B$3&C3764","v":{"$error":"#N/A"}},{"$f":"'Sundurliðun Skuldabréf'!Q116","v":0},".M.EVBSVOM.XX.ERS.XXX.XXXX.SX.SKT.CHF.IS.N.M"]
[{"$f":"\"INN.\"&EIGNIR!$B$3&C3765","v":{"$error":"#N/A"}},{"$f":"'Sundurliðun Skuldabréf'!Q117","v":0},".M.EVBSVOM.XX.ERI.XXX.XXXX.SX.SKT.CHF.IS.N.M"]
[{"$f":"\"INN.\"&EIGNIR!$B$3&C3766","v":{"$error":"#N/A"}},{"$f":"'Sundurliðun Skuldabréf'!Q118","v":0},".M.EVBSVOM.XX.ERP.XXX.XXXX.SX.SKT.CHF.IS.N.M"]
[{"$f":"\"INN.\"&EIGNIR!$B$3&C3767","v":{"$error":"#N/A"}},{"$f":"'Sundurliðun Skuldabréf'!Q119","v":0},".M.EVBSVOM.XX.ERV.XXX.XXXX.SX.SKT.CHF.IS.N.M"]
[{"$f":"\"INN.\"&EIGNIR!$B$3&C3768","v":{"$error":"#N/A"}},{"$f":"'Sundurliðun Skuldabréf'!Q120","v":0},".M.EVBSVOM.XX.ERF.XXX.XXXX.SX.SKT.CHF.IS.N.M"]
[{"$f":"\"INN.\"&EIGNIR!$B$3&C3769","v":{"$error":"#N/A"}},{"$f":"'Sundurliðun Skuldabréf'!Q121","v":0},".M.EVBSVOM.XX.ERO.XXX.XXXX.SX.SKT.CHF.IS.N.M"]
[{"$f":"\"INN.\"&EIGNIR!$B$3&C3770","v":{"$error":"#N/A"}},{"$f":"'Sundurliðun Skuldabréf'!Q122","v":0},".M.EVBSVOM.XX.ERA.XXX.XXXX.SX.SKT.CHF.IS.N.M"]
[{"$f":"\"INN.\"&EIGNIR!$B$3&C3771","v":{"$error":"#N/A"}},{"$f":"'Sundurliðun Skuldabréf'!R5","v":0},".M.EVBSV$$.XX.$$$.XXX.XXXX.SX.XXX.ADR.IS.N.M","//Sundurliðun skuldabréf, ADR"]
[{"$f":"\"INN.\"&EIGNIR!$B$3&C3772","v":{"$error":"#N/A"}},{"$f":"'Sundurliðun Skuldabréf'!R45","v":0},".M.EVBSVOM.XX.$$$.XXX.XXXX.SX.LAT.ADR.IS.N.M"]
[{"$f":"\"INN.\"&EIGNIR!$B$3&C3773","v":{"$error":"#N/A"}},{"$f":"'Sundurliðun Skuldabréf'!R46","v":0},".M.EVBSVOM.XX.ATV.XXX.XXXX.SX.LAT.ADR.IS.N.M"]
[{"$f":"\"INN.\"&EIGNIR!$B$3&C3774","v":{"$error":"#N/A"}},{"$f":"'Sundurliðun Skuldabréf'!R60","v":0},".M.EVBSVOM.XX.FJA.XXX.XXXX.SX.LAT.ADR.IS.N.M"]
[{"$f":"\"INN.\"&EIGNIR!$B$3&C3775","v":{"$error":"#N/A"}},{"$f":"'Sundurliðun Skuldabréf'!R61","v":0},".M.EVBSVOM.XX.INN.XXX.XXXX.SX.LAT.ADR.IS.N.M"]
[{"$f":"\"INN.\"&EIGNIR!$B$3&C3776","v":{"$error":"#N/A"}},{"$f":"'Sundurliðun Skuldabréf'!R62","v":0},".M.EVBSVOM.XX.SLI.XXX.XXXX.SX.LAT.ADR.IS.N.M"]
[{"$f":"\"INN.\"&EIGNIR!$B$3&C3777","v":{"$error":"#N/A"}},{"$f":"'Sundurliðun Skuldabréf'!R63","v":0},".M.EVBSVOM.XX.PEN.XXX.XXXX.SX.LAT.ADR.IS.N.M"]
[{"$f":"\"INN.\"&EIGNIR!$B$3&C3778","v":{"$error":"#N/A"}},{"$f":"'Sundurliðun Skuldabréf'!R64","v":0},".M.EVBSVOM.XX.SJO.XXX.XXXX.SX.LAT.ADR.IS.N.M"]
[{"$f":"\"INN.\"&EIGNIR!$B$3&C3779","v":{"$error":"#N/A"}},{"$f":"'Sundurliðun Skuldabréf'!R65","v":0},".M.EVBSVOM.XX.YFT.XXX.XXXX.SX.LAT.ADR.IS.N.M"]
[{"$f":"\"INN.\"&EIGNIR!$B$3&C3780","v":{"$error":"#N/A"}},{"$f":"'Sundurliðun Skuldabréf'!R66","v":0},".M.EVBSVOM.XX.SLY.XXX.XXXX.SX.LAT.ADR.IS.N.M"]
[{"$f":"\"INN.\"&EIGNIR!$B$3&C3781","v":{"$error":"#N/A"}},{"$f":"'Sundurliðun Skuldabréf'!R67","v":0},".M.EVBSVOM.XX.FHL.XXX.XXXX.SX.LAT.ADR.IS.N.M"]
[{"$f":"\"INN.\"&EIGNIR!$B$3&C3782","v":{"$error":"#N/A"}},{"$f":"'Sundurliðun Skuldabréf'!R68","v":0},".M.EVBSVOM.XX.INF.XXX.XXXX.SX.LAT.ADR.IS.N.M"]
[{"$f":"\"INN.\"&EIGNIR!$B$3&C3783","v":{"$error":"#N/A"}},{"$f":"'Sundurliðun Skuldabréf'!R69","v":0},".M.EVBSVOM.XX.TRY.XXX.XXXX.SX.LAT.ADR.IS.N.M"]
[{"$f":"\"INN.\"&EIGNIR!$B$3&C3784","v":{"$error":"#N/A"}},{"$f":"'Sundurliðun Skuldabréf'!R70","v":0},".M.EVBSVOM.XX.LIF.XXX.XXXX.SX.LAT.ADR.IS.N.M"]
[{"$f":"\"INN.\"&EIGNIR!$B$3&C3785","v":{"$error":"#N/A"}},{"$f":"'Sundurliðun Skuldabréf'!R71","v":0},".M.EVBSVOM.XX.OPI.XXX.XXXX.SX.LAT.ADR.IS.N.M"]
[{"$f":"\"INN.\"&EIGNIR!$B$3&C3786","v":{"$error":"#N/A"}},{"$f":"'Sundurliðun Skuldabréf'!R72","v":0},".M.EVBSVOM.XX.RSS.XXX.XXXX.SX.LAT.ADR.IS.N.M"]
[{"$f":"\"INN.\"&EIGNIR!$B$3&C3787","v":{"$error":"#N/A"}},{"$f":"'Sundurliðun Skuldabréf'!R73","v":0},".M.EVBSVOM.XX.BAJ.XXX.XXXX.SX.LAT.ADR.IS.N.M"]
[{"$f":"\"INN.\"&EIGNIR!$B$3&C3788","v":{"$error":"#N/A"}},{"$f":"'Sundurliðun Skuldabréf'!R75","v":0},".M.EVBSVOM.XX.NPH.XXX.XXXX.SX.LAT.ADR.IS.N.M"]
[{"$f":"\"INN.\"&EIGNIR!$B$3&C3789","v":{"$error":"#N/A"}},{"$f":"'Sundurliðun Skuldabréf'!R76","v":0},".M.EVBSVOM.XX.ERL.XXX.XXXX.SX.LAT.ADR.IS.N.M"]
[{"$f":"\"INN.\"&EIGNIR!$B$3&C3790","v":{"$error":"#N/A"}},{"$f":"'Sundurliðun Skuldabréf'!R77","v":0},".M.EVBSVOM.XX.ERS.XXX.XXXX.SX.LAT.ADR.IS.N.M"]
[{"$f":"\"INN.\"&EIGNIR!$B$3&C3791","v":{"$error":"#N/A"}},{"$f":"'Sundurliðun Skuldabréf'!R78","v":0},".M.EVBSVOM.XX.ERI.XXX.XXXX.SX.LAT.ADR.IS.N.M"]
[{"$f":"\"INN.\"&EIGNIR!$B$3&C3792","v":{"$error":"#N/A"}},{"$f":"'Sundurliðun Skuldabréf'!R79","v":0},".M.EVBSVOM.XX.ERP.XXX.XXXX.SX.LAT.ADR.IS.N.M"]
[{"$f":"\"INN.\"&EIGNIR!$B$3&C3793","v":{"$error":"#N/A"}},{"$f":"'Sundurliðun Skuldabréf'!R80","v":0},".M.EVBSVOM.XX.ERV.XXX.XXXX.SX.LAT.ADR.IS.N.M"]
[{"$f":"\"INN.\"&EIGNIR!$B$3&C3794","v":{"$error":"#N/A"}},{"$f":"'Sundurliðun Skuldabréf'!R81","v":0},".M.EVBSVOM.XX.ERF.XXX.XXXX.SX.LAT.ADR.IS.N.M"]
[{"$f":"\"INN.\"&EIGNIR!$B$3&C3795","v":{"$error":"#N/A"}},{"$f":"'Sundurliðun Skuldabréf'!R82","v":0},".M.EVBSVOM.XX.ERO.XXX.XXXX.SX.LAT.ADR.IS.N.M"]
[{"$f":"\"INN.\"&EIGNIR!$B$3&C3796","v":{"$error":"#N/A"}},{"$f":"'Sundurliðun Skuldabréf'!R83","v":0},".M.EVBSVOM.XX.ERA.XXX.XXXX.SX.LAT.ADR.IS.N.M"]
[{"$f":"\"INN.\"&EIGNIR!$B$3&C3797","v":{"$error":"#N/A"}},{"$f":"'Sundurliðun Skuldabréf'!R84","v":0},".M.EVBSVOM.XX.$$$.XXX.XXXX.SX.SKT.ADR.IS.N.M"]
[{"$f":"\"INN.\"&EIGNIR!$B$3&C3798","v":{"$error":"#N/A"}},{"$f":"'Sundurliðun Skuldabréf'!R85","v":0},".M.EVBSVOM.XX.ATV.XXX.XXXX.SX.SKT.ADR.IS.N.M"]
[{"$f":"\"INN.\"&EIGNIR!$B$3&C3799","v":{"$error":"#N/A"}},{"$f":"'Sundurliðun Skuldabréf'!R99","v":0},".M.EVBSVOM.XX.FJA.XXX.XXXX.SX.SKT.ADR.IS.N.M"]
[{"$f":"\"INN.\"&EIGNIR!$B$3&C3800","v":{"$error":"#N/A"}},{"$f":"'Sundurliðun Skuldabréf'!R100","v":0},".M.EVBSVOM.XX.INN.XXX.XXXX.SX.SKT.ADR.IS.N.M"]
[{"$f":"\"INN.\"&EIGNIR!$B$3&C3801","v":{"$error":"#N/A"}},{"$f":"'Sundurliðun Skuldabréf'!R101","v":0},".M.EVBSVOM.XX.SLI.XXX.XXXX.SX.SKT.ADR.IS.N.M"]
[{"$f":"\"INN.\"&EIGNIR!$B$3&C3802","v":{"$error":"#N/A"}},{"$f":"'Sundurliðun Skuldabréf'!R102","v":0},".M.EVBSVOM.XX.PEN.XXX.XXXX.SX.SKT.ADR.IS.N.M"]
[{"$f":"\"INN.\"&EIGNIR!$B$3&C3803","v":{"$error":"#N/A"}},{"$f":"'Sundurliðun Skuldabréf'!R103","v":0},".M.EVBSVOM.XX.SJO.XXX.XXXX.SX.SKT.ADR.IS.N.M"]
[{"$f":"\"INN.\"&EIGNIR!$B$3&C3804","v":{"$error":"#N/A"}},{"$f":"'Sundurliðun Skuldabréf'!R104","v":0},".M.EVBSVOM.XX.YFT.XXX.XXXX.SX.SKT.ADR.IS.N.M"]
[{"$f":"\"INN.\"&EIGNIR!$B$3&C3805","v":{"$error":"#N/A"}},{"$f":"'Sundurliðun Skuldabréf'!R105","v":0},".M.EVBSVOM.XX.SLY.XXX.XXXX.SX.SKT.ADR.IS.N.M"]
[{"$f":"\"INN.\"&EIGNIR!$B$3&C3806","v":{"$error":"#N/A"}},{"$f":"'Sundurliðun Skuldabréf'!R106","v":0},".M.EVBSVOM.XX.FHL.XXX.XXXX.SX.SKT.ADR.IS.N.M"]
[{"$f":"\"INN.\"&EIGNIR!$B$3&C3807","v":{"$error":"#N/A"}},{"$f":"'Sundurliðun Skuldabréf'!R107","v":0},".M.EVBSVOM.XX.INF.XXX.XXXX.SX.SKT.ADR.IS.N.M"]
[{"$f":"\"INN.\"&EIGNIR!$B$3&C3808","v":{"$error":"#N/A"}},{"$f":"'Sundurliðun Skuldabréf'!R108","v":0},".M.EVBSVOM.XX.TRY.XXX.XXXX.SX.SKT.ADR.IS.N.M"]
[{"$f":"\"INN.\"&EIGNIR!$B$3&C3809","v":{"$error":"#N/A"}},{"$f":"'Sundurliðun Skuldabréf'!R109","v":0},".M.EVBSVOM.XX.LIF.XXX.XXXX.SX.SKT.ADR.IS.N.M"]
[{"$f":"\"INN.\"&EIGNIR!$B$3&C3810","v":{"$error":"#N/A"}},{"$f":"'Sundurliðun Skuldabréf'!R110","v":0},".M.EVBSVOM.XX.OPI.XXX.XXXX.SX.SKT.ADR.IS.N.M"]
[{"$f":"\"INN.\"&EIGNIR!$B$3&C3811","v":{"$error":"#N/A"}},{"$f":"'Sundurliðun Skuldabréf'!R111","v":0},".M.EVBSVOM.XX.RSS.XXX.XXXX.SX.SKT.ADR.IS.N.M"]
[{"$f":"\"INN.\"&EIGNIR!$B$3&C3812","v":{"$error":"#N/A"}},{"$f":"'Sundurliðun Skuldabréf'!R112","v":0},".M.EVBSVOM.XX.BAJ.XXX.XXXX.SX.SKT.ADR.IS.N.M"]
[{"$f":"\"INN.\"&EIGNIR!$B$3&C3813","v":{"$error":"#N/A"}},{"$f":"'Sundurliðun Skuldabréf'!R114","v":0},".M.EVBSVOM.XX.NPH.XXX.XXXX.SX.SKT.ADR.IS.N.M"]
[{"$f":"\"INN.\"&EIGNIR!$B$3&C3814","v":{"$error":"#N/A"}},{"$f":"'Sundurliðun Skuldabréf'!R115","v":0},".M.EVBSVOM.XX.ERL.XXX.XXXX.SX.SKT.ADR.IS.N.M"]
[{"$f":"\"INN.\"&EIGNIR!$B$3&C3815","v":{"$error":"#N/A"}},{"$f":"'Sundurliðun Skuldabréf'!R116","v":0},".M.EVBSVOM.XX.ERS.XXX.XXXX.SX.SKT.ADR.IS.N.M"]
[{"$f":"\"INN.\"&EIGNIR!$B$3&C3816","v":{"$error":"#N/A"}},{"$f":"'Sundurliðun Skuldabréf'!R117","v":0},".M.EVBSVOM.XX.ERI.XXX.XXXX.SX.SKT.ADR.IS.N.M"]
[{"$f":"\"INN.\"&EIGNIR!$B$3&C3817","v":{"$error":"#N/A"}},{"$f":"'Sundurliðun Skuldabréf'!R118","v":0},".M.EVBSVOM.XX.ERP.XXX.XXXX.SX.SKT.ADR.IS.N.M"]
[{"$f":"\"INN.\"&EIGNIR!$B$3&C3818","v":{"$error":"#N/A"}},{"$f":"'Sundurliðun Skuldabréf'!R119","v":0},".M.EVBSVOM.XX.ERV.XXX.XXXX.SX.SKT.ADR.IS.N.M"]
[{"$f":"\"INN.\"&EIGNIR!$B$3&C3819","v":{"$error":"#N/A"}},{"$f":"'Sundurliðun Skuldabréf'!R120","v":0},".M.EVBSVOM.XX.ERF.XXX.XXXX.SX.SKT.ADR.IS.N.M"]
[{"$f":"\"INN.\"&EIGNIR!$B$3&C3820","v":{"$error":"#N/A"}},{"$f":"'Sundurliðun Skuldabréf'!R121","v":0},".M.EVBSVOM.XX.ERO.XXX.XXXX.SX.SKT.ADR.IS.N.M"]
[{"$f":"\"INN.\"&EIGNIR!$B$3&C3821","v":{"$error":"#N/A"}},{"$f":"'Sundurliðun Skuldabréf'!R122","v":0},".M.EVBSVOM.XX.ERA.XXX.XXXX.SX.SKT.ADR.IS.N.M"]
[{"$f":"\"INN.\"&EIGNIR!$B$3&C3822","v":{"$error":"#N/A"}},{"$f":"'Sundurliðun Skuldabréf'!S37","v":0},".M.EVBSVVM.XX.ERL.XXX.XXXX.SV.SKR.XXX.IS.N.M","//Rauneftirstöðvatími < 1 ár"]
[{"$f":"\"INN.\"&EIGNIR!$B$3&C3823","v":{"$error":"#N/A"}},{"$f":"'Sundurliðun Skuldabréf'!S38","v":0},".M.EVBSVVM.XX.ERS.XXX.XXXX.SV.SKR.XXX.IS.N.M"]
[{"$f":"\"INN.\"&EIGNIR!$B$3&C3824","v":{"$error":"#N/A"}},{"$f":"'Sundurliðun Skuldabréf'!S39","v":0},".M.EVBSVVM.XX.ERI.XXX.XXXX.SV.SKR.XXX.IS.N.M"]
[{"$f":"\"INN.\"&EIGNIR!$B$3&C3825","v":{"$error":"#N/A"}},{"$f":"'Sundurliðun Skuldabréf'!S40","v":0},".M.EVBSVVM.XX.ERP.XXX.XXXX.SV.SKR.XXX.IS.N.M"]
[{"$f":"\"INN.\"&EIGNIR!$B$3&C3826","v":{"$error":"#N/A"}},{"$f":"'Sundurliðun Skuldabréf'!S41","v":0},".M.EVBSVVM.XX.ERV.XXX.XXXX.SV.SKR.XXX.IS.N.M"]
[{"$f":"\"INN.\"&EIGNIR!$B$3&C3827","v":{"$error":"#N/A"}},{"$f":"'Sundurliðun Skuldabréf'!S42","v":0},".M.EVBSVVM.XX.ERF.XXX.XXXX.SV.SKR.XXX.IS.N.M"]
[{"$f":"\"INN.\"&EIGNIR!$B$3&C3828","v":{"$error":"#N/A"}},{"$f":"'Sundurliðun Skuldabréf'!S43","v":0},".M.EVBSVVM.XX.ERO.XXX.XXXX.SV.SKR.XXX.IS.N.M"]
[{"$f":"\"INN.\"&EIGNIR!$B$3&C3829","v":{"$error":"#N/A"}},{"$f":"'Sundurliðun Skuldabréf'!S44","v":0},".M.EVBSVVM.XX.ERA.XXX.XXXX.SV.SKR.XXX.IS.N.M"]
[{"$f":"\"INN.\"&EIGNIR!$B$3&C3830","v":{"$error":"#N/A"}},{"$f":"'Sundurliðun Skuldabréf'!S76","v":0},".M.EVBSVOM.XX.ERL.XXX.XXXX.SX.LAS.XXX.IS.N.M"]
[{"$f":"\"INN.\"&EIGNIR!$B$3&C3831","v":{"$error":"#N/A"}},{"$f":"'Sundurliðun Skuldabréf'!S77","v":0},".M.EVBSVOM.XX.ERS.XXX.XXXX.SX.LAS.XXX.IS.N.M"]
[{"$f":"\"INN.\"&EIGNIR!$B$3&C3832","v":{"$error":"#N/A"}},{"$f":"'Sundurliðun Skuldabréf'!S78","v":0},".M.EVBSVOM.XX.ERI.XXX.XXXX.SX.LAS.XXX.IS.N.M"]
[{"$f":"\"INN.\"&EIGNIR!$B$3&C3833","v":{"$error":"#N/A"}},{"$f":"'Sundurliðun Skuldabréf'!S79","v":0},".M.EVBSVOM.XX.ERP.XXX.XXXX.SX.LAS.XXX.IS.N.M"]
[{"$f":"\"INN.\"&EIGNIR!$B$3&C3834","v":{"$error":"#N/A"}},{"$f":"'Sundurliðun Skuldabréf'!S80","v":0},".M.EVBSVOM.XX.ERV.XXX.XXXX.SX.LAS.XXX.IS.N.M"]
[{"$f":"\"INN.\"&EIGNIR!$B$3&C3835","v":{"$error":"#N/A"}},{"$f":"'Sundurliðun Skuldabréf'!S81","v":0},".M.EVBSVOM.XX.ERF.XXX.XXXX.SX.LAS.XXX.IS.N.M"]
[{"$f":"\"INN.\"&EIGNIR!$B$3&C3836","v":{"$error":"#N/A"}},{"$f":"'Sundurliðun Skuldabréf'!S82","v":0},".M.EVBSVOM.XX.ERO.XXX.XXXX.SX.LAS.XXX.IS.N.M"]
[{"$f":"\"INN.\"&EIGNIR!$B$3&C3837","v":{"$error":"#N/A"}},{"$f":"'Sundurliðun Skuldabréf'!S83","v":0},".M.EVBSVOM.XX.ERA.XXX.XXXX.SX.LAS.XXX.IS.N.M"]
[{"$f":"\"INN.\"&EIGNIR!$B$3&C3838","v":{"$error":"#N/A"}},{"$f":"'Sundurliðun Skuldabréf'!S115","v":0},".M.EVBSVOM.XX.ERL.XXX.XXXX.SX.SKS.XXX.IS.N.M"]
[{"$f":"\"INN.\"&EIGNIR!$B$3&C3839","v":{"$error":"#N/A"}},{"$f":"'Sundurliðun Skuldabréf'!S116","v":0},".M.EVBSVOM.XX.ERS.XXX.XXXX.SX.SKS.XXX.IS.N.M"]
[{"$f":"\"INN.\"&EIGNIR!$B$3&C3840","v":{"$error":"#N/A"}},{"$f":"'Sundurliðun Skuldabréf'!S117","v":0},".M.EVBSVOM.XX.ERI.XXX.XXXX.SX.SKS.XXX.IS.N.M"]
[{"$f":"\"INN.\"&EIGNIR!$B$3&C3841","v":{"$error":"#N/A"}},{"$f":"'Sundurliðun Skuldabréf'!S118","v":0},".M.EVBSVOM.XX.ERP.XXX.XXXX.SX.SKS.XXX.IS.N.M"]
[{"$f":"\"INN.\"&EIGNIR!$B$3&C3842","v":{"$error":"#N/A"}},{"$f":"'Sundurliðun Skuldabréf'!S119","v":0},".M.EVBSVOM.XX.ERV.XXX.XXXX.SX.SKS.XXX.IS.N.M"]
[{"$f":"\"INN.\"&EIGNIR!$B$3&C3843","v":{"$error":"#N/A"}},{"$f":"'Sundurliðun Skuldabréf'!S120","v":0},".M.EVBSVOM.XX.ERF.XXX.XXXX.SX.SKS.XXX.IS.N.M"]
[{"$f":"\"INN.\"&EIGNIR!$B$3&C3844","v":{"$error":"#N/A"}},{"$f":"'Sundurliðun Skuldabréf'!S121","v":0},".M.EVBSVOM.XX.ERO.XXX.XXXX.SX.SKS.XXX.IS.N.M"]
[{"$f":"\"INN.\"&EIGNIR!$B$3&C3845","v":{"$error":"#N/A"}},{"$f":"'Sundurliðun Skuldabréf'!S122","v":0},".M.EVBSVOM.XX.ERA.XXX.XXXX.SX.SKS.XXX.IS.N.M"]
[{"$f":"\"INN.\"&EIGNIR!$B$3&C3846","v":{"$error":"#N/A"}},{"$f":"'Sundurliðun Skuldabréf'!T37","v":0},".M.EVBSVVM.XX.ERL.XXX.XXXX.SV.LAR.XXX.IS.N.M","//Rauneftirstöðvatími > 1 ár"]
[{"$f":"\"INN.\"&EIGNIR!$B$3&C3847","v":{"$error":"#N/A"}},{"$f":"'Sundurliðun Skuldabréf'!T38","v":0},".M.EVBSVVM.XX.ERS.XXX.XXXX.SV.LAR.XXX.IS.N.M"]
[{"$f":"\"INN.\"&EIGNIR!$B$3&C3848","v":{"$error":"#N/A"}},{"$f":"'Sundurliðun Skuldabréf'!T39","v":0},".M.EVBSVVM.XX.ERI.XXX.XXXX.SV.LAR.XXX.IS.N.M"]
[{"$f":"\"INN.\"&EIGNIR!$B$3&C3849","v":{"$error":"#N/A"}},{"$f":"'Sundurliðun Skuldabréf'!T40","v":0},".M.EVBSVVM.XX.ERP.XXX.XXXX.SV.LAR.XXX.IS.N.M"]
[{"$f":"\"INN.\"&EIGNIR!$B$3&C3850","v":{"$error":"#N/A"}},{"$f":"'Sundurliðun Skuldabréf'!T41","v":0},".M.EVBSVVM.XX.ERV.XXX.XXXX.SV.LAR.XXX.IS.N.M"]
[{"$f":"\"INN.\"&EIGNIR!$B$3&C3851","v":{"$error":"#N/A"}},{"$f":"'Sundurliðun Skuldabréf'!T42","v":0},".M.EVBSVVM.XX.ERF.XXX.XXXX.SV.LAR.XXX.IS.N.M"]
[{"$f":"\"INN.\"&EIGNIR!$B$3&C3852","v":{"$error":"#N/A"}},{"$f":"'Sundurliðun Skuldabréf'!T43","v":0},".M.EVBSVVM.XX.ERO.XXX.XXXX.SV.LAR.XXX.IS.N.M"]
[{"$f":"\"INN.\"&EIGNIR!$B$3&C3853","v":{"$error":"#N/A"}},{"$f":"'Sundurliðun Skuldabréf'!T44","v":0},".M.EVBSVVM.XX.ERA.XXX.XXXX.SV.LAR.XXX.IS.N.M"]
[{"$f":"\"INN.\"&EIGNIR!$B$3&C3854","v":{"$error":"#N/A"}},{"$f":"'Sundurliðun Skuldabréf'!T76","v":0},".M.EVBSVOM.XX.ERL.XXX.XXXX.SX.LAL.XXX.IS.N.M"]
[{"$f":"\"INN.\"&EIGNIR!$B$3&C3855","v":{"$error":"#N/A"}},{"$f":"'Sundurliðun Skuldabréf'!T77","v":0},".M.EVBSVOM.XX.ERS.XXX.XXXX.SX.LAL.XXX.IS.N.M"]
[{"$f":"\"INN.\"&EIGNIR!$B$3&C3856","v":{"$error":"#N/A"}},{"$f":"'Sundurliðun Skuldabréf'!T78","v":0},".M.EVBSVOM.XX.ERI.XXX.XXXX.SX.LAL.XXX.IS.N.M"]
[{"$f":"\"INN.\"&EIGNIR!$B$3&C3857","v":{"$error":"#N/A"}},{"$f":"'Sundurliðun Skuldabréf'!T79","v":0},".M.EVBSVOM.XX.ERP.XXX.XXXX.SX.LAL.XXX.IS.N.M"]
[{"$f":"\"INN.\"&EIGNIR!$B$3&C3858","v":{"$error":"#N/A"}},{"$f":"'Sundurliðun Skuldabréf'!T80","v":0},".M.EVBSVOM.XX.ERV.XXX.XXXX.SX.LAL.XXX.IS.N.M"]
[{"$f":"\"INN.\"&EIGNIR!$B$3&C3859","v":{"$error":"#N/A"}},{"$f":"'Sundurliðun Skuldabréf'!T81","v":0},".M.EVBSVOM.XX.ERF.XXX.XXXX.SX.LAL.XXX.IS.N.M"]
[{"$f":"\"INN.\"&EIGNIR!$B$3&C3860","v":{"$error":"#N/A"}},{"$f":"'Sundurliðun Skuldabréf'!T82","v":0},".M.EVBSVOM.XX.ERO.XXX.XXXX.SX.LAL.XXX.IS.N.M"]
[{"$f":"\"INN.\"&EIGNIR!$B$3&C3861","v":{"$error":"#N/A"}},{"$f":"'Sundurliðun Skuldabréf'!T83","v":0},".M.EVBSVOM.XX.ERA.XXX.XXXX.SX.LAL.XXX.IS.N.M"]
[{"$f":"\"INN.\"&EIGNIR!$B$3&C3862","v":{"$error":"#N/A"}},{"$f":"'Sundurliðun Útlán'!E11","v":0},".M.EUKULIA.XX.$$$.$$$.XXXX.SX.XXX.XXX.IS.N.M","//Sundurliðun útlán, greiddar óinnleystar ábyrgðir"]
[{"$f":"\"INN.\"&EIGNIR!$B$3&C3863","v":{"$error":"#N/A"}},{"$f":"'Sundurliðun Útlán'!E42","v":0},".M.EUKULYL.XX.$$$.$$$.XXXX.SX.XXX.XXX.IS.N.M"]
[{"$f":"\"INN.\"&EIGNIR!$B$3&C3864","v":{"$error":"#N/A"}},{"$f":"'Sundurliðun Útlán'!E73","v":0},".M.EUKULVX.XX.$$$.$$$.XXXX.SX.XXX.XXX.IS.N.M"]
[{"$f":"\"INN.\"&EIGNIR!$B$3&C3865","v":{"$error":"#N/A"}},{"$f":"'Sundurliðun Útlán'!E104","v":0},".M.EUKULVU.XX.$$$.$$$.XXXX.SV.XXX.XXX.IS.N.M"]
[{"$f":"\"INN.\"&EIGNIR!$B$3&C3866","v":{"$error":"#N/A"}},{"$f":"'Sundurliðun Útlán'!E133","v":0},".M.EUKULVU.XX.EIB.$$$.XXXX.SV.XXX.XXX.IS.N.M"]
[{"$f":"\"INN.\"&EIGNIR!$B$3&C3867","v":{"$error":"#N/A"}},{"$f":"'Sundurliðun Útlán'!E134","v":0},".M.EUKULVU.XX.ANN.$$$.XXXX.SV.XXX.XXX.IS.N.M"]
[{"$f":"\"INN.\"&EIGNIR!$B$3&C3868","v":{"$error":"#N/A"}},{"$f":"'Sundurliðun Útlán'!E136","v":0},".M.EUKULOU.XX.$$$.$$$.XXXX.SX.XXX.XXX.IS.N.M"]
[{"$f":"\"INN.\"&EIGNIR!$B$3&C3869","v":{"$error":"#N/A"}},{"$f":"'Sundurliðun Útlán'!E165","v":0},".M.EUKULOU.XX.EIB.$$$.XXXX.SX.XXX.XXX.IS.N.M"]
[{"$f":"\"INN.\"&EIGNIR!$B$3&C3870","v":{"$error":"#N/A"}},{"$f":"'Sundurliðun Útlán'!E166","v":0},".M.EUKULOU.XX.ANN.$$$.XXXX.SX.XXX.XXX.IS.N.M"]
[{"$f":"\"INN.\"&EIGNIR!$B$3&C3871","v":{"$error":"#N/A"}},{"$f":"'Sundurliðun Útlán'!E168","v":0},".M.EUKULEL.XX.$$$.$$$.XXXX.SX.XXX.XXX.IS.N.M"]
[{"$f":"\"INN.\"&EIGNIR!$B$3&C3872","v":{"$error":"#N/A"}},{"$f":"'Sundurliðun Útlán'!E199","v":0},".M.EUKULUE.XX.$$$.$$$.XXXX.SX.XXX.XXX.IS.N.M","//Útlán og kröfur til erlendra aðila"]
[{"$f":"\"INN.\"&EIGNIR!$B$3&C3873","v":{"$error":"#N/A"}},{"$f":"'Sundurliðun Útlán'!E200","v":0},".M.EUKULEH.XX.ERL.$$$.XXXX.SX.XXX.XXX.IS.N.M"]
[{"$f":"\"INN.\"&EIGNIR!$B$3&C3874","v":{"$error":"#N/A"}},{"$f":"'Sundurliðun Útlán'!E202","v":0},".M.EUKULEH.XX.ERI.$$$.XXXX.SX.XXX.XXX.IS.N.M"]
[{"$f":"\"INN.\"&EIGNIR!$B$3&C3875","v":{"$error":"#N/A"}},{"$f":"'Sundurliðun Útlán'!E205","v":0},".M.EUKULEH.XX.ERF.$$$.XXXX.SX.XXX.XXX.IS.N.M"]
[{"$f":"\"INN.\"&EIGNIR!$B$3&C3876","v":{"$error":"#N/A"}},{"$f":"'Sundurliðun Útlán'!E207","v":0},".M.EUKULEH.XX.ERA.$$$.XXXX.SX.XXX.XXX.IS.N.M"]
[{"$f":"\"INN.\"&EIGNIR!$B$3&C3877","v":{"$error":"#N/A"}},{"$f":"'Sundurliðun Útlán'!E208","v":0},".M.EUKULED.XX.ERL.$$$.XXXX.SX.XXX.XXX.IS.N.M"]
[{"$f":"\"INN.\"&EIGNIR!$B$3&C3878","v":{"$error":"#N/A"}},{"$f":"'Sundurliðun Útlán'!E210","v":0},".M.EUKULED.XX.ERI.$$$.XXXX.SX.XXX.XXX.IS.N.M"]
[{"$f":"\"INN.\"&EIGNIR!$B$3&C3879","v":{"$error":"#N/A"}},{"$f":"'Sundurliðun Útlán'!E213","v":0},".M.EUKULED.XX.ERF.$$$.XXXX.SX.XXX.XXX.IS.N.M"]
[{"$f":"\"INN.\"&EIGNIR!$B$3&C3880","v":{"$error":"#N/A"}},{"$f":"'Sundurliðun Útlán'!E215","v":0},".M.EUKULED.XX.ERA.$$$.XXXX.SX.XXX.XXX.IS.N.M"]
[{"$f":"\"INN.\"&EIGNIR!$B$3&C3881","v":{"$error":"#N/A"}},{"$f":"'Sundurliðun Útlán'!E216","v":0},".M.EUKULFF.XX.ERL.$$$.XXXX.SX.XXX.XXX.IS.N.M"]
[{"$f":"\"INN.\"&EIGNIR!$B$3&C3882","v":{"$error":"#N/A"}},{"$f":"'Sundurliðun Útlán'!E218","v":0},".M.EUKULFF.XX.ERI.$$$.XXXX.SX.XXX.XXX.IS.N.M"]
[{"$f":"\"INN.\"&EIGNIR!$B$3&C3883","v":{"$error":"#N/A"}},{"$f":"'Sundurliðun Útlán'!E221","v":0},".M.EUKULFF.XX.ERF.$$$.XXXX.SX.XXX.XXX.IS.N.M"]
[{"$f":"\"INN.\"&EIGNIR!$B$3&C3884","v":{"$error":"#N/A"}},{"$f":"'Sundurliðun Útlán'!E223","v":0},".M.EUKULFF.XX.ERA.$$$.XXXX.SX.XXX.XXX.IS.N.M"]
[{"$f":"\"INN.\"&EIGNIR!$B$3&C3885","v":{"$error":"#N/A"}},{"$f":"'Sundurliðun Útlán'!E224","v":0},".M.EUKULOL.XX.ERL.$$$.XXXX.SX.XXX.XXX.IS.N.M","//Önnur erlend lán"]
[{"$f":"\"INN.\"&EIGNIR!$B$3&C3886","v":{"$error":"#N/A"}},{"$f":"'Sundurliðun Útlán'!E226","v":0},".M.EUKULOL.XX.ERI.$$$.XXXX.SX.XXX.XXX.IS.N.M"]
[{"$f":"\"INN.\"&EIGNIR!$B$3&C3887","v":{"$error":"#N/A"}},{"$f":"'Sundurliðun Útlán'!E228","v":0},".M.EUKULOL.XX.ERV.$$$.XXXX.SX.XXX.XXX.IS.N.M"]
[{"$f":"\"INN.\"&EIGNIR!$B$3&C3888","v":{"$error":"#N/A"}},{"$f":"'Sundurliðun Útlán'!E229","v":0},".M.EUKULOL.XX.ERF.$$$.XXXX.SX.XXX.XXX.IS.N.M"]
[{"$f":"\"INN.\"&EIGNIR!$B$3&C3889","v":{"$error":"#N/A"}},{"$f":"'Sundurliðun Útlán'!E230","v":0},".M.EUKULOL.XX.ERO.$$$.XXXX.SX.XXX.XXX.IS.N.M"]
[{"$f":"\"INN.\"&EIGNIR!$B$3&C3890","v":{"$error":"#N/A"}},{"$f":"'Sundurliðun Útlán'!E231","v":0},".M.EUKULOL.XX.ERA.$$$.XXXX.SX.XXX.XXX.IS.N.M"]
[{"$f":"\"INN.\"&EIGNIR!$B$3&C3891","v":{"$error":"#N/A"}},{"$f":"'Sundurliðun Útlán'!E235","v":0},".M.EUKNFST.XX.ATV.$$$.XXXX.SX.XXX.XXX.IS.N.M","//Niðurfærslur útlána"]
[{"$f":"\"INN.\"&EIGNIR!$B$3&C3892","v":{"$error":"#N/A"}},{"$f":"'Sundurliðun Útlán'!E236","v":0},".M.EUKNFST.XX.LAB.$$$.XXXX.SX.XXX.XXX.IS.N.M"]
[{"$f":"\"INN.\"&EIGNIR!$B$3&C3893","v":{"$error":"#N/A"}},{"$f":"'Sundurliðun Útlán'!E237","v":0},".M.EUKNFST.XX.SJA.$$$.XXXX.SX.XXX.XXX.IS.N.M"]
[{"$f":"\"INN.\"&EIGNIR!$B$3&C3894","v":{"$error":"#N/A"}},{"$f":"'Sundurliðun Útlán'!E238","v":0},".M.EUKNFST.XX.ILA.$$$.XXXX.SX.XXX.XXX.IS.N.M"]
[{"$f":"\"INN.\"&EIGNIR!$B$3&C3895","v":{"$error":"#N/A"}},{"$f":"'Sundurliðun Útlán'!E239","v":0},".M.EUKNFST.XX.ISJ.$$$.XXXX.SX.XXX.XXX.IS.N.M"]
[{"$f":"\"INN.\"&EIGNIR!$B$3&C3896","v":{"$error":"#N/A"}},{"$f":"'Sundurliðun Útlán'!E240","v":0},".M.EUKNFST.XX.IAN.$$$.XXXX.SX.XXX.XXX.IS.N.M"]
[{"$f":"\"INN.\"&EIGNIR!$B$3&C3897","v":{"$error":"#N/A"}},{"$f":"'Sundurliðun Útlán'!E241","v":0},".M.EUKNFST.XX.RAF.$$$.XXXX.SX.XXX.XXX.IS.N.M"]
[{"$f":"\"INN.\"&EIGNIR!$B$3&C3898","v":{"$error":"#N/A"}},{"$f":"'Sundurliðun Útlán'!E242","v":0},".M.EUKNFST.XX.MAN.$$$.XXXX.SX.XXX.XXX.IS.N.M"]
[{"$f":"\"INN.\"&EIGNIR!$B$3&C3899","v":{"$error":"#N/A"}},{"$f":"'Sundurliðun Útlán'!E243","v":0},".M.EUKNFST.XX.VEN.$$$.XXXX.SX.XXX.XXX.IS.N.M"]
[{"$f":"\"INN.\"&EIGNIR!$B$3&C3900","v":{"$error":"#N/A"}},{"$f":"'Sundurliðun Útlán'!E244","v":0},".M.EUKNFST.XX.SAG.$$$.XXXX.SX.XXX.XXX.IS.N.M"]
[{"$f":"\"INN.\"&EIGNIR!$B$3&C3901","v":{"$error":"#N/A"}},{"$f":"'Sundurliðun Útlán'!E245","v":0},".M.EUKNFST.XX.THF.$$$.XXXX.SX.XXX.XXX.IS.N.M"]
[{"$f":"\"INN.\"&EIGNIR!$B$3&C3902","v":{"$error":"#N/A"}},{"$f":"'Sundurliðun Útlán'!E246","v":0},".M.EUKNFST.XX.THH.$$$.XXXX.SX.XXX.XXX.IS.N.M"]
[{"$f":"\"INN.\"&EIGNIR!$B$3&C3903","v":{"$error":"#N/A"}},{"$f":"'Sundurliðun Útlán'!E247","v":0},".M.EUKNFST.XX.THA.$$$.XXXX.SX.XXX.XXX.IS.N.M"]
[{"$f":"\"INN.\"&EIGNIR!$B$3&C3904","v":{"$error":"#N/A"}},{"$f":"'Sundurliðun Útlán'!E248","v":0},".M.EUKNFST.XX.OFL.$$$.XXXX.SX.XXX.XXX.IS.N.M"]
[{"$f":"\"INN.\"&EIGNIR!$B$3&C3905","v":{"$error":"#N/A"}},{"$f":"'Sundurliðun Útlán'!E249","v":0},".M.EUKNFST.XX.FJA.$$$.XXXX.SX.XXX.XXX.IS.N.M"]
[{"$f":"\"INN.\"&EIGNIR!$B$3&C3906","v":{"$error":"#N/A"}},{"$f":"'Sundurliðun Útlán'!E250","v":0},".M.EUKNFST.XX.INN.$$$.XXXX.SX.XXX.XXX.IS.N.M"]
[{"$f":"\"INN.\"&EIGNIR!$B$3&C3907","v":{"$error":"#N/A"}},{"$f":"'Sundurliðun Útlán'!E251","v":0},".M.EUKNFST.XX.SLI.$$$.XXXX.SX.XXX.XXX.IS.N.M"]
[{"$f":"\"INN.\"&EIGNIR!$B$3&C3908","v":{"$error":"#N/A"}},{"$f":"'Sundurliðun Útlán'!E252","v":0},".M.EUKNFST.XX.PEN.$$$.XXXX.SX.XXX.XXX.IS.N.M"]
[{"$f":"\"INN.\"&EIGNIR!$B$3&C3909","v":{"$error":"#N/A"}},{"$f":"'Sundurliðun Útlán'!E253","v":0},".M.EUKNFST.XX.SJO.$$$.XXXX.SX.XXX.XXX.IS.N.M"]
[{"$f":"\"INN.\"&EIGNIR!$B$3&C3910","v":{"$error":"#N/A"}},{"$f":"'Sundurliðun Útlán'!E254","v":0},".M.EUKNFST.XX.YFT.$$$.XXXX.SX.XXX.XXX.IS.N.M"]
[{"$f":"\"INN.\"&EIGNIR!$B$3&C3911","v":{"$error":"#N/A"}},{"$f":"'Sundurliðun Útlán'!E255","v":0},".M.EUKNFST.XX.SLY.$$$.XXXX.SX.XXX.XXX.IS.N.M"]
[{"$f":"\"INN.\"&EIGNIR!$B$3&C3912","v":{"$error":"#N/A"}},{"$f":"'Sundurliðun Útlán'!E256","v":0},".M.EUKNFST.XX.FHL.$$$.XXXX.SX.XXX.XXX.IS.N.M"]
[{"$f":"\"INN.\"&EIGNIR!$B$3&C3913","v":{"$error":"#N/A"}},{"$f":"'Sundurliðun Útlán'!E257","v":0},".M.EUKNFST.XX.INF.$$$.XXXX.SX.XXX.XXX.IS.N.M"]
[{"$f":"\"INN.\"&EIGNIR!$B$3&C3914","v":{"$error":"#N/A"}},{"$f":"'Sundurliðun Útlán'!E258","v":0},".M.EUKNFST.XX.TRY.$$$.XXXX.SX.XXX.XXX.IS.N.M"]
[{"$f":"\"INN.\"&EIGNIR!$B$3&C3915","v":{"$error":"#N/A"}},{"$f":"'Sundurliðun Útlán'!E259","v":0},".M.EUKNFST.XX.LIF.$$$.XXXX.SX.XXX.XXX.IS.N.M"]
[{"$f":"\"INN.\"&EIGNIR!$B$3&C3916","v":{"$error":"#N/A"}},{"$f":"'Sundurliðun Útlán'!E260","v":0},".M.EUKNFST.XX.OPI.$$$.XXXX.SX.XXX.XXX.IS.N.M"]
[{"$f":"\"INN.\"&EIGNIR!$B$3&C3917","v":{"$error":"#N/A"}},{"$f":"'Sundurliðun Útlán'!E261","v":0},".M.EUKNFST.XX.RSS.$$$.XXXX.SX.XXX.XXX.IS.N.M"]
[{"$f":"\"INN.\"&EIGNIR!$B$3&C3918","v":{"$error":"#N/A"}},{"$f":"'Sundurliðun Útlán'!E262","v":0},".M.EUKNFST.XX.BAJ.$$$.XXXX.SX.XXX.XXX.IS.N.M"]
[{"$f":"\"INN.\"&EIGNIR!$B$3&C3919","v":{"$error":"#N/A"}},{"$f":"'Sundurliðun Útlán'!E263","v":0},".M.EUKNFST.XX.EIN.$$$.XXXX.SX.XXX.XXX.IS.N.M"]
[{"$f":"\"INN.\"&EIGNIR!$B$3&C3920","v":{"$error":"#N/A"}},{"$f":"'Sundurliðun Útlán'!E264","v":0},".M.EUKNFST.XX.NPH.$$$.XXXX.SX.XXX.XXX.IS.N.M"]
[{"$f":"\"INN.\"&EIGNIR!$B$3&C3921","v":{"$error":"#N/A"}},{"$f":"'Sundurliðun Útlán'!E266","v":0},".M.EUKNFEH.XX.ERL.$$$.XXXX.SX.XXX.XXX.IS.N.M"]
[{"$f":"\"INN.\"&EIGNIR!$B$3&C3922","v":{"$error":"#N/A"}},{"$f":"'Sundurliðun Útlán'!E268","v":0},".M.EUKNFEH.XX.ERI.$$$.XXXX.SX.XXX.XXX.IS.N.M"]
[{"$f":"\"INN.\"&EIGNIR!$B$3&C3923","v":{"$error":"#N/A"}},{"$f":"'Sundurliðun Útlán'!E271","v":0},".M.EUKNFEH.XX.ERF.$$$.XXXX.SX.XXX.XXX.IS.N.M"]
[{"$f":"\"INN.\"&EIGNIR!$B$3&C3924","v":{"$error":"#N/A"}},{"$f":"'Sundurliðun Útlán'!E273","v":0},".M.EUKNFEH.XX.ERA.$$$.XXXX.SX.XXX.XXX.IS.N.M"]
[{"$f":"\"INN.\"&EIGNIR!$B$3&C3925","v":{"$error":"#N/A"}},{"$f":"'Sundurliðun Útlán'!E274","v":0},".M.EUKNFED.XX.ERL.$$$.XXXX.SX.XXX.XXX.IS.N.M"]
[{"$f":"\"INN.\"&EIGNIR!$B$3&C3926","v":{"$error":"#N/A"}},{"$f":"'Sundurliðun Útlán'!E276","v":0},".M.EUKNFED.XX.ERI.$$$.XXXX.SX.XXX.XXX.IS.N.M"]
[{"$f":"\"INN.\"&EIGNIR!$B$3&C3927","v":{"$error":"#N/A"}},{"$f":"'Sundurliðun Útlán'!E279","v":0},".M.EUKNFED.XX.ERF.$$$.XXXX.SX.XXX.XXX.IS.N.M"]
[{"$f":"\"INN.\"&EIGNIR!$B$3&C3928","v":{"$error":"#N/A"}},{"$f":"'Sundurliðun Útlán'!E281","v":0},".M.EUKNFED.XX.ERA.$$$.XXXX.SX.XXX.XXX.IS.N.M"]
[{"$f":"\"INN.\"&EIGNIR!$B$3&C3929","v":{"$error":"#N/A"}},{"$f":"'Sundurliðun Útlán'!E282","v":0},".M.EUKNFFF.XX.ERL.$$$.XXXX.SX.XXX.XXX.IS.N.M"]
[{"$f":"\"INN.\"&EIGNIR!$B$3&C3930","v":{"$error":"#N/A"}},{"$f":"'Sundurliðun Útlán'!E284","v":0},".M.EUKNFFF.XX.ERI.$$$.XXXX.SX.XXX.XXX.IS.N.M"]
[{"$f":"\"INN.\"&EIGNIR!$B$3&C3931","v":{"$error":"#N/A"}},{"$f":"'Sundurliðun Útlán'!E287","v":0},".M.EUKNFFF.XX.ERF.$$$.XXXX.SX.XXX.XXX.IS.N.M"]
[{"$f":"\"INN.\"&EIGNIR!$B$3&C3932","v":{"$error":"#N/A"}},{"$f":"'Sundurliðun Útlán'!E289","v":0},".M.EUKNFFF.XX.ERA.$$$.XXXX.SX.XXX.XXX.IS.N.M"]
[{"$f":"\"INN.\"&EIGNIR!$B$3&C3933","v":{"$error":"#N/A"}},{"$f":"'Sundurliðun Útlán'!E290","v":0},".M.EUKNFOL.XX.ERL.$$$.XXXX.SX.XXX.XXX.IS.N.M","//Niðurfærslur, önnur erlend lán"]
[{"$f":"\"INN.\"&EIGNIR!$B$3&C3934","v":{"$error":"#N/A"}},{"$f":"'Sundurliðun Útlán'!E292","v":0},".M.EUKNFOL.XX.ERI.$$$.XXXX.SX.XXX.XXX.IS.N.M"]
[{"$f":"\"INN.\"&EIGNIR!$B$3&C3935","v":{"$error":"#N/A"}},{"$f":"'Sundurliðun Útlán'!E294","v":0},".M.EUKNFOL.XX.ERV.$$$.XXXX.SX.XXX.XXX.IS.N.M"]
[{"$f":"\"INN.\"&EIGNIR!$B$3&C3936","v":{"$error":"#N/A"}},{"$f":"'Sundurliðun Útlán'!E295","v":0},".M.EUKNFOL.XX.ERF.$$$.XXXX.SX.XXX.XXX.IS.N.M"]
[{"$f":"\"INN.\"&EIGNIR!$B$3&C3937","v":{"$error":"#N/A"}},{"$f":"'Sundurliðun Útlán'!E296","v":0},".M.EUKNFOL.XX.ERO.$$$.XXXX.SX.XXX.XXX.IS.N.M"]
[{"$f":"\"INN.\"&EIGNIR!$B$3&C3938","v":{"$error":"#N/A"}},{"$f":"'Sundurliðun Útlán'!E297","v":0},".M.EUKNFOL.XX.ERA.$$$.XXXX.SX.XXX.XXX.IS.N.M"]
[{"$f":"\"INN.\"&EIGNIR!$B$3&C3939","v":{"$error":"#N/A"}},{"$f":"'Sundurliðun Útlán'!F7","v":0},".M.EUKITII.XX.XXX.OPI.XXXX.SX.XXX.XXX.IS.N.M"]
[{"$f":"\"INN.\"&EIGNIR!$B$3&C3940","v":{"$error":"#N/A"}},{"$f":"'Sundurliðun Útlán'!F9","v":0},".M.EUKITIT.XX.XXX.OPI.XXXX.SX.XXX.XXX.IS.N.M"]
[{"$f":"\"INN.\"&EIGNIR!$B$3&C3941","v":{"$error":"#N/A"}},{"$f":"'Sundurliðun Útlán'!F12","v":0},".M.EUKULIA.XX.ATV.OPI.XXXX.SX.XXX.XXX.IS.N.M"]
[{"$f":"\"INN.\"&EIGNIR!$B$3&C3942","v":{"$error":"#N/A"}},{"$f":"'Sundurliðun Útlán'!F26","v":0},".M.EUKULIA.XX.FJA.OPI.XXXX.SX.XXX.XXX.IS.N.M"]
[{"$f":"\"INN.\"&EIGNIR!$B$3&C3943","v":{"$error":"#N/A"}},{"$f":"'Sundurliðun Útlán'!F27","v":0},".M.EUKULIA.XX.INN.OPI.XXXX.SX.XXX.XXX.IS.N.M"]
[{"$f":"\"INN.\"&EIGNIR!$B$3&C3944","v":{"$error":"#N/A"}},{"$f":"'Sundurliðun Útlán'!F28","v":0},".M.EUKULIA.XX.SLI.OPI.XXXX.SX.XXX.XXX.IS.N.M"]
[{"$f":"\"INN.\"&EIGNIR!$B$3&C3945","v":{"$error":"#N/A"}},{"$f":"'Sundurliðun Útlán'!F29","v":0},".M.EUKULIA.XX.PEN.OPI.XXXX.SX.XXX.XXX.IS.N.M"]
[{"$f":"\"INN.\"&EIGNIR!$B$3&C3946","v":{"$error":"#N/A"}},{"$f":"'Sundurliðun Útlán'!F30","v":0},".M.EUKULIA.XX.SJO.OPI.XXXX.SX.XXX.XXX.IS.N.M"]
[{"$f":"\"INN.\"&EIGNIR!$B$3&C3947","v":{"$error":"#N/A"}},{"$f":"'Sundurliðun Útlán'!F31","v":0},".M.EUKULIA.XX.YFT.OPI.XXXX.SX.XXX.XXX.IS.N.M"]
[{"$f":"\"INN.\"&EIGNIR!$B$3&C3948","v":{"$error":"#N/A"}},{"$f":"'Sundurliðun Útlán'!F32","v":0},".M.EUKULIA.XX.SLY.OPI.XXXX.SX.XXX.XXX.IS.N.M"]
[{"$f":"\"INN.\"&EIGNIR!$B$3&C3949","v":{"$error":"#N/A"}},{"$f":"'Sundurliðun Útlán'!F33","v":0},".M.EUKULIA.XX.FHL.OPI.XXXX.SX.XXX.XXX.IS.N.M"]
[{"$f":"\"INN.\"&EIGNIR!$B$3&C3950","v":{"$error":"#N/A"}},{"$f":"'Sundurliðun Útlán'!F34","v":0},".M.EUKULIA.XX.INF.OPI.XXXX.SX.XXX.XXX.IS.N.M"]
[{"$f":"\"INN.\"&EIGNIR!$B$3&C3951","v":{"$error":"#N/A"}},{"$f":"'Sundurliðun Útlán'!F35","v":0},".M.EUKULIA.XX.TRY.OPI.XXXX.SX.XXX.XXX.IS.N.M"]
[{"$f":"\"INN.\"&EIGNIR!$B$3&C3952","v":{"$error":"#N/A"}},{"$f":"'Sundurliðun Útlán'!F36","v":0},".M.EUKULIA.XX.LIF.OPI.XXXX.SX.XXX.XXX.IS.N.M"]
[{"$f":"\"INN.\"&EIGNIR!$B$3&C3953","v":{"$error":"#N/A"}},{"$f":"'Sundurliðun Útlán'!F43","v":0},".M.EUKULYL.XX.ATV.OPI.XXXX.SX.XXX.XXX.IS.N.M"]
[{"$f":"\"INN.\"&EIGNIR!$B$3&C3954","v":{"$error":"#N/A"}},{"$f":"'Sundurliðun Útlán'!F57","v":0},".M.EUKULYL.XX.FJA.OPI.XXXX.SX.XXX.XXX.IS.N.M"]
[{"$f":"\"INN.\"&EIGNIR!$B$3&C3955","v":{"$error":"#N/A"}},{"$f":"'Sundurliðun Útlán'!F58","v":0},".M.EUKULYL.XX.INN.OPI.XXXX.SX.XXX.XXX.IS.N.M"]
[{"$f":"\"INN.\"&EIGNIR!$B$3&C3956","v":{"$error":"#N/A"}},{"$f":"'Sundurliðun Útlán'!F59","v":0},".M.EUKULYL.XX.SLI.OPI.XXXX.SX.XXX.XXX.IS.N.M"]
[{"$f":"\"INN.\"&EIGNIR!$B$3&C3957","v":{"$error":"#N/A"}},{"$f":"'Sundurliðun Útlán'!F60","v":0},".M.EUKULYL.XX.PEN.OPI.XXXX.SX.XXX.XXX.IS.N.M"]
[{"$f":"\"INN.\"&EIGNIR!$B$3&C3958","v":{"$error":"#N/A"}},{"$f":"'Sundurliðun Útlán'!F61","v":0},".M.EUKULYL.XX.SJO.OPI.XXXX.SX.XXX.XXX.IS.N.M"]
[{"$f":"\"INN.\"&EIGNIR!$B$3&C3959","v":{"$error":"#N/A"}},{"$f":"'Sundurliðun Útlán'!F62","v":0},".M.EUKULYL.XX.YFT.OPI.XXXX.SX.XXX.XXX.IS.N.M"]
[{"$f":"\"INN.\"&EIGNIR!$B$3&C3960","v":{"$error":"#N/A"}},{"$f":"'Sundurliðun Útlán'!F63","v":0},".M.EUKULYL.XX.SLY.OPI.XXXX.SX.XXX.XXX.IS.N.M"]
[{"$f":"\"INN.\"&EIGNIR!$B$3&C3961","v":{"$error":"#N/A"}},{"$f":"'Sundurliðun Útlán'!F64","v":0},".M.EUKULYL.XX.FHL.OPI.XXXX.SX.XXX.XXX.IS.N.M"]
[{"$f":"\"INN.\"&EIGNIR!$B$3&C3962","v":{"$error":"#N/A"}},{"$f":"'Sundurliðun Útlán'!F65","v":0},".M.EUKULYL.XX.INF.OPI.XXXX.SX.XXX.XXX.IS.N.M"]
[{"$f":"\"INN.\"&EIGNIR!$B$3&C3963","v":{"$error":"#N/A"}},{"$f":"'Sundurliðun Útlán'!F66","v":0},".M.EUKULYL.XX.TRY.OPI.XXXX.SX.XXX.XXX.IS.N.M"]
[{"$f":"\"INN.\"&EIGNIR!$B$3&C3964","v":{"$error":"#N/A"}},{"$f":"'Sundurliðun Útlán'!F67","v":0},".M.EUKULYL.XX.LIF.OPI.XXXX.SX.XXX.XXX.IS.N.M"]
[{"$f":"\"INN.\"&EIGNIR!$B$3&C3965","v":{"$error":"#N/A"}},{"$f":"'Sundurliðun Útlán'!F74","v":0},".M.EUKULVX.XX.ATV.OPI.XXXX.SX.XXX.XXX.IS.N.M"]
[{"$f":"\"INN.\"&EIGNIR!$B$3&C3966","v":{"$error":"#N/A"}},{"$f":"'Sundurliðun Útlán'!F88","v":0},".M.EUKULVX.XX.FJA.OPI.XXXX.SX.XXX.XXX.IS.N.M"]
[{"$f":"\"INN.\"&EIGNIR!$B$3&C3967","v":{"$error":"#N/A"}},{"$f":"'Sundurliðun Útlán'!F89","v":0},".M.EUKULVX.XX.INN.OPI.XXXX.SX.XXX.XXX.IS.N.M"]
[{"$f":"\"INN.\"&EIGNIR!$B$3&C3968","v":{"$error":"#N/A"}},{"$f":"'Sundurliðun Útlán'!F90","v":0},".M.EUKULVX.XX.SLI.OPI.XXXX.SX.XXX.XXX.IS.N.M"]
[{"$f":"\"INN.\"&EIGNIR!$B$3&C3969","v":{"$error":"#N/A"}},{"$f":"'Sundurliðun Útlán'!F91","v":0},".M.EUKULVX.XX.PEN.OPI.XXXX.SX.XXX.XXX.IS.N.M"]
[{"$f":"\"INN.\"&EIGNIR!$B$3&C3970","v":{"$error":"#N/A"}},{"$f":"'Sundurliðun Útlán'!F92","v":0},".M.EUKULVX.XX.SJO.OPI.XXXX.SX.XXX.XXX.IS.N.M"]
[{"$f":"\"INN.\"&EIGNIR!$B$3&C3971","v":{"$error":"#N/A"}},{"$f":"'Sundurliðun Útlán'!F93","v":0},".M.EUKULVX.XX.YFT.OPI.XXXX.SX.XXX.XXX.IS.N.M"]
[{"$f":"\"INN.\"&EIGNIR!$B$3&C3972","v":{"$error":"#N/A"}},{"$f":"'Sundurliðun Útlán'!F94","v":0},".M.EUKULVX.XX.SLY.OPI.XXXX.SX.XXX.XXX.IS.N.M"]
[{"$f":"\"INN.\"&EIGNIR!$B$3&C3973","v":{"$error":"#N/A"}},{"$f":"'Sundurliðun Útlán'!F95","v":0},".M.EUKULVX.XX.FHL.OPI.XXXX.SX.XXX.XXX.IS.N.M"]
[{"$f":"\"INN.\"&EIGNIR!$B$3&C3974","v":{"$error":"#N/A"}},{"$f":"'Sundurliðun Útlán'!F96","v":0},".M.EUKULVX.XX.INF.OPI.XXXX.SX.XXX.XXX.IS.N.M"]
[{"$f":"\"INN.\"&EIGNIR!$B$3&C3975","v":{"$error":"#N/A"}},{"$f":"'Sundurliðun Útlán'!F97","v":0},".M.EUKULVX.XX.TRY.OPI.XXXX.SX.XXX.XXX.IS.N.M"]
[{"$f":"\"INN.\"&EIGNIR!$B$3&C3976","v":{"$error":"#N/A"}},{"$f":"'Sundurliðun Útlán'!F98","v":0},".M.EUKULVX.XX.LIF.OPI.XXXX.SX.XXX.XXX.IS.N.M"]
[{"$f":"\"INN.\"&EIGNIR!$B$3&C3977","v":{"$error":"#N/A"}},{"$f":"'Sundurliðun Útlán'!F105","v":0},".M.EUKULVU.XX.ATV.OPI.XXXX.SV.XXX.XXX.IS.N.M"]
[{"$f":"\"INN.\"&EIGNIR!$B$3&C3978","v":{"$error":"#N/A"}},{"$f":"'Sundurliðun Útlán'!F119","v":0},".M.EUKULVU.XX.FJA.OPI.XXXX.SV.XXX.XXX.IS.N.M"]
[{"$f":"\"INN.\"&EIGNIR!$B$3&C3979","v":{"$error":"#N/A"}},{"$f":"'Sundurliðun Útlán'!F120","v":0},".M.EUKULVU.XX.INN.OPI.XXXX.SV.XXX.XXX.IS.N.M"]
[{"$f":"\"INN.\"&EIGNIR!$B$3&C3980","v":{"$error":"#N/A"}},{"$f":"'Sundurliðun Útlán'!F121","v":0},".M.EUKULVU.XX.SLI.OPI.XXXX.SV.XXX.XXX.IS.N.M"]
[{"$f":"\"INN.\"&EIGNIR!$B$3&C3981","v":{"$error":"#N/A"}},{"$f":"'Sundurliðun Útlán'!F122","v":0},".M.EUKULVU.XX.PEN.OPI.XXXX.SV.XXX.XXX.IS.N.M"]
[{"$f":"\"INN.\"&EIGNIR!$B$3&C3982","v":{"$error":"#N/A"}},{"$f":"'Sundurliðun Útlán'!F123","v":0},".M.EUKULVU.XX.SJO.OPI.XXXX.SV.XXX.XXX.IS.N.M"]
[{"$f":"\"INN.\"&EIGNIR!$B$3&C3983","v":{"$error":"#N/A"}},{"$f":"'Sundurliðun Útlán'!F124","v":0},".M.EUKULVU.XX.YFT.OPI.XXXX.SV.XXX.XXX.IS.N.M"]
[{"$f":"\"INN.\"&EIGNIR!$B$3&C3984","v":{"$error":"#N/A"}},{"$f":"'Sundurliðun Útlán'!F125","v":0},".M.EUKULVU.XX.SLY.OPI.XXXX.SV.XXX.XXX.IS.N.M"]
[{"$f":"\"INN.\"&EIGNIR!$B$3&C3985","v":{"$error":"#N/A"}},{"$f":"'Sundurliðun Útlán'!F126","v":0},".M.EUKULVU.XX.FHL.OPI.XXXX.SV.XXX.XXX.IS.N.M"]
[{"$f":"\"INN.\"&EIGNIR!$B$3&C3986","v":{"$error":"#N/A"}},{"$f":"'Sundurliðun Útlán'!F127","v":0},".M.EUKULVU.XX.INF.OPI.XXXX.SV.XXX.XXX.IS.N.M"]
[{"$f":"\"INN.\"&EIGNIR!$B$3&C3987","v":{"$error":"#N/A"}},{"$f":"'Sundurliðun Útlán'!F128","v":0},".M.EUKULVU.XX.TRY.OPI.XXXX.SV.XXX.XXX.IS.N.M"]
[{"$f":"\"INN.\"&EIGNIR!$B$3&C3988","v":{"$error":"#N/A"}},{"$f":"'Sundurliðun Útlán'!F129","v":0},".M.EUKULVU.XX.LIF.OPI.XXXX.SV.XXX.XXX.IS.N.M"]
[{"$f":"\"INN.\"&EIGNIR!$B$3&C3989","v":{"$error":"#N/A"}},{"$f":"'Sundurliðun Útlán'!F137","v":0},".M.EUKULOU.XX.ATV.OPI.XXXX.SX.XXX.XXX.IS.N.M"]
[{"$f":"\"INN.\"&EIGNIR!$B$3&C3990","v":{"$error":"#N/A"}},{"$f":"'Sundurliðun Útlán'!F151","v":0},".M.EUKULOU.XX.FJA.OPI.XXXX.SX.XXX.XXX.IS.N.M"]
[{"$f":"\"INN.\"&EIGNIR!$B$3&C3991","v":{"$error":"#N/A"}},{"$f":"'Sundurliðun Útlán'!F152","v":0},".M.EUKULOU.XX.INN.OPI.XXXX.SX.XXX.XXX.IS.N.M"]
[{"$f":"\"INN.\"&EIGNIR!$B$3&C3992","v":{"$error":"#N/A"}},{"$f":"'Sundurliðun Útlán'!F153","v":0},".M.EUKULOU.XX.SLI.OPI.XXXX.SX.XXX.XXX.IS.N.M"]
[{"$f":"\"INN.\"&EIGNIR!$B$3&C3993","v":{"$error":"#N/A"}},{"$f":"'Sundurliðun Útlán'!F154","v":0},".M.EUKULOU.XX.PEN.OPI.XXXX.SX.XXX.XXX.IS.N.M"]
[{"$f":"\"INN.\"&EIGNIR!$B$3&C3994","v":{"$error":"#N/A"}},{"$f":"'Sundurliðun Útlán'!F155","v":0},".M.EUKULOU.XX.SJO.OPI.XXXX.SX.XXX.XXX.IS.N.M"]
[{"$f":"\"INN.\"&EIGNIR!$B$3&C3995","v":{"$error":"#N/A"}},{"$f":"'Sundurliðun Útlán'!F156","v":0},".M.EUKULOU.XX.YFT.OPI.XXXX.SX.XXX.XXX.IS.N.M"]
[{"$f":"\"INN.\"&EIGNIR!$B$3&C3996","v":{"$error":"#N/A"}},{"$f":"'Sundurliðun Útlán'!F157","v":0},".M.EUKULOU.XX.SLY.OPI.XXXX.SX.XXX.XXX.IS.N.M"]
[{"$f":"\"INN.\"&EIGNIR!$B$3&C3997","v":{"$error":"#N/A"}},{"$f":"'Sundurliðun Útlán'!F158","v":0},".M.EUKULOU.XX.FHL.OPI.XXXX.SX.XXX.XXX.IS.N.M"]
[{"$f":"\"INN.\"&EIGNIR!$B$3&C3998","v":{"$error":"#N/A"}},{"$f":"'Sundurliðun Útlán'!F159","v":0},".M.EUKULOU.XX.INF.OPI.XXXX.SX.XXX.XXX.IS.N.M"]
[{"$f":"\"INN.\"&EIGNIR!$B$3&C3999","v":{"$error":"#N/A"}},{"$f":"'Sundurliðun Útlán'!F160","v":0},".M.EUKULOU.XX.TRY.OPI.XXXX.SX.XXX.XXX.IS.N.M"]
[{"$f":"\"INN.\"&EIGNIR!$B$3&C4000","v":{"$error":"#N/A"}},{"$f":"'Sundurliðun Útlán'!F161","v":0},".M.EUKULOU.XX.LIF.OPI.XXXX.SX.XXX.XXX.IS.N.M"]
[{"$f":"\"INN.\"&EIGNIR!$B$3&C4001","v":{"$error":"#N/A"}},{"$f":"'Sundurliðun Útlán'!F169","v":0},".M.EUKULEL.XX.ATV.OPI.XXXX.SX.XXX.XXX.IS.N.M"]
[{"$f":"\"INN.\"&EIGNIR!$B$3&C4002","v":{"$error":"#N/A"}},{"$f":"'Sundurliðun Útlán'!F183","v":0},".M.EUKULEL.XX.FJA.OPI.XXXX.SX.XXX.XXX.IS.N.M"]
[{"$f":"\"INN.\"&EIGNIR!$B$3&C4003","v":{"$error":"#N/A"}},{"$f":"'Sundurliðun Útlán'!F184","v":0},".M.EUKULEL.XX.INN.OPI.XXXX.SX.XXX.XXX.IS.N.M"]
[{"$f":"\"INN.\"&EIGNIR!$B$3&C4004","v":{"$error":"#N/A"}},{"$f":"'Sundurliðun Útlán'!F185","v":0},".M.EUKULEL.XX.SLI.OPI.XXXX.SX.XXX.XXX.IS.N.M"]
[{"$f":"\"INN.\"&EIGNIR!$B$3&C4005","v":{"$error":"#N/A"}},{"$f":"'Sundurliðun Útlán'!F186","v":0},".M.EUKULEL.XX.PEN.OPI.XXXX.SX.XXX.XXX.IS.N.M"]
[{"$f":"\"INN.\"&EIGNIR!$B$3&C4006","v":{"$error":"#N/A"}},{"$f":"'Sundurliðun Útlán'!F187","v":0},".M.EUKULEL.XX.SJO.OPI.XXXX.SX.XXX.XXX.IS.N.M"]
[{"$f":"\"INN.\"&EIGNIR!$B$3&C4007","v":{"$error":"#N/A"}},{"$f":"'Sundurliðun Útlán'!F188","v":0},".M.EUKULEL.XX.YFT.OPI.XXXX.SX.XXX.XXX.IS.N.M"]
[{"$f":"\"INN.\"&EIGNIR!$B$3&C4008","v":{"$error":"#N/A"}},{"$f":"'Sundurliðun Útlán'!F189","v":0},".M.EUKULEL.XX.SLY.OPI.XXXX.SX.XXX.XXX.IS.N.M"]
[{"$f":"\"INN.\"&EIGNIR!$B$3&C4009","v":{"$error":"#N/A"}},{"$f":"'Sundurliðun Útlán'!F190","v":0},".M.EUKULEL.XX.FHL.OPI.XXXX.SX.XXX.XXX.IS.N.M"]
[{"$f":"\"INN.\"&EIGNIR!$B$3&C4010","v":{"$error":"#N/A"}},{"$f":"'Sundurliðun Útlán'!F191","v":0},".M.EUKULEL.XX.INF.OPI.XXXX.SX.XXX.XXX.IS.N.M"]
[{"$f":"\"INN.\"&EIGNIR!$B$3&C4011","v":{"$error":"#N/A"}},{"$f":"'Sundurliðun Útlán'!F192","v":0},".M.EUKULEL.XX.TRY.OPI.XXXX.SX.XXX.XXX.IS.N.M"]
[{"$f":"\"INN.\"&EIGNIR!$B$3&C4012","v":{"$error":"#N/A"}},{"$f":"'Sundurliðun Útlán'!F193","v":0},".M.EUKULEL.XX.LIF.OPI.XXXX.SX.XXX.XXX.IS.N.M"]
[{"$f":"\"INN.\"&EIGNIR!$B$3&C4013","v":{"$error":"#N/A"}},{"$f":"'Sundurliðun Útlán'!F235","v":0},".M.EUKNFST.XX.ATV.OPI.XXXX.SX.XXX.XXX.IS.N.M"]
[{"$f":"\"INN.\"&EIGNIR!$B$3&C4014","v":{"$error":"#N/A"}},{"$f":"'Sundurliðun Útlán'!F236","v":0},".M.EUKNFST.XX.LAB.OPI.XXXX.SX.XXX.XXX.IS.N.M"]
[{"$f":"\"INN.\"&EIGNIR!$B$3&C4015","v":{"$error":"#N/A"}},{"$f":"'Sundurliðun Útlán'!F237","v":0},".M.EUKNFST.XX.SJA.OPI.XXXX.SX.XXX.XXX.IS.N.M"]
[{"$f":"\"INN.\"&EIGNIR!$B$3&C4016","v":{"$error":"#N/A"}},{"$f":"'Sundurliðun Útlán'!F238","v":0},".M.EUKNFST.XX.ILA.OPI.XXXX.SX.XXX.XXX.IS.N.M"]
[{"$f":"\"INN.\"&EIGNIR!$B$3&C4017","v":{"$error":"#N/A"}},{"$f":"'Sundurliðun Útlán'!F239","v":0},".M.EUKNFST.XX.ISJ.OPI.XXXX.SX.XXX.XXX.IS.N.M"]
[{"$f":"\"INN.\"&EIGNIR!$B$3&C4018","v":{"$error":"#N/A"}},{"$f":"'Sundurliðun Útlán'!F240","v":0},".M.EUKNFST.XX.IAN.OPI.XXXX.SX.XXX.XXX.IS.N.M"]
[{"$f":"\"INN.\"&EIGNIR!$B$3&C4019","v":{"$error":"#N/A"}},{"$f":"'Sundurliðun Útlán'!F241","v":0},".M.EUKNFST.XX.RAF.OPI.XXXX.SX.XXX.XXX.IS.N.M"]
[{"$f":"\"INN.\"&EIGNIR!$B$3&C4020","v":{"$error":"#N/A"}},{"$f":"'Sundurliðun Útlán'!F242","v":0},".M.EUKNFST.XX.MAN.OPI.XXXX.SX.XXX.XXX.IS.N.M"]
[{"$f":"\"INN.\"&EIGNIR!$B$3&C4021","v":{"$error":"#N/A"}},{"$f":"'Sundurliðun Útlán'!F243","v":0},".M.EUKNFST.XX.VEN.OPI.XXXX.SX.XXX.XXX.IS.N.M"]
[{"$f":"\"INN.\"&EIGNIR!$B$3&C4022","v":{"$error":"#N/A"}},{"$f":"'Sundurliðun Útlán'!F244","v":0},".M.EUKNFST.XX.SAG.OPI.XXXX.SX.XXX.XXX.IS.N.M"]
[{"$f":"\"INN.\"&EIGNIR!$B$3&C4023","v":{"$error":"#N/A"}},{"$f":"'Sundurliðun Útlán'!F245","v":0},".M.EUKNFST.XX.THF.OPI.XXXX.SX.XXX.XXX.IS.N.M"]
[{"$f":"\"INN.\"&EIGNIR!$B$3&C4024","v":{"$error":"#N/A"}},{"$f":"'Sundurliðun Útlán'!F246","v":0},".M.EUKNFST.XX.THH.OPI.XXXX.SX.XXX.XXX.IS.N.M"]
[{"$f":"\"INN.\"&EIGNIR!$B$3&C4025","v":{"$error":"#N/A"}},{"$f":"'Sundurliðun Útlán'!F247","v":0},".M.EUKNFST.XX.THA.OPI.XXXX.SX.XXX.XXX.IS.N.M"]
[{"$f":"\"INN.\"&EIGNIR!$B$3&C4026","v":{"$error":"#N/A"}},{"$f":"'Sundurliðun Útlán'!F248","v":0},".M.EUKNFST.XX.OFL.OPI.XXXX.SX.XXX.XXX.IS.N.M"]
[{"$f":"\"INN.\"&EIGNIR!$B$3&C4027","v":{"$error":"#N/A"}},{"$f":"'Sundurliðun Útlán'!F249","v":0},".M.EUKNFST.XX.FJA.OPI.XXXX.SX.XXX.XXX.IS.N.M"]
[{"$f":"\"INN.\"&EIGNIR!$B$3&C4028","v":{"$error":"#N/A"}},{"$f":"'Sundurliðun Útlán'!F250","v":0},".M.EUKNFST.XXINN.OPI.XXXX.SX.XXX.XXX.IS.N.M"]
[{"$f":"\"INN.\"&EIGNIR!$B$3&C4029","v":{"$error":"#N/A"}},{"$f":"'Sundurliðun Útlán'!F251","v":0},".M.EUKNFST.XX.SLI.OPI.XXXX.SX.XXX.XXX.IS.N.M"]
[{"$f":"\"INN.\"&EIGNIR!$B$3&C4030","v":{"$error":"#N/A"}},{"$f":"'Sundurliðun Útlán'!F252","v":0},".M.EUKNFST.XX.PEN.OPI.XXXX.SX.XXX.XXX.IS.N.M"]
[{"$f":"\"INN.\"&EIGNIR!$B$3&C4031","v":{"$error":"#N/A"}},{"$f":"'Sundurliðun Útlán'!F253","v":0},".M.EUKNFST.XX.SJO.OPI.XXXX.SX.XXX.XXX.IS.N.M"]
[{"$f":"\"INN.\"&EIGNIR!$B$3&C4032","v":{"$error":"#N/A"}},{"$f":"'Sundurliðun Útlán'!F254","v":0},".M.EUKNFST.XX.YFT.OPI.XXXX.SX.XXX.XXX.IS.N.M"]
[{"$f":"\"INN.\"&EIGNIR!$B$3&C4033","v":{"$error":"#N/A"}},{"$f":"'Sundurliðun Útlán'!F255","v":0},".M.EUKNFST.XX.SLY.OPI.XXXX.SX.XXX.XXX.IS.N.M"]
[{"$f":"\"INN.\"&EIGNIR!$B$3&C4034","v":{"$error":"#N/A"}},{"$f":"'Sundurliðun Útlán'!F256","v":0},".M.EUKNFST.XX.FHL.OPI.XXXX.SX.XXX.XXX.IS.N.M"]
[{"$f":"\"INN.\"&EIGNIR!$B$3&C4035","v":{"$error":"#N/A"}},{"$f":"'Sundurliðun Útlán'!F257","v":0},".M.EUKNFST.XX.INF.OPI.XXXX.SX.XXX.XXX.IS.N.M"]
[{"$f":"\"INN.\"&EIGNIR!$B$3&C4036","v":{"$error":"#N/A"}},{"$f":"'Sundurliðun Útlán'!F258","v":0},".M.EUKNFST.XX.TRY.OPI.XXXX.SX.XXX.XXX.IS.N.M"]
[{"$f":"\"INN.\"&EIGNIR!$B$3&C4037","v":{"$error":"#N/A"}},{"$f":"'Sundurliðun Útlán'!F259","v":0},".M.EUKNFST.XX.LIF.OPI.XXXX.SX.XXX.XXX.IS.N.M"]
[{"$f":"\"INN.\"&EIGNIR!$B$3&C4038","v":{"$error":"#N/A"}},{"$f":"'Sundurliðun Útlán'!G7","v":0},".M.EUKITII.XX.XXX.EIF.XXXX.SX.XXX.XXX.IS.N.M"]
[{"$f":"\"INN.\"&EIGNIR!$B$3&C4039","v":{"$error":"#N/A"}},{"$f":"'Sundurliðun Útlán'!G9","v":0},".M.EUKITIT.XX.XXX.EIF.XXXX.SX.XXX.XXX.IS.N.M"]
[{"$f":"\"INN.\"&EIGNIR!$B$3&C4040","v":{"$error":"#N/A"}},{"$f":"'Sundurliðun Útlán'!G12","v":0},".M.EUKULIA.XX.ATV.EIF.XXXX.SX.XXX.XXX.IS.N.M"]
[{"$f":"\"INN.\"&EIGNIR!$B$3&C4041","v":{"$error":"#N/A"}},{"$f":"'Sundurliðun Útlán'!G26","v":0},".M.EUKULIA.XX.FJA.EIF.XXXX.SX.XXX.XXX.IS.N.M"]
[{"$f":"\"INN.\"&EIGNIR!$B$3&C4042","v":{"$error":"#N/A"}},{"$f":"'Sundurliðun Útlán'!G27","v":0},".M.EUKULIA.XX.INN.EIF.XXXX.SX.XXX.XXX.IS.N.M"]
[{"$f":"\"INN.\"&EIGNIR!$B$3&C4043","v":{"$error":"#N/A"}},{"$f":"'Sundurliðun Útlán'!G28","v":0},".M.EUKULIA.XX.SLI.EIF.XXXX.SX.XXX.XXX.IS.N.M"]
[{"$f":"\"INN.\"&EIGNIR!$B$3&C4044","v":{"$error":"#N/A"}},{"$f":"'Sundurliðun Útlán'!G29","v":0},".M.EUKULIA.XX.PEN.EIF.XXXX.SX.XXX.XXX.IS.N.M"]
[{"$f":"\"INN.\"&EIGNIR!$B$3&C4045","v":{"$error":"#N/A"}},{"$f":"'Sundurliðun Útlán'!G30","v":0},".M.EUKULIA.XX.SJO.EIF.XXXX.SX.XXX.XXX.IS.N.M"]
[{"$f":"\"INN.\"&EIGNIR!$B$3&C4046","v":{"$error":"#N/A"}},{"$f":"'Sundurliðun Útlán'!G31","v":0},".M.EUKULIA.XX.YFT.EIF.XXXX.SX.XXX.XXX.IS.N.M"]
[{"$f":"\"INN.\"&EIGNIR!$B$3&C4047","v":{"$error":"#N/A"}},{"$f":"'Sundurliðun Útlán'!G32","v":0},".M.EUKULIA.XX.SLY.EIF.XXXX.SX.XXX.XXX.IS.N.M"]
[{"$f":"\"INN.\"&EIGNIR!$B$3&C4048","v":{"$error":"#N/A"}},{"$f":"'Sundurliðun Útlán'!G33","v":0},".M.EUKULIA.XX.FHL.EIF.XXXX.SX.XXX.XXX.IS.N.M"]
[{"$f":"\"INN.\"&EIGNIR!$B$3&C4049","v":{"$error":"#N/A"}},{"$f":"'Sundurliðun Útlán'!G34","v":0},".M.EUKULIA.XX.INF.EIF.XXXX.SX.XXX.XXX.IS.N.M"]
[{"$f":"\"INN.\"&EIGNIR!$B$3&C4050","v":{"$error":"#N/A"}},{"$f":"'Sundurliðun Útlán'!G35","v":0},".M.EUKULIA.XX.TRY.EIF.XXXX.SX.XXX.XXX.IS.N.M"]
[{"$f":"\"INN.\"&EIGNIR!$B$3&C4051","v":{"$error":"#N/A"}},{"$f":"'Sundurliðun Útlán'!G36","v":0},".M.EUKULIA.XX.LIF.EIF.XXXX.SX.XXX.XXX.IS.N.M"]
[{"$f":"\"INN.\"&EIGNIR!$B$3&C4052","v":{"$error":"#N/A"}},{"$f":"'Sundurliðun Útlán'!G43","v":0},".M.EUKULYL.XX.ATV.EIF.XXXX.SX.XXX.XXX.IS.N.M"]
[{"$f":"\"INN.\"&EIGNIR!$B$3&C4053","v":{"$error":"#N/A"}},{"$f":"'Sundurliðun Útlán'!G57","v":0},".M.EUKULYL.XX.FJA.EIF.XXXX.SX.XXX.XXX.IS.N.M"]
[{"$f":"\"INN.\"&EIGNIR!$B$3&C4054","v":{"$error":"#N/A"}},{"$f":"'Sundurliðun Útlán'!G58","v":0},".M.EUKULYL.XX.INN.EIF.XXXX.SX.XXX.XXX.IS.N.M"]
[{"$f":"\"INN.\"&EIGNIR!$B$3&C4055","v":{"$error":"#N/A"}},{"$f":"'Sundurliðun Útlán'!G59","v":0},".M.EUKULYL.XX.SLI.EIF.XXXX.SX.XXX.XXX.IS.N.M"]
[{"$f":"\"INN.\"&EIGNIR!$B$3&C4056","v":{"$error":"#N/A"}},{"$f":"'Sundurliðun Útlán'!G60","v":0},".M.EUKULYL.XX.PEN.EIF.XXXX.SX.XXX.XXX.IS.N.M"]
[{"$f":"\"INN.\"&EIGNIR!$B$3&C4057","v":{"$error":"#N/A"}},{"$f":"'Sundurliðun Útlán'!G61","v":0},".M.EUKULYL.XX.SJO.EIF.XXXX.SX.XXX.XXX.IS.N.M"]
[{"$f":"\"INN.\"&EIGNIR!$B$3&C4058","v":{"$error":"#N/A"}},{"$f":"'Sundurliðun Útlán'!G62","v":0},".M.EUKULYL.XX.YFT.EIF.XXXX.SX.XXX.XXX.IS.N.M"]
[{"$f":"\"INN.\"&EIGNIR!$B$3&C4059","v":{"$error":"#N/A"}},{"$f":"'Sundurliðun Útlán'!G63","v":0},".M.EUKULYL.XX.SLY.EIF.XXXX.SX.XXX.XXX.IS.N.M"]
[{"$f":"\"INN.\"&EIGNIR!$B$3&C4060","v":{"$error":"#N/A"}},{"$f":"'Sundurliðun Útlán'!G64","v":0},".M.EUKULYL.XX.FHL.EIF.XXXX.SX.XXX.XXX.IS.N.M"]
[{"$f":"\"INN.\"&EIGNIR!$B$3&C4061","v":{"$error":"#N/A"}},{"$f":"'Sundurliðun Útlán'!G65","v":0},".M.EUKULYL.XX.INF.EIF.XXXX.SX.XXX.XXX.IS.N.M"]
[{"$f":"\"INN.\"&EIGNIR!$B$3&C4062","v":{"$error":"#N/A"}},{"$f":"'Sundurliðun Útlán'!G66","v":0},".M.EUKULYL.XX.TRY.EIF.XXXX.SX.XXX.XXX.IS.N.M"]
[{"$f":"\"INN.\"&EIGNIR!$B$3&C4063","v":{"$error":"#N/A"}},{"$f":"'Sundurliðun Útlán'!G67","v":0},".M.EUKULYL.XX.LIF.EIF.XXXX.SX.XXX.XXX.IS.N.M"]
[{"$f":"\"INN.\"&EIGNIR!$B$3&C4064","v":{"$error":"#N/A"}},{"$f":"'Sundurliðun Útlán'!G74","v":0},".M.EUKULVX.XX.ATV.EIF.XXXX.SX.XXX.XXX.IS.N.M"]
[{"$f":"\"INN.\"&EIGNIR!$B$3&C4065","v":{"$error":"#N/A"}},{"$f":"'Sundurliðun Útlán'!G88","v":0},".M.EUKULVX.XX.FJA.EIF.XXXX.SX.XXX.XXX.IS.N.M"]
[{"$f":"\"INN.\"&EIGNIR!$B$3&C4066","v":{"$error":"#N/A"}},{"$f":"'Sundurliðun Útlán'!G89","v":0},".M.EUKULVX.XX.INN.EIF.XXXX.SX.XXX.XXX.IS.N.M"]
[{"$f":"\"INN.\"&EIGNIR!$B$3&C4067","v":{"$error":"#N/A"}},{"$f":"'Sundurliðun Útlán'!G90","v":0},".M.EUKULVX.XX.SLI.EIF.XXXX.SX.XXX.XXX.IS.N.M"]
[{"$f":"\"INN.\"&EIGNIR!$B$3&C4068","v":{"$error":"#N/A"}},{"$f":"'Sundurliðun Útlán'!G91","v":0},".M.EUKULVX.XX.PEN.EIF.XXXX.SX.XXX.XXX.IS.N.M"]
[{"$f":"\"INN.\"&EIGNIR!$B$3&C4069","v":{"$error":"#N/A"}},{"$f":"'Sundurliðun Útlán'!G92","v":0},".M.EUKULVX.XX.SJO.EIF.XXXX.SX.XXX.XXX.IS.N.M"]
[{"$f":"\"INN.\"&EIGNIR!$B$3&C4070","v":{"$error":"#N/A"}},{"$f":"'Sundurliðun Útlán'!G93","v":0},".M.EUKULVX.XX.YFT.EIF.XXXX.SX.XXX.XXX.IS.N.M"]
[{"$f":"\"INN.\"&EIGNIR!$B$3&C4071","v":{"$error":"#N/A"}},{"$f":"'Sundurliðun Útlán'!G94","v":0},".M.EUKULVX.XX.SLY.EIF.XXXX.SX.XXX.XXX.IS.N.M"]
[{"$f":"\"INN.\"&EIGNIR!$B$3&C4072","v":{"$error":"#N/A"}},{"$f":"'Sundurliðun Útlán'!G95","v":0},".M.EUKULVX.XX.FHL.EIF.XXXX.SX.XXX.XXX.IS.N.M"]
[{"$f":"\"INN.\"&EIGNIR!$B$3&C4073","v":{"$error":"#N/A"}},{"$f":"'Sundurliðun Útlán'!G96","v":0},".M.EUKULVX.XX.INF.EIF.XXXX.SX.XXX.XXX.IS.N.M"]
[{"$f":"\"INN.\"&EIGNIR!$B$3&C4074","v":{"$error":"#N/A"}},{"$f":"'Sundurliðun Útlán'!G97","v":0},".M.EUKULVX.XX.TRY.EIF.XXXX.SX.XXX.XXX.IS.N.M"]
[{"$f":"\"INN.\"&EIGNIR!$B$3&C4075","v":{"$error":"#N/A"}},{"$f":"'Sundurliðun Útlán'!G98","v":0},".M.EUKULVX.XX.LIF.EIF.XXXX.SX.XXX.XXX.IS.N.M"]
[{"$f":"\"INN.\"&EIGNIR!$B$3&C4076","v":{"$error":"#N/A"}},{"$f":"'Sundurliðun Útlán'!G105","v":0},".M.EUKULVU.XX.ATV.EIF.XXXX.SV.XXX.XXX.IS.N.M"]
[{"$f":"\"INN.\"&EIGNIR!$B$3&C4077","v":{"$error":"#N/A"}},{"$f":"'Sundurliðun Útlán'!G119","v":0},".M.EUKULVU.XX.FJA.EIF.XXXX.SV.XXX.XXX.IS.N.M"]
[{"$f":"\"INN.\"&EIGNIR!$B$3&C4078","v":{"$error":"#N/A"}},{"$f":"'Sundurliðun Útlán'!G120","v":0},".M.EUKULVU.XX.INN.EIF.XXXX.SV.XXX.XXX.IS.N.M"]
[{"$f":"\"INN.\"&EIGNIR!$B$3&C4079","v":{"$error":"#N/A"}},{"$f":"'Sundurliðun Útlán'!G121","v":0},".M.EUKULVU.XX.SLI.EIF.XXXX.SV.XXX.XXX.IS.N.M"]
[{"$f":"\"INN.\"&EIGNIR!$B$3&C4080","v":{"$error":"#N/A"}},{"$f":"'Sundurliðun Útlán'!G122","v":0},".M.EUKULVU.XX.PEN.EIF.XXXX.SV.XXX.XXX.IS.N.M"]
[{"$f":"\"INN.\"&EIGNIR!$B$3&C4081","v":{"$error":"#N/A"}},{"$f":"'Sundurliðun Útlán'!G123","v":0},".M.EUKULVU.XX.SJO.EIF.XXXX.SV.XXX.XXX.IS.N.M"]
[{"$f":"\"INN.\"&EIGNIR!$B$3&C4082","v":{"$error":"#N/A"}},{"$f":"'Sundurliðun Útlán'!G124","v":0},".M.EUKULVU.XX.YFT.EIF.XXXX.SV.XXX.XXX.IS.N.M"]
[{"$f":"\"INN.\"&EIGNIR!$B$3&C4083","v":{"$error":"#N/A"}},{"$f":"'Sundurliðun Útlán'!G125","v":0},".M.EUKULVU.XX.SLY.EIF.XXXX.SV.XXX.XXX.IS.N.M"]
[{"$f":"\"INN.\"&EIGNIR!$B$3&C4084","v":{"$error":"#N/A"}},{"$f":"'Sundurliðun Útlán'!G126","v":0},".M.EUKULVU.XX.FHL.EIF.XXXX.SV.XXX.XXX.IS.N.M"]
[{"$f":"\"INN.\"&EIGNIR!$B$3&C4085","v":{"$error":"#N/A"}},{"$f":"'Sundurliðun Útlán'!G127","v":0},".M.EUKULVU.XX.INF.EIF.XXXX.SV.XXX.XXX.IS.N.M"]
[{"$f":"\"INN.\"&EIGNIR!$B$3&C4086","v":{"$error":"#N/A"}},{"$f":"'Sundurliðun Útlán'!G128","v":0},".M.EUKULVU.XX.TRY.EIF.XXXX.SV.XXX.XXX.IS.N.M"]
[{"$f":"\"INN.\"&EIGNIR!$B$3&C4087","v":{"$error":"#N/A"}},{"$f":"'Sundurliðun Útlán'!G129","v":0},".M.EUKULVU.XX.LIF.EIF.XXXX.SV.XXX.XXX.IS.N.M"]
[{"$f":"\"INN.\"&EIGNIR!$B$3&C4088","v":{"$error":"#N/A"}},{"$f":"'Sundurliðun Útlán'!G137","v":0},".M.EUKULOU.XX.ATV.EIF.XXXX.SX.XXX.XXX.IS.N.M"]
[{"$f":"\"INN.\"&EIGNIR!$B$3&C4089","v":{"$error":"#N/A"}},{"$f":"'Sundurliðun Útlán'!G151","v":0},".M.EUKULOU.XX.FJA.EIF.XXXX.SX.XXX.XXX.IS.N.M"]
[{"$f":"\"INN.\"&EIGNIR!$B$3&C4090","v":{"$error":"#N/A"}},{"$f":"'Sundurliðun Útlán'!G152","v":0},".M.EUKULOU.XX.INN.EIF.XXXX.SX.XXX.XXX.IS.N.M"]
[{"$f":"\"INN.\"&EIGNIR!$B$3&C4091","v":{"$error":"#N/A"}},{"$f":"'Sundurliðun Útlán'!G153","v":0},".M.EUKULOU.XX.SLI.EIF.XXXX.SX.XXX.XXX.IS.N.M"]
[{"$f":"\"INN.\"&EIGNIR!$B$3&C4092","v":{"$error":"#N/A"}},{"$f":"'Sundurliðun Útlán'!G154","v":0},".M.EUKULOU.XX.PEN.EIF.XXXX.SX.XXX.XXX.IS.N.M"]
[{"$f":"\"INN.\"&EIGNIR!$B$3&C4093","v":{"$error":"#N/A"}},{"$f":"'Sundurliðun Útlán'!G155","v":0},".M.EUKULOU.XX.SJO.EIF.XXXX.SX.XXX.XXX.IS.N.M"]
[{"$f":"\"INN.\"&EIGNIR!$B$3&C4094","v":{"$error":"#N/A"}},{"$f":"'Sundurliðun Útlán'!G156","v":0},".M.EUKULOU.XX.YFT.EIF.XXXX.SX.XXX.XXX.IS.N.M"]
[{"$f":"\"INN.\"&EIGNIR!$B$3&C4095","v":{"$error":"#N/A"}},{"$f":"'Sundurliðun Útlán'!G157","v":0},".M.EUKULOU.XX.SLY.EIF.XXXX.SX.XXX.XXX.IS.N.M"]
[{"$f":"\"INN.\"&EIGNIR!$B$3&C4096","v":{"$error":"#N/A"}},{"$f":"'Sundurliðun Útlán'!G158","v":0},".M.EUKULOU.XX.FHL.EIF.XXXX.SX.XXX.XXX.IS.N.M"]
[{"$f":"\"INN.\"&EIGNIR!$B$3&C4097","v":{"$error":"#N/A"}},{"$f":"'Sundurliðun Útlán'!G159","v":0},".M.EUKULOU.XX.INF.EIF.XXXX.SX.XXX.XXX.IS.N.M"]
[{"$f":"\"INN.\"&EIGNIR!$B$3&C4098","v":{"$error":"#N/A"}},{"$f":"'Sundurliðun Útlán'!G160","v":0},".M.EUKULOU.XX.TRY.EIF.XXXX.SX.XXX.XXX.IS.N.M"]
[{"$f":"\"INN.\"&EIGNIR!$B$3&C4099","v":{"$error":"#N/A"}},{"$f":"'Sundurliðun Útlán'!G161","v":0},".M.EUKULOU.XX.LIF.EIF.XXXX.SX.XXX.XXX.IS.N.M"]
[{"$f":"\"INN.\"&EIGNIR!$B$3&C4100","v":{"$error":"#N/A"}},{"$f":"'Sundurliðun Útlán'!G169","v":0},".M.EUKULEL.XX.ATV.EIF.XXXX.SX.XXX.XXX.IS.N.M"]
[{"$f":"\"INN.\"&EIGNIR!$B$3&C4101","v":{"$error":"#N/A"}},{"$f":"'Sundurliðun Útlán'!G183","v":0},".M.EUKULEL.XX.FJA.EIF.XXXX.SX.XXX.XXX.IS.N.M"]
[{"$f":"\"INN.\"&EIGNIR!$B$3&C4102","v":{"$error":"#N/A"}},{"$f":"'Sundurliðun Útlán'!G184","v":0},".M.EUKULEL.XX.INN.EIF.XXXX.SX.XXX.XXX.IS.N.M"]
[{"$f":"\"INN.\"&EIGNIR!$B$3&C4103","v":{"$error":"#N/A"}},{"$f":"'Sundurliðun Útlán'!G185","v":0},".M.EUKULEL.XX.SLI.EIF.XXXX.SX.XXX.XXX.IS.N.M"]
[{"$f":"\"INN.\"&EIGNIR!$B$3&C4104","v":{"$error":"#N/A"}},{"$f":"'Sundurliðun Útlán'!G186","v":0},".M.EUKULEL.XX.PEN.EIF.XXXX.SX.XXX.XXX.IS.N.M"]
[{"$f":"\"INN.\"&EIGNIR!$B$3&C4105","v":{"$error":"#N/A"}},{"$f":"'Sundurliðun Útlán'!G187","v":0},".M.EUKULEL.XX.SJO.EIF.XXXX.SX.XXX.XXX.IS.N.M"]
[{"$f":"\"INN.\"&EIGNIR!$B$3&C4106","v":{"$error":"#N/A"}},{"$f":"'Sundurliðun Útlán'!G188","v":0},".M.EUKULEL.XX.YFT.EIF.XXXX.SX.XXX.XXX.IS.N.M"]
[{"$f":"\"INN.\"&EIGNIR!$B$3&C4107","v":{"$error":"#N/A"}},{"$f":"'Sundurliðun Útlán'!G189","v":0},".M.EUKULEL.XX.SLY.EIF.XXXX.SX.XXX.XXX.IS.N.M"]
[{"$f":"\"INN.\"&EIGNIR!$B$3&C4108","v":{"$error":"#N/A"}},{"$f":"'Sundurliðun Útlán'!G190","v":0},".M.EUKULEL.XX.FHL.EIF.XXXX.SX.XXX.XXX.IS.N.M"]
[{"$f":"\"INN.\"&EIGNIR!$B$3&C4109","v":{"$error":"#N/A"}},{"$f":"'Sundurliðun Útlán'!G191","v":0},".M.EUKULEL.XX.INF.EIF.XXXX.SX.XXX.XXX.IS.N.M"]
[{"$f":"\"INN.\"&EIGNIR!$B$3&C4110","v":{"$error":"#N/A"}},{"$f":"'Sundurliðun Útlán'!G192","v":0},".M.EUKULEL.XX.TRY.EIF.XXXX.SX.XXX.XXX.IS.N.M"]
[{"$f":"\"INN.\"&EIGNIR!$B$3&C4111","v":{"$error":"#N/A"}},{"$f":"'Sundurliðun Útlán'!G193","v":0},".M.EUKULEL.XX.LIF.EIF.XXXX.SX.XXX.XXX.IS.N.M"]
[{"$f":"\"INN.\"&EIGNIR!$B$3&C4112","v":{"$error":"#N/A"}},{"$f":"'Sundurliðun Útlán'!G235","v":0},".M.EUKNFST.XX.ATV.EIF.XXXX.SX.XXX.XXX.IS.N.M"]
[{"$f":"\"INN.\"&EIGNIR!$B$3&C4113","v":{"$error":"#N/A"}},{"$f":"'Sundurliðun Útlán'!G236","v":0},".M.EUKNFST.XX.LAB.EIF.XXXX.SX.XXX.XXX.IS.N.M"]
[{"$f":"\"INN.\"&EIGNIR!$B$3&C4114","v":{"$error":"#N/A"}},{"$f":"'Sundurliðun Útlán'!G237","v":0},".M.EUKNFST.XX.SJA.EIF.XXXX.SX.XXX.XXX.IS.N.M"]
[{"$f":"\"INN.\"&EIGNIR!$B$3&C4115","v":{"$error":"#N/A"}},{"$f":"'Sundurliðun Útlán'!G238","v":0},".M.EUKNFST.XX.ILA.EIF.XXXX.SX.XXX.XXX.IS.N.M"]
[{"$f":"\"INN.\"&EIGNIR!$B$3&C4116","v":{"$error":"#N/A"}},{"$f":"'Sundurliðun Útlán'!G239","v":0},".M.EUKNFST.XX.ISJ.EIF.XXXX.SX.XXX.XXX.IS.N.M"]
[{"$f":"\"INN.\"&EIGNIR!$B$3&C4117","v":{"$error":"#N/A"}},{"$f":"'Sundurliðun Útlán'!G240","v":0},".M.EUKNFST.XX.IAN.EIF.XXXX.SX.XXX.XXX.IS.N.M"]
[{"$f":"\"INN.\"&EIGNIR!$B$3&C4118","v":{"$error":"#N/A"}},{"$f":"'Sundurliðun Útlán'!G241","v":0},".M.EUKNFST.XX.RAF.EIF.XXXX.SX.XXX.XXX.IS.N.M"]
[{"$f":"\"INN.\"&EIGNIR!$B$3&C4119","v":{"$error":"#N/A"}},{"$f":"'Sundurliðun Útlán'!G242","v":0},".M.EUKNFST.XX.MAN.EIF.XXXX.SX.XXX.XXX.IS.N.M"]
[{"$f":"\"INN.\"&EIGNIR!$B$3&C4120","v":{"$error":"#N/A"}},{"$f":"'Sundurliðun Útlán'!G243","v":0},".M.EUKNFST.XX.VEN.EIF.XXXX.SX.XXX.XXX.IS.N.M"]
[{"$f":"\"INN.\"&EIGNIR!$B$3&C4121","v":{"$error":"#N/A"}},{"$f":"'Sundurliðun Útlán'!G244","v":0},".M.EUKNFST.XX.SAG.EIF.XXXX.SX.XXX.XXX.IS.N.M"]
[{"$f":"\"INN.\"&EIGNIR!$B$3&C4122","v":{"$error":"#N/A"}},{"$f":"'Sundurliðun Útlán'!G245","v":0},".M.EUKNFST.XX.THF.EIF.XXXX.SX.XXX.XXX.IS.N.M"]
[{"$f":"\"INN.\"&EIGNIR!$B$3&C4123","v":{"$error":"#N/A"}},{"$f":"'Sundurliðun Útlán'!G246","v":0},".M.EUKNFST.XX.THH.EIF.XXXX.SX.XXX.XXX.IS.N.M"]
[{"$f":"\"INN.\"&EIGNIR!$B$3&C4124","v":{"$error":"#N/A"}},{"$f":"'Sundurliðun Útlán'!G247","v":0},".M.EUKNFST.XX.THA.EIF.XXXX.SX.XXX.XXX.IS.N.M"]
[{"$f":"\"INN.\"&EIGNIR!$B$3&C4125","v":{"$error":"#N/A"}},{"$f":"'Sundurliðun Útlán'!G248","v":0},".M.EUKNFST.XX.OFL.EIF.XXXX.SX.XXX.XXX.IS.N.M"]
[{"$f":"\"INN.\"&EIGNIR!$B$3&C4126","v":{"$error":"#N/A"}},{"$f":"'Sundurliðun Útlán'!G249","v":0},".M.EUKNFST.XX.FJA.EIF.XXXX.SX.XXX.XXX.IS.N.M"]
[{"$f":"\"INN.\"&EIGNIR!$B$3&C4127","v":{"$error":"#N/A"}},{"$f":"'Sundurliðun Útlán'!G250","v":0},".M.EUKNFST.XXINN.EIF.XXXX.SX.XXX.XXX.IS.N.M"]
[{"$f":"\"INN.\"&EIGNIR!$B$3&C4128","v":{"$error":"#N/A"}},{"$f":"'Sundurliðun Útlán'!G251","v":0},".M.EUKNFST.XX.SLI.EIF.XXXX.SX.XXX.XXX.IS.N.M"]
[{"$f":"\"INN.\"&EIGNIR!$B$3&C4129","v":{"$error":"#N/A"}},{"$f":"'Sundurliðun Útlán'!G252","v":0},".M.EUKNFST.XX.PEN.EIF.XXXX.SX.XXX.XXX.IS.N.M"]
[{"$f":"\"INN.\"&EIGNIR!$B$3&C4130","v":{"$error":"#N/A"}},{"$f":"'Sundurliðun Útlán'!G253","v":0},".M.EUKNFST.XX.SJO.EIF.XXXX.SX.XXX.XXX.IS.N.M"]
[{"$f":"\"INN.\"&EIGNIR!$B$3&C4131","v":{"$error":"#N/A"}},{"$f":"'Sundurliðun Útlán'!G254","v":0},".M.EUKNFST.XX.YFT.EIF.XXXX.SX.XXX.XXX.IS.N.M"]
[{"$f":"\"INN.\"&EIGNIR!$B$3&C4132","v":{"$error":"#N/A"}},{"$f":"'Sundurliðun Útlán'!G255","v":0},".M.EUKNFST.XX.SLY.EIF.XXXX.SX.XXX.XXX.IS.N.M"]
[{"$f":"\"INN.\"&EIGNIR!$B$3&C4133","v":{"$error":"#N/A"}},{"$f":"'Sundurliðun Útlán'!G256","v":0},".M.EUKNFST.XX.FHL.EIF.XXXX.SX.XXX.XXX.IS.N.M"]
[{"$f":"\"INN.\"&EIGNIR!$B$3&C4134","v":{"$error":"#N/A"}},{"$f":"'Sundurliðun Útlán'!G257","v":0},".M.EUKNFST.XX.INF.EIF.XXXX.SX.XXX.XXX.IS.N.M"]
[{"$f":"\"INN.\"&EIGNIR!$B$3&C4135","v":{"$error":"#N/A"}},{"$f":"'Sundurliðun Útlán'!G258","v":0},".M.EUKNFST.XX.TRY.EIF.XXXX.SX.XXX.XXX.IS.N.M"]
[{"$f":"\"INN.\"&EIGNIR!$B$3&C4136","v":{"$error":"#N/A"}},{"$f":"'Sundurliðun Útlán'!G259","v":0},".M.EUKNFST.XX.LIF.EIF.XXXX.SX.XXX.XXX.IS.N.M"]
[{"$f":"\"INN.\"&EIGNIR!$B$3&C4137","v":{"$error":"#N/A"}},{"$f":"'Sundurliðun Útlán'!H5","v":0},".M.EUK$$$$.XX.$$$.XXX.XXXX.SX.XXX.ISK.IS.N.M","//Sundurliðun útlána, ISK"]
[{"$f":"\"INN.\"&EIGNIR!$B$3&C4138","v":{"$error":"#N/A"}},{"$f":"'Sundurliðun Útlán'!H6","v":0},".M.EUKIT$$.XX.$$$.XXX.XXXX.SX.XXX.ISK.IS.N.M"]
[{"$f":"\"INN.\"&EIGNIR!$B$3&C4139","v":{"$error":"#N/A"}},{"$f":"'Sundurliðun Útlán'!H7","v":0},".M.EUKITII.XX.XXX.XXX.XXXX.SX.XXX.ISK.IS.N.M"]
[{"$f":"\"INN.\"&EIGNIR!$B$3&C4140","v":{"$error":"#N/A"}},{"$f":"'Sundurliðun Útlán'!H8","v":0},".M.EUKITIE.XX.XXX.XXX.XXXX.SX.XXX.ISK.IS.N.M"]
[{"$f":"\"INN.\"&EIGNIR!$B$3&C4141","v":{"$error":"#N/A"}},{"$f":"'Sundurliðun Útlán'!H9","v":0},".M.EUKITIT.XX.XXX.XXX.XXXX.SX.XXX.ISK.IS.N.M"]
[{"$f":"\"INN.\"&EIGNIR!$B$3&C4142","v":{"$error":"#N/A"}},{"$f":"'Sundurliðun Útlán'!H10","v":0},".M.EUKUL$$.XX.$$$.XXX.XXXX.SX.XXX.ISK.IS.N.M"]
[{"$f":"\"INN.\"&EIGNIR!$B$3&C4143","v":{"$error":"#N/A"}},{"$f":"'Sundurliðun Útlán'!H11","v":0},".M.EUKULIA.XX.$$$.XXX.XXXX.SX.XXX.ISK.IS.N.M"]
[{"$f":"\"INN.\"&EIGNIR!$B$3&C4144","v":{"$error":"#N/A"}},{"$f":"'Sundurliðun Útlán'!H12","v":0},".M.EUKULIA.XX.ATV.XXX.XXXX.SX.XXX.ISK.IS.N.M"]
[{"$f":"\"INN.\"&EIGNIR!$B$3&C4145","v":{"$error":"#N/A"}},{"$f":"'Sundurliðun Útlán'!H26","v":0},".M.EUKULIA.XX.FJA.XXX.XXXX.SX.XXX.ISK.IS.N.M"]
[{"$f":"\"INN.\"&EIGNIR!$B$3&C4146","v":{"$error":"#N/A"}},{"$f":"'Sundurliðun Útlán'!H27","v":0},".M.EUKULIA.XX.INN.XXX.XXXX.SX.XXX.ISK.IS.N.M"]
[{"$f":"\"INN.\"&EIGNIR!$B$3&C4147","v":{"$error":"#N/A"}},{"$f":"'Sundurliðun Útlán'!H28","v":0},".M.EUKULIA.XX.SLI.XXX.XXXX.SX.XXX.ISK.IS.N.M"]
[{"$f":"\"INN.\"&EIGNIR!$B$3&C4148","v":{"$error":"#N/A"}},{"$f":"'Sundurliðun Útlán'!H29","v":0},".M.EUKULIA.XX.PEN.XXX.XXXX.SX.XXX.ISK.IS.N.M"]
[{"$f":"\"INN.\"&EIGNIR!$B$3&C4149","v":{"$error":"#N/A"}},{"$f":"'Sundurliðun Útlán'!H30","v":0},".M.EUKULIA.XX.SJO.XXX.XXXX.SX.XXX.ISK.IS.N.M"]
[{"$f":"\"INN.\"&EIGNIR!$B$3&C4150","v":{"$error":"#N/A"}},{"$f":"'Sundurliðun Útlán'!H31","v":0},".M.EUKULIA.XX.YFT.XXX.XXXX.SX.XXX.ISK.IS.N.M"]
[{"$f":"\"INN.\"&EIGNIR!$B$3&C4151","v":{"$error":"#N/A"}},{"$f":"'Sundurliðun Útlán'!H32","v":0},".M.EUKULIA.XX.SLY.XXX.XXXX.SX.XXX.ISK.IS.N.M"]
[{"$f":"\"INN.\"&EIGNIR!$B$3&C4152","v":{"$error":"#N/A"}},{"$f":"'Sundurliðun Útlán'!H33","v":0},".M.EUKULIA.XX.FHL.XXX.XXXX.SX.XXX.ISK.IS.N.M"]
[{"$f":"\"INN.\"&EIGNIR!$B$3&C4153","v":{"$error":"#N/A"}},{"$f":"'Sundurliðun Útlán'!H34","v":0},".M.EUKULIA.XX.INF.XXX.XXXX.SX.XXX.ISK.IS.N.M"]
[{"$f":"\"INN.\"&EIGNIR!$B$3&C4154","v":{"$error":"#N/A"}},{"$f":"'Sundurliðun Útlán'!H35","v":0},".M.EUKULIA.XX.TRY.XXX.XXXX.SX.XXX.ISK.IS.N.M"]
[{"$f":"\"INN.\"&EIGNIR!$B$3&C4155","v":{"$error":"#N/A"}},{"$f":"'Sundurliðun Útlán'!H36","v":0},".M.EUKULIA.XX.LIF.XXX.XXXX.SX.XXX.ISK.IS.N.M"]
[{"$f":"\"INN.\"&EIGNIR!$B$3&C4156","v":{"$error":"#N/A"}},{"$f":"'Sundurliðun Útlán'!H37","v":0},".M.EUKULIA.XX.OPI.XXX.XXXX.SX.XXX.ISK.IS.N.M"]
[{"$f":"\"INN.\"&EIGNIR!$B$3&C4157","v":{"$error":"#N/A"}},{"$f":"'Sundurliðun Útlán'!H38","v":0},".M.EUKULIA.XX.RSS.XXX.XXXX.SX.XXX.ISK.IS.N.M"]
[{"$f":"\"INN.\"&EIGNIR!$B$3&C4158","v":{"$error":"#N/A"}},{"$f":"'Sundurliðun Útlán'!H39","v":0},".M.EUKULIA.XX.BAJ.XXX.XXXX.SX.XXX.ISK.IS.N.M"]
[{"$f":"\"INN.\"&EIGNIR!$B$3&C4159","v":{"$error":"#N/A"}},{"$f":"'Sundurliðun Útlán'!H40","v":0},".M.EUKULIA.XX.EIN.XXX.XXXX.SX.XXX.ISK.IS.N.M"]
[{"$f":"\"INN.\"&EIGNIR!$B$3&C4160","v":{"$error":"#N/A"}},{"$f":"'Sundurliðun Útlán'!H41","v":0},".M.EUKULIA.XX.NPH.XXX.XXXX.SX.XXX.ISK.IS.N.M"]
[{"$f":"\"INN.\"&EIGNIR!$B$3&C4161","v":{"$error":"#N/A"}},{"$f":"'Sundurliðun Útlán'!H42","v":0},".M.EUKULYL.XX.$$$.XXX.XXXX.SX.XXX.ISK.IS.N.M"]
[{"$f":"\"INN.\"&EIGNIR!$B$3&C4162","v":{"$error":"#N/A"}},{"$f":"'Sundurliðun Útlán'!H43","v":0},".M.EUKULYL.XX.ATV.XXX.XXXX.SX.XXX.ISK.IS.N.M"]
[{"$f":"\"INN.\"&EIGNIR!$B$3&C4163","v":{"$error":"#N/A"}},{"$f":"'Sundurliðun Útlán'!H57","v":0},".M.EUKULYL.XX.FJA.XXX.XXXX.SX.XXX.ISK.IS.N.M"]
[{"$f":"\"INN.\"&EIGNIR!$B$3&C4164","v":{"$error":"#N/A"}},{"$f":"'Sundurliðun Útlán'!H58","v":0},".M.EUKULYL.XX.INN.XXX.XXXX.SX.XXX.ISK.IS.N.M"]
[{"$f":"\"INN.\"&EIGNIR!$B$3&C4165","v":{"$error":"#N/A"}},{"$f":"'Sundurliðun Útlán'!H59","v":0},".M.EUKULYL.XX.SLI.XXX.XXXX.SX.XXX.ISK.IS.N.M"]
[{"$f":"\"INN.\"&EIGNIR!$B$3&C4166","v":{"$error":"#N/A"}},{"$f":"'Sundurliðun Útlán'!H60","v":0},".M.EUKULYL.XX.PEN.XXX.XXXX.SX.XXX.ISK.IS.N.M"]
[{"$f":"\"INN.\"&EIGNIR!$B$3&C4167","v":{"$error":"#N/A"}},{"$f":"'Sundurliðun Útlán'!H61","v":0},".M.EUKULYL.XX.SJO.XXX.XXXX.SX.XXX.ISK.IS.N.M"]
[{"$f":"\"INN.\"&EIGNIR!$B$3&C4168","v":{"$error":"#N/A"}},{"$f":"'Sundurliðun Útlán'!H62","v":0},".M.EUKULYL.XX.YFT.XXX.XXXX.SX.XXX.ISK.IS.N.M"]
[{"$f":"\"INN.\"&EIGNIR!$B$3&C4169","v":{"$error":"#N/A"}},{"$f":"'Sundurliðun Útlán'!H63","v":0},".M.EUKULYL.XX.SLY.XXX.XXXX.SX.XXX.ISK.IS.N.M"]
[{"$f":"\"INN.\"&EIGNIR!$B$3&C4170","v":{"$error":"#N/A"}},{"$f":"'Sundurliðun Útlán'!H64","v":0},".M.EUKULYL.XX.FHL.XXX.XXXX.SX.XXX.ISK.IS.N.M"]
[{"$f":"\"INN.\"&EIGNIR!$B$3&C4171","v":{"$error":"#N/A"}},{"$f":"'Sundurliðun Útlán'!H65","v":0},".M.EUKULYL.XX.INF.XXX.XXXX.SX.XXX.ISK.IS.N.M"]
[{"$f":"\"INN.\"&EIGNIR!$B$3&C4172","v":{"$error":"#N/A"}},{"$f":"'Sundurliðun Útlán'!H66","v":0},".M.EUKULYL.XX.TRY.XXX.XXXX.SX.XXX.ISK.IS.N.M"]
[{"$f":"\"INN.\"&EIGNIR!$B$3&C4173","v":{"$error":"#N/A"}},{"$f":"'Sundurliðun Útlán'!H67","v":0},".M.EUKULYL.XX.LIF.XXX.XXXX.SX.XXX.ISK.IS.N.M"]
[{"$f":"\"INN.\"&EIGNIR!$B$3&C4174","v":{"$error":"#N/A"}},{"$f":"'Sundurliðun Útlán'!H68","v":0},".M.EUKULYL.XX.OPI.XXX.XXXX.SX.XXX.ISK.IS.N.M"]
[{"$f":"\"INN.\"&EIGNIR!$B$3&C4175","v":{"$error":"#N/A"}},{"$f":"'Sundurliðun Útlán'!H69","v":0},".M.EUKULYL.XX.RSS.XXX.XXXX.SX.XXX.ISK.IS.N.M"]
[{"$f":"\"INN.\"&EIGNIR!$B$3&C4176","v":{"$error":"#N/A"}},{"$f":"'Sundurliðun Útlán'!H70","v":0},".M.EUKULYL.XX.BAJ.XXX.XXXX.SX.XXX.ISK.IS.N.M"]
[{"$f":"\"INN.\"&EIGNIR!$B$3&C4177","v":{"$error":"#N/A"}},{"$f":"'Sundurliðun Útlán'!H71","v":0},".M.EUKULYL.XX.EIN.XXX.XXXX.SX.XXX.ISK.IS.N.M"]
[{"$f":"\"INN.\"&EIGNIR!$B$3&C4178","v":{"$error":"#N/A"}},{"$f":"'Sundurliðun Útlán'!H72","v":0},".M.EUKULYL.XX.NPH.XXX.XXXX.SX.XXX.ISK.IS.N.M"]
[{"$f":"\"INN.\"&EIGNIR!$B$3&C4179","v":{"$error":"#N/A"}},{"$f":"'Sundurliðun Útlán'!H73","v":0},".M.EUKULVX.XX.$$$.XXX.XXXX.SX.XXX.ISK.IS.N.M"]
[{"$f":"\"INN.\"&EIGNIR!$B$3&C4180","v":{"$error":"#N/A"}},{"$f":"'Sundurliðun Útlán'!H74","v":0},".M.EUKULVX.XX.ATV.XXX.XXXX.SX.XXX.ISK.IS.N.M"]
[{"$f":"\"INN.\"&EIGNIR!$B$3&C4181","v":{"$error":"#N/A"}},{"$f":"'Sundurliðun Útlán'!H88","v":0},".M.EUKULVX.XX.FJA.XXX.XXXX.SX.XXX.ISK.IS.N.M"]
[{"$f":"\"INN.\"&EIGNIR!$B$3&C4182","v":{"$error":"#N/A"}},{"$f":"'Sundurliðun Útlán'!H89","v":0},".M.EUKULVX.XX.INN.XXX.XXXX.SX.XXX.ISK.IS.N.M"]
[{"$f":"\"INN.\"&EIGNIR!$B$3&C4183","v":{"$error":"#N/A"}},{"$f":"'Sundurliðun Útlán'!H90","v":0},".M.EUKULVX.XX.SLI.XXX.XXXX.SX.XXX.ISK.IS.N.M"]
[{"$f":"\"INN.\"&EIGNIR!$B$3&C4184","v":{"$error":"#N/A"}},{"$f":"'Sundurliðun Útlán'!H91","v":0},".M.EUKULVX.XX.PEN.XXX.XXXX.SX.XXX.ISK.IS.N.M"]
[{"$f":"\"INN.\"&EIGNIR!$B$3&C4185","v":{"$error":"#N/A"}},{"$f":"'Sundurliðun Útlán'!H92","v":0},".M.EUKULVX.XX.SJO.XXX.XXXX.SX.XXX.ISK.IS.N.M"]
[{"$f":"\"INN.\"&EIGNIR!$B$3&C4186","v":{"$error":"#N/A"}},{"$f":"'Sundurliðun Útlán'!H93","v":0},".M.EUKULVX.XX.YFT.XXX.XXXX.SX.XXX.ISK.IS.N.M"]
[{"$f":"\"INN.\"&EIGNIR!$B$3&C4187","v":{"$error":"#N/A"}},{"$f":"'Sundurliðun Útlán'!H94","v":0},".M.EUKULVX.XX.SLY.XXX.XXXX.SX.XXX.ISK.IS.N.M"]
[{"$f":"\"INN.\"&EIGNIR!$B$3&C4188","v":{"$error":"#N/A"}},{"$f":"'Sundurliðun Útlán'!H95","v":0},".M.EUKULVX.XX.FHL.XXX.XXXX.SX.XXX.ISK.IS.N.M"]
[{"$f":"\"INN.\"&EIGNIR!$B$3&C4189","v":{"$error":"#N/A"}},{"$f":"'Sundurliðun Útlán'!H96","v":0},".M.EUKULVX.XX.INF.XXX.XXXX.SX.XXX.ISK.IS.N.M"]
[{"$f":"\"INN.\"&EIGNIR!$B$3&C4190","v":{"$error":"#N/A"}},{"$f":"'Sundurliðun Útlán'!H97","v":0},".M.EUKULVX.XX.TRY.XXX.XXXX.SX.XXX.ISK.IS.N.M"]
[{"$f":"\"INN.\"&EIGNIR!$B$3&C4191","v":{"$error":"#N/A"}},{"$f":"'Sundurliðun Útlán'!H98","v":0},".M.EUKULVX.XX.LIF.XXX.XXXX.SX.XXX.ISK.IS.N.M"]
[{"$f":"\"INN.\"&EIGNIR!$B$3&C4192","v":{"$error":"#N/A"}},{"$f":"'Sundurliðun Útlán'!H99","v":0},".M.EUKULVX.XX.OPI.XXX.XXXX.SX.XXX.ISK.IS.N.M"]
[{"$f":"\"INN.\"&EIGNIR!$B$3&C4193","v":{"$error":"#N/A"}},{"$f":"'Sundurliðun Útlán'!H100","v":0},".M.EUKULVX.XX.RSS.XXX.XXXX.SX.XXX.ISK.IS.N.M"]
[{"$f":"\"INN.\"&EIGNIR!$B$3&C4194","v":{"$error":"#N/A"}},{"$f":"'Sundurliðun Útlán'!H101","v":0},".M.EUKULVX.XX.BAJ.XXX.XXXX.SX.XXX.ISK.IS.N.M"]
[{"$f":"\"INN.\"&EIGNIR!$B$3&C4195","v":{"$error":"#N/A"}},{"$f":"'Sundurliðun Útlán'!H102","v":0},".M.EUKULVX.XX.EIN.XXX.XXXX.SX.XXX.ISK.IS.N.M"]
[{"$f":"\"INN.\"&EIGNIR!$B$3&C4196","v":{"$error":"#N/A"}},{"$f":"'Sundurliðun Útlán'!H103","v":0},".M.EUKULVX.XX.NPH.XXX.XXXX.SX.XXX.ISK.IS.N.M"]
[{"$f":"\"INN.\"&EIGNIR!$B$3&C4197","v":{"$error":"#N/A"}},{"$f":"'Sundurliðun Útlán'!H104","v":0},".M.EUKULVU.XX.$$$.XXX.XXXX.SV.XXX.ISK.IS.N.M"]
[{"$f":"\"INN.\"&EIGNIR!$B$3&C4198","v":{"$error":"#N/A"}},{"$f":"'Sundurliðun Útlán'!H105","v":0},".M.EUKULVU.XX.ATV.XXX.XXXX.SV.XXX.ISK.IS.N.M"]
[{"$f":"\"INN.\"&EIGNIR!$B$3&C4199","v":{"$error":"#N/A"}},{"$f":"'Sundurliðun Útlán'!H119","v":0},".M.EUKULVU.XX.FJA.XXX.XXXX.SV.XXX.ISK.IS.N.M"]
[{"$f":"\"INN.\"&EIGNIR!$B$3&C4200","v":{"$error":"#N/A"}},{"$f":"'Sundurliðun Útlán'!H120","v":0},".M.EUKULVU.XX.INN.XXX.XXXX.SV.XXX.ISK.IS.N.M"]
[{"$f":"\"INN.\"&EIGNIR!$B$3&C4201","v":{"$error":"#N/A"}},{"$f":"'Sundurliðun Útlán'!H121","v":0},".M.EUKULVU.XX.SLI.XXX.XXXX.SV.XXX.ISK.IS.N.M"]
[{"$f":"\"INN.\"&EIGNIR!$B$3&C4202","v":{"$error":"#N/A"}},{"$f":"'Sundurliðun Útlán'!H122","v":0},".M.EUKULVU.XX.PEN.XXX.XXXX.SV.XXX.ISK.IS.N.M"]
[{"$f":"\"INN.\"&EIGNIR!$B$3&C4203","v":{"$error":"#N/A"}},{"$f":"'Sundurliðun Útlán'!H123","v":0},".M.EUKULVU.XX.SJO.XXX.XXXX.SV.XXX.ISK.IS.N.M"]
[{"$f":"\"INN.\"&EIGNIR!$B$3&C4204","v":{"$error":"#N/A"}},{"$f":"'Sundurliðun Útlán'!H124","v":0},".M.EUKULVU.XX.YFT.XXX.XXXX.SV.XXX.ISK.IS.N.M"]
[{"$f":"\"INN.\"&EIGNIR!$B$3&C4205","v":{"$error":"#N/A"}},{"$f":"'Sundurliðun Útlán'!H125","v":0},".M.EUKULVU.XX.SLY.XXX.XXXX.SV.XXX.ISK.IS.N.M"]
[{"$f":"\"INN.\"&EIGNIR!$B$3&C4206","v":{"$error":"#N/A"}},{"$f":"'Sundurliðun Útlán'!H126","v":0},".M.EUKULVU.XX.FHL.XXX.XXXX.SV.XXX.ISK.IS.N.M"]
[{"$f":"\"INN.\"&EIGNIR!$B$3&C4207","v":{"$error":"#N/A"}},{"$f":"'Sundurliðun Útlán'!H127","v":0},".M.EUKULVU.XX.INF.XXX.XXXX.SV.XXX.ISK.IS.N.M"]
[{"$f":"\"INN.\"&EIGNIR!$B$3&C4208","v":{"$error":"#N/A"}},{"$f":"'Sundurliðun Útlán'!H128","v":0},".M.EUKULVU.XX.TRY.XXX.XXXX.SV.XXX.ISK.IS.N.M"]
[{"$f":"\"INN.\"&EIGNIR!$B$3&C4209","v":{"$error":"#N/A"}},{"$f":"'Sundurliðun Útlán'!H129","v":0},".M.EUKULVU.XX.LIF.XXX.XXXX.SV.XXX.ISK.IS.N.M"]
[{"$f":"\"INN.\"&EIGNIR!$B$3&C4210","v":{"$error":"#N/A"}},{"$f":"'Sundurliðun Útlán'!H130","v":0},".M.EUKULVU.XX.OPI.XXX.XXXX.SV.XXX.ISK.IS.N.M"]
[{"$f":"\"INN.\"&EIGNIR!$B$3&C4211","v":{"$error":"#N/A"}},{"$f":"'Sundurliðun Útlán'!H131","v":0},".M.EUKULVU.XX.RSS.XXX.XXXX.SV.XXX.ISK.IS.N.M"]
[{"$f":"\"INN.\"&EIGNIR!$B$3&C4212","v":{"$error":"#N/A"}},{"$f":"'Sundurliðun Útlán'!H132","v":0},".M.EUKULVU.XX.BAJ.XXX.XXXX.SV.XXX.ISK.IS.N.M"]
[{"$f":"\"INN.\"&EIGNIR!$B$3&C4213","v":{"$error":"#N/A"}},{"$f":"'Sundurliðun Útlán'!H133","v":0},".M.EUKULVU.XX.EIB.XXX.XXXX.SV.XXX.ISK.IS.N.M"]
[{"$f":"\"INN.\"&EIGNIR!$B$3&C4214","v":{"$error":"#N/A"}},{"$f":"'Sundurliðun Útlán'!H134","v":0},".M.EUKULVU.XX.ANN.XXX.XXXX.SV.XXX.ISK.IS.N.M"]
[{"$f":"\"INN.\"&EIGNIR!$B$3&C4215","v":{"$error":"#N/A"}},{"$f":"'Sundurliðun Útlán'!H135","v":0},".M.EUKULVU.XX.NPH.XXX.XXXX.SV.XXX.ISK.IS.N.M"]
[{"$f":"\"INN.\"&EIGNIR!$B$3&C4216","v":{"$error":"#N/A"}},{"$f":"'Sundurliðun Útlán'!H136","v":0},".M.EUKULOU.XX.$$$.XXX.XXXX.SX.XXX.ISK.IS.N.M"]
[{"$f":"\"INN.\"&EIGNIR!$B$3&C4217","v":{"$error":"#N/A"}},{"$f":"'Sundurliðun Útlán'!H137","v":0},".M.EUKULOU.XX.ATV.XXX.XXXX.SX.XXX.ISK.IS.N.M"]
[{"$f":"\"INN.\"&EIGNIR!$B$3&C4218","v":{"$error":"#N/A"}},{"$f":"'Sundurliðun Útlán'!H151","v":0},".M.EUKULOU.XX.FJA.XXX.XXXX.SX.XXX.ISK.IS.N.M"]
[{"$f":"\"INN.\"&EIGNIR!$B$3&C4219","v":{"$error":"#N/A"}},{"$f":"'Sundurliðun Útlán'!H152","v":0},".M.EUKULOU.XX.INN.XXX.XXXX.SX.XXX.ISK.IS.N.M"]
[{"$f":"\"INN.\"&EIGNIR!$B$3&C4220","v":{"$error":"#N/A"}},{"$f":"'Sundurliðun Útlán'!H153","v":0},".M.EUKULOU.XX.SLI.XXX.XXXX.SX.XXX.ISK.IS.N.M"]
[{"$f":"\"INN.\"&EIGNIR!$B$3&C4221","v":{"$error":"#N/A"}},{"$f":"'Sundurliðun Útlán'!H154","v":0},".M.EUKULOU.XX.PEN.XXX.XXXX.SX.XXX.ISK.IS.N.M"]
[{"$f":"\"INN.\"&EIGNIR!$B$3&C4222","v":{"$error":"#N/A"}},{"$f":"'Sundurliðun Útlán'!H155","v":0},".M.EUKULOU.XX.SJO.XXX.XXXX.SX.XXX.ISK.IS.N.M"]
[{"$f":"\"INN.\"&EIGNIR!$B$3&C4223","v":{"$error":"#N/A"}},{"$f":"'Sundurliðun Útlán'!H156","v":0},".M.EUKULOU.XX.YFT.XXX.XXXX.SX.XXX.ISK.IS.N.M"]
[{"$f":"\"INN.\"&EIGNIR!$B$3&C4224","v":{"$error":"#N/A"}},{"$f":"'Sundurliðun Útlán'!H157","v":0},".M.EUKULOU.XX.SLY.XXX.XXXX.SX.XXX.ISK.IS.N.M"]
[{"$f":"\"INN.\"&EIGNIR!$B$3&C4225","v":{"$error":"#N/A"}},{"$f":"'Sundurliðun Útlán'!H158","v":0},".M.EUKULOU.XX.FHL.XXX.XXXX.SX.XXX.ISK.IS.N.M"]
[{"$f":"\"INN.\"&EIGNIR!$B$3&C4226","v":{"$error":"#N/A"}},{"$f":"'Sundurliðun Útlán'!H159","v":0},".M.EUKULOU.XX.INF.XXX.XXXX.SX.XXX.ISK.IS.N.M"]
[{"$f":"\"INN.\"&EIGNIR!$B$3&C4227","v":{"$error":"#N/A"}},{"$f":"'Sundurliðun Útlán'!H160","v":0},".M.EUKULOU.XX.TRY.XXX.XXXX.SX.XXX.ISK.IS.N.M"]
[{"$f":"\"INN.\"&EIGNIR!$B$3&C4228","v":{"$error":"#N/A"}},{"$f":"'Sundurliðun Útlán'!H161","v":0},".M.EUKULOU.XX.LIF.XXX.XXXX.SX.XXX.ISK.IS.N.M"]
[{"$f":"\"INN.\"&EIGNIR!$B$3&C4229","v":{"$error":"#N/A"}},{"$f":"'Sundurliðun Útlán'!H162","v":0},".M.EUKULOU.XX.OPI.XXX.XXXX.SX.XXX.ISK.IS.N.M"]
[{"$f":"\"INN.\"&EIGNIR!$B$3&C4230","v":{"$error":"#N/A"}},{"$f":"'Sundurliðun Útlán'!H163","v":0},".M.EUKULOU.XX.RSS.XXX.XXXX.SX.XXX.ISK.IS.N.M"]
[{"$f":"\"INN.\"&EIGNIR!$B$3&C4231","v":{"$error":"#N/A"}},{"$f":"'Sundurliðun Útlán'!H164","v":0},".M.EUKULOU.XX.BAJ.XXX.XXXX.SX.XXX.ISK.IS.N.M"]
[{"$f":"\"INN.\"&EIGNIR!$B$3&C4232","v":{"$error":"#N/A"}},{"$f":"'Sundurliðun Útlán'!H165","v":0},".M.EUKULOU.XX.EIB.XXX.XXXX.SX.XXX.ISK.IS.N.M"]
[{"$f":"\"INN.\"&EIGNIR!$B$3&C4233","v":{"$error":"#N/A"}},{"$f":"'Sundurliðun Útlán'!H166","v":0},".M.EUKULOU.XX.ANN.XXX.XXXX.SX.XXX.ISK.IS.N.M"]
[{"$f":"\"INN.\"&EIGNIR!$B$3&C4234","v":{"$error":"#N/A"}},{"$f":"'Sundurliðun Útlán'!H167","v":0},".M.EUKULOU.XX.NPH.XXX.XXXX.SX.XXX.ISK.IS.N.M"]
[{"$f":"\"INN.\"&EIGNIR!$B$3&C4235","v":{"$error":"#N/A"}},{"$f":"'Sundurliðun Útlán'!H168","v":0},".M.EUKULEL.XX.$$$.XXX.XXXX.SX.XXX.ISK.IS.N.M"]
[{"$f":"\"INN.\"&EIGNIR!$B$3&C4236","v":{"$error":"#N/A"}},{"$f":"'Sundurliðun Útlán'!H169","v":0},".M.EUKULEL.XX.ATV.XXX.XXXX.SX.XXX.ISK.IS.N.M"]
[{"$f":"\"INN.\"&EIGNIR!$B$3&C4237","v":{"$error":"#N/A"}},{"$f":"'Sundurliðun Útlán'!H183","v":0},".M.EUKULEL.XX.FJA.XXX.XXXX.SX.XXX.ISK.IS.N.M"]
[{"$f":"\"INN.\"&EIGNIR!$B$3&C4238","v":{"$error":"#N/A"}},{"$f":"'Sundurliðun Útlán'!H184","v":0},".M.EUKULEL.XX.INN.XXX.XXXX.SX.XXX.ISK.IS.N.M"]
[{"$f":"\"INN.\"&EIGNIR!$B$3&C4239","v":{"$error":"#N/A"}},{"$f":"'Sundurliðun Útlán'!H185","v":0},".M.EUKULEL.XX.SLI.XXX.XXXX.SX.XXX.ISK.IS.N.M"]
[{"$f":"\"INN.\"&EIGNIR!$B$3&C4240","v":{"$error":"#N/A"}},{"$f":"'Sundurliðun Útlán'!H186","v":0},".M.EUKULEL.XX.PEN.XXX.XXXX.SX.XXX.ISK.IS.N.M"]
[{"$f":"\"INN.\"&EIGNIR!$B$3&C4241","v":{"$error":"#N/A"}},{"$f":"'Sundurliðun Útlán'!H187","v":0},".M.EUKULEL.XX.SJO.XXX.XXXX.SX.XXX.ISK.IS.N.M"]
[{"$f":"\"INN.\"&EIGNIR!$B$3&C4242","v":{"$error":"#N/A"}},{"$f":"'Sundurliðun Útlán'!H188","v":0},".M.EUKULEL.XX.YFT.XXX.XXXX.SX.XXX.ISK.IS.N.M"]
[{"$f":"\"INN.\"&EIGNIR!$B$3&C4243","v":{"$error":"#N/A"}},{"$f":"'Sundurliðun Útlán'!H189","v":0},".M.EUKULEL.XX.SLY.XXX.XXXX.SX.XXX.ISK.IS.N.M"]
[{"$f":"\"INN.\"&EIGNIR!$B$3&C4244","v":{"$error":"#N/A"}},{"$f":"'Sundurliðun Útlán'!H190","v":0},".M.EUKULEL.XX.FHL.XXX.XXXX.SX.XXX.ISK.IS.N.M"]
[{"$f":"\"INN.\"&EIGNIR!$B$3&C4245","v":{"$error":"#N/A"}},{"$f":"'Sundurliðun Útlán'!H191","v":0},".M.EUKULEL.XX.INF.XXX.XXXX.SX.XXX.ISK.IS.N.M"]
[{"$f":"\"INN.\"&EIGNIR!$B$3&C4246","v":{"$error":"#N/A"}},{"$f":"'Sundurliðun Útlán'!H192","v":0},".M.EUKULEL.XX.TRY.XXX.XXXX.SX.XXX.ISK.IS.N.M"]
[{"$f":"\"INN.\"&EIGNIR!$B$3&C4247","v":{"$error":"#N/A"}},{"$f":"'Sundurliðun Útlán'!H193","v":0},".M.EUKULEL.XX.LIF.XXX.XXXX.SX.XXX.ISK.IS.N.M"]
[{"$f":"\"INN.\"&EIGNIR!$B$3&C4248","v":{"$error":"#N/A"}},{"$f":"'Sundurliðun Útlán'!H194","v":0},".M.EUKULEL.XX.OPI.XXX.XXXX.SX.XXX.ISK.IS.N.M"]
[{"$f":"\"INN.\"&EIGNIR!$B$3&C4249","v":{"$error":"#N/A"}},{"$f":"'Sundurliðun Útlán'!H195","v":0},".M.EUKULEL.XX.RSS.XXX.XXXX.SX.XXX.ISK.IS.N.M"]
[{"$f":"\"INN.\"&EIGNIR!$B$3&C4250","v":{"$error":"#N/A"}},{"$f":"'Sundurliðun Útlán'!H196","v":0},".M.EUKULEL.XX.BAJ.XXX.XXXX.SX.XXX.ISK.IS.N.M"]
[{"$f":"\"INN.\"&EIGNIR!$B$3&C4251","v":{"$error":"#N/A"}},{"$f":"'Sundurliðun Útlán'!H197","v":0},".M.EUKULEL.XX.EIN.XXX.XXXX.SX.XXX.ISK.IS.N.M"]
[{"$f":"\"INN.\"&EIGNIR!$B$3&C4252","v":{"$error":"#N/A"}},{"$f":"'Sundurliðun Útlán'!H198","v":0},".M.EUKULEL.XX.NPH.XXX.XXXX.SX.XXX.ISK.IS.N.M"]
[{"$f":"\"INN.\"&EIGNIR!$B$3&C4253","v":{"$error":"#N/A"}},{"$f":"'Sundurliðun Útlán'!H199","v":0},".M.EUKULUE.XX.$$$.XXX.XXXX.SX.XXX.ISK.IS.N.M"]
[{"$f":"\"INN.\"&EIGNIR!$B$3&C4254","v":{"$error":"#N/A"}},{"$f":"'Sundurliðun Útlán'!H200","v":0},".M.EUKULEH.XX.ERL.XXX.XXXX.SX.XXX.ISK.IS.N.M"]
[{"$f":"\"INN.\"&EIGNIR!$B$3&C4255","v":{"$error":"#N/A"}},{"$f":"'Sundurliðun Útlán'!H202","v":0},".M.EUKULEH.XX.ERI.XXX.XXXX.SX.XXX.ISK.IS.N.M"]
[{"$f":"\"INN.\"&EIGNIR!$B$3&C4256","v":{"$error":"#N/A"}},{"$f":"'Sundurliðun Útlán'!H205","v":0},".M.EUKULEH.XX.ERF.XXX.XXXX.SX.XXX.ISK.IS.N.M"]
[{"$f":"\"INN.\"&EIGNIR!$B$3&C4257","v":{"$error":"#N/A"}},{"$f":"'Sundurliðun Útlán'!H207","v":0},".M.EUKULEH.XX.ERA.XXX.XXXX.SX.XXX.ISK.IS.N.M"]
[{"$f":"\"INN.\"&EIGNIR!$B$3&C4258","v":{"$error":"#N/A"}},{"$f":"'Sundurliðun Útlán'!H208","v":0},".M.EUKULED.XX.ERL.XXX.XXXX.SX.XXX.ISK.IS.N.M"]
[{"$f":"\"INN.\"&EIGNIR!$B$3&C4259","v":{"$error":"#N/A"}},{"$f":"'Sundurliðun Útlán'!H210","v":0},".M.EUKULED.XX.ERI.XXX.XXXX.SX.XXX.ISK.IS.N.M"]
[{"$f":"\"INN.\"&EIGNIR!$B$3&C4260","v":{"$error":"#N/A"}},{"$f":"'Sundurliðun Útlán'!H213","v":0},".M.EUKULED.XX.ERF.XXX.XXXX.SX.XXX.ISK.IS.N.M"]
[{"$f":"\"INN.\"&EIGNIR!$B$3&C4261","v":{"$error":"#N/A"}},{"$f":"'Sundurliðun Útlán'!H215","v":0},".M.EUKULED.XX.ERA.XXX.XXXX.SX.XXX.ISK.IS.N.M"]
[{"$f":"\"INN.\"&EIGNIR!$B$3&C4262","v":{"$error":"#N/A"}},{"$f":"'Sundurliðun Útlán'!H216","v":0},".M.EUKULFF.XX.ERL.XXX.XXXX.SX.XXX.ISK.IS.N.M"]
[{"$f":"\"INN.\"&EIGNIR!$B$3&C4263","v":{"$error":"#N/A"}},{"$f":"'Sundurliðun Útlán'!H218","v":0},".M.EUKULFF.XX.ERI.XXX.XXXX.SX.XXX.ISK.IS.N.M"]
[{"$f":"\"INN.\"&EIGNIR!$B$3&C4264","v":{"$error":"#N/A"}},{"$f":"'Sundurliðun Útlán'!H221","v":0},".M.EUKULFF.XX.ERF.XXX.XXXX.SX.XXX.ISK.IS.N.M"]
[{"$f":"\"INN.\"&EIGNIR!$B$3&C4265","v":{"$error":"#N/A"}},{"$f":"'Sundurliðun Útlán'!H223","v":0},".M.EUKULFF.XX.ERA.XXX.XXXX.SX.XXX.ISK.IS.N.M"]
[{"$f":"\"INN.\"&EIGNIR!$B$3&C4266","v":{"$error":"#N/A"}},{"$f":"'Sundurliðun Útlán'!H224","v":0},".M.EUKULOL.XX.ERL.XXX.XXXX.SX.XXX.ISK.IS.N.M","//Önnur erlend lán"]
[{"$f":"\"INN.\"&EIGNIR!$B$3&C4267","v":{"$error":"#N/A"}},{"$f":"'Sundurliðun Útlán'!H226","v":0},".M.EUKULOL.XX.ERI.XXX.XXXX.SX.XXX.ISK.IS.N.M"]
[{"$f":"\"INN.\"&EIGNIR!$B$3&C4268","v":{"$error":"#N/A"}},{"$f":"'Sundurliðun Útlán'!H228","v":0},".M.EUKULOL.XX.ERV.XXX.XXXX.SX.XXX.ISK.IS.N.M"]
[{"$f":"\"INN.\"&EIGNIR!$B$3&C4269","v":{"$error":"#N/A"}},{"$f":"'Sundurliðun Útlán'!H229","v":0},".M.EUKULOL.XX.ERF.XXX.XXXX.SX.XXX.ISK.IS.N.M"]
[{"$f":"\"INN.\"&EIGNIR!$B$3&C4270","v":{"$error":"#N/A"}},{"$f":"'Sundurliðun Útlán'!H230","v":0},".M.EUKULOL.XX.ERO.XXX.XXXX.SX.XXX.ISK.IS.N.M"]
[{"$f":"\"INN.\"&EIGNIR!$B$3&C4271","v":{"$error":"#N/A"}},{"$f":"'Sundurliðun Útlán'!H231","v":0},".M.EUKULOL.XX.ERA.XXX.XXXX.SX.XXX.ISK.IS.N.M"]
[{"$f":"\"INN.\"&EIGNIR!$B$3&C4272","v":{"$error":"#N/A"}},{"$f":"'Sundurliðun Útlán'!H232","v":0},".M.EUKNF$$.XX.XXX.XXX.XXXX.SX.XXX.ISK.IS.N.M"]
[{"$f":"\"INN.\"&EIGNIR!$B$3&C4273","v":{"$error":"#N/A"}},{"$f":"'Sundurliðun Útlán'!H233","v":0},".M.EUKNFAL.XX.XXX.XXX.XXXX.SX.XXX.ISK.IS.N.M"]
[{"$f":"\"INN.\"&EIGNIR!$B$3&C4274","v":{"$error":"#N/A"}},{"$f":"'Sundurliðun Útlán'!H234","v":0},".M.EUKNFST.XX.$$$.XXX.XXXX.SX.XXX.ISK.IS.N.M"]
[{"$f":"\"INN.\"&EIGNIR!$B$3&C4275","v":{"$error":"#N/A"}},{"$f":"'Sundurliðun Útlán'!H235","v":0},".M.EUKNFST.XX.ATV.XXX.XXXX.SX.XXX.ISK.IS.N.M"]
[{"$f":"\"INN.\"&EIGNIR!$B$3&C4276","v":{"$error":"#N/A"}},{"$f":"'Sundurliðun Útlán'!H236","v":0},".M.EUKNFST.XX.LAB.XXX.XXXX.SX.XXX.ISK.IS.N.M"]
[{"$f":"\"INN.\"&EIGNIR!$B$3&C4277","v":{"$error":"#N/A"}},{"$f":"'Sundurliðun Útlán'!H237","v":0},".M.EUKNFST.XX.SJA.XXX.XXXX.SX.XXX.ISK.IS.N.M"]
[{"$f":"\"INN.\"&EIGNIR!$B$3&C4278","v":{"$error":"#N/A"}},{"$f":"'Sundurliðun Útlán'!H238","v":0},".M.EUKNFST.XX.ILA.XXX.XXXX.SX.XXX.ISK.IS.N.M"]
[{"$f":"\"INN.\"&EIGNIR!$B$3&C4279","v":{"$error":"#N/A"}},{"$f":"'Sundurliðun Útlán'!H239","v":0},".M.EUKNFST.XX.ISJ.XXX.XXXX.SX.XXX.ISK.IS.N.M"]
[{"$f":"\"INN.\"&EIGNIR!$B$3&C4280","v":{"$error":"#N/A"}},{"$f":"'Sundurliðun Útlán'!H240","v":0},".M.EUKNFST.XX.IAN.XXX.XXXX.SX.XXX.ISK.IS.N.M"]
[{"$f":"\"INN.\"&EIGNIR!$B$3&C4281","v":{"$error":"#N/A"}},{"$f":"'Sundurliðun Útlán'!H241","v":0},".M.EUKNFST.XX.RAF.XXX.XXXX.SX.XXX.ISK.IS.N.M"]
[{"$f":"\"INN.\"&EIGNIR!$B$3&C4282","v":{"$error":"#N/A"}},{"$f":"'Sundurliðun Útlán'!H242","v":0},".M.EUKNFST.XX.MAN.XXX.XXXX.SX.XXX.ISK.IS.N.M"]
[{"$f":"\"INN.\"&EIGNIR!$B$3&C4283","v":{"$error":"#N/A"}},{"$f":"'Sundurliðun Útlán'!H243","v":0},".M.EUKNFST.XX.VEN.XXX.XXXX.SX.XXX.ISK.IS.N.M"]
[{"$f":"\"INN.\"&EIGNIR!$B$3&C4284","v":{"$error":"#N/A"}},{"$f":"'Sundurliðun Útlán'!H244","v":0},".M.EUKNFST.XX.SAG.XXX.XXXX.SX.XXX.ISK.IS.N.M"]
[{"$f":"\"INN.\"&EIGNIR!$B$3&C4285","v":{"$error":"#N/A"}},{"$f":"'Sundurliðun Útlán'!H245","v":0},".M.EUKNFST.XX.THF.XXX.XXXX.SX.XXX.ISK.IS.N.M"]
[{"$f":"\"INN.\"&EIGNIR!$B$3&C4286","v":{"$error":"#N/A"}},{"$f":"'Sundurliðun Útlán'!H246","v":0},".M.EUKNFST.XX.THH.XXX.XXXX.SX.XXX.ISK.IS.N.M"]
[{"$f":"\"INN.\"&EIGNIR!$B$3&C4287","v":{"$error":"#N/A"}},{"$f":"'Sundurliðun Útlán'!H247","v":0},".M.EUKNFST.XX.THA.XXX.XXXX.SX.XXX.ISK.IS.N.M"]
[{"$f":"\"INN.\"&EIGNIR!$B$3&C4288","v":{"$error":"#N/A"}},{"$f":"'Sundurliðun Útlán'!H248","v":0},".M.EUKNFST.XX.OFL.XXX.XXXX.SX.XXX.ISK.IS.N.M"]
[{"$f":"\"INN.\"&EIGNIR!$B$3&C4289","v":{"$error":"#N/A"}},{"$f":"'Sundurliðun Útlán'!H249","v":0},".M.EUKNFST.XX.FJA.XXX.XXXX.SX.XXX.ISK.IS.N.M"]
[{"$f":"\"INN.\"&EIGNIR!$B$3&C4290","v":{"$error":"#N/A"}},{"$f":"'Sundurliðun Útlán'!H250","v":0},".M.EUKNFST.XX.INN.XXX.XXXX.SX.XXX.ISK.IS.N.M"]
[{"$f":"\"INN.\"&EIGNIR!$B$3&C4291","v":{"$error":"#N/A"}},{"$f":"'Sundurliðun Útlán'!H251","v":0},".M.EUKNFST.XX.SLI.XXX.XXXX.SX.XXX.ISK.IS.N.M"]
[{"$f":"\"INN.\"&EIGNIR!$B$3&C4292","v":{"$error":"#N/A"}},{"$f":"'Sundurliðun Útlán'!H252","v":0},".M.EUKNFST.XX.PEN.XXX.XXXX.SX.XXX.ISK.IS.N.M"]
[{"$f":"\"INN.\"&EIGNIR!$B$3&C4293","v":{"$error":"#N/A"}},{"$f":"'Sundurliðun Útlán'!H253","v":0},".M.EUKNFST.XX.SJO.XXX.XXXX.SX.XXX.ISK.IS.N.M"]
[{"$f":"\"INN.\"&EIGNIR!$B$3&C4294","v":{"$error":"#N/A"}},{"$f":"'Sundurliðun Útlán'!H254","v":0},".M.EUKNFST.XX.YFT.XXX.XXXX.SX.XXX.ISK.IS.N.M"]
[{"$f":"\"INN.\"&EIGNIR!$B$3&C4295","v":{"$error":"#N/A"}},{"$f":"'Sundurliðun Útlán'!H255","v":0},".M.EUKNFST.XX.SLY.XXX.XXXX.SX.XXX.ISK.IS.N.M"]
[{"$f":"\"INN.\"&EIGNIR!$B$3&C4296","v":{"$error":"#N/A"}},{"$f":"'Sundurliðun Útlán'!H256","v":0},".M.EUKNFST.XX.FHL.XXX.XXXX.SX.XXX.ISK.IS.N.M"]
[{"$f":"\"INN.\"&EIGNIR!$B$3&C4297","v":{"$error":"#N/A"}},{"$f":"'Sundurliðun Útlán'!H257","v":0},".M.EUKNFST.XX.INF.XXX.XXXX.SX.XXX.ISK.IS.N.M"]
[{"$f":"\"INN.\"&EIGNIR!$B$3&C4298","v":{"$error":"#N/A"}},{"$f":"'Sundurliðun Útlán'!H258","v":0},".M.EUKNFST.XX.TRY.XXX.XXXX.SX.XXX.ISK.IS.N.M"]
[{"$f":"\"INN.\"&EIGNIR!$B$3&C4299","v":{"$error":"#N/A"}},{"$f":"'Sundurliðun Útlán'!H259","v":0},".M.EUKNFST.XX.LIF.XXX.XXXX.SX.XXX.ISK.IS.N.M"]
[{"$f":"\"INN.\"&EIGNIR!$B$3&C4300","v":{"$error":"#N/A"}},{"$f":"'Sundurliðun Útlán'!H260","v":0},".M.EUKNFST.XX.OPI.XXX.XXXX.SX.XXX.ISK.IS.N.M"]
[{"$f":"\"INN.\"&EIGNIR!$B$3&C4301","v":{"$error":"#N/A"}},{"$f":"'Sundurliðun Útlán'!H261","v":0},".M.EUKNFST.XX.RSS.XXX.XXXX.SX.XXX.ISK.IS.N.M"]
[{"$f":"\"INN.\"&EIGNIR!$B$3&C4302","v":{"$error":"#N/A"}},{"$f":"'Sundurliðun Útlán'!H262","v":0},".M.EUKNFST.XX.BAJ.XXX.XXXX.SX.XXX.ISK.IS.N.M"]
[{"$f":"\"INN.\"&EIGNIR!$B$3&C4303","v":{"$error":"#N/A"}},{"$f":"'Sundurliðun Útlán'!H263","v":0},".M.EUKNFST.XX.EIN.XXX.XXXX.SX.XXX.ISK.IS.N.M"]
[{"$f":"\"INN.\"&EIGNIR!$B$3&C4304","v":{"$error":"#N/A"}},{"$f":"'Sundurliðun Útlán'!H264","v":0},".M.EUKNFST.XX.NPH.XXX.XXXX.SX.XXX.ISK.IS.N.M"]
[{"$f":"\"INN.\"&EIGNIR!$B$3&C4305","v":{"$error":"#N/A"}},{"$f":"'Sundurliðun Útlán'!H265","v":0},".M.EUKNFER.XX.ERL.XXX.XXXX.SX.XXX.ISK.IS.N.M"]
[{"$f":"\"INN.\"&EIGNIR!$B$3&C4306","v":{"$error":"#N/A"}},{"$f":"'Sundurliðun Útlán'!H266","v":0},".M.EUKNFEH.XX.ERL.XXX.XXXX.SX.XXX.ISK.IS.N.M"]
[{"$f":"\"INN.\"&EIGNIR!$B$3&C4307","v":{"$error":"#N/A"}},{"$f":"'Sundurliðun Útlán'!H268","v":0},".M.EUKNFEH.XX.ERI.XXX.XXXX.SX.XXX.ISK.IS.N.M"]
[{"$f":"\"INN.\"&EIGNIR!$B$3&C4308","v":{"$error":"#N/A"}},{"$f":"'Sundurliðun Útlán'!H271","v":0},".M.EUKNFEH.XX.ERF.XXX.XXXX.SX.XXX.ISK.IS.N.M"]
[{"$f":"\"INN.\"&EIGNIR!$B$3&C4309","v":{"$error":"#N/A"}},{"$f":"'Sundurliðun Útlán'!H273","v":0},".M.EUKNFEH.XX.ERA.XXX.XXXX.SX.XXX.ISK.IS.N.M"]
[{"$f":"\"INN.\"&EIGNIR!$B$3&C4310","v":{"$error":"#N/A"}},{"$f":"'Sundurliðun Útlán'!H274","v":0},".M.EUKNFED.XX.ERL.XXX.XXXX.SX.XXX.ISK.IS.N.M"]
[{"$f":"\"INN.\"&EIGNIR!$B$3&C4311","v":{"$error":"#N/A"}},{"$f":"'Sundurliðun Útlán'!H276","v":0},".M.EUKNFED.XX.ERI.XXX.XXXX.SX.XXX.ISK.IS.N.M"]
[{"$f":"\"INN.\"&EIGNIR!$B$3&C4312","v":{"$error":"#N/A"}},{"$f":"'Sundurliðun Útlán'!H279","v":0},".M.EUKNFED.XX.ERF.XXX.XXXX.SX.XXX.ISK.IS.N.M"]
[{"$f":"\"INN.\"&EIGNIR!$B$3&C4313","v":{"$error":"#N/A"}},{"$f":"'Sundurliðun Útlán'!H281","v":0},".M.EUKNFED.XX.ERA.XXX.XXXX.SX.XXX.ISK.IS.N.M"]
[{"$f":"\"INN.\"&EIGNIR!$B$3&C4314","v":{"$error":"#N/A"}},{"$f":"'Sundurliðun Útlán'!H282","v":0},".M.EUKNFFF.XX.ERL.XXX.XXXX.SX.XXX.ISK.IS.N.M"]
[{"$f":"\"INN.\"&EIGNIR!$B$3&C4315","v":{"$error":"#N/A"}},{"$f":"'Sundurliðun Útlán'!H284","v":0},".M.EUKNFFF.XX.ERI.XXX.XXXX.SX.XXX.ISK.IS.N.M"]
[{"$f":"\"INN.\"&EIGNIR!$B$3&C4316","v":{"$error":"#N/A"}},{"$f":"'Sundurliðun Útlán'!H287","v":0},".M.EUKNFFF.XX.ERF.XXX.XXXX.SX.XXX.ISK.IS.N.M"]
[{"$f":"\"INN.\"&EIGNIR!$B$3&C4317","v":{"$error":"#N/A"}},{"$f":"'Sundurliðun Útlán'!H289","v":0},".M.EUKNFFF.XX.ERA.XXX.XXXX.SX.XXX.ISK.IS.N.M"]
[{"$f":"\"INN.\"&EIGNIR!$B$3&C4318","v":{"$error":"#N/A"}},{"$f":"'Sundurliðun Útlán'!H290","v":0},".M.EUKNFOL.XX.ERL.XXX.XXXX.SX.XXX.ISK.IS.N.M"]
[{"$f":"\"INN.\"&EIGNIR!$B$3&C4319","v":{"$error":"#N/A"}},{"$f":"'Sundurliðun Útlán'!H292","v":0},".M.EUKNFOL.XX.ERI.XXX.XXXX.SX.XXX.ISK.IS.N.M"]
[{"$f":"\"INN.\"&EIGNIR!$B$3&C4320","v":{"$error":"#N/A"}},{"$f":"'Sundurliðun Útlán'!H294","v":0},".M.EUKNFOL.XX.ERV.XXX.XXXX.SX.XXX.ISK.IS.N.M"]
[{"$f":"\"INN.\"&EIGNIR!$B$3&C4321","v":{"$error":"#N/A"}},{"$f":"'Sundurliðun Útlán'!H295","v":0},".M.EUKNFOL.XX.ERF.XXX.XXXX.SX.XXX.ISK.IS.N.M"]
[{"$f":"\"INN.\"&EIGNIR!$B$3&C4322","v":{"$error":"#N/A"}},{"$f":"'Sundurliðun Útlán'!H296","v":0},".M.EUKNFOL.XX.ERO.XXX.XXXX.SX.XXX.ISK.IS.N.M"]
[{"$f":"\"INN.\"&EIGNIR!$B$3&C4323","v":{"$error":"#N/A"}},{"$f":"'Sundurliðun Útlán'!H297","v":0},".M.EUKNFOL.XX.ERA.XXX.XXXX.SX.XXX.ISK.IS.N.M"]
[{"$f":"\"INN.\"&EIGNIR!$B$3&C4324","v":{"$error":"#N/A"}},{"$f":"'Sundurliðun Útlán'!I5","v":0},".M.EUK$$$$.XX.$$$.XXX.XXXX.SX.XXX.EUR.IS.N.M","//Sundurliðun útlána, EUR"]
[{"$f":"\"INN.\"&EIGNIR!$B$3&C4325","v":{"$error":"#N/A"}},{"$f":"'Sundurliðun Útlán'!I6","v":0},".M.EUKIT$$.XX.$$$.XXX.XXXX.SX.XXX.EUR.IS.N.M"]
[{"$f":"\"INN.\"&EIGNIR!$B$3&C4326","v":{"$error":"#N/A"}},{"$f":"'Sundurliðun Útlán'!I7","v":0},".M.EUKITII.XX.XXX.XXX.XXXX.SX.XXX.EUR.IS.N.M"]
[{"$f":"\"INN.\"&EIGNIR!$B$3&C4327","v":{"$error":"#N/A"}},{"$f":"'Sundurliðun Útlán'!I8","v":0},".M.EUKITIE.XX.XXX.XXX.XXXX.SX.XXX.EUR.IS.N.M"]
[{"$f":"\"INN.\"&EIGNIR!$B$3&C4328","v":{"$error":"#N/A"}},{"$f":"'Sundurliðun Útlán'!I9","v":0},".M.EUKITIT.XX.XXX.XXX.XXXX.SX.XXX.EUR.IS.N.M"]
[{"$f":"\"INN.\"&EIGNIR!$B$3&C4329","v":{"$error":"#N/A"}},{"$f":"'Sundurliðun Útlán'!I10","v":0},".M.EUKUL$$.XX.$$$.XXX.XXXX.SX.XXX.EUR.IS.N.M"]
[{"$f":"\"INN.\"&EIGNIR!$B$3&C4330","v":{"$error":"#N/A"}},{"$f":"'Sundurliðun Útlán'!I11","v":0},".M.EUKULIA.XX.$$$.XXX.XXXX.SX.XXX.EUR.IS.N.M"]
[{"$f":"\"INN.\"&EIGNIR!$B$3&C4331","v":{"$error":"#N/A"}},{"$f":"'Sundurliðun Útlán'!I12","v":0},".M.EUKULIA.XX.ATV.XXX.XXXX.SX.XXX.EUR.IS.N.M"]
[{"$f":"\"INN.\"&EIGNIR!$B$3&C4332","v":{"$error":"#N/A"}},{"$f":"'Sundurliðun Útlán'!I26","v":0},".M.EUKULIA.XX.YFT.XXX.XXXX.SX.XXX.EUR.IS.N.M"]
[{"$f":"\"INN.\"&EIGNIR!$B$3&C4333","v":{"$error":"#N/A"}},{"$f":"'Sundurliðun Útlán'!I27","v":0},".M.EUKULIA.XX.INN.XXX.XXXX.SX.XXX.EUR.IS.N.M"]
[{"$f":"\"INN.\"&EIGNIR!$B$3&C4334","v":{"$error":"#N/A"}},{"$f":"'Sundurliðun Útlán'!I28","v":0},".M.EUKULIA.XX.SLI.XXX.XXXX.SX.XXX.EUR.IS.N.M"]
[{"$f":"\"INN.\"&EIGNIR!$B$3&C4335","v":{"$error":"#N/A"}},{"$f":"'Sundurliðun Útlán'!I29","v":0},".M.EUKULIA.XX.PEN.XXX.XXXX.SX.XXX.EUR.IS.N.M"]
[{"$f":"\"INN.\"&EIGNIR!$B$3&C4336","v":{"$error":"#N/A"}},{"$f":"'Sundurliðun Útlán'!I30","v":0},".M.EUKULIA.XX.SJO.XXX.XXXX.SX.XXX.EUR.IS.N.M"]
[{"$f":"\"INN.\"&EIGNIR!$B$3&C4337","v":{"$error":"#N/A"}},{"$f":"'Sundurliðun Útlán'!I31","v":0},".M.EUKULIA.XX.FJA.XXX.XXXX.SX.XXX.EUR.IS.N.M"]
[{"$f":"\"INN.\"&EIGNIR!$B$3&C4338","v":{"$error":"#N/A"}},{"$f":"'Sundurliðun Útlán'!I32","v":0},".M.EUKULIA.XX.SLY.XXX.XXXX.SX.XXX.EUR.IS.N.M"]
[{"$f":"\"INN.\"&EIGNIR!$B$3&C4339","v":{"$error":"#N/A"}},{"$f":"'Sundurliðun Útlán'!I33","v":0},".M.EUKULIA.XX.FHL.XXX.XXXX.SX.XXX.EUR.IS.N.M"]
[{"$f":"\"INN.\"&EIGNIR!$B$3&C4340","v":{"$error":"#N/A"}},{"$f":"'Sundurliðun Útlán'!I34","v":0},".M.EUKULIA.XX.INF.XXX.XXXX.SX.XXX.EUR.IS.N.M"]
[{"$f":"\"INN.\"&EIGNIR!$B$3&C4341","v":{"$error":"#N/A"}},{"$f":"'Sundurliðun Útlán'!I35","v":0},".M.EUKULIA.XX.TRY.XXX.XXXX.SX.XXX.EUR.IS.N.M"]
[{"$f":"\"INN.\"&EIGNIR!$B$3&C4342","v":{"$error":"#N/A"}},{"$f":"'Sundurliðun Útlán'!I36","v":0},".M.EUKULIA.XX.LIF.XXX.XXXX.SX.XXX.EUR.IS.N.M"]
[{"$f":"\"INN.\"&EIGNIR!$B$3&C4343","v":{"$error":"#N/A"}},{"$f":"'Sundurliðun Útlán'!I37","v":0},".M.EUKULIA.XX.OPI.XXX.XXXX.SX.XXX.EUR.IS.N.M"]
[{"$f":"\"INN.\"&EIGNIR!$B$3&C4344","v":{"$error":"#N/A"}},{"$f":"'Sundurliðun Útlán'!I38","v":0},".M.EUKULIA.XX.RSS.XXX.XXXX.SX.XXX.EUR.IS.N.M"]
[{"$f":"\"INN.\"&EIGNIR!$B$3&C4345","v":{"$error":"#N/A"}},{"$f":"'Sundurliðun Útlán'!I39","v":0},".M.EUKULIA.XX.BAJ.XXX.XXXX.SX.XXX.EUR.IS.N.M"]
[{"$f":"\"INN.\"&EIGNIR!$B$3&C4346","v":{"$error":"#N/A"}},{"$f":"'Sundurliðun Útlán'!I40","v":0},".M.EUKULIA.XX.EIN.XXX.XXXX.SX.XXX.EUR.IS.N.M"]
[{"$f":"\"INN.\"&EIGNIR!$B$3&C4347","v":{"$error":"#N/A"}},{"$f":"'Sundurliðun Útlán'!I41","v":0},".M.EUKULIA.XX.NPH.XXX.XXXX.SX.XXX.EUR.IS.N.M"]
[{"$f":"\"INN.\"&EIGNIR!$B$3&C4348","v":{"$error":"#N/A"}},{"$f":"'Sundurliðun Útlán'!I42","v":0},".M.EUKULYL.XX.$$$.XXX.XXXX.SX.XXX.EUR.IS.N.M"]
[{"$f":"\"INN.\"&EIGNIR!$B$3&C4349","v":{"$error":"#N/A"}},{"$f":"'Sundurliðun Útlán'!I43","v":0},".M.EUKULYL.XX.ATV.XXX.XXXX.SX.XXX.EUR.IS.N.M"]
[{"$f":"\"INN.\"&EIGNIR!$B$3&C4350","v":{"$error":"#N/A"}},{"$f":"'Sundurliðun Útlán'!I57","v":0},".M.EUKULYL.XX.FJA.XXX.XXXX.SX.XXX.EUR.IS.N.M"]
[{"$f":"\"INN.\"&EIGNIR!$B$3&C4351","v":{"$error":"#N/A"}},{"$f":"'Sundurliðun Útlán'!I58","v":0},".M.EUKULYL.XX.INN.XXX.XXXX.SX.XXX.EUR.IS.N.M"]
[{"$f":"\"INN.\"&EIGNIR!$B$3&C4352","v":{"$error":"#N/A"}},{"$f":"'Sundurliðun Útlán'!I59","v":0},".M.EUKULYL.XX.SLI.XXX.XXXX.SX.XXX.EUR.IS.N.M"]
[{"$f":"\"INN.\"&EIGNIR!$B$3&C4353","v":{"$error":"#N/A"}},{"$f":"'Sundurliðun Útlán'!I60","v":0},".M.EUKULYL.XX.PEN.XXX.XXXX.SX.XXX.EUR.IS.N.M"]
[{"$f":"\"INN.\"&EIGNIR!$B$3&C4354","v":{"$error":"#N/A"}},{"$f":"'Sundurliðun Útlán'!I61","v":0},".M.EUKULYL.XX.SJO.XXX.XXXX.SX.XXX.EUR.IS.N.M"]
[{"$f":"\"INN.\"&EIGNIR!$B$3&C4355","v":{"$error":"#N/A"}},{"$f":"'Sundurliðun Útlán'!I62","v":0},".M.EUKULYL.XX.YFT.XXX.XXXX.SX.XXX.EUR.IS.N.M"]
[{"$f":"\"INN.\"&EIGNIR!$B$3&C4356","v":{"$error":"#N/A"}},{"$f":"'Sundurliðun Útlán'!I63","v":0},".M.EUKULYL.XX.SLY.XXX.XXXX.SX.XXX.EUR.IS.N.M"]
[{"$f":"\"INN.\"&EIGNIR!$B$3&C4357","v":{"$error":"#N/A"}},{"$f":"'Sundurliðun Útlán'!I64","v":0},".M.EUKULYL.XX.FHL.XXX.XXXX.SX.XXX.EUR.IS.N.M"]
[{"$f":"\"INN.\"&EIGNIR!$B$3&C4358","v":{"$error":"#N/A"}},{"$f":"'Sundurliðun Útlán'!I65","v":0},".M.EUKULYL.XX.INF.XXX.XXXX.SX.XXX.EUR.IS.N.M"]
[{"$f":"\"INN.\"&EIGNIR!$B$3&C4359","v":{"$error":"#N/A"}},{"$f":"'Sundurliðun Útlán'!I66","v":0},".M.EUKULYL.XX.TRY.XXX.XXXX.SX.XXX.EUR.IS.N.M"]
[{"$f":"\"INN.\"&EIGNIR!$B$3&C4360","v":{"$error":"#N/A"}},{"$f":"'Sundurliðun Útlán'!I67","v":0},".M.EUKULYL.XX.LIF.XXX.XXXX.SX.XXX.EUR.IS.N.M"]
[{"$f":"\"INN.\"&EIGNIR!$B$3&C4361","v":{"$error":"#N/A"}},{"$f":"'Sundurliðun Útlán'!I68","v":0},".M.EUKULYL.XX.OPI.XXX.XXXX.SX.XXX.EUR.IS.N.M"]
[{"$f":"\"INN.\"&EIGNIR!$B$3&C4362","v":{"$error":"#N/A"}},{"$f":"'Sundurliðun Útlán'!I69","v":0},".M.EUKULYL.XX.RSS.XXX.XXXX.SX.XXX.EUR.IS.N.M"]
[{"$f":"\"INN.\"&EIGNIR!$B$3&C4363","v":{"$error":"#N/A"}},{"$f":"'Sundurliðun Útlán'!I70","v":0},".M.EUKULYL.XX.BAJ.XXX.XXXX.SX.XXX.EUR.IS.N.M"]
[{"$f":"\"INN.\"&EIGNIR!$B$3&C4364","v":{"$error":"#N/A"}},{"$f":"'Sundurliðun Útlán'!I71","v":0},".M.EUKULYL.XX.EIN.XXX.XXXX.SX.XXX.EUR.IS.N.M"]
[{"$f":"\"INN.\"&EIGNIR!$B$3&C4365","v":{"$error":"#N/A"}},{"$f":"'Sundurliðun Útlán'!I72","v":0},".M.EUKULYL.XX.NPH.XXX.XXXX.SX.XXX.EUR.IS.N.M"]
[{"$f":"\"INN.\"&EIGNIR!$B$3&C4366","v":{"$error":"#N/A"}},{"$f":"'Sundurliðun Útlán'!I73","v":0},".M.EUKULVX.XX.$$$.XXX.XXXX.SX.XXX.EUR.IS.N.M"]
[{"$f":"\"INN.\"&EIGNIR!$B$3&C4367","v":{"$error":"#N/A"}},{"$f":"'Sundurliðun Útlán'!I74","v":0},".M.EUKULVX.XX.ATV.XXX.XXXX.SX.XXX.EUR.IS.N.M"]
[{"$f":"\"INN.\"&EIGNIR!$B$3&C4368","v":{"$error":"#N/A"}},{"$f":"'Sundurliðun Útlán'!I88","v":0},".M.EUKULVX.XX.FJA.XXX.XXXX.SX.XXX.EUR.IS.N.M"]
[{"$f":"\"INN.\"&EIGNIR!$B$3&C4369","v":{"$error":"#N/A"}},{"$f":"'Sundurliðun Útlán'!I89","v":0},".M.EUKULVX.XX.INN.XXX.XXXX.SX.XXX.EUR.IS.N.M"]
[{"$f":"\"INN.\"&EIGNIR!$B$3&C4370","v":{"$error":"#N/A"}},{"$f":"'Sundurliðun Útlán'!I90","v":0},".M.EUKULVX.XX.SLI.XXX.XXXX.SX.XXX.EUR.IS.N.M"]
[{"$f":"\"INN.\"&EIGNIR!$B$3&C4371","v":{"$error":"#N/A"}},{"$f":"'Sundurliðun Útlán'!I91","v":0},".M.EUKULVX.XX.PEN.XXX.XXXX.SX.XXX.EUR.IS.N.M"]
[{"$f":"\"INN.\"&EIGNIR!$B$3&C4372","v":{"$error":"#N/A"}},{"$f":"'Sundurliðun Útlán'!I92","v":0},".M.EUKULVX.XX.SJO.XXX.XXXX.SX.XXX.EUR.IS.N.M"]
[{"$f":"\"INN.\"&EIGNIR!$B$3&C4373","v":{"$error":"#N/A"}},{"$f":"'Sundurliðun Útlán'!I93","v":0},".M.EUKULVX.XX.YFT.XXX.XXXX.SX.XXX.EUR.IS.N.M"]
[{"$f":"\"INN.\"&EIGNIR!$B$3&C4374","v":{"$error":"#N/A"}},{"$f":"'Sundurliðun Útlán'!I94","v":0},".M.EUKULVX.XX.SLY.XXX.XXXX.SX.XXX.EUR.IS.N.M"]
[{"$f":"\"INN.\"&EIGNIR!$B$3&C4375","v":{"$error":"#N/A"}},{"$f":"'Sundurliðun Útlán'!I95","v":0},".M.EUKULVX.XX.FHL.XXX.XXXX.SX.XXX.EUR.IS.N.M"]
[{"$f":"\"INN.\"&EIGNIR!$B$3&C4376","v":{"$error":"#N/A"}},{"$f":"'Sundurliðun Útlán'!I96","v":0},".M.EUKULVX.XX.INF.XXX.XXXX.SX.XXX.EUR.IS.N.M"]
[{"$f":"\"INN.\"&EIGNIR!$B$3&C4377","v":{"$error":"#N/A"}},{"$f":"'Sundurliðun Útlán'!I97","v":0},".M.EUKULVX.XX.TRY.XXX.XXXX.SX.XXX.EUR.IS.N.M"]
[{"$f":"\"INN.\"&EIGNIR!$B$3&C4378","v":{"$error":"#N/A"}},{"$f":"'Sundurliðun Útlán'!I98","v":0},".M.EUKULVX.XX.LIF.XXX.XXXX.SX.XXX.EUR.IS.N.M"]
[{"$f":"\"INN.\"&EIGNIR!$B$3&C4379","v":{"$error":"#N/A"}},{"$f":"'Sundurliðun Útlán'!I99","v":0},".M.EUKULVX.XX.OPI.XXX.XXXX.SX.XXX.EUR.IS.N.M"]
[{"$f":"\"INN.\"&EIGNIR!$B$3&C4380","v":{"$error":"#N/A"}},{"$f":"'Sundurliðun Útlán'!I100","v":0},".M.EUKULVX.XX.RSS.XXX.XXXX.SX.XXX.EUR.IS.N.M"]
[{"$f":"\"INN.\"&EIGNIR!$B$3&C4381","v":{"$error":"#N/A"}},{"$f":"'Sundurliðun Útlán'!I101","v":0},".M.EUKULVX.XX.BAJ.XXX.XXXX.SX.XXX.EUR.IS.N.M"]
[{"$f":"\"INN.\"&EIGNIR!$B$3&C4382","v":{"$error":"#N/A"}},{"$f":"'Sundurliðun Útlán'!I102","v":0},".M.EUKULVX.XX.EIN.XXX.XXXX.SX.XXX.EUR.IS.N.M"]
[{"$f":"\"INN.\"&EIGNIR!$B$3&C4383","v":{"$error":"#N/A"}},{"$f":"'Sundurliðun Útlán'!I103","v":0},".M.EUKULVX.XX.NPH.XXX.XXXX.SX.XXX.EUR.IS.N.M"]
[{"$f":"\"INN.\"&EIGNIR!$B$3&C4384","v":{"$error":"#N/A"}},{"$f":"'Sundurliðun Útlán'!I136","v":0},".M.EUKULOU.XX.$$$.XXX.XXXX.SX.XXX.EUR.IS.N.M"]
[{"$f":"\"INN.\"&EIGNIR!$B$3&C4385","v":{"$error":"#N/A"}},{"$f":"'Sundurliðun Útlán'!I137","v":0},".M.EUKULOU.XX.ATV.XXX.XXXX.SX.XXX.EUR.IS.N.M"]
[{"$f":"\"INN.\"&EIGNIR!$B$3&C4386","v":{"$error":"#N/A"}},{"$f":"'Sundurliðun Útlán'!I151","v":0},".M.EUKULOU.XX.FJA.XXX.XXXX.SX.XXX.EUR.IS.N.M"]
[{"$f":"\"INN.\"&EIGNIR!$B$3&C4387","v":{"$error":"#N/A"}},{"$f":"'Sundurliðun Útlán'!I152","v":0},".M.EUKULOU.XX.INN.XXX.XXXX.SX.XXX.EUR.IS.N.M"]
[{"$f":"\"INN.\"&EIGNIR!$B$3&C4388","v":{"$error":"#N/A"}},{"$f":"'Sundurliðun Útlán'!I153","v":0},".M.EUKULOU.XX.SLI.XXX.XXXX.SX.XXX.EUR.IS.N.M"]
[{"$f":"\"INN.\"&EIGNIR!$B$3&C4389","v":{"$error":"#N/A"}},{"$f":"'Sundurliðun Útlán'!I154","v":0},".M.EUKULOU.XX.PEN.XXX.XXXX.SX.XXX.EUR.IS.N.M"]
[{"$f":"\"INN.\"&EIGNIR!$B$3&C4390","v":{"$error":"#N/A"}},{"$f":"'Sundurliðun Útlán'!I155","v":0},".M.EUKULOU.XX.SJO.XXX.XXXX.SX.XXX.EUR.IS.N.M"]
[{"$f":"\"INN.\"&EIGNIR!$B$3&C4391","v":{"$error":"#N/A"}},{"$f":"'Sundurliðun Útlán'!I156","v":0},".M.EUKULOU.XX.YFT.XXX.XXXX.SX.XXX.EUR.IS.N.M"]
[{"$f":"\"INN.\"&EIGNIR!$B$3&C4392","v":{"$error":"#N/A"}},{"$f":"'Sundurliðun Útlán'!I157","v":0},".M.EUKULOU.XX.SLY.XXX.XXXX.SX.XXX.EUR.IS.N.M"]
[{"$f":"\"INN.\"&EIGNIR!$B$3&C4393","v":{"$error":"#N/A"}},{"$f":"'Sundurliðun Útlán'!I158","v":0},".M.EUKULOU.XX.FHL.XXX.XXXX.SX.XXX.EUR.IS.N.M"]
[{"$f":"\"INN.\"&EIGNIR!$B$3&C4394","v":{"$error":"#N/A"}},{"$f":"'Sundurliðun Útlán'!I159","v":0},".M.EUKULOU.XX.INF.XXX.XXXX.SX.XXX.EUR.IS.N.M"]
[{"$f":"\"INN.\"&EIGNIR!$B$3&C4395","v":{"$error":"#N/A"}},{"$f":"'Sundurliðun Útlán'!I160","v":0},".M.EUKULOU.XX.TRY.XXX.XXXX.SX.XXX.EUR.IS.N.M"]
[{"$f":"\"INN.\"&EIGNIR!$B$3&C4396","v":{"$error":"#N/A"}},{"$f":"'Sundurliðun Útlán'!I161","v":0},".M.EUKULOU.XX.LIF.XXX.XXXX.SX.XXX.EUR.IS.N.M"]
[{"$f":"\"INN.\"&EIGNIR!$B$3&C4397","v":{"$error":"#N/A"}},{"$f":"'Sundurliðun Útlán'!I162","v":0},".M.EUKULOU.XX.OPI.XXX.XXXX.SX.XXX.EUR.IS.N.M"]
[{"$f":"\"INN.\"&EIGNIR!$B$3&C4398","v":{"$error":"#N/A"}},{"$f":"'Sundurliðun Útlán'!I163","v":0},".M.EUKULOU.XX.RSS.XXX.XXXX.SX.XXX.EUR.IS.N.M"]
[{"$f":"\"INN.\"&EIGNIR!$B$3&C4399","v":{"$error":"#N/A"}},{"$f":"'Sundurliðun Útlán'!I164","v":0},".M.EUKULOU.XX.BAJ.XXX.XXXX.SX.XXX.EUR.IS.N.M"]
[{"$f":"\"INN.\"&EIGNIR!$B$3&C4400","v":{"$error":"#N/A"}},{"$f":"'Sundurliðun Útlán'!I165","v":0},".M.EUKULOU.XX.EIB.XXX.XXXX.SX.XXX.EUR.IS.N.M"]
[{"$f":"\"INN.\"&EIGNIR!$B$3&C4401","v":{"$error":"#N/A"}},{"$f":"'Sundurliðun Útlán'!I166","v":0},".M.EUKULOU.XX.ANN.XXX.XXXX.SX.XXX.EUR.IS.N.M"]
[{"$f":"\"INN.\"&EIGNIR!$B$3&C4402","v":{"$error":"#N/A"}},{"$f":"'Sundurliðun Útlán'!I167","v":0},".M.EUKULOU.XX.NPH.XXX.XXXX.SX.XXX.EUR.IS.N.M"]
[{"$f":"\"INN.\"&EIGNIR!$B$3&C4403","v":{"$error":"#N/A"}},{"$f":"'Sundurliðun Útlán'!I168","v":0},".M.EUKULEL.XX.$$$.XXX.XXXX.SX.XXX.EUR.IS.N.M"]
[{"$f":"\"INN.\"&EIGNIR!$B$3&C4404","v":{"$error":"#N/A"}},{"$f":"'Sundurliðun Útlán'!I169","v":0},".M.EUKULEL.XX.ATV.XXX.XXXX.SX.XXX.EUR.IS.N.M"]
[{"$f":"\"INN.\"&EIGNIR!$B$3&C4405","v":{"$error":"#N/A"}},{"$f":"'Sundurliðun Útlán'!I183","v":0},".M.EUKULEL.XX.FJA.XXX.XXXX.SX.XXX.EUR.IS.N.M"]
[{"$f":"\"INN.\"&EIGNIR!$B$3&C4406","v":{"$error":"#N/A"}},{"$f":"'Sundurliðun Útlán'!I184","v":0},".M.EUKULEL.XX.INN.XXX.XXXX.SX.XXX.EUR.IS.N.M"]
[{"$f":"\"INN.\"&EIGNIR!$B$3&C4407","v":{"$error":"#N/A"}},{"$f":"'Sundurliðun Útlán'!I185","v":0},".M.EUKULEL.XX.SLI.XXX.XXXX.SX.XXX.EUR.IS.N.M"]
[{"$f":"\"INN.\"&EIGNIR!$B$3&C4408","v":{"$error":"#N/A"}},{"$f":"'Sundurliðun Útlán'!I186","v":0},".M.EUKULEL.XX.PEN.XXX.XXXX.SX.XXX.EUR.IS.N.M"]
[{"$f":"\"INN.\"&EIGNIR!$B$3&C4409","v":{"$error":"#N/A"}},{"$f":"'Sundurliðun Útlán'!I187","v":0},".M.EUKULEL.XX.SJO.XXX.XXXX.SX.XXX.EUR.IS.N.M"]
[{"$f":"\"INN.\"&EIGNIR!$B$3&C4410","v":{"$error":"#N/A"}},{"$f":"'Sundurliðun Útlán'!I188","v":0},".M.EUKULEL.XX.YFT.XXX.XXXX.SX.XXX.EUR.IS.N.M"]
[{"$f":"\"INN.\"&EIGNIR!$B$3&C4411","v":{"$error":"#N/A"}},{"$f":"'Sundurliðun Útlán'!I189","v":0},".M.EUKULEL.XX.SLY.XXX.XXXX.SX.XXX.EUR.IS.N.M"]
[{"$f":"\"INN.\"&EIGNIR!$B$3&C4412","v":{"$error":"#N/A"}},{"$f":"'Sundurliðun Útlán'!I190","v":0},".M.EUKULEL.XX.FHL.XXX.XXXX.SX.XXX.EUR.IS.N.M"]
[{"$f":"\"INN.\"&EIGNIR!$B$3&C4413","v":{"$error":"#N/A"}},{"$f":"'Sundurliðun Útlán'!I191","v":0},".M.EUKULEL.XX.INF.XXX.XXXX.SX.XXX.EUR.IS.N.M"]
[{"$f":"\"INN.\"&EIGNIR!$B$3&C4414","v":{"$error":"#N/A"}},{"$f":"'Sundurliðun Útlán'!I192","v":0},".M.EUKULEL.XX.TRY.XXX.XXXX.SX.XXX.EUR.IS.N.M"]
[{"$f":"\"INN.\"&EIGNIR!$B$3&C4415","v":{"$error":"#N/A"}},{"$f":"'Sundurliðun Útlán'!I193","v":0},".M.EUKULEL.XX.LIF.XXX.XXXX.SX.XXX.EUR.IS.N.M"]
[{"$f":"\"INN.\"&EIGNIR!$B$3&C4416","v":{"$error":"#N/A"}},{"$f":"'Sundurliðun Útlán'!I194","v":0},".M.EUKULEL.XX.OPI.XXX.XXXX.SX.XXX.EUR.IS.N.M"]
[{"$f":"\"INN.\"&EIGNIR!$B$3&C4417","v":{"$error":"#N/A"}},{"$f":"'Sundurliðun Útlán'!I195","v":0},".M.EUKULEL.XX.RSS.XXX.XXXX.SX.XXX.EUR.IS.N.M"]
[{"$f":"\"INN.\"&EIGNIR!$B$3&C4418","v":{"$error":"#N/A"}},{"$f":"'Sundurliðun Útlán'!I196","v":0},".M.EUKULEL.XX.BAJ.XXX.XXXX.SX.XXX.EUR.IS.N.M"]
[{"$f":"\"INN.\"&EIGNIR!$B$3&C4419","v":{"$error":"#N/A"}},{"$f":"'Sundurliðun Útlán'!I197","v":0},".M.EUKULEL.XX.EIN.XXX.XXXX.SX.XXX.EUR.IS.N.M"]
[{"$f":"\"INN.\"&EIGNIR!$B$3&C4420","v":{"$error":"#N/A"}},{"$f":"'Sundurliðun Útlán'!I198","v":0},".M.EUKULEL.XX.NPH.XXX.XXXX.SX.XXX.EUR.IS.N.M"]
[{"$f":"\"INN.\"&EIGNIR!$B$3&C4421","v":{"$error":"#N/A"}},{"$f":"'Sundurliðun Útlán'!I199","v":0},".M.EUKULUE.XX.$$$.XXX.XXXX.SX.XXX.EUR.IS.N.M"]
[{"$f":"\"INN.\"&EIGNIR!$B$3&C4422","v":{"$error":"#N/A"}},{"$f":"'Sundurliðun Útlán'!I200","v":0},".M.EUKULEH.XX.ERL.XXX.XXXX.SX.XXX.EUR.IS.N.M"]
[{"$f":"\"INN.\"&EIGNIR!$B$3&C4423","v":{"$error":"#N/A"}},{"$f":"'Sundurliðun Útlán'!I202","v":0},".M.EUKULEH.XX.ERI.XXX.XXXX.SX.XXX.EUR.IS.N.M"]
[{"$f":"\"INN.\"&EIGNIR!$B$3&C4424","v":{"$error":"#N/A"}},{"$f":"'Sundurliðun Útlán'!I205","v":0},".M.EUKULEH.XX.ERF.XXX.XXXX.SX.XXX.EUR.IS.N.M"]
[{"$f":"\"INN.\"&EIGNIR!$B$3&C4425","v":{"$error":"#N/A"}},{"$f":"'Sundurliðun Útlán'!I207","v":0},".M.EUKULEH.XX.ERA.XXX.XXXX.SX.XXX.EUR.IS.N.M"]
[{"$f":"\"INN.\"&EIGNIR!$B$3&C4426","v":{"$error":"#N/A"}},{"$f":"'Sundurliðun Útlán'!I208","v":0},".M.EUKULED.XX.ERL.XXX.XXXX.SX.XXX.EUR.IS.N.M"]
[{"$f":"\"INN.\"&EIGNIR!$B$3&C4427","v":{"$error":"#N/A"}},{"$f":"'Sundurliðun Útlán'!I210","v":0},".M.EUKULED.XX.ERI.XXX.XXXX.SX.XXX.EUR.IS.N.M"]
[{"$f":"\"INN.\"&EIGNIR!$B$3&C4428","v":{"$error":"#N/A"}},{"$f":"'Sundurliðun Útlán'!I213","v":0},".M.EUKULED.XX.ERF.XXX.XXXX.SX.XXX.EUR.IS.N.M"]
[{"$f":"\"INN.\"&EIGNIR!$B$3&C4429","v":{"$error":"#N/A"}},{"$f":"'Sundurliðun Útlán'!I215","v":0},".M.EUKULED.XX.ERA.XXX.XXXX.SX.XXX.EUR.IS.N.M"]
[{"$f":"\"INN.\"&EIGNIR!$B$3&C4430","v":{"$error":"#N/A"}},{"$f":"'Sundurliðun Útlán'!I216","v":0},".M.EUKULFF.XX.ERL.XXX.XXXX.SX.XXX.EUR.IS.N.M"]
[{"$f":"\"INN.\"&EIGNIR!$B$3&C4431","v":{"$error":"#N/A"}},{"$f":"'Sundurliðun Útlán'!I218","v":0},".M.EUKULFF.XX.ERI.XXX.XXXX.SX.XXX.EUR.IS.N.M"]
[{"$f":"\"INN.\"&EIGNIR!$B$3&C4432","v":{"$error":"#N/A"}},{"$f":"'Sundurliðun Útlán'!I221","v":0},".M.EUKULFF.XX.ERF.XXX.XXXX.SX.XXX.EUR.IS.N.M"]
[{"$f":"\"INN.\"&EIGNIR!$B$3&C4433","v":{"$error":"#N/A"}},{"$f":"'Sundurliðun Útlán'!I223","v":0},".M.EUKULFF.XX.ERA.XXX.XXXX.SX.XXX.EUR.IS.N.M"]
[{"$f":"\"INN.\"&EIGNIR!$B$3&C4434","v":{"$error":"#N/A"}},{"$f":"'Sundurliðun Útlán'!I224","v":0},".M.EUKULOL.XX.ERL.XXX.XXXX.SX.XXX.EUR.IS.N.M","//Önnur erlend lán"]
[{"$f":"\"INN.\"&EIGNIR!$B$3&C4435","v":{"$error":"#N/A"}},{"$f":"'Sundurliðun Útlán'!I226","v":0},".M.EUKULOL.XX.ERI.XXX.XXXX.SX.XXX.EUR.IS.N.M"]
[{"$f":"\"INN.\"&EIGNIR!$B$3&C4436","v":{"$error":"#N/A"}},{"$f":"'Sundurliðun Útlán'!I228","v":0},".M.EUKULOL.XX.ERV.XXX.XXXX.SX.XXX.EUR.IS.N.M"]
[{"$f":"\"INN.\"&EIGNIR!$B$3&C4437","v":{"$error":"#N/A"}},{"$f":"'Sundurliðun Útlán'!I229","v":0},".M.EUKULOL.XX.ERF.XXX.XXXX.SX.XXX.EUR.IS.N.M"]
[{"$f":"\"INN.\"&EIGNIR!$B$3&C4438","v":{"$error":"#N/A"}},{"$f":"'Sundurliðun Útlán'!I230","v":0},".M.EUKULOL.XX.ERO.XXX.XXXX.SX.XXX.EUR.IS.N.M"]
[{"$f":"\"INN.\"&EIGNIR!$B$3&C4439","v":{"$error":"#N/A"}},{"$f":"'Sundurliðun Útlán'!I231","v":0},".M.EUKULOL.XX.ERA.XXX.XXXX.SX.XXX.EUR.IS.N.M"]
[{"$f":"\"INN.\"&EIGNIR!$B$3&C4440","v":{"$error":"#N/A"}},{"$f":"'Sundurliðun Útlán'!I232","v":0},".M.EUKNF$$.XX.XXX.XXX.XXXX.SX.XXX.EUR.IS.N.M"]
[{"$f":"\"INN.\"&EIGNIR!$B$3&C4441","v":{"$error":"#N/A"}},{"$f":"'Sundurliðun Útlán'!I233","v":0},".M.EUKNFAL.XX.XXX.XXX.XXXX.SX.XXX.EUR.IS.N.M"]
[{"$f":"\"INN.\"&EIGNIR!$B$3&C4442","v":{"$error":"#N/A"}},{"$f":"'Sundurliðun Útlán'!I234","v":0},".M.EUKNFST.XX.$$$.XXX.XXXX.SX.XXX.EUR.IS.N.M"]
[{"$f":"\"INN.\"&EIGNIR!$B$3&C4443","v":{"$error":"#N/A"}},{"$f":"'Sundurliðun Útlán'!I235","v":0},".M.EUKNFST.XX.ATV.XXX.XXXX.SX.XXX.EUR.IS.N.M"]
[{"$f":"\"INN.\"&EIGNIR!$B$3&C4444","v":{"$error":"#N/A"}},{"$f":"'Sundurliðun Útlán'!I236","v":0},".M.EUKNFST.XX.LAB.XXX.XXXX.SX.XXX.EUR.IS.N.M"]
[{"$f":"\"INN.\"&EIGNIR!$B$3&C4445","v":{"$error":"#N/A"}},{"$f":"'Sundurliðun Útlán'!I237","v":0},".M.EUKNFST.XX.SJA.XXX.XXXX.SX.XXX.EUR.IS.N.M"]
[{"$f":"\"INN.\"&EIGNIR!$B$3&C4446","v":{"$error":"#N/A"}},{"$f":"'Sundurliðun Útlán'!I238","v":0},".M.EUKNFST.XX.ILA.XXX.XXXX.SX.XXX.EUR.IS.N.M"]
[{"$f":"\"INN.\"&EIGNIR!$B$3&C4447","v":{"$error":"#N/A"}},{"$f":"'Sundurliðun Útlán'!I239","v":0},".M.EUKNFST.XX.ISJ.XXX.XXXX.SX.XXX.EUR.IS.N.M"]
[{"$f":"\"INN.\"&EIGNIR!$B$3&C4448","v":{"$error":"#N/A"}},{"$f":"'Sundurliðun Útlán'!I240","v":0},".M.EUKNFST.XX.IAN.XXX.XXXX.SX.XXX.EUR.IS.N.M"]
[{"$f":"\"INN.\"&EIGNIR!$B$3&C4449","v":{"$error":"#N/A"}},{"$f":"'Sundurliðun Útlán'!I241","v":0},".M.EUKNFST.XX.RAF.XXX.XXXX.SX.XXX.EUR.IS.N.M"]
[{"$f":"\"INN.\"&EIGNIR!$B$3&C4450","v":{"$error":"#N/A"}},{"$f":"'Sundurliðun Útlán'!I242","v":0},".M.EUKNFST.XX.MAN.XXX.XXXX.SX.XXX.EUR.IS.N.M"]
[{"$f":"\"INN.\"&EIGNIR!$B$3&C4451","v":{"$error":"#N/A"}},{"$f":"'Sundurliðun Útlán'!I243","v":0},".M.EUKNFST.XX.VEN.XXX.XXXX.SX.XXX.EUR.IS.N.M"]
[{"$f":"\"INN.\"&EIGNIR!$B$3&C4452","v":{"$error":"#N/A"}},{"$f":"'Sundurliðun Útlán'!I244","v":0},".M.EUKNFST.XX.SAG.XXX.XXXX.SX.XXX.EUR.IS.N.M"]
[{"$f":"\"INN.\"&EIGNIR!$B$3&C4453","v":{"$error":"#N/A"}},{"$f":"'Sundurliðun Útlán'!I245","v":0},".M.EUKNFST.XX.THF.XXX.XXXX.SX.XXX.EUR.IS.N.M"]
[{"$f":"\"INN.\"&EIGNIR!$B$3&C4454","v":{"$error":"#N/A"}},{"$f":"'Sundurliðun Útlán'!I246","v":0},".M.EUKNFST.XX.THH.XXX.XXXX.SX.XXX.EUR.IS.N.M"]
[{"$f":"\"INN.\"&EIGNIR!$B$3&C4455","v":{"$error":"#N/A"}},{"$f":"'Sundurliðun Útlán'!I247","v":0},".M.EUKNFST.XX.THA.XXX.XXXX.SX.XXX.EUR.IS.N.M"]
[{"$f":"\"INN.\"&EIGNIR!$B$3&C4456","v":{"$error":"#N/A"}},{"$f":"'Sundurliðun Útlán'!I248","v":0},".M.EUKNFST.XX.OFL.XXX.XXXX.SX.XXX.EUR.IS.N.M"]
[{"$f":"\"INN.\"&EIGNIR!$B$3&C4457","v":{"$error":"#N/A"}},{"$f":"'Sundurliðun Útlán'!I249","v":0},".M.EUKNFST.XX.FJA.XXX.XXXX.SX.XXX.EUR.IS.N.M"]
[{"$f":"\"INN.\"&EIGNIR!$B$3&C4458","v":{"$error":"#N/A"}},{"$f":"'Sundurliðun Útlán'!I250","v":0},".M.EUKNFST.XXINN.XXX.XXXX.SX.XXX.EUR.IS.N.M"]
[{"$f":"\"INN.\"&EIGNIR!$B$3&C4459","v":{"$error":"#N/A"}},{"$f":"'Sundurliðun Útlán'!I251","v":0},".M.EUKNFST.XX.SLI.XXX.XXXX.SX.XXX.EUR.IS.N.M"]
[{"$f":"\"INN.\"&EIGNIR!$B$3&C4460","v":{"$error":"#N/A"}},{"$f":"'Sundurliðun Útlán'!I252","v":0},".M.EUKNFST.XX.PEN.XXX.XXXX.SX.XXX.EUR.IS.N.M"]
[{"$f":"\"INN.\"&EIGNIR!$B$3&C4461","v":{"$error":"#N/A"}},{"$f":"'Sundurliðun Útlán'!I253","v":0},".M.EUKNFST.XX.SJO.XXX.XXXX.SX.XXX.EUR.IS.N.M"]
[{"$f":"\"INN.\"&EIGNIR!$B$3&C4462","v":{"$error":"#N/A"}},{"$f":"'Sundurliðun Útlán'!I254","v":0},".M.EUKNFST.XX.YFT.XXX.XXXX.SX.XXX.EUR.IS.N.M"]
[{"$f":"\"INN.\"&EIGNIR!$B$3&C4463","v":{"$error":"#N/A"}},{"$f":"'Sundurliðun Útlán'!I255","v":0},".M.EUKNFST.XX.SLY.XXX.XXXX.SX.XXX.EUR.IS.N.M"]
[{"$f":"\"INN.\"&EIGNIR!$B$3&C4464","v":{"$error":"#N/A"}},{"$f":"'Sundurliðun Útlán'!I256","v":0},".M.EUKNFST.XX.FHL.XXX.XXXX.SX.XXX.EUR.IS.N.M"]
[{"$f":"\"INN.\"&EIGNIR!$B$3&C4465","v":{"$error":"#N/A"}},{"$f":"'Sundurliðun Útlán'!I257","v":0},".M.EUKNFST.XX.INF.XXX.XXXX.SX.XXX.EUR.IS.N.M"]
[{"$f":"\"INN.\"&EIGNIR!$B$3&C4466","v":{"$error":"#N/A"}},{"$f":"'Sundurliðun Útlán'!I258","v":0},".M.EUKNFST.XX.TRY.XXX.XXXX.SX.XXX.EUR.IS.N.M"]
[{"$f":"\"INN.\"&EIGNIR!$B$3&C4467","v":{"$error":"#N/A"}},{"$f":"'Sundurliðun Útlán'!I259","v":0},".M.EUKNFST.XX.LIF.XXX.XXXX.SX.XXX.EUR.IS.N.M"]
[{"$f":"\"INN.\"&EIGNIR!$B$3&C4468","v":{"$error":"#N/A"}},{"$f":"'Sundurliðun Útlán'!I260","v":0},".M.EUKNFST.XX.OPI.XXX.XXXX.SX.XXX.EUR.IS.N.M"]
[{"$f":"\"INN.\"&EIGNIR!$B$3&C4469","v":{"$error":"#N/A"}},{"$f":"'Sundurliðun Útlán'!I261","v":0},".M.EUKNFST.XX.RSS.XXX.XXXX.SX.XXX.EUR.IS.N.M"]
[{"$f":"\"INN.\"&EIGNIR!$B$3&C4470","v":{"$error":"#N/A"}},{"$f":"'Sundurliðun Útlán'!I262","v":0},".M.EUKNFST.XX.BAJ.XXX.XXXX.SX.XXX.EUR.IS.N.M"]
[{"$f":"\"INN.\"&EIGNIR!$B$3&C4471","v":{"$error":"#N/A"}},{"$f":"'Sundurliðun Útlán'!I263","v":0},".M.EUKNFST.XX.EIN.XXX.XXXX.SX.XXX.EUR.IS.N.M"]
[{"$f":"\"INN.\"&EIGNIR!$B$3&C4472","v":{"$error":"#N/A"}},{"$f":"'Sundurliðun Útlán'!I264","v":0},".M.EUKNFST.XX.NPH.XXX.XXXX.SX.XXX.EUR.IS.N.M"]
[{"$f":"\"INN.\"&EIGNIR!$B$3&C4473","v":{"$error":"#N/A"}},{"$f":"'Sundurliðun Útlán'!I265","v":0},".M.EUKNFER.XX.ERL.XXX.XXXX.SX.XXX.EUR.IS.N.M"]
[{"$f":"\"INN.\"&EIGNIR!$B$3&C4474","v":{"$error":"#N/A"}},{"$f":"'Sundurliðun Útlán'!I266","v":0},".M.EUKNFEH.XX.ERL.XXX.XXXX.SX.XXX.EUR.IS.N.M"]
[{"$f":"\"INN.\"&EIGNIR!$B$3&C4475","v":{"$error":"#N/A"}},{"$f":"'Sundurliðun Útlán'!I268","v":0},".M.EUKNFEH.XX.ERI.XXX.XXXX.SX.XXX.EUR.IS.N.M"]
[{"$f":"\"INN.\"&EIGNIR!$B$3&C4476","v":{"$error":"#N/A"}},{"$f":"'Sundurliðun Útlán'!I271","v":0},".M.EUKNFEH.XX.ERF.XXX.XXXX.SX.XXX.EUR.IS.N.M"]
[{"$f":"\"INN.\"&EIGNIR!$B$3&C4477","v":{"$error":"#N/A"}},{"$f":"'Sundurliðun Útlán'!I273","v":0},".M.EUKNFEH.XX.ERA.XXX.XXXX.SX.XXX.EUR.IS.N.M"]
[{"$f":"\"INN.\"&EIGNIR!$B$3&C4478","v":{"$error":"#N/A"}},{"$f":"'Sundurliðun Útlán'!I274","v":0},".M.EUKNFED.XX.ERL.XXX.XXXX.SX.XXX.EUR.IS.N.M"]
[{"$f":"\"INN.\"&EIGNIR!$B$3&C4479","v":{"$error":"#N/A"}},{"$f":"'Sundurliðun Útlán'!I276","v":0},".M.EUKNFED.XX.ERI.XXX.XXXX.SX.XXX.EUR.IS.N.M"]
[{"$f":"\"INN.\"&EIGNIR!$B$3&C4480","v":{"$error":"#N/A"}},{"$f":"'Sundurliðun Útlán'!I279","v":0},".M.EUKNFED.XX.ERF.XXX.XXXX.SX.XXX.EUR.IS.N.M"]
[{"$f":"\"INN.\"&EIGNIR!$B$3&C4481","v":{"$error":"#N/A"}},{"$f":"'Sundurliðun Útlán'!I281","v":0},".M.EUKNFED.XX.ERA.XXX.XXXX.SX.XXX.EUR.IS.N.M"]
[{"$f":"\"INN.\"&EIGNIR!$B$3&C4482","v":{"$error":"#N/A"}},{"$f":"'Sundurliðun Útlán'!I282","v":0},".M.EUKNFFF.XX.ERL.XXX.XXXX.SX.XXX.EUR.IS.N.M"]
[{"$f":"\"INN.\"&EIGNIR!$B$3&C4483","v":{"$error":"#N/A"}},{"$f":"'Sundurliðun Útlán'!I284","v":0},".M.EUKNFFF.XX.ERI.XXX.XXXX.SX.XXX.EUR.IS.N.M"]
[{"$f":"\"INN.\"&EIGNIR!$B$3&C4484","v":{"$error":"#N/A"}},{"$f":"'Sundurliðun Útlán'!I287","v":0},".M.EUKNFFF.XX.ERF.XXX.XXXX.SX.XXX.EUR.IS.N.M"]
[{"$f":"\"INN.\"&EIGNIR!$B$3&C4485","v":{"$error":"#N/A"}},{"$f":"'Sundurliðun Útlán'!I289","v":0},".M.EUKNFFF.XX.ERA.XXX.XXXX.SX.XXX.EUR.IS.N.M"]
[{"$f":"\"INN.\"&EIGNIR!$B$3&C4486","v":{"$error":"#N/A"}},{"$f":"'Sundurliðun Útlán'!I290","v":0},".M.EUKNFOL.XX.ERL.XXX.XXXX.SX.XXX.EUR.IS.N.M","//Niðurfærslur, önnur erlend lán"]
[{"$f":"\"INN.\"&EIGNIR!$B$3&C4487","v":{"$error":"#N/A"}},{"$f":"'Sundurliðun Útlán'!I292","v":0},".M.EUKNFOL.XX.ERI.XXX.XXXX.SX.XXX.EUR.IS.N.M"]
[{"$f":"\"INN.\"&EIGNIR!$B$3&C4488","v":{"$error":"#N/A"}},{"$f":"'Sundurliðun Útlán'!I294","v":0},".M.EUKNFOL.XX.ERV.XXX.XXXX.SX.XXX.EUR.IS.N.M"]
[{"$f":"\"INN.\"&EIGNIR!$B$3&C4489","v":{"$error":"#N/A"}},{"$f":"'Sundurliðun Útlán'!I295","v":0},".M.EUKNFOL.XX.ERF.XXX.XXXX.SX.XXX.EUR.IS.N.M"]
[{"$f":"\"INN.\"&EIGNIR!$B$3&C4490","v":{"$error":"#N/A"}},{"$f":"'Sundurliðun Útlán'!I296","v":0},".M.EUKNFOL.XX.ERO.XXX.XXXX.SX.XXX.EUR.IS.N.M"]
[{"$f":"\"INN.\"&EIGNIR!$B$3&C4491","v":{"$error":"#N/A"}},{"$f":"'Sundurliðun Útlán'!I297","v":0},".M.EUKNFOL.XX.ERA.XXX.XXXX.SX.XXX.EUR.IS.N.M"]
[{"$f":"\"INN.\"&EIGNIR!$B$3&C4492","v":{"$error":"#N/A"}},{"$f":"'Sundurliðun Útlán'!J5","v":0},".M.EUK$$$$.XX.$$$.XXX.XXXX.SX.XXX.USD.IS.N.M","//Sundurliðun útlána, USD"]
[{"$f":"\"INN.\"&EIGNIR!$B$3&C4493","v":{"$error":"#N/A"}},{"$f":"'Sundurliðun Útlán'!J6","v":0},".M.EUKIT$$.XX.$$$.XXX.XXXX.SX.XXX.USD.IS.N.M"]
[{"$f":"\"INN.\"&EIGNIR!$B$3&C4494","v":{"$error":"#N/A"}},{"$f":"'Sundurliðun Útlán'!J7","v":0},".M.EUKITII.XX.XXX.XXX.XXXX.SX.XXX.USD.IS.N.M"]
[{"$f":"\"INN.\"&EIGNIR!$B$3&C4495","v":{"$error":"#N/A"}},{"$f":"'Sundurliðun Útlán'!J8","v":0},".M.EUKITIE.XX.XXX.XXX.XXXX.SX.XXX.USD.IS.N.M"]
[{"$f":"\"INN.\"&EIGNIR!$B$3&C4496","v":{"$error":"#N/A"}},{"$f":"'Sundurliðun Útlán'!J9","v":0},".M.EUKITIT.XX.XXX.XXX.XXXX.SX.XXX.USD.IS.N.M"]
[{"$f":"\"INN.\"&EIGNIR!$B$3&C4497","v":{"$error":"#N/A"}},{"$f":"'Sundurliðun Útlán'!J10","v":0},".M.EUKUL$$.XX.$$$.XXX.XXXX.SX.XXX.USD.IS.N.M"]
[{"$f":"\"INN.\"&EIGNIR!$B$3&C4498","v":{"$error":"#N/A"}},{"$f":"'Sundurliðun Útlán'!J11","v":0},".M.EUKULIA.XX.$$$.XXX.XXXX.SX.XXX.USD.IS.N.M"]
[{"$f":"\"INN.\"&EIGNIR!$B$3&C4499","v":{"$error":"#N/A"}},{"$f":"'Sundurliðun Útlán'!J12","v":0},".M.EUKULIA.XX.ATV.XXX.XXXX.SX.XXX.USD.IS.N.M"]
[{"$f":"\"INN.\"&EIGNIR!$B$3&C4500","v":{"$error":"#N/A"}},{"$f":"'Sundurliðun Útlán'!J26","v":0},".M.EUKULIA.XX.FJA.XXX.XXXX.SX.XXX.USD.IS.N.M"]
[{"$f":"\"INN.\"&EIGNIR!$B$3&C4501","v":{"$error":"#N/A"}},{"$f":"'Sundurliðun Útlán'!J27","v":0},".M.EUKULIA.XX.INN.XXX.XXXX.SX.XXX.USD.IS.N.M"]
[{"$f":"\"INN.\"&EIGNIR!$B$3&C4502","v":{"$error":"#N/A"}},{"$f":"'Sundurliðun Útlán'!J28","v":0},".M.EUKULIA.XX.SLI.XXX.XXXX.SX.XXX.USD.IS.N.M"]
[{"$f":"\"INN.\"&EIGNIR!$B$3&C4503","v":{"$error":"#N/A"}},{"$f":"'Sundurliðun Útlán'!J29","v":0},".M.EUKULIA.XX.PEN.XXX.XXXX.SX.XXX.USD.IS.N.M"]
[{"$f":"\"INN.\"&EIGNIR!$B$3&C4504","v":{"$error":"#N/A"}},{"$f":"'Sundurliðun Útlán'!J30","v":0},".M.EUKULIA.XX.SJO.XXX.XXXX.SX.XXX.USD.IS.N.M"]
[{"$f":"\"INN.\"&EIGNIR!$B$3&C4505","v":{"$error":"#N/A"}},{"$f":"'Sundurliðun Útlán'!J31","v":0},".M.EUKULIA.XX.YFT.XXX.XXXX.SX.XXX.USD.IS.N.M"]
[{"$f":"\"INN.\"&EIGNIR!$B$3&C4506","v":{"$error":"#N/A"}},{"$f":"'Sundurliðun Útlán'!J32","v":0},".M.EUKULIA.XX.SLY.XXX.XXXX.SX.XXX.USD.IS.N.M"]
[{"$f":"\"INN.\"&EIGNIR!$B$3&C4507","v":{"$error":"#N/A"}},{"$f":"'Sundurliðun Útlán'!J33","v":0},".M.EUKULIA.XX.FHL.XXX.XXXX.SX.XXX.USD.IS.N.M"]
[{"$f":"\"INN.\"&EIGNIR!$B$3&C4508","v":{"$error":"#N/A"}},{"$f":"'Sundurliðun Útlán'!J34","v":0},".M.EUKULIA.XX.INF.XXX.XXXX.SX.XXX.USD.IS.N.M"]
[{"$f":"\"INN.\"&EIGNIR!$B$3&C4509","v":{"$error":"#N/A"}},{"$f":"'Sundurliðun Útlán'!J35","v":0},".M.EUKULIA.XX.TRY.XXX.XXXX.SX.XXX.USD.IS.N.M"]
[{"$f":"\"INN.\"&EIGNIR!$B$3&C4510","v":{"$error":"#N/A"}},{"$f":"'Sundurliðun Útlán'!J36","v":0},".M.EUKULIA.XX.LIF.XXX.XXXX.SX.XXX.USD.IS.N.M"]
[{"$f":"\"INN.\"&EIGNIR!$B$3&C4511","v":{"$error":"#N/A"}},{"$f":"'Sundurliðun Útlán'!J37","v":0},".M.EUKULIA.XX.OPI.XXX.XXXX.SX.XXX.USD.IS.N.M"]
[{"$f":"\"INN.\"&EIGNIR!$B$3&C4512","v":{"$error":"#N/A"}},{"$f":"'Sundurliðun Útlán'!J38","v":0},".M.EUKULIA.XX.RSS.XXX.XXXX.SX.XXX.USD.IS.N.M"]
[{"$f":"\"INN.\"&EIGNIR!$B$3&C4513","v":{"$error":"#N/A"}},{"$f":"'Sundurliðun Útlán'!J39","v":0},".M.EUKULIA.XX.BAJ.XXX.XXXX.SX.XXX.USD.IS.N.M"]
[{"$f":"\"INN.\"&EIGNIR!$B$3&C4514","v":{"$error":"#N/A"}},{"$f":"'Sundurliðun Útlán'!J40","v":0},".M.EUKULIA.XX.EIN.XXX.XXXX.SX.XXX.USD.IS.N.M"]
[{"$f":"\"INN.\"&EIGNIR!$B$3&C4515","v":{"$error":"#N/A"}},{"$f":"'Sundurliðun Útlán'!J41","v":0},".M.EUKULIA.XX.NPH.XXX.XXXX.SX.XXX.USD.IS.N.M"]
[{"$f":"\"INN.\"&EIGNIR!$B$3&C4516","v":{"$error":"#N/A"}},{"$f":"'Sundurliðun Útlán'!J42","v":0},".M.EUKULYL.XX.$$$.XXX.XXXX.SX.XXX.USD.IS.N.M"]
[{"$f":"\"INN.\"&EIGNIR!$B$3&C4517","v":{"$error":"#N/A"}},{"$f":"'Sundurliðun Útlán'!J43","v":0},".M.EUKULYL.XX.ATV.XXX.XXXX.SX.XXX.USD.IS.N.M"]
[{"$f":"\"INN.\"&EIGNIR!$B$3&C4518","v":{"$error":"#N/A"}},{"$f":"'Sundurliðun Útlán'!J57","v":0},".M.EUKULYL.XX.FJA.XXX.XXXX.SX.XXX.USD.IS.N.M"]
[{"$f":"\"INN.\"&EIGNIR!$B$3&C4519","v":{"$error":"#N/A"}},{"$f":"'Sundurliðun Útlán'!J58","v":0},".M.EUKULYL.XX.INN.XXX.XXXX.SX.XXX.USD.IS.N.M"]
[{"$f":"\"INN.\"&EIGNIR!$B$3&C4520","v":{"$error":"#N/A"}},{"$f":"'Sundurliðun Útlán'!J59","v":0},".M.EUKULYL.XX.SLI.XXX.XXXX.SX.XXX.USD.IS.N.M"]
[{"$f":"\"INN.\"&EIGNIR!$B$3&C4521","v":{"$error":"#N/A"}},{"$f":"'Sundurliðun Útlán'!J60","v":0},".M.EUKULYL.XX.PEN.XXX.XXXX.SX.XXX.USD.IS.N.M"]
[{"$f":"\"INN.\"&EIGNIR!$B$3&C4522","v":{"$error":"#N/A"}},{"$f":"'Sundurliðun Útlán'!J61","v":0},".M.EUKULYL.XX.SJO.XXX.XXXX.SX.XXX.USD.IS.N.M"]
[{"$f":"\"INN.\"&EIGNIR!$B$3&C4523","v":{"$error":"#N/A"}},{"$f":"'Sundurliðun Útlán'!J62","v":0},".M.EUKULYL.XX.YFT.XXX.XXXX.SX.XXX.USD.IS.N.M"]
[{"$f":"\"INN.\"&EIGNIR!$B$3&C4524","v":{"$error":"#N/A"}},{"$f":"'Sundurliðun Útlán'!J63","v":0},".M.EUKULYL.XX.SLY.XXX.XXXX.SX.XXX.USD.IS.N.M"]
[{"$f":"\"INN.\"&EIGNIR!$B$3&C4525","v":{"$error":"#N/A"}},{"$f":"'Sundurliðun Útlán'!J64","v":0},".M.EUKULYL.XX.FHL.XXX.XXXX.SX.XXX.USD.IS.N.M"]
[{"$f":"\"INN.\"&EIGNIR!$B$3&C4526","v":{"$error":"#N/A"}},{"$f":"'Sundurliðun Útlán'!J65","v":0},".M.EUKULYL.XX.INF.XXX.XXXX.SX.XXX.USD.IS.N.M"]
[{"$f":"\"INN.\"&EIGNIR!$B$3&C4527","v":{"$error":"#N/A"}},{"$f":"'Sundurliðun Útlán'!J66","v":0},".M.EUKULYL.XX.TRY.XXX.XXXX.SX.XXX.USD.IS.N.M"]
[{"$f":"\"INN.\"&EIGNIR!$B$3&C4528","v":{"$error":"#N/A"}},{"$f":"'Sundurliðun Útlán'!J67","v":0},".M.EUKULYL.XX.LIF.XXX.XXXX.SX.XXX.USD.IS.N.M"]
[{"$f":"\"INN.\"&EIGNIR!$B$3&C4529","v":{"$error":"#N/A"}},{"$f":"'Sundurliðun Útlán'!J68","v":0},".M.EUKULYL.XX.OPI.XXX.XXXX.SX.XXX.USD.IS.N.M"]
[{"$f":"\"INN.\"&EIGNIR!$B$3&C4530","v":{"$error":"#N/A"}},{"$f":"'Sundurliðun Útlán'!J69","v":0},".M.EUKULYL.XX.RSS.XXX.XXXX.SX.XXX.USD.IS.N.M"]
[{"$f":"\"INN.\"&EIGNIR!$B$3&C4531","v":{"$error":"#N/A"}},{"$f":"'Sundurliðun Útlán'!J70","v":0},".M.EUKULYL.XX.BAJ.XXX.XXXX.SX.XXX.USD.IS.N.M"]
[{"$f":"\"INN.\"&EIGNIR!$B$3&C4532","v":{"$error":"#N/A"}},{"$f":"'Sundurliðun Útlán'!J71","v":0},".M.EUKULYL.XX.EIN.XXX.XXXX.SX.XXX.USD.IS.N.M"]
[{"$f":"\"INN.\"&EIGNIR!$B$3&C4533","v":{"$error":"#N/A"}},{"$f":"'Sundurliðun Útlán'!J72","v":0},".M.EUKULYL.XX.NPH.XXX.XXXX.SX.XXX.USD.IS.N.M"]
[{"$f":"\"INN.\"&EIGNIR!$B$3&C4534","v":{"$error":"#N/A"}},{"$f":"'Sundurliðun Útlán'!J73","v":0},".M.EUKULVX.XX.$$$.XXX.XXXX.SX.XXX.USD.IS.N.M"]
[{"$f":"\"INN.\"&EIGNIR!$B$3&C4535","v":{"$error":"#N/A"}},{"$f":"'Sundurliðun Útlán'!J74","v":0},".M.EUKULVX.XX.ATV.XXX.XXXX.SX.XXX.USD.IS.N.M"]
[{"$f":"\"INN.\"&EIGNIR!$B$3&C4536","v":{"$error":"#N/A"}},{"$f":"'Sundurliðun Útlán'!J88","v":0},".M.EUKULVX.XX.FJA.XXX.XXXX.SX.XXX.USD.IS.N.M"]
[{"$f":"\"INN.\"&EIGNIR!$B$3&C4537","v":{"$error":"#N/A"}},{"$f":"'Sundurliðun Útlán'!J89","v":0},".M.EUKULVX.XX.INN.XXX.XXXX.SX.XXX.USD.IS.N.M"]
[{"$f":"\"INN.\"&EIGNIR!$B$3&C4538","v":{"$error":"#N/A"}},{"$f":"'Sundurliðun Útlán'!J90","v":0},".M.EUKULVX.XX.SLI.XXX.XXXX.SX.XXX.USD.IS.N.M"]
[{"$f":"\"INN.\"&EIGNIR!$B$3&C4539","v":{"$error":"#N/A"}},{"$f":"'Sundurliðun Útlán'!J91","v":0},".M.EUKULVX.XX.PEN.XXX.XXXX.SX.XXX.USD.IS.N.M"]
[{"$f":"\"INN.\"&EIGNIR!$B$3&C4540","v":{"$error":"#N/A"}},{"$f":"'Sundurliðun Útlán'!J92","v":0},".M.EUKULVX.XX.SJO.XXX.XXXX.SX.XXX.USD.IS.N.M"]
[{"$f":"\"INN.\"&EIGNIR!$B$3&C4541","v":{"$error":"#N/A"}},{"$f":"'Sundurliðun Útlán'!J93","v":0},".M.EUKULVX.XX.YFT.XXX.XXXX.SX.XXX.USD.IS.N.M"]
[{"$f":"\"INN.\"&EIGNIR!$B$3&C4542","v":{"$error":"#N/A"}},{"$f":"'Sundurliðun Útlán'!J94","v":0},".M.EUKULVX.XX.SLY.XXX.XXXX.SX.XXX.USD.IS.N.M"]
[{"$f":"\"INN.\"&EIGNIR!$B$3&C4543","v":{"$error":"#N/A"}},{"$f":"'Sundurliðun Útlán'!J95","v":0},".M.EUKULVX.XX.FHL.XXX.XXXX.SX.XXX.USD.IS.N.M"]
[{"$f":"\"INN.\"&EIGNIR!$B$3&C4544","v":{"$error":"#N/A"}},{"$f":"'Sundurliðun Útlán'!J96","v":0},".M.EUKULVX.XX.INF.XXX.XXXX.SX.XXX.USD.IS.N.M"]
[{"$f":"\"INN.\"&EIGNIR!$B$3&C4545","v":{"$error":"#N/A"}},{"$f":"'Sundurliðun Útlán'!J97","v":0},".M.EUKULVX.XX.TRY.XXX.XXXX.SX.XXX.USD.IS.N.M"]
[{"$f":"\"INN.\"&EIGNIR!$B$3&C4546","v":{"$error":"#N/A"}},{"$f":"'Sundurliðun Útlán'!J98","v":0},".M.EUKULVX.XX.LIF.XXX.XXXX.SX.XXX.USD.IS.N.M"]
[{"$f":"\"INN.\"&EIGNIR!$B$3&C4547","v":{"$error":"#N/A"}},{"$f":"'Sundurliðun Útlán'!J99","v":0},".M.EUKULVX.XX.OPI.XXX.XXXX.SX.XXX.USD.IS.N.M"]
[{"$f":"\"INN.\"&EIGNIR!$B$3&C4548","v":{"$error":"#N/A"}},{"$f":"'Sundurliðun Útlán'!J100","v":0},".M.EUKULVX.XX.RSS.XXX.XXXX.SX.XXX.USD.IS.N.M"]
[{"$f":"\"INN.\"&EIGNIR!$B$3&C4549","v":{"$error":"#N/A"}},{"$f":"'Sundurliðun Útlán'!J101","v":0},".M.EUKULVX.XX.BAJ.XXX.XXXX.SX.XXX.USD.IS.N.M"]
[{"$f":"\"INN.\"&EIGNIR!$B$3&C4550","v":{"$error":"#N/A"}},{"$f":"'Sundurliðun Útlán'!J102","v":0},".M.EUKULVX.XX.EIN.XXX.XXXX.SX.XXX.USD.IS.N.M"]
[{"$f":"\"INN.\"&EIGNIR!$B$3&C4551","v":{"$error":"#N/A"}},{"$f":"'Sundurliðun Útlán'!J103","v":0},".M.EUKULVX.XX.NPH.XXX.XXXX.SX.XXX.USD.IS.N.M"]
[{"$f":"\"INN.\"&EIGNIR!$B$3&C4552","v":{"$error":"#N/A"}},{"$f":"'Sundurliðun Útlán'!J136","v":0},".M.EUKULOU.XX.$$$.XXX.XXXX.SX.XXX.USD.IS.N.M"]
[{"$f":"\"INN.\"&EIGNIR!$B$3&C4553","v":{"$error":"#N/A"}},{"$f":"'Sundurliðun Útlán'!J137","v":0},".M.EUKULOU.XX.ATV.XXX.XXXX.SX.XXX.USD.IS.N.M"]
[{"$f":"\"INN.\"&EIGNIR!$B$3&C4554","v":{"$error":"#N/A"}},{"$f":"'Sundurliðun Útlán'!J151","v":0},".M.EUKULOU.XX.FJA.XXX.XXXX.SX.XXX.USD.IS.N.M"]
[{"$f":"\"INN.\"&EIGNIR!$B$3&C4555","v":{"$error":"#N/A"}},{"$f":"'Sundurliðun Útlán'!J152","v":0},".M.EUKULOU.XX.INN.XXX.XXXX.SX.XXX.USD.IS.N.M"]
[{"$f":"\"INN.\"&EIGNIR!$B$3&C4556","v":{"$error":"#N/A"}},{"$f":"'Sundurliðun Útlán'!J153","v":0},".M.EUKULOU.XX.SLI.XXX.XXXX.SX.XXX.USD.IS.N.M"]
[{"$f":"\"INN.\"&EIGNIR!$B$3&C4557","v":{"$error":"#N/A"}},{"$f":"'Sundurliðun Útlán'!J154","v":0},".M.EUKULOU.XX.PEN.XXX.XXXX.SX.XXX.USD.IS.N.M"]
[{"$f":"\"INN.\"&EIGNIR!$B$3&C4558","v":{"$error":"#N/A"}},{"$f":"'Sundurliðun Útlán'!J155","v":0},".M.EUKULOU.XX.SJO.XXX.XXXX.SX.XXX.USD.IS.N.M"]
[{"$f":"\"INN.\"&EIGNIR!$B$3&C4559","v":{"$error":"#N/A"}},{"$f":"'Sundurliðun Útlán'!J156","v":0},".M.EUKULOU.XX.YFT.XXX.XXXX.SX.XXX.USD.IS.N.M"]
[{"$f":"\"INN.\"&EIGNIR!$B$3&C4560","v":{"$error":"#N/A"}},{"$f":"'Sundurliðun Útlán'!J157","v":0},".M.EUKULOU.XX.SLY.XXX.XXXX.SX.XXX.USD.IS.N.M"]
[{"$f":"\"INN.\"&EIGNIR!$B$3&C4561","v":{"$error":"#N/A"}},{"$f":"'Sundurliðun Útlán'!J158","v":0},".M.EUKULOU.XX.FHL.XXX.XXXX.SX.XXX.USD.IS.N.M"]
[{"$f":"\"INN.\"&EIGNIR!$B$3&C4562","v":{"$error":"#N/A"}},{"$f":"'Sundurliðun Útlán'!J159","v":0},".M.EUKULOU.XX.INF.XXX.XXXX.SX.XXX.USD.IS.N.M"]
[{"$f":"\"INN.\"&EIGNIR!$B$3&C4563","v":{"$error":"#N/A"}},{"$f":"'Sundurliðun Útlán'!J160","v":0},".M.EUKULOU.XX.TRY.XXX.XXXX.SX.XXX.USD.IS.N.M"]
[{"$f":"\"INN.\"&EIGNIR!$B$3&C4564","v":{"$error":"#N/A"}},{"$f":"'Sundurliðun Útlán'!J161","v":0},".M.EUKULOU.XX.LIF.XXX.XXXX.SX.XXX.USD.IS.N.M"]
[{"$f":"\"INN.\"&EIGNIR!$B$3&C4565","v":{"$error":"#N/A"}},{"$f":"'Sundurliðun Útlán'!J162","v":0},".M.EUKULOU.XX.OPI.XXX.XXXX.SX.XXX.USD.IS.N.M"]
[{"$f":"\"INN.\"&EIGNIR!$B$3&C4566","v":{"$error":"#N/A"}},{"$f":"'Sundurliðun Útlán'!J163","v":0},".M.EUKULOU.XX.RSS.XXX.XXXX.SX.XXX.USD.IS.N.M"]
[{"$f":"\"INN.\"&EIGNIR!$B$3&C4567","v":{"$error":"#N/A"}},{"$f":"'Sundurliðun Útlán'!J164","v":0},".M.EUKULOU.XX.BAJ.XXX.XXXX.SX.XXX.USD.IS.N.M"]
[{"$f":"\"INN.\"&EIGNIR!$B$3&C4568","v":{"$error":"#N/A"}},{"$f":"'Sundurliðun Útlán'!J165","v":0},".M.EUKULOU.XX.EIB.XXX.XXXX.SX.XXX.USD.IS.N.M"]
[{"$f":"\"INN.\"&EIGNIR!$B$3&C4569","v":{"$error":"#N/A"}},{"$f":"'Sundurliðun Útlán'!J166","v":0},".M.EUKULOU.XX.ANN.XXX.XXXX.SX.XXX.USD.IS.N.M"]
[{"$f":"\"INN.\"&EIGNIR!$B$3&C4570","v":{"$error":"#N/A"}},{"$f":"'Sundurliðun Útlán'!J167","v":0},".M.EUKULOU.XX.NPH.XXX.XXXX.SX.XXX.USD.IS.N.M"]
[{"$f":"\"INN.\"&EIGNIR!$B$3&C4571","v":{"$error":"#N/A"}},{"$f":"'Sundurliðun Útlán'!J168","v":0},".M.EUKULEL.XX.$$$.XXX.XXXX.SX.XXX.USD.IS.N.M"]
[{"$f":"\"INN.\"&EIGNIR!$B$3&C4572","v":{"$error":"#N/A"}},{"$f":"'Sundurliðun Útlán'!J169","v":0},".M.EUKULEL.XX.ATV.XXX.XXXX.SX.XXX.USD.IS.N.M"]
[{"$f":"\"INN.\"&EIGNIR!$B$3&C4573","v":{"$error":"#N/A"}},{"$f":"'Sundurliðun Útlán'!J183","v":0},".M.EUKULEL.XX.FJA.XXX.XXXX.SX.XXX.USD.IS.N.M"]
[{"$f":"\"INN.\"&EIGNIR!$B$3&C4574","v":{"$error":"#N/A"}},{"$f":"'Sundurliðun Útlán'!J184","v":0},".M.EUKULEL.XX.INN.XXX.XXXX.SX.XXX.USD.IS.N.M"]
[{"$f":"\"INN.\"&EIGNIR!$B$3&C4575","v":{"$error":"#N/A"}},{"$f":"'Sundurliðun Útlán'!J185","v":0},".M.EUKULEL.XX.SLI.XXX.XXXX.SX.XXX.USD.IS.N.M"]
[{"$f":"\"INN.\"&EIGNIR!$B$3&C4576","v":{"$error":"#N/A"}},{"$f":"'Sundurliðun Útlán'!J186","v":0},".M.EUKULEL.XX.PEN.XXX.XXXX.SX.XXX.USD.IS.N.M"]
[{"$f":"\"INN.\"&EIGNIR!$B$3&C4577","v":{"$error":"#N/A"}},{"$f":"'Sundurliðun Útlán'!J187","v":0},".M.EUKULEL.XX.SJO.XXX.XXXX.SX.XXX.USD.IS.N.M"]
[{"$f":"\"INN.\"&EIGNIR!$B$3&C4578","v":{"$error":"#N/A"}},{"$f":"'Sundurliðun Útlán'!J188","v":0},".M.EUKULEL.XX.YFT.XXX.XXXX.SX.XXX.USD.IS.N.M"]
[{"$f":"\"INN.\"&EIGNIR!$B$3&C4579","v":{"$error":"#N/A"}},{"$f":"'Sundurliðun Útlán'!J189","v":0},".M.EUKULEL.XX.SLY.XXX.XXXX.SX.XXX.USD.IS.N.M"]
[{"$f":"\"INN.\"&EIGNIR!$B$3&C4580","v":{"$error":"#N/A"}},{"$f":"'Sundurliðun Útlán'!J190","v":0},".M.EUKULEL.XX.FHL.XXX.XXXX.SX.XXX.USD.IS.N.M"]
[{"$f":"\"INN.\"&EIGNIR!$B$3&C4581","v":{"$error":"#N/A"}},{"$f":"'Sundurliðun Útlán'!J191","v":0},".M.EUKULEL.XX.INF.XXX.XXXX.SX.XXX.USD.IS.N.M"]
[{"$f":"\"INN.\"&EIGNIR!$B$3&C4582","v":{"$error":"#N/A"}},{"$f":"'Sundurliðun Útlán'!J192","v":0},".M.EUKULEL.XX.TRY.XXX.XXXX.SX.XXX.USD.IS.N.M"]
[{"$f":"\"INN.\"&EIGNIR!$B$3&C4583","v":{"$error":"#N/A"}},{"$f":"'Sundurliðun Útlán'!J193","v":0},".M.EUKULEL.XX.LIF.XXX.XXXX.SX.XXX.USD.IS.N.M"]
[{"$f":"\"INN.\"&EIGNIR!$B$3&C4584","v":{"$error":"#N/A"}},{"$f":"'Sundurliðun Útlán'!J194","v":0},".M.EUKULEL.XX.OPI.XXX.XXXX.SX.XXX.USD.IS.N.M"]
[{"$f":"\"INN.\"&EIGNIR!$B$3&C4585","v":{"$error":"#N/A"}},{"$f":"'Sundurliðun Útlán'!J195","v":0},".M.EUKULEL.XX.RSS.XXX.XXXX.SX.XXX.USD.IS.N.M"]
[{"$f":"\"INN.\"&EIGNIR!$B$3&C4586","v":{"$error":"#N/A"}},{"$f":"'Sundurliðun Útlán'!J196","v":0},".M.EUKULEL.XX.BAJ.XXX.XXXX.SX.XXX.USD.IS.N.M"]
[{"$f":"\"INN.\"&EIGNIR!$B$3&C4587","v":{"$error":"#N/A"}},{"$f":"'Sundurliðun Útlán'!J197","v":0},".M.EUKULEL.XX.EIN.XXX.XXXX.SX.XXX.USD.IS.N.M"]
[{"$f":"\"INN.\"&EIGNIR!$B$3&C4588","v":{"$error":"#N/A"}},{"$f":"'Sundurliðun Útlán'!J198","v":0},".M.EUKULEL.XX.NPH.XXX.XXXX.SX.XXX.USD.IS.N.M"]
[{"$f":"\"INN.\"&EIGNIR!$B$3&C4589","v":{"$error":"#N/A"}},{"$f":"'Sundurliðun Útlán'!J199","v":0},".M.EUKULUE.XX.$$$.XXX.XXXX.SX.XXX.USD.IS.N.M"]
[{"$f":"\"INN.\"&EIGNIR!$B$3&C4590","v":{"$error":"#N/A"}},{"$f":"'Sundurliðun Útlán'!J200","v":0},".M.EUKULEH.XX.ERL.XXX.XXXX.SX.XXX.USD.IS.N.M"]
[{"$f":"\"INN.\"&EIGNIR!$B$3&C4591","v":{"$error":"#N/A"}},{"$f":"'Sundurliðun Útlán'!J202","v":0},".M.EUKULEH.XX.ERI.XXX.XXXX.SX.XXX.USD.IS.N.M"]
[{"$f":"\"INN.\"&EIGNIR!$B$3&C4592","v":{"$error":"#N/A"}},{"$f":"'Sundurliðun Útlán'!J205","v":0},".M.EUKULEH.XX.ERF.XXX.XXXX.SX.XXX.USD.IS.N.M"]
[{"$f":"\"INN.\"&EIGNIR!$B$3&C4593","v":{"$error":"#N/A"}},{"$f":"'Sundurliðun Útlán'!J207","v":0},".M.EUKULEH.XX.ERA.XXX.XXXX.SX.XXX.USD.IS.N.M"]
[{"$f":"\"INN.\"&EIGNIR!$B$3&C4594","v":{"$error":"#N/A"}},{"$f":"'Sundurliðun Útlán'!J208","v":0},".M.EUKULED.XX.ERL.XXX.XXXX.SX.XXX.USD.IS.N.M"]
[{"$f":"\"INN.\"&EIGNIR!$B$3&C4595","v":{"$error":"#N/A"}},{"$f":"'Sundurliðun Útlán'!J210","v":0},".M.EUKULED.XX.ERI.XXX.XXXX.SX.XXX.USD.IS.N.M"]
[{"$f":"\"INN.\"&EIGNIR!$B$3&C4596","v":{"$error":"#N/A"}},{"$f":"'Sundurliðun Útlán'!J213","v":0},".M.EUKULED.XX.ERF.XXX.XXXX.SX.XXX.USD.IS.N.M"]
[{"$f":"\"INN.\"&EIGNIR!$B$3&C4597","v":{"$error":"#N/A"}},{"$f":"'Sundurliðun Útlán'!J215","v":0},".M.EUKULED.XX.ERA.XXX.XXXX.SX.XXX.USD.IS.N.M"]
[{"$f":"\"INN.\"&EIGNIR!$B$3&C4598","v":{"$error":"#N/A"}},{"$f":"'Sundurliðun Útlán'!J216","v":0},".M.EUKULFF.XX.ERL.XXX.XXXX.SX.XXX.USD.IS.N.M"]
[{"$f":"\"INN.\"&EIGNIR!$B$3&C4599","v":{"$error":"#N/A"}},{"$f":"'Sundurliðun Útlán'!J218","v":0},".M.EUKULFF.XX.ERI.XXX.XXXX.SX.XXX.USD.IS.N.M"]
[{"$f":"\"INN.\"&EIGNIR!$B$3&C4600","v":{"$error":"#N/A"}},{"$f":"'Sundurliðun Útlán'!J221","v":0},".M.EUKULFF.XX.ERF.XXX.XXXX.SX.XXX.USD.IS.N.M"]
[{"$f":"\"INN.\"&EIGNIR!$B$3&C4601","v":{"$error":"#N/A"}},{"$f":"'Sundurliðun Útlán'!J223","v":0},".M.EUKULFF.XX.ERA.XXX.XXXX.SX.XXX.USD.IS.N.M"]
[{"$f":"\"INN.\"&EIGNIR!$B$3&C4602","v":{"$error":"#N/A"}},{"$f":"'Sundurliðun Útlán'!J224","v":0},".M.EUKULOL.XX.ERL.XXX.XXXX.SX.XXX.USD.IS.N.M","//Önnur erlend lán"]
[{"$f":"\"INN.\"&EIGNIR!$B$3&C4603","v":{"$error":"#N/A"}},{"$f":"'Sundurliðun Útlán'!J226","v":0},".M.EUKULOL.XX.ERI.XXX.XXXX.SX.XXX.USD.IS.N.M"]
[{"$f":"\"INN.\"&EIGNIR!$B$3&C4604","v":{"$error":"#N/A"}},{"$f":"'Sundurliðun Útlán'!J228","v":0},".M.EUKULOL.XX.ERV.XXX.XXXX.SX.XXX.USD.IS.N.M"]
[{"$f":"\"INN.\"&EIGNIR!$B$3&C4605","v":{"$error":"#N/A"}},{"$f":"'Sundurliðun Útlán'!J229","v":0},".M.EUKULOL.XX.ERF.XXX.XXXX.SX.XXX.USD.IS.N.M"]
[{"$f":"\"INN.\"&EIGNIR!$B$3&C4606","v":{"$error":"#N/A"}},{"$f":"'Sundurliðun Útlán'!J230","v":0},".M.EUKULOL.XX.ERO.XXX.XXXX.SX.XXX.USD.IS.N.M"]
[{"$f":"\"INN.\"&EIGNIR!$B$3&C4607","v":{"$error":"#N/A"}},{"$f":"'Sundurliðun Útlán'!J231","v":0},".M.EUKULOL.XX.ERA.XXX.XXXX.SX.XXX.USD.IS.N.M"]
[{"$f":"\"INN.\"&EIGNIR!$B$3&C4608","v":{"$error":"#N/A"}},{"$f":"'Sundurliðun Útlán'!J232","v":0},".M.EUKNF$$.XX.XXX.XXX.XXXX.SX.XXX.USD.IS.N.M"]
[{"$f":"\"INN.\"&EIGNIR!$B$3&C4609","v":{"$error":"#N/A"}},{"$f":"'Sundurliðun Útlán'!J233","v":0},".M.EUKNFAL.XX.XXX.XXX.XXXX.SX.XXX.USD.IS.N.M"]
[{"$f":"\"INN.\"&EIGNIR!$B$3&C4610","v":{"$error":"#N/A"}},{"$f":"'Sundurliðun Útlán'!J234","v":0},".M.EUKNFST.XX.$$$.XXX.XXXX.SX.XXX.USD.IS.N.M"]
[{"$f":"\"INN.\"&EIGNIR!$B$3&C4611","v":{"$error":"#N/A"}},{"$f":"'Sundurliðun Útlán'!J235","v":0},".M.EUKNFST.XX.ATV.XXX.XXXX.SX.XXX.USD.IS.N.M"]
[{"$f":"\"INN.\"&EIGNIR!$B$3&C4612","v":{"$error":"#N/A"}},{"$f":"'Sundurliðun Útlán'!J236","v":0},".M.EUKNFST.XX.LAB.XXX.XXXX.SX.XXX.USD.IS.N.M"]
[{"$f":"\"INN.\"&EIGNIR!$B$3&C4613","v":{"$error":"#N/A"}},{"$f":"'Sundurliðun Útlán'!J237","v":0},".M.EUKNFST.XX.SJA.XXX.XXXX.SX.XXX.USD.IS.N.M"]
[{"$f":"\"INN.\"&EIGNIR!$B$3&C4614","v":{"$error":"#N/A"}},{"$f":"'Sundurliðun Útlán'!J238","v":0},".M.EUKNFST.XX.ILA.XXX.XXXX.SX.XXX.USD.IS.N.M"]
[{"$f":"\"INN.\"&EIGNIR!$B$3&C4615","v":{"$error":"#N/A"}},{"$f":"'Sundurliðun Útlán'!J239","v":0},".M.EUKNFST.XX.ISJ.XXX.XXXX.SX.XXX.USD.IS.N.M"]
[{"$f":"\"INN.\"&EIGNIR!$B$3&C4616","v":{"$error":"#N/A"}},{"$f":"'Sundurliðun Útlán'!J240","v":0},".M.EUKNFST.XX.IAN.XXX.XXXX.SX.XXX.USD.IS.N.M"]
[{"$f":"\"INN.\"&EIGNIR!$B$3&C4617","v":{"$error":"#N/A"}},{"$f":"'Sundurliðun Útlán'!J241","v":0},".M.EUKNFST.XX.RAF.XXX.XXXX.SX.XXX.USD.IS.N.M"]
[{"$f":"\"INN.\"&EIGNIR!$B$3&C4618","v":{"$error":"#N/A"}},{"$f":"'Sundurliðun Útlán'!J242","v":0},".M.EUKNFST.XX.MAN.XXX.XXXX.SX.XXX.USD.IS.N.M"]
[{"$f":"\"INN.\"&EIGNIR!$B$3&C4619","v":{"$error":"#N/A"}},{"$f":"'Sundurliðun Útlán'!J243","v":0},".M.EUKNFST.XX.VEN.XXX.XXXX.SX.XXX.USD.IS.N.M"]
[{"$f":"\"INN.\"&EIGNIR!$B$3&C4620","v":{"$error":"#N/A"}},{"$f":"'Sundurliðun Útlán'!J244","v":0},".M.EUKNFST.XX.SAG.XXX.XXXX.SX.XXX.USD.IS.N.M"]
[{"$f":"\"INN.\"&EIGNIR!$B$3&C4621","v":{"$error":"#N/A"}},{"$f":"'Sundurliðun Útlán'!J245","v":0},".M.EUKNFST.XX.THF.XXX.XXXX.SX.XXX.USD.IS.N.M"]
[{"$f":"\"INN.\"&EIGNIR!$B$3&C4622","v":{"$error":"#N/A"}},{"$f":"'Sundurliðun Útlán'!J246","v":0},".M.EUKNFST.XX.THH.XXX.XXXX.SX.XXX.USD.IS.N.M"]
[{"$f":"\"INN.\"&EIGNIR!$B$3&C4623","v":{"$error":"#N/A"}},{"$f":"'Sundurliðun Útlán'!J247","v":0},".M.EUKNFST.XX.THA.XXX.XXXX.SX.XXX.USD.IS.N.M"]
[{"$f":"\"INN.\"&EIGNIR!$B$3&C4624","v":{"$error":"#N/A"}},{"$f":"'Sundurliðun Útlán'!J248","v":0},".M.EUKNFST.XX.OFL.XXX.XXXX.SX.XXX.USD.IS.N.M"]
[{"$f":"\"INN.\"&EIGNIR!$B$3&C4625","v":{"$error":"#N/A"}},{"$f":"'Sundurliðun Útlán'!J249","v":0},".M.EUKNFST.XX.FJA.XXX.XXXX.SX.XXX.USD.IS.N.M"]
[{"$f":"\"INN.\"&EIGNIR!$B$3&C4626","v":{"$error":"#N/A"}},{"$f":"'Sundurliðun Útlán'!J250","v":0},".M.EUKNFST.XXINN.XXX.XXXX.SX.XXX.USD.IS.N.M"]
[{"$f":"\"INN.\"&EIGNIR!$B$3&C4627","v":{"$error":"#N/A"}},{"$f":"'Sundurliðun Útlán'!J251","v":0},".M.EUKNFST.XX.SLI.XXX.XXXX.SX.XXX.USD.IS.N.M"]
[{"$f":"\"INN.\"&EIGNIR!$B$3&C4628","v":{"$error":"#N/A"}},{"$f":"'Sundurliðun Útlán'!J252","v":0},".M.EUKNFST.XX.PEN.XXX.XXXX.SX.XXX.USD.IS.N.M"]
[{"$f":"\"INN.\"&EIGNIR!$B$3&C4629","v":{"$error":"#N/A"}},{"$f":"'Sundurliðun Útlán'!J253","v":0},".M.EUKNFST.XX.SJO.XXX.XXXX.SX.XXX.USD.IS.N.M"]
[{"$f":"\"INN.\"&EIGNIR!$B$3&C4630","v":{"$error":"#N/A"}},{"$f":"'Sundurliðun Útlán'!J254","v":0},".M.EUKNFST.XX.YFT.XXX.XXXX.SX.XXX.USD.IS.N.M"]
[{"$f":"\"INN.\"&EIGNIR!$B$3&C4631","v":{"$error":"#N/A"}},{"$f":"'Sundurliðun Útlán'!J255","v":0},".M.EUKNFST.XX.SLY.XXX.XXXX.SX.XXX.USD.IS.N.M"]
[{"$f":"\"INN.\"&EIGNIR!$B$3&C4632","v":{"$error":"#N/A"}},{"$f":"'Sundurliðun Útlán'!J256","v":0},".M.EUKNFST.XX.FHL.XXX.XXXX.SX.XXX.USD.IS.N.M"]
[{"$f":"\"INN.\"&EIGNIR!$B$3&C4633","v":{"$error":"#N/A"}},{"$f":"'Sundurliðun Útlán'!J257","v":0},".M.EUKNFST.XX.INF.XXX.XXXX.SX.XXX.USD.IS.N.M"]
[{"$f":"\"INN.\"&EIGNIR!$B$3&C4634","v":{"$error":"#N/A"}},{"$f":"'Sundurliðun Útlán'!J258","v":0},".M.EUKNFST.XX.TRY.XXX.XXXX.SX.XXX.USD.IS.N.M"]
[{"$f":"\"INN.\"&EIGNIR!$B$3&C4635","v":{"$error":"#N/A"}},{"$f":"'Sundurliðun Útlán'!J259","v":0},".M.EUKNFST.XX.LIF.XXX.XXXX.SX.XXX.USD.IS.N.M"]
[{"$f":"\"INN.\"&EIGNIR!$B$3&C4636","v":{"$error":"#N/A"}},{"$f":"'Sundurliðun Útlán'!J260","v":0},".M.EUKNFST.XX.OPI.XXX.XXXX.SX.XXX.USD.IS.N.M"]
[{"$f":"\"INN.\"&EIGNIR!$B$3&C4637","v":{"$error":"#N/A"}},{"$f":"'Sundurliðun Útlán'!J261","v":0},".M.EUKNFST.XX.RSS.XXX.XXXX.SX.XXX.USD.IS.N.M"]
[{"$f":"\"INN.\"&EIGNIR!$B$3&C4638","v":{"$error":"#N/A"}},{"$f":"'Sundurliðun Útlán'!J262","v":0},".M.EUKNFST.XX.BAJ.XXX.XXXX.SX.XXX.USD.IS.N.M"]
[{"$f":"\"INN.\"&EIGNIR!$B$3&C4639","v":{"$error":"#N/A"}},{"$f":"'Sundurliðun Útlán'!J263","v":0},".M.EUKNFST.XX.EIN.XXX.XXXX.SX.XXX.USD.IS.N.M"]
[{"$f":"\"INN.\"&EIGNIR!$B$3&C4640","v":{"$error":"#N/A"}},{"$f":"'Sundurliðun Útlán'!J264","v":0},".M.EUKNFST.XX.NPH.XXX.XXXX.SX.XXX.USD.IS.N.M"]
[{"$f":"\"INN.\"&EIGNIR!$B$3&C4641","v":{"$error":"#N/A"}},{"$f":"'Sundurliðun Útlán'!J265","v":0},".M.EUKNFER.XX.ERL.XXX.XXXX.SX.XXX.USD.IS.N.M"]
[{"$f":"\"INN.\"&EIGNIR!$B$3&C4642","v":{"$error":"#N/A"}},{"$f":"'Sundurliðun Útlán'!J266","v":0},".M.EUKNFEH.XX.ERL.XXX.XXXX.SX.XXX.USD.IS.N.M"]
[{"$f":"\"INN.\"&EIGNIR!$B$3&C4643","v":{"$error":"#N/A"}},{"$f":"'Sundurliðun Útlán'!J268","v":0},".M.EUKNFEH.XX.ERI.XXX.XXXX.SX.XXX.USD.IS.N.M"]
[{"$f":"\"INN.\"&EIGNIR!$B$3&C4644","v":{"$error":"#N/A"}},{"$f":"'Sundurliðun Útlán'!J271","v":0},".M.EUKNFEH.XX.ERF.XXX.XXXX.SX.XXX.USD.IS.N.M"]
[{"$f":"\"INN.\"&EIGNIR!$B$3&C4645","v":{"$error":"#N/A"}},{"$f":"'Sundurliðun Útlán'!J273","v":0},".M.EUKNFEH.XX.ERA.XXX.XXXX.SX.XXX.USD.IS.N.M"]
[{"$f":"\"INN.\"&EIGNIR!$B$3&C4646","v":{"$error":"#N/A"}},{"$f":"'Sundurliðun Útlán'!J274","v":0},".M.EUKNFED.XX.ERL.XXX.XXXX.SX.XXX.USD.IS.N.M"]
[{"$f":"\"INN.\"&EIGNIR!$B$3&C4647","v":{"$error":"#N/A"}},{"$f":"'Sundurliðun Útlán'!J276","v":0},".M.EUKNFED.XX.ERI.XXX.XXXX.SX.XXX.USD.IS.N.M"]
[{"$f":"\"INN.\"&EIGNIR!$B$3&C4648","v":{"$error":"#N/A"}},{"$f":"'Sundurliðun Útlán'!J279","v":0},".M.EUKNFED.XX.ERF.XXX.XXXX.SX.XXX.USD.IS.N.M"]
[{"$f":"\"INN.\"&EIGNIR!$B$3&C4649","v":{"$error":"#N/A"}},{"$f":"'Sundurliðun Útlán'!J281","v":0},".M.EUKNFED.XX.ERA.XXX.XXXX.SX.XXX.USD.IS.N.M"]
[{"$f":"\"INN.\"&EIGNIR!$B$3&C4650","v":{"$error":"#N/A"}},{"$f":"'Sundurliðun Útlán'!J282","v":0},".M.EUKNFFF.XX.ERL.XXX.XXXX.SX.XXX.USD.IS.N.M"]
[{"$f":"\"INN.\"&EIGNIR!$B$3&C4651","v":{"$error":"#N/A"}},{"$f":"'Sundurliðun Útlán'!J284","v":0},".M.EUKNFFF.XX.ERI.XXX.XXXX.SX.XXX.USD.IS.N.M"]
[{"$f":"\"INN.\"&EIGNIR!$B$3&C4652","v":{"$error":"#N/A"}},{"$f":"'Sundurliðun Útlán'!J287","v":0},".M.EUKNFFF.XX.ERF.XXX.XXXX.SX.XXX.USD.IS.N.M"]
[{"$f":"\"INN.\"&EIGNIR!$B$3&C4653","v":{"$error":"#N/A"}},{"$f":"'Sundurliðun Útlán'!J289","v":0},".M.EUKNFFF.XX.ERA.XXX.XXXX.SX.XXX.USD.IS.N.M"]
[{"$f":"\"INN.\"&EIGNIR!$B$3&C4654","v":{"$error":"#N/A"}},{"$f":"'Sundurliðun Útlán'!J290","v":0},".M.EUKNFOL.XX.ERL.XXX.XXXX.SX.XXX.USD.IS.N.M"]
[{"$f":"\"INN.\"&EIGNIR!$B$3&C4655","v":{"$error":"#N/A"}},{"$f":"'Sundurliðun Útlán'!J292","v":0},".M.EUKNFOL.XX.ERI.XXX.XXXX.SX.XXX.USD.IS.N.M"]
[{"$f":"\"INN.\"&EIGNIR!$B$3&C4656","v":{"$error":"#N/A"}},{"$f":"'Sundurliðun Útlán'!J294","v":0},".M.EUKNFOL.XX.ERV.XXX.XXXX.SX.XXX.USD.IS.N.M"]
[{"$f":"\"INN.\"&EIGNIR!$B$3&C4657","v":{"$error":"#N/A"}},{"$f":"'Sundurliðun Útlán'!J295","v":0},".M.EUKNFOL.XX.ERF.XXX.XXXX.SX.XXX.USD.IS.N.M"]
[{"$f":"\"INN.\"&EIGNIR!$B$3&C4658","v":{"$error":"#N/A"}},{"$f":"'Sundurliðun Útlán'!J296","v":0},".M.EUKNFOL.XX.ERO.XXX.XXXX.SX.XXX.USD.IS.N.M"]
[{"$f":"\"INN.\"&EIGNIR!$B$3&C4659","v":{"$error":"#N/A"}},{"$f":"'Sundurliðun Útlán'!J297","v":0},".M.EUKNFOL.XX.ERA.XXX.XXXX.SX.XXX.USD.IS.N.M"]
[{"$f":"\"INN.\"&EIGNIR!$B$3&C4660","v":{"$error":"#N/A"}},{"$f":"'Sundurliðun Útlán'!K5","v":0},".M.EUK$$$$.XX.$$$.XXX.XXXX.SX.XXX.GBP.IS.N.M","//Sundurliðun útlána, GBP"]
[{"$f":"\"INN.\"&EIGNIR!$B$3&C4661","v":{"$error":"#N/A"}},{"$f":"'Sundurliðun Útlán'!K6","v":0},".M.EUKIT$$.XX.$$$.XXX.XXXX.SX.XXX.GBP.IS.N.M"]
[{"$f":"\"INN.\"&EIGNIR!$B$3&C4662","v":{"$error":"#N/A"}},{"$f":"'Sundurliðun Útlán'!K7","v":0},".M.EUKITII.XX.XXX.XXX.XXXX.SX.XXX.GBP.IS.N.M"]
[{"$f":"\"INN.\"&EIGNIR!$B$3&C4663","v":{"$error":"#N/A"}},{"$f":"'Sundurliðun Útlán'!K8","v":0},".M.EUKITIE.XX.XXX.XXX.XXXX.SX.XXX.GBP.IS.N.M"]
[{"$f":"\"INN.\"&EIGNIR!$B$3&C4664","v":{"$error":"#N/A"}},{"$f":"'Sundurliðun Útlán'!K9","v":0},".M.EUKITIT.XX.XXX.XXX.XXXX.SX.XXX.GBP.IS.N.M"]
[{"$f":"\"INN.\"&EIGNIR!$B$3&C4665","v":{"$error":"#N/A"}},{"$f":"'Sundurliðun Útlán'!K10","v":0},".M.EUKUL$$.XX.$$$.XXX.XXXX.SX.XXX.GBP.IS.N.M"]
[{"$f":"\"INN.\"&EIGNIR!$B$3&C4666","v":{"$error":"#N/A"}},{"$f":"'Sundurliðun Útlán'!K11","v":0},".M.EUKULIA.XX.$$$.XXX.XXXX.SX.XXX.GBP.IS.N.M"]
[{"$f":"\"INN.\"&EIGNIR!$B$3&C4667","v":{"$error":"#N/A"}},{"$f":"'Sundurliðun Útlán'!K12","v":0},".M.EUKULIA.XX.ATV.XXX.XXXX.SX.XXX.GBP.IS.N.M"]
[{"$f":"\"INN.\"&EIGNIR!$B$3&C4668","v":{"$error":"#N/A"}},{"$f":"'Sundurliðun Útlán'!K26","v":0},".M.EUKULIA.XX.FJA.XXX.XXXX.SX.XXX.GBP.IS.N.M"]
[{"$f":"\"INN.\"&EIGNIR!$B$3&C4669","v":{"$error":"#N/A"}},{"$f":"'Sundurliðun Útlán'!K27","v":0},".M.EUKULIA.XX.INN.XXX.XXXX.SX.XXX.GBP.IS.N.M"]
[{"$f":"\"INN.\"&EIGNIR!$B$3&C4670","v":{"$error":"#N/A"}},{"$f":"'Sundurliðun Útlán'!K28","v":0},".M.EUKULIA.XX.SLI.XXX.XXXX.SX.XXX.GBP.IS.N.M"]
[{"$f":"\"INN.\"&EIGNIR!$B$3&C4671","v":{"$error":"#N/A"}},{"$f":"'Sundurliðun Útlán'!K29","v":0},".M.EUKULIA.XX.PEN.XXX.XXXX.SX.XXX.GBP.IS.N.M"]
[{"$f":"\"INN.\"&EIGNIR!$B$3&C4672","v":{"$error":"#N/A"}},{"$f":"'Sundurliðun Útlán'!K30","v":0},".M.EUKULIA.XX.SJO.XXX.XXXX.SX.XXX.GBP.IS.N.M"]
[{"$f":"\"INN.\"&EIGNIR!$B$3&C4673","v":{"$error":"#N/A"}},{"$f":"'Sundurliðun Útlán'!K31","v":0},".M.EUKULIA.XX.YFT.XXX.XXXX.SX.XXX.GBP.IS.N.M"]
[{"$f":"\"INN.\"&EIGNIR!$B$3&C4674","v":{"$error":"#N/A"}},{"$f":"'Sundurliðun Útlán'!K32","v":0},".M.EUKULIA.XX.SLY.XXX.XXXX.SX.XXX.GBP.IS.N.M"]
[{"$f":"\"INN.\"&EIGNIR!$B$3&C4675","v":{"$error":"#N/A"}},{"$f":"'Sundurliðun Útlán'!K33","v":0},".M.EUKULIA.XX.FHL.XXX.XXXX.SX.XXX.GBP.IS.N.M"]
[{"$f":"\"INN.\"&EIGNIR!$B$3&C4676","v":{"$error":"#N/A"}},{"$f":"'Sundurliðun Útlán'!K34","v":0},".M.EUKULIA.XX.INF.XXX.XXXX.SX.XXX.GBP.IS.N.M"]
[{"$f":"\"INN.\"&EIGNIR!$B$3&C4677","v":{"$error":"#N/A"}},{"$f":"'Sundurliðun Útlán'!K35","v":0},".M.EUKULIA.XX.TRY.XXX.XXXX.SX.XXX.GBP.IS.N.M"]
[{"$f":"\"INN.\"&EIGNIR!$B$3&C4678","v":{"$error":"#N/A"}},{"$f":"'Sundurliðun Útlán'!K36","v":0},".M.EUKULIA.XX.LIF.XXX.XXXX.SX.XXX.GBP.IS.N.M"]
[{"$f":"\"INN.\"&EIGNIR!$B$3&C4679","v":{"$error":"#N/A"}},{"$f":"'Sundurliðun Útlán'!K37","v":0},".M.EUKULIA.XX.OPI.XXX.XXXX.SX.XXX.GBP.IS.N.M"]
[{"$f":"\"INN.\"&EIGNIR!$B$3&C4680","v":{"$error":"#N/A"}},{"$f":"'Sundurliðun Útlán'!K38","v":0},".M.EUKULIA.XX.RSS.XXX.XXXX.SX.XXX.GBP.IS.N.M"]
[{"$f":"\"INN.\"&EIGNIR!$B$3&C4681","v":{"$error":"#N/A"}},{"$f":"'Sundurliðun Útlán'!K39","v":0},".M.EUKULIA.XX.BAJ.XXX.XXXX.SX.XXX.GBP.IS.N.M"]
[{"$f":"\"INN.\"&EIGNIR!$B$3&C4682","v":{"$error":"#N/A"}},{"$f":"'Sundurliðun Útlán'!K40","v":0},".M.EUKULIA.XX.EIN.XXX.XXXX.SX.XXX.GBP.IS.N.M"]
[{"$f":"\"INN.\"&EIGNIR!$B$3&C4683","v":{"$error":"#N/A"}},{"$f":"'Sundurliðun Útlán'!K41","v":0},".M.EUKULIA.XX.NPH.XXX.XXXX.SX.XXX.GBP.IS.N.M"]
[{"$f":"\"INN.\"&EIGNIR!$B$3&C4684","v":{"$error":"#N/A"}},{"$f":"'Sundurliðun Útlán'!K42","v":0},".M.EUKULYL.XX.$$$.XXX.XXXX.SX.XXX.GBP.IS.N.M"]
[{"$f":"\"INN.\"&EIGNIR!$B$3&C4685","v":{"$error":"#N/A"}},{"$f":"'Sundurliðun Útlán'!K43","v":0},".M.EUKULYL.XX.ATV.XXX.XXXX.SX.XXX.GBP.IS.N.M"]
[{"$f":"\"INN.\"&EIGNIR!$B$3&C4686","v":{"$error":"#N/A"}},{"$f":"'Sundurliðun Útlán'!K57","v":0},".M.EUKULYL.XX.FJA.XXX.XXXX.SX.XXX.GBP.IS.N.M"]
[{"$f":"\"INN.\"&EIGNIR!$B$3&C4687","v":{"$error":"#N/A"}},{"$f":"'Sundurliðun Útlán'!K58","v":0},".M.EUKULYL.XX.INN.XXX.XXXX.SX.XXX.GBP.IS.N.M"]
[{"$f":"\"INN.\"&EIGNIR!$B$3&C4688","v":{"$error":"#N/A"}},{"$f":"'Sundurliðun Útlán'!K59","v":0},".M.EUKULYL.XX.SLI.XXX.XXXX.SX.XXX.GBP.IS.N.M"]
[{"$f":"\"INN.\"&EIGNIR!$B$3&C4689","v":{"$error":"#N/A"}},{"$f":"'Sundurliðun Útlán'!K60","v":0},".M.EUKULYL.XX.PEN.XXX.XXXX.SX.XXX.GBP.IS.N.M"]
[{"$f":"\"INN.\"&EIGNIR!$B$3&C4690","v":{"$error":"#N/A"}},{"$f":"'Sundurliðun Útlán'!K61","v":0},".M.EUKULYL.XX.SJO.XXX.XXXX.SX.XXX.GBP.IS.N.M"]
[{"$f":"\"INN.\"&EIGNIR!$B$3&C4691","v":{"$error":"#N/A"}},{"$f":"'Sundurliðun Útlán'!K62","v":0},".M.EUKULYL.XX.YFT.XXX.XXXX.SX.XXX.GBP.IS.N.M"]
[{"$f":"\"INN.\"&EIGNIR!$B$3&C4692","v":{"$error":"#N/A"}},{"$f":"'Sundurliðun Útlán'!K63","v":0},".M.EUKULYL.XX.SLY.XXX.XXXX.SX.XXX.GBP.IS.N.M"]
[{"$f":"\"INN.\"&EIGNIR!$B$3&C4693","v":{"$error":"#N/A"}},{"$f":"'Sundurliðun Útlán'!K64","v":0},".M.EUKULYL.XX.FHL.XXX.XXXX.SX.XXX.GBP.IS.N.M"]
[{"$f":"\"INN.\"&EIGNIR!$B$3&C4694","v":{"$error":"#N/A"}},{"$f":"'Sundurliðun Útlán'!K65","v":0},".M.EUKULYL.XX.INF.XXX.XXXX.SX.XXX.GBP.IS.N.M"]
[{"$f":"\"INN.\"&EIGNIR!$B$3&C4695","v":{"$error":"#N/A"}},{"$f":"'Sundurliðun Útlán'!K66","v":0},".M.EUKULYL.XX.TRY.XXX.XXXX.SX.XXX.GBP.IS.N.M"]
[{"$f":"\"INN.\"&EIGNIR!$B$3&C4696","v":{"$error":"#N/A"}},{"$f":"'Sundurliðun Útlán'!K67","v":0},".M.EUKULYL.XX.LIF.XXX.XXXX.SX.XXX.GBP.IS.N.M"]
[{"$f":"\"INN.\"&EIGNIR!$B$3&C4697","v":{"$error":"#N/A"}},{"$f":"'Sundurliðun Útlán'!K68","v":0},".M.EUKULYL.XX.OPI.XXX.XXXX.SX.XXX.GBP.IS.N.M"]
[{"$f":"\"INN.\"&EIGNIR!$B$3&C4698","v":{"$error":"#N/A"}},{"$f":"'Sundurliðun Útlán'!K69","v":0},".M.EUKULYL.XX.RSS.XXX.XXXX.SX.XXX.GBP.IS.N.M"]
[{"$f":"\"INN.\"&EIGNIR!$B$3&C4699","v":{"$error":"#N/A"}},{"$f":"'Sundurliðun Útlán'!K70","v":0},".M.EUKULYL.XX.BAJ.XXX.XXXX.SX.XXX.GBP.IS.N.M"]
[{"$f":"\"INN.\"&EIGNIR!$B$3&C4700","v":{"$error":"#N/A"}},{"$f":"'Sundurliðun Útlán'!K71","v":0},".M.EUKULYL.XX.EIN.XXX.XXXX.SX.XXX.GBP.IS.N.M"]
[{"$f":"\"INN.\"&EIGNIR!$B$3&C4701","v":{"$error":"#N/A"}},{"$f":"'Sundurliðun Útlán'!K72","v":0},".M.EUKULYL.XX.NPH.XXX.XXXX.SX.XXX.GBP.IS.N.M"]
[{"$f":"\"INN.\"&EIGNIR!$B$3&C4702","v":{"$error":"#N/A"}},{"$f":"'Sundurliðun Útlán'!K73","v":0},".M.EUKULVX.XX.$$$.XXX.XXXX.SX.XXX.GBP.IS.N.M"]
[{"$f":"\"INN.\"&EIGNIR!$B$3&C4703","v":{"$error":"#N/A"}},{"$f":"'Sundurliðun Útlán'!K74","v":0},".M.EUKULVX.XX.ATV.XXX.XXXX.SX.XXX.GBP.IS.N.M"]
[{"$f":"\"INN.\"&EIGNIR!$B$3&C4704","v":{"$error":"#N/A"}},{"$f":"'Sundurliðun Útlán'!K88","v":0},".M.EUKULVX.XX.FJA.XXX.XXXX.SX.XXX.GBP.IS.N.M"]
[{"$f":"\"INN.\"&EIGNIR!$B$3&C4705","v":{"$error":"#N/A"}},{"$f":"'Sundurliðun Útlán'!K89","v":0},".M.EUKULVX.XX.INN.XXX.XXXX.SX.XXX.GBP.IS.N.M"]
[{"$f":"\"INN.\"&EIGNIR!$B$3&C4706","v":{"$error":"#N/A"}},{"$f":"'Sundurliðun Útlán'!K90","v":0},".M.EUKULVX.XX.SLI.XXX.XXXX.SX.XXX.GBP.IS.N.M"]
[{"$f":"\"INN.\"&EIGNIR!$B$3&C4707","v":{"$error":"#N/A"}},{"$f":"'Sundurliðun Útlán'!K91","v":0},".M.EUKULVX.XX.PEN.XXX.XXXX.SX.XXX.GBP.IS.N.M"]
[{"$f":"\"INN.\"&EIGNIR!$B$3&C4708","v":{"$error":"#N/A"}},{"$f":"'Sundurliðun Útlán'!K92","v":0},".M.EUKULVX.XX.SJO.XXX.XXXX.SX.XXX.GBP.IS.N.M"]
[{"$f":"\"INN.\"&EIGNIR!$B$3&C4709","v":{"$error":"#N/A"}},{"$f":"'Sundurliðun Útlán'!K93","v":0},".M.EUKULVX.XX.YFT.XXX.XXXX.SX.XXX.GBP.IS.N.M"]
[{"$f":"\"INN.\"&EIGNIR!$B$3&C4710","v":{"$error":"#N/A"}},{"$f":"'Sundurliðun Útlán'!K94","v":0},".M.EUKULVX.XX.SLY.XXX.XXXX.SX.XXX.GBP.IS.N.M"]
[{"$f":"\"INN.\"&EIGNIR!$B$3&C4711","v":{"$error":"#N/A"}},{"$f":"'Sundurliðun Útlán'!K95","v":0},".M.EUKULVX.XX.FHL.XXX.XXXX.SX.XXX.GBP.IS.N.M"]
[{"$f":"\"INN.\"&EIGNIR!$B$3&C4712","v":{"$error":"#N/A"}},{"$f":"'Sundurliðun Útlán'!K96","v":0},".M.EUKULVX.XX.INF.XXX.XXXX.SX.XXX.GBP.IS.N.M"]
[{"$f":"\"INN.\"&EIGNIR!$B$3&C4713","v":{"$error":"#N/A"}},{"$f":"'Sundurliðun Útlán'!K97","v":0},".M.EUKULVX.XX.TRY.XXX.XXXX.SX.XXX.GBP.IS.N.M"]
[{"$f":"\"INN.\"&EIGNIR!$B$3&C4714","v":{"$error":"#N/A"}},{"$f":"'Sundurliðun Útlán'!K98","v":0},".M.EUKULVX.XX.LIF.XXX.XXXX.SX.XXX.GBP.IS.N.M"]
[{"$f":"\"INN.\"&EIGNIR!$B$3&C4715","v":{"$error":"#N/A"}},{"$f":"'Sundurliðun Útlán'!K99","v":0},".M.EUKULVX.XX.OPI.XXX.XXXX.SX.XXX.GBP.IS.N.M"]
[{"$f":"\"INN.\"&EIGNIR!$B$3&C4716","v":{"$error":"#N/A"}},{"$f":"'Sundurliðun Útlán'!K100","v":0},".M.EUKULVX.XX.RSS.XXX.XXXX.SX.XXX.GBP.IS.N.M"]
[{"$f":"\"INN.\"&EIGNIR!$B$3&C4717","v":{"$error":"#N/A"}},{"$f":"'Sundurliðun Útlán'!K101","v":0},".M.EUKULVX.XX.BAJ.XXX.XXXX.SX.XXX.GBP.IS.N.M"]
[{"$f":"\"INN.\"&EIGNIR!$B$3&C4718","v":{"$error":"#N/A"}},{"$f":"'Sundurliðun Útlán'!K102","v":0},".M.EUKULVX.XX.EIN.XXX.XXXX.SX.XXX.GBP.IS.N.M"]
[{"$f":"\"INN.\"&EIGNIR!$B$3&C4719","v":{"$error":"#N/A"}},{"$f":"'Sundurliðun Útlán'!K103","v":0},".M.EUKULVX.XX.NPH.XXX.XXXX.SX.XXX.GBP.IS.N.M"]
[{"$f":"\"INN.\"&EIGNIR!$B$3&C4720","v":{"$error":"#N/A"}},{"$f":"'Sundurliðun Útlán'!K136","v":0},".M.EUKULOU.XX.$$$.XXX.XXXX.SX.XXX.GBP.IS.N.M"]
[{"$f":"\"INN.\"&EIGNIR!$B$3&C4721","v":{"$error":"#N/A"}},{"$f":"'Sundurliðun Útlán'!K137","v":0},".M.EUKULOU.XX.ATV.XXX.XXXX.SX.XXX.GBP.IS.N.M"]
[{"$f":"\"INN.\"&EIGNIR!$B$3&C4722","v":{"$error":"#N/A"}},{"$f":"'Sundurliðun Útlán'!K151","v":0},".M.EUKULOU.XX.FJA.XXX.XXXX.SX.XXX.GBP.IS.N.M"]
[{"$f":"\"INN.\"&EIGNIR!$B$3&C4723","v":{"$error":"#N/A"}},{"$f":"'Sundurliðun Útlán'!K152","v":0},".M.EUKULOU.XX.INN.XXX.XXXX.SX.XXX.GBP.IS.N.M"]
[{"$f":"\"INN.\"&EIGNIR!$B$3&C4724","v":{"$error":"#N/A"}},{"$f":"'Sundurliðun Útlán'!K153","v":0},".M.EUKULOU.XX.SLI.XXX.XXXX.SX.XXX.GBP.IS.N.M"]
[{"$f":"\"INN.\"&EIGNIR!$B$3&C4725","v":{"$error":"#N/A"}},{"$f":"'Sundurliðun Útlán'!K154","v":0},".M.EUKULOU.XX.PEN.XXX.XXXX.SX.XXX.GBP.IS.N.M"]
[{"$f":"\"INN.\"&EIGNIR!$B$3&C4726","v":{"$error":"#N/A"}},{"$f":"'Sundurliðun Útlán'!K155","v":0},".M.EUKULOU.XX.SJO.XXX.XXXX.SX.XXX.GBP.IS.N.M"]
[{"$f":"\"INN.\"&EIGNIR!$B$3&C4727","v":{"$error":"#N/A"}},{"$f":"'Sundurliðun Útlán'!K156","v":0},".M.EUKULOU.XX.YFT.XXX.XXXX.SX.XXX.GBP.IS.N.M"]
[{"$f":"\"INN.\"&EIGNIR!$B$3&C4728","v":{"$error":"#N/A"}},{"$f":"'Sundurliðun Útlán'!K157","v":0},".M.EUKULOU.XX.SLY.XXX.XXXX.SX.XXX.GBP.IS.N.M"]
[{"$f":"\"INN.\"&EIGNIR!$B$3&C4729","v":{"$error":"#N/A"}},{"$f":"'Sundurliðun Útlán'!K158","v":0},".M.EUKULOU.XX.FHL.XXX.XXXX.SX.XXX.GBP.IS.N.M"]
[{"$f":"\"INN.\"&EIGNIR!$B$3&C4730","v":{"$error":"#N/A"}},{"$f":"'Sundurliðun Útlán'!K159","v":0},".M.EUKULOU.XX.INF.XXX.XXXX.SX.XXX.GBP.IS.N.M"]
[{"$f":"\"INN.\"&EIGNIR!$B$3&C4731","v":{"$error":"#N/A"}},{"$f":"'Sundurliðun Útlán'!K160","v":0},".M.EUKULOU.XX.TRY.XXX.XXXX.SX.XXX.GBP.IS.N.M"]
[{"$f":"\"INN.\"&EIGNIR!$B$3&C4732","v":{"$error":"#N/A"}},{"$f":"'Sundurliðun Útlán'!K161","v":0},".M.EUKULOU.XX.LIF.XXX.XXXX.SX.XXX.GBP.IS.N.M"]
[{"$f":"\"INN.\"&EIGNIR!$B$3&C4733","v":{"$error":"#N/A"}},{"$f":"'Sundurliðun Útlán'!K162","v":0},".M.EUKULOU.XX.OPI.XXX.XXXX.SX.XXX.GBP.IS.N.M"]
[{"$f":"\"INN.\"&EIGNIR!$B$3&C4734","v":{"$error":"#N/A"}},{"$f":"'Sundurliðun Útlán'!K163","v":0},".M.EUKULOU.XX.RSS.XXX.XXXX.SX.XXX.GBP.IS.N.M"]
[{"$f":"\"INN.\"&EIGNIR!$B$3&C4735","v":{"$error":"#N/A"}},{"$f":"'Sundurliðun Útlán'!K164","v":0},".M.EUKULOU.XX.BAJ.XXX.XXXX.SX.XXX.GBP.IS.N.M"]
[{"$f":"\"INN.\"&EIGNIR!$B$3&C4736","v":{"$error":"#N/A"}},{"$f":"'Sundurliðun Útlán'!K165","v":0},".M.EUKULOU.XX.EIB.XXX.XXXX.SX.XXX.GBP.IS.N.M"]
[{"$f":"\"INN.\"&EIGNIR!$B$3&C4737","v":{"$error":"#N/A"}},{"$f":"'Sundurliðun Útlán'!K166","v":0},".M.EUKULOU.XX.ANN.XXX.XXXX.SX.XXX.GBP.IS.N.M"]
[{"$f":"\"INN.\"&EIGNIR!$B$3&C4738","v":{"$error":"#N/A"}},{"$f":"'Sundurliðun Útlán'!K167","v":0},".M.EUKULOU.XX.NPH.XXX.XXXX.SX.XXX.GBP.IS.N.M"]
[{"$f":"\"INN.\"&EIGNIR!$B$3&C4739","v":{"$error":"#N/A"}},{"$f":"'Sundurliðun Útlán'!K168","v":0},".M.EUKULEL.XX.$$$.XXX.XXXX.SX.XXX.GBP.IS.N.M"]
[{"$f":"\"INN.\"&EIGNIR!$B$3&C4740","v":{"$error":"#N/A"}},{"$f":"'Sundurliðun Útlán'!K169","v":0},".M.EUKULEL.XX.ATV.XXX.XXXX.SX.XXX.GBP.IS.N.M"]
[{"$f":"\"INN.\"&EIGNIR!$B$3&C4741","v":{"$error":"#N/A"}},{"$f":"'Sundurliðun Útlán'!K183","v":0},".M.EUKULEL.XX.FJA.XXX.XXXX.SX.XXX.GBP.IS.N.M"]
[{"$f":"\"INN.\"&EIGNIR!$B$3&C4742","v":{"$error":"#N/A"}},{"$f":"'Sundurliðun Útlán'!K184","v":0},".M.EUKULEL.XX.INN.XXX.XXXX.SX.XXX.GBP.IS.N.M"]
[{"$f":"\"INN.\"&EIGNIR!$B$3&C4743","v":{"$error":"#N/A"}},{"$f":"'Sundurliðun Útlán'!K185","v":0},".M.EUKULEL.XX.SLI.XXX.XXXX.SX.XXX.GBP.IS.N.M"]
[{"$f":"\"INN.\"&EIGNIR!$B$3&C4744","v":{"$error":"#N/A"}},{"$f":"'Sundurliðun Útlán'!K186","v":0},".M.EUKULEL.XX.PEN.XXX.XXXX.SX.XXX.GBP.IS.N.M"]
[{"$f":"\"INN.\"&EIGNIR!$B$3&C4745","v":{"$error":"#N/A"}},{"$f":"'Sundurliðun Útlán'!K187","v":0},".M.EUKULEL.XX.SJO.XXX.XXXX.SX.XXX.GBP.IS.N.M"]
[{"$f":"\"INN.\"&EIGNIR!$B$3&C4746","v":{"$error":"#N/A"}},{"$f":"'Sundurliðun Útlán'!K188","v":0},".M.EUKULEL.XX.YFT.XXX.XXXX.SX.XXX.GBP.IS.N.M"]
[{"$f":"\"INN.\"&EIGNIR!$B$3&C4747","v":{"$error":"#N/A"}},{"$f":"'Sundurliðun Útlán'!K189","v":0},".M.EUKULEL.XX.SLY.XXX.XXXX.SX.XXX.GBP.IS.N.M"]
[{"$f":"\"INN.\"&EIGNIR!$B$3&C4748","v":{"$error":"#N/A"}},{"$f":"'Sundurliðun Útlán'!K190","v":0},".M.EUKULEL.XX.FHL.XXX.XXXX.SX.XXX.GBP.IS.N.M"]
[{"$f":"\"INN.\"&EIGNIR!$B$3&C4749","v":{"$error":"#N/A"}},{"$f":"'Sundurliðun Útlán'!K191","v":0},".M.EUKULEL.XX.INF.XXX.XXXX.SX.XXX.GBP.IS.N.M"]
[{"$f":"\"INN.\"&EIGNIR!$B$3&C4750","v":{"$error":"#N/A"}},{"$f":"'Sundurliðun Útlán'!K192","v":0},".M.EUKULEL.XX.TRY.XXX.XXXX.SX.XXX.GBP.IS.N.M"]
[{"$f":"\"INN.\"&EIGNIR!$B$3&C4751","v":{"$error":"#N/A"}},{"$f":"'Sundurliðun Útlán'!K193","v":0},".M.EUKULEL.XX.LIF.XXX.XXXX.SX.XXX.GBP.IS.N.M"]
[{"$f":"\"INN.\"&EIGNIR!$B$3&C4752","v":{"$error":"#N/A"}},{"$f":"'Sundurliðun Útlán'!K194","v":0},".M.EUKULEL.XX.OPI.XXX.XXXX.SX.XXX.GBP.IS.N.M"]
[{"$f":"\"INN.\"&EIGNIR!$B$3&C4753","v":{"$error":"#N/A"}},{"$f":"'Sundurliðun Útlán'!K195","v":0},".M.EUKULEL.XX.RSS.XXX.XXXX.SX.XXX.GBP.IS.N.M"]
[{"$f":"\"INN.\"&EIGNIR!$B$3&C4754","v":{"$error":"#N/A"}},{"$f":"'Sundurliðun Útlán'!K196","v":0},".M.EUKULEL.XX.BAJ.XXX.XXXX.SX.XXX.GBP.IS.N.M"]
[{"$f":"\"INN.\"&EIGNIR!$B$3&C4755","v":{"$error":"#N/A"}},{"$f":"'Sundurliðun Útlán'!K197","v":0},".M.EUKULEL.XX.EIN.XXX.XXXX.SX.XXX.GBP.IS.N.M"]
[{"$f":"\"INN.\"&EIGNIR!$B$3&C4756","v":{"$error":"#N/A"}},{"$f":"'Sundurliðun Útlán'!K198","v":0},".M.EUKULEL.XX.NPH.XXX.XXXX.SX.XXX.GBP.IS.N.M"]
[{"$f":"\"INN.\"&EIGNIR!$B$3&C4757","v":{"$error":"#N/A"}},{"$f":"'Sundurliðun Útlán'!K199","v":0},".M.EUKULUE.XX.$$$.XXX.XXXX.SX.XXX.GBP.IS.N.M"]
[{"$f":"\"INN.\"&EIGNIR!$B$3&C4758","v":{"$error":"#N/A"}},{"$f":"'Sundurliðun Útlán'!K200","v":0},".M.EUKULEH.XX.ERL.XXX.XXXX.SX.XXX.GBP.IS.N.M"]
[{"$f":"\"INN.\"&EIGNIR!$B$3&C4759","v":{"$error":"#N/A"}},{"$f":"'Sundurliðun Útlán'!K202","v":0},".M.EUKULEH.XX.ERI.XXX.XXXX.SX.XXX.GBP.IS.N.M"]
[{"$f":"\"INN.\"&EIGNIR!$B$3&C4760","v":{"$error":"#N/A"}},{"$f":"'Sundurliðun Útlán'!K205","v":0},".M.EUKULEH.XX.ERF.XXX.XXXX.SX.XXX.GBP.IS.N.M"]
[{"$f":"\"INN.\"&EIGNIR!$B$3&C4761","v":{"$error":"#N/A"}},{"$f":"'Sundurliðun Útlán'!K207","v":0},".M.EUKULEH.XX.ERA.XXX.XXXX.SX.XXX.GBP.IS.N.M"]
[{"$f":"\"INN.\"&EIGNIR!$B$3&C4762","v":{"$error":"#N/A"}},{"$f":"'Sundurliðun Útlán'!K208","v":0},".M.EUKULED.XX.ERL.XXX.XXXX.SX.XXX.GBP.IS.N.M"]
[{"$f":"\"INN.\"&EIGNIR!$B$3&C4763","v":{"$error":"#N/A"}},{"$f":"'Sundurliðun Útlán'!K210","v":0},".M.EUKULED.XX.ERI.XXX.XXXX.SX.XXX.GBP.IS.N.M"]
[{"$f":"\"INN.\"&EIGNIR!$B$3&C4764","v":{"$error":"#N/A"}},{"$f":"'Sundurliðun Útlán'!K213","v":0},".M.EUKULED.XX.ERF.XXX.XXXX.SX.XXX.GBP.IS.N.M"]
[{"$f":"\"INN.\"&EIGNIR!$B$3&C4765","v":{"$error":"#N/A"}},{"$f":"'Sundurliðun Útlán'!K215","v":0},".M.EUKULED.XX.ERA.XXX.XXXX.SX.XXX.GBP.IS.N.M"]
[{"$f":"\"INN.\"&EIGNIR!$B$3&C4766","v":{"$error":"#N/A"}},{"$f":"'Sundurliðun Útlán'!K216","v":0},".M.EUKULFF.XX.ERL.XXX.XXXX.SX.XXX.GBP.IS.N.M"]
[{"$f":"\"INN.\"&EIGNIR!$B$3&C4767","v":{"$error":"#N/A"}},{"$f":"'Sundurliðun Útlán'!K218","v":0},".M.EUKULFF.XX.ERI.XXX.XXXX.SX.XXX.GBP.IS.N.M"]
[{"$f":"\"INN.\"&EIGNIR!$B$3&C4768","v":{"$error":"#N/A"}},{"$f":"'Sundurliðun Útlán'!K221","v":0},".M.EUKULFF.XX.ERF.XXX.XXXX.SX.XXX.GBP.IS.N.M"]
[{"$f":"\"INN.\"&EIGNIR!$B$3&C4769","v":{"$error":"#N/A"}},{"$f":"'Sundurliðun Útlán'!K223","v":0},".M.EUKULFF.XX.ERA.XXX.XXXX.SX.XXX.GBP.IS.N.M"]
[{"$f":"\"INN.\"&EIGNIR!$B$3&C4770","v":{"$error":"#N/A"}},{"$f":"'Sundurliðun Útlán'!K224","v":0},".M.EUKULOL.XX.ERL.XXX.XXXX.SX.XXX.GBP.IS.N.M","//Önnur erlend lán"]
[{"$f":"\"INN.\"&EIGNIR!$B$3&C4771","v":{"$error":"#N/A"}},{"$f":"'Sundurliðun Útlán'!K226","v":0},".M.EUKULOL.XX.ERI.XXX.XXXX.SX.XXX.GBP.IS.N.M"]
[{"$f":"\"INN.\"&EIGNIR!$B$3&C4772","v":{"$error":"#N/A"}},{"$f":"'Sundurliðun Útlán'!K228","v":0},".M.EUKULOL.XX.ERV.XXX.XXXX.SX.XXX.GBP.IS.N.M"]
[{"$f":"\"INN.\"&EIGNIR!$B$3&C4773","v":{"$error":"#N/A"}},{"$f":"'Sundurliðun Útlán'!K229","v":0},".M.EUKULOL.XX.ERF.XXX.XXXX.SX.XXX.GBP.IS.N.M"]
[{"$f":"\"INN.\"&EIGNIR!$B$3&C4774","v":{"$error":"#N/A"}},{"$f":"'Sundurliðun Útlán'!K230","v":0},".M.EUKULOL.XX.ERO.XXX.XXXX.SX.XXX.GBP.IS.N.M"]
[{"$f":"\"INN.\"&EIGNIR!$B$3&C4775","v":{"$error":"#N/A"}},{"$f":"'Sundurliðun Útlán'!K231","v":0},".M.EUKULOL.XX.ERA.XXX.XXXX.SX.XXX.GBP.IS.N.M"]
[{"$f":"\"INN.\"&EIGNIR!$B$3&C4776","v":{"$error":"#N/A"}},{"$f":"'Sundurliðun Útlán'!K232","v":0},".M.EUKNF$$.XX.XXX.XXX.XXXX.SX.XXX.GBP.IS.N.M"]
[{"$f":"\"INN.\"&EIGNIR!$B$3&C4777","v":{"$error":"#N/A"}},{"$f":"'Sundurliðun Útlán'!K233","v":0},".M.EUKNFAL.XX.XXX.XXX.XXXX.SX.XXX.GBP.IS.N.M"]
[{"$f":"\"INN.\"&EIGNIR!$B$3&C4778","v":{"$error":"#N/A"}},{"$f":"'Sundurliðun Útlán'!K234","v":0},".M.EUKNFST.XX.$$$.XXX.XXXX.SX.XXX.GBP.IS.N.M"]
[{"$f":"\"INN.\"&EIGNIR!$B$3&C4779","v":{"$error":"#N/A"}},{"$f":"'Sundurliðun Útlán'!K235","v":0},".M.EUKNFST.XX.ATV.XXX.XXXX.SX.XXX.GBP.IS.N.M"]
[{"$f":"\"INN.\"&EIGNIR!$B$3&C4780","v":{"$error":"#N/A"}},{"$f":"'Sundurliðun Útlán'!K236","v":0},".M.EUKNFST.XX.LAB.XXX.XXXX.SX.XXX.GBP.IS.N.M"]
[{"$f":"\"INN.\"&EIGNIR!$B$3&C4781","v":{"$error":"#N/A"}},{"$f":"'Sundurliðun Útlán'!K237","v":0},".M.EUKNFST.XX.SJA.XXX.XXXX.SX.XXX.GBP.IS.N.M"]
[{"$f":"\"INN.\"&EIGNIR!$B$3&C4782","v":{"$error":"#N/A"}},{"$f":"'Sundurliðun Útlán'!K238","v":0},".M.EUKNFST.XX.ILA.XXX.XXXX.SX.XXX.GBP.IS.N.M"]
[{"$f":"\"INN.\"&EIGNIR!$B$3&C4783","v":{"$error":"#N/A"}},{"$f":"'Sundurliðun Útlán'!K239","v":0},".M.EUKNFST.XX.ISJ.XXX.XXXX.SX.XXX.GBP.IS.N.M"]
[{"$f":"\"INN.\"&EIGNIR!$B$3&C4784","v":{"$error":"#N/A"}},{"$f":"'Sundurliðun Útlán'!K240","v":0},".M.EUKNFST.XX.IAN.XXX.XXXX.SX.XXX.GBP.IS.N.M"]
[{"$f":"\"INN.\"&EIGNIR!$B$3&C4785","v":{"$error":"#N/A"}},{"$f":"'Sundurliðun Útlán'!K241","v":0},".M.EUKNFST.XX.RAF.XXX.XXXX.SX.XXX.GBP.IS.N.M"]
[{"$f":"\"INN.\"&EIGNIR!$B$3&C4786","v":{"$error":"#N/A"}},{"$f":"'Sundurliðun Útlán'!K242","v":0},".M.EUKNFST.XX.MAN.XXX.XXXX.SX.XXX.GBP.IS.N.M"]
[{"$f":"\"INN.\"&EIGNIR!$B$3&C4787","v":{"$error":"#N/A"}},{"$f":"'Sundurliðun Útlán'!K243","v":0},".M.EUKNFST.XX.VEN.XXX.XXXX.SX.XXX.GBP.IS.N.M"]
[{"$f":"\"INN.\"&EIGNIR!$B$3&C4788","v":{"$error":"#N/A"}},{"$f":"'Sundurliðun Útlán'!K244","v":0},".M.EUKNFST.XX.SAG.XXX.XXXX.SX.XXX.GBP.IS.N.M"]
[{"$f":"\"INN.\"&EIGNIR!$B$3&C4789","v":{"$error":"#N/A"}},{"$f":"'Sundurliðun Útlán'!K245","v":0},".M.EUKNFST.XX.THF.XXX.XXXX.SX.XXX.GBP.IS.N.M"]
[{"$f":"\"INN.\"&EIGNIR!$B$3&C4790","v":{"$error":"#N/A"}},{"$f":"'Sundurliðun Útlán'!K246","v":0},".M.EUKNFST.XX.THH.XXX.XXXX.SX.XXX.GBP.IS.N.M"]
[{"$f":"\"INN.\"&EIGNIR!$B$3&C4791","v":{"$error":"#N/A"}},{"$f":"'Sundurliðun Útlán'!K247","v":0},".M.EUKNFST.XX.THA.XXX.XXXX.SX.XXX.GBP.IS.N.M"]
[{"$f":"\"INN.\"&EIGNIR!$B$3&C4792","v":{"$error":"#N/A"}},{"$f":"'Sundurliðun Útlán'!K248","v":0},".M.EUKNFST.XX.OFL.XXX.XXXX.SX.XXX.GBP.IS.N.M"]
[{"$f":"\"INN.\"&EIGNIR!$B$3&C4793","v":{"$error":"#N/A"}},{"$f":"'Sundurliðun Útlán'!K249","v":0},".M.EUKNFST.XX.FJA.XXX.XXXX.SX.XXX.GBP.IS.N.M"]
[{"$f":"\"INN.\"&EIGNIR!$B$3&C4794","v":{"$error":"#N/A"}},{"$f":"'Sundurliðun Útlán'!K250","v":0},".M.EUKNFST.XXINN.XXX.XXXX.SX.XXX.GBP.IS.N.M"]
[{"$f":"\"INN.\"&EIGNIR!$B$3&C4795","v":{"$error":"#N/A"}},{"$f":"'Sundurliðun Útlán'!K251","v":0},".M.EUKNFST.XX.SLI.XXX.XXXX.SX.XXX.GBP.IS.N.M"]
[{"$f":"\"INN.\"&EIGNIR!$B$3&C4796","v":{"$error":"#N/A"}},{"$f":"'Sundurliðun Útlán'!K252","v":0},".M.EUKNFST.XX.PEN.XXX.XXXX.SX.XXX.GBP.IS.N.M"]
[{"$f":"\"INN.\"&EIGNIR!$B$3&C4797","v":{"$error":"#N/A"}},{"$f":"'Sundurliðun Útlán'!K253","v":0},".M.EUKNFST.XX.SJO.XXX.XXXX.SX.XXX.GBP.IS.N.M"]
[{"$f":"\"INN.\"&EIGNIR!$B$3&C4798","v":{"$error":"#N/A"}},{"$f":"'Sundurliðun Útlán'!K254","v":0},".M.EUKNFST.XX.YFT.XXX.XXXX.SX.XXX.GBP.IS.N.M"]
[{"$f":"\"INN.\"&EIGNIR!$B$3&C4799","v":{"$error":"#N/A"}},{"$f":"'Sundurliðun Útlán'!K255","v":0},".M.EUKNFST.XX.SLY.XXX.XXXX.SX.XXX.GBP.IS.N.M"]
[{"$f":"\"INN.\"&EIGNIR!$B$3&C4800","v":{"$error":"#N/A"}},{"$f":"'Sundurliðun Útlán'!K256","v":0},".M.EUKNFST.XX.FHL.XXX.XXXX.SX.XXX.GBP.IS.N.M"]
[{"$f":"\"INN.\"&EIGNIR!$B$3&C4801","v":{"$error":"#N/A"}},{"$f":"'Sundurliðun Útlán'!K257","v":0},".M.EUKNFST.XX.INF.XXX.XXXX.SX.XXX.GBP.IS.N.M"]
[{"$f":"\"INN.\"&EIGNIR!$B$3&C4802","v":{"$error":"#N/A"}},{"$f":"'Sundurliðun Útlán'!K258","v":0},".M.EUKNFST.XX.TRY.XXX.XXXX.SX.XXX.GBP.IS.N.M"]
[{"$f":"\"INN.\"&EIGNIR!$B$3&C4803","v":{"$error":"#N/A"}},{"$f":"'Sundurliðun Útlán'!K259","v":0},".M.EUKNFST.XX.LIF.XXX.XXXX.SX.XXX.GBP.IS.N.M"]
[{"$f":"\"INN.\"&EIGNIR!$B$3&C4804","v":{"$error":"#N/A"}},{"$f":"'Sundurliðun Útlán'!K260","v":0},".M.EUKNFST.XX.OPI.XXX.XXXX.SX.XXX.GBP.IS.N.M"]
[{"$f":"\"INN.\"&EIGNIR!$B$3&C4805","v":{"$error":"#N/A"}},{"$f":"'Sundurliðun Útlán'!K261","v":0},".M.EUKNFST.XX.RSS.XXX.XXXX.SX.XXX.GBP.IS.N.M"]
[{"$f":"\"INN.\"&EIGNIR!$B$3&C4806","v":{"$error":"#N/A"}},{"$f":"'Sundurliðun Útlán'!K262","v":0},".M.EUKNFST.XX.BAJ.XXX.XXXX.SX.XXX.GBP.IS.N.M"]
[{"$f":"\"INN.\"&EIGNIR!$B$3&C4807","v":{"$error":"#N/A"}},{"$f":"'Sundurliðun Útlán'!K263","v":0},".M.EUKNFST.XX.EIN.XXX.XXXX.SX.XXX.GBP.IS.N.M"]
[{"$f":"\"INN.\"&EIGNIR!$B$3&C4808","v":{"$error":"#N/A"}},{"$f":"'Sundurliðun Útlán'!K264","v":0},".M.EUKNFST.XX.NPH.XXX.XXXX.SX.XXX.GBP.IS.N.M"]
[{"$f":"\"INN.\"&EIGNIR!$B$3&C4809","v":{"$error":"#N/A"}},{"$f":"'Sundurliðun Útlán'!K265","v":0},".M.EUKNFER.XX.ERL.XXX.XXXX.SX.XXX.GBP.IS.N.M"]
[{"$f":"\"INN.\"&EIGNIR!$B$3&C4810","v":{"$error":"#N/A"}},{"$f":"'Sundurliðun Útlán'!K266","v":0},".M.EUKNFEH.XX.ERL.XXX.XXXX.SX.XXX.GBP.IS.N.M"]
[{"$f":"\"INN.\"&EIGNIR!$B$3&C4811","v":{"$error":"#N/A"}},{"$f":"'Sundurliðun Útlán'!K268","v":0},".M.EUKNFEH.XX.ERI.XXX.XXXX.SX.XXX.GBP.IS.N.M"]
[{"$f":"\"INN.\"&EIGNIR!$B$3&C4812","v":{"$error":"#N/A"}},{"$f":"'Sundurliðun Útlán'!K271","v":0},".M.EUKNFEH.XX.ERF.XXX.XXXX.SX.XXX.GBP.IS.N.M"]
[{"$f":"\"INN.\"&EIGNIR!$B$3&C4813","v":{"$error":"#N/A"}},{"$f":"'Sundurliðun Útlán'!K273","v":0},".M.EUKNFEH.XX.ERA.XXX.XXXX.SX.XXX.GBP.IS.N.M"]
[{"$f":"\"INN.\"&EIGNIR!$B$3&C4814","v":{"$error":"#N/A"}},{"$f":"'Sundurliðun Útlán'!K274","v":0},".M.EUKNFED.XX.ERL.XXX.XXXX.SX.XXX.GBP.IS.N.M"]
[{"$f":"\"INN.\"&EIGNIR!$B$3&C4815","v":{"$error":"#N/A"}},{"$f":"'Sundurliðun Útlán'!K276","v":0},".M.EUKNFED.XX.ERI.XXX.XXXX.SX.XXX.GBP.IS.N.M"]
[{"$f":"\"INN.\"&EIGNIR!$B$3&C4816","v":{"$error":"#N/A"}},{"$f":"'Sundurliðun Útlán'!K279","v":0},".M.EUKNFED.XX.ERF.XXX.XXXX.SX.XXX.GBP.IS.N.M"]
[{"$f":"\"INN.\"&EIGNIR!$B$3&C4817","v":{"$error":"#N/A"}},{"$f":"'Sundurliðun Útlán'!K281","v":0},".M.EUKNFED.XX.ERA.XXX.XXXX.SX.XXX.GBP.IS.N.M"]
[{"$f":"\"INN.\"&EIGNIR!$B$3&C4818","v":{"$error":"#N/A"}},{"$f":"'Sundurliðun Útlán'!K282","v":0},".M.EUKNFFF.XX.ERL.XXX.XXXX.SX.XXX.GBP.IS.N.M"]
[{"$f":"\"INN.\"&EIGNIR!$B$3&C4819","v":{"$error":"#N/A"}},{"$f":"'Sundurliðun Útlán'!K284","v":0},".M.EUKNFFF.XX.ERI.XXX.XXXX.SX.XXX.GBP.IS.N.M"]
[{"$f":"\"INN.\"&EIGNIR!$B$3&C4820","v":{"$error":"#N/A"}},{"$f":"'Sundurliðun Útlán'!K287","v":0},".M.EUKNFFF.XX.ERF.XXX.XXXX.SX.XXX.GBP.IS.N.M"]
[{"$f":"\"INN.\"&EIGNIR!$B$3&C4821","v":{"$error":"#N/A"}},{"$f":"'Sundurliðun Útlán'!K289","v":0},".M.EUKNFFF.XX.ERA.XXX.XXXX.SX.XXX.GBP.IS.N.M"]
[{"$f":"\"INN.\"&EIGNIR!$B$3&C4822","v":{"$error":"#N/A"}},{"$f":"'Sundurliðun Útlán'!K290","v":0},".M.EUKNFOL.XX.ERL.XXX.XXXX.SX.XXX.GBP.IS.N.M"]
[{"$f":"\"INN.\"&EIGNIR!$B$3&C4823","v":{"$error":"#N/A"}},{"$f":"'Sundurliðun Útlán'!K292","v":0},".M.EUKNFOL.XX.ERI.XXX.XXXX.SX.XXX.GBP.IS.N.M"]
[{"$f":"\"INN.\"&EIGNIR!$B$3&C4824","v":{"$error":"#N/A"}},{"$f":"'Sundurliðun Útlán'!K294","v":0},".M.EUKNFOL.XX.ERV.XXX.XXXX.SX.XXX.GBP.IS.N.M"]
[{"$f":"\"INN.\"&EIGNIR!$B$3&C4825","v":{"$error":"#N/A"}},{"$f":"'Sundurliðun Útlán'!K295","v":0},".M.EUKNFOL.XX.ERF.XXX.XXXX.SX.XXX.GBP.IS.N.M"]
[{"$f":"\"INN.\"&EIGNIR!$B$3&C4826","v":{"$error":"#N/A"}},{"$f":"'Sundurliðun Útlán'!K296","v":0},".M.EUKNFOL.XX.ERO.XXX.XXXX.SX.XXX.GBP.IS.N.M"]
[{"$f":"\"INN.\"&EIGNIR!$B$3&C4827","v":{"$error":"#N/A"}},{"$f":"'Sundurliðun Útlán'!K297","v":0},".M.EUKNFOL.XX.ERA.XXX.XXXX.SX.XXX.GBP.IS.N.M"]
[{"$f":"\"INN.\"&EIGNIR!$B$3&C4828","v":{"$error":"#N/A"}},{"$f":"'Sundurliðun Útlán'!L5","v":0},".M.EUK$$$$.XX.$$$.XXX.XXXX.SX.XXX.JPY.IS.N.M","//Sundurliðun útlána, JPY"]
[{"$f":"\"INN.\"&EIGNIR!$B$3&C4829","v":{"$error":"#N/A"}},{"$f":"'Sundurliðun Útlán'!L6","v":0},".M.EUKIT$$.XX.$$$.XXX.XXXX.SX.XXX.JPY.IS.N.M"]
[{"$f":"\"INN.\"&EIGNIR!$B$3&C4830","v":{"$error":"#N/A"}},{"$f":"'Sundurliðun Útlán'!L7","v":0},".M.EUKITII.XX.XXX.XXX.XXXX.SX.XXX.JPY.IS.N.M"]
[{"$f":"\"INN.\"&EIGNIR!$B$3&C4831","v":{"$error":"#N/A"}},{"$f":"'Sundurliðun Útlán'!L8","v":0},".M.EUKITIE.XX.XXX.XXX.XXXX.SX.XXX.JPY.IS.N.M"]
[{"$f":"\"INN.\"&EIGNIR!$B$3&C4832","v":{"$error":"#N/A"}},{"$f":"'Sundurliðun Útlán'!L9","v":0},".M.EUKITIT.XX.XXX.XXX.XXXX.SX.XXX.JPY.IS.N.M"]
[{"$f":"\"INN.\"&EIGNIR!$B$3&C4833","v":{"$error":"#N/A"}},{"$f":"'Sundurliðun Útlán'!L10","v":0},".M.EUKUL$$.XX.$$$.XXX.XXXX.SX.XXX.JPY.IS.N.M"]
[{"$f":"\"INN.\"&EIGNIR!$B$3&C4834","v":{"$error":"#N/A"}},{"$f":"'Sundurliðun Útlán'!L11","v":0},".M.EUKULIA.XX.$$$.XXX.XXXX.SX.XXX.JPY.IS.N.M"]
[{"$f":"\"INN.\"&EIGNIR!$B$3&C4835","v":{"$error":"#N/A"}},{"$f":"'Sundurliðun Útlán'!L12","v":0},".M.EUKULIA.XX.ATV.XXX.XXXX.SX.XXX.JPY.IS.N.M"]
[{"$f":"\"INN.\"&EIGNIR!$B$3&C4836","v":{"$error":"#N/A"}},{"$f":"'Sundurliðun Útlán'!L26","v":0},".M.EUKULIA.XX.FJA.XXX.XXXX.SX.XXX.JPY.IS.N.M"]
[{"$f":"\"INN.\"&EIGNIR!$B$3&C4837","v":{"$error":"#N/A"}},{"$f":"'Sundurliðun Útlán'!L27","v":0},".M.EUKULIA.XX.INN.XXX.XXXX.SX.XXX.JPY.IS.N.M"]
[{"$f":"\"INN.\"&EIGNIR!$B$3&C4838","v":{"$error":"#N/A"}},{"$f":"'Sundurliðun Útlán'!L28","v":0},".M.EUKULIA.XX.SLI.XXX.XXXX.SX.XXX.JPY.IS.N.M"]
[{"$f":"\"INN.\"&EIGNIR!$B$3&C4839","v":{"$error":"#N/A"}},{"$f":"'Sundurliðun Útlán'!L29","v":0},".M.EUKULIA.XX.PEN.XXX.XXXX.SX.XXX.JPY.IS.N.M"]
[{"$f":"\"INN.\"&EIGNIR!$B$3&C4840","v":{"$error":"#N/A"}},{"$f":"'Sundurliðun Útlán'!L30","v":0},".M.EUKULIA.XX.SJO.XXX.XXXX.SX.XXX.JPY.IS.N.M"]
[{"$f":"\"INN.\"&EIGNIR!$B$3&C4841","v":{"$error":"#N/A"}},{"$f":"'Sundurliðun Útlán'!L31","v":0},".M.EUKULIA.XX.YFT.XXX.XXXX.SX.XXX.JPY.IS.N.M"]
[{"$f":"\"INN.\"&EIGNIR!$B$3&C4842","v":{"$error":"#N/A"}},{"$f":"'Sundurliðun Útlán'!L32","v":0},".M.EUKULIA.XX.SLY.XXX.XXXX.SX.XXX.JPY.IS.N.M"]
[{"$f":"\"INN.\"&EIGNIR!$B$3&C4843","v":{"$error":"#N/A"}},{"$f":"'Sundurliðun Útlán'!L33","v":0},".M.EUKULIA.XX.FHL.XXX.XXXX.SX.XXX.JPY.IS.N.M"]
[{"$f":"\"INN.\"&EIGNIR!$B$3&C4844","v":{"$error":"#N/A"}},{"$f":"'Sundurliðun Útlán'!L34","v":0},".M.EUKULIA.XX.INF.XXX.XXXX.SX.XXX.JPY.IS.N.M"]
[{"$f":"\"INN.\"&EIGNIR!$B$3&C4845","v":{"$error":"#N/A"}},{"$f":"'Sundurliðun Útlán'!L35","v":0},".M.EUKULIA.XX.TRY.XXX.XXXX.SX.XXX.JPY.IS.N.M"]
[{"$f":"\"INN.\"&EIGNIR!$B$3&C4846","v":{"$error":"#N/A"}},{"$f":"'Sundurliðun Útlán'!L36","v":0},".M.EUKULIA.XX.LIF.XXX.XXXX.SX.XXX.JPY.IS.N.M"]
[{"$f":"\"INN.\"&EIGNIR!$B$3&C4847","v":{"$error":"#N/A"}},{"$f":"'Sundurliðun Útlán'!L37","v":0},".M.EUKULIA.XX.OPI.XXX.XXXX.SX.XXX.JPY.IS.N.M"]
[{"$f":"\"INN.\"&EIGNIR!$B$3&C4848","v":{"$error":"#N/A"}},{"$f":"'Sundurliðun Útlán'!L38","v":0},".M.EUKULIA.XX.RSS.XXX.XXXX.SX.XXX.JPY.IS.N.M"]
[{"$f":"\"INN.\"&EIGNIR!$B$3&C4849","v":{"$error":"#N/A"}},{"$f":"'Sundurliðun Útlán'!L39","v":0},".M.EUKULIA.XX.BAJ.XXX.XXXX.SX.XXX.JPY.IS.N.M"]
[{"$f":"\"INN.\"&EIGNIR!$B$3&C4850","v":{"$error":"#N/A"}},{"$f":"'Sundurliðun Útlán'!L40","v":0},".M.EUKULIA.XX.EIN.XXX.XXXX.SX.XXX.JPY.IS.N.M"]
[{"$f":"\"INN.\"&EIGNIR!$B$3&C4851","v":{"$error":"#N/A"}},{"$f":"'Sundurliðun Útlán'!L41","v":0},".M.EUKULIA.XX.NPH.XXX.XXXX.SX.XXX.JPY.IS.N.M"]
[{"$f":"\"INN.\"&EIGNIR!$B$3&C4852","v":{"$error":"#N/A"}},{"$f":"'Sundurliðun Útlán'!L42","v":0},".M.EUKULYL.XX.$$$.XXX.XXXX.SX.XXX.JPY.IS.N.M"]
[{"$f":"\"INN.\"&EIGNIR!$B$3&C4853","v":{"$error":"#N/A"}},{"$f":"'Sundurliðun Útlán'!L43","v":0},".M.EUKULYL.XX.ATV.XXX.XXXX.SX.XXX.JPY.IS.N.M"]
[{"$f":"\"INN.\"&EIGNIR!$B$3&C4854","v":{"$error":"#N/A"}},{"$f":"'Sundurliðun Útlán'!L57","v":0},".M.EUKULYL.XX.FJA.XXX.XXXX.SX.XXX.JPY.IS.N.M"]
[{"$f":"\"INN.\"&EIGNIR!$B$3&C4855","v":{"$error":"#N/A"}},{"$f":"'Sundurliðun Útlán'!L58","v":0},".M.EUKULYL.XX.INN.XXX.XXXX.SX.XXX.JPY.IS.N.M"]
[{"$f":"\"INN.\"&EIGNIR!$B$3&C4856","v":{"$error":"#N/A"}},{"$f":"'Sundurliðun Útlán'!L59","v":0},".M.EUKULYL.XX.SLI.XXX.XXXX.SX.XXX.JPY.IS.N.M"]
[{"$f":"\"INN.\"&EIGNIR!$B$3&C4857","v":{"$error":"#N/A"}},{"$f":"'Sundurliðun Útlán'!L60","v":0},".M.EUKULYL.XX.PEN.XXX.XXXX.SX.XXX.JPY.IS.N.M"]
[{"$f":"\"INN.\"&EIGNIR!$B$3&C4858","v":{"$error":"#N/A"}},{"$f":"'Sundurliðun Útlán'!L61","v":0},".M.EUKULYL.XX.SJO.XXX.XXXX.SX.XXX.JPY.IS.N.M"]
[{"$f":"\"INN.\"&EIGNIR!$B$3&C4859","v":{"$error":"#N/A"}},{"$f":"'Sundurliðun Útlán'!L62","v":0},".M.EUKULYL.XX.YFT.XXX.XXXX.SX.XXX.JPY.IS.N.M"]
[{"$f":"\"INN.\"&EIGNIR!$B$3&C4860","v":{"$error":"#N/A"}},{"$f":"'Sundurliðun Útlán'!L63","v":0},".M.EUKULYL.XX.SLY.XXX.XXXX.SX.XXX.JPY.IS.N.M"]
[{"$f":"\"INN.\"&EIGNIR!$B$3&C4861","v":{"$error":"#N/A"}},{"$f":"'Sundurliðun Útlán'!L64","v":0},".M.EUKULYL.XX.FHL.XXX.XXXX.SX.XXX.JPY.IS.N.M"]
[{"$f":"\"INN.\"&EIGNIR!$B$3&C4862","v":{"$error":"#N/A"}},{"$f":"'Sundurliðun Útlán'!L65","v":0},".M.EUKULYL.XX.INF.XXX.XXXX.SX.XXX.JPY.IS.N.M"]
[{"$f":"\"INN.\"&EIGNIR!$B$3&C4863","v":{"$error":"#N/A"}},{"$f":"'Sundurliðun Útlán'!L66","v":0},".M.EUKULYL.XX.TRY.XXX.XXXX.SX.XXX.JPY.IS.N.M"]
[{"$f":"\"INN.\"&EIGNIR!$B$3&C4864","v":{"$error":"#N/A"}},{"$f":"'Sundurliðun Útlán'!L67","v":0},".M.EUKULYL.XX.LIF.XXX.XXXX.SX.XXX.JPY.IS.N.M"]
[{"$f":"\"INN.\"&EIGNIR!$B$3&C4865","v":{"$error":"#N/A"}},{"$f":"'Sundurliðun Útlán'!L68","v":0},".M.EUKULYL.XX.OPI.XXX.XXXX.SX.XXX.JPY.IS.N.M"]
[{"$f":"\"INN.\"&EIGNIR!$B$3&C4866","v":{"$error":"#N/A"}},{"$f":"'Sundurliðun Útlán'!L69","v":0},".M.EUKULYL.XX.RSS.XXX.XXXX.SX.XXX.JPY.IS.N.M"]
[{"$f":"\"INN.\"&EIGNIR!$B$3&C4867","v":{"$error":"#N/A"}},{"$f":"'Sundurliðun Útlán'!L70","v":0},".M.EUKULYL.XX.BAJ.XXX.XXXX.SX.XXX.JPY.IS.N.M"]
[{"$f":"\"INN.\"&EIGNIR!$B$3&C4868","v":{"$error":"#N/A"}},{"$f":"'Sundurliðun Útlán'!L71","v":0},".M.EUKULYL.XX.EIN.XXX.XXXX.SX.XXX.JPY.IS.N.M"]
[{"$f":"\"INN.\"&EIGNIR!$B$3&C4869","v":{"$error":"#N/A"}},{"$f":"'Sundurliðun Útlán'!L72","v":0},".M.EUKULYL.XX.NPH.XXX.XXXX.SX.XXX.JPY.IS.N.M"]
[{"$f":"\"INN.\"&EIGNIR!$B$3&C4870","v":{"$error":"#N/A"}},{"$f":"'Sundurliðun Útlán'!L73","v":0},".M.EUKULVX.XX.$$$.XXX.XXXX.SX.XXX.JPY.IS.N.M"]
[{"$f":"\"INN.\"&EIGNIR!$B$3&C4871","v":{"$error":"#N/A"}},{"$f":"'Sundurliðun Útlán'!L74","v":0},".M.EUKULVX.XX.ATV.XXX.XXXX.SX.XXX.JPY.IS.N.M"]
[{"$f":"\"INN.\"&EIGNIR!$B$3&C4872","v":{"$error":"#N/A"}},{"$f":"'Sundurliðun Útlán'!L88","v":0},".M.EUKULVX.XX.FJA.XXX.XXXX.SX.XXX.JPY.IS.N.M"]
[{"$f":"\"INN.\"&EIGNIR!$B$3&C4873","v":{"$error":"#N/A"}},{"$f":"'Sundurliðun Útlán'!L89","v":0},".M.EUKULVX.XX.INN.XXX.XXXX.SX.XXX.JPY.IS.N.M"]
[{"$f":"\"INN.\"&EIGNIR!$B$3&C4874","v":{"$error":"#N/A"}},{"$f":"'Sundurliðun Útlán'!L90","v":0},".M.EUKULVX.XX.SLI.XXX.XXXX.SX.XXX.JPY.IS.N.M"]
[{"$f":"\"INN.\"&EIGNIR!$B$3&C4875","v":{"$error":"#N/A"}},{"$f":"'Sundurliðun Útlán'!L91","v":0},".M.EUKULVX.XX.PEN.XXX.XXXX.SX.XXX.JPY.IS.N.M"]
[{"$f":"\"INN.\"&EIGNIR!$B$3&C4876","v":{"$error":"#N/A"}},{"$f":"'Sundurliðun Útlán'!L92","v":0},".M.EUKULVX.XX.SJO.XXX.XXXX.SX.XXX.JPY.IS.N.M"]
[{"$f":"\"INN.\"&EIGNIR!$B$3&C4877","v":{"$error":"#N/A"}},{"$f":"'Sundurliðun Útlán'!L93","v":0},".M.EUKULVX.XX.YFT.XXX.XXXX.SX.XXX.JPY.IS.N.M"]
[{"$f":"\"INN.\"&EIGNIR!$B$3&C4878","v":{"$error":"#N/A"}},{"$f":"'Sundurliðun Útlán'!L94","v":0},".M.EUKULVX.XX.SLY.XXX.XXXX.SX.XXX.JPY.IS.N.M"]
[{"$f":"\"INN.\"&EIGNIR!$B$3&C4879","v":{"$error":"#N/A"}},{"$f":"'Sundurliðun Útlán'!L95","v":0},".M.EUKULVX.XX.FHL.XXX.XXXX.SX.XXX.JPY.IS.N.M"]
[{"$f":"\"INN.\"&EIGNIR!$B$3&C4880","v":{"$error":"#N/A"}},{"$f":"'Sundurliðun Útlán'!L96","v":0},".M.EUKULVX.XX.INF.XXX.XXXX.SX.XXX.JPY.IS.N.M"]
[{"$f":"\"INN.\"&EIGNIR!$B$3&C4881","v":{"$error":"#N/A"}},{"$f":"'Sundurliðun Útlán'!L97","v":0},".M.EUKULVX.XX.TRY.XXX.XXXX.SX.XXX.JPY.IS.N.M"]
[{"$f":"\"INN.\"&EIGNIR!$B$3&C4882","v":{"$error":"#N/A"}},{"$f":"'Sundurliðun Útlán'!L98","v":0},".M.EUKULVX.XX.LIF.XXX.XXXX.SX.XXX.JPY.IS.N.M"]
[{"$f":"\"INN.\"&EIGNIR!$B$3&C4883","v":{"$error":"#N/A"}},{"$f":"'Sundurliðun Útlán'!L99","v":0},".M.EUKULVX.XX.OPI.XXX.XXXX.SX.XXX.JPY.IS.N.M"]
[{"$f":"\"INN.\"&EIGNIR!$B$3&C4884","v":{"$error":"#N/A"}},{"$f":"'Sundurliðun Útlán'!L100","v":0},".M.EUKULVX.XX.RSS.XXX.XXXX.SX.XXX.JPY.IS.N.M"]
[{"$f":"\"INN.\"&EIGNIR!$B$3&C4885","v":{"$error":"#N/A"}},{"$f":"'Sundurliðun Útlán'!L101","v":0},".M.EUKULVX.XX.BAJ.XXX.XXXX.SX.XXX.JPY.IS.N.M"]
[{"$f":"\"INN.\"&EIGNIR!$B$3&C4886","v":{"$error":"#N/A"}},{"$f":"'Sundurliðun Útlán'!L102","v":0},".M.EUKULVX.XX.EIN.XXX.XXXX.SX.XXX.JPY.IS.N.M"]
[{"$f":"\"INN.\"&EIGNIR!$B$3&C4887","v":{"$error":"#N/A"}},{"$f":"'Sundurliðun Útlán'!L103","v":0},".M.EUKULVX.XX.NPH.XXX.XXXX.SX.XXX.JPY.IS.N.M"]
[{"$f":"\"INN.\"&EIGNIR!$B$3&C4888","v":{"$error":"#N/A"}},{"$f":"'Sundurliðun Útlán'!L136","v":0},".M.EUKULOU.XX.$$$.XXX.XXXX.SX.XXX.JPY.IS.N.M"]
[{"$f":"\"INN.\"&EIGNIR!$B$3&C4889","v":{"$error":"#N/A"}},{"$f":"'Sundurliðun Útlán'!L137","v":0},".M.EUKULOU.XX.ATV.XXX.XXXX.SX.XXX.JPY.IS.N.M"]
[{"$f":"\"INN.\"&EIGNIR!$B$3&C4890","v":{"$error":"#N/A"}},{"$f":"'Sundurliðun Útlán'!L151","v":0},".M.EUKULOU.XX.FJA.XXX.XXXX.SX.XXX.JPY.IS.N.M"]
[{"$f":"\"INN.\"&EIGNIR!$B$3&C4891","v":{"$error":"#N/A"}},{"$f":"'Sundurliðun Útlán'!L152","v":0},".M.EUKULOU.XX.INN.XXX.XXXX.SX.XXX.JPY.IS.N.M"]
[{"$f":"\"INN.\"&EIGNIR!$B$3&C4892","v":{"$error":"#N/A"}},{"$f":"'Sundurliðun Útlán'!L153","v":0},".M.EUKULOU.XX.SLI.XXX.XXXX.SX.XXX.JPY.IS.N.M"]
[{"$f":"\"INN.\"&EIGNIR!$B$3&C4893","v":{"$error":"#N/A"}},{"$f":"'Sundurliðun Útlán'!L154","v":0},".M.EUKULOU.XX.PEN.XXX.XXXX.SX.XXX.JPY.IS.N.M"]
[{"$f":"\"INN.\"&EIGNIR!$B$3&C4894","v":{"$error":"#N/A"}},{"$f":"'Sundurliðun Útlán'!L155","v":0},".M.EUKULOU.XX.SJO.XXX.XXXX.SX.XXX.JPY.IS.N.M"]
[{"$f":"\"INN.\"&EIGNIR!$B$3&C4895","v":{"$error":"#N/A"}},{"$f":"'Sundurliðun Útlán'!L156","v":0},".M.EUKULOU.XX.YFT.XXX.XXXX.SX.XXX.JPY.IS.N.M"]
[{"$f":"\"INN.\"&EIGNIR!$B$3&C4896","v":{"$error":"#N/A"}},{"$f":"'Sundurliðun Útlán'!L157","v":0},".M.EUKULOU.XX.SLY.XXX.XXXX.SX.XXX.JPY.IS.N.M"]
[{"$f":"\"INN.\"&EIGNIR!$B$3&C4897","v":{"$error":"#N/A"}},{"$f":"'Sundurliðun Útlán'!L158","v":0},".M.EUKULOU.XX.FHL.XXX.XXXX.SX.XXX.JPY.IS.N.M"]
[{"$f":"\"INN.\"&EIGNIR!$B$3&C4898","v":{"$error":"#N/A"}},{"$f":"'Sundurliðun Útlán'!L159","v":0},".M.EUKULOU.XX.INF.XXX.XXXX.SX.XXX.JPY.IS.N.M"]
[{"$f":"\"INN.\"&EIGNIR!$B$3&C4899","v":{"$error":"#N/A"}},{"$f":"'Sundurliðun Útlán'!L160","v":0},".M.EUKULOU.XX.TRY.XXX.XXXX.SX.XXX.JPY.IS.N.M"]
[{"$f":"\"INN.\"&EIGNIR!$B$3&C4900","v":{"$error":"#N/A"}},{"$f":"'Sundurliðun Útlán'!L161","v":0},".M.EUKULOU.XX.LIF.XXX.XXXX.SX.XXX.JPY.IS.N.M"]
[{"$f":"\"INN.\"&EIGNIR!$B$3&C4901","v":{"$error":"#N/A"}},{"$f":"'Sundurliðun Útlán'!L162","v":0},".M.EUKULOU.XX.OPI.XXX.XXXX.SX.XXX.JPY.IS.N.M"]
[{"$f":"\"INN.\"&EIGNIR!$B$3&C4902","v":{"$error":"#N/A"}},{"$f":"'Sundurliðun Útlán'!L163","v":0},".M.EUKULOU.XX.RSS.XXX.XXXX.SX.XXX.JPY.IS.N.M"]
[{"$f":"\"INN.\"&EIGNIR!$B$3&C4903","v":{"$error":"#N/A"}},{"$f":"'Sundurliðun Útlán'!L164","v":0},".M.EUKULOU.XX.BAJ.XXX.XXXX.SX.XXX.JPY.IS.N.M"]
[{"$f":"\"INN.\"&EIGNIR!$B$3&C4904","v":{"$error":"#N/A"}},{"$f":"'Sundurliðun Útlán'!L165","v":0},".M.EUKULOU.XX.EIB.XXX.XXXX.SX.XXX.JPY.IS.N.M"]
[{"$f":"\"INN.\"&EIGNIR!$B$3&C4905","v":{"$error":"#N/A"}},{"$f":"'Sundurliðun Útlán'!L166","v":0},".M.EUKULOU.XX.ANN.XXX.XXXX.SX.XXX.JPY.IS.N.M"]
[{"$f":"\"INN.\"&EIGNIR!$B$3&C4906","v":{"$error":"#N/A"}},{"$f":"'Sundurliðun Útlán'!L167","v":0},".M.EUKULOU.XX.NPH.XXX.XXXX.SX.XXX.JPY.IS.N.M"]
[{"$f":"\"INN.\"&EIGNIR!$B$3&C4907","v":{"$error":"#N/A"}},{"$f":"'Sundurliðun Útlán'!L168","v":0},".M.EUKULEL.XX.$$$.XXX.XXXX.SX.XXX.JPY.IS.N.M"]
[{"$f":"\"INN.\"&EIGNIR!$B$3&C4908","v":{"$error":"#N/A"}},{"$f":"'Sundurliðun Útlán'!L169","v":0},".M.EUKULEL.XX.ATV.XXX.XXXX.SX.XXX.JPY.IS.N.M"]
[{"$f":"\"INN.\"&EIGNIR!$B$3&C4909","v":{"$error":"#N/A"}},{"$f":"'Sundurliðun Útlán'!L183","v":0},".M.EUKULEL.XX.FJA.XXX.XXXX.SX.XXX.JPY.IS.N.M"]
[{"$f":"\"INN.\"&EIGNIR!$B$3&C4910","v":{"$error":"#N/A"}},{"$f":"'Sundurliðun Útlán'!L184","v":0},".M.EUKULEL.XX.INN.XXX.XXXX.SX.XXX.JPY.IS.N.M"]
[{"$f":"\"INN.\"&EIGNIR!$B$3&C4911","v":{"$error":"#N/A"}},{"$f":"'Sundurliðun Útlán'!L185","v":0},".M.EUKULEL.XX.SLI.XXX.XXXX.SX.XXX.JPY.IS.N.M"]
[{"$f":"\"INN.\"&EIGNIR!$B$3&C4912","v":{"$error":"#N/A"}},{"$f":"'Sundurliðun Útlán'!L186","v":0},".M.EUKULEL.XX.PEN.XXX.XXXX.SX.XXX.JPY.IS.N.M"]
[{"$f":"\"INN.\"&EIGNIR!$B$3&C4913","v":{"$error":"#N/A"}},{"$f":"'Sundurliðun Útlán'!L187","v":0},".M.EUKULEL.XX.SJO.XXX.XXXX.SX.XXX.JPY.IS.N.M"]
[{"$f":"\"INN.\"&EIGNIR!$B$3&C4914","v":{"$error":"#N/A"}},{"$f":"'Sundurliðun Útlán'!L188","v":0},".M.EUKULEL.XX.YFT.XXX.XXXX.SX.XXX.JPY.IS.N.M"]
[{"$f":"\"INN.\"&EIGNIR!$B$3&C4915","v":{"$error":"#N/A"}},{"$f":"'Sundurliðun Útlán'!L189","v":0},".M.EUKULEL.XX.SLY.XXX.XXXX.SX.XXX.JPY.IS.N.M"]
[{"$f":"\"INN.\"&EIGNIR!$B$3&C4916","v":{"$error":"#N/A"}},{"$f":"'Sundurliðun Útlán'!L190","v":0},".M.EUKULEL.XX.FHL.XXX.XXXX.SX.XXX.JPY.IS.N.M"]
[{"$f":"\"INN.\"&EIGNIR!$B$3&C4917","v":{"$error":"#N/A"}},{"$f":"'Sundurliðun Útlán'!L191","v":0},".M.EUKULEL.XX.INF.XXX.XXXX.SX.XXX.JPY.IS.N.M"]
[{"$f":"\"INN.\"&EIGNIR!$B$3&C4918","v":{"$error":"#N/A"}},{"$f":"'Sundurliðun Útlán'!L192","v":0},".M.EUKULEL.XX.TRY.XXX.XXXX.SX.XXX.JPY.IS.N.M"]
[{"$f":"\"INN.\"&EIGNIR!$B$3&C4919","v":{"$error":"#N/A"}},{"$f":"'Sundurliðun Útlán'!L193","v":0},".M.EUKULEL.XX.LIF.XXX.XXXX.SX.XXX.JPY.IS.N.M"]
[{"$f":"\"INN.\"&EIGNIR!$B$3&C4920","v":{"$error":"#N/A"}},{"$f":"'Sundurliðun Útlán'!L194","v":0},".M.EUKULEL.XX.OPI.XXX.XXXX.SX.XXX.JPY.IS.N.M"]
[{"$f":"\"INN.\"&EIGNIR!$B$3&C4921","v":{"$error":"#N/A"}},{"$f":"'Sundurliðun Útlán'!L195","v":0},".M.EUKULEL.XX.RSS.XXX.XXXX.SX.XXX.JPY.IS.N.M"]
[{"$f":"\"INN.\"&EIGNIR!$B$3&C4922","v":{"$error":"#N/A"}},{"$f":"'Sundurliðun Útlán'!L196","v":0},".M.EUKULEL.XX.BAJ.XXX.XXXX.SX.XXX.JPY.IS.N.M"]
[{"$f":"\"INN.\"&EIGNIR!$B$3&C4923","v":{"$error":"#N/A"}},{"$f":"'Sundurliðun Útlán'!L197","v":0},".M.EUKULEL.XX.EIN.XXX.XXXX.SX.XXX.JPY.IS.N.M"]
[{"$f":"\"INN.\"&EIGNIR!$B$3&C4924","v":{"$error":"#N/A"}},{"$f":"'Sundurliðun Útlán'!L198","v":0},".M.EUKULEL.XX.NPH.XXX.XXXX.SX.XXX.JPY.IS.N.M"]
[{"$f":"\"INN.\"&EIGNIR!$B$3&C4925","v":{"$error":"#N/A"}},{"$f":"'Sundurliðun Útlán'!L199","v":0},".M.EUKULUE.XX.$$$.XXX.XXXX.SX.XXX.JPY.IS.N.M"]
[{"$f":"\"INN.\"&EIGNIR!$B$3&C4926","v":{"$error":"#N/A"}},{"$f":"'Sundurliðun Útlán'!L200","v":0},".M.EUKULEH.XX.ERL.XXX.XXXX.SX.XXX.JPY.IS.N.M"]
[{"$f":"\"INN.\"&EIGNIR!$B$3&C4927","v":{"$error":"#N/A"}},{"$f":"'Sundurliðun Útlán'!L202","v":0},".M.EUKULEH.XX.ERI.XXX.XXXX.SX.XXX.JPY.IS.N.M"]
[{"$f":"\"INN.\"&EIGNIR!$B$3&C4928","v":{"$error":"#N/A"}},{"$f":"'Sundurliðun Útlán'!L205","v":0},".M.EUKULEH.XX.ERF.XXX.XXXX.SX.XXX.JPY.IS.N.M"]
[{"$f":"\"INN.\"&EIGNIR!$B$3&C4929","v":{"$error":"#N/A"}},{"$f":"'Sundurliðun Útlán'!L207","v":0},".M.EUKULEH.XX.ERA.XXX.XXXX.SX.XXX.JPY.IS.N.M"]
[{"$f":"\"INN.\"&EIGNIR!$B$3&C4930","v":{"$error":"#N/A"}},{"$f":"'Sundurliðun Útlán'!L208","v":0},".M.EUKULED.XX.ERL.XXX.XXXX.SX.XXX.JPY.IS.N.M"]
[{"$f":"\"INN.\"&EIGNIR!$B$3&C4931","v":{"$error":"#N/A"}},{"$f":"'Sundurliðun Útlán'!L210","v":0},".M.EUKULED.XX.ERI.XXX.XXXX.SX.XXX.JPY.IS.N.M"]
[{"$f":"\"INN.\"&EIGNIR!$B$3&C4932","v":{"$error":"#N/A"}},{"$f":"'Sundurliðun Útlán'!L213","v":0},".M.EUKULED.XX.ERF.XXX.XXXX.SX.XXX.JPY.IS.N.M"]
[{"$f":"\"INN.\"&EIGNIR!$B$3&C4933","v":{"$error":"#N/A"}},{"$f":"'Sundurliðun Útlán'!L215","v":0},".M.EUKULED.XX.ERA.XXX.XXXX.SX.XXX.JPY.IS.N.M"]
[{"$f":"\"INN.\"&EIGNIR!$B$3&C4934","v":{"$error":"#N/A"}},{"$f":"'Sundurliðun Útlán'!L216","v":0},".M.EUKULFF.XX.ERL.XXX.XXXX.SX.XXX.JPY.IS.N.M"]
[{"$f":"\"INN.\"&EIGNIR!$B$3&C4935","v":{"$error":"#N/A"}},{"$f":"'Sundurliðun Útlán'!L218","v":0},".M.EUKULFF.XX.ERI.XXX.XXXX.SX.XXX.JPY.IS.N.M"]
[{"$f":"\"INN.\"&EIGNIR!$B$3&C4936","v":{"$error":"#N/A"}},{"$f":"'Sundurliðun Útlán'!L221","v":0},".M.EUKULFF.XX.ERF.XXX.XXXX.SX.XXX.JPY.IS.N.M"]
[{"$f":"\"INN.\"&EIGNIR!$B$3&C4937","v":{"$error":"#N/A"}},{"$f":"'Sundurliðun Útlán'!L223","v":0},".M.EUKULFF.XX.ERA.XXX.XXXX.SX.XXX.JPY.IS.N.M"]
[{"$f":"\"INN.\"&EIGNIR!$B$3&C4938","v":{"$error":"#N/A"}},{"$f":"'Sundurliðun Útlán'!L224","v":0},".M.EUKULOL.XX.ERL.XXX.XXXX.SX.XXX.JPY.IS.N.M"]
[{"$f":"\"INN.\"&EIGNIR!$B$3&C4939","v":{"$error":"#N/A"}},{"$f":"'Sundurliðun Útlán'!L226","v":0},".M.EUKULOL.XX.ERI.XXX.XXXX.SX.XXX.JPY.IS.N.M"]
[{"$f":"\"INN.\"&EIGNIR!$B$3&C4940","v":{"$error":"#N/A"}},{"$f":"'Sundurliðun Útlán'!L228","v":0},".M.EUKULOL.XX.ERV.XXX.XXXX.SX.XXX.JPY.IS.N.M"]
[{"$f":"\"INN.\"&EIGNIR!$B$3&C4941","v":{"$error":"#N/A"}},{"$f":"'Sundurliðun Útlán'!L229","v":0},".M.EUKULOL.XX.ERF.XXX.XXXX.SX.XXX.JPY.IS.N.M"]
[{"$f":"\"INN.\"&EIGNIR!$B$3&C4942","v":{"$error":"#N/A"}},{"$f":"'Sundurliðun Útlán'!L230","v":0},".M.EUKULOL.XX.ERO.XXX.XXXX.SX.XXX.JPY.IS.N.M"]
[{"$f":"\"INN.\"&EIGNIR!$B$3&C4943","v":{"$error":"#N/A"}},{"$f":"'Sundurliðun Útlán'!L231","v":0},".M.EUKULOL.XX.ERA.XXX.XXXX.SX.XXX.JPY.IS.N.M"]
[{"$f":"\"INN.\"&EIGNIR!$B$3&C4944","v":{"$error":"#N/A"}},{"$f":"'Sundurliðun Útlán'!L232","v":0},".M.EUKNF$$.XX.XXX.XXX.XXXX.SX.XXX.JPY.IS.N.M"]
[{"$f":"\"INN.\"&EIGNIR!$B$3&C4945","v":{"$error":"#N/A"}},{"$f":"'Sundurliðun Útlán'!L233","v":0},".M.EUKNFAL.XX.XXX.XXX.XXXX.SX.XXX.JPY.IS.N.M"]
[{"$f":"\"INN.\"&EIGNIR!$B$3&C4946","v":{"$error":"#N/A"}},{"$f":"'Sundurliðun Útlán'!L234","v":0},".M.EUKNFST.XX.$$$.XXX.XXXX.SX.XXX.JPY.IS.N.M"]
[{"$f":"\"INN.\"&EIGNIR!$B$3&C4947","v":{"$error":"#N/A"}},{"$f":"'Sundurliðun Útlán'!L235","v":0},".M.EUKNFST.XX.ATV.XXX.XXXX.SX.XXX.JPY.IS.N.M"]
[{"$f":"\"INN.\"&EIGNIR!$B$3&C4948","v":{"$error":"#N/A"}},{"$f":"'Sundurliðun Útlán'!L236","v":0},".M.EUKNFST.XX.LAB.XXX.XXXX.SX.XXX.JPY.IS.N.M"]
[{"$f":"\"INN.\"&EIGNIR!$B$3&C4949","v":{"$error":"#N/A"}},{"$f":"'Sundurliðun Útlán'!L237","v":0},".M.EUKNFST.XX.SJA.XXX.XXXX.SX.XXX.JPY.IS.N.M"]
[{"$f":"\"INN.\"&EIGNIR!$B$3&C4950","v":{"$error":"#N/A"}},{"$f":"'Sundurliðun Útlán'!L238","v":0},".M.EUKNFST.XX.ILA.XXX.XXXX.SX.XXX.JPY.IS.N.M"]
[{"$f":"\"INN.\"&EIGNIR!$B$3&C4951","v":{"$error":"#N/A"}},{"$f":"'Sundurliðun Útlán'!L239","v":0},".M.EUKNFST.XX.ISJ.XXX.XXXX.SX.XXX.JPY.IS.N.M"]
[{"$f":"\"INN.\"&EIGNIR!$B$3&C4952","v":{"$error":"#N/A"}},{"$f":"'Sundurliðun Útlán'!L240","v":0},".M.EUKNFST.XX.IAN.XXX.XXXX.SX.XXX.JPY.IS.N.M"]
[{"$f":"\"INN.\"&EIGNIR!$B$3&C4953","v":{"$error":"#N/A"}},{"$f":"'Sundurliðun Útlán'!L241","v":0},".M.EUKNFST.XX.RAF.XXX.XXXX.SX.XXX.JPY.IS.N.M"]
[{"$f":"\"INN.\"&EIGNIR!$B$3&C4954","v":{"$error":"#N/A"}},{"$f":"'Sundurliðun Útlán'!L242","v":0},".M.EUKNFST.XX.MAN.XXX.XXXX.SX.XXX.JPY.IS.N.M"]
[{"$f":"\"INN.\"&EIGNIR!$B$3&C4955","v":{"$error":"#N/A"}},{"$f":"'Sundurliðun Útlán'!L243","v":0},".M.EUKNFST.XX.VEN.XXX.XXXX.SX.XXX.JPY.IS.N.M"]
[{"$f":"\"INN.\"&EIGNIR!$B$3&C4956","v":{"$error":"#N/A"}},{"$f":"'Sundurliðun Útlán'!L244","v":0},".M.EUKNFST.XX.SAG.XXX.XXXX.SX.XXX.JPY.IS.N.M"]
[{"$f":"\"INN.\"&EIGNIR!$B$3&C4957","v":{"$error":"#N/A"}},{"$f":"'Sundurliðun Útlán'!L245","v":0},".M.EUKNFST.XX.THF.XXX.XXXX.SX.XXX.JPY.IS.N.M"]
[{"$f":"\"INN.\"&EIGNIR!$B$3&C4958","v":{"$error":"#N/A"}},{"$f":"'Sundurliðun Útlán'!L246","v":0},".M.EUKNFST.XX.THH.XXX.XXXX.SX.XXX.JPY.IS.N.M"]
[{"$f":"\"INN.\"&EIGNIR!$B$3&C4959","v":{"$error":"#N/A"}},{"$f":"'Sundurliðun Útlán'!L247","v":0},".M.EUKNFST.XX.THA.XXX.XXXX.SX.XXX.JPY.IS.N.M"]
[{"$f":"\"INN.\"&EIGNIR!$B$3&C4960","v":{"$error":"#N/A"}},{"$f":"'Sundurliðun Útlán'!L248","v":0},".M.EUKNFST.XX.OFL.XXX.XXXX.SX.XXX.JPY.IS.N.M"]
[{"$f":"\"INN.\"&EIGNIR!$B$3&C4961","v":{"$error":"#N/A"}},{"$f":"'Sundurliðun Útlán'!L249","v":0},".M.EUKNFST.XX.FJA.XXX.XXXX.SX.XXX.JPY.IS.N.M"]
[{"$f":"\"INN.\"&EIGNIR!$B$3&C4962","v":{"$error":"#N/A"}},{"$f":"'Sundurliðun Útlán'!L250","v":0},".M.EUKNFST.XXINN.XXX.XXXX.SX.XXX.JPY.IS.N.M"]
[{"$f":"\"INN.\"&EIGNIR!$B$3&C4963","v":{"$error":"#N/A"}},{"$f":"'Sundurliðun Útlán'!L251","v":0},".M.EUKNFST.XX.SLI.XXX.XXXX.SX.XXX.JPY.IS.N.M"]
[{"$f":"\"INN.\"&EIGNIR!$B$3&C4964","v":{"$error":"#N/A"}},{"$f":"'Sundurliðun Útlán'!L252","v":0},".M.EUKNFST.XX.PEN.XXX.XXXX.SX.XXX.JPY.IS.N.M"]
[{"$f":"\"INN.\"&EIGNIR!$B$3&C4965","v":{"$error":"#N/A"}},{"$f":"'Sundurliðun Útlán'!L253","v":0},".M.EUKNFST.XX.SJO.XXX.XXXX.SX.XXX.JPY.IS.N.M"]
[{"$f":"\"INN.\"&EIGNIR!$B$3&C4966","v":{"$error":"#N/A"}},{"$f":"'Sundurliðun Útlán'!L254","v":0},".M.EUKNFST.XX.YFT.XXX.XXXX.SX.XXX.JPY.IS.N.M"]
[{"$f":"\"INN.\"&EIGNIR!$B$3&C4967","v":{"$error":"#N/A"}},{"$f":"'Sundurliðun Útlán'!L255","v":0},".M.EUKNFST.XX.SLY.XXX.XXXX.SX.XXX.JPY.IS.N.M"]
[{"$f":"\"INN.\"&EIGNIR!$B$3&C4968","v":{"$error":"#N/A"}},{"$f":"'Sundurliðun Útlán'!L256","v":0},".M.EUKNFST.XX.FHL.XXX.XXXX.SX.XXX.JPY.IS.N.M"]
[{"$f":"\"INN.\"&EIGNIR!$B$3&C4969","v":{"$error":"#N/A"}},{"$f":"'Sundurliðun Útlán'!L257","v":0},".M.EUKNFST.XX.INF.XXX.XXXX.SX.XXX.JPY.IS.N.M"]
[{"$f":"\"INN.\"&EIGNIR!$B$3&C4970","v":{"$error":"#N/A"}},{"$f":"'Sundurliðun Útlán'!L258","v":0},".M.EUKNFST.XX.TRY.XXX.XXXX.SX.XXX.JPY.IS.N.M"]
[{"$f":"\"INN.\"&EIGNIR!$B$3&C4971","v":{"$error":"#N/A"}},{"$f":"'Sundurliðun Útlán'!L259","v":0},".M.EUKNFST.XX.LIF.XXX.XXXX.SX.XXX.JPY.IS.N.M"]
[{"$f":"\"INN.\"&EIGNIR!$B$3&C4972","v":{"$error":"#N/A"}},{"$f":"'Sundurliðun Útlán'!L260","v":0},".M.EUKNFST.XX.OPI.XXX.XXXX.SX.XXX.JPY.IS.N.M"]
[{"$f":"\"INN.\"&EIGNIR!$B$3&C4973","v":{"$error":"#N/A"}},{"$f":"'Sundurliðun Útlán'!L261","v":0},".M.EUKNFST.XX.RSS.XXX.XXXX.SX.XXX.JPY.IS.N.M"]
[{"$f":"\"INN.\"&EIGNIR!$B$3&C4974","v":{"$error":"#N/A"}},{"$f":"'Sundurliðun Útlán'!L262","v":0},".M.EUKNFST.XX.BAJ.XXX.XXXX.SX.XXX.JPY.IS.N.M"]
[{"$f":"\"INN.\"&EIGNIR!$B$3&C4975","v":{"$error":"#N/A"}},{"$f":"'Sundurliðun Útlán'!L263","v":0},".M.EUKNFST.XX.EIN.XXX.XXXX.SX.XXX.JPY.IS.N.M"]
[{"$f":"\"INN.\"&EIGNIR!$B$3&C4976","v":{"$error":"#N/A"}},{"$f":"'Sundurliðun Útlán'!L264","v":0},".M.EUKNFST.XX.NPH.XXX.XXXX.SX.XXX.JPY.IS.N.M"]
[{"$f":"\"INN.\"&EIGNIR!$B$3&C4977","v":{"$error":"#N/A"}},{"$f":"'Sundurliðun Útlán'!L265","v":0},".M.EUKNFER.XX.ERL.XXX.XXXX.SX.XXX.JPY.IS.N.M"]
[{"$f":"\"INN.\"&EIGNIR!$B$3&C4978","v":{"$error":"#N/A"}},{"$f":"'Sundurliðun Útlán'!L266","v":0},".M.EUKNFEH.XX.ERL.XXX.XXXX.SX.XXX.JPY.IS.N.M"]
[{"$f":"\"INN.\"&EIGNIR!$B$3&C4979","v":{"$error":"#N/A"}},{"$f":"'Sundurliðun Útlán'!L268","v":0},".M.EUKNFEH.XX.ERI.XXX.XXXX.SX.XXX.JPY.IS.N.M"]
[{"$f":"\"INN.\"&EIGNIR!$B$3&C4980","v":{"$error":"#N/A"}},{"$f":"'Sundurliðun Útlán'!L271","v":0},".M.EUKNFEH.XX.ERF.XXX.XXXX.SX.XXX.JPY.IS.N.M"]
[{"$f":"\"INN.\"&EIGNIR!$B$3&C4981","v":{"$error":"#N/A"}},{"$f":"'Sundurliðun Útlán'!L273","v":0},".M.EUKNFEH.XX.ERA.XXX.XXXX.SX.XXX.JPY.IS.N.M"]
[{"$f":"\"INN.\"&EIGNIR!$B$3&C4982","v":{"$error":"#N/A"}},{"$f":"'Sundurliðun Útlán'!L274","v":0},".M.EUKNFED.XX.ERL.XXX.XXXX.SX.XXX.JPY.IS.N.M"]
[{"$f":"\"INN.\"&EIGNIR!$B$3&C4983","v":{"$error":"#N/A"}},{"$f":"'Sundurliðun Útlán'!L276","v":0},".M.EUKNFED.XX.ERI.XXX.XXXX.SX.XXX.JPY.IS.N.M"]
[{"$f":"\"INN.\"&EIGNIR!$B$3&C4984","v":{"$error":"#N/A"}},{"$f":"'Sundurliðun Útlán'!L279","v":0},".M.EUKNFED.XX.ERF.XXX.XXXX.SX.XXX.JPY.IS.N.M"]
[{"$f":"\"INN.\"&EIGNIR!$B$3&C4985","v":{"$error":"#N/A"}},{"$f":"'Sundurliðun Útlán'!L281","v":0},".M.EUKNFED.XX.ERA.XXX.XXXX.SX.XXX.JPY.IS.N.M"]
[{"$f":"\"INN.\"&EIGNIR!$B$3&C4986","v":{"$error":"#N/A"}},{"$f":"'Sundurliðun Útlán'!L282","v":0},".M.EUKNFFF.XX.ERL.XXX.XXXX.SX.XXX.JPY.IS.N.M"]
[{"$f":"\"INN.\"&EIGNIR!$B$3&C4987","v":{"$error":"#N/A"}},{"$f":"'Sundurliðun Útlán'!L284","v":0},".M.EUKNFFF.XX.ERI.XXX.XXXX.SX.XXX.JPY.IS.N.M"]
[{"$f":"\"INN.\"&EIGNIR!$B$3&C4988","v":{"$error":"#N/A"}},{"$f":"'Sundurliðun Útlán'!L287","v":0},".M.EUKNFFF.XX.ERF.XXX.XXXX.SX.XXX.JPY.IS.N.M"]
[{"$f":"\"INN.\"&EIGNIR!$B$3&C4989","v":{"$error":"#N/A"}},{"$f":"'Sundurliðun Útlán'!L289","v":0},".M.EUKNFFF.XX.ERA.XXX.XXXX.SX.XXX.JPY.IS.N.M"]
[{"$f":"\"INN.\"&EIGNIR!$B$3&C4990","v":{"$error":"#N/A"}},{"$f":"'Sundurliðun Útlán'!L290","v":0},".M.EUKNFOL.XX.ERL.XXX.XXXX.SX.XXX.JPY.IS.N.M"]
[{"$f":"\"INN.\"&EIGNIR!$B$3&C4991","v":{"$error":"#N/A"}},{"$f":"'Sundurliðun Útlán'!L292","v":0},".M.EUKNFOL.XX.ERI.XXX.XXXX.SX.XXX.JPY.IS.N.M"]
[{"$f":"\"INN.\"&EIGNIR!$B$3&C4992","v":{"$error":"#N/A"}},{"$f":"'Sundurliðun Útlán'!L294","v":0},".M.EUKNFOL.XX.ERV.XXX.XXXX.SX.XXX.JPY.IS.N.M"]
[{"$f":"\"INN.\"&EIGNIR!$B$3&C4993","v":{"$error":"#N/A"}},{"$f":"'Sundurliðun Útlán'!L295","v":0},".M.EUKNFOL.XX.ERF.XXX.XXXX.SX.XXX.JPY.IS.N.M"]
[{"$f":"\"INN.\"&EIGNIR!$B$3&C4994","v":{"$error":"#N/A"}},{"$f":"'Sundurliðun Útlán'!L296","v":0},".M.EUKNFOL.XX.ERO.XXX.XXXX.SX.XXX.JPY.IS.N.M"]
[{"$f":"\"INN.\"&EIGNIR!$B$3&C4995","v":{"$error":"#N/A"}},{"$f":"'Sundurliðun Útlán'!L297","v":0},".M.EUKNFOL.XX.ERA.XXX.XXXX.SX.XXX.JPY.IS.N.M"]
[{"$f":"\"INN.\"&EIGNIR!$B$3&C4996","v":{"$error":"#N/A"}},{"$f":"'Sundurliðun Útlán'!M5","v":0},".M.EUK$$$$.XX.$$$.XXX.XXXX.SX.XXX.DKK.IS.N.M","//Sundurliðun útlána, DKK"]
[{"$f":"\"INN.\"&EIGNIR!$B$3&C4997","v":{"$error":"#N/A"}},{"$f":"'Sundurliðun Útlán'!M6","v":0},".M.EUKIT$$.XX.$$$.XXX.XXXX.SX.XXX.DKK.IS.N.M"]
[{"$f":"\"INN.\"&EIGNIR!$B$3&C4998","v":{"$error":"#N/A"}},{"$f":"'Sundurliðun Útlán'!M7","v":0},".M.EUKITII.XX.XXX.XXX.XXXX.SX.XXX.DKK.IS.N.M"]
[{"$f":"\"INN.\"&EIGNIR!$B$3&C4999","v":{"$error":"#N/A"}},{"$f":"'Sundurliðun Útlán'!M8","v":0},".M.EUKITIE.XX.XXX.XXX.XXXX.SX.XXX.DKK.IS.N.M"]
[{"$f":"\"INN.\"&EIGNIR!$B$3&C5000","v":{"$error":"#N/A"}},{"$f":"'Sundurliðun Útlán'!M9","v":0},".M.EUKITIT.XX.XXX.XXX.XXXX.SX.XXX.DKK.IS.N.M"]
[{"$f":"\"INN.\"&EIGNIR!$B$3&C5001","v":{"$error":"#N/A"}},{"$f":"'Sundurliðun Útlán'!M10","v":0},".M.EUKUL$$.XX.$$$.XXX.XXXX.SX.XXX.DKK.IS.N.M"]
[{"$f":"\"INN.\"&EIGNIR!$B$3&C5002","v":{"$error":"#N/A"}},{"$f":"'Sundurliðun Útlán'!M11","v":0},".M.EUKULIA.XX.$$$.XXX.XXXX.SX.XXX.DKK.IS.N.M"]
[{"$f":"\"INN.\"&EIGNIR!$B$3&C5003","v":{"$error":"#N/A"}},{"$f":"'Sundurliðun Útlán'!M12","v":0},".M.EUKULIA.XX.ATV.XXX.XXXX.SX.XXX.DKK.IS.N.M"]
[{"$f":"\"INN.\"&EIGNIR!$B$3&C5004","v":{"$error":"#N/A"}},{"$f":"'Sundurliðun Útlán'!M26","v":0},".M.EUKULIA.XX.FJA.XXX.XXXX.SX.XXX.DKK.IS.N.M"]
[{"$f":"\"INN.\"&EIGNIR!$B$3&C5005","v":{"$error":"#N/A"}},{"$f":"'Sundurliðun Útlán'!M27","v":0},".M.EUKULIA.XX.INN.XXX.XXXX.SX.XXX.DKK.IS.N.M"]
[{"$f":"\"INN.\"&EIGNIR!$B$3&C5006","v":{"$error":"#N/A"}},{"$f":"'Sundurliðun Útlán'!M28","v":0},".M.EUKULIA.XX.SLI.XXX.XXXX.SX.XXX.DKK.IS.N.M"]
[{"$f":"\"INN.\"&EIGNIR!$B$3&C5007","v":{"$error":"#N/A"}},{"$f":"'Sundurliðun Útlán'!M29","v":0},".M.EUKULIA.XX.PEN.XXX.XXXX.SX.XXX.DKK.IS.N.M"]
[{"$f":"\"INN.\"&EIGNIR!$B$3&C5008","v":{"$error":"#N/A"}},{"$f":"'Sundurliðun Útlán'!M30","v":0},".M.EUKULIA.XX.SJO.XXX.XXXX.SX.XXX.DKK.IS.N.M"]
[{"$f":"\"INN.\"&EIGNIR!$B$3&C5009","v":{"$error":"#N/A"}},{"$f":"'Sundurliðun Útlán'!M31","v":0},".M.EUKULIA.XX.YFT.XXX.XXXX.SX.XXX.DKK.IS.N.M"]
[{"$f":"\"INN.\"&EIGNIR!$B$3&C5010","v":{"$error":"#N/A"}},{"$f":"'Sundurliðun Útlán'!M32","v":0},".M.EUKULIA.XX.SLY.XXX.XXXX.SX.XXX.DKK.IS.N.M"]
[{"$f":"\"INN.\"&EIGNIR!$B$3&C5011","v":{"$error":"#N/A"}},{"$f":"'Sundurliðun Útlán'!M33","v":0},".M.EUKULIA.XX.FHL.XXX.XXXX.SX.XXX.DKK.IS.N.M"]
[{"$f":"\"INN.\"&EIGNIR!$B$3&C5012","v":{"$error":"#N/A"}},{"$f":"'Sundurliðun Útlán'!M34","v":0},".M.EUKULIA.XX.INF.XXX.XXXX.SX.XXX.DKK.IS.N.M"]
[{"$f":"\"INN.\"&EIGNIR!$B$3&C5013","v":{"$error":"#N/A"}},{"$f":"'Sundurliðun Útlán'!M35","v":0},".M.EUKULIA.XX.TRY.XXX.XXXX.SX.XXX.DKK.IS.N.M"]
[{"$f":"\"INN.\"&EIGNIR!$B$3&C5014","v":{"$error":"#N/A"}},{"$f":"'Sundurliðun Útlán'!M36","v":0},".M.EUKULIA.XX.LIF.XXX.XXXX.SX.XXX.DKK.IS.N.M"]
[{"$f":"\"INN.\"&EIGNIR!$B$3&C5015","v":{"$error":"#N/A"}},{"$f":"'Sundurliðun Útlán'!M37","v":0},".M.EUKULIA.XX.OPI.XXX.XXXX.SX.XXX.DKK.IS.N.M"]
[{"$f":"\"INN.\"&EIGNIR!$B$3&C5016","v":{"$error":"#N/A"}},{"$f":"'Sundurliðun Útlán'!M38","v":0},".M.EUKULIA.XX.RSS.XXX.XXXX.SX.XXX.DKK.IS.N.M"]
[{"$f":"\"INN.\"&EIGNIR!$B$3&C5017","v":{"$error":"#N/A"}},{"$f":"'Sundurliðun Útlán'!M39","v":0},".M.EUKULIA.XX.BAJ.XXX.XXXX.SX.XXX.DKK.IS.N.M"]
[{"$f":"\"INN.\"&EIGNIR!$B$3&C5018","v":{"$error":"#N/A"}},{"$f":"'Sundurliðun Útlán'!M40","v":0},".M.EUKULIA.XX.EIN.XXX.XXXX.SX.XXX.DKK.IS.N.M"]
[{"$f":"\"INN.\"&EIGNIR!$B$3&C5019","v":{"$error":"#N/A"}},{"$f":"'Sundurliðun Útlán'!M41","v":0},".M.EUKULIA.XX.NPH.XXX.XXXX.SX.XXX.DKK.IS.N.M"]
[{"$f":"\"INN.\"&EIGNIR!$B$3&C5020","v":{"$error":"#N/A"}},{"$f":"'Sundurliðun Útlán'!M42","v":0},".M.EUKULYL.XX.$$$.XXX.XXXX.SX.XXX.DKK.IS.N.M"]
[{"$f":"\"INN.\"&EIGNIR!$B$3&C5021","v":{"$error":"#N/A"}},{"$f":"'Sundurliðun Útlán'!M43","v":0},".M.EUKULYL.XX.ATV.XXX.XXXX.SX.XXX.DKK.IS.N.M"]
[{"$f":"\"INN.\"&EIGNIR!$B$3&C5022","v":{"$error":"#N/A"}},{"$f":"'Sundurliðun Útlán'!M57","v":0},".M.EUKULYL.XX.FJA.XXX.XXXX.SX.XXX.DKK.IS.N.M"]
[{"$f":"\"INN.\"&EIGNIR!$B$3&C5023","v":{"$error":"#N/A"}},{"$f":"'Sundurliðun Útlán'!M58","v":0},".M.EUKULYL.XX.INN.XXX.XXXX.SX.XXX.DKK.IS.N.M"]
[{"$f":"\"INN.\"&EIGNIR!$B$3&C5024","v":{"$error":"#N/A"}},{"$f":"'Sundurliðun Útlán'!M59","v":0},".M.EUKULYL.XX.SLI.XXX.XXXX.SX.XXX.DKK.IS.N.M"]
[{"$f":"\"INN.\"&EIGNIR!$B$3&C5025","v":{"$error":"#N/A"}},{"$f":"'Sundurliðun Útlán'!M60","v":0},".M.EUKULYL.XX.PEN.XXX.XXXX.SX.XXX.DKK.IS.N.M"]
[{"$f":"\"INN.\"&EIGNIR!$B$3&C5026","v":{"$error":"#N/A"}},{"$f":"'Sundurliðun Útlán'!M61","v":0},".M.EUKULYL.XX.SJO.XXX.XXXX.SX.XXX.DKK.IS.N.M"]
[{"$f":"\"INN.\"&EIGNIR!$B$3&C5027","v":{"$error":"#N/A"}},{"$f":"'Sundurliðun Útlán'!M62","v":0},".M.EUKULYL.XX.YFT.XXX.XXXX.SX.XXX.DKK.IS.N.M"]
[{"$f":"\"INN.\"&EIGNIR!$B$3&C5028","v":{"$error":"#N/A"}},{"$f":"'Sundurliðun Útlán'!M63","v":0},".M.EUKULYL.XX.SLY.XXX.XXXX.SX.XXX.DKK.IS.N.M"]
[{"$f":"\"INN.\"&EIGNIR!$B$3&C5029","v":{"$error":"#N/A"}},{"$f":"'Sundurliðun Útlán'!M64","v":0},".M.EUKULYL.XX.FHL.XXX.XXXX.SX.XXX.DKK.IS.N.M"]
[{"$f":"\"INN.\"&EIGNIR!$B$3&C5030","v":{"$error":"#N/A"}},{"$f":"'Sundurliðun Útlán'!M65","v":0},".M.EUKULYL.XX.INF.XXX.XXXX.SX.XXX.DKK.IS.N.M"]
[{"$f":"\"INN.\"&EIGNIR!$B$3&C5031","v":{"$error":"#N/A"}},{"$f":"'Sundurliðun Útlán'!M66","v":0},".M.EUKULYL.XX.TRY.XXX.XXXX.SX.XXX.DKK.IS.N.M"]
[{"$f":"\"INN.\"&EIGNIR!$B$3&C5032","v":{"$error":"#N/A"}},{"$f":"'Sundurliðun Útlán'!M67","v":0},".M.EUKULYL.XX.LIF.XXX.XXXX.SX.XXX.DKK.IS.N.M"]
[{"$f":"\"INN.\"&EIGNIR!$B$3&C5033","v":{"$error":"#N/A"}},{"$f":"'Sundurliðun Útlán'!M68","v":0},".M.EUKULYL.XX.OPI.XXX.XXXX.SX.XXX.DKK.IS.N.M"]
[{"$f":"\"INN.\"&EIGNIR!$B$3&C5034","v":{"$error":"#N/A"}},{"$f":"'Sundurliðun Útlán'!M69","v":0},".M.EUKULYL.XX.RSS.XXX.XXXX.SX.XXX.DKK.IS.N.M"]
[{"$f":"\"INN.\"&EIGNIR!$B$3&C5035","v":{"$error":"#N/A"}},{"$f":"'Sundurliðun Útlán'!M70","v":0},".M.EUKULYL.XX.BAJ.XXX.XXXX.SX.XXX.DKK.IS.N.M"]
[{"$f":"\"INN.\"&EIGNIR!$B$3&C5036","v":{"$error":"#N/A"}},{"$f":"'Sundurliðun Útlán'!M71","v":0},".M.EUKULYL.XX.EIN.XXX.XXXX.SX.XXX.DKK.IS.N.M"]
[{"$f":"\"INN.\"&EIGNIR!$B$3&C5037","v":{"$error":"#N/A"}},{"$f":"'Sundurliðun Útlán'!M72","v":0},".M.EUKULYL.XX.NPH.XXX.XXXX.SX.XXX.DKK.IS.N.M"]
[{"$f":"\"INN.\"&EIGNIR!$B$3&C5038","v":{"$error":"#N/A"}},{"$f":"'Sundurliðun Útlán'!M73","v":0},".M.EUKULVX.XX.$$$.XXX.XXXX.SX.XXX.DKK.IS.N.M"]
[{"$f":"\"INN.\"&EIGNIR!$B$3&C5039","v":{"$error":"#N/A"}},{"$f":"'Sundurliðun Útlán'!M74","v":0},".M.EUKULVX.XX.ATV.XXX.XXXX.SX.XXX.DKK.IS.N.M"]
[{"$f":"\"INN.\"&EIGNIR!$B$3&C5040","v":{"$error":"#N/A"}},{"$f":"'Sundurliðun Útlán'!M88","v":0},".M.EUKULVX.XX.FJA.XXX.XXXX.SX.XXX.DKK.IS.N.M"]
[{"$f":"\"INN.\"&EIGNIR!$B$3&C5041","v":{"$error":"#N/A"}},{"$f":"'Sundurliðun Útlán'!M89","v":0},".M.EUKULVX.XX.INN.XXX.XXXX.SX.XXX.DKK.IS.N.M"]
[{"$f":"\"INN.\"&EIGNIR!$B$3&C5042","v":{"$error":"#N/A"}},{"$f":"'Sundurliðun Útlán'!M90","v":0},".M.EUKULVX.XX.SLI.XXX.XXXX.SX.XXX.DKK.IS.N.M"]
[{"$f":"\"INN.\"&EIGNIR!$B$3&C5043","v":{"$error":"#N/A"}},{"$f":"'Sundurliðun Útlán'!M91","v":0},".M.EUKULVX.XX.PEN.XXX.XXXX.SX.XXX.DKK.IS.N.M"]
[{"$f":"\"INN.\"&EIGNIR!$B$3&C5044","v":{"$error":"#N/A"}},{"$f":"'Sundurliðun Útlán'!M92","v":0},".M.EUKULVX.XX.SJO.XXX.XXXX.SX.XXX.DKK.IS.N.M"]
[{"$f":"\"INN.\"&EIGNIR!$B$3&C5045","v":{"$error":"#N/A"}},{"$f":"'Sundurliðun Útlán'!M93","v":0},".M.EUKULVX.XX.YFT.XXX.XXXX.SX.XXX.DKK.IS.N.M"]
[{"$f":"\"INN.\"&EIGNIR!$B$3&C5046","v":{"$error":"#N/A"}},{"$f":"'Sundurliðun Útlán'!M94","v":0},".M.EUKULVX.XX.SLY.XXX.XXXX.SX.XXX.DKK.IS.N.M"]
[{"$f":"\"INN.\"&EIGNIR!$B$3&C5047","v":{"$error":"#N/A"}},{"$f":"'Sundurliðun Útlán'!M95","v":0},".M.EUKULVX.XX.FHL.XXX.XXXX.SX.XXX.DKK.IS.N.M"]
[{"$f":"\"INN.\"&EIGNIR!$B$3&C5048","v":{"$error":"#N/A"}},{"$f":"'Sundurliðun Útlán'!M96","v":0},".M.EUKULVX.XX.INF.XXX.XXXX.SX.XXX.DKK.IS.N.M"]
[{"$f":"\"INN.\"&EIGNIR!$B$3&C5049","v":{"$error":"#N/A"}},{"$f":"'Sundurliðun Útlán'!M97","v":0},".M.EUKULVX.XX.TRY.XXX.XXXX.SX.XXX.DKK.IS.N.M"]
[{"$f":"\"INN.\"&EIGNIR!$B$3&C5050","v":{"$error":"#N/A"}},{"$f":"'Sundurliðun Útlán'!M98","v":0},".M.EUKULVX.XX.LIF.XXX.XXXX.SX.XXX.DKK.IS.N.M"]
[{"$f":"\"INN.\"&EIGNIR!$B$3&C5051","v":{"$error":"#N/A"}},{"$f":"'Sundurliðun Útlán'!M99","v":0},".M.EUKULVX.XX.OPI.XXX.XXXX.SX.XXX.DKK.IS.N.M"]
[{"$f":"\"INN.\"&EIGNIR!$B$3&C5052","v":{"$error":"#N/A"}},{"$f":"'Sundurliðun Útlán'!M100","v":0},".M.EUKULVX.XX.RSS.XXX.XXXX.SX.XXX.DKK.IS.N.M"]
[{"$f":"\"INN.\"&EIGNIR!$B$3&C5053","v":{"$error":"#N/A"}},{"$f":"'Sundurliðun Útlán'!M101","v":0},".M.EUKULVX.XX.BAJ.XXX.XXXX.SX.XXX.DKK.IS.N.M"]
[{"$f":"\"INN.\"&EIGNIR!$B$3&C5054","v":{"$error":"#N/A"}},{"$f":"'Sundurliðun Útlán'!M102","v":0},".M.EUKULVX.XX.EIN.XXX.XXXX.SX.XXX.DKK.IS.N.M"]
[{"$f":"\"INN.\"&EIGNIR!$B$3&C5055","v":{"$error":"#N/A"}},{"$f":"'Sundurliðun Útlán'!M103","v":0},".M.EUKULVX.XX.NPH.XXX.XXXX.SX.XXX.DKK.IS.N.M"]
[{"$f":"\"INN.\"&EIGNIR!$B$3&C5056","v":{"$error":"#N/A"}},{"$f":"'Sundurliðun Útlán'!M136","v":0},".M.EUKULOU.XX.$$$.XXX.XXXX.SX.XXX.DKK.IS.N.M"]
[{"$f":"\"INN.\"&EIGNIR!$B$3&C5057","v":{"$error":"#N/A"}},{"$f":"'Sundurliðun Útlán'!M137","v":0},".M.EUKULOU.XX.ATV.XXX.XXXX.SX.XXX.DKK.IS.N.M"]
[{"$f":"\"INN.\"&EIGNIR!$B$3&C5058","v":{"$error":"#N/A"}},{"$f":"'Sundurliðun Útlán'!M151","v":0},".M.EUKULOU.XX.FJA.XXX.XXXX.SX.XXX.DKK.IS.N.M"]
[{"$f":"\"INN.\"&EIGNIR!$B$3&C5059","v":{"$error":"#N/A"}},{"$f":"'Sundurliðun Útlán'!M152","v":0},".M.EUKULOU.XX.INN.XXX.XXXX.SX.XXX.DKK.IS.N.M"]
[{"$f":"\"INN.\"&EIGNIR!$B$3&C5060","v":{"$error":"#N/A"}},{"$f":"'Sundurliðun Útlán'!M153","v":0},".M.EUKULOU.XX.SLI.XXX.XXXX.SX.XXX.DKK.IS.N.M"]
[{"$f":"\"INN.\"&EIGNIR!$B$3&C5061","v":{"$error":"#N/A"}},{"$f":"'Sundurliðun Útlán'!M154","v":0},".M.EUKULOU.XX.PEN.XXX.XXXX.SX.XXX.DKK.IS.N.M"]
[{"$f":"\"INN.\"&EIGNIR!$B$3&C5062","v":{"$error":"#N/A"}},{"$f":"'Sundurliðun Útlán'!M155","v":0},".M.EUKULOU.XX.SJO.XXX.XXXX.SX.XXX.DKK.IS.N.M"]
[{"$f":"\"INN.\"&EIGNIR!$B$3&C5063","v":{"$error":"#N/A"}},{"$f":"'Sundurliðun Útlán'!M156","v":0},".M.EUKULOU.XX.YFT.XXX.XXXX.SX.XXX.DKK.IS.N.M"]
[{"$f":"\"INN.\"&EIGNIR!$B$3&C5064","v":{"$error":"#N/A"}},{"$f":"'Sundurliðun Útlán'!M157","v":0},".M.EUKULOU.XX.SLY.XXX.XXXX.SX.XXX.DKK.IS.N.M"]
[{"$f":"\"INN.\"&EIGNIR!$B$3&C5065","v":{"$error":"#N/A"}},{"$f":"'Sundurliðun Útlán'!M158","v":0},".M.EUKULOU.XX.FHL.XXX.XXXX.SX.XXX.DKK.IS.N.M"]
[{"$f":"\"INN.\"&EIGNIR!$B$3&C5066","v":{"$error":"#N/A"}},{"$f":"'Sundurliðun Útlán'!M159","v":0},".M.EUKULOU.XX.INF.XXX.XXXX.SX.XXX.DKK.IS.N.M"]
[{"$f":"\"INN.\"&EIGNIR!$B$3&C5067","v":{"$error":"#N/A"}},{"$f":"'Sundurliðun Útlán'!M160","v":0},".M.EUKULOU.XX.TRY.XXX.XXXX.SX.XXX.DKK.IS.N.M"]
[{"$f":"\"INN.\"&EIGNIR!$B$3&C5068","v":{"$error":"#N/A"}},{"$f":"'Sundurliðun Útlán'!M161","v":0},".M.EUKULOU.XX.LIF.XXX.XXXX.SX.XXX.DKK.IS.N.M"]
[{"$f":"\"INN.\"&EIGNIR!$B$3&C5069","v":{"$error":"#N/A"}},{"$f":"'Sundurliðun Útlán'!M162","v":0},".M.EUKULOU.XX.OPI.XXX.XXXX.SX.XXX.DKK.IS.N.M"]
[{"$f":"\"INN.\"&EIGNIR!$B$3&C5070","v":{"$error":"#N/A"}},{"$f":"'Sundurliðun Útlán'!M163","v":0},".M.EUKULOU.XX.RSS.XXX.XXXX.SX.XXX.DKK.IS.N.M"]
[{"$f":"\"INN.\"&EIGNIR!$B$3&C5071","v":{"$error":"#N/A"}},{"$f":"'Sundurliðun Útlán'!M164","v":0},".M.EUKULOU.XX.BAJ.XXX.XXXX.SX.XXX.DKK.IS.N.M"]
[{"$f":"\"INN.\"&EIGNIR!$B$3&C5072","v":{"$error":"#N/A"}},{"$f":"'Sundurliðun Útlán'!M165","v":0},".M.EUKULOU.XX.EIB.XXX.XXXX.SX.XXX.DKK.IS.N.M"]
[{"$f":"\"INN.\"&EIGNIR!$B$3&C5073","v":{"$error":"#N/A"}},{"$f":"'Sundurliðun Útlán'!M166","v":0},".M.EUKULOU.XX.ANN.XXX.XXXX.SX.XXX.DKK.IS.N.M"]
[{"$f":"\"INN.\"&EIGNIR!$B$3&C5074","v":{"$error":"#N/A"}},{"$f":"'Sundurliðun Útlán'!M167","v":0},".M.EUKULOU.XX.NPH.XXX.XXXX.SX.XXX.DKK.IS.N.M"]
[{"$f":"\"INN.\"&EIGNIR!$B$3&C5075","v":{"$error":"#N/A"}},{"$f":"'Sundurliðun Útlán'!M168","v":0},".M.EUKULEL.XX.$$$.XXX.XXXX.SX.XXX.DKK.IS.N.M"]
[{"$f":"\"INN.\"&EIGNIR!$B$3&C5076","v":{"$error":"#N/A"}},{"$f":"'Sundurliðun Útlán'!M169","v":0},".M.EUKULEL.XX.ATV.XXX.XXXX.SX.XXX.DKK.IS.N.M"]
[{"$f":"\"INN.\"&EIGNIR!$B$3&C5077","v":{"$error":"#N/A"}},{"$f":"'Sundurliðun Útlán'!M183","v":0},".M.EUKULEL.XX.FJA.XXX.XXXX.SX.XXX.DKK.IS.N.M"]
[{"$f":"\"INN.\"&EIGNIR!$B$3&C5078","v":{"$error":"#N/A"}},{"$f":"'Sundurliðun Útlán'!M184","v":0},".M.EUKULEL.XX.INN.XXX.XXXX.SX.XXX.DKK.IS.N.M"]
[{"$f":"\"INN.\"&EIGNIR!$B$3&C5079","v":{"$error":"#N/A"}},{"$f":"'Sundurliðun Útlán'!M185","v":0},".M.EUKULEL.XX.SLI.XXX.XXXX.SX.XXX.DKK.IS.N.M"]
[{"$f":"\"INN.\"&EIGNIR!$B$3&C5080","v":{"$error":"#N/A"}},{"$f":"'Sundurliðun Útlán'!M186","v":0},".M.EUKULEL.XX.PEN.XXX.XXXX.SX.XXX.DKK.IS.N.M"]
[{"$f":"\"INN.\"&EIGNIR!$B$3&C5081","v":{"$error":"#N/A"}},{"$f":"'Sundurliðun Útlán'!M187","v":0},".M.EUKULEL.XX.SJO.XXX.XXXX.SX.XXX.DKK.IS.N.M"]
[{"$f":"\"INN.\"&EIGNIR!$B$3&C5082","v":{"$error":"#N/A"}},{"$f":"'Sundurliðun Útlán'!M188","v":0},".M.EUKULEL.XX.YFT.XXX.XXXX.SX.XXX.DKK.IS.N.M"]
[{"$f":"\"INN.\"&EIGNIR!$B$3&C5083","v":{"$error":"#N/A"}},{"$f":"'Sundurliðun Útlán'!M189","v":0},".M.EUKULEL.XX.SLY.XXX.XXXX.SX.XXX.DKK.IS.N.M"]
[{"$f":"\"INN.\"&EIGNIR!$B$3&C5084","v":{"$error":"#N/A"}},{"$f":"'Sundurliðun Útlán'!M190","v":0},".M.EUKULEL.XX.FHL.XXX.XXXX.SX.XXX.DKK.IS.N.M"]
[{"$f":"\"INN.\"&EIGNIR!$B$3&C5085","v":{"$error":"#N/A"}},{"$f":"'Sundurliðun Útlán'!M191","v":0},".M.EUKULEL.XX.INF.XXX.XXXX.SX.XXX.DKK.IS.N.M"]
[{"$f":"\"INN.\"&EIGNIR!$B$3&C5086","v":{"$error":"#N/A"}},{"$f":"'Sundurliðun Útlán'!M192","v":0},".M.EUKULEL.XX.TRY.XXX.XXXX.SX.XXX.DKK.IS.N.M"]
[{"$f":"\"INN.\"&EIGNIR!$B$3&C5087","v":{"$error":"#N/A"}},{"$f":"'Sundurliðun Útlán'!M193","v":0},".M.EUKULEL.XX.LIF.XXX.XXXX.SX.XXX.DKK.IS.N.M"]
[{"$f":"\"INN.\"&EIGNIR!$B$3&C5088","v":{"$error":"#N/A"}},{"$f":"'Sundurliðun Útlán'!M194","v":0},".M.EUKULEL.XX.OPI.XXX.XXXX.SX.XXX.DKK.IS.N.M"]
[{"$f":"\"INN.\"&EIGNIR!$B$3&C5089","v":{"$error":"#N/A"}},{"$f":"'Sundurliðun Útlán'!M195","v":0},".M.EUKULEL.XX.RSS.XXX.XXXX.SX.XXX.DKK.IS.N.M"]
[{"$f":"\"INN.\"&EIGNIR!$B$3&C5090","v":{"$error":"#N/A"}},{"$f":"'Sundurliðun Útlán'!M196","v":0},".M.EUKULEL.XX.BAJ.XXX.XXXX.SX.XXX.DKK.IS.N.M"]
[{"$f":"\"INN.\"&EIGNIR!$B$3&C5091","v":{"$error":"#N/A"}},{"$f":"'Sundurliðun Útlán'!M197","v":0},".M.EUKULEL.XX.EIN.XXX.XXXX.SX.XXX.DKK.IS.N.M"]
[{"$f":"\"INN.\"&EIGNIR!$B$3&C5092","v":{"$error":"#N/A"}},{"$f":"'Sundurliðun Útlán'!M198","v":0},".M.EUKULEL.XX.NPH.XXX.XXXX.SX.XXX.DKK.IS.N.M"]
[{"$f":"\"INN.\"&EIGNIR!$B$3&C5093","v":{"$error":"#N/A"}},{"$f":"'Sundurliðun Útlán'!M199","v":0},".M.EUKULUE.XX.$$$.XXX.XXXX.SX.XXX.DKK.IS.N.M"]
[{"$f":"\"INN.\"&EIGNIR!$B$3&C5094","v":{"$error":"#N/A"}},{"$f":"'Sundurliðun Útlán'!M200","v":0},".M.EUKULEH.XX.ERL.XXX.XXXX.SX.XXX.DKK.IS.N.M"]
[{"$f":"\"INN.\"&EIGNIR!$B$3&C5095","v":{"$error":"#N/A"}},{"$f":"'Sundurliðun Útlán'!M202","v":0},".M.EUKULEH.XX.ERI.XXX.XXXX.SX.XXX.DKK.IS.N.M"]
[{"$f":"\"INN.\"&EIGNIR!$B$3&C5096","v":{"$error":"#N/A"}},{"$f":"'Sundurliðun Útlán'!M205","v":0},".M.EUKULEH.XX.ERF.XXX.XXXX.SX.XXX.DKK.IS.N.M"]
[{"$f":"\"INN.\"&EIGNIR!$B$3&C5097","v":{"$error":"#N/A"}},{"$f":"'Sundurliðun Útlán'!M207","v":0},".M.EUKULEH.XX.ERA.XXX.XXXX.SX.XXX.DKK.IS.N.M"]
[{"$f":"\"INN.\"&EIGNIR!$B$3&C5098","v":{"$error":"#N/A"}},{"$f":"'Sundurliðun Útlán'!M208","v":0},".M.EUKULED.XX.ERL.XXX.XXXX.SX.XXX.DKK.IS.N.M"]
[{"$f":"\"INN.\"&EIGNIR!$B$3&C5099","v":{"$error":"#N/A"}},{"$f":"'Sundurliðun Útlán'!M210","v":0},".M.EUKULED.XX.ERI.XXX.XXXX.SX.XXX.DKK.IS.N.M"]
[{"$f":"\"INN.\"&EIGNIR!$B$3&C5100","v":{"$error":"#N/A"}},{"$f":"'Sundurliðun Útlán'!M213","v":0},".M.EUKULED.XX.ERF.XXX.XXXX.SX.XXX.DKK.IS.N.M"]
[{"$f":"\"INN.\"&EIGNIR!$B$3&C5101","v":{"$error":"#N/A"}},{"$f":"'Sundurliðun Útlán'!M215","v":0},".M.EUKULED.XX.ERA.XXX.XXXX.SX.XXX.DKK.IS.N.M"]
[{"$f":"\"INN.\"&EIGNIR!$B$3&C5102","v":{"$error":"#N/A"}},{"$f":"'Sundurliðun Útlán'!M216","v":0},".M.EUKULFF.XX.ERL.XXX.XXXX.SX.XXX.DKK.IS.N.M"]
[{"$f":"\"INN.\"&EIGNIR!$B$3&C5103","v":{"$error":"#N/A"}},{"$f":"'Sundurliðun Útlán'!M218","v":0},".M.EUKULFF.XX.ERI.XXX.XXXX.SX.XXX.DKK.IS.N.M"]
[{"$f":"\"INN.\"&EIGNIR!$B$3&C5104","v":{"$error":"#N/A"}},{"$f":"'Sundurliðun Útlán'!M221","v":0},".M.EUKULFF.XX.ERF.XXX.XXXX.SX.XXX.DKK.IS.N.M"]
[{"$f":"\"INN.\"&EIGNIR!$B$3&C5105","v":{"$error":"#N/A"}},{"$f":"'Sundurliðun Útlán'!M223","v":0},".M.EUKULFF.XX.ERA.XXX.XXXX.SX.XXX.DKK.IS.N.M"]
[{"$f":"\"INN.\"&EIGNIR!$B$3&C5106","v":{"$error":"#N/A"}},{"$f":"'Sundurliðun Útlán'!M224","v":0},".M.EUKULOL.XX.ERL.XXX.XXXX.SX.XXX.DKK.IS.N.M"]
[{"$f":"\"INN.\"&EIGNIR!$B$3&C5107","v":{"$error":"#N/A"}},{"$f":"'Sundurliðun Útlán'!M226","v":0},".M.EUKULOL.XX.ERI.XXX.XXXX.SX.XXX.DKK.IS.N.M"]
[{"$f":"\"INN.\"&EIGNIR!$B$3&C5108","v":{"$error":"#N/A"}},{"$f":"'Sundurliðun Útlán'!M228","v":0},".M.EUKULOL.XX.ERV.XXX.XXXX.SX.XXX.DKK.IS.N.M"]
[{"$f":"\"INN.\"&EIGNIR!$B$3&C5109","v":{"$error":"#N/A"}},{"$f":"'Sundurliðun Útlán'!M229","v":0},".M.EUKULOL.XX.ERF.XXX.XXXX.SX.XXX.DKK.IS.N.M"]
[{"$f":"\"INN.\"&EIGNIR!$B$3&C5110","v":{"$error":"#N/A"}},{"$f":"'Sundurliðun Útlán'!M230","v":0},".M.EUKULOL.XX.ERO.XXX.XXXX.SX.XXX.DKK.IS.N.M"]
[{"$f":"\"INN.\"&EIGNIR!$B$3&C5111","v":{"$error":"#N/A"}},{"$f":"'Sundurliðun Útlán'!M231","v":0},".M.EUKULOL.XX.ERA.XXX.XXXX.SX.XXX.DKK.IS.N.M"]
[{"$f":"\"INN.\"&EIGNIR!$B$3&C5112","v":{"$error":"#N/A"}},{"$f":"'Sundurliðun Útlán'!M232","v":0},".M.EUKNF$$.XX.XXX.XXX.XXXX.SX.XXX.DKK.IS.N.M"]
[{"$f":"\"INN.\"&EIGNIR!$B$3&C5113","v":{"$error":"#N/A"}},{"$f":"'Sundurliðun Útlán'!M233","v":0},".M.EUKNFAL.XX.XXX.XXX.XXXX.SX.XXX.DKK.IS.N.M"]
[{"$f":"\"INN.\"&EIGNIR!$B$3&C5114","v":{"$error":"#N/A"}},{"$f":"'Sundurliðun Útlán'!M234","v":0},".M.EUKNFST.XX.$$$.XXX.XXXX.SX.XXX.DKK.IS.N.M"]
[{"$f":"\"INN.\"&EIGNIR!$B$3&C5115","v":{"$error":"#N/A"}},{"$f":"'Sundurliðun Útlán'!M235","v":0},".M.EUKNFST.XX.ATV.XXX.XXXX.SX.XXX.DKK.IS.N.M"]
[{"$f":"\"INN.\"&EIGNIR!$B$3&C5116","v":{"$error":"#N/A"}},{"$f":"'Sundurliðun Útlán'!M236","v":0},".M.EUKNFST.XX.LAB.XXX.XXXX.SX.XXX.DKK.IS.N.M"]
[{"$f":"\"INN.\"&EIGNIR!$B$3&C5117","v":{"$error":"#N/A"}},{"$f":"'Sundurliðun Útlán'!M237","v":0},".M.EUKNFST.XX.SJA.XXX.XXXX.SX.XXX.DKK.IS.N.M"]
[{"$f":"\"INN.\"&EIGNIR!$B$3&C5118","v":{"$error":"#N/A"}},{"$f":"'Sundurliðun Útlán'!M238","v":0},".M.EUKNFST.XX.ILA.XXX.XXXX.SX.XXX.DKK.IS.N.M"]
[{"$f":"\"INN.\"&EIGNIR!$B$3&C5119","v":{"$error":"#N/A"}},{"$f":"'Sundurliðun Útlán'!M239","v":0},".M.EUKNFST.XX.ISJ.XXX.XXXX.SX.XXX.DKK.IS.N.M"]
[{"$f":"\"INN.\"&EIGNIR!$B$3&C5120","v":{"$error":"#N/A"}},{"$f":"'Sundurliðun Útlán'!M240","v":0},".M.EUKNFST.XX.IAN.XXX.XXXX.SX.XXX.DKK.IS.N.M"]
[{"$f":"\"INN.\"&EIGNIR!$B$3&C5121","v":{"$error":"#N/A"}},{"$f":"'Sundurliðun Útlán'!M241","v":0},".M.EUKNFST.XX.RAF.XXX.XXXX.SX.XXX.DKK.IS.N.M"]
[{"$f":"\"INN.\"&EIGNIR!$B$3&C5122","v":{"$error":"#N/A"}},{"$f":"'Sundurliðun Útlán'!M242","v":0},".M.EUKNFST.XX.MAN.XXX.XXXX.SX.XXX.DKK.IS.N.M"]
[{"$f":"\"INN.\"&EIGNIR!$B$3&C5123","v":{"$error":"#N/A"}},{"$f":"'Sundurliðun Útlán'!M243","v":0},".M.EUKNFST.XX.VEN.XXX.XXXX.SX.XXX.DKK.IS.N.M"]
[{"$f":"\"INN.\"&EIGNIR!$B$3&C5124","v":{"$error":"#N/A"}},{"$f":"'Sundurliðun Útlán'!M244","v":0},".M.EUKNFST.XX.SAG.XXX.XXXX.SX.XXX.DKK.IS.N.M"]
[{"$f":"\"INN.\"&EIGNIR!$B$3&C5125","v":{"$error":"#N/A"}},{"$f":"'Sundurliðun Útlán'!M245","v":0},".M.EUKNFST.XX.THF.XXX.XXXX.SX.XXX.DKK.IS.N.M"]
[{"$f":"\"INN.\"&EIGNIR!$B$3&C5126","v":{"$error":"#N/A"}},{"$f":"'Sundurliðun Útlán'!M246","v":0},".M.EUKNFST.XX.THH.XXX.XXXX.SX.XXX.DKK.IS.N.M"]
[{"$f":"\"INN.\"&EIGNIR!$B$3&C5127","v":{"$error":"#N/A"}},{"$f":"'Sundurliðun Útlán'!M247","v":0},".M.EUKNFST.XX.THA.XXX.XXXX.SX.XXX.DKK.IS.N.M"]
[{"$f":"\"INN.\"&EIGNIR!$B$3&C5128","v":{"$error":"#N/A"}},{"$f":"'Sundurliðun Útlán'!M248","v":0},".M.EUKNFST.XX.OFL.XXX.XXXX.SX.XXX.DKK.IS.N.M"]
[{"$f":"\"INN.\"&EIGNIR!$B$3&C5129","v":{"$error":"#N/A"}},{"$f":"'Sundurliðun Útlán'!M249","v":0},".M.EUKNFST.XX.FJA.XXX.XXXX.SX.XXX.DKK.IS.N.M"]
[{"$f":"\"INN.\"&EIGNIR!$B$3&C5130","v":{"$error":"#N/A"}},{"$f":"'Sundurliðun Útlán'!M250","v":0},".M.EUKNFST.XXINN.XXX.XXXX.SX.XXX.DKK.IS.N.M"]
[{"$f":"\"INN.\"&EIGNIR!$B$3&C5131","v":{"$error":"#N/A"}},{"$f":"'Sundurliðun Útlán'!M251","v":0},".M.EUKNFST.XX.SLI.XXX.XXXX.SX.XXX.DKK.IS.N.M"]
[{"$f":"\"INN.\"&EIGNIR!$B$3&C5132","v":{"$error":"#N/A"}},{"$f":"'Sundurliðun Útlán'!M252","v":0},".M.EUKNFST.XX.PEN.XXX.XXXX.SX.XXX.DKK.IS.N.M"]
[{"$f":"\"INN.\"&EIGNIR!$B$3&C5133","v":{"$error":"#N/A"}},{"$f":"'Sundurliðun Útlán'!M253","v":0},".M.EUKNFST.XX.SJO.XXX.XXXX.SX.XXX.DKK.IS.N.M"]
[{"$f":"\"INN.\"&EIGNIR!$B$3&C5134","v":{"$error":"#N/A"}},{"$f":"'Sundurliðun Útlán'!M254","v":0},".M.EUKNFST.XX.YFT.XXX.XXXX.SX.XXX.DKK.IS.N.M"]
[{"$f":"\"INN.\"&EIGNIR!$B$3&C5135","v":{"$error":"#N/A"}},{"$f":"'Sundurliðun Útlán'!M255","v":0},".M.EUKNFST.XX.SLY.XXX.XXXX.SX.XXX.DKK.IS.N.M"]
[{"$f":"\"INN.\"&EIGNIR!$B$3&C5136","v":{"$error":"#N/A"}},{"$f":"'Sundurliðun Útlán'!M256","v":0},".M.EUKNFST.XX.FHL.XXX.XXXX.SX.XXX.DKK.IS.N.M"]
[{"$f":"\"INN.\"&EIGNIR!$B$3&C5137","v":{"$error":"#N/A"}},{"$f":"'Sundurliðun Útlán'!M257","v":0},".M.EUKNFST.XX.INF.XXX.XXXX.SX.XXX.DKK.IS.N.M"]
[{"$f":"\"INN.\"&EIGNIR!$B$3&C5138","v":{"$error":"#N/A"}},{"$f":"'Sundurliðun Útlán'!M258","v":0},".M.EUKNFST.XX.TRY.XXX.XXXX.SX.XXX.DKK.IS.N.M"]
[{"$f":"\"INN.\"&EIGNIR!$B$3&C5139","v":{"$error":"#N/A"}},{"$f":"'Sundurliðun Útlán'!M259","v":0},".M.EUKNFST.XX.LIF.XXX.XXXX.SX.XXX.DKK.IS.N.M"]
[{"$f":"\"INN.\"&EIGNIR!$B$3&C5140","v":{"$error":"#N/A"}},{"$f":"'Sundurliðun Útlán'!M260","v":0},".M.EUKNFST.XX.OPI.XXX.XXXX.SX.XXX.DKK.IS.N.M"]
[{"$f":"\"INN.\"&EIGNIR!$B$3&C5141","v":{"$error":"#N/A"}},{"$f":"'Sundurliðun Útlán'!M261","v":0},".M.EUKNFST.XX.RSS.XXX.XXXX.SX.XXX.DKK.IS.N.M"]
[{"$f":"\"INN.\"&EIGNIR!$B$3&C5142","v":{"$error":"#N/A"}},{"$f":"'Sundurliðun Útlán'!M262","v":0},".M.EUKNFST.XX.BAJ.XXX.XXXX.SX.XXX.DKK.IS.N.M"]
[{"$f":"\"INN.\"&EIGNIR!$B$3&C5143","v":{"$error":"#N/A"}},{"$f":"'Sundurliðun Útlán'!M263","v":0},".M.EUKNFST.XX.EIN.XXX.XXXX.SX.XXX.DKK.IS.N.M"]
[{"$f":"\"INN.\"&EIGNIR!$B$3&C5144","v":{"$error":"#N/A"}},{"$f":"'Sundurliðun Útlán'!M264","v":0},".M.EUKNFST.XX.NPH.XXX.XXXX.SX.XXX.DKK.IS.N.M"]
[{"$f":"\"INN.\"&EIGNIR!$B$3&C5145","v":{"$error":"#N/A"}},{"$f":"'Sundurliðun Útlán'!M265","v":0},".M.EUKNFER.XX.ERL.XXX.XXXX.SX.XXX.DKK.IS.N.M"]
[{"$f":"\"INN.\"&EIGNIR!$B$3&C5146","v":{"$error":"#N/A"}},{"$f":"'Sundurliðun Útlán'!M266","v":0},".M.EUKNFEH.XX.ERL.XXX.XXXX.SX.XXX.DKK.IS.N.M"]
[{"$f":"\"INN.\"&EIGNIR!$B$3&C5147","v":{"$error":"#N/A"}},{"$f":"'Sundurliðun Útlán'!M268","v":0},".M.EUKNFEH.XX.ERI.XXX.XXXX.SX.XXX.DKK.IS.N.M"]
[{"$f":"\"INN.\"&EIGNIR!$B$3&C5148","v":{"$error":"#N/A"}},{"$f":"'Sundurliðun Útlán'!M271","v":0},".M.EUKNFEH.XX.ERF.XXX.XXXX.SX.XXX.DKK.IS.N.M"]
[{"$f":"\"INN.\"&EIGNIR!$B$3&C5149","v":{"$error":"#N/A"}},{"$f":"'Sundurliðun Útlán'!M273","v":0},".M.EUKNFEH.XX.ERA.XXX.XXXX.SX.XXX.DKK.IS.N.M"]
[{"$f":"\"INN.\"&EIGNIR!$B$3&C5150","v":{"$error":"#N/A"}},{"$f":"'Sundurliðun Útlán'!M274","v":0},".M.EUKNFED.XX.ERL.XXX.XXXX.SX.XXX.DKK.IS.N.M"]
[{"$f":"\"INN.\"&EIGNIR!$B$3&C5151","v":{"$error":"#N/A"}},{"$f":"'Sundurliðun Útlán'!M276","v":0},".M.EUKNFED.XX.ERI.XXX.XXXX.SX.XXX.DKK.IS.N.M"]
[{"$f":"\"INN.\"&EIGNIR!$B$3&C5152","v":{"$error":"#N/A"}},{"$f":"'Sundurliðun Útlán'!M279","v":0},".M.EUKNFED.XX.ERF.XXX.XXXX.SX.XXX.DKK.IS.N.M"]
[{"$f":"\"INN.\"&EIGNIR!$B$3&C5153","v":{"$error":"#N/A"}},{"$f":"'Sundurliðun Útlán'!M281","v":0},".M.EUKNFED.XX.ERA.XXX.XXXX.SX.XXX.DKK.IS.N.M"]
[{"$f":"\"INN.\"&EIGNIR!$B$3&C5154","v":{"$error":"#N/A"}},{"$f":"'Sundurliðun Útlán'!M282","v":0},".M.EUKNFFF.XX.ERL.XXX.XXXX.SX.XXX.DKK.IS.N.M"]
[{"$f":"\"INN.\"&EIGNIR!$B$3&C5155","v":{"$error":"#N/A"}},{"$f":"'Sundurliðun Útlán'!M284","v":0},".M.EUKNFFF.XX.ERI.XXX.XXXX.SX.XXX.DKK.IS.N.M"]
[{"$f":"\"INN.\"&EIGNIR!$B$3&C5156","v":{"$error":"#N/A"}},{"$f":"'Sundurliðun Útlán'!M287","v":0},".M.EUKNFFF.XX.ERF.XXX.XXXX.SX.XXX.DKK.IS.N.M"]
[{"$f":"\"INN.\"&EIGNIR!$B$3&C5157","v":{"$error":"#N/A"}},{"$f":"'Sundurliðun Útlán'!M289","v":0},".M.EUKNFFF.XX.ERA.XXX.XXXX.SX.XXX.DKK.IS.N.M"]
[{"$f":"\"INN.\"&EIGNIR!$B$3&C5158","v":{"$error":"#N/A"}},{"$f":"'Sundurliðun Útlán'!M290","v":0},".M.EUKNFOL.XX.ERL.XXX.XXXX.SX.XXX.DKK.IS.N.M"]
[{"$f":"\"INN.\"&EIGNIR!$B$3&C5159","v":{"$error":"#N/A"}},{"$f":"'Sundurliðun Útlán'!M292","v":0},".M.EUKNFOL.XX.ERI.XXX.XXXX.SX.XXX.DKK.IS.N.M"]
[{"$f":"\"INN.\"&EIGNIR!$B$3&C5160","v":{"$error":"#N/A"}},{"$f":"'Sundurliðun Útlán'!M294","v":0},".M.EUKNFOL.XX.ERV.XXX.XXXX.SX.XXX.DKK.IS.N.M"]
[{"$f":"\"INN.\"&EIGNIR!$B$3&C5161","v":{"$error":"#N/A"}},{"$f":"'Sundurliðun Útlán'!M295","v":0},".M.EUKNFOL.XX.ERF.XXX.XXXX.SX.XXX.DKK.IS.N.M"]
[{"$f":"\"INN.\"&EIGNIR!$B$3&C5162","v":{"$error":"#N/A"}},{"$f":"'Sundurliðun Útlán'!M296","v":0},".M.EUKNFOL.XX.ERO.XXX.XXXX.SX.XXX.DKK.IS.N.M"]
[{"$f":"\"INN.\"&EIGNIR!$B$3&C5163","v":{"$error":"#N/A"}},{"$f":"'Sundurliðun Útlán'!M297","v":0},".M.EUKNFOL.XX.ERA.XXX.XXXX.SX.XXX.DKK.IS.N.M"]
[{"$f":"\"INN.\"&EIGNIR!$B$3&C5164","v":{"$error":"#N/A"}},{"$f":"'Sundurliðun Útlán'!N5","v":0},".M.EUK$$$$.XX.$$$.XXX.XXXX.SX.XXX.NOK.IS.N.M","//Sundurliðun útlána, NOK"]
[{"$f":"\"INN.\"&EIGNIR!$B$3&C5165","v":{"$error":"#N/A"}},{"$f":"'Sundurliðun Útlán'!N6","v":0},".M.EUKIT$$.XX.$$$.XXX.XXXX.SX.XXX.NOK.IS.N.M"]
[{"$f":"\"INN.\"&EIGNIR!$B$3&C5166","v":{"$error":"#N/A"}},{"$f":"'Sundurliðun Útlán'!N7","v":0},".M.EUKITII.XX.XXX.XXX.XXXX.SX.XXX.NOK.IS.N.M"]
[{"$f":"\"INN.\"&EIGNIR!$B$3&C5167","v":{"$error":"#N/A"}},{"$f":"'Sundurliðun Útlán'!N8","v":0},".M.EUKITIE.XX.XXX.XXX.XXXX.SX.XXX.NOK.IS.N.M"]
[{"$f":"\"INN.\"&EIGNIR!$B$3&C5168","v":{"$error":"#N/A"}},{"$f":"'Sundurliðun Útlán'!N9","v":0},".M.EUKITIT.XX.XXX.XXX.XXXX.SX.XXX.NOK.IS.N.M"]
[{"$f":"\"INN.\"&EIGNIR!$B$3&C5169","v":{"$error":"#N/A"}},{"$f":"'Sundurliðun Útlán'!N10","v":0},".M.EUKUL$$.XX.$$$.XXX.XXXX.SX.XXX.NOK.IS.N.M"]
[{"$f":"\"INN.\"&EIGNIR!$B$3&C5170","v":{"$error":"#N/A"}},{"$f":"'Sundurliðun Útlán'!N11","v":0},".M.EUKULIA.XX.$$$.XXX.XXXX.SX.XXX.NOK.IS.N.M"]
[{"$f":"\"INN.\"&EIGNIR!$B$3&C5171","v":{"$error":"#N/A"}},{"$f":"'Sundurliðun Útlán'!N12","v":0},".M.EUKULIA.XX.ATV.XXX.XXXX.SX.XXX.NOK.IS.N.M"]
[{"$f":"\"INN.\"&EIGNIR!$B$3&C5172","v":{"$error":"#N/A"}},{"$f":"'Sundurliðun Útlán'!N26","v":0},".M.EUKULIA.XX.FJA.XXX.XXXX.SX.XXX.NOK.IS.N.M"]
[{"$f":"\"INN.\"&EIGNIR!$B$3&C5173","v":{"$error":"#N/A"}},{"$f":"'Sundurliðun Útlán'!N27","v":0},".M.EUKULIA.XX.INN.XXX.XXXX.SX.XXX.NOK.IS.N.M"]
[{"$f":"\"INN.\"&EIGNIR!$B$3&C5174","v":{"$error":"#N/A"}},{"$f":"'Sundurliðun Útlán'!N28","v":0},".M.EUKULIA.XX.SLI.XXX.XXXX.SX.XXX.NOK.IS.N.M"]
[{"$f":"\"INN.\"&EIGNIR!$B$3&C5175","v":{"$error":"#N/A"}},{"$f":"'Sundurliðun Útlán'!N29","v":0},".M.EUKULIA.XX.PEN.XXX.XXXX.SX.XXX.NOK.IS.N.M"]
[{"$f":"\"INN.\"&EIGNIR!$B$3&C5176","v":{"$error":"#N/A"}},{"$f":"'Sundurliðun Útlán'!N30","v":0},".M.EUKULIA.XX.SJO.XXX.XXXX.SX.XXX.NOK.IS.N.M"]
[{"$f":"\"INN.\"&EIGNIR!$B$3&C5177","v":{"$error":"#N/A"}},{"$f":"'Sundurliðun Útlán'!N31","v":0},".M.EUKULIA.XX.YFT.XXX.XXXX.SX.XXX.NOK.IS.N.M"]
[{"$f":"\"INN.\"&EIGNIR!$B$3&C5178","v":{"$error":"#N/A"}},{"$f":"'Sundurliðun Útlán'!N32","v":0},".M.EUKULIA.XX.SLY.XXX.XXXX.SX.XXX.NOK.IS.N.M"]
[{"$f":"\"INN.\"&EIGNIR!$B$3&C5179","v":{"$error":"#N/A"}},{"$f":"'Sundurliðun Útlán'!N33","v":0},".M.EUKULIA.XX.FHL.XXX.XXXX.SX.XXX.NOK.IS.N.M"]
[{"$f":"\"INN.\"&EIGNIR!$B$3&C5180","v":{"$error":"#N/A"}},{"$f":"'Sundurliðun Útlán'!N34","v":0},".M.EUKULIA.XX.INF.XXX.XXXX.SX.XXX.NOK.IS.N.M"]
[{"$f":"\"INN.\"&EIGNIR!$B$3&C5181","v":{"$error":"#N/A"}},{"$f":"'Sundurliðun Útlán'!N35","v":0},".M.EUKULIA.XX.TRY.XXX.XXXX.SX.XXX.NOK.IS.N.M"]
[{"$f":"\"INN.\"&EIGNIR!$B$3&C5182","v":{"$error":"#N/A"}},{"$f":"'Sundurliðun Útlán'!N36","v":0},".M.EUKULIA.XX.LIF.XXX.XXXX.SX.XXX.NOK.IS.N.M"]
[{"$f":"\"INN.\"&EIGNIR!$B$3&C5183","v":{"$error":"#N/A"}},{"$f":"'Sundurliðun Útlán'!N37","v":0},".M.EUKULIA.XX.OPI.XXX.XXXX.SX.XXX.NOK.IS.N.M"]
[{"$f":"\"INN.\"&EIGNIR!$B$3&C5184","v":{"$error":"#N/A"}},{"$f":"'Sundurliðun Útlán'!N38","v":0},".M.EUKULIA.XX.RSS.XXX.XXXX.SX.XXX.NOK.IS.N.M"]
[{"$f":"\"INN.\"&EIGNIR!$B$3&C5185","v":{"$error":"#N/A"}},{"$f":"'Sundurliðun Útlán'!N39","v":0},".M.EUKULIA.XX.BAJ.XXX.XXXX.SX.XXX.NOK.IS.N.M"]
[{"$f":"\"INN.\"&EIGNIR!$B$3&C5186","v":{"$error":"#N/A"}},{"$f":"'Sundurliðun Útlán'!N40","v":0},".M.EUKULIA.XX.EIN.XXX.XXXX.SX.XXX.NOK.IS.N.M"]
[{"$f":"\"INN.\"&EIGNIR!$B$3&C5187","v":{"$error":"#N/A"}},{"$f":"'Sundurliðun Útlán'!N41","v":0},".M.EUKULIA.XX.NPH.XXX.XXXX.SX.XXX.NOK.IS.N.M"]
[{"$f":"\"INN.\"&EIGNIR!$B$3&C5188","v":{"$error":"#N/A"}},{"$f":"'Sundurliðun Útlán'!N42","v":0},".M.EUKULYL.XX.$$$.XXX.XXXX.SX.XXX.NOK.IS.N.M"]
[{"$f":"\"INN.\"&EIGNIR!$B$3&C5189","v":{"$error":"#N/A"}},{"$f":"'Sundurliðun Útlán'!N43","v":0},".M.EUKULYL.XX.ATV.XXX.XXXX.SX.XXX.NOK.IS.N.M"]
[{"$f":"\"INN.\"&EIGNIR!$B$3&C5190","v":{"$error":"#N/A"}},{"$f":"'Sundurliðun Útlán'!N57","v":0},".M.EUKULYL.XX.FJA.XXX.XXXX.SX.XXX.NOK.IS.N.M"]
[{"$f":"\"INN.\"&EIGNIR!$B$3&C5191","v":{"$error":"#N/A"}},{"$f":"'Sundurliðun Útlán'!N58","v":0},".M.EUKULYL.XX.INN.XXX.XXXX.SX.XXX.NOK.IS.N.M"]
[{"$f":"\"INN.\"&EIGNIR!$B$3&C5192","v":{"$error":"#N/A"}},{"$f":"'Sundurliðun Útlán'!N59","v":0},".M.EUKULYL.XX.SLI.XXX.XXXX.SX.XXX.NOK.IS.N.M"]
[{"$f":"\"INN.\"&EIGNIR!$B$3&C5193","v":{"$error":"#N/A"}},{"$f":"'Sundurliðun Útlán'!N60","v":0},".M.EUKULYL.XX.PEN.XXX.XXXX.SX.XXX.NOK.IS.N.M"]
[{"$f":"\"INN.\"&EIGNIR!$B$3&C5194","v":{"$error":"#N/A"}},{"$f":"'Sundurliðun Útlán'!N61","v":0},".M.EUKULYL.XX.SJO.XXX.XXXX.SX.XXX.NOK.IS.N.M"]
[{"$f":"\"INN.\"&EIGNIR!$B$3&C5195","v":{"$error":"#N/A"}},{"$f":"'Sundurliðun Útlán'!N62","v":0},".M.EUKULYL.XX.YFT.XXX.XXXX.SX.XXX.NOK.IS.N.M"]
[{"$f":"\"INN.\"&EIGNIR!$B$3&C5196","v":{"$error":"#N/A"}},{"$f":"'Sundurliðun Útlán'!N63","v":0},".M.EUKULYL.XX.SLY.XXX.XXXX.SX.XXX.NOK.IS.N.M"]
[{"$f":"\"INN.\"&EIGNIR!$B$3&C5197","v":{"$error":"#N/A"}},{"$f":"'Sundurliðun Útlán'!N64","v":0},".M.EUKULYL.XX.FHL.XXX.XXXX.SX.XXX.NOK.IS.N.M"]
[{"$f":"\"INN.\"&EIGNIR!$B$3&C5198","v":{"$error":"#N/A"}},{"$f":"'Sundurliðun Útlán'!N65","v":0},".M.EUKULYL.XX.INF.XXX.XXXX.SX.XXX.NOK.IS.N.M"]
[{"$f":"\"INN.\"&EIGNIR!$B$3&C5199","v":{"$error":"#N/A"}},{"$f":"'Sundurliðun Útlán'!N66","v":0},".M.EUKULYL.XX.TRY.XXX.XXXX.SX.XXX.NOK.IS.N.M"]
[{"$f":"\"INN.\"&EIGNIR!$B$3&C5200","v":{"$error":"#N/A"}},{"$f":"'Sundurliðun Útlán'!N67","v":0},".M.EUKULYL.XX.LIF.XXX.XXXX.SX.XXX.NOK.IS.N.M"]
[{"$f":"\"INN.\"&EIGNIR!$B$3&C5201","v":{"$error":"#N/A"}},{"$f":"'Sundurliðun Útlán'!N68","v":0},".M.EUKULYL.XX.OPI.XXX.XXXX.SX.XXX.NOK.IS.N.M"]
[{"$f":"\"INN.\"&EIGNIR!$B$3&C5202","v":{"$error":"#N/A"}},{"$f":"'Sundurliðun Útlán'!N69","v":0},".M.EUKULYL.XX.RSS.XXX.XXXX.SX.XXX.NOK.IS.N.M"]
[{"$f":"\"INN.\"&EIGNIR!$B$3&C5203","v":{"$error":"#N/A"}},{"$f":"'Sundurliðun Útlán'!N70","v":0},".M.EUKULYL.XX.BAJ.XXX.XXXX.SX.XXX.NOK.IS.N.M"]
[{"$f":"\"INN.\"&EIGNIR!$B$3&C5204","v":{"$error":"#N/A"}},{"$f":"'Sundurliðun Útlán'!N71","v":0},".M.EUKULYL.XX.EIN.XXX.XXXX.SX.XXX.NOK.IS.N.M"]
[{"$f":"\"INN.\"&EIGNIR!$B$3&C5205","v":{"$error":"#N/A"}},{"$f":"'Sundurliðun Útlán'!N72","v":0},".M.EUKULYL.XX.NPH.XXX.XXXX.SX.XXX.NOK.IS.N.M"]
[{"$f":"\"INN.\"&EIGNIR!$B$3&C5206","v":{"$error":"#N/A"}},{"$f":"'Sundurliðun Útlán'!N73","v":0},".M.EUKULVX.XX.$$$.XXX.XXXX.SX.XXX.NOK.IS.N.M"]
[{"$f":"\"INN.\"&EIGNIR!$B$3&C5207","v":{"$error":"#N/A"}},{"$f":"'Sundurliðun Útlán'!N74","v":0},".M.EUKULVX.XX.ATV.XXX.XXXX.SX.XXX.NOK.IS.N.M"]
[{"$f":"\"INN.\"&EIGNIR!$B$3&C5208","v":{"$error":"#N/A"}},{"$f":"'Sundurliðun Útlán'!N88","v":0},".M.EUKULVX.XX.FJA.XXX.XXXX.SX.XXX.NOK.IS.N.M"]
[{"$f":"\"INN.\"&EIGNIR!$B$3&C5209","v":{"$error":"#N/A"}},{"$f":"'Sundurliðun Útlán'!N89","v":0},".M.EUKULVX.XX.INN.XXX.XXXX.SX.XXX.NOK.IS.N.M"]
[{"$f":"\"INN.\"&EIGNIR!$B$3&C5210","v":{"$error":"#N/A"}},{"$f":"'Sundurliðun Útlán'!N90","v":0},".M.EUKULVX.XX.SLI.XXX.XXXX.SX.XXX.NOK.IS.N.M"]
[{"$f":"\"INN.\"&EIGNIR!$B$3&C5211","v":{"$error":"#N/A"}},{"$f":"'Sundurliðun Útlán'!N91","v":0},".M.EUKULVX.XX.PEN.XXX.XXXX.SX.XXX.NOK.IS.N.M"]
[{"$f":"\"INN.\"&EIGNIR!$B$3&C5212","v":{"$error":"#N/A"}},{"$f":"'Sundurliðun Útlán'!N92","v":0},".M.EUKULVX.XX.SJO.XXX.XXXX.SX.XXX.NOK.IS.N.M"]
[{"$f":"\"INN.\"&EIGNIR!$B$3&C5213","v":{"$error":"#N/A"}},{"$f":"'Sundurliðun Útlán'!N93","v":0},".M.EUKULVX.XX.YFT.XXX.XXXX.SX.XXX.NOK.IS.N.M"]
[{"$f":"\"INN.\"&EIGNIR!$B$3&C5214","v":{"$error":"#N/A"}},{"$f":"'Sundurliðun Útlán'!N94","v":0},".M.EUKULVX.XX.SLY.XXX.XXXX.SX.XXX.NOK.IS.N.M"]
[{"$f":"\"INN.\"&EIGNIR!$B$3&C5215","v":{"$error":"#N/A"}},{"$f":"'Sundurliðun Útlán'!N95","v":0},".M.EUKULVX.XX.FHL.XXX.XXXX.SX.XXX.NOK.IS.N.M"]
[{"$f":"\"INN.\"&EIGNIR!$B$3&C5216","v":{"$error":"#N/A"}},{"$f":"'Sundurliðun Útlán'!N96","v":0},".M.EUKULVX.XX.INF.XXX.XXXX.SX.XXX.NOK.IS.N.M"]
[{"$f":"\"INN.\"&EIGNIR!$B$3&C5217","v":{"$error":"#N/A"}},{"$f":"'Sundurliðun Útlán'!N97","v":0},".M.EUKULVX.XX.TRY.XXX.XXXX.SX.XXX.NOK.IS.N.M"]
[{"$f":"\"INN.\"&EIGNIR!$B$3&C5218","v":{"$error":"#N/A"}},{"$f":"'Sundurliðun Útlán'!N98","v":0},".M.EUKULVX.XX.LIF.XXX.XXXX.SX.XXX.NOK.IS.N.M"]
[{"$f":"\"INN.\"&EIGNIR!$B$3&C5219","v":{"$error":"#N/A"}},{"$f":"'Sundurliðun Útlán'!N99","v":0},".M.EUKULVX.XX.OPI.XXX.XXXX.SX.XXX.NOK.IS.N.M"]
[{"$f":"\"INN.\"&EIGNIR!$B$3&C5220","v":{"$error":"#N/A"}},{"$f":"'Sundurliðun Útlán'!N100","v":0},".M.EUKULVX.XX.RSS.XXX.XXXX.SX.XXX.NOK.IS.N.M"]
[{"$f":"\"INN.\"&EIGNIR!$B$3&C5221","v":{"$error":"#N/A"}},{"$f":"'Sundurliðun Útlán'!N101","v":0},".M.EUKULVX.XX.BAJ.XXX.XXXX.SX.XXX.NOK.IS.N.M"]
[{"$f":"\"INN.\"&EIGNIR!$B$3&C5222","v":{"$error":"#N/A"}},{"$f":"'Sundurliðun Útlán'!N102","v":0},".M.EUKULVX.XX.EIN.XXX.XXXX.SX.XXX.NOK.IS.N.M"]
[{"$f":"\"INN.\"&EIGNIR!$B$3&C5223","v":{"$error":"#N/A"}},{"$f":"'Sundurliðun Útlán'!N103","v":0},".M.EUKULVX.XX.NPH.XXX.XXXX.SX.XXX.NOK.IS.N.M"]
[{"$f":"\"INN.\"&EIGNIR!$B$3&C5224","v":{"$error":"#N/A"}},{"$f":"'Sundurliðun Útlán'!N136","v":0},".M.EUKULOU.XX.$$$.XXX.XXXX.SX.XXX.NOK.IS.N.M"]
[{"$f":"\"INN.\"&EIGNIR!$B$3&C5225","v":{"$error":"#N/A"}},{"$f":"'Sundurliðun Útlán'!N137","v":0},".M.EUKULOU.XX.ATV.XXX.XXXX.SX.XXX.NOK.IS.N.M"]
[{"$f":"\"INN.\"&EIGNIR!$B$3&C5226","v":{"$error":"#N/A"}},{"$f":"'Sundurliðun Útlán'!N151","v":0},".M.EUKULOU.XX.FJA.XXX.XXXX.SX.XXX.NOK.IS.N.M"]
[{"$f":"\"INN.\"&EIGNIR!$B$3&C5227","v":{"$error":"#N/A"}},{"$f":"'Sundurliðun Útlán'!N152","v":0},".M.EUKULOU.XX.INN.XXX.XXXX.SX.XXX.NOK.IS.N.M"]
[{"$f":"\"INN.\"&EIGNIR!$B$3&C5228","v":{"$error":"#N/A"}},{"$f":"'Sundurliðun Útlán'!N153","v":0},".M.EUKULOU.XX.SLI.XXX.XXXX.SX.XXX.NOK.IS.N.M"]
[{"$f":"\"INN.\"&EIGNIR!$B$3&C5229","v":{"$error":"#N/A"}},{"$f":"'Sundurliðun Útlán'!N154","v":0},".M.EUKULOU.XX.PEN.XXX.XXXX.SX.XXX.NOK.IS.N.M"]
[{"$f":"\"INN.\"&EIGNIR!$B$3&C5230","v":{"$error":"#N/A"}},{"$f":"'Sundurliðun Útlán'!N155","v":0},".M.EUKULOU.XX.SJO.XXX.XXXX.SX.XXX.NOK.IS.N.M"]
[{"$f":"\"INN.\"&EIGNIR!$B$3&C5231","v":{"$error":"#N/A"}},{"$f":"'Sundurliðun Útlán'!N156","v":0},".M.EUKULOU.XX.YFT.XXX.XXXX.SX.XXX.NOK.IS.N.M"]
[{"$f":"\"INN.\"&EIGNIR!$B$3&C5232","v":{"$error":"#N/A"}},{"$f":"'Sundurliðun Útlán'!N157","v":0},".M.EUKULOU.XX.SLY.XXX.XXXX.SX.XXX.NOK.IS.N.M"]
[{"$f":"\"INN.\"&EIGNIR!$B$3&C5233","v":{"$error":"#N/A"}},{"$f":"'Sundurliðun Útlán'!N158","v":0},".M.EUKULOU.XX.FHL.XXX.XXXX.SX.XXX.NOK.IS.N.M"]
[{"$f":"\"INN.\"&EIGNIR!$B$3&C5234","v":{"$error":"#N/A"}},{"$f":"'Sundurliðun Útlán'!N159","v":0},".M.EUKULOU.XX.INF.XXX.XXXX.SX.XXX.NOK.IS.N.M"]
[{"$f":"\"INN.\"&EIGNIR!$B$3&C5235","v":{"$error":"#N/A"}},{"$f":"'Sundurliðun Útlán'!N160","v":0},".M.EUKULOU.XX.TRY.XXX.XXXX.SX.XXX.NOK.IS.N.M"]
[{"$f":"\"INN.\"&EIGNIR!$B$3&C5236","v":{"$error":"#N/A"}},{"$f":"'Sundurliðun Útlán'!N161","v":0},".M.EUKULOU.XX.LIF.XXX.XXXX.SX.XXX.NOK.IS.N.M"]
[{"$f":"\"INN.\"&EIGNIR!$B$3&C5237","v":{"$error":"#N/A"}},{"$f":"'Sundurliðun Útlán'!N162","v":0},".M.EUKULOU.XX.OPI.XXX.XXXX.SX.XXX.NOK.IS.N.M"]
[{"$f":"\"INN.\"&EIGNIR!$B$3&C5238","v":{"$error":"#N/A"}},{"$f":"'Sundurliðun Útlán'!N163","v":0},".M.EUKULOU.XX.RSS.XXX.XXXX.SX.XXX.NOK.IS.N.M"]
[{"$f":"\"INN.\"&EIGNIR!$B$3&C5239","v":{"$error":"#N/A"}},{"$f":"'Sundurliðun Útlán'!N164","v":0},".M.EUKULOU.XX.BAJ.XXX.XXXX.SX.XXX.NOK.IS.N.M"]
[{"$f":"\"INN.\"&EIGNIR!$B$3&C5240","v":{"$error":"#N/A"}},{"$f":"'Sundurliðun Útlán'!N165","v":0},".M.EUKULOU.XX.EIB.XXX.XXXX.SX.XXX.NOK.IS.N.M"]
[{"$f":"\"INN.\"&EIGNIR!$B$3&C5241","v":{"$error":"#N/A"}},{"$f":"'Sundurliðun Útlán'!N166","v":0},".M.EUKULOU.XX.ANN.XXX.XXXX.SX.XXX.NOK.IS.N.M"]
[{"$f":"\"INN.\"&EIGNIR!$B$3&C5242","v":{"$error":"#N/A"}},{"$f":"'Sundurliðun Útlán'!N167","v":0},".M.EUKULOU.XX.NPH.XXX.XXXX.SX.XXX.NOK.IS.N.M"]
[{"$f":"\"INN.\"&EIGNIR!$B$3&C5243","v":{"$error":"#N/A"}},{"$f":"'Sundurliðun Útlán'!N168","v":0},".M.EUKULEL.XX.$$$.XXX.XXXX.SX.XXX.NOK.IS.N.M"]
[{"$f":"\"INN.\"&EIGNIR!$B$3&C5244","v":{"$error":"#N/A"}},{"$f":"'Sundurliðun Útlán'!N169","v":0},".M.EUKULEL.XX.ATV.XXX.XXXX.SX.XXX.NOK.IS.N.M"]
[{"$f":"\"INN.\"&EIGNIR!$B$3&C5245","v":{"$error":"#N/A"}},{"$f":"'Sundurliðun Útlán'!N183","v":0},".M.EUKULEL.XX.FJA.XXX.XXXX.SX.XXX.NOK.IS.N.M"]
[{"$f":"\"INN.\"&EIGNIR!$B$3&C5246","v":{"$error":"#N/A"}},{"$f":"'Sundurliðun Útlán'!N184","v":0},".M.EUKULEL.XX.INN.XXX.XXXX.SX.XXX.NOK.IS.N.M"]
[{"$f":"\"INN.\"&EIGNIR!$B$3&C5247","v":{"$error":"#N/A"}},{"$f":"'Sundurliðun Útlán'!N185","v":0},".M.EUKULEL.XX.SLI.XXX.XXXX.SX.XXX.NOK.IS.N.M"]
[{"$f":"\"INN.\"&EIGNIR!$B$3&C5248","v":{"$error":"#N/A"}},{"$f":"'Sundurliðun Útlán'!N186","v":0},".M.EUKULEL.XX.PEN.XXX.XXXX.SX.XXX.NOK.IS.N.M"]
[{"$f":"\"INN.\"&EIGNIR!$B$3&C5249","v":{"$error":"#N/A"}},{"$f":"'Sundurliðun Útlán'!N187","v":0},".M.EUKULEL.XX.SJO.XXX.XXXX.SX.XXX.NOK.IS.N.M"]
[{"$f":"\"INN.\"&EIGNIR!$B$3&C5250","v":{"$error":"#N/A"}},{"$f":"'Sundurliðun Útlán'!N188","v":0},".M.EUKULEL.XX.YFT.XXX.XXXX.SX.XXX.NOK.IS.N.M"]
[{"$f":"\"INN.\"&EIGNIR!$B$3&C5251","v":{"$error":"#N/A"}},{"$f":"'Sundurliðun Útlán'!N189","v":0},".M.EUKULEL.XX.SLY.XXX.XXXX.SX.XXX.NOK.IS.N.M"]
[{"$f":"\"INN.\"&EIGNIR!$B$3&C5252","v":{"$error":"#N/A"}},{"$f":"'Sundurliðun Útlán'!N190","v":0},".M.EUKULEL.XX.FHL.XXX.XXXX.SX.XXX.NOK.IS.N.M"]
[{"$f":"\"INN.\"&EIGNIR!$B$3&C5253","v":{"$error":"#N/A"}},{"$f":"'Sundurliðun Útlán'!N191","v":0},".M.EUKULEL.XX.INF.XXX.XXXX.SX.XXX.NOK.IS.N.M"]
[{"$f":"\"INN.\"&EIGNIR!$B$3&C5254","v":{"$error":"#N/A"}},{"$f":"'Sundurliðun Útlán'!N192","v":0},".M.EUKULEL.XX.TRY.XXX.XXXX.SX.XXX.NOK.IS.N.M"]
[{"$f":"\"INN.\"&EIGNIR!$B$3&C5255","v":{"$error":"#N/A"}},{"$f":"'Sundurliðun Útlán'!N193","v":0},".M.EUKULEL.XX.LIF.XXX.XXXX.SX.XXX.NOK.IS.N.M"]
[{"$f":"\"INN.\"&EIGNIR!$B$3&C5256","v":{"$error":"#N/A"}},{"$f":"'Sundurliðun Útlán'!N194","v":0},".M.EUKULEL.XX.OPI.XXX.XXXX.SX.XXX.NOK.IS.N.M"]
[{"$f":"\"INN.\"&EIGNIR!$B$3&C5257","v":{"$error":"#N/A"}},{"$f":"'Sundurliðun Útlán'!N195","v":0},".M.EUKULEL.XX.RSS.XXX.XXXX.SX.XXX.NOK.IS.N.M"]
[{"$f":"\"INN.\"&EIGNIR!$B$3&C5258","v":{"$error":"#N/A"}},{"$f":"'Sundurliðun Útlán'!N196","v":0},".M.EUKULEL.XX.BAJ.XXX.XXXX.SX.XXX.NOK.IS.N.M"]
[{"$f":"\"INN.\"&EIGNIR!$B$3&C5259","v":{"$error":"#N/A"}},{"$f":"'Sundurliðun Útlán'!N197","v":0},".M.EUKULEL.XX.EIN.XXX.XXXX.SX.XXX.NOK.IS.N.M"]
[{"$f":"\"INN.\"&EIGNIR!$B$3&C5260","v":{"$error":"#N/A"}},{"$f":"'Sundurliðun Útlán'!N198","v":0},".M.EUKULEL.XX.NPH.XXX.XXXX.SX.XXX.NOK.IS.N.M"]
[{"$f":"\"INN.\"&EIGNIR!$B$3&C5261","v":{"$error":"#N/A"}},{"$f":"'Sundurliðun Útlán'!N199","v":0},".M.EUKULUE.XX.$$$.XXX.XXXX.SX.XXX.NOK.IS.N.M"]
[{"$f":"\"INN.\"&EIGNIR!$B$3&C5262","v":{"$error":"#N/A"}},{"$f":"'Sundurliðun Útlán'!N200","v":0},".M.EUKULEH.XX.ERL.XXX.XXXX.SX.XXX.NOK.IS.N.M"]
[{"$f":"\"INN.\"&EIGNIR!$B$3&C5263","v":{"$error":"#N/A"}},{"$f":"'Sundurliðun Útlán'!N202","v":0},".M.EUKULEH.XX.ERI.XXX.XXXX.SX.XXX.NOK.IS.N.M"]
[{"$f":"\"INN.\"&EIGNIR!$B$3&C5264","v":{"$error":"#N/A"}},{"$f":"'Sundurliðun Útlán'!N205","v":0},".M.EUKULEH.XX.ERF.XXX.XXXX.SX.XXX.NOK.IS.N.M"]
[{"$f":"\"INN.\"&EIGNIR!$B$3&C5265","v":{"$error":"#N/A"}},{"$f":"'Sundurliðun Útlán'!N207","v":0},".M.EUKULEH.XX.ERA.XXX.XXXX.SX.XXX.NOK.IS.N.M"]
[{"$f":"\"INN.\"&EIGNIR!$B$3&C5266","v":{"$error":"#N/A"}},{"$f":"'Sundurliðun Útlán'!N208","v":0},".M.EUKULED.XX.ERL.XXX.XXXX.SX.XXX.NOK.IS.N.M"]
[{"$f":"\"INN.\"&EIGNIR!$B$3&C5267","v":{"$error":"#N/A"}},{"$f":"'Sundurliðun Útlán'!N210","v":0},".M.EUKULED.XX.ERI.XXX.XXXX.SX.XXX.NOK.IS.N.M"]
[{"$f":"\"INN.\"&EIGNIR!$B$3&C5268","v":{"$error":"#N/A"}},{"$f":"'Sundurliðun Útlán'!N213","v":0},".M.EUKULED.XX.ERF.XXX.XXXX.SX.XXX.NOK.IS.N.M"]
[{"$f":"\"INN.\"&EIGNIR!$B$3&C5269","v":{"$error":"#N/A"}},{"$f":"'Sundurliðun Útlán'!N215","v":0},".M.EUKULED.XX.ERA.XXX.XXXX.SX.XXX.NOK.IS.N.M"]
[{"$f":"\"INN.\"&EIGNIR!$B$3&C5270","v":{"$error":"#N/A"}},{"$f":"'Sundurliðun Útlán'!N216","v":0},".M.EUKULFF.XX.ERL.XXX.XXXX.SX.XXX.NOK.IS.N.M"]
[{"$f":"\"INN.\"&EIGNIR!$B$3&C5271","v":{"$error":"#N/A"}},{"$f":"'Sundurliðun Útlán'!N218","v":0},".M.EUKULFF.XX.ERI.XXX.XXXX.SX.XXX.NOK.IS.N.M"]
[{"$f":"\"INN.\"&EIGNIR!$B$3&C5272","v":{"$error":"#N/A"}},{"$f":"'Sundurliðun Útlán'!N221","v":0},".M.EUKULFF.XX.ERF.XXX.XXXX.SX.XXX.NOK.IS.N.M"]
[{"$f":"\"INN.\"&EIGNIR!$B$3&C5273","v":{"$error":"#N/A"}},{"$f":"'Sundurliðun Útlán'!N223","v":0},".M.EUKULFF.XX.ERA.XXX.XXXX.SX.XXX.NOK.IS.N.M"]
[{"$f":"\"INN.\"&EIGNIR!$B$3&C5274","v":{"$error":"#N/A"}},{"$f":"'Sundurliðun Útlán'!N224","v":0},".M.EUKULOL.XX.ERL.XXX.XXXX.SX.XXX.NOK.IS.N.M","//Önnur erlend lán"]
[{"$f":"\"INN.\"&EIGNIR!$B$3&C5275","v":{"$error":"#N/A"}},{"$f":"'Sundurliðun Útlán'!N226","v":0},".M.EUKULOL.XX.ERI.XXX.XXXX.SX.XXX.NOK.IS.N.M"]
[{"$f":"\"INN.\"&EIGNIR!$B$3&C5276","v":{"$error":"#N/A"}},{"$f":"'Sundurliðun Útlán'!N228","v":0},".M.EUKULOL.XX.ERV.XXX.XXXX.SX.XXX.NOK.IS.N.M"]
[{"$f":"\"INN.\"&EIGNIR!$B$3&C5277","v":{"$error":"#N/A"}},{"$f":"'Sundurliðun Útlán'!N229","v":0},".M.EUKULOL.XX.ERF.XXX.XXXX.SX.XXX.NOK.IS.N.M"]
[{"$f":"\"INN.\"&EIGNIR!$B$3&C5278","v":{"$error":"#N/A"}},{"$f":"'Sundurliðun Útlán'!N230","v":0},".M.EUKULOL.XX.ERO.XXX.XXXX.SX.XXX.NOK.IS.N.M"]
[{"$f":"\"INN.\"&EIGNIR!$B$3&C5279","v":{"$error":"#N/A"}},{"$f":"'Sundurliðun Útlán'!N231","v":0},".M.EUKULOL.XX.ERA.XXX.XXXX.SX.XXX.NOK.IS.N.M"]
[{"$f":"\"INN.\"&EIGNIR!$B$3&C5280","v":{"$error":"#N/A"}},{"$f":"'Sundurliðun Útlán'!N232","v":0},".M.EUKNF$$.XX.XXX.XXX.XXXX.SX.XXX.NOK.IS.N.M"]
[{"$f":"\"INN.\"&EIGNIR!$B$3&C5281","v":{"$error":"#N/A"}},{"$f":"'Sundurliðun Útlán'!N233","v":0},".M.EUKNFAL.XX.XXX.XXX.XXXX.SX.XXX.NOK.IS.N.M"]
[{"$f":"\"INN.\"&EIGNIR!$B$3&C5282","v":{"$error":"#N/A"}},{"$f":"'Sundurliðun Útlán'!N234","v":0},".M.EUKNFST.XX.$$$.XXX.XXXX.SX.XXX.NOK.IS.N.M"]
[{"$f":"\"INN.\"&EIGNIR!$B$3&C5283","v":{"$error":"#N/A"}},{"$f":"'Sundurliðun Útlán'!N235","v":0},".M.EUKNFST.XX.ATV.XXX.XXXX.SX.XXX.NOK.IS.N.M"]
[{"$f":"\"INN.\"&EIGNIR!$B$3&C5284","v":{"$error":"#N/A"}},{"$f":"'Sundurliðun Útlán'!N236","v":0},".M.EUKNFST.XX.LAB.XXX.XXXX.SX.XXX.NOK.IS.N.M"]
[{"$f":"\"INN.\"&EIGNIR!$B$3&C5285","v":{"$error":"#N/A"}},{"$f":"'Sundurliðun Útlán'!N237","v":0},".M.EUKNFST.XX.SJA.XXX.XXXX.SX.XXX.NOK.IS.N.M"]
[{"$f":"\"INN.\"&EIGNIR!$B$3&C5286","v":{"$error":"#N/A"}},{"$f":"'Sundurliðun Útlán'!N238","v":0},".M.EUKNFST.XX.ILA.XXX.XXXX.SX.XXX.NOK.IS.N.M"]
[{"$f":"\"INN.\"&EIGNIR!$B$3&C5287","v":{"$error":"#N/A"}},{"$f":"'Sundurliðun Útlán'!N239","v":0},".M.EUKNFST.XX.ISJ.XXX.XXXX.SX.XXX.NOK.IS.N.M"]
[{"$f":"\"INN.\"&EIGNIR!$B$3&C5288","v":{"$error":"#N/A"}},{"$f":"'Sundurliðun Útlán'!N240","v":0},".M.EUKNFST.XX.IAN.XXX.XXXX.SX.XXX.NOK.IS.N.M"]
[{"$f":"\"INN.\"&EIGNIR!$B$3&C5289","v":{"$error":"#N/A"}},{"$f":"'Sundurliðun Útlán'!N241","v":0},".M.EUKNFST.XX.RAF.XXX.XXXX.SX.XXX.NOK.IS.N.M"]
[{"$f":"\"INN.\"&EIGNIR!$B$3&C5290","v":{"$error":"#N/A"}},{"$f":"'Sundurliðun Útlán'!N242","v":0},".M.EUKNFST.XX.MAN.XXX.XXXX.SX.XXX.NOK.IS.N.M"]
[{"$f":"\"INN.\"&EIGNIR!$B$3&C5291","v":{"$error":"#N/A"}},{"$f":"'Sundurliðun Útlán'!N243","v":0},".M.EUKNFST.XX.VEN.XXX.XXXX.SX.XXX.NOK.IS.N.M"]
[{"$f":"\"INN.\"&EIGNIR!$B$3&C5292","v":{"$error":"#N/A"}},{"$f":"'Sundurliðun Útlán'!N244","v":0},".M.EUKNFST.XX.SAG.XXX.XXXX.SX.XXX.NOK.IS.N.M"]
[{"$f":"\"INN.\"&EIGNIR!$B$3&C5293","v":{"$error":"#N/A"}},{"$f":"'Sundurliðun Útlán'!N245","v":0},".M.EUKNFST.XX.THF.XXX.XXXX.SX.XXX.NOK.IS.N.M"]
[{"$f":"\"INN.\"&EIGNIR!$B$3&C5294","v":{"$error":"#N/A"}},{"$f":"'Sundurliðun Útlán'!N246","v":0},".M.EUKNFST.XX.THH.XXX.XXXX.SX.XXX.NOK.IS.N.M"]
[{"$f":"\"INN.\"&EIGNIR!$B$3&C5295","v":{"$error":"#N/A"}},{"$f":"'Sundurliðun Útlán'!N247","v":0},".M.EUKNFST.XX.THA.XXX.XXXX.SX.XXX.NOK.IS.N.M"]
[{"$f":"\"INN.\"&EIGNIR!$B$3&C5296","v":{"$error":"#N/A"}},{"$f":"'Sundurliðun Útlán'!N248","v":0},".M.EUKNFST.XX.OFL.XXX.XXXX.SX.XXX.NOK.IS.N.M"]
[{"$f":"\"INN.\"&EIGNIR!$B$3&C5297","v":{"$error":"#N/A"}},{"$f":"'Sundurliðun Útlán'!N249","v":0},".M.EUKNFST.XX.FJA.XXX.XXXX.SX.XXX.NOK.IS.N.M"]
[{"$f":"\"INN.\"&EIGNIR!$B$3&C5298","v":{"$error":"#N/A"}},{"$f":"'Sundurliðun Útlán'!N250","v":0},".M.EUKNFST.XXINN.XXX.XXXX.SX.XXX.NOK.IS.N.M"]
[{"$f":"\"INN.\"&EIGNIR!$B$3&C5299","v":{"$error":"#N/A"}},{"$f":"'Sundurliðun Útlán'!N251","v":0},".M.EUKNFST.XX.SLI.XXX.XXXX.SX.XXX.NOK.IS.N.M"]
[{"$f":"\"INN.\"&EIGNIR!$B$3&C5300","v":{"$error":"#N/A"}},{"$f":"'Sundurliðun Útlán'!N252","v":0},".M.EUKNFST.XX.PEN.XXX.XXXX.SX.XXX.NOK.IS.N.M"]
[{"$f":"\"INN.\"&EIGNIR!$B$3&C5301","v":{"$error":"#N/A"}},{"$f":"'Sundurliðun Útlán'!N253","v":0},".M.EUKNFST.XX.SJO.XXX.XXXX.SX.XXX.NOK.IS.N.M"]
[{"$f":"\"INN.\"&EIGNIR!$B$3&C5302","v":{"$error":"#N/A"}},{"$f":"'Sundurliðun Útlán'!N254","v":0},".M.EUKNFST.XX.YFT.XXX.XXXX.SX.XXX.NOK.IS.N.M"]
[{"$f":"\"INN.\"&EIGNIR!$B$3&C5303","v":{"$error":"#N/A"}},{"$f":"'Sundurliðun Útlán'!N255","v":0},".M.EUKNFST.XX.SLY.XXX.XXXX.SX.XXX.NOK.IS.N.M"]
[{"$f":"\"INN.\"&EIGNIR!$B$3&C5304","v":{"$error":"#N/A"}},{"$f":"'Sundurliðun Útlán'!N256","v":0},".M.EUKNFST.XX.FHL.XXX.XXXX.SX.XXX.NOK.IS.N.M"]
[{"$f":"\"INN.\"&EIGNIR!$B$3&C5305","v":{"$error":"#N/A"}},{"$f":"'Sundurliðun Útlán'!N257","v":0},".M.EUKNFST.XX.INF.XXX.XXXX.SX.XXX.NOK.IS.N.M"]
[{"$f":"\"INN.\"&EIGNIR!$B$3&C5306","v":{"$error":"#N/A"}},{"$f":"'Sundurliðun Útlán'!N258","v":0},".M.EUKNFST.XX.TRY.XXX.XXXX.SX.XXX.NOK.IS.N.M"]
[{"$f":"\"INN.\"&EIGNIR!$B$3&C5307","v":{"$error":"#N/A"}},{"$f":"'Sundurliðun Útlán'!N259","v":0},".M.EUKNFST.XX.LIF.XXX.XXXX.SX.XXX.NOK.IS.N.M"]
[{"$f":"\"INN.\"&EIGNIR!$B$3&C5308","v":{"$error":"#N/A"}},{"$f":"'Sundurliðun Útlán'!N260","v":0},".M.EUKNFST.XX.OPI.XXX.XXXX.SX.XXX.NOK.IS.N.M"]
[{"$f":"\"INN.\"&EIGNIR!$B$3&C5309","v":{"$error":"#N/A"}},{"$f":"'Sundurliðun Útlán'!N261","v":0},".M.EUKNFST.XX.RSS.XXX.XXXX.SX.XXX.NOK.IS.N.M"]
[{"$f":"\"INN.\"&EIGNIR!$B$3&C5310","v":{"$error":"#N/A"}},{"$f":"'Sundurliðun Útlán'!N262","v":0},".M.EUKNFST.XX.BAJ.XXX.XXXX.SX.XXX.NOK.IS.N.M"]
[{"$f":"\"INN.\"&EIGNIR!$B$3&C5311","v":{"$error":"#N/A"}},{"$f":"'Sundurliðun Útlán'!N263","v":0},".M.EUKNFST.XX.EIN.XXX.XXXX.SX.XXX.NOK.IS.N.M"]
[{"$f":"\"INN.\"&EIGNIR!$B$3&C5312","v":{"$error":"#N/A"}},{"$f":"'Sundurliðun Útlán'!N264","v":0},".M.EUKNFST.XX.NPH.XXX.XXXX.SX.XXX.NOK.IS.N.M"]
[{"$f":"\"INN.\"&EIGNIR!$B$3&C5313","v":{"$error":"#N/A"}},{"$f":"'Sundurliðun Útlán'!N265","v":0},".M.EUKNFER.XX.ERL.XXX.XXXX.SX.XXX.NOK.IS.N.M"]
[{"$f":"\"INN.\"&EIGNIR!$B$3&C5314","v":{"$error":"#N/A"}},{"$f":"'Sundurliðun Útlán'!N266","v":0},".M.EUKNFEH.XX.ERL.XXX.XXXX.SX.XXX.NOK.IS.N.M"]
[{"$f":"\"INN.\"&EIGNIR!$B$3&C5315","v":{"$error":"#N/A"}},{"$f":"'Sundurliðun Útlán'!N268","v":0},".M.EUKNFEH.XX.ERI.XXX.XXXX.SX.XXX.NOK.IS.N.M"]
[{"$f":"\"INN.\"&EIGNIR!$B$3&C5316","v":{"$error":"#N/A"}},{"$f":"'Sundurliðun Útlán'!N271","v":0},".M.EUKNFEH.XX.ERF.XXX.XXXX.SX.XXX.NOK.IS.N.M"]
[{"$f":"\"INN.\"&EIGNIR!$B$3&C5317","v":{"$error":"#N/A"}},{"$f":"'Sundurliðun Útlán'!N273","v":0},".M.EUKNFEH.XX.ERA.XXX.XXXX.SX.XXX.NOK.IS.N.M"]
[{"$f":"\"INN.\"&EIGNIR!$B$3&C5318","v":{"$error":"#N/A"}},{"$f":"'Sundurliðun Útlán'!N274","v":0},".M.EUKNFED.XX.ERL.XXX.XXXX.SX.XXX.NOK.IS.N.M"]
[{"$f":"\"INN.\"&EIGNIR!$B$3&C5319","v":{"$error":"#N/A"}},{"$f":"'Sundurliðun Útlán'!N276","v":0},".M.EUKNFED.XX.ERI.XXX.XXXX.SX.XXX.NOK.IS.N.M"]
[{"$f":"\"INN.\"&EIGNIR!$B$3&C5320","v":{"$error":"#N/A"}},{"$f":"'Sundurliðun Útlán'!N279","v":0},".M.EUKNFED.XX.ERF.XXX.XXXX.SX.XXX.NOK.IS.N.M"]
[{"$f":"\"INN.\"&EIGNIR!$B$3&C5321","v":{"$error":"#N/A"}},{"$f":"'Sundurliðun Útlán'!N281","v":0},".M.EUKNFED.XX.ERA.XXX.XXXX.SX.XXX.NOK.IS.N.M"]
[{"$f":"\"INN.\"&EIGNIR!$B$3&C5322","v":{"$error":"#N/A"}},{"$f":"'Sundurliðun Útlán'!N282","v":0},".M.EUKNFFF.XX.ERL.XXX.XXXX.SX.XXX.NOK.IS.N.M"]
[{"$f":"\"INN.\"&EIGNIR!$B$3&C5323","v":{"$error":"#N/A"}},{"$f":"'Sundurliðun Útlán'!N284","v":0},".M.EUKNFFF.XX.ERI.XXX.XXXX.SX.XXX.NOK.IS.N.M"]
[{"$f":"\"INN.\"&EIGNIR!$B$3&C5324","v":{"$error":"#N/A"}},{"$f":"'Sundurliðun Útlán'!N287","v":0},".M.EUKNFFF.XX.ERF.XXX.XXXX.SX.XXX.NOK.IS.N.M"]
[{"$f":"\"INN.\"&EIGNIR!$B$3&C5325","v":{"$error":"#N/A"}},{"$f":"'Sundurliðun Útlán'!N289","v":0},".M.EUKNFFF.XX.ERA.XXX.XXXX.SX.XXX.NOK.IS.N.M"]
[{"$f":"\"INN.\"&EIGNIR!$B$3&C5326","v":{"$error":"#N/A"}},{"$f":"'Sundurliðun Útlán'!N290","v":0},".M.EUKNFOL.XX.ERL.XXX.XXXX.SX.XXX.NOK.IS.N.M"]
[{"$f":"\"INN.\"&EIGNIR!$B$3&C5327","v":{"$error":"#N/A"}},{"$f":"'Sundurliðun Útlán'!N292","v":0},".M.EUKNFOL.XX.ERI.XXX.XXXX.SX.XXX.NOK.IS.N.M"]
[{"$f":"\"INN.\"&EIGNIR!$B$3&C5328","v":{"$error":"#N/A"}},{"$f":"'Sundurliðun Útlán'!N294","v":0},".M.EUKNFOL.XX.ERV.XXX.XXXX.SX.XXX.NOK.IS.N.M"]
[{"$f":"\"INN.\"&EIGNIR!$B$3&C5329","v":{"$error":"#N/A"}},{"$f":"'Sundurliðun Útlán'!N295","v":0},".M.EUKNFOL.XX.ERF.XXX.XXXX.SX.XXX.NOK.IS.N.M"]
[{"$f":"\"INN.\"&EIGNIR!$B$3&C5330","v":{"$error":"#N/A"}},{"$f":"'Sundurliðun Útlán'!N296","v":0},".M.EUKNFOL.XX.ERO.XXX.XXXX.SX.XXX.NOK.IS.N.M"]
[{"$f":"\"INN.\"&EIGNIR!$B$3&C5331","v":{"$error":"#N/A"}},{"$f":"'Sundurliðun Útlán'!N297","v":0},".M.EUKNFOL.XX.ERA.XXX.XXXX.SX.XXX.NOK.IS.N.M"]
[{"$f":"\"INN.\"&EIGNIR!$B$3&C5332","v":{"$error":"#N/A"}},{"$f":"'Sundurliðun Útlán'!O5","v":0},".M.EUK$$$$.XX.$$$.XXX.XXXX.SX.XXX.SEK.IS.N.M","//Sundurliðun útlána, SEK"]
[{"$f":"\"INN.\"&EIGNIR!$B$3&C5333","v":{"$error":"#N/A"}},{"$f":"'Sundurliðun Útlán'!O6","v":0},".M.EUKIT$$.XX.$$$.XXX.XXXX.SX.XXX.SEK.IS.N.M"]
[{"$f":"\"INN.\"&EIGNIR!$B$3&C5334","v":{"$error":"#N/A"}},{"$f":"'Sundurliðun Útlán'!O7","v":0},".M.EUKITII.XX.XXX.XXX.XXXX.SX.XXX.SEK.IS.N.M"]
[{"$f":"\"INN.\"&EIGNIR!$B$3&C5335","v":{"$error":"#N/A"}},{"$f":"'Sundurliðun Útlán'!O8","v":0},".M.EUKITIE.XX.XXX.XXX.XXXX.SX.XXX.SEK.IS.N.M"]
[{"$f":"\"INN.\"&EIGNIR!$B$3&C5336","v":{"$error":"#N/A"}},{"$f":"'Sundurliðun Útlán'!O9","v":0},".M.EUKITIT.XX.XXX.XXX.XXXX.SX.XXX.SEK.IS.N.M"]
[{"$f":"\"INN.\"&EIGNIR!$B$3&C5337","v":{"$error":"#N/A"}},{"$f":"'Sundurliðun Útlán'!O10","v":0},".M.EUKUL$$.XX.$$$.XXX.XXXX.SX.XXX.SEK.IS.N.M"]
[{"$f":"\"INN.\"&EIGNIR!$B$3&C5338","v":{"$error":"#N/A"}},{"$f":"'Sundurliðun Útlán'!O11","v":0},".M.EUKULIA.XX.$$$.XXX.XXXX.SX.XXX.SEK.IS.N.M"]
[{"$f":"\"INN.\"&EIGNIR!$B$3&C5339","v":{"$error":"#N/A"}},{"$f":"'Sundurliðun Útlán'!O12","v":0},".M.EUKULIA.XX.ATV.XXX.XXXX.SX.XXX.SEK.IS.N.M"]
[{"$f":"\"INN.\"&EIGNIR!$B$3&C5340","v":{"$error":"#N/A"}},{"$f":"'Sundurliðun Útlán'!O26","v":0},".M.EUKULIA.XX.FJA.XXX.XXXX.SX.XXX.SEK.IS.N.M"]
[{"$f":"\"INN.\"&EIGNIR!$B$3&C5341","v":{"$error":"#N/A"}},{"$f":"'Sundurliðun Útlán'!O27","v":0},".M.EUKULIA.XX.INN.XXX.XXXX.SX.XXX.SEK.IS.N.M"]
[{"$f":"\"INN.\"&EIGNIR!$B$3&C5342","v":{"$error":"#N/A"}},{"$f":"'Sundurliðun Útlán'!O28","v":0},".M.EUKULIA.XX.SLI.XXX.XXXX.SX.XXX.SEK.IS.N.M"]
[{"$f":"\"INN.\"&EIGNIR!$B$3&C5343","v":{"$error":"#N/A"}},{"$f":"'Sundurliðun Útlán'!O29","v":0},".M.EUKULIA.XX.PEN.XXX.XXXX.SX.XXX.SEK.IS.N.M"]
[{"$f":"\"INN.\"&EIGNIR!$B$3&C5344","v":{"$error":"#N/A"}},{"$f":"'Sundurliðun Útlán'!O30","v":0},".M.EUKULIA.XX.SJO.XXX.XXXX.SX.XXX.SEK.IS.N.M"]
[{"$f":"\"INN.\"&EIGNIR!$B$3&C5345","v":{"$error":"#N/A"}},{"$f":"'Sundurliðun Útlán'!O31","v":0},".M.EUKULIA.XX.YFT.XXX.XXXX.SX.XXX.SEK.IS.N.M"]
[{"$f":"\"INN.\"&EIGNIR!$B$3&C5346","v":{"$error":"#N/A"}},{"$f":"'Sundurliðun Útlán'!O32","v":0},".M.EUKULIA.XX.SLY.XXX.XXXX.SX.XXX.SEK.IS.N.M"]
[{"$f":"\"INN.\"&EIGNIR!$B$3&C5347","v":{"$error":"#N/A"}},{"$f":"'Sundurliðun Útlán'!O33","v":0},".M.EUKULIA.XX.FHL.XXX.XXXX.SX.XXX.SEK.IS.N.M"]
[{"$f":"\"INN.\"&EIGNIR!$B$3&C5348","v":{"$error":"#N/A"}},{"$f":"'Sundurliðun Útlán'!O34","v":0},".M.EUKULIA.XX.INF.XXX.XXXX.SX.XXX.SEK.IS.N.M"]
[{"$f":"\"INN.\"&EIGNIR!$B$3&C5349","v":{"$error":"#N/A"}},{"$f":"'Sundurliðun Útlán'!O35","v":0},".M.EUKULIA.XX.TRY.XXX.XXXX.SX.XXX.SEK.IS.N.M"]
[{"$f":"\"INN.\"&EIGNIR!$B$3&C5350","v":{"$error":"#N/A"}},{"$f":"'Sundurliðun Útlán'!O36","v":0},".M.EUKULIA.XX.LIF.XXX.XXXX.SX.XXX.SEK.IS.N.M"]
[{"$f":"\"INN.\"&EIGNIR!$B$3&C5351","v":{"$error":"#N/A"}},{"$f":"'Sundurliðun Útlán'!O37","v":0},".M.EUKULIA.XX.OPI.XXX.XXXX.SX.XXX.SEK.IS.N.M"]
[{"$f":"\"INN.\"&EIGNIR!$B$3&C5352","v":{"$error":"#N/A"}},{"$f":"'Sundurliðun Útlán'!O38","v":0},".M.EUKULIA.XX.RSS.XXX.XXXX.SX.XXX.SEK.IS.N.M"]
[{"$f":"\"INN.\"&EIGNIR!$B$3&C5353","v":{"$error":"#N/A"}},{"$f":"'Sundurliðun Útlán'!O39","v":0},".M.EUKULIA.XX.BAJ.XXX.XXXX.SX.XXX.SEK.IS.N.M"]
[{"$f":"\"INN.\"&EIGNIR!$B$3&C5354","v":{"$error":"#N/A"}},{"$f":"'Sundurliðun Útlán'!O40","v":0},".M.EUKULIA.XX.EIN.XXX.XXXX.SX.XXX.SEK.IS.N.M"]
[{"$f":"\"INN.\"&EIGNIR!$B$3&C5355","v":{"$error":"#N/A"}},{"$f":"'Sundurliðun Útlán'!O41","v":0},".M.EUKULIA.XX.NPH.XXX.XXXX.SX.XXX.SEK.IS.N.M"]
[{"$f":"\"INN.\"&EIGNIR!$B$3&C5356","v":{"$error":"#N/A"}},{"$f":"'Sundurliðun Útlán'!O42","v":0},".M.EUKULYL.XX.$$$.XXX.XXXX.SX.XXX.SEK.IS.N.M"]
[{"$f":"\"INN.\"&EIGNIR!$B$3&C5357","v":{"$error":"#N/A"}},{"$f":"'Sundurliðun Útlán'!O43","v":0},".M.EUKULYL.XX.ATV.XXX.XXXX.SX.XXX.SEK.IS.N.M"]
[{"$f":"\"INN.\"&EIGNIR!$B$3&C5358","v":{"$error":"#N/A"}},{"$f":"'Sundurliðun Útlán'!O57","v":0},".M.EUKULYL.XX.FJA.XXX.XXXX.SX.XXX.SEK.IS.N.M"]
[{"$f":"\"INN.\"&EIGNIR!$B$3&C5359","v":{"$error":"#N/A"}},{"$f":"'Sundurliðun Útlán'!O58","v":0},".M.EUKULYL.XX.INN.XXX.XXXX.SX.XXX.SEK.IS.N.M"]
[{"$f":"\"INN.\"&EIGNIR!$B$3&C5360","v":{"$error":"#N/A"}},{"$f":"'Sundurliðun Útlán'!O59","v":0},".M.EUKULYL.XX.SLI.XXX.XXXX.SX.XXX.SEK.IS.N.M"]
[{"$f":"\"INN.\"&EIGNIR!$B$3&C5361","v":{"$error":"#N/A"}},{"$f":"'Sundurliðun Útlán'!O60","v":0},".M.EUKULYL.XX.PEN.XXX.XXXX.SX.XXX.SEK.IS.N.M"]
[{"$f":"\"INN.\"&EIGNIR!$B$3&C5362","v":{"$error":"#N/A"}},{"$f":"'Sundurliðun Útlán'!O61","v":0},".M.EUKULYL.XX.SJO.XXX.XXXX.SX.XXX.SEK.IS.N.M"]
[{"$f":"\"INN.\"&EIGNIR!$B$3&C5363","v":{"$error":"#N/A"}},{"$f":"'Sundurliðun Útlán'!O62","v":0},".M.EUKULYL.XX.YFT.XXX.XXXX.SX.XXX.SEK.IS.N.M"]
[{"$f":"\"INN.\"&EIGNIR!$B$3&C5364","v":{"$error":"#N/A"}},{"$f":"'Sundurliðun Útlán'!O63","v":0},".M.EUKULYL.XX.SLY.XXX.XXXX.SX.XXX.SEK.IS.N.M"]
[{"$f":"\"INN.\"&EIGNIR!$B$3&C5365","v":{"$error":"#N/A"}},{"$f":"'Sundurliðun Útlán'!O64","v":0},".M.EUKULYL.XX.FHL.XXX.XXXX.SX.XXX.SEK.IS.N.M"]
[{"$f":"\"INN.\"&EIGNIR!$B$3&C5366","v":{"$error":"#N/A"}},{"$f":"'Sundurliðun Útlán'!O65","v":0},".M.EUKULYL.XX.INF.XXX.XXXX.SX.XXX.SEK.IS.N.M"]
[{"$f":"\"INN.\"&EIGNIR!$B$3&C5367","v":{"$error":"#N/A"}},{"$f":"'Sundurliðun Útlán'!O66","v":0},".M.EUKULYL.XX.TRY.XXX.XXXX.SX.XXX.SEK.IS.N.M"]
[{"$f":"\"INN.\"&EIGNIR!$B$3&C5368","v":{"$error":"#N/A"}},{"$f":"'Sundurliðun Útlán'!O67","v":0},".M.EUKULYL.XX.LIF.XXX.XXXX.SX.XXX.SEK.IS.N.M"]
[{"$f":"\"INN.\"&EIGNIR!$B$3&C5369","v":{"$error":"#N/A"}},{"$f":"'Sundurliðun Útlán'!O68","v":0},".M.EUKULYL.XX.OPI.XXX.XXXX.SX.XXX.SEK.IS.N.M"]
[{"$f":"\"INN.\"&EIGNIR!$B$3&C5370","v":{"$error":"#N/A"}},{"$f":"'Sundurliðun Útlán'!O69","v":0},".M.EUKULYL.XX.RSS.XXX.XXXX.SX.XXX.SEK.IS.N.M"]
[{"$f":"\"INN.\"&EIGNIR!$B$3&C5371","v":{"$error":"#N/A"}},{"$f":"'Sundurliðun Útlán'!O70","v":0},".M.EUKULYL.XX.BAJ.XXX.XXXX.SX.XXX.SEK.IS.N.M"]
[{"$f":"\"INN.\"&EIGNIR!$B$3&C5372","v":{"$error":"#N/A"}},{"$f":"'Sundurliðun Útlán'!O71","v":0},".M.EUKULYL.XX.EIN.XXX.XXXX.SX.XXX.SEK.IS.N.M"]
[{"$f":"\"INN.\"&EIGNIR!$B$3&C5373","v":{"$error":"#N/A"}},{"$f":"'Sundurliðun Útlán'!O72","v":0},".M.EUKULYL.XX.NPH.XXX.XXXX.SX.XXX.SEK.IS.N.M"]
[{"$f":"\"INN.\"&EIGNIR!$B$3&C5374","v":{"$error":"#N/A"}},{"$f":"'Sundurliðun Útlán'!O73","v":0},".M.EUKULVX.XX.$$$.XXX.XXXX.SX.XXX.SEK.IS.N.M"]
[{"$f":"\"INN.\"&EIGNIR!$B$3&C5375","v":{"$error":"#N/A"}},{"$f":"'Sundurliðun Útlán'!O74","v":0},".M.EUKULVX.XX.ATV.XXX.XXXX.SX.XXX.SEK.IS.N.M"]
[{"$f":"\"INN.\"&EIGNIR!$B$3&C5376","v":{"$error":"#N/A"}},{"$f":"'Sundurliðun Útlán'!O88","v":0},".M.EUKULVX.XX.FJA.XXX.XXXX.SX.XXX.SEK.IS.N.M"]
[{"$f":"\"INN.\"&EIGNIR!$B$3&C5377","v":{"$error":"#N/A"}},{"$f":"'Sundurliðun Útlán'!O89","v":0},".M.EUKULVX.XX.INN.XXX.XXXX.SX.XXX.SEK.IS.N.M"]
[{"$f":"\"INN.\"&EIGNIR!$B$3&C5378","v":{"$error":"#N/A"}},{"$f":"'Sundurliðun Útlán'!O90","v":0},".M.EUKULVX.XX.SLI.XXX.XXXX.SX.XXX.SEK.IS.N.M"]
[{"$f":"\"INN.\"&EIGNIR!$B$3&C5379","v":{"$error":"#N/A"}},{"$f":"'Sundurliðun Útlán'!O91","v":0},".M.EUKULVX.XX.PEN.XXX.XXXX.SX.XXX.SEK.IS.N.M"]
[{"$f":"\"INN.\"&EIGNIR!$B$3&C5380","v":{"$error":"#N/A"}},{"$f":"'Sundurliðun Útlán'!O92","v":0},".M.EUKULVX.XX.SJO.XXX.XXXX.SX.XXX.SEK.IS.N.M"]
[{"$f":"\"INN.\"&EIGNIR!$B$3&C5381","v":{"$error":"#N/A"}},{"$f":"'Sundurliðun Útlán'!O93","v":0},".M.EUKULVX.XX.YFT.XXX.XXXX.SX.XXX.SEK.IS.N.M"]
[{"$f":"\"INN.\"&EIGNIR!$B$3&C5382","v":{"$error":"#N/A"}},{"$f":"'Sundurliðun Útlán'!O94","v":0},".M.EUKULVX.XX.SLY.XXX.XXXX.SX.XXX.SEK.IS.N.M"]
[{"$f":"\"INN.\"&EIGNIR!$B$3&C5383","v":{"$error":"#N/A"}},{"$f":"'Sundurliðun Útlán'!O95","v":0},".M.EUKULVX.XX.FHL.XXX.XXXX.SX.XXX.SEK.IS.N.M"]
[{"$f":"\"INN.\"&EIGNIR!$B$3&C5384","v":{"$error":"#N/A"}},{"$f":"'Sundurliðun Útlán'!O96","v":0},".M.EUKULVX.XX.INF.XXX.XXXX.SX.XXX.SEK.IS.N.M"]
[{"$f":"\"INN.\"&EIGNIR!$B$3&C5385","v":{"$error":"#N/A"}},{"$f":"'Sundurliðun Útlán'!O97","v":0},".M.EUKULVX.XX.TRY.XXX.XXXX.SX.XXX.SEK.IS.N.M"]
[{"$f":"\"INN.\"&EIGNIR!$B$3&C5386","v":{"$error":"#N/A"}},{"$f":"'Sundurliðun Útlán'!O98","v":0},".M.EUKULVX.XX.LIF.XXX.XXXX.SX.XXX.SEK.IS.N.M"]
[{"$f":"\"INN.\"&EIGNIR!$B$3&C5387","v":{"$error":"#N/A"}},{"$f":"'Sundurliðun Útlán'!O99","v":0},".M.EUKULVX.XX.OPI.XXX.XXXX.SX.XXX.SEK.IS.N.M"]
[{"$f":"\"INN.\"&EIGNIR!$B$3&C5388","v":{"$error":"#N/A"}},{"$f":"'Sundurliðun Útlán'!O100","v":0},".M.EUKULVX.XX.RSS.XXX.XXXX.SX.XXX.SEK.IS.N.M"]
[{"$f":"\"INN.\"&EIGNIR!$B$3&C5389","v":{"$error":"#N/A"}},{"$f":"'Sundurliðun Útlán'!O101","v":0},".M.EUKULVX.XX.BAJ.XXX.XXXX.SX.XXX.SEK.IS.N.M"]
[{"$f":"\"INN.\"&EIGNIR!$B$3&C5390","v":{"$error":"#N/A"}},{"$f":"'Sundurliðun Útlán'!O102","v":0},".M.EUKULVX.XX.EIN.XXX.XXXX.SX.XXX.SEK.IS.N.M"]
[{"$f":"\"INN.\"&EIGNIR!$B$3&C5391","v":{"$error":"#N/A"}},{"$f":"'Sundurliðun Útlán'!O103","v":0},".M.EUKULVX.XX.NPH.XXX.XXXX.SX.XXX.SEK.IS.N.M"]
[{"$f":"\"INN.\"&EIGNIR!$B$3&C5392","v":{"$error":"#N/A"}},{"$f":"'Sundurliðun Útlán'!O136","v":0},".M.EUKULOU.XX.$$$.XXX.XXXX.SX.XXX.SEK.IS.N.M"]
[{"$f":"\"INN.\"&EIGNIR!$B$3&C5393","v":{"$error":"#N/A"}},{"$f":"'Sundurliðun Útlán'!O137","v":0},".M.EUKULOU.XX.ATV.XXX.XXXX.SX.XXX.SEK.IS.N.M"]
[{"$f":"\"INN.\"&EIGNIR!$B$3&C5394","v":{"$error":"#N/A"}},{"$f":"'Sundurliðun Útlán'!O151","v":0},".M.EUKULOU.XX.FJA.XXX.XXXX.SX.XXX.SEK.IS.N.M"]
[{"$f":"\"INN.\"&EIGNIR!$B$3&C5395","v":{"$error":"#N/A"}},{"$f":"'Sundurliðun Útlán'!O152","v":0},".M.EUKULOU.XX.INN.XXX.XXXX.SX.XXX.SEK.IS.N.M"]
[{"$f":"\"INN.\"&EIGNIR!$B$3&C5396","v":{"$error":"#N/A"}},{"$f":"'Sundurliðun Útlán'!O153","v":0},".M.EUKULOU.XX.SLI.XXX.XXXX.SX.XXX.SEK.IS.N.M"]
[{"$f":"\"INN.\"&EIGNIR!$B$3&C5397","v":{"$error":"#N/A"}},{"$f":"'Sundurliðun Útlán'!O154","v":0},".M.EUKULOU.XX.PEN.XXX.XXXX.SX.XXX.SEK.IS.N.M"]
[{"$f":"\"INN.\"&EIGNIR!$B$3&C5398","v":{"$error":"#N/A"}},{"$f":"'Sundurliðun Útlán'!O155","v":0},".M.EUKULOU.XX.SJO.XXX.XXXX.SX.XXX.SEK.IS.N.M"]
[{"$f":"\"INN.\"&EIGNIR!$B$3&C5399","v":{"$error":"#N/A"}},{"$f":"'Sundurliðun Útlán'!O156","v":0},".M.EUKULOU.XX.YFT.XXX.XXXX.SX.XXX.SEK.IS.N.M"]
[{"$f":"\"INN.\"&EIGNIR!$B$3&C5400","v":{"$error":"#N/A"}},{"$f":"'Sundurliðun Útlán'!O157","v":0},".M.EUKULOU.XX.SLY.XXX.XXXX.SX.XXX.SEK.IS.N.M"]
[{"$f":"\"INN.\"&EIGNIR!$B$3&C5401","v":{"$error":"#N/A"}},{"$f":"'Sundurliðun Útlán'!O158","v":0},".M.EUKULOU.XX.FHL.XXX.XXXX.SX.XXX.SEK.IS.N.M"]
[{"$f":"\"INN.\"&EIGNIR!$B$3&C5402","v":{"$error":"#N/A"}},{"$f":"'Sundurliðun Útlán'!O159","v":0},".M.EUKULOU.XX.INF.XXX.XXXX.SX.XXX.SEK.IS.N.M"]
[{"$f":"\"INN.\"&EIGNIR!$B$3&C5403","v":{"$error":"#N/A"}},{"$f":"'Sundurliðun Útlán'!O160","v":0},".M.EUKULOU.XX.TRY.XXX.XXXX.SX.XXX.SEK.IS.N.M"]
[{"$f":"\"INN.\"&EIGNIR!$B$3&C5404","v":{"$error":"#N/A"}},{"$f":"'Sundurliðun Útlán'!O161","v":0},".M.EUKULOU.XX.LIF.XXX.XXXX.SX.XXX.SEK.IS.N.M"]
[{"$f":"\"INN.\"&EIGNIR!$B$3&C5405","v":{"$error":"#N/A"}},{"$f":"'Sundurliðun Útlán'!O162","v":0},".M.EUKULOU.XX.OPI.XXX.XXXX.SX.XXX.SEK.IS.N.M"]
[{"$f":"\"INN.\"&EIGNIR!$B$3&C5406","v":{"$error":"#N/A"}},{"$f":"'Sundurliðun Útlán'!O163","v":0},".M.EUKULOU.XX.RSS.XXX.XXXX.SX.XXX.SEK.IS.N.M"]
[{"$f":"\"INN.\"&EIGNIR!$B$3&C5407","v":{"$error":"#N/A"}},{"$f":"'Sundurliðun Útlán'!O164","v":0},".M.EUKULOU.XX.BAJ.XXX.XXXX.SX.XXX.SEK.IS.N.M"]
[{"$f":"\"INN.\"&EIGNIR!$B$3&C5408","v":{"$error":"#N/A"}},{"$f":"'Sundurliðun Útlán'!O165","v":0},".M.EUKULOU.XX.EIB.XXX.XXXX.SX.XXX.SEK.IS.N.M"]
[{"$f":"\"INN.\"&EIGNIR!$B$3&C5409","v":{"$error":"#N/A"}},{"$f":"'Sundurliðun Útlán'!O166","v":0},".M.EUKULOU.XX.ANN.XXX.XXXX.SX.XXX.SEK.IS.N.M"]
[{"$f":"\"INN.\"&EIGNIR!$B$3&C5410","v":{"$error":"#N/A"}},{"$f":"'Sundurliðun Útlán'!O167","v":0},".M.EUKULOU.XX.NPH.XXX.XXXX.SX.XXX.SEK.IS.N.M"]
[{"$f":"\"INN.\"&EIGNIR!$B$3&C5411","v":{"$error":"#N/A"}},{"$f":"'Sundurliðun Útlán'!O168","v":0},".M.EUKULEL.XX.$$$.XXX.XXXX.SX.XXX.SEK.IS.N.M"]
[{"$f":"\"INN.\"&EIGNIR!$B$3&C5412","v":{"$error":"#N/A"}},{"$f":"'Sundurliðun Útlán'!O169","v":0},".M.EUKULEL.XX.ATV.XXX.XXXX.SX.XXX.SEK.IS.N.M"]
[{"$f":"\"INN.\"&EIGNIR!$B$3&C5413","v":{"$error":"#N/A"}},{"$f":"'Sundurliðun Útlán'!O183","v":0},".M.EUKULEL.XX.FJA.XXX.XXXX.SX.XXX.SEK.IS.N.M"]
[{"$f":"\"INN.\"&EIGNIR!$B$3&C5414","v":{"$error":"#N/A"}},{"$f":"'Sundurliðun Útlán'!O184","v":0},".M.EUKULEL.XX.INN.XXX.XXXX.SX.XXX.SEK.IS.N.M"]
[{"$f":"\"INN.\"&EIGNIR!$B$3&C5415","v":{"$error":"#N/A"}},{"$f":"'Sundurliðun Útlán'!O185","v":0},".M.EUKULEL.XX.SLI.XXX.XXXX.SX.XXX.SEK.IS.N.M"]
[{"$f":"\"INN.\"&EIGNIR!$B$3&C5416","v":{"$error":"#N/A"}},{"$f":"'Sundurliðun Útlán'!O186","v":0},".M.EUKULEL.XX.PEN.XXX.XXXX.SX.XXX.SEK.IS.N.M"]
[{"$f":"\"INN.\"&EIGNIR!$B$3&C5417","v":{"$error":"#N/A"}},{"$f":"'Sundurliðun Útlán'!O187","v":0},".M.EUKULEL.XX.SJO.XXX.XXXX.SX.XXX.SEK.IS.N.M"]
[{"$f":"\"INN.\"&EIGNIR!$B$3&C5418","v":{"$error":"#N/A"}},{"$f":"'Sundurliðun Útlán'!O188","v":0},".M.EUKULEL.XX.YFT.XXX.XXXX.SX.XXX.SEK.IS.N.M"]
[{"$f":"\"INN.\"&EIGNIR!$B$3&C5419","v":{"$error":"#N/A"}},{"$f":"'Sundurliðun Útlán'!O189","v":0},".M.EUKULEL.XX.SLY.XXX.XXXX.SX.XXX.SEK.IS.N.M"]
[{"$f":"\"INN.\"&EIGNIR!$B$3&C5420","v":{"$error":"#N/A"}},{"$f":"'Sundurliðun Útlán'!O190","v":0},".M.EUKULEL.XX.FHL.XXX.XXXX.SX.XXX.SEK.IS.N.M"]
[{"$f":"\"INN.\"&EIGNIR!$B$3&C5421","v":{"$error":"#N/A"}},{"$f":"'Sundurliðun Útlán'!O191","v":0},".M.EUKULEL.XX.INF.XXX.XXXX.SX.XXX.SEK.IS.N.M"]
[{"$f":"\"INN.\"&EIGNIR!$B$3&C5422","v":{"$error":"#N/A"}},{"$f":"'Sundurliðun Útlán'!O192","v":0},".M.EUKULEL.XX.TRY.XXX.XXXX.SX.XXX.SEK.IS.N.M"]
[{"$f":"\"INN.\"&EIGNIR!$B$3&C5423","v":{"$error":"#N/A"}},{"$f":"'Sundurliðun Útlán'!O193","v":0},".M.EUKULEL.XX.LIF.XXX.XXXX.SX.XXX.SEK.IS.N.M"]
[{"$f":"\"INN.\"&EIGNIR!$B$3&C5424","v":{"$error":"#N/A"}},{"$f":"'Sundurliðun Útlán'!O194","v":0},".M.EUKULEL.XX.OPI.XXX.XXXX.SX.XXX.SEK.IS.N.M"]
[{"$f":"\"INN.\"&EIGNIR!$B$3&C5425","v":{"$error":"#N/A"}},{"$f":"'Sundurliðun Útlán'!O195","v":0},".M.EUKULEL.XX.RSS.XXX.XXXX.SX.XXX.SEK.IS.N.M"]
[{"$f":"\"INN.\"&EIGNIR!$B$3&C5426","v":{"$error":"#N/A"}},{"$f":"'Sundurliðun Útlán'!O196","v":0},".M.EUKULEL.XX.BAJ.XXX.XXXX.SX.XXX.SEK.IS.N.M"]
[{"$f":"\"INN.\"&EIGNIR!$B$3&C5427","v":{"$error":"#N/A"}},{"$f":"'Sundurliðun Útlán'!O197","v":0},".M.EUKULEL.XX.EIN.XXX.XXXX.SX.XXX.SEK.IS.N.M"]
[{"$f":"\"INN.\"&EIGNIR!$B$3&C5428","v":{"$error":"#N/A"}},{"$f":"'Sundurliðun Útlán'!O198","v":0},".M.EUKULEL.XX.NPH.XXX.XXXX.SX.XXX.SEK.IS.N.M"]
[{"$f":"\"INN.\"&EIGNIR!$B$3&C5429","v":{"$error":"#N/A"}},{"$f":"'Sundurliðun Útlán'!O199","v":0},".M.EUKULUE.XX.$$$.XXX.XXXX.SX.XXX.SEK.IS.N.M"]
[{"$f":"\"INN.\"&EIGNIR!$B$3&C5430","v":{"$error":"#N/A"}},{"$f":"'Sundurliðun Útlán'!O200","v":0},".M.EUKULEH.XX.ERL.XXX.XXXX.SX.XXX.SEK.IS.N.M"]
[{"$f":"\"INN.\"&EIGNIR!$B$3&C5431","v":{"$error":"#N/A"}},{"$f":"'Sundurliðun Útlán'!O202","v":0},".M.EUKULEH.XX.ERI.XXX.XXXX.SX.XXX.SEK.IS.N.M"]
[{"$f":"\"INN.\"&EIGNIR!$B$3&C5432","v":{"$error":"#N/A"}},{"$f":"'Sundurliðun Útlán'!O205","v":0},".M.EUKULEH.XX.ERF.XXX.XXXX.SX.XXX.SEK.IS.N.M"]
[{"$f":"\"INN.\"&EIGNIR!$B$3&C5433","v":{"$error":"#N/A"}},{"$f":"'Sundurliðun Útlán'!O207","v":0},".M.EUKULEH.XX.ERA.XXX.XXXX.SX.XXX.SEK.IS.N.M"]
[{"$f":"\"INN.\"&EIGNIR!$B$3&C5434","v":{"$error":"#N/A"}},{"$f":"'Sundurliðun Útlán'!O208","v":0},".M.EUKULED.XX.ERL.XXX.XXXX.SX.XXX.SEK.IS.N.M"]
[{"$f":"\"INN.\"&EIGNIR!$B$3&C5435","v":{"$error":"#N/A"}},{"$f":"'Sundurliðun Útlán'!O210","v":0},".M.EUKULED.XX.ERI.XXX.XXXX.SX.XXX.SEK.IS.N.M"]
[{"$f":"\"INN.\"&EIGNIR!$B$3&C5436","v":{"$error":"#N/A"}},{"$f":"'Sundurliðun Útlán'!O213","v":0},".M.EUKULED.XX.ERF.XXX.XXXX.SX.XXX.SEK.IS.N.M"]
[{"$f":"\"INN.\"&EIGNIR!$B$3&C5437","v":{"$error":"#N/A"}},{"$f":"'Sundurliðun Útlán'!O215","v":0},".M.EUKULED.XX.ERA.XXX.XXXX.SX.XXX.SEK.IS.N.M"]
[{"$f":"\"INN.\"&EIGNIR!$B$3&C5438","v":{"$error":"#N/A"}},{"$f":"'Sundurliðun Útlán'!O216","v":0},".M.EUKULFF.XX.ERL.XXX.XXXX.SX.XXX.SEK.IS.N.M"]
[{"$f":"\"INN.\"&EIGNIR!$B$3&C5439","v":{"$error":"#N/A"}},{"$f":"'Sundurliðun Útlán'!O218","v":0},".M.EUKULFF.XX.ERI.XXX.XXXX.SX.XXX.SEK.IS.N.M"]
[{"$f":"\"INN.\"&EIGNIR!$B$3&C5440","v":{"$error":"#N/A"}},{"$f":"'Sundurliðun Útlán'!O221","v":0},".M.EUKULFF.XX.ERF.XXX.XXXX.SX.XXX.SEK.IS.N.M"]
[{"$f":"\"INN.\"&EIGNIR!$B$3&C5441","v":{"$error":"#N/A"}},{"$f":"'Sundurliðun Útlán'!O223","v":0},".M.EUKULFF.XX.ERA.XXX.XXXX.SX.XXX.SEK.IS.N.M"]
[{"$f":"\"INN.\"&EIGNIR!$B$3&C5442","v":{"$error":"#N/A"}},{"$f":"'Sundurliðun Útlán'!O224","v":0},".M.EUKULOL.XX.ERL.XXX.XXXX.SX.XXX.SEK.IS.N.M","//Önnur erlend lán"]
[{"$f":"\"INN.\"&EIGNIR!$B$3&C5443","v":{"$error":"#N/A"}},{"$f":"'Sundurliðun Útlán'!O226","v":0},".M.EUKULOL.XX.ERI.XXX.XXXX.SX.XXX.SEK.IS.N.M"]
[{"$f":"\"INN.\"&EIGNIR!$B$3&C5444","v":{"$error":"#N/A"}},{"$f":"'Sundurliðun Útlán'!O228","v":0},".M.EUKULOL.XX.ERV.XXX.XXXX.SX.XXX.SEK.IS.N.M"]
[{"$f":"\"INN.\"&EIGNIR!$B$3&C5445","v":{"$error":"#N/A"}},{"$f":"'Sundurliðun Útlán'!O229","v":0},".M.EUKULOL.XX.ERF.XXX.XXXX.SX.XXX.SEK.IS.N.M"]
[{"$f":"\"INN.\"&EIGNIR!$B$3&C5446","v":{"$error":"#N/A"}},{"$f":"'Sundurliðun Útlán'!O230","v":0},".M.EUKULOL.XX.ERO.XXX.XXXX.SX.XXX.SEK.IS.N.M"]
[{"$f":"\"INN.\"&EIGNIR!$B$3&C5447","v":{"$error":"#N/A"}},{"$f":"'Sundurliðun Útlán'!O231","v":0},".M.EUKULOL.XX.ERA.XXX.XXXX.SX.XXX.SEK.IS.N.M"]
[{"$f":"\"INN.\"&EIGNIR!$B$3&C5448","v":{"$error":"#N/A"}},{"$f":"'Sundurliðun Útlán'!O232","v":0},".M.EUKNF$$.XX.XXX.XXX.XXXX.SX.XXX.SEK.IS.N.M"]
[{"$f":"\"INN.\"&EIGNIR!$B$3&C5449","v":{"$error":"#N/A"}},{"$f":"'Sundurliðun Útlán'!O233","v":0},".M.EUKNFAL.XX.XXX.XXX.XXXX.SX.XXX.SEK.IS.N.M"]
[{"$f":"\"INN.\"&EIGNIR!$B$3&C5450","v":{"$error":"#N/A"}},{"$f":"'Sundurliðun Útlán'!O234","v":0},".M.EUKNFST.XX.$$$.XXX.XXXX.SX.XXX.SEK.IS.N.M"]
[{"$f":"\"INN.\"&EIGNIR!$B$3&C5451","v":{"$error":"#N/A"}},{"$f":"'Sundurliðun Útlán'!O235","v":0},".M.EUKNFST.XX.ATV.XXX.XXXX.SX.XXX.SEK.IS.N.M"]
[{"$f":"\"INN.\"&EIGNIR!$B$3&C5452","v":{"$error":"#N/A"}},{"$f":"'Sundurliðun Útlán'!O236","v":0},".M.EUKNFST.XX.LAB.XXX.XXXX.SX.XXX.SEK.IS.N.M"]
[{"$f":"\"INN.\"&EIGNIR!$B$3&C5453","v":{"$error":"#N/A"}},{"$f":"'Sundurliðun Útlán'!O237","v":0},".M.EUKNFST.XX.SJA.XXX.XXXX.SX.XXX.SEK.IS.N.M"]
[{"$f":"\"INN.\"&EIGNIR!$B$3&C5454","v":{"$error":"#N/A"}},{"$f":"'Sundurliðun Útlán'!O238","v":0},".M.EUKNFST.XX.ILA.XXX.XXXX.SX.XXX.SEK.IS.N.M"]
[{"$f":"\"INN.\"&EIGNIR!$B$3&C5455","v":{"$error":"#N/A"}},{"$f":"'Sundurliðun Útlán'!O239","v":0},".M.EUKNFST.XX.ISJ.XXX.XXXX.SX.XXX.SEK.IS.N.M"]
[{"$f":"\"INN.\"&EIGNIR!$B$3&C5456","v":{"$error":"#N/A"}},{"$f":"'Sundurliðun Útlán'!O240","v":0},".M.EUKNFST.XX.IAN.XXX.XXXX.SX.XXX.SEK.IS.N.M"]
[{"$f":"\"INN.\"&EIGNIR!$B$3&C5457","v":{"$error":"#N/A"}},{"$f":"'Sundurliðun Útlán'!O241","v":0},".M.EUKNFST.XX.RAF.XXX.XXXX.SX.XXX.SEK.IS.N.M"]
[{"$f":"\"INN.\"&EIGNIR!$B$3&C5458","v":{"$error":"#N/A"}},{"$f":"'Sundurliðun Útlán'!O242","v":0},".M.EUKNFST.XX.MAN.XXX.XXXX.SX.XXX.SEK.IS.N.M"]
[{"$f":"\"INN.\"&EIGNIR!$B$3&C5459","v":{"$error":"#N/A"}},{"$f":"'Sundurliðun Útlán'!O243","v":0},".M.EUKNFST.XX.VEN.XXX.XXXX.SX.XXX.SEK.IS.N.M"]
[{"$f":"\"INN.\"&EIGNIR!$B$3&C5460","v":{"$error":"#N/A"}},{"$f":"'Sundurliðun Útlán'!O244","v":0},".M.EUKNFST.XX.SAG.XXX.XXXX.SX.XXX.SEK.IS.N.M"]
[{"$f":"\"INN.\"&EIGNIR!$B$3&C5461","v":{"$error":"#N/A"}},{"$f":"'Sundurliðun Útlán'!O245","v":0},".M.EUKNFST.XX.THF.XXX.XXXX.SX.XXX.SEK.IS.N.M"]
[{"$f":"\"INN.\"&EIGNIR!$B$3&C5462","v":{"$error":"#N/A"}},{"$f":"'Sundurliðun Útlán'!O246","v":0},".M.EUKNFST.XX.THH.XXX.XXXX.SX.XXX.SEK.IS.N.M"]
[{"$f":"\"INN.\"&EIGNIR!$B$3&C5463","v":{"$error":"#N/A"}},{"$f":"'Sundurliðun Útlán'!O247","v":0},".M.EUKNFST.XX.THA.XXX.XXXX.SX.XXX.SEK.IS.N.M"]
[{"$f":"\"INN.\"&EIGNIR!$B$3&C5464","v":{"$error":"#N/A"}},{"$f":"'Sundurliðun Útlán'!O248","v":0},".M.EUKNFST.XX.OFL.XXX.XXXX.SX.XXX.SEK.IS.N.M"]
[{"$f":"\"INN.\"&EIGNIR!$B$3&C5465","v":{"$error":"#N/A"}},{"$f":"'Sundurliðun Útlán'!O249","v":0},".M.EUKNFST.XX.FJA.XXX.XXXX.SX.XXX.SEK.IS.N.M"]
[{"$f":"\"INN.\"&EIGNIR!$B$3&C5466","v":{"$error":"#N/A"}},{"$f":"'Sundurliðun Útlán'!O250","v":0},".M.EUKNFST.XXINN.XXX.XXXX.SX.XXX.SEK.IS.N.M"]
[{"$f":"\"INN.\"&EIGNIR!$B$3&C5467","v":{"$error":"#N/A"}},{"$f":"'Sundurliðun Útlán'!O251","v":0},".M.EUKNFST.XX.SLI.XXX.XXXX.SX.XXX.SEK.IS.N.M"]
[{"$f":"\"INN.\"&EIGNIR!$B$3&C5468","v":{"$error":"#N/A"}},{"$f":"'Sundurliðun Útlán'!O252","v":0},".M.EUKNFST.XX.PEN.XXX.XXXX.SX.XXX.SEK.IS.N.M"]
[{"$f":"\"INN.\"&EIGNIR!$B$3&C5469","v":{"$error":"#N/A"}},{"$f":"'Sundurliðun Útlán'!O253","v":0},".M.EUKNFST.XX.SJO.XXX.XXXX.SX.XXX.SEK.IS.N.M"]
[{"$f":"\"INN.\"&EIGNIR!$B$3&C5470","v":{"$error":"#N/A"}},{"$f":"'Sundurliðun Útlán'!O254","v":0},".M.EUKNFST.XX.YFT.XXX.XXXX.SX.XXX.SEK.IS.N.M"]
[{"$f":"\"INN.\"&EIGNIR!$B$3&C5471","v":{"$error":"#N/A"}},{"$f":"'Sundurliðun Útlán'!O255","v":0},".M.EUKNFST.XX.SLY.XXX.XXXX.SX.XXX.SEK.IS.N.M"]
[{"$f":"\"INN.\"&EIGNIR!$B$3&C5472","v":{"$error":"#N/A"}},{"$f":"'Sundurliðun Útlán'!O256","v":0},".M.EUKNFST.XX.FHL.XXX.XXXX.SX.XXX.SEK.IS.N.M"]
[{"$f":"\"INN.\"&EIGNIR!$B$3&C5473","v":{"$error":"#N/A"}},{"$f":"'Sundurliðun Útlán'!O257","v":0},".M.EUKNFST.XX.INF.XXX.XXXX.SX.XXX.SEK.IS.N.M"]
[{"$f":"\"INN.\"&EIGNIR!$B$3&C5474","v":{"$error":"#N/A"}},{"$f":"'Sundurliðun Útlán'!O258","v":0},".M.EUKNFST.XX.TRY.XXX.XXXX.SX.XXX.SEK.IS.N.M"]
[{"$f":"\"INN.\"&EIGNIR!$B$3&C5475","v":{"$error":"#N/A"}},{"$f":"'Sundurliðun Útlán'!O259","v":0},".M.EUKNFST.XX.LIF.XXX.XXXX.SX.XXX.SEK.IS.N.M"]
[{"$f":"\"INN.\"&EIGNIR!$B$3&C5476","v":{"$error":"#N/A"}},{"$f":"'Sundurliðun Útlán'!O260","v":0},".M.EUKNFST.XX.OPI.XXX.XXXX.SX.XXX.SEK.IS.N.M"]
[{"$f":"\"INN.\"&EIGNIR!$B$3&C5477","v":{"$error":"#N/A"}},{"$f":"'Sundurliðun Útlán'!O261","v":0},".M.EUKNFST.XX.RSS.XXX.XXXX.SX.XXX.SEK.IS.N.M"]
[{"$f":"\"INN.\"&EIGNIR!$B$3&C5478","v":{"$error":"#N/A"}},{"$f":"'Sundurliðun Útlán'!O262","v":0},".M.EUKNFST.XX.BAJ.XXX.XXXX.SX.XXX.SEK.IS.N.M"]
[{"$f":"\"INN.\"&EIGNIR!$B$3&C5479","v":{"$error":"#N/A"}},{"$f":"'Sundurliðun Útlán'!O263","v":0},".M.EUKNFST.XX.EIN.XXX.XXXX.SX.XXX.SEK.IS.N.M"]
[{"$f":"\"INN.\"&EIGNIR!$B$3&C5480","v":{"$error":"#N/A"}},{"$f":"'Sundurliðun Útlán'!O264","v":0},".M.EUKNFST.XX.NPH.XXX.XXXX.SX.XXX.SEK.IS.N.M"]
[{"$f":"\"INN.\"&EIGNIR!$B$3&C5481","v":{"$error":"#N/A"}},{"$f":"'Sundurliðun Útlán'!O265","v":0},".M.EUKNFER.XX.ERL.XXX.XXXX.SX.XXX.SEK.IS.N.M"]
[{"$f":"\"INN.\"&EIGNIR!$B$3&C5482","v":{"$error":"#N/A"}},{"$f":"'Sundurliðun Útlán'!O266","v":0},".M.EUKNFEH.XX.ERL.XXX.XXXX.SX.XXX.SEK.IS.N.M"]
[{"$f":"\"INN.\"&EIGNIR!$B$3&C5483","v":{"$error":"#N/A"}},{"$f":"'Sundurliðun Útlán'!O268","v":0},".M.EUKNFEH.XX.ERI.XXX.XXXX.SX.XXX.SEK.IS.N.M"]
[{"$f":"\"INN.\"&EIGNIR!$B$3&C5484","v":{"$error":"#N/A"}},{"$f":"'Sundurliðun Útlán'!O271","v":0},".M.EUKNFEH.XX.ERF.XXX.XXXX.SX.XXX.SEK.IS.N.M"]
[{"$f":"\"INN.\"&EIGNIR!$B$3&C5485","v":{"$error":"#N/A"}},{"$f":"'Sundurliðun Útlán'!O273","v":0},".M.EUKNFEH.XX.ERA.XXX.XXXX.SX.XXX.SEK.IS.N.M"]
[{"$f":"\"INN.\"&EIGNIR!$B$3&C5486","v":{"$error":"#N/A"}},{"$f":"'Sundurliðun Útlán'!O274","v":0},".M.EUKNFED.XX.ERL.XXX.XXXX.SX.XXX.SEK.IS.N.M"]
[{"$f":"\"INN.\"&EIGNIR!$B$3&C5487","v":{"$error":"#N/A"}},{"$f":"'Sundurliðun Útlán'!O276","v":0},".M.EUKNFED.XX.ERI.XXX.XXXX.SX.XXX.SEK.IS.N.M"]
[{"$f":"\"INN.\"&EIGNIR!$B$3&C5488","v":{"$error":"#N/A"}},{"$f":"'Sundurliðun Útlán'!O279","v":0},".M.EUKNFED.XX.ERF.XXX.XXXX.SX.XXX.SEK.IS.N.M"]
[{"$f":"\"INN.\"&EIGNIR!$B$3&C5489","v":{"$error":"#N/A"}},{"$f":"'Sundurliðun Útlán'!O281","v":0},".M.EUKNFED.XX.ERA.XXX.XXXX.SX.XXX.SEK.IS.N.M"]
[{"$f":"\"INN.\"&EIGNIR!$B$3&C5490","v":{"$error":"#N/A"}},{"$f":"'Sundurliðun Útlán'!O282","v":0},".M.EUKNFFF.XX.ERL.XXX.XXXX.SX.XXX.SEK.IS.N.M"]
[{"$f":"\"INN.\"&EIGNIR!$B$3&C5491","v":{"$error":"#N/A"}},{"$f":"'Sundurliðun Útlán'!O284","v":0},".M.EUKNFFF.XX.ERI.XXX.XXXX.SX.XXX.SEK.IS.N.M"]
[{"$f":"\"INN.\"&EIGNIR!$B$3&C5492","v":{"$error":"#N/A"}},{"$f":"'Sundurliðun Útlán'!O287","v":0},".M.EUKNFFF.XX.ERF.XXX.XXXX.SX.XXX.SEK.IS.N.M"]
[{"$f":"\"INN.\"&EIGNIR!$B$3&C5493","v":{"$error":"#N/A"}},{"$f":"'Sundurliðun Útlán'!O289","v":0},".M.EUKNFFF.XX.ERA.XXX.XXXX.SX.XXX.SEK.IS.N.M"]
[{"$f":"\"INN.\"&EIGNIR!$B$3&C5494","v":{"$error":"#N/A"}},{"$f":"'Sundurliðun Útlán'!O290","v":0},".M.EUKNFOL.XX.ERL.XXX.XXXX.SX.XXX.SEK.IS.N.M"]
[{"$f":"\"INN.\"&EIGNIR!$B$3&C5495","v":{"$error":"#N/A"}},{"$f":"'Sundurliðun Útlán'!O292","v":0},".M.EUKNFOL.XX.ERI.XXX.XXXX.SX.XXX.SEK.IS.N.M"]
[{"$f":"\"INN.\"&EIGNIR!$B$3&C5496","v":{"$error":"#N/A"}},{"$f":"'Sundurliðun Útlán'!O294","v":0},".M.EUKNFOL.XX.ERV.XXX.XXXX.SX.XXX.SEK.IS.N.M"]
[{"$f":"\"INN.\"&EIGNIR!$B$3&C5497","v":{"$error":"#N/A"}},{"$f":"'Sundurliðun Útlán'!O295","v":0},".M.EUKNFOL.XX.ERF.XXX.XXXX.SX.XXX.SEK.IS.N.M"]
[{"$f":"\"INN.\"&EIGNIR!$B$3&C5498","v":{"$error":"#N/A"}},{"$f":"'Sundurliðun Útlán'!O296","v":0},".M.EUKNFOL.XX.ERO.XXX.XXXX.SX.XXX.SEK.IS.N.M"]
[{"$f":"\"INN.\"&EIGNIR!$B$3&C5499","v":{"$error":"#N/A"}},{"$f":"'Sundurliðun Útlán'!O297","v":0},".M.EUKNFOL.XX.ERA.XXX.XXXX.SX.XXX.SEK.IS.N.M"]
[{"$f":"\"INN.\"&EIGNIR!$B$3&C5500","v":{"$error":"#N/A"}},{"$f":"'Sundurliðun Útlán'!P5","v":0},".M.EUK$$$$.XX.$$$.XXX.XXXX.SX.XXX.CHF.IS.N.M"]
[{"$f":"\"INN.\"&EIGNIR!$B$3&C5501","v":{"$error":"#N/A"}},{"$f":"'Sundurliðun Útlán'!P6","v":0},".M.EUKIT$$.XX.$$$.XXX.XXXX.SX.XXX.CHF.IS.N.M"]
[{"$f":"\"INN.\"&EIGNIR!$B$3&C5502","v":{"$error":"#N/A"}},{"$f":"'Sundurliðun Útlán'!P7","v":0},".M.EUKITII.XX.XXX.XXX.XXXX.SX.XXX.CHF.IS.N.M"]
[{"$f":"\"INN.\"&EIGNIR!$B$3&C5503","v":{"$error":"#N/A"}},{"$f":"'Sundurliðun Útlán'!P8","v":0},".M.EUKITIE.XX.XXX.XXX.XXXX.SX.XXX.CHF.IS.N.M"]
[{"$f":"\"INN.\"&EIGNIR!$B$3&C5504","v":{"$error":"#N/A"}},{"$f":"'Sundurliðun Útlán'!P9","v":0},".M.EUKITIT.XX.XXX.XXX.XXXX.SX.XXX.CHF.IS.N.M"]
[{"$f":"\"INN.\"&EIGNIR!$B$3&C5505","v":{"$error":"#N/A"}},{"$f":"'Sundurliðun Útlán'!P10","v":0},".M.EUKUL$$.XX.$$$.XXX.XXXX.SX.XXX.CHF.IS.N.M","//Sundurliðun útlána, CHF"]
[{"$f":"\"INN.\"&EIGNIR!$B$3&C5506","v":{"$error":"#N/A"}},{"$f":"'Sundurliðun Útlán'!P11","v":0},".M.EUKULIA.XX.$$$.XXX.XXXX.SX.XXX.CHF.IS.N.M"]
[{"$f":"\"INN.\"&EIGNIR!$B$3&C5507","v":{"$error":"#N/A"}},{"$f":"'Sundurliðun Útlán'!P12","v":0},".M.EUKULIA.XX.ATV.XXX.XXXX.SX.XXX.CHF.IS.N.M"]
[{"$f":"\"INN.\"&EIGNIR!$B$3&C5508","v":{"$error":"#N/A"}},{"$f":"'Sundurliðun Útlán'!P26","v":0},".M.EUKULIA.XX.FJA.XXX.XXXX.SX.XXX.CHF.IS.N.M"]
[{"$f":"\"INN.\"&EIGNIR!$B$3&C5509","v":{"$error":"#N/A"}},{"$f":"'Sundurliðun Útlán'!P27","v":0},".M.EUKULIA.XX.INN.XXX.XXXX.SX.XXX.CHF.IS.N.M"]
[{"$f":"\"INN.\"&EIGNIR!$B$3&C5510","v":{"$error":"#N/A"}},{"$f":"'Sundurliðun Útlán'!P28","v":0},".M.EUKULIA.XX.SLI.XXX.XXXX.SX.XXX.CHF.IS.N.M"]
[{"$f":"\"INN.\"&EIGNIR!$B$3&C5511","v":{"$error":"#N/A"}},{"$f":"'Sundurliðun Útlán'!P29","v":0},".M.EUKULIA.XX.PEN.XXX.XXXX.SX.XXX.CHF.IS.N.M"]
[{"$f":"\"INN.\"&EIGNIR!$B$3&C5512","v":{"$error":"#N/A"}},{"$f":"'Sundurliðun Útlán'!P30","v":0},".M.EUKULIA.XX.SJO.XXX.XXXX.SX.XXX.CHF.IS.N.M"]
[{"$f":"\"INN.\"&EIGNIR!$B$3&C5513","v":{"$error":"#N/A"}},{"$f":"'Sundurliðun Útlán'!P31","v":0},".M.EUKULIA.XX.YFT.XXX.XXXX.SX.XXX.CHF.IS.N.M"]
[{"$f":"\"INN.\"&EIGNIR!$B$3&C5514","v":{"$error":"#N/A"}},{"$f":"'Sundurliðun Útlán'!P32","v":0},".M.EUKULIA.XX.SLY.XXX.XXXX.SX.XXX.CHF.IS.N.M"]
[{"$f":"\"INN.\"&EIGNIR!$B$3&C5515","v":{"$error":"#N/A"}},{"$f":"'Sundurliðun Útlán'!P33","v":0},".M.EUKULIA.XX.FHL.XXX.XXXX.SX.XXX.CHF.IS.N.M"]
[{"$f":"\"INN.\"&EIGNIR!$B$3&C5516","v":{"$error":"#N/A"}},{"$f":"'Sundurliðun Útlán'!P34","v":0},".M.EUKULIA.XX.INF.XXX.XXXX.SX.XXX.CHF.IS.N.M"]
[{"$f":"\"INN.\"&EIGNIR!$B$3&C5517","v":{"$error":"#N/A"}},{"$f":"'Sundurliðun Útlán'!P35","v":0},".M.EUKULIA.XX.TRY.XXX.XXXX.SX.XXX.CHF.IS.N.M"]
[{"$f":"\"INN.\"&EIGNIR!$B$3&C5518","v":{"$error":"#N/A"}},{"$f":"'Sundurliðun Útlán'!P36","v":0},".M.EUKULIA.XX.LIF.XXX.XXXX.SX.XXX.CHF.IS.N.M"]
[{"$f":"\"INN.\"&EIGNIR!$B$3&C5519","v":{"$error":"#N/A"}},{"$f":"'Sundurliðun Útlán'!P37","v":0},".M.EUKULIA.XX.OPI.XXX.XXXX.SX.XXX.CHF.IS.N.M"]
[{"$f":"\"INN.\"&EIGNIR!$B$3&C5520","v":{"$error":"#N/A"}},{"$f":"'Sundurliðun Útlán'!P38","v":0},".M.EUKULIA.XX.RSS.XXX.XXXX.SX.XXX.CHF.IS.N.M"]
[{"$f":"\"INN.\"&EIGNIR!$B$3&C5521","v":{"$error":"#N/A"}},{"$f":"'Sundurliðun Útlán'!P39","v":0},".M.EUKULIA.XX.BAJ.XXX.XXXX.SX.XXX.CHF.IS.N.M"]
[{"$f":"\"INN.\"&EIGNIR!$B$3&C5522","v":{"$error":"#N/A"}},{"$f":"'Sundurliðun Útlán'!P40","v":0},".M.EUKULIA.XX.EIN.XXX.XXXX.SX.XXX.CHF.IS.N.M"]
[{"$f":"\"INN.\"&EIGNIR!$B$3&C5523","v":{"$error":"#N/A"}},{"$f":"'Sundurliðun Útlán'!P41","v":0},".M.EUKULIA.XX.NPH.XXX.XXXX.SX.XXX.CHF.IS.N.M"]
[{"$f":"\"INN.\"&EIGNIR!$B$3&C5524","v":{"$error":"#N/A"}},{"$f":"'Sundurliðun Útlán'!P42","v":0},".M.EUKULYL.XX.$$$.XXX.XXXX.SX.XXX.CHF.IS.N.M"]
[{"$f":"\"INN.\"&EIGNIR!$B$3&C5525","v":{"$error":"#N/A"}},{"$f":"'Sundurliðun Útlán'!P43","v":0},".M.EUKULYL.XX.ATV.XXX.XXXX.SX.XXX.CHF.IS.N.M"]
[{"$f":"\"INN.\"&EIGNIR!$B$3&C5526","v":{"$error":"#N/A"}},{"$f":"'Sundurliðun Útlán'!P57","v":0},".M.EUKULYL.XX.FJA.XXX.XXXX.SX.XXX.CHF.IS.N.M"]
[{"$f":"\"INN.\"&EIGNIR!$B$3&C5527","v":{"$error":"#N/A"}},{"$f":"'Sundurliðun Útlán'!P58","v":0},".M.EUKULYL.XX.INN.XXX.XXXX.SX.XXX.CHF.IS.N.M"]
[{"$f":"\"INN.\"&EIGNIR!$B$3&C5528","v":{"$error":"#N/A"}},{"$f":"'Sundurliðun Útlán'!P59","v":0},".M.EUKULYL.XX.SLI.XXX.XXXX.SX.XXX.CHF.IS.N.M"]
[{"$f":"\"INN.\"&EIGNIR!$B$3&C5529","v":{"$error":"#N/A"}},{"$f":"'Sundurliðun Útlán'!P60","v":0},".M.EUKULYL.XX.PEN.XXX.XXXX.SX.XXX.CHF.IS.N.M"]
[{"$f":"\"INN.\"&EIGNIR!$B$3&C5530","v":{"$error":"#N/A"}},{"$f":"'Sundurliðun Útlán'!P61","v":0},".M.EUKULYL.XX.SJO.XXX.XXXX.SX.XXX.CHF.IS.N.M"]
[{"$f":"\"INN.\"&EIGNIR!$B$3&C5531","v":{"$error":"#N/A"}},{"$f":"'Sundurliðun Útlán'!P62","v":0},".M.EUKULYL.XX.YFT.XXX.XXXX.SX.XXX.CHF.IS.N.M"]
[{"$f":"\"INN.\"&EIGNIR!$B$3&C5532","v":{"$error":"#N/A"}},{"$f":"'Sundurliðun Útlán'!P63","v":0},".M.EUKULYL.XX.SLY.XXX.XXXX.SX.XXX.CHF.IS.N.M"]
[{"$f":"\"INN.\"&EIGNIR!$B$3&C5533","v":{"$error":"#N/A"}},{"$f":"'Sundurliðun Útlán'!P64","v":0},".M.EUKULYL.XX.FHL.XXX.XXXX.SX.XXX.CHF.IS.N.M"]
[{"$f":"\"INN.\"&EIGNIR!$B$3&C5534","v":{"$error":"#N/A"}},{"$f":"'Sundurliðun Útlán'!P65","v":0},".M.EUKULYL.XX.INF.XXX.XXXX.SX.XXX.CHF.IS.N.M"]
[{"$f":"\"INN.\"&EIGNIR!$B$3&C5535","v":{"$error":"#N/A"}},{"$f":"'Sundurliðun Útlán'!P66","v":0},".M.EUKULYL.XX.TRY.XXX.XXXX.SX.XXX.CHF.IS.N.M"]
[{"$f":"\"INN.\"&EIGNIR!$B$3&C5536","v":{"$error":"#N/A"}},{"$f":"'Sundurliðun Útlán'!P67","v":0},".M.EUKULYL.XX.LIF.XXX.XXXX.SX.XXX.CHF.IS.N.M"]
[{"$f":"\"INN.\"&EIGNIR!$B$3&C5537","v":{"$error":"#N/A"}},{"$f":"'Sundurliðun Útlán'!P68","v":0},".M.EUKULYL.XX.OPI.XXX.XXXX.SX.XXX.CHF.IS.N.M"]
[{"$f":"\"INN.\"&EIGNIR!$B$3&C5538","v":{"$error":"#N/A"}},{"$f":"'Sundurliðun Útlán'!P69","v":0},".M.EUKULYL.XX.RSS.XXX.XXXX.SX.XXX.CHF.IS.N.M"]
[{"$f":"\"INN.\"&EIGNIR!$B$3&C5539","v":{"$error":"#N/A"}},{"$f":"'Sundurliðun Útlán'!P70","v":0},".M.EUKULYL.XX.BAJ.XXX.XXXX.SX.XXX.CHF.IS.N.M"]
[{"$f":"\"INN.\"&EIGNIR!$B$3&C5540","v":{"$error":"#N/A"}},{"$f":"'Sundurliðun Útlán'!P71","v":0},".M.EUKULYL.XX.EIN.XXX.XXXX.SX.XXX.CHF.IS.N.M"]
[{"$f":"\"INN.\"&EIGNIR!$B$3&C5541","v":{"$error":"#N/A"}},{"$f":"'Sundurliðun Útlán'!P72","v":0},".M.EUKULYL.XX.NPH.XXX.XXXX.SX.XXX.CHF.IS.N.M"]
[{"$f":"\"INN.\"&EIGNIR!$B$3&C5542","v":{"$error":"#N/A"}},{"$f":"'Sundurliðun Útlán'!P73","v":0},".M.EUKULVX.XX.$$$.XXX.XXXX.SX.XXX.CHF.IS.N.M"]
[{"$f":"\"INN.\"&EIGNIR!$B$3&C5543","v":{"$error":"#N/A"}},{"$f":"'Sundurliðun Útlán'!P74","v":0},".M.EUKULVX.XX.ATV.XXX.XXXX.SX.XXX.CHF.IS.N.M"]
[{"$f":"\"INN.\"&EIGNIR!$B$3&C5544","v":{"$error":"#N/A"}},{"$f":"'Sundurliðun Útlán'!P88","v":0},".M.EUKULVX.XX.FJA.XXX.XXXX.SX.XXX.CHF.IS.N.M"]
[{"$f":"\"INN.\"&EIGNIR!$B$3&C5545","v":{"$error":"#N/A"}},{"$f":"'Sundurliðun Útlán'!P89","v":0},".M.EUKULVX.XX.INN.XXX.XXXX.SX.XXX.CHF.IS.N.M"]
[{"$f":"\"INN.\"&EIGNIR!$B$3&C5546","v":{"$error":"#N/A"}},{"$f":"'Sundurliðun Útlán'!P90","v":0},".M.EUKULVX.XX.SLI.XXX.XXXX.SX.XXX.CHF.IS.N.M"]
[{"$f":"\"INN.\"&EIGNIR!$B$3&C5547","v":{"$error":"#N/A"}},{"$f":"'Sundurliðun Útlán'!P91","v":0},".M.EUKULVX.XX.PEN.XXX.XXXX.SX.XXX.CHF.IS.N.M"]
[{"$f":"\"INN.\"&EIGNIR!$B$3&C5548","v":{"$error":"#N/A"}},{"$f":"'Sundurliðun Útlán'!P92","v":0},".M.EUKULVX.XX.SJO.XXX.XXXX.SX.XXX.CHF.IS.N.M"]
[{"$f":"\"INN.\"&EIGNIR!$B$3&C5549","v":{"$error":"#N/A"}},{"$f":"'Sundurliðun Útlán'!P93","v":0},".M.EUKULVX.XX.YFT.XXX.XXXX.SX.XXX.CHF.IS.N.M"]
[{"$f":"\"INN.\"&EIGNIR!$B$3&C5550","v":{"$error":"#N/A"}},{"$f":"'Sundurliðun Útlán'!P94","v":0},".M.EUKULVX.XX.SLY.XXX.XXXX.SX.XXX.CHF.IS.N.M"]
[{"$f":"\"INN.\"&EIGNIR!$B$3&C5551","v":{"$error":"#N/A"}},{"$f":"'Sundurliðun Útlán'!P95","v":0},".M.EUKULVX.XX.FHL.XXX.XXXX.SX.XXX.CHF.IS.N.M"]
[{"$f":"\"INN.\"&EIGNIR!$B$3&C5552","v":{"$error":"#N/A"}},{"$f":"'Sundurliðun Útlán'!P96","v":0},".M.EUKULVX.XX.INF.XXX.XXXX.SX.XXX.CHF.IS.N.M"]
[{"$f":"\"INN.\"&EIGNIR!$B$3&C5553","v":{"$error":"#N/A"}},{"$f":"'Sundurliðun Útlán'!P97","v":0},".M.EUKULVX.XX.TRY.XXX.XXXX.SX.XXX.CHF.IS.N.M"]
[{"$f":"\"INN.\"&EIGNIR!$B$3&C5554","v":{"$error":"#N/A"}},{"$f":"'Sundurliðun Útlán'!P98","v":0},".M.EUKULVX.XX.LIF.XXX.XXXX.SX.XXX.CHF.IS.N.M"]
[{"$f":"\"INN.\"&EIGNIR!$B$3&C5555","v":{"$error":"#N/A"}},{"$f":"'Sundurliðun Útlán'!P99","v":0},".M.EUKULVX.XX.OPI.XXX.XXXX.SX.XXX.CHF.IS.N.M"]
[{"$f":"\"INN.\"&EIGNIR!$B$3&C5556","v":{"$error":"#N/A"}},{"$f":"'Sundurliðun Útlán'!P100","v":0},".M.EUKULVX.XX.RSS.XXX.XXXX.SX.XXX.CHF.IS.N.M"]
[{"$f":"\"INN.\"&EIGNIR!$B$3&C5557","v":{"$error":"#N/A"}},{"$f":"'Sundurliðun Útlán'!P101","v":0},".M.EUKULVX.XX.BAJ.XXX.XXXX.SX.XXX.CHF.IS.N.M"]
[{"$f":"\"INN.\"&EIGNIR!$B$3&C5558","v":{"$error":"#N/A"}},{"$f":"'Sundurliðun Útlán'!P102","v":0},".M.EUKULVX.XX.EIN.XXX.XXXX.SX.XXX.CHF.IS.N.M"]
[{"$f":"\"INN.\"&EIGNIR!$B$3&C5559","v":{"$error":"#N/A"}},{"$f":"'Sundurliðun Útlán'!P103","v":0},".M.EUKULVX.XX.NPH.XXX.XXXX.SX.XXX.CHF.IS.N.M"]
[{"$f":"\"INN.\"&EIGNIR!$B$3&C5560","v":{"$error":"#N/A"}},{"$f":"'Sundurliðun Útlán'!P136","v":0},".M.EUKULOU.XX.$$$.XXX.XXXX.SX.XXX.CHF.IS.N.M"]
[{"$f":"\"INN.\"&EIGNIR!$B$3&C5561","v":{"$error":"#N/A"}},{"$f":"'Sundurliðun Útlán'!P137","v":0},".M.EUKULOU.XX.ATV.XXX.XXXX.SX.XXX.CHF.IS.N.M"]
[{"$f":"\"INN.\"&EIGNIR!$B$3&C5562","v":{"$error":"#N/A"}},{"$f":"'Sundurliðun Útlán'!P151","v":0},".M.EUKULOU.XX.FJA.XXX.XXXX.SX.XXX.CHF.IS.N.M"]
[{"$f":"\"INN.\"&EIGNIR!$B$3&C5563","v":{"$error":"#N/A"}},{"$f":"'Sundurliðun Útlán'!P152","v":0},".M.EUKULOU.XX.INN.XXX.XXXX.SX.XXX.CHF.IS.N.M"]
[{"$f":"\"INN.\"&EIGNIR!$B$3&C5564","v":{"$error":"#N/A"}},{"$f":"'Sundurliðun Útlán'!P153","v":0},".M.EUKULOU.XX.SLI.XXX.XXXX.SX.XXX.CHF.IS.N.M"]
[{"$f":"\"INN.\"&EIGNIR!$B$3&C5565","v":{"$error":"#N/A"}},{"$f":"'Sundurliðun Útlán'!P154","v":0},".M.EUKULOU.XX.PEN.XXX.XXXX.SX.XXX.CHF.IS.N.M"]
[{"$f":"\"INN.\"&EIGNIR!$B$3&C5566","v":{"$error":"#N/A"}},{"$f":"'Sundurliðun Útlán'!P155","v":0},".M.EUKULOU.XX.SJO.XXX.XXXX.SX.XXX.CHF.IS.N.M"]
[{"$f":"\"INN.\"&EIGNIR!$B$3&C5567","v":{"$error":"#N/A"}},{"$f":"'Sundurliðun Útlán'!P156","v":0},".M.EUKULOU.XX.YFT.XXX.XXXX.SX.XXX.CHF.IS.N.M"]
[{"$f":"\"INN.\"&EIGNIR!$B$3&C5568","v":{"$error":"#N/A"}},{"$f":"'Sundurliðun Útlán'!P157","v":0},".M.EUKULOU.XX.SLY.XXX.XXXX.SX.XXX.CHF.IS.N.M"]
[{"$f":"\"INN.\"&EIGNIR!$B$3&C5569","v":{"$error":"#N/A"}},{"$f":"'Sundurliðun Útlán'!P158","v":0},".M.EUKULOU.XX.FHL.XXX.XXXX.SX.XXX.CHF.IS.N.M"]
[{"$f":"\"INN.\"&EIGNIR!$B$3&C5570","v":{"$error":"#N/A"}},{"$f":"'Sundurliðun Útlán'!P159","v":0},".M.EUKULOU.XX.INF.XXX.XXXX.SX.XXX.CHF.IS.N.M"]
[{"$f":"\"INN.\"&EIGNIR!$B$3&C5571","v":{"$error":"#N/A"}},{"$f":"'Sundurliðun Útlán'!P160","v":0},".M.EUKULOU.XX.TRY.XXX.XXXX.SX.XXX.CHF.IS.N.M"]
[{"$f":"\"INN.\"&EIGNIR!$B$3&C5572","v":{"$error":"#N/A"}},{"$f":"'Sundurliðun Útlán'!P161","v":0},".M.EUKULOU.XX.LIF.XXX.XXXX.SX.XXX.CHF.IS.N.M"]
[{"$f":"\"INN.\"&EIGNIR!$B$3&C5573","v":{"$error":"#N/A"}},{"$f":"'Sundurliðun Útlán'!P162","v":0},".M.EUKULOU.XX.OPI.XXX.XXXX.SX.XXX.CHF.IS.N.M"]
[{"$f":"\"INN.\"&EIGNIR!$B$3&C5574","v":{"$error":"#N/A"}},{"$f":"'Sundurliðun Útlán'!P163","v":0},".M.EUKULOU.XX.RSS.XXX.XXXX.SX.XXX.CHF.IS.N.M"]
[{"$f":"\"INN.\"&EIGNIR!$B$3&C5575","v":{"$error":"#N/A"}},{"$f":"'Sundurliðun Útlán'!P164","v":0},".M.EUKULOU.XX.BAJ.XXX.XXXX.SX.XXX.CHF.IS.N.M"]
[{"$f":"\"INN.\"&EIGNIR!$B$3&C5576","v":{"$error":"#N/A"}},{"$f":"'Sundurliðun Útlán'!P165","v":0},".M.EUKULOU.XX.EIB.XXX.XXXX.SX.XXX.CHF.IS.N.M"]
[{"$f":"\"INN.\"&EIGNIR!$B$3&C5577","v":{"$error":"#N/A"}},{"$f":"'Sundurliðun Útlán'!P166","v":0},".M.EUKULOU.XX.ANN.XXX.XXXX.SX.XXX.CHF.IS.N.M"]
[{"$f":"\"INN.\"&EIGNIR!$B$3&C5578","v":{"$error":"#N/A"}},{"$f":"'Sundurliðun Útlán'!P167","v":0},".M.EUKULOU.XX.NPH.XXX.XXXX.SX.XXX.CHF.IS.N.M"]
[{"$f":"\"INN.\"&EIGNIR!$B$3&C5579","v":{"$error":"#N/A"}},{"$f":"'Sundurliðun Útlán'!P168","v":0},".M.EUKULEL.XX.$$$.XXX.XXXX.SX.XXX.CHF.IS.N.M"]
[{"$f":"\"INN.\"&EIGNIR!$B$3&C5580","v":{"$error":"#N/A"}},{"$f":"'Sundurliðun Útlán'!P169","v":0},".M.EUKULEL.XX.ATV.XXX.XXXX.SX.XXX.CHF.IS.N.M"]
[{"$f":"\"INN.\"&EIGNIR!$B$3&C5581","v":{"$error":"#N/A"}},{"$f":"'Sundurliðun Útlán'!P183","v":0},".M.EUKULEL.XX.FJA.XXX.XXXX.SX.XXX.CHF.IS.N.M"]
[{"$f":"\"INN.\"&EIGNIR!$B$3&C5582","v":{"$error":"#N/A"}},{"$f":"'Sundurliðun Útlán'!P184","v":0},".M.EUKULEL.XX.INN.XXX.XXXX.SX.XXX.CHF.IS.N.M"]
[{"$f":"\"INN.\"&EIGNIR!$B$3&C5583","v":{"$error":"#N/A"}},{"$f":"'Sundurliðun Útlán'!P185","v":0},".M.EUKULEL.XX.SLI.XXX.XXXX.SX.XXX.CHF.IS.N.M"]
[{"$f":"\"INN.\"&EIGNIR!$B$3&C5584","v":{"$error":"#N/A"}},{"$f":"'Sundurliðun Útlán'!P186","v":0},".M.EUKULEL.XX.PEN.XXX.XXXX.SX.XXX.CHF.IS.N.M"]
[{"$f":"\"INN.\"&EIGNIR!$B$3&C5585","v":{"$error":"#N/A"}},{"$f":"'Sundurliðun Útlán'!P187","v":0},".M.EUKULEL.XX.SJO.XXX.XXXX.SX.XXX.CHF.IS.N.M"]
[{"$f":"\"INN.\"&EIGNIR!$B$3&C5586","v":{"$error":"#N/A"}},{"$f":"'Sundurliðun Útlán'!P188","v":0},".M.EUKULEL.XX.YFT.XXX.XXXX.SX.XXX.CHF.IS.N.M"]
[{"$f":"\"INN.\"&EIGNIR!$B$3&C5587","v":{"$error":"#N/A"}},{"$f":"'Sundurliðun Útlán'!P189","v":0},".M.EUKULEL.XX.SLY.XXX.XXXX.SX.XXX.CHF.IS.N.M"]
[{"$f":"\"INN.\"&EIGNIR!$B$3&C5588","v":{"$error":"#N/A"}},{"$f":"'Sundurliðun Útlán'!P190","v":0},".M.EUKULEL.XX.FHL.XXX.XXXX.SX.XXX.CHF.IS.N.M"]
[{"$f":"\"INN.\"&EIGNIR!$B$3&C5589","v":{"$error":"#N/A"}},{"$f":"'Sundurliðun Útlán'!P191","v":0},".M.EUKULEL.XX.INF.XXX.XXXX.SX.XXX.CHF.IS.N.M"]
[{"$f":"\"INN.\"&EIGNIR!$B$3&C5590","v":{"$error":"#N/A"}},{"$f":"'Sundurliðun Útlán'!P192","v":0},".M.EUKULEL.XX.TRY.XXX.XXXX.SX.XXX.CHF.IS.N.M"]
[{"$f":"\"INN.\"&EIGNIR!$B$3&C5591","v":{"$error":"#N/A"}},{"$f":"'Sundurliðun Útlán'!P193","v":0},".M.EUKULEL.XX.LIF.XXX.XXXX.SX.XXX.CHF.IS.N.M"]
[{"$f":"\"INN.\"&EIGNIR!$B$3&C5592","v":{"$error":"#N/A"}},{"$f":"'Sundurliðun Útlán'!P194","v":0},".M.EUKULEL.XX.OPI.XXX.XXXX.SX.XXX.CHF.IS.N.M"]
[{"$f":"\"INN.\"&EIGNIR!$B$3&C5593","v":{"$error":"#N/A"}},{"$f":"'Sundurliðun Útlán'!P195","v":0},".M.EUKULEL.XX.RSS.XXX.XXXX.SX.XXX.CHF.IS.N.M"]
[{"$f":"\"INN.\"&EIGNIR!$B$3&C5594","v":{"$error":"#N/A"}},{"$f":"'Sundurliðun Útlán'!P196","v":0},".M.EUKULEL.XX.BAJ.XXX.XXXX.SX.XXX.CHF.IS.N.M"]
[{"$f":"\"INN.\"&EIGNIR!$B$3&C5595","v":{"$error":"#N/A"}},{"$f":"'Sundurliðun Útlán'!P197","v":0},".M.EUKULEL.XX.EIN.XXX.XXXX.SX.XXX.CHF.IS.N.M"]
[{"$f":"\"INN.\"&EIGNIR!$B$3&C5596","v":{"$error":"#N/A"}},{"$f":"'Sundurliðun Útlán'!P198","v":0},".M.EUKULEL.XX.NPH.XXX.XXXX.SX.XXX.CHF.IS.N.M"]
[{"$f":"\"INN.\"&EIGNIR!$B$3&C5597","v":{"$error":"#N/A"}},{"$f":"'Sundurliðun Útlán'!P199","v":0},".M.EUKULUE.XX.$$$.XXX.XXXX.SX.XXX.CHF.IS.N.M"]
[{"$f":"\"INN.\"&EIGNIR!$B$3&C5598","v":{"$error":"#N/A"}},{"$f":"'Sundurliðun Útlán'!P200","v":0},".M.EUKULEH.XX.ERL.XXX.XXXX.SX.XXX.CHF.IS.N.M"]
[{"$f":"\"INN.\"&EIGNIR!$B$3&C5599","v":{"$error":"#N/A"}},{"$f":"'Sundurliðun Útlán'!P202","v":0},".M.EUKULEH.XX.ERI.XXX.XXXX.SX.XXX.CHF.IS.N.M"]
[{"$f":"\"INN.\"&EIGNIR!$B$3&C5600","v":{"$error":"#N/A"}},{"$f":"'Sundurliðun Útlán'!P205","v":0},".M.EUKULEH.XX.ERF.XXX.XXXX.SX.XXX.CHF.IS.N.M"]
[{"$f":"\"INN.\"&EIGNIR!$B$3&C5601","v":{"$error":"#N/A"}},{"$f":"'Sundurliðun Útlán'!P207","v":0},".M.EUKULEH.XX.ERA.XXX.XXXX.SX.XXX.CHF.IS.N.M"]
[{"$f":"\"INN.\"&EIGNIR!$B$3&C5602","v":{"$error":"#N/A"}},{"$f":"'Sundurliðun Útlán'!P208","v":0},".M.EUKULED.XX.ERL.XXX.XXXX.SX.XXX.CHF.IS.N.M"]
[{"$f":"\"INN.\"&EIGNIR!$B$3&C5603","v":{"$error":"#N/A"}},{"$f":"'Sundurliðun Útlán'!P210","v":0},".M.EUKULED.XX.ERI.XXX.XXXX.SX.XXX.CHF.IS.N.M"]
[{"$f":"\"INN.\"&EIGNIR!$B$3&C5604","v":{"$error":"#N/A"}},{"$f":"'Sundurliðun Útlán'!P213","v":0},".M.EUKULED.XX.ERF.XXX.XXXX.SX.XXX.CHF.IS.N.M"]
[{"$f":"\"INN.\"&EIGNIR!$B$3&C5605","v":{"$error":"#N/A"}},{"$f":"'Sundurliðun Útlán'!P215","v":0},".M.EUKULED.XX.ERA.XXX.XXXX.SX.XXX.CHF.IS.N.M"]
[{"$f":"\"INN.\"&EIGNIR!$B$3&C5606","v":{"$error":"#N/A"}},{"$f":"'Sundurliðun Útlán'!P216","v":0},".M.EUKULFF.XX.ERL.XXX.XXXX.SX.XXX.CHF.IS.N.M"]
[{"$f":"\"INN.\"&EIGNIR!$B$3&C5607","v":{"$error":"#N/A"}},{"$f":"'Sundurliðun Útlán'!P218","v":0},".M.EUKULFF.XX.ERI.XXX.XXXX.SX.XXX.CHF.IS.N.M"]
[{"$f":"\"INN.\"&EIGNIR!$B$3&C5608","v":{"$error":"#N/A"}},{"$f":"'Sundurliðun Útlán'!P221","v":0},".M.EUKULFF.XX.ERF.XXX.XXXX.SX.XXX.CHF.IS.N.M"]
[{"$f":"\"INN.\"&EIGNIR!$B$3&C5609","v":{"$error":"#N/A"}},{"$f":"'Sundurliðun Útlán'!P223","v":0},".M.EUKULFF.XX.ERA.XXX.XXXX.SX.XXX.CHF.IS.N.M"]
[{"$f":"\"INN.\"&EIGNIR!$B$3&C5610","v":{"$error":"#N/A"}},{"$f":"'Sundurliðun Útlán'!P224","v":0},".M.EUKULOL.XX.ERL.XXX.XXXX.SX.XXX.CHF.IS.N.M","//Önnur erlend lán"]
[{"$f":"\"INN.\"&EIGNIR!$B$3&C5611","v":{"$error":"#N/A"}},{"$f":"'Sundurliðun Útlán'!P226","v":0},".M.EUKULOL.XX.ERI.XXX.XXXX.SX.XXX.CHF.IS.N.M"]
[{"$f":"\"INN.\"&EIGNIR!$B$3&C5612","v":{"$error":"#N/A"}},{"$f":"'Sundurliðun Útlán'!P228","v":0},".M.EUKULOL.XX.ERV.XXX.XXXX.SX.XXX.CHF.IS.N.M"]
[{"$f":"\"INN.\"&EIGNIR!$B$3&C5613","v":{"$error":"#N/A"}},{"$f":"'Sundurliðun Útlán'!P229","v":0},".M.EUKULOL.XX.ERF.XXX.XXXX.SX.XXX.CHF.IS.N.M"]
[{"$f":"\"INN.\"&EIGNIR!$B$3&C5614","v":{"$error":"#N/A"}},{"$f":"'Sundurliðun Útlán'!P230","v":0},".M.EUKULOL.XX.ERO.XXX.XXXX.SX.XXX.CHF.IS.N.M"]
[{"$f":"\"INN.\"&EIGNIR!$B$3&C5615","v":{"$error":"#N/A"}},{"$f":"'Sundurliðun Útlán'!P231","v":0},".M.EUKULOL.XX.ERA.XXX.XXXX.SX.XXX.CHF.IS.N.M"]
[{"$f":"\"INN.\"&EIGNIR!$B$3&C5616","v":{"$error":"#N/A"}},{"$f":"'Sundurliðun Útlán'!P232","v":0},".M.EUKNF$$.XX.XXX.XXX.XXXX.SX.XXX.CHF.IS.N.M"]
[{"$f":"\"INN.\"&EIGNIR!$B$3&C5617","v":{"$error":"#N/A"}},{"$f":"'Sundurliðun Útlán'!P233","v":0},".M.EUKNFAL.XX.XXX.XXX.XXXX.SX.XXX.CHF.IS.N.M"]
[{"$f":"\"INN.\"&EIGNIR!$B$3&C5618","v":{"$error":"#N/A"}},{"$f":"'Sundurliðun Útlán'!P234","v":0},".M.EUKNFST.XX.$$$.XXX.XXXX.SX.XXX.CHF.IS.N.M"]
[{"$f":"\"INN.\"&EIGNIR!$B$3&C5619","v":{"$error":"#N/A"}},{"$f":"'Sundurliðun Útlán'!P235","v":0},".M.EUKNFST.XX.ATV.XXX.XXXX.SX.XXX.CHF.IS.N.M"]
[{"$f":"\"INN.\"&EIGNIR!$B$3&C5620","v":{"$error":"#N/A"}},{"$f":"'Sundurliðun Útlán'!P236","v":0},".M.EUKNFST.XX.LAB.XXX.XXXX.SX.XXX.CHF.IS.N.M"]
[{"$f":"\"INN.\"&EIGNIR!$B$3&C5621","v":{"$error":"#N/A"}},{"$f":"'Sundurliðun Útlán'!P237","v":0},".M.EUKNFST.XX.SJA.XXX.XXXX.SX.XXX.CHF.IS.N.M"]
[{"$f":"\"INN.\"&EIGNIR!$B$3&C5622","v":{"$error":"#N/A"}},{"$f":"'Sundurliðun Útlán'!P238","v":0},".M.EUKNFST.XX.ILA.XXX.XXXX.SX.XXX.CHF.IS.N.M"]
[{"$f":"\"INN.\"&EIGNIR!$B$3&C5623","v":{"$error":"#N/A"}},{"$f":"'Sundurliðun Útlán'!P239","v":0},".M.EUKNFST.XX.ISJ.XXX.XXXX.SX.XXX.CHF.IS.N.M"]
[{"$f":"\"INN.\"&EIGNIR!$B$3&C5624","v":{"$error":"#N/A"}},{"$f":"'Sundurliðun Útlán'!P240","v":0},".M.EUKNFST.XX.IAN.XXX.XXXX.SX.XXX.CHF.IS.N.M"]
[{"$f":"\"INN.\"&EIGNIR!$B$3&C5625","v":{"$error":"#N/A"}},{"$f":"'Sundurliðun Útlán'!P241","v":0},".M.EUKNFST.XX.RAF.XXX.XXXX.SX.XXX.CHF.IS.N.M"]
[{"$f":"\"INN.\"&EIGNIR!$B$3&C5626","v":{"$error":"#N/A"}},{"$f":"'Sundurliðun Útlán'!P242","v":0},".M.EUKNFST.XX.MAN.XXX.XXXX.SX.XXX.CHF.IS.N.M"]
[{"$f":"\"INN.\"&EIGNIR!$B$3&C5627","v":{"$error":"#N/A"}},{"$f":"'Sundurliðun Útlán'!P243","v":0},".M.EUKNFST.XX.VEN.XXX.XXXX.SX.XXX.CHF.IS.N.M"]
[{"$f":"\"INN.\"&EIGNIR!$B$3&C5628","v":{"$error":"#N/A"}},{"$f":"'Sundurliðun Útlán'!P244","v":0},".M.EUKNFST.XX.SAG.XXX.XXXX.SX.XXX.CHF.IS.N.M"]
[{"$f":"\"INN.\"&EIGNIR!$B$3&C5629","v":{"$error":"#N/A"}},{"$f":"'Sundurliðun Útlán'!P245","v":0},".M.EUKNFST.XX.THF.XXX.XXXX.SX.XXX.CHF.IS.N.M"]
[{"$f":"\"INN.\"&EIGNIR!$B$3&C5630","v":{"$error":"#N/A"}},{"$f":"'Sundurliðun Útlán'!P246","v":0},".M.EUKNFST.XX.THH.XXX.XXXX.SX.XXX.CHF.IS.N.M"]
[{"$f":"\"INN.\"&EIGNIR!$B$3&C5631","v":{"$error":"#N/A"}},{"$f":"'Sundurliðun Útlán'!P247","v":0},".M.EUKNFST.XX.THA.XXX.XXXX.SX.XXX.CHF.IS.N.M"]
[{"$f":"\"INN.\"&EIGNIR!$B$3&C5632","v":{"$error":"#N/A"}},{"$f":"'Sundurliðun Útlán'!P248","v":0},".M.EUKNFST.XX.OFL.XXX.XXXX.SX.XXX.CHF.IS.N.M"]
[{"$f":"\"INN.\"&EIGNIR!$B$3&C5633","v":{"$error":"#N/A"}},{"$f":"'Sundurliðun Útlán'!P249","v":0},".M.EUKNFST.XX.FJA.XXX.XXXX.SX.XXX.CHF.IS.N.M"]
[{"$f":"\"INN.\"&EIGNIR!$B$3&C5634","v":{"$error":"#N/A"}},{"$f":"'Sundurliðun Útlán'!P250","v":0},".M.EUKNFST.XXINN.XXX.XXXX.SX.XXX.CHF.IS.N.M"]
[{"$f":"\"INN.\"&EIGNIR!$B$3&C5635","v":{"$error":"#N/A"}},{"$f":"'Sundurliðun Útlán'!P251","v":0},".M.EUKNFST.XX.SLI.XXX.XXXX.SX.XXX.CHF.IS.N.M"]
[{"$f":"\"INN.\"&EIGNIR!$B$3&C5636","v":{"$error":"#N/A"}},{"$f":"'Sundurliðun Útlán'!P252","v":0},".M.EUKNFST.XX.PEN.XXX.XXXX.SX.XXX.CHF.IS.N.M"]
[{"$f":"\"INN.\"&EIGNIR!$B$3&C5637","v":{"$error":"#N/A"}},{"$f":"'Sundurliðun Útlán'!P253","v":0},".M.EUKNFST.XX.SJO.XXX.XXXX.SX.XXX.CHF.IS.N.M"]
[{"$f":"\"INN.\"&EIGNIR!$B$3&C5638","v":{"$error":"#N/A"}},{"$f":"'Sundurliðun Útlán'!P254","v":0},".M.EUKNFST.XX.YFT.XXX.XXXX.SX.XXX.CHF.IS.N.M"]
[{"$f":"\"INN.\"&EIGNIR!$B$3&C5639","v":{"$error":"#N/A"}},{"$f":"'Sundurliðun Útlán'!P255","v":0},".M.EUKNFST.XX.SLY.XXX.XXXX.SX.XXX.CHF.IS.N.M"]
[{"$f":"\"INN.\"&EIGNIR!$B$3&C5640","v":{"$error":"#N/A"}},{"$f":"'Sundurliðun Útlán'!P256","v":0},".M.EUKNFST.XX.FHL.XXX.XXXX.SX.XXX.CHF.IS.N.M"]
[{"$f":"\"INN.\"&EIGNIR!$B$3&C5641","v":{"$error":"#N/A"}},{"$f":"'Sundurliðun Útlán'!P257","v":0},".M.EUKNFST.XX.INF.XXX.XXXX.SX.XXX.CHF.IS.N.M"]
[{"$f":"\"INN.\"&EIGNIR!$B$3&C5642","v":{"$error":"#N/A"}},{"$f":"'Sundurliðun Útlán'!P258","v":0},".M.EUKNFST.XX.TRY.XXX.XXXX.SX.XXX.CHF.IS.N.M"]
[{"$f":"\"INN.\"&EIGNIR!$B$3&C5643","v":{"$error":"#N/A"}},{"$f":"'Sundurliðun Útlán'!P259","v":0},".M.EUKNFST.XX.LIF.XXX.XXXX.SX.XXX.CHF.IS.N.M"]
[{"$f":"\"INN.\"&EIGNIR!$B$3&C5644","v":{"$error":"#N/A"}},{"$f":"'Sundurliðun Útlán'!P260","v":0},".M.EUKNFST.XX.OPI.XXX.XXXX.SX.XXX.CHF.IS.N.M"]
[{"$f":"\"INN.\"&EIGNIR!$B$3&C5645","v":{"$error":"#N/A"}},{"$f":"'Sundurliðun Útlán'!P261","v":0},".M.EUKNFST.XX.RSS.XXX.XXXX.SX.XXX.CHF.IS.N.M"]
[{"$f":"\"INN.\"&EIGNIR!$B$3&C5646","v":{"$error":"#N/A"}},{"$f":"'Sundurliðun Útlán'!P262","v":0},".M.EUKNFST.XX.BAJ.XXX.XXXX.SX.XXX.CHF.IS.N.M"]
[{"$f":"\"INN.\"&EIGNIR!$B$3&C5647","v":{"$error":"#N/A"}},{"$f":"'Sundurliðun Útlán'!P263","v":0},".M.EUKNFST.XX.EIN.XXX.XXXX.SX.XXX.CHF.IS.N.M"]
[{"$f":"\"INN.\"&EIGNIR!$B$3&C5648","v":{"$error":"#N/A"}},{"$f":"'Sundurliðun Útlán'!P264","v":0},".M.EUKNFST.XX.NPH.XXX.XXXX.SX.XXX.CHF.IS.N.M"]
[{"$f":"\"INN.\"&EIGNIR!$B$3&C5649","v":{"$error":"#N/A"}},{"$f":"'Sundurliðun Útlán'!P265","v":0},".M.EUKNFER.XX.ERL.XXX.XXXX.SX.XXX.CHF.IS.N.M"]
[{"$f":"\"INN.\"&EIGNIR!$B$3&C5650","v":{"$error":"#N/A"}},{"$f":"'Sundurliðun Útlán'!P266","v":0},".M.EUKNFEH.XX.ERL.XXX.XXXX.SX.XXX.CHF.IS.N.M"]
[{"$f":"\"INN.\"&EIGNIR!$B$3&C5651","v":{"$error":"#N/A"}},{"$f":"'Sundurliðun Útlán'!P268","v":0},".M.EUKNFEH.XX.ERI.XXX.XXXX.SX.XXX.CHF.IS.N.M"]
[{"$f":"\"INN.\"&EIGNIR!$B$3&C5652","v":{"$error":"#N/A"}},{"$f":"'Sundurliðun Útlán'!P271","v":0},".M.EUKNFEH.XX.ERF.XXX.XXXX.SX.XXX.CHF.IS.N.M"]
[{"$f":"\"INN.\"&EIGNIR!$B$3&C5653","v":{"$error":"#N/A"}},{"$f":"'Sundurliðun Útlán'!P273","v":0},".M.EUKNFEH.XX.ERA.XXX.XXXX.SX.XXX.CHF.IS.N.M"]
[{"$f":"\"INN.\"&EIGNIR!$B$3&C5654","v":{"$error":"#N/A"}},{"$f":"'Sundurliðun Útlán'!P274","v":0},".M.EUKNFED.XX.ERL.XXX.XXXX.SX.XXX.CHF.IS.N.M"]
[{"$f":"\"INN.\"&EIGNIR!$B$3&C5655","v":{"$error":"#N/A"}},{"$f":"'Sundurliðun Útlán'!P276","v":0},".M.EUKNFED.XX.ERI.XXX.XXXX.SX.XXX.CHF.IS.N.M"]
[{"$f":"\"INN.\"&EIGNIR!$B$3&C5656","v":{"$error":"#N/A"}},{"$f":"'Sundurliðun Útlán'!P279","v":0},".M.EUKNFED.XX.ERF.XXX.XXXX.SX.XXX.CHF.IS.N.M"]
[{"$f":"\"INN.\"&EIGNIR!$B$3&C5657","v":{"$error":"#N/A"}},{"$f":"'Sundurliðun Útlán'!P281","v":0},".M.EUKNFED.XX.ERA.XXX.XXXX.SX.XXX.CHF.IS.N.M"]
[{"$f":"\"INN.\"&EIGNIR!$B$3&C5658","v":{"$error":"#N/A"}},{"$f":"'Sundurliðun Útlán'!P282","v":0},".M.EUKNFFF.XX.ERL.XXX.XXXX.SX.XXX.CHF.IS.N.M"]
[{"$f":"\"INN.\"&EIGNIR!$B$3&C5659","v":{"$error":"#N/A"}},{"$f":"'Sundurliðun Útlán'!P284","v":0},".M.EUKNFFF.XX.ERI.XXX.XXXX.SX.XXX.CHF.IS.N.M"]
[{"$f":"\"INN.\"&EIGNIR!$B$3&C5660","v":{"$error":"#N/A"}},{"$f":"'Sundurliðun Útlán'!P287","v":0},".M.EUKNFFF.XX.ERF.XXX.XXXX.SX.XXX.CHF.IS.N.M"]
[{"$f":"\"INN.\"&EIGNIR!$B$3&C5661","v":{"$error":"#N/A"}},{"$f":"'Sundurliðun Útlán'!P289","v":0},".M.EUKNFFF.XX.ERA.XXX.XXXX.SX.XXX.CHF.IS.N.M"]
[{"$f":"\"INN.\"&EIGNIR!$B$3&C5662","v":{"$error":"#N/A"}},{"$f":"'Sundurliðun Útlán'!P290","v":0},".M.EUKNFOL.XX.ERL.XXX.XXXX.SX.XXX.CHF.IS.N.M"]
[{"$f":"\"INN.\"&EIGNIR!$B$3&C5663","v":{"$error":"#N/A"}},{"$f":"'Sundurliðun Útlán'!P292","v":0},".M.EUKNFOL.XX.ERI.XXX.XXXX.SX.XXX.CHF.IS.N.M"]
[{"$f":"\"INN.\"&EIGNIR!$B$3&C5664","v":{"$error":"#N/A"}},{"$f":"'Sundurliðun Útlán'!P294","v":0},".M.EUKNFOL.XX.ERV.XXX.XXXX.SX.XXX.CHF.IS.N.M"]
[{"$f":"\"INN.\"&EIGNIR!$B$3&C5665","v":{"$error":"#N/A"}},{"$f":"'Sundurliðun Útlán'!P295","v":0},".M.EUKNFOL.XX.ERF.XXX.XXXX.SX.XXX.CHF.IS.N.M"]
[{"$f":"\"INN.\"&EIGNIR!$B$3&C5666","v":{"$error":"#N/A"}},{"$f":"'Sundurliðun Útlán'!P296","v":0},".M.EUKNFOL.XX.ERO.XXX.XXXX.SX.XXX.CHF.IS.N.M"]
[{"$f":"\"INN.\"&EIGNIR!$B$3&C5667","v":{"$error":"#N/A"}},{"$f":"'Sundurliðun Útlán'!P297","v":0},".M.EUKNFOL.XX.ERA.XXX.XXXX.SX.XXX.CHF.IS.N.M"]
[{"$f":"\"INN.\"&EIGNIR!$B$3&C5668","v":{"$error":"#N/A"}},{"$f":"'Sundurliðun Útlán'!Q5","v":0},".M.EUK$$$$.XX.$$$.XXX.XXXX.SX.XXX.ADR.IS.N.M","//Sundurliðun útlána, ADR"]
[{"$f":"\"INN.\"&EIGNIR!$B$3&C5669","v":{"$error":"#N/A"}},{"$f":"'Sundurliðun Útlán'!Q6","v":0},".M.EUKIT$$.XX.$$$.XXX.XXXX.SX.XXX.ADR.IS.N.M"]
[{"$f":"\"INN.\"&EIGNIR!$B$3&C5670","v":{"$error":"#N/A"}},{"$f":"'Sundurliðun Útlán'!Q7","v":0},".M.EUKITII.XX.XXX.XXX.XXXX.SX.XXX.ADR.IS.N.M"]
[{"$f":"\"INN.\"&EIGNIR!$B$3&C5671","v":{"$error":"#N/A"}},{"$f":"'Sundurliðun Útlán'!Q8","v":0},".M.EUKITIE.XX.XXX.XXX.XXXX.SX.XXX.ADR.IS.N.M"]
[{"$f":"\"INN.\"&EIGNIR!$B$3&C5672","v":{"$error":"#N/A"}},{"$f":"'Sundurliðun Útlán'!Q9","v":0},".M.EUKITIT.XX.XXX.XXX.XXXX.SX.XXX.ADR.IS.N.M"]
[{"$f":"\"INN.\"&EIGNIR!$B$3&C5673","v":{"$error":"#N/A"}},{"$f":"'Sundurliðun Útlán'!Q10","v":0},".M.EUKUL$$.XX.$$$.XXX.XXXX.SX.XXX.ADR.IS.N.M"]
[{"$f":"\"INN.\"&EIGNIR!$B$3&C5674","v":{"$error":"#N/A"}},{"$f":"'Sundurliðun Útlán'!Q11","v":0},".M.EUKULIA.XX.$$$.XXX.XXXX.SX.XXX.ADR.IS.N.M"]
[{"$f":"\"INN.\"&EIGNIR!$B$3&C5675","v":{"$error":"#N/A"}},{"$f":"'Sundurliðun Útlán'!Q12","v":0},".M.EUKULIA.XX.ATV.XXX.XXXX.SX.XXX.ADR.IS.N.M"]
[{"$f":"\"INN.\"&EIGNIR!$B$3&C5676","v":{"$error":"#N/A"}},{"$f":"'Sundurliðun Útlán'!Q26","v":0},".M.EUKULIA.XX.FJA.XXX.XXXX.SX.XXX.ADR.IS.N.M"]
[{"$f":"\"INN.\"&EIGNIR!$B$3&C5677","v":{"$error":"#N/A"}},{"$f":"'Sundurliðun Útlán'!Q27","v":0},".M.EUKULIA.XX.INN.XXX.XXXX.SX.XXX.ADR.IS.N.M"]
[{"$f":"\"INN.\"&EIGNIR!$B$3&C5678","v":{"$error":"#N/A"}},{"$f":"'Sundurliðun Útlán'!Q28","v":0},".M.EUKULIA.XX.SLI.XXX.XXXX.SX.XXX.ADR.IS.N.M"]
[{"$f":"\"INN.\"&EIGNIR!$B$3&C5679","v":{"$error":"#N/A"}},{"$f":"'Sundurliðun Útlán'!Q29","v":0},".M.EUKULIA.XX.PEN.XXX.XXXX.SX.XXX.ADR.IS.N.M"]
[{"$f":"\"INN.\"&EIGNIR!$B$3&C5680","v":{"$error":"#N/A"}},{"$f":"'Sundurliðun Útlán'!Q30","v":0},".M.EUKULIA.XX.SJO.XXX.XXXX.SX.XXX.ADR.IS.N.M"]
[{"$f":"\"INN.\"&EIGNIR!$B$3&C5681","v":{"$error":"#N/A"}},{"$f":"'Sundurliðun Útlán'!Q31","v":0},".M.EUKULIA.XX.YFT.XXX.XXXX.SX.XXX.ADR.IS.N.M"]
[{"$f":"\"INN.\"&EIGNIR!$B$3&C5682","v":{"$error":"#N/A"}},{"$f":"'Sundurliðun Útlán'!Q32","v":0},".M.EUKULIA.XX.SLY.XXX.XXXX.SX.XXX.ADR.IS.N.M"]
[{"$f":"\"INN.\"&EIGNIR!$B$3&C5683","v":{"$error":"#N/A"}},{"$f":"'Sundurliðun Útlán'!Q33","v":0},".M.EUKULIA.XX.FHL.XXX.XXXX.SX.XXX.ADR.IS.N.M"]
[{"$f":"\"INN.\"&EIGNIR!$B$3&C5684","v":{"$error":"#N/A"}},{"$f":"'Sundurliðun Útlán'!Q34","v":0},".M.EUKULIA.XX.INF.XXX.XXXX.SX.XXX.ADR.IS.N.M"]
[{"$f":"\"INN.\"&EIGNIR!$B$3&C5685","v":{"$error":"#N/A"}},{"$f":"'Sundurliðun Útlán'!Q35","v":0},".M.EUKULIA.XX.TRY.XXX.XXXX.SX.XXX.ADR.IS.N.M"]
[{"$f":"\"INN.\"&EIGNIR!$B$3&C5686","v":{"$error":"#N/A"}},{"$f":"'Sundurliðun Útlán'!Q36","v":0},".M.EUKULIA.XX.LIF.XXX.XXXX.SX.XXX.ADR.IS.N.M"]
[{"$f":"\"INN.\"&EIGNIR!$B$3&C5687","v":{"$error":"#N/A"}},{"$f":"'Sundurliðun Útlán'!Q37","v":0},".M.EUKULIA.XX.OPI.XXX.XXXX.SX.XXX.ADR.IS.N.M"]
[{"$f":"\"INN.\"&EIGNIR!$B$3&C5688","v":{"$error":"#N/A"}},{"$f":"'Sundurliðun Útlán'!Q38","v":0},".M.EUKULIA.XX.RSS.XXX.XXXX.SX.XXX.ADR.IS.N.M"]
[{"$f":"\"INN.\"&EIGNIR!$B$3&C5689","v":{"$error":"#N/A"}},{"$f":"'Sundurliðun Útlán'!Q39","v":0},".M.EUKULIA.XX.BAJ.XXX.XXXX.SX.XXX.ADR.IS.N.M"]
[{"$f":"\"INN.\"&EIGNIR!$B$3&C5690","v":{"$error":"#N/A"}},{"$f":"'Sundurliðun Útlán'!Q40","v":0},".M.EUKULIA.XX.EIN.XXX.XXXX.SX.XXX.ADR.IS.N.M"]
[{"$f":"\"INN.\"&EIGNIR!$B$3&C5691","v":{"$error":"#N/A"}},{"$f":"'Sundurliðun Útlán'!Q41","v":0},".M.EUKULIA.XX.NPH.XXX.XXXX.SX.XXX.ADR.IS.N.M"]
[{"$f":"\"INN.\"&EIGNIR!$B$3&C5692","v":{"$error":"#N/A"}},{"$f":"'Sundurliðun Útlán'!Q42","v":0},".M.EUKULYL.XX.$$$.XXX.XXXX.SX.XXX.ADR.IS.N.M"]
[{"$f":"\"INN.\"&EIGNIR!$B$3&C5693","v":{"$error":"#N/A"}},{"$f":"'Sundurliðun Útlán'!Q43","v":0},".M.EUKULYL.XX.ATV.XXX.XXXX.SX.XXX.ADR.IS.N.M"]
[{"$f":"\"INN.\"&EIGNIR!$B$3&C5694","v":{"$error":"#N/A"}},{"$f":"'Sundurliðun Útlán'!Q57","v":0},".M.EUKULYL.XX.FJA.XXX.XXXX.SX.XXX.ADR.IS.N.M"]
[{"$f":"\"INN.\"&EIGNIR!$B$3&C5695","v":{"$error":"#N/A"}},{"$f":"'Sundurliðun Útlán'!Q58","v":0},".M.EUKULYL.XX.INN.XXX.XXXX.SX.XXX.ADR.IS.N.M"]
[{"$f":"\"INN.\"&EIGNIR!$B$3&C5696","v":{"$error":"#N/A"}},{"$f":"'Sundurliðun Útlán'!Q59","v":0},".M.EUKULYL.XX.SLI.XXX.XXXX.SX.XXX.ADR.IS.N.M"]
[{"$f":"\"INN.\"&EIGNIR!$B$3&C5697","v":{"$error":"#N/A"}},{"$f":"'Sundurliðun Útlán'!Q60","v":0},".M.EUKULYL.XX.PEN.XXX.XXXX.SX.XXX.ADR.IS.N.M"]
[{"$f":"\"INN.\"&EIGNIR!$B$3&C5698","v":{"$error":"#N/A"}},{"$f":"'Sundurliðun Útlán'!Q61","v":0},".M.EUKULYL.XX.SJO.XXX.XXXX.SX.XXX.ADR.IS.N.M"]
[{"$f":"\"INN.\"&EIGNIR!$B$3&C5699","v":{"$error":"#N/A"}},{"$f":"'Sundurliðun Útlán'!Q62","v":0},".M.EUKULYL.XX.YFT.XXX.XXXX.SX.XXX.ADR.IS.N.M"]
[{"$f":"\"INN.\"&EIGNIR!$B$3&C5700","v":{"$error":"#N/A"}},{"$f":"'Sundurliðun Útlán'!Q63","v":0},".M.EUKULYL.XX.SLY.XXX.XXXX.SX.XXX.ADR.IS.N.M"]
[{"$f":"\"INN.\"&EIGNIR!$B$3&C5701","v":{"$error":"#N/A"}},{"$f":"'Sundurliðun Útlán'!Q64","v":0},".M.EUKULYL.XX.FHL.XXX.XXXX.SX.XXX.ADR.IS.N.M"]
[{"$f":"\"INN.\"&EIGNIR!$B$3&C5702","v":{"$error":"#N/A"}},{"$f":"'Sundurliðun Útlán'!Q65","v":0},".M.EUKULYL.XX.INF.XXX.XXXX.SX.XXX.ADR.IS.N.M"]
[{"$f":"\"INN.\"&EIGNIR!$B$3&C5703","v":{"$error":"#N/A"}},{"$f":"'Sundurliðun Útlán'!Q66","v":0},".M.EUKULYL.XX.TRY.XXX.XXXX.SX.XXX.ADR.IS.N.M"]
[{"$f":"\"INN.\"&EIGNIR!$B$3&C5704","v":{"$error":"#N/A"}},{"$f":"'Sundurliðun Útlán'!Q67","v":0},".M.EUKULYL.XX.LIF.XXX.XXXX.SX.XXX.ADR.IS.N.M"]
[{"$f":"\"INN.\"&EIGNIR!$B$3&C5705","v":{"$error":"#N/A"}},{"$f":"'Sundurliðun Útlán'!Q68","v":0},".M.EUKULYL.XX.OPI.XXX.XXXX.SX.XXX.ADR.IS.N.M"]
[{"$f":"\"INN.\"&EIGNIR!$B$3&C5706","v":{"$error":"#N/A"}},{"$f":"'Sundurliðun Útlán'!Q69","v":0},".M.EUKULYL.XX.RSS.XXX.XXXX.SX.XXX.ADR.IS.N.M"]
[{"$f":"\"INN.\"&EIGNIR!$B$3&C5707","v":{"$error":"#N/A"}},{"$f":"'Sundurliðun Útlán'!Q70","v":0},".M.EUKULYL.XX.BAJ.XXX.XXXX.SX.XXX.ADR.IS.N.M"]
[{"$f":"\"INN.\"&EIGNIR!$B$3&C5708","v":{"$error":"#N/A"}},{"$f":"'Sundurliðun Útlán'!Q71","v":0},".M.EUKULYL.XX.EIN.XXX.XXXX.SX.XXX.ADR.IS.N.M"]
[{"$f":"\"INN.\"&EIGNIR!$B$3&C5709","v":{"$error":"#N/A"}},{"$f":"'Sundurliðun Útlán'!Q72","v":0},".M.EUKULYL.XX.NPH.XXX.XXXX.SX.XXX.ADR.IS.N.M"]
[{"$f":"\"INN.\"&EIGNIR!$B$3&C5710","v":{"$error":"#N/A"}},{"$f":"'Sundurliðun Útlán'!Q73","v":0},".M.EUKULVX.XX.$$$.XXX.XXXX.SX.XXX.ADR.IS.N.M"]
[{"$f":"\"INN.\"&EIGNIR!$B$3&C5711","v":{"$error":"#N/A"}},{"$f":"'Sundurliðun Útlán'!Q74","v":0},".M.EUKULVX.XX.ATV.XXX.XXXX.SX.XXX.ADR.IS.N.M"]
[{"$f":"\"INN.\"&EIGNIR!$B$3&C5712","v":{"$error":"#N/A"}},{"$f":"'Sundurliðun Útlán'!Q88","v":0},".M.EUKULVX.XX.FJA.XXX.XXXX.SX.XXX.ADR.IS.N.M"]
[{"$f":"\"INN.\"&EIGNIR!$B$3&C5713","v":{"$error":"#N/A"}},{"$f":"'Sundurliðun Útlán'!Q89","v":0},".M.EUKULVX.XX.INN.XXX.XXXX.SX.XXX.ADR.IS.N.M"]
[{"$f":"\"INN.\"&EIGNIR!$B$3&C5714","v":{"$error":"#N/A"}},{"$f":"'Sundurliðun Útlán'!Q90","v":0},".M.EUKULVX.XX.SLI.XXX.XXXX.SX.XXX.ADR.IS.N.M"]
[{"$f":"\"INN.\"&EIGNIR!$B$3&C5715","v":{"$error":"#N/A"}},{"$f":"'Sundurliðun Útlán'!Q91","v":0},".M.EUKULVX.XX.PEN.XXX.XXXX.SX.XXX.ADR.IS.N.M"]
[{"$f":"\"INN.\"&EIGNIR!$B$3&C5716","v":{"$error":"#N/A"}},{"$f":"'Sundurliðun Útlán'!Q92","v":0},".M.EUKULVX.XX.SJO.XXX.XXXX.SX.XXX.ADR.IS.N.M"]
[{"$f":"\"INN.\"&EIGNIR!$B$3&C5717","v":{"$error":"#N/A"}},{"$f":"'Sundurliðun Útlán'!Q93","v":0},".M.EUKULVX.XX.YFT.XXX.XXXX.SX.XXX.ADR.IS.N.M"]
[{"$f":"\"INN.\"&EIGNIR!$B$3&C5718","v":{"$error":"#N/A"}},{"$f":"'Sundurliðun Útlán'!Q94","v":0},".M.EUKULVX.XX.SLY.XXX.XXXX.SX.XXX.ADR.IS.N.M"]
[{"$f":"\"INN.\"&EIGNIR!$B$3&C5719","v":{"$error":"#N/A"}},{"$f":"'Sundurliðun Útlán'!Q95","v":0},".M.EUKULVX.XX.FHL.XXX.XXXX.SX.XXX.ADR.IS.N.M"]
[{"$f":"\"INN.\"&EIGNIR!$B$3&C5720","v":{"$error":"#N/A"}},{"$f":"'Sundurliðun Útlán'!Q96","v":0},".M.EUKULVX.XX.INF.XXX.XXXX.SX.XXX.ADR.IS.N.M"]
[{"$f":"\"INN.\"&EIGNIR!$B$3&C5721","v":{"$error":"#N/A"}},{"$f":"'Sundurliðun Útlán'!Q97","v":0},".M.EUKULVX.XX.TRY.XXX.XXXX.SX.XXX.ADR.IS.N.M"]
[{"$f":"\"INN.\"&EIGNIR!$B$3&C5722","v":{"$error":"#N/A"}},{"$f":"'Sundurliðun Útlán'!Q98","v":0},".M.EUKULVX.XX.LIF.XXX.XXXX.SX.XXX.ADR.IS.N.M"]
[{"$f":"\"INN.\"&EIGNIR!$B$3&C5723","v":{"$error":"#N/A"}},{"$f":"'Sundurliðun Útlán'!Q99","v":0},".M.EUKULVX.XX.OPI.XXX.XXXX.SX.XXX.ADR.IS.N.M"]
[{"$f":"\"INN.\"&EIGNIR!$B$3&C5724","v":{"$error":"#N/A"}},{"$f":"'Sundurliðun Útlán'!Q100","v":0},".M.EUKULVX.XX.RSS.XXX.XXXX.SX.XXX.ADR.IS.N.M"]
[{"$f":"\"INN.\"&EIGNIR!$B$3&C5725","v":{"$error":"#N/A"}},{"$f":"'Sundurliðun Útlán'!Q101","v":0},".M.EUKULVX.XX.BAJ.XXX.XXXX.SX.XXX.ADR.IS.N.M"]
[{"$f":"\"INN.\"&EIGNIR!$B$3&C5726","v":{"$error":"#N/A"}},{"$f":"'Sundurliðun Útlán'!Q102","v":0},".M.EUKULVX.XX.EIN.XXX.XXXX.SX.XXX.ADR.IS.N.M"]
[{"$f":"\"INN.\"&EIGNIR!$B$3&C5727","v":{"$error":"#N/A"}},{"$f":"'Sundurliðun Útlán'!Q103","v":0},".M.EUKULVX.XX.NPH.XXX.XXXX.SX.XXX.ADR.IS.N.M"]
[{"$f":"\"INN.\"&EIGNIR!$B$3&C5728","v":{"$error":"#N/A"}},{"$f":"'Sundurliðun Útlán'!Q136","v":0},".M.EUKULOU.XX.$$$.XXX.XXXX.SX.XXX.ADR.IS.N.M"]
[{"$f":"\"INN.\"&EIGNIR!$B$3&C5729","v":{"$error":"#N/A"}},{"$f":"'Sundurliðun Útlán'!Q137","v":0},".M.EUKULOU.XX.ATV.XXX.XXXX.SX.XXX.ADR.IS.N.M"]
[{"$f":"\"INN.\"&EIGNIR!$B$3&C5730","v":{"$error":"#N/A"}},{"$f":"'Sundurliðun Útlán'!Q151","v":0},".M.EUKULOU.XX.FJA.XXX.XXXX.SX.XXX.ADR.IS.N.M"]
[{"$f":"\"INN.\"&EIGNIR!$B$3&C5731","v":{"$error":"#N/A"}},{"$f":"'Sundurliðun Útlán'!Q152","v":0},".M.EUKULOU.XX.INN.XXX.XXXX.SX.XXX.ADR.IS.N.M"]
[{"$f":"\"INN.\"&EIGNIR!$B$3&C5732","v":{"$error":"#N/A"}},{"$f":"'Sundurliðun Útlán'!Q153","v":0},".M.EUKULOU.XX.SLI.XXX.XXXX.SX.XXX.ADR.IS.N.M"]
[{"$f":"\"INN.\"&EIGNIR!$B$3&C5733","v":{"$error":"#N/A"}},{"$f":"'Sundurliðun Útlán'!Q154","v":0},".M.EUKULOU.XX.PEN.XXX.XXXX.SX.XXX.ADR.IS.N.M"]
[{"$f":"\"INN.\"&EIGNIR!$B$3&C5734","v":{"$error":"#N/A"}},{"$f":"'Sundurliðun Útlán'!Q155","v":0},".M.EUKULOU.XX.SJO.XXX.XXXX.SX.XXX.ADR.IS.N.M"]
[{"$f":"\"INN.\"&EIGNIR!$B$3&C5735","v":{"$error":"#N/A"}},{"$f":"'Sundurliðun Útlán'!Q156","v":0},".M.EUKULOU.XX.YFT.XXX.XXXX.SX.XXX.ADR.IS.N.M"]
[{"$f":"\"INN.\"&EIGNIR!$B$3&C5736","v":{"$error":"#N/A"}},{"$f":"'Sundurliðun Útlán'!Q157","v":0},".M.EUKULOU.XX.SLY.XXX.XXXX.SX.XXX.ADR.IS.N.M"]
[{"$f":"\"INN.\"&EIGNIR!$B$3&C5737","v":{"$error":"#N/A"}},{"$f":"'Sundurliðun Útlán'!Q158","v":0},".M.EUKULOU.XX.FHL.XXX.XXXX.SX.XXX.ADR.IS.N.M"]
[{"$f":"\"INN.\"&EIGNIR!$B$3&C5738","v":{"$error":"#N/A"}},{"$f":"'Sundurliðun Útlán'!Q159","v":0},".M.EUKULOU.XX.INF.XXX.XXXX.SX.XXX.ADR.IS.N.M"]
[{"$f":"\"INN.\"&EIGNIR!$B$3&C5739","v":{"$error":"#N/A"}},{"$f":"'Sundurliðun Útlán'!Q160","v":0},".M.EUKULOU.XX.TRY.XXX.XXXX.SX.XXX.ADR.IS.N.M"]
[{"$f":"\"INN.\"&EIGNIR!$B$3&C5740","v":{"$error":"#N/A"}},{"$f":"'Sundurliðun Útlán'!Q161","v":0},".M.EUKULOU.XX.LIF.XXX.XXXX.SX.XXX.ADR.IS.N.M"]
[{"$f":"\"INN.\"&EIGNIR!$B$3&C5741","v":{"$error":"#N/A"}},{"$f":"'Sundurliðun Útlán'!Q162","v":0},".M.EUKULOU.XX.OPI.XXX.XXXX.SX.XXX.ADR.IS.N.M"]
[{"$f":"\"INN.\"&EIGNIR!$B$3&C5742","v":{"$error":"#N/A"}},{"$f":"'Sundurliðun Útlán'!Q163","v":0},".M.EUKULOU.XX.RSS.XXX.XXXX.SX.XXX.ADR.IS.N.M"]
[{"$f":"\"INN.\"&EIGNIR!$B$3&C5743","v":{"$error":"#N/A"}},{"$f":"'Sundurliðun Útlán'!Q164","v":0},".M.EUKULOU.XX.BAJ.XXX.XXXX.SX.XXX.ADR.IS.N.M"]
[{"$f":"\"INN.\"&EIGNIR!$B$3&C5744","v":{"$error":"#N/A"}},{"$f":"'Sundurliðun Útlán'!Q165","v":0},".M.EUKULOU.XX.EIB.XXX.XXXX.SX.XXX.ADR.IS.N.M"]
[{"$f":"\"INN.\"&EIGNIR!$B$3&C5745","v":{"$error":"#N/A"}},{"$f":"'Sundurliðun Útlán'!Q166","v":0},".M.EUKULOU.XX.ANN.XXX.XXXX.SX.XXX.ADR.IS.N.M"]
[{"$f":"\"INN.\"&EIGNIR!$B$3&C5746","v":{"$error":"#N/A"}},{"$f":"'Sundurliðun Útlán'!Q167","v":0},".M.EUKULOU.XX.NPH.XXX.XXXX.SX.XXX.ADR.IS.N.M"]
[{"$f":"\"INN.\"&EIGNIR!$B$3&C5747","v":{"$error":"#N/A"}},{"$f":"'Sundurliðun Útlán'!Q168","v":0},".M.EUKULEL.XX.$$$.XXX.XXXX.SX.XXX.ADR.IS.N.M"]
[{"$f":"\"INN.\"&EIGNIR!$B$3&C5748","v":{"$error":"#N/A"}},{"$f":"'Sundurliðun Útlán'!Q169","v":0},".M.EUKULEL.XX.ATV.XXX.XXXX.SX.XXX.ADR.IS.N.M"]
[{"$f":"\"INN.\"&EIGNIR!$B$3&C5749","v":{"$error":"#N/A"}},{"$f":"'Sundurliðun Útlán'!Q183","v":0},".M.EUKULEL.XX.FJA.XXX.XXXX.SX.XXX.ADR.IS.N.M"]
[{"$f":"\"INN.\"&EIGNIR!$B$3&C5750","v":{"$error":"#N/A"}},{"$f":"'Sundurliðun Útlán'!Q184","v":0},".M.EUKULEL.XX.INN.XXX.XXXX.SX.XXX.ADR.IS.N.M"]
[{"$f":"\"INN.\"&EIGNIR!$B$3&C5751","v":{"$error":"#N/A"}},{"$f":"'Sundurliðun Útlán'!Q185","v":0},".M.EUKULEL.XX.SLI.XXX.XXXX.SX.XXX.ADR.IS.N.M"]
[{"$f":"\"INN.\"&EIGNIR!$B$3&C5752","v":{"$error":"#N/A"}},{"$f":"'Sundurliðun Útlán'!Q186","v":0},".M.EUKULEL.XX.PEN.XXX.XXXX.SX.XXX.ADR.IS.N.M"]
[{"$f":"\"INN.\"&EIGNIR!$B$3&C5753","v":{"$error":"#N/A"}},{"$f":"'Sundurliðun Útlán'!Q187","v":0},".M.EUKULEL.XX.SJO.XXX.XXXX.SX.XXX.ADR.IS.N.M"]
[{"$f":"\"INN.\"&EIGNIR!$B$3&C5754","v":{"$error":"#N/A"}},{"$f":"'Sundurliðun Útlán'!Q188","v":0},".M.EUKULEL.XX.YFT.XXX.XXXX.SX.XXX.ADR.IS.N.M"]
[{"$f":"\"INN.\"&EIGNIR!$B$3&C5755","v":{"$error":"#N/A"}},{"$f":"'Sundurliðun Útlán'!Q189","v":0},".M.EUKULEL.XX.SLY.XXX.XXXX.SX.XXX.ADR.IS.N.M"]
[{"$f":"\"INN.\"&EIGNIR!$B$3&C5756","v":{"$error":"#N/A"}},{"$f":"'Sundurliðun Útlán'!Q190","v":0},".M.EUKULEL.XX.FHL.XXX.XXXX.SX.XXX.ADR.IS.N.M"]
[{"$f":"\"INN.\"&EIGNIR!$B$3&C5757","v":{"$error":"#N/A"}},{"$f":"'Sundurliðun Útlán'!Q191","v":0},".M.EUKULEL.XX.INF.XXX.XXXX.SX.XXX.ADR.IS.N.M"]
[{"$f":"\"INN.\"&EIGNIR!$B$3&C5758","v":{"$error":"#N/A"}},{"$f":"'Sundurliðun Útlán'!Q192","v":0},".M.EUKULEL.XX.TRY.XXX.XXXX.SX.XXX.ADR.IS.N.M"]
[{"$f":"\"INN.\"&EIGNIR!$B$3&C5759","v":{"$error":"#N/A"}},{"$f":"'Sundurliðun Útlán'!Q193","v":0},".M.EUKULEL.XX.LIF.XXX.XXXX.SX.XXX.ADR.IS.N.M"]
[{"$f":"\"INN.\"&EIGNIR!$B$3&C5760","v":{"$error":"#N/A"}},{"$f":"'Sundurliðun Útlán'!Q194","v":0},".M.EUKULEL.XX.OPI.XXX.XXXX.SX.XXX.ADR.IS.N.M"]
[{"$f":"\"INN.\"&EIGNIR!$B$3&C5761","v":{"$error":"#N/A"}},{"$f":"'Sundurliðun Útlán'!Q195","v":0},".M.EUKULEL.XX.RSS.XXX.XXXX.SX.XXX.ADR.IS.N.M"]
[{"$f":"\"INN.\"&EIGNIR!$B$3&C5762","v":{"$error":"#N/A"}},{"$f":"'Sundurliðun Útlán'!Q196","v":0},".M.EUKULEL.XX.BAJ.XXX.XXXX.SX.XXX.ADR.IS.N.M"]
[{"$f":"\"INN.\"&EIGNIR!$B$3&C5763","v":{"$error":"#N/A"}},{"$f":"'Sundurliðun Útlán'!Q197","v":0},".M.EUKULEL.XX.EIN.XXX.XXXX.SX.XXX.ADR.IS.N.M"]
[{"$f":"\"INN.\"&EIGNIR!$B$3&C5764","v":{"$error":"#N/A"}},{"$f":"'Sundurliðun Útlán'!Q198","v":0},".M.EUKULEL.XX.NPH.XXX.XXXX.SX.XXX.ADR.IS.N.M"]
[{"$f":"\"INN.\"&EIGNIR!$B$3&C5765","v":{"$error":"#N/A"}},{"$f":"'Sundurliðun Útlán'!Q199","v":0},".M.EUKULUE.XX.$$$.XXX.XXXX.SX.XXX.ADR.IS.N.M"]
[{"$f":"\"INN.\"&EIGNIR!$B$3&C5766","v":{"$error":"#N/A"}},{"$f":"'Sundurliðun Útlán'!Q200","v":0},".M.EUKULEH.XX.ERL.XXX.XXXX.SX.XXX.ADR.IS.N.M"]
[{"$f":"\"INN.\"&EIGNIR!$B$3&C5767","v":{"$error":"#N/A"}},{"$f":"'Sundurliðun Útlán'!Q202","v":0},".M.EUKULEH.XX.ERI.XXX.XXXX.SX.XXX.ADR.IS.N.M"]
[{"$f":"\"INN.\"&EIGNIR!$B$3&C5768","v":{"$error":"#N/A"}},{"$f":"'Sundurliðun Útlán'!Q205","v":0},".M.EUKULEH.XX.ERF.XXX.XXXX.SX.XXX.ADR.IS.N.M"]
[{"$f":"\"INN.\"&EIGNIR!$B$3&C5769","v":{"$error":"#N/A"}},{"$f":"'Sundurliðun Útlán'!Q207","v":0},".M.EUKULEH.XX.ERA.XXX.XXXX.SX.XXX.ADR.IS.N.M"]
[{"$f":"\"INN.\"&EIGNIR!$B$3&C5770","v":{"$error":"#N/A"}},{"$f":"'Sundurliðun Útlán'!Q208","v":0},".M.EUKULED.XX.ERL.XXX.XXXX.SX.XXX.ADR.IS.N.M"]
[{"$f":"\"INN.\"&EIGNIR!$B$3&C5771","v":{"$error":"#N/A"}},{"$f":"'Sundurliðun Útlán'!Q210","v":0},".M.EUKULED.XX.ERI.XXX.XXXX.SX.XXX.ADR.IS.N.M"]
[{"$f":"\"INN.\"&EIGNIR!$B$3&C5772","v":{"$error":"#N/A"}},{"$f":"'Sundurliðun Útlán'!Q213","v":0},".M.EUKULED.XX.ERF.XXX.XXXX.SX.XXX.ADR.IS.N.M"]
[{"$f":"\"INN.\"&EIGNIR!$B$3&C5773","v":{"$error":"#N/A"}},{"$f":"'Sundurliðun Útlán'!Q215","v":0},".M.EUKULED.XX.ERA.XXX.XXXX.SX.XXX.ADR.IS.N.M"]
[{"$f":"\"INN.\"&EIGNIR!$B$3&C5774","v":{"$error":"#N/A"}},{"$f":"'Sundurliðun Útlán'!Q216","v":0},".M.EUKULFF.XX.ERL.XXX.XXXX.SX.XXX.ADR.IS.N.M"]
[{"$f":"\"INN.\"&EIGNIR!$B$3&C5775","v":{"$error":"#N/A"}},{"$f":"'Sundurliðun Útlán'!Q218","v":0},".M.EUKULFF.XX.ERI.XXX.XXXX.SX.XXX.ADR.IS.N.M"]
[{"$f":"\"INN.\"&EIGNIR!$B$3&C5776","v":{"$error":"#N/A"}},{"$f":"'Sundurliðun Útlán'!Q221","v":0},".M.EUKULFF.XX.ERF.XXX.XXXX.SX.XXX.ADR.IS.N.M"]
[{"$f":"\"INN.\"&EIGNIR!$B$3&C5777","v":{"$error":"#N/A"}},{"$f":"'Sundurliðun Útlán'!Q223","v":0},".M.EUKULFF.XX.ERA.XXX.XXXX.SX.XXX.ADR.IS.N.M"]
[{"$f":"\"INN.\"&EIGNIR!$B$3&C5778","v":{"$error":"#N/A"}},{"$f":"'Sundurliðun Útlán'!Q224","v":0},".M.EUKULOL.XX.ERL.XXX.XXXX.SX.XXX.ADR.IS.N.M","//Önnur erlend lán"]
[{"$f":"\"INN.\"&EIGNIR!$B$3&C5779","v":{"$error":"#N/A"}},{"$f":"'Sundurliðun Útlán'!Q226","v":0},".M.EUKULOL.XX.ERI.XXX.XXXX.SX.XXX.ADR.IS.N.M"]
[{"$f":"\"INN.\"&EIGNIR!$B$3&C5780","v":{"$error":"#N/A"}},{"$f":"'Sundurliðun Útlán'!Q228","v":0},".M.EUKULOL.XX.ERV.XXX.XXXX.SX.XXX.ADR.IS.N.M"]
[{"$f":"\"INN.\"&EIGNIR!$B$3&C5781","v":{"$error":"#N/A"}},{"$f":"'Sundurliðun Útlán'!Q229","v":0},".M.EUKULOL.XX.ERF.XXX.XXXX.SX.XXX.ADR.IS.N.M"]
[{"$f":"\"INN.\"&EIGNIR!$B$3&C5782","v":{"$error":"#N/A"}},{"$f":"'Sundurliðun Útlán'!Q230","v":0},".M.EUKULOL.XX.ERO.XXX.XXXX.SX.XXX.ADR.IS.N.M"]
[{"$f":"\"INN.\"&EIGNIR!$B$3&C5783","v":{"$error":"#N/A"}},{"$f":"'Sundurliðun Útlán'!Q231","v":0},".M.EUKULOL.XX.ERA.XXX.XXXX.SX.XXX.ADR.IS.N.M"]
[{"$f":"\"INN.\"&EIGNIR!$B$3&C5784","v":{"$error":"#N/A"}},{"$f":"'Sundurliðun Útlán'!Q232","v":0},".M.EUKNF$$.XX.XXX.XXX.XXXX.SX.XXX.ADR.IS.N.M"]
[{"$f":"\"INN.\"&EIGNIR!$B$3&C5785","v":{"$error":"#N/A"}},{"$f":"'Sundurliðun Útlán'!Q233","v":0},".M.EUKNFAL.XX.XXX.XXX.XXXX.SX.XXX.ADR.IS.N.M"]
[{"$f":"\"INN.\"&EIGNIR!$B$3&C5786","v":{"$error":"#N/A"}},{"$f":"'Sundurliðun Útlán'!Q234","v":0},".M.EUKNFST.XX.$$$.XXX.XXXX.SX.XXX.ADR.IS.N.M"]
[{"$f":"\"INN.\"&EIGNIR!$B$3&C5787","v":{"$error":"#N/A"}},{"$f":"'Sundurliðun Útlán'!Q235","v":0},".M.EUKNFST.XX.ATV.XXX.XXXX.SX.XXX.ADR.IS.N.M"]
[{"$f":"\"INN.\"&EIGNIR!$B$3&C5788","v":{"$error":"#N/A"}},{"$f":"'Sundurliðun Útlán'!Q236","v":0},".M.EUKNFST.XX.LAB.XXX.XXXX.SX.XXX.ADR.IS.N.M"]
[{"$f":"\"INN.\"&EIGNIR!$B$3&C5789","v":{"$error":"#N/A"}},{"$f":"'Sundurliðun Útlán'!Q237","v":0},".M.EUKNFST.XX.SJA.XXX.XXXX.SX.XXX.ADR.IS.N.M"]
[{"$f":"\"INN.\"&EIGNIR!$B$3&C5790","v":{"$error":"#N/A"}},{"$f":"'Sundurliðun Útlán'!Q238","v":0},".M.EUKNFST.XX.ILA.XXX.XXXX.SX.XXX.ADR.IS.N.M"]
[{"$f":"\"INN.\"&EIGNIR!$B$3&C5791","v":{"$error":"#N/A"}},{"$f":"'Sundurliðun Útlán'!Q239","v":0},".M.EUKNFST.XX.ISJ.XXX.XXXX.SX.XXX.ADR.IS.N.M"]
[{"$f":"\"INN.\"&EIGNIR!$B$3&C5792","v":{"$error":"#N/A"}},{"$f":"'Sundurliðun Útlán'!Q240","v":0},".M.EUKNFST.XX.IAN.XXX.XXXX.SX.XXX.ADR.IS.N.M"]
[{"$f":"\"INN.\"&EIGNIR!$B$3&C5793","v":{"$error":"#N/A"}},{"$f":"'Sundurliðun Útlán'!Q241","v":0},".M.EUKNFST.XX.RAF.XXX.XXXX.SX.XXX.ADR.IS.N.M"]
[{"$f":"\"INN.\"&EIGNIR!$B$3&C5794","v":{"$error":"#N/A"}},{"$f":"'Sundurliðun Útlán'!Q242","v":0},".M.EUKNFST.XX.MAN.XXX.XXXX.SX.XXX.ADR.IS.N.M"]
[{"$f":"\"INN.\"&EIGNIR!$B$3&C5795","v":{"$error":"#N/A"}},{"$f":"'Sundurliðun Útlán'!Q243","v":0},".M.EUKNFST.XX.VEN.XXX.XXXX.SX.XXX.ADR.IS.N.M"]
[{"$f":"\"INN.\"&EIGNIR!$B$3&C5796","v":{"$error":"#N/A"}},{"$f":"'Sundurliðun Útlán'!Q244","v":0},".M.EUKNFST.XX.SAG.XXX.XXXX.SX.XXX.ADR.IS.N.M"]
[{"$f":"\"INN.\"&EIGNIR!$B$3&C5797","v":{"$error":"#N/A"}},{"$f":"'Sundurliðun Útlán'!Q245","v":0},".M.EUKNFST.XX.THF.XXX.XXXX.SX.XXX.ADR.IS.N.M"]
[{"$f":"\"INN.\"&EIGNIR!$B$3&C5798","v":{"$error":"#N/A"}},{"$f":"'Sundurliðun Útlán'!Q246","v":0},".M.EUKNFST.XX.THH.XXX.XXXX.SX.XXX.ADR.IS.N.M"]
[{"$f":"\"INN.\"&EIGNIR!$B$3&C5799","v":{"$error":"#N/A"}},{"$f":"'Sundurliðun Útlán'!Q247","v":0},".M.EUKNFST.XX.THA.XXX.XXXX.SX.XXX.ADR.IS.N.M"]
[{"$f":"\"INN.\"&EIGNIR!$B$3&C5800","v":{"$error":"#N/A"}},{"$f":"'Sundurliðun Útlán'!Q248","v":0},".M.EUKNFST.XX.OFL.XXX.XXXX.SX.XXX.ADR.IS.N.M"]
[{"$f":"\"INN.\"&EIGNIR!$B$3&C5801","v":{"$error":"#N/A"}},{"$f":"'Sundurliðun Útlán'!Q249","v":0},".M.EUKNFST.XX.FJA.XXX.XXXX.SX.XXX.ADR.IS.N.M"]
[{"$f":"\"INN.\"&EIGNIR!$B$3&C5802","v":{"$error":"#N/A"}},{"$f":"'Sundurliðun Útlán'!Q250","v":0},".M.EUKNFST.XXINN.XXX.XXXX.SX.XXX.ADR.IS.N.M"]
[{"$f":"\"INN.\"&EIGNIR!$B$3&C5803","v":{"$error":"#N/A"}},{"$f":"'Sundurliðun Útlán'!Q251","v":0},".M.EUKNFST.XX.SLI.XXX.XXXX.SX.XXX.ADR.IS.N.M"]
[{"$f":"\"INN.\"&EIGNIR!$B$3&C5804","v":{"$error":"#N/A"}},{"$f":"'Sundurliðun Útlán'!Q252","v":0},".M.EUKNFST.XX.PEN.XXX.XXXX.SX.XXX.ADR.IS.N.M"]
[{"$f":"\"INN.\"&EIGNIR!$B$3&C5805","v":{"$error":"#N/A"}},{"$f":"'Sundurliðun Útlán'!Q253","v":0},".M.EUKNFST.XX.SJO.XXX.XXXX.SX.XXX.ADR.IS.N.M"]
[{"$f":"\"INN.\"&EIGNIR!$B$3&C5806","v":{"$error":"#N/A"}},{"$f":"'Sundurliðun Útlán'!Q254","v":0},".M.EUKNFST.XX.YFT.XXX.XXXX.SX.XXX.ADR.IS.N.M"]
[{"$f":"\"INN.\"&EIGNIR!$B$3&C5807","v":{"$error":"#N/A"}},{"$f":"'Sundurliðun Útlán'!Q255","v":0},".M.EUKNFST.XX.SLY.XXX.XXXX.SX.XXX.ADR.IS.N.M"]
[{"$f":"\"INN.\"&EIGNIR!$B$3&C5808","v":{"$error":"#N/A"}},{"$f":"'Sundurliðun Útlán'!Q256","v":0},".M.EUKNFST.XX.FHL.XXX.XXXX.SX.XXX.ADR.IS.N.M"]
[{"$f":"\"INN.\"&EIGNIR!$B$3&C5809","v":{"$error":"#N/A"}},{"$f":"'Sundurliðun Útlán'!Q257","v":0},".M.EUKNFST.XX.INF.XXX.XXXX.SX.XXX.ADR.IS.N.M"]
[{"$f":"\"INN.\"&EIGNIR!$B$3&C5810","v":{"$error":"#N/A"}},{"$f":"'Sundurliðun Útlán'!Q258","v":0},".M.EUKNFST.XX.TRY.XXX.XXXX.SX.XXX.ADR.IS.N.M"]
[{"$f":"\"INN.\"&EIGNIR!$B$3&C5811","v":{"$error":"#N/A"}},{"$f":"'Sundurliðun Útlán'!Q259","v":0},".M.EUKNFST.XX.LIF.XXX.XXXX.SX.XXX.ADR.IS.N.M"]
[{"$f":"\"INN.\"&EIGNIR!$B$3&C5812","v":{"$error":"#N/A"}},{"$f":"'Sundurliðun Útlán'!Q260","v":0},".M.EUKNFST.XX.OPI.XXX.XXXX.SX.XXX.ADR.IS.N.M"]
[{"$f":"\"INN.\"&EIGNIR!$B$3&C5813","v":{"$error":"#N/A"}},{"$f":"'Sundurliðun Útlán'!Q261","v":0},".M.EUKNFST.XX.RSS.XXX.XXXX.SX.XXX.ADR.IS.N.M"]
[{"$f":"\"INN.\"&EIGNIR!$B$3&C5814","v":{"$error":"#N/A"}},{"$f":"'Sundurliðun Útlán'!Q262","v":0},".M.EUKNFST.XX.BAJ.XXX.XXXX.SX.XXX.ADR.IS.N.M"]
[{"$f":"\"INN.\"&EIGNIR!$B$3&C5815","v":{"$error":"#N/A"}},{"$f":"'Sundurliðun Útlán'!Q263","v":0},".M.EUKNFST.XX.EIN.XXX.XXXX.SX.XXX.ADR.IS.N.M"]
[{"$f":"\"INN.\"&EIGNIR!$B$3&C5816","v":{"$error":"#N/A"}},{"$f":"'Sundurliðun Útlán'!Q264","v":0},".M.EUKNFST.XX.NPH.XXX.XXXX.SX.XXX.ADR.IS.N.M"]
[{"$f":"\"INN.\"&EIGNIR!$B$3&C5817","v":{"$error":"#N/A"}},{"$f":"'Sundurliðun Útlán'!Q265","v":0},".M.EUKNFER.XX.ERL.XXX.XXXX.SX.XXX.ADR.IS.N.M"]
[{"$f":"\"INN.\"&EIGNIR!$B$3&C5818","v":{"$error":"#N/A"}},{"$f":"'Sundurliðun Útlán'!Q266","v":0},".M.EUKNFEH.XX.ERL.XXX.XXXX.SX.XXX.ADR.IS.N.M"]
[{"$f":"\"INN.\"&EIGNIR!$B$3&C5819","v":{"$error":"#N/A"}},{"$f":"'Sundurliðun Útlán'!Q268","v":0},".M.EUKNFEH.XX.ERI.XXX.XXXX.SX.XXX.ADR.IS.N.M"]
[{"$f":"\"INN.\"&EIGNIR!$B$3&C5820","v":{"$error":"#N/A"}},{"$f":"'Sundurliðun Útlán'!Q271","v":0},".M.EUKNFEH.XX.ERF.XXX.XXXX.SX.XXX.ADR.IS.N.M"]
[{"$f":"\"INN.\"&EIGNIR!$B$3&C5821","v":{"$error":"#N/A"}},{"$f":"'Sundurliðun Útlán'!Q273","v":0},".M.EUKNFEH.XX.ERA.XXX.XXXX.SX.XXX.ADR.IS.N.M"]
[{"$f":"\"INN.\"&EIGNIR!$B$3&C5822","v":{"$error":"#N/A"}},{"$f":"'Sundurliðun Útlán'!Q274","v":0},".M.EUKNFED.XX.ERL.XXX.XXXX.SX.XXX.ADR.IS.N.M"]
[{"$f":"\"INN.\"&EIGNIR!$B$3&C5823","v":{"$error":"#N/A"}},{"$f":"'Sundurliðun Útlán'!Q276","v":0},".M.EUKNFED.XX.ERI.XXX.XXXX.SX.XXX.ADR.IS.N.M"]
[{"$f":"\"INN.\"&EIGNIR!$B$3&C5824","v":{"$error":"#N/A"}},{"$f":"'Sundurliðun Útlán'!Q279","v":0},".M.EUKNFED.XX.ERF.XXX.XXXX.SX.XXX.ADR.IS.N.M"]
[{"$f":"\"INN.\"&EIGNIR!$B$3&C5825","v":{"$error":"#N/A"}},{"$f":"'Sundurliðun Útlán'!Q281","v":0},".M.EUKNFED.XX.ERA.XXX.XXXX.SX.XXX.ADR.IS.N.M"]
[{"$f":"\"INN.\"&EIGNIR!$B$3&C5826","v":{"$error":"#N/A"}},{"$f":"'Sundurliðun Útlán'!Q282","v":0},".M.EUKNFFF.XX.ERL.XXX.XXXX.SX.XXX.ADR.IS.N.M"]
[{"$f":"\"INN.\"&EIGNIR!$B$3&C5827","v":{"$error":"#N/A"}},{"$f":"'Sundurliðun Útlán'!Q284","v":0},".M.EUKNFFF.XX.ERI.XXX.XXXX.SX.XXX.ADR.IS.N.M"]
[{"$f":"\"INN.\"&EIGNIR!$B$3&C5828","v":{"$error":"#N/A"}},{"$f":"'Sundurliðun Útlán'!Q287","v":0},".M.EUKNFFF.XX.ERF.XXX.XXXX.SX.XXX.ADR.IS.N.M"]
[{"$f":"\"INN.\"&EIGNIR!$B$3&C5829","v":{"$error":"#N/A"}},{"$f":"'Sundurliðun Útlán'!Q289","v":0},".M.EUKNFFF.XX.ERA.XXX.XXXX.SX.XXX.ADR.IS.N.M"]
[{"$f":"\"INN.\"&EIGNIR!$B$3&C5830","v":{"$error":"#N/A"}},{"$f":"'Sundurliðun Útlán'!Q290","v":0},".M.EUKNFOL.XX.ERL.XXX.XXXX.SX.XXX.ADR.IS.N.M"]
[{"$f":"\"INN.\"&EIGNIR!$B$3&C5831","v":{"$error":"#N/A"}},{"$f":"'Sundurliðun Útlán'!Q292","v":0},".M.EUKNFOL.XX.ERI.XXX.XXXX.SX.XXX.ADR.IS.N.M"]
[{"$f":"\"INN.\"&EIGNIR!$B$3&C5832","v":{"$error":"#N/A"}},{"$f":"'Sundurliðun Útlán'!Q294","v":0},".M.EUKNFOL.XX.ERV.XXX.XXXX.SX.XXX.ADR.IS.N.M"]
[{"$f":"\"INN.\"&EIGNIR!$B$3&C5833","v":{"$error":"#N/A"}},{"$f":"'Sundurliðun Útlán'!Q295","v":0},".M.EUKNFOL.XX.ERF.XXX.XXXX.SX.XXX.ADR.IS.N.M"]
[{"$f":"\"INN.\"&EIGNIR!$B$3&C5834","v":{"$error":"#N/A"}},{"$f":"'Sundurliðun Útlán'!Q296","v":0},".M.EUKNFOL.XX.ERO.XXX.XXXX.SX.XXX.ADR.IS.N.M"]
[{"$f":"\"INN.\"&EIGNIR!$B$3&C5835","v":{"$error":"#N/A"}},{"$f":"'Sundurliðun Útlán'!Q297","v":0},".M.EUKNFOL.XX.ERA.XXX.XXXX.SX.XXX.ADR.IS.N.M"]
[{"$f":"\"INN.\"&EIGNIR!$B$3&C5836","v":{"$error":"#N/A"}},{"$f":"'Sundurliðun Afleiður - eignir'!E5","v":0},".M.EAF$$$$.XX.$$$.$$$.XXXX.SX.XXX.XXX.IS.N.M","//Sundurliðun afleiður"]
[{"$f":"\"INN.\"&EIGNIR!$B$3&C5837","v":{"$error":"#N/A"}},{"$f":"'Sundurliðun Afleiður - eignir'!E6","v":0},".M.EAFVR$$.XX.$$$.$$$.XXXX.SX.XXX.XXX.IS.N.M"]
[{"$f":"\"INN.\"&EIGNIR!$B$3&C5838","v":{"$error":"#N/A"}},{"$f":"'Sundurliðun Afleiður - eignir'!E7","v":0},".M.EAFVR$$.XX.ATV.$$$.XXXX.SX.XXX.XXX.IS.N.M"]
[{"$f":"\"INN.\"&EIGNIR!$B$3&C5839","v":{"$error":"#N/A"}},{"$f":"'Sundurliðun Afleiður - eignir'!E8","v":0},".M.EAFVR$$.XX.FJA.$$$.XXXX.SX.XXX.XXX.IS.N.M"]
[{"$f":"\"INN.\"&EIGNIR!$B$3&C5840","v":{"$error":"#N/A"}},{"$f":"'Sundurliðun Afleiður - eignir'!E9","v":0},".M.EAFVR$$.XX.INN.$$$.XXXX.SX.XXX.XXX.IS.N.M"]
[{"$f":"\"INN.\"&EIGNIR!$B$3&C5841","v":{"$error":"#N/A"}},{"$f":"'Sundurliðun Afleiður - eignir'!E10","v":0},".M.EAFVR$$.XX.SLI.$$$.XXXX.SX.XXX.XXX.IS.N.M"]
[{"$f":"\"INN.\"&EIGNIR!$B$3&C5842","v":{"$error":"#N/A"}},{"$f":"'Sundurliðun Afleiður - eignir'!E11","v":0},".M.EAFVR$$.XX.PEN.$$$.XXXX.SX.XXX.XXX.IS.N.M"]
[{"$f":"\"INN.\"&EIGNIR!$B$3&C5843","v":{"$error":"#N/A"}},{"$f":"'Sundurliðun Afleiður - eignir'!E12","v":0},".M.EAFVR$$.XX.SJO.$$$.XXXX.SX.XXX.XXX.IS.N.M"]
[{"$f":"\"INN.\"&EIGNIR!$B$3&C5844","v":{"$error":"#N/A"}},{"$f":"'Sundurliðun Afleiður - eignir'!E13","v":0},".M.EAFVR$$.XX.YFT.$$$.XXXX.SX.XXX.XXX.IS.N.M"]
[{"$f":"\"INN.\"&EIGNIR!$B$3&C5845","v":{"$error":"#N/A"}},{"$f":"'Sundurliðun Afleiður - eignir'!E14","v":0},".M.EAFVR$$.XX.SLY.$$$.XXXX.SX.XXX.XXX.IS.N.M"]
[{"$f":"\"INN.\"&EIGNIR!$B$3&C5846","v":{"$error":"#N/A"}},{"$f":"'Sundurliðun Afleiður - eignir'!E15","v":0},".M.EAFVR$$.XX.FHL.$$$.XXXX.SX.XXX.XXX.IS.N.M"]
[{"$f":"\"INN.\"&EIGNIR!$B$3&C5847","v":{"$error":"#N/A"}},{"$f":"'Sundurliðun Afleiður - eignir'!E16","v":0},".M.EAFVR$$.XX.INF.$$$.XXXX.SX.XXX.XXX.IS.N.M"]
[{"$f":"\"INN.\"&EIGNIR!$B$3&C5848","v":{"$error":"#N/A"}},{"$f":"'Sundurliðun Afleiður - eignir'!E17","v":0},".M.EAFVR$$.XX.TRY.$$$.XXXX.SX.XXX.XXX.IS.N.M"]
[{"$f":"\"INN.\"&EIGNIR!$B$3&C5849","v":{"$error":"#N/A"}},{"$f":"'Sundurliðun Afleiður - eignir'!E18","v":0},".M.EAFVR$$.XX.LIF.$$$.XXXX.SX.XXX.XXX.IS.N.M"]
[{"$f":"\"INN.\"&EIGNIR!$B$3&C5850","v":{"$error":"#N/A"}},{"$f":"'Sundurliðun Afleiður - eignir'!E19","v":0},".M.EAFVR$$.XX.OPI.$$$.XXXX.SX.XXX.XXX.IS.N.M"]
[{"$f":"\"INN.\"&EIGNIR!$B$3&C5851","v":{"$error":"#N/A"}},{"$f":"'Sundurliðun Afleiður - eignir'!E20","v":0},".M.EAFVR$$.XX.RSS.$$$.XXXX.SX.XXX.XXX.IS.N.M"]
[{"$f":"\"INN.\"&EIGNIR!$B$3&C5852","v":{"$error":"#N/A"}},{"$f":"'Sundurliðun Afleiður - eignir'!E21","v":0},".M.EAFVR$$.XX.BAJ.$$$.XXXX.SX.XXX.XXX.IS.N.M"]
[{"$f":"\"INN.\"&EIGNIR!$B$3&C5853","v":{"$error":"#N/A"}},{"$f":"'Sundurliðun Afleiður - eignir'!E22","v":0},".M.EAFVR$$.XX.EIN.$$$.XXXX.SX.XXX.XXX.IS.N.M"]
[{"$f":"\"INN.\"&EIGNIR!$B$3&C5854","v":{"$error":"#N/A"}},{"$f":"'Sundurliðun Afleiður - eignir'!E23","v":0},".M.EAFVR$$.XX.NPH.$$$.XXXX.SX.XXX.XXX.IS.N.M"]
[{"$f":"\"INN.\"&EIGNIR!$B$3&C5855","v":{"$error":"#N/A"}},{"$f":"'Sundurliðun Afleiður - eignir'!E24","v":0},".M.EAFVR$$.XX.ERL.$$$.XXXX.SX.XXX.XXX.IS.N.M"]
[{"$f":"\"INN.\"&EIGNIR!$B$3&C5856","v":{"$error":"#N/A"}},{"$f":"'Sundurliðun Afleiður - eignir'!E25","v":0},".M.EAFVR$$.XX.ERS.$$$.XXXX.SX.XXX.XXX.IS.N.M"]
[{"$f":"\"INN.\"&EIGNIR!$B$3&C5857","v":{"$error":"#N/A"}},{"$f":"'Sundurliðun Afleiður - eignir'!E26","v":0},".M.EAFVR$$.XX.ERI.$$$.XXXX.SX.XXX.XXX.IS.N.M"]
[{"$f":"\"INN.\"&EIGNIR!$B$3&C5858","v":{"$error":"#N/A"}},{"$f":"'Sundurliðun Afleiður - eignir'!E27","v":0},".M.EAFVR$$.XX.ERP.$$$.XXXX.SX.XXX.XXX.IS.N.M"]
[{"$f":"\"INN.\"&EIGNIR!$B$3&C5859","v":{"$error":"#N/A"}},{"$f":"'Sundurliðun Afleiður - eignir'!E28","v":0},".M.EAFVR$$.XX.ERV.$$$.XXXX.SX.XXX.XXX.IS.N.M"]
[{"$f":"\"INN.\"&EIGNIR!$B$3&C5860","v":{"$error":"#N/A"}},{"$f":"'Sundurliðun Afleiður - eignir'!E29","v":0},".M.EAFVR$$.XX.ERF.$$$.XXXX.SX.XXX.XXX.IS.N.M"]
[{"$f":"\"INN.\"&EIGNIR!$B$3&C5861","v":{"$error":"#N/A"}},{"$f":"'Sundurliðun Afleiður - eignir'!E30","v":0},".M.EAFVR$$.XX.ERO.$$$.XXXX.SX.XXX.XXX.IS.N.M"]
[{"$f":"\"INN.\"&EIGNIR!$B$3&C5862","v":{"$error":"#N/A"}},{"$f":"'Sundurliðun Afleiður - eignir'!E31","v":0},".M.EAFVR$$.XX.ERA.$$$.XXXX.SX.XXX.XXX.IS.N.M"]
[{"$f":"\"INN.\"&EIGNIR!$B$3&C5863","v":{"$error":"#N/A"}},{"$f":"'Sundurliðun Afleiður - eignir'!E32","v":0},".M.EAFFS$$.XX.$$$.$$$.XXXX.SX.XXX.XXX.IS.N.M"]
[{"$f":"\"INN.\"&EIGNIR!$B$3&C5864","v":{"$error":"#N/A"}},{"$f":"'Sundurliðun Afleiður - eignir'!E33","v":0},".M.EAFFS$$.XX.ATV.$$$.XXXX.SX.XXX.XXX.IS.N.M"]
[{"$f":"\"INN.\"&EIGNIR!$B$3&C5865","v":{"$error":"#N/A"}},{"$f":"'Sundurliðun Afleiður - eignir'!E34","v":0},".M.EAFFS$$.XX.FJA.$$$.XXXX.SX.XXX.XXX.IS.N.M"]
[{"$f":"\"INN.\"&EIGNIR!$B$3&C5866","v":{"$error":"#N/A"}},{"$f":"'Sundurliðun Afleiður - eignir'!E35","v":0},".M.EAFFS$$.XX.INN.$$$.XXXX.SX.XXX.XXX.IS.N.M"]
[{"$f":"\"INN.\"&EIGNIR!$B$3&C5867","v":{"$error":"#N/A"}},{"$f":"'Sundurliðun Afleiður - eignir'!E36","v":0},".M.EAFFS$$.XX.SLI.$$$.XXXX.SX.XXX.XXX.IS.N.M"]
[{"$f":"\"INN.\"&EIGNIR!$B$3&C5868","v":{"$error":"#N/A"}},{"$f":"'Sundurliðun Afleiður - eignir'!E37","v":0},".M.EAFFS$$.XX.PEN.$$$.XXXX.SX.XXX.XXX.IS.N.M"]
[{"$f":"\"INN.\"&EIGNIR!$B$3&C5869","v":{"$error":"#N/A"}},{"$f":"'Sundurliðun Afleiður - eignir'!E38","v":0},".M.EAFFS$$.XX.SJO.$$$.XXXX.SX.XXX.XXX.IS.N.M"]
[{"$f":"\"INN.\"&EIGNIR!$B$3&C5870","v":{"$error":"#N/A"}},{"$f":"'Sundurliðun Afleiður - eignir'!E39","v":0},".M.EAFFS$$.XX.YFT.$$$.XXXX.SX.XXX.XXX.IS.N.M"]
[{"$f":"\"INN.\"&EIGNIR!$B$3&C5871","v":{"$error":"#N/A"}},{"$f":"'Sundurliðun Afleiður - eignir'!E40","v":0},".M.EAFFS$$.XX.SLY.$$$.XXXX.SX.XXX.XXX.IS.N.M"]
[{"$f":"\"INN.\"&EIGNIR!$B$3&C5872","v":{"$error":"#N/A"}},{"$f":"'Sundurliðun Afleiður - eignir'!E41","v":0},".M.EAFFS$$.XX.FHL.$$$.XXXX.SX.XXX.XXX.IS.N.M"]
[{"$f":"\"INN.\"&EIGNIR!$B$3&C5873","v":{"$error":"#N/A"}},{"$f":"'Sundurliðun Afleiður - eignir'!E42","v":0},".M.EAFFS$$.XX.INF.$$$.XXXX.SX.XXX.XXX.IS.N.M"]
[{"$f":"\"INN.\"&EIGNIR!$B$3&C5874","v":{"$error":"#N/A"}},{"$f":"'Sundurliðun Afleiður - eignir'!E43","v":0},".M.EAFFS$$.XX.TRY.$$$.XXXX.SX.XXX.XXX.IS.N.M"]
[{"$f":"\"INN.\"&EIGNIR!$B$3&C5875","v":{"$error":"#N/A"}},{"$f":"'Sundurliðun Afleiður - eignir'!E44","v":0},".M.EAFFS$$.XX.LIF.$$$.XXXX.SX.XXX.XXX.IS.N.M"]
[{"$f":"\"INN.\"&EIGNIR!$B$3&C5876","v":{"$error":"#N/A"}},{"$f":"'Sundurliðun Afleiður - eignir'!E45","v":0},".M.EAFFS$$.XX.OPI.$$$.XXXX.SX.XXX.XXX.IS.N.M"]
[{"$f":"\"INN.\"&EIGNIR!$B$3&C5877","v":{"$error":"#N/A"}},{"$f":"'Sundurliðun Afleiður - eignir'!E46","v":0},".M.EAFFS$$.XX.RSS.$$$.XXXX.SX.XXX.XXX.IS.N.M"]
[{"$f":"\"INN.\"&EIGNIR!$B$3&C5878","v":{"$error":"#N/A"}},{"$f":"'Sundurliðun Afleiður - eignir'!E47","v":0},".M.EAFFS$$.XX.BAJ.$$$.XXXX.SX.XXX.XXX.IS.N.M"]
[{"$f":"\"INN.\"&EIGNIR!$B$3&C5879","v":{"$error":"#N/A"}},{"$f":"'Sundurliðun Afleiður - eignir'!E48","v":0},".M.EAFFS$$.XX.EIN.$$$.XXXX.SX.XXX.XXX.IS.N.M"]
[{"$f":"\"INN.\"&EIGNIR!$B$3&C5880","v":{"$error":"#N/A"}},{"$f":"'Sundurliðun Afleiður - eignir'!E49","v":0},".M.EAFFS$$.XX.NPH.$$$.XXXX.SX.XXX.XXX.IS.N.M"]
[{"$f":"\"INN.\"&EIGNIR!$B$3&C5881","v":{"$error":"#N/A"}},{"$f":"'Sundurliðun Afleiður - eignir'!E50","v":0},".M.EAFFS$$.XX.ERL.$$$.XXXX.SX.XXX.XXX.IS.N.M"]
[{"$f":"\"INN.\"&EIGNIR!$B$3&C5882","v":{"$error":"#N/A"}},{"$f":"'Sundurliðun Afleiður - eignir'!E51","v":0},".M.EAFFS$$.XX.ERS.$$$.XXXX.SX.XXX.XXX.IS.N.M"]
[{"$f":"\"INN.\"&EIGNIR!$B$3&C5883","v":{"$error":"#N/A"}},{"$f":"'Sundurliðun Afleiður - eignir'!E52","v":0},".M.EAFFS$$.XX.ERI.$$$.XXXX.SX.XXX.XXX.IS.N.M"]
[{"$f":"\"INN.\"&EIGNIR!$B$3&C5884","v":{"$error":"#N/A"}},{"$f":"'Sundurliðun Afleiður - eignir'!E53","v":0},".M.EAFFS$$.XX.ERP.$$$.XXXX.SX.XXX.XXX.IS.N.M"]
[{"$f":"\"INN.\"&EIGNIR!$B$3&C5885","v":{"$error":"#N/A"}},{"$f":"'Sundurliðun Afleiður - eignir'!E54","v":0},".M.EAFFS$$.XX.ERV.$$$.XXXX.SX.XXX.XXX.IS.N.M"]
[{"$f":"\"INN.\"&EIGNIR!$B$3&C5886","v":{"$error":"#N/A"}},{"$f":"'Sundurliðun Afleiður - eignir'!E55","v":0},".M.EAFFS$$.XX.ERF.$$$.XXXX.SX.XXX.XXX.IS.N.M"]
[{"$f":"\"INN.\"&EIGNIR!$B$3&C5887","v":{"$error":"#N/A"}},{"$f":"'Sundurliðun Afleiður - eignir'!E56","v":0},".M.EAFFS$$.XX.ERO.$$$.XXXX.SX.XXX.XXX.IS.N.M"]
[{"$f":"\"INN.\"&EIGNIR!$B$3&C5888","v":{"$error":"#N/A"}},{"$f":"'Sundurliðun Afleiður - eignir'!E57","v":0},".M.EAFFS$$.XX.ERA.$$$.XXXX.SX.XXX.XXX.IS.N.M"]
[{"$f":"\"INN.\"&EIGNIR!$B$3&C5889","v":{"$error":"#N/A"}},{"$f":"'Sundurliðun Afleiður - eignir'!E58","v":0},".M.EAFSS$$.XX.$$$.$$$.XXXX.SX.XXX.XXX.IS.N.M"]
[{"$f":"\"INN.\"&EIGNIR!$B$3&C5890","v":{"$error":"#N/A"}},{"$f":"'Sundurliðun Afleiður - eignir'!E59","v":0},".M.EAFSS$$.XX.ATV.$$$.XXXX.SX.XXX.XXX.IS.N.M"]
[{"$f":"\"INN.\"&EIGNIR!$B$3&C5891","v":{"$error":"#N/A"}},{"$f":"'Sundurliðun Afleiður - eignir'!E60","v":0},".M.EAFSS$$.XX.FJA.$$$.XXXX.SX.XXX.XXX.IS.N.M"]
[{"$f":"\"INN.\"&EIGNIR!$B$3&C5892","v":{"$error":"#N/A"}},{"$f":"'Sundurliðun Afleiður - eignir'!E61","v":0},".M.EAFSS$$.XX.INN.$$$.XXXX.SX.XXX.XXX.IS.N.M"]
[{"$f":"\"INN.\"&EIGNIR!$B$3&C5893","v":{"$error":"#N/A"}},{"$f":"'Sundurliðun Afleiður - eignir'!E62","v":0},".M.EAFSS$$.XX.SLI.$$$.XXXX.SX.XXX.XXX.IS.N.M"]
[{"$f":"\"INN.\"&EIGNIR!$B$3&C5894","v":{"$error":"#N/A"}},{"$f":"'Sundurliðun Afleiður - eignir'!E63","v":0},".M.EAFSS$$.XX.PEN.$$$.XXXX.SX.XXX.XXX.IS.N.M"]
[{"$f":"\"INN.\"&EIGNIR!$B$3&C5895","v":{"$error":"#N/A"}},{"$f":"'Sundurliðun Afleiður - eignir'!E64","v":0},".M.EAFSS$$.XX.SJO.$$$.XXXX.SX.XXX.XXX.IS.N.M"]
[{"$f":"\"INN.\"&EIGNIR!$B$3&C5896","v":{"$error":"#N/A"}},{"$f":"'Sundurliðun Afleiður - eignir'!E65","v":0},".M.EAFSS$$.XX.YFT.$$$.XXXX.SX.XXX.XXX.IS.N.M"]
[{"$f":"\"INN.\"&EIGNIR!$B$3&C5897","v":{"$error":"#N/A"}},{"$f":"'Sundurliðun Afleiður - eignir'!E66","v":0},".M.EAFSS$$.XX.SLY.$$$.XXXX.SX.XXX.XXX.IS.N.M"]
[{"$f":"\"INN.\"&EIGNIR!$B$3&C5898","v":{"$error":"#N/A"}},{"$f":"'Sundurliðun Afleiður - eignir'!E67","v":0},".M.EAFSS$$.XX.FHL.$$$.XXXX.SX.XXX.XXX.IS.N.M"]
[{"$f":"\"INN.\"&EIGNIR!$B$3&C5899","v":{"$error":"#N/A"}},{"$f":"'Sundurliðun Afleiður - eignir'!E68","v":0},".M.EAFSS$$.XX.INF.$$$.XXXX.SX.XXX.XXX.IS.N.M"]
[{"$f":"\"INN.\"&EIGNIR!$B$3&C5900","v":{"$error":"#N/A"}},{"$f":"'Sundurliðun Afleiður - eignir'!E69","v":0},".M.EAFSS$$.XX.TRY.$$$.XXXX.SX.XXX.XXX.IS.N.M"]
[{"$f":"\"INN.\"&EIGNIR!$B$3&C5901","v":{"$error":"#N/A"}},{"$f":"'Sundurliðun Afleiður - eignir'!E70","v":0},".M.EAFSS$$.XX.LIF.$$$.XXXX.SX.XXX.XXX.IS.N.M"]
[{"$f":"\"INN.\"&EIGNIR!$B$3&C5902","v":{"$error":"#N/A"}},{"$f":"'Sundurliðun Afleiður - eignir'!E71","v":0},".M.EAFSS$$.XX.OPI.$$$.XXXX.SX.XXX.XXX.IS.N.M"]
[{"$f":"\"INN.\"&EIGNIR!$B$3&C5903","v":{"$error":"#N/A"}},{"$f":"'Sundurliðun Afleiður - eignir'!E72","v":0},".M.EAFSS$$.XX.RSS.$$$.XXXX.SX.XXX.XXX.IS.N.M"]
[{"$f":"\"INN.\"&EIGNIR!$B$3&C5904","v":{"$error":"#N/A"}},{"$f":"'Sundurliðun Afleiður - eignir'!E73","v":0},".M.EAFSS$$.XX.BAJ.$$$.XXXX.SX.XXX.XXX.IS.N.M"]
[{"$f":"\"INN.\"&EIGNIR!$B$3&C5905","v":{"$error":"#N/A"}},{"$f":"'Sundurliðun Afleiður - eignir'!E74","v":0},".M.EAFSS$$.XX.EIN.$$$.XXXX.SX.XXX.XXX.IS.N.M"]
[{"$f":"\"INN.\"&EIGNIR!$B$3&C5906","v":{"$error":"#N/A"}},{"$f":"'Sundurliðun Afleiður - eignir'!E75","v":0},".M.EAFSS$$.XX.NPH.$$$.XXXX.SX.XXX.XXX.IS.N.M"]
[{"$f":"\"INN.\"&EIGNIR!$B$3&C5907","v":{"$error":"#N/A"}},{"$f":"'Sundurliðun Afleiður - eignir'!E76","v":0},".M.EAFSS$$.XX.ERL.$$$.XXXX.SX.XXX.XXX.IS.N.M"]
[{"$f":"\"INN.\"&EIGNIR!$B$3&C5908","v":{"$error":"#N/A"}},{"$f":"'Sundurliðun Afleiður - eignir'!E77","v":0},".M.EAFSS$$.XX.ERS.$$$.XXXX.SX.XXX.XXX.IS.N.M"]
[{"$f":"\"INN.\"&EIGNIR!$B$3&C5909","v":{"$error":"#N/A"}},{"$f":"'Sundurliðun Afleiður - eignir'!E78","v":0},".M.EAFSS$$.XX.ERI.$$$.XXXX.SX.XXX.XXX.IS.N.M"]
[{"$f":"\"INN.\"&EIGNIR!$B$3&C5910","v":{"$error":"#N/A"}},{"$f":"'Sundurliðun Afleiður - eignir'!E79","v":0},".M.EAFSS$$.XX.ERP.$$$.XXXX.SX.XXX.XXX.IS.N.M"]
[{"$f":"\"INN.\"&EIGNIR!$B$3&C5911","v":{"$error":"#N/A"}},{"$f":"'Sundurliðun Afleiður - eignir'!E80","v":0},".M.EAFSS$$.XX.ERV.$$$.XXXX.SX.XXX.XXX.IS.N.M"]
[{"$f":"\"INN.\"&EIGNIR!$B$3&C5912","v":{"$error":"#N/A"}},{"$f":"'Sundurliðun Afleiður - eignir'!E81","v":0},".M.EAFSS$$.XX.ERF.$$$.XXXX.SX.XXX.XXX.IS.N.M"]
[{"$f":"\"INN.\"&EIGNIR!$B$3&C5913","v":{"$error":"#N/A"}},{"$f":"'Sundurliðun Afleiður - eignir'!E82","v":0},".M.EAFSS$$.XX.ERO.$$$.XXXX.SX.XXX.XXX.IS.N.M"]
[{"$f":"\"INN.\"&EIGNIR!$B$3&C5914","v":{"$error":"#N/A"}},{"$f":"'Sundurliðun Afleiður - eignir'!E83","v":0},".M.EAFSS$$.XX.ERA.$$$.XXXX.SX.XXX.XXX.IS.N.M"]
[{"$f":"\"INN.\"&EIGNIR!$B$3&C5915","v":{"$error":"#N/A"}},{"$f":"'Sundurliðun Afleiður - eignir'!F7","v":0},".M.EAFVR$$.XX.ATV.OPI.XXXX.SX.XXX.XXX.IS.N.M"]
[{"$f":"\"INN.\"&EIGNIR!$B$3&C5916","v":{"$error":"#N/A"}},{"$f":"'Sundurliðun Afleiður - eignir'!F8","v":0},".M.EAFVR$$.XX.FJA.OPI.XXXX.SX.XXX.XXX.IS.N.M"]
[{"$f":"\"INN.\"&EIGNIR!$B$3&C5917","v":{"$error":"#N/A"}},{"$f":"'Sundurliðun Afleiður - eignir'!F9","v":0},".M.EAFVR$$.XX.INN.OPI.XXXX.SX.XXX.XXX.IS.N.M"]
[{"$f":"\"INN.\"&EIGNIR!$B$3&C5918","v":{"$error":"#N/A"}},{"$f":"'Sundurliðun Afleiður - eignir'!F10","v":0},".M.EAFVR$$.XX.SLI.OPI.XXXX.SX.XXX.XXX.IS.N.M"]
[{"$f":"\"INN.\"&EIGNIR!$B$3&C5919","v":{"$error":"#N/A"}},{"$f":"'Sundurliðun Afleiður - eignir'!F11","v":0},".M.EAFVR$$.XX.PEN.OPI.XXXX.SX.XXX.XXX.IS.N.M"]
[{"$f":"\"INN.\"&EIGNIR!$B$3&C5920","v":{"$error":"#N/A"}},{"$f":"'Sundurliðun Afleiður - eignir'!F12","v":0},".M.EAFVR$$.XX.SJO.OPI.XXXX.SX.XXX.XXX.IS.N.M"]
[{"$f":"\"INN.\"&EIGNIR!$B$3&C5921","v":{"$error":"#N/A"}},{"$f":"'Sundurliðun Afleiður - eignir'!F13","v":0},".M.EAFVR$$.XX.YFT.OPI.XXXX.SX.XXX.XXX.IS.N.M"]
[{"$f":"\"INN.\"&EIGNIR!$B$3&C5922","v":{"$error":"#N/A"}},{"$f":"'Sundurliðun Afleiður - eignir'!F14","v":0},".M.EAFVR$$.XX.SLY.OPI.XXXX.SX.XXX.XXX.IS.N.M"]
[{"$f":"\"INN.\"&EIGNIR!$B$3&C5923","v":{"$error":"#N/A"}},{"$f":"'Sundurliðun Afleiður - eignir'!F15","v":0},".M.EAFVR$$.XX.FHL.OPI.XXXX.SX.XXX.XXX.IS.N.M"]
[{"$f":"\"INN.\"&EIGNIR!$B$3&C5924","v":{"$error":"#N/A"}},{"$f":"'Sundurliðun Afleiður - eignir'!F16","v":0},".M.EAFVR$$.XX.INF.OPI.XXXX.SX.XXX.XXX.IS.N.M"]
[{"$f":"\"INN.\"&EIGNIR!$B$3&C5925","v":{"$error":"#N/A"}},{"$f":"'Sundurliðun Afleiður - eignir'!F17","v":0},".M.EAFVR$$.XX.TRY.OPI.XXXX.SX.XXX.XXX.IS.N.M"]
[{"$f":"\"INN.\"&EIGNIR!$B$3&C5926","v":{"$error":"#N/A"}},{"$f":"'Sundurliðun Afleiður - eignir'!F18","v":0},".M.EAFVR$$.XX.LIF.OPI.XXXX.SX.XXX.XXX.IS.N.M"]
[{"$f":"\"INN.\"&EIGNIR!$B$3&C5927","v":{"$error":"#N/A"}},{"$f":"'Sundurliðun Afleiður - eignir'!F33","v":0},".M.EAFFS$$.XX.ATV.OPI.XXXX.SX.XXX.XXX.IS.N.M"]
[{"$f":"\"INN.\"&EIGNIR!$B$3&C5928","v":{"$error":"#N/A"}},{"$f":"'Sundurliðun Afleiður - eignir'!F34","v":0},".M.EAFFS$$.XX.FJA.OPI.XXXX.SX.XXX.XXX.IS.N.M"]
[{"$f":"\"INN.\"&EIGNIR!$B$3&C5929","v":{"$error":"#N/A"}},{"$f":"'Sundurliðun Afleiður - eignir'!F35","v":0},".M.EAFFS$$.XX.INN.OPI.XXXX.SX.XXX.XXX.IS.N.M"]
[{"$f":"\"INN.\"&EIGNIR!$B$3&C5930","v":{"$error":"#N/A"}},{"$f":"'Sundurliðun Afleiður - eignir'!F36","v":0},".M.EAFFS$$.XX.SLI.OPI.XXXX.SX.XXX.XXX.IS.N.M"]
[{"$f":"\"INN.\"&EIGNIR!$B$3&C5931","v":{"$error":"#N/A"}},{"$f":"'Sundurliðun Afleiður - eignir'!F37","v":0},".M.EAFFS$$.XX.PEN.OPI.XXXX.SX.XXX.XXX.IS.N.M"]
[{"$f":"\"INN.\"&EIGNIR!$B$3&C5932","v":{"$error":"#N/A"}},{"$f":"'Sundurliðun Afleiður - eignir'!F38","v":0},".M.EAFFS$$.XX.SJO.OPI.XXXX.SX.XXX.XXX.IS.N.M"]
[{"$f":"\"INN.\"&EIGNIR!$B$3&C5933","v":{"$error":"#N/A"}},{"$f":"'Sundurliðun Afleiður - eignir'!F39","v":0},".M.EAFFS$$.XX.YFT.OPI.XXXX.SX.XXX.XXX.IS.N.M"]
[{"$f":"\"INN.\"&EIGNIR!$B$3&C5934","v":{"$error":"#N/A"}},{"$f":"'Sundurliðun Afleiður - eignir'!F40","v":0},".M.EAFFS$$.XX.SLY.OPI.XXXX.SX.XXX.XXX.IS.N.M"]
[{"$f":"\"INN.\"&EIGNIR!$B$3&C5935","v":{"$error":"#N/A"}},{"$f":"'Sundurliðun Afleiður - eignir'!F41","v":0},".M.EAFFS$$.XX.FHL.OPI.XXXX.SX.XXX.XXX.IS.N.M"]
[{"$f":"\"INN.\"&EIGNIR!$B$3&C5936","v":{"$error":"#N/A"}},{"$f":"'Sundurliðun Afleiður - eignir'!F42","v":0},".M.EAFFS$$.XX.INF.OPI.XXXX.SX.XXX.XXX.IS.N.M"]
[{"$f":"\"INN.\"&EIGNIR!$B$3&C5937","v":{"$error":"#N/A"}},{"$f":"'Sundurliðun Afleiður - eignir'!F43","v":0},".M.EAFFS$$.XX.TRY.OPI.XXXX.SX.XXX.XXX.IS.N.M"]
[{"$f":"\"INN.\"&EIGNIR!$B$3&C5938","v":{"$error":"#N/A"}},{"$f":"'Sundurliðun Afleiður - eignir'!F44","v":0},".M.EAFFS$$.XX.LIF.OPI.XXXX.SX.XXX.XXX.IS.N.M"]
[{"$f":"\"INN.\"&EIGNIR!$B$3&C5939","v":{"$error":"#N/A"}},{"$f":"'Sundurliðun Afleiður - eignir'!F59","v":0},".M.EAFSS$$.XX.ATV.OPI.XXXX.SX.XXX.XXX.IS.N.M"]
[{"$f":"\"INN.\"&EIGNIR!$B$3&C5940","v":{"$error":"#N/A"}},{"$f":"'Sundurliðun Afleiður - eignir'!F60","v":0},".M.EAFSS$$.XX.FJA.OPI.XXXX.SX.XXX.XXX.IS.N.M"]
[{"$f":"\"INN.\"&EIGNIR!$B$3&C5941","v":{"$error":"#N/A"}},{"$f":"'Sundurliðun Afleiður - eignir'!F61","v":0},".M.EAFSS$$.XX.INN.OPI.XXXX.SX.XXX.XXX.IS.N.M"]
[{"$f":"\"INN.\"&EIGNIR!$B$3&C5942","v":{"$error":"#N/A"}},{"$f":"'Sundurliðun Afleiður - eignir'!F62","v":0},".M.EAFSS$$.XX.SLI.OPI.XXXX.SX.XXX.XXX.IS.N.M"]
[{"$f":"\"INN.\"&EIGNIR!$B$3&C5943","v":{"$error":"#N/A"}},{"$f":"'Sundurliðun Afleiður - eignir'!F63","v":0},".M.EAFSS$$.XX.PEN.OPI.XXXX.SX.XXX.XXX.IS.N.M"]
[{"$f":"\"INN.\"&EIGNIR!$B$3&C5944","v":{"$error":"#N/A"}},{"$f":"'Sundurliðun Afleiður - eignir'!F64","v":0},".M.EAFSS$$.XX.SJO.OPI.XXXX.SX.XXX.XXX.IS.N.M"]
[{"$f":"\"INN.\"&EIGNIR!$B$3&C5945","v":{"$error":"#N/A"}},{"$f":"'Sundurliðun Afleiður - eignir'!F65","v":0},".M.EAFSS$$.XX.YFT.OPI.XXXX.SX.XXX.XXX.IS.N.M"]
[{"$f":"\"INN.\"&EIGNIR!$B$3&C5946","v":{"$error":"#N/A"}},{"$f":"'Sundurliðun Afleiður - eignir'!F66","v":0},".M.EAFSS$$.XX.SLY.OPI.XXXX.SX.XXX.XXX.IS.N.M"]
[{"$f":"\"INN.\"&EIGNIR!$B$3&C5947","v":{"$error":"#N/A"}},{"$f":"'Sundurliðun Afleiður - eignir'!F67","v":0},".M.EAFSS$$.XX.FHL.OPI.XXXX.SX.XXX.XXX.IS.N.M"]
[{"$f":"\"INN.\"&EIGNIR!$B$3&C5948","v":{"$error":"#N/A"}},{"$f":"'Sundurliðun Afleiður - eignir'!F68","v":0},".M.EAFSS$$.XX.INF.OPI.XXXX.SX.XXX.XXX.IS.N.M"]
[{"$f":"\"INN.\"&EIGNIR!$B$3&C5949","v":{"$error":"#N/A"}},{"$f":"'Sundurliðun Afleiður - eignir'!F69","v":0},".M.EAFSS$$.XX.TRY.OPI.XXXX.SX.XXX.XXX.IS.N.M"]
[{"$f":"\"INN.\"&EIGNIR!$B$3&C5950","v":{"$error":"#N/A"}},{"$f":"'Sundurliðun Afleiður - eignir'!F70","v":0},".M.EAFSS$$.XX.LIF.OPI.XXXX.SX.XXX.XXX.IS.N.M"]
[{"$f":"\"INN.\"&EIGNIR!$B$3&C5951","v":{"$error":"#N/A"}},{"$f":"'Sundurliðun Afleiður - eignir'!G7","v":0},".M.EAFVR$$.XX.ATV.EIF.XXXX.SX.XXX.XXX.IS.N.M"]
[{"$f":"\"INN.\"&EIGNIR!$B$3&C5952","v":{"$error":"#N/A"}},{"$f":"'Sundurliðun Afleiður - eignir'!G8","v":0},".M.EAFVR$$.XX.FJA.EIF.XXXX.SX.XXX.XXX.IS.N.M"]
[{"$f":"\"INN.\"&EIGNIR!$B$3&C5953","v":{"$error":"#N/A"}},{"$f":"'Sundurliðun Afleiður - eignir'!G9","v":0},".M.EAFVR$$.XX.INN.EIF.XXXX.SX.XXX.XXX.IS.N.M"]
[{"$f":"\"INN.\"&EIGNIR!$B$3&C5954","v":{"$error":"#N/A"}},{"$f":"'Sundurliðun Afleiður - eignir'!G10","v":0},".M.EAFVR$$.XX.SLI.EIF.XXXX.SX.XXX.XXX.IS.N.M"]
[{"$f":"\"INN.\"&EIGNIR!$B$3&C5955","v":{"$error":"#N/A"}},{"$f":"'Sundurliðun Afleiður - eignir'!G11","v":0},".M.EAFVR$$.XX.PEN.EIF.XXXX.SX.XXX.XXX.IS.N.M"]
[{"$f":"\"INN.\"&EIGNIR!$B$3&C5956","v":{"$error":"#N/A"}},{"$f":"'Sundurliðun Afleiður - eignir'!G12","v":0},".M.EAFVR$$.XX.SJO.EIF.XXXX.SX.XXX.XXX.IS.N.M"]
[{"$f":"\"INN.\"&EIGNIR!$B$3&C5957","v":{"$error":"#N/A"}},{"$f":"'Sundurliðun Afleiður - eignir'!G13","v":0},".M.EAFVR$$.XX.YFT.EIF.XXXX.SX.XXX.XXX.IS.N.M"]
[{"$f":"\"INN.\"&EIGNIR!$B$3&C5958","v":{"$error":"#N/A"}},{"$f":"'Sundurliðun Afleiður - eignir'!G14","v":0},".M.EAFVR$$.XX.SLY.EIF.XXXX.SX.XXX.XXX.IS.N.M"]
[{"$f":"\"INN.\"&EIGNIR!$B$3&C5959","v":{"$error":"#N/A"}},{"$f":"'Sundurliðun Afleiður - eignir'!G15","v":0},".M.EAFVR$$.XX.FHL.EIF.XXXX.SX.XXX.XXX.IS.N.M"]
[{"$f":"\"INN.\"&EIGNIR!$B$3&C5960","v":{"$error":"#N/A"}},{"$f":"'Sundurliðun Afleiður - eignir'!G16","v":0},".M.EAFVR$$.XX.INF.EIF.XXXX.SX.XXX.XXX.IS.N.M"]
[{"$f":"\"INN.\"&EIGNIR!$B$3&C5961","v":{"$error":"#N/A"}},{"$f":"'Sundurliðun Afleiður - eignir'!G17","v":0},".M.EAFVR$$.XX.TRY.EIF.XXXX.SX.XXX.XXX.IS.N.M"]
[{"$f":"\"INN.\"&EIGNIR!$B$3&C5962","v":{"$error":"#N/A"}},{"$f":"'Sundurliðun Afleiður - eignir'!G18","v":0},".M.EAFVR$$.XX.LIF.EIF.XXXX.SX.XXX.XXX.IS.N.M"]
[{"$f":"\"INN.\"&EIGNIR!$B$3&C5963","v":{"$error":"#N/A"}},{"$f":"'Sundurliðun Afleiður - eignir'!G33","v":0},".M.EAFFS$$.XX.ATV.EIF.XXXX.SX.XXX.XXX.IS.N.M"]
[{"$f":"\"INN.\"&EIGNIR!$B$3&C5964","v":{"$error":"#N/A"}},{"$f":"'Sundurliðun Afleiður - eignir'!G34","v":0},".M.EAFFS$$.XX.FJA.EIF.XXXX.SX.XXX.XXX.IS.N.M"]
[{"$f":"\"INN.\"&EIGNIR!$B$3&C5965","v":{"$error":"#N/A"}},{"$f":"'Sundurliðun Afleiður - eignir'!G35","v":0},".M.EAFFS$$.XX.INN.EIF.XXXX.SX.XXX.XXX.IS.N.M"]
[{"$f":"\"INN.\"&EIGNIR!$B$3&C5966","v":{"$error":"#N/A"}},{"$f":"'Sundurliðun Afleiður - eignir'!G36","v":0},".M.EAFFS$$.XX.SLI.EIF.XXXX.SX.XXX.XXX.IS.N.M"]
[{"$f":"\"INN.\"&EIGNIR!$B$3&C5967","v":{"$error":"#N/A"}},{"$f":"'Sundurliðun Afleiður - eignir'!G37","v":0},".M.EAFFS$$.XX.PEN.EIF.XXXX.SX.XXX.XXX.IS.N.M"]
[{"$f":"\"INN.\"&EIGNIR!$B$3&C5968","v":{"$error":"#N/A"}},{"$f":"'Sundurliðun Afleiður - eignir'!G38","v":0},".M.EAFFS$$.XX.SJO.EIF.XXXX.SX.XXX.XXX.IS.N.M"]
[{"$f":"\"INN.\"&EIGNIR!$B$3&C5969","v":{"$error":"#N/A"}},{"$f":"'Sundurliðun Afleiður - eignir'!G39","v":0},".M.EAFFS$$.XX.YFT.EIF.XXXX.SX.XXX.XXX.IS.N.M"]
[{"$f":"\"INN.\"&EIGNIR!$B$3&C5970","v":{"$error":"#N/A"}},{"$f":"'Sundurliðun Afleiður - eignir'!G40","v":0},".M.EAFFS$$.XX.SLY.EIF.XXXX.SX.XXX.XXX.IS.N.M"]
[{"$f":"\"INN.\"&EIGNIR!$B$3&C5971","v":{"$error":"#N/A"}},{"$f":"'Sundurliðun Afleiður - eignir'!G41","v":0},".M.EAFFS$$.XX.FHL.EIF.XXXX.SX.XXX.XXX.IS.N.M"]
[{"$f":"\"INN.\"&EIGNIR!$B$3&C5972","v":{"$error":"#N/A"}},{"$f":"'Sundurliðun Afleiður - eignir'!G42","v":0},".M.EAFFS$$.XX.INF.EIF.XXXX.SX.XXX.XXX.IS.N.M"]
[{"$f":"\"INN.\"&EIGNIR!$B$3&C5973","v":{"$error":"#N/A"}},{"$f":"'Sundurliðun Afleiður - eignir'!G43","v":0},".M.EAFFS$$.XX.TRY.EIF.XXXX.SX.XXX.XXX.IS.N.M"]
[{"$f":"\"INN.\"&EIGNIR!$B$3&C5974","v":{"$error":"#N/A"}},{"$f":"'Sundurliðun Afleiður - eignir'!G44","v":0},".M.EAFFS$$.XX.LIF.EIF.XXXX.SX.XXX.XXX.IS.N.M"]
[{"$f":"\"INN.\"&EIGNIR!$B$3&C5975","v":{"$error":"#N/A"}},{"$f":"'Sundurliðun Afleiður - eignir'!G59","v":0},".M.EAFSS$$.XX.ATV.EIF.XXXX.SX.XXX.XXX.IS.N.M"]
[{"$f":"\"INN.\"&EIGNIR!$B$3&C5976","v":{"$error":"#N/A"}},{"$f":"'Sundurliðun Afleiður - eignir'!G60","v":0},".M.EAFSS$$.XX.FJA.EIF.XXXX.SX.XXX.XXX.IS.N.M"]
[{"$f":"\"INN.\"&EIGNIR!$B$3&C5977","v":{"$error":"#N/A"}},{"$f":"'Sundurliðun Afleiður - eignir'!G61","v":0},".M.EAFSS$$.XX.INN.EIF.XXXX.SX.XXX.XXX.IS.N.M"]
[{"$f":"\"INN.\"&EIGNIR!$B$3&C5978","v":{"$error":"#N/A"}},{"$f":"'Sundurliðun Afleiður - eignir'!G62","v":0},".M.EAFSS$$.XX.SLI.EIF.XXXX.SX.XXX.XXX.IS.N.M"]
[{"$f":"\"INN.\"&EIGNIR!$B$3&C5979","v":{"$error":"#N/A"}},{"$f":"'Sundurliðun Afleiður - eignir'!G63","v":0},".M.EAFSS$$.XX.PEN.EIF.XXXX.SX.XXX.XXX.IS.N.M"]
[{"$f":"\"INN.\"&EIGNIR!$B$3&C5980","v":{"$error":"#N/A"}},{"$f":"'Sundurliðun Afleiður - eignir'!G64","v":0},".M.EAFSS$$.XX.SJO.EIF.XXXX.SX.XXX.XXX.IS.N.M"]
[{"$f":"\"INN.\"&EIGNIR!$B$3&C5981","v":{"$error":"#N/A"}},{"$f":"'Sundurliðun Afleiður - eignir'!G65","v":0},".M.EAFSS$$.XX.YFT.EIF.XXXX.SX.XXX.XXX.IS.N.M"]
[{"$f":"\"INN.\"&EIGNIR!$B$3&C5982","v":{"$error":"#N/A"}},{"$f":"'Sundurliðun Afleiður - eignir'!G66","v":0},".M.EAFSS$$.XX.SLY.EIF.XXXX.SX.XXX.XXX.IS.N.M"]
[{"$f":"\"INN.\"&EIGNIR!$B$3&C5983","v":{"$error":"#N/A"}},{"$f":"'Sundurliðun Afleiður - eignir'!G67","v":0},".M.EAFSS$$.XX.FHL.EIF.XXXX.SX.XXX.XXX.IS.N.M"]
[{"$f":"\"INN.\"&EIGNIR!$B$3&C5984","v":{"$error":"#N/A"}},{"$f":"'Sundurliðun Afleiður - eignir'!G68","v":0},".M.EAFSS$$.XX.INF.EIF.XXXX.SX.XXX.XXX.IS.N.M"]
[{"$f":"\"INN.\"&EIGNIR!$B$3&C5985","v":{"$error":"#N/A"}},{"$f":"'Sundurliðun Afleiður - eignir'!G69","v":0},".M.EAFSS$$.XX.TRY.EIF.XXXX.SX.XXX.XXX.IS.N.M"]
[{"$f":"\"INN.\"&EIGNIR!$B$3&C5986","v":{"$error":"#N/A"}},{"$f":"'Sundurliðun Afleiður - eignir'!G70","v":0},".M.EAFSS$$.XX.LIF.EIF.XXXX.SX.XXX.XXX.IS.N.M"]
[{"$f":"\"INN.\"&EIGNIR!$B$3&C5987","v":{"$error":"#N/A"}},{"$f":"'Sundurliðun Afleiður - eignir'!H5","v":0},".M.EAF$$$$.XX.$$$.XXX.XXXX.SX.XXX.ISK.IS.N.M"]
[{"$f":"\"INN.\"&EIGNIR!$B$3&C5988","v":{"$error":"#N/A"}},{"$f":"'Sundurliðun Afleiður - eignir'!H6","v":0},".M.EAFVR$$.XX.$$$.XXX.XXXX.SX.XXX.ISK.IS.N.M"]
[{"$f":"\"INN.\"&EIGNIR!$B$3&C5989","v":{"$error":"#N/A"}},{"$f":"'Sundurliðun Afleiður - eignir'!H7","v":0},".M.EAFVR$$.XX.ATV.XXX.XXXX.SX.XXX.ISK.IS.N.M"]
[{"$f":"\"INN.\"&EIGNIR!$B$3&C5990","v":{"$error":"#N/A"}},{"$f":"'Sundurliðun Afleiður - eignir'!H8","v":0},".M.EAFVR$$.XX.FJA.XXX.XXXX.SX.XXX.ISK.IS.N.M"]
[{"$f":"\"INN.\"&EIGNIR!$B$3&C5991","v":{"$error":"#N/A"}},{"$f":"'Sundurliðun Afleiður - eignir'!H9","v":0},".M.EAFVR$$.XX.INN.XXX.XXXX.SX.XXX.ISK.IS.N.M"]
[{"$f":"\"INN.\"&EIGNIR!$B$3&C5992","v":{"$error":"#N/A"}},{"$f":"'Sundurliðun Afleiður - eignir'!H10","v":0},".M.EAFVR$$.XX.SLI.XXX.XXXX.SX.XXX.ISK.IS.N.M"]
[{"$f":"\"INN.\"&EIGNIR!$B$3&C5993","v":{"$error":"#N/A"}},{"$f":"'Sundurliðun Afleiður - eignir'!H11","v":0},".M.EAFVR$$.XX.PEN.XXX.XXXX.SX.XXX.ISK.IS.N.M"]
[{"$f":"\"INN.\"&EIGNIR!$B$3&C5994","v":{"$error":"#N/A"}},{"$f":"'Sundurliðun Afleiður - eignir'!H12","v":0},".M.EAFVR$$.XX.SJO.XXX.XXXX.SX.XXX.ISK.IS.N.M"]
[{"$f":"\"INN.\"&EIGNIR!$B$3&C5995","v":{"$error":"#N/A"}},{"$f":"'Sundurliðun Afleiður - eignir'!H13","v":0},".M.EAFVR$$.XX.YFT.XXX.XXXX.SX.XXX.ISK.IS.N.M"]
[{"$f":"\"INN.\"&EIGNIR!$B$3&C5996","v":{"$error":"#N/A"}},{"$f":"'Sundurliðun Afleiður - eignir'!H14","v":0},".M.EAFVR$$.XX.SLY.XXX.XXXX.SX.XXX.ISK.IS.N.M"]
[{"$f":"\"INN.\"&EIGNIR!$B$3&C5997","v":{"$error":"#N/A"}},{"$f":"'Sundurliðun Afleiður - eignir'!H15","v":0},".M.EAFVR$$.XX.FHL.XXX.XXXX.SX.XXX.ISK.IS.N.M"]
[{"$f":"\"INN.\"&EIGNIR!$B$3&C5998","v":{"$error":"#N/A"}},{"$f":"'Sundurliðun Afleiður - eignir'!H16","v":0},".M.EAFVR$$.XX.INF.XXX.XXXX.SX.XXX.ISK.IS.N.M"]
[{"$f":"\"INN.\"&EIGNIR!$B$3&C5999","v":{"$error":"#N/A"}},{"$f":"'Sundurliðun Afleiður - eignir'!H17","v":0},".M.EAFVR$$.XX.TRY.XXX.XXXX.SX.XXX.ISK.IS.N.M"]
[{"$f":"\"INN.\"&EIGNIR!$B$3&C6000","v":{"$error":"#N/A"}},{"$f":"'Sundurliðun Afleiður - eignir'!H18","v":0},".M.EAFVR$$.XX.LIF.XXX.XXXX.SX.XXX.ISK.IS.N.M"]
[{"$f":"\"INN.\"&EIGNIR!$B$3&C6001","v":{"$error":"#N/A"}},{"$f":"'Sundurliðun Afleiður - eignir'!H19","v":0},".M.EAFVR$$.XX.OPI.XXX.XXXX.SX.XXX.ISK.IS.N.M"]
[{"$f":"\"INN.\"&EIGNIR!$B$3&C6002","v":{"$error":"#N/A"}},{"$f":"'Sundurliðun Afleiður - eignir'!H20","v":0},".M.EAFVR$$.XX.RSS.XXX.XXXX.SX.XXX.ISK.IS.N.M"]
[{"$f":"\"INN.\"&EIGNIR!$B$3&C6003","v":{"$error":"#N/A"}},{"$f":"'Sundurliðun Afleiður - eignir'!H21","v":0},".M.EAFVR$$.XX.BAJ.XXX.XXXX.SX.XXX.ISK.IS.N.M"]
[{"$f":"\"INN.\"&EIGNIR!$B$3&C6004","v":{"$error":"#N/A"}},{"$f":"'Sundurliðun Afleiður - eignir'!H22","v":0},".M.EAFVR$$.XX.EIN.XXX.XXXX.SX.XXX.ISK.IS.N.M"]
[{"$f":"\"INN.\"&EIGNIR!$B$3&C6005","v":{"$error":"#N/A"}},{"$f":"'Sundurliðun Afleiður - eignir'!H23","v":0},".M.EAFVR$$.XX.NPH.XXX.XXXX.SX.XXX.ISK.IS.N.M"]
[{"$f":"\"INN.\"&EIGNIR!$B$3&C6006","v":{"$error":"#N/A"}},{"$f":"'Sundurliðun Afleiður - eignir'!H24","v":0},".M.EAFVR$$.XX.ERL.XXX.XXXX.SX.XXX.ISK.IS.N.M"]
[{"$f":"\"INN.\"&EIGNIR!$B$3&C6007","v":{"$error":"#N/A"}},{"$f":"'Sundurliðun Afleiður - eignir'!H25","v":0},".M.EAFVR$$.XX.ERS.XXX.XXXX.SX.XXX.ISK.IS.N.M"]
[{"$f":"\"INN.\"&EIGNIR!$B$3&C6008","v":{"$error":"#N/A"}},{"$f":"'Sundurliðun Afleiður - eignir'!H26","v":0},".M.EAFVR$$.XX.ERI.XXX.XXXX.SX.XXX.ISK.IS.N.M"]
[{"$f":"\"INN.\"&EIGNIR!$B$3&C6009","v":{"$error":"#N/A"}},{"$f":"'Sundurliðun Afleiður - eignir'!H27","v":0},".M.EAFVR$$.XX.ERP.XXX.XXXX.SX.XXX.ISK.IS.N.M"]
[{"$f":"\"INN.\"&EIGNIR!$B$3&C6010","v":{"$error":"#N/A"}},{"$f":"'Sundurliðun Afleiður - eignir'!H28","v":0},".M.EAFVR$$.XX.ERV.XXX.XXXX.SX.XXX.ISK.IS.N.M"]
[{"$f":"\"INN.\"&EIGNIR!$B$3&C6011","v":{"$error":"#N/A"}},{"$f":"'Sundurliðun Afleiður - eignir'!H29","v":0},".M.EAFVR$$.XX.ERF.XXX.XXXX.SX.XXX.ISK.IS.N.M"]
[{"$f":"\"INN.\"&EIGNIR!$B$3&C6012","v":{"$error":"#N/A"}},{"$f":"'Sundurliðun Afleiður - eignir'!H30","v":0},".M.EAFVR$$.XX.ERO.XXX.XXXX.SX.XXX.ISK.IS.N.M"]
[{"$f":"\"INN.\"&EIGNIR!$B$3&C6013","v":{"$error":"#N/A"}},{"$f":"'Sundurliðun Afleiður - eignir'!H31","v":0},".M.EAFVR$$.XX.ERA.XXX.XXXX.SX.XXX.ISK.IS.N.M"]
[{"$f":"\"INN.\"&EIGNIR!$B$3&C6014","v":{"$error":"#N/A"}},{"$f":"'Sundurliðun Afleiður - eignir'!H32","v":0},".M.EAFFS$$.XX.$$$.XXX.XXXX.SX.XXX.ISK.IS.N.M"]
[{"$f":"\"INN.\"&EIGNIR!$B$3&C6015","v":{"$error":"#N/A"}},{"$f":"'Sundurliðun Afleiður - eignir'!H33","v":0},".M.EAFFS$$.XX.ATV.XXX.XXXX.SX.XXX.ISK.IS.N.M"]
[{"$f":"\"INN.\"&EIGNIR!$B$3&C6016","v":{"$error":"#N/A"}},{"$f":"'Sundurliðun Afleiður - eignir'!H34","v":0},".M.EAFFS$$.XX.FJA.XXX.XXXX.SX.XXX.ISK.IS.N.M"]
[{"$f":"\"INN.\"&EIGNIR!$B$3&C6017","v":{"$error":"#N/A"}},{"$f":"'Sundurliðun Afleiður - eignir'!H35","v":0},".M.EAFFS$$.XX.INN.XXX.XXXX.SX.XXX.ISK.IS.N.M"]
[{"$f":"\"INN.\"&EIGNIR!$B$3&C6018","v":{"$error":"#N/A"}},{"$f":"'Sundurliðun Afleiður - eignir'!H36","v":0},".M.EAFFS$$.XX.SLI.XXX.XXXX.SX.XXX.ISK.IS.N.M"]
[{"$f":"\"INN.\"&EIGNIR!$B$3&C6019","v":{"$error":"#N/A"}},{"$f":"'Sundurliðun Afleiður - eignir'!H37","v":0},".M.EAFFS$$.XX.PEN.XXX.XXXX.SX.XXX.ISK.IS.N.M"]
[{"$f":"\"INN.\"&EIGNIR!$B$3&C6020","v":{"$error":"#N/A"}},{"$f":"'Sundurliðun Afleiður - eignir'!H38","v":0},".M.EAFFS$$.XX.SJO.XXX.XXXX.SX.XXX.ISK.IS.N.M"]
[{"$f":"\"INN.\"&EIGNIR!$B$3&C6021","v":{"$error":"#N/A"}},{"$f":"'Sundurliðun Afleiður - eignir'!H39","v":0},".M.EAFFS$$.XX.YFT.XXX.XXXX.SX.XXX.ISK.IS.N.M"]
[{"$f":"\"INN.\"&EIGNIR!$B$3&C6022","v":{"$error":"#N/A"}},{"$f":"'Sundurliðun Afleiður - eignir'!H40","v":0},".M.EAFFS$$.XX.SLY.XXX.XXXX.SX.XXX.ISK.IS.N.M"]
[{"$f":"\"INN.\"&EIGNIR!$B$3&C6023","v":{"$error":"#N/A"}},{"$f":"'Sundurliðun Afleiður - eignir'!H41","v":0},".M.EAFFS$$.XX.FHL.XXX.XXXX.SX.XXX.ISK.IS.N.M"]
[{"$f":"\"INN.\"&EIGNIR!$B$3&C6024","v":{"$error":"#N/A"}},{"$f":"'Sundurliðun Afleiður - eignir'!H42","v":0},".M.EAFFS$$.XX.INF.XXX.XXXX.SX.XXX.ISK.IS.N.M"]
[{"$f":"\"INN.\"&EIGNIR!$B$3&C6025","v":{"$error":"#N/A"}},{"$f":"'Sundurliðun Afleiður - eignir'!H43","v":0},".M.EAFFS$$.XX.TRY.XXX.XXXX.SX.XXX.ISK.IS.N.M"]
[{"$f":"\"INN.\"&EIGNIR!$B$3&C6026","v":{"$error":"#N/A"}},{"$f":"'Sundurliðun Afleiður - eignir'!H44","v":0},".M.EAFFS$$.XX.LIF.XXX.XXXX.SX.XXX.ISK.IS.N.M"]
[{"$f":"\"INN.\"&EIGNIR!$B$3&C6027","v":{"$error":"#N/A"}},{"$f":"'Sundurliðun Afleiður - eignir'!H45","v":0},".M.EAFFS$$.XX.OPI.XXX.XXXX.SX.XXX.ISK.IS.N.M"]
[{"$f":"\"INN.\"&EIGNIR!$B$3&C6028","v":{"$error":"#N/A"}},{"$f":"'Sundurliðun Afleiður - eignir'!H46","v":0},".M.EAFFS$$.XX.RSS.XXX.XXXX.SX.XXX.ISK.IS.N.M"]
[{"$f":"\"INN.\"&EIGNIR!$B$3&C6029","v":{"$error":"#N/A"}},{"$f":"'Sundurliðun Afleiður - eignir'!H47","v":0},".M.EAFFS$$.XX.BAJ.XXX.XXXX.SX.XXX.ISK.IS.N.M"]
[{"$f":"\"INN.\"&EIGNIR!$B$3&C6030","v":{"$error":"#N/A"}},{"$f":"'Sundurliðun Afleiður - eignir'!H48","v":0},".M.EAFFS$$.XX.EIN.XXX.XXXX.SX.XXX.ISK.IS.N.M"]
[{"$f":"\"INN.\"&EIGNIR!$B$3&C6031","v":{"$error":"#N/A"}},{"$f":"'Sundurliðun Afleiður - eignir'!H49","v":0},".M.EAFFS$$.XX.NPH.XXX.XXXX.SX.XXX.ISK.IS.N.M"]
[{"$f":"\"INN.\"&EIGNIR!$B$3&C6032","v":{"$error":"#N/A"}},{"$f":"'Sundurliðun Afleiður - eignir'!H50","v":0},".M.EAFFS$$.XX.ERL.XXX.XXXX.SX.XXX.ISK.IS.N.M"]
[{"$f":"\"INN.\"&EIGNIR!$B$3&C6033","v":{"$error":"#N/A"}},{"$f":"'Sundurliðun Afleiður - eignir'!H51","v":0},".M.EAFFS$$.XX.ERS.XXX.XXXX.SX.XXX.ISK.IS.N.M"]
[{"$f":"\"INN.\"&EIGNIR!$B$3&C6034","v":{"$error":"#N/A"}},{"$f":"'Sundurliðun Afleiður - eignir'!H52","v":0},".M.EAFFS$$.XX.ERI.XXX.XXXX.SX.XXX.ISK.IS.N.M"]
[{"$f":"\"INN.\"&EIGNIR!$B$3&C6035","v":{"$error":"#N/A"}},{"$f":"'Sundurliðun Afleiður - eignir'!H53","v":0},".M.EAFFS$$.XX.ERP.XXX.XXXX.SX.XXX.ISK.IS.N.M"]
[{"$f":"\"INN.\"&EIGNIR!$B$3&C6036","v":{"$error":"#N/A"}},{"$f":"'Sundurliðun Afleiður - eignir'!H54","v":0},".M.EAFFS$$.XX.ERV.XXX.XXXX.SX.XXX.ISK.IS.N.M"]
[{"$f":"\"INN.\"&EIGNIR!$B$3&C6037","v":{"$error":"#N/A"}},{"$f":"'Sundurliðun Afleiður - eignir'!H55","v":0},".M.EAFFS$$.XX.ERF.XXX.XXXX.SX.XXX.ISK.IS.N.M"]
[{"$f":"\"INN.\"&EIGNIR!$B$3&C6038","v":{"$error":"#N/A"}},{"$f":"'Sundurliðun Afleiður - eignir'!H56","v":0},".M.EAFFS$$.XX.ERO.XXX.XXXX.SX.XXX.ISK.IS.N.M"]
[{"$f":"\"INN.\"&EIGNIR!$B$3&C6039","v":{"$error":"#N/A"}},{"$f":"'Sundurliðun Afleiður - eignir'!H57","v":0},".M.EAFFS$$.XX.ERA.XXX.XXXX.SX.XXX.ISK.IS.N.M"]
[{"$f":"\"INN.\"&EIGNIR!$B$3&C6040","v":{"$error":"#N/A"}},{"$f":"'Sundurliðun Afleiður - eignir'!H58","v":0},".M.EAFSS$$.XX.$$$.XXX.XXXX.SX.XXX.ISK.IS.N.M"]
[{"$f":"\"INN.\"&EIGNIR!$B$3&C6041","v":{"$error":"#N/A"}},{"$f":"'Sundurliðun Afleiður - eignir'!H59","v":0},".M.EAFSS$$.XX.ATV.XXX.XXXX.SX.XXX.ISK.IS.N.M"]
[{"$f":"\"INN.\"&EIGNIR!$B$3&C6042","v":{"$error":"#N/A"}},{"$f":"'Sundurliðun Afleiður - eignir'!H60","v":0},".M.EAFSS$$.XX.FJA.XXX.XXXX.SX.XXX.ISK.IS.N.M"]
[{"$f":"\"INN.\"&EIGNIR!$B$3&C6043","v":{"$error":"#N/A"}},{"$f":"'Sundurliðun Afleiður - eignir'!H61","v":0},".M.EAFSS$$.XX.INN.XXX.XXXX.SX.XXX.ISK.IS.N.M"]
[{"$f":"\"INN.\"&EIGNIR!$B$3&C6044","v":{"$error":"#N/A"}},{"$f":"'Sundurliðun Afleiður - eignir'!H62","v":0},".M.EAFSS$$.XX.SLI.XXX.XXXX.SX.XXX.ISK.IS.N.M"]
[{"$f":"\"INN.\"&EIGNIR!$B$3&C6045","v":{"$error":"#N/A"}},{"$f":"'Sundurliðun Afleiður - eignir'!H63","v":0},".M.EAFSS$$.XX.PEN.XXX.XXXX.SX.XXX.ISK.IS.N.M"]
[{"$f":"\"INN.\"&EIGNIR!$B$3&C6046","v":{"$error":"#N/A"}},{"$f":"'Sundurliðun Afleiður - eignir'!H64","v":0},".M.EAFSS$$.XX.SJO.XXX.XXXX.SX.XXX.ISK.IS.N.M"]
[{"$f":"\"INN.\"&EIGNIR!$B$3&C6047","v":{"$error":"#N/A"}},{"$f":"'Sundurliðun Afleiður - eignir'!H65","v":0},".M.EAFSS$$.XX.YFT.XXX.XXXX.SX.XXX.ISK.IS.N.M"]
[{"$f":"\"INN.\"&EIGNIR!$B$3&C6048","v":{"$error":"#N/A"}},{"$f":"'Sundurliðun Afleiður - eignir'!H66","v":0},".M.EAFSS$$.XX.SLY.XXX.XXXX.SX.XXX.ISK.IS.N.M"]
[{"$f":"\"INN.\"&EIGNIR!$B$3&C6049","v":{"$error":"#N/A"}},{"$f":"'Sundurliðun Afleiður - eignir'!H67","v":0},".M.EAFSS$$.XX.FHL.XXX.XXXX.SX.XXX.ISK.IS.N.M"]
[{"$f":"\"INN.\"&EIGNIR!$B$3&C6050","v":{"$error":"#N/A"}},{"$f":"'Sundurliðun Afleiður - eignir'!H68","v":0},".M.EAFSS$$.XX.INF.XXX.XXXX.SX.XXX.ISK.IS.N.M"]
[{"$f":"\"INN.\"&EIGNIR!$B$3&C6051","v":{"$error":"#N/A"}},{"$f":"'Sundurliðun Afleiður - eignir'!H69","v":0},".M.EAFSS$$.XX.TRY.XXX.XXXX.SX.XXX.ISK.IS.N.M"]
[{"$f":"\"INN.\"&EIGNIR!$B$3&C6052","v":{"$error":"#N/A"}},{"$f":"'Sundurliðun Afleiður - eignir'!H70","v":0},".M.EAFSS$$.XX.LIF.XXX.XXXX.SX.XXX.ISK.IS.N.M"]
[{"$f":"\"INN.\"&EIGNIR!$B$3&C6053","v":{"$error":"#N/A"}},{"$f":"'Sundurliðun Afleiður - eignir'!H71","v":0},".M.EAFSS$$.XX.OPI.XXX.XXXX.SX.XXX.ISK.IS.N.M"]
[{"$f":"\"INN.\"&EIGNIR!$B$3&C6054","v":{"$error":"#N/A"}},{"$f":"'Sundurliðun Afleiður - eignir'!H72","v":0},".M.EAFSS$$.XX.RSS.XXX.XXXX.SX.XXX.ISK.IS.N.M"]
[{"$f":"\"INN.\"&EIGNIR!$B$3&C6055","v":{"$error":"#N/A"}},{"$f":"'Sundurliðun Afleiður - eignir'!H73","v":0},".M.EAFSS$$.XX.BAJ.XXX.XXXX.SX.XXX.ISK.IS.N.M"]
[{"$f":"\"INN.\"&EIGNIR!$B$3&C6056","v":{"$error":"#N/A"}},{"$f":"'Sundurliðun Afleiður - eignir'!H74","v":0},".M.EAFSS$$.XX.EIN.XXX.XXXX.SX.XXX.ISK.IS.N.M"]
[{"$f":"\"INN.\"&EIGNIR!$B$3&C6057","v":{"$error":"#N/A"}},{"$f":"'Sundurliðun Afleiður - eignir'!H75","v":0},".M.EAFSS$$.XX.NPH.XXX.XXXX.SX.XXX.ISK.IS.N.M"]
[{"$f":"\"INN.\"&EIGNIR!$B$3&C6058","v":{"$error":"#N/A"}},{"$f":"'Sundurliðun Afleiður - eignir'!H76","v":0},".M.EAFSS$$.XX.ERL.XXX.XXXX.SX.XXX.ISK.IS.N.M"]
[{"$f":"\"INN.\"&EIGNIR!$B$3&C6059","v":{"$error":"#N/A"}},{"$f":"'Sundurliðun Afleiður - eignir'!H77","v":0},".M.EAFSS$$.XX.ERS.XXX.XXXX.SX.XXX.ISK.IS.N.M"]
[{"$f":"\"INN.\"&EIGNIR!$B$3&C6060","v":{"$error":"#N/A"}},{"$f":"'Sundurliðun Afleiður - eignir'!H78","v":0},".M.EAFSS$$.XX.ERI.XXX.XXXX.SX.XXX.ISK.IS.N.M"]
[{"$f":"\"INN.\"&EIGNIR!$B$3&C6061","v":{"$error":"#N/A"}},{"$f":"'Sundurliðun Afleiður - eignir'!H79","v":0},".M.EAFSS$$.XX.ERP.XXX.XXXX.SX.XXX.ISK.IS.N.M"]
[{"$f":"\"INN.\"&EIGNIR!$B$3&C6062","v":{"$error":"#N/A"}},{"$f":"'Sundurliðun Afleiður - eignir'!H80","v":0},".M.EAFSS$$.XX.ERV.XXX.XXXX.SX.XXX.ISK.IS.N.M"]
[{"$f":"\"INN.\"&EIGNIR!$B$3&C6063","v":{"$error":"#N/A"}},{"$f":"'Sundurliðun Afleiður - eignir'!H81","v":0},".M.EAFSS$$.XX.ERF.XXX.XXXX.SX.XXX.ISK.IS.N.M"]
[{"$f":"\"INN.\"&EIGNIR!$B$3&C6064","v":{"$error":"#N/A"}},{"$f":"'Sundurliðun Afleiður - eignir'!H82","v":0},".M.EAFSS$$.XX.ERO.XXX.XXXX.SX.XXX.ISK.IS.N.M"]
[{"$f":"\"INN.\"&EIGNIR!$B$3&C6065","v":{"$error":"#N/A"}},{"$f":"'Sundurliðun Afleiður - eignir'!H83","v":0},".M.EAFSS$$.XX.ERA.XXX.XXXX.SX.XXX.ISK.IS.N.M"]
[{"$f":"\"INN.\"&EIGNIR!$B$3&C6066","v":{"$error":"#N/A"}},{"$f":"'Sundurliðun Afleiður - eignir'!I5","v":0},".M.EAF$$$$.XX.$$$.XXX.XXXX.SX.XXX.EUR.IS.N.M","//Sundurliðun afleiður, EUR"]
[{"$f":"\"INN.\"&EIGNIR!$B$3&C6067","v":{"$error":"#N/A"}},{"$f":"'Sundurliðun Afleiður - eignir'!I6","v":0},".M.EAFVR$$.XX.$$$.XXX.XXXX.SX.XXX.EUR.IS.N.M"]
[{"$f":"\"INN.\"&EIGNIR!$B$3&C6068","v":{"$error":"#N/A"}},{"$f":"'Sundurliðun Afleiður - eignir'!I7","v":0},".M.EAFVR$$.XX.ATV.XXX.XXXX.SX.XXX.EUR.IS.N.M"]
[{"$f":"\"INN.\"&EIGNIR!$B$3&C6069","v":{"$error":"#N/A"}},{"$f":"'Sundurliðun Afleiður - eignir'!I8","v":0},".M.EAFVR$$.XX.FJA.XXX.XXXX.SX.XXX.EUR.IS.N.M"]
[{"$f":"\"INN.\"&EIGNIR!$B$3&C6070","v":{"$error":"#N/A"}},{"$f":"'Sundurliðun Afleiður - eignir'!I9","v":0},".M.EAFVR$$.XX.INN.XXX.XXXX.SX.XXX.EUR.IS.N.M"]
[{"$f":"\"INN.\"&EIGNIR!$B$3&C6071","v":{"$error":"#N/A"}},{"$f":"'Sundurliðun Afleiður - eignir'!I10","v":0},".M.EAFVR$$.XX.SLI.XXX.XXXX.SX.XXX.EUR.IS.N.M"]
[{"$f":"\"INN.\"&EIGNIR!$B$3&C6072","v":{"$error":"#N/A"}},{"$f":"'Sundurliðun Afleiður - eignir'!I11","v":0},".M.EAFVR$$.XX.PEN.XXX.XXXX.SX.XXX.EUR.IS.N.M"]
[{"$f":"\"INN.\"&EIGNIR!$B$3&C6073","v":{"$error":"#N/A"}},{"$f":"'Sundurliðun Afleiður - eignir'!I12","v":0},".M.EAFVR$$.XX.SJO.XXX.XXXX.SX.XXX.EUR.IS.N.M"]
[{"$f":"\"INN.\"&EIGNIR!$B$3&C6074","v":{"$error":"#N/A"}},{"$f":"'Sundurliðun Afleiður - eignir'!I13","v":0},".M.EAFVR$$.XX.YFT.XXX.XXXX.SX.XXX.EUR.IS.N.M"]
[{"$f":"\"INN.\"&EIGNIR!$B$3&C6075","v":{"$error":"#N/A"}},{"$f":"'Sundurliðun Afleiður - eignir'!I14","v":0},".M.EAFVR$$.XX.SLY.XXX.XXXX.SX.XXX.EUR.IS.N.M"]
[{"$f":"\"INN.\"&EIGNIR!$B$3&C6076","v":{"$error":"#N/A"}},{"$f":"'Sundurliðun Afleiður - eignir'!I15","v":0},".M.EAFVR$$.XX.FHL.XXX.XXXX.SX.XXX.EUR.IS.N.M"]
[{"$f":"\"INN.\"&EIGNIR!$B$3&C6077","v":{"$error":"#N/A"}},{"$f":"'Sundurliðun Afleiður - eignir'!I16","v":0},".M.EAFVR$$.XX.INF.XXX.XXXX.SX.XXX.EUR.IS.N.M"]
[{"$f":"\"INN.\"&EIGNIR!$B$3&C6078","v":{"$error":"#N/A"}},{"$f":"'Sundurliðun Afleiður - eignir'!I17","v":0},".M.EAFVR$$.XX.TRY.XXX.XXXX.SX.XXX.EUR.IS.N.M"]
[{"$f":"\"INN.\"&EIGNIR!$B$3&C6079","v":{"$error":"#N/A"}},{"$f":"'Sundurliðun Afleiður - eignir'!I18","v":0},".M.EAFVR$$.XX.LIF.XXX.XXXX.SX.XXX.EUR.IS.N.M"]
[{"$f":"\"INN.\"&EIGNIR!$B$3&C6080","v":{"$error":"#N/A"}},{"$f":"'Sundurliðun Afleiður - eignir'!I19","v":0},".M.EAFVR$$.XX.OPI.XXX.XXXX.SX.XXX.EUR.IS.N.M"]
[{"$f":"\"INN.\"&EIGNIR!$B$3&C6081","v":{"$error":"#N/A"}},{"$f":"'Sundurliðun Afleiður - eignir'!I20","v":0},".M.EAFVR$$.XX.RSS.XXX.XXXX.SX.XXX.EUR.IS.N.M"]
[{"$f":"\"INN.\"&EIGNIR!$B$3&C6082","v":{"$error":"#N/A"}},{"$f":"'Sundurliðun Afleiður - eignir'!I21","v":0},".M.EAFVR$$.XX.BAJ.XXX.XXXX.SX.XXX.EUR.IS.N.M"]
[{"$f":"\"INN.\"&EIGNIR!$B$3&C6083","v":{"$error":"#N/A"}},{"$f":"'Sundurliðun Afleiður - eignir'!I22","v":0},".M.EAFVR$$.XX.EIN.XXX.XXXX.SX.XXX.EUR.IS.N.M"]
[{"$f":"\"INN.\"&EIGNIR!$B$3&C6084","v":{"$error":"#N/A"}},{"$f":"'Sundurliðun Afleiður - eignir'!I23","v":0},".M.EAFVR$$.XX.NPH.XXX.XXXX.SX.XXX.EUR.IS.N.M"]
[{"$f":"\"INN.\"&EIGNIR!$B$3&C6085","v":{"$error":"#N/A"}},{"$f":"'Sundurliðun Afleiður - eignir'!I24","v":0},".M.EAFVR$$.XX.ERL.XXX.XXXX.SX.XXX.EUR.IS.N.M"]
[{"$f":"\"INN.\"&EIGNIR!$B$3&C6086","v":{"$error":"#N/A"}},{"$f":"'Sundurliðun Afleiður - eignir'!I25","v":0},".M.EAFVR$$.XX.ERS.XXX.XXXX.SX.XXX.EUR.IS.N.M"]
[{"$f":"\"INN.\"&EIGNIR!$B$3&C6087","v":{"$error":"#N/A"}},{"$f":"'Sundurliðun Afleiður - eignir'!I26","v":0},".M.EAFVR$$.XX.ERI.XXX.XXXX.SX.XXX.EUR.IS.N.M"]
[{"$f":"\"INN.\"&EIGNIR!$B$3&C6088","v":{"$error":"#N/A"}},{"$f":"'Sundurliðun Afleiður - eignir'!I27","v":0},".M.EAFVR$$.XX.ERP.XXX.XXXX.SX.XXX.EUR.IS.N.M"]
[{"$f":"\"INN.\"&EIGNIR!$B$3&C6089","v":{"$error":"#N/A"}},{"$f":"'Sundurliðun Afleiður - eignir'!I28","v":0},".M.EAFVR$$.XX.ERV.XXX.XXXX.SX.XXX.EUR.IS.N.M"]
[{"$f":"\"INN.\"&EIGNIR!$B$3&C6090","v":{"$error":"#N/A"}},{"$f":"'Sundurliðun Afleiður - eignir'!I29","v":0},".M.EAFVR$$.XX.ERF.XXX.XXXX.SX.XXX.EUR.IS.N.M"]
[{"$f":"\"INN.\"&EIGNIR!$B$3&C6091","v":{"$error":"#N/A"}},{"$f":"'Sundurliðun Afleiður - eignir'!I30","v":0},".M.EAFVR$$.XX.ERO.XXX.XXXX.SX.XXX.EUR.IS.N.M"]
[{"$f":"\"INN.\"&EIGNIR!$B$3&C6092","v":{"$error":"#N/A"}},{"$f":"'Sundurliðun Afleiður - eignir'!I31","v":0},".M.EAFVR$$.XX.ERA.XXX.XXXX.SX.XXX.EUR.IS.N.M"]
[{"$f":"\"INN.\"&EIGNIR!$B$3&C6093","v":{"$error":"#N/A"}},{"$f":"'Sundurliðun Afleiður - eignir'!I32","v":0},".M.EAFFS$$.XX.$$$.XXX.XXXX.SX.XXX.EUR.IS.N.M"]
[{"$f":"\"INN.\"&EIGNIR!$B$3&C6094","v":{"$error":"#N/A"}},{"$f":"'Sundurliðun Afleiður - eignir'!I33","v":0},".M.EAFFS$$.XX.ATV.XXX.XXXX.SX.XXX.EUR.IS.N.M"]
[{"$f":"\"INN.\"&EIGNIR!$B$3&C6095","v":{"$error":"#N/A"}},{"$f":"'Sundurliðun Afleiður - eignir'!I34","v":0},".M.EAFFS$$.XX.FJA.XXX.XXXX.SX.XXX.EUR.IS.N.M"]
[{"$f":"\"INN.\"&EIGNIR!$B$3&C6096","v":{"$error":"#N/A"}},{"$f":"'Sundurliðun Afleiður - eignir'!I35","v":0},".M.EAFFS$$.XX.INN.XXX.XXXX.SX.XXX.EUR.IS.N.M"]
[{"$f":"\"INN.\"&EIGNIR!$B$3&C6097","v":{"$error":"#N/A"}},{"$f":"'Sundurliðun Afleiður - eignir'!I36","v":0},".M.EAFFS$$.XX.SLI.XXX.XXXX.SX.XXX.EUR.IS.N.M"]
[{"$f":"\"INN.\"&EIGNIR!$B$3&C6098","v":{"$error":"#N/A"}},{"$f":"'Sundurliðun Afleiður - eignir'!I37","v":0},".M.EAFFS$$.XX.PEN.XXX.XXXX.SX.XXX.EUR.IS.N.M"]
[{"$f":"\"INN.\"&EIGNIR!$B$3&C6099","v":{"$error":"#N/A"}},{"$f":"'Sundurliðun Afleiður - eignir'!I38","v":0},".M.EAFFS$$.XX.SJO.XXX.XXXX.SX.XXX.EUR.IS.N.M"]
[{"$f":"\"INN.\"&EIGNIR!$B$3&C6100","v":{"$error":"#N/A"}},{"$f":"'Sundurliðun Afleiður - eignir'!I39","v":0},".M.EAFFS$$.XX.YFT.XXX.XXXX.SX.XXX.EUR.IS.N.M"]
[{"$f":"\"INN.\"&EIGNIR!$B$3&C6101","v":{"$error":"#N/A"}},{"$f":"'Sundurliðun Afleiður - eignir'!I40","v":0},".M.EAFFS$$.XX.SLY.XXX.XXXX.SX.XXX.EUR.IS.N.M"]
[{"$f":"\"INN.\"&EIGNIR!$B$3&C6102","v":{"$error":"#N/A"}},{"$f":"'Sundurliðun Afleiður - eignir'!I41","v":0},".M.EAFFS$$.XX.FHL.XXX.XXXX.SX.XXX.EUR.IS.N.M"]
[{"$f":"\"INN.\"&EIGNIR!$B$3&C6103","v":{"$error":"#N/A"}},{"$f":"'Sundurliðun Afleiður - eignir'!I42","v":0},".M.EAFFS$$.XX.INF.XXX.XXXX.SX.XXX.EUR.IS.N.M"]
[{"$f":"\"INN.\"&EIGNIR!$B$3&C6104","v":{"$error":"#N/A"}},{"$f":"'Sundurliðun Afleiður - eignir'!I43","v":0},".M.EAFFS$$.XX.TRY.XXX.XXXX.SX.XXX.EUR.IS.N.M"]
[{"$f":"\"INN.\"&EIGNIR!$B$3&C6105","v":{"$error":"#N/A"}},{"$f":"'Sundurliðun Afleiður - eignir'!I44","v":0},".M.EAFFS$$.XX.LIF.XXX.XXXX.SX.XXX.EUR.IS.N.M"]
[{"$f":"\"INN.\"&EIGNIR!$B$3&C6106","v":{"$error":"#N/A"}},{"$f":"'Sundurliðun Afleiður - eignir'!I45","v":0},".M.EAFFS$$.XX.OPI.XXX.XXXX.SX.XXX.EUR.IS.N.M"]
[{"$f":"\"INN.\"&EIGNIR!$B$3&C6107","v":{"$error":"#N/A"}},{"$f":"'Sundurliðun Afleiður - eignir'!I46","v":0},".M.EAFFS$$.XX.RSS.XXX.XXXX.SX.XXX.EUR.IS.N.M"]
[{"$f":"\"INN.\"&EIGNIR!$B$3&C6108","v":{"$error":"#N/A"}},{"$f":"'Sundurliðun Afleiður - eignir'!I47","v":0},".M.EAFFS$$.XX.BAJ.XXX.XXXX.SX.XXX.EUR.IS.N.M"]
[{"$f":"\"INN.\"&EIGNIR!$B$3&C6109","v":{"$error":"#N/A"}},{"$f":"'Sundurliðun Afleiður - eignir'!I48","v":0},".M.EAFFS$$.XX.EIN.XXX.XXXX.SX.XXX.EUR.IS.N.M"]
[{"$f":"\"INN.\"&EIGNIR!$B$3&C6110","v":{"$error":"#N/A"}},{"$f":"'Sundurliðun Afleiður - eignir'!I49","v":0},".M.EAFFS$$.XX.NPH.XXX.XXXX.SX.XXX.EUR.IS.N.M"]
[{"$f":"\"INN.\"&EIGNIR!$B$3&C6111","v":{"$error":"#N/A"}},{"$f":"'Sundurliðun Afleiður - eignir'!I50","v":0},".M.EAFFS$$.XX.ERL.XXX.XXXX.SX.XXX.EUR.IS.N.M"]
[{"$f":"\"INN.\"&EIGNIR!$B$3&C6112","v":{"$error":"#N/A"}},{"$f":"'Sundurliðun Afleiður - eignir'!I51","v":0},".M.EAFFS$$.XX.ERS.XXX.XXXX.SX.XXX.EUR.IS.N.M"]
[{"$f":"\"INN.\"&EIGNIR!$B$3&C6113","v":{"$error":"#N/A"}},{"$f":"'Sundurliðun Afleiður - eignir'!I52","v":0},".M.EAFFS$$.XX.ERI.XXX.XXXX.SX.XXX.EUR.IS.N.M"]
[{"$f":"\"INN.\"&EIGNIR!$B$3&C6114","v":{"$error":"#N/A"}},{"$f":"'Sundurliðun Afleiður - eignir'!I53","v":0},".M.EAFFS$$.XX.ERP.XXX.XXXX.SX.XXX.EUR.IS.N.M"]
[{"$f":"\"INN.\"&EIGNIR!$B$3&C6115","v":{"$error":"#N/A"}},{"$f":"'Sundurliðun Afleiður - eignir'!I54","v":0},".M.EAFFS$$.XX.ERV.XXX.XXXX.SX.XXX.EUR.IS.N.M"]
[{"$f":"\"INN.\"&EIGNIR!$B$3&C6116","v":{"$error":"#N/A"}},{"$f":"'Sundurliðun Afleiður - eignir'!I55","v":0},".M.EAFFS$$.XX.ERF.XXX.XXXX.SX.XXX.EUR.IS.N.M"]
[{"$f":"\"INN.\"&EIGNIR!$B$3&C6117","v":{"$error":"#N/A"}},{"$f":"'Sundurliðun Afleiður - eignir'!I56","v":0},".M.EAFFS$$.XX.ERO.XXX.XXXX.SX.XXX.EUR.IS.N.M"]
[{"$f":"\"INN.\"&EIGNIR!$B$3&C6118","v":{"$error":"#N/A"}},{"$f":"'Sundurliðun Afleiður - eignir'!I57","v":0},".M.EAFFS$$.XX.ERA.XXX.XXXX.SX.XXX.EUR.IS.N.M"]
[{"$f":"\"INN.\"&EIGNIR!$B$3&C6119","v":{"$error":"#N/A"}},{"$f":"'Sundurliðun Afleiður - eignir'!I58","v":0},".M.EAFSS$$.XX.$$$.XXX.XXXX.SX.XXX.EUR.IS.N.M"]
[{"$f":"\"INN.\"&EIGNIR!$B$3&C6120","v":{"$error":"#N/A"}},{"$f":"'Sundurliðun Afleiður - eignir'!I59","v":0},".M.EAFSS$$.XX.ATV.XXX.XXXX.SX.XXX.EUR.IS.N.M"]
[{"$f":"\"INN.\"&EIGNIR!$B$3&C6121","v":{"$error":"#N/A"}},{"$f":"'Sundurliðun Afleiður - eignir'!I60","v":0},".M.EAFSS$$.XX.FJA.XXX.XXXX.SX.XXX.EUR.IS.N.M"]
[{"$f":"\"INN.\"&EIGNIR!$B$3&C6122","v":{"$error":"#N/A"}},{"$f":"'Sundurliðun Afleiður - eignir'!I61","v":0},".M.EAFSS$$.XX.INN.XXX.XXXX.SX.XXX.EUR.IS.N.M"]
[{"$f":"\"INN.\"&EIGNIR!$B$3&C6123","v":{"$error":"#N/A"}},{"$f":"'Sundurliðun Afleiður - eignir'!I62","v":0},".M.EAFSS$$.XX.SLI.XXX.XXXX.SX.XXX.EUR.IS.N.M"]
[{"$f":"\"INN.\"&EIGNIR!$B$3&C6124","v":{"$error":"#N/A"}},{"$f":"'Sundurliðun Afleiður - eignir'!I63","v":0},".M.EAFSS$$.XX.PEN.XXX.XXXX.SX.XXX.EUR.IS.N.M"]
[{"$f":"\"INN.\"&EIGNIR!$B$3&C6125","v":{"$error":"#N/A"}},{"$f":"'Sundurliðun Afleiður - eignir'!I64","v":0},".M.EAFSS$$.XX.SJO.XXX.XXXX.SX.XXX.EUR.IS.N.M"]
[{"$f":"\"INN.\"&EIGNIR!$B$3&C6126","v":{"$error":"#N/A"}},{"$f":"'Sundurliðun Afleiður - eignir'!I65","v":0},".M.EAFSS$$.XX.YFT.XXX.XXXX.SX.XXX.EUR.IS.N.M"]
[{"$f":"\"INN.\"&EIGNIR!$B$3&C6127","v":{"$error":"#N/A"}},{"$f":"'Sundurliðun Afleiður - eignir'!I66","v":0},".M.EAFSS$$.XX.SLY.XXX.XXXX.SX.XXX.EUR.IS.N.M"]
[{"$f":"\"INN.\"&EIGNIR!$B$3&C6128","v":{"$error":"#N/A"}},{"$f":"'Sundurliðun Afleiður - eignir'!I67","v":0},".M.EAFSS$$.XX.FHL.XXX.XXXX.SX.XXX.EUR.IS.N.M"]
[{"$f":"\"INN.\"&EIGNIR!$B$3&C6129","v":{"$error":"#N/A"}},{"$f":"'Sundurliðun Afleiður - eignir'!I68","v":0},".M.EAFSS$$.XX.INF.XXX.XXXX.SX.XXX.EUR.IS.N.M"]
[{"$f":"\"INN.\"&EIGNIR!$B$3&C6130","v":{"$error":"#N/A"}},{"$f":"'Sundurliðun Afleiður - eignir'!I69","v":0},".M.EAFSS$$.XX.TRY.XXX.XXXX.SX.XXX.EUR.IS.N.M"]
[{"$f":"\"INN.\"&EIGNIR!$B$3&C6131","v":{"$error":"#N/A"}},{"$f":"'Sundurliðun Afleiður - eignir'!I70","v":0},".M.EAFSS$$.XX.LIF.XXX.XXXX.SX.XXX.EUR.IS.N.M"]
[{"$f":"\"INN.\"&EIGNIR!$B$3&C6132","v":{"$error":"#N/A"}},{"$f":"'Sundurliðun Afleiður - eignir'!I71","v":0},".M.EAFSS$$.XX.OPI.XXX.XXXX.SX.XXX.EUR.IS.N.M"]
[{"$f":"\"INN.\"&EIGNIR!$B$3&C6133","v":{"$error":"#N/A"}},{"$f":"'Sundurliðun Afleiður - eignir'!I72","v":0},".M.EAFSS$$.XX.RSS.XXX.XXXX.SX.XXX.EUR.IS.N.M"]
[{"$f":"\"INN.\"&EIGNIR!$B$3&C6134","v":{"$error":"#N/A"}},{"$f":"'Sundurliðun Afleiður - eignir'!I73","v":0},".M.EAFSS$$.XX.BAJ.XXX.XXXX.SX.XXX.EUR.IS.N.M"]
[{"$f":"\"INN.\"&EIGNIR!$B$3&C6135","v":{"$error":"#N/A"}},{"$f":"'Sundurliðun Afleiður - eignir'!I74","v":0},".M.EAFSS$$.XX.EIN.XXX.XXXX.SX.XXX.EUR.IS.N.M"]
[{"$f":"\"INN.\"&EIGNIR!$B$3&C6136","v":{"$error":"#N/A"}},{"$f":"'Sundurliðun Afleiður - eignir'!I75","v":0},".M.EAFSS$$.XX.NPH.XXX.XXXX.SX.XXX.EUR.IS.N.M"]
[{"$f":"\"INN.\"&EIGNIR!$B$3&C6137","v":{"$error":"#N/A"}},{"$f":"'Sundurliðun Afleiður - eignir'!I76","v":0},".M.EAFSS$$.XX.ERL.XXX.XXXX.SX.XXX.EUR.IS.N.M"]
[{"$f":"\"INN.\"&EIGNIR!$B$3&C6138","v":{"$error":"#N/A"}},{"$f":"'Sundurliðun Afleiður - eignir'!I77","v":0},".M.EAFSS$$.XX.ERS.XXX.XXXX.SX.XXX.EUR.IS.N.M"]
[{"$f":"\"INN.\"&EIGNIR!$B$3&C6139","v":{"$error":"#N/A"}},{"$f":"'Sundurliðun Afleiður - eignir'!I78","v":0},".M.EAFSS$$.XX.ERI.XXX.XXXX.SX.XXX.EUR.IS.N.M"]
[{"$f":"\"INN.\"&EIGNIR!$B$3&C6140","v":{"$error":"#N/A"}},{"$f":"'Sundurliðun Afleiður - eignir'!I79","v":0},".M.EAFSS$$.XX.ERP.XXX.XXXX.SX.XXX.EUR.IS.N.M"]
[{"$f":"\"INN.\"&EIGNIR!$B$3&C6141","v":{"$error":"#N/A"}},{"$f":"'Sundurliðun Afleiður - eignir'!I80","v":0},".M.EAFSS$$.XX.ERV.XXX.XXXX.SX.XXX.EUR.IS.N.M"]
[{"$f":"\"INN.\"&EIGNIR!$B$3&C6142","v":{"$error":"#N/A"}},{"$f":"'Sundurliðun Afleiður - eignir'!I81","v":0},".M.EAFSS$$.XX.ERF.XXX.XXXX.SX.XXX.EUR.IS.N.M"]
[{"$f":"\"INN.\"&EIGNIR!$B$3&C6143","v":{"$error":"#N/A"}},{"$f":"'Sundurliðun Afleiður - eignir'!I82","v":0},".M.EAFSS$$.XX.ERO.XXX.XXXX.SX.XXX.EUR.IS.N.M"]
[{"$f":"\"INN.\"&EIGNIR!$B$3&C6144","v":{"$error":"#N/A"}},{"$f":"'Sundurliðun Afleiður - eignir'!I83","v":0},".M.EAFSS$$.XX.ERA.XXX.XXXX.SX.XXX.EUR.IS.N.M"]
[{"$f":"\"INN.\"&EIGNIR!$B$3&C6145","v":{"$error":"#N/A"}},{"$f":"'Sundurliðun Afleiður - eignir'!J5","v":0},".M.EAF$$$$.XX.$$$.XXX.XXXX.SX.XXX.USD.IS.N.M"]
[{"$f":"\"INN.\"&EIGNIR!$B$3&C6146","v":{"$error":"#N/A"}},{"$f":"'Sundurliðun Afleiður - eignir'!J6","v":0},".M.EAFVR$$.XX.$$$.XXX.XXXX.SX.XXX.USD.IS.N.M"]
[{"$f":"\"INN.\"&EIGNIR!$B$3&C6147","v":{"$error":"#N/A"}},{"$f":"'Sundurliðun Afleiður - eignir'!J7","v":0},".M.EAFVR$$.XX.ATV.XXX.XXXX.SX.XXX.USD.IS.N.M"]
[{"$f":"\"INN.\"&EIGNIR!$B$3&C6148","v":{"$error":"#N/A"}},{"$f":"'Sundurliðun Afleiður - eignir'!J8","v":0},".M.EAFVR$$.XX.FJA.XXX.XXXX.SX.XXX.USD.IS.N.M"]
[{"$f":"\"INN.\"&EIGNIR!$B$3&C6149","v":{"$error":"#N/A"}},{"$f":"'Sundurliðun Afleiður - eignir'!J9","v":0},".M.EAFVR$$.XX.INN.XXX.XXXX.SX.XXX.USD.IS.N.M"]
[{"$f":"\"INN.\"&EIGNIR!$B$3&C6150","v":{"$error":"#N/A"}},{"$f":"'Sundurliðun Afleiður - eignir'!J10","v":0},".M.EAFVR$$.XX.SLI.XXX.XXXX.SX.XXX.USD.IS.N.M"]
[{"$f":"\"INN.\"&EIGNIR!$B$3&C6151","v":{"$error":"#N/A"}},{"$f":"'Sundurliðun Afleiður - eignir'!J11","v":0},".M.EAFVR$$.XX.PEN.XXX.XXXX.SX.XXX.USD.IS.N.M"]
[{"$f":"\"INN.\"&EIGNIR!$B$3&C6152","v":{"$error":"#N/A"}},{"$f":"'Sundurliðun Afleiður - eignir'!J12","v":0},".M.EAFVR$$.XX.SJO.XXX.XXXX.SX.XXX.USD.IS.N.M"]
[{"$f":"\"INN.\"&EIGNIR!$B$3&C6153","v":{"$error":"#N/A"}},{"$f":"'Sundurliðun Afleiður - eignir'!J13","v":0},".M.EAFVR$$.XX.YFT.XXX.XXXX.SX.XXX.USD.IS.N.M"]
[{"$f":"\"INN.\"&EIGNIR!$B$3&C6154","v":{"$error":"#N/A"}},{"$f":"'Sundurliðun Afleiður - eignir'!J14","v":0},".M.EAFVR$$.XX.SLY.XXX.XXXX.SX.XXX.USD.IS.N.M"]
[{"$f":"\"INN.\"&EIGNIR!$B$3&C6155","v":{"$error":"#N/A"}},{"$f":"'Sundurliðun Afleiður - eignir'!J15","v":0},".M.EAFVR$$.XX.FHL.XXX.XXXX.SX.XXX.USD.IS.N.M"]
[{"$f":"\"INN.\"&EIGNIR!$B$3&C6156","v":{"$error":"#N/A"}},{"$f":"'Sundurliðun Afleiður - eignir'!J16","v":0},".M.EAFVR$$.XX.INF.XXX.XXXX.SX.XXX.USD.IS.N.M"]
[{"$f":"\"INN.\"&EIGNIR!$B$3&C6157","v":{"$error":"#N/A"}},{"$f":"'Sundurliðun Afleiður - eignir'!J17","v":0},".M.EAFVR$$.XX.TRY.XXX.XXXX.SX.XXX.USD.IS.N.M"]
[{"$f":"\"INN.\"&EIGNIR!$B$3&C6158","v":{"$error":"#N/A"}},{"$f":"'Sundurliðun Afleiður - eignir'!J18","v":0},".M.EAFVR$$.XX.LIF.XXX.XXXX.SX.XXX.USD.IS.N.M"]
[{"$f":"\"INN.\"&EIGNIR!$B$3&C6159","v":{"$error":"#N/A"}},{"$f":"'Sundurliðun Afleiður - eignir'!J19","v":0},".M.EAFVR$$.XX.OPI.XXX.XXXX.SX.XXX.USD.IS.N.M"]
[{"$f":"\"INN.\"&EIGNIR!$B$3&C6160","v":{"$error":"#N/A"}},{"$f":"'Sundurliðun Afleiður - eignir'!J20","v":0},".M.EAFVR$$.XX.RSS.XXX.XXXX.SX.XXX.USD.IS.N.M"]
[{"$f":"\"INN.\"&EIGNIR!$B$3&C6161","v":{"$error":"#N/A"}},{"$f":"'Sundurliðun Afleiður - eignir'!J21","v":0},".M.EAFVR$$.XX.BAJ.XXX.XXXX.SX.XXX.USD.IS.N.M"]
[{"$f":"\"INN.\"&EIGNIR!$B$3&C6162","v":{"$error":"#N/A"}},{"$f":"'Sundurliðun Afleiður - eignir'!J22","v":0},".M.EAFVR$$.XX.EIN.XXX.XXXX.SX.XXX.USD.IS.N.M"]
[{"$f":"\"INN.\"&EIGNIR!$B$3&C6163","v":{"$error":"#N/A"}},{"$f":"'Sundurliðun Afleiður - eignir'!J23","v":0},".M.EAFVR$$.XX.NPH.XXX.XXXX.SX.XXX.USD.IS.N.M"]
[{"$f":"\"INN.\"&EIGNIR!$B$3&C6164","v":{"$error":"#N/A"}},{"$f":"'Sundurliðun Afleiður - eignir'!J24","v":0},".M.EAFVR$$.XX.ERL.XXX.XXXX.SX.XXX.USD.IS.N.M"]
[{"$f":"\"INN.\"&EIGNIR!$B$3&C6165","v":{"$error":"#N/A"}},{"$f":"'Sundurliðun Afleiður - eignir'!J25","v":0},".M.EAFVR$$.XX.ERS.XXX.XXXX.SX.XXX.USD.IS.N.M"]
[{"$f":"\"INN.\"&EIGNIR!$B$3&C6166","v":{"$error":"#N/A"}},{"$f":"'Sundurliðun Afleiður - eignir'!J26","v":0},".M.EAFVR$$.XX.ERI.XXX.XXXX.SX.XXX.USD.IS.N.M"]
[{"$f":"\"INN.\"&EIGNIR!$B$3&C6167","v":{"$error":"#N/A"}},{"$f":"'Sundurliðun Afleiður - eignir'!J27","v":0},".M.EAFVR$$.XX.ERP.XXX.XXXX.SX.XXX.USD.IS.N.M"]
[{"$f":"\"INN.\"&EIGNIR!$B$3&C6168","v":{"$error":"#N/A"}},{"$f":"'Sundurliðun Afleiður - eignir'!J28","v":0},".M.EAFVR$$.XX.ERV.XXX.XXXX.SX.XXX.USD.IS.N.M"]
[{"$f":"\"INN.\"&EIGNIR!$B$3&C6169","v":{"$error":"#N/A"}},{"$f":"'Sundurliðun Afleiður - eignir'!J29","v":0},".M.EAFVR$$.XX.ERF.XXX.XXXX.SX.XXX.USD.IS.N.M"]
[{"$f":"\"INN.\"&EIGNIR!$B$3&C6170","v":{"$error":"#N/A"}},{"$f":"'Sundurliðun Afleiður - eignir'!J30","v":0},".M.EAFVR$$.XX.ERO.XXX.XXXX.SX.XXX.USD.IS.N.M"]
[{"$f":"\"INN.\"&EIGNIR!$B$3&C6171","v":{"$error":"#N/A"}},{"$f":"'Sundurliðun Afleiður - eignir'!J31","v":0},".M.EAFVR$$.XX.ERA.XXX.XXXX.SX.XXX.USD.IS.N.M"]
[{"$f":"\"INN.\"&EIGNIR!$B$3&C6172","v":{"$error":"#N/A"}},{"$f":"'Sundurliðun Afleiður - eignir'!J32","v":0},".M.EAFFS$$.XX.$$$.XXX.XXXX.SX.XXX.USD.IS.N.M"]
[{"$f":"\"INN.\"&EIGNIR!$B$3&C6173","v":{"$error":"#N/A"}},{"$f":"'Sundurliðun Afleiður - eignir'!J33","v":0},".M.EAFFS$$.XX.ATV.XXX.XXXX.SX.XXX.USD.IS.N.M"]
[{"$f":"\"INN.\"&EIGNIR!$B$3&C6174","v":{"$error":"#N/A"}},{"$f":"'Sundurliðun Afleiður - eignir'!J34","v":0},".M.EAFFS$$.XX.FJA.XXX.XXXX.SX.XXX.USD.IS.N.M"]
[{"$f":"\"INN.\"&EIGNIR!$B$3&C6175","v":{"$error":"#N/A"}},{"$f":"'Sundurliðun Afleiður - eignir'!J35","v":0},".M.EAFFS$$.XX.INN.XXX.XXXX.SX.XXX.USD.IS.N.M"]
[{"$f":"\"INN.\"&EIGNIR!$B$3&C6176","v":{"$error":"#N/A"}},{"$f":"'Sundurliðun Afleiður - eignir'!J36","v":0},".M.EAFFS$$.XX.SLI.XXX.XXXX.SX.XXX.USD.IS.N.M"]
[{"$f":"\"INN.\"&EIGNIR!$B$3&C6177","v":{"$error":"#N/A"}},{"$f":"'Sundurliðun Afleiður - eignir'!J37","v":0},".M.EAFFS$$.XX.PEN.XXX.XXXX.SX.XXX.USD.IS.N.M"]
[{"$f":"\"INN.\"&EIGNIR!$B$3&C6178","v":{"$error":"#N/A"}},{"$f":"'Sundurliðun Afleiður - eignir'!J38","v":0},".M.EAFFS$$.XX.SJO.XXX.XXXX.SX.XXX.USD.IS.N.M"]
[{"$f":"\"INN.\"&EIGNIR!$B$3&C6179","v":{"$error":"#N/A"}},{"$f":"'Sundurliðun Afleiður - eignir'!J39","v":0},".M.EAFFS$$.XX.YFT.XXX.XXXX.SX.XXX.USD.IS.N.M"]
[{"$f":"\"INN.\"&EIGNIR!$B$3&C6180","v":{"$error":"#N/A"}},{"$f":"'Sundurliðun Afleiður - eignir'!J40","v":0},".M.EAFFS$$.XX.SLY.XXX.XXXX.SX.XXX.USD.IS.N.M"]
[{"$f":"\"INN.\"&EIGNIR!$B$3&C6181","v":{"$error":"#N/A"}},{"$f":"'Sundurliðun Afleiður - eignir'!J41","v":0},".M.EAFFS$$.XX.FHL.XXX.XXXX.SX.XXX.USD.IS.N.M"]
[{"$f":"\"INN.\"&EIGNIR!$B$3&C6182","v":{"$error":"#N/A"}},{"$f":"'Sundurliðun Afleiður - eignir'!J42","v":0},".M.EAFFS$$.XX.INF.XXX.XXXX.SX.XXX.USD.IS.N.M"]
[{"$f":"\"INN.\"&EIGNIR!$B$3&C6183","v":{"$error":"#N/A"}},{"$f":"'Sundurliðun Afleiður - eignir'!J43","v":0},".M.EAFFS$$.XX.TRY.XXX.XXXX.SX.XXX.USD.IS.N.M"]
[{"$f":"\"INN.\"&EIGNIR!$B$3&C6184","v":{"$error":"#N/A"}},{"$f":"'Sundurliðun Afleiður - eignir'!J44","v":0},".M.EAFFS$$.XX.LIF.XXX.XXXX.SX.XXX.USD.IS.N.M"]
[{"$f":"\"INN.\"&EIGNIR!$B$3&C6185","v":{"$error":"#N/A"}},{"$f":"'Sundurliðun Afleiður - eignir'!J45","v":0},".M.EAFFS$$.XX.OPI.XXX.XXXX.SX.XXX.USD.IS.N.M"]
[{"$f":"\"INN.\"&EIGNIR!$B$3&C6186","v":{"$error":"#N/A"}},{"$f":"'Sundurliðun Afleiður - eignir'!J46","v":0},".M.EAFFS$$.XX.RSS.XXX.XXXX.SX.XXX.USD.IS.N.M"]
[{"$f":"\"INN.\"&EIGNIR!$B$3&C6187","v":{"$error":"#N/A"}},{"$f":"'Sundurliðun Afleiður - eignir'!J47","v":0},".M.EAFFS$$.XX.BAJ.XXX.XXXX.SX.XXX.USD.IS.N.M"]
[{"$f":"\"INN.\"&EIGNIR!$B$3&C6188","v":{"$error":"#N/A"}},{"$f":"'Sundurliðun Afleiður - eignir'!J48","v":0},".M.EAFFS$$.XX.EIN.XXX.XXXX.SX.XXX.USD.IS.N.M"]
[{"$f":"\"INN.\"&EIGNIR!$B$3&C6189","v":{"$error":"#N/A"}},{"$f":"'Sundurliðun Afleiður - eignir'!J49","v":0},".M.EAFFS$$.XX.NPH.XXX.XXXX.SX.XXX.USD.IS.N.M"]
[{"$f":"\"INN.\"&EIGNIR!$B$3&C6190","v":{"$error":"#N/A"}},{"$f":"'Sundurliðun Afleiður - eignir'!J50","v":0},".M.EAFFS$$.XX.ERL.XXX.XXXX.SX.XXX.USD.IS.N.M"]
[{"$f":"\"INN.\"&EIGNIR!$B$3&C6191","v":{"$error":"#N/A"}},{"$f":"'Sundurliðun Afleiður - eignir'!J51","v":0},".M.EAFFS$$.XX.ERS.XXX.XXXX.SX.XXX.USD.IS.N.M"]
[{"$f":"\"INN.\"&EIGNIR!$B$3&C6192","v":{"$error":"#N/A"}},{"$f":"'Sundurliðun Afleiður - eignir'!J52","v":0},".M.EAFFS$$.XX.ERI.XXX.XXXX.SX.XXX.USD.IS.N.M"]
[{"$f":"\"INN.\"&EIGNIR!$B$3&C6193","v":{"$error":"#N/A"}},{"$f":"'Sundurliðun Afleiður - eignir'!J53","v":0},".M.EAFFS$$.XX.ERP.XXX.XXXX.SX.XXX.USD.IS.N.M"]
[{"$f":"\"INN.\"&EIGNIR!$B$3&C6194","v":{"$error":"#N/A"}},{"$f":"'Sundurliðun Afleiður - eignir'!J54","v":0},".M.EAFFS$$.XX.ERV.XXX.XXXX.SX.XXX.USD.IS.N.M"]
[{"$f":"\"INN.\"&EIGNIR!$B$3&C6195","v":{"$error":"#N/A"}},{"$f":"'Sundurliðun Afleiður - eignir'!J55","v":0},".M.EAFFS$$.XX.ERF.XXX.XXXX.SX.XXX.USD.IS.N.M"]
[{"$f":"\"INN.\"&EIGNIR!$B$3&C6196","v":{"$error":"#N/A"}},{"$f":"'Sundurliðun Afleiður - eignir'!J56","v":0},".M.EAFFS$$.XX.ERO.XXX.XXXX.SX.XXX.USD.IS.N.M"]
[{"$f":"\"INN.\"&EIGNIR!$B$3&C6197","v":{"$error":"#N/A"}},{"$f":"'Sundurliðun Afleiður - eignir'!J57","v":0},".M.EAFFS$$.XX.ERA.XXX.XXXX.SX.XXX.USD.IS.N.M"]
[{"$f":"\"INN.\"&EIGNIR!$B$3&C6198","v":{"$error":"#N/A"}},{"$f":"'Sundurliðun Afleiður - eignir'!J58","v":0},".M.EAFSS$$.XX.$$$.XXX.XXXX.SX.XXX.USD.IS.N.M"]
[{"$f":"\"INN.\"&EIGNIR!$B$3&C6199","v":{"$error":"#N/A"}},{"$f":"'Sundurliðun Afleiður - eignir'!J59","v":0},".M.EAFSS$$.XX.ATV.XXX.XXXX.SX.XXX.USD.IS.N.M"]
[{"$f":"\"INN.\"&EIGNIR!$B$3&C6200","v":{"$error":"#N/A"}},{"$f":"'Sundurliðun Afleiður - eignir'!J60","v":0},".M.EAFSS$$.XX.FJA.XXX.XXXX.SX.XXX.USD.IS.N.M"]
[{"$f":"\"INN.\"&EIGNIR!$B$3&C6201","v":{"$error":"#N/A"}},{"$f":"'Sundurliðun Afleiður - eignir'!J61","v":0},".M.EAFSS$$.XX.INN.XXX.XXXX.SX.XXX.USD.IS.N.M"]
[{"$f":"\"INN.\"&EIGNIR!$B$3&C6202","v":{"$error":"#N/A"}},{"$f":"'Sundurliðun Afleiður - eignir'!J62","v":0},".M.EAFSS$$.XX.SLI.XXX.XXXX.SX.XXX.USD.IS.N.M"]
[{"$f":"\"INN.\"&EIGNIR!$B$3&C6203","v":{"$error":"#N/A"}},{"$f":"'Sundurliðun Afleiður - eignir'!J63","v":0},".M.EAFSS$$.XX.PEN.XXX.XXXX.SX.XXX.USD.IS.N.M"]
[{"$f":"\"INN.\"&EIGNIR!$B$3&C6204","v":{"$error":"#N/A"}},{"$f":"'Sundurliðun Afleiður - eignir'!J64","v":0},".M.EAFSS$$.XX.SJO.XXX.XXXX.SX.XXX.USD.IS.N.M"]
[{"$f":"\"INN.\"&EIGNIR!$B$3&C6205","v":{"$error":"#N/A"}},{"$f":"'Sundurliðun Afleiður - eignir'!J65","v":0},".M.EAFSS$$.XX.YFT.XXX.XXXX.SX.XXX.USD.IS.N.M"]
[{"$f":"\"INN.\"&EIGNIR!$B$3&C6206","v":{"$error":"#N/A"}},{"$f":"'Sundurliðun Afleiður - eignir'!J66","v":0},".M.EAFSS$$.XX.SLY.XXX.XXXX.SX.XXX.USD.IS.N.M"]
[{"$f":"\"INN.\"&EIGNIR!$B$3&C6207","v":{"$error":"#N/A"}},{"$f":"'Sundurliðun Afleiður - eignir'!J67","v":0},".M.EAFSS$$.XX.FHL.XXX.XXXX.SX.XXX.USD.IS.N.M"]
[{"$f":"\"INN.\"&EIGNIR!$B$3&C6208","v":{"$error":"#N/A"}},{"$f":"'Sundurliðun Afleiður - eignir'!J68","v":0},".M.EAFSS$$.XX.INF.XXX.XXXX.SX.XXX.USD.IS.N.M"]
[{"$f":"\"INN.\"&EIGNIR!$B$3&C6209","v":{"$error":"#N/A"}},{"$f":"'Sundurliðun Afleiður - eignir'!J69","v":0},".M.EAFSS$$.XX.TRY.XXX.XXXX.SX.XXX.USD.IS.N.M"]
[{"$f":"\"INN.\"&EIGNIR!$B$3&C6210","v":{"$error":"#N/A"}},{"$f":"'Sundurliðun Afleiður - eignir'!J70","v":0},".M.EAFSS$$.XX.LIF.XXX.XXXX.SX.XXX.USD.IS.N.M"]
[{"$f":"\"INN.\"&EIGNIR!$B$3&C6211","v":{"$error":"#N/A"}},{"$f":"'Sundurliðun Afleiður - eignir'!J71","v":0},".M.EAFSS$$.XX.OPI.XXX.XXXX.SX.XXX.USD.IS.N.M"]
[{"$f":"\"INN.\"&EIGNIR!$B$3&C6212","v":{"$error":"#N/A"}},{"$f":"'Sundurliðun Afleiður - eignir'!J72","v":0},".M.EAFSS$$.XX.RSS.XXX.XXXX.SX.XXX.USD.IS.N.M"]
[{"$f":"\"INN.\"&EIGNIR!$B$3&C6213","v":{"$error":"#N/A"}},{"$f":"'Sundurliðun Afleiður - eignir'!J73","v":0},".M.EAFSS$$.XX.BAJ.XXX.XXXX.SX.XXX.USD.IS.N.M"]
[{"$f":"\"INN.\"&EIGNIR!$B$3&C6214","v":{"$error":"#N/A"}},{"$f":"'Sundurliðun Afleiður - eignir'!J74","v":0},".M.EAFSS$$.XX.EIN.XXX.XXXX.SX.XXX.USD.IS.N.M"]
[{"$f":"\"INN.\"&EIGNIR!$B$3&C6215","v":{"$error":"#N/A"}},{"$f":"'Sundurliðun Afleiður - eignir'!J75","v":0},".M.EAFSS$$.XX.NPH.XXX.XXXX.SX.XXX.USD.IS.N.M"]
[{"$f":"\"INN.\"&EIGNIR!$B$3&C6216","v":{"$error":"#N/A"}},{"$f":"'Sundurliðun Afleiður - eignir'!J76","v":0},".M.EAFSS$$.XX.ERL.XXX.XXXX.SX.XXX.USD.IS.N.M"]
[{"$f":"\"INN.\"&EIGNIR!$B$3&C6217","v":{"$error":"#N/A"}},{"$f":"'Sundurliðun Afleiður - eignir'!J77","v":0},".M.EAFSS$$.XX.ERS.XXX.XXXX.SX.XXX.USD.IS.N.M"]
[{"$f":"\"INN.\"&EIGNIR!$B$3&C6218","v":{"$error":"#N/A"}},{"$f":"'Sundurliðun Afleiður - eignir'!J78","v":0},".M.EAFSS$$.XX.ERI.XXX.XXXX.SX.XXX.USD.IS.N.M"]
[{"$f":"\"INN.\"&EIGNIR!$B$3&C6219","v":{"$error":"#N/A"}},{"$f":"'Sundurliðun Afleiður - eignir'!J79","v":0},".M.EAFSS$$.XX.ERP.XXX.XXXX.SX.XXX.USD.IS.N.M"]
[{"$f":"\"INN.\"&EIGNIR!$B$3&C6220","v":{"$error":"#N/A"}},{"$f":"'Sundurliðun Afleiður - eignir'!J80","v":0},".M.EAFSS$$.XX.ERV.XXX.XXXX.SX.XXX.USD.IS.N.M"]
[{"$f":"\"INN.\"&EIGNIR!$B$3&C6221","v":{"$error":"#N/A"}},{"$f":"'Sundurliðun Afleiður - eignir'!J81","v":0},".M.EAFSS$$.XX.ERF.XXX.XXXX.SX.XXX.USD.IS.N.M"]
[{"$f":"\"INN.\"&EIGNIR!$B$3&C6222","v":{"$error":"#N/A"}},{"$f":"'Sundurliðun Afleiður - eignir'!J82","v":0},".M.EAFSS$$.XX.ERO.XXX.XXXX.SX.XXX.USD.IS.N.M"]
[{"$f":"\"INN.\"&EIGNIR!$B$3&C6223","v":{"$error":"#N/A"}},{"$f":"'Sundurliðun Afleiður - eignir'!J83","v":0},".M.EAFSS$$.XX.ERA.XXX.XXXX.SX.XXX.USD.IS.N.M"]
[{"$f":"\"INN.\"&EIGNIR!$B$3&C6224","v":{"$error":"#N/A"}},{"$f":"'Sundurliðun Afleiður - eignir'!K5","v":0},".M.EAF$$$$.XX.$$$.XXX.XXXX.SX.XXX.GBP.IS.N.M","//Sundurliðun afleiður, GBP"]
[{"$f":"\"INN.\"&EIGNIR!$B$3&C6225","v":{"$error":"#N/A"}},{"$f":"'Sundurliðun Afleiður - eignir'!K6","v":0},".M.EAFVR$$.XX.$$$.XXX.XXXX.SX.XXX.GBP.IS.N.M"]
[{"$f":"\"INN.\"&EIGNIR!$B$3&C6226","v":{"$error":"#N/A"}},{"$f":"'Sundurliðun Afleiður - eignir'!K7","v":0},".M.EAFVR$$.XX.ATV.XXX.XXXX.SX.XXX.GBP.IS.N.M"]
[{"$f":"\"INN.\"&EIGNIR!$B$3&C6227","v":{"$error":"#N/A"}},{"$f":"'Sundurliðun Afleiður - eignir'!K8","v":0},".M.EAFVR$$.XX.FJA.XXX.XXXX.SX.XXX.GBP.IS.N.M"]
[{"$f":"\"INN.\"&EIGNIR!$B$3&C6228","v":{"$error":"#N/A"}},{"$f":"'Sundurliðun Afleiður - eignir'!K9","v":0},".M.EAFVR$$.XX.INN.XXX.XXXX.SX.XXX.GBP.IS.N.M"]
[{"$f":"\"INN.\"&EIGNIR!$B$3&C6229","v":{"$error":"#N/A"}},{"$f":"'Sundurliðun Afleiður - eignir'!K10","v":0},".M.EAFVR$$.XX.SLI.XXX.XXXX.SX.XXX.GBP.IS.N.M"]
[{"$f":"\"INN.\"&EIGNIR!$B$3&C6230","v":{"$error":"#N/A"}},{"$f":"'Sundurliðun Afleiður - eignir'!K11","v":0},".M.EAFVR$$.XX.PEN.XXX.XXXX.SX.XXX.GBP.IS.N.M"]
[{"$f":"\"INN.\"&EIGNIR!$B$3&C6231","v":{"$error":"#N/A"}},{"$f":"'Sundurliðun Afleiður - eignir'!K12","v":0},".M.EAFVR$$.XX.SJO.XXX.XXXX.SX.XXX.GBP.IS.N.M"]
[{"$f":"\"INN.\"&EIGNIR!$B$3&C6232","v":{"$error":"#N/A"}},{"$f":"'Sundurliðun Afleiður - eignir'!K13","v":0},".M.EAFVR$$.XX.YFT.XXX.XXXX.SX.XXX.GBP.IS.N.M"]
[{"$f":"\"INN.\"&EIGNIR!$B$3&C6233","v":{"$error":"#N/A"}},{"$f":"'Sundurliðun Afleiður - eignir'!K14","v":0},".M.EAFVR$$.XX.SLY.XXX.XXXX.SX.XXX.GBP.IS.N.M"]
[{"$f":"\"INN.\"&EIGNIR!$B$3&C6234","v":{"$error":"#N/A"}},{"$f":"'Sundurliðun Afleiður - eignir'!K15","v":0},".M.EAFVR$$.XX.FHL.XXX.XXXX.SX.XXX.GBP.IS.N.M"]
[{"$f":"\"INN.\"&EIGNIR!$B$3&C6235","v":{"$error":"#N/A"}},{"$f":"'Sundurliðun Afleiður - eignir'!K16","v":0},".M.EAFVR$$.XX.INF.XXX.XXXX.SX.XXX.GBP.IS.N.M"]
[{"$f":"\"INN.\"&EIGNIR!$B$3&C6236","v":{"$error":"#N/A"}},{"$f":"'Sundurliðun Afleiður - eignir'!K17","v":0},".M.EAFVR$$.XX.TRY.XXX.XXXX.SX.XXX.GBP.IS.N.M"]
[{"$f":"\"INN.\"&EIGNIR!$B$3&C6237","v":{"$error":"#N/A"}},{"$f":"'Sundurliðun Afleiður - eignir'!K18","v":0},".M.EAFVR$$.XX.LIF.XXX.XXXX.SX.XXX.GBP.IS.N.M"]
[{"$f":"\"INN.\"&EIGNIR!$B$3&C6238","v":{"$error":"#N/A"}},{"$f":"'Sundurliðun Afleiður - eignir'!K19","v":0},".M.EAFVR$$.XX.OPI.XXX.XXXX.SX.XXX.GBP.IS.N.M"]
[{"$f":"\"INN.\"&EIGNIR!$B$3&C6239","v":{"$error":"#N/A"}},{"$f":"'Sundurliðun Afleiður - eignir'!K20","v":0},".M.EAFVR$$.XX.RSS.XXX.XXXX.SX.XXX.GBP.IS.N.M"]
[{"$f":"\"INN.\"&EIGNIR!$B$3&C6240","v":{"$error":"#N/A"}},{"$f":"'Sundurliðun Afleiður - eignir'!K21","v":0},".M.EAFVR$$.XX.BAJ.XXX.XXXX.SX.XXX.GBP.IS.N.M"]
[{"$f":"\"INN.\"&EIGNIR!$B$3&C6241","v":{"$error":"#N/A"}},{"$f":"'Sundurliðun Afleiður - eignir'!K22","v":0},".M.EAFVR$$.XX.EIN.XXX.XXXX.SX.XXX.GBP.IS.N.M"]
[{"$f":"\"INN.\"&EIGNIR!$B$3&C6242","v":{"$error":"#N/A"}},{"$f":"'Sundurliðun Afleiður - eignir'!K23","v":0},".M.EAFVR$$.XX.NPH.XXX.XXXX.SX.XXX.GBP.IS.N.M"]
[{"$f":"\"INN.\"&EIGNIR!$B$3&C6243","v":{"$error":"#N/A"}},{"$f":"'Sundurliðun Afleiður - eignir'!K24","v":0},".M.EAFVR$$.XX.ERL.XXX.XXXX.SX.XXX.GBP.IS.N.M"]
[{"$f":"\"INN.\"&EIGNIR!$B$3&C6244","v":{"$error":"#N/A"}},{"$f":"'Sundurliðun Afleiður - eignir'!K25","v":0},".M.EAFVR$$.XX.ERS.XXX.XXXX.SX.XXX.GBP.IS.N.M"]
[{"$f":"\"INN.\"&EIGNIR!$B$3&C6245","v":{"$error":"#N/A"}},{"$f":"'Sundurliðun Afleiður - eignir'!K26","v":0},".M.EAFVR$$.XX.ERI.XXX.XXXX.SX.XXX.GBP.IS.N.M"]
[{"$f":"\"INN.\"&EIGNIR!$B$3&C6246","v":{"$error":"#N/A"}},{"$f":"'Sundurliðun Afleiður - eignir'!K27","v":0},".M.EAFVR$$.XX.ERP.XXX.XXXX.SX.XXX.GBP.IS.N.M"]
[{"$f":"\"INN.\"&EIGNIR!$B$3&C6247","v":{"$error":"#N/A"}},{"$f":"'Sundurliðun Afleiður - eignir'!K28","v":0},".M.EAFVR$$.XX.ERV.XXX.XXXX.SX.XXX.GBP.IS.N.M"]
[{"$f":"\"INN.\"&EIGNIR!$B$3&C6248","v":{"$error":"#N/A"}},{"$f":"'Sundurliðun Afleiður - eignir'!K29","v":0},".M.EAFVR$$.XX.ERF.XXX.XXXX.SX.XXX.GBP.IS.N.M"]
[{"$f":"\"INN.\"&EIGNIR!$B$3&C6249","v":{"$error":"#N/A"}},{"$f":"'Sundurliðun Afleiður - eignir'!K30","v":0},".M.EAFVR$$.XX.ERO.XXX.XXXX.SX.XXX.GBP.IS.N.M"]
[{"$f":"\"INN.\"&EIGNIR!$B$3&C6250","v":{"$error":"#N/A"}},{"$f":"'Sundurliðun Afleiður - eignir'!K31","v":0},".M.EAFVR$$.XX.ERA.XXX.XXXX.SX.XXX.GBP.IS.N.M"]
[{"$f":"\"INN.\"&EIGNIR!$B$3&C6251","v":{"$error":"#N/A"}},{"$f":"'Sundurliðun Afleiður - eignir'!K32","v":0},".M.EAFFS$$.XX.$$$.XXX.XXXX.SX.XXX.GBP.IS.N.M"]
[{"$f":"\"INN.\"&EIGNIR!$B$3&C6252","v":{"$error":"#N/A"}},{"$f":"'Sundurliðun Afleiður - eignir'!K33","v":0},".M.EAFFS$$.XX.ATV.XXX.XXXX.SX.XXX.GBP.IS.N.M"]
[{"$f":"\"INN.\"&EIGNIR!$B$3&C6253","v":{"$error":"#N/A"}},{"$f":"'Sundurliðun Afleiður - eignir'!K34","v":0},".M.EAFFS$$.XX.FJA.XXX.XXXX.SX.XXX.GBP.IS.N.M"]
[{"$f":"\"INN.\"&EIGNIR!$B$3&C6254","v":{"$error":"#N/A"}},{"$f":"'Sundurliðun Afleiður - eignir'!K35","v":0},".M.EAFFS$$.XX.INN.XXX.XXXX.SX.XXX.GBP.IS.N.M"]
[{"$f":"\"INN.\"&EIGNIR!$B$3&C6255","v":{"$error":"#N/A"}},{"$f":"'Sundurliðun Afleiður - eignir'!K36","v":0},".M.EAFFS$$.XX.SLI.XXX.XXXX.SX.XXX.GBP.IS.N.M"]
[{"$f":"\"INN.\"&EIGNIR!$B$3&C6256","v":{"$error":"#N/A"}},{"$f":"'Sundurliðun Afleiður - eignir'!K37","v":0},".M.EAFFS$$.XX.PEN.XXX.XXXX.SX.XXX.GBP.IS.N.M"]
[{"$f":"\"INN.\"&EIGNIR!$B$3&C6257","v":{"$error":"#N/A"}},{"$f":"'Sundurliðun Afleiður - eignir'!K38","v":0},".M.EAFFS$$.XX.SJO.XXX.XXXX.SX.XXX.GBP.IS.N.M"]
[{"$f":"\"INN.\"&EIGNIR!$B$3&C6258","v":{"$error":"#N/A"}},{"$f":"'Sundurliðun Afleiður - eignir'!K39","v":0},".M.EAFFS$$.XX.YFT.XXX.XXXX.SX.XXX.GBP.IS.N.M"]
[{"$f":"\"INN.\"&EIGNIR!$B$3&C6259","v":{"$error":"#N/A"}},{"$f":"'Sundurliðun Afleiður - eignir'!K40","v":0},".M.EAFFS$$.XX.SLY.XXX.XXXX.SX.XXX.GBP.IS.N.M"]
[{"$f":"\"INN.\"&EIGNIR!$B$3&C6260","v":{"$error":"#N/A"}},{"$f":"'Sundurliðun Afleiður - eignir'!K41","v":0},".M.EAFFS$$.XX.FHL.XXX.XXXX.SX.XXX.GBP.IS.N.M"]
[{"$f":"\"INN.\"&EIGNIR!$B$3&C6261","v":{"$error":"#N/A"}},{"$f":"'Sundurliðun Afleiður - eignir'!K42","v":0},".M.EAFFS$$.XX.INF.XXX.XXXX.SX.XXX.GBP.IS.N.M"]
[{"$f":"\"INN.\"&EIGNIR!$B$3&C6262","v":{"$error":"#N/A"}},{"$f":"'Sundurliðun Afleiður - eignir'!K43","v":0},".M.EAFFS$$.XX.TRY.XXX.XXXX.SX.XXX.GBP.IS.N.M"]
[{"$f":"\"INN.\"&EIGNIR!$B$3&C6263","v":{"$error":"#N/A"}},{"$f":"'Sundurliðun Afleiður - eignir'!K44","v":0},".M.EAFFS$$.XX.LIF.XXX.XXXX.SX.XXX.GBP.IS.N.M"]
[{"$f":"\"INN.\"&EIGNIR!$B$3&C6264","v":{"$error":"#N/A"}},{"$f":"'Sundurliðun Afleiður - eignir'!K45","v":0},".M.EAFFS$$.XX.OPI.XXX.XXXX.SX.XXX.GBP.IS.N.M"]
[{"$f":"\"INN.\"&EIGNIR!$B$3&C6265","v":{"$error":"#N/A"}},{"$f":"'Sundurliðun Afleiður - eignir'!K46","v":0},".M.EAFFS$$.XX.RSS.XXX.XXXX.SX.XXX.GBP.IS.N.M"]
[{"$f":"\"INN.\"&EIGNIR!$B$3&C6266","v":{"$error":"#N/A"}},{"$f":"'Sundurliðun Afleiður - eignir'!K47","v":0},".M.EAFFS$$.XX.BAJ.XXX.XXXX.SX.XXX.GBP.IS.N.M"]
[{"$f":"\"INN.\"&EIGNIR!$B$3&C6267","v":{"$error":"#N/A"}},{"$f":"'Sundurliðun Afleiður - eignir'!K48","v":0},".M.EAFFS$$.XX.EIN.XXX.XXXX.SX.XXX.GBP.IS.N.M"]
[{"$f":"\"INN.\"&EIGNIR!$B$3&C6268","v":{"$error":"#N/A"}},{"$f":"'Sundurliðun Afleiður - eignir'!K49","v":0},".M.EAFFS$$.XX.NPH.XXX.XXXX.SX.XXX.GBP.IS.N.M"]
[{"$f":"\"INN.\"&EIGNIR!$B$3&C6269","v":{"$error":"#N/A"}},{"$f":"'Sundurliðun Afleiður - eignir'!K50","v":0},".M.EAFFS$$.XX.ERL.XXX.XXXX.SX.XXX.GBP.IS.N.M"]
[{"$f":"\"INN.\"&EIGNIR!$B$3&C6270","v":{"$error":"#N/A"}},{"$f":"'Sundurliðun Afleiður - eignir'!K51","v":0},".M.EAFFS$$.XX.ERS.XXX.XXXX.SX.XXX.GBP.IS.N.M"]
[{"$f":"\"INN.\"&EIGNIR!$B$3&C6271","v":{"$error":"#N/A"}},{"$f":"'Sundurliðun Afleiður - eignir'!K52","v":0},".M.EAFFS$$.XX.ERI.XXX.XXXX.SX.XXX.GBP.IS.N.M"]
[{"$f":"\"INN.\"&EIGNIR!$B$3&C6272","v":{"$error":"#N/A"}},{"$f":"'Sundurliðun Afleiður - eignir'!K53","v":0},".M.EAFFS$$.XX.ERP.XXX.XXXX.SX.XXX.GBP.IS.N.M"]
[{"$f":"\"INN.\"&EIGNIR!$B$3&C6273","v":{"$error":"#N/A"}},{"$f":"'Sundurliðun Afleiður - eignir'!K54","v":0},".M.EAFFS$$.XX.ERV.XXX.XXXX.SX.XXX.GBP.IS.N.M"]
[{"$f":"\"INN.\"&EIGNIR!$B$3&C6274","v":{"$error":"#N/A"}},{"$f":"'Sundurliðun Afleiður - eignir'!K55","v":0},".M.EAFFS$$.XX.ERF.XXX.XXXX.SX.XXX.GBP.IS.N.M"]
[{"$f":"\"INN.\"&EIGNIR!$B$3&C6275","v":{"$error":"#N/A"}},{"$f":"'Sundurliðun Afleiður - eignir'!K56","v":0},".M.EAFFS$$.XX.ERO.XXX.XXXX.SX.XXX.GBP.IS.N.M"]
[{"$f":"\"INN.\"&EIGNIR!$B$3&C6276","v":{"$error":"#N/A"}},{"$f":"'Sundurliðun Afleiður - eignir'!K57","v":0},".M.EAFFS$$.XX.ERA.XXX.XXXX.SX.XXX.GBP.IS.N.M"]
[{"$f":"\"INN.\"&EIGNIR!$B$3&C6277","v":{"$error":"#N/A"}},{"$f":"'Sundurliðun Afleiður - eignir'!K58","v":0},".M.EAFSS$$.XX.$$$.XXX.XXXX.SX.XXX.GBP.IS.N.M"]
[{"$f":"\"INN.\"&EIGNIR!$B$3&C6278","v":{"$error":"#N/A"}},{"$f":"'Sundurliðun Afleiður - eignir'!K59","v":0},".M.EAFSS$$.XX.ATV.XXX.XXXX.SX.XXX.GBP.IS.N.M"]
[{"$f":"\"INN.\"&EIGNIR!$B$3&C6279","v":{"$error":"#N/A"}},{"$f":"'Sundurliðun Afleiður - eignir'!K60","v":0},".M.EAFSS$$.XX.FJA.XXX.XXXX.SX.XXX.GBP.IS.N.M"]
[{"$f":"\"INN.\"&EIGNIR!$B$3&C6280","v":{"$error":"#N/A"}},{"$f":"'Sundurliðun Afleiður - eignir'!K61","v":0},".M.EAFSS$$.XX.INN.XXX.XXXX.SX.XXX.GBP.IS.N.M"]
[{"$f":"\"INN.\"&EIGNIR!$B$3&C6281","v":{"$error":"#N/A"}},{"$f":"'Sundurliðun Afleiður - eignir'!K62","v":0},".M.EAFSS$$.XX.SLI.XXX.XXXX.SX.XXX.GBP.IS.N.M"]
[{"$f":"\"INN.\"&EIGNIR!$B$3&C6282","v":{"$error":"#N/A"}},{"$f":"'Sundurliðun Afleiður - eignir'!K63","v":0},".M.EAFSS$$.XX.PEN.XXX.XXXX.SX.XXX.GBP.IS.N.M"]
[{"$f":"\"INN.\"&EIGNIR!$B$3&C6283","v":{"$error":"#N/A"}},{"$f":"'Sundurliðun Afleiður - eignir'!K64","v":0},".M.EAFSS$$.XX.SJO.XXX.XXXX.SX.XXX.GBP.IS.N.M"]
[{"$f":"\"INN.\"&EIGNIR!$B$3&C6284","v":{"$error":"#N/A"}},{"$f":"'Sundurliðun Afleiður - eignir'!K65","v":0},".M.EAFSS$$.XX.YFT.XXX.XXXX.SX.XXX.GBP.IS.N.M"]
[{"$f":"\"INN.\"&EIGNIR!$B$3&C6285","v":{"$error":"#N/A"}},{"$f":"'Sundurliðun Afleiður - eignir'!K66","v":0},".M.EAFSS$$.XX.SLY.XXX.XXXX.SX.XXX.GBP.IS.N.M"]
[{"$f":"\"INN.\"&EIGNIR!$B$3&C6286","v":{"$error":"#N/A"}},{"$f":"'Sundurliðun Afleiður - eignir'!K67","v":0},".M.EAFSS$$.XX.FHL.XXX.XXXX.SX.XXX.GBP.IS.N.M"]
[{"$f":"\"INN.\"&EIGNIR!$B$3&C6287","v":{"$error":"#N/A"}},{"$f":"'Sundurliðun Afleiður - eignir'!K68","v":0},".M.EAFSS$$.XX.INF.XXX.XXXX.SX.XXX.GBP.IS.N.M"]
[{"$f":"\"INN.\"&EIGNIR!$B$3&C6288","v":{"$error":"#N/A"}},{"$f":"'Sundurliðun Afleiður - eignir'!K69","v":0},".M.EAFSS$$.XX.TRY.XXX.XXXX.SX.XXX.GBP.IS.N.M"]
[{"$f":"\"INN.\"&EIGNIR!$B$3&C6289","v":{"$error":"#N/A"}},{"$f":"'Sundurliðun Afleiður - eignir'!K70","v":0},".M.EAFSS$$.XX.LIF.XXX.XXXX.SX.XXX.GBP.IS.N.M"]
[{"$f":"\"INN.\"&EIGNIR!$B$3&C6290","v":{"$error":"#N/A"}},{"$f":"'Sundurliðun Afleiður - eignir'!K71","v":0},".M.EAFSS$$.XX.OPI.XXX.XXXX.SX.XXX.GBP.IS.N.M"]
[{"$f":"\"INN.\"&EIGNIR!$B$3&C6291","v":{"$error":"#N/A"}},{"$f":"'Sundurliðun Afleiður - eignir'!K72","v":0},".M.EAFSS$$.XX.RSS.XXX.XXXX.SX.XXX.GBP.IS.N.M"]
[{"$f":"\"INN.\"&EIGNIR!$B$3&C6292","v":{"$error":"#N/A"}},{"$f":"'Sundurliðun Afleiður - eignir'!K73","v":0},".M.EAFSS$$.XX.BAJ.XXX.XXXX.SX.XXX.GBP.IS.N.M"]
[{"$f":"\"INN.\"&EIGNIR!$B$3&C6293","v":{"$error":"#N/A"}},{"$f":"'Sundurliðun Afleiður - eignir'!K74","v":0},".M.EAFSS$$.XX.EIN.XXX.XXXX.SX.XXX.GBP.IS.N.M"]
[{"$f":"\"INN.\"&EIGNIR!$B$3&C6294","v":{"$error":"#N/A"}},{"$f":"'Sundurliðun Afleiður - eignir'!K75","v":0},".M.EAFSS$$.XX.NPH.XXX.XXXX.SX.XXX.GBP.IS.N.M"]
[{"$f":"\"INN.\"&EIGNIR!$B$3&C6295","v":{"$error":"#N/A"}},{"$f":"'Sundurliðun Afleiður - eignir'!K76","v":0},".M.EAFSS$$.XX.ERL.XXX.XXXX.SX.XXX.GBP.IS.N.M"]
[{"$f":"\"INN.\"&EIGNIR!$B$3&C6296","v":{"$error":"#N/A"}},{"$f":"'Sundurliðun Afleiður - eignir'!K77","v":0},".M.EAFSS$$.XX.ERS.XXX.XXXX.SX.XXX.GBP.IS.N.M"]
[{"$f":"\"INN.\"&EIGNIR!$B$3&C6297","v":{"$error":"#N/A"}},{"$f":"'Sundurliðun Afleiður - eignir'!K78","v":0},".M.EAFSS$$.XX.ERI.XXX.XXXX.SX.XXX.GBP.IS.N.M"]
[{"$f":"\"INN.\"&EIGNIR!$B$3&C6298","v":{"$error":"#N/A"}},{"$f":"'Sundurliðun Afleiður - eignir'!K79","v":0},".M.EAFSS$$.XX.ERP.XXX.XXXX.SX.XXX.GBP.IS.N.M"]
[{"$f":"\"INN.\"&EIGNIR!$B$3&C6299","v":{"$error":"#N/A"}},{"$f":"'Sundurliðun Afleiður - eignir'!K80","v":0},".M.EAFSS$$.XX.ERV.XXX.XXXX.SX.XXX.GBP.IS.N.M"]
[{"$f":"\"INN.\"&EIGNIR!$B$3&C6300","v":{"$error":"#N/A"}},{"$f":"'Sundurliðun Afleiður - eignir'!K81","v":0},".M.EAFSS$$.XX.ERF.XXX.XXXX.SX.XXX.GBP.IS.N.M"]
[{"$f":"\"INN.\"&EIGNIR!$B$3&C6301","v":{"$error":"#N/A"}},{"$f":"'Sundurliðun Afleiður - eignir'!K82","v":0},".M.EAFSS$$.XX.ERO.XXX.XXXX.SX.XXX.GBP.IS.N.M"]
[{"$f":"\"INN.\"&EIGNIR!$B$3&C6302","v":{"$error":"#N/A"}},{"$f":"'Sundurliðun Afleiður - eignir'!K83","v":0},".M.EAFSS$$.XX.ERA.XXX.XXXX.SX.XXX.GBP.IS.N.M"]
[{"$f":"\"INN.\"&EIGNIR!$B$3&C6303","v":{"$error":"#N/A"}},{"$f":"'Sundurliðun Afleiður - eignir'!L5","v":0},".M.EAF$$$$.XX.$$$.XXX.XXXX.SX.XXX.JPY.IS.N.M","//Sundurliðun afleiður, JPY"]
[{"$f":"\"INN.\"&EIGNIR!$B$3&C6304","v":{"$error":"#N/A"}},{"$f":"'Sundurliðun Afleiður - eignir'!L6","v":0},".M.EAFVR$$.XX.$$$.XXX.XXXX.SX.XXX.JPY.IS.N.M"]
[{"$f":"\"INN.\"&EIGNIR!$B$3&C6305","v":{"$error":"#N/A"}},{"$f":"'Sundurliðun Afleiður - eignir'!L7","v":0},".M.EAFVR$$.XX.ATV.XXX.XXXX.SX.XXX.JPY.IS.N.M"]
[{"$f":"\"INN.\"&EIGNIR!$B$3&C6306","v":{"$error":"#N/A"}},{"$f":"'Sundurliðun Afleiður - eignir'!L8","v":0},".M.EAFVR$$.XX.FJA.XXX.XXXX.SX.XXX.JPY.IS.N.M"]
[{"$f":"\"INN.\"&EIGNIR!$B$3&C6307","v":{"$error":"#N/A"}},{"$f":"'Sundurliðun Afleiður - eignir'!L9","v":0},".M.EAFVR$$.XX.INN.XXX.XXXX.SX.XXX.JPY.IS.N.M"]
[{"$f":"\"INN.\"&EIGNIR!$B$3&C6308","v":{"$error":"#N/A"}},{"$f":"'Sundurliðun Afleiður - eignir'!L10","v":0},".M.EAFVR$$.XX.SLI.XXX.XXXX.SX.XXX.JPY.IS.N.M"]
[{"$f":"\"INN.\"&EIGNIR!$B$3&C6309","v":{"$error":"#N/A"}},{"$f":"'Sundurliðun Afleiður - eignir'!L11","v":0},".M.EAFVR$$.XX.PEN.XXX.XXXX.SX.XXX.JPY.IS.N.M"]
[{"$f":"\"INN.\"&EIGNIR!$B$3&C6310","v":{"$error":"#N/A"}},{"$f":"'Sundurliðun Afleiður - eignir'!L12","v":0},".M.EAFVR$$.XX.SJO.XXX.XXXX.SX.XXX.JPY.IS.N.M"]
[{"$f":"\"INN.\"&EIGNIR!$B$3&C6311","v":{"$error":"#N/A"}},{"$f":"'Sundurliðun Afleiður - eignir'!L13","v":0},".M.EAFVR$$.XX.YFT.XXX.XXXX.SX.XXX.JPY.IS.N.M"]
[{"$f":"\"INN.\"&EIGNIR!$B$3&C6312","v":{"$error":"#N/A"}},{"$f":"'Sundurliðun Afleiður - eignir'!L14","v":0},".M.EAFVR$$.XX.SLY.XXX.XXXX.SX.XXX.JPY.IS.N.M"]
[{"$f":"\"INN.\"&EIGNIR!$B$3&C6313","v":{"$error":"#N/A"}},{"$f":"'Sundurliðun Afleiður - eignir'!L15","v":0},".M.EAFVR$$.XX.FHL.XXX.XXXX.SX.XXX.JPY.IS.N.M"]
[{"$f":"\"INN.\"&EIGNIR!$B$3&C6314","v":{"$error":"#N/A"}},{"$f":"'Sundurliðun Afleiður - eignir'!L16","v":0},".M.EAFVR$$.XX.INF.XXX.XXXX.SX.XXX.JPY.IS.N.M"]
[{"$f":"\"INN.\"&EIGNIR!$B$3&C6315","v":{"$error":"#N/A"}},{"$f":"'Sundurliðun Afleiður - eignir'!L17","v":0},".M.EAFVR$$.XX.TRY.XXX.XXXX.SX.XXX.JPY.IS.N.M"]
[{"$f":"\"INN.\"&EIGNIR!$B$3&C6316","v":{"$error":"#N/A"}},{"$f":"'Sundurliðun Afleiður - eignir'!L18","v":0},".M.EAFVR$$.XX.LIF.XXX.XXXX.SX.XXX.JPY.IS.N.M"]
[{"$f":"\"INN.\"&EIGNIR!$B$3&C6317","v":{"$error":"#N/A"}},{"$f":"'Sundurliðun Afleiður - eignir'!L19","v":0},".M.EAFVR$$.XX.OPI.XXX.XXXX.SX.XXX.JPY.IS.N.M"]
[{"$f":"\"INN.\"&EIGNIR!$B$3&C6318","v":{"$error":"#N/A"}},{"$f":"'Sundurliðun Afleiður - eignir'!L20","v":0},".M.EAFVR$$.XX.RSS.XXX.XXXX.SX.XXX.JPY.IS.N.M"]
[{"$f":"\"INN.\"&EIGNIR!$B$3&C6319","v":{"$error":"#N/A"}},{"$f":"'Sundurliðun Afleiður - eignir'!L21","v":0},".M.EAFVR$$.XX.BAJ.XXX.XXXX.SX.XXX.JPY.IS.N.M"]
[{"$f":"\"INN.\"&EIGNIR!$B$3&C6320","v":{"$error":"#N/A"}},{"$f":"'Sundurliðun Afleiður - eignir'!L22","v":0},".M.EAFVR$$.XX.EIN.XXX.XXXX.SX.XXX.JPY.IS.N.M"]
[{"$f":"\"INN.\"&EIGNIR!$B$3&C6321","v":{"$error":"#N/A"}},{"$f":"'Sundurliðun Afleiður - eignir'!L23","v":0},".M.EAFVR$$.XX.NPH.XXX.XXXX.SX.XXX.JPY.IS.N.M"]
[{"$f":"\"INN.\"&EIGNIR!$B$3&C6322","v":{"$error":"#N/A"}},{"$f":"'Sundurliðun Afleiður - eignir'!L24","v":0},".M.EAFVR$$.XX.ERL.XXX.XXXX.SX.XXX.JPY.IS.N.M"]
[{"$f":"\"INN.\"&EIGNIR!$B$3&C6323","v":{"$error":"#N/A"}},{"$f":"'Sundurliðun Afleiður - eignir'!L25","v":0},".M.EAFVR$$.XX.ERS.XXX.XXXX.SX.XXX.JPY.IS.N.M"]
[{"$f":"\"INN.\"&EIGNIR!$B$3&C6324","v":{"$error":"#N/A"}},{"$f":"'Sundurliðun Afleiður - eignir'!L26","v":0},".M.EAFVR$$.XX.ERI.XXX.XXXX.SX.XXX.JPY.IS.N.M"]
[{"$f":"\"INN.\"&EIGNIR!$B$3&C6325","v":{"$error":"#N/A"}},{"$f":"'Sundurliðun Afleiður - eignir'!L27","v":0},".M.EAFVR$$.XX.ERP.XXX.XXXX.SX.XXX.JPY.IS.N.M"]
[{"$f":"\"INN.\"&EIGNIR!$B$3&C6326","v":{"$error":"#N/A"}},{"$f":"'Sundurliðun Afleiður - eignir'!L28","v":0},".M.EAFVR$$.XX.ERV.XXX.XXXX.SX.XXX.JPY.IS.N.M"]
[{"$f":"\"INN.\"&EIGNIR!$B$3&C6327","v":{"$error":"#N/A"}},{"$f":"'Sundurliðun Afleiður - eignir'!L29","v":0},".M.EAFVR$$.XX.ERF.XXX.XXXX.SX.XXX.JPY.IS.N.M"]
[{"$f":"\"INN.\"&EIGNIR!$B$3&C6328","v":{"$error":"#N/A"}},{"$f":"'Sundurliðun Afleiður - eignir'!L30","v":0},".M.EAFVR$$.XX.ERO.XXX.XXXX.SX.XXX.JPY.IS.N.M"]
[{"$f":"\"INN.\"&EIGNIR!$B$3&C6329","v":{"$error":"#N/A"}},{"$f":"'Sundurliðun Afleiður - eignir'!L31","v":0},".M.EAFVR$$.XX.ERA.XXX.XXXX.SX.XXX.JPY.IS.N.M"]
[{"$f":"\"INN.\"&EIGNIR!$B$3&C6330","v":{"$error":"#N/A"}},{"$f":"'Sundurliðun Afleiður - eignir'!L32","v":0},".M.EAFFS$$.XX.$$$.XXX.XXXX.SX.XXX.JPY.IS.N.M"]
[{"$f":"\"INN.\"&EIGNIR!$B$3&C6331","v":{"$error":"#N/A"}},{"$f":"'Sundurliðun Afleiður - eignir'!L33","v":0},".M.EAFFS$$.XX.ATV.XXX.XXXX.SX.XXX.JPY.IS.N.M"]
[{"$f":"\"INN.\"&EIGNIR!$B$3&C6332","v":{"$error":"#N/A"}},{"$f":"'Sundurliðun Afleiður - eignir'!L34","v":0},".M.EAFFS$$.XX.FJA.XXX.XXXX.SX.XXX.JPY.IS.N.M"]
[{"$f":"\"INN.\"&EIGNIR!$B$3&C6333","v":{"$error":"#N/A"}},{"$f":"'Sundurliðun Afleiður - eignir'!L35","v":0},".M.EAFFS$$.XX.INN.XXX.XXXX.SX.XXX.JPY.IS.N.M"]
[{"$f":"\"INN.\"&EIGNIR!$B$3&C6334","v":{"$error":"#N/A"}},{"$f":"'Sundurliðun Afleiður - eignir'!L36","v":0},".M.EAFFS$$.XX.SLI.XXX.XXXX.SX.XXX.JPY.IS.N.M"]
[{"$f":"\"INN.\"&EIGNIR!$B$3&C6335","v":{"$error":"#N/A"}},{"$f":"'Sundurliðun Afleiður - eignir'!L37","v":0},".M.EAFFS$$.XX.PEN.XXX.XXXX.SX.XXX.JPY.IS.N.M"]
[{"$f":"\"INN.\"&EIGNIR!$B$3&C6336","v":{"$error":"#N/A"}},{"$f":"'Sundurliðun Afleiður - eignir'!L38","v":0},".M.EAFFS$$.XX.SJO.XXX.XXXX.SX.XXX.JPY.IS.N.M"]
[{"$f":"\"INN.\"&EIGNIR!$B$3&C6337","v":{"$error":"#N/A"}},{"$f":"'Sundurliðun Afleiður - eignir'!L39","v":0},".M.EAFFS$$.XX.YFT.XXX.XXXX.SX.XXX.JPY.IS.N.M"]
[{"$f":"\"INN.\"&EIGNIR!$B$3&C6338","v":{"$error":"#N/A"}},{"$f":"'Sundurliðun Afleiður - eignir'!L40","v":0},".M.EAFFS$$.XX.SLY.XXX.XXXX.SX.XXX.JPY.IS.N.M"]
[{"$f":"\"INN.\"&EIGNIR!$B$3&C6339","v":{"$error":"#N/A"}},{"$f":"'Sundurliðun Afleiður - eignir'!L41","v":0},".M.EAFFS$$.XX.FHL.XXX.XXXX.SX.XXX.JPY.IS.N.M"]
[{"$f":"\"INN.\"&EIGNIR!$B$3&C6340","v":{"$error":"#N/A"}},{"$f":"'Sundurliðun Afleiður - eignir'!L42","v":0},".M.EAFFS$$.XX.INF.XXX.XXXX.SX.XXX.JPY.IS.N.M"]
[{"$f":"\"INN.\"&EIGNIR!$B$3&C6341","v":{"$error":"#N/A"}},{"$f":"'Sundurliðun Afleiður - eignir'!L43","v":0},".M.EAFFS$$.XX.TRY.XXX.XXXX.SX.XXX.JPY.IS.N.M"]
[{"$f":"\"INN.\"&EIGNIR!$B$3&C6342","v":{"$error":"#N/A"}},{"$f":"'Sundurliðun Afleiður - eignir'!L44","v":0},".M.EAFFS$$.XX.LIF.XXX.XXXX.SX.XXX.JPY.IS.N.M"]
[{"$f":"\"INN.\"&EIGNIR!$B$3&C6343","v":{"$error":"#N/A"}},{"$f":"'Sundurliðun Afleiður - eignir'!L45","v":0},".M.EAFFS$$.XX.OPI.XXX.XXXX.SX.XXX.JPY.IS.N.M"]
[{"$f":"\"INN.\"&EIGNIR!$B$3&C6344","v":{"$error":"#N/A"}},{"$f":"'Sundurliðun Afleiður - eignir'!L46","v":0},".M.EAFFS$$.XX.RSS.XXX.XXXX.SX.XXX.JPY.IS.N.M"]
[{"$f":"\"INN.\"&EIGNIR!$B$3&C6345","v":{"$error":"#N/A"}},{"$f":"'Sundurliðun Afleiður - eignir'!L47","v":0},".M.EAFFS$$.XX.BAJ.XXX.XXXX.SX.XXX.JPY.IS.N.M"]
[{"$f":"\"INN.\"&EIGNIR!$B$3&C6346","v":{"$error":"#N/A"}},{"$f":"'Sundurliðun Afleiður - eignir'!L48","v":0},".M.EAFFS$$.XX.EIN.XXX.XXXX.SX.XXX.JPY.IS.N.M"]
[{"$f":"\"INN.\"&EIGNIR!$B$3&C6347","v":{"$error":"#N/A"}},{"$f":"'Sundurliðun Afleiður - eignir'!L49","v":0},".M.EAFFS$$.XX.NPH.XXX.XXXX.SX.XXX.JPY.IS.N.M"]
[{"$f":"\"INN.\"&EIGNIR!$B$3&C6348","v":{"$error":"#N/A"}},{"$f":"'Sundurliðun Afleiður - eignir'!L50","v":0},".M.EAFFS$$.XX.ERL.XXX.XXXX.SX.XXX.JPY.IS.N.M"]
[{"$f":"\"INN.\"&EIGNIR!$B$3&C6349","v":{"$error":"#N/A"}},{"$f":"'Sundurliðun Afleiður - eignir'!L51","v":0},".M.EAFFS$$.XX.ERS.XXX.XXXX.SX.XXX.JPY.IS.N.M"]
[{"$f":"\"INN.\"&EIGNIR!$B$3&C6350","v":{"$error":"#N/A"}},{"$f":"'Sundurliðun Afleiður - eignir'!L52","v":0},".M.EAFFS$$.XX.ERI.XXX.XXXX.SX.XXX.JPY.IS.N.M"]
[{"$f":"\"INN.\"&EIGNIR!$B$3&C6351","v":{"$error":"#N/A"}},{"$f":"'Sundurliðun Afleiður - eignir'!L53","v":0},".M.EAFFS$$.XX.ERP.XXX.XXXX.SX.XXX.JPY.IS.N.M"]
[{"$f":"\"INN.\"&EIGNIR!$B$3&C6352","v":{"$error":"#N/A"}},{"$f":"'Sundurliðun Afleiður - eignir'!L54","v":0},".M.EAFFS$$.XX.ERV.XXX.XXXX.SX.XXX.JPY.IS.N.M"]
[{"$f":"\"INN.\"&EIGNIR!$B$3&C6353","v":{"$error":"#N/A"}},{"$f":"'Sundurliðun Afleiður - eignir'!L55","v":0},".M.EAFFS$$.XX.ERF.XXX.XXXX.SX.XXX.JPY.IS.N.M"]
[{"$f":"\"INN.\"&EIGNIR!$B$3&C6354","v":{"$error":"#N/A"}},{"$f":"'Sundurliðun Afleiður - eignir'!L56","v":0},".M.EAFFS$$.XX.ERO.XXX.XXXX.SX.XXX.JPY.IS.N.M"]
[{"$f":"\"INN.\"&EIGNIR!$B$3&C6355","v":{"$error":"#N/A"}},{"$f":"'Sundurliðun Afleiður - eignir'!L57","v":0},".M.EAFFS$$.XX.ERA.XXX.XXXX.SX.XXX.JPY.IS.N.M"]
[{"$f":"\"INN.\"&EIGNIR!$B$3&C6356","v":{"$error":"#N/A"}},{"$f":"'Sundurliðun Afleiður - eignir'!L58","v":0},".M.EAFSS$$.XX.$$$.XXX.XXXX.SX.XXX.JPY.IS.N.M"]
[{"$f":"\"INN.\"&EIGNIR!$B$3&C6357","v":{"$error":"#N/A"}},{"$f":"'Sundurliðun Afleiður - eignir'!L59","v":0},".M.EAFSS$$.XX.ATV.XXX.XXXX.SX.XXX.JPY.IS.N.M"]
[{"$f":"\"INN.\"&EIGNIR!$B$3&C6358","v":{"$error":"#N/A"}},{"$f":"'Sundurliðun Afleiður - eignir'!L60","v":0},".M.EAFSS$$.XX.FJA.XXX.XXXX.SX.XXX.JPY.IS.N.M"]
[{"$f":"\"INN.\"&EIGNIR!$B$3&C6359","v":{"$error":"#N/A"}},{"$f":"'Sundurliðun Afleiður - eignir'!L61","v":0},".M.EAFSS$$.XX.INN.XXX.XXXX.SX.XXX.JPY.IS.N.M"]
[{"$f":"\"INN.\"&EIGNIR!$B$3&C6360","v":{"$error":"#N/A"}},{"$f":"'Sundurliðun Afleiður - eignir'!L62","v":0},".M.EAFSS$$.XX.SLI.XXX.XXXX.SX.XXX.JPY.IS.N.M"]
[{"$f":"\"INN.\"&EIGNIR!$B$3&C6361","v":{"$error":"#N/A"}},{"$f":"'Sundurliðun Afleiður - eignir'!L63","v":0},".M.EAFSS$$.XX.PEN.XXX.XXXX.SX.XXX.JPY.IS.N.M"]
[{"$f":"\"INN.\"&EIGNIR!$B$3&C6362","v":{"$error":"#N/A"}},{"$f":"'Sundurliðun Afleiður - eignir'!L64","v":0},".M.EAFSS$$.XX.SJO.XXX.XXXX.SX.XXX.JPY.IS.N.M"]
[{"$f":"\"INN.\"&EIGNIR!$B$3&C6363","v":{"$error":"#N/A"}},{"$f":"'Sundurliðun Afleiður - eignir'!L65","v":0},".M.EAFSS$$.XX.YFT.XXX.XXXX.SX.XXX.JPY.IS.N.M"]
[{"$f":"\"INN.\"&EIGNIR!$B$3&C6364","v":{"$error":"#N/A"}},{"$f":"'Sundurliðun Afleiður - eignir'!L66","v":0},".M.EAFSS$$.XX.SLY.XXX.XXXX.SX.XXX.JPY.IS.N.M"]
[{"$f":"\"INN.\"&EIGNIR!$B$3&C6365","v":{"$error":"#N/A"}},{"$f":"'Sundurliðun Afleiður - eignir'!L67","v":0},".M.EAFSS$$.XX.FHL.XXX.XXXX.SX.XXX.JPY.IS.N.M"]
[{"$f":"\"INN.\"&EIGNIR!$B$3&C6366","v":{"$error":"#N/A"}},{"$f":"'Sundurliðun Afleiður - eignir'!L68","v":0},".M.EAFSS$$.XX.INF.XXX.XXXX.SX.XXX.JPY.IS.N.M"]
[{"$f":"\"INN.\"&EIGNIR!$B$3&C6367","v":{"$error":"#N/A"}},{"$f":"'Sundurliðun Afleiður - eignir'!L69","v":0},".M.EAFSS$$.XX.TRY.XXX.XXXX.SX.XXX.JPY.IS.N.M"]
[{"$f":"\"INN.\"&EIGNIR!$B$3&C6368","v":{"$error":"#N/A"}},{"$f":"'Sundurliðun Afleiður - eignir'!L70","v":0},".M.EAFSS$$.XX.LIF.XXX.XXXX.SX.XXX.JPY.IS.N.M"]
[{"$f":"\"INN.\"&EIGNIR!$B$3&C6369","v":{"$error":"#N/A"}},{"$f":"'Sundurliðun Afleiður - eignir'!L71","v":0},".M.EAFSS$$.XX.OPI.XXX.XXXX.SX.XXX.JPY.IS.N.M"]
[{"$f":"\"INN.\"&EIGNIR!$B$3&C6370","v":{"$error":"#N/A"}},{"$f":"'Sundurliðun Afleiður - eignir'!L72","v":0},".M.EAFSS$$.XX.RSS.XXX.XXXX.SX.XXX.JPY.IS.N.M"]
[{"$f":"\"INN.\"&EIGNIR!$B$3&C6371","v":{"$error":"#N/A"}},{"$f":"'Sundurliðun Afleiður - eignir'!L73","v":0},".M.EAFSS$$.XX.BAJ.XXX.XXXX.SX.XXX.JPY.IS.N.M"]
[{"$f":"\"INN.\"&EIGNIR!$B$3&C6372","v":{"$error":"#N/A"}},{"$f":"'Sundurliðun Afleiður - eignir'!L74","v":0},".M.EAFSS$$.XX.EIN.XXX.XXXX.SX.XXX.JPY.IS.N.M"]
[{"$f":"\"INN.\"&EIGNIR!$B$3&C6373","v":{"$error":"#N/A"}},{"$f":"'Sundurliðun Afleiður - eignir'!L75","v":0},".M.EAFSS$$.XX.NPH.XXX.XXXX.SX.XXX.JPY.IS.N.M"]
[{"$f":"\"INN.\"&EIGNIR!$B$3&C6374","v":{"$error":"#N/A"}},{"$f":"'Sundurliðun Afleiður - eignir'!L76","v":0},".M.EAFSS$$.XX.ERL.XXX.XXXX.SX.XXX.JPY.IS.N.M"]
[{"$f":"\"INN.\"&EIGNIR!$B$3&C6375","v":{"$error":"#N/A"}},{"$f":"'Sundurliðun Afleiður - eignir'!L77","v":0},".M.EAFSS$$.XX.ERS.XXX.XXXX.SX.XXX.JPY.IS.N.M"]
[{"$f":"\"INN.\"&EIGNIR!$B$3&C6376","v":{"$error":"#N/A"}},{"$f":"'Sundurliðun Afleiður - eignir'!L78","v":0},".M.EAFSS$$.XX.ERI.XXX.XXXX.SX.XXX.JPY.IS.N.M"]
[{"$f":"\"INN.\"&EIGNIR!$B$3&C6377","v":{"$error":"#N/A"}},{"$f":"'Sundurliðun Afleiður - eignir'!L79","v":0},".M.EAFSS$$.XX.ERP.XXX.XXXX.SX.XXX.JPY.IS.N.M"]
[{"$f":"\"INN.\"&EIGNIR!$B$3&C6378","v":{"$error":"#N/A"}},{"$f":"'Sundurliðun Afleiður - eignir'!L80","v":0},".M.EAFSS$$.XX.ERV.XXX.XXXX.SX.XXX.JPY.IS.N.M"]
[{"$f":"\"INN.\"&EIGNIR!$B$3&C6379","v":{"$error":"#N/A"}},{"$f":"'Sundurliðun Afleiður - eignir'!L81","v":0},".M.EAFSS$$.XX.ERF.XXX.XXXX.SX.XXX.JPY.IS.N.M"]
[{"$f":"\"INN.\"&EIGNIR!$B$3&C6380","v":{"$error":"#N/A"}},{"$f":"'Sundurliðun Afleiður - eignir'!L82","v":0},".M.EAFSS$$.XX.ERO.XXX.XXXX.SX.XXX.JPY.IS.N.M"]
[{"$f":"\"INN.\"&EIGNIR!$B$3&C6381","v":{"$error":"#N/A"}},{"$f":"'Sundurliðun Afleiður - eignir'!L83","v":0},".M.EAFSS$$.XX.ERA.XXX.XXXX.SX.XXX.JPY.IS.N.M"]
[{"$f":"\"INN.\"&EIGNIR!$B$3&C6382","v":{"$error":"#N/A"}},{"$f":"'Sundurliðun Afleiður - eignir'!M5","v":0},".M.EAF$$$$.XX.$$$.XXX.XXXX.SX.XXX.DKK.IS.N.M","//Sundurliðun afleiður, DKK"]
[{"$f":"\"INN.\"&EIGNIR!$B$3&C6383","v":{"$error":"#N/A"}},{"$f":"'Sundurliðun Afleiður - eignir'!M6","v":0},".M.EAFVR$$.XX.$$$.XXX.XXXX.SX.XXX.DKK.IS.N.M"]
[{"$f":"\"INN.\"&EIGNIR!$B$3&C6384","v":{"$error":"#N/A"}},{"$f":"'Sundurliðun Afleiður - eignir'!M7","v":0},".M.EAFVR$$.XX.ATV.XXX.XXXX.SX.XXX.DKK.IS.N.M"]
[{"$f":"\"INN.\"&EIGNIR!$B$3&C6385","v":{"$error":"#N/A"}},{"$f":"'Sundurliðun Afleiður - eignir'!M8","v":0},".M.EAFVR$$.XX.FJA.XXX.XXXX.SX.XXX.DKK.IS.N.M"]
[{"$f":"\"INN.\"&EIGNIR!$B$3&C6386","v":{"$error":"#N/A"}},{"$f":"'Sundurliðun Afleiður - eignir'!M9","v":0},".M.EAFVR$$.XX.INN.XXX.XXXX.SX.XXX.DKK.IS.N.M"]
[{"$f":"\"INN.\"&EIGNIR!$B$3&C6387","v":{"$error":"#N/A"}},{"$f":"'Sundurliðun Afleiður - eignir'!M10","v":0},".M.EAFVR$$.XX.SLI.XXX.XXXX.SX.XXX.DKK.IS.N.M"]
[{"$f":"\"INN.\"&EIGNIR!$B$3&C6388","v":{"$error":"#N/A"}},{"$f":"'Sundurliðun Afleiður - eignir'!M11","v":0},".M.EAFVR$$.XX.PEN.XXX.XXXX.SX.XXX.DKK.IS.N.M"]
[{"$f":"\"INN.\"&EIGNIR!$B$3&C6389","v":{"$error":"#N/A"}},{"$f":"'Sundurliðun Afleiður - eignir'!M12","v":0},".M.EAFVR$$.XX.SJO.XXX.XXXX.SX.XXX.DKK.IS.N.M"]
[{"$f":"\"INN.\"&EIGNIR!$B$3&C6390","v":{"$error":"#N/A"}},{"$f":"'Sundurliðun Afleiður - eignir'!M13","v":0},".M.EAFVR$$.XX.YFT.XXX.XXXX.SX.XXX.DKK.IS.N.M"]
[{"$f":"\"INN.\"&EIGNIR!$B$3&C6391","v":{"$error":"#N/A"}},{"$f":"'Sundurliðun Afleiður - eignir'!M14","v":0},".M.EAFVR$$.XX.SLY.XXX.XXXX.SX.XXX.DKK.IS.N.M"]
[{"$f":"\"INN.\"&EIGNIR!$B$3&C6392","v":{"$error":"#N/A"}},{"$f":"'Sundurliðun Afleiður - eignir'!M15","v":0},".M.EAFVR$$.XX.FHL.XXX.XXXX.SX.XXX.DKK.IS.N.M"]
[{"$f":"\"INN.\"&EIGNIR!$B$3&C6393","v":{"$error":"#N/A"}},{"$f":"'Sundurliðun Afleiður - eignir'!M16","v":0},".M.EAFVR$$.XX.INF.XXX.XXXX.SX.XXX.DKK.IS.N.M"]
[{"$f":"\"INN.\"&EIGNIR!$B$3&C6394","v":{"$error":"#N/A"}},{"$f":"'Sundurliðun Afleiður - eignir'!M17","v":0},".M.EAFVR$$.XX.TRY.XXX.XXXX.SX.XXX.DKK.IS.N.M"]
[{"$f":"\"INN.\"&EIGNIR!$B$3&C6395","v":{"$error":"#N/A"}},{"$f":"'Sundurliðun Afleiður - eignir'!M18","v":0},".M.EAFVR$$.XX.LIF.XXX.XXXX.SX.XXX.DKK.IS.N.M"]
[{"$f":"\"INN.\"&EIGNIR!$B$3&C6396","v":{"$error":"#N/A"}},{"$f":"'Sundurliðun Afleiður - eignir'!M19","v":0},".M.EAFVR$$.XX.OPI.XXX.XXXX.SX.XXX.DKK.IS.N.M"]
[{"$f":"\"INN.\"&EIGNIR!$B$3&C6397","v":{"$error":"#N/A"}},{"$f":"'Sundurliðun Afleiður - eignir'!M20","v":0},".M.EAFVR$$.XX.RSS.XXX.XXXX.SX.XXX.DKK.IS.N.M"]
[{"$f":"\"INN.\"&EIGNIR!$B$3&C6398","v":{"$error":"#N/A"}},{"$f":"'Sundurliðun Afleiður - eignir'!M21","v":0},".M.EAFVR$$.XX.BAJ.XXX.XXXX.SX.XXX.DKK.IS.N.M"]
[{"$f":"\"INN.\"&EIGNIR!$B$3&C6399","v":{"$error":"#N/A"}},{"$f":"'Sundurliðun Afleiður - eignir'!M22","v":0},".M.EAFVR$$.XX.EIN.XXX.XXXX.SX.XXX.DKK.IS.N.M"]
[{"$f":"\"INN.\"&EIGNIR!$B$3&C6400","v":{"$error":"#N/A"}},{"$f":"'Sundurliðun Afleiður - eignir'!M23","v":0},".M.EAFVR$$.XX.NPH.XXX.XXXX.SX.XXX.DKK.IS.N.M"]
[{"$f":"\"INN.\"&EIGNIR!$B$3&C6401","v":{"$error":"#N/A"}},{"$f":"'Sundurliðun Afleiður - eignir'!M24","v":0},".M.EAFVR$$.XX.ERL.XXX.XXXX.SX.XXX.DKK.IS.N.M"]
[{"$f":"\"INN.\"&EIGNIR!$B$3&C6402","v":{"$error":"#N/A"}},{"$f":"'Sundurliðun Afleiður - eignir'!M25","v":0},".M.EAFVR$$.XX.ERS.XXX.XXXX.SX.XXX.DKK.IS.N.M"]
[{"$f":"\"INN.\"&EIGNIR!$B$3&C6403","v":{"$error":"#N/A"}},{"$f":"'Sundurliðun Afleiður - eignir'!M26","v":0},".M.EAFVR$$.XX.ERI.XXX.XXXX.SX.XXX.DKK.IS.N.M"]
[{"$f":"\"INN.\"&EIGNIR!$B$3&C6404","v":{"$error":"#N/A"}},{"$f":"'Sundurliðun Afleiður - eignir'!M27","v":0},".M.EAFVR$$.XX.ERP.XXX.XXXX.SX.XXX.DKK.IS.N.M"]
[{"$f":"\"INN.\"&EIGNIR!$B$3&C6405","v":{"$error":"#N/A"}},{"$f":"'Sundurliðun Afleiður - eignir'!M28","v":0},".M.EAFVR$$.XX.ERV.XXX.XXXX.SX.XXX.DKK.IS.N.M"]
[{"$f":"\"INN.\"&EIGNIR!$B$3&C6406","v":{"$error":"#N/A"}},{"$f":"'Sundurliðun Afleiður - eignir'!M29","v":0},".M.EAFVR$$.XX.ERF.XXX.XXXX.SX.XXX.DKK.IS.N.M"]
[{"$f":"\"INN.\"&EIGNIR!$B$3&C6407","v":{"$error":"#N/A"}},{"$f":"'Sundurliðun Afleiður - eignir'!M30","v":0},".M.EAFVR$$.XX.ERO.XXX.XXXX.SX.XXX.DKK.IS.N.M"]
[{"$f":"\"INN.\"&EIGNIR!$B$3&C6408","v":{"$error":"#N/A"}},{"$f":"'Sundurliðun Afleiður - eignir'!M31","v":0},".M.EAFVR$$.XX.ERA.XXX.XXXX.SX.XXX.DKK.IS.N.M"]
[{"$f":"\"INN.\"&EIGNIR!$B$3&C6409","v":{"$error":"#N/A"}},{"$f":"'Sundurliðun Afleiður - eignir'!M32","v":0},".M.EAFFS$$.XX.$$$.XXX.XXXX.SX.XXX.DKK.IS.N.M"]
[{"$f":"\"INN.\"&EIGNIR!$B$3&C6410","v":{"$error":"#N/A"}},{"$f":"'Sundurliðun Afleiður - eignir'!M33","v":0},".M.EAFFS$$.XX.ATV.XXX.XXXX.SX.XXX.DKK.IS.N.M"]
[{"$f":"\"INN.\"&EIGNIR!$B$3&C6411","v":{"$error":"#N/A"}},{"$f":"'Sundurliðun Afleiður - eignir'!M34","v":0},".M.EAFFS$$.XX.FJA.XXX.XXXX.SX.XXX.DKK.IS.N.M"]
[{"$f":"\"INN.\"&EIGNIR!$B$3&C6412","v":{"$error":"#N/A"}},{"$f":"'Sundurliðun Afleiður - eignir'!M35","v":0},".M.EAFFS$$.XX.INN.XXX.XXXX.SX.XXX.DKK.IS.N.M"]
[{"$f":"\"INN.\"&EIGNIR!$B$3&C6413","v":{"$error":"#N/A"}},{"$f":"'Sundurliðun Afleiður - eignir'!M36","v":0},".M.EAFFS$$.XX.SLI.XXX.XXXX.SX.XXX.DKK.IS.N.M"]
[{"$f":"\"INN.\"&EIGNIR!$B$3&C6414","v":{"$error":"#N/A"}},{"$f":"'Sundurliðun Afleiður - eignir'!M37","v":0},".M.EAFFS$$.XX.PEN.XXX.XXXX.SX.XXX.DKK.IS.N.M"]
[{"$f":"\"INN.\"&EIGNIR!$B$3&C6415","v":{"$error":"#N/A"}},{"$f":"'Sundurliðun Afleiður - eignir'!M38","v":0},".M.EAFFS$$.XX.SJO.XXX.XXXX.SX.XXX.DKK.IS.N.M"]
[{"$f":"\"INN.\"&EIGNIR!$B$3&C6416","v":{"$error":"#N/A"}},{"$f":"'Sundurliðun Afleiður - eignir'!M39","v":0},".M.EAFFS$$.XX.YFT.XXX.XXXX.SX.XXX.DKK.IS.N.M"]
[{"$f":"\"INN.\"&EIGNIR!$B$3&C6417","v":{"$error":"#N/A"}},{"$f":"'Sundurliðun Afleiður - eignir'!M40","v":0},".M.EAFFS$$.XX.SLY.XXX.XXXX.SX.XXX.DKK.IS.N.M"]
[{"$f":"\"INN.\"&EIGNIR!$B$3&C6418","v":{"$error":"#N/A"}},{"$f":"'Sundurliðun Afleiður - eignir'!M41","v":0},".M.EAFFS$$.XX.FHL.XXX.XXXX.SX.XXX.DKK.IS.N.M"]
[{"$f":"\"INN.\"&EIGNIR!$B$3&C6419","v":{"$error":"#N/A"}},{"$f":"'Sundurliðun Afleiður - eignir'!M42","v":0},".M.EAFFS$$.XX.INF.XXX.XXXX.SX.XXX.DKK.IS.N.M"]
[{"$f":"\"INN.\"&EIGNIR!$B$3&C6420","v":{"$error":"#N/A"}},{"$f":"'Sundurliðun Afleiður - eignir'!M43","v":0},".M.EAFFS$$.XX.TRY.XXX.XXXX.SX.XXX.DKK.IS.N.M"]
[{"$f":"\"INN.\"&EIGNIR!$B$3&C6421","v":{"$error":"#N/A"}},{"$f":"'Sundurliðun Afleiður - eignir'!M44","v":0},".M.EAFFS$$.XX.LIF.XXX.XXXX.SX.XXX.DKK.IS.N.M"]
[{"$f":"\"INN.\"&EIGNIR!$B$3&C6422","v":{"$error":"#N/A"}},{"$f":"'Sundurliðun Afleiður - eignir'!M45","v":0},".M.EAFFS$$.XX.OPI.XXX.XXXX.SX.XXX.DKK.IS.N.M"]
[{"$f":"\"INN.\"&EIGNIR!$B$3&C6423","v":{"$error":"#N/A"}},{"$f":"'Sundurliðun Afleiður - eignir'!M46","v":0},".M.EAFFS$$.XX.RSS.XXX.XXXX.SX.XXX.DKK.IS.N.M"]
[{"$f":"\"INN.\"&EIGNIR!$B$3&C6424","v":{"$error":"#N/A"}},{"$f":"'Sundurliðun Afleiður - eignir'!M47","v":0},".M.EAFFS$$.XX.BAJ.XXX.XXXX.SX.XXX.DKK.IS.N.M"]
[{"$f":"\"INN.\"&EIGNIR!$B$3&C6425","v":{"$error":"#N/A"}},{"$f":"'Sundurliðun Afleiður - eignir'!M48","v":0},".M.EAFFS$$.XX.EIN.XXX.XXXX.SX.XXX.DKK.IS.N.M"]
[{"$f":"\"INN.\"&EIGNIR!$B$3&C6426","v":{"$error":"#N/A"}},{"$f":"'Sundurliðun Afleiður - eignir'!M49","v":0},".M.EAFFS$$.XX.NPH.XXX.XXXX.SX.XXX.DKK.IS.N.M"]
[{"$f":"\"INN.\"&EIGNIR!$B$3&C6427","v":{"$error":"#N/A"}},{"$f":"'Sundurliðun Afleiður - eignir'!M50","v":0},".M.EAFFS$$.XX.ERL.XXX.XXXX.SX.XXX.DKK.IS.N.M"]
[{"$f":"\"INN.\"&EIGNIR!$B$3&C6428","v":{"$error":"#N/A"}},{"$f":"'Sundurliðun Afleiður - eignir'!M51","v":0},".M.EAFFS$$.XX.ERS.XXX.XXXX.SX.XXX.DKK.IS.N.M"]
[{"$f":"\"INN.\"&EIGNIR!$B$3&C6429","v":{"$error":"#N/A"}},{"$f":"'Sundurliðun Afleiður - eignir'!M52","v":0},".M.EAFFS$$.XX.ERI.XXX.XXXX.SX.XXX.DKK.IS.N.M"]
[{"$f":"\"INN.\"&EIGNIR!$B$3&C6430","v":{"$error":"#N/A"}},{"$f":"'Sundurliðun Afleiður - eignir'!M53","v":0},".M.EAFFS$$.XX.ERP.XXX.XXXX.SX.XXX.DKK.IS.N.M"]
[{"$f":"\"INN.\"&EIGNIR!$B$3&C6431","v":{"$error":"#N/A"}},{"$f":"'Sundurliðun Afleiður - eignir'!M54","v":0},".M.EAFFS$$.XX.ERV.XXX.XXXX.SX.XXX.DKK.IS.N.M"]
[{"$f":"\"INN.\"&EIGNIR!$B$3&C6432","v":{"$error":"#N/A"}},{"$f":"'Sundurliðun Afleiður - eignir'!M55","v":0},".M.EAFFS$$.XX.ERF.XXX.XXXX.SX.XXX.DKK.IS.N.M"]
[{"$f":"\"INN.\"&EIGNIR!$B$3&C6433","v":{"$error":"#N/A"}},{"$f":"'Sundurliðun Afleiður - eignir'!M56","v":0},".M.EAFFS$$.XX.ERO.XXX.XXXX.SX.XXX.DKK.IS.N.M"]
[{"$f":"\"INN.\"&EIGNIR!$B$3&C6434","v":{"$error":"#N/A"}},{"$f":"'Sundurliðun Afleiður - eignir'!M57","v":0},".M.EAFFS$$.XX.ERA.XXX.XXXX.SX.XXX.DKK.IS.N.M"]
[{"$f":"\"INN.\"&EIGNIR!$B$3&C6435","v":{"$error":"#N/A"}},{"$f":"'Sundurliðun Afleiður - eignir'!M58","v":0},".M.EAFSS$$.XX.$$$.XXX.XXXX.SX.XXX.DKK.IS.N.M"]
[{"$f":"\"INN.\"&EIGNIR!$B$3&C6436","v":{"$error":"#N/A"}},{"$f":"'Sundurliðun Afleiður - eignir'!M59","v":0},".M.EAFSS$$.XX.ATV.XXX.XXXX.SX.XXX.DKK.IS.N.M"]
[{"$f":"\"INN.\"&EIGNIR!$B$3&C6437","v":{"$error":"#N/A"}},{"$f":"'Sundurliðun Afleiður - eignir'!M60","v":0},".M.EAFSS$$.XX.FJA.XXX.XXXX.SX.XXX.DKK.IS.N.M"]
[{"$f":"\"INN.\"&EIGNIR!$B$3&C6438","v":{"$error":"#N/A"}},{"$f":"'Sundurliðun Afleiður - eignir'!M61","v":0},".M.EAFSS$$.XX.INN.XXX.XXXX.SX.XXX.DKK.IS.N.M"]
[{"$f":"\"INN.\"&EIGNIR!$B$3&C6439","v":{"$error":"#N/A"}},{"$f":"'Sundurliðun Afleiður - eignir'!M62","v":0},".M.EAFSS$$.XX.SLI.XXX.XXXX.SX.XXX.DKK.IS.N.M"]
[{"$f":"\"INN.\"&EIGNIR!$B$3&C6440","v":{"$error":"#N/A"}},{"$f":"'Sundurliðun Afleiður - eignir'!M63","v":0},".M.EAFSS$$.XX.PEN.XXX.XXXX.SX.XXX.DKK.IS.N.M"]
[{"$f":"\"INN.\"&EIGNIR!$B$3&C6441","v":{"$error":"#N/A"}},{"$f":"'Sundurliðun Afleiður - eignir'!M64","v":0},".M.EAFSS$$.XX.SJO.XXX.XXXX.SX.XXX.DKK.IS.N.M"]
[{"$f":"\"INN.\"&EIGNIR!$B$3&C6442","v":{"$error":"#N/A"}},{"$f":"'Sundurliðun Afleiður - eignir'!M65","v":0},".M.EAFSS$$.XX.YFT.XXX.XXXX.SX.XXX.DKK.IS.N.M"]
[{"$f":"\"INN.\"&EIGNIR!$B$3&C6443","v":{"$error":"#N/A"}},{"$f":"'Sundurliðun Afleiður - eignir'!M66","v":0},".M.EAFSS$$.XX.SLY.XXX.XXXX.SX.XXX.DKK.IS.N.M"]
[{"$f":"\"INN.\"&EIGNIR!$B$3&C6444","v":{"$error":"#N/A"}},{"$f":"'Sundurliðun Afleiður - eignir'!M67","v":0},".M.EAFSS$$.XX.FHL.XXX.XXXX.SX.XXX.DKK.IS.N.M"]
[{"$f":"\"INN.\"&EIGNIR!$B$3&C6445","v":{"$error":"#N/A"}},{"$f":"'Sundurliðun Afleiður - eignir'!M68","v":0},".M.EAFSS$$.XX.INF.XXX.XXXX.SX.XXX.DKK.IS.N.M"]
[{"$f":"\"INN.\"&EIGNIR!$B$3&C6446","v":{"$error":"#N/A"}},{"$f":"'Sundurliðun Afleiður - eignir'!M69","v":0},".M.EAFSS$$.XX.TRY.XXX.XXXX.SX.XXX.DKK.IS.N.M"]
[{"$f":"\"INN.\"&EIGNIR!$B$3&C6447","v":{"$error":"#N/A"}},{"$f":"'Sundurliðun Afleiður - eignir'!M70","v":0},".M.EAFSS$$.XX.LIF.XXX.XXXX.SX.XXX.DKK.IS.N.M"]
[{"$f":"\"INN.\"&EIGNIR!$B$3&C6448","v":{"$error":"#N/A"}},{"$f":"'Sundurliðun Afleiður - eignir'!M71","v":0},".M.EAFSS$$.XX.OPI.XXX.XXXX.SX.XXX.DKK.IS.N.M"]
[{"$f":"\"INN.\"&EIGNIR!$B$3&C6449","v":{"$error":"#N/A"}},{"$f":"'Sundurliðun Afleiður - eignir'!M72","v":0},".M.EAFSS$$.XX.RSS.XXX.XXXX.SX.XXX.DKK.IS.N.M"]
[{"$f":"\"INN.\"&EIGNIR!$B$3&C6450","v":{"$error":"#N/A"}},{"$f":"'Sundurliðun Afleiður - eignir'!M73","v":0},".M.EAFSS$$.XX.BAJ.XXX.XXXX.SX.XXX.DKK.IS.N.M"]
[{"$f":"\"INN.\"&EIGNIR!$B$3&C6451","v":{"$error":"#N/A"}},{"$f":"'Sundurliðun Afleiður - eignir'!M74","v":0},".M.EAFSS$$.XX.EIN.XXX.XXXX.SX.XXX.DKK.IS.N.M"]
[{"$f":"\"INN.\"&EIGNIR!$B$3&C6452","v":{"$error":"#N/A"}},{"$f":"'Sundurliðun Afleiður - eignir'!M75","v":0},".M.EAFSS$$.XX.NPH.XXX.XXXX.SX.XXX.DKK.IS.N.M"]
[{"$f":"\"INN.\"&EIGNIR!$B$3&C6453","v":{"$error":"#N/A"}},{"$f":"'Sundurliðun Afleiður - eignir'!M76","v":0},".M.EAFSS$$.XX.ERL.XXX.XXXX.SX.XXX.DKK.IS.N.M"]
[{"$f":"\"INN.\"&EIGNIR!$B$3&C6454","v":{"$error":"#N/A"}},{"$f":"'Sundurliðun Afleiður - eignir'!M77","v":0},".M.EAFSS$$.XX.ERS.XXX.XXXX.SX.XXX.DKK.IS.N.M"]
[{"$f":"\"INN.\"&EIGNIR!$B$3&C6455","v":{"$error":"#N/A"}},{"$f":"'Sundurliðun Afleiður - eignir'!M78","v":0},".M.EAFSS$$.XX.ERI.XXX.XXXX.SX.XXX.DKK.IS.N.M"]
[{"$f":"\"INN.\"&EIGNIR!$B$3&C6456","v":{"$error":"#N/A"}},{"$f":"'Sundurliðun Afleiður - eignir'!M79","v":0},".M.EAFSS$$.XX.ERP.XXX.XXXX.SX.XXX.DKK.IS.N.M"]
[{"$f":"\"INN.\"&EIGNIR!$B$3&C6457","v":{"$error":"#N/A"}},{"$f":"'Sundurliðun Afleiður - eignir'!M80","v":0},".M.EAFSS$$.XX.ERV.XXX.XXXX.SX.XXX.DKK.IS.N.M"]
[{"$f":"\"INN.\"&EIGNIR!$B$3&C6458","v":{"$error":"#N/A"}},{"$f":"'Sundurliðun Afleiður - eignir'!M81","v":0},".M.EAFSS$$.XX.ERF.XXX.XXXX.SX.XXX.DKK.IS.N.M"]
[{"$f":"\"INN.\"&EIGNIR!$B$3&C6459","v":{"$error":"#N/A"}},{"$f":"'Sundurliðun Afleiður - eignir'!M82","v":0},".M.EAFSS$$.XX.ERO.XXX.XXXX.SX.XXX.DKK.IS.N.M"]
[{"$f":"\"INN.\"&EIGNIR!$B$3&C6460","v":{"$error":"#N/A"}},{"$f":"'Sundurliðun Afleiður - eignir'!M83","v":0},".M.EAFSS$$.XX.ERA.XXX.XXXX.SX.XXX.DKK.IS.N.M"]
[{"$f":"\"INN.\"&EIGNIR!$B$3&C6461","v":{"$error":"#N/A"}},{"$f":"'Sundurliðun Afleiður - eignir'!N5","v":0},".M.EAF$$$$.XX.$$$.XXX.XXXX.SX.XXX.NOK.IS.N.M"]
[{"$f":"\"INN.\"&EIGNIR!$B$3&C6462","v":{"$error":"#N/A"}},{"$f":"'Sundurliðun Afleiður - eignir'!N6","v":0},".M.EAFVR$$.XX.$$$.XXX.XXXX.SX.XXX.NOK.IS.N.M"]
[{"$f":"\"INN.\"&EIGNIR!$B$3&C6463","v":{"$error":"#N/A"}},{"$f":"'Sundurliðun Afleiður - eignir'!N7","v":0},".M.EAFVR$$.XX.ATV.XXX.XXXX.SX.XXX.NOK.IS.N.M"]
[{"$f":"\"INN.\"&EIGNIR!$B$3&C6464","v":{"$error":"#N/A"}},{"$f":"'Sundurliðun Afleiður - eignir'!N8","v":0},".M.EAFVR$$.XX.FJA.XXX.XXXX.SX.XXX.NOK.IS.N.M"]
[{"$f":"\"INN.\"&EIGNIR!$B$3&C6465","v":{"$error":"#N/A"}},{"$f":"'Sundurliðun Afleiður - eignir'!N9","v":0},".M.EAFVR$$.XX.INN.XXX.XXXX.SX.XXX.NOK.IS.N.M"]
[{"$f":"\"INN.\"&EIGNIR!$B$3&C6466","v":{"$error":"#N/A"}},{"$f":"'Sundurliðun Afleiður - eignir'!N10","v":0},".M.EAFVR$$.XX.SLI.XXX.XXXX.SX.XXX.NOK.IS.N.M"]
[{"$f":"\"INN.\"&EIGNIR!$B$3&C6467","v":{"$error":"#N/A"}},{"$f":"'Sundurliðun Afleiður - eignir'!N11","v":0},".M.EAFVR$$.XX.PEN.XXX.XXXX.SX.XXX.NOK.IS.N.M"]
[{"$f":"\"INN.\"&EIGNIR!$B$3&C6468","v":{"$error":"#N/A"}},{"$f":"'Sundurliðun Afleiður - eignir'!N12","v":0},".M.EAFVR$$.XX.SJO.XXX.XXXX.SX.XXX.NOK.IS.N.M"]
[{"$f":"\"INN.\"&EIGNIR!$B$3&C6469","v":{"$error":"#N/A"}},{"$f":"'Sundurliðun Afleiður - eignir'!N13","v":0},".M.EAFVR$$.XX.YFT.XXX.XXXX.SX.XXX.NOK.IS.N.M"]
[{"$f":"\"INN.\"&EIGNIR!$B$3&C6470","v":{"$error":"#N/A"}},{"$f":"'Sundurliðun Afleiður - eignir'!N14","v":0},".M.EAFVR$$.XX.SLY.XXX.XXXX.SX.XXX.NOK.IS.N.M"]
[{"$f":"\"INN.\"&EIGNIR!$B$3&C6471","v":{"$error":"#N/A"}},{"$f":"'Sundurliðun Afleiður - eignir'!N15","v":0},".M.EAFVR$$.XX.FHL.XXX.XXXX.SX.XXX.NOK.IS.N.M"]
[{"$f":"\"INN.\"&EIGNIR!$B$3&C6472","v":{"$error":"#N/A"}},{"$f":"'Sundurliðun Afleiður - eignir'!N16","v":0},".M.EAFVR$$.XX.INF.XXX.XXXX.SX.XXX.NOK.IS.N.M"]
[{"$f":"\"INN.\"&EIGNIR!$B$3&C6473","v":{"$error":"#N/A"}},{"$f":"'Sundurliðun Afleiður - eignir'!N17","v":0},".M.EAFVR$$.XX.TRY.XXX.XXXX.SX.XXX.NOK.IS.N.M"]
[{"$f":"\"INN.\"&EIGNIR!$B$3&C6474","v":{"$error":"#N/A"}},{"$f":"'Sundurliðun Afleiður - eignir'!N18","v":0},".M.EAFVR$$.XX.LIF.XXX.XXXX.SX.XXX.NOK.IS.N.M"]
[{"$f":"\"INN.\"&EIGNIR!$B$3&C6475","v":{"$error":"#N/A"}},{"$f":"'Sundurliðun Afleiður - eignir'!N19","v":0},".M.EAFVR$$.XX.OPI.XXX.XXXX.SX.XXX.NOK.IS.N.M"]
[{"$f":"\"INN.\"&EIGNIR!$B$3&C6476","v":{"$error":"#N/A"}},{"$f":"'Sundurliðun Afleiður - eignir'!N20","v":0},".M.EAFVR$$.XX.RSS.XXX.XXXX.SX.XXX.NOK.IS.N.M"]
[{"$f":"\"INN.\"&EIGNIR!$B$3&C6477","v":{"$error":"#N/A"}},{"$f":"'Sundurliðun Afleiður - eignir'!N21","v":0},".M.EAFVR$$.XX.BAJ.XXX.XXXX.SX.XXX.NOK.IS.N.M"]
[{"$f":"\"INN.\"&EIGNIR!$B$3&C6478","v":{"$error":"#N/A"}},{"$f":"'Sundurliðun Afleiður - eignir'!N22","v":0},".M.EAFVR$$.XX.EIN.XXX.XXXX.SX.XXX.NOK.IS.N.M"]
[{"$f":"\"INN.\"&EIGNIR!$B$3&C6479","v":{"$error":"#N/A"}},{"$f":"'Sundurliðun Afleiður - eignir'!N23","v":0},".M.EAFVR$$.XX.NPH.XXX.XXXX.SX.XXX.NOK.IS.N.M"]
[{"$f":"\"INN.\"&EIGNIR!$B$3&C6480","v":{"$error":"#N/A"}},{"$f":"'Sundurliðun Afleiður - eignir'!N24","v":0},".M.EAFVR$$.XX.ERL.XXX.XXXX.SX.XXX.NOK.IS.N.M"]
[{"$f":"\"INN.\"&EIGNIR!$B$3&C6481","v":{"$error":"#N/A"}},{"$f":"'Sundurliðun Afleiður - eignir'!N25","v":0},".M.EAFVR$$.XX.ERS.XXX.XXXX.SX.XXX.NOK.IS.N.M"]
[{"$f":"\"INN.\"&EIGNIR!$B$3&C6482","v":{"$error":"#N/A"}},{"$f":"'Sundurliðun Afleiður - eignir'!N26","v":0},".M.EAFVR$$.XX.ERI.XXX.XXXX.SX.XXX.NOK.IS.N.M"]
[{"$f":"\"INN.\"&EIGNIR!$B$3&C6483","v":{"$error":"#N/A"}},{"$f":"'Sundurliðun Afleiður - eignir'!N27","v":0},".M.EAFVR$$.XX.ERP.XXX.XXXX.SX.XXX.NOK.IS.N.M"]
[{"$f":"\"INN.\"&EIGNIR!$B$3&C6484","v":{"$error":"#N/A"}},{"$f":"'Sundurliðun Afleiður - eignir'!N28","v":0},".M.EAFVR$$.XX.ERV.XXX.XXXX.SX.XXX.NOK.IS.N.M"]
[{"$f":"\"INN.\"&EIGNIR!$B$3&C6485","v":{"$error":"#N/A"}},{"$f":"'Sundurliðun Afleiður - eignir'!N29","v":0},".M.EAFVR$$.XX.ERF.XXX.XXXX.SX.XXX.NOK.IS.N.M"]
[{"$f":"\"INN.\"&EIGNIR!$B$3&C6486","v":{"$error":"#N/A"}},{"$f":"'Sundurliðun Afleiður - eignir'!N30","v":0},".M.EAFVR$$.XX.ERO.XXX.XXXX.SX.XXX.NOK.IS.N.M"]
[{"$f":"\"INN.\"&EIGNIR!$B$3&C6487","v":{"$error":"#N/A"}},{"$f":"'Sundurliðun Afleiður - eignir'!N31","v":0},".M.EAFVR$$.XX.ERA.XXX.XXXX.SX.XXX.NOK.IS.N.M"]
[{"$f":"\"INN.\"&EIGNIR!$B$3&C6488","v":{"$error":"#N/A"}},{"$f":"'Sundurliðun Afleiður - eignir'!N32","v":0},".M.EAFFS$$.XX.$$$.XXX.XXXX.SX.XXX.NOK.IS.N.M"]
[{"$f":"\"INN.\"&EIGNIR!$B$3&C6489","v":{"$error":"#N/A"}},{"$f":"'Sundurliðun Afleiður - eignir'!N33","v":0},".M.EAFFS$$.XX.ATV.XXX.XXXX.SX.XXX.NOK.IS.N.M"]
[{"$f":"\"INN.\"&EIGNIR!$B$3&C6490","v":{"$error":"#N/A"}},{"$f":"'Sundurliðun Afleiður - eignir'!N34","v":0},".M.EAFFS$$.XX.FJA.XXX.XXXX.SX.XXX.NOK.IS.N.M"]
[{"$f":"\"INN.\"&EIGNIR!$B$3&C6491","v":{"$error":"#N/A"}},{"$f":"'Sundurliðun Afleiður - eignir'!N35","v":0},".M.EAFFS$$.XX.INN.XXX.XXXX.SX.XXX.NOK.IS.N.M"]
[{"$f":"\"INN.\"&EIGNIR!$B$3&C6492","v":{"$error":"#N/A"}},{"$f":"'Sundurliðun Afleiður - eignir'!N36","v":0},".M.EAFFS$$.XX.SLI.XXX.XXXX.SX.XXX.NOK.IS.N.M"]
[{"$f":"\"INN.\"&EIGNIR!$B$3&C6493","v":{"$error":"#N/A"}},{"$f":"'Sundurliðun Afleiður - eignir'!N37","v":0},".M.EAFFS$$.XX.PEN.XXX.XXXX.SX.XXX.NOK.IS.N.M"]
[{"$f":"\"INN.\"&EIGNIR!$B$3&C6494","v":{"$error":"#N/A"}},{"$f":"'Sundurliðun Afleiður - eignir'!N38","v":0},".M.EAFFS$$.XX.SJO.XXX.XXXX.SX.XXX.NOK.IS.N.M"]
[{"$f":"\"INN.\"&EIGNIR!$B$3&C6495","v":{"$error":"#N/A"}},{"$f":"'Sundurliðun Afleiður - eignir'!N39","v":0},".M.EAFFS$$.XX.YFT.XXX.XXXX.SX.XXX.NOK.IS.N.M"]
[{"$f":"\"INN.\"&EIGNIR!$B$3&C6496","v":{"$error":"#N/A"}},{"$f":"'Sundurliðun Afleiður - eignir'!N40","v":0},".M.EAFFS$$.XX.SLY.XXX.XXXX.SX.XXX.NOK.IS.N.M"]
[{"$f":"\"INN.\"&EIGNIR!$B$3&C6497","v":{"$error":"#N/A"}},{"$f":"'Sundurliðun Afleiður - eignir'!N41","v":0},".M.EAFFS$$.XX.FHL.XXX.XXXX.SX.XXX.NOK.IS.N.M"]
[{"$f":"\"INN.\"&EIGNIR!$B$3&C6498","v":{"$error":"#N/A"}},{"$f":"'Sundurliðun Afleiður - eignir'!N42","v":0},".M.EAFFS$$.XX.INF.XXX.XXXX.SX.XXX.NOK.IS.N.M"]
[{"$f":"\"INN.\"&EIGNIR!$B$3&C6499","v":{"$error":"#N/A"}},{"$f":"'Sundurliðun Afleiður - eignir'!N43","v":0},".M.EAFFS$$.XX.TRY.XXX.XXXX.SX.XXX.NOK.IS.N.M"]
[{"$f":"\"INN.\"&EIGNIR!$B$3&C6500","v":{"$error":"#N/A"}},{"$f":"'Sundurliðun Afleiður - eignir'!N44","v":0},".M.EAFFS$$.XX.LIF.XXX.XXXX.SX.XXX.NOK.IS.N.M"]
[{"$f":"\"INN.\"&EIGNIR!$B$3&C6501","v":{"$error":"#N/A"}},{"$f":"'Sundurliðun Afleiður - eignir'!N45","v":0},".M.EAFFS$$.XX.OPI.XXX.XXXX.SX.XXX.NOK.IS.N.M"]
[{"$f":"\"INN.\"&EIGNIR!$B$3&C6502","v":{"$error":"#N/A"}},{"$f":"'Sundurliðun Afleiður - eignir'!N46","v":0},".M.EAFFS$$.XX.RSS.XXX.XXXX.SX.XXX.NOK.IS.N.M"]
[{"$f":"\"INN.\"&EIGNIR!$B$3&C6503","v":{"$error":"#N/A"}},{"$f":"'Sundurliðun Afleiður - eignir'!N47","v":0},".M.EAFFS$$.XX.BAJ.XXX.XXXX.SX.XXX.NOK.IS.N.M"]
[{"$f":"\"INN.\"&EIGNIR!$B$3&C6504","v":{"$error":"#N/A"}},{"$f":"'Sundurliðun Afleiður - eignir'!N48","v":0},".M.EAFFS$$.XX.EIN.XXX.XXXX.SX.XXX.NOK.IS.N.M"]
[{"$f":"\"INN.\"&EIGNIR!$B$3&C6505","v":{"$error":"#N/A"}},{"$f":"'Sundurliðun Afleiður - eignir'!N49","v":0},".M.EAFFS$$.XX.NPH.XXX.XXXX.SX.XXX.NOK.IS.N.M"]
[{"$f":"\"INN.\"&EIGNIR!$B$3&C6506","v":{"$error":"#N/A"}},{"$f":"'Sundurliðun Afleiður - eignir'!N50","v":0},".M.EAFFS$$.XX.ERL.XXX.XXXX.SX.XXX.NOK.IS.N.M"]
[{"$f":"\"INN.\"&EIGNIR!$B$3&C6507","v":{"$error":"#N/A"}},{"$f":"'Sundurliðun Afleiður - eignir'!N51","v":0},".M.EAFFS$$.XX.ERS.XXX.XXXX.SX.XXX.NOK.IS.N.M"]
[{"$f":"\"INN.\"&EIGNIR!$B$3&C6508","v":{"$error":"#N/A"}},{"$f":"'Sundurliðun Afleiður - eignir'!N52","v":0},".M.EAFFS$$.XX.ERI.XXX.XXXX.SX.XXX.NOK.IS.N.M"]
[{"$f":"\"INN.\"&EIGNIR!$B$3&C6509","v":{"$error":"#N/A"}},{"$f":"'Sundurliðun Afleiður - eignir'!N53","v":0},".M.EAFFS$$.XX.ERP.XXX.XXXX.SX.XXX.NOK.IS.N.M"]
[{"$f":"\"INN.\"&EIGNIR!$B$3&C6510","v":{"$error":"#N/A"}},{"$f":"'Sundurliðun Afleiður - eignir'!N54","v":0},".M.EAFFS$$.XX.ERV.XXX.XXXX.SX.XXX.NOK.IS.N.M"]
[{"$f":"\"INN.\"&EIGNIR!$B$3&C6511","v":{"$error":"#N/A"}},{"$f":"'Sundurliðun Afleiður - eignir'!N55","v":0},".M.EAFFS$$.XX.ERF.XXX.XXXX.SX.XXX.NOK.IS.N.M"]
[{"$f":"\"INN.\"&EIGNIR!$B$3&C6512","v":{"$error":"#N/A"}},{"$f":"'Sundurliðun Afleiður - eignir'!N56","v":0},".M.EAFFS$$.XX.ERO.XXX.XXXX.SX.XXX.NOK.IS.N.M"]
[{"$f":"\"INN.\"&EIGNIR!$B$3&C6513","v":{"$error":"#N/A"}},{"$f":"'Sundurliðun Afleiður - eignir'!N57","v":0},".M.EAFFS$$.XX.ERA.XXX.XXXX.SX.XXX.NOK.IS.N.M"]
[{"$f":"\"INN.\"&EIGNIR!$B$3&C6514","v":{"$error":"#N/A"}},{"$f":"'Sundurliðun Afleiður - eignir'!N58","v":0},".M.EAFSS$$.XX.$$$.XXX.XXXX.SX.XXX.NOK.IS.N.M"]
[{"$f":"\"INN.\"&EIGNIR!$B$3&C6515","v":{"$error":"#N/A"}},{"$f":"'Sundurliðun Afleiður - eignir'!N59","v":0},".M.EAFSS$$.XX.ATV.XXX.XXXX.SX.XXX.NOK.IS.N.M"]
[{"$f":"\"INN.\"&EIGNIR!$B$3&C6516","v":{"$error":"#N/A"}},{"$f":"'Sundurliðun Afleiður - eignir'!N60","v":0},".M.EAFSS$$.XX.FJA.XXX.XXXX.SX.XXX.NOK.IS.N.M"]
[{"$f":"\"INN.\"&EIGNIR!$B$3&C6517","v":{"$error":"#N/A"}},{"$f":"'Sundurliðun Afleiður - eignir'!N61","v":0},".M.EAFSS$$.XX.INN.XXX.XXXX.SX.XXX.NOK.IS.N.M"]
[{"$f":"\"INN.\"&EIGNIR!$B$3&C6518","v":{"$error":"#N/A"}},{"$f":"'Sundurliðun Afleiður - eignir'!N62","v":0},".M.EAFSS$$.XX.SLI.XXX.XXXX.SX.XXX.NOK.IS.N.M"]
[{"$f":"\"INN.\"&EIGNIR!$B$3&C6519","v":{"$error":"#N/A"}},{"$f":"'Sundurliðun Afleiður - eignir'!N63","v":0},".M.EAFSS$$.XX.PEN.XXX.XXXX.SX.XXX.NOK.IS.N.M"]
[{"$f":"\"INN.\"&EIGNIR!$B$3&C6520","v":{"$error":"#N/A"}},{"$f":"'Sundurliðun Afleiður - eignir'!N64","v":0},".M.EAFSS$$.XX.SJO.XXX.XXXX.SX.XXX.NOK.IS.N.M"]
[{"$f":"\"INN.\"&EIGNIR!$B$3&C6521","v":{"$error":"#N/A"}},{"$f":"'Sundurliðun Afleiður - eignir'!N65","v":0},".M.EAFSS$$.XX.YFT.XXX.XXXX.SX.XXX.NOK.IS.N.M"]
[{"$f":"\"INN.\"&EIGNIR!$B$3&C6522","v":{"$error":"#N/A"}},{"$f":"'Sundurliðun Afleiður - eignir'!N66","v":0},".M.EAFSS$$.XX.SLY.XXX.XXXX.SX.XXX.NOK.IS.N.M"]
[{"$f":"\"INN.\"&EIGNIR!$B$3&C6523","v":{"$error":"#N/A"}},{"$f":"'Sundurliðun Afleiður - eignir'!N67","v":0},".M.EAFSS$$.XX.FHL.XXX.XXXX.SX.XXX.NOK.IS.N.M"]
[{"$f":"\"INN.\"&EIGNIR!$B$3&C6524","v":{"$error":"#N/A"}},{"$f":"'Sundurliðun Afleiður - eignir'!N68","v":0},".M.EAFSS$$.XX.INF.XXX.XXXX.SX.XXX.NOK.IS.N.M"]
[{"$f":"\"INN.\"&EIGNIR!$B$3&C6525","v":{"$error":"#N/A"}},{"$f":"'Sundurliðun Afleiður - eignir'!N69","v":0},".M.EAFSS$$.XX.TRY.XXX.XXXX.SX.XXX.NOK.IS.N.M"]
[{"$f":"\"INN.\"&EIGNIR!$B$3&C6526","v":{"$error":"#N/A"}},{"$f":"'Sundurliðun Afleiður - eignir'!N70","v":0},".M.EAFSS$$.XX.LIF.XXX.XXXX.SX.XXX.NOK.IS.N.M"]
[{"$f":"\"INN.\"&EIGNIR!$B$3&C6527","v":{"$error":"#N/A"}},{"$f":"'Sundurliðun Afleiður - eignir'!N71","v":0},".M.EAFSS$$.XX.OPI.XXX.XXXX.SX.XXX.NOK.IS.N.M"]
[{"$f":"\"INN.\"&EIGNIR!$B$3&C6528","v":{"$error":"#N/A"}},{"$f":"'Sundurliðun Afleiður - eignir'!N72","v":0},".M.EAFSS$$.XX.RSS.XXX.XXXX.SX.XXX.NOK.IS.N.M"]
[{"$f":"\"INN.\"&EIGNIR!$B$3&C6529","v":{"$error":"#N/A"}},{"$f":"'Sundurliðun Afleiður - eignir'!N73","v":0},".M.EAFSS$$.XX.BAJ.XXX.XXXX.SX.XXX.NOK.IS.N.M"]
[{"$f":"\"INN.\"&EIGNIR!$B$3&C6530","v":{"$error":"#N/A"}},{"$f":"'Sundurliðun Afleiður - eignir'!N74","v":0},".M.EAFSS$$.XX.EIN.XXX.XXXX.SX.XXX.NOK.IS.N.M"]
[{"$f":"\"INN.\"&EIGNIR!$B$3&C6531","v":{"$error":"#N/A"}},{"$f":"'Sundurliðun Afleiður - eignir'!N75","v":0},".M.EAFSS$$.XX.NPH.XXX.XXXX.SX.XXX.NOK.IS.N.M"]
[{"$f":"\"INN.\"&EIGNIR!$B$3&C6532","v":{"$error":"#N/A"}},{"$f":"'Sundurliðun Afleiður - eignir'!N76","v":0},".M.EAFSS$$.XX.ERL.XXX.XXXX.SX.XXX.NOK.IS.N.M"]
[{"$f":"\"INN.\"&EIGNIR!$B$3&C6533","v":{"$error":"#N/A"}},{"$f":"'Sundurliðun Afleiður - eignir'!N77","v":0},".M.EAFSS$$.XX.ERS.XXX.XXXX.SX.XXX.NOK.IS.N.M"]
[{"$f":"\"INN.\"&EIGNIR!$B$3&C6534","v":{"$error":"#N/A"}},{"$f":"'Sundurliðun Afleiður - eignir'!N78","v":0},".M.EAFSS$$.XX.ERI.XXX.XXXX.SX.XXX.NOK.IS.N.M"]
[{"$f":"\"INN.\"&EIGNIR!$B$3&C6535","v":{"$error":"#N/A"}},{"$f":"'Sundurliðun Afleiður - eignir'!N79","v":0},".M.EAFSS$$.XX.ERP.XXX.XXXX.SX.XXX.NOK.IS.N.M"]
[{"$f":"\"INN.\"&EIGNIR!$B$3&C6536","v":{"$error":"#N/A"}},{"$f":"'Sundurliðun Afleiður - eignir'!N80","v":0},".M.EAFSS$$.XX.ERV.XXX.XXXX.SX.XXX.NOK.IS.N.M"]
[{"$f":"\"INN.\"&EIGNIR!$B$3&C6537","v":{"$error":"#N/A"}},{"$f":"'Sundurliðun Afleiður - eignir'!N81","v":0},".M.EAFSS$$.XX.ERF.XXX.XXXX.SX.XXX.NOK.IS.N.M"]
[{"$f":"\"INN.\"&EIGNIR!$B$3&C6538","v":{"$error":"#N/A"}},{"$f":"'Sundurliðun Afleiður - eignir'!N82","v":0},".M.EAFSS$$.XX.ERO.XXX.XXXX.SX.XXX.NOK.IS.N.M"]
[{"$f":"\"INN.\"&EIGNIR!$B$3&C6539","v":{"$error":"#N/A"}},{"$f":"'Sundurliðun Afleiður - eignir'!N83","v":0},".M.EAFSS$$.XX.ERA.XXX.XXXX.SX.XXX.NOK.IS.N.M"]
[{"$f":"\"INN.\"&EIGNIR!$B$3&C6540","v":{"$error":"#N/A"}},{"$f":"'Sundurliðun Afleiður - eignir'!O5","v":0},".M.EAF$$$$.XX.$$$.XXX.XXXX.SX.XXX.SEK.IS.N.M","//Sundurliðun afleiður, SEK"]
[{"$f":"\"INN.\"&EIGNIR!$B$3&C6541","v":{"$error":"#N/A"}},{"$f":"'Sundurliðun Afleiður - eignir'!O6","v":0},".M.EAFVR$$.XX.$$$.XXX.XXXX.SX.XXX.SEK.IS.N.M"]
[{"$f":"\"INN.\"&EIGNIR!$B$3&C6542","v":{"$error":"#N/A"}},{"$f":"'Sundurliðun Afleiður - eignir'!O7","v":0},".M.EAFVR$$.XX.ATV.XXX.XXXX.SX.XXX.SEK.IS.N.M"]
[{"$f":"\"INN.\"&EIGNIR!$B$3&C6543","v":{"$error":"#N/A"}},{"$f":"'Sundurliðun Afleiður - eignir'!O8","v":0},".M.EAFVR$$.XX.FJA.XXX.XXXX.SX.XXX.SEK.IS.N.M"]
[{"$f":"\"INN.\"&EIGNIR!$B$3&C6544","v":{"$error":"#N/A"}},{"$f":"'Sundurliðun Afleiður - eignir'!O9","v":0},".M.EAFVR$$.XX.INN.XXX.XXXX.SX.XXX.SEK.IS.N.M"]
[{"$f":"\"INN.\"&EIGNIR!$B$3&C6545","v":{"$error":"#N/A"}},{"$f":"'Sundurliðun Afleiður - eignir'!O10","v":0},".M.EAFVR$$.XX.SLI.XXX.XXXX.SX.XXX.SEK.IS.N.M"]
[{"$f":"\"INN.\"&EIGNIR!$B$3&C6546","v":{"$error":"#N/A"}},{"$f":"'Sundurliðun Afleiður - eignir'!O11","v":0},".M.EAFVR$$.XX.PEN.XXX.XXXX.SX.XXX.SEK.IS.N.M"]
[{"$f":"\"INN.\"&EIGNIR!$B$3&C6547","v":{"$error":"#N/A"}},{"$f":"'Sundurliðun Afleiður - eignir'!O12","v":0},".M.EAFVR$$.XX.SJO.XXX.XXXX.SX.XXX.SEK.IS.N.M"]
[{"$f":"\"INN.\"&EIGNIR!$B$3&C6548","v":{"$error":"#N/A"}},{"$f":"'Sundurliðun Afleiður - eignir'!O13","v":0},".M.EAFVR$$.XX.YFT.XXX.XXXX.SX.XXX.SEK.IS.N.M"]
[{"$f":"\"INN.\"&EIGNIR!$B$3&C6549","v":{"$error":"#N/A"}},{"$f":"'Sundurliðun Afleiður - eignir'!O14","v":0},".M.EAFVR$$.XX.SLY.XXX.XXXX.SX.XXX.SEK.IS.N.M"]
[{"$f":"\"INN.\"&EIGNIR!$B$3&C6550","v":{"$error":"#N/A"}},{"$f":"'Sundurliðun Afleiður - eignir'!O15","v":0},".M.EAFVR$$.XX.FHL.XXX.XXXX.SX.XXX.SEK.IS.N.M"]
[{"$f":"\"INN.\"&EIGNIR!$B$3&C6551","v":{"$error":"#N/A"}},{"$f":"'Sundurliðun Afleiður - eignir'!O16","v":0},".M.EAFVR$$.XX.INF.XXX.XXXX.SX.XXX.SEK.IS.N.M"]
[{"$f":"\"INN.\"&EIGNIR!$B$3&C6552","v":{"$error":"#N/A"}},{"$f":"'Sundurliðun Afleiður - eignir'!O17","v":0},".M.EAFVR$$.XX.TRY.XXX.XXXX.SX.XXX.SEK.IS.N.M"]
[{"$f":"\"INN.\"&EIGNIR!$B$3&C6553","v":{"$error":"#N/A"}},{"$f":"'Sundurliðun Afleiður - eignir'!O18","v":0},".M.EAFVR$$.XX.LIF.XXX.XXXX.SX.XXX.SEK.IS.N.M"]
[{"$f":"\"INN.\"&EIGNIR!$B$3&C6554","v":{"$error":"#N/A"}},{"$f":"'Sundurliðun Afleiður - eignir'!O19","v":0},".M.EAFVR$$.XX.OPI.XXX.XXXX.SX.XXX.SEK.IS.N.M"]
[{"$f":"\"INN.\"&EIGNIR!$B$3&C6555","v":{"$error":"#N/A"}},{"$f":"'Sundurliðun Afleiður - eignir'!O20","v":0},".M.EAFVR$$.XX.RSS.XXX.XXXX.SX.XXX.SEK.IS.N.M"]
[{"$f":"\"INN.\"&EIGNIR!$B$3&C6556","v":{"$error":"#N/A"}},{"$f":"'Sundurliðun Afleiður - eignir'!O21","v":0},".M.EAFVR$$.XX.BAJ.XXX.XXXX.SX.XXX.SEK.IS.N.M"]
[{"$f":"\"INN.\"&EIGNIR!$B$3&C6557","v":{"$error":"#N/A"}},{"$f":"'Sundurliðun Afleiður - eignir'!O22","v":0},".M.EAFVR$$.XX.EIN.XXX.XXXX.SX.XXX.SEK.IS.N.M"]
[{"$f":"\"INN.\"&EIGNIR!$B$3&C6558","v":{"$error":"#N/A"}},{"$f":"'Sundurliðun Afleiður - eignir'!O23","v":0},".M.EAFVR$$.XX.NPH.XXX.XXXX.SX.XXX.SEK.IS.N.M"]
[{"$f":"\"INN.\"&EIGNIR!$B$3&C6559","v":{"$error":"#N/A"}},{"$f":"'Sundurliðun Afleiður - eignir'!O24","v":0},".M.EAFVR$$.XX.ERL.XXX.XXXX.SX.XXX.SEK.IS.N.M"]
[{"$f":"\"INN.\"&EIGNIR!$B$3&C6560","v":{"$error":"#N/A"}},{"$f":"'Sundurliðun Afleiður - eignir'!O25","v":0},".M.EAFVR$$.XX.ERS.XXX.XXXX.SX.XXX.SEK.IS.N.M"]
[{"$f":"\"INN.\"&EIGNIR!$B$3&C6561","v":{"$error":"#N/A"}},{"$f":"'Sundurliðun Afleiður - eignir'!O26","v":0},".M.EAFVR$$.XX.ERI.XXX.XXXX.SX.XXX.SEK.IS.N.M"]
[{"$f":"\"INN.\"&EIGNIR!$B$3&C6562","v":{"$error":"#N/A"}},{"$f":"'Sundurliðun Afleiður - eignir'!O27","v":0},".M.EAFVR$$.XX.ERP.XXX.XXXX.SX.XXX.SEK.IS.N.M"]
[{"$f":"\"INN.\"&EIGNIR!$B$3&C6563","v":{"$error":"#N/A"}},{"$f":"'Sundurliðun Afleiður - eignir'!O28","v":0},".M.EAFVR$$.XX.ERV.XXX.XXXX.SX.XXX.SEK.IS.N.M"]
[{"$f":"\"INN.\"&EIGNIR!$B$3&C6564","v":{"$error":"#N/A"}},{"$f":"'Sundurliðun Afleiður - eignir'!O29","v":0},".M.EAFVR$$.XX.ERF.XXX.XXXX.SX.XXX.SEK.IS.N.M"]
[{"$f":"\"INN.\"&EIGNIR!$B$3&C6565","v":{"$error":"#N/A"}},{"$f":"'Sundurliðun Afleiður - eignir'!O30","v":0},".M.EAFVR$$.XX.ERO.XXX.XXXX.SX.XXX.SEK.IS.N.M"]
[{"$f":"\"INN.\"&EIGNIR!$B$3&C6566","v":{"$error":"#N/A"}},{"$f":"'Sundurliðun Afleiður - eignir'!O31","v":0},".M.EAFVR$$.XX.ERA.XXX.XXXX.SX.XXX.SEK.IS.N.M"]
[{"$f":"\"INN.\"&EIGNIR!$B$3&C6567","v":{"$error":"#N/A"}},{"$f":"'Sundurliðun Afleiður - eignir'!O32","v":0},".M.EAFFS$$.XX.$$$.XXX.XXXX.SX.XXX.SEK.IS.N.M"]
[{"$f":"\"INN.\"&EIGNIR!$B$3&C6568","v":{"$error":"#N/A"}},{"$f":"'Sundurliðun Afleiður - eignir'!O33","v":0},".M.EAFFS$$.XX.ATV.XXX.XXXX.SX.XXX.SEK.IS.N.M"]
[{"$f":"\"INN.\"&EIGNIR!$B$3&C6569","v":{"$error":"#N/A"}},{"$f":"'Sundurliðun Afleiður - eignir'!O34","v":0},".M.EAFFS$$.XX.FJA.XXX.XXXX.SX.XXX.SEK.IS.N.M"]
[{"$f":"\"INN.\"&EIGNIR!$B$3&C6570","v":{"$error":"#N/A"}},{"$f":"'Sundurliðun Afleiður - eignir'!O35","v":0},".M.EAFFS$$.XX.INN.XXX.XXXX.SX.XXX.SEK.IS.N.M"]
[{"$f":"\"INN.\"&EIGNIR!$B$3&C6571","v":{"$error":"#N/A"}},{"$f":"'Sundurliðun Afleiður - eignir'!O36","v":0},".M.EAFFS$$.XX.SLI.XXX.XXXX.SX.XXX.SEK.IS.N.M"]
[{"$f":"\"INN.\"&EIGNIR!$B$3&C6572","v":{"$error":"#N/A"}},{"$f":"'Sundurliðun Afleiður - eignir'!O37","v":0},".M.EAFFS$$.XX.PEN.XXX.XXXX.SX.XXX.SEK.IS.N.M"]
[{"$f":"\"INN.\"&EIGNIR!$B$3&C6573","v":{"$error":"#N/A"}},{"$f":"'Sundurliðun Afleiður - eignir'!O38","v":0},".M.EAFFS$$.XX.SJO.XXX.XXXX.SX.XXX.SEK.IS.N.M"]
[{"$f":"\"INN.\"&EIGNIR!$B$3&C6574","v":{"$error":"#N/A"}},{"$f":"'Sundurliðun Afleiður - eignir'!O39","v":0},".M.EAFFS$$.XX.YFT.XXX.XXXX.SX.XXX.SEK.IS.N.M"]
[{"$f":"\"INN.\"&EIGNIR!$B$3&C6575","v":{"$error":"#N/A"}},{"$f":"'Sundurliðun Afleiður - eignir'!O40","v":0},".M.EAFFS$$.XX.SLY.XXX.XXXX.SX.XXX.SEK.IS.N.M"]
[{"$f":"\"INN.\"&EIGNIR!$B$3&C6576","v":{"$error":"#N/A"}},{"$f":"'Sundurliðun Afleiður - eignir'!O41","v":0},".M.EAFFS$$.XX.FHL.XXX.XXXX.SX.XXX.SEK.IS.N.M"]
[{"$f":"\"INN.\"&EIGNIR!$B$3&C6577","v":{"$error":"#N/A"}},{"$f":"'Sundurliðun Afleiður - eignir'!O42","v":0},".M.EAFFS$$.XX.INF.XXX.XXXX.SX.XXX.SEK.IS.N.M"]
[{"$f":"\"INN.\"&EIGNIR!$B$3&C6578","v":{"$error":"#N/A"}},{"$f":"'Sundurliðun Afleiður - eignir'!O43","v":0},".M.EAFFS$$.XX.TRY.XXX.XXXX.SX.XXX.SEK.IS.N.M"]
[{"$f":"\"INN.\"&EIGNIR!$B$3&C6579","v":{"$error":"#N/A"}},{"$f":"'Sundurliðun Afleiður - eignir'!O44","v":0},".M.EAFFS$$.XX.LIF.XXX.XXXX.SX.XXX.SEK.IS.N.M"]
[{"$f":"\"INN.\"&EIGNIR!$B$3&C6580","v":{"$error":"#N/A"}},{"$f":"'Sundurliðun Afleiður - eignir'!O45","v":0},".M.EAFFS$$.XX.OPI.XXX.XXXX.SX.XXX.SEK.IS.N.M"]
[{"$f":"\"INN.\"&EIGNIR!$B$3&C6581","v":{"$error":"#N/A"}},{"$f":"'Sundurliðun Afleiður - eignir'!O46","v":0},".M.EAFFS$$.XX.RSS.XXX.XXXX.SX.XXX.SEK.IS.N.M"]
[{"$f":"\"INN.\"&EIGNIR!$B$3&C6582","v":{"$error":"#N/A"}},{"$f":"'Sundurliðun Afleiður - eignir'!O47","v":0},".M.EAFFS$$.XX.BAJ.XXX.XXXX.SX.XXX.SEK.IS.N.M"]
[{"$f":"\"INN.\"&EIGNIR!$B$3&C6583","v":{"$error":"#N/A"}},{"$f":"'Sundurliðun Afleiður - eignir'!O48","v":0},".M.EAFFS$$.XX.EIN.XXX.XXXX.SX.XXX.SEK.IS.N.M"]
[{"$f":"\"INN.\"&EIGNIR!$B$3&C6584","v":{"$error":"#N/A"}},{"$f":"'Sundurliðun Afleiður - eignir'!O49","v":0},".M.EAFFS$$.XX.NPH.XXX.XXXX.SX.XXX.SEK.IS.N.M"]
[{"$f":"\"INN.\"&EIGNIR!$B$3&C6585","v":{"$error":"#N/A"}},{"$f":"'Sundurliðun Afleiður - eignir'!O50","v":0},".M.EAFFS$$.XX.ERL.XXX.XXXX.SX.XXX.SEK.IS.N.M"]
[{"$f":"\"INN.\"&EIGNIR!$B$3&C6586","v":{"$error":"#N/A"}},{"$f":"'Sundurliðun Afleiður - eignir'!O51","v":0},".M.EAFFS$$.XX.ERS.XXX.XXXX.SX.XXX.SEK.IS.N.M"]
[{"$f":"\"INN.\"&EIGNIR!$B$3&C6587","v":{"$error":"#N/A"}},{"$f":"'Sundurliðun Afleiður - eignir'!O52","v":0},".M.EAFFS$$.XX.ERI.XXX.XXXX.SX.XXX.SEK.IS.N.M"]
[{"$f":"\"INN.\"&EIGNIR!$B$3&C6588","v":{"$error":"#N/A"}},{"$f":"'Sundurliðun Afleiður - eignir'!O53","v":0},".M.EAFFS$$.XX.ERP.XXX.XXXX.SX.XXX.SEK.IS.N.M"]
[{"$f":"\"INN.\"&EIGNIR!$B$3&C6589","v":{"$error":"#N/A"}},{"$f":"'Sundurliðun Afleiður - eignir'!O54","v":0},".M.EAFFS$$.XX.ERV.XXX.XXXX.SX.XXX.SEK.IS.N.M"]
[{"$f":"\"INN.\"&EIGNIR!$B$3&C6590","v":{"$error":"#N/A"}},{"$f":"'Sundurliðun Afleiður - eignir'!O55","v":0},".M.EAFFS$$.XX.ERF.XXX.XXXX.SX.XXX.SEK.IS.N.M"]
[{"$f":"\"INN.\"&EIGNIR!$B$3&C6591","v":{"$error":"#N/A"}},{"$f":"'Sundurliðun Afleiður - eignir'!O56","v":0},".M.EAFFS$$.XX.ERO.XXX.XXXX.SX.XXX.SEK.IS.N.M"]
[{"$f":"\"INN.\"&EIGNIR!$B$3&C6592","v":{"$error":"#N/A"}},{"$f":"'Sundurliðun Afleiður - eignir'!O57","v":0},".M.EAFFS$$.XX.ERA.XXX.XXXX.SX.XXX.SEK.IS.N.M"]
[{"$f":"\"INN.\"&EIGNIR!$B$3&C6593","v":{"$error":"#N/A"}},{"$f":"'Sundurliðun Afleiður - eignir'!O58","v":0},".M.EAFSS$$.XX.$$$.XXX.XXXX.SX.XXX.SEK.IS.N.M"]
[{"$f":"\"INN.\"&EIGNIR!$B$3&C6594","v":{"$error":"#N/A"}},{"$f":"'Sundurliðun Afleiður - eignir'!O59","v":0},".M.EAFSS$$.XX.ATV.XXX.XXXX.SX.XXX.SEK.IS.N.M"]
[{"$f":"\"INN.\"&EIGNIR!$B$3&C6595","v":{"$error":"#N/A"}},{"$f":"'Sundurliðun Afleiður - eignir'!O60","v":0},".M.EAFSS$$.XX.FJA.XXX.XXXX.SX.XXX.SEK.IS.N.M"]
[{"$f":"\"INN.\"&EIGNIR!$B$3&C6596","v":{"$error":"#N/A"}},{"$f":"'Sundurliðun Afleiður - eignir'!O61","v":0},".M.EAFSS$$.XX.INN.XXX.XXXX.SX.XXX.SEK.IS.N.M"]
[{"$f":"\"INN.\"&EIGNIR!$B$3&C6597","v":{"$error":"#N/A"}},{"$f":"'Sundurliðun Afleiður - eignir'!O62","v":0},".M.EAFSS$$.XX.SLI.XXX.XXXX.SX.XXX.SEK.IS.N.M"]
[{"$f":"\"INN.\"&EIGNIR!$B$3&C6598","v":{"$error":"#N/A"}},{"$f":"'Sundurliðun Afleiður - eignir'!O63","v":0},".M.EAFSS$$.XX.PEN.XXX.XXXX.SX.XXX.SEK.IS.N.M"]
[{"$f":"\"INN.\"&EIGNIR!$B$3&C6599","v":{"$error":"#N/A"}},{"$f":"'Sundurliðun Afleiður - eignir'!O64","v":0},".M.EAFSS$$.XX.SJO.XXX.XXXX.SX.XXX.SEK.IS.N.M"]
[{"$f":"\"INN.\"&EIGNIR!$B$3&C6600","v":{"$error":"#N/A"}},{"$f":"'Sundurliðun Afleiður - eignir'!O65","v":0},".M.EAFSS$$.XX.YFT.XXX.XXXX.SX.XXX.SEK.IS.N.M"]
[{"$f":"\"INN.\"&EIGNIR!$B$3&C6601","v":{"$error":"#N/A"}},{"$f":"'Sundurliðun Afleiður - eignir'!O66","v":0},".M.EAFSS$$.XX.SLY.XXX.XXXX.SX.XXX.SEK.IS.N.M"]
[{"$f":"\"INN.\"&EIGNIR!$B$3&C6602","v":{"$error":"#N/A"}},{"$f":"'Sundurliðun Afleiður - eignir'!O67","v":0},".M.EAFSS$$.XX.FHL.XXX.XXXX.SX.XXX.SEK.IS.N.M"]
[{"$f":"\"INN.\"&EIGNIR!$B$3&C6603","v":{"$error":"#N/A"}},{"$f":"'Sundurliðun Afleiður - eignir'!O68","v":0},".M.EAFSS$$.XX.INF.XXX.XXXX.SX.XXX.SEK.IS.N.M"]
[{"$f":"\"INN.\"&EIGNIR!$B$3&C6604","v":{"$error":"#N/A"}},{"$f":"'Sundurliðun Afleiður - eignir'!O69","v":0},".M.EAFSS$$.XX.TRY.XXX.XXXX.SX.XXX.SEK.IS.N.M"]
[{"$f":"\"INN.\"&EIGNIR!$B$3&C6605","v":{"$error":"#N/A"}},{"$f":"'Sundurliðun Afleiður - eignir'!O70","v":0},".M.EAFSS$$.XX.LIF.XXX.XXXX.SX.XXX.SEK.IS.N.M"]
[{"$f":"\"INN.\"&EIGNIR!$B$3&C6606","v":{"$error":"#N/A"}},{"$f":"'Sundurliðun Afleiður - eignir'!O71","v":0},".M.EAFSS$$.XX.OPI.XXX.XXXX.SX.XXX.SEK.IS.N.M"]
[{"$f":"\"INN.\"&EIGNIR!$B$3&C6607","v":{"$error":"#N/A"}},{"$f":"'Sundurliðun Afleiður - eignir'!O72","v":0},".M.EAFSS$$.XX.RSS.XXX.XXXX.SX.XXX.SEK.IS.N.M"]
[{"$f":"\"INN.\"&EIGNIR!$B$3&C6608","v":{"$error":"#N/A"}},{"$f":"'Sundurliðun Afleiður - eignir'!O73","v":0},".M.EAFSS$$.XX.BAJ.XXX.XXXX.SX.XXX.SEK.IS.N.M"]
[{"$f":"\"INN.\"&EIGNIR!$B$3&C6609","v":{"$error":"#N/A"}},{"$f":"'Sundurliðun Afleiður - eignir'!O74","v":0},".M.EAFSS$$.XX.EIN.XXX.XXXX.SX.XXX.SEK.IS.N.M"]
[{"$f":"\"INN.\"&EIGNIR!$B$3&C6610","v":{"$error":"#N/A"}},{"$f":"'Sundurliðun Afleiður - eignir'!O75","v":0},".M.EAFSS$$.XX.NPH.XXX.XXXX.SX.XXX.SEK.IS.N.M"]
[{"$f":"\"INN.\"&EIGNIR!$B$3&C6611","v":{"$error":"#N/A"}},{"$f":"'Sundurliðun Afleiður - eignir'!O76","v":0},".M.EAFSS$$.XX.ERL.XXX.XXXX.SX.XXX.SEK.IS.N.M"]
[{"$f":"\"INN.\"&EIGNIR!$B$3&C6612","v":{"$error":"#N/A"}},{"$f":"'Sundurliðun Afleiður - eignir'!O77","v":0},".M.EAFSS$$.XX.ERS.XXX.XXXX.SX.XXX.SEK.IS.N.M"]
[{"$f":"\"INN.\"&EIGNIR!$B$3&C6613","v":{"$error":"#N/A"}},{"$f":"'Sundurliðun Afleiður - eignir'!O78","v":0},".M.EAFSS$$.XX.ERI.XXX.XXXX.SX.XXX.SEK.IS.N.M"]
[{"$f":"\"INN.\"&EIGNIR!$B$3&C6614","v":{"$error":"#N/A"}},{"$f":"'Sundurliðun Afleiður - eignir'!O79","v":0},".M.EAFSS$$.XX.ERP.XXX.XXXX.SX.XXX.SEK.IS.N.M"]
[{"$f":"\"INN.\"&EIGNIR!$B$3&C6615","v":{"$error":"#N/A"}},{"$f":"'Sundurliðun Afleiður - eignir'!O80","v":0},".M.EAFSS$$.XX.ERV.XXX.XXXX.SX.XXX.SEK.IS.N.M"]
[{"$f":"\"INN.\"&EIGNIR!$B$3&C6616","v":{"$error":"#N/A"}},{"$f":"'Sundurliðun Afleiður - eignir'!O81","v":0},".M.EAFSS$$.XX.ERF.XXX.XXXX.SX.XXX.SEK.IS.N.M"]
[{"$f":"\"INN.\"&EIGNIR!$B$3&C6617","v":{"$error":"#N/A"}},{"$f":"'Sundurliðun Afleiður - eignir'!O82","v":0},".M.EAFSS$$.XX.ERO.XXX.XXXX.SX.XXX.SEK.IS.N.M"]
[{"$f":"\"INN.\"&EIGNIR!$B$3&C6618","v":{"$error":"#N/A"}},{"$f":"'Sundurliðun Afleiður - eignir'!O83","v":0},".M.EAFSS$$.XX.ERA.XXX.XXXX.SX.XXX.SEK.IS.N.M"]
[{"$f":"\"INN.\"&EIGNIR!$B$3&C6619","v":{"$error":"#N/A"}},{"$f":"'Sundurliðun Afleiður - eignir'!P5","v":0},".M.EAF$$$$.XX.$$$.XXX.XXXX.SX.XXX.CHF.IS.N.M"]
[{"$f":"\"INN.\"&EIGNIR!$B$3&C6620","v":{"$error":"#N/A"}},{"$f":"'Sundurliðun Afleiður - eignir'!P6","v":0},".M.EAFVR$$.XX.$$$.XXX.XXXX.SX.XXX.CHF.IS.N.M"]
[{"$f":"\"INN.\"&EIGNIR!$B$3&C6621","v":{"$error":"#N/A"}},{"$f":"'Sundurliðun Afleiður - eignir'!P7","v":0},".M.EAFVR$$.XX.ATV.XXX.XXXX.SX.XXX.CHF.IS.N.M"]
[{"$f":"\"INN.\"&EIGNIR!$B$3&C6622","v":{"$error":"#N/A"}},{"$f":"'Sundurliðun Afleiður - eignir'!P8","v":0},".M.EAFVR$$.XX.FJA.XXX.XXXX.SX.XXX.CHF.IS.N.M"]
[{"$f":"\"INN.\"&EIGNIR!$B$3&C6623","v":{"$error":"#N/A"}},{"$f":"'Sundurliðun Afleiður - eignir'!P9","v":0},".M.EAFVR$$.XX.INN.XXX.XXXX.SX.XXX.CHF.IS.N.M"]
[{"$f":"\"INN.\"&EIGNIR!$B$3&C6624","v":{"$error":"#N/A"}},{"$f":"'Sundurliðun Afleiður - eignir'!P10","v":0},".M.EAFVR$$.XX.SLI.XXX.XXXX.SX.XXX.CHF.IS.N.M"]
[{"$f":"\"INN.\"&EIGNIR!$B$3&C6625","v":{"$error":"#N/A"}},{"$f":"'Sundurliðun Afleiður - eignir'!P11","v":0},".M.EAFVR$$.XX.PEN.XXX.XXXX.SX.XXX.CHF.IS.N.M"]
[{"$f":"\"INN.\"&EIGNIR!$B$3&C6626","v":{"$error":"#N/A"}},{"$f":"'Sundurliðun Afleiður - eignir'!P12","v":0},".M.EAFVR$$.XX.SJO.XXX.XXXX.SX.XXX.CHF.IS.N.M"]
[{"$f":"\"INN.\"&EIGNIR!$B$3&C6627","v":{"$error":"#N/A"}},{"$f":"'Sundurliðun Afleiður - eignir'!P13","v":0},".M.EAFVR$$.XX.YFT.XXX.XXXX.SX.XXX.CHF.IS.N.M"]
[{"$f":"\"INN.\"&EIGNIR!$B$3&C6628","v":{"$error":"#N/A"}},{"$f":"'Sundurliðun Afleiður - eignir'!P14","v":0},".M.EAFVR$$.XX.SLY.XXX.XXXX.SX.XXX.CHF.IS.N.M"]
[{"$f":"\"INN.\"&EIGNIR!$B$3&C6629","v":{"$error":"#N/A"}},{"$f":"'Sundurliðun Afleiður - eignir'!P15","v":0},".M.EAFVR$$.XX.FHL.XXX.XXXX.SX.XXX.CHF.IS.N.M"]
[{"$f":"\"INN.\"&EIGNIR!$B$3&C6630","v":{"$error":"#N/A"}},{"$f":"'Sundurliðun Afleiður - eignir'!P16","v":0},".M.EAFVR$$.XX.INF.XXX.XXXX.SX.XXX.CHF.IS.N.M"]
[{"$f":"\"INN.\"&EIGNIR!$B$3&C6631","v":{"$error":"#N/A"}},{"$f":"'Sundurliðun Afleiður - eignir'!P17","v":0},".M.EAFVR$$.XX.TRY.XXX.XXXX.SX.XXX.CHF.IS.N.M"]
[{"$f":"\"INN.\"&EIGNIR!$B$3&C6632","v":{"$error":"#N/A"}},{"$f":"'Sundurliðun Afleiður - eignir'!P18","v":0},".M.EAFVR$$.XX.LIF.XXX.XXXX.SX.XXX.CHF.IS.N.M"]
[{"$f":"\"INN.\"&EIGNIR!$B$3&C6633","v":{"$error":"#N/A"}},{"$f":"'Sundurliðun Afleiður - eignir'!P19","v":0},".M.EAFVR$$.XX.OPI.XXX.XXXX.SX.XXX.CHF.IS.N.M"]
[{"$f":"\"INN.\"&EIGNIR!$B$3&C6634","v":{"$error":"#N/A"}},{"$f":"'Sundurliðun Afleiður - eignir'!P20","v":0},".M.EAFVR$$.XX.RSS.XXX.XXXX.SX.XXX.CHF.IS.N.M"]
[{"$f":"\"INN.\"&EIGNIR!$B$3&C6635","v":{"$error":"#N/A"}},{"$f":"'Sundurliðun Afleiður - eignir'!P21","v":0},".M.EAFVR$$.XX.BAJ.XXX.XXXX.SX.XXX.CHF.IS.N.M"]
[{"$f":"\"INN.\"&EIGNIR!$B$3&C6636","v":{"$error":"#N/A"}},{"$f":"'Sundurliðun Afleiður - eignir'!P22","v":0},".M.EAFVR$$.XX.EIN.XXX.XXXX.SX.XXX.CHF.IS.N.M"]
[{"$f":"\"INN.\"&EIGNIR!$B$3&C6637","v":{"$error":"#N/A"}},{"$f":"'Sundurliðun Afleiður - eignir'!P23","v":0},".M.EAFVR$$.XX.NPH.XXX.XXXX.SX.XXX.CHF.IS.N.M"]
[{"$f":"\"INN.\"&EIGNIR!$B$3&C6638","v":{"$error":"#N/A"}},{"$f":"'Sundurliðun Afleiður - eignir'!P24","v":0},".M.EAFVR$$.XX.ERL.XXX.XXXX.SX.XXX.CHF.IS.N.M"]
[{"$f":"\"INN.\"&EIGNIR!$B$3&C6639","v":{"$error":"#N/A"}},{"$f":"'Sundurliðun Afleiður - eignir'!P25","v":0},".M.EAFVR$$.XX.ERS.XXX.XXXX.SX.XXX.CHF.IS.N.M"]
[{"$f":"\"INN.\"&EIGNIR!$B$3&C6640","v":{"$error":"#N/A"}},{"$f":"'Sundurliðun Afleiður - eignir'!P26","v":0},".M.EAFVR$$.XX.ERI.XXX.XXXX.SX.XXX.CHF.IS.N.M"]
[{"$f":"\"INN.\"&EIGNIR!$B$3&C6641","v":{"$error":"#N/A"}},{"$f":"'Sundurliðun Afleiður - eignir'!P27","v":0},".M.EAFVR$$.XX.ERP.XXX.XXXX.SX.XXX.CHF.IS.N.M"]
[{"$f":"\"INN.\"&EIGNIR!$B$3&C6642","v":{"$error":"#N/A"}},{"$f":"'Sundurliðun Afleiður - eignir'!P28","v":0},".M.EAFVR$$.XX.ERV.XXX.XXXX.SX.XXX.CHF.IS.N.M"]
[{"$f":"\"INN.\"&EIGNIR!$B$3&C6643","v":{"$error":"#N/A"}},{"$f":"'Sundurliðun Afleiður - eignir'!P29","v":0},".M.EAFVR$$.XX.ERF.XXX.XXXX.SX.XXX.CHF.IS.N.M"]
[{"$f":"\"INN.\"&EIGNIR!$B$3&C6644","v":{"$error":"#N/A"}},{"$f":"'Sundurliðun Afleiður - eignir'!P30","v":0},".M.EAFVR$$.XX.ERO.XXX.XXXX.SX.XXX.CHF.IS.N.M"]
[{"$f":"\"INN.\"&EIGNIR!$B$3&C6645","v":{"$error":"#N/A"}},{"$f":"'Sundurliðun Afleiður - eignir'!P31","v":0},".M.EAFVR$$.XX.ERA.XXX.XXXX.SX.XXX.CHF.IS.N.M"]
[{"$f":"\"INN.\"&EIGNIR!$B$3&C6646","v":{"$error":"#N/A"}},{"$f":"'Sundurliðun Afleiður - eignir'!P32","v":0},".M.EAFFS$$.XX.$$$.XXX.XXXX.SX.XXX.CHF.IS.N.M"]
[{"$f":"\"INN.\"&EIGNIR!$B$3&C6647","v":{"$error":"#N/A"}},{"$f":"'Sundurliðun Afleiður - eignir'!P33","v":0},".M.EAFFS$$.XX.ATV.XXX.XXXX.SX.XXX.CHF.IS.N.M"]
[{"$f":"\"INN.\"&EIGNIR!$B$3&C6648","v":{"$error":"#N/A"}},{"$f":"'Sundurliðun Afleiður - eignir'!P34","v":0},".M.EAFFS$$.XX.FJA.XXX.XXXX.SX.XXX.CHF.IS.N.M"]
[{"$f":"\"INN.\"&EIGNIR!$B$3&C6649","v":{"$error":"#N/A"}},{"$f":"'Sundurliðun Afleiður - eignir'!P35","v":0},".M.EAFFS$$.XX.INN.XXX.XXXX.SX.XXX.CHF.IS.N.M"]
[{"$f":"\"INN.\"&EIGNIR!$B$3&C6650","v":{"$error":"#N/A"}},{"$f":"'Sundurliðun Afleiður - eignir'!P36","v":0},".M.EAFFS$$.XX.SLI.XXX.XXXX.SX.XXX.CHF.IS.N.M"]
[{"$f":"\"INN.\"&EIGNIR!$B$3&C6651","v":{"$error":"#N/A"}},{"$f":"'Sundurliðun Afleiður - eignir'!P37","v":0},".M.EAFFS$$.XX.PEN.XXX.XXXX.SX.XXX.CHF.IS.N.M"]
[{"$f":"\"INN.\"&EIGNIR!$B$3&C6652","v":{"$error":"#N/A"}},{"$f":"'Sundurliðun Afleiður - eignir'!P38","v":0},".M.EAFFS$$.XX.SJO.XXX.XXXX.SX.XXX.CHF.IS.N.M"]
[{"$f":"\"INN.\"&EIGNIR!$B$3&C6653","v":{"$error":"#N/A"}},{"$f":"'Sundurliðun Afleiður - eignir'!P39","v":0},".M.EAFFS$$.XX.YFT.XXX.XXXX.SX.XXX.CHF.IS.N.M"]
[{"$f":"\"INN.\"&EIGNIR!$B$3&C6654","v":{"$error":"#N/A"}},{"$f":"'Sundurliðun Afleiður - eignir'!P40","v":0},".M.EAFFS$$.XX.SLY.XXX.XXXX.SX.XXX.CHF.IS.N.M"]
[{"$f":"\"INN.\"&EIGNIR!$B$3&C6655","v":{"$error":"#N/A"}},{"$f":"'Sundurliðun Afleiður - eignir'!P41","v":0},".M.EAFFS$$.XX.FHL.XXX.XXXX.SX.XXX.CHF.IS.N.M"]
[{"$f":"\"INN.\"&EIGNIR!$B$3&C6656","v":{"$error":"#N/A"}},{"$f":"'Sundurliðun Afleiður - eignir'!P42","v":0},".M.EAFFS$$.XX.INF.XXX.XXXX.SX.XXX.CHF.IS.N.M"]
[{"$f":"\"INN.\"&EIGNIR!$B$3&C6657","v":{"$error":"#N/A"}},{"$f":"'Sundurliðun Afleiður - eignir'!P43","v":0},".M.EAFFS$$.XX.TRY.XXX.XXXX.SX.XXX.CHF.IS.N.M"]
[{"$f":"\"INN.\"&EIGNIR!$B$3&C6658","v":{"$error":"#N/A"}},{"$f":"'Sundurliðun Afleiður - eignir'!P44","v":0},".M.EAFFS$$.XX.LIF.XXX.XXXX.SX.XXX.CHF.IS.N.M"]
[{"$f":"\"INN.\"&EIGNIR!$B$3&C6659","v":{"$error":"#N/A"}},{"$f":"'Sundurliðun Afleiður - eignir'!P45","v":0},".M.EAFFS$$.XX.OPI.XXX.XXXX.SX.XXX.CHF.IS.N.M"]
[{"$f":"\"INN.\"&EIGNIR!$B$3&C6660","v":{"$error":"#N/A"}},{"$f":"'Sundurliðun Afleiður - eignir'!P46","v":0},".M.EAFFS$$.XX.RSS.XXX.XXXX.SX.XXX.CHF.IS.N.M"]
[{"$f":"\"INN.\"&EIGNIR!$B$3&C6661","v":{"$error":"#N/A"}},{"$f":"'Sundurliðun Afleiður - eignir'!P47","v":0},".M.EAFFS$$.XX.BAJ.XXX.XXXX.SX.XXX.CHF.IS.N.M"]
[{"$f":"\"INN.\"&EIGNIR!$B$3&C6662","v":{"$error":"#N/A"}},{"$f":"'Sundurliðun Afleiður - eignir'!P48","v":0},".M.EAFFS$$.XX.EIN.XXX.XXXX.SX.XXX.CHF.IS.N.M"]
[{"$f":"\"INN.\"&EIGNIR!$B$3&C6663","v":{"$error":"#N/A"}},{"$f":"'Sundurliðun Afleiður - eignir'!P49","v":0},".M.EAFFS$$.XX.NPH.XXX.XXXX.SX.XXX.CHF.IS.N.M"]
[{"$f":"\"INN.\"&EIGNIR!$B$3&C6664","v":{"$error":"#N/A"}},{"$f":"'Sundurliðun Afleiður - eignir'!P50","v":0},".M.EAFFS$$.XX.ERL.XXX.XXXX.SX.XXX.CHF.IS.N.M"]
[{"$f":"\"INN.\"&EIGNIR!$B$3&C6665","v":{"$error":"#N/A"}},{"$f":"'Sundurliðun Afleiður - eignir'!P51","v":0},".M.EAFFS$$.XX.ERS.XXX.XXXX.SX.XXX.CHF.IS.N.M"]
[{"$f":"\"INN.\"&EIGNIR!$B$3&C6666","v":{"$error":"#N/A"}},{"$f":"'Sundurliðun Afleiður - eignir'!P52","v":0},".M.EAFFS$$.XX.ERI.XXX.XXXX.SX.XXX.CHF.IS.N.M"]
[{"$f":"\"INN.\"&EIGNIR!$B$3&C6667","v":{"$error":"#N/A"}},{"$f":"'Sundurliðun Afleiður - eignir'!P53","v":0},".M.EAFFS$$.XX.ERP.XXX.XXXX.SX.XXX.CHF.IS.N.M"]
[{"$f":"\"INN.\"&EIGNIR!$B$3&C6668","v":{"$error":"#N/A"}},{"$f":"'Sundurliðun Afleiður - eignir'!P54","v":0},".M.EAFFS$$.XX.ERV.XXX.XXXX.SX.XXX.CHF.IS.N.M"]
[{"$f":"\"INN.\"&EIGNIR!$B$3&C6669","v":{"$error":"#N/A"}},{"$f":"'Sundurliðun Afleiður - eignir'!P55","v":0},".M.EAFFS$$.XX.ERF.XXX.XXXX.SX.XXX.CHF.IS.N.M"]
[{"$f":"\"INN.\"&EIGNIR!$B$3&C6670","v":{"$error":"#N/A"}},{"$f":"'Sundurliðun Afleiður - eignir'!P56","v":0},".M.EAFFS$$.XX.ERO.XXX.XXXX.SX.XXX.CHF.IS.N.M"]
[{"$f":"\"INN.\"&EIGNIR!$B$3&C6671","v":{"$error":"#N/A"}},{"$f":"'Sundurliðun Afleiður - eignir'!P57","v":0},".M.EAFFS$$.XX.ERA.XXX.XXXX.SX.XXX.CHF.IS.N.M"]
[{"$f":"\"INN.\"&EIGNIR!$B$3&C6672","v":{"$error":"#N/A"}},{"$f":"'Sundurliðun Afleiður - eignir'!P58","v":0},".M.EAFSS$$.XX.$$$.XXX.XXXX.SX.XXX.CHF.IS.N.M"]
[{"$f":"\"INN.\"&EIGNIR!$B$3&C6673","v":{"$error":"#N/A"}},{"$f":"'Sundurliðun Afleiður - eignir'!P59","v":0},".M.EAFSS$$.XX.ATV.XXX.XXXX.SX.XXX.CHF.IS.N.M"]
[{"$f":"\"INN.\"&EIGNIR!$B$3&C6674","v":{"$error":"#N/A"}},{"$f":"'Sundurliðun Afleiður - eignir'!P60","v":0},".M.EAFSS$$.XX.FJA.XXX.XXXX.SX.XXX.CHF.IS.N.M"]
[{"$f":"\"INN.\"&EIGNIR!$B$3&C6675","v":{"$error":"#N/A"}},{"$f":"'Sundurliðun Afleiður - eignir'!P61","v":0},".M.EAFSS$$.XX.INN.XXX.XXXX.SX.XXX.CHF.IS.N.M"]
[{"$f":"\"INN.\"&EIGNIR!$B$3&C6676","v":{"$error":"#N/A"}},{"$f":"'Sundurliðun Afleiður - eignir'!P62","v":0},".M.EAFSS$$.XX.SLI.XXX.XXXX.SX.XXX.CHF.IS.N.M"]
[{"$f":"\"INN.\"&EIGNIR!$B$3&C6677","v":{"$error":"#N/A"}},{"$f":"'Sundurliðun Afleiður - eignir'!P63","v":0},".M.EAFSS$$.XX.PEN.XXX.XXXX.SX.XXX.CHF.IS.N.M"]
[{"$f":"\"INN.\"&EIGNIR!$B$3&C6678","v":{"$error":"#N/A"}},{"$f":"'Sundurliðun Afleiður - eignir'!P64","v":0},".M.EAFSS$$.XX.SJO.XXX.XXXX.SX.XXX.CHF.IS.N.M"]
[{"$f":"\"INN.\"&EIGNIR!$B$3&C6679","v":{"$error":"#N/A"}},{"$f":"'Sundurliðun Afleiður - eignir'!P65","v":0},".M.EAFSS$$.XX.YFT.XXX.XXXX.SX.XXX.CHF.IS.N.M"]
[{"$f":"\"INN.\"&EIGNIR!$B$3&C6680","v":{"$error":"#N/A"}},{"$f":"'Sundurliðun Afleiður - eignir'!P66","v":0},".M.EAFSS$$.XX.SLY.XXX.XXXX.SX.XXX.CHF.IS.N.M"]
[{"$f":"\"INN.\"&EIGNIR!$B$3&C6681","v":{"$error":"#N/A"}},{"$f":"'Sundurliðun Afleiður - eignir'!P67","v":0},".M.EAFSS$$.XX.FHL.XXX.XXXX.SX.XXX.CHF.IS.N.M"]
[{"$f":"\"INN.\"&EIGNIR!$B$3&C6682","v":{"$error":"#N/A"}},{"$f":"'Sundurliðun Afleiður - eignir'!P68","v":0},".M.EAFSS$$.XX.INF.XXX.XXXX.SX.XXX.CHF.IS.N.M"]
[{"$f":"\"INN.\"&EIGNIR!$B$3&C6683","v":{"$error":"#N/A"}},{"$f":"'Sundurliðun Afleiður - eignir'!P69","v":0},".M.EAFSS$$.XX.TRY.XXX.XXXX.SX.XXX.CHF.IS.N.M"]
[{"$f":"\"INN.\"&EIGNIR!$B$3&C6684","v":{"$error":"#N/A"}},{"$f":"'Sundurliðun Afleiður - eignir'!P70","v":0},".M.EAFSS$$.XX.LIF.XXX.XXXX.SX.XXX.CHF.IS.N.M"]
[{"$f":"\"INN.\"&EIGNIR!$B$3&C6685","v":{"$error":"#N/A"}},{"$f":"'Sundurliðun Afleiður - eignir'!P71","v":0},".M.EAFSS$$.XX.OPI.XXX.XXXX.SX.XXX.CHF.IS.N.M"]
[{"$f":"\"INN.\"&EIGNIR!$B$3&C6686","v":{"$error":"#N/A"}},{"$f":"'Sundurliðun Afleiður - eignir'!P72","v":0},".M.EAFSS$$.XX.RSS.XXX.XXXX.SX.XXX.CHF.IS.N.M"]
[{"$f":"\"INN.\"&EIGNIR!$B$3&C6687","v":{"$error":"#N/A"}},{"$f":"'Sundurliðun Afleiður - eignir'!P73","v":0},".M.EAFSS$$.XX.BAJ.XXX.XXXX.SX.XXX.CHF.IS.N.M"]
[{"$f":"\"INN.\"&EIGNIR!$B$3&C6688","v":{"$error":"#N/A"}},{"$f":"'Sundurliðun Afleiður - eignir'!P74","v":0},".M.EAFSS$$.XX.EIN.XXX.XXXX.SX.XXX.CHF.IS.N.M"]
[{"$f":"\"INN.\"&EIGNIR!$B$3&C6689","v":{"$error":"#N/A"}},{"$f":"'Sundurliðun Afleiður - eignir'!P75","v":0},".M.EAFSS$$.XX.NPH.XXX.XXXX.SX.XXX.CHF.IS.N.M"]
[{"$f":"\"INN.\"&EIGNIR!$B$3&C6690","v":{"$error":"#N/A"}},{"$f":"'Sundurliðun Afleiður - eignir'!P76","v":0},".M.EAFSS$$.XX.ERL.XXX.XXXX.SX.XXX.CHF.IS.N.M"]
[{"$f":"\"INN.\"&EIGNIR!$B$3&C6691","v":{"$error":"#N/A"}},{"$f":"'Sundurliðun Afleiður - eignir'!P77","v":0},".M.EAFSS$$.XX.ERS.XXX.XXXX.SX.XXX.CHF.IS.N.M"]
[{"$f":"\"INN.\"&EIGNIR!$B$3&C6692","v":{"$error":"#N/A"}},{"$f":"'Sundurliðun Afleiður - eignir'!P78","v":0},".M.EAFSS$$.XX.ERI.XXX.XXXX.SX.XXX.CHF.IS.N.M"]
[{"$f":"\"INN.\"&EIGNIR!$B$3&C6693","v":{"$error":"#N/A"}},{"$f":"'Sundurliðun Afleiður - eignir'!P79","v":0},".M.EAFSS$$.XX.ERP.XXX.XXXX.SX.XXX.CHF.IS.N.M"]
[{"$f":"\"INN.\"&EIGNIR!$B$3&C6694","v":{"$error":"#N/A"}},{"$f":"'Sundurliðun Afleiður - eignir'!P80","v":0},".M.EAFSS$$.XX.ERV.XXX.XXXX.SX.XXX.CHF.IS.N.M"]
[{"$f":"\"INN.\"&EIGNIR!$B$3&C6695","v":{"$error":"#N/A"}},{"$f":"'Sundurliðun Afleiður - eignir'!P81","v":0},".M.EAFSS$$.XX.ERF.XXX.XXXX.SX.XXX.CHF.IS.N.M"]
[{"$f":"\"INN.\"&EIGNIR!$B$3&C6696","v":{"$error":"#N/A"}},{"$f":"'Sundurliðun Afleiður - eignir'!P82","v":0},".M.EAFSS$$.XX.ERO.XXX.XXXX.SX.XXX.CHF.IS.N.M"]
[{"$f":"\"INN.\"&EIGNIR!$B$3&C6697","v":{"$error":"#N/A"}},{"$f":"'Sundurliðun Afleiður - eignir'!P83","v":0},".M.EAFSS$$.XX.ERA.XXX.XXXX.SX.XXX.CHF.IS.N.M"]
[{"$f":"\"INN.\"&EIGNIR!$B$3&C6698","v":{"$error":"#N/A"}},{"$f":"'Sundurliðun Afleiður - eignir'!Q5","v":0},".M.EAF$$$$.XX.$$$.XXX.XXXX.SX.XXX.ADR.IS.N.M","//Sundurliðun afleiður, ADR"]
[{"$f":"\"INN.\"&EIGNIR!$B$3&C6699","v":{"$error":"#N/A"}},{"$f":"'Sundurliðun Afleiður - eignir'!Q6","v":0},".M.EAFVR$$.XX.$$$.XXX.XXXX.SX.XXX.ADR.IS.N.M","//Sundurliðun afleiður, valréttir"]
[{"$f":"\"INN.\"&EIGNIR!$B$3&C6700","v":{"$error":"#N/A"}},{"$f":"'Sundurliðun Afleiður - eignir'!Q7","v":0},".M.EAFVR$$.XX.ATV.XXX.XXXX.SX.XXX.ADR.IS.N.M"]
[{"$f":"\"INN.\"&EIGNIR!$B$3&C6701","v":{"$error":"#N/A"}},{"$f":"'Sundurliðun Afleiður - eignir'!Q8","v":0},".M.EAFVR$$.XX.FJA.XXX.XXXX.SX.XXX.ADR.IS.N.M"]
[{"$f":"\"INN.\"&EIGNIR!$B$3&C6702","v":{"$error":"#N/A"}},{"$f":"'Sundurliðun Afleiður - eignir'!Q9","v":0},".M.EAFVR$$.XX.INN.XXX.XXXX.SX.XXX.ADR.IS.N.M"]
[{"$f":"\"INN.\"&EIGNIR!$B$3&C6703","v":{"$error":"#N/A"}},{"$f":"'Sundurliðun Afleiður - eignir'!Q10","v":0},".M.EAFVR$$.XX.SLI.XXX.XXXX.SX.XXX.ADR.IS.N.M"]
[{"$f":"\"INN.\"&EIGNIR!$B$3&C6704","v":{"$error":"#N/A"}},{"$f":"'Sundurliðun Afleiður - eignir'!Q11","v":0},".M.EAFVR$$.XX.PEN.XXX.XXXX.SX.XXX.ADR.IS.N.M"]
[{"$f":"\"INN.\"&EIGNIR!$B$3&C6705","v":{"$error":"#N/A"}},{"$f":"'Sundurliðun Afleiður - eignir'!Q12","v":0},".M.EAFVR$$.XX.SJO.XXX.XXXX.SX.XXX.ADR.IS.N.M"]
[{"$f":"\"INN.\"&EIGNIR!$B$3&C6706","v":{"$error":"#N/A"}},{"$f":"'Sundurliðun Afleiður - eignir'!Q13","v":0},".M.EAFVR$$.XX.YFT.XXX.XXXX.SX.XXX.ADR.IS.N.M"]
[{"$f":"\"INN.\"&EIGNIR!$B$3&C6707","v":{"$error":"#N/A"}},{"$f":"'Sundurliðun Afleiður - eignir'!Q14","v":0},".M.EAFVR$$.XX.SLY.XXX.XXXX.SX.XXX.ADR.IS.N.M"]
[{"$f":"\"INN.\"&EIGNIR!$B$3&C6708","v":{"$error":"#N/A"}},{"$f":"'Sundurliðun Afleiður - eignir'!Q15","v":0},".M.EAFVR$$.XX.FHL.XXX.XXXX.SX.XXX.ADR.IS.N.M"]
[{"$f":"\"INN.\"&EIGNIR!$B$3&C6709","v":{"$error":"#N/A"}},{"$f":"'Sundurliðun Afleiður - eignir'!Q16","v":0},".M.EAFVR$$.XX.INF.XXX.XXXX.SX.XXX.ADR.IS.N.M"]
[{"$f":"\"INN.\"&EIGNIR!$B$3&C6710","v":{"$error":"#N/A"}},{"$f":"'Sundurliðun Afleiður - eignir'!Q17","v":0},".M.EAFVR$$.XX.TRY.XXX.XXXX.SX.XXX.ADR.IS.N.M"]
[{"$f":"\"INN.\"&EIGNIR!$B$3&C6711","v":{"$error":"#N/A"}},{"$f":"'Sundurliðun Afleiður - eignir'!Q18","v":0},".M.EAFVR$$.XX.LIF.XXX.XXXX.SX.XXX.ADR.IS.N.M"]
[{"$f":"\"INN.\"&EIGNIR!$B$3&C6712","v":{"$error":"#N/A"}},{"$f":"'Sundurliðun Afleiður - eignir'!Q19","v":0},".M.EAFVR$$.XX.OPI.XXX.XXXX.SX.XXX.ADR.IS.N.M"]
[{"$f":"\"INN.\"&EIGNIR!$B$3&C6713","v":{"$error":"#N/A"}},{"$f":"'Sundurliðun Afleiður - eignir'!Q20","v":0},".M.EAFVR$$.XX.RSS.XXX.XXXX.SX.XXX.ADR.IS.N.M"]
[{"$f":"\"INN.\"&EIGNIR!$B$3&C6714","v":{"$error":"#N/A"}},{"$f":"'Sundurliðun Afleiður - eignir'!Q21","v":0},".M.EAFVR$$.XX.BAJ.XXX.XXXX.SX.XXX.ADR.IS.N.M"]
[{"$f":"\"INN.\"&EIGNIR!$B$3&C6715","v":{"$error":"#N/A"}},{"$f":"'Sundurliðun Afleiður - eignir'!Q22","v":0},".M.EAFVR$$.XX.EIN.XXX.XXXX.SX.XXX.ADR.IS.N.M"]
[{"$f":"\"INN.\"&EIGNIR!$B$3&C6716","v":{"$error":"#N/A"}},{"$f":"'Sundurliðun Afleiður - eignir'!Q23","v":0},".M.EAFVR$$.XX.NPH.XXX.XXXX.SX.XXX.ADR.IS.N.M"]
[{"$f":"\"INN.\"&EIGNIR!$B$3&C6717","v":{"$error":"#N/A"}},{"$f":"'Sundurliðun Afleiður - eignir'!Q24","v":0},".M.EAFVR$$.XX.ERL.XXX.XXXX.SX.XXX.ADR.IS.N.M"]
[{"$f":"\"INN.\"&EIGNIR!$B$3&C6718","v":{"$error":"#N/A"}},{"$f":"'Sundurliðun Afleiður - eignir'!Q25","v":0},".M.EAFVR$$.XX.ERS.XXX.XXXX.SX.XXX.ADR.IS.N.M"]
[{"$f":"\"INN.\"&EIGNIR!$B$3&C6719","v":{"$error":"#N/A"}},{"$f":"'Sundurliðun Afleiður - eignir'!Q26","v":0},".M.EAFVR$$.XX.ERI.XXX.XXXX.SX.XXX.ADR.IS.N.M"]
[{"$f":"\"INN.\"&EIGNIR!$B$3&C6720","v":{"$error":"#N/A"}},{"$f":"'Sundurliðun Afleiður - eignir'!Q27","v":0},".M.EAFVR$$.XX.ERP.XXX.XXXX.SX.XXX.ADR.IS.N.M"]
[{"$f":"\"INN.\"&EIGNIR!$B$3&C6721","v":{"$error":"#N/A"}},{"$f":"'Sundurliðun Afleiður - eignir'!Q28","v":0},".M.EAFVR$$.XX.ERV.XXX.XXXX.SX.XXX.ADR.IS.N.M"]
[{"$f":"\"INN.\"&EIGNIR!$B$3&C6722","v":{"$error":"#N/A"}},{"$f":"'Sundurliðun Afleiður - eignir'!Q29","v":0},".M.EAFVR$$.XX.ERF.XXX.XXXX.SX.XXX.ADR.IS.N.M"]
[{"$f":"\"INN.\"&EIGNIR!$B$3&C6723","v":{"$error":"#N/A"}},{"$f":"'Sundurliðun Afleiður - eignir'!Q30","v":0},".M.EAFVR$$.XX.ERO.XXX.XXXX.SX.XXX.ADR.IS.N.M"]
[{"$f":"\"INN.\"&EIGNIR!$B$3&C6724","v":{"$error":"#N/A"}},{"$f":"'Sundurliðun Afleiður - eignir'!Q31","v":0},".M.EAFVR$$.XX.ERA.XXX.XXXX.SX.XXX.ADR.IS.N.M"]
[{"$f":"\"INN.\"&EIGNIR!$B$3&C6725","v":{"$error":"#N/A"}},{"$f":"'Sundurliðun Afleiður - eignir'!Q32","v":0},".M.EAFFS$$.XX.$$$.XXX.XXXX.SX.XXX.ADR.IS.N.M","//Sundurliðun afleiður, framvirkir samningar"]
[{"$f":"\"INN.\"&EIGNIR!$B$3&C6726","v":{"$error":"#N/A"}},{"$f":"'Sundurliðun Afleiður - eignir'!Q33","v":0},".M.EAFFS$$.XX.ATV.XXX.XXXX.SX.XXX.ADR.IS.N.M"]
[{"$f":"\"INN.\"&EIGNIR!$B$3&C6727","v":{"$error":"#N/A"}},{"$f":"'Sundurliðun Afleiður - eignir'!Q34","v":0},".M.EAFFS$$.XX.FJA.XXX.XXXX.SX.XXX.ADR.IS.N.M"]
[{"$f":"\"INN.\"&EIGNIR!$B$3&C6728","v":{"$error":"#N/A"}},{"$f":"'Sundurliðun Afleiður - eignir'!Q35","v":0},".M.EAFFS$$.XX.INN.XXX.XXXX.SX.XXX.ADR.IS.N.M"]
[{"$f":"\"INN.\"&EIGNIR!$B$3&C6729","v":{"$error":"#N/A"}},{"$f":"'Sundurliðun Afleiður - eignir'!Q36","v":0},".M.EAFFS$$.XX.SLI.XXX.XXXX.SX.XXX.ADR.IS.N.M"]
[{"$f":"\"INN.\"&EIGNIR!$B$3&C6730","v":{"$error":"#N/A"}},{"$f":"'Sundurliðun Afleiður - eignir'!Q37","v":0},".M.EAFFS$$.XX.PEN.XXX.XXXX.SX.XXX.ADR.IS.N.M"]
[{"$f":"\"INN.\"&EIGNIR!$B$3&C6731","v":{"$error":"#N/A"}},{"$f":"'Sundurliðun Afleiður - eignir'!Q38","v":0},".M.EAFFS$$.XX.SJO.XXX.XXXX.SX.XXX.ADR.IS.N.M"]
[{"$f":"\"INN.\"&EIGNIR!$B$3&C6732","v":{"$error":"#N/A"}},{"$f":"'Sundurliðun Afleiður - eignir'!Q39","v":0},".M.EAFFS$$.XX.YFT.XXX.XXXX.SX.XXX.ADR.IS.N.M"]
[{"$f":"\"INN.\"&EIGNIR!$B$3&C6733","v":{"$error":"#N/A"}},{"$f":"'Sundurliðun Afleiður - eignir'!Q40","v":0},".M.EAFFS$$.XX.SLY.XXX.XXXX.SX.XXX.ADR.IS.N.M"]
[{"$f":"\"INN.\"&EIGNIR!$B$3&C6734","v":{"$error":"#N/A"}},{"$f":"'Sundurliðun Afleiður - eignir'!Q41","v":0},".M.EAFFS$$.XX.FHL.XXX.XXXX.SX.XXX.ADR.IS.N.M"]
[{"$f":"\"INN.\"&EIGNIR!$B$3&C6735","v":{"$error":"#N/A"}},{"$f":"'Sundurliðun Afleiður - eignir'!Q42","v":0},".M.EAFFS$$.XX.INF.XXX.XXXX.SX.XXX.ADR.IS.N.M"]
[{"$f":"\"INN.\"&EIGNIR!$B$3&C6736","v":{"$error":"#N/A"}},{"$f":"'Sundurliðun Afleiður - eignir'!Q43","v":0},".M.EAFFS$$.XX.TRY.XXX.XXXX.SX.XXX.ADR.IS.N.M"]
[{"$f":"\"INN.\"&EIGNIR!$B$3&C6737","v":{"$error":"#N/A"}},{"$f":"'Sundurliðun Afleiður - eignir'!Q44","v":0},".M.EAFFS$$.XX.LIF.XXX.XXXX.SX.XXX.ADR.IS.N.M"]
[{"$f":"\"INN.\"&EIGNIR!$B$3&C6738","v":{"$error":"#N/A"}},{"$f":"'Sundurliðun Afleiður - eignir'!Q45","v":0},".M.EAFFS$$.XX.OPI.XXX.XXXX.SX.XXX.ADR.IS.N.M"]
[{"$f":"\"INN.\"&EIGNIR!$B$3&C6739","v":{"$error":"#N/A"}},{"$f":"'Sundurliðun Afleiður - eignir'!Q46","v":0},".M.EAFFS$$.XX.RSS.XXX.XXXX.SX.XXX.ADR.IS.N.M"]
[{"$f":"\"INN.\"&EIGNIR!$B$3&C6740","v":{"$error":"#N/A"}},{"$f":"'Sundurliðun Afleiður - eignir'!Q47","v":0},".M.EAFFS$$.XX.BAJ.XXX.XXXX.SX.XXX.ADR.IS.N.M"]
[{"$f":"\"INN.\"&EIGNIR!$B$3&C6741","v":{"$error":"#N/A"}},{"$f":"'Sundurliðun Afleiður - eignir'!Q48","v":0},".M.EAFFS$$.XX.EIN.XXX.XXXX.SX.XXX.ADR.IS.N.M"]
[{"$f":"\"INN.\"&EIGNIR!$B$3&C6742","v":{"$error":"#N/A"}},{"$f":"'Sundurliðun Afleiður - eignir'!Q49","v":0},".M.EAFFS$$.XX.NPH.XXX.XXXX.SX.XXX.ADR.IS.N.M"]
[{"$f":"\"INN.\"&EIGNIR!$B$3&C6743","v":{"$error":"#N/A"}},{"$f":"'Sundurliðun Afleiður - eignir'!Q50","v":0},".M.EAFFS$$.XX.ERL.XXX.XXXX.SX.XXX.ADR.IS.N.M"]
[{"$f":"\"INN.\"&EIGNIR!$B$3&C6744","v":{"$error":"#N/A"}},{"$f":"'Sundurliðun Afleiður - eignir'!Q51","v":0},".M.EAFFS$$.XX.ERS.XXX.XXXX.SX.XXX.ADR.IS.N.M"]
[{"$f":"\"INN.\"&EIGNIR!$B$3&C6745","v":{"$error":"#N/A"}},{"$f":"'Sundurliðun Afleiður - eignir'!Q52","v":0},".M.EAFFS$$.XX.ERI.XXX.XXXX.SX.XXX.ADR.IS.N.M"]
[{"$f":"\"INN.\"&EIGNIR!$B$3&C6746","v":{"$error":"#N/A"}},{"$f":"'Sundurliðun Afleiður - eignir'!Q53","v":0},".M.EAFFS$$.XX.ERP.XXX.XXXX.SX.XXX.ADR.IS.N.M"]
[{"$f":"\"INN.\"&EIGNIR!$B$3&C6747","v":{"$error":"#N/A"}},{"$f":"'Sundurliðun Afleiður - eignir'!Q54","v":0},".M.EAFFS$$.XX.ERV.XXX.XXXX.SX.XXX.ADR.IS.N.M"]
[{"$f":"\"INN.\"&EIGNIR!$B$3&C6748","v":{"$error":"#N/A"}},{"$f":"'Sundurliðun Afleiður - eignir'!Q55","v":0},".M.EAFFS$$.XX.ERF.XXX.XXXX.SX.XXX.ADR.IS.N.M"]
[{"$f":"\"INN.\"&EIGNIR!$B$3&C6749","v":{"$error":"#N/A"}},{"$f":"'Sundurliðun Afleiður - eignir'!Q56","v":0},".M.EAFFS$$.XX.ERO.XXX.XXXX.SX.XXX.ADR.IS.N.M"]
[{"$f":"\"INN.\"&EIGNIR!$B$3&C6750","v":{"$error":"#N/A"}},{"$f":"'Sundurliðun Afleiður - eignir'!Q57","v":0},".M.EAFFS$$.XX.ERA.XXX.XXXX.SX.XXX.ADR.IS.N.M"]
[{"$f":"\"INN.\"&EIGNIR!$B$3&C6751","v":{"$error":"#N/A"}},{"$f":"'Sundurliðun Afleiður - eignir'!Q58","v":0},".M.EAFSS$$.XX.$$$.XXX.XXXX.SX.XXX.ADR.IS.N.M","//Sundurliðun afleiður, skiptasamningar"]
[{"$f":"\"INN.\"&EIGNIR!$B$3&C6752","v":{"$error":"#N/A"}},{"$f":"'Sundurliðun Afleiður - eignir'!Q59","v":0},".M.EAFSS$$.XX.ATV.XXX.XXXX.SX.XXX.ADR.IS.N.M"]
[{"$f":"\"INN.\"&EIGNIR!$B$3&C6753","v":{"$error":"#N/A"}},{"$f":"'Sundurliðun Afleiður - eignir'!Q60","v":0},".M.EAFSS$$.XX.FJA.XXX.XXXX.SX.XXX.ADR.IS.N.M"]
[{"$f":"\"INN.\"&EIGNIR!$B$3&C6754","v":{"$error":"#N/A"}},{"$f":"'Sundurliðun Afleiður - eignir'!Q61","v":0},".M.EAFSS$$.XX.INN.XXX.XXXX.SX.XXX.ADR.IS.N.M"]
[{"$f":"\"INN.\"&EIGNIR!$B$3&C6755","v":{"$error":"#N/A"}},{"$f":"'Sundurliðun Afleiður - eignir'!Q62","v":0},".M.EAFSS$$.XX.SLI.XXX.XXXX.SX.XXX.ADR.IS.N.M"]
[{"$f":"\"INN.\"&EIGNIR!$B$3&C6756","v":{"$error":"#N/A"}},{"$f":"'Sundurliðun Afleiður - eignir'!Q63","v":0},".M.EAFSS$$.XX.PEN.XXX.XXXX.SX.XXX.ADR.IS.N.M"]
[{"$f":"\"INN.\"&EIGNIR!$B$3&C6757","v":{"$error":"#N/A"}},{"$f":"'Sundurliðun Afleiður - eignir'!Q64","v":0},".M.EAFSS$$.XX.SJO.XXX.XXXX.SX.XXX.ADR.IS.N.M"]
[{"$f":"\"INN.\"&EIGNIR!$B$3&C6758","v":{"$error":"#N/A"}},{"$f":"'Sundurliðun Afleiður - eignir'!Q65","v":0},".M.EAFSS$$.XX.YFT.XXX.XXXX.SX.XXX.ADR.IS.N.M"]
[{"$f":"\"INN.\"&EIGNIR!$B$3&C6759","v":{"$error":"#N/A"}},{"$f":"'Sundurliðun Afleiður - eignir'!Q66","v":0},".M.EAFSS$$.XX.SLY.XXX.XXXX.SX.XXX.ADR.IS.N.M"]
[{"$f":"\"INN.\"&EIGNIR!$B$3&C6760","v":{"$error":"#N/A"}},{"$f":"'Sundurliðun Afleiður - eignir'!Q67","v":0},".M.EAFSS$$.XX.FHL.XXX.XXXX.SX.XXX.ADR.IS.N.M"]
[{"$f":"\"INN.\"&EIGNIR!$B$3&C6761","v":{"$error":"#N/A"}},{"$f":"'Sundurliðun Afleiður - eignir'!Q68","v":0},".M.EAFSS$$.XX.INF.XXX.XXXX.SX.XXX.ADR.IS.N.M"]
[{"$f":"\"INN.\"&EIGNIR!$B$3&C6762","v":{"$error":"#N/A"}},{"$f":"'Sundurliðun Afleiður - eignir'!Q69","v":0},".M.EAFSS$$.XX.TRY.XXX.XXXX.SX.XXX.ADR.IS.N.M"]
[{"$f":"\"INN.\"&EIGNIR!$B$3&C6763","v":{"$error":"#N/A"}},{"$f":"'Sundurliðun Afleiður - eignir'!Q70","v":0},".M.EAFSS$$.XX.LIF.XXX.XXXX.SX.XXX.ADR.IS.N.M"]
[{"$f":"\"INN.\"&EIGNIR!$B$3&C6764","v":{"$error":"#N/A"}},{"$f":"'Sundurliðun Afleiður - eignir'!Q71","v":0},".M.EAFSS$$.XX.OPI.XXX.XXXX.SX.XXX.ADR.IS.N.M"]
[{"$f":"\"INN.\"&EIGNIR!$B$3&C6765","v":{"$error":"#N/A"}},{"$f":"'Sundurliðun Afleiður - eignir'!Q72","v":0},".M.EAFSS$$.XX.RSS.XXX.XXXX.SX.XXX.ADR.IS.N.M"]
[{"$f":"\"INN.\"&EIGNIR!$B$3&C6766","v":{"$error":"#N/A"}},{"$f":"'Sundurliðun Afleiður - eignir'!Q73","v":0},".M.EAFSS$$.XX.BAJ.XXX.XXXX.SX.XXX.ADR.IS.N.M"]
[{"$f":"\"INN.\"&EIGNIR!$B$3&C6767","v":{"$error":"#N/A"}},{"$f":"'Sundurliðun Afleiður - eignir'!Q74","v":0},".M.EAFSS$$.XX.EIN.XXX.XXXX.SX.XXX.ADR.IS.N.M"]
[{"$f":"\"INN.\"&EIGNIR!$B$3&C6768","v":{"$error":"#N/A"}},{"$f":"'Sundurliðun Afleiður - eignir'!Q75","v":0},".M.EAFSS$$.XX.NPH.XXX.XXXX.SX.XXX.ADR.IS.N.M"]
[{"$f":"\"INN.\"&EIGNIR!$B$3&C6769","v":{"$error":"#N/A"}},{"$f":"'Sundurliðun Afleiður - eignir'!Q76","v":0},".M.EAFSS$$.XX.ERL.XXX.XXXX.SX.XXX.ADR.IS.N.M"]
[{"$f":"\"INN.\"&EIGNIR!$B$3&C6770","v":{"$error":"#N/A"}},{"$f":"'Sundurliðun Afleiður - eignir'!Q77","v":0},".M.EAFSS$$.XX.ERS.XXX.XXXX.SX.XXX.ADR.IS.N.M"]
[{"$f":"\"INN.\"&EIGNIR!$B$3&C6771","v":{"$error":"#N/A"}},{"$f":"'Sundurliðun Afleiður - eignir'!Q78","v":0},".M.EAFSS$$.XX.ERI.XXX.XXXX.SX.XXX.ADR.IS.N.M"]
[{"$f":"\"INN.\"&EIGNIR!$B$3&C6772","v":{"$error":"#N/A"}},{"$f":"'Sundurliðun Afleiður - eignir'!Q79","v":0},".M.EAFSS$$.XX.ERP.XXX.XXXX.SX.XXX.ADR.IS.N.M"]
[{"$f":"\"INN.\"&EIGNIR!$B$3&C6773","v":{"$error":"#N/A"}},{"$f":"'Sundurliðun Afleiður - eignir'!Q80","v":0},".M.EAFSS$$.XX.ERV.XXX.XXXX.SX.XXX.ADR.IS.N.M"]
[{"$f":"\"INN.\"&EIGNIR!$B$3&C6774","v":{"$error":"#N/A"}},{"$f":"'Sundurliðun Afleiður - eignir'!Q81","v":0},".M.EAFSS$$.XX.ERF.XXX.XXXX.SX.XXX.ADR.IS.N.M"]
[{"$f":"\"INN.\"&EIGNIR!$B$3&C6775","v":{"$error":"#N/A"}},{"$f":"'Sundurliðun Afleiður - eignir'!Q82","v":0},".M.EAFSS$$.XX.ERO.XXX.XXXX.SX.XXX.ADR.IS.N.M"]
[{"$f":"\"INN.\"&EIGNIR!$B$3&C6776","v":{"$error":"#N/A"}},{"$f":"'Sundurliðun Afleiður - eignir'!Q83","v":0},".M.EAFSS$$.XX.ERA.XXX.XXXX.SX.XXX.ADR.IS.N.M"]
[{"$f":"\"INN.\"&EIGNIR!$B$3&C6777","v":{"$error":"#N/A"}},{"$f":"'Sundurliðun Innlán'!E38","v":0},".M.SFUINKV.XX.ERS.$$$.XXXX.SX.XXX.XXX.IS.N.M","//Skuldir, sundurliðun innlána"]
[{"$f":"\"INN.\"&EIGNIR!$B$3&C6778","v":{"$error":"#N/A"}},{"$f":"'Sundurliðun Innlán'!E39","v":0},".M.SFUINKV.XX.ERI.$$$.XXXX.SX.XXX.XXX.IS.N.M"]
[{"$f":"\"INN.\"&EIGNIR!$B$3&C6779","v":{"$error":"#N/A"}},{"$f":"'Sundurliðun Innlán'!E40","v":0},".M.SFUINKV.XX.ERP.$$$.XXXX.SX.XXX.XXX.IS.N.M"]
[{"$f":"\"INN.\"&EIGNIR!$B$3&C6780","v":{"$error":"#N/A"}},{"$f":"'Sundurliðun Innlán'!E41","v":0},".M.SFUINKV.XX.ERV.$$$.XXXX.SX.XXX.XXX.IS.N.M"]
[{"$f":"\"INN.\"&EIGNIR!$B$3&C6781","v":{"$error":"#N/A"}},{"$f":"'Sundurliðun Innlán'!E42","v":0},".M.SFUINKV.XX.ERF.$$$.XXXX.SX.XXX.XXX.IS.N.M"]
[{"$f":"\"INN.\"&EIGNIR!$B$3&C6782","v":{"$error":"#N/A"}},{"$f":"'Sundurliðun Innlán'!E43","v":0},".M.SFUINKV.XX.ERO.$$$.XXXX.SX.XXX.XXX.IS.N.M"]
[{"$f":"\"INN.\"&EIGNIR!$B$3&C6783","v":{"$error":"#N/A"}},{"$f":"'Sundurliðun Innlán'!E44","v":0},".M.SFUINKV.XX.ERA.$$$.XXXX.SX.XXX.XXX.IS.N.M"]
[{"$f":"\"INN.\"&EIGNIR!$B$3&C6784","v":{"$error":"#N/A"}},{"$f":"'Sundurliðun Innlán'!E77","v":0},".M.SFUINOI.XX.ERS.$$$.XXXX.SX.XXX.XXX.IS.N.M","//Skuldir, óbundin innlán"]
[{"$f":"\"INN.\"&EIGNIR!$B$3&C6785","v":{"$error":"#N/A"}},{"$f":"'Sundurliðun Innlán'!E78","v":0},".M.SFUINOI.XX.ERI.$$$.XXXX.SX.XXX.XXX.IS.N.M"]
[{"$f":"\"INN.\"&EIGNIR!$B$3&C6786","v":{"$error":"#N/A"}},{"$f":"'Sundurliðun Innlán'!E79","v":0},".M.SFUINOI.XX.ERP.$$$.XXXX.SX.XXX.XXX.IS.N.M"]
[{"$f":"\"INN.\"&EIGNIR!$B$3&C6787","v":{"$error":"#N/A"}},{"$f":"'Sundurliðun Innlán'!E80","v":0},".M.SFUINOI.XX.ERV.$$$.XXXX.SX.XXX.XXX.IS.N.M"]
[{"$f":"\"INN.\"&EIGNIR!$B$3&C6788","v":{"$error":"#N/A"}},{"$f":"'Sundurliðun Innlán'!E81","v":0},".M.SFUINOI.XX.ERF.$$$.XXXX.SX.XXX.XXX.IS.N.M"]
[{"$f":"\"INN.\"&EIGNIR!$B$3&C6789","v":{"$error":"#N/A"}},{"$f":"'Sundurliðun Innlán'!E82","v":0},".M.SFUINOI.XX.ERO.$$$.XXXX.SX.XXX.XXX.IS.N.M"]
[{"$f":"\"INN.\"&EIGNIR!$B$3&C6790","v":{"$error":"#N/A"}},{"$f":"'Sundurliðun Innlán'!E83","v":0},".M.SFUINOI.XX.ERA.$$$.XXXX.SX.XXX.XXX.IS.N.M"]
[{"$f":"\"INN.\"&EIGNIR!$B$3&C6791","v":{"$error":"#N/A"}},{"$f":"'Sundurliðun Innlán'!E116","v":0},".M.SFUINVI.XX.ERS.$$$.XXXX.SV.XXX.XXX.IS.N.M","//Verðtryggð innlán"]
[{"$f":"\"INN.\"&EIGNIR!$B$3&C6792","v":{"$error":"#N/A"}},{"$f":"'Sundurliðun Innlán'!E117","v":0},".M.SFUINVI.XX.ERI.$$$.XXXX.SV.XXX.XXX.IS.N.M"]
[{"$f":"\"INN.\"&EIGNIR!$B$3&C6793","v":{"$error":"#N/A"}},{"$f":"'Sundurliðun Innlán'!E118","v":0},".M.SFUINVI.XX.ERP.$$$.XXXX.SV.XXX.XXX.IS.N.M"]
[{"$f":"\"INN.\"&EIGNIR!$B$3&C6794","v":{"$error":"#N/A"}},{"$f":"'Sundurliðun Innlán'!E119","v":0},".M.SFUINVI.XX.ERV.$$$.XXXX.SV.XXX.XXX.IS.N.M"]
[{"$f":"\"INN.\"&EIGNIR!$B$3&C6795","v":{"$error":"#N/A"}},{"$f":"'Sundurliðun Innlán'!E120","v":0},".M.SFUINVI.XX.ERF.$$$.XXXX.SV.XXX.XXX.IS.N.M"]
[{"$f":"\"INN.\"&EIGNIR!$B$3&C6796","v":{"$error":"#N/A"}},{"$f":"'Sundurliðun Innlán'!E121","v":0},".M.SFUINVI.XX.ERO.$$$.XXXX.SV.XXX.XXX.IS.N.M"]
[{"$f":"\"INN.\"&EIGNIR!$B$3&C6797","v":{"$error":"#N/A"}},{"$f":"'Sundurliðun Innlán'!E122","v":0},".M.SFUINVI.XX.ERA.$$$.XXXX.SV.XXX.XXX.IS.N.M"]
[{"$f":"\"INN.\"&EIGNIR!$B$3&C6798","v":{"$error":"#N/A"}},{"$f":"'Sundurliðun Innlán'!E124","v":0},".M.SFUINOR.XX.EIN.XXX.XXXX.SV.XXX.XXX.IS.N.M"]
[{"$f":"\"INN.\"&EIGNIR!$B$3&C6799","v":{"$error":"#N/A"}},{"$f":"'Sundurliðun Innlán'!E125","v":0},".M.SFUINOR.XX.ERL.XXX.XXXX.SV.XXX.XXX.IS.N.M"]
[{"$f":"\"INN.\"&EIGNIR!$B$3&C6800","v":{"$error":"#N/A"}},{"$f":"'Sundurliðun Innlán'!E127","v":0},".M.SFUINVB.XX.EIN.XXX.XXXX.SX.XXX.XXX.IS.N.M"]
[{"$f":"\"INN.\"&EIGNIR!$B$3&C6801","v":{"$error":"#N/A"}},{"$f":"'Sundurliðun Innlán'!E128","v":0},".M.SFUINVB.XX.ERL.XXX.XXXX.SX.XXX.XXX.IS.N.M"]
[{"$f":"\"INN.\"&EIGNIR!$B$3&C6802","v":{"$error":"#N/A"}},{"$f":"'Sundurliðun Innlán'!E161","v":0},".M.SFUINBI.XX.ERS.$$$.XXXX.SX.XXX.XXX.IS.N.M"]
[{"$f":"\"INN.\"&EIGNIR!$B$3&C6803","v":{"$error":"#N/A"}},{"$f":"'Sundurliðun Innlán'!E162","v":0},".M.SFUINBI.XX.ERI.$$$.XXXX.SX.XXX.XXX.IS.N.M"]
[{"$f":"\"INN.\"&EIGNIR!$B$3&C6804","v":{"$error":"#N/A"}},{"$f":"'Sundurliðun Innlán'!E163","v":0},".M.SFUINBI.XX.ERP.$$$.XXXX.SX.XXX.XXX.IS.N.M"]
[{"$f":"\"INN.\"&EIGNIR!$B$3&C6805","v":{"$error":"#N/A"}},{"$f":"'Sundurliðun Innlán'!E164","v":0},".M.SFUINBI.XX.ERV.$$$.XXXX.SX.XXX.XXX.IS.N.M"]
[{"$f":"\"INN.\"&EIGNIR!$B$3&C6806","v":{"$error":"#N/A"}},{"$f":"'Sundurliðun Innlán'!E165","v":0},".M.SFUINBI.XX.ERF.$$$.XXXX.SX.XXX.XXX.IS.N.M"]
[{"$f":"\"INN.\"&EIGNIR!$B$3&C6807","v":{"$error":"#N/A"}},{"$f":"'Sundurliðun Innlán'!E166","v":0},".M.SFUINBI.XX.ERO.$$$.XXXX.SX.XXX.XXX.IS.N.M"]
[{"$f":"\"INN.\"&EIGNIR!$B$3&C6808","v":{"$error":"#N/A"}},{"$f":"'Sundurliðun Innlán'!E167","v":0},".M.SFUINBI.XX.ERA.$$$.XXXX.SX.XXX.XXX.IS.N.M"]
[{"$f":"\"INN.\"&EIGNIR!$B$3&C6809","v":{"$error":"#N/A"}},{"$f":"'Sundurliðun Innlán'!F7","v":0},".M.SFUINKV.XX.ATV.OPI.XXXX.SX.XXX.XXX.IS.N.M"]
[{"$f":"\"INN.\"&EIGNIR!$B$3&C6810","v":{"$error":"#N/A"}},{"$f":"'Sundurliðun Innlán'!F21","v":0},".M.SFUINKV.XX.FJA.OPI.XXXX.SX.XXX.XXX.IS.N.M"]
[{"$f":"\"INN.\"&EIGNIR!$B$3&C6811","v":{"$error":"#N/A"}},{"$f":"'Sundurliðun Innlán'!F22","v":0},".M.SFUINKV.XX.INN.OPI.XXXX.SX.XXX.XXX.IS.N.M"]
[{"$f":"\"INN.\"&EIGNIR!$B$3&C6812","v":{"$error":"#N/A"}},{"$f":"'Sundurliðun Innlán'!F23","v":0},".M.SFUINKV.XX.SLI.OPI.XXXX.SX.XXX.XXX.IS.N.M"]
[{"$f":"\"INN.\"&EIGNIR!$B$3&C6813","v":{"$error":"#N/A"}},{"$f":"'Sundurliðun Innlán'!F24","v":0},".M.SFUINKV.XX.PEN.OPI.XXXX.SX.XXX.XXX.IS.N.M"]
[{"$f":"\"INN.\"&EIGNIR!$B$3&C6814","v":{"$error":"#N/A"}},{"$f":"'Sundurliðun Innlán'!F25","v":0},".M.SFUINKV.XX.SJO.OPI.XXXX.SX.XXX.XXX.IS.N.M"]
[{"$f":"\"INN.\"&EIGNIR!$B$3&C6815","v":{"$error":"#N/A"}},{"$f":"'Sundurliðun Innlán'!F26","v":0},".M.SFUINKV.XX.YFT.OPI.XXXX.SX.XXX.XXX.IS.N.M"]
[{"$f":"\"INN.\"&EIGNIR!$B$3&C6816","v":{"$error":"#N/A"}},{"$f":"'Sundurliðun Innlán'!F27","v":0},".M.SFUINKV.XX.SLY.OPI.XXXX.SX.XXX.XXX.IS.N.M"]
[{"$f":"\"INN.\"&EIGNIR!$B$3&C6817","v":{"$error":"#N/A"}},{"$f":"'Sundurliðun Innlán'!F28","v":0},".M.SFUINKV.XX.FHL.OPI.XXXX.SX.XXX.XXX.IS.N.M"]
[{"$f":"\"INN.\"&EIGNIR!$B$3&C6818","v":{"$error":"#N/A"}},{"$f":"'Sundurliðun Innlán'!F29","v":0},".M.SFUINKV.XX.INF.OPI.XXXX.SX.XXX.XXX.IS.N.M"]
[{"$f":"\"INN.\"&EIGNIR!$B$3&C6819","v":{"$error":"#N/A"}},{"$f":"'Sundurliðun Innlán'!F30","v":0},".M.SFUINKV.XX.TRY.OPI.XXXX.SX.XXX.XXX.IS.N.M"]
[{"$f":"\"INN.\"&EIGNIR!$B$3&C6820","v":{"$error":"#N/A"}},{"$f":"'Sundurliðun Innlán'!F31","v":0},".M.SFUINKV.XX.LIF.OPI.XXXX.SX.XXX.XXX.IS.N.M"]
[{"$f":"\"INN.\"&EIGNIR!$B$3&C6821","v":{"$error":"#N/A"}},{"$f":"'Sundurliðun Innlán'!F46","v":0},".M.SFUINOI.XX.ATV.OPI.XXXX.SX.XXX.XXX.IS.N.M"]
[{"$f":"\"INN.\"&EIGNIR!$B$3&C6822","v":{"$error":"#N/A"}},{"$f":"'Sundurliðun Innlán'!F60","v":0},".M.SFUINOI.XX.FJA.OPI.XXXX.SX.XXX.XXX.IS.N.M"]
[{"$f":"\"INN.\"&EIGNIR!$B$3&C6823","v":{"$error":"#N/A"}},{"$f":"'Sundurliðun Innlán'!F61","v":0},".M.SFUINOI.XX.INN.OPI.XXXX.SX.XXX.XXX.IS.N.M"]
[{"$f":"\"INN.\"&EIGNIR!$B$3&C6824","v":{"$error":"#N/A"}},{"$f":"'Sundurliðun Innlán'!F62","v":0},".M.SFUINOI.XX.SLI.OPI.XXXX.SX.XXX.XXX.IS.N.M"]
[{"$f":"\"INN.\"&EIGNIR!$B$3&C6825","v":{"$error":"#N/A"}},{"$f":"'Sundurliðun Innlán'!F63","v":0},".M.SFUINOI.XX.PEN.OPI.XXXX.SX.XXX.XXX.IS.N.M"]
[{"$f":"\"INN.\"&EIGNIR!$B$3&C6826","v":{"$error":"#N/A"}},{"$f":"'Sundurliðun Innlán'!F64","v":0},".M.SFUINOI.XX.SJO.OPI.XXXX.SX.XXX.XXX.IS.N.M"]
[{"$f":"\"INN.\"&EIGNIR!$B$3&C6827","v":{"$error":"#N/A"}},{"$f":"'Sundurliðun Innlán'!F65","v":0},".M.SFUINOI.XX.YFT.OPI.XXXX.SX.XXX.XXX.IS.N.M"]
[{"$f":"\"INN.\"&EIGNIR!$B$3&C6828","v":{"$error":"#N/A"}},{"$f":"'Sundurliðun Innlán'!F66","v":0},".M.SFUINOI.XX.SLY.OPI.XXXX.SX.XXX.XXX.IS.N.M"]
[{"$f":"\"INN.\"&EIGNIR!$B$3&C6829","v":{"$error":"#N/A"}},{"$f":"'Sundurliðun Innlán'!F67","v":0},".M.SFUINOI.XX.FHL.OPI.XXXX.SX.XXX.XXX.IS.N.M"]
[{"$f":"\"INN.\"&EIGNIR!$B$3&C6830","v":{"$error":"#N/A"}},{"$f":"'Sundurliðun Innlán'!F68","v":0},".M.SFUINOI.XX.INF.OPI.XXXX.SX.XXX.XXX.IS.N.M"]
[{"$f":"\"INN.\"&EIGNIR!$B$3&C6831","v":{"$error":"#N/A"}},{"$f":"'Sundurliðun Innlán'!F69","v":0},".M.SFUINOI.XX.TRY.OPI.XXXX.SX.XXX.XXX.IS.N.M"]
[{"$f":"\"INN.\"&EIGNIR!$B$3&C6832","v":{"$error":"#N/A"}},{"$f":"'Sundurliðun Innlán'!F70","v":0},".M.SFUINOI.XX.LIF.OPI.XXXX.SX.XXX.XXX.IS.N.M"]
[{"$f":"\"INN.\"&EIGNIR!$B$3&C6833","v":{"$error":"#N/A"}},{"$f":"'Sundurliðun Innlán'!F85","v":0},".M.SFUINVI.XX.ATV.OPI.XXXX.SV.XXX.XXX.IS.N.M"]
[{"$f":"\"INN.\"&EIGNIR!$B$3&C6834","v":{"$error":"#N/A"}},{"$f":"'Sundurliðun Innlán'!F99","v":0},".M.SFUINVI.XX.FJA.OPI.XXXX.SV.XXX.XXX.IS.N.M"]
[{"$f":"\"INN.\"&EIGNIR!$B$3&C6835","v":{"$error":"#N/A"}},{"$f":"'Sundurliðun Innlán'!F100","v":0},".M.SFUINVI.XX.INN.OPI.XXXX.SV.XXX.XXX.IS.N.M"]
[{"$f":"\"INN.\"&EIGNIR!$B$3&C6836","v":{"$error":"#N/A"}},{"$f":"'Sundurliðun Innlán'!F101","v":0},".M.SFUINVI.XX.SLI.OPI.XXXX.SV.XXX.XXX.IS.N.M"]
[{"$f":"\"INN.\"&EIGNIR!$B$3&C6837","v":{"$error":"#N/A"}},{"$f":"'Sundurliðun Innlán'!F102","v":0},".M.SFUINVI.XX.PEN.OPI.XXXX.SV.XXX.XXX.IS.N.M"]
[{"$f":"\"INN.\"&EIGNIR!$B$3&C6838","v":{"$error":"#N/A"}},{"$f":"'Sundurliðun Innlán'!F103","v":0},".M.SFUINVI.XX.SJO.OPI.XXXX.SV.XXX.XXX.IS.N.M"]
[{"$f":"\"INN.\"&EIGNIR!$B$3&C6839","v":{"$error":"#N/A"}},{"$f":"'Sundurliðun Innlán'!F104","v":0},".M.SFUINVI.XX.YFT.OPI.XXXX.SV.XXX.XXX.IS.N.M"]
[{"$f":"\"INN.\"&EIGNIR!$B$3&C6840","v":{"$error":"#N/A"}},{"$f":"'Sundurliðun Innlán'!F105","v":0},".M.SFUINVI.XX.SLY.OPI.XXXX.SV.XXX.XXX.IS.N.M"]
[{"$f":"\"INN.\"&EIGNIR!$B$3&C6841","v":{"$error":"#N/A"}},{"$f":"'Sundurliðun Innlán'!F106","v":0},".M.SFUINVI.XX.FHL.OPI.XXXX.SV.XXX.XXX.IS.N.M"]
[{"$f":"\"INN.\"&EIGNIR!$B$3&C6842","v":{"$error":"#N/A"}},{"$f":"'Sundurliðun Innlán'!F107","v":0},".M.SFUINVI.XX.INF.OPI.XXXX.SV.XXX.XXX.IS.N.M"]
[{"$f":"\"INN.\"&EIGNIR!$B$3&C6843","v":{"$error":"#N/A"}},{"$f":"'Sundurliðun Innlán'!F108","v":0},".M.SFUINVI.XX.TRY.OPI.XXXX.SV.XXX.XXX.IS.N.M"]
[{"$f":"\"INN.\"&EIGNIR!$B$3&C6844","v":{"$error":"#N/A"}},{"$f":"'Sundurliðun Innlán'!F109","v":0},".M.SFUINVI.XX.LIF.OPI.XXXX.SV.XXX.XXX.IS.N.M"]
[{"$f":"\"INN.\"&EIGNIR!$B$3&C6845","v":{"$error":"#N/A"}},{"$f":"'Sundurliðun Innlán'!F130","v":0},".M.SFUINBI.XX.ATV.OPI.XXXX.SX.XXX.XXX.IS.N.M"]
[{"$f":"\"INN.\"&EIGNIR!$B$3&C6846","v":{"$error":"#N/A"}},{"$f":"'Sundurliðun Innlán'!F144","v":0},".M.SFUINBI.XX.FJA.OPI.XXXX.SX.XXX.XXX.IS.N.M"]
[{"$f":"\"INN.\"&EIGNIR!$B$3&C6847","v":{"$error":"#N/A"}},{"$f":"'Sundurliðun Innlán'!F145","v":0},".M.SFUINBI.XX.INN.OPI.XXXX.SX.XXX.XXX.IS.N.M"]
[{"$f":"\"INN.\"&EIGNIR!$B$3&C6848","v":{"$error":"#N/A"}},{"$f":"'Sundurliðun Innlán'!F146","v":0},".M.SFUINBI.XX.SLI.OPI.XXXX.SX.XXX.XXX.IS.N.M"]
[{"$f":"\"INN.\"&EIGNIR!$B$3&C6849","v":{"$error":"#N/A"}},{"$f":"'Sundurliðun Innlán'!F147","v":0},".M.SFUINBI.XX.PEN.OPI.XXXX.SX.XXX.XXX.IS.N.M"]
[{"$f":"\"INN.\"&EIGNIR!$B$3&C6850","v":{"$error":"#N/A"}},{"$f":"'Sundurliðun Innlán'!F148","v":0},".M.SFUINBI.XX.SJO.OPI.XXXX.SX.XXX.XXX.IS.N.M"]
[{"$f":"\"INN.\"&EIGNIR!$B$3&C6851","v":{"$error":"#N/A"}},{"$f":"'Sundurliðun Innlán'!F149","v":0},".M.SFUINBI.XX.YFT.OPI.XXXX.SX.XXX.XXX.IS.N.M"]
[{"$f":"\"INN.\"&EIGNIR!$B$3&C6852","v":{"$error":"#N/A"}},{"$f":"'Sundurliðun Innlán'!F150","v":0},".M.SFUINBI.XX.SLY.OPI.XXXX.SX.XXX.XXX.IS.N.M"]
[{"$f":"\"INN.\"&EIGNIR!$B$3&C6853","v":{"$error":"#N/A"}},{"$f":"'Sundurliðun Innlán'!F151","v":0},".M.SFUINBI.XX.FHL.OPI.XXXX.SX.XXX.XXX.IS.N.M"]
[{"$f":"\"INN.\"&EIGNIR!$B$3&C6854","v":{"$error":"#N/A"}},{"$f":"'Sundurliðun Innlán'!F152","v":0},".M.SFUINBI.XX.INF.OPI.XXXX.SX.XXX.XXX.IS.N.M"]
[{"$f":"\"INN.\"&EIGNIR!$B$3&C6855","v":{"$error":"#N/A"}},{"$f":"'Sundurliðun Innlán'!F153","v":0},".M.SFUINBI.XX.TRY.OPI.XXXX.SX.XXX.XXX.IS.N.M"]
[{"$f":"\"INN.\"&EIGNIR!$B$3&C6856","v":{"$error":"#N/A"}},{"$f":"'Sundurliðun Innlán'!F154","v":0},".M.SFUINBI.XX.LIF.OPI.XXXX.SX.XXX.XXX.IS.N.M"]
[{"$f":"\"INN.\"&EIGNIR!$B$3&C6857","v":{"$error":"#N/A"}},{"$f":"'Sundurliðun Innlán'!G7","v":0},".M.SFUINKV.XX.ATV.EIF.XXXX.SX.XXX.XXX.IS.N.M","//Sundurliðun innlán, einkafyrirtæki"]
[{"$f":"\"INN.\"&EIGNIR!$B$3&C6858","v":{"$error":"#N/A"}},{"$f":"'Sundurliðun Innlán'!G21","v":0},".M.SFUINKV.XX.FJA.EIF.XXXX.SX.XXX.XXX.IS.N.M"]
[{"$f":"\"INN.\"&EIGNIR!$B$3&C6859","v":{"$error":"#N/A"}},{"$f":"'Sundurliðun Innlán'!G22","v":0},".M.SFUINKV.XX.INN.EIF.XXXX.SX.XXX.XXX.IS.N.M"]
[{"$f":"\"INN.\"&EIGNIR!$B$3&C6860","v":{"$error":"#N/A"}},{"$f":"'Sundurliðun Innlán'!G23","v":0},".M.SFUINKV.XX.SLI.EIF.XXXX.SX.XXX.XXX.IS.N.M"]
[{"$f":"\"INN.\"&EIGNIR!$B$3&C6861","v":{"$error":"#N/A"}},{"$f":"'Sundurliðun Innlán'!G24","v":0},".M.SFUINKV.XX.PEN.EIF.XXXX.SX.XXX.XXX.IS.N.M"]
[{"$f":"\"INN.\"&EIGNIR!$B$3&C6862","v":{"$error":"#N/A"}},{"$f":"'Sundurliðun Innlán'!G25","v":0},".M.SFUINKV.XX.SJO.EIF.XXXX.SX.XXX.XXX.IS.N.M"]
[{"$f":"\"INN.\"&EIGNIR!$B$3&C6863","v":{"$error":"#N/A"}},{"$f":"'Sundurliðun Innlán'!G26","v":0},".M.SFUINKV.XX.YFT.EIF.XXXX.SX.XXX.XXX.IS.N.M"]
[{"$f":"\"INN.\"&EIGNIR!$B$3&C6864","v":{"$error":"#N/A"}},{"$f":"'Sundurliðun Innlán'!G27","v":0},".M.SFUINKV.XX.SLY.EIF.XXXX.SX.XXX.XXX.IS.N.M"]
[{"$f":"\"INN.\"&EIGNIR!$B$3&C6865","v":{"$error":"#N/A"}},{"$f":"'Sundurliðun Innlán'!G28","v":0},".M.SFUINKV.XX.FHL.EIFI.XXXX.SX.XXX.XXX.IS.N.M"]
[{"$f":"\"INN.\"&EIGNIR!$B$3&C6866","v":{"$error":"#N/A"}},{"$f":"'Sundurliðun Innlán'!G29","v":0},".M.SFUINKV.XX.INF.EIF.XXXX.SX.XXX.XXX.IS.N.M"]
[{"$f":"\"INN.\"&EIGNIR!$B$3&C6867","v":{"$error":"#N/A"}},{"$f":"'Sundurliðun Innlán'!G30","v":0},".M.SFUINKV.XX.TRY.EIF.XXXX.SX.XXX.XXX.IS.N.M"]
[{"$f":"\"INN.\"&EIGNIR!$B$3&C6868","v":{"$error":"#N/A"}},{"$f":"'Sundurliðun Innlán'!G31","v":0},".M.SFUINKV.XX.LIF.EIF.XXXX.SX.XXX.XXX.IS.N.M"]
[{"$f":"\"INN.\"&EIGNIR!$B$3&C6869","v":{"$error":"#N/A"}},{"$f":"'Sundurliðun Innlán'!G46","v":0},".M.SFUINOI.XX.ATV.EIF.XXXX.SX.XXX.XXX.IS.N.M"]
[{"$f":"\"INN.\"&EIGNIR!$B$3&C6870","v":{"$error":"#N/A"}},{"$f":"'Sundurliðun Innlán'!G60","v":0},".M.SFUINOI.XX.FJA.EIF.XXXX.SX.XXX.XXX.IS.N.M"]
[{"$f":"\"INN.\"&EIGNIR!$B$3&C6871","v":{"$error":"#N/A"}},{"$f":"'Sundurliðun Innlán'!G61","v":0},".M.SFUINOI.XX.INN.EIF.XXXX.SX.XXX.XXX.IS.N.M"]
[{"$f":"\"INN.\"&EIGNIR!$B$3&C6872","v":{"$error":"#N/A"}},{"$f":"'Sundurliðun Innlán'!G62","v":0},".M.SFUINOI.XX.SLI.EIF.XXXX.SX.XXX.XXX.IS.N.M"]
[{"$f":"\"INN.\"&EIGNIR!$B$3&C6873","v":{"$error":"#N/A"}},{"$f":"'Sundurliðun Innlán'!G63","v":0},".M.SFUINOI.XX.PEN.EIF.XXXX.SX.XXX.XXX.IS.N.M"]
[{"$f":"\"INN.\"&EIGNIR!$B$3&C6874","v":{"$error":"#N/A"}},{"$f":"'Sundurliðun Innlán'!G64","v":0},".M.SFUINOI.XX.SJO.EIF.XXXX.SX.XXX.XXX.IS.N.M"]
[{"$f":"\"INN.\"&EIGNIR!$B$3&C6875","v":{"$error":"#N/A"}},{"$f":"'Sundurliðun Innlán'!G65","v":0},".M.SFUINOI.XX.YFT.EIF.XXXX.SX.XXX.XXX.IS.N.M"]
[{"$f":"\"INN.\"&EIGNIR!$B$3&C6876","v":{"$error":"#N/A"}},{"$f":"'Sundurliðun Innlán'!G66","v":0},".M.SFUINOI.XX.SLY.EIF.XXXX.SX.XXX.XXX.IS.N.M"]
[{"$f":"\"INN.\"&EIGNIR!$B$3&C6877","v":{"$error":"#N/A"}},{"$f":"'Sundurliðun Innlán'!G67","v":0},".M.SFUINOI.XX.FHL.EIF.XXXX.SX.XXX.XXX.IS.N.M"]
[{"$f":"\"INN.\"&EIGNIR!$B$3&C6878","v":{"$error":"#N/A"}},{"$f":"'Sundurliðun Innlán'!G68","v":0},".M.SFUINOI.XX.INF.EIF.XXXX.SX.XXX.XXX.IS.N.M"]
[{"$f":"\"INN.\"&EIGNIR!$B$3&C6879","v":{"$error":"#N/A"}},{"$f":"'Sundurliðun Innlán'!G69","v":0},".M.SFUINOI.XX.TRY.EIF.XXXX.SX.XXX.XXX.IS.N.M"]
[{"$f":"\"INN.\"&EIGNIR!$B$3&C6880","v":{"$error":"#N/A"}},{"$f":"'Sundurliðun Innlán'!G70","v":0},".M.SFUINOI.XX.LIF.EIF.XXXX.SX.XXX.XXX.IS.N.M"]
[{"$f":"\"INN.\"&EIGNIR!$B$3&C6881","v":{"$error":"#N/A"}},{"$f":"'Sundurliðun Innlán'!G85","v":0},".M.SFUINVI.XX.ATV.EIF.XXXX.SV.XXX.XXX.IS.N.M"]
[{"$f":"\"INN.\"&EIGNIR!$B$3&C6882","v":{"$error":"#N/A"}},{"$f":"'Sundurliðun Innlán'!G99","v":0},".M.SFUINVI.XX.FJA.EIF.XXXX.SV.XXX.XXX.IS.N.M"]
[{"$f":"\"INN.\"&EIGNIR!$B$3&C6883","v":{"$error":"#N/A"}},{"$f":"'Sundurliðun Innlán'!G100","v":0},".M.SFUINVI.XX.INN.EIF.XXXX.SV.XXX.XXX.IS.N.M"]
[{"$f":"\"INN.\"&EIGNIR!$B$3&C6884","v":{"$error":"#N/A"}},{"$f":"'Sundurliðun Innlán'!G101","v":0},".M.SFUINVI.XX.SLI.EIF.XXXX.SV.XXX.XXX.IS.N.M"]
[{"$f":"\"INN.\"&EIGNIR!$B$3&C6885","v":{"$error":"#N/A"}},{"$f":"'Sundurliðun Innlán'!G102","v":0},".M.SFUINVI.XX.PEN.EIF.XXXX.SV.XXX.XXX.IS.N.M"]
[{"$f":"\"INN.\"&EIGNIR!$B$3&C6886","v":{"$error":"#N/A"}},{"$f":"'Sundurliðun Innlán'!G103","v":0},".M.SFUINVI.XX.SJO.EIF.XXXX.SV.XXX.XXX.IS.N.M"]
[{"$f":"\"INN.\"&EIGNIR!$B$3&C6887","v":{"$error":"#N/A"}},{"$f":"'Sundurliðun Innlán'!G104","v":0},".M.SFUINVI.XX.YFT.EIF.XXXX.SV.XXX.XXX.IS.N.M"]
[{"$f":"\"INN.\"&EIGNIR!$B$3&C6888","v":{"$error":"#N/A"}},{"$f":"'Sundurliðun Innlán'!G105","v":0},".M.SFUINVI.XX.SLY.EIF.XXXX.SV.XXX.XXX.IS.N.M"]
[{"$f":"\"INN.\"&EIGNIR!$B$3&C6889","v":{"$error":"#N/A"}},{"$f":"'Sundurliðun Innlán'!G106","v":0},".M.SFUINVI.XX.FHL.EIF.XXXX.SV.XXX.XXX.IS.N.M"]
[{"$f":"\"INN.\"&EIGNIR!$B$3&C6890","v":{"$error":"#N/A"}},{"$f":"'Sundurliðun Innlán'!G107","v":0},".M.SFUINVI.XX.INF.EIF.XXXX.SV.XXX.XXX.IS.N.M"]
[{"$f":"\"INN.\"&EIGNIR!$B$3&C6891","v":{"$error":"#N/A"}},{"$f":"'Sundurliðun Innlán'!G108","v":0},".M.SFUINVI.XX.TRY.EIF.XXXX.SV.XXX.XXX.IS.N.M"]
[{"$f":"\"INN.\"&EIGNIR!$B$3&C6892","v":{"$error":"#N/A"}},{"$f":"'Sundurliðun Innlán'!G109","v":0},".M.SFUINVI.XX.LIF.EIF.XXXX.SV.XXX.XXX.IS.N.M"]
[{"$f":"\"INN.\"&EIGNIR!$B$3&C6893","v":{"$error":"#N/A"}},{"$f":"'Sundurliðun Innlán'!G130","v":0},".M.SFUINBI.XX.ATV.EIF.XXXX.SX.XXX.XXX.IS.N.M"]
[{"$f":"\"INN.\"&EIGNIR!$B$3&C6894","v":{"$error":"#N/A"}},{"$f":"'Sundurliðun Innlán'!G144","v":0},".M.SFUINBI.XX.FJA.EIF.XXXX.SX.XXX.XXX.IS.N.M"]
[{"$f":"\"INN.\"&EIGNIR!$B$3&C6895","v":{"$error":"#N/A"}},{"$f":"'Sundurliðun Innlán'!G145","v":0},".M.SFUINBI.XX.INN.EIF.XXXX.SX.XXX.XXX.IS.N.M"]
[{"$f":"\"INN.\"&EIGNIR!$B$3&C6896","v":{"$error":"#N/A"}},{"$f":"'Sundurliðun Innlán'!G146","v":0},".M.SFUINBI.XX.SLI.EIF.XXXX.SX.XXX.XXX.IS.N.M"]
[{"$f":"\"INN.\"&EIGNIR!$B$3&C6897","v":{"$error":"#N/A"}},{"$f":"'Sundurliðun Innlán'!G147","v":0},".M.SFUINBI.XX.PEN.EIF.XXXX.SX.XXX.XXX.IS.N.M"]
[{"$f":"\"INN.\"&EIGNIR!$B$3&C6898","v":{"$error":"#N/A"}},{"$f":"'Sundurliðun Innlán'!G148","v":0},".M.SFUINBI.XX.SJO.EIF.XXXX.SX.XXX.XXX.IS.N.M"]
[{"$f":"\"INN.\"&EIGNIR!$B$3&C6899","v":{"$error":"#N/A"}},{"$f":"'Sundurliðun Innlán'!G149","v":0},".M.SFUINBI.XX.YFT.EIF.XXXX.SX.XXX.XXX.IS.N.M"]
[{"$f":"\"INN.\"&EIGNIR!$B$3&C6900","v":{"$error":"#N/A"}},{"$f":"'Sundurliðun Innlán'!G150","v":0},".M.SFUINBI.XX.SLY.EIF.XXXX.SX.XXX.XXX.IS.N.M"]
[{"$f":"\"INN.\"&EIGNIR!$B$3&C6901","v":{"$error":"#N/A"}},{"$f":"'Sundurliðun Innlán'!G151","v":0},".M.SFUINBI.XX.FHL.EIF.XXXX.SX.XXX.XXX.IS.N.M"]
[{"$f":"\"INN.\"&EIGNIR!$B$3&C6902","v":{"$error":"#N/A"}},{"$f":"'Sundurliðun Innlán'!G152","v":0},".M.SFUINBI.XX.INF.EIF.XXXX.SX.XXX.XXX.IS.N.M"]
[{"$f":"\"INN.\"&EIGNIR!$B$3&C6903","v":{"$error":"#N/A"}},{"$f":"'Sundurliðun Innlán'!G153","v":0},".M.SFUINBI.XX.TRY.EIF.XXXX.SX.XXX.XXX.IS.N.M"]
[{"$f":"\"INN.\"&EIGNIR!$B$3&C6904","v":{"$error":"#N/A"}},{"$f":"'Sundurliðun Innlán'!G154","v":0},".M.SFUINBI.XX.LIF.EIF.XXXX.SX.XXX.XXX.IS.N.M"]
[{"$f":"\"INN.\"&EIGNIR!$B$3&C6905","v":{"$error":"#N/A"}},{"$f":"'Sundurliðun Innlán'!H5","v":0},".M.SFUIN$$.XX.XXX.XXX.XXXX.SX.XXX.ISK.IS.N.M"]
[{"$f":"\"INN.\"&EIGNIR!$B$3&C6906","v":{"$error":"#N/A"}},{"$f":"'Sundurliðun Innlán'!H6","v":0},".M.SFUINKV.XX.$$$.XXX.XXXX.SX.XXX.ISK.IS.N.M","//Sundurliðun innlán, ISK"]
[{"$f":"\"INN.\"&EIGNIR!$B$3&C6907","v":{"$error":"#N/A"}},{"$f":"'Sundurliðun Innlán'!H7","v":0},".M.SFUINKV.XX.ATV.XXX.XXXX.SX.XXX.ISK.IS.N.M"]
[{"$f":"\"INN.\"&EIGNIR!$B$3&C6908","v":{"$error":"#N/A"}},{"$f":"'Sundurliðun Innlán'!H21","v":0},".M.SFUINKV.XX.FJA.XXX.XXXX.SX.XXX.ISK.IS.N.M"]
[{"$f":"\"INN.\"&EIGNIR!$B$3&C6909","v":{"$error":"#N/A"}},{"$f":"'Sundurliðun Innlán'!H22","v":0},".M.SFUINKV.XX.INN.XXX.XXXX.SX.XXX.ISK.IS.N.M"]
[{"$f":"\"INN.\"&EIGNIR!$B$3&C6910","v":{"$error":"#N/A"}},{"$f":"'Sundurliðun Innlán'!H23","v":0},".M.SFUINKV.XX.SLI.XXX.XXXX.SX.XXX.ISK.IS.N.M"]
[{"$f":"\"INN.\"&EIGNIR!$B$3&C6911","v":{"$error":"#N/A"}},{"$f":"'Sundurliðun Innlán'!H24","v":0},".M.SFUINKV.XX.PEN.XXX.XXXX.SX.XXX.ISK.IS.N.M"]
[{"$f":"\"INN.\"&EIGNIR!$B$3&C6912","v":{"$error":"#N/A"}},{"$f":"'Sundurliðun Innlán'!H25","v":0},".M.SFUINKV.XX.SJO.XXX.XXXX.SX.XXX.ISK.IS.N.M"]
[{"$f":"\"INN.\"&EIGNIR!$B$3&C6913","v":{"$error":"#N/A"}},{"$f":"'Sundurliðun Innlán'!H26","v":0},".M.SFUINKV.XX.YFT.XXX.XXXX.SX.XXX.ISK.IS.N.M"]
[{"$f":"\"INN.\"&EIGNIR!$B$3&C6914","v":{"$error":"#N/A"}},{"$f":"'Sundurliðun Innlán'!H27","v":0},".M.SFUINKV.XX.SLY.XXX.XXXX.SX.XXX.ISK.IS.N.M"]
[{"$f":"\"INN.\"&EIGNIR!$B$3&C6915","v":{"$error":"#N/A"}},{"$f":"'Sundurliðun Innlán'!H28","v":0},".M.SFUINKV.XX.FHL.XXX.XXXX.SX.XXX.ISK.IS.N.M"]
[{"$f":"\"INN.\"&EIGNIR!$B$3&C6916","v":{"$error":"#N/A"}},{"$f":"'Sundurliðun Innlán'!H29","v":0},".M.SFUINKV.XX.INF.XXX.XXXX.SX.XXX.ISK.IS.N.M"]
[{"$f":"\"INN.\"&EIGNIR!$B$3&C6917","v":{"$error":"#N/A"}},{"$f":"'Sundurliðun Innlán'!H30","v":0},".M.SFUINKV.XX.TRY.XXX.XXXX.SX.XXX.ISK.IS.N.M"]
[{"$f":"\"INN.\"&EIGNIR!$B$3&C6918","v":{"$error":"#N/A"}},{"$f":"'Sundurliðun Innlán'!H31","v":0},".M.SFUINKV.XX.LIF.XXX.XXXX.SX.XXX.ISK.IS.N.M"]
[{"$f":"\"INN.\"&EIGNIR!$B$3&C6919","v":{"$error":"#N/A"}},{"$f":"'Sundurliðun Innlán'!H32","v":0},".M.SFUINKV.XX.OPI.XXX.XXXX.SX.XXX.ISK.IS.N.M"]
[{"$f":"\"INN.\"&EIGNIR!$B$3&C6920","v":{"$error":"#N/A"}},{"$f":"'Sundurliðun Innlán'!H33","v":0},".M.SFUINKV.XX.RSS.XXX.XXXX.SX.XXX.ISK.IS.N.M"]
[{"$f":"\"INN.\"&EIGNIR!$B$3&C6921","v":{"$error":"#N/A"}},{"$f":"'Sundurliðun Innlán'!H34","v":0},".M.SFUINKV.XX.BAJ.XXX.XXXX.SX.XXX.ISK.IS.N.M"]
[{"$f":"\"INN.\"&EIGNIR!$B$3&C6922","v":{"$error":"#N/A"}},{"$f":"'Sundurliðun Innlán'!H35","v":0},".M.SFUINKV.XX.EIN.XXX.XXXX.SX.XXX.ISK.IS.N.M"]
[{"$f":"\"INN.\"&EIGNIR!$B$3&C6923","v":{"$error":"#N/A"}},{"$f":"'Sundurliðun Innlán'!H36","v":0},".M.SFUINKV.XX.NPH.XXX.XXXX.SX.XXX.ISK.IS.N.M"]
[{"$f":"\"INN.\"&EIGNIR!$B$3&C6924","v":{"$error":"#N/A"}},{"$f":"'Sundurliðun Innlán'!H37","v":0},".M.SFUINKV.XX.ERL.XXX.XXXX.SX.XXX.ISK.IS.N.M"]
[{"$f":"\"INN.\"&EIGNIR!$B$3&C6925","v":{"$error":"#N/A"}},{"$f":"'Sundurliðun Innlán'!H38","v":0},".M.SFUINKV.XXX.ERS.XXX.XXXX.SX.XXX.ISK.IS.N.M"]
[{"$f":"\"INN.\"&EIGNIR!$B$3&C6926","v":{"$error":"#N/A"}},{"$f":"'Sundurliðun Innlán'!H39","v":0},".M.SFUINKV.XXX.ERI.XXX.XXXX.SX.XXX.ISK.IS.N.M"]
[{"$f":"\"INN.\"&EIGNIR!$B$3&C6927","v":{"$error":"#N/A"}},{"$f":"'Sundurliðun Innlán'!H40","v":0},".M.SFUINKV.XXX.ERP.XXX.XXXX.SX.XXX.ISK.IS.N.M"]
[{"$f":"\"INN.\"&EIGNIR!$B$3&C6928","v":{"$error":"#N/A"}},{"$f":"'Sundurliðun Innlán'!H41","v":0},".M.SFUINKV.XXX.ERV.XXX.XXXX.SX.XXX.ISK.IS.N.M"]
[{"$f":"\"INN.\"&EIGNIR!$B$3&C6929","v":{"$error":"#N/A"}},{"$f":"'Sundurliðun Innlán'!H42","v":0},".M.SFUINKV.XXX.ERF.XXX.XXXX.SX.XXX.ISK.IS.N.M"]
[{"$f":"\"INN.\"&EIGNIR!$B$3&C6930","v":{"$error":"#N/A"}},{"$f":"'Sundurliðun Innlán'!H43","v":0},".M.SFUINKV.XXX.ERO.XXX.XXXX.SX.XXX.ISK.IS.N.M"]
[{"$f":"\"INN.\"&EIGNIR!$B$3&C6931","v":{"$error":"#N/A"}},{"$f":"'Sundurliðun Innlán'!H44","v":0},".M.SFUINKV.XXX.ERA.XXX.XXXX.SX.XXX.ISK.IS.N.M"]
[{"$f":"\"INN.\"&EIGNIR!$B$3&C6932","v":{"$error":"#N/A"}},{"$f":"'Sundurliðun Innlán'!H45","v":0},".M.SFUINOI.XX.$$$.XXX.XXXX.SX.XXX.ISK.IS.N.M"]
[{"$f":"\"INN.\"&EIGNIR!$B$3&C6933","v":{"$error":"#N/A"}},{"$f":"'Sundurliðun Innlán'!H46","v":0},".M.SFUINOI.XX.ATV.XXX.XXXX.SX.XXX.ISK.IS.N.M"]
[{"$f":"\"INN.\"&EIGNIR!$B$3&C6934","v":{"$error":"#N/A"}},{"$f":"'Sundurliðun Innlán'!H60","v":0},".M.SFUINOI.XX.FJA.XXX.XXXX.SX.XXX.ISK.IS.N.M"]
[{"$f":"\"INN.\"&EIGNIR!$B$3&C6935","v":{"$error":"#N/A"}},{"$f":"'Sundurliðun Innlán'!H61","v":0},".M.SFUINOI.XX.INN.XXX.XXXX.SX.XXX.ISK.IS.N.M"]
[{"$f":"\"INN.\"&EIGNIR!$B$3&C6936","v":{"$error":"#N/A"}},{"$f":"'Sundurliðun Innlán'!H62","v":0},".M.SFUINOI.XX.SLI.XXX.XXXX.SX.XXX.ISK.IS.N.M"]
[{"$f":"\"INN.\"&EIGNIR!$B$3&C6937","v":{"$error":"#N/A"}},{"$f":"'Sundurliðun Innlán'!H63","v":0},".M.SFUINOI.XX.PEN.XXX.XXXX.SX.XXX.ISK.IS.N.M"]
[{"$f":"\"INN.\"&EIGNIR!$B$3&C6938","v":{"$error":"#N/A"}},{"$f":"'Sundurliðun Innlán'!H64","v":0},".M.SFUINOI.XX.SJO.XXX.XXXX.SX.XXX.ISK.IS.N.M"]
[{"$f":"\"INN.\"&EIGNIR!$B$3&C6939","v":{"$error":"#N/A"}},{"$f":"'Sundurliðun Innlán'!H65","v":0},".M.SFUINOI.XX.YFT.XXX.XXXX.SX.XXX.ISK.IS.N.M"]
[{"$f":"\"INN.\"&EIGNIR!$B$3&C6940","v":{"$error":"#N/A"}},{"$f":"'Sundurliðun Innlán'!H66","v":0},".M.SFUINOI.XX.SLY.XXX.XXXX.SX.XXX.ISK.IS.N.M"]
[{"$f":"\"INN.\"&EIGNIR!$B$3&C6941","v":{"$error":"#N/A"}},{"$f":"'Sundurliðun Innlán'!H67","v":0},".M.SFUINOI.XX.FHL.XXX.XXXX.SX.XXX.ISK.IS.N.M"]
[{"$f":"\"INN.\"&EIGNIR!$B$3&C6942","v":{"$error":"#N/A"}},{"$f":"'Sundurliðun Innlán'!H68","v":0},".M.SFUINOI.XX.INF.XXX.XXXX.SX.XXX.ISK.IS.N.M"]
[{"$f":"\"INN.\"&EIGNIR!$B$3&C6943","v":{"$error":"#N/A"}},{"$f":"'Sundurliðun Innlán'!H69","v":0},".M.SFUINOI.XX.TRY.XXX.XXXX.SX.XXX.ISK.IS.N.M"]
[{"$f":"\"INN.\"&EIGNIR!$B$3&C6944","v":{"$error":"#N/A"}},{"$f":"'Sundurliðun Innlán'!H70","v":0},".M.SFUINOI.XX.LIF.XXX.XXXX.SX.XXX.ISK.IS.N.M"]
[{"$f":"\"INN.\"&EIGNIR!$B$3&C6945","v":{"$error":"#N/A"}},{"$f":"'Sundurliðun Innlán'!H71","v":0},".M.SFUINOI.XX.OPI.XXX.XXXX.SX.XXX.ISK.IS.N.M"]
[{"$f":"\"INN.\"&EIGNIR!$B$3&C6946","v":{"$error":"#N/A"}},{"$f":"'Sundurliðun Innlán'!H72","v":0},".M.SFUINOI.XX.RSS.XXX.XXXX.SX.XXX.ISK.IS.N.M"]
[{"$f":"\"INN.\"&EIGNIR!$B$3&C6947","v":{"$error":"#N/A"}},{"$f":"'Sundurliðun Innlán'!H73","v":0},".M.SFUINOI.XX.BAJ.XXX.XXXX.SX.XXX.ISK.IS.N.M"]
[{"$f":"\"INN.\"&EIGNIR!$B$3&C6948","v":{"$error":"#N/A"}},{"$f":"'Sundurliðun Innlán'!H74","v":0},".M.SFUINOI.XX.EIN.XXX.XXXX.SX.XXX.ISK.IS.N.M"]
[{"$f":"\"INN.\"&EIGNIR!$B$3&C6949","v":{"$error":"#N/A"}},{"$f":"'Sundurliðun Innlán'!H75","v":0},".M.SFUINOI.XX.NPH.XXX.XXXX.SX.XXX.ISK.IS.N.M"]
[{"$f":"\"INN.\"&EIGNIR!$B$3&C6950","v":{"$error":"#N/A"}},{"$f":"'Sundurliðun Innlán'!H76","v":0},".M.SFUINOI.XX.ERL.XXX.XXXX.SX.XXX.ISK.IS.N.M"]
[{"$f":"\"INN.\"&EIGNIR!$B$3&C6951","v":{"$error":"#N/A"}},{"$f":"'Sundurliðun Innlán'!H77","v":0},".M.SFUINOI.XX.ERS.XXX.XXXX.SX.XXX.ISK.IS.N.M"]
[{"$f":"\"INN.\"&EIGNIR!$B$3&C6952","v":{"$error":"#N/A"}},{"$f":"'Sundurliðun Innlán'!H78","v":0},".M.SFUINOI.XX.ERI.XXX.XXXX.SX.XXX.ISK.IS.N.M"]
[{"$f":"\"INN.\"&EIGNIR!$B$3&C6953","v":{"$error":"#N/A"}},{"$f":"'Sundurliðun Innlán'!H79","v":0},".M.SFUINOI.XX.ERP.XXX.XXXX.SX.XXX.ISK.IS.N.M"]
[{"$f":"\"INN.\"&EIGNIR!$B$3&C6954","v":{"$error":"#N/A"}},{"$f":"'Sundurliðun Innlán'!H80","v":0},".M.SFUINOI.XX.ERV.XXX.XXXX.SX.XXX.ISK.IS.N.M"]
[{"$f":"\"INN.\"&EIGNIR!$B$3&C6955","v":{"$error":"#N/A"}},{"$f":"'Sundurliðun Innlán'!H81","v":0},".M.SFUINOI.XX.ERF.XXX.XXXX.SX.XXX.ISK.IS.N.M"]
[{"$f":"\"INN.\"&EIGNIR!$B$3&C6956","v":{"$error":"#N/A"}},{"$f":"'Sundurliðun Innlán'!H82","v":0},".M.SFUINOI.XX.ERO.XXX.XXXX.SX.XXX.ISK.IS.N.M"]
[{"$f":"\"INN.\"&EIGNIR!$B$3&C6957","v":{"$error":"#N/A"}},{"$f":"'Sundurliðun Innlán'!H83","v":0},".M.SFUINOI.XX.ERA.XXX.XXXX.SX.XXX.ISK.IS.N.M"]
[{"$f":"\"INN.\"&EIGNIR!$B$3&C6958","v":{"$error":"#N/A"}},{"$f":"'Sundurliðun Innlán'!H84","v":0},".M.SFUINVI.XX.$$$.XXX.XXXX.SV.XXX.ISK.IS.N.M"]
[{"$f":"\"INN.\"&EIGNIR!$B$3&C6959","v":{"$error":"#N/A"}},{"$f":"'Sundurliðun Innlán'!H85","v":0},".M.SFUINVI.XX.ATV.XXX.XXXX.SV.XXX.ISK.IS.N.M"]
[{"$f":"\"INN.\"&EIGNIR!$B$3&C6960","v":{"$error":"#N/A"}},{"$f":"'Sundurliðun Innlán'!H99","v":0},".M.SFUINVI.XX.FJA.XXX.XXXX.SV.XXX.ISK.IS.N.M"]
[{"$f":"\"INN.\"&EIGNIR!$B$3&C6961","v":{"$error":"#N/A"}},{"$f":"'Sundurliðun Innlán'!H100","v":0},".M.SFUINVI.XX.INN.XXX.XXXX.SV.XXX.ISK.IS.N.M"]
[{"$f":"\"INN.\"&EIGNIR!$B$3&C6962","v":{"$error":"#N/A"}},{"$f":"'Sundurliðun Innlán'!H101","v":0},".M.SFUINVI.XX.SLI.XXX.XXXX.SV.XXX.ISK.IS.N.M"]
[{"$f":"\"INN.\"&EIGNIR!$B$3&C6963","v":{"$error":"#N/A"}},{"$f":"'Sundurliðun Innlán'!H102","v":0},".M.SFUINVI.XX.PEN.XXX.XXXX.SV.XXX.ISK.IS.N.M"]
[{"$f":"\"INN.\"&EIGNIR!$B$3&C6964","v":{"$error":"#N/A"}},{"$f":"'Sundurliðun Innlán'!H103","v":0},".M.SFUINVI.XX.SJO.XXX.XXXX.SV.XXX.ISK.IS.N.M"]
[{"$f":"\"INN.\"&EIGNIR!$B$3&C6965","v":{"$error":"#N/A"}},{"$f":"'Sundurliðun Innlán'!H104","v":0},".M.SFUINVI.XX.YFT.XXX.XXXX.SV.XXX.ISK.IS.N.M"]
[{"$f":"\"INN.\"&EIGNIR!$B$3&C6966","v":{"$error":"#N/A"}},{"$f":"'Sundurliðun Innlán'!H105","v":0},".M.SFUINVI.XX.SLY.XXX.XXXX.SV.XXX.ISK.IS.N.M"]
[{"$f":"\"INN.\"&EIGNIR!$B$3&C6967","v":{"$error":"#N/A"}},{"$f":"'Sundurliðun Innlán'!H106","v":0},".M.SFUINVI.XX.FHL.XXX.XXXX.SV.XXX.ISK.IS.N.M"]
[{"$f":"\"INN.\"&EIGNIR!$B$3&C6968","v":{"$error":"#N/A"}},{"$f":"'Sundurliðun Innlán'!H107","v":0},".M.SFUINVI.XX.INF.XXX.XXXX.SV.XXX.ISK.IS.N.M"]
[{"$f":"\"INN.\"&EIGNIR!$B$3&C6969","v":{"$error":"#N/A"}},{"$f":"'Sundurliðun Innlán'!H108","v":0},".M.SFUINVI.XX.TRY.XXX.XXXX.SV.XXX.ISK.IS.N.M"]
[{"$f":"\"INN.\"&EIGNIR!$B$3&C6970","v":{"$error":"#N/A"}},{"$f":"'Sundurliðun Innlán'!H109","v":0},".M.SFUINVI.XX.LIF.XXX.XXXX.SV.XXX.ISK.IS.N.M"]
[{"$f":"\"INN.\"&EIGNIR!$B$3&C6971","v":{"$error":"#N/A"}},{"$f":"'Sundurliðun Innlán'!H110","v":0},".M.SFUINVI.XX.OPI.XXX.XXXX.SV.XXX.ISK.IS.N.M"]
[{"$f":"\"INN.\"&EIGNIR!$B$3&C6972","v":{"$error":"#N/A"}},{"$f":"'Sundurliðun Innlán'!H111","v":0},".M.SFUINVI.XX.RSS.XXX.XXXX.SV.XXX.ISK.IS.N.M"]
[{"$f":"\"INN.\"&EIGNIR!$B$3&C6973","v":{"$error":"#N/A"}},{"$f":"'Sundurliðun Innlán'!H112","v":0},".M.SFUINVI.XX.BAJ.XXX.XXXX.SV.XXX.ISK.IS.N.M"]
[{"$f":"\"INN.\"&EIGNIR!$B$3&C6974","v":{"$error":"#N/A"}},{"$f":"'Sundurliðun Innlán'!H113","v":0},".M.SFUINVI.XX.EIN.XXX.XXXX.SV.XXX.ISK.IS.N.M"]
[{"$f":"\"INN.\"&EIGNIR!$B$3&C6975","v":{"$error":"#N/A"}},{"$f":"'Sundurliðun Innlán'!H114","v":0},".M.SFUINVI.XX.NPH.XXX.XXXX.SV.XXX.ISK.IS.N.M"]
[{"$f":"\"INN.\"&EIGNIR!$B$3&C6976","v":{"$error":"#N/A"}},{"$f":"'Sundurliðun Innlán'!H115","v":0},".M.SFUINVI.XX.ERL.XXX.XXXX.SV.XXX.ISK.IS.N.M"]
[{"$f":"\"INN.\"&EIGNIR!$B$3&C6977","v":{"$error":"#N/A"}},{"$f":"'Sundurliðun Innlán'!H116","v":0},".M.SFUINVI.XX.ERS.XXX.XXXX.SV.XXX.ISK.IS.N.M"]
[{"$f":"\"INN.\"&EIGNIR!$B$3&C6978","v":{"$error":"#N/A"}},{"$f":"'Sundurliðun Innlán'!H117","v":0},".M.SFUINVI.XX.ERI.XXX.XXXX.SV.XXX.ISK.IS.N.M"]
[{"$f":"\"INN.\"&EIGNIR!$B$3&C6979","v":{"$error":"#N/A"}},{"$f":"'Sundurliðun Innlán'!H118","v":0},".M.SFUINVI.XX.ERP.XXX.XXXX.SV.XXX.ISK.IS.N.M"]
[{"$f":"\"INN.\"&EIGNIR!$B$3&C6980","v":{"$error":"#N/A"}},{"$f":"'Sundurliðun Innlán'!H119","v":0},".M.SFUINVI.XX.ERV.XXX.XXXX.SV.XXX.ISK.IS.N.M"]
[{"$f":"\"INN.\"&EIGNIR!$B$3&C6981","v":{"$error":"#N/A"}},{"$f":"'Sundurliðun Innlán'!H120","v":0},".M.SFUINVI.XX.ERF.XXX.XXXX.SV.XXX.ISK.IS.N.M"]
[{"$f":"\"INN.\"&EIGNIR!$B$3&C6982","v":{"$error":"#N/A"}},{"$f":"'Sundurliðun Innlán'!H121","v":0},".M.SFUINVI.XX.ERO.XXX.XXXX.SV.XXX.ISK.IS.N.M"]
[{"$f":"\"INN.\"&EIGNIR!$B$3&C6983","v":{"$error":"#N/A"}},{"$f":"'Sundurliðun Innlán'!H122","v":0},".M.SFUINVI.XX.ERA.XXX.XXXX.SV.XXX.ISK.IS.N.M"]
[{"$f":"\"INN.\"&EIGNIR!$B$3&C6984","v":{"$error":"#N/A"}},{"$f":"'Sundurliðun Innlán'!H123","v":0},".M.SFUINOR.XX.XXX.XXX.XXXX.SV.XXX.ISK.IS.N.M"]
[{"$f":"\"INN.\"&EIGNIR!$B$3&C6985","v":{"$error":"#N/A"}},{"$f":"'Sundurliðun Innlán'!H124","v":0},".M.SFUINOR.XX.EIN.XXX.XXXX.SV.XXX.ISK.IS.N.M"]
[{"$f":"\"INN.\"&EIGNIR!$B$3&C6986","v":{"$error":"#N/A"}},{"$f":"'Sundurliðun Innlán'!H125","v":0},".M.SFUINOR.XX.ERL.XXX.XXXX.SV.XXX.ISK.IS.N.M"]
[{"$f":"\"INN.\"&EIGNIR!$B$3&C6987","v":{"$error":"#N/A"}},{"$f":"'Sundurliðun Innlán'!H126","v":0},".M.SFUINVB.XX.XXX.XXX.XXXX.SX.XXX.ISK.IS.N.M"]
[{"$f":"\"INN.\"&EIGNIR!$B$3&C6988","v":{"$error":"#N/A"}},{"$f":"'Sundurliðun Innlán'!H127","v":0},".M.SFUINVB.XX.EIN.XXX.XXXX.SX.XXX.ISK.IS.N.M"]
[{"$f":"\"INN.\"&EIGNIR!$B$3&C6989","v":{"$error":"#N/A"}},{"$f":"'Sundurliðun Innlán'!H128","v":0},".M.SFUINVB.XX.ERL.XXX.XXXX.SX.XXX.ISK.IS.N.M"]
[{"$f":"\"INN.\"&EIGNIR!$B$3&C6990","v":{"$error":"#N/A"}},{"$f":"'Sundurliðun Innlán'!H129","v":0},".M.SFUINBI.XX.$$$.XXX.XXXX.SX.XXX.ISK.IS.N.M"]
[{"$f":"\"INN.\"&EIGNIR!$B$3&C6991","v":{"$error":"#N/A"}},{"$f":"'Sundurliðun Innlán'!H130","v":0},".M.SFUINBI.XX.ATV.XXX.XXXX.SX.XXX.ISK.IS.N.M"]
[{"$f":"\"INN.\"&EIGNIR!$B$3&C6992","v":{"$error":"#N/A"}},{"$f":"'Sundurliðun Innlán'!H144","v":0},".M.SFUINBI.XX.FJA.XXX.XXXX.SX.XXX.ISK.IS.N.M"]
[{"$f":"\"INN.\"&EIGNIR!$B$3&C6993","v":{"$error":"#N/A"}},{"$f":"'Sundurliðun Innlán'!H145","v":0},".M.SFUINBI.XX.INN.XXX.XXXX.SX.XXX.ISK.IS.N.M"]
[{"$f":"\"INN.\"&EIGNIR!$B$3&C6994","v":{"$error":"#N/A"}},{"$f":"'Sundurliðun Innlán'!H146","v":0},".M.SFUINBI.XX.SLI.XXX.XXXX.SX.XXX.ISK.IS.N.M"]
[{"$f":"\"INN.\"&EIGNIR!$B$3&C6995","v":{"$error":"#N/A"}},{"$f":"'Sundurliðun Innlán'!H147","v":0},".M.SFUINBI.XX.PEN.XXX.XXXX.SX.XXX.ISK.IS.N.M"]
[{"$f":"\"INN.\"&EIGNIR!$B$3&C6996","v":{"$error":"#N/A"}},{"$f":"'Sundurliðun Innlán'!H148","v":0},".M.SFUINBI.XX.SJO.XXX.XXXX.SX.XXX.ISK.IS.N.M"]
[{"$f":"\"INN.\"&EIGNIR!$B$3&C6997","v":{"$error":"#N/A"}},{"$f":"'Sundurliðun Innlán'!H149","v":0},".M.SFUINBI.XX.YFT.XXX.XXXX.SX.XXX.ISK.IS.N.M"]
[{"$f":"\"INN.\"&EIGNIR!$B$3&C6998","v":{"$error":"#N/A"}},{"$f":"'Sundurliðun Innlán'!H150","v":0},".M.SFUINBI.XX.SLY.XXX.XXXX.SX.XXX.ISK.IS.N.M"]
[{"$f":"\"INN.\"&EIGNIR!$B$3&C6999","v":{"$error":"#N/A"}},{"$f":"'Sundurliðun Innlán'!H151","v":0},".M.SFUINBI.XX.FHL.XXX.XXXX.SX.XXX.ISK.IS.N.M"]
[{"$f":"\"INN.\"&EIGNIR!$B$3&C7000","v":{"$error":"#N/A"}},{"$f":"'Sundurliðun Innlán'!H152","v":0},".M.SFUINBI.XX.INF.XXX.XXXX.SX.XXX.ISK.IS.N.M"]
[{"$f":"\"INN.\"&EIGNIR!$B$3&C7001","v":{"$error":"#N/A"}},{"$f":"'Sundurliðun Innlán'!H153","v":0},".M.SFUINBI.XX.TRY.XXX.XXXX.SX.XXX.ISK.IS.N.M"]
[{"$f":"\"INN.\"&EIGNIR!$B$3&C7002","v":{"$error":"#N/A"}},{"$f":"'Sundurliðun Innlán'!H154","v":0},".M.SFUINBI.XX.LIF.XXX.XXXX.SX.XXX.ISK.IS.N.M"]
[{"$f":"\"INN.\"&EIGNIR!$B$3&C7003","v":{"$error":"#N/A"}},{"$f":"'Sundurliðun Innlán'!H155","v":0},".M.SFUINBI.XX.OPI.XXX.XXXX.SX.XXX.ISK.IS.N.M"]
[{"$f":"\"INN.\"&EIGNIR!$B$3&C7004","v":{"$error":"#N/A"}},{"$f":"'Sundurliðun Innlán'!H156","v":0},".M.SFUINBI.XX.RSS.XXX.XXXX.SX.XXX.ISK.IS.N.M"]
[{"$f":"\"INN.\"&EIGNIR!$B$3&C7005","v":{"$error":"#N/A"}},{"$f":"'Sundurliðun Innlán'!H157","v":0},".M.SFUINBI.XX.BAJ.XXX.XXXX.SX.XXX.ISK.IS.N.M"]
[{"$f":"\"INN.\"&EIGNIR!$B$3&C7006","v":{"$error":"#N/A"}},{"$f":"'Sundurliðun Innlán'!H158","v":0},".M.SFUINBI.XX.EIN.XXX.XXXX.SX.XXX.ISK.IS.N.M"]
[{"$f":"\"INN.\"&EIGNIR!$B$3&C7007","v":{"$error":"#N/A"}},{"$f":"'Sundurliðun Innlán'!H159","v":0},".M.SFUINBI.XX.NPH.XXX.XXXX.SX.XXX.ISK.IS.N.M"]
[{"$f":"\"INN.\"&EIGNIR!$B$3&C7008","v":{"$error":"#N/A"}},{"$f":"'Sundurliðun Innlán'!H160","v":0},".M.SFUINBI.XX.ERL.XXX.XXXX.SX.XXX.ISK.IS.N.M"]
[{"$f":"\"INN.\"&EIGNIR!$B$3&C7009","v":{"$error":"#N/A"}},{"$f":"'Sundurliðun Innlán'!H161","v":0},".M.SFUINBI.XX.ERS.XXX.XXXX.SX.XXX.ISK.IS.N.M"]
[{"$f":"\"INN.\"&EIGNIR!$B$3&C7010","v":{"$error":"#N/A"}},{"$f":"'Sundurliðun Innlán'!H162","v":0},".M.SFUINBI.XX.ERI.XXX.XXXX.SX.XXX.ISK.IS.N.M"]
[{"$f":"\"INN.\"&EIGNIR!$B$3&C7011","v":{"$error":"#N/A"}},{"$f":"'Sundurliðun Innlán'!H163","v":0},".M.SFUINBI.XX.ERP.XXX.XXXX.SX.XXX.ISK.IS.N.M"]
[{"$f":"\"INN.\"&EIGNIR!$B$3&C7012","v":{"$error":"#N/A"}},{"$f":"'Sundurliðun Innlán'!H164","v":0},".M.SFUINBI.XX.ERV.XXX.XXXX.SX.XXX.ISK.IS.N.M"]
[{"$f":"\"INN.\"&EIGNIR!$B$3&C7013","v":{"$error":"#N/A"}},{"$f":"'Sundurliðun Innlán'!H165","v":0},".M.SFUINBI.XX.ERF.XXX.XXXX.SX.XXX.ISK.IS.N.M"]
[{"$f":"\"INN.\"&EIGNIR!$B$3&C7014","v":{"$error":"#N/A"}},{"$f":"'Sundurliðun Innlán'!H166","v":0},".M.SFUINBI.XX.ERO.XXX.XXXX.SX.XXX.ISK.IS.N.M"]
[{"$f":"\"INN.\"&EIGNIR!$B$3&C7015","v":{"$error":"#N/A"}},{"$f":"'Sundurliðun Innlán'!H167","v":0},".M.SFUINBI.XX.ERA.XXX.XXXX.SX.XXX.ISK.IS.N.M"]
[{"$f":"\"INN.\"&EIGNIR!$B$3&C7016","v":{"$error":"#N/A"}},{"$f":"'Sundurliðun Innlán'!I5","v":0},".M.SFUIN$$.XX.XXX.XXX.XXXX.SX.XXX.EUR.IS.N.M","//Sundurliðun innlána, EUR"]
[{"$f":"\"INN.\"&EIGNIR!$B$3&C7017","v":{"$error":"#N/A"}},{"$f":"'Sundurliðun Innlán'!I6","v":0},".M.SFUINKV.XX.$$$.XXX.XXXX.SX.XXX.EUR.IS.N.M"]
[{"$f":"\"INN.\"&EIGNIR!$B$3&C7018","v":{"$error":"#N/A"}},{"$f":"'Sundurliðun Innlán'!I7","v":0},".M.SFUINKV.XX.ATV.XXX.XXXX.SX.XXX.EUR.IS.N.M"]
[{"$f":"\"INN.\"&EIGNIR!$B$3&C7019","v":{"$error":"#N/A"}},{"$f":"'Sundurliðun Innlán'!I21","v":0},".M.SFUINKV.XX.FJA.XXX.XXXX.SX.XXX.EUR.IS.N.M"]
[{"$f":"\"INN.\"&EIGNIR!$B$3&C7020","v":{"$error":"#N/A"}},{"$f":"'Sundurliðun Innlán'!I22","v":0},".M.SFUINKV.XX.INN.XXX.XXXX.SX.XXX.EUR.IS.N.M"]
[{"$f":"\"INN.\"&EIGNIR!$B$3&C7021","v":{"$error":"#N/A"}},{"$f":"'Sundurliðun Innlán'!I23","v":0},".M.SFUINKV.XX.SLI.XXX.XXXX.SX.XXX.EUR.IS.N.M"]
[{"$f":"\"INN.\"&EIGNIR!$B$3&C7022","v":{"$error":"#N/A"}},{"$f":"'Sundurliðun Innlán'!I24","v":0},".M.SFUINKV.XX.PEN.XXX.XXXX.SX.XXX.EUR.IS.N.M"]
[{"$f":"\"INN.\"&EIGNIR!$B$3&C7023","v":{"$error":"#N/A"}},{"$f":"'Sundurliðun Innlán'!I25","v":0},".M.SFUINKV.XX.SJO.XXX.XXXX.SX.XXX.EUR.IS.N.M"]
[{"$f":"\"INN.\"&EIGNIR!$B$3&C7024","v":{"$error":"#N/A"}},{"$f":"'Sundurliðun Innlán'!I26","v":0},".M.SFUINKV.XX.YFT.XXX.XXXX.SX.XXX.EUR.IS.N.M"]
[{"$f":"\"INN.\"&EIGNIR!$B$3&C7025","v":{"$error":"#N/A"}},{"$f":"'Sundurliðun Innlán'!I27","v":0},".M.SFUINKV.XX.SLY.XXX.XXXX.SX.XXX.EUR.IS.N.M"]
[{"$f":"\"INN.\"&EIGNIR!$B$3&C7026","v":{"$error":"#N/A"}},{"$f":"'Sundurliðun Innlán'!I28","v":0},".M.SFUINKV.XX.FHL.XXX.XXXX.SX.XXX.EUR.IS.N.M"]
[{"$f":"\"INN.\"&EIGNIR!$B$3&C7027","v":{"$error":"#N/A"}},{"$f":"'Sundurliðun Innlán'!I29","v":0},".M.SFUINKV.XX.INF.XXX.XXXX.SX.XXX.EUR.IS.N.M"]
[{"$f":"\"INN.\"&EIGNIR!$B$3&C7028","v":{"$error":"#N/A"}},{"$f":"'Sundurliðun Innlán'!I30","v":0},".M.SFUINKV.XX.TRY.XXX.XXXX.SX.XXX.EUR.IS.N.M"]
[{"$f":"\"INN.\"&EIGNIR!$B$3&C7029","v":{"$error":"#N/A"}},{"$f":"'Sundurliðun Innlán'!I31","v":0},".M.SFUINKV.XX.LIF.XXX.XXXX.SX.XXX.EUR.IS.N.M"]
[{"$f":"\"INN.\"&EIGNIR!$B$3&C7030","v":{"$error":"#N/A"}},{"$f":"'Sundurliðun Innlán'!I32","v":0},".M.SFUINKV.XX.OPI.XXX.XXXX.SX.XXX.EUR.IS.N.M"]
[{"$f":"\"INN.\"&EIGNIR!$B$3&C7031","v":{"$error":"#N/A"}},{"$f":"'Sundurliðun Innlán'!I33","v":0},".M.SFUINKV.XX.RSS.XXX.XXXX.SX.XXX.EUR.IS.N.M"]
[{"$f":"\"INN.\"&EIGNIR!$B$3&C7032","v":{"$error":"#N/A"}},{"$f":"'Sundurliðun Innlán'!I34","v":0},".M.SFUINKV.XX.BAJ.XXX.XXXX.SX.XXX.EUR.IS.N.M"]
[{"$f":"\"INN.\"&EIGNIR!$B$3&C7033","v":{"$error":"#N/A"}},{"$f":"'Sundurliðun Innlán'!I35","v":0},".M.SFUINKV.XX.EIN.XXX.XXXX.SX.XXX.EUR.IS.N.M"]
[{"$f":"\"INN.\"&EIGNIR!$B$3&C7034","v":{"$error":"#N/A"}},{"$f":"'Sundurliðun Innlán'!I36","v":0},".M.SFUINKV.XX.NPH.XXX.XXXX.SX.XXX.EUR.IS.N.M"]
[{"$f":"\"INN.\"&EIGNIR!$B$3&C7035","v":{"$error":"#N/A"}},{"$f":"'Sundurliðun Innlán'!I37","v":0},".M.SFUINKV.XX.ERL.XXX.XXXX.SX.XXX.EUR.IS.N.M"]
[{"$f":"\"INN.\"&EIGNIR!$B$3&C7036","v":{"$error":"#N/A"}},{"$f":"'Sundurliðun Innlán'!I38","v":0},".M.SFUINKV.XXX.ERS.XXX.XXXX.SX.XXX.EUR.IS.N.M"]
[{"$f":"\"INN.\"&EIGNIR!$B$3&C7037","v":{"$error":"#N/A"}},{"$f":"'Sundurliðun Innlán'!I39","v":0},".M.SFUINKV.XXX.ERI.XXX.XXXX.SX.XXX.EUR.IS.N.M"]
[{"$f":"\"INN.\"&EIGNIR!$B$3&C7038","v":{"$error":"#N/A"}},{"$f":"'Sundurliðun Innlán'!I40","v":0},".M.SFUINKV.XXX.ERP.XXX.XXXX.SX.XXX.EUR.IS.N.M"]
[{"$f":"\"INN.\"&EIGNIR!$B$3&C7039","v":{"$error":"#N/A"}},{"$f":"'Sundurliðun Innlán'!I41","v":0},".M.SFUINKV.XXX.ERV.XXX.XXXX.SX.XXX.EUR.IS.N.M"]
[{"$f":"\"INN.\"&EIGNIR!$B$3&C7040","v":{"$error":"#N/A"}},{"$f":"'Sundurliðun Innlán'!I42","v":0},".M.SFUINKV.XXX.ERF.XXX.XXXX.SX.XXX.EUR.IS.N.M"]
[{"$f":"\"INN.\"&EIGNIR!$B$3&C7041","v":{"$error":"#N/A"}},{"$f":"'Sundurliðun Innlán'!I43","v":0},".M.SFUINKV.XXX.ERO.XXX.XXXX.SX.XXX.EUR.IS.N.M"]
[{"$f":"\"INN.\"&EIGNIR!$B$3&C7042","v":{"$error":"#N/A"}},{"$f":"'Sundurliðun Innlán'!I44","v":0},".M.SFUINKV.XXX.ERA.XXX.XXXX.SX.XXX.EUR.IS.N.M"]
[{"$f":"\"INN.\"&EIGNIR!$B$3&C7043","v":{"$error":"#N/A"}},{"$f":"'Sundurliðun Innlán'!I45","v":0},".M.SFUINOI.XX.$$$.XXX.XXXX.SX.XXX.EUR.IS.N.M"]
[{"$f":"\"INN.\"&EIGNIR!$B$3&C7044","v":{"$error":"#N/A"}},{"$f":"'Sundurliðun Innlán'!I46","v":0},".M.SFUINOI.XX.ATV.XXX.XXXX.SX.XXX.EUR.IS.N.M"]
[{"$f":"\"INN.\"&EIGNIR!$B$3&C7045","v":{"$error":"#N/A"}},{"$f":"'Sundurliðun Innlán'!I60","v":0},".M.SFUINOI.XX.FJA.XXX.XXXX.SX.XXX.EUR.IS.N.M"]
[{"$f":"\"INN.\"&EIGNIR!$B$3&C7046","v":{"$error":"#N/A"}},{"$f":"'Sundurliðun Innlán'!I61","v":0},".M.SFUINOI.XX.INN.XXX.XXXX.SX.XXX.EUR.IS.N.M"]
[{"$f":"\"INN.\"&EIGNIR!$B$3&C7047","v":{"$error":"#N/A"}},{"$f":"'Sundurliðun Innlán'!I62","v":0},".M.SFUINOI.XX.SLI.XXX.XXXX.SX.XXX.EUR.IS.N.M"]
[{"$f":"\"INN.\"&EIGNIR!$B$3&C7048","v":{"$error":"#N/A"}},{"$f":"'Sundurliðun Innlán'!I63","v":0},".M.SFUINOI.XX.PEN.XXX.XXXX.SX.XXX.EUR.IS.N.M"]
[{"$f":"\"INN.\"&EIGNIR!$B$3&C7049","v":{"$error":"#N/A"}},{"$f":"'Sundurliðun Innlán'!I64","v":0},".M.SFUINOI.XX.SJO.XXX.XXXX.SX.XXX.EUR.IS.N.M"]
[{"$f":"\"INN.\"&EIGNIR!$B$3&C7050","v":{"$error":"#N/A"}},{"$f":"'Sundurliðun Innlán'!I65","v":0},".M.SFUINOI.XX.YFT.XXX.XXXX.SX.XXX.EUR.IS.N.M"]
[{"$f":"\"INN.\"&EIGNIR!$B$3&C7051","v":{"$error":"#N/A"}},{"$f":"'Sundurliðun Innlán'!I66","v":0},".M.SFUINOI.XX.SLY.XXX.XXXX.SX.XXX.EUR.IS.N.M"]
[{"$f":"\"INN.\"&EIGNIR!$B$3&C7052","v":{"$error":"#N/A"}},{"$f":"'Sundurliðun Innlán'!I67","v":0},".M.SFUINOI.XX.FHL.XXX.XXXX.SX.XXX.EUR.IS.N.M"]
[{"$f":"\"INN.\"&EIGNIR!$B$3&C7053","v":{"$error":"#N/A"}},{"$f":"'Sundurliðun Innlán'!I68","v":0},".M.SFUINOI.XX.INF.XXX.XXXX.SX.XXX.EUR.IS.N.M"]
[{"$f":"\"INN.\"&EIGNIR!$B$3&C7054","v":{"$error":"#N/A"}},{"$f":"'Sundurliðun Innlán'!I69","v":0},".M.SFUINOI.XX.TRY.XXX.XXXX.SX.XXX.EUR.IS.N.M"]
[{"$f":"\"INN.\"&EIGNIR!$B$3&C7055","v":{"$error":"#N/A"}},{"$f":"'Sundurliðun Innlán'!I70","v":0},".M.SFUINOI.XX.LIF.XXX.XXXX.SX.XXX.EUR.IS.N.M"]
[{"$f":"\"INN.\"&EIGNIR!$B$3&C7056","v":{"$error":"#N/A"}},{"$f":"'Sundurliðun Innlán'!I71","v":0},".M.SFUINOI.XX.OPI.XXX.XXXX.SX.XXX.EUR.IS.N.M"]
[{"$f":"\"INN.\"&EIGNIR!$B$3&C7057","v":{"$error":"#N/A"}},{"$f":"'Sundurliðun Innlán'!I72","v":0},".M.SFUINOI.XX.RSS.XXX.XXXX.SX.XXX.EUR.IS.N.M"]
[{"$f":"\"INN.\"&EIGNIR!$B$3&C7058","v":{"$error":"#N/A"}},{"$f":"'Sundurliðun Innlán'!I73","v":0},".M.SFUINOI.XX.BAJ.XXX.XXXX.SX.XXX.EUR.IS.N.M"]
[{"$f":"\"INN.\"&EIGNIR!$B$3&C7059","v":{"$error":"#N/A"}},{"$f":"'Sundurliðun Innlán'!I74","v":0},".M.SFUINOI.XX.EIN.XXX.XXXX.SX.XXX.EUR.IS.N.M"]
[{"$f":"\"INN.\"&EIGNIR!$B$3&C7060","v":{"$error":"#N/A"}},{"$f":"'Sundurliðun Innlán'!I75","v":0},".M.SFUINOI.XX.NPH.XXX.XXXX.SX.XXX.EUR.IS.N.M"]
[{"$f":"\"INN.\"&EIGNIR!$B$3&C7061","v":{"$error":"#N/A"}},{"$f":"'Sundurliðun Innlán'!I76","v":0},".M.SFUINOI.XX.ERL.XXX.XXXX.SX.XXX.EUR.IS.N.M"]
[{"$f":"\"INN.\"&EIGNIR!$B$3&C7062","v":{"$error":"#N/A"}},{"$f":"'Sundurliðun Innlán'!I77","v":0},".M.SFUINOI.XX.ERS.XXX.XXXX.SX.XXX.EUR.IS.N.M"]
[{"$f":"\"INN.\"&EIGNIR!$B$3&C7063","v":{"$error":"#N/A"}},{"$f":"'Sundurliðun Innlán'!I78","v":0},".M.SFUINOI.XX.ERI.XXX.XXXX.SX.XXX.EUR.IS.N.M"]
[{"$f":"\"INN.\"&EIGNIR!$B$3&C7064","v":{"$error":"#N/A"}},{"$f":"'Sundurliðun Innlán'!I79","v":0},".M.SFUINOI.XX.ERP.XXX.XXXX.SX.XXX.EUR.IS.N.M"]
[{"$f":"\"INN.\"&EIGNIR!$B$3&C7065","v":{"$error":"#N/A"}},{"$f":"'Sundurliðun Innlán'!I80","v":0},".M.SFUINOI.XX.ERV.XXX.XXXX.SX.XXX.EUR.IS.N.M"]
[{"$f":"\"INN.\"&EIGNIR!$B$3&C7066","v":{"$error":"#N/A"}},{"$f":"'Sundurliðun Innlán'!I81","v":0},".M.SFUINOI.XX.ERF.XXX.XXXX.SX.XXX.EUR.IS.N.M"]
[{"$f":"\"INN.\"&EIGNIR!$B$3&C7067","v":{"$error":"#N/A"}},{"$f":"'Sundurliðun Innlán'!I82","v":0},".M.SFUINOI.XX.ERO.XXX.XXXX.SX.XXX.EUR.IS.N.M"]
[{"$f":"\"INN.\"&EIGNIR!$B$3&C7068","v":{"$error":"#N/A"}},{"$f":"'Sundurliðun Innlán'!I83","v":0},".M.SFUINOI.XX.ERA.XXX.XXXX.SX.XXX.EUR.IS.N.M"]
[{"$f":"\"INN.\"&EIGNIR!$B$3&C7069","v":{"$error":"#N/A"}},{"$f":"'Sundurliðun Innlán'!I123","v":0},".M.SFUINOR.XX.XXX.XXX.XXXX.SV.XXX.EUR.IS.N.M"]
[{"$f":"\"INN.\"&EIGNIR!$B$3&C7070","v":{"$error":"#N/A"}},{"$f":"'Sundurliðun Innlán'!I124","v":0},".M.SFUINOR.XX.EIN.XXX.XXXX.SV.XXX.EUR.IS.N.M"]
[{"$f":"\"INN.\"&EIGNIR!$B$3&C7071","v":{"$error":"#N/A"}},{"$f":"'Sundurliðun Innlán'!I125","v":0},".M.SFUINOR.XX.ERL.XXX.XXXX.SV.XXX.EUR.IS.N.M"]
[{"$f":"\"INN.\"&EIGNIR!$B$3&C7072","v":{"$error":"#N/A"}},{"$f":"'Sundurliðun Innlán'!I126","v":0},".M.SFUINVB.XX.XXX.XXX.XXXX.SX.XXX.EUR.IS.N.M"]
[{"$f":"\"INN.\"&EIGNIR!$B$3&C7073","v":{"$error":"#N/A"}},{"$f":"'Sundurliðun Innlán'!I127","v":0},".M.SFUINVB.XX.EIN.XXX.XXXX.SX.XXX.EUR.IS.N.M"]
[{"$f":"\"INN.\"&EIGNIR!$B$3&C7074","v":{"$error":"#N/A"}},{"$f":"'Sundurliðun Innlán'!I128","v":0},".M.SFUINVB.XX.ERL.XXX.XXXX.SX.XXX.EUR.IS.N.M"]
[{"$f":"\"INN.\"&EIGNIR!$B$3&C7075","v":{"$error":"#N/A"}},{"$f":"'Sundurliðun Innlán'!I129","v":0},".M.SFUINBI.XX.$$$.XXX.XXXX.SX.XXX.EUR.IS.N.M"]
[{"$f":"\"INN.\"&EIGNIR!$B$3&C7076","v":{"$error":"#N/A"}},{"$f":"'Sundurliðun Innlán'!I130","v":0},".M.SFUINBI.XX.ATV.XXX.XXXX.SX.XXX.EUR.IS.N.M"]
[{"$f":"\"INN.\"&EIGNIR!$B$3&C7077","v":{"$error":"#N/A"}},{"$f":"'Sundurliðun Innlán'!I144","v":0},".M.SFUINBI.XX.FJA.XXX.XXXX.SX.XXX.EUR.IS.N.M"]
[{"$f":"\"INN.\"&EIGNIR!$B$3&C7078","v":{"$error":"#N/A"}},{"$f":"'Sundurliðun Innlán'!I145","v":0},".M.SFUINBI.XX.INN.XXX.XXXX.SX.XXX.EUR.IS.N.M"]
[{"$f":"\"INN.\"&EIGNIR!$B$3&C7079","v":{"$error":"#N/A"}},{"$f":"'Sundurliðun Innlán'!I146","v":0},".M.SFUINBI.XX.SLI.XXX.XXXX.SX.XXX.EUR.IS.N.M"]
[{"$f":"\"INN.\"&EIGNIR!$B$3&C7080","v":{"$error":"#N/A"}},{"$f":"'Sundurliðun Innlán'!I147","v":0},".M.SFUINBI.XX.PEN.XXX.XXXX.SX.XXX.EUR.IS.N.M"]
[{"$f":"\"INN.\"&EIGNIR!$B$3&C7081","v":{"$error":"#N/A"}},{"$f":"'Sundurliðun Innlán'!I148","v":0},".M.SFUINBI.XX.SJO.XXX.XXXX.SX.XXX.EUR.IS.N.M"]
[{"$f":"\"INN.\"&EIGNIR!$B$3&C7082","v":{"$error":"#N/A"}},{"$f":"'Sundurliðun Innlán'!I149","v":0},".M.SFUINBI.XX.YFT.XXX.XXXX.SX.XXX.EUR.IS.N.M"]
[{"$f":"\"INN.\"&EIGNIR!$B$3&C7083","v":{"$error":"#N/A"}},{"$f":"'Sundurliðun Innlán'!I150","v":0},".M.SFUINBI.XX.SLY.XXX.XXXX.SX.XXX.EUR.IS.N.M"]
[{"$f":"\"INN.\"&EIGNIR!$B$3&C7084","v":{"$error":"#N/A"}},{"$f":"'Sundurliðun Innlán'!I151","v":0},".M.SFUINBI.XX.FHL.XXX.XXXX.SX.XXX.EUR.IS.N.M"]
[{"$f":"\"INN.\"&EIGNIR!$B$3&C7085","v":{"$error":"#N/A"}},{"$f":"'Sundurliðun Innlán'!I152","v":0},".M.SFUINBI.XX.INF.XXX.XXXX.SX.XXX.EUR.IS.N.M"]
[{"$f":"\"INN.\"&EIGNIR!$B$3&C7086","v":{"$error":"#N/A"}},{"$f":"'Sundurliðun Innlán'!I153","v":0},".M.SFUINBI.XX.TRY.XXX.XXXX.SX.XXX.EUR.IS.N.M"]
[{"$f":"\"INN.\"&EIGNIR!$B$3&C7087","v":{"$error":"#N/A"}},{"$f":"'Sundurliðun Innlán'!I154","v":0},".M.SFUINBI.XX.LIF.XXX.XXXX.SX.XXX.EUR.IS.N.M"]
[{"$f":"\"INN.\"&EIGNIR!$B$3&C7088","v":{"$error":"#N/A"}},{"$f":"'Sundurliðun Innlán'!I155","v":0},".M.SFUINBI.XX.OPI.XXX.XXXX.SX.XXX.EUR.IS.N.M"]
[{"$f":"\"INN.\"&EIGNIR!$B$3&C7089","v":{"$error":"#N/A"}},{"$f":"'Sundurliðun Innlán'!I156","v":0},".M.SFUINBI.XX.RSS.XXX.XXXX.SX.XXX.EUR.IS.N.M"]
[{"$f":"\"INN.\"&EIGNIR!$B$3&C7090","v":{"$error":"#N/A"}},{"$f":"'Sundurliðun Innlán'!I157","v":0},".M.SFUINBI.XX.BAJ.XXX.XXXX.SX.XXX.EUR.IS.N.M"]
[{"$f":"\"INN.\"&EIGNIR!$B$3&C7091","v":{"$error":"#N/A"}},{"$f":"'Sundurliðun Innlán'!I158","v":0},".M.SFUINBI.XX.EIN.XXX.XXXX.SX.XXX.EUR.IS.N.M"]
[{"$f":"\"INN.\"&EIGNIR!$B$3&C7092","v":{"$error":"#N/A"}},{"$f":"'Sundurliðun Innlán'!I159","v":0},".M.SFUINBI.XX.NPH.XXX.XXXX.SX.XXX.EUR.IS.N.M"]
[{"$f":"\"INN.\"&EIGNIR!$B$3&C7093","v":{"$error":"#N/A"}},{"$f":"'Sundurliðun Innlán'!I160","v":0},".M.SFUINBI.XX.ERL.XXX.XXXX.SX.XXX.EUR.IS.N.M"]
[{"$f":"\"INN.\"&EIGNIR!$B$3&C7094","v":{"$error":"#N/A"}},{"$f":"'Sundurliðun Innlán'!I161","v":0},".M.SFUINBI.XX.ERS.XXX.XXXX.SX.XXX.EUR.IS.N.M"]
[{"$f":"\"INN.\"&EIGNIR!$B$3&C7095","v":{"$error":"#N/A"}},{"$f":"'Sundurliðun Innlán'!I162","v":0},".M.SFUINBI.XX.ERI.XXX.XXXX.SX.XXX.EUR.IS.N.M"]
[{"$f":"\"INN.\"&EIGNIR!$B$3&C7096","v":{"$error":"#N/A"}},{"$f":"'Sundurliðun Innlán'!I163","v":0},".M.SFUINBI.XX.ERP.XXX.XXXX.SX.XXX.EUR.IS.N.M"]
[{"$f":"\"INN.\"&EIGNIR!$B$3&C7097","v":{"$error":"#N/A"}},{"$f":"'Sundurliðun Innlán'!I164","v":0},".M.SFUINBI.XX.ERV.XXX.XXXX.SX.XXX.EUR.IS.N.M"]
[{"$f":"\"INN.\"&EIGNIR!$B$3&C7098","v":{"$error":"#N/A"}},{"$f":"'Sundurliðun Innlán'!I165","v":0},".M.SFUINBI.XX.ERF.XXX.XXXX.SX.XXX.EUR.IS.N.M"]
[{"$f":"\"INN.\"&EIGNIR!$B$3&C7099","v":{"$error":"#N/A"}},{"$f":"'Sundurliðun Innlán'!I166","v":0},".M.SFUINBI.XX.ERO.XXX.XXXX.SX.XXX.EUR.IS.N.M"]
[{"$f":"\"INN.\"&EIGNIR!$B$3&C7100","v":{"$error":"#N/A"}},{"$f":"'Sundurliðun Innlán'!I167","v":0},".M.SFUINBI.XX.ERA.XXX.XXXX.SX.XXX.EUR.IS.N.M"]
[{"$f":"\"INN.\"&EIGNIR!$B$3&C7101","v":{"$error":"#N/A"}},{"$f":"'Sundurliðun Innlán'!J5","v":0},".M.SFUIN$$.XX.XXX.XXX.XXXX.SX.XXX.USD.IS.N.M","//Sundurliðun innlána, USD"]
[{"$f":"\"INN.\"&EIGNIR!$B$3&C7102","v":{"$error":"#N/A"}},{"$f":"'Sundurliðun Innlán'!J6","v":0},".M.SFUINKV.XX.$$$.XXX.XXXX.SX.XXX.USD.IS.N.M"]
[{"$f":"\"INN.\"&EIGNIR!$B$3&C7103","v":{"$error":"#N/A"}},{"$f":"'Sundurliðun Innlán'!J7","v":0},".M.SFUINKV.XX.ATV.XXX.XXXX.SX.XXX.USD.IS.N.M"]
[{"$f":"\"INN.\"&EIGNIR!$B$3&C7104","v":{"$error":"#N/A"}},{"$f":"'Sundurliðun Innlán'!J21","v":0},".M.SFUINKV.XX.FJA.XXX.XXXX.SX.XXX.USD.IS.N.M"]
[{"$f":"\"INN.\"&EIGNIR!$B$3&C7105","v":{"$error":"#N/A"}},{"$f":"'Sundurliðun Innlán'!J22","v":0},".M.SFUINKV.XX.INN.XXX.XXXX.SX.XXX.USD.IS.N.M"]
[{"$f":"\"INN.\"&EIGNIR!$B$3&C7106","v":{"$error":"#N/A"}},{"$f":"'Sundurliðun Innlán'!J23","v":0},".M.SFUINKV.XX.SLI.XXX.XXXX.SX.XXX.USD.IS.N.M"]
[{"$f":"\"INN.\"&EIGNIR!$B$3&C7107","v":{"$error":"#N/A"}},{"$f":"'Sundurliðun Innlán'!J24","v":0},".M.SFUINKV.XX.PEN.XXX.XXXX.SX.XXX.USD.IS.N.M"]
[{"$f":"\"INN.\"&EIGNIR!$B$3&C7108","v":{"$error":"#N/A"}},{"$f":"'Sundurliðun Innlán'!J25","v":0},".M.SFUINKV.XX.SJO.XXX.XXXX.SX.XXX.USD.IS.N.M"]
[{"$f":"\"INN.\"&EIGNIR!$B$3&C7109","v":{"$error":"#N/A"}},{"$f":"'Sundurliðun Innlán'!J26","v":0},".M.SFUINKV.XX.YFT.XXX.XXXX.SX.XXX.USD.IS.N.M"]
[{"$f":"\"INN.\"&EIGNIR!$B$3&C7110","v":{"$error":"#N/A"}},{"$f":"'Sundurliðun Innlán'!J27","v":0},".M.SFUINKV.XX.SLY.XXX.XXXX.SX.XXX.USD.IS.N.M"]
[{"$f":"\"INN.\"&EIGNIR!$B$3&C7111","v":{"$error":"#N/A"}},{"$f":"'Sundurliðun Innlán'!J28","v":0},".M.SFUINKV.XX.FHL.XXX.XXXX.SX.XXX.USD.IS.N.M"]
[{"$f":"\"INN.\"&EIGNIR!$B$3&C7112","v":{"$error":"#N/A"}},{"$f":"'Sundurliðun Innlán'!J29","v":0},".M.SFUINKV.XX.INF.XXX.XXXX.SX.XXX.USD.IS.N.M"]
[{"$f":"\"INN.\"&EIGNIR!$B$3&C7113","v":{"$error":"#N/A"}},{"$f":"'Sundurliðun Innlán'!J30","v":0},".M.SFUINKV.XX.TRY.XXX.XXXX.SX.XXX.USD.IS.N.M"]
[{"$f":"\"INN.\"&EIGNIR!$B$3&C7114","v":{"$error":"#N/A"}},{"$f":"'Sundurliðun Innlán'!J31","v":0},".M.SFUINKV.XX.LIF.XXX.XXXX.SX.XXX.USD.IS.N.M"]
[{"$f":"\"INN.\"&EIGNIR!$B$3&C7115","v":{"$error":"#N/A"}},{"$f":"'Sundurliðun Innlán'!J32","v":0},".M.SFUINKV.XX.OPI.XXX.XXXX.SX.XXX.USD.IS.N.M"]
[{"$f":"\"INN.\"&EIGNIR!$B$3&C7116","v":{"$error":"#N/A"}},{"$f":"'Sundurliðun Innlán'!J33","v":0},".M.SFUINKV.XX.RSS.XXX.XXXX.SX.XXX.USD.IS.N.M"]
[{"$f":"\"INN.\"&EIGNIR!$B$3&C7117","v":{"$error":"#N/A"}},{"$f":"'Sundurliðun Innlán'!J34","v":0},".M.SFUINKV.XX.BAJ.XXX.XXXX.SX.XXX.USD.IS.N.M"]
[{"$f":"\"INN.\"&EIGNIR!$B$3&C7118","v":{"$error":"#N/A"}},{"$f":"'Sundurliðun Innlán'!J35","v":0},".M.SFUINKV.XX.EIN.XXX.XXXX.SX.XXX.USD.IS.N.M"]
[{"$f":"\"INN.\"&EIGNIR!$B$3&C7119","v":{"$error":"#N/A"}},{"$f":"'Sundurliðun Innlán'!J36","v":0},".M.SFUINKV.XX.NPH.XXX.XXXX.SX.XXX.USD.IS.N.M"]
[{"$f":"\"INN.\"&EIGNIR!$B$3&C7120","v":{"$error":"#N/A"}},{"$f":"'Sundurliðun Innlán'!J37","v":0},".M.SFUINKV.XX.ERL.XXX.XXXX.SX.XXX.USD.IS.N.M"]
[{"$f":"\"INN.\"&EIGNIR!$B$3&C7121","v":{"$error":"#N/A"}},{"$f":"'Sundurliðun Innlán'!J38","v":0},".M.SFUINKV.XXX.ERS.XXX.XXXX.SX.XXX.USD.IS.N.M"]
[{"$f":"\"INN.\"&EIGNIR!$B$3&C7122","v":{"$error":"#N/A"}},{"$f":"'Sundurliðun Innlán'!J39","v":0},".M.SFUINKV.XXX.ERI.XXX.XXXX.SX.XXX.USD.IS.N.M"]
[{"$f":"\"INN.\"&EIGNIR!$B$3&C7123","v":{"$error":"#N/A"}},{"$f":"'Sundurliðun Innlán'!J40","v":0},".M.SFUINKV.XXX.ERP.XXX.XXXX.SX.XXX.USD.IS.N.M"]
[{"$f":"\"INN.\"&EIGNIR!$B$3&C7124","v":{"$error":"#N/A"}},{"$f":"'Sundurliðun Innlán'!J41","v":0},".M.SFUINKV.XXX.ERV.XXX.XXXX.SX.XXX.USD.IS.N.M"]
[{"$f":"\"INN.\"&EIGNIR!$B$3&C7125","v":{"$error":"#N/A"}},{"$f":"'Sundurliðun Innlán'!J42","v":0},".M.SFUINKV.XXX.ERF.XXX.XXXX.SX.XXX.USD.IS.N.M"]
[{"$f":"\"INN.\"&EIGNIR!$B$3&C7126","v":{"$error":"#N/A"}},{"$f":"'Sundurliðun Innlán'!J43","v":0},".M.SFUINKV.XXX.ERO.XXX.XXXX.SX.XXX.USD.IS.N.M"]
[{"$f":"\"INN.\"&EIGNIR!$B$3&C7127","v":{"$error":"#N/A"}},{"$f":"'Sundurliðun Innlán'!J44","v":0},".M.SFUINKV.XXX.ERA.XXX.XXXX.SX.XXX.USD.IS.N.M"]
[{"$f":"\"INN.\"&EIGNIR!$B$3&C7128","v":{"$error":"#N/A"}},{"$f":"'Sundurliðun Innlán'!J45","v":0},".M.SFUINOI.XX.$$$.XXX.XXXX.SX.XXX.USD.IS.N.M"]
[{"$f":"\"INN.\"&EIGNIR!$B$3&C7129","v":{"$error":"#N/A"}},{"$f":"'Sundurliðun Innlán'!J46","v":0},".M.SFUINOI.XX.ATV.XXX.XXXX.SX.XXX.USD.IS.N.M"]
[{"$f":"\"INN.\"&EIGNIR!$B$3&C7130","v":{"$error":"#N/A"}},{"$f":"'Sundurliðun Innlán'!J60","v":0},".M.SFUINOI.XX.FJA.XXX.XXXX.SX.XXX.USD.IS.N.M"]
[{"$f":"\"INN.\"&EIGNIR!$B$3&C7131","v":{"$error":"#N/A"}},{"$f":"'Sundurliðun Innlán'!J61","v":0},".M.SFUINOI.XX.INN.XXX.XXXX.SX.XXX.USD.IS.N.M"]
[{"$f":"\"INN.\"&EIGNIR!$B$3&C7132","v":{"$error":"#N/A"}},{"$f":"'Sundurliðun Innlán'!J62","v":0},".M.SFUINOI.XX.SLI.XXX.XXXX.SX.XXX.USD.IS.N.M"]
[{"$f":"\"INN.\"&EIGNIR!$B$3&C7133","v":{"$error":"#N/A"}},{"$f":"'Sundurliðun Innlán'!J63","v":0},".M.SFUINOI.XX.PEN.XXX.XXXX.SX.XXX.USD.IS.N.M"]
[{"$f":"\"INN.\"&EIGNIR!$B$3&C7134","v":{"$error":"#N/A"}},{"$f":"'Sundurliðun Innlán'!J64","v":0},".M.SFUINOI.XX.SJO.XXX.XXXX.SX.XXX.USD.IS.N.M"]
[{"$f":"\"INN.\"&EIGNIR!$B$3&C7135","v":{"$error":"#N/A"}},{"$f":"'Sundurliðun Innlán'!J65","v":0},".M.SFUINOI.XX.YFT.XXX.XXXX.SX.XXX.USD.IS.N.M"]
[{"$f":"\"INN.\"&EIGNIR!$B$3&C7136","v":{"$error":"#N/A"}},{"$f":"'Sundurliðun Innlán'!J66","v":0},".M.SFUINOI.XX.SLY.XXX.XXXX.SX.XXX.USD.IS.N.M"]
[{"$f":"\"INN.\"&EIGNIR!$B$3&C7137","v":{"$error":"#N/A"}},{"$f":"'Sundurliðun Innlán'!J67","v":0},".M.SFUINOI.XX.FHL.XXX.XXXX.SX.XXX.USD.IS.N.M"]
[{"$f":"\"INN.\"&EIGNIR!$B$3&C7138","v":{"$error":"#N/A"}},{"$f":"'Sundurliðun Innlán'!J68","v":0},".M.SFUINOI.XX.INF.XXX.XXXX.SX.XXX.USD.IS.N.M"]
[{"$f":"\"INN.\"&EIGNIR!$B$3&C7139","v":{"$error":"#N/A"}},{"$f":"'Sundurliðun Innlán'!J69","v":0},".M.SFUINOI.XX.TRY.XXX.XXXX.SX.XXX.USD.IS.N.M"]
[{"$f":"\"INN.\"&EIGNIR!$B$3&C7140","v":{"$error":"#N/A"}},{"$f":"'Sundurliðun Innlán'!J70","v":0},".M.SFUINOI.XX.LIF.XXX.XXXX.SX.XXX.USD.IS.N.M"]
[{"$f":"\"INN.\"&EIGNIR!$B$3&C7141","v":{"$error":"#N/A"}},{"$f":"'Sundurliðun Innlán'!J71","v":0},".M.SFUINOI.XX.OPI.XXX.XXXX.SX.XXX.USD.IS.N.M"]
[{"$f":"\"INN.\"&EIGNIR!$B$3&C7142","v":{"$error":"#N/A"}},{"$f":"'Sundurliðun Innlán'!J72","v":0},".M.SFUINOI.XX.RSS.XXX.XXXX.SX.XXX.USD.IS.N.M"]
[{"$f":"\"INN.\"&EIGNIR!$B$3&C7143","v":{"$error":"#N/A"}},{"$f":"'Sundurliðun Innlán'!J73","v":0},".M.SFUINOI.XX.BAJ.XXX.XXXX.SX.XXX.USD.IS.N.M"]
[{"$f":"\"INN.\"&EIGNIR!$B$3&C7144","v":{"$error":"#N/A"}},{"$f":"'Sundurliðun Innlán'!J74","v":0},".M.SFUINOI.XX.EIN.XXX.XXXX.SX.XXX.USD.IS.N.M"]
[{"$f":"\"INN.\"&EIGNIR!$B$3&C7145","v":{"$error":"#N/A"}},{"$f":"'Sundurliðun Innlán'!J75","v":0},".M.SFUINOI.XX.NPH.XXX.XXXX.SX.XXX.USD.IS.N.M"]
[{"$f":"\"INN.\"&EIGNIR!$B$3&C7146","v":{"$error":"#N/A"}},{"$f":"'Sundurliðun Innlán'!J76","v":0},".M.SFUINOI.XX.ERL.XXX.XXXX.SX.XXX.USD.IS.N.M"]
[{"$f":"\"INN.\"&EIGNIR!$B$3&C7147","v":{"$error":"#N/A"}},{"$f":"'Sundurliðun Innlán'!J77","v":0},".M.SFUINOI.XX.ERS.XXX.XXXX.SX.XXX.USD.IS.N.M"]
[{"$f":"\"INN.\"&EIGNIR!$B$3&C7148","v":{"$error":"#N/A"}},{"$f":"'Sundurliðun Innlán'!J78","v":0},".M.SFUINOI.XX.ERI.XXX.XXXX.SX.XXX.USD.IS.N.M"]
[{"$f":"\"INN.\"&EIGNIR!$B$3&C7149","v":{"$error":"#N/A"}},{"$f":"'Sundurliðun Innlán'!J79","v":0},".M.SFUINOI.XX.ERP.XXX.XXXX.SX.XXX.USD.IS.N.M"]
[{"$f":"\"INN.\"&EIGNIR!$B$3&C7150","v":{"$error":"#N/A"}},{"$f":"'Sundurliðun Innlán'!J80","v":0},".M.SFUINOI.XX.ERV.XXX.XXXX.SX.XXX.USD.IS.N.M"]
[{"$f":"\"INN.\"&EIGNIR!$B$3&C7151","v":{"$error":"#N/A"}},{"$f":"'Sundurliðun Innlán'!J81","v":0},".M.SFUINOI.XX.ERF.XXX.XXXX.SX.XXX.USD.IS.N.M"]
[{"$f":"\"INN.\"&EIGNIR!$B$3&C7152","v":{"$error":"#N/A"}},{"$f":"'Sundurliðun Innlán'!J82","v":0},".M.SFUINOI.XX.ERO.XXX.XXXX.SX.XXX.USD.IS.N.M"]
[{"$f":"\"INN.\"&EIGNIR!$B$3&C7153","v":{"$error":"#N/A"}},{"$f":"'Sundurliðun Innlán'!J83","v":0},".M.SFUINOI.XX.ERA.XXX.XXXX.SX.XXX.USD.IS.N.M"]
[{"$f":"\"INN.\"&EIGNIR!$B$3&C7154","v":{"$error":"#N/A"}},{"$f":"'Sundurliðun Innlán'!J123","v":0},".M.SFUINOR.XX.XXX.XXX.XXXX.SV.XXX.USD.IS.N.M"]
[{"$f":"\"INN.\"&EIGNIR!$B$3&C7155","v":{"$error":"#N/A"}},{"$f":"'Sundurliðun Innlán'!J124","v":0},".M.SFUINOR.XX.EIN.XXX.XXXX.SV.XXX.USD.IS.N.M"]
[{"$f":"\"INN.\"&EIGNIR!$B$3&C7156","v":{"$error":"#N/A"}},{"$f":"'Sundurliðun Innlán'!J125","v":0},".M.SFUINOR.XX.ERL.XXX.XXXX.SV.XXX.USD.IS.N.M"]
[{"$f":"\"INN.\"&EIGNIR!$B$3&C7157","v":{"$error":"#N/A"}},{"$f":"'Sundurliðun Innlán'!J126","v":0},".M.SFUINVB.XX.XXX.XXX.XXXX.SX.XXX.USD.IS.N.M"]
[{"$f":"\"INN.\"&EIGNIR!$B$3&C7158","v":{"$error":"#N/A"}},{"$f":"'Sundurliðun Innlán'!J127","v":0},".M.SFUINVB.XX.EIN.XXX.XXXX.SX.XXX.USD.IS.N.M"]
[{"$f":"\"INN.\"&EIGNIR!$B$3&C7159","v":{"$error":"#N/A"}},{"$f":"'Sundurliðun Innlán'!J128","v":0},".M.SFUINVB.XX.ERL.XXX.XXXX.SX.XXX.USD.IS.N.M"]
[{"$f":"\"INN.\"&EIGNIR!$B$3&C7160","v":{"$error":"#N/A"}},{"$f":"'Sundurliðun Innlán'!J129","v":0},".M.SFUINBI.XX.$$$.XXX.XXXX.SX.XXX.USD.IS.N.M"]
[{"$f":"\"INN.\"&EIGNIR!$B$3&C7161","v":{"$error":"#N/A"}},{"$f":"'Sundurliðun Innlán'!J130","v":0},".M.SFUINBI.XX.ATV.XXX.XXXX.SX.XXX.USD.IS.N.M"]
[{"$f":"\"INN.\"&EIGNIR!$B$3&C7162","v":{"$error":"#N/A"}},{"$f":"'Sundurliðun Innlán'!J144","v":0},".M.SFUINBI.XX.FJA.XXX.XXXX.SX.XXX.USD.IS.N.M"]
[{"$f":"\"INN.\"&EIGNIR!$B$3&C7163","v":{"$error":"#N/A"}},{"$f":"'Sundurliðun Innlán'!J145","v":0},".M.SFUINBI.XX.INN.XXX.XXXX.SX.XXX.USD.IS.N.M"]
[{"$f":"\"INN.\"&EIGNIR!$B$3&C7164","v":{"$error":"#N/A"}},{"$f":"'Sundurliðun Innlán'!J146","v":0},".M.SFUINBI.XX.SLI.XXX.XXXX.SX.XXX.USD.IS.N.M"]
[{"$f":"\"INN.\"&EIGNIR!$B$3&C7165","v":{"$error":"#N/A"}},{"$f":"'Sundurliðun Innlán'!J147","v":0},".M.SFUINBI.XX.PEN.XXX.XXXX.SX.XXX.USD.IS.N.M"]
[{"$f":"\"INN.\"&EIGNIR!$B$3&C7166","v":{"$error":"#N/A"}},{"$f":"'Sundurliðun Innlán'!J148","v":0},".M.SFUINBI.XX.SJO.XXX.XXXX.SX.XXX.USD.IS.N.M"]
[{"$f":"\"INN.\"&EIGNIR!$B$3&C7167","v":{"$error":"#N/A"}},{"$f":"'Sundurliðun Innlán'!J149","v":0},".M.SFUINBI.XX.YFT.XXX.XXXX.SX.XXX.USD.IS.N.M"]
[{"$f":"\"INN.\"&EIGNIR!$B$3&C7168","v":{"$error":"#N/A"}},{"$f":"'Sundurliðun Innlán'!J150","v":0},".M.SFUINBI.XX.SLY.XXX.XXXX.SX.XXX.USD.IS.N.M"]
[{"$f":"\"INN.\"&EIGNIR!$B$3&C7169","v":{"$error":"#N/A"}},{"$f":"'Sundurliðun Innlán'!J151","v":0},".M.SFUINBI.XX.FHL.XXX.XXXX.SX.XXX.USD.IS.N.M"]
[{"$f":"\"INN.\"&EIGNIR!$B$3&C7170","v":{"$error":"#N/A"}},{"$f":"'Sundurliðun Innlán'!J152","v":0},".M.SFUINBI.XX.INF.XXX.XXXX.SX.XXX.USD.IS.N.M"]
[{"$f":"\"INN.\"&EIGNIR!$B$3&C7171","v":{"$error":"#N/A"}},{"$f":"'Sundurliðun Innlán'!J153","v":0},".M.SFUINBI.XX.TRY.XXX.XXXX.SX.XXX.USD.IS.N.M"]
[{"$f":"\"INN.\"&EIGNIR!$B$3&C7172","v":{"$error":"#N/A"}},{"$f":"'Sundurliðun Innlán'!J154","v":0},".M.SFUINBI.XX.LIF.XXX.XXXX.SX.XXX.USD.IS.N.M"]
[{"$f":"\"INN.\"&EIGNIR!$B$3&C7173","v":{"$error":"#N/A"}},{"$f":"'Sundurliðun Innlán'!J155","v":0},".M.SFUINBI.XX.OPI.XXX.XXXX.SX.XXX.USD.IS.N.M"]
[{"$f":"\"INN.\"&EIGNIR!$B$3&C7174","v":{"$error":"#N/A"}},{"$f":"'Sundurliðun Innlán'!J156","v":0},".M.SFUINBI.XX.RSS.XXX.XXXX.SX.XXX.USD.IS.N.M"]
[{"$f":"\"INN.\"&EIGNIR!$B$3&C7175","v":{"$error":"#N/A"}},{"$f":"'Sundurliðun Innlán'!J157","v":0},".M.SFUINBI.XX.BAJ.XXX.XXXX.SX.XXX.USD.IS.N.M"]
[{"$f":"\"INN.\"&EIGNIR!$B$3&C7176","v":{"$error":"#N/A"}},{"$f":"'Sundurliðun Innlán'!J158","v":0},".M.SFUINBI.XX.EIN.XXX.XXXX.SX.XXX.USD.IS.N.M"]
[{"$f":"\"INN.\"&EIGNIR!$B$3&C7177","v":{"$error":"#N/A"}},{"$f":"'Sundurliðun Innlán'!J159","v":0},".M.SFUINBI.XX.NPH.XXX.XXXX.SX.XXX.USD.IS.N.M"]
[{"$f":"\"INN.\"&EIGNIR!$B$3&C7178","v":{"$error":"#N/A"}},{"$f":"'Sundurliðun Innlán'!J160","v":0},".M.SFUINBI.XX.ERL.XXX.XXXX.SX.XXX.USD.IS.N.M"]
[{"$f":"\"INN.\"&EIGNIR!$B$3&C7179","v":{"$error":"#N/A"}},{"$f":"'Sundurliðun Innlán'!J161","v":0},".M.SFUINBI.XX.ERS.XXX.XXXX.SX.XXX.USD.IS.N.M"]
[{"$f":"\"INN.\"&EIGNIR!$B$3&C7180","v":{"$error":"#N/A"}},{"$f":"'Sundurliðun Innlán'!J162","v":0},".M.SFUINBI.XX.ERI.XXX.XXXX.SX.XXX.USD.IS.N.M"]
[{"$f":"\"INN.\"&EIGNIR!$B$3&C7181","v":{"$error":"#N/A"}},{"$f":"'Sundurliðun Innlán'!J163","v":0},".M.SFUINBI.XX.ERP.XXX.XXXX.SX.XXX.USD.IS.N.M"]
[{"$f":"\"INN.\"&EIGNIR!$B$3&C7182","v":{"$error":"#N/A"}},{"$f":"'Sundurliðun Innlán'!J164","v":0},".M.SFUINBI.XX.ERV.XXX.XXXX.SX.XXX.USD.IS.N.M"]
[{"$f":"\"INN.\"&EIGNIR!$B$3&C7183","v":{"$error":"#N/A"}},{"$f":"'Sundurliðun Innlán'!J165","v":0},".M.SFUINBI.XX.ERF.XXX.XXXX.SX.XXX.USD.IS.N.M"]
[{"$f":"\"INN.\"&EIGNIR!$B$3&C7184","v":{"$error":"#N/A"}},{"$f":"'Sundurliðun Innlán'!J166","v":0},".M.SFUINBI.XX.ERO.XXX.XXXX.SX.XXX.USD.IS.N.M"]
[{"$f":"\"INN.\"&EIGNIR!$B$3&C7185","v":{"$error":"#N/A"}},{"$f":"'Sundurliðun Innlán'!J167","v":0},".M.SFUINBI.XX.ERA.XXX.XXXX.SX.XXX.USD.IS.N.M"]
[{"$f":"\"INN.\"&EIGNIR!$B$3&C7186","v":{"$error":"#N/A"}},{"$f":"'Sundurliðun Innlán'!K5","v":0},".M.SFUIN$$.XX.XXX.XXX.XXXX.SX.XXX.GBP.IS.N.M","//Sundurliðun innlána GBP"]
[{"$f":"\"INN.\"&EIGNIR!$B$3&C7187","v":{"$error":"#N/A"}},{"$f":"'Sundurliðun Innlán'!K6","v":0},".M.SFUINKV.XX.$$$.XXX.XXXX.SX.XXX.GBP.IS.N.M"]
[{"$f":"\"INN.\"&EIGNIR!$B$3&C7188","v":{"$error":"#N/A"}},{"$f":"'Sundurliðun Innlán'!K7","v":0},".M.SFUINKV.XX.ATV.XXX.XXXX.SX.XXX.GBP.IS.N.M"]
[{"$f":"\"INN.\"&EIGNIR!$B$3&C7189","v":{"$error":"#N/A"}},{"$f":"'Sundurliðun Innlán'!K21","v":0},".M.SFUINKV.XX.FJA.XXX.XXXX.SX.XXX.GBP.IS.N.M"]
[{"$f":"\"INN.\"&EIGNIR!$B$3&C7190","v":{"$error":"#N/A"}},{"$f":"'Sundurliðun Innlán'!K22","v":0},".M.SFUINKV.XX.INN.XXX.XXXX.SX.XXX.GBP.IS.N.M"]
[{"$f":"\"INN.\"&EIGNIR!$B$3&C7191","v":{"$error":"#N/A"}},{"$f":"'Sundurliðun Innlán'!K23","v":0},".M.SFUINKV.XX.SLI.XXX.XXXX.SX.XXX.GBP.IS.N.M"]
[{"$f":"\"INN.\"&EIGNIR!$B$3&C7192","v":{"$error":"#N/A"}},{"$f":"'Sundurliðun Innlán'!K24","v":0},".M.SFUINKV.XX.PEN.XXX.XXXX.SX.XXX.GBP.IS.N.M"]
[{"$f":"\"INN.\"&EIGNIR!$B$3&C7193","v":{"$error":"#N/A"}},{"$f":"'Sundurliðun Innlán'!K25","v":0},".M.SFUINKV.XX.SJO.XXX.XXXX.SX.XXX.GBP.IS.N.M"]
[{"$f":"\"INN.\"&EIGNIR!$B$3&C7194","v":{"$error":"#N/A"}},{"$f":"'Sundurliðun Innlán'!K26","v":0},".M.SFUINKV.XX.YFT.XXX.XXXX.SX.XXX.GBP.IS.N.M"]
[{"$f":"\"INN.\"&EIGNIR!$B$3&C7195","v":{"$error":"#N/A"}},{"$f":"'Sundurliðun Innlán'!K27","v":0},".M.SFUINKV.XX.SLY.XXX.XXXX.SX.XXX.GBP.IS.N.M"]
[{"$f":"\"INN.\"&EIGNIR!$B$3&C7196","v":{"$error":"#N/A"}},{"$f":"'Sundurliðun Innlán'!K28","v":0},".M.SFUINKV.XX.FHL.XXX.XXXX.SX.XXX.GBP.IS.N.M"]
[{"$f":"\"INN.\"&EIGNIR!$B$3&C7197","v":{"$error":"#N/A"}},{"$f":"'Sundurliðun Innlán'!K29","v":0},".M.SFUINKV.XX.INF.XXX.XXXX.SX.XXX.GBP.IS.N.M"]
[{"$f":"\"INN.\"&EIGNIR!$B$3&C7198","v":{"$error":"#N/A"}},{"$f":"'Sundurliðun Innlán'!K30","v":0},".M.SFUINKV.XX.TRY.XXX.XXXX.SX.XXX.GBP.IS.N.M"]
[{"$f":"\"INN.\"&EIGNIR!$B$3&C7199","v":{"$error":"#N/A"}},{"$f":"'Sundurliðun Innlán'!K31","v":0},".M.SFUINKV.XX.LIF.XXX.XXXX.SX.XXX.GBP.IS.N.M"]
[{"$f":"\"INN.\"&EIGNIR!$B$3&C7200","v":{"$error":"#N/A"}},{"$f":"'Sundurliðun Innlán'!K32","v":0},".M.SFUINKV.XX.OPI.XXX.XXXX.SX.XXX.GBP.IS.N.M"]
[{"$f":"\"INN.\"&EIGNIR!$B$3&C7201","v":{"$error":"#N/A"}},{"$f":"'Sundurliðun Innlán'!K33","v":0},".M.SFUINKV.XX.RSS.XXX.XXXX.SX.XXX.GBP.IS.N.M"]
[{"$f":"\"INN.\"&EIGNIR!$B$3&C7202","v":{"$error":"#N/A"}},{"$f":"'Sundurliðun Innlán'!K34","v":0},".M.SFUINKV.XX.BAJ.XXX.XXXX.SX.XXX.GBP.IS.N.M"]
[{"$f":"\"INN.\"&EIGNIR!$B$3&C7203","v":{"$error":"#N/A"}},{"$f":"'Sundurliðun Innlán'!K35","v":0},".M.SFUINKV.XX.EIN.XXX.XXXX.SX.XXX.GBP.IS.N.M"]
[{"$f":"\"INN.\"&EIGNIR!$B$3&C7204","v":{"$error":"#N/A"}},{"$f":"'Sundurliðun Innlán'!K36","v":0},".M.SFUINKV.XX.NPH.XXX.XXXX.SX.XXX.GBP.IS.N.M"]
[{"$f":"\"INN.\"&EIGNIR!$B$3&C7205","v":{"$error":"#N/A"}},{"$f":"'Sundurliðun Innlán'!K37","v":0},".M.SFUINKV.XX.ERL.XXX.XXXX.SX.XXX.GBP.IS.N.M"]
[{"$f":"\"INN.\"&EIGNIR!$B$3&C7206","v":{"$error":"#N/A"}},{"$f":"'Sundurliðun Innlán'!K38","v":0},".M.SFUINKV.XXX.ERS.XXX.XXXX.SX.XXX.GBP.IS.N.M"]
[{"$f":"\"INN.\"&EIGNIR!$B$3&C7207","v":{"$error":"#N/A"}},{"$f":"'Sundurliðun Innlán'!K39","v":0},".M.SFUINKV.XXX.ERI.XXX.XXXX.SX.XXX.GBP.IS.N.M"]
[{"$f":"\"INN.\"&EIGNIR!$B$3&C7208","v":{"$error":"#N/A"}},{"$f":"'Sundurliðun Innlán'!K40","v":0},".M.SFUINKV.XXX.ERP.XXX.XXXX.SX.XXX.GBP.IS.N.M"]
[{"$f":"\"INN.\"&EIGNIR!$B$3&C7209","v":{"$error":"#N/A"}},{"$f":"'Sundurliðun Innlán'!K41","v":0},".M.SFUINKV.XXX.ERV.XXX.XXXX.SX.XXX.GBP.IS.N.M"]
[{"$f":"\"INN.\"&EIGNIR!$B$3&C7210","v":{"$error":"#N/A"}},{"$f":"'Sundurliðun Innlán'!K42","v":0},".M.SFUINKV.XXX.ERF.XXX.XXXX.SX.XXX.GBP.IS.N.M"]
[{"$f":"\"INN.\"&EIGNIR!$B$3&C7211","v":{"$error":"#N/A"}},{"$f":"'Sundurliðun Innlán'!K43","v":0},".M.SFUINKV.XXX.ERO.XXX.XXXX.SX.XXX.GBP.IS.N.M"]
[{"$f":"\"INN.\"&EIGNIR!$B$3&C7212","v":{"$error":"#N/A"}},{"$f":"'Sundurliðun Innlán'!K44","v":0},".M.SFUINKV.XXX.ERA.XXX.XXXX.SX.XXX.GBP.IS.N.M"]
[{"$f":"\"INN.\"&EIGNIR!$B$3&C7213","v":{"$error":"#N/A"}},{"$f":"'Sundurliðun Innlán'!K45","v":0},".M.SFUINOI.XX.$$$.XXX.XXXX.SX.XXX.GBP.IS.N.M"]
[{"$f":"\"INN.\"&EIGNIR!$B$3&C7214","v":{"$error":"#N/A"}},{"$f":"'Sundurliðun Innlán'!K46","v":0},".M.SFUINOI.XX.ATV.XXX.XXXX.SX.XXX.GBP.IS.N.M"]
[{"$f":"\"INN.\"&EIGNIR!$B$3&C7215","v":{"$error":"#N/A"}},{"$f":"'Sundurliðun Innlán'!K60","v":0},".M.SFUINOI.XX.FJA.XXX.XXXX.SX.XXX.GBP.IS.N.M"]
[{"$f":"\"INN.\"&EIGNIR!$B$3&C7216","v":{"$error":"#N/A"}},{"$f":"'Sundurliðun Innlán'!K61","v":0},".M.SFUINOI.XX.INN.XXX.XXXX.SX.XXX.GBP.IS.N.M"]
[{"$f":"\"INN.\"&EIGNIR!$B$3&C7217","v":{"$error":"#N/A"}},{"$f":"'Sundurliðun Innlán'!K62","v":0},".M.SFUINOI.XX.SLI.XXX.XXXX.SX.XXX.GBP.IS.N.M"]
[{"$f":"\"INN.\"&EIGNIR!$B$3&C7218","v":{"$error":"#N/A"}},{"$f":"'Sundurliðun Innlán'!K63","v":0},".M.SFUINOI.XX.PEN.XXX.XXXX.SX.XXX.GBP.IS.N.M"]
[{"$f":"\"INN.\"&EIGNIR!$B$3&C7219","v":{"$error":"#N/A"}},{"$f":"'Sundurliðun Innlán'!K64","v":0},".M.SFUINOI.XX.SJO.XXX.XXXX.SX.XXX.GBP.IS.N.M"]
[{"$f":"\"INN.\"&EIGNIR!$B$3&C7220","v":{"$error":"#N/A"}},{"$f":"'Sundurliðun Innlán'!K65","v":0},".M.SFUINOI.XX.YFT.XXX.XXXX.SX.XXX.GBP.IS.N.M"]
[{"$f":"\"INN.\"&EIGNIR!$B$3&C7221","v":{"$error":"#N/A"}},{"$f":"'Sundurliðun Innlán'!K66","v":0},".M.SFUINOI.XX.SLY.XXX.XXXX.SX.XXX.GBP.IS.N.M"]
[{"$f":"\"INN.\"&EIGNIR!$B$3&C7222","v":{"$error":"#N/A"}},{"$f":"'Sundurliðun Innlán'!K67","v":0},".M.SFUINOI.XX.FHL.XXX.XXXX.SX.XXX.GBP.IS.N.M"]
[{"$f":"\"INN.\"&EIGNIR!$B$3&C7223","v":{"$error":"#N/A"}},{"$f":"'Sundurliðun Innlán'!K68","v":0},".M.SFUINOI.XX.INF.XXX.XXXX.SX.XXX.GBP.IS.N.M"]
[{"$f":"\"INN.\"&EIGNIR!$B$3&C7224","v":{"$error":"#N/A"}},{"$f":"'Sundurliðun Innlán'!K69","v":0},".M.SFUINOI.XX.TRY.XXX.XXXX.SX.XXX.GBP.IS.N.M"]
[{"$f":"\"INN.\"&EIGNIR!$B$3&C7225","v":{"$error":"#N/A"}},{"$f":"'Sundurliðun Innlán'!K70","v":0},".M.SFUINOI.XX.LIF.XXX.XXXX.SX.XXX.GBP.IS.N.M"]
[{"$f":"\"INN.\"&EIGNIR!$B$3&C7226","v":{"$error":"#N/A"}},{"$f":"'Sundurliðun Innlán'!K71","v":0},".M.SFUINOI.XX.OPI.XXX.XXXX.SX.XXX.GBP.IS.N.M"]
[{"$f":"\"INN.\"&EIGNIR!$B$3&C7227","v":{"$error":"#N/A"}},{"$f":"'Sundurliðun Innlán'!K72","v":0},".M.SFUINOI.XX.RSS.XXX.XXXX.SX.XXX.GBP.IS.N.M"]
[{"$f":"\"INN.\"&EIGNIR!$B$3&C7228","v":{"$error":"#N/A"}},{"$f":"'Sundurliðun Innlán'!K73","v":0},".M.SFUINOI.XX.BAJ.XXX.XXXX.SX.XXX.GBP.IS.N.M"]
[{"$f":"\"INN.\"&EIGNIR!$B$3&C7229","v":{"$error":"#N/A"}},{"$f":"'Sundurliðun Innlán'!K74","v":0},".M.SFUINOI.XX.EIN.XXX.XXXX.SX.XXX.GBP.IS.N.M"]
[{"$f":"\"INN.\"&EIGNIR!$B$3&C7230","v":{"$error":"#N/A"}},{"$f":"'Sundurliðun Innlán'!K75","v":0},".M.SFUINOI.XX.NPH.XXX.XXXX.SX.XXX.GBP.IS.N.M"]
[{"$f":"\"INN.\"&EIGNIR!$B$3&C7231","v":{"$error":"#N/A"}},{"$f":"'Sundurliðun Innlán'!K76","v":0},".M.SFUINOI.XX.ERL.XXX.XXXX.SX.XXX.GBP.IS.N.M"]
[{"$f":"\"INN.\"&EIGNIR!$B$3&C7232","v":{"$error":"#N/A"}},{"$f":"'Sundurliðun Innlán'!K77","v":0},".M.SFUINOI.XX.ERS.XXX.XXXX.SX.XXX.GBP.IS.N.M"]
[{"$f":"\"INN.\"&EIGNIR!$B$3&C7233","v":{"$error":"#N/A"}},{"$f":"'Sundurliðun Innlán'!K78","v":0},".M.SFUINOI.XX.ERI.XXX.XXXX.SX.XXX.GBP.IS.N.M"]
[{"$f":"\"INN.\"&EIGNIR!$B$3&C7234","v":{"$error":"#N/A"}},{"$f":"'Sundurliðun Innlán'!K79","v":0},".M.SFUINOI.XX.ERP.XXX.XXXX.SX.XXX.GBP.IS.N.M"]
[{"$f":"\"INN.\"&EIGNIR!$B$3&C7235","v":{"$error":"#N/A"}},{"$f":"'Sundurliðun Innlán'!K80","v":0},".M.SFUINOI.XX.ERV.XXX.XXXX.SX.XXX.GBP.IS.N.M"]
[{"$f":"\"INN.\"&EIGNIR!$B$3&C7236","v":{"$error":"#N/A"}},{"$f":"'Sundurliðun Innlán'!K81","v":0},".M.SFUINOI.XX.ERF.XXX.XXXX.SX.XXX.GBP.IS.N.M"]
[{"$f":"\"INN.\"&EIGNIR!$B$3&C7237","v":{"$error":"#N/A"}},{"$f":"'Sundurliðun Innlán'!K82","v":0},".M.SFUINOI.XX.ERO.XXX.XXXX.SX.XXX.GBP.IS.N.M"]
[{"$f":"\"INN.\"&EIGNIR!$B$3&C7238","v":{"$error":"#N/A"}},{"$f":"'Sundurliðun Innlán'!K83","v":0},".M.SFUINOI.XX.ERA.XXX.XXXX.SX.XXX.GBP.IS.N.M"]
[{"$f":"\"INN.\"&EIGNIR!$B$3&C7239","v":{"$error":"#N/A"}},{"$f":"'Sundurliðun Innlán'!K123","v":0},".M.SFUINOR.XX.XXX.XXX.XXXX.SV.XXX.GBP.IS.N.M"]
[{"$f":"\"INN.\"&EIGNIR!$B$3&C7240","v":{"$error":"#N/A"}},{"$f":"'Sundurliðun Innlán'!K124","v":0},".M.SFUINOR.XX.EIN.XXX.XXXX.SV.XXX.GBP.IS.N.M"]
[{"$f":"\"INN.\"&EIGNIR!$B$3&C7241","v":{"$error":"#N/A"}},{"$f":"'Sundurliðun Innlán'!K125","v":0},".M.SFUINOR.XX.ERL.XXX.XXXX.SV.XXX.GBP.IS.N.M"]
[{"$f":"\"INN.\"&EIGNIR!$B$3&C7242","v":{"$error":"#N/A"}},{"$f":"'Sundurliðun Innlán'!K126","v":0},".M.SFUINVB.XX.XXX.XXX.XXXX.SX.XXX.GBP.IS.N.M"]
[{"$f":"\"INN.\"&EIGNIR!$B$3&C7243","v":{"$error":"#N/A"}},{"$f":"'Sundurliðun Innlán'!K127","v":0},".M.SFUINVB.XX.EIN.XXX.XXXX.SX.XXX.GBP.IS.N.M"]
[{"$f":"\"INN.\"&EIGNIR!$B$3&C7244","v":{"$error":"#N/A"}},{"$f":"'Sundurliðun Innlán'!K128","v":0},".M.SFUINVB.XX.ERL.XXX.XXXX.SX.XXX.GBP.IS.N.M"]
[{"$f":"\"INN.\"&EIGNIR!$B$3&C7245","v":{"$error":"#N/A"}},{"$f":"'Sundurliðun Innlán'!K129","v":0},".M.SFUINBI.XX.$$$.XXX.XXXX.SX.XXX.GBP.IS.N.M"]
[{"$f":"\"INN.\"&EIGNIR!$B$3&C7246","v":{"$error":"#N/A"}},{"$f":"'Sundurliðun Innlán'!K130","v":0},".M.SFUINBI.XX.ATV.XXX.XXXX.SX.XXX.GBP.IS.N.M"]
[{"$f":"\"INN.\"&EIGNIR!$B$3&C7247","v":{"$error":"#N/A"}},{"$f":"'Sundurliðun Innlán'!K144","v":0},".M.SFUINBI.XX.FJA.XXX.XXXX.SX.XXX.GBP.IS.N.M"]
[{"$f":"\"INN.\"&EIGNIR!$B$3&C7248","v":{"$error":"#N/A"}},{"$f":"'Sundurliðun Innlán'!K145","v":0},".M.SFUINBI.XX.INN.XXX.XXXX.SX.XXX.GBP.IS.N.M"]
[{"$f":"\"INN.\"&EIGNIR!$B$3&C7249","v":{"$error":"#N/A"}},{"$f":"'Sundurliðun Innlán'!K146","v":0},".M.SFUINBI.XX.SLI.XXX.XXXX.SX.XXX.GBP.IS.N.M"]
[{"$f":"\"INN.\"&EIGNIR!$B$3&C7250","v":{"$error":"#N/A"}},{"$f":"'Sundurliðun Innlán'!K147","v":0},".M.SFUINBI.XX.PEN.XXX.XXXX.SX.XXX.GBP.IS.N.M"]
[{"$f":"\"INN.\"&EIGNIR!$B$3&C7251","v":{"$error":"#N/A"}},{"$f":"'Sundurliðun Innlán'!K148","v":0},".M.SFUINBI.XX.SJO.XXX.XXXX.SX.XXX.GBP.IS.N.M"]
[{"$f":"\"INN.\"&EIGNIR!$B$3&C7252","v":{"$error":"#N/A"}},{"$f":"'Sundurliðun Innlán'!K149","v":0},".M.SFUINBI.XX.YFT.XXX.XXXX.SX.XXX.GBP.IS.N.M"]
[{"$f":"\"INN.\"&EIGNIR!$B$3&C7253","v":{"$error":"#N/A"}},{"$f":"'Sundurliðun Innlán'!K150","v":0},".M.SFUINBI.XX.SLY.XXX.XXXX.SX.XXX.GBP.IS.N.M"]
[{"$f":"\"INN.\"&EIGNIR!$B$3&C7254","v":{"$error":"#N/A"}},{"$f":"'Sundurliðun Innlán'!K151","v":0},".M.SFUINBI.XX.FHL.XXX.XXXX.SX.XXX.GBP.IS.N.M"]
[{"$f":"\"INN.\"&EIGNIR!$B$3&C7255","v":{"$error":"#N/A"}},{"$f":"'Sundurliðun Innlán'!K152","v":0},".M.SFUINBI.XX.INF.XXX.XXXX.SX.XXX.GBP.IS.N.M"]
[{"$f":"\"INN.\"&EIGNIR!$B$3&C7256","v":{"$error":"#N/A"}},{"$f":"'Sundurliðun Innlán'!K153","v":0},".M.SFUINBI.XX.TRY.XXX.XXXX.SX.XXX.GBP.IS.N.M"]
[{"$f":"\"INN.\"&EIGNIR!$B$3&C7257","v":{"$error":"#N/A"}},{"$f":"'Sundurliðun Innlán'!K154","v":0},".M.SFUINBI.XX.LIF.XXX.XXXX.SX.XXX.GBP.IS.N.M"]
[{"$f":"\"INN.\"&EIGNIR!$B$3&C7258","v":{"$error":"#N/A"}},{"$f":"'Sundurliðun Innlán'!K155","v":0},".M.SFUINBI.XX.OPI.XXX.XXXX.SX.XXX.GBP.IS.N.M"]
[{"$f":"\"INN.\"&EIGNIR!$B$3&C7259","v":{"$error":"#N/A"}},{"$f":"'Sundurliðun Innlán'!K156","v":0},".M.SFUINBI.XX.RSS.XXX.XXXX.SX.XXX.GBP.IS.N.M"]
[{"$f":"\"INN.\"&EIGNIR!$B$3&C7260","v":{"$error":"#N/A"}},{"$f":"'Sundurliðun Innlán'!K157","v":0},".M.SFUINBI.XX.BAJ.XXX.XXXX.SX.XXX.GBP.IS.N.M"]
[{"$f":"\"INN.\"&EIGNIR!$B$3&C7261","v":{"$error":"#N/A"}},{"$f":"'Sundurliðun Innlán'!K158","v":0},".M.SFUINBI.XX.EIN.XXX.XXXX.SX.XXX.GBP.IS.N.M"]
[{"$f":"\"INN.\"&EIGNIR!$B$3&C7262","v":{"$error":"#N/A"}},{"$f":"'Sundurliðun Innlán'!K159","v":0},".M.SFUINBI.XX.NPH.XXX.XXXX.SX.XXX.GBP.IS.N.M"]
[{"$f":"\"INN.\"&EIGNIR!$B$3&C7263","v":{"$error":"#N/A"}},{"$f":"'Sundurliðun Innlán'!K160","v":0},".M.SFUINBI.XX.ERL.XXX.XXXX.SX.XXX.GBP.IS.N.M"]
[{"$f":"\"INN.\"&EIGNIR!$B$3&C7264","v":{"$error":"#N/A"}},{"$f":"'Sundurliðun Innlán'!K161","v":0},".M.SFUINBI.XX.ERS.XXX.XXXX.SX.XXX.GBP.IS.N.M"]
[{"$f":"\"INN.\"&EIGNIR!$B$3&C7265","v":{"$error":"#N/A"}},{"$f":"'Sundurliðun Innlán'!K162","v":0},".M.SFUINBI.XX.ERI.XXX.XXXX.SX.XXX.GBP.IS.N.M"]
[{"$f":"\"INN.\"&EIGNIR!$B$3&C7266","v":{"$error":"#N/A"}},{"$f":"'Sundurliðun Innlán'!K163","v":0},".M.SFUINBI.XX.ERP.XXX.XXXX.SX.XXX.GBP.IS.N.M"]
[{"$f":"\"INN.\"&EIGNIR!$B$3&C7267","v":{"$error":"#N/A"}},{"$f":"'Sundurliðun Innlán'!K164","v":0},".M.SFUINBI.XX.ERV.XXX.XXXX.SX.XXX.GBP.IS.N.M"]
[{"$f":"\"INN.\"&EIGNIR!$B$3&C7268","v":{"$error":"#N/A"}},{"$f":"'Sundurliðun Innlán'!K165","v":0},".M.SFUINBI.XX.ERF.XXX.XXXX.SX.XXX.GBP.IS.N.M"]
[{"$f":"\"INN.\"&EIGNIR!$B$3&C7269","v":{"$error":"#N/A"}},{"$f":"'Sundurliðun Innlán'!K166","v":0},".M.SFUINBI.XX.ERO.XXX.XXXX.SX.XXX.GBP.IS.N.M"]
[{"$f":"\"INN.\"&EIGNIR!$B$3&C7270","v":{"$error":"#N/A"}},{"$f":"'Sundurliðun Innlán'!K167","v":0},".M.SFUINBI.XX.ERA.XXX.XXXX.SX.XXX.GBP.IS.N.M"]
[{"$f":"\"INN.\"&EIGNIR!$B$3&C7271","v":{"$error":"#N/A"}},{"$f":"'Sundurliðun Innlán'!L5","v":0},".M.SFUIN$$.XX.XXX.XXX.XXXX.SX.XXX.JPY.IS.N.M","//Sundurliðun innlána JPY"]
[{"$f":"\"INN.\"&EIGNIR!$B$3&C7272","v":{"$error":"#N/A"}},{"$f":"'Sundurliðun Innlán'!L6","v":0},".M.SFUINKV.XX.$$$.XXX.XXXX.SX.XXX.JPY.IS.N.M"]
[{"$f":"\"INN.\"&EIGNIR!$B$3&C7273","v":{"$error":"#N/A"}},{"$f":"'Sundurliðun Innlán'!L7","v":0},".M.SFUINKV.XX.ATV.XXX.XXXX.SX.XXX.JPY.IS.N.M"]
[{"$f":"\"INN.\"&EIGNIR!$B$3&C7274","v":{"$error":"#N/A"}},{"$f":"'Sundurliðun Innlán'!L21","v":0},".M.SFUINKV.XX.FJA.XXX.XXXX.SX.XXX.JPY.IS.N.M"]
[{"$f":"\"INN.\"&EIGNIR!$B$3&C7275","v":{"$error":"#N/A"}},{"$f":"'Sundurliðun Innlán'!L22","v":0},".M.SFUINKV.XX.INN.XXX.XXXX.SX.XXX.JPY.IS.N.M"]
[{"$f":"\"INN.\"&EIGNIR!$B$3&C7276","v":{"$error":"#N/A"}},{"$f":"'Sundurliðun Innlán'!L23","v":0},".M.SFUINKV.XX.SLI.XXX.XXXX.SX.XXX.JPY.IS.N.M"]
[{"$f":"\"INN.\"&EIGNIR!$B$3&C7277","v":{"$error":"#N/A"}},{"$f":"'Sundurliðun Innlán'!L24","v":0},".M.SFUINKV.XX.PEN.XXX.XXXX.SX.XXX.JPY.IS.N.M"]
[{"$f":"\"INN.\"&EIGNIR!$B$3&C7278","v":{"$error":"#N/A"}},{"$f":"'Sundurliðun Innlán'!L25","v":0},".M.SFUINKV.XX.SJO.XXX.XXXX.SX.XXX.JPY.IS.N.M"]
[{"$f":"\"INN.\"&EIGNIR!$B$3&C7279","v":{"$error":"#N/A"}},{"$f":"'Sundurliðun Innlán'!L26","v":0},".M.SFUINKV.XX.YFT.XXX.XXXX.SX.XXX.JPY.IS.N.M"]
[{"$f":"\"INN.\"&EIGNIR!$B$3&C7280","v":{"$error":"#N/A"}},{"$f":"'Sundurliðun Innlán'!L27","v":0},".M.SFUINKV.XX.SLY.XXX.XXXX.SX.XXX.JPY.IS.N.M"]
[{"$f":"\"INN.\"&EIGNIR!$B$3&C7281","v":{"$error":"#N/A"}},{"$f":"'Sundurliðun Innlán'!L28","v":0},".M.SFUINKV.XX.FHL.XXX.XXXX.SX.XXX.JPY.IS.N.M"]
[{"$f":"\"INN.\"&EIGNIR!$B$3&C7282","v":{"$error":"#N/A"}},{"$f":"'Sundurliðun Innlán'!L29","v":0},".M.SFUINKV.XX.INF.XXX.XXXX.SX.XXX.JPY.IS.N.M"]
[{"$f":"\"INN.\"&EIGNIR!$B$3&C7283","v":{"$error":"#N/A"}},{"$f":"'Sundurliðun Innlán'!L30","v":0},".M.SFUINKV.XX.TRY.XXX.XXXX.SX.XXX.JPY.IS.N.M"]
[{"$f":"\"INN.\"&EIGNIR!$B$3&C7284","v":{"$error":"#N/A"}},{"$f":"'Sundurliðun Innlán'!L31","v":0},".M.SFUINKV.XX.LIF.XXX.XXXX.SX.XXX.JPY.IS.N.M"]
[{"$f":"\"INN.\"&EIGNIR!$B$3&C7285","v":{"$error":"#N/A"}},{"$f":"'Sundurliðun Innlán'!L32","v":0},".M.SFUINKV.XX.OPI.XXX.XXXX.SX.XXX.JPY.IS.N.M"]
[{"$f":"\"INN.\"&EIGNIR!$B$3&C7286","v":{"$error":"#N/A"}},{"$f":"'Sundurliðun Innlán'!L33","v":0},".M.SFUINKV.XX.RSS.XXX.XXXX.SX.XXX.JPY.IS.N.M"]
[{"$f":"\"INN.\"&EIGNIR!$B$3&C7287","v":{"$error":"#N/A"}},{"$f":"'Sundurliðun Innlán'!L34","v":0},".M.SFUINKV.XX.BAJ.XXX.XXXX.SX.XXX.JPY.IS.N.M"]
[{"$f":"\"INN.\"&EIGNIR!$B$3&C7288","v":{"$error":"#N/A"}},{"$f":"'Sundurliðun Innlán'!L35","v":0},".M.SFUINKV.XX.EIN.XXX.XXXX.SX.XXX.JPY.IS.N.M"]
[{"$f":"\"INN.\"&EIGNIR!$B$3&C7289","v":{"$error":"#N/A"}},{"$f":"'Sundurliðun Innlán'!L36","v":0},".M.SFUINKV.XX.NPH.XXX.XXXX.SX.XXX.JPY.IS.N.M"]
[{"$f":"\"INN.\"&EIGNIR!$B$3&C7290","v":{"$error":"#N/A"}},{"$f":"'Sundurliðun Innlán'!L37","v":0},".M.SFUINKV.XX.ERL.XXX.XXXX.SX.XXX.JPY.IS.N.M"]
[{"$f":"\"INN.\"&EIGNIR!$B$3&C7291","v":{"$error":"#N/A"}},{"$f":"'Sundurliðun Innlán'!L38","v":0},".M.SFUINKV.XXX.ERS.XXX.XXXX.SX.XXX.JPY.IS.N.M"]
[{"$f":"\"INN.\"&EIGNIR!$B$3&C7292","v":{"$error":"#N/A"}},{"$f":"'Sundurliðun Innlán'!L39","v":0},".M.SFUINKV.XXX.ERI.XXX.XXXX.SX.XXX.JPY.IS.N.M"]
[{"$f":"\"INN.\"&EIGNIR!$B$3&C7293","v":{"$error":"#N/A"}},{"$f":"'Sundurliðun Innlán'!L40","v":0},".M.SFUINKV.XXX.ERP.XXX.XXXX.SX.XXX.JPY.IS.N.M"]
[{"$f":"\"INN.\"&EIGNIR!$B$3&C7294","v":{"$error":"#N/A"}},{"$f":"'Sundurliðun Innlán'!L41","v":0},".M.SFUINKV.XXX.ERV.XXX.XXXX.SX.XXX.JPY.IS.N.M"]
[{"$f":"\"INN.\"&EIGNIR!$B$3&C7295","v":{"$error":"#N/A"}},{"$f":"'Sundurliðun Innlán'!L42","v":0},".M.SFUINKV.XXX.ERF.XXX.XXXX.SX.XXX.JPY.IS.N.M"]
[{"$f":"\"INN.\"&EIGNIR!$B$3&C7296","v":{"$error":"#N/A"}},{"$f":"'Sundurliðun Innlán'!L43","v":0},".M.SFUINKV.XXX.ERO.XXX.XXXX.SX.XXX.JPY.IS.N.M"]
[{"$f":"\"INN.\"&EIGNIR!$B$3&C7297","v":{"$error":"#N/A"}},{"$f":"'Sundurliðun Innlán'!L44","v":0},".M.SFUINKV.XXX.ERA.XXX.XXXX.SX.XXX.JPY.IS.N.M"]
[{"$f":"\"INN.\"&EIGNIR!$B$3&C7298","v":{"$error":"#N/A"}},{"$f":"'Sundurliðun Innlán'!L45","v":0},".M.SFUINOI.XX.$$$.XXX.XXXX.SX.XXX.JPY.IS.N.M"]
[{"$f":"\"INN.\"&EIGNIR!$B$3&C7299","v":{"$error":"#N/A"}},{"$f":"'Sundurliðun Innlán'!L46","v":0},".M.SFUINOI.XX.ATV.XXX.XXXX.SX.XXX.JPY.IS.N.M"]
[{"$f":"\"INN.\"&EIGNIR!$B$3&C7300","v":{"$error":"#N/A"}},{"$f":"'Sundurliðun Innlán'!L60","v":0},".M.SFUINOI.XX.FJA.XXX.XXXX.SX.XXX.JPY.IS.N.M"]
[{"$f":"\"INN.\"&EIGNIR!$B$3&C7301","v":{"$error":"#N/A"}},{"$f":"'Sundurliðun Innlán'!L61","v":0},".M.SFUINOI.XX.INN.XXX.XXXX.SX.XXX.JPY.IS.N.M"]
[{"$f":"\"INN.\"&EIGNIR!$B$3&C7302","v":{"$error":"#N/A"}},{"$f":"'Sundurliðun Innlán'!L62","v":0},".M.SFUINOI.XX.SLI.XXX.XXXX.SX.XXX.JPY.IS.N.M"]
[{"$f":"\"INN.\"&EIGNIR!$B$3&C7303","v":{"$error":"#N/A"}},{"$f":"'Sundurliðun Innlán'!L63","v":0},".M.SFUINOI.XX.PEN.XXX.XXXX.SX.XXX.JPY.IS.N.M"]
[{"$f":"\"INN.\"&EIGNIR!$B$3&C7304","v":{"$error":"#N/A"}},{"$f":"'Sundurliðun Innlán'!L64","v":0},".M.SFUINOI.XX.SJO.XXX.XXXX.SX.XXX.JPY.IS.N.M"]
[{"$f":"\"INN.\"&EIGNIR!$B$3&C7305","v":{"$error":"#N/A"}},{"$f":"'Sundurliðun Innlán'!L65","v":0},".M.SFUINOI.XX.YFT.XXX.XXXX.SX.XXX.JPY.IS.N.M"]
[{"$f":"\"INN.\"&EIGNIR!$B$3&C7306","v":{"$error":"#N/A"}},{"$f":"'Sundurliðun Innlán'!L66","v":0},".M.SFUINOI.XX.SLY.XXX.XXXX.SX.XXX.JPY.IS.N.M"]
[{"$f":"\"INN.\"&EIGNIR!$B$3&C7307","v":{"$error":"#N/A"}},{"$f":"'Sundurliðun Innlán'!L67","v":0},".M.SFUINOI.XX.FHL.XXX.XXXX.SX.XXX.JPY.IS.N.M"]
[{"$f":"\"INN.\"&EIGNIR!$B$3&C7308","v":{"$error":"#N/A"}},{"$f":"'Sundurliðun Innlán'!L68","v":0},".M.SFUINOI.XX.INF.XXX.XXXX.SX.XXX.JPY.IS.N.M"]
[{"$f":"\"INN.\"&EIGNIR!$B$3&C7309","v":{"$error":"#N/A"}},{"$f":"'Sundurliðun Innlán'!L69","v":0},".M.SFUINOI.XX.TRY.XXX.XXXX.SX.XXX.JPY.IS.N.M"]
[{"$f":"\"INN.\"&EIGNIR!$B$3&C7310","v":{"$error":"#N/A"}},{"$f":"'Sundurliðun Innlán'!L70","v":0},".M.SFUINOI.XX.LIF.XXX.XXXX.SX.XXX.JPY.IS.N.M"]
[{"$f":"\"INN.\"&EIGNIR!$B$3&C7311","v":{"$error":"#N/A"}},{"$f":"'Sundurliðun Innlán'!L71","v":0},".M.SFUINOI.XX.OPI.XXX.XXXX.SX.XXX.JPY.IS.N.M"]
[{"$f":"\"INN.\"&EIGNIR!$B$3&C7312","v":{"$error":"#N/A"}},{"$f":"'Sundurliðun Innlán'!L72","v":0},".M.SFUINOI.XX.RSS.XXX.XXXX.SX.XXX.JPY.IS.N.M"]
[{"$f":"\"INN.\"&EIGNIR!$B$3&C7313","v":{"$error":"#N/A"}},{"$f":"'Sundurliðun Innlán'!L73","v":0},".M.SFUINOI.XX.BAJ.XXX.XXXX.SX.XXX.JPY.IS.N.M"]
[{"$f":"\"INN.\"&EIGNIR!$B$3&C7314","v":{"$error":"#N/A"}},{"$f":"'Sundurliðun Innlán'!L74","v":0},".M.SFUINOI.XX.EIN.XXX.XXXX.SX.XXX.JPY.IS.N.M"]
[{"$f":"\"INN.\"&EIGNIR!$B$3&C7315","v":{"$error":"#N/A"}},{"$f":"'Sundurliðun Innlán'!L75","v":0},".M.SFUINOI.XX.NPH.XXX.XXXX.SX.XXX.JPY.IS.N.M"]
[{"$f":"\"INN.\"&EIGNIR!$B$3&C7316","v":{"$error":"#N/A"}},{"$f":"'Sundurliðun Innlán'!L76","v":0},".M.SFUINOI.XX.ERL.XXX.XXXX.SX.XXX.JPY.IS.N.M"]
[{"$f":"\"INN.\"&EIGNIR!$B$3&C7317","v":{"$error":"#N/A"}},{"$f":"'Sundurliðun Innlán'!L77","v":0},".M.SFUINOI.XX.ERS.XXX.XXXX.SX.XXX.JPY.IS.N.M"]
[{"$f":"\"INN.\"&EIGNIR!$B$3&C7318","v":{"$error":"#N/A"}},{"$f":"'Sundurliðun Innlán'!L78","v":0},".M.SFUINOI.XX.ERI.XXX.XXXX.SX.XXX.JPY.IS.N.M"]
[{"$f":"\"INN.\"&EIGNIR!$B$3&C7319","v":{"$error":"#N/A"}},{"$f":"'Sundurliðun Innlán'!L79","v":0},".M.SFUINOI.XX.ERP.XXX.XXXX.SX.XXX.JPY.IS.N.M"]
[{"$f":"\"INN.\"&EIGNIR!$B$3&C7320","v":{"$error":"#N/A"}},{"$f":"'Sundurliðun Innlán'!L80","v":0},".M.SFUINOI.XX.ERV.XXX.XXXX.SX.XXX.JPY.IS.N.M"]
[{"$f":"\"INN.\"&EIGNIR!$B$3&C7321","v":{"$error":"#N/A"}},{"$f":"'Sundurliðun Innlán'!L81","v":0},".M.SFUINOI.XX.ERF.XXX.XXXX.SX.XXX.JPY.IS.N.M"]
[{"$f":"\"INN.\"&EIGNIR!$B$3&C7322","v":{"$error":"#N/A"}},{"$f":"'Sundurliðun Innlán'!L82","v":0},".M.SFUINOI.XX.ERO.XXX.XXXX.SX.XXX.JPY.IS.N.M"]
[{"$f":"\"INN.\"&EIGNIR!$B$3&C7323","v":{"$error":"#N/A"}},{"$f":"'Sundurliðun Innlán'!L83","v":0},".M.SFUINOI.XX.ERA.XXX.XXXX.SX.XXX.JPY.IS.N.M"]
[{"$f":"\"INN.\"&EIGNIR!$B$3&C7324","v":{"$error":"#N/A"}},{"$f":"'Sundurliðun Innlán'!L123","v":0},".M.SFUINOR.XX.XXX.XXX.XXXX.SV.XXX.JPY.IS.N.M"]
[{"$f":"\"INN.\"&EIGNIR!$B$3&C7325","v":{"$error":"#N/A"}},{"$f":"'Sundurliðun Innlán'!L124","v":0},".M.SFUINOR.XX.EIN.XXX.XXXX.SV.XXX.JPY.IS.N.M"]
[{"$f":"\"INN.\"&EIGNIR!$B$3&C7326","v":{"$error":"#N/A"}},{"$f":"'Sundurliðun Innlán'!L125","v":0},".M.SFUINOR.XX.ERL.XXX.XXXX.SV.XXX.JPY.IS.N.M"]
[{"$f":"\"INN.\"&EIGNIR!$B$3&C7327","v":{"$error":"#N/A"}},{"$f":"'Sundurliðun Innlán'!L126","v":0},".M.SFUINVB.XX.XXX.XXX.XXXX.SX.XXX.JPY.IS.N.M"]
[{"$f":"\"INN.\"&EIGNIR!$B$3&C7328","v":{"$error":"#N/A"}},{"$f":"'Sundurliðun Innlán'!L127","v":0},".M.SFUINVB.XX.EIN.XXX.XXXX.SX.XXX.JPY.IS.N.M"]
[{"$f":"\"INN.\"&EIGNIR!$B$3&C7329","v":{"$error":"#N/A"}},{"$f":"'Sundurliðun Innlán'!L128","v":0},".M.SFUINVB.XX.ERL.XXX.XXXX.SX.XXX.JPY.IS.N.M"]
[{"$f":"\"INN.\"&EIGNIR!$B$3&C7330","v":{"$error":"#N/A"}},{"$f":"'Sundurliðun Innlán'!L129","v":0},".M.SFUINBI.XX.$$$.XXX.XXXX.SX.XXX.JPY.IS.N.M"]
[{"$f":"\"INN.\"&EIGNIR!$B$3&C7331","v":{"$error":"#N/A"}},{"$f":"'Sundurliðun Innlán'!L130","v":0},".M.SFUINBI.XX.ATV.XXX.XXXX.SX.XXX.JPY.IS.N.M"]
[{"$f":"\"INN.\"&EIGNIR!$B$3&C7332","v":{"$error":"#N/A"}},{"$f":"'Sundurliðun Innlán'!L144","v":0},".M.SFUINBI.XX.FJA.XXX.XXXX.SX.XXX.JPY.IS.N.M"]
[{"$f":"\"INN.\"&EIGNIR!$B$3&C7333","v":{"$error":"#N/A"}},{"$f":"'Sundurliðun Innlán'!L145","v":0},".M.SFUINBI.XX.INN.XXX.XXXX.SX.XXX.JPY.IS.N.M"]
[{"$f":"\"INN.\"&EIGNIR!$B$3&C7334","v":{"$error":"#N/A"}},{"$f":"'Sundurliðun Innlán'!L146","v":0},".M.SFUINBI.XX.SLI.XXX.XXXX.SX.XXX.JPY.IS.N.M"]
[{"$f":"\"INN.\"&EIGNIR!$B$3&C7335","v":{"$error":"#N/A"}},{"$f":"'Sundurliðun Innlán'!L147","v":0},".M.SFUINBI.XX.PEN.XXX.XXXX.SX.XXX.JPY.IS.N.M"]
[{"$f":"\"INN.\"&EIGNIR!$B$3&C7336","v":{"$error":"#N/A"}},{"$f":"'Sundurliðun Innlán'!L148","v":0},".M.SFUINBI.XX.SJO.XXX.XXXX.SX.XXX.JPY.IS.N.M"]
[{"$f":"\"INN.\"&EIGNIR!$B$3&C7337","v":{"$error":"#N/A"}},{"$f":"'Sundurliðun Innlán'!L149","v":0},".M.SFUINBI.XX.YFT.XXX.XXXX.SX.XXX.JPY.IS.N.M"]
[{"$f":"\"INN.\"&EIGNIR!$B$3&C7338","v":{"$error":"#N/A"}},{"$f":"'Sundurliðun Innlán'!L150","v":0},".M.SFUINBI.XX.SLY.XXX.XXXX.SX.XXX.JPY.IS.N.M"]
[{"$f":"\"INN.\"&EIGNIR!$B$3&C7339","v":{"$error":"#N/A"}},{"$f":"'Sundurliðun Innlán'!L151","v":0},".M.SFUINBI.XX.FHL.XXX.XXXX.SX.XXX.JPY.IS.N.M"]
[{"$f":"\"INN.\"&EIGNIR!$B$3&C7340","v":{"$error":"#N/A"}},{"$f":"'Sundurliðun Innlán'!L152","v":0},".M.SFUINBI.XX.INF.XXX.XXXX.SX.XXX.JPY.IS.N.M"]
[{"$f":"\"INN.\"&EIGNIR!$B$3&C7341","v":{"$error":"#N/A"}},{"$f":"'Sundurliðun Innlán'!L153","v":0},".M.SFUINBI.XX.TRY.XXX.XXXX.SX.XXX.JPY.IS.N.M"]
[{"$f":"\"INN.\"&EIGNIR!$B$3&C7342","v":{"$error":"#N/A"}},{"$f":"'Sundurliðun Innlán'!L154","v":0},".M.SFUINBI.XX.LIF.XXX.XXXX.SX.XXX.JPY.IS.N.M"]
[{"$f":"\"INN.\"&EIGNIR!$B$3&C7343","v":{"$error":"#N/A"}},{"$f":"'Sundurliðun Innlán'!L155","v":0},".M.SFUINBI.XX.OPI.XXX.XXXX.SX.XXX.JPY.IS.N.M"]
[{"$f":"\"INN.\"&EIGNIR!$B$3&C7344","v":{"$error":"#N/A"}},{"$f":"'Sundurliðun Innlán'!L156","v":0},".M.SFUINBI.XX.RSS.XXX.XXXX.SX.XXX.JPY.IS.N.M"]
[{"$f":"\"INN.\"&EIGNIR!$B$3&C7345","v":{"$error":"#N/A"}},{"$f":"'Sundurliðun Innlán'!L157","v":0},".M.SFUINBI.XX.BAJ.XXX.XXXX.SX.XXX.JPY.IS.N.M"]
[{"$f":"\"INN.\"&EIGNIR!$B$3&C7346","v":{"$error":"#N/A"}},{"$f":"'Sundurliðun Innlán'!L158","v":0},".M.SFUINBI.XX.EIN.XXX.XXXX.SX.XXX.JPY.IS.N.M"]
[{"$f":"\"INN.\"&EIGNIR!$B$3&C7347","v":{"$error":"#N/A"}},{"$f":"'Sundurliðun Innlán'!L159","v":0},".M.SFUINBI.XX.NPH.XXX.XXXX.SX.XXX.JPY.IS.N.M"]
[{"$f":"\"INN.\"&EIGNIR!$B$3&C7348","v":{"$error":"#N/A"}},{"$f":"'Sundurliðun Innlán'!L160","v":0},".M.SFUINBI.XX.ERL.XXX.XXXX.SX.XXX.JPY.IS.N.M"]
[{"$f":"\"INN.\"&EIGNIR!$B$3&C7349","v":{"$error":"#N/A"}},{"$f":"'Sundurliðun Innlán'!L161","v":0},".M.SFUINBI.XX.ERS.XXX.XXXX.SX.XXX.JPY.IS.N.M"]
[{"$f":"\"INN.\"&EIGNIR!$B$3&C7350","v":{"$error":"#N/A"}},{"$f":"'Sundurliðun Innlán'!L162","v":0},".M.SFUINBI.XX.ERI.XXX.XXXX.SX.XXX.JPY.IS.N.M"]
[{"$f":"\"INN.\"&EIGNIR!$B$3&C7351","v":{"$error":"#N/A"}},{"$f":"'Sundurliðun Innlán'!L163","v":0},".M.SFUINBI.XX.ERP.XXX.XXXX.SX.XXX.JPY.IS.N.M"]
[{"$f":"\"INN.\"&EIGNIR!$B$3&C7352","v":{"$error":"#N/A"}},{"$f":"'Sundurliðun Innlán'!L164","v":0},".M.SFUINBI.XX.ERV.XXX.XXXX.SX.XXX.JPY.IS.N.M"]
[{"$f":"\"INN.\"&EIGNIR!$B$3&C7353","v":{"$error":"#N/A"}},{"$f":"'Sundurliðun Innlán'!L165","v":0},".M.SFUINBI.XX.ERF.XXX.XXXX.SX.XXX.JPY.IS.N.M"]
[{"$f":"\"INN.\"&EIGNIR!$B$3&C7354","v":{"$error":"#N/A"}},{"$f":"'Sundurliðun Innlán'!L166","v":0},".M.SFUINBI.XX.ERO.XXX.XXXX.SX.XXX.JPY.IS.N.M"]
[{"$f":"\"INN.\"&EIGNIR!$B$3&C7355","v":{"$error":"#N/A"}},{"$f":"'Sundurliðun Innlán'!L167","v":0},".M.SFUINBI.XX.ERA.XXX.XXXX.SX.XXX.JPY.IS.N.M"]
[{"$f":"\"INN.\"&EIGNIR!$B$3&C7356","v":{"$error":"#N/A"}},{"$f":"'Sundurliðun Innlán'!M5","v":0},".M.SFUIN$$.XX.XXX.XXX.XXXX.SX.XXX.DKK.IS.N.M","//Sundurliðun innlána DKK"]
[{"$f":"\"INN.\"&EIGNIR!$B$3&C7357","v":{"$error":"#N/A"}},{"$f":"'Sundurliðun Innlán'!M6","v":0},".M.SFUINKV.XX.$$$.XXX.XXXX.SX.XXX.DKK.IS.N.M"]
[{"$f":"\"INN.\"&EIGNIR!$B$3&C7358","v":{"$error":"#N/A"}},{"$f":"'Sundurliðun Innlán'!M7","v":0},".M.SFUINKV.XX.ATV.XXX.XXXX.SX.XXX.DKK.IS.N.M"]
[{"$f":"\"INN.\"&EIGNIR!$B$3&C7359","v":{"$error":"#N/A"}},{"$f":"'Sundurliðun Innlán'!M21","v":0},".M.SFUINKV.XX.FJA.XXX.XXXX.SX.XXX.DKK.IS.N.M"]
[{"$f":"\"INN.\"&EIGNIR!$B$3&C7360","v":{"$error":"#N/A"}},{"$f":"'Sundurliðun Innlán'!M22","v":0},".M.SFUINKV.XX.INN.XXX.XXXX.SX.XXX.DKK.IS.N.M"]
[{"$f":"\"INN.\"&EIGNIR!$B$3&C7361","v":{"$error":"#N/A"}},{"$f":"'Sundurliðun Innlán'!M23","v":0},".M.SFUINKV.XX.SLI.XXX.XXXX.SX.XXX.DKK.IS.N.M"]
[{"$f":"\"INN.\"&EIGNIR!$B$3&C7362","v":{"$error":"#N/A"}},{"$f":"'Sundurliðun Innlán'!M24","v":0},".M.SFUINKV.XX.PEN.XXX.XXXX.SX.XXX.DKK.IS.N.M"]
[{"$f":"\"INN.\"&EIGNIR!$B$3&C7363","v":{"$error":"#N/A"}},{"$f":"'Sundurliðun Innlán'!M25","v":0},".M.SFUINKV.XX.SJO.XXX.XXXX.SX.XXX.DKK.IS.N.M"]
[{"$f":"\"INN.\"&EIGNIR!$B$3&C7364","v":{"$error":"#N/A"}},{"$f":"'Sundurliðun Innlán'!M26","v":0},".M.SFUINKV.XX.YFT.XXX.XXXX.SX.XXX.DKK.IS.N.M"]
[{"$f":"\"INN.\"&EIGNIR!$B$3&C7365","v":{"$error":"#N/A"}},{"$f":"'Sundurliðun Innlán'!M27","v":0},".M.SFUINKV.XX.SLY.XXX.XXXX.SX.XXX.DKK.IS.N.M"]
[{"$f":"\"INN.\"&EIGNIR!$B$3&C7366","v":{"$error":"#N/A"}},{"$f":"'Sundurliðun Innlán'!M28","v":0},".M.SFUINKV.XX.FHL.XXX.XXXX.SX.XXX.DKK.IS.N.M"]
[{"$f":"\"INN.\"&EIGNIR!$B$3&C7367","v":{"$error":"#N/A"}},{"$f":"'Sundurliðun Innlán'!M29","v":0},".M.SFUINKV.XX.INF.XXX.XXXX.SX.XXX.DKK.IS.N.M"]
[{"$f":"\"INN.\"&EIGNIR!$B$3&C7368","v":{"$error":"#N/A"}},{"$f":"'Sundurliðun Innlán'!M30","v":0},".M.SFUINKV.XX.TRY.XXX.XXXX.SX.XXX.DKK.IS.N.M"]
[{"$f":"\"INN.\"&EIGNIR!$B$3&C7369","v":{"$error":"#N/A"}},{"$f":"'Sundurliðun Innlán'!M31","v":0},".M.SFUINKV.XX.LIF.XXX.XXXX.SX.XXX.DKK.IS.N.M"]
[{"$f":"\"INN.\"&EIGNIR!$B$3&C7370","v":{"$error":"#N/A"}},{"$f":"'Sundurliðun Innlán'!M32","v":0},".M.SFUINKV.XX.OPI.XXX.XXXX.SX.XXX.DKK.IS.N.M"]
[{"$f":"\"INN.\"&EIGNIR!$B$3&C7371","v":{"$error":"#N/A"}},{"$f":"'Sundurliðun Innlán'!M33","v":0},".M.SFUINKV.XX.RSS.XXX.XXXX.SX.XXX.DKK.IS.N.M"]
[{"$f":"\"INN.\"&EIGNIR!$B$3&C7372","v":{"$error":"#N/A"}},{"$f":"'Sundurliðun Innlán'!M34","v":0},".M.SFUINKV.XX.BAJ.XXX.XXXX.SX.XXX.DKK.IS.N.M"]
[{"$f":"\"INN.\"&EIGNIR!$B$3&C7373","v":{"$error":"#N/A"}},{"$f":"'Sundurliðun Innlán'!M35","v":0},".M.SFUINKV.XX.EIN.XXX.XXXX.SX.XXX.DKK.IS.N.M"]
[{"$f":"\"INN.\"&EIGNIR!$B$3&C7374","v":{"$error":"#N/A"}},{"$f":"'Sundurliðun Innlán'!M36","v":0},".M.SFUINKV.XX.NPH.XXX.XXXX.SX.XXX.DKK.IS.N.M"]
[{"$f":"\"INN.\"&EIGNIR!$B$3&C7375","v":{"$error":"#N/A"}},{"$f":"'Sundurliðun Innlán'!M37","v":0},".M.SFUINKV.XX.ERL.XXX.XXXX.SX.XXX.DKK.IS.N.M"]
[{"$f":"\"INN.\"&EIGNIR!$B$3&C7376","v":{"$error":"#N/A"}},{"$f":"'Sundurliðun Innlán'!M38","v":0},".M.SFUINKV.XXX.ERS.XXX.XXXX.SX.XXX.DKK.IS.N.M"]
[{"$f":"\"INN.\"&EIGNIR!$B$3&C7377","v":{"$error":"#N/A"}},{"$f":"'Sundurliðun Innlán'!M39","v":0},".M.SFUINKV.XXX.ERI.XXX.XXXX.SX.XXX.DKK.IS.N.M"]
[{"$f":"\"INN.\"&EIGNIR!$B$3&C7378","v":{"$error":"#N/A"}},{"$f":"'Sundurliðun Innlán'!M40","v":0},".M.SFUINKV.XXX.ERP.XXX.XXXX.SX.XXX.DKK.IS.N.M"]
[{"$f":"\"INN.\"&EIGNIR!$B$3&C7379","v":{"$error":"#N/A"}},{"$f":"'Sundurliðun Innlán'!M41","v":0},".M.SFUINKV.XXX.ERV.XXX.XXXX.SX.XXX.DKK.IS.N.M"]
[{"$f":"\"INN.\"&EIGNIR!$B$3&C7380","v":{"$error":"#N/A"}},{"$f":"'Sundurliðun Innlán'!M42","v":0},".M.SFUINKV.XXX.ERF.XXX.XXXX.SX.XXX.DKK.IS.N.M"]
[{"$f":"\"INN.\"&EIGNIR!$B$3&C7381","v":{"$error":"#N/A"}},{"$f":"'Sundurliðun Innlán'!M43","v":0},".M.SFUINKV.XXX.ERO.XXX.XXXX.SX.XXX.DKK.IS.N.M"]
[{"$f":"\"INN.\"&EIGNIR!$B$3&C7382","v":{"$error":"#N/A"}},{"$f":"'Sundurliðun Innlán'!M44","v":0},".M.SFUINKV.XXX.ERA.XXX.XXXX.SX.XXX.DKK.IS.N.M"]
[{"$f":"\"INN.\"&EIGNIR!$B$3&C7383","v":{"$error":"#N/A"}},{"$f":"'Sundurliðun Innlán'!M45","v":0},".M.SFUINOI.XX.$$$.XXX.XXXX.SX.XXX.DKK.IS.N.M"]
[{"$f":"\"INN.\"&EIGNIR!$B$3&C7384","v":{"$error":"#N/A"}},{"$f":"'Sundurliðun Innlán'!M46","v":0},".M.SFUINOI.XX.ATV.XXX.XXXX.SX.XXX.DKK.IS.N.M"]
[{"$f":"\"INN.\"&EIGNIR!$B$3&C7385","v":{"$error":"#N/A"}},{"$f":"'Sundurliðun Innlán'!M60","v":0},".M.SFUINOI.XX.FJA.XXX.XXXX.SX.XXX.DKK.IS.N.M"]
[{"$f":"\"INN.\"&EIGNIR!$B$3&C7386","v":{"$error":"#N/A"}},{"$f":"'Sundurliðun Innlán'!M61","v":0},".M.SFUINOI.XX.INN.XXX.XXXX.SX.XXX.DKK.IS.N.M"]
[{"$f":"\"INN.\"&EIGNIR!$B$3&C7387","v":{"$error":"#N/A"}},{"$f":"'Sundurliðun Innlán'!M62","v":0},".M.SFUINOI.XX.SLI.XXX.XXXX.SX.XXX.DKK.IS.N.M"]
[{"$f":"\"INN.\"&EIGNIR!$B$3&C7388","v":{"$error":"#N/A"}},{"$f":"'Sundurliðun Innlán'!M63","v":0},".M.SFUINOI.XX.PEN.XXX.XXXX.SX.XXX.DKK.IS.N.M"]
[{"$f":"\"INN.\"&EIGNIR!$B$3&C7389","v":{"$error":"#N/A"}},{"$f":"'Sundurliðun Innlán'!M64","v":0},".M.SFUINOI.XX.SJO.XXX.XXXX.SX.XXX.DKK.IS.N.M"]
[{"$f":"\"INN.\"&EIGNIR!$B$3&C7390","v":{"$error":"#N/A"}},{"$f":"'Sundurliðun Innlán'!M65","v":0},".M.SFUINOI.XX.YFT.XXX.XXXX.SX.XXX.DKK.IS.N.M"]
[{"$f":"\"INN.\"&EIGNIR!$B$3&C7391","v":{"$error":"#N/A"}},{"$f":"'Sundurliðun Innlán'!M66","v":0},".M.SFUINOI.XX.SLY.XXX.XXXX.SX.XXX.DKK.IS.N.M"]
[{"$f":"\"INN.\"&EIGNIR!$B$3&C7392","v":{"$error":"#N/A"}},{"$f":"'Sundurliðun Innlán'!M67","v":0},".M.SFUINOI.XX.FHL.XXX.XXXX.SX.XXX.DKK.IS.N.M"]
[{"$f":"\"INN.\"&EIGNIR!$B$3&C7393","v":{"$error":"#N/A"}},{"$f":"'Sundurliðun Innlán'!M68","v":0},".M.SFUINOI.XX.INF.XXX.XXXX.SX.XXX.DKK.IS.N.M"]
[{"$f":"\"INN.\"&EIGNIR!$B$3&C7394","v":{"$error":"#N/A"}},{"$f":"'Sundurliðun Innlán'!M69","v":0},".M.SFUINOI.XX.TRY.XXX.XXXX.SX.XXX.DKK.IS.N.M"]
[{"$f":"\"INN.\"&EIGNIR!$B$3&C7395","v":{"$error":"#N/A"}},{"$f":"'Sundurliðun Innlán'!M70","v":0},".M.SFUINOI.XX.LIF.XXX.XXXX.SX.XXX.DKK.IS.N.M"]
[{"$f":"\"INN.\"&EIGNIR!$B$3&C7396","v":{"$error":"#N/A"}},{"$f":"'Sundurliðun Innlán'!M71","v":0},".M.SFUINOI.XX.OPI.XXX.XXXX.SX.XXX.DKK.IS.N.M"]
[{"$f":"\"INN.\"&EIGNIR!$B$3&C7397","v":{"$error":"#N/A"}},{"$f":"'Sundurliðun Innlán'!M72","v":0},".M.SFUINOI.XX.RSS.XXX.XXXX.SX.XXX.DKK.IS.N.M"]
[{"$f":"\"INN.\"&EIGNIR!$B$3&C7398","v":{"$error":"#N/A"}},{"$f":"'Sundurliðun Innlán'!M73","v":0},".M.SFUINOI.XX.BAJ.XXX.XXXX.SX.XXX.DKK.IS.N.M"]
[{"$f":"\"INN.\"&EIGNIR!$B$3&C7399","v":{"$error":"#N/A"}},{"$f":"'Sundurliðun Innlán'!M74","v":0},".M.SFUINOI.XX.EIN.XXX.XXXX.SX.XXX.DKK.IS.N.M"]
[{"$f":"\"INN.\"&EIGNIR!$B$3&C7400","v":{"$error":"#N/A"}},{"$f":"'Sundurliðun Innlán'!M75","v":0},".M.SFUINOI.XX.NPH.XXX.XXXX.SX.XXX.DKK.IS.N.M"]
[{"$f":"\"INN.\"&EIGNIR!$B$3&C7401","v":{"$error":"#N/A"}},{"$f":"'Sundurliðun Innlán'!M76","v":0},".M.SFUINOI.XX.ERL.XXX.XXXX.SX.XXX.DKK.IS.N.M"]
[{"$f":"\"INN.\"&EIGNIR!$B$3&C7402","v":{"$error":"#N/A"}},{"$f":"'Sundurliðun Innlán'!M77","v":0},".M.SFUINOI.XX.ERS.XXX.XXXX.SX.XXX.DKK.IS.N.M"]
[{"$f":"\"INN.\"&EIGNIR!$B$3&C7403","v":{"$error":"#N/A"}},{"$f":"'Sundurliðun Innlán'!M78","v":0},".M.SFUINOI.XX.ERI.XXX.XXXX.SX.XXX.DKK.IS.N.M"]
[{"$f":"\"INN.\"&EIGNIR!$B$3&C7404","v":{"$error":"#N/A"}},{"$f":"'Sundurliðun Innlán'!M79","v":0},".M.SFUINOI.XX.ERP.XXX.XXXX.SX.XXX.DKK.IS.N.M"]
[{"$f":"\"INN.\"&EIGNIR!$B$3&C7405","v":{"$error":"#N/A"}},{"$f":"'Sundurliðun Innlán'!M80","v":0},".M.SFUINOI.XX.ERV.XXX.XXXX.SX.XXX.DKK.IS.N.M"]
[{"$f":"\"INN.\"&EIGNIR!$B$3&C7406","v":{"$error":"#N/A"}},{"$f":"'Sundurliðun Innlán'!M81","v":0},".M.SFUINOI.XX.ERF.XXX.XXXX.SX.XXX.DKK.IS.N.M"]
[{"$f":"\"INN.\"&EIGNIR!$B$3&C7407","v":{"$error":"#N/A"}},{"$f":"'Sundurliðun Innlán'!M82","v":0},".M.SFUINOI.XX.ERO.XXX.XXXX.SX.XXX.DKK.IS.N.M"]
[{"$f":"\"INN.\"&EIGNIR!$B$3&C7408","v":{"$error":"#N/A"}},{"$f":"'Sundurliðun Innlán'!M83","v":0},".M.SFUINOI.XX.ERA.XXX.XXXX.SX.XXX.DKK.IS.N.M"]
[{"$f":"\"INN.\"&EIGNIR!$B$3&C7409","v":{"$error":"#N/A"}},{"$f":"'Sundurliðun Innlán'!M123","v":0},".M.SFUINOR.XX.XXX.XXX.XXXX.SV.XXX.DKK.IS.N.M"]
[{"$f":"\"INN.\"&EIGNIR!$B$3&C7410","v":{"$error":"#N/A"}},{"$f":"'Sundurliðun Innlán'!M124","v":0},".M.SFUINOR.XX.EIN.XXX.XXXX.SV.XXX.DKK.IS.N.M"]
[{"$f":"\"INN.\"&EIGNIR!$B$3&C7411","v":{"$error":"#N/A"}},{"$f":"'Sundurliðun Innlán'!M125","v":0},".M.SFUINOR.XX.ERL.XXX.XXXX.SV.XXX.DKK.IS.N.M"]
[{"$f":"\"INN.\"&EIGNIR!$B$3&C7412","v":{"$error":"#N/A"}},{"$f":"'Sundurliðun Innlán'!M126","v":0},".M.SFUINVB.XX.XXX.XXX.XXXX.SX.XXX.DKK.IS.N.M"]
[{"$f":"\"INN.\"&EIGNIR!$B$3&C7413","v":{"$error":"#N/A"}},{"$f":"'Sundurliðun Innlán'!M127","v":0},".M.SFUINVB.XX.EIN.XXX.XXXX.SX.XXX.DKK.IS.N.M"]
[{"$f":"\"INN.\"&EIGNIR!$B$3&C7414","v":{"$error":"#N/A"}},{"$f":"'Sundurliðun Innlán'!M128","v":0},".M.SFUINVB.XX.ERL.XXX.XXXX.SX.XXX.DKK.IS.N.M"]
[{"$f":"\"INN.\"&EIGNIR!$B$3&C7415","v":{"$error":"#N/A"}},{"$f":"'Sundurliðun Innlán'!M129","v":0},".M.SFUINBI.XX.$$$.XXX.XXXX.SX.XXX.DKK.IS.N.M"]
[{"$f":"\"INN.\"&EIGNIR!$B$3&C7416","v":{"$error":"#N/A"}},{"$f":"'Sundurliðun Innlán'!M130","v":0},".M.SFUINBI.XX.ATV.XXX.XXXX.SX.XXX.DKK.IS.N.M"]
[{"$f":"\"INN.\"&EIGNIR!$B$3&C7417","v":{"$error":"#N/A"}},{"$f":"'Sundurliðun Innlán'!M144","v":0},".M.SFUINBI.XX.FJA.XXX.XXXX.SX.XXX.DKK.IS.N.M"]
[{"$f":"\"INN.\"&EIGNIR!$B$3&C7418","v":{"$error":"#N/A"}},{"$f":"'Sundurliðun Innlán'!M145","v":0},".M.SFUINBI.XX.INN.XXX.XXXX.SX.XXX.DKK.IS.N.M"]
[{"$f":"\"INN.\"&EIGNIR!$B$3&C7419","v":{"$error":"#N/A"}},{"$f":"'Sundurliðun Innlán'!M146","v":0},".M.SFUINBI.XX.SLI.XXX.XXXX.SX.XXX.DKK.IS.N.M"]
[{"$f":"\"INN.\"&EIGNIR!$B$3&C7420","v":{"$error":"#N/A"}},{"$f":"'Sundurliðun Innlán'!M147","v":0},".M.SFUINBI.XX.PEN.XXX.XXXX.SX.XXX.DKK.IS.N.M"]
[{"$f":"\"INN.\"&EIGNIR!$B$3&C7421","v":{"$error":"#N/A"}},{"$f":"'Sundurliðun Innlán'!M148","v":0},".M.SFUINBI.XX.SJO.XXX.XXXX.SX.XXX.DKK.IS.N.M"]
[{"$f":"\"INN.\"&EIGNIR!$B$3&C7422","v":{"$error":"#N/A"}},{"$f":"'Sundurliðun Innlán'!M149","v":0},".M.SFUINBI.XX.YFT.XXX.XXXX.SX.XXX.DKK.IS.N.M"]
[{"$f":"\"INN.\"&EIGNIR!$B$3&C7423","v":{"$error":"#N/A"}},{"$f":"'Sundurliðun Innlán'!M150","v":0},".M.SFUINBI.XX.SLY.XXX.XXXX.SX.XXX.DKK.IS.N.M"]
[{"$f":"\"INN.\"&EIGNIR!$B$3&C7424","v":{"$error":"#N/A"}},{"$f":"'Sundurliðun Innlán'!M151","v":0},".M.SFUINBI.XX.FHL.XXX.XXXX.SX.XXX.DKK.IS.N.M"]
[{"$f":"\"INN.\"&EIGNIR!$B$3&C7425","v":{"$error":"#N/A"}},{"$f":"'Sundurliðun Innlán'!M152","v":0},".M.SFUINBI.XX.INF.XXX.XXXX.SX.XXX.DKK.IS.N.M"]
[{"$f":"\"INN.\"&EIGNIR!$B$3&C7426","v":{"$error":"#N/A"}},{"$f":"'Sundurliðun Innlán'!M153","v":0},".M.SFUINBI.XX.TRY.XXX.XXXX.SX.XXX.DKK.IS.N.M"]
[{"$f":"\"INN.\"&EIGNIR!$B$3&C7427","v":{"$error":"#N/A"}},{"$f":"'Sundurliðun Innlán'!M154","v":0},".M.SFUINBI.XX.LIF.XXX.XXXX.SX.XXX.DKK.IS.N.M"]
[{"$f":"\"INN.\"&EIGNIR!$B$3&C7428","v":{"$error":"#N/A"}},{"$f":"'Sundurliðun Innlán'!M155","v":0},".M.SFUINBI.XX.OPI.XXX.XXXX.SX.XXX.DKK.IS.N.M"]
[{"$f":"\"INN.\"&EIGNIR!$B$3&C7429","v":{"$error":"#N/A"}},{"$f":"'Sundurliðun Innlán'!M156","v":0},".M.SFUINBI.XX.RSS.XXX.XXXX.SX.XXX.DKK.IS.N.M"]
[{"$f":"\"INN.\"&EIGNIR!$B$3&C7430","v":{"$error":"#N/A"}},{"$f":"'Sundurliðun Innlán'!M157","v":0},".M.SFUINBI.XX.BAJ.XXX.XXXX.SX.XXX.DKK.IS.N.M"]
[{"$f":"\"INN.\"&EIGNIR!$B$3&C7431","v":{"$error":"#N/A"}},{"$f":"'Sundurliðun Innlán'!M158","v":0},".M.SFUINBI.XX.EIN.XXX.XXXX.SX.XXX.DKK.IS.N.M"]
[{"$f":"\"INN.\"&EIGNIR!$B$3&C7432","v":{"$error":"#N/A"}},{"$f":"'Sundurliðun Innlán'!M159","v":0},".M.SFUINBI.XX.NPH.XXX.XXXX.SX.XXX.DKK.IS.N.M"]
[{"$f":"\"INN.\"&EIGNIR!$B$3&C7433","v":{"$error":"#N/A"}},{"$f":"'Sundurliðun Innlán'!M160","v":0},".M.SFUINBI.XX.ERL.XXX.XXXX.SX.XXX.DKK.IS.N.M"]
[{"$f":"\"INN.\"&EIGNIR!$B$3&C7434","v":{"$error":"#N/A"}},{"$f":"'Sundurliðun Innlán'!M161","v":0},".M.SFUINBI.XX.ERS.XXX.XXXX.SX.XXX.DKK.IS.N.M"]
[{"$f":"\"INN.\"&EIGNIR!$B$3&C7435","v":{"$error":"#N/A"}},{"$f":"'Sundurliðun Innlán'!M162","v":0},".M.SFUINBI.XX.ERI.XXX.XXXX.SX.XXX.DKK.IS.N.M"]
[{"$f":"\"INN.\"&EIGNIR!$B$3&C7436","v":{"$error":"#N/A"}},{"$f":"'Sundurliðun Innlán'!M163","v":0},".M.SFUINBI.XX.ERP.XXX.XXXX.SX.XXX.DKK.IS.N.M"]
[{"$f":"\"INN.\"&EIGNIR!$B$3&C7437","v":{"$error":"#N/A"}},{"$f":"'Sundurliðun Innlán'!M164","v":0},".M.SFUINBI.XX.ERV.XXX.XXXX.SX.XXX.DKK.IS.N.M"]
[{"$f":"\"INN.\"&EIGNIR!$B$3&C7438","v":{"$error":"#N/A"}},{"$f":"'Sundurliðun Innlán'!M165","v":0},".M.SFUINBI.XX.ERF.XXX.XXXX.SX.XXX.DKK.IS.N.M"]
[{"$f":"\"INN.\"&EIGNIR!$B$3&C7439","v":{"$error":"#N/A"}},{"$f":"'Sundurliðun Innlán'!M166","v":0},".M.SFUINBI.XX.ERO.XXX.XXXX.SX.XXX.DKK.IS.N.M"]
[{"$f":"\"INN.\"&EIGNIR!$B$3&C7440","v":{"$error":"#N/A"}},{"$f":"'Sundurliðun Innlán'!M167","v":0},".M.SFUINBI.XX.ERA.XXX.XXXX.SX.XXX.DKK.IS.N.M"]
[{"$f":"\"INN.\"&EIGNIR!$B$3&C7441","v":{"$error":"#N/A"}},{"$f":"'Sundurliðun Innlán'!N5","v":0},".M.SFUIN$$.XX.XXX.XXX.XXXX.SX.XXX.NOK.IS.N.M","//Sundurliðun innlána NOK"]
[{"$f":"\"INN.\"&EIGNIR!$B$3&C7442","v":{"$error":"#N/A"}},{"$f":"'Sundurliðun Innlán'!N6","v":0},".M.SFUINKV.XX.$$$.XXX.XXXX.SX.XXX.NOK.IS.N.M"]
[{"$f":"\"INN.\"&EIGNIR!$B$3&C7443","v":{"$error":"#N/A"}},{"$f":"'Sundurliðun Innlán'!N7","v":0},".M.SFUINKV.XX.ATV.XXX.XXXX.SX.XXX.NOK.IS.N.M"]
[{"$f":"\"INN.\"&EIGNIR!$B$3&C7444","v":{"$error":"#N/A"}},{"$f":"'Sundurliðun Innlán'!N21","v":0},".M.SFUINKV.XX.FJA.XXX.XXXX.SX.XXX.NOK.IS.N.M"]
[{"$f":"\"INN.\"&EIGNIR!$B$3&C7445","v":{"$error":"#N/A"}},{"$f":"'Sundurliðun Innlán'!N22","v":0},".M.SFUINKV.XX.INN.XXX.XXXX.SX.XXX.NOK.IS.N.M"]
[{"$f":"\"INN.\"&EIGNIR!$B$3&C7446","v":{"$error":"#N/A"}},{"$f":"'Sundurliðun Innlán'!N23","v":0},".M.SFUINKV.XX.SLI.XXX.XXXX.SX.XXX.NOK.IS.N.M"]
[{"$f":"\"INN.\"&EIGNIR!$B$3&C7447","v":{"$error":"#N/A"}},{"$f":"'Sundurliðun Innlán'!N24","v":0},".M.SFUINKV.XX.PEN.XXX.XXXX.SX.XXX.NOK.IS.N.M"]
[{"$f":"\"INN.\"&EIGNIR!$B$3&C7448","v":{"$error":"#N/A"}},{"$f":"'Sundurliðun Innlán'!N25","v":0},".M.SFUINKV.XX.SJO.XXX.XXXX.SX.XXX.NOK.IS.N.M"]
[{"$f":"\"INN.\"&EIGNIR!$B$3&C7449","v":{"$error":"#N/A"}},{"$f":"'Sundurliðun Innlán'!N26","v":0},".M.SFUINKV.XX.YFT.XXX.XXXX.SX.XXX.NOK.IS.N.M"]
[{"$f":"\"INN.\"&EIGNIR!$B$3&C7450","v":{"$error":"#N/A"}},{"$f":"'Sundurliðun Innlán'!N27","v":0},".M.SFUINKV.XX.SLY.XXX.XXXX.SX.XXX.NOK.IS.N.M"]
[{"$f":"\"INN.\"&EIGNIR!$B$3&C7451","v":{"$error":"#N/A"}},{"$f":"'Sundurliðun Innlán'!N28","v":0},".M.SFUINKV.XX.FHL.XXX.XXXX.SX.XXX.NOK.IS.N.M"]
[{"$f":"\"INN.\"&EIGNIR!$B$3&C7452","v":{"$error":"#N/A"}},{"$f":"'Sundurliðun Innlán'!N29","v":0},".M.SFUINKV.XX.INF.XXX.XXXX.SX.XXX.NOK.IS.N.M"]
[{"$f":"\"INN.\"&EIGNIR!$B$3&C7453","v":{"$error":"#N/A"}},{"$f":"'Sundurliðun Innlán'!N30","v":0},".M.SFUINKV.XX.TRY.XXX.XXXX.SX.XXX.NOK.IS.N.M"]
[{"$f":"\"INN.\"&EIGNIR!$B$3&C7454","v":{"$error":"#N/A"}},{"$f":"'Sundurliðun Innlán'!N31","v":0},".M.SFUINKV.XX.LIF.XXX.XXXX.SX.XXX.NOK.IS.N.M"]
[{"$f":"\"INN.\"&EIGNIR!$B$3&C7455","v":{"$error":"#N/A"}},{"$f":"'Sundurliðun Innlán'!N32","v":0},".M.SFUINKV.XX.OPI.XXX.XXXX.SX.XXX.NOK.IS.N.M"]
[{"$f":"\"INN.\"&EIGNIR!$B$3&C7456","v":{"$error":"#N/A"}},{"$f":"'Sundurliðun Innlán'!N33","v":0},".M.SFUINKV.XX.RSS.XXX.XXXX.SX.XXX.NOK.IS.N.M"]
[{"$f":"\"INN.\"&EIGNIR!$B$3&C7457","v":{"$error":"#N/A"}},{"$f":"'Sundurliðun Innlán'!N34","v":0},".M.SFUINKV.XX.BAJ.XXX.XXXX.SX.XXX.NOK.IS.N.M"]
[{"$f":"\"INN.\"&EIGNIR!$B$3&C7458","v":{"$error":"#N/A"}},{"$f":"'Sundurliðun Innlán'!N35","v":0},".M.SFUINKV.XX.EIN.XXX.XXXX.SX.XXX.NOK.IS.N.M"]
[{"$f":"\"INN.\"&EIGNIR!$B$3&C7459","v":{"$error":"#N/A"}},{"$f":"'Sundurliðun Innlán'!N36","v":0},".M.SFUINKV.XX.NPH.XXX.XXXX.SX.XXX.NOK.IS.N.M"]
[{"$f":"\"INN.\"&EIGNIR!$B$3&C7460","v":{"$error":"#N/A"}},{"$f":"'Sundurliðun Innlán'!N37","v":0},".M.SFUINKV.XX.ERL.XXX.XXXX.SX.XXX.NOK.IS.N.M"]
[{"$f":"\"INN.\"&EIGNIR!$B$3&C7461","v":{"$error":"#N/A"}},{"$f":"'Sundurliðun Innlán'!N38","v":0},".M.SFUINKV.XXX.ERS.XXX.XXXX.SX.XXX.NOK.IS.N.M"]
[{"$f":"\"INN.\"&EIGNIR!$B$3&C7462","v":{"$error":"#N/A"}},{"$f":"'Sundurliðun Innlán'!N39","v":0},".M.SFUINKV.XXX.ERI.XXX.XXXX.SX.XXX.NOK.IS.N.M"]
[{"$f":"\"INN.\"&EIGNIR!$B$3&C7463","v":{"$error":"#N/A"}},{"$f":"'Sundurliðun Innlán'!N40","v":0},".M.SFUINKV.XXX.ERP.XXX.XXXX.SX.XXX.NOK.IS.N.M"]
[{"$f":"\"INN.\"&EIGNIR!$B$3&C7464","v":{"$error":"#N/A"}},{"$f":"'Sundurliðun Innlán'!N41","v":0},".M.SFUINKV.XXX.ERV.XXX.XXXX.SX.XXX.NOK.IS.N.M"]
[{"$f":"\"INN.\"&EIGNIR!$B$3&C7465","v":{"$error":"#N/A"}},{"$f":"'Sundurliðun Innlán'!N42","v":0},".M.SFUINKV.XXX.ERF.XXX.XXXX.SX.XXX.NOK.IS.N.M"]
[{"$f":"\"INN.\"&EIGNIR!$B$3&C7466","v":{"$error":"#N/A"}},{"$f":"'Sundurliðun Innlán'!N43","v":0},".M.SFUINKV.XXX.ERO.XXX.XXXX.SX.XXX.NOK.IS.N.M"]
[{"$f":"\"INN.\"&EIGNIR!$B$3&C7467","v":{"$error":"#N/A"}},{"$f":"'Sundurliðun Innlán'!N44","v":0},".M.SFUINKV.XXX.ERA.XXX.XXXX.SX.XXX.NOK.IS.N.M"]
[{"$f":"\"INN.\"&EIGNIR!$B$3&C7468","v":{"$error":"#N/A"}},{"$f":"'Sundurliðun Innlán'!N45","v":0},".M.SFUINOI.XX.$$$.XXX.XXXX.SX.XXX.NOK.IS.N.M"]
[{"$f":"\"INN.\"&EIGNIR!$B$3&C7469","v":{"$error":"#N/A"}},{"$f":"'Sundurliðun Innlán'!N46","v":0},".M.SFUINOI.XX.ATV.XXX.XXXX.SX.XXX.NOK.IS.N.M"]
[{"$f":"\"INN.\"&EIGNIR!$B$3&C7470","v":{"$error":"#N/A"}},{"$f":"'Sundurliðun Innlán'!N60","v":0},".M.SFUINOI.XX.FJA.XXX.XXXX.SX.XXX.NOK.IS.N.M"]
[{"$f":"\"INN.\"&EIGNIR!$B$3&C7471","v":{"$error":"#N/A"}},{"$f":"'Sundurliðun Innlán'!N61","v":0},".M.SFUINOI.XX.INN.XXX.XXXX.SX.XXX.NOK.IS.N.M"]
[{"$f":"\"INN.\"&EIGNIR!$B$3&C7472","v":{"$error":"#N/A"}},{"$f":"'Sundurliðun Innlán'!N62","v":0},".M.SFUINOI.XX.SLI.XXX.XXXX.SX.XXX.NOK.IS.N.M"]
[{"$f":"\"INN.\"&EIGNIR!$B$3&C7473","v":{"$error":"#N/A"}},{"$f":"'Sundurliðun Innlán'!N63","v":0},".M.SFUINOI.XX.PEN.XXX.XXXX.SX.XXX.NOK.IS.N.M"]
[{"$f":"\"INN.\"&EIGNIR!$B$3&C7474","v":{"$error":"#N/A"}},{"$f":"'Sundurliðun Innlán'!N64","v":0},".M.SFUINOI.XX.SJO.XXX.XXXX.SX.XXX.NOK.IS.N.M"]
[{"$f":"\"INN.\"&EIGNIR!$B$3&C7475","v":{"$error":"#N/A"}},{"$f":"'Sundurliðun Innlán'!N65","v":0},".M.SFUINOI.XX.YFT.XXX.XXXX.SX.XXX.NOK.IS.N.M"]
[{"$f":"\"INN.\"&EIGNIR!$B$3&C7476","v":{"$error":"#N/A"}},{"$f":"'Sundurliðun Innlán'!N66","v":0},".M.SFUINOI.XX.SLY.XXX.XXXX.SX.XXX.NOK.IS.N.M"]
[{"$f":"\"INN.\"&EIGNIR!$B$3&C7477","v":{"$error":"#N/A"}},{"$f":"'Sundurliðun Innlán'!N67","v":0},".M.SFUINOI.XX.FHL.XXX.XXXX.SX.XXX.NOK.IS.N.M"]
[{"$f":"\"INN.\"&EIGNIR!$B$3&C7478","v":{"$error":"#N/A"}},{"$f":"'Sundurliðun Innlán'!N68","v":0},".M.SFUINOI.XX.INF.XXX.XXXX.SX.XXX.NOK.IS.N.M"]
[{"$f":"\"INN.\"&EIGNIR!$B$3&C7479","v":{"$error":"#N/A"}},{"$f":"'Sundurliðun Innlán'!N69","v":0},".M.SFUINOI.XX.TRY.XXX.XXXX.SX.XXX.NOK.IS.N.M"]
[{"$f":"\"INN.\"&EIGNIR!$B$3&C7480","v":{"$error":"#N/A"}},{"$f":"'Sundurliðun Innlán'!N70","v":0},".M.SFUINOI.XX.LIF.XXX.XXXX.SX.XXX.NOK.IS.N.M"]
[{"$f":"\"INN.\"&EIGNIR!$B$3&C7481","v":{"$error":"#N/A"}},{"$f":"'Sundurliðun Innlán'!N71","v":0},".M.SFUINOI.XX.OPI.XXX.XXXX.SX.XXX.NOK.IS.N.M"]
[{"$f":"\"INN.\"&EIGNIR!$B$3&C7482","v":{"$error":"#N/A"}},{"$f":"'Sundurliðun Innlán'!N72","v":0},".M.SFUINOI.XX.RSS.XXX.XXXX.SX.XXX.NOK.IS.N.M"]
[{"$f":"\"INN.\"&EIGNIR!$B$3&C7483","v":{"$error":"#N/A"}},{"$f":"'Sundurliðun Innlán'!N73","v":0},".M.SFUINOI.XX.BAJ.XXX.XXXX.SX.XXX.NOK.IS.N.M"]
[{"$f":"\"INN.\"&EIGNIR!$B$3&C7484","v":{"$error":"#N/A"}},{"$f":"'Sundurliðun Innlán'!N74","v":0},".M.SFUINOI.XX.EIN.XXX.XXXX.SX.XXX.NOK.IS.N.M"]
[{"$f":"\"INN.\"&EIGNIR!$B$3&C7485","v":{"$error":"#N/A"}},{"$f":"'Sundurliðun Innlán'!N75","v":0},".M.SFUINOI.XX.NPH.XXX.XXXX.SX.XXX.NOK.IS.N.M"]
[{"$f":"\"INN.\"&EIGNIR!$B$3&C7486","v":{"$error":"#N/A"}},{"$f":"'Sundurliðun Innlán'!N76","v":0},".M.SFUINOI.XX.ERL.XXX.XXXX.SX.XXX.NOK.IS.N.M"]
[{"$f":"\"INN.\"&EIGNIR!$B$3&C7487","v":{"$error":"#N/A"}},{"$f":"'Sundurliðun Innlán'!N77","v":0},".M.SFUINOI.XX.ERS.XXX.XXXX.SX.XXX.NOK.IS.N.M"]
[{"$f":"\"INN.\"&EIGNIR!$B$3&C7488","v":{"$error":"#N/A"}},{"$f":"'Sundurliðun Innlán'!N78","v":0},".M.SFUINOI.XX.ERI.XXX.XXXX.SX.XXX.NOK.IS.N.M"]
[{"$f":"\"INN.\"&EIGNIR!$B$3&C7489","v":{"$error":"#N/A"}},{"$f":"'Sundurliðun Innlán'!N79","v":0},".M.SFUINOI.XX.ERP.XXX.XXXX.SX.XXX.NOK.IS.N.M"]
[{"$f":"\"INN.\"&EIGNIR!$B$3&C7490","v":{"$error":"#N/A"}},{"$f":"'Sundurliðun Innlán'!N80","v":0},".M.SFUINOI.XX.ERV.XXX.XXXX.SX.XXX.NOK.IS.N.M"]
[{"$f":"\"INN.\"&EIGNIR!$B$3&C7491","v":{"$error":"#N/A"}},{"$f":"'Sundurliðun Innlán'!N81","v":0},".M.SFUINOI.XX.ERF.XXX.XXXX.SX.XXX.NOK.IS.N.M"]
[{"$f":"\"INN.\"&EIGNIR!$B$3&C7492","v":{"$error":"#N/A"}},{"$f":"'Sundurliðun Innlán'!N82","v":0},".M.SFUINOI.XX.ERO.XXX.XXXX.SX.XXX.NOK.IS.N.M"]
[{"$f":"\"INN.\"&EIGNIR!$B$3&C7493","v":{"$error":"#N/A"}},{"$f":"'Sundurliðun Innlán'!N83","v":0},".M.SFUINOI.XX.ERA.XXX.XXXX.SX.XXX.NOK.IS.N.M"]
[{"$f":"\"INN.\"&EIGNIR!$B$3&C7494","v":{"$error":"#N/A"}},{"$f":"'Sundurliðun Innlán'!N123","v":0},".M.SFUINOR.XX.XXX.XXX.XXXX.SV.XXX.NOK.IS.N.M"]
[{"$f":"\"INN.\"&EIGNIR!$B$3&C7495","v":{"$error":"#N/A"}},{"$f":"'Sundurliðun Innlán'!N124","v":0},".M.SFUINOR.XX.EIN.XXX.XXXX.SV.XXX.NOK.IS.N.M"]
[{"$f":"\"INN.\"&EIGNIR!$B$3&C7496","v":{"$error":"#N/A"}},{"$f":"'Sundurliðun Innlán'!N125","v":0},".M.SFUINOR.XX.ERL.XXX.XXXX.SV.XXX.NOK.IS.N.M"]
[{"$f":"\"INN.\"&EIGNIR!$B$3&C7497","v":{"$error":"#N/A"}},{"$f":"'Sundurliðun Innlán'!N126","v":0},".M.SFUINVB.XX.XXX.XXX.XXXX.SX.XXX.NOK.IS.N.M"]
[{"$f":"\"INN.\"&EIGNIR!$B$3&C7498","v":{"$error":"#N/A"}},{"$f":"'Sundurliðun Innlán'!N127","v":0},".M.SFUINVB.XX.EIN.XXX.XXXX.SX.XXX.NOK.IS.N.M"]
[{"$f":"\"INN.\"&EIGNIR!$B$3&C7499","v":{"$error":"#N/A"}},{"$f":"'Sundurliðun Innlán'!N128","v":0},".M.SFUINVB.XX.ERL.XXX.XXXX.SX.XXX.NOK.IS.N.M"]
[{"$f":"\"INN.\"&EIGNIR!$B$3&C7500","v":{"$error":"#N/A"}},{"$f":"'Sundurliðun Innlán'!N129","v":0},".M.SFUINBI.XX.$$$.XXX.XXXX.SX.XXX.NOK.IS.N.M"]
[{"$f":"\"INN.\"&EIGNIR!$B$3&C7501","v":{"$error":"#N/A"}},{"$f":"'Sundurliðun Innlán'!N130","v":0},".M.SFUINBI.XX.ATV.XXX.XXXX.SX.XXX.NOK.IS.N.M"]
[{"$f":"\"INN.\"&EIGNIR!$B$3&C7502","v":{"$error":"#N/A"}},{"$f":"'Sundurliðun Innlán'!N144","v":0},".M.SFUINBI.XX.FJA.XXX.XXXX.SX.XXX.NOK.IS.N.M"]
[{"$f":"\"INN.\"&EIGNIR!$B$3&C7503","v":{"$error":"#N/A"}},{"$f":"'Sundurliðun Innlán'!N145","v":0},".M.SFUINBI.XX.INN.XXX.XXXX.SX.XXX.NOK.IS.N.M"]
[{"$f":"\"INN.\"&EIGNIR!$B$3&C7504","v":{"$error":"#N/A"}},{"$f":"'Sundurliðun Innlán'!N146","v":0},".M.SFUINBI.XX.SLI.XXX.XXXX.SX.XXX.NOK.IS.N.M"]
[{"$f":"\"INN.\"&EIGNIR!$B$3&C7505","v":{"$error":"#N/A"}},{"$f":"'Sundurliðun Innlán'!N147","v":0},".M.SFUINBI.XX.PEN.XXX.XXXX.SX.XXX.NOK.IS.N.M"]
[{"$f":"\"INN.\"&EIGNIR!$B$3&C7506","v":{"$error":"#N/A"}},{"$f":"'Sundurliðun Innlán'!N148","v":0},".M.SFUINBI.XX.SJO.XXX.XXXX.SX.XXX.NOK.IS.N.M"]
[{"$f":"\"INN.\"&EIGNIR!$B$3&C7507","v":{"$error":"#N/A"}},{"$f":"'Sundurliðun Innlán'!N149","v":0},".M.SFUINBI.XX.YFT.XXX.XXXX.SX.XXX.NOK.IS.N.M"]
[{"$f":"\"INN.\"&EIGNIR!$B$3&C7508","v":{"$error":"#N/A"}},{"$f":"'Sundurliðun Innlán'!N150","v":0},".M.SFUINBI.XX.SLY.XXX.XXXX.SX.XXX.NOK.IS.N.M"]
[{"$f":"\"INN.\"&EIGNIR!$B$3&C7509","v":{"$error":"#N/A"}},{"$f":"'Sundurliðun Innlán'!N151","v":0},".M.SFUINBI.XX.FHL.XXX.XXXX.SX.XXX.NOK.IS.N.M"]
[{"$f":"\"INN.\"&EIGNIR!$B$3&C7510","v":{"$error":"#N/A"}},{"$f":"'Sundurliðun Innlán'!N152","v":0},".M.SFUINBI.XX.INF.XXX.XXXX.SX.XXX.NOK.IS.N.M"]
[{"$f":"\"INN.\"&EIGNIR!$B$3&C7511","v":{"$error":"#N/A"}},{"$f":"'Sundurliðun Innlán'!N153","v":0},".M.SFUINBI.XX.TRY.XXX.XXXX.SX.XXX.NOK.IS.N.M"]
[{"$f":"\"INN.\"&EIGNIR!$B$3&C7512","v":{"$error":"#N/A"}},{"$f":"'Sundurliðun Innlán'!N154","v":0},".M.SFUINBI.XX.LIF.XXX.XXXX.SX.XXX.NOK.IS.N.M"]
[{"$f":"\"INN.\"&EIGNIR!$B$3&C7513","v":{"$error":"#N/A"}},{"$f":"'Sundurliðun Innlán'!N155","v":0},".M.SFUINBI.XX.OPI.XXX.XXXX.SX.XXX.NOK.IS.N.M"]
[{"$f":"\"INN.\"&EIGNIR!$B$3&C7514","v":{"$error":"#N/A"}},{"$f":"'Sundurliðun Innlán'!N156","v":0},".M.SFUINBI.XX.RSS.XXX.XXXX.SX.XXX.NOK.IS.N.M"]
[{"$f":"\"INN.\"&EIGNIR!$B$3&C7515","v":{"$error":"#N/A"}},{"$f":"'Sundurliðun Innlán'!N157","v":0},".M.SFUINBI.XX.BAJ.XXX.XXXX.SX.XXX.NOK.IS.N.M"]
[{"$f":"\"INN.\"&EIGNIR!$B$3&C7516","v":{"$error":"#N/A"}},{"$f":"'Sundurliðun Innlán'!N158","v":0},".M.SFUINBI.XX.EIN.XXX.XXXX.SX.XXX.NOK.IS.N.M"]
[{"$f":"\"INN.\"&EIGNIR!$B$3&C7517","v":{"$error":"#N/A"}},{"$f":"'Sundurliðun Innlán'!N159","v":0},".M.SFUINBI.XX.NPH.XXX.XXXX.SX.XXX.NOK.IS.N.M"]
[{"$f":"\"INN.\"&EIGNIR!$B$3&C7518","v":{"$error":"#N/A"}},{"$f":"'Sundurliðun Innlán'!N160","v":0},".M.SFUINBI.XX.ERL.XXX.XXXX.SX.XXX.NOK.IS.N.M"]
[{"$f":"\"INN.\"&EIGNIR!$B$3&C7519","v":{"$error":"#N/A"}},{"$f":"'Sundurliðun Innlán'!N161","v":0},".M.SFUINBI.XX.ERS.XXX.XXXX.SX.XXX.NOK.IS.N.M"]
[{"$f":"\"INN.\"&EIGNIR!$B$3&C7520","v":{"$error":"#N/A"}},{"$f":"'Sundurliðun Innlán'!N162","v":0},".M.SFUINBI.XX.ERI.XXX.XXXX.SX.XXX.NOK.IS.N.M"]
[{"$f":"\"INN.\"&EIGNIR!$B$3&C7521","v":{"$error":"#N/A"}},{"$f":"'Sundurliðun Innlán'!N163","v":0},".M.SFUINBI.XX.ERP.XXX.XXXX.SX.XXX.NOK.IS.N.M"]
[{"$f":"\"INN.\"&EIGNIR!$B$3&C7522","v":{"$error":"#N/A"}},{"$f":"'Sundurliðun Innlán'!N164","v":0},".M.SFUINBI.XX.ERV.XXX.XXXX.SX.XXX.NOK.IS.N.M"]
[{"$f":"\"INN.\"&EIGNIR!$B$3&C7523","v":{"$error":"#N/A"}},{"$f":"'Sundurliðun Innlán'!N165","v":0},".M.SFUINBI.XX.ERF.XXX.XXXX.SX.XXX.NOK.IS.N.M"]
[{"$f":"\"INN.\"&EIGNIR!$B$3&C7524","v":{"$error":"#N/A"}},{"$f":"'Sundurliðun Innlán'!N166","v":0},".M.SFUINBI.XX.ERO.XXX.XXXX.SX.XXX.NOK.IS.N.M"]
[{"$f":"\"INN.\"&EIGNIR!$B$3&C7525","v":{"$error":"#N/A"}},{"$f":"'Sundurliðun Innlán'!N167","v":0},".M.SFUINBI.XX.ERA.XXX.XXXX.SX.XXX.NOK.IS.N.M"]
[{"$f":"\"INN.\"&EIGNIR!$B$3&C7526","v":{"$error":"#N/A"}},{"$f":"'Sundurliðun Innlán'!O5","v":0},".M.SFUIN$$.XX.XXX.XXX.XXXX.SX.XXX.SEK.IS.N.M","//Sundurliðun innlána SEK"]
[{"$f":"\"INN.\"&EIGNIR!$B$3&C7527","v":{"$error":"#N/A"}},{"$f":"'Sundurliðun Innlán'!O6","v":0},".M.SFUINKV.XX.$$$.XXX.XXXX.SX.XXX.SEK.IS.N.M"]
[{"$f":"\"INN.\"&EIGNIR!$B$3&C7528","v":{"$error":"#N/A"}},{"$f":"'Sundurliðun Innlán'!O7","v":0},".M.SFUINKV.XX.ATV.XXX.XXXX.SX.XXX.SEK.IS.N.M"]
[{"$f":"\"INN.\"&EIGNIR!$B$3&C7529","v":{"$error":"#N/A"}},{"$f":"'Sundurliðun Innlán'!O21","v":0},".M.SFUINKV.XX.FJA.XXX.XXXX.SX.XXX.SEK.IS.N.M"]
[{"$f":"\"INN.\"&EIGNIR!$B$3&C7530","v":{"$error":"#N/A"}},{"$f":"'Sundurliðun Innlán'!O22","v":0},".M.SFUINKV.XX.INN.XXX.XXXX.SX.XXX.SEK.IS.N.M"]
[{"$f":"\"INN.\"&EIGNIR!$B$3&C7531","v":{"$error":"#N/A"}},{"$f":"'Sundurliðun Innlán'!O23","v":0},".M.SFUINKV.XX.SLI.XXX.XXXX.SX.XXX.SEK.IS.N.M"]
[{"$f":"\"INN.\"&EIGNIR!$B$3&C7532","v":{"$error":"#N/A"}},{"$f":"'Sundurliðun Innlán'!O24","v":0},".M.SFUINKV.XX.PEN.XXX.XXXX.SX.XXX.SEK.IS.N.M"]
[{"$f":"\"INN.\"&EIGNIR!$B$3&C7533","v":{"$error":"#N/A"}},{"$f":"'Sundurliðun Innlán'!O25","v":0},".M.SFUINKV.XX.SJO.XXX.XXXX.SX.XXX.SEK.IS.N.M"]
[{"$f":"\"INN.\"&EIGNIR!$B$3&C7534","v":{"$error":"#N/A"}},{"$f":"'Sundurliðun Innlán'!O26","v":0},".M.SFUINKV.XX.YFT.XXX.XXXX.SX.XXX.SEK.IS.N.M"]
[{"$f":"\"INN.\"&EIGNIR!$B$3&C7535","v":{"$error":"#N/A"}},{"$f":"'Sundurliðun Innlán'!O27","v":0},".M.SFUINKV.XX.SLY.XXX.XXXX.SX.XXX.SEK.IS.N.M"]
[{"$f":"\"INN.\"&EIGNIR!$B$3&C7536","v":{"$error":"#N/A"}},{"$f":"'Sundurliðun Innlán'!O28","v":0},".M.SFUINKV.XX.FHL.XXX.XXXX.SX.XXX.SEK.IS.N.M"]
[{"$f":"\"INN.\"&EIGNIR!$B$3&C7537","v":{"$error":"#N/A"}},{"$f":"'Sundurliðun Innlán'!O29","v":0},".M.SFUINKV.XX.INF.XXX.XXXX.SX.XXX.SEK.IS.N.M"]
[{"$f":"\"INN.\"&EIGNIR!$B$3&C7538","v":{"$error":"#N/A"}},{"$f":"'Sundurliðun Innlán'!O30","v":0},".M.SFUINKV.XX.TRY.XXX.XXXX.SX.XXX.SEK.IS.N.M"]
[{"$f":"\"INN.\"&EIGNIR!$B$3&C7539","v":{"$error":"#N/A"}},{"$f":"'Sundurliðun Innlán'!O31","v":0},".M.SFUINKV.XX.LIF.XXX.XXXX.SX.XXX.SEK.IS.N.M"]
[{"$f":"\"INN.\"&EIGNIR!$B$3&C7540","v":{"$error":"#N/A"}},{"$f":"'Sundurliðun Innlán'!O32","v":0},".M.SFUINKV.XX.OPI.XXX.XXXX.SX.XXX.SEK.IS.N.M"]
[{"$f":"\"INN.\"&EIGNIR!$B$3&C7541","v":{"$error":"#N/A"}},{"$f":"'Sundurliðun Innlán'!O33","v":0},".M.SFUINKV.XX.RSS.XXX.XXXX.SX.XXX.SEK.IS.N.M"]
[{"$f":"\"INN.\"&EIGNIR!$B$3&C7542","v":{"$error":"#N/A"}},{"$f":"'Sundurliðun Innlán'!O34","v":0},".M.SFUINKV.XX.BAJ.XXX.XXXX.SX.XXX.SEK.IS.N.M"]
[{"$f":"\"INN.\"&EIGNIR!$B$3&C7543","v":{"$error":"#N/A"}},{"$f":"'Sundurliðun Innlán'!O35","v":0},".M.SFUINKV.XX.EIN.XXX.XXXX.SX.XXX.SEK.IS.N.M"]
[{"$f":"\"INN.\"&EIGNIR!$B$3&C7544","v":{"$error":"#N/A"}},{"$f":"'Sundurliðun Innlán'!O36","v":0},".M.SFUINKV.XX.NPH.XXX.XXXX.SX.XXX.SEK.IS.N.M"]
[{"$f":"\"INN.\"&EIGNIR!$B$3&C7545","v":{"$error":"#N/A"}},{"$f":"'Sundurliðun Innlán'!O37","v":0},".M.SFUINKV.XX.ERL.XXX.XXXX.SX.XXX.SEK.IS.N.M"]
[{"$f":"\"INN.\"&EIGNIR!$B$3&C7546","v":{"$error":"#N/A"}},{"$f":"'Sundurliðun Innlán'!O38","v":0},".M.SFUINKV.XXX.ERS.XXX.XXXX.SX.XXX.SEK.IS.N.M"]
[{"$f":"\"INN.\"&EIGNIR!$B$3&C7547","v":{"$error":"#N/A"}},{"$f":"'Sundurliðun Innlán'!O39","v":0},".M.SFUINKV.XXX.ERI.XXX.XXXX.SX.XXX.SEK.IS.N.M"]
[{"$f":"\"INN.\"&EIGNIR!$B$3&C7548","v":{"$error":"#N/A"}},{"$f":"'Sundurliðun Innlán'!O40","v":0},".M.SFUINKV.XXX.ERP.XXX.XXXX.SX.XXX.SEK.IS.N.M"]
[{"$f":"\"INN.\"&EIGNIR!$B$3&C7549","v":{"$error":"#N/A"}},{"$f":"'Sundurliðun Innlán'!O41","v":0},".M.SFUINKV.XXX.ERV.XXX.XXXX.SX.XXX.SEK.IS.N.M"]
[{"$f":"\"INN.\"&EIGNIR!$B$3&C7550","v":{"$error":"#N/A"}},{"$f":"'Sundurliðun Innlán'!O42","v":0},".M.SFUINKV.XXX.ERF.XXX.XXXX.SX.XXX.SEK.IS.N.M"]
[{"$f":"\"INN.\"&EIGNIR!$B$3&C7551","v":{"$error":"#N/A"}},{"$f":"'Sundurliðun Innlán'!O43","v":0},".M.SFUINKV.XXX.ERO.XXX.XXXX.SX.XXX.SEK.IS.N.M"]
[{"$f":"\"INN.\"&EIGNIR!$B$3&C7552","v":{"$error":"#N/A"}},{"$f":"'Sundurliðun Innlán'!O44","v":0},".M.SFUINKV.XXX.ERA.XXX.XXXX.SX.XXX.SEK.IS.N.M"]
[{"$f":"\"INN.\"&EIGNIR!$B$3&C7553","v":{"$error":"#N/A"}},{"$f":"'Sundurliðun Innlán'!O45","v":0},".M.SFUINOI.XX.$$$.XXX.XXXX.SX.XXX.SEK.IS.N.M"]
[{"$f":"\"INN.\"&EIGNIR!$B$3&C7554","v":{"$error":"#N/A"}},{"$f":"'Sundurliðun Innlán'!O46","v":0},".M.SFUINOI.XX.ATV.XXX.XXXX.SX.XXX.SEK.IS.N.M"]
[{"$f":"\"INN.\"&EIGNIR!$B$3&C7555","v":{"$error":"#N/A"}},{"$f":"'Sundurliðun Innlán'!O60","v":0},".M.SFUINOI.XX.FJA.XXX.XXXX.SX.XXX.SEK.IS.N.M"]
[{"$f":"\"INN.\"&EIGNIR!$B$3&C7556","v":{"$error":"#N/A"}},{"$f":"'Sundurliðun Innlán'!O61","v":0},".M.SFUINOI.XX.INN.XXX.XXXX.SX.XXX.SEK.IS.N.M"]
[{"$f":"\"INN.\"&EIGNIR!$B$3&C7557","v":{"$error":"#N/A"}},{"$f":"'Sundurliðun Innlán'!O62","v":0},".M.SFUINOI.XX.SLI.XXX.XXXX.SX.XXX.SEK.IS.N.M"]
[{"$f":"\"INN.\"&EIGNIR!$B$3&C7558","v":{"$error":"#N/A"}},{"$f":"'Sundurliðun Innlán'!O63","v":0},".M.SFUINOI.XX.PEN.XXX.XXXX.SX.XXX.SEK.IS.N.M"]
[{"$f":"\"INN.\"&EIGNIR!$B$3&C7559","v":{"$error":"#N/A"}},{"$f":"'Sundurliðun Innlán'!O64","v":0},".M.SFUINOI.XX.SJO.XXX.XXXX.SX.XXX.SEK.IS.N.M"]
[{"$f":"\"INN.\"&EIGNIR!$B$3&C7560","v":{"$error":"#N/A"}},{"$f":"'Sundurliðun Innlán'!O65","v":0},".M.SFUINOI.XX.YFT.XXX.XXXX.SX.XXX.SEK.IS.N.M"]
[{"$f":"\"INN.\"&EIGNIR!$B$3&C7561","v":{"$error":"#N/A"}},{"$f":"'Sundurliðun Innlán'!O66","v":0},".M.SFUINOI.XX.SLY.XXX.XXXX.SX.XXX.SEK.IS.N.M"]
[{"$f":"\"INN.\"&EIGNIR!$B$3&C7562","v":{"$error":"#N/A"}},{"$f":"'Sundurliðun Innlán'!O67","v":0},".M.SFUINOI.XX.FHL.XXX.XXXX.SX.XXX.SEK.IS.N.M"]
[{"$f":"\"INN.\"&EIGNIR!$B$3&C7563","v":{"$error":"#N/A"}},{"$f":"'Sundurliðun Innlán'!O68","v":0},".M.SFUINOI.XX.INF.XXX.XXXX.SX.XXX.SEK.IS.N.M"]
[{"$f":"\"INN.\"&EIGNIR!$B$3&C7564","v":{"$error":"#N/A"}},{"$f":"'Sundurliðun Innlán'!O69","v":0},".M.SFUINOI.XX.TRY.XXX.XXXX.SX.XXX.SEK.IS.N.M"]
[{"$f":"\"INN.\"&EIGNIR!$B$3&C7565","v":{"$error":"#N/A"}},{"$f":"'Sundurliðun Innlán'!O70","v":0},".M.SFUINOI.XX.LIF.XXX.XXXX.SX.XXX.SEK.IS.N.M"]
[{"$f":"\"INN.\"&EIGNIR!$B$3&C7566","v":{"$error":"#N/A"}},{"$f":"'Sundurliðun Innlán'!O71","v":0},".M.SFUINOI.XX.OPI.XXX.XXXX.SX.XXX.SEK.IS.N.M"]
[{"$f":"\"INN.\"&EIGNIR!$B$3&C7567","v":{"$error":"#N/A"}},{"$f":"'Sundurliðun Innlán'!O72","v":0},".M.SFUINOI.XX.RSS.XXX.XXXX.SX.XXX.SEK.IS.N.M"]
[{"$f":"\"INN.\"&EIGNIR!$B$3&C7568","v":{"$error":"#N/A"}},{"$f":"'Sundurliðun Innlán'!O73","v":0},".M.SFUINOI.XX.BAJ.XXX.XXXX.SX.XXX.SEK.IS.N.M"]
[{"$f":"\"INN.\"&EIGNIR!$B$3&C7569","v":{"$error":"#N/A"}},{"$f":"'Sundurliðun Innlán'!O74","v":0},".M.SFUINOI.XX.EIN.XXX.XXXX.SX.XXX.SEK.IS.N.M"]
[{"$f":"\"INN.\"&EIGNIR!$B$3&C7570","v":{"$error":"#N/A"}},{"$f":"'Sundurliðun Innlán'!O75","v":0},".M.SFUINOI.XX.NPH.XXX.XXXX.SX.XXX.SEK.IS.N.M"]
[{"$f":"\"INN.\"&EIGNIR!$B$3&C7571","v":{"$error":"#N/A"}},{"$f":"'Sundurliðun Innlán'!O76","v":0},".M.SFUINOI.XX.ERL.XXX.XXXX.SX.XXX.SEK.IS.N.M"]
[{"$f":"\"INN.\"&EIGNIR!$B$3&C7572","v":{"$error":"#N/A"}},{"$f":"'Sundurliðun Innlán'!O77","v":0},".M.SFUINOI.XX.ERS.XXX.XXXX.SX.XXX.SEK.IS.N.M"]
[{"$f":"\"INN.\"&EIGNIR!$B$3&C7573","v":{"$error":"#N/A"}},{"$f":"'Sundurliðun Innlán'!O78","v":0},".M.SFUINOI.XX.ERI.XXX.XXXX.SX.XXX.SEK.IS.N.M"]
[{"$f":"\"INN.\"&EIGNIR!$B$3&C7574","v":{"$error":"#N/A"}},{"$f":"'Sundurliðun Innlán'!O79","v":0},".M.SFUINOI.XX.ERP.XXX.XXXX.SX.XXX.SEK.IS.N.M"]
[{"$f":"\"INN.\"&EIGNIR!$B$3&C7575","v":{"$error":"#N/A"}},{"$f":"'Sundurliðun Innlán'!O80","v":0},".M.SFUINOI.XX.ERV.XXX.XXXX.SX.XXX.SEK.IS.N.M"]
[{"$f":"\"INN.\"&EIGNIR!$B$3&C7576","v":{"$error":"#N/A"}},{"$f":"'Sundurliðun Innlán'!O81","v":0},".M.SFUINOI.XX.ERF.XXX.XXXX.SX.XXX.SEK.IS.N.M"]
[{"$f":"\"INN.\"&EIGNIR!$B$3&C7577","v":{"$error":"#N/A"}},{"$f":"'Sundurliðun Innlán'!O82","v":0},".M.SFUINOI.XX.ERO.XXX.XXXX.SX.XXX.SEK.IS.N.M"]
[{"$f":"\"INN.\"&EIGNIR!$B$3&C7578","v":{"$error":"#N/A"}},{"$f":"'Sundurliðun Innlán'!O83","v":0},".M.SFUINOI.XX.ERA.XXX.XXXX.SX.XXX.SEK.IS.N.M"]
[{"$f":"\"INN.\"&EIGNIR!$B$3&C7579","v":{"$error":"#N/A"}},{"$f":"'Sundurliðun Innlán'!O123","v":0},".M.SFUINOR.XX.XXX.XXX.XXXX.SV.XXX.SEK.IS.N.M"]
[{"$f":"\"INN.\"&EIGNIR!$B$3&C7580","v":{"$error":"#N/A"}},{"$f":"'Sundurliðun Innlán'!O124","v":0},".M.SFUINOR.XX.EIN.XXX.XXXX.SV.XXX.SEK.IS.N.M"]
[{"$f":"\"INN.\"&EIGNIR!$B$3&C7581","v":{"$error":"#N/A"}},{"$f":"'Sundurliðun Innlán'!O125","v":0},".M.SFUINOR.XX.ERL.XXX.XXXX.SV.XXX.SEK.IS.N.M"]
[{"$f":"\"INN.\"&EIGNIR!$B$3&C7582","v":{"$error":"#N/A"}},{"$f":"'Sundurliðun Innlán'!O126","v":0},".M.SFUINVB.XX.XXX.XXX.XXXX.SX.XXX.SEK.IS.N.M"]
[{"$f":"\"INN.\"&EIGNIR!$B$3&C7583","v":{"$error":"#N/A"}},{"$f":"'Sundurliðun Innlán'!O127","v":0},".M.SFUINVB.XX.EIN.XXX.XXXX.SX.XXX.SEK.IS.N.M"]
[{"$f":"\"INN.\"&EIGNIR!$B$3&C7584","v":{"$error":"#N/A"}},{"$f":"'Sundurliðun Innlán'!O128","v":0},".M.SFUINVB.XX.ERL.XXX.XXXX.SX.XXX.SEK.IS.N.M"]
[{"$f":"\"INN.\"&EIGNIR!$B$3&C7585","v":{"$error":"#N/A"}},{"$f":"'Sundurliðun Innlán'!O129","v":0},".M.SFUINBI.XX.$$$.XXX.XXXX.SX.XXX.SEK.IS.N.M"]
[{"$f":"\"INN.\"&EIGNIR!$B$3&C7586","v":{"$error":"#N/A"}},{"$f":"'Sundurliðun Innlán'!O130","v":0},".M.SFUINBI.XX.ATV.XXX.XXXX.SX.XXX.SEK.IS.N.M"]
[{"$f":"\"INN.\"&EIGNIR!$B$3&C7587","v":{"$error":"#N/A"}},{"$f":"'Sundurliðun Innlán'!O144","v":0},".M.SFUINBI.XX.FJA.XXX.XXXX.SX.XXX.SEK.IS.N.M"]
[{"$f":"\"INN.\"&EIGNIR!$B$3&C7588","v":{"$error":"#N/A"}},{"$f":"'Sundurliðun Innlán'!O145","v":0},".M.SFUINBI.XX.INN.XXX.XXXX.SX.XXX.SEK.IS.N.M"]
[{"$f":"\"INN.\"&EIGNIR!$B$3&C7589","v":{"$error":"#N/A"}},{"$f":"'Sundurliðun Innlán'!O146","v":0},".M.SFUINBI.XX.SLI.XXX.XXXX.SX.XXX.SEK.IS.N.M"]
[{"$f":"\"INN.\"&EIGNIR!$B$3&C7590","v":{"$error":"#N/A"}},{"$f":"'Sundurliðun Innlán'!O147","v":0},".M.SFUINBI.XX.PEN.XXX.XXXX.SX.XXX.SEK.IS.N.M"]
[{"$f":"\"INN.\"&EIGNIR!$B$3&C7591","v":{"$error":"#N/A"}},{"$f":"'Sundurliðun Innlán'!O148","v":0},".M.SFUINBI.XX.SJO.XXX.XXXX.SX.XXX.SEK.IS.N.M"]
[{"$f":"\"INN.\"&EIGNIR!$B$3&C7592","v":{"$error":"#N/A"}},{"$f":"'Sundurliðun Innlán'!O149","v":0},".M.SFUINBI.XX.YFT.XXX.XXXX.SX.XXX.SEK.IS.N.M"]
[{"$f":"\"INN.\"&EIGNIR!$B$3&C7593","v":{"$error":"#N/A"}},{"$f":"'Sundurliðun Innlán'!O150","v":0},".M.SFUINBI.XX.SLY.XXX.XXXX.SX.XXX.SEK.IS.N.M"]
[{"$f":"\"INN.\"&EIGNIR!$B$3&C7594","v":{"$error":"#N/A"}},{"$f":"'Sundurliðun Innlán'!O151","v":0},".M.SFUINBI.XX.FHL.XXX.XXXX.SX.XXX.SEK.IS.N.M"]
[{"$f":"\"INN.\"&EIGNIR!$B$3&C7595","v":{"$error":"#N/A"}},{"$f":"'Sundurliðun Innlán'!O152","v":0},".M.SFUINBI.XX.INF.XXX.XXXX.SX.XXX.SEK.IS.N.M"]
[{"$f":"\"INN.\"&EIGNIR!$B$3&C7596","v":{"$error":"#N/A"}},{"$f":"'Sundurliðun Innlán'!O153","v":0},".M.SFUINBI.XX.TRY.XXX.XXXX.SX.XXX.SEK.IS.N.M"]
[{"$f":"\"INN.\"&EIGNIR!$B$3&C7597","v":{"$error":"#N/A"}},{"$f":"'Sundurliðun Innlán'!O154","v":0},".M.SFUINBI.XX.LIF.XXX.XXXX.SX.XXX.SEK.IS.N.M"]
[{"$f":"\"INN.\"&EIGNIR!$B$3&C7598","v":{"$error":"#N/A"}},{"$f":"'Sundurliðun Innlán'!O155","v":0},".M.SFUINBI.XX.OPI.XXX.XXXX.SX.XXX.SEK.IS.N.M"]
[{"$f":"\"INN.\"&EIGNIR!$B$3&C7599","v":{"$error":"#N/A"}},{"$f":"'Sundurliðun Innlán'!O156","v":0},".M.SFUINBI.XX.RSS.XXX.XXXX.SX.XXX.SEK.IS.N.M"]
[{"$f":"\"INN.\"&EIGNIR!$B$3&C7600","v":{"$error":"#N/A"}},{"$f":"'Sundurliðun Innlán'!O157","v":0},".M.SFUINBI.XX.BAJ.XXX.XXXX.SX.XXX.SEK.IS.N.M"]
[{"$f":"\"INN.\"&EIGNIR!$B$3&C7601","v":{"$error":"#N/A"}},{"$f":"'Sundurliðun Innlán'!O158","v":0},".M.SFUINBI.XX.EIN.XXX.XXXX.SX.XXX.SEK.IS.N.M"]
[{"$f":"\"INN.\"&EIGNIR!$B$3&C7602","v":{"$error":"#N/A"}},{"$f":"'Sundurliðun Innlán'!O159","v":0},".M.SFUINBI.XX.NPH.XXX.XXXX.SX.XXX.SEK.IS.N.M"]
[{"$f":"\"INN.\"&EIGNIR!$B$3&C7603","v":{"$error":"#N/A"}},{"$f":"'Sundurliðun Innlán'!O160","v":0},".M.SFUINBI.XX.ERL.XXX.XXXX.SX.XXX.SEK.IS.N.M"]
[{"$f":"\"INN.\"&EIGNIR!$B$3&C7604","v":{"$error":"#N/A"}},{"$f":"'Sundurliðun Innlán'!O161","v":0},".M.SFUINBI.XX.ERS.XXX.XXXX.SX.XXX.SEK.IS.N.M"]
[{"$f":"\"INN.\"&EIGNIR!$B$3&C7605","v":{"$error":"#N/A"}},{"$f":"'Sundurliðun Innlán'!O162","v":0},".M.SFUINBI.XX.ERI.XXX.XXXX.SX.XXX.SEK.IS.N.M"]
[{"$f":"\"INN.\"&EIGNIR!$B$3&C7606","v":{"$error":"#N/A"}},{"$f":"'Sundurliðun Innlán'!O163","v":0},".M.SFUINBI.XX.ERP.XXX.XXXX.SX.XXX.SEK.IS.N.M"]
[{"$f":"\"INN.\"&EIGNIR!$B$3&C7607","v":{"$error":"#N/A"}},{"$f":"'Sundurliðun Innlán'!O164","v":0},".M.SFUINBI.XX.ERV.XXX.XXXX.SX.XXX.SEK.IS.N.M"]
[{"$f":"\"INN.\"&EIGNIR!$B$3&C7608","v":{"$error":"#N/A"}},{"$f":"'Sundurliðun Innlán'!O165","v":0},".M.SFUINBI.XX.ERF.XXX.XXXX.SX.XXX.SEK.IS.N.M"]
[{"$f":"\"INN.\"&EIGNIR!$B$3&C7609","v":{"$error":"#N/A"}},{"$f":"'Sundurliðun Innlán'!O166","v":0},".M.SFUINBI.XX.ERO.XXX.XXXX.SX.XXX.SEK.IS.N.M"]
[{"$f":"\"INN.\"&EIGNIR!$B$3&C7610","v":{"$error":"#N/A"}},{"$f":"'Sundurliðun Innlán'!O167","v":0},".M.SFUINBI.XX.ERA.XXX.XXXX.SX.XXX.SEK.IS.N.M"]
[{"$f":"\"INN.\"&EIGNIR!$B$3&C7611","v":{"$error":"#N/A"}},{"$f":"'Sundurliðun Innlán'!P5","v":0},".M.SFUIN$$.XX.XXX.XXX.XXXX.SX.XXX.CHF.IS.N.M","//Sundurliðun innlána, CHF"]
[{"$f":"\"INN.\"&EIGNIR!$B$3&C7612","v":{"$error":"#N/A"}},{"$f":"'Sundurliðun Innlán'!P6","v":0},".M.SFUINKV.XX.$$$.XXX.XXXX.SX.XXX.CHF.IS.N.M"]
[{"$f":"\"INN.\"&EIGNIR!$B$3&C7613","v":{"$error":"#N/A"}},{"$f":"'Sundurliðun Innlán'!P7","v":0},".M.SFUINKV.XX.ATV.XXX.XXXX.SX.XXX.CHF.IS.N.M"]
[{"$f":"\"INN.\"&EIGNIR!$B$3&C7614","v":{"$error":"#N/A"}},{"$f":"'Sundurliðun Innlán'!P21","v":0},".M.SFUINKV.XX.FJA.XXX.XXXX.SX.XXX.CHF.IS.N.M"]
[{"$f":"\"INN.\"&EIGNIR!$B$3&C7615","v":{"$error":"#N/A"}},{"$f":"'Sundurliðun Innlán'!P22","v":0},".M.SFUINKV.XX.INN.XXX.XXXX.SX.XXX.CHF.IS.N.M"]
[{"$f":"\"INN.\"&EIGNIR!$B$3&C7616","v":{"$error":"#N/A"}},{"$f":"'Sundurliðun Innlán'!P23","v":0},".M.SFUINKV.XX.SLI.XXX.XXXX.SX.XXX.CHF.IS.N.M"]
[{"$f":"\"INN.\"&EIGNIR!$B$3&C7617","v":{"$error":"#N/A"}},{"$f":"'Sundurliðun Innlán'!P24","v":0},".M.SFUINKV.XX.PEN.XXX.XXXX.SX.XXX.CHF.IS.N.M"]
[{"$f":"\"INN.\"&EIGNIR!$B$3&C7618","v":{"$error":"#N/A"}},{"$f":"'Sundurliðun Innlán'!P25","v":0},".M.SFUINKV.XX.SJO.XXX.XXXX.SX.XXX.CHF.IS.N.M"]
[{"$f":"\"INN.\"&EIGNIR!$B$3&C7619","v":{"$error":"#N/A"}},{"$f":"'Sundurliðun Innlán'!P26","v":0},".M.SFUINKV.XX.YFT.XXX.XXXX.SX.XXX.CHF.IS.N.M"]
[{"$f":"\"INN.\"&EIGNIR!$B$3&C7620","v":{"$error":"#N/A"}},{"$f":"'Sundurliðun Innlán'!P27","v":0},".M.SFUINKV.XX.SLY.XXX.XXXX.SX.XXX.CHF.IS.N.M"]
[{"$f":"\"INN.\"&EIGNIR!$B$3&C7621","v":{"$error":"#N/A"}},{"$f":"'Sundurliðun Innlán'!P28","v":0},".M.SFUINKV.XX.FHL.XXX.XXXX.SX.XXX.CHF.IS.N.M"]
[{"$f":"\"INN.\"&EIGNIR!$B$3&C7622","v":{"$error":"#N/A"}},{"$f":"'Sundurliðun Innlán'!P29","v":0},".M.SFUINKV.XX.INF.XXX.XXXX.SX.XXX.CHF.IS.N.M"]
[{"$f":"\"INN.\"&EIGNIR!$B$3&C7623","v":{"$error":"#N/A"}},{"$f":"'Sundurliðun Innlán'!P30","v":0},".M.SFUINKV.XX.TRY.XXX.XXXX.SX.XXX.CHF.IS.N.M"]
[{"$f":"\"INN.\"&EIGNIR!$B$3&C7624","v":{"$error":"#N/A"}},{"$f":"'Sundurliðun Innlán'!P31","v":0},".M.SFUINKV.XX.LIF.XXX.XXXX.SX.XXX.CHF.IS.N.M"]
[{"$f":"\"INN.\"&EIGNIR!$B$3&C7625","v":{"$error":"#N/A"}},{"$f":"'Sundurliðun Innlán'!P32","v":0},".M.SFUINKV.XX.OPI.XXX.XXXX.SX.XXX.CHF.IS.N.M"]
[{"$f":"\"INN.\"&EIGNIR!$B$3&C7626","v":{"$error":"#N/A"}},{"$f":"'Sundurliðun Innlán'!P33","v":0},".M.SFUINKV.XX.RSS.XXX.XXXX.SX.XXX.CHF.IS.N.M"]
[{"$f":"\"INN.\"&EIGNIR!$B$3&C7627","v":{"$error":"#N/A"}},{"$f":"'Sundurliðun Innlán'!P34","v":0},".M.SFUINKV.XX.BAJ.XXX.XXXX.SX.XXX.CHF.IS.N.M"]
[{"$f":"\"INN.\"&EIGNIR!$B$3&C7628","v":{"$error":"#N/A"}},{"$f":"'Sundurliðun Innlán'!P35","v":0},".M.SFUINKV.XX.EIN.XXX.XXXX.SX.XXX.CHF.IS.N.M"]
[{"$f":"\"INN.\"&EIGNIR!$B$3&C7629","v":{"$error":"#N/A"}},{"$f":"'Sundurliðun Innlán'!P36","v":0},".M.SFUINKV.XX.NPH.XXX.XXXX.SX.XXX.CHF.IS.N.M"]
[{"$f":"\"INN.\"&EIGNIR!$B$3&C7630","v":{"$error":"#N/A"}},{"$f":"'Sundurliðun Innlán'!P37","v":0},".M.SFUINKV.XX.ERL.XXX.XXXX.SX.XXX.CHF.IS.N.M"]
[{"$f":"\"INN.\"&EIGNIR!$B$3&C7631","v":{"$error":"#N/A"}},{"$f":"'Sundurliðun Innlán'!P38","v":0},".M.SFUINKV.XXX.ERS.XXX.XXXX.SX.XXX.CHF.IS.N.M"]
[{"$f":"\"INN.\"&EIGNIR!$B$3&C7632","v":{"$error":"#N/A"}},{"$f":"'Sundurliðun Innlán'!P39","v":0},".M.SFUINKV.XXX.ERI.XXX.XXXX.SX.XXX.CHF.IS.N.M"]
[{"$f":"\"INN.\"&EIGNIR!$B$3&C7633","v":{"$error":"#N/A"}},{"$f":"'Sundurliðun Innlán'!P40","v":0},".M.SFUINKV.XXX.ERP.XXX.XXXX.SX.XXX.CHF.IS.N.M"]
[{"$f":"\"INN.\"&EIGNIR!$B$3&C7634","v":{"$error":"#N/A"}},{"$f":"'Sundurliðun Innlán'!P41","v":0},".M.SFUINKV.XXX.ERV.XXX.XXXX.SX.XXX.CHF.IS.N.M"]
[{"$f":"\"INN.\"&EIGNIR!$B$3&C7635","v":{"$error":"#N/A"}},{"$f":"'Sundurliðun Innlán'!P42","v":0},".M.SFUINKV.XXX.ERF.XXX.XXXX.SX.XXX.CHF.IS.N.M"]
[{"$f":"\"INN.\"&EIGNIR!$B$3&C7636","v":{"$error":"#N/A"}},{"$f":"'Sundurliðun Innlán'!P43","v":0},".M.SFUINKV.XXX.ERO.XXX.XXXX.SX.XXX.CHF.IS.N.M"]
[{"$f":"\"INN.\"&EIGNIR!$B$3&C7637","v":{"$error":"#N/A"}},{"$f":"'Sundurliðun Innlán'!P44","v":0},".M.SFUINKV.XXX.ERA.XXX.XXXX.SX.XXX.CHF.IS.N.M"]
[{"$f":"\"INN.\"&EIGNIR!$B$3&C7638","v":{"$error":"#N/A"}},{"$f":"'Sundurliðun Innlán'!P45","v":0},".M.SFUINOI.XX.$$$.XXX.XXXX.SX.XXX.CHF.IS.N.M"]
[{"$f":"\"INN.\"&EIGNIR!$B$3&C7639","v":{"$error":"#N/A"}},{"$f":"'Sundurliðun Innlán'!P46","v":0},".M.SFUINOI.XX.ATV.XXX.XXXX.SX.XXX.CHF.IS.N.M"]
[{"$f":"\"INN.\"&EIGNIR!$B$3&C7640","v":{"$error":"#N/A"}},{"$f":"'Sundurliðun Innlán'!P60","v":0},".M.SFUINOI.XX.FJA.XXX.XXXX.SX.XXX.CHF.IS.N.M"]
[{"$f":"\"INN.\"&EIGNIR!$B$3&C7641","v":{"$error":"#N/A"}},{"$f":"'Sundurliðun Innlán'!P61","v":0},".M.SFUINOI.XX.INN.XXX.XXXX.SX.XXX.CHF.IS.N.M"]
[{"$f":"\"INN.\"&EIGNIR!$B$3&C7642","v":{"$error":"#N/A"}},{"$f":"'Sundurliðun Innlán'!P62","v":0},".M.SFUINOI.XX.SLI.XXX.XXXX.SX.XXX.CHF.IS.N.M"]
[{"$f":"\"INN.\"&EIGNIR!$B$3&C7643","v":{"$error":"#N/A"}},{"$f":"'Sundurliðun Innlán'!P63","v":0},".M.SFUINOI.XX.PEN.XXX.XXXX.SX.XXX.CHF.IS.N.M"]
[{"$f":"\"INN.\"&EIGNIR!$B$3&C7644","v":{"$error":"#N/A"}},{"$f":"'Sundurliðun Innlán'!P64","v":0},".M.SFUINOI.XX.SJO.XXX.XXXX.SX.XXX.CHF.IS.N.M"]
[{"$f":"\"INN.\"&EIGNIR!$B$3&C7645","v":{"$error":"#N/A"}},{"$f":"'Sundurliðun Innlán'!P65","v":0},".M.SFUINOI.XX.YFT.XXX.XXXX.SX.XXX.CHF.IS.N.M"]
[{"$f":"\"INN.\"&EIGNIR!$B$3&C7646","v":{"$error":"#N/A"}},{"$f":"'Sundurliðun Innlán'!P66","v":0},".M.SFUINOI.XX.SLY.XXX.XXXX.SX.XXX.CHF.IS.N.M"]
[{"$f":"\"INN.\"&EIGNIR!$B$3&C7647","v":{"$error":"#N/A"}},{"$f":"'Sundurliðun Innlán'!P67","v":0},".M.SFUINOI.XX.FHL.XXX.XXXX.SX.XXX.CHF.IS.N.M"]
[{"$f":"\"INN.\"&EIGNIR!$B$3&C7648","v":{"$error":"#N/A"}},{"$f":"'Sundurliðun Innlán'!P68","v":0},".M.SFUINOI.XX.INF.XXX.XXXX.SX.XXX.CHF.IS.N.M"]
[{"$f":"\"INN.\"&EIGNIR!$B$3&C7649","v":{"$error":"#N/A"}},{"$f":"'Sundurliðun Innlán'!P69","v":0},".M.SFUINOI.XX.TRY.XXX.XXXX.SX.XXX.CHF.IS.N.M"]
[{"$f":"\"INN.\"&EIGNIR!$B$3&C7650","v":{"$error":"#N/A"}},{"$f":"'Sundurliðun Innlán'!P70","v":0},".M.SFUINOI.XX.LIF.XXX.XXXX.SX.XXX.CHF.IS.N.M"]
[{"$f":"\"INN.\"&EIGNIR!$B$3&C7651","v":{"$error":"#N/A"}},{"$f":"'Sundurliðun Innlán'!P71","v":0},".M.SFUINOI.XX.OPI.XXX.XXXX.SX.XXX.CHF.IS.N.M"]
[{"$f":"\"INN.\"&EIGNIR!$B$3&C7652","v":{"$error":"#N/A"}},{"$f":"'Sundurliðun Innlán'!P72","v":0},".M.SFUINOI.XX.RSS.XXX.XXXX.SX.XXX.CHF.IS.N.M"]
[{"$f":"\"INN.\"&EIGNIR!$B$3&C7653","v":{"$error":"#N/A"}},{"$f":"'Sundurliðun Innlán'!P73","v":0},".M.SFUINOI.XX.BAJ.XXX.XXXX.SX.XXX.CHF.IS.N.M"]
[{"$f":"\"INN.\"&EIGNIR!$B$3&C7654","v":{"$error":"#N/A"}},{"$f":"'Sundurliðun Innlán'!P74","v":0},".M.SFUINOI.XX.EIN.XXX.XXXX.SX.XXX.CHF.IS.N.M"]
[{"$f":"\"INN.\"&EIGNIR!$B$3&C7655","v":{"$error":"#N/A"}},{"$f":"'Sundurliðun Innlán'!P75","v":0},".M.SFUINOI.XX.NPH.XXX.XXXX.SX.XXX.CHF.IS.N.M"]
[{"$f":"\"INN.\"&EIGNIR!$B$3&C7656","v":{"$error":"#N/A"}},{"$f":"'Sundurliðun Innlán'!P76","v":0},".M.SFUINOI.XX.ERL.XXX.XXXX.SX.XXX.CHF.IS.N.M"]
[{"$f":"\"INN.\"&EIGNIR!$B$3&C7657","v":{"$error":"#N/A"}},{"$f":"'Sundurliðun Innlán'!P77","v":0},".M.SFUINOI.XX.ERS.XXX.XXXX.SX.XXX.CHF.IS.N.M"]
[{"$f":"\"INN.\"&EIGNIR!$B$3&C7658","v":{"$error":"#N/A"}},{"$f":"'Sundurliðun Innlán'!P78","v":0},".M.SFUINOI.XX.ERI.XXX.XXXX.SX.XXX.CHF.IS.N.M"]
[{"$f":"\"INN.\"&EIGNIR!$B$3&C7659","v":{"$error":"#N/A"}},{"$f":"'Sundurliðun Innlán'!P79","v":0},".M.SFUINOI.XX.ERP.XXX.XXXX.SX.XXX.CHF.IS.N.M"]
[{"$f":"\"INN.\"&EIGNIR!$B$3&C7660","v":{"$error":"#N/A"}},{"$f":"'Sundurliðun Innlán'!P80","v":0},".M.SFUINOI.XX.ERV.XXX.XXXX.SX.XXX.CHF.IS.N.M"]
[{"$f":"\"INN.\"&EIGNIR!$B$3&C7661","v":{"$error":"#N/A"}},{"$f":"'Sundurliðun Innlán'!P81","v":0},".M.SFUINOI.XX.ERF.XXX.XXXX.SX.XXX.CHF.IS.N.M"]
[{"$f":"\"INN.\"&EIGNIR!$B$3&C7662","v":{"$error":"#N/A"}},{"$f":"'Sundurliðun Innlán'!P82","v":0},".M.SFUINOI.XX.ERO.XXX.XXXX.SX.XXX.CHF.IS.N.M"]
[{"$f":"\"INN.\"&EIGNIR!$B$3&C7663","v":{"$error":"#N/A"}},{"$f":"'Sundurliðun Innlán'!P83","v":0},".M.SFUINOI.XX.ERA.XXX.XXXX.SX.XXX.CHF.IS.N.M"]
[{"$f":"\"INN.\"&EIGNIR!$B$3&C7664","v":{"$error":"#N/A"}},{"$f":"'Sundurliðun Innlán'!P123","v":0},".M.SFUINOR.XX.XXX.XXX.XXXX.SV.XXX.CHF.IS.N.M"]
[{"$f":"\"INN.\"&EIGNIR!$B$3&C7665","v":{"$error":"#N/A"}},{"$f":"'Sundurliðun Innlán'!P124","v":0},".M.SFUINOR.XX.EIN.XXX.XXXX.SV.XXX.CHF.IS.N.M"]
[{"$f":"\"INN.\"&EIGNIR!$B$3&C7666","v":{"$error":"#N/A"}},{"$f":"'Sundurliðun Innlán'!P125","v":0},".M.SFUINOR.XX.ERL.XXX.XXXX.SV.XXX.CHF.IS.N.M"]
[{"$f":"\"INN.\"&EIGNIR!$B$3&C7667","v":{"$error":"#N/A"}},{"$f":"'Sundurliðun Innlán'!P126","v":0},".M.SFUINVB.XX.XXX.XXX.XXXX.SX.XXX.CHF.IS.N.M"]
[{"$f":"\"INN.\"&EIGNIR!$B$3&C7668","v":{"$error":"#N/A"}},{"$f":"'Sundurliðun Innlán'!P127","v":0},".M.SFUINVB.XX.EIN.XXX.XXXX.SX.XXX.CHF.IS.N.M"]
[{"$f":"\"INN.\"&EIGNIR!$B$3&C7669","v":{"$error":"#N/A"}},{"$f":"'Sundurliðun Innlán'!P128","v":0},".M.SFUINVB.XX.ERL.XXX.XXXX.SX.XXX.CHF.IS.N.M"]
[{"$f":"\"INN.\"&EIGNIR!$B$3&C7670","v":{"$error":"#N/A"}},{"$f":"'Sundurliðun Innlán'!P129","v":0},".M.SFUINBI.XX.$$$.XXX.XXXX.SX.XXX.CHF.IS.N.M"]
[{"$f":"\"INN.\"&EIGNIR!$B$3&C7671","v":{"$error":"#N/A"}},{"$f":"'Sundurliðun Innlán'!P130","v":0},".M.SFUINBI.XX.ATV.XXX.XXXX.SX.XXX.CHF.IS.N.M"]
[{"$f":"\"INN.\"&EIGNIR!$B$3&C7672","v":{"$error":"#N/A"}},{"$f":"'Sundurliðun Innlán'!P144","v":0},".M.SFUINBI.XX.FJA.XXX.XXXX.SX.XXX.CHF.IS.N.M"]
[{"$f":"\"INN.\"&EIGNIR!$B$3&C7673","v":{"$error":"#N/A"}},{"$f":"'Sundurliðun Innlán'!P145","v":0},".M.SFUINBI.XX.INN.XXX.XXXX.SX.XXX.CHF.IS.N.M"]
[{"$f":"\"INN.\"&EIGNIR!$B$3&C7674","v":{"$error":"#N/A"}},{"$f":"'Sundurliðun Innlán'!P146","v":0},".M.SFUINBI.XX.SLI.XXX.XXXX.SX.XXX.CHF.IS.N.M"]
[{"$f":"\"INN.\"&EIGNIR!$B$3&C7675","v":{"$error":"#N/A"}},{"$f":"'Sundurliðun Innlán'!P147","v":0},".M.SFUINBI.XX.PEN.XXX.XXXX.SX.XXX.CHF.IS.N.M"]
[{"$f":"\"INN.\"&EIGNIR!$B$3&C7676","v":{"$error":"#N/A"}},{"$f":"'Sundurliðun Innlán'!P148","v":0},".M.SFUINBI.XX.SJO.XXX.XXXX.SX.XXX.CHF.IS.N.M"]
[{"$f":"\"INN.\"&EIGNIR!$B$3&C7677","v":{"$error":"#N/A"}},{"$f":"'Sundurliðun Innlán'!P149","v":0},".M.SFUINBI.XX.YFT.XXX.XXXX.SX.XXX.CHF.IS.N.M"]
[{"$f":"\"INN.\"&EIGNIR!$B$3&C7678","v":{"$error":"#N/A"}},{"$f":"'Sundurliðun Innlán'!P150","v":0},".M.SFUINBI.XX.SLY.XXX.XXXX.SX.XXX.CHF.IS.N.M"]
[{"$f":"\"INN.\"&EIGNIR!$B$3&C7679","v":{"$error":"#N/A"}},{"$f":"'Sundurliðun Innlán'!P151","v":0},".M.SFUINBI.XX.FHL.XXX.XXXX.SX.XXX.CHF.IS.N.M"]
[{"$f":"\"INN.\"&EIGNIR!$B$3&C7680","v":{"$error":"#N/A"}},{"$f":"'Sundurliðun Innlán'!P152","v":0},".M.SFUINBI.XX.INF.XXX.XXXX.SX.XXX.CHF.IS.N.M"]
[{"$f":"\"INN.\"&EIGNIR!$B$3&C7681","v":{"$error":"#N/A"}},{"$f":"'Sundurliðun Innlán'!P153","v":0},".M.SFUINBI.XX.TRY.XXX.XXXX.SX.XXX.CHF.IS.N.M"]
[{"$f":"\"INN.\"&EIGNIR!$B$3&C7682","v":{"$error":"#N/A"}},{"$f":"'Sundurliðun Innlán'!P154","v":0},".M.SFUINBI.XX.LIF.XXX.XXXX.SX.XXX.CHF.IS.N.M"]
[{"$f":"\"INN.\"&EIGNIR!$B$3&C7683","v":{"$error":"#N/A"}},{"$f":"'Sundurliðun Innlán'!P155","v":0},".M.SFUINBI.XX.OPI.XXX.XXXX.SX.XXX.CHF.IS.N.M"]
[{"$f":"\"INN.\"&EIGNIR!$B$3&C7684","v":{"$error":"#N/A"}},{"$f":"'Sundurliðun Innlán'!P156","v":0},".M.SFUINBI.XX.RSS.XXX.XXXX.SX.XXX.CHF.IS.N.M"]
[{"$f":"\"INN.\"&EIGNIR!$B$3&C7685","v":{"$error":"#N/A"}},{"$f":"'Sundurliðun Innlán'!P157","v":0},".M.SFUINBI.XX.BAJ.XXX.XXXX.SX.XXX.CHF.IS.N.M"]
[{"$f":"\"INN.\"&EIGNIR!$B$3&C7686","v":{"$error":"#N/A"}},{"$f":"'Sundurliðun Innlán'!P158","v":0},".M.SFUINBI.XX.EIN.XXX.XXXX.SX.XXX.CHF.IS.N.M"]
[{"$f":"\"INN.\"&EIGNIR!$B$3&C7687","v":{"$error":"#N/A"}},{"$f":"'Sundurliðun Innlán'!P159","v":0},".M.SFUINBI.XX.NPH.XXX.XXXX.SX.XXX.CHF.IS.N.M"]
[{"$f":"\"INN.\"&EIGNIR!$B$3&C7688","v":{"$error":"#N/A"}},{"$f":"'Sundurliðun Innlán'!P160","v":0},".M.SFUINBI.XX.ERL.XXX.XXXX.SX.XXX.CHF.IS.N.M"]
[{"$f":"\"INN.\"&EIGNIR!$B$3&C7689","v":{"$error":"#N/A"}},{"$f":"'Sundurliðun Innlán'!P161","v":0},".M.SFUINBI.XX.ERS.XXX.XXXX.SX.XXX.CHF.IS.N.M"]
[{"$f":"\"INN.\"&EIGNIR!$B$3&C7690","v":{"$error":"#N/A"}},{"$f":"'Sundurliðun Innlán'!P162","v":0},".M.SFUINBI.XX.ERI.XXX.XXXX.SX.XXX.CHF.IS.N.M"]
[{"$f":"\"INN.\"&EIGNIR!$B$3&C7691","v":{"$error":"#N/A"}},{"$f":"'Sundurliðun Innlán'!P163","v":0},".M.SFUINBI.XX.ERP.XXX.XXXX.SX.XXX.CHF.IS.N.M"]
[{"$f":"\"INN.\"&EIGNIR!$B$3&C7692","v":{"$error":"#N/A"}},{"$f":"'Sundurliðun Innlán'!P164","v":0},".M.SFUINBI.XX.ERV.XXX.XXXX.SX.XXX.CHF.IS.N.M"]
[{"$f":"\"INN.\"&EIGNIR!$B$3&C7693","v":{"$error":"#N/A"}},{"$f":"'Sundurliðun Innlán'!P165","v":0},".M.SFUINBI.XX.ERF.XXX.XXXX.SX.XXX.CHF.IS.N.M"]
[{"$f":"\"INN.\"&EIGNIR!$B$3&C7694","v":{"$error":"#N/A"}},{"$f":"'Sundurliðun Innlán'!P166","v":0},".M.SFUINBI.XX.ERO.XXX.XXXX.SX.XXX.CHF.IS.N.M"]
[{"$f":"\"INN.\"&EIGNIR!$B$3&C7695","v":{"$error":"#N/A"}},{"$f":"'Sundurliðun Innlán'!P167","v":0},".M.SFUINBI.XX.ERA.XXX.XXXX.SX.XXX.CHF.IS.N.M"]
[{"$f":"\"INN.\"&EIGNIR!$B$3&C7696","v":{"$error":"#N/A"}},{"$f":"'Sundurliðun Innlán'!Q5","v":0},".M.SFUIN$$.XX.XXX.XXX.XXXX.SX.XXX.ADR.IS.N.M","//Sundurliðun innlána ADR"]
[{"$f":"\"INN.\"&EIGNIR!$B$3&C7697","v":{"$error":"#N/A"}},{"$f":"'Sundurliðun Innlán'!Q6","v":0},".M.SFUINKV.XX.$$$.XXX.XXXX.SX.XXX.ADR.IS.N.M"]
[{"$f":"\"INN.\"&EIGNIR!$B$3&C7698","v":{"$error":"#N/A"}},{"$f":"'Sundurliðun Innlán'!Q7","v":0},".M.SFUINKV.XX.ATV.XXX.XXXX.SX.XXX.ADR.IS.N.M"]
[{"$f":"\"INN.\"&EIGNIR!$B$3&C7699","v":{"$error":"#N/A"}},{"$f":"'Sundurliðun Innlán'!Q21","v":0},".M.SFUINKV.XX.FJA.XXX.XXXX.SX.XXX.ADR.IS.N.M"]
[{"$f":"\"INN.\"&EIGNIR!$B$3&C7700","v":{"$error":"#N/A"}},{"$f":"'Sundurliðun Innlán'!Q22","v":0},".M.SFUINKV.XX.INN.XXX.XXXX.SX.XXX.ADR.IS.N.M"]
[{"$f":"\"INN.\"&EIGNIR!$B$3&C7701","v":{"$error":"#N/A"}},{"$f":"'Sundurliðun Innlán'!Q23","v":0},".M.SFUINKV.XX.SLI.XXX.XXXX.SX.XXX.ADR.IS.N.M"]
[{"$f":"\"INN.\"&EIGNIR!$B$3&C7702","v":{"$error":"#N/A"}},{"$f":"'Sundurliðun Innlán'!Q24","v":0},".M.SFUINKV.XX.PEN.XXX.XXXX.SX.XXX.ADR.IS.N.M"]
[{"$f":"\"INN.\"&EIGNIR!$B$3&C7703","v":{"$error":"#N/A"}},{"$f":"'Sundurliðun Innlán'!Q25","v":0},".M.SFUINKV.XX.SJO.XXX.XXXX.SX.XXX.ADR.IS.N.M"]
[{"$f":"\"INN.\"&EIGNIR!$B$3&C7704","v":{"$error":"#N/A"}},{"$f":"'Sundurliðun Innlán'!Q26","v":0},".M.SFUINKV.XX.YFT.XXX.XXXX.SX.XXX.ADR.IS.N.M"]
[{"$f":"\"INN.\"&EIGNIR!$B$3&C7705","v":{"$error":"#N/A"}},{"$f":"'Sundurliðun Innlán'!Q27","v":0},".M.SFUINKV.XX.SLY.XXX.XXXX.SX.XXX.ADR.IS.N.M"]
[{"$f":"\"INN.\"&EIGNIR!$B$3&C7706","v":{"$error":"#N/A"}},{"$f":"'Sundurliðun Innlán'!Q28","v":0},".M.SFUINKV.XX.FHL.XXX.XXXX.SX.XXX.ADR.IS.N.M"]
[{"$f":"\"INN.\"&EIGNIR!$B$3&C7707","v":{"$error":"#N/A"}},{"$f":"'Sundurliðun Innlán'!Q29","v":0},".M.SFUINKV.XX.INF.XXX.XXXX.SX.XXX.ADR.IS.N.M"]
[{"$f":"\"INN.\"&EIGNIR!$B$3&C7708","v":{"$error":"#N/A"}},{"$f":"'Sundurliðun Innlán'!Q30","v":0},".M.SFUINKV.XX.TRY.XXX.XXXX.SX.XXX.ADR.IS.N.M"]
[{"$f":"\"INN.\"&EIGNIR!$B$3&C7709","v":{"$error":"#N/A"}},{"$f":"'Sundurliðun Innlán'!Q31","v":0},".M.SFUINKV.XX.LIF.XXX.XXXX.SX.XXX.ADR.IS.N.M"]
[{"$f":"\"INN.\"&EIGNIR!$B$3&C7710","v":{"$error":"#N/A"}},{"$f":"'Sundurliðun Innlán'!Q32","v":0},".M.SFUINKV.XX.OPI.XXX.XXXX.SX.XXX.ADR.IS.N.M"]
[{"$f":"\"INN.\"&EIGNIR!$B$3&C7711","v":{"$error":"#N/A"}},{"$f":"'Sundurliðun Innlán'!Q33","v":0},".M.SFUINKV.XX.RSS.XXX.XXXX.SX.XXX.ADR.IS.N.M"]
[{"$f":"\"INN.\"&EIGNIR!$B$3&C7712","v":{"$error":"#N/A"}},{"$f":"'Sundurliðun Innlán'!Q34","v":0},".M.SFUINKV.XX.BAJ.XXX.XXXX.SX.XXX.ADR.IS.N.M"]
[{"$f":"\"INN.\"&EIGNIR!$B$3&C7713","v":{"$error":"#N/A"}},{"$f":"'Sundurliðun Innlán'!Q35","v":0},".M.SFUINKV.XX.EIN.XXX.XXXX.SX.XXX.ADR.IS.N.M"]
[{"$f":"\"INN.\"&EIGNIR!$B$3&C7714","v":{"$error":"#N/A"}},{"$f":"'Sundurliðun Innlán'!Q36","v":0},".M.SFUINKV.XX.NPH.XXX.XXXX.SX.XXX.ADR.IS.N.M"]
[{"$f":"\"INN.\"&EIGNIR!$B$3&C7715","v":{"$error":"#N/A"}},{"$f":"'Sundurliðun Innlán'!Q37","v":0},".M.SFUINKV.XX.ERL.XXX.XXXX.SX.XXX.ADR.IS.N.M"]
[{"$f":"\"INN.\"&EIGNIR!$B$3&C7716","v":{"$error":"#N/A"}},{"$f":"'Sundurliðun Innlán'!Q38","v":0},".M.SFUINKV.XXX.ERS.XXX.XXXX.SX.XXX.ADR.IS.N.M"]
[{"$f":"\"INN.\"&EIGNIR!$B$3&C7717","v":{"$error":"#N/A"}},{"$f":"'Sundurliðun Innlán'!Q39","v":0},".M.SFUINKV.XXX.ERI.XXX.XXXX.SX.XXX.ADR.IS.N.M"]
[{"$f":"\"INN.\"&EIGNIR!$B$3&C7718","v":{"$error":"#N/A"}},{"$f":"'Sundurliðun Innlán'!Q40","v":0},".M.SFUINKV.XXX.ERP.XXX.XXXX.SX.XXX.ADR.IS.N.M"]
[{"$f":"\"INN.\"&EIGNIR!$B$3&C7719","v":{"$error":"#N/A"}},{"$f":"'Sundurliðun Innlán'!Q41","v":0},".M.SFUINKV.XXX.ERV.XXX.XXXX.SX.XXX.ADR.IS.N.M"]
[{"$f":"\"INN.\"&EIGNIR!$B$3&C7720","v":{"$error":"#N/A"}},{"$f":"'Sundurliðun Innlán'!Q42","v":0},".M.SFUINKV.XXX.ERF.XXX.XXXX.SX.XXX.ADR.IS.N.M"]
[{"$f":"\"INN.\"&EIGNIR!$B$3&C7721","v":{"$error":"#N/A"}},{"$f":"'Sundurliðun Innlán'!Q43","v":0},".M.SFUINKV.XXX.ERO.XXX.XXXX.SX.XXX.ADR.IS.N.M"]
[{"$f":"\"INN.\"&EIGNIR!$B$3&C7722","v":{"$error":"#N/A"}},{"$f":"'Sundurliðun Innlán'!Q44","v":0},".M.SFUINKV.XXX.ERA.XXX.XXXX.SX.XXX.ADR.IS.N.M"]
[{"$f":"\"INN.\"&EIGNIR!$B$3&C7723","v":{"$error":"#N/A"}},{"$f":"'Sundurliðun Innlán'!Q45","v":0},".M.SFUINOI.XX.$$$.XXX.XXXX.SX.XXX.ADR.IS.N.M"]
[{"$f":"\"INN.\"&EIGNIR!$B$3&C7724","v":{"$error":"#N/A"}},{"$f":"'Sundurliðun Innlán'!Q46","v":0},".M.SFUINOI.XX.ATV.XXX.XXXX.SX.XXX.ADR.IS.N.M"]
[{"$f":"\"INN.\"&EIGNIR!$B$3&C7725","v":{"$error":"#N/A"}},{"$f":"'Sundurliðun Innlán'!Q60","v":0},".M.SFUINOI.XX.FJA.XXX.XXXX.SX.XXX.ADR.IS.N.M"]
[{"$f":"\"INN.\"&EIGNIR!$B$3&C7726","v":{"$error":"#N/A"}},{"$f":"'Sundurliðun Innlán'!Q61","v":0},".M.SFUINOI.XX.INN.XXX.XXXX.SX.XXX.ADR.IS.N.M"]
[{"$f":"\"INN.\"&EIGNIR!$B$3&C7727","v":{"$error":"#N/A"}},{"$f":"'Sundurliðun Innlán'!Q62","v":0},".M.SFUINOI.XX.SLI.XXX.XXXX.SX.XXX.ADR.IS.N.M"]
[{"$f":"\"INN.\"&EIGNIR!$B$3&C7728","v":{"$error":"#N/A"}},{"$f":"'Sundurliðun Innlán'!Q63","v":0},".M.SFUINOI.XX.PEN.XXX.XXXX.SX.XXX.ADR.IS.N.M"]
[{"$f":"\"INN.\"&EIGNIR!$B$3&C7729","v":{"$error":"#N/A"}},{"$f":"'Sundurliðun Innlán'!Q64","v":0},".M.SFUINOI.XX.SJO.XXX.XXXX.SX.XXX.ADR.IS.N.M"]
[{"$f":"\"INN.\"&EIGNIR!$B$3&C7730","v":{"$error":"#N/A"}},{"$f":"'Sundurliðun Innlán'!Q65","v":0},".M.SFUINOI.XX.YFT.XXX.XXXX.SX.XXX.ADR.IS.N.M"]
[{"$f":"\"INN.\"&EIGNIR!$B$3&C7731","v":{"$error":"#N/A"}},{"$f":"'Sundurliðun Innlán'!Q66","v":0},".M.SFUINOI.XX.SLY.XXX.XXXX.SX.XXX.ADR.IS.N.M"]
[{"$f":"\"INN.\"&EIGNIR!$B$3&C7732","v":{"$error":"#N/A"}},{"$f":"'Sundurliðun Innlán'!Q67","v":0},".M.SFUINOI.XX.FHL.XXX.XXXX.SX.XXX.ADR.IS.N.M"]
[{"$f":"\"INN.\"&EIGNIR!$B$3&C7733","v":{"$error":"#N/A"}},{"$f":"'Sundurliðun Innlán'!Q68","v":0},".M.SFUINOI.XX.INF.XXX.XXXX.SX.XXX.ADR.IS.N.M"]
[{"$f":"\"INN.\"&EIGNIR!$B$3&C7734","v":{"$error":"#N/A"}},{"$f":"'Sundurliðun Innlán'!Q69","v":0},".M.SFUINOI.XX.TRY.XXX.XXXX.SX.XXX.ADR.IS.N.M"]
[{"$f":"\"INN.\"&EIGNIR!$B$3&C7735","v":{"$error":"#N/A"}},{"$f":"'Sundurliðun Innlán'!Q70","v":0},".M.SFUINOI.XX.LIF.XXX.XXXX.SX.XXX.ADR.IS.N.M"]
[{"$f":"\"INN.\"&EIGNIR!$B$3&C7736","v":{"$error":"#N/A"}},{"$f":"'Sundurliðun Innlán'!Q71","v":0},".M.SFUINOI.XX.OPI.XXX.XXXX.SX.XXX.ADR.IS.N.M"]
[{"$f":"\"INN.\"&EIGNIR!$B$3&C7737","v":{"$error":"#N/A"}},{"$f":"'Sundurliðun Innlán'!Q72","v":0},".M.SFUINOI.XX.RSS.XXX.XXXX.SX.XXX.ADR.IS.N.M"]
[{"$f":"\"INN.\"&EIGNIR!$B$3&C7738","v":{"$error":"#N/A"}},{"$f":"'Sundurliðun Innlán'!Q73","v":0},".M.SFUINOI.XX.BAJ.XXX.XXXX.SX.XXX.ADR.IS.N.M"]
[{"$f":"\"INN.\"&EIGNIR!$B$3&C7739","v":{"$error":"#N/A"}},{"$f":"'Sundurliðun Innlán'!Q74","v":0},".M.SFUINOI.XX.EIN.XXX.XXXX.SX.XXX.ADR.IS.N.M"]
[{"$f":"\"INN.\"&EIGNIR!$B$3&C7740","v":{"$error":"#N/A"}},{"$f":"'Sundurliðun Innlán'!Q75","v":0},".M.SFUINOI.XX.NPH.XXX.XXXX.SX.XXX.ADR.IS.N.M"]
[{"$f":"\"INN.\"&EIGNIR!$B$3&C7741","v":{"$error":"#N/A"}},{"$f":"'Sundurliðun Innlán'!Q76","v":0},".M.SFUINOI.XX.ERL.XXX.XXXX.SX.XXX.ADR.IS.N.M"]
[{"$f":"\"INN.\"&EIGNIR!$B$3&C7742","v":{"$error":"#N/A"}},{"$f":"'Sundurliðun Innlán'!Q77","v":0},".M.SFUINOI.XX.ERS.XXX.XXXX.SX.XXX.ADR.IS.N.M"]
[{"$f":"\"INN.\"&EIGNIR!$B$3&C7743","v":{"$error":"#N/A"}},{"$f":"'Sundurliðun Innlán'!Q78","v":0},".M.SFUINOI.XX.ERI.XXX.XXXX.SX.XXX.ADR.IS.N.M"]
[{"$f":"\"INN.\"&EIGNIR!$B$3&C7744","v":{"$error":"#N/A"}},{"$f":"'Sundurliðun Innlán'!Q79","v":0},".M.SFUINOI.XX.ERP.XXX.XXXX.SX.XXX.ADR.IS.N.M"]
[{"$f":"\"INN.\"&EIGNIR!$B$3&C7745","v":{"$error":"#N/A"}},{"$f":"'Sundurliðun Innlán'!Q80","v":0},".M.SFUINOI.XX.ERV.XXX.XXXX.SX.XXX.ADR.IS.N.M"]
[{"$f":"\"INN.\"&EIGNIR!$B$3&C7746","v":{"$error":"#N/A"}},{"$f":"'Sundurliðun Innlán'!Q81","v":0},".M.SFUINOI.XX.ERF.XXX.XXXX.SX.XXX.ADR.IS.N.M"]
[{"$f":"\"INN.\"&EIGNIR!$B$3&C7747","v":{"$error":"#N/A"}},{"$f":"'Sundurliðun Innlán'!Q82","v":0},".M.SFUINOI.XX.ERO.XXX.XXXX.SX.XXX.ADR.IS.N.M"]
[{"$f":"\"INN.\"&EIGNIR!$B$3&C7748","v":{"$error":"#N/A"}},{"$f":"'Sundurliðun Innlán'!Q83","v":0},".M.SFUINOI.XX.ERA.XXX.XXXX.SX.XXX.ADR.IS.N.M"]
[{"$f":"\"INN.\"&EIGNIR!$B$3&C7749","v":{"$error":"#N/A"}},{"$f":"'Sundurliðun Innlán'!Q123","v":0},".M.SFUINOR.XX.XXX.XXX.XXXX.SV.XXX.ADR.IS.N.M"]
[{"$f":"\"INN.\"&EIGNIR!$B$3&C7750","v":{"$error":"#N/A"}},{"$f":"'Sundurliðun Innlán'!Q124","v":0},".M.SFUINOR.XX.EIN.XXX.XXXX.SV.XXX.ADR.IS.N.M"]
[{"$f":"\"INN.\"&EIGNIR!$B$3&C7751","v":{"$error":"#N/A"}},{"$f":"'Sundurliðun Innlán'!Q125","v":0},".M.SFUINOR.XX.ERL.XXX.XXXX.SV.XXX.ADR.IS.N.M"]
[{"$f":"\"INN.\"&EIGNIR!$B$3&C7752","v":{"$error":"#N/A"}},{"$f":"'Sundurliðun Innlán'!Q126","v":0},".M.SFUINVB.XX.XXX.XXX.XXXX.SX.XXX.ADR.IS.N.M"]
[{"$f":"\"INN.\"&EIGNIR!$B$3&C7753","v":{"$error":"#N/A"}},{"$f":"'Sundurliðun Innlán'!Q127","v":0},".M.SFUINVB.XX.EIN.XXX.XXXX.SX.XXX.ADR.IS.N.M"]
[{"$f":"\"INN.\"&EIGNIR!$B$3&C7754","v":{"$error":"#N/A"}},{"$f":"'Sundurliðun Innlán'!Q128","v":0},".M.SFUINVB.XX.ERL.XXX.XXXX.SX.XXX.ADR.IS.N.M"]
[{"$f":"\"INN.\"&EIGNIR!$B$3&C7755","v":{"$error":"#N/A"}},{"$f":"'Sundurliðun Innlán'!Q129","v":0},".M.SFUINBI.XX.$$$.XXX.XXXX.SX.XXX.ADR.IS.N.M"]
[{"$f":"\"INN.\"&EIGNIR!$B$3&C7756","v":{"$error":"#N/A"}},{"$f":"'Sundurliðun Innlán'!Q130","v":0},".M.SFUINBI.XX.ATV.XXX.XXXX.SX.XXX.ADR.IS.N.M"]
[{"$f":"\"INN.\"&EIGNIR!$B$3&C7757","v":{"$error":"#N/A"}},{"$f":"'Sundurliðun Innlán'!Q144","v":0},".M.SFUINBI.XX.FJA.XXX.XXXX.SX.XXX.ADR.IS.N.M"]
[{"$f":"\"INN.\"&EIGNIR!$B$3&C7758","v":{"$error":"#N/A"}},{"$f":"'Sundurliðun Innlán'!Q145","v":0},".M.SFUINBI.XX.INN.XXX.XXXX.SX.XXX.ADR.IS.N.M"]
[{"$f":"\"INN.\"&EIGNIR!$B$3&C7759","v":{"$error":"#N/A"}},{"$f":"'Sundurliðun Innlán'!Q146","v":0},".M.SFUINBI.XX.SLI.XXX.XXXX.SX.XXX.ADR.IS.N.M"]
[{"$f":"\"INN.\"&EIGNIR!$B$3&C7760","v":{"$error":"#N/A"}},{"$f":"'Sundurliðun Innlán'!Q147","v":0},".M.SFUINBI.XX.PEN.XXX.XXXX.SX.XXX.ADR.IS.N.M"]
[{"$f":"\"INN.\"&EIGNIR!$B$3&C7761","v":{"$error":"#N/A"}},{"$f":"'Sundurliðun Innlán'!Q148","v":0},".M.SFUINBI.XX.SJO.XXX.XXXX.SX.XXX.ADR.IS.N.M"]
[{"$f":"\"INN.\"&EIGNIR!$B$3&C7762","v":{"$error":"#N/A"}},{"$f":"'Sundurliðun Innlán'!Q149","v":0},".M.SFUINBI.XX.YFT.XXX.XXXX.SX.XXX.ADR.IS.N.M"]
[{"$f":"\"INN.\"&EIGNIR!$B$3&C7763","v":{"$error":"#N/A"}},{"$f":"'Sundurliðun Innlán'!Q150","v":0},".M.SFUINBI.XX.SLY.XXX.XXXX.SX.XXX.ADR.IS.N.M"]
[{"$f":"\"INN.\"&EIGNIR!$B$3&C7764","v":{"$error":"#N/A"}},{"$f":"'Sundurliðun Innlán'!Q151","v":0},".M.SFUINBI.XX.FHL.XXX.XXXX.SX.XXX.ADR.IS.N.M"]
[{"$f":"\"INN.\"&EIGNIR!$B$3&C7765","v":{"$error":"#N/A"}},{"$f":"'Sundurliðun Innlán'!Q152","v":0},".M.SFUINBI.XX.INF.XXX.XXXX.SX.XXX.ADR.IS.N.M"]
[{"$f":"\"INN.\"&EIGNIR!$B$3&C7766","v":{"$error":"#N/A"}},{"$f":"'Sundurliðun Innlán'!Q153","v":0},".M.SFUINBI.XX.TRY.XXX.XXXX.SX.XXX.ADR.IS.N.M"]
[{"$f":"\"INN.\"&EIGNIR!$B$3&C7767","v":{"$error":"#N/A"}},{"$f":"'Sundurliðun Innlán'!Q154","v":0},".M.SFUINBI.XX.LIF.XXX.XXXX.SX.XXX.ADR.IS.N.M"]
[{"$f":"\"INN.\"&EIGNIR!$B$3&C7768","v":{"$error":"#N/A"}},{"$f":"'Sundurliðun Innlán'!Q155","v":0},".M.SFUINBI.XX.OPI.XXX.XXXX.SX.XXX.ADR.IS.N.M"]
[{"$f":"\"INN.\"&EIGNIR!$B$3&C7769","v":{"$error":"#N/A"}},{"$f":"'Sundurliðun Innlán'!Q156","v":0},".M.SFUINBI.XX.RSS.XXX.XXXX.SX.XXX.ADR.IS.N.M"]
[{"$f":"\"INN.\"&EIGNIR!$B$3&C7770","v":{"$error":"#N/A"}},{"$f":"'Sundurliðun Innlán'!Q157","v":0},".M.SFUINBI.XX.BAJ.XXX.XXXX.SX.XXX.ADR.IS.N.M"]
[{"$f":"\"INN.\"&EIGNIR!$B$3&C7771","v":{"$error":"#N/A"}},{"$f":"'Sundurliðun Innlán'!Q158","v":0},".M.SFUINBI.XX.EIN.XXX.XXXX.SX.XXX.ADR.IS.N.M"]
[{"$f":"\"INN.\"&EIGNIR!$B$3&C7772","v":{"$error":"#N/A"}},{"$f":"'Sundurliðun Innlán'!Q159","v":0},".M.SFUINBI.XX.NPH.XXX.XXXX.SX.XXX.ADR.IS.N.M"]
[{"$f":"\"INN.\"&EIGNIR!$B$3&C7773","v":{"$error":"#N/A"}},{"$f":"'Sundurliðun Innlán'!Q160","v":0},".M.SFUINBI.XX.ERL.XXX.XXXX.SX.XXX.ADR.IS.N.M"]
[{"$f":"\"INN.\"&EIGNIR!$B$3&C7774","v":{"$error":"#N/A"}},{"$f":"'Sundurliðun Innlán'!Q161","v":0},".M.SFUINBI.XX.ERS.XXX.XXXX.SX.XXX.ADR.IS.N.M"]
[{"$f":"\"INN.\"&EIGNIR!$B$3&C7775","v":{"$error":"#N/A"}},{"$f":"'Sundurliðun Innlán'!Q162","v":0},".M.SFUINBI.XX.ERI.XXX.XXXX.SX.XXX.ADR.IS.N.M"]
[{"$f":"\"INN.\"&EIGNIR!$B$3&C7776","v":{"$error":"#N/A"}},{"$f":"'Sundurliðun Innlán'!Q163","v":0},".M.SFUINBI.XX.ERP.XXX.XXXX.SX.XXX.ADR.IS.N.M"]
[{"$f":"\"INN.\"&EIGNIR!$B$3&C7777","v":{"$error":"#N/A"}},{"$f":"'Sundurliðun Innlán'!Q164","v":0},".M.SFUINBI.XX.ERV.XXX.XXXX.SX.XXX.ADR.IS.N.M"]
[{"$f":"\"INN.\"&EIGNIR!$B$3&C7778","v":{"$error":"#N/A"}},{"$f":"'Sundurliðun Innlán'!Q165","v":0},".M.SFUINBI.XX.ERF.XXX.XXXX.SX.XXX.ADR.IS.N.M"]
[{"$f":"\"INN.\"&EIGNIR!$B$3&C7779","v":{"$error":"#N/A"}},{"$f":"'Sundurliðun Innlán'!Q166","v":0},".M.SFUINBI.XX.ERO.XXX.XXXX.SX.XXX.ADR.IS.N.M"]
[{"$f":"\"INN.\"&EIGNIR!$B$3&C7780","v":{"$error":"#N/A"}},{"$f":"'Sundurliðun Innlán'!Q167","v":0},".M.SFUINBI.XX.ERA.XXX.XXXX.SX.XXX.ADR.IS.N.M"]
[{"$f":"\"INN.\"&EIGNIR!$B$3&C7781","v":{"$error":"#N/A"}},{"$f":"'Sundurliðun Lántaka'!E5","v":0},".M.SLTVL$$.XX.SAM.$$$.XXXX.SX.XXX.XXX.IS.N.M","//Sundurliðun lántaka, víkjandi lán samtals"]
[{"$f":"\"INN.\"&EIGNIR!$B$3&C7782","v":{"$error":"#N/A"}},{"$f":"'Sundurliðun Lántaka'!E6","v":0},".M.SLTVLIN.XX.ATV.$$$.XXXX.SX.XXX.XXX.IS.N.M"]
[{"$f":"\"INN.\"&EIGNIR!$B$3&C7783","v":{"$error":"#N/A"}},{"$f":"'Sundurliðun Lántaka'!E7","v":0},".M.SLTVLIN.XX.FJA.$$$.XXXX.SX.XXX.XXX.IS.N.M"]
[{"$f":"\"INN.\"&EIGNIR!$B$3&C7784","v":{"$error":"#N/A"}},{"$f":"'Sundurliðun Lántaka'!E8","v":0},".M.SLTVLIN.XX.INN.$$$.XXXX.SX.XXX.XXX.IS.N.M"]
[{"$f":"\"INN.\"&EIGNIR!$B$3&C7785","v":{"$error":"#N/A"}},{"$f":"'Sundurliðun Lántaka'!E9","v":0},".M.SLTVLIN.XX.SLI.$$$.XXXX.SX.XXX.XXX.IS.N.M"]
[{"$f":"\"INN.\"&EIGNIR!$B$3&C7786","v":{"$error":"#N/A"}},{"$f":"'Sundurliðun Lántaka'!E10","v":0},".M.SLTVLIN.XX.PEN.$$$.XXXX.SX.XXX.XXX.IS.N.M"]
[{"$f":"\"INN.\"&EIGNIR!$B$3&C7787","v":{"$error":"#N/A"}},{"$f":"'Sundurliðun Lántaka'!E11","v":0},".M.SLTVLIN.XX.SJO.$$$.XXXX.SX.XXX.XXX.IS.N.M"]
[{"$f":"\"INN.\"&EIGNIR!$B$3&C7788","v":{"$error":"#N/A"}},{"$f":"'Sundurliðun Lántaka'!E12","v":0},".M.SLTVLIN.XX.YFT.$$$.XXXX.SX.XXX.XXX.IS.N.M"]
[{"$f":"\"INN.\"&EIGNIR!$B$3&C7789","v":{"$error":"#N/A"}},{"$f":"'Sundurliðun Lántaka'!E13","v":0},".M.SLTVLIN.XX.SLY.$$$.XXXX.SX.XXX.XXX.IS.N.M"]
[{"$f":"\"INN.\"&EIGNIR!$B$3&C7790","v":{"$error":"#N/A"}},{"$f":"'Sundurliðun Lántaka'!E14","v":0},".M.SLTVLIN.XX.FHL.$$$.XXXX.SX.XXX.XXX.IS.N.M"]
[{"$f":"\"INN.\"&EIGNIR!$B$3&C7791","v":{"$error":"#N/A"}},{"$f":"'Sundurliðun Lántaka'!E15","v":0},".M.SLTVLIN.XX.INF.$$$.XXXX.SX.XXX.XXX.IS.N.M"]
[{"$f":"\"INN.\"&EIGNIR!$B$3&C7792","v":{"$error":"#N/A"}},{"$f":"'Sundurliðun Lántaka'!E16","v":0},".M.SLTVLIN.XX.TRY.$$$.XXXX.SX.XXX.XXX.IS.N.M"]
[{"$f":"\"INN.\"&EIGNIR!$B$3&C7793","v":{"$error":"#N/A"}},{"$f":"'Sundurliðun Lántaka'!E17","v":0},".M.SLTVLIN.XX.LIF.$$$.XXXX.SX.XXX.XXX.IS.N.M"]
[{"$f":"\"INN.\"&EIGNIR!$B$3&C7794","v":{"$error":"#N/A"}},{"$f":"'Sundurliðun Lántaka'!E18","v":0},".M.SLTVLIN.XX.OPI.$$$.XXXX.SX.XXX.XXX.IS.N.M"]
[{"$f":"\"INN.\"&EIGNIR!$B$3&C7795","v":{"$error":"#N/A"}},{"$f":"'Sundurliðun Lántaka'!E19","v":0},".M.SLTVLIN.XX.RSS.$$$.XXXX.SX.XXX.XXX.IS.N.M"]
[{"$f":"\"INN.\"&EIGNIR!$B$3&C7796","v":{"$error":"#N/A"}},{"$f":"'Sundurliðun Lántaka'!E20","v":0},".M.SLTVLIN.XX.BAJ.$$$.XXXX.SX.XXX.XXX.IS.N.M"]
[{"$f":"\"INN.\"&EIGNIR!$B$3&C7797","v":{"$error":"#N/A"}},{"$f":"'Sundurliðun Lántaka'!E22","v":0},".M.SLTVLIN.XX.NPH.$$$.XXXX.SX.XXX.XXX.IS.N.M"]
[{"$f":"\"INN.\"&EIGNIR!$B$3&C7798","v":{"$error":"#N/A"}},{"$f":"'Sundurliðun Lántaka'!E23","v":0},".M.SLTVLER.XX.ERL.$$$.XXXX.SX.XXX.XXX.IS.N.M"]
[{"$f":"\"INN.\"&EIGNIR!$B$3&C7799","v":{"$error":"#N/A"}},{"$f":"'Sundurliðun Lántaka'!E24","v":0},".M.SLTVLER.XX.ERS.$$$.XXXX.SX.XXX.XXX.IS.N.M"]
[{"$f":"\"INN.\"&EIGNIR!$B$3&C7800","v":{"$error":"#N/A"}},{"$f":"'Sundurliðun Lántaka'!E25","v":0},".M.SLTVLER.XX.ERI.$$$.XXXX.SX.XXX.XXX.IS.N.M"]
[{"$f":"\"INN.\"&EIGNIR!$B$3&C7801","v":{"$error":"#N/A"}},{"$f":"'Sundurliðun Lántaka'!E26","v":0},".M.SLTVLER.XX.ERP.$$$.XXXX.SX.XXX.XXX.IS.N.M"]
[{"$f":"\"INN.\"&EIGNIR!$B$3&C7802","v":{"$error":"#N/A"}},{"$f":"'Sundurliðun Lántaka'!E27","v":0},".M.SLTVLER.XX.ERV.$$$.XXXX.SX.XXX.XXX.IS.N.M"]
[{"$f":"\"INN.\"&EIGNIR!$B$3&C7803","v":{"$error":"#N/A"}},{"$f":"'Sundurliðun Lántaka'!E28","v":0},".M.SLTVLER.XX.ERF.$$$.XXXX.SX.XXX.XXX.IS.N.M"]
[{"$f":"\"INN.\"&EIGNIR!$B$3&C7804","v":{"$error":"#N/A"}},{"$f":"'Sundurliðun Lántaka'!E29","v":0},".M.SLTVLER.XX.ERO.$$$.XXXX.SX.XXX.XXX.IS.N.M"]
[{"$f":"\"INN.\"&EIGNIR!$B$3&C7805","v":{"$error":"#N/A"}},{"$f":"'Sundurliðun Lántaka'!E30","v":0},".M.SLTVLER.XX.ERA.$$$.XXXX.SX.XXX.XXX.IS.N.M"]
[{"$f":"\"INN.\"&EIGNIR!$B$3&C7806","v":{"$error":"#N/A"}},{"$f":"'Sundurliðun Lántaka'!E31","v":0},".M.SLTBV$$.XX.$$$.$$$.XXXX.SV.XXX.XXX.IS.N.M","//Sundurliðun lántaka, beinar lántökur samtals"]
[{"$f":"\"INN.\"&EIGNIR!$B$3&C7807","v":{"$error":"#N/A"}},{"$f":"'Sundurliðun Lántaka'!E32","v":0},".M.SLTBVIN.XX.ATV.$$$.XXXX.SV.XXX.XXX.IS.N.M"]
[{"$f":"\"INN.\"&EIGNIR!$B$3&C7808","v":{"$error":"#N/A"}},{"$f":"'Sundurliðun Lántaka'!E33","v":0},".M.SLTBVIN.XX.FJA.$$$.XXXX.SV.XXX.XXX.IS.N.M"]
[{"$f":"\"INN.\"&EIGNIR!$B$3&C7809","v":{"$error":"#N/A"}},{"$f":"'Sundurliðun Lántaka'!E34","v":0},".M.SLTBVIN.XX.INN.$$$.XXXX.SV.XXX.XXX.IS.N.M"]
[{"$f":"\"INN.\"&EIGNIR!$B$3&C7810","v":{"$error":"#N/A"}},{"$f":"'Sundurliðun Lántaka'!E35","v":0},".M.SLTBVIN.XX.SLI.$$$.XXXX.SV.XXX.XXX.IS.N.M"]
[{"$f":"\"INN.\"&EIGNIR!$B$3&C7811","v":{"$error":"#N/A"}},{"$f":"'Sundurliðun Lántaka'!E36","v":0},".M.SLTBVIN.XX.PEN.$$$.XXXX.SV.XXX.XXX.IS.N.M"]
[{"$f":"\"INN.\"&EIGNIR!$B$3&C7812","v":{"$error":"#N/A"}},{"$f":"'Sundurliðun Lántaka'!E37","v":0},".M.SLTBVIN.XX.SJO.$$$.XXXX.SV.XXX.XXX.IS.N.M"]
[{"$f":"\"INN.\"&EIGNIR!$B$3&C7813","v":{"$error":"#N/A"}},{"$f":"'Sundurliðun Lántaka'!E38","v":0},".M.SLTBVIN.XX.YFT.$$$.XXXX.SV.XXX.XXX.IS.N.M"]
[{"$f":"\"INN.\"&EIGNIR!$B$3&C7814","v":{"$error":"#N/A"}},{"$f":"'Sundurliðun Lántaka'!E39","v":0},".M.SLTBVIN.XX.SLY.$$$.XXXX.SV.XXX.XXX.IS.N.M"]
[{"$f":"\"INN.\"&EIGNIR!$B$3&C7815","v":{"$error":"#N/A"}},{"$f":"'Sundurliðun Lántaka'!E40","v":0},".M.SLTBVIN.XX.FHL.$$$.XXXX.SV.XXX.XXX.IS.N.M"]
[{"$f":"\"INN.\"&EIGNIR!$B$3&C7816","v":{"$error":"#N/A"}},{"$f":"'Sundurliðun Lántaka'!E41","v":0},".M.SLTBVIN.XX.INF.$$$.XXXX.SV.XXX.XXX.IS.N.M"]
[{"$f":"\"INN.\"&EIGNIR!$B$3&C7817","v":{"$error":"#N/A"}},{"$f":"'Sundurliðun Lántaka'!E42","v":0},".M.SLTBVIN.XX.TRY.$$$.XXXX.SV.XXX.XXX.IS.N.M"]
[{"$f":"\"INN.\"&EIGNIR!$B$3&C7818","v":{"$error":"#N/A"}},{"$f":"'Sundurliðun Lántaka'!E43","v":0},".M.SLTBVIN.XX.LIF.$$$.XXXX.SV.XXX.XXX.IS.N.M"]
[{"$f":"\"INN.\"&EIGNIR!$B$3&C7819","v":{"$error":"#N/A"}},{"$f":"'Sundurliðun Lántaka'!E44","v":0},".M.SLTBVIN.XX.OPI.$$$.XXXX.SV.XXX.XXX.IS.N.M"]
[{"$f":"\"INN.\"&EIGNIR!$B$3&C7820","v":{"$error":"#N/A"}},{"$f":"'Sundurliðun Lántaka'!E45","v":0},".M.SLTBVIN.XX.RSS.$$$.XXXX.SV.XXX.XXX.IS.N.M"]
[{"$f":"\"INN.\"&EIGNIR!$B$3&C7821","v":{"$error":"#N/A"}},{"$f":"'Sundurliðun Lántaka'!E46","v":0},".M.SLTBVIN.XX.BAJ.$$$.XXXX.SV.XXX.XXX.IS.N.M"]
[{"$f":"\"INN.\"&EIGNIR!$B$3&C7822","v":{"$error":"#N/A"}},{"$f":"'Sundurliðun Lántaka'!E48","v":0},".M.SLTBVIN.XX.NPH.$$$.XXXX.SV.XXX.XXX.IS.N.M"]
[{"$f":"\"INN.\"&EIGNIR!$B$3&C7823","v":{"$error":"#N/A"}},{"$f":"'Sundurliðun Lántaka'!E49","v":0},".M.SLTBVER.XX.ERL.$$$.XXXX.SV.XXX.XXX.IS.N.M"]
[{"$f":"\"INN.\"&EIGNIR!$B$3&C7824","v":{"$error":"#N/A"}},{"$f":"'Sundurliðun Lántaka'!E50","v":0},".M.SLTBVER.XX.ERS.$$$.XXXX.SV.XXX.XXX.IS.N.M"]
[{"$f":"\"INN.\"&EIGNIR!$B$3&C7825","v":{"$error":"#N/A"}},{"$f":"'Sundurliðun Lántaka'!E51","v":0},".M.SLTBVER.XX.ERI.$$$.XXXX.SV.XXX.XXX.IS.N.M"]
[{"$f":"\"INN.\"&EIGNIR!$B$3&C7826","v":{"$error":"#N/A"}},{"$f":"'Sundurliðun Lántaka'!E52","v":0},".M.SLTBVER.XX.ERP.$$$.XXXX.SV.XXX.XXX.IS.N.M"]
[{"$f":"\"INN.\"&EIGNIR!$B$3&C7827","v":{"$error":"#N/A"}},{"$f":"'Sundurliðun Lántaka'!E53","v":0},".M.SLTBVER.XX.ERV.$$$.XXXX.SV.XXX.XXX.IS.N.M"]
[{"$f":"\"INN.\"&EIGNIR!$B$3&C7828","v":{"$error":"#N/A"}},{"$f":"'Sundurliðun Lántaka'!E54","v":0},".M.SLTBVER.XX.ERF.$$$.XXXX.SV.XXX.XXX.IS.N.M"]
[{"$f":"\"INN.\"&EIGNIR!$B$3&C7829","v":{"$error":"#N/A"}},{"$f":"'Sundurliðun Lántaka'!E55","v":0},".M.SLTBVER.XX.ERO.$$$.XXXX.SV.XXX.XXX.IS.N.M"]
[{"$f":"\"INN.\"&EIGNIR!$B$3&C7830","v":{"$error":"#N/A"}},{"$f":"'Sundurliðun Lántaka'!E56","v":0},".M.SLTBVER.XX.ERA.$$$.XXXX.SV.XXX.XXX.IS.N.M"]
[{"$f":"\"INN.\"&EIGNIR!$B$3&C7831","v":{"$error":"#N/A"}},{"$f":"'Sundurliðun Lántaka'!E57","v":0},".M.SLTBO$$.XX.$$$.$$$.XXXX.SX.XXX.XXX.IS.N.M"]
[{"$f":"\"INN.\"&EIGNIR!$B$3&C7832","v":{"$error":"#N/A"}},{"$f":"'Sundurliðun Lántaka'!E58","v":0},".M.SLTBOIN.XX.ATV.$$$.XXXX.SX.XXX.XXX.IS.N.M"]
[{"$f":"\"INN.\"&EIGNIR!$B$3&C7833","v":{"$error":"#N/A"}},{"$f":"'Sundurliðun Lántaka'!E59","v":0},".M.SLTBOIN.XX.FJA.$$$.XXXX.SX.XXX.XXX.IS.N.M"]
[{"$f":"\"INN.\"&EIGNIR!$B$3&C7834","v":{"$error":"#N/A"}},{"$f":"'Sundurliðun Lántaka'!E60","v":0},".M.SLTBOIN.XX.INN.$$$.XXXX.SX.XXX.XXX.IS.N.M"]
[{"$f":"\"INN.\"&EIGNIR!$B$3&C7835","v":{"$error":"#N/A"}},{"$f":"'Sundurliðun Lántaka'!E61","v":0},".M.SLTBOIN.XX.SLI.$$$.XXXX.SX.XXX.XXX.IS.N.M"]
[{"$f":"\"INN.\"&EIGNIR!$B$3&C7836","v":{"$error":"#N/A"}},{"$f":"'Sundurliðun Lántaka'!E62","v":0},".M.SLTBOIN.XX.PEN.$$$.XXXX.SX.XXX.XXX.IS.N.M"]
[{"$f":"\"INN.\"&EIGNIR!$B$3&C7837","v":{"$error":"#N/A"}},{"$f":"'Sundurliðun Lántaka'!E63","v":0},".M.SLTBOIN.XX.SJO.$$$.XXXX.SX.XXX.XXX.IS.N.M"]
[{"$f":"\"INN.\"&EIGNIR!$B$3&C7838","v":{"$error":"#N/A"}},{"$f":"'Sundurliðun Lántaka'!E64","v":0},".M.SLTBOIN.XX.YFT.$$$.XXXX.SX.XXX.XXX.IS.N.M"]
[{"$f":"\"INN.\"&EIGNIR!$B$3&C7839","v":{"$error":"#N/A"}},{"$f":"'Sundurliðun Lántaka'!E65","v":0},".M.SLTBOIN.XX.SLY.$$$.XXXX.SX.XXX.XXX.IS.N.M"]
[{"$f":"\"INN.\"&EIGNIR!$B$3&C7840","v":{"$error":"#N/A"}},{"$f":"'Sundurliðun Lántaka'!E66","v":0},".M.SLTBOIN.XX.FHL.$$$.XXXX.SX.XXX.XXX.IS.N.M"]
[{"$f":"\"INN.\"&EIGNIR!$B$3&C7841","v":{"$error":"#N/A"}},{"$f":"'Sundurliðun Lántaka'!E67","v":0},".M.SLTBOIN.XX.INF.$$$.XXXX.SX.XXX.XXX.IS.N.M"]
[{"$f":"\"INN.\"&EIGNIR!$B$3&C7842","v":{"$error":"#N/A"}},{"$f":"'Sundurliðun Lántaka'!E68","v":0},".M.SLTBOIN.XX.TRY.$$$.XXXX.SX.XXX.XXX.IS.N.M"]
[{"$f":"\"INN.\"&EIGNIR!$B$3&C7843","v":{"$error":"#N/A"}},{"$f":"'Sundurliðun Lántaka'!E69","v":0},".M.SLTBOIN.XX.LIF.$$$.XXXX.SX.XXX.XXX.IS.N.M"]
[{"$f":"\"INN.\"&EIGNIR!$B$3&C7844","v":{"$error":"#N/A"}},{"$f":"'Sundurliðun Lántaka'!E70","v":0},".M.SLTBOIN.XX.OPI.$$$.XXXX.SX.XXX.XXX.IS.N.M"]
[{"$f":"\"INN.\"&EIGNIR!$B$3&C7845","v":{"$error":"#N/A"}},{"$f":"'Sundurliðun Lántaka'!E71","v":0},".M.SLTBOIN.XX.RSS.$$$.XXXX.SX.XXX.XXX.IS.N.M"]
[{"$f":"\"INN.\"&EIGNIR!$B$3&C7846","v":{"$error":"#N/A"}},{"$f":"'Sundurliðun Lántaka'!E72","v":0},".M.SLTBOIN.XX.BAJ.$$$.XXXX.SX.XXX.XXX.IS.N.M"]
[{"$f":"\"INN.\"&EIGNIR!$B$3&C7847","v":{"$error":"#N/A"}},{"$f":"'Sundurliðun Lántaka'!E74","v":0},".M.SLTBOIN.XX.NPH.$$$.XXXX.SX.XXX.XXX.IS.N.M"]
[{"$f":"\"INN.\"&EIGNIR!$B$3&C7848","v":{"$error":"#N/A"}},{"$f":"'Sundurliðun Lántaka'!E75","v":0},".M.SLTBOER.XX.ERL.$$$.XXXX.SX.XXX.XXX.IS.N.M"]
[{"$f":"\"INN.\"&EIGNIR!$B$3&C7849","v":{"$error":"#N/A"}},{"$f":"'Sundurliðun Lántaka'!E76","v":0},".M.SLTBOER.XX.ERS.$$$.XXXX.SX.XXX.XXX.IS.N.M"]
[{"$f":"\"INN.\"&EIGNIR!$B$3&C7850","v":{"$error":"#N/A"}},{"$f":"'Sundurliðun Lántaka'!E77","v":0},".M.SLTBOER.XX.ERI.$$$.XXXX.SX.XXX.XXX.IS.N.M"]
[{"$f":"\"INN.\"&EIGNIR!$B$3&C7851","v":{"$error":"#N/A"}},{"$f":"'Sundurliðun Lántaka'!E78","v":0},".M.SLTBOER.XX.ERP.$$$.XXXX.SX.XXX.XXX.IS.N.M"]
[{"$f":"\"INN.\"&EIGNIR!$B$3&C7852","v":{"$error":"#N/A"}},{"$f":"'Sundurliðun Lántaka'!E79","v":0},".M.SLTBOER.XX.ERV.$$$.XXXX.SX.XXX.XXX.IS.N.M"]
[{"$f":"\"INN.\"&EIGNIR!$B$3&C7853","v":{"$error":"#N/A"}},{"$f":"'Sundurliðun Lántaka'!E80","v":0},".M.SLTBOER.XX.ERF.$$$.XXXX.SX.XXX.XXX.IS.N.M"]
[{"$f":"\"INN.\"&EIGNIR!$B$3&C7854","v":{"$error":"#N/A"}},{"$f":"'Sundurliðun Lántaka'!E81","v":0},".M.SLTBOER.XX.ERO.$$$.XXXX.SX.XXX.XXX.IS.N.M"]
[{"$f":"\"INN.\"&EIGNIR!$B$3&C7855","v":{"$error":"#N/A"}},{"$f":"'Sundurliðun Lántaka'!E82","v":0},".M.SLTBOER.XX.ERA.$$$.XXXX.SX.XXX.XXX.IS.N.M"]
[{"$f":"\"INN.\"&EIGNIR!$B$3&C7856","v":{"$error":"#N/A"}},{"$f":"'Sundurliðun Lántaka'!F6","v":0},".M.SLTVLIN.XX.ATV.OPI.XXXX.SX.XXX.XXX.IS.N.M","//Sundurliðun lántaka, opinber fyrirtæki"]
[{"$f":"\"INN.\"&EIGNIR!$B$3&C7857","v":{"$error":"#N/A"}},{"$f":"'Sundurliðun Lántaka'!F7","v":0},".M.SLTVLIN.XX.FJA.OPI.XXXX.SX.XXX.XXX.IS.N.M"]
[{"$f":"\"INN.\"&EIGNIR!$B$3&C7858","v":{"$error":"#N/A"}},{"$f":"'Sundurliðun Lántaka'!F8","v":0},".M.SLTVLIN.XX.INN.OPI.XXXX.SX.XXX.XXX.IS.N.M"]
[{"$f":"\"INN.\"&EIGNIR!$B$3&C7859","v":{"$error":"#N/A"}},{"$f":"'Sundurliðun Lántaka'!F9","v":0},".M.SLTVLIN.XX.SLI.OPI.XXXX.SX.XXX.XXX.IS.N.M"]
[{"$f":"\"INN.\"&EIGNIR!$B$3&C7860","v":{"$error":"#N/A"}},{"$f":"'Sundurliðun Lántaka'!F10","v":0},".M.SLTVLIN.XX.PEN.OPI.XXXX.SX.XXX.XXX.IS.N.M"]
[{"$f":"\"INN.\"&EIGNIR!$B$3&C7861","v":{"$error":"#N/A"}},{"$f":"'Sundurliðun Lántaka'!F11","v":0},".M.SLTVLIN.XX.SJO.OPI.XXXX.SX.XXX.XXX.IS.N.M"]
[{"$f":"\"INN.\"&EIGNIR!$B$3&C7862","v":{"$error":"#N/A"}},{"$f":"'Sundurliðun Lántaka'!F12","v":0},".M.SLTVLIN.XX.YFT.OPI.XXXX.SX.XXX.XXX.IS.N.M"]
[{"$f":"\"INN.\"&EIGNIR!$B$3&C7863","v":{"$error":"#N/A"}},{"$f":"'Sundurliðun Lántaka'!F13","v":0},".M.SLTVLIN.XX.SLY.OPI.XXXX.SX.XXX.XXX.IS.N.M"]
[{"$f":"\"INN.\"&EIGNIR!$B$3&C7864","v":{"$error":"#N/A"}},{"$f":"'Sundurliðun Lántaka'!F14","v":0},".M.SLTVLIN.XX.FHL.OPI.XXXX.SX.XXX.XXX.IS.N.M"]
[{"$f":"\"INN.\"&EIGNIR!$B$3&C7865","v":{"$error":"#N/A"}},{"$f":"'Sundurliðun Lántaka'!F15","v":0},".M.SLTVLIN.XX.INF.OPI.XXXX.SX.XXX.XXX.IS.N.M"]
[{"$f":"\"INN.\"&EIGNIR!$B$3&C7866","v":{"$error":"#N/A"}},{"$f":"'Sundurliðun Lántaka'!F16","v":0},".M.SLTVLIN.XX.TRY.OPI.XXXX.SX.XXX.XXX.IS.N.M"]
[{"$f":"\"INN.\"&EIGNIR!$B$3&C7867","v":{"$error":"#N/A"}},{"$f":"'Sundurliðun Lántaka'!F17","v":0},".M.SLTVLIN.XX.LIF.OPI.XXXX.SX.XXX.XXX.IS.N.M"]
[{"$f":"\"INN.\"&EIGNIR!$B$3&C7868","v":{"$error":"#N/A"}},{"$f":"'Sundurliðun Lántaka'!F32","v":0},".M.SLTBVIN.XX.ATV.OPI.XXXX.SV.XXX.XXX.IS.N.M"]
[{"$f":"\"INN.\"&EIGNIR!$B$3&C7869","v":{"$error":"#N/A"}},{"$f":"'Sundurliðun Lántaka'!F33","v":0},".M.SLTBVIN.XX.FJA.OPI.XXXX.SV.XXX.XXX.IS.N.M"]
[{"$f":"\"INN.\"&EIGNIR!$B$3&C7870","v":{"$error":"#N/A"}},{"$f":"'Sundurliðun Lántaka'!F34","v":0},".M.SLTBVIN.XX.INN.OPI.XXXX.SV.XXX.XXX.IS.N.M"]
[{"$f":"\"INN.\"&EIGNIR!$B$3&C7871","v":{"$error":"#N/A"}},{"$f":"'Sundurliðun Lántaka'!F35","v":0},".M.SLTBVIN.XX.SLI.OPI.XXXX.SV.XXX.XXX.IS.N.M"]
[{"$f":"\"INN.\"&EIGNIR!$B$3&C7872","v":{"$error":"#N/A"}},{"$f":"'Sundurliðun Lántaka'!F36","v":0},".M.SLTBVIN.XX.PEN.OPI.XXXX.SV.XXX.XXX.IS.N.M"]
[{"$f":"\"INN.\"&EIGNIR!$B$3&C7873","v":{"$error":"#N/A"}},{"$f":"'Sundurliðun Lántaka'!F37","v":0},".M.SLTBVIN.XX.SJO.OPI.XXXX.SV.XXX.XXX.IS.N.M"]
[{"$f":"\"INN.\"&EIGNIR!$B$3&C7874","v":{"$error":"#N/A"}},{"$f":"'Sundurliðun Lántaka'!F38","v":0},".M.SLTBVIN.XX.YFT.OPI.XXXX.SV.XXX.XXX.IS.N.M"]
[{"$f":"\"INN.\"&EIGNIR!$B$3&C7875","v":{"$error":"#N/A"}},{"$f":"'Sundurliðun Lántaka'!F39","v":0},".M.SLTBVIN.XX.SLY.OPI.XXXX.SV.XXX.XXX.IS.N.M"]
[{"$f":"\"INN.\"&EIGNIR!$B$3&C7876","v":{"$error":"#N/A"}},{"$f":"'Sundurliðun Lántaka'!F40","v":0},".M.SLTBVIN.XX.FHL.OPI.XXXX.SV.XXX.XXX.IS.N.M"]
[{"$f":"\"INN.\"&EIGNIR!$B$3&C7877","v":{"$error":"#N/A"}},{"$f":"'Sundurliðun Lántaka'!F41","v":0},".M.SLTBVIN.XX.INF.OPI.XXXX.SV.XXX.XXX.IS.N.M"]
[{"$f":"\"INN.\"&EIGNIR!$B$3&C7878","v":{"$error":"#N/A"}},{"$f":"'Sundurliðun Lántaka'!F42","v":0},".M.SLTBVIN.XX.TRY.OPI.XXXX.SV.XXX.XXX.IS.N.M"]
[{"$f":"\"INN.\"&EIGNIR!$B$3&C7879","v":{"$error":"#N/A"}},{"$f":"'Sundurliðun Lántaka'!F43","v":0},".M.SLTBVIN.XX.LIF.OPI.XXXX.SV.XXX.XXX.IS.N.M"]
[{"$f":"\"INN.\"&EIGNIR!$B$3&C7880","v":{"$error":"#N/A"}},{"$f":"'Sundurliðun Lántaka'!F58","v":0},".M.SLTBOIN.XX.ATV.OPI.XXXX.SX.XXX.XXX.IS.N.M"]
[{"$f":"\"INN.\"&EIGNIR!$B$3&C7881","v":{"$error":"#N/A"}},{"$f":"'Sundurliðun Lántaka'!F59","v":0},".M.SLTBOIN.XX.FJA.OPI.XXXX.SX.XXX.XXX.IS.N.M"]
[{"$f":"\"INN.\"&EIGNIR!$B$3&C7882","v":{"$error":"#N/A"}},{"$f":"'Sundurliðun Lántaka'!F60","v":0},".M.SLTBOIN.XX.INN.OPI.XXXX.SX.XXX.XXX.IS.N.M"]
[{"$f":"\"INN.\"&EIGNIR!$B$3&C7883","v":{"$error":"#N/A"}},{"$f":"'Sundurliðun Lántaka'!F61","v":0},".M.SLTBOIN.XX.SLI.OPI.XXXX.SX.XXX.XXX.IS.N.M"]
[{"$f":"\"INN.\"&EIGNIR!$B$3&C7884","v":{"$error":"#N/A"}},{"$f":"'Sundurliðun Lántaka'!F62","v":0},".M.SLTBOIN.XX.PEN.OPI.XXXX.SX.XXX.XXX.IS.N.M"]
[{"$f":"\"INN.\"&EIGNIR!$B$3&C7885","v":{"$error":"#N/A"}},{"$f":"'Sundurliðun Lántaka'!F63","v":0},".M.SLTBOIN.XX.SJO.OPI.XXXX.SX.XXX.XXX.IS.N.M"]
[{"$f":"\"INN.\"&EIGNIR!$B$3&C7886","v":{"$error":"#N/A"}},{"$f":"'Sundurliðun Lántaka'!F64","v":0},".M.SLTBOIN.XX.YFT.OPI.XXXX.SX.XXX.XXX.IS.N.M"]
[{"$f":"\"INN.\"&EIGNIR!$B$3&C7887","v":{"$error":"#N/A"}},{"$f":"'Sundurliðun Lántaka'!F65","v":0},".M.SLTBOIN.XX.SLY.OPI.XXXX.SX.XXX.XXX.IS.N.M"]
[{"$f":"\"INN.\"&EIGNIR!$B$3&C7888","v":{"$error":"#N/A"}},{"$f":"'Sundurliðun Lántaka'!F66","v":0},".M.SLTBOIN.XX.FHL.OPI.XXXX.SX.XXX.XXX.IS.N.M"]
[{"$f":"\"INN.\"&EIGNIR!$B$3&C7889","v":{"$error":"#N/A"}},{"$f":"'Sundurliðun Lántaka'!F67","v":0},".M.SLTBOIN.XX.INF.OPI.XXXX.SX.XXX.XXX.IS.N.M"]
[{"$f":"\"INN.\"&EIGNIR!$B$3&C7890","v":{"$error":"#N/A"}},{"$f":"'Sundurliðun Lántaka'!F68","v":0},".M.SLTBOIN.XX.TRY.OPI.XXXX.SX.XXX.XXX.IS.N.M"]
[{"$f":"\"INN.\"&EIGNIR!$B$3&C7891","v":{"$error":"#N/A"}},{"$f":"'Sundurliðun Lántaka'!F69","v":0},".M.SLTBOIN.XX.LIF.OPI.XXXX.SX.XXX.XXX.IS.N.M"]
[{"$f":"\"INN.\"&EIGNIR!$B$3&C7892","v":{"$error":"#N/A"}},{"$f":"'Sundurliðun Lántaka'!G6","v":0},".M.SLTVLIN.XX.ATV.EIF.XXXX.SX.XXX.XXX.IS.N.M","//Sundurliðun lántaka, einkafyrirtæki"]
[{"$f":"\"INN.\"&EIGNIR!$B$3&C7893","v":{"$error":"#N/A"}},{"$f":"'Sundurliðun Lántaka'!G7","v":0},".M.SLTVLIN.XX.FJA.EIF.XXXX.SX.XXX.XXX.IS.N.M"]
[{"$f":"\"INN.\"&EIGNIR!$B$3&C7894","v":{"$error":"#N/A"}},{"$f":"'Sundurliðun Lántaka'!G8","v":0},".M.SLTVLIN.XX.INN.EIF.XXXX.SX.XXX.XXX.IS.N.M"]
[{"$f":"\"INN.\"&EIGNIR!$B$3&C7895","v":{"$error":"#N/A"}},{"$f":"'Sundurliðun Lántaka'!G9","v":0},".M.SLTVLIN.XX.SLI.EIF.XXXX.SX.XXX.XXX.IS.N.M"]
[{"$f":"\"INN.\"&EIGNIR!$B$3&C7896","v":{"$error":"#N/A"}},{"$f":"'Sundurliðun Lántaka'!G10","v":0},".M.SLTVLIN.XX.PEN.EIF.XXXX.SX.XXX.XXX.IS.N.M"]
[{"$f":"\"INN.\"&EIGNIR!$B$3&C7897","v":{"$error":"#N/A"}},{"$f":"'Sundurliðun Lántaka'!G11","v":0},".M.SLTVLIN.XX.SJO.EIF.XXXX.SX.XXX.XXX.IS.N.M"]
[{"$f":"\"INN.\"&EIGNIR!$B$3&C7898","v":{"$error":"#N/A"}},{"$f":"'Sundurliðun Lántaka'!G12","v":0},".M.SLTVLIN.XX.YFT.EIF.XXXX.SX.XXX.XXX.IS.N.M"]
[{"$f":"\"INN.\"&EIGNIR!$B$3&C7899","v":{"$error":"#N/A"}},{"$f":"'Sundurliðun Lántaka'!G13","v":0},".M.SLTVLIN.XX.SLY.EIF.XXXX.SX.XXX.XXX.IS.N.M"]
[{"$f":"\"INN.\"&EIGNIR!$B$3&C7900","v":{"$error":"#N/A"}},{"$f":"'Sundurliðun Lántaka'!G14","v":0},".M.SLTVLIN.XX.FHL.EIF.XXXX.SX.XXX.XXX.IS.N.M"]
[{"$f":"\"INN.\"&EIGNIR!$B$3&C7901","v":{"$error":"#N/A"}},{"$f":"'Sundurliðun Lántaka'!G15","v":0},".M.SLTVLIN.XX.INF.EIF.XXXX.SX.XXX.XXX.IS.N.M"]
[{"$f":"\"INN.\"&EIGNIR!$B$3&C7902","v":{"$error":"#N/A"}},{"$f":"'Sundurliðun Lántaka'!G16","v":0},".M.SLTVLIN.XX.TRY.EIF.XXXX.SX.XXX.XXX.IS.N.M"]
[{"$f":"\"INN.\"&EIGNIR!$B$3&C7903","v":{"$error":"#N/A"}},{"$f":"'Sundurliðun Lántaka'!G17","v":0},".M.SLTVLIN.XX.LIF.EIF.XXXX.SX.XXX.XXX.IS.N.M"]
[{"$f":"\"INN.\"&EIGNIR!$B$3&C7904","v":{"$error":"#N/A"}},{"$f":"'Sundurliðun Lántaka'!G32","v":0},".M.SLTBVIN.XX.ATV.EIF.XXXX.SV.XXX.XXX.IS.N.M"]
[{"$f":"\"INN.\"&EIGNIR!$B$3&C7905","v":{"$error":"#N/A"}},{"$f":"'Sundurliðun Lántaka'!G33","v":0},".M.SLTBVIN.XX.FJA.EIF.XXXX.SV.XXX.XXX.IS.N.M"]
[{"$f":"\"INN.\"&EIGNIR!$B$3&C7906","v":{"$error":"#N/A"}},{"$f":"'Sundurliðun Lántaka'!G34","v":0},".M.SLTBVIN.XX.INN.EIF.XXXX.SV.XXX.XXX.IS.N.M"]
[{"$f":"\"INN.\"&EIGNIR!$B$3&C7907","v":{"$error":"#N/A"}},{"$f":"'Sundurliðun Lántaka'!G35","v":0},".M.SLTBVIN.XX.SLI.EIF.XXXX.SV.XXX.XXX.IS.N.M"]
[{"$f":"\"INN.\"&EIGNIR!$B$3&C7908","v":{"$error":"#N/A"}},{"$f":"'Sundurliðun Lántaka'!G36","v":0},".M.SLTBVIN.XX.PEN.EIF.XXXX.SV.XXX.XXX.IS.N.M"]
[{"$f":"\"INN.\"&EIGNIR!$B$3&C7909","v":{"$error":"#N/A"}},{"$f":"'Sundurliðun Lántaka'!G37","v":0},".M.SLTBVIN.XX.SJO.EIF.XXXX.SV.XXX.XXX.IS.N.M"]
[{"$f":"\"INN.\"&EIGNIR!$B$3&C7910","v":{"$error":"#N/A"}},{"$f":"'Sundurliðun Lántaka'!G38","v":0},".M.SLTBVIN.XX.YFT.EIF.XXXX.SV.XXX.XXX.IS.N.M"]
[{"$f":"\"INN.\"&EIGNIR!$B$3&C7911","v":{"$error":"#N/A"}},{"$f":"'Sundurliðun Lántaka'!G39","v":0},".M.SLTBVIN.XX.SLY.EIF.XXXX.SV.XXX.XXX.IS.N.M"]
[{"$f":"\"INN.\"&EIGNIR!$B$3&C7912","v":{"$error":"#N/A"}},{"$f":"'Sundurliðun Lántaka'!G40","v":0},".M.SLTBVIN.XX.FHL.EIF.XXXX.SV.XXX.XXX.IS.N.M"]
[{"$f":"\"INN.\"&EIGNIR!$B$3&C7913","v":{"$error":"#N/A"}},{"$f":"'Sundurliðun Lántaka'!G41","v":0},".M.SLTBVIN.XX.INF.EIF.XXXX.SV.XXX.XXX.IS.N.M"]
[{"$f":"\"INN.\"&EIGNIR!$B$3&C7914","v":{"$error":"#N/A"}},{"$f":"'Sundurliðun Lántaka'!G42","v":0},".M.SLTBVIN.XX.TRY.EIF.XXXX.SV.XXX.XXX.IS.N.M"]
[{"$f":"\"INN.\"&EIGNIR!$B$3&C7915","v":{"$error":"#N/A"}},{"$f":"'Sundurliðun Lántaka'!G43","v":0},".M.SLTBVIN.XX.LIF.EIF.XXXX.SV.XXX.XXX.IS.N.M"]
[{"$f":"\"INN.\"&EIGNIR!$B$3&C7916","v":{"$error":"#N/A"}},{"$f":"'Sundurliðun Lántaka'!G58","v":0},".M.SLTBOIN.XX.ATV.EIF.XXXX.SX.XXX.XXX.IS.N.M"]
[{"$f":"\"INN.\"&EIGNIR!$B$3&C7917","v":{"$error":"#N/A"}},{"$f":"'Sundurliðun Lántaka'!G59","v":0},".M.SLTBOIN.XX.FJA.EIF.XXXX.SX.XXX.XXX.IS.N.M"]
[{"$f":"\"INN.\"&EIGNIR!$B$3&C7918","v":{"$error":"#N/A"}},{"$f":"'Sundurliðun Lántaka'!G60","v":0},".M.SLTBOIN.XX.INN.EIF.XXXX.SX.XXX.XXX.IS.N.M"]
[{"$f":"\"INN.\"&EIGNIR!$B$3&C7919","v":{"$error":"#N/A"}},{"$f":"'Sundurliðun Lántaka'!G61","v":0},".M.SLTBOIN.XX.SLI.EIF.XXXX.SX.XXX.XXX.IS.N.M"]
[{"$f":"\"INN.\"&EIGNIR!$B$3&C7920","v":{"$error":"#N/A"}},{"$f":"'Sundurliðun Lántaka'!G62","v":0},".M.SLTBOIN.XX.PEN.EIF.XXXX.SX.XXX.XXX.IS.N.M"]
[{"$f":"\"INN.\"&EIGNIR!$B$3&C7921","v":{"$error":"#N/A"}},{"$f":"'Sundurliðun Lántaka'!G63","v":0},".M.SLTBOIN.XX.SJO.EIF.XXXX.SX.XXX.XXX.IS.N.M"]
[{"$f":"\"INN.\"&EIGNIR!$B$3&C7922","v":{"$error":"#N/A"}},{"$f":"'Sundurliðun Lántaka'!G64","v":0},".M.SLTBOIN.XX.YFT.EIF.XXXX.SX.XXX.XXX.IS.N.M"]
[{"$f":"\"INN.\"&EIGNIR!$B$3&C7923","v":{"$error":"#N/A"}},{"$f":"'Sundurliðun Lántaka'!G65","v":0},".M.SLTBOIN.XX.SLY.EIF.XXXX.SX.XXX.XXX.IS.N.M"]
[{"$f":"\"INN.\"&EIGNIR!$B$3&C7924","v":{"$error":"#N/A"}},{"$f":"'Sundurliðun Lántaka'!G66","v":0},".M.SLTBOIN.XX.FHL.EIF.XXXX.SX.XXX.XXX.IS.N.M"]
[{"$f":"\"INN.\"&EIGNIR!$B$3&C7925","v":{"$error":"#N/A"}},{"$f":"'Sundurliðun Lántaka'!G67","v":0},".M.SLTBOIN.XX.INF.EIF.XXXX.SX.XXX.XXX.IS.N.M"]
[{"$f":"\"INN.\"&EIGNIR!$B$3&C7926","v":{"$error":"#N/A"}},{"$f":"'Sundurliðun Lántaka'!G68","v":0},".M.SLTBOIN.XX.TRY.EIF.XXXX.SX.XXX.XXX.IS.N.M"]
[{"$f":"\"INN.\"&EIGNIR!$B$3&C7927","v":{"$error":"#N/A"}},{"$f":"'Sundurliðun Lántaka'!G69","v":0},".M.SLTBOIN.XX.LIF.EIF.XXXX.SX.XXX.XXX.IS.N.M"]
[{"$f":"\"INN.\"&EIGNIR!$B$3&C7928","v":{"$error":"#N/A"}},{"$f":"'Sundurliðun Lántaka'!H5","v":0},".M.SLTVL$$.XX.$$$.XXX.XXXX.SX.XXX.ISK.IS.N.M","//Sundurliðun lántaka ISK"]
[{"$f":"\"INN.\"&EIGNIR!$B$3&C7929","v":{"$error":"#N/A"}},{"$f":"'Sundurliðun Lántaka'!H6","v":0},".M.SLTVLIN.XX.ATV.XXX.XXXX.SX.XXX.ISK.IS.N.M"]
[{"$f":"\"INN.\"&EIGNIR!$B$3&C7930","v":{"$error":"#N/A"}},{"$f":"'Sundurliðun Lántaka'!H7","v":0},".M.SLTVLIN.XX.FJA.XXX.XXXX.SX.XXX.ISK.IS.N.M"]
[{"$f":"\"INN.\"&EIGNIR!$B$3&C7931","v":{"$error":"#N/A"}},{"$f":"'Sundurliðun Lántaka'!H8","v":0},".M.SLTVLIN.XX.INN.XXX.XXXX.SX.XXX.ISK.IS.N.M"]
[{"$f":"\"INN.\"&EIGNIR!$B$3&C7932","v":{"$error":"#N/A"}},{"$f":"'Sundurliðun Lántaka'!H9","v":0},".M.SLTVLIN.XX.SLI.XXX.XXXX.SX.XXX.ISK.IS.N.M"]
[{"$f":"\"INN.\"&EIGNIR!$B$3&C7933","v":{"$error":"#N/A"}},{"$f":"'Sundurliðun Lántaka'!H10","v":0},".M.SLTVLIN.XX.PEN.XXX.XXXX.SX.XXX.ISK.IS.N.M"]
[{"$f":"\"INN.\"&EIGNIR!$B$3&C7934","v":{"$error":"#N/A"}},{"$f":"'Sundurliðun Lántaka'!H11","v":0},".M.SLTVLIN.XX.SJO.XXX.XXXX.SX.XXX.ISK.IS.N.M"]
[{"$f":"\"INN.\"&EIGNIR!$B$3&C7935","v":{"$error":"#N/A"}},{"$f":"'Sundurliðun Lántaka'!H12","v":0},".M.SLTVLIN.XX.YFT.XXX.XXXX.SX.XXX.ISK.IS.N.M"]
[{"$f":"\"INN.\"&EIGNIR!$B$3&C7936","v":{"$error":"#N/A"}},{"$f":"'Sundurliðun Lántaka'!H13","v":0},".M.SLTVLIN.XX.SLY.XXX.XXXX.SX.XXX.ISK.IS.N.M"]
[{"$f":"\"INN.\"&EIGNIR!$B$3&C7937","v":{"$error":"#N/A"}},{"$f":"'Sundurliðun Lántaka'!H14","v":0},".M.SLTVLIN.XX.FHL.XXX.XXXX.SX.XXX.ISK.IS.N.M"]
[{"$f":"\"INN.\"&EIGNIR!$B$3&C7938","v":{"$error":"#N/A"}},{"$f":"'Sundurliðun Lántaka'!H15","v":0},".M.SLTVLIN.XX.INF.XXX.XXXX.SX.XXX.ISK.IS.N.M"]
[{"$f":"\"INN.\"&EIGNIR!$B$3&C7939","v":{"$error":"#N/A"}},{"$f":"'Sundurliðun Lántaka'!H16","v":0},".M.SLTVLIN.XX.TRY.XXX.XXXX.SX.XXX.ISK.IS.N.M"]
[{"$f":"\"INN.\"&EIGNIR!$B$3&C7940","v":{"$error":"#N/A"}},{"$f":"'Sundurliðun Lántaka'!H17","v":0},".M.SLTVLIN.XX.LIF.XXX.XXXX.SX.XXX.ISK.IS.N.M"]
[{"$f":"\"INN.\"&EIGNIR!$B$3&C7941","v":{"$error":"#N/A"}},{"$f":"'Sundurliðun Lántaka'!H18","v":0},".M.SLTVLIN.XX.OPI.XXX.XXXX.SX.XXX.ISK.IS.N.M"]
[{"$f":"\"INN.\"&EIGNIR!$B$3&C7942","v":{"$error":"#N/A"}},{"$f":"'Sundurliðun Lántaka'!H19","v":0},".M.SLTVLIN.XX.RSS.XXX.XXXX.SX.XXX.ISK.IS.N.M"]
[{"$f":"\"INN.\"&EIGNIR!$B$3&C7943","v":{"$error":"#N/A"}},{"$f":"'Sundurliðun Lántaka'!H20","v":0},".M.SLTVLIN.XX.BAJ.XXX.XXXX.SX.XXX.ISK.IS.N.M"]
[{"$f":"\"INN.\"&EIGNIR!$B$3&C7944","v":{"$error":"#N/A"}},{"$f":"'Sundurliðun Lántaka'!H22","v":0},".M.SLTVLIN.XX.NPH.XXX.XXXX.SX.XXX.ISK.IS.N.M"]
[{"$f":"\"INN.\"&EIGNIR!$B$3&C7945","v":{"$error":"#N/A"}},{"$f":"'Sundurliðun Lántaka'!H23","v":0},".M.SLTVLER.XX.ERL.XXX.XXXX.SX.XXX.ISK.IS.N.M"]
[{"$f":"\"INN.\"&EIGNIR!$B$3&C7946","v":{"$error":"#N/A"}},{"$f":"'Sundurliðun Lántaka'!H24","v":0},".M.SLTVLER.XX.ERS.XXX.XXXX.SX.XXX.ISK.IS.N.M"]
[{"$f":"\"INN.\"&EIGNIR!$B$3&C7947","v":{"$error":"#N/A"}},{"$f":"'Sundurliðun Lántaka'!H25","v":0},".M.SLTVLER.XX.ERI.XXX.XXXX.SX.XXX.ISK.IS.N.M"]
[{"$f":"\"INN.\"&EIGNIR!$B$3&C7948","v":{"$error":"#N/A"}},{"$f":"'Sundurliðun Lántaka'!H26","v":0},".M.SLTVLER.XX.ERP.XXX.XXXX.SX.XXX.ISK.IS.N.M"]
[{"$f":"\"INN.\"&EIGNIR!$B$3&C7949","v":{"$error":"#N/A"}},{"$f":"'Sundurliðun Lántaka'!H27","v":0},".M.SLTVLER.XX.ERV.XXX.XXXX.SX.XXX.ISK.IS.N.M"]
[{"$f":"\"INN.\"&EIGNIR!$B$3&C7950","v":{"$error":"#N/A"}},{"$f":"'Sundurliðun Lántaka'!H28","v":0},".M.SLTVLER.XX.ERF.XXX.XXXX.SX.XXX.ISK.IS.N.M"]
[{"$f":"\"INN.\"&EIGNIR!$B$3&C7951","v":{"$error":"#N/A"}},{"$f":"'Sundurliðun Lántaka'!H29","v":0},".M.SLTVLER.XX.ERO.XXX.XXXX.SX.XXX.ISK.IS.N.M"]
[{"$f":"\"INN.\"&EIGNIR!$B$3&C7952","v":{"$error":"#N/A"}},{"$f":"'Sundurliðun Lántaka'!H30","v":0},".M.SLTVLER.XX.ERA.XXX.XXXX.SX.XXX.ISK.IS.N.M"]
[{"$f":"\"INN.\"&EIGNIR!$B$3&C7953","v":{"$error":"#N/A"}},{"$f":"'Sundurliðun Lántaka'!H31","v":0},".M.SLTBV$$.XX.$$$.XXX.XXXX.SV.XXX.ISK.IS.N.M"]
[{"$f":"\"INN.\"&EIGNIR!$B$3&C7954","v":{"$error":"#N/A"}},{"$f":"'Sundurliðun Lántaka'!H32","v":0},".M.SLTBVIN.XX.ATV.XXX.XXXX.SV.XXX.ISK.IS.N.M"]
[{"$f":"\"INN.\"&EIGNIR!$B$3&C7955","v":{"$error":"#N/A"}},{"$f":"'Sundurliðun Lántaka'!H33","v":0},".M.SLTBVIN.XX.FJA.XXX.XXXX.SV.XXX.ISK.IS.N.M"]
[{"$f":"\"INN.\"&EIGNIR!$B$3&C7956","v":{"$error":"#N/A"}},{"$f":"'Sundurliðun Lántaka'!H34","v":0},".M.SLTBVIN.XX.INN.XXX.XXXX.SV.XXX.ISK.IS.N.M"]
[{"$f":"\"INN.\"&EIGNIR!$B$3&C7957","v":{"$error":"#N/A"}},{"$f":"'Sundurliðun Lántaka'!H35","v":0},".M.SLTBVIN.XX.SLI.XXX.XXXX.SV.XXX.ISK.IS.N.M"]
[{"$f":"\"INN.\"&EIGNIR!$B$3&C7958","v":{"$error":"#N/A"}},{"$f":"'Sundurliðun Lántaka'!H36","v":0},".M.SLTBVIN.XX.PEN.XXX.XXXX.SV.XXX.ISK.IS.N.M"]
[{"$f":"\"INN.\"&EIGNIR!$B$3&C7959","v":{"$error":"#N/A"}},{"$f":"'Sundurliðun Lántaka'!H37","v":0},".M.SLTBVIN.XX.SJO.XXX.XXXX.SV.XXX.ISK.IS.N.M"]
[{"$f":"\"INN.\"&EIGNIR!$B$3&C7960","v":{"$error":"#N/A"}},{"$f":"'Sundurliðun Lántaka'!H38","v":0},".M.SLTBVIN.XX.YFT.XXX.XXXX.SV.XXX.ISK.IS.N.M"]
[{"$f":"\"INN.\"&EIGNIR!$B$3&C7961","v":{"$error":"#N/A"}},{"$f":"'Sundurliðun Lántaka'!H39","v":0},".M.SLTBVIN.XX.SLY.XXX.XXXX.SV.XXX.ISK.IS.N.M"]
[{"$f":"\"INN.\"&EIGNIR!$B$3&C7962","v":{"$error":"#N/A"}},{"$f":"'Sundurliðun Lántaka'!H40","v":0},".M.SLTBVIN.XX.FHL.XXX.XXXX.SV.XXX.ISK.IS.N.M"]
[{"$f":"\"INN.\"&EIGNIR!$B$3&C7963","v":{"$error":"#N/A"}},{"$f":"'Sundurliðun Lántaka'!H41","v":0},".M.SLTBVIN.XX.INF.XXX.XXXX.SV.XXX.ISK.IS.N.M"]
[{"$f":"\"INN.\"&EIGNIR!$B$3&C7964","v":{"$error":"#N/A"}},{"$f":"'Sundurliðun Lántaka'!H42","v":0},".M.SLTBVIN.XX.TRY.XXX.XXXX.SV.XXX.ISK.IS.N.M"]
[{"$f":"\"INN.\"&EIGNIR!$B$3&C7965","v":{"$error":"#N/A"}},{"$f":"'Sundurliðun Lántaka'!H43","v":0},".M.SLTBVIN.XX.LIF.XXX.XXXX.SV.XXX.ISK.IS.N.M"]
[{"$f":"\"INN.\"&EIGNIR!$B$3&C7966","v":{"$error":"#N/A"}},{"$f":"'Sundurliðun Lántaka'!H44","v":0},".M.SLTBVIN.XX.OPI.XXX.XXXX.SV.XXX.ISK.IS.N.M"]
[{"$f":"\"INN.\"&EIGNIR!$B$3&C7967","v":{"$error":"#N/A"}},{"$f":"'Sundurliðun Lántaka'!H45","v":0},".M.SLTBVIN.XX.RSS.XXX.XXXX.SV.XXX.ISK.IS.N.M"]
[{"$f":"\"INN.\"&EIGNIR!$B$3&C7968","v":{"$error":"#N/A"}},{"$f":"'Sundurliðun Lántaka'!H46","v":0},".M.SLTBVIN.XX.BAJ.XXX.XXXX.SV.XXX.ISK.IS.N.M"]
[{"$f":"\"INN.\"&EIGNIR!$B$3&C7969","v":{"$error":"#N/A"}},{"$f":"'Sundurliðun Lántaka'!H48","v":0},".M.SLTBVIN.XX.NPH.XXX.XXXX.SV.XXX.ISK.IS.N.M"]
[{"$f":"\"INN.\"&EIGNIR!$B$3&C7970","v":{"$error":"#N/A"}},{"$f":"'Sundurliðun Lántaka'!H49","v":0},".M.SLTBVER.XX.ERL.XXX.XXXX.SV.XXX.ISK.IS.N.M"]
[{"$f":"\"INN.\"&EIGNIR!$B$3&C7971","v":{"$error":"#N/A"}},{"$f":"'Sundurliðun Lántaka'!H50","v":0},".M.SLTBVER.XX.ERS.XXX.XXXX.SV.XXX.ISK.IS.N.M"]
[{"$f":"\"INN.\"&EIGNIR!$B$3&C7972","v":{"$error":"#N/A"}},{"$f":"'Sundurliðun Lántaka'!H51","v":0},".M.SLTBVER.XX.ERI.XXX.XXXX.SV.XXX.ISK.IS.N.M"]
[{"$f":"\"INN.\"&EIGNIR!$B$3&C7973","v":{"$error":"#N/A"}},{"$f":"'Sundurliðun Lántaka'!H52","v":0},".M.SLTBVER.XX.ERP.XXX.XXXX.SV.XXX.ISK.IS.N.M"]
[{"$f":"\"INN.\"&EIGNIR!$B$3&C7974","v":{"$error":"#N/A"}},{"$f":"'Sundurliðun Lántaka'!H53","v":0},".M.SLTBVER.XX.ERV.XXX.XXXX.SV.XXX.ISK.IS.N.M"]
[{"$f":"\"INN.\"&EIGNIR!$B$3&C7975","v":{"$error":"#N/A"}},{"$f":"'Sundurliðun Lántaka'!H54","v":0},".M.SLTBVER.XX.ERF.XXX.XXXX.SV.XXX.ISK.IS.N.M"]
[{"$f":"\"INN.\"&EIGNIR!$B$3&C7976","v":{"$error":"#N/A"}},{"$f":"'Sundurliðun Lántaka'!H55","v":0},".M.SLTBVER.XX.ERO.XXX.XXXX.SV.XXX.ISK.IS.N.M"]
[{"$f":"\"INN.\"&EIGNIR!$B$3&C7977","v":{"$error":"#N/A"}},{"$f":"'Sundurliðun Lántaka'!H56","v":0},".M.SLTBVER.XX.ERA.XXX.XXXX.SV.XXX.ISK.IS.N.M"]
[{"$f":"\"INN.\"&EIGNIR!$B$3&C7978","v":{"$error":"#N/A"}},{"$f":"'Sundurliðun Lántaka'!H57","v":0},".M.SLTBO$$.XX.$$$.XXX.XXXX.SX.XXX.ISK.IS.N.M"]
[{"$f":"\"INN.\"&EIGNIR!$B$3&C7979","v":{"$error":"#N/A"}},{"$f":"'Sundurliðun Lántaka'!H58","v":0},".M.SLTBOIN.XX.ATV.XXX.XXXX.SX.XXX.ISK.IS.N.M"]
[{"$f":"\"INN.\"&EIGNIR!$B$3&C7980","v":{"$error":"#N/A"}},{"$f":"'Sundurliðun Lántaka'!H59","v":0},".M.SLTBOIN.XX.FJA.XXX.XXXX.SX.XXX.ISK.IS.N.M"]
[{"$f":"\"INN.\"&EIGNIR!$B$3&C7981","v":{"$error":"#N/A"}},{"$f":"'Sundurliðun Lántaka'!H60","v":0},".M.SLTBOIN.XX.INN.XXX.XXXX.SX.XXX.ISK.IS.N.M"]
[{"$f":"\"INN.\"&EIGNIR!$B$3&C7982","v":{"$error":"#N/A"}},{"$f":"'Sundurliðun Lántaka'!H61","v":0},".M.SLTBOIN.XX.SLI.XXX.XXXX.SX.XXX.ISK.IS.N.M"]
[{"$f":"\"INN.\"&EIGNIR!$B$3&C7983","v":{"$error":"#N/A"}},{"$f":"'Sundurliðun Lántaka'!H62","v":0},".M.SLTBOIN.XX.PEN.XXX.XXXX.SX.XXX.ISK.IS.N.M"]
[{"$f":"\"INN.\"&EIGNIR!$B$3&C7984","v":{"$error":"#N/A"}},{"$f":"'Sundurliðun Lántaka'!H63","v":0},".M.SLTBOIN.XX.SJO.XXX.XXXX.SX.XXX.ISK.IS.N.M"]
[{"$f":"\"INN.\"&EIGNIR!$B$3&C7985","v":{"$error":"#N/A"}},{"$f":"'Sundurliðun Lántaka'!H64","v":0},".M.SLTBOIN.XX.YFT.XXX.XXXX.SX.XXX.ISK.IS.N.M"]
[{"$f":"\"INN.\"&EIGNIR!$B$3&C7986","v":{"$error":"#N/A"}},{"$f":"'Sundurliðun Lántaka'!H65","v":0},".M.SLTBOIN.XX.SLY.XXX.XXXX.SX.XXX.ISK.IS.N.M"]
[{"$f":"\"INN.\"&EIGNIR!$B$3&C7987","v":{"$error":"#N/A"}},{"$f":"'Sundurliðun Lántaka'!H66","v":0},".M.SLTBOIN.XX.FHL.XXX.XXXX.SX.XXX.ISK.IS.N.M"]
[{"$f":"\"INN.\"&EIGNIR!$B$3&C7988","v":{"$error":"#N/A"}},{"$f":"'Sundurliðun Lántaka'!H67","v":0},".M.SLTBOIN.XX.INF.XXX.XXXX.SX.XXX.ISK.IS.N.M"]
[{"$f":"\"INN.\"&EIGNIR!$B$3&C7989","v":{"$error":"#N/A"}},{"$f":"'Sundurliðun Lántaka'!H68","v":0},".M.SLTBOIN.XX.TRY.XXX.XXXX.SX.XXX.ISK.IS.N.M"]
[{"$f":"\"INN.\"&EIGNIR!$B$3&C7990","v":{"$error":"#N/A"}},{"$f":"'Sundurliðun Lántaka'!H69","v":0},".M.SLTBOIN.XX.LIF.XXX.XXXX.SX.XXX.ISK.IS.N.M"]
[{"$f":"\"INN.\"&EIGNIR!$B$3&C7991","v":{"$error":"#N/A"}},{"$f":"'Sundurliðun Lántaka'!H70","v":0},".M.SLTBOIN.XX.OPI.XXX.XXXX.SX.XXX.ISK.IS.N.M"]
[{"$f":"\"INN.\"&EIGNIR!$B$3&C7992","v":{"$error":"#N/A"}},{"$f":"'Sundurliðun Lántaka'!H71","v":0},".M.SLTBOIN.XX.RSS.XXX.XXXX.SX.XXX.ISK.IS.N.M"]
[{"$f":"\"INN.\"&EIGNIR!$B$3&C7993","v":{"$error":"#N/A"}},{"$f":"'Sundurliðun Lántaka'!H72","v":0},".M.SLTBOIN.XX.BAJ.XXX.XXXX.SX.XXX.ISK.IS.N.M"]
[{"$f":"\"INN.\"&EIGNIR!$B$3&C7994","v":{"$error":"#N/A"}},{"$f":"'Sundurliðun Lántaka'!H74","v":0},".M.SLTBOIN.XX.NPH.XXX.XXXX.SX.XXX.ISK.IS.N.M"]
[{"$f":"\"INN.\"&EIGNIR!$B$3&C7995","v":{"$error":"#N/A"}},{"$f":"'Sundurliðun Lántaka'!H75","v":0},".M.SLTBOER.XX.ERL.XXX.XXXX.SX.XXX.ISK.IS.N.M"]
[{"$f":"\"INN.\"&EIGNIR!$B$3&C7996","v":{"$error":"#N/A"}},{"$f":"'Sundurliðun Lántaka'!H76","v":0},".M.SLTBOER.XX.ERS.XXX.XXXX.SX.XXX.ISK.IS.N.M"]
[{"$f":"\"INN.\"&EIGNIR!$B$3&C7997","v":{"$error":"#N/A"}},{"$f":"'Sundurliðun Lántaka'!H77","v":0},".M.SLTBOER.XX.ERI.XXX.XXXX.SX.XXX.ISK.IS.N.M"]
[{"$f":"\"INN.\"&EIGNIR!$B$3&C7998","v":{"$error":"#N/A"}},{"$f":"'Sundurliðun Lántaka'!H78","v":0},".M.SLTBOER.XX.ERP.XXX.XXXX.SX.XXX.ISK.IS.N.M"]
[{"$f":"\"INN.\"&EIGNIR!$B$3&C7999","v":{"$error":"#N/A"}},{"$f":"'Sundurliðun Lántaka'!H79","v":0},".M.SLTBOER.XX.ERV.XXX.XXXX.SX.XXX.ISK.IS.N.M"]
[{"$f":"\"INN.\"&EIGNIR!$B$3&C8000","v":{"$error":"#N/A"}},{"$f":"'Sundurliðun Lántaka'!H80","v":0},".M.SLTBOER.XX.ERF.XXX.XXXX.SX.XXX.ISK.IS.N.M"]
[{"$f":"\"INN.\"&EIGNIR!$B$3&C8001","v":{"$error":"#N/A"}},{"$f":"'Sundurliðun Lántaka'!H81","v":0},".M.SLTBOER.XX.ERO.XXX.XXXX.SX.XXX.ISK.IS.N.M"]
[{"$f":"\"INN.\"&EIGNIR!$B$3&C8002","v":{"$error":"#N/A"}},{"$f":"'Sundurliðun Lántaka'!H82","v":0},".M.SLTBOER.XX.ERA.XXX.XXXX.SX.XXX.ISK.IS.N.M"]
[{"$f":"\"INN.\"&EIGNIR!$B$3&C8003","v":{"$error":"#N/A"}},{"$f":"'Sundurliðun Lántaka'!I5","v":0},".M.SLTVL$$.XX.$$$.XXX.XXXX.SX.XXX.EUR.IS.N.M"]
[{"$f":"\"INN.\"&EIGNIR!$B$3&C8004","v":{"$error":"#N/A"}},{"$f":"'Sundurliðun Lántaka'!I6","v":0},".M.SLTVLIN.XX.ATV.XXX.XXXX.SX.XXX.EUR.IS.N.M"]
[{"$f":"\"INN.\"&EIGNIR!$B$3&C8005","v":{"$error":"#N/A"}},{"$f":"'Sundurliðun Lántaka'!I7","v":0},".M.SLTVLIN.XX.FJA.XXX.XXXX.SX.XXX.EUR.IS.N.M"]
[{"$f":"\"INN.\"&EIGNIR!$B$3&C8006","v":{"$error":"#N/A"}},{"$f":"'Sundurliðun Lántaka'!I8","v":0},".M.SLTVLIN.XX.INN.XXX.XXXX.SX.XXX.EUR.IS.N.M"]
[{"$f":"\"INN.\"&EIGNIR!$B$3&C8007","v":{"$error":"#N/A"}},{"$f":"'Sundurliðun Lántaka'!I9","v":0},".M.SLTVLIN.XX.SLI.XXX.XXXX.SX.XXX.EUR.IS.N.M"]
[{"$f":"\"INN.\"&EIGNIR!$B$3&C8008","v":{"$error":"#N/A"}},{"$f":"'Sundurliðun Lántaka'!I10","v":0},".M.SLTVLIN.XX.PEN.XXX.XXXX.SX.XXX.EUR.IS.N.M"]
[{"$f":"\"INN.\"&EIGNIR!$B$3&C8009","v":{"$error":"#N/A"}},{"$f":"'Sundurliðun Lántaka'!I11","v":0},".M.SLTVLIN.XX.SJO.XXX.XXXX.SX.XXX.EUR.IS.N.M"]
[{"$f":"\"INN.\"&EIGNIR!$B$3&C8010","v":{"$error":"#N/A"}},{"$f":"'Sundurliðun Lántaka'!I12","v":0},".M.SLTVLIN.XX.YFT.XXX.XXXX.SX.XXX.EUR.IS.N.M"]
[{"$f":"\"INN.\"&EIGNIR!$B$3&C8011","v":{"$error":"#N/A"}},{"$f":"'Sundurliðun Lántaka'!I13","v":0},".M.SLTVLIN.XX.SLY.XXX.XXXX.SX.XXX.EUR.IS.N.M"]
[{"$f":"\"INN.\"&EIGNIR!$B$3&C8012","v":{"$error":"#N/A"}},{"$f":"'Sundurliðun Lántaka'!I14","v":0},".M.SLTVLIN.XX.FHL.XXX.XXXX.SX.XXX.EUR.IS.N.M"]
[{"$f":"\"INN.\"&EIGNIR!$B$3&C8013","v":{"$error":"#N/A"}},{"$f":"'Sundurliðun Lántaka'!I15","v":0},".M.SLTVLIN.XX.INF.XXX.XXXX.SX.XXX.EUR.IS.N.M"]
[{"$f":"\"INN.\"&EIGNIR!$B$3&C8014","v":{"$error":"#N/A"}},{"$f":"'Sundurliðun Lántaka'!I16","v":0},".M.SLTVLIN.XX.TRY.XXX.XXXX.SX.XXX.EUR.IS.N.M"]
[{"$f":"\"INN.\"&EIGNIR!$B$3&C8015","v":{"$error":"#N/A"}},{"$f":"'Sundurliðun Lántaka'!I17","v":0},".M.SLTVLIN.XX.LIF.XXX.XXXX.SX.XXX.EUR.IS.N.M"]
[{"$f":"\"INN.\"&EIGNIR!$B$3&C8016","v":{"$error":"#N/A"}},{"$f":"'Sundurliðun Lántaka'!I18","v":0},".M.SLTVLIN.XX.OPI.XXX.XXXX.SX.XXX.EUR.IS.N.M"]
[{"$f":"\"INN.\"&EIGNIR!$B$3&C8017","v":{"$error":"#N/A"}},{"$f":"'Sundurliðun Lántaka'!I19","v":0},".M.SLTVLIN.XX.RSS.XXX.XXXX.SX.XXX.EUR.IS.N.M"]
[{"$f":"\"INN.\"&EIGNIR!$B$3&C8018","v":{"$error":"#N/A"}},{"$f":"'Sundurliðun Lántaka'!I20","v":0},".M.SLTVLIN.XX.BAJ.XXX.XXXX.SX.XXX.EUR.IS.N.M"]
[{"$f":"\"INN.\"&EIGNIR!$B$3&C8019","v":{"$error":"#N/A"}},{"$f":"'Sundurliðun Lántaka'!I22","v":0},".M.SLTVLIN.XX.NPH.XXX.XXXX.SX.XXX.EUR.IS.N.M"]
[{"$f":"\"INN.\"&EIGNIR!$B$3&C8020","v":{"$error":"#N/A"}},{"$f":"'Sundurliðun Lántaka'!I23","v":0},".M.SLTVLER.XX.ERL.XXX.XXXX.SX.XXX.EUR.IS.N.M"]
[{"$f":"\"INN.\"&EIGNIR!$B$3&C8021","v":{"$error":"#N/A"}},{"$f":"'Sundurliðun Lántaka'!I24","v":0},".M.SLTVLER.XX.ERS.XXX.XXXX.SX.XXX.EUR.IS.N.M"]
[{"$f":"\"INN.\"&EIGNIR!$B$3&C8022","v":{"$error":"#N/A"}},{"$f":"'Sundurliðun Lántaka'!I25","v":0},".M.SLTVLER.XX.ERI.XXX.XXXX.SX.XXX.EUR.IS.N.M"]
[{"$f":"\"INN.\"&EIGNIR!$B$3&C8023","v":{"$error":"#N/A"}},{"$f":"'Sundurliðun Lántaka'!I26","v":0},".M.SLTVLER.XX.ERP.XXX.XXXX.SX.XXX.EUR.IS.N.M"]
[{"$f":"\"INN.\"&EIGNIR!$B$3&C8024","v":{"$error":"#N/A"}},{"$f":"'Sundurliðun Lántaka'!I27","v":0},".M.SLTVLER.XX.ERV.XXX.XXXX.SX.XXX.EUR.IS.N.M"]
[{"$f":"\"INN.\"&EIGNIR!$B$3&C8025","v":{"$error":"#N/A"}},{"$f":"'Sundurliðun Lántaka'!I28","v":0},".M.SLTVLER.XX.ERF.XXX.XXXX.SX.XXX.EUR.IS.N.M"]
[{"$f":"\"INN.\"&EIGNIR!$B$3&C8026","v":{"$error":"#N/A"}},{"$f":"'Sundurliðun Lántaka'!I29","v":0},".M.SLTVLER.XX.ERO.XXX.XXXX.SX.XXX.EUR.IS.N.M"]
[{"$f":"\"INN.\"&EIGNIR!$B$3&C8027","v":{"$error":"#N/A"}},{"$f":"'Sundurliðun Lántaka'!I30","v":0},".M.SLTVLER.XX.ERA.XXX.XXXX.SX.XXX.EUR.IS.N.M"]
[{"$f":"\"INN.\"&EIGNIR!$B$3&C8028","v":{"$error":"#N/A"}},{"$f":"'Sundurliðun Lántaka'!I57","v":0},".M.SLTBO$$.XX.$$$.XXX.XXXX.SX.XXX.EUR.IS.N.M"]
[{"$f":"\"INN.\"&EIGNIR!$B$3&C8029","v":{"$error":"#N/A"}},{"$f":"'Sundurliðun Lántaka'!I58","v":0},".M.SLTBOIN.XX.ATV.XXX.XXXX.SX.XXX.EUR.IS.N.M"]
[{"$f":"\"INN.\"&EIGNIR!$B$3&C8030","v":{"$error":"#N/A"}},{"$f":"'Sundurliðun Lántaka'!I59","v":0},".M.SLTBOIN.XX.FJA.XXX.XXXX.SX.XXX.EUR.IS.N.M"]
[{"$f":"\"INN.\"&EIGNIR!$B$3&C8031","v":{"$error":"#N/A"}},{"$f":"'Sundurliðun Lántaka'!I60","v":0},".M.SLTBOIN.XX.INN.XXX.XXXX.SX.XXX.EUR.IS.N.M"]
[{"$f":"\"INN.\"&EIGNIR!$B$3&C8032","v":{"$error":"#N/A"}},{"$f":"'Sundurliðun Lántaka'!I61","v":0},".M.SLTBOIN.XX.SLI.XXX.XXXX.SX.XXX.EUR.IS.N.M"]
[{"$f":"\"INN.\"&EIGNIR!$B$3&C8033","v":{"$error":"#N/A"}},{"$f":"'Sundurliðun Lántaka'!I62","v":0},".M.SLTBOIN.XX.PEN.XXX.XXXX.SX.XXX.EUR.IS.N.M"]
[{"$f":"\"INN.\"&EIGNIR!$B$3&C8034","v":{"$error":"#N/A"}},{"$f":"'Sundurliðun Lántaka'!I63","v":0},".M.SLTBOIN.XX.SJO.XXX.XXXX.SX.XXX.EUR.IS.N.M"]
[{"$f":"\"INN.\"&EIGNIR!$B$3&C8035","v":{"$error":"#N/A"}},{"$f":"'Sundurliðun Lántaka'!I64","v":0},".M.SLTBOIN.XX.YFT.XXX.XXXX.SX.XXX.EUR.IS.N.M"]
[{"$f":"\"INN.\"&EIGNIR!$B$3&C8036","v":{"$error":"#N/A"}},{"$f":"'Sundurliðun Lántaka'!I65","v":0},".M.SLTBOIN.XX.SLY.XXX.XXXX.SX.XXX.EUR.IS.N.M"]
[{"$f":"\"INN.\"&EIGNIR!$B$3&C8037","v":{"$error":"#N/A"}},{"$f":"'Sundurliðun Lántaka'!I66","v":0},".M.SLTBOIN.XX.FHL.XXX.XXXX.SX.XXX.EUR.IS.N.M"]
[{"$f":"\"INN.\"&EIGNIR!$B$3&C8038","v":{"$error":"#N/A"}},{"$f":"'Sundurliðun Lántaka'!I67","v":0},".M.SLTBOIN.XX.INF.XXX.XXXX.SX.XXX.EUR.IS.N.M"]
[{"$f":"\"INN.\"&EIGNIR!$B$3&C8039","v":{"$error":"#N/A"}},{"$f":"'Sundurliðun Lántaka'!I68","v":0},".M.SLTBOIN.XX.TRY.XXX.XXXX.SX.XXX.EUR.IS.N.M"]
[{"$f":"\"INN.\"&EIGNIR!$B$3&C8040","v":{"$error":"#N/A"}},{"$f":"'Sundurliðun Lántaka'!I69","v":0},".M.SLTBOIN.XX.LIF.XXX.XXXX.SX.XXX.EUR.IS.N.M"]
[{"$f":"\"INN.\"&EIGNIR!$B$3&C8041","v":{"$error":"#N/A"}},{"$f":"'Sundurliðun Lántaka'!I70","v":0},".M.SLTBOIN.XX.OPI.XXX.XXXX.SX.XXX.EUR.IS.N.M"]
[{"$f":"\"INN.\"&EIGNIR!$B$3&C8042","v":{"$error":"#N/A"}},{"$f":"'Sundurliðun Lántaka'!I71","v":0},".M.SLTBOIN.XX.RSS.XXX.XXXX.SX.XXX.EUR.IS.N.M"]
[{"$f":"\"INN.\"&EIGNIR!$B$3&C8043","v":{"$error":"#N/A"}},{"$f":"'Sundurliðun Lántaka'!I72","v":0},".M.SLTBOIN.XX.BAJ.XXX.XXXX.SX.XXX.EUR.IS.N.M"]
[{"$f":"\"INN.\"&EIGNIR!$B$3&C8044","v":{"$error":"#N/A"}},{"$f":"'Sundurliðun Lántaka'!I74","v":0},".M.SLTBOIN.XX.NPH.XXX.XXXX.SX.XXX.EUR.IS.N.M"]
[{"$f":"\"INN.\"&EIGNIR!$B$3&C8045","v":{"$error":"#N/A"}},{"$f":"'Sundurliðun Lántaka'!I75","v":0},".M.SLTBOER.XX.ERL.XXX.XXXX.SX.XXX.EUR.IS.N.M"]
[{"$f":"\"INN.\"&EIGNIR!$B$3&C8046","v":{"$error":"#N/A"}},{"$f":"'Sundurliðun Lántaka'!I76","v":0},".M.SLTBOER.XX.ERS.XXX.XXXX.SX.XXX.EUR.IS.N.M"]
[{"$f":"\"INN.\"&EIGNIR!$B$3&C8047","v":{"$error":"#N/A"}},{"$f":"'Sundurliðun Lántaka'!I77","v":0},".M.SLTBOER.XX.ERI.XXX.XXXX.SX.XXX.EUR.IS.N.M"]
[{"$f":"\"INN.\"&EIGNIR!$B$3&C8048","v":{"$error":"#N/A"}},{"$f":"'Sundurliðun Lántaka'!I78","v":0},".M.SLTBOER.XX.ERP.XXX.XXXX.SX.XXX.EUR.IS.N.M"]
[{"$f":"\"INN.\"&EIGNIR!$B$3&C8049","v":{"$error":"#N/A"}},{"$f":"'Sundurliðun Lántaka'!I79","v":0},".M.SLTBOER.XX.ERV.XXX.XXXX.SX.XXX.EUR.IS.N.M"]
[{"$f":"\"INN.\"&EIGNIR!$B$3&C8050","v":{"$error":"#N/A"}},{"$f":"'Sundurliðun Lántaka'!I80","v":0},".M.SLTBOER.XX.ERF.XXX.XXXX.SX.XXX.EUR.IS.N.M"]
[{"$f":"\"INN.\"&EIGNIR!$B$3&C8051","v":{"$error":"#N/A"}},{"$f":"'Sundurliðun Lántaka'!I81","v":0},".M.SLTBOER.XX.ERO.XXX.XXXX.SX.XXX.EUR.IS.N.M"]
[{"$f":"\"INN.\"&EIGNIR!$B$3&C8052","v":{"$error":"#N/A"}},{"$f":"'Sundurliðun Lántaka'!I82","v":0},".M.SLTBOER.XX.ERA.XXX.XXXX.SX.XXX.EUR.IS.N.M"]
[{"$f":"\"INN.\"&EIGNIR!$B$3&C8053","v":{"$error":"#N/A"}},{"$f":"'Sundurliðun Lántaka'!J5","v":0},".M.SLTVL$$.XX.$$$.XXX.XXXX.SX.XXX.USD.IS.N.M","//Sundurliðun lántaka USD"]
[{"$f":"\"INN.\"&EIGNIR!$B$3&C8054","v":{"$error":"#N/A"}},{"$f":"'Sundurliðun Lántaka'!J6","v":0},".M.SLTVLIN.XX.ATV.XXX.XXXX.SX.XXX.USD.IS.N.M"]
[{"$f":"\"INN.\"&EIGNIR!$B$3&C8055","v":{"$error":"#N/A"}},{"$f":"'Sundurliðun Lántaka'!J7","v":0},".M.SLTVLIN.XX.FJA.XXX.XXXX.SX.XXX.USD.IS.N.M"]
[{"$f":"\"INN.\"&EIGNIR!$B$3&C8056","v":{"$error":"#N/A"}},{"$f":"'Sundurliðun Lántaka'!J8","v":0},".M.SLTVLIN.XX.INN.XXX.XXXX.SX.XXX.USD.IS.N.M"]
[{"$f":"\"INN.\"&EIGNIR!$B$3&C8057","v":{"$error":"#N/A"}},{"$f":"'Sundurliðun Lántaka'!J9","v":0},".M.SLTVLIN.XX.SLI.XXX.XXXX.SX.XXX.USD.IS.N.M"]
[{"$f":"\"INN.\"&EIGNIR!$B$3&C8058","v":{"$error":"#N/A"}},{"$f":"'Sundurliðun Lántaka'!J10","v":0},".M.SLTVLIN.XX.PEN.XXX.XXXX.SX.XXX.USD.IS.N.M"]
[{"$f":"\"INN.\"&EIGNIR!$B$3&C8059","v":{"$error":"#N/A"}},{"$f":"'Sundurliðun Lántaka'!J11","v":0},".M.SLTVLIN.XX.SJO.XXX.XXXX.SX.XXX.USD.IS.N.M"]
[{"$f":"\"INN.\"&EIGNIR!$B$3&C8060","v":{"$error":"#N/A"}},{"$f":"'Sundurliðun Lántaka'!J12","v":0},".M.SLTVLIN.XX.YFT.XXX.XXXX.SX.XXX.USD.IS.N.M"]
[{"$f":"\"INN.\"&EIGNIR!$B$3&C8061","v":{"$error":"#N/A"}},{"$f":"'Sundurliðun Lántaka'!J13","v":0},".M.SLTVLIN.XX.SLY.XXX.XXXX.SX.XXX.USD.IS.N.M"]
[{"$f":"\"INN.\"&EIGNIR!$B$3&C8062","v":{"$error":"#N/A"}},{"$f":"'Sundurliðun Lántaka'!J14","v":0},".M.SLTVLIN.XX.FHL.XXX.XXXX.SX.XXX.USD.IS.N.M"]
[{"$f":"\"INN.\"&EIGNIR!$B$3&C8063","v":{"$error":"#N/A"}},{"$f":"'Sundurliðun Lántaka'!J15","v":0},".M.SLTVLIN.XX.INF.XXX.XXXX.SX.XXX.USD.IS.N.M"]
[{"$f":"\"INN.\"&EIGNIR!$B$3&C8064","v":{"$error":"#N/A"}},{"$f":"'Sundurliðun Lántaka'!J16","v":0},".M.SLTVLIN.XX.TRY.XXX.XXXX.SX.XXX.USD.IS.N.M"]
[{"$f":"\"INN.\"&EIGNIR!$B$3&C8065","v":{"$error":"#N/A"}},{"$f":"'Sundurliðun Lántaka'!J17","v":0},".M.SLTVLIN.XX.LIF.XXX.XXXX.SX.XXX.USD.IS.N.M"]
[{"$f":"\"INN.\"&EIGNIR!$B$3&C8066","v":{"$error":"#N/A"}},{"$f":"'Sundurliðun Lántaka'!J18","v":0},".M.SLTVLIN.XX.OPI.XXX.XXXX.SX.XXX.USD.IS.N.M"]
[{"$f":"\"INN.\"&EIGNIR!$B$3&C8067","v":{"$error":"#N/A"}},{"$f":"'Sundurliðun Lántaka'!J19","v":0},".M.SLTVLIN.XX.RSS.XXX.XXXX.SX.XXX.USD.IS.N.M"]
[{"$f":"\"INN.\"&EIGNIR!$B$3&C8068","v":{"$error":"#N/A"}},{"$f":"'Sundurliðun Lántaka'!J20","v":0},".M.SLTVLIN.XX.BAJ.XXX.XXXX.SX.XXX.USD.IS.N.M"]
[{"$f":"\"INN.\"&EIGNIR!$B$3&C8069","v":{"$error":"#N/A"}},{"$f":"'Sundurliðun Lántaka'!J22","v":0},".M.SLTVLIN.XX.NPH.XXX.XXXX.SX.XXX.USD.IS.N.M"]
[{"$f":"\"INN.\"&EIGNIR!$B$3&C8070","v":{"$error":"#N/A"}},{"$f":"'Sundurliðun Lántaka'!J23","v":0},".M.SLTVLER.XX.ERL.XXX.XXXX.SX.XXX.USD.IS.N.M"]
[{"$f":"\"INN.\"&EIGNIR!$B$3&C8071","v":{"$error":"#N/A"}},{"$f":"'Sundurliðun Lántaka'!J24","v":0},".M.SLTVLER.XX.ERS.XXX.XXXX.SX.XXX.USD.IS.N.M"]
[{"$f":"\"INN.\"&EIGNIR!$B$3&C8072","v":{"$error":"#N/A"}},{"$f":"'Sundurliðun Lántaka'!J25","v":0},".M.SLTVLER.XX.ERI.XXX.XXXX.SX.XXX.USD.IS.N.M"]
[{"$f":"\"INN.\"&EIGNIR!$B$3&C8073","v":{"$error":"#N/A"}},{"$f":"'Sundurliðun Lántaka'!J26","v":0},".M.SLTVLER.XX.ERP.XXX.XXXX.SX.XXX.USD.IS.N.M"]
[{"$f":"\"INN.\"&EIGNIR!$B$3&C8074","v":{"$error":"#N/A"}},{"$f":"'Sundurliðun Lántaka'!J27","v":0},".M.SLTVLER.XX.ERV.XXX.XXXX.SX.XXX.USD.IS.N.M"]
[{"$f":"\"INN.\"&EIGNIR!$B$3&C8075","v":{"$error":"#N/A"}},{"$f":"'Sundurliðun Lántaka'!J28","v":0},".M.SLTVLER.XX.ERF.XXX.XXXX.SX.XXX.USD.IS.N.M"]
[{"$f":"\"INN.\"&EIGNIR!$B$3&C8076","v":{"$error":"#N/A"}},{"$f":"'Sundurliðun Lántaka'!J29","v":0},".M.SLTVLER.XX.ERO.XXX.XXXX.SX.XXX.USD.IS.N.M"]
[{"$f":"\"INN.\"&EIGNIR!$B$3&C8077","v":{"$error":"#N/A"}},{"$f":"'Sundurliðun Lántaka'!J30","v":0},".M.SLTVLER.XX.ERA.XXX.XXXX.SX.XXX.USD.IS.N.M"]
[{"$f":"\"INN.\"&EIGNIR!$B$3&C8078","v":{"$error":"#N/A"}},{"$f":"'Sundurliðun Lántaka'!J57","v":0},".M.SLTBO$$.XX.$$$.XXX.XXXX.SX.XXX.USD.IS.N.M"]
[{"$f":"\"INN.\"&EIGNIR!$B$3&C8079","v":{"$error":"#N/A"}},{"$f":"'Sundurliðun Lántaka'!J58","v":0},".M.SLTBOIN.XX.ATV.XXX.XXXX.SX.XXX.USD.IS.N.M"]
[{"$f":"\"INN.\"&EIGNIR!$B$3&C8080","v":{"$error":"#N/A"}},{"$f":"'Sundurliðun Lántaka'!J59","v":0},".M.SLTBOIN.XX.FJA.XXX.XXXX.SX.XXX.USD.IS.N.M"]
[{"$f":"\"INN.\"&EIGNIR!$B$3&C8081","v":{"$error":"#N/A"}},{"$f":"'Sundurliðun Lántaka'!J60","v":0},".M.SLTBOIN.XX.INN.XXX.XXXX.SX.XXX.USD.IS.N.M"]
[{"$f":"\"INN.\"&EIGNIR!$B$3&C8082","v":{"$error":"#N/A"}},{"$f":"'Sundurliðun Lántaka'!J61","v":0},".M.SLTBOIN.XX.SLI.XXX.XXXX.SX.XXX.USD.IS.N.M"]
[{"$f":"\"INN.\"&EIGNIR!$B$3&C8083","v":{"$error":"#N/A"}},{"$f":"'Sundurliðun Lántaka'!J62","v":0},".M.SLTBOIN.XX.PEN.XXX.XXXX.SX.XXX.USD.IS.N.M"]
[{"$f":"\"INN.\"&EIGNIR!$B$3&C8084","v":{"$error":"#N/A"}},{"$f":"'Sundurliðun Lántaka'!J63","v":0},".M.SLTBOIN.XX.SJO.XXX.XXXX.SX.XXX.USD.IS.N.M"]
[{"$f":"\"INN.\"&EIGNIR!$B$3&C8085","v":{"$error":"#N/A"}},{"$f":"'Sundurliðun Lántaka'!J64","v":0},".M.SLTBOIN.XX.YFT.XXX.XXXX.SX.XXX.USD.IS.N.M"]
[{"$f":"\"INN.\"&EIGNIR!$B$3&C8086","v":{"$error":"#N/A"}},{"$f":"'Sundurliðun Lántaka'!J65","v":0},".M.SLTBOIN.XX.SLY.XXX.XXXX.SX.XXX.USD.IS.N.M"]
[{"$f":"\"INN.\"&EIGNIR!$B$3&C8087","v":{"$error":"#N/A"}},{"$f":"'Sundurliðun Lántaka'!J66","v":0},".M.SLTBOIN.XX.FHL.XXX.XXXX.SX.XXX.USD.IS.N.M"]
[{"$f":"\"INN.\"&EIGNIR!$B$3&C8088","v":{"$error":"#N/A"}},{"$f":"'Sundurliðun Lántaka'!J67","v":0},".M.SLTBOIN.XX.INF.XXX.XXXX.SX.XXX.USD.IS.N.M"]
[{"$f":"\"INN.\"&EIGNIR!$B$3&C8089","v":{"$error":"#N/A"}},{"$f":"'Sundurliðun Lántaka'!J68","v":0},".M.SLTBOIN.XX.TRY.XXX.XXXX.SX.XXX.USD.IS.N.M"]
[{"$f":"\"INN.\"&EIGNIR!$B$3&C8090","v":{"$error":"#N/A"}},{"$f":"'Sundurliðun Lántaka'!J69","v":0},".M.SLTBOIN.XX.LIF.XXX.XXXX.SX.XXX.USD.IS.N.M"]
[{"$f":"\"INN.\"&EIGNIR!$B$3&C8091","v":{"$error":"#N/A"}},{"$f":"'Sundurliðun Lántaka'!J70","v":0},".M.SLTBOIN.XX.OPI.XXX.XXXX.SX.XXX.USD.IS.N.M"]
[{"$f":"\"INN.\"&EIGNIR!$B$3&C8092","v":{"$error":"#N/A"}},{"$f":"'Sundurliðun Lántaka'!J71","v":0},".M.SLTBOIN.XX.RSS.XXX.XXXX.SX.XXX.USD.IS.N.M"]
[{"$f":"\"INN.\"&EIGNIR!$B$3&C8093","v":{"$error":"#N/A"}},{"$f":"'Sundurliðun Lántaka'!J72","v":0},".M.SLTBOIN.XX.BAJ.XXX.XXXX.SX.XXX.USD.IS.N.M"]
[{"$f":"\"INN.\"&EIGNIR!$B$3&C8094","v":{"$error":"#N/A"}},{"$f":"'Sundurliðun Lántaka'!J74","v":0},".M.SLTBOIN.XX.NPH.XXX.XXXX.SX.XXX.USD.IS.N.M"]
[{"$f":"\"INN.\"&EIGNIR!$B$3&C8095","v":{"$error":"#N/A"}},{"$f":"'Sundurliðun Lántaka'!J75","v":0},".M.SLTBOER.XX.ERL.XXX.XXXX.SX.XXX.USD.IS.N.M"]
[{"$f":"\"INN.\"&EIGNIR!$B$3&C8096","v":{"$error":"#N/A"}},{"$f":"'Sundurliðun Lántaka'!J76","v":0},".M.SLTBOER.XX.ERS.XXX.XXXX.SX.XXX.USD.IS.N.M"]
[{"$f":"\"INN.\"&EIGNIR!$B$3&C8097","v":{"$error":"#N/A"}},{"$f":"'Sundurliðun Lántaka'!J77","v":0},".M.SLTBOER.XX.ERI.XXX.XXXX.SX.XXX.USD.IS.N.M"]
[{"$f":"\"INN.\"&EIGNIR!$B$3&C8098","v":{"$error":"#N/A"}},{"$f":"'Sundurliðun Lántaka'!J78","v":0},".M.SLTBOER.XX.ERP.XXX.XXXX.SX.XXX.USD.IS.N.M"]
[{"$f":"\"INN.\"&EIGNIR!$B$3&C8099","v":{"$error":"#N/A"}},{"$f":"'Sundurliðun Lántaka'!J79","v":0},".M.SLTBOER.XX.ERV.XXX.XXXX.SX.XXX.USD.IS.N.M"]
[{"$f":"\"INN.\"&EIGNIR!$B$3&C8100","v":{"$error":"#N/A"}},{"$f":"'Sundurliðun Lántaka'!J80","v":0},".M.SLTBOER.XX.ERF.XXX.XXXX.SX.XXX.USD.IS.N.M"]
[{"$f":"\"INN.\"&EIGNIR!$B$3&C8101","v":{"$error":"#N/A"}},{"$f":"'Sundurliðun Lántaka'!J81","v":0},".M.SLTBOER.XX.ERO.XXX.XXXX.SX.XXX.USD.IS.N.M"]
[{"$f":"\"INN.\"&EIGNIR!$B$3&C8102","v":{"$error":"#N/A"}},{"$f":"'Sundurliðun Lántaka'!J82","v":0},".M.SLTBOER.XX.ERA.XXX.XXXX.SX.XXX.USD.IS.N.M"]
[{"$f":"\"INN.\"&EIGNIR!$B$3&C8103","v":{"$error":"#N/A"}},{"$f":"'Sundurliðun Lántaka'!K5","v":0},".M.SLTVL$$.XX.$$$.XXX.XXXX.SX.XXX.GBP.IS.N.M"]
[{"$f":"\"INN.\"&EIGNIR!$B$3&C8104","v":{"$error":"#N/A"}},{"$f":"'Sundurliðun Lántaka'!K6","v":0},".M.SLTVLIN.XX.ATV.XXX.XXXX.SX.XXX.GBP.IS.N.M"]
[{"$f":"\"INN.\"&EIGNIR!$B$3&C8105","v":{"$error":"#N/A"}},{"$f":"'Sundurliðun Lántaka'!K7","v":0},".M.SLTVLIN.XX.FJA.XXX.XXXX.SX.XXX.GBP.IS.N.M"]
[{"$f":"\"INN.\"&EIGNIR!$B$3&C8106","v":{"$error":"#N/A"}},{"$f":"'Sundurliðun Lántaka'!K8","v":0},".M.SLTVLIN.XX.INN.XXX.XXXX.SX.XXX.GBP.IS.N.M"]
[{"$f":"\"INN.\"&EIGNIR!$B$3&C8107","v":{"$error":"#N/A"}},{"$f":"'Sundurliðun Lántaka'!K9","v":0},".M.SLTVLIN.XX.SLI.XXX.XXXX.SX.XXX.GBP.IS.N.M"]
[{"$f":"\"INN.\"&EIGNIR!$B$3&C8108","v":{"$error":"#N/A"}},{"$f":"'Sundurliðun Lántaka'!K10","v":0},".M.SLTVLIN.XX.PEN.XXX.XXXX.SX.XXX.GBP.IS.N.M"]
[{"$f":"\"INN.\"&EIGNIR!$B$3&C8109","v":{"$error":"#N/A"}},{"$f":"'Sundurliðun Lántaka'!K11","v":0},".M.SLTVLIN.XX.SJO.XXX.XXXX.SX.XXX.GBP.IS.N.M"]
[{"$f":"\"INN.\"&EIGNIR!$B$3&C8110","v":{"$error":"#N/A"}},{"$f":"'Sundurliðun Lántaka'!K12","v":0},".M.SLTVLIN.XX.YFT.XXX.XXXX.SX.XXX.GBP.IS.N.M"]
[{"$f":"\"INN.\"&EIGNIR!$B$3&C8111","v":{"$error":"#N/A"}},{"$f":"'Sundurliðun Lántaka'!K13","v":0},".M.SLTVLIN.XX.SLY.XXX.XXXX.SX.XXX.GBP.IS.N.M"]
[{"$f":"\"INN.\"&EIGNIR!$B$3&C8112","v":{"$error":"#N/A"}},{"$f":"'Sundurliðun Lántaka'!K14","v":0},".M.SLTVLIN.XX.FHL.XXX.XXXX.SX.XXX.GBP.IS.N.M"]
[{"$f":"\"INN.\"&EIGNIR!$B$3&C8113","v":{"$error":"#N/A"}},{"$f":"'Sundurliðun Lántaka'!K15","v":0},".M.SLTVLIN.XX.INF.XXX.XXXX.SX.XXX.GBP.IS.N.M"]
[{"$f":"\"INN.\"&EIGNIR!$B$3&C8114","v":{"$error":"#N/A"}},{"$f":"'Sundurliðun Lántaka'!K16","v":0},".M.SLTVLIN.XX.TRY.XXX.XXXX.SX.XXX.GBP.IS.N.M"]
[{"$f":"\"INN.\"&EIGNIR!$B$3&C8115","v":{"$error":"#N/A"}},{"$f":"'Sundurliðun Lántaka'!K17","v":0},".M.SLTVLIN.XX.LIF.XXX.XXXX.SX.XXX.GBP.IS.N.M"]
[{"$f":"\"INN.\"&EIGNIR!$B$3&C8116","v":{"$error":"#N/A"}},{"$f":"'Sundurliðun Lántaka'!K18","v":0},".M.SLTVLIN.XX.OPI.XXX.XXXX.SX.XXX.GBP.IS.N.M"]
[{"$f":"\"INN.\"&EIGNIR!$B$3&C8117","v":{"$error":"#N/A"}},{"$f":"'Sundurliðun Lántaka'!K19","v":0},".M.SLTVLIN.XX.RSS.XXX.XXXX.SX.XXX.GBP.IS.N.M"]
[{"$f":"\"INN.\"&EIGNIR!$B$3&C8118","v":{"$error":"#N/A"}},{"$f":"'Sundurliðun Lántaka'!K20","v":0},".M.SLTVLIN.XX.BAJ.XXX.XXXX.SX.XXX.GBP.IS.N.M"]
[{"$f":"\"INN.\"&EIGNIR!$B$3&C8119","v":{"$error":"#N/A"}},{"$f":"'Sundurliðun Lántaka'!K22","v":0},".M.SLTVLIN.XX.NPH.XXX.XXXX.SX.XXX.GBP.IS.N.M"]
[{"$f":"\"INN.\"&EIGNIR!$B$3&C8120","v":{"$error":"#N/A"}},{"$f":"'Sundurliðun Lántaka'!K23","v":0},".M.SLTVLER.XX.ERL.XXX.XXXX.SX.XXX.GBP.IS.N.M"]
[{"$f":"\"INN.\"&EIGNIR!$B$3&C8121","v":{"$error":"#N/A"}},{"$f":"'Sundurliðun Lántaka'!K24","v":0},".M.SLTVLER.XX.ERS.XXX.XXXX.SX.XXX.GBP.IS.N.M"]
[{"$f":"\"INN.\"&EIGNIR!$B$3&C8122","v":{"$error":"#N/A"}},{"$f":"'Sundurliðun Lántaka'!K25","v":0},".M.SLTVLER.XX.ERI.XXX.XXXX.SX.XXX.GBP.IS.N.M"]
[{"$f":"\"INN.\"&EIGNIR!$B$3&C8123","v":{"$error":"#N/A"}},{"$f":"'Sundurliðun Lántaka'!K26","v":0},".M.SLTVLER.XX.ERP.XXX.XXXX.SX.XXX.GBP.IS.N.M"]
[{"$f":"\"INN.\"&EIGNIR!$B$3&C8124","v":{"$error":"#N/A"}},{"$f":"'Sundurliðun Lántaka'!K27","v":0},".M.SLTVLER.XX.ERV.XXX.XXXX.SX.XXX.GBP.IS.N.M"]
[{"$f":"\"INN.\"&EIGNIR!$B$3&C8125","v":{"$error":"#N/A"}},{"$f":"'Sundurliðun Lántaka'!K28","v":0},".M.SLTVLER.XX.ERF.XXX.XXXX.SX.XXX.GBP.IS.N.M"]
[{"$f":"\"INN.\"&EIGNIR!$B$3&C8126","v":{"$error":"#N/A"}},{"$f":"'Sundurliðun Lántaka'!K29","v":0},".M.SLTVLER.XX.ERO.XXX.XXXX.SX.XXX.GBP.IS.N.M"]
[{"$f":"\"INN.\"&EIGNIR!$B$3&C8127","v":{"$error":"#N/A"}},{"$f":"'Sundurliðun Lántaka'!K30","v":0},".M.SLTVLER.XX.ERA.XXX.XXXX.SX.XXX.GBP.IS.N.M"]
[{"$f":"\"INN.\"&EIGNIR!$B$3&C8128","v":{"$error":"#N/A"}},{"$f":"'Sundurliðun Lántaka'!K57","v":0},".M.SLTBO$$.XX.$$$.XXX.XXXX.SX.XXX.GBP.IS.N.M"]
[{"$f":"\"INN.\"&EIGNIR!$B$3&C8129","v":{"$error":"#N/A"}},{"$f":"'Sundurliðun Lántaka'!K58","v":0},".M.SLTBOIN.XX.ATV.XXX.XXXX.SX.XXX.GBP.IS.N.M"]
[{"$f":"\"INN.\"&EIGNIR!$B$3&C8130","v":{"$error":"#N/A"}},{"$f":"'Sundurliðun Lántaka'!K59","v":0},".M.SLTBOIN.XX.FJA.XXX.XXXX.SX.XXX.GBP.IS.N.M"]
[{"$f":"\"INN.\"&EIGNIR!$B$3&C8131","v":{"$error":"#N/A"}},{"$f":"'Sundurliðun Lántaka'!K60","v":0},".M.SLTBOIN.XX.INN.XXX.XXXX.SX.XXX.GBP.IS.N.M"]
[{"$f":"\"INN.\"&EIGNIR!$B$3&C8132","v":{"$error":"#N/A"}},{"$f":"'Sundurliðun Lántaka'!K61","v":0},".M.SLTBOIN.XX.SLI.XXX.XXXX.SX.XXX.GBP.IS.N.M"]
[{"$f":"\"INN.\"&EIGNIR!$B$3&C8133","v":{"$error":"#N/A"}},{"$f":"'Sundurliðun Lántaka'!K62","v":0},".M.SLTBOIN.XX.PEN.XXX.XXXX.SX.XXX.GBP.IS.N.M"]
[{"$f":"\"INN.\"&EIGNIR!$B$3&C8134","v":{"$error":"#N/A"}},{"$f":"'Sundurliðun Lántaka'!K63","v":0},".M.SLTBOIN.XX.SJO.XXX.XXXX.SX.XXX.GBP.IS.N.M"]
[{"$f":"\"INN.\"&EIGNIR!$B$3&C8135","v":{"$error":"#N/A"}},{"$f":"'Sundurliðun Lántaka'!K64","v":0},".M.SLTBOIN.XX.YFT.XXX.XXXX.SX.XXX.GBP.IS.N.M"]
[{"$f":"\"INN.\"&EIGNIR!$B$3&C8136","v":{"$error":"#N/A"}},{"$f":"'Sundurliðun Lántaka'!K65","v":0},".M.SLTBOIN.XX.SLY.XXX.XXXX.SX.XXX.GBP.IS.N.M"]
[{"$f":"\"INN.\"&EIGNIR!$B$3&C8137","v":{"$error":"#N/A"}},{"$f":"'Sundurliðun Lántaka'!K66","v":0},".M.SLTBOIN.XX.FHL.XXX.XXXX.SX.XXX.GBP.IS.N.M"]
[{"$f":"\"INN.\"&EIGNIR!$B$3&C8138","v":{"$error":"#N/A"}},{"$f":"'Sundurliðun Lántaka'!K67","v":0},".M.SLTBOIN.XX.INF.XXX.XXXX.SX.XXX.GBP.IS.N.M"]
[{"$f":"\"INN.\"&EIGNIR!$B$3&C8139","v":{"$error":"#N/A"}},{"$f":"'Sundurliðun Lántaka'!K68","v":0},".M.SLTBOIN.XX.TRY.XXX.XXXX.SX.XXX.GBP.IS.N.M"]
[{"$f":"\"INN.\"&EIGNIR!$B$3&C8140","v":{"$error":"#N/A"}},{"$f":"'Sundurliðun Lántaka'!K69","v":0},".M.SLTBOIN.XX.LIF.XXX.XXXX.SX.XXX.GBP.IS.N.M"]
[{"$f":"\"INN.\"&EIGNIR!$B$3&C8141","v":{"$error":"#N/A"}},{"$f":"'Sundurliðun Lántaka'!K70","v":0},".M.SLTBOIN.XX.OPI.XXX.XXXX.SX.XXX.GBP.IS.N.M"]
[{"$f":"\"INN.\"&EIGNIR!$B$3&C8142","v":{"$error":"#N/A"}},{"$f":"'Sundurliðun Lántaka'!K71","v":0},".M.SLTBOIN.XX.RSS.XXX.XXXX.SX.XXX.GBP.IS.N.M"]
[{"$f":"\"INN.\"&EIGNIR!$B$3&C8143","v":{"$error":"#N/A"}},{"$f":"'Sundurliðun Lántaka'!K72","v":0},".M.SLTBOIN.XX.BAJ.XXX.XXXX.SX.XXX.GBP.IS.N.M"]
[{"$f":"\"INN.\"&EIGNIR!$B$3&C8144","v":{"$error":"#N/A"}},{"$f":"'Sundurliðun Lántaka'!K74","v":0},".M.SLTBOIN.XX.NPH.XXX.XXXX.SX.XXX.GBP.IS.N.M"]
[{"$f":"\"INN.\"&EIGNIR!$B$3&C8145","v":{"$error":"#N/A"}},{"$f":"'Sundurliðun Lántaka'!K75","v":0},".M.SLTBOER.XX.ERL.XXX.XXXX.SX.XXX.GBP.IS.N.M"]
[{"$f":"\"INN.\"&EIGNIR!$B$3&C8146","v":{"$error":"#N/A"}},{"$f":"'Sundurliðun Lántaka'!K76","v":0},".M.SLTBOER.XX.ERS.XXX.XXXX.SX.XXX.GBP.IS.N.M"]
[{"$f":"\"INN.\"&EIGNIR!$B$3&C8147","v":{"$error":"#N/A"}},{"$f":"'Sundurliðun Lántaka'!K77","v":0},".M.SLTBOER.XX.ERI.XXX.XXXX.SX.XXX.GBP.IS.N.M"]
[{"$f":"\"INN.\"&EIGNIR!$B$3&C8148","v":{"$error":"#N/A"}},{"$f":"'Sundurliðun Lántaka'!K78","v":0},".M.SLTBOER.XX.ERP.XXX.XXXX.SX.XXX.GBP.IS.N.M"]
[{"$f":"\"INN.\"&EIGNIR!$B$3&C8149","v":{"$error":"#N/A"}},{"$f":"'Sundurliðun Lántaka'!K79","v":0},".M.SLTBOER.XX.ERV.XXX.XXXX.SX.XXX.GBP.IS.N.M"]
[{"$f":"\"INN.\"&EIGNIR!$B$3&C8150","v":{"$error":"#N/A"}},{"$f":"'Sundurliðun Lántaka'!K80","v":0},".M.SLTBOER.XX.ERF.XXX.XXXX.SX.XXX.GBP.IS.N.M"]
[{"$f":"\"INN.\"&EIGNIR!$B$3&C8151","v":{"$error":"#N/A"}},{"$f":"'Sundurliðun Lántaka'!K81","v":0},".M.SLTBOER.XX.ERO.XXX.XXXX.SX.XXX.GBP.IS.N.M"]
[{"$f":"\"INN.\"&EIGNIR!$B$3&C8152","v":{"$error":"#N/A"}},{"$f":"'Sundurliðun Lántaka'!K82","v":0},".M.SLTBOER.XX.ERA.XXX.XXXX.SX.XXX.GBP.IS.N.M"]
[{"$f":"\"INN.\"&EIGNIR!$B$3&C8153","v":{"$error":"#N/A"}},{"$f":"'Sundurliðun Lántaka'!L5","v":0},".M.SLTVL$$.XX.$$$.XXX.XXXX.SX.XXX.JPY.IS.N.M","//Sundurliðun lántaka JPY"]
[{"$f":"\"INN.\"&EIGNIR!$B$3&C8154","v":{"$error":"#N/A"}},{"$f":"'Sundurliðun Lántaka'!L6","v":0},".M.SLTVLIN.XX.ATV.XXX.XXXX.SX.XXX.JPY.IS.N.M"]
[{"$f":"\"INN.\"&EIGNIR!$B$3&C8155","v":{"$error":"#N/A"}},{"$f":"'Sundurliðun Lántaka'!L7","v":0},".M.SLTVLIN.XX.FJA.XXX.XXXX.SX.XXX.JPY.IS.N.M"]
[{"$f":"\"INN.\"&EIGNIR!$B$3&C8156","v":{"$error":"#N/A"}},{"$f":"'Sundurliðun Lántaka'!L8","v":0},".M.SLTVLIN.XX.INN.XXX.XXXX.SX.XXX.JPY.IS.N.M"]
[{"$f":"\"INN.\"&EIGNIR!$B$3&C8157","v":{"$error":"#N/A"}},{"$f":"'Sundurliðun Lántaka'!L9","v":0},".M.SLTVLIN.XX.SLI.XXX.XXXX.SX.XXX.JPY.IS.N.M"]
[{"$f":"\"INN.\"&EIGNIR!$B$3&C8158","v":{"$error":"#N/A"}},{"$f":"'Sundurliðun Lántaka'!L10","v":0},".M.SLTVLIN.XX.PEN.XXX.XXXX.SX.XXX.JPY.IS.N.M"]
[{"$f":"\"INN.\"&EIGNIR!$B$3&C8159","v":{"$error":"#N/A"}},{"$f":"'Sundurliðun Lántaka'!L11","v":0},".M.SLTVLIN.XX.SJO.XXX.XXXX.SX.XXX.JPY.IS.N.M"]
[{"$f":"\"INN.\"&EIGNIR!$B$3&C8160","v":{"$error":"#N/A"}},{"$f":"'Sundurliðun Lántaka'!L12","v":0},".M.SLTVLIN.XX.YFT.XXX.XXXX.SX.XXX.JPY.IS.N.M"]
[{"$f":"\"INN.\"&EIGNIR!$B$3&C8161","v":{"$error":"#N/A"}},{"$f":"'Sundurliðun Lántaka'!L13","v":0},".M.SLTVLIN.XX.SLY.XXX.XXXX.SX.XXX.JPY.IS.N.M"]
[{"$f":"\"INN.\"&EIGNIR!$B$3&C8162","v":{"$error":"#N/A"}},{"$f":"'Sundurliðun Lántaka'!L14","v":0},".M.SLTVLIN.XX.FHL.XXX.XXXX.SX.XXX.JPY.IS.N.M"]
[{"$f":"\"INN.\"&EIGNIR!$B$3&C8163","v":{"$error":"#N/A"}},{"$f":"'Sundurliðun Lántaka'!L15","v":0},".M.SLTVLIN.XX.INF.XXX.XXXX.SX.XXX.JPY.IS.N.M"]
[{"$f":"\"INN.\"&EIGNIR!$B$3&C8164","v":{"$error":"#N/A"}},{"$f":"'Sundurliðun Lántaka'!L16","v":0},".M.SLTVLIN.XX.TRY.XXX.XXXX.SX.XXX.JPY.IS.N.M"]
[{"$f":"\"INN.\"&EIGNIR!$B$3&C8165","v":{"$error":"#N/A"}},{"$f":"'Sundurliðun Lántaka'!L17","v":0},".M.SLTVLIN.XX.LIF.XXX.XXXX.SX.XXX.JPY.IS.N.M"]
[{"$f":"\"INN.\"&EIGNIR!$B$3&C8166","v":{"$error":"#N/A"}},{"$f":"'Sundurliðun Lántaka'!L18","v":0},".M.SLTVLIN.XX.OPI.XXX.XXXX.SX.XXX.JPY.IS.N.M"]
[{"$f":"\"INN.\"&EIGNIR!$B$3&C8167","v":{"$error":"#N/A"}},{"$f":"'Sundurliðun Lántaka'!L19","v":0},".M.SLTVLIN.XX.RSS.XXX.XXXX.SX.XXX.JPY.IS.N.M"]
[{"$f":"\"INN.\"&EIGNIR!$B$3&C8168","v":{"$error":"#N/A"}},{"$f":"'Sundurliðun Lántaka'!L20","v":0},".M.SLTVLIN.XX.BAJ.XXX.XXXX.SX.XXX.JPY.IS.N.M"]
[{"$f":"\"INN.\"&EIGNIR!$B$3&C8169","v":{"$error":"#N/A"}},{"$f":"'Sundurliðun Lántaka'!L22","v":0},".M.SLTVLIN.XX.NPH.XXX.XXXX.SX.XXX.JPY.IS.N.M"]
[{"$f":"\"INN.\"&EIGNIR!$B$3&C8170","v":{"$error":"#N/A"}},{"$f":"'Sundurliðun Lántaka'!L23","v":0},".M.SLTVLER.XX.ERL.XXX.XXXX.SX.XXX.JPY.IS.N.M"]
[{"$f":"\"INN.\"&EIGNIR!$B$3&C8171","v":{"$error":"#N/A"}},{"$f":"'Sundurliðun Lántaka'!L24","v":0},".M.SLTVLER.XX.ERS.XXX.XXXX.SX.XXX.JPY.IS.N.M"]
[{"$f":"\"INN.\"&EIGNIR!$B$3&C8172","v":{"$error":"#N/A"}},{"$f":"'Sundurliðun Lántaka'!L25","v":0},".M.SLTVLER.XX.ERI.XXX.XXXX.SX.XXX.JPY.IS.N.M"]
[{"$f":"\"INN.\"&EIGNIR!$B$3&C8173","v":{"$error":"#N/A"}},{"$f":"'Sundurliðun Lántaka'!L26","v":0},".M.SLTVLER.XX.ERP.XXX.XXXX.SX.XXX.JPY.IS.N.M"]
[{"$f":"\"INN.\"&EIGNIR!$B$3&C8174","v":{"$error":"#N/A"}},{"$f":"'Sundurliðun Lántaka'!L27","v":0},".M.SLTVLER.XX.ERV.XXX.XXXX.SX.XXX.JPY.IS.N.M"]
[{"$f":"\"INN.\"&EIGNIR!$B$3&C8175","v":{"$error":"#N/A"}},{"$f":"'Sundurliðun Lántaka'!L28","v":0},".M.SLTVLER.XX.ERF.XXX.XXXX.SX.XXX.JPY.IS.N.M"]
[{"$f":"\"INN.\"&EIGNIR!$B$3&C8176","v":{"$error":"#N/A"}},{"$f":"'Sundurliðun Lántaka'!L29","v":0},".M.SLTVLER.XX.ERO.XXX.XXXX.SX.XXX.JPY.IS.N.M"]
[{"$f":"\"INN.\"&EIGNIR!$B$3&C8177","v":{"$error":"#N/A"}},{"$f":"'Sundurliðun Lántaka'!L30","v":0},".M.SLTVLER.XX.ERA.XXX.XXXX.SX.XXX.JPY.IS.N.M"]
[{"$f":"\"INN.\"&EIGNIR!$B$3&C8178","v":{"$error":"#N/A"}},{"$f":"'Sundurliðun Lántaka'!L57","v":0},".M.SLTBO$$.XX.$$$.XXX.XXXX.SX.XXX.JPY.IS.N.M"]
[{"$f":"\"INN.\"&EIGNIR!$B$3&C8179","v":{"$error":"#N/A"}},{"$f":"'Sundurliðun Lántaka'!L58","v":0},".M.SLTBOIN.XX.ATV.XXX.XXXX.SX.XXX.JPY.IS.N.M"]
[{"$f":"\"INN.\"&EIGNIR!$B$3&C8180","v":{"$error":"#N/A"}},{"$f":"'Sundurliðun Lántaka'!L59","v":0},".M.SLTBOIN.XX.FJA.XXX.XXXX.SX.XXX.JPY.IS.N.M"]
[{"$f":"\"INN.\"&EIGNIR!$B$3&C8181","v":{"$error":"#N/A"}},{"$f":"'Sundurliðun Lántaka'!L60","v":0},".M.SLTBOIN.XX.INN.XXX.XXXX.SX.XXX.JPY.IS.N.M"]
[{"$f":"\"INN.\"&EIGNIR!$B$3&C8182","v":{"$error":"#N/A"}},{"$f":"'Sundurliðun Lántaka'!L61","v":0},".M.SLTBOIN.XX.SLI.XXX.XXXX.SX.XXX.JPY.IS.N.M"]
[{"$f":"\"INN.\"&EIGNIR!$B$3&C8183","v":{"$error":"#N/A"}},{"$f":"'Sundurliðun Lántaka'!L62","v":0},".M.SLTBOIN.XX.PEN.XXX.XXXX.SX.XXX.JPY.IS.N.M"]
[{"$f":"\"INN.\"&EIGNIR!$B$3&C8184","v":{"$error":"#N/A"}},{"$f":"'Sundurliðun Lántaka'!L63","v":0},".M.SLTBOIN.XX.SJO.XXX.XXXX.SX.XXX.JPY.IS.N.M"]
[{"$f":"\"INN.\"&EIGNIR!$B$3&C8185","v":{"$error":"#N/A"}},{"$f":"'Sundurliðun Lántaka'!L64","v":0},".M.SLTBOIN.XX.YFT.XXX.XXXX.SX.XXX.JPY.IS.N.M"]
[{"$f":"\"INN.\"&EIGNIR!$B$3&C8186","v":{"$error":"#N/A"}},{"$f":"'Sundurliðun Lántaka'!L65","v":0},".M.SLTBOIN.XX.SLY.XXX.XXXX.SX.XXX.JPY.IS.N.M"]
[{"$f":"\"INN.\"&EIGNIR!$B$3&C8187","v":{"$error":"#N/A"}},{"$f":"'Sundurliðun Lántaka'!L66","v":0},".M.SLTBOIN.XX.FHL.XXX.XXXX.SX.XXX.JPY.IS.N.M"]
[{"$f":"\"INN.\"&EIGNIR!$B$3&C8188","v":{"$error":"#N/A"}},{"$f":"'Sundurliðun Lántaka'!L67","v":0},".M.SLTBOIN.XX.INF.XXX.XXXX.SX.XXX.JPY.IS.N.M"]
[{"$f":"\"INN.\"&EIGNIR!$B$3&C8189","v":{"$error":"#N/A"}},{"$f":"'Sundurliðun Lántaka'!L68","v":0},".M.SLTBOIN.XX.TRY.XXX.XXXX.SX.XXX.JPY.IS.N.M"]
[{"$f":"\"INN.\"&EIGNIR!$B$3&C8190","v":{"$error":"#N/A"}},{"$f":"'Sundurliðun Lántaka'!L69","v":0},".M.SLTBOIN.XX.LIF.XXX.XXXX.SX.XXX.JPY.IS.N.M"]
[{"$f":"\"INN.\"&EIGNIR!$B$3&C8191","v":{"$error":"#N/A"}},{"$f":"'Sundurliðun Lántaka'!L70","v":0},".M.SLTBOIN.XX.OPI.XXX.XXXX.SX.XXX.JPY.IS.N.M"]
[{"$f":"\"INN.\"&EIGNIR!$B$3&C8192","v":{"$error":"#N/A"}},{"$f":"'Sundurliðun Lántaka'!L71","v":0},".M.SLTBOIN.XX.RSS.XXX.XXXX.SX.XXX.JPY.IS.N.M"]
[{"$f":"\"INN.\"&EIGNIR!$B$3&C8193","v":{"$error":"#N/A"}},{"$f":"'Sundurliðun Lántaka'!L72","v":0},".M.SLTBOIN.XX.BAJ.XXX.XXXX.SX.XXX.JPY.IS.N.M"]
[{"$f":"\"INN.\"&EIGNIR!$B$3&C8194","v":{"$error":"#N/A"}},{"$f":"'Sundurliðun Lántaka'!L74","v":0},".M.SLTBOIN.XX.NPH.XXX.XXXX.SX.XXX.JPY.IS.N.M"]
[{"$f":"\"INN.\"&EIGNIR!$B$3&C8195","v":{"$error":"#N/A"}},{"$f":"'Sundurliðun Lántaka'!L75","v":0},".M.SLTBOER.XX.ERL.XXX.XXXX.SX.XXX.JPY.IS.N.M"]
[{"$f":"\"INN.\"&EIGNIR!$B$3&C8196","v":{"$error":"#N/A"}},{"$f":"'Sundurliðun Lántaka'!L76","v":0},".M.SLTBOER.XX.ERS.XXX.XXXX.SX.XXX.JPY.IS.N.M"]
[{"$f":"\"INN.\"&EIGNIR!$B$3&C8197","v":{"$error":"#N/A"}},{"$f":"'Sundurliðun Lántaka'!L77","v":0},".M.SLTBOER.XX.ERI.XXX.XXXX.SX.XXX.JPY.IS.N.M"]
[{"$f":"\"INN.\"&EIGNIR!$B$3&C8198","v":{"$error":"#N/A"}},{"$f":"'Sundurliðun Lántaka'!L78","v":0},".M.SLTBOER.XX.ERP.XXX.XXXX.SX.XXX.JPY.IS.N.M"]
[{"$f":"\"INN.\"&EIGNIR!$B$3&C8199","v":{"$error":"#N/A"}},{"$f":"'Sundurliðun Lántaka'!L79","v":0},".M.SLTBOER.XX.ERV.XXX.XXXX.SX.XXX.JPY.IS.N.M"]
[{"$f":"\"INN.\"&EIGNIR!$B$3&C8200","v":{"$error":"#N/A"}},{"$f":"'Sundurliðun Lántaka'!L80","v":0},".M.SLTBOER.XX.ERF.XXX.XXXX.SX.XXX.JPY.IS.N.M"]
[{"$f":"\"INN.\"&EIGNIR!$B$3&C8201","v":{"$error":"#N/A"}},{"$f":"'Sundurliðun Lántaka'!L81","v":0},".M.SLTBOER.XX.ERO.XXX.XXXX.SX.XXX.JPY.IS.N.M"]
[{"$f":"\"INN.\"&EIGNIR!$B$3&C8202","v":{"$error":"#N/A"}},{"$f":"'Sundurliðun Lántaka'!L82","v":0},".M.SLTBOER.XX.ERA.XXX.XXXX.SX.XXX.JPY.IS.N.M"]
[{"$f":"\"INN.\"&EIGNIR!$B$3&C8203","v":{"$error":"#N/A"}},{"$f":"'Sundurliðun Lántaka'!M5","v":0},".M.SLTVL$$.XX.$$$.XXX.XXXX.SX.XXX.DKK.IS.N.M"]
[{"$f":"\"INN.\"&EIGNIR!$B$3&C8204","v":{"$error":"#N/A"}},{"$f":"'Sundurliðun Lántaka'!M6","v":0},".M.SLTVLIN.XX.ATV.XXX.XXXX.SX.XXX.DKK.IS.N.M"]
[{"$f":"\"INN.\"&EIGNIR!$B$3&C8205","v":{"$error":"#N/A"}},{"$f":"'Sundurliðun Lántaka'!M7","v":0},".M.SLTVLIN.XX.FJA.XXX.XXXX.SX.XXX.DKK.IS.N.M"]
[{"$f":"\"INN.\"&EIGNIR!$B$3&C8206","v":{"$error":"#N/A"}},{"$f":"'Sundurliðun Lántaka'!M8","v":0},".M.SLTVLIN.XX.INN.XXX.XXXX.SX.XXX.DKK.IS.N.M"]
[{"$f":"\"INN.\"&EIGNIR!$B$3&C8207","v":{"$error":"#N/A"}},{"$f":"'Sundurliðun Lántaka'!M9","v":0},".M.SLTVLIN.XX.SLI.XXX.XXXX.SX.XXX.DKK.IS.N.M"]
[{"$f":"\"INN.\"&EIGNIR!$B$3&C8208","v":{"$error":"#N/A"}},{"$f":"'Sundurliðun Lántaka'!M10","v":0},".M.SLTVLIN.XX.PEN.XXX.XXXX.SX.XXX.DKK.IS.N.M"]
[{"$f":"\"INN.\"&EIGNIR!$B$3&C8209","v":{"$error":"#N/A"}},{"$f":"'Sundurliðun Lántaka'!M11","v":0},".M.SLTVLIN.XX.SJO.XXX.XXXX.SX.XXX.DKK.IS.N.M"]
[{"$f":"\"INN.\"&EIGNIR!$B$3&C8210","v":{"$error":"#N/A"}},{"$f":"'Sundurliðun Lántaka'!M12","v":0},".M.SLTVLIN.XX.YFT.XXX.XXXX.SX.XXX.DKK.IS.N.M"]
[{"$f":"\"INN.\"&EIGNIR!$B$3&C8211","v":{"$error":"#N/A"}},{"$f":"'Sundurliðun Lántaka'!M13","v":0},".M.SLTVLIN.XX.SLY.XXX.XXXX.SX.XXX.DKK.IS.N.M"]
[{"$f":"\"INN.\"&EIGNIR!$B$3&C8212","v":{"$error":"#N/A"}},{"$f":"'Sundurliðun Lántaka'!M14","v":0},".M.SLTVLIN.XX.FHL.XXX.XXXX.SX.XXX.DKK.IS.N.M"]
[{"$f":"\"INN.\"&EIGNIR!$B$3&C8213","v":{"$error":"#N/A"}},{"$f":"'Sundurliðun Lántaka'!M15","v":0},".M.SLTVLIN.XX.INF.XXX.XXXX.SX.XXX.DKK.IS.N.M"]
[{"$f":"\"INN.\"&EIGNIR!$B$3&C8214","v":{"$error":"#N/A"}},{"$f":"'Sundurliðun Lántaka'!M16","v":0},".M.SLTVLIN.XX.TRY.XXX.XXXX.SX.XXX.DKK.IS.N.M"]
[{"$f":"\"INN.\"&EIGNIR!$B$3&C8215","v":{"$error":"#N/A"}},{"$f":"'Sundurliðun Lántaka'!M17","v":0},".M.SLTVLIN.XX.LIF.XXX.XXXX.SX.XXX.DKK.IS.N.M"]
[{"$f":"\"INN.\"&EIGNIR!$B$3&C8216","v":{"$error":"#N/A"}},{"$f":"'Sundurliðun Lántaka'!M18","v":0},".M.SLTVLIN.XX.OPI.XXX.XXXX.SX.XXX.DKK.IS.N.M"]
[{"$f":"\"INN.\"&EIGNIR!$B$3&C8217","v":{"$error":"#N/A"}},{"$f":"'Sundurliðun Lántaka'!M19","v":0},".M.SLTVLIN.XX.RSS.XXX.XXXX.SX.XXX.DKK.IS.N.M"]
[{"$f":"\"INN.\"&EIGNIR!$B$3&C8218","v":{"$error":"#N/A"}},{"$f":"'Sundurliðun Lántaka'!M20","v":0},".M.SLTVLIN.XX.BAJ.XXX.XXXX.SX.XXX.DKK.IS.N.M"]
[{"$f":"\"INN.\"&EIGNIR!$B$3&C8219","v":{"$error":"#N/A"}},{"$f":"'Sundurliðun Lántaka'!M22","v":0},".M.SLTVLIN.XX.NPH.XXX.XXXX.SX.XXX.DKK.IS.N.M"]
[{"$f":"\"INN.\"&EIGNIR!$B$3&C8220","v":{"$error":"#N/A"}},{"$f":"'Sundurliðun Lántaka'!M23","v":0},".M.SLTVLER.XX.ERL.XXX.XXXX.SX.XXX.DKK.IS.N.M"]
[{"$f":"\"INN.\"&EIGNIR!$B$3&C8221","v":{"$error":"#N/A"}},{"$f":"'Sundurliðun Lántaka'!M24","v":0},".M.SLTVLER.XX.ERS.XXX.XXXX.SX.XXX.DKK.IS.N.M"]
[{"$f":"\"INN.\"&EIGNIR!$B$3&C8222","v":{"$error":"#N/A"}},{"$f":"'Sundurliðun Lántaka'!M25","v":0},".M.SLTVLER.XX.ERI.XXX.XXXX.SX.XXX.DKK.IS.N.M"]
[{"$f":"\"INN.\"&EIGNIR!$B$3&C8223","v":{"$error":"#N/A"}},{"$f":"'Sundurliðun Lántaka'!M26","v":0},".M.SLTVLER.XX.ERP.XXX.XXXX.SX.XXX.DKK.IS.N.M"]
[{"$f":"\"INN.\"&EIGNIR!$B$3&C8224","v":{"$error":"#N/A"}},{"$f":"'Sundurliðun Lántaka'!M27","v":0},".M.SLTVLER.XX.ERV.XXX.XXXX.SX.XXX.DKK.IS.N.M"]
[{"$f":"\"INN.\"&EIGNIR!$B$3&C8225","v":{"$error":"#N/A"}},{"$f":"'Sundurliðun Lántaka'!M28","v":0},".M.SLTVLER.XX.ERF.XXX.XXXX.SX.XXX.DKK.IS.N.M"]
[{"$f":"\"INN.\"&EIGNIR!$B$3&C8226","v":{"$error":"#N/A"}},{"$f":"'Sundurliðun Lántaka'!M29","v":0},".M.SLTVLER.XX.ERO.XXX.XXXX.SX.XXX.DKK.IS.N.M"]
[{"$f":"\"INN.\"&EIGNIR!$B$3&C8227","v":{"$error":"#N/A"}},{"$f":"'Sundurliðun Lántaka'!M30","v":0},".M.SLTVLER.XX.ERA.XXX.XXXX.SX.XXX.DKK.IS.N.M"]
[{"$f":"\"INN.\"&EIGNIR!$B$3&C8228","v":{"$error":"#N/A"}},{"$f":"'Sundurliðun Lántaka'!M57","v":0},".M.SLTBO$$.XX.$$$.XXX.XXXX.SX.XXX.DKK.IS.N.M"]
[{"$f":"\"INN.\"&EIGNIR!$B$3&C8229","v":{"$error":"#N/A"}},{"$f":"'Sundurliðun Lántaka'!M58","v":0},".M.SLTBOIN.XX.ATV.XXX.XXXX.SX.XXX.DKK.IS.N.M"]
[{"$f":"\"INN.\"&EIGNIR!$B$3&C8230","v":{"$error":"#N/A"}},{"$f":"'Sundurliðun Lántaka'!M59","v":0},".M.SLTBOIN.XX.FJA.XXX.XXXX.SX.XXX.DKK.IS.N.M"]
[{"$f":"\"INN.\"&EIGNIR!$B$3&C8231","v":{"$error":"#N/A"}},{"$f":"'Sundurliðun Lántaka'!M60","v":0},".M.SLTBOIN.XX.INN.XXX.XXXX.SX.XXX.DKK.IS.N.M"]
[{"$f":"\"INN.\"&EIGNIR!$B$3&C8232","v":{"$error":"#N/A"}},{"$f":"'Sundurliðun Lántaka'!M61","v":0},".M.SLTBOIN.XX.SLI.XXX.XXXX.SX.XXX.DKK.IS.N.M"]
[{"$f":"\"INN.\"&EIGNIR!$B$3&C8233","v":{"$error":"#N/A"}},{"$f":"'Sundurliðun Lántaka'!M62","v":0},".M.SLTBOIN.XX.PEN.XXX.XXXX.SX.XXX.DKK.IS.N.M"]
[{"$f":"\"INN.\"&EIGNIR!$B$3&C8234","v":{"$error":"#N/A"}},{"$f":"'Sundurliðun Lántaka'!M63","v":0},".M.SLTBOIN.XX.SJO.XXX.XXXX.SX.XXX.DKK.IS.N.M"]
[{"$f":"\"INN.\"&EIGNIR!$B$3&C8235","v":{"$error":"#N/A"}},{"$f":"'Sundurliðun Lántaka'!M64","v":0},".M.SLTBOIN.XX.YFT.XXX.XXXX.SX.XXX.DKK.IS.N.M"]
[{"$f":"\"INN.\"&EIGNIR!$B$3&C8236","v":{"$error":"#N/A"}},{"$f":"'Sundurliðun Lántaka'!M65","v":0},".M.SLTBOIN.XX.SLY.XXX.XXXX.SX.XXX.DKK.IS.N.M"]
[{"$f":"\"INN.\"&EIGNIR!$B$3&C8237","v":{"$error":"#N/A"}},{"$f":"'Sundurliðun Lántaka'!M66","v":0},".M.SLTBOIN.XX.FHL.XXX.XXXX.SX.XXX.DKK.IS.N.M"]
[{"$f":"\"INN.\"&EIGNIR!$B$3&C8238","v":{"$error":"#N/A"}},{"$f":"'Sundurliðun Lántaka'!M67","v":0},".M.SLTBOIN.XX.INF.XXX.XXXX.SX.XXX.DKK.IS.N.M"]
[{"$f":"\"INN.\"&EIGNIR!$B$3&C8239","v":{"$error":"#N/A"}},{"$f":"'Sundurliðun Lántaka'!M68","v":0},".M.SLTBOIN.XX.TRY.XXX.XXXX.SX.XXX.DKK.IS.N.M"]
[{"$f":"\"INN.\"&EIGNIR!$B$3&C8240","v":{"$error":"#N/A"}},{"$f":"'Sundurliðun Lántaka'!M69","v":0},".M.SLTBOIN.XX.LIF.XXX.XXXX.SX.XXX.DKK.IS.N.M"]
[{"$f":"\"INN.\"&EIGNIR!$B$3&C8241","v":{"$error":"#N/A"}},{"$f":"'Sundurliðun Lántaka'!M70","v":0},".M.SLTBOIN.XX.OPI.XXX.XXXX.SX.XXX.DKK.IS.N.M"]
[{"$f":"\"INN.\"&EIGNIR!$B$3&C8242","v":{"$error":"#N/A"}},{"$f":"'Sundurliðun Lántaka'!M71","v":0},".M.SLTBOIN.XX.RSS.XXX.XXXX.SX.XXX.DKK.IS.N.M"]
[{"$f":"\"INN.\"&EIGNIR!$B$3&C8243","v":{"$error":"#N/A"}},{"$f":"'Sundurliðun Lántaka'!M72","v":0},".M.SLTBOIN.XX.BAJ.XXX.XXXX.SX.XXX.DKK.IS.N.M"]
[{"$f":"\"INN.\"&EIGNIR!$B$3&C8244","v":{"$error":"#N/A"}},{"$f":"'Sundurliðun Lántaka'!M74","v":0},".M.SLTBOIN.XX.NPH.XXX.XXXX.SX.XXX.DKK.IS.N.M"]
[{"$f":"\"INN.\"&EIGNIR!$B$3&C8245","v":{"$error":"#N/A"}},{"$f":"'Sundurliðun Lántaka'!M75","v":0},".M.SLTBOER.XX.ERL.XXX.XXXX.SX.XXX.DKK.IS.N.M"]
[{"$f":"\"INN.\"&EIGNIR!$B$3&C8246","v":{"$error":"#N/A"}},{"$f":"'Sundurliðun Lántaka'!M76","v":0},".M.SLTBOER.XX.ERS.XXX.XXXX.SX.XXX.DKK.IS.N.M"]
[{"$f":"\"INN.\"&EIGNIR!$B$3&C8247","v":{"$error":"#N/A"}},{"$f":"'Sundurliðun Lántaka'!M77","v":0},".M.SLTBOER.XX.ERI.XXX.XXXX.SX.XXX.DKK.IS.N.M"]
[{"$f":"\"INN.\"&EIGNIR!$B$3&C8248","v":{"$error":"#N/A"}},{"$f":"'Sundurliðun Lántaka'!M78","v":0},".M.SLTBOER.XX.ERP.XXX.XXXX.SX.XXX.DKK.IS.N.M"]
[{"$f":"\"INN.\"&EIGNIR!$B$3&C8249","v":{"$error":"#N/A"}},{"$f":"'Sundurliðun Lántaka'!M79","v":0},".M.SLTBOER.XX.ERV.XXX.XXXX.SX.XXX.DKK.IS.N.M"]
[{"$f":"\"INN.\"&EIGNIR!$B$3&C8250","v":{"$error":"#N/A"}},{"$f":"'Sundurliðun Lántaka'!M80","v":0},".M.SLTBOER.XX.ERF.XXX.XXXX.SX.XXX.DKK.IS.N.M"]
[{"$f":"\"INN.\"&EIGNIR!$B$3&C8251","v":{"$error":"#N/A"}},{"$f":"'Sundurliðun Lántaka'!M81","v":0},".M.SLTBOER.XX.ERO.XXX.XXXX.SX.XXX.DKK.IS.N.M"]
[{"$f":"\"INN.\"&EIGNIR!$B$3&C8252","v":{"$error":"#N/A"}},{"$f":"'Sundurliðun Lántaka'!M82","v":0},".M.SLTBOER.XX.ERA.XXX.XXXX.SX.XXX.DKK.IS.N.M"]
[{"$f":"\"INN.\"&EIGNIR!$B$3&C8253","v":{"$error":"#N/A"}},{"$f":"'Sundurliðun Lántaka'!N5","v":0},".M.SLTVL$$.XX.$$$.XXX.XXXX.SX.XXX.NOK.IS.N.M","//Sundurliðun lántaka NOK"]
[{"$f":"\"INN.\"&EIGNIR!$B$3&C8254","v":{"$error":"#N/A"}},{"$f":"'Sundurliðun Lántaka'!N6","v":0},".M.SLTVLIN.XX.ATV.XXX.XXXX.SX.XXX.NOK.IS.N.M"]
[{"$f":"\"INN.\"&EIGNIR!$B$3&C8255","v":{"$error":"#N/A"}},{"$f":"'Sundurliðun Lántaka'!N7","v":0},".M.SLTVLIN.XX.FJA.XXX.XXXX.SX.XXX.NOK.IS.N.M"]
[{"$f":"\"INN.\"&EIGNIR!$B$3&C8256","v":{"$error":"#N/A"}},{"$f":"'Sundurliðun Lántaka'!N8","v":0},".M.SLTVLIN.XX.INN.XXX.XXXX.SX.XXX.NOK.IS.N.M"]
[{"$f":"\"INN.\"&EIGNIR!$B$3&C8257","v":{"$error":"#N/A"}},{"$f":"'Sundurliðun Lántaka'!N9","v":0},".M.SLTVLIN.XX.SLI.XXX.XXXX.SX.XXX.NOK.IS.N.M"]
[{"$f":"\"INN.\"&EIGNIR!$B$3&C8258","v":{"$error":"#N/A"}},{"$f":"'Sundurliðun Lántaka'!N10","v":0},".M.SLTVLIN.XX.PEN.XXX.XXXX.SX.XXX.NOK.IS.N.M"]
[{"$f":"\"INN.\"&EIGNIR!$B$3&C8259","v":{"$error":"#N/A"}},{"$f":"'Sundurliðun Lántaka'!N11","v":0},".M.SLTVLIN.XX.SJO.XXX.XXXX.SX.XXX.NOK.IS.N.M"]
[{"$f":"\"INN.\"&EIGNIR!$B$3&C8260","v":{"$error":"#N/A"}},{"$f":"'Sundurliðun Lántaka'!N12","v":0},".M.SLTVLIN.XX.YFT.XXX.XXXX.SX.XXX.NOK.IS.N.M"]
[{"$f":"\"INN.\"&EIGNIR!$B$3&C8261","v":{"$error":"#N/A"}},{"$f":"'Sundurliðun Lántaka'!N13","v":0},".M.SLTVLIN.XX.SLY.XXX.XXXX.SX.XXX.NOK.IS.N.M"]
[{"$f":"\"INN.\"&EIGNIR!$B$3&C8262","v":{"$error":"#N/A"}},{"$f":"'Sundurliðun Lántaka'!N14","v":0},".M.SLTVLIN.XX.FHL.XXX.XXXX.SX.XXX.NOK.IS.N.M"]
[{"$f":"\"INN.\"&EIGNIR!$B$3&C8263","v":{"$error":"#N/A"}},{"$f":"'Sundurliðun Lántaka'!N15","v":0},".M.SLTVLIN.XX.INF.XXX.XXXX.SX.XXX.NOK.IS.N.M"]
[{"$f":"\"INN.\"&EIGNIR!$B$3&C8264","v":{"$error":"#N/A"}},{"$f":"'Sundurliðun Lántaka'!N16","v":0},".M.SLTVLIN.XX.TRY.XXX.XXXX.SX.XXX.NOK.IS.N.M"]
[{"$f":"\"INN.\"&EIGNIR!$B$3&C8265","v":{"$error":"#N/A"}},{"$f":"'Sundurliðun Lántaka'!N17","v":0},".M.SLTVLIN.XX.LIF.XXX.XXXX.SX.XXX.NOK.IS.N.M"]
[{"$f":"\"INN.\"&EIGNIR!$B$3&C8266","v":{"$error":"#N/A"}},{"$f":"'Sundurliðun Lántaka'!N18","v":0},".M.SLTVLIN.XX.OPI.XXX.XXXX.SX.XXX.NOK.IS.N.M"]
[{"$f":"\"INN.\"&EIGNIR!$B$3&C8267","v":{"$error":"#N/A"}},{"$f":"'Sundurliðun Lántaka'!N19","v":0},".M.SLTVLIN.XX.RSS.XXX.XXXX.SX.XXX.NOK.IS.N.M"]
[{"$f":"\"INN.\"&EIGNIR!$B$3&C8268","v":{"$error":"#N/A"}},{"$f":"'Sundurliðun Lántaka'!N20","v":0},".M.SLTVLIN.XX.BAJ.XXX.XXXX.SX.XXX.NOK.IS.N.M"]
[{"$f":"\"INN.\"&EIGNIR!$B$3&C8269","v":{"$error":"#N/A"}},{"$f":"'Sundurliðun Lántaka'!N22","v":0},".M.SLTVLIN.XX.NPH.XXX.XXXX.SX.XXX.NOK.IS.N.M"]
[{"$f":"\"INN.\"&EIGNIR!$B$3&C8270","v":{"$error":"#N/A"}},{"$f":"'Sundurliðun Lántaka'!N23","v":0},".M.SLTVLER.XX.ERL.XXX.XXXX.SX.XXX.NOK.IS.N.M"]
[{"$f":"\"INN.\"&EIGNIR!$B$3&C8271","v":{"$error":"#N/A"}},{"$f":"'Sundurliðun Lántaka'!N24","v":0},".M.SLTVLER.XX.ERS.XXX.XXXX.SX.XXX.NOK.IS.N.M"]
[{"$f":"\"INN.\"&EIGNIR!$B$3&C8272","v":{"$error":"#N/A"}},{"$f":"'Sundurliðun Lántaka'!N25","v":0},".M.SLTVLER.XX.ERI.XXX.XXXX.SX.XXX.NOK.IS.N.M"]
[{"$f":"\"INN.\"&EIGNIR!$B$3&C8273","v":{"$error":"#N/A"}},{"$f":"'Sundurliðun Lántaka'!N26","v":0},".M.SLTVLER.XX.ERP.XXX.XXXX.SX.XXX.NOK.IS.N.M"]
[{"$f":"\"INN.\"&EIGNIR!$B$3&C8274","v":{"$error":"#N/A"}},{"$f":"'Sundurliðun Lántaka'!N27","v":0},".M.SLTVLER.XX.ERV.XXX.XXXX.SX.XXX.NOK.IS.N.M"]
[{"$f":"\"INN.\"&EIGNIR!$B$3&C8275","v":{"$error":"#N/A"}},{"$f":"'Sundurliðun Lántaka'!N28","v":0},".M.SLTVLER.XX.ERF.XXX.XXXX.SX.XXX.NOK.IS.N.M"]
[{"$f":"\"INN.\"&EIGNIR!$B$3&C8276","v":{"$error":"#N/A"}},{"$f":"'Sundurliðun Lántaka'!N29","v":0},".M.SLTVLER.XX.ERO.XXX.XXXX.SX.XXX.NOK.IS.N.M"]
[{"$f":"\"INN.\"&EIGNIR!$B$3&C8277","v":{"$error":"#N/A"}},{"$f":"'Sundurliðun Lántaka'!N30","v":0},".M.SLTVLER.XX.ERA.XXX.XXXX.SX.XXX.NOK.IS.N.M"]
[{"$f":"\"INN.\"&EIGNIR!$B$3&C8278","v":{"$error":"#N/A"}},{"$f":"'Sundurliðun Lántaka'!N57","v":0},".M.SLTBO$$.XX.$$$.XXX.XXXX.SX.XXX.NOK.IS.N.M"]
[{"$f":"\"INN.\"&EIGNIR!$B$3&C8279","v":{"$error":"#N/A"}},{"$f":"'Sundurliðun Lántaka'!N58","v":0},".M.SLTBOIN.XX.ATV.XXX.XXXX.SX.XXX.NOK.IS.N.M"]
[{"$f":"\"INN.\"&EIGNIR!$B$3&C8280","v":{"$error":"#N/A"}},{"$f":"'Sundurliðun Lántaka'!N59","v":0},".M.SLTBOIN.XX.FJA.XXX.XXXX.SX.XXX.NOK.IS.N.M"]
[{"$f":"\"INN.\"&EIGNIR!$B$3&C8281","v":{"$error":"#N/A"}},{"$f":"'Sundurliðun Lántaka'!N60","v":0},".M.SLTBOIN.XX.INN.XXX.XXXX.SX.XXX.NOK.IS.N.M"]
[{"$f":"\"INN.\"&EIGNIR!$B$3&C8282","v":{"$error":"#N/A"}},{"$f":"'Sundurliðun Lántaka'!N61","v":0},".M.SLTBOIN.XX.SLI.XXX.XXXX.SX.XXX.NOK.IS.N.M"]
[{"$f":"\"INN.\"&EIGNIR!$B$3&C8283","v":{"$error":"#N/A"}},{"$f":"'Sundurliðun Lántaka'!N62","v":0},".M.SLTBOIN.XX.PEN.XXX.XXXX.SX.XXX.NOK.IS.N.M"]
[{"$f":"\"INN.\"&EIGNIR!$B$3&C8284","v":{"$error":"#N/A"}},{"$f":"'Sundurliðun Lántaka'!N63","v":0},".M.SLTBOIN.XX.SJO.XXX.XXXX.SX.XXX.NOK.IS.N.M"]
[{"$f":"\"INN.\"&EIGNIR!$B$3&C8285","v":{"$error":"#N/A"}},{"$f":"'Sundurliðun Lántaka'!N64","v":0},".M.SLTBOIN.XX.YFT.XXX.XXXX.SX.XXX.NOK.IS.N.M"]
[{"$f":"\"INN.\"&EIGNIR!$B$3&C8286","v":{"$error":"#N/A"}},{"$f":"'Sundurliðun Lántaka'!N65","v":0},".M.SLTBOIN.XX.SLY.XXX.XXXX.SX.XXX.NOK.IS.N.M"]
[{"$f":"\"INN.\"&EIGNIR!$B$3&C8287","v":{"$error":"#N/A"}},{"$f":"'Sundurliðun Lántaka'!N66","v":0},".M.SLTBOIN.XX.FHL.XXX.XXXX.SX.XXX.NOK.IS.N.M"]
[{"$f":"\"INN.\"&EIGNIR!$B$3&C8288","v":{"$error":"#N/A"}},{"$f":"'Sundurliðun Lántaka'!N67","v":0},".M.SLTBOIN.XX.INF.XXX.XXXX.SX.XXX.NOK.IS.N.M"]
[{"$f":"\"INN.\"&EIGNIR!$B$3&C8289","v":{"$error":"#N/A"}},{"$f":"'Sundurliðun Lántaka'!N68","v":0},".M.SLTBOIN.XX.TRY.XXX.XXXX.SX.XXX.NOK.IS.N.M"]
[{"$f":"\"INN.\"&EIGNIR!$B$3&C8290","v":{"$error":"#N/A"}},{"$f":"'Sundurliðun Lántaka'!N69","v":0},".M.SLTBOIN.XX.LIF.XXX.XXXX.SX.XXX.NOK.IS.N.M"]
[{"$f":"\"INN.\"&EIGNIR!$B$3&C8291","v":{"$error":"#N/A"}},{"$f":"'Sundurliðun Lántaka'!N70","v":0},".M.SLTBOIN.XX.OPI.XXX.XXXX.SX.XXX.NOK.IS.N.M"]
[{"$f":"\"INN.\"&EIGNIR!$B$3&C8292","v":{"$error":"#N/A"}},{"$f":"'Sundurliðun Lántaka'!N71","v":0},".M.SLTBOIN.XX.RSS.XXX.XXXX.SX.XXX.NOK.IS.N.M"]
[{"$f":"\"INN.\"&EIGNIR!$B$3&C8293","v":{"$error":"#N/A"}},{"$f":"'Sundurliðun Lántaka'!N72","v":0},".M.SLTBOIN.XX.BAJ.XXX.XXXX.SX.XXX.NOK.IS.N.M"]
[{"$f":"\"INN.\"&EIGNIR!$B$3&C8294","v":{"$error":"#N/A"}},{"$f":"'Sundurliðun Lántaka'!N74","v":0},".M.SLTBOIN.XX.NPH.XXX.XXXX.SX.XXX.NOK.IS.N.M"]
[{"$f":"\"INN.\"&EIGNIR!$B$3&C8295","v":{"$error":"#N/A"}},{"$f":"'Sundurliðun Lántaka'!N75","v":0},".M.SLTBOER.XX.ERL.XXX.XXXX.SX.XXX.NOK.IS.N.M"]
[{"$f":"\"INN.\"&EIGNIR!$B$3&C8296","v":{"$error":"#N/A"}},{"$f":"'Sundurliðun Lántaka'!N76","v":0},".M.SLTBOER.XX.ERS.XXX.XXXX.SX.XXX.NOK.IS.N.M"]
[{"$f":"\"INN.\"&EIGNIR!$B$3&C8297","v":{"$error":"#N/A"}},{"$f":"'Sundurliðun Lántaka'!N77","v":0},".M.SLTBOER.XX.ERI.XXX.XXXX.SX.XXX.NOK.IS.N.M"]
[{"$f":"\"INN.\"&EIGNIR!$B$3&C8298","v":{"$error":"#N/A"}},{"$f":"'Sundurliðun Lántaka'!N78","v":0},".M.SLTBOER.XX.ERP.XXX.XXXX.SX.XXX.NOK.IS.N.M"]
[{"$f":"\"INN.\"&EIGNIR!$B$3&C8299","v":{"$error":"#N/A"}},{"$f":"'Sundurliðun Lántaka'!N79","v":0},".M.SLTBOER.XX.ERV.XXX.XXXX.SX.XXX.NOK.IS.N.M"]
[{"$f":"\"INN.\"&EIGNIR!$B$3&C8300","v":{"$error":"#N/A"}},{"$f":"'Sundurliðun Lántaka'!N80","v":0},".M.SLTBOER.XX.ERF.XXX.XXXX.SX.XXX.NOK.IS.N.M"]
[{"$f":"\"INN.\"&EIGNIR!$B$3&C8301","v":{"$error":"#N/A"}},{"$f":"'Sundurliðun Lántaka'!N81","v":0},".M.SLTBOER.XX.ERO.XXX.XXXX.SX.XXX.NOK.IS.N.M"]
[{"$f":"\"INN.\"&EIGNIR!$B$3&C8302","v":{"$error":"#N/A"}},{"$f":"'Sundurliðun Lántaka'!N82","v":0},".M.SLTBOER.XX.ERA.XXX.XXXX.SX.XXX.NOK.IS.N.M"]
[{"$f":"\"INN.\"&EIGNIR!$B$3&C8303","v":{"$error":"#N/A"}},{"$f":"'Sundurliðun Lántaka'!O5","v":0},".M.SLTVL$$.XX.$$$.XXX.XXXX.SX.XXX.SEK.IS.N.M"]
[{"$f":"\"INN.\"&EIGNIR!$B$3&C8304","v":{"$error":"#N/A"}},{"$f":"'Sundurliðun Lántaka'!O6","v":0},".M.SLTVLIN.XX.ATV.XXX.XXXX.SX.XXX.SEK.IS.N.M"]
[{"$f":"\"INN.\"&EIGNIR!$B$3&C8305","v":{"$error":"#N/A"}},{"$f":"'Sundurliðun Lántaka'!O7","v":0},".M.SLTVLIN.XX.FJA.XXX.XXXX.SX.XXX.SEK.IS.N.M"]
[{"$f":"\"INN.\"&EIGNIR!$B$3&C8306","v":{"$error":"#N/A"}},{"$f":"'Sundurliðun Lántaka'!O8","v":0},".M.SLTVLIN.XX.INN.XXX.XXXX.SX.XXX.SEK.IS.N.M"]
[{"$f":"\"INN.\"&EIGNIR!$B$3&C8307","v":{"$error":"#N/A"}},{"$f":"'Sundurliðun Lántaka'!O9","v":0},".M.SLTVLIN.XX.SLI.XXX.XXXX.SX.XXX.SEK.IS.N.M"]
[{"$f":"\"INN.\"&EIGNIR!$B$3&C8308","v":{"$error":"#N/A"}},{"$f":"'Sundurliðun Lántaka'!O10","v":0},".M.SLTVLIN.XX.PEN.XXX.XXXX.SX.XXX.SEK.IS.N.M"]
[{"$f":"\"INN.\"&EIGNIR!$B$3&C8309","v":{"$error":"#N/A"}},{"$f":"'Sundurliðun Lántaka'!O11","v":0},".M.SLTVLIN.XX.SJO.XXX.XXXX.SX.XXX.SEK.IS.N.M"]
[{"$f":"\"INN.\"&EIGNIR!$B$3&C8310","v":{"$error":"#N/A"}},{"$f":"'Sundurliðun Lántaka'!O12","v":0},".M.SLTVLIN.XX.YFT.XXX.XXXX.SX.XXX.SEK.IS.N.M"]
[{"$f":"\"INN.\"&EIGNIR!$B$3&C8311","v":{"$error":"#N/A"}},{"$f":"'Sundurliðun Lántaka'!O13","v":0},".M.SLTVLIN.XX.SLY.XXX.XXXX.SX.XXX.SEK.IS.N.M"]
[{"$f":"\"INN.\"&EIGNIR!$B$3&C8312","v":{"$error":"#N/A"}},{"$f":"'Sundurliðun Lántaka'!O14","v":0},".M.SLTVLIN.XX.FHL.XXX.XXXX.SX.XXX.SEK.IS.N.M"]
[{"$f":"\"INN.\"&EIGNIR!$B$3&C8313","v":{"$error":"#N/A"}},{"$f":"'Sundurliðun Lántaka'!O15","v":0},".M.SLTVLIN.XX.INF.XXX.XXXX.SX.XXX.SEK.IS.N.M"]
[{"$f":"\"INN.\"&EIGNIR!$B$3&C8314","v":{"$error":"#N/A"}},{"$f":"'Sundurliðun Lántaka'!O16","v":0},".M.SLTVLIN.XX.TRY.XXX.XXXX.SX.XXX.SEK.IS.N.M"]
[{"$f":"\"INN.\"&EIGNIR!$B$3&C8315","v":{"$error":"#N/A"}},{"$f":"'Sundurliðun Lántaka'!O17","v":0},".M.SLTVLIN.XX.LIF.XXX.XXXX.SX.XXX.SEK.IS.N.M"]
[{"$f":"\"INN.\"&EIGNIR!$B$3&C8316","v":{"$error":"#N/A"}},{"$f":"'Sundurliðun Lántaka'!O18","v":0},".M.SLTVLIN.XX.OPI.XXX.XXXX.SX.XXX.SEK.IS.N.M"]
[{"$f":"\"INN.\"&EIGNIR!$B$3&C8317","v":{"$error":"#N/A"}},{"$f":"'Sundurliðun Lántaka'!O19","v":0},".M.SLTVLIN.XX.RSS.XXX.XXXX.SX.XXX.SEK.IS.N.M"]
[{"$f":"\"INN.\"&EIGNIR!$B$3&C8318","v":{"$error":"#N/A"}},{"$f":"'Sundurliðun Lántaka'!O20","v":0},".M.SLTVLIN.XX.BAJ.XXX.XXXX.SX.XXX.SEK.IS.N.M"]
[{"$f":"\"INN.\"&EIGNIR!$B$3&C8319","v":{"$error":"#N/A"}},{"$f":"'Sundurliðun Lántaka'!O22","v":0},".M.SLTVLIN.XX.NPH.XXX.XXXX.SX.XXX.SEK.IS.N.M"]
[{"$f":"\"INN.\"&EIGNIR!$B$3&C8320","v":{"$error":"#N/A"}},{"$f":"'Sundurliðun Lántaka'!O23","v":0},".M.SLTVLER.XX.ERL.XXX.XXXX.SX.XXX.SEK.IS.N.M"]
[{"$f":"\"INN.\"&EIGNIR!$B$3&C8321","v":{"$error":"#N/A"}},{"$f":"'Sundurliðun Lántaka'!O24","v":0},".M.SLTVLER.XX.ERS.XXX.XXXX.SX.XXX.SEK.IS.N.M"]
[{"$f":"\"INN.\"&EIGNIR!$B$3&C8322","v":{"$error":"#N/A"}},{"$f":"'Sundurliðun Lántaka'!O25","v":0},".M.SLTVLER.XX.ERI.XXX.XXXX.SX.XXX.SEK.IS.N.M"]
[{"$f":"\"INN.\"&EIGNIR!$B$3&C8323","v":{"$error":"#N/A"}},{"$f":"'Sundurliðun Lántaka'!O26","v":0},".M.SLTVLER.XX.ERP.XXX.XXXX.SX.XXX.SEK.IS.N.M"]
[{"$f":"\"INN.\"&EIGNIR!$B$3&C8324","v":{"$error":"#N/A"}},{"$f":"'Sundurliðun Lántaka'!O27","v":0},".M.SLTVLER.XX.ERV.XXX.XXXX.SX.XXX.SEK.IS.N.M"]
[{"$f":"\"INN.\"&EIGNIR!$B$3&C8325","v":{"$error":"#N/A"}},{"$f":"'Sundurliðun Lántaka'!O28","v":0},".M.SLTVLER.XX.ERF.XXX.XXXX.SX.XXX.SEK.IS.N.M"]
[{"$f":"\"INN.\"&EIGNIR!$B$3&C8326","v":{"$error":"#N/A"}},{"$f":"'Sundurliðun Lántaka'!O29","v":0},".M.SLTVLER.XX.ERO.XXX.XXXX.SX.XXX.SEK.IS.N.M"]
[{"$f":"\"INN.\"&EIGNIR!$B$3&C8327","v":{"$error":"#N/A"}},{"$f":"'Sundurliðun Lántaka'!O30","v":0},".M.SLTVLER.XX.ERA.XXX.XXXX.SX.XXX.SEK.IS.N.M"]
[{"$f":"\"INN.\"&EIGNIR!$B$3&C8328","v":{"$error":"#N/A"}},{"$f":"'Sundurliðun Lántaka'!O57","v":0},".M.SLTBO$$.XX.$$$.XXX.XXXX.SX.XXX.SEK.IS.N.M"]
[{"$f":"\"INN.\"&EIGNIR!$B$3&C8329","v":{"$error":"#N/A"}},{"$f":"'Sundurliðun Lántaka'!O58","v":0},".M.SLTBOIN.XX.ATV.XXX.XXXX.SX.XXX.SEK.IS.N.M"]
[{"$f":"\"INN.\"&EIGNIR!$B$3&C8330","v":{"$error":"#N/A"}},{"$f":"'Sundurliðun Lántaka'!O59","v":0},".M.SLTBOIN.XX.FJA.XXX.XXXX.SX.XXX.SEK.IS.N.M"]
[{"$f":"\"INN.\"&EIGNIR!$B$3&C8331","v":{"$error":"#N/A"}},{"$f":"'Sundurliðun Lántaka'!O60","v":0},".M.SLTBOIN.XX.INN.XXX.XXXX.SX.XXX.SEK.IS.N.M"]
[{"$f":"\"INN.\"&EIGNIR!$B$3&C8332","v":{"$error":"#N/A"}},{"$f":"'Sundurliðun Lántaka'!O61","v":0},".M.SLTBOIN.XX.SLI.XXX.XXXX.SX.XXX.SEK.IS.N.M"]
[{"$f":"\"INN.\"&EIGNIR!$B$3&C8333","v":{"$error":"#N/A"}},{"$f":"'Sundurliðun Lántaka'!O62","v":0},".M.SLTBOIN.XX.PEN.XXX.XXXX.SX.XXX.SEK.IS.N.M"]
[{"$f":"\"INN.\"&EIGNIR!$B$3&C8334","v":{"$error":"#N/A"}},{"$f":"'Sundurliðun Lántaka'!O63","v":0},".M.SLTBOIN.XX.SJO.XXX.XXXX.SX.XXX.SEK.IS.N.M"]
[{"$f":"\"INN.\"&EIGNIR!$B$3&C8335","v":{"$error":"#N/A"}},{"$f":"'Sundurliðun Lántaka'!O64","v":0},".M.SLTBOIN.XX.YFT.XXX.XXXX.SX.XXX.SEK.IS.N.M"]
[{"$f":"\"INN.\"&EIGNIR!$B$3&C8336","v":{"$error":"#N/A"}},{"$f":"'Sundurliðun Lántaka'!O65","v":0},".M.SLTBOIN.XX.SLY.XXX.XXXX.SX.XXX.SEK.IS.N.M"]
[{"$f":"\"INN.\"&EIGNIR!$B$3&C8337","v":{"$error":"#N/A"}},{"$f":"'Sundurliðun Lántaka'!O66","v":0},".M.SLTBOIN.XX.FHL.XXX.XXXX.SX.XXX.SEK.IS.N.M"]
[{"$f":"\"INN.\"&EIGNIR!$B$3&C8338","v":{"$error":"#N/A"}},{"$f":"'Sundurliðun Lántaka'!O67","v":0},".M.SLTBOIN.XX.INF.XXX.XXXX.SX.XXX.SEK.IS.N.M"]
[{"$f":"\"INN.\"&EIGNIR!$B$3&C8339","v":{"$error":"#N/A"}},{"$f":"'Sundurliðun Lántaka'!O68","v":0},".M.SLTBOIN.XX.TRY.XXX.XXXX.SX.XXX.SEK.IS.N.M"]
[{"$f":"\"INN.\"&EIGNIR!$B$3&C8340","v":{"$error":"#N/A"}},{"$f":"'Sundurliðun Lántaka'!O69","v":0},".M.SLTBOIN.XX.LIF.XXX.XXXX.SX.XXX.SEK.IS.N.M"]
[{"$f":"\"INN.\"&EIGNIR!$B$3&C8341","v":{"$error":"#N/A"}},{"$f":"'Sundurliðun Lántaka'!O70","v":0},".M.SLTBOIN.XX.OPI.XXX.XXXX.SX.XXX.SEK.IS.N.M"]
[{"$f":"\"INN.\"&EIGNIR!$B$3&C8342","v":{"$error":"#N/A"}},{"$f":"'Sundurliðun Lántaka'!O71","v":0},".M.SLTBOIN.XX.RSS.XXX.XXXX.SX.XXX.SEK.IS.N.M"]
[{"$f":"\"INN.\"&EIGNIR!$B$3&C8343","v":{"$error":"#N/A"}},{"$f":"'Sundurliðun Lántaka'!O72","v":0},".M.SLTBOIN.XX.BAJ.XXX.XXXX.SX.XXX.SEK.IS.N.M"]
[{"$f":"\"INN.\"&EIGNIR!$B$3&C8344","v":{"$error":"#N/A"}},{"$f":"'Sundurliðun Lántaka'!O74","v":0},".M.SLTBOIN.XX.NPH.XXX.XXXX.SX.XXX.SEK.IS.N.M"]
[{"$f":"\"INN.\"&EIGNIR!$B$3&C8345","v":{"$error":"#N/A"}},{"$f":"'Sundurliðun Lántaka'!O75","v":0},".M.SLTBOER.XX.ERL.XXX.XXXX.SX.XXX.SEK.IS.N.M"]
[{"$f":"\"INN.\"&EIGNIR!$B$3&C8346","v":{"$error":"#N/A"}},{"$f":"'Sundurliðun Lántaka'!O76","v":0},".M.SLTBOER.XX.ERS.XXX.XXXX.SX.XXX.SEK.IS.N.M"]
[{"$f":"\"INN.\"&EIGNIR!$B$3&C8347","v":{"$error":"#N/A"}},{"$f":"'Sundurliðun Lántaka'!O77","v":0},".M.SLTBOER.XX.ERI.XXX.XXXX.SX.XXX.SEK.IS.N.M"]
[{"$f":"\"INN.\"&EIGNIR!$B$3&C8348","v":{"$error":"#N/A"}},{"$f":"'Sundurliðun Lántaka'!O78","v":0},".M.SLTBOER.XX.ERP.XXX.XXXX.SX.XXX.SEK.IS.N.M"]
[{"$f":"\"INN.\"&EIGNIR!$B$3&C8349","v":{"$error":"#N/A"}},{"$f":"'Sundurliðun Lántaka'!O79","v":0},".M.SLTBOER.XX.ERV.XXX.XXXX.SX.XXX.SEK.IS.N.M"]
[{"$f":"\"INN.\"&EIGNIR!$B$3&C8350","v":{"$error":"#N/A"}},{"$f":"'Sundurliðun Lántaka'!O80","v":0},".M.SLTBOER.XX.ERF.XXX.XXXX.SX.XXX.SEK.IS.N.M"]
[{"$f":"\"INN.\"&EIGNIR!$B$3&C8351","v":{"$error":"#N/A"}},{"$f":"'Sundurliðun Lántaka'!O81","v":0},".M.SLTBOER.XX.ERO.XXX.XXXX.SX.XXX.SEK.IS.N.M"]
[{"$f":"\"INN.\"&EIGNIR!$B$3&C8352","v":{"$error":"#N/A"}},{"$f":"'Sundurliðun Lántaka'!O82","v":0},".M.SLTBOER.XX.ERA.XXX.XXXX.SX.XXX.SEK.IS.N.M"]
[{"$f":"\"INN.\"&EIGNIR!$B$3&C8353","v":{"$error":"#N/A"}},{"$f":"'Sundurliðun Lántaka'!P5","v":0},".M.SLTVL$$.XX.$$$.XXX.XXXX.SX.XXX.CHF.IS.N.M","//Sundurliðun lántaka CHF"]
[{"$f":"\"INN.\"&EIGNIR!$B$3&C8354","v":{"$error":"#N/A"}},{"$f":"'Sundurliðun Lántaka'!P6","v":0},".M.SLTVLIN.XX.ATV.XXX.XXXX.SX.XXX.CHF.IS.N.M"]
[{"$f":"\"INN.\"&EIGNIR!$B$3&C8355","v":{"$error":"#N/A"}},{"$f":"'Sundurliðun Lántaka'!P7","v":0},".M.SLTVLIN.XX.FJA.XXX.XXXX.SX.XXX.CHF.IS.N.M"]
[{"$f":"\"INN.\"&EIGNIR!$B$3&C8356","v":{"$error":"#N/A"}},{"$f":"'Sundurliðun Lántaka'!P8","v":0},".M.SLTVLIN.XX.INN.XXX.XXXX.SX.XXX.CHF.IS.N.M"]
[{"$f":"\"INN.\"&EIGNIR!$B$3&C8357","v":{"$error":"#N/A"}},{"$f":"'Sundurliðun Lántaka'!P9","v":0},".M.SLTVLIN.XX.SLI.XXX.XXXX.SX.XXX.CHF.IS.N.M"]
[{"$f":"\"INN.\"&EIGNIR!$B$3&C8358","v":{"$error":"#N/A"}},{"$f":"'Sundurliðun Lántaka'!P10","v":0},".M.SLTVLIN.XX.PEN.XXX.XXXX.SX.XXX.CHF.IS.N.M"]
[{"$f":"\"INN.\"&EIGNIR!$B$3&C8359","v":{"$error":"#N/A"}},{"$f":"'Sundurliðun Lántaka'!P11","v":0},".M.SLTVLIN.XX.SJO.XXX.XXXX.SX.XXX.CHF.IS.N.M"]
[{"$f":"\"INN.\"&EIGNIR!$B$3&C8360","v":{"$error":"#N/A"}},{"$f":"'Sundurliðun Lántaka'!P12","v":0},".M.SLTVLIN.XX.YFT.XXX.XXXX.SX.XXX.CHF.IS.N.M"]
[{"$f":"\"INN.\"&EIGNIR!$B$3&C8361","v":{"$error":"#N/A"}},{"$f":"'Sundurliðun Lántaka'!P13","v":0},".M.SLTVLIN.XX.SLY.XXX.XXXX.SX.XXX.CHF.IS.N.M"]
[{"$f":"\"INN.\"&EIGNIR!$B$3&C8362","v":{"$error":"#N/A"}},{"$f":"'Sundurliðun Lántaka'!P14","v":0},".M.SLTVLIN.XX.FHL.XXX.XXXX.SX.XXX.CHF.IS.N.M"]
[{"$f":"\"INN.\"&EIGNIR!$B$3&C8363","v":{"$error":"#N/A"}},{"$f":"'Sundurliðun Lántaka'!P15","v":0},".M.SLTVLIN.XX.INF.XXX.XXXX.SX.XXX.CHF.IS.N.M"]
[{"$f":"\"INN.\"&EIGNIR!$B$3&C8364","v":{"$error":"#N/A"}},{"$f":"'Sundurliðun Lántaka'!P16","v":0},".M.SLTVLIN.XX.TRY.XXX.XXXX.SX.XXX.CHF.IS.N.M"]
[{"$f":"\"INN.\"&EIGNIR!$B$3&C8365","v":{"$error":"#N/A"}},{"$f":"'Sundurliðun Lántaka'!P17","v":0},".M.SLTVLIN.XX.LIF.XXX.XXXX.SX.XXX.CHF.IS.N.M"]
[{"$f":"\"INN.\"&EIGNIR!$B$3&C8366","v":{"$error":"#N/A"}},{"$f":"'Sundurliðun Lántaka'!P18","v":0},".M.SLTVLIN.XX.OPI.XXX.XXXX.SX.XXX.CHF.IS.N.M"]
[{"$f":"\"INN.\"&EIGNIR!$B$3&C8367","v":{"$error":"#N/A"}},{"$f":"'Sundurliðun Lántaka'!P19","v":0},".M.SLTVLIN.XX.RSS.XXX.XXXX.SX.XXX.CHF.IS.N.M"]
[{"$f":"\"INN.\"&EIGNIR!$B$3&C8368","v":{"$error":"#N/A"}},{"$f":"'Sundurliðun Lántaka'!P20","v":0},".M.SLTVLIN.XX.BAJ.XXX.XXXX.SX.XXX.CHF.IS.N.M"]
[{"$f":"\"INN.\"&EIGNIR!$B$3&C8369","v":{"$error":"#N/A"}},{"$f":"'Sundurliðun Lántaka'!P22","v":0},".M.SLTVLIN.XX.NPH.XXX.XXXX.SX.XXX.CHF.IS.N.M"]
[{"$f":"\"INN.\"&EIGNIR!$B$3&C8370","v":{"$error":"#N/A"}},{"$f":"'Sundurliðun Lántaka'!P23","v":0},".M.SLTVLER.XX.ERL.XXX.XXXX.SX.XXX.CHF.IS.N.M"]
[{"$f":"\"INN.\"&EIGNIR!$B$3&C8371","v":{"$error":"#N/A"}},{"$f":"'Sundurliðun Lántaka'!P24","v":0},".M.SLTVLER.XX.ERS.XXX.XXXX.SX.XXX.CHF.IS.N.M"]
[{"$f":"\"INN.\"&EIGNIR!$B$3&C8372","v":{"$error":"#N/A"}},{"$f":"'Sundurliðun Lántaka'!P25","v":0},".M.SLTVLER.XX.ERI.XXX.XXXX.SX.XXX.CHF.IS.N.M"]
[{"$f":"\"INN.\"&EIGNIR!$B$3&C8373","v":{"$error":"#N/A"}},{"$f":"'Sundurliðun Lántaka'!P26","v":0},".M.SLTVLER.XX.ERP.XXX.XXXX.SX.XXX.CHF.IS.N.M"]
[{"$f":"\"INN.\"&EIGNIR!$B$3&C8374","v":{"$error":"#N/A"}},{"$f":"'Sundurliðun Lántaka'!P27","v":0},".M.SLTVLER.XX.ERV.XXX.XXXX.SX.XXX.CHF.IS.N.M"]
[{"$f":"\"INN.\"&EIGNIR!$B$3&C8375","v":{"$error":"#N/A"}},{"$f":"'Sundurliðun Lántaka'!P28","v":0},".M.SLTVLER.XX.ERF.XXX.XXXX.SX.XXX.CHF.IS.N.M"]
[{"$f":"\"INN.\"&EIGNIR!$B$3&C8376","v":{"$error":"#N/A"}},{"$f":"'Sundurliðun Lántaka'!P29","v":0},".M.SLTVLER.XX.ERO.XXX.XXXX.SX.XXX.CHF.IS.N.M"]
[{"$f":"\"INN.\"&EIGNIR!$B$3&C8377","v":{"$error":"#N/A"}},{"$f":"'Sundurliðun Lántaka'!P30","v":0},".M.SLTVLER.XX.ERA.XXX.XXXX.SX.XXX.CHF.IS.N.M"]
[{"$f":"\"INN.\"&EIGNIR!$B$3&C8378","v":{"$error":"#N/A"}},{"$f":"'Sundurliðun Lántaka'!P57","v":0},".M.SLTBO$$.XX.$$$.XXX.XXXX.SX.XXX.CHF.IS.N.M"]
[{"$f":"\"INN.\"&EIGNIR!$B$3&C8379","v":{"$error":"#N/A"}},{"$f":"'Sundurliðun Lántaka'!P58","v":0},".M.SLTBOIN.XX.ATV.XXX.XXXX.SX.XXX.CHF.IS.N.M"]
[{"$f":"\"INN.\"&EIGNIR!$B$3&C8380","v":{"$error":"#N/A"}},{"$f":"'Sundurliðun Lántaka'!P59","v":0},".M.SLTBOIN.XX.FJA.XXX.XXXX.SX.XXX.CHF.IS.N.M"]
[{"$f":"\"INN.\"&EIGNIR!$B$3&C8381","v":{"$error":"#N/A"}},{"$f":"'Sundurliðun Lántaka'!P60","v":0},".M.SLTBOIN.XX.INN.XXX.XXXX.SX.XXX.CHF.IS.N.M"]
[{"$f":"\"INN.\"&EIGNIR!$B$3&C8382","v":{"$error":"#N/A"}},{"$f":"'Sundurliðun Lántaka'!P61","v":0},".M.SLTBOIN.XX.SLI.XXX.XXXX.SX.XXX.CHF.IS.N.M"]
[{"$f":"\"INN.\"&EIGNIR!$B$3&C8383","v":{"$error":"#N/A"}},{"$f":"'Sundurliðun Lántaka'!P62","v":0},".M.SLTBOIN.XX.PEN.XXX.XXXX.SX.XXX.CHF.IS.N.M"]
[{"$f":"\"INN.\"&EIGNIR!$B$3&C8384","v":{"$error":"#N/A"}},{"$f":"'Sundurliðun Lántaka'!P63","v":0},".M.SLTBOIN.XX.SJO.XXX.XXXX.SX.XXX.CHF.IS.N.M"]
[{"$f":"\"INN.\"&EIGNIR!$B$3&C8385","v":{"$error":"#N/A"}},{"$f":"'Sundurliðun Lántaka'!P64","v":0},".M.SLTBOIN.XX.YFT.XXX.XXXX.SX.XXX.CHF.IS.N.M"]
[{"$f":"\"INN.\"&EIGNIR!$B$3&C8386","v":{"$error":"#N/A"}},{"$f":"'Sundurliðun Lántaka'!P65","v":0},".M.SLTBOIN.XX.SLY.XXX.XXXX.SX.XXX.CHF.IS.N.M"]
[{"$f":"\"INN.\"&EIGNIR!$B$3&C8387","v":{"$error":"#N/A"}},{"$f":"'Sundurliðun Lántaka'!P66","v":0},".M.SLTBOIN.XX.FHL.XXX.XXXX.SX.XXX.CHF.IS.N.M"]
[{"$f":"\"INN.\"&EIGNIR!$B$3&C8388","v":{"$error":"#N/A"}},{"$f":"'Sundurliðun Lántaka'!P67","v":0},".M.SLTBOIN.XX.INF.XXX.XXXX.SX.XXX.CHF.IS.N.M"]
[{"$f":"\"INN.\"&EIGNIR!$B$3&C8389","v":{"$error":"#N/A"}},{"$f":"'Sundurliðun Lántaka'!P68","v":0},".M.SLTBOIN.XX.TRY.XXX.XXXX.SX.XXX.CHF.IS.N.M"]
[{"$f":"\"INN.\"&EIGNIR!$B$3&C8390","v":{"$error":"#N/A"}},{"$f":"'Sundurliðun Lántaka'!P69","v":0},".M.SLTBOIN.XX.LIF.XXX.XXXX.SX.XXX.CHF.IS.N.M"]
[{"$f":"\"INN.\"&EIGNIR!$B$3&C8391","v":{"$error":"#N/A"}},{"$f":"'Sundurliðun Lántaka'!P70","v":0},".M.SLTBOIN.XX.OPI.XXX.XXXX.SX.XXX.CHF.IS.N.M"]
[{"$f":"\"INN.\"&EIGNIR!$B$3&C8392","v":{"$error":"#N/A"}},{"$f":"'Sundurliðun Lántaka'!P71","v":0},".M.SLTBOIN.XX.RSS.XXX.XXXX.SX.XXX.CHF.IS.N.M"]
[{"$f":"\"INN.\"&EIGNIR!$B$3&C8393","v":{"$error":"#N/A"}},{"$f":"'Sundurliðun Lántaka'!P72","v":0},".M.SLTBOIN.XX.BAJ.XXX.XXXX.SX.XXX.CHF.IS.N.M"]
[{"$f":"\"INN.\"&EIGNIR!$B$3&C8394","v":{"$error":"#N/A"}},{"$f":"'Sundurliðun Lántaka'!P74","v":0},".M.SLTBOIN.XX.NPH.XXX.XXXX.SX.XXX.CHF.IS.N.M"]
[{"$f":"\"INN.\"&EIGNIR!$B$3&C8395","v":{"$error":"#N/A"}},{"$f":"'Sundurliðun Lántaka'!P75","v":0},".M.SLTBOER.XX.ERL.XXX.XXXX.SX.XXX.CHF.IS.N.M"]
[{"$f":"\"INN.\"&EIGNIR!$B$3&C8396","v":{"$error":"#N/A"}},{"$f":"'Sundurliðun Lántaka'!P76","v":0},".M.SLTBOER.XX.ERS.XXX.XXXX.SX.XXX.CHF.IS.N.M"]
[{"$f":"\"INN.\"&EIGNIR!$B$3&C8397","v":{"$error":"#N/A"}},{"$f":"'Sundurliðun Lántaka'!P77","v":0},".M.SLTBOER.XX.ERI.XXX.XXXX.SX.XXX.CHF.IS.N.M"]
[{"$f":"\"INN.\"&EIGNIR!$B$3&C8398","v":{"$error":"#N/A"}},{"$f":"'Sundurliðun Lántaka'!P78","v":0},".M.SLTBOER.XX.ERP.XXX.XXXX.SX.XXX.CHF.IS.N.M"]
[{"$f":"\"INN.\"&EIGNIR!$B$3&C8399","v":{"$error":"#N/A"}},{"$f":"'Sundurliðun Lántaka'!P79","v":0},".M.SLTBOER.XX.ERV.XXX.XXXX.SX.XXX.CHF.IS.N.M"]
[{"$f":"\"INN.\"&EIGNIR!$B$3&C8400","v":{"$error":"#N/A"}},{"$f":"'Sundurliðun Lántaka'!P80","v":0},".M.SLTBOER.XX.ERF.XXX.XXXX.SX.XXX.CHF.IS.N.M"]
[{"$f":"\"INN.\"&EIGNIR!$B$3&C8401","v":{"$error":"#N/A"}},{"$f":"'Sundurliðun Lántaka'!P81","v":0},".M.SLTBOER.XX.ERO.XXX.XXXX.SX.XXX.CHF.IS.N.M"]
[{"$f":"\"INN.\"&EIGNIR!$B$3&C8402","v":{"$error":"#N/A"}},{"$f":"'Sundurliðun Lántaka'!P82","v":0},".M.SLTBOER.XX.ERA.XXX.XXXX.SX.XXX.CHF.IS.N.M"]
[{"$f":"\"INN.\"&EIGNIR!$B$3&C8403","v":{"$error":"#N/A"}},{"$f":"'Sundurliðun Lántaka'!Q5","v":0},".M.SLTVL$$.XX.$$$.XXX.XXXX.SX.XXX.ADR.IS.N.M"]
[{"$f":"\"INN.\"&EIGNIR!$B$3&C8404","v":{"$error":"#N/A"}},{"$f":"'Sundurliðun Lántaka'!Q6","v":0},".M.SLTVLIN.XX.ATV.XXX.XXXX.SX.XXX.ADR.IS.N.M"]
[{"$f":"\"INN.\"&EIGNIR!$B$3&C8405","v":{"$error":"#N/A"}},{"$f":"'Sundurliðun Lántaka'!Q7","v":0},".M.SLTVLIN.XX.FJA.XXX.XXXX.SX.XXX.ADR.IS.N.M"]
[{"$f":"\"INN.\"&EIGNIR!$B$3&C8406","v":{"$error":"#N/A"}},{"$f":"'Sundurliðun Lántaka'!Q8","v":0},".M.SLTVLIN.XX.INN.XXX.XXXX.SX.XXX.ADR.IS.N.M"]
[{"$f":"\"INN.\"&EIGNIR!$B$3&C8407","v":{"$error":"#N/A"}},{"$f":"'Sundurliðun Lántaka'!Q9","v":0},".M.SLTVLIN.XX.SLI.XXX.XXXX.SX.XXX.ADR.IS.N.M"]
[{"$f":"\"INN.\"&EIGNIR!$B$3&C8408","v":{"$error":"#N/A"}},{"$f":"'Sundurliðun Lántaka'!Q10","v":0},".M.SLTVLIN.XX.PEN.XXX.XXXX.SX.XXX.ADR.IS.N.M"]
[{"$f":"\"INN.\"&EIGNIR!$B$3&C8409","v":{"$error":"#N/A"}},{"$f":"'Sundurliðun Lántaka'!Q11","v":0},".M.SLTVLIN.XX.SJO.XXX.XXXX.SX.XXX.ADR.IS.N.M"]
[{"$f":"\"INN.\"&EIGNIR!$B$3&C8410","v":{"$error":"#N/A"}},{"$f":"'Sundurliðun Lántaka'!Q12","v":0},".M.SLTVLIN.XX.YFT.XXX.XXXX.SX.XXX.ADR.IS.N.M"]
[{"$f":"\"INN.\"&EIGNIR!$B$3&C8411","v":{"$error":"#N/A"}},{"$f":"'Sundurliðun Lántaka'!Q13","v":0},".M.SLTVLIN.XX.SLY.XXX.XXXX.SX.XXX.ADR.IS.N.M"]
[{"$f":"\"INN.\"&EIGNIR!$B$3&C8412","v":{"$error":"#N/A"}},{"$f":"'Sundurliðun Lántaka'!Q14","v":0},".M.SLTVLIN.XX.FHL.XXX.XXXX.SX.XXX.ADR.IS.N.M"]
[{"$f":"\"INN.\"&EIGNIR!$B$3&C8413","v":{"$error":"#N/A"}},{"$f":"'Sundurliðun Lántaka'!Q15","v":0},".M.SLTVLIN.XX.INF.XXX.XXXX.SX.XXX.ADR.IS.N.M"]
[{"$f":"\"INN.\"&EIGNIR!$B$3&C8414","v":{"$error":"#N/A"}},{"$f":"'Sundurliðun Lántaka'!Q16","v":0},".M.SLTVLIN.XX.TRY.XXX.XXXX.SX.XXX.ADR.IS.N.M"]
[{"$f":"\"INN.\"&EIGNIR!$B$3&C8415","v":{"$error":"#N/A"}},{"$f":"'Sundurliðun Lántaka'!Q17","v":0},".M.SLTVLIN.XX.LIF.XXX.XXXX.SX.XXX.ADR.IS.N.M"]
[{"$f":"\"INN.\"&EIGNIR!$B$3&C8416","v":{"$error":"#N/A"}},{"$f":"'Sundurliðun Lántaka'!Q18","v":0},".M.SLTVLIN.XX.OPI.XXX.XXXX.SX.XXX.ADR.IS.N.M"]
[{"$f":"\"INN.\"&EIGNIR!$B$3&C8417","v":{"$error":"#N/A"}},{"$f":"'Sundurliðun Lántaka'!Q19","v":0},".M.SLTVLIN.XX.RSS.XXX.XXXX.SX.XXX.ADR.IS.N.M"]
[{"$f":"\"INN.\"&EIGNIR!$B$3&C8418","v":{"$error":"#N/A"}},{"$f":"'Sundurliðun Lántaka'!Q20","v":0},".M.SLTVLIN.XX.BAJ.XXX.XXXX.SX.XXX.ADR.IS.N.M"]
[{"$f":"\"INN.\"&EIGNIR!$B$3&C8419","v":{"$error":"#N/A"}},{"$f":"'Sundurliðun Lántaka'!Q22","v":0},".M.SLTVLIN.XX.NPH.XXX.XXXX.SX.XXX.ADR.IS.N.M"]
[{"$f":"\"INN.\"&EIGNIR!$B$3&C8420","v":{"$error":"#N/A"}},{"$f":"'Sundurliðun Lántaka'!Q23","v":0},".M.SLTVLER.XX.ERL.XXX.XXXX.SX.XXX.ADR.IS.N.M"]
[{"$f":"\"INN.\"&EIGNIR!$B$3&C8421","v":{"$error":"#N/A"}},{"$f":"'Sundurliðun Lántaka'!Q24","v":0},".M.SLTVLER.XX.ERS.XXX.XXXX.SX.XXX.ADR.IS.N.M"]
[{"$f":"\"INN.\"&EIGNIR!$B$3&C8422","v":{"$error":"#N/A"}},{"$f":"'Sundurliðun Lántaka'!Q25","v":0},".M.SLTVLER.XX.ERI.XXX.XXXX.SX.XXX.ADR.IS.N.M"]
[{"$f":"\"INN.\"&EIGNIR!$B$3&C8423","v":{"$error":"#N/A"}},{"$f":"'Sundurliðun Lántaka'!Q26","v":0},".M.SLTVLER.XX.ERP.XXX.XXXX.SX.XXX.ADR.IS.N.M"]
[{"$f":"\"INN.\"&EIGNIR!$B$3&C8424","v":{"$error":"#N/A"}},{"$f":"'Sundurliðun Lántaka'!Q27","v":0},".M.SLTVLER.XX.ERV.XXX.XXXX.SX.XXX.ADR.IS.N.M"]
[{"$f":"\"INN.\"&EIGNIR!$B$3&C8425","v":{"$error":"#N/A"}},{"$f":"'Sundurliðun Lántaka'!Q28","v":0},".M.SLTVLER.XX.ERF.XXX.XXXX.SX.XXX.ADR.IS.N.M"]
[{"$f":"\"INN.\"&EIGNIR!$B$3&C8426","v":{"$error":"#N/A"}},{"$f":"'Sundurliðun Lántaka'!Q29","v":0},".M.SLTVLER.XX.ERO.XXX.XXXX.SX.XXX.ADR.IS.N.M"]
[{"$f":"\"INN.\"&EIGNIR!$B$3&C8427","v":{"$error":"#N/A"}},{"$f":"'Sundurliðun Lántaka'!Q30","v":0},".M.SLTVLER.XX.ERA.XXX.XXXX.SX.XXX.ADR.IS.N.M"]
[{"$f":"\"INN.\"&EIGNIR!$B$3&C8428","v":{"$error":"#N/A"}},{"$f":"'Sundurliðun Lántaka'!Q57","v":0},".M.SLTBO$$.XX.$$$.XXX.XXXX.SX.XXX.ADR.IS.N.M"]
[{"$f":"\"INN.\"&EIGNIR!$B$3&C8429","v":{"$error":"#N/A"}},{"$f":"'Sundurliðun Lántaka'!Q58","v":0},".M.SLTBOIN.XX.ATV.XXX.XXXX.SX.XXX.ADR.IS.N.M"]
[{"$f":"\"INN.\"&EIGNIR!$B$3&C8430","v":{"$error":"#N/A"}},{"$f":"'Sundurliðun Lántaka'!Q59","v":0},".M.SLTBOIN.XX.FJA.XXX.XXXX.SX.XXX.ADR.IS.N.M"]
[{"$f":"\"INN.\"&EIGNIR!$B$3&C8431","v":{"$error":"#N/A"}},{"$f":"'Sundurliðun Lántaka'!Q60","v":0},".M.SLTBOIN.XX.INN.XXX.XXXX.SX.XXX.ADR.IS.N.M"]
[{"$f":"\"INN.\"&EIGNIR!$B$3&C8432","v":{"$error":"#N/A"}},{"$f":"'Sundurliðun Lántaka'!Q61","v":0},".M.SLTBOIN.XX.SLI.XXX.XXXX.SX.XXX.ADR.IS.N.M"]
[{"$f":"\"INN.\"&EIGNIR!$B$3&C8433","v":{"$error":"#N/A"}},{"$f":"'Sundurliðun Lántaka'!Q62","v":0},".M.SLTBOIN.XX.PEN.XXX.XXXX.SX.XXX.ADR.IS.N.M"]
[{"$f":"\"INN.\"&EIGNIR!$B$3&C8434","v":{"$error":"#N/A"}},{"$f":"'Sundurliðun Lántaka'!Q63","v":0},".M.SLTBOIN.XX.SJO.XXX.XXXX.SX.XXX.ADR.IS.N.M"]
[{"$f":"\"INN.\"&EIGNIR!$B$3&C8435","v":{"$error":"#N/A"}},{"$f":"'Sundurliðun Lántaka'!Q64","v":0},".M.SLTBOIN.XX.YFT.XXX.XXXX.SX.XXX.ADR.IS.N.M"]
[{"$f":"\"INN.\"&EIGNIR!$B$3&C8436","v":{"$error":"#N/A"}},{"$f":"'Sundurliðun Lántaka'!Q65","v":0},".M.SLTBOIN.XX.SLY.XXX.XXXX.SX.XXX.ADR.IS.N.M"]
[{"$f":"\"INN.\"&EIGNIR!$B$3&C8437","v":{"$error":"#N/A"}},{"$f":"'Sundurliðun Lántaka'!Q66","v":0},".M.SLTBOIN.XX.FHL.XXX.XXXX.SX.XXX.ADR.IS.N.M"]
[{"$f":"\"INN.\"&EIGNIR!$B$3&C8438","v":{"$error":"#N/A"}},{"$f":"'Sundurliðun Lántaka'!Q67","v":0},".M.SLTBOIN.XX.INF.XXX.XXXX.SX.XXX.ADR.IS.N.M"]
[{"$f":"\"INN.\"&EIGNIR!$B$3&C8439","v":{"$error":"#N/A"}},{"$f":"'Sundurliðun Lántaka'!Q68","v":0},".M.SLTBOIN.XX.TRY.XXX.XXXX.SX.XXX.ADR.IS.N.M"]
[{"$f":"\"INN.\"&EIGNIR!$B$3&C8440","v":{"$error":"#N/A"}},{"$f":"'Sundurliðun Lántaka'!Q69","v":0},".M.SLTBOIN.XX.LIF.XXX.XXXX.SX.XXX.ADR.IS.N.M"]
[{"$f":"\"INN.\"&EIGNIR!$B$3&C8441","v":{"$error":"#N/A"}},{"$f":"'Sundurliðun Lántaka'!Q70","v":0},".M.SLTBOIN.XX.OPI.XXX.XXXX.SX.XXX.ADR.IS.N.M"]
[{"$f":"\"INN.\"&EIGNIR!$B$3&C8442","v":{"$error":"#N/A"}},{"$f":"'Sundurliðun Lántaka'!Q71","v":0},".M.SLTBOIN.XX.RSS.XXX.XXXX.SX.XXX.ADR.IS.N.M"]
[{"$f":"\"INN.\"&EIGNIR!$B$3&C8443","v":{"$error":"#N/A"}},{"$f":"'Sundurliðun Lántaka'!Q72","v":0},".M.SLTBOIN.XX.BAJ.XXX.XXXX.SX.XXX.ADR.IS.N.M"]
[{"$f":"\"INN.\"&EIGNIR!$B$3&C8444","v":{"$error":"#N/A"}},{"$f":"'Sundurliðun Lántaka'!Q74","v":0},".M.SLTBOIN.XX.NPH.XXX.XXXX.SX.XXX.ADR.IS.N.M"]
[{"$f":"\"INN.\"&EIGNIR!$B$3&C8445","v":{"$error":"#N/A"}},{"$f":"'Sundurliðun Lántaka'!Q75","v":0},".M.SLTBOER.XX.ERL.XXX.XXXX.SX.XXX.ADR.IS.N.M"]
[{"$f":"\"INN.\"&EIGNIR!$B$3&C8446","v":{"$error":"#N/A"}},{"$f":"'Sundurliðun Lántaka'!Q76","v":0},".M.SLTBOER.XX.ERS.XXX.XXXX.SX.XXX.ADR.IS.N.M"]
[{"$f":"\"INN.\"&EIGNIR!$B$3&C8447","v":{"$error":"#N/A"}},{"$f":"'Sundurliðun Lántaka'!Q77","v":0},".M.SLTBOER.XX.ERI.XXX.XXXX.SX.XXX.ADR.IS.N.M"]
[{"$f":"\"INN.\"&EIGNIR!$B$3&C8448","v":{"$error":"#N/A"}},{"$f":"'Sundurliðun Lántaka'!Q78","v":0},".M.SLTBOER.XX.ERP.XXX.XXXX.SX.XXX.ADR.IS.N.M"]
[{"$f":"\"INN.\"&EIGNIR!$B$3&C8449","v":{"$error":"#N/A"}},{"$f":"'Sundurliðun Lántaka'!Q79","v":0},".M.SLTBOER.XX.ERV.XXX.XXXX.SX.XXX.ADR.IS.N.M"]
[{"$f":"\"INN.\"&EIGNIR!$B$3&C8450","v":{"$error":"#N/A"}},{"$f":"'Sundurliðun Lántaka'!Q80","v":0},".M.SLTBOER.XX.ERF.XXX.XXXX.SX.XXX.ADR.IS.N.M"]
[{"$f":"\"INN.\"&EIGNIR!$B$3&C8451","v":{"$error":"#N/A"}},{"$f":"'Sundurliðun Lántaka'!Q81","v":0},".M.SLTBOER.XX.ERO.XXX.XXXX.SX.XXX.ADR.IS.N.M"]
[{"$f":"\"INN.\"&EIGNIR!$B$3&C8452","v":{"$error":"#N/A"}},{"$f":"'Sundurliðun Lántaka'!Q82","v":0},".M.SLTBOER.XX.ERA.XXX.XXXX.SX.XXX.ADR.IS.N.M"]
[{"$f":"\"INN.\"&EIGNIR!$B$3&C8453","v":{"$error":"#N/A"}},{"$f":"'Sundurliðun Verðbréfaútgáfa'!E5","v":0},".M.SVU$$$$.XX.XXX.$$$.XXXX.SX.XXX.XXX.IS.N.M","//Sundurliðun verðbréfaútgáfa"]
[{"$f":"\"INN.\"&EIGNIR!$B$3&C8454","v":{"$error":"#N/A"}},{"$f":"'Sundurliðun Verðbréfaútgáfa'!E6","v":0},".M.SVUIN$$.XX.XXX.$$$.XXXX.SX.XXX.XXX.IS.N.M"]
[{"$f":"\"INN.\"&EIGNIR!$B$3&C8455","v":{"$error":"#N/A"}},{"$f":"'Sundurliðun Verðbréfaútgáfa'!E7","v":0},".M.SVUINOV.XX.XXX.$$$.XXXX.SX.SKT.XXX.IS.N.M"]
[{"$f":"\"INN.\"&EIGNIR!$B$3&C8456","v":{"$error":"#N/A"}},{"$f":"'Sundurliðun Verðbréfaútgáfa'!E8","v":0},".M.SVUINOV.XX.XXX.$$$.XXXX.SX.LAT.XXX.IS.N.M"]
[{"$f":"\"INN.\"&EIGNIR!$B$3&C8457","v":{"$error":"#N/A"}},{"$f":"'Sundurliðun Verðbréfaútgáfa'!E9","v":0},".M.SVUINVE.XX.XXX.$$$.XXXX.SV.XXX.XXX.IS.N.M"]
[{"$f":"\"INN.\"&EIGNIR!$B$3&C8458","v":{"$error":"#N/A"}},{"$f":"'Sundurliðun Verðbréfaútgáfa'!E10","v":0},".M.SVUINVX.XX.XXX.$$$.XXXX.SX.XXX.XXX.IS.N.M"]
[{"$f":"\"INN.\"&EIGNIR!$B$3&C8459","v":{"$error":"#N/A"}},{"$f":"'Sundurliðun Verðbréfaútgáfa'!E11","v":0},".M.SVUER$$.XX.XXX.$$$.XXXX.SX.XXX.XXX.IS.N.M"]
[{"$f":"\"INN.\"&EIGNIR!$B$3&C8460","v":{"$error":"#N/A"}},{"$f":"'Sundurliðun Verðbréfaútgáfa'!E12","v":0},".M.SVUERSB.XX.XXX.$$$.XXXX.SX.SKT.XXX.IS.N.M"]
[{"$f":"\"INN.\"&EIGNIR!$B$3&C8461","v":{"$error":"#N/A"}},{"$f":"'Sundurliðun Verðbréfaútgáfa'!E13","v":0},".M.SVUERSB.XX.XXX.$$$.XXXX.SX.LAT.XXX.IS.N.M"]
[{"$f":"\"INN.\"&EIGNIR!$B$3&C8462","v":{"$error":"#N/A"}},{"$f":"'Sundurliðun Verðbréfaútgáfa'!E14","v":0},".M.SVUERVX.XX.XXX.$$$.XXXX.SX.XXX.XXX.IS.N.M"]
[{"$f":"\"INN.\"&EIGNIR!$B$3&C8463","v":{"$error":"#N/A"}},{"$f":"'Sundurliðun Verðbréfaútgáfa'!F5","v":0},".M.SVU$$$$.XX.XXX.OPI.XXXX.SX.XXX.XXX.IS.N.M"]
[{"$f":"\"INN.\"&EIGNIR!$B$3&C8464","v":{"$error":"#N/A"}},{"$f":"'Sundurliðun Verðbréfaútgáfa'!F6","v":0},".M.SVUIN$$.XX.XXX.OPI.XXXX.SX.XXX.XXX.IS.N.M"]
[{"$f":"\"INN.\"&EIGNIR!$B$3&C8465","v":{"$error":"#N/A"}},{"$f":"'Sundurliðun Verðbréfaútgáfa'!F7","v":0},".M.SVUINOV.XX.XXX.OPI.XXXX.SX.SKT.XXX.IS.N.M"]
[{"$f":"\"INN.\"&EIGNIR!$B$3&C8466","v":{"$error":"#N/A"}},{"$f":"'Sundurliðun Verðbréfaútgáfa'!F8","v":0},".M.SVUINOV.XX.XXX.OPI.XXXX.SX.LAT.XXX.IS.N.M"]
[{"$f":"\"INN.\"&EIGNIR!$B$3&C8467","v":{"$error":"#N/A"}},{"$f":"'Sundurliðun Verðbréfaútgáfa'!F9","v":0},".M.SVUINVE.XX.XXX.OPI.XXXX.SV.XXX.XXX.IS.N.M"]
[{"$f":"\"INN.\"&EIGNIR!$B$3&C8468","v":{"$error":"#N/A"}},{"$f":"'Sundurliðun Verðbréfaútgáfa'!F10","v":0},".M.SVUINVX.XX.XXX.OPI.XXXX.SX.XXX.XXX.IS.N.M"]
[{"$f":"\"INN.\"&EIGNIR!$B$3&C8469","v":{"$error":"#N/A"}},{"$f":"'Sundurliðun Verðbréfaútgáfa'!F11","v":0},".M.SVUER$$.XX.XXX.OPI.XXXX.SX.XXX.XXX.IS.N.M"]
[{"$f":"\"INN.\"&EIGNIR!$B$3&C8470","v":{"$error":"#N/A"}},{"$f":"'Sundurliðun Verðbréfaútgáfa'!F12","v":0},".M.SVUERSB.XX.XXX.OPI.XXXX.SX.SKT.XXX.IS.N.M"]
[{"$f":"\"INN.\"&EIGNIR!$B$3&C8471","v":{"$error":"#N/A"}},{"$f":"'Sundurliðun Verðbréfaútgáfa'!F13","v":0},".M.SVUERSB.XX.XXX.OPI.XXXX.SX.LAT.XXX.IS.N.M"]
[{"$f":"\"INN.\"&EIGNIR!$B$3&C8472","v":{"$error":"#N/A"}},{"$f":"'Sundurliðun Verðbréfaútgáfa'!F14","v":0},".M.SVUERVX.XX.XXX.OPI.XXXX.SX.XXX.XXX.IS.N.M"]
[{"$f":"\"INN.\"&EIGNIR!$B$3&C8473","v":{"$error":"#N/A"}},{"$f":"'Sundurliðun Verðbréfaútgáfa'!G5","v":0},".M.SVU$$$$.XX.XXX.EIF.XXXX.SX.XXX.XXX.IS.N.M"]
[{"$f":"\"INN.\"&EIGNIR!$B$3&C8474","v":{"$error":"#N/A"}},{"$f":"'Sundurliðun Verðbréfaútgáfa'!G6","v":0},".M.SVUIN$$.XX.XXX.EIF.XXXX.SX.XXX.XXX.IS.N.M"]
[{"$f":"\"INN.\"&EIGNIR!$B$3&C8475","v":{"$error":"#N/A"}},{"$f":"'Sundurliðun Verðbréfaútgáfa'!G7","v":0},".M.SVUINOV.XX.XXX.EIF.XXXX.SX.SKT.XXX.IS.N.M"]
[{"$f":"\"INN.\"&EIGNIR!$B$3&C8476","v":{"$error":"#N/A"}},{"$f":"'Sundurliðun Verðbréfaútgáfa'!G8","v":0},".M.SVUINOV.XX.XXX.EIF.XXXX.SX.LAT.XXX.IS.N.M"]
[{"$f":"\"INN.\"&EIGNIR!$B$3&C8477","v":{"$error":"#N/A"}},{"$f":"'Sundurliðun Verðbréfaútgáfa'!G9","v":0},".M.SVUINVE.XX.XXX.EIF.XXXX.SV.XXX.XXX.IS.N.M"]
[{"$f":"\"INN.\"&EIGNIR!$B$3&C8478","v":{"$error":"#N/A"}},{"$f":"'Sundurliðun Verðbréfaútgáfa'!G10","v":0},".M.SVUINVX.XX.XXX.EIF.XXXX.SX.XXX.XXX.IS.N.M"]
[{"$f":"\"INN.\"&EIGNIR!$B$3&C8479","v":{"$error":"#N/A"}},{"$f":"'Sundurliðun Verðbréfaútgáfa'!G11","v":0},".M.SVUER$$.XX.XXX.EIF.XXXX.SX.XXX.XXX.IS.N.M"]
[{"$f":"\"INN.\"&EIGNIR!$B$3&C8480","v":{"$error":"#N/A"}},{"$f":"'Sundurliðun Verðbréfaútgáfa'!G12","v":0},".M.SVUERSB.XX.XXX.EIF.XXXX.SX.SKT.XXX.IS.N.M"]
[{"$f":"\"INN.\"&EIGNIR!$B$3&C8481","v":{"$error":"#N/A"}},{"$f":"'Sundurliðun Verðbréfaútgáfa'!G13","v":0},".M.SVUERSB.XX.XXX.EIF.XXXX.SX.LAT.XXX.IS.N.M"]
[{"$f":"\"INN.\"&EIGNIR!$B$3&C8482","v":{"$error":"#N/A"}},{"$f":"'Sundurliðun Verðbréfaútgáfa'!G14","v":0},".M.SVUERVX.XX.XXX.EIF.XXXX.SX.XXX.XXX.IS.N.M"]
[{"$f":"\"INN.\"&EIGNIR!$B$3&C8483","v":{"$error":"#N/A"}},{"$f":"'Sundurliðun Verðbréfaútgáfa'!H5","v":0},".M.SVU$$$$.XX.XXX.XXX.XXXX.SX.XXX.ISK.IS.N.M","//Sundurliðun verðbréfaútgáfa ISK"]
[{"$f":"\"INN.\"&EIGNIR!$B$3&C8484","v":{"$error":"#N/A"}},{"$f":"'Sundurliðun Verðbréfaútgáfa'!H6","v":0},".M.SVUIN$$.XX.XXX.XXX.XXXX.SX.XXX.ISK.IS.N.M"]
[{"$f":"\"INN.\"&EIGNIR!$B$3&C8485","v":{"$error":"#N/A"}},{"$f":"'Sundurliðun Verðbréfaútgáfa'!H7","v":0},".M.SVUINOV.XX.XXX.XXX.XXXX.SX.SKT.ISK.IS.N.M"]
[{"$f":"\"INN.\"&EIGNIR!$B$3&C8486","v":{"$error":"#N/A"}},{"$f":"'Sundurliðun Verðbréfaútgáfa'!H8","v":0},".M.SVUINOV.XX.XXX.XXX.XXXX.SX.LAT.ISK.IS.N.M"]
[{"$f":"\"INN.\"&EIGNIR!$B$3&C8487","v":{"$error":"#N/A"}},{"$f":"'Sundurliðun Verðbréfaútgáfa'!H9","v":0},".M.SVUINVE.XX.XXX.XXX.XXXX.SV.XXX.ISK.IS.N.M"]
[{"$f":"\"INN.\"&EIGNIR!$B$3&C8488","v":{"$error":"#N/A"}},{"$f":"'Sundurliðun Verðbréfaútgáfa'!H10","v":0},".M.SVUINVX.XX.XXX.XXX.XXXX.SX.XXX.ISK.IS.N.M"]
[{"$f":"\"INN.\"&EIGNIR!$B$3&C8489","v":{"$error":"#N/A"}},{"$f":"'Sundurliðun Verðbréfaútgáfa'!H11","v":0},".M.SVUER$$.XX.XXX.XXX.XXXX.SX.XXX.ISK.IS.N.M"]
[{"$f":"\"INN.\"&EIGNIR!$B$3&C8490","v":{"$error":"#N/A"}},{"$f":"'Sundurliðun Verðbréfaútgáfa'!H12","v":0},".M.SVUERSB.XX.XXX.XXX.XXXX.SX.SKT.ISK.IS.N.M"]
[{"$f":"\"INN.\"&EIGNIR!$B$3&C8491","v":{"$error":"#N/A"}},{"$f":"'Sundurliðun Verðbréfaútgáfa'!H13","v":0},".M.SVUERSB.XX.XXX.XXX.XXXX.SX.LAT.ISK.IS.N.M"]
[{"$f":"\"INN.\"&EIGNIR!$B$3&C8492","v":{"$error":"#N/A"}},{"$f":"'Sundurliðun Verðbréfaútgáfa'!H14","v":0},".M.SVUERVX.XX.XXX.XXX.XXXX.SX.XXX.ISK.IS.N.M"]
[{"$f":"\"INN.\"&EIGNIR!$B$3&C8493","v":{"$error":"#N/A"}},{"$f":"'Sundurliðun Verðbréfaútgáfa'!I5","v":0},".M.SVU$$$$.XX.XXX.XXX.XXXX.SX.XXX.EUR.IS.N.M","//Sundurliðun verðbréfaútgáfa EUR"]
[{"$f":"\"INN.\"&EIGNIR!$B$3&C8494","v":{"$error":"#N/A"}},{"$f":"'Sundurliðun Verðbréfaútgáfa'!I6","v":0},".M.SVUIN$$.XX.XXX.XXX.XXXX.SX.XXX.EUR.IS.N.M"]
[{"$f":"\"INN.\"&EIGNIR!$B$3&C8495","v":{"$error":"#N/A"}},{"$f":"'Sundurliðun Verðbréfaútgáfa'!I7","v":0},".M.SVUINOV.XX.XXX.XXX.XXXX.SX.SKT.EUR.IS.N.M"]
[{"$f":"\"INN.\"&EIGNIR!$B$3&C8496","v":{"$error":"#N/A"}},{"$f":"'Sundurliðun Verðbréfaútgáfa'!I8","v":0},".M.SVUINOV.XX.XXX.XXX.XXXX.SX.LAT.EUR.IS.N.M"]
[{"$f":"\"INN.\"&EIGNIR!$B$3&C8497","v":{"$error":"#N/A"}},{"$f":"'Sundurliðun Verðbréfaútgáfa'!I9","v":0},".M.SVUINVE.XX.XXX.XXX.XXXX.SV.XXX.EUR.IS.N.M"]
[{"$f":"\"INN.\"&EIGNIR!$B$3&C8498","v":{"$error":"#N/A"}},{"$f":"'Sundurliðun Verðbréfaútgáfa'!I10","v":0},".M.SVUINVX.XX.XXX.XXX.XXXX.SX.XXX.EUR.IS.N.M"]
[{"$f":"\"INN.\"&EIGNIR!$B$3&C8499","v":{"$error":"#N/A"}},{"$f":"'Sundurliðun Verðbréfaútgáfa'!I11","v":0},".M.SVUER$$.XX.XXX.XXX.XXXX.SX.XXX.EUR.IS.N.M"]
[{"$f":"\"INN.\"&EIGNIR!$B$3&C8500","v":{"$error":"#N/A"}},{"$f":"'Sundurliðun Verðbréfaútgáfa'!I12","v":0},".M.SVUERSB.XX.XXX.XXX.XXXX.SX.SKT.EUR.IS.N.M"]
[{"$f":"\"INN.\"&EIGNIR!$B$3&C8501","v":{"$error":"#N/A"}},{"$f":"'Sundurliðun Verðbréfaútgáfa'!I13","v":0},".M.SVUERSB.XX.XXX.XXX.XXXX.SX.LAT.EUR.IS.N.M"]
[{"$f":"\"INN.\"&EIGNIR!$B$3&C8502","v":{"$error":"#N/A"}},{"$f":"'Sundurliðun Verðbréfaútgáfa'!I14","v":0},".M.SVUERVX.XX.XXX.XXX.XXXX.SX.XXX.EUR.IS.N.M"]
[{"$f":"\"INN.\"&EIGNIR!$B$3&C8503","v":{"$error":"#N/A"}},{"$f":"'Sundurliðun Verðbréfaútgáfa'!J5","v":0},".M.SVU$$$$.XX.XXX.XXX.XXXX.SX.XXX.USD.IS.N.M"]
[{"$f":"\"INN.\"&EIGNIR!$B$3&C8504","v":{"$error":"#N/A"}},{"$f":"'Sundurliðun Verðbréfaútgáfa'!J6","v":0},".M.SVUIN$$.XX.XXX.XXX.XXXX.SX.XXX.USD.IS.N.M"]
[{"$f":"\"INN.\"&EIGNIR!$B$3&C8505","v":{"$error":"#N/A"}},{"$f":"'Sundurliðun Verðbréfaútgáfa'!J7","v":0},".M.SVUINOV.XX.XXX.XXX.XXXX.SX.SKT.USD.IS.N.M"]
[{"$f":"\"INN.\"&EIGNIR!$B$3&C8506","v":{"$error":"#N/A"}},{"$f":"'Sundurliðun Verðbréfaútgáfa'!J8","v":0},".M.SVUINOV.XX.XXX.XXX.XXXX.SX.LAT.USD.IS.N.M"]
[{"$f":"\"INN.\"&EIGNIR!$B$3&C8507","v":{"$error":"#N/A"}},{"$f":"'Sundurliðun Verðbréfaútgáfa'!J9","v":0},".M.SVUINVE.XX.XXX.XXX.XXXX.SV.XXX.USD.IS.N.M"]
[{"$f":"\"INN.\"&EIGNIR!$B$3&C8508","v":{"$error":"#N/A"}},{"$f":"'Sundurliðun Verðbréfaútgáfa'!J10","v":0},".M.SVUINVX.XX.XXX.XXX.XXXX.SX.XXX.USD.IS.N.M"]
[{"$f":"\"INN.\"&EIGNIR!$B$3&C8509","v":{"$error":"#N/A"}},{"$f":"'Sundurliðun Verðbréfaútgáfa'!J11","v":0},".M.SVUER$$.XX.XXX.XXX.XXXX.SX.XXX.USD.IS.N.M"]
[{"$f":"\"INN.\"&EIGNIR!$B$3&C8510","v":{"$error":"#N/A"}},{"$f":"'Sundurliðun Verðbréfaútgáfa'!J12","v":0},".M.SVUERSB.XX.XXX.XXX.XXXX.SX.SKT.USD.IS.N.M"]
[{"$f":"\"INN.\"&EIGNIR!$B$3&C8511","v":{"$error":"#N/A"}},{"$f":"'Sundurliðun Verðbréfaútgáfa'!J13","v":0},".M.SVUERSB.XX.XXX.XXX.XXXX.SX.LAT.USD.IS.N.M"]
[{"$f":"\"INN.\"&EIGNIR!$B$3&C8512","v":{"$error":"#N/A"}},{"$f":"'Sundurliðun Verðbréfaútgáfa'!J14","v":0},".M.SVUERVX.XX.XXX.XXX.XXXX.SX.XXX.USD.IS.N.M"]
[{"$f":"\"INN.\"&EIGNIR!$B$3&C8513","v":{"$error":"#N/A"}},{"$f":"'Sundurliðun Verðbréfaútgáfa'!K5","v":0},".M.SVU$$$$.XX.XXX.XXX.XXXX.SX.XXX.GBP.IS.N.M"]
[{"$f":"\"INN.\"&EIGNIR!$B$3&C8514","v":{"$error":"#N/A"}},{"$f":"'Sundurliðun Verðbréfaútgáfa'!K6","v":0},".M.SVUIN$$.XX.XXX.XXX.XXXX.SX.XXX.GBP.IS.N.M"]
[{"$f":"\"INN.\"&EIGNIR!$B$3&C8515","v":{"$error":"#N/A"}},{"$f":"'Sundurliðun Verðbréfaútgáfa'!K7","v":0},".M.SVUINOV.XX.XXX.XXX.XXXX.SX.SKT.GBP.IS.N.M"]
[{"$f":"\"INN.\"&EIGNIR!$B$3&C8516","v":{"$error":"#N/A"}},{"$f":"'Sundurliðun Verðbréfaútgáfa'!K8","v":0},".M.SVUINOV.XX.XXX.XXX.XXXX.SX.LAT.GBP.IS.N.M"]
[{"$f":"\"INN.\"&EIGNIR!$B$3&C8517","v":{"$error":"#N/A"}},{"$f":"'Sundurliðun Verðbréfaútgáfa'!K9","v":0},".M.SVUINVE.XX.XXX.XXX.XXXX.SV.XXX.GBP.IS.N.M"]
[{"$f":"\"INN.\"&EIGNIR!$B$3&C8518","v":{"$error":"#N/A"}},{"$f":"'Sundurliðun Verðbréfaútgáfa'!K10","v":0},".M.SVUINVX.XX.XXX.XXX.XXXX.SX.XXX.GBP.IS.N.M"]
[{"$f":"\"INN.\"&EIGNIR!$B$3&C8519","v":{"$error":"#N/A"}},{"$f":"'Sundurliðun Verðbréfaútgáfa'!K11","v":0},".M.SVUER$$.XX.XXX.XXX.XXXX.SX.XXX.GBP.IS.N.M"]
[{"$f":"\"INN.\"&EIGNIR!$B$3&C8520","v":{"$error":"#N/A"}},{"$f":"'Sundurliðun Verðbréfaútgáfa'!K12","v":0},".M.SVUERSB.XX.XXX.XXX.XXXX.SX.SKT.GBP.IS.N.M"]
[{"$f":"\"INN.\"&EIGNIR!$B$3&C8521","v":{"$error":"#N/A"}},{"$f":"'Sundurliðun Verðbréfaútgáfa'!K13","v":0},".M.SVUERSB.XX.XXX.XXX.XXXX.SX.LAT.GBP.IS.N.M"]
[{"$f":"\"INN.\"&EIGNIR!$B$3&C8522","v":{"$error":"#N/A"}},{"$f":"'Sundurliðun Verðbréfaútgáfa'!K14","v":0},".M.SVUERVX.XX.XXX.XXX.XXXX.SX.XXX.GBP.IS.N.M"]
[{"$f":"\"INN.\"&EIGNIR!$B$3&C8523","v":{"$error":"#N/A"}},{"$f":"'Sundurliðun Verðbréfaútgáfa'!L5","v":0},".M.SVU$$$$.XX.XXX.XXX.XXXX.SX.XXX.JPY.IS.N.M","//Sundurliðun verðbréfaútgáfa JPY"]
[{"$f":"\"INN.\"&EIGNIR!$B$3&C8524","v":{"$error":"#N/A"}},{"$f":"'Sundurliðun Verðbréfaútgáfa'!L6","v":0},".M.SVUIN$$.XX.XXX.XXX.XXXX.SX.XXX.JPY.IS.N.M"]
[{"$f":"\"INN.\"&EIGNIR!$B$3&C8525","v":{"$error":"#N/A"}},{"$f":"'Sundurliðun Verðbréfaútgáfa'!L7","v":0},".M.SVUINOV.XX.XXX.XXX.XXXX.SX.SKT.JPY.IS.N.M"]
[{"$f":"\"INN.\"&EIGNIR!$B$3&C8526","v":{"$error":"#N/A"}},{"$f":"'Sundurliðun Verðbréfaútgáfa'!L8","v":0},".M.SVUINOV.XX.XXX.XXX.XXXX.SX.LAT.JPY.IS.N.M"]
[{"$f":"\"INN.\"&EIGNIR!$B$3&C8527","v":{"$error":"#N/A"}},{"$f":"'Sundurliðun Verðbréfaútgáfa'!L9","v":0},".M.SVUINVE.XX.XXX.XXX.XXXX.SV.XXX.JPY.IS.N.M"]
[{"$f":"\"INN.\"&EIGNIR!$B$3&C8528","v":{"$error":"#N/A"}},{"$f":"'Sundurliðun Verðbréfaútgáfa'!L10","v":0},".M.SVUINVX.XX.XXX.XXX.XXXX.SX.XXX.JPY.IS.N.M"]
[{"$f":"\"INN.\"&EIGNIR!$B$3&C8529","v":{"$error":"#N/A"}},{"$f":"'Sundurliðun Verðbréfaútgáfa'!L11","v":0},".M.SVUER$$.XX.XXX.XXX.XXXX.SX.XXX.JPY.IS.N.M"]
[{"$f":"\"INN.\"&EIGNIR!$B$3&C8530","v":{"$error":"#N/A"}},{"$f":"'Sundurliðun Verðbréfaútgáfa'!L12","v":0},".M.SVUERSB.XX.XXX.XXX.XXXX.SX.SKT.JPY.IS.N.M"]
[{"$f":"\"INN.\"&EIGNIR!$B$3&C8531","v":{"$error":"#N/A"}},{"$f":"'Sundurliðun Verðbréfaútgáfa'!L13","v":0},".M.SVUERSB.XX.XXX.XXX.XXXX.SX.LAT.JPY.IS.N.M"]
[{"$f":"\"INN.\"&EIGNIR!$B$3&C8532","v":{"$error":"#N/A"}},{"$f":"'Sundurliðun Verðbréfaútgáfa'!L14","v":0},".M.SVUERVX.XX.XXX.XXX.XXXX.SX.XXX.JPY.IS.N.M"]
[{"$f":"\"INN.\"&EIGNIR!$B$3&C8533","v":{"$error":"#N/A"}},{"$f":"'Sundurliðun Verðbréfaútgáfa'!M5","v":0},".M.SVU$$$$.XX.XXX.XXX.XXXX.SX.XXX.DKK.IS.N.M"]
[{"$f":"\"INN.\"&EIGNIR!$B$3&C8534","v":{"$error":"#N/A"}},{"$f":"'Sundurliðun Verðbréfaútgáfa'!M6","v":0},".M.SVUIN$$.XX.XXX.XXX.XXXX.SX.XXX.DKK.IS.N.M"]
[{"$f":"\"INN.\"&EIGNIR!$B$3&C8535","v":{"$error":"#N/A"}},{"$f":"'Sundurliðun Verðbréfaútgáfa'!M7","v":0},".M.SVUINOV.XX.XXX.XXX.XXXX.SX.SKT.DKK.IS.N.M"]
[{"$f":"\"INN.\"&EIGNIR!$B$3&C8536","v":{"$error":"#N/A"}},{"$f":"'Sundurliðun Verðbréfaútgáfa'!M8","v":0},".M.SVUINOV.XX.XXX.XXX.XXXX.SX.LAT.DKK.IS.N.M"]
[{"$f":"\"INN.\"&EIGNIR!$B$3&C8537","v":{"$error":"#N/A"}},{"$f":"'Sundurliðun Verðbréfaútgáfa'!M9","v":0},".M.SVUINVE.XX.XXX.XXX.XXXX.SV.XXX.DKK.IS.N.M"]
[{"$f":"\"INN.\"&EIGNIR!$B$3&C8538","v":{"$error":"#N/A"}},{"$f":"'Sundurliðun Verðbréfaútgáfa'!M10","v":0},".M.SVUINVX.XX.XXX.XXX.XXXX.SX.XXX.DKK.IS.N.M"]
[{"$f":"\"INN.\"&EIGNIR!$B$3&C8539","v":{"$error":"#N/A"}},{"$f":"'Sundurliðun Verðbréfaútgáfa'!M11","v":0},".M.SVUER$$.XX.XXX.XXX.XXXX.SX.XXX.DKK.IS.N.M"]
[{"$f":"\"INN.\"&EIGNIR!$B$3&C8540","v":{"$error":"#N/A"}},{"$f":"'Sundurliðun Verðbréfaútgáfa'!M12","v":0},".M.SVUERSB.XX.XXX.XXX.XXXX.SX.SKT.DKK.IS.N.M"]
[{"$f":"\"INN.\"&EIGNIR!$B$3&C8541","v":{"$error":"#N/A"}},{"$f":"'Sundurliðun Verðbréfaútgáfa'!M13","v":0},".M.SVUERSB.XX.XXX.XXX.XXXX.SX.LAT.DKK.IS.N.M"]
[{"$f":"\"INN.\"&EIGNIR!$B$3&C8542","v":{"$error":"#N/A"}},{"$f":"'Sundurliðun Verðbréfaútgáfa'!M14","v":0},".M.SVUERVX.XX.XXX.XXX.XXXX.SX.XXX.DKK.IS.N.M"]
[{"$f":"\"INN.\"&EIGNIR!$B$3&C8543","v":{"$error":"#N/A"}},{"$f":"'Sundurliðun Verðbréfaútgáfa'!N5","v":0},".M.SVU$$$$.XX.XXX.XXX.XXXX.SX.XXX.NOK.IS.N.M"]
[{"$f":"\"INN.\"&EIGNIR!$B$3&C8544","v":{"$error":"#N/A"}},{"$f":"'Sundurliðun Verðbréfaútgáfa'!N6","v":0},".M.SVUIN$$.XX.XXX.XXX.XXXX.SX.XXX.NOK.IS.N.M","//Sundurliðun verðbréfaútgáfa NOK"]
[{"$f":"\"INN.\"&EIGNIR!$B$3&C8545","v":{"$error":"#N/A"}},{"$f":"'Sundurliðun Verðbréfaútgáfa'!N7","v":0},".M.SVUINOV.XX.XXX.XXX.XXXX.SX.SKT.NOK.IS.N.M"]
[{"$f":"\"INN.\"&EIGNIR!$B$3&C8546","v":{"$error":"#N/A"}},{"$f":"'Sundurliðun Verðbréfaútgáfa'!N8","v":0},".M.SVUINOV.XX.XXX.XXX.XXXX.SX.LAT.NOK.IS.N.M"]
[{"$f":"\"INN.\"&EIGNIR!$B$3&C8547","v":{"$error":"#N/A"}},{"$f":"'Sundurliðun Verðbréfaútgáfa'!N9","v":0},".M.SVUINVE.XX.XXX.XXX.XXXX.SV.XXX.NOK.IS.N.M"]
[{"$f":"\"INN.\"&EIGNIR!$B$3&C8548","v":{"$error":"#N/A"}},{"$f":"'Sundurliðun Verðbréfaútgáfa'!N10","v":0},".M.SVUINVX.XX.XXX.XXX.XXXX.SX.XXX.NOK.IS.N.M"]
[{"$f":"\"INN.\"&EIGNIR!$B$3&C8549","v":{"$error":"#N/A"}},{"$f":"'Sundurliðun Verðbréfaútgáfa'!N11","v":0},".M.SVUER$$.XX.XXX.XXX.XXXX.SX.XXX.NOK.IS.N.M"]
[{"$f":"\"INN.\"&EIGNIR!$B$3&C8550","v":{"$error":"#N/A"}},{"$f":"'Sundurliðun Verðbréfaútgáfa'!N12","v":0},".M.SVUERSB.XX.XXX.XXX.XXXX.SX.SKT.NOK.IS.N.M"]
[{"$f":"\"INN.\"&EIGNIR!$B$3&C8551","v":{"$error":"#N/A"}},{"$f":"'Sundurliðun Verðbréfaútgáfa'!N13","v":0},".M.SVUERSB.XX.XXX.XXX.XXXX.SX.LAT.NOK.IS.N.M"]
[{"$f":"\"INN.\"&EIGNIR!$B$3&C8552","v":{"$error":"#N/A"}},{"$f":"'Sundurliðun Verðbréfaútgáfa'!N14","v":0},".M.SVUERVX.XX.XXX.XXX.XXXX.SX.XXX.NOK.IS.N.M"]
[{"$f":"\"INN.\"&EIGNIR!$B$3&C8553","v":{"$error":"#N/A"}},{"$f":"'Sundurliðun Verðbréfaútgáfa'!O5","v":0},".M.SVU$$$$.XX.XXX.XXX.XXXX.SX.XXX.SEK.IS.N.M"]
[{"$f":"\"INN.\"&EIGNIR!$B$3&C8554","v":{"$error":"#N/A"}},{"$f":"'Sundurliðun Verðbréfaútgáfa'!O6","v":0},".M.SVUIN$$.XX.XXX.XXX.XXXX.SX.XXX.SEK.IS.N.M"]
[{"$f":"\"INN.\"&EIGNIR!$B$3&C8555","v":{"$error":"#N/A"}},{"$f":"'Sundurliðun Verðbréfaútgáfa'!O7","v":0},".M.SVUINOV.XX.XXX.XXX.XXXX.SX.SKT.SEK.IS.N.M"]
[{"$f":"\"INN.\"&EIGNIR!$B$3&C8556","v":{"$error":"#N/A"}},{"$f":"'Sundurliðun Verðbréfaútgáfa'!O8","v":0},".M.SVUINOV.XX.XXX.XXX.XXXX.SX.LAT.SEK.IS.N.M"]
[{"$f":"\"INN.\"&EIGNIR!$B$3&C8557","v":{"$error":"#N/A"}},{"$f":"'Sundurliðun Verðbréfaútgáfa'!O9","v":0},".M.SVUINVE.XX.XXX.XXX.XXXX.SV.XXX.SEK.IS.N.M"]
[{"$f":"\"INN.\"&EIGNIR!$B$3&C8558","v":{"$error":"#N/A"}},{"$f":"'Sundurliðun Verðbréfaútgáfa'!O10","v":0},".M.SVUINVX.XX.XXX.XXX.XXXX.SX.XXX.SEK.IS.N.M"]
[{"$f":"\"INN.\"&EIGNIR!$B$3&C8559","v":{"$error":"#N/A"}},{"$f":"'Sundurliðun Verðbréfaútgáfa'!O11","v":0},".M.SVUER$$.XX.XXX.XXX.XXXX.SX.XXX.SEK.IS.N.M"]
[{"$f":"\"INN.\"&EIGNIR!$B$3&C8560","v":{"$error":"#N/A"}},{"$f":"'Sundurliðun Verðbréfaútgáfa'!O12","v":0},".M.SVUERSB.XX.XXX.XXX.XXXX.SX.SKT.SEK.IS.N.M"]
[{"$f":"\"INN.\"&EIGNIR!$B$3&C8561","v":{"$error":"#N/A"}},{"$f":"'Sundurliðun Verðbréfaútgáfa'!O13","v":0},".M.SVUERSB.XX.XXX.XXX.XXXX.SX.LAT.SEK.IS.N.M"]
[{"$f":"\"INN.\"&EIGNIR!$B$3&C8562","v":{"$error":"#N/A"}},{"$f":"'Sundurliðun Verðbréfaútgáfa'!O14","v":0},".M.SVUERVX.XX.XXX.XXX.XXXX.SX.XXX.SEK.IS.N.M"]
[{"$f":"\"INN.\"&EIGNIR!$B$3&C8563","v":{"$error":"#N/A"}},{"$f":"'Sundurliðun Verðbréfaútgáfa'!P5","v":0},".M.SVU$$$$.XX.XXX.XXX.XXXX.SX.XXX.CHF.IS.N.M"]
[{"$f":"\"INN.\"&EIGNIR!$B$3&C8564","v":{"$error":"#N/A"}},{"$f":"'Sundurliðun Verðbréfaútgáfa'!P6","v":0},".M.SVUIN$$.XX.XXX.XXX.XXXX.SX.XXX.CHF.IS.N.M"]
[{"$f":"\"INN.\"&EIGNIR!$B$3&C8565","v":{"$error":"#N/A"}},{"$f":"'Sundurliðun Verðbréfaútgáfa'!P7","v":0},".M.SVUINOV.XX.XXX.XXX.XXXX.SX.SKT.CHF.IS.N.M"]
[{"$f":"\"INN.\"&EIGNIR!$B$3&C8566","v":{"$error":"#N/A"}},{"$f":"'Sundurliðun Verðbréfaútgáfa'!P8","v":0},".M.SVUINOV.XX.XXX.XXX.XXXX.SX.LAT.CHF.IS.N.M"]
[{"$f":"\"INN.\"&EIGNIR!$B$3&C8567","v":{"$error":"#N/A"}},{"$f":"'Sundurliðun Verðbréfaútgáfa'!P9","v":0},".M.SVUINVE.XX.XXX.XXX.XXXX.SV.XXX.CHF.IS.N.M"]
[{"$f":"\"INN.\"&EIGNIR!$B$3&C8568","v":{"$error":"#N/A"}},{"$f":"'Sundurliðun Verðbréfaútgáfa'!P10","v":0},".M.SVUINVX.XX.XXX.XXX.XXXX.SX.XXX.CHF.IS.N.M"]
[{"$f":"\"INN.\"&EIGNIR!$B$3&C8569","v":{"$error":"#N/A"}},{"$f":"'Sundurliðun Verðbréfaútgáfa'!P11","v":0},".M.SVUER$$.XX.XXX.XXX.XXXX.SX.XXX.CHF.IS.N.M"]
[{"$f":"\"INN.\"&EIGNIR!$B$3&C8570","v":{"$error":"#N/A"}},{"$f":"'Sundurliðun Verðbréfaútgáfa'!P12","v":0},".M.SVUERSB.XX.XXX.XXX.XXXX.SX.SKT.CHF.IS.N.M"]
[{"$f":"\"INN.\"&EIGNIR!$B$3&C8571","v":{"$error":"#N/A"}},{"$f":"'Sundurliðun Verðbréfaútgáfa'!P13","v":0},".M.SVUERSB.XX.XXX.XXX.XXXX.SX.LAT.CHF.IS.N.M"]
[{"$f":"\"INN.\"&EIGNIR!$B$3&C8572","v":{"$error":"#N/A"}},{"$f":"'Sundurliðun Verðbréfaútgáfa'!P14","v":0},".M.SVUERVX.XX.XXX.XXX.XXXX.SX.XXX.CHF.IS.N.M"]
[{"$f":"\"INN.\"&EIGNIR!$B$3&C8573","v":{"$error":"#N/A"}},{"$f":"'Sundurliðun Verðbréfaútgáfa'!Q5","v":0},".M.SVU$$$$.XX.XXX.XXX.XXXX.SX.XXX.ADR.IS.N.M"]
[{"$f":"\"INN.\"&EIGNIR!$B$3&C8574","v":{"$error":"#N/A"}},{"$f":"'Sundurliðun Verðbréfaútgáfa'!Q6","v":0},".M.SVUIN$$.XX.XXX.XXX.XXXX.SX.XXX.ADR.IS.N.M","//Sundurliðun verðbréfaútgáfa ADR"]
[{"$f":"\"INN.\"&EIGNIR!$B$3&C8575","v":{"$error":"#N/A"}},{"$f":"'Sundurliðun Verðbréfaútgáfa'!Q7","v":0},".M.SVUINOV.XX.XXX.XXX.XXXX.SX.SKT.ADR.IS.N.M"]
[{"$f":"\"INN.\"&EIGNIR!$B$3&C8576","v":{"$error":"#N/A"}},{"$f":"'Sundurliðun Verðbréfaútgáfa'!Q8","v":0},".M.SVUINOV.XX.XXX.XXX.XXXX.SX.LAT.ADR.IS.N.M"]
[{"$f":"\"INN.\"&EIGNIR!$B$3&C8577","v":{"$error":"#N/A"}},{"$f":"'Sundurliðun Verðbréfaútgáfa'!Q9","v":0},".M.SVUINVE.XX.XXX.XXX.XXXX.SV.XXX.ADR.IS.N.M"]
[{"$f":"\"INN.\"&EIGNIR!$B$3&C8578","v":{"$error":"#N/A"}},{"$f":"'Sundurliðun Verðbréfaútgáfa'!Q10","v":0},".M.SVUINVX.XX.XXX.XXX.XXXX.SX.XXX.ADR.IS.N.M"]
[{"$f":"\"INN.\"&EIGNIR!$B$3&C8579","v":{"$error":"#N/A"}},{"$f":"'Sundurliðun Verðbréfaútgáfa'!Q11","v":0},".M.SVUER$$.XX.XXX.XXX.XXXX.SX.XXX.ADR.IS.N.M"]
[{"$f":"\"INN.\"&EIGNIR!$B$3&C8580","v":{"$error":"#N/A"}},{"$f":"'Sundurliðun Verðbréfaútgáfa'!Q12","v":0},".M.SVUERSB.XX.XXX.XXX.XXXX.SX.SKT.ADR.IS.N.M"]
[{"$f":"\"INN.\"&EIGNIR!$B$3&C8581","v":{"$error":"#N/A"}},{"$f":"'Sundurliðun Verðbréfaútgáfa'!Q13","v":0},".M.SVUERSB.XX.XXX.XXX.XXXX.SX.LAT.ADR.IS.N.M"]
[{"$f":"\"INN.\"&EIGNIR!$B$3&C8582","v":{"$error":"#N/A"}},{"$f":"'Sundurliðun Verðbréfaútgáfa'!Q14","v":0},".M.SVUERVX.XX.XXX.XXX.XXXX.SX.XXX.ADR.IS.N.M"]
[{"$f":"\"INN.\"&EIGNIR!$B$3&C8583","v":{"$error":"#N/A"}},{"$f":"'Afleiður og skortstöð - skuldir'!E5","v":0},".M.SAF$$$$.XX.$$$.$$$.XXXX.SX.XXX.XXX.IS.N.M","//Skuldir, sundurliðun afleiður, samtals"]
[{"$f":"\"INN.\"&EIGNIR!$B$3&C8584","v":{"$error":"#N/A"}},{"$f":"'Afleiður og skortstöð - skuldir'!E6","v":0},".M.SAFVA$$.XX.$$$.$$$.XXXX.SX.XXX.XXX.IS.N.M","//Sundurliðun afleiður, valréttir samtals"]
[{"$f":"\"INN.\"&EIGNIR!$B$3&C8585","v":{"$error":"#N/A"}},{"$f":"'Afleiður og skortstöð - skuldir'!E7","v":0},".M.SAFVAIN.XX.ATV.$$$.XXXX.SX.XXX.XXX.IS.N.M"]
[{"$f":"\"INN.\"&EIGNIR!$B$3&C8586","v":{"$error":"#N/A"}},{"$f":"'Afleiður og skortstöð - skuldir'!E8","v":0},".M.SAFVAIN.XX.FJA.$$$.XXXX.SX.XXX.XXX.IS.N.M"]
[{"$f":"\"INN.\"&EIGNIR!$B$3&C8587","v":{"$error":"#N/A"}},{"$f":"'Afleiður og skortstöð - skuldir'!E9","v":0},".M.SAFVAIN.XX.INN.$$$.XXXX.SX.XXX.XXX.IS.N.M"]
[{"$f":"\"INN.\"&EIGNIR!$B$3&C8588","v":{"$error":"#N/A"}},{"$f":"'Afleiður og skortstöð - skuldir'!E10","v":0},".M.SAFVAIN.XX.SLI.$$$.XXXX.SX.XXX.XXX.IS.N.M"]
[{"$f":"\"INN.\"&EIGNIR!$B$3&C8589","v":{"$error":"#N/A"}},{"$f":"'Afleiður og skortstöð - skuldir'!E11","v":0},".M.SAFVAIN.XX.PEN.$$$.XXXX.SX.XXX.XXX.IS.N.M"]
[{"$f":"\"INN.\"&EIGNIR!$B$3&C8590","v":{"$error":"#N/A"}},{"$f":"'Afleiður og skortstöð - skuldir'!E12","v":0},".M.SAFVAIN.XX.SJO.$$$.XXXX.SX.XXX.XXX.IS.N.M"]
[{"$f":"\"INN.\"&EIGNIR!$B$3&C8591","v":{"$error":"#N/A"}},{"$f":"'Afleiður og skortstöð - skuldir'!E13","v":0},".M.SAFVAIN.XX.YFT.$$$.XXXX.SX.XXX.XXX.IS.N.M"]
[{"$f":"\"INN.\"&EIGNIR!$B$3&C8592","v":{"$error":"#N/A"}},{"$f":"'Afleiður og skortstöð - skuldir'!E14","v":0},".M.SAFVAIN.XX.SLY.$$$.XXXX.SX.XXX.XXX.IS.N.M"]
[{"$f":"\"INN.\"&EIGNIR!$B$3&C8593","v":{"$error":"#N/A"}},{"$f":"'Afleiður og skortstöð - skuldir'!E15","v":0},".M.SAFVAIN.XX.FHL.$$$.XXXX.SX.XXX.XXX.IS.N.M"]
[{"$f":"\"INN.\"&EIGNIR!$B$3&C8594","v":{"$error":"#N/A"}},{"$f":"'Afleiður og skortstöð - skuldir'!E16","v":0},".M.SAFVAIN.XX.INF.$$$.XXXX.SX.XXX.XXX.IS.N.M"]
[{"$f":"\"INN.\"&EIGNIR!$B$3&C8595","v":{"$error":"#N/A"}},{"$f":"'Afleiður og skortstöð - skuldir'!E17","v":0},".M.SAFVAIN.XX.TRY.$$$.XXXX.SX.XXX.XXX.IS.N.M"]
[{"$f":"\"INN.\"&EIGNIR!$B$3&C8596","v":{"$error":"#N/A"}},{"$f":"'Afleiður og skortstöð - skuldir'!E18","v":0},".M.SAFVAIN.XX.LIF.$$$.XXXX.SX.XXX.XXX.IS.N.M"]
[{"$f":"\"INN.\"&EIGNIR!$B$3&C8597","v":{"$error":"#N/A"}},{"$f":"'Afleiður og skortstöð - skuldir'!E19","v":0},".M.SAFVAIN.XX.OPI.$$$.XXXX.SX.XXX.XXX.IS.N.M"]
[{"$f":"\"INN.\"&EIGNIR!$B$3&C8598","v":{"$error":"#N/A"}},{"$f":"'Afleiður og skortstöð - skuldir'!E20","v":0},".M.SAFVAIN.XX.RSS.$$$.XXXX.SX.XXX.XXX.IS.N.M"]
[{"$f":"\"INN.\"&EIGNIR!$B$3&C8599","v":{"$error":"#N/A"}},{"$f":"'Afleiður og skortstöð - skuldir'!E21","v":0},".M.SAFVAIN.XX.BAJ.$$$.XXXX.SX.XXX.XXX.IS.N.M"]
[{"$f":"\"INN.\"&EIGNIR!$B$3&C8600","v":{"$error":"#N/A"}},{"$f":"'Afleiður og skortstöð - skuldir'!E22","v":0},".M.SAFVAIN.XX.EIN.$$$.XXXX.SX.XXX.XXX.IS.N.M"]
[{"$f":"\"INN.\"&EIGNIR!$B$3&C8601","v":{"$error":"#N/A"}},{"$f":"'Afleiður og skortstöð - skuldir'!E23","v":0},".M.SAFVAIN.XX.NPH.$$$.XXXX.SX.XXX.XXX.IS.N.M"]
[{"$f":"\"INN.\"&EIGNIR!$B$3&C8602","v":{"$error":"#N/A"}},{"$f":"'Afleiður og skortstöð - skuldir'!E24","v":0},".M.SAFVAER.XX.ERL.$$$.XXXX.SX.XXX.XXX.IS.N.M"]
[{"$f":"\"INN.\"&EIGNIR!$B$3&C8603","v":{"$error":"#N/A"}},{"$f":"'Afleiður og skortstöð - skuldir'!E25","v":0},".M.SAFVAER.XX.ERS.$$$.XXXX.SX.XXX.XXX.IS.N.M"]
[{"$f":"\"INN.\"&EIGNIR!$B$3&C8604","v":{"$error":"#N/A"}},{"$f":"'Afleiður og skortstöð - skuldir'!E26","v":0},".M.SAFVAER.XX.ERI.$$$.XXXX.SX.XXX.XXX.IS.N.M"]
[{"$f":"\"INN.\"&EIGNIR!$B$3&C8605","v":{"$error":"#N/A"}},{"$f":"'Afleiður og skortstöð - skuldir'!E27","v":0},".M.SAFVAER.XX.ERP.$$$.XXXX.SX.XXX.XXX.IS.N.M"]
[{"$f":"\"INN.\"&EIGNIR!$B$3&C8606","v":{"$error":"#N/A"}},{"$f":"'Afleiður og skortstöð - skuldir'!E28","v":0},".M.SAFVAER.XX.ERV.$$$.XXXX.SX.XXX.XXX.IS.N.M"]
[{"$f":"\"INN.\"&EIGNIR!$B$3&C8607","v":{"$error":"#N/A"}},{"$f":"'Afleiður og skortstöð - skuldir'!E29","v":0},".M.SAFVAER.XX.ERF.$$$.XXXX.SX.XXX.XXX.IS.N.M"]
[{"$f":"\"INN.\"&EIGNIR!$B$3&C8608","v":{"$error":"#N/A"}},{"$f":"'Afleiður og skortstöð - skuldir'!E30","v":0},".M.SAFVAER.XX.ERO.$$$.XXXX.SX.XXX.XXX.IS.N.M"]
[{"$f":"\"INN.\"&EIGNIR!$B$3&C8609","v":{"$error":"#N/A"}},{"$f":"'Afleiður og skortstöð - skuldir'!E31","v":0},".M.SAFVAER.XX.ERA.$$$.XXXX.SX.XXX.XXX.IS.N.M"]
[{"$f":"\"INN.\"&EIGNIR!$B$3&C8610","v":{"$error":"#N/A"}},{"$f":"'Afleiður og skortstöð - skuldir'!E32","v":0},".M.SAFFR$$.XX.$$$.$$$.XXXX.SX.XXX.XXX.IS.N.M","//Sundurliðun afleiður, framvirkir samtals"]
[{"$f":"\"INN.\"&EIGNIR!$B$3&C8611","v":{"$error":"#N/A"}},{"$f":"'Afleiður og skortstöð - skuldir'!E33","v":0},".M.SAFFRIN.XX.ATV.$$$.XXXX.SX.XXX.XXX.IS.N.M"]
[{"$f":"\"INN.\"&EIGNIR!$B$3&C8612","v":{"$error":"#N/A"}},{"$f":"'Afleiður og skortstöð - skuldir'!E34","v":0},".M.SAFFRIN.XX.FJA.$$$.XXXX.SX.XXX.XXX.IS.N.M"]
[{"$f":"\"INN.\"&EIGNIR!$B$3&C8613","v":{"$error":"#N/A"}},{"$f":"'Afleiður og skortstöð - skuldir'!E35","v":0},".M.SAFFRIN.XX.INN.$$$.XXXX.SX.XXX.XXX.IS.N.M"]
[{"$f":"\"INN.\"&EIGNIR!$B$3&C8614","v":{"$error":"#N/A"}},{"$f":"'Afleiður og skortstöð - skuldir'!E36","v":0},".M.SAFFRIN.XX.SLI.$$$.XXXX.SX.XXX.XXX.IS.N.M"]
[{"$f":"\"INN.\"&EIGNIR!$B$3&C8615","v":{"$error":"#N/A"}},{"$f":"'Afleiður og skortstöð - skuldir'!E37","v":0},".M.SAFFRIN.XX.PEN.$$$.XXXX.SX.XXX.XXX.IS.N.M"]
[{"$f":"\"INN.\"&EIGNIR!$B$3&C8616","v":{"$error":"#N/A"}},{"$f":"'Afleiður og skortstöð - skuldir'!E38","v":0},".M.SAFFRIN.XX.SJO.$$$.XXXX.SX.XXX.XXX.IS.N.M"]
[{"$f":"\"INN.\"&EIGNIR!$B$3&C8617","v":{"$error":"#N/A"}},{"$f":"'Afleiður og skortstöð - skuldir'!E39","v":0},".M.SAFFRIN.XX.YFT.$$$.XXXX.SX.XXX.XXX.IS.N.M"]
[{"$f":"\"INN.\"&EIGNIR!$B$3&C8618","v":{"$error":"#N/A"}},{"$f":"'Afleiður og skortstöð - skuldir'!E40","v":0},".M.SAFFRIN.XX.SLY.$$$.XXXX.SX.XXX.XXX.IS.N.M"]
[{"$f":"\"INN.\"&EIGNIR!$B$3&C8619","v":{"$error":"#N/A"}},{"$f":"'Afleiður og skortstöð - skuldir'!E41","v":0},".M.SAFFRIN.XX.FHL.$$$.XXXX.SX.XXX.XXX.IS.N.M"]
[{"$f":"\"INN.\"&EIGNIR!$B$3&C8620","v":{"$error":"#N/A"}},{"$f":"'Afleiður og skortstöð - skuldir'!E42","v":0},".M.SAFFRIN.XX.INF.$$$.XXXX.SX.XXX.XXX.IS.N.M"]
[{"$f":"\"INN.\"&EIGNIR!$B$3&C8621","v":{"$error":"#N/A"}},{"$f":"'Afleiður og skortstöð - skuldir'!E43","v":0},".M.SAFFRIN.XX.TRY.$$$.XXXX.SX.XXX.XXX.IS.N.M"]
[{"$f":"\"INN.\"&EIGNIR!$B$3&C8622","v":{"$error":"#N/A"}},{"$f":"'Afleiður og skortstöð - skuldir'!E44","v":0},".M.SAFFRIN.XX.LIF.$$$.XXXX.SX.XXX.XXX.IS.N.M"]
[{"$f":"\"INN.\"&EIGNIR!$B$3&C8623","v":{"$error":"#N/A"}},{"$f":"'Afleiður og skortstöð - skuldir'!E45","v":0},".M.SAFFRIN.XX.OPI.$$$.XXXX.SX.XXX.XXX.IS.N.M"]
[{"$f":"\"INN.\"&EIGNIR!$B$3&C8624","v":{"$error":"#N/A"}},{"$f":"'Afleiður og skortstöð - skuldir'!E46","v":0},".M.SAFFRIN.XX.RSS.$$$.XXXX.SX.XXX.XXX.IS.N.M"]
[{"$f":"\"INN.\"&EIGNIR!$B$3&C8625","v":{"$error":"#N/A"}},{"$f":"'Afleiður og skortstöð - skuldir'!E47","v":0},".M.SAFFRIN.XX.BAJ.$$$.XXXX.SX.XXX.XXX.IS.N.M"]
[{"$f":"\"INN.\"&EIGNIR!$B$3&C8626","v":{"$error":"#N/A"}},{"$f":"'Afleiður og skortstöð - skuldir'!E48","v":0},".M.SAFFRIN.XX.EIN.$$$.XXXX.SX.XXX.XXX.IS.N.M"]
[{"$f":"\"INN.\"&EIGNIR!$B$3&C8627","v":{"$error":"#N/A"}},{"$f":"'Afleiður og skortstöð - skuldir'!E49","v":0},".M.SAFFRIN.XX.NPH.$$$.XXXX.SX.XXX.XXX.IS.N.M"]
[{"$f":"\"INN.\"&EIGNIR!$B$3&C8628","v":{"$error":"#N/A"}},{"$f":"'Afleiður og skortstöð - skuldir'!E50","v":0},".M.SAFFRER.XX.ERL.$$$.XXXX.SX.XXX.XXX.IS.N.M"]
[{"$f":"\"INN.\"&EIGNIR!$B$3&C8629","v":{"$error":"#N/A"}},{"$f":"'Afleiður og skortstöð - skuldir'!E51","v":0},".M.SAFFRER.XX.ERS.$$$.XXXX.SX.XXX.XXX.IS.N.M"]
[{"$f":"\"INN.\"&EIGNIR!$B$3&C8630","v":{"$error":"#N/A"}},{"$f":"'Afleiður og skortstöð - skuldir'!E52","v":0},".M.SAFFRER.XX.ERI.$$$.XXXX.SX.XXX.XXX.IS.N.M"]
[{"$f":"\"INN.\"&EIGNIR!$B$3&C8631","v":{"$error":"#N/A"}},{"$f":"'Afleiður og skortstöð - skuldir'!E53","v":0},".M.SAFFRER.XX.ERP.$$$.XXXX.SX.XXX.XXX.IS.N.M"]
[{"$f":"\"INN.\"&EIGNIR!$B$3&C8632","v":{"$error":"#N/A"}},{"$f":"'Afleiður og skortstöð - skuldir'!E54","v":0},".M.SAFFRER.XX.ERV.$$$.XXXX.SX.XXX.XXX.IS.N.M"]
[{"$f":"\"INN.\"&EIGNIR!$B$3&C8633","v":{"$error":"#N/A"}},{"$f":"'Afleiður og skortstöð - skuldir'!E55","v":0},".M.SAFFRER.XX.ERF.$$$.XXXX.SX.XXX.XXX.IS.N.M"]
[{"$f":"\"INN.\"&EIGNIR!$B$3&C8634","v":{"$error":"#N/A"}},{"$f":"'Afleiður og skortstöð - skuldir'!E56","v":0},".M.SAFFRER.XX.ERO.$$$.XXXX.SX.XXX.XXX.IS.N.M"]
[{"$f":"\"INN.\"&EIGNIR!$B$3&C8635","v":{"$error":"#N/A"}},{"$f":"'Afleiður og skortstöð - skuldir'!E57","v":0},".M.SAFFRER.XX.ERA.$$$.XXXX.SX.XXX.XXX.IS.N.M"]
[{"$f":"\"INN.\"&EIGNIR!$B$3&C8636","v":{"$error":"#N/A"}},{"$f":"'Afleiður og skortstöð - skuldir'!E58","v":0},".M.SAFSK$$.XX.$$$.$$$.XXXX.SX.XXX.XXX.IS.N.M","//Sundurliðun afleiður, skiptasamningar samtals"]
[{"$f":"\"INN.\"&EIGNIR!$B$3&C8637","v":{"$error":"#N/A"}},{"$f":"'Afleiður og skortstöð - skuldir'!E59","v":0},".M.SAFSKIN.XX.ATV.$$$.XXXX.SX.XXX.XXX.IS.N.M"]
[{"$f":"\"INN.\"&EIGNIR!$B$3&C8638","v":{"$error":"#N/A"}},{"$f":"'Afleiður og skortstöð - skuldir'!E60","v":0},".M.SAFSKIN.XX.FJA.$$$.XXXX.SX.XXX.XXX.IS.N.M"]
[{"$f":"\"INN.\"&EIGNIR!$B$3&C8639","v":{"$error":"#N/A"}},{"$f":"'Afleiður og skortstöð - skuldir'!E61","v":0},".M.SAFSKIN.XX.INN.$$$.XXXX.SX.XXX.XXX.IS.N.M"]
[{"$f":"\"INN.\"&EIGNIR!$B$3&C8640","v":{"$error":"#N/A"}},{"$f":"'Afleiður og skortstöð - skuldir'!E62","v":0},".M.SAFSKIN.XX.SLI.$$$.XXXX.SX.XXX.XXX.IS.N.M"]
[{"$f":"\"INN.\"&EIGNIR!$B$3&C8641","v":{"$error":"#N/A"}},{"$f":"'Afleiður og skortstöð - skuldir'!E63","v":0},".M.SAFSKIN.XX.PEN.$$$.XXXX.SX.XXX.XXX.IS.N.M"]
[{"$f":"\"INN.\"&EIGNIR!$B$3&C8642","v":{"$error":"#N/A"}},{"$f":"'Afleiður og skortstöð - skuldir'!E64","v":0},".M.SAFSKIN.XX.SJO.$$$.XXXX.SX.XXX.XXX.IS.N.M"]
[{"$f":"\"INN.\"&EIGNIR!$B$3&C8643","v":{"$error":"#N/A"}},{"$f":"'Afleiður og skortstöð - skuldir'!E65","v":0},".M.SAFSKIN.XX.YFT.$$$.XXXX.SX.XXX.XXX.IS.N.M"]
[{"$f":"\"INN.\"&EIGNIR!$B$3&C8644","v":{"$error":"#N/A"}},{"$f":"'Afleiður og skortstöð - skuldir'!E66","v":0},".M.SAFSKIN.XX.SLY.$$$.XXXX.SX.XXX.XXX.IS.N.M"]
[{"$f":"\"INN.\"&EIGNIR!$B$3&C8645","v":{"$error":"#N/A"}},{"$f":"'Afleiður og skortstöð - skuldir'!E67","v":0},".M.SAFSKIN.XX.FHL.$$$.XXXX.SX.XXX.XXX.IS.N.M"]
[{"$f":"\"INN.\"&EIGNIR!$B$3&C8646","v":{"$error":"#N/A"}},{"$f":"'Afleiður og skortstöð - skuldir'!E68","v":0},".M.SAFSKIN.XX.INF.$$$.XXXX.SX.XXX.XXX.IS.N.M"]
[{"$f":"\"INN.\"&EIGNIR!$B$3&C8647","v":{"$error":"#N/A"}},{"$f":"'Afleiður og skortstöð - skuldir'!E69","v":0},".M.SAFSKIN.XX.TRY.$$$.XXXX.SX.XXX.XXX.IS.N.M"]
[{"$f":"\"INN.\"&EIGNIR!$B$3&C8648","v":{"$error":"#N/A"}},{"$f":"'Afleiður og skortstöð - skuldir'!E70","v":0},".M.SAFSKIN.XX.LIF.$$$.XXXX.SX.XXX.XXX.IS.N.M"]
[{"$f":"\"INN.\"&EIGNIR!$B$3&C8649","v":{"$error":"#N/A"}},{"$f":"'Afleiður og skortstöð - skuldir'!E71","v":0},".M.SAFSKIN.XX.OPI.$$$.XXXX.SX.XXX.XXX.IS.N.M"]
[{"$f":"\"INN.\"&EIGNIR!$B$3&C8650","v":{"$error":"#N/A"}},{"$f":"'Afleiður og skortstöð - skuldir'!E72","v":0},".M.SAFSKIN.XX.RSS.$$$.XXXX.SX.XXX.XXX.IS.N.M"]
[{"$f":"\"INN.\"&EIGNIR!$B$3&C8651","v":{"$error":"#N/A"}},{"$f":"'Afleiður og skortstöð - skuldir'!E73","v":0},".M.SAFSKIN.XX.BAJ.$$$.XXXX.SX.XXX.XXX.IS.N.M"]
[{"$f":"\"INN.\"&EIGNIR!$B$3&C8652","v":{"$error":"#N/A"}},{"$f":"'Afleiður og skortstöð - skuldir'!E74","v":0},".M.SAFSKIN.XX.EIN.$$$.XXXX.SX.XXX.XXX.IS.N.M"]
[{"$f":"\"INN.\"&EIGNIR!$B$3&C8653","v":{"$error":"#N/A"}},{"$f":"'Afleiður og skortstöð - skuldir'!E75","v":0},".M.SAFSKIN.XX.NPH.$$$.XXXX.SX.XXX.XXX.IS.N.M"]
[{"$f":"\"INN.\"&EIGNIR!$B$3&C8654","v":{"$error":"#N/A"}},{"$f":"'Afleiður og skortstöð - skuldir'!E76","v":0},".M.SAFSKER.XX.ERL.$$$.XXXX.SX.XXX.XXX.IS.N.M"]
[{"$f":"\"INN.\"&EIGNIR!$B$3&C8655","v":{"$error":"#N/A"}},{"$f":"'Afleiður og skortstöð - skuldir'!E77","v":0},".M.SAFSKER.XX.ERS.$$$.XXXX.SX.XXX.XXX.IS.N.M"]
[{"$f":"\"INN.\"&EIGNIR!$B$3&C8656","v":{"$error":"#N/A"}},{"$f":"'Afleiður og skortstöð - skuldir'!E78","v":0},".M.SAFSKER.XX.ERI.$$$.XXXX.SX.XXX.XXX.IS.N.M"]
[{"$f":"\"INN.\"&EIGNIR!$B$3&C8657","v":{"$error":"#N/A"}},{"$f":"'Afleiður og skortstöð - skuldir'!E79","v":0},".M.SAFSKER.XX.ERP.$$$.XXXX.SX.XXX.XXX.IS.N.M"]
[{"$f":"\"INN.\"&EIGNIR!$B$3&C8658","v":{"$error":"#N/A"}},{"$f":"'Afleiður og skortstöð - skuldir'!E80","v":0},".M.SAFSKER.XX.ERV.$$$.XXXX.SX.XXX.XXX.IS.N.M"]
[{"$f":"\"INN.\"&EIGNIR!$B$3&C8659","v":{"$error":"#N/A"}},{"$f":"'Afleiður og skortstöð - skuldir'!E81","v":0},".M.SAFSKER.XX.ERF.$$$.XXXX.SX.XXX.XXX.IS.N.M"]
[{"$f":"\"INN.\"&EIGNIR!$B$3&C8660","v":{"$error":"#N/A"}},{"$f":"'Afleiður og skortstöð - skuldir'!E82","v":0},".M.SAFSKER.XX.ERO.$$$.XXXX.SX.XXX.XXX.IS.N.M"]
[{"$f":"\"INN.\"&EIGNIR!$B$3&C8661","v":{"$error":"#N/A"}},{"$f":"'Afleiður og skortstöð - skuldir'!E83","v":0},".M.SAFSKER.XX.ERA.$$$.XXXX.SX.XXX.XXX.IS.N.M"]
[{"$f":"\"INN.\"&EIGNIR!$B$3&C8662","v":{"$error":"#N/A"}},{"$f":"'Afleiður og skortstöð - skuldir'!E84","v":0},".M.SAFSS$$.XX.$$$.$$$.XXXX.SX.XXX.XXX.IS.N.M"]
[{"$f":"\"INN.\"&EIGNIR!$B$3&C8663","v":{"$error":"#N/A"}},{"$f":"'Afleiður og skortstöð - skuldir'!E85","v":0},".M.SAFSSIN.XX.ATV.$$$.XXXX.SX.XXX.XXX.IS.N.M"]
[{"$f":"\"INN.\"&EIGNIR!$B$3&C8664","v":{"$error":"#N/A"}},{"$f":"'Afleiður og skortstöð - skuldir'!E86","v":0},".M.SAFSSIN.XX.FJA.$$$.XXXX.SX.XXX.XXX.IS.N.M"]
[{"$f":"\"INN.\"&EIGNIR!$B$3&C8665","v":{"$error":"#N/A"}},{"$f":"'Afleiður og skortstöð - skuldir'!E87","v":0},".M.SAFSSIN.XX.INN.$$$.XXXX.SX.XXX.XXX.IS.N.M"]
[{"$f":"\"INN.\"&EIGNIR!$B$3&C8666","v":{"$error":"#N/A"}},{"$f":"'Afleiður og skortstöð - skuldir'!E88","v":0},".M.SAFSSIN.XX.SLI.$$$.XXXX.SX.XXX.XXX.IS.N.M"]
[{"$f":"\"INN.\"&EIGNIR!$B$3&C8667","v":{"$error":"#N/A"}},{"$f":"'Afleiður og skortstöð - skuldir'!E89","v":0},".M.SAFSSIN.XX.PEN.$$$.XXXX.SX.XXX.XXX.IS.N.M"]
[{"$f":"\"INN.\"&EIGNIR!$B$3&C8668","v":{"$error":"#N/A"}},{"$f":"'Afleiður og skortstöð - skuldir'!E90","v":0},".M.SAFSSIN.XX.SJO.$$$.XXXX.SX.XXX.XXX.IS.N.M"]
[{"$f":"\"INN.\"&EIGNIR!$B$3&C8669","v":{"$error":"#N/A"}},{"$f":"'Afleiður og skortstöð - skuldir'!E91","v":0},".M.SAFSSIN.XX.YFT.$$$.XXXX.SX.XXX.XXX.IS.N.M"]
[{"$f":"\"INN.\"&EIGNIR!$B$3&C8670","v":{"$error":"#N/A"}},{"$f":"'Afleiður og skortstöð - skuldir'!E92","v":0},".M.SAFSSIN.XX.SLY.$$$.XXXX.SX.XXX.XXX.IS.N.M"]
[{"$f":"\"INN.\"&EIGNIR!$B$3&C8671","v":{"$error":"#N/A"}},{"$f":"'Afleiður og skortstöð - skuldir'!E93","v":0},".M.SAFSSIN.XX.FHL.$$$.XXXX.SX.XXX.XXX.IS.N.M"]
[{"$f":"\"INN.\"&EIGNIR!$B$3&C8672","v":{"$error":"#N/A"}},{"$f":"'Afleiður og skortstöð - skuldir'!E94","v":0},".M.SAFSSIN.XX.INF.$$$.XXXX.SX.XXX.XXX.IS.N.M"]
[{"$f":"\"INN.\"&EIGNIR!$B$3&C8673","v":{"$error":"#N/A"}},{"$f":"'Afleiður og skortstöð - skuldir'!E95","v":0},".M.SAFSSIN.XX.TRY.$$$.XXXX.SX.XXX.XXX.IS.N.M"]
[{"$f":"\"INN.\"&EIGNIR!$B$3&C8674","v":{"$error":"#N/A"}},{"$f":"'Afleiður og skortstöð - skuldir'!E96","v":0},".M.SAFSSIN.XX.LIF.$$$.XXXX.SX.XXX.XXX.IS.N.M"]
[{"$f":"\"INN.\"&EIGNIR!$B$3&C8675","v":{"$error":"#N/A"}},{"$f":"'Afleiður og skortstöð - skuldir'!E97","v":0},".M.SAFSSIN.XX.OPI.$$$.XXXX.SX.XXX.XXX.IS.N.M"]
[{"$f":"\"INN.\"&EIGNIR!$B$3&C8676","v":{"$error":"#N/A"}},{"$f":"'Afleiður og skortstöð - skuldir'!E98","v":0},".M.SAFSSIN.XX.RSS.$$$.XXXX.SX.XXX.XXX.IS.N.M"]
[{"$f":"\"INN.\"&EIGNIR!$B$3&C8677","v":{"$error":"#N/A"}},{"$f":"'Afleiður og skortstöð - skuldir'!E99","v":0},".M.SAFSSIN.XX.BAJ.$$$.XXXX.SX.XXX.XXX.IS.N.M"]
[{"$f":"\"INN.\"&EIGNIR!$B$3&C8678","v":{"$error":"#N/A"}},{"$f":"'Afleiður og skortstöð - skuldir'!E100","v":0},".M.SAFSSIN.XX.EIN.$$$.XXXX.SX.XXX.XXX.IS.N.M"]
[{"$f":"\"INN.\"&EIGNIR!$B$3&C8679","v":{"$error":"#N/A"}},{"$f":"'Afleiður og skortstöð - skuldir'!E101","v":0},".M.SAFSSIN.XX.NPH.$$$.XXXX.SX.XXX.XXX.IS.N.M"]
[{"$f":"\"INN.\"&EIGNIR!$B$3&C8680","v":{"$error":"#N/A"}},{"$f":"'Afleiður og skortstöð - skuldir'!E102","v":0},".M.SAFSSER.XX.ERL.$$$.XXXX.SX.XXX.XXX.IS.N.M"]
[{"$f":"\"INN.\"&EIGNIR!$B$3&C8681","v":{"$error":"#N/A"}},{"$f":"'Afleiður og skortstöð - skuldir'!E103","v":0},".M.SAFSSER.XX.ERS.$$$.XXXX.SX.XXX.XXX.IS.N.M"]
[{"$f":"\"INN.\"&EIGNIR!$B$3&C8682","v":{"$error":"#N/A"}},{"$f":"'Afleiður og skortstöð - skuldir'!E104","v":0},".M.SAFSSER.XX.ERI.$$$.XXXX.SX.XXX.XXX.IS.N.M"]
[{"$f":"\"INN.\"&EIGNIR!$B$3&C8683","v":{"$error":"#N/A"}},{"$f":"'Afleiður og skortstöð - skuldir'!E105","v":0},".M.SAFSSER.XX.ERP.$$$.XXXX.SX.XXX.XXX.IS.N.M"]
[{"$f":"\"INN.\"&EIGNIR!$B$3&C8684","v":{"$error":"#N/A"}},{"$f":"'Afleiður og skortstöð - skuldir'!E106","v":0},".M.SAFSSER.XX.ERV.$$$.XXXX.SX.XXX.XXX.IS.N.M"]
[{"$f":"\"INN.\"&EIGNIR!$B$3&C8685","v":{"$error":"#N/A"}},{"$f":"'Afleiður og skortstöð - skuldir'!E107","v":0},".M.SAFSSER.XX.ERF.$$$.XXXX.SX.XXX.XXX.IS.N.M"]
[{"$f":"\"INN.\"&EIGNIR!$B$3&C8686","v":{"$error":"#N/A"}},{"$f":"'Afleiður og skortstöð - skuldir'!E108","v":0},".M.SAFSSER.XX.ERO.$$$.XXXX.SX.XXX.XXX.IS.N.M"]
[{"$f":"\"INN.\"&EIGNIR!$B$3&C8687","v":{"$error":"#N/A"}},{"$f":"'Afleiður og skortstöð - skuldir'!E109","v":0},".M.SAFSSER.XX.ERA.$$$.XXXX.SX.XXX.XXX.IS.N.M"]
[{"$f":"\"INN.\"&EIGNIR!$B$3&C8688","v":{"$error":"#N/A"}},{"$f":"'Afleiður og skortstöð - skuldir'!E110","v":0},".M.SAFSSEH.XX.ERL.$$$.XXXX.SX.XXX.XXX.IS.N.M"]
[{"$f":"\"INN.\"&EIGNIR!$B$3&C8689","v":{"$error":"#N/A"}},{"$f":"'Afleiður og skortstöð - skuldir'!E111","v":0},".M.SAFSSES.XX.ERL.$$$.XXXX.SX.SKT.XXX.IS.N.M"]
[{"$f":"\"INN.\"&EIGNIR!$B$3&C8690","v":{"$error":"#N/A"}},{"$f":"'Afleiður og skortstöð - skuldir'!E112","v":0},".M.SAFSSES.XX.ERL.$$$.XXXX.SX.LAT.XXX.IS.N.M"]
[{"$f":"\"INN.\"&EIGNIR!$B$3&C8691","v":{"$error":"#N/A"}},{"$f":"'Afleiður og skortstöð - skuldir'!F7","v":0},".M.SAFVAIN.XX.ATV.OPI.XXXX.SX.XXX.XXX.IS.N.M","//Sundurliðun afleiður, opinber fyrirtæki"]
[{"$f":"\"INN.\"&EIGNIR!$B$3&C8692","v":{"$error":"#N/A"}},{"$f":"'Afleiður og skortstöð - skuldir'!F8","v":0},".M.SAFVAIN.XX.FJA.OPI.XXXX.SX.XXX.XXX.IS.N.M"]
[{"$f":"\"INN.\"&EIGNIR!$B$3&C8693","v":{"$error":"#N/A"}},{"$f":"'Afleiður og skortstöð - skuldir'!F9","v":0},".M.SAFVAIN.XX.INN.OPI.XXXX.SX.XXX.XXX.IS.N.M"]
[{"$f":"\"INN.\"&EIGNIR!$B$3&C8694","v":{"$error":"#N/A"}},{"$f":"'Afleiður og skortstöð - skuldir'!F10","v":0},".M.SAFVAIN.XX.SLI.OPI.XXXX.SX.XXX.XXX.IS.N.M"]
[{"$f":"\"INN.\"&EIGNIR!$B$3&C8695","v":{"$error":"#N/A"}},{"$f":"'Afleiður og skortstöð - skuldir'!F11","v":0},".M.SAFVAIN.XX.PEN.OPI.XXXX.SX.XXX.XXX.IS.N.M"]
[{"$f":"\"INN.\"&EIGNIR!$B$3&C8696","v":{"$error":"#N/A"}},{"$f":"'Afleiður og skortstöð - skuldir'!F12","v":0},".M.SAFVAIN.XX.SJO.OPI.XXXX.SX.XXX.XXX.IS.N.M"]
[{"$f":"\"INN.\"&EIGNIR!$B$3&C8697","v":{"$error":"#N/A"}},{"$f":"'Afleiður og skortstöð - skuldir'!F13","v":0},".M.SAFVAIN.XX.YFT.OPI.XXXX.SX.XXX.XXX.IS.N.M"]
[{"$f":"\"INN.\"&EIGNIR!$B$3&C8698","v":{"$error":"#N/A"}},{"$f":"'Afleiður og skortstöð - skuldir'!F14","v":0},".M.SAFVAIN.XX.SLY.OPI.XXXX.SX.XXX.XXX.IS.N.M"]
[{"$f":"\"INN.\"&EIGNIR!$B$3&C8699","v":{"$error":"#N/A"}},{"$f":"'Afleiður og skortstöð - skuldir'!F15","v":0},".M.SAFVAIN.XX.FHL.OPI.XXXX.SX.XXX.XXX.IS.N.M"]
[{"$f":"\"INN.\"&EIGNIR!$B$3&C8700","v":{"$error":"#N/A"}},{"$f":"'Afleiður og skortstöð - skuldir'!F16","v":0},".M.SAFVAIN.XX.INF.OPI.XXXX.SX.XXX.XXX.IS.N.M"]
[{"$f":"\"INN.\"&EIGNIR!$B$3&C8701","v":{"$error":"#N/A"}},{"$f":"'Afleiður og skortstöð - skuldir'!F17","v":0},".M.SAFVAIN.XX.TRY.OPI.XXXX.SX.XXX.XXX.IS.N.M"]
[{"$f":"\"INN.\"&EIGNIR!$B$3&C8702","v":{"$error":"#N/A"}},{"$f":"'Afleiður og skortstöð - skuldir'!F18","v":0},".M.SAFVAIN.XX.LIF.OPI.XXXX.SX.XXX.XXX.IS.N.M"]
[{"$f":"\"INN.\"&EIGNIR!$B$3&C8703","v":{"$error":"#N/A"}},{"$f":"'Afleiður og skortstöð - skuldir'!F33","v":0},".M.SAFFRIN.XX.ATV.OPI.XXXX.SX.XXX.XXX.IS.N.M"]
[{"$f":"\"INN.\"&EIGNIR!$B$3&C8704","v":{"$error":"#N/A"}},{"$f":"'Afleiður og skortstöð - skuldir'!F34","v":0},".M.SAFFRIN.XX.FJA.OPI.XXXX.SX.XXX.XXX.IS.N.M"]
[{"$f":"\"INN.\"&EIGNIR!$B$3&C8705","v":{"$error":"#N/A"}},{"$f":"'Afleiður og skortstöð - skuldir'!F35","v":0},".M.SAFFRIN.XX.INN.OPI.XXXX.SX.XXX.XXX.IS.N.M"]
[{"$f":"\"INN.\"&EIGNIR!$B$3&C8706","v":{"$error":"#N/A"}},{"$f":"'Afleiður og skortstöð - skuldir'!F36","v":0},".M.SAFFRIN.XX.SLI.OPI.XXXX.SX.XXX.XXX.IS.N.M"]
[{"$f":"\"INN.\"&EIGNIR!$B$3&C8707","v":{"$error":"#N/A"}},{"$f":"'Afleiður og skortstöð - skuldir'!F37","v":0},".M.SAFFRIN.XX.PEN.OPI.XXXX.SX.XXX.XXX.IS.N.M"]
[{"$f":"\"INN.\"&EIGNIR!$B$3&C8708","v":{"$error":"#N/A"}},{"$f":"'Afleiður og skortstöð - skuldir'!F38","v":0},".M.SAFFRIN.XX.SJO.OPI.XXXX.SX.XXX.XXX.IS.N.M"]
[{"$f":"\"INN.\"&EIGNIR!$B$3&C8709","v":{"$error":"#N/A"}},{"$f":"'Afleiður og skortstöð - skuldir'!F39","v":0},".M.SAFFRIN.XX.YFT.OPI.XXXX.SX.XXX.XXX.IS.N.M"]
[{"$f":"\"INN.\"&EIGNIR!$B$3&C8710","v":{"$error":"#N/A"}},{"$f":"'Afleiður og skortstöð - skuldir'!F40","v":0},".M.SAFFRIN.XX.SLY.OPI.XXXX.SX.XXX.XXX.IS.N.M"]
[{"$f":"\"INN.\"&EIGNIR!$B$3&C8711","v":{"$error":"#N/A"}},{"$f":"'Afleiður og skortstöð - skuldir'!F41","v":0},".M.SAFFRIN.XX.FHL.OPI.XXXX.SX.XXX.XXX.IS.N.M"]
[{"$f":"\"INN.\"&EIGNIR!$B$3&C8712","v":{"$error":"#N/A"}},{"$f":"'Afleiður og skortstöð - skuldir'!F42","v":0},".M.SAFFRIN.XX.INF.OPI.XXXX.SX.XXX.XXX.IS.N.M"]
[{"$f":"\"INN.\"&EIGNIR!$B$3&C8713","v":{"$error":"#N/A"}},{"$f":"'Afleiður og skortstöð - skuldir'!F43","v":0},".M.SAFFRIN.XX.TRY.OPI.XXXX.SX.XXX.XXX.IS.N.M"]
[{"$f":"\"INN.\"&EIGNIR!$B$3&C8714","v":{"$error":"#N/A"}},{"$f":"'Afleiður og skortstöð - skuldir'!F44","v":0},".M.SAFFRIN.XX.LIF.OPI.XXXX.SX.XXX.XXX.IS.N.M"]
[{"$f":"\"INN.\"&EIGNIR!$B$3&C8715","v":{"$error":"#N/A"}},{"$f":"'Afleiður og skortstöð - skuldir'!F59","v":0},".M.SAFSKIN.XX.ATV.OPI.XXXX.SX.XXX.XXX.IS.N.M"]
[{"$f":"\"INN.\"&EIGNIR!$B$3&C8716","v":{"$error":"#N/A"}},{"$f":"'Afleiður og skortstöð - skuldir'!F60","v":0},".M.SAFSKIN.XX.FJA.OPI.XXXX.SX.XXX.XXX.IS.N.M"]
[{"$f":"\"INN.\"&EIGNIR!$B$3&C8717","v":{"$error":"#N/A"}},{"$f":"'Afleiður og skortstöð - skuldir'!F61","v":0},".M.SAFSKIN.XX.INN.OPI.XXXX.SX.XXX.XXX.IS.N.M"]
[{"$f":"\"INN.\"&EIGNIR!$B$3&C8718","v":{"$error":"#N/A"}},{"$f":"'Afleiður og skortstöð - skuldir'!F62","v":0},".M.SAFSKIN.XX.SLI.OPI.XXXX.SX.XXX.XXX.IS.N.M"]
[{"$f":"\"INN.\"&EIGNIR!$B$3&C8719","v":{"$error":"#N/A"}},{"$f":"'Afleiður og skortstöð - skuldir'!F63","v":0},".M.SAFSKIN.XX.PEN.OPI.XXXX.SX.XXX.XXX.IS.N.M"]
[{"$f":"\"INN.\"&EIGNIR!$B$3&C8720","v":{"$error":"#N/A"}},{"$f":"'Afleiður og skortstöð - skuldir'!F64","v":0},".M.SAFSKIN.XX.SJO.OPI.XXXX.SX.XXX.XXX.IS.N.M"]
[{"$f":"\"INN.\"&EIGNIR!$B$3&C8721","v":{"$error":"#N/A"}},{"$f":"'Afleiður og skortstöð - skuldir'!F65","v":0},".M.SAFSKIN.XX.YFT.OPI.XXXX.SX.XXX.XXX.IS.N.M"]
[{"$f":"\"INN.\"&EIGNIR!$B$3&C8722","v":{"$error":"#N/A"}},{"$f":"'Afleiður og skortstöð - skuldir'!F66","v":0},".M.SAFSKIN.XX.SLY.OPI.XXXX.SX.XXX.XXX.IS.N.M"]
[{"$f":"\"INN.\"&EIGNIR!$B$3&C8723","v":{"$error":"#N/A"}},{"$f":"'Afleiður og skortstöð - skuldir'!F67","v":0},".M.SAFSKIN.XX.FHL.OPI.XXXX.SX.XXX.XXX.IS.N.M"]
[{"$f":"\"INN.\"&EIGNIR!$B$3&C8724","v":{"$error":"#N/A"}},{"$f":"'Afleiður og skortstöð - skuldir'!F68","v":0},".M.SAFSKIN.XX.INF.OPI.XXXX.SX.XXX.XXX.IS.N.M"]
[{"$f":"\"INN.\"&EIGNIR!$B$3&C8725","v":{"$error":"#N/A"}},{"$f":"'Afleiður og skortstöð - skuldir'!F69","v":0},".M.SAFSKIN.XX.TRY.OPI.XXXX.SX.XXX.XXX.IS.N.M"]
[{"$f":"\"INN.\"&EIGNIR!$B$3&C8726","v":{"$error":"#N/A"}},{"$f":"'Afleiður og skortstöð - skuldir'!F70","v":0},".M.SAFSKIN.XX.LIF.OPI.XXXX.SX.XXX.XXX.IS.N.M"]
[{"$f":"\"INN.\"&EIGNIR!$B$3&C8727","v":{"$error":"#N/A"}},{"$f":"'Afleiður og skortstöð - skuldir'!F85","v":0},".M.SAFSSIN.XX.ATV.OPI.XXXX.SX.XXX.XXX.IS.N.M"]
[{"$f":"\"INN.\"&EIGNIR!$B$3&C8728","v":{"$error":"#N/A"}},{"$f":"'Afleiður og skortstöð - skuldir'!F86","v":0},".M.SAFSSIN.XX.FJA.OPI.XXXX.SX.XXX.XXX.IS.N.M"]
[{"$f":"\"INN.\"&EIGNIR!$B$3&C8729","v":{"$error":"#N/A"}},{"$f":"'Afleiður og skortstöð - skuldir'!F87","v":0},".M.SAFSSIN.XX.INN.OPI.XXXX.SX.XXX.XXX.IS.N.M"]
[{"$f":"\"INN.\"&EIGNIR!$B$3&C8730","v":{"$error":"#N/A"}},{"$f":"'Afleiður og skortstöð - skuldir'!F88","v":0},".M.SAFSSIN.XX.SLI.OPI.XXXX.SX.XXX.XXX.IS.N.M"]
[{"$f":"\"INN.\"&EIGNIR!$B$3&C8731","v":{"$error":"#N/A"}},{"$f":"'Afleiður og skortstöð - skuldir'!F89","v":0},".M.SAFSSIN.XX.PEN.OPI.XXXX.SX.XXX.XXX.IS.N.M"]
[{"$f":"\"INN.\"&EIGNIR!$B$3&C8732","v":{"$error":"#N/A"}},{"$f":"'Afleiður og skortstöð - skuldir'!F90","v":0},".M.SAFSSIN.XX.SJO.OPI.XXXX.SX.XXX.XXX.IS.N.M"]
[{"$f":"\"INN.\"&EIGNIR!$B$3&C8733","v":{"$error":"#N/A"}},{"$f":"'Afleiður og skortstöð - skuldir'!F91","v":0},".M.SAFSSIN.XX.YFT.OPI.XXXX.SX.XXX.XXX.IS.N.M"]
[{"$f":"\"INN.\"&EIGNIR!$B$3&C8734","v":{"$error":"#N/A"}},{"$f":"'Afleiður og skortstöð - skuldir'!F92","v":0},".M.SAFSSIN.XX.SLY.OPI.XXXX.SX.XXX.XXX.IS.N.M"]
[{"$f":"\"INN.\"&EIGNIR!$B$3&C8735","v":{"$error":"#N/A"}},{"$f":"'Afleiður og skortstöð - skuldir'!F93","v":0},".M.SAFSSIN.XX.FHL.OPI.XXXX.SX.XXX.XXX.IS.N.M"]
[{"$f":"\"INN.\"&EIGNIR!$B$3&C8736","v":{"$error":"#N/A"}},{"$f":"'Afleiður og skortstöð - skuldir'!F94","v":0},".M.SAFSSIN.XX.INF.OPI.XXXX.SX.XXX.XXX.IS.N.M"]
[{"$f":"\"INN.\"&EIGNIR!$B$3&C8737","v":{"$error":"#N/A"}},{"$f":"'Afleiður og skortstöð - skuldir'!F95","v":0},".M.SAFSSIN.XX.TRY.OPI.XXXX.SX.XXX.XXX.IS.N.M"]
[{"$f":"\"INN.\"&EIGNIR!$B$3&C8738","v":{"$error":"#N/A"}},{"$f":"'Afleiður og skortstöð - skuldir'!F96","v":0},".M.SAFSSIN.XX.LIF.OPI.XXXX.SX.XXX.XXX.IS.N.M"]
[{"$f":"\"INN.\"&EIGNIR!$B$3&C8739","v":{"$error":"#N/A"}},{"$f":"'Afleiður og skortstöð - skuldir'!G7","v":0},".M.SAFVAIN.XX.ATV.EIF.XXXX.SX.XXX.XXX.IS.N.M","//Sundurliðun afleiður, einkafyrirtæki"]
[{"$f":"\"INN.\"&EIGNIR!$B$3&C8740","v":{"$error":"#N/A"}},{"$f":"'Afleiður og skortstöð - skuldir'!G8","v":0},".M.SAFVAIN.XX.FJA.EIF.XXXX.SX.XXX.XXX.IS.N.M"]
[{"$f":"\"INN.\"&EIGNIR!$B$3&C8741","v":{"$error":"#N/A"}},{"$f":"'Afleiður og skortstöð - skuldir'!G9","v":0},".M.SAFVAIN.XX.INN.EIF.XXXX.SX.XXX.XXX.IS.N.M"]
[{"$f":"\"INN.\"&EIGNIR!$B$3&C8742","v":{"$error":"#N/A"}},{"$f":"'Afleiður og skortstöð - skuldir'!G10","v":0},".M.SAFVAIN.XX.SLI.EIF.XXXX.SX.XXX.XXX.IS.N.M"]
[{"$f":"\"INN.\"&EIGNIR!$B$3&C8743","v":{"$error":"#N/A"}},{"$f":"'Afleiður og skortstöð - skuldir'!G11","v":0},".M.SAFVAIN.XX.PEN.EIF.XXXX.SX.XXX.XXX.IS.N.M"]
[{"$f":"\"INN.\"&EIGNIR!$B$3&C8744","v":{"$error":"#N/A"}},{"$f":"'Afleiður og skortstöð - skuldir'!G12","v":0},".M.SAFVAIN.XX.SJO.EIF.XXXX.SX.XXX.XXX.IS.N.M"]
[{"$f":"\"INN.\"&EIGNIR!$B$3&C8745","v":{"$error":"#N/A"}},{"$f":"'Afleiður og skortstöð - skuldir'!G13","v":0},".M.SAFVAIN.XX.YFT.EIF.XXXX.SX.XXX.XXX.IS.N.M"]
[{"$f":"\"INN.\"&EIGNIR!$B$3&C8746","v":{"$error":"#N/A"}},{"$f":"'Afleiður og skortstöð - skuldir'!G14","v":0},".M.SAFVAIN.XX.SLY.EIF.XXXX.SX.XXX.XXX.IS.N.M"]
[{"$f":"\"INN.\"&EIGNIR!$B$3&C8747","v":{"$error":"#N/A"}},{"$f":"'Afleiður og skortstöð - skuldir'!G15","v":0},".M.SAFVAIN.XX.FHL.EIF.XXXX.SX.XXX.XXX.IS.N.M"]
[{"$f":"\"INN.\"&EIGNIR!$B$3&C8748","v":{"$error":"#N/A"}},{"$f":"'Afleiður og skortstöð - skuldir'!G16","v":0},".M.SAFVAIN.XX.INF.EIF.XXXX.SX.XXX.XXX.IS.N.M"]
[{"$f":"\"INN.\"&EIGNIR!$B$3&C8749","v":{"$error":"#N/A"}},{"$f":"'Afleiður og skortstöð - skuldir'!G17","v":0},".M.SAFVAIN.XX.TRY.EIF.XXXX.SX.XXX.XXX.IS.N.M"]
[{"$f":"\"INN.\"&EIGNIR!$B$3&C8750","v":{"$error":"#N/A"}},{"$f":"'Afleiður og skortstöð - skuldir'!G18","v":0},".M.SAFVAIN.XX.LIF.EIF.XXXX.SX.XXX.XXX.IS.N.M"]
[{"$f":"\"INN.\"&EIGNIR!$B$3&C8751","v":{"$error":"#N/A"}},{"$f":"'Afleiður og skortstöð - skuldir'!G33","v":0},".M.SAFFRIN.XX.ATV.EIF.XXXX.SX.XXX.XXX.IS.N.M"]
[{"$f":"\"INN.\"&EIGNIR!$B$3&C8752","v":{"$error":"#N/A"}},{"$f":"'Afleiður og skortstöð - skuldir'!G34","v":0},".M.SAFFRIN.XX.FJA.EIF.XXXX.SX.XXX.XXX.IS.N.M"]
[{"$f":"\"INN.\"&EIGNIR!$B$3&C8753","v":{"$error":"#N/A"}},{"$f":"'Afleiður og skortstöð - skuldir'!G35","v":0},".M.SAFFRIN.XX.INN.EIF.XXXX.SX.XXX.XXX.IS.N.M"]
[{"$f":"\"INN.\"&EIGNIR!$B$3&C8754","v":{"$error":"#N/A"}},{"$f":"'Afleiður og skortstöð - skuldir'!G36","v":0},".M.SAFFRIN.XX.SLI.EIF.XXXX.SX.XXX.XXX.IS.N.M"]
[{"$f":"\"INN.\"&EIGNIR!$B$3&C8755","v":{"$error":"#N/A"}},{"$f":"'Afleiður og skortstöð - skuldir'!G37","v":0},".M.SAFFRIN.XX.PEN.EIF.XXXX.SX.XXX.XXX.IS.N.M"]
[{"$f":"\"INN.\"&EIGNIR!$B$3&C8756","v":{"$error":"#N/A"}},{"$f":"'Afleiður og skortstöð - skuldir'!G38","v":0},".M.SAFFRIN.XX.SJO.EIF.XXXX.SX.XXX.XXX.IS.N.M"]
[{"$f":"\"INN.\"&EIGNIR!$B$3&C8757","v":{"$error":"#N/A"}},{"$f":"'Afleiður og skortstöð - skuldir'!G39","v":0},".M.SAFFRIN.XX.YFT.EIF.XXXX.SX.XXX.XXX.IS.N.M"]
[{"$f":"\"INN.\"&EIGNIR!$B$3&C8758","v":{"$error":"#N/A"}},{"$f":"'Afleiður og skortstöð - skuldir'!G40","v":0},".M.SAFFRIN.XX.SLY.EIF.XXXX.SX.XXX.XXX.IS.N.M"]
[{"$f":"\"INN.\"&EIGNIR!$B$3&C8759","v":{"$error":"#N/A"}},{"$f":"'Afleiður og skortstöð - skuldir'!G41","v":0},".M.SAFFRIN.XX.FHL.EIF.XXXX.SX.XXX.XXX.IS.N.M"]
[{"$f":"\"INN.\"&EIGNIR!$B$3&C8760","v":{"$error":"#N/A"}},{"$f":"'Afleiður og skortstöð - skuldir'!G42","v":0},".M.SAFFRIN.XX.INF.EIF.XXXX.SX.XXX.XXX.IS.N.M"]
[{"$f":"\"INN.\"&EIGNIR!$B$3&C8761","v":{"$error":"#N/A"}},{"$f":"'Afleiður og skortstöð - skuldir'!G43","v":0},".M.SAFFRIN.XX.TRY.EIF.XXXX.SX.XXX.XXX.IS.N.M"]
[{"$f":"\"INN.\"&EIGNIR!$B$3&C8762","v":{"$error":"#N/A"}},{"$f":"'Afleiður og skortstöð - skuldir'!G44","v":0},".M.SAFFRIN.XX.LIF.EIF.XXXX.SX.XXX.XXX.IS.N.M"]
[{"$f":"\"INN.\"&EIGNIR!$B$3&C8763","v":{"$error":"#N/A"}},{"$f":"'Afleiður og skortstöð - skuldir'!G59","v":0},".M.SAFSKIN.XX.ATV.EIF.XXXX.SX.XXX.XXX.IS.N.M"]
[{"$f":"\"INN.\"&EIGNIR!$B$3&C8764","v":{"$error":"#N/A"}},{"$f":"'Afleiður og skortstöð - skuldir'!G60","v":0},".M.SAFSKIN.XX.FJA.EIF.XXXX.SX.XXX.XXX.IS.N.M"]
[{"$f":"\"INN.\"&EIGNIR!$B$3&C8765","v":{"$error":"#N/A"}},{"$f":"'Afleiður og skortstöð - skuldir'!G61","v":0},".M.SAFSKIN.XX.INN.EIF.XXXX.SX.XXX.XXX.IS.N.M"]
[{"$f":"\"INN.\"&EIGNIR!$B$3&C8766","v":{"$error":"#N/A"}},{"$f":"'Afleiður og skortstöð - skuldir'!G62","v":0},".M.SAFSKIN.XX.SLI.EIF.XXXX.SX.XXX.XXX.IS.N.M"]
[{"$f":"\"INN.\"&EIGNIR!$B$3&C8767","v":{"$error":"#N/A"}},{"$f":"'Afleiður og skortstöð - skuldir'!G63","v":0},".M.SAFSKIN.XX.PEN.EIF.XXXX.SX.XXX.XXX.IS.N.M"]
[{"$f":"\"INN.\"&EIGNIR!$B$3&C8768","v":{"$error":"#N/A"}},{"$f":"'Afleiður og skortstöð - skuldir'!G64","v":0},".M.SAFSKIN.XX.SJO.EIF.XXXX.SX.XXX.XXX.IS.N.M"]
[{"$f":"\"INN.\"&EIGNIR!$B$3&C8769","v":{"$error":"#N/A"}},{"$f":"'Afleiður og skortstöð - skuldir'!G65","v":0},".M.SAFSKIN.XX.YFT.EIF.XXXX.SX.XXX.XXX.IS.N.M"]
[{"$f":"\"INN.\"&EIGNIR!$B$3&C8770","v":{"$error":"#N/A"}},{"$f":"'Afleiður og skortstöð - skuldir'!G66","v":0},".M.SAFSKIN.XX.SLY.EIF.XXXX.SX.XXX.XXX.IS.N.M"]
[{"$f":"\"INN.\"&EIGNIR!$B$3&C8771","v":{"$error":"#N/A"}},{"$f":"'Afleiður og skortstöð - skuldir'!G67","v":0},".M.SAFSKIN.XX.FHL.EIF.XXXX.SX.XXX.XXX.IS.N.M"]
[{"$f":"\"INN.\"&EIGNIR!$B$3&C8772","v":{"$error":"#N/A"}},{"$f":"'Afleiður og skortstöð - skuldir'!G68","v":0},".M.SAFSKIN.XX.INF.EIF.XXXX.SX.XXX.XXX.IS.N.M"]
[{"$f":"\"INN.\"&EIGNIR!$B$3&C8773","v":{"$error":"#N/A"}},{"$f":"'Afleiður og skortstöð - skuldir'!G69","v":0},".M.SAFSKIN.XX.TRY.EIF.XXXX.SX.XXX.XXX.IS.N.M"]
[{"$f":"\"INN.\"&EIGNIR!$B$3&C8774","v":{"$error":"#N/A"}},{"$f":"'Afleiður og skortstöð - skuldir'!G70","v":0},".M.SAFSKIN.XX.LIF.EIF.XXXX.SX.XXX.XXX.IS.N.M"]
[{"$f":"\"INN.\"&EIGNIR!$B$3&C8775","v":{"$error":"#N/A"}},{"$f":"'Afleiður og skortstöð - skuldir'!G85","v":0},".M.SAFSSIN.XX.ATV.EIF.XXXX.SX.XXX.XXX.IS.N.M"]
[{"$f":"\"INN.\"&EIGNIR!$B$3&C8776","v":{"$error":"#N/A"}},{"$f":"'Afleiður og skortstöð - skuldir'!G86","v":0},".M.SAFSSIN.XX.FJA.EIF.XXXX.SX.XXX.XXX.IS.N.M"]
[{"$f":"\"INN.\"&EIGNIR!$B$3&C8777","v":{"$error":"#N/A"}},{"$f":"'Afleiður og skortstöð - skuldir'!G87","v":0},".M.SAFSSIN.XX.INN.EIF.XXXX.SX.XXX.XXX.IS.N.M"]
[{"$f":"\"INN.\"&EIGNIR!$B$3&C8778","v":{"$error":"#N/A"}},{"$f":"'Afleiður og skortstöð - skuldir'!G88","v":0},".M.SAFSSIN.XX.SLI.EIF.XXXX.SX.XXX.XXX.IS.N.M"]
[{"$f":"\"INN.\"&EIGNIR!$B$3&C8779","v":{"$error":"#N/A"}},{"$f":"'Afleiður og skortstöð - skuldir'!G89","v":0},".M.SAFSSIN.XX.PEN.EIF.XXXX.SX.XXX.XXX.IS.N.M"]
[{"$f":"\"INN.\"&EIGNIR!$B$3&C8780","v":{"$error":"#N/A"}},{"$f":"'Afleiður og skortstöð - skuldir'!G90","v":0},".M.SAFSSIN.XX.SJO.EIF.XXXX.SX.XXX.XXX.IS.N.M"]
[{"$f":"\"INN.\"&EIGNIR!$B$3&C8781","v":{"$error":"#N/A"}},{"$f":"'Afleiður og skortstöð - skuldir'!G91","v":0},".M.SAFSSIN.XX.YFT.EIF.XXXX.SX.XXX.XXX.IS.N.M"]
[{"$f":"\"INN.\"&EIGNIR!$B$3&C8782","v":{"$error":"#N/A"}},{"$f":"'Afleiður og skortstöð - skuldir'!G92","v":0},".M.SAFSSIN.XX.SLY.EIF.XXXX.SX.XXX.XXX.IS.N.M"]
[{"$f":"\"INN.\"&EIGNIR!$B$3&C8783","v":{"$error":"#N/A"}},{"$f":"'Afleiður og skortstöð - skuldir'!G93","v":0},".M.SAFSSIN.XX.FHL.EIF.XXXX.SX.XXX.XXX.IS.N.M"]
[{"$f":"\"INN.\"&EIGNIR!$B$3&C8784","v":{"$error":"#N/A"}},{"$f":"'Afleiður og skortstöð - skuldir'!G94","v":0},".M.SAFSSIN.XX.INF.EIF.XXXX.SX.XXX.XXX.IS.N.M"]
[{"$f":"\"INN.\"&EIGNIR!$B$3&C8785","v":{"$error":"#N/A"}},{"$f":"'Afleiður og skortstöð - skuldir'!G95","v":0},".M.SAFSSIN.XX.TRY.EIF.XXXX.SX.XXX.XXX.IS.N.M"]
[{"$f":"\"INN.\"&EIGNIR!$B$3&C8786","v":{"$error":"#N/A"}},{"$f":"'Afleiður og skortstöð - skuldir'!G96","v":0},".M.SAFSSIN.XX.LIF.EIF.XXXX.SX.XXX.XXX.IS.N.M"]
[{"$f":"\"INN.\"&EIGNIR!$B$3&C8787","v":{"$error":"#N/A"}},{"$f":"'Afleiður og skortstöð - skuldir'!H5","v":0},".M.SAF$$$$.XX.$$$.XXX.XXXX.SX.XXX.ISK.IS.N.M","//Sundurliðun afleiður ISK"]
[{"$f":"\"INN.\"&EIGNIR!$B$3&C8788","v":{"$error":"#N/A"}},{"$f":"'Afleiður og skortstöð - skuldir'!H6","v":0},".M.SAFVA$$.XX.$$$.XXX.XXXX.SX.XXX.ISK.IS.N.M"]
[{"$f":"\"INN.\"&EIGNIR!$B$3&C8789","v":{"$error":"#N/A"}},{"$f":"'Afleiður og skortstöð - skuldir'!H7","v":0},".M.SAFVAIN.XX.ATV.XXX.XXXX.SX.XXX.ISK.IS.N.M"]
[{"$f":"\"INN.\"&EIGNIR!$B$3&C8790","v":{"$error":"#N/A"}},{"$f":"'Afleiður og skortstöð - skuldir'!H8","v":0},".M.SAFVAIN.XX.FJA.XXX.XXXX.SX.XXX.ISK.IS.N.M"]
[{"$f":"\"INN.\"&EIGNIR!$B$3&C8791","v":{"$error":"#N/A"}},{"$f":"'Afleiður og skortstöð - skuldir'!H9","v":0},".M.SAFVAIN.XX.INN.XXX.XXXX.SX.XXX.ISK.IS.N.M"]
[{"$f":"\"INN.\"&EIGNIR!$B$3&C8792","v":{"$error":"#N/A"}},{"$f":"'Afleiður og skortstöð - skuldir'!H10","v":0},".M.SAFVAIN.XX.SLI.XXX.XXXX.SX.XXX.ISK.IS.N.M"]
[{"$f":"\"INN.\"&EIGNIR!$B$3&C8793","v":{"$error":"#N/A"}},{"$f":"'Afleiður og skortstöð - skuldir'!H11","v":0},".M.SAFVAIN.XX.PEN.XXX.XXXX.SX.XXX.ISK.IS.N.M"]
[{"$f":"\"INN.\"&EIGNIR!$B$3&C8794","v":{"$error":"#N/A"}},{"$f":"'Afleiður og skortstöð - skuldir'!H12","v":0},".M.SAFVAIN.XX.SJO.XXX.XXXX.SX.XXX.ISK.IS.N.M"]
[{"$f":"\"INN.\"&EIGNIR!$B$3&C8795","v":{"$error":"#N/A"}},{"$f":"'Afleiður og skortstöð - skuldir'!H13","v":0},".M.SAFVAIN.XX.YFT.XXX.XXXX.SX.XXX.ISK.IS.N.M"]
[{"$f":"\"INN.\"&EIGNIR!$B$3&C8796","v":{"$error":"#N/A"}},{"$f":"'Afleiður og skortstöð - skuldir'!H14","v":0},".M.SAFVAIN.XX.SLY.XXX.XXXX.SX.XXX.ISK.IS.N.M"]
[{"$f":"\"INN.\"&EIGNIR!$B$3&C8797","v":{"$error":"#N/A"}},{"$f":"'Afleiður og skortstöð - skuldir'!H15","v":0},".M.SAFVAIN.XX.FHL.XXX.XXXX.SX.XXX.ISK.IS.N.M"]
[{"$f":"\"INN.\"&EIGNIR!$B$3&C8798","v":{"$error":"#N/A"}},{"$f":"'Afleiður og skortstöð - skuldir'!H16","v":0},".M.SAFVAIN.XX.INF.XXX.XXXX.SX.XXX.ISK.IS.N.M"]
[{"$f":"\"INN.\"&EIGNIR!$B$3&C8799","v":{"$error":"#N/A"}},{"$f":"'Afleiður og skortstöð - skuldir'!H17","v":0},".M.SAFVAIN.XX.TRY.XXX.XXXX.SX.XXX.ISK.IS.N.M"]
[{"$f":"\"INN.\"&EIGNIR!$B$3&C8800","v":{"$error":"#N/A"}},{"$f":"'Afleiður og skortstöð - skuldir'!H18","v":0},".M.SAFVAIN.XX.LIF.XXX.XXXX.SX.XXX.ISK.IS.N.M"]
[{"$f":"\"INN.\"&EIGNIR!$B$3&C8801","v":{"$error":"#N/A"}},{"$f":"'Afleiður og skortstöð - skuldir'!H19","v":0},".M.SAFVAIN.XX.OPI.XXX.XXXX.SX.XXX.ISK.IS.N.M"]
[{"$f":"\"INN.\"&EIGNIR!$B$3&C8802","v":{"$error":"#N/A"}},{"$f":"'Afleiður og skortstöð - skuldir'!H20","v":0},".M.SAFVAIN.XX.RSS.XXX.XXXX.SX.XXX.ISK.IS.N.M"]
[{"$f":"\"INN.\"&EIGNIR!$B$3&C8803","v":{"$error":"#N/A"}},{"$f":"'Afleiður og skortstöð - skuldir'!H21","v":0},".M.SAFVAIN.XX.BAJ.XXX.XXXX.SX.XXX.ISK.IS.N.M"]
[{"$f":"\"INN.\"&EIGNIR!$B$3&C8804","v":{"$error":"#N/A"}},{"$f":"'Afleiður og skortstöð - skuldir'!H22","v":0},".M.SAFVAIN.XX.EIN.XXX.XXXX.SX.XXX.ISK.IS.N.M"]
[{"$f":"\"INN.\"&EIGNIR!$B$3&C8805","v":{"$error":"#N/A"}},{"$f":"'Afleiður og skortstöð - skuldir'!H23","v":0},".M.SAFVAIN.XX.NPH.XXX.XXXX.SX.XXX.ISK.IS.N.M"]
[{"$f":"\"INN.\"&EIGNIR!$B$3&C8806","v":{"$error":"#N/A"}},{"$f":"'Afleiður og skortstöð - skuldir'!H24","v":0},".M.SAFVAER.XX.ERL.XXX.XXXX.SX.XXX.ISK.IS.N.M"]
[{"$f":"\"INN.\"&EIGNIR!$B$3&C8807","v":{"$error":"#N/A"}},{"$f":"'Afleiður og skortstöð - skuldir'!H25","v":0},".M.SAFVAER.XX.ERS.XXX.XXXX.SX.XXX.ISK.IS.N.M"]
[{"$f":"\"INN.\"&EIGNIR!$B$3&C8808","v":{"$error":"#N/A"}},{"$f":"'Afleiður og skortstöð - skuldir'!H26","v":0},".M.SAFVAER.XX.ERI.XXX.XXXX.SX.XXX.ISK.IS.N.M"]
[{"$f":"\"INN.\"&EIGNIR!$B$3&C8809","v":{"$error":"#N/A"}},{"$f":"'Afleiður og skortstöð - skuldir'!H27","v":0},".M.SAFVAER.XX.ERP.XXX.XXXX.SX.XXX.ISK.IS.N.M"]
[{"$f":"\"INN.\"&EIGNIR!$B$3&C8810","v":{"$error":"#N/A"}},{"$f":"'Afleiður og skortstöð - skuldir'!H28","v":0},".M.SAFVAER.XX.ERV.XXX.XXXX.SX.XXX.ISK.IS.N.M"]
[{"$f":"\"INN.\"&EIGNIR!$B$3&C8811","v":{"$error":"#N/A"}},{"$f":"'Afleiður og skortstöð - skuldir'!H29","v":0},".M.SAFVAER.XX.ERF.XXX.XXXX.SX.XXX.ISK.IS.N.M"]
[{"$f":"\"INN.\"&EIGNIR!$B$3&C8812","v":{"$error":"#N/A"}},{"$f":"'Afleiður og skortstöð - skuldir'!H30","v":0},".M.SAFVAER.XX.ERO.XXX.XXXX.SX.XXX.ISK.IS.N.M"]
[{"$f":"\"INN.\"&EIGNIR!$B$3&C8813","v":{"$error":"#N/A"}},{"$f":"'Afleiður og skortstöð - skuldir'!H31","v":0},".M.SAFVAER.XX.ERA.XXX.XXXX.SX.XXX.ISK.IS.N.M"]
[{"$f":"\"INN.\"&EIGNIR!$B$3&C8814","v":{"$error":"#N/A"}},{"$f":"'Afleiður og skortstöð - skuldir'!H32","v":0},".M.SAFFR$$.XX.$$$.XXX.XXXX.SX.XXX.ISK.IS.N.M"]
[{"$f":"\"INN.\"&EIGNIR!$B$3&C8815","v":{"$error":"#N/A"}},{"$f":"'Afleiður og skortstöð - skuldir'!H33","v":0},".M.SAFFRIN.XX.ATV.XXX.XXXX.SX.XXX.ISK.IS.N.M"]
[{"$f":"\"INN.\"&EIGNIR!$B$3&C8816","v":{"$error":"#N/A"}},{"$f":"'Afleiður og skortstöð - skuldir'!H34","v":0},".M.SAFFRIN.XX.FJA.XXX.XXXX.SX.XXX.ISK.IS.N.M"]
[{"$f":"\"INN.\"&EIGNIR!$B$3&C8817","v":{"$error":"#N/A"}},{"$f":"'Afleiður og skortstöð - skuldir'!H35","v":0},".M.SAFFRIN.XX.INN.XXX.XXXX.SX.XXX.ISK.IS.N.M"]
[{"$f":"\"INN.\"&EIGNIR!$B$3&C8818","v":{"$error":"#N/A"}},{"$f":"'Afleiður og skortstöð - skuldir'!H36","v":0},".M.SAFFRIN.XX.SLI.XXX.XXXX.SX.XXX.ISK.IS.N.M"]
[{"$f":"\"INN.\"&EIGNIR!$B$3&C8819","v":{"$error":"#N/A"}},{"$f":"'Afleiður og skortstöð - skuldir'!H37","v":0},".M.SAFFRIN.XX.PEN.XXX.XXXX.SX.XXX.ISK.IS.N.M"]
[{"$f":"\"INN.\"&EIGNIR!$B$3&C8820","v":{"$error":"#N/A"}},{"$f":"'Afleiður og skortstöð - skuldir'!H38","v":0},".M.SAFFRIN.XX.SJO.XXX.XXXX.SX.XXX.ISK.IS.N.M"]
[{"$f":"\"INN.\"&EIGNIR!$B$3&C8821","v":{"$error":"#N/A"}},{"$f":"'Afleiður og skortstöð - skuldir'!H39","v":0},".M.SAFFRIN.XX.YFT.XXX.XXXX.SX.XXX.ISK.IS.N.M"]
[{"$f":"\"INN.\"&EIGNIR!$B$3&C8822","v":{"$error":"#N/A"}},{"$f":"'Afleiður og skortstöð - skuldir'!H40","v":0},".M.SAFFRIN.XX.SLY.XXX.XXXX.SX.XXX.ISK.IS.N.M"]
[{"$f":"\"INN.\"&EIGNIR!$B$3&C8823","v":{"$error":"#N/A"}},{"$f":"'Afleiður og skortstöð - skuldir'!H41","v":0},".M.SAFFRIN.XX.FHL.XXX.XXXX.SX.XXX.ISK.IS.N.M"]
[{"$f":"\"INN.\"&EIGNIR!$B$3&C8824","v":{"$error":"#N/A"}},{"$f":"'Afleiður og skortstöð - skuldir'!H42","v":0},".M.SAFFRIN.XX.INF.XXX.XXXX.SX.XXX.ISK.IS.N.M"]
[{"$f":"\"INN.\"&EIGNIR!$B$3&C8825","v":{"$error":"#N/A"}},{"$f":"'Afleiður og skortstöð - skuldir'!H43","v":0},".M.SAFFRIN.XX.TRY.XXX.XXXX.SX.XXX.ISK.IS.N.M"]
[{"$f":"\"INN.\"&EIGNIR!$B$3&C8826","v":{"$error":"#N/A"}},{"$f":"'Afleiður og skortstöð - skuldir'!H44","v":0},".M.SAFFRIN.XX.LIF.XXX.XXXX.SX.XXX.ISK.IS.N.M"]
[{"$f":"\"INN.\"&EIGNIR!$B$3&C8827","v":{"$error":"#N/A"}},{"$f":"'Afleiður og skortstöð - skuldir'!H45","v":0},".M.SAFFRIN.XX.OPI.XXX.XXXX.SX.XXX.ISK.IS.N.M"]
[{"$f":"\"INN.\"&EIGNIR!$B$3&C8828","v":{"$error":"#N/A"}},{"$f":"'Afleiður og skortstöð - skuldir'!H46","v":0},".M.SAFFRIN.XX.RSS.XXX.XXXX.SX.XXX.ISK.IS.N.M"]
[{"$f":"\"INN.\"&EIGNIR!$B$3&C8829","v":{"$error":"#N/A"}},{"$f":"'Afleiður og skortstöð - skuldir'!H47","v":0},".M.SAFFRIN.XX.BAJ.XXX.XXXX.SX.XXX.ISK.IS.N.M"]
[{"$f":"\"INN.\"&EIGNIR!$B$3&C8830","v":{"$error":"#N/A"}},{"$f":"'Afleiður og skortstöð - skuldir'!H48","v":0},".M.SAFFRIN.XX.EIN.XXX.XXXX.SX.XXX.ISK.IS.N.M"]
[{"$f":"\"INN.\"&EIGNIR!$B$3&C8831","v":{"$error":"#N/A"}},{"$f":"'Afleiður og skortstöð - skuldir'!H49","v":0},".M.SAFFRIN.XX.NPH.XXX.XXXX.SX.XXX.ISK.IS.N.M"]
[{"$f":"\"INN.\"&EIGNIR!$B$3&C8832","v":{"$error":"#N/A"}},{"$f":"'Afleiður og skortstöð - skuldir'!H50","v":0},".M.SAFFRER.XX.ERL.XXX.XXXX.SX.XXX.ISK.IS.N.M"]
[{"$f":"\"INN.\"&EIGNIR!$B$3&C8833","v":{"$error":"#N/A"}},{"$f":"'Afleiður og skortstöð - skuldir'!H51","v":0},".M.SAFFRER.XX.ERS.XXX.XXXX.SX.XXX.ISK.IS.N.M"]
[{"$f":"\"INN.\"&EIGNIR!$B$3&C8834","v":{"$error":"#N/A"}},{"$f":"'Afleiður og skortstöð - skuldir'!H52","v":0},".M.SAFFRER.XX.ERI.XXX.XXXX.SX.XXX.ISK.IS.N.M"]
[{"$f":"\"INN.\"&EIGNIR!$B$3&C8835","v":{"$error":"#N/A"}},{"$f":"'Afleiður og skortstöð - skuldir'!H53","v":0},".M.SAFFRER.XX.ERP.XXX.XXXX.SX.XXX.ISK.IS.N.M"]
[{"$f":"\"INN.\"&EIGNIR!$B$3&C8836","v":{"$error":"#N/A"}},{"$f":"'Afleiður og skortstöð - skuldir'!H54","v":0},".M.SAFFRER.XX.ERV.XXX.XXXX.SX.XXX.ISK.IS.N.M"]
[{"$f":"\"INN.\"&EIGNIR!$B$3&C8837","v":{"$error":"#N/A"}},{"$f":"'Afleiður og skortstöð - skuldir'!H55","v":0},".M.SAFFRER.XX.ERF.XXX.XXXX.SX.XXX.ISK.IS.N.M"]
[{"$f":"\"INN.\"&EIGNIR!$B$3&C8838","v":{"$error":"#N/A"}},{"$f":"'Afleiður og skortstöð - skuldir'!H56","v":0},".M.SAFFRER.XX.ERO.XXX.XXXX.SX.XXX.ISK.IS.N.M"]
[{"$f":"\"INN.\"&EIGNIR!$B$3&C8839","v":{"$error":"#N/A"}},{"$f":"'Afleiður og skortstöð - skuldir'!H57","v":0},".M.SAFFRER.XX.ERA.XXX.XXXX.SX.XXX.ISK.IS.N.M"]
[{"$f":"\"INN.\"&EIGNIR!$B$3&C8840","v":{"$error":"#N/A"}},{"$f":"'Afleiður og skortstöð - skuldir'!H58","v":0},".M.SAFSK$$.XX.$$$.XXX.XXXX.SX.XXX.ISK.IS.N.M"]
[{"$f":"\"INN.\"&EIGNIR!$B$3&C8841","v":{"$error":"#N/A"}},{"$f":"'Afleiður og skortstöð - skuldir'!H59","v":0},".M.SAFSKIN.XX.ATV.XXX.XXXX.SX.XXX.ISK.IS.N.M"]
[{"$f":"\"INN.\"&EIGNIR!$B$3&C8842","v":{"$error":"#N/A"}},{"$f":"'Afleiður og skortstöð - skuldir'!H60","v":0},".M.SAFSKIN.XX.FJA.XXX.XXXX.SX.XXX.ISK.IS.N.M"]
[{"$f":"\"INN.\"&EIGNIR!$B$3&C8843","v":{"$error":"#N/A"}},{"$f":"'Afleiður og skortstöð - skuldir'!H61","v":0},".M.SAFSKIN.XX.INN.XXX.XXXX.SX.XXX.ISK.IS.N.M"]
[{"$f":"\"INN.\"&EIGNIR!$B$3&C8844","v":{"$error":"#N/A"}},{"$f":"'Afleiður og skortstöð - skuldir'!H62","v":0},".M.SAFSKIN.XX.SLI.XXX.XXXX.SX.XXX.ISK.IS.N.M"]
[{"$f":"\"INN.\"&EIGNIR!$B$3&C8845","v":{"$error":"#N/A"}},{"$f":"'Afleiður og skortstöð - skuldir'!H63","v":0},".M.SAFSKIN.XX.PEN.XXX.XXXX.SX.XXX.ISK.IS.N.M"]
[{"$f":"\"INN.\"&EIGNIR!$B$3&C8846","v":{"$error":"#N/A"}},{"$f":"'Afleiður og skortstöð - skuldir'!H64","v":0},".M.SAFSKIN.XX.SJO.XXX.XXXX.SX.XXX.ISK.IS.N.M"]
[{"$f":"\"INN.\"&EIGNIR!$B$3&C8847","v":{"$error":"#N/A"}},{"$f":"'Afleiður og skortstöð - skuldir'!H65","v":0},".M.SAFSKIN.XX.YFT.XXX.XXXX.SX.XXX.ISK.IS.N.M"]
[{"$f":"\"INN.\"&EIGNIR!$B$3&C8848","v":{"$error":"#N/A"}},{"$f":"'Afleiður og skortstöð - skuldir'!H66","v":0},".M.SAFSKIN.XX.SLY.XXX.XXXX.SX.XXX.ISK.IS.N.M"]
[{"$f":"\"INN.\"&EIGNIR!$B$3&C8849","v":{"$error":"#N/A"}},{"$f":"'Afleiður og skortstöð - skuldir'!H67","v":0},".M.SAFSKIN.XX.FHL.XXX.XXXX.SX.XXX.ISK.IS.N.M"]
[{"$f":"\"INN.\"&EIGNIR!$B$3&C8850","v":{"$error":"#N/A"}},{"$f":"'Afleiður og skortstöð - skuldir'!H68","v":0},".M.SAFSKIN.XX.INF.XXX.XXXX.SX.XXX.ISK.IS.N.M"]
[{"$f":"\"INN.\"&EIGNIR!$B$3&C8851","v":{"$error":"#N/A"}},{"$f":"'Afleiður og skortstöð - skuldir'!H69","v":0},".M.SAFSKIN.XX.TRY.XXX.XXXX.SX.XXX.ISK.IS.N.M"]
[{"$f":"\"INN.\"&EIGNIR!$B$3&C8852","v":{"$error":"#N/A"}},{"$f":"'Afleiður og skortstöð - skuldir'!H70","v":0},".M.SAFSKIN.XX.LIF.XXX.XXXX.SX.XXX.ISK.IS.N.M"]
[{"$f":"\"INN.\"&EIGNIR!$B$3&C8853","v":{"$error":"#N/A"}},{"$f":"'Afleiður og skortstöð - skuldir'!H71","v":0},".M.SAFSKIN.XX.OPI.XXX.XXXX.SX.XXX.ISK.IS.N.M"]
[{"$f":"\"INN.\"&EIGNIR!$B$3&C8854","v":{"$error":"#N/A"}},{"$f":"'Afleiður og skortstöð - skuldir'!H72","v":0},".M.SAFSKIN.XX.RSS.XXX.XXXX.SX.XXX.ISK.IS.N.M"]
[{"$f":"\"INN.\"&EIGNIR!$B$3&C8855","v":{"$error":"#N/A"}},{"$f":"'Afleiður og skortstöð - skuldir'!H73","v":0},".M.SAFSKIN.XX.BAJ.XXX.XXXX.SX.XXX.ISK.IS.N.M"]
[{"$f":"\"INN.\"&EIGNIR!$B$3&C8856","v":{"$error":"#N/A"}},{"$f":"'Afleiður og skortstöð - skuldir'!H74","v":0},".M.SAFSKIN.XX.EIN.XXX.XXXX.SX.XXX.ISK.IS.N.M"]
[{"$f":"\"INN.\"&EIGNIR!$B$3&C8857","v":{"$error":"#N/A"}},{"$f":"'Afleiður og skortstöð - skuldir'!H75","v":0},".M.SAFSKIN.XX.NPH.XXX.XXXX.SX.XXX.ISK.IS.N.M"]
[{"$f":"\"INN.\"&EIGNIR!$B$3&C8858","v":{"$error":"#N/A"}},{"$f":"'Afleiður og skortstöð - skuldir'!H76","v":0},".M.SAFSKER.XX.ERL.XXX.XXXX.SX.XXX.ISK.IS.N.M"]
[{"$f":"\"INN.\"&EIGNIR!$B$3&C8859","v":{"$error":"#N/A"}},{"$f":"'Afleiður og skortstöð - skuldir'!H77","v":0},".M.SAFSKER.XX.ERS.XXX.XXXX.SX.XXX.ISK.IS.N.M"]
[{"$f":"\"INN.\"&EIGNIR!$B$3&C8860","v":{"$error":"#N/A"}},{"$f":"'Afleiður og skortstöð - skuldir'!H78","v":0},".M.SAFSKER.XX.ERI.XXX.XXXX.SX.XXX.ISK.IS.N.M"]
[{"$f":"\"INN.\"&EIGNIR!$B$3&C8861","v":{"$error":"#N/A"}},{"$f":"'Afleiður og skortstöð - skuldir'!H79","v":0},".M.SAFSKER.XX.ERP.XXX.XXXX.SX.XXX.ISK.IS.N.M"]
[{"$f":"\"INN.\"&EIGNIR!$B$3&C8862","v":{"$error":"#N/A"}},{"$f":"'Afleiður og skortstöð - skuldir'!H80","v":0},".M.SAFSKER.XX.ERV.XXX.XXXX.SX.XXX.ISK.IS.N.M"]
[{"$f":"\"INN.\"&EIGNIR!$B$3&C8863","v":{"$error":"#N/A"}},{"$f":"'Afleiður og skortstöð - skuldir'!H81","v":0},".M.SAFSKER.XX.ERF.XXX.XXXX.SX.XXX.ISK.IS.N.M"]
[{"$f":"\"INN.\"&EIGNIR!$B$3&C8864","v":{"$error":"#N/A"}},{"$f":"'Afleiður og skortstöð - skuldir'!H82","v":0},".M.SAFSKER.XX.ERO.XXX.XXXX.SX.XXX.ISK.IS.N.M"]
[{"$f":"\"INN.\"&EIGNIR!$B$3&C8865","v":{"$error":"#N/A"}},{"$f":"'Afleiður og skortstöð - skuldir'!H83","v":0},".M.SAFSKER.XX.ERA.XXX.XXXX.SX.XXX.ISK.IS.N.M"]
[{"$f":"\"INN.\"&EIGNIR!$B$3&C8866","v":{"$error":"#N/A"}},{"$f":"'Afleiður og skortstöð - skuldir'!H84","v":0},".M.SAFSS$$.XX.$$$.XXX.XXXX.SX.XXX.ISK.IS.N.M"]
[{"$f":"\"INN.\"&EIGNIR!$B$3&C8867","v":{"$error":"#N/A"}},{"$f":"'Afleiður og skortstöð - skuldir'!H85","v":0},".M.SAFSSIN.XX.ATV.XXX.XXXX.SX.XXX.ISK.IS.N.M"]
[{"$f":"\"INN.\"&EIGNIR!$B$3&C8868","v":{"$error":"#N/A"}},{"$f":"'Afleiður og skortstöð - skuldir'!H86","v":0},".M.SAFSSIN.XX.FJA.XXX.XXXX.SX.XXX.ISK.IS.N.M"]
[{"$f":"\"INN.\"&EIGNIR!$B$3&C8869","v":{"$error":"#N/A"}},{"$f":"'Afleiður og skortstöð - skuldir'!H87","v":0},".M.SAFSSIN.XX.INN.XXX.XXXX.SX.XXX.ISK.IS.N.M"]
[{"$f":"\"INN.\"&EIGNIR!$B$3&C8870","v":{"$error":"#N/A"}},{"$f":"'Afleiður og skortstöð - skuldir'!H88","v":0},".M.SAFSSIN.XX.SLI.XXX.XXXX.SX.XXX.ISK.IS.N.M"]
[{"$f":"\"INN.\"&EIGNIR!$B$3&C8871","v":{"$error":"#N/A"}},{"$f":"'Afleiður og skortstöð - skuldir'!H89","v":0},".M.SAFSSIN.XX.PEN.XXX.XXXX.SX.XXX.ISK.IS.N.M"]
[{"$f":"\"INN.\"&EIGNIR!$B$3&C8872","v":{"$error":"#N/A"}},{"$f":"'Afleiður og skortstöð - skuldir'!H90","v":0},".M.SAFSSIN.XX.SJO.XXX.XXXX.SX.XXX.ISK.IS.N.M"]
[{"$f":"\"INN.\"&EIGNIR!$B$3&C8873","v":{"$error":"#N/A"}},{"$f":"'Afleiður og skortstöð - skuldir'!H91","v":0},".M.SAFSSIN.XX.YFT.XXX.XXXX.SX.XXX.ISK.IS.N.M"]
[{"$f":"\"INN.\"&EIGNIR!$B$3&C8874","v":{"$error":"#N/A"}},{"$f":"'Afleiður og skortstöð - skuldir'!H92","v":0},".M.SAFSSIN.XX.SLY.XXX.XXXX.SX.XXX.ISK.IS.N.M"]
[{"$f":"\"INN.\"&EIGNIR!$B$3&C8875","v":{"$error":"#N/A"}},{"$f":"'Afleiður og skortstöð - skuldir'!H93","v":0},".M.SAFSSIN.XX.FHL.XXX.XXXX.SX.XXX.ISK.IS.N.M"]
[{"$f":"\"INN.\"&EIGNIR!$B$3&C8876","v":{"$error":"#N/A"}},{"$f":"'Afleiður og skortstöð - skuldir'!H94","v":0},".M.SAFSSIN.XX.INF.XXX.XXXX.SX.XXX.ISK.IS.N.M"]
[{"$f":"\"INN.\"&EIGNIR!$B$3&C8877","v":{"$error":"#N/A"}},{"$f":"'Afleiður og skortstöð - skuldir'!H95","v":0},".M.SAFSSIN.XX.TRY.XXX.XXXX.SX.XXX.ISK.IS.N.M"]
[{"$f":"\"INN.\"&EIGNIR!$B$3&C8878","v":{"$error":"#N/A"}},{"$f":"'Afleiður og skortstöð - skuldir'!H96","v":0},".M.SAFSSIN.XX.LIF.XXX.XXXX.SX.XXX.ISK.IS.N.M"]
[{"$f":"\"INN.\"&EIGNIR!$B$3&C8879","v":{"$error":"#N/A"}},{"$f":"'Afleiður og skortstöð - skuldir'!H97","v":0},".M.SAFSSIN.XX.OPI.XXX.XXXX.SX.XXX.ISK.IS.N.M"]
[{"$f":"\"INN.\"&EIGNIR!$B$3&C8880","v":{"$error":"#N/A"}},{"$f":"'Afleiður og skortstöð - skuldir'!H98","v":0},".M.SAFSSIN.XX.RSS.XXX.XXXX.SX.XXX.ISK.IS.N.M"]
[{"$f":"\"INN.\"&EIGNIR!$B$3&C8881","v":{"$error":"#N/A"}},{"$f":"'Afleiður og skortstöð - skuldir'!H99","v":0},".M.SAFSSIN.XX.BAJ.XXX.XXXX.SX.XXX.ISK.IS.N.M"]
[{"$f":"\"INN.\"&EIGNIR!$B$3&C8882","v":{"$error":"#N/A"}},{"$f":"'Afleiður og skortstöð - skuldir'!H100","v":0},".M.SAFSSIN.XX.EIN.XXX.XXXX.SX.XXX.ISK.IS.N.M"]
[{"$f":"\"INN.\"&EIGNIR!$B$3&C8883","v":{"$error":"#N/A"}},{"$f":"'Afleiður og skortstöð - skuldir'!H101","v":0},".M.SAFSSIN.XX.NPH.XXX.XXXX.SX.XXX.ISK.IS.N.M"]
[{"$f":"\"INN.\"&EIGNIR!$B$3&C8884","v":{"$error":"#N/A"}},{"$f":"'Afleiður og skortstöð - skuldir'!H102","v":0},".M.SAFSSER.XX.ERL.XXX.XXXX.SX.XXX.ISK.IS.N.M"]
[{"$f":"\"INN.\"&EIGNIR!$B$3&C8885","v":{"$error":"#N/A"}},{"$f":"'Afleiður og skortstöð - skuldir'!H103","v":0},".M.SAFSSER.XX.ERS.XXX.XXXX.SX.XXX.ISK.IS.N.M"]
[{"$f":"\"INN.\"&EIGNIR!$B$3&C8886","v":{"$error":"#N/A"}},{"$f":"'Afleiður og skortstöð - skuldir'!H104","v":0},".M.SAFSSER.XX.ERI.XXX.XXXX.SX.XXX.ISK.IS.N.M"]
[{"$f":"\"INN.\"&EIGNIR!$B$3&C8887","v":{"$error":"#N/A"}},{"$f":"'Afleiður og skortstöð - skuldir'!H105","v":0},".M.SAFSSER.XX.ERP.XXX.XXXX.SX.XXX.ISK.IS.N.M"]
[{"$f":"\"INN.\"&EIGNIR!$B$3&C8888","v":{"$error":"#N/A"}},{"$f":"'Afleiður og skortstöð - skuldir'!H106","v":0},".M.SAFSSER.XX.ERV.XXX.XXXX.SX.XXX.ISK.IS.N.M"]
[{"$f":"\"INN.\"&EIGNIR!$B$3&C8889","v":{"$error":"#N/A"}},{"$f":"'Afleiður og skortstöð - skuldir'!H107","v":0},".M.SAFSSER.XX.ERF.XXX.XXXX.SX.XXX.ISK.IS.N.M"]
[{"$f":"\"INN.\"&EIGNIR!$B$3&C8890","v":{"$error":"#N/A"}},{"$f":"'Afleiður og skortstöð - skuldir'!H108","v":0},".M.SAFSSER.XX.ERO.XXX.XXXX.SX.XXX.ISK.IS.N.M"]
[{"$f":"\"INN.\"&EIGNIR!$B$3&C8891","v":{"$error":"#N/A"}},{"$f":"'Afleiður og skortstöð - skuldir'!H109","v":0},".M.SAFSSER.XX.ERA.XXX.XXXX.SX.XXX.ISK.IS.N.M"]
[{"$f":"\"INN.\"&EIGNIR!$B$3&C8892","v":{"$error":"#N/A"}},{"$f":"'Afleiður og skortstöð - skuldir'!H110","v":0},".M.SAFSSEH.XX.ERL.XXX.XXXX.SX.XXX.ISK.IS.N.M"]
[{"$f":"\"INN.\"&EIGNIR!$B$3&C8893","v":{"$error":"#N/A"}},{"$f":"'Afleiður og skortstöð - skuldir'!H111","v":0},".M.SAFSSES.XX.ERL.XXX.XXXX.SX.SKT.ISK.IS.N.M"]
[{"$f":"\"INN.\"&EIGNIR!$B$3&C8894","v":{"$error":"#N/A"}},{"$f":"'Afleiður og skortstöð - skuldir'!H112","v":0},".M.SAFSSES.XX.ERL.XXX.XXXX.SX.LAT.ISK.IS.N.M"]
[{"$f":"\"INN.\"&EIGNIR!$B$3&C8895","v":{"$error":"#N/A"}},{"$f":"'Afleiður og skortstöð - skuldir'!I5","v":0},".M.SAF$$$$.XX.$$$.XXX.XXXX.SX.XXX.EUR.IS.N.M","//Sundurliðun afleiður EUR"]
[{"$f":"\"INN.\"&EIGNIR!$B$3&C8896","v":{"$error":"#N/A"}},{"$f":"'Afleiður og skortstöð - skuldir'!I6","v":0},".M.SAFVA$$.XX.$$$.XXX.XXXX.SX.XXX.EUR.IS.N.M"]
[{"$f":"\"INN.\"&EIGNIR!$B$3&C8897","v":{"$error":"#N/A"}},{"$f":"'Afleiður og skortstöð - skuldir'!I7","v":0},".M.SAFVAIN.XX.ATV.XXX.XXXX.SX.XXX.EUR.IS.N.M"]
[{"$f":"\"INN.\"&EIGNIR!$B$3&C8898","v":{"$error":"#N/A"}},{"$f":"'Afleiður og skortstöð - skuldir'!I8","v":0},".M.SAFVAIN.XX.FJA.XXX.XXXX.SX.XXX.EUR.IS.N.M"]
[{"$f":"\"INN.\"&EIGNIR!$B$3&C8899","v":{"$error":"#N/A"}},{"$f":"'Afleiður og skortstöð - skuldir'!I9","v":0},".M.SAFVAIN.XX.INN.XXX.XXXX.SX.XXX.EUR.IS.N.M"]
[{"$f":"\"INN.\"&EIGNIR!$B$3&C8900","v":{"$error":"#N/A"}},{"$f":"'Afleiður og skortstöð - skuldir'!I10","v":0},".M.SAFVAIN.XX.SLI.XXX.XXXX.SX.XXX.EUR.IS.N.M"]
[{"$f":"\"INN.\"&EIGNIR!$B$3&C8901","v":{"$error":"#N/A"}},{"$f":"'Afleiður og skortstöð - skuldir'!I11","v":0},".M.SAFVAIN.XX.PEN.XXX.XXXX.SX.XXX.EUR.IS.N.M"]
[{"$f":"\"INN.\"&EIGNIR!$B$3&C8902","v":{"$error":"#N/A"}},{"$f":"'Afleiður og skortstöð - skuldir'!I12","v":0},".M.SAFVAIN.XX.SJO.XXX.XXXX.SX.XXX.EUR.IS.N.M"]
[{"$f":"\"INN.\"&EIGNIR!$B$3&C8903","v":{"$error":"#N/A"}},{"$f":"'Afleiður og skortstöð - skuldir'!I13","v":0},".M.SAFVAIN.XX.YFT.XXX.XXXX.SX.XXX.EUR.IS.N.M"]
[{"$f":"\"INN.\"&EIGNIR!$B$3&C8904","v":{"$error":"#N/A"}},{"$f":"'Afleiður og skortstöð - skuldir'!I14","v":0},".M.SAFVAIN.XX.SLY.XXX.XXXX.SX.XXX.EUR.IS.N.M"]
[{"$f":"\"INN.\"&EIGNIR!$B$3&C8905","v":{"$error":"#N/A"}},{"$f":"'Afleiður og skortstöð - skuldir'!I15","v":0},".M.SAFVAIN.XX.FHL.XXX.XXXX.SX.XXX.EUR.IS.N.M"]
[{"$f":"\"INN.\"&EIGNIR!$B$3&C8906","v":{"$error":"#N/A"}},{"$f":"'Afleiður og skortstöð - skuldir'!I16","v":0},".M.SAFVAIN.XX.INF.XXX.XXXX.SX.XXX.EUR.IS.N.M"]
[{"$f":"\"INN.\"&EIGNIR!$B$3&C8907","v":{"$error":"#N/A"}},{"$f":"'Afleiður og skortstöð - skuldir'!I17","v":0},".M.SAFVAIN.XX.TRY.XXX.XXXX.SX.XXX.EUR.IS.N.M"]
[{"$f":"\"INN.\"&EIGNIR!$B$3&C8908","v":{"$error":"#N/A"}},{"$f":"'Afleiður og skortstöð - skuldir'!I18","v":0},".M.SAFVAIN.XX.LIF.XXX.XXXX.SX.XXX.EUR.IS.N.M"]
[{"$f":"\"INN.\"&EIGNIR!$B$3&C8909","v":{"$error":"#N/A"}},{"$f":"'Afleiður og skortstöð - skuldir'!I19","v":0},".M.SAFVAIN.XX.OPI.XXX.XXXX.SX.XXX.EUR.IS.N.M"]
[{"$f":"\"INN.\"&EIGNIR!$B$3&C8910","v":{"$error":"#N/A"}},{"$f":"'Afleiður og skortstöð - skuldir'!I20","v":0},".M.SAFVAIN.XX.RSS.XXX.XXXX.SX.XXX.EUR.IS.N.M"]
[{"$f":"\"INN.\"&EIGNIR!$B$3&C8911","v":{"$error":"#N/A"}},{"$f":"'Afleiður og skortstöð - skuldir'!I21","v":0},".M.SAFVAIN.XX.BAJ.XXX.XXXX.SX.XXX.EUR.IS.N.M"]
[{"$f":"\"INN.\"&EIGNIR!$B$3&C8912","v":{"$error":"#N/A"}},{"$f":"'Afleiður og skortstöð - skuldir'!I22","v":0},".M.SAFVAIN.XX.EIN.XXX.XXXX.SX.XXX.EUR.IS.N.M"]
[{"$f":"\"INN.\"&EIGNIR!$B$3&C8913","v":{"$error":"#N/A"}},{"$f":"'Afleiður og skortstöð - skuldir'!I23","v":0},".M.SAFVAIN.XX.NPH.XXX.XXXX.SX.XXX.EUR.IS.N.M"]
[{"$f":"\"INN.\"&EIGNIR!$B$3&C8914","v":{"$error":"#N/A"}},{"$f":"'Afleiður og skortstöð - skuldir'!I24","v":0},".M.SAFVAER.XX.ERL.XXX.XXXX.SX.XXX.EUR.IS.N.M"]
[{"$f":"\"INN.\"&EIGNIR!$B$3&C8915","v":{"$error":"#N/A"}},{"$f":"'Afleiður og skortstöð - skuldir'!I25","v":0},".M.SAFVAER.XX.ERS.XXX.XXXX.SX.XXX.EUR.IS.N.M"]
[{"$f":"\"INN.\"&EIGNIR!$B$3&C8916","v":{"$error":"#N/A"}},{"$f":"'Afleiður og skortstöð - skuldir'!I26","v":0},".M.SAFVAER.XX.ERI.XXX.XXXX.SX.XXX.EUR.IS.N.M"]
[{"$f":"\"INN.\"&EIGNIR!$B$3&C8917","v":{"$error":"#N/A"}},{"$f":"'Afleiður og skortstöð - skuldir'!I27","v":0},".M.SAFVAER.XX.ERP.XXX.XXXX.SX.XXX.EUR.IS.N.M"]
[{"$f":"\"INN.\"&EIGNIR!$B$3&C8918","v":{"$error":"#N/A"}},{"$f":"'Afleiður og skortstöð - skuldir'!I28","v":0},".M.SAFVAER.XX.ERV.XXX.XXXX.SX.XXX.EUR.IS.N.M"]
[{"$f":"\"INN.\"&EIGNIR!$B$3&C8919","v":{"$error":"#N/A"}},{"$f":"'Afleiður og skortstöð - skuldir'!I29","v":0},".M.SAFVAER.XX.ERF.XXX.XXXX.SX.XXX.EUR.IS.N.M"]
[{"$f":"\"INN.\"&EIGNIR!$B$3&C8920","v":{"$error":"#N/A"}},{"$f":"'Afleiður og skortstöð - skuldir'!I30","v":0},".M.SAFVAER.XX.ERO.XXX.XXXX.SX.XXX.EUR.IS.N.M"]
[{"$f":"\"INN.\"&EIGNIR!$B$3&C8921","v":{"$error":"#N/A"}},{"$f":"'Afleiður og skortstöð - skuldir'!I31","v":0},".M.SAFVAER.XX.ERA.XXX.XXXX.SX.XXX.EUR.IS.N.M"]
[{"$f":"\"INN.\"&EIGNIR!$B$3&C8922","v":{"$error":"#N/A"}},{"$f":"'Afleiður og skortstöð - skuldir'!I32","v":0},".M.SAFFR$$.XX.$$$.XXX.XXXX.SX.XXX.EUR.IS.N.M"]
[{"$f":"\"INN.\"&EIGNIR!$B$3&C8923","v":{"$error":"#N/A"}},{"$f":"'Afleiður og skortstöð - skuldir'!I33","v":0},".M.SAFFRIN.XX.ATV.XXX.XXXX.SX.XXX.EUR.IS.N.M"]
[{"$f":"\"INN.\"&EIGNIR!$B$3&C8924","v":{"$error":"#N/A"}},{"$f":"'Afleiður og skortstöð - skuldir'!I34","v":0},".M.SAFFRIN.XX.FJA.XXX.XXXX.SX.XXX.EUR.IS.N.M"]
[{"$f":"\"INN.\"&EIGNIR!$B$3&C8925","v":{"$error":"#N/A"}},{"$f":"'Afleiður og skortstöð - skuldir'!I35","v":0},".M.SAFFRIN.XX.INN.XXX.XXXX.SX.XXX.EUR.IS.N.M"]
[{"$f":"\"INN.\"&EIGNIR!$B$3&C8926","v":{"$error":"#N/A"}},{"$f":"'Afleiður og skortstöð - skuldir'!I36","v":0},".M.SAFFRIN.XX.SLI.XXX.XXXX.SX.XXX.EUR.IS.N.M"]
[{"$f":"\"INN.\"&EIGNIR!$B$3&C8927","v":{"$error":"#N/A"}},{"$f":"'Afleiður og skortstöð - skuldir'!I37","v":0},".M.SAFFRIN.XX.PEN.XXX.XXXX.SX.XXX.EUR.IS.N.M"]
[{"$f":"\"INN.\"&EIGNIR!$B$3&C8928","v":{"$error":"#N/A"}},{"$f":"'Afleiður og skortstöð - skuldir'!I38","v":0},".M.SAFFRIN.XX.SJO.XXX.XXXX.SX.XXX.EUR.IS.N.M"]
[{"$f":"\"INN.\"&EIGNIR!$B$3&C8929","v":{"$error":"#N/A"}},{"$f":"'Afleiður og skortstöð - skuldir'!I39","v":0},".M.SAFFRIN.XX.YFT.XXX.XXXX.SX.XXX.EUR.IS.N.M"]
[{"$f":"\"INN.\"&EIGNIR!$B$3&C8930","v":{"$error":"#N/A"}},{"$f":"'Afleiður og skortstöð - skuldir'!I40","v":0},".M.SAFFRIN.XX.SLY.XXX.XXXX.SX.XXX.EUR.IS.N.M"]
[{"$f":"\"INN.\"&EIGNIR!$B$3&C8931","v":{"$error":"#N/A"}},{"$f":"'Afleiður og skortstöð - skuldir'!I41","v":0},".M.SAFFRIN.XX.FHL.XXX.XXXX.SX.XXX.EUR.IS.N.M"]
[{"$f":"\"INN.\"&EIGNIR!$B$3&C8932","v":{"$error":"#N/A"}},{"$f":"'Afleiður og skortstöð - skuldir'!I42","v":0},".M.SAFFRIN.XX.INF.XXX.XXXX.SX.XXX.EUR.IS.N.M"]
[{"$f":"\"INN.\"&EIGNIR!$B$3&C8933","v":{"$error":"#N/A"}},{"$f":"'Afleiður og skortstöð - skuldir'!I43","v":0},".M.SAFFRIN.XX.TRY.XXX.XXXX.SX.XXX.EUR.IS.N.M"]
[{"$f":"\"INN.\"&EIGNIR!$B$3&C8934","v":{"$error":"#N/A"}},{"$f":"'Afleiður og skortstöð - skuldir'!I44","v":0},".M.SAFFRIN.XX.LIF.XXX.XXXX.SX.XXX.EUR.IS.N.M"]
[{"$f":"\"INN.\"&EIGNIR!$B$3&C8935","v":{"$error":"#N/A"}},{"$f":"'Afleiður og skortstöð - skuldir'!I45","v":0},".M.SAFFRIN.XX.OPI.XXX.XXXX.SX.XXX.EUR.IS.N.M"]
[{"$f":"\"INN.\"&EIGNIR!$B$3&C8936","v":{"$error":"#N/A"}},{"$f":"'Afleiður og skortstöð - skuldir'!I46","v":0},".M.SAFFRIN.XX.RSS.XXX.XXXX.SX.XXX.EUR.IS.N.M"]
[{"$f":"\"INN.\"&EIGNIR!$B$3&C8937","v":{"$error":"#N/A"}},{"$f":"'Afleiður og skortstöð - skuldir'!I47","v":0},".M.SAFFRIN.XX.BAJ.XXX.XXXX.SX.XXX.EUR.IS.N.M"]
[{"$f":"\"INN.\"&EIGNIR!$B$3&C8938","v":{"$error":"#N/A"}},{"$f":"'Afleiður og skortstöð - skuldir'!I48","v":0},".M.SAFFRIN.XX.EIN.XXX.XXXX.SX.XXX.EUR.IS.N.M"]
[{"$f":"\"INN.\"&EIGNIR!$B$3&C8939","v":{"$error":"#N/A"}},{"$f":"'Afleiður og skortstöð - skuldir'!I49","v":0},".M.SAFFRIN.XX.NPH.XXX.XXXX.SX.XXX.EUR.IS.N.M"]
[{"$f":"\"INN.\"&EIGNIR!$B$3&C8940","v":{"$error":"#N/A"}},{"$f":"'Afleiður og skortstöð - skuldir'!I50","v":0},".M.SAFFRER.XX.ERL.XXX.XXXX.SX.XXX.EUR.IS.N.M"]
[{"$f":"\"INN.\"&EIGNIR!$B$3&C8941","v":{"$error":"#N/A"}},{"$f":"'Afleiður og skortstöð - skuldir'!I51","v":0},".M.SAFFRER.XX.ERS.XXX.XXXX.SX.XXX.EUR.IS.N.M"]
[{"$f":"\"INN.\"&EIGNIR!$B$3&C8942","v":{"$error":"#N/A"}},{"$f":"'Afleiður og skortstöð - skuldir'!I52","v":0},".M.SAFFRER.XX.ERI.XXX.XXXX.SX.XXX.EUR.IS.N.M"]
[{"$f":"\"INN.\"&EIGNIR!$B$3&C8943","v":{"$error":"#N/A"}},{"$f":"'Afleiður og skortstöð - skuldir'!I53","v":0},".M.SAFFRER.XX.ERP.XXX.XXXX.SX.XXX.EUR.IS.N.M"]
[{"$f":"\"INN.\"&EIGNIR!$B$3&C8944","v":{"$error":"#N/A"}},{"$f":"'Afleiður og skortstöð - skuldir'!I54","v":0},".M.SAFFRER.XX.ERV.XXX.XXXX.SX.XXX.EUR.IS.N.M"]
[{"$f":"\"INN.\"&EIGNIR!$B$3&C8945","v":{"$error":"#N/A"}},{"$f":"'Afleiður og skortstöð - skuldir'!I55","v":0},".M.SAFFRER.XX.ERF.XXX.XXXX.SX.XXX.EUR.IS.N.M"]
[{"$f":"\"INN.\"&EIGNIR!$B$3&C8946","v":{"$error":"#N/A"}},{"$f":"'Afleiður og skortstöð - skuldir'!I56","v":0},".M.SAFFRER.XX.ERO.XXX.XXXX.SX.XXX.EUR.IS.N.M"]
[{"$f":"\"INN.\"&EIGNIR!$B$3&C8947","v":{"$error":"#N/A"}},{"$f":"'Afleiður og skortstöð - skuldir'!I57","v":0},".M.SAFFRER.XX.ERA.XXX.XXXX.SX.XXX.EUR.IS.N.M"]
[{"$f":"\"INN.\"&EIGNIR!$B$3&C8948","v":{"$error":"#N/A"}},{"$f":"'Afleiður og skortstöð - skuldir'!I58","v":0},".M.SAFSK$$.XX.$$$.XXX.XXXX.SX.XXX.EUR.IS.N.M"]
[{"$f":"\"INN.\"&EIGNIR!$B$3&C8949","v":{"$error":"#N/A"}},{"$f":"'Afleiður og skortstöð - skuldir'!I59","v":0},".M.SAFSKIN.XX.ATV.XXX.XXXX.SX.XXX.EUR.IS.N.M"]
[{"$f":"\"INN.\"&EIGNIR!$B$3&C8950","v":{"$error":"#N/A"}},{"$f":"'Afleiður og skortstöð - skuldir'!I60","v":0},".M.SAFSKIN.XX.FJA.XXX.XXXX.SX.XXX.EUR.IS.N.M"]
[{"$f":"\"INN.\"&EIGNIR!$B$3&C8951","v":{"$error":"#N/A"}},{"$f":"'Afleiður og skortstöð - skuldir'!I61","v":0},".M.SAFSKIN.XX.INN.XXX.XXXX.SX.XXX.EUR.IS.N.M"]
[{"$f":"\"INN.\"&EIGNIR!$B$3&C8952","v":{"$error":"#N/A"}},{"$f":"'Afleiður og skortstöð - skuldir'!I62","v":0},".M.SAFSKIN.XX.SLI.XXX.XXXX.SX.XXX.EUR.IS.N.M"]
[{"$f":"\"INN.\"&EIGNIR!$B$3&C8953","v":{"$error":"#N/A"}},{"$f":"'Afleiður og skortstöð - skuldir'!I63","v":0},".M.SAFSKIN.XX.PEN.XXX.XXXX.SX.XXX.EUR.IS.N.M"]
[{"$f":"\"INN.\"&EIGNIR!$B$3&C8954","v":{"$error":"#N/A"}},{"$f":"'Afleiður og skortstöð - skuldir'!I64","v":0},".M.SAFSKIN.XX.SJO.XXX.XXXX.SX.XXX.EUR.IS.N.M"]
[{"$f":"\"INN.\"&EIGNIR!$B$3&C8955","v":{"$error":"#N/A"}},{"$f":"'Afleiður og skortstöð - skuldir'!I65","v":0},".M.SAFSKIN.XX.YFT.XXX.XXXX.SX.XXX.EUR.IS.N.M"]
[{"$f":"\"INN.\"&EIGNIR!$B$3&C8956","v":{"$error":"#N/A"}},{"$f":"'Afleiður og skortstöð - skuldir'!I66","v":0},".M.SAFSKIN.XX.SLY.XXX.XXXX.SX.XXX.EUR.IS.N.M"]
[{"$f":"\"INN.\"&EIGNIR!$B$3&C8957","v":{"$error":"#N/A"}},{"$f":"'Afleiður og skortstöð - skuldir'!I67","v":0},".M.SAFSKIN.XX.FHL.XXX.XXXX.SX.XXX.EUR.IS.N.M"]
[{"$f":"\"INN.\"&EIGNIR!$B$3&C8958","v":{"$error":"#N/A"}},{"$f":"'Afleiður og skortstöð - skuldir'!I68","v":0},".M.SAFSKIN.XX.INF.XXX.XXXX.SX.XXX.EUR.IS.N.M"]
[{"$f":"\"INN.\"&EIGNIR!$B$3&C8959","v":{"$error":"#N/A"}},{"$f":"'Afleiður og skortstöð - skuldir'!I69","v":0},".M.SAFSKIN.XX.TRY.XXX.XXXX.SX.XXX.EUR.IS.N.M"]
[{"$f":"\"INN.\"&EIGNIR!$B$3&C8960","v":{"$error":"#N/A"}},{"$f":"'Afleiður og skortstöð - skuldir'!I70","v":0},".M.SAFSKIN.XX.LIF.XXX.XXXX.SX.XXX.EUR.IS.N.M"]
[{"$f":"\"INN.\"&EIGNIR!$B$3&C8961","v":{"$error":"#N/A"}},{"$f":"'Afleiður og skortstöð - skuldir'!I71","v":0},".M.SAFSKIN.XX.OPI.XXX.XXXX.SX.XXX.EUR.IS.N.M"]
[{"$f":"\"INN.\"&EIGNIR!$B$3&C8962","v":{"$error":"#N/A"}},{"$f":"'Afleiður og skortstöð - skuldir'!I72","v":0},".M.SAFSKIN.XX.RSS.XXX.XXXX.SX.XXX.EUR.IS.N.M"]
[{"$f":"\"INN.\"&EIGNIR!$B$3&C8963","v":{"$error":"#N/A"}},{"$f":"'Afleiður og skortstöð - skuldir'!I73","v":0},".M.SAFSKIN.XX.BAJ.XXX.XXXX.SX.XXX.EUR.IS.N.M"]
[{"$f":"\"INN.\"&EIGNIR!$B$3&C8964","v":{"$error":"#N/A"}},{"$f":"'Afleiður og skortstöð - skuldir'!I74","v":0},".M.SAFSKIN.XX.EIN.XXX.XXXX.SX.XXX.EUR.IS.N.M"]
[{"$f":"\"INN.\"&EIGNIR!$B$3&C8965","v":{"$error":"#N/A"}},{"$f":"'Afleiður og skortstöð - skuldir'!I75","v":0},".M.SAFSKIN.XX.NPH.XXX.XXXX.SX.XXX.EUR.IS.N.M"]
[{"$f":"\"INN.\"&EIGNIR!$B$3&C8966","v":{"$error":"#N/A"}},{"$f":"'Afleiður og skortstöð - skuldir'!I76","v":0},".M.SAFSKER.XX.ERL.XXX.XXXX.SX.XXX.EUR.IS.N.M"]
[{"$f":"\"INN.\"&EIGNIR!$B$3&C8967","v":{"$error":"#N/A"}},{"$f":"'Afleiður og skortstöð - skuldir'!I77","v":0},".M.SAFSKER.XX.ERS.XXX.XXXX.SX.XXX.EUR.IS.N.M"]
[{"$f":"\"INN.\"&EIGNIR!$B$3&C8968","v":{"$error":"#N/A"}},{"$f":"'Afleiður og skortstöð - skuldir'!I78","v":0},".M.SAFSKER.XX.ERI.XXX.XXXX.SX.XXX.EUR.IS.N.M"]
[{"$f":"\"INN.\"&EIGNIR!$B$3&C8969","v":{"$error":"#N/A"}},{"$f":"'Afleiður og skortstöð - skuldir'!I79","v":0},".M.SAFSKER.XX.ERP.XXX.XXXX.SX.XXX.EUR.IS.N.M"]
[{"$f":"\"INN.\"&EIGNIR!$B$3&C8970","v":{"$error":"#N/A"}},{"$f":"'Afleiður og skortstöð - skuldir'!I80","v":0},".M.SAFSKER.XX.ERV.XXX.XXXX.SX.XXX.EUR.IS.N.M"]
[{"$f":"\"INN.\"&EIGNIR!$B$3&C8971","v":{"$error":"#N/A"}},{"$f":"'Afleiður og skortstöð - skuldir'!I81","v":0},".M.SAFSKER.XX.ERF.XXX.XXXX.SX.XXX.EUR.IS.N.M"]
[{"$f":"\"INN.\"&EIGNIR!$B$3&C8972","v":{"$error":"#N/A"}},{"$f":"'Afleiður og skortstöð - skuldir'!I82","v":0},".M.SAFSKER.XX.ERO.XXX.XXXX.SX.XXX.EUR.IS.N.M"]
[{"$f":"\"INN.\"&EIGNIR!$B$3&C8973","v":{"$error":"#N/A"}},{"$f":"'Afleiður og skortstöð - skuldir'!I83","v":0},".M.SAFSKER.XX.ERA.XXX.XXXX.SX.XXX.EUR.IS.N.M"]
[{"$f":"\"INN.\"&EIGNIR!$B$3&C8974","v":{"$error":"#N/A"}},{"$f":"'Afleiður og skortstöð - skuldir'!I84","v":0},".M.SAFSS$$.XX.$$$.XXX.XXXX.SX.XXX.EUR.IS.N.M"]
[{"$f":"\"INN.\"&EIGNIR!$B$3&C8975","v":{"$error":"#N/A"}},{"$f":"'Afleiður og skortstöð - skuldir'!I85","v":0},".M.SAFSSIN.XX.ATV.XXX.XXXX.SX.XXX.EUR.IS.N.M"]
[{"$f":"\"INN.\"&EIGNIR!$B$3&C8976","v":{"$error":"#N/A"}},{"$f":"'Afleiður og skortstöð - skuldir'!I86","v":0},".M.SAFSSIN.XX.FJA.XXX.XXXX.SX.XXX.EUR.IS.N.M"]
[{"$f":"\"INN.\"&EIGNIR!$B$3&C8977","v":{"$error":"#N/A"}},{"$f":"'Afleiður og skortstöð - skuldir'!I87","v":0},".M.SAFSSIN.XX.INN.XXX.XXXX.SX.XXX.EUR.IS.N.M"]
[{"$f":"\"INN.\"&EIGNIR!$B$3&C8978","v":{"$error":"#N/A"}},{"$f":"'Afleiður og skortstöð - skuldir'!I88","v":0},".M.SAFSSIN.XX.SLI.XXX.XXXX.SX.XXX.EUR.IS.N.M"]
[{"$f":"\"INN.\"&EIGNIR!$B$3&C8979","v":{"$error":"#N/A"}},{"$f":"'Afleiður og skortstöð - skuldir'!I89","v":0},".M.SAFSSIN.XX.PEN.XXX.XXXX.SX.XXX.EUR.IS.N.M"]
[{"$f":"\"INN.\"&EIGNIR!$B$3&C8980","v":{"$error":"#N/A"}},{"$f":"'Afleiður og skortstöð - skuldir'!I90","v":0},".M.SAFSSIN.XX.SJO.XXX.XXXX.SX.XXX.EUR.IS.N.M"]
[{"$f":"\"INN.\"&EIGNIR!$B$3&C8981","v":{"$error":"#N/A"}},{"$f":"'Afleiður og skortstöð - skuldir'!I91","v":0},".M.SAFSSIN.XX.YFT.XXX.XXXX.SX.XXX.EUR.IS.N.M"]
[{"$f":"\"INN.\"&EIGNIR!$B$3&C8982","v":{"$error":"#N/A"}},{"$f":"'Afleiður og skortstöð - skuldir'!I92","v":0},".M.SAFSSIN.XX.SLY.XXX.XXXX.SX.XXX.EUR.IS.N.M"]
[{"$f":"\"INN.\"&EIGNIR!$B$3&C8983","v":{"$error":"#N/A"}},{"$f":"'Afleiður og skortstöð - skuldir'!I93","v":0},".M.SAFSSIN.XX.FHL.XXX.XXXX.SX.XXX.EUR.IS.N.M"]
[{"$f":"\"INN.\"&EIGNIR!$B$3&C8984","v":{"$error":"#N/A"}},{"$f":"'Afleiður og skortstöð - skuldir'!I94","v":0},".M.SAFSSIN.XX.INF.XXX.XXXX.SX.XXX.EUR.IS.N.M"]
[{"$f":"\"INN.\"&EIGNIR!$B$3&C8985","v":{"$error":"#N/A"}},{"$f":"'Afleiður og skortstöð - skuldir'!I95","v":0},".M.SAFSSIN.XX.TRY.XXX.XXXX.SX.XXX.EUR.IS.N.M"]
[{"$f":"\"INN.\"&EIGNIR!$B$3&C8986","v":{"$error":"#N/A"}},{"$f":"'Afleiður og skortstöð - skuldir'!I96","v":0},".M.SAFSSIN.XX.LIF.XXX.XXXX.SX.XXX.EUR.IS.N.M"]
[{"$f":"\"INN.\"&EIGNIR!$B$3&C8987","v":{"$error":"#N/A"}},{"$f":"'Afleiður og skortstöð - skuldir'!I97","v":0},".M.SAFSSIN.XX.OPI.XXX.XXXX.SX.XXX.EUR.IS.N.M"]
[{"$f":"\"INN.\"&EIGNIR!$B$3&C8988","v":{"$error":"#N/A"}},{"$f":"'Afleiður og skortstöð - skuldir'!I98","v":0},".M.SAFSSIN.XX.RSS.XXX.XXXX.SX.XXX.EUR.IS.N.M"]
[{"$f":"\"INN.\"&EIGNIR!$B$3&C8989","v":{"$error":"#N/A"}},{"$f":"'Afleiður og skortstöð - skuldir'!I99","v":0},".M.SAFSSIN.XX.BAJ.XXX.XXXX.SX.XXX.EUR.IS.N.M"]
[{"$f":"\"INN.\"&EIGNIR!$B$3&C8990","v":{"$error":"#N/A"}},{"$f":"'Afleiður og skortstöð - skuldir'!I100","v":0},".M.SAFSSIN.XX.EIN.XXX.XXXX.SX.XXX.EUR.IS.N.M"]
[{"$f":"\"INN.\"&EIGNIR!$B$3&C8991","v":{"$error":"#N/A"}},{"$f":"'Afleiður og skortstöð - skuldir'!I101","v":0},".M.SAFSSIN.XX.NPH.XXX.XXXX.SX.XXX.EUR.IS.N.M"]
[{"$f":"\"INN.\"&EIGNIR!$B$3&C8992","v":{"$error":"#N/A"}},{"$f":"'Afleiður og skortstöð - skuldir'!I102","v":0},".M.SAFSSER.XX.ERL.XXX.XXXX.SX.XXX.EUR.IS.N.M"]
[{"$f":"\"INN.\"&EIGNIR!$B$3&C8993","v":{"$error":"#N/A"}},{"$f":"'Afleiður og skortstöð - skuldir'!I103","v":0},".M.SAFSSER.XX.ERS.XXX.XXXX.SX.XXX.EUR.IS.N.M"]
[{"$f":"\"INN.\"&EIGNIR!$B$3&C8994","v":{"$error":"#N/A"}},{"$f":"'Afleiður og skortstöð - skuldir'!I104","v":0},".M.SAFSSER.XX.ERI.XXX.XXXX.SX.XXX.EUR.IS.N.M"]
[{"$f":"\"INN.\"&EIGNIR!$B$3&C8995","v":{"$error":"#N/A"}},{"$f":"'Afleiður og skortstöð - skuldir'!I105","v":0},".M.SAFSSER.XX.ERP.XXX.XXXX.SX.XXX.EUR.IS.N.M"]
[{"$f":"\"INN.\"&EIGNIR!$B$3&C8996","v":{"$error":"#N/A"}},{"$f":"'Afleiður og skortstöð - skuldir'!I106","v":0},".M.SAFSSER.XX.ERV.XXX.XXXX.SX.XXX.EUR.IS.N.M"]
[{"$f":"\"INN.\"&EIGNIR!$B$3&C8997","v":{"$error":"#N/A"}},{"$f":"'Afleiður og skortstöð - skuldir'!I107","v":0},".M.SAFSSER.XX.ERF.XXX.XXXX.SX.XXX.EUR.IS.N.M"]
[{"$f":"\"INN.\"&EIGNIR!$B$3&C8998","v":{"$error":"#N/A"}},{"$f":"'Afleiður og skortstöð - skuldir'!I108","v":0},".M.SAFSSER.XX.ERO.XXX.XXXX.SX.XXX.EUR.IS.N.M"]
[{"$f":"\"INN.\"&EIGNIR!$B$3&C8999","v":{"$error":"#N/A"}},{"$f":"'Afleiður og skortstöð - skuldir'!I109","v":0},".M.SAFSSER.XX.ERA.XXX.XXXX.SX.XXX.EUR.IS.N.M"]
[{"$f":"\"INN.\"&EIGNIR!$B$3&C9000","v":{"$error":"#N/A"}},{"$f":"'Afleiður og skortstöð - skuldir'!I110","v":0},".M.SAFSSEH.XX.ERL.XXX.XXXX.SX.XXX.EUR.IS.N.M"]
[{"$f":"\"INN.\"&EIGNIR!$B$3&C9001","v":{"$error":"#N/A"}},{"$f":"'Afleiður og skortstöð - skuldir'!I111","v":0},".M.SAFSSES.XX.ERL.XXX.XXXX.SX.SKT.EUR.IS.N.M"]
[{"$f":"\"INN.\"&EIGNIR!$B$3&C9002","v":{"$error":"#N/A"}},{"$f":"'Afleiður og skortstöð - skuldir'!I112","v":0},".M.SAFSSES.XX.ERL.XXX.XXXX.SX.LAT.EUR.IS.N.M"]
[{"$f":"\"INN.\"&EIGNIR!$B$3&C9003","v":{"$error":"#N/A"}},{"$f":"'Afleiður og skortstöð - skuldir'!J5","v":0},".M.SAF$$$$.XX.$$$.XXX.XXXX.SX.XXX.USD.IS.N.M","//Sundurliðun afleiður USD"]
[{"$f":"\"INN.\"&EIGNIR!$B$3&C9004","v":{"$error":"#N/A"}},{"$f":"'Afleiður og skortstöð - skuldir'!J6","v":0},".M.SAFVA$$.XX.$$$.XXX.XXXX.SX.XXX.USD.IS.N.M"]
[{"$f":"\"INN.\"&EIGNIR!$B$3&C9005","v":{"$error":"#N/A"}},{"$f":"'Afleiður og skortstöð - skuldir'!J7","v":0},".M.SAFVAIN.XX.ATV.XXX.XXXX.SX.XXX.USD.IS.N.M"]
[{"$f":"\"INN.\"&EIGNIR!$B$3&C9006","v":{"$error":"#N/A"}},{"$f":"'Afleiður og skortstöð - skuldir'!J8","v":0},".M.SAFVAIN.XX.FJA.XXX.XXXX.SX.XXX.USD.IS.N.M"]
[{"$f":"\"INN.\"&EIGNIR!$B$3&C9007","v":{"$error":"#N/A"}},{"$f":"'Afleiður og skortstöð - skuldir'!J9","v":0},".M.SAFVAIN.XX.INN.XXX.XXXX.SX.XXX.USD.IS.N.M"]
[{"$f":"\"INN.\"&EIGNIR!$B$3&C9008","v":{"$error":"#N/A"}},{"$f":"'Afleiður og skortstöð - skuldir'!J10","v":0},".M.SAFVAIN.XX.SLI.XXX.XXXX.SX.XXX.USD.IS.N.M"]
[{"$f":"\"INN.\"&EIGNIR!$B$3&C9009","v":{"$error":"#N/A"}},{"$f":"'Afleiður og skortstöð - skuldir'!J11","v":0},".M.SAFVAIN.XX.PEN.XXX.XXXX.SX.XXX.USD.IS.N.M"]
[{"$f":"\"INN.\"&EIGNIR!$B$3&C9010","v":{"$error":"#N/A"}},{"$f":"'Afleiður og skortstöð - skuldir'!J12","v":0},".M.SAFVAIN.XX.SJO.XXX.XXXX.SX.XXX.USD.IS.N.M"]
[{"$f":"\"INN.\"&EIGNIR!$B$3&C9011","v":{"$error":"#N/A"}},{"$f":"'Afleiður og skortstöð - skuldir'!J13","v":0},".M.SAFVAIN.XX.YFT.XXX.XXXX.SX.XXX.USD.IS.N.M"]
[{"$f":"\"INN.\"&EIGNIR!$B$3&C9012","v":{"$error":"#N/A"}},{"$f":"'Afleiður og skortstöð - skuldir'!J14","v":0},".M.SAFVAIN.XX.SLY.XXX.XXXX.SX.XXX.USD.IS.N.M"]
[{"$f":"\"INN.\"&EIGNIR!$B$3&C9013","v":{"$error":"#N/A"}},{"$f":"'Afleiður og skortstöð - skuldir'!J15","v":0},".M.SAFVAIN.XX.FHL.XXX.XXXX.SX.XXX.USD.IS.N.M"]
[{"$f":"\"INN.\"&EIGNIR!$B$3&C9014","v":{"$error":"#N/A"}},{"$f":"'Afleiður og skortstöð - skuldir'!J16","v":0},".M.SAFVAIN.XX.INF.XXX.XXXX.SX.XXX.USD.IS.N.M"]
[{"$f":"\"INN.\"&EIGNIR!$B$3&C9015","v":{"$error":"#N/A"}},{"$f":"'Afleiður og skortstöð - skuldir'!J17","v":0},".M.SAFVAIN.XX.TRY.XXX.XXXX.SX.XXX.USD.IS.N.M"]
[{"$f":"\"INN.\"&EIGNIR!$B$3&C9016","v":{"$error":"#N/A"}},{"$f":"'Afleiður og skortstöð - skuldir'!J18","v":0},".M.SAFVAIN.XX.LIF.XXX.XXXX.SX.XXX.USD.IS.N.M"]
[{"$f":"\"INN.\"&EIGNIR!$B$3&C9017","v":{"$error":"#N/A"}},{"$f":"'Afleiður og skortstöð - skuldir'!J19","v":0},".M.SAFVAIN.XX.OPI.XXX.XXXX.SX.XXX.USD.IS.N.M"]
[{"$f":"\"INN.\"&EIGNIR!$B$3&C9018","v":{"$error":"#N/A"}},{"$f":"'Afleiður og skortstöð - skuldir'!J20","v":0},".M.SAFVAIN.XX.RSS.XXX.XXXX.SX.XXX.USD.IS.N.M"]
[{"$f":"\"INN.\"&EIGNIR!$B$3&C9019","v":{"$error":"#N/A"}},{"$f":"'Afleiður og skortstöð - skuldir'!J21","v":0},".M.SAFVAIN.XX.BAJ.XXX.XXXX.SX.XXX.USD.IS.N.M"]
[{"$f":"\"INN.\"&EIGNIR!$B$3&C9020","v":{"$error":"#N/A"}},{"$f":"'Afleiður og skortstöð - skuldir'!J22","v":0},".M.SAFVAIN.XX.EIN.XXX.XXXX.SX.XXX.USD.IS.N.M"]
[{"$f":"\"INN.\"&EIGNIR!$B$3&C9021","v":{"$error":"#N/A"}},{"$f":"'Afleiður og skortstöð - skuldir'!J23","v":0},".M.SAFVAIN.XX.NPH.XXX.XXXX.SX.XXX.USD.IS.N.M"]
[{"$f":"\"INN.\"&EIGNIR!$B$3&C9022","v":{"$error":"#N/A"}},{"$f":"'Afleiður og skortstöð - skuldir'!J24","v":0},".M.SAFVAER.XX.ERL.XXX.XXXX.SX.XXX.USD.IS.N.M"]
[{"$f":"\"INN.\"&EIGNIR!$B$3&C9023","v":{"$error":"#N/A"}},{"$f":"'Afleiður og skortstöð - skuldir'!J25","v":0},".M.SAFVAER.XX.ERS.XXX.XXXX.SX.XXX.USD.IS.N.M"]
[{"$f":"\"INN.\"&EIGNIR!$B$3&C9024","v":{"$error":"#N/A"}},{"$f":"'Afleiður og skortstöð - skuldir'!J26","v":0},".M.SAFVAER.XX.ERI.XXX.XXXX.SX.XXX.USD.IS.N.M"]
[{"$f":"\"INN.\"&EIGNIR!$B$3&C9025","v":{"$error":"#N/A"}},{"$f":"'Afleiður og skortstöð - skuldir'!J27","v":0},".M.SAFVAER.XX.ERP.XXX.XXXX.SX.XXX.USD.IS.N.M"]
[{"$f":"\"INN.\"&EIGNIR!$B$3&C9026","v":{"$error":"#N/A"}},{"$f":"'Afleiður og skortstöð - skuldir'!J28","v":0},".M.SAFVAER.XX.ERV.XXX.XXXX.SX.XXX.USD.IS.N.M"]
[{"$f":"\"INN.\"&EIGNIR!$B$3&C9027","v":{"$error":"#N/A"}},{"$f":"'Afleiður og skortstöð - skuldir'!J29","v":0},".M.SAFVAER.XX.ERF.XXX.XXXX.SX.XXX.USD.IS.N.M"]
[{"$f":"\"INN.\"&EIGNIR!$B$3&C9028","v":{"$error":"#N/A"}},{"$f":"'Afleiður og skortstöð - skuldir'!J30","v":0},".M.SAFVAER.XX.ERO.XXX.XXXX.SX.XXX.USD.IS.N.M"]
[{"$f":"\"INN.\"&EIGNIR!$B$3&C9029","v":{"$error":"#N/A"}},{"$f":"'Afleiður og skortstöð - skuldir'!J31","v":0},".M.SAFVAER.XX.ERA.XXX.XXXX.SX.XXX.USD.IS.N.M"]
[{"$f":"\"INN.\"&EIGNIR!$B$3&C9030","v":{"$error":"#N/A"}},{"$f":"'Afleiður og skortstöð - skuldir'!J32","v":0},".M.SAFFR$$.XX.$$$.XXX.XXXX.SX.XXX.USD.IS.N.M"]
[{"$f":"\"INN.\"&EIGNIR!$B$3&C9031","v":{"$error":"#N/A"}},{"$f":"'Afleiður og skortstöð - skuldir'!J33","v":0},".M.SAFFRIN.XX.ATV.XXX.XXXX.SX.XXX.USD.IS.N.M"]
[{"$f":"\"INN.\"&EIGNIR!$B$3&C9032","v":{"$error":"#N/A"}},{"$f":"'Afleiður og skortstöð - skuldir'!J34","v":0},".M.SAFFRIN.XX.FJA.XXX.XXXX.SX.XXX.USD.IS.N.M"]
[{"$f":"\"INN.\"&EIGNIR!$B$3&C9033","v":{"$error":"#N/A"}},{"$f":"'Afleiður og skortstöð - skuldir'!J35","v":0},".M.SAFFRIN.XX.INN.XXX.XXXX.SX.XXX.USD.IS.N.M"]
[{"$f":"\"INN.\"&EIGNIR!$B$3&C9034","v":{"$error":"#N/A"}},{"$f":"'Afleiður og skortstöð - skuldir'!J36","v":0},".M.SAFFRIN.XX.SLI.XXX.XXXX.SX.XXX.USD.IS.N.M"]
[{"$f":"\"INN.\"&EIGNIR!$B$3&C9035","v":{"$error":"#N/A"}},{"$f":"'Afleiður og skortstöð - skuldir'!J37","v":0},".M.SAFFRIN.XX.PEN.XXX.XXXX.SX.XXX.USD.IS.N.M"]
[{"$f":"\"INN.\"&EIGNIR!$B$3&C9036","v":{"$error":"#N/A"}},{"$f":"'Afleiður og skortstöð - skuldir'!J38","v":0},".M.SAFFRIN.XX.SJO.XXX.XXXX.SX.XXX.USD.IS.N.M"]
[{"$f":"\"INN.\"&EIGNIR!$B$3&C9037","v":{"$error":"#N/A"}},{"$f":"'Afleiður og skortstöð - skuldir'!J39","v":0},".M.SAFFRIN.XX.YFT.XXX.XXXX.SX.XXX.USD.IS.N.M"]
[{"$f":"\"INN.\"&EIGNIR!$B$3&C9038","v":{"$error":"#N/A"}},{"$f":"'Afleiður og skortstöð - skuldir'!J40","v":0},".M.SAFFRIN.XX.SLY.XXX.XXXX.SX.XXX.USD.IS.N.M"]
[{"$f":"\"INN.\"&EIGNIR!$B$3&C9039","v":{"$error":"#N/A"}},{"$f":"'Afleiður og skortstöð - skuldir'!J41","v":0},".M.SAFFRIN.XX.FHL.XXX.XXXX.SX.XXX.USD.IS.N.M"]
[{"$f":"\"INN.\"&EIGNIR!$B$3&C9040","v":{"$error":"#N/A"}},{"$f":"'Afleiður og skortstöð - skuldir'!J42","v":0},".M.SAFFRIN.XX.INF.XXX.XXXX.SX.XXX.USD.IS.N.M"]
[{"$f":"\"INN.\"&EIGNIR!$B$3&C9041","v":{"$error":"#N/A"}},{"$f":"'Afleiður og skortstöð - skuldir'!J43","v":0},".M.SAFFRIN.XX.TRY.XXX.XXXX.SX.XXX.USD.IS.N.M"]
[{"$f":"\"INN.\"&EIGNIR!$B$3&C9042","v":{"$error":"#N/A"}},{"$f":"'Afleiður og skortstöð - skuldir'!J44","v":0},".M.SAFFRIN.XX.LIF.XXX.XXXX.SX.XXX.USD.IS.N.M"]
[{"$f":"\"INN.\"&EIGNIR!$B$3&C9043","v":{"$error":"#N/A"}},{"$f":"'Afleiður og skortstöð - skuldir'!J45","v":0},".M.SAFFRIN.XX.OPI.XXX.XXXX.SX.XXX.USD.IS.N.M"]
[{"$f":"\"INN.\"&EIGNIR!$B$3&C9044","v":{"$error":"#N/A"}},{"$f":"'Afleiður og skortstöð - skuldir'!J46","v":0},".M.SAFFRIN.XX.RSS.XXX.XXXX.SX.XXX.USD.IS.N.M"]
[{"$f":"\"INN.\"&EIGNIR!$B$3&C9045","v":{"$error":"#N/A"}},{"$f":"'Afleiður og skortstöð - skuldir'!J47","v":0},".M.SAFFRIN.XX.BAJ.XXX.XXXX.SX.XXX.USD.IS.N.M"]
[{"$f":"\"INN.\"&EIGNIR!$B$3&C9046","v":{"$error":"#N/A"}},{"$f":"'Afleiður og skortstöð - skuldir'!J48","v":0},".M.SAFFRIN.XX.EIN.XXX.XXXX.SX.XXX.USD.IS.N.M"]
[{"$f":"\"INN.\"&EIGNIR!$B$3&C9047","v":{"$error":"#N/A"}},{"$f":"'Afleiður og skortstöð - skuldir'!J49","v":0},".M.SAFFRIN.XX.NPH.XXX.XXXX.SX.XXX.USD.IS.N.M"]
[{"$f":"\"INN.\"&EIGNIR!$B$3&C9048","v":{"$error":"#N/A"}},{"$f":"'Afleiður og skortstöð - skuldir'!J50","v":0},".M.SAFFRER.XX.ERL.XXX.XXXX.SX.XXX.USD.IS.N.M"]
[{"$f":"\"INN.\"&EIGNIR!$B$3&C9049","v":{"$error":"#N/A"}},{"$f":"'Afleiður og skortstöð - skuldir'!J51","v":0},".M.SAFFRER.XX.ERS.XXX.XXXX.SX.XXX.USD.IS.N.M"]
[{"$f":"\"INN.\"&EIGNIR!$B$3&C9050","v":{"$error":"#N/A"}},{"$f":"'Afleiður og skortstöð - skuldir'!J52","v":0},".M.SAFFRER.XX.ERI.XXX.XXXX.SX.XXX.USD.IS.N.M"]
[{"$f":"\"INN.\"&EIGNIR!$B$3&C9051","v":{"$error":"#N/A"}},{"$f":"'Afleiður og skortstöð - skuldir'!J53","v":0},".M.SAFFRER.XX.ERP.XXX.XXXX.SX.XXX.USD.IS.N.M"]
[{"$f":"\"INN.\"&EIGNIR!$B$3&C9052","v":{"$error":"#N/A"}},{"$f":"'Afleiður og skortstöð - skuldir'!J54","v":0},".M.SAFFRER.XX.ERV.XXX.XXXX.SX.XXX.USD.IS.N.M"]
[{"$f":"\"INN.\"&EIGNIR!$B$3&C9053","v":{"$error":"#N/A"}},{"$f":"'Afleiður og skortstöð - skuldir'!J55","v":0},".M.SAFFRER.XX.ERF.XXX.XXXX.SX.XXX.USD.IS.N.M"]
[{"$f":"\"INN.\"&EIGNIR!$B$3&C9054","v":{"$error":"#N/A"}},{"$f":"'Afleiður og skortstöð - skuldir'!J56","v":0},".M.SAFFRER.XX.ERO.XXX.XXXX.SX.XXX.USD.IS.N.M"]
[{"$f":"\"INN.\"&EIGNIR!$B$3&C9055","v":{"$error":"#N/A"}},{"$f":"'Afleiður og skortstöð - skuldir'!J57","v":0},".M.SAFFRER.XX.ERA.XXX.XXXX.SX.XXX.USD.IS.N.M"]
[{"$f":"\"INN.\"&EIGNIR!$B$3&C9056","v":{"$error":"#N/A"}},{"$f":"'Afleiður og skortstöð - skuldir'!J58","v":0},".M.SAFSK$$.XX.$$$.XXX.XXXX.SX.XXX.USD.IS.N.M"]
[{"$f":"\"INN.\"&EIGNIR!$B$3&C9057","v":{"$error":"#N/A"}},{"$f":"'Afleiður og skortstöð - skuldir'!J59","v":0},".M.SAFSKIN.XX.ATV.XXX.XXXX.SX.XXX.USD.IS.N.M"]
[{"$f":"\"INN.\"&EIGNIR!$B$3&C9058","v":{"$error":"#N/A"}},{"$f":"'Afleiður og skortstöð - skuldir'!J60","v":0},".M.SAFSKIN.XX.FJA.XXX.XXXX.SX.XXX.USD.IS.N.M"]
[{"$f":"\"INN.\"&EIGNIR!$B$3&C9059","v":{"$error":"#N/A"}},{"$f":"'Afleiður og skortstöð - skuldir'!J61","v":0},".M.SAFSKIN.XX.INN.XXX.XXXX.SX.XXX.USD.IS.N.M"]
[{"$f":"\"INN.\"&EIGNIR!$B$3&C9060","v":{"$error":"#N/A"}},{"$f":"'Afleiður og skortstöð - skuldir'!J62","v":0},".M.SAFSKIN.XX.SLI.XXX.XXXX.SX.XXX.USD.IS.N.M"]
[{"$f":"\"INN.\"&EIGNIR!$B$3&C9061","v":{"$error":"#N/A"}},{"$f":"'Afleiður og skortstöð - skuldir'!J63","v":0},".M.SAFSKIN.XX.PEN.XXX.XXXX.SX.XXX.USD.IS.N.M"]
[{"$f":"\"INN.\"&EIGNIR!$B$3&C9062","v":{"$error":"#N/A"}},{"$f":"'Afleiður og skortstöð - skuldir'!J64","v":0},".M.SAFSKIN.XX.SJO.XXX.XXXX.SX.XXX.USD.IS.N.M"]
[{"$f":"\"INN.\"&EIGNIR!$B$3&C9063","v":{"$error":"#N/A"}},{"$f":"'Afleiður og skortstöð - skuldir'!J65","v":0},".M.SAFSKIN.XX.YFT.XXX.XXXX.SX.XXX.USD.IS.N.M"]
[{"$f":"\"INN.\"&EIGNIR!$B$3&C9064","v":{"$error":"#N/A"}},{"$f":"'Afleiður og skortstöð - skuldir'!J66","v":0},".M.SAFSKIN.XX.SLY.XXX.XXXX.SX.XXX.USD.IS.N.M"]
[{"$f":"\"INN.\"&EIGNIR!$B$3&C9065","v":{"$error":"#N/A"}},{"$f":"'Afleiður og skortstöð - skuldir'!J67","v":0},".M.SAFSKIN.XX.FHL.XXX.XXXX.SX.XXX.USD.IS.N.M"]
[{"$f":"\"INN.\"&EIGNIR!$B$3&C9066","v":{"$error":"#N/A"}},{"$f":"'Afleiður og skortstöð - skuldir'!J68","v":0},".M.SAFSKIN.XX.INF.XXX.XXXX.SX.XXX.USD.IS.N.M"]
[{"$f":"\"INN.\"&EIGNIR!$B$3&C9067","v":{"$error":"#N/A"}},{"$f":"'Afleiður og skortstöð - skuldir'!J69","v":0},".M.SAFSKIN.XX.TRY.XXX.XXXX.SX.XXX.USD.IS.N.M"]
[{"$f":"\"INN.\"&EIGNIR!$B$3&C9068","v":{"$error":"#N/A"}},{"$f":"'Afleiður og skortstöð - skuldir'!J70","v":0},".M.SAFSKIN.XX.LIF.XXX.XXXX.SX.XXX.USD.IS.N.M"]
[{"$f":"\"INN.\"&EIGNIR!$B$3&C9069","v":{"$error":"#N/A"}},{"$f":"'Afleiður og skortstöð - skuldir'!J71","v":0},".M.SAFSKIN.XX.OPI.XXX.XXXX.SX.XXX.USD.IS.N.M"]
[{"$f":"\"INN.\"&EIGNIR!$B$3&C9070","v":{"$error":"#N/A"}},{"$f":"'Afleiður og skortstöð - skuldir'!J72","v":0},".M.SAFSKIN.XX.RSS.XXX.XXXX.SX.XXX.USD.IS.N.M"]
[{"$f":"\"INN.\"&EIGNIR!$B$3&C9071","v":{"$error":"#N/A"}},{"$f":"'Afleiður og skortstöð - skuldir'!J73","v":0},".M.SAFSKIN.XX.BAJ.XXX.XXXX.SX.XXX.USD.IS.N.M"]
[{"$f":"\"INN.\"&EIGNIR!$B$3&C9072","v":{"$error":"#N/A"}},{"$f":"'Afleiður og skortstöð - skuldir'!J74","v":0},".M.SAFSKIN.XX.EIN.XXX.XXXX.SX.XXX.USD.IS.N.M"]
[{"$f":"\"INN.\"&EIGNIR!$B$3&C9073","v":{"$error":"#N/A"}},{"$f":"'Afleiður og skortstöð - skuldir'!J75","v":0},".M.SAFSKIN.XX.NPH.XXX.XXXX.SX.XXX.USD.IS.N.M"]
[{"$f":"\"INN.\"&EIGNIR!$B$3&C9074","v":{"$error":"#N/A"}},{"$f":"'Afleiður og skortstöð - skuldir'!J76","v":0},".M.SAFSKER.XX.ERL.XXX.XXXX.SX.XXX.USD.IS.N.M"]
[{"$f":"\"INN.\"&EIGNIR!$B$3&C9075","v":{"$error":"#N/A"}},{"$f":"'Afleiður og skortstöð - skuldir'!J77","v":0},".M.SAFSKER.XX.ERS.XXX.XXXX.SX.XXX.USD.IS.N.M"]
[{"$f":"\"INN.\"&EIGNIR!$B$3&C9076","v":{"$error":"#N/A"}},{"$f":"'Afleiður og skortstöð - skuldir'!J78","v":0},".M.SAFSKER.XX.ERI.XXX.XXXX.SX.XXX.USD.IS.N.M"]
[{"$f":"\"INN.\"&EIGNIR!$B$3&C9077","v":{"$error":"#N/A"}},{"$f":"'Afleiður og skortstöð - skuldir'!J79","v":0},".M.SAFSKER.XX.ERP.XXX.XXXX.SX.XXX.USD.IS.N.M"]
[{"$f":"\"INN.\"&EIGNIR!$B$3&C9078","v":{"$error":"#N/A"}},{"$f":"'Afleiður og skortstöð - skuldir'!J80","v":0},".M.SAFSKER.XX.ERV.XXX.XXXX.SX.XXX.USD.IS.N.M"]
[{"$f":"\"INN.\"&EIGNIR!$B$3&C9079","v":{"$error":"#N/A"}},{"$f":"'Afleiður og skortstöð - skuldir'!J81","v":0},".M.SAFSKER.XX.ERF.XXX.XXXX.SX.XXX.USD.IS.N.M"]
[{"$f":"\"INN.\"&EIGNIR!$B$3&C9080","v":{"$error":"#N/A"}},{"$f":"'Afleiður og skortstöð - skuldir'!J82","v":0},".M.SAFSKER.XX.ERO.XXX.XXXX.SX.XXX.USD.IS.N.M"]
[{"$f":"\"INN.\"&EIGNIR!$B$3&C9081","v":{"$error":"#N/A"}},{"$f":"'Afleiður og skortstöð - skuldir'!J83","v":0},".M.SAFSKER.XX.ERA.XXX.XXXX.SX.XXX.USD.IS.N.M"]
[{"$f":"\"INN.\"&EIGNIR!$B$3&C9082","v":{"$error":"#N/A"}},{"$f":"'Afleiður og skortstöð - skuldir'!J84","v":0},".M.SAFSS$$.XX.$$$.XXX.XXXX.SX.XXX.USD.IS.N.M"]
[{"$f":"\"INN.\"&EIGNIR!$B$3&C9083","v":{"$error":"#N/A"}},{"$f":"'Afleiður og skortstöð - skuldir'!J85","v":0},".M.SAFSSIN.XX.ATV.XXX.XXXX.SX.XXX.USD.IS.N.M"]
[{"$f":"\"INN.\"&EIGNIR!$B$3&C9084","v":{"$error":"#N/A"}},{"$f":"'Afleiður og skortstöð - skuldir'!J86","v":0},".M.SAFSSIN.XX.FJA.XXX.XXXX.SX.XXX.USD.IS.N.M"]
[{"$f":"\"INN.\"&EIGNIR!$B$3&C9085","v":{"$error":"#N/A"}},{"$f":"'Afleiður og skortstöð - skuldir'!J87","v":0},".M.SAFSSIN.XX.INN.XXX.XXXX.SX.XXX.USD.IS.N.M"]
[{"$f":"\"INN.\"&EIGNIR!$B$3&C9086","v":{"$error":"#N/A"}},{"$f":"'Afleiður og skortstöð - skuldir'!J88","v":0},".M.SAFSSIN.XX.SLI.XXX.XXXX.SX.XXX.USD.IS.N.M"]
[{"$f":"\"INN.\"&EIGNIR!$B$3&C9087","v":{"$error":"#N/A"}},{"$f":"'Afleiður og skortstöð - skuldir'!J89","v":0},".M.SAFSSIN.XX.PEN.XXX.XXXX.SX.XXX.USD.IS.N.M"]
[{"$f":"\"INN.\"&EIGNIR!$B$3&C9088","v":{"$error":"#N/A"}},{"$f":"'Afleiður og skortstöð - skuldir'!J90","v":0},".M.SAFSSIN.XX.SJO.XXX.XXXX.SX.XXX.USD.IS.N.M"]
[{"$f":"\"INN.\"&EIGNIR!$B$3&C9089","v":{"$error":"#N/A"}},{"$f":"'Afleiður og skortstöð - skuldir'!J91","v":0},".M.SAFSSIN.XX.YFT.XXX.XXXX.SX.XXX.USD.IS.N.M"]
[{"$f":"\"INN.\"&EIGNIR!$B$3&C9090","v":{"$error":"#N/A"}},{"$f":"'Afleiður og skortstöð - skuldir'!J92","v":0},".M.SAFSSIN.XX.SLY.XXX.XXXX.SX.XXX.USD.IS.N.M"]
[{"$f":"\"INN.\"&EIGNIR!$B$3&C9091","v":{"$error":"#N/A"}},{"$f":"'Afleiður og skortstöð - skuldir'!J93","v":0},".M.SAFSSIN.XX.FHL.XXX.XXXX.SX.XXX.USD.IS.N.M"]
[{"$f":"\"INN.\"&EIGNIR!$B$3&C9092","v":{"$error":"#N/A"}},{"$f":"'Afleiður og skortstöð - skuldir'!J94","v":0},".M.SAFSSIN.XX.INF.XXX.XXXX.SX.XXX.USD.IS.N.M"]
[{"$f":"\"INN.\"&EIGNIR!$B$3&C9093","v":{"$error":"#N/A"}},{"$f":"'Afleiður og skortstöð - skuldir'!J95","v":0},".M.SAFSSIN.XX.TRY.XXX.XXXX.SX.XXX.USD.IS.N.M"]
[{"$f":"\"INN.\"&EIGNIR!$B$3&C9094","v":{"$error":"#N/A"}},{"$f":"'Afleiður og skortstöð - skuldir'!J96","v":0},".M.SAFSSIN.XX.LIF.XXX.XXXX.SX.XXX.USD.IS.N.M"]
[{"$f":"\"INN.\"&EIGNIR!$B$3&C9095","v":{"$error":"#N/A"}},{"$f":"'Afleiður og skortstöð - skuldir'!J97","v":0},".M.SAFSSIN.XX.OPI.XXX.XXXX.SX.XXX.USD.IS.N.M"]
[{"$f":"\"INN.\"&EIGNIR!$B$3&C9096","v":{"$error":"#N/A"}},{"$f":"'Afleiður og skortstöð - skuldir'!J98","v":0},".M.SAFSSIN.XX.RSS.XXX.XXXX.SX.XXX.USD.IS.N.M"]
[{"$f":"\"INN.\"&EIGNIR!$B$3&C9097","v":{"$error":"#N/A"}},{"$f":"'Afleiður og skortstöð - skuldir'!J99","v":0},".M.SAFSSIN.XX.BAJ.XXX.XXXX.SX.XXX.USD.IS.N.M"]
[{"$f":"\"INN.\"&EIGNIR!$B$3&C9098","v":{"$error":"#N/A"}},{"$f":"'Afleiður og skortstöð - skuldir'!J100","v":0},".M.SAFSSIN.XX.EIN.XXX.XXXX.SX.XXX.USD.IS.N.M"]
[{"$f":"\"INN.\"&EIGNIR!$B$3&C9099","v":{"$error":"#N/A"}},{"$f":"'Afleiður og skortstöð - skuldir'!J101","v":0},".M.SAFSSIN.XX.NPH.XXX.XXXX.SX.XXX.USD.IS.N.M"]
[{"$f":"\"INN.\"&EIGNIR!$B$3&C9100","v":{"$error":"#N/A"}},{"$f":"'Afleiður og skortstöð - skuldir'!J102","v":0},".M.SAFSSER.XX.ERL.XXX.XXXX.SX.XXX.USD.IS.N.M"]
[{"$f":"\"INN.\"&EIGNIR!$B$3&C9101","v":{"$error":"#N/A"}},{"$f":"'Afleiður og skortstöð - skuldir'!J103","v":0},".M.SAFSSER.XX.ERS.XXX.XXXX.SX.XXX.USD.IS.N.M"]
[{"$f":"\"INN.\"&EIGNIR!$B$3&C9102","v":{"$error":"#N/A"}},{"$f":"'Afleiður og skortstöð - skuldir'!J104","v":0},".M.SAFSSER.XX.ERI.XXX.XXXX.SX.XXX.USD.IS.N.M"]
[{"$f":"\"INN.\"&EIGNIR!$B$3&C9103","v":{"$error":"#N/A"}},{"$f":"'Afleiður og skortstöð - skuldir'!J105","v":0},".M.SAFSSER.XX.ERP.XXX.XXXX.SX.XXX.USD.IS.N.M"]
[{"$f":"\"INN.\"&EIGNIR!$B$3&C9104","v":{"$error":"#N/A"}},{"$f":"'Afleiður og skortstöð - skuldir'!J106","v":0},".M.SAFSSER.XX.ERV.XXX.XXXX.SX.XXX.USD.IS.N.M"]
[{"$f":"\"INN.\"&EIGNIR!$B$3&C9105","v":{"$error":"#N/A"}},{"$f":"'Afleiður og skortstöð - skuldir'!J107","v":0},".M.SAFSSER.XX.ERF.XXX.XXXX.SX.XXX.USD.IS.N.M"]
[{"$f":"\"INN.\"&EIGNIR!$B$3&C9106","v":{"$error":"#N/A"}},{"$f":"'Afleiður og skortstöð - skuldir'!J108","v":0},".M.SAFSSER.XX.ERO.XXX.XXXX.SX.XXX.USD.IS.N.M"]
[{"$f":"\"INN.\"&EIGNIR!$B$3&C9107","v":{"$error":"#N/A"}},{"$f":"'Afleiður og skortstöð - skuldir'!J109","v":0},".M.SAFSSER.XX.ERA.XXX.XXXX.SX.XXX.USD.IS.N.M"]
[{"$f":"\"INN.\"&EIGNIR!$B$3&C9108","v":{"$error":"#N/A"}},{"$f":"'Afleiður og skortstöð - skuldir'!J110","v":0},".M.SAFSSEH.XX.ERL.XXX.XXXX.SX.XXX.USD.IS.N.M"]
[{"$f":"\"INN.\"&EIGNIR!$B$3&C9109","v":{"$error":"#N/A"}},{"$f":"'Afleiður og skortstöð - skuldir'!J111","v":0},".M.SAFSSES.XX.ERL.XXX.XXXX.SX.SKT.USD.IS.N.M"]
[{"$f":"\"INN.\"&EIGNIR!$B$3&C9110","v":{"$error":"#N/A"}},{"$f":"'Afleiður og skortstöð - skuldir'!J112","v":0},".M.SAFSSES.XX.ERL.XXX.XXXX.SX.LAT.USD.IS.N.M"]
[{"$f":"\"INN.\"&EIGNIR!$B$3&C9111","v":{"$error":"#N/A"}},{"$f":"'Afleiður og skortstöð - skuldir'!K5","v":0},".M.SAF$$$$.XX.$$$.XXX.XXXX.SX.XXX.GBP.IS.N.M","//Sundurliðun afleiður GBP"]
[{"$f":"\"INN.\"&EIGNIR!$B$3&C9112","v":{"$error":"#N/A"}},{"$f":"'Afleiður og skortstöð - skuldir'!K6","v":0},".M.SAFVA$$.XX.$$$.XXX.XXXX.SX.XXX.GBP.IS.N.M"]
[{"$f":"\"INN.\"&EIGNIR!$B$3&C9113","v":{"$error":"#N/A"}},{"$f":"'Afleiður og skortstöð - skuldir'!K7","v":0},".M.SAFVAIN.XX.ATV.XXX.XXXX.SX.XXX.GBP.IS.N.M"]
[{"$f":"\"INN.\"&EIGNIR!$B$3&C9114","v":{"$error":"#N/A"}},{"$f":"'Afleiður og skortstöð - skuldir'!K8","v":0},".M.SAFVAIN.XX.FJA.XXX.XXXX.SX.XXX.GBP.IS.N.M"]
[{"$f":"\"INN.\"&EIGNIR!$B$3&C9115","v":{"$error":"#N/A"}},{"$f":"'Afleiður og skortstöð - skuldir'!K9","v":0},".M.SAFVAIN.XX.INN.XXX.XXXX.SX.XXX.GBP.IS.N.M"]
[{"$f":"\"INN.\"&EIGNIR!$B$3&C9116","v":{"$error":"#N/A"}},{"$f":"'Afleiður og skortstöð - skuldir'!K10","v":0},".M.SAFVAIN.XX.SLI.XXX.XXXX.SX.XXX.GBP.IS.N.M"]
[{"$f":"\"INN.\"&EIGNIR!$B$3&C9117","v":{"$error":"#N/A"}},{"$f":"'Afleiður og skortstöð - skuldir'!K11","v":0},".M.SAFVAIN.XX.PEN.XXX.XXXX.SX.XXX.GBP.IS.N.M"]
[{"$f":"\"INN.\"&EIGNIR!$B$3&C9118","v":{"$error":"#N/A"}},{"$f":"'Afleiður og skortstöð - skuldir'!K12","v":0},".M.SAFVAIN.XX.SJO.XXX.XXXX.SX.XXX.GBP.IS.N.M"]
[{"$f":"\"INN.\"&EIGNIR!$B$3&C9119","v":{"$error":"#N/A"}},{"$f":"'Afleiður og skortstöð - skuldir'!K13","v":0},".M.SAFVAIN.XX.YFT.XXX.XXXX.SX.XXX.GBP.IS.N.M"]
[{"$f":"\"INN.\"&EIGNIR!$B$3&C9120","v":{"$error":"#N/A"}},{"$f":"'Afleiður og skortstöð - skuldir'!K14","v":0},".M.SAFVAIN.XX.SLY.XXX.XXXX.SX.XXX.GBP.IS.N.M"]
[{"$f":"\"INN.\"&EIGNIR!$B$3&C9121","v":{"$error":"#N/A"}},{"$f":"'Afleiður og skortstöð - skuldir'!K15","v":0},".M.SAFVAIN.XX.FHL.XXX.XXXX.SX.XXX.GBP.IS.N.M"]
[{"$f":"\"INN.\"&EIGNIR!$B$3&C9122","v":{"$error":"#N/A"}},{"$f":"'Afleiður og skortstöð - skuldir'!K16","v":0},".M.SAFVAIN.XX.INF.XXX.XXXX.SX.XXX.GBP.IS.N.M"]
[{"$f":"\"INN.\"&EIGNIR!$B$3&C9123","v":{"$error":"#N/A"}},{"$f":"'Afleiður og skortstöð - skuldir'!K17","v":0},".M.SAFVAIN.XX.TRY.XXX.XXXX.SX.XXX.GBP.IS.N.M"]
[{"$f":"\"INN.\"&EIGNIR!$B$3&C9124","v":{"$error":"#N/A"}},{"$f":"'Afleiður og skortstöð - skuldir'!K18","v":0},".M.SAFVAIN.XX.LIF.XXX.XXXX.SX.XXX.GBP.IS.N.M"]
[{"$f":"\"INN.\"&EIGNIR!$B$3&C9125","v":{"$error":"#N/A"}},{"$f":"'Afleiður og skortstöð - skuldir'!K19","v":0},".M.SAFVAIN.XX.OPI.XXX.XXXX.SX.XXX.GBP.IS.N.M"]
[{"$f":"\"INN.\"&EIGNIR!$B$3&C9126","v":{"$error":"#N/A"}},{"$f":"'Afleiður og skortstöð - skuldir'!K20","v":0},".M.SAFVAIN.XX.RSS.XXX.XXXX.SX.XXX.GBP.IS.N.M"]
[{"$f":"\"INN.\"&EIGNIR!$B$3&C9127","v":{"$error":"#N/A"}},{"$f":"'Afleiður og skortstöð - skuldir'!K21","v":0},".M.SAFVAIN.XX.BAJ.XXX.XXXX.SX.XXX.GBP.IS.N.M"]
[{"$f":"\"INN.\"&EIGNIR!$B$3&C9128","v":{"$error":"#N/A"}},{"$f":"'Afleiður og skortstöð - skuldir'!K22","v":0},".M.SAFVAIN.XX.EIN.XXX.XXXX.SX.XXX.GBP.IS.N.M"]
[{"$f":"\"INN.\"&EIGNIR!$B$3&C9129","v":{"$error":"#N/A"}},{"$f":"'Afleiður og skortstöð - skuldir'!K23","v":0},".M.SAFVAIN.XX.NPH.XXX.XXXX.SX.XXX.GBP.IS.N.M"]
[{"$f":"\"INN.\"&EIGNIR!$B$3&C9130","v":{"$error":"#N/A"}},{"$f":"'Afleiður og skortstöð - skuldir'!K24","v":0},".M.SAFVAER.XX.ERL.XXX.XXXX.SX.XXX.GBP.IS.N.M"]
[{"$f":"\"INN.\"&EIGNIR!$B$3&C9131","v":{"$error":"#N/A"}},{"$f":"'Afleiður og skortstöð - skuldir'!K25","v":0},".M.SAFVAER.XX.ERS.XXX.XXXX.SX.XXX.GBP.IS.N.M"]
[{"$f":"\"INN.\"&EIGNIR!$B$3&C9132","v":{"$error":"#N/A"}},{"$f":"'Afleiður og skortstöð - skuldir'!K26","v":0},".M.SAFVAER.XX.ERI.XXX.XXXX.SX.XXX.GBP.IS.N.M"]
[{"$f":"\"INN.\"&EIGNIR!$B$3&C9133","v":{"$error":"#N/A"}},{"$f":"'Afleiður og skortstöð - skuldir'!K27","v":0},".M.SAFVAER.XX.ERP.XXX.XXXX.SX.XXX.GBP.IS.N.M"]
[{"$f":"\"INN.\"&EIGNIR!$B$3&C9134","v":{"$error":"#N/A"}},{"$f":"'Afleiður og skortstöð - skuldir'!K28","v":0},".M.SAFVAER.XX.ERV.XXX.XXXX.SX.XXX.GBP.IS.N.M"]
[{"$f":"\"INN.\"&EIGNIR!$B$3&C9135","v":{"$error":"#N/A"}},{"$f":"'Afleiður og skortstöð - skuldir'!K29","v":0},".M.SAFVAER.XX.ERF.XXX.XXXX.SX.XXX.GBP.IS.N.M"]
[{"$f":"\"INN.\"&EIGNIR!$B$3&C9136","v":{"$error":"#N/A"}},{"$f":"'Afleiður og skortstöð - skuldir'!K30","v":0},".M.SAFVAER.XX.ERO.XXX.XXXX.SX.XXX.GBP.IS.N.M"]
[{"$f":"\"INN.\"&EIGNIR!$B$3&C9137","v":{"$error":"#N/A"}},{"$f":"'Afleiður og skortstöð - skuldir'!K31","v":0},".M.SAFVAER.XX.ERA.XXX.XXXX.SX.XXX.GBP.IS.N.M"]
[{"$f":"\"INN.\"&EIGNIR!$B$3&C9138","v":{"$error":"#N/A"}},{"$f":"'Afleiður og skortstöð - skuldir'!K32","v":0},".M.SAFFR$$.XX.$$$.XXX.XXXX.SX.XXX.GBP.IS.N.M"]
[{"$f":"\"INN.\"&EIGNIR!$B$3&C9139","v":{"$error":"#N/A"}},{"$f":"'Afleiður og skortstöð - skuldir'!K33","v":0},".M.SAFFRIN.XX.ATV.XXX.XXXX.SX.XXX.GBP.IS.N.M"]
[{"$f":"\"INN.\"&EIGNIR!$B$3&C9140","v":{"$error":"#N/A"}},{"$f":"'Afleiður og skortstöð - skuldir'!K34","v":0},".M.SAFFRIN.XX.FJA.XXX.XXXX.SX.XXX.GBP.IS.N.M"]
[{"$f":"\"INN.\"&EIGNIR!$B$3&C9141","v":{"$error":"#N/A"}},{"$f":"'Afleiður og skortstöð - skuldir'!K35","v":0},".M.SAFFRIN.XX.INN.XXX.XXXX.SX.XXX.GBP.IS.N.M"]
[{"$f":"\"INN.\"&EIGNIR!$B$3&C9142","v":{"$error":"#N/A"}},{"$f":"'Afleiður og skortstöð - skuldir'!K36","v":0},".M.SAFFRIN.XX.SLI.XXX.XXXX.SX.XXX.GBP.IS.N.M"]
[{"$f":"\"INN.\"&EIGNIR!$B$3&C9143","v":{"$error":"#N/A"}},{"$f":"'Afleiður og skortstöð - skuldir'!K37","v":0},".M.SAFFRIN.XX.PEN.XXX.XXXX.SX.XXX.GBP.IS.N.M"]
[{"$f":"\"INN.\"&EIGNIR!$B$3&C9144","v":{"$error":"#N/A"}},{"$f":"'Afleiður og skortstöð - skuldir'!K38","v":0},".M.SAFFRIN.XX.SJO.XXX.XXXX.SX.XXX.GBP.IS.N.M"]
[{"$f":"\"INN.\"&EIGNIR!$B$3&C9145","v":{"$error":"#N/A"}},{"$f":"'Afleiður og skortstöð - skuldir'!K39","v":0},".M.SAFFRIN.XX.YFT.XXX.XXXX.SX.XXX.GBP.IS.N.M"]
[{"$f":"\"INN.\"&EIGNIR!$B$3&C9146","v":{"$error":"#N/A"}},{"$f":"'Afleiður og skortstöð - skuldir'!K40","v":0},".M.SAFFRIN.XX.SLY.XXX.XXXX.SX.XXX.GBP.IS.N.M"]
[{"$f":"\"INN.\"&EIGNIR!$B$3&C9147","v":{"$error":"#N/A"}},{"$f":"'Afleiður og skortstöð - skuldir'!K41","v":0},".M.SAFFRIN.XX.FHL.XXX.XXXX.SX.XXX.GBP.IS.N.M"]
[{"$f":"\"INN.\"&EIGNIR!$B$3&C9148","v":{"$error":"#N/A"}},{"$f":"'Afleiður og skortstöð - skuldir'!K42","v":0},".M.SAFFRIN.XX.INF.XXX.XXXX.SX.XXX.GBP.IS.N.M"]
[{"$f":"\"INN.\"&EIGNIR!$B$3&C9149","v":{"$error":"#N/A"}},{"$f":"'Afleiður og skortstöð - skuldir'!K43","v":0},".M.SAFFRIN.XX.TRY.XXX.XXXX.SX.XXX.GBP.IS.N.M"]
[{"$f":"\"INN.\"&EIGNIR!$B$3&C9150","v":{"$error":"#N/A"}},{"$f":"'Afleiður og skortstöð - skuldir'!K44","v":0},".M.SAFFRIN.XX.LIF.XXX.XXXX.SX.XXX.GBP.IS.N.M"]
[{"$f":"\"INN.\"&EIGNIR!$B$3&C9151","v":{"$error":"#N/A"}},{"$f":"'Afleiður og skortstöð - skuldir'!K45","v":0},".M.SAFFRIN.XX.OPI.XXX.XXXX.SX.XXX.GBP.IS.N.M"]
[{"$f":"\"INN.\"&EIGNIR!$B$3&C9152","v":{"$error":"#N/A"}},{"$f":"'Afleiður og skortstöð - skuldir'!K46","v":0},".M.SAFFRIN.XX.RSS.XXX.XXXX.SX.XXX.GBP.IS.N.M"]
[{"$f":"\"INN.\"&EIGNIR!$B$3&C9153","v":{"$error":"#N/A"}},{"$f":"'Afleiður og skortstöð - skuldir'!K47","v":0},".M.SAFFRIN.XX.BAJ.XXX.XXXX.SX.XXX.GBP.IS.N.M"]
[{"$f":"\"INN.\"&EIGNIR!$B$3&C9154","v":{"$error":"#N/A"}},{"$f":"'Afleiður og skortstöð - skuldir'!K48","v":0},".M.SAFFRIN.XX.EIN.XXX.XXXX.SX.XXX.GBP.IS.N.M"]
[{"$f":"\"INN.\"&EIGNIR!$B$3&C9155","v":{"$error":"#N/A"}},{"$f":"'Afleiður og skortstöð - skuldir'!K49","v":0},".M.SAFFRIN.XX.NPH.XXX.XXXX.SX.XXX.GBP.IS.N.M"]
[{"$f":"\"INN.\"&EIGNIR!$B$3&C9156","v":{"$error":"#N/A"}},{"$f":"'Afleiður og skortstöð - skuldir'!K50","v":0},".M.SAFFRER.XX.ERL.XXX.XXXX.SX.XXX.GBP.IS.N.M"]
[{"$f":"\"INN.\"&EIGNIR!$B$3&C9157","v":{"$error":"#N/A"}},{"$f":"'Afleiður og skortstöð - skuldir'!K51","v":0},".M.SAFFRER.XX.ERS.XXX.XXXX.SX.XXX.GBP.IS.N.M"]
[{"$f":"\"INN.\"&EIGNIR!$B$3&C9158","v":{"$error":"#N/A"}},{"$f":"'Afleiður og skortstöð - skuldir'!K52","v":0},".M.SAFFRER.XX.ERI.XXX.XXXX.SX.XXX.GBP.IS.N.M"]
[{"$f":"\"INN.\"&EIGNIR!$B$3&C9159","v":{"$error":"#N/A"}},{"$f":"'Afleiður og skortstöð - skuldir'!K53","v":0},".M.SAFFRER.XX.ERP.XXX.XXXX.SX.XXX.GBP.IS.N.M"]
[{"$f":"\"INN.\"&EIGNIR!$B$3&C9160","v":{"$error":"#N/A"}},{"$f":"'Afleiður og skortstöð - skuldir'!K54","v":0},".M.SAFFRER.XX.ERV.XXX.XXXX.SX.XXX.GBP.IS.N.M"]
[{"$f":"\"INN.\"&EIGNIR!$B$3&C9161","v":{"$error":"#N/A"}},{"$f":"'Afleiður og skortstöð - skuldir'!K55","v":0},".M.SAFFRER.XX.ERF.XXX.XXXX.SX.XXX.GBP.IS.N.M"]
[{"$f":"\"INN.\"&EIGNIR!$B$3&C9162","v":{"$error":"#N/A"}},{"$f":"'Afleiður og skortstöð - skuldir'!K56","v":0},".M.SAFFRER.XX.ERO.XXX.XXXX.SX.XXX.GBP.IS.N.M"]
[{"$f":"\"INN.\"&EIGNIR!$B$3&C9163","v":{"$error":"#N/A"}},{"$f":"'Afleiður og skortstöð - skuldir'!K57","v":0},".M.SAFFRER.XX.ERA.XXX.XXXX.SX.XXX.GBP.IS.N.M"]
[{"$f":"\"INN.\"&EIGNIR!$B$3&C9164","v":{"$error":"#N/A"}},{"$f":"'Afleiður og skortstöð - skuldir'!K58","v":0},".M.SAFSK$$.XX.$$$.XXX.XXXX.SX.XXX.GBP.IS.N.M"]
[{"$f":"\"INN.\"&EIGNIR!$B$3&C9165","v":{"$error":"#N/A"}},{"$f":"'Afleiður og skortstöð - skuldir'!K59","v":0},".M.SAFSKIN.XX.ATV.XXX.XXXX.SX.XXX.GBP.IS.N.M"]
[{"$f":"\"INN.\"&EIGNIR!$B$3&C9166","v":{"$error":"#N/A"}},{"$f":"'Afleiður og skortstöð - skuldir'!K60","v":0},".M.SAFSKIN.XX.FJA.XXX.XXXX.SX.XXX.GBP.IS.N.M"]
[{"$f":"\"INN.\"&EIGNIR!$B$3&C9167","v":{"$error":"#N/A"}},{"$f":"'Afleiður og skortstöð - skuldir'!K61","v":0},".M.SAFSKIN.XX.INN.XXX.XXXX.SX.XXX.GBP.IS.N.M"]
[{"$f":"\"INN.\"&EIGNIR!$B$3&C9168","v":{"$error":"#N/A"}},{"$f":"'Afleiður og skortstöð - skuldir'!K62","v":0},".M.SAFSKIN.XX.SLI.XXX.XXXX.SX.XXX.GBP.IS.N.M"]
[{"$f":"\"INN.\"&EIGNIR!$B$3&C9169","v":{"$error":"#N/A"}},{"$f":"'Afleiður og skortstöð - skuldir'!K63","v":0},".M.SAFSKIN.XX.PEN.XXX.XXXX.SX.XXX.GBP.IS.N.M"]
[{"$f":"\"INN.\"&EIGNIR!$B$3&C9170","v":{"$error":"#N/A"}},{"$f":"'Afleiður og skortstöð - skuldir'!K64","v":0},".M.SAFSKIN.XX.SJO.XXX.XXXX.SX.XXX.GBP.IS.N.M"]
[{"$f":"\"INN.\"&EIGNIR!$B$3&C9171","v":{"$error":"#N/A"}},{"$f":"'Afleiður og skortstöð - skuldir'!K65","v":0},".M.SAFSKIN.XX.YFT.XXX.XXXX.SX.XXX.GBP.IS.N.M"]
[{"$f":"\"INN.\"&EIGNIR!$B$3&C9172","v":{"$error":"#N/A"}},{"$f":"'Afleiður og skortstöð - skuldir'!K66","v":0},".M.SAFSKIN.XX.SLY.XXX.XXXX.SX.XXX.GBP.IS.N.M"]
[{"$f":"\"INN.\"&EIGNIR!$B$3&C9173","v":{"$error":"#N/A"}},{"$f":"'Afleiður og skortstöð - skuldir'!K67","v":0},".M.SAFSKIN.XX.FHL.XXX.XXXX.SX.XXX.GBP.IS.N.M"]
[{"$f":"\"INN.\"&EIGNIR!$B$3&C9174","v":{"$error":"#N/A"}},{"$f":"'Afleiður og skortstöð - skuldir'!K68","v":0},".M.SAFSKIN.XX.INF.XXX.XXXX.SX.XXX.GBP.IS.N.M"]
[{"$f":"\"INN.\"&EIGNIR!$B$3&C9175","v":{"$error":"#N/A"}},{"$f":"'Afleiður og skortstöð - skuldir'!K69","v":0},".M.SAFSKIN.XX.TRY.XXX.XXXX.SX.XXX.GBP.IS.N.M"]
[{"$f":"\"INN.\"&EIGNIR!$B$3&C9176","v":{"$error":"#N/A"}},{"$f":"'Afleiður og skortstöð - skuldir'!K70","v":0},".M.SAFSKIN.XX.LIF.XXX.XXXX.SX.XXX.GBP.IS.N.M"]
[{"$f":"\"INN.\"&EIGNIR!$B$3&C9177","v":{"$error":"#N/A"}},{"$f":"'Afleiður og skortstöð - skuldir'!K71","v":0},".M.SAFSKIN.XX.OPI.XXX.XXXX.SX.XXX.GBP.IS.N.M"]
[{"$f":"\"INN.\"&EIGNIR!$B$3&C9178","v":{"$error":"#N/A"}},{"$f":"'Afleiður og skortstöð - skuldir'!K72","v":0},".M.SAFSKIN.XX.RSS.XXX.XXXX.SX.XXX.GBP.IS.N.M"]
[{"$f":"\"INN.\"&EIGNIR!$B$3&C9179","v":{"$error":"#N/A"}},{"$f":"'Afleiður og skortstöð - skuldir'!K73","v":0},".M.SAFSKIN.XX.BAJ.XXX.XXXX.SX.XXX.GBP.IS.N.M"]
[{"$f":"\"INN.\"&EIGNIR!$B$3&C9180","v":{"$error":"#N/A"}},{"$f":"'Afleiður og skortstöð - skuldir'!K74","v":0},".M.SAFSKIN.XX.EIN.XXX.XXXX.SX.XXX.GBP.IS.N.M"]
[{"$f":"\"INN.\"&EIGNIR!$B$3&C9181","v":{"$error":"#N/A"}},{"$f":"'Afleiður og skortstöð - skuldir'!K75","v":0},".M.SAFSKIN.XX.NPH.XXX.XXXX.SX.XXX.GBP.IS.N.M"]
[{"$f":"\"INN.\"&EIGNIR!$B$3&C9182","v":{"$error":"#N/A"}},{"$f":"'Afleiður og skortstöð - skuldir'!K76","v":0},".M.SAFSKER.XX.ERL.XXX.XXXX.SX.XXX.GBP.IS.N.M"]
[{"$f":"\"INN.\"&EIGNIR!$B$3&C9183","v":{"$error":"#N/A"}},{"$f":"'Afleiður og skortstöð - skuldir'!K77","v":0},".M.SAFSKER.XX.ERS.XXX.XXXX.SX.XXX.GBP.IS.N.M"]
[{"$f":"\"INN.\"&EIGNIR!$B$3&C9184","v":{"$error":"#N/A"}},{"$f":"'Afleiður og skortstöð - skuldir'!K78","v":0},".M.SAFSKER.XX.ERI.XXX.XXXX.SX.XXX.GBP.IS.N.M"]
[{"$f":"\"INN.\"&EIGNIR!$B$3&C9185","v":{"$error":"#N/A"}},{"$f":"'Afleiður og skortstöð - skuldir'!K79","v":0},".M.SAFSKER.XX.ERP.XXX.XXXX.SX.XXX.GBP.IS.N.M"]
[{"$f":"\"INN.\"&EIGNIR!$B$3&C9186","v":{"$error":"#N/A"}},{"$f":"'Afleiður og skortstöð - skuldir'!K80","v":0},".M.SAFSKER.XX.ERV.XXX.XXXX.SX.XXX.GBP.IS.N.M"]
[{"$f":"\"INN.\"&EIGNIR!$B$3&C9187","v":{"$error":"#N/A"}},{"$f":"'Afleiður og skortstöð - skuldir'!K81","v":0},".M.SAFSKER.XX.ERF.XXX.XXXX.SX.XXX.GBP.IS.N.M"]
[{"$f":"\"INN.\"&EIGNIR!$B$3&C9188","v":{"$error":"#N/A"}},{"$f":"'Afleiður og skortstöð - skuldir'!K82","v":0},".M.SAFSKER.XX.ERO.XXX.XXXX.SX.XXX.GBP.IS.N.M"]
[{"$f":"\"INN.\"&EIGNIR!$B$3&C9189","v":{"$error":"#N/A"}},{"$f":"'Afleiður og skortstöð - skuldir'!K83","v":0},".M.SAFSKER.XX.ERA.XXX.XXXX.SX.XXX.GBP.IS.N.M"]
[{"$f":"\"INN.\"&EIGNIR!$B$3&C9190","v":{"$error":"#N/A"}},{"$f":"'Afleiður og skortstöð - skuldir'!K84","v":0},".M.SAFSS$$.XX.$$$.XXX.XXXX.SX.XXX.GBP.IS.N.M"]
[{"$f":"\"INN.\"&EIGNIR!$B$3&C9191","v":{"$error":"#N/A"}},{"$f":"'Afleiður og skortstöð - skuldir'!K85","v":0},".M.SAFSSIN.XX.ATV.XXX.XXXX.SX.XXX.GBP.IS.N.M"]
[{"$f":"\"INN.\"&EIGNIR!$B$3&C9192","v":{"$error":"#N/A"}},{"$f":"'Afleiður og skortstöð - skuldir'!K86","v":0},".M.SAFSSIN.XX.FJA.XXX.XXXX.SX.XXX.GBP.IS.N.M"]
[{"$f":"\"INN.\"&EIGNIR!$B$3&C9193","v":{"$error":"#N/A"}},{"$f":"'Afleiður og skortstöð - skuldir'!K87","v":0},".M.SAFSSIN.XX.INN.XXX.XXXX.SX.XXX.GBP.IS.N.M"]
[{"$f":"\"INN.\"&EIGNIR!$B$3&C9194","v":{"$error":"#N/A"}},{"$f":"'Afleiður og skortstöð - skuldir'!K88","v":0},".M.SAFSSIN.XX.SLI.XXX.XXXX.SX.XXX.GBP.IS.N.M"]
[{"$f":"\"INN.\"&EIGNIR!$B$3&C9195","v":{"$error":"#N/A"}},{"$f":"'Afleiður og skortstöð - skuldir'!K89","v":0},".M.SAFSSIN.XX.PEN.XXX.XXXX.SX.XXX.GBP.IS.N.M"]
[{"$f":"\"INN.\"&EIGNIR!$B$3&C9196","v":{"$error":"#N/A"}},{"$f":"'Afleiður og skortstöð - skuldir'!K90","v":0},".M.SAFSSIN.XX.SJO.XXX.XXXX.SX.XXX.GBP.IS.N.M"]
[{"$f":"\"INN.\"&EIGNIR!$B$3&C9197","v":{"$error":"#N/A"}},{"$f":"'Afleiður og skortstöð - skuldir'!K91","v":0},".M.SAFSSIN.XX.YFT.XXX.XXXX.SX.XXX.GBP.IS.N.M"]
[{"$f":"\"INN.\"&EIGNIR!$B$3&C9198","v":{"$error":"#N/A"}},{"$f":"'Afleiður og skortstöð - skuldir'!K92","v":0},".M.SAFSSIN.XX.SLY.XXX.XXXX.SX.XXX.GBP.IS.N.M"]
[{"$f":"\"INN.\"&EIGNIR!$B$3&C9199","v":{"$error":"#N/A"}},{"$f":"'Afleiður og skortstöð - skuldir'!K93","v":0},".M.SAFSSIN.XX.FHL.XXX.XXXX.SX.XXX.GBP.IS.N.M"]
[{"$f":"\"INN.\"&EIGNIR!$B$3&C9200","v":{"$error":"#N/A"}},{"$f":"'Afleiður og skortstöð - skuldir'!K94","v":0},".M.SAFSSIN.XX.INF.XXX.XXXX.SX.XXX.GBP.IS.N.M"]
[{"$f":"\"INN.\"&EIGNIR!$B$3&C9201","v":{"$error":"#N/A"}},{"$f":"'Afleiður og skortstöð - skuldir'!K95","v":0},".M.SAFSSIN.XX.TRY.XXX.XXXX.SX.XXX.GBP.IS.N.M"]
[{"$f":"\"INN.\"&EIGNIR!$B$3&C9202","v":{"$error":"#N/A"}},{"$f":"'Afleiður og skortstöð - skuldir'!K96","v":0},".M.SAFSSIN.XX.LIF.XXX.XXXX.SX.XXX.GBP.IS.N.M"]
[{"$f":"\"INN.\"&EIGNIR!$B$3&C9203","v":{"$error":"#N/A"}},{"$f":"'Afleiður og skortstöð - skuldir'!K97","v":0},".M.SAFSSIN.XX.OPI.XXX.XXXX.SX.XXX.GBP.IS.N.M"]
[{"$f":"\"INN.\"&EIGNIR!$B$3&C9204","v":{"$error":"#N/A"}},{"$f":"'Afleiður og skortstöð - skuldir'!K98","v":0},".M.SAFSSIN.XX.RSS.XXX.XXXX.SX.XXX.GBP.IS.N.M"]
[{"$f":"\"INN.\"&EIGNIR!$B$3&C9205","v":{"$error":"#N/A"}},{"$f":"'Afleiður og skortstöð - skuldir'!K99","v":0},".M.SAFSSIN.XX.BAJ.XXX.XXXX.SX.XXX.GBP.IS.N.M"]
[{"$f":"\"INN.\"&EIGNIR!$B$3&C9206","v":{"$error":"#N/A"}},{"$f":"'Afleiður og skortstöð - skuldir'!K100","v":0},".M.SAFSSIN.XX.EIN.XXX.XXXX.SX.XXX.GBP.IS.N.M"]
[{"$f":"\"INN.\"&EIGNIR!$B$3&C9207","v":{"$error":"#N/A"}},{"$f":"'Afleiður og skortstöð - skuldir'!K101","v":0},".M.SAFSSIN.XX.NPH.XXX.XXXX.SX.XXX.GBP.IS.N.M"]
[{"$f":"\"INN.\"&EIGNIR!$B$3&C9208","v":{"$error":"#N/A"}},{"$f":"'Afleiður og skortstöð - skuldir'!K102","v":0},".M.SAFSSER.XX.ERL.XXX.XXXX.SX.XXX.GBP.IS.N.M"]
[{"$f":"\"INN.\"&EIGNIR!$B$3&C9209","v":{"$error":"#N/A"}},{"$f":"'Afleiður og skortstöð - skuldir'!K103","v":0},".M.SAFSSER.XX.ERS.XXX.XXXX.SX.XXX.GBP.IS.N.M"]
[{"$f":"\"INN.\"&EIGNIR!$B$3&C9210","v":{"$error":"#N/A"}},{"$f":"'Afleiður og skortstöð - skuldir'!K104","v":0},".M.SAFSSER.XX.ERI.XXX.XXXX.SX.XXX.GBP.IS.N.M"]
[{"$f":"\"INN.\"&EIGNIR!$B$3&C9211","v":{"$error":"#N/A"}},{"$f":"'Afleiður og skortstöð - skuldir'!K105","v":0},".M.SAFSSER.XX.ERP.XXX.XXXX.SX.XXX.GBP.IS.N.M"]
[{"$f":"\"INN.\"&EIGNIR!$B$3&C9212","v":{"$error":"#N/A"}},{"$f":"'Afleiður og skortstöð - skuldir'!K106","v":0},".M.SAFSSER.XX.ERV.XXX.XXXX.SX.XXX.GBP.IS.N.M"]
[{"$f":"\"INN.\"&EIGNIR!$B$3&C9213","v":{"$error":"#N/A"}},{"$f":"'Afleiður og skortstöð - skuldir'!K107","v":0},".M.SAFSSER.XX.ERF.XXX.XXXX.SX.XXX.GBP.IS.N.M"]
[{"$f":"\"INN.\"&EIGNIR!$B$3&C9214","v":{"$error":"#N/A"}},{"$f":"'Afleiður og skortstöð - skuldir'!K108","v":0},".M.SAFSSER.XX.ERO.XXX.XXXX.SX.XXX.GBP.IS.N.M"]
[{"$f":"\"INN.\"&EIGNIR!$B$3&C9215","v":{"$error":"#N/A"}},{"$f":"'Afleiður og skortstöð - skuldir'!K109","v":0},".M.SAFSSER.XX.ERA.XXX.XXXX.SX.XXX.GBP.IS.N.M"]
[{"$f":"\"INN.\"&EIGNIR!$B$3&C9216","v":{"$error":"#N/A"}},{"$f":"'Afleiður og skortstöð - skuldir'!K110","v":0},".M.SAFSSEH.XX.ERL.XXX.XXXX.SX.XXX.GBP.IS.N.M"]
[{"$f":"\"INN.\"&EIGNIR!$B$3&C9217","v":{"$error":"#N/A"}},{"$f":"'Afleiður og skortstöð - skuldir'!K111","v":0},".M.SAFSSES.XX.ERL.XXX.XXXX.SX.SKT.GBP.IS.N.M"]
[{"$f":"\"INN.\"&EIGNIR!$B$3&C9218","v":{"$error":"#N/A"}},{"$f":"'Afleiður og skortstöð - skuldir'!K112","v":0},".M.SAFSSES.XX.ERL.XXX.XXXX.SX.LAT.GBP.IS.N.M"]
[{"$f":"\"INN.\"&EIGNIR!$B$3&C9219","v":{"$error":"#N/A"}},{"$f":"'Afleiður og skortstöð - skuldir'!L5","v":0},".M.SAF$$$$.XX.$$$.XXX.XXXX.SX.XXX.JPY.IS.N.M","//Sundurliðun afleiður JPY"]
[{"$f":"\"INN.\"&EIGNIR!$B$3&C9220","v":{"$error":"#N/A"}},{"$f":"'Afleiður og skortstöð - skuldir'!L6","v":0},".M.SAFVA$$.XX.$$$.XXX.XXXX.SX.XXX.JPY.IS.N.M"]
[{"$f":"\"INN.\"&EIGNIR!$B$3&C9221","v":{"$error":"#N/A"}},{"$f":"'Afleiður og skortstöð - skuldir'!L7","v":0},".M.SAFVAIN.XX.ATV.XXX.XXXX.SX.XXX.JPY.IS.N.M"]
[{"$f":"\"INN.\"&EIGNIR!$B$3&C9222","v":{"$error":"#N/A"}},{"$f":"'Afleiður og skortstöð - skuldir'!L8","v":0},".M.SAFVAIN.XX.FJA.XXX.XXXX.SX.XXX.JPY.IS.N.M"]
[{"$f":"\"INN.\"&EIGNIR!$B$3&C9223","v":{"$error":"#N/A"}},{"$f":"'Afleiður og skortstöð - skuldir'!L9","v":0},".M.SAFVAIN.XX.INN.XXX.XXXX.SX.XXX.JPY.IS.N.M"]
[{"$f":"\"INN.\"&EIGNIR!$B$3&C9224","v":{"$error":"#N/A"}},{"$f":"'Afleiður og skortstöð - skuldir'!L10","v":0},".M.SAFVAIN.XX.SLI.XXX.XXXX.SX.XXX.JPY.IS.N.M"]
[{"$f":"\"INN.\"&EIGNIR!$B$3&C9225","v":{"$error":"#N/A"}},{"$f":"'Afleiður og skortstöð - skuldir'!L11","v":0},".M.SAFVAIN.XX.PEN.XXX.XXXX.SX.XXX.JPY.IS.N.M"]
[{"$f":"\"INN.\"&EIGNIR!$B$3&C9226","v":{"$error":"#N/A"}},{"$f":"'Afleiður og skortstöð - skuldir'!L12","v":0},".M.SAFVAIN.XX.SJO.XXX.XXXX.SX.XXX.JPY.IS.N.M"]
[{"$f":"\"INN.\"&EIGNIR!$B$3&C9227","v":{"$error":"#N/A"}},{"$f":"'Afleiður og skortstöð - skuldir'!L13","v":0},".M.SAFVAIN.XX.YFT.XXX.XXXX.SX.XXX.JPY.IS.N.M"]
[{"$f":"\"INN.\"&EIGNIR!$B$3&C9228","v":{"$error":"#N/A"}},{"$f":"'Afleiður og skortstöð - skuldir'!L14","v":0},".M.SAFVAIN.XX.SLY.XXX.XXXX.SX.XXX.JPY.IS.N.M"]
[{"$f":"\"INN.\"&EIGNIR!$B$3&C9229","v":{"$error":"#N/A"}},{"$f":"'Afleiður og skortstöð - skuldir'!L15","v":0},".M.SAFVAIN.XX.FHL.XXX.XXXX.SX.XXX.JPY.IS.N.M"]
[{"$f":"\"INN.\"&EIGNIR!$B$3&C9230","v":{"$error":"#N/A"}},{"$f":"'Afleiður og skortstöð - skuldir'!L16","v":0},".M.SAFVAIN.XX.INF.XXX.XXXX.SX.XXX.JPY.IS.N.M"]
[{"$f":"\"INN.\"&EIGNIR!$B$3&C9231","v":{"$error":"#N/A"}},{"$f":"'Afleiður og skortstöð - skuldir'!L17","v":0},".M.SAFVAIN.XX.TRY.XXX.XXXX.SX.XXX.JPY.IS.N.M"]
[{"$f":"\"INN.\"&EIGNIR!$B$3&C9232","v":{"$error":"#N/A"}},{"$f":"'Afleiður og skortstöð - skuldir'!L18","v":0},".M.SAFVAIN.XX.LIF.XXX.XXXX.SX.XXX.JPY.IS.N.M"]
[{"$f":"\"INN.\"&EIGNIR!$B$3&C9233","v":{"$error":"#N/A"}},{"$f":"'Afleiður og skortstöð - skuldir'!L19","v":0},".M.SAFVAIN.XX.OPI.XXX.XXXX.SX.XXX.JPY.IS.N.M"]
[{"$f":"\"INN.\"&EIGNIR!$B$3&C9234","v":{"$error":"#N/A"}},{"$f":"'Afleiður og skortstöð - skuldir'!L20","v":0},".M.SAFVAIN.XX.RSS.XXX.XXXX.SX.XXX.JPY.IS.N.M"]
[{"$f":"\"INN.\"&EIGNIR!$B$3&C9235","v":{"$error":"#N/A"}},{"$f":"'Afleiður og skortstöð - skuldir'!L21","v":0},".M.SAFVAIN.XX.BAJ.XXX.XXXX.SX.XXX.JPY.IS.N.M"]
[{"$f":"\"INN.\"&EIGNIR!$B$3&C9236","v":{"$error":"#N/A"}},{"$f":"'Afleiður og skortstöð - skuldir'!L22","v":0},".M.SAFVAIN.XX.EIN.XXX.XXXX.SX.XXX.JPY.IS.N.M"]
[{"$f":"\"INN.\"&EIGNIR!$B$3&C9237","v":{"$error":"#N/A"}},{"$f":"'Afleiður og skortstöð - skuldir'!L23","v":0},".M.SAFVAIN.XX.NPH.XXX.XXXX.SX.XXX.JPY.IS.N.M"]
[{"$f":"\"INN.\"&EIGNIR!$B$3&C9238","v":{"$error":"#N/A"}},{"$f":"'Afleiður og skortstöð - skuldir'!L24","v":0},".M.SAFVAER.XX.ERL.XXX.XXXX.SX.XXX.JPY.IS.N.M"]
[{"$f":"\"INN.\"&EIGNIR!$B$3&C9239","v":{"$error":"#N/A"}},{"$f":"'Afleiður og skortstöð - skuldir'!L25","v":0},".M.SAFVAER.XX.ERS.XXX.XXXX.SX.XXX.JPY.IS.N.M"]
[{"$f":"\"INN.\"&EIGNIR!$B$3&C9240","v":{"$error":"#N/A"}},{"$f":"'Afleiður og skortstöð - skuldir'!L26","v":0},".M.SAFVAER.XX.ERI.XXX.XXXX.SX.XXX.JPY.IS.N.M"]
[{"$f":"\"INN.\"&EIGNIR!$B$3&C9241","v":{"$error":"#N/A"}},{"$f":"'Afleiður og skortstöð - skuldir'!L27","v":0},".M.SAFVAER.XX.ERP.XXX.XXXX.SX.XXX.JPY.IS.N.M"]
[{"$f":"\"INN.\"&EIGNIR!$B$3&C9242","v":{"$error":"#N/A"}},{"$f":"'Afleiður og skortstöð - skuldir'!L28","v":0},".M.SAFVAER.XX.ERV.XXX.XXXX.SX.XXX.JPY.IS.N.M"]
[{"$f":"\"INN.\"&EIGNIR!$B$3&C9243","v":{"$error":"#N/A"}},{"$f":"'Afleiður og skortstöð - skuldir'!L29","v":0},".M.SAFVAER.XX.ERF.XXX.XXXX.SX.XXX.JPY.IS.N.M"]
[{"$f":"\"INN.\"&EIGNIR!$B$3&C9244","v":{"$error":"#N/A"}},{"$f":"'Afleiður og skortstöð - skuldir'!L30","v":0},".M.SAFVAER.XX.ERO.XXX.XXXX.SX.XXX.JPY.IS.N.M"]
[{"$f":"\"INN.\"&EIGNIR!$B$3&C9245","v":{"$error":"#N/A"}},{"$f":"'Afleiður og skortstöð - skuldir'!L31","v":0},".M.SAFVAER.XX.ERA.XXX.XXXX.SX.XXX.JPY.IS.N.M"]
[{"$f":"\"INN.\"&EIGNIR!$B$3&C9246","v":{"$error":"#N/A"}},{"$f":"'Afleiður og skortstöð - skuldir'!L32","v":0},".M.SAFFR$$.XX.$$$.XXX.XXXX.SX.XXX.JPY.IS.N.M"]
[{"$f":"\"INN.\"&EIGNIR!$B$3&C9247","v":{"$error":"#N/A"}},{"$f":"'Afleiður og skortstöð - skuldir'!L33","v":0},".M.SAFFRIN.XX.ATV.XXX.XXXX.SX.XXX.JPY.IS.N.M"]
[{"$f":"\"INN.\"&EIGNIR!$B$3&C9248","v":{"$error":"#N/A"}},{"$f":"'Afleiður og skortstöð - skuldir'!L34","v":0},".M.SAFFRIN.XX.FJA.XXX.XXXX.SX.XXX.JPY.IS.N.M"]
[{"$f":"\"INN.\"&EIGNIR!$B$3&C9249","v":{"$error":"#N/A"}},{"$f":"'Afleiður og skortstöð - skuldir'!L35","v":0},".M.SAFFRIN.XX.INN.XXX.XXXX.SX.XXX.JPY.IS.N.M"]
[{"$f":"\"INN.\"&EIGNIR!$B$3&C9250","v":{"$error":"#N/A"}},{"$f":"'Afleiður og skortstöð - skuldir'!L36","v":0},".M.SAFFRIN.XX.SLI.XXX.XXXX.SX.XXX.JPY.IS.N.M"]
[{"$f":"\"INN.\"&EIGNIR!$B$3&C9251","v":{"$error":"#N/A"}},{"$f":"'Afleiður og skortstöð - skuldir'!L37","v":0},".M.SAFFRIN.XX.PEN.XXX.XXXX.SX.XXX.JPY.IS.N.M"]
[{"$f":"\"INN.\"&EIGNIR!$B$3&C9252","v":{"$error":"#N/A"}},{"$f":"'Afleiður og skortstöð - skuldir'!L38","v":0},".M.SAFFRIN.XX.SJO.XXX.XXXX.SX.XXX.JPY.IS.N.M"]
[{"$f":"\"INN.\"&EIGNIR!$B$3&C9253","v":{"$error":"#N/A"}},{"$f":"'Afleiður og skortstöð - skuldir'!L39","v":0},".M.SAFFRIN.XX.YFT.XXX.XXXX.SX.XXX.JPY.IS.N.M"]
[{"$f":"\"INN.\"&EIGNIR!$B$3&C9254","v":{"$error":"#N/A"}},{"$f":"'Afleiður og skortstöð - skuldir'!L40","v":0},".M.SAFFRIN.XX.SLY.XXX.XXXX.SX.XXX.JPY.IS.N.M"]
[{"$f":"\"INN.\"&EIGNIR!$B$3&C9255","v":{"$error":"#N/A"}},{"$f":"'Afleiður og skortstöð - skuldir'!L41","v":0},".M.SAFFRIN.XX.FHL.XXX.XXXX.SX.XXX.JPY.IS.N.M"]
[{"$f":"\"INN.\"&EIGNIR!$B$3&C9256","v":{"$error":"#N/A"}},{"$f":"'Afleiður og skortstöð - skuldir'!L42","v":0},".M.SAFFRIN.XX.INF.XXX.XXXX.SX.XXX.JPY.IS.N.M"]
[{"$f":"\"INN.\"&EIGNIR!$B$3&C9257","v":{"$error":"#N/A"}},{"$f":"'Afleiður og skortstöð - skuldir'!L43","v":0},".M.SAFFRIN.XX.TRY.XXX.XXXX.SX.XXX.JPY.IS.N.M"]
[{"$f":"\"INN.\"&EIGNIR!$B$3&C9258","v":{"$error":"#N/A"}},{"$f":"'Afleiður og skortstöð - skuldir'!L44","v":0},".M.SAFFRIN.XX.LIF.XXX.XXXX.SX.XXX.JPY.IS.N.M"]
[{"$f":"\"INN.\"&EIGNIR!$B$3&C9259","v":{"$error":"#N/A"}},{"$f":"'Afleiður og skortstöð - skuldir'!L45","v":0},".M.SAFFRIN.XX.OPI.XXX.XXXX.SX.XXX.JPY.IS.N.M"]
[{"$f":"\"INN.\"&EIGNIR!$B$3&C9260","v":{"$error":"#N/A"}},{"$f":"'Afleiður og skortstöð - skuldir'!L46","v":0},".M.SAFFRIN.XX.RSS.XXX.XXXX.SX.XXX.JPY.IS.N.M"]
[{"$f":"\"INN.\"&EIGNIR!$B$3&C9261","v":{"$error":"#N/A"}},{"$f":"'Afleiður og skortstöð - skuldir'!L47","v":0},".M.SAFFRIN.XX.BAJ.XXX.XXXX.SX.XXX.JPY.IS.N.M"]
[{"$f":"\"INN.\"&EIGNIR!$B$3&C9262","v":{"$error":"#N/A"}},{"$f":"'Afleiður og skortstöð - skuldir'!L48","v":0},".M.SAFFRIN.XX.EIN.XXX.XXXX.SX.XXX.JPY.IS.N.M"]
[{"$f":"\"INN.\"&EIGNIR!$B$3&C9263","v":{"$error":"#N/A"}},{"$f":"'Afleiður og skortstöð - skuldir'!L49","v":0},".M.SAFFRIN.XX.NPH.XXX.XXXX.SX.XXX.JPY.IS.N.M"]
[{"$f":"\"INN.\"&EIGNIR!$B$3&C9264","v":{"$error":"#N/A"}},{"$f":"'Afleiður og skortstöð - skuldir'!L50","v":0},".M.SAFFRER.XX.ERL.XXX.XXXX.SX.XXX.JPY.IS.N.M"]
[{"$f":"\"INN.\"&EIGNIR!$B$3&C9265","v":{"$error":"#N/A"}},{"$f":"'Afleiður og skortstöð - skuldir'!L51","v":0},".M.SAFFRER.XX.ERS.XXX.XXXX.SX.XXX.JPY.IS.N.M"]
[{"$f":"\"INN.\"&EIGNIR!$B$3&C9266","v":{"$error":"#N/A"}},{"$f":"'Afleiður og skortstöð - skuldir'!L52","v":0},".M.SAFFRER.XX.ERI.XXX.XXXX.SX.XXX.JPY.IS.N.M"]
[{"$f":"\"INN.\"&EIGNIR!$B$3&C9267","v":{"$error":"#N/A"}},{"$f":"'Afleiður og skortstöð - skuldir'!L53","v":0},".M.SAFFRER.XX.ERP.XXX.XXXX.SX.XXX.JPY.IS.N.M"]
[{"$f":"\"INN.\"&EIGNIR!$B$3&C9268","v":{"$error":"#N/A"}},{"$f":"'Afleiður og skortstöð - skuldir'!L54","v":0},".M.SAFFRER.XX.ERV.XXX.XXXX.SX.XXX.JPY.IS.N.M"]
[{"$f":"\"INN.\"&EIGNIR!$B$3&C9269","v":{"$error":"#N/A"}},{"$f":"'Afleiður og skortstöð - skuldir'!L55","v":0},".M.SAFFRER.XX.ERF.XXX.XXXX.SX.XXX.JPY.IS.N.M"]
[{"$f":"\"INN.\"&EIGNIR!$B$3&C9270","v":{"$error":"#N/A"}},{"$f":"'Afleiður og skortstöð - skuldir'!L56","v":0},".M.SAFFRER.XX.ERO.XXX.XXXX.SX.XXX.JPY.IS.N.M"]
[{"$f":"\"INN.\"&EIGNIR!$B$3&C9271","v":{"$error":"#N/A"}},{"$f":"'Afleiður og skortstöð - skuldir'!L57","v":0},".M.SAFFRER.XX.ERA.XXX.XXXX.SX.XXX.JPY.IS.N.M"]
[{"$f":"\"INN.\"&EIGNIR!$B$3&C9272","v":{"$error":"#N/A"}},{"$f":"'Afleiður og skortstöð - skuldir'!L58","v":0},".M.SAFSK$$.XX.$$$.XXX.XXXX.SX.XXX.JPY.IS.N.M"]
[{"$f":"\"INN.\"&EIGNIR!$B$3&C9273","v":{"$error":"#N/A"}},{"$f":"'Afleiður og skortstöð - skuldir'!L59","v":0},".M.SAFSKIN.XX.ATV.XXX.XXXX.SX.XXX.JPY.IS.N.M"]
[{"$f":"\"INN.\"&EIGNIR!$B$3&C9274","v":{"$error":"#N/A"}},{"$f":"'Afleiður og skortstöð - skuldir'!L60","v":0},".M.SAFSKIN.XX.FJA.XXX.XXXX.SX.XXX.JPY.IS.N.M"]
[{"$f":"\"INN.\"&EIGNIR!$B$3&C9275","v":{"$error":"#N/A"}},{"$f":"'Afleiður og skortstöð - skuldir'!L61","v":0},".M.SAFSKIN.XX.INN.XXX.XXXX.SX.XXX.JPY.IS.N.M"]
[{"$f":"\"INN.\"&EIGNIR!$B$3&C9276","v":{"$error":"#N/A"}},{"$f":"'Afleiður og skortstöð - skuldir'!L62","v":0},".M.SAFSKIN.XX.SLI.XXX.XXXX.SX.XXX.JPY.IS.N.M"]
[{"$f":"\"INN.\"&EIGNIR!$B$3&C9277","v":{"$error":"#N/A"}},{"$f":"'Afleiður og skortstöð - skuldir'!L63","v":0},".M.SAFSKIN.XX.PEN.XXX.XXXX.SX.XXX.JPY.IS.N.M"]
[{"$f":"\"INN.\"&EIGNIR!$B$3&C9278","v":{"$error":"#N/A"}},{"$f":"'Afleiður og skortstöð - skuldir'!L64","v":0},".M.SAFSKIN.XX.SJO.XXX.XXXX.SX.XXX.JPY.IS.N.M"]
[{"$f":"\"INN.\"&EIGNIR!$B$3&C9279","v":{"$error":"#N/A"}},{"$f":"'Afleiður og skortstöð - skuldir'!L65","v":0},".M.SAFSKIN.XX.YFT.XXX.XXXX.SX.XXX.JPY.IS.N.M"]
[{"$f":"\"INN.\"&EIGNIR!$B$3&C9280","v":{"$error":"#N/A"}},{"$f":"'Afleiður og skortstöð - skuldir'!L66","v":0},".M.SAFSKIN.XX.SLY.XXX.XXXX.SX.XXX.JPY.IS.N.M"]
[{"$f":"\"INN.\"&EIGNIR!$B$3&C9281","v":{"$error":"#N/A"}},{"$f":"'Afleiður og skortstöð - skuldir'!L67","v":0},".M.SAFSKIN.XX.FHL.XXX.XXXX.SX.XXX.JPY.IS.N.M"]
[{"$f":"\"INN.\"&EIGNIR!$B$3&C9282","v":{"$error":"#N/A"}},{"$f":"'Afleiður og skortstöð - skuldir'!L68","v":0},".M.SAFSKIN.XX.INF.XXX.XXXX.SX.XXX.JPY.IS.N.M"]
[{"$f":"\"INN.\"&EIGNIR!$B$3&C9283","v":{"$error":"#N/A"}},{"$f":"'Afleiður og skortstöð - skuldir'!L69","v":0},".M.SAFSKIN.XX.TRY.XXX.XXXX.SX.XXX.JPY.IS.N.M"]
[{"$f":"\"INN.\"&EIGNIR!$B$3&C9284","v":{"$error":"#N/A"}},{"$f":"'Afleiður og skortstöð - skuldir'!L70","v":0},".M.SAFSKIN.XX.LIF.XXX.XXXX.SX.XXX.JPY.IS.N.M"]
[{"$f":"\"INN.\"&EIGNIR!$B$3&C9285","v":{"$error":"#N/A"}},{"$f":"'Afleiður og skortstöð - skuldir'!L71","v":0},".M.SAFSKIN.XX.OPI.XXX.XXXX.SX.XXX.JPY.IS.N.M"]
[{"$f":"\"INN.\"&EIGNIR!$B$3&C9286","v":{"$error":"#N/A"}},{"$f":"'Afleiður og skortstöð - skuldir'!L72","v":0},".M.SAFSKIN.XX.RSS.XXX.XXXX.SX.XXX.JPY.IS.N.M"]
[{"$f":"\"INN.\"&EIGNIR!$B$3&C9287","v":{"$error":"#N/A"}},{"$f":"'Afleiður og skortstöð - skuldir'!L73","v":0},".M.SAFSKIN.XX.BAJ.XXX.XXXX.SX.XXX.JPY.IS.N.M"]
[{"$f":"\"INN.\"&EIGNIR!$B$3&C9288","v":{"$error":"#N/A"}},{"$f":"'Afleiður og skortstöð - skuldir'!L74","v":0},".M.SAFSKIN.XX.EIN.XXX.XXXX.SX.XXX.JPY.IS.N.M"]
[{"$f":"\"INN.\"&EIGNIR!$B$3&C9289","v":{"$error":"#N/A"}},{"$f":"'Afleiður og skortstöð - skuldir'!L75","v":0},".M.SAFSKIN.XX.NPH.XXX.XXXX.SX.XXX.JPY.IS.N.M"]
[{"$f":"\"INN.\"&EIGNIR!$B$3&C9290","v":{"$error":"#N/A"}},{"$f":"'Afleiður og skortstöð - skuldir'!L76","v":0},".M.SAFSKER.XX.ERL.XXX.XXXX.SX.XXX.JPY.IS.N.M"]
[{"$f":"\"INN.\"&EIGNIR!$B$3&C9291","v":{"$error":"#N/A"}},{"$f":"'Afleiður og skortstöð - skuldir'!L77","v":0},".M.SAFSKER.XX.ERS.XXX.XXXX.SX.XXX.JPY.IS.N.M"]
[{"$f":"\"INN.\"&EIGNIR!$B$3&C9292","v":{"$error":"#N/A"}},{"$f":"'Afleiður og skortstöð - skuldir'!L78","v":0},".M.SAFSKER.XX.ERI.XXX.XXXX.SX.XXX.JPY.IS.N.M"]
[{"$f":"\"INN.\"&EIGNIR!$B$3&C9293","v":{"$error":"#N/A"}},{"$f":"'Afleiður og skortstöð - skuldir'!L79","v":0},".M.SAFSKER.XX.ERP.XXX.XXXX.SX.XXX.JPY.IS.N.M"]
[{"$f":"\"INN.\"&EIGNIR!$B$3&C9294","v":{"$error":"#N/A"}},{"$f":"'Afleiður og skortstöð - skuldir'!L80","v":0},".M.SAFSKER.XX.ERV.XXX.XXXX.SX.XXX.JPY.IS.N.M"]
[{"$f":"\"INN.\"&EIGNIR!$B$3&C9295","v":{"$error":"#N/A"}},{"$f":"'Afleiður og skortstöð - skuldir'!L81","v":0},".M.SAFSKER.XX.ERF.XXX.XXXX.SX.XXX.JPY.IS.N.M"]
[{"$f":"\"INN.\"&EIGNIR!$B$3&C9296","v":{"$error":"#N/A"}},{"$f":"'Afleiður og skortstöð - skuldir'!L82","v":0},".M.SAFSKER.XX.ERO.XXX.XXXX.SX.XXX.JPY.IS.N.M"]
[{"$f":"\"INN.\"&EIGNIR!$B$3&C9297","v":{"$error":"#N/A"}},{"$f":"'Afleiður og skortstöð - skuldir'!L83","v":0},".M.SAFSKER.XX.ERA.XXX.XXXX.SX.XXX.JPY.IS.N.M"]
[{"$f":"\"INN.\"&EIGNIR!$B$3&C9298","v":{"$error":"#N/A"}},{"$f":"'Afleiður og skortstöð - skuldir'!L84","v":0},".M.SAFSS$$.XX.$$$.XXX.XXXX.SX.XXX.JPY.IS.N.M"]
[{"$f":"\"INN.\"&EIGNIR!$B$3&C9299","v":{"$error":"#N/A"}},{"$f":"'Afleiður og skortstöð - skuldir'!L85","v":0},".M.SAFSSIN.XX.ATV.XXX.XXXX.SX.XXX.JPY.IS.N.M"]
[{"$f":"\"INN.\"&EIGNIR!$B$3&C9300","v":{"$error":"#N/A"}},{"$f":"'Afleiður og skortstöð - skuldir'!L86","v":0},".M.SAFSSIN.XX.FJA.XXX.XXXX.SX.XXX.JPY.IS.N.M"]
[{"$f":"\"INN.\"&EIGNIR!$B$3&C9301","v":{"$error":"#N/A"}},{"$f":"'Afleiður og skortstöð - skuldir'!L87","v":0},".M.SAFSSIN.XX.INN.XXX.XXXX.SX.XXX.JPY.IS.N.M"]
[{"$f":"\"INN.\"&EIGNIR!$B$3&C9302","v":{"$error":"#N/A"}},{"$f":"'Afleiður og skortstöð - skuldir'!L88","v":0},".M.SAFSSIN.XX.SLI.XXX.XXXX.SX.XXX.JPY.IS.N.M"]
[{"$f":"\"INN.\"&EIGNIR!$B$3&C9303","v":{"$error":"#N/A"}},{"$f":"'Afleiður og skortstöð - skuldir'!L89","v":0},".M.SAFSSIN.XX.PEN.XXX.XXXX.SX.XXX.JPY.IS.N.M"]
[{"$f":"\"INN.\"&EIGNIR!$B$3&C9304","v":{"$error":"#N/A"}},{"$f":"'Afleiður og skortstöð - skuldir'!L90","v":0},".M.SAFSSIN.XX.SJO.XXX.XXXX.SX.XXX.JPY.IS.N.M"]
[{"$f":"\"INN.\"&EIGNIR!$B$3&C9305","v":{"$error":"#N/A"}},{"$f":"'Afleiður og skortstöð - skuldir'!L91","v":0},".M.SAFSSIN.XX.YFT.XXX.XXXX.SX.XXX.JPY.IS.N.M"]
[{"$f":"\"INN.\"&EIGNIR!$B$3&C9306","v":{"$error":"#N/A"}},{"$f":"'Afleiður og skortstöð - skuldir'!L92","v":0},".M.SAFSSIN.XX.SLY.XXX.XXXX.SX.XXX.JPY.IS.N.M"]
[{"$f":"\"INN.\"&EIGNIR!$B$3&C9307","v":{"$error":"#N/A"}},{"$f":"'Afleiður og skortstöð - skuldir'!L93","v":0},".M.SAFSSIN.XX.FHL.XXX.XXXX.SX.XXX.JPY.IS.N.M"]
[{"$f":"\"INN.\"&EIGNIR!$B$3&C9308","v":{"$error":"#N/A"}},{"$f":"'Afleiður og skortstöð - skuldir'!L94","v":0},".M.SAFSSIN.XX.INF.XXX.XXXX.SX.XXX.JPY.IS.N.M"]
[{"$f":"\"INN.\"&EIGNIR!$B$3&C9309","v":{"$error":"#N/A"}},{"$f":"'Afleiður og skortstöð - skuldir'!L95","v":0},".M.SAFSSIN.XX.TRY.XXX.XXXX.SX.XXX.JPY.IS.N.M"]
[{"$f":"\"INN.\"&EIGNIR!$B$3&C9310","v":{"$error":"#N/A"}},{"$f":"'Afleiður og skortstöð - skuldir'!L96","v":0},".M.SAFSSIN.XX.LIF.XXX.XXXX.SX.XXX.JPY.IS.N.M"]
[{"$f":"\"INN.\"&EIGNIR!$B$3&C9311","v":{"$error":"#N/A"}},{"$f":"'Afleiður og skortstöð - skuldir'!L97","v":0},".M.SAFSSIN.XX.OPI.XXX.XXXX.SX.XXX.JPY.IS.N.M"]
[{"$f":"\"INN.\"&EIGNIR!$B$3&C9312","v":{"$error":"#N/A"}},{"$f":"'Afleiður og skortstöð - skuldir'!L98","v":0},".M.SAFSSIN.XX.RSS.XXX.XXXX.SX.XXX.JPY.IS.N.M"]
[{"$f":"\"INN.\"&EIGNIR!$B$3&C9313","v":{"$error":"#N/A"}},{"$f":"'Afleiður og skortstöð - skuldir'!L99","v":0},".M.SAFSSIN.XX.BAJ.XXX.XXXX.SX.XXX.JPY.IS.N.M"]
[{"$f":"\"INN.\"&EIGNIR!$B$3&C9314","v":{"$error":"#N/A"}},{"$f":"'Afleiður og skortstöð - skuldir'!L100","v":0},".M.SAFSSIN.XX.EIN.XXX.XXXX.SX.XXX.JPY.IS.N.M"]
[{"$f":"\"INN.\"&EIGNIR!$B$3&C9315","v":{"$error":"#N/A"}},{"$f":"'Afleiður og skortstöð - skuldir'!L101","v":0},".M.SAFSSIN.XX.NPH.XXX.XXXX.SX.XXX.JPY.IS.N.M"]
[{"$f":"\"INN.\"&EIGNIR!$B$3&C9316","v":{"$error":"#N/A"}},{"$f":"'Afleiður og skortstöð - skuldir'!L102","v":0},".M.SAFSSER.XX.ERL.XXX.XXXX.SX.XXX.JPY.IS.N.M"]
[{"$f":"\"INN.\"&EIGNIR!$B$3&C9317","v":{"$error":"#N/A"}},{"$f":"'Afleiður og skortstöð - skuldir'!L103","v":0},".M.SAFSSER.XX.ERS.XXX.XXXX.SX.XXX.JPY.IS.N.M"]
[{"$f":"\"INN.\"&EIGNIR!$B$3&C9318","v":{"$error":"#N/A"}},{"$f":"'Afleiður og skortstöð - skuldir'!L104","v":0},".M.SAFSSER.XX.ERI.XXX.XXXX.SX.XXX.JPY.IS.N.M"]
[{"$f":"\"INN.\"&EIGNIR!$B$3&C9319","v":{"$error":"#N/A"}},{"$f":"'Afleiður og skortstöð - skuldir'!L105","v":0},".M.SAFSSER.XX.ERP.XXX.XXXX.SX.XXX.JPY.IS.N.M"]
[{"$f":"\"INN.\"&EIGNIR!$B$3&C9320","v":{"$error":"#N/A"}},{"$f":"'Afleiður og skortstöð - skuldir'!L106","v":0},".M.SAFSSER.XX.ERV.XXX.XXXX.SX.XXX.JPY.IS.N.M"]
[{"$f":"\"INN.\"&EIGNIR!$B$3&C9321","v":{"$error":"#N/A"}},{"$f":"'Afleiður og skortstöð - skuldir'!L107","v":0},".M.SAFSSER.XX.ERF.XXX.XXXX.SX.XXX.JPY.IS.N.M"]
[{"$f":"\"INN.\"&EIGNIR!$B$3&C9322","v":{"$error":"#N/A"}},{"$f":"'Afleiður og skortstöð - skuldir'!L108","v":0},".M.SAFSSER.XX.ERO.XXX.XXXX.SX.XXX.JPY.IS.N.M"]
[{"$f":"\"INN.\"&EIGNIR!$B$3&C9323","v":{"$error":"#N/A"}},{"$f":"'Afleiður og skortstöð - skuldir'!L109","v":0},".M.SAFSSER.XX.ERA.XXX.XXXX.SX.XXX.JPY.IS.N.M"]
[{"$f":"\"INN.\"&EIGNIR!$B$3&C9324","v":{"$error":"#N/A"}},{"$f":"'Afleiður og skortstöð - skuldir'!L110","v":0},".M.SAFSSEH.XX.ERL.XXX.XXXX.SX.XXX.JPY.IS.N.M"]
[{"$f":"\"INN.\"&EIGNIR!$B$3&C9325","v":{"$error":"#N/A"}},{"$f":"'Afleiður og skortstöð - skuldir'!L111","v":0},".M.SAFSSES.XX.ERL.XXX.XXXX.SX.SKT.JPY.IS.N.M"]
[{"$f":"\"INN.\"&EIGNIR!$B$3&C9326","v":{"$error":"#N/A"}},{"$f":"'Afleiður og skortstöð - skuldir'!L112","v":0},".M.SAFSSES.XX.ERL.XXX.XXXX.SX.LAT.JPY.IS.N.M"]
[{"$f":"\"INN.\"&EIGNIR!$B$3&C9327","v":{"$error":"#N/A"}},{"$f":"'Afleiður og skortstöð - skuldir'!M5","v":0},".M.SAF$$$$.XX.$$$.XXX.XXXX.SX.XXX.DKK.IS.N.M","//Sundurliðun afleiður DKK"]
[{"$f":"\"INN.\"&EIGNIR!$B$3&C9328","v":{"$error":"#N/A"}},{"$f":"'Afleiður og skortstöð - skuldir'!M6","v":0},".M.SAFVA$$.XX.$$$.XXX.XXXX.SX.XXX.DKK.IS.N.M"]
[{"$f":"\"INN.\"&EIGNIR!$B$3&C9329","v":{"$error":"#N/A"}},{"$f":"'Afleiður og skortstöð - skuldir'!M7","v":0},".M.SAFVAIN.XX.ATV.XXX.XXXX.SX.XXX.DKK.IS.N.M"]
[{"$f":"\"INN.\"&EIGNIR!$B$3&C9330","v":{"$error":"#N/A"}},{"$f":"'Afleiður og skortstöð - skuldir'!M8","v":0},".M.SAFVAIN.XX.FJA.XXX.XXXX.SX.XXX.DKK.IS.N.M"]
[{"$f":"\"INN.\"&EIGNIR!$B$3&C9331","v":{"$error":"#N/A"}},{"$f":"'Afleiður og skortstöð - skuldir'!M9","v":0},".M.SAFVAIN.XX.INN.XXX.XXXX.SX.XXX.DKK.IS.N.M"]
[{"$f":"\"INN.\"&EIGNIR!$B$3&C9332","v":{"$error":"#N/A"}},{"$f":"'Afleiður og skortstöð - skuldir'!M10","v":0},".M.SAFVAIN.XX.SLI.XXX.XXXX.SX.XXX.DKK.IS.N.M"]
[{"$f":"\"INN.\"&EIGNIR!$B$3&C9333","v":{"$error":"#N/A"}},{"$f":"'Afleiður og skortstöð - skuldir'!M11","v":0},".M.SAFVAIN.XX.PEN.XXX.XXXX.SX.XXX.DKK.IS.N.M"]
[{"$f":"\"INN.\"&EIGNIR!$B$3&C9334","v":{"$error":"#N/A"}},{"$f":"'Afleiður og skortstöð - skuldir'!M12","v":0},".M.SAFVAIN.XX.SJO.XXX.XXXX.SX.XXX.DKK.IS.N.M"]
[{"$f":"\"INN.\"&EIGNIR!$B$3&C9335","v":{"$error":"#N/A"}},{"$f":"'Afleiður og skortstöð - skuldir'!M13","v":0},".M.SAFVAIN.XX.YFT.XXX.XXXX.SX.XXX.DKK.IS.N.M"]
[{"$f":"\"INN.\"&EIGNIR!$B$3&C9336","v":{"$error":"#N/A"}},{"$f":"'Afleiður og skortstöð - skuldir'!M14","v":0},".M.SAFVAIN.XX.SLY.XXX.XXXX.SX.XXX.DKK.IS.N.M"]
[{"$f":"\"INN.\"&EIGNIR!$B$3&C9337","v":{"$error":"#N/A"}},{"$f":"'Afleiður og skortstöð - skuldir'!M15","v":0},".M.SAFVAIN.XX.FHL.XXX.XXXX.SX.XXX.DKK.IS.N.M"]
[{"$f":"\"INN.\"&EIGNIR!$B$3&C9338","v":{"$error":"#N/A"}},{"$f":"'Afleiður og skortstöð - skuldir'!M16","v":0},".M.SAFVAIN.XX.INF.XXX.XXXX.SX.XXX.DKK.IS.N.M"]
[{"$f":"\"INN.\"&EIGNIR!$B$3&C9339","v":{"$error":"#N/A"}},{"$f":"'Afleiður og skortstöð - skuldir'!M17","v":0},".M.SAFVAIN.XX.TRY.XXX.XXXX.SX.XXX.DKK.IS.N.M"]
[{"$f":"\"INN.\"&EIGNIR!$B$3&C9340","v":{"$error":"#N/A"}},{"$f":"'Afleiður og skortstöð - skuldir'!M18","v":0},".M.SAFVAIN.XX.LIF.XXX.XXXX.SX.XXX.DKK.IS.N.M"]
[{"$f":"\"INN.\"&EIGNIR!$B$3&C9341","v":{"$error":"#N/A"}},{"$f":"'Afleiður og skortstöð - skuldir'!M19","v":0},".M.SAFVAIN.XX.OPI.XXX.XXXX.SX.XXX.DKK.IS.N.M"]
[{"$f":"\"INN.\"&EIGNIR!$B$3&C9342","v":{"$error":"#N/A"}},{"$f":"'Afleiður og skortstöð - skuldir'!M20","v":0},".M.SAFVAIN.XX.RSS.XXX.XXXX.SX.XXX.DKK.IS.N.M"]
[{"$f":"\"INN.\"&EIGNIR!$B$3&C9343","v":{"$error":"#N/A"}},{"$f":"'Afleiður og skortstöð - skuldir'!M21","v":0},".M.SAFVAIN.XX.BAJ.XXX.XXXX.SX.XXX.DKK.IS.N.M"]
[{"$f":"\"INN.\"&EIGNIR!$B$3&C9344","v":{"$error":"#N/A"}},{"$f":"'Afleiður og skortstöð - skuldir'!M22","v":0},".M.SAFVAIN.XX.EIN.XXX.XXXX.SX.XXX.DKK.IS.N.M"]
[{"$f":"\"INN.\"&EIGNIR!$B$3&C9345","v":{"$error":"#N/A"}},{"$f":"'Afleiður og skortstöð - skuldir'!M23","v":0},".M.SAFVAIN.XX.NPH.XXX.XXXX.SX.XXX.DKK.IS.N.M"]
[{"$f":"\"INN.\"&EIGNIR!$B$3&C9346","v":{"$error":"#N/A"}},{"$f":"'Afleiður og skortstöð - skuldir'!M24","v":0},".M.SAFVAER.XX.ERL.XXX.XXXX.SX.XXX.DKK.IS.N.M"]
[{"$f":"\"INN.\"&EIGNIR!$B$3&C9347","v":{"$error":"#N/A"}},{"$f":"'Afleiður og skortstöð - skuldir'!M25","v":0},".M.SAFVAER.XX.ERS.XXX.XXXX.SX.XXX.DKK.IS.N.M"]
[{"$f":"\"INN.\"&EIGNIR!$B$3&C9348","v":{"$error":"#N/A"}},{"$f":"'Afleiður og skortstöð - skuldir'!M26","v":0},".M.SAFVAER.XX.ERI.XXX.XXXX.SX.XXX.DKK.IS.N.M"]
[{"$f":"\"INN.\"&EIGNIR!$B$3&C9349","v":{"$error":"#N/A"}},{"$f":"'Afleiður og skortstöð - skuldir'!M27","v":0},".M.SAFVAER.XX.ERP.XXX.XXXX.SX.XXX.DKK.IS.N.M"]
[{"$f":"\"INN.\"&EIGNIR!$B$3&C9350","v":{"$error":"#N/A"}},{"$f":"'Afleiður og skortstöð - skuldir'!M28","v":0},".M.SAFVAER.XX.ERV.XXX.XXXX.SX.XXX.DKK.IS.N.M"]
[{"$f":"\"INN.\"&EIGNIR!$B$3&C9351","v":{"$error":"#N/A"}},{"$f":"'Afleiður og skortstöð - skuldir'!M29","v":0},".M.SAFVAER.XX.ERF.XXX.XXXX.SX.XXX.DKK.IS.N.M"]
[{"$f":"\"INN.\"&EIGNIR!$B$3&C9352","v":{"$error":"#N/A"}},{"$f":"'Afleiður og skortstöð - skuldir'!M30","v":0},".M.SAFVAER.XX.ERO.XXX.XXXX.SX.XXX.DKK.IS.N.M"]
[{"$f":"\"INN.\"&EIGNIR!$B$3&C9353","v":{"$error":"#N/A"}},{"$f":"'Afleiður og skortstöð - skuldir'!M31","v":0},".M.SAFVAER.XX.ERA.XXX.XXXX.SX.XXX.DKK.IS.N.M"]
[{"$f":"\"INN.\"&EIGNIR!$B$3&C9354","v":{"$error":"#N/A"}},{"$f":"'Afleiður og skortstöð - skuldir'!M32","v":0},".M.SAFFR$$.XX.$$$.XXX.XXXX.SX.XXX.DKK.IS.N.M"]
[{"$f":"\"INN.\"&EIGNIR!$B$3&C9355","v":{"$error":"#N/A"}},{"$f":"'Afleiður og skortstöð - skuldir'!M33","v":0},".M.SAFFRIN.XX.ATV.XXX.XXXX.SX.XXX.DKK.IS.N.M"]
[{"$f":"\"INN.\"&EIGNIR!$B$3&C9356","v":{"$error":"#N/A"}},{"$f":"'Afleiður og skortstöð - skuldir'!M34","v":0},".M.SAFFRIN.XX.FJA.XXX.XXXX.SX.XXX.DKK.IS.N.M"]
[{"$f":"\"INN.\"&EIGNIR!$B$3&C9357","v":{"$error":"#N/A"}},{"$f":"'Afleiður og skortstöð - skuldir'!M35","v":0},".M.SAFFRIN.XX.INN.XXX.XXXX.SX.XXX.DKK.IS.N.M"]
[{"$f":"\"INN.\"&EIGNIR!$B$3&C9358","v":{"$error":"#N/A"}},{"$f":"'Afleiður og skortstöð - skuldir'!M36","v":0},".M.SAFFRIN.XX.SLI.XXX.XXXX.SX.XXX.DKK.IS.N.M"]
[{"$f":"\"INN.\"&EIGNIR!$B$3&C9359","v":{"$error":"#N/A"}},{"$f":"'Afleiður og skortstöð - skuldir'!M37","v":0},".M.SAFFRIN.XX.PEN.XXX.XXXX.SX.XXX.DKK.IS.N.M"]
[{"$f":"\"INN.\"&EIGNIR!$B$3&C9360","v":{"$error":"#N/A"}},{"$f":"'Afleiður og skortstöð - skuldir'!M38","v":0},".M.SAFFRIN.XX.SJO.XXX.XXXX.SX.XXX.DKK.IS.N.M"]
[{"$f":"\"INN.\"&EIGNIR!$B$3&C9361","v":{"$error":"#N/A"}},{"$f":"'Afleiður og skortstöð - skuldir'!M39","v":0},".M.SAFFRIN.XX.YFT.XXX.XXXX.SX.XXX.DKK.IS.N.M"]
[{"$f":"\"INN.\"&EIGNIR!$B$3&C9362","v":{"$error":"#N/A"}},{"$f":"'Afleiður og skortstöð - skuldir'!M40","v":0},".M.SAFFRIN.XX.SLY.XXX.XXXX.SX.XXX.DKK.IS.N.M"]
[{"$f":"\"INN.\"&EIGNIR!$B$3&C9363","v":{"$error":"#N/A"}},{"$f":"'Afleiður og skortstöð - skuldir'!M41","v":0},".M.SAFFRIN.XX.FHL.XXX.XXXX.SX.XXX.DKK.IS.N.M"]
[{"$f":"\"INN.\"&EIGNIR!$B$3&C9364","v":{"$error":"#N/A"}},{"$f":"'Afleiður og skortstöð - skuldir'!M42","v":0},".M.SAFFRIN.XX.INF.XXX.XXXX.SX.XXX.DKK.IS.N.M"]
[{"$f":"\"INN.\"&EIGNIR!$B$3&C9365","v":{"$error":"#N/A"}},{"$f":"'Afleiður og skortstöð - skuldir'!M43","v":0},".M.SAFFRIN.XX.TRY.XXX.XXXX.SX.XXX.DKK.IS.N.M"]
[{"$f":"\"INN.\"&EIGNIR!$B$3&C9366","v":{"$error":"#N/A"}},{"$f":"'Afleiður og skortstöð - skuldir'!M44","v":0},".M.SAFFRIN.XX.LIF.XXX.XXXX.SX.XXX.DKK.IS.N.M"]
[{"$f":"\"INN.\"&EIGNIR!$B$3&C9367","v":{"$error":"#N/A"}},{"$f":"'Afleiður og skortstöð - skuldir'!M45","v":0},".M.SAFFRIN.XX.OPI.XXX.XXXX.SX.XXX.DKK.IS.N.M"]
[{"$f":"\"INN.\"&EIGNIR!$B$3&C9368","v":{"$error":"#N/A"}},{"$f":"'Afleiður og skortstöð - skuldir'!M46","v":0},".M.SAFFRIN.XX.RSS.XXX.XXXX.SX.XXX.DKK.IS.N.M"]
[{"$f":"\"INN.\"&EIGNIR!$B$3&C9369","v":{"$error":"#N/A"}},{"$f":"'Afleiður og skortstöð - skuldir'!M47","v":0},".M.SAFFRIN.XX.BAJ.XXX.XXXX.SX.XXX.DKK.IS.N.M"]
[{"$f":"\"INN.\"&EIGNIR!$B$3&C9370","v":{"$error":"#N/A"}},{"$f":"'Afleiður og skortstöð - skuldir'!M48","v":0},".M.SAFFRIN.XX.EIN.XXX.XXXX.SX.XXX.DKK.IS.N.M"]
[{"$f":"\"INN.\"&EIGNIR!$B$3&C9371","v":{"$error":"#N/A"}},{"$f":"'Afleiður og skortstöð - skuldir'!M49","v":0},".M.SAFFRIN.XX.NPH.XXX.XXXX.SX.XXX.DKK.IS.N.M"]
[{"$f":"\"INN.\"&EIGNIR!$B$3&C9372","v":{"$error":"#N/A"}},{"$f":"'Afleiður og skortstöð - skuldir'!M50","v":0},".M.SAFFRER.XX.ERL.XXX.XXXX.SX.XXX.DKK.IS.N.M"]
[{"$f":"\"INN.\"&EIGNIR!$B$3&C9373","v":{"$error":"#N/A"}},{"$f":"'Afleiður og skortstöð - skuldir'!M51","v":0},".M.SAFFRER.XX.ERS.XXX.XXXX.SX.XXX.DKK.IS.N.M"]
[{"$f":"\"INN.\"&EIGNIR!$B$3&C9374","v":{"$error":"#N/A"}},{"$f":"'Afleiður og skortstöð - skuldir'!M52","v":0},".M.SAFFRER.XX.ERI.XXX.XXXX.SX.XXX.DKK.IS.N.M"]
[{"$f":"\"INN.\"&EIGNIR!$B$3&C9375","v":{"$error":"#N/A"}},{"$f":"'Afleiður og skortstöð - skuldir'!M53","v":0},".M.SAFFRER.XX.ERP.XXX.XXXX.SX.XXX.DKK.IS.N.M"]
[{"$f":"\"INN.\"&EIGNIR!$B$3&C9376","v":{"$error":"#N/A"}},{"$f":"'Afleiður og skortstöð - skuldir'!M54","v":0},".M.SAFFRER.XX.ERV.XXX.XXXX.SX.XXX.DKK.IS.N.M"]
[{"$f":"\"INN.\"&EIGNIR!$B$3&C9377","v":{"$error":"#N/A"}},{"$f":"'Afleiður og skortstöð - skuldir'!M55","v":0},".M.SAFFRER.XX.ERF.XXX.XXXX.SX.XXX.DKK.IS.N.M"]
[{"$f":"\"INN.\"&EIGNIR!$B$3&C9378","v":{"$error":"#N/A"}},{"$f":"'Afleiður og skortstöð - skuldir'!M56","v":0},".M.SAFFRER.XX.ERO.XXX.XXXX.SX.XXX.DKK.IS.N.M"]
[{"$f":"\"INN.\"&EIGNIR!$B$3&C9379","v":{"$error":"#N/A"}},{"$f":"'Afleiður og skortstöð - skuldir'!M57","v":0},".M.SAFFRER.XX.ERA.XXX.XXXX.SX.XXX.DKK.IS.N.M"]
[{"$f":"\"INN.\"&EIGNIR!$B$3&C9380","v":{"$error":"#N/A"}},{"$f":"'Afleiður og skortstöð - skuldir'!M58","v":0},".M.SAFSK$$.XX.$$$.XXX.XXXX.SX.XXX.DKK.IS.N.M"]
[{"$f":"\"INN.\"&EIGNIR!$B$3&C9381","v":{"$error":"#N/A"}},{"$f":"'Afleiður og skortstöð - skuldir'!M59","v":0},".M.SAFSKIN.XX.ATV.XXX.XXXX.SX.XXX.DKK.IS.N.M"]
[{"$f":"\"INN.\"&EIGNIR!$B$3&C9382","v":{"$error":"#N/A"}},{"$f":"'Afleiður og skortstöð - skuldir'!M60","v":0},".M.SAFSKIN.XX.FJA.XXX.XXXX.SX.XXX.DKK.IS.N.M"]
[{"$f":"\"INN.\"&EIGNIR!$B$3&C9383","v":{"$error":"#N/A"}},{"$f":"'Afleiður og skortstöð - skuldir'!M61","v":0},".M.SAFSKIN.XX.INN.XXX.XXXX.SX.XXX.DKK.IS.N.M"]
[{"$f":"\"INN.\"&EIGNIR!$B$3&C9384","v":{"$error":"#N/A"}},{"$f":"'Afleiður og skortstöð - skuldir'!M62","v":0},".M.SAFSKIN.XX.SLI.XXX.XXXX.SX.XXX.DKK.IS.N.M"]
[{"$f":"\"INN.\"&EIGNIR!$B$3&C9385","v":{"$error":"#N/A"}},{"$f":"'Afleiður og skortstöð - skuldir'!M63","v":0},".M.SAFSKIN.XX.PEN.XXX.XXXX.SX.XXX.DKK.IS.N.M"]
[{"$f":"\"INN.\"&EIGNIR!$B$3&C9386","v":{"$error":"#N/A"}},{"$f":"'Afleiður og skortstöð - skuldir'!M64","v":0},".M.SAFSKIN.XX.SJO.XXX.XXXX.SX.XXX.DKK.IS.N.M"]
[{"$f":"\"INN.\"&EIGNIR!$B$3&C9387","v":{"$error":"#N/A"}},{"$f":"'Afleiður og skortstöð - skuldir'!M65","v":0},".M.SAFSKIN.XX.YFT.XXX.XXXX.SX.XXX.DKK.IS.N.M"]
[{"$f":"\"INN.\"&EIGNIR!$B$3&C9388","v":{"$error":"#N/A"}},{"$f":"'Afleiður og skortstöð - skuldir'!M66","v":0},".M.SAFSKIN.XX.SLY.XXX.XXXX.SX.XXX.DKK.IS.N.M"]
[{"$f":"\"INN.\"&EIGNIR!$B$3&C9389","v":{"$error":"#N/A"}},{"$f":"'Afleiður og skortstöð - skuldir'!M67","v":0},".M.SAFSKIN.XX.FHL.XXX.XXXX.SX.XXX.DKK.IS.N.M"]
[{"$f":"\"INN.\"&EIGNIR!$B$3&C9390","v":{"$error":"#N/A"}},{"$f":"'Afleiður og skortstöð - skuldir'!M68","v":0},".M.SAFSKIN.XX.INF.XXX.XXXX.SX.XXX.DKK.IS.N.M"]
[{"$f":"\"INN.\"&EIGNIR!$B$3&C9391","v":{"$error":"#N/A"}},{"$f":"'Afleiður og skortstöð - skuldir'!M69","v":0},".M.SAFSKIN.XX.TRY.XXX.XXXX.SX.XXX.DKK.IS.N.M"]
[{"$f":"\"INN.\"&EIGNIR!$B$3&C9392","v":{"$error":"#N/A"}},{"$f":"'Afleiður og skortstöð - skuldir'!M70","v":0},".M.SAFSKIN.XX.LIF.XXX.XXXX.SX.XXX.DKK.IS.N.M"]
[{"$f":"\"INN.\"&EIGNIR!$B$3&C9393","v":{"$error":"#N/A"}},{"$f":"'Afleiður og skortstöð - skuldir'!M71","v":0},".M.SAFSKIN.XX.OPI.XXX.XXXX.SX.XXX.DKK.IS.N.M"]
[{"$f":"\"INN.\"&EIGNIR!$B$3&C9394","v":{"$error":"#N/A"}},{"$f":"'Afleiður og skortstöð - skuldir'!M72","v":0},".M.SAFSKIN.XX.RSS.XXX.XXXX.SX.XXX.DKK.IS.N.M"]
[{"$f":"\"INN.\"&EIGNIR!$B$3&C9395","v":{"$error":"#N/A"}},{"$f":"'Afleiður og skortstöð - skuldir'!M73","v":0},".M.SAFSKIN.XX.BAJ.XXX.XXXX.SX.XXX.DKK.IS.N.M"]
[{"$f":"\"INN.\"&EIGNIR!$B$3&C9396","v":{"$error":"#N/A"}},{"$f":"'Afleiður og skortstöð - skuldir'!M74","v":0},".M.SAFSKIN.XX.EIN.XXX.XXXX.SX.XXX.DKK.IS.N.M"]
[{"$f":"\"INN.\"&EIGNIR!$B$3&C9397","v":{"$error":"#N/A"}},{"$f":"'Afleiður og skortstöð - skuldir'!M75","v":0},".M.SAFSKIN.XX.NPH.XXX.XXXX.SX.XXX.DKK.IS.N.M"]
[{"$f":"\"INN.\"&EIGNIR!$B$3&C9398","v":{"$error":"#N/A"}},{"$f":"'Afleiður og skortstöð - skuldir'!M76","v":0},".M.SAFSKER.XX.ERL.XXX.XXXX.SX.XXX.DKK.IS.N.M"]
[{"$f":"\"INN.\"&EIGNIR!$B$3&C9399","v":{"$error":"#N/A"}},{"$f":"'Afleiður og skortstöð - skuldir'!M77","v":0},".M.SAFSKER.XX.ERS.XXX.XXXX.SX.XXX.DKK.IS.N.M"]
[{"$f":"\"INN.\"&EIGNIR!$B$3&C9400","v":{"$error":"#N/A"}},{"$f":"'Afleiður og skortstöð - skuldir'!M78","v":0},".M.SAFSKER.XX.ERI.XXX.XXXX.SX.XXX.DKK.IS.N.M"]
[{"$f":"\"INN.\"&EIGNIR!$B$3&C9401","v":{"$error":"#N/A"}},{"$f":"'Afleiður og skortstöð - skuldir'!M79","v":0},".M.SAFSKER.XX.ERP.XXX.XXXX.SX.XXX.DKK.IS.N.M"]
[{"$f":"\"INN.\"&EIGNIR!$B$3&C9402","v":{"$error":"#N/A"}},{"$f":"'Afleiður og skortstöð - skuldir'!M80","v":0},".M.SAFSKER.XX.ERV.XXX.XXXX.SX.XXX.DKK.IS.N.M"]
[{"$f":"\"INN.\"&EIGNIR!$B$3&C9403","v":{"$error":"#N/A"}},{"$f":"'Afleiður og skortstöð - skuldir'!M81","v":0},".M.SAFSKER.XX.ERF.XXX.XXXX.SX.XXX.DKK.IS.N.M"]
[{"$f":"\"INN.\"&EIGNIR!$B$3&C9404","v":{"$error":"#N/A"}},{"$f":"'Afleiður og skortstöð - skuldir'!M82","v":0},".M.SAFSKER.XX.ERO.XXX.XXXX.SX.XXX.DKK.IS.N.M"]
[{"$f":"\"INN.\"&EIGNIR!$B$3&C9405","v":{"$error":"#N/A"}},{"$f":"'Afleiður og skortstöð - skuldir'!M83","v":0},".M.SAFSKER.XX.ERA.XXX.XXXX.SX.XXX.DKK.IS.N.M"]
[{"$f":"\"INN.\"&EIGNIR!$B$3&C9406","v":{"$error":"#N/A"}},{"$f":"'Afleiður og skortstöð - skuldir'!M84","v":0},".M.SAFSS$$.XX.$$$.XXX.XXXX.SX.XXX.DKK.IS.N.M"]
[{"$f":"\"INN.\"&EIGNIR!$B$3&C9407","v":{"$error":"#N/A"}},{"$f":"'Afleiður og skortstöð - skuldir'!M85","v":0},".M.SAFSSIN.XX.ATV.XXX.XXXX.SX.XXX.DKK.IS.N.M"]
[{"$f":"\"INN.\"&EIGNIR!$B$3&C9408","v":{"$error":"#N/A"}},{"$f":"'Afleiður og skortstöð - skuldir'!M86","v":0},".M.SAFSSIN.XX.FJA.XXX.XXXX.SX.XXX.DKK.IS.N.M"]
[{"$f":"\"INN.\"&EIGNIR!$B$3&C9409","v":{"$error":"#N/A"}},{"$f":"'Afleiður og skortstöð - skuldir'!M87","v":0},".M.SAFSSIN.XX.INN.XXX.XXXX.SX.XXX.DKK.IS.N.M"]
[{"$f":"\"INN.\"&EIGNIR!$B$3&C9410","v":{"$error":"#N/A"}},{"$f":"'Afleiður og skortstöð - skuldir'!M88","v":0},".M.SAFSSIN.XX.SLI.XXX.XXXX.SX.XXX.DKK.IS.N.M"]
[{"$f":"\"INN.\"&EIGNIR!$B$3&C9411","v":{"$error":"#N/A"}},{"$f":"'Afleiður og skortstöð - skuldir'!M89","v":0},".M.SAFSSIN.XX.PEN.XXX.XXXX.SX.XXX.DKK.IS.N.M"]
[{"$f":"\"INN.\"&EIGNIR!$B$3&C9412","v":{"$error":"#N/A"}},{"$f":"'Afleiður og skortstöð - skuldir'!M90","v":0},".M.SAFSSIN.XX.SJO.XXX.XXXX.SX.XXX.DKK.IS.N.M"]
[{"$f":"\"INN.\"&EIGNIR!$B$3&C9413","v":{"$error":"#N/A"}},{"$f":"'Afleiður og skortstöð - skuldir'!M91","v":0},".M.SAFSSIN.XX.YFT.XXX.XXXX.SX.XXX.DKK.IS.N.M"]
[{"$f":"\"INN.\"&EIGNIR!$B$3&C9414","v":{"$error":"#N/A"}},{"$f":"'Afleiður og skortstöð - skuldir'!M92","v":0},".M.SAFSSIN.XX.SLY.XXX.XXXX.SX.XXX.DKK.IS.N.M"]
[{"$f":"\"INN.\"&EIGNIR!$B$3&C9415","v":{"$error":"#N/A"}},{"$f":"'Afleiður og skortstöð - skuldir'!M93","v":0},".M.SAFSSIN.XX.FHL.XXX.XXXX.SX.XXX.DKK.IS.N.M"]
[{"$f":"\"INN.\"&EIGNIR!$B$3&C9416","v":{"$error":"#N/A"}},{"$f":"'Afleiður og skortstöð - skuldir'!M94","v":0},".M.SAFSSIN.XX.INF.XXX.XXXX.SX.XXX.DKK.IS.N.M"]
[{"$f":"\"INN.\"&EIGNIR!$B$3&C9417","v":{"$error":"#N/A"}},{"$f":"'Afleiður og skortstöð - skuldir'!M95","v":0},".M.SAFSSIN.XX.TRY.XXX.XXXX.SX.XXX.DKK.IS.N.M"]
[{"$f":"\"INN.\"&EIGNIR!$B$3&C9418","v":{"$error":"#N/A"}},{"$f":"'Afleiður og skortstöð - skuldir'!M96","v":0},".M.SAFSSIN.XX.LIF.XXX.XXXX.SX.XXX.DKK.IS.N.M"]
[{"$f":"\"INN.\"&EIGNIR!$B$3&C9419","v":{"$error":"#N/A"}},{"$f":"'Afleiður og skortstöð - skuldir'!M97","v":0},".M.SAFSSIN.XX.OPI.XXX.XXXX.SX.XXX.DKK.IS.N.M"]
[{"$f":"\"INN.\"&EIGNIR!$B$3&C9420","v":{"$error":"#N/A"}},{"$f":"'Afleiður og skortstöð - skuldir'!M98","v":0},".M.SAFSSIN.XX.RSS.XXX.XXXX.SX.XXX.DKK.IS.N.M"]
[{"$f":"\"INN.\"&EIGNIR!$B$3&C9421","v":{"$error":"#N/A"}},{"$f":"'Afleiður og skortstöð - skuldir'!M99","v":0},".M.SAFSSIN.XX.BAJ.XXX.XXXX.SX.XXX.DKK.IS.N.M"]
[{"$f":"\"INN.\"&EIGNIR!$B$3&C9422","v":{"$error":"#N/A"}},{"$f":"'Afleiður og skortstöð - skuldir'!M100","v":0},".M.SAFSSIN.XX.EIN.XXX.XXXX.SX.XXX.DKK.IS.N.M"]
[{"$f":"\"INN.\"&EIGNIR!$B$3&C9423","v":{"$error":"#N/A"}},{"$f":"'Afleiður og skortstöð - skuldir'!M101","v":0},".M.SAFSSIN.XX.NPH.XXX.XXXX.SX.XXX.DKK.IS.N.M"]
[{"$f":"\"INN.\"&EIGNIR!$B$3&C9424","v":{"$error":"#N/A"}},{"$f":"'Afleiður og skortstöð - skuldir'!M102","v":0},".M.SAFSSER.XX.ERL.XXX.XXXX.SX.XXX.DKK.IS.N.M"]
[{"$f":"\"INN.\"&EIGNIR!$B$3&C9425","v":{"$error":"#N/A"}},{"$f":"'Afleiður og skortstöð - skuldir'!M103","v":0},".M.SAFSSER.XX.ERS.XXX.XXXX.SX.XXX.DKK.IS.N.M"]
[{"$f":"\"INN.\"&EIGNIR!$B$3&C9426","v":{"$error":"#N/A"}},{"$f":"'Afleiður og skortstöð - skuldir'!M104","v":0},".M.SAFSSER.XX.ERI.XXX.XXXX.SX.XXX.DKK.IS.N.M"]
[{"$f":"\"INN.\"&EIGNIR!$B$3&C9427","v":{"$error":"#N/A"}},{"$f":"'Afleiður og skortstöð - skuldir'!M105","v":0},".M.SAFSSER.XX.ERP.XXX.XXXX.SX.XXX.DKK.IS.N.M"]
[{"$f":"\"INN.\"&EIGNIR!$B$3&C9428","v":{"$error":"#N/A"}},{"$f":"'Afleiður og skortstöð - skuldir'!M106","v":0},".M.SAFSSER.XX.ERV.XXX.XXXX.SX.XXX.DKK.IS.N.M"]
[{"$f":"\"INN.\"&EIGNIR!$B$3&C9429","v":{"$error":"#N/A"}},{"$f":"'Afleiður og skortstöð - skuldir'!M107","v":0},".M.SAFSSER.XX.ERF.XXX.XXXX.SX.XXX.DKK.IS.N.M"]
[{"$f":"\"INN.\"&EIGNIR!$B$3&C9430","v":{"$error":"#N/A"}},{"$f":"'Afleiður og skortstöð - skuldir'!M108","v":0},".M.SAFSSER.XX.ERO.XXX.XXXX.SX.XXX.DKK.IS.N.M"]
[{"$f":"\"INN.\"&EIGNIR!$B$3&C9431","v":{"$error":"#N/A"}},{"$f":"'Afleiður og skortstöð - skuldir'!M109","v":0},".M.SAFSSER.XX.ERA.XXX.XXXX.SX.XXX.DKK.IS.N.M"]
[{"$f":"\"INN.\"&EIGNIR!$B$3&C9432","v":{"$error":"#N/A"}},{"$f":"'Afleiður og skortstöð - skuldir'!M110","v":0},".M.SAFSSEH.XX.ERL.XXX.XXXX.SX.XXX.DKK.IS.N.M"]
[{"$f":"\"INN.\"&EIGNIR!$B$3&C9433","v":{"$error":"#N/A"}},{"$f":"'Afleiður og skortstöð - skuldir'!M111","v":0},".M.SAFSSES.XX.ERL.XXX.XXXX.SX.SKT.DKK.IS.N.M"]
[{"$f":"\"INN.\"&EIGNIR!$B$3&C9434","v":{"$error":"#N/A"}},{"$f":"'Afleiður og skortstöð - skuldir'!M112","v":0},".M.SAFSSES.XX.ERL.XXX.XXXX.SX.LAT.DKK.IS.N.M"]
[{"$f":"\"INN.\"&EIGNIR!$B$3&C9435","v":{"$error":"#N/A"}},{"$f":"'Afleiður og skortstöð - skuldir'!N5","v":0},".M.SAF$$$$.XX.$$$.XXX.XXXX.SX.XXX.NOK.IS.N.M","//Sundurliðun afleiður NOK"]
[{"$f":"\"INN.\"&EIGNIR!$B$3&C9436","v":{"$error":"#N/A"}},{"$f":"'Afleiður og skortstöð - skuldir'!N6","v":0},".M.SAFVA$$.XX.$$$.XXX.XXXX.SX.XXX.NOK.IS.N.M"]
[{"$f":"\"INN.\"&EIGNIR!$B$3&C9437","v":{"$error":"#N/A"}},{"$f":"'Afleiður og skortstöð - skuldir'!N7","v":0},".M.SAFVAIN.XX.ATV.XXX.XXXX.SX.XXX.NOK.IS.N.M"]
[{"$f":"\"INN.\"&EIGNIR!$B$3&C9438","v":{"$error":"#N/A"}},{"$f":"'Afleiður og skortstöð - skuldir'!N8","v":0},".M.SAFVAIN.XX.FJA.XXX.XXXX.SX.XXX.NOK.IS.N.M"]
[{"$f":"\"INN.\"&EIGNIR!$B$3&C9439","v":{"$error":"#N/A"}},{"$f":"'Afleiður og skortstöð - skuldir'!N9","v":0},".M.SAFVAIN.XX.INN.XXX.XXXX.SX.XXX.NOK.IS.N.M"]
[{"$f":"\"INN.\"&EIGNIR!$B$3&C9440","v":{"$error":"#N/A"}},{"$f":"'Afleiður og skortstöð - skuldir'!N10","v":0},".M.SAFVAIN.XX.SLI.XXX.XXXX.SX.XXX.NOK.IS.N.M"]
[{"$f":"\"INN.\"&EIGNIR!$B$3&C9441","v":{"$error":"#N/A"}},{"$f":"'Afleiður og skortstöð - skuldir'!N11","v":0},".M.SAFVAIN.XX.PEN.XXX.XXXX.SX.XXX.NOK.IS.N.M"]
[{"$f":"\"INN.\"&EIGNIR!$B$3&C9442","v":{"$error":"#N/A"}},{"$f":"'Afleiður og skortstöð - skuldir'!N12","v":0},".M.SAFVAIN.XX.SJO.XXX.XXXX.SX.XXX.NOK.IS.N.M"]
[{"$f":"\"INN.\"&EIGNIR!$B$3&C9443","v":{"$error":"#N/A"}},{"$f":"'Afleiður og skortstöð - skuldir'!N13","v":0},".M.SAFVAIN.XX.YFT.XXX.XXXX.SX.XXX.NOK.IS.N.M"]
[{"$f":"\"INN.\"&EIGNIR!$B$3&C9444","v":{"$error":"#N/A"}},{"$f":"'Afleiður og skortstöð - skuldir'!N14","v":0},".M.SAFVAIN.XX.SLY.XXX.XXXX.SX.XXX.NOK.IS.N.M"]
[{"$f":"\"INN.\"&EIGNIR!$B$3&C9445","v":{"$error":"#N/A"}},{"$f":"'Afleiður og skortstöð - skuldir'!N15","v":0},".M.SAFVAIN.XX.FHL.XXX.XXXX.SX.XXX.NOK.IS.N.M"]
[{"$f":"\"INN.\"&EIGNIR!$B$3&C9446","v":{"$error":"#N/A"}},{"$f":"'Afleiður og skortstöð - skuldir'!N16","v":0},".M.SAFVAIN.XX.INF.XXX.XXXX.SX.XXX.NOK.IS.N.M"]
[{"$f":"\"INN.\"&EIGNIR!$B$3&C9447","v":{"$error":"#N/A"}},{"$f":"'Afleiður og skortstöð - skuldir'!N17","v":0},".M.SAFVAIN.XX.TRY.XXX.XXXX.SX.XXX.NOK.IS.N.M"]
[{"$f":"\"INN.\"&EIGNIR!$B$3&C9448","v":{"$error":"#N/A"}},{"$f":"'Afleiður og skortstöð - skuldir'!N18","v":0},".M.SAFVAIN.XX.LIF.XXX.XXXX.SX.XXX.NOK.IS.N.M"]
[{"$f":"\"INN.\"&EIGNIR!$B$3&C9449","v":{"$error":"#N/A"}},{"$f":"'Afleiður og skortstöð - skuldir'!N19","v":0},".M.SAFVAIN.XX.OPI.XXX.XXXX.SX.XXX.NOK.IS.N.M"]
[{"$f":"\"INN.\"&EIGNIR!$B$3&C9450","v":{"$error":"#N/A"}},{"$f":"'Afleiður og skortstöð - skuldir'!N20","v":0},".M.SAFVAIN.XX.RSS.XXX.XXXX.SX.XXX.NOK.IS.N.M"]
[{"$f":"\"INN.\"&EIGNIR!$B$3&C9451","v":{"$error":"#N/A"}},{"$f":"'Afleiður og skortstöð - skuldir'!N21","v":0},".M.SAFVAIN.XX.BAJ.XXX.XXXX.SX.XXX.NOK.IS.N.M"]
[{"$f":"\"INN.\"&EIGNIR!$B$3&C9452","v":{"$error":"#N/A"}},{"$f":"'Afleiður og skortstöð - skuldir'!N22","v":0},".M.SAFVAIN.XX.EIN.XXX.XXXX.SX.XXX.NOK.IS.N.M"]
[{"$f":"\"INN.\"&EIGNIR!$B$3&C9453","v":{"$error":"#N/A"}},{"$f":"'Afleiður og skortstöð - skuldir'!N23","v":0},".M.SAFVAIN.XX.NPH.XXX.XXXX.SX.XXX.NOK.IS.N.M"]
[{"$f":"\"INN.\"&EIGNIR!$B$3&C9454","v":{"$error":"#N/A"}},{"$f":"'Afleiður og skortstöð - skuldir'!N24","v":0},".M.SAFVAER.XX.ERL.XXX.XXXX.SX.XXX.NOK.IS.N.M"]
[{"$f":"\"INN.\"&EIGNIR!$B$3&C9455","v":{"$error":"#N/A"}},{"$f":"'Afleiður og skortstöð - skuldir'!N25","v":0},".M.SAFVAER.XX.ERS.XXX.XXXX.SX.XXX.NOK.IS.N.M"]
[{"$f":"\"INN.\"&EIGNIR!$B$3&C9456","v":{"$error":"#N/A"}},{"$f":"'Afleiður og skortstöð - skuldir'!N26","v":0},".M.SAFVAER.XX.ERI.XXX.XXXX.SX.XXX.NOK.IS.N.M"]
[{"$f":"\"INN.\"&EIGNIR!$B$3&C9457","v":{"$error":"#N/A"}},{"$f":"'Afleiður og skortstöð - skuldir'!N27","v":0},".M.SAFVAER.XX.ERP.XXX.XXXX.SX.XXX.NOK.IS.N.M"]
[{"$f":"\"INN.\"&EIGNIR!$B$3&C9458","v":{"$error":"#N/A"}},{"$f":"'Afleiður og skortstöð - skuldir'!N28","v":0},".M.SAFVAER.XX.ERV.XXX.XXXX.SX.XXX.NOK.IS.N.M"]
[{"$f":"\"INN.\"&EIGNIR!$B$3&C9459","v":{"$error":"#N/A"}},{"$f":"'Afleiður og skortstöð - skuldir'!N29","v":0},".M.SAFVAER.XX.ERF.XXX.XXXX.SX.XXX.NOK.IS.N.M"]
[{"$f":"\"INN.\"&EIGNIR!$B$3&C9460","v":{"$error":"#N/A"}},{"$f":"'Afleiður og skortstöð - skuldir'!N30","v":0},".M.SAFVAER.XX.ERO.XXX.XXXX.SX.XXX.NOK.IS.N.M"]
[{"$f":"\"INN.\"&EIGNIR!$B$3&C9461","v":{"$error":"#N/A"}},{"$f":"'Afleiður og skortstöð - skuldir'!N31","v":0},".M.SAFVAER.XX.ERA.XXX.XXXX.SX.XXX.NOK.IS.N.M"]
[{"$f":"\"INN.\"&EIGNIR!$B$3&C9462","v":{"$error":"#N/A"}},{"$f":"'Afleiður og skortstöð - skuldir'!N32","v":0},".M.SAFFR$$.XX.$$$.XXX.XXXX.SX.XXX.NOK.IS.N.M"]
[{"$f":"\"INN.\"&EIGNIR!$B$3&C9463","v":{"$error":"#N/A"}},{"$f":"'Afleiður og skortstöð - skuldir'!N33","v":0},".M.SAFFRIN.XX.ATV.XXX.XXXX.SX.XXX.NOK.IS.N.M"]
[{"$f":"\"INN.\"&EIGNIR!$B$3&C9464","v":{"$error":"#N/A"}},{"$f":"'Afleiður og skortstöð - skuldir'!N34","v":0},".M.SAFFRIN.XX.FJA.XXX.XXXX.SX.XXX.NOK.IS.N.M"]
[{"$f":"\"INN.\"&EIGNIR!$B$3&C9465","v":{"$error":"#N/A"}},{"$f":"'Afleiður og skortstöð - skuldir'!N35","v":0},".M.SAFFRIN.XX.INN.XXX.XXXX.SX.XXX.NOK.IS.N.M"]
[{"$f":"\"INN.\"&EIGNIR!$B$3&C9466","v":{"$error":"#N/A"}},{"$f":"'Afleiður og skortstöð - skuldir'!N36","v":0},".M.SAFFRIN.XX.SLI.XXX.XXXX.SX.XXX.NOK.IS.N.M"]
[{"$f":"\"INN.\"&EIGNIR!$B$3&C9467","v":{"$error":"#N/A"}},{"$f":"'Afleiður og skortstöð - skuldir'!N37","v":0},".M.SAFFRIN.XX.PEN.XXX.XXXX.SX.XXX.NOK.IS.N.M"]
[{"$f":"\"INN.\"&EIGNIR!$B$3&C9468","v":{"$error":"#N/A"}},{"$f":"'Afleiður og skortstöð - skuldir'!N38","v":0},".M.SAFFRIN.XX.SJO.XXX.XXXX.SX.XXX.NOK.IS.N.M"]
[{"$f":"\"INN.\"&EIGNIR!$B$3&C9469","v":{"$error":"#N/A"}},{"$f":"'Afleiður og skortstöð - skuldir'!N39","v":0},".M.SAFFRIN.XX.YFT.XXX.XXXX.SX.XXX.NOK.IS.N.M"]
[{"$f":"\"INN.\"&EIGNIR!$B$3&C9470","v":{"$error":"#N/A"}},{"$f":"'Afleiður og skortstöð - skuldir'!N40","v":0},".M.SAFFRIN.XX.SLY.XXX.XXXX.SX.XXX.NOK.IS.N.M"]
[{"$f":"\"INN.\"&EIGNIR!$B$3&C9471","v":{"$error":"#N/A"}},{"$f":"'Afleiður og skortstöð - skuldir'!N41","v":0},".M.SAFFRIN.XX.FHL.XXX.XXXX.SX.XXX.NOK.IS.N.M"]
[{"$f":"\"INN.\"&EIGNIR!$B$3&C9472","v":{"$error":"#N/A"}},{"$f":"'Afleiður og skortstöð - skuldir'!N42","v":0},".M.SAFFRIN.XX.INF.XXX.XXXX.SX.XXX.NOK.IS.N.M"]
[{"$f":"\"INN.\"&EIGNIR!$B$3&C9473","v":{"$error":"#N/A"}},{"$f":"'Afleiður og skortstöð - skuldir'!N43","v":0},".M.SAFFRIN.XX.TRY.XXX.XXXX.SX.XXX.NOK.IS.N.M"]
[{"$f":"\"INN.\"&EIGNIR!$B$3&C9474","v":{"$error":"#N/A"}},{"$f":"'Afleiður og skortstöð - skuldir'!N44","v":0},".M.SAFFRIN.XX.LIF.XXX.XXXX.SX.XXX.NOK.IS.N.M"]
[{"$f":"\"INN.\"&EIGNIR!$B$3&C9475","v":{"$error":"#N/A"}},{"$f":"'Afleiður og skortstöð - skuldir'!N45","v":0},".M.SAFFRIN.XX.OPI.XXX.XXXX.SX.XXX.NOK.IS.N.M"]
[{"$f":"\"INN.\"&EIGNIR!$B$3&C9476","v":{"$error":"#N/A"}},{"$f":"'Afleiður og skortstöð - skuldir'!N46","v":0},".M.SAFFRIN.XX.RSS.XXX.XXXX.SX.XXX.NOK.IS.N.M"]
[{"$f":"\"INN.\"&EIGNIR!$B$3&C9477","v":{"$error":"#N/A"}},{"$f":"'Afleiður og skortstöð - skuldir'!N47","v":0},".M.SAFFRIN.XX.BAJ.XXX.XXXX.SX.XXX.NOK.IS.N.M"]
[{"$f":"\"INN.\"&EIGNIR!$B$3&C9478","v":{"$error":"#N/A"}},{"$f":"'Afleiður og skortstöð - skuldir'!N48","v":0},".M.SAFFRIN.XX.EIN.XXX.XXXX.SX.XXX.NOK.IS.N.M"]
[{"$f":"\"INN.\"&EIGNIR!$B$3&C9479","v":{"$error":"#N/A"}},{"$f":"'Afleiður og skortstöð - skuldir'!N49","v":0},".M.SAFFRIN.XX.NPH.XXX.XXXX.SX.XXX.NOK.IS.N.M"]
[{"$f":"\"INN.\"&EIGNIR!$B$3&C9480","v":{"$error":"#N/A"}},{"$f":"'Afleiður og skortstöð - skuldir'!N50","v":0},".M.SAFFRER.XX.ERL.XXX.XXXX.SX.XXX.NOK.IS.N.M"]
[{"$f":"\"INN.\"&EIGNIR!$B$3&C9481","v":{"$error":"#N/A"}},{"$f":"'Afleiður og skortstöð - skuldir'!N51","v":0},".M.SAFFRER.XX.ERS.XXX.XXXX.SX.XXX.NOK.IS.N.M"]
[{"$f":"\"INN.\"&EIGNIR!$B$3&C9482","v":{"$error":"#N/A"}},{"$f":"'Afleiður og skortstöð - skuldir'!N52","v":0},".M.SAFFRER.XX.ERI.XXX.XXXX.SX.XXX.NOK.IS.N.M"]
[{"$f":"\"INN.\"&EIGNIR!$B$3&C9483","v":{"$error":"#N/A"}},{"$f":"'Afleiður og skortstöð - skuldir'!N53","v":0},".M.SAFFRER.XX.ERP.XXX.XXXX.SX.XXX.NOK.IS.N.M"]
[{"$f":"\"INN.\"&EIGNIR!$B$3&C9484","v":{"$error":"#N/A"}},{"$f":"'Afleiður og skortstöð - skuldir'!N54","v":0},".M.SAFFRER.XX.ERV.XXX.XXXX.SX.XXX.NOK.IS.N.M"]
[{"$f":"\"INN.\"&EIGNIR!$B$3&C9485","v":{"$error":"#N/A"}},{"$f":"'Afleiður og skortstöð - skuldir'!N55","v":0},".M.SAFFRER.XX.ERF.XXX.XXXX.SX.XXX.NOK.IS.N.M"]
[{"$f":"\"INN.\"&EIGNIR!$B$3&C9486","v":{"$error":"#N/A"}},{"$f":"'Afleiður og skortstöð - skuldir'!N56","v":0},".M.SAFFRER.XX.ERO.XXX.XXXX.SX.XXX.NOK.IS.N.M"]
[{"$f":"\"INN.\"&EIGNIR!$B$3&C9487","v":{"$error":"#N/A"}},{"$f":"'Afleiður og skortstöð - skuldir'!N57","v":0},".M.SAFFRER.XX.ERA.XXX.XXXX.SX.XXX.NOK.IS.N.M"]
[{"$f":"\"INN.\"&EIGNIR!$B$3&C9488","v":{"$error":"#N/A"}},{"$f":"'Afleiður og skortstöð - skuldir'!N58","v":0},".M.SAFSK$$.XX.$$$.XXX.XXXX.SX.XXX.NOK.IS.N.M"]
[{"$f":"\"INN.\"&EIGNIR!$B$3&C9489","v":{"$error":"#N/A"}},{"$f":"'Afleiður og skortstöð - skuldir'!N59","v":0},".M.SAFSKIN.XX.ATV.XXX.XXXX.SX.XXX.NOK.IS.N.M"]
[{"$f":"\"INN.\"&EIGNIR!$B$3&C9490","v":{"$error":"#N/A"}},{"$f":"'Afleiður og skortstöð - skuldir'!N60","v":0},".M.SAFSKIN.XX.FJA.XXX.XXXX.SX.XXX.NOK.IS.N.M"]
[{"$f":"\"INN.\"&EIGNIR!$B$3&C9491","v":{"$error":"#N/A"}},{"$f":"'Afleiður og skortstöð - skuldir'!N61","v":0},".M.SAFSKIN.XX.INN.XXX.XXXX.SX.XXX.NOK.IS.N.M"]
[{"$f":"\"INN.\"&EIGNIR!$B$3&C9492","v":{"$error":"#N/A"}},{"$f":"'Afleiður og skortstöð - skuldir'!N62","v":0},".M.SAFSKIN.XX.SLI.XXX.XXXX.SX.XXX.NOK.IS.N.M"]
[{"$f":"\"INN.\"&EIGNIR!$B$3&C9493","v":{"$error":"#N/A"}},{"$f":"'Afleiður og skortstöð - skuldir'!N63","v":0},".M.SAFSKIN.XX.PEN.XXX.XXXX.SX.XXX.NOK.IS.N.M"]
[{"$f":"\"INN.\"&EIGNIR!$B$3&C9494","v":{"$error":"#N/A"}},{"$f":"'Afleiður og skortstöð - skuldir'!N64","v":0},".M.SAFSKIN.XX.SJO.XXX.XXXX.SX.XXX.NOK.IS.N.M"]
[{"$f":"\"INN.\"&EIGNIR!$B$3&C9495","v":{"$error":"#N/A"}},{"$f":"'Afleiður og skortstöð - skuldir'!N65","v":0},".M.SAFSKIN.XX.YFT.XXX.XXXX.SX.XXX.NOK.IS.N.M"]
[{"$f":"\"INN.\"&EIGNIR!$B$3&C9496","v":{"$error":"#N/A"}},{"$f":"'Afleiður og skortstöð - skuldir'!N66","v":0},".M.SAFSKIN.XX.SLY.XXX.XXXX.SX.XXX.NOK.IS.N.M"]
[{"$f":"\"INN.\"&EIGNIR!$B$3&C9497","v":{"$error":"#N/A"}},{"$f":"'Afleiður og skortstöð - skuldir'!N67","v":0},".M.SAFSKIN.XX.FHL.XXX.XXXX.SX.XXX.NOK.IS.N.M"]
[{"$f":"\"INN.\"&EIGNIR!$B$3&C9498","v":{"$error":"#N/A"}},{"$f":"'Afleiður og skortstöð - skuldir'!N68","v":0},".M.SAFSKIN.XX.INF.XXX.XXXX.SX.XXX.NOK.IS.N.M"]
[{"$f":"\"INN.\"&EIGNIR!$B$3&C9499","v":{"$error":"#N/A"}},{"$f":"'Afleiður og skortstöð - skuldir'!N69","v":0},".M.SAFSKIN.XX.TRY.XXX.XXXX.SX.XXX.NOK.IS.N.M"]
[{"$f":"\"INN.\"&EIGNIR!$B$3&C9500","v":{"$error":"#N/A"}},{"$f":"'Afleiður og skortstöð - skuldir'!N70","v":0},".M.SAFSKIN.XX.LIF.XXX.XXXX.SX.XXX.NOK.IS.N.M"]
[{"$f":"\"INN.\"&EIGNIR!$B$3&C9501","v":{"$error":"#N/A"}},{"$f":"'Afleiður og skortstöð - skuldir'!N71","v":0},".M.SAFSKIN.XX.OPI.XXX.XXXX.SX.XXX.NOK.IS.N.M"]
[{"$f":"\"INN.\"&EIGNIR!$B$3&C9502","v":{"$error":"#N/A"}},{"$f":"'Afleiður og skortstöð - skuldir'!N72","v":0},".M.SAFSKIN.XX.RSS.XXX.XXXX.SX.XXX.NOK.IS.N.M"]
[{"$f":"\"INN.\"&EIGNIR!$B$3&C9503","v":{"$error":"#N/A"}},{"$f":"'Afleiður og skortstöð - skuldir'!N73","v":0},".M.SAFSKIN.XX.BAJ.XXX.XXXX.SX.XXX.NOK.IS.N.M"]
[{"$f":"\"INN.\"&EIGNIR!$B$3&C9504","v":{"$error":"#N/A"}},{"$f":"'Afleiður og skortstöð - skuldir'!N74","v":0},".M.SAFSKIN.XX.EIN.XXX.XXXX.SX.XXX.NOK.IS.N.M"]
[{"$f":"\"INN.\"&EIGNIR!$B$3&C9505","v":{"$error":"#N/A"}},{"$f":"'Afleiður og skortstöð - skuldir'!N75","v":0},".M.SAFSKIN.XX.NPH.XXX.XXXX.SX.XXX.NOK.IS.N.M"]
[{"$f":"\"INN.\"&EIGNIR!$B$3&C9506","v":{"$error":"#N/A"}},{"$f":"'Afleiður og skortstöð - skuldir'!N76","v":0},".M.SAFSKER.XX.ERL.XXX.XXXX.SX.XXX.NOK.IS.N.M"]
[{"$f":"\"INN.\"&EIGNIR!$B$3&C9507","v":{"$error":"#N/A"}},{"$f":"'Afleiður og skortstöð - skuldir'!N77","v":0},".M.SAFSKER.XX.ERS.XXX.XXXX.SX.XXX.NOK.IS.N.M"]
[{"$f":"\"INN.\"&EIGNIR!$B$3&C9508","v":{"$error":"#N/A"}},{"$f":"'Afleiður og skortstöð - skuldir'!N78","v":0},".M.SAFSKER.XX.ERI.XXX.XXXX.SX.XXX.NOK.IS.N.M"]
[{"$f":"\"INN.\"&EIGNIR!$B$3&C9509","v":{"$error":"#N/A"}},{"$f":"'Afleiður og skortstöð - skuldir'!N79","v":0},".M.SAFSKER.XX.ERP.XXX.XXXX.SX.XXX.NOK.IS.N.M"]
[{"$f":"\"INN.\"&EIGNIR!$B$3&C9510","v":{"$error":"#N/A"}},{"$f":"'Afleiður og skortstöð - skuldir'!N80","v":0},".M.SAFSKER.XX.ERV.XXX.XXXX.SX.XXX.NOK.IS.N.M"]
[{"$f":"\"INN.\"&EIGNIR!$B$3&C9511","v":{"$error":"#N/A"}},{"$f":"'Afleiður og skortstöð - skuldir'!N81","v":0},".M.SAFSKER.XX.ERF.XXX.XXXX.SX.XXX.NOK.IS.N.M"]
[{"$f":"\"INN.\"&EIGNIR!$B$3&C9512","v":{"$error":"#N/A"}},{"$f":"'Afleiður og skortstöð - skuldir'!N82","v":0},".M.SAFSKER.XX.ERO.XXX.XXXX.SX.XXX.NOK.IS.N.M"]
[{"$f":"\"INN.\"&EIGNIR!$B$3&C9513","v":{"$error":"#N/A"}},{"$f":"'Afleiður og skortstöð - skuldir'!N83","v":0},".M.SAFSKER.XX.ERA.XXX.XXXX.SX.XXX.NOK.IS.N.M"]
[{"$f":"\"INN.\"&EIGNIR!$B$3&C9514","v":{"$error":"#N/A"}},{"$f":"'Afleiður og skortstöð - skuldir'!N84","v":0},".M.SAFSS$$.XX.$$$.XXX.XXXX.SX.XXX.NOK.IS.N.M"]
[{"$f":"\"INN.\"&EIGNIR!$B$3&C9515","v":{"$error":"#N/A"}},{"$f":"'Afleiður og skortstöð - skuldir'!N85","v":0},".M.SAFSSIN.XX.ATV.XXX.XXXX.SX.XXX.NOK.IS.N.M"]
[{"$f":"\"INN.\"&EIGNIR!$B$3&C9516","v":{"$error":"#N/A"}},{"$f":"'Afleiður og skortstöð - skuldir'!N86","v":0},".M.SAFSSIN.XX.FJA.XXX.XXXX.SX.XXX.NOK.IS.N.M"]
[{"$f":"\"INN.\"&EIGNIR!$B$3&C9517","v":{"$error":"#N/A"}},{"$f":"'Afleiður og skortstöð - skuldir'!N87","v":0},".M.SAFSSIN.XX.INN.XXX.XXXX.SX.XXX.NOK.IS.N.M"]
[{"$f":"\"INN.\"&EIGNIR!$B$3&C9518","v":{"$error":"#N/A"}},{"$f":"'Afleiður og skortstöð - skuldir'!N88","v":0},".M.SAFSSIN.XX.SLI.XXX.XXXX.SX.XXX.NOK.IS.N.M"]
[{"$f":"\"INN.\"&EIGNIR!$B$3&C9519","v":{"$error":"#N/A"}},{"$f":"'Afleiður og skortstöð - skuldir'!N89","v":0},".M.SAFSSIN.XX.PEN.XXX.XXXX.SX.XXX.NOK.IS.N.M"]
[{"$f":"\"INN.\"&EIGNIR!$B$3&C9520","v":{"$error":"#N/A"}},{"$f":"'Afleiður og skortstöð - skuldir'!N90","v":0},".M.SAFSSIN.XX.SJO.XXX.XXXX.SX.XXX.NOK.IS.N.M"]
[{"$f":"\"INN.\"&EIGNIR!$B$3&C9521","v":{"$error":"#N/A"}},{"$f":"'Afleiður og skortstöð - skuldir'!N91","v":0},".M.SAFSSIN.XX.YFT.XXX.XXXX.SX.XXX.NOK.IS.N.M"]
[{"$f":"\"INN.\"&EIGNIR!$B$3&C9522","v":{"$error":"#N/A"}},{"$f":"'Afleiður og skortstöð - skuldir'!N92","v":0},".M.SAFSSIN.XX.SLY.XXX.XXXX.SX.XXX.NOK.IS.N.M"]
[{"$f":"\"INN.\"&EIGNIR!$B$3&C9523","v":{"$error":"#N/A"}},{"$f":"'Afleiður og skortstöð - skuldir'!N93","v":0},".M.SAFSSIN.XX.FHL.XXX.XXXX.SX.XXX.NOK.IS.N.M"]
[{"$f":"\"INN.\"&EIGNIR!$B$3&C9524","v":{"$error":"#N/A"}},{"$f":"'Afleiður og skortstöð - skuldir'!N94","v":0},".M.SAFSSIN.XX.INF.XXX.XXXX.SX.XXX.NOK.IS.N.M"]
[{"$f":"\"INN.\"&EIGNIR!$B$3&C9525","v":{"$error":"#N/A"}},{"$f":"'Afleiður og skortstöð - skuldir'!N95","v":0},".M.SAFSSIN.XX.TRY.XXX.XXXX.SX.XXX.NOK.IS.N.M"]
[{"$f":"\"INN.\"&EIGNIR!$B$3&C9526","v":{"$error":"#N/A"}},{"$f":"'Afleiður og skortstöð - skuldir'!N96","v":0},".M.SAFSSIN.XX.LIF.XXX.XXXX.SX.XXX.NOK.IS.N.M"]
[{"$f":"\"INN.\"&EIGNIR!$B$3&C9527","v":{"$error":"#N/A"}},{"$f":"'Afleiður og skortstöð - skuldir'!N97","v":0},".M.SAFSSIN.XX.OPI.XXX.XXXX.SX.XXX.NOK.IS.N.M"]
[{"$f":"\"INN.\"&EIGNIR!$B$3&C9528","v":{"$error":"#N/A"}},{"$f":"'Afleiður og skortstöð - skuldir'!N98","v":0},".M.SAFSSIN.XX.RSS.XXX.XXXX.SX.XXX.NOK.IS.N.M"]
[{"$f":"\"INN.\"&EIGNIR!$B$3&C9529","v":{"$error":"#N/A"}},{"$f":"'Afleiður og skortstöð - skuldir'!N99","v":0},".M.SAFSSIN.XX.BAJ.XXX.XXXX.SX.XXX.NOK.IS.N.M"]
[{"$f":"\"INN.\"&EIGNIR!$B$3&C9530","v":{"$error":"#N/A"}},{"$f":"'Afleiður og skortstöð - skuldir'!N100","v":0},".M.SAFSSIN.XX.EIN.XXX.XXXX.SX.XXX.NOK.IS.N.M"]
[{"$f":"\"INN.\"&EIGNIR!$B$3&C9531","v":{"$error":"#N/A"}},{"$f":"'Afleiður og skortstöð - skuldir'!N101","v":0},".M.SAFSSIN.XX.NPH.XXX.XXXX.SX.XXX.NOK.IS.N.M"]
[{"$f":"\"INN.\"&EIGNIR!$B$3&C9532","v":{"$error":"#N/A"}},{"$f":"'Afleiður og skortstöð - skuldir'!N102","v":0},".M.SAFSSER.XX.ERL.XXX.XXXX.SX.XXX.NOK.IS.N.M"]
[{"$f":"\"INN.\"&EIGNIR!$B$3&C9533","v":{"$error":"#N/A"}},{"$f":"'Afleiður og skortstöð - skuldir'!N103","v":0},".M.SAFSSER.XX.ERS.XXX.XXXX.SX.XXX.NOK.IS.N.M"]
[{"$f":"\"INN.\"&EIGNIR!$B$3&C9534","v":{"$error":"#N/A"}},{"$f":"'Afleiður og skortstöð - skuldir'!N104","v":0},".M.SAFSSER.XX.ERI.XXX.XXXX.SX.XXX.NOK.IS.N.M"]
[{"$f":"\"INN.\"&EIGNIR!$B$3&C9535","v":{"$error":"#N/A"}},{"$f":"'Afleiður og skortstöð - skuldir'!N105","v":0},".M.SAFSSER.XX.ERP.XXX.XXXX.SX.XXX.NOK.IS.N.M"]
[{"$f":"\"INN.\"&EIGNIR!$B$3&C9536","v":{"$error":"#N/A"}},{"$f":"'Afleiður og skortstöð - skuldir'!N106","v":0},".M.SAFSSER.XX.ERV.XXX.XXXX.SX.XXX.NOK.IS.N.M"]
[{"$f":"\"INN.\"&EIGNIR!$B$3&C9537","v":{"$error":"#N/A"}},{"$f":"'Afleiður og skortstöð - skuldir'!N107","v":0},".M.SAFSSER.XX.ERF.XXX.XXXX.SX.XXX.NOK.IS.N.M"]
[{"$f":"\"INN.\"&EIGNIR!$B$3&C9538","v":{"$error":"#N/A"}},{"$f":"'Afleiður og skortstöð - skuldir'!N108","v":0},".M.SAFSSER.XX.ERO.XXX.XXXX.SX.XXX.NOK.IS.N.M"]
[{"$f":"\"INN.\"&EIGNIR!$B$3&C9539","v":{"$error":"#N/A"}},{"$f":"'Afleiður og skortstöð - skuldir'!N109","v":0},".M.SAFSSER.XX.ERA.XXX.XXXX.SX.XXX.NOK.IS.N.M"]
[{"$f":"\"INN.\"&EIGNIR!$B$3&C9540","v":{"$error":"#N/A"}},{"$f":"'Afleiður og skortstöð - skuldir'!N110","v":0},".M.SAFSSEH.XX.ERL.XXX.XXXX.SX.XXX.NOK.IS.N.M"]
[{"$f":"\"INN.\"&EIGNIR!$B$3&C9541","v":{"$error":"#N/A"}},{"$f":"'Afleiður og skortstöð - skuldir'!N111","v":0},".M.SAFSSES.XX.ERL.XXX.XXXX.SX.SKT.NOK.IS.N.M"]
[{"$f":"\"INN.\"&EIGNIR!$B$3&C9542","v":{"$error":"#N/A"}},{"$f":"'Afleiður og skortstöð - skuldir'!N112","v":0},".M.SAFSSES.XX.ERL.XXX.XXXX.SX.LAT.NOK.IS.N.M"]
[{"$f":"\"INN.\"&EIGNIR!$B$3&C9543","v":{"$error":"#N/A"}},{"$f":"'Afleiður og skortstöð - skuldir'!O5","v":0},".M.SAF$$$$.XX.$$$.XXX.XXXX.SX.XXX.SEK.IS.N.M","//Sundurliðun afleiður SEK"]
[{"$f":"\"INN.\"&EIGNIR!$B$3&C9544","v":{"$error":"#N/A"}},{"$f":"'Afleiður og skortstöð - skuldir'!O6","v":0},".M.SAFVA$$.XX.$$$.XXX.XXXX.SX.XXX.SEK.IS.N.M"]
[{"$f":"\"INN.\"&EIGNIR!$B$3&C9545","v":{"$error":"#N/A"}},{"$f":"'Afleiður og skortstöð - skuldir'!O7","v":0},".M.SAFVAIN.XX.ATV.XXX.XXXX.SX.XXX.SEK.IS.N.M"]
[{"$f":"\"INN.\"&EIGNIR!$B$3&C9546","v":{"$error":"#N/A"}},{"$f":"'Afleiður og skortstöð - skuldir'!O8","v":0},".M.SAFVAIN.XX.FJA.XXX.XXXX.SX.XXX.SEK.IS.N.M"]
[{"$f":"\"INN.\"&EIGNIR!$B$3&C9547","v":{"$error":"#N/A"}},{"$f":"'Afleiður og skortstöð - skuldir'!O9","v":0},".M.SAFVAIN.XX.INN.XXX.XXXX.SX.XXX.SEK.IS.N.M"]
[{"$f":"\"INN.\"&EIGNIR!$B$3&C9548","v":{"$error":"#N/A"}},{"$f":"'Afleiður og skortstöð - skuldir'!O10","v":0},".M.SAFVAIN.XX.SLI.XXX.XXXX.SX.XXX.SEK.IS.N.M"]
[{"$f":"\"INN.\"&EIGNIR!$B$3&C9549","v":{"$error":"#N/A"}},{"$f":"'Afleiður og skortstöð - skuldir'!O11","v":0},".M.SAFVAIN.XX.PEN.XXX.XXXX.SX.XXX.SEK.IS.N.M"]
[{"$f":"\"INN.\"&EIGNIR!$B$3&C9550","v":{"$error":"#N/A"}},{"$f":"'Afleiður og skortstöð - skuldir'!O12","v":0},".M.SAFVAIN.XX.SJO.XXX.XXXX.SX.XXX.SEK.IS.N.M"]
[{"$f":"\"INN.\"&EIGNIR!$B$3&C9551","v":{"$error":"#N/A"}},{"$f":"'Afleiður og skortstöð - skuldir'!O13","v":0},".M.SAFVAIN.XX.YFT.XXX.XXXX.SX.XXX.SEK.IS.N.M"]
[{"$f":"\"INN.\"&EIGNIR!$B$3&C9552","v":{"$error":"#N/A"}},{"$f":"'Afleiður og skortstöð - skuldir'!O14","v":0},".M.SAFVAIN.XX.SLY.XXX.XXXX.SX.XXX.SEK.IS.N.M"]
[{"$f":"\"INN.\"&EIGNIR!$B$3&C9553","v":{"$error":"#N/A"}},{"$f":"'Afleiður og skortstöð - skuldir'!O15","v":0},".M.SAFVAIN.XX.FHL.XXX.XXXX.SX.XXX.SEK.IS.N.M"]
[{"$f":"\"INN.\"&EIGNIR!$B$3&C9554","v":{"$error":"#N/A"}},{"$f":"'Afleiður og skortstöð - skuldir'!O16","v":0},".M.SAFVAIN.XX.INF.XXX.XXXX.SX.XXX.SEK.IS.N.M"]
[{"$f":"\"INN.\"&EIGNIR!$B$3&C9555","v":{"$error":"#N/A"}},{"$f":"'Afleiður og skortstöð - skuldir'!O17","v":0},".M.SAFVAIN.XX.TRY.XXX.XXXX.SX.XXX.SEK.IS.N.M"]
[{"$f":"\"INN.\"&EIGNIR!$B$3&C9556","v":{"$error":"#N/A"}},{"$f":"'Afleiður og skortstöð - skuldir'!O18","v":0},".M.SAFVAIN.XX.LIF.XXX.XXXX.SX.XXX.SEK.IS.N.M"]
[{"$f":"\"INN.\"&EIGNIR!$B$3&C9557","v":{"$error":"#N/A"}},{"$f":"'Afleiður og skortstöð - skuldir'!O19","v":0},".M.SAFVAIN.XX.OPI.XXX.XXXX.SX.XXX.SEK.IS.N.M"]
[{"$f":"\"INN.\"&EIGNIR!$B$3&C9558","v":{"$error":"#N/A"}},{"$f":"'Afleiður og skortstöð - skuldir'!O20","v":0},".M.SAFVAIN.XX.RSS.XXX.XXXX.SX.XXX.SEK.IS.N.M"]
[{"$f":"\"INN.\"&EIGNIR!$B$3&C9559","v":{"$error":"#N/A"}},{"$f":"'Afleiður og skortstöð - skuldir'!O21","v":0},".M.SAFVAIN.XX.BAJ.XXX.XXXX.SX.XXX.SEK.IS.N.M"]
[{"$f":"\"INN.\"&EIGNIR!$B$3&C9560","v":{"$error":"#N/A"}},{"$f":"'Afleiður og skortstöð - skuldir'!O22","v":0},".M.SAFVAIN.XX.EIN.XXX.XXXX.SX.XXX.SEK.IS.N.M"]
[{"$f":"\"INN.\"&EIGNIR!$B$3&C9561","v":{"$error":"#N/A"}},{"$f":"'Afleiður og skortstöð - skuldir'!O23","v":0},".M.SAFVAIN.XX.NPH.XXX.XXXX.SX.XXX.SEK.IS.N.M"]
[{"$f":"\"INN.\"&EIGNIR!$B$3&C9562","v":{"$error":"#N/A"}},{"$f":"'Afleiður og skortstöð - skuldir'!O24","v":0},".M.SAFVAER.XX.ERL.XXX.XXXX.SX.XXX.SEK.IS.N.M"]
[{"$f":"\"INN.\"&EIGNIR!$B$3&C9563","v":{"$error":"#N/A"}},{"$f":"'Afleiður og skortstöð - skuldir'!O25","v":0},".M.SAFVAER.XX.ERS.XXX.XXXX.SX.XXX.SEK.IS.N.M"]
[{"$f":"\"INN.\"&EIGNIR!$B$3&C9564","v":{"$error":"#N/A"}},{"$f":"'Afleiður og skortstöð - skuldir'!O26","v":0},".M.SAFVAER.XX.ERI.XXX.XXXX.SX.XXX.SEK.IS.N.M"]
[{"$f":"\"INN.\"&EIGNIR!$B$3&C9565","v":{"$error":"#N/A"}},{"$f":"'Afleiður og skortstöð - skuldir'!O27","v":0},".M.SAFVAER.XX.ERP.XXX.XXXX.SX.XXX.SEK.IS.N.M"]
[{"$f":"\"INN.\"&EIGNIR!$B$3&C9566","v":{"$error":"#N/A"}},{"$f":"'Afleiður og skortstöð - skuldir'!O28","v":0},".M.SAFVAER.XX.ERV.XXX.XXXX.SX.XXX.SEK.IS.N.M"]
[{"$f":"\"INN.\"&EIGNIR!$B$3&C9567","v":{"$error":"#N/A"}},{"$f":"'Afleiður og skortstöð - skuldir'!O29","v":0},".M.SAFVAER.XX.ERF.XXX.XXXX.SX.XXX.SEK.IS.N.M"]
[{"$f":"\"INN.\"&EIGNIR!$B$3&C9568","v":{"$error":"#N/A"}},{"$f":"'Afleiður og skortstöð - skuldir'!O30","v":0},".M.SAFVAER.XX.ERO.XXX.XXXX.SX.XXX.SEK.IS.N.M"]
[{"$f":"\"INN.\"&EIGNIR!$B$3&C9569","v":{"$error":"#N/A"}},{"$f":"'Afleiður og skortstöð - skuldir'!O31","v":0},".M.SAFVAER.XX.ERA.XXX.XXXX.SX.XXX.SEK.IS.N.M"]
[{"$f":"\"INN.\"&EIGNIR!$B$3&C9570","v":{"$error":"#N/A"}},{"$f":"'Afleiður og skortstöð - skuldir'!O32","v":0},".M.SAFFR$$.XX.$$$.XXX.XXXX.SX.XXX.SEK.IS.N.M"]
[{"$f":"\"INN.\"&EIGNIR!$B$3&C9571","v":{"$error":"#N/A"}},{"$f":"'Afleiður og skortstöð - skuldir'!O33","v":0},".M.SAFFRIN.XX.ATV.XXX.XXXX.SX.XXX.SEK.IS.N.M"]
[{"$f":"\"INN.\"&EIGNIR!$B$3&C9572","v":{"$error":"#N/A"}},{"$f":"'Afleiður og skortstöð - skuldir'!O34","v":0},".M.SAFFRIN.XX.FJA.XXX.XXXX.SX.XXX.SEK.IS.N.M"]
[{"$f":"\"INN.\"&EIGNIR!$B$3&C9573","v":{"$error":"#N/A"}},{"$f":"'Afleiður og skortstöð - skuldir'!O35","v":0},".M.SAFFRIN.XX.INN.XXX.XXXX.SX.XXX.SEK.IS.N.M"]
[{"$f":"\"INN.\"&EIGNIR!$B$3&C9574","v":{"$error":"#N/A"}},{"$f":"'Afleiður og skortstöð - skuldir'!O36","v":0},".M.SAFFRIN.XX.SLI.XXX.XXXX.SX.XXX.SEK.IS.N.M"]
[{"$f":"\"INN.\"&EIGNIR!$B$3&C9575","v":{"$error":"#N/A"}},{"$f":"'Afleiður og skortstöð - skuldir'!O37","v":0},".M.SAFFRIN.XX.PEN.XXX.XXXX.SX.XXX.SEK.IS.N.M"]
[{"$f":"\"INN.\"&EIGNIR!$B$3&C9576","v":{"$error":"#N/A"}},{"$f":"'Afleiður og skortstöð - skuldir'!O38","v":0},".M.SAFFRIN.XX.SJO.XXX.XXXX.SX.XXX.SEK.IS.N.M"]
[{"$f":"\"INN.\"&EIGNIR!$B$3&C9577","v":{"$error":"#N/A"}},{"$f":"'Afleiður og skortstöð - skuldir'!O39","v":0},".M.SAFFRIN.XX.YFT.XXX.XXXX.SX.XXX.SEK.IS.N.M"]
[{"$f":"\"INN.\"&EIGNIR!$B$3&C9578","v":{"$error":"#N/A"}},{"$f":"'Afleiður og skortstöð - skuldir'!O40","v":0},".M.SAFFRIN.XX.SLY.XXX.XXXX.SX.XXX.SEK.IS.N.M"]
[{"$f":"\"INN.\"&EIGNIR!$B$3&C9579","v":{"$error":"#N/A"}},{"$f":"'Afleiður og skortstöð - skuldir'!O41","v":0},".M.SAFFRIN.XX.FHL.XXX.XXXX.SX.XXX.SEK.IS.N.M"]
[{"$f":"\"INN.\"&EIGNIR!$B$3&C9580","v":{"$error":"#N/A"}},{"$f":"'Afleiður og skortstöð - skuldir'!O42","v":0},".M.SAFFRIN.XX.INF.XXX.XXXX.SX.XXX.SEK.IS.N.M"]
[{"$f":"\"INN.\"&EIGNIR!$B$3&C9581","v":{"$error":"#N/A"}},{"$f":"'Afleiður og skortstöð - skuldir'!O43","v":0},".M.SAFFRIN.XX.TRY.XXX.XXXX.SX.XXX.SEK.IS.N.M"]
[{"$f":"\"INN.\"&EIGNIR!$B$3&C9582","v":{"$error":"#N/A"}},{"$f":"'Afleiður og skortstöð - skuldir'!O44","v":0},".M.SAFFRIN.XX.LIF.XXX.XXXX.SX.XXX.SEK.IS.N.M"]
[{"$f":"\"INN.\"&EIGNIR!$B$3&C9583","v":{"$error":"#N/A"}},{"$f":"'Afleiður og skortstöð - skuldir'!O45","v":0},".M.SAFFRIN.XX.OPI.XXX.XXXX.SX.XXX.SEK.IS.N.M"]
[{"$f":"\"INN.\"&EIGNIR!$B$3&C9584","v":{"$error":"#N/A"}},{"$f":"'Afleiður og skortstöð - skuldir'!O46","v":0},".M.SAFFRIN.XX.RSS.XXX.XXXX.SX.XXX.SEK.IS.N.M"]
[{"$f":"\"INN.\"&EIGNIR!$B$3&C9585","v":{"$error":"#N/A"}},{"$f":"'Afleiður og skortstöð - skuldir'!O47","v":0},".M.SAFFRIN.XX.BAJ.XXX.XXXX.SX.XXX.SEK.IS.N.M"]
[{"$f":"\"INN.\"&EIGNIR!$B$3&C9586","v":{"$error":"#N/A"}},{"$f":"'Afleiður og skortstöð - skuldir'!O48","v":0},".M.SAFFRIN.XX.EIN.XXX.XXXX.SX.XXX.SEK.IS.N.M"]
[{"$f":"\"INN.\"&EIGNIR!$B$3&C9587","v":{"$error":"#N/A"}},{"$f":"'Afleiður og skortstöð - skuldir'!O49","v":0},".M.SAFFRIN.XX.NPH.XXX.XXXX.SX.XXX.SEK.IS.N.M"]
[{"$f":"\"INN.\"&EIGNIR!$B$3&C9588","v":{"$error":"#N/A"}},{"$f":"'Afleiður og skortstöð - skuldir'!O50","v":0},".M.SAFFRER.XX.ERL.XXX.XXXX.SX.XXX.SEK.IS.N.M"]
[{"$f":"\"INN.\"&EIGNIR!$B$3&C9589","v":{"$error":"#N/A"}},{"$f":"'Afleiður og skortstöð - skuldir'!O51","v":0},".M.SAFFRER.XX.ERS.XXX.XXXX.SX.XXX.SEK.IS.N.M"]
[{"$f":"\"INN.\"&EIGNIR!$B$3&C9590","v":{"$error":"#N/A"}},{"$f":"'Afleiður og skortstöð - skuldir'!O52","v":0},".M.SAFFRER.XX.ERI.XXX.XXXX.SX.XXX.SEK.IS.N.M"]
[{"$f":"\"INN.\"&EIGNIR!$B$3&C9591","v":{"$error":"#N/A"}},{"$f":"'Afleiður og skortstöð - skuldir'!O53","v":0},".M.SAFFRER.XX.ERP.XXX.XXXX.SX.XXX.SEK.IS.N.M"]
[{"$f":"\"INN.\"&EIGNIR!$B$3&C9592","v":{"$error":"#N/A"}},{"$f":"'Afleiður og skortstöð - skuldir'!O54","v":0},".M.SAFFRER.XX.ERV.XXX.XXXX.SX.XXX.SEK.IS.N.M"]
[{"$f":"\"INN.\"&EIGNIR!$B$3&C9593","v":{"$error":"#N/A"}},{"$f":"'Afleiður og skortstöð - skuldir'!O55","v":0},".M.SAFFRER.XX.ERF.XXX.XXXX.SX.XXX.SEK.IS.N.M"]
[{"$f":"\"INN.\"&EIGNIR!$B$3&C9594","v":{"$error":"#N/A"}},{"$f":"'Afleiður og skortstöð - skuldir'!O56","v":0},".M.SAFFRER.XX.ERO.XXX.XXXX.SX.XXX.SEK.IS.N.M"]
[{"$f":"\"INN.\"&EIGNIR!$B$3&C9595","v":{"$error":"#N/A"}},{"$f":"'Afleiður og skortstöð - skuldir'!O57","v":0},".M.SAFFRER.XX.ERA.XXX.XXXX.SX.XXX.SEK.IS.N.M"]
[{"$f":"\"INN.\"&EIGNIR!$B$3&C9596","v":{"$error":"#N/A"}},{"$f":"'Afleiður og skortstöð - skuldir'!O58","v":0},".M.SAFSK$$.XX.$$$.XXX.XXXX.SX.XXX.SEK.IS.N.M"]
[{"$f":"\"INN.\"&EIGNIR!$B$3&C9597","v":{"$error":"#N/A"}},{"$f":"'Afleiður og skortstöð - skuldir'!O59","v":0},".M.SAFSKIN.XX.ATV.XXX.XXXX.SX.XXX.SEK.IS.N.M"]
[{"$f":"\"INN.\"&EIGNIR!$B$3&C9598","v":{"$error":"#N/A"}},{"$f":"'Afleiður og skortstöð - skuldir'!O60","v":0},".M.SAFSKIN.XX.FJA.XXX.XXXX.SX.XXX.SEK.IS.N.M"]
[{"$f":"\"INN.\"&EIGNIR!$B$3&C9599","v":{"$error":"#N/A"}},{"$f":"'Afleiður og skortstöð - skuldir'!O61","v":0},".M.SAFSKIN.XX.INN.XXX.XXXX.SX.XXX.SEK.IS.N.M"]
[{"$f":"\"INN.\"&EIGNIR!$B$3&C9600","v":{"$error":"#N/A"}},{"$f":"'Afleiður og skortstöð - skuldir'!O62","v":0},".M.SAFSKIN.XX.SLI.XXX.XXXX.SX.XXX.SEK.IS.N.M"]
[{"$f":"\"INN.\"&EIGNIR!$B$3&C9601","v":{"$error":"#N/A"}},{"$f":"'Afleiður og skortstöð - skuldir'!O63","v":0},".M.SAFSKIN.XX.PEN.XXX.XXXX.SX.XXX.SEK.IS.N.M"]
[{"$f":"\"INN.\"&EIGNIR!$B$3&C9602","v":{"$error":"#N/A"}},{"$f":"'Afleiður og skortstöð - skuldir'!O64","v":0},".M.SAFSKIN.XX.SJO.XXX.XXXX.SX.XXX.SEK.IS.N.M"]
[{"$f":"\"INN.\"&EIGNIR!$B$3&C9603","v":{"$error":"#N/A"}},{"$f":"'Afleiður og skortstöð - skuldir'!O65","v":0},".M.SAFSKIN.XX.YFT.XXX.XXXX.SX.XXX.SEK.IS.N.M"]
[{"$f":"\"INN.\"&EIGNIR!$B$3&C9604","v":{"$error":"#N/A"}},{"$f":"'Afleiður og skortstöð - skuldir'!O66","v":0},".M.SAFSKIN.XX.SLY.XXX.XXXX.SX.XXX.SEK.IS.N.M"]
[{"$f":"\"INN.\"&EIGNIR!$B$3&C9605","v":{"$error":"#N/A"}},{"$f":"'Afleiður og skortstöð - skuldir'!O67","v":0},".M.SAFSKIN.XX.FHL.XXX.XXXX.SX.XXX.SEK.IS.N.M"]
[{"$f":"\"INN.\"&EIGNIR!$B$3&C9606","v":{"$error":"#N/A"}},{"$f":"'Afleiður og skortstöð - skuldir'!O68","v":0},".M.SAFSKIN.XX.INF.XXX.XXXX.SX.XXX.SEK.IS.N.M"]
[{"$f":"\"INN.\"&EIGNIR!$B$3&C9607","v":{"$error":"#N/A"}},{"$f":"'Afleiður og skortstöð - skuldir'!O69","v":0},".M.SAFSKIN.XX.TRY.XXX.XXXX.SX.XXX.SEK.IS.N.M"]
[{"$f":"\"INN.\"&EIGNIR!$B$3&C9608","v":{"$error":"#N/A"}},{"$f":"'Afleiður og skortstöð - skuldir'!O70","v":0},".M.SAFSKIN.XX.LIF.XXX.XXXX.SX.XXX.SEK.IS.N.M"]
[{"$f":"\"INN.\"&EIGNIR!$B$3&C9609","v":{"$error":"#N/A"}},{"$f":"'Afleiður og skortstöð - skuldir'!O71","v":0},".M.SAFSKIN.XX.OPI.XXX.XXXX.SX.XXX.SEK.IS.N.M"]
[{"$f":"\"INN.\"&EIGNIR!$B$3&C9610","v":{"$error":"#N/A"}},{"$f":"'Afleiður og skortstöð - skuldir'!O72","v":0},".M.SAFSKIN.XX.RSS.XXX.XXXX.SX.XXX.SEK.IS.N.M"]
[{"$f":"\"INN.\"&EIGNIR!$B$3&C9611","v":{"$error":"#N/A"}},{"$f":"'Afleiður og skortstöð - skuldir'!O73","v":0},".M.SAFSKIN.XX.BAJ.XXX.XXXX.SX.XXX.SEK.IS.N.M"]
[{"$f":"\"INN.\"&EIGNIR!$B$3&C9612","v":{"$error":"#N/A"}},{"$f":"'Afleiður og skortstöð - skuldir'!O74","v":0},".M.SAFSKIN.XX.EIN.XXX.XXXX.SX.XXX.SEK.IS.N.M"]
[{"$f":"\"INN.\"&EIGNIR!$B$3&C9613","v":{"$error":"#N/A"}},{"$f":"'Afleiður og skortstöð - skuldir'!O75","v":0},".M.SAFSKIN.XX.NPH.XXX.XXXX.SX.XXX.SEK.IS.N.M"]
[{"$f":"\"INN.\"&EIGNIR!$B$3&C9614","v":{"$error":"#N/A"}},{"$f":"'Afleiður og skortstöð - skuldir'!O76","v":0},".M.SAFSKER.XX.ERL.XXX.XXXX.SX.XXX.SEK.IS.N.M"]
[{"$f":"\"INN.\"&EIGNIR!$B$3&C9615","v":{"$error":"#N/A"}},{"$f":"'Afleiður og skortstöð - skuldir'!O77","v":0},".M.SAFSKER.XX.ERS.XXX.XXXX.SX.XXX.SEK.IS.N.M"]
[{"$f":"\"INN.\"&EIGNIR!$B$3&C9616","v":{"$error":"#N/A"}},{"$f":"'Afleiður og skortstöð - skuldir'!O78","v":0},".M.SAFSKER.XX.ERI.XXX.XXXX.SX.XXX.SEK.IS.N.M"]
[{"$f":"\"INN.\"&EIGNIR!$B$3&C9617","v":{"$error":"#N/A"}},{"$f":"'Afleiður og skortstöð - skuldir'!O79","v":0},".M.SAFSKER.XX.ERP.XXX.XXXX.SX.XXX.SEK.IS.N.M"]
[{"$f":"\"INN.\"&EIGNIR!$B$3&C9618","v":{"$error":"#N/A"}},{"$f":"'Afleiður og skortstöð - skuldir'!O80","v":0},".M.SAFSKER.XX.ERV.XXX.XXXX.SX.XXX.SEK.IS.N.M"]
[{"$f":"\"INN.\"&EIGNIR!$B$3&C9619","v":{"$error":"#N/A"}},{"$f":"'Afleiður og skortstöð - skuldir'!O81","v":0},".M.SAFSKER.XX.ERF.XXX.XXXX.SX.XXX.SEK.IS.N.M"]
[{"$f":"\"INN.\"&EIGNIR!$B$3&C9620","v":{"$error":"#N/A"}},{"$f":"'Afleiður og skortstöð - skuldir'!O82","v":0},".M.SAFSKER.XX.ERO.XXX.XXXX.SX.XXX.SEK.IS.N.M"]
[{"$f":"\"INN.\"&EIGNIR!$B$3&C9621","v":{"$error":"#N/A"}},{"$f":"'Afleiður og skortstöð - skuldir'!O83","v":0},".M.SAFSKER.XX.ERA.XXX.XXXX.SX.XXX.SEK.IS.N.M"]
[{"$f":"\"INN.\"&EIGNIR!$B$3&C9622","v":{"$error":"#N/A"}},{"$f":"'Afleiður og skortstöð - skuldir'!O84","v":0},".M.SAFSS$$.XX.$$$.XXX.XXXX.SX.XXX.SEK.IS.N.M"]
[{"$f":"\"INN.\"&EIGNIR!$B$3&C9623","v":{"$error":"#N/A"}},{"$f":"'Afleiður og skortstöð - skuldir'!O85","v":0},".M.SAFSSIN.XX.ATV.XXX.XXXX.SX.XXX.SEK.IS.N.M"]
[{"$f":"\"INN.\"&EIGNIR!$B$3&C9624","v":{"$error":"#N/A"}},{"$f":"'Afleiður og skortstöð - skuldir'!O86","v":0},".M.SAFSSIN.XX.FJA.XXX.XXXX.SX.XXX.SEK.IS.N.M"]
[{"$f":"\"INN.\"&EIGNIR!$B$3&C9625","v":{"$error":"#N/A"}},{"$f":"'Afleiður og skortstöð - skuldir'!O87","v":0},".M.SAFSSIN.XX.INN.XXX.XXXX.SX.XXX.SEK.IS.N.M"]
[{"$f":"\"INN.\"&EIGNIR!$B$3&C9626","v":{"$error":"#N/A"}},{"$f":"'Afleiður og skortstöð - skuldir'!O88","v":0},".M.SAFSSIN.XX.SLI.XXX.XXXX.SX.XXX.SEK.IS.N.M"]
[{"$f":"\"INN.\"&EIGNIR!$B$3&C9627","v":{"$error":"#N/A"}},{"$f":"'Afleiður og skortstöð - skuldir'!O89","v":0},".M.SAFSSIN.XX.PEN.XXX.XXXX.SX.XXX.SEK.IS.N.M"]
[{"$f":"\"INN.\"&EIGNIR!$B$3&C9628","v":{"$error":"#N/A"}},{"$f":"'Afleiður og skortstöð - skuldir'!O90","v":0},".M.SAFSSIN.XX.SJO.XXX.XXXX.SX.XXX.SEK.IS.N.M"]
[{"$f":"\"INN.\"&EIGNIR!$B$3&C9629","v":{"$error":"#N/A"}},{"$f":"'Afleiður og skortstöð - skuldir'!O91","v":0},".M.SAFSSIN.XX.YFT.XXX.XXXX.SX.XXX.SEK.IS.N.M"]
[{"$f":"\"INN.\"&EIGNIR!$B$3&C9630","v":{"$error":"#N/A"}},{"$f":"'Afleiður og skortstöð - skuldir'!O92","v":0},".M.SAFSSIN.XX.SLY.XXX.XXXX.SX.XXX.SEK.IS.N.M"]
[{"$f":"\"INN.\"&EIGNIR!$B$3&C9631","v":{"$error":"#N/A"}},{"$f":"'Afleiður og skortstöð - skuldir'!O93","v":0},".M.SAFSSIN.XX.FHL.XXX.XXXX.SX.XXX.SEK.IS.N.M"]
[{"$f":"\"INN.\"&EIGNIR!$B$3&C9632","v":{"$error":"#N/A"}},{"$f":"'Afleiður og skortstöð - skuldir'!O94","v":0},".M.SAFSSIN.XX.INF.XXX.XXXX.SX.XXX.SEK.IS.N.M"]
[{"$f":"\"INN.\"&EIGNIR!$B$3&C9633","v":{"$error":"#N/A"}},{"$f":"'Afleiður og skortstöð - skuldir'!O95","v":0},".M.SAFSSIN.XX.TRY.XXX.XXXX.SX.XXX.SEK.IS.N.M"]
[{"$f":"\"INN.\"&EIGNIR!$B$3&C9634","v":{"$error":"#N/A"}},{"$f":"'Afleiður og skortstöð - skuldir'!O96","v":0},".M.SAFSSIN.XX.LIF.XXX.XXXX.SX.XXX.SEK.IS.N.M"]
[{"$f":"\"INN.\"&EIGNIR!$B$3&C9635","v":{"$error":"#N/A"}},{"$f":"'Afleiður og skortstöð - skuldir'!O97","v":0},".M.SAFSSIN.XX.OPI.XXX.XXXX.SX.XXX.SEK.IS.N.M"]
[{"$f":"\"INN.\"&EIGNIR!$B$3&C9636","v":{"$error":"#N/A"}},{"$f":"'Afleiður og skortstöð - skuldir'!O98","v":0},".M.SAFSSIN.XX.RSS.XXX.XXXX.SX.XXX.SEK.IS.N.M"]
[{"$f":"\"INN.\"&EIGNIR!$B$3&C9637","v":{"$error":"#N/A"}},{"$f":"'Afleiður og skortstöð - skuldir'!O99","v":0},".M.SAFSSIN.XX.BAJ.XXX.XXXX.SX.XXX.SEK.IS.N.M"]
[{"$f":"\"INN.\"&EIGNIR!$B$3&C9638","v":{"$error":"#N/A"}},{"$f":"'Afleiður og skortstöð - skuldir'!O100","v":0},".M.SAFSSIN.XX.EIN.XXX.XXXX.SX.XXX.SEK.IS.N.M"]
[{"$f":"\"INN.\"&EIGNIR!$B$3&C9639","v":{"$error":"#N/A"}},{"$f":"'Afleiður og skortstöð - skuldir'!O101","v":0},".M.SAFSSIN.XX.NPH.XXX.XXXX.SX.XXX.SEK.IS.N.M"]
[{"$f":"\"INN.\"&EIGNIR!$B$3&C9640","v":{"$error":"#N/A"}},{"$f":"'Afleiður og skortstöð - skuldir'!O102","v":0},".M.SAFSSER.XX.ERL.XXX.XXXX.SX.XXX.SEK.IS.N.M"]
[{"$f":"\"INN.\"&EIGNIR!$B$3&C9641","v":{"$error":"#N/A"}},{"$f":"'Afleiður og skortstöð - skuldir'!O103","v":0},".M.SAFSSER.XX.ERS.XXX.XXXX.SX.XXX.SEK.IS.N.M"]
[{"$f":"\"INN.\"&EIGNIR!$B$3&C9642","v":{"$error":"#N/A"}},{"$f":"'Afleiður og skortstöð - skuldir'!O104","v":0},".M.SAFSSER.XX.ERI.XXX.XXXX.SX.XXX.SEK.IS.N.M"]
[{"$f":"\"INN.\"&EIGNIR!$B$3&C9643","v":{"$error":"#N/A"}},{"$f":"'Afleiður og skortstöð - skuldir'!O105","v":0},".M.SAFSSER.XX.ERP.XXX.XXXX.SX.XXX.SEK.IS.N.M"]
[{"$f":"\"INN.\"&EIGNIR!$B$3&C9644","v":{"$error":"#N/A"}},{"$f":"'Afleiður og skortstöð - skuldir'!O106","v":0},".M.SAFSSER.XX.ERV.XXX.XXXX.SX.XXX.SEK.IS.N.M"]
[{"$f":"\"INN.\"&EIGNIR!$B$3&C9645","v":{"$error":"#N/A"}},{"$f":"'Afleiður og skortstöð - skuldir'!O107","v":0},".M.SAFSSER.XX.ERF.XXX.XXXX.SX.XXX.SEK.IS.N.M"]
[{"$f":"\"INN.\"&EIGNIR!$B$3&C9646","v":{"$error":"#N/A"}},{"$f":"'Afleiður og skortstöð - skuldir'!O108","v":0},".M.SAFSSER.XX.ERO.XXX.XXXX.SX.XXX.SEK.IS.N.M"]
[{"$f":"\"INN.\"&EIGNIR!$B$3&C9647","v":{"$error":"#N/A"}},{"$f":"'Afleiður og skortstöð - skuldir'!O109","v":0},".M.SAFSSER.XX.ERA.XXX.XXXX.SX.XXX.SEK.IS.N.M"]
[{"$f":"\"INN.\"&EIGNIR!$B$3&C9648","v":{"$error":"#N/A"}},{"$f":"'Afleiður og skortstöð - skuldir'!O110","v":0},".M.SAFSSEH.XX.ERL.XXX.XXXX.SX.XXX.SEK.IS.N.M"]
[{"$f":"\"INN.\"&EIGNIR!$B$3&C9649","v":{"$error":"#N/A"}},{"$f":"'Afleiður og skortstöð - skuldir'!O111","v":0},".M.SAFSSES.XX.ERL.XXX.XXXX.SX.SKT.SEK.IS.N.M"]
[{"$f":"\"INN.\"&EIGNIR!$B$3&C9650","v":{"$error":"#N/A"}},{"$f":"'Afleiður og skortstöð - skuldir'!O112","v":0},".M.SAFSSES.XX.ERL.XXX.XXXX.SX.LAT.SEK.IS.N.M"]
[{"$f":"\"INN.\"&EIGNIR!$B$3&C9651","v":{"$error":"#N/A"}},{"$f":"'Afleiður og skortstöð - skuldir'!P5","v":0},".M.SAF$$$$.XX.$$$.XXX.XXXX.SX.XXX.CHF.IS.N.M","//Sundurliðun afleiður CHF"]
[{"$f":"\"INN.\"&EIGNIR!$B$3&C9652","v":{"$error":"#N/A"}},{"$f":"'Afleiður og skortstöð - skuldir'!P6","v":0},".M.SAFVA$$.XX.$$$.XXX.XXXX.SX.XXX.CHF.IS.N.M"]
[{"$f":"\"INN.\"&EIGNIR!$B$3&C9653","v":{"$error":"#N/A"}},{"$f":"'Afleiður og skortstöð - skuldir'!P7","v":0},".M.SAFVAIN.XX.ATV.XXX.XXXX.SX.XXX.CHF.IS.N.M"]
[{"$f":"\"INN.\"&EIGNIR!$B$3&C9654","v":{"$error":"#N/A"}},{"$f":"'Afleiður og skortstöð - skuldir'!P8","v":0},".M.SAFVAIN.XX.FJA.XXX.XXXX.SX.XXX.CHF.IS.N.M"]
[{"$f":"\"INN.\"&EIGNIR!$B$3&C9655","v":{"$error":"#N/A"}},{"$f":"'Afleiður og skortstöð - skuldir'!P9","v":0},".M.SAFVAIN.XX.INN.XXX.XXXX.SX.XXX.CHF.IS.N.M"]
[{"$f":"\"INN.\"&EIGNIR!$B$3&C9656","v":{"$error":"#N/A"}},{"$f":"'Afleiður og skortstöð - skuldir'!P10","v":0},".M.SAFVAIN.XX.SLI.XXX.XXXX.SX.XXX.CHF.IS.N.M"]
[{"$f":"\"INN.\"&EIGNIR!$B$3&C9657","v":{"$error":"#N/A"}},{"$f":"'Afleiður og skortstöð - skuldir'!P11","v":0},".M.SAFVAIN.XX.PEN.XXX.XXXX.SX.XXX.CHF.IS.N.M"]
[{"$f":"\"INN.\"&EIGNIR!$B$3&C9658","v":{"$error":"#N/A"}},{"$f":"'Afleiður og skortstöð - skuldir'!P12","v":0},".M.SAFVAIN.XX.SJO.XXX.XXXX.SX.XXX.CHF.IS.N.M"]
[{"$f":"\"INN.\"&EIGNIR!$B$3&C9659","v":{"$error":"#N/A"}},{"$f":"'Afleiður og skortstöð - skuldir'!P13","v":0},".M.SAFVAIN.XX.YFT.XXX.XXXX.SX.XXX.CHF.IS.N.M"]
[{"$f":"\"INN.\"&EIGNIR!$B$3&C9660","v":{"$error":"#N/A"}},{"$f":"'Afleiður og skortstöð - skuldir'!P14","v":0},".M.SAFVAIN.XX.SLY.XXX.XXXX.SX.XXX.CHF.IS.N.M"]
[{"$f":"\"INN.\"&EIGNIR!$B$3&C9661","v":{"$error":"#N/A"}},{"$f":"'Afleiður og skortstöð - skuldir'!P15","v":0},".M.SAFVAIN.XX.FHL.XXX.XXXX.SX.XXX.CHF.IS.N.M"]
[{"$f":"\"INN.\"&EIGNIR!$B$3&C9662","v":{"$error":"#N/A"}},{"$f":"'Afleiður og skortstöð - skuldir'!P16","v":0},".M.SAFVAIN.XX.INF.XXX.XXXX.SX.XXX.CHF.IS.N.M"]
[{"$f":"\"INN.\"&EIGNIR!$B$3&C9663","v":{"$error":"#N/A"}},{"$f":"'Afleiður og skortstöð - skuldir'!P17","v":0},".M.SAFVAIN.XX.TRY.XXX.XXXX.SX.XXX.CHF.IS.N.M"]
[{"$f":"\"INN.\"&EIGNIR!$B$3&C9664","v":{"$error":"#N/A"}},{"$f":"'Afleiður og skortstöð - skuldir'!P18","v":0},".M.SAFVAIN.XX.LIF.XXX.XXXX.SX.XXX.CHF.IS.N.M"]
[{"$f":"\"INN.\"&EIGNIR!$B$3&C9665","v":{"$error":"#N/A"}},{"$f":"'Afleiður og skortstöð - skuldir'!P19","v":0},".M.SAFVAIN.XX.OPI.XXX.XXXX.SX.XXX.CHF.IS.N.M"]
[{"$f":"\"INN.\"&EIGNIR!$B$3&C9666","v":{"$error":"#N/A"}},{"$f":"'Afleiður og skortstöð - skuldir'!P20","v":0},".M.SAFVAIN.XX.RSS.XXX.XXXX.SX.XXX.CHF.IS.N.M"]
[{"$f":"\"INN.\"&EIGNIR!$B$3&C9667","v":{"$error":"#N/A"}},{"$f":"'Afleiður og skortstöð - skuldir'!P21","v":0},".M.SAFVAIN.XX.BAJ.XXX.XXXX.SX.XXX.CHF.IS.N.M"]
[{"$f":"\"INN.\"&EIGNIR!$B$3&C9668","v":{"$error":"#N/A"}},{"$f":"'Afleiður og skortstöð - skuldir'!P22","v":0},".M.SAFVAIN.XX.EIN.XXX.XXXX.SX.XXX.CHF.IS.N.M"]
[{"$f":"\"INN.\"&EIGNIR!$B$3&C9669","v":{"$error":"#N/A"}},{"$f":"'Afleiður og skortstöð - skuldir'!P23","v":0},".M.SAFVAIN.XX.NPH.XXX.XXXX.SX.XXX.CHF.IS.N.M"]
[{"$f":"\"INN.\"&EIGNIR!$B$3&C9670","v":{"$error":"#N/A"}},{"$f":"'Afleiður og skortstöð - skuldir'!P24","v":0},".M.SAFVAER.XX.ERL.XXX.XXXX.SX.XXX.CHF.IS.N.M"]
[{"$f":"\"INN.\"&EIGNIR!$B$3&C9671","v":{"$error":"#N/A"}},{"$f":"'Afleiður og skortstöð - skuldir'!P25","v":0},".M.SAFVAER.XX.ERS.XXX.XXXX.SX.XXX.CHF.IS.N.M"]
[{"$f":"\"INN.\"&EIGNIR!$B$3&C9672","v":{"$error":"#N/A"}},{"$f":"'Afleiður og skortstöð - skuldir'!P26","v":0},".M.SAFVAER.XX.ERI.XXX.XXXX.SX.XXX.CHF.IS.N.M"]
[{"$f":"\"INN.\"&EIGNIR!$B$3&C9673","v":{"$error":"#N/A"}},{"$f":"'Afleiður og skortstöð - skuldir'!P27","v":0},".M.SAFVAER.XX.ERP.XXX.XXXX.SX.XXX.CHF.IS.N.M"]
[{"$f":"\"INN.\"&EIGNIR!$B$3&C9674","v":{"$error":"#N/A"}},{"$f":"'Afleiður og skortstöð - skuldir'!P28","v":0},".M.SAFVAER.XX.ERV.XXX.XXXX.SX.XXX.CHF.IS.N.M"]
[{"$f":"\"INN.\"&EIGNIR!$B$3&C9675","v":{"$error":"#N/A"}},{"$f":"'Afleiður og skortstöð - skuldir'!P29","v":0},".M.SAFVAER.XX.ERF.XXX.XXXX.SX.XXX.CHF.IS.N.M"]
[{"$f":"\"INN.\"&EIGNIR!$B$3&C9676","v":{"$error":"#N/A"}},{"$f":"'Afleiður og skortstöð - skuldir'!P30","v":0},".M.SAFVAER.XX.ERO.XXX.XXXX.SX.XXX.CHF.IS.N.M"]
[{"$f":"\"INN.\"&EIGNIR!$B$3&C9677","v":{"$error":"#N/A"}},{"$f":"'Afleiður og skortstöð - skuldir'!P31","v":0},".M.SAFVAER.XX.ERA.XXX.XXXX.SX.XXX.CHF.IS.N.M"]
[{"$f":"\"INN.\"&EIGNIR!$B$3&C9678","v":{"$error":"#N/A"}},{"$f":"'Afleiður og skortstöð - skuldir'!P32","v":0},".M.SAFFR$$.XX.$$$.XXX.XXXX.SX.XXX.CHF.IS.N.M"]
[{"$f":"\"INN.\"&EIGNIR!$B$3&C9679","v":{"$error":"#N/A"}},{"$f":"'Afleiður og skortstöð - skuldir'!P33","v":0},".M.SAFFRIN.XX.ATV.XXX.XXXX.SX.XXX.CHF.IS.N.M"]
[{"$f":"\"INN.\"&EIGNIR!$B$3&C9680","v":{"$error":"#N/A"}},{"$f":"'Afleiður og skortstöð - skuldir'!P34","v":0},".M.SAFFRIN.XX.FJA.XXX.XXXX.SX.XXX.CHF.IS.N.M"]
[{"$f":"\"INN.\"&EIGNIR!$B$3&C9681","v":{"$error":"#N/A"}},{"$f":"'Afleiður og skortstöð - skuldir'!P35","v":0},".M.SAFFRIN.XX.INN.XXX.XXXX.SX.XXX.CHF.IS.N.M"]
[{"$f":"\"INN.\"&EIGNIR!$B$3&C9682","v":{"$error":"#N/A"}},{"$f":"'Afleiður og skortstöð - skuldir'!P36","v":0},".M.SAFFRIN.XX.SLI.XXX.XXXX.SX.XXX.CHF.IS.N.M"]
[{"$f":"\"INN.\"&EIGNIR!$B$3&C9683","v":{"$error":"#N/A"}},{"$f":"'Afleiður og skortstöð - skuldir'!P37","v":0},".M.SAFFRIN.XX.PEN.XXX.XXXX.SX.XXX.CHF.IS.N.M"]
[{"$f":"\"INN.\"&EIGNIR!$B$3&C9684","v":{"$error":"#N/A"}},{"$f":"'Afleiður og skortstöð - skuldir'!P38","v":0},".M.SAFFRIN.XX.SJO.XXX.XXXX.SX.XXX.CHF.IS.N.M"]
[{"$f":"\"INN.\"&EIGNIR!$B$3&C9685","v":{"$error":"#N/A"}},{"$f":"'Afleiður og skortstöð - skuldir'!P39","v":0},".M.SAFFRIN.XX.YFT.XXX.XXXX.SX.XXX.CHF.IS.N.M"]
[{"$f":"\"INN.\"&EIGNIR!$B$3&C9686","v":{"$error":"#N/A"}},{"$f":"'Afleiður og skortstöð - skuldir'!P40","v":0},".M.SAFFRIN.XX.SLY.XXX.XXXX.SX.XXX.CHF.IS.N.M"]
[{"$f":"\"INN.\"&EIGNIR!$B$3&C9687","v":{"$error":"#N/A"}},{"$f":"'Afleiður og skortstöð - skuldir'!P41","v":0},".M.SAFFRIN.XX.FHL.XXX.XXXX.SX.XXX.CHF.IS.N.M"]
[{"$f":"\"INN.\"&EIGNIR!$B$3&C9688","v":{"$error":"#N/A"}},{"$f":"'Afleiður og skortstöð - skuldir'!P42","v":0},".M.SAFFRIN.XX.INF.XXX.XXXX.SX.XXX.CHF.IS.N.M"]
[{"$f":"\"INN.\"&EIGNIR!$B$3&C9689","v":{"$error":"#N/A"}},{"$f":"'Afleiður og skortstöð - skuldir'!P43","v":0},".M.SAFFRIN.XX.TRY.XXX.XXXX.SX.XXX.CHF.IS.N.M"]
[{"$f":"\"INN.\"&EIGNIR!$B$3&C9690","v":{"$error":"#N/A"}},{"$f":"'Afleiður og skortstöð - skuldir'!P44","v":0},".M.SAFFRIN.XX.LIF.XXX.XXXX.SX.XXX.CHF.IS.N.M"]
[{"$f":"\"INN.\"&EIGNIR!$B$3&C9691","v":{"$error":"#N/A"}},{"$f":"'Afleiður og skortstöð - skuldir'!P45","v":0},".M.SAFFRIN.XX.OPI.XXX.XXXX.SX.XXX.CHF.IS.N.M"]
[{"$f":"\"INN.\"&EIGNIR!$B$3&C9692","v":{"$error":"#N/A"}},{"$f":"'Afleiður og skortstöð - skuldir'!P46","v":0},".M.SAFFRIN.XX.RSS.XXX.XXXX.SX.XXX.CHF.IS.N.M"]
[{"$f":"\"INN.\"&EIGNIR!$B$3&C9693","v":{"$error":"#N/A"}},{"$f":"'Afleiður og skortstöð - skuldir'!P47","v":0},".M.SAFFRIN.XX.BAJ.XXX.XXXX.SX.XXX.CHF.IS.N.M"]
[{"$f":"\"INN.\"&EIGNIR!$B$3&C9694","v":{"$error":"#N/A"}},{"$f":"'Afleiður og skortstöð - skuldir'!P48","v":0},".M.SAFFRIN.XX.EIN.XXX.XXXX.SX.XXX.CHF.IS.N.M"]
[{"$f":"\"INN.\"&EIGNIR!$B$3&C9695","v":{"$error":"#N/A"}},{"$f":"'Afleiður og skortstöð - skuldir'!P49","v":0},".M.SAFFRIN.XX.NPH.XXX.XXXX.SX.XXX.CHF.IS.N.M"]
[{"$f":"\"INN.\"&EIGNIR!$B$3&C9696","v":{"$error":"#N/A"}},{"$f":"'Afleiður og skortstöð - skuldir'!P50","v":0},".M.SAFFRER.XX.ERL.XXX.XXXX.SX.XXX.CHF.IS.N.M"]
[{"$f":"\"INN.\"&EIGNIR!$B$3&C9697","v":{"$error":"#N/A"}},{"$f":"'Afleiður og skortstöð - skuldir'!P51","v":0},".M.SAFFRER.XX.ERS.XXX.XXXX.SX.XXX.CHF.IS.N.M"]
[{"$f":"\"INN.\"&EIGNIR!$B$3&C9698","v":{"$error":"#N/A"}},{"$f":"'Afleiður og skortstöð - skuldir'!P52","v":0},".M.SAFFRER.XX.ERI.XXX.XXXX.SX.XXX.CHF.IS.N.M"]
[{"$f":"\"INN.\"&EIGNIR!$B$3&C9699","v":{"$error":"#N/A"}},{"$f":"'Afleiður og skortstöð - skuldir'!P53","v":0},".M.SAFFRER.XX.ERP.XXX.XXXX.SX.XXX.CHF.IS.N.M"]
[{"$f":"\"INN.\"&EIGNIR!$B$3&C9700","v":{"$error":"#N/A"}},{"$f":"'Afleiður og skortstöð - skuldir'!P54","v":0},".M.SAFFRER.XX.ERV.XXX.XXXX.SX.XXX.CHF.IS.N.M"]
[{"$f":"\"INN.\"&EIGNIR!$B$3&C9701","v":{"$error":"#N/A"}},{"$f":"'Afleiður og skortstöð - skuldir'!P55","v":0},".M.SAFFRER.XX.ERF.XXX.XXXX.SX.XXX.CHF.IS.N.M"]
[{"$f":"\"INN.\"&EIGNIR!$B$3&C9702","v":{"$error":"#N/A"}},{"$f":"'Afleiður og skortstöð - skuldir'!P56","v":0},".M.SAFFRER.XX.ERO.XXX.XXXX.SX.XXX.CHF.IS.N.M"]
[{"$f":"\"INN.\"&EIGNIR!$B$3&C9703","v":{"$error":"#N/A"}},{"$f":"'Afleiður og skortstöð - skuldir'!P57","v":0},".M.SAFFRER.XX.ERA.XXX.XXXX.SX.XXX.CHF.IS.N.M"]
[{"$f":"\"INN.\"&EIGNIR!$B$3&C9704","v":{"$error":"#N/A"}},{"$f":"'Afleiður og skortstöð - skuldir'!P58","v":0},".M.SAFSK$$.XX.$$$.XXX.XXXX.SX.XXX.CHF.IS.N.M"]
[{"$f":"\"INN.\"&EIGNIR!$B$3&C9705","v":{"$error":"#N/A"}},{"$f":"'Afleiður og skortstöð - skuldir'!P59","v":0},".M.SAFSKIN.XX.ATV.XXX.XXXX.SX.XXX.CHF.IS.N.M"]
[{"$f":"\"INN.\"&EIGNIR!$B$3&C9706","v":{"$error":"#N/A"}},{"$f":"'Afleiður og skortstöð - skuldir'!P60","v":0},".M.SAFSKIN.XX.FJA.XXX.XXXX.SX.XXX.CHF.IS.N.M"]
[{"$f":"\"INN.\"&EIGNIR!$B$3&C9707","v":{"$error":"#N/A"}},{"$f":"'Afleiður og skortstöð - skuldir'!P61","v":0},".M.SAFSKIN.XX.INN.XXX.XXXX.SX.XXX.CHF.IS.N.M"]
[{"$f":"\"INN.\"&EIGNIR!$B$3&C9708","v":{"$error":"#N/A"}},{"$f":"'Afleiður og skortstöð - skuldir'!P62","v":0},".M.SAFSKIN.XX.SLI.XXX.XXXX.SX.XXX.CHF.IS.N.M"]
[{"$f":"\"INN.\"&EIGNIR!$B$3&C9709","v":{"$error":"#N/A"}},{"$f":"'Afleiður og skortstöð - skuldir'!P63","v":0},".M.SAFSKIN.XX.PEN.XXX.XXXX.SX.XXX.CHF.IS.N.M"]
[{"$f":"\"INN.\"&EIGNIR!$B$3&C9710","v":{"$error":"#N/A"}},{"$f":"'Afleiður og skortstöð - skuldir'!P64","v":0},".M.SAFSKIN.XX.SJO.XXX.XXXX.SX.XXX.CHF.IS.N.M"]
[{"$f":"\"INN.\"&EIGNIR!$B$3&C9711","v":{"$error":"#N/A"}},{"$f":"'Afleiður og skortstöð - skuldir'!P65","v":0},".M.SAFSKIN.XX.YFT.XXX.XXXX.SX.XXX.CHF.IS.N.M"]
[{"$f":"\"INN.\"&EIGNIR!$B$3&C9712","v":{"$error":"#N/A"}},{"$f":"'Afleiður og skortstöð - skuldir'!P66","v":0},".M.SAFSKIN.XX.SLY.XXX.XXXX.SX.XXX.CHF.IS.N.M"]
[{"$f":"\"INN.\"&EIGNIR!$B$3&C9713","v":{"$error":"#N/A"}},{"$f":"'Afleiður og skortstöð - skuldir'!P67","v":0},".M.SAFSKIN.XX.FHL.XXX.XXXX.SX.XXX.CHF.IS.N.M"]
[{"$f":"\"INN.\"&EIGNIR!$B$3&C9714","v":{"$error":"#N/A"}},{"$f":"'Afleiður og skortstöð - skuldir'!P68","v":0},".M.SAFSKIN.XX.INF.XXX.XXXX.SX.XXX.CHF.IS.N.M"]
[{"$f":"\"INN.\"&EIGNIR!$B$3&C9715","v":{"$error":"#N/A"}},{"$f":"'Afleiður og skortstöð - skuldir'!P69","v":0},".M.SAFSKIN.XX.TRY.XXX.XXXX.SX.XXX.CHF.IS.N.M"]
[{"$f":"\"INN.\"&EIGNIR!$B$3&C9716","v":{"$error":"#N/A"}},{"$f":"'Afleiður og skortstöð - skuldir'!P70","v":0},".M.SAFSKIN.XX.LIF.XXX.XXXX.SX.XXX.CHF.IS.N.M"]
[{"$f":"\"INN.\"&EIGNIR!$B$3&C9717","v":{"$error":"#N/A"}},{"$f":"'Afleiður og skortstöð - skuldir'!P71","v":0},".M.SAFSKIN.XX.OPI.XXX.XXXX.SX.XXX.CHF.IS.N.M"]
[{"$f":"\"INN.\"&EIGNIR!$B$3&C9718","v":{"$error":"#N/A"}},{"$f":"'Afleiður og skortstöð - skuldir'!P72","v":0},".M.SAFSKIN.XX.RSS.XXX.XXXX.SX.XXX.CHF.IS.N.M"]
[{"$f":"\"INN.\"&EIGNIR!$B$3&C9719","v":{"$error":"#N/A"}},{"$f":"'Afleiður og skortstöð - skuldir'!P73","v":0},".M.SAFSKIN.XX.BAJ.XXX.XXXX.SX.XXX.CHF.IS.N.M"]
[{"$f":"\"INN.\"&EIGNIR!$B$3&C9720","v":{"$error":"#N/A"}},{"$f":"'Afleiður og skortstöð - skuldir'!P74","v":0},".M.SAFSKIN.XX.EIN.XXX.XXXX.SX.XXX.CHF.IS.N.M"]
[{"$f":"\"INN.\"&EIGNIR!$B$3&C9721","v":{"$error":"#N/A"}},{"$f":"'Afleiður og skortstöð - skuldir'!P75","v":0},".M.SAFSKIN.XX.NPH.XXX.XXXX.SX.XXX.CHF.IS.N.M"]
[{"$f":"\"INN.\"&EIGNIR!$B$3&C9722","v":{"$error":"#N/A"}},{"$f":"'Afleiður og skortstöð - skuldir'!P76","v":0},".M.SAFSKER.XX.ERL.XXX.XXXX.SX.XXX.CHF.IS.N.M"]
[{"$f":"\"INN.\"&EIGNIR!$B$3&C9723","v":{"$error":"#N/A"}},{"$f":"'Afleiður og skortstöð - skuldir'!P77","v":0},".M.SAFSKER.XX.ERS.XXX.XXXX.SX.XXX.CHF.IS.N.M"]
[{"$f":"\"INN.\"&EIGNIR!$B$3&C9724","v":{"$error":"#N/A"}},{"$f":"'Afleiður og skortstöð - skuldir'!P78","v":0},".M.SAFSKER.XX.ERI.XXX.XXXX.SX.XXX.CHF.IS.N.M"]
[{"$f":"\"INN.\"&EIGNIR!$B$3&C9725","v":{"$error":"#N/A"}},{"$f":"'Afleiður og skortstöð - skuldir'!P79","v":0},".M.SAFSKER.XX.ERP.XXX.XXXX.SX.XXX.CHF.IS.N.M"]
[{"$f":"\"INN.\"&EIGNIR!$B$3&C9726","v":{"$error":"#N/A"}},{"$f":"'Afleiður og skortstöð - skuldir'!P80","v":0},".M.SAFSKER.XX.ERV.XXX.XXXX.SX.XXX.CHF.IS.N.M"]
[{"$f":"\"INN.\"&EIGNIR!$B$3&C9727","v":{"$error":"#N/A"}},{"$f":"'Afleiður og skortstöð - skuldir'!P81","v":0},".M.SAFSKER.XX.ERF.XXX.XXXX.SX.XXX.CHF.IS.N.M"]
[{"$f":"\"INN.\"&EIGNIR!$B$3&C9728","v":{"$error":"#N/A"}},{"$f":"'Afleiður og skortstöð - skuldir'!P82","v":0},".M.SAFSKER.XX.ERO.XXX.XXXX.SX.XXX.CHF.IS.N.M"]
[{"$f":"\"INN.\"&EIGNIR!$B$3&C9729","v":{"$error":"#N/A"}},{"$f":"'Afleiður og skortstöð - skuldir'!P83","v":0},".M.SAFSKER.XX.ERA.XXX.XXXX.SX.XXX.CHF.IS.N.M"]
[{"$f":"\"INN.\"&EIGNIR!$B$3&C9730","v":{"$error":"#N/A"}},{"$f":"'Afleiður og skortstöð - skuldir'!P84","v":0},".M.SAFSS$$.XX.$$$.XXX.XXXX.SX.XXX.CHF.IS.N.M"]
[{"$f":"\"INN.\"&EIGNIR!$B$3&C9731","v":{"$error":"#N/A"}},{"$f":"'Afleiður og skortstöð - skuldir'!P85","v":0},".M.SAFSSIN.XX.ATV.XXX.XXXX.SX.XXX.CHF.IS.N.M"]
[{"$f":"\"INN.\"&EIGNIR!$B$3&C9732","v":{"$error":"#N/A"}},{"$f":"'Afleiður og skortstöð - skuldir'!P86","v":0},".M.SAFSSIN.XX.FJA.XXX.XXXX.SX.XXX.CHF.IS.N.M"]
[{"$f":"\"INN.\"&EIGNIR!$B$3&C9733","v":{"$error":"#N/A"}},{"$f":"'Afleiður og skortstöð - skuldir'!P87","v":0},".M.SAFSSIN.XX.INN.XXX.XXXX.SX.XXX.CHF.IS.N.M"]
[{"$f":"\"INN.\"&EIGNIR!$B$3&C9734","v":{"$error":"#N/A"}},{"$f":"'Afleiður og skortstöð - skuldir'!P88","v":0},".M.SAFSSIN.XX.SLI.XXX.XXXX.SX.XXX.CHF.IS.N.M"]
[{"$f":"\"INN.\"&EIGNIR!$B$3&C9735","v":{"$error":"#N/A"}},{"$f":"'Afleiður og skortstöð - skuldir'!P89","v":0},".M.SAFSSIN.XX.PEN.XXX.XXXX.SX.XXX.CHF.IS.N.M"]
[{"$f":"\"INN.\"&EIGNIR!$B$3&C9736","v":{"$error":"#N/A"}},{"$f":"'Afleiður og skortstöð - skuldir'!P90","v":0},".M.SAFSSIN.XX.SJO.XXX.XXXX.SX.XXX.CHF.IS.N.M"]
[{"$f":"\"INN.\"&EIGNIR!$B$3&C9737","v":{"$error":"#N/A"}},{"$f":"'Afleiður og skortstöð - skuldir'!P91","v":0},".M.SAFSSIN.XX.YFT.XXX.XXXX.SX.XXX.CHF.IS.N.M"]
[{"$f":"\"INN.\"&EIGNIR!$B$3&C9738","v":{"$error":"#N/A"}},{"$f":"'Afleiður og skortstöð - skuldir'!P92","v":0},".M.SAFSSIN.XX.SLY.XXX.XXXX.SX.XXX.CHF.IS.N.M"]
[{"$f":"\"INN.\"&EIGNIR!$B$3&C9739","v":{"$error":"#N/A"}},{"$f":"'Afleiður og skortstöð - skuldir'!P93","v":0},".M.SAFSSIN.XX.FHL.XXX.XXXX.SX.XXX.CHF.IS.N.M"]
[{"$f":"\"INN.\"&EIGNIR!$B$3&C9740","v":{"$error":"#N/A"}},{"$f":"'Afleiður og skortstöð - skuldir'!P94","v":0},".M.SAFSSIN.XX.INF.XXX.XXXX.SX.XXX.CHF.IS.N.M"]
[{"$f":"\"INN.\"&EIGNIR!$B$3&C9741","v":{"$error":"#N/A"}},{"$f":"'Afleiður og skortstöð - skuldir'!P95","v":0},".M.SAFSSIN.XX.TRY.XXX.XXXX.SX.XXX.CHF.IS.N.M"]
[{"$f":"\"INN.\"&EIGNIR!$B$3&C9742","v":{"$error":"#N/A"}},{"$f":"'Afleiður og skortstöð - skuldir'!P96","v":0},".M.SAFSSIN.XX.LIF.XXX.XXXX.SX.XXX.CHF.IS.N.M"]
[{"$f":"\"INN.\"&EIGNIR!$B$3&C9743","v":{"$error":"#N/A"}},{"$f":"'Afleiður og skortstöð - skuldir'!P97","v":0},".M.SAFSSIN.XX.OPI.XXX.XXXX.SX.XXX.CHF.IS.N.M"]
[{"$f":"\"INN.\"&EIGNIR!$B$3&C9744","v":{"$error":"#N/A"}},{"$f":"'Afleiður og skortstöð - skuldir'!P98","v":0},".M.SAFSSIN.XX.RSS.XXX.XXXX.SX.XXX.CHF.IS.N.M"]
[{"$f":"\"INN.\"&EIGNIR!$B$3&C9745","v":{"$error":"#N/A"}},{"$f":"'Afleiður og skortstöð - skuldir'!P99","v":0},".M.SAFSSIN.XX.BAJ.XXX.XXXX.SX.XXX.CHF.IS.N.M"]
[{"$f":"\"INN.\"&EIGNIR!$B$3&C9746","v":{"$error":"#N/A"}},{"$f":"'Afleiður og skortstöð - skuldir'!P100","v":0},".M.SAFSSIN.XX.EIN.XXX.XXXX.SX.XXX.CHF.IS.N.M"]
[{"$f":"\"INN.\"&EIGNIR!$B$3&C9747","v":{"$error":"#N/A"}},{"$f":"'Afleiður og skortstöð - skuldir'!P101","v":0},".M.SAFSSIN.XX.NPH.XXX.XXXX.SX.XXX.CHF.IS.N.M"]
[{"$f":"\"INN.\"&EIGNIR!$B$3&C9748","v":{"$error":"#N/A"}},{"$f":"'Afleiður og skortstöð - skuldir'!P102","v":0},".M.SAFSSER.XX.ERL.XXX.XXXX.SX.XXX.CHF.IS.N.M"]
[{"$f":"\"INN.\"&EIGNIR!$B$3&C9749","v":{"$error":"#N/A"}},{"$f":"'Afleiður og skortstöð - skuldir'!P103","v":0},".M.SAFSSER.XX.ERS.XXX.XXXX.SX.XXX.CHF.IS.N.M"]
[{"$f":"\"INN.\"&EIGNIR!$B$3&C9750","v":{"$error":"#N/A"}},{"$f":"'Afleiður og skortstöð - skuldir'!P104","v":0},".M.SAFSSER.XX.ERI.XXX.XXXX.SX.XXX.CHF.IS.N.M"]
[{"$f":"\"INN.\"&EIGNIR!$B$3&C9751","v":{"$error":"#N/A"}},{"$f":"'Afleiður og skortstöð - skuldir'!P105","v":0},".M.SAFSSER.XX.ERP.XXX.XXXX.SX.XXX.CHF.IS.N.M"]
[{"$f":"\"INN.\"&EIGNIR!$B$3&C9752","v":{"$error":"#N/A"}},{"$f":"'Afleiður og skortstöð - skuldir'!P106","v":0},".M.SAFSSER.XX.ERV.XXX.XXXX.SX.XXX.CHF.IS.N.M"]
[{"$f":"\"INN.\"&EIGNIR!$B$3&C9753","v":{"$error":"#N/A"}},{"$f":"'Afleiður og skortstöð - skuldir'!P107","v":0},".M.SAFSSER.XX.ERF.XXX.XXXX.SX.XXX.CHF.IS.N.M"]
[{"$f":"\"INN.\"&EIGNIR!$B$3&C9754","v":{"$error":"#N/A"}},{"$f":"'Afleiður og skortstöð - skuldir'!P108","v":0},".M.SAFSSER.XX.ERO.XXX.XXXX.SX.XXX.CHF.IS.N.M"]
[{"$f":"\"INN.\"&EIGNIR!$B$3&C9755","v":{"$error":"#N/A"}},{"$f":"'Afleiður og skortstöð - skuldir'!P109","v":0},".M.SAFSSER.XX.ERA.XXX.XXXX.SX.XXX.CHF.IS.N.M"]
[{"$f":"\"INN.\"&EIGNIR!$B$3&C9756","v":{"$error":"#N/A"}},{"$f":"'Afleiður og skortstöð - skuldir'!P110","v":0},".M.SAFSSEH.XX.ERL.XXX.XXXX.SX.XXX.CHF.IS.N.M"]
[{"$f":"\"INN.\"&EIGNIR!$B$3&C9757","v":{"$error":"#N/A"}},{"$f":"'Afleiður og skortstöð - skuldir'!P111","v":0},".M.SAFSSES.XX.ERL.XXX.XXXX.SX.SKT.CHF.IS.N.M"]
[{"$f":"\"INN.\"&EIGNIR!$B$3&C9758","v":{"$error":"#N/A"}},{"$f":"'Afleiður og skortstöð - skuldir'!P112","v":0},".M.SAFSSES.XX.ERL.XXX.XXXX.SX.LAT.CHF.IS.N.M"]
[{"$f":"\"INN.\"&EIGNIR!$B$3&C9759","v":{"$error":"#N/A"}},{"$f":"'Afleiður og skortstöð - skuldir'!Q5","v":0},".M.SAF$$$$.XX.$$$.XXX.XXXX.SX.XXX.ADR.IS.N.M","//Sundurliðun afleiður ADR"]
[{"$f":"\"INN.\"&EIGNIR!$B$3&C9760","v":{"$error":"#N/A"}},{"$f":"'Afleiður og skortstöð - skuldir'!Q6","v":0},".M.SAFVA$$.XX.$$$.XXX.XXXX.SX.XXX.ADR.IS.N.M"]
[{"$f":"\"INN.\"&EIGNIR!$B$3&C9761","v":{"$error":"#N/A"}},{"$f":"'Afleiður og skortstöð - skuldir'!Q7","v":0},".M.SAFVAIN.XX.ATV.XXX.XXXX.SX.XXX.ADR.IS.N.M"]
[{"$f":"\"INN.\"&EIGNIR!$B$3&C9762","v":{"$error":"#N/A"}},{"$f":"'Afleiður og skortstöð - skuldir'!Q8","v":0},".M.SAFVAIN.XX.FJA.XXX.XXXX.SX.XXX.ADR.IS.N.M"]
[{"$f":"\"INN.\"&EIGNIR!$B$3&C9763","v":{"$error":"#N/A"}},{"$f":"'Afleiður og skortstöð - skuldir'!Q9","v":0},".M.SAFVAIN.XX.INN.XXX.XXXX.SX.XXX.ADR.IS.N.M"]
[{"$f":"\"INN.\"&EIGNIR!$B$3&C9764","v":{"$error":"#N/A"}},{"$f":"'Afleiður og skortstöð - skuldir'!Q10","v":0},".M.SAFVAIN.XX.SLI.XXX.XXXX.SX.XXX.ADR.IS.N.M"]
[{"$f":"\"INN.\"&EIGNIR!$B$3&C9765","v":{"$error":"#N/A"}},{"$f":"'Afleiður og skortstöð - skuldir'!Q11","v":0},".M.SAFVAIN.XX.PEN.XXX.XXXX.SX.XXX.ADR.IS.N.M"]
[{"$f":"\"INN.\"&EIGNIR!$B$3&C9766","v":{"$error":"#N/A"}},{"$f":"'Afleiður og skortstöð - skuldir'!Q12","v":0},".M.SAFVAIN.XX.SJO.XXX.XXXX.SX.XXX.ADR.IS.N.M"]
[{"$f":"\"INN.\"&EIGNIR!$B$3&C9767","v":{"$error":"#N/A"}},{"$f":"'Afleiður og skortstöð - skuldir'!Q13","v":0},".M.SAFVAIN.XX.YFT.XXX.XXXX.SX.XXX.ADR.IS.N.M"]
[{"$f":"\"INN.\"&EIGNIR!$B$3&C9768","v":{"$error":"#N/A"}},{"$f":"'Afleiður og skortstöð - skuldir'!Q14","v":0},".M.SAFVAIN.XX.SLY.XXX.XXXX.SX.XXX.ADR.IS.N.M"]
[{"$f":"\"INN.\"&EIGNIR!$B$3&C9769","v":{"$error":"#N/A"}},{"$f":"'Afleiður og skortstöð - skuldir'!Q15","v":0},".M.SAFVAIN.XX.FHL.XXX.XXXX.SX.XXX.ADR.IS.N.M"]
[{"$f":"\"INN.\"&EIGNIR!$B$3&C9770","v":{"$error":"#N/A"}},{"$f":"'Afleiður og skortstöð - skuldir'!Q16","v":0},".M.SAFVAIN.XX.INF.XXX.XXXX.SX.XXX.ADR.IS.N.M"]
[{"$f":"\"INN.\"&EIGNIR!$B$3&C9771","v":{"$error":"#N/A"}},{"$f":"'Afleiður og skortstöð - skuldir'!Q17","v":0},".M.SAFVAIN.XX.TRY.XXX.XXXX.SX.XXX.ADR.IS.N.M"]
[{"$f":"\"INN.\"&EIGNIR!$B$3&C9772","v":{"$error":"#N/A"}},{"$f":"'Afleiður og skortstöð - skuldir'!Q18","v":0},".M.SAFVAIN.XX.LIF.XXX.XXXX.SX.XXX.ADR.IS.N.M"]
[{"$f":"\"INN.\"&EIGNIR!$B$3&C9773","v":{"$error":"#N/A"}},{"$f":"'Afleiður og skortstöð - skuldir'!Q19","v":0},".M.SAFVAIN.XX.OPI.XXX.XXXX.SX.XXX.ADR.IS.N.M"]
[{"$f":"\"INN.\"&EIGNIR!$B$3&C9774","v":{"$error":"#N/A"}},{"$f":"'Afleiður og skortstöð - skuldir'!Q20","v":0},".M.SAFVAIN.XX.RSS.XXX.XXXX.SX.XXX.ADR.IS.N.M"]
[{"$f":"\"INN.\"&EIGNIR!$B$3&C9775","v":{"$error":"#N/A"}},{"$f":"'Afleiður og skortstöð - skuldir'!Q21","v":0},".M.SAFVAIN.XX.BAJ.XXX.XXXX.SX.XXX.ADR.IS.N.M"]
[{"$f":"\"INN.\"&EIGNIR!$B$3&C9776","v":{"$error":"#N/A"}},{"$f":"'Afleiður og skortstöð - skuldir'!Q22","v":0},".M.SAFVAIN.XX.EIN.XXX.XXXX.SX.XXX.ADR.IS.N.M"]
[{"$f":"\"INN.\"&EIGNIR!$B$3&C9777","v":{"$error":"#N/A"}},{"$f":"'Afleiður og skortstöð - skuldir'!Q23","v":0},".M.SAFVAIN.XX.NPH.XXX.XXXX.SX.XXX.ADR.IS.N.M"]
[{"$f":"\"INN.\"&EIGNIR!$B$3&C9778","v":{"$error":"#N/A"}},{"$f":"'Afleiður og skortstöð - skuldir'!Q24","v":0},".M.SAFVAER.XX.ERL.XXX.XXXX.SX.XXX.ADR.IS.N.M"]
[{"$f":"\"INN.\"&EIGNIR!$B$3&C9779","v":{"$error":"#N/A"}},{"$f":"'Afleiður og skortstöð - skuldir'!Q25","v":0},".M.SAFVAER.XX.ERS.XXX.XXXX.SX.XXX.ADR.IS.N.M"]
[{"$f":"\"INN.\"&EIGNIR!$B$3&C9780","v":{"$error":"#N/A"}},{"$f":"'Afleiður og skortstöð - skuldir'!Q26","v":0},".M.SAFVAER.XX.ERI.XXX.XXXX.SX.XXX.ADR.IS.N.M"]
[{"$f":"\"INN.\"&EIGNIR!$B$3&C9781","v":{"$error":"#N/A"}},{"$f":"'Afleiður og skortstöð - skuldir'!Q27","v":0},".M.SAFVAER.XX.ERP.XXX.XXXX.SX.XXX.ADR.IS.N.M"]
[{"$f":"\"INN.\"&EIGNIR!$B$3&C9782","v":{"$error":"#N/A"}},{"$f":"'Afleiður og skortstöð - skuldir'!Q28","v":0},".M.SAFVAER.XX.ERV.XXX.XXXX.SX.XXX.ADR.IS.N.M"]
[{"$f":"\"INN.\"&EIGNIR!$B$3&C9783","v":{"$error":"#N/A"}},{"$f":"'Afleiður og skortstöð - skuldir'!Q29","v":0},".M.SAFVAER.XX.ERF.XXX.XXXX.SX.XXX.ADR.IS.N.M"]
[{"$f":"\"INN.\"&EIGNIR!$B$3&C9784","v":{"$error":"#N/A"}},{"$f":"'Afleiður og skortstöð - skuldir'!Q30","v":0},".M.SAFVAER.XX.ERO.XXX.XXXX.SX.XXX.ADR.IS.N.M"]
[{"$f":"\"INN.\"&EIGNIR!$B$3&C9785","v":{"$error":"#N/A"}},{"$f":"'Afleiður og skortstöð - skuldir'!Q31","v":0},".M.SAFVAER.XX.ERA.XXX.XXXX.SX.XXX.ADR.IS.N.M"]
[{"$f":"\"INN.\"&EIGNIR!$B$3&C9786","v":{"$error":"#N/A"}},{"$f":"'Afleiður og skortstöð - skuldir'!Q32","v":0},".M.SAFFR$$.XX.$$$.XXX.XXXX.SX.XXX.ADR.IS.N.M"]
[{"$f":"\"INN.\"&EIGNIR!$B$3&C9787","v":{"$error":"#N/A"}},{"$f":"'Afleiður og skortstöð - skuldir'!Q33","v":0},".M.SAFFRIN.XX.ATV.XXX.XXXX.SX.XXX.ADR.IS.N.M"]
[{"$f":"\"INN.\"&EIGNIR!$B$3&C9788","v":{"$error":"#N/A"}},{"$f":"'Afleiður og skortstöð - skuldir'!Q34","v":0},".M.SAFFRIN.XX.FJA.XXX.XXXX.SX.XXX.ADR.IS.N.M"]
[{"$f":"\"INN.\"&EIGNIR!$B$3&C9789","v":{"$error":"#N/A"}},{"$f":"'Afleiður og skortstöð - skuldir'!Q35","v":0},".M.SAFFRIN.XX.INN.XXX.XXXX.SX.XXX.ADR.IS.N.M"]
[{"$f":"\"INN.\"&EIGNIR!$B$3&C9790","v":{"$error":"#N/A"}},{"$f":"'Afleiður og skortstöð - skuldir'!Q36","v":0},".M.SAFFRIN.XX.SLI.XXX.XXXX.SX.XXX.ADR.IS.N.M"]
[{"$f":"\"INN.\"&EIGNIR!$B$3&C9791","v":{"$error":"#N/A"}},{"$f":"'Afleiður og skortstöð - skuldir'!Q37","v":0},".M.SAFFRIN.XX.PEN.XXX.XXXX.SX.XXX.ADR.IS.N.M"]
[{"$f":"\"INN.\"&EIGNIR!$B$3&C9792","v":{"$error":"#N/A"}},{"$f":"'Afleiður og skortstöð - skuldir'!Q38","v":0},".M.SAFFRIN.XX.SJO.XXX.XXXX.SX.XXX.ADR.IS.N.M"]
[{"$f":"\"INN.\"&EIGNIR!$B$3&C9793","v":{"$error":"#N/A"}},{"$f":"'Afleiður og skortstöð - skuldir'!Q39","v":0},".M.SAFFRIN.XX.YFT.XXX.XXXX.SX.XXX.ADR.IS.N.M"]
[{"$f":"\"INN.\"&EIGNIR!$B$3&C9794","v":{"$error":"#N/A"}},{"$f":"'Afleiður og skortstöð - skuldir'!Q40","v":0},".M.SAFFRIN.XX.SLY.XXX.XXXX.SX.XXX.ADR.IS.N.M"]
[{"$f":"\"INN.\"&EIGNIR!$B$3&C9795","v":{"$error":"#N/A"}},{"$f":"'Afleiður og skortstöð - skuldir'!Q41","v":0},".M.SAFFRIN.XX.FHL.XXX.XXXX.SX.XXX.ADR.IS.N.M"]
[{"$f":"\"INN.\"&EIGNIR!$B$3&C9796","v":{"$error":"#N/A"}},{"$f":"'Afleiður og skortstöð - skuldir'!Q42","v":0},".M.SAFFRIN.XX.INF.XXX.XXXX.SX.XXX.ADR.IS.N.M"]
[{"$f":"\"INN.\"&EIGNIR!$B$3&C9797","v":{"$error":"#N/A"}},{"$f":"'Afleiður og skortstöð - skuldir'!Q43","v":0},".M.SAFFRIN.XX.TRY.XXX.XXXX.SX.XXX.ADR.IS.N.M"]
[{"$f":"\"INN.\"&EIGNIR!$B$3&C9798","v":{"$error":"#N/A"}},{"$f":"'Afleiður og skortstöð - skuldir'!Q44","v":0},".M.SAFFRIN.XX.LIF.XXX.XXXX.SX.XXX.ADR.IS.N.M"]
[{"$f":"\"INN.\"&EIGNIR!$B$3&C9799","v":{"$error":"#N/A"}},{"$f":"'Afleiður og skortstöð - skuldir'!Q45","v":0},".M.SAFFRIN.XX.OPI.XXX.XXXX.SX.XXX.ADR.IS.N.M"]
[{"$f":"\"INN.\"&EIGNIR!$B$3&C9800","v":{"$error":"#N/A"}},{"$f":"'Afleiður og skortstöð - skuldir'!Q46","v":0},".M.SAFFRIN.XX.RSS.XXX.XXXX.SX.XXX.ADR.IS.N.M"]
[{"$f":"\"INN.\"&EIGNIR!$B$3&C9801","v":{"$error":"#N/A"}},{"$f":"'Afleiður og skortstöð - skuldir'!Q47","v":0},".M.SAFFRIN.XX.BAJ.XXX.XXXX.SX.XXX.ADR.IS.N.M"]
[{"$f":"\"INN.\"&EIGNIR!$B$3&C9802","v":{"$error":"#N/A"}},{"$f":"'Afleiður og skortstöð - skuldir'!Q48","v":0},".M.SAFFRIN.XX.EIN.XXX.XXXX.SX.XXX.ADR.IS.N.M"]
[{"$f":"\"INN.\"&EIGNIR!$B$3&C9803","v":{"$error":"#N/A"}},{"$f":"'Afleiður og skortstöð - skuldir'!Q49","v":0},".M.SAFFRIN.XX.NPH.XXX.XXXX.SX.XXX.ADR.IS.N.M"]
[{"$f":"\"INN.\"&EIGNIR!$B$3&C9804","v":{"$error":"#N/A"}},{"$f":"'Afleiður og skortstöð - skuldir'!Q50","v":0},".M.SAFFRER.XX.ERL.XXX.XXXX.SX.XXX.ADR.IS.N.M"]
[{"$f":"\"INN.\"&EIGNIR!$B$3&C9805","v":{"$error":"#N/A"}},{"$f":"'Afleiður og skortstöð - skuldir'!Q51","v":0},".M.SAFFRER.XX.ERS.XXX.XXXX.SX.XXX.ADR.IS.N.M"]
[{"$f":"\"INN.\"&EIGNIR!$B$3&C9806","v":{"$error":"#N/A"}},{"$f":"'Afleiður og skortstöð - skuldir'!Q52","v":0},".M.SAFFRER.XX.ERI.XXX.XXXX.SX.XXX.ADR.IS.N.M"]
[{"$f":"\"INN.\"&EIGNIR!$B$3&C9807","v":{"$error":"#N/A"}},{"$f":"'Afleiður og skortstöð - skuldir'!Q53","v":0},".M.SAFFRER.XX.ERP.XXX.XXXX.SX.XXX.ADR.IS.N.M"]
[{"$f":"\"INN.\"&EIGNIR!$B$3&C9808","v":{"$error":"#N/A"}},{"$f":"'Afleiður og skortstöð - skuldir'!Q54","v":0},".M.SAFFRER.XX.ERV.XXX.XXXX.SX.XXX.ADR.IS.N.M"]
[{"$f":"\"INN.\"&EIGNIR!$B$3&C9809","v":{"$error":"#N/A"}},{"$f":"'Afleiður og skortstöð - skuldir'!Q55","v":0},".M.SAFFRER.XX.ERF.XXX.XXXX.SX.XXX.ADR.IS.N.M"]
[{"$f":"\"INN.\"&EIGNIR!$B$3&C9810","v":{"$error":"#N/A"}},{"$f":"'Afleiður og skortstöð - skuldir'!Q56","v":0},".M.SAFFRER.XX.ERO.XXX.XXXX.SX.XXX.ADR.IS.N.M"]
[{"$f":"\"INN.\"&EIGNIR!$B$3&C9811","v":{"$error":"#N/A"}},{"$f":"'Afleiður og skortstöð - skuldir'!Q57","v":0},".M.SAFFRER.XX.ERA.XXX.XXXX.SX.XXX.ADR.IS.N.M"]
[{"$f":"\"INN.\"&EIGNIR!$B$3&C9812","v":{"$error":"#N/A"}},{"$f":"'Afleiður og skortstöð - skuldir'!Q58","v":0},".M.SAFSK$$.XX.$$$.XXX.XXXX.SX.XXX.ADR.IS.N.M"]
[{"$f":"\"INN.\"&EIGNIR!$B$3&C9813","v":{"$error":"#N/A"}},{"$f":"'Afleiður og skortstöð - skuldir'!Q59","v":0},".M.SAFSKIN.XX.ATV.XXX.XXXX.SX.XXX.ADR.IS.N.M"]
[{"$f":"\"INN.\"&EIGNIR!$B$3&C9814","v":{"$error":"#N/A"}},{"$f":"'Afleiður og skortstöð - skuldir'!Q60","v":0},".M.SAFSKIN.XX.FJA.XXX.XXXX.SX.XXX.ADR.IS.N.M"]
[{"$f":"\"INN.\"&EIGNIR!$B$3&C9815","v":{"$error":"#N/A"}},{"$f":"'Afleiður og skortstöð - skuldir'!Q61","v":0},".M.SAFSKIN.XX.INN.XXX.XXXX.SX.XXX.ADR.IS.N.M"]
[{"$f":"\"INN.\"&EIGNIR!$B$3&C9816","v":{"$error":"#N/A"}},{"$f":"'Afleiður og skortstöð - skuldir'!Q62","v":0},".M.SAFSKIN.XX.SLI.XXX.XXXX.SX.XXX.ADR.IS.N.M"]
[{"$f":"\"INN.\"&EIGNIR!$B$3&C9817","v":{"$error":"#N/A"}},{"$f":"'Afleiður og skortstöð - skuldir'!Q63","v":0},".M.SAFSKIN.XX.PEN.XXX.XXXX.SX.XXX.ADR.IS.N.M"]
[{"$f":"\"INN.\"&EIGNIR!$B$3&C9818","v":{"$error":"#N/A"}},{"$f":"'Afleiður og skortstöð - skuldir'!Q64","v":0},".M.SAFSKIN.XX.SJO.XXX.XXXX.SX.XXX.ADR.IS.N.M"]
[{"$f":"\"INN.\"&EIGNIR!$B$3&C9819","v":{"$error":"#N/A"}},{"$f":"'Afleiður og skortstöð - skuldir'!Q65","v":0},".M.SAFSKIN.XX.YFT.XXX.XXXX.SX.XXX.ADR.IS.N.M"]
[{"$f":"\"INN.\"&EIGNIR!$B$3&C9820","v":{"$error":"#N/A"}},{"$f":"'Afleiður og skortstöð - skuldir'!Q66","v":0},".M.SAFSKIN.XX.SLY.XXX.XXXX.SX.XXX.ADR.IS.N.M"]
[{"$f":"\"INN.\"&EIGNIR!$B$3&C9821","v":{"$error":"#N/A"}},{"$f":"'Afleiður og skortstöð - skuldir'!Q67","v":0},".M.SAFSKIN.XX.FHL.XXX.XXXX.SX.XXX.ADR.IS.N.M"]
[{"$f":"\"INN.\"&EIGNIR!$B$3&C9822","v":{"$error":"#N/A"}},{"$f":"'Afleiður og skortstöð - skuldir'!Q68","v":0},".M.SAFSKIN.XX.INF.XXX.XXXX.SX.XXX.ADR.IS.N.M"]
[{"$f":"\"INN.\"&EIGNIR!$B$3&C9823","v":{"$error":"#N/A"}},{"$f":"'Afleiður og skortstöð - skuldir'!Q69","v":0},".M.SAFSKIN.XX.TRY.XXX.XXXX.SX.XXX.ADR.IS.N.M"]
[{"$f":"\"INN.\"&EIGNIR!$B$3&C9824","v":{"$error":"#N/A"}},{"$f":"'Afleiður og skortstöð - skuldir'!Q70","v":0},".M.SAFSKIN.XX.LIF.XXX.XXXX.SX.XXX.ADR.IS.N.M"]
[{"$f":"\"INN.\"&EIGNIR!$B$3&C9825","v":{"$error":"#N/A"}},{"$f":"'Afleiður og skortstöð - skuldir'!Q71","v":0},".M.SAFSKIN.XX.OPI.XXX.XXXX.SX.XXX.ADR.IS.N.M"]
[{"$f":"\"INN.\"&EIGNIR!$B$3&C9826","v":{"$error":"#N/A"}},{"$f":"'Afleiður og skortstöð - skuldir'!Q72","v":0},".M.SAFSKIN.XX.RSS.XXX.XXXX.SX.XXX.ADR.IS.N.M"]
[{"$f":"\"INN.\"&EIGNIR!$B$3&C9827","v":{"$error":"#N/A"}},{"$f":"'Afleiður og skortstöð - skuldir'!Q73","v":0},".M.SAFSKIN.XX.BAJ.XXX.XXXX.SX.XXX.ADR.IS.N.M"]
[{"$f":"\"INN.\"&EIGNIR!$B$3&C9828","v":{"$error":"#N/A"}},{"$f":"'Afleiður og skortstöð - skuldir'!Q74","v":0},".M.SAFSKIN.XX.EIN.XXX.XXXX.SX.XXX.ADR.IS.N.M"]
[{"$f":"\"INN.\"&EIGNIR!$B$3&C9829","v":{"$error":"#N/A"}},{"$f":"'Afleiður og skortstöð - skuldir'!Q75","v":0},".M.SAFSKIN.XX.NPH.XXX.XXXX.SX.XXX.ADR.IS.N.M"]
[{"$f":"\"INN.\"&EIGNIR!$B$3&C9830","v":{"$error":"#N/A"}},{"$f":"'Afleiður og skortstöð - skuldir'!Q76","v":0},".M.SAFSKER.XX.ERL.XXX.XXXX.SX.XXX.ADR.IS.N.M"]
[{"$f":"\"INN.\"&EIGNIR!$B$3&C9831","v":{"$error":"#N/A"}},{"$f":"'Afleiður og skortstöð - skuldir'!Q77","v":0},".M.SAFSKER.XX.ERS.XXX.XXXX.SX.XXX.ADR.IS.N.M"]
[{"$f":"\"INN.\"&EIGNIR!$B$3&C9832","v":{"$error":"#N/A"}},{"$f":"'Afleiður og skortstöð - skuldir'!Q78","v":0},".M.SAFSKER.XX.ERI.XXX.XXXX.SX.XXX.ADR.IS.N.M"]
[{"$f":"\"INN.\"&EIGNIR!$B$3&C9833","v":{"$error":"#N/A"}},{"$f":"'Afleiður og skortstöð - skuldir'!Q79","v":0},".M.SAFSKER.XX.ERP.XXX.XXXX.SX.XXX.ADR.IS.N.M"]
[{"$f":"\"INN.\"&EIGNIR!$B$3&C9834","v":{"$error":"#N/A"}},{"$f":"'Afleiður og skortstöð - skuldir'!Q80","v":0},".M.SAFSKER.XX.ERV.XXX.XXXX.SX.XXX.ADR.IS.N.M"]
[{"$f":"\"INN.\"&EIGNIR!$B$3&C9835","v":{"$error":"#N/A"}},{"$f":"'Afleiður og skortstöð - skuldir'!Q81","v":0},".M.SAFSKER.XX.ERF.XXX.XXXX.SX.XXX.ADR.IS.N.M"]
[{"$f":"\"INN.\"&EIGNIR!$B$3&C9836","v":{"$error":"#N/A"}},{"$f":"'Afleiður og skortstöð - skuldir'!Q82","v":0},".M.SAFSKER.XX.ERO.XXX.XXXX.SX.XXX.ADR.IS.N.M"]
[{"$f":"\"INN.\"&EIGNIR!$B$3&C9837","v":{"$error":"#N/A"}},{"$f":"'Afleiður og skortstöð - skuldir'!Q83","v":0},".M.SAFSKER.XX.ERA.XXX.XXXX.SX.XXX.ADR.IS.N.M"]
[{"$f":"\"INN.\"&EIGNIR!$B$3&C9838","v":{"$error":"#N/A"}},{"$f":"'Afleiður og skortstöð - skuldir'!Q84","v":0},".M.SAFSS$$.XX.$$$.XXX.XXXX.SX.XXX.ADR.IS.N.M"]
[{"$f":"\"INN.\"&EIGNIR!$B$3&C9839","v":{"$error":"#N/A"}},{"$f":"'Afleiður og skortstöð - skuldir'!Q85","v":0},".M.SAFSSIN.XX.ATV.XXX.XXXX.SX.XXX.ADR.IS.N.M"]
[{"$f":"\"INN.\"&EIGNIR!$B$3&C9840","v":{"$error":"#N/A"}},{"$f":"'Afleiður og skortstöð - skuldir'!Q86","v":0},".M.SAFSSIN.XX.FJA.XXX.XXXX.SX.XXX.ADR.IS.N.M"]
[{"$f":"\"INN.\"&EIGNIR!$B$3&C9841","v":{"$error":"#N/A"}},{"$f":"'Afleiður og skortstöð - skuldir'!Q87","v":0},".M.SAFSSIN.XX.INN.XXX.XXXX.SX.XXX.ADR.IS.N.M"]
[{"$f":"\"INN.\"&EIGNIR!$B$3&C9842","v":{"$error":"#N/A"}},{"$f":"'Afleiður og skortstöð - skuldir'!Q88","v":0},".M.SAFSSIN.XX.SLI.XXX.XXXX.SX.XXX.ADR.IS.N.M"]
[{"$f":"\"INN.\"&EIGNIR!$B$3&C9843","v":{"$error":"#N/A"}},{"$f":"'Afleiður og skortstöð - skuldir'!Q89","v":0},".M.SAFSSIN.XX.PEN.XXX.XXXX.SX.XXX.ADR.IS.N.M"]
[{"$f":"\"INN.\"&EIGNIR!$B$3&C9844","v":{"$error":"#N/A"}},{"$f":"'Afleiður og skortstöð - skuldir'!Q90","v":0},".M.SAFSSIN.XX.SJO.XXX.XXXX.SX.XXX.ADR.IS.N.M"]
[{"$f":"\"INN.\"&EIGNIR!$B$3&C9845","v":{"$error":"#N/A"}},{"$f":"'Afleiður og skortstöð - skuldir'!Q91","v":0},".M.SAFSSIN.XX.YFT.XXX.XXXX.SX.XXX.ADR.IS.N.M"]
[{"$f":"\"INN.\"&EIGNIR!$B$3&C9846","v":{"$error":"#N/A"}},{"$f":"'Afleiður og skortstöð - skuldir'!Q92","v":0},".M.SAFSSIN.XX.SLY.XXX.XXXX.SX.XXX.ADR.IS.N.M"]
[{"$f":"\"INN.\"&EIGNIR!$B$3&C9847","v":{"$error":"#N/A"}},{"$f":"'Afleiður og skortstöð - skuldir'!Q93","v":0},".M.SAFSSIN.XX.FHL.XXX.XXXX.SX.XXX.ADR.IS.N.M"]
[{"$f":"\"INN.\"&EIGNIR!$B$3&C9848","v":{"$error":"#N/A"}},{"$f":"'Afleiður og skortstöð - skuldir'!Q94","v":0},".M.SAFSSIN.XX.INF.XXX.XXXX.SX.XXX.ADR.IS.N.M"]
[{"$f":"\"INN.\"&EIGNIR!$B$3&C9849","v":{"$error":"#N/A"}},{"$f":"'Afleiður og skortstöð - skuldir'!Q95","v":0},".M.SAFSSIN.XX.TRY.XXX.XXXX.SX.XXX.ADR.IS.N.M"]
[{"$f":"\"INN.\"&EIGNIR!$B$3&C9850","v":{"$error":"#N/A"}},{"$f":"'Afleiður og skortstöð - skuldir'!Q96","v":0},".M.SAFSSIN.XX.LIF.XXX.XXXX.SX.XXX.ADR.IS.N.M"]
[{"$f":"\"INN.\"&EIGNIR!$B$3&C9851","v":{"$error":"#N/A"}},{"$f":"'Afleiður og skortstöð - skuldir'!Q97","v":0},".M.SAFSSIN.XX.OPI.XXX.XXXX.SX.XXX.ADR.IS.N.M"]
[{"$f":"\"INN.\"&EIGNIR!$B$3&C9852","v":{"$error":"#N/A"}},{"$f":"'Afleiður og skortstöð - skuldir'!Q98","v":0},".M.SAFSSIN.XX.RSS.XXX.XXXX.SX.XXX.ADR.IS.N.M"]
[{"$f":"\"INN.\"&EIGNIR!$B$3&C9853","v":{"$error":"#N/A"}},{"$f":"'Afleiður og skortstöð - skuldir'!Q99","v":0},".M.SAFSSIN.XX.BAJ.XXX.XXXX.SX.XXX.ADR.IS.N.M"]
[{"$f":"\"INN.\"&EIGNIR!$B$3&C9854","v":{"$error":"#N/A"}},{"$f":"'Afleiður og skortstöð - skuldir'!Q100","v":0},".M.SAFSSIN.XX.EIN.XXX.XXXX.SX.XXX.ADR.IS.N.M"]
[{"$f":"\"INN.\"&EIGNIR!$B$3&C9855","v":{"$error":"#N/A"}},{"$f":"'Afleiður og skortstöð - skuldir'!Q101","v":0},".M.SAFSSIN.XX.NPH.XXX.XXXX.SX.XXX.ADR.IS.N.M"]
[{"$f":"\"INN.\"&EIGNIR!$B$3&C9856","v":{"$error":"#N/A"}},{"$f":"'Afleiður og skortstöð - skuldir'!Q102","v":0},".M.SAFSSER.XX.ERL.XXX.XXXX.SX.XXX.ADR.IS.N.M"]
[{"$f":"\"INN.\"&EIGNIR!$B$3&C9857","v":{"$error":"#N/A"}},{"$f":"'Afleiður og skortstöð - skuldir'!Q103","v":0},".M.SAFSSER.XX.ERS.XXX.XXXX.SX.XXX.ADR.IS.N.M"]
[{"$f":"\"INN.\"&EIGNIR!$B$3&C9858","v":{"$error":"#N/A"}},{"$f":"'Afleiður og skortstöð - skuldir'!Q104","v":0},".M.SAFSSER.XX.ERI.XXX.XXXX.SX.XXX.ADR.IS.N.M"]
[{"$f":"\"INN.\"&EIGNIR!$B$3&C9859","v":{"$error":"#N/A"}},{"$f":"'Afleiður og skortstöð - skuldir'!Q105","v":0},".M.SAFSSER.XX.ERP.XXX.XXXX.SX.XXX.ADR.IS.N.M"]
[{"$f":"\"INN.\"&EIGNIR!$B$3&C9860","v":{"$error":"#N/A"}},{"$f":"'Afleiður og skortstöð - skuldir'!Q106","v":0},".M.SAFSSER.XX.ERV.XXX.XXXX.SX.XXX.ADR.IS.N.M"]
[{"$f":"\"INN.\"&EIGNIR!$B$3&C9861","v":{"$error":"#N/A"}},{"$f":"'Afleiður og skortstöð - skuldir'!Q107","v":0},".M.SAFSSER.XX.ERF.XXX.XXXX.SX.XXX.ADR.IS.N.M"]
[{"$f":"\"INN.\"&EIGNIR!$B$3&C9862","v":{"$error":"#N/A"}},{"$f":"'Afleiður og skortstöð - skuldir'!Q108","v":0},".M.SAFSSER.XX.ERO.XXX.XXXX.SX.XXX.ADR.IS.N.M"]
[{"$f":"\"INN.\"&EIGNIR!$B$3&C9863","v":{"$error":"#N/A"}},{"$f":"'Afleiður og skortstöð - skuldir'!Q109","v":0},".M.SAFSSER.XX.ERA.XXX.XXXX.SX.XXX.ADR.IS.N.M"]
[{"$f":"\"INN.\"&EIGNIR!$B$3&C9864","v":{"$error":"#N/A"}},{"$f":"'Afleiður og skortstöð - skuldir'!Q110","v":0},".M.SAFSSEH.XX.ERL.XXX.XXXX.SX.XXX.ADR.IS.N.M"]
[{"$f":"\"INN.\"&EIGNIR!$B$3&C9865","v":{"$error":"#N/A"}},{"$f":"'Afleiður og skortstöð - skuldir'!Q111","v":0},".M.SAFSSES.XX.ERL.XXX.XXXX.SX.SKT.ADR.IS.N.M"]
[{"$f":"\"INN.\"&EIGNIR!$B$3&C9866","v":{"$error":"#N/A"}},{"$f":"'Afleiður og skortstöð - skuldir'!Q112","v":0},".M.SAFSSES.XX.ERL.XXX.XXXX.SX.LAT.ADR.IS.N.M"]
[{"$f":"\"INN.\"&EIGNIR!$B$3&C9867","v":{"$error":"#N/A"}},{"$f":"'Sundurliðun Skuldabréf'!F8","v":0},".M.EVBSVVM.XX.LAB.$$$.XXXX.SV.XXX.XXX.IS.N.M","//Sundurliðun skuldabréf, Verðtryggð skuldabréf Samtals, Landbúnaður"]
[{"$f":"\"INN.\"&EIGNIR!$B$3&C9868","v":{"$error":"#N/A"}},{"$f":"'Sundurliðun Skuldabréf'!F9","v":0},".M.EVBSVVM.XX.SJA.$$$.XXXX.SV.XXX.XXX.IS.N.M"]
[{"$f":"\"INN.\"&EIGNIR!$B$3&C9869","v":{"$error":"#N/A"}},{"$f":"'Sundurliðun Skuldabréf'!F10","v":0},".M.EVBSVVM.XX.ILA.$$$.XXXX.SV.XXX.XXX.IS.N.M"]
[{"$f":"\"INN.\"&EIGNIR!$B$3&C9870","v":{"$error":"#N/A"}},{"$f":"'Sundurliðun Skuldabréf'!F11","v":0},".M.EVBSVVM.XX.ISJ.$$$.XXXX.SV.XXX.XXX.IS.N.M"]
[{"$f":"\"INN.\"&EIGNIR!$B$3&C9871","v":{"$error":"#N/A"}},{"$f":"'Sundurliðun Skuldabréf'!F12","v":0},".M.EVBSVVM.XX.IAN.$$$.XXXX.SV.XXX.XXX.IS.N.M"]
[{"$f":"\"INN.\"&EIGNIR!$B$3&C9872","v":{"$error":"#N/A"}},{"$f":"'Sundurliðun Skuldabréf'!F13","v":0},".M.EVBSVVM.XX.RAF.$$$.XXXX.SV.XXX.XXX.IS.N.M"]
[{"$f":"\"INN.\"&EIGNIR!$B$3&C9873","v":{"$error":"#N/A"}},{"$f":"'Sundurliðun Skuldabréf'!F14","v":0},".M.EVBSVVM.XX.MAN.$$$.XXXX.SV.XXX.XXX.IS.N.M"]
[{"$f":"\"INN.\"&EIGNIR!$B$3&C9874","v":{"$error":"#N/A"}},{"$f":"'Sundurliðun Skuldabréf'!F15","v":0},".M.EVBSVVM.XX.VEN.$$$.XXXX.SV.XXX.XXX.IS.N.M"]
[{"$f":"\"INN.\"&EIGNIR!$B$3&C9875","v":{"$error":"#N/A"}},{"$f":"'Sundurliðun Skuldabréf'!F16","v":0},".M.EVBSVVM.XX.SAG.$$$.XXXX.SV.XXX.XXX.IS.N.M"]
[{"$f":"\"INN.\"&EIGNIR!$B$3&C9876","v":{"$error":"#N/A"}},{"$f":"'Sundurliðun Skuldabréf'!F17","v":0},".M.EVBSVVM.XX.THF.$$$.XXXX.SV.XXX.XXX.IS.N.M"]
[{"$f":"\"INN.\"&EIGNIR!$B$3&C9877","v":{"$error":"#N/A"}},{"$f":"'Sundurliðun Skuldabréf'!F18","v":0},".M.EVBSVVM.XX.THH.$$$.XXXX.SV.XXX.XXX.IS.N.M"]
[{"$f":"\"INN.\"&EIGNIR!$B$3&C9878","v":{"$error":"#N/A"}},{"$f":"'Sundurliðun Skuldabréf'!F19","v":0},".M.EVBSVVM.XX.THA.$$$.XXXX.SV.XXX.XXX.IS.N.M"]
[{"$f":"\"INN.\"&EIGNIR!$B$3&C9879","v":{"$error":"#N/A"}},{"$f":"'Sundurliðun Skuldabréf'!F20","v":0},".M.EVBSVVM.XX.OFL.$$$.XXXX.SV.XXX.XXX.IS.N.M"]
[{"$f":"\"INN.\"&EIGNIR!$B$3&C9880","v":{"$error":"#N/A"}},{"$f":"'Sundurliðun Skuldabréf'!I8","v":0},".M.EVBSVVM.XX.LAB.XXX.XXXX.SV.XXX.ISK.IS.N.M","// í íslenskum krónum"]
[{"$f":"\"INN.\"&EIGNIR!$B$3&C9881","v":{"$error":"#N/A"}},{"$f":"'Sundurliðun Skuldabréf'!I9","v":0},".M.EVBSVVM.XX.SJA.XXX.XXXX.SV.XXX.ISK.IS.N.M"]
[{"$f":"\"INN.\"&EIGNIR!$B$3&C9882","v":{"$error":"#N/A"}},{"$f":"'Sundurliðun Skuldabréf'!I10","v":0},".M.EVBSVVM.XX.ILA.XXX.XXXX.SV.XXX.ISK.IS.N.M"]
[{"$f":"\"INN.\"&EIGNIR!$B$3&C9883","v":{"$error":"#N/A"}},{"$f":"'Sundurliðun Skuldabréf'!I11","v":0},".M.EVBSVVM.XX.ISJ.XXX.XXXX.SV.XXX.ISK.IS.N.M"]
[{"$f":"\"INN.\"&EIGNIR!$B$3&C9884","v":{"$error":"#N/A"}},{"$f":"'Sundurliðun Skuldabréf'!I12","v":0},".M.EVBSVVM.XX.IAN.XXX.XXXX.SV.XXX.ISK.IS.N.M"]
[{"$f":"\"INN.\"&EIGNIR!$B$3&C9885","v":{"$error":"#N/A"}},{"$f":"'Sundurliðun Skuldabréf'!I13","v":0},".M.EVBSVVM.XX.RAF.XXX.XXXX.SV.XXX.ISK.IS.N.M"]
[{"$f":"\"INN.\"&EIGNIR!$B$3&C9886","v":{"$error":"#N/A"}},{"$f":"'Sundurliðun Skuldabréf'!I14","v":0},".M.EVBSVVM.XX.MAN.XXX.XXXX.SV.XXX.ISK.IS.N.M"]
[{"$f":"\"INN.\"&EIGNIR!$B$3&C9887","v":{"$error":"#N/A"}},{"$f":"'Sundurliðun Skuldabréf'!I15","v":0},".M.EVBSVVM.XX.VEN.XXX.XXXX.SV.XXX.ISK.IS.N.M"]
[{"$f":"\"INN.\"&EIGNIR!$B$3&C9888","v":{"$error":"#N/A"}},{"$f":"'Sundurliðun Skuldabréf'!I16","v":0},".M.EVBSVVM.XX.SAG.XXX.XXXX.SV.XXX.ISK.IS.N.M"]
[{"$f":"\"INN.\"&EIGNIR!$B$3&C9889","v":{"$error":"#N/A"}},{"$f":"'Sundurliðun Skuldabréf'!I17","v":0},".M.EVBSVVM.XX.THF.XXX.XXXX.SV.XXX.ISK.IS.N.M"]
[{"$f":"\"INN.\"&EIGNIR!$B$3&C9890","v":{"$error":"#N/A"}},{"$f":"'Sundurliðun Skuldabréf'!I18","v":0},".M.EVBSVVM.XX.THH.XXX.XXXX.SV.XXX.ISK.IS.N.M"]
[{"$f":"\"INN.\"&EIGNIR!$B$3&C9891","v":{"$error":"#N/A"}},{"$f":"'Sundurliðun Skuldabréf'!I19","v":0},".M.EVBSVVM.XX.THA.XXX.XXXX.SV.XXX.ISK.IS.N.M"]
[{"$f":"\"INN.\"&EIGNIR!$B$3&C9892","v":{"$error":"#N/A"}},{"$f":"'Sundurliðun Skuldabréf'!I20","v":0},".M.EVBSVVM.XX.OFL.XXX.XXXX.SV.XXX.ISK.IS.N.M"]
[{"$f":"\"INN.\"&EIGNIR!$B$3&C9893","v":{"$error":"#N/A"}},{"$f":"'Sundurliðun Skuldabréf'!F47","v":0},".M.EVBSVOM.XX.LAB.$$$.XXXX.SX.LAT.XXX.IS.N.M","//Sundurliðun skuldabréf, Önnur markaðsskuldabréf > 1 ár, Samtals, Landbúnaður"]
[{"$f":"\"INN.\"&EIGNIR!$B$3&C9894","v":{"$error":"#N/A"}},{"$f":"'Sundurliðun Skuldabréf'!F48","v":0},".M.EVBSVOM.XX.SJA.$$$.XXXX.SX.LAT.XXX.IS.N.M"]
[{"$f":"\"INN.\"&EIGNIR!$B$3&C9895","v":{"$error":"#N/A"}},{"$f":"'Sundurliðun Skuldabréf'!F49","v":0},".M.EVBSVOM.XX.ILA.$$$.XXXX.SX.LAT.XXX.IS.N.M"]
[{"$f":"\"INN.\"&EIGNIR!$B$3&C9896","v":{"$error":"#N/A"}},{"$f":"'Sundurliðun Skuldabréf'!F50","v":0},".M.EVBSVOM.XX.ISJ.$$$.XXXX.SX.LAT.XXX.IS.N.M"]
[{"$f":"\"INN.\"&EIGNIR!$B$3&C9897","v":{"$error":"#N/A"}},{"$f":"'Sundurliðun Skuldabréf'!F51","v":0},".M.EVBSVOM.XX.IAN.$$$.XXXX.SX.LAT.XXX.IS.N.M"]
[{"$f":"\"INN.\"&EIGNIR!$B$3&C9898","v":{"$error":"#N/A"}},{"$f":"'Sundurliðun Skuldabréf'!F52","v":0},".M.EVBSVOM.XX.RAF.$$$.XXXX.SX.LAT.XXX.IS.N.M"]
[{"$f":"\"INN.\"&EIGNIR!$B$3&C9899","v":{"$error":"#N/A"}},{"$f":"'Sundurliðun Skuldabréf'!F53","v":0},".M.EVBSVOM.XX.MAN.$$$.XXXX.SX.LAT.XXX.IS.N.M"]
[{"$f":"\"INN.\"&EIGNIR!$B$3&C9900","v":{"$error":"#N/A"}},{"$f":"'Sundurliðun Skuldabréf'!F54","v":0},".M.EVBSVOM.XX.VEN.$$$.XXXX.SX.LAT.XXX.IS.N.M"]
[{"$f":"\"INN.\"&EIGNIR!$B$3&C9901","v":{"$error":"#N/A"}},{"$f":"'Sundurliðun Skuldabréf'!F55","v":0},".M.EVBSVOM.XX.SAG.$$$.XXXX.SX.LAT.XXX.IS.N.M"]
[{"$f":"\"INN.\"&EIGNIR!$B$3&C9902","v":{"$error":"#N/A"}},{"$f":"'Sundurliðun Skuldabréf'!F56","v":0},".M.EVBSVOM.XX.THF.$$$.XXXX.SX.LAT.XXX.IS.N.M"]
[{"$f":"\"INN.\"&EIGNIR!$B$3&C9903","v":{"$error":"#N/A"}},{"$f":"'Sundurliðun Skuldabréf'!F57","v":0},".M.EVBSVOM.XX.THH.$$$.XXXX.SX.LAT.XXX.IS.N.M"]
[{"$f":"\"INN.\"&EIGNIR!$B$3&C9904","v":{"$error":"#N/A"}},{"$f":"'Sundurliðun Skuldabréf'!F58","v":0},".M.EVBSVOM.XX.THA.$$$.XXXX.SX.LAT.XXX.IS.N.M"]
[{"$f":"\"INN.\"&EIGNIR!$B$3&C9905","v":{"$error":"#N/A"}},{"$f":"'Sundurliðun Skuldabréf'!F59","v":0},".M.EVBSVOM.XX.OFL.$$$.XXXX.SX.LAT.XXX.IS.N.M"]
[{"$f":"\"INN.\"&EIGNIR!$B$3&C9906","v":{"$error":"#N/A"}},{"$f":"'Sundurliðun Skuldabréf'!I47","v":0},".M.EVBSVOM.XX.LAB.XXX.XXXX.SX.LAT.ISK.IS.N.M","// í íslenskum krónum"]
[{"$f":"\"INN.\"&EIGNIR!$B$3&C9907","v":{"$error":"#N/A"}},{"$f":"'Sundurliðun Skuldabréf'!I48","v":0},".M.EVBSVOM.XX.SJA.XXX.XXXX.SX.LAT.ISK.IS.N.M"]
[{"$f":"\"INN.\"&EIGNIR!$B$3&C9908","v":{"$error":"#N/A"}},{"$f":"'Sundurliðun Skuldabréf'!I49","v":0},".M.EVBSVOM.XX.ILA.XXX.XXXX.SX.LAT.ISK.IS.N.M"]
[{"$f":"\"INN.\"&EIGNIR!$B$3&C9909","v":{"$error":"#N/A"}},{"$f":"'Sundurliðun Skuldabréf'!I50","v":0},".M.EVBSVOM.XX.ISJ.XXX.XXXX.SX.LAT.ISK.IS.N.M"]
[{"$f":"\"INN.\"&EIGNIR!$B$3&C9910","v":{"$error":"#N/A"}},{"$f":"'Sundurliðun Skuldabréf'!I51","v":0},".M.EVBSVOM.XX.IAN.XXX.XXXX.SX.LAT.ISK.IS.N.M"]
[{"$f":"\"INN.\"&EIGNIR!$B$3&C9911","v":{"$error":"#N/A"}},{"$f":"'Sundurliðun Skuldabréf'!I52","v":0},".M.EVBSVOM.XX.RAF.XXX.XXXX.SX.LAT.ISK.IS.N.M"]
[{"$f":"\"INN.\"&EIGNIR!$B$3&C9912","v":{"$error":"#N/A"}},{"$f":"'Sundurliðun Skuldabréf'!I53","v":0},".M.EVBSVOM.XX.MAN.XXX.XXXX.SX.LAT.ISK.IS.N.M"]
[{"$f":"\"INN.\"&EIGNIR!$B$3&C9913","v":{"$error":"#N/A"}},{"$f":"'Sundurliðun Skuldabréf'!I54","v":0},".M.EVBSVOM.XX.VEN.XXX.XXXX.SX.LAT.ISK.IS.N.M"]
[{"$f":"\"INN.\"&EIGNIR!$B$3&C9914","v":{"$error":"#N/A"}},{"$f":"'Sundurliðun Skuldabréf'!I55","v":0},".M.EVBSVOM.XX.SAG.XXX.XXXX.SX.LAT.ISK.IS.N.M"]
[{"$f":"\"INN.\"&EIGNIR!$B$3&C9915","v":{"$error":"#N/A"}},{"$f":"'Sundurliðun Skuldabréf'!I56","v":0},".M.EVBSVOM.XX.THF.XXX.XXXX.SX.LAT.ISK.IS.N.M"]
[{"$f":"\"INN.\"&EIGNIR!$B$3&C9916","v":{"$error":"#N/A"}},{"$f":"'Sundurliðun Skuldabréf'!I57","v":0},".M.EVBSVOM.XX.THH.XXX.XXXX.SX.LAT.ISK.IS.N.M"]
[{"$f":"\"INN.\"&EIGNIR!$B$3&C9917","v":{"$error":"#N/A"}},{"$f":"'Sundurliðun Skuldabréf'!I58","v":0},".M.EVBSVOM.XX.THA.XXX.XXXX.SX.LAT.ISK.IS.N.M"]
[{"$f":"\"INN.\"&EIGNIR!$B$3&C9918","v":{"$error":"#N/A"}},{"$f":"'Sundurliðun Skuldabréf'!I59","v":0},".M.EVBSVOM.XX.OFL.XXX.XXXX.SX.LAT.ISK.IS.N.M"]
[{"$f":"\"INN.\"&EIGNIR!$B$3&C9919","v":{"$error":"#N/A"}},{"$f":"'Sundurliðun Skuldabréf'!J47","v":0},".M.EVBSVOM.XX.LAB.XXX.XXXX.SX.LAT.EUR.IS.N.M","// í evrum"]
[{"$f":"\"INN.\"&EIGNIR!$B$3&C9920","v":{"$error":"#N/A"}},{"$f":"'Sundurliðun Skuldabréf'!J48","v":0},".M.EVBSVOM.XX.SJA.XXX.XXXX.SX.LAT.EUR.IS.N.M"]
[{"$f":"\"INN.\"&EIGNIR!$B$3&C9921","v":{"$error":"#N/A"}},{"$f":"'Sundurliðun Skuldabréf'!J49","v":0},".M.EVBSVOM.XX.ILA.XXX.XXXX.SX.LAT.EUR.IS.N.M"]
[{"$f":"\"INN.\"&EIGNIR!$B$3&C9922","v":{"$error":"#N/A"}},{"$f":"'Sundurliðun Skuldabréf'!J50","v":0},".M.EVBSVOM.XX.ISJ.XXX.XXXX.SX.LAT.EUR.IS.N.M"]
[{"$f":"\"INN.\"&EIGNIR!$B$3&C9923","v":{"$error":"#N/A"}},{"$f":"'Sundurliðun Skuldabréf'!J51","v":0},".M.EVBSVOM.XX.IAN.XXX.XXXX.SX.LAT.EUR.IS.N.M"]
[{"$f":"\"INN.\"&EIGNIR!$B$3&C9924","v":{"$error":"#N/A"}},{"$f":"'Sundurliðun Skuldabréf'!J52","v":0},".M.EVBSVOM.XX.RAF.XXX.XXXX.SX.LAT.EUR.IS.N.M"]
[{"$f":"\"INN.\"&EIGNIR!$B$3&C9925","v":{"$error":"#N/A"}},{"$f":"'Sundurliðun Skuldabréf'!J53","v":0},".M.EVBSVOM.XX.MAN.XXX.XXXX.SX.LAT.EUR.IS.N.M"]
[{"$f":"\"INN.\"&EIGNIR!$B$3&C9926","v":{"$error":"#N/A"}},{"$f":"'Sundurliðun Skuldabréf'!J54","v":0},".M.EVBSVOM.XX.VEN.XXX.XXXX.SX.LAT.EUR.IS.N.M"]
[{"$f":"\"INN.\"&EIGNIR!$B$3&C9927","v":{"$error":"#N/A"}},{"$f":"'Sundurliðun Skuldabréf'!J55","v":0},".M.EVBSVOM.XX.SAG.XXX.XXXX.SX.LAT.EUR.IS.N.M"]
[{"$f":"\"INN.\"&EIGNIR!$B$3&C9928","v":{"$error":"#N/A"}},{"$f":"'Sundurliðun Skuldabréf'!J56","v":0},".M.EVBSVOM.XX.THF.XXX.XXXX.SX.LAT.EUR.IS.N.M"]
[{"$f":"\"INN.\"&EIGNIR!$B$3&C9929","v":{"$error":"#N/A"}},{"$f":"'Sundurliðun Skuldabréf'!J57","v":0},".M.EVBSVOM.XX.THH.XXX.XXXX.SX.LAT.EUR.IS.N.M"]
[{"$f":"\"INN.\"&EIGNIR!$B$3&C9930","v":{"$error":"#N/A"}},{"$f":"'Sundurliðun Skuldabréf'!J58","v":0},".M.EVBSVOM.XX.THA.XXX.XXXX.SX.LAT.EUR.IS.N.M"]
[{"$f":"\"INN.\"&EIGNIR!$B$3&C9931","v":{"$error":"#N/A"}},{"$f":"'Sundurliðun Skuldabréf'!J59","v":0},".M.EVBSVOM.XX.OFL.XXX.XXXX.SX.LAT.EUR.IS.N.M"]
[{"$f":"\"INN.\"&EIGNIR!$B$3&C9932","v":{"$error":"#N/A"}},{"$f":"'Sundurliðun Skuldabréf'!K47","v":0},".M.EVBSVOM.XX.LAB.XXX.XXXX.SX.LAT.USD.IS.N.M","// í bandarískum dollurum"]
[{"$f":"\"INN.\"&EIGNIR!$B$3&C9933","v":{"$error":"#N/A"}},{"$f":"'Sundurliðun Skuldabréf'!K48","v":0},".M.EVBSVOM.XX.SJA.XXX.XXXX.SX.LAT.USD.IS.N.M"]
[{"$f":"\"INN.\"&EIGNIR!$B$3&C9934","v":{"$error":"#N/A"}},{"$f":"'Sundurliðun Skuldabréf'!K49","v":0},".M.EVBSVOM.XX.ILA.XXX.XXXX.SX.LAT.USD.IS.N.M"]
[{"$f":"\"INN.\"&EIGNIR!$B$3&C9935","v":{"$error":"#N/A"}},{"$f":"'Sundurliðun Skuldabréf'!K50","v":0},".M.EVBSVOM.XX.ISJ.XXX.XXXX.SX.LAT.USD.IS.N.M"]
[{"$f":"\"INN.\"&EIGNIR!$B$3&C9936","v":{"$error":"#N/A"}},{"$f":"'Sundurliðun Skuldabréf'!K51","v":0},".M.EVBSVOM.XX.IAN.XXX.XXXX.SX.LAT.USD.IS.N.M"]
[{"$f":"\"INN.\"&EIGNIR!$B$3&C9937","v":{"$error":"#N/A"}},{"$f":"'Sundurliðun Skuldabréf'!K52","v":0},".M.EVBSVOM.XX.RAF.XXX.XXXX.SX.LAT.USD.IS.N.M"]
[{"$f":"\"INN.\"&EIGNIR!$B$3&C9938","v":{"$error":"#N/A"}},{"$f":"'Sundurliðun Skuldabréf'!K53","v":0},".M.EVBSVOM.XX.MAN.XXX.XXXX.SX.LAT.USD.IS.N.M"]
[{"$f":"\"INN.\"&EIGNIR!$B$3&C9939","v":{"$error":"#N/A"}},{"$f":"'Sundurliðun Skuldabréf'!K54","v":0},".M.EVBSVOM.XX.VEN.XXX.XXXX.SX.LAT.USD.IS.N.M"]
[{"$f":"\"INN.\"&EIGNIR!$B$3&C9940","v":{"$error":"#N/A"}},{"$f":"'Sundurliðun Skuldabréf'!K55","v":0},".M.EVBSVOM.XX.SAG.XXX.XXXX.SX.LAT.USD.IS.N.M"]
[{"$f":"\"INN.\"&EIGNIR!$B$3&C9941","v":{"$error":"#N/A"}},{"$f":"'Sundurliðun Skuldabréf'!K56","v":0},".M.EVBSVOM.XX.THF.XXX.XXXX.SX.LAT.USD.IS.N.M"]
[{"$f":"\"INN.\"&EIGNIR!$B$3&C9942","v":{"$error":"#N/A"}},{"$f":"'Sundurliðun Skuldabréf'!K57","v":0},".M.EVBSVOM.XX.THH.XXX.XXXX.SX.LAT.USD.IS.N.M"]
[{"$f":"\"INN.\"&EIGNIR!$B$3&C9943","v":{"$error":"#N/A"}},{"$f":"'Sundurliðun Skuldabréf'!K58","v":0},".M.EVBSVOM.XX.THA.XXX.XXXX.SX.LAT.USD.IS.N.M"]
[{"$f":"\"INN.\"&EIGNIR!$B$3&C9944","v":{"$error":"#N/A"}},{"$f":"'Sundurliðun Skuldabréf'!K59","v":0},".M.EVBSVOM.XX.OFL.XXX.XXXX.SX.LAT.USD.IS.N.M"]
[{"$f":"\"INN.\"&EIGNIR!$B$3&C9945","v":{"$error":"#N/A"}},{"$f":"'Sundurliðun Skuldabréf'!L47","v":0},".M.EVBSVOM.XX.LAB.XXX.XXXX.SX.LAT.GBP.IS.N.M","// í sterlingspundum"]
[{"$f":"\"INN.\"&EIGNIR!$B$3&C9946","v":{"$error":"#N/A"}},{"$f":"'Sundurliðun Skuldabréf'!L48","v":0},".M.EVBSVOM.XX.SJA.XXX.XXXX.SX.LAT.GBP.IS.N.M"]
[{"$f":"\"INN.\"&EIGNIR!$B$3&C9947","v":{"$error":"#N/A"}},{"$f":"'Sundurliðun Skuldabréf'!L49","v":0},".M.EVBSVOM.XX.ILA.XXX.XXXX.SX.LAT.GBP.IS.N.M"]
[{"$f":"\"INN.\"&EIGNIR!$B$3&C9948","v":{"$error":"#N/A"}},{"$f":"'Sundurliðun Skuldabréf'!L50","v":0},".M.EVBSVOM.XX.ISJ.XXX.XXXX.SX.LAT.GBP.IS.N.M"]
[{"$f":"\"INN.\"&EIGNIR!$B$3&C9949","v":{"$error":"#N/A"}},{"$f":"'Sundurliðun Skuldabréf'!L51","v":0},".M.EVBSVOM.XX.IAN.XXX.XXXX.SX.LAT.GBP.IS.N.M"]
[{"$f":"\"INN.\"&EIGNIR!$B$3&C9950","v":{"$error":"#N/A"}},{"$f":"'Sundurliðun Skuldabréf'!L52","v":0},".M.EVBSVOM.XX.RAF.XXX.XXXX.SX.LAT.GBP.IS.N.M"]
[{"$f":"\"INN.\"&EIGNIR!$B$3&C9951","v":{"$error":"#N/A"}},{"$f":"'Sundurliðun Skuldabréf'!L53","v":0},".M.EVBSVOM.XX.MAN.XXX.XXXX.SX.LAT.GBP.IS.N.M"]
[{"$f":"\"INN.\"&EIGNIR!$B$3&C9952","v":{"$error":"#N/A"}},{"$f":"'Sundurliðun Skuldabréf'!L54","v":0},".M.EVBSVOM.XX.VEN.XXX.XXXX.SX.LAT.GBP.IS.N.M"]
[{"$f":"\"INN.\"&EIGNIR!$B$3&C9953","v":{"$error":"#N/A"}},{"$f":"'Sundurliðun Skuldabréf'!L55","v":0},".M.EVBSVOM.XX.SAG.XXX.XXXX.SX.LAT.GBP.IS.N.M"]
[{"$f":"\"INN.\"&EIGNIR!$B$3&C9954","v":{"$error":"#N/A"}},{"$f":"'Sundurliðun Skuldabréf'!L56","v":0},".M.EVBSVOM.XX.THF.XXX.XXXX.SX.LAT.GBP.IS.N.M"]
[{"$f":"\"INN.\"&EIGNIR!$B$3&C9955","v":{"$error":"#N/A"}},{"$f":"'Sundurliðun Skuldabréf'!L57","v":0},".M.EVBSVOM.XX.THH.XXX.XXXX.SX.LAT.GBP.IS.N.M"]
[{"$f":"\"INN.\"&EIGNIR!$B$3&C9956","v":{"$error":"#N/A"}},{"$f":"'Sundurliðun Skuldabréf'!L58","v":0},".M.EVBSVOM.XX.THA.XXX.XXXX.SX.LAT.GBP.IS.N.M"]
[{"$f":"\"INN.\"&EIGNIR!$B$3&C9957","v":{"$error":"#N/A"}},{"$f":"'Sundurliðun Skuldabréf'!L59","v":0},".M.EVBSVOM.XX.OFL.XXX.XXXX.SX.LAT.GBP.IS.N.M"]
[{"$f":"\"INN.\"&EIGNIR!$B$3&C9958","v":{"$error":"#N/A"}},{"$f":"'Sundurliðun Skuldabréf'!M47","v":0},".M.EVBSVOM.XX.LAB.XXX.XXXX.SX.LAT.JPY.IS.N.M","// í japönskum jenum"]
[{"$f":"\"INN.\"&EIGNIR!$B$3&C9959","v":{"$error":"#N/A"}},{"$f":"'Sundurliðun Skuldabréf'!M48","v":0},".M.EVBSVOM.XX.SJA.XXX.XXXX.SX.LAT.JPY.IS.N.M"]
[{"$f":"\"INN.\"&EIGNIR!$B$3&C9960","v":{"$error":"#N/A"}},{"$f":"'Sundurliðun Skuldabréf'!M49","v":0},".M.EVBSVOM.XX.ILA.XXX.XXXX.SX.LAT.JPY.IS.N.M"]
[{"$f":"\"INN.\"&EIGNIR!$B$3&C9961","v":{"$error":"#N/A"}},{"$f":"'Sundurliðun Skuldabréf'!M50","v":0},".M.EVBSVOM.XX.ISJ.XXX.XXXX.SX.LAT.JPY.IS.N.M"]
[{"$f":"\"INN.\"&EIGNIR!$B$3&C9962","v":{"$error":"#N/A"}},{"$f":"'Sundurliðun Skuldabréf'!M51","v":0},".M.EVBSVOM.XX.IAN.XXX.XXXX.SX.LAT.JPY.IS.N.M"]
[{"$f":"\"INN.\"&EIGNIR!$B$3&C9963","v":{"$error":"#N/A"}},{"$f":"'Sundurliðun Skuldabréf'!M52","v":0},".M.EVBSVOM.XX.RAF.XXX.XXXX.SX.LAT.JPY.IS.N.M"]
[{"$f":"\"INN.\"&EIGNIR!$B$3&C9964","v":{"$error":"#N/A"}},{"$f":"'Sundurliðun Skuldabréf'!M53","v":0},".M.EVBSVOM.XX.MAN.XXX.XXXX.SX.LAT.JPY.IS.N.M"]
[{"$f":"\"INN.\"&EIGNIR!$B$3&C9965","v":{"$error":"#N/A"}},{"$f":"'Sundurliðun Skuldabréf'!M54","v":0},".M.EVBSVOM.XX.VEN.XXX.XXXX.SX.LAT.JPY.IS.N.M"]
[{"$f":"\"INN.\"&EIGNIR!$B$3&C9966","v":{"$error":"#N/A"}},{"$f":"'Sundurliðun Skuldabréf'!M55","v":0},".M.EVBSVOM.XX.SAG.XXX.XXXX.SX.LAT.JPY.IS.N.M"]
[{"$f":"\"INN.\"&EIGNIR!$B$3&C9967","v":{"$error":"#N/A"}},{"$f":"'Sundurliðun Skuldabréf'!M56","v":0},".M.EVBSVOM.XX.THF.XXX.XXXX.SX.LAT.JPY.IS.N.M"]
[{"$f":"\"INN.\"&EIGNIR!$B$3&C9968","v":{"$error":"#N/A"}},{"$f":"'Sundurliðun Skuldabréf'!M57","v":0},".M.EVBSVOM.XX.THH.XXX.XXXX.SX.LAT.JPY.IS.N.M"]
[{"$f":"\"INN.\"&EIGNIR!$B$3&C9969","v":{"$error":"#N/A"}},{"$f":"'Sundurliðun Skuldabréf'!M58","v":0},".M.EVBSVOM.XX.THA.XXX.XXXX.SX.LAT.JPY.IS.N.M"]
[{"$f":"\"INN.\"&EIGNIR!$B$3&C9970","v":{"$error":"#N/A"}},{"$f":"'Sundurliðun Skuldabréf'!M59","v":0},".M.EVBSVOM.XX.OFL.XXX.XXXX.SX.LAT.JPY.IS.N.M"]
[{"$f":"\"INN.\"&EIGNIR!$B$3&C9971","v":{"$error":"#N/A"}},{"$f":"'Sundurliðun Skuldabréf'!N47","v":0},".M.EVBSVOM.XX.LAB.XXX.XXXX.SX.LAT.DKK.IS.N.M","// í dönskum krónum"]
[{"$f":"\"INN.\"&EIGNIR!$B$3&C9972","v":{"$error":"#N/A"}},{"$f":"'Sundurliðun Skuldabréf'!N48","v":0},".M.EVBSVOM.XX.SJA.XXX.XXXX.SX.LAT.DKK.IS.N.M"]
[{"$f":"\"INN.\"&EIGNIR!$B$3&C9973","v":{"$error":"#N/A"}},{"$f":"'Sundurliðun Skuldabréf'!N49","v":0},".M.EVBSVOM.XX.ILA.XXX.XXXX.SX.LAT.DKK.IS.N.M"]
[{"$f":"\"INN.\"&EIGNIR!$B$3&C9974","v":{"$error":"#N/A"}},{"$f":"'Sundurliðun Skuldabréf'!N50","v":0},".M.EVBSVOM.XX.ISJ.XXX.XXXX.SX.LAT.DKK.IS.N.M"]
[{"$f":"\"INN.\"&EIGNIR!$B$3&C9975","v":{"$error":"#N/A"}},{"$f":"'Sundurliðun Skuldabréf'!N51","v":0},".M.EVBSVOM.XX.IAN.XXX.XXXX.SX.LAT.DKK.IS.N.M"]
[{"$f":"\"INN.\"&EIGNIR!$B$3&C9976","v":{"$error":"#N/A"}},{"$f":"'Sundurliðun Skuldabréf'!N52","v":0},".M.EVBSVOM.XX.RAF.XXX.XXXX.SX.LAT.DKK.IS.N.M"]
[{"$f":"\"INN.\"&EIGNIR!$B$3&C9977","v":{"$error":"#N/A"}},{"$f":"'Sundurliðun Skuldabréf'!N53","v":0},".M.EVBSVOM.XX.MAN.XXX.XXXX.SX.LAT.DKK.IS.N.M"]
[{"$f":"\"INN.\"&EIGNIR!$B$3&C9978","v":{"$error":"#N/A"}},{"$f":"'Sundurliðun Skuldabréf'!N54","v":0},".M.EVBSVOM.XX.VEN.XXX.XXXX.SX.LAT.DKK.IS.N.M"]
[{"$f":"\"INN.\"&EIGNIR!$B$3&C9979","v":{"$error":"#N/A"}},{"$f":"'Sundurliðun Skuldabréf'!N55","v":0},".M.EVBSVOM.XX.SAG.XXX.XXXX.SX.LAT.DKK.IS.N.M"]
[{"$f":"\"INN.\"&EIGNIR!$B$3&C9980","v":{"$error":"#N/A"}},{"$f":"'Sundurliðun Skuldabréf'!N56","v":0},".M.EVBSVOM.XX.THF.XXX.XXXX.SX.LAT.DKK.IS.N.M"]
[{"$f":"\"INN.\"&EIGNIR!$B$3&C9981","v":{"$error":"#N/A"}},{"$f":"'Sundurliðun Skuldabréf'!N57","v":0},".M.EVBSVOM.XX.THH.XXX.XXXX.SX.LAT.DKK.IS.N.M"]
[{"$f":"\"INN.\"&EIGNIR!$B$3&C9982","v":{"$error":"#N/A"}},{"$f":"'Sundurliðun Skuldabréf'!N58","v":0},".M.EVBSVOM.XX.THA.XXX.XXXX.SX.LAT.DKK.IS.N.M"]
[{"$f":"\"INN.\"&EIGNIR!$B$3&C9983","v":{"$error":"#N/A"}},{"$f":"'Sundurliðun Skuldabréf'!N59","v":0},".M.EVBSVOM.XX.OFL.XXX.XXXX.SX.LAT.DKK.IS.N.M"]
[{"$f":"\"INN.\"&EIGNIR!$B$3&C9984","v":{"$error":"#N/A"}},{"$f":"'Sundurliðun Skuldabréf'!O47","v":0},".M.EVBSVOM.XX.LAB.XXX.XXXX.SX.LAT.NOK.IS.N.M","// í norskum krónum"]
[{"$f":"\"INN.\"&EIGNIR!$B$3&C9985","v":{"$error":"#N/A"}},{"$f":"'Sundurliðun Skuldabréf'!O48","v":0},".M.EVBSVOM.XX.SJA.XXX.XXXX.SX.LAT.NOK.IS.N.M"]
[{"$f":"\"INN.\"&EIGNIR!$B$3&C9986","v":{"$error":"#N/A"}},{"$f":"'Sundurliðun Skuldabréf'!O49","v":0},".M.EVBSVOM.XX.ILA.XXX.XXXX.SX.LAT.NOK.IS.N.M"]
[{"$f":"\"INN.\"&EIGNIR!$B$3&C9987","v":{"$error":"#N/A"}},{"$f":"'Sundurliðun Skuldabréf'!O50","v":0},".M.EVBSVOM.XX.ISJ.XXX.XXXX.SX.LAT.NOK.IS.N.M"]
[{"$f":"\"INN.\"&EIGNIR!$B$3&C9988","v":{"$error":"#N/A"}},{"$f":"'Sundurliðun Skuldabréf'!O51","v":0},".M.EVBSVOM.XX.IAN.XXX.XXXX.SX.LAT.NOK.IS.N.M"]
[{"$f":"\"INN.\"&EIGNIR!$B$3&C9989","v":{"$error":"#N/A"}},{"$f":"'Sundurliðun Skuldabréf'!O52","v":0},".M.EVBSVOM.XX.RAF.XXX.XXXX.SX.LAT.NOK.IS.N.M"]
[{"$f":"\"INN.\"&EIGNIR!$B$3&C9990","v":{"$error":"#N/A"}},{"$f":"'Sundurliðun Skuldabréf'!O53","v":0},".M.EVBSVOM.XX.MAN.XXX.XXXX.SX.LAT.NOK.IS.N.M"]
[{"$f":"\"INN.\"&EIGNIR!$B$3&C9991","v":{"$error":"#N/A"}},{"$f":"'Sundurliðun Skuldabréf'!O54","v":0},".M.EVBSVOM.XX.VEN.XXX.XXXX.SX.LAT.NOK.IS.N.M"]
[{"$f":"\"INN.\"&EIGNIR!$B$3&C9992","v":{"$error":"#N/A"}},{"$f":"'Sundurliðun Skuldabréf'!O55","v":0},".M.EVBSVOM.XX.SAG.XXX.XXXX.SX.LAT.NOK.IS.N.M"]
[{"$f":"\"INN.\"&EIGNIR!$B$3&C9993","v":{"$error":"#N/A"}},{"$f":"'Sundurliðun Skuldabréf'!O56","v":0},".M.EVBSVOM.XX.THF.XXX.XXXX.SX.LAT.NOK.IS.N.M"]
[{"$f":"\"INN.\"&EIGNIR!$B$3&C9994","v":{"$error":"#N/A"}},{"$f":"'Sundurliðun Skuldabréf'!O57","v":0},".M.EVBSVOM.XX.THH.XXX.XXXX.SX.LAT.NOK.IS.N.M"]
[{"$f":"\"INN.\"&EIGNIR!$B$3&C9995","v":{"$error":"#N/A"}},{"$f":"'Sundurliðun Skuldabréf'!O58","v":0},".M.EVBSVOM.XX.THA.XXX.XXXX.SX.LAT.NOK.IS.N.M"]
[{"$f":"\"INN.\"&EIGNIR!$B$3&C9996","v":{"$error":"#N/A"}},{"$f":"'Sundurliðun Skuldabréf'!O59","v":0},".M.EVBSVOM.XX.OFL.XXX.XXXX.SX.LAT.NOK.IS.N.M"]
[{"$f":"\"INN.\"&EIGNIR!$B$3&C9997","v":{"$error":"#N/A"}},{"$f":"'Sundurliðun Skuldabréf'!P47","v":0},".M.EVBSVOM.XX.LAB.XXX.XXXX.SX.LAT.SEK.IS.N.M","// í sænskum krónum"]
[{"$f":"\"INN.\"&EIGNIR!$B$3&C9998","v":{"$error":"#N/A"}},{"$f":"'Sundurliðun Skuldabréf'!P48","v":0},".M.EVBSVOM.XX.SJA.XXX.XXXX.SX.LAT.SEK.IS.N.M"]
[{"$f":"\"INN.\"&EIGNIR!$B$3&C9999","v":{"$error":"#N/A"}},{"$f":"'Sundurliðun Skuldabréf'!P49","v":0},".M.EVBSVOM.XX.ILA.XXX.XXXX.SX.LAT.SEK.IS.N.M"]
[{"$f":"\"INN.\"&EIGNIR!$B$3&C10000","v":{"$error":"#N/A"}},{"$f":"'Sundurliðun Skuldabréf'!P50","v":0},".M.EVBSVOM.XX.ISJ.XXX.XXXX.SX.LAT.SEK.IS.N.M"]
[{"$f":"\"INN.\"&EIGNIR!$B$3&C10001","v":{"$error":"#N/A"}},{"$f":"'Sundurliðun Skuldabréf'!P51","v":0},".M.EVBSVOM.XX.IAN.XXX.XXXX.SX.LAT.SEK.IS.N.M"]
[{"$f":"\"INN.\"&EIGNIR!$B$3&C10002","v":{"$error":"#N/A"}},{"$f":"'Sundurliðun Skuldabréf'!P52","v":0},".M.EVBSVOM.XX.RAF.XXX.XXXX.SX.LAT.SEK.IS.N.M"]
[{"$f":"\"INN.\"&EIGNIR!$B$3&C10003","v":{"$error":"#N/A"}},{"$f":"'Sundurliðun Skuldabréf'!P53","v":0},".M.EVBSVOM.XX.MAN.XXX.XXXX.SX.LAT.SEK.IS.N.M"]
[{"$f":"\"INN.\"&EIGNIR!$B$3&C10004","v":{"$error":"#N/A"}},{"$f":"'Sundurliðun Skuldabréf'!P54","v":0},".M.EVBSVOM.XX.VEN.XXX.XXXX.SX.LAT.SEK.IS.N.M"]
[{"$f":"\"INN.\"&EIGNIR!$B$3&C10005","v":{"$error":"#N/A"}},{"$f":"'Sundurliðun Skuldabréf'!P55","v":0},".M.EVBSVOM.XX.SAG.XXX.XXXX.SX.LAT.SEK.IS.N.M"]
[{"$f":"\"INN.\"&EIGNIR!$B$3&C10006","v":{"$error":"#N/A"}},{"$f":"'Sundurliðun Skuldabréf'!P56","v":0},".M.EVBSVOM.XX.THF.XXX.XXXX.SX.LAT.SEK.IS.N.M"]
[{"$f":"\"INN.\"&EIGNIR!$B$3&C10007","v":{"$error":"#N/A"}},{"$f":"'Sundurliðun Skuldabréf'!P57","v":0},".M.EVBSVOM.XX.THH.XXX.XXXX.SX.LAT.SEK.IS.N.M"]
[{"$f":"\"INN.\"&EIGNIR!$B$3&C10008","v":{"$error":"#N/A"}},{"$f":"'Sundurliðun Skuldabréf'!P58","v":0},".M.EVBSVOM.XX.THA.XXX.XXXX.SX.LAT.SEK.IS.N.M"]
[{"$f":"\"INN.\"&EIGNIR!$B$3&C10009","v":{"$error":"#N/A"}},{"$f":"'Sundurliðun Skuldabréf'!P59","v":0},".M.EVBSVOM.XX.OFL.XXX.XXXX.SX.LAT.SEK.IS.N.M"]
[{"$f":"\"INN.\"&EIGNIR!$B$3&C10010","v":{"$error":"#N/A"}},{"$f":"'Sundurliðun Skuldabréf'!Q47","v":0},".M.EVBSVOM.XX.LAB.XXX.XXXX.SX.LAT.CHF.IS.N.M","// í svissneskum frönkum"]
[{"$f":"\"INN.\"&EIGNIR!$B$3&C10011","v":{"$error":"#N/A"}},{"$f":"'Sundurliðun Skuldabréf'!Q48","v":0},".M.EVBSVOM.XX.SJA.XXX.XXXX.SX.LAT.CHF.IS.N.M"]
[{"$f":"\"INN.\"&EIGNIR!$B$3&C10012","v":{"$error":"#N/A"}},{"$f":"'Sundurliðun Skuldabréf'!Q49","v":0},".M.EVBSVOM.XX.ILA.XXX.XXXX.SX.LAT.CHF.IS.N.M"]
[{"$f":"\"INN.\"&EIGNIR!$B$3&C10013","v":{"$error":"#N/A"}},{"$f":"'Sundurliðun Skuldabréf'!Q50","v":0},".M.EVBSVOM.XX.ISJ.XXX.XXXX.SX.LAT.CHF.IS.N.M"]
[{"$f":"\"INN.\"&EIGNIR!$B$3&C10014","v":{"$error":"#N/A"}},{"$f":"'Sundurliðun Skuldabréf'!Q51","v":0},".M.EVBSVOM.XX.IAN.XXX.XXXX.SX.LAT.CHF.IS.N.M"]
[{"$f":"\"INN.\"&EIGNIR!$B$3&C10015","v":{"$error":"#N/A"}},{"$f":"'Sundurliðun Skuldabréf'!Q52","v":0},".M.EVBSVOM.XX.RAF.XXX.XXXX.SX.LAT.CHF.IS.N.M"]
[{"$f":"\"INN.\"&EIGNIR!$B$3&C10016","v":{"$error":"#N/A"}},{"$f":"'Sundurliðun Skuldabréf'!Q53","v":0},".M.EVBSVOM.XX.MAN.XXX.XXXX.SX.LAT.CHF.IS.N.M"]
[{"$f":"\"INN.\"&EIGNIR!$B$3&C10017","v":{"$error":"#N/A"}},{"$f":"'Sundurliðun Skuldabréf'!Q54","v":0},".M.EVBSVOM.XX.VEN.XXX.XXXX.SX.LAT.CHF.IS.N.M"]
[{"$f":"\"INN.\"&EIGNIR!$B$3&C10018","v":{"$error":"#N/A"}},{"$f":"'Sundurliðun Skuldabréf'!Q55","v":0},".M.EVBSVOM.XX.SAG.XXX.XXXX.SX.LAT.CHF.IS.N.M"]
[{"$f":"\"INN.\"&EIGNIR!$B$3&C10019","v":{"$error":"#N/A"}},{"$f":"'Sundurliðun Skuldabréf'!Q56","v":0},".M.EVBSVOM.XX.THF.XXX.XXXX.SX.LAT.CHF.IS.N.M"]
[{"$f":"\"INN.\"&EIGNIR!$B$3&C10020","v":{"$error":"#N/A"}},{"$f":"'Sundurliðun Skuldabréf'!Q57","v":0},".M.EVBSVOM.XX.THH.XXX.XXXX.SX.LAT.CHF.IS.N.M"]
[{"$f":"\"INN.\"&EIGNIR!$B$3&C10021","v":{"$error":"#N/A"}},{"$f":"'Sundurliðun Skuldabréf'!Q58","v":0},".M.EVBSVOM.XX.THA.XXX.XXXX.SX.LAT.CHF.IS.N.M"]
[{"$f":"\"INN.\"&EIGNIR!$B$3&C10022","v":{"$error":"#N/A"}},{"$f":"'Sundurliðun Skuldabréf'!Q59","v":0},".M.EVBSVOM.XX.OFL.XXX.XXXX.SX.LAT.CHF.IS.N.M"]
[{"$f":"\"INN.\"&EIGNIR!$B$3&C10023","v":{"$error":"#N/A"}},{"$f":"'Sundurliðun Skuldabréf'!R47","v":0},".M.EVBSVOM.XX.LAB.XXX.XXXX.SX.LAT.ADR.IS.N.M","// í öðrum gjaldmiðlum"]
[{"$f":"\"INN.\"&EIGNIR!$B$3&C10024","v":{"$error":"#N/A"}},{"$f":"'Sundurliðun Skuldabréf'!R48","v":0},".M.EVBSVOM.XX.SJA.XXX.XXXX.SX.LAT.ADR.IS.N.M"]
[{"$f":"\"INN.\"&EIGNIR!$B$3&C10025","v":{"$error":"#N/A"}},{"$f":"'Sundurliðun Skuldabréf'!R49","v":0},".M.EVBSVOM.XX.ILA.XXX.XXXX.SX.LAT.ADR.IS.N.M"]
[{"$f":"\"INN.\"&EIGNIR!$B$3&C10026","v":{"$error":"#N/A"}},{"$f":"'Sundurliðun Skuldabréf'!R50","v":0},".M.EVBSVOM.XX.ISJ.XXX.XXXX.SX.LAT.ADR.IS.N.M"]
[{"$f":"\"INN.\"&EIGNIR!$B$3&C10027","v":{"$error":"#N/A"}},{"$f":"'Sundurliðun Skuldabréf'!R51","v":0},".M.EVBSVOM.XX.IAN.XXX.XXXX.SX.LAT.ADR.IS.N.M"]
[{"$f":"\"INN.\"&EIGNIR!$B$3&C10028","v":{"$error":"#N/A"}},{"$f":"'Sundurliðun Skuldabréf'!R52","v":0},".M.EVBSVOM.XX.RAF.XXX.XXXX.SX.LAT.ADR.IS.N.M"]
[{"$f":"\"INN.\"&EIGNIR!$B$3&C10029","v":{"$error":"#N/A"}},{"$f":"'Sundurliðun Skuldabréf'!R53","v":0},".M.EVBSVOM.XX.MAN.XXX.XXXX.SX.LAT.ADR.IS.N.M"]
[{"$f":"\"INN.\"&EIGNIR!$B$3&C10030","v":{"$error":"#N/A"}},{"$f":"'Sundurliðun Skuldabréf'!R54","v":0},".M.EVBSVOM.XX.VEN.XXX.XXXX.SX.LAT.ADR.IS.N.M"]
[{"$f":"\"INN.\"&EIGNIR!$B$3&C10031","v":{"$error":"#N/A"}},{"$f":"'Sundurliðun Skuldabréf'!R55","v":0},".M.EVBSVOM.XX.SAG.XXX.XXXX.SX.LAT.ADR.IS.N.M"]
[{"$f":"\"INN.\"&EIGNIR!$B$3&C10032","v":{"$error":"#N/A"}},{"$f":"'Sundurliðun Skuldabréf'!R56","v":0},".M.EVBSVOM.XX.THF.XXX.XXXX.SX.LAT.ADR.IS.N.M"]
[{"$f":"\"INN.\"&EIGNIR!$B$3&C10033","v":{"$error":"#N/A"}},{"$f":"'Sundurliðun Skuldabréf'!R57","v":0},".M.EVBSVOM.XX.THH.XXX.XXXX.SX.LAT.ADR.IS.N.M"]
[{"$f":"\"INN.\"&EIGNIR!$B$3&C10034","v":{"$error":"#N/A"}},{"$f":"'Sundurliðun Skuldabréf'!R58","v":0},".M.EVBSVOM.XX.THA.XXX.XXXX.SX.LAT.ADR.IS.N.M"]
[{"$f":"\"INN.\"&EIGNIR!$B$3&C10035","v":{"$error":"#N/A"}},{"$f":"'Sundurliðun Skuldabréf'!R59","v":0},".M.EVBSVOM.XX.OFL.XXX.XXXX.SX.LAT.ADR.IS.N.M"]
[{"$f":"\"INN.\"&EIGNIR!$B$3&C10036","v":{"$error":"#N/A"}},{"$f":"'Sundurliðun Skuldabréf'!F86","v":0},".M.EVBSVOM.XX.LAB.$$$.XXXX.SX.SKT.XXX.IS.N.M","//Sundurliðun skuldabréf, Önnur markaðsskuldabréf <= 1 ár, Samtals, Landbúnaður"]
[{"$f":"\"INN.\"&EIGNIR!$B$3&C10037","v":{"$error":"#N/A"}},{"$f":"'Sundurliðun Skuldabréf'!F87","v":0},".M.EVBSVOM.XX.SJA.$$$.XXXX.SX.SKT.XXX.IS.N.M"]
[{"$f":"\"INN.\"&EIGNIR!$B$3&C10038","v":{"$error":"#N/A"}},{"$f":"'Sundurliðun Skuldabréf'!F88","v":0},".M.EVBSVOM.XX.ILA.$$$.XXXX.SX.SKT.XXX.IS.N.M"]
[{"$f":"\"INN.\"&EIGNIR!$B$3&C10039","v":{"$error":"#N/A"}},{"$f":"'Sundurliðun Skuldabréf'!F89","v":0},".M.EVBSVOM.XX.ISJ.$$$.XXXX.SX.SKT.XXX.IS.N.M"]
[{"$f":"\"INN.\"&EIGNIR!$B$3&C10040","v":{"$error":"#N/A"}},{"$f":"'Sundurliðun Skuldabréf'!F90","v":0},".M.EVBSVOM.XX.IAN.$$$.XXXX.SX.SKT.XXX.IS.N.M"]
[{"$f":"\"INN.\"&EIGNIR!$B$3&C10041","v":{"$error":"#N/A"}},{"$f":"'Sundurliðun Skuldabréf'!F91","v":0},".M.EVBSVOM.XX.RAF.$$$.XXXX.SX.SKT.XXX.IS.N.M"]
[{"$f":"\"INN.\"&EIGNIR!$B$3&C10042","v":{"$error":"#N/A"}},{"$f":"'Sundurliðun Skuldabréf'!F92","v":0},".M.EVBSVOM.XX.MAN.$$$.XXXX.SX.SKT.XXX.IS.N.M"]
[{"$f":"\"INN.\"&EIGNIR!$B$3&C10043","v":{"$error":"#N/A"}},{"$f":"'Sundurliðun Skuldabréf'!F93","v":0},".M.EVBSVOM.XX.VEN.$$$.XXXX.SX.SKT.XXX.IS.N.M"]
[{"$f":"\"INN.\"&EIGNIR!$B$3&C10044","v":{"$error":"#N/A"}},{"$f":"'Sundurliðun Skuldabréf'!F94","v":0},".M.EVBSVOM.XX.SAG.$$$.XXXX.SX.SKT.XXX.IS.N.M"]
[{"$f":"\"INN.\"&EIGNIR!$B$3&C10045","v":{"$error":"#N/A"}},{"$f":"'Sundurliðun Skuldabréf'!F95","v":0},".M.EVBSVOM.XX.THF.$$$.XXXX.SX.SKT.XXX.IS.N.M"]
[{"$f":"\"INN.\"&EIGNIR!$B$3&C10046","v":{"$error":"#N/A"}},{"$f":"'Sundurliðun Skuldabréf'!F96","v":0},".M.EVBSVOM.XX.THH.$$$.XXXX.SX.SKT.XXX.IS.N.M"]
[{"$f":"\"INN.\"&EIGNIR!$B$3&C10047","v":{"$error":"#N/A"}},{"$f":"'Sundurliðun Skuldabréf'!F97","v":0},".M.EVBSVOM.XX.THA.$$$.XXXX.SX.SKT.XXX.IS.N.M"]
[{"$f":"\"INN.\"&EIGNIR!$B$3&C10048","v":{"$error":"#N/A"}},{"$f":"'Sundurliðun Skuldabréf'!F98","v":0},".M.EVBSVOM.XX.OFL.$$$.XXXX.SX.SKT.XXX.IS.N.M"]
[{"$f":"\"INN.\"&EIGNIR!$B$3&C10049","v":{"$error":"#N/A"}},{"$f":"'Sundurliðun Skuldabréf'!I86","v":0},".M.EVBSVOM.XX.LAB.XXX.XXXX.SX.SKT.ISK.IS.N.M","//í íslenskum krónum"]
[{"$f":"\"INN.\"&EIGNIR!$B$3&C10050","v":{"$error":"#N/A"}},{"$f":"'Sundurliðun Skuldabréf'!I87","v":0},".M.EVBSVOM.XX.SJA.XXX.XXXX.SX.SKT.ISK.IS.N.M"]
[{"$f":"\"INN.\"&EIGNIR!$B$3&C10051","v":{"$error":"#N/A"}},{"$f":"'Sundurliðun Skuldabréf'!I88","v":0},".M.EVBSVOM.XX.ILA.XXX.XXXX.SX.SKT.ISK.IS.N.M"]
[{"$f":"\"INN.\"&EIGNIR!$B$3&C10052","v":{"$error":"#N/A"}},{"$f":"'Sundurliðun Skuldabréf'!I89","v":0},".M.EVBSVOM.XX.ISJ.XXX.XXXX.SX.SKT.ISK.IS.N.M"]
[{"$f":"\"INN.\"&EIGNIR!$B$3&C10053","v":{"$error":"#N/A"}},{"$f":"'Sundurliðun Skuldabréf'!I90","v":0},".M.EVBSVOM.XX.IAN.XXX.XXXX.SX.SKT.ISK.IS.N.M"]
[{"$f":"\"INN.\"&EIGNIR!$B$3&C10054","v":{"$error":"#N/A"}},{"$f":"'Sundurliðun Skuldabréf'!I91","v":0},".M.EVBSVOM.XX.RAF.XXX.XXXX.SX.SKT.ISK.IS.N.M"]
[{"$f":"\"INN.\"&EIGNIR!$B$3&C10055","v":{"$error":"#N/A"}},{"$f":"'Sundurliðun Skuldabréf'!I92","v":0},".M.EVBSVOM.XX.MAN.XXX.XXXX.SX.SKT.ISK.IS.N.M"]
[{"$f":"\"INN.\"&EIGNIR!$B$3&C10056","v":{"$error":"#N/A"}},{"$f":"'Sundurliðun Skuldabréf'!I93","v":0},".M.EVBSVOM.XX.VEN.XXX.XXXX.SX.SKT.ISK.IS.N.M"]
[{"$f":"\"INN.\"&EIGNIR!$B$3&C10057","v":{"$error":"#N/A"}},{"$f":"'Sundurliðun Skuldabréf'!I94","v":0},".M.EVBSVOM.XX.SAG.XXX.XXXX.SX.SKT.ISK.IS.N.M"]
[{"$f":"\"INN.\"&EIGNIR!$B$3&C10058","v":{"$error":"#N/A"}},{"$f":"'Sundurliðun Skuldabréf'!I95","v":0},".M.EVBSVOM.XX.THF.XXX.XXXX.SX.SKT.ISK.IS.N.M"]
[{"$f":"\"INN.\"&EIGNIR!$B$3&C10059","v":{"$error":"#N/A"}},{"$f":"'Sundurliðun Skuldabréf'!I96","v":0},".M.EVBSVOM.XX.THH.XXX.XXXX.SX.SKT.ISK.IS.N.M"]
[{"$f":"\"INN.\"&EIGNIR!$B$3&C10060","v":{"$error":"#N/A"}},{"$f":"'Sundurliðun Skuldabréf'!I97","v":0},".M.EVBSVOM.XX.THA.XXX.XXXX.SX.SKT.ISK.IS.N.M"]
[{"$f":"\"INN.\"&EIGNIR!$B$3&C10061","v":{"$error":"#N/A"}},{"$f":"'Sundurliðun Skuldabréf'!I98","v":0},".M.EVBSVOM.XX.OFL.XXX.XXXX.SX.SKT.ISK.IS.N.M"]
[{"$f":"\"INN.\"&EIGNIR!$B$3&C10062","v":{"$error":"#N/A"}},{"$f":"'Sundurliðun Skuldabréf'!J86","v":0},".M.EVBSVOM.XX.LAB.XXX.XXXX.SX.SKT.EUR.IS.N.M","//í evrum"]
[{"$f":"\"INN.\"&EIGNIR!$B$3&C10063","v":{"$error":"#N/A"}},{"$f":"'Sundurliðun Skuldabréf'!J87","v":0},".M.EVBSVOM.XX.SJA.XXX.XXXX.SX.SKT.EUR.IS.N.M"]
[{"$f":"\"INN.\"&EIGNIR!$B$3&C10064","v":{"$error":"#N/A"}},{"$f":"'Sundurliðun Skuldabréf'!J88","v":0},".M.EVBSVOM.XX.ILA.XXX.XXXX.SX.SKT.EUR.IS.N.M"]
[{"$f":"\"INN.\"&EIGNIR!$B$3&C10065","v":{"$error":"#N/A"}},{"$f":"'Sundurliðun Skuldabréf'!J89","v":0},".M.EVBSVOM.XX.ISJ.XXX.XXXX.SX.SKT.EUR.IS.N.M"]
[{"$f":"\"INN.\"&EIGNIR!$B$3&C10066","v":{"$error":"#N/A"}},{"$f":"'Sundurliðun Skuldabréf'!J90","v":0},".M.EVBSVOM.XX.IAN.XXX.XXXX.SX.SKT.EUR.IS.N.M"]
[{"$f":"\"INN.\"&EIGNIR!$B$3&C10067","v":{"$error":"#N/A"}},{"$f":"'Sundurliðun Skuldabréf'!J91","v":0},".M.EVBSVOM.XX.RAF.XXX.XXXX.SX.SKT.EUR.IS.N.M"]
[{"$f":"\"INN.\"&EIGNIR!$B$3&C10068","v":{"$error":"#N/A"}},{"$f":"'Sundurliðun Skuldabréf'!J92","v":0},".M.EVBSVOM.XX.MAN.XXX.XXXX.SX.SKT.EUR.IS.N.M"]
[{"$f":"\"INN.\"&EIGNIR!$B$3&C10069","v":{"$error":"#N/A"}},{"$f":"'Sundurliðun Skuldabréf'!J93","v":0},".M.EVBSVOM.XX.VEN.XXX.XXXX.SX.SKT.EUR.IS.N.M"]
[{"$f":"\"INN.\"&EIGNIR!$B$3&C10070","v":{"$error":"#N/A"}},{"$f":"'Sundurliðun Skuldabréf'!J94","v":0},".M.EVBSVOM.XX.SAG.XXX.XXXX.SX.SKT.EUR.IS.N.M"]
[{"$f":"\"INN.\"&EIGNIR!$B$3&C10071","v":{"$error":"#N/A"}},{"$f":"'Sundurliðun Skuldabréf'!J95","v":0},".M.EVBSVOM.XX.THF.XXX.XXXX.SX.SKT.EUR.IS.N.M"]
[{"$f":"\"INN.\"&EIGNIR!$B$3&C10072","v":{"$error":"#N/A"}},{"$f":"'Sundurliðun Skuldabréf'!J96","v":0},".M.EVBSVOM.XX.THH.XXX.XXXX.SX.SKT.EUR.IS.N.M"]
[{"$f":"\"INN.\"&EIGNIR!$B$3&C10073","v":{"$error":"#N/A"}},{"$f":"'Sundurliðun Skuldabréf'!J97","v":0},".M.EVBSVOM.XX.THA.XXX.XXXX.SX.SKT.EUR.IS.N.M"]
[{"$f":"\"INN.\"&EIGNIR!$B$3&C10074","v":{"$error":"#N/A"}},{"$f":"'Sundurliðun Skuldabréf'!J98","v":0},".M.EVBSVOM.XX.OFL.XXX.XXXX.SX.SKT.EUR.IS.N.M"]
[{"$f":"\"INN.\"&EIGNIR!$B$3&C10075","v":{"$error":"#N/A"}},{"$f":"'Sundurliðun Skuldabréf'!K86","v":0},".M.EVBSVOM.XX.LAB.XXX.XXXX.SX.SKT.USD.IS.N.M","//í bandarískum dollurum"]
[{"$f":"\"INN.\"&EIGNIR!$B$3&C10076","v":{"$error":"#N/A"}},{"$f":"'Sundurliðun Skuldabréf'!K87","v":0},".M.EVBSVOM.XX.SJA.XXX.XXXX.SX.SKT.USD.IS.N.M"]
[{"$f":"\"INN.\"&EIGNIR!$B$3&C10077","v":{"$error":"#N/A"}},{"$f":"'Sundurliðun Skuldabréf'!K88","v":0},".M.EVBSVOM.XX.ILA.XXX.XXXX.SX.SKT.USD.IS.N.M"]
[{"$f":"\"INN.\"&EIGNIR!$B$3&C10078","v":{"$error":"#N/A"}},{"$f":"'Sundurliðun Skuldabréf'!K89","v":0},".M.EVBSVOM.XX.ISJ.XXX.XXXX.SX.SKT.USD.IS.N.M"]
[{"$f":"\"INN.\"&EIGNIR!$B$3&C10079","v":{"$error":"#N/A"}},{"$f":"'Sundurliðun Skuldabréf'!K90","v":0},".M.EVBSVOM.XX.IAN.XXX.XXXX.SX.SKT.USD.IS.N.M"]
[{"$f":"\"INN.\"&EIGNIR!$B$3&C10080","v":{"$error":"#N/A"}},{"$f":"'Sundurliðun Skuldabréf'!K91","v":0},".M.EVBSVOM.XX.RAF.XXX.XXXX.SX.SKT.USD.IS.N.M"]
[{"$f":"\"INN.\"&EIGNIR!$B$3&C10081","v":{"$error":"#N/A"}},{"$f":"'Sundurliðun Skuldabréf'!K92","v":0},".M.EVBSVOM.XX.MAN.XXX.XXXX.SX.SKT.USD.IS.N.M"]
[{"$f":"\"INN.\"&EIGNIR!$B$3&C10082","v":{"$error":"#N/A"}},{"$f":"'Sundurliðun Skuldabréf'!K93","v":0},".M.EVBSVOM.XX.VEN.XXX.XXXX.SX.SKT.USD.IS.N.M"]
[{"$f":"\"INN.\"&EIGNIR!$B$3&C10083","v":{"$error":"#N/A"}},{"$f":"'Sundurliðun Skuldabréf'!K94","v":0},".M.EVBSVOM.XX.SAG.XXX.XXXX.SX.SKT.USD.IS.N.M"]
[{"$f":"\"INN.\"&EIGNIR!$B$3&C10084","v":{"$error":"#N/A"}},{"$f":"'Sundurliðun Skuldabréf'!K95","v":0},".M.EVBSVOM.XX.THF.XXX.XXXX.SX.SKT.USD.IS.N.M"]
[{"$f":"\"INN.\"&EIGNIR!$B$3&C10085","v":{"$error":"#N/A"}},{"$f":"'Sundurliðun Skuldabréf'!K96","v":0},".M.EVBSVOM.XX.THH.XXX.XXXX.SX.SKT.USD.IS.N.M"]
[{"$f":"\"INN.\"&EIGNIR!$B$3&C10086","v":{"$error":"#N/A"}},{"$f":"'Sundurliðun Skuldabréf'!K97","v":0},".M.EVBSVOM.XX.THA.XXX.XXXX.SX.SKT.USD.IS.N.M"]
[{"$f":"\"INN.\"&EIGNIR!$B$3&C10087","v":{"$error":"#N/A"}},{"$f":"'Sundurliðun Skuldabréf'!K98","v":0},".M.EVBSVOM.XX.OFL.XXX.XXXX.SX.SKT.USD.IS.N.M"]
[{"$f":"\"INN.\"&EIGNIR!$B$3&C10088","v":{"$error":"#N/A"}},{"$f":"'Sundurliðun Skuldabréf'!L86","v":0},".M.EVBSVOM.XX.LAB.XXX.XXXX.SX.SKT.GBP.IS.N.M","//í sterlingspundum"]
[{"$f":"\"INN.\"&EIGNIR!$B$3&C10089","v":{"$error":"#N/A"}},{"$f":"'Sundurliðun Skuldabréf'!L87","v":0},".M.EVBSVOM.XX.SJA.XXX.XXXX.SX.SKT.GBP.IS.N.M"]
[{"$f":"\"INN.\"&EIGNIR!$B$3&C10090","v":{"$error":"#N/A"}},{"$f":"'Sundurliðun Skuldabréf'!L88","v":0},".M.EVBSVOM.XX.ILA.XXX.XXXX.SX.SKT.GBP.IS.N.M"]
[{"$f":"\"INN.\"&EIGNIR!$B$3&C10091","v":{"$error":"#N/A"}},{"$f":"'Sundurliðun Skuldabréf'!L89","v":0},".M.EVBSVOM.XX.ISJ.XXX.XXXX.SX.SKT.GBP.IS.N.M"]
[{"$f":"\"INN.\"&EIGNIR!$B$3&C10092","v":{"$error":"#N/A"}},{"$f":"'Sundurliðun Skuldabréf'!L90","v":0},".M.EVBSVOM.XX.IAN.XXX.XXXX.SX.SKT.GBP.IS.N.M"]
[{"$f":"\"INN.\"&EIGNIR!$B$3&C10093","v":{"$error":"#N/A"}},{"$f":"'Sundurliðun Skuldabréf'!L91","v":0},".M.EVBSVOM.XX.RAF.XXX.XXXX.SX.SKT.GBP.IS.N.M"]
[{"$f":"\"INN.\"&EIGNIR!$B$3&C10094","v":{"$error":"#N/A"}},{"$f":"'Sundurliðun Skuldabréf'!L92","v":0},".M.EVBSVOM.XX.MAN.XXX.XXXX.SX.SKT.GBP.IS.N.M"]
[{"$f":"\"INN.\"&EIGNIR!$B$3&C10095","v":{"$error":"#N/A"}},{"$f":"'Sundurliðun Skuldabréf'!L93","v":0},".M.EVBSVOM.XX.VEN.XXX.XXXX.SX.SKT.GBP.IS.N.M"]
[{"$f":"\"INN.\"&EIGNIR!$B$3&C10096","v":{"$error":"#N/A"}},{"$f":"'Sundurliðun Skuldabréf'!L94","v":0},".M.EVBSVOM.XX.SAG.XXX.XXXX.SX.SKT.GBP.IS.N.M"]
[{"$f":"\"INN.\"&EIGNIR!$B$3&C10097","v":{"$error":"#N/A"}},{"$f":"'Sundurliðun Skuldabréf'!L95","v":0},".M.EVBSVOM.XX.THF.XXX.XXXX.SX.SKT.GBP.IS.N.M"]
[{"$f":"\"INN.\"&EIGNIR!$B$3&C10098","v":{"$error":"#N/A"}},{"$f":"'Sundurliðun Skuldabréf'!L96","v":0},".M.EVBSVOM.XX.THH.XXX.XXXX.SX.SKT.GBP.IS.N.M"]
[{"$f":"\"INN.\"&EIGNIR!$B$3&C10099","v":{"$error":"#N/A"}},{"$f":"'Sundurliðun Skuldabréf'!L97","v":0},".M.EVBSVOM.XX.THA.XXX.XXXX.SX.SKT.GBP.IS.N.M"]
[{"$f":"\"INN.\"&EIGNIR!$B$3&C10100","v":{"$error":"#N/A"}},{"$f":"'Sundurliðun Skuldabréf'!L98","v":0},".M.EVBSVOM.XX.OFL.XXX.XXXX.SX.SKT.GBP.IS.N.M"]
[{"$f":"\"INN.\"&EIGNIR!$B$3&C10101","v":{"$error":"#N/A"}},{"$f":"'Sundurliðun Skuldabréf'!M86","v":0},".M.EVBSVOM.XX.LAB.XXX.XXXX.SX.SKT.JPY.IS.N.M","//í japönskum jenum"]
[{"$f":"\"INN.\"&EIGNIR!$B$3&C10102","v":{"$error":"#N/A"}},{"$f":"'Sundurliðun Skuldabréf'!M87","v":0},".M.EVBSVOM.XX.SJA.XXX.XXXX.SX.SKT.JPY.IS.N.M"]
[{"$f":"\"INN.\"&EIGNIR!$B$3&C10103","v":{"$error":"#N/A"}},{"$f":"'Sundurliðun Skuldabréf'!M88","v":0},".M.EVBSVOM.XX.ILA.XXX.XXXX.SX.SKT.JPY.IS.N.M"]
[{"$f":"\"INN.\"&EIGNIR!$B$3&C10104","v":{"$error":"#N/A"}},{"$f":"'Sundurliðun Skuldabréf'!M89","v":0},".M.EVBSVOM.XX.ISJ.XXX.XXXX.SX.SKT.JPY.IS.N.M"]
[{"$f":"\"INN.\"&EIGNIR!$B$3&C10105","v":{"$error":"#N/A"}},{"$f":"'Sundurliðun Skuldabréf'!M90","v":0},".M.EVBSVOM.XX.IAN.XXX.XXXX.SX.SKT.JPY.IS.N.M"]
[{"$f":"\"INN.\"&EIGNIR!$B$3&C10106","v":{"$error":"#N/A"}},{"$f":"'Sundurliðun Skuldabréf'!M91","v":0},".M.EVBSVOM.XX.RAF.XXX.XXXX.SX.SKT.JPY.IS.N.M"]
[{"$f":"\"INN.\"&EIGNIR!$B$3&C10107","v":{"$error":"#N/A"}},{"$f":"'Sundurliðun Skuldabréf'!M92","v":0},".M.EVBSVOM.XX.MAN.XXX.XXXX.SX.SKT.JPY.IS.N.M"]
[{"$f":"\"INN.\"&EIGNIR!$B$3&C10108","v":{"$error":"#N/A"}},{"$f":"'Sundurliðun Skuldabréf'!M93","v":0},".M.EVBSVOM.XX.VEN.XXX.XXXX.SX.SKT.JPY.IS.N.M"]
[{"$f":"\"INN.\"&EIGNIR!$B$3&C10109","v":{"$error":"#N/A"}},{"$f":"'Sundurliðun Skuldabréf'!M94","v":0},".M.EVBSVOM.XX.SAG.XXX.XXXX.SX.SKT.JPY.IS.N.M"]
[{"$f":"\"INN.\"&EIGNIR!$B$3&C10110","v":{"$error":"#N/A"}},{"$f":"'Sundurliðun Skuldabréf'!M95","v":0},".M.EVBSVOM.XX.THF.XXX.XXXX.SX.SKT.JPY.IS.N.M"]
[{"$f":"\"INN.\"&EIGNIR!$B$3&C10111","v":{"$error":"#N/A"}},{"$f":"'Sundurliðun Skuldabréf'!M96","v":0},".M.EVBSVOM.XX.THH.XXX.XXXX.SX.SKT.JPY.IS.N.M"]
[{"$f":"\"INN.\"&EIGNIR!$B$3&C10112","v":{"$error":"#N/A"}},{"$f":"'Sundurliðun Skuldabréf'!M97","v":0},".M.EVBSVOM.XX.THA.XXX.XXXX.SX.SKT.JPY.IS.N.M"]
[{"$f":"\"INN.\"&EIGNIR!$B$3&C10113","v":{"$error":"#N/A"}},{"$f":"'Sundurliðun Skuldabréf'!M98","v":0},".M.EVBSVOM.XX.OFL.XXX.XXXX.SX.SKT.JPY.IS.N.M"]
[{"$f":"\"INN.\"&EIGNIR!$B$3&C10114","v":{"$error":"#N/A"}},{"$f":"'Sundurliðun Skuldabréf'!N86","v":0},".M.EVBSVOM.XX.LAB.XXX.XXXX.SX.SKT.DKK.IS.N.M","//í dönskum krónum"]
[{"$f":"\"INN.\"&EIGNIR!$B$3&C10115","v":{"$error":"#N/A"}},{"$f":"'Sundurliðun Skuldabréf'!N87","v":0},".M.EVBSVOM.XX.SJA.XXX.XXXX.SX.SKT.DKK.IS.N.M"]
[{"$f":"\"INN.\"&EIGNIR!$B$3&C10116","v":{"$error":"#N/A"}},{"$f":"'Sundurliðun Skuldabréf'!N88","v":0},".M.EVBSVOM.XX.ILA.XXX.XXXX.SX.SKT.DKK.IS.N.M"]
[{"$f":"\"INN.\"&EIGNIR!$B$3&C10117","v":{"$error":"#N/A"}},{"$f":"'Sundurliðun Skuldabréf'!N89","v":0},".M.EVBSVOM.XX.ISJ.XXX.XXXX.SX.SKT.DKK.IS.N.M"]
[{"$f":"\"INN.\"&EIGNIR!$B$3&C10118","v":{"$error":"#N/A"}},{"$f":"'Sundurliðun Skuldabréf'!N90","v":0},".M.EVBSVOM.XX.IAN.XXX.XXXX.SX.SKT.DKK.IS.N.M"]
[{"$f":"\"INN.\"&EIGNIR!$B$3&C10119","v":{"$error":"#N/A"}},{"$f":"'Sundurliðun Skuldabréf'!N91","v":0},".M.EVBSVOM.XX.RAF.XXX.XXXX.SX.SKT.DKK.IS.N.M"]
[{"$f":"\"INN.\"&EIGNIR!$B$3&C10120","v":{"$error":"#N/A"}},{"$f":"'Sundurliðun Skuldabréf'!N92","v":0},".M.EVBSVOM.XX.MAN.XXX.XXXX.SX.SKT.DKK.IS.N.M"]
[{"$f":"\"INN.\"&EIGNIR!$B$3&C10121","v":{"$error":"#N/A"}},{"$f":"'Sundurliðun Skuldabréf'!N93","v":0},".M.EVBSVOM.XX.VEN.XXX.XXXX.SX.SKT.DKK.IS.N.M"]
[{"$f":"\"INN.\"&EIGNIR!$B$3&C10122","v":{"$error":"#N/A"}},{"$f":"'Sundurliðun Skuldabréf'!N94","v":0},".M.EVBSVOM.XX.SAG.XXX.XXXX.SX.SKT.DKK.IS.N.M"]
[{"$f":"\"INN.\"&EIGNIR!$B$3&C10123","v":{"$error":"#N/A"}},{"$f":"'Sundurliðun Skuldabréf'!N95","v":0},".M.EVBSVOM.XX.THF.XXX.XXXX.SX.SKT.DKK.IS.N.M"]
[{"$f":"\"INN.\"&EIGNIR!$B$3&C10124","v":{"$error":"#N/A"}},{"$f":"'Sundurliðun Skuldabréf'!N96","v":0},".M.EVBSVOM.XX.THH.XXX.XXXX.SX.SKT.DKK.IS.N.M"]
[{"$f":"\"INN.\"&EIGNIR!$B$3&C10125","v":{"$error":"#N/A"}},{"$f":"'Sundurliðun Skuldabréf'!N97","v":0},".M.EVBSVOM.XX.THA.XXX.XXXX.SX.SKT.DKK.IS.N.M"]
[{"$f":"\"INN.\"&EIGNIR!$B$3&C10126","v":{"$error":"#N/A"}},{"$f":"'Sundurliðun Skuldabréf'!N98","v":0},".M.EVBSVOM.XX.OFL.XXX.XXXX.SX.SKT.DKK.IS.N.M"]
[{"$f":"\"INN.\"&EIGNIR!$B$3&C10127","v":{"$error":"#N/A"}},{"$f":"'Sundurliðun Skuldabréf'!O86","v":0},".M.EVBSVOM.XX.LAB.XXX.XXXX.SX.SKT.NOK.IS.N.M","//í norskum krónum"]
[{"$f":"\"INN.\"&EIGNIR!$B$3&C10128","v":{"$error":"#N/A"}},{"$f":"'Sundurliðun Skuldabréf'!O87","v":0},".M.EVBSVOM.XX.SJA.XXX.XXXX.SX.SKT.NOK.IS.N.M"]
[{"$f":"\"INN.\"&EIGNIR!$B$3&C10129","v":{"$error":"#N/A"}},{"$f":"'Sundurliðun Skuldabréf'!O88","v":0},".M.EVBSVOM.XX.ILA.XXX.XXXX.SX.SKT.NOK.IS.N.M"]
[{"$f":"\"INN.\"&EIGNIR!$B$3&C10130","v":{"$error":"#N/A"}},{"$f":"'Sundurliðun Skuldabréf'!O89","v":0},".M.EVBSVOM.XX.ISJ.XXX.XXXX.SX.SKT.NOK.IS.N.M"]
[{"$f":"\"INN.\"&EIGNIR!$B$3&C10131","v":{"$error":"#N/A"}},{"$f":"'Sundurliðun Skuldabréf'!O90","v":0},".M.EVBSVOM.XX.IAN.XXX.XXXX.SX.SKT.NOK.IS.N.M"]
[{"$f":"\"INN.\"&EIGNIR!$B$3&C10132","v":{"$error":"#N/A"}},{"$f":"'Sundurliðun Skuldabréf'!O91","v":0},".M.EVBSVOM.XX.RAF.XXX.XXXX.SX.SKT.NOK.IS.N.M"]
[{"$f":"\"INN.\"&EIGNIR!$B$3&C10133","v":{"$error":"#N/A"}},{"$f":"'Sundurliðun Skuldabréf'!O92","v":0},".M.EVBSVOM.XX.MAN.XXX.XXXX.SX.SKT.NOK.IS.N.M"]
[{"$f":"\"INN.\"&EIGNIR!$B$3&C10134","v":{"$error":"#N/A"}},{"$f":"'Sundurliðun Skuldabréf'!O93","v":0},".M.EVBSVOM.XX.VEN.XXX.XXXX.SX.SKT.NOK.IS.N.M"]
[{"$f":"\"INN.\"&EIGNIR!$B$3&C10135","v":{"$error":"#N/A"}},{"$f":"'Sundurliðun Skuldabréf'!O94","v":0},".M.EVBSVOM.XX.SAG.XXX.XXXX.SX.SKT.NOK.IS.N.M"]
[{"$f":"\"INN.\"&EIGNIR!$B$3&C10136","v":{"$error":"#N/A"}},{"$f":"'Sundurliðun Skuldabréf'!O95","v":0},".M.EVBSVOM.XX.THF.XXX.XXXX.SX.SKT.NOK.IS.N.M"]
[{"$f":"\"INN.\"&EIGNIR!$B$3&C10137","v":{"$error":"#N/A"}},{"$f":"'Sundurliðun Skuldabréf'!O96","v":0},".M.EVBSVOM.XX.THH.XXX.XXXX.SX.SKT.NOK.IS.N.M"]
[{"$f":"\"INN.\"&EIGNIR!$B$3&C10138","v":{"$error":"#N/A"}},{"$f":"'Sundurliðun Skuldabréf'!O97","v":0},".M.EVBSVOM.XX.THA.XXX.XXXX.SX.SKT.NOK.IS.N.M"]
[{"$f":"\"INN.\"&EIGNIR!$B$3&C10139","v":{"$error":"#N/A"}},{"$f":"'Sundurliðun Skuldabréf'!O98","v":0},".M.EVBSVOM.XX.OFL.XXX.XXXX.SX.SKT.NOK.IS.N.M"]
[{"$f":"\"INN.\"&EIGNIR!$B$3&C10140","v":{"$error":"#N/A"}},{"$f":"'Sundurliðun Skuldabréf'!P86","v":0},".M.EVBSVOM.XX.LAB.XXX.XXXX.SX.SKT.SEK.IS.N.M","//í sænskum krónum"]
[{"$f":"\"INN.\"&EIGNIR!$B$3&C10141","v":{"$error":"#N/A"}},{"$f":"'Sundurliðun Skuldabréf'!P87","v":0},".M.EVBSVOM.XX.SJA.XXX.XXXX.SX.SKT.SEK.IS.N.M"]
[{"$f":"\"INN.\"&EIGNIR!$B$3&C10142","v":{"$error":"#N/A"}},{"$f":"'Sundurliðun Skuldabréf'!P88","v":0},".M.EVBSVOM.XX.ILA.XXX.XXXX.SX.SKT.SEK.IS.N.M"]
[{"$f":"\"INN.\"&EIGNIR!$B$3&C10143","v":{"$error":"#N/A"}},{"$f":"'Sundurliðun Skuldabréf'!P89","v":0},".M.EVBSVOM.XX.ISJ.XXX.XXXX.SX.SKT.SEK.IS.N.M"]
[{"$f":"\"INN.\"&EIGNIR!$B$3&C10144","v":{"$error":"#N/A"}},{"$f":"'Sundurliðun Skuldabréf'!P90","v":0},".M.EVBSVOM.XX.IAN.XXX.XXXX.SX.SKT.SEK.IS.N.M"]
[{"$f":"\"INN.\"&EIGNIR!$B$3&C10145","v":{"$error":"#N/A"}},{"$f":"'Sundurliðun Skuldabréf'!P91","v":0},".M.EVBSVOM.XX.RAF.XXX.XXXX.SX.SKT.SEK.IS.N.M"]
[{"$f":"\"INN.\"&EIGNIR!$B$3&C10146","v":{"$error":"#N/A"}},{"$f":"'Sundurliðun Skuldabréf'!P92","v":0},".M.EVBSVOM.XX.MAN.XXX.XXXX.SX.SKT.SEK.IS.N.M"]
[{"$f":"\"INN.\"&EIGNIR!$B$3&C10147","v":{"$error":"#N/A"}},{"$f":"'Sundurliðun Skuldabréf'!P93","v":0},".M.EVBSVOM.XX.VEN.XXX.XXXX.SX.SKT.SEK.IS.N.M"]
[{"$f":"\"INN.\"&EIGNIR!$B$3&C10148","v":{"$error":"#N/A"}},{"$f":"'Sundurliðun Skuldabréf'!P94","v":0},".M.EVBSVOM.XX.SAG.XXX.XXXX.SX.SKT.SEK.IS.N.M"]
[{"$f":"\"INN.\"&EIGNIR!$B$3&C10149","v":{"$error":"#N/A"}},{"$f":"'Sundurliðun Skuldabréf'!P95","v":0},".M.EVBSVOM.XX.THF.XXX.XXXX.SX.SKT.SEK.IS.N.M"]
[{"$f":"\"INN.\"&EIGNIR!$B$3&C10150","v":{"$error":"#N/A"}},{"$f":"'Sundurliðun Skuldabréf'!P96","v":0},".M.EVBSVOM.XX.THH.XXX.XXXX.SX.SKT.SEK.IS.N.M"]
[{"$f":"\"INN.\"&EIGNIR!$B$3&C10151","v":{"$error":"#N/A"}},{"$f":"'Sundurliðun Skuldabréf'!P97","v":0},".M.EVBSVOM.XX.THA.XXX.XXXX.SX.SKT.SEK.IS.N.M"]
[{"$f":"\"INN.\"&EIGNIR!$B$3&C10152","v":{"$error":"#N/A"}},{"$f":"'Sundurliðun Skuldabréf'!P98","v":0},".M.EVBSVOM.XX.OFL.XXX.XXXX.SX.SKT.SEK.IS.N.M"]
[{"$f":"\"INN.\"&EIGNIR!$B$3&C10153","v":{"$error":"#N/A"}},{"$f":"'Sundurliðun Skuldabréf'!Q86","v":0},".M.EVBSVOM.XX.LAB.XXX.XXXX.SX.SKT.CHF.IS.N.M","//í svissneskum frönkum"]
[{"$f":"\"INN.\"&EIGNIR!$B$3&C10154","v":{"$error":"#N/A"}},{"$f":"'Sundurliðun Skuldabréf'!Q87","v":0},".M.EVBSVOM.XX.SJA.XXX.XXXX.SX.SKT.CHF.IS.N.M"]
[{"$f":"\"INN.\"&EIGNIR!$B$3&C10155","v":{"$error":"#N/A"}},{"$f":"'Sundurliðun Skuldabréf'!Q88","v":0},".M.EVBSVOM.XX.ILA.XXX.XXXX.SX.SKT.CHF.IS.N.M"]
[{"$f":"\"INN.\"&EIGNIR!$B$3&C10156","v":{"$error":"#N/A"}},{"$f":"'Sundurliðun Skuldabréf'!Q89","v":0},".M.EVBSVOM.XX.ISJ.XXX.XXXX.SX.SKT.CHF.IS.N.M"]
[{"$f":"\"INN.\"&EIGNIR!$B$3&C10157","v":{"$error":"#N/A"}},{"$f":"'Sundurliðun Skuldabréf'!Q90","v":0},".M.EVBSVOM.XX.IAN.XXX.XXXX.SX.SKT.CHF.IS.N.M"]
[{"$f":"\"INN.\"&EIGNIR!$B$3&C10158","v":{"$error":"#N/A"}},{"$f":"'Sundurliðun Skuldabréf'!Q91","v":0},".M.EVBSVOM.XX.RAF.XXX.XXXX.SX.SKT.CHF.IS.N.M"]
[{"$f":"\"INN.\"&EIGNIR!$B$3&C10159","v":{"$error":"#N/A"}},{"$f":"'Sundurliðun Skuldabréf'!Q92","v":0},".M.EVBSVOM.XX.MAN.XXX.XXXX.SX.SKT.CHF.IS.N.M"]
[{"$f":"\"INN.\"&EIGNIR!$B$3&C10160","v":{"$error":"#N/A"}},{"$f":"'Sundurliðun Skuldabréf'!Q93","v":0},".M.EVBSVOM.XX.VEN.XXX.XXXX.SX.SKT.CHF.IS.N.M"]
[{"$f":"\"INN.\"&EIGNIR!$B$3&C10161","v":{"$error":"#N/A"}},{"$f":"'Sundurliðun Skuldabréf'!Q94","v":0},".M.EVBSVOM.XX.SAG.XXX.XXXX.SX.SKT.CHF.IS.N.M"]
[{"$f":"\"INN.\"&EIGNIR!$B$3&C10162","v":{"$error":"#N/A"}},{"$f":"'Sundurliðun Skuldabréf'!Q95","v":0},".M.EVBSVOM.XX.THF.XXX.XXXX.SX.SKT.CHF.IS.N.M"]
[{"$f":"\"INN.\"&EIGNIR!$B$3&C10163","v":{"$error":"#N/A"}},{"$f":"'Sundurliðun Skuldabréf'!Q96","v":0},".M.EVBSVOM.XX.THH.XXX.XXXX.SX.SKT.CHF.IS.N.M"]
[{"$f":"\"INN.\"&EIGNIR!$B$3&C10164","v":{"$error":"#N/A"}},{"$f":"'Sundurliðun Skuldabréf'!Q97","v":0},".M.EVBSVOM.XX.THA.XXX.XXXX.SX.SKT.CHF.IS.N.M"]
[{"$f":"\"INN.\"&EIGNIR!$B$3&C10165","v":{"$error":"#N/A"}},{"$f":"'Sundurliðun Skuldabréf'!Q98","v":0},".M.EVBSVOM.XX.OFL.XXX.XXXX.SX.SKT.CHF.IS.N.M"]
[{"$f":"\"INN.\"&EIGNIR!$B$3&C10166","v":{"$error":"#N/A"}},{"$f":"'Sundurliðun Skuldabréf'!R86","v":0},".M.EVBSVOM.XX.LAB.XXX.XXXX.SX.SKT.ADR.IS.N.M","//í öðrum gjaldmiðlum"]
[{"$f":"\"INN.\"&EIGNIR!$B$3&C10167","v":{"$error":"#N/A"}},{"$f":"'Sundurliðun Skuldabréf'!R87","v":0},".M.EVBSVOM.XX.SJA.XXX.XXXX.SX.SKT.ADR.IS.N.M"]
[{"$f":"\"INN.\"&EIGNIR!$B$3&C10168","v":{"$error":"#N/A"}},{"$f":"'Sundurliðun Skuldabréf'!R88","v":0},".M.EVBSVOM.XX.ILA.XXX.XXXX.SX.SKT.ADR.IS.N.M"]
[{"$f":"\"INN.\"&EIGNIR!$B$3&C10169","v":{"$error":"#N/A"}},{"$f":"'Sundurliðun Skuldabréf'!R89","v":0},".M.EVBSVOM.XX.ISJ.XXX.XXXX.SX.SKT.ADR.IS.N.M"]
[{"$f":"\"INN.\"&EIGNIR!$B$3&C10170","v":{"$error":"#N/A"}},{"$f":"'Sundurliðun Skuldabréf'!R90","v":0},".M.EVBSVOM.XX.IAN.XXX.XXXX.SX.SKT.ADR.IS.N.M"]
[{"$f":"\"INN.\"&EIGNIR!$B$3&C10171","v":{"$error":"#N/A"}},{"$f":"'Sundurliðun Skuldabréf'!R91","v":0},".M.EVBSVOM.XX.RAF.XXX.XXXX.SX.SKT.ADR.IS.N.M"]
[{"$f":"\"INN.\"&EIGNIR!$B$3&C10172","v":{"$error":"#N/A"}},{"$f":"'Sundurliðun Skuldabréf'!R92","v":0},".M.EVBSVOM.XX.MAN.XXX.XXXX.SX.SKT.ADR.IS.N.M"]
[{"$f":"\"INN.\"&EIGNIR!$B$3&C10173","v":{"$error":"#N/A"}},{"$f":"'Sundurliðun Skuldabréf'!R93","v":0},".M.EVBSVOM.XX.VEN.XXX.XXXX.SX.SKT.ADR.IS.N.M"]
[{"$f":"\"INN.\"&EIGNIR!$B$3&C10174","v":{"$error":"#N/A"}},{"$f":"'Sundurliðun Skuldabréf'!R94","v":0},".M.EVBSVOM.XX.SAG.XXX.XXXX.SX.SKT.ADR.IS.N.M"]
[{"$f":"\"INN.\"&EIGNIR!$B$3&C10175","v":{"$error":"#N/A"}},{"$f":"'Sundurliðun Skuldabréf'!R95","v":0},".M.EVBSVOM.XX.THF.XXX.XXXX.SX.SKT.ADR.IS.N.M"]
[{"$f":"\"INN.\"&EIGNIR!$B$3&C10176","v":{"$error":"#N/A"}},{"$f":"'Sundurliðun Skuldabréf'!R96","v":0},".M.EVBSVOM.XX.THH.XXX.XXXX.SX.SKT.ADR.IS.N.M"]
[{"$f":"\"INN.\"&EIGNIR!$B$3&C10177","v":{"$error":"#N/A"}},{"$f":"'Sundurliðun Skuldabréf'!R97","v":0},".M.EVBSVOM.XX.THA.XXX.XXXX.SX.SKT.ADR.IS.N.M"]
[{"$f":"\"INN.\"&EIGNIR!$B$3&C10178","v":{"$error":"#N/A"}},{"$f":"'Sundurliðun Skuldabréf'!R98","v":0},".M.EVBSVOM.XX.OFL.XXX.XXXX.SX.SKT.ADR.IS.N.M"]
[{"$f":"\"INN.\"&EIGNIR!$B$3&C10179","v":{"$error":"#N/A"}},{"$f":"'Sundurliðun Útlán'!H13","v":0},".M.EUKULIA.XX.LAB.XXX.XXXX.SX.XXX.ISK.IS.N.M","//Sundurliðun. Útlán. Greiddar óinleystar ábyrgðir í íslenskum krónum"]
[{"$f":"\"INN.\"&EIGNIR!$B$3&C10180","v":{"$error":"#N/A"}},{"$f":"'Sundurliðun Útlán'!H14","v":0},".M.EUKULIA.XX.SJA.XXX.XXXX.SX.XXX.ISK.IS.N.M"]
[{"$f":"\"INN.\"&EIGNIR!$B$3&C10181","v":{"$error":"#N/A"}},{"$f":"'Sundurliðun Útlán'!H15","v":0},".M.EUKULIA.XX.ILA.XXX.XXXX.SX.XXX.ISK.IS.N.M"]
[{"$f":"\"INN.\"&EIGNIR!$B$3&C10182","v":{"$error":"#N/A"}},{"$f":"'Sundurliðun Útlán'!H16","v":0},".M.EUKULIA.XX.ISJ.XXX.XXXX.SX.XXX.ISK.IS.N.M"]
[{"$f":"\"INN.\"&EIGNIR!$B$3&C10183","v":{"$error":"#N/A"}},{"$f":"'Sundurliðun Útlán'!H17","v":0},".M.EUKULIA.XX.IAN.XXX.XXXX.SX.XXX.ISK.IS.N.M"]
[{"$f":"\"INN.\"&EIGNIR!$B$3&C10184","v":{"$error":"#N/A"}},{"$f":"'Sundurliðun Útlán'!H18","v":0},".M.EUKULIA.XX.RAF.XXX.XXXX.SX.XXX.ISK.IS.N.M"]
[{"$f":"\"INN.\"&EIGNIR!$B$3&C10185","v":{"$error":"#N/A"}},{"$f":"'Sundurliðun Útlán'!H19","v":0},".M.EUKULIA.XX.MAN.XXX.XXXX.SX.XXX.ISK.IS.N.M"]
[{"$f":"\"INN.\"&EIGNIR!$B$3&C10186","v":{"$error":"#N/A"}},{"$f":"'Sundurliðun Útlán'!H20","v":0},".M.EUKULIA.XX.VEN.XXX.XXXX.SX.XXX.ISK.IS.N.M"]
[{"$f":"\"INN.\"&EIGNIR!$B$3&C10187","v":{"$error":"#N/A"}},{"$f":"'Sundurliðun Útlán'!H21","v":0},".M.EUKULIA.XX.SAG.XXX.XXXX.SX.XXX.ISK.IS.N.M"]
[{"$f":"\"INN.\"&EIGNIR!$B$3&C10188","v":{"$error":"#N/A"}},{"$f":"'Sundurliðun Útlán'!H22","v":0},".M.EUKULIA.XX.THF.XXX.XXXX.SX.XXX.ISK.IS.N.M"]
[{"$f":"\"INN.\"&EIGNIR!$B$3&C10189","v":{"$error":"#N/A"}},{"$f":"'Sundurliðun Útlán'!H23","v":0},".M.EUKULIA.XX.THH.XXX.XXXX.SX.XXX.ISK.IS.N.M"]
[{"$f":"\"INN.\"&EIGNIR!$B$3&C10190","v":{"$error":"#N/A"}},{"$f":"'Sundurliðun Útlán'!H24","v":0},".M.EUKULIA.XX.THA.XXX.XXXX.SX.XXX.ISK.IS.N.M"]
[{"$f":"\"INN.\"&EIGNIR!$B$3&C10191","v":{"$error":"#N/A"}},{"$f":"'Sundurliðun Útlán'!H25","v":0},".M.EUKULIA.XX.OFL.XXX.XXXX.SX.XXX.ISK.IS.N.M"]
[{"$f":"\"INN.\"&EIGNIR!$B$3&C10192","v":{"$error":"#N/A"}},{"$f":"'Sundurliðun Útlán'!I13","v":0},".M.EUKULIA.XX.LAB.XXX.XXXX.SX.XXX.EUR.IS.N.M","//í evrum"]
[{"$f":"\"INN.\"&EIGNIR!$B$3&C10193","v":{"$error":"#N/A"}},{"$f":"'Sundurliðun Útlán'!I14","v":0},".M.EUKULIA.XX.SJA.XXX.XXXX.SX.XXX.EUR.IS.N.M"]
[{"$f":"\"INN.\"&EIGNIR!$B$3&C10194","v":{"$error":"#N/A"}},{"$f":"'Sundurliðun Útlán'!I15","v":0},".M.EUKULIA.XX.ILA.XXX.XXXX.SX.XXX.EUR.IS.N.M"]
[{"$f":"\"INN.\"&EIGNIR!$B$3&C10195","v":{"$error":"#N/A"}},{"$f":"'Sundurliðun Útlán'!I16","v":0},".M.EUKULIA.XX.ISJ.XXX.XXXX.SX.XXX.EUR.IS.N.M"]
[{"$f":"\"INN.\"&EIGNIR!$B$3&C10196","v":{"$error":"#N/A"}},{"$f":"'Sundurliðun Útlán'!I17","v":0},".M.EUKULIA.XX.IAN.XXX.XXXX.SX.XXX.EUR.IS.N.M"]
[{"$f":"\"INN.\"&EIGNIR!$B$3&C10197","v":{"$error":"#N/A"}},{"$f":"'Sundurliðun Útlán'!I18","v":0},".M.EUKULIA.XX.RAF.XXX.XXXX.SX.XXX.EUR.IS.N.M"]
[{"$f":"\"INN.\"&EIGNIR!$B$3&C10198","v":{"$error":"#N/A"}},{"$f":"'Sundurliðun Útlán'!I19","v":0},".M.EUKULIA.XX.MAN.XXX.XXXX.SX.XXX.EUR.IS.N.M"]
[{"$f":"\"INN.\"&EIGNIR!$B$3&C10199","v":{"$error":"#N/A"}},{"$f":"'Sundurliðun Útlán'!I20","v":0},".M.EUKULIA.XX.VEN.XXX.XXXX.SX.XXX.EUR.IS.N.M"]
[{"$f":"\"INN.\"&EIGNIR!$B$3&C10200","v":{"$error":"#N/A"}},{"$f":"'Sundurliðun Útlán'!I21","v":0},".M.EUKULIA.XX.SAG.XXX.XXXX.SX.XXX.EUR.IS.N.M"]
[{"$f":"\"INN.\"&EIGNIR!$B$3&C10201","v":{"$error":"#N/A"}},{"$f":"'Sundurliðun Útlán'!I22","v":0},".M.EUKULIA.XX.THF.XXX.XXXX.SX.XXX.EUR.IS.N.M"]
[{"$f":"\"INN.\"&EIGNIR!$B$3&C10202","v":{"$error":"#N/A"}},{"$f":"'Sundurliðun Útlán'!I23","v":0},".M.EUKULIA.XX.THH.XXX.XXXX.SX.XXX.EUR.IS.N.M"]
[{"$f":"\"INN.\"&EIGNIR!$B$3&C10203","v":{"$error":"#N/A"}},{"$f":"'Sundurliðun Útlán'!I24","v":0},".M.EUKULIA.XX.THA.XXX.XXXX.SX.XXX.EUR.IS.N.M"]
[{"$f":"\"INN.\"&EIGNIR!$B$3&C10204","v":{"$error":"#N/A"}},{"$f":"'Sundurliðun Útlán'!I25","v":0},".M.EUKULIA.XX.OFL.XXX.XXXX.SX.XXX.EUR.IS.N.M"]
[{"$f":"\"INN.\"&EIGNIR!$B$3&C10205","v":{"$error":"#N/A"}},{"$f":"'Sundurliðun Útlán'!J13","v":0},".M.EUKULIA.XX.LAB.XXX.XXXX.SX.XXX.USD.IS.N.M","//í bandarískum dollurum"]
[{"$f":"\"INN.\"&EIGNIR!$B$3&C10206","v":{"$error":"#N/A"}},{"$f":"'Sundurliðun Útlán'!J14","v":0},".M.EUKULIA.XX.SJA.XXX.XXXX.SX.XXX.USD.IS.N.M"]
[{"$f":"\"INN.\"&EIGNIR!$B$3&C10207","v":{"$error":"#N/A"}},{"$f":"'Sundurliðun Útlán'!J15","v":0},".M.EUKULIA.XX.ILA.XXX.XXXX.SX.XXX.USD.IS.N.M"]
[{"$f":"\"INN.\"&EIGNIR!$B$3&C10208","v":{"$error":"#N/A"}},{"$f":"'Sundurliðun Útlán'!J16","v":0},".M.EUKULIA.XX.ISJ.XXX.XXXX.SX.XXX.USD.IS.N.M"]
[{"$f":"\"INN.\"&EIGNIR!$B$3&C10209","v":{"$error":"#N/A"}},{"$f":"'Sundurliðun Útlán'!J17","v":0},".M.EUKULIA.XX.IAN.XXX.XXXX.SX.XXX.USD.IS.N.M"]
[{"$f":"\"INN.\"&EIGNIR!$B$3&C10210","v":{"$error":"#N/A"}},{"$f":"'Sundurliðun Útlán'!J18","v":0},".M.EUKULIA.XX.RAF.XXX.XXXX.SX.XXX.USD.IS.N.M"]
[{"$f":"\"INN.\"&EIGNIR!$B$3&C10211","v":{"$error":"#N/A"}},{"$f":"'Sundurliðun Útlán'!J19","v":0},".M.EUKULIA.XX.MAN.XXX.XXXX.SX.XXX.USD.IS.N.M"]
[{"$f":"\"INN.\"&EIGNIR!$B$3&C10212","v":{"$error":"#N/A"}},{"$f":"'Sundurliðun Útlán'!J20","v":0},".M.EUKULIA.XX.VEN.XXX.XXXX.SX.XXX.USD.IS.N.M"]
[{"$f":"\"INN.\"&EIGNIR!$B$3&C10213","v":{"$error":"#N/A"}},{"$f":"'Sundurliðun Útlán'!J21","v":0},".M.EUKULIA.XX.SAG.XXX.XXXX.SX.XXX.USD.IS.N.M"]
[{"$f":"\"INN.\"&EIGNIR!$B$3&C10214","v":{"$error":"#N/A"}},{"$f":"'Sundurliðun Útlán'!J22","v":0},".M.EUKULIA.XX.THF.XXX.XXXX.SX.XXX.USD.IS.N.M"]
[{"$f":"\"INN.\"&EIGNIR!$B$3&C10215","v":{"$error":"#N/A"}},{"$f":"'Sundurliðun Útlán'!J23","v":0},".M.EUKULIA.XX.THH.XXX.XXXX.SX.XXX.USD.IS.N.M"]
[{"$f":"\"INN.\"&EIGNIR!$B$3&C10216","v":{"$error":"#N/A"}},{"$f":"'Sundurliðun Útlán'!J24","v":0},".M.EUKULIA.XX.THA.XXX.XXXX.SX.XXX.USD.IS.N.M"]
[{"$f":"\"INN.\"&EIGNIR!$B$3&C10217","v":{"$error":"#N/A"}},{"$f":"'Sundurliðun Útlán'!J25","v":0},".M.EUKULIA.XX.OFL.XXX.XXXX.SX.XXX.USD.IS.N.M"]
[{"$f":"\"INN.\"&EIGNIR!$B$3&C10218","v":{"$error":"#N/A"}},{"$f":"'Sundurliðun Útlán'!K13","v":0},".M.EUKULIA.XX.LAB.XXX.XXXX.SX.XXX.GBP.IS.N.M","//í sterlingspundum"]
[{"$f":"\"INN.\"&EIGNIR!$B$3&C10219","v":{"$error":"#N/A"}},{"$f":"'Sundurliðun Útlán'!K14","v":0},".M.EUKULIA.XX.SJA.XXX.XXXX.SX.XXX.GBP.IS.N.M"]
[{"$f":"\"INN.\"&EIGNIR!$B$3&C10220","v":{"$error":"#N/A"}},{"$f":"'Sundurliðun Útlán'!K15","v":0},".M.EUKULIA.XX.ILA.XXX.XXXX.SX.XXX.GBP.IS.N.M"]
[{"$f":"\"INN.\"&EIGNIR!$B$3&C10221","v":{"$error":"#N/A"}},{"$f":"'Sundurliðun Útlán'!K16","v":0},".M.EUKULIA.XX.ISJ.XXX.XXXX.SX.XXX.GBP.IS.N.M"]
[{"$f":"\"INN.\"&EIGNIR!$B$3&C10222","v":{"$error":"#N/A"}},{"$f":"'Sundurliðun Útlán'!K17","v":0},".M.EUKULIA.XX.IAN.XXX.XXXX.SX.XXX.GBP.IS.N.M"]
[{"$f":"\"INN.\"&EIGNIR!$B$3&C10223","v":{"$error":"#N/A"}},{"$f":"'Sundurliðun Útlán'!K18","v":0},".M.EUKULIA.XX.RAF.XXX.XXXX.SX.XXX.GBP.IS.N.M"]
[{"$f":"\"INN.\"&EIGNIR!$B$3&C10224","v":{"$error":"#N/A"}},{"$f":"'Sundurliðun Útlán'!K19","v":0},".M.EUKULIA.XX.MAN.XXX.XXXX.SX.XXX.GBP.IS.N.M"]
[{"$f":"\"INN.\"&EIGNIR!$B$3&C10225","v":{"$error":"#N/A"}},{"$f":"'Sundurliðun Útlán'!K20","v":0},".M.EUKULIA.XX.VEN.XXX.XXXX.SX.XXX.GBP.IS.N.M"]
[{"$f":"\"INN.\"&EIGNIR!$B$3&C10226","v":{"$error":"#N/A"}},{"$f":"'Sundurliðun Útlán'!K21","v":0},".M.EUKULIA.XX.SAG.XXX.XXXX.SX.XXX.GBP.IS.N.M"]
[{"$f":"\"INN.\"&EIGNIR!$B$3&C10227","v":{"$error":"#N/A"}},{"$f":"'Sundurliðun Útlán'!K22","v":0},".M.EUKULIA.XX.THF.XXX.XXXX.SX.XXX.GBP.IS.N.M"]
[{"$f":"\"INN.\"&EIGNIR!$B$3&C10228","v":{"$error":"#N/A"}},{"$f":"'Sundurliðun Útlán'!K23","v":0},".M.EUKULIA.XX.THH.XXX.XXXX.SX.XXX.GBP.IS.N.M"]
[{"$f":"\"INN.\"&EIGNIR!$B$3&C10229","v":{"$error":"#N/A"}},{"$f":"'Sundurliðun Útlán'!K24","v":0},".M.EUKULIA.XX.THA.XXX.XXXX.SX.XXX.GBP.IS.N.M"]
[{"$f":"\"INN.\"&EIGNIR!$B$3&C10230","v":{"$error":"#N/A"}},{"$f":"'Sundurliðun Útlán'!K25","v":0},".M.EUKULIA.XX.OFL.XXX.XXXX.SX.XXX.GBP.IS.N.M"]
[{"$f":"\"INN.\"&EIGNIR!$B$3&C10231","v":{"$error":"#N/A"}},{"$f":"'Sundurliðun Útlán'!L13","v":0},".M.EUKULIA.XX.LAB.XXX.XXXX.SX.XXX.JPY.IS.N.M","//í japönskum jenum"]
[{"$f":"\"INN.\"&EIGNIR!$B$3&C10232","v":{"$error":"#N/A"}},{"$f":"'Sundurliðun Útlán'!L14","v":0},".M.EUKULIA.XX.SJA.XXX.XXXX.SX.XXX.JPY.IS.N.M"]
[{"$f":"\"INN.\"&EIGNIR!$B$3&C10233","v":{"$error":"#N/A"}},{"$f":"'Sundurliðun Útlán'!L15","v":0},".M.EUKULIA.XX.ILA.XXX.XXXX.SX.XXX.JPY.IS.N.M"]
[{"$f":"\"INN.\"&EIGNIR!$B$3&C10234","v":{"$error":"#N/A"}},{"$f":"'Sundurliðun Útlán'!L16","v":0},".M.EUKULIA.XX.ISJ.XXX.XXXX.SX.XXX.JPY.IS.N.M"]
[{"$f":"\"INN.\"&EIGNIR!$B$3&C10235","v":{"$error":"#N/A"}},{"$f":"'Sundurliðun Útlán'!L17","v":0},".M.EUKULIA.XX.IAN.XXX.XXXX.SX.XXX.JPY.IS.N.M"]
[{"$f":"\"INN.\"&EIGNIR!$B$3&C10236","v":{"$error":"#N/A"}},{"$f":"'Sundurliðun Útlán'!L18","v":0},".M.EUKULIA.XX.RAF.XXX.XXXX.SX.XXX.JPY.IS.N.M"]
[{"$f":"\"INN.\"&EIGNIR!$B$3&C10237","v":{"$error":"#N/A"}},{"$f":"'Sundurliðun Útlán'!L19","v":0},".M.EUKULIA.XX.MAN.XXX.XXXX.SX.XXX.JPY.IS.N.M"]
[{"$f":"\"INN.\"&EIGNIR!$B$3&C10238","v":{"$error":"#N/A"}},{"$f":"'Sundurliðun Útlán'!L20","v":0},".M.EUKULIA.XX.VEN.XXX.XXXX.SX.XXX.JPY.IS.N.M"]
[{"$f":"\"INN.\"&EIGNIR!$B$3&C10239","v":{"$error":"#N/A"}},{"$f":"'Sundurliðun Útlán'!L21","v":0},".M.EUKULIA.XX.SAG.XXX.XXXX.SX.XXX.JPY.IS.N.M"]
[{"$f":"\"INN.\"&EIGNIR!$B$3&C10240","v":{"$error":"#N/A"}},{"$f":"'Sundurliðun Útlán'!L22","v":0},".M.EUKULIA.XX.THF.XXX.XXXX.SX.XXX.JPY.IS.N.M"]
[{"$f":"\"INN.\"&EIGNIR!$B$3&C10241","v":{"$error":"#N/A"}},{"$f":"'Sundurliðun Útlán'!L23","v":0},".M.EUKULIA.XX.THH.XXX.XXXX.SX.XXX.JPY.IS.N.M"]
[{"$f":"\"INN.\"&EIGNIR!$B$3&C10242","v":{"$error":"#N/A"}},{"$f":"'Sundurliðun Útlán'!L24","v":0},".M.EUKULIA.XX.THA.XXX.XXXX.SX.XXX.JPY.IS.N.M"]
[{"$f":"\"INN.\"&EIGNIR!$B$3&C10243","v":{"$error":"#N/A"}},{"$f":"'Sundurliðun Útlán'!L25","v":0},".M.EUKULIA.XX.OFL.XXX.XXXX.SX.XXX.JPY.IS.N.M"]
[{"$f":"\"INN.\"&EIGNIR!$B$3&C10244","v":{"$error":"#N/A"}},{"$f":"'Sundurliðun Útlán'!M13","v":0},".M.EUKULIA.XX.LAB.XXX.XXXX.SX.XXX.DKK.IS.N.M","// í dönskum krónum"]
[{"$f":"\"INN.\"&EIGNIR!$B$3&C10245","v":{"$error":"#N/A"}},{"$f":"'Sundurliðun Útlán'!M14","v":0},".M.EUKULIA.XX.SJA.XXX.XXXX.SX.XXX.DKK.IS.N.M"]
[{"$f":"\"INN.\"&EIGNIR!$B$3&C10246","v":{"$error":"#N/A"}},{"$f":"'Sundurliðun Útlán'!M15","v":0},".M.EUKULIA.XX.ILA.XXX.XXXX.SX.XXX.DKK.IS.N.M"]
[{"$f":"\"INN.\"&EIGNIR!$B$3&C10247","v":{"$error":"#N/A"}},{"$f":"'Sundurliðun Útlán'!M16","v":0},".M.EUKULIA.XX.ISJ.XXX.XXXX.SX.XXX.DKK.IS.N.M"]
[{"$f":"\"INN.\"&EIGNIR!$B$3&C10248","v":{"$error":"#N/A"}},{"$f":"'Sundurliðun Útlán'!M17","v":0},".M.EUKULIA.XX.IAN.XXX.XXXX.SX.XXX.DKK.IS.N.M"]
[{"$f":"\"INN.\"&EIGNIR!$B$3&C10249","v":{"$error":"#N/A"}},{"$f":"'Sundurliðun Útlán'!M18","v":0},".M.EUKULIA.XX.RAF.XXX.XXXX.SX.XXX.DKK.IS.N.M"]
[{"$f":"\"INN.\"&EIGNIR!$B$3&C10250","v":{"$error":"#N/A"}},{"$f":"'Sundurliðun Útlán'!M19","v":0},".M.EUKULIA.XX.MAN.XXX.XXXX.SX.XXX.DKK.IS.N.M"]
[{"$f":"\"INN.\"&EIGNIR!$B$3&C10251","v":{"$error":"#N/A"}},{"$f":"'Sundurliðun Útlán'!M20","v":0},".M.EUKULIA.XX.VEN.XXX.XXXX.SX.XXX.DKK.IS.N.M"]
[{"$f":"\"INN.\"&EIGNIR!$B$3&C10252","v":{"$error":"#N/A"}},{"$f":"'Sundurliðun Útlán'!M21","v":0},".M.EUKULIA.XX.SAG.XXX.XXXX.SX.XXX.DKK.IS.N.M"]
[{"$f":"\"INN.\"&EIGNIR!$B$3&C10253","v":{"$error":"#N/A"}},{"$f":"'Sundurliðun Útlán'!M22","v":0},".M.EUKULIA.XX.THF.XXX.XXXX.SX.XXX.DKK.IS.N.M"]
[{"$f":"\"INN.\"&EIGNIR!$B$3&C10254","v":{"$error":"#N/A"}},{"$f":"'Sundurliðun Útlán'!M23","v":0},".M.EUKULIA.XX.THH.XXX.XXXX.SX.XXX.DKK.IS.N.M"]
[{"$f":"\"INN.\"&EIGNIR!$B$3&C10255","v":{"$error":"#N/A"}},{"$f":"'Sundurliðun Útlán'!M24","v":0},".M.EUKULIA.XX.THA.XXX.XXXX.SX.XXX.DKK.IS.N.M"]
[{"$f":"\"INN.\"&EIGNIR!$B$3&C10256","v":{"$error":"#N/A"}},{"$f":"'Sundurliðun Útlán'!M25","v":0},".M.EUKULIA.XX.OFL.XXX.XXXX.SX.XXX.DKK.IS.N.M"]
[{"$f":"\"INN.\"&EIGNIR!$B$3&C10257","v":{"$error":"#N/A"}},{"$f":"'Sundurliðun Útlán'!N13","v":0},".M.EUKULIA.XX.LAB.XXX.XXXX.SX.XXX.NOK.IS.N.M","//í norskum krónum"]
[{"$f":"\"INN.\"&EIGNIR!$B$3&C10258","v":{"$error":"#N/A"}},{"$f":"'Sundurliðun Útlán'!N14","v":0},".M.EUKULIA.XX.SJA.XXX.XXXX.SX.XXX.NOK.IS.N.M"]
[{"$f":"\"INN.\"&EIGNIR!$B$3&C10259","v":{"$error":"#N/A"}},{"$f":"'Sundurliðun Útlán'!N15","v":0},".M.EUKULIA.XX.ILA.XXX.XXXX.SX.XXX.NOK.IS.N.M"]
[{"$f":"\"INN.\"&EIGNIR!$B$3&C10260","v":{"$error":"#N/A"}},{"$f":"'Sundurliðun Útlán'!N16","v":0},".M.EUKULIA.XX.ISJ.XXX.XXXX.SX.XXX.NOK.IS.N.M"]
[{"$f":"\"INN.\"&EIGNIR!$B$3&C10261","v":{"$error":"#N/A"}},{"$f":"'Sundurliðun Útlán'!N17","v":0},".M.EUKULIA.XX.IAN.XXX.XXXX.SX.XXX.NOK.IS.N.M"]
[{"$f":"\"INN.\"&EIGNIR!$B$3&C10262","v":{"$error":"#N/A"}},{"$f":"'Sundurliðun Útlán'!N18","v":0},".M.EUKULIA.XX.RAF.XXX.XXXX.SX.XXX.NOK.IS.N.M"]
[{"$f":"\"INN.\"&EIGNIR!$B$3&C10263","v":{"$error":"#N/A"}},{"$f":"'Sundurliðun Útlán'!N19","v":0},".M.EUKULIA.XX.MAN.XXX.XXXX.SX.XXX.NOK.IS.N.M"]
[{"$f":"\"INN.\"&EIGNIR!$B$3&C10264","v":{"$error":"#N/A"}},{"$f":"'Sundurliðun Útlán'!N20","v":0},".M.EUKULIA.XX.VEN.XXX.XXXX.SX.XXX.NOK.IS.N.M"]
[{"$f":"\"INN.\"&EIGNIR!$B$3&C10265","v":{"$error":"#N/A"}},{"$f":"'Sundurliðun Útlán'!N21","v":0},".M.EUKULIA.XX.SAG.XXX.XXXX.SX.XXX.NOK.IS.N.M"]
[{"$f":"\"INN.\"&EIGNIR!$B$3&C10266","v":{"$error":"#N/A"}},{"$f":"'Sundurliðun Útlán'!N22","v":0},".M.EUKULIA.XX.THF.XXX.XXXX.SX.XXX.NOK.IS.N.M"]
[{"$f":"\"INN.\"&EIGNIR!$B$3&C10267","v":{"$error":"#N/A"}},{"$f":"'Sundurliðun Útlán'!N23","v":0},".M.EUKULIA.XX.THH.XXX.XXXX.SX.XXX.NOK.IS.N.M"]
[{"$f":"\"INN.\"&EIGNIR!$B$3&C10268","v":{"$error":"#N/A"}},{"$f":"'Sundurliðun Útlán'!N24","v":0},".M.EUKULIA.XX.THA.XXX.XXXX.SX.XXX.NOK.IS.N.M"]
[{"$f":"\"INN.\"&EIGNIR!$B$3&C10269","v":{"$error":"#N/A"}},{"$f":"'Sundurliðun Útlán'!N25","v":0},".M.EUKULIA.XX.OFL.XXX.XXXX.SX.XXX.NOK.IS.N.M"]
[{"$f":"\"INN.\"&EIGNIR!$B$3&C10270","v":{"$error":"#N/A"}},{"$f":"'Sundurliðun Útlán'!O13","v":0},".M.EUKULIA.XX.LAB.XXX.XXXX.SX.XXX.SEK.IS.N.M","//í sænskum krónum"]
[{"$f":"\"INN.\"&EIGNIR!$B$3&C10271","v":{"$error":"#N/A"}},{"$f":"'Sundurliðun Útlán'!O14","v":0},".M.EUKULIA.XX.SJA.XXX.XXXX.SX.XXX.SEK.IS.N.M"]
[{"$f":"\"INN.\"&EIGNIR!$B$3&C10272","v":{"$error":"#N/A"}},{"$f":"'Sundurliðun Útlán'!O15","v":0},".M.EUKULIA.XX.ILA.XXX.XXXX.SX.XXX.SEK.IS.N.M"]
[{"$f":"\"INN.\"&EIGNIR!$B$3&C10273","v":{"$error":"#N/A"}},{"$f":"'Sundurliðun Útlán'!O16","v":0},".M.EUKULIA.XX.ISJ.XXX.XXXX.SX.XXX.SEK.IS.N.M"]
[{"$f":"\"INN.\"&EIGNIR!$B$3&C10274","v":{"$error":"#N/A"}},{"$f":"'Sundurliðun Útlán'!O17","v":0},".M.EUKULIA.XX.IAN.XXX.XXXX.SX.XXX.SEK.IS.N.M"]
[{"$f":"\"INN.\"&EIGNIR!$B$3&C10275","v":{"$error":"#N/A"}},{"$f":"'Sundurliðun Útlán'!O18","v":0},".M.EUKULIA.XX.RAF.XXX.XXXX.SX.XXX.SEK.IS.N.M"]
[{"$f":"\"INN.\"&EIGNIR!$B$3&C10276","v":{"$error":"#N/A"}},{"$f":"'Sundurliðun Útlán'!O19","v":0},".M.EUKULIA.XX.MAN.XXX.XXXX.SX.XXX.SEK.IS.N.M"]
[{"$f":"\"INN.\"&EIGNIR!$B$3&C10277","v":{"$error":"#N/A"}},{"$f":"'Sundurliðun Útlán'!O20","v":0},".M.EUKULIA.XX.VEN.XXX.XXXX.SX.XXX.SEK.IS.N.M"]
[{"$f":"\"INN.\"&EIGNIR!$B$3&C10278","v":{"$error":"#N/A"}},{"$f":"'Sundurliðun Útlán'!O21","v":0},".M.EUKULIA.XX.SAG.XXX.XXXX.SX.XXX.SEK.IS.N.M"]
[{"$f":"\"INN.\"&EIGNIR!$B$3&C10279","v":{"$error":"#N/A"}},{"$f":"'Sundurliðun Útlán'!O22","v":0},".M.EUKULIA.XX.THF.XXX.XXXX.SX.XXX.SEK.IS.N.M"]
[{"$f":"\"INN.\"&EIGNIR!$B$3&C10280","v":{"$error":"#N/A"}},{"$f":"'Sundurliðun Útlán'!O23","v":0},".M.EUKULIA.XX.THH.XXX.XXXX.SX.XXX.SEK.IS.N.M"]
[{"$f":"\"INN.\"&EIGNIR!$B$3&C10281","v":{"$error":"#N/A"}},{"$f":"'Sundurliðun Útlán'!O24","v":0},".M.EUKULIA.XX.THA.XXX.XXXX.SX.XXX.SEK.IS.N.M"]
[{"$f":"\"INN.\"&EIGNIR!$B$3&C10282","v":{"$error":"#N/A"}},{"$f":"'Sundurliðun Útlán'!O25","v":0},".M.EUKULIA.XX.OFL.XXX.XXXX.SX.XXX.SEK.IS.N.M"]
[{"$f":"\"INN.\"&EIGNIR!$B$3&C10283","v":{"$error":"#N/A"}},{"$f":"'Sundurliðun Útlán'!P13","v":0},".M.EUKULIA.XX.LAB.XXX.XXXX.SX.XXX.CHF.IS.N.M","//í svisskneskum krónum"]
[{"$f":"\"INN.\"&EIGNIR!$B$3&C10284","v":{"$error":"#N/A"}},{"$f":"'Sundurliðun Útlán'!P14","v":0},".M.EUKULIA.XX.SJA.XXX.XXXX.SX.XXX.CHF.IS.N.M"]
[{"$f":"\"INN.\"&EIGNIR!$B$3&C10285","v":{"$error":"#N/A"}},{"$f":"'Sundurliðun Útlán'!P15","v":0},".M.EUKULIA.XX.ILA.XXX.XXXX.SX.XXX.CHF.IS.N.M"]
[{"$f":"\"INN.\"&EIGNIR!$B$3&C10286","v":{"$error":"#N/A"}},{"$f":"'Sundurliðun Útlán'!P16","v":0},".M.EUKULIA.XX.ISJ.XXX.XXXX.SX.XXX.CHF.IS.N.M"]
[{"$f":"\"INN.\"&EIGNIR!$B$3&C10287","v":{"$error":"#N/A"}},{"$f":"'Sundurliðun Útlán'!P17","v":0},".M.EUKULIA.XX.IAN.XXX.XXXX.SX.XXX.CHF.IS.N.M"]
[{"$f":"\"INN.\"&EIGNIR!$B$3&C10288","v":{"$error":"#N/A"}},{"$f":"'Sundurliðun Útlán'!P18","v":0},".M.EUKULIA.XX.RAF.XXX.XXXX.SX.XXX.CHF.IS.N.M"]
[{"$f":"\"INN.\"&EIGNIR!$B$3&C10289","v":{"$error":"#N/A"}},{"$f":"'Sundurliðun Útlán'!P19","v":0},".M.EUKULIA.XX.MAN.XXX.XXXX.SX.XXX.CHF.IS.N.M"]
[{"$f":"\"INN.\"&EIGNIR!$B$3&C10290","v":{"$error":"#N/A"}},{"$f":"'Sundurliðun Útlán'!P20","v":0},".M.EUKULIA.XX.VEN.XXX.XXXX.SX.XXX.CHF.IS.N.M"]
[{"$f":"\"INN.\"&EIGNIR!$B$3&C10291","v":{"$error":"#N/A"}},{"$f":"'Sundurliðun Útlán'!P21","v":0},".M.EUKULIA.XX.SAG.XXX.XXXX.SX.XXX.CHF.IS.N.M"]
[{"$f":"\"INN.\"&EIGNIR!$B$3&C10292","v":{"$error":"#N/A"}},{"$f":"'Sundurliðun Útlán'!P22","v":0},".M.EUKULIA.XX.THF.XXX.XXXX.SX.XXX.CHF.IS.N.M"]
[{"$f":"\"INN.\"&EIGNIR!$B$3&C10293","v":{"$error":"#N/A"}},{"$f":"'Sundurliðun Útlán'!P23","v":0},".M.EUKULIA.XX.THH.XXX.XXXX.SX.XXX.CHF.IS.N.M"]
[{"$f":"\"INN.\"&EIGNIR!$B$3&C10294","v":{"$error":"#N/A"}},{"$f":"'Sundurliðun Útlán'!P24","v":0},".M.EUKULIA.XX.THA.XXX.XXXX.SX.XXX.CHF.IS.N.M"]
[{"$f":"\"INN.\"&EIGNIR!$B$3&C10295","v":{"$error":"#N/A"}},{"$f":"'Sundurliðun Útlán'!P25","v":0},".M.EUKULIA.XX.OFL.XXX.XXXX.SX.XXX.CHF.IS.N.M"]
[{"$f":"\"INN.\"&EIGNIR!$B$3&C10296","v":{"$error":"#N/A"}},{"$f":"'Sundurliðun Útlán'!Q13","v":0},".M.EUKULIA.XX.LAB.XXX.XXXX.SX.XXX.ADR.IS.N.M","// í öðrum myntum"]
[{"$f":"\"INN.\"&EIGNIR!$B$3&C10297","v":{"$error":"#N/A"}},{"$f":"'Sundurliðun Útlán'!Q14","v":0},".M.EUKULIA.XX.SJA.XXX.XXXX.SX.XXX.ADR.IS.N.M"]
[{"$f":"\"INN.\"&EIGNIR!$B$3&C10298","v":{"$error":"#N/A"}},{"$f":"'Sundurliðun Útlán'!Q15","v":0},".M.EUKULIA.XX.ILA.XXX.XXXX.SX.XXX.ADR.IS.N.M"]
[{"$f":"\"INN.\"&EIGNIR!$B$3&C10299","v":{"$error":"#N/A"}},{"$f":"'Sundurliðun Útlán'!Q16","v":0},".M.EUKULIA.XX.ISJ.XXX.XXXX.SX.XXX.ADR.IS.N.M"]
[{"$f":"\"INN.\"&EIGNIR!$B$3&C10300","v":{"$error":"#N/A"}},{"$f":"'Sundurliðun Útlán'!Q17","v":0},".M.EUKULIA.XX.IAN.XXX.XXXX.SX.XXX.ADR.IS.N.M"]
[{"$f":"\"INN.\"&EIGNIR!$B$3&C10301","v":{"$error":"#N/A"}},{"$f":"'Sundurliðun Útlán'!Q18","v":0},".M.EUKULIA.XX.RAF.XXX.XXXX.SX.XXX.ADR.IS.N.M"]
[{"$f":"\"INN.\"&EIGNIR!$B$3&C10302","v":{"$error":"#N/A"}},{"$f":"'Sundurliðun Útlán'!Q19","v":0},".M.EUKULIA.XX.MAN.XXX.XXXX.SX.XXX.ADR.IS.N.M"]
[{"$f":"\"INN.\"&EIGNIR!$B$3&C10303","v":{"$error":"#N/A"}},{"$f":"'Sundurliðun Útlán'!Q20","v":0},".M.EUKULIA.XX.VEN.XXX.XXXX.SX.XXX.ADR.IS.N.M"]
[{"$f":"\"INN.\"&EIGNIR!$B$3&C10304","v":{"$error":"#N/A"}},{"$f":"'Sundurliðun Útlán'!Q21","v":0},".M.EUKULIA.XX.SAG.XXX.XXXX.SX.XXX.ADR.IS.N.M"]
[{"$f":"\"INN.\"&EIGNIR!$B$3&C10305","v":{"$error":"#N/A"}},{"$f":"'Sundurliðun Útlán'!Q22","v":0},".M.EUKULIA.XX.THF.XXX.XXXX.SX.XXX.ADR.IS.N.M"]
[{"$f":"\"INN.\"&EIGNIR!$B$3&C10306","v":{"$error":"#N/A"}},{"$f":"'Sundurliðun Útlán'!Q23","v":0},".M.EUKULIA.XX.THH.XXX.XXXX.SX.XXX.ADR.IS.N.M"]
[{"$f":"\"INN.\"&EIGNIR!$B$3&C10307","v":{"$error":"#N/A"}},{"$f":"'Sundurliðun Útlán'!Q24","v":0},".M.EUKULIA.XX.THA.XXX.XXXX.SX.XXX.ADR.IS.N.M"]
[{"$f":"\"INN.\"&EIGNIR!$B$3&C10308","v":{"$error":"#N/A"}},{"$f":"'Sundurliðun Útlán'!Q25","v":0},".M.EUKULIA.XX.OFL.XXX.XXXX.SX.XXX.ADR.IS.N.M"]
[{"$f":"\"INN.\"&EIGNIR!$B$3&C10309","v":{"$error":"#N/A"}},{"$f":"'Sundurliðun Útlán'!H44","v":0},".M.EUKULYL.XX.LAB.XXX.XXXX.SX.XXX.ISK.IS.N.M","//Sundurliðun, Útlán, yfirdráttarlán, í íslenskum krónum"]
[{"$f":"\"INN.\"&EIGNIR!$B$3&C10310","v":{"$error":"#N/A"}},{"$f":"'Sundurliðun Útlán'!H45","v":0},".M.EUKULYL.XX.SJA.XXX.XXXX.SX.XXX.ISK.IS.N.M"]
[{"$f":"\"INN.\"&EIGNIR!$B$3&C10311","v":{"$error":"#N/A"}},{"$f":"'Sundurliðun Útlán'!H46","v":0},".M.EUKULYL.XX.ILA.XXX.XXXX.SX.XXX.ISK.IS.N.M"]
[{"$f":"\"INN.\"&EIGNIR!$B$3&C10312","v":{"$error":"#N/A"}},{"$f":"'Sundurliðun Útlán'!H47","v":0},".M.EUKULYL.XX.ISJ.XXX.XXXX.SX.XXX.ISK.IS.N.M"]
[{"$f":"\"INN.\"&EIGNIR!$B$3&C10313","v":{"$error":"#N/A"}},{"$f":"'Sundurliðun Útlán'!H48","v":0},".M.EUKULYL.XX.IAN.XXX.XXXX.SX.XXX.ISK.IS.N.M"]
[{"$f":"\"INN.\"&EIGNIR!$B$3&C10314","v":{"$error":"#N/A"}},{"$f":"'Sundurliðun Útlán'!H49","v":0},".M.EUKULYL.XX.RAF.XXX.XXXX.SX.XXX.ISK.IS.N.M"]
[{"$f":"\"INN.\"&EIGNIR!$B$3&C10315","v":{"$error":"#N/A"}},{"$f":"'Sundurliðun Útlán'!H50","v":0},".M.EUKULYL.XX.MAN.XXX.XXXX.SX.XXX.ISK.IS.N.M"]
[{"$f":"\"INN.\"&EIGNIR!$B$3&C10316","v":{"$error":"#N/A"}},{"$f":"'Sundurliðun Útlán'!H51","v":0},".M.EUKULYL.XX.VEN.XXX.XXXX.SX.XXX.ISK.IS.N.M"]
[{"$f":"\"INN.\"&EIGNIR!$B$3&C10317","v":{"$error":"#N/A"}},{"$f":"'Sundurliðun Útlán'!H52","v":0},".M.EUKULYL.XX.SAG.XXX.XXXX.SX.XXX.ISK.IS.N.M"]
[{"$f":"\"INN.\"&EIGNIR!$B$3&C10318","v":{"$error":"#N/A"}},{"$f":"'Sundurliðun Útlán'!H53","v":0},".M.EUKULYL.XX.THF.XXX.XXXX.SX.XXX.ISK.IS.N.M"]
[{"$f":"\"INN.\"&EIGNIR!$B$3&C10319","v":{"$error":"#N/A"}},{"$f":"'Sundurliðun Útlán'!H54","v":0},".M.EUKULYL.XX.THH.XXX.XXXX.SX.XXX.ISK.IS.N.M"]
[{"$f":"\"INN.\"&EIGNIR!$B$3&C10320","v":{"$error":"#N/A"}},{"$f":"'Sundurliðun Útlán'!H55","v":0},".M.EUKULYL.XX.THA.XXX.XXXX.SX.XXX.ISK.IS.N.M"]
[{"$f":"\"INN.\"&EIGNIR!$B$3&C10321","v":{"$error":"#N/A"}},{"$f":"'Sundurliðun Útlán'!H56","v":0},".M.EUKULYL.XX.OFL.XXX.XXXX.SX.XXX.ISK.IS.N.M"]
[{"$f":"\"INN.\"&EIGNIR!$B$3&C10322","v":{"$error":"#N/A"}},{"$f":"'Sundurliðun Útlán'!I44","v":0},".M.EUKULYL.XX.LAB.XXX.XXXX.SX.XXX.EUR.IS.N.M","//í evrum"]
[{"$f":"\"INN.\"&EIGNIR!$B$3&C10323","v":{"$error":"#N/A"}},{"$f":"'Sundurliðun Útlán'!I45","v":0},".M.EUKULYL.XX.SJA.XXX.XXXX.SX.XXX.EUR.IS.N.M"]
[{"$f":"\"INN.\"&EIGNIR!$B$3&C10324","v":{"$error":"#N/A"}},{"$f":"'Sundurliðun Útlán'!I46","v":0},".M.EUKULYL.XX.ILA.XXX.XXXX.SX.XXX.EUR.IS.N.M"]
[{"$f":"\"INN.\"&EIGNIR!$B$3&C10325","v":{"$error":"#N/A"}},{"$f":"'Sundurliðun Útlán'!I47","v":0},".M.EUKULYL.XX.ISJ.XXX.XXXX.SX.XXX.EUR.IS.N.M"]
[{"$f":"\"INN.\"&EIGNIR!$B$3&C10326","v":{"$error":"#N/A"}},{"$f":"'Sundurliðun Útlán'!I48","v":0},".M.EUKULYL.XX.IAN.XXX.XXXX.SX.XXX.EUR.IS.N.M"]
[{"$f":"\"INN.\"&EIGNIR!$B$3&C10327","v":{"$error":"#N/A"}},{"$f":"'Sundurliðun Útlán'!I49","v":0},".M.EUKULYL.XX.RAF.XXX.XXXX.SX.XXX.EUR.IS.N.M"]
[{"$f":"\"INN.\"&EIGNIR!$B$3&C10328","v":{"$error":"#N/A"}},{"$f":"'Sundurliðun Útlán'!I50","v":0},".M.EUKULYL.XX.MAN.XXX.XXXX.SX.XXX.EUR.IS.N.M"]
[{"$f":"\"INN.\"&EIGNIR!$B$3&C10329","v":{"$error":"#N/A"}},{"$f":"'Sundurliðun Útlán'!I51","v":0},".M.EUKULYL.XX.VEN.XXX.XXXX.SX.XXX.EUR.IS.N.M"]
[{"$f":"\"INN.\"&EIGNIR!$B$3&C10330","v":{"$error":"#N/A"}},{"$f":"'Sundurliðun Útlán'!I52","v":0},".M.EUKULYL.XX.SAG.XXX.XXXX.SX.XXX.EUR.IS.N.M"]
[{"$f":"\"INN.\"&EIGNIR!$B$3&C10331","v":{"$error":"#N/A"}},{"$f":"'Sundurliðun Útlán'!I53","v":0},".M.EUKULYL.XX.THF.XXX.XXXX.SX.XXX.EUR.IS.N.M"]
[{"$f":"\"INN.\"&EIGNIR!$B$3&C10332","v":{"$error":"#N/A"}},{"$f":"'Sundurliðun Útlán'!I54","v":0},".M.EUKULYL.XX.THH.XXX.XXXX.SX.XXX.EUR.IS.N.M"]
[{"$f":"\"INN.\"&EIGNIR!$B$3&C10333","v":{"$error":"#N/A"}},{"$f":"'Sundurliðun Útlán'!I55","v":0},".M.EUKULYL.XX.THA.XXX.XXXX.SX.XXX.EUR.IS.N.M"]
[{"$f":"\"INN.\"&EIGNIR!$B$3&C10334","v":{"$error":"#N/A"}},{"$f":"'Sundurliðun Útlán'!I56","v":0},".M.EUKULYL.XX.OFL.XXX.XXXX.SX.XXX.EUR.IS.N.M"]
[{"$f":"\"INN.\"&EIGNIR!$B$3&C10335","v":{"$error":"#N/A"}},{"$f":"'Sundurliðun Útlán'!J44","v":0},".M.EUKULYL.XX.LAB.XXX.XXXX.SX.XXX.USD.IS.N.M","//í bandarískum dollurum"]
[{"$f":"\"INN.\"&EIGNIR!$B$3&C10336","v":{"$error":"#N/A"}},{"$f":"'Sundurliðun Útlán'!J45","v":0},".M.EUKULYL.XX.SJA.XXX.XXXX.SX.XXX.USD.IS.N.M"]
[{"$f":"\"INN.\"&EIGNIR!$B$3&C10337","v":{"$error":"#N/A"}},{"$f":"'Sundurliðun Útlán'!J46","v":0},".M.EUKULYL.XX.ILA.XXX.XXXX.SX.XXX.USD.IS.N.M"]
[{"$f":"\"INN.\"&EIGNIR!$B$3&C10338","v":{"$error":"#N/A"}},{"$f":"'Sundurliðun Útlán'!J47","v":0},".M.EUKULYL.XX.ISJ.XXX.XXXX.SX.XXX.USD.IS.N.M"]
[{"$f":"\"INN.\"&EIGNIR!$B$3&C10339","v":{"$error":"#N/A"}},{"$f":"'Sundurliðun Útlán'!J48","v":0},".M.EUKULYL.XX.IAN.XXX.XXXX.SX.XXX.USD.IS.N.M"]
[{"$f":"\"INN.\"&EIGNIR!$B$3&C10340","v":{"$error":"#N/A"}},{"$f":"'Sundurliðun Útlán'!J49","v":0},".M.EUKULYL.XX.RAF.XXX.XXXX.SX.XXX.USD.IS.N.M"]
[{"$f":"\"INN.\"&EIGNIR!$B$3&C10341","v":{"$error":"#N/A"}},{"$f":"'Sundurliðun Útlán'!J50","v":0},".M.EUKULYL.XX.MAN.XXX.XXXX.SX.XXX.USD.IS.N.M"]
[{"$f":"\"INN.\"&EIGNIR!$B$3&C10342","v":{"$error":"#N/A"}},{"$f":"'Sundurliðun Útlán'!J51","v":0},".M.EUKULYL.XX.VEN.XXX.XXXX.SX.XXX.USD.IS.N.M"]
[{"$f":"\"INN.\"&EIGNIR!$B$3&C10343","v":{"$error":"#N/A"}},{"$f":"'Sundurliðun Útlán'!J52","v":0},".M.EUKULYL.XX.SAG.XXX.XXXX.SX.XXX.USD.IS.N.M"]
[{"$f":"\"INN.\"&EIGNIR!$B$3&C10344","v":{"$error":"#N/A"}},{"$f":"'Sundurliðun Útlán'!J53","v":0},".M.EUKULYL.XX.THF.XXX.XXXX.SX.XXX.USD.IS.N.M"]
[{"$f":"\"INN.\"&EIGNIR!$B$3&C10345","v":{"$error":"#N/A"}},{"$f":"'Sundurliðun Útlán'!J54","v":0},".M.EUKULYL.XX.THH.XXX.XXXX.SX.XXX.USD.IS.N.M"]
[{"$f":"\"INN.\"&EIGNIR!$B$3&C10346","v":{"$error":"#N/A"}},{"$f":"'Sundurliðun Útlán'!J55","v":0},".M.EUKULYL.XX.THA.XXX.XXXX.SX.XXX.USD.IS.N.M"]
[{"$f":"\"INN.\"&EIGNIR!$B$3&C10347","v":{"$error":"#N/A"}},{"$f":"'Sundurliðun Útlán'!J56","v":0},".M.EUKULYL.XX.OFL.XXX.XXXX.SX.XXX.USD.IS.N.M"]
[{"$f":"\"INN.\"&EIGNIR!$B$3&C10348","v":{"$error":"#N/A"}},{"$f":"'Sundurliðun Útlán'!K44","v":0},".M.EUKULYL.XX.LAB.XXX.XXXX.SX.XXX.GBP.IS.N.M","//í sterlingspundum"]
[{"$f":"\"INN.\"&EIGNIR!$B$3&C10349","v":{"$error":"#N/A"}},{"$f":"'Sundurliðun Útlán'!K45","v":0},".M.EUKULYL.XX.SJA.XXX.XXXX.SX.XXX.GBP.IS.N.M"]
[{"$f":"\"INN.\"&EIGNIR!$B$3&C10350","v":{"$error":"#N/A"}},{"$f":"'Sundurliðun Útlán'!K46","v":0},".M.EUKULYL.XX.ILA.XXX.XXXX.SX.XXX.GBP.IS.N.M"]
[{"$f":"\"INN.\"&EIGNIR!$B$3&C10351","v":{"$error":"#N/A"}},{"$f":"'Sundurliðun Útlán'!K47","v":0},".M.EUKULYL.XX.ISJ.XXX.XXXX.SX.XXX.GBP.IS.N.M"]
[{"$f":"\"INN.\"&EIGNIR!$B$3&C10352","v":{"$error":"#N/A"}},{"$f":"'Sundurliðun Útlán'!K48","v":0},".M.EUKULYL.XX.IAN.XXX.XXXX.SX.XXX.GBP.IS.N.M"]
[{"$f":"\"INN.\"&EIGNIR!$B$3&C10353","v":{"$error":"#N/A"}},{"$f":"'Sundurliðun Útlán'!K49","v":0},".M.EUKULYL.XX.RAF.XXX.XXXX.SX.XXX.GBP.IS.N.M"]
[{"$f":"\"INN.\"&EIGNIR!$B$3&C10354","v":{"$error":"#N/A"}},{"$f":"'Sundurliðun Útlán'!K50","v":0},".M.EUKULYL.XX.MAN.XXX.XXXX.SX.XXX.GBP.IS.N.M"]
[{"$f":"\"INN.\"&EIGNIR!$B$3&C10355","v":{"$error":"#N/A"}},{"$f":"'Sundurliðun Útlán'!K51","v":0},".M.EUKULYL.XX.VEN.XXX.XXXX.SX.XXX.GBP.IS.N.M"]
[{"$f":"\"INN.\"&EIGNIR!$B$3&C10356","v":{"$error":"#N/A"}},{"$f":"'Sundurliðun Útlán'!K52","v":0},".M.EUKULYL.XX.SAG.XXX.XXXX.SX.XXX.GBP.IS.N.M"]
[{"$f":"\"INN.\"&EIGNIR!$B$3&C10357","v":{"$error":"#N/A"}},{"$f":"'Sundurliðun Útlán'!K53","v":0},".M.EUKULYL.XX.THF.XXX.XXXX.SX.XXX.GBP.IS.N.M"]
[{"$f":"\"INN.\"&EIGNIR!$B$3&C10358","v":{"$error":"#N/A"}},{"$f":"'Sundurliðun Útlán'!K54","v":0},".M.EUKULYL.XX.THH.XXX.XXXX.SX.XXX.GBP.IS.N.M"]
[{"$f":"\"INN.\"&EIGNIR!$B$3&C10359","v":{"$error":"#N/A"}},{"$f":"'Sundurliðun Útlán'!K55","v":0},".M.EUKULYL.XX.THA.XXX.XXXX.SX.XXX.GBP.IS.N.M"]
[{"$f":"\"INN.\"&EIGNIR!$B$3&C10360","v":{"$error":"#N/A"}},{"$f":"'Sundurliðun Útlán'!K56","v":0},".M.EUKULYL.XX.OFL.XXX.XXXX.SX.XXX.GBP.IS.N.M"]
[{"$f":"\"INN.\"&EIGNIR!$B$3&C10361","v":{"$error":"#N/A"}},{"$f":"'Sundurliðun Útlán'!L44","v":0},".M.EUKULYL.XX.LAB.XXX.XXXX.SX.XXX.JPY.IS.N.M","// í japönskum jenum"]
[{"$f":"\"INN.\"&EIGNIR!$B$3&C10362","v":{"$error":"#N/A"}},{"$f":"'Sundurliðun Útlán'!L45","v":0},".M.EUKULYL.XX.SJA.XXX.XXXX.SX.XXX.JPY.IS.N.M"]
[{"$f":"\"INN.\"&EIGNIR!$B$3&C10363","v":{"$error":"#N/A"}},{"$f":"'Sundurliðun Útlán'!L46","v":0},".M.EUKULYL.XX.ILA.XXX.XXXX.SX.XXX.JPY.IS.N.M"]
[{"$f":"\"INN.\"&EIGNIR!$B$3&C10364","v":{"$error":"#N/A"}},{"$f":"'Sundurliðun Útlán'!L47","v":0},".M.EUKULYL.XX.ISJ.XXX.XXXX.SX.XXX.JPY.IS.N.M"]
[{"$f":"\"INN.\"&EIGNIR!$B$3&C10365","v":{"$error":"#N/A"}},{"$f":"'Sundurliðun Útlán'!L48","v":0},".M.EUKULYL.XX.IAN.XXX.XXXX.SX.XXX.JPY.IS.N.M"]
[{"$f":"\"INN.\"&EIGNIR!$B$3&C10366","v":{"$error":"#N/A"}},{"$f":"'Sundurliðun Útlán'!L49","v":0},".M.EUKULYL.XX.RAF.XXX.XXXX.SX.XXX.JPY.IS.N.M"]
[{"$f":"\"INN.\"&EIGNIR!$B$3&C10367","v":{"$error":"#N/A"}},{"$f":"'Sundurliðun Útlán'!L50","v":0},".M.EUKULYL.XX.MAN.XXX.XXXX.SX.XXX.JPY.IS.N.M"]
[{"$f":"\"INN.\"&EIGNIR!$B$3&C10368","v":{"$error":"#N/A"}},{"$f":"'Sundurliðun Útlán'!L51","v":0},".M.EUKULYL.XX.VEN.XXX.XXXX.SX.XXX.JPY.IS.N.M"]
[{"$f":"\"INN.\"&EIGNIR!$B$3&C10369","v":{"$error":"#N/A"}},{"$f":"'Sundurliðun Útlán'!L52","v":0},".M.EUKULYL.XX.SAG.XXX.XXXX.SX.XXX.JPY.IS.N.M"]
[{"$f":"\"INN.\"&EIGNIR!$B$3&C10370","v":{"$error":"#N/A"}},{"$f":"'Sundurliðun Útlán'!L53","v":0},".M.EUKULYL.XX.THF.XXX.XXXX.SX.XXX.JPY.IS.N.M"]
[{"$f":"\"INN.\"&EIGNIR!$B$3&C10371","v":{"$error":"#N/A"}},{"$f":"'Sundurliðun Útlán'!L54","v":0},".M.EUKULYL.XX.THH.XXX.XXXX.SX.XXX.JPY.IS.N.M"]
[{"$f":"\"INN.\"&EIGNIR!$B$3&C10372","v":{"$error":"#N/A"}},{"$f":"'Sundurliðun Útlán'!L55","v":0},".M.EUKULYL.XX.THA.XXX.XXXX.SX.XXX.JPY.IS.N.M"]
[{"$f":"\"INN.\"&EIGNIR!$B$3&C10373","v":{"$error":"#N/A"}},{"$f":"'Sundurliðun Útlán'!L56","v":0},".M.EUKULYL.XX.OFL.XXX.XXXX.SX.XXX.JPY.IS.N.M"]
[{"$f":"\"INN.\"&EIGNIR!$B$3&C10374","v":{"$error":"#N/A"}},{"$f":"'Sundurliðun Útlán'!M44","v":0},".M.EUKULYL.XX.LAB.XXX.XXXX.SX.XXX.DKK.IS.N.M","//í dönskum krónum"]
[{"$f":"\"INN.\"&EIGNIR!$B$3&C10375","v":{"$error":"#N/A"}},{"$f":"'Sundurliðun Útlán'!M45","v":0},".M.EUKULYL.XX.SJA.XXX.XXXX.SX.XXX.DKK.IS.N.M"]
[{"$f":"\"INN.\"&EIGNIR!$B$3&C10376","v":{"$error":"#N/A"}},{"$f":"'Sundurliðun Útlán'!M46","v":0},".M.EUKULYL.XX.ILA.XXX.XXXX.SX.XXX.DKK.IS.N.M"]
[{"$f":"\"INN.\"&EIGNIR!$B$3&C10377","v":{"$error":"#N/A"}},{"$f":"'Sundurliðun Útlán'!M47","v":0},".M.EUKULYL.XX.ISJ.XXX.XXXX.SX.XXX.DKK.IS.N.M"]
[{"$f":"\"INN.\"&EIGNIR!$B$3&C10378","v":{"$error":"#N/A"}},{"$f":"'Sundurliðun Útlán'!M48","v":0},".M.EUKULYL.XX.IAN.XXX.XXXX.SX.XXX.DKK.IS.N.M"]
[{"$f":"\"INN.\"&EIGNIR!$B$3&C10379","v":{"$error":"#N/A"}},{"$f":"'Sundurliðun Útlán'!M49","v":0},".M.EUKULYL.XX.RAF.XXX.XXXX.SX.XXX.DKK.IS.N.M"]
[{"$f":"\"INN.\"&EIGNIR!$B$3&C10380","v":{"$error":"#N/A"}},{"$f":"'Sundurliðun Útlán'!M50","v":0},".M.EUKULYL.XX.MAN.XXX.XXXX.SX.XXX.DKK.IS.N.M"]
[{"$f":"\"INN.\"&EIGNIR!$B$3&C10381","v":{"$error":"#N/A"}},{"$f":"'Sundurliðun Útlán'!M51","v":0},".M.EUKULYL.XX.VEN.XXX.XXXX.SX.XXX.DKK.IS.N.M"]
[{"$f":"\"INN.\"&EIGNIR!$B$3&C10382","v":{"$error":"#N/A"}},{"$f":"'Sundurliðun Útlán'!M52","v":0},".M.EUKULYL.XX.SAG.XXX.XXXX.SX.XXX.DKK.IS.N.M"]
[{"$f":"\"INN.\"&EIGNIR!$B$3&C10383","v":{"$error":"#N/A"}},{"$f":"'Sundurliðun Útlán'!M53","v":0},".M.EUKULYL.XX.THF.XXX.XXXX.SX.XXX.DKK.IS.N.M"]
[{"$f":"\"INN.\"&EIGNIR!$B$3&C10384","v":{"$error":"#N/A"}},{"$f":"'Sundurliðun Útlán'!M54","v":0},".M.EUKULYL.XX.THH.XXX.XXXX.SX.XXX.DKK.IS.N.M"]
[{"$f":"\"INN.\"&EIGNIR!$B$3&C10385","v":{"$error":"#N/A"}},{"$f":"'Sundurliðun Útlán'!M55","v":0},".M.EUKULYL.XX.THA.XXX.XXXX.SX.XXX.DKK.IS.N.M"]
[{"$f":"\"INN.\"&EIGNIR!$B$3&C10386","v":{"$error":"#N/A"}},{"$f":"'Sundurliðun Útlán'!M56","v":0},".M.EUKULYL.XX.OFL.XXX.XXXX.SX.XXX.DKK.IS.N.M"]
[{"$f":"\"INN.\"&EIGNIR!$B$3&C10387","v":{"$error":"#N/A"}},{"$f":"'Sundurliðun Útlán'!N44","v":0},".M.EUKULYL.XX.LAB.XXX.XXXX.SX.XXX.NOK.IS.N.M","//í norskum krónum"]
[{"$f":"\"INN.\"&EIGNIR!$B$3&C10388","v":{"$error":"#N/A"}},{"$f":"'Sundurliðun Útlán'!N45","v":0},".M.EUKULYL.XX.SJA.XXX.XXXX.SX.XXX.NOK.IS.N.M"]
[{"$f":"\"INN.\"&EIGNIR!$B$3&C10389","v":{"$error":"#N/A"}},{"$f":"'Sundurliðun Útlán'!N46","v":0},".M.EUKULYL.XX.ILA.XXX.XXXX.SX.XXX.NOK.IS.N.M"]
[{"$f":"\"INN.\"&EIGNIR!$B$3&C10390","v":{"$error":"#N/A"}},{"$f":"'Sundurliðun Útlán'!N47","v":0},".M.EUKULYL.XX.ISJ.XXX.XXXX.SX.XXX.NOK.IS.N.M"]
[{"$f":"\"INN.\"&EIGNIR!$B$3&C10391","v":{"$error":"#N/A"}},{"$f":"'Sundurliðun Útlán'!N48","v":0},".M.EUKULYL.XX.IAN.XXX.XXXX.SX.XXX.NOK.IS.N.M"]
[{"$f":"\"INN.\"&EIGNIR!$B$3&C10392","v":{"$error":"#N/A"}},{"$f":"'Sundurliðun Útlán'!N49","v":0},".M.EUKULYL.XX.RAF.XXX.XXXX.SX.XXX.NOK.IS.N.M"]
[{"$f":"\"INN.\"&EIGNIR!$B$3&C10393","v":{"$error":"#N/A"}},{"$f":"'Sundurliðun Útlán'!N50","v":0},".M.EUKULYL.XX.MAN.XXX.XXXX.SX.XXX.NOK.IS.N.M"]
[{"$f":"\"INN.\"&EIGNIR!$B$3&C10394","v":{"$error":"#N/A"}},{"$f":"'Sundurliðun Útlán'!N51","v":0},".M.EUKULYL.XX.VEN.XXX.XXXX.SX.XXX.NOK.IS.N.M"]
[{"$f":"\"INN.\"&EIGNIR!$B$3&C10395","v":{"$error":"#N/A"}},{"$f":"'Sundurliðun Útlán'!N52","v":0},".M.EUKULYL.XX.SAG.XXX.XXXX.SX.XXX.NOK.IS.N.M"]
[{"$f":"\"INN.\"&EIGNIR!$B$3&C10396","v":{"$error":"#N/A"}},{"$f":"'Sundurliðun Útlán'!N53","v":0},".M.EUKULYL.XX.THF.XXX.XXXX.SX.XXX.NOK.IS.N.M"]
[{"$f":"\"INN.\"&EIGNIR!$B$3&C10397","v":{"$error":"#N/A"}},{"$f":"'Sundurliðun Útlán'!N54","v":0},".M.EUKULYL.XX.THH.XXX.XXXX.SX.XXX.NOK.IS.N.M"]
[{"$f":"\"INN.\"&EIGNIR!$B$3&C10398","v":{"$error":"#N/A"}},{"$f":"'Sundurliðun Útlán'!N55","v":0},".M.EUKULYL.XX.THA.XXX.XXXX.SX.XXX.NOK.IS.N.M"]
[{"$f":"\"INN.\"&EIGNIR!$B$3&C10399","v":{"$error":"#N/A"}},{"$f":"'Sundurliðun Útlán'!N56","v":0},".M.EUKULYL.XX.OFL.XXX.XXXX.SX.XXX.NOK.IS.N.M"]
[{"$f":"\"INN.\"&EIGNIR!$B$3&C10400","v":{"$error":"#N/A"}},{"$f":"'Sundurliðun Útlán'!O44","v":0},".M.EUKULYL.XX.LAB.XXX.XXXX.SX.XXX.SEK.IS.N.M","//í sænskum krónum"]
[{"$f":"\"INN.\"&EIGNIR!$B$3&C10401","v":{"$error":"#N/A"}},{"$f":"'Sundurliðun Útlán'!O45","v":0},".M.EUKULYL.XX.SJA.XXX.XXXX.SX.XXX.SEK.IS.N.M"]
[{"$f":"\"INN.\"&EIGNIR!$B$3&C10402","v":{"$error":"#N/A"}},{"$f":"'Sundurliðun Útlán'!O46","v":0},".M.EUKULYL.XX.ILA.XXX.XXXX.SX.XXX.SEK.IS.N.M"]
[{"$f":"\"INN.\"&EIGNIR!$B$3&C10403","v":{"$error":"#N/A"}},{"$f":"'Sundurliðun Útlán'!O47","v":0},".M.EUKULYL.XX.ISJ.XXX.XXXX.SX.XXX.SEK.IS.N.M"]
[{"$f":"\"INN.\"&EIGNIR!$B$3&C10404","v":{"$error":"#N/A"}},{"$f":"'Sundurliðun Útlán'!O48","v":0},".M.EUKULYL.XX.IAN.XXX.XXXX.SX.XXX.SEK.IS.N.M"]
[{"$f":"\"INN.\"&EIGNIR!$B$3&C10405","v":{"$error":"#N/A"}},{"$f":"'Sundurliðun Útlán'!O49","v":0},".M.EUKULYL.XX.RAF.XXX.XXXX.SX.XXX.SEK.IS.N.M"]
[{"$f":"\"INN.\"&EIGNIR!$B$3&C10406","v":{"$error":"#N/A"}},{"$f":"'Sundurliðun Útlán'!O50","v":0},".M.EUKULYL.XX.MAN.XXX.XXXX.SX.XXX.SEK.IS.N.M"]
[{"$f":"\"INN.\"&EIGNIR!$B$3&C10407","v":{"$error":"#N/A"}},{"$f":"'Sundurliðun Útlán'!O51","v":0},".M.EUKULYL.XX.VEN.XXX.XXXX.SX.XXX.SEK.IS.N.M"]
[{"$f":"\"INN.\"&EIGNIR!$B$3&C10408","v":{"$error":"#N/A"}},{"$f":"'Sundurliðun Útlán'!O52","v":0},".M.EUKULYL.XX.SAG.XXX.XXXX.SX.XXX.SEK.IS.N.M"]
[{"$f":"\"INN.\"&EIGNIR!$B$3&C10409","v":{"$error":"#N/A"}},{"$f":"'Sundurliðun Útlán'!O53","v":0},".M.EUKULYL.XX.THF.XXX.XXXX.SX.XXX.SEK.IS.N.M"]
[{"$f":"\"INN.\"&EIGNIR!$B$3&C10410","v":{"$error":"#N/A"}},{"$f":"'Sundurliðun Útlán'!O54","v":0},".M.EUKULYL.XX.THH.XXX.XXXX.SX.XXX.SEK.IS.N.M"]
[{"$f":"\"INN.\"&EIGNIR!$B$3&C10411","v":{"$error":"#N/A"}},{"$f":"'Sundurliðun Útlán'!O55","v":0},".M.EUKULYL.XX.THA.XXX.XXXX.SX.XXX.SEK.IS.N.M"]
[{"$f":"\"INN.\"&EIGNIR!$B$3&C10412","v":{"$error":"#N/A"}},{"$f":"'Sundurliðun Útlán'!O56","v":0},".M.EUKULYL.XX.OFL.XXX.XXXX.SX.XXX.SEK.IS.N.M"]
[{"$f":"\"INN.\"&EIGNIR!$B$3&C10413","v":{"$error":"#N/A"}},{"$f":"'Sundurliðun Útlán'!P44","v":0},".M.EUKULYL.XX.LAB.XXX.XXXX.SX.XXX.CHF.IS.N.M","//í svissneskum frönkum"]
[{"$f":"\"INN.\"&EIGNIR!$B$3&C10414","v":{"$error":"#N/A"}},{"$f":"'Sundurliðun Útlán'!P45","v":0},".M.EUKULYL.XX.SJA.XXX.XXXX.SX.XXX.CHF.IS.N.M"]
[{"$f":"\"INN.\"&EIGNIR!$B$3&C10415","v":{"$error":"#N/A"}},{"$f":"'Sundurliðun Útlán'!P46","v":0},".M.EUKULYL.XX.ILA.XXX.XXXX.SX.XXX.CHF.IS.N.M"]
[{"$f":"\"INN.\"&EIGNIR!$B$3&C10416","v":{"$error":"#N/A"}},{"$f":"'Sundurliðun Útlán'!P47","v":0},".M.EUKULYL.XX.ISJ.XXX.XXXX.SX.XXX.CHF.IS.N.M"]
[{"$f":"\"INN.\"&EIGNIR!$B$3&C10417","v":{"$error":"#N/A"}},{"$f":"'Sundurliðun Útlán'!P48","v":0},".M.EUKULYL.XX.IAN.XXX.XXXX.SX.XXX.CHF.IS.N.M"]
[{"$f":"\"INN.\"&EIGNIR!$B$3&C10418","v":{"$error":"#N/A"}},{"$f":"'Sundurliðun Útlán'!P49","v":0},".M.EUKULYL.XX.RAF.XXX.XXXX.SX.XXX.CHF.IS.N.M"]
[{"$f":"\"INN.\"&EIGNIR!$B$3&C10419","v":{"$error":"#N/A"}},{"$f":"'Sundurliðun Útlán'!P50","v":0},".M.EUKULYL.XX.MAN.XXX.XXXX.SX.XXX.CHF.IS.N.M"]
[{"$f":"\"INN.\"&EIGNIR!$B$3&C10420","v":{"$error":"#N/A"}},{"$f":"'Sundurliðun Útlán'!P51","v":0},".M.EUKULYL.XX.VEN.XXX.XXXX.SX.XXX.CHF.IS.N.M"]
[{"$f":"\"INN.\"&EIGNIR!$B$3&C10421","v":{"$error":"#N/A"}},{"$f":"'Sundurliðun Útlán'!P52","v":0},".M.EUKULYL.XX.SAG.XXX.XXXX.SX.XXX.CHF.IS.N.M"]
[{"$f":"\"INN.\"&EIGNIR!$B$3&C10422","v":{"$error":"#N/A"}},{"$f":"'Sundurliðun Útlán'!P53","v":0},".M.EUKULYL.XX.THF.XXX.XXXX.SX.XXX.CHF.IS.N.M"]
[{"$f":"\"INN.\"&EIGNIR!$B$3&C10423","v":{"$error":"#N/A"}},{"$f":"'Sundurliðun Útlán'!P54","v":0},".M.EUKULYL.XX.THH.XXX.XXXX.SX.XXX.CHF.IS.N.M"]
[{"$f":"\"INN.\"&EIGNIR!$B$3&C10424","v":{"$error":"#N/A"}},{"$f":"'Sundurliðun Útlán'!P55","v":0},".M.EUKULYL.XX.THA.XXX.XXXX.SX.XXX.CHF.IS.N.M"]
[{"$f":"\"INN.\"&EIGNIR!$B$3&C10425","v":{"$error":"#N/A"}},{"$f":"'Sundurliðun Útlán'!P56","v":0},".M.EUKULYL.XX.OFL.XXX.XXXX.SX.XXX.CHF.IS.N.M"]
[{"$f":"\"INN.\"&EIGNIR!$B$3&C10426","v":{"$error":"#N/A"}},{"$f":"'Sundurliðun Útlán'!Q44","v":0},".M.EUKULYL.XX.LAB.XXX.XXXX.SX.XXX.ADR.IS.N.M","//í öðrum myntum"]
[{"$f":"\"INN.\"&EIGNIR!$B$3&C10427","v":{"$error":"#N/A"}},{"$f":"'Sundurliðun Útlán'!Q45","v":0},".M.EUKULYL.XX.SJA.XXX.XXXX.SX.XXX.ADR.IS.N.M"]
[{"$f":"\"INN.\"&EIGNIR!$B$3&C10428","v":{"$error":"#N/A"}},{"$f":"'Sundurliðun Útlán'!Q46","v":0},".M.EUKULYL.XX.ILA.XXX.XXXX.SX.XXX.ADR.IS.N.M"]
[{"$f":"\"INN.\"&EIGNIR!$B$3&C10429","v":{"$error":"#N/A"}},{"$f":"'Sundurliðun Útlán'!Q47","v":0},".M.EUKULYL.XX.ISJ.XXX.XXXX.SX.XXX.ADR.IS.N.M"]
[{"$f":"\"INN.\"&EIGNIR!$B$3&C10430","v":{"$error":"#N/A"}},{"$f":"'Sundurliðun Útlán'!Q48","v":0},".M.EUKULYL.XX.IAN.XXX.XXXX.SX.XXX.ADR.IS.N.M"]
[{"$f":"\"INN.\"&EIGNIR!$B$3&C10431","v":{"$error":"#N/A"}},{"$f":"'Sundurliðun Útlán'!Q49","v":0},".M.EUKULYL.XX.RAF.XXX.XXXX.SX.XXX.ADR.IS.N.M"]
[{"$f":"\"INN.\"&EIGNIR!$B$3&C10432","v":{"$error":"#N/A"}},{"$f":"'Sundurliðun Útlán'!Q50","v":0},".M.EUKULYL.XX.MAN.XXX.XXXX.SX.XXX.ADR.IS.N.M"]
[{"$f":"\"INN.\"&EIGNIR!$B$3&C10433","v":{"$error":"#N/A"}},{"$f":"'Sundurliðun Útlán'!Q51","v":0},".M.EUKULYL.XX.VEN.XXX.XXXX.SX.XXX.ADR.IS.N.M"]
[{"$f":"\"INN.\"&EIGNIR!$B$3&C10434","v":{"$error":"#N/A"}},{"$f":"'Sundurliðun Útlán'!Q52","v":0},".M.EUKULYL.XX.SAG.XXX.XXXX.SX.XXX.ADR.IS.N.M"]
[{"$f":"\"INN.\"&EIGNIR!$B$3&C10435","v":{"$error":"#N/A"}},{"$f":"'Sundurliðun Útlán'!Q53","v":0},".M.EUKULYL.XX.THF.XXX.XXXX.SX.XXX.ADR.IS.N.M"]
[{"$f":"\"INN.\"&EIGNIR!$B$3&C10436","v":{"$error":"#N/A"}},{"$f":"'Sundurliðun Útlán'!Q54","v":0},".M.EUKULYL.XX.THH.XXX.XXXX.SX.XXX.ADR.IS.N.M"]
[{"$f":"\"INN.\"&EIGNIR!$B$3&C10437","v":{"$error":"#N/A"}},{"$f":"'Sundurliðun Útlán'!Q55","v":0},".M.EUKULYL.XX.THA.XXX.XXXX.SX.XXX.ADR.IS.N.M"]
[{"$f":"\"INN.\"&EIGNIR!$B$3&C10438","v":{"$error":"#N/A"}},{"$f":"'Sundurliðun Útlán'!Q56","v":0},".M.EUKULYL.XX.OFL.XXX.XXXX.SX.XXX.ADR.IS.N.M"]
[{"$f":"\"INN.\"&EIGNIR!$B$3&C10439","v":{"$error":"#N/A"}},{"$f":"'Sundurliðun Útlán'!H75","v":0},".M.EUKULVX.XX.LAB.XXX.XXXX.SX.XXX.ISK.IS.N.M","//Sundurliðun, Útlán, Vixlar í íslenskum krónum"]
[{"$f":"\"INN.\"&EIGNIR!$B$3&C10440","v":{"$error":"#N/A"}},{"$f":"'Sundurliðun Útlán'!H76","v":0},".M.EUKULVX.XX.SJA.XXX.XXXX.SX.XXX.ISK.IS.N.M"]
[{"$f":"\"INN.\"&EIGNIR!$B$3&C10441","v":{"$error":"#N/A"}},{"$f":"'Sundurliðun Útlán'!H77","v":0},".M.EUKULVX.XX.ILA.XXX.XXXX.SX.XXX.ISK.IS.N.M"]
[{"$f":"\"INN.\"&EIGNIR!$B$3&C10442","v":{"$error":"#N/A"}},{"$f":"'Sundurliðun Útlán'!H78","v":0},".M.EUKULVX.XX.ISJ.XXX.XXXX.SX.XXX.ISK.IS.N.M"]
[{"$f":"\"INN.\"&EIGNIR!$B$3&C10443","v":{"$error":"#N/A"}},{"$f":"'Sundurliðun Útlán'!H79","v":0},".M.EUKULVX.XX.IAN.XXX.XXXX.SX.XXX.ISK.IS.N.M"]
[{"$f":"\"INN.\"&EIGNIR!$B$3&C10444","v":{"$error":"#N/A"}},{"$f":"'Sundurliðun Útlán'!H80","v":0},".M.EUKULVX.XX.RAF.XXX.XXXX.SX.XXX.ISK.IS.N.M"]
[{"$f":"\"INN.\"&EIGNIR!$B$3&C10445","v":{"$error":"#N/A"}},{"$f":"'Sundurliðun Útlán'!H81","v":0},".M.EUKULVX.XX.MAN.XXX.XXXX.SX.XXX.ISK.IS.N.M"]
[{"$f":"\"INN.\"&EIGNIR!$B$3&C10446","v":{"$error":"#N/A"}},{"$f":"'Sundurliðun Útlán'!H82","v":0},".M.EUKULVX.XX.VEN.XXX.XXXX.SX.XXX.ISK.IS.N.M"]
[{"$f":"\"INN.\"&EIGNIR!$B$3&C10447","v":{"$error":"#N/A"}},{"$f":"'Sundurliðun Útlán'!H83","v":0},".M.EUKULVX.XX.SAG.XXX.XXXX.SX.XXX.ISK.IS.N.M"]
[{"$f":"\"INN.\"&EIGNIR!$B$3&C10448","v":{"$error":"#N/A"}},{"$f":"'Sundurliðun Útlán'!H84","v":0},".M.EUKULVX.XX.THF.XXX.XXXX.SX.XXX.ISK.IS.N.M"]
[{"$f":"\"INN.\"&EIGNIR!$B$3&C10449","v":{"$error":"#N/A"}},{"$f":"'Sundurliðun Útlán'!H85","v":0},".M.EUKULVX.XX.THH.XXX.XXXX.SX.XXX.ISK.IS.N.M"]
[{"$f":"\"INN.\"&EIGNIR!$B$3&C10450","v":{"$error":"#N/A"}},{"$f":"'Sundurliðun Útlán'!H86","v":0},".M.EUKULVX.XX.THA.XXX.XXXX.SX.XXX.ISK.IS.N.M"]
[{"$f":"\"INN.\"&EIGNIR!$B$3&C10451","v":{"$error":"#N/A"}},{"$f":"'Sundurliðun Útlán'!H87","v":0},".M.EUKULVX.XX.OFL.XXX.XXXX.SX.XXX.ISK.IS.N.M"]
[{"$f":"\"INN.\"&EIGNIR!$B$3&C10452","v":{"$error":"#N/A"}},{"$f":"'Sundurliðun Útlán'!I75","v":0},".M.EUKULVX.XX.LAB.XXX.XXXX.SX.XXX.EUR.IS.N.M","//í evrum"]
[{"$f":"\"INN.\"&EIGNIR!$B$3&C10453","v":{"$error":"#N/A"}},{"$f":"'Sundurliðun Útlán'!I76","v":0},".M.EUKULVX.XX.SJA.XXX.XXXX.SX.XXX.EUR.IS.N.M"]
[{"$f":"\"INN.\"&EIGNIR!$B$3&C10454","v":{"$error":"#N/A"}},{"$f":"'Sundurliðun Útlán'!I77","v":0},".M.EUKULVX.XX.ILA.XXX.XXXX.SX.XXX.EUR.IS.N.M"]
[{"$f":"\"INN.\"&EIGNIR!$B$3&C10455","v":{"$error":"#N/A"}},{"$f":"'Sundurliðun Útlán'!I78","v":0},".M.EUKULVX.XX.ISJ.XXX.XXXX.SX.XXX.EUR.IS.N.M"]
[{"$f":"\"INN.\"&EIGNIR!$B$3&C10456","v":{"$error":"#N/A"}},{"$f":"'Sundurliðun Útlán'!I79","v":0},".M.EUKULVX.XX.IAN.XXX.XXXX.SX.XXX.EUR.IS.N.M"]
[{"$f":"\"INN.\"&EIGNIR!$B$3&C10457","v":{"$error":"#N/A"}},{"$f":"'Sundurliðun Útlán'!I80","v":0},".M.EUKULVX.XX.RAF.XXX.XXXX.SX.XXX.EUR.IS.N.M"]
[{"$f":"\"INN.\"&EIGNIR!$B$3&C10458","v":{"$error":"#N/A"}},{"$f":"'Sundurliðun Útlán'!I81","v":0},".M.EUKULVX.XX.MAN.XXX.XXXX.SX.XXX.EUR.IS.N.M"]
[{"$f":"\"INN.\"&EIGNIR!$B$3&C10459","v":{"$error":"#N/A"}},{"$f":"'Sundurliðun Útlán'!I82","v":0},".M.EUKULVX.XX.VEN.XXX.XXXX.SX.XXX.EUR.IS.N.M"]
[{"$f":"\"INN.\"&EIGNIR!$B$3&C10460","v":{"$error":"#N/A"}},{"$f":"'Sundurliðun Útlán'!I83","v":0},".M.EUKULVX.XX.SAG.XXX.XXXX.SX.XXX.EUR.IS.N.M"]
[{"$f":"\"INN.\"&EIGNIR!$B$3&C10461","v":{"$error":"#N/A"}},{"$f":"'Sundurliðun Útlán'!I84","v":0},".M.EUKULVX.XX.THF.XXX.XXXX.SX.XXX.EUR.IS.N.M"]
[{"$f":"\"INN.\"&EIGNIR!$B$3&C10462","v":{"$error":"#N/A"}},{"$f":"'Sundurliðun Útlán'!I85","v":0},".M.EUKULVX.XX.THH.XXX.XXXX.SX.XXX.EUR.IS.N.M"]
[{"$f":"\"INN.\"&EIGNIR!$B$3&C10463","v":{"$error":"#N/A"}},{"$f":"'Sundurliðun Útlán'!I86","v":0},".M.EUKULVX.XX.THA.XXX.XXXX.SX.XXX.EUR.IS.N.M"]
[{"$f":"\"INN.\"&EIGNIR!$B$3&C10464","v":{"$error":"#N/A"}},{"$f":"'Sundurliðun Útlán'!I87","v":0},".M.EUKULVX.XX.OFL.XXX.XXXX.SX.XXX.EUR.IS.N.M"]
[{"$f":"\"INN.\"&EIGNIR!$B$3&C10465","v":{"$error":"#N/A"}},{"$f":"'Sundurliðun Útlán'!J75","v":0},".M.EUKULVX.XX.LAB.XXX.XXXX.SX.XXX.USD.IS.N.M","//í bandarískum dollurum"]
[{"$f":"\"INN.\"&EIGNIR!$B$3&C10466","v":{"$error":"#N/A"}},{"$f":"'Sundurliðun Útlán'!J76","v":0},".M.EUKULVX.XX.SJA.XXX.XXXX.SX.XXX.USD.IS.N.M"]
[{"$f":"\"INN.\"&EIGNIR!$B$3&C10467","v":{"$error":"#N/A"}},{"$f":"'Sundurliðun Útlán'!J77","v":0},".M.EUKULVX.XX.ILA.XXX.XXXX.SX.XXX.USD.IS.N.M"]
[{"$f":"\"INN.\"&EIGNIR!$B$3&C10468","v":{"$error":"#N/A"}},{"$f":"'Sundurliðun Útlán'!J78","v":0},".M.EUKULVX.XX.ISJ.XXX.XXXX.SX.XXX.USD.IS.N.M"]
[{"$f":"\"INN.\"&EIGNIR!$B$3&C10469","v":{"$error":"#N/A"}},{"$f":"'Sundurliðun Útlán'!J79","v":0},".M.EUKULVX.XX.IAN.XXX.XXXX.SX.XXX.USD.IS.N.M"]
[{"$f":"\"INN.\"&EIGNIR!$B$3&C10470","v":{"$error":"#N/A"}},{"$f":"'Sundurliðun Útlán'!J80","v":0},".M.EUKULVX.XX.RAF.XXX.XXXX.SX.XXX.USD.IS.N.M"]
[{"$f":"\"INN.\"&EIGNIR!$B$3&C10471","v":{"$error":"#N/A"}},{"$f":"'Sundurliðun Útlán'!J81","v":0},".M.EUKULVX.XX.MAN.XXX.XXXX.SX.XXX.USD.IS.N.M"]
[{"$f":"\"INN.\"&EIGNIR!$B$3&C10472","v":{"$error":"#N/A"}},{"$f":"'Sundurliðun Útlán'!J82","v":0},".M.EUKULVX.XX.VEN.XXX.XXXX.SX.XXX.USD.IS.N.M"]
[{"$f":"\"INN.\"&EIGNIR!$B$3&C10473","v":{"$error":"#N/A"}},{"$f":"'Sundurliðun Útlán'!J83","v":0},".M.EUKULVX.XX.SAG.XXX.XXXX.SX.XXX.USD.IS.N.M"]
[{"$f":"\"INN.\"&EIGNIR!$B$3&C10474","v":{"$error":"#N/A"}},{"$f":"'Sundurliðun Útlán'!J84","v":0},".M.EUKULVX.XX.THF.XXX.XXXX.SX.XXX.USD.IS.N.M"]
[{"$f":"\"INN.\"&EIGNIR!$B$3&C10475","v":{"$error":"#N/A"}},{"$f":"'Sundurliðun Útlán'!J85","v":0},".M.EUKULVX.XX.THH.XXX.XXXX.SX.XXX.USD.IS.N.M"]
[{"$f":"\"INN.\"&EIGNIR!$B$3&C10476","v":{"$error":"#N/A"}},{"$f":"'Sundurliðun Útlán'!J86","v":0},".M.EUKULVX.XX.THA.XXX.XXXX.SX.XXX.USD.IS.N.M"]
[{"$f":"\"INN.\"&EIGNIR!$B$3&C10477","v":{"$error":"#N/A"}},{"$f":"'Sundurliðun Útlán'!J87","v":0},".M.EUKULVX.XX.OFL.XXX.XXXX.SX.XXX.USD.IS.N.M"]
[{"$f":"\"INN.\"&EIGNIR!$B$3&C10478","v":{"$error":"#N/A"}},{"$f":"'Sundurliðun Útlán'!K75","v":0},".M.EUKULVX.XX.LAB.XXX.XXXX.SX.XXX.GBP.IS.N.M","//í sterlingspundum"]
[{"$f":"\"INN.\"&EIGNIR!$B$3&C10479","v":{"$error":"#N/A"}},{"$f":"'Sundurliðun Útlán'!K76","v":0},".M.EUKULVX.XX.SJA.XXX.XXXX.SX.XXX.GBP.IS.N.M"]
[{"$f":"\"INN.\"&EIGNIR!$B$3&C10480","v":{"$error":"#N/A"}},{"$f":"'Sundurliðun Útlán'!K77","v":0},".M.EUKULVX.XX.ILA.XXX.XXXX.SX.XXX.GBP.IS.N.M"]
[{"$f":"\"INN.\"&EIGNIR!$B$3&C10481","v":{"$error":"#N/A"}},{"$f":"'Sundurliðun Útlán'!K78","v":0},".M.EUKULVX.XX.ISJ.XXX.XXXX.SX.XXX.GBP.IS.N.M"]
[{"$f":"\"INN.\"&EIGNIR!$B$3&C10482","v":{"$error":"#N/A"}},{"$f":"'Sundurliðun Útlán'!K79","v":0},".M.EUKULVX.XX.IAN.XXX.XXXX.SX.XXX.GBP.IS.N.M"]
[{"$f":"\"INN.\"&EIGNIR!$B$3&C10483","v":{"$error":"#N/A"}},{"$f":"'Sundurliðun Útlán'!K80","v":0},".M.EUKULVX.XX.RAF.XXX.XXXX.SX.XXX.GBP.IS.N.M"]
[{"$f":"\"INN.\"&EIGNIR!$B$3&C10484","v":{"$error":"#N/A"}},{"$f":"'Sundurliðun Útlán'!K81","v":0},".M.EUKULVX.XX.MAN.XXX.XXXX.SX.XXX.GBP.IS.N.M"]
[{"$f":"\"INN.\"&EIGNIR!$B$3&C10485","v":{"$error":"#N/A"}},{"$f":"'Sundurliðun Útlán'!K82","v":0},".M.EUKULVX.XX.VEN.XXX.XXXX.SX.XXX.GBP.IS.N.M"]
[{"$f":"\"INN.\"&EIGNIR!$B$3&C10486","v":{"$error":"#N/A"}},{"$f":"'Sundurliðun Útlán'!K83","v":0},".M.EUKULVX.XX.SAG.XXX.XXXX.SX.XXX.GBP.IS.N.M"]
[{"$f":"\"INN.\"&EIGNIR!$B$3&C10487","v":{"$error":"#N/A"}},{"$f":"'Sundurliðun Útlán'!K84","v":0},".M.EUKULVX.XX.THF.XXX.XXXX.SX.XXX.GBP.IS.N.M"]
[{"$f":"\"INN.\"&EIGNIR!$B$3&C10488","v":{"$error":"#N/A"}},{"$f":"'Sundurliðun Útlán'!K85","v":0},".M.EUKULVX.XX.THH.XXX.XXXX.SX.XXX.GBP.IS.N.M"]
[{"$f":"\"INN.\"&EIGNIR!$B$3&C10489","v":{"$error":"#N/A"}},{"$f":"'Sundurliðun Útlán'!K86","v":0},".M.EUKULVX.XX.THA.XXX.XXXX.SX.XXX.GBP.IS.N.M"]
[{"$f":"\"INN.\"&EIGNIR!$B$3&C10490","v":{"$error":"#N/A"}},{"$f":"'Sundurliðun Útlán'!K87","v":0},".M.EUKULVX.XX.OFL.XXX.XXXX.SX.XXX.GBP.IS.N.M"]
[{"$f":"\"INN.\"&EIGNIR!$B$3&C10491","v":{"$error":"#N/A"}},{"$f":"'Sundurliðun Útlán'!L75","v":0},".M.EUKULVX.XX.LAB.XXX.XXXX.SX.XXX.JPY.IS.N.M","// í japönskum jenum"]
[{"$f":"\"INN.\"&EIGNIR!$B$3&C10492","v":{"$error":"#N/A"}},{"$f":"'Sundurliðun Útlán'!L76","v":0},".M.EUKULVX.XX.SJA.XXX.XXXX.SX.XXX.JPY.IS.N.M"]
[{"$f":"\"INN.\"&EIGNIR!$B$3&C10493","v":{"$error":"#N/A"}},{"$f":"'Sundurliðun Útlán'!L77","v":0},".M.EUKULVX.XX.ILA.XXX.XXXX.SX.XXX.JPY.IS.N.M"]
[{"$f":"\"INN.\"&EIGNIR!$B$3&C10494","v":{"$error":"#N/A"}},{"$f":"'Sundurliðun Útlán'!L78","v":0},".M.EUKULVX.XX.ISJ.XXX.XXXX.SX.XXX.JPY.IS.N.M"]
[{"$f":"\"INN.\"&EIGNIR!$B$3&C10495","v":{"$error":"#N/A"}},{"$f":"'Sundurliðun Útlán'!L79","v":0},".M.EUKULVX.XX.IAN.XXX.XXXX.SX.XXX.JPY.IS.N.M"]
[{"$f":"\"INN.\"&EIGNIR!$B$3&C10496","v":{"$error":"#N/A"}},{"$f":"'Sundurliðun Útlán'!L80","v":0},".M.EUKULVX.XX.RAF.XXX.XXXX.SX.XXX.JPY.IS.N.M"]
[{"$f":"\"INN.\"&EIGNIR!$B$3&C10497","v":{"$error":"#N/A"}},{"$f":"'Sundurliðun Útlán'!L81","v":0},".M.EUKULVX.XX.MAN.XXX.XXXX.SX.XXX.JPY.IS.N.M"]
[{"$f":"\"INN.\"&EIGNIR!$B$3&C10498","v":{"$error":"#N/A"}},{"$f":"'Sundurliðun Útlán'!L82","v":0},".M.EUKULVX.XX.VEN.XXX.XXXX.SX.XXX.JPY.IS.N.M"]
[{"$f":"\"INN.\"&EIGNIR!$B$3&C10499","v":{"$error":"#N/A"}},{"$f":"'Sundurliðun Útlán'!L83","v":0},".M.EUKULVX.XX.SAG.XXX.XXXX.SX.XXX.JPY.IS.N.M"]
[{"$f":"\"INN.\"&EIGNIR!$B$3&C10500","v":{"$error":"#N/A"}},{"$f":"'Sundurliðun Útlán'!L84","v":0},".M.EUKULVX.XX.THF.XXX.XXXX.SX.XXX.JPY.IS.N.M"]
[{"$f":"\"INN.\"&EIGNIR!$B$3&C10501","v":{"$error":"#N/A"}},{"$f":"'Sundurliðun Útlán'!L85","v":0},".M.EUKULVX.XX.THH.XXX.XXXX.SX.XXX.JPY.IS.N.M"]
[{"$f":"\"INN.\"&EIGNIR!$B$3&C10502","v":{"$error":"#N/A"}},{"$f":"'Sundurliðun Útlán'!L86","v":0},".M.EUKULVX.XX.THA.XXX.XXXX.SX.XXX.JPY.IS.N.M"]
[{"$f":"\"INN.\"&EIGNIR!$B$3&C10503","v":{"$error":"#N/A"}},{"$f":"'Sundurliðun Útlán'!L87","v":0},".M.EUKULVX.XX.OFL.XXX.XXXX.SX.XXX.JPY.IS.N.M"]
[{"$f":"\"INN.\"&EIGNIR!$B$3&C10504","v":{"$error":"#N/A"}},{"$f":"'Sundurliðun Útlán'!M75","v":0},".M.EUKULVX.XX.LAB.XXX.XXXX.SX.XXX.DKK.IS.N.M","//í dönskum krónum"]
[{"$f":"\"INN.\"&EIGNIR!$B$3&C10505","v":{"$error":"#N/A"}},{"$f":"'Sundurliðun Útlán'!M76","v":0},".M.EUKULVX.XX.SJA.XXX.XXXX.SX.XXX.DKK.IS.N.M"]
[{"$f":"\"INN.\"&EIGNIR!$B$3&C10506","v":{"$error":"#N/A"}},{"$f":"'Sundurliðun Útlán'!M77","v":0},".M.EUKULVX.XX.ILA.XXX.XXXX.SX.XXX.DKK.IS.N.M"]
[{"$f":"\"INN.\"&EIGNIR!$B$3&C10507","v":{"$error":"#N/A"}},{"$f":"'Sundurliðun Útlán'!M78","v":0},".M.EUKULVX.XX.ISJ.XXX.XXXX.SX.XXX.DKK.IS.N.M"]
[{"$f":"\"INN.\"&EIGNIR!$B$3&C10508","v":{"$error":"#N/A"}},{"$f":"'Sundurliðun Útlán'!M79","v":0},".M.EUKULVX.XX.IAN.XXX.XXXX.SX.XXX.DKK.IS.N.M"]
[{"$f":"\"INN.\"&EIGNIR!$B$3&C10509","v":{"$error":"#N/A"}},{"$f":"'Sundurliðun Útlán'!M80","v":0},".M.EUKULVX.XX.RAF.XXX.XXXX.SX.XXX.DKK.IS.N.M"]
[{"$f":"\"INN.\"&EIGNIR!$B$3&C10510","v":{"$error":"#N/A"}},{"$f":"'Sundurliðun Útlán'!M81","v":0},".M.EUKULVX.XX.MAN.XXX.XXXX.SX.XXX.DKK.IS.N.M"]
[{"$f":"\"INN.\"&EIGNIR!$B$3&C10511","v":{"$error":"#N/A"}},{"$f":"'Sundurliðun Útlán'!M82","v":0},".M.EUKULVX.XX.VEN.XXX.XXXX.SX.XXX.DKK.IS.N.M"]
[{"$f":"\"INN.\"&EIGNIR!$B$3&C10512","v":{"$error":"#N/A"}},{"$f":"'Sundurliðun Útlán'!M83","v":0},".M.EUKULVX.XX.SAG.XXX.XXXX.SX.XXX.DKK.IS.N.M"]
[{"$f":"\"INN.\"&EIGNIR!$B$3&C10513","v":{"$error":"#N/A"}},{"$f":"'Sundurliðun Útlán'!M84","v":0},".M.EUKULVX.XX.THF.XXX.XXXX.SX.XXX.DKK.IS.N.M"]
[{"$f":"\"INN.\"&EIGNIR!$B$3&C10514","v":{"$error":"#N/A"}},{"$f":"'Sundurliðun Útlán'!M85","v":0},".M.EUKULVX.XX.THH.XXX.XXXX.SX.XXX.DKK.IS.N.M"]
[{"$f":"\"INN.\"&EIGNIR!$B$3&C10515","v":{"$error":"#N/A"}},{"$f":"'Sundurliðun Útlán'!M86","v":0},".M.EUKULVX.XX.THA.XXX.XXXX.SX.XXX.DKK.IS.N.M"]
[{"$f":"\"INN.\"&EIGNIR!$B$3&C10516","v":{"$error":"#N/A"}},{"$f":"'Sundurliðun Útlán'!M87","v":0},".M.EUKULVX.XX.OFL.XXX.XXXX.SX.XXX.DKK.IS.N.M"]
[{"$f":"\"INN.\"&EIGNIR!$B$3&C10517","v":{"$error":"#N/A"}},{"$f":"'Sundurliðun Útlán'!N75","v":0},".M.EUKULVX.XX.LAB.XXX.XXXX.SX.XXX.NOK.IS.N.M","//í norskum krónum"]
[{"$f":"\"INN.\"&EIGNIR!$B$3&C10518","v":{"$error":"#N/A"}},{"$f":"'Sundurliðun Útlán'!N76","v":0},".M.EUKULVX.XX.SJA.XXX.XXXX.SX.XXX.NOK.IS.N.M"]
[{"$f":"\"INN.\"&EIGNIR!$B$3&C10519","v":{"$error":"#N/A"}},{"$f":"'Sundurliðun Útlán'!N77","v":0},".M.EUKULVX.XX.ILA.XXX.XXXX.SX.XXX.NOK.IS.N.M"]
[{"$f":"\"INN.\"&EIGNIR!$B$3&C10520","v":{"$error":"#N/A"}},{"$f":"'Sundurliðun Útlán'!N78","v":0},".M.EUKULVX.XX.ISJ.XXX.XXXX.SX.XXX.NOK.IS.N.M"]
[{"$f":"\"INN.\"&EIGNIR!$B$3&C10521","v":{"$error":"#N/A"}},{"$f":"'Sundurliðun Útlán'!N79","v":0},".M.EUKULVX.XX.IAN.XXX.XXXX.SX.XXX.NOK.IS.N.M"]
[{"$f":"\"INN.\"&EIGNIR!$B$3&C10522","v":{"$error":"#N/A"}},{"$f":"'Sundurliðun Útlán'!N80","v":0},".M.EUKULVX.XX.RAF.XXX.XXXX.SX.XXX.NOK.IS.N.M"]
[{"$f":"\"INN.\"&EIGNIR!$B$3&C10523","v":{"$error":"#N/A"}},{"$f":"'Sundurliðun Útlán'!N81","v":0},".M.EUKULVX.XX.MAN.XXX.XXXX.SX.XXX.NOK.IS.N.M"]
[{"$f":"\"INN.\"&EIGNIR!$B$3&C10524","v":{"$error":"#N/A"}},{"$f":"'Sundurliðun Útlán'!N82","v":0},".M.EUKULVX.XX.VEN.XXX.XXXX.SX.XXX.NOK.IS.N.M"]
[{"$f":"\"INN.\"&EIGNIR!$B$3&C10525","v":{"$error":"#N/A"}},{"$f":"'Sundurliðun Útlán'!N83","v":0},".M.EUKULVX.XX.SAG.XXX.XXXX.SX.XXX.NOK.IS.N.M"]
[{"$f":"\"INN.\"&EIGNIR!$B$3&C10526","v":{"$error":"#N/A"}},{"$f":"'Sundurliðun Útlán'!N84","v":0},".M.EUKULVX.XX.THF.XXX.XXXX.SX.XXX.NOK.IS.N.M"]
[{"$f":"\"INN.\"&EIGNIR!$B$3&C10527","v":{"$error":"#N/A"}},{"$f":"'Sundurliðun Útlán'!N85","v":0},".M.EUKULVX.XX.THH.XXX.XXXX.SX.XXX.NOK.IS.N.M"]
[{"$f":"\"INN.\"&EIGNIR!$B$3&C10528","v":{"$error":"#N/A"}},{"$f":"'Sundurliðun Útlán'!N86","v":0},".M.EUKULVX.XX.THA.XXX.XXXX.SX.XXX.NOK.IS.N.M"]
[{"$f":"\"INN.\"&EIGNIR!$B$3&C10529","v":{"$error":"#N/A"}},{"$f":"'Sundurliðun Útlán'!N87","v":0},".M.EUKULVX.XX.OFL.XXX.XXXX.SX.XXX.NOK.IS.N.M"]
[{"$f":"\"INN.\"&EIGNIR!$B$3&C10530","v":{"$error":"#N/A"}},{"$f":"'Sundurliðun Útlán'!O75","v":0},".M.EUKULVX.XX.LAB.XXX.XXXX.SX.XXX.SEK.IS.N.M","//í sænskum krónum"]
[{"$f":"\"INN.\"&EIGNIR!$B$3&C10531","v":{"$error":"#N/A"}},{"$f":"'Sundurliðun Útlán'!O76","v":0},".M.EUKULVX.XX.SJA.XXX.XXXX.SX.XXX.SEK.IS.N.M"]
[{"$f":"\"INN.\"&EIGNIR!$B$3&C10532","v":{"$error":"#N/A"}},{"$f":"'Sundurliðun Útlán'!O77","v":0},".M.EUKULVX.XX.ILA.XXX.XXXX.SX.XXX.SEK.IS.N.M"]
[{"$f":"\"INN.\"&EIGNIR!$B$3&C10533","v":{"$error":"#N/A"}},{"$f":"'Sundurliðun Útlán'!O78","v":0},".M.EUKULVX.XX.ISJ.XXX.XXXX.SX.XXX.SEK.IS.N.M"]
[{"$f":"\"INN.\"&EIGNIR!$B$3&C10534","v":{"$error":"#N/A"}},{"$f":"'Sundurliðun Útlán'!O79","v":0},".M.EUKULVX.XX.IAN.XXX.XXXX.SX.XXX.SEK.IS.N.M"]
[{"$f":"\"INN.\"&EIGNIR!$B$3&C10535","v":{"$error":"#N/A"}},{"$f":"'Sundurliðun Útlán'!O80","v":0},".M.EUKULVX.XX.RAF.XXX.XXXX.SX.XXX.SEK.IS.N.M"]
[{"$f":"\"INN.\"&EIGNIR!$B$3&C10536","v":{"$error":"#N/A"}},{"$f":"'Sundurliðun Útlán'!O81","v":0},".M.EUKULVX.XX.MAN.XXX.XXXX.SX.XXX.SEK.IS.N.M"]
[{"$f":"\"INN.\"&EIGNIR!$B$3&C10537","v":{"$error":"#N/A"}},{"$f":"'Sundurliðun Útlán'!O82","v":0},".M.EUKULVX.XX.VEN.XXX.XXXX.SX.XXX.SEK.IS.N.M"]
[{"$f":"\"INN.\"&EIGNIR!$B$3&C10538","v":{"$error":"#N/A"}},{"$f":"'Sundurliðun Útlán'!O83","v":0},".M.EUKULVX.XX.SAG.XXX.XXXX.SX.XXX.SEK.IS.N.M"]
[{"$f":"\"INN.\"&EIGNIR!$B$3&C10539","v":{"$error":"#N/A"}},{"$f":"'Sundurliðun Útlán'!O84","v":0},".M.EUKULVX.XX.THF.XXX.XXXX.SX.XXX.SEK.IS.N.M"]
[{"$f":"\"INN.\"&EIGNIR!$B$3&C10540","v":{"$error":"#N/A"}},{"$f":"'Sundurliðun Útlán'!O85","v":0},".M.EUKULVX.XX.THH.XXX.XXXX.SX.XXX.SEK.IS.N.M"]
[{"$f":"\"INN.\"&EIGNIR!$B$3&C10541","v":{"$error":"#N/A"}},{"$f":"'Sundurliðun Útlán'!O86","v":0},".M.EUKULVX.XX.THA.XXX.XXXX.SX.XXX.SEK.IS.N.M"]
[{"$f":"\"INN.\"&EIGNIR!$B$3&C10542","v":{"$error":"#N/A"}},{"$f":"'Sundurliðun Útlán'!O87","v":0},".M.EUKULVX.XX.OFL.XXX.XXXX.SX.XXX.SEK.IS.N.M"]
[{"$f":"\"INN.\"&EIGNIR!$B$3&C10543","v":{"$error":"#N/A"}},{"$f":"'Sundurliðun Útlán'!P75","v":0},".M.EUKULVX.XX.LAB.XXX.XXXX.SX.XXX.CHF.IS.N.M","//í svissneskum frönkum"]
[{"$f":"\"INN.\"&EIGNIR!$B$3&C10544","v":{"$error":"#N/A"}},{"$f":"'Sundurliðun Útlán'!P76","v":0},".M.EUKULVX.XX.SJA.XXX.XXXX.SX.XXX.CHF.IS.N.M"]
[{"$f":"\"INN.\"&EIGNIR!$B$3&C10545","v":{"$error":"#N/A"}},{"$f":"'Sundurliðun Útlán'!P77","v":0},".M.EUKULVX.XX.ILA.XXX.XXXX.SX.XXX.CHF.IS.N.M"]
[{"$f":"\"INN.\"&EIGNIR!$B$3&C10546","v":{"$error":"#N/A"}},{"$f":"'Sundurliðun Útlán'!P78","v":0},".M.EUKULVX.XX.ISJ.XXX.XXXX.SX.XXX.CHF.IS.N.M"]
[{"$f":"\"INN.\"&EIGNIR!$B$3&C10547","v":{"$error":"#N/A"}},{"$f":"'Sundurliðun Útlán'!P79","v":0},".M.EUKULVX.XX.IAN.XXX.XXXX.SX.XXX.CHF.IS.N.M"]
[{"$f":"\"INN.\"&EIGNIR!$B$3&C10548","v":{"$error":"#N/A"}},{"$f":"'Sundurliðun Útlán'!P80","v":0},".M.EUKULVX.XX.RAF.XXX.XXXX.SX.XXX.CHF.IS.N.M"]
[{"$f":"\"INN.\"&EIGNIR!$B$3&C10549","v":{"$error":"#N/A"}},{"$f":"'Sundurliðun Útlán'!P81","v":0},".M.EUKULVX.XX.MAN.XXX.XXXX.SX.XXX.CHF.IS.N.M"]
[{"$f":"\"INN.\"&EIGNIR!$B$3&C10550","v":{"$error":"#N/A"}},{"$f":"'Sundurliðun Útlán'!P82","v":0},".M.EUKULVX.XX.VEN.XXX.XXXX.SX.XXX.CHF.IS.N.M"]
[{"$f":"\"INN.\"&EIGNIR!$B$3&C10551","v":{"$error":"#N/A"}},{"$f":"'Sundurliðun Útlán'!P83","v":0},".M.EUKULVX.XX.SAG.XXX.XXXX.SX.XXX.CHF.IS.N.M"]
[{"$f":"\"INN.\"&EIGNIR!$B$3&C10552","v":{"$error":"#N/A"}},{"$f":"'Sundurliðun Útlán'!P84","v":0},".M.EUKULVX.XX.THF.XXX.XXXX.SX.XXX.CHF.IS.N.M"]
[{"$f":"\"INN.\"&EIGNIR!$B$3&C10553","v":{"$error":"#N/A"}},{"$f":"'Sundurliðun Útlán'!P85","v":0},".M.EUKULVX.XX.THH.XXX.XXXX.SX.XXX.CHF.IS.N.M"]
[{"$f":"\"INN.\"&EIGNIR!$B$3&C10554","v":{"$error":"#N/A"}},{"$f":"'Sundurliðun Útlán'!P86","v":0},".M.EUKULVX.XX.THA.XXX.XXXX.SX.XXX.CHF.IS.N.M"]
[{"$f":"\"INN.\"&EIGNIR!$B$3&C10555","v":{"$error":"#N/A"}},{"$f":"'Sundurliðun Útlán'!P87","v":0},".M.EUKULVX.XX.OFL.XXX.XXXX.SX.XXX.CHF.IS.N.M"]
[{"$f":"\"INN.\"&EIGNIR!$B$3&C10556","v":{"$error":"#N/A"}},{"$f":"'Sundurliðun Útlán'!Q75","v":0},".M.EUKULVX.XX.LAB.XXX.XXXX.SX.XXX.ADR.IS.N.M","//í öðrum myntum"]
[{"$f":"\"INN.\"&EIGNIR!$B$3&C10557","v":{"$error":"#N/A"}},{"$f":"'Sundurliðun Útlán'!Q76","v":0},".M.EUKULVX.XX.SJA.XXX.XXXX.SX.XXX.ADR.IS.N.M"]
[{"$f":"\"INN.\"&EIGNIR!$B$3&C10558","v":{"$error":"#N/A"}},{"$f":"'Sundurliðun Útlán'!Q77","v":0},".M.EUKULVX.XX.ILA.XXX.XXXX.SX.XXX.ADR.IS.N.M"]
[{"$f":"\"INN.\"&EIGNIR!$B$3&C10559","v":{"$error":"#N/A"}},{"$f":"'Sundurliðun Útlán'!Q78","v":0},".M.EUKULVX.XX.ISJ.XXX.XXXX.SX.XXX.ADR.IS.N.M"]
[{"$f":"\"INN.\"&EIGNIR!$B$3&C10560","v":{"$error":"#N/A"}},{"$f":"'Sundurliðun Útlán'!Q79","v":0},".M.EUKULVX.XX.IAN.XXX.XXXX.SX.XXX.ADR.IS.N.M"]
[{"$f":"\"INN.\"&EIGNIR!$B$3&C10561","v":{"$error":"#N/A"}},{"$f":"'Sundurliðun Útlán'!Q80","v":0},".M.EUKULVX.XX.RAF.XXX.XXXX.SX.XXX.ADR.IS.N.M"]
[{"$f":"\"INN.\"&EIGNIR!$B$3&C10562","v":{"$error":"#N/A"}},{"$f":"'Sundurliðun Útlán'!Q81","v":0},".M.EUKULVX.XX.MAN.XXX.XXXX.SX.XXX.ADR.IS.N.M"]
[{"$f":"\"INN.\"&EIGNIR!$B$3&C10563","v":{"$error":"#N/A"}},{"$f":"'Sundurliðun Útlán'!Q82","v":0},".M.EUKULVX.XX.VEN.XXX.XXXX.SX.XXX.ADR.IS.N.M"]
[{"$f":"\"INN.\"&EIGNIR!$B$3&C10564","v":{"$error":"#N/A"}},{"$f":"'Sundurliðun Útlán'!Q83","v":0},".M.EUKULVX.XX.SAG.XXX.XXXX.SX.XXX.ADR.IS.N.M"]
[{"$f":"\"INN.\"&EIGNIR!$B$3&C10565","v":{"$error":"#N/A"}},{"$f":"'Sundurliðun Útlán'!Q84","v":0},".M.EUKULVX.XX.THF.XXX.XXXX.SX.XXX.ADR.IS.N.M"]
[{"$f":"\"INN.\"&EIGNIR!$B$3&C10566","v":{"$error":"#N/A"}},{"$f":"'Sundurliðun Útlán'!Q85","v":0},".M.EUKULVX.XX.THH.XXX.XXXX.SX.XXX.ADR.IS.N.M"]
[{"$f":"\"INN.\"&EIGNIR!$B$3&C10567","v":{"$error":"#N/A"}},{"$f":"'Sundurliðun Útlán'!Q86","v":0},".M.EUKULVX.XX.THA.XXX.XXXX.SX.XXX.ADR.IS.N.M"]
[{"$f":"\"INN.\"&EIGNIR!$B$3&C10568","v":{"$error":"#N/A"}},{"$f":"'Sundurliðun Útlán'!Q87","v":0},".M.EUKULVX.XX.OFL.XXX.XXXX.SX.XXX.ADR.IS.N.M"]
[{"$f":"\"INN.\"&EIGNIR!$B$3&C10569","v":{"$error":"#N/A"}},{"$f":"'Sundurliðun Útlán'!H106","v":0},".M.EUKULVU.XX.LAB.XXX.XXXX.SV.XXX.ISK.IS.N.M","Sundurliðun, Útlán, Verðtryggð útlán í íslenskum krónum"]
[{"$f":"\"INN.\"&EIGNIR!$B$3&C10570","v":{"$error":"#N/A"}},{"$f":"'Sundurliðun Útlán'!H107","v":0},".M.EUKULVU.XX.SJA.XXX.XXXX.SV.XXX.ISK.IS.N.M"]
[{"$f":"\"INN.\"&EIGNIR!$B$3&C10571","v":{"$error":"#N/A"}},{"$f":"'Sundurliðun Útlán'!H108","v":0},".M.EUKULVU.XX.ILA.XXX.XXXX.SV.XXX.ISK.IS.N.M"]
[{"$f":"\"INN.\"&EIGNIR!$B$3&C10572","v":{"$error":"#N/A"}},{"$f":"'Sundurliðun Útlán'!H109","v":0},".M.EUKULVU.XX.ISJ.XXX.XXXX.SV.XXX.ISK.IS.N.M"]
[{"$f":"\"INN.\"&EIGNIR!$B$3&C10573","v":{"$error":"#N/A"}},{"$f":"'Sundurliðun Útlán'!H110","v":0},".M.EUKULVU.XX.IAN.XXX.XXXX.SV.XXX.ISK.IS.N.M"]
[{"$f":"\"INN.\"&EIGNIR!$B$3&C10574","v":{"$error":"#N/A"}},{"$f":"'Sundurliðun Útlán'!H111","v":0},".M.EUKULVU.XX.RAF.XXX.XXXX.SV.XXX.ISK.IS.N.M"]
[{"$f":"\"INN.\"&EIGNIR!$B$3&C10575","v":{"$error":"#N/A"}},{"$f":"'Sundurliðun Útlán'!H112","v":0},".M.EUKULVU.XX.MAN.XXX.XXXX.SV.XXX.ISK.IS.N.M"]
[{"$f":"\"INN.\"&EIGNIR!$B$3&C10576","v":{"$error":"#N/A"}},{"$f":"'Sundurliðun Útlán'!H113","v":0},".M.EUKULVU.XX.VEN.XXX.XXXX.SV.XXX.ISK.IS.N.M"]
[{"$f":"\"INN.\"&EIGNIR!$B$3&C10577","v":{"$error":"#N/A"}},{"$f":"'Sundurliðun Útlán'!H114","v":0},".M.EUKULVU.XX.SAG.XXX.XXXX.SV.XXX.ISK.IS.N.M"]
[{"$f":"\"INN.\"&EIGNIR!$B$3&C10578","v":{"$error":"#N/A"}},{"$f":"'Sundurliðun Útlán'!H115","v":0},".M.EUKULVU.XX.THF.XXX.XXXX.SV.XXX.ISK.IS.N.M"]
[{"$f":"\"INN.\"&EIGNIR!$B$3&C10579","v":{"$error":"#N/A"}},{"$f":"'Sundurliðun Útlán'!H116","v":0},".M.EUKULVU.XX.THH.XXX.XXXX.SV.XXX.ISK.IS.N.M"]
[{"$f":"\"INN.\"&EIGNIR!$B$3&C10580","v":{"$error":"#N/A"}},{"$f":"'Sundurliðun Útlán'!H117","v":0},".M.EUKULVU.XX.THA.XXX.XXXX.SV.XXX.ISK.IS.N.M"]
[{"$f":"\"INN.\"&EIGNIR!$B$3&C10581","v":{"$error":"#N/A"}},{"$f":"'Sundurliðun Útlán'!H118","v":0},".M.EUKULVU.XX.OFL.XXX.XXXX.SV.XXX.ISK.IS.N.M"]
[{"$f":"\"INN.\"&EIGNIR!$B$3&C10582","v":{"$error":"#N/A"}},{"$f":"'Sundurliðun Útlán'!H138","v":0},".M.EUKULOU.XX.LAB.XXX.XXXX.SX.XXX.ISK.IS.N.M","//Sundurliðun, Útlán, Önnur útlán og kröfur í íslenskum krónum"]
[{"$f":"\"INN.\"&EIGNIR!$B$3&C10583","v":{"$error":"#N/A"}},{"$f":"'Sundurliðun Útlán'!H139","v":0},".M.EUKULOU.XX.SJA.XXX.XXXX.SX.XXX.ISK.IS.N.M"]
[{"$f":"\"INN.\"&EIGNIR!$B$3&C10584","v":{"$error":"#N/A"}},{"$f":"'Sundurliðun Útlán'!H140","v":0},".M.EUKULOU.XX.ILA.XXX.XXXX.SX.XXX.ISK.IS.N.M"]
[{"$f":"\"INN.\"&EIGNIR!$B$3&C10585","v":{"$error":"#N/A"}},{"$f":"'Sundurliðun Útlán'!H141","v":0},".M.EUKULOU.XX.ISJ.XXX.XXXX.SX.XXX.ISK.IS.N.M"]
[{"$f":"\"INN.\"&EIGNIR!$B$3&C10586","v":{"$error":"#N/A"}},{"$f":"'Sundurliðun Útlán'!H142","v":0},".M.EUKULOU.XX.IAN.XXX.XXXX.SX.XXX.ISK.IS.N.M"]
[{"$f":"\"INN.\"&EIGNIR!$B$3&C10587","v":{"$error":"#N/A"}},{"$f":"'Sundurliðun Útlán'!H143","v":0},".M.EUKULOU.XX.RAF.XXX.XXXX.SX.XXX.ISK.IS.N.M"]
[{"$f":"\"INN.\"&EIGNIR!$B$3&C10588","v":{"$error":"#N/A"}},{"$f":"'Sundurliðun Útlán'!H144","v":0},".M.EUKULOU.XX.MAN.XXX.XXXX.SX.XXX.ISK.IS.N.M"]
[{"$f":"\"INN.\"&EIGNIR!$B$3&C10589","v":{"$error":"#N/A"}},{"$f":"'Sundurliðun Útlán'!H145","v":0},".M.EUKULOU.XX.VEN.XXX.XXXX.SX.XXX.ISK.IS.N.M"]
[{"$f":"\"INN.\"&EIGNIR!$B$3&C10590","v":{"$error":"#N/A"}},{"$f":"'Sundurliðun Útlán'!H146","v":0},".M.EUKULOU.XX.SAG.XXX.XXXX.SX.XXX.ISK.IS.N.M"]
[{"$f":"\"INN.\"&EIGNIR!$B$3&C10591","v":{"$error":"#N/A"}},{"$f":"'Sundurliðun Útlán'!H147","v":0},".M.EUKULOU.XX.THF.XXX.XXXX.SX.XXX.ISK.IS.N.M"]
[{"$f":"\"INN.\"&EIGNIR!$B$3&C10592","v":{"$error":"#N/A"}},{"$f":"'Sundurliðun Útlán'!H148","v":0},".M.EUKULOU.XX.THH.XXX.XXXX.SX.XXX.ISK.IS.N.M"]
[{"$f":"\"INN.\"&EIGNIR!$B$3&C10593","v":{"$error":"#N/A"}},{"$f":"'Sundurliðun Útlán'!H149","v":0},".M.EUKULOU.XX.THA.XXX.XXXX.SX.XXX.ISK.IS.N.M"]
[{"$f":"\"INN.\"&EIGNIR!$B$3&C10594","v":{"$error":"#N/A"}},{"$f":"'Sundurliðun Útlán'!H150","v":0},".M.EUKULOU.XX.OFL.XXX.XXXX.SX.XXX.ISK.IS.N.M"]
[{"$f":"\"INN.\"&EIGNIR!$B$3&C10595","v":{"$error":"#N/A"}},{"$f":"'Sundurliðun Útlán'!I138","v":0},".M.EUKULOU.XX.LAB.XXX.XXXX.SX.XXX.EUR.IS.N.M","//í evrum"]
[{"$f":"\"INN.\"&EIGNIR!$B$3&C10596","v":{"$error":"#N/A"}},{"$f":"'Sundurliðun Útlán'!I139","v":0},".M.EUKULOU.XX.SJA.XXX.XXXX.SX.XXX.EUR.IS.N.M"]
[{"$f":"\"INN.\"&EIGNIR!$B$3&C10597","v":{"$error":"#N/A"}},{"$f":"'Sundurliðun Útlán'!I140","v":0},".M.EUKULOU.XX.ILA.XXX.XXXX.SX.XXX.EUR.IS.N.M"]
[{"$f":"\"INN.\"&EIGNIR!$B$3&C10598","v":{"$error":"#N/A"}},{"$f":"'Sundurliðun Útlán'!I141","v":0},".M.EUKULOU.XX.ISJ.XXX.XXXX.SX.XXX.EUR.IS.N.M"]
[{"$f":"\"INN.\"&EIGNIR!$B$3&C10599","v":{"$error":"#N/A"}},{"$f":"'Sundurliðun Útlán'!I142","v":0},".M.EUKULOU.XX.IAN.XXX.XXXX.SX.XXX.EUR.IS.N.M"]
[{"$f":"\"INN.\"&EIGNIR!$B$3&C10600","v":{"$error":"#N/A"}},{"$f":"'Sundurliðun Útlán'!I143","v":0},".M.EUKULOU.XX.RAF.XXX.XXXX.SX.XXX.EUR.IS.N.M"]
[{"$f":"\"INN.\"&EIGNIR!$B$3&C10601","v":{"$error":"#N/A"}},{"$f":"'Sundurliðun Útlán'!I144","v":0},".M.EUKULOU.XX.MAN.XXX.XXXX.SX.XXX.EUR.IS.N.M"]
[{"$f":"\"INN.\"&EIGNIR!$B$3&C10602","v":{"$error":"#N/A"}},{"$f":"'Sundurliðun Útlán'!I145","v":0},".M.EUKULOU.XX.VEN.XXX.XXXX.SX.XXX.EUR.IS.N.M"]
[{"$f":"\"INN.\"&EIGNIR!$B$3&C10603","v":{"$error":"#N/A"}},{"$f":"'Sundurliðun Útlán'!I146","v":0},".M.EUKULOU.XX.SAG.XXX.XXXX.SX.XXX.EUR.IS.N.M"]
[{"$f":"\"INN.\"&EIGNIR!$B$3&C10604","v":{"$error":"#N/A"}},{"$f":"'Sundurliðun Útlán'!I147","v":0},".M.EUKULOU.XX.THF.XXX.XXXX.SX.XXX.EUR.IS.N.M"]
[{"$f":"\"INN.\"&EIGNIR!$B$3&C10605","v":{"$error":"#N/A"}},{"$f":"'Sundurliðun Útlán'!I148","v":0},".M.EUKULOU.XX.THH.XXX.XXXX.SX.XXX.EUR.IS.N.M"]
[{"$f":"\"INN.\"&EIGNIR!$B$3&C10606","v":{"$error":"#N/A"}},{"$f":"'Sundurliðun Útlán'!I149","v":0},".M.EUKULOU.XX.THA.XXX.XXXX.SX.XXX.EUR.IS.N.M"]
[{"$f":"\"INN.\"&EIGNIR!$B$3&C10607","v":{"$error":"#N/A"}},{"$f":"'Sundurliðun Útlán'!I150","v":0},".M.EUKULOU.XX.OFL.XXX.XXXX.SX.XXX.EUR.IS.N.M"]
[{"$f":"\"INN.\"&EIGNIR!$B$3&C10608","v":{"$error":"#N/A"}},{"$f":"'Sundurliðun Útlán'!J138","v":0},".M.EUKULOU.XX.LAB.XXX.XXXX.SX.XXX.USD.IS.N.M","//í bandarískum dollurum"]
[{"$f":"\"INN.\"&EIGNIR!$B$3&C10609","v":{"$error":"#N/A"}},{"$f":"'Sundurliðun Útlán'!J139","v":0},".M.EUKULOU.XX.SJA.XXX.XXXX.SX.XXX.USD.IS.N.M"]
[{"$f":"\"INN.\"&EIGNIR!$B$3&C10610","v":{"$error":"#N/A"}},{"$f":"'Sundurliðun Útlán'!J140","v":0},".M.EUKULOU.XX.ILA.XXX.XXXX.SX.XXX.USD.IS.N.M"]
[{"$f":"\"INN.\"&EIGNIR!$B$3&C10611","v":{"$error":"#N/A"}},{"$f":"'Sundurliðun Útlán'!J141","v":0},".M.EUKULOU.XX.ISJ.XXX.XXXX.SX.XXX.USD.IS.N.M"]
[{"$f":"\"INN.\"&EIGNIR!$B$3&C10612","v":{"$error":"#N/A"}},{"$f":"'Sundurliðun Útlán'!J142","v":0},".M.EUKULOU.XX.IAN.XXX.XXXX.SX.XXX.USD.IS.N.M"]
[{"$f":"\"INN.\"&EIGNIR!$B$3&C10613","v":{"$error":"#N/A"}},{"$f":"'Sundurliðun Útlán'!J143","v":0},".M.EUKULOU.XX.RAF.XXX.XXXX.SX.XXX.USD.IS.N.M"]
[{"$f":"\"INN.\"&EIGNIR!$B$3&C10614","v":{"$error":"#N/A"}},{"$f":"'Sundurliðun Útlán'!J144","v":0},".M.EUKULOU.XX.MAN.XXX.XXXX.SX.XXX.USD.IS.N.M"]
[{"$f":"\"INN.\"&EIGNIR!$B$3&C10615","v":{"$error":"#N/A"}},{"$f":"'Sundurliðun Útlán'!J145","v":0},".M.EUKULOU.XX.VEN.XXX.XXXX.SX.XXX.USD.IS.N.M"]
[{"$f":"\"INN.\"&EIGNIR!$B$3&C10616","v":{"$error":"#N/A"}},{"$f":"'Sundurliðun Útlán'!J146","v":0},".M.EUKULOU.XX.SAG.XXX.XXXX.SX.XXX.USD.IS.N.M"]
[{"$f":"\"INN.\"&EIGNIR!$B$3&C10617","v":{"$error":"#N/A"}},{"$f":"'Sundurliðun Útlán'!J147","v":0},".M.EUKULOU.XX.THF.XXX.XXXX.SX.XXX.USD.IS.N.M"]
[{"$f":"\"INN.\"&EIGNIR!$B$3&C10618","v":{"$error":"#N/A"}},{"$f":"'Sundurliðun Útlán'!J148","v":0},".M.EUKULOU.XX.THH.XXX.XXXX.SX.XXX.USD.IS.N.M"]
[{"$f":"\"INN.\"&EIGNIR!$B$3&C10619","v":{"$error":"#N/A"}},{"$f":"'Sundurliðun Útlán'!J149","v":0},".M.EUKULOU.XX.THA.XXX.XXXX.SX.XXX.USD.IS.N.M"]
[{"$f":"\"INN.\"&EIGNIR!$B$3&C10620","v":{"$error":"#N/A"}},{"$f":"'Sundurliðun Útlán'!J150","v":0},".M.EUKULOU.XX.OFL.XXX.XXXX.SX.XXX.USD.IS.N.M"]
[{"$f":"\"INN.\"&EIGNIR!$B$3&C10621","v":{"$error":"#N/A"}},{"$f":"'Sundurliðun Útlán'!K138","v":0},".M.EUKULOU.XX.LAB.XXX.XXXX.SX.XXX.GBP.IS.N.M","//í sterlingspundum"]
[{"$f":"\"INN.\"&EIGNIR!$B$3&C10622","v":{"$error":"#N/A"}},{"$f":"'Sundurliðun Útlán'!K139","v":0},".M.EUKULOU.XX.SJA.XXX.XXXX.SX.XXX.GBP.IS.N.M"]
[{"$f":"\"INN.\"&EIGNIR!$B$3&C10623","v":{"$error":"#N/A"}},{"$f":"'Sundurliðun Útlán'!K140","v":0},".M.EUKULOU.XX.ILA.XXX.XXXX.SX.XXX.GBP.IS.N.M"]
[{"$f":"\"INN.\"&EIGNIR!$B$3&C10624","v":{"$error":"#N/A"}},{"$f":"'Sundurliðun Útlán'!K141","v":0},".M.EUKULOU.XX.ISJ.XXX.XXXX.SX.XXX.GBP.IS.N.M"]
[{"$f":"\"INN.\"&EIGNIR!$B$3&C10625","v":{"$error":"#N/A"}},{"$f":"'Sundurliðun Útlán'!K142","v":0},".M.EUKULOU.XX.IAN.XXX.XXXX.SX.XXX.GBP.IS.N.M"]
[{"$f":"\"INN.\"&EIGNIR!$B$3&C10626","v":{"$error":"#N/A"}},{"$f":"'Sundurliðun Útlán'!K143","v":0},".M.EUKULOU.XX.RAF.XXX.XXXX.SX.XXX.GBP.IS.N.M"]
[{"$f":"\"INN.\"&EIGNIR!$B$3&C10627","v":{"$error":"#N/A"}},{"$f":"'Sundurliðun Útlán'!K144","v":0},".M.EUKULOU.XX.MAN.XXX.XXXX.SX.XXX.GBP.IS.N.M"]
[{"$f":"\"INN.\"&EIGNIR!$B$3&C10628","v":{"$error":"#N/A"}},{"$f":"'Sundurliðun Útlán'!K145","v":0},".M.EUKULOU.XX.VEN.XXX.XXXX.SX.XXX.GBP.IS.N.M"]
[{"$f":"\"INN.\"&EIGNIR!$B$3&C10629","v":{"$error":"#N/A"}},{"$f":"'Sundurliðun Útlán'!K146","v":0},".M.EUKULOU.XX.SAG.XXX.XXXX.SX.XXX.GBP.IS.N.M"]
[{"$f":"\"INN.\"&EIGNIR!$B$3&C10630","v":{"$error":"#N/A"}},{"$f":"'Sundurliðun Útlán'!K147","v":0},".M.EUKULOU.XX.THF.XXX.XXXX.SX.XXX.GBP.IS.N.M"]
[{"$f":"\"INN.\"&EIGNIR!$B$3&C10631","v":{"$error":"#N/A"}},{"$f":"'Sundurliðun Útlán'!K148","v":0},".M.EUKULOU.XX.THH.XXX.XXXX.SX.XXX.GBP.IS.N.M"]
[{"$f":"\"INN.\"&EIGNIR!$B$3&C10632","v":{"$error":"#N/A"}},{"$f":"'Sundurliðun Útlán'!K149","v":0},".M.EUKULOU.XX.THA.XXX.XXXX.SX.XXX.GBP.IS.N.M"]
[{"$f":"\"INN.\"&EIGNIR!$B$3&C10633","v":{"$error":"#N/A"}},{"$f":"'Sundurliðun Útlán'!K150","v":0},".M.EUKULOU.XX.OFL.XXX.XXXX.SX.XXX.GBP.IS.N.M"]
[{"$f":"\"INN.\"&EIGNIR!$B$3&C10634","v":{"$error":"#N/A"}},{"$f":"'Sundurliðun Útlán'!L138","v":0},".M.EUKULOU.XX.LAB.XXX.XXXX.SX.XXX.JPY.IS.N.M","//í japönskum jenum"]
[{"$f":"\"INN.\"&EIGNIR!$B$3&C10635","v":{"$error":"#N/A"}},{"$f":"'Sundurliðun Útlán'!L139","v":0},".M.EUKULOU.XX.SJA.XXX.XXXX.SX.XXX.JPY.IS.N.M"]
[{"$f":"\"INN.\"&EIGNIR!$B$3&C10636","v":{"$error":"#N/A"}},{"$f":"'Sundurliðun Útlán'!L140","v":0},".M.EUKULOU.XX.ILA.XXX.XXXX.SX.XXX.JPY.IS.N.M"]
[{"$f":"\"INN.\"&EIGNIR!$B$3&C10637","v":{"$error":"#N/A"}},{"$f":"'Sundurliðun Útlán'!L141","v":0},".M.EUKULOU.XX.ISJ.XXX.XXXX.SX.XXX.JPY.IS.N.M"]
[{"$f":"\"INN.\"&EIGNIR!$B$3&C10638","v":{"$error":"#N/A"}},{"$f":"'Sundurliðun Útlán'!L142","v":0},".M.EUKULOU.XX.IAN.XXX.XXXX.SX.XXX.JPY.IS.N.M"]
[{"$f":"\"INN.\"&EIGNIR!$B$3&C10639","v":{"$error":"#N/A"}},{"$f":"'Sundurliðun Útlán'!L143","v":0},".M.EUKULOU.XX.RAF.XXX.XXXX.SX.XXX.JPY.IS.N.M"]
[{"$f":"\"INN.\"&EIGNIR!$B$3&C10640","v":{"$error":"#N/A"}},{"$f":"'Sundurliðun Útlán'!L144","v":0},".M.EUKULOU.XX.MAN.XXX.XXXX.SX.XXX.JPY.IS.N.M"]
[{"$f":"\"INN.\"&EIGNIR!$B$3&C10641","v":{"$error":"#N/A"}},{"$f":"'Sundurliðun Útlán'!L145","v":0},".M.EUKULOU.XX.VEN.XXX.XXXX.SX.XXX.JPY.IS.N.M"]
[{"$f":"\"INN.\"&EIGNIR!$B$3&C10642","v":{"$error":"#N/A"}},{"$f":"'Sundurliðun Útlán'!L146","v":0},".M.EUKULOU.XX.SAG.XXX.XXXX.SX.XXX.JPY.IS.N.M"]
[{"$f":"\"INN.\"&EIGNIR!$B$3&C10643","v":{"$error":"#N/A"}},{"$f":"'Sundurliðun Útlán'!L147","v":0},".M.EUKULOU.XX.THF.XXX.XXXX.SX.XXX.JPY.IS.N.M"]
[{"$f":"\"INN.\"&EIGNIR!$B$3&C10644","v":{"$error":"#N/A"}},{"$f":"'Sundurliðun Útlán'!L148","v":0},".M.EUKULOU.XX.THH.XXX.XXXX.SX.XXX.JPY.IS.N.M"]
[{"$f":"\"INN.\"&EIGNIR!$B$3&C10645","v":{"$error":"#N/A"}},{"$f":"'Sundurliðun Útlán'!L149","v":0},".M.EUKULOU.XX.THA.XXX.XXXX.SX.XXX.JPY.IS.N.M"]
[{"$f":"\"INN.\"&EIGNIR!$B$3&C10646","v":{"$error":"#N/A"}},{"$f":"'Sundurliðun Útlán'!L150","v":0},".M.EUKULOU.XX.OFL.XXX.XXXX.SX.XXX.JPY.IS.N.M"]
[{"$f":"\"INN.\"&EIGNIR!$B$3&C10647","v":{"$error":"#N/A"}},{"$f":"'Sundurliðun Útlán'!M138","v":0},".M.EUKULOU.XX.LAB.XXX.XXXX.SX.XXX.DKK.IS.N.M","//í dönskum krónum"]
[{"$f":"\"INN.\"&EIGNIR!$B$3&C10648","v":{"$error":"#N/A"}},{"$f":"'Sundurliðun Útlán'!M139","v":0},".M.EUKULOU.XX.SJA.XXX.XXXX.SX.XXX.DKK.IS.N.M"]
[{"$f":"\"INN.\"&EIGNIR!$B$3&C10649","v":{"$error":"#N/A"}},{"$f":"'Sundurliðun Útlán'!M140","v":0},".M.EUKULOU.XX.ILA.XXX.XXXX.SX.XXX.DKK.IS.N.M"]
[{"$f":"\"INN.\"&EIGNIR!$B$3&C10650","v":{"$error":"#N/A"}},{"$f":"'Sundurliðun Útlán'!M141","v":0},".M.EUKULOU.XX.ISJ.XXX.XXXX.SX.XXX.DKK.IS.N.M"]
[{"$f":"\"INN.\"&EIGNIR!$B$3&C10651","v":{"$error":"#N/A"}},{"$f":"'Sundurliðun Útlán'!M142","v":0},".M.EUKULOU.XX.IAN.XXX.XXXX.SX.XXX.DKK.IS.N.M"]
[{"$f":"\"INN.\"&EIGNIR!$B$3&C10652","v":{"$error":"#N/A"}},{"$f":"'Sundurliðun Útlán'!M143","v":0},".M.EUKULOU.XX.RAF.XXX.XXXX.SX.XXX.DKK.IS.N.M"]
[{"$f":"\"INN.\"&EIGNIR!$B$3&C10653","v":{"$error":"#N/A"}},{"$f":"'Sundurliðun Útlán'!M144","v":0},".M.EUKULOU.XX.MAN.XXX.XXXX.SX.XXX.DKK.IS.N.M"]
[{"$f":"\"INN.\"&EIGNIR!$B$3&C10654","v":{"$error":"#N/A"}},{"$f":"'Sundurliðun Útlán'!M145","v":0},".M.EUKULOU.XX.VEN.XXX.XXXX.SX.XXX.DKK.IS.N.M"]
[{"$f":"\"INN.\"&EIGNIR!$B$3&C10655","v":{"$error":"#N/A"}},{"$f":"'Sundurliðun Útlán'!M146","v":0},".M.EUKULOU.XX.SAG.XXX.XXXX.SX.XXX.DKK.IS.N.M"]
[{"$f":"\"INN.\"&EIGNIR!$B$3&C10656","v":{"$error":"#N/A"}},{"$f":"'Sundurliðun Útlán'!M147","v":0},".M.EUKULOU.XX.THF.XXX.XXXX.SX.XXX.DKK.IS.N.M"]
[{"$f":"\"INN.\"&EIGNIR!$B$3&C10657","v":{"$error":"#N/A"}},{"$f":"'Sundurliðun Útlán'!M148","v":0},".M.EUKULOU.XX.THH.XXX.XXXX.SX.XXX.DKK.IS.N.M"]
[{"$f":"\"INN.\"&EIGNIR!$B$3&C10658","v":{"$error":"#N/A"}},{"$f":"'Sundurliðun Útlán'!M149","v":0},".M.EUKULOU.XX.THA.XXX.XXXX.SX.XXX.DKK.IS.N.M"]
[{"$f":"\"INN.\"&EIGNIR!$B$3&C10659","v":{"$error":"#N/A"}},{"$f":"'Sundurliðun Útlán'!M150","v":0},".M.EUKULOU.XX.OFL.XXX.XXXX.SX.XXX.DKK.IS.N.M"]
[{"$f":"\"INN.\"&EIGNIR!$B$3&C10660","v":{"$error":"#N/A"}},{"$f":"'Sundurliðun Útlán'!N138","v":0},".M.EUKULOU.XX.LAB.XXX.XXXX.SX.XXX.NOK.IS.N.M","//í norskum krónum"]
[{"$f":"\"INN.\"&EIGNIR!$B$3&C10661","v":{"$error":"#N/A"}},{"$f":"'Sundurliðun Útlán'!N139","v":0},".M.EUKULOU.XX.SJA.XXX.XXXX.SX.XXX.NOK.IS.N.M"]
[{"$f":"\"INN.\"&EIGNIR!$B$3&C10662","v":{"$error":"#N/A"}},{"$f":"'Sundurliðun Útlán'!N140","v":0},".M.EUKULOU.XX.ILA.XXX.XXXX.SX.XXX.NOK.IS.N.M"]
[{"$f":"\"INN.\"&EIGNIR!$B$3&C10663","v":{"$error":"#N/A"}},{"$f":"'Sundurliðun Útlán'!N141","v":0},".M.EUKULOU.XX.ISJ.XXX.XXXX.SX.XXX.NOK.IS.N.M"]
[{"$f":"\"INN.\"&EIGNIR!$B$3&C10664","v":{"$error":"#N/A"}},{"$f":"'Sundurliðun Útlán'!N142","v":0},".M.EUKULOU.XX.IAN.XXX.XXXX.SX.XXX.NOK.IS.N.M"]
[{"$f":"\"INN.\"&EIGNIR!$B$3&C10665","v":{"$error":"#N/A"}},{"$f":"'Sundurliðun Útlán'!N143","v":0},".M.EUKULOU.XX.RAF.XXX.XXXX.SX.XXX.NOK.IS.N.M"]
[{"$f":"\"INN.\"&EIGNIR!$B$3&C10666","v":{"$error":"#N/A"}},{"$f":"'Sundurliðun Útlán'!N144","v":0},".M.EUKULOU.XX.MAN.XXX.XXXX.SX.XXX.NOK.IS.N.M"]
[{"$f":"\"INN.\"&EIGNIR!$B$3&C10667","v":{"$error":"#N/A"}},{"$f":"'Sundurliðun Útlán'!N145","v":0},".M.EUKULOU.XX.VEN.XXX.XXXX.SX.XXX.NOK.IS.N.M"]
[{"$f":"\"INN.\"&EIGNIR!$B$3&C10668","v":{"$error":"#N/A"}},{"$f":"'Sundurliðun Útlán'!N146","v":0},".M.EUKULOU.XX.SAG.XXX.XXXX.SX.XXX.NOK.IS.N.M"]
[{"$f":"\"INN.\"&EIGNIR!$B$3&C10669","v":{"$error":"#N/A"}},{"$f":"'Sundurliðun Útlán'!N147","v":0},".M.EUKULOU.XX.THF.XXX.XXXX.SX.XXX.NOK.IS.N.M"]
[{"$f":"\"INN.\"&EIGNIR!$B$3&C10670","v":{"$error":"#N/A"}},{"$f":"'Sundurliðun Útlán'!N148","v":0},".M.EUKULOU.XX.THH.XXX.XXXX.SX.XXX.NOK.IS.N.M"]
[{"$f":"\"INN.\"&EIGNIR!$B$3&C10671","v":{"$error":"#N/A"}},{"$f":"'Sundurliðun Útlán'!N149","v":0},".M.EUKULOU.XX.THA.XXX.XXXX.SX.XXX.NOK.IS.N.M"]
[{"$f":"\"INN.\"&EIGNIR!$B$3&C10672","v":{"$error":"#N/A"}},{"$f":"'Sundurliðun Útlán'!N150","v":0},".M.EUKULOU.XX.OFL.XXX.XXXX.SX.XXX.NOK.IS.N.M"]
[{"$f":"\"INN.\"&EIGNIR!$B$3&C10673","v":{"$error":"#N/A"}},{"$f":"'Sundurliðun Útlán'!O138","v":0},".M.EUKULOU.XX.LAB.XXX.XXXX.SX.XXX.SEK.IS.N.M","//í sænskum krónum"]
[{"$f":"\"INN.\"&EIGNIR!$B$3&C10674","v":{"$error":"#N/A"}},{"$f":"'Sundurliðun Útlán'!O139","v":0},".M.EUKULOU.XX.SJA.XXX.XXXX.SX.XXX.SEK.IS.N.M"]
[{"$f":"\"INN.\"&EIGNIR!$B$3&C10675","v":{"$error":"#N/A"}},{"$f":"'Sundurliðun Útlán'!O140","v":0},".M.EUKULOU.XX.ILA.XXX.XXXX.SX.XXX.SEK.IS.N.M"]
[{"$f":"\"INN.\"&EIGNIR!$B$3&C10676","v":{"$error":"#N/A"}},{"$f":"'Sundurliðun Útlán'!O141","v":0},".M.EUKULOU.XX.ISJ.XXX.XXXX.SX.XXX.SEK.IS.N.M"]
[{"$f":"\"INN.\"&EIGNIR!$B$3&C10677","v":{"$error":"#N/A"}},{"$f":"'Sundurliðun Útlán'!O142","v":0},".M.EUKULOU.XX.IAN.XXX.XXXX.SX.XXX.SEK.IS.N.M"]
[{"$f":"\"INN.\"&EIGNIR!$B$3&C10678","v":{"$error":"#N/A"}},{"$f":"'Sundurliðun Útlán'!O143","v":0},".M.EUKULOU.XX.RAF.XXX.XXXX.SX.XXX.SEK.IS.N.M"]
[{"$f":"\"INN.\"&EIGNIR!$B$3&C10679","v":{"$error":"#N/A"}},{"$f":"'Sundurliðun Útlán'!O144","v":0},".M.EUKULOU.XX.MAN.XXX.XXXX.SX.XXX.SEK.IS.N.M"]
[{"$f":"\"INN.\"&EIGNIR!$B$3&C10680","v":{"$error":"#N/A"}},{"$f":"'Sundurliðun Útlán'!O145","v":0},".M.EUKULOU.XX.VEN.XXX.XXXX.SX.XXX.SEK.IS.N.M"]
[{"$f":"\"INN.\"&EIGNIR!$B$3&C10681","v":{"$error":"#N/A"}},{"$f":"'Sundurliðun Útlán'!O146","v":0},".M.EUKULOU.XX.SAG.XXX.XXXX.SX.XXX.SEK.IS.N.M"]
[{"$f":"\"INN.\"&EIGNIR!$B$3&C10682","v":{"$error":"#N/A"}},{"$f":"'Sundurliðun Útlán'!O147","v":0},".M.EUKULOU.XX.THF.XXX.XXXX.SX.XXX.SEK.IS.N.M"]
[{"$f":"\"INN.\"&EIGNIR!$B$3&C10683","v":{"$error":"#N/A"}},{"$f":"'Sundurliðun Útlán'!O148","v":0},".M.EUKULOU.XX.THH.XXX.XXXX.SX.XXX.SEK.IS.N.M"]
[{"$f":"\"INN.\"&EIGNIR!$B$3&C10684","v":{"$error":"#N/A"}},{"$f":"'Sundurliðun Útlán'!O149","v":0},".M.EUKULOU.XX.THA.XXX.XXXX.SX.XXX.SEK.IS.N.M"]
[{"$f":"\"INN.\"&EIGNIR!$B$3&C10685","v":{"$error":"#N/A"}},{"$f":"'Sundurliðun Útlán'!O150","v":0},".M.EUKULOU.XX.OFL.XXX.XXXX.SX.XXX.SEK.IS.N.M"]
[{"$f":"\"INN.\"&EIGNIR!$B$3&C10686","v":{"$error":"#N/A"}},{"$f":"'Sundurliðun Útlán'!P138","v":0},".M.EUKULOU.XX.LAB.XXX.XXXX.SX.XXX.CHF.IS.N.M","//í svissneskum frönkum"]
[{"$f":"\"INN.\"&EIGNIR!$B$3&C10687","v":{"$error":"#N/A"}},{"$f":"'Sundurliðun Útlán'!P139","v":0},".M.EUKULOU.XX.SJA.XXX.XXXX.SX.XXX.CHF.IS.N.M"]
[{"$f":"\"INN.\"&EIGNIR!$B$3&C10688","v":{"$error":"#N/A"}},{"$f":"'Sundurliðun Útlán'!P140","v":0},".M.EUKULOU.XX.ILA.XXX.XXXX.SX.XXX.CHF.IS.N.M"]
[{"$f":"\"INN.\"&EIGNIR!$B$3&C10689","v":{"$error":"#N/A"}},{"$f":"'Sundurliðun Útlán'!P141","v":0},".M.EUKULOU.XX.ISJ.XXX.XXXX.SX.XXX.CHF.IS.N.M"]
[{"$f":"\"INN.\"&EIGNIR!$B$3&C10690","v":{"$error":"#N/A"}},{"$f":"'Sundurliðun Útlán'!P142","v":0},".M.EUKULOU.XX.IAN.XXX.XXXX.SX.XXX.CHF.IS.N.M"]
[{"$f":"\"INN.\"&EIGNIR!$B$3&C10691","v":{"$error":"#N/A"}},{"$f":"'Sundurliðun Útlán'!P143","v":0},".M.EUKULOU.XX.RAF.XXX.XXXX.SX.XXX.CHF.IS.N.M"]
[{"$f":"\"INN.\"&EIGNIR!$B$3&C10692","v":{"$error":"#N/A"}},{"$f":"'Sundurliðun Útlán'!P144","v":0},".M.EUKULOU.XX.MAN.XXX.XXXX.SX.XXX.CHF.IS.N.M"]
[{"$f":"\"INN.\"&EIGNIR!$B$3&C10693","v":{"$error":"#N/A"}},{"$f":"'Sundurliðun Útlán'!P145","v":0},".M.EUKULOU.XX.VEN.XXX.XXXX.SX.XXX.CHF.IS.N.M"]
[{"$f":"\"INN.\"&EIGNIR!$B$3&C10694","v":{"$error":"#N/A"}},{"$f":"'Sundurliðun Útlán'!P146","v":0},".M.EUKULOU.XX.SAG.XXX.XXXX.SX.XXX.CHF.IS.N.M"]
[{"$f":"\"INN.\"&EIGNIR!$B$3&C10695","v":{"$error":"#N/A"}},{"$f":"'Sundurliðun Útlán'!P147","v":0},".M.EUKULOU.XX.THF.XXX.XXXX.SX.XXX.CHF.IS.N.M"]
[{"$f":"\"INN.\"&EIGNIR!$B$3&C10696","v":{"$error":"#N/A"}},{"$f":"'Sundurliðun Útlán'!P148","v":0},".M.EUKULOU.XX.THH.XXX.XXXX.SX.XXX.CHF.IS.N.M"]
[{"$f":"\"INN.\"&EIGNIR!$B$3&C10697","v":{"$error":"#N/A"}},{"$f":"'Sundurliðun Útlán'!P149","v":0},".M.EUKULOU.XX.THA.XXX.XXXX.SX.XXX.CHF.IS.N.M"]
[{"$f":"\"INN.\"&EIGNIR!$B$3&C10698","v":{"$error":"#N/A"}},{"$f":"'Sundurliðun Útlán'!P150","v":0},".M.EUKULOU.XX.OFL.XXX.XXXX.SX.XXX.CHF.IS.N.M"]
[{"$f":"\"INN.\"&EIGNIR!$B$3&C10699","v":{"$error":"#N/A"}},{"$f":"'Sundurliðun Útlán'!Q138","v":0},".M.EUKULOU.XX.LAB.XXX.XXXX.SX.XXX.ADR.IS.N.M","//í öðrum myntum"]
[{"$f":"\"INN.\"&EIGNIR!$B$3&C10700","v":{"$error":"#N/A"}},{"$f":"'Sundurliðun Útlán'!Q139","v":0},".M.EUKULOU.XX.SJA.XXX.XXXX.SX.XXX.ADR.IS.N.M"]
[{"$f":"\"INN.\"&EIGNIR!$B$3&C10701","v":{"$error":"#N/A"}},{"$f":"'Sundurliðun Útlán'!Q140","v":0},".M.EUKULOU.XX.ILA.XXX.XXXX.SX.XXX.ADR.IS.N.M"]
[{"$f":"\"INN.\"&EIGNIR!$B$3&C10702","v":{"$error":"#N/A"}},{"$f":"'Sundurliðun Útlán'!Q141","v":0},".M.EUKULOU.XX.ISJ.XXX.XXXX.SX.XXX.ADR.IS.N.M"]
[{"$f":"\"INN.\"&EIGNIR!$B$3&C10703","v":{"$error":"#N/A"}},{"$f":"'Sundurliðun Útlán'!Q142","v":0},".M.EUKULOU.XX.IAN.XXX.XXXX.SX.XXX.ADR.IS.N.M"]
[{"$f":"\"INN.\"&EIGNIR!$B$3&C10704","v":{"$error":"#N/A"}},{"$f":"'Sundurliðun Útlán'!Q143","v":0},".M.EUKULOU.XX.RAF.XXX.XXXX.SX.XXX.ADR.IS.N.M"]
[{"$f":"\"INN.\"&EIGNIR!$B$3&C10705","v":{"$error":"#N/A"}},{"$f":"'Sundurliðun Útlán'!Q144","v":0},".M.EUKULOU.XX.MAN.XXX.XXXX.SX.XXX.ADR.IS.N.M"]
[{"$f":"\"INN.\"&EIGNIR!$B$3&C10706","v":{"$error":"#N/A"}},{"$f":"'Sundurliðun Útlán'!Q145","v":0},".M.EUKULOU.XX.VEN.XXX.XXXX.SX.XXX.ADR.IS.N.M"]
[{"$f":"\"INN.\"&EIGNIR!$B$3&C10707","v":{"$error":"#N/A"}},{"$f":"'Sundurliðun Útlán'!Q146","v":0},".M.EUKULOU.XX.SAG.XXX.XXXX.SX.XXX.ADR.IS.N.M"]
[{"$f":"\"INN.\"&EIGNIR!$B$3&C10708","v":{"$error":"#N/A"}},{"$f":"'Sundurliðun Útlán'!Q147","v":0},".M.EUKULOU.XX.THF.XXX.XXXX.SX.XXX.ADR.IS.N.M"]
[{"$f":"\"INN.\"&EIGNIR!$B$3&C10709","v":{"$error":"#N/A"}},{"$f":"'Sundurliðun Útlán'!Q148","v":0},".M.EUKULOU.XX.THH.XXX.XXXX.SX.XXX.ADR.IS.N.M"]
[{"$f":"\"INN.\"&EIGNIR!$B$3&C10710","v":{"$error":"#N/A"}},{"$f":"'Sundurliðun Útlán'!Q149","v":0},".M.EUKULOU.XX.THA.XXX.XXXX.SX.XXX.ADR.IS.N.M"]
[{"$f":"\"INN.\"&EIGNIR!$B$3&C10711","v":{"$error":"#N/A"}},{"$f":"'Sundurliðun Útlán'!Q150","v":0},".M.EUKULOU.XX.OFL.XXX.XXXX.SX.XXX.ADR.IS.N.M"]
[{"$f":"\"INN.\"&EIGNIR!$B$3&C10712","v":{"$error":"#N/A"}},{"$f":"'Sundurliðun Útlán'!H170","v":0},".M.EUKULEL.XX.LAB.XXX.XXXX.SX.XXX.ISK.IS.N.M","//Sundurliðun Útlán, Eignaleigusamningar í íslenskum krónum"]
[{"$f":"\"INN.\"&EIGNIR!$B$3&C10713","v":{"$error":"#N/A"}},{"$f":"'Sundurliðun Útlán'!H171","v":0},".M.EUKULEL.XX.SJA.XXX.XXXX.SX.XXX.ISK.IS.N.M"]
[{"$f":"\"INN.\"&EIGNIR!$B$3&C10714","v":{"$error":"#N/A"}},{"$f":"'Sundurliðun Útlán'!H172","v":0},".M.EUKULEL.XX.ILA.XXX.XXXX.SX.XXX.ISK.IS.N.M"]
[{"$f":"\"INN.\"&EIGNIR!$B$3&C10715","v":{"$error":"#N/A"}},{"$f":"'Sundurliðun Útlán'!H173","v":0},".M.EUKULEL.XX.ISJ.XXX.XXXX.SX.XXX.ISK.IS.N.M"]
[{"$f":"\"INN.\"&EIGNIR!$B$3&C10716","v":{"$error":"#N/A"}},{"$f":"'Sundurliðun Útlán'!H174","v":0},".M.EUKULEL.XX.IAN.XXX.XXXX.SX.XXX.ISK.IS.N.M"]
[{"$f":"\"INN.\"&EIGNIR!$B$3&C10717","v":{"$error":"#N/A"}},{"$f":"'Sundurliðun Útlán'!H175","v":0},".M.EUKULEL.XX.RAF.XXX.XXXX.SX.XXX.ISK.IS.N.M"]
[{"$f":"\"INN.\"&EIGNIR!$B$3&C10718","v":{"$error":"#N/A"}},{"$f":"'Sundurliðun Útlán'!H176","v":0},".M.EUKULEL.XX.MAN.XXX.XXXX.SX.XXX.ISK.IS.N.M"]
[{"$f":"\"INN.\"&EIGNIR!$B$3&C10719","v":{"$error":"#N/A"}},{"$f":"'Sundurliðun Útlán'!H177","v":0},".M.EUKULEL.XX.VEN.XXX.XXXX.SX.XXX.ISK.IS.N.M"]
[{"$f":"\"INN.\"&EIGNIR!$B$3&C10720","v":{"$error":"#N/A"}},{"$f":"'Sundurliðun Útlán'!H178","v":0},".M.EUKULEL.XX.SAG.XXX.XXXX.SX.XXX.ISK.IS.N.M"]
[{"$f":"\"INN.\"&EIGNIR!$B$3&C10721","v":{"$error":"#N/A"}},{"$f":"'Sundurliðun Útlán'!H179","v":0},".M.EUKULEL.XX.THF.XXX.XXXX.SX.XXX.ISK.IS.N.M"]
[{"$f":"\"INN.\"&EIGNIR!$B$3&C10722","v":{"$error":"#N/A"}},{"$f":"'Sundurliðun Útlán'!H180","v":0},".M.EUKULEL.XX.THH.XXX.XXXX.SX.XXX.ISK.IS.N.M"]
[{"$f":"\"INN.\"&EIGNIR!$B$3&C10723","v":{"$error":"#N/A"}},{"$f":"'Sundurliðun Útlán'!H181","v":0},".M.EUKULEL.XX.THA.XXX.XXXX.SX.XXX.ISK.IS.N.M"]
[{"$f":"\"INN.\"&EIGNIR!$B$3&C10724","v":{"$error":"#N/A"}},{"$f":"'Sundurliðun Útlán'!H182","v":0},".M.EUKULEL.XX.OFL.XXX.XXXX.SX.XXX.ISK.IS.N.M"]
[{"$f":"\"INN.\"&EIGNIR!$B$3&C10725","v":{"$error":"#N/A"}},{"$f":"'Sundurliðun Útlán'!I170","v":0},".M.EUKULEL.XX.LAB.XXX.XXXX.SX.XXX.EUR.IS.N.M","//í evrum"]
[{"$f":"\"INN.\"&EIGNIR!$B$3&C10726","v":{"$error":"#N/A"}},{"$f":"'Sundurliðun Útlán'!I171","v":0},".M.EUKULEL.XX.SJA.XXX.XXXX.SX.XXX.EUR.IS.N.M"]
[{"$f":"\"INN.\"&EIGNIR!$B$3&C10727","v":{"$error":"#N/A"}},{"$f":"'Sundurliðun Útlán'!I172","v":0},".M.EUKULEL.XX.ILA.XXX.XXXX.SX.XXX.EUR.IS.N.M"]
[{"$f":"\"INN.\"&EIGNIR!$B$3&C10728","v":{"$error":"#N/A"}},{"$f":"'Sundurliðun Útlán'!I173","v":0},".M.EUKULEL.XX.ISJ.XXX.XXXX.SX.XXX.EUR.IS.N.M"]
[{"$f":"\"INN.\"&EIGNIR!$B$3&C10729","v":{"$error":"#N/A"}},{"$f":"'Sundurliðun Útlán'!I174","v":0},".M.EUKULEL.XX.IAN.XXX.XXXX.SX.XXX.EUR.IS.N.M"]
[{"$f":"\"INN.\"&EIGNIR!$B$3&C10730","v":{"$error":"#N/A"}},{"$f":"'Sundurliðun Útlán'!I175","v":0},".M.EUKULEL.XX.RAF.XXX.XXXX.SX.XXX.EUR.IS.N.M"]
[{"$f":"\"INN.\"&EIGNIR!$B$3&C10731","v":{"$error":"#N/A"}},{"$f":"'Sundurliðun Útlán'!I176","v":0},".M.EUKULEL.XX.MAN.XXX.XXXX.SX.XXX.EUR.IS.N.M"]
[{"$f":"\"INN.\"&EIGNIR!$B$3&C10732","v":{"$error":"#N/A"}},{"$f":"'Sundurliðun Útlán'!I177","v":0},".M.EUKULEL.XX.VEN.XXX.XXXX.SX.XXX.EUR.IS.N.M"]
[{"$f":"\"INN.\"&EIGNIR!$B$3&C10733","v":{"$error":"#N/A"}},{"$f":"'Sundurliðun Útlán'!I178","v":0},".M.EUKULEL.XX.SAG.XXX.XXXX.SX.XXX.EUR.IS.N.M"]
[{"$f":"\"INN.\"&EIGNIR!$B$3&C10734","v":{"$error":"#N/A"}},{"$f":"'Sundurliðun Útlán'!I179","v":0},".M.EUKULEL.XX.THF.XXX.XXXX.SX.XXX.EUR.IS.N.M"]
[{"$f":"\"INN.\"&EIGNIR!$B$3&C10735","v":{"$error":"#N/A"}},{"$f":"'Sundurliðun Útlán'!I180","v":0},".M.EUKULEL.XX.THH.XXX.XXXX.SX.XXX.EUR.IS.N.M"]
[{"$f":"\"INN.\"&EIGNIR!$B$3&C10736","v":{"$error":"#N/A"}},{"$f":"'Sundurliðun Útlán'!I181","v":0},".M.EUKULEL.XX.THA.XXX.XXXX.SX.XXX.EUR.IS.N.M"]
[{"$f":"\"INN.\"&EIGNIR!$B$3&C10737","v":{"$error":"#N/A"}},{"$f":"'Sundurliðun Útlán'!I182","v":0},".M.EUKULEL.XX.OFL.XXX.XXXX.SX.XXX.EUR.IS.N.M"]
[{"$f":"\"INN.\"&EIGNIR!$B$3&C10738","v":{"$error":"#N/A"}},{"$f":"'Sundurliðun Útlán'!J170","v":0},".M.EUKULEL.XX.LAB.XXX.XXXX.SX.XXX.USD.IS.N.M","//í bandarískum dollurum"]
[{"$f":"\"INN.\"&EIGNIR!$B$3&C10739","v":{"$error":"#N/A"}},{"$f":"'Sundurliðun Útlán'!J171","v":0},".M.EUKULEL.XX.SJA.XXX.XXXX.SX.XXX.USD.IS.N.M"]
[{"$f":"\"INN.\"&EIGNIR!$B$3&C10740","v":{"$error":"#N/A"}},{"$f":"'Sundurliðun Útlán'!J172","v":0},".M.EUKULEL.XX.ILA.XXX.XXXX.SX.XXX.USD.IS.N.M"]
[{"$f":"\"INN.\"&EIGNIR!$B$3&C10741","v":{"$error":"#N/A"}},{"$f":"'Sundurliðun Útlán'!J173","v":0},".M.EUKULEL.XX.ISJ.XXX.XXXX.SX.XXX.USD.IS.N.M"]
[{"$f":"\"INN.\"&EIGNIR!$B$3&C10742","v":{"$error":"#N/A"}},{"$f":"'Sundurliðun Útlán'!J174","v":0},".M.EUKULEL.XX.IAN.XXX.XXXX.SX.XXX.USD.IS.N.M"]
[{"$f":"\"INN.\"&EIGNIR!$B$3&C10743","v":{"$error":"#N/A"}},{"$f":"'Sundurliðun Útlán'!J175","v":0},".M.EUKULEL.XX.RAF.XXX.XXXX.SX.XXX.USD.IS.N.M"]
[{"$f":"\"INN.\"&EIGNIR!$B$3&C10744","v":{"$error":"#N/A"}},{"$f":"'Sundurliðun Útlán'!J176","v":0},".M.EUKULEL.XX.MAN.XXX.XXXX.SX.XXX.USD.IS.N.M"]
[{"$f":"\"INN.\"&EIGNIR!$B$3&C10745","v":{"$error":"#N/A"}},{"$f":"'Sundurliðun Útlán'!J177","v":0},".M.EUKULEL.XX.VEN.XXX.XXXX.SX.XXX.USD.IS.N.M"]
[{"$f":"\"INN.\"&EIGNIR!$B$3&C10746","v":{"$error":"#N/A"}},{"$f":"'Sundurliðun Útlán'!J178","v":0},".M.EUKULEL.XX.SAG.XXX.XXXX.SX.XXX.USD.IS.N.M"]
[{"$f":"\"INN.\"&EIGNIR!$B$3&C10747","v":{"$error":"#N/A"}},{"$f":"'Sundurliðun Útlán'!J179","v":0},".M.EUKULEL.XX.THF.XXX.XXXX.SX.XXX.USD.IS.N.M"]
[{"$f":"\"INN.\"&EIGNIR!$B$3&C10748","v":{"$error":"#N/A"}},{"$f":"'Sundurliðun Útlán'!J180","v":0},".M.EUKULEL.XX.THH.XXX.XXXX.SX.XXX.USD.IS.N.M"]
[{"$f":"\"INN.\"&EIGNIR!$B$3&C10749","v":{"$error":"#N/A"}},{"$f":"'Sundurliðun Útlán'!J181","v":0},".M.EUKULEL.XX.THA.XXX.XXXX.SX.XXX.USD.IS.N.M"]
[{"$f":"\"INN.\"&EIGNIR!$B$3&C10750","v":{"$error":"#N/A"}},{"$f":"'Sundurliðun Útlán'!J182","v":0},".M.EUKULEL.XX.OFL.XXX.XXXX.SX.XXX.USD.IS.N.M"]
[{"$f":"\"INN.\"&EIGNIR!$B$3&C10751","v":{"$error":"#N/A"}},{"$f":"'Sundurliðun Útlán'!K170","v":0},".M.EUKULEL.XX.LAB.XXX.XXXX.SX.XXX.GBP.IS.N.M","//í sterlingspundum"]
[{"$f":"\"INN.\"&EIGNIR!$B$3&C10752","v":{"$error":"#N/A"}},{"$f":"'Sundurliðun Útlán'!K171","v":0},".M.EUKULEL.XX.SJA.XXX.XXXX.SX.XXX.GBP.IS.N.M"]
[{"$f":"\"INN.\"&EIGNIR!$B$3&C10753","v":{"$error":"#N/A"}},{"$f":"'Sundurliðun Útlán'!K172","v":0},".M.EUKULEL.XX.ILA.XXX.XXXX.SX.XXX.GBP.IS.N.M"]
[{"$f":"\"INN.\"&EIGNIR!$B$3&C10754","v":{"$error":"#N/A"}},{"$f":"'Sundurliðun Útlán'!K173","v":0},".M.EUKULEL.XX.ISJ.XXX.XXXX.SX.XXX.GBP.IS.N.M"]
[{"$f":"\"INN.\"&EIGNIR!$B$3&C10755","v":{"$error":"#N/A"}},{"$f":"'Sundurliðun Útlán'!K174","v":0},".M.EUKULEL.XX.IAN.XXX.XXXX.SX.XXX.GBP.IS.N.M"]
[{"$f":"\"INN.\"&EIGNIR!$B$3&C10756","v":{"$error":"#N/A"}},{"$f":"'Sundurliðun Útlán'!K175","v":0},".M.EUKULEL.XX.RAF.XXX.XXXX.SX.XXX.GBP.IS.N.M"]
[{"$f":"\"INN.\"&EIGNIR!$B$3&C10757","v":{"$error":"#N/A"}},{"$f":"'Sundurliðun Útlán'!K176","v":0},".M.EUKULEL.XX.MAN.XXX.XXXX.SX.XXX.GBP.IS.N.M"]
[{"$f":"\"INN.\"&EIGNIR!$B$3&C10758","v":{"$error":"#N/A"}},{"$f":"'Sundurliðun Útlán'!K177","v":0},".M.EUKULEL.XX.VEN.XXX.XXXX.SX.XXX.GBP.IS.N.M"]
[{"$f":"\"INN.\"&EIGNIR!$B$3&C10759","v":{"$error":"#N/A"}},{"$f":"'Sundurliðun Útlán'!K178","v":0},".M.EUKULEL.XX.SAG.XXX.XXXX.SX.XXX.GBP.IS.N.M"]
[{"$f":"\"INN.\"&EIGNIR!$B$3&C10760","v":{"$error":"#N/A"}},{"$f":"'Sundurliðun Útlán'!K179","v":0},".M.EUKULEL.XX.THF.XXX.XXXX.SX.XXX.GBP.IS.N.M"]
[{"$f":"\"INN.\"&EIGNIR!$B$3&C10761","v":{"$error":"#N/A"}},{"$f":"'Sundurliðun Útlán'!K180","v":0},".M.EUKULEL.XX.THH.XXX.XXXX.SX.XXX.GBP.IS.N.M"]
[{"$f":"\"INN.\"&EIGNIR!$B$3&C10762","v":{"$error":"#N/A"}},{"$f":"'Sundurliðun Útlán'!K181","v":0},".M.EUKULEL.XX.THA.XXX.XXXX.SX.XXX.GBP.IS.N.M"]
[{"$f":"\"INN.\"&EIGNIR!$B$3&C10763","v":{"$error":"#N/A"}},{"$f":"'Sundurliðun Útlán'!K182","v":0},".M.EUKULEL.XX.OFL.XXX.XXXX.SX.XXX.GBP.IS.N.M"]
[{"$f":"\"INN.\"&EIGNIR!$B$3&C10764","v":{"$error":"#N/A"}},{"$f":"'Sundurliðun Útlán'!L170","v":0},".M.EUKULEL.XX.LAB.XXX.XXXX.SX.XXX.JPY.IS.N.M","//í japönskum jenum"]
[{"$f":"\"INN.\"&EIGNIR!$B$3&C10765","v":{"$error":"#N/A"}},{"$f":"'Sundurliðun Útlán'!L171","v":0},".M.EUKULEL.XX.SJA.XXX.XXXX.SX.XXX.JPY.IS.N.M"]
[{"$f":"\"INN.\"&EIGNIR!$B$3&C10766","v":{"$error":"#N/A"}},{"$f":"'Sundurliðun Útlán'!L172","v":0},".M.EUKULEL.XX.ILA.XXX.XXXX.SX.XXX.JPY.IS.N.M"]
[{"$f":"\"INN.\"&EIGNIR!$B$3&C10767","v":{"$error":"#N/A"}},{"$f":"'Sundurliðun Útlán'!L173","v":0},".M.EUKULEL.XX.ISJ.XXX.XXXX.SX.XXX.JPY.IS.N.M"]
[{"$f":"\"INN.\"&EIGNIR!$B$3&C10768","v":{"$error":"#N/A"}},{"$f":"'Sundurliðun Útlán'!L174","v":0},".M.EUKULEL.XX.IAN.XXX.XXXX.SX.XXX.JPY.IS.N.M"]
[{"$f":"\"INN.\"&EIGNIR!$B$3&C10769","v":{"$error":"#N/A"}},{"$f":"'Sundurliðun Útlán'!L175","v":0},".M.EUKULEL.XX.RAF.XXX.XXXX.SX.XXX.JPY.IS.N.M"]
[{"$f":"\"INN.\"&EIGNIR!$B$3&C10770","v":{"$error":"#N/A"}},{"$f":"'Sundurliðun Útlán'!L176","v":0},".M.EUKULEL.XX.MAN.XXX.XXXX.SX.XXX.JPY.IS.N.M"]
[{"$f":"\"INN.\"&EIGNIR!$B$3&C10771","v":{"$error":"#N/A"}},{"$f":"'Sundurliðun Útlán'!L177","v":0},".M.EUKULEL.XX.VEN.XXX.XXXX.SX.XXX.JPY.IS.N.M"]
[{"$f":"\"INN.\"&EIGNIR!$B$3&C10772","v":{"$error":"#N/A"}},{"$f":"'Sundurliðun Útlán'!L178","v":0},".M.EUKULEL.XX.SAG.XXX.XXXX.SX.XXX.JPY.IS.N.M"]
[{"$f":"\"INN.\"&EIGNIR!$B$3&C10773","v":{"$error":"#N/A"}},{"$f":"'Sundurliðun Útlán'!L179","v":0},".M.EUKULEL.XX.THF.XXX.XXXX.SX.XXX.JPY.IS.N.M"]
[{"$f":"\"INN.\"&EIGNIR!$B$3&C10774","v":{"$error":"#N/A"}},{"$f":"'Sundurliðun Útlán'!L180","v":0},".M.EUKULEL.XX.THH.XXX.XXXX.SX.XXX.JPY.IS.N.M"]
[{"$f":"\"INN.\"&EIGNIR!$B$3&C10775","v":{"$error":"#N/A"}},{"$f":"'Sundurliðun Útlán'!L181","v":0},".M.EUKULEL.XX.THA.XXX.XXXX.SX.XXX.JPY.IS.N.M"]
[{"$f":"\"INN.\"&EIGNIR!$B$3&C10776","v":{"$error":"#N/A"}},{"$f":"'Sundurliðun Útlán'!L182","v":0},".M.EUKULEL.XX.OFL.XXX.XXXX.SX.XXX.JPY.IS.N.M"]
[{"$f":"\"INN.\"&EIGNIR!$B$3&C10777","v":{"$error":"#N/A"}},{"$f":"'Sundurliðun Útlán'!M170","v":0},".M.EUKULEL.XX.LAB.XXX.XXXX.SX.XXX.DKK.IS.N.M","//í dönskum krónum"]
[{"$f":"\"INN.\"&EIGNIR!$B$3&C10778","v":{"$error":"#N/A"}},{"$f":"'Sundurliðun Útlán'!M171","v":0},".M.EUKULEL.XX.SJA.XXX.XXXX.SX.XXX.DKK.IS.N.M"]
[{"$f":"\"INN.\"&EIGNIR!$B$3&C10779","v":{"$error":"#N/A"}},{"$f":"'Sundurliðun Útlán'!M172","v":0},".M.EUKULEL.XX.ILA.XXX.XXXX.SX.XXX.DKK.IS.N.M"]
[{"$f":"\"INN.\"&EIGNIR!$B$3&C10780","v":{"$error":"#N/A"}},{"$f":"'Sundurliðun Útlán'!M173","v":0},".M.EUKULEL.XX.ISJ.XXX.XXXX.SX.XXX.DKK.IS.N.M"]
[{"$f":"\"INN.\"&EIGNIR!$B$3&C10781","v":{"$error":"#N/A"}},{"$f":"'Sundurliðun Útlán'!M174","v":0},".M.EUKULEL.XX.IAN.XXX.XXXX.SX.XXX.DKK.IS.N.M"]
[{"$f":"\"INN.\"&EIGNIR!$B$3&C10782","v":{"$error":"#N/A"}},{"$f":"'Sundurliðun Útlán'!M175","v":0},".M.EUKULEL.XX.RAF.XXX.XXXX.SX.XXX.DKK.IS.N.M"]
[{"$f":"\"INN.\"&EIGNIR!$B$3&C10783","v":{"$error":"#N/A"}},{"$f":"'Sundurliðun Útlán'!M176","v":0},".M.EUKULEL.XX.MAN.XXX.XXXX.SX.XXX.DKK.IS.N.M"]
[{"$f":"\"INN.\"&EIGNIR!$B$3&C10784","v":{"$error":"#N/A"}},{"$f":"'Sundurliðun Útlán'!M177","v":0},".M.EUKULEL.XX.VEN.XXX.XXXX.SX.XXX.DKK.IS.N.M"]
[{"$f":"\"INN.\"&EIGNIR!$B$3&C10785","v":{"$error":"#N/A"}},{"$f":"'Sundurliðun Útlán'!M178","v":0},".M.EUKULEL.XX.SAG.XXX.XXXX.SX.XXX.DKK.IS.N.M"]
[{"$f":"\"INN.\"&EIGNIR!$B$3&C10786","v":{"$error":"#N/A"}},{"$f":"'Sundurliðun Útlán'!M179","v":0},".M.EUKULEL.XX.THF.XXX.XXXX.SX.XXX.DKK.IS.N.M"]
[{"$f":"\"INN.\"&EIGNIR!$B$3&C10787","v":{"$error":"#N/A"}},{"$f":"'Sundurliðun Útlán'!M180","v":0},".M.EUKULEL.XX.THH.XXX.XXXX.SX.XXX.DKK.IS.N.M"]
[{"$f":"\"INN.\"&EIGNIR!$B$3&C10788","v":{"$error":"#N/A"}},{"$f":"'Sundurliðun Útlán'!M181","v":0},".M.EUKULEL.XX.THA.XXX.XXXX.SX.XXX.DKK.IS.N.M"]
[{"$f":"\"INN.\"&EIGNIR!$B$3&C10789","v":{"$error":"#N/A"}},{"$f":"'Sundurliðun Útlán'!M182","v":0},".M.EUKULEL.XX.OFL.XXX.XXXX.SX.XXX.DKK.IS.N.M"]
[{"$f":"\"INN.\"&EIGNIR!$B$3&C10790","v":{"$error":"#N/A"}},{"$f":"'Sundurliðun Útlán'!N170","v":0},".M.EUKULEL.XX.LAB.XXX.XXXX.SX.XXX.NOK.IS.N.M","//í norskum krónum"]
[{"$f":"\"INN.\"&EIGNIR!$B$3&C10791","v":{"$error":"#N/A"}},{"$f":"'Sundurliðun Útlán'!N171","v":0},".M.EUKULEL.XX.SJA.XXX.XXXX.SX.XXX.NOK.IS.N.M"]
[{"$f":"\"INN.\"&EIGNIR!$B$3&C10792","v":{"$error":"#N/A"}},{"$f":"'Sundurliðun Útlán'!N172","v":0},".M.EUKULEL.XX.ILA.XXX.XXXX.SX.XXX.NOK.IS.N.M"]
[{"$f":"\"INN.\"&EIGNIR!$B$3&C10793","v":{"$error":"#N/A"}},{"$f":"'Sundurliðun Útlán'!N173","v":0},".M.EUKULEL.XX.ISJ.XXX.XXXX.SX.XXX.NOK.IS.N.M"]
[{"$f":"\"INN.\"&EIGNIR!$B$3&C10794","v":{"$error":"#N/A"}},{"$f":"'Sundurliðun Útlán'!N174","v":0},".M.EUKULEL.XX.IAN.XXX.XXXX.SX.XXX.NOK.IS.N.M"]
[{"$f":"\"INN.\"&EIGNIR!$B$3&C10795","v":{"$error":"#N/A"}},{"$f":"'Sundurliðun Útlán'!N175","v":0},".M.EUKULEL.XX.RAF.XXX.XXXX.SX.XXX.NOK.IS.N.M"]
[{"$f":"\"INN.\"&EIGNIR!$B$3&C10796","v":{"$error":"#N/A"}},{"$f":"'Sundurliðun Útlán'!N176","v":0},".M.EUKULEL.XX.MAN.XXX.XXXX.SX.XXX.NOK.IS.N.M"]
[{"$f":"\"INN.\"&EIGNIR!$B$3&C10797","v":{"$error":"#N/A"}},{"$f":"'Sundurliðun Útlán'!N177","v":0},".M.EUKULEL.XX.VEN.XXX.XXXX.SX.XXX.NOK.IS.N.M"]
[{"$f":"\"INN.\"&EIGNIR!$B$3&C10798","v":{"$error":"#N/A"}},{"$f":"'Sundurliðun Útlán'!N178","v":0},".M.EUKULEL.XX.SAG.XXX.XXXX.SX.XXX.NOK.IS.N.M"]
[{"$f":"\"INN.\"&EIGNIR!$B$3&C10799","v":{"$error":"#N/A"}},{"$f":"'Sundurliðun Útlán'!N179","v":0},".M.EUKULEL.XX.THF.XXX.XXXX.SX.XXX.NOK.IS.N.M"]
[{"$f":"\"INN.\"&EIGNIR!$B$3&C10800","v":{"$error":"#N/A"}},{"$f":"'Sundurliðun Útlán'!N180","v":0},".M.EUKULEL.XX.THH.XXX.XXXX.SX.XXX.NOK.IS.N.M"]
[{"$f":"\"INN.\"&EIGNIR!$B$3&C10801","v":{"$error":"#N/A"}},{"$f":"'Sundurliðun Útlán'!N181","v":0},".M.EUKULEL.XX.THA.XXX.XXXX.SX.XXX.NOK.IS.N.M"]
[{"$f":"\"INN.\"&EIGNIR!$B$3&C10802","v":{"$error":"#N/A"}},{"$f":"'Sundurliðun Útlán'!N182","v":0},".M.EUKULEL.XX.OFL.XXX.XXXX.SX.XXX.NOK.IS.N.M"]
[{"$f":"\"INN.\"&EIGNIR!$B$3&C10803","v":{"$error":"#N/A"}},{"$f":"'Sundurliðun Útlán'!O170","v":0},".M.EUKULEL.XX.LAB.XXX.XXXX.SX.XXX.SEK.IS.N.M","//í sænskum krónum"]
[{"$f":"\"INN.\"&EIGNIR!$B$3&C10804","v":{"$error":"#N/A"}},{"$f":"'Sundurliðun Útlán'!O171","v":0},".M.EUKULEL.XX.SJA.XXX.XXXX.SX.XXX.SEK.IS.N.M"]
[{"$f":"\"INN.\"&EIGNIR!$B$3&C10805","v":{"$error":"#N/A"}},{"$f":"'Sundurliðun Útlán'!O172","v":0},".M.EUKULEL.XX.ILA.XXX.XXXX.SX.XXX.SEK.IS.N.M"]
[{"$f":"\"INN.\"&EIGNIR!$B$3&C10806","v":{"$error":"#N/A"}},{"$f":"'Sundurliðun Útlán'!O173","v":0},".M.EUKULEL.XX.ISJ.XXX.XXXX.SX.XXX.SEK.IS.N.M"]
[{"$f":"\"INN.\"&EIGNIR!$B$3&C10807","v":{"$error":"#N/A"}},{"$f":"'Sundurliðun Útlán'!O174","v":0},".M.EUKULEL.XX.IAN.XXX.XXXX.SX.XXX.SEK.IS.N.M"]
[{"$f":"\"INN.\"&EIGNIR!$B$3&C10808","v":{"$error":"#N/A"}},{"$f":"'Sundurliðun Útlán'!O175","v":0},".M.EUKULEL.XX.RAF.XXX.XXXX.SX.XXX.SEK.IS.N.M"]
[{"$f":"\"INN.\"&EIGNIR!$B$3&C10809","v":{"$error":"#N/A"}},{"$f":"'Sundurliðun Útlán'!O176","v":0},".M.EUKULEL.XX.MAN.XXX.XXXX.SX.XXX.SEK.IS.N.M"]
[{"$f":"\"INN.\"&EIGNIR!$B$3&C10810","v":{"$error":"#N/A"}},{"$f":"'Sundurliðun Útlán'!O177","v":0},".M.EUKULEL.XX.VEN.XXX.XXXX.SX.XXX.SEK.IS.N.M"]
[{"$f":"\"INN.\"&EIGNIR!$B$3&C10811","v":{"$error":"#N/A"}},{"$f":"'Sundurliðun Útlán'!O178","v":0},".M.EUKULEL.XX.SAG.XXX.XXXX.SX.XXX.SEK.IS.N.M"]
[{"$f":"\"INN.\"&EIGNIR!$B$3&C10812","v":{"$error":"#N/A"}},{"$f":"'Sundurliðun Útlán'!O179","v":0},".M.EUKULEL.XX.THF.XXX.XXXX.SX.XXX.SEK.IS.N.M"]
[{"$f":"\"INN.\"&EIGNIR!$B$3&C10813","v":{"$error":"#N/A"}},{"$f":"'Sundurliðun Útlán'!O180","v":0},".M.EUKULEL.XX.THH.XXX.XXXX.SX.XXX.SEK.IS.N.M"]
[{"$f":"\"INN.\"&EIGNIR!$B$3&C10814","v":{"$error":"#N/A"}},{"$f":"'Sundurliðun Útlán'!O181","v":0},".M.EUKULEL.XX.THA.XXX.XXXX.SX.XXX.SEK.IS.N.M"]
[{"$f":"\"INN.\"&EIGNIR!$B$3&C10815","v":{"$error":"#N/A"}},{"$f":"'Sundurliðun Útlán'!O182","v":0},".M.EUKULEL.XX.OFL.XXX.XXXX.SX.XXX.SEK.IS.N.M"]
[{"$f":"\"INN.\"&EIGNIR!$B$3&C10816","v":{"$error":"#N/A"}},{"$f":"'Sundurliðun Útlán'!P170","v":0},".M.EUKULEL.XX.LAB.XXX.XXXX.SX.XXX.CHF.IS.N.M","//í svissneskum frönkum"]
[{"$f":"\"INN.\"&EIGNIR!$B$3&C10817","v":{"$error":"#N/A"}},{"$f":"'Sundurliðun Útlán'!P171","v":0},".M.EUKULEL.XX.SJA.XXX.XXXX.SX.XXX.CHF.IS.N.M"]
[{"$f":"\"INN.\"&EIGNIR!$B$3&C10818","v":{"$error":"#N/A"}},{"$f":"'Sundurliðun Útlán'!P172","v":0},".M.EUKULEL.XX.ILA.XXX.XXXX.SX.XXX.CHF.IS.N.M"]
[{"$f":"\"INN.\"&EIGNIR!$B$3&C10819","v":{"$error":"#N/A"}},{"$f":"'Sundurliðun Útlán'!P173","v":0},".M.EUKULEL.XX.ISJ.XXX.XXXX.SX.XXX.CHF.IS.N.M"]
[{"$f":"\"INN.\"&EIGNIR!$B$3&C10820","v":{"$error":"#N/A"}},{"$f":"'Sundurliðun Útlán'!P174","v":0},".M.EUKULEL.XX.IAN.XXX.XXXX.SX.XXX.CHF.IS.N.M"]
[{"$f":"\"INN.\"&EIGNIR!$B$3&C10821","v":{"$error":"#N/A"}},{"$f":"'Sundurliðun Útlán'!P175","v":0},".M.EUKULEL.XX.RAF.XXX.XXXX.SX.XXX.CHF.IS.N.M"]
[{"$f":"\"INN.\"&EIGNIR!$B$3&C10822","v":{"$error":"#N/A"}},{"$f":"'Sundurliðun Útlán'!P176","v":0},".M.EUKULEL.XX.MAN.XXX.XXXX.SX.XXX.CHF.IS.N.M"]
[{"$f":"\"INN.\"&EIGNIR!$B$3&C10823","v":{"$error":"#N/A"}},{"$f":"'Sundurliðun Útlán'!P177","v":0},".M.EUKULEL.XX.VEN.XXX.XXXX.SX.XXX.CHF.IS.N.M"]
[{"$f":"\"INN.\"&EIGNIR!$B$3&C10824","v":{"$error":"#N/A"}},{"$f":"'Sundurliðun Útlán'!P178","v":0},".M.EUKULEL.XX.SAG.XXX.XXXX.SX.XXX.CHF.IS.N.M"]
[{"$f":"\"INN.\"&EIGNIR!$B$3&C10825","v":{"$error":"#N/A"}},{"$f":"'Sundurliðun Útlán'!P179","v":0},".M.EUKULEL.XX.THF.XXX.XXXX.SX.XXX.CHF.IS.N.M"]
[{"$f":"\"INN.\"&EIGNIR!$B$3&C10826","v":{"$error":"#N/A"}},{"$f":"'Sundurliðun Útlán'!P180","v":0},".M.EUKULEL.XX.THH.XXX.XXXX.SX.XXX.CHF.IS.N.M"]
[{"$f":"\"INN.\"&EIGNIR!$B$3&C10827","v":{"$error":"#N/A"}},{"$f":"'Sundurliðun Útlán'!P181","v":0},".M.EUKULEL.XX.THA.XXX.XXXX.SX.XXX.CHF.IS.N.M"]
[{"$f":"\"INN.\"&EIGNIR!$B$3&C10828","v":{"$error":"#N/A"}},{"$f":"'Sundurliðun Útlán'!P182","v":0},".M.EUKULEL.XX.OFL.XXX.XXXX.SX.XXX.CHF.IS.N.M"]
[{"$f":"\"INN.\"&EIGNIR!$B$3&C10829","v":{"$error":"#N/A"}},{"$f":"'Sundurliðun Útlán'!Q170","v":0},".M.EUKULEL.XX.LAB.XXX.XXXX.SX.XXX.ADR.IS.N.M","//í öðrum myntum"]
[{"$f":"\"INN.\"&EIGNIR!$B$3&C10830","v":{"$error":"#N/A"}},{"$f":"'Sundurliðun Útlán'!Q171","v":0},".M.EUKULEL.XX.SJA.XXX.XXXX.SX.XXX.ADR.IS.N.M"]
[{"$f":"\"INN.\"&EIGNIR!$B$3&C10831","v":{"$error":"#N/A"}},{"$f":"'Sundurliðun Útlán'!Q172","v":0},".M.EUKULEL.XX.ILA.XXX.XXXX.SX.XXX.ADR.IS.N.M"]
[{"$f":"\"INN.\"&EIGNIR!$B$3&C10832","v":{"$error":"#N/A"}},{"$f":"'Sundurliðun Útlán'!Q173","v":0},".M.EUKULEL.XX.ISJ.XXX.XXXX.SX.XXX.ADR.IS.N.M"]
[{"$f":"\"INN.\"&EIGNIR!$B$3&C10833","v":{"$error":"#N/A"}},{"$f":"'Sundurliðun Útlán'!Q174","v":0},".M.EUKULEL.XX.IAN.XXX.XXXX.SX.XXX.ADR.IS.N.M"]
[{"$f":"\"INN.\"&EIGNIR!$B$3&C10834","v":{"$error":"#N/A"}},{"$f":"'Sundurliðun Útlán'!Q175","v":0},".M.EUKULEL.XX.RAF.XXX.XXXX.SX.XXX.ADR.IS.N.M"]
[{"$f":"\"INN.\"&EIGNIR!$B$3&C10835","v":{"$error":"#N/A"}},{"$f":"'Sundurliðun Útlán'!Q176","v":0},".M.EUKULEL.XX.MAN.XXX.XXXX.SX.XXX.ADR.IS.N.M"]
[{"$f":"\"INN.\"&EIGNIR!$B$3&C10836","v":{"$error":"#N/A"}},{"$f":"'Sundurliðun Útlán'!Q177","v":0},".M.EUKULEL.XX.VEN.XXX.XXXX.SX.XXX.ADR.IS.N.M"]
[{"$f":"\"INN.\"&EIGNIR!$B$3&C10837","v":{"$error":"#N/A"}},{"$f":"'Sundurliðun Útlán'!Q178","v":0},".M.EUKULEL.XX.SAG.XXX.XXXX.SX.XXX.ADR.IS.N.M"]
[{"$f":"\"INN.\"&EIGNIR!$B$3&C10838","v":{"$error":"#N/A"}},{"$f":"'Sundurliðun Útlán'!Q179","v":0},".M.EUKULEL.XX.THF.XXX.XXXX.SX.XXX.ADR.IS.N.M"]
[{"$f":"\"INN.\"&EIGNIR!$B$3&C10839","v":{"$error":"#N/A"}},{"$f":"'Sundurliðun Útlán'!Q180","v":0},".M.EUKULEL.XX.THH.XXX.XXXX.SX.XXX.ADR.IS.N.M"]
[{"$f":"\"INN.\"&EIGNIR!$B$3&C10840","v":{"$error":"#N/A"}},{"$f":"'Sundurliðun Útlán'!Q181","v":0},".M.EUKULEL.XX.THA.XXX.XXXX.SX.XXX.ADR.IS.N.M"]
[{"$f":"\"INN.\"&EIGNIR!$B$3&C10841","v":{"$error":"#N/A"}},{"$f":"'Sundurliðun Útlán'!Q182","v":0},".M.EUKULEL.XX.OFL.XXX.XXXX.SX.XXX.ADR.IS.N.M"]
[{"$f":"\"INN.\"&EIGNIR!$B$3&C10842","v":{"$error":"#N/A"}},{"$f":"'Sundurliðun Innlán'!H8","v":0},".M.SFUINKV.XX.LAB.XXX.XXXX.SX.XXX.ISK.IS.N.M","//Sundurliðun, Innlán. Veltiinnlán í ISK"]
[{"$f":"\"INN.\"&EIGNIR!$B$3&C10843","v":{"$error":"#N/A"}},{"$f":"'Sundurliðun Innlán'!H9","v":0},".M.SFUINKV.XX.SJA.XXX.XXXX.SX.XXX.ISK.IS.N.M"]
[{"$f":"\"INN.\"&EIGNIR!$B$3&C10844","v":{"$error":"#N/A"}},{"$f":"'Sundurliðun Innlán'!H10","v":0},".M.SFUINKV.XX.ILA.XXX.XXXX.SX.XXX.ISK.IS.N.M"]
[{"$f":"\"INN.\"&EIGNIR!$B$3&C10845","v":{"$error":"#N/A"}},{"$f":"'Sundurliðun Innlán'!H11","v":0},".M.SFUINKV.XX.ISJ.XXX.XXXX.SX.XXX.ISK.IS.N.M"]
[{"$f":"\"INN.\"&EIGNIR!$B$3&C10846","v":{"$error":"#N/A"}},{"$f":"'Sundurliðun Innlán'!H12","v":0},".M.SFUINKV.XX.IAN.XXX.XXXX.SX.XXX.ISK.IS.N.M"]
[{"$f":"\"INN.\"&EIGNIR!$B$3&C10847","v":{"$error":"#N/A"}},{"$f":"'Sundurliðun Innlán'!H13","v":0},".M.SFUINKV.XX.RAF.XXX.XXXX.SX.XXX.ISK.IS.N.M"]
[{"$f":"\"INN.\"&EIGNIR!$B$3&C10848","v":{"$error":"#N/A"}},{"$f":"'Sundurliðun Innlán'!H14","v":0},".M.SFUINKV.XX.MAN.XXX.XXXX.SX.XXX.ISK.IS.N.M"]
[{"$f":"\"INN.\"&EIGNIR!$B$3&C10849","v":{"$error":"#N/A"}},{"$f":"'Sundurliðun Innlán'!H15","v":0},".M.SFUINKV.XX.VEN.XXX.XXXX.SX.XXX.ISK.IS.N.M"]
[{"$f":"\"INN.\"&EIGNIR!$B$3&C10850","v":{"$error":"#N/A"}},{"$f":"'Sundurliðun Innlán'!H16","v":0},".M.SFUINKV.XX.SAG.XXX.XXXX.SX.XXX.ISK.IS.N.M"]
[{"$f":"\"INN.\"&EIGNIR!$B$3&C10851","v":{"$error":"#N/A"}},{"$f":"'Sundurliðun Innlán'!H17","v":0},".M.SFUINKV.XX.THF.XXX.XXXX.SX.XXX.ISK.IS.N.M"]
[{"$f":"\"INN.\"&EIGNIR!$B$3&C10852","v":{"$error":"#N/A"}},{"$f":"'Sundurliðun Innlán'!H18","v":0},".M.SFUINKV.XX.THH.XXX.XXXX.SX.XXX.ISK.IS.N.M"]
[{"$f":"\"INN.\"&EIGNIR!$B$3&C10853","v":{"$error":"#N/A"}},{"$f":"'Sundurliðun Innlán'!H19","v":0},".M.SFUINKV.XX.THA.XXX.XXXX.SX.XXX.ISK.IS.N.M"]
[{"$f":"\"INN.\"&EIGNIR!$B$3&C10854","v":{"$error":"#N/A"}},{"$f":"'Sundurliðun Innlán'!H20","v":0},".M.SFUINKV.XX.OFL.XXX.XXXX.SX.XXX.ISK.IS.N.M"]
[{"$f":"\"INN.\"&EIGNIR!$B$3&C10855","v":{"$error":"#N/A"}},{"$f":"'Sundurliðun Innlán'!I8","v":0},".M.SFUINKV.XX.LAB.XXX.XXXX.SX.XXX.EUR.IS.N.M","//Veltiinnlán í EUR"]
[{"$f":"\"INN.\"&EIGNIR!$B$3&C10856","v":{"$error":"#N/A"}},{"$f":"'Sundurliðun Innlán'!I9","v":0},".M.SFUINKV.XX.SJA.XXX.XXXX.SX.XXX.EUR.IS.N.M"]
[{"$f":"\"INN.\"&EIGNIR!$B$3&C10857","v":{"$error":"#N/A"}},{"$f":"'Sundurliðun Innlán'!I10","v":0},".M.SFUINKV.XX.ILA.XXX.XXXX.SX.XXX.EUR.IS.N.M"]
[{"$f":"\"INN.\"&EIGNIR!$B$3&C10858","v":{"$error":"#N/A"}},{"$f":"'Sundurliðun Innlán'!I11","v":0},".M.SFUINKV.XX.ISJ.XXX.XXXX.SX.XXX.EUR.IS.N.M"]
[{"$f":"\"INN.\"&EIGNIR!$B$3&C10859","v":{"$error":"#N/A"}},{"$f":"'Sundurliðun Innlán'!I12","v":0},".M.SFUINKV.XX.IAN.XXX.XXXX.SX.XXX.EUR.IS.N.M"]
[{"$f":"\"INN.\"&EIGNIR!$B$3&C10860","v":{"$error":"#N/A"}},{"$f":"'Sundurliðun Innlán'!I13","v":0},".M.SFUINKV.XX.RAF.XXX.XXXX.SX.XXX.EUR.IS.N.M"]
[{"$f":"\"INN.\"&EIGNIR!$B$3&C10861","v":{"$error":"#N/A"}},{"$f":"'Sundurliðun Innlán'!I14","v":0},".M.SFUINKV.XX.MAN.XXX.XXXX.SX.XXX.EUR.IS.N.M"]
[{"$f":"\"INN.\"&EIGNIR!$B$3&C10862","v":{"$error":"#N/A"}},{"$f":"'Sundurliðun Innlán'!I15","v":0},".M.SFUINKV.XX.VEN.XXX.XXXX.SX.XXX.EUR.IS.N.M"]
[{"$f":"\"INN.\"&EIGNIR!$B$3&C10863","v":{"$error":"#N/A"}},{"$f":"'Sundurliðun Innlán'!I16","v":0},".M.SFUINKV.XX.SAG.XXX.XXXX.SX.XXX.EUR.IS.N.M"]
[{"$f":"\"INN.\"&EIGNIR!$B$3&C10864","v":{"$error":"#N/A"}},{"$f":"'Sundurliðun Innlán'!I17","v":0},".M.SFUINKV.XX.THF.XXX.XXXX.SX.XXX.EUR.IS.N.M"]
[{"$f":"\"INN.\"&EIGNIR!$B$3&C10865","v":{"$error":"#N/A"}},{"$f":"'Sundurliðun Innlán'!I18","v":0},".M.SFUINKV.XX.THH.XXX.XXXX.SX.XXX.EUR.IS.N.M"]
[{"$f":"\"INN.\"&EIGNIR!$B$3&C10866","v":{"$error":"#N/A"}},{"$f":"'Sundurliðun Innlán'!I19","v":0},".M.SFUINKV.XX.THA.XXX.XXXX.SX.XXX.EUR.IS.N.M"]
[{"$f":"\"INN.\"&EIGNIR!$B$3&C10867","v":{"$error":"#N/A"}},{"$f":"'Sundurliðun Innlán'!I20","v":0},".M.SFUINKV.XX.OFL.XXX.XXXX.SX.XXX.EUR.IS.N.M"]
[{"$f":"\"INN.\"&EIGNIR!$B$3&C10868","v":{"$error":"#N/A"}},{"$f":"'Sundurliðun Innlán'!J8","v":0},".M.SFUINKV.XX.LAB.XXX.XXXX.SX.XXX.USD.IS.N.M","//Veltiinnlán í USD"]
[{"$f":"\"INN.\"&EIGNIR!$B$3&C10869","v":{"$error":"#N/A"}},{"$f":"'Sundurliðun Innlán'!J9","v":0},".M.SFUINKV.XX.SJA.XXX.XXXX.SX.XXX.USD.IS.N.M"]
[{"$f":"\"INN.\"&EIGNIR!$B$3&C10870","v":{"$error":"#N/A"}},{"$f":"'Sundurliðun Innlán'!J10","v":0},".M.SFUINKV.XX.ILA.XXX.XXXX.SX.XXX.USD.IS.N.M"]
[{"$f":"\"INN.\"&EIGNIR!$B$3&C10871","v":{"$error":"#N/A"}},{"$f":"'Sundurliðun Innlán'!J11","v":0},".M.SFUINKV.XX.ISJ.XXX.XXXX.SX.XXX.USD.IS.N.M"]
[{"$f":"\"INN.\"&EIGNIR!$B$3&C10872","v":{"$error":"#N/A"}},{"$f":"'Sundurliðun Innlán'!J12","v":0},".M.SFUINKV.XX.IAN.XXX.XXXX.SX.XXX.USD.IS.N.M"]
[{"$f":"\"INN.\"&EIGNIR!$B$3&C10873","v":{"$error":"#N/A"}},{"$f":"'Sundurliðun Innlán'!J13","v":0},".M.SFUINKV.XX.RAF.XXX.XXXX.SX.XXX.USD.IS.N.M"]
[{"$f":"\"INN.\"&EIGNIR!$B$3&C10874","v":{"$error":"#N/A"}},{"$f":"'Sundurliðun Innlán'!J14","v":0},".M.SFUINKV.XX.MAN.XXX.XXXX.SX.XXX.USD.IS.N.M"]
[{"$f":"\"INN.\"&EIGNIR!$B$3&C10875","v":{"$error":"#N/A"}},{"$f":"'Sundurliðun Innlán'!J15","v":0},".M.SFUINKV.XX.VEN.XXX.XXXX.SX.XXX.USD.IS.N.M"]
[{"$f":"\"INN.\"&EIGNIR!$B$3&C10876","v":{"$error":"#N/A"}},{"$f":"'Sundurliðun Innlán'!J16","v":0},".M.SFUINKV.XX.SAG.XXX.XXXX.SX.XXX.USD.IS.N.M"]
[{"$f":"\"INN.\"&EIGNIR!$B$3&C10877","v":{"$error":"#N/A"}},{"$f":"'Sundurliðun Innlán'!J17","v":0},".M.SFUINKV.XX.THF.XXX.XXXX.SX.XXX.USD.IS.N.M"]
[{"$f":"\"INN.\"&EIGNIR!$B$3&C10878","v":{"$error":"#N/A"}},{"$f":"'Sundurliðun Innlán'!J18","v":0},".M.SFUINKV.XX.THH.XXX.XXXX.SX.XXX.USD.IS.N.M"]
[{"$f":"\"INN.\"&EIGNIR!$B$3&C10879","v":{"$error":"#N/A"}},{"$f":"'Sundurliðun Innlán'!J19","v":0},".M.SFUINKV.XX.THA.XXX.XXXX.SX.XXX.USD.IS.N.M"]
[{"$f":"\"INN.\"&EIGNIR!$B$3&C10880","v":{"$error":"#N/A"}},{"$f":"'Sundurliðun Innlán'!J20","v":0},".M.SFUINKV.XX.OFL.XXX.XXXX.SX.XXX.USD.IS.N.M"]
[{"$f":"\"INN.\"&EIGNIR!$B$3&C10881","v":{"$error":"#N/A"}},{"$f":"'Sundurliðun Innlán'!K8","v":0},".M.SFUINKV.XX.LAB.XXX.XXXX.SX.XXX.GBP.IS.N.M","//Veltiinnlán í GBP"]
[{"$f":"\"INN.\"&EIGNIR!$B$3&C10882","v":{"$error":"#N/A"}},{"$f":"'Sundurliðun Innlán'!K9","v":0},".M.SFUINKV.XX.SJA.XXX.XXXX.SX.XXX.GBP.IS.N.M"]
[{"$f":"\"INN.\"&EIGNIR!$B$3&C10883","v":{"$error":"#N/A"}},{"$f":"'Sundurliðun Innlán'!K10","v":0},".M.SFUINKV.XX.ILA.XXX.XXXX.SX.XXX.GBP.IS.N.M"]
[{"$f":"\"INN.\"&EIGNIR!$B$3&C10884","v":{"$error":"#N/A"}},{"$f":"'Sundurliðun Innlán'!K11","v":0},".M.SFUINKV.XX.ISJ.XXX.XXXX.SX.XXX.GBP.IS.N.M"]
[{"$f":"\"INN.\"&EIGNIR!$B$3&C10885","v":{"$error":"#N/A"}},{"$f":"'Sundurliðun Innlán'!K12","v":0},".M.SFUINKV.XX.IAN.XXX.XXXX.SX.XXX.GBP.IS.N.M"]
[{"$f":"\"INN.\"&EIGNIR!$B$3&C10886","v":{"$error":"#N/A"}},{"$f":"'Sundurliðun Innlán'!K13","v":0},".M.SFUINKV.XX.RAF.XXX.XXXX.SX.XXX.GBP.IS.N.M"]
[{"$f":"\"INN.\"&EIGNIR!$B$3&C10887","v":{"$error":"#N/A"}},{"$f":"'Sundurliðun Innlán'!K14","v":0},".M.SFUINKV.XX.MAN.XXX.XXXX.SX.XXX.GBP.IS.N.M"]
[{"$f":"\"INN.\"&EIGNIR!$B$3&C10888","v":{"$error":"#N/A"}},{"$f":"'Sundurliðun Innlán'!K15","v":0},".M.SFUINKV.XX.VEN.XXX.XXXX.SX.XXX.GBP.IS.N.M"]
[{"$f":"\"INN.\"&EIGNIR!$B$3&C10889","v":{"$error":"#N/A"}},{"$f":"'Sundurliðun Innlán'!K16","v":0},".M.SFUINKV.XX.SAG.XXX.XXXX.SX.XXX.GBP.IS.N.M"]
[{"$f":"\"INN.\"&EIGNIR!$B$3&C10890","v":{"$error":"#N/A"}},{"$f":"'Sundurliðun Innlán'!K17","v":0},".M.SFUINKV.XX.THF.XXX.XXXX.SX.XXX.GBP.IS.N.M"]
[{"$f":"\"INN.\"&EIGNIR!$B$3&C10891","v":{"$error":"#N/A"}},{"$f":"'Sundurliðun Innlán'!K18","v":0},".M.SFUINKV.XX.THH.XXX.XXXX.SX.XXX.GBP.IS.N.M"]
[{"$f":"\"INN.\"&EIGNIR!$B$3&C10892","v":{"$error":"#N/A"}},{"$f":"'Sundurliðun Innlán'!K19","v":0},".M.SFUINKV.XX.THA.XXX.XXXX.SX.XXX.GBP.IS.N.M"]
[{"$f":"\"INN.\"&EIGNIR!$B$3&C10893","v":{"$error":"#N/A"}},{"$f":"'Sundurliðun Innlán'!K20","v":0},".M.SFUINKV.XX.OFL.XXX.XXXX.SX.XXX.GBP.IS.N.M"]
[{"$f":"\"INN.\"&EIGNIR!$B$3&C10894","v":{"$error":"#N/A"}},{"$f":"'Sundurliðun Innlán'!L8","v":0},".M.SFUINKV.XX.LAB.XXX.XXXX.SX.XXX.JPY.IS.N.M","//Veltiinnlán í JPY"]
[{"$f":"\"INN.\"&EIGNIR!$B$3&C10895","v":{"$error":"#N/A"}},{"$f":"'Sundurliðun Innlán'!L9","v":0},".M.SFUINKV.XX.SJA.XXX.XXXX.SX.XXX.JPY.IS.N.M"]
[{"$f":"\"INN.\"&EIGNIR!$B$3&C10896","v":{"$error":"#N/A"}},{"$f":"'Sundurliðun Innlán'!L10","v":0},".M.SFUINKV.XX.ILA.XXX.XXXX.SX.XXX.JPY.IS.N.M"]
[{"$f":"\"INN.\"&EIGNIR!$B$3&C10897","v":{"$error":"#N/A"}},{"$f":"'Sundurliðun Innlán'!L11","v":0},".M.SFUINKV.XX.ISJ.XXX.XXXX.SX.XXX.JPY.IS.N.M"]
[{"$f":"\"INN.\"&EIGNIR!$B$3&C10898","v":{"$error":"#N/A"}},{"$f":"'Sundurliðun Innlán'!L12","v":0},".M.SFUINKV.XX.IAN.XXX.XXXX.SX.XXX.JPY.IS.N.M"]
[{"$f":"\"INN.\"&EIGNIR!$B$3&C10899","v":{"$error":"#N/A"}},{"$f":"'Sundurliðun Innlán'!L13","v":0},".M.SFUINKV.XX.RAF.XXX.XXXX.SX.XXX.JPY.IS.N.M"]
[{"$f":"\"INN.\"&EIGNIR!$B$3&C10900","v":{"$error":"#N/A"}},{"$f":"'Sundurliðun Innlán'!L14","v":0},".M.SFUINKV.XX.MAN.XXX.XXXX.SX.XXX.JPY.IS.N.M"]
[{"$f":"\"INN.\"&EIGNIR!$B$3&C10901","v":{"$error":"#N/A"}},{"$f":"'Sundurliðun Innlán'!L15","v":0},".M.SFUINKV.XX.VEN.XXX.XXXX.SX.XXX.JPY.IS.N.M"]
[{"$f":"\"INN.\"&EIGNIR!$B$3&C10902","v":{"$error":"#N/A"}},{"$f":"'Sundurliðun Innlán'!L16","v":0},".M.SFUINKV.XX.SAG.XXX.XXXX.SX.XXX.JPY.IS.N.M"]
[{"$f":"\"INN.\"&EIGNIR!$B$3&C10903","v":{"$error":"#N/A"}},{"$f":"'Sundurliðun Innlán'!L17","v":0},".M.SFUINKV.XX.THF.XXX.XXXX.SX.XXX.JPY.IS.N.M"]
[{"$f":"\"INN.\"&EIGNIR!$B$3&C10904","v":{"$error":"#N/A"}},{"$f":"'Sundurliðun Innlán'!L18","v":0},".M.SFUINKV.XX.THH.XXX.XXXX.SX.XXX.JPY.IS.N.M"]
[{"$f":"\"INN.\"&EIGNIR!$B$3&C10905","v":{"$error":"#N/A"}},{"$f":"'Sundurliðun Innlán'!L19","v":0},".M.SFUINKV.XX.THA.XXX.XXXX.SX.XXX.JPY.IS.N.M"]
[{"$f":"\"INN.\"&EIGNIR!$B$3&C10906","v":{"$error":"#N/A"}},{"$f":"'Sundurliðun Innlán'!L20","v":0},".M.SFUINKV.XX.OFL.XXX.XXXX.SX.XXX.JPY.IS.N.M"]
[{"$f":"\"INN.\"&EIGNIR!$B$3&C10907","v":{"$error":"#N/A"}},{"$f":"'Sundurliðun Innlán'!M8","v":0},".M.SFUINKV.XX.LAB.XXX.XXXX.SX.XXX.DKK.IS.N.M","//Veltiinnlán í DKK"]
[{"$f":"\"INN.\"&EIGNIR!$B$3&C10908","v":{"$error":"#N/A"}},{"$f":"'Sundurliðun Innlán'!M9","v":0},".M.SFUINKV.XX.SJA.XXX.XXXX.SX.XXX.DKK.IS.N.M"]
[{"$f":"\"INN.\"&EIGNIR!$B$3&C10909","v":{"$error":"#N/A"}},{"$f":"'Sundurliðun Innlán'!M10","v":0},".M.SFUINKV.XX.ILA.XXX.XXXX.SX.XXX.DKK.IS.N.M"]
[{"$f":"\"INN.\"&EIGNIR!$B$3&C10910","v":{"$error":"#N/A"}},{"$f":"'Sundurliðun Innlán'!M11","v":0},".M.SFUINKV.XX.ISJ.XXX.XXXX.SX.XXX.DKK.IS.N.M"]
[{"$f":"\"INN.\"&EIGNIR!$B$3&C10911","v":{"$error":"#N/A"}},{"$f":"'Sundurliðun Innlán'!M12","v":0},".M.SFUINKV.XX.IAN.XXX.XXXX.SX.XXX.DKK.IS.N.M"]
[{"$f":"\"INN.\"&EIGNIR!$B$3&C10912","v":{"$error":"#N/A"}},{"$f":"'Sundurliðun Innlán'!M13","v":0},".M.SFUINKV.XX.RAF.XXX.XXXX.SX.XXX.DKK.IS.N.M"]
[{"$f":"\"INN.\"&EIGNIR!$B$3&C10913","v":{"$error":"#N/A"}},{"$f":"'Sundurliðun Innlán'!M14","v":0},".M.SFUINKV.XX.MAN.XXX.XXXX.SX.XXX.DKK.IS.N.M"]
[{"$f":"\"INN.\"&EIGNIR!$B$3&C10914","v":{"$error":"#N/A"}},{"$f":"'Sundurliðun Innlán'!M15","v":0},".M.SFUINKV.XX.VEN.XXX.XXXX.SX.XXX.DKK.IS.N.M"]
[{"$f":"\"INN.\"&EIGNIR!$B$3&C10915","v":{"$error":"#N/A"}},{"$f":"'Sundurliðun Innlán'!M16","v":0},".M.SFUINKV.XX.SAG.XXX.XXXX.SX.XXX.DKK.IS.N.M"]
[{"$f":"\"INN.\"&EIGNIR!$B$3&C10916","v":{"$error":"#N/A"}},{"$f":"'Sundurliðun Innlán'!M17","v":0},".M.SFUINKV.XX.THF.XXX.XXXX.SX.XXX.DKK.IS.N.M"]
[{"$f":"\"INN.\"&EIGNIR!$B$3&C10917","v":{"$error":"#N/A"}},{"$f":"'Sundurliðun Innlán'!M18","v":0},".M.SFUINKV.XX.THH.XXX.XXXX.SX.XXX.DKK.IS.N.M"]
[{"$f":"\"INN.\"&EIGNIR!$B$3&C10918","v":{"$error":"#N/A"}},{"$f":"'Sundurliðun Innlán'!M19","v":0},".M.SFUINKV.XX.THA.XXX.XXXX.SX.XXX.DKK.IS.N.M"]
[{"$f":"\"INN.\"&EIGNIR!$B$3&C10919","v":{"$error":"#N/A"}},{"$f":"'Sundurliðun Innlán'!M20","v":0},".M.SFUINKV.XX.OFL.XXX.XXXX.SX.XXX.DKK.IS.N.M"]
[{"$f":"\"INN.\"&EIGNIR!$B$3&C10920","v":{"$error":"#N/A"}},{"$f":"'Sundurliðun Innlán'!N8","v":0},".M.SFUINKV.XX.LAB.XXX.XXXX.SX.XXX.NOK.IS.N.M","//Veltiinnlán í NOK"]
[{"$f":"\"INN.\"&EIGNIR!$B$3&C10921","v":{"$error":"#N/A"}},{"$f":"'Sundurliðun Innlán'!N9","v":0},".M.SFUINKV.XX.SJA.XXX.XXXX.SX.XXX.NOK.IS.N.M"]
[{"$f":"\"INN.\"&EIGNIR!$B$3&C10922","v":{"$error":"#N/A"}},{"$f":"'Sundurliðun Innlán'!N10","v":0},".M.SFUINKV.XX.ILA.XXX.XXXX.SX.XXX.NOK.IS.N.M"]
[{"$f":"\"INN.\"&EIGNIR!$B$3&C10923","v":{"$error":"#N/A"}},{"$f":"'Sundurliðun Innlán'!N11","v":0},".M.SFUINKV.XX.ISJ.XXX.XXXX.SX.XXX.NOK.IS.N.M"]
[{"$f":"\"INN.\"&EIGNIR!$B$3&C10924","v":{"$error":"#N/A"}},{"$f":"'Sundurliðun Innlán'!N12","v":0},".M.SFUINKV.XX.IAN.XXX.XXXX.SX.XXX.NOK.IS.N.M"]
[{"$f":"\"INN.\"&EIGNIR!$B$3&C10925","v":{"$error":"#N/A"}},{"$f":"'Sundurliðun Innlán'!N13","v":0},".M.SFUINKV.XX.RAF.XXX.XXXX.SX.XXX.NOK.IS.N.M"]
[{"$f":"\"INN.\"&EIGNIR!$B$3&C10926","v":{"$error":"#N/A"}},{"$f":"'Sundurliðun Innlán'!N14","v":0},".M.SFUINKV.XX.MAN.XXX.XXXX.SX.XXX.NOK.IS.N.M"]
[{"$f":"\"INN.\"&EIGNIR!$B$3&C10927","v":{"$error":"#N/A"}},{"$f":"'Sundurliðun Innlán'!N15","v":0},".M.SFUINKV.XX.VEN.XXX.XXXX.SX.XXX.NOK.IS.N.M"]
[{"$f":"\"INN.\"&EIGNIR!$B$3&C10928","v":{"$error":"#N/A"}},{"$f":"'Sundurliðun Innlán'!N16","v":0},".M.SFUINKV.XX.SAG.XXX.XXXX.SX.XXX.NOK.IS.N.M"]
[{"$f":"\"INN.\"&EIGNIR!$B$3&C10929","v":{"$error":"#N/A"}},{"$f":"'Sundurliðun Innlán'!N17","v":0},".M.SFUINKV.XX.THF.XXX.XXXX.SX.XXX.NOK.IS.N.M"]
[{"$f":"\"INN.\"&EIGNIR!$B$3&C10930","v":{"$error":"#N/A"}},{"$f":"'Sundurliðun Innlán'!N18","v":0},".M.SFUINKV.XX.THH.XXX.XXXX.SX.XXX.NOK.IS.N.M"]
[{"$f":"\"INN.\"&EIGNIR!$B$3&C10931","v":{"$error":"#N/A"}},{"$f":"'Sundurliðun Innlán'!N19","v":0},".M.SFUINKV.XX.THA.XXX.XXXX.SX.XXX.NOK.IS.N.M"]
[{"$f":"\"INN.\"&EIGNIR!$B$3&C10932","v":{"$error":"#N/A"}},{"$f":"'Sundurliðun Innlán'!N20","v":0},".M.SFUINKV.XX.OFL.XXX.XXXX.SX.XXX.NOK.IS.N.M"]
[{"$f":"\"INN.\"&EIGNIR!$B$3&C10933","v":{"$error":"#N/A"}},{"$f":"'Sundurliðun Innlán'!O8","v":0},".M.SFUINKV.XX.LAB.XXX.XXXX.SX.XXX.SEK.IS.N.M","//Veltiinnlán í SEK"]
[{"$f":"\"INN.\"&EIGNIR!$B$3&C10934","v":{"$error":"#N/A"}},{"$f":"'Sundurliðun Innlán'!O9","v":0},".M.SFUINKV.XX.SJA.XXX.XXXX.SX.XXX.SEK.IS.N.M"]
[{"$f":"\"INN.\"&EIGNIR!$B$3&C10935","v":{"$error":"#N/A"}},{"$f":"'Sundurliðun Innlán'!O10","v":0},".M.SFUINKV.XX.ILA.XXX.XXXX.SX.XXX.SEK.IS.N.M"]
[{"$f":"\"INN.\"&EIGNIR!$B$3&C10936","v":{"$error":"#N/A"}},{"$f":"'Sundurliðun Innlán'!O11","v":0},".M.SFUINKV.XX.ISJ.XXX.XXXX.SX.XXX.SEK.IS.N.M"]
[{"$f":"\"INN.\"&EIGNIR!$B$3&C10937","v":{"$error":"#N/A"}},{"$f":"'Sundurliðun Innlán'!O12","v":0},".M.SFUINKV.XX.IAN.XXX.XXXX.SX.XXX.SEK.IS.N.M"]
[{"$f":"\"INN.\"&EIGNIR!$B$3&C10938","v":{"$error":"#N/A"}},{"$f":"'Sundurliðun Innlán'!O13","v":0},".M.SFUINKV.XX.RAF.XXX.XXXX.SX.XXX.SEK.IS.N.M"]
[{"$f":"\"INN.\"&EIGNIR!$B$3&C10939","v":{"$error":"#N/A"}},{"$f":"'Sundurliðun Innlán'!O14","v":0},".M.SFUINKV.XX.MAN.XXX.XXXX.SX.XXX.SEK.IS.N.M"]
[{"$f":"\"INN.\"&EIGNIR!$B$3&C10940","v":{"$error":"#N/A"}},{"$f":"'Sundurliðun Innlán'!O15","v":0},".M.SFUINKV.XX.VEN.XXX.XXXX.SX.XXX.SEK.IS.N.M"]
[{"$f":"\"INN.\"&EIGNIR!$B$3&C10941","v":{"$error":"#N/A"}},{"$f":"'Sundurliðun Innlán'!O16","v":0},".M.SFUINKV.XX.SAG.XXX.XXXX.SX.XXX.SEK.IS.N.M"]
[{"$f":"\"INN.\"&EIGNIR!$B$3&C10942","v":{"$error":"#N/A"}},{"$f":"'Sundurliðun Innlán'!O17","v":0},".M.SFUINKV.XX.THF.XXX.XXXX.SX.XXX.SEK.IS.N.M"]
[{"$f":"\"INN.\"&EIGNIR!$B$3&C10943","v":{"$error":"#N/A"}},{"$f":"'Sundurliðun Innlán'!O18","v":0},".M.SFUINKV.XX.THH.XXX.XXXX.SX.XXX.SEK.IS.N.M"]
[{"$f":"\"INN.\"&EIGNIR!$B$3&C10944","v":{"$error":"#N/A"}},{"$f":"'Sundurliðun Innlán'!O19","v":0},".M.SFUINKV.XX.THA.XXX.XXXX.SX.XXX.SEK.IS.N.M"]
[{"$f":"\"INN.\"&EIGNIR!$B$3&C10945","v":{"$error":"#N/A"}},{"$f":"'Sundurliðun Innlán'!O20","v":0},".M.SFUINKV.XX.OFL.XXX.XXXX.SX.XXX.SEK.IS.N.M"]
[{"$f":"\"INN.\"&EIGNIR!$B$3&C10946","v":{"$error":"#N/A"}},{"$f":"'Sundurliðun Innlán'!P8","v":0},".M.SFUINKV.XX.LAB.XXX.XXXX.SX.XXX.CHF.IS.N.M","//Veltiinnlán í CHF"]
[{"$f":"\"INN.\"&EIGNIR!$B$3&C10947","v":{"$error":"#N/A"}},{"$f":"'Sundurliðun Innlán'!P9","v":0},".M.SFUINKV.XX.SJA.XXX.XXXX.SX.XXX.CHF.IS.N.M"]
[{"$f":"\"INN.\"&EIGNIR!$B$3&C10948","v":{"$error":"#N/A"}},{"$f":"'Sundurliðun Innlán'!P10","v":0},".M.SFUINKV.XX.ILA.XXX.XXXX.SX.XXX.CHF.IS.N.M"]
[{"$f":"\"INN.\"&EIGNIR!$B$3&C10949","v":{"$error":"#N/A"}},{"$f":"'Sundurliðun Innlán'!P11","v":0},".M.SFUINKV.XX.ISJ.XXX.XXXX.SX.XXX.CHF.IS.N.M"]
[{"$f":"\"INN.\"&EIGNIR!$B$3&C10950","v":{"$error":"#N/A"}},{"$f":"'Sundurliðun Innlán'!P12","v":0},".M.SFUINKV.XX.IAN.XXX.XXXX.SX.XXX.CHF.IS.N.M"]
[{"$f":"\"INN.\"&EIGNIR!$B$3&C10951","v":{"$error":"#N/A"}},{"$f":"'Sundurliðun Innlán'!P13","v":0},".M.SFUINKV.XX.RAF.XXX.XXXX.SX.XXX.CHF.IS.N.M"]
[{"$f":"\"INN.\"&EIGNIR!$B$3&C10952","v":{"$error":"#N/A"}},{"$f":"'Sundurliðun Innlán'!P14","v":0},".M.SFUINKV.XX.MAN.XXX.XXXX.SX.XXX.CHF.IS.N.M"]
[{"$f":"\"INN.\"&EIGNIR!$B$3&C10953","v":{"$error":"#N/A"}},{"$f":"'Sundurliðun Innlán'!P15","v":0},".M.SFUINKV.XX.VEN.XXX.XXXX.SX.XXX.CHF.IS.N.M"]
[{"$f":"\"INN.\"&EIGNIR!$B$3&C10954","v":{"$error":"#N/A"}},{"$f":"'Sundurliðun Innlán'!P16","v":0},".M.SFUINKV.XX.SAG.XXX.XXXX.SX.XXX.CHF.IS.N.M"]
[{"$f":"\"INN.\"&EIGNIR!$B$3&C10955","v":{"$error":"#N/A"}},{"$f":"'Sundurliðun Innlán'!P17","v":0},".M.SFUINKV.XX.THF.XXX.XXXX.SX.XXX.CHF.IS.N.M"]
[{"$f":"\"INN.\"&EIGNIR!$B$3&C10956","v":{"$error":"#N/A"}},{"$f":"'Sundurliðun Innlán'!P18","v":0},".M.SFUINKV.XX.THH.XXX.XXXX.SX.XXX.CHF.IS.N.M"]
[{"$f":"\"INN.\"&EIGNIR!$B$3&C10957","v":{"$error":"#N/A"}},{"$f":"'Sundurliðun Innlán'!P19","v":0},".M.SFUINKV.XX.THA.XXX.XXXX.SX.XXX.CHF.IS.N.M"]
[{"$f":"\"INN.\"&EIGNIR!$B$3&C10958","v":{"$error":"#N/A"}},{"$f":"'Sundurliðun Innlán'!P20","v":0},".M.SFUINKV.XX.OFL.XXX.XXXX.SX.XXX.CHF.IS.N.M"]
[{"$f":"\"INN.\"&EIGNIR!$B$3&C10959","v":{"$error":"#N/A"}},{"$f":"'Sundurliðun Innlán'!Q8","v":0},".M.SFUINKV.XX.LAB.XXX.XXXX.SX.XXX.ADR.IS.N.M","//Veltiinnlán í ADR"]
[{"$f":"\"INN.\"&EIGNIR!$B$3&C10960","v":{"$error":"#N/A"}},{"$f":"'Sundurliðun Innlán'!Q9","v":0},".M.SFUINKV.XX.SJA.XXX.XXXX.SX.XXX.ADR.IS.N.M"]
[{"$f":"\"INN.\"&EIGNIR!$B$3&C10961","v":{"$error":"#N/A"}},{"$f":"'Sundurliðun Innlán'!Q10","v":0},".M.SFUINKV.XX.ILA.XXX.XXXX.SX.XXX.ADR.IS.N.M"]
[{"$f":"\"INN.\"&EIGNIR!$B$3&C10962","v":{"$error":"#N/A"}},{"$f":"'Sundurliðun Innlán'!Q11","v":0},".M.SFUINKV.XX.ISJ.XXX.XXXX.SX.XXX.ADR.IS.N.M"]
[{"$f":"\"INN.\"&EIGNIR!$B$3&C10963","v":{"$error":"#N/A"}},{"$f":"'Sundurliðun Innlán'!Q12","v":0},".M.SFUINKV.XX.IAN.XXX.XXXX.SX.XXX.ADR.IS.N.M"]
[{"$f":"\"INN.\"&EIGNIR!$B$3&C10964","v":{"$error":"#N/A"}},{"$f":"'Sundurliðun Innlán'!Q13","v":0},".M.SFUINKV.XX.RAF.XXX.XXXX.SX.XXX.ADR.IS.N.M"]
[{"$f":"\"INN.\"&EIGNIR!$B$3&C10965","v":{"$error":"#N/A"}},{"$f":"'Sundurliðun Innlán'!Q14","v":0},".M.SFUINKV.XX.MAN.XXX.XXXX.SX.XXX.ADR.IS.N.M"]
[{"$f":"\"INN.\"&EIGNIR!$B$3&C10966","v":{"$error":"#N/A"}},{"$f":"'Sundurliðun Innlán'!Q15","v":0},".M.SFUINKV.XX.VEN.XXX.XXXX.SX.XXX.ADR.IS.N.M"]
[{"$f":"\"INN.\"&EIGNIR!$B$3&C10967","v":{"$error":"#N/A"}},{"$f":"'Sundurliðun Innlán'!Q16","v":0},".M.SFUINKV.XX.SAG.XXX.XXXX.SX.XXX.ADR.IS.N.M"]
[{"$f":"\"INN.\"&EIGNIR!$B$3&C10968","v":{"$error":"#N/A"}},{"$f":"'Sundurliðun Innlán'!Q17","v":0},".M.SFUINKV.XX.THF.XXX.XXXX.SX.XXX.ADR.IS.N.M"]
[{"$f":"\"INN.\"&EIGNIR!$B$3&C10969","v":{"$error":"#N/A"}},{"$f":"'Sundurliðun Innlán'!Q18","v":0},".M.SFUINKV.XX.THH.XXX.XXXX.SX.XXX.ADR.IS.N.M"]
[{"$f":"\"INN.\"&EIGNIR!$B$3&C10970","v":{"$error":"#N/A"}},{"$f":"'Sundurliðun Innlán'!Q19","v":0},".M.SFUINKV.XX.THA.XXX.XXXX.SX.XXX.ADR.IS.N.M"]
[{"$f":"\"INN.\"&EIGNIR!$B$3&C10971","v":{"$error":"#N/A"}},{"$f":"'Sundurliðun Innlán'!Q20","v":0},".M.SFUINKV.XX.OFL.XXX.XXXX.SX.XXX.ADR.IS.N.M"]
[{"$f":"\"INN.\"&EIGNIR!$B$3&C10972","v":{"$error":"#N/A"}},{"$f":"'Sundurliðun Innlán'!H47","v":0},".M.SFUINOI.XX.LAB.XXX.XXXX.SX.XXX.ISK.IS.N.M","//Innlán. Óbundin innlán í ISK"]
[{"$f":"\"INN.\"&EIGNIR!$B$3&C10973","v":{"$error":"#N/A"}},{"$f":"'Sundurliðun Innlán'!H48","v":0},".M.SFUINOI.XX.SJA.XXX.XXXX.SX.XXX.ISK.IS.N.M"]
[{"$f":"\"INN.\"&EIGNIR!$B$3&C10974","v":{"$error":"#N/A"}},{"$f":"'Sundurliðun Innlán'!H49","v":0},".M.SFUINOI.XX.ILA.XXX.XXXX.SX.XXX.ISK.IS.N.M"]
[{"$f":"\"INN.\"&EIGNIR!$B$3&C10975","v":{"$error":"#N/A"}},{"$f":"'Sundurliðun Innlán'!H50","v":0},".M.SFUINOI.XX.ISJ.XXX.XXXX.SX.XXX.ISK.IS.N.M"]
[{"$f":"\"INN.\"&EIGNIR!$B$3&C10976","v":{"$error":"#N/A"}},{"$f":"'Sundurliðun Innlán'!H51","v":0},".M.SFUINOI.XX.IAN.XXX.XXXX.SX.XXX.ISK.IS.N.M"]
[{"$f":"\"INN.\"&EIGNIR!$B$3&C10977","v":{"$error":"#N/A"}},{"$f":"'Sundurliðun Innlán'!H52","v":0},".M.SFUINOI.XX.RAF.XXX.XXXX.SX.XXX.ISK.IS.N.M"]
[{"$f":"\"INN.\"&EIGNIR!$B$3&C10978","v":{"$error":"#N/A"}},{"$f":"'Sundurliðun Innlán'!H53","v":0},".M.SFUINOI.XX.MAN.XXX.XXXX.SX.XXX.ISK.IS.N.M"]
[{"$f":"\"INN.\"&EIGNIR!$B$3&C10979","v":{"$error":"#N/A"}},{"$f":"'Sundurliðun Innlán'!H54","v":0},".M.SFUINOI.XX.VEN.XXX.XXXX.SX.XXX.ISK.IS.N.M"]
[{"$f":"\"INN.\"&EIGNIR!$B$3&C10980","v":{"$error":"#N/A"}},{"$f":"'Sundurliðun Innlán'!H55","v":0},".M.SFUINOI.XX.SAG.XXX.XXXX.SX.XXX.ISK.IS.N.M"]
[{"$f":"\"INN.\"&EIGNIR!$B$3&C10981","v":{"$error":"#N/A"}},{"$f":"'Sundurliðun Innlán'!H56","v":0},".M.SFUINOI.XX.THF.XXX.XXXX.SX.XXX.ISK.IS.N.M"]
[{"$f":"\"INN.\"&EIGNIR!$B$3&C10982","v":{"$error":"#N/A"}},{"$f":"'Sundurliðun Innlán'!H57","v":0},".M.SFUINOI.XX.THH.XXX.XXXX.SX.XXX.ISK.IS.N.M"]
[{"$f":"\"INN.\"&EIGNIR!$B$3&C10983","v":{"$error":"#N/A"}},{"$f":"'Sundurliðun Innlán'!H58","v":0},".M.SFUINOI.XX.THA.XXX.XXXX.SX.XXX.ISK.IS.N.M"]
[{"$f":"\"INN.\"&EIGNIR!$B$3&C10984","v":{"$error":"#N/A"}},{"$f":"'Sundurliðun Innlán'!H59","v":0},".M.SFUINOI.XX.OFL.XXX.XXXX.SX.XXX.ISK.IS.N.M"]
[{"$f":"\"INN.\"&EIGNIR!$B$3&C10985","v":{"$error":"#N/A"}},{"$f":"'Sundurliðun Innlán'!I47","v":0},".M.SFUINOI.XX.LAB.XXX.XXXX.SX.XXX.EUR.IS.N.M","//Óbundin innlán í EUR"]
[{"$f":"\"INN.\"&EIGNIR!$B$3&C10986","v":{"$error":"#N/A"}},{"$f":"'Sundurliðun Innlán'!I48","v":0},".M.SFUINOI.XX.SJA.XXX.XXXX.SX.XXX.EUR.IS.N.M"]
[{"$f":"\"INN.\"&EIGNIR!$B$3&C10987","v":{"$error":"#N/A"}},{"$f":"'Sundurliðun Innlán'!I49","v":0},".M.SFUINOI.XX.ILA.XXX.XXXX.SX.XXX.EUR.IS.N.M"]
[{"$f":"\"INN.\"&EIGNIR!$B$3&C10988","v":{"$error":"#N/A"}},{"$f":"'Sundurliðun Innlán'!I50","v":0},".M.SFUINOI.XX.ISJ.XXX.XXXX.SX.XXX.EUR.IS.N.M"]
[{"$f":"\"INN.\"&EIGNIR!$B$3&C10989","v":{"$error":"#N/A"}},{"$f":"'Sundurliðun Innlán'!I51","v":0},".M.SFUINOI.XX.IAN.XXX.XXXX.SX.XXX.EUR.IS.N.M"]
[{"$f":"\"INN.\"&EIGNIR!$B$3&C10990","v":{"$error":"#N/A"}},{"$f":"'Sundurliðun Innlán'!I52","v":0},".M.SFUINOI.XX.RAF.XXX.XXXX.SX.XXX.EUR.IS.N.M"]
[{"$f":"\"INN.\"&EIGNIR!$B$3&C10991","v":{"$error":"#N/A"}},{"$f":"'Sundurliðun Innlán'!I53","v":0},".M.SFUINOI.XX.MAN.XXX.XXXX.SX.XXX.EUR.IS.N.M"]
[{"$f":"\"INN.\"&EIGNIR!$B$3&C10992","v":{"$error":"#N/A"}},{"$f":"'Sundurliðun Innlán'!I54","v":0},".M.SFUINOI.XX.VEN.XXX.XXXX.SX.XXX.EUR.IS.N.M"]
[{"$f":"\"INN.\"&EIGNIR!$B$3&C10993","v":{"$error":"#N/A"}},{"$f":"'Sundurliðun Innlán'!I55","v":0},".M.SFUINOI.XX.SAG.XXX.XXXX.SX.XXX.EUR.IS.N.M"]
[{"$f":"\"INN.\"&EIGNIR!$B$3&C10994","v":{"$error":"#N/A"}},{"$f":"'Sundurliðun Innlán'!I56","v":0},".M.SFUINOI.XX.THF.XXX.XXXX.SX.XXX.EUR.IS.N.M"]
[{"$f":"\"INN.\"&EIGNIR!$B$3&C10995","v":{"$error":"#N/A"}},{"$f":"'Sundurliðun Innlán'!I57","v":0},".M.SFUINOI.XX.THH.XXX.XXXX.SX.XXX.EUR.IS.N.M"]
[{"$f":"\"INN.\"&EIGNIR!$B$3&C10996","v":{"$error":"#N/A"}},{"$f":"'Sundurliðun Innlán'!I58","v":0},".M.SFUINOI.XX.THA.XXX.XXXX.SX.XXX.EUR.IS.N.M"]
[{"$f":"\"INN.\"&EIGNIR!$B$3&C10997","v":{"$error":"#N/A"}},{"$f":"'Sundurliðun Innlán'!I59","v":0},".M.SFUINOI.XX.OFL.XXX.XXXX.SX.XXX.EUR.IS.N.M"]
[{"$f":"\"INN.\"&EIGNIR!$B$3&C10998","v":{"$error":"#N/A"}},{"$f":"'Sundurliðun Innlán'!J47","v":0},".M.SFUINOI.XX.LAB.XXX.XXXX.SX.XXX.USD.IS.N.M","//Óbundin innlán í USD"]
[{"$f":"\"INN.\"&EIGNIR!$B$3&C10999","v":{"$error":"#N/A"}},{"$f":"'Sundurliðun Innlán'!J48","v":0},".M.SFUINOI.XX.SJA.XXX.XXXX.SX.XXX.USD.IS.N.M"]
[{"$f":"\"INN.\"&EIGNIR!$B$3&C11000","v":{"$error":"#N/A"}},{"$f":"'Sundurliðun Innlán'!J49","v":0},".M.SFUINOI.XX.ILA.XXX.XXXX.SX.XXX.USD.IS.N.M"]
[{"$f":"\"INN.\"&EIGNIR!$B$3&C11001","v":{"$error":"#N/A"}},{"$f":"'Sundurliðun Innlán'!J50","v":0},".M.SFUINOI.XX.ISJ.XXX.XXXX.SX.XXX.USD.IS.N.M"]
[{"$f":"\"INN.\"&EIGNIR!$B$3&C11002","v":{"$error":"#N/A"}},{"$f":"'Sundurliðun Innlán'!J51","v":0},".M.SFUINOI.XX.IAN.XXX.XXXX.SX.XXX.USD.IS.N.M"]
[{"$f":"\"INN.\"&EIGNIR!$B$3&C11003","v":{"$error":"#N/A"}},{"$f":"'Sundurliðun Innlán'!J52","v":0},".M.SFUINOI.XX.RAF.XXX.XXXX.SX.XXX.USD.IS.N.M"]
[{"$f":"\"INN.\"&EIGNIR!$B$3&C11004","v":{"$error":"#N/A"}},{"$f":"'Sundurliðun Innlán'!J53","v":0},".M.SFUINOI.XX.MAN.XXX.XXXX.SX.XXX.USD.IS.N.M"]
[{"$f":"\"INN.\"&EIGNIR!$B$3&C11005","v":{"$error":"#N/A"}},{"$f":"'Sundurliðun Innlán'!J54","v":0},".M.SFUINOI.XX.VEN.XXX.XXXX.SX.XXX.USD.IS.N.M"]
[{"$f":"\"INN.\"&EIGNIR!$B$3&C11006","v":{"$error":"#N/A"}},{"$f":"'Sundurliðun Innlán'!J55","v":0},".M.SFUINOI.XX.SAG.XXX.XXXX.SX.XXX.USD.IS.N.M"]
[{"$f":"\"INN.\"&EIGNIR!$B$3&C11007","v":{"$error":"#N/A"}},{"$f":"'Sundurliðun Innlán'!J56","v":0},".M.SFUINOI.XX.THF.XXX.XXXX.SX.XXX.USD.IS.N.M"]
[{"$f":"\"INN.\"&EIGNIR!$B$3&C11008","v":{"$error":"#N/A"}},{"$f":"'Sundurliðun Innlán'!J57","v":0},".M.SFUINOI.XX.THH.XXX.XXXX.SX.XXX.USD.IS.N.M"]
[{"$f":"\"INN.\"&EIGNIR!$B$3&C11009","v":{"$error":"#N/A"}},{"$f":"'Sundurliðun Innlán'!J58","v":0},".M.SFUINOI.XX.THA.XXX.XXXX.SX.XXX.USD.IS.N.M"]
[{"$f":"\"INN.\"&EIGNIR!$B$3&C11010","v":{"$error":"#N/A"}},{"$f":"'Sundurliðun Innlán'!J59","v":0},".M.SFUINOI.XX.OFL.XXX.XXXX.SX.XXX.USD.IS.N.M"]
[{"$f":"\"INN.\"&EIGNIR!$B$3&C11011","v":{"$error":"#N/A"}},{"$f":"'Sundurliðun Innlán'!K47","v":0},".M.SFUINOI.XX.LAB.XXX.XXXX.SX.XXX.GBP.IS.N.M","//Óbundin innlán í GBP"]
[{"$f":"\"INN.\"&EIGNIR!$B$3&C11012","v":{"$error":"#N/A"}},{"$f":"'Sundurliðun Innlán'!K48","v":0},".M.SFUINOI.XX.SJA.XXX.XXXX.SX.XXX.GBP.IS.N.M"]
[{"$f":"\"INN.\"&EIGNIR!$B$3&C11013","v":{"$error":"#N/A"}},{"$f":"'Sundurliðun Innlán'!K49","v":0},".M.SFUINOI.XX.ILA.XXX.XXXX.SX.XXX.GBP.IS.N.M"]
[{"$f":"\"INN.\"&EIGNIR!$B$3&C11014","v":{"$error":"#N/A"}},{"$f":"'Sundurliðun Innlán'!K50","v":0},".M.SFUINOI.XX.ISJ.XXX.XXXX.SX.XXX.GBP.IS.N.M"]
[{"$f":"\"INN.\"&EIGNIR!$B$3&C11015","v":{"$error":"#N/A"}},{"$f":"'Sundurliðun Innlán'!K51","v":0},".M.SFUINOI.XX.IAN.XXX.XXXX.SX.XXX.GBP.IS.N.M"]
[{"$f":"\"INN.\"&EIGNIR!$B$3&C11016","v":{"$error":"#N/A"}},{"$f":"'Sundurliðun Innlán'!K52","v":0},".M.SFUINOI.XX.RAF.XXX.XXXX.SX.XXX.GBP.IS.N.M"]
[{"$f":"\"INN.\"&EIGNIR!$B$3&C11017","v":{"$error":"#N/A"}},{"$f":"'Sundurliðun Innlán'!K53","v":0},".M.SFUINOI.XX.MAN.XXX.XXXX.SX.XXX.GBP.IS.N.M"]
[{"$f":"\"INN.\"&EIGNIR!$B$3&C11018","v":{"$error":"#N/A"}},{"$f":"'Sundurliðun Innlán'!K54","v":0},".M.SFUINOI.XX.VEN.XXX.XXXX.SX.XXX.GBP.IS.N.M"]
[{"$f":"\"INN.\"&EIGNIR!$B$3&C11019","v":{"$error":"#N/A"}},{"$f":"'Sundurliðun Innlán'!K55","v":0},".M.SFUINOI.XX.SAG.XXX.XXXX.SX.XXX.GBP.IS.N.M"]
[{"$f":"\"INN.\"&EIGNIR!$B$3&C11020","v":{"$error":"#N/A"}},{"$f":"'Sundurliðun Innlán'!K56","v":0},".M.SFUINOI.XX.THF.XXX.XXXX.SX.XXX.GBP.IS.N.M"]
[{"$f":"\"INN.\"&EIGNIR!$B$3&C11021","v":{"$error":"#N/A"}},{"$f":"'Sundurliðun Innlán'!K57","v":0},".M.SFUINOI.XX.THH.XXX.XXXX.SX.XXX.GBP.IS.N.M"]
[{"$f":"\"INN.\"&EIGNIR!$B$3&C11022","v":{"$error":"#N/A"}},{"$f":"'Sundurliðun Innlán'!K58","v":0},".M.SFUINOI.XX.THA.XXX.XXXX.SX.XXX.GBP.IS.N.M"]
[{"$f":"\"INN.\"&EIGNIR!$B$3&C11023","v":{"$error":"#N/A"}},{"$f":"'Sundurliðun Innlán'!K59","v":0},".M.SFUINOI.XX.OFL.XXX.XXXX.SX.XXX.GBP.IS.N.M"]
[{"$f":"\"INN.\"&EIGNIR!$B$3&C11024","v":{"$error":"#N/A"}},{"$f":"'Sundurliðun Innlán'!L47","v":0},".M.SFUINOI.XX.LAB.XXX.XXXX.SX.XXX.JPY.IS.N.M","//Óbundin innlán í JPY"]
[{"$f":"\"INN.\"&EIGNIR!$B$3&C11025","v":{"$error":"#N/A"}},{"$f":"'Sundurliðun Innlán'!L48","v":0},".M.SFUINOI.XX.SJA.XXX.XXXX.SX.XXX.JPY.IS.N.M"]
[{"$f":"\"INN.\"&EIGNIR!$B$3&C11026","v":{"$error":"#N/A"}},{"$f":"'Sundurliðun Innlán'!L49","v":0},".M.SFUINOI.XX.ILA.XXX.XXXX.SX.XXX.JPY.IS.N.M"]
[{"$f":"\"INN.\"&EIGNIR!$B$3&C11027","v":{"$error":"#N/A"}},{"$f":"'Sundurliðun Innlán'!L50","v":0},".M.SFUINOI.XX.ISJ.XXX.XXXX.SX.XXX.JPY.IS.N.M"]
[{"$f":"\"INN.\"&EIGNIR!$B$3&C11028","v":{"$error":"#N/A"}},{"$f":"'Sundurliðun Innlán'!L51","v":0},".M.SFUINOI.XX.IAN.XXX.XXXX.SX.XXX.JPY.IS.N.M"]
[{"$f":"\"INN.\"&EIGNIR!$B$3&C11029","v":{"$error":"#N/A"}},{"$f":"'Sundurliðun Innlán'!L52","v":0},".M.SFUINOI.XX.RAF.XXX.XXXX.SX.XXX.JPY.IS.N.M"]
[{"$f":"\"INN.\"&EIGNIR!$B$3&C11030","v":{"$error":"#N/A"}},{"$f":"'Sundurliðun Innlán'!L53","v":0},".M.SFUINOI.XX.MAN.XXX.XXXX.SX.XXX.JPY.IS.N.M"]
[{"$f":"\"INN.\"&EIGNIR!$B$3&C11031","v":{"$error":"#N/A"}},{"$f":"'Sundurliðun Innlán'!L54","v":0},".M.SFUINOI.XX.VEN.XXX.XXXX.SX.XXX.JPY.IS.N.M"]
[{"$f":"\"INN.\"&EIGNIR!$B$3&C11032","v":{"$error":"#N/A"}},{"$f":"'Sundurliðun Innlán'!L55","v":0},".M.SFUINOI.XX.SAG.XXX.XXXX.SX.XXX.JPY.IS.N.M"]
[{"$f":"\"INN.\"&EIGNIR!$B$3&C11033","v":{"$error":"#N/A"}},{"$f":"'Sundurliðun Innlán'!L56","v":0},".M.SFUINOI.XX.THF.XXX.XXXX.SX.XXX.JPY.IS.N.M"]
[{"$f":"\"INN.\"&EIGNIR!$B$3&C11034","v":{"$error":"#N/A"}},{"$f":"'Sundurliðun Innlán'!L57","v":0},".M.SFUINOI.XX.THH.XXX.XXXX.SX.XXX.JPY.IS.N.M"]
[{"$f":"\"INN.\"&EIGNIR!$B$3&C11035","v":{"$error":"#N/A"}},{"$f":"'Sundurliðun Innlán'!L58","v":0},".M.SFUINOI.XX.THA.XXX.XXXX.SX.XXX.JPY.IS.N.M"]
[{"$f":"\"INN.\"&EIGNIR!$B$3&C11036","v":{"$error":"#N/A"}},{"$f":"'Sundurliðun Innlán'!L59","v":0},".M.SFUINOI.XX.OFL.XXX.XXXX.SX.XXX.JPY.IS.N.M"]
[{"$f":"\"INN.\"&EIGNIR!$B$3&C11037","v":{"$error":"#N/A"}},{"$f":"'Sundurliðun Innlán'!M47","v":0},".M.SFUINOI.XX.LAB.XXX.XXXX.SX.XXX.DKK.IS.N.M","//Óbundin innlán í DKK"]
[{"$f":"\"INN.\"&EIGNIR!$B$3&C11038","v":{"$error":"#N/A"}},{"$f":"'Sundurliðun Innlán'!M48","v":0},".M.SFUINOI.XX.SJA.XXX.XXXX.SX.XXX.DKK.IS.N.M"]
[{"$f":"\"INN.\"&EIGNIR!$B$3&C11039","v":{"$error":"#N/A"}},{"$f":"'Sundurliðun Innlán'!M49","v":0},".M.SFUINOI.XX.ILA.XXX.XXXX.SX.XXX.DKK.IS.N.M"]
[{"$f":"\"INN.\"&EIGNIR!$B$3&C11040","v":{"$error":"#N/A"}},{"$f":"'Sundurliðun Innlán'!M50","v":0},".M.SFUINOI.XX.ISJ.XXX.XXXX.SX.XXX.DKK.IS.N.M"]
[{"$f":"\"INN.\"&EIGNIR!$B$3&C11041","v":{"$error":"#N/A"}},{"$f":"'Sundurliðun Innlán'!M51","v":0},".M.SFUINOI.XX.IAN.XXX.XXXX.SX.XXX.DKK.IS.N.M"]
[{"$f":"\"INN.\"&EIGNIR!$B$3&C11042","v":{"$error":"#N/A"}},{"$f":"'Sundurliðun Innlán'!M52","v":0},".M.SFUINOI.XX.RAF.XXX.XXXX.SX.XXX.DKK.IS.N.M"]
[{"$f":"\"INN.\"&EIGNIR!$B$3&C11043","v":{"$error":"#N/A"}},{"$f":"'Sundurliðun Innlán'!M53","v":0},".M.SFUINOI.XX.MAN.XXX.XXXX.SX.XXX.DKK.IS.N.M"]
[{"$f":"\"INN.\"&EIGNIR!$B$3&C11044","v":{"$error":"#N/A"}},{"$f":"'Sundurliðun Innlán'!M54","v":0},".M.SFUINOI.XX.VEN.XXX.XXXX.SX.XXX.DKK.IS.N.M"]
[{"$f":"\"INN.\"&EIGNIR!$B$3&C11045","v":{"$error":"#N/A"}},{"$f":"'Sundurliðun Innlán'!M55","v":0},".M.SFUINOI.XX.SAG.XXX.XXXX.SX.XXX.DKK.IS.N.M"]
[{"$f":"\"INN.\"&EIGNIR!$B$3&C11046","v":{"$error":"#N/A"}},{"$f":"'Sundurliðun Innlán'!M56","v":0},".M.SFUINOI.XX.THF.XXX.XXXX.SX.XXX.DKK.IS.N.M"]
[{"$f":"\"INN.\"&EIGNIR!$B$3&C11047","v":{"$error":"#N/A"}},{"$f":"'Sundurliðun Innlán'!M57","v":0},".M.SFUINOI.XX.THH.XXX.XXXX.SX.XXX.DKK.IS.N.M"]
[{"$f":"\"INN.\"&EIGNIR!$B$3&C11048","v":{"$error":"#N/A"}},{"$f":"'Sundurliðun Innlán'!M58","v":0},".M.SFUINOI.XX.THA.XXX.XXXX.SX.XXX.DKK.IS.N.M"]
[{"$f":"\"INN.\"&EIGNIR!$B$3&C11049","v":{"$error":"#N/A"}},{"$f":"'Sundurliðun Innlán'!M59","v":0},".M.SFUINOI.XX.OFL.XXX.XXXX.SX.XXX.DKK.IS.N.M"]
[{"$f":"\"INN.\"&EIGNIR!$B$3&C11050","v":{"$error":"#N/A"}},{"$f":"'Sundurliðun Innlán'!N47","v":0},".M.SFUINOI.XX.LAB.XXX.XXXX.SX.XXX.NOK.IS.N.M","//Óbundin innlán í NOK"]
[{"$f":"\"INN.\"&EIGNIR!$B$3&C11051","v":{"$error":"#N/A"}},{"$f":"'Sundurliðun Innlán'!N48","v":0},".M.SFUINOI.XX.SJA.XXX.XXXX.SX.XXX.NOK.IS.N.M"]
[{"$f":"\"INN.\"&EIGNIR!$B$3&C11052","v":{"$error":"#N/A"}},{"$f":"'Sundurliðun Innlán'!N49","v":0},".M.SFUINOI.XX.ILA.XXX.XXXX.SX.XXX.NOK.IS.N.M"]
[{"$f":"\"INN.\"&EIGNIR!$B$3&C11053","v":{"$error":"#N/A"}},{"$f":"'Sundurliðun Innlán'!N50","v":0},".M.SFUINOI.XX.ISJ.XXX.XXXX.SX.XXX.NOK.IS.N.M"]
[{"$f":"\"INN.\"&EIGNIR!$B$3&C11054","v":{"$error":"#N/A"}},{"$f":"'Sundurliðun Innlán'!N51","v":0},".M.SFUINOI.XX.IAN.XXX.XXXX.SX.XXX.NOK.IS.N.M"]
[{"$f":"\"INN.\"&EIGNIR!$B$3&C11055","v":{"$error":"#N/A"}},{"$f":"'Sundurliðun Innlán'!N52","v":0},".M.SFUINOI.XX.RAF.XXX.XXXX.SX.XXX.NOK.IS.N.M"]
[{"$f":"\"INN.\"&EIGNIR!$B$3&C11056","v":{"$error":"#N/A"}},{"$f":"'Sundurliðun Innlán'!N53","v":0},".M.SFUINOI.XX.MAN.XXX.XXXX.SX.XXX.NOK.IS.N.M"]
[{"$f":"\"INN.\"&EIGNIR!$B$3&C11057","v":{"$error":"#N/A"}},{"$f":"'Sundurliðun Innlán'!N54","v":0},".M.SFUINOI.XX.VEN.XXX.XXXX.SX.XXX.NOK.IS.N.M"]
[{"$f":"\"INN.\"&EIGNIR!$B$3&C11058","v":{"$error":"#N/A"}},{"$f":"'Sundurliðun Innlán'!N55","v":0},".M.SFUINOI.XX.SAG.XXX.XXXX.SX.XXX.NOK.IS.N.M"]
[{"$f":"\"INN.\"&EIGNIR!$B$3&C11059","v":{"$error":"#N/A"}},{"$f":"'Sundurliðun Innlán'!N56","v":0},".M.SFUINOI.XX.THF.XXX.XXXX.SX.XXX.NOK.IS.N.M"]
[{"$f":"\"INN.\"&EIGNIR!$B$3&C11060","v":{"$error":"#N/A"}},{"$f":"'Sundurliðun Innlán'!N57","v":0},".M.SFUINOI.XX.THH.XXX.XXXX.SX.XXX.NOK.IS.N.M"]
[{"$f":"\"INN.\"&EIGNIR!$B$3&C11061","v":{"$error":"#N/A"}},{"$f":"'Sundurliðun Innlán'!N58","v":0},".M.SFUINOI.XX.THA.XXX.XXXX.SX.XXX.NOK.IS.N.M"]
[{"$f":"\"INN.\"&EIGNIR!$B$3&C11062","v":{"$error":"#N/A"}},{"$f":"'Sundurliðun Innlán'!N59","v":0},".M.SFUINOI.XX.OFL.XXX.XXXX.SX.XXX.NOK.IS.N.M"]
[{"$f":"\"INN.\"&EIGNIR!$B$3&C11063","v":{"$error":"#N/A"}},{"$f":"'Sundurliðun Innlán'!O47","v":0},".M.SFUINOI.XX.LAB.XXX.XXXX.SX.XXX.SEK.IS.N.M","//Óbundin innlán í SEK"]
[{"$f":"\"INN.\"&EIGNIR!$B$3&C11064","v":{"$error":"#N/A"}},{"$f":"'Sundurliðun Innlán'!O48","v":0},".M.SFUINOI.XX.SJA.XXX.XXXX.SX.XXX.SEK.IS.N.M"]
[{"$f":"\"INN.\"&EIGNIR!$B$3&C11065","v":{"$error":"#N/A"}},{"$f":"'Sundurliðun Innlán'!O49","v":0},".M.SFUINOI.XX.ILA.XXX.XXXX.SX.XXX.SEK.IS.N.M"]
[{"$f":"\"INN.\"&EIGNIR!$B$3&C11066","v":{"$error":"#N/A"}},{"$f":"'Sundurliðun Innlán'!O50","v":0},".M.SFUINOI.XX.ISJ.XXX.XXXX.SX.XXX.SEK.IS.N.M"]
[{"$f":"\"INN.\"&EIGNIR!$B$3&C11067","v":{"$error":"#N/A"}},{"$f":"'Sundurliðun Innlán'!O51","v":0},".M.SFUINOI.XX.IAN.XXX.XXXX.SX.XXX.SEK.IS.N.M"]
[{"$f":"\"INN.\"&EIGNIR!$B$3&C11068","v":{"$error":"#N/A"}},{"$f":"'Sundurliðun Innlán'!O52","v":0},".M.SFUINOI.XX.RAF.XXX.XXXX.SX.XXX.SEK.IS.N.M"]
[{"$f":"\"INN.\"&EIGNIR!$B$3&C11069","v":{"$error":"#N/A"}},{"$f":"'Sundurliðun Innlán'!O53","v":0},".M.SFUINOI.XX.MAN.XXX.XXXX.SX.XXX.SEK.IS.N.M"]
[{"$f":"\"INN.\"&EIGNIR!$B$3&C11070","v":{"$error":"#N/A"}},{"$f":"'Sundurliðun Innlán'!O54","v":0},".M.SFUINOI.XX.VEN.XXX.XXXX.SX.XXX.SEK.IS.N.M"]
[{"$f":"\"INN.\"&EIGNIR!$B$3&C11071","v":{"$error":"#N/A"}},{"$f":"'Sundurliðun Innlán'!O55","v":0},".M.SFUINOI.XX.SAG.XXX.XXXX.SX.XXX.SEK.IS.N.M"]
[{"$f":"\"INN.\"&EIGNIR!$B$3&C11072","v":{"$error":"#N/A"}},{"$f":"'Sundurliðun Innlán'!O56","v":0},".M.SFUINOI.XX.THF.XXX.XXXX.SX.XXX.SEK.IS.N.M"]
[{"$f":"\"INN.\"&EIGNIR!$B$3&C11073","v":{"$error":"#N/A"}},{"$f":"'Sundurliðun Innlán'!O57","v":0},".M.SFUINOI.XX.THH.XXX.XXXX.SX.XXX.SEK.IS.N.M"]
[{"$f":"\"INN.\"&EIGNIR!$B$3&C11074","v":{"$error":"#N/A"}},{"$f":"'Sundurliðun Innlán'!O58","v":0},".M.SFUINOI.XX.THA.XXX.XXXX.SX.XXX.SEK.IS.N.M"]
[{"$f":"\"INN.\"&EIGNIR!$B$3&C11075","v":{"$error":"#N/A"}},{"$f":"'Sundurliðun Innlán'!O59","v":0},".M.SFUINOI.XX.OFL.XXX.XXXX.SX.XXX.SEK.IS.N.M"]
[{"$f":"\"INN.\"&EIGNIR!$B$3&C11076","v":{"$error":"#N/A"}},{"$f":"'Sundurliðun Innlán'!P47","v":0},".M.SFUINOI.XX.LAB.XXX.XXXX.SX.XXX.CHF.IS.N.M","//Óbundin innlán í CHF"]
[{"$f":"\"INN.\"&EIGNIR!$B$3&C11077","v":{"$error":"#N/A"}},{"$f":"'Sundurliðun Innlán'!P48","v":0},".M.SFUINOI.XX.SJA.XXX.XXXX.SX.XXX.CHF.IS.N.M"]
[{"$f":"\"INN.\"&EIGNIR!$B$3&C11078","v":{"$error":"#N/A"}},{"$f":"'Sundurliðun Innlán'!P49","v":0},".M.SFUINOI.XX.ILA.XXX.XXXX.SX.XXX.CHF.IS.N.M"]
[{"$f":"\"INN.\"&EIGNIR!$B$3&C11079","v":{"$error":"#N/A"}},{"$f":"'Sundurliðun Innlán'!P50","v":0},".M.SFUINOI.XX.ISJ.XXX.XXXX.SX.XXX.CHF.IS.N.M"]
[{"$f":"\"INN.\"&EIGNIR!$B$3&C11080","v":{"$error":"#N/A"}},{"$f":"'Sundurliðun Innlán'!P51","v":0},".M.SFUINOI.XX.IAN.XXX.XXXX.SX.XXX.CHF.IS.N.M"]
[{"$f":"\"INN.\"&EIGNIR!$B$3&C11081","v":{"$error":"#N/A"}},{"$f":"'Sundurliðun Innlán'!P52","v":0},".M.SFUINOI.XX.RAF.XXX.XXXX.SX.XXX.CHF.IS.N.M"]
[{"$f":"\"INN.\"&EIGNIR!$B$3&C11082","v":{"$error":"#N/A"}},{"$f":"'Sundurliðun Innlán'!P53","v":0},".M.SFUINOI.XX.MAN.XXX.XXXX.SX.XXX.CHF.IS.N.M"]
[{"$f":"\"INN.\"&EIGNIR!$B$3&C11083","v":{"$error":"#N/A"}},{"$f":"'Sundurliðun Innlán'!P54","v":0},".M.SFUINOI.XX.VEN.XXX.XXXX.SX.XXX.CHF.IS.N.M"]
[{"$f":"\"INN.\"&EIGNIR!$B$3&C11084","v":{"$error":"#N/A"}},{"$f":"'Sundurliðun Innlán'!P55","v":0},".M.SFUINOI.XX.SAG.XXX.XXXX.SX.XXX.CHF.IS.N.M"]
[{"$f":"\"INN.\"&EIGNIR!$B$3&C11085","v":{"$error":"#N/A"}},{"$f":"'Sundurliðun Innlán'!P56","v":0},".M.SFUINOI.XX.THF.XXX.XXXX.SX.XXX.CHF.IS.N.M"]
[{"$f":"\"INN.\"&EIGNIR!$B$3&C11086","v":{"$error":"#N/A"}},{"$f":"'Sundurliðun Innlán'!P57","v":0},".M.SFUINOI.XX.THH.XXX.XXXX.SX.XXX.CHF.IS.N.M"]
[{"$f":"\"INN.\"&EIGNIR!$B$3&C11087","v":{"$error":"#N/A"}},{"$f":"'Sundurliðun Innlán'!P58","v":0},".M.SFUINOI.XX.THA.XXX.XXXX.SX.XXX.CHF.IS.N.M"]
[{"$f":"\"INN.\"&EIGNIR!$B$3&C11088","v":{"$error":"#N/A"}},{"$f":"'Sundurliðun Innlán'!P59","v":0},".M.SFUINOI.XX.OFL.XXX.XXXX.SX.XXX.CHF.IS.N.M"]
[{"$f":"\"INN.\"&EIGNIR!$B$3&C11089","v":{"$error":"#N/A"}},{"$f":"'Sundurliðun Innlán'!Q47","v":0},".M.SFUINOI.XX.LAB.XXX.XXXX.SX.XXX.ADR.IS.N.M","//Óbundin innlán í ADR"]
[{"$f":"\"INN.\"&EIGNIR!$B$3&C11090","v":{"$error":"#N/A"}},{"$f":"'Sundurliðun Innlán'!Q48","v":0},".M.SFUINOI.XX.SJA.XXX.XXXX.SX.XXX.ADR.IS.N.M"]
[{"$f":"\"INN.\"&EIGNIR!$B$3&C11091","v":{"$error":"#N/A"}},{"$f":"'Sundurliðun Innlán'!Q49","v":0},".M.SFUINOI.XX.ILA.XXX.XXXX.SX.XXX.ADR.IS.N.M"]
[{"$f":"\"INN.\"&EIGNIR!$B$3&C11092","v":{"$error":"#N/A"}},{"$f":"'Sundurliðun Innlán'!Q50","v":0},".M.SFUINOI.XX.ISJ.XXX.XXXX.SX.XXX.ADR.IS.N.M"]
[{"$f":"\"INN.\"&EIGNIR!$B$3&C11093","v":{"$error":"#N/A"}},{"$f":"'Sundurliðun Innlán'!Q51","v":0},".M.SFUINOI.XX.IAN.XXX.XXXX.SX.XXX.ADR.IS.N.M"]
[{"$f":"\"INN.\"&EIGNIR!$B$3&C11094","v":{"$error":"#N/A"}},{"$f":"'Sundurliðun Innlán'!Q52","v":0},".M.SFUINOI.XX.RAF.XXX.XXXX.SX.XXX.ADR.IS.N.M"]
[{"$f":"\"INN.\"&EIGNIR!$B$3&C11095","v":{"$error":"#N/A"}},{"$f":"'Sundurliðun Innlán'!Q53","v":0},".M.SFUINOI.XX.MAN.XXX.XXXX.SX.XXX.ADR.IS.N.M"]
[{"$f":"\"INN.\"&EIGNIR!$B$3&C11096","v":{"$error":"#N/A"}},{"$f":"'Sundurliðun Innlán'!Q54","v":0},".M.SFUINOI.XX.VEN.XXX.XXXX.SX.XXX.ADR.IS.N.M"]
[{"$f":"\"INN.\"&EIGNIR!$B$3&C11097","v":{"$error":"#N/A"}},{"$f":"'Sundurliðun Innlán'!Q55","v":0},".M.SFUINOI.XX.SAG.XXX.XXXX.SX.XXX.ADR.IS.N.M"]
[{"$f":"\"INN.\"&EIGNIR!$B$3&C11098","v":{"$error":"#N/A"}},{"$f":"'Sundurliðun Innlán'!Q56","v":0},".M.SFUINOI.XX.THF.XXX.XXXX.SX.XXX.ADR.IS.N.M"]
[{"$f":"\"INN.\"&EIGNIR!$B$3&C11099","v":{"$error":"#N/A"}},{"$f":"'Sundurliðun Innlán'!Q57","v":0},".M.SFUINOI.XX.THH.XXX.XXXX.SX.XXX.ADR.IS.N.M"]
[{"$f":"\"INN.\"&EIGNIR!$B$3&C11100","v":{"$error":"#N/A"}},{"$f":"'Sundurliðun Innlán'!Q58","v":0},".M.SFUINOI.XX.THA.XXX.XXXX.SX.XXX.ADR.IS.N.M"]
[{"$f":"\"INN.\"&EIGNIR!$B$3&C11101","v":{"$error":"#N/A"}},{"$f":"'Sundurliðun Innlán'!Q59","v":0},".M.SFUINOI.XX.OFL.XXX.XXXX.SX.XXX.ADR.IS.N.M"]
[{"$f":"\"INN.\"&EIGNIR!$B$3&C11102","v":{"$error":"#N/A"}},{"$f":"'Sundurliðun Innlán'!H86","v":0},".M.SFUINVI.XX.LAB.XXX.XXXX.SV.XXX.ISK.IS.N.M","//Verðtryggð innlán í ISK"]
[{"$f":"\"INN.\"&EIGNIR!$B$3&C11103","v":{"$error":"#N/A"}},{"$f":"'Sundurliðun Innlán'!H87","v":0},".M.SFUINVI.XX.SJA.XXX.XXXX.SV.XXX.ISK.IS.N.M"]
[{"$f":"\"INN.\"&EIGNIR!$B$3&C11104","v":{"$error":"#N/A"}},{"$f":"'Sundurliðun Innlán'!H88","v":0},".M.SFUINVI.XX.ILA.XXX.XXXX.SV.XXX.ISK.IS.N.M"]
[{"$f":"\"INN.\"&EIGNIR!$B$3&C11105","v":{"$error":"#N/A"}},{"$f":"'Sundurliðun Innlán'!H89","v":0},".M.SFUINVI.XX.ISJ.XXX.XXXX.SV.XXX.ISK.IS.N.M"]
[{"$f":"\"INN.\"&EIGNIR!$B$3&C11106","v":{"$error":"#N/A"}},{"$f":"'Sundurliðun Innlán'!H90","v":0},".M.SFUINVI.XX.IAN.XXX.XXXX.SV.XXX.ISK.IS.N.M"]
[{"$f":"\"INN.\"&EIGNIR!$B$3&C11107","v":{"$error":"#N/A"}},{"$f":"'Sundurliðun Innlán'!H91","v":0},".M.SFUINVI.XX.RAF.XXX.XXXX.SV.XXX.ISK.IS.N.M"]
[{"$f":"\"INN.\"&EIGNIR!$B$3&C11108","v":{"$error":"#N/A"}},{"$f":"'Sundurliðun Innlán'!H92","v":0},".M.SFUINVI.XX.MAN.XXX.XXXX.SV.XXX.ISK.IS.N.M"]
[{"$f":"\"INN.\"&EIGNIR!$B$3&C11109","v":{"$error":"#N/A"}},{"$f":"'Sundurliðun Innlán'!H93","v":0},".M.SFUINVI.XX.VEN.XXX.XXXX.SV.XXX.ISK.IS.N.M"]
[{"$f":"\"INN.\"&EIGNIR!$B$3&C11110","v":{"$error":"#N/A"}},{"$f":"'Sundurliðun Innlán'!H94","v":0},".M.SFUINVI.XX.SAG.XXX.XXXX.SV.XXX.ISK.IS.N.M"]
[{"$f":"\"INN.\"&EIGNIR!$B$3&C11111","v":{"$error":"#N/A"}},{"$f":"'Sundurliðun Innlán'!H95","v":0},".M.SFUINVI.XX.THF.XXX.XXXX.SV.XXX.ISK.IS.N.M"]
[{"$f":"\"INN.\"&EIGNIR!$B$3&C11112","v":{"$error":"#N/A"}},{"$f":"'Sundurliðun Innlán'!H96","v":0},".M.SFUINVI.XX.THH.XXX.XXXX.SV.XXX.ISK.IS.N.M"]
[{"$f":"\"INN.\"&EIGNIR!$B$3&C11113","v":{"$error":"#N/A"}},{"$f":"'Sundurliðun Innlán'!H97","v":0},".M.SFUINVI.XX.THA.XXX.XXXX.SV.XXX.ISK.IS.N.M"]
[{"$f":"\"INN.\"&EIGNIR!$B$3&C11114","v":{"$error":"#N/A"}},{"$f":"'Sundurliðun Innlán'!H98","v":0},".M.SFUINVI.XX.OFL.XXX.XXXX.SV.XXX.ISK.IS.N.M"]
[{"$f":"\"INN.\"&EIGNIR!$B$3&C11115","v":{"$error":"#N/A"}},{"$f":"'Sundurliðun Innlán'!H131","v":0},".M.SFUINBI.XX.LAB.XXX.XXXX.SX.XXX.ISK.IS.N.M","//Innlán. Önnur bundin innlán í ISK"]
[{"$f":"\"INN.\"&EIGNIR!$B$3&C11116","v":{"$error":"#N/A"}},{"$f":"'Sundurliðun Innlán'!H132","v":0},".M.SFUINBI.XX.SJA.XXX.XXXX.SX.XXX.ISK.IS.N.M"]
[{"$f":"\"INN.\"&EIGNIR!$B$3&C11117","v":{"$error":"#N/A"}},{"$f":"'Sundurliðun Innlán'!H133","v":0},".M.SFUINBI.XX.ILA.XXX.XXXX.SX.XXX.ISK.IS.N.M"]
[{"$f":"\"INN.\"&EIGNIR!$B$3&C11118","v":{"$error":"#N/A"}},{"$f":"'Sundurliðun Innlán'!H134","v":0},".M.SFUINBI.XX.ISJ.XXX.XXXX.SX.XXX.ISK.IS.N.M"]
[{"$f":"\"INN.\"&EIGNIR!$B$3&C11119","v":{"$error":"#N/A"}},{"$f":"'Sundurliðun Innlán'!H135","v":0},".M.SFUINBI.XX.IAN.XXX.XXXX.SX.XXX.ISK.IS.N.M"]
[{"$f":"\"INN.\"&EIGNIR!$B$3&C11120","v":{"$error":"#N/A"}},{"$f":"'Sundurliðun Innlán'!H136","v":0},".M.SFUINBI.XX.RAF.XXX.XXXX.SX.XXX.ISK.IS.N.M"]
[{"$f":"\"INN.\"&EIGNIR!$B$3&C11121","v":{"$error":"#N/A"}},{"$f":"'Sundurliðun Innlán'!H137","v":0},".M.SFUINBI.XX.MAN.XXX.XXXX.SX.XXX.ISK.IS.N.M"]
[{"$f":"\"INN.\"&EIGNIR!$B$3&C11122","v":{"$error":"#N/A"}},{"$f":"'Sundurliðun Innlán'!H138","v":0},".M.SFUINBI.XX.VEN.XXX.XXXX.SX.XXX.ISK.IS.N.M"]
[{"$f":"\"INN.\"&EIGNIR!$B$3&C11123","v":{"$error":"#N/A"}},{"$f":"'Sundurliðun Innlán'!H139","v":0},".M.SFUINBI.XX.SAG.XXX.XXXX.SX.XXX.ISK.IS.N.M"]
[{"$f":"\"INN.\"&EIGNIR!$B$3&C11124","v":{"$error":"#N/A"}},{"$f":"'Sundurliðun Innlán'!H140","v":0},".M.SFUINBI.XX.THF.XXX.XXXX.SX.XXX.ISK.IS.N.M"]
[{"$f":"\"INN.\"&EIGNIR!$B$3&C11125","v":{"$error":"#N/A"}},{"$f":"'Sundurliðun Innlán'!H141","v":0},".M.SFUINBI.XX.THH.XXX.XXXX.SX.XXX.ISK.IS.N.M"]
[{"$f":"\"INN.\"&EIGNIR!$B$3&C11126","v":{"$error":"#N/A"}},{"$f":"'Sundurliðun Innlán'!H142","v":0},".M.SFUINBI.XX.THA.XXX.XXXX.SX.XXX.ISK.IS.N.M"]
[{"$f":"\"INN.\"&EIGNIR!$B$3&C11127","v":{"$error":"#N/A"}},{"$f":"'Sundurliðun Innlán'!H143","v":0},".M.SFUINBI.XX.OFL.XXX.XXXX.SX.XXX.ISK.IS.N.M"]
[{"$f":"\"INN.\"&EIGNIR!$B$3&C11128","v":{"$error":"#N/A"}},{"$f":"'Sundurliðun Innlán'!I131","v":0},".M.SFUINBI.XX.LAB.XXX.XXXX.SX.XXX.EUR.IS.N.M","//Önnur bundin innlán í EUR"]
[{"$f":"\"INN.\"&EIGNIR!$B$3&C11129","v":{"$error":"#N/A"}},{"$f":"'Sundurliðun Innlán'!I132","v":0},".M.SFUINBI.XX.SJA.XXX.XXXX.SX.XXX.EUR.IS.N.M"]
[{"$f":"\"INN.\"&EIGNIR!$B$3&C11130","v":{"$error":"#N/A"}},{"$f":"'Sundurliðun Innlán'!I133","v":0},".M.SFUINBI.XX.ILA.XXX.XXXX.SX.XXX.EUR.IS.N.M"]
[{"$f":"\"INN.\"&EIGNIR!$B$3&C11131","v":{"$error":"#N/A"}},{"$f":"'Sundurliðun Innlán'!I134","v":0},".M.SFUINBI.XX.ISJ.XXX.XXXX.SX.XXX.EUR.IS.N.M"]
[{"$f":"\"INN.\"&EIGNIR!$B$3&C11132","v":{"$error":"#N/A"}},{"$f":"'Sundurliðun Innlán'!I135","v":0},".M.SFUINBI.XX.IAN.XXX.XXXX.SX.XXX.EUR.IS.N.M"]
[{"$f":"\"INN.\"&EIGNIR!$B$3&C11133","v":{"$error":"#N/A"}},{"$f":"'Sundurliðun Innlán'!I136","v":0},".M.SFUINBI.XX.RAF.XXX.XXXX.SX.XXX.EUR.IS.N.M"]
[{"$f":"\"INN.\"&EIGNIR!$B$3&C11134","v":{"$error":"#N/A"}},{"$f":"'Sundurliðun Innlán'!I137","v":0},".M.SFUINBI.XX.MAN.XXX.XXXX.SX.XXX.EUR.IS.N.M"]
[{"$f":"\"INN.\"&EIGNIR!$B$3&C11135","v":{"$error":"#N/A"}},{"$f":"'Sundurliðun Innlán'!I138","v":0},".M.SFUINBI.XX.VEN.XXX.XXXX.SX.XXX.EUR.IS.N.M"]
[{"$f":"\"INN.\"&EIGNIR!$B$3&C11136","v":{"$error":"#N/A"}},{"$f":"'Sundurliðun Innlán'!I139","v":0},".M.SFUINBI.XX.SAG.XXX.XXXX.SX.XXX.EUR.IS.N.M"]
[{"$f":"\"INN.\"&EIGNIR!$B$3&C11137","v":{"$error":"#N/A"}},{"$f":"'Sundurliðun Innlán'!I140","v":0},".M.SFUINBI.XX.THF.XXX.XXXX.SX.XXX.EUR.IS.N.M"]
[{"$f":"\"INN.\"&EIGNIR!$B$3&C11138","v":{"$error":"#N/A"}},{"$f":"'Sundurliðun Innlán'!I141","v":0},".M.SFUINBI.XX.THH.XXX.XXXX.SX.XXX.EUR.IS.N.M"]
[{"$f":"\"INN.\"&EIGNIR!$B$3&C11139","v":{"$error":"#N/A"}},{"$f":"'Sundurliðun Innlán'!I142","v":0},".M.SFUINBI.XX.THA.XXX.XXXX.SX.XXX.EUR.IS.N.M"]
[{"$f":"\"INN.\"&EIGNIR!$B$3&C11140","v":{"$error":"#N/A"}},{"$f":"'Sundurliðun Innlán'!I143","v":0},".M.SFUINBI.XX.OFL.XXX.XXXX.SX.XXX.EUR.IS.N.M"]
[{"$f":"\"INN.\"&EIGNIR!$B$3&C11141","v":{"$error":"#N/A"}},{"$f":"'Sundurliðun Innlán'!J131","v":0},".M.SFUINBI.XX.LAB.XXX.XXXX.SX.XXX.USD.IS.N.M","//Önnur bundin innlán í USD"]
[{"$f":"\"INN.\"&EIGNIR!$B$3&C11142","v":{"$error":"#N/A"}},{"$f":"'Sundurliðun Innlán'!J132","v":0},".M.SFUINBI.XX.SJA.XXX.XXXX.SX.XXX.USD.IS.N.M"]
[{"$f":"\"INN.\"&EIGNIR!$B$3&C11143","v":{"$error":"#N/A"}},{"$f":"'Sundurliðun Innlán'!J133","v":0},".M.SFUINBI.XX.ILA.XXX.XXXX.SX.XXX.USD.IS.N.M"]
[{"$f":"\"INN.\"&EIGNIR!$B$3&C11144","v":{"$error":"#N/A"}},{"$f":"'Sundurliðun Innlán'!J134","v":0},".M.SFUINBI.XX.ISJ.XXX.XXXX.SX.XXX.USD.IS.N.M"]
[{"$f":"\"INN.\"&EIGNIR!$B$3&C11145","v":{"$error":"#N/A"}},{"$f":"'Sundurliðun Innlán'!J135","v":0},".M.SFUINBI.XX.IAN.XXX.XXXX.SX.XXX.USD.IS.N.M"]
[{"$f":"\"INN.\"&EIGNIR!$B$3&C11146","v":{"$error":"#N/A"}},{"$f":"'Sundurliðun Innlán'!J136","v":0},".M.SFUINBI.XX.RAF.XXX.XXXX.SX.XXX.USD.IS.N.M"]
[{"$f":"\"INN.\"&EIGNIR!$B$3&C11147","v":{"$error":"#N/A"}},{"$f":"'Sundurliðun Innlán'!J137","v":0},".M.SFUINBI.XX.MAN.XXX.XXXX.SX.XXX.USD.IS.N.M"]
[{"$f":"\"INN.\"&EIGNIR!$B$3&C11148","v":{"$error":"#N/A"}},{"$f":"'Sundurliðun Innlán'!J138","v":0},".M.SFUINBI.XX.VEN.XXX.XXXX.SX.XXX.USD.IS.N.M"]
[{"$f":"\"INN.\"&EIGNIR!$B$3&C11149","v":{"$error":"#N/A"}},{"$f":"'Sundurliðun Innlán'!J139","v":0},".M.SFUINBI.XX.SAG.XXX.XXXX.SX.XXX.USD.IS.N.M"]
[{"$f":"\"INN.\"&EIGNIR!$B$3&C11150","v":{"$error":"#N/A"}},{"$f":"'Sundurliðun Innlán'!J140","v":0},".M.SFUINBI.XX.THF.XXX.XXXX.SX.XXX.USD.IS.N.M"]
[{"$f":"\"INN.\"&EIGNIR!$B$3&C11151","v":{"$error":"#N/A"}},{"$f":"'Sundurliðun Innlán'!J141","v":0},".M.SFUINBI.XX.THH.XXX.XXXX.SX.XXX.USD.IS.N.M"]
[{"$f":"\"INN.\"&EIGNIR!$B$3&C11152","v":{"$error":"#N/A"}},{"$f":"'Sundurliðun Innlán'!J142","v":0},".M.SFUINBI.XX.THA.XXX.XXXX.SX.XXX.USD.IS.N.M"]
[{"$f":"\"INN.\"&EIGNIR!$B$3&C11153","v":{"$error":"#N/A"}},{"$f":"'Sundurliðun Innlán'!J143","v":0},".M.SFUINBI.XX.OFL.XXX.XXXX.SX.XXX.USD.IS.N.M"]
[{"$f":"\"INN.\"&EIGNIR!$B$3&C11154","v":{"$error":"#N/A"}},{"$f":"'Sundurliðun Innlán'!K131","v":0},".M.SFUINBI.XX.LAB.XXX.XXXX.SX.XXX.GBP.IS.N.M","//Önnur bundin innlán í GBP"]
[{"$f":"\"INN.\"&EIGNIR!$B$3&C11155","v":{"$error":"#N/A"}},{"$f":"'Sundurliðun Innlán'!K132","v":0},".M.SFUINBI.XX.SJA.XXX.XXXX.SX.XXX.GBP.IS.N.M"]
[{"$f":"\"INN.\"&EIGNIR!$B$3&C11156","v":{"$error":"#N/A"}},{"$f":"'Sundurliðun Innlán'!K133","v":0},".M.SFUINBI.XX.ILA.XXX.XXXX.SX.XXX.GBP.IS.N.M"]
[{"$f":"\"INN.\"&EIGNIR!$B$3&C11157","v":{"$error":"#N/A"}},{"$f":"'Sundurliðun Innlán'!K134","v":0},".M.SFUINBI.XX.ISJ.XXX.XXXX.SX.XXX.GBP.IS.N.M"]
[{"$f":"\"INN.\"&EIGNIR!$B$3&C11158","v":{"$error":"#N/A"}},{"$f":"'Sundurliðun Innlán'!K135","v":0},".M.SFUINBI.XX.IAN.XXX.XXXX.SX.XXX.GBP.IS.N.M"]
[{"$f":"\"INN.\"&EIGNIR!$B$3&C11159","v":{"$error":"#N/A"}},{"$f":"'Sundurliðun Innlán'!K136","v":0},".M.SFUINBI.XX.RAF.XXX.XXXX.SX.XXX.GBP.IS.N.M"]
[{"$f":"\"INN.\"&EIGNIR!$B$3&C11160","v":{"$error":"#N/A"}},{"$f":"'Sundurliðun Innlán'!K137","v":0},".M.SFUINBI.XX.MAN.XXX.XXXX.SX.XXX.GBP.IS.N.M"]
[{"$f":"\"INN.\"&EIGNIR!$B$3&C11161","v":{"$error":"#N/A"}},{"$f":"'Sundurliðun Innlán'!K138","v":0},".M.SFUINBI.XX.VEN.XXX.XXXX.SX.XXX.GBP.IS.N.M"]
[{"$f":"\"INN.\"&EIGNIR!$B$3&C11162","v":{"$error":"#N/A"}},{"$f":"'Sundurliðun Innlán'!K139","v":0},".M.SFUINBI.XX.SAG.XXX.XXXX.SX.XXX.GBP.IS.N.M"]
[{"$f":"\"INN.\"&EIGNIR!$B$3&C11163","v":{"$error":"#N/A"}},{"$f":"'Sundurliðun Innlán'!K140","v":0},".M.SFUINBI.XX.THF.XXX.XXXX.SX.XXX.GBP.IS.N.M"]
[{"$f":"\"INN.\"&EIGNIR!$B$3&C11164","v":{"$error":"#N/A"}},{"$f":"'Sundurliðun Innlán'!K141","v":0},".M.SFUINBI.XX.THH.XXX.XXXX.SX.XXX.GBP.IS.N.M"]
[{"$f":"\"INN.\"&EIGNIR!$B$3&C11165","v":{"$error":"#N/A"}},{"$f":"'Sundurliðun Innlán'!K142","v":0},".M.SFUINBI.XX.THA.XXX.XXXX.SX.XXX.GBP.IS.N.M"]
[{"$f":"\"INN.\"&EIGNIR!$B$3&C11166","v":{"$error":"#N/A"}},{"$f":"'Sundurliðun Innlán'!K143","v":0},".M.SFUINBI.XX.OFL.XXX.XXXX.SX.XXX.GBP.IS.N.M"]
[{"$f":"\"INN.\"&EIGNIR!$B$3&C11167","v":{"$error":"#N/A"}},{"$f":"'Sundurliðun Innlán'!L131","v":0},".M.SFUINBI.XX.LAB.XXX.XXXX.SX.XXX.JPY.IS.N.M","//Önnur bundin innlán í JPY"]
[{"$f":"\"INN.\"&EIGNIR!$B$3&C11168","v":{"$error":"#N/A"}},{"$f":"'Sundurliðun Innlán'!L132","v":0},".M.SFUINBI.XX.SJA.XXX.XXXX.SX.XXX.JPY.IS.N.M"]
[{"$f":"\"INN.\"&EIGNIR!$B$3&C11169","v":{"$error":"#N/A"}},{"$f":"'Sundurliðun Innlán'!L133","v":0},".M.SFUINBI.XX.ILA.XXX.XXXX.SX.XXX.JPY.IS.N.M"]
[{"$f":"\"INN.\"&EIGNIR!$B$3&C11170","v":{"$error":"#N/A"}},{"$f":"'Sundurliðun Innlán'!L134","v":0},".M.SFUINBI.XX.ISJ.XXX.XXXX.SX.XXX.JPY.IS.N.M"]
[{"$f":"\"INN.\"&EIGNIR!$B$3&C11171","v":{"$error":"#N/A"}},{"$f":"'Sundurliðun Innlán'!L135","v":0},".M.SFUINBI.XX.IAN.XXX.XXXX.SX.XXX.JPY.IS.N.M"]
[{"$f":"\"INN.\"&EIGNIR!$B$3&C11172","v":{"$error":"#N/A"}},{"$f":"'Sundurliðun Innlán'!L136","v":0},".M.SFUINBI.XX.RAF.XXX.XXXX.SX.XXX.JPY.IS.N.M"]
[{"$f":"\"INN.\"&EIGNIR!$B$3&C11173","v":{"$error":"#N/A"}},{"$f":"'Sundurliðun Innlán'!L137","v":0},".M.SFUINBI.XX.MAN.XXX.XXXX.SX.XXX.JPY.IS.N.M"]
[{"$f":"\"INN.\"&EIGNIR!$B$3&C11174","v":{"$error":"#N/A"}},{"$f":"'Sundurliðun Innlán'!L138","v":0},".M.SFUINBI.XX.VEN.XXX.XXXX.SX.XXX.JPY.IS.N.M"]
[{"$f":"\"INN.\"&EIGNIR!$B$3&C11175","v":{"$error":"#N/A"}},{"$f":"'Sundurliðun Innlán'!L139","v":0},".M.SFUINBI.XX.SAG.XXX.XXXX.SX.XXX.JPY.IS.N.M"]
[{"$f":"\"INN.\"&EIGNIR!$B$3&C11176","v":{"$error":"#N/A"}},{"$f":"'Sundurliðun Innlán'!L140","v":0},".M.SFUINBI.XX.THF.XXX.XXXX.SX.XXX.JPY.IS.N.M"]
[{"$f":"\"INN.\"&EIGNIR!$B$3&C11177","v":{"$error":"#N/A"}},{"$f":"'Sundurliðun Innlán'!L141","v":0},".M.SFUINBI.XX.THH.XXX.XXXX.SX.XXX.JPY.IS.N.M"]
[{"$f":"\"INN.\"&EIGNIR!$B$3&C11178","v":{"$error":"#N/A"}},{"$f":"'Sundurliðun Innlán'!L142","v":0},".M.SFUINBI.XX.THA.XXX.XXXX.SX.XXX.JPY.IS.N.M"]
[{"$f":"\"INN.\"&EIGNIR!$B$3&C11179","v":{"$error":"#N/A"}},{"$f":"'Sundurliðun Innlán'!L143","v":0},".M.SFUINBI.XX.OFL.XXX.XXXX.SX.XXX.JPY.IS.N.M"]
[{"$f":"\"INN.\"&EIGNIR!$B$3&C11180","v":{"$error":"#N/A"}},{"$f":"'Sundurliðun Innlán'!M131","v":0},".M.SFUINBI.XX.LAB.XXX.XXXX.SX.XXX.DKK.IS.N.M","//Önnur bundin innlán í DKK"]
[{"$f":"\"INN.\"&EIGNIR!$B$3&C11181","v":{"$error":"#N/A"}},{"$f":"'Sundurliðun Innlán'!M132","v":0},".M.SFUINBI.XX.SJA.XXX.XXXX.SX.XXX.DKK.IS.N.M"]
[{"$f":"\"INN.\"&EIGNIR!$B$3&C11182","v":{"$error":"#N/A"}},{"$f":"'Sundurliðun Innlán'!M133","v":0},".M.SFUINBI.XX.ILA.XXX.XXXX.SX.XXX.DKK.IS.N.M"]
[{"$f":"\"INN.\"&EIGNIR!$B$3&C11183","v":{"$error":"#N/A"}},{"$f":"'Sundurliðun Innlán'!M134","v":0},".M.SFUINBI.XX.ISJ.XXX.XXXX.SX.XXX.DKK.IS.N.M"]
[{"$f":"\"INN.\"&EIGNIR!$B$3&C11184","v":{"$error":"#N/A"}},{"$f":"'Sundurliðun Innlán'!M135","v":0},".M.SFUINBI.XX.IAN.XXX.XXXX.SX.XXX.DKK.IS.N.M"]
[{"$f":"\"INN.\"&EIGNIR!$B$3&C11185","v":{"$error":"#N/A"}},{"$f":"'Sundurliðun Innlán'!M136","v":0},".M.SFUINBI.XX.RAF.XXX.XXXX.SX.XXX.DKK.IS.N.M"]
[{"$f":"\"INN.\"&EIGNIR!$B$3&C11186","v":{"$error":"#N/A"}},{"$f":"'Sundurliðun Innlán'!M137","v":0},".M.SFUINBI.XX.MAN.XXX.XXXX.SX.XXX.DKK.IS.N.M"]
[{"$f":"\"INN.\"&EIGNIR!$B$3&C11187","v":{"$error":"#N/A"}},{"$f":"'Sundurliðun Innlán'!M138","v":0},".M.SFUINBI.XX.VEN.XXX.XXXX.SX.XXX.DKK.IS.N.M"]
[{"$f":"\"INN.\"&EIGNIR!$B$3&C11188","v":{"$error":"#N/A"}},{"$f":"'Sundurliðun Innlán'!M139","v":0},".M.SFUINBI.XX.SAG.XXX.XXXX.SX.XXX.DKK.IS.N.M"]
[{"$f":"\"INN.\"&EIGNIR!$B$3&C11189","v":{"$error":"#N/A"}},{"$f":"'Sundurliðun Innlán'!M140","v":0},".M.SFUINBI.XX.THF.XXX.XXXX.SX.XXX.DKK.IS.N.M"]
[{"$f":"\"INN.\"&EIGNIR!$B$3&C11190","v":{"$error":"#N/A"}},{"$f":"'Sundurliðun Innlán'!M141","v":0},".M.SFUINBI.XX.THH.XXX.XXXX.SX.XXX.DKK.IS.N.M"]
[{"$f":"\"INN.\"&EIGNIR!$B$3&C11191","v":{"$error":"#N/A"}},{"$f":"'Sundurliðun Innlán'!M142","v":0},".M.SFUINBI.XX.THA.XXX.XXXX.SX.XXX.DKK.IS.N.M"]
[{"$f":"\"INN.\"&EIGNIR!$B$3&C11192","v":{"$error":"#N/A"}},{"$f":"'Sundurliðun Innlán'!M143","v":0},".M.SFUINBI.XX.OFL.XXX.XXXX.SX.XXX.DKK.IS.N.M"]
[{"$f":"\"INN.\"&EIGNIR!$B$3&C11193","v":{"$error":"#N/A"}},{"$f":"'Sundurliðun Innlán'!N131","v":0},".M.SFUINBI.XX.LAB.XXX.XXXX.SX.XXX.NOK.IS.N.M","//Önnur bundin innlán í NOK"]
[{"$f":"\"INN.\"&EIGNIR!$B$3&C11194","v":{"$error":"#N/A"}},{"$f":"'Sundurliðun Innlán'!N132","v":0},".M.SFUINBI.XX.SJA.XXX.XXXX.SX.XXX.NOK.IS.N.M"]
[{"$f":"\"INN.\"&EIGNIR!$B$3&C11195","v":{"$error":"#N/A"}},{"$f":"'Sundurliðun Innlán'!N133","v":0},".M.SFUINBI.XX.ILA.XXX.XXXX.SX.XXX.NOK.IS.N.M"]
[{"$f":"\"INN.\"&EIGNIR!$B$3&C11196","v":{"$error":"#N/A"}},{"$f":"'Sundurliðun Innlán'!N134","v":0},".M.SFUINBI.XX.ISJ.XXX.XXXX.SX.XXX.NOK.IS.N.M"]
[{"$f":"\"INN.\"&EIGNIR!$B$3&C11197","v":{"$error":"#N/A"}},{"$f":"'Sundurliðun Innlán'!N135","v":0},".M.SFUINBI.XX.IAN.XXX.XXXX.SX.XXX.NOK.IS.N.M"]
[{"$f":"\"INN.\"&EIGNIR!$B$3&C11198","v":{"$error":"#N/A"}},{"$f":"'Sundurliðun Innlán'!N136","v":0},".M.SFUINBI.XX.RAF.XXX.XXXX.SX.XXX.NOK.IS.N.M"]
[{"$f":"\"INN.\"&EIGNIR!$B$3&C11199","v":{"$error":"#N/A"}},{"$f":"'Sundurliðun Innlán'!N137","v":0},".M.SFUINBI.XX.MAN.XXX.XXXX.SX.XXX.NOK.IS.N.M"]
[{"$f":"\"INN.\"&EIGNIR!$B$3&C11200","v":{"$error":"#N/A"}},{"$f":"'Sundurliðun Innlán'!N138","v":0},".M.SFUINBI.XX.VEN.XXX.XXXX.SX.XXX.NOK.IS.N.M"]
[{"$f":"\"INN.\"&EIGNIR!$B$3&C11201","v":{"$error":"#N/A"}},{"$f":"'Sundurliðun Innlán'!N139","v":0},".M.SFUINBI.XX.SAG.XXX.XXXX.SX.XXX.NOK.IS.N.M"]
[{"$f":"\"INN.\"&EIGNIR!$B$3&C11202","v":{"$error":"#N/A"}},{"$f":"'Sundurliðun Innlán'!N140","v":0},".M.SFUINBI.XX.THF.XXX.XXXX.SX.XXX.NOK.IS.N.M"]
[{"$f":"\"INN.\"&EIGNIR!$B$3&C11203","v":{"$error":"#N/A"}},{"$f":"'Sundurliðun Innlán'!N141","v":0},".M.SFUINBI.XX.THH.XXX.XXXX.SX.XXX.NOK.IS.N.M"]
[{"$f":"\"INN.\"&EIGNIR!$B$3&C11204","v":{"$error":"#N/A"}},{"$f":"'Sundurliðun Innlán'!N142","v":0},".M.SFUINBI.XX.THA.XXX.XXXX.SX.XXX.NOK.IS.N.M"]
[{"$f":"\"INN.\"&EIGNIR!$B$3&C11205","v":{"$error":"#N/A"}},{"$f":"'Sundurliðun Innlán'!N143","v":0},".M.SFUINBI.XX.OFL.XXX.XXXX.SX.XXX.NOK.IS.N.M"]
[{"$f":"\"INN.\"&EIGNIR!$B$3&C11206","v":{"$error":"#N/A"}},{"$f":"'Sundurliðun Innlán'!O131","v":0},".M.SFUINBI.XX.LAB.XXX.XXXX.SX.XXX.SEK.IS.N.M","//Önnur bundin innlán í SEK"]
[{"$f":"\"INN.\"&EIGNIR!$B$3&C11207","v":{"$error":"#N/A"}},{"$f":"'Sundurliðun Innlán'!O132","v":0},".M.SFUINBI.XX.SJA.XXX.XXXX.SX.XXX.SEK.IS.N.M"]
[{"$f":"\"INN.\"&EIGNIR!$B$3&C11208","v":{"$error":"#N/A"}},{"$f":"'Sundurliðun Innlán'!O133","v":0},".M.SFUINBI.XX.ILA.XXX.XXXX.SX.XXX.SEK.IS.N.M"]
[{"$f":"\"INN.\"&EIGNIR!$B$3&C11209","v":{"$error":"#N/A"}},{"$f":"'Sundurliðun Innlán'!O134","v":0},".M.SFUINBI.XX.ISJ.XXX.XXXX.SX.XXX.SEK.IS.N.M"]
[{"$f":"\"INN.\"&EIGNIR!$B$3&C11210","v":{"$error":"#N/A"}},{"$f":"'Sundurliðun Innlán'!O135","v":0},".M.SFUINBI.XX.IAN.XXX.XXXX.SX.XXX.SEK.IS.N.M"]
[{"$f":"\"INN.\"&EIGNIR!$B$3&C11211","v":{"$error":"#N/A"}},{"$f":"'Sundurliðun Innlán'!O136","v":0},".M.SFUINBI.XX.RAF.XXX.XXXX.SX.XXX.SEK.IS.N.M"]
[{"$f":"\"INN.\"&EIGNIR!$B$3&C11212","v":{"$error":"#N/A"}},{"$f":"'Sundurliðun Innlán'!O137","v":0},".M.SFUINBI.XX.MAN.XXX.XXXX.SX.XXX.SEK.IS.N.M"]
[{"$f":"\"INN.\"&EIGNIR!$B$3&C11213","v":{"$error":"#N/A"}},{"$f":"'Sundurliðun Innlán'!O138","v":0},".M.SFUINBI.XX.VEN.XXX.XXXX.SX.XXX.SEK.IS.N.M"]
[{"$f":"\"INN.\"&EIGNIR!$B$3&C11214","v":{"$error":"#N/A"}},{"$f":"'Sundurliðun Innlán'!O139","v":0},".M.SFUINBI.XX.SAG.XXX.XXXX.SX.XXX.SEK.IS.N.M"]
[{"$f":"\"INN.\"&EIGNIR!$B$3&C11215","v":{"$error":"#N/A"}},{"$f":"'Sundurliðun Innlán'!O140","v":0},".M.SFUINBI.XX.THF.XXX.XXXX.SX.XXX.SEK.IS.N.M"]
[{"$f":"\"INN.\"&EIGNIR!$B$3&C11216","v":{"$error":"#N/A"}},{"$f":"'Sundurliðun Innlán'!O141","v":0},".M.SFUINBI.XX.THH.XXX.XXXX.SX.XXX.SEK.IS.N.M"]
[{"$f":"\"INN.\"&EIGNIR!$B$3&C11217","v":{"$error":"#N/A"}},{"$f":"'Sundurliðun Innlán'!O142","v":0},".M.SFUINBI.XX.THA.XXX.XXXX.SX.XXX.SEK.IS.N.M"]
[{"$f":"\"INN.\"&EIGNIR!$B$3&C11218","v":{"$error":"#N/A"}},{"$f":"'Sundurliðun Innlán'!O143","v":0},".M.SFUINBI.XX.OFL.XXX.XXXX.SX.XXX.SEK.IS.N.M"]
[{"$f":"\"INN.\"&EIGNIR!$B$3&C11219","v":{"$error":"#N/A"}},{"$f":"'Sundurliðun Innlán'!P131","v":0},".M.SFUINBI.XX.LAB.XXX.XXXX.SX.XXX.CHF.IS.N.M","//Önnur bundin innlán í CHF"]
[{"$f":"\"INN.\"&EIGNIR!$B$3&C11220","v":{"$error":"#N/A"}},{"$f":"'Sundurliðun Innlán'!P132","v":0},".M.SFUINBI.XX.SJA.XXX.XXXX.SX.XXX.CHF.IS.N.M"]
[{"$f":"\"INN.\"&EIGNIR!$B$3&C11221","v":{"$error":"#N/A"}},{"$f":"'Sundurliðun Innlán'!P133","v":0},".M.SFUINBI.XX.ILA.XXX.XXXX.SX.XXX.CHF.IS.N.M"]
[{"$f":"\"INN.\"&EIGNIR!$B$3&C11222","v":{"$error":"#N/A"}},{"$f":"'Sundurliðun Innlán'!P134","v":0},".M.SFUINBI.XX.ISJ.XXX.XXXX.SX.XXX.CHF.IS.N.M"]
[{"$f":"\"INN.\"&EIGNIR!$B$3&C11223","v":{"$error":"#N/A"}},{"$f":"'Sundurliðun Innlán'!P135","v":0},".M.SFUINBI.XX.IAN.XXX.XXXX.SX.XXX.CHF.IS.N.M"]
[{"$f":"\"INN.\"&EIGNIR!$B$3&C11224","v":{"$error":"#N/A"}},{"$f":"'Sundurliðun Innlán'!P136","v":0},".M.SFUINBI.XX.RAF.XXX.XXXX.SX.XXX.CHF.IS.N.M"]
[{"$f":"\"INN.\"&EIGNIR!$B$3&C11225","v":{"$error":"#N/A"}},{"$f":"'Sundurliðun Innlán'!P137","v":0},".M.SFUINBI.XX.MAN.XXX.XXXX.SX.XXX.CHF.IS.N.M"]
[{"$f":"\"INN.\"&EIGNIR!$B$3&C11226","v":{"$error":"#N/A"}},{"$f":"'Sundurliðun Innlán'!P138","v":0},".M.SFUINBI.XX.VEN.XXX.XXXX.SX.XXX.CHF.IS.N.M"]
[{"$f":"\"INN.\"&EIGNIR!$B$3&C11227","v":{"$error":"#N/A"}},{"$f":"'Sundurliðun Innlán'!P139","v":0},".M.SFUINBI.XX.SAG.XXX.XXXX.SX.XXX.CHF.IS.N.M"]
[{"$f":"\"INN.\"&EIGNIR!$B$3&C11228","v":{"$error":"#N/A"}},{"$f":"'Sundurliðun Innlán'!P140","v":0},".M.SFUINBI.XX.THF.XXX.XXXX.SX.XXX.CHF.IS.N.M"]
[{"$f":"\"INN.\"&EIGNIR!$B$3&C11229","v":{"$error":"#N/A"}},{"$f":"'Sundurliðun Innlán'!P141","v":0},".M.SFUINBI.XX.THH.XXX.XXXX.SX.XXX.CHF.IS.N.M"]
[{"$f":"\"INN.\"&EIGNIR!$B$3&C11230","v":{"$error":"#N/A"}},{"$f":"'Sundurliðun Innlán'!P142","v":0},".M.SFUINBI.XX.THA.XXX.XXXX.SX.XXX.CHF.IS.N.M"]
[{"$f":"\"INN.\"&EIGNIR!$B$3&C11231","v":{"$error":"#N/A"}},{"$f":"'Sundurliðun Innlán'!P143","v":0},".M.SFUINBI.XX.OFL.XXX.XXXX.SX.XXX.CHF.IS.N.M"]
[{"$f":"\"INN.\"&EIGNIR!$B$3&C11232","v":{"$error":"#N/A"}},{"$f":"'Sundurliðun Innlán'!Q131","v":0},".M.SFUINBI.XX.LAB.XXX.XXXX.SX.XXX.ADR.IS.N.M","//Önnur bundin innlán í ADR"]
[{"$f":"\"INN.\"&EIGNIR!$B$3&C11233","v":{"$error":"#N/A"}},{"$f":"'Sundurliðun Innlán'!Q132","v":0},".M.SFUINBI.XX.SJA.XXX.XXXX.SX.XXX.ADR.IS.N.M"]
[{"$f":"\"INN.\"&EIGNIR!$B$3&C11234","v":{"$error":"#N/A"}},{"$f":"'Sundurliðun Innlán'!Q133","v":0},".M.SFUINBI.XX.ILA.XXX.XXXX.SX.XXX.ADR.IS.N.M"]
[{"$f":"\"INN.\"&EIGNIR!$B$3&C11235","v":{"$error":"#N/A"}},{"$f":"'Sundurliðun Innlán'!Q134","v":0},".M.SFUINBI.XX.ISJ.XXX.XXXX.SX.XXX.ADR.IS.N.M"]
[{"$f":"\"INN.\"&EIGNIR!$B$3&C11236","v":{"$error":"#N/A"}},{"$f":"'Sundurliðun Innlán'!Q135","v":0},".M.SFUINBI.XX.IAN.XXX.XXXX.SX.XXX.ADR.IS.N.M"]
[{"$f":"\"INN.\"&EIGNIR!$B$3&C11237","v":{"$error":"#N/A"}},{"$f":"'Sundurliðun Innlán'!Q136","v":0},".M.SFUINBI.XX.RAF.XXX.XXXX.SX.XXX.ADR.IS.N.M"]
[{"$f":"\"INN.\"&EIGNIR!$B$3&C11238","v":{"$error":"#N/A"}},{"$f":"'Sundurliðun Innlán'!Q137","v":0},".M.SFUINBI.XX.MAN.XXX.XXXX.SX.XXX.ADR.IS.N.M"]
[{"$f":"\"INN.\"&EIGNIR!$B$3&C11239","v":{"$error":"#N/A"}},{"$f":"'Sundurliðun Innlán'!Q138","v":0},".M.SFUINBI.XX.VEN.XXX.XXXX.SX.XXX.ADR.IS.N.M"]
[{"$f":"\"INN.\"&EIGNIR!$B$3&C11240","v":{"$error":"#N/A"}},{"$f":"'Sundurliðun Innlán'!Q139","v":0},".M.SFUINBI.XX.SAG.XXX.XXXX.SX.XXX.ADR.IS.N.M"]
[{"$f":"\"INN.\"&EIGNIR!$B$3&C11241","v":{"$error":"#N/A"}},{"$f":"'Sundurliðun Innlán'!Q140","v":0},".M.SFUINBI.XX.THF.XXX.XXXX.SX.XXX.ADR.IS.N.M"]
[{"$f":"\"INN.\"&EIGNIR!$B$3&C11242","v":{"$error":"#N/A"}},{"$f":"'Sundurliðun Innlán'!Q141","v":0},".M.SFUINBI.XX.THH.XXX.XXXX.SX.XXX.ADR.IS.N.M"]
[{"$f":"\"INN.\"&EIGNIR!$B$3&C11243","v":{"$error":"#N/A"}},{"$f":"'Sundurliðun Innlán'!Q142","v":0},".M.SFUINBI.XX.THA.XXX.XXXX.SX.XXX.ADR.IS.N.M"]
[{"$f":"\"INN.\"&EIGNIR!$B$3&C11244","v":{"$error":"#N/A"}},{"$f":"'Sundurliðun Innlán'!Q143","v":0},".M.SFUINBI.XX.OFL.XXX.XXXX.SX.XXX.ADR.IS.N.M"]
[{"$f":"\"INN.\"&EIGNIR!$B$3&C11245","v":{"$error":"#N/A"}},{"$f":"+'Eigið fe'!G26","v":0},".M.SEF$$$$.SX.XXX.XXX.XXXX.SX.XXX.XXX.IS.N.M","//Sundurliðun Eigið fé - skráð"]
[{"$f":"\"INN.\"&EIGNIR!$B$3&C11246","v":{"$error":"#N/A"}},{"$f":"+'Eigið fe'!H26","v":0},".M.SEF$$$$.OS.XXX.XXX.XXXX.SX.XXX.XXX.IS.N.M","//Sundurliðun Eigið fé - óskráð"]
[{"$f":"\"INN.\"&EIGNIR!$B$3&C11247","v":{"$error":"#N/A"}},{"$f":"+'Eigið fe'!I26","v":0},".M.SEF$$$$.XX.XXX.OPI.XXXX.SX.XXX.XXX.IS.N.M","//Sundurliðun Eigið fé - opinbert ft."]
[{"$f":"\"INN.\"&EIGNIR!$B$3&C11248","v":{"$error":"#N/A"}},{"$f":"+'Eigið fe'!J26","v":0},".M.SEF$$$$.XX.XXX.EIF.XXXX.SX.XXX.XXX.IS.N.M","//Sundurliðun Eigið fé - einka ft."]
[{"$f":"\"INN.\"&EIGNIR!$B$3&C11249","v":{"$error":"#N/A"}},{"$f":"+'Eigið fe'!K5","v":0},".M.SEFUH$$.XX.XXX.XXX.XXXX.SX.XXX.ISK.IS.N.M","//Sundurliðun Eigið fé - ISK"]
[{"$f":"\"INN.\"&EIGNIR!$B$3&C11250","v":{"$error":"#N/A"}},{"$f":"+'Eigið fe'!K6","v":0},".M.SEFUHIB.XX.XXX.XXX.XXXX.SX.XXX.ISK.IS.N.M"]
[{"$f":"\"INN.\"&EIGNIR!$B$3&C11251","v":{"$error":"#N/A"}},{"$f":"+'Eigið fe'!K7","v":0},".M.SEFUHOI.XX.XXX.XXX.XXXX.SX.XXX.ISK.IS.N.M"]
[{"$f":"\"INN.\"&EIGNIR!$B$3&C11252","v":{"$error":"#N/A"}},{"$f":"+'Eigið fe'!K8","v":0},".M.SEFYVHF.XX.XXX.XXX.XXXX.SX.XXX.ISK.IS.N.M"]
[{"$f":"\"INN.\"&EIGNIR!$B$3&C11253","v":{"$error":"#N/A"}},{"$f":"+'Eigið fe'!K9","v":0},".M.SEFAEF$.XX.XXX.XXX.XXXX.SX.XXX.ISK.IS.N.M"]
[{"$f":"\"INN.\"&EIGNIR!$B$3&C11254","v":{"$error":"#N/A"}},{"$f":"+'Eigið fe'!K10","v":0},".M.SEFAEFG.XX.XXX.XXX.XXXX.SX.XXX.ISK.IS.N.M"]
[{"$f":"\"INN.\"&EIGNIR!$B$3&C11255","v":{"$error":"#N/A"}},{"$f":"+'Eigið fe'!K11","v":0},".M.SEFAEFK.XX.XXX.XXX.XXXX.SX.XXX.ISK.IS.N.M"]
[{"$f":"\"INN.\"&EIGNIR!$B$3&C11256","v":{"$error":"#N/A"}},{"$f":"+'Eigið fe'!K12","v":0},".M.SEFAEFA.XX.XXX.XXX.XXXX.SX.XXX.ISK.IS.N.M"]
[{"$f":"\"INN.\"&EIGNIR!$B$3&C11257","v":{"$error":"#N/A"}},{"$f":"+'Eigið fe'!K13","v":0},".M.SEFEMB$.XX.XXX.XXX.XXXX.SX.XXX.ISK.IS.N.M"]
[{"$f":"\"INN.\"&EIGNIR!$B$3&C11258","v":{"$error":"#N/A"}},{"$f":"+'Eigið fe'!K14","v":0},".M.SEFEMBV.XX.XXX.XXX.XXXX.SX.XXX.ISK.IS.N.M"]
[{"$f":"\"INN.\"&EIGNIR!$B$3&C11259","v":{"$error":"#N/A"}},{"$f":"+'Eigið fe'!K15","v":0},".M.SEFEMBO.XX.XXX.XXX.XXXX.SX.XXX.ISK.IS.N.M"]
[{"$f":"\"INN.\"&EIGNIR!$B$3&C11260","v":{"$error":"#N/A"}},{"$f":"+'Eigið fe'!K16","v":0},".M.SEFEMBG.XX.XXX.XXX.XXXX.SX.XXX.ISK.IS.N.M"]
[{"$f":"\"INN.\"&EIGNIR!$B$3&C11261","v":{"$error":"#N/A"}},{"$f":"+'Eigið fe'!K17","v":0},".M.SEFEMBT.XX.XXX.XXX.XXXX.SX.XXX.ISK.IS.N.M"]
[{"$f":"\"INN.\"&EIGNIR!$B$3&C11262","v":{"$error":"#N/A"}},{"$f":"+'Eigið fe'!K18","v":0},".M.SEFEMBS.XX.XXX.XXX.XXXX.SX.XXX.ISK.IS.N.M"]
[{"$f":"\"INN.\"&EIGNIR!$B$3&C11263","v":{"$error":"#N/A"}},{"$f":"+'Eigið fe'!K19","v":0},".M.SEFEMBE.XX.XXX.XXX.XXXX.SX.XXX.ISK.IS.N.M"]
[{"$f":"\"INN.\"&EIGNIR!$B$3&C11264","v":{"$error":"#N/A"}},{"$f":"+'Eigið fe'!K20","v":0},".M.SEFEMBF.XX.XXX.XXX.XXXX.SX.XXX.ISK.IS.N.M"]
[{"$f":"\"INN.\"&EIGNIR!$B$3&C11265","v":{"$error":"#N/A"}},{"$f":"+'Eigið fe'!K21","v":0},".M.SEFEMBA.XX.XXX.XXX.XXXX.SX.XXX.ISK.IS.N.M"]
[{"$f":"\"INN.\"&EIGNIR!$B$3&C11266","v":{"$error":"#N/A"}},{"$f":"+'Eigið fe'!K22","v":0},".M.SEFEOEF.XX.XXX.XXX.XXXX.SX.XXX.ISK.IS.N.M"]
[{"$f":"\"INN.\"&EIGNIR!$B$3&C11267","v":{"$error":"#N/A"}},{"$f":"+'Eigið fe'!K23","v":0},".M.SEFEHB$.XX.XXX.XXX.XXXX.SX.XXX.ISK.IS.N.M"]
[{"$f":"\"INN.\"&EIGNIR!$B$3&C11268","v":{"$error":"#N/A"}},{"$f":"+'Eigið fe'!K24","v":0},".M.SEFHTYA.XX.XXX.XXX.XXXX.SX.XXX.ISK.IS.N.M"]
[{"$f":"\"INN.\"&EIGNIR!$B$3&C11269","v":{"$error":"#N/A"}},{"$f":"+'Eigið fe'!K25","v":0},".M.SEFAIAR.XX.XXX.XXX.XXXX.SX.XXX.ISK.IS.N.M"]
[{"$f":"\"INN.\"&EIGNIR!$B$3&C11270","v":{"$error":"#N/A"}},{"$f":"+'Eigið fe'!K26","v":0},".M.SEF$$$$.XX.XXX.XXX.XXXX.SX.XXX.ISK.IS.N.M"]
[{"$f":"\"INN.\"&EIGNIR!$B$3&C11271","v":{"$error":"#N/A"}},{"$f":"+'Eigið fe'!L5","v":0},".M.SEFUH$$.XX.XXX.XXX.XXXX.SX.XXX.EUR.IS.N.M","//Sundurliðun Eigið fé - EUR"]
[{"$f":"\"INN.\"&EIGNIR!$B$3&C11272","v":{"$error":"#N/A"}},{"$f":"+'Eigið fe'!L6","v":0},".M.SEFUHIB.XX.XXX.XXX.XXXX.SX.XXX.EUR.IS.N.M"]
[{"$f":"\"INN.\"&EIGNIR!$B$3&C11273","v":{"$error":"#N/A"}},{"$f":"+'Eigið fe'!L7","v":0},".M.SEFUHOI.XX.XXX.XXX.XXXX.SX.XXX.EUR.IS.N.M"]
[{"$f":"\"INN.\"&EIGNIR!$B$3&C11274","v":{"$error":"#N/A"}},{"$f":"+'Eigið fe'!L8","v":0},".M.SEFYVHF.XX.XXX.XXX.XXXX.SX.XXX.EUR.IS.N.M"]
[{"$f":"\"INN.\"&EIGNIR!$B$3&C11275","v":{"$error":"#N/A"}},{"$f":"+'Eigið fe'!L9","v":0},".M.SEFAEF$.XX.XXX.XXX.XXXX.SX.XXX.EUR.IS.N.M"]
[{"$f":"\"INN.\"&EIGNIR!$B$3&C11276","v":{"$error":"#N/A"}},{"$f":"+'Eigið fe'!L10","v":0},".M.SEFAEFG.XX.XXX.XXX.XXXX.SX.XXX.EUR.IS.N.M"]
[{"$f":"\"INN.\"&EIGNIR!$B$3&C11277","v":{"$error":"#N/A"}},{"$f":"+'Eigið fe'!L11","v":0},".M.SEFAEFK.XX.XXX.XXX.XXXX.SX.XXX.EUR.IS.N.M"]
[{"$f":"\"INN.\"&EIGNIR!$B$3&C11278","v":{"$error":"#N/A"}},{"$f":"+'Eigið fe'!L12","v":0},".M.SEFAEFA.XX.XXX.XXX.XXXX.SX.XXX.EUR.IS.N.M"]
[{"$f":"\"INN.\"&EIGNIR!$B$3&C11279","v":{"$error":"#N/A"}},{"$f":"+'Eigið fe'!L13","v":0},".M.SEFEMB$.XX.XXX.XXX.XXXX.SX.XXX.EUR.IS.N.M"]
[{"$f":"\"INN.\"&EIGNIR!$B$3&C11280","v":{"$error":"#N/A"}},{"$f":"+'Eigið fe'!L14","v":0},".M.SEFEMBV.XX.XXX.XXX.XXXX.SX.XXX.EUR.IS.N.M"]
[{"$f":"\"INN.\"&EIGNIR!$B$3&C11281","v":{"$error":"#N/A"}},{"$f":"+'Eigið fe'!L15","v":0},".M.SEFEMBO.XX.XXX.XXX.XXXX.SX.XXX.EUR.IS.N.M"]
[{"$f":"\"INN.\"&EIGNIR!$B$3&C11282","v":{"$error":"#N/A"}},{"$f":"+'Eigið fe'!L16","v":0},".M.SEFEMBG.XX.XXX.XXX.XXXX.SX.XXX.EUR.IS.N.M"]
[{"$f":"\"INN.\"&EIGNIR!$B$3&C11283","v":{"$error":"#N/A"}},{"$f":"+'Eigið fe'!L17","v":0},".M.SEFEMBT.XX.XXX.XXX.XXXX.SX.XXX.EUR.IS.N.M"]
[{"$f":"\"INN.\"&EIGNIR!$B$3&C11284","v":{"$error":"#N/A"}},{"$f":"+'Eigið fe'!L18","v":0},".M.SEFEMBS.XX.XXX.XXX.XXXX.SX.XXX.EUR.IS.N.M"]
[{"$f":"\"INN.\"&EIGNIR!$B$3&C11285","v":{"$error":"#N/A"}},{"$f":"+'Eigið fe'!L19","v":0},".M.SEFEMBE.XX.XXX.XXX.XXXX.SX.XXX.EUR.IS.N.M"]
[{"$f":"\"INN.\"&EIGNIR!$B$3&C11286","v":{"$error":"#N/A"}},{"$f":"+'Eigið fe'!L20","v":0},".M.SEFEMBF.XX.XXX.XXX.XXXX.SX.XXX.EUR.IS.N.M"]
[{"$f":"\"INN.\"&EIGNIR!$B$3&C11287","v":{"$error":"#N/A"}},{"$f":"+'Eigið fe'!L21","v":0},".M.SEFEMBA.XX.XXX.XXX.XXXX.SX.XXX.EUR.IS.N.M"]
[{"$f":"\"INN.\"&EIGNIR!$B$3&C11288","v":{"$error":"#N/A"}},{"$f":"+'Eigið fe'!L22","v":0},".M.SEFEOEF.XX.XXX.XXX.XXXX.SX.XXX.EUR.IS.N.M"]
[{"$f":"\"INN.\"&EIGNIR!$B$3&C11289","v":{"$error":"#N/A"}},{"$f":"+'Eigið fe'!L23","v":0},".M.SEFEHB$.XX.XXX.XXX.XXXX.SX.XXX.EUR.IS.N.M"]
[{"$f":"\"INN.\"&EIGNIR!$B$3&C11290","v":{"$error":"#N/A"}},{"$f":"+'Eigið fe'!L24","v":0},".M.SEFHTYA.XX.XXX.XXX.XXXX.SX.XXX.EUR.IS.N.M"]
[{"$f":"\"INN.\"&EIGNIR!$B$3&C11291","v":{"$error":"#N/A"}},{"$f":"+'Eigið fe'!L25","v":0},".M.SEFAIAR.XX.XXX.XXX.XXXX.SX.XXX.EUR.IS.N.M"]
[{"$f":"\"INN.\"&EIGNIR!$B$3&C11292","v":{"$error":"#N/A"}},{"$f":"+'Eigið fe'!L26","v":0},".M.SEF$$$$.XX.XXX.XXX.XXXX.SX.XXX.EUR.IS.N.M"]
[{"$f":"\"INN.\"&EIGNIR!$B$3&C11293","v":{"$error":"#N/A"}},{"$f":"+'Eigið fe'!M5","v":0},".M.SEFUH$$.XX.XXX.XXX.XXXX.SX.XXX.USD.IS.N.M","//Sundurliðun Eigið fé - USD"]
[{"$f":"\"INN.\"&EIGNIR!$B$3&C11294","v":{"$error":"#N/A"}},{"$f":"+'Eigið fe'!M6","v":0},".M.SEFUHIB.XX.XXX.XXX.XXXX.SX.XXX.USD.IS.N.M"]
[{"$f":"\"INN.\"&EIGNIR!$B$3&C11295","v":{"$error":"#N/A"}},{"$f":"+'Eigið fe'!M7","v":0},".M.SEFUHOI.XX.XXX.XXX.XXXX.SX.XXX.USD.IS.N.M"]
[{"$f":"\"INN.\"&EIGNIR!$B$3&C11296","v":{"$error":"#N/A"}},{"$f":"+'Eigið fe'!M8","v":0},".M.SEFYVHF.XX.XXX.XXX.XXXX.SX.XXX.USD.IS.N.M"]
[{"$f":"\"INN.\"&EIGNIR!$B$3&C11297","v":{"$error":"#N/A"}},{"$f":"+'Eigið fe'!M9","v":0},".M.SEFAEF$.XX.XXX.XXX.XXXX.SX.XXX.USD.IS.N.M"]
[{"$f":"\"INN.\"&EIGNIR!$B$3&C11298","v":{"$error":"#N/A"}},{"$f":"+'Eigið fe'!M10","v":0},".M.SEFAEFG.XX.XXX.XXX.XXXX.SX.XXX.USD.IS.N.M"]
[{"$f":"\"INN.\"&EIGNIR!$B$3&C11299","v":{"$error":"#N/A"}},{"$f":"+'Eigið fe'!M11","v":0},".M.SEFAEFK.XX.XXX.XXX.XXXX.SX.XXX.USD.IS.N.M"]
[{"$f":"\"INN.\"&EIGNIR!$B$3&C11300","v":{"$error":"#N/A"}},{"$f":"+'Eigið fe'!M12","v":0},".M.SEFAEFA.XX.XXX.XXX.XXXX.SX.XXX.USD.IS.N.M"]
[{"$f":"\"INN.\"&EIGNIR!$B$3&C11301","v":{"$error":"#N/A"}},{"$f":"+'Eigið fe'!M13","v":0},".M.SEFEMB$.XX.XXX.XXX.XXXX.SX.XXX.USD.IS.N.M"]
[{"$f":"\"INN.\"&EIGNIR!$B$3&C11302","v":{"$error":"#N/A"}},{"$f":"+'Eigið fe'!M14","v":0},".M.SEFEMBV.XX.XXX.XXX.XXXX.SX.XXX.USD.IS.N.M"]
[{"$f":"\"INN.\"&EIGNIR!$B$3&C11303","v":{"$error":"#N/A"}},{"$f":"+'Eigið fe'!M15","v":0},".M.SEFEMBO.XX.XXX.XXX.XXXX.SX.XXX.USD.IS.N.M"]
[{"$f":"\"INN.\"&EIGNIR!$B$3&C11304","v":{"$error":"#N/A"}},{"$f":"+'Eigið fe'!M16","v":0},".M.SEFEMBG.XX.XXX.XXX.XXXX.SX.XXX.USD.IS.N.M"]
[{"$f":"\"INN.\"&EIGNIR!$B$3&C11305","v":{"$error":"#N/A"}},{"$f":"+'Eigið fe'!M17","v":0},".M.SEFEMBT.XX.XXX.XXX.XXXX.SX.XXX.USD.IS.N.M"]
[{"$f":"\"INN.\"&EIGNIR!$B$3&C11306","v":{"$error":"#N/A"}},{"$f":"+'Eigið fe'!M18","v":0},".M.SEFEMBS.XX.XXX.XXX.XXXX.SX.XXX.USD.IS.N.M"]
[{"$f":"\"INN.\"&EIGNIR!$B$3&C11307","v":{"$error":"#N/A"}},{"$f":"+'Eigið fe'!M19","v":0},".M.SEFEMBE.XX.XXX.XXX.XXXX.SX.XXX.USD.IS.N.M"]
[{"$f":"\"INN.\"&EIGNIR!$B$3&C11308","v":{"$error":"#N/A"}},{"$f":"+'Eigið fe'!M20","v":0},".M.SEFEMBF.XX.XXX.XXX.XXXX.SX.XXX.USD.IS.N.M"]
[{"$f":"\"INN.\"&EIGNIR!$B$3&C11309","v":{"$error":"#N/A"}},{"$f":"+'Eigið fe'!M21","v":0},".M.SEFEMBA.XX.XXX.XXX.XXXX.SX.XXX.USD.IS.N.M"]
[{"$f":"\"INN.\"&EIGNIR!$B$3&C11310","v":{"$error":"#N/A"}},{"$f":"+'Eigið fe'!M22","v":0},".M.SEFEOEF.XX.XXX.XXX.XXXX.SX.XXX.USD.IS.N.M"]
[{"$f":"\"INN.\"&EIGNIR!$B$3&C11311","v":{"$error":"#N/A"}},{"$f":"+'Eigið fe'!M23","v":0},".M.SEFEHB$.XX.XXX.XXX.XXXX.SX.XXX.USD.IS.N.M"]
[{"$f":"\"INN.\"&EIGNIR!$B$3&C11312","v":{"$error":"#N/A"}},{"$f":"+'Eigið fe'!M24","v":0},".M.SEFHTYA.XX.XXX.XXX.XXXX.SX.XXX.USD.IS.N.M"]
[{"$f":"\"INN.\"&EIGNIR!$B$3&C11313","v":{"$error":"#N/A"}},{"$f":"+'Eigið fe'!M25","v":0},".M.SEFAIAR.XX.XXX.XXX.XXXX.SX.XXX.USD.IS.N.M"]
[{"$f":"\"INN.\"&EIGNIR!$B$3&C11314","v":{"$error":"#N/A"}},{"$f":"+'Eigið fe'!M26","v":0},".M.SEF$$$$.XX.XXX.XXX.XXXX.SX.XXX.USD.IS.N.M"]
[{"$f":"\"INN.\"&EIGNIR!$B$3&C11315","v":{"$error":"#N/A"}},{"$f":"+'Eigið fe'!N5","v":0},".M.SEFUH$$.XX.XXX.XXX.XXXX.SX.XXX.GBP.IS.N.M","//Sundurliðun Eigið fé - GBP"]
[{"$f":"\"INN.\"&EIGNIR!$B$3&C11316","v":{"$error":"#N/A"}},{"$f":"+'Eigið fe'!N6","v":0},".M.SEFUHIB.XX.XXX.XXX.XXXX.SX.XXX.GBP.IS.N.M"]
[{"$f":"\"INN.\"&EIGNIR!$B$3&C11317","v":{"$error":"#N/A"}},{"$f":"+'Eigið fe'!N7","v":0},".M.SEFUHOI.XX.XXX.XXX.XXXX.SX.XXX.GBP.IS.N.M"]
[{"$f":"\"INN.\"&EIGNIR!$B$3&C11318","v":{"$error":"#N/A"}},{"$f":"+'Eigið fe'!N8","v":0},".M.SEFYVHF.XX.XXX.XXX.XXXX.SX.XXX.GBP.IS.N.M"]
[{"$f":"\"INN.\"&EIGNIR!$B$3&C11319","v":{"$error":"#N/A"}},{"$f":"+'Eigið fe'!N9","v":0},".M.SEFAEF$.XX.XXX.XXX.XXXX.SX.XXX.GBP.IS.N.M"]
[{"$f":"\"INN.\"&EIGNIR!$B$3&C11320","v":{"$error":"#N/A"}},{"$f":"+'Eigið fe'!N10","v":0},".M.SEFAEFG.XX.XXX.XXX.XXXX.SX.XXX.GBP.IS.N.M"]
[{"$f":"\"INN.\"&EIGNIR!$B$3&C11321","v":{"$error":"#N/A"}},{"$f":"+'Eigið fe'!N11","v":0},".M.SEFAEFK.XX.XXX.XXX.XXXX.SX.XXX.GBP.IS.N.M"]
[{"$f":"\"INN.\"&EIGNIR!$B$3&C11322","v":{"$error":"#N/A"}},{"$f":"+'Eigið fe'!N12","v":0},".M.SEFAEFA.XX.XXX.XXX.XXXX.SX.XXX.GBP.IS.N.M"]
[{"$f":"\"INN.\"&EIGNIR!$B$3&C11323","v":{"$error":"#N/A"}},{"$f":"+'Eigið fe'!N13","v":0},".M.SEFEMB$.XX.XXX.XXX.XXXX.SX.XXX.GBP.IS.N.M"]
[{"$f":"\"INN.\"&EIGNIR!$B$3&C11324","v":{"$error":"#N/A"}},{"$f":"+'Eigið fe'!N14","v":0},".M.SEFEMBV.XX.XXX.XXX.XXXX.SX.XXX.GBP.IS.N.M"]
[{"$f":"\"INN.\"&EIGNIR!$B$3&C11325","v":{"$error":"#N/A"}},{"$f":"+'Eigið fe'!N15","v":0},".M.SEFEMBO.XX.XXX.XXX.XXXX.SX.XXX.GBP.IS.N.M"]
[{"$f":"\"INN.\"&EIGNIR!$B$3&C11326","v":{"$error":"#N/A"}},{"$f":"+'Eigið fe'!N16","v":0},".M.SEFEMBG.XX.XXX.XXX.XXXX.SX.XXX.GBP.IS.N.M"]
[{"$f":"\"INN.\"&EIGNIR!$B$3&C11327","v":{"$error":"#N/A"}},{"$f":"+'Eigið fe'!N17","v":0},".M.SEFEMBT.XX.XXX.XXX.XXXX.SX.XXX.GBP.IS.N.M"]
[{"$f":"\"INN.\"&EIGNIR!$B$3&C11328","v":{"$error":"#N/A"}},{"$f":"+'Eigið fe'!N18","v":0},".M.SEFEMBS.XX.XXX.XXX.XXXX.SX.XXX.GBP.IS.N.M"]
[{"$f":"\"INN.\"&EIGNIR!$B$3&C11329","v":{"$error":"#N/A"}},{"$f":"+'Eigið fe'!N19","v":0},".M.SEFEMBE.XX.XXX.XXX.XXXX.SX.XXX.GBP.IS.N.M"]
[{"$f":"\"INN.\"&EIGNIR!$B$3&C11330","v":{"$error":"#N/A"}},{"$f":"+'Eigið fe'!N20","v":0},".M.SEFEMBF.XX.XXX.XXX.XXXX.SX.XXX.GBP.IS.N.M"]
[{"$f":"\"INN.\"&EIGNIR!$B$3&C11331","v":{"$error":"#N/A"}},{"$f":"+'Eigið fe'!N21","v":0},".M.SEFEMBA.XX.XXX.XXX.XXXX.SX.XXX.GBP.IS.N.M"]
[{"$f":"\"INN.\"&EIGNIR!$B$3&C11332","v":{"$error":"#N/A"}},{"$f":"+'Eigið fe'!N22","v":0},".M.SEFEOEF.XX.XXX.XXX.XXXX.SX.XXX.GBP.IS.N.M"]
[{"$f":"\"INN.\"&EIGNIR!$B$3&C11333","v":{"$error":"#N/A"}},{"$f":"+'Eigið fe'!N23","v":0},".M.SEFEHB$.XX.XXX.XXX.XXXX.SX.XXX.GBP.IS.N.M"]
[{"$f":"\"INN.\"&EIGNIR!$B$3&C11334","v":{"$error":"#N/A"}},{"$f":"+'Eigið fe'!N24","v":0},".M.SEFHTYA.XX.XXX.XXX.XXXX.SX.XXX.GBP.IS.N.M"]
[{"$f":"\"INN.\"&EIGNIR!$B$3&C11335","v":{"$error":"#N/A"}},{"$f":"+'Eigið fe'!N25","v":0},".M.SEFAIAR.XX.XXX.XXX.XXXX.SX.XXX.GBP.IS.N.M"]
[{"$f":"\"INN.\"&EIGNIR!$B$3&C11336","v":{"$error":"#N/A"}},{"$f":"+'Eigið fe'!N26","v":0},".M.SEF$$$$.XX.XXX.XXX.XXXX.SX.XXX.GBP.IS.N.M"]
[{"$f":"\"INN.\"&EIGNIR!$B$3&C11337","v":{"$error":"#N/A"}},{"$f":"+'Eigið fe'!O5","v":0},".M.SEFUH$$.XX.XXX.XXX.XXXX.SX.XXX.JPY.IS.N.M","//Sundurliðun Eigið fé - JPY"]
[{"$f":"\"INN.\"&EIGNIR!$B$3&C11338","v":{"$error":"#N/A"}},{"$f":"+'Eigið fe'!O6","v":0},".M.SEFUHIB.XX.XXX.XXX.XXXX.SX.XXX.JPY.IS.N.M"]
[{"$f":"\"INN.\"&EIGNIR!$B$3&C11339","v":{"$error":"#N/A"}},{"$f":"+'Eigið fe'!O7","v":0},".M.SEFUHOI.XX.XXX.XXX.XXXX.SX.XXX.JPY.IS.N.M"]
[{"$f":"\"INN.\"&EIGNIR!$B$3&C11340","v":{"$error":"#N/A"}},{"$f":"+'Eigið fe'!O8","v":0},".M.SEFYVHF.XX.XXX.XXX.XXXX.SX.XXX.JPY.IS.N.M"]
[{"$f":"\"INN.\"&EIGNIR!$B$3&C11341","v":{"$error":"#N/A"}},{"$f":"+'Eigið fe'!O9","v":0},".M.SEFAEF$.XX.XXX.XXX.XXXX.SX.XXX.JPY.IS.N.M"]
[{"$f":"\"INN.\"&EIGNIR!$B$3&C11342","v":{"$error":"#N/A"}},{"$f":"+'Eigið fe'!O10","v":0},".M.SEFAEFG.XX.XXX.XXX.XXXX.SX.XXX.JPY.IS.N.M"]
[{"$f":"\"INN.\"&EIGNIR!$B$3&C11343","v":{"$error":"#N/A"}},{"$f":"+'Eigið fe'!O11","v":0},".M.SEFAEFK.XX.XXX.XXX.XXXX.SX.XXX.JPY.IS.N.M"]
[{"$f":"\"INN.\"&EIGNIR!$B$3&C11344","v":{"$error":"#N/A"}},{"$f":"+'Eigið fe'!O12","v":0},".M.SEFAEFA.XX.XXX.XXX.XXXX.SX.XXX.JPY.IS.N.M"]
[{"$f":"\"INN.\"&EIGNIR!$B$3&C11345","v":{"$error":"#N/A"}},{"$f":"+'Eigið fe'!O13","v":0},".M.SEFEMB$.XX.XXX.XXX.XXXX.SX.XXX.JPY.IS.N.M"]
[{"$f":"\"INN.\"&EIGNIR!$B$3&C11346","v":{"$error":"#N/A"}},{"$f":"+'Eigið fe'!O14","v":0},".M.SEFEMBV.XX.XXX.XXX.XXXX.SX.XXX.JPY.IS.N.M"]
[{"$f":"\"INN.\"&EIGNIR!$B$3&C11347","v":{"$error":"#N/A"}},{"$f":"+'Eigið fe'!O15","v":0},".M.SEFEMBO.XX.XXX.XXX.XXXX.SX.XXX.JPY.IS.N.M"]
[{"$f":"\"INN.\"&EIGNIR!$B$3&C11348","v":{"$error":"#N/A"}},{"$f":"+'Eigið fe'!O16","v":0},".M.SEFEMBG.XX.XXX.XXX.XXXX.SX.XXX.JPY.IS.N.M"]
[{"$f":"\"INN.\"&EIGNIR!$B$3&C11349","v":{"$error":"#N/A"}},{"$f":"+'Eigið fe'!O17","v":0},".M.SEFEMBT.XX.XXX.XXX.XXXX.SX.XXX.JPY.IS.N.M"]
[{"$f":"\"INN.\"&EIGNIR!$B$3&C11350","v":{"$error":"#N/A"}},{"$f":"+'Eigið fe'!O18","v":0},".M.SEFEMBS.XX.XXX.XXX.XXXX.SX.XXX.JPY.IS.N.M"]
[{"$f":"\"INN.\"&EIGNIR!$B$3&C11351","v":{"$error":"#N/A"}},{"$f":"+'Eigið fe'!O19","v":0},".M.SEFEMBE.XX.XXX.XXX.XXXX.SX.XXX.JPY.IS.N.M"]
[{"$f":"\"INN.\"&EIGNIR!$B$3&C11352","v":{"$error":"#N/A"}},{"$f":"+'Eigið fe'!O20","v":0},".M.SEFEMBF.XX.XXX.XXX.XXXX.SX.XXX.JPY.IS.N.M"]
[{"$f":"\"INN.\"&EIGNIR!$B$3&C11353","v":{"$error":"#N/A"}},{"$f":"+'Eigið fe'!O21","v":0},".M.SEFEMBA.XX.XXX.XXX.XXXX.SX.XXX.JPY.IS.N.M"]
[{"$f":"\"INN.\"&EIGNIR!$B$3&C11354","v":{"$error":"#N/A"}},{"$f":"+'Eigið fe'!O22","v":0},".M.SEFEOEF.XX.XXX.XXX.XXXX.SX.XXX.JPY.IS.N.M"]
[{"$f":"\"INN.\"&EIGNIR!$B$3&C11355","v":{"$error":"#N/A"}},{"$f":"+'Eigið fe'!O23","v":0},".M.SEFEHB$.XX.XXX.XXX.XXXX.SX.XXX.JPY.IS.N.M"]
[{"$f":"\"INN.\"&EIGNIR!$B$3&C11356","v":{"$error":"#N/A"}},{"$f":"+'Eigið fe'!O24","v":0},".M.SEFHTYA.XX.XXX.XXX.XXXX.SX.XXX.JPY.IS.N.M"]
[{"$f":"\"INN.\"&EIGNIR!$B$3&C11357","v":{"$error":"#N/A"}},{"$f":"+'Eigið fe'!O25","v":0},".M.SEFAIAR.XX.XXX.XXX.XXXX.SX.XXX.JPY.IS.N.M"]
[{"$f":"\"INN.\"&EIGNIR!$B$3&C11358","v":{"$error":"#N/A"}},{"$f":"+'Eigið fe'!O26","v":0},".M.SEF$$$$.XX.XXX.XXX.XXXX.SX.XXX.JPY.IS.N.M"]
[{"$f":"\"INN.\"&EIGNIR!$B$3&C11359","v":{"$error":"#N/A"}},{"$f":"+'Eigið fe'!P5","v":0},".M.SEFUH$$.XX.XXX.XXX.XXXX.SX.XXX.DKK.IS.N.M","//Sundurliðun Eigið fé - DKK"]
[{"$f":"\"INN.\"&EIGNIR!$B$3&C11360","v":{"$error":"#N/A"}},{"$f":"+'Eigið fe'!P6","v":0},".M.SEFUHIB.XX.XXX.XXX.XXXX.SX.XXX.DKK.IS.N.M"]
[{"$f":"\"INN.\"&EIGNIR!$B$3&C11361","v":{"$error":"#N/A"}},{"$f":"+'Eigið fe'!P7","v":0},".M.SEFUHOI.XX.XXX.XXX.XXXX.SX.XXX.DKK.IS.N.M"]
[{"$f":"\"INN.\"&EIGNIR!$B$3&C11362","v":{"$error":"#N/A"}},{"$f":"+'Eigið fe'!P8","v":0},".M.SEFYVHF.XX.XXX.XXX.XXXX.SX.XXX.DKK.IS.N.M"]
[{"$f":"\"INN.\"&EIGNIR!$B$3&C11363","v":{"$error":"#N/A"}},{"$f":"+'Eigið fe'!P9","v":0},".M.SEFAEF$.XX.XXX.XXX.XXXX.SX.XXX.DKK.IS.N.M"]
[{"$f":"\"INN.\"&EIGNIR!$B$3&C11364","v":{"$error":"#N/A"}},{"$f":"+'Eigið fe'!P10","v":0},".M.SEFAEFG.XX.XXX.XXX.XXXX.SX.XXX.DKK.IS.N.M"]
[{"$f":"\"INN.\"&EIGNIR!$B$3&C11365","v":{"$error":"#N/A"}},{"$f":"+'Eigið fe'!P11","v":0},".M.SEFAEFK.XX.XXX.XXX.XXXX.SX.XXX.DKK.IS.N.M"]
[{"$f":"\"INN.\"&EIGNIR!$B$3&C11366","v":{"$error":"#N/A"}},{"$f":"+'Eigið fe'!P12","v":0},".M.SEFAEFA.XX.XXX.XXX.XXXX.SX.XXX.DKK.IS.N.M"]
[{"$f":"\"INN.\"&EIGNIR!$B$3&C11367","v":{"$error":"#N/A"}},{"$f":"+'Eigið fe'!P13","v":0},".M.SEFEMB$.XX.XXX.XXX.XXXX.SX.XXX.DKK.IS.N.M"]
[{"$f":"\"INN.\"&EIGNIR!$B$3&C11368","v":{"$error":"#N/A"}},{"$f":"+'Eigið fe'!P14","v":0},".M.SEFEMBV.XX.XXX.XXX.XXXX.SX.XXX.DKK.IS.N.M"]
[{"$f":"\"INN.\"&EIGNIR!$B$3&C11369","v":{"$error":"#N/A"}},{"$f":"+'Eigið fe'!P15","v":0},".M.SEFEMBO.XX.XXX.XXX.XXXX.SX.XXX.DKK.IS.N.M"]
[{"$f":"\"INN.\"&EIGNIR!$B$3&C11370","v":{"$error":"#N/A"}},{"$f":"+'Eigið fe'!P16","v":0},".M.SEFEMBG.XX.XXX.XXX.XXXX.SX.XXX.DKK.IS.N.M"]
[{"$f":"\"INN.\"&EIGNIR!$B$3&C11371","v":{"$error":"#N/A"}},{"$f":"+'Eigið fe'!P17","v":0},".M.SEFEMBT.XX.XXX.XXX.XXXX.SX.XXX.DKK.IS.N.M"]
[{"$f":"\"INN.\"&EIGNIR!$B$3&C11372","v":{"$error":"#N/A"}},{"$f":"+'Eigið fe'!P18","v":0},".M.SEFEMBS.XX.XXX.XXX.XXXX.SX.XXX.DKK.IS.N.M"]
[{"$f":"\"INN.\"&EIGNIR!$B$3&C11373","v":{"$error":"#N/A"}},{"$f":"+'Eigið fe'!P19","v":0},".M.SEFEMBE.XX.XXX.XXX.XXXX.SX.XXX.DKK.IS.N.M"]
[{"$f":"\"INN.\"&EIGNIR!$B$3&C11374","v":{"$error":"#N/A"}},{"$f":"+'Eigið fe'!P20","v":0},".M.SEFEMBF.XX.XXX.XXX.XXXX.SX.XXX.DKK.IS.N.M"]
[{"$f":"\"INN.\"&EIGNIR!$B$3&C11375","v":{"$error":"#N/A"}},{"$f":"+'Eigið fe'!P21","v":0},".M.SEFEMBA.XX.XXX.XXX.XXXX.SX.XXX.DKK.IS.N.M"]
[{"$f":"\"INN.\"&EIGNIR!$B$3&C11376","v":{"$error":"#N/A"}},{"$f":"+'Eigið fe'!P22","v":0},".M.SEFEOEF.XX.XXX.XXX.XXXX.SX.XXX.DKK.IS.N.M"]
[{"$f":"\"INN.\"&EIGNIR!$B$3&C11377","v":{"$error":"#N/A"}},{"$f":"+'Eigið fe'!P23","v":0},".M.SEFEHB$.XX.XXX.XXX.XXXX.SX.XXX.DKK.IS.N.M"]
[{"$f":"\"INN.\"&EIGNIR!$B$3&C11378","v":{"$error":"#N/A"}},{"$f":"+'Eigið fe'!P24","v":0},".M.SEFHTYA.XX.XXX.XXX.XXXX.SX.XXX.DKK.IS.N.M"]
[{"$f":"\"INN.\"&EIGNIR!$B$3&C11379","v":{"$error":"#N/A"}},{"$f":"+'Eigið fe'!P25","v":0},".M.SEFAIAR.XX.XXX.XXX.XXXX.SX.XXX.DKK.IS.N.M"]
[{"$f":"\"INN.\"&EIGNIR!$B$3&C11380","v":{"$error":"#N/A"}},{"$f":"+'Eigið fe'!P26","v":0},".M.SEF$$$$.XX.XXX.XXX.XXXX.SX.XXX.DKK.IS.N.M"]
[{"$f":"\"INN.\"&EIGNIR!$B$3&C11381","v":{"$error":"#N/A"}},{"$f":"+'Eigið fe'!Q5","v":0},".M.SEFUH$$.XX.XXX.XXX.XXXX.SX.XXX.NOK.IS.N.M","//Sundurliðun Eigið fé - NOK"]
[{"$f":"\"INN.\"&EIGNIR!$B$3&C11382","v":{"$error":"#N/A"}},{"$f":"+'Eigið fe'!Q6","v":0},".M.SEFUHIB.XX.XXX.XXX.XXXX.SX.XXX.NOK.IS.N.M"]
[{"$f":"\"INN.\"&EIGNIR!$B$3&C11383","v":{"$error":"#N/A"}},{"$f":"+'Eigið fe'!Q7","v":0},".M.SEFUHOI.XX.XXX.XXX.XXXX.SX.XXX.NOK.IS.N.M"]
[{"$f":"\"INN.\"&EIGNIR!$B$3&C11384","v":{"$error":"#N/A"}},{"$f":"+'Eigið fe'!Q8","v":0},".M.SEFYVHF.XX.XXX.XXX.XXXX.SX.XXX.NOK.IS.N.M"]
[{"$f":"\"INN.\"&EIGNIR!$B$3&C11385","v":{"$error":"#N/A"}},{"$f":"+'Eigið fe'!Q9","v":0},".M.SEFAEF$.XX.XXX.XXX.XXXX.SX.XXX.NOK.IS.N.M"]
[{"$f":"\"INN.\"&EIGNIR!$B$3&C11386","v":{"$error":"#N/A"}},{"$f":"+'Eigið fe'!Q10","v":0},".M.SEFAEFG.XX.XXX.XXX.XXXX.SX.XXX.NOK.IS.N.M"]
[{"$f":"\"INN.\"&EIGNIR!$B$3&C11387","v":{"$error":"#N/A"}},{"$f":"+'Eigið fe'!Q11","v":0},".M.SEFAEFK.XX.XXX.XXX.XXXX.SX.XXX.NOK.IS.N.M"]
[{"$f":"\"INN.\"&EIGNIR!$B$3&C11388","v":{"$error":"#N/A"}},{"$f":"+'Eigið fe'!Q12","v":0},".M.SEFAEFA.XX.XXX.XXX.XXXX.SX.XXX.NOK.IS.N.M"]
[{"$f":"\"INN.\"&EIGNIR!$B$3&C11389","v":{"$error":"#N/A"}},{"$f":"+'Eigið fe'!Q13","v":0},".M.SEFEMB$.XX.XXX.XXX.XXXX.SX.XXX.NOK.IS.N.M"]
[{"$f":"\"INN.\"&EIGNIR!$B$3&C11390","v":{"$error":"#N/A"}},{"$f":"+'Eigið fe'!Q14","v":0},".M.SEFEMBV.XX.XXX.XXX.XXXX.SX.XXX.NOK.IS.N.M"]
[{"$f":"\"INN.\"&EIGNIR!$B$3&C11391","v":{"$error":"#N/A"}},{"$f":"+'Eigið fe'!Q15","v":0},".M.SEFEMBO.XX.XXX.XXX.XXXX.SX.XXX.NOK.IS.N.M"]
[{"$f":"\"INN.\"&EIGNIR!$B$3&C11392","v":{"$error":"#N/A"}},{"$f":"+'Eigið fe'!Q16","v":0},".M.SEFEMBG.XX.XXX.XXX.XXXX.SX.XXX.NOK.IS.N.M"]
[{"$f":"\"INN.\"&EIGNIR!$B$3&C11393","v":{"$error":"#N/A"}},{"$f":"+'Eigið fe'!Q17","v":0},".M.SEFEMBT.XX.XXX.XXX.XXXX.SX.XXX.NOK.IS.N.M"]
[{"$f":"\"INN.\"&EIGNIR!$B$3&C11394","v":{"$error":"#N/A"}},{"$f":"+'Eigið fe'!Q18","v":0},".M.SEFEMBS.XX.XXX.XXX.XXXX.SX.XXX.NOK.IS.N.M"]
[{"$f":"\"INN.\"&EIGNIR!$B$3&C11395","v":{"$error":"#N/A"}},{"$f":"+'Eigið fe'!Q19","v":0},".M.SEFEMBE.XX.XXX.XXX.XXXX.SX.XXX.NOK.IS.N.M"]
[{"$f":"\"INN.\"&EIGNIR!$B$3&C11396","v":{"$error":"#N/A"}},{"$f":"+'Eigið fe'!Q20","v":0},".M.SEFEMBF.XX.XXX.XXX.XXXX.SX.XXX.NOK.IS.N.M"]
[{"$f":"\"INN.\"&EIGNIR!$B$3&C11397","v":{"$error":"#N/A"}},{"$f":"+'Eigið fe'!Q21","v":0},".M.SEFEMBA.XX.XXX.XXX.XXXX.SX.XXX.NOK.IS.N.M"]
[{"$f":"\"INN.\"&EIGNIR!$B$3&C11398","v":{"$error":"#N/A"}},{"$f":"+'Eigið fe'!Q22","v":0},".M.SEFEOEF.XX.XXX.XXX.XXXX.SX.XXX.NOK.IS.N.M"]
[{"$f":"\"INN.\"&EIGNIR!$B$3&C11399","v":{"$error":"#N/A"}},{"$f":"+'Eigið fe'!Q23","v":0},".M.SEFEHB$.XX.XXX.XXX.XXXX.SX.XXX.NOK.IS.N.M"]
[{"$f":"\"INN.\"&EIGNIR!$B$3&C11400","v":{"$error":"#N/A"}},{"$f":"+'Eigið fe'!Q24","v":0},".M.SEFHTYA.XX.XXX.XXX.XXXX.SX.XXX.NOK.IS.N.M"]
[{"$f":"\"INN.\"&EIGNIR!$B$3&C11401","v":{"$error":"#N/A"}},{"$f":"+'Eigið fe'!Q25","v":0},".M.SEFAIAR.XX.XXX.XXX.XXXX.SX.XXX.NOK.IS.N.M"]
[{"$f":"\"INN.\"&EIGNIR!$B$3&C11402","v":{"$error":"#N/A"}},{"$f":"+'Eigið fe'!Q26","v":0},".M.SEF$$$$.XX.XXX.XXX.XXXX.SX.XXX.NOK.IS.N.M"]
[{"$f":"\"INN.\"&EIGNIR!$B$3&C11403","v":{"$error":"#N/A"}},{"$f":"+'Eigið fe'!R5","v":0},".M.SEFUH$$.XX.XXX.XXX.XXXX.SX.XXX.SEK.IS.N.M","//Sundurliðun Eigið fé - SEK"]
[{"$f":"\"INN.\"&EIGNIR!$B$3&C11404","v":{"$error":"#N/A"}},{"$f":"+'Eigið fe'!R6","v":0},".M.SEFUHIB.XX.XXX.XXX.XXXX.SX.XXX.SEK.IS.N.M"]
[{"$f":"\"INN.\"&EIGNIR!$B$3&C11405","v":{"$error":"#N/A"}},{"$f":"+'Eigið fe'!R7","v":0},".M.SEFUHOI.XX.XXX.XXX.XXXX.SX.XXX.SEK.IS.N.M"]
[{"$f":"\"INN.\"&EIGNIR!$B$3&C11406","v":{"$error":"#N/A"}},{"$f":"+'Eigið fe'!R8","v":0},".M.SEFYVHF.XX.XXX.XXX.XXXX.SX.XXX.SEK.IS.N.M"]
[{"$f":"\"INN.\"&EIGNIR!$B$3&C11407","v":{"$error":"#N/A"}},{"$f":"+'Eigið fe'!R9","v":0},".M.SEFAEF$.XX.XXX.XXX.XXXX.SX.XXX.SEK.IS.N.M"]
[{"$f":"\"INN.\"&EIGNIR!$B$3&C11408","v":{"$error":"#N/A"}},{"$f":"+'Eigið fe'!R10","v":0},".M.SEFAEFG.XX.XXX.XXX.XXXX.SX.XXX.SEK.IS.N.M"]
[{"$f":"\"INN.\"&EIGNIR!$B$3&C11409","v":{"$error":"#N/A"}},{"$f":"+'Eigið fe'!R11","v":0},".M.SEFAEFK.XX.XXX.XXX.XXXX.SX.XXX.SEK.IS.N.M"]
[{"$f":"\"INN.\"&EIGNIR!$B$3&C11410","v":{"$error":"#N/A"}},{"$f":"+'Eigið fe'!R12","v":0},".M.SEFAEFA.XX.XXX.XXX.XXXX.SX.XXX.SEK.IS.N.M"]
[{"$f":"\"INN.\"&EIGNIR!$B$3&C11411","v":{"$error":"#N/A"}},{"$f":"+'Eigið fe'!R13","v":0},".M.SEFEMB$.XX.XXX.XXX.XXXX.SX.XXX.SEK.IS.N.M"]
[{"$f":"\"INN.\"&EIGNIR!$B$3&C11412","v":{"$error":"#N/A"}},{"$f":"+'Eigið fe'!R14","v":0},".M.SEFEMBV.XX.XXX.XXX.XXXX.SX.XXX.SEK.IS.N.M"]
[{"$f":"\"INN.\"&EIGNIR!$B$3&C11413","v":{"$error":"#N/A"}},{"$f":"+'Eigið fe'!R15","v":0},".M.SEFEMBO.XX.XXX.XXX.XXXX.SX.XXX.SEK.IS.N.M"]
[{"$f":"\"INN.\"&EIGNIR!$B$3&C11414","v":{"$error":"#N/A"}},{"$f":"+'Eigið fe'!R16","v":0},".M.SEFEMBG.XX.XXX.XXX.XXXX.SX.XXX.SEK.IS.N.M"]
[{"$f":"\"INN.\"&EIGNIR!$B$3&C11415","v":{"$error":"#N/A"}},{"$f":"+'Eigið fe'!R17","v":0},".M.SEFEMBT.XX.XXX.XXX.XXXX.SX.XXX.SEK.IS.N.M"]
[{"$f":"\"INN.\"&EIGNIR!$B$3&C11416","v":{"$error":"#N/A"}},{"$f":"+'Eigið fe'!R18","v":0},".M.SEFEMBS.XX.XXX.XXX.XXXX.SX.XXX.SEK.IS.N.M"]
[{"$f":"\"INN.\"&EIGNIR!$B$3&C11417","v":{"$error":"#N/A"}},{"$f":"+'Eigið fe'!R19","v":0},".M.SEFEMBE.XX.XXX.XXX.XXXX.SX.XXX.SEK.IS.N.M"]
[{"$f":"\"INN.\"&EIGNIR!$B$3&C11418","v":{"$error":"#N/A"}},{"$f":"+'Eigið fe'!R20","v":0},".M.SEFEMBF.XX.XXX.XXX.XXXX.SX.XXX.SEK.IS.N.M"]
[{"$f":"\"INN.\"&EIGNIR!$B$3&C11419","v":{"$error":"#N/A"}},{"$f":"+'Eigið fe'!R21","v":0},".M.SEFEMBA.XX.XXX.XXX.XXXX.SX.XXX.SEK.IS.N.M"]
[{"$f":"\"INN.\"&EIGNIR!$B$3&C11420","v":{"$error":"#N/A"}},{"$f":"+'Eigið fe'!R22","v":0},".M.SEFEOEF.XX.XXX.XXX.XXXX.SX.XXX.SEK.IS.N.M"]
[{"$f":"\"INN.\"&EIGNIR!$B$3&C11421","v":{"$error":"#N/A"}},{"$f":"+'Eigið fe'!R23","v":0},".M.SEFEHB$.XX.XXX.XXX.XXXX.SX.XXX.SEK.IS.N.M"]
[{"$f":"\"INN.\"&EIGNIR!$B$3&C11422","v":{"$error":"#N/A"}},{"$f":"+'Eigið fe'!R24","v":0},".M.SEFHTYA.XX.XXX.XXX.XXXX.SX.XXX.SEK.IS.N.M"]
[{"$f":"\"INN.\"&EIGNIR!$B$3&C11423","v":{"$error":"#N/A"}},{"$f":"+'Eigið fe'!R25","v":0},".M.SEFAIAR.XX.XXX.XXX.XXXX.SX.XXX.SEK.IS.N.M"]
[{"$f":"\"INN.\"&EIGNIR!$B$3&C11424","v":{"$error":"#N/A"}},{"$f":"+'Eigið fe'!R26","v":0},".M.SEF$$$$.XX.XXX.XXX.XXXX.SX.XXX.SEK.IS.N.M"]
[{"$f":"\"INN.\"&EIGNIR!$B$3&C11425","v":{"$error":"#N/A"}},{"$f":"+'Eigið fe'!S5","v":0},".M.SEFUH$$.XX.XXX.XXX.XXXX.SX.XXX.CHF.IS.N.M","//Sundurliðun Eigið fé - CHF"]
[{"$f":"\"INN.\"&EIGNIR!$B$3&C11426","v":{"$error":"#N/A"}},{"$f":"+'Eigið fe'!S6","v":0},".M.SEFUHIB.XX.XXX.XXX.XXXX.SX.XXX.CHF.IS.N.M"]
[{"$f":"\"INN.\"&EIGNIR!$B$3&C11427","v":{"$error":"#N/A"}},{"$f":"+'Eigið fe'!S7","v":0},".M.SEFUHOI.XX.XXX.XXX.XXXX.SX.XXX.CHF.IS.N.M"]
[{"$f":"\"INN.\"&EIGNIR!$B$3&C11428","v":{"$error":"#N/A"}},{"$f":"+'Eigið fe'!S8","v":0},".M.SEFYVHF.XX.XXX.XXX.XXXX.SX.XXX.CHF.IS.N.M"]
[{"$f":"\"INN.\"&EIGNIR!$B$3&C11429","v":{"$error":"#N/A"}},{"$f":"+'Eigið fe'!S9","v":0},".M.SEFAEF$.XX.XXX.XXX.XXXX.SX.XXX.CHF.IS.N.M"]
[{"$f":"\"INN.\"&EIGNIR!$B$3&C11430","v":{"$error":"#N/A"}},{"$f":"+'Eigið fe'!S10","v":0},".M.SEFAEFG.XX.XXX.XXX.XXXX.SX.XXX.CHF.IS.N.M"]
[{"$f":"\"INN.\"&EIGNIR!$B$3&C11431","v":{"$error":"#N/A"}},{"$f":"+'Eigið fe'!S11","v":0},".M.SEFAEFK.XX.XXX.XXX.XXXX.SX.XXX.CHF.IS.N.M"]
[{"$f":"\"INN.\"&EIGNIR!$B$3&C11432","v":{"$error":"#N/A"}},{"$f":"+'Eigið fe'!S12","v":0},".M.SEFAEFA.XX.XXX.XXX.XXXX.SX.XXX.CHF.IS.N.M"]
[{"$f":"\"INN.\"&EIGNIR!$B$3&C11433","v":{"$error":"#N/A"}},{"$f":"+'Eigið fe'!S13","v":0},".M.SEFEMB$.XX.XXX.XXX.XXXX.SX.XXX.CHF.IS.N.M"]
[{"$f":"\"INN.\"&EIGNIR!$B$3&C11434","v":{"$error":"#N/A"}},{"$f":"+'Eigið fe'!S14","v":0},".M.SEFEMBV.XX.XXX.XXX.XXXX.SX.XXX.CHF.IS.N.M"]
[{"$f":"\"INN.\"&EIGNIR!$B$3&C11435","v":{"$error":"#N/A"}},{"$f":"+'Eigið fe'!S15","v":0},".M.SEFEMBO.XX.XXX.XXX.XXXX.SX.XXX.CHF.IS.N.M"]
[{"$f":"\"INN.\"&EIGNIR!$B$3&C11436","v":{"$error":"#N/A"}},{"$f":"+'Eigið fe'!S16","v":0},".M.SEFEMBG.XX.XXX.XXX.XXXX.SX.XXX.CHF.IS.N.M"]
[{"$f":"\"INN.\"&EIGNIR!$B$3&C11437","v":{"$error":"#N/A"}},{"$f":"+'Eigið fe'!S17","v":0},".M.SEFEMBT.XX.XXX.XXX.XXXX.SX.XXX.CHF.IS.N.M"]
[{"$f":"\"INN.\"&EIGNIR!$B$3&C11438","v":{"$error":"#N/A"}},{"$f":"+'Eigið fe'!S18","v":0},".M.SEFEMBS.XX.XXX.XXX.XXXX.SX.XXX.CHF.IS.N.M"]
[{"$f":"\"INN.\"&EIGNIR!$B$3&C11439","v":{"$error":"#N/A"}},{"$f":"+'Eigið fe'!S19","v":0},".M.SEFEMBE.XX.XXX.XXX.XXXX.SX.XXX.CHF.IS.N.M"]
[{"$f":"\"INN.\"&EIGNIR!$B$3&C11440","v":{"$error":"#N/A"}},{"$f":"+'Eigið fe'!S20","v":0},".M.SEFEMBF.XX.XXX.XXX.XXXX.SX.XXX.CHF.IS.N.M"]
[{"$f":"\"INN.\"&EIGNIR!$B$3&C11441","v":{"$error":"#N/A"}},{"$f":"+'Eigið fe'!S21","v":0},".M.SEFEMBA.XX.XXX.XXX.XXXX.SX.XXX.CHF.IS.N.M"]
[{"$f":"\"INN.\"&EIGNIR!$B$3&C11442","v":{"$error":"#N/A"}},{"$f":"+'Eigið fe'!S22","v":0},".M.SEFEOEF.XX.XXX.XXX.XXXX.SX.XXX.CHF.IS.N.M"]
[{"$f":"\"INN.\"&EIGNIR!$B$3&C11443","v":{"$error":"#N/A"}},{"$f":"+'Eigið fe'!S23","v":0},".M.SEFEHB$.XX.XXX.XXX.XXXX.SX.XXX.CHF.IS.N.M"]
[{"$f":"\"INN.\"&EIGNIR!$B$3&C11444","v":{"$error":"#N/A"}},{"$f":"+'Eigið fe'!S24","v":0},".M.SEFHTYA.XX.XXX.XXX.XXXX.SX.XXX.CHF.IS.N.M"]
[{"$f":"\"INN.\"&EIGNIR!$B$3&C11445","v":{"$error":"#N/A"}},{"$f":"+'Eigið fe'!S25","v":0},".M.SEFAIAR.XX.XXX.XXX.XXXX.SX.XXX.CHF.IS.N.M"]
[{"$f":"\"INN.\"&EIGNIR!$B$3&C11446","v":{"$error":"#N/A"}},{"$f":"+'Eigið fe'!S26","v":0},".M.SEF$$$$.XX.XXX.XXX.XXXX.SX.XXX.CHF.IS.N.M"]
[{"$f":"\"INN.\"&EIGNIR!$B$3&C11447","v":{"$error":"#N/A"}},{"$f":"+'Eigið fe'!T5","v":0},".M.SEFUH$$.XX.XXX.XXX.XXXX.SX.XXX.ADR.IS.N.M","//Sundurliðun Eigið fé - Aðrir gjaldmiðlar"]
[{"$f":"\"INN.\"&EIGNIR!$B$3&C11448","v":{"$error":"#N/A"}},{"$f":"+'Eigið fe'!T6","v":0},".M.SEFUHIB.XX.XXX.XXX.XXXX.SX.XXX.ADR.IS.N.M"]
[{"$f":"\"INN.\"&EIGNIR!$B$3&C11449","v":{"$error":"#N/A"}},{"$f":"+'Eigið fe'!T7","v":0},".M.SEFUHOI.XX.XXX.XXX.XXXX.SX.XXX.ADR.IS.N.M"]
[{"$f":"\"INN.\"&EIGNIR!$B$3&C11450","v":{"$error":"#N/A"}},{"$f":"+'Eigið fe'!T8","v":0},".M.SEFYVHF.XX.XXX.XXX.XXXX.SX.XXX.ADR.IS.N.M"]
[{"$f":"\"INN.\"&EIGNIR!$B$3&C11451","v":{"$error":"#N/A"}},{"$f":"+'Eigið fe'!T9","v":0},".M.SEFAEF$.XX.XXX.XXX.XXXX.SX.XXX.ADR.IS.N.M"]
[{"$f":"\"INN.\"&EIGNIR!$B$3&C11452","v":{"$error":"#N/A"}},{"$f":"+'Eigið fe'!T10","v":0},".M.SEFAEFG.XX.XXX.XXX.XXXX.SX.XXX.ADR.IS.N.M"]
[{"$f":"\"INN.\"&EIGNIR!$B$3&C11453","v":{"$error":"#N/A"}},{"$f":"+'Eigið fe'!T11","v":0},".M.SEFAEFK.XX.XXX.XXX.XXXX.SX.XXX.ADR.IS.N.M"]
[{"$f":"\"INN.\"&EIGNIR!$B$3&C11454","v":{"$error":"#N/A"}},{"$f":"+'Eigið fe'!T12","v":0},".M.SEFAEFA.XX.XXX.XXX.XXXX.SX.XXX.ADR.IS.N.M"]
[{"$f":"\"INN.\"&EIGNIR!$B$3&C11455","v":{"$error":"#N/A"}},{"$f":"+'Eigið fe'!T13","v":0},".M.SEFEMB$.XX.XXX.XXX.XXXX.SX.XXX.ADR.IS.N.M"]
[{"$f":"\"INN.\"&EIGNIR!$B$3&C11456","v":{"$error":"#N/A"}},{"$f":"+'Eigið fe'!T14","v":0},".M.SEFEMBV.XX.XXX.XXX.XXXX.SX.XXX.ADR.IS.N.M"]
[{"$f":"\"INN.\"&EIGNIR!$B$3&C11457","v":{"$error":"#N/A"}},{"$f":"+'Eigið fe'!T15","v":0},".M.SEFEMBO.XX.XXX.XXX.XXXX.SX.XXX.ADR.IS.N.M"]
[{"$f":"\"INN.\"&EIGNIR!$B$3&C11458","v":{"$error":"#N/A"}},{"$f":"+'Eigið fe'!T16","v":0},".M.SEFEMBG.XX.XXX.XXX.XXXX.SX.XXX.ADR.IS.N.M"]
[{"$f":"\"INN.\"&EIGNIR!$B$3&C11459","v":{"$error":"#N/A"}},{"$f":"+'Eigið fe'!T17","v":0},".M.SEFEMBT.XX.XXX.XXX.XXXX.SX.XXX.ADR.IS.N.M"]
[{"$f":"\"INN.\"&EIGNIR!$B$3&C11460","v":{"$error":"#N/A"}},{"$f":"+'Eigið fe'!T18","v":0},".M.SEFEMBS.XX.XXX.XXX.XXXX.SX.XXX.ADR.IS.N.M"]
[{"$f":"\"INN.\"&EIGNIR!$B$3&C11461","v":{"$error":"#N/A"}},{"$f":"+'Eigið fe'!T19","v":0},".M.SEFEMBE.XX.XXX.XXX.XXXX.SX.XXX.ADR.IS.N.M"]
[{"$f":"\"INN.\"&EIGNIR!$B$3&C11462","v":{"$error":"#N/A"}},{"$f":"+'Eigið fe'!T20","v":0},".M.SEFEMBF.XX.XXX.XXX.XXXX.SX.XXX.ADR.IS.N.M"]
[{"$f":"\"INN.\"&EIGNIR!$B$3&C11463","v":{"$error":"#N/A"}},{"$f":"+'Eigið fe'!T21","v":0},".M.SEFEMBA.XX.XXX.XXX.XXXX.SX.XXX.ADR.IS.N.M"]
[{"$f":"\"INN.\"&EIGNIR!$B$3&C11464","v":{"$error":"#N/A"}},{"$f":"+'Eigið fe'!T22","v":0},".M.SEFEOEF.XX.XXX.XXX.XXXX.SX.XXX.ADR.IS.N.M"]
[{"$f":"\"INN.\"&EIGNIR!$B$3&C11465","v":{"$error":"#N/A"}},{"$f":"+'Eigið fe'!T23","v":0},".M.SEFEHB$.XX.XXX.XXX.XXXX.SX.XXX.ADR.IS.N.M"]
[{"$f":"\"INN.\"&EIGNIR!$B$3&C11466","v":{"$error":"#N/A"}},{"$f":"+'Eigið fe'!T24","v":0},".M.SEFHTYA.XX.XXX.XXX.XXXX.SX.XXX.ADR.IS.N.M"]
[{"$f":"\"INN.\"&EIGNIR!$B$3&C11467","v":{"$error":"#N/A"}},{"$f":"+'Eigið fe'!T25","v":0},".M.SEFAIAR.XX.XXX.XXX.XXXX.SX.XXX.ADR.IS.N.M"]
[{"$f":"\"INN.\"&EIGNIR!$B$3&C11468","v":{"$error":"#N/A"}},{"$f":"+'Eigið fe'!T26","v":0},".M.SEF$$$$.XX.XXX.XXX.XXXX.SX.XXX.ADR.IS.N.M"]
["END",null,"//Gögn enda"]

{"sheet":"Bankanúmer","index":16,"n_rows":12,"n_cols":4,"rows_kept":12,"cut":false,"hidden":true,"merged":[]}
["Heiti","Nr.","Stofn","Kt"]
["Afl - sparisjóður","1102","SPA.SSI",6102693979]
["Arion banki hf. ","0300","VID.ARB",5810080150]
["Íslandsbanki hf.","0500","VID.ISB","4910080160"]
["Kaupfélag Skagfirðinga",null,"ADR.KAU",6801695009]
["Landsbanki Íslands hf.","0100","VID.LAB",4710080280]
["MP Banki hf","0700","VID.MPB","5405022930"]
["Sparisjóður Höfðhverfinga","1187","SPA.SHH","6102696569"]
["Sparisjóður Austurlands hf","1106","SPA.SNO","6102697029"]
["Sparisjóður Norðurlands","1129","SPA.STO","6102692659"]
["Sparisjóður Strandamanna","1161","SPA.STR","6102694199"]
["Sparisjóður S-Þingeyinga","1110","SPA.SST","5309902149"]